{"text_format":"1","workbook":"xlsx","n_sheets":47,"sheets":["Introduction & Instructions","Required Appendices","Utility Info","Electric Totals","Apt-Elec","Gas Totals","Apt-Gas","Oil","Propane","Steam","Chilled Water","Hot Water","Other","Utility Use Summary","UDAT Support","General Project Information","Area Identification","Area ID Support","Building Types","Occupancy","Envelope","Air-sealing","SG - Component","Mechanical","Lighting","Lighting Data","Lighting Sample Size Calculator","Other Equipment","Modeling Approach","Measure Descriptions","P4Pindices","Measure Simulation","Results from Trace","Results from eQUEST","Implementation & Financing","Project Summary & Incentives","CBECS Statistics","Reference","CBECS Buildings","Partner Internal QC","QC Summary","QC Measure Savings Review","Report Generation","Appendix B Tables","Version Log","Master Export","Support"],"not_rendered":{"charts":21,"images":7,"macros":1,"external_links":0,"defined_names":302,"comments":24,"pivot_tables":0},"unopened":[],"bounds":{"document_bytes":16777216,"sheet_cells":100000,"rows_first":2000,"rows_last":500,"rows_between":2000,"halvings":0,"cell_chars":16384,"cell_head_chars":4096},"cells_cut":0,"cells_raw":0,"read":"whole","date_system":"1900"}

{"sheet":"Introduction & Instructions","index":0,"n_rows":52,"n_cols":5,"rows_kept":52,"cut":false,"hidden":false,"merged":[[22,1,22,2],[17,1,17,4],[18,1,18,4],[19,1,19,4],[20,1,20,2],[21,1,21,2],[36,1,36,2],[23,1,23,4],[24,1,24,4],[25,1,25,4],[26,1,26,2],[27,1,29,1],[27,4,29,4],[27,6,29,6],[30,1,32,1],[30,4,32,4],[33,1,35,1],[33,4,35,4],[37,1,37,4],[38,1,38,4],[39,1,39,4],[40,1,40,2],[41,1,43,1],[41,4,43,4],[57,1,57,2],[57,3,58,3],[57,4,58,4],[58,1,58,2],[44,1,46,1],[44,4,46,4],[47,1,49,1],[47,4,49,4],[50,1,50,2],[51,1,51,4],[52,2,52,4],[53,1,53,4],[54,1,56,2],[54,3,56,3],[54,4,56,4],[66,1,66,4],[59,1,59,2],[59,3,62,3],[59,4,62,4],[60,1,60,2],[61,1,61,2],[62,1,62,2],[63,1,63,2],[63,3,64,3],[63,4,64,4],[64,1,64,2],[65,1,65,4],[16,1,16,4],[15,1,15,4],[14,1,14,4],[13,1,13,4],[12,1,12,4],[11,1,11,4],[10,1,10,4],[9,1,9,4],[7,1,7,4],[6,1,6,4],[8,1,8,4],[5,1,5,4],[4,1,4,4],[0,1,0,4],[1,1,1,4],[2,1,2,4],[3,1,3,4]]}
[null,"New Jersey Office of Clean Energy"]
[null,"Pay for Performance Existing Buildings Program"]
[null,"ERP Tables and Incentive Calculator"]
[null,"Version 4.7, FY2018 updated 11-28-2017"]
[null,"Program Overview"]
[null,"The Pay for Performance Existing Buildings Program takes a comprehensive, whole building approach to energy efficiency in existing commercial, industrial, and multifamily buildings. This market-based program relies on a network of pre-approved program Partners who provide technical services to program Participants under direct contract, acting as their “energy expert”. Partners are required to develop an Energy Reduction Plan (ERP) for each project, which includes a whole-building technical analysis component of a traditional energy audit along with a financial plan for funding the energy efficiency improvements and a construction schedule for installation. A set minimum energy reduction goal is required of all projects and is based on an approved whole-building energy simulation. The achievement of the energy reduction goal is verified using post-retrofit billing data. "]
[null,"Funding"]
[null,"Programs are budgeted on a fiscal year that runs July 1st - June 30th. Applications are reviewed and funds committed on a first come, first serve basis provided all program requirements are met.  "]
[null,"Eligibility"]
[null,"The Pay for Performance Existing Buildings Program is open to existing commercial and industrial buildings with peak demand in excess of 200 kW, as well as certain multifamily buildings with peak demand in excess of 100 kW, in any of the preceding twelve months. Please see Program Guidelines v4.2 Section 2.3 for full information on eligibility. "]
[null,"Required Tools"]
[null,"This ERP Tables document is designed to be used in conjuntion with the following, most of which are also available for download on the Partner Portal:                                                                                               \n• Program Guidelines v4.2\n• Model Calibration Tool (Excel) \n• Eligible simulation software (e.g. eQuest, TRANE TRACE, etc.) \n• ERP Report Template (Word)\n• ENERGY STAR’s® Portfolio Manager (www.energystar.gov/benchmark) \nPartner Portal: http://www.njcleanenergy.com/p4p-portal-login case sensitive password is: tRP47px\n"]
[null,"Instructions for Using ERP Tables"]
[null,"Proceed through this workbook in the order in which tabs are laid out. Any cells shaded in blue must be filled out if applicable to the project; remaining white cells will auto-populate. When certain information is not applicable or missing, indicate \"N/A\" or \"missing.\" Cells that are shaded-in are not applicable based on your inputs.   Detailed instructions regarding completion requirements of the various tabs in this workbook can be found at the top of each tab. In addition, pop-up comments specific to many inputs have been provided for additional information.\nA Navigation Wizard has been included in this tool for convenience.  It can be accessed from buttons provided within this tool.  It can also be accessed at any time using the keyboard shortcut Ctrl-Shift-n.\nFor assistance using this or any other Pay for Performance Program tool, including request for additional rows, please contact P4P@NJCleanEnergy.com \n"]
[null,"Submittal Requirements "]
[null,"When you have completed filling out these tables, submit the following to the Program Manager per Program Guidelines v4.2, Section 2.5\n• Completed ERP Tables, including all Appendices (see next tab)\n• ERP Report per template (upon final revision submittal only)\nOnce all pertinent data has been entered into the ERP Tables, the ERP Report Template included with these tables can be automatically populated with project-specific data.  To do so, click the \"Generate ERP Report\" button in this tool's Navigation Wizard and select the ERP Report Template saved on your computer.  Upon saving this file, you will be redirected to the Appendix B Tables sheet of this file, which can be printed and included with the project's ERP report.\n\nAll submittals must be electronic and can be submitted to P4P@NJCleanEnergy.com Larger files can be submitted through Market Manager FTP site, directions for which can be found on the Partner Portal. Partner FTP links may also be provided to the Program Manager to the email above. \n\n"]
[null,"Incentive Structure"]
[null,"Incentive Structure for NJ Pay For Performance Program"]
[]
[null,"Incentive #1: Energy Reduction Plan "]
[null,"Incentive Amount:",null,0.15,"per sq ft"]
[null,"Minimum Incentive:",null,7500]
[null,"Maximum Incentive:",null,50000,"or 50% of facility annual energy cost"]
[null,"This incentive is designed to offset some or all of the cost of services associated with the development of the Energy Reduction Plan (ERP) and will be released upon ERP approval. Projects must identify efficiency improvements that meet the minimum performance level in order to become eligible for Incentive #1. Incentive amount will be based on the square footage of the building. Incentive is contingent upon installation completion. "]
[]
[null,"Incentive #2: Installation of Recommended Measures"]
[null,"Minimum Performance Target:",null,0.15]
[null,"Electric Incentives","Base Incentive based on 15% savings:",0.09,"per projected kWh saved"]
[null,null,"For each % over 15% add:",5.0000000000000001E-3]
[null,null,"Maximum Incentive:",0.11]
[null,"Gas Incentives","Base Incentive based on 15 % savings:",0.9,"per projected Therm saved"]
[null,null,"For each % over 15% add:",0.05]
[null,null,"Maximum Incentive:",1.25]
[null,"Oil and Propane Incentives","Base Incentive based on 15 % savings:",9,"per projected MMBtu saved"]
[null,null,"For each % over 15% add:",0.5]
[null,null,"Maximum Incentive:",12.5]
[null,"Incentive Cap:",null,0.25,"of total project cost"]
[null,"This incentive is based on projected energy savings and designed to pay approximately 50% of the total performance-based incentive.  Savings projections will be calculated using calibrated energy simulation.  Incentive will be released upon successful installation of recommended measures. Incentive #2 may not exceed 25% of the total project cost."]
[]
[null,"Incentive #3: Post-Construction Benchmarking Report"]
[null,"Minimum Performance Target:",null,0.15]
[null,"Electric Incentives","Base Incentive based on 15% savings:",0.09,"per projected kWh saved"]
[null,null,"For each % over 15% add:",5.0000000000000001E-3]
[null,null,"Maximum Incentive:",0.11]
[null,"Gas Incentives","Base Incentive based on 15% savings:",0.9,"per projected Therm saved"]
[null,null,"For each % over 15% add:",0.05]
[null,null,"Maximum Incentive:",1.25]
[null,"Oil and Propane Incentives","Base Incentive based on 15 % savings:",9,"per projected MMBtu saved"]
[null,null,"For each % over 15% add:",0.5]
[null,null,"Maximum Incentive:",12.5]
[null,"Incentive Cap:",null,0.25,"of total project cost"]
[null,"This incentive will be released upon submittal of a Post-Construction Benchmarking Report that verifies that the level of savings actually achieved by the installed measures meets or exceeds the minimum performance threshold.  Total value of Incentive #2 and Incentive #3 may not exceed 50% of the total project cost. This incentive will \"true up\" proposed savings and the related payment for Incentive #2 so that the total incentive is based on actual savings.  "]

{"sheet":"Required Appendices","index":1,"n_rows":13,"n_cols":3,"rows_kept":13,"cut":false,"hidden":false,"merged":[[12,2,12,4],[0,1,0,4],[1,1,1,4],[2,1,2,4],[4,1,4,4],[5,2,5,4],[6,2,6,4],[8,2,8,4],[9,2,9,4],[10,2,10,4],[11,2,11,4],[7,2,7,4]]}
[null,"New Jersey Office of Clean Energy"]
[null,"Pay for Performance Existing Buildings Program"]
[null,"ERP Tables and Incentive Calculator"]
[]
[null,"Required Appendices"]
["*\n*\n*\n*","Appendix A ","ENERGY STAR’s® Portfolio Manager SEP, Datachecklist, and Score Card (if applicable). \nPlease share project on Portfolio Manager website with TRC. If you have shared projects with TRC before, then our username should already be on your contacts list as “Solutions, TRC”.  If  sharing with TRC for the first time, you will need to add us as a contact first by searching for username “TRCSOLUTIONS”."]
["*\n*","Appendix B","Corresponding utility bills (if not previously submitted) organized by account and in chronological order. Only actual utility invoices or utility summaries provided directly by utility are permitted."]
[null,"Appendix C","Model Calibration Tool "]
[null,"Appendix D","Modeling Files & Output Reports (per Program Guidelines v4.2, Section 4.2)"]
[null,"Appendix E","External Calculations (if applicable)"]
[null,"Appendix F","Pre-Retrofit Metering Approach and Results (if applicable)"]
[null,"Appendix G","Copy of signed Partner/Participant Contract"]
[null,"Appendix H","Signed Installation Agreement"]

{"sheet":"Utility Info","index":2,"n_rows":501,"n_cols":14,"rows_kept":501,"cut":false,"hidden":false,"merged":[[284,3,284,9],[288,3,288,9],[92,3,92,9],[95,3,95,9],[2,1,2,9],[16,11,16,13],[9,11,15,13],[10,1,10,2],[19,1,19,2],[4,1,4,9],[13,1,13,9],[11,1,11,2],[376,3,376,9],[378,3,378,9],[392,3,392,9],[394,3,394,9],[410,3,410,9],[411,3,411,9],[480,3,480,9],[483,3,483,9],[496,3,496,9],[499,3,499,9]]}
[null,"Utility Data Summary"]
[null,"Instructions"]
[null,"1) Fill in all utility information that is applicable to your project. Note: Rate structure is required for all P4P-ICP Pilot projects, optional for all others.\n2) Navigation buttons have been provided on this and other utility data tabs for convenience.  Use these buttons (e.g. \"Enter Common Area Electric Use\") to navigate through these utility data tabs.\n3) Read the notes, which are indicated by red corners, where appropriate, to assist in properly completing this tab.\n4) Enter Start and End date for the pre-construction billing period in cells M7 & M8, which must be Actual Readings. Utility data across all accounts should be no more than 15 days out of sync.\n5) If property is multifamily direct-metered and you are collecting a sample of in-unit bills, fill out the Direct Meter Sampling Requirements table.\n6) Difference between pre and post construction utility information is for reference only. Final/actual post-retrofit savings will be calculated by the Savings Verification Tool. \n7) Please reference Program Guidelines v4.2, Section 3.2 for utility bill collection requirements, including allowed adjustments to utility bills. "]
[]
[null,"PRE-CONSTRUCTION UTILITY INFORMATION"]
[null,null,"Electric","Gas","Fuel Oil","Propane","Steam","Chilled Water","Hot Water","Other",null,null,"PRE-CONSTRUCTION","POST-CONSTRUCTION"]
[null,"Energy Units","kWh","<Not Used>","<Not Used>","<Not Used>","<Not Used>","<Not Used>","<Not Used>","<Not Used>",null,"Start Date"]
[null,"Utility Company","<Select One>","<Select One>",null,null,null,null,null,null,null,"End Date"]
[null,"3rd Party Supplier"]
[null,"Metering Configuration"]
[null,"Is the Project Firm Gas?",null,"<Select>"]
[null,"Is this a Firm Gas Fuel Conversion Project?",null,"<Select>"]
[]
[null,"POST-CONSTRUCTION UTILITY INFORMATION"]
[null,null,"Electric","Gas","Fuel Oil","Propane","Steam","Chilled Water","Hot Water","<Other Fuel Type>"]
[null,"Energy Units","kWh","<Not Used>","<Not Used>","<Not Used>","<Not Used>","<Not Used>","<Not Used>","<Not Used>"]
[null,"Utility Company","<Select One>","<Select One>"]
[null,"3rd Party Supplier"]
[null,"Metering Configuration"]
[null,"Is the Project Firm Gas?",null,"<Select>"]
[]
[null,"Electric Meters - Common Area/Master Meters"]
[null,"Meter Number","Account Number","Location(s) Served","# Apts Served","Rate Class"]
[]
[]
[]
[]
[]
[]
[]
[]
[]
[]
[]
[]
[]
[]
[]
[]
[]
[]
[]
[]
[]
[]
[]
[]
[]
[]
[]
[]
[]
[]
[]
[]
[]
[]
[]
[]
[]
[]
[]
[]
[]
[]
[]
[]
[]
[]
[]
[]
[]
[]
[]
[null,"Electric Meter Data - Apartment Meter Sampling Requirements"]
[null,null,"Description","Total # of Unit Type","Minimum Sample Size"]
[null,"Unit Type 1",null,null,{"$f":"IF(D77=0,0,MAX(1,ROUNDUP(D77*0.1,0)))","v":0}]
[null,"Unit Type 2",null,null,{"$f":"IF(D78=0,0,MAX(1,ROUNDUP(D78*0.1,0)))","v":0}]
[null,"Unit Type 3",null,null,0]
[null,"Unit Type 4",null,null,0]
[null,"Unit Type 5",null,null,0]
[null,"Unit Type 6",null,null,0]
[null,"Unit Type 7",null,null,0]
[null,"Unit Type 8",null,null,0]
[null,"Unit Type 9",null,null,0]
[null,"Unit Type 10",null,null,{"$f":"IF(D86=0,0,MAX(1,ROUNDUP(D86*0.1,0)))","v":0}]
[null,null,null,{"$f":"SUM(D77:D86)","v":0}]
[]
[null,"Electric Rate Structure"]
[null,"Billing Structure","<Select>",{"$f":"IF(OR(C90=\"Tiered TOU\",C90=\"Other\")=TRUE,\"Please include copies of utility and commodity provider electric tariffs and identify the project's service rate schedule(s) as part of the ERP submittal.\",\"\")","v":""}]
[null,"Customer/Service Charge ($/Month)"]
[null,"Fuel Surcharge ($/Month)"]
[null,"Other Fixed Charges ($/Month)",null,"<Notes>"]
[null,"Societal Benefits Charge ($/kWh)"]
[null,"Non-Utility Generation Charge ($/kWh)"]
[null,"Other Per Unit Charges ($/kWh)",null,"<Notes>"]
[null,"Sales and Use Tax (%)",7.0000000000000007E-2]
[]
[null,"# of Seasonal Periods"]
[null,"# of Usage Tiers"]
[null,"# of Daily TOU Periods"]
[]
[null,"Seasonal Period 1"]
[null,"Period Start Date"]
[null,"Period End Date"]
[]
[null,"Seasonal Period 1 - Rate Structure"]
[null,null,{"$f":"IF($C$90=\"Tiered/Stepped\",\"Tier 1\",IF($C$90=\"Time of Use (TOU)\",\"TOU Period 1\",\"\"))","v":""},{"$f":"IF($C$90=\"Tiered/Stepped\",\"Tier 2\",IF($C$90=\"Time of Use (TOU)\",\"TOU Period 2\",\"\"))","v":""},{"$f":"IF($C$90=\"Tiered/Stepped\",IF($C$100>=3,\"Tier 3\",\"\"),IF($C$90=\"Time of Use (TOU)\",IF($C$101>=3,\"TOU Period 3\",\"\"),\"\"))","v":""},{"$f":"IF($C$90=\"Tiered/Stepped\",IF($C$100>=4,\"Tier 4\",\"\"),IF($C$90=\"Time of Use (TOU)\",IF($C$101>=4,\"TOU Period 4\",\"\"),\"\"))","v":""}]
[null,"Tier Max kWh"]
[null,"TOU Period Start Time"]
[null,"Distribution Charge ($/kWh)"]
[null,"Off-Peak WH Distribution Charge ($/kWh)"]
[null,"Controlled WH Distribution Charge ($/kWh)"]
[null,"Transmission Charge ($/kWh)"]
[null,"Generation Charge ($/kWh)"]
[null,"Energy Credit ($/kWh)…"]
[null,"…for usage up to (kWh)"]
[]
[null,"Capacity Charge ($/kW)…",null,"per day"]
[null,"… in excess of (kW)"]
[null,"Monthly Transmission Charge ($/kW)…"]
[null,"… in excess of (kW)"]
[null,"Monthly Distribution Charge ($/kW)…"]
[null,"… in excess of (kW)"]
[null,"Reactive Demand Charge ($/kvar)…"]
[null,"...for each kvar over (%) of kW demand"]
[null,"Demand Adjustment (kW)"]
[null,"Ratcheted Demand?"]
[null,"Minimum Demand Charge (%)"]
[]
[null,"Seasonal Period 2"]
[null,"Period Start Date"]
[null,"Period End Date"]
[]
[null,"Seasonal Period 2 - Rate Structure"]
[null,null,{"$f":"IF($C$90=\"Tiered/Stepped\",\"Tier 1\",IF($C$90=\"Time of Use (TOU)\",\"TOU Period 1\",\"\"))","v":""},{"$f":"IF($C$90=\"Tiered/Stepped\",\"Tier 2\",IF($C$90=\"Time of Use (TOU)\",\"TOU Period 2\",\"\"))","v":""},{"$f":"IF($C$90=\"Tiered/Stepped\",IF($C$100>=3,\"Tier 3\",\"\"),IF($C$90=\"Time of Use (TOU)\",IF($C$101>=3,\"TOU Period 3\",\"\"),\"\"))","v":""},{"$f":"IF($C$90=\"Tiered/Stepped\",IF($C$100>=4,\"Tier 4\",\"\"),IF($C$90=\"Time of Use (TOU)\",IF($C$101>=4,\"TOU Period 4\",\"\"),\"\"))","v":""}]
[null,"Tier Max kWh"]
[null,"TOU Period Start Time"]
[null,"Distribution Charge ($/kWh)"]
[null,"Off-Peak WH Distribution Charge ($/kWh)"]
[null,"Controlled WH Distribution Charge ($/kWh)"]
[null,"Transmission Charge ($/kWh)"]
[null,"Generation Charge ($/kWh)"]
[null,"Energy Credit ($/kWh)…"]
[null,"…for usage up to (kWh)"]
[]
[null,"Capacity Charge ($/kW)…",null,"per day"]
[null,"… in excess of (kW)"]
[null,"Monthly Transmission Charge ($/kW)…"]
[null,"… in excess of (kW)"]
[null,"Monthly Distribution Charge ($/kW)…"]
[null,"… in excess of (kW)"]
[null,"Reactive Demand Charge ($/kvar)…"]
[null,"...for each kvar over (%) of kW demand"]
[null,"Demand Adjustment (kW)"]
[null,"Ratcheted Demand?"]
[null,"Minimum Demand Charge (%)"]
[]
[null,"Seasonal Period 3"]
[null,"Period Start Date"]
[null,"Period End Date"]
[]
[null,"Seasonal Period 3 - Rate Structure"]
[null,null,{"$f":"IF($C$90=\"Tiered/Stepped\",\"Tier 1\",IF($C$90=\"Time of Use (TOU)\",\"TOU Period 1\",\"\"))","v":""},{"$f":"IF($C$90=\"Tiered/Stepped\",\"Tier 2\",IF($C$90=\"Time of Use (TOU)\",\"TOU Period 2\",\"\"))","v":""},{"$f":"IF($C$90=\"Tiered/Stepped\",IF($C$100>=3,\"Tier 3\",\"\"),IF($C$90=\"Time of Use (TOU)\",IF($C$101>=3,\"TOU Period 3\",\"\"),\"\"))","v":""},{"$f":"IF($C$90=\"Tiered/Stepped\",IF($C$100>=4,\"Tier 4\",\"\"),IF($C$90=\"Time of Use (TOU)\",IF($C$101>=4,\"TOU Period 4\",\"\"),\"\"))","v":""}]
[null,"Tier Max kWh"]
[null,"TOU Period Start Time"]
[null,"Distribution Charge ($/kWh)"]
[null,"Off-Peak WH Distribution Charge ($/kWh)"]
[null,"Controlled WH Distribution Charge ($/kWh)"]
[null,"Transmission Charge ($/kWh)"]
[null,"Generation Charge ($/kWh)"]
[null,"Energy Credit ($/kWh)…"]
[null,"…for usage up to (kWh)"]
[]
[null,"Capacity Charge ($/kW)…",null,"per day"]
[null,"… in excess of (kW)"]
[null,"Monthly Transmission Charge ($/kW)…"]
[null,"… in excess of (kW)"]
[null,"Monthly Distribution Charge ($/kW)…"]
[null,"… in excess of (kW)"]
[null,"Reactive Demand Charge ($/kvar)…"]
[null,"...for each kvar over (%) of kW demand"]
[null,"Demand Adjustment (kW)"]
[null,"Ratcheted Demand?"]
[null,"Minimum Demand Charge (%)"]
[]
[null,"Seasonal Period 4"]
[null,"Period Start Date"]
[null,"Period End Date"]
[]
[null,"Seasonal Period 4 - Rate Structure"]
[null,null,{"$f":"IF($C$90=\"Tiered/Stepped\",\"Tier 1\",IF($C$90=\"Time of Use (TOU)\",\"TOU Period 1\",\"\"))","v":""},{"$f":"IF($C$90=\"Tiered/Stepped\",\"Tier 2\",IF($C$90=\"Time of Use (TOU)\",\"TOU Period 2\",\"\"))","v":""},{"$f":"IF($C$90=\"Tiered/Stepped\",IF($C$100>=3,\"Tier 3\",\"\"),IF($C$90=\"Time of Use (TOU)\",IF($C$101>=3,\"TOU Period 3\",\"\"),\"\"))","v":""},{"$f":"IF($C$90=\"Tiered/Stepped\",IF($C$100>=4,\"Tier 4\",\"\"),IF($C$90=\"Time of Use (TOU)\",IF($C$101>=4,\"TOU Period 4\",\"\"),\"\"))","v":""}]
[null,"Tier Max kWh"]
[null,"TOU Period Start Time"]
[null,"Distribution Charge ($/kWh)"]
[null,"Off-Peak WH Distribution Charge ($/kWh)"]
[null,"Controlled WH Distribution Charge ($/kWh)"]
[null,"Transmission Charge ($/kWh)"]
[null,"Generation Charge ($/kWh)"]
[null,"Energy Credit ($/kWh)…"]
[null,"…for usage up to (kWh)"]
[]
[null,"Capacity Charge ($/kW)…",null,"per day"]
[null,"… in excess of (kW)"]
[null,"Monthly Transmission Charge ($/kW)…"]
[null,"… in excess of (kW)"]
[null,"Monthly Distribution Charge ($/kW)…"]
[null,"… in excess of (kW)"]
[null,"Reactive Demand Charge ($/kvar)…"]
[null,"...for each kvar over (%) of kW demand"]
[null,"Demand Adjustment (kW)"]
[null,"Ratcheted Demand?"]
[null,"Minimum Demand Charge (%)"]
[]
[null,"Gas Meters - Common Area/Master Meters"]
[null,"Meter Number","Account Number","Location(s) Served","# Apts Served","Rate Class"]
[]
[]
[]
[]
[]
[]
[]
[]
[]
[]
[]
[]
[]
[]
[]
[]
[]
[]
[]
[]
[]
[]
[]
[]
[]
[]
[]
[]
[]
[]
[]
[]
[]
[]
[]
[]
[]
[]
[]
[]
[]
[]
[]
[]
[]
[]
[]
[]
[]
[]
[]
[null,"Gas Meter Data - Apartment Meter Sampling Requirements"]
[null,null,"Description","Total # of Unit Type","Minimum Sample Size"]
[null,"Unit Type 1",null,null,{"$f":"IF(D270=0,0,MAX(1,ROUNDUP(D270*0.1,0)))","v":0}]
[null,"Unit Type 2",null,null,0]
[null,"Unit Type 3",null,null,0]
[null,"Unit Type 4",null,null,0]
[null,"Unit Type 5",null,null,0]
[null,"Unit Type 6",null,null,0]
[null,"Unit Type 7",null,null,0]
[null,"Unit Type 8",null,null,0]
[null,"Unit Type 9",null,null,0]
[null,"Unit Type 10",null,null,{"$f":"IF(D279=0,0,MAX(1,ROUNDUP(D279*0.1,0)))","v":0}]
[null,null,null,{"$f":"SUM(D270:D279)","v":0}]
[]
[null,"Natural Gas Rate Structure"]
[null,"Billing Structure","<Select>",{"$f":"IF(C283=\"Other\",\"Please include copies of utility and commodity provider natural gas tariffs and identify the project's service rate schedule(s) as part of the ERP submittal.\",\"\")","v":""}]
[null,"Customer/Service Charge ($/Month)"]
[null,"Other Fixed Charges ($/Month)",null,"<Notes>"]
[null,"Societal Benefits Charge ($/Therm)"]
[null,"Clean Energy Program Charge ($/Therm)"]
[null,"Weather Normalization Charge ($/Therm)"]
[null,"Other Per Unit Charges ($/Therm)",null,"<Notes>"]
[null,"Sales and Use Tax (%)",7.0000000000000007E-2]
[]
[null,"# of Seasonal Periods"]
[null,"# of Usage Tiers"]
[]
[null,"Seasonal Period 1"]
[null,"Period Start Date"]
[null,"Period End Date"]
[]
[null,"Seasonal Period 1 - Rate Structure"]
[null,null,{"$f":"IF($C$283=\"Tiered/Stepped\",\"Tier 1\",\"\")","v":""},{"$f":"IF($C$283=\"Tiered/Stepped\",\"Tier 2\",\"\")","v":""},{"$f":"IF($C$283=\"Tiered/Stepped\",IF($C$293>=3,\"Tier 3\",\"\"),\"\")","v":""},{"$f":"IF($C$283=\"Tiered/Stepped\",IF($C$293>=4,\"Tier 4\",\"\"),\"\")","v":""}]
[null,"Tier Max Therms"]
[null,"Distribution Charge - All Usage ($/Therm)"]
[null,"Distribution Charge - Heating ($/Therm)"]
[null,"Distribution Charge - Non-Heating ($/Therm)"]
[null,"Commodity Charge ($/Therm)"]
[null,"Distributed Generation Charge ($/Therm)"]
[null,"Gas AC Charge ($/Therm)"]
[null,"Demand Charge ($/Therm)"]
[null,"Balancing Charge ($/Therm)"]
[null,"Energy Credit ($/Therm)"]
[null,"…for usage up to (Therm)"]
[]
[null,"Seasonal Period 2"]
[null,"Period Start Date"]
[null,"Period End Date"]
[]
[null,"Seasonal Period 2 - Rate Structure"]
[null,null,{"$f":"IF($C$283=\"Tiered/Stepped\",\"Tier 1\",\"\")","v":""},{"$f":"IF($C$283=\"Tiered/Stepped\",\"Tier 2\",\"\")","v":""},{"$f":"IF($C$283=\"Tiered/Stepped\",IF($C$293>=3,\"Tier 3\",\"\"),\"\")","v":""},{"$f":"IF($C$283=\"Tiered/Stepped\",IF($C$293>=4,\"Tier 4\",\"\"),\"\")","v":""}]
[null,"Tier Max Therms"]
[null,"Distribution Charge - All Usage ($/Therm)"]
[null,"Distribution Charge - Heating ($/Therm)"]
[null,"Distribution Charge - Non-Heating ($/Therm)"]
[null,"Commodity Charge ($/Therm)"]
[null,"Distributed Generation Charge ($/Therm)"]
[null,"Gas AC Charge ($/Therm)"]
[null,"Demand Charge ($/Therm)"]
[null,"Balancing Charge ($/Therm)"]
[null,"Energy Credit ($/Therm)"]
[null,"…for usage up to (Therm)"]
[]
[null,"Seasonal Period 3"]
[null,"Period Start Date"]
[null,"Period End Date"]
[]
[null,"Seasonal Period 3 - Rate Structure"]
[null,null,{"$f":"IF($C$283=\"Tiered/Stepped\",\"Tier 1\",\"\")","v":""},{"$f":"IF($C$283=\"Tiered/Stepped\",\"Tier 2\",\"\")","v":""},{"$f":"IF($C$283=\"Tiered/Stepped\",IF($C$293>=3,\"Tier 3\",\"\"),\"\")","v":""},{"$f":"IF($C$283=\"Tiered/Stepped\",IF($C$293>=4,\"Tier 4\",\"\"),\"\")","v":""}]
[null,"Tier Max Therms"]
[null,"Distribution Charge - All Usage ($/Therm)"]
[null,"Distribution Charge - Heating ($/Therm)"]
[null,"Distribution Charge - Non-Heating ($/Therm)"]
[null,"Commodity Charge ($/Therm)"]
[null,"Distributed Generation Charge ($/Therm)"]
[null,"Gas AC Charge ($/Therm)"]
[null,"Demand Charge ($/Therm)"]
[null,"Balancing Charge ($/Therm)"]
[null,"Energy Credit ($/Therm)"]
[null,"…for usage up to (Therm)"]
[]
[null,"Seasonal Period 4"]
[null,"Period Start Date"]
[null,"Period End Date"]
[]
[null,"Seasonal Period 4 - Rate Structure"]
[null,null,{"$f":"IF($C$283=\"Tiered/Stepped\",\"Tier 1\",\"\")","v":""},{"$f":"IF($C$283=\"Tiered/Stepped\",\"Tier 2\",\"\")","v":""},{"$f":"IF($C$283=\"Tiered/Stepped\",IF($C$293>=3,\"Tier 3\",\"\"),\"\")","v":""},{"$f":"IF($C$283=\"Tiered/Stepped\",IF($C$293>=4,\"Tier 4\",\"\"),\"\")","v":""}]
[null,"Tier Max Therms"]
[null,"Distribution Charge - All Usage ($/Therm)"]
[null,"Distribution Charge - Heating ($/Therm)"]
[null,"Distribution Charge - Non-Heating ($/Therm)"]
[null,"Commodity Charge ($/Therm)"]
[null,"Distributed Generation Charge ($/Therm)"]
[null,"Gas AC Charge ($/Therm)"]
[null,"Demand Charge ($/Therm)"]
[null,"Balancing Charge ($/Therm)"]
[null,"Energy Credit ($/Therm)"]
[null,"…for usage up to (Therm)"]
[]
[null,"Oil Meters"]
[null,"Meter Number","Account Number","Location(s) Served","# Apts Served","Rate Class"]
[]
[]
[]
[]
[]
[]
[null,"Oil Rates"]
[null,"Customer/Service Charge ($/Month)"]
[null,"Other Fixed Charges ($/Month)",null,"<Notes>"]
[null,"Supply Cost ($/Gallon)"]
[null,"Other Per Unit Costs ($/Gallon)",null,"<Notes>"]
[null,"Delivery Cost ($/Delivery)"]
[null,"Sales and Use Tax (%)",7.0000000000000007E-2]
[]
[null,"Propane Meters"]
[null,"Meter Number","Account Number","Location(s) Served","# Apts Served","Rate Class"]
[]
[]
[]
[]
[]
[]
[null,"Propane Rates"]
[null,"Customer/Service Charge ($/Month)"]
[null,"Other Fixed Charges ($/Month)",null,"<Notes>"]
[null,"Supply Cost ($/Gallon)"]
[null,"Other Per Unit Costs ($/Gallon)",null,"<Notes>"]
[null,"Delivery Cost ($/Delivery)"]
[null,"Sales and Use Tax (%)",7.0000000000000007E-2]
[]
[null,"Steam Meters"]
[null,"Meter Number","Account Number","Location(s) Served","# Apts Served","Rate Class"]
[]
[]
[]
[]
[]
[]
[null,"Steam Rate Structure"]
[null,"Billing Structure","<Select>",{"$f":"IF(OR(C408=\"Other\",C408=\"Tiered TOU\")=TRUE,\"Please include copies of steam tariffs and identify the project's service rate schedule(s) as part of the ERP submittal.\",\"\")","v":""}]
[null,"Customer/Service Charge ($/Month)"]
[null,"Fuel Surcharge ($/Month)"]
[null,"Other Fixed Charges ($/Month)",null,"<Notes>"]
[null,"Non-Usage Per Unit Charges ($/Mlb)",null,"<Notes>"]
[null,"Sales and Use Tax (%)",7.0000000000000007E-2]
[]
[null,"# of Seasonal Periods"]
[null,"# of Usage Tiers"]
[null,"# of Daily TOU Periods"]
[]
[null,"Seasonal Period 1"]
[null,"Period Start Date"]
[null,"Period End Date"]
[]
[null,"Seasonal Period 1 - Rate Structure"]
[null,null,{"$f":"IF($C$408=\"Tiered/Stepped\",\"Tier 1\",IF($C$408=\"Time of Use (TOU)\",\"TOU Period 1\",\"\"))","v":""},{"$f":"IF($C$408=\"Tiered/Stepped\",\"Tier 2\",IF($C$408=\"Time of Use (TOU)\",\"TOU Period 2\",\"\"))","v":""},{"$f":"IF($C$408=\"Tiered/Stepped\",IF($C$416>=3,\"Tier 3\",\"\"),IF($C$408=\"Time of Use (TOU)\",IF($C$417>=3,\"TOU Period 3\",\"\"),\"\"))","v":""},{"$f":"IF($C$408=\"Tiered/Stepped\",IF($C$416>=4,\"Tier 4\",\"\"),IF($C$408=\"Time of Use (TOU)\",IF($C$417>=4,\"TOU Period 4\",\"\"),\"\"))","v":""}]
[null,"Tier Max Mlb"]
[null,"TOU Period Start Time"]
[null,"Usage Charge ($/Mlb)"]
[]
[null,"Peak Demand Charge ($/Mlb/hr)"]
[null,"Off-Peak Demand Charge ($/Mlb/hr)"]
[]
[null,"Seasonal Period 2"]
[null,"Period Start Date"]
[null,"Period End Date"]
[]
[null,"Seasonal Period 2 - Rate Structure"]
[null,null,{"$f":"IF($C$408=\"Tiered/Stepped\",\"Tier 1\",IF($C$408=\"Time of Use (TOU)\",\"TOU Period 1\",\"\"))","v":""},{"$f":"IF($C$408=\"Tiered/Stepped\",\"Tier 2\",IF($C$408=\"Time of Use (TOU)\",\"TOU Period 2\",\"\"))","v":""},{"$f":"IF($C$408=\"Tiered/Stepped\",IF($C$416>=3,\"Tier 3\",\"\"),IF($C$408=\"Time of Use (TOU)\",IF($C$417>=3,\"TOU Period 3\",\"\"),\"\"))","v":""},{"$f":"IF($C$408=\"Tiered/Stepped\",IF($C$416>=4,\"Tier 4\",\"\"),IF($C$408=\"Time of Use (TOU)\",IF($C$417>=4,\"TOU Period 4\",\"\"),\"\"))","v":""}]
[null,"Tier Max Mlb"]
[null,"TOU Period Start Time"]
[null,"Usage Charge ($/Mlb)"]
[]
[null,"Peak Demand Charge ($/Mlb/hr)"]
[null,"Off-Peak Demand Charge ($/Mlb/hr)"]
[]
[null,"Seasonal Period 3"]
[null,"Period Start Date"]
[null,"Period End Date"]
[]
[null,"Seasonal Period 3 - Rate Structure"]
[null,null,{"$f":"IF($C$408=\"Tiered/Stepped\",\"Tier 1\",IF($C$408=\"Time of Use (TOU)\",\"TOU Period 1\",\"\"))","v":""},{"$f":"IF($C$408=\"Tiered/Stepped\",\"Tier 2\",IF($C$408=\"Time of Use (TOU)\",\"TOU Period 2\",\"\"))","v":""},{"$f":"IF($C$408=\"Tiered/Stepped\",IF($C$416>=3,\"Tier 3\",\"\"),IF($C$408=\"Time of Use (TOU)\",IF($C$417>=3,\"TOU Period 3\",\"\"),\"\"))","v":""},{"$f":"IF($C$408=\"Tiered/Stepped\",IF($C$416>=4,\"Tier 4\",\"\"),IF($C$408=\"Time of Use (TOU)\",IF($C$417>=4,\"TOU Period 4\",\"\"),\"\"))","v":""}]
[null,"Tier Max Mlb"]
[null,"TOU Period Start Time"]
[null,"Usage Charge ($/Mlb)"]
[]
[null,"Peak Demand Charge ($/Mlb/hr)"]
[null,"Off-Peak Demand Charge ($/Mlb/hr)"]
[]
[null,"Seasonal Period 4"]
[null,"Period Start Date"]
[null,"Period End Date"]
[]
[null,"Seasonal Period 4 - Rate Structure"]
[null,null,{"$f":"IF($C$408=\"Tiered/Stepped\",\"Tier 1\",IF($C$408=\"Time of Use (TOU)\",\"TOU Period 1\",\"\"))","v":""},{"$f":"IF($C$408=\"Tiered/Stepped\",\"Tier 2\",IF($C$408=\"Time of Use (TOU)\",\"TOU Period 2\",\"\"))","v":""},{"$f":"IF($C$408=\"Tiered/Stepped\",IF($C$416>=3,\"Tier 3\",\"\"),IF($C$408=\"Time of Use (TOU)\",IF($C$417>=3,\"TOU Period 3\",\"\"),\"\"))","v":""},{"$f":"IF($C$408=\"Tiered/Stepped\",IF($C$416>=4,\"Tier 4\",\"\"),IF($C$408=\"Time of Use (TOU)\",IF($C$417>=4,\"TOU Period 4\",\"\"),\"\"))","v":""}]
[null,"Tier Max Mlb"]
[null,"TOU Period Start Time"]
[null,"Usage Charge ($/Mlb)"]
[]
[null,"Peak Demand Charge ($/Mlb/hr)"]
[null,"Off-Peak Demand Charge ($/Mlb/hr)"]
[]
[null,"Chilled Water Meters"]
[null,"Meter Number","Account Number","Location(s) Served","# Apts Served","Rate Class"]
[]
[]
[]
[]
[]
[]
[null,"Chilled Water Rate"]
[null,"Customer/Service Charge ($/Month)"]
[null,"Other Fixed Charges ($/Month)",null,"<Notes>"]
[null,"Commodity Cost ($/MMBtu)"]
[null,"Capacity Cost ($/MMBtu/hr)"]
[null,"Other Per Unit Costs ($/MMBtu)",null,"<Notes>"]
[null,"Sales and Use Tax (%)",7.0000000000000007E-2]
[]
[null,"Hot Water Meters"]
[null,"Meter Number","Account Number","Location(s) Served","# Apts Served","Rate Class"]
[]
[]
[]
[]
[]
[]
[null,"Hot Water Rate"]
[null,"Customer/Service Charge ($/Month)"]
[null,"Other Fixed Charges ($/Month)",null,"<Notes>"]
[null,"Commodity Cost ($/MMBtu)"]
[null,"Capacity Cost ($/MMBtu/hr)"]
[null,"Other Per Unit Costs ($/MMBtu)",null,"<Notes>"]
[null,"Sales and Use Tax (%)",7.0000000000000007E-2]

{"sheet":"Electric Totals","index":3,"n_rows":60,"n_cols":183,"rows_kept":60,"cut":false,"hidden":false,"merged":[[51,149,51,151],[52,149,52,151],[4,152,4,154],[5,152,5,154],[6,152,6,154],[26,152,26,154],[27,152,27,154],[29,152,29,154],[30,152,30,154],[31,152,31,154],[51,152,51,154],[52,152,52,154],[4,149,4,151],[5,149,5,151],[6,149,6,151],[26,149,26,151],[27,149,27,151],[29,149,29,151],[30,149,30,151],[31,149,31,151],[51,143,51,145],[52,143,52,145],[4,146,4,148],[5,146,5,148],[6,146,6,148],[26,146,26,148],[27,146,27,148],[29,146,29,148],[30,146,30,148],[31,146,31,148],[51,146,51,148],[52,146,52,148],[4,143,4,145],[5,143,5,145],[6,143,6,145],[26,143,26,145],[27,143,27,145],[29,143,29,145],[30,143,30,145],[31,143,31,145],[51,137,51,139],[52,137,52,139],[4,140,4,142],[5,140,5,142],[6,140,6,142],[26,140,26,142],[27,140,27,142],[29,140,29,142],[30,140,30,142],[31,140,31,142],[51,140,51,142],[52,140,52,142],[4,137,4,139],[5,137,5,139],[6,137,6,139],[26,137,26,139],[27,137,27,139],[29,137,29,139],[30,137,30,139],[31,137,31,139],[51,131,51,133],[52,131,52,133],[4,134,4,136],[5,134,5,136],[6,134,6,136],[26,134,26,136],[27,134,27,136],[29,134,29,136],[30,134,30,136],[31,134,31,136],[51,134,51,136],[52,134,52,136],[4,131,4,133],[5,131,5,133],[6,131,6,133],[26,131,26,133],[27,131,27,133],[29,131,29,133],[30,131,30,133],[31,131,31,133],[51,125,51,127],[52,125,52,127],[4,128,4,130],[5,128,5,130],[6,128,6,130],[26,128,26,130],[27,128,27,130],[29,128,29,130],[30,128,30,130],[31,128,31,130],[51,128,51,130],[52,128,52,130],[4,125,4,127],[5,125,5,127],[6,125,6,127],[26,125,26,127],[27,125,27,127],[29,125,29,127],[30,125,30,127],[31,125,31,127],[51,119,51,121],[52,119,52,121],[4,122,4,124],[5,122,5,124],[6,122,6,124],[26,122,26,124],[27,122,27,124],[29,122,29,124],[30,122,30,124],[31,122,31,124],[51,122,51,124],[52,122,52,124],[4,119,4,121],[5,119,5,121],[6,119,6,121],[26,119,26,121],[27,119,27,121],[29,119,29,121],[30,119,30,121],[31,119,31,121],[51,113,51,115],[52,113,52,115],[4,116,4,118],[5,116,5,118],[6,116,6,118],[26,116,26,118],[27,116,27,118],[29,116,29,118],[30,116,30,118],[31,116,31,118],[51,116,51,118],[52,116,52,118],[4,113,4,115],[5,113,5,115],[6,113,6,115],[26,113,26,115],[27,113,27,115],[29,113,29,115],[30,113,30,115],[31,113,31,115],[51,107,51,109],[52,107,52,109],[4,110,4,112],[5,110,5,112],[6,110,6,112],[26,110,26,112],[27,110,27,112],[29,110,29,112],[30,110,30,112],[31,110,31,112],[51,110,51,112],[52,110,52,112],[4,107,4,109],[5,107,5,109],[6,107,6,109],[26,107,26,109],[27,107,27,109],[29,107,29,109],[30,107,30,109],[31,107,31,109],[51,101,51,103],[52,101,52,103],[4,104,4,106],[5,104,5,106],[6,104,6,106],[26,104,26,106],[27,104,27,106],[29,104,29,106],[30,104,30,106],[31,104,31,106],[51,104,51,106],[52,104,52,106],[4,101,4,103],[5,101,5,103],[6,101,6,103],[26,101,26,103],[27,101,27,103],[29,101,29,103],[30,101,30,103],[31,101,31,103],[51,95,51,97],[52,95,52,97],[4,98,4,100],[5,98,5,100],[6,98,6,100],[26,98,26,100],[27,98,27,100],[29,98,29,100],[30,98,30,100],[31,98,31,100],[51,98,51,100],[52,98,52,100],[4,95,4,97],[5,95,5,97],[6,95,6,97],[26,95,26,97],[27,95,27,97],[29,95,29,97],[30,95,30,97],[31,95,31,97],[4,1,5,3],[4,5,4,7],[4,8,4,10],[4,11,4,13],[4,14,4,16],[4,17,4,19],[4,20,4,22],[29,1,30,3],[25,1,26,3],[26,5,26,7],[26,8,26,10],[26,11,26,13],[26,14,26,16],[26,17,26,19],[29,5,29,7],[29,8,29,10],[29,11,29,13],[29,14,29,16],[29,17,29,19],[29,20,29,22],[30,5,30,7],[30,8,30,10],[30,11,30,13],[30,14,30,16],[4,59,4,61],[4,62,4,64],[4,159,5,161],[5,5,5,7],[5,8,5,10],[5,11,5,13],[5,14,5,16],[5,17,5,19],[5,20,5,22],[5,23,5,25],[4,41,4,43],[4,44,4,46],[4,47,4,49],[4,50,4,52],[4,53,4,55],[4,56,4,58],[4,23,4,25],[4,26,4,28],[4,29,4,31],[4,32,4,34],[4,35,4,37],[6,23,6,25],[4,38,4,40],[6,29,6,31],[6,32,6,34],[6,35,6,37],[6,38,6,40],[5,62,5,64],[6,1,7,1],[6,2,7,2],[6,3,7,3],[6,5,6,7],[6,8,6,10],[6,11,6,13],[6,14,6,16],[6,17,6,19],[6,20,6,22],[5,44,5,46],[5,47,5,49],[5,50,5,52],[5,53,5,55],[5,56,5,58],[5,59,5,61],[5,26,5,28],[5,29,5,31],[6,26,6,28],[5,35,5,37],[6,162,7,162],[6,164,7,164],[6,59,6,61],[6,62,6,64],[6,155,7,155],[6,159,7,159],[6,160,7,160],[6,161,7,161],[6,41,6,43],[6,44,6,46],[6,47,6,49],[6,50,6,52],[6,53,6,55],[6,56,6,58],[5,32,5,34],[6,157,7,157],[5,38,5,40],[5,41,5,43],[26,56,26,58],[26,59,26,61],[26,62,26,64],[27,5,27,7],[27,8,27,10],[27,11,27,13],[27,14,27,16],[27,17,27,19],[27,20,27,22],[27,23,27,25],[26,38,26,40],[26,41,26,43],[26,44,26,46],[26,47,26,49],[26,50,26,52],[26,53,26,55],[26,20,26,22],[26,23,26,25],[26,26,26,28],[26,29,26,31],[26,32,26,34],[26,35,26,37],[27,62,27,64],[29,23,29,25],[29,26,29,28],[27,44,27,46],[27,47,27,49],[27,50,27,52],[27,53,27,55],[27,56,27,58],[27,59,27,61],[27,26,27,28],[27,29,27,31],[27,32,27,34],[27,35,27,37],[27,38,27,40],[27,41,27,43],[30,17,30,19],[30,20,30,22],[30,23,30,25],[30,26,30,28],[30,29,30,31],[30,32,30,34],[30,35,30,37],[30,38,30,40],[30,41,30,43],[31,26,31,28],[31,29,31,31],[31,32,31,34],[31,35,31,37],[29,159,30,161],[29,47,29,49],[29,50,29,52],[29,53,29,55],[29,56,29,58],[29,59,29,61],[29,62,29,64],[29,29,29,31],[29,32,29,34],[29,35,29,37],[29,38,29,40],[29,41,29,43],[29,44,29,46],[30,50,30,52],[30,53,30,55],[31,157,32,157],[30,56,30,58],[30,59,30,61],[30,62,30,64],[30,44,30,46],[30,47,30,49],[31,161,32,161],[31,162,32,162],[31,164,32,164],[31,56,31,58],[31,59,31,61],[31,62,31,64],[31,155,32,155],[31,159,32,159],[31,160,32,160],[31,89,31,91],[31,44,31,46],[31,47,31,49],[31,50,31,52],[31,53,31,55],[31,20,31,22],[31,23,31,25],[50,1,51,3],[51,5,51,7],[51,8,51,10],[51,11,51,13],[51,14,51,16],[51,17,51,19],[51,20,51,22],[51,23,51,25],[51,26,51,28],[31,38,31,40],[31,41,31,43],[31,5,31,7],[31,8,31,10],[31,11,31,13],[31,14,31,16],[31,17,31,19],[31,1,32,1],[31,2,32,2],[31,3,32,3],[51,38,51,40],[51,41,51,43],[51,44,51,46],[52,59,52,61],[52,62,52,64],[51,47,51,49],[51,50,51,52],[51,53,51,55],[51,56,51,58],[51,59,51,61],[51,62,51,64],[52,5,52,7],[52,8,52,10],[52,11,52,13],[52,14,52,16],[52,17,52,19],[52,20,52,22],[51,29,51,31],[51,32,51,34],[51,35,51,37],[52,41,52,43],[52,44,52,46],[52,47,52,49],[52,50,52,52],[52,53,52,55],[52,56,52,58],[52,23,52,25],[52,26,52,28],[52,29,52,31],[52,32,52,34],[52,35,52,37],[52,38,52,40],[51,65,51,67],[52,65,52,67],[4,68,4,70],[5,68,5,70],[6,68,6,70],[26,68,26,70],[27,68,27,70],[29,68,29,70],[30,68,30,70],[31,68,31,70],[51,68,51,70],[52,68,52,70],[4,65,4,67],[5,65,5,67],[6,65,6,67],[26,65,26,67],[27,65,27,67],[29,65,29,67],[30,65,30,67],[31,65,31,67],[51,71,51,73],[52,71,52,73],[4,74,4,76],[5,74,5,76],[6,74,6,76],[26,74,26,76],[27,74,27,76],[29,74,29,76],[30,74,30,76],[31,74,31,76],[51,74,51,76],[52,74,52,76],[4,71,4,73],[5,71,5,73],[6,71,6,73],[26,71,26,73],[27,71,27,73],[29,71,29,73],[30,71,30,73],[31,71,31,73],[51,77,51,79],[52,77,52,79],[4,80,4,82],[5,80,5,82],[6,80,6,82],[26,80,26,82],[27,80,27,82],[29,80,29,82],[30,80,30,82],[31,80,31,82],[51,80,51,82],[52,80,52,82],[4,77,4,79],[5,77,5,79],[6,77,6,79],[26,77,26,79],[27,77,27,79],[29,77,29,79],[30,77,30,79],[31,77,31,79],[51,83,51,85],[52,83,52,85],[4,86,4,88],[5,86,5,88],[6,86,6,88],[26,86,26,88],[27,86,27,88],[29,86,29,88],[30,86,30,88],[31,86,31,88],[51,86,51,88],[52,86,52,88],[4,83,4,85],[5,83,5,85],[6,83,6,85],[26,83,26,85],[27,83,27,85],[29,83,29,85],[30,83,30,85],[31,83,31,85],[59,1,59,16],[60,1,64,16],[2,1,2,14],[6,156,7,156],[31,156,32,156],[51,89,51,91],[52,89,52,91],[4,92,4,94],[5,92,5,94],[6,92,6,94],[26,92,26,94],[27,92,27,94],[29,92,29,94],[30,92,30,94],[31,92,31,94],[51,92,51,94],[52,92,52,94],[4,89,4,91],[5,89,5,91],[6,89,6,91],[26,89,26,91],[27,89,27,91],[29,89,29,91],[30,89,30,91]]}
[null,"Electric Utility Data Summary"]
[null,"Instructions"]
[null,"1) Enter data for pre-construction energy use in blue cells. Please ensure beginning and end read dates are 'Actual'.                                                      \n2) Unhide columns (P-AS) if there are more than 5 common area accounts. You may hide columns that are not needed, do not delete them.\n3) If the project is master-metered, enter data in this tab. Use Apt-Elec tab for direct-metered apartment data, if applicable.\n4) If there is on-site electric generation, please provide NET electricity consumed at the site (i.e. kWh produced less exported) in column AU.\n5) Review graphs to the right for irregularities in the usage data.\n6) Post-Construction data will be filled in one year after construction has been completed.\n7) Please use the \"Notes\" field below the data entry section of this tab to explain unusual circumstances, any anomalies in the data, or adjustments made. Also, please follow Program Guidelines v4.2, Section 3.2.2 for irregular delivers, outliers, and estimated bills.\n\n"]
[]
[null,"Pre-Construction Common Area Billing Dates",null,null,null,"Common Area Meter #1",null,null,"Common Area Meter #2",null,null,"Common Area Meter #3",null,null,"Common Area Meter #4",null,null,"Common Area Meter #5",null,null,"Common Area Meter #6",null,null,"Common Area Meter #7",null,null,"Common Area Meter #8",null,null,"Common Area Meter #9",null,null,"Common Area Meter #10",null,null,"Common Area Meter #11",null,null,"Common Area Meter #12",null,null,"Common Area Meter #13",null,null,"Common Area Meter #14",null,null,"Common Area Meter #15",null,null,"Common Area Meter #16",null,null,"Common Area Meter #17",null,null,"Common Area Meter #18",null,null,"Common Area Meter #19",null,null,"Common Area Meter #20",null,null,"Common Area Meter #21",null,null,"Common Area Meter #22",null,null,"Common Area Meter #23",null,null,"Common Area Meter #24",null,null,"Common Area Meter #25",null,null,"Common Area Meter #26",null,null,"Common Area Meter #27",null,null,"Common Area Meter #28",null,null,"Common Area Meter #29",null,null,"Common Area Meter #30",null,null,"Common Area Meter #31",null,null,"Common Area Meter #32",null,null,"Common Area Meter #33",null,null,"Common Area Meter #34",null,null,"Common Area Meter #35",null,null,"Common Area Meter #36",null,null,"Common Area Meter #37",null,null,"Common Area Meter #38",null,null,"Common Area Meter #39",null,null,"Common Area Meter #40",null,null,"Common Area Meter #41",null,null,"Common Area Meter #42",null,null,"Common Area Meter #43",null,null,"Common Area Meter #44",null,null,"Common Area Meter #45",null,null,"Common Area Meter #46",null,null,"Common Area Meter #47",null,null,"Common Area Meter #48",null,null,"Common Area Meter #49",null,null,"Common Area Meter #50",null,null,null,null,null,null,"Pre-Construction In-Unit Billing Dates"]
[null,null,null,null,null,"Account #",null,null,"Account #",null,null,"Account #",null,null,"Account #",null,null,"Account #",null,null,"Account #",null,null,"Account #",null,null,"Account #",null,null,"Account #",null,null,"Account #",null,null,"Account #",null,null,"Account #",null,null,"Account #",null,null,"Account #",null,null,"Account #",null,null,"Account #",null,null,"Account #",null,null,"Account #",null,null,"Account #",null,null,"Account #",null,null,"Account #",null,null,"Account #",null,null,"Account #",null,null,"Account #",null,null,"Account #",null,null,"Account #",null,null,"Account #",null,null,"Account #",null,null,"Account #",null,null,"Account #",null,null,"Account #",null,null,"Account #",null,null,"Account #",null,null,"Account #",null,null,"Account #",null,null,"Account #",null,null,"Account #",null,null,"Account #",null,null,"Account #",null,null,"Account #",null,null,"Account #",null,null,"Account #",null,null,"Account #",null,null,"Account #",null,null,"Account #",null,null,"Account #",null,null,"Account #",null,null,"Account #",null,null,"Account #",null,null,"Account #"]
[null,"Billing Period Start Date","Read Date","Days in Billing Period",null,{"$f":"'Utility Info'!C24","v":0},null,null,{"$f":"'Utility Info'!C25","v":0},null,null,{"$f":"'Utility Info'!C26","v":0},null,null,{"$f":"'Utility Info'!C27","v":0},null,null,{"$f":"'Utility Info'!C28","v":0},null,null,{"$f":"'Utility Info'!C29","v":0},null,null,{"$f":"'Utility Info'!C30","v":0},null,null,{"$f":"'Utility Info'!C31","v":0},null,null,{"$f":"'Utility Info'!C32","v":0},null,null,{"$f":"'Utility Info'!C33","v":0},null,null,{"$f":"'Utility Info'!C34","v":0},null,null,{"$f":"'Utility Info'!C35","v":0},null,null,{"$f":"'Utility Info'!C36","v":0},null,null,{"$f":"'Utility Info'!C37","v":0},null,null,{"$f":"'Utility Info'!C38","v":0},null,null,{"$f":"'Utility Info'!C39","v":0},null,null,{"$f":"'Utility Info'!C40","v":0},null,null,{"$f":"'Utility Info'!C41","v":0},null,null,{"$f":"'Utility Info'!C42","v":0},null,null,{"$f":"'Utility Info'!C43","v":0},null,null,{"$f":"'Utility Info'!C44","v":0},null,null,{"$f":"'Utility Info'!C45","v":0},null,null,{"$f":"'Utility Info'!C46","v":0},null,null,{"$f":"'Utility Info'!C47","v":0},null,null,{"$f":"'Utility Info'!C48","v":0},null,null,{"$f":"'Utility Info'!C49","v":0},null,null,{"$f":"'Utility Info'!C50","v":0},null,null,{"$f":"'Utility Info'!C51","v":0},null,null,{"$f":"'Utility Info'!C52","v":0},null,null,{"$f":"'Utility Info'!C53","v":0},null,null,{"$f":"'Utility Info'!C54","v":0},null,null,{"$f":"'Utility Info'!C55","v":0},null,null,{"$f":"'Utility Info'!C56","v":0},null,null,{"$f":"'Utility Info'!C57","v":0},null,null,{"$f":"'Utility Info'!C58","v":0},null,null,{"$f":"'Utility Info'!C59","v":0},null,null,{"$f":"'Utility Info'!C60","v":0},null,null,{"$f":"'Utility Info'!C61","v":0},null,null,{"$f":"'Utility Info'!C62","v":0},null,null,{"$f":"'Utility Info'!C63","v":0},null,null,{"$f":"'Utility Info'!C64","v":0},null,null,{"$f":"'Utility Info'!C65","v":0},null,null,{"$f":"'Utility Info'!C66","v":0},null,null,{"$f":"'Utility Info'!C67","v":0},null,null,{"$f":"'Utility Info'!C68","v":0},null,null,{"$f":"'Utility Info'!C69","v":0},null,null,{"$f":"'Utility Info'!C70","v":0},null,null,{"$f":"'Utility Info'!C71","v":0},null,null,{"$f":"'Utility Info'!C72","v":0},null,null,{"$f":"'Utility Info'!C73","v":0},null,null,"Total Common Area kWh Consumption","Total Common Area Peak kW","On-Site Net kWh Generation",null,"Billing Period Start Date","Read Date","Days in Billing Period","In-Unit kWh Consumption",null,"Total kWh Consumption",null,null,null,null,null,null,"Data for Graphs:"]
[null,null,null,null,null,"kWh","kW","Actual/ Estimated","kWh","kW","Actual/ Estimated","kWh","kW","Actual/ Estimated","kWh","kW","Actual/ Estimated","kWh","kW","Actual/ Estimated","kWh","kW","Actual/ Estimated","kWh","kW","Actual/ Estimated","kWh","kW","Actual/ Estimated","kWh","kW","Actual/ Estimated","kWh","kW","Actual/ Estimated","kWh","kW","Actual/ Estimated","kWh","kW","Actual/ Estimated","kWh","kW","Actual/ Estimated","kWh","kW","Actual/ Estimated","kWh","kW","Actual/ Estimated","kWh","kW","Actual/ Estimated","kWh","kW","Actual/ Estimated","kWh","kW","Actual/ Estimated","kWh","kW","Actual/ Estimated","kWh","kW","Actual/ Estimated","kWh","kW","Actual/ Estimated","kWh","kW","Actual/ Estimated","kWh","kW","Actual/ Estimated","kWh","kW","Actual/ Estimated","kWh","kW","Actual/ Estimated","kWh","kW","Actual/ Estimated","kWh","kW","Actual/ Estimated","kWh","kW","Actual/ Estimated","kWh","kW","Actual/ Estimated","kWh","kW","Actual/ Estimated","kWh","kW","Actual/ Estimated","kWh","kW","Actual/ Estimated","kWh","kW","Actual/ Estimated","kWh","kW","Actual/ Estimated","kWh","kW","Actual/ Estimated","kWh","kW","Actual/ Estimated","kWh","kW","Actual/ Estimated","kWh","kW","Actual/ Estimated","kWh","kW","Actual/ Estimated","kWh","kW","Actual/ Estimated","kWh","kW","Actual/ Estimated","kWh","kW","Actual/ Estimated","kWh","kW","Actual/ Estimated","kWh","kW","Actual/ Estimated","kWh","kW","Actual/ Estimated","kWh","kW","Actual/ Estimated","kWh","kW","Actual/ Estimated","kWh","kW","Actual/ Estimated","kWh","kW","Actual/ Estimated","kWh","kW","Actual/ Estimated",null,null,null,null,null,null,null,null,null,null,null,null,null,null,null,null,"Common Area Ref Date","Common Area Month","In-unit Ref Date","In-Unit Month",null,"Months","Common Area Pre","Common Area Post","In-Unit Pre","In-Unit Post","Common Area Pre kW","Common Area Post kW"]
[null,null,null,null,null,null,null,null,null,null,null,null,null,null,null,null,null,null,null,null,null,null,null,null,null,null,null,null,null,null,null,null,null,null,null,null,null,null,null,null,null,null,null,null,null,null,null,null,null,null,null,null,null,null,null,null,null,null,null,null,null,null,null,null,null,null,null,null,null,null,null,null,null,null,null,null,null,null,null,null,null,null,null,null,null,null,null,null,null,null,null,null,null,null,null,null,null,null,null,null,null,null,null,null,null,null,null,null,null,null,null,null,null,null,null,null,null,null,null,null,null,null,null,null,null,null,null,null,null,null,null,null,null,null,null,null,null,null,null,null,null,null,null,null,null,null,null,null,null,null,null,null,null,null,null,null,null,null,null,null,{"$f":"'Apt-Elec'!C11","v":"00:00:00"}]
[null,{"$f":"C9+1","v":"1900-01-01"},null,{"$f":"IF(C10>0,C10+1-B10,0)","v":0},null,null,null,null,null,null,null,null,null,null,null,null,null,null,null,null,null,null,null,null,null,null,null,null,null,null,null,null,null,null,null,null,null,null,null,null,null,null,null,null,null,null,null,null,null,null,null,null,null,null,null,null,null,null,null,null,null,null,null,null,null,null,null,null,null,null,null,null,null,null,null,null,null,null,null,null,null,null,null,null,null,null,null,null,null,null,null,null,null,null,null,null,null,null,null,null,null,null,null,null,null,null,null,null,null,null,null,null,null,null,null,null,null,null,null,null,null,null,null,null,null,null,null,null,null,null,null,null,null,null,null,null,null,null,null,null,null,null,null,null,null,null,null,null,null,null,null,null,null,null,null,{"$f":"SUM(F10,I10,L10,O10,R10,U10,X10,AA10,AD10,AG10,AJ10,AM10,AP10,AS10,AV10,AY10,BB10,BE10,BH10,BK10,BN10,BQ10,BT10,BW10,BZ10,CC10,CF10,CI10,CL10,CO10,CR10,CU10,CX10,DA10,DD10,DG10,DJ10,DM10,DP10,DS10,DV10,DY10,EB10,EE10,EH10,EK10,EN10,EQ10,ET10,EW10)+FB10","v":0},{"$f":"SUM(G10,J10,M10,P10,S10,V10,Y10,AB10,AE10,AH10,AK10,AN10,AQ10,AT10,AW10,AZ10,BC10,BF10,BI10,BL10,BO10,BR10,BU10,BX10,CA10,CD10,CG10,CJ10,CM10,CP10,CS10,CV10,CY10,DB10,DE10,DH10,DK10,DN10,DQ10,DT10,DW10,DZ10,EC10,EF10,EI10,EL10,EO10,ER10,EU10,EX10)","v":0},null,null,{"$f":"'Apt-Elec'!B12","v":"1900-01-01"},{"$f":"'Apt-Elec'!C12","v":"00:00:00"},{"$f":"IF(FE10>0,FE10+1-FD10,0)","v":0},{"$f":"'Apt-Elec'!PT12","v":0},null,{"$f":"EZ10+FG10","v":0},null,null,null,null,null,null,{"$f":"DATE(YEAR(C10),MONTH(C10),1)","v":"1900-01-01"},{"$f":"IF((FP10-B10)>(C10-FP10),MONTH(B10),MONTH(C10))","v":1},{"$f":"DATE(YEAR(FE10),MONTH(FE10),1)","v":"1900-01-01"},{"$f":"IF((FR10-FD10)>(FE10-FR10),MONTH(FD10),MONTH(FE10))","v":1},null,"2012-01-15",{"$f":"SUMIF($FQ$10:$FQ$24,MONTH($FU10),$EZ$10:$EZ$24)","v":0},{"$f":"SUMIF($FQ$35:$FQ$49,MONTH($FU10),$EZ$35:$EZ$49)","v":0},{"$f":"SUMIF($FS$10:$FS$24,MONTH($FU10),$FG$10:$FG$24)","v":0},{"$f":"SUMIF($FS$35:$FS$49,MONTH($FU10),$FG$35:$FG$49)","v":0},{"$f":"MAX(IF($FQ$10:$FQ$24=MONTH($FU10),$FA$10:$FA$24))","v":0},{"$f":"MAX(IF($FQ$35:$FQ$49=MONTH($FU10),$FA$35:$FA$49))","v":0}]
[null,"1900-01-01",null,{"$f":"IF(C11>0,C11+1-B11,0)","v":0},null,null,null,null,null,null,null,null,null,null,null,null,null,null,null,null,null,null,null,null,null,null,null,null,null,null,null,null,null,null,null,null,null,null,null,null,null,null,null,null,null,null,null,null,null,null,null,null,null,null,null,null,null,null,null,null,null,null,null,null,null,null,null,null,null,null,null,null,null,null,null,null,null,null,null,null,null,null,null,null,null,null,null,null,null,null,null,null,null,null,null,null,null,null,null,null,null,null,null,null,null,null,null,null,null,null,null,null,null,null,null,null,null,null,null,null,null,null,null,null,null,null,null,null,null,null,null,null,null,null,null,null,null,null,null,null,null,null,null,null,null,null,null,null,null,null,null,null,null,null,null,{"$f":"SUM(F11,I11,L11,O11,R11,U11,X11,AA11,AD11,AG11,AJ11,AM11,AP11,AS11,AV11,AY11,BB11,BE11,BH11,BK11,BN11,BQ11,BT11,BW11,BZ11,CC11,CF11,CI11,CL11,CO11,CR11,CU11,CX11,DA11,DD11,DG11,DJ11,DM11,DP11,DS11,DV11,DY11,EB11,EE11,EH11,EK11,EN11,EQ11,ET11,EW11)+FB11","v":0},{"$f":"SUM(G11,J11,M11,P11,S11,V11,Y11,AB11,AE11,AH11,AK11,AN11,AQ11,AT11,AW11,AZ11,BC11,BF11,BI11,BL11,BO11,BR11,BU11,BX11,CA11,CD11,CG11,CJ11,CM11,CP11,CS11,CV11,CY11,DB11,DE11,DH11,DK11,DN11,DQ11,DT11,DW11,DZ11,EC11,EF11,EI11,EL11,EO11,ER11,EU11,EX11)","v":0},null,null,{"$f":"'Apt-Elec'!B13","v":"1900-01-01"},{"$f":"'Apt-Elec'!C13","v":"00:00:00"},{"$f":"IF(FE11>0,FE11+1-FD11,0)","v":0},{"$f":"'Apt-Elec'!PT13","v":0},null,{"$f":"EZ11+FG11","v":0},null,null,null,null,null,null,"1900-01-01",1,{"$f":"DATE(YEAR(FE11),MONTH(FE11),1)","v":"1900-01-01"},{"$f":"IF((FR11-FD11)>(FE11-FR11),MONTH(FD11),MONTH(FE11))","v":1},null,"2012-02-15",{"$f":"SUMIF($FQ$10:$FQ$24,MONTH($FU11),$EZ$10:$EZ$24)","v":0},0,{"$f":"SUMIF($FS$10:$FS$24,MONTH($FU11),$FG$10:$FG$24)","v":0},0,{"$f":"MAX(IF($FQ$10:$FQ$24=MONTH($FU11),$FA$10:$FA$24))","v":0},{"$f":"MAX(IF($FQ$35:$FQ$49=MONTH($FU11),$FA$35:$FA$49))","v":0}]
[null,"1900-01-01",null,0,null,null,null,null,null,null,null,null,null,null,null,null,null,null,null,null,null,null,null,null,null,null,null,null,null,null,null,null,null,null,null,null,null,null,null,null,null,null,null,null,null,null,null,null,null,null,null,null,null,null,null,null,null,null,null,null,null,null,null,null,null,null,null,null,null,null,null,null,null,null,null,null,null,null,null,null,null,null,null,null,null,null,null,null,null,null,null,null,null,null,null,null,null,null,null,null,null,null,null,null,null,null,null,null,null,null,null,null,null,null,null,null,null,null,null,null,null,null,null,null,null,null,null,null,null,null,null,null,null,null,null,null,null,null,null,null,null,null,null,null,null,null,null,null,null,null,null,null,null,null,null,0,0,null,null,{"$f":"'Apt-Elec'!B14","v":"1900-01-01"},{"$f":"'Apt-Elec'!C14","v":"00:00:00"},0,{"$f":"'Apt-Elec'!PT14","v":0},null,0,null,null,null,null,null,null,"1900-01-01",1,"1900-01-01",1,null,"2012-03-15",0,0,0,0,{"$f":"MAX(IF($FQ$10:$FQ$24=MONTH($FU12),$FA$10:$FA$24))","v":0},{"$f":"MAX(IF($FQ$35:$FQ$49=MONTH($FU12),$FA$35:$FA$49))","v":0}]
[null,"1900-01-01",null,0,null,null,null,null,null,null,null,null,null,null,null,null,null,null,null,null,null,null,null,null,null,null,null,null,null,null,null,null,null,null,null,null,null,null,null,null,null,null,null,null,null,null,null,null,null,null,null,null,null,null,null,null,null,null,null,null,null,null,null,null,null,null,null,null,null,null,null,null,null,null,null,null,null,null,null,null,null,null,null,null,null,null,null,null,null,null,null,null,null,null,null,null,null,null,null,null,null,null,null,null,null,null,null,null,null,null,null,null,null,null,null,null,null,null,null,null,null,null,null,null,null,null,null,null,null,null,null,null,null,null,null,null,null,null,null,null,null,null,null,null,null,null,null,null,null,null,null,null,null,null,null,0,0,null,null,{"$f":"'Apt-Elec'!B15","v":"1900-01-01"},{"$f":"'Apt-Elec'!C15","v":"00:00:00"},0,{"$f":"'Apt-Elec'!PT15","v":0},null,0,null,null,null,null,null,null,"1900-01-01",1,"1900-01-01",1,null,"2012-04-15",0,0,0,0,{"$f":"MAX(IF($FQ$10:$FQ$24=MONTH($FU13),$FA$10:$FA$24))","v":0},{"$f":"MAX(IF($FQ$35:$FQ$49=MONTH($FU13),$FA$35:$FA$49))","v":0}]
[null,"1900-01-01",null,0,null,null,null,null,null,null,null,null,null,null,null,null,null,null,null,null,null,null,null,null,null,null,null,null,null,null,null,null,null,null,null,null,null,null,null,null,null,null,null,null,null,null,null,null,null,null,null,null,null,null,null,null,null,null,null,null,null,null,null,null,null,null,null,null,null,null,null,null,null,null,null,null,null,null,null,null,null,null,null,null,null,null,null,null,null,null,null,null,null,null,null,null,null,null,null,null,null,null,null,null,null,null,null,null,null,null,null,null,null,null,null,null,null,null,null,null,null,null,null,null,null,null,null,null,null,null,null,null,null,null,null,null,null,null,null,null,null,null,null,null,null,null,null,null,null,null,null,null,null,null,null,0,0,null,null,{"$f":"'Apt-Elec'!B16","v":"1900-01-01"},{"$f":"'Apt-Elec'!C16","v":"00:00:00"},0,{"$f":"'Apt-Elec'!PT16","v":0},null,0,null,null,null,null,null,null,"1900-01-01",1,{"$f":"DATE(YEAR(FE14),MONTH(FE14),1)","v":"1900-01-01"},1,null,"2012-05-15",0,0,0,0,{"$f":"MAX(IF($FQ$10:$FQ$24=MONTH($FU14),$FA$10:$FA$24))","v":0},{"$f":"MAX(IF($FQ$35:$FQ$49=MONTH($FU14),$FA$35:$FA$49))","v":0}]
[null,"1900-01-01",null,0,null,null,null,null,null,null,null,null,null,null,null,null,null,null,null,null,null,null,null,null,null,null,null,null,null,null,null,null,null,null,null,null,null,null,null,null,null,null,null,null,null,null,null,null,null,null,null,null,null,null,null,null,null,null,null,null,null,null,null,null,null,null,null,null,null,null,null,null,null,null,null,null,null,null,null,null,null,null,null,null,null,null,null,null,null,null,null,null,null,null,null,null,null,null,null,null,null,null,null,null,null,null,null,null,null,null,null,null,null,null,null,null,null,null,null,null,null,null,null,null,null,null,null,null,null,null,null,null,null,null,null,null,null,null,null,null,null,null,null,null,null,null,null,null,null,null,null,null,null,null,null,0,0,null,null,{"$f":"'Apt-Elec'!B17","v":"1900-01-01"},{"$f":"'Apt-Elec'!C17","v":"00:00:00"},0,{"$f":"'Apt-Elec'!PT17","v":0},null,0,null,null,null,null,null,null,"1900-01-01",1,"1900-01-01",1,null,"2012-06-15",0,0,0,0,{"$f":"MAX(IF($FQ$10:$FQ$24=MONTH($FU15),$FA$10:$FA$24))","v":0},{"$f":"MAX(IF($FQ$35:$FQ$49=MONTH($FU15),$FA$35:$FA$49))","v":0}]
[null,"1900-01-01",null,0,null,null,null,null,null,null,null,null,null,null,null,null,null,null,null,null,null,null,null,null,null,null,null,null,null,null,null,null,null,null,null,null,null,null,null,null,null,null,null,null,null,null,null,null,null,null,null,null,null,null,null,null,null,null,null,null,null,null,null,null,null,null,null,null,null,null,null,null,null,null,null,null,null,null,null,null,null,null,null,null,null,null,null,null,null,null,null,null,null,null,null,null,null,null,null,null,null,null,null,null,null,null,null,null,null,null,null,null,null,null,null,null,null,null,null,null,null,null,null,null,null,null,null,null,null,null,null,null,null,null,null,null,null,null,null,null,null,null,null,null,null,null,null,null,null,null,null,null,null,null,null,0,0,null,null,{"$f":"'Apt-Elec'!B18","v":"1900-01-01"},{"$f":"'Apt-Elec'!C18","v":"00:00:00"},0,{"$f":"'Apt-Elec'!PT18","v":0},null,0,null,null,null,null,null,null,"1900-01-01",1,"1900-01-01",1,null,"2012-07-15",0,0,0,0,{"$f":"MAX(IF($FQ$10:$FQ$24=MONTH($FU16),$FA$10:$FA$24))","v":0},{"$f":"MAX(IF($FQ$35:$FQ$49=MONTH($FU16),$FA$35:$FA$49))","v":0}]
[null,"1900-01-01",null,0,null,null,null,null,null,null,null,null,null,null,null,null,null,null,null,null,null,null,null,null,null,null,null,null,null,null,null,null,null,null,null,null,null,null,null,null,null,null,null,null,null,null,null,null,null,null,null,null,null,null,null,null,null,null,null,null,null,null,null,null,null,null,null,null,null,null,null,null,null,null,null,null,null,null,null,null,null,null,null,null,null,null,null,null,null,null,null,null,null,null,null,null,null,null,null,null,null,null,null,null,null,null,null,null,null,null,null,null,null,null,null,null,null,null,null,null,null,null,null,null,null,null,null,null,null,null,null,null,null,null,null,null,null,null,null,null,null,null,null,null,null,null,null,null,null,null,null,null,null,null,null,0,0,null,null,{"$f":"'Apt-Elec'!B19","v":"1900-01-01"},{"$f":"'Apt-Elec'!C19","v":"00:00:00"},0,{"$f":"'Apt-Elec'!PT19","v":0},null,0,null,null,null,null,null,null,"1900-01-01",1,"1900-01-01",1,null,"2012-08-15",0,0,0,0,{"$f":"MAX(IF($FQ$10:$FQ$24=MONTH($FU17),$FA$10:$FA$24))","v":0},{"$f":"MAX(IF($FQ$35:$FQ$49=MONTH($FU17),$FA$35:$FA$49))","v":0}]
[null,"1900-01-01",null,0,null,null,null,null,null,null,null,null,null,null,null,null,null,null,null,null,null,null,null,null,null,null,null,null,null,null,null,null,null,null,null,null,null,null,null,null,null,null,null,null,null,null,null,null,null,null,null,null,null,null,null,null,null,null,null,null,null,null,null,null,null,null,null,null,null,null,null,null,null,null,null,null,null,null,null,null,null,null,null,null,null,null,null,null,null,null,null,null,null,null,null,null,null,null,null,null,null,null,null,null,null,null,null,null,null,null,null,null,null,null,null,null,null,null,null,null,null,null,null,null,null,null,null,null,null,null,null,null,null,null,null,null,null,null,null,null,null,null,null,null,null,null,null,null,null,null,null,null,null,null,null,0,0,null,null,{"$f":"'Apt-Elec'!B20","v":"1900-01-01"},{"$f":"'Apt-Elec'!C20","v":"00:00:00"},0,{"$f":"'Apt-Elec'!PT20","v":0},null,0,null,null,null,null,null,null,"1900-01-01",1,"1900-01-01",1,null,"2012-09-15",0,0,0,0,{"$f":"MAX(IF($FQ$10:$FQ$24=MONTH($FU18),$FA$10:$FA$24))","v":0},{"$f":"MAX(IF($FQ$35:$FQ$49=MONTH($FU18),$FA$35:$FA$49))","v":0}]
[null,"1900-01-01",null,0,null,null,null,null,null,null,null,null,null,null,null,null,null,null,null,null,null,null,null,null,null,null,null,null,null,null,null,null,null,null,null,null,null,null,null,null,null,null,null,null,null,null,null,null,null,null,null,null,null,null,null,null,null,null,null,null,null,null,null,null,null,null,null,null,null,null,null,null,null,null,null,null,null,null,null,null,null,null,null,null,null,null,null,null,null,null,null,null,null,null,null,null,null,null,null,null,null,null,null,null,null,null,null,null,null,null,null,null,null,null,null,null,null,null,null,null,null,null,null,null,null,null,null,null,null,null,null,null,null,null,null,null,null,null,null,null,null,null,null,null,null,null,null,null,null,null,null,null,null,null,null,0,0,null,null,{"$f":"'Apt-Elec'!B21","v":"1900-01-01"},{"$f":"'Apt-Elec'!C21","v":"00:00:00"},0,{"$f":"'Apt-Elec'!PT21","v":0},null,0,null,null,null,null,null,null,"1900-01-01",1,"1900-01-01",1,null,"2012-10-15",0,0,0,0,{"$f":"MAX(IF($FQ$10:$FQ$24=MONTH($FU19),$FA$10:$FA$24))","v":0},{"$f":"MAX(IF($FQ$35:$FQ$49=MONTH($FU19),$FA$35:$FA$49))","v":0}]
[null,"1900-01-01",null,0,null,null,null,null,null,null,null,null,null,null,null,null,null,null,null,null,null,null,null,null,null,null,null,null,null,null,null,null,null,null,null,null,null,null,null,null,null,null,null,null,null,null,null,null,null,null,null,null,null,null,null,null,null,null,null,null,null,null,null,null,null,null,null,null,null,null,null,null,null,null,null,null,null,null,null,null,null,null,null,null,null,null,null,null,null,null,null,null,null,null,null,null,null,null,null,null,null,null,null,null,null,null,null,null,null,null,null,null,null,null,null,null,null,null,null,null,null,null,null,null,null,null,null,null,null,null,null,null,null,null,null,null,null,null,null,null,null,null,null,null,null,null,null,null,null,null,null,null,null,null,null,0,0,null,null,{"$f":"'Apt-Elec'!B22","v":"1900-01-01"},{"$f":"'Apt-Elec'!C22","v":"00:00:00"},0,{"$f":"'Apt-Elec'!PT22","v":0},null,0,null,null,null,null,null,null,"1900-01-01",1,"1900-01-01",1,null,"2012-11-15",0,0,0,0,{"$f":"MAX(IF($FQ$10:$FQ$24=MONTH($FU20),$FA$10:$FA$24))","v":0},{"$f":"MAX(IF($FQ$35:$FQ$49=MONTH($FU20),$FA$35:$FA$49))","v":0}]
[null,"1900-01-01",null,0,null,null,null,null,null,null,null,null,null,null,null,null,null,null,null,null,null,null,null,null,null,null,null,null,null,null,null,null,null,null,null,null,null,null,null,null,null,null,null,null,null,null,null,null,null,null,null,null,null,null,null,null,null,null,null,null,null,null,null,null,null,null,null,null,null,null,null,null,null,null,null,null,null,null,null,null,null,null,null,null,null,null,null,null,null,null,null,null,null,null,null,null,null,null,null,null,null,null,null,null,null,null,null,null,null,null,null,null,null,null,null,null,null,null,null,null,null,null,null,null,null,null,null,null,null,null,null,null,null,null,null,null,null,null,null,null,null,null,null,null,null,null,null,null,null,null,null,null,null,null,null,0,0,null,null,{"$f":"'Apt-Elec'!B23","v":"1900-01-01"},{"$f":"'Apt-Elec'!C23","v":"00:00:00"},0,{"$f":"'Apt-Elec'!PT23","v":0},null,0,null,null,null,null,null,null,"1900-01-01",1,"1900-01-01",1,null,"2012-12-15",0,0,0,0,{"$f":"MAX(IF($FQ$10:$FQ$24=MONTH($FU21),$FA$10:$FA$24))","v":0},{"$f":"MAX(IF($FQ$35:$FQ$49=MONTH($FU21),$FA$35:$FA$49))","v":0}]
[null,"1900-01-01",null,0,null,null,null,null,null,null,null,null,null,null,null,null,null,null,null,null,null,null,null,null,null,null,null,null,null,null,null,null,null,null,null,null,null,null,null,null,null,null,null,null,null,null,null,null,null,null,null,null,null,null,null,null,null,null,null,null,null,null,null,null,null,null,null,null,null,null,null,null,null,null,null,null,null,null,null,null,null,null,null,null,null,null,null,null,null,null,null,null,null,null,null,null,null,null,null,null,null,null,null,null,null,null,null,null,null,null,null,null,null,null,null,null,null,null,null,null,null,null,null,null,null,null,null,null,null,null,null,null,null,null,null,null,null,null,null,null,null,null,null,null,null,null,null,null,null,null,null,null,null,null,null,0,0,null,null,{"$f":"'Apt-Elec'!B24","v":"1900-01-01"},{"$f":"'Apt-Elec'!C24","v":"00:00:00"},0,{"$f":"'Apt-Elec'!PT24","v":0},null,0,null,null,null,null,null,null,"1900-01-01",1,"1900-01-01",1,null,null,null,null,null,null,{"$f":"MAX(IF($FQ$10:$FQ$24=MONTH($FU22),$FA$10:$FA$24))","v":0},{"$f":"MAX(IF($FQ$35:$FQ$49=MONTH($FU22),$FA$35:$FA$49))","v":0}]
[null,"1900-01-01",null,0,null,null,null,null,null,null,null,null,null,null,null,null,null,null,null,null,null,null,null,null,null,null,null,null,null,null,null,null,null,null,null,null,null,null,null,null,null,null,null,null,null,null,null,null,null,null,null,null,null,null,null,null,null,null,null,null,null,null,null,null,null,null,null,null,null,null,null,null,null,null,null,null,null,null,null,null,null,null,null,null,null,null,null,null,null,null,null,null,null,null,null,null,null,null,null,null,null,null,null,null,null,null,null,null,null,null,null,null,null,null,null,null,null,null,null,null,null,null,null,null,null,null,null,null,null,null,null,null,null,null,null,null,null,null,null,null,null,null,null,null,null,null,null,null,null,null,null,null,null,null,null,0,0,null,null,{"$f":"'Apt-Elec'!B25","v":"1900-01-01"},{"$f":"'Apt-Elec'!C25","v":"00:00:00"},0,{"$f":"'Apt-Elec'!PT25","v":0},null,0,null,null,null,null,null,null,"1900-01-01",1,"1900-01-01",1,null,null,null,null,null,null,{"$f":"MAX(IF($FQ$10:$FQ$24=MONTH($FU23),$FA$10:$FA$24))","v":0},{"$f":"MAX(IF($FQ$35:$FQ$49=MONTH($FU23),$FA$35:$FA$49))","v":0}]
[null,"1900-01-01",null,0,null,null,null,null,null,null,null,null,null,null,null,null,null,null,null,null,null,null,null,null,null,null,null,null,null,null,null,null,null,null,null,null,null,null,null,null,null,null,null,null,null,null,null,null,null,null,null,null,null,null,null,null,null,null,null,null,null,null,null,null,null,null,null,null,null,null,null,null,null,null,null,null,null,null,null,null,null,null,null,null,null,null,null,null,null,null,null,null,null,null,null,null,null,null,null,null,null,null,null,null,null,null,null,null,null,null,null,null,null,null,null,null,null,null,null,null,null,null,null,null,null,null,null,null,null,null,null,null,null,null,null,null,null,null,null,null,null,null,null,null,null,null,null,null,null,null,null,null,null,null,null,0,0,null,null,{"$f":"'Apt-Elec'!B26","v":"1900-01-01"},{"$f":"'Apt-Elec'!C26","v":"00:00:00"},0,{"$f":"'Apt-Elec'!PT26","v":0},null,0,null,null,null,null,null,null,"1900-01-01",1,"1900-01-01",1,null,null,null,null,null,null,{"$f":"MAX(IF($FQ$10:$FQ$24=MONTH($FU24),$FA$10:$FA$24))","v":0},{"$f":"MAX(IF($FQ$35:$FQ$49=MONTH($FU24),$FA$35:$FA$49))","v":0}]
[null,null,{"$f":"IF(ABS(D25-365)>4,\"Must have 365 ± 4 days.\",\"\")","v":"Must have 365 ± 4 days."},{"$f":"SUM(D10:D24)","v":0},null,{"$f":"SUM(F10:F24)","v":0},{"$f":"MAX(G10:G24)","v":0},null,{"$f":"SUM(I10:I24)","v":0},{"$f":"MAX(J10:J24)","v":0},null,{"$f":"SUM(L10:L24)","v":0},{"$f":"MAX(M10:M24)","v":0},null,{"$f":"SUM(O10:O24)","v":0},{"$f":"MAX(P10:P24)","v":0},null,{"$f":"SUM(R10:R24)","v":0},{"$f":"MAX(S10:S24)","v":0},null,{"$f":"SUM(U10:U24)","v":0},{"$f":"MAX(V10:V24)","v":0},null,{"$f":"SUM(X10:X24)","v":0},{"$f":"MAX(Y10:Y24)","v":0},null,{"$f":"SUM(AA10:AA24)","v":0},{"$f":"MAX(AB10:AB24)","v":0},null,{"$f":"SUM(AD10:AD24)","v":0},{"$f":"MAX(AE10:AE24)","v":0},null,{"$f":"SUM(AG10:AG24)","v":0},{"$f":"MAX(AH10:AH24)","v":0},null,{"$f":"SUM(AJ10:AJ24)","v":0},{"$f":"MAX(AK10:AK24)","v":0},null,{"$f":"SUM(AM10:AM24)","v":0},{"$f":"MAX(AN10:AN24)","v":0},null,{"$f":"SUM(AP10:AP24)","v":0},{"$f":"MAX(AQ10:AQ24)","v":0},null,{"$f":"SUM(AS10:AS24)","v":0},{"$f":"MAX(AT10:AT24)","v":0},null,{"$f":"SUM(AV10:AV24)","v":0},{"$f":"MAX(AW10:AW24)","v":0},null,{"$f":"SUM(AY10:AY24)","v":0},{"$f":"MAX(AZ10:AZ24)","v":0},null,{"$f":"SUM(BB10:BB24)","v":0},{"$f":"MAX(BC10:BC24)","v":0},null,{"$f":"SUM(BE10:BE24)","v":0},{"$f":"MAX(BF10:BF24)","v":0},null,{"$f":"SUM(BH10:BH24)","v":0},{"$f":"MAX(BI10:BI24)","v":0},null,{"$f":"SUM(BK10:BK24)","v":0},{"$f":"MAX(BL10:BL24)","v":0},null,{"$f":"SUM(BN10:BN24)","v":0},{"$f":"MAX(BO10:BO24)","v":0},null,{"$f":"SUM(BQ10:BQ24)","v":0},{"$f":"MAX(BR10:BR24)","v":0},null,{"$f":"SUM(BT10:BT24)","v":0},{"$f":"MAX(BU10:BU24)","v":0},null,{"$f":"SUM(BW10:BW24)","v":0},{"$f":"MAX(BX10:BX24)","v":0},null,{"$f":"SUM(BZ10:BZ24)","v":0},{"$f":"MAX(CA10:CA24)","v":0},null,{"$f":"SUM(CC10:CC24)","v":0},{"$f":"MAX(CD10:CD24)","v":0},null,{"$f":"SUM(CF10:CF24)","v":0},{"$f":"MAX(CG10:CG24)","v":0},null,{"$f":"SUM(CI10:CI24)","v":0},{"$f":"MAX(CJ10:CJ24)","v":0},null,{"$f":"SUM(CL10:CL24)","v":0},{"$f":"MAX(CM10:CM24)","v":0},null,{"$f":"SUM(CO10:CO24)","v":0},{"$f":"MAX(CP10:CP24)","v":0},null,{"$f":"SUM(CR10:CR24)","v":0},{"$f":"MAX(CS10:CS24)","v":0},null,{"$f":"SUM(CU10:CU24)","v":0},{"$f":"MAX(CV10:CV24)","v":0},null,{"$f":"SUM(CX10:CX24)","v":0},{"$f":"MAX(CY10:CY24)","v":0},null,{"$f":"SUM(DA10:DA24)","v":0},{"$f":"MAX(DB10:DB24)","v":0},null,{"$f":"SUM(DD10:DD24)","v":0},{"$f":"MAX(DE10:DE24)","v":0},null,{"$f":"SUM(DG10:DG24)","v":0},{"$f":"MAX(DH10:DH24)","v":0},null,{"$f":"SUM(DJ10:DJ24)","v":0},{"$f":"MAX(DK10:DK24)","v":0},null,{"$f":"SUM(DM10:DM24)","v":0},{"$f":"MAX(DN10:DN24)","v":0},null,{"$f":"SUM(DP10:DP24)","v":0},{"$f":"MAX(DQ10:DQ24)","v":0},null,{"$f":"SUM(DS10:DS24)","v":0},{"$f":"MAX(DT10:DT24)","v":0},null,{"$f":"SUM(DV10:DV24)","v":0},{"$f":"MAX(DW10:DW24)","v":0},null,{"$f":"SUM(DY10:DY24)","v":0},{"$f":"MAX(DZ10:DZ24)","v":0},null,{"$f":"SUM(EB10:EB24)","v":0},{"$f":"MAX(EC10:EC24)","v":0},null,{"$f":"SUM(EE10:EE24)","v":0},{"$f":"MAX(EF10:EF24)","v":0},null,{"$f":"SUM(EH10:EH24)","v":0},{"$f":"MAX(EI10:EI24)","v":0},null,{"$f":"SUM(EK10:EK24)","v":0},{"$f":"MAX(EL10:EL24)","v":0},null,{"$f":"SUM(EN10:EN24)","v":0},{"$f":"MAX(EO10:EO24)","v":0},null,{"$f":"SUM(EQ10:EQ24)","v":0},{"$f":"MAX(ER10:ER24)","v":0},null,{"$f":"SUM(ET10:ET24)","v":0},{"$f":"MAX(EU10:EU24)","v":0},null,{"$f":"SUM(EW10:EW24)","v":0},{"$f":"MAX(EX10:EX24)","v":0},null,{"$f":"SUM(EZ10:EZ24)","v":0},{"$f":"MAX(FA12:FA24)","v":0},{"$f":"SUM(FB10:FB24)","v":0},null,null,{"$f":"IF(ABS(FF25-365)>4,\"Must have 365 ± 4 days.\",\"\")","v":"Must have 365 ± 4 days."},{"$f":"SUM(FF10:FF24)","v":0},{"$f":"SUM(FG10:FG24)","v":0},null,{"$f":"SUM(FI10:FI24)","v":0}]
[null,{"$f":"IF(FD10=1,\"\",IF(ABS(B10-FD10)>15,\"The dates for the common area and apartment bills are out of synch. Please select start dates within 2 weeks of each other.\",\"\"))","v":""}]
[null,null,null,null,null,"Total Annual kWh Cost",null,null,"Total Annual kWh Cost",null,null,"Total Annual kWh Cost",null,null,"Total Annual kWh Cost",null,null,"Total Annual kWh Cost",null,null,"Total Annual kWh Cost",null,null,"Total Annual kWh Cost",null,null,"Total Annual kWh Cost",null,null,"Total Annual kWh Cost",null,null,"Total Annual kWh Cost",null,null,"Total Annual kWh Cost",null,null,"Total Annual kWh Cost",null,null,"Total Annual kWh Cost",null,null,"Total Annual kWh Cost",null,null,"Total Annual kWh Cost",null,null,"Total Annual kWh Cost",null,null,"Total Annual kWh Cost",null,null,"Total Annual kWh Cost",null,null,"Total Annual kWh Cost",null,null,"Total Annual kWh Cost",null,null,"Total Annual kWh Cost",null,null,"Total Annual kWh Cost",null,null,"Total Annual kWh Cost",null,null,"Total Annual kWh Cost",null,null,"Total Annual kWh Cost",null,null,"Total Annual kWh Cost",null,null,"Total Annual kWh Cost",null,null,"Total Annual kWh Cost",null,null,"Total Annual kWh Cost",null,null,"Total Annual kWh Cost",null,null,"Total Annual kWh Cost",null,null,"Total Annual kWh Cost",null,null,"Total Annual kWh Cost",null,null,"Total Annual kWh Cost",null,null,"Total Annual kWh Cost",null,null,"Total Annual kWh Cost",null,null,"Total Annual kWh Cost",null,null,"Total Annual kWh Cost",null,null,"Total Annual kWh Cost",null,null,"Total Annual kWh Cost",null,null,"Total Annual kWh Cost",null,null,"Total Annual kWh Cost",null,null,"Total Annual kWh Cost",null,null,"Total Annual kWh Cost",null,null,"Total Annual kWh Cost",null,null,"Total Annual kWh Cost",null,null,"Total Annual kWh Cost",null,null,"Total Annual kWh Cost",null,null,"Total Annual kWh Cost",null,null,"Total Annual kWh Cost",null,null,"Total Annual Common Area kWh Cost",null,null,null,null,null,null,"Total In-Unit Annual kWh Cost",null,"Total Annual kWh Cost"]
[null,null,null,null,null,200000,null,null,null,null,null,null,null,null,null,null,null,null,null,null,null,null,null,null,null,null,null,null,null,null,null,null,null,null,null,null,null,null,null,null,null,null,null,null,null,null,null,null,null,null,null,null,null,null,null,null,null,null,null,null,null,null,null,null,null,null,null,null,null,null,null,null,null,null,null,null,null,null,null,null,null,null,null,null,null,null,null,null,null,null,null,null,null,null,null,null,null,null,null,null,null,null,null,null,null,null,null,null,null,null,null,null,null,null,null,null,null,null,null,null,null,null,null,null,null,null,null,null,null,null,null,null,null,null,null,null,null,null,null,null,null,null,null,null,null,null,null,null,null,null,null,null,null,null,null,{"$f":"SUM(F28:EY28)","v":200000},null,null,null,null,null,null,{"$f":"IF(N('Apt-Elec'!$PT$30)=0,IF(N($EZ$28)=0,0.15,$EZ$28/$EZ$25)*$FG$25,'Apt-Elec'!$PT$30)","v":{"$error":"#DIV/0!"}},null,{"$f":"EZ28+FG28","v":{"$error":"#DIV/0!"}}]
[]
[null,"Post-Construction Common Area Billing Dates",null,null,null,"Common Area Meter #1",null,null,"Common Area Meter #2",null,null,"Common Area Meter #3",null,null,"Common Area Meter #4",null,null,"Common Area Meter #5",null,null,"Common Area Meter #6",null,null,"Common Area Meter #7",null,null,"Common Area Meter #8",null,null,"Common Area Meter #9",null,null,"Common Area Meter #10",null,null,"Common Area Meter #11",null,null,"Common Area Meter #12",null,null,"Common Area Meter #13",null,null,"Common Area Meter #14",null,null,"Common Area Meter #15",null,null,"Common Area Meter #16",null,null,"Common Area Meter #17",null,null,"Common Area Meter #18",null,null,"Common Area Meter #19",null,null,"Common Area Meter #20",null,null,"Common Area Meter #21",null,null,"Common Area Meter #22",null,null,"Common Area Meter #23",null,null,"Common Area Meter #24",null,null,"Common Area Meter #25",null,null,"Common Area Meter #26",null,null,"Common Area Meter #27",null,null,"Common Area Meter #28",null,null,"Common Area Meter #29",null,null,"Common Area Meter #30",null,null,"Common Area Meter #31",null,null,"Common Area Meter #32",null,null,"Common Area Meter #33",null,null,"Common Area Meter #34",null,null,"Common Area Meter #35",null,null,"Common Area Meter #36",null,null,"Common Area Meter #37",null,null,"Common Area Meter #38",null,null,"Common Area Meter #39",null,null,"Common Area Meter #40",null,null,"Common Area Meter #41",null,null,"Common Area Meter #42",null,null,"Common Area Meter #43",null,null,"Common Area Meter #44",null,null,"Common Area Meter #45",null,null,"Common Area Meter #46",null,null,"Common Area Meter #47",null,null,"Common Area Meter #48",null,null,"Common Area Meter #49",null,null,"Common Area Meter #50",null,null,null,null,null,null,"Post-Construction In-Unit Billing Dates"]
[null,null,null,null,null,"Account #",null,null,"Account #",null,null,"Account #",null,null,"Account #",null,null,"Account #",null,null,"Account #",null,null,"Account #",null,null,"Account #",null,null,"Account #",null,null,"Account #",null,null,"Account #",null,null,"Account #",null,null,"Account #",null,null,"Account #",null,null,"Account #",null,null,"Account #",null,null,"Account #",null,null,"Account #",null,null,"Account #",null,null,"Account #",null,null,"Account #",null,null,"Account #",null,null,"Account #",null,null,"Account #",null,null,"Account #",null,null,"Account #",null,null,"Account #",null,null,"Account #",null,null,"Account #",null,null,"Account #",null,null,"Account #",null,null,"Account #",null,null,"Account #",null,null,"Account #",null,null,"Account #",null,null,"Account #",null,null,"Account #",null,null,"Account #",null,null,"Account #",null,null,"Account #",null,null,"Account #",null,null,"Account #",null,null,"Account #",null,null,"Account #",null,null,"Account #",null,null,"Account #",null,null,"Account #",null,null,"Account #",null,null,"Account #",null,null,"Account #"]
[null,"Billing Period Start Date","Read Date","Days in Billing Period",null,{"$f":"F7","v":0},null,null,{"$f":"I7","v":0},null,null,{"$f":"L7","v":0},null,null,{"$f":"O7","v":0},null,null,{"$f":"R7","v":0},null,null,{"$f":"U7","v":0},null,null,{"$f":"X7","v":0},null,null,{"$f":"AA7","v":0},null,null,{"$f":"AD7","v":0},null,null,{"$f":"AG7","v":0},null,null,{"$f":"AJ7","v":0},null,null,{"$f":"AM7","v":0},null,null,{"$f":"AP7","v":0},null,null,{"$f":"AS7","v":0},null,null,{"$f":"AV7","v":0},null,null,{"$f":"AY7","v":0},null,null,{"$f":"BB7","v":0},null,null,{"$f":"BE7","v":0},null,null,{"$f":"BH7","v":0},null,null,{"$f":"BK7","v":0},null,null,{"$f":"BN7","v":0},null,null,{"$f":"BQ7","v":0},null,null,{"$f":"BT7","v":0},null,null,{"$f":"BW7","v":0},null,null,{"$f":"BZ7","v":0},null,null,{"$f":"CC7","v":0},null,null,{"$f":"CF7","v":0},null,null,{"$f":"CI7","v":0},null,null,{"$f":"CL7","v":0},null,null,{"$f":"CO7","v":0},null,null,{"$f":"CR7","v":0},null,null,{"$f":"CU7","v":0},null,null,{"$f":"CX7","v":0},null,null,{"$f":"DA7","v":0},null,null,{"$f":"DD7","v":0},null,null,{"$f":"DG7","v":0},null,null,{"$f":"DJ7","v":0},null,null,{"$f":"DM7","v":0},null,null,{"$f":"DP7","v":0},null,null,{"$f":"DS7","v":0},null,null,{"$f":"DV7","v":0},null,null,{"$f":"DY7","v":0},null,null,{"$f":"EB7","v":0},null,null,{"$f":"EE7","v":0},null,null,{"$f":"EH7","v":0},null,null,{"$f":"EK7","v":0},null,null,{"$f":"EN7","v":0},null,null,{"$f":"EQ7","v":0},null,null,{"$f":"ET7","v":0},null,null,{"$f":"EW7","v":0},null,null,"Total Common Area kWh Consumption","Total Common Area Peak kW","On-Site Net kWh Generation",null,"Billing Period Start Date","Read Date","Days in Billing Period","In-Unit kWh Consumption",null,"Total kWh Consumption",null,null,null,null,null,null,"Data for Graphs:"]
[null,null,null,null,null,"kWh","kW","Actual/ Estimated","kWh","kW","Actual/ Estimated","kWh","kW","Actual/ Estimated","kWh","kW","Actual/ Estimated","kWh","kW","Actual/ Estimated","kWh","kW","Actual/ Estimated","kWh","kW","Actual/ Estimated","kWh","kW","Actual/ Estimated","kWh","kW","Actual/ Estimated","kWh","kW","Actual/ Estimated","kWh","kW","Actual/ Estimated","kWh","kW","Actual/ Estimated","kWh","kW","Actual/ Estimated","kWh","kW","Actual/ Estimated","kWh","kW","Actual/ Estimated","kWh","kW","Actual/ Estimated","kWh","kW","Actual/ Estimated","kWh","kW","Actual/ Estimated","kWh","kW","Actual/ Estimated","kWh","kW","Actual/ Estimated","kWh","kW","Actual/ Estimated","kWh","kW","Actual/ Estimated","kWh","kW","Actual/ Estimated","kWh","kW","Actual/ Estimated","kWh","kW","Actual/ Estimated","kWh","kW","Actual/ Estimated","kWh","kW","Actual/ Estimated","kWh","kW","Actual/ Estimated","kWh","kW","Actual/ Estimated","kWh","kW","Actual/ Estimated","kWh","kW","Actual/ Estimated","kWh","kW","Actual/ Estimated","kWh","kW","Actual/ Estimated","kWh","kW","Actual/ Estimated","kWh","kW","Actual/ Estimated","kWh","kW","Actual/ Estimated","kWh","kW","Actual/ Estimated","kWh","kW","Actual/ Estimated","kWh","kW","Actual/ Estimated","kWh","kW","Actual/ Estimated","kWh","kW","Actual/ Estimated","kWh","kW","Actual/ Estimated","kWh","kW","Actual/ Estimated","kWh","kW","Actual/ Estimated","kWh","kW","Actual/ Estimated","kWh","kW","Actual/ Estimated","kWh","kW","Actual/ Estimated","kWh","kW","Actual/ Estimated","kWh","kW","Actual/ Estimated","kWh","kW","Actual/ Estimated",null,null,null,null,null,null,null,null,null,null,null,null,null,null,null,null,"Common Area Ref Date","Common Area Month","In-unit Ref Date","In-Unit Month"]
[null,null,null,null,null,null,null,null,null,null,null,null,null,null,null,null,null,null,null,null,null,null,null,null,null,null,null,null,null,null,null,null,null,null,null,null,null,null,null,null,null,null,null,null,null,null,null,null,null,null,null,null,null,null,null,null,null,null,null,null,null,null,null,null,null,null,null,null,null,null,null,null,null,null,null,null,null,null,null,null,null,null,null,null,null,null,null,null,null,null,null,null,null,null,null,null,null,null,null,null,null,null,null,null,null,null,null,null,null,null,null,null,null,null,null,null,null,null,null,null,null,null,null,null,null,null,null,null,null,null,null,null,null,null,null,null,null,null,null,null,null,null,null,null,null,null,null,null,null,null,null,null,null,null,null,null,null,null,null,null,{"$f":"'Apt-Elec'!C38","v":"00:00:00"}]
[null,{"$f":"C34+1","v":"1900-01-01"},null,{"$f":"IF(C35>0,C35+1-B35,0)","v":0},null,null,null,null,null,null,null,null,null,null,null,null,null,null,null,null,null,null,null,null,null,null,null,null,null,null,null,null,null,null,null,null,null,null,null,null,null,null,null,null,null,null,null,null,null,null,null,null,null,null,null,null,null,null,null,null,null,null,null,null,null,null,null,null,null,null,null,null,null,null,null,null,null,null,null,null,null,null,null,null,null,null,null,null,null,null,null,null,null,null,null,null,null,null,null,null,null,null,null,null,null,null,null,null,null,null,null,null,null,null,null,null,null,null,null,null,null,null,null,null,null,null,null,null,null,null,null,null,null,null,null,null,null,null,null,null,null,null,null,null,null,null,null,null,null,null,null,null,null,null,null,{"$f":"SUM(F35:EY35)+FB35","v":0},{"$f":"SUM(G35,J35,M35,P35,S35,V35,Y35,AB35,AE35,AH35,AK35,AN35,AQ35,AT35,AW35,AZ35,BC35,BF35,BI35,BL35,BO35,BR35,BU35,BX35,CA35,CD35,CG35,CJ35,CM35,CP35,CS35,CV35,CY35,DB35,DE35,DH35,DK35,DN35,DQ35,DT35,DW35,DZ35,EC35,EF35,EI35,EL35,EO35,ER35,EU35,EX35)","v":0},null,null,{"$f":"'Apt-Elec'!B39","v":"1900-01-01"},{"$f":"'Apt-Elec'!C39","v":"00:00:00"},{"$f":"IF(FE35>0,FE35+1-FD35,0)","v":0},{"$f":"'Apt-Elec'!PT39","v":0},null,{"$f":"EZ35+FG35","v":0},null,null,null,null,null,null,{"$f":"DATE(YEAR(C35),MONTH(C35),1)","v":"1900-01-01"},{"$f":"IF((FP35-B35)>(C35-FP35),MONTH(B35),MONTH(C35))","v":1},{"$f":"DATE(YEAR(FE35),MONTH(FE35),1)","v":"1900-01-01"},{"$f":"IF((FR35-FD35)>(FE35-FR35),MONTH(FD35),MONTH(FE35))","v":1}]
[null,"1900-01-01",null,0,null,null,null,null,null,null,null,null,null,null,null,null,null,null,null,null,null,null,null,null,null,null,null,null,null,null,null,null,null,null,null,null,null,null,null,null,null,null,null,null,null,null,null,null,null,null,null,null,null,null,null,null,null,null,null,null,null,null,null,null,null,null,null,null,null,null,null,null,null,null,null,null,null,null,null,null,null,null,null,null,null,null,null,null,null,null,null,null,null,null,null,null,null,null,null,null,null,null,null,null,null,null,null,null,null,null,null,null,null,null,null,null,null,null,null,null,null,null,null,null,null,null,null,null,null,null,null,null,null,null,null,null,null,null,null,null,null,null,null,null,null,null,null,null,null,null,null,null,null,null,null,0,{"$f":"SUM(G36,J36,M36,P36,S36,V36,Y36,AB36,AE36,AH36,AK36,AN36,AQ36,AT36,AW36,AZ36,BC36,BF36,BI36,BL36,BO36,BR36,BU36,BX36,CA36,CD36,CG36,CJ36,CM36,CP36,CS36,CV36,CY36,DB36,DE36,DH36,DK36,DN36,DQ36,DT36,DW36,DZ36,EC36,EF36,EI36,EL36,EO36,ER36,EU36,EX36)","v":0},null,null,{"$f":"'Apt-Elec'!B40","v":"1900-01-01"},{"$f":"'Apt-Elec'!C40","v":"00:00:00"},{"$f":"IF(FE36>0,FE36+1-FD36,0)","v":0},{"$f":"'Apt-Elec'!PT40","v":0},null,{"$f":"EZ36+FG36","v":0},null,null,null,null,null,null,"1900-01-01",1,{"$f":"DATE(YEAR(FE36),MONTH(FE36),1)","v":"1900-01-01"},{"$f":"IF((FR36-FD36)>(FE36-FR36),MONTH(FD36),MONTH(FE36))","v":1}]
[null,"1900-01-01",null,0,null,null,null,null,null,null,null,null,null,null,null,null,null,null,null,null,null,null,null,null,null,null,null,null,null,null,null,null,null,null,null,null,null,null,null,null,null,null,null,null,null,null,null,null,null,null,null,null,null,null,null,null,null,null,null,null,null,null,null,null,null,null,null,null,null,null,null,null,null,null,null,null,null,null,null,null,null,null,null,null,null,null,null,null,null,null,null,null,null,null,null,null,null,null,null,null,null,null,null,null,null,null,null,null,null,null,null,null,null,null,null,null,null,null,null,null,null,null,null,null,null,null,null,null,null,null,null,null,null,null,null,null,null,null,null,null,null,null,null,null,null,null,null,null,null,null,null,null,null,null,null,0,0,null,null,{"$f":"'Apt-Elec'!B41","v":"1900-01-01"},{"$f":"'Apt-Elec'!C41","v":"00:00:00"},0,{"$f":"'Apt-Elec'!PT41","v":0},null,0,null,null,null,null,null,null,"1900-01-01",1,{"$f":"DATE(YEAR(FE37),MONTH(FE37),1)","v":"1900-01-01"},1]
[null,"1900-01-01",null,0,null,null,null,null,null,null,null,null,null,null,null,null,null,null,null,null,null,null,null,null,null,null,null,null,null,null,null,null,null,null,null,null,null,null,null,null,null,null,null,null,null,null,null,null,null,null,null,null,null,null,null,null,null,null,null,null,null,null,null,null,null,null,null,null,null,null,null,null,null,null,null,null,null,null,null,null,null,null,null,null,null,null,null,null,null,null,null,null,null,null,null,null,null,null,null,null,null,null,null,null,null,null,null,null,null,null,null,null,null,null,null,null,null,null,null,null,null,null,null,null,null,null,null,null,null,null,null,null,null,null,null,null,null,null,null,null,null,null,null,null,null,null,null,null,null,null,null,null,null,null,null,0,0,null,null,{"$f":"'Apt-Elec'!B42","v":"1900-01-01"},{"$f":"'Apt-Elec'!C42","v":"00:00:00"},0,{"$f":"'Apt-Elec'!PT42","v":0},null,0,null,null,null,null,null,null,"1900-01-01",1,{"$f":"DATE(YEAR(FE38),MONTH(FE38),1)","v":"1900-01-01"},1]
[null,"1900-01-01",null,0,null,null,null,null,null,null,null,null,null,null,null,null,null,null,null,null,null,null,null,null,null,null,null,null,null,null,null,null,null,null,null,null,null,null,null,null,null,null,null,null,null,null,null,null,null,null,null,null,null,null,null,null,null,null,null,null,null,null,null,null,null,null,null,null,null,null,null,null,null,null,null,null,null,null,null,null,null,null,null,null,null,null,null,null,null,null,null,null,null,null,null,null,null,null,null,null,null,null,null,null,null,null,null,null,null,null,null,null,null,null,null,null,null,null,null,null,null,null,null,null,null,null,null,null,null,null,null,null,null,null,null,null,null,null,null,null,null,null,null,null,null,null,null,null,null,null,null,null,null,null,null,0,0,null,null,{"$f":"'Apt-Elec'!B43","v":"1900-01-01"},{"$f":"'Apt-Elec'!C43","v":"00:00:00"},0,{"$f":"'Apt-Elec'!PT43","v":0},null,0,null,null,null,null,null,null,"1900-01-01",1,{"$f":"DATE(YEAR(FE39),MONTH(FE39),1)","v":"1900-01-01"},1]
[null,"1900-01-01",null,0,null,null,null,null,null,null,null,null,null,null,null,null,null,null,null,null,null,null,null,null,null,null,null,null,null,null,null,null,null,null,null,null,null,null,null,null,null,null,null,null,null,null,null,null,null,null,null,null,null,null,null,null,null,null,null,null,null,null,null,null,null,null,null,null,null,null,null,null,null,null,null,null,null,null,null,null,null,null,null,null,null,null,null,null,null,null,null,null,null,null,null,null,null,null,null,null,null,null,null,null,null,null,null,null,null,null,null,null,null,null,null,null,null,null,null,null,null,null,null,null,null,null,null,null,null,null,null,null,null,null,null,null,null,null,null,null,null,null,null,null,null,null,null,null,null,null,null,null,null,null,null,0,0,null,null,{"$f":"'Apt-Elec'!B44","v":"1900-01-01"},{"$f":"'Apt-Elec'!C44","v":"00:00:00"},0,{"$f":"'Apt-Elec'!PT44","v":0},null,0,null,null,null,null,null,null,"1900-01-01",1,{"$f":"DATE(YEAR(FE40),MONTH(FE40),1)","v":"1900-01-01"},1]
[null,"1900-01-01",null,0,null,null,null,null,null,null,null,null,null,null,null,null,null,null,null,null,null,null,null,null,null,null,null,null,null,null,null,null,null,null,null,null,null,null,null,null,null,null,null,null,null,null,null,null,null,null,null,null,null,null,null,null,null,null,null,null,null,null,null,null,null,null,null,null,null,null,null,null,null,null,null,null,null,null,null,null,null,null,null,null,null,null,null,null,null,null,null,null,null,null,null,null,null,null,null,null,null,null,null,null,null,null,null,null,null,null,null,null,null,null,null,null,null,null,null,null,null,null,null,null,null,null,null,null,null,null,null,null,null,null,null,null,null,null,null,null,null,null,null,null,null,null,null,null,null,null,null,null,null,null,null,0,0,null,null,{"$f":"'Apt-Elec'!B45","v":"1900-01-01"},{"$f":"'Apt-Elec'!C45","v":"00:00:00"},0,{"$f":"'Apt-Elec'!PT45","v":0},null,0,null,null,null,null,null,null,"1900-01-01",1,"1900-01-01",1]
[null,"1900-01-01",null,0,null,null,null,null,null,null,null,null,null,null,null,null,null,null,null,null,null,null,null,null,null,null,null,null,null,null,null,null,null,null,null,null,null,null,null,null,null,null,null,null,null,null,null,null,null,null,null,null,null,null,null,null,null,null,null,null,null,null,null,null,null,null,null,null,null,null,null,null,null,null,null,null,null,null,null,null,null,null,null,null,null,null,null,null,null,null,null,null,null,null,null,null,null,null,null,null,null,null,null,null,null,null,null,null,null,null,null,null,null,null,null,null,null,null,null,null,null,null,null,null,null,null,null,null,null,null,null,null,null,null,null,null,null,null,null,null,null,null,null,null,null,null,null,null,null,null,null,null,null,null,null,0,0,null,null,{"$f":"'Apt-Elec'!B46","v":"1900-01-01"},{"$f":"'Apt-Elec'!C46","v":"00:00:00"},0,{"$f":"'Apt-Elec'!PT46","v":0},null,0,null,null,null,null,null,null,"1900-01-01",1,"1900-01-01",1]
[null,"1900-01-01",null,0,null,null,null,null,null,null,null,null,null,null,null,null,null,null,null,null,null,null,null,null,null,null,null,null,null,null,null,null,null,null,null,null,null,null,null,null,null,null,null,null,null,null,null,null,null,null,null,null,null,null,null,null,null,null,null,null,null,null,null,null,null,null,null,null,null,null,null,null,null,null,null,null,null,null,null,null,null,null,null,null,null,null,null,null,null,null,null,null,null,null,null,null,null,null,null,null,null,null,null,null,null,null,null,null,null,null,null,null,null,null,null,null,null,null,null,null,null,null,null,null,null,null,null,null,null,null,null,null,null,null,null,null,null,null,null,null,null,null,null,null,null,null,null,null,null,null,null,null,null,null,null,0,0,null,null,{"$f":"'Apt-Elec'!B47","v":"1900-01-01"},{"$f":"'Apt-Elec'!C47","v":"00:00:00"},0,{"$f":"'Apt-Elec'!PT47","v":0},null,0,null,null,null,null,null,null,"1900-01-01",1,"1900-01-01",1]
[null,"1900-01-01",null,0,null,null,null,null,null,null,null,null,null,null,null,null,null,null,null,null,null,null,null,null,null,null,null,null,null,null,null,null,null,null,null,null,null,null,null,null,null,null,null,null,null,null,null,null,null,null,null,null,null,null,null,null,null,null,null,null,null,null,null,null,null,null,null,null,null,null,null,null,null,null,null,null,null,null,null,null,null,null,null,null,null,null,null,null,null,null,null,null,null,null,null,null,null,null,null,null,null,null,null,null,null,null,null,null,null,null,null,null,null,null,null,null,null,null,null,null,null,null,null,null,null,null,null,null,null,null,null,null,null,null,null,null,null,null,null,null,null,null,null,null,null,null,null,null,null,null,null,null,null,null,null,0,0,null,null,{"$f":"'Apt-Elec'!B48","v":"1900-01-01"},{"$f":"'Apt-Elec'!C48","v":"00:00:00"},0,{"$f":"'Apt-Elec'!PT48","v":0},null,0,null,null,null,null,null,null,"1900-01-01",1,"1900-01-01",1]
[null,"1900-01-01",null,0,null,null,null,null,null,null,null,null,null,null,null,null,null,null,null,null,null,null,null,null,null,null,null,null,null,null,null,null,null,null,null,null,null,null,null,null,null,null,null,null,null,null,null,null,null,null,null,null,null,null,null,null,null,null,null,null,null,null,null,null,null,null,null,null,null,null,null,null,null,null,null,null,null,null,null,null,null,null,null,null,null,null,null,null,null,null,null,null,null,null,null,null,null,null,null,null,null,null,null,null,null,null,null,null,null,null,null,null,null,null,null,null,null,null,null,null,null,null,null,null,null,null,null,null,null,null,null,null,null,null,null,null,null,null,null,null,null,null,null,null,null,null,null,null,null,null,null,null,null,null,null,0,0,null,null,{"$f":"'Apt-Elec'!B49","v":"1900-01-01"},{"$f":"'Apt-Elec'!C49","v":"00:00:00"},0,{"$f":"'Apt-Elec'!PT49","v":0},null,0,null,null,null,null,null,null,"1900-01-01",1,"1900-01-01",1]
[null,"1900-01-01",null,0,null,null,null,null,null,null,null,null,null,null,null,null,null,null,null,null,null,null,null,null,null,null,null,null,null,null,null,null,null,null,null,null,null,null,null,null,null,null,null,null,null,null,null,null,null,null,null,null,null,null,null,null,null,null,null,null,null,null,null,null,null,null,null,null,null,null,null,null,null,null,null,null,null,null,null,null,null,null,null,null,null,null,null,null,null,null,null,null,null,null,null,null,null,null,null,null,null,null,null,null,null,null,null,null,null,null,null,null,null,null,null,null,null,null,null,null,null,null,null,null,null,null,null,null,null,null,null,null,null,null,null,null,null,null,null,null,null,null,null,null,null,null,null,null,null,null,null,null,null,null,null,0,0,null,null,{"$f":"'Apt-Elec'!B50","v":"1900-01-01"},{"$f":"'Apt-Elec'!C50","v":"00:00:00"},0,{"$f":"'Apt-Elec'!PT50","v":0},null,0,null,null,null,null,null,null,"1900-01-01",1,"1900-01-01",1]
[null,"1900-01-01",null,0,null,null,null,null,null,null,null,null,null,null,null,null,null,null,null,null,null,null,null,null,null,null,null,null,null,null,null,null,null,null,null,null,null,null,null,null,null,null,null,null,null,null,null,null,null,null,null,null,null,null,null,null,null,null,null,null,null,null,null,null,null,null,null,null,null,null,null,null,null,null,null,null,null,null,null,null,null,null,null,null,null,null,null,null,null,null,null,null,null,null,null,null,null,null,null,null,null,null,null,null,null,null,null,null,null,null,null,null,null,null,null,null,null,null,null,null,null,null,null,null,null,null,null,null,null,null,null,null,null,null,null,null,null,null,null,null,null,null,null,null,null,null,null,null,null,null,null,null,null,null,null,0,0,null,null,{"$f":"'Apt-Elec'!B51","v":"1900-01-01"},{"$f":"'Apt-Elec'!C51","v":"00:00:00"},0,{"$f":"'Apt-Elec'!PT51","v":0},null,0,null,null,null,null,null,null,"1900-01-01",1,"1900-01-01",1]
[null,"1900-01-01",null,0,null,null,null,null,null,null,null,null,null,null,null,null,null,null,null,null,null,null,null,null,null,null,null,null,null,null,null,null,null,null,null,null,null,null,null,null,null,null,null,null,null,null,null,null,null,null,null,null,null,null,null,null,null,null,null,null,null,null,null,null,null,null,null,null,null,null,null,null,null,null,null,null,null,null,null,null,null,null,null,null,null,null,null,null,null,null,null,null,null,null,null,null,null,null,null,null,null,null,null,null,null,null,null,null,null,null,null,null,null,null,null,null,null,null,null,null,null,null,null,null,null,null,null,null,null,null,null,null,null,null,null,null,null,null,null,null,null,null,null,null,null,null,null,null,null,null,null,null,null,null,null,0,0,null,null,{"$f":"'Apt-Elec'!B52","v":"1900-01-01"},{"$f":"'Apt-Elec'!C52","v":"00:00:00"},0,{"$f":"'Apt-Elec'!PT52","v":0},null,0,null,null,null,null,null,null,"1900-01-01",1,"1900-01-01",1]
[null,"1900-01-01",null,0,null,null,null,null,null,null,null,null,null,null,null,null,null,null,null,null,null,null,null,null,null,null,null,null,null,null,null,null,null,null,null,null,null,null,null,null,null,null,null,null,null,null,null,null,null,null,null,null,null,null,null,null,null,null,null,null,null,null,null,null,null,null,null,null,null,null,null,null,null,null,null,null,null,null,null,null,null,null,null,null,null,null,null,null,null,null,null,null,null,null,null,null,null,null,null,null,null,null,null,null,null,null,null,null,null,null,null,null,null,null,null,null,null,null,null,null,null,null,null,null,null,null,null,null,null,null,null,null,null,null,null,null,null,null,null,null,null,null,null,null,null,null,null,null,null,null,null,null,null,null,null,0,0,null,null,{"$f":"'Apt-Elec'!B53","v":"1900-01-01"},{"$f":"'Apt-Elec'!C53","v":"00:00:00"},0,{"$f":"'Apt-Elec'!PT53","v":0},null,0,null,null,null,null,null,null,"1900-01-01",1,"1900-01-01",1]
[null,null,{"$f":"IF(ABS(D50-365)>4,\"Must have 365 ± 4 days.\",\"\")","v":"Must have 365 ± 4 days."},{"$f":"SUM(D35:D49)","v":0},null,{"$f":"SUM(F35:F49)","v":0},{"$f":"MAX(G35:G49)","v":0},null,{"$f":"SUM(I35:I49)","v":0},{"$f":"MAX(J35:J49)","v":0},null,{"$f":"SUM(L35:L49)","v":0},{"$f":"MAX(M35:M49)","v":0},null,{"$f":"SUM(O35:O49)","v":0},{"$f":"MAX(P35:P49)","v":0},null,{"$f":"SUM(R35:R49)","v":0},{"$f":"MAX(S35:S49)","v":0},null,{"$f":"SUM(U35:U49)","v":0},{"$f":"MAX(V35:V49)","v":0},null,{"$f":"SUM(X35:X49)","v":0},{"$f":"MAX(Y35:Y49)","v":0},null,{"$f":"SUM(AA35:AA49)","v":0},{"$f":"MAX(AB35:AB49)","v":0},null,{"$f":"SUM(AD35:AD49)","v":0},{"$f":"MAX(AE35:AE49)","v":0},null,{"$f":"SUM(AG35:AG49)","v":0},{"$f":"MAX(AH35:AH49)","v":0},null,{"$f":"SUM(AJ35:AJ49)","v":0},{"$f":"MAX(AK35:AK49)","v":0},null,{"$f":"SUM(AM35:AM49)","v":0},{"$f":"MAX(AN35:AN49)","v":0},null,{"$f":"SUM(AP35:AP49)","v":0},{"$f":"MAX(AQ35:AQ49)","v":0},null,{"$f":"SUM(AS35:AS49)","v":0},{"$f":"MAX(AT35:AT49)","v":0},null,{"$f":"SUM(AV35:AV49)","v":0},{"$f":"MAX(AW35:AW49)","v":0},null,{"$f":"SUM(AY35:AY49)","v":0},{"$f":"MAX(AZ35:AZ49)","v":0},null,{"$f":"SUM(BB35:BB49)","v":0},{"$f":"MAX(BC35:BC49)","v":0},null,{"$f":"SUM(BE35:BE49)","v":0},{"$f":"MAX(BF35:BF49)","v":0},null,{"$f":"SUM(BH35:BH49)","v":0},{"$f":"MAX(BI35:BI49)","v":0},null,{"$f":"SUM(BK35:BK49)","v":0},{"$f":"MAX(BL35:BL49)","v":0},null,{"$f":"SUM(BN35:BN49)","v":0},{"$f":"MAX(BO35:BO49)","v":0},null,{"$f":"SUM(BQ35:BQ49)","v":0},{"$f":"MAX(BR35:BR49)","v":0},null,{"$f":"SUM(BT35:BT49)","v":0},{"$f":"MAX(BU35:BU49)","v":0},null,{"$f":"SUM(BW35:BW49)","v":0},{"$f":"MAX(BX35:BX49)","v":0},null,{"$f":"SUM(BZ35:BZ49)","v":0},{"$f":"MAX(CA35:CA49)","v":0},null,{"$f":"SUM(CC35:CC49)","v":0},{"$f":"MAX(CD35:CD49)","v":0},null,{"$f":"SUM(CF35:CF49)","v":0},{"$f":"MAX(CG35:CG49)","v":0},null,{"$f":"SUM(CI35:CI49)","v":0},{"$f":"MAX(CJ35:CJ49)","v":0},null,{"$f":"SUM(CL35:CL49)","v":0},{"$f":"MAX(CM35:CM49)","v":0},null,{"$f":"SUM(CO35:CO49)","v":0},{"$f":"MAX(CP35:CP49)","v":0},null,{"$f":"SUM(CR35:CR49)","v":0},{"$f":"MAX(CS35:CS49)","v":0},null,{"$f":"SUM(CU35:CU49)","v":0},{"$f":"MAX(CV35:CV49)","v":0},null,{"$f":"SUM(CX35:CX49)","v":0},{"$f":"MAX(CY35:CY49)","v":0},null,{"$f":"SUM(DA35:DA49)","v":0},{"$f":"MAX(DB35:DB49)","v":0},null,{"$f":"SUM(DD35:DD49)","v":0},{"$f":"MAX(DE35:DE49)","v":0},null,{"$f":"SUM(DG35:DG49)","v":0},{"$f":"MAX(DH35:DH49)","v":0},null,{"$f":"SUM(DJ35:DJ49)","v":0},{"$f":"MAX(DK35:DK49)","v":0},null,{"$f":"SUM(DM35:DM49)","v":0},{"$f":"MAX(DN35:DN49)","v":0},null,{"$f":"SUM(DP35:DP49)","v":0},{"$f":"MAX(DQ35:DQ49)","v":0},null,{"$f":"SUM(DS35:DS49)","v":0},{"$f":"MAX(DT35:DT49)","v":0},null,{"$f":"SUM(DV35:DV49)","v":0},{"$f":"MAX(DW35:DW49)","v":0},null,{"$f":"SUM(DY35:DY49)","v":0},{"$f":"MAX(DZ35:DZ49)","v":0},null,{"$f":"SUM(EB35:EB49)","v":0},{"$f":"MAX(EC35:EC49)","v":0},null,{"$f":"SUM(EE35:EE49)","v":0},{"$f":"MAX(EF35:EF49)","v":0},null,{"$f":"SUM(EH35:EH49)","v":0},{"$f":"MAX(EI35:EI49)","v":0},null,{"$f":"SUM(EK35:EK49)","v":0},{"$f":"MAX(EL35:EL49)","v":0},null,{"$f":"SUM(EN35:EN49)","v":0},{"$f":"MAX(EO35:EO49)","v":0},null,{"$f":"SUM(EQ35:EQ49)","v":0},{"$f":"MAX(ER35:ER49)","v":0},null,{"$f":"SUM(ET35:ET49)","v":0},{"$f":"MAX(EU35:EU49)","v":0},null,{"$f":"SUM(EW35:EW49)","v":0},{"$f":"MAX(EX35:EX49)","v":0},null,{"$f":"SUM(EZ35:EZ49)","v":0},{"$f":"MAX(FA37:FA49)","v":0},{"$f":"SUM(FB35:FB49)","v":0},null,null,{"$f":"IF(ABS(FF50-365)>4,\"Must have 365 ± 4 days.\",\"\")","v":"Must have 365 ± 4 days."},{"$f":"SUM(FF35:FF49)","v":0},{"$f":"SUM(FG35:FG49)","v":0},null,{"$f":"SUM(FI35:FI49)","v":0}]
[null,{"$f":"IF(FD35=1,\"\",IF(ABS(B35-FD35)>15,\"The dates for the common area and apartment bills are out of synch. Please select start dates within 2 weeks of each other.\",\"\"))","v":""}]
[null,null,null,null,null,"Total Annual kWh Cost",null,null,"Total Annual kWh Cost",null,null,"Total Annual kWh Cost",null,null,"Total Annual kWh Cost",null,null,"Total Annual kWh Cost",null,null,"Total Annual kWh Cost",null,null,"Total Annual kWh Cost",null,null,"Total Annual kWh Cost",null,null,"Total Annual kWh Cost",null,null,"Total Annual kWh Cost",null,null,"Total Annual kWh Cost",null,null,"Total Annual kWh Cost",null,null,"Total Annual kWh Cost",null,null,"Total Annual kWh Cost",null,null,"Total Annual kWh Cost",null,null,"Total Annual kWh Cost",null,null,"Total Annual kWh Cost",null,null,"Total Annual kWh Cost",null,null,"Total Annual kWh Cost",null,null,"Total Annual kWh Cost",null,null,"Total Annual kWh Cost",null,null,"Total Annual kWh Cost",null,null,"Total Annual kWh Cost",null,null,"Total Annual kWh Cost",null,null,"Total Annual kWh Cost",null,null,"Total Annual kWh Cost",null,null,"Total Annual kWh Cost",null,null,"Total Annual kWh Cost",null,null,"Total Annual kWh Cost",null,null,"Total Annual kWh Cost",null,null,"Total Annual kWh Cost",null,null,"Total Annual kWh Cost",null,null,"Total Annual kWh Cost",null,null,"Total Annual kWh Cost",null,null,"Total Annual kWh Cost",null,null,"Total Annual kWh Cost",null,null,"Total Annual kWh Cost",null,null,"Total Annual kWh Cost",null,null,"Total Annual kWh Cost",null,null,"Total Annual kWh Cost",null,null,"Total Annual kWh Cost",null,null,"Total Annual kWh Cost",null,null,"Total Annual kWh Cost",null,null,"Total Annual kWh Cost",null,null,"Total Annual kWh Cost",null,null,"Total Annual kWh Cost",null,null,"Total Annual kWh Cost",null,null,"Total Annual kWh Cost",null,null,"Total Annual kWh Cost",null,null,"Total Annual kWh Cost",null,null,"Total Annual Common Area kWh Cost",null,null,null,null,null,null,"Total In-Unit Annual kWh Cost",null,"Total Annual kWh Cost"]
[null,null,null,null,null,null,null,null,null,null,null,null,null,null,null,null,null,null,null,null,null,null,null,null,null,null,null,null,null,null,null,null,null,null,null,null,null,null,null,null,null,null,null,null,null,null,null,null,null,null,null,null,null,null,null,null,null,null,null,null,null,null,null,null,null,null,null,null,null,null,null,null,null,null,null,null,null,null,null,null,null,null,null,null,null,null,null,null,null,null,null,null,null,null,null,null,null,null,null,null,null,null,null,null,null,null,null,null,null,null,null,null,null,null,null,null,null,null,null,null,null,null,null,null,null,null,null,null,null,null,null,null,null,null,null,null,null,null,null,null,null,null,null,null,null,null,null,null,null,null,null,null,null,null,null,{"$f":"SUM(F53:EY53)","v":0},null,null,null,null,null,null,{"$f":"IF(N('Apt-Elec'!$PT$57)=0,IF(N($EZ$53)=0,0.15,$EZ$53/$EZ$50)*$FG$50,'Apt-Elec'!$PT$57)","v":0},null,{"$f":"EZ53+FG53","v":0}]
[]
[null,null,null,null,null,"Building Area","Pre Construction Usage ","Post Construction Usage","Difference","% Difference"]
[null,null,null,null,null,"Common Area",{"$f":"EZ25","v":0},{"$f":"EZ50","v":0},{"$f":"H56-G56","v":0},{"$f":"IF(G56>0,I56/G56,\"\")","v":""}]
[null,null,null,null,null,"In-Unit",{"$f":"FG25","v":0},{"$f":"FG50","v":0},{"$f":"H57-G57","v":0},{"$f":"IF(G57>0,I57/G57,\"\")","v":""}]
[]
[]
[null,"Notes:"]

{"sheet":"Apt-Elec","index":4,"n_rows":80,"n_cols":436,"rows_kept":80,"cut":false,"hidden":true,"merged":[[2,1,2,13],[59,425,63,435],[32,417,32,418],[32,419,32,420],[32,421,32,422],[34,383,34,384],[34,385,34,386],[34,387,34,388],[34,389,34,390],[34,391,34,392],[34,393,34,394],[34,395,34,396],[34,397,34,398],[34,399,34,400],[34,401,34,402],[34,403,34,404],[34,405,34,406],[34,407,34,408],[34,409,34,410],[34,411,34,412],[34,413,34,414],[34,415,34,416],[34,417,34,418],[34,419,34,420],[34,421,34,422],[32,383,32,384],[32,385,32,386],[32,387,32,388],[32,389,32,390],[32,391,32,392],[32,393,32,394],[32,395,32,396],[32,397,32,398],[32,399,32,400],[32,401,32,402],[32,403,32,404],[32,405,32,406],[32,407,32,408],[32,409,32,410],[32,411,32,412],[32,413,32,414],[32,415,32,416],[32,375,32,376],[32,377,32,378],[32,379,32,380],[34,341,34,342],[34,343,34,344],[34,345,34,346],[34,347,34,348],[34,349,34,350],[34,351,34,352],[34,353,34,354],[34,355,34,356],[34,357,34,358],[34,359,34,360],[34,361,34,362],[34,363,34,364],[34,365,34,366],[34,367,34,368],[34,369,34,370],[34,371,34,372],[34,373,34,374],[34,375,34,376],[34,377,34,378],[34,379,34,380],[32,341,32,342],[32,343,32,344],[32,345,32,346],[32,347,32,348],[32,349,32,350],[32,351,32,352],[32,353,32,354],[32,355,32,356],[32,357,32,358],[32,359,32,360],[32,361,32,362],[32,363,32,364],[32,365,32,366],[32,367,32,368],[32,369,32,370],[32,371,32,372],[32,373,32,374],[33,369,33,370],[32,333,32,334],[32,335,32,336],[32,337,32,338],[34,299,34,300],[34,301,34,302],[34,303,34,304],[34,305,34,306],[34,307,34,308],[34,309,34,310],[34,311,34,312],[34,313,34,314],[34,315,34,316],[34,317,34,318],[34,319,34,320],[34,321,34,322],[34,323,34,324],[34,325,34,326],[34,327,34,328],[34,329,34,330],[34,331,34,332],[34,333,34,334],[34,335,34,336],[34,337,34,338],[32,299,32,300],[32,301,32,302],[32,303,32,304],[32,305,32,306],[32,307,32,308],[32,309,32,310],[32,311,32,312],[32,313,32,314],[32,315,32,316],[32,317,32,318],[32,319,32,320],[32,321,32,322],[32,323,32,324],[32,325,32,326],[32,327,32,328],[32,329,32,330],[32,331,32,332],[33,313,33,314],[33,315,33,316],[33,317,33,318],[33,319,33,320],[33,321,33,322],[33,323,33,324],[33,301,33,302],[33,303,33,304],[33,305,33,306],[33,307,33,308],[33,309,33,310],[33,311,33,312],[33,325,33,326],[33,327,33,328],[33,329,33,330],[33,331,33,332],[32,291,32,292],[32,293,32,294],[32,295,32,296],[34,257,34,258],[34,259,34,260],[34,261,34,262],[34,263,34,264],[34,265,34,266],[34,267,34,268],[34,269,34,270],[34,271,34,272],[34,273,34,274],[34,275,34,276],[34,277,34,278],[34,279,34,280],[34,281,34,282],[34,283,34,284],[34,285,34,286],[34,287,34,288],[34,289,34,290],[34,291,34,292],[34,293,34,294],[34,295,34,296],[32,257,32,258],[32,259,32,260],[32,261,32,262],[32,263,32,264],[32,265,32,266],[32,267,32,268],[32,269,32,270],[32,271,32,272],[32,273,32,274],[32,287,32,288],[32,289,32,290],[32,249,32,250],[32,251,32,252],[32,253,32,254],[34,215,34,216],[34,217,34,218],[34,219,34,220],[34,221,34,222],[34,223,34,224],[34,225,34,226],[34,227,34,228],[34,229,34,230],[34,231,34,232],[34,233,34,234],[34,235,34,236],[34,237,34,238],[34,239,34,240],[34,241,34,242],[34,243,34,244],[34,245,34,246],[34,247,34,248],[34,249,34,250],[34,251,34,252],[34,253,34,254],[32,215,32,216],[32,233,32,234],[32,235,32,236],[32,237,32,238],[32,239,32,240],[32,241,32,242],[32,243,32,244],[32,275,32,276],[32,277,32,278],[32,279,32,280],[32,281,32,282],[32,283,32,284],[32,285,32,286],[34,189,34,190],[34,191,34,192],[34,193,34,194],[34,195,34,196],[34,197,34,198],[34,199,34,200],[34,201,34,202],[34,203,34,204],[34,205,34,206],[32,217,32,218],[32,219,32,220],[32,221,32,222],[32,223,32,224],[32,225,32,226],[32,227,32,228],[32,229,32,230],[32,231,32,232],[34,207,34,208],[34,209,34,210],[34,211,34,212],[33,203,33,204],[33,199,33,200],[33,201,33,202],[33,235,33,236],[33,253,33,254],[33,257,33,258],[32,179,32,180],[32,181,32,182],[32,183,32,184],[32,185,32,186],[32,187,32,188],[32,189,32,190],[32,191,32,192],[32,193,32,194],[32,195,32,196],[32,197,32,198],[32,199,32,200],[32,201,32,202],[32,203,32,204],[32,205,32,206],[32,245,32,246],[32,247,32,248],[32,207,32,208],[32,209,32,210],[32,211,32,212],[34,173,34,174],[34,175,34,176],[34,177,34,178],[34,179,34,180],[34,181,34,182],[34,183,34,184],[34,185,34,186],[34,187,34,188],[32,165,32,166],[32,167,32,168],[32,169,32,170],[34,131,34,132],[34,133,34,134],[34,135,34,136],[34,137,34,138],[34,139,34,140],[34,141,34,142],[34,143,34,144],[34,145,34,146],[34,147,34,148],[34,149,34,150],[34,151,34,152],[34,153,34,154],[34,155,34,156],[34,157,34,158],[34,159,34,160],[34,161,34,162],[34,163,34,164],[34,165,34,166],[32,173,32,174],[32,175,32,176],[32,177,32,178],[34,167,34,168],[34,169,34,170],[32,131,32,132],[32,133,32,134],[32,135,32,136],[32,137,32,138],[32,139,32,140],[32,141,32,142],[32,143,32,144],[32,145,32,146],[32,147,32,148],[32,153,32,154],[32,155,32,156],[32,157,32,158],[32,159,32,160],[32,161,32,162],[32,163,32,164],[33,163,33,164],[33,165,33,166],[33,167,33,168],[33,169,33,170],[32,123,32,124],[32,125,32,126],[32,127,32,128],[34,89,34,90],[34,91,34,92],[34,93,34,94],[34,95,34,96],[34,97,34,98],[34,99,34,100],[34,101,34,102],[34,103,34,104],[34,105,34,106],[34,107,34,108],[34,109,34,110],[34,111,34,112],[34,113,34,114],[34,115,34,116],[34,117,34,118],[34,119,34,120],[34,121,34,122],[34,123,34,124],[34,125,34,126],[34,127,34,128],[32,89,32,90],[32,103,32,104],[32,105,32,106],[32,107,32,108],[32,109,32,110],[32,111,32,112],[32,113,32,114],[32,115,32,116],[32,117,32,118],[32,119,32,120],[32,121,32,122],[32,77,32,78],[32,79,32,80],[32,81,32,82],[32,83,32,84],[32,85,32,86],[32,149,32,150],[32,151,32,152],[34,59,34,60],[34,61,34,62],[34,63,34,64],[34,65,34,66],[34,67,34,68],[34,69,34,70],[34,71,34,72],[34,73,34,74],[34,75,34,76],[34,77,34,78],[34,79,34,80],[32,91,32,92],[32,93,32,94],[32,95,32,96],[32,97,32,98],[32,99,32,100],[32,101,32,102],[34,81,34,82],[34,83,34,84],[34,85,34,86],[33,97,33,98],[33,123,33,124],[33,125,33,126],[34,41,34,42],[34,43,34,44],[32,47,32,48],[32,49,32,50],[32,51,32,52],[32,53,32,54],[32,55,32,56],[32,57,32,58],[32,59,32,60],[32,61,32,62],[32,63,32,64],[32,65,32,66],[32,67,32,68],[32,69,32,70],[32,71,32,72],[32,73,32,74],[32,75,32,76],[33,49,33,50],[33,51,33,52],[33,53,33,54],[33,55,33,56],[33,57,33,58],[33,59,33,60],[34,47,34,48],[34,49,34,50],[34,51,34,52],[34,53,34,54],[34,55,34,56],[34,57,34,58],[32,15,32,16],[32,17,32,18],[32,19,32,20],[32,21,32,22],[32,23,32,24],[32,25,32,26],[32,27,32,28],[32,29,32,30],[32,31,32,32],[32,33,32,34],[32,35,32,36],[32,37,32,38],[32,39,32,40],[32,41,32,42],[32,43,32,44],[34,7,34,8],[34,9,34,10],[34,11,34,12],[34,13,34,14],[34,15,34,16],[34,17,34,18],[34,19,34,20],[34,21,34,22],[34,23,34,24],[34,25,34,26],[34,27,34,28],[34,29,34,30],[34,31,34,32],[34,33,34,34],[34,35,34,36],[34,37,34,38],[34,39,34,40],[5,417,5,418],[5,419,5,420],[5,421,5,422],[7,383,7,384],[7,385,7,386],[7,387,7,388],[7,389,7,390],[7,391,7,392],[7,393,7,394],[7,395,7,396],[7,397,7,398],[7,399,7,400],[7,401,7,402],[7,403,7,404],[7,405,7,406],[7,407,7,408],[7,409,7,410],[7,411,7,412],[7,413,7,414],[7,415,7,416],[7,417,7,418],[7,419,7,420],[7,421,7,422],[5,383,5,384],[5,385,5,386],[5,387,5,388],[5,389,5,390],[5,391,5,392],[5,393,5,394],[5,395,5,396],[5,397,5,398],[5,399,5,400],[5,401,5,402],[5,403,5,404],[5,405,5,406],[5,407,5,408],[5,409,5,410],[5,411,5,412],[5,413,5,414],[5,415,5,416],[5,375,5,376],[5,377,5,378],[5,379,5,380],[7,341,7,342],[7,343,7,344],[7,345,7,346],[7,347,7,348],[7,349,7,350],[7,351,7,352],[7,353,7,354],[7,355,7,356],[7,357,7,358],[7,359,7,360],[7,361,7,362],[7,363,7,364],[7,365,7,366],[7,367,7,368],[7,369,7,370],[7,371,7,372],[7,373,7,374],[7,375,7,376],[7,377,7,378],[7,379,7,380],[5,341,5,342],[5,343,5,344],[5,345,5,346],[5,347,5,348],[5,349,5,350],[5,351,5,352],[5,353,5,354],[5,355,5,356],[5,357,5,358],[5,359,5,360],[5,361,5,362],[5,363,5,364],[5,365,5,366],[5,367,5,368],[5,369,5,370],[5,371,5,372],[5,373,5,374],[5,333,5,334],[5,335,5,336],[5,337,5,338],[7,299,7,300],[7,301,7,302],[7,303,7,304],[7,305,7,306],[7,307,7,308],[7,309,7,310],[7,311,7,312],[7,313,7,314],[7,315,7,316],[7,317,7,318],[7,319,7,320],[7,321,7,322],[7,323,7,324],[7,325,7,326],[7,327,7,328],[7,329,7,330],[7,331,7,332],[7,333,7,334],[7,335,7,336],[7,337,7,338],[5,299,5,300],[5,301,5,302],[5,303,5,304],[5,305,5,306],[5,307,5,308],[5,309,5,310],[5,311,5,312],[5,313,5,314],[5,315,5,316],[5,317,5,318],[5,319,5,320],[5,321,5,322],[5,323,5,324],[5,325,5,326],[5,327,5,328],[5,329,5,330],[5,331,5,332],[6,321,6,322],[6,323,6,324],[6,325,6,326],[6,327,6,328],[6,329,6,330],[6,331,6,332],[6,309,6,310],[6,311,6,312],[6,313,6,314],[6,315,6,316],[6,317,6,318],[6,319,6,320],[5,291,5,292],[5,293,5,294],[5,295,5,296],[7,257,7,258],[7,259,7,260],[7,261,7,262],[7,263,7,264],[7,265,7,266],[7,267,7,268],[7,269,7,270],[7,271,7,272],[7,273,7,274],[7,275,7,276],[7,277,7,278],[7,279,7,280],[7,281,7,282],[7,283,7,284],[7,285,7,286],[7,287,7,288],[7,289,7,290],[7,291,7,292],[7,293,7,294],[7,295,7,296],[5,257,5,258],[5,259,5,260],[5,261,5,262],[5,263,5,264],[5,265,5,266],[5,267,5,268],[5,269,5,270],[5,271,5,272],[5,273,5,274],[5,289,5,290],[5,249,5,250],[5,251,5,252],[5,253,5,254],[7,215,7,216],[7,217,7,218],[7,219,7,220],[7,221,7,222],[7,223,7,224],[7,225,7,226],[7,227,7,228],[7,229,7,230],[7,231,7,232],[7,233,7,234],[7,235,7,236],[7,237,7,238],[7,239,7,240],[7,241,7,242],[7,243,7,244],[7,245,7,246],[7,247,7,248],[7,249,7,250],[7,251,7,252],[7,253,7,254],[5,215,5,216],[5,235,5,236],[5,237,5,238],[5,239,5,240],[5,241,5,242],[5,243,5,244],[5,245,5,246],[5,247,5,248],[5,209,5,210],[5,211,5,212],[5,275,5,276],[5,277,5,278],[5,279,5,280],[5,281,5,282],[5,283,5,284],[5,285,5,286],[5,287,5,288],[7,191,7,192],[7,193,7,194],[7,195,7,196],[7,197,7,198],[7,199,7,200],[7,201,7,202],[7,203,7,204],[7,205,7,206],[5,217,5,218],[5,219,5,220],[5,221,5,222],[5,223,5,224],[5,225,5,226],[5,227,5,228],[5,229,5,230],[5,231,5,232],[5,233,5,234],[7,207,7,208],[7,209,7,210],[7,211,7,212],[6,207,6,208],[6,209,6,210],[6,215,6,216],[5,175,5,176],[5,177,5,178],[5,179,5,180],[5,181,5,182],[5,183,5,184],[5,185,5,186],[5,187,5,188],[5,189,5,190],[5,191,5,192],[5,193,5,194],[5,195,5,196],[5,197,5,198],[5,199,5,200],[5,201,5,202],[5,203,5,204],[5,205,5,206],[5,207,5,208],[7,173,7,174],[7,175,7,176],[7,177,7,178],[7,179,7,180],[7,181,7,182],[7,183,7,184],[7,185,7,186],[7,187,7,188],[7,189,7,190],[5,165,5,166],[5,167,5,168],[5,169,5,170],[7,131,7,132],[7,133,7,134],[7,135,7,136],[7,137,7,138],[7,139,7,140],[7,141,7,142],[7,143,7,144],[7,145,7,146],[7,147,7,148],[7,149,7,150],[7,151,7,152],[7,153,7,154],[7,155,7,156],[7,157,7,158],[7,159,7,160],[7,161,7,162],[7,163,7,164],[7,165,7,166],[7,167,7,168],[5,173,5,174],[7,169,7,170],[5,131,5,132],[5,133,5,134],[5,135,5,136],[5,137,5,138],[5,139,5,140],[5,141,5,142],[5,143,5,144],[5,145,5,146],[5,147,5,148],[5,149,5,150],[5,151,5,152],[5,153,5,154],[5,155,5,156],[5,157,5,158],[5,159,5,160],[5,161,5,162],[5,163,5,164],[6,169,6,170],[5,123,5,124],[5,125,5,126],[5,127,5,128],[7,89,7,90],[7,91,7,92],[7,93,7,94],[7,95,7,96],[7,97,7,98],[7,99,7,100],[7,101,7,102],[7,103,7,104],[7,105,7,106],[7,107,7,108],[7,109,7,110],[7,111,7,112],[7,113,7,114],[7,115,7,116],[7,117,7,118],[7,119,7,120],[7,121,7,122],[7,123,7,124],[7,125,7,126],[7,127,7,128],[5,89,5,90],[5,91,5,92],[5,93,5,94],[5,95,5,96],[5,97,5,98],[5,99,5,100],[5,101,5,102],[5,103,5,104],[5,105,5,106],[5,107,5,108],[5,109,5,110],[5,111,5,112],[5,113,5,114],[5,115,5,116],[5,117,5,118],[5,119,5,120],[5,121,5,122],[5,67,5,68],[5,69,5,70],[5,71,5,72],[5,73,5,74],[5,75,5,76],[5,77,5,78],[5,79,5,80],[5,81,5,82],[5,83,5,84],[5,85,5,86],[7,47,7,48],[7,49,7,50],[7,51,7,52],[7,53,7,54],[7,55,7,56],[7,57,7,58],[7,59,7,60],[7,61,7,62],[7,63,7,64],[7,65,7,66],[7,67,7,68],[7,69,7,70],[7,71,7,72],[7,73,7,74],[7,75,7,76],[7,77,7,78],[7,79,7,80],[7,81,7,82],[7,83,7,84],[7,85,7,86],[58,299,58,304],[58,341,58,346],[58,383,58,388],[5,5,5,6],[7,5,7,6],[5,7,5,8],[5,9,5,10],[5,11,5,12],[5,13,5,14],[5,15,5,16],[5,17,5,18],[5,19,5,20],[5,21,5,22],[5,23,5,24],[5,25,5,26],[5,27,5,28],[5,29,5,30],[5,31,5,32],[5,33,5,34],[5,35,5,36],[5,37,5,38],[5,39,5,40],[5,41,5,42],[5,43,5,44],[7,7,7,8],[7,9,7,10],[7,11,7,12],[7,13,7,14],[7,15,7,16],[7,17,7,18],[7,19,7,20],[7,21,7,22],[4,1,8,3],[4,5,4,45],[4,47,4,87],[4,89,4,129],[4,131,4,171],[6,23,6,24],[6,25,6,26],[6,27,6,28],[6,29,6,30],[58,47,58,52],[58,5,58,10],[58,89,58,94],[58,131,58,136],[6,35,6,36],[6,37,6,38],[6,39,6,40],[6,41,6,42],[6,95,6,96],[6,97,6,98],[6,99,6,100],[6,101,6,102],[6,103,6,104],[6,105,6,106],[6,81,6,82],[6,83,6,84],[6,85,6,86],[6,89,6,90],[6,91,6,92],[6,93,6,94],[58,173,58,178],[58,215,58,220],[58,257,58,262],[7,23,7,24],[7,25,7,26],[7,27,7,28],[7,29,7,30],[7,31,7,32],[7,33,7,34],[7,35,7,36],[7,37,7,38],[7,39,7,40],[7,41,7,42],[7,43,7,44],[5,47,5,48],[5,49,5,50],[5,51,5,52],[5,53,5,54],[6,57,6,58],[6,59,6,60],[6,61,6,62],[6,63,6,64],[6,65,6,66],[6,67,6,68],[6,43,6,44],[6,47,6,48],[6,49,6,50],[6,51,6,52],[6,53,6,54],[6,55,6,56],[6,31,6,32],[6,33,6,34],[5,423,8,423],[6,5,6,6],[6,7,6,8],[6,9,6,10],[6,11,6,12],[6,13,6,14],[6,15,6,16],[6,17,6,18],[6,19,6,20],[6,21,6,22],[4,425,6,435],[5,45,8,45],[5,87,8,87],[5,129,8,129],[5,171,8,171],[5,213,8,213],[5,255,8,255],[5,297,8,297],[5,339,8,339],[5,381,8,381],[4,173,4,213],[4,215,4,255],[4,257,4,297],[4,299,4,339],[4,341,4,381],[4,383,4,423],[5,55,5,56],[5,57,5,58],[5,59,5,60],[5,61,5,62],[5,63,5,64],[5,65,5,66],[6,69,6,70],[6,71,6,72],[6,73,6,74],[6,75,6,76],[6,77,6,78],[6,79,6,80],[6,133,6,134],[6,135,6,136],[6,137,6,138],[6,139,6,140],[6,141,6,142],[6,143,6,144],[6,119,6,120],[6,121,6,122],[6,123,6,124],[6,125,6,126],[6,127,6,128],[6,131,6,132],[6,107,6,108],[6,109,6,110],[6,111,6,112],[6,113,6,114],[6,115,6,116],[6,117,6,118],[6,173,6,174],[6,175,6,176],[6,177,6,178],[6,179,6,180],[6,181,6,182],[6,157,6,158],[6,159,6,160],[6,161,6,162],[6,163,6,164],[6,165,6,166],[6,167,6,168],[6,145,6,146],[6,147,6,148],[6,149,6,150],[6,151,6,152],[6,153,6,154],[6,155,6,156],[6,217,6,218],[6,219,6,220],[6,195,6,196],[6,197,6,198],[6,199,6,200],[6,201,6,202],[6,203,6,204],[6,205,6,206],[6,183,6,184],[6,185,6,186],[6,187,6,188],[6,189,6,190],[6,191,6,192],[6,193,6,194],[6,245,6,246],[6,247,6,248],[6,211,6,212],[6,249,6,250],[6,251,6,252],[6,253,6,254],[6,257,6,258],[6,233,6,234],[6,235,6,236],[6,237,6,238],[6,239,6,240],[6,241,6,242],[6,243,6,244],[6,221,6,222],[6,223,6,224],[6,225,6,226],[6,227,6,228],[6,229,6,230],[6,231,6,232],[6,283,6,284],[6,285,6,286],[6,287,6,288]],"merged_total":2859,"flags":["merged_cut"]}
[null,"Electric Utility Data - Apartment Meters"]
[null,"Instructions"]
[null,"1) Enter data for pre-construction apartment-level energy use. First cell must not be blank. For months with zero consumption, please leave cell blank. \n2) Unhide columns (OD-PI) if there are more than 10 units sampled for a given unit type. You may hide columns that are not needed, do not delete them.\n3) Post-Construction data will be filled in one year after construction has been completed.\n4) Please use the \"Notes\" field below the data entry section of this tab to explain unusual circumstances, any anomalies in the data, or adjustments made. Also, please follow Program Guidelines v4.1, Section 3.2.2 for irregular delivers, outliers, and estimated bills. Section 3.2.1.1 outlines an alternative approach to calculating apartment energy use if utility bills cannot be obtained. \n\n"]
[]
[null,"Pre-Construction In-Unit Billing Dates",null,null,null,{"$f":"CONCATENATE('Utility Info'!B77,\" - \",'Utility Info'!C77)","v":"Unit Type 1 - "},null,null,null,null,null,null,null,null,null,null,null,null,null,null,null,null,null,null,null,null,null,null,null,null,null,null,null,null,null,null,null,null,null,null,null,null,null,null,null,null,null,{"$f":"CONCATENATE('Utility Info'!B78,\" - \",'Utility Info'!C78)","v":"Unit Type 2 - "},null,null,null,null,null,null,null,null,null,null,null,null,null,null,null,null,null,null,null,null,null,null,null,null,null,null,null,null,null,null,null,null,null,null,null,null,null,null,null,null,null,{"$f":"CONCATENATE('Utility Info'!B79,\" - \",'Utility Info'!C79)","v":"Unit Type 3 - "},null,null,null,null,null,null,null,null,null,null,null,null,null,null,null,null,null,null,null,null,null,null,null,null,null,null,null,null,null,null,null,null,null,null,null,null,null,null,null,null,null,{"$f":"CONCATENATE('Utility Info'!B80,\" - \",'Utility Info'!C80)","v":"Unit Type 4 - "},null,null,null,null,null,null,null,null,null,null,null,null,null,null,null,null,null,null,null,null,null,null,null,null,null,null,null,null,null,null,null,null,null,null,null,null,null,null,null,null,null,{"$f":"CONCATENATE('Utility Info'!B81,\" - \",'Utility Info'!C81)","v":"Unit Type 5 - "},null,null,null,null,null,null,null,null,null,null,null,null,null,null,null,null,null,null,null,null,null,null,null,null,null,null,null,null,null,null,null,null,null,null,null,null,null,null,null,null,null,{"$f":"CONCATENATE('Utility Info'!B82,\" - \",'Utility Info'!C82)","v":"Unit Type 6 - "},null,null,null,null,null,null,null,null,null,null,null,null,null,null,null,null,null,null,null,null,null,null,null,null,null,null,null,null,null,null,null,null,null,null,null,null,null,null,null,null,null,{"$f":"CONCATENATE('Utility Info'!B83,\" - \",'Utility Info'!C83)","v":"Unit Type 7 - "},null,null,null,null,null,null,null,null,null,null,null,null,null,null,null,null,null,null,null,null,null,null,null,null,null,null,null,null,null,null,null,null,null,null,null,null,null,null,null,null,null,{"$f":"CONCATENATE('Utility Info'!B84,\" - \",'Utility Info'!C84)","v":"Unit Type 8 - "},null,null,null,null,null,null,null,null,null,null,null,null,null,null,null,null,null,null,null,null,null,null,null,null,null,null,null,null,null,null,null,null,null,null,null,null,null,null,null,null,null,{"$f":"CONCATENATE('Utility Info'!B85,\" - \",'Utility Info'!C85)","v":"Unit Type 9 - "},null,null,null,null,null,null,null,null,null,null,null,null,null,null,null,null,null,null,null,null,null,null,null,null,null,null,null,null,null,null,null,null,null,null,null,null,null,null,null,null,null,{"$f":"CONCATENATE('Utility Info'!B86,\" - \",'Utility Info'!C86)","v":"Unit Type 10 - "},null,null,null,null,null,null,null,null,null,null,null,null,null,null,null,null,null,null,null,null,null,null,null,null,null,null,null,null,null,null,null,null,null,null,null,null,null,null,null,null,null,"PRE-CONSTRUCTION\nSummary of In-Unit Electricity Use"]
[null,null,null,null,null,"Unit #:",null,"Unit #:",null,"Unit #:",null,"Unit #:",null,"Unit #:",null,"Unit #:",null,"Unit #:",null,"Unit #:",null,"Unit #:",null,"Unit #:",null,"Unit #:",null,"Unit #:",null,"Unit #:",null,"Unit #:",null,"Unit #:",null,"Unit #:",null,"Unit #:",null,"Unit #:",null,"Unit #:",null,"Unit #:",null,"SUMMARY",null,"Unit #:",null,"Unit #:",null,"Unit #:",null,"Unit #:",null,"Unit #:",null,"Unit #:",null,"Unit #:",null,"Unit #:",null,"Unit #:",null,"Unit #:",null,"Unit #:",null,"Unit #:",null,"Unit #:",null,"Unit #:",null,"Unit #:",null,"Unit #:",null,"Unit #:",null,"Unit #:",null,"Unit #:",null,"Unit #:",null,"SUMMARY",null,"Unit #:",null,"Unit #:",null,"Unit #:",null,"Unit #:",null,"Unit #:",null,"Unit #:",null,"Unit #:",null,"Unit #:",null,"Unit #:",null,"Unit #:",null,"Unit #:",null,"Unit #:",null,"Unit #:",null,"Unit #:",null,"Unit #:",null,"Unit #:",null,"Unit #:",null,"Unit #:",null,"Unit #:",null,"Unit #:",null,"SUMMARY",null,"Unit #:",null,"Unit #:",null,"Unit #:",null,"Unit #:",null,"Unit #:",null,"Unit #:",null,"Unit #:",null,"Unit #:",null,"Unit #:",null,"Unit #:",null,"Unit #:",null,"Unit #:",null,"Unit #:",null,"Unit #:",null,"Unit #:",null,"Unit #:",null,"Unit #:",null,"Unit #:",null,"Unit #:",null,"Unit #:",null,"SUMMARY",null,"Unit #:",null,"Unit #:",null,"Unit #:",null,"Unit #:",null,"Unit #:",null,"Unit #:",null,"Unit #:",null,"Unit #:",null,"Unit #:",null,"Unit #:",null,"Unit #:",null,"Unit #:",null,"Unit #:",null,"Unit #:",null,"Unit #:",null,"Unit #:",null,"Unit #:",null,"Unit #:",null,"Unit #:",null,"Unit #:",null,"SUMMARY",null,"Unit #:",null,"Unit #:",null,"Unit #:",null,"Unit #:",null,"Unit #:",null,"Unit #:",null,"Unit #:",null,"Unit #:",null,"Unit #:",null,"Unit #:",null,"Unit #:",null,"Unit #:",null,"Unit #:",null,"Unit #:",null,"Unit #:",null,"Unit #:",null,"Unit #:",null,"Unit #:",null,"Unit #:",null,"Unit #:",null,"SUMMARY",null,"Unit #:",null,"Unit #:",null,"Unit #:",null,"Unit #:",null,"Unit #:",null,"Unit #:",null,"Unit #:",null,"Unit #:",null,"Unit #:",null,"Unit #:",null,"Unit #:",null,"Unit #:",null,"Unit #:",null,"Unit #:",null,"Unit #:",null,"Unit #:",null,"Unit #:",null,"Unit #:",null,"Unit #:",null,"Unit #:",null,"SUMMARY",null,"Unit #:",null,"Unit #:",null,"Unit #:",null,"Unit #:",null,"Unit #:",null,"Unit #:",null,"Unit #:",null,"Unit #:",null,"Unit #:",null,"Unit #:",null,"Unit #:",null,"Unit #:",null,"Unit #:",null,"Unit #:",null,"Unit #:",null,"Unit #:",null,"Unit #:",null,"Unit #:",null,"Unit #:",null,"Unit #:",null,"SUMMARY",null,"Unit #:",null,"Unit #:",null,"Unit #:",null,"Unit #:",null,"Unit #:",null,"Unit #:",null,"Unit #:",null,"Unit #:",null,"Unit #:",null,"Unit #:",null,"Unit #:",null,"Unit #:",null,"Unit #:",null,"Unit #:",null,"Unit #:",null,"Unit #:",null,"Unit #:",null,"Unit #:",null,"Unit #:",null,"Unit #:",null,"SUMMARY",null,"Unit #:",null,"Unit #:",null,"Unit #:",null,"Unit #:",null,"Unit #:",null,"Unit #:",null,"Unit #:",null,"Unit #:",null,"Unit #:",null,"Unit #:",null,"Unit #:",null,"Unit #:",null,"Unit #:",null,"Unit #:",null,"Unit #:",null,"Unit #:",null,"Unit #:",null,"Unit #:",null,"Unit #:",null,"Unit #:",null,"SUMMARY"]
[]
[null,null,null,null,null,"Account #:",null,"Account #:",null,"Account #:",null,"Account #:",null,"Account #:",null,"Account #:",null,"Account #:",null,"Account #:",null,"Account #:",null,"Account #:",null,"Account #:",null,"Account #:",null,"Account #:",null,"Account #:",null,"Account #:",null,"Account #:",null,"Account #:",null,"Account #:",null,"Account #:",null,"Account #:",null,null,null,"Account #:",null,"Account #:",null,"Account #:",null,"Account #:",null,"Account #:",null,"Account #:",null,"Account #:",null,"Account #:",null,"Account #:",null,"Account #:",null,"Account #:",null,"Account #:",null,"Account #:",null,"Account #:",null,"Account #:",null,"Account #:",null,"Account #:",null,"Account #:",null,"Account #:",null,"Account #:",null,null,null,"Account #:",null,"Account #:",null,"Account #:",null,"Account #:",null,"Account #:",null,"Account #:",null,"Account #:",null,"Account #:",null,"Account #:",null,"Account #:",null,"Account #:",null,"Account #:",null,"Account #:",null,"Account #:",null,"Account #:",null,"Account #:",null,"Account #:",null,"Account #:",null,"Account #:",null,"Account #:",null,null,null,"Account #:",null,"Account #:",null,"Account #:",null,"Account #:",null,"Account #:",null,"Account #:",null,"Account #:",null,"Account #:",null,"Account #:",null,"Account #:",null,"Account #:",null,"Account #:",null,"Account #:",null,"Account #:",null,"Account #:",null,"Account #:",null,"Account #:",null,"Account #:",null,"Account #:",null,"Account #:",null,null,null,"Account #:",null,"Account #:",null,"Account #:",null,"Account #:",null,"Account #:",null,"Account #:",null,"Account #:",null,"Account #:",null,"Account #:",null,"Account #:",null,"Account #:",null,"Account #:",null,"Account #:",null,"Account #:",null,"Account #:",null,"Account #:",null,"Account #:",null,"Account #:",null,"Account #:",null,"Account #:",null,null,null,"Account #:",null,"Account #:",null,"Account #:",null,"Account #:",null,"Account #:",null,"Account #:",null,"Account #:",null,"Account #:",null,"Account #:",null,"Account #:",null,"Account #:",null,"Account #:",null,"Account #:",null,"Account #:",null,"Account #:",null,"Account #:",null,"Account #:",null,"Account #:",null,"Account #:",null,"Account #:",null,null,null,"Account #:",null,"Account #:",null,"Account #:",null,"Account #:",null,"Account #:",null,"Account #:",null,"Account #:",null,"Account #:",null,"Account #:",null,"Account #:",null,"Account #:",null,"Account #:",null,"Account #:",null,"Account #:",null,"Account #:",null,"Account #:",null,"Account #:",null,"Account #:",null,"Account #:",null,"Account #:",null,null,null,"Account #:",null,"Account #:",null,"Account #:",null,"Account #:",null,"Account #:",null,"Account #:",null,"Account #:",null,"Account #:",null,"Account #:",null,"Account #:",null,"Account #:",null,"Account #:",null,"Account #:",null,"Account #:",null,"Account #:",null,"Account #:",null,"Account #:",null,"Account #:",null,"Account #:",null,"Account #:",null,null,null,"Account #:",null,"Account #:",null,"Account #:",null,"Account #:",null,"Account #:",null,"Account #:",null,"Account #:",null,"Account #:",null,"Account #:",null,"Account #:",null,"Account #:",null,"Account #:",null,"Account #:",null,"Account #:",null,"Account #:",null,"Account #:",null,"Account #:",null,"Account #:",null,"Account #:",null,"Account #:",null,null,null,"Account #:",null,"Account #:",null,"Account #:",null,"Account #:",null,"Account #:",null,"Account #:",null,"Account #:",null,"Account #:",null,"Account #:",null,"Account #:",null,"Account #:",null,"Account #:",null,"Account #:",null,"Account #:",null,"Account #:",null,"Account #:",null,"Account #:",null,"Account #:",null,"Account #:",null,"Account #:",null,null,null,{"$f":"'Utility Info'!$D$77","v":0},{"$f":"'Utility Info'!$D$78","v":0},{"$f":"'Utility Info'!$D$79","v":0},{"$f":"'Utility Info'!$D$80","v":0},{"$f":"'Utility Info'!$D$81","v":0},{"$f":"'Utility Info'!$D$82","v":0},{"$f":"'Utility Info'!$D$83","v":0},{"$f":"'Utility Info'!$D$84","v":0},{"$f":"'Utility Info'!$D$85","v":0},{"$f":"'Utility Info'!$D$86","v":0}]
[null,null,null,null,null,null,null,null,null,null,null,null,null,null,null,null,null,null,null,null,null,null,null,null,null,null,null,null,null,null,null,null,null,null,null,null,null,null,null,null,null,null,null,null,null,null,null,null,null,null,null,null,null,null,null,null,null,null,null,null,null,null,null,null,null,null,null,null,null,null,null,null,null,null,null,null,null,null,null,null,null,null,null,null,null,null,null,null,null,null,null,null,null,null,null,null,null,null,null,null,null,null,null,null,null,null,null,null,null,null,null,null,null,null,null,null,null,null,null,null,null,null,null,null,null,null,null,null,null,null,null,null,null,null,null,null,null,null,null,null,null,null,null,null,null,null,null,null,null,null,null,null,null,null,null,null,null,null,null,null,null,null,null,null,null,null,null,null,null,null,null,null,null,null,null,null,null,null,null,null,null,null,null,null,null,null,null,null,null,null,null,null,null,null,null,null,null,null,null,null,null,null,null,null,null,null,null,null,null,null,null,null,null,null,null,null,null,null,null,null,null,null,null,null,null,null,null,null,null,null,null,null,null,null,null,null,null,null,null,null,null,null,null,null,null,null,null,null,null,null,null,null,null,null,null,null,null,null,null,null,null,null,null,null,null,null,null,null,null,null,null,null,null,null,null,null,null,null,null,null,null,null,null,null,null,null,null,null,null,null,null,null,null,null,null,null,null,null,null,null,null,null,null,null,null,null,null,null,null,null,null,null,null,null,null,null,null,null,null,null,null,null,null,null,null,null,null,null,null,null,null,null,null,null,null,null,null,null,null,null,null,null,null,null,null,null,null,null,null,null,null,null,null,null,null,null,null,null,null,null,null,null,null,null,null,null,null,null,null,null,null,null,null,null,null,null,null,null,null,null,null,null,null,null,null,null,null,null,null,null,null,null,null,null,null,null,null,null,null,null,null,null,null,null,null,null,null,null,null,null,null,null,null,null,null,null,null,null,null,null,null,null,null,null,null,{"$f":"'Utility Info'!B77","v":"Unit Type 1"},{"$f":"'Utility Info'!B78","v":"Unit Type 2"},{"$f":"'Utility Info'!B79","v":"Unit Type 3"},{"$f":"'Utility Info'!B80","v":"Unit Type 4"},{"$f":"'Utility Info'!B81","v":"Unit Type 5"},{"$f":"'Utility Info'!B82","v":"Unit Type 6"},{"$f":"'Utility Info'!B83","v":"Unit Type 7"},{"$f":"'Utility Info'!B84","v":"Unit Type 8"},{"$f":"'Utility Info'!B85","v":"Unit Type 9"},{"$f":"'Utility Info'!B86","v":"Unit Type 10"},"SUMMARY"]
[null,"Billing Period Start Date","Read Date","Days in Billing Period",null,"kWh","Actual/ Estimated","kWh","Actual/ Estimated","kWh","Actual/ Estimated","kWh","Actual/ Estimated","kWh","Actual/ Estimated","kWh","Actual/ Estimated","kWh","Actual/ Estimated","kWh","Actual/ Estimated","kWh","Actual/ Estimated","kWh","Actual/ Estimated","kWh","Actual/ Estimated","kWh","Actual/ Estimated","kWh","Actual/ Estimated","kWh","Actual/ Estimated","kWh","Actual/ Estimated","kWh","Actual/ Estimated","kWh","Actual/ Estimated","kWh","Actual/ Estimated","kWh","Actual/ Estimated","kWh","Actual/ Estimated","Average kWh Consumption",null,"kWh","Actual/ Estimated","kWh","Actual/ Estimated","kWh","Actual/ Estimated","kWh","Actual/ Estimated","kWh","Actual/ Estimated","kWh","Actual/ Estimated","kWh","Actual/ Estimated","kWh","Actual/ Estimated","kWh","Actual/ Estimated","kWh","Actual/ Estimated","kWh","Actual/ Estimated","kWh","Actual/ Estimated","kWh","Actual/ Estimated","kWh","Actual/ Estimated","kWh","Actual/ Estimated","kWh","Actual/ Estimated","kWh","Actual/ Estimated","kWh","Actual/ Estimated","kWh","Actual/ Estimated","kWh","Actual/ Estimated","Average kWh Consumption",null,"kWh","Actual/ Estimated","kWh","Actual/ Estimated","kWh","Actual/ Estimated","kWh","Actual/ Estimated","kWh","Actual/ Estimated","kWh","Actual/ Estimated","kWh","Actual/ Estimated","kWh","Actual/ Estimated","kWh","Actual/ Estimated","kWh","Actual/ Estimated","kWh","Actual/ Estimated","kWh","Actual/ Estimated","kWh","Actual/ Estimated","kWh","Actual/ Estimated","kWh","Actual/ Estimated","kWh","Actual/ Estimated","kWh","Actual/ Estimated","kWh","Actual/ Estimated","kWh","Actual/ Estimated","kWh","Actual/ Estimated","Average kWh Consumption",null,"kWh","Actual/ Estimated","kWh","Actual/ Estimated","kWh","Actual/ Estimated","kWh","Actual/ Estimated","kWh","Actual/ Estimated","kWh","Actual/ Estimated","kWh","Actual/ Estimated","kWh","Actual/ Estimated","kWh","Actual/ Estimated","kWh","Actual/ Estimated","kWh","Actual/ Estimated","kWh","Actual/ Estimated","kWh","Actual/ Estimated","kWh","Actual/ Estimated","kWh","Actual/ Estimated","kWh","Actual/ Estimated","kWh","Actual/ Estimated","kWh","Actual/ Estimated","kWh","Actual/ Estimated","kWh","Actual/ Estimated","Average kWh Consumption",null,"kWh","Actual/ Estimated","kWh","Actual/ Estimated","kWh","Actual/ Estimated","kWh","Actual/ Estimated","kWh","Actual/ Estimated","kWh","Actual/ Estimated","kWh","Actual/ Estimated","kWh","Actual/ Estimated","kWh","Actual/ Estimated","kWh","Actual/ Estimated","kWh","Actual/ Estimated","kWh","Actual/ Estimated","kWh","Actual/ Estimated","kWh","Actual/ Estimated","kWh","Actual/ Estimated","kWh","Actual/ Estimated","kWh","Actual/ Estimated","kWh","Actual/ Estimated","kWh","Actual/ Estimated","kWh","Actual/ Estimated","Average kWh Consumption",null,"kWh","Actual/ Estimated","kWh","Actual/ Estimated","kWh","Actual/ Estimated","kWh","Actual/ Estimated","kWh","Actual/ Estimated","kWh","Actual/ Estimated","kWh","Actual/ Estimated","kWh","Actual/ Estimated","kWh","Actual/ Estimated","kWh","Actual/ Estimated","kWh","Actual/ Estimated","kWh","Actual/ Estimated","kWh","Actual/ Estimated","kWh","Actual/ Estimated","kWh","Actual/ Estimated","kWh","Actual/ Estimated","kWh","Actual/ Estimated","kWh","Actual/ Estimated","kWh","Actual/ Estimated","kWh","Actual/ Estimated","Average kWh Consumption",null,"kWh","Actual/ Estimated","kWh","Actual/ Estimated","kWh","Actual/ Estimated","kWh","Actual/ Estimated","kWh","Actual/ Estimated","kWh","Actual/ Estimated","kWh","Actual/ Estimated","kWh","Actual/ Estimated","kWh","Actual/ Estimated","kWh","Actual/ Estimated","kWh","Actual/ Estimated","kWh","Actual/ Estimated","kWh","Actual/ Estimated","kWh","Actual/ Estimated","kWh","Actual/ Estimated","kWh","Actual/ Estimated","kWh","Actual/ Estimated","kWh","Actual/ Estimated","kWh","Actual/ Estimated","kWh","Actual/ Estimated","Average kWh Consumption",null,"kWh","Actual/ Estimated","kWh","Actual/ Estimated","kWh","Actual/ Estimated","kWh","Actual/ Estimated","kWh","Actual/ Estimated","kWh","Actual/ Estimated","kWh","Actual/ Estimated","kWh","Actual/ Estimated","kWh","Actual/ Estimated","kWh","Actual/ Estimated","kWh","Actual/ Estimated","kWh","Actual/ Estimated","kWh","Actual/ Estimated","kWh","Actual/ Estimated","kWh","Actual/ Estimated","kWh","Actual/ Estimated","kWh","Actual/ Estimated","kWh","Actual/ Estimated","kWh","Actual/ Estimated","kWh","Actual/ Estimated","Average kWh Consumption",null,"kWh","Actual/ Estimated","kWh","Actual/ Estimated","kWh","Actual/ Estimated","kWh","Actual/ Estimated","kWh","Actual/ Estimated","kWh","Actual/ Estimated","kWh","Actual/ Estimated","kWh","Actual/ Estimated","kWh","Actual/ Estimated","kWh","Actual/ Estimated","kWh","Actual/ Estimated","kWh","Actual/ Estimated","kWh","Actual/ Estimated","kWh","Actual/ Estimated","kWh","Actual/ Estimated","kWh","Actual/ Estimated","kWh","Actual/ Estimated","kWh","Actual/ Estimated","kWh","Actual/ Estimated","kWh","Actual/ Estimated","Average kWh Consumption",null,"kWh","Actual/ Estimated","kWh","Actual/ Estimated","kWh","Actual/ Estimated","kWh","Actual/ Estimated","kWh","Actual/ Estimated","kWh","Actual/ Estimated","kWh","Actual/ Estimated","kWh","Actual/ Estimated","kWh","Actual/ Estimated","kWh","Actual/ Estimated","kWh","Actual/ Estimated","kWh","Actual/ Estimated","kWh","Actual/ Estimated","kWh","Actual/ Estimated","kWh","Actual/ Estimated","kWh","Actual/ Estimated","kWh","Actual/ Estimated","kWh","Actual/ Estimated","kWh","Actual/ Estimated","kWh","Actual/ Estimated","Average kWh Consumption",null,"Average kWh Consumption","Average kWh Consumption","Average kWh Consumption","Average kWh Consumption","Average kWh Consumption","Average kWh Consumption","Average kWh Consumption","Average kWh Consumption","Average kWh Consumption","Average kWh Consumption","Total In-Unit kWh Consumption"]
[]
[null,{"$f":"C11+1","v":"1900-01-01"},null,{"$f":"IF(C12>0,C12+1-B12,0)","v":0},null,null,null,null,null,null,null,null,null,null,null,null,null,null,null,null,null,null,null,null,null,null,null,null,null,null,null,null,null,null,null,null,null,null,null,null,null,null,null,null,null,{"$f":"IF(ISBLANK(F12),\"\",AVERAGE(F12:AR12))","v":""},null,null,null,null,null,null,null,null,null,null,null,null,null,null,null,null,null,null,null,null,null,null,null,null,null,null,null,null,null,null,null,null,null,null,null,null,null,null,null,null,null,{"$f":"IF(ISBLANK(AV12),\"\",AVERAGE(AV12:CH12))","v":""},null,null,null,null,null,null,null,null,null,null,null,null,null,null,null,null,null,null,null,null,null,null,null,null,null,null,null,null,null,null,null,null,null,null,null,null,null,null,null,null,null,{"$f":"IF(ISBLANK(CL12),\"\",AVERAGE(CL12:DX12))","v":""},null,null,null,null,null,null,null,null,null,null,null,null,null,null,null,null,null,null,null,null,null,null,null,null,null,null,null,null,null,null,null,null,null,null,null,null,null,null,null,null,null,{"$f":"IF(ISBLANK(EB12),\"\",AVERAGE(EB12:FN12))","v":""},null,null,null,null,null,null,null,null,null,null,null,null,null,null,null,null,null,null,null,null,null,null,null,null,null,null,null,null,null,null,null,null,null,null,null,null,null,null,null,null,null,{"$f":"IF(ISBLANK(FR12),\"\",AVERAGE(FR12:HD12))","v":""},null,null,null,null,null,null,null,null,null,null,null,null,null,null,null,null,null,null,null,null,null,null,null,null,null,null,null,null,null,null,null,null,null,null,null,null,null,null,null,null,null,{"$f":"IF(ISBLANK(HH12),\"\",AVERAGE(HH12:IT12))","v":""},null,null,null,null,null,null,null,null,null,null,null,null,null,null,null,null,null,null,null,null,null,null,null,null,null,null,null,null,null,null,null,null,null,null,null,null,null,null,null,null,null,{"$f":"IF(ISBLANK(IX12),\"\",AVERAGE(IX12:KJ12))","v":""},null,null,null,null,null,null,null,null,null,null,null,null,null,null,null,null,null,null,null,null,null,null,null,null,null,null,null,null,null,null,null,null,null,null,null,null,null,null,null,null,null,{"$f":"IF(ISBLANK(KN12),\"\",AVERAGE(KN12:LZ12))","v":""},null,null,null,null,null,null,null,null,null,null,null,null,null,null,null,null,null,null,null,null,null,null,null,null,null,null,null,null,null,null,null,null,null,null,null,null,null,null,null,null,null,{"$f":"IF(ISBLANK(MD12),\"\",AVERAGE(MD12:NP12))","v":""},null,null,null,null,null,null,null,null,null,null,null,null,null,null,null,null,null,null,null,null,null,null,null,null,null,null,null,null,null,null,null,null,null,null,null,null,null,null,null,null,null,{"$f":"IF(ISBLANK(NT12),\"\",AVERAGE(NT12:PF12))","v":""},null,{"$f":"IF(AT12=\"\",0,AT12)","v":0},{"$f":"IF(CJ12=\"\",0,CJ12)","v":0},{"$f":"IF(DZ12=\"\",0,DZ12)","v":0},{"$f":"IF(FP12=\"\",0,FP12)","v":0},{"$f":"IF(HF12=\"\",0,HF12)","v":0},{"$f":"IF(IV12=\"\",0,IV12)","v":0},{"$f":"IF(KL12=\"\",0,KL12)","v":0},{"$f":"IF(MB12=\"\",0,MB12)","v":0},{"$f":"IF(NR12=\"\",0,NR12)","v":0},{"$f":"IF(PH12=\"\",0,PH12)","v":0},{"$f":"SUMPRODUCT($PJ$8:$PS$8,PJ12:PS12)","v":0}]
[null,{"$f":"C12+1","v":"1900-01-01"},null,0,null,null,null,null,null,null,null,null,null,null,null,null,null,null,null,null,null,null,null,null,null,null,null,null,null,null,null,null,null,null,null,null,null,null,null,null,null,null,null,null,null,"",null,null,null,null,null,null,null,null,null,null,null,null,null,null,null,null,null,null,null,null,null,null,null,null,null,null,null,null,null,null,null,null,null,null,null,null,null,null,null,null,null,"",null,null,null,null,null,null,null,null,null,null,null,null,null,null,null,null,null,null,null,null,null,null,null,null,null,null,null,null,null,null,null,null,null,null,null,null,null,null,null,null,null,"",null,null,null,null,null,null,null,null,null,null,null,null,null,null,null,null,null,null,null,null,null,null,null,null,null,null,null,null,null,null,null,null,null,null,null,null,null,null,null,null,null,"",null,null,null,null,null,null,null,null,null,null,null,null,null,null,null,null,null,null,null,null,null,null,null,null,null,null,null,null,null,null,null,null,null,null,null,null,null,null,null,null,null,"",null,null,null,null,null,null,null,null,null,null,null,null,null,null,null,null,null,null,null,null,null,null,null,null,null,null,null,null,null,null,null,null,null,null,null,null,null,null,null,null,null,"",null,null,null,null,null,null,null,null,null,null,null,null,null,null,null,null,null,null,null,null,null,null,null,null,null,null,null,null,null,null,null,null,null,null,null,null,null,null,null,null,null,"",null,null,null,null,null,null,null,null,null,null,null,null,null,null,null,null,null,null,null,null,null,null,null,null,null,null,null,null,null,null,null,null,null,null,null,null,null,null,null,null,null,"",null,null,null,null,null,null,null,null,null,null,null,null,null,null,null,null,null,null,null,null,null,null,null,null,null,null,null,null,null,null,null,null,null,null,null,null,null,null,null,null,null,"",null,null,null,null,null,null,null,null,null,null,null,null,null,null,null,null,null,null,null,null,null,null,null,null,null,null,null,null,null,null,null,null,null,null,null,null,null,null,null,null,null,"",null,0,0,0,0,0,0,0,0,0,0,{"$f":"SUMPRODUCT($PJ$8:$PS$8,PJ13:PS13)","v":0}]
[null,"1900-01-01",null,0,null,null,null,null,null,null,null,null,null,null,null,null,null,null,null,null,null,null,null,null,null,null,null,null,null,null,null,null,null,null,null,null,null,null,null,null,null,null,null,null,null,"",null,null,null,null,null,null,null,null,null,null,null,null,null,null,null,null,null,null,null,null,null,null,null,null,null,null,null,null,null,null,null,null,null,null,null,null,null,null,null,null,null,"",null,null,null,null,null,null,null,null,null,null,null,null,null,null,null,null,null,null,null,null,null,null,null,null,null,null,null,null,null,null,null,null,null,null,null,null,null,null,null,null,null,"",null,null,null,null,null,null,null,null,null,null,null,null,null,null,null,null,null,null,null,null,null,null,null,null,null,null,null,null,null,null,null,null,null,null,null,null,null,null,null,null,null,"",null,null,null,null,null,null,null,null,null,null,null,null,null,null,null,null,null,null,null,null,null,null,null,null,null,null,null,null,null,null,null,null,null,null,null,null,null,null,null,null,null,"",null,null,null,null,null,null,null,null,null,null,null,null,null,null,null,null,null,null,null,null,null,null,null,null,null,null,null,null,null,null,null,null,null,null,null,null,null,null,null,null,null,"",null,null,null,null,null,null,null,null,null,null,null,null,null,null,null,null,null,null,null,null,null,null,null,null,null,null,null,null,null,null,null,null,null,null,null,null,null,null,null,null,null,"",null,null,null,null,null,null,null,null,null,null,null,null,null,null,null,null,null,null,null,null,null,null,null,null,null,null,null,null,null,null,null,null,null,null,null,null,null,null,null,null,null,"",null,null,null,null,null,null,null,null,null,null,null,null,null,null,null,null,null,null,null,null,null,null,null,null,null,null,null,null,null,null,null,null,null,null,null,null,null,null,null,null,null,"",null,null,null,null,null,null,null,null,null,null,null,null,null,null,null,null,null,null,null,null,null,null,null,null,null,null,null,null,null,null,null,null,null,null,null,null,null,null,null,null,null,"",null,0,0,0,0,0,0,0,0,0,0,0]
[null,"1900-01-01",null,0,null,null,null,null,null,null,null,null,null,null,null,null,null,null,null,null,null,null,null,null,null,null,null,null,null,null,null,null,null,null,null,null,null,null,null,null,null,null,null,null,null,"",null,null,null,null,null,null,null,null,null,null,null,null,null,null,null,null,null,null,null,null,null,null,null,null,null,null,null,null,null,null,null,null,null,null,null,null,null,null,null,null,null,"",null,null,null,null,null,null,null,null,null,null,null,null,null,null,null,null,null,null,null,null,null,null,null,null,null,null,null,null,null,null,null,null,null,null,null,null,null,null,null,null,null,"",null,null,null,null,null,null,null,null,null,null,null,null,null,null,null,null,null,null,null,null,null,null,null,null,null,null,null,null,null,null,null,null,null,null,null,null,null,null,null,null,null,"",null,null,null,null,null,null,null,null,null,null,null,null,null,null,null,null,null,null,null,null,null,null,null,null,null,null,null,null,null,null,null,null,null,null,null,null,null,null,null,null,null,"",null,null,null,null,null,null,null,null,null,null,null,null,null,null,null,null,null,null,null,null,null,null,null,null,null,null,null,null,null,null,null,null,null,null,null,null,null,null,null,null,null,"",null,null,null,null,null,null,null,null,null,null,null,null,null,null,null,null,null,null,null,null,null,null,null,null,null,null,null,null,null,null,null,null,null,null,null,null,null,null,null,null,null,"",null,null,null,null,null,null,null,null,null,null,null,null,null,null,null,null,null,null,null,null,null,null,null,null,null,null,null,null,null,null,null,null,null,null,null,null,null,null,null,null,null,"",null,null,null,null,null,null,null,null,null,null,null,null,null,null,null,null,null,null,null,null,null,null,null,null,null,null,null,null,null,null,null,null,null,null,null,null,null,null,null,null,null,"",null,null,null,null,null,null,null,null,null,null,null,null,null,null,null,null,null,null,null,null,null,null,null,null,null,null,null,null,null,null,null,null,null,null,null,null,null,null,null,null,null,"",null,0,0,0,0,0,0,0,0,0,0,0]
[null,"1900-01-01",null,0,null,null,null,null,null,null,null,null,null,null,null,null,null,null,null,null,null,null,null,null,null,null,null,null,null,null,null,null,null,null,null,null,null,null,null,null,null,null,null,null,null,"",null,null,null,null,null,null,null,null,null,null,null,null,null,null,null,null,null,null,null,null,null,null,null,null,null,null,null,null,null,null,null,null,null,null,null,null,null,null,null,null,null,"",null,null,null,null,null,null,null,null,null,null,null,null,null,null,null,null,null,null,null,null,null,null,null,null,null,null,null,null,null,null,null,null,null,null,null,null,null,null,null,null,null,"",null,null,null,null,null,null,null,null,null,null,null,null,null,null,null,null,null,null,null,null,null,null,null,null,null,null,null,null,null,null,null,null,null,null,null,null,null,null,null,null,null,"",null,null,null,null,null,null,null,null,null,null,null,null,null,null,null,null,null,null,null,null,null,null,null,null,null,null,null,null,null,null,null,null,null,null,null,null,null,null,null,null,null,"",null,null,null,null,null,null,null,null,null,null,null,null,null,null,null,null,null,null,null,null,null,null,null,null,null,null,null,null,null,null,null,null,null,null,null,null,null,null,null,null,null,"",null,null,null,null,null,null,null,null,null,null,null,null,null,null,null,null,null,null,null,null,null,null,null,null,null,null,null,null,null,null,null,null,null,null,null,null,null,null,null,null,null,"",null,null,null,null,null,null,null,null,null,null,null,null,null,null,null,null,null,null,null,null,null,null,null,null,null,null,null,null,null,null,null,null,null,null,null,null,null,null,null,null,null,"",null,null,null,null,null,null,null,null,null,null,null,null,null,null,null,null,null,null,null,null,null,null,null,null,null,null,null,null,null,null,null,null,null,null,null,null,null,null,null,null,null,"",null,null,null,null,null,null,null,null,null,null,null,null,null,null,null,null,null,null,null,null,null,null,null,null,null,null,null,null,null,null,null,null,null,null,null,null,null,null,null,null,null,"",null,0,0,0,0,0,0,0,0,0,0,0]
[null,"1900-01-01",null,0,null,null,null,null,null,null,null,null,null,null,null,null,null,null,null,null,null,null,null,null,null,null,null,null,null,null,null,null,null,null,null,null,null,null,null,null,null,null,null,null,null,"",null,null,null,null,null,null,null,null,null,null,null,null,null,null,null,null,null,null,null,null,null,null,null,null,null,null,null,null,null,null,null,null,null,null,null,null,null,null,null,null,null,"",null,null,null,null,null,null,null,null,null,null,null,null,null,null,null,null,null,null,null,null,null,null,null,null,null,null,null,null,null,null,null,null,null,null,null,null,null,null,null,null,null,"",null,null,null,null,null,null,null,null,null,null,null,null,null,null,null,null,null,null,null,null,null,null,null,null,null,null,null,null,null,null,null,null,null,null,null,null,null,null,null,null,null,"",null,null,null,null,null,null,null,null,null,null,null,null,null,null,null,null,null,null,null,null,null,null,null,null,null,null,null,null,null,null,null,null,null,null,null,null,null,null,null,null,null,"",null,null,null,null,null,null,null,null,null,null,null,null,null,null,null,null,null,null,null,null,null,null,null,null,null,null,null,null,null,null,null,null,null,null,null,null,null,null,null,null,null,"",null,null,null,null,null,null,null,null,null,null,null,null,null,null,null,null,null,null,null,null,null,null,null,null,null,null,null,null,null,null,null,null,null,null,null,null,null,null,null,null,null,"",null,null,null,null,null,null,null,null,null,null,null,null,null,null,null,null,null,null,null,null,null,null,null,null,null,null,null,null,null,null,null,null,null,null,null,null,null,null,null,null,null,"",null,null,null,null,null,null,null,null,null,null,null,null,null,null,null,null,null,null,null,null,null,null,null,null,null,null,null,null,null,null,null,null,null,null,null,null,null,null,null,null,null,"",null,null,null,null,null,null,null,null,null,null,null,null,null,null,null,null,null,null,null,null,null,null,null,null,null,null,null,null,null,null,null,null,null,null,null,null,null,null,null,null,null,"",null,0,0,0,0,0,0,0,0,0,0,0]
[null,"1900-01-01",null,0,null,null,null,null,null,null,null,null,null,null,null,null,null,null,null,null,null,null,null,null,null,null,null,null,null,null,null,null,null,null,null,null,null,null,null,null,null,null,null,null,null,"",null,null,null,null,null,null,null,null,null,null,null,null,null,null,null,null,null,null,null,null,null,null,null,null,null,null,null,null,null,null,null,null,null,null,null,null,null,null,null,null,null,"",null,null,null,null,null,null,null,null,null,null,null,null,null,null,null,null,null,null,null,null,null,null,null,null,null,null,null,null,null,null,null,null,null,null,null,null,null,null,null,null,null,"",null,null,null,null,null,null,null,null,null,null,null,null,null,null,null,null,null,null,null,null,null,null,null,null,null,null,null,null,null,null,null,null,null,null,null,null,null,null,null,null,null,"",null,null,null,null,null,null,null,null,null,null,null,null,null,null,null,null,null,null,null,null,null,null,null,null,null,null,null,null,null,null,null,null,null,null,null,null,null,null,null,null,null,"",null,null,null,null,null,null,null,null,null,null,null,null,null,null,null,null,null,null,null,null,null,null,null,null,null,null,null,null,null,null,null,null,null,null,null,null,null,null,null,null,null,"",null,null,null,null,null,null,null,null,null,null,null,null,null,null,null,null,null,null,null,null,null,null,null,null,null,null,null,null,null,null,null,null,null,null,null,null,null,null,null,null,null,"",null,null,null,null,null,null,null,null,null,null,null,null,null,null,null,null,null,null,null,null,null,null,null,null,null,null,null,null,null,null,null,null,null,null,null,null,null,null,null,null,null,"",null,null,null,null,null,null,null,null,null,null,null,null,null,null,null,null,null,null,null,null,null,null,null,null,null,null,null,null,null,null,null,null,null,null,null,null,null,null,null,null,null,"",null,null,null,null,null,null,null,null,null,null,null,null,null,null,null,null,null,null,null,null,null,null,null,null,null,null,null,null,null,null,null,null,null,null,null,null,null,null,null,null,null,"",null,0,0,0,0,0,0,0,0,0,0,0]
[null,"1900-01-01",null,0,null,null,null,null,null,null,null,null,null,null,null,null,null,null,null,null,null,null,null,null,null,null,null,null,null,null,null,null,null,null,null,null,null,null,null,null,null,null,null,null,null,"",null,null,null,null,null,null,null,null,null,null,null,null,null,null,null,null,null,null,null,null,null,null,null,null,null,null,null,null,null,null,null,null,null,null,null,null,null,null,null,null,null,"",null,null,null,null,null,null,null,null,null,null,null,null,null,null,null,null,null,null,null,null,null,null,null,null,null,null,null,null,null,null,null,null,null,null,null,null,null,null,null,null,null,"",null,null,null,null,null,null,null,null,null,null,null,null,null,null,null,null,null,null,null,null,null,null,null,null,null,null,null,null,null,null,null,null,null,null,null,null,null,null,null,null,null,"",null,null,null,null,null,null,null,null,null,null,null,null,null,null,null,null,null,null,null,null,null,null,null,null,null,null,null,null,null,null,null,null,null,null,null,null,null,null,null,null,null,"",null,null,null,null,null,null,null,null,null,null,null,null,null,null,null,null,null,null,null,null,null,null,null,null,null,null,null,null,null,null,null,null,null,null,null,null,null,null,null,null,null,"",null,null,null,null,null,null,null,null,null,null,null,null,null,null,null,null,null,null,null,null,null,null,null,null,null,null,null,null,null,null,null,null,null,null,null,null,null,null,null,null,null,"",null,null,null,null,null,null,null,null,null,null,null,null,null,null,null,null,null,null,null,null,null,null,null,null,null,null,null,null,null,null,null,null,null,null,null,null,null,null,null,null,null,"",null,null,null,null,null,null,null,null,null,null,null,null,null,null,null,null,null,null,null,null,null,null,null,null,null,null,null,null,null,null,null,null,null,null,null,null,null,null,null,null,null,"",null,null,null,null,null,null,null,null,null,null,null,null,null,null,null,null,null,null,null,null,null,null,null,null,null,null,null,null,null,null,null,null,null,null,null,null,null,null,null,null,null,"",null,0,0,0,0,0,0,0,0,0,0,0]
[null,"1900-01-01",null,0,null,null,null,null,null,null,null,null,null,null,null,null,null,null,null,null,null,null,null,null,null,null,null,null,null,null,null,null,null,null,null,null,null,null,null,null,null,null,null,null,null,"",null,null,null,null,null,null,null,null,null,null,null,null,null,null,null,null,null,null,null,null,null,null,null,null,null,null,null,null,null,null,null,null,null,null,null,null,null,null,null,null,null,"",null,null,null,null,null,null,null,null,null,null,null,null,null,null,null,null,null,null,null,null,null,null,null,null,null,null,null,null,null,null,null,null,null,null,null,null,null,null,null,null,null,"",null,null,null,null,null,null,null,null,null,null,null,null,null,null,null,null,null,null,null,null,null,null,null,null,null,null,null,null,null,null,null,null,null,null,null,null,null,null,null,null,null,"",null,null,null,null,null,null,null,null,null,null,null,null,null,null,null,null,null,null,null,null,null,null,null,null,null,null,null,null,null,null,null,null,null,null,null,null,null,null,null,null,null,"",null,null,null,null,null,null,null,null,null,null,null,null,null,null,null,null,null,null,null,null,null,null,null,null,null,null,null,null,null,null,null,null,null,null,null,null,null,null,null,null,null,"",null,null,null,null,null,null,null,null,null,null,null,null,null,null,null,null,null,null,null,null,null,null,null,null,null,null,null,null,null,null,null,null,null,null,null,null,null,null,null,null,null,"",null,null,null,null,null,null,null,null,null,null,null,null,null,null,null,null,null,null,null,null,null,null,null,null,null,null,null,null,null,null,null,null,null,null,null,null,null,null,null,null,null,"",null,null,null,null,null,null,null,null,null,null,null,null,null,null,null,null,null,null,null,null,null,null,null,null,null,null,null,null,null,null,null,null,null,null,null,null,null,null,null,null,null,"",null,null,null,null,null,null,null,null,null,null,null,null,null,null,null,null,null,null,null,null,null,null,null,null,null,null,null,null,null,null,null,null,null,null,null,null,null,null,null,null,null,"",null,0,0,0,0,0,0,0,0,0,0,0]
[null,"1900-01-01",null,0,null,null,null,null,null,null,null,null,null,null,null,null,null,null,null,null,null,null,null,null,null,null,null,null,null,null,null,null,null,null,null,null,null,null,null,null,null,null,null,null,null,"",null,null,null,null,null,null,null,null,null,null,null,null,null,null,null,null,null,null,null,null,null,null,null,null,null,null,null,null,null,null,null,null,null,null,null,null,null,null,null,null,null,"",null,null,null,null,null,null,null,null,null,null,null,null,null,null,null,null,null,null,null,null,null,null,null,null,null,null,null,null,null,null,null,null,null,null,null,null,null,null,null,null,null,"",null,null,null,null,null,null,null,null,null,null,null,null,null,null,null,null,null,null,null,null,null,null,null,null,null,null,null,null,null,null,null,null,null,null,null,null,null,null,null,null,null,"",null,null,null,null,null,null,null,null,null,null,null,null,null,null,null,null,null,null,null,null,null,null,null,null,null,null,null,null,null,null,null,null,null,null,null,null,null,null,null,null,null,"",null,null,null,null,null,null,null,null,null,null,null,null,null,null,null,null,null,null,null,null,null,null,null,null,null,null,null,null,null,null,null,null,null,null,null,null,null,null,null,null,null,"",null,null,null,null,null,null,null,null,null,null,null,null,null,null,null,null,null,null,null,null,null,null,null,null,null,null,null,null,null,null,null,null,null,null,null,null,null,null,null,null,null,"",null,null,null,null,null,null,null,null,null,null,null,null,null,null,null,null,null,null,null,null,null,null,null,null,null,null,null,null,null,null,null,null,null,null,null,null,null,null,null,null,null,"",null,null,null,null,null,null,null,null,null,null,null,null,null,null,null,null,null,null,null,null,null,null,null,null,null,null,null,null,null,null,null,null,null,null,null,null,null,null,null,null,null,"",null,null,null,null,null,null,null,null,null,null,null,null,null,null,null,null,null,null,null,null,null,null,null,null,null,null,null,null,null,null,null,null,null,null,null,null,null,null,null,null,null,"",null,0,0,0,0,0,0,0,0,0,0,0]
[null,"1900-01-01",null,0,null,null,null,null,null,null,null,null,null,null,null,null,null,null,null,null,null,null,null,null,null,null,null,null,null,null,null,null,null,null,null,null,null,null,null,null,null,null,null,null,null,"",null,null,null,null,null,null,null,null,null,null,null,null,null,null,null,null,null,null,null,null,null,null,null,null,null,null,null,null,null,null,null,null,null,null,null,null,null,null,null,null,null,"",null,null,null,null,null,null,null,null,null,null,null,null,null,null,null,null,null,null,null,null,null,null,null,null,null,null,null,null,null,null,null,null,null,null,null,null,null,null,null,null,null,"",null,null,null,null,null,null,null,null,null,null,null,null,null,null,null,null,null,null,null,null,null,null,null,null,null,null,null,null,null,null,null,null,null,null,null,null,null,null,null,null,null,"",null,null,null,null,null,null,null,null,null,null,null,null,null,null,null,null,null,null,null,null,null,null,null,null,null,null,null,null,null,null,null,null,null,null,null,null,null,null,null,null,null,"",null,null,null,null,null,null,null,null,null,null,null,null,null,null,null,null,null,null,null,null,null,null,null,null,null,null,null,null,null,null,null,null,null,null,null,null,null,null,null,null,null,"",null,null,null,null,null,null,null,null,null,null,null,null,null,null,null,null,null,null,null,null,null,null,null,null,null,null,null,null,null,null,null,null,null,null,null,null,null,null,null,null,null,"",null,null,null,null,null,null,null,null,null,null,null,null,null,null,null,null,null,null,null,null,null,null,null,null,null,null,null,null,null,null,null,null,null,null,null,null,null,null,null,null,null,"",null,null,null,null,null,null,null,null,null,null,null,null,null,null,null,null,null,null,null,null,null,null,null,null,null,null,null,null,null,null,null,null,null,null,null,null,null,null,null,null,null,"",null,null,null,null,null,null,null,null,null,null,null,null,null,null,null,null,null,null,null,null,null,null,null,null,null,null,null,null,null,null,null,null,null,null,null,null,null,null,null,null,null,"",null,0,0,0,0,0,0,0,0,0,0,0]
[null,"1900-01-01",null,0,null,null,null,null,null,null,null,null,null,null,null,null,null,null,null,null,null,null,null,null,null,null,null,null,null,null,null,null,null,null,null,null,null,null,null,null,null,null,null,null,null,"",null,null,null,null,null,null,null,null,null,null,null,null,null,null,null,null,null,null,null,null,null,null,null,null,null,null,null,null,null,null,null,null,null,null,null,null,null,null,null,null,null,"",null,null,null,null,null,null,null,null,null,null,null,null,null,null,null,null,null,null,null,null,null,null,null,null,null,null,null,null,null,null,null,null,null,null,null,null,null,null,null,null,null,"",null,null,null,null,null,null,null,null,null,null,null,null,null,null,null,null,null,null,null,null,null,null,null,null,null,null,null,null,null,null,null,null,null,null,null,null,null,null,null,null,null,"",null,null,null,null,null,null,null,null,null,null,null,null,null,null,null,null,null,null,null,null,null,null,null,null,null,null,null,null,null,null,null,null,null,null,null,null,null,null,null,null,null,"",null,null,null,null,null,null,null,null,null,null,null,null,null,null,null,null,null,null,null,null,null,null,null,null,null,null,null,null,null,null,null,null,null,null,null,null,null,null,null,null,null,"",null,null,null,null,null,null,null,null,null,null,null,null,null,null,null,null,null,null,null,null,null,null,null,null,null,null,null,null,null,null,null,null,null,null,null,null,null,null,null,null,null,"",null,null,null,null,null,null,null,null,null,null,null,null,null,null,null,null,null,null,null,null,null,null,null,null,null,null,null,null,null,null,null,null,null,null,null,null,null,null,null,null,null,"",null,null,null,null,null,null,null,null,null,null,null,null,null,null,null,null,null,null,null,null,null,null,null,null,null,null,null,null,null,null,null,null,null,null,null,null,null,null,null,null,null,"",null,null,null,null,null,null,null,null,null,null,null,null,null,null,null,null,null,null,null,null,null,null,null,null,null,null,null,null,null,null,null,null,null,null,null,null,null,null,null,null,null,"",null,0,0,0,0,0,0,0,0,0,0,0]
[null,"1900-01-01",null,0,null,null,null,null,null,null,null,null,null,null,null,null,null,null,null,null,null,null,null,null,null,null,null,null,null,null,null,null,null,null,null,null,null,null,null,null,null,null,null,null,null,"",null,null,null,null,null,null,null,null,null,null,null,null,null,null,null,null,null,null,null,null,null,null,null,null,null,null,null,null,null,null,null,null,null,null,null,null,null,null,null,null,null,"",null,null,null,null,null,null,null,null,null,null,null,null,null,null,null,null,null,null,null,null,null,null,null,null,null,null,null,null,null,null,null,null,null,null,null,null,null,null,null,null,null,"",null,null,null,null,null,null,null,null,null,null,null,null,null,null,null,null,null,null,null,null,null,null,null,null,null,null,null,null,null,null,null,null,null,null,null,null,null,null,null,null,null,"",null,null,null,null,null,null,null,null,null,null,null,null,null,null,null,null,null,null,null,null,null,null,null,null,null,null,null,null,null,null,null,null,null,null,null,null,null,null,null,null,null,"",null,null,null,null,null,null,null,null,null,null,null,null,null,null,null,null,null,null,null,null,null,null,null,null,null,null,null,null,null,null,null,null,null,null,null,null,null,null,null,null,null,"",null,null,null,null,null,null,null,null,null,null,null,null,null,null,null,null,null,null,null,null,null,null,null,null,null,null,null,null,null,null,null,null,null,null,null,null,null,null,null,null,null,"",null,null,null,null,null,null,null,null,null,null,null,null,null,null,null,null,null,null,null,null,null,null,null,null,null,null,null,null,null,null,null,null,null,null,null,null,null,null,null,null,null,"",null,null,null,null,null,null,null,null,null,null,null,null,null,null,null,null,null,null,null,null,null,null,null,null,null,null,null,null,null,null,null,null,null,null,null,null,null,null,null,null,null,"",null,null,null,null,null,null,null,null,null,null,null,null,null,null,null,null,null,null,null,null,null,null,null,null,null,null,null,null,null,null,null,null,null,null,null,null,null,null,null,null,null,"",null,0,0,0,0,0,0,0,0,0,0,0]
[null,"1900-01-01",null,0,null,null,null,null,null,null,null,null,null,null,null,null,null,null,null,null,null,null,null,null,null,null,null,null,null,null,null,null,null,null,null,null,null,null,null,null,null,null,null,null,null,"",null,null,null,null,null,null,null,null,null,null,null,null,null,null,null,null,null,null,null,null,null,null,null,null,null,null,null,null,null,null,null,null,null,null,null,null,null,null,null,null,null,"",null,null,null,null,null,null,null,null,null,null,null,null,null,null,null,null,null,null,null,null,null,null,null,null,null,null,null,null,null,null,null,null,null,null,null,null,null,null,null,null,null,"",null,null,null,null,null,null,null,null,null,null,null,null,null,null,null,null,null,null,null,null,null,null,null,null,null,null,null,null,null,null,null,null,null,null,null,null,null,null,null,null,null,"",null,null,null,null,null,null,null,null,null,null,null,null,null,null,null,null,null,null,null,null,null,null,null,null,null,null,null,null,null,null,null,null,null,null,null,null,null,null,null,null,null,"",null,null,null,null,null,null,null,null,null,null,null,null,null,null,null,null,null,null,null,null,null,null,null,null,null,null,null,null,null,null,null,null,null,null,null,null,null,null,null,null,null,"",null,null,null,null,null,null,null,null,null,null,null,null,null,null,null,null,null,null,null,null,null,null,null,null,null,null,null,null,null,null,null,null,null,null,null,null,null,null,null,null,null,"",null,null,null,null,null,null,null,null,null,null,null,null,null,null,null,null,null,null,null,null,null,null,null,null,null,null,null,null,null,null,null,null,null,null,null,null,null,null,null,null,null,"",null,null,null,null,null,null,null,null,null,null,null,null,null,null,null,null,null,null,null,null,null,null,null,null,null,null,null,null,null,null,null,null,null,null,null,null,null,null,null,null,null,"",null,null,null,null,null,null,null,null,null,null,null,null,null,null,null,null,null,null,null,null,null,null,null,null,null,null,null,null,null,null,null,null,null,null,null,null,null,null,null,null,null,"",null,0,0,0,0,0,0,0,0,0,0,0]
[null,"1900-01-01",null,0,null,null,null,null,null,null,null,null,null,null,null,null,null,null,null,null,null,null,null,null,null,null,null,null,null,null,null,null,null,null,null,null,null,null,null,null,null,null,null,null,null,"",null,null,null,null,null,null,null,null,null,null,null,null,null,null,null,null,null,null,null,null,null,null,null,null,null,null,null,null,null,null,null,null,null,null,null,null,null,null,null,null,null,"",null,null,null,null,null,null,null,null,null,null,null,null,null,null,null,null,null,null,null,null,null,null,null,null,null,null,null,null,null,null,null,null,null,null,null,null,null,null,null,null,null,"",null,null,null,null,null,null,null,null,null,null,null,null,null,null,null,null,null,null,null,null,null,null,null,null,null,null,null,null,null,null,null,null,null,null,null,null,null,null,null,null,null,"",null,null,null,null,null,null,null,null,null,null,null,null,null,null,null,null,null,null,null,null,null,null,null,null,null,null,null,null,null,null,null,null,null,null,null,null,null,null,null,null,null,"",null,null,null,null,null,null,null,null,null,null,null,null,null,null,null,null,null,null,null,null,null,null,null,null,null,null,null,null,null,null,null,null,null,null,null,null,null,null,null,null,null,"",null,null,null,null,null,null,null,null,null,null,null,null,null,null,null,null,null,null,null,null,null,null,null,null,null,null,null,null,null,null,null,null,null,null,null,null,null,null,null,null,null,"",null,null,null,null,null,null,null,null,null,null,null,null,null,null,null,null,null,null,null,null,null,null,null,null,null,null,null,null,null,null,null,null,null,null,null,null,null,null,null,null,null,"",null,null,null,null,null,null,null,null,null,null,null,null,null,null,null,null,null,null,null,null,null,null,null,null,null,null,null,null,null,null,null,null,null,null,null,null,null,null,null,null,null,"",null,null,null,null,null,null,null,null,null,null,null,null,null,null,null,null,null,null,null,null,null,null,null,null,null,null,null,null,null,null,null,null,null,null,null,null,null,null,null,null,null,"",null,0,0,0,0,0,0,0,0,0,0,0]
[null,null,{"$f":"IF(ABS(D27-365)>4,\"Must have 365 ± 4 days.\",\"\")","v":"Must have 365 ± 4 days."},{"$f":"SUM(D12:D26)","v":0},null,{"$f":"SUM(F12:F26)","v":0},null,{"$f":"SUM(H12:H26)","v":0},null,{"$f":"SUM(J12:J26)","v":0},null,{"$f":"SUM(L12:L26)","v":0},null,{"$f":"SUM(N12:N26)","v":0},null,{"$f":"SUM(P12:P26)","v":0},null,{"$f":"SUM(R12:R26)","v":0},null,{"$f":"SUM(T12:T26)","v":0},null,{"$f":"SUM(V12:V26)","v":0},null,{"$f":"SUM(X12:X26)","v":0},null,{"$f":"SUM(Z12:Z26)","v":0},null,{"$f":"SUM(AB12:AB26)","v":0},null,{"$f":"SUM(AD12:AD26)","v":0},null,{"$f":"SUM(AF12:AF26)","v":0},null,{"$f":"SUM(AH12:AH26)","v":0},null,{"$f":"SUM(AJ12:AJ26)","v":0},null,{"$f":"SUM(AL12:AL26)","v":0},null,{"$f":"SUM(AN12:AN26)","v":0},null,{"$f":"SUM(AP12:AP26)","v":0},null,{"$f":"SUM(AR12:AR26)","v":0},null,{"$f":"SUM(AT12:AT26)","v":0},null,{"$f":"SUM(AV12:AV26)","v":0},null,{"$f":"SUM(AX12:AX26)","v":0},null,{"$f":"SUM(AZ12:AZ26)","v":0},null,{"$f":"SUM(BB12:BB26)","v":0},null,{"$f":"SUM(BD12:BD26)","v":0},null,{"$f":"SUM(BF12:BF26)","v":0},null,{"$f":"SUM(BH12:BH26)","v":0},null,{"$f":"SUM(BJ12:BJ26)","v":0},null,{"$f":"SUM(BL12:BL26)","v":0},null,{"$f":"SUM(BN12:BN26)","v":0},null,{"$f":"SUM(BP12:BP26)","v":0},null,{"$f":"SUM(BR12:BR26)","v":0},null,{"$f":"SUM(BT12:BT26)","v":0},null,{"$f":"SUM(BV12:BV26)","v":0},null,{"$f":"SUM(BX12:BX26)","v":0},null,{"$f":"SUM(BZ12:BZ26)","v":0},null,{"$f":"SUM(CB12:CB26)","v":0},null,{"$f":"SUM(CD12:CD26)","v":0},null,{"$f":"SUM(CF12:CF26)","v":0},null,{"$f":"SUM(CH12:CH26)","v":0},null,{"$f":"SUM(CJ12:CJ26)","v":0},null,{"$f":"SUM(CL12:CL26)","v":0},null,{"$f":"SUM(CN12:CN26)","v":0},null,{"$f":"SUM(CP12:CP26)","v":0},null,{"$f":"SUM(CR12:CR26)","v":0},null,{"$f":"SUM(CT12:CT26)","v":0},null,{"$f":"SUM(CV12:CV26)","v":0},null,{"$f":"SUM(CX12:CX26)","v":0},null,{"$f":"SUM(CZ12:CZ26)","v":0},null,{"$f":"SUM(DB12:DB26)","v":0},null,{"$f":"SUM(DD12:DD26)","v":0},null,{"$f":"SUM(DF12:DF26)","v":0},null,{"$f":"SUM(DH12:DH26)","v":0},null,{"$f":"SUM(DJ12:DJ26)","v":0},null,{"$f":"SUM(DL12:DL26)","v":0},null,{"$f":"SUM(DN12:DN26)","v":0},null,{"$f":"SUM(DP12:DP26)","v":0},null,{"$f":"SUM(DR12:DR26)","v":0},null,{"$f":"SUM(DT12:DT26)","v":0},null,{"$f":"SUM(DV12:DV26)","v":0},null,{"$f":"SUM(DX12:DX26)","v":0},null,{"$f":"SUM(DZ12:DZ26)","v":0},null,{"$f":"SUM(EB12:EB26)","v":0},null,{"$f":"SUM(ED12:ED26)","v":0},null,{"$f":"SUM(EF12:EF26)","v":0},null,{"$f":"SUM(EH12:EH26)","v":0},null,{"$f":"SUM(EJ12:EJ26)","v":0},null,{"$f":"SUM(EL12:EL26)","v":0},null,{"$f":"SUM(EN12:EN26)","v":0},null,{"$f":"SUM(EP12:EP26)","v":0},null,{"$f":"SUM(ER12:ER26)","v":0},null,{"$f":"SUM(ET12:ET26)","v":0},null,{"$f":"SUM(EV12:EV26)","v":0},null,{"$f":"SUM(EX12:EX26)","v":0},null,{"$f":"SUM(EZ12:EZ26)","v":0},null,{"$f":"SUM(FB12:FB26)","v":0},null,{"$f":"SUM(FD12:FD26)","v":0},null,{"$f":"SUM(FF12:FF26)","v":0},null,{"$f":"SUM(FH12:FH26)","v":0},null,{"$f":"SUM(FJ12:FJ26)","v":0},null,{"$f":"SUM(FL12:FL26)","v":0},null,{"$f":"SUM(FN12:FN26)","v":0},null,{"$f":"SUM(FP12:FP26)","v":0},null,{"$f":"SUM(FR12:FR26)","v":0},null,{"$f":"SUM(FT12:FT26)","v":0},null,{"$f":"SUM(FV12:FV26)","v":0},null,{"$f":"SUM(FX12:FX26)","v":0},null,{"$f":"SUM(FZ12:FZ26)","v":0},null,{"$f":"SUM(GB12:GB26)","v":0},null,{"$f":"SUM(GD12:GD26)","v":0},null,{"$f":"SUM(GF12:GF26)","v":0},null,{"$f":"SUM(GH12:GH26)","v":0},null,{"$f":"SUM(GJ12:GJ26)","v":0},null,{"$f":"SUM(GL12:GL26)","v":0},null,{"$f":"SUM(GN12:GN26)","v":0},null,{"$f":"SUM(GP12:GP26)","v":0},null,{"$f":"SUM(GR12:GR26)","v":0},null,{"$f":"SUM(GT12:GT26)","v":0},null,{"$f":"SUM(GV12:GV26)","v":0},null,{"$f":"SUM(GX12:GX26)","v":0},null,{"$f":"SUM(GZ12:GZ26)","v":0},null,{"$f":"SUM(HB12:HB26)","v":0},null,{"$f":"SUM(HD12:HD26)","v":0},null,{"$f":"SUM(HF12:HF26)","v":0},null,{"$f":"SUM(HH12:HH26)","v":0},null,{"$f":"SUM(HJ12:HJ26)","v":0},null,{"$f":"SUM(HL12:HL26)","v":0},null,{"$f":"SUM(HN12:HN26)","v":0},null,{"$f":"SUM(HP12:HP26)","v":0},null,{"$f":"SUM(HR12:HR26)","v":0},null,{"$f":"SUM(HT12:HT26)","v":0},null,{"$f":"SUM(HV12:HV26)","v":0},null,{"$f":"SUM(HX12:HX26)","v":0},null,{"$f":"SUM(HZ12:HZ26)","v":0},null,{"$f":"SUM(IB12:IB26)","v":0},null,{"$f":"SUM(ID12:ID26)","v":0},null,{"$f":"SUM(IF12:IF26)","v":0},null,{"$f":"SUM(IH12:IH26)","v":0},null,{"$f":"SUM(IJ12:IJ26)","v":0},null,{"$f":"SUM(IL12:IL26)","v":0},null,{"$f":"SUM(IN12:IN26)","v":0},null,{"$f":"SUM(IP12:IP26)","v":0},null,{"$f":"SUM(IR12:IR26)","v":0},null,{"$f":"SUM(IT12:IT26)","v":0},null,{"$f":"SUM(IV12:IV26)","v":0},null,{"$f":"SUM(IX12:IX26)","v":0},null,{"$f":"SUM(IZ12:IZ26)","v":0},null,{"$f":"SUM(JB12:JB26)","v":0},null,{"$f":"SUM(JD12:JD26)","v":0},null,{"$f":"SUM(JF12:JF26)","v":0},null,{"$f":"SUM(JH12:JH26)","v":0},null,{"$f":"SUM(JJ12:JJ26)","v":0},null,{"$f":"SUM(JL12:JL26)","v":0},null,{"$f":"SUM(JN12:JN26)","v":0},null,{"$f":"SUM(JP12:JP26)","v":0},null,{"$f":"SUM(JR12:JR26)","v":0},null,{"$f":"SUM(JT12:JT26)","v":0},null,{"$f":"SUM(JV12:JV26)","v":0},null,{"$f":"SUM(JX12:JX26)","v":0},null,{"$f":"SUM(JZ12:JZ26)","v":0},null,{"$f":"SUM(KB12:KB26)","v":0},null,{"$f":"SUM(KD12:KD26)","v":0},null,{"$f":"SUM(KF12:KF26)","v":0},null,{"$f":"SUM(KH12:KH26)","v":0},null,{"$f":"SUM(KJ12:KJ26)","v":0},null,{"$f":"SUM(KL12:KL26)","v":0},null,{"$f":"SUM(KN12:KN26)","v":0},null,{"$f":"SUM(KP12:KP26)","v":0},null,{"$f":"SUM(KR12:KR26)","v":0},null,{"$f":"SUM(KT12:KT26)","v":0},null,{"$f":"SUM(KV12:KV26)","v":0},null,{"$f":"SUM(KX12:KX26)","v":0},null,{"$f":"SUM(KZ12:KZ26)","v":0},null,{"$f":"SUM(LB12:LB26)","v":0},null,{"$f":"SUM(LD12:LD26)","v":0},null,{"$f":"SUM(LF12:LF26)","v":0},null,{"$f":"SUM(LH12:LH26)","v":0},null,{"$f":"SUM(LJ12:LJ26)","v":0},null,{"$f":"SUM(LL12:LL26)","v":0},null,{"$f":"SUM(LN12:LN26)","v":0},null,{"$f":"SUM(LP12:LP26)","v":0},null,{"$f":"SUM(LR12:LR26)","v":0},null,{"$f":"SUM(LT12:LT26)","v":0},null,{"$f":"SUM(LV12:LV26)","v":0},null,{"$f":"SUM(LX12:LX26)","v":0},null,{"$f":"SUM(LZ12:LZ26)","v":0},null,{"$f":"SUM(MB12:MB26)","v":0},null,{"$f":"SUM(MD12:MD26)","v":0},null,{"$f":"SUM(MF12:MF26)","v":0},null,{"$f":"SUM(MH12:MH26)","v":0},null,{"$f":"SUM(MJ12:MJ26)","v":0},null,{"$f":"SUM(ML12:ML26)","v":0},null,{"$f":"SUM(MN12:MN26)","v":0},null,{"$f":"SUM(MP12:MP26)","v":0},null,{"$f":"SUM(MR12:MR26)","v":0},null,{"$f":"SUM(MT12:MT26)","v":0},null,{"$f":"SUM(MV12:MV26)","v":0},null,{"$f":"SUM(MX12:MX26)","v":0},null,{"$f":"SUM(MZ12:MZ26)","v":0},null,{"$f":"SUM(NB12:NB26)","v":0},null,{"$f":"SUM(ND12:ND26)","v":0},null,{"$f":"SUM(NF12:NF26)","v":0},null,{"$f":"SUM(NH12:NH26)","v":0},null,{"$f":"SUM(NJ12:NJ26)","v":0},null,{"$f":"SUM(NL12:NL26)","v":0},null,{"$f":"SUM(NN12:NN26)","v":0},null,{"$f":"SUM(NP12:NP26)","v":0},null,{"$f":"SUM(NR12:NR26)","v":0},null,{"$f":"SUM(NT12:NT26)","v":0},null,{"$f":"SUM(NV12:NV26)","v":0},null,{"$f":"SUM(NX12:NX26)","v":0},null,{"$f":"SUM(NZ12:NZ26)","v":0},null,{"$f":"SUM(OB12:OB26)","v":0},null,{"$f":"SUM(OD12:OD26)","v":0},null,{"$f":"SUM(OF12:OF26)","v":0},null,{"$f":"SUM(OH12:OH26)","v":0},null,{"$f":"SUM(OJ12:OJ26)","v":0},null,{"$f":"SUM(OL12:OL26)","v":0},null,{"$f":"SUM(ON12:ON26)","v":0},null,{"$f":"SUM(OP12:OP26)","v":0},null,{"$f":"SUM(OR12:OR26)","v":0},null,{"$f":"SUM(OT12:OT26)","v":0},null,{"$f":"SUM(OV12:OV26)","v":0},null,{"$f":"SUM(OX12:OX26)","v":0},null,{"$f":"SUM(OZ12:OZ26)","v":0},null,{"$f":"SUM(PB12:PB26)","v":0},null,{"$f":"SUM(PD12:PD26)","v":0},null,{"$f":"SUM(PF12:PF26)","v":0},null,{"$f":"SUM(PH12:PH26)","v":0},null,{"$f":"SUM(PJ12:PJ26)","v":0},0,0,0,0,0,0,0,0,0,0]
[]
[null,null,null,null,null,"Total Annual kWh Cost",null,"Total Annual kWh Cost",null,"Total Annual kWh Cost",null,"Total Annual kWh Cost",null,"Total Annual kWh Cost",null,"Total Annual kWh Cost",null,"Total Annual kWh Cost",null,"Total Annual kWh Cost",null,"Total Annual kWh Cost",null,"Total Annual kWh Cost",null,"Total Annual kWh Cost",null,"Total Annual kWh Cost",null,"Total Annual kWh Cost",null,"Total Annual kWh Cost",null,"Total Annual kWh Cost",null,"Total Annual kWh Cost",null,"Total Annual kWh Cost",null,"Total Annual kWh Cost",null,"Total Annual kWh Cost",null,"Total Annual kWh Cost",null,"Average Annual kWh  Cost",null,"Total Annual kWh Cost",null,"Total Annual kWh Cost",null,"Total Annual kWh Cost",null,"Total Annual kWh Cost",null,"Total Annual kWh Cost",null,"Total Annual kWh Cost",null,"Total Annual kWh Cost",null,"Total Annual kWh Cost",null,"Total Annual kWh Cost",null,"Total Annual kWh Cost",null,"Total Annual kWh Cost",null,"Total Annual kWh Cost",null,"Total Annual kWh Cost",null,"Total Annual kWh Cost",null,"Total Annual kWh Cost",null,"Total Annual kWh Cost",null,"Total Annual kWh Cost",null,"Total Annual kWh Cost",null,"Total Annual kWh Cost",null,"Total Annual kWh Cost",null,"Average Annual kWh  Cost",null,"Total Annual kWh Cost",null,"Total Annual kWh Cost",null,"Total Annual kWh Cost",null,"Total Annual kWh Cost",null,"Total Annual kWh Cost",null,"Total Annual kWh Cost",null,"Total Annual kWh Cost",null,"Total Annual kWh Cost",null,"Total Annual kWh Cost",null,"Total Annual kWh Cost",null,"Total Annual kWh Cost",null,"Total Annual kWh Cost",null,"Total Annual kWh Cost",null,"Total Annual kWh Cost",null,"Total Annual kWh Cost",null,"Total Annual kWh Cost",null,"Total Annual kWh Cost",null,"Total Annual kWh Cost",null,"Total Annual kWh Cost",null,"Total Annual kWh Cost",null,"Average Annual kWh  Cost",null,"Total Annual kWh Cost",null,"Total Annual kWh Cost",null,"Total Annual kWh Cost",null,"Total Annual kWh Cost",null,"Total Annual kWh Cost",null,"Total Annual kWh Cost",null,"Total Annual kWh Cost",null,"Total Annual kWh Cost",null,"Total Annual kWh Cost",null,"Total Annual kWh Cost",null,"Total Annual kWh Cost",null,"Total Annual kWh Cost",null,"Total Annual kWh Cost",null,"Total Annual kWh Cost",null,"Total Annual kWh Cost",null,"Total Annual kWh Cost",null,"Total Annual kWh Cost",null,"Total Annual kWh Cost",null,"Total Annual kWh Cost",null,"Total Annual kWh Cost",null,"Average Annual kWh  Cost",null,"Total Annual kWh Cost",null,"Total Annual kWh Cost",null,"Total Annual kWh Cost",null,"Total Annual kWh Cost",null,"Total Annual kWh Cost",null,"Total Annual kWh Cost",null,"Total Annual kWh Cost",null,"Total Annual kWh Cost",null,"Total Annual kWh Cost",null,"Total Annual kWh Cost",null,"Total Annual kWh Cost",null,"Total Annual kWh Cost",null,"Total Annual kWh Cost",null,"Total Annual kWh Cost",null,"Total Annual kWh Cost",null,"Total Annual kWh Cost",null,"Total Annual kWh Cost",null,"Total Annual kWh Cost",null,"Total Annual kWh Cost",null,"Total Annual kWh Cost",null,"Average Annual kWh  Cost",null,"Total Annual kWh Cost",null,"Total Annual kWh Cost",null,"Total Annual kWh Cost",null,"Total Annual kWh Cost",null,"Total Annual kWh Cost",null,"Total Annual kWh Cost",null,"Total Annual kWh Cost",null,"Total Annual kWh Cost",null,"Total Annual kWh Cost",null,"Total Annual kWh Cost",null,"Total Annual kWh Cost",null,"Total Annual kWh Cost",null,"Total Annual kWh Cost",null,"Total Annual kWh Cost",null,"Total Annual kWh Cost",null,"Total Annual kWh Cost",null,"Total Annual kWh Cost",null,"Total Annual kWh Cost",null,"Total Annual kWh Cost",null,"Total Annual kWh Cost",null,"Average Annual kWh  Cost",null,"Total Annual kWh Cost",null,"Total Annual kWh Cost",null,"Total Annual kWh Cost",null,"Total Annual kWh Cost",null,"Total Annual kWh Cost",null,"Total Annual kWh Cost",null,"Total Annual kWh Cost",null,"Total Annual kWh Cost",null,"Total Annual kWh Cost",null,"Total Annual kWh Cost",null,"Total Annual kWh Cost",null,"Total Annual kWh Cost",null,"Total Annual kWh Cost",null,"Total Annual kWh Cost",null,"Total Annual kWh Cost",null,"Total Annual kWh Cost",null,"Total Annual kWh Cost",null,"Total Annual kWh Cost",null,"Total Annual kWh Cost",null,"Total Annual kWh Cost",null,"Average Annual kWh  Cost",null,"Total Annual kWh Cost",null,"Total Annual kWh Cost",null,"Total Annual kWh Cost",null,"Total Annual kWh Cost",null,"Total Annual kWh Cost",null,"Total Annual kWh Cost",null,"Total Annual kWh Cost",null,"Total Annual kWh Cost",null,"Total Annual kWh Cost",null,"Total Annual kWh Cost",null,"Total Annual kWh Cost",null,"Total Annual kWh Cost",null,"Total Annual kWh Cost",null,"Total Annual kWh Cost",null,"Total Annual kWh Cost",null,"Total Annual kWh Cost",null,"Total Annual kWh Cost",null,"Total Annual kWh Cost",null,"Total Annual kWh Cost",null,"Total Annual kWh Cost",null,"Average Annual kWh  Cost",null,"Total Annual kWh Cost",null,"Total Annual kWh Cost",null,"Total Annual kWh Cost",null,"Total Annual kWh Cost",null,"Total Annual kWh Cost",null,"Total Annual kWh Cost",null,"Total Annual kWh Cost",null,"Total Annual kWh Cost",null,"Total Annual kWh Cost",null,"Total Annual kWh Cost",null,"Total Annual kWh Cost",null,"Total Annual kWh Cost",null,"Total Annual kWh Cost",null,"Total Annual kWh Cost",null,"Total Annual kWh Cost",null,"Total Annual kWh Cost",null,"Total Annual kWh Cost",null,"Total Annual kWh Cost",null,"Total Annual kWh Cost",null,"Total Annual kWh Cost",null,"Average Annual kWh  Cost",null,"Total Annual kWh Cost",null,"Total Annual kWh Cost",null,"Total Annual kWh Cost",null,"Total Annual kWh Cost",null,"Total Annual kWh Cost",null,"Total Annual kWh Cost",null,"Total Annual kWh Cost",null,"Total Annual kWh Cost",null,"Total Annual kWh Cost",null,"Total Annual kWh Cost",null,"Total Annual kWh Cost",null,"Total Annual kWh Cost",null,"Total Annual kWh Cost",null,"Total Annual kWh Cost",null,"Total Annual kWh Cost",null,"Total Annual kWh Cost",null,"Total Annual kWh Cost",null,"Total Annual kWh Cost",null,"Total Annual kWh Cost",null,"Total Annual kWh Cost",null,"Average Annual kWh  Cost",null,"Average Annual kWh  Cost","Average Annual kWh  Cost","Average Annual kWh  Cost","Average Annual kWh  Cost","Average Annual kWh  Cost","Average Annual kWh  Cost","Average Annual kWh  Cost","Average Annual kWh  Cost","Average Annual kWh  Cost","Average Annual kWh  Cost","Total In-Unit Annual kWh  Cost"]
[null,null,null,null,null,null,null,null,null,null,null,null,null,null,null,null,null,null,null,null,null,null,null,null,null,null,null,null,null,null,null,null,null,null,null,null,null,null,null,null,null,null,null,null,null,{"$f":"IF(F30>0,AVERAGE(F30:AR30),0)","v":0},null,null,null,null,null,null,null,null,null,null,null,null,null,null,null,null,null,null,null,null,null,null,null,null,null,null,null,null,null,null,null,null,null,null,null,null,null,null,null,null,null,{"$f":"IF(AV30>0,AVERAGE(AV30:CH30),0)","v":0},null,null,null,null,null,null,null,null,null,null,null,null,null,null,null,null,null,null,null,null,null,null,null,null,null,null,null,null,null,null,null,null,null,null,null,null,null,null,null,null,null,{"$f":"IF(CL30>0,AVERAGE(CL30:DY30),0)","v":0},null,null,null,null,null,null,null,null,null,null,null,null,null,null,null,null,null,null,null,null,null,null,null,null,null,null,null,null,null,null,null,null,null,null,null,null,null,null,null,null,null,{"$f":"IF(EB30>0,AVERAGE(EB30:FN30),0)","v":0},null,null,null,null,null,null,null,null,null,null,null,null,null,null,null,null,null,null,null,null,null,null,null,null,null,null,null,null,null,null,null,null,null,null,null,null,null,null,null,null,null,{"$f":"IF(FR30>0,AVERAGE(FR30:HD30),0)","v":0},null,null,null,null,null,null,null,null,null,null,null,null,null,null,null,null,null,null,null,null,null,null,null,null,null,null,null,null,null,null,null,null,null,null,null,null,null,null,null,null,null,{"$f":"IF(HH30>0,AVERAGE(HH30:IT30),0)","v":0},null,null,null,null,null,null,null,null,null,null,null,null,null,null,null,null,null,null,null,null,null,null,null,null,null,null,null,null,null,null,null,null,null,null,null,null,null,null,null,null,null,{"$f":"IF(IX30>0,AVERAGE(IX30:KJ30),0)","v":0},null,null,null,null,null,null,null,null,null,null,null,null,null,null,null,null,null,null,null,null,null,null,null,null,null,null,null,null,null,null,null,null,null,null,null,null,null,null,null,null,null,{"$f":"IF(KN30>0,AVERAGE(KN30:LZ30),0)","v":0},null,null,null,null,null,null,null,null,null,null,null,null,null,null,null,null,null,null,null,null,null,null,null,null,null,null,null,null,null,null,null,null,null,null,null,null,null,null,null,null,null,{"$f":"IF(MD30>0,AVERAGE(MD30:NP30),0)","v":0},null,null,null,null,null,null,null,null,null,null,null,null,null,null,null,null,null,null,null,null,null,null,null,null,null,null,null,null,null,null,null,null,null,null,null,null,null,null,null,null,null,{"$f":"IF(NT30>0,AVERAGE(NT30:PF30),0)","v":0},null,{"$f":"AT30","v":0},{"$f":"CJ30","v":0},{"$f":"DZ30","v":0},{"$f":"FP30","v":0},{"$f":"HF30","v":0},{"$f":"IV30","v":0},{"$f":"KL30","v":0},{"$f":"MB30","v":0},{"$f":"NR30","v":0},{"$f":"PH30","v":0},{"$f":"SUMPRODUCT($PJ$8:$PS$8,PJ30:PS30)","v":0}]
[]
[null,"Post-Construction In-Unit Billing Dates",null,null,null,{"$f":"F5","v":"Unit Type 1 - "},null,null,null,null,null,null,null,null,null,null,null,null,null,null,null,null,null,null,null,null,null,null,null,null,null,null,null,null,null,null,null,null,null,null,null,null,null,null,null,null,null,{"$f":"AV5","v":"Unit Type 2 - "},null,null,null,null,null,null,null,null,null,null,null,null,null,null,null,null,null,null,null,null,null,null,null,null,null,null,null,null,null,null,null,null,null,null,null,null,null,null,null,null,null,{"$f":"CL5","v":"Unit Type 3 - "},null,null,null,null,null,null,null,null,null,null,null,null,null,null,null,null,null,null,null,null,null,null,null,null,null,null,null,null,null,null,null,null,null,null,null,null,null,null,null,null,null,{"$f":"EB5","v":"Unit Type 4 - "},null,null,null,null,null,null,null,null,null,null,null,null,null,null,null,null,null,null,null,null,null,null,null,null,null,null,null,null,null,null,null,null,null,null,null,null,null,null,null,null,null,{"$f":"FR5","v":"Unit Type 5 - "},null,null,null,null,null,null,null,null,null,null,null,null,null,null,null,null,null,null,null,null,null,null,null,null,null,null,null,null,null,null,null,null,null,null,null,null,null,null,null,null,null,{"$f":"HH5","v":"Unit Type 6 - "},null,null,null,null,null,null,null,null,null,null,null,null,null,null,null,null,null,null,null,null,null,null,null,null,null,null,null,null,null,null,null,null,null,null,null,null,null,null,null,null,null,{"$f":"IX5","v":"Unit Type 7 - "},null,null,null,null,null,null,null,null,null,null,null,null,null,null,null,null,null,null,null,null,null,null,null,null,null,null,null,null,null,null,null,null,null,null,null,null,null,null,null,null,null,{"$f":"KN5","v":"Unit Type 8 - "},null,null,null,null,null,null,null,null,null,null,null,null,null,null,null,null,null,null,null,null,null,null,null,null,null,null,null,null,null,null,null,null,null,null,null,null,null,null,null,null,null,{"$f":"MD5","v":"Unit Type 9 - "},null,null,null,null,null,null,null,null,null,null,null,null,null,null,null,null,null,null,null,null,null,null,null,null,null,null,null,null,null,null,null,null,null,null,null,null,null,null,null,null,null,{"$f":"NT5","v":"Unit Type 10 - "},null,null,null,null,null,null,null,null,null,null,null,null,null,null,null,null,null,null,null,null,null,null,null,null,null,null,null,null,null,null,null,null,null,null,null,null,null,null,null,null,null,"POST-CONSTRUCTION\nSummary of In-Unit Electricity Use"]
[null,null,null,null,null,"Unit #:",null,"Unit #:",null,"Unit #:",null,"Unit #:",null,"Unit #:",null,"Unit #:",null,"Unit #:",null,"Unit #:",null,"Unit #:",null,"Unit #:",null,"Unit #:",null,"Unit #:",null,"Unit #:",null,"Unit #:",null,"Unit #:",null,"Unit #:",null,"Unit #:",null,"Unit #:",null,"Unit #:",null,"Unit #:",null,"SUMMARY",null,"Unit #:",null,"Unit #:",null,"Unit #:",null,"Unit #:",null,"Unit #:",null,"Unit #:",null,"Unit #:",null,"Unit #:",null,"Unit #:",null,"Unit #:",null,"Unit #:",null,"Unit #:",null,"Unit #:",null,"Unit #:",null,"Unit #:",null,"Unit #:",null,"Unit #:",null,"Unit #:",null,"Unit #:",null,"Unit #:",null,"SUMMARY",null,"Unit #:",null,"Unit #:",null,"Unit #:",null,"Unit #:",null,"Unit #:",null,"Unit #:",null,"Unit #:",null,"Unit #:",null,"Unit #:",null,"Unit #:",null,"Unit #:",null,"Unit #:",null,"Unit #:",null,"Unit #:",null,"Unit #:",null,"Unit #:",null,"Unit #:",null,"Unit #:",null,"Unit #:",null,"Unit #:",null,"SUMMARY",null,"Unit #:",null,"Unit #:",null,"Unit #:",null,"Unit #:",null,"Unit #:",null,"Unit #:",null,"Unit #:",null,"Unit #:",null,"Unit #:",null,"Unit #:",null,"Unit #:",null,"Unit #:",null,"Unit #:",null,"Unit #:",null,"Unit #:",null,"Unit #:",null,"Unit #:",null,"Unit #:",null,"Unit #:",null,"Unit #:",null,"SUMMARY",null,"Unit #:",null,"Unit #:",null,"Unit #:",null,"Unit #:",null,"Unit #:",null,"Unit #:",null,"Unit #:",null,"Unit #:",null,"Unit #:",null,"Unit #:",null,"Unit #:",null,"Unit #:",null,"Unit #:",null,"Unit #:",null,"Unit #:",null,"Unit #:",null,"Unit #:",null,"Unit #:",null,"Unit #:",null,"Unit #:",null,"SUMMARY",null,"Unit #:",null,"Unit #:",null,"Unit #:",null,"Unit #:",null,"Unit #:",null,"Unit #:",null,"Unit #:",null,"Unit #:",null,"Unit #:",null,"Unit #:",null,"Unit #:",null,"Unit #:",null,"Unit #:",null,"Unit #:",null,"Unit #:",null,"Unit #:",null,"Unit #:",null,"Unit #:",null,"Unit #:",null,"Unit #:",null,"SUMMARY",null,"Unit #:",null,"Unit #:",null,"Unit #:",null,"Unit #:",null,"Unit #:",null,"Unit #:",null,"Unit #:",null,"Unit #:",null,"Unit #:",null,"Unit #:",null,"Unit #:",null,"Unit #:",null,"Unit #:",null,"Unit #:",null,"Unit #:",null,"Unit #:",null,"Unit #:",null,"Unit #:",null,"Unit #:",null,"Unit #:",null,"SUMMARY",null,"Unit #:",null,"Unit #:",null,"Unit #:",null,"Unit #:",null,"Unit #:",null,"Unit #:",null,"Unit #:",null,"Unit #:",null,"Unit #:",null,"Unit #:",null,"Unit #:",null,"Unit #:",null,"Unit #:",null,"Unit #:",null,"Unit #:",null,"Unit #:",null,"Unit #:",null,"Unit #:",null,"Unit #:",null,"Unit #:",null,"SUMMARY",null,"Unit #:",null,"Unit #:",null,"Unit #:",null,"Unit #:",null,"Unit #:",null,"Unit #:",null,"Unit #:",null,"Unit #:",null,"Unit #:",null,"Unit #:",null,"Unit #:",null,"Unit #:",null,"Unit #:",null,"Unit #:",null,"Unit #:",null,"Unit #:",null,"Unit #:",null,"Unit #:",null,"Unit #:",null,"Unit #:",null,"SUMMARY",null,"Unit #:",null,"Unit #:",null,"Unit #:",null,"Unit #:",null,"Unit #:",null,"Unit #:",null,"Unit #:",null,"Unit #:",null,"Unit #:",null,"Unit #:",null,"Unit #:",null,"Unit #:",null,"Unit #:",null,"Unit #:",null,"Unit #:",null,"Unit #:",null,"Unit #:",null,"Unit #:",null,"Unit #:",null,"Unit #:",null,"SUMMARY"]
[]
[null,null,null,null,null,"Account #:",null,"Account #:",null,"Account #:",null,"Account #:",null,"Account #:",null,"Account #:",null,"Account #:",null,"Account #:",null,"Account #:",null,"Account #:",null,"Account #:",null,"Account #:",null,"Account #:",null,"Account #:",null,"Account #:",null,"Account #:",null,"Account #:",null,"Account #:",null,"Account #:",null,"Account #:",null,null,null,"Account #:",null,"Account #:",null,"Account #:",null,"Account #:",null,"Account #:",null,"Account #:",null,"Account #:",null,"Account #:",null,"Account #:",null,"Account #:",null,"Account #:",null,"Account #:",null,"Account #:",null,"Account #:",null,"Account #:",null,"Account #:",null,"Account #:",null,"Account #:",null,"Account #:",null,"Account #:",null,null,null,"Account #:",null,"Account #:",null,"Account #:",null,"Account #:",null,"Account #:",null,"Account #:",null,"Account #:",null,"Account #:",null,"Account #:",null,"Account #:",null,"Account #:",null,"Account #:",null,"Account #:",null,"Account #:",null,"Account #:",null,"Account #:",null,"Account #:",null,"Account #:",null,"Account #:",null,"Account #:",null,null,null,"Account #:",null,"Account #:",null,"Account #:",null,"Account #:",null,"Account #:",null,"Account #:",null,"Account #:",null,"Account #:",null,"Account #:",null,"Account #:",null,"Account #:",null,"Account #:",null,"Account #:",null,"Account #:",null,"Account #:",null,"Account #:",null,"Account #:",null,"Account #:",null,"Account #:",null,"Account #:",null,null,null,"Account #:",null,"Account #:",null,"Account #:",null,"Account #:",null,"Account #:",null,"Account #:",null,"Account #:",null,"Account #:",null,"Account #:",null,"Account #:",null,"Account #:",null,"Account #:",null,"Account #:",null,"Account #:",null,"Account #:",null,"Account #:",null,"Account #:",null,"Account #:",null,"Account #:",null,"Account #:",null,null,null,"Account #:",null,"Account #:",null,"Account #:",null,"Account #:",null,"Account #:",null,"Account #:",null,"Account #:",null,"Account #:",null,"Account #:",null,"Account #:",null,"Account #:",null,"Account #:",null,"Account #:",null,"Account #:",null,"Account #:",null,"Account #:",null,"Account #:",null,"Account #:",null,"Account #:",null,"Account #:",null,null,null,"Account #:",null,"Account #:",null,"Account #:",null,"Account #:",null,"Account #:",null,"Account #:",null,"Account #:",null,"Account #:",null,"Account #:",null,"Account #:",null,"Account #:",null,"Account #:",null,"Account #:",null,"Account #:",null,"Account #:",null,"Account #:",null,"Account #:",null,"Account #:",null,"Account #:",null,"Account #:",null,null,null,"Account #:",null,"Account #:",null,"Account #:",null,"Account #:",null,"Account #:",null,"Account #:",null,"Account #:",null,"Account #:",null,"Account #:",null,"Account #:",null,"Account #:",null,"Account #:",null,"Account #:",null,"Account #:",null,"Account #:",null,"Account #:",null,"Account #:",null,"Account #:",null,"Account #:",null,"Account #:",null,null,null,"Account #:",null,"Account #:",null,"Account #:",null,"Account #:",null,"Account #:",null,"Account #:",null,"Account #:",null,"Account #:",null,"Account #:",null,"Account #:",null,"Account #:",null,"Account #:",null,"Account #:",null,"Account #:",null,"Account #:",null,"Account #:",null,"Account #:",null,"Account #:",null,"Account #:",null,"Account #:",null,null,null,"Account #:",null,"Account #:",null,"Account #:",null,"Account #:",null,"Account #:",null,"Account #:",null,"Account #:",null,"Account #:",null,"Account #:",null,"Account #:",null,"Account #:",null,"Account #:",null,"Account #:",null,"Account #:",null,"Account #:",null,"Account #:",null,"Account #:",null,"Account #:",null,"Account #:",null,"Account #:",null,null,null,{"$f":"PJ8","v":0},{"$f":"PK8","v":0},0,0,0,0,0,0,0,0]
[null,null,null,null,null,null,null,null,null,null,null,null,null,null,null,null,null,null,null,null,null,null,null,null,null,null,null,null,null,null,null,null,null,null,null,null,null,null,null,null,null,null,null,null,null,null,null,null,null,null,null,null,null,null,null,null,null,null,null,null,null,null,null,null,null,null,null,null,null,null,null,null,null,null,null,null,null,null,null,null,null,null,null,null,null,null,null,null,null,null,null,null,null,null,null,null,null,null,null,null,null,null,null,null,null,null,null,null,null,null,null,null,null,null,null,null,null,null,null,null,null,null,null,null,null,null,null,null,null,null,null,null,null,null,null,null,null,null,null,null,null,null,null,null,null,null,null,null,null,null,null,null,null,null,null,null,null,null,null,null,null,null,null,null,null,null,null,null,null,null,null,null,null,null,null,null,null,null,null,null,null,null,null,null,null,null,null,null,null,null,null,null,null,null,null,null,null,null,null,null,null,null,null,null,null,null,null,null,null,null,null,null,null,null,null,null,null,null,null,null,null,null,null,null,null,null,null,null,null,null,null,null,null,null,null,null,null,null,null,null,null,null,null,null,null,null,null,null,null,null,null,null,null,null,null,null,null,null,null,null,null,null,null,null,null,null,null,null,null,null,null,null,null,null,null,null,null,null,null,null,null,null,null,null,null,null,null,null,null,null,null,null,null,null,null,null,null,null,null,null,null,null,null,null,null,null,null,null,null,null,null,null,null,null,null,null,null,null,null,null,null,null,null,null,null,null,null,null,null,null,null,null,null,null,null,null,null,null,null,null,null,null,null,null,null,null,null,null,null,null,null,null,null,null,null,null,null,null,null,null,null,null,null,null,null,null,null,null,null,null,null,null,null,null,null,null,null,null,null,null,null,null,null,null,null,null,null,null,null,null,null,null,null,null,null,null,null,null,null,null,null,null,null,null,null,null,null,null,null,null,null,null,null,null,null,null,null,null,null,null,null,null,null,null,null,{"$f":"PJ9","v":"Unit Type 1"},"Unit Type 2","Unit Type 3","Unit Type 4","Unit Type 5","Unit Type 6","Unit Type 7","Unit Type 8","Unit Type 9","Unit Type 10","SUMMARY"]
[null,"Billing Period Start Date","Read Date","Days in Billing Period",null,"kWh","Actual/ Estimated","kWh","Actual/ Estimated","kWh","Actual/ Estimated","kWh","Actual/ Estimated","kWh","Actual/ Estimated","kWh","Actual/ Estimated","kWh","Actual/ Estimated","kWh","Actual/ Estimated","kWh","Actual/ Estimated","kWh","Actual/ Estimated","kWh","Actual/ Estimated","kWh","Actual/ Estimated","kWh","Actual/ Estimated","kWh","Actual/ Estimated","kWh","Actual/ Estimated","kWh","Actual/ Estimated","kWh","Actual/ Estimated","kWh","Actual/ Estimated","kWh","Actual/ Estimated","kWh","Actual/ Estimated","Average kWh Consumption",null,"kWh","Actual/ Estimated","kWh","Actual/ Estimated","kWh","Actual/ Estimated","kWh","Actual/ Estimated","kWh","Actual/ Estimated","kWh","Actual/ Estimated","kWh","Actual/ Estimated","kWh","Actual/ Estimated","kWh","Actual/ Estimated","kWh","Actual/ Estimated","kWh","Actual/ Estimated","kWh","Actual/ Estimated","kWh","Actual/ Estimated","kWh","Actual/ Estimated","kWh","Actual/ Estimated","kWh","Actual/ Estimated","kWh","Actual/ Estimated","kWh","Actual/ Estimated","kWh","Actual/ Estimated","kWh","Actual/ Estimated","Average kWh Consumption",null,"kWh","Actual/ Estimated","kWh","Actual/ Estimated","kWh","Actual/ Estimated","kWh","Actual/ Estimated","kWh","Actual/ Estimated","kWh","Actual/ Estimated","kWh","Actual/ Estimated","kWh","Actual/ Estimated","kWh","Actual/ Estimated","kWh","Actual/ Estimated","kWh","Actual/ Estimated","kWh","Actual/ Estimated","kWh","Actual/ Estimated","kWh","Actual/ Estimated","kWh","Actual/ Estimated","kWh","Actual/ Estimated","kWh","Actual/ Estimated","kWh","Actual/ Estimated","kWh","Actual/ Estimated","kWh","Actual/ Estimated","Average kWh Consumption",null,"kWh","Actual/ Estimated","kWh","Actual/ Estimated","kWh","Actual/ Estimated","kWh","Actual/ Estimated","kWh","Actual/ Estimated","kWh","Actual/ Estimated","kWh","Actual/ Estimated","kWh","Actual/ Estimated","kWh","Actual/ Estimated","kWh","Actual/ Estimated","kWh","Actual/ Estimated","kWh","Actual/ Estimated","kWh","Actual/ Estimated","kWh","Actual/ Estimated","kWh","Actual/ Estimated","kWh","Actual/ Estimated","kWh","Actual/ Estimated","kWh","Actual/ Estimated","kWh","Actual/ Estimated","kWh","Actual/ Estimated","Average kWh Consumption",null,"kWh","Actual/ Estimated","kWh","Actual/ Estimated","kWh","Actual/ Estimated","kWh","Actual/ Estimated","kWh","Actual/ Estimated","kWh","Actual/ Estimated","kWh","Actual/ Estimated","kWh","Actual/ Estimated","kWh","Actual/ Estimated","kWh","Actual/ Estimated","kWh","Actual/ Estimated","kWh","Actual/ Estimated","kWh","Actual/ Estimated","kWh","Actual/ Estimated","kWh","Actual/ Estimated","kWh","Actual/ Estimated","kWh","Actual/ Estimated","kWh","Actual/ Estimated","kWh","Actual/ Estimated","kWh","Actual/ Estimated","Average kWh Consumption",null,"kWh","Actual/ Estimated","kWh","Actual/ Estimated","kWh","Actual/ Estimated","kWh","Actual/ Estimated","kWh","Actual/ Estimated","kWh","Actual/ Estimated","kWh","Actual/ Estimated","kWh","Actual/ Estimated","kWh","Actual/ Estimated","kWh","Actual/ Estimated","kWh","Actual/ Estimated","kWh","Actual/ Estimated","kWh","Actual/ Estimated","kWh","Actual/ Estimated","kWh","Actual/ Estimated","kWh","Actual/ Estimated","kWh","Actual/ Estimated","kWh","Actual/ Estimated","kWh","Actual/ Estimated","kWh","Actual/ Estimated","Average kWh Consumption",null,"kWh","Actual/ Estimated","kWh","Actual/ Estimated","kWh","Actual/ Estimated","kWh","Actual/ Estimated","kWh","Actual/ Estimated","kWh","Actual/ Estimated","kWh","Actual/ Estimated","kWh","Actual/ Estimated","kWh","Actual/ Estimated","kWh","Actual/ Estimated","kWh","Actual/ Estimated","kWh","Actual/ Estimated","kWh","Actual/ Estimated","kWh","Actual/ Estimated","kWh","Actual/ Estimated","kWh","Actual/ Estimated","kWh","Actual/ Estimated","kWh","Actual/ Estimated","kWh","Actual/ Estimated","kWh","Actual/ Estimated","Average kWh Consumption",null,"kWh","Actual/ Estimated","kWh","Actual/ Estimated","kWh","Actual/ Estimated","kWh","Actual/ Estimated","kWh","Actual/ Estimated","kWh","Actual/ Estimated","kWh","Actual/ Estimated","kWh","Actual/ Estimated","kWh","Actual/ Estimated","kWh","Actual/ Estimated","kWh","Actual/ Estimated","kWh","Actual/ Estimated","kWh","Actual/ Estimated","kWh","Actual/ Estimated","kWh","Actual/ Estimated","kWh","Actual/ Estimated","kWh","Actual/ Estimated","kWh","Actual/ Estimated","kWh","Actual/ Estimated","kWh","Actual/ Estimated","Average kWh Consumption",null,"kWh","Actual/ Estimated","kWh","Actual/ Estimated","kWh","Actual/ Estimated","kWh","Actual/ Estimated","kWh","Actual/ Estimated","kWh","Actual/ Estimated","kWh","Actual/ Estimated","kWh","Actual/ Estimated","kWh","Actual/ Estimated","kWh","Actual/ Estimated","kWh","Actual/ Estimated","kWh","Actual/ Estimated","kWh","Actual/ Estimated","kWh","Actual/ Estimated","kWh","Actual/ Estimated","kWh","Actual/ Estimated","kWh","Actual/ Estimated","kWh","Actual/ Estimated","kWh","Actual/ Estimated","kWh","Actual/ Estimated","Average kWh Consumption",null,"kWh","Actual/ Estimated","kWh","Actual/ Estimated","kWh","Actual/ Estimated","kWh","Actual/ Estimated","kWh","Actual/ Estimated","kWh","Actual/ Estimated","kWh","Actual/ Estimated","kWh","Actual/ Estimated","kWh","Actual/ Estimated","kWh","Actual/ Estimated","kWh","Actual/ Estimated","kWh","Actual/ Estimated","kWh","Actual/ Estimated","kWh","Actual/ Estimated","kWh","Actual/ Estimated","kWh","Actual/ Estimated","kWh","Actual/ Estimated","kWh","Actual/ Estimated","kWh","Actual/ Estimated","kWh","Actual/ Estimated","Average kWh Consumption",null,"Average kWh Consumption","Average kWh Consumption","Average kWh Consumption","Average kWh Consumption","Average kWh Consumption","Average kWh Consumption","Average kWh Consumption","Average kWh Consumption","Average kWh Consumption","Average kWh Consumption","Total In-Unit kWh Consumption"]
[]
[null,{"$f":"C38+1","v":"1900-01-01"},null,{"$f":"IF(C39>0,C39+1-B39,0)","v":0},null,null,null,null,null,null,null,null,null,null,null,null,null,null,null,null,null,null,null,null,null,null,null,null,null,null,null,null,null,null,null,null,null,null,null,null,null,null,null,null,null,{"$f":"IF(ISBLANK(F39)=FALSE,AVERAGE(F39:AR39),\"\")","v":""},null,null,null,null,null,null,null,null,null,null,null,null,null,null,null,null,null,null,null,null,null,null,null,null,null,null,null,null,null,null,null,null,null,null,null,null,null,null,null,null,null,{"$f":"IF(ISBLANK(AV39)=FALSE,AVERAGE(AV39:CH39),\"\")","v":""},null,null,null,null,null,null,null,null,null,null,null,null,null,null,null,null,null,null,null,null,null,null,null,null,null,null,null,null,null,null,null,null,null,null,null,null,null,null,null,null,null,{"$f":"IF(ISBLANK(CL39)=FALSE,AVERAGE(CL39:DW39),\"\")","v":""},null,null,null,null,null,null,null,null,null,null,null,null,null,null,null,null,null,null,null,null,null,null,null,null,null,null,null,null,null,null,null,null,null,null,null,null,null,null,null,null,null,{"$f":"IF(ISBLANK(EB39)=FALSE,AVERAGE(EB39:FN39),\"\")","v":""},null,null,null,null,null,null,null,null,null,null,null,null,null,null,null,null,null,null,null,null,null,null,null,null,null,null,null,null,null,null,null,null,null,null,null,null,null,null,null,null,null,{"$f":"IF(ISBLANK(FR39)=FALSE,AVERAGE(FR39:HD39),\"\")","v":""},null,null,null,null,null,null,null,null,null,null,null,null,null,null,null,null,null,null,null,null,null,null,null,null,null,null,null,null,null,null,null,null,null,null,null,null,null,null,null,null,null,{"$f":"IF(ISBLANK(HH39)=FALSE,AVERAGE(HH39:IT39),\"\")","v":""},null,null,null,null,null,null,null,null,null,null,null,null,null,null,null,null,null,null,null,null,null,null,null,null,null,null,null,null,null,null,null,null,null,null,null,null,null,null,null,null,null,{"$f":"IF(ISBLANK(IX39)=FALSE,AVERAGE(IX39:KJ39),\"\")","v":""},null,null,null,null,null,null,null,null,null,null,null,null,null,null,null,null,null,null,null,null,null,null,null,null,null,null,null,null,null,null,null,null,null,null,null,null,null,null,null,null,null,{"$f":"IF(ISBLANK(KN39)=FALSE,AVERAGE(KN39:LZ39),\"\")","v":""},null,null,null,null,null,null,null,null,null,null,null,null,null,null,null,null,null,null,null,null,null,null,null,null,null,null,null,null,null,null,null,null,null,null,null,null,null,null,null,null,null,{"$f":"IF(ISBLANK(MD39)=FALSE,AVERAGE(MD39:NP39),\"\")","v":""},null,null,null,null,null,null,null,null,null,null,null,null,null,null,null,null,null,null,null,null,null,null,null,null,null,null,null,null,null,null,null,null,null,null,null,null,null,null,null,null,null,{"$f":"IF(ISBLANK(NT39)=FALSE,AVERAGE(NT39:PF39),\"\")","v":""},null,{"$f":"IF(AT39=\"\",0,AT39)","v":0},{"$f":"IF(CJ39=\"\",0,CJ39)","v":0},{"$f":"IF(DZ39=\"\",0,DZ39)","v":0},{"$f":"IF(FP39=\"\",0,FP39)","v":0},{"$f":"IF(HF39=\"\",0,HF39)","v":0},{"$f":"IF(IV39=\"\",0,IV39)","v":0},{"$f":"IF(KL39=\"\",0,KL39)","v":0},{"$f":"IF(MB39=\"\",0,MB39)","v":0},{"$f":"IF(NR39=\"\",0,NR39)","v":0},{"$f":"IF(PH39=\"\",0,PH39)","v":0},{"$f":"SUMPRODUCT($PJ$35:$PS$35,PJ39:PS39)","v":0}]
[null,{"$f":"C39+1","v":"1900-01-01"},null,0,null,null,null,null,null,null,null,null,null,null,null,null,null,null,null,null,null,null,null,null,null,null,null,null,null,null,null,null,null,null,null,null,null,null,null,null,null,null,null,null,null,"",null,null,null,null,null,null,null,null,null,null,null,null,null,null,null,null,null,null,null,null,null,null,null,null,null,null,null,null,null,null,null,null,null,null,null,null,null,null,null,null,null,"",null,null,null,null,null,null,null,null,null,null,null,null,null,null,null,null,null,null,null,null,null,null,null,null,null,null,null,null,null,null,null,null,null,null,null,null,null,null,null,null,null,"",null,null,null,null,null,null,null,null,null,null,null,null,null,null,null,null,null,null,null,null,null,null,null,null,null,null,null,null,null,null,null,null,null,null,null,null,null,null,null,null,null,"",null,null,null,null,null,null,null,null,null,null,null,null,null,null,null,null,null,null,null,null,null,null,null,null,null,null,null,null,null,null,null,null,null,null,null,null,null,null,null,null,null,"",null,null,null,null,null,null,null,null,null,null,null,null,null,null,null,null,null,null,null,null,null,null,null,null,null,null,null,null,null,null,null,null,null,null,null,null,null,null,null,null,null,"",null,null,null,null,null,null,null,null,null,null,null,null,null,null,null,null,null,null,null,null,null,null,null,null,null,null,null,null,null,null,null,null,null,null,null,null,null,null,null,null,null,"",null,null,null,null,null,null,null,null,null,null,null,null,null,null,null,null,null,null,null,null,null,null,null,null,null,null,null,null,null,null,null,null,null,null,null,null,null,null,null,null,null,"",null,null,null,null,null,null,null,null,null,null,null,null,null,null,null,null,null,null,null,null,null,null,null,null,null,null,null,null,null,null,null,null,null,null,null,null,null,null,null,null,null,"",null,null,null,null,null,null,null,null,null,null,null,null,null,null,null,null,null,null,null,null,null,null,null,null,null,null,null,null,null,null,null,null,null,null,null,null,null,null,null,null,null,"",null,0,0,0,0,0,0,0,0,0,0,{"$f":"SUMPRODUCT($PJ$35:$PS$35,PJ40:PS40)","v":0}]
[null,"1900-01-01",null,0,null,null,null,null,null,null,null,null,null,null,null,null,null,null,null,null,null,null,null,null,null,null,null,null,null,null,null,null,null,null,null,null,null,null,null,null,null,null,null,null,null,"",null,null,null,null,null,null,null,null,null,null,null,null,null,null,null,null,null,null,null,null,null,null,null,null,null,null,null,null,null,null,null,null,null,null,null,null,null,null,null,null,null,"",null,null,null,null,null,null,null,null,null,null,null,null,null,null,null,null,null,null,null,null,null,null,null,null,null,null,null,null,null,null,null,null,null,null,null,null,null,null,null,null,null,"",null,null,null,null,null,null,null,null,null,null,null,null,null,null,null,null,null,null,null,null,null,null,null,null,null,null,null,null,null,null,null,null,null,null,null,null,null,null,null,null,null,"",null,null,null,null,null,null,null,null,null,null,null,null,null,null,null,null,null,null,null,null,null,null,null,null,null,null,null,null,null,null,null,null,null,null,null,null,null,null,null,null,null,"",null,null,null,null,null,null,null,null,null,null,null,null,null,null,null,null,null,null,null,null,null,null,null,null,null,null,null,null,null,null,null,null,null,null,null,null,null,null,null,null,null,"",null,null,null,null,null,null,null,null,null,null,null,null,null,null,null,null,null,null,null,null,null,null,null,null,null,null,null,null,null,null,null,null,null,null,null,null,null,null,null,null,null,"",null,null,null,null,null,null,null,null,null,null,null,null,null,null,null,null,null,null,null,null,null,null,null,null,null,null,null,null,null,null,null,null,null,null,null,null,null,null,null,null,null,"",null,null,null,null,null,null,null,null,null,null,null,null,null,null,null,null,null,null,null,null,null,null,null,null,null,null,null,null,null,null,null,null,null,null,null,null,null,null,null,null,null,"",null,null,null,null,null,null,null,null,null,null,null,null,null,null,null,null,null,null,null,null,null,null,null,null,null,null,null,null,null,null,null,null,null,null,null,null,null,null,null,null,null,"",null,0,0,0,0,0,0,0,0,0,0,0]
[null,"1900-01-01",null,0,null,null,null,null,null,null,null,null,null,null,null,null,null,null,null,null,null,null,null,null,null,null,null,null,null,null,null,null,null,null,null,null,null,null,null,null,null,null,null,null,null,"",null,null,null,null,null,null,null,null,null,null,null,null,null,null,null,null,null,null,null,null,null,null,null,null,null,null,null,null,null,null,null,null,null,null,null,null,null,null,null,null,null,"",null,null,null,null,null,null,null,null,null,null,null,null,null,null,null,null,null,null,null,null,null,null,null,null,null,null,null,null,null,null,null,null,null,null,null,null,null,null,null,null,null,"",null,null,null,null,null,null,null,null,null,null,null,null,null,null,null,null,null,null,null,null,null,null,null,null,null,null,null,null,null,null,null,null,null,null,null,null,null,null,null,null,null,"",null,null,null,null,null,null,null,null,null,null,null,null,null,null,null,null,null,null,null,null,null,null,null,null,null,null,null,null,null,null,null,null,null,null,null,null,null,null,null,null,null,"",null,null,null,null,null,null,null,null,null,null,null,null,null,null,null,null,null,null,null,null,null,null,null,null,null,null,null,null,null,null,null,null,null,null,null,null,null,null,null,null,null,"",null,null,null,null,null,null,null,null,null,null,null,null,null,null,null,null,null,null,null,null,null,null,null,null,null,null,null,null,null,null,null,null,null,null,null,null,null,null,null,null,null,"",null,null,null,null,null,null,null,null,null,null,null,null,null,null,null,null,null,null,null,null,null,null,null,null,null,null,null,null,null,null,null,null,null,null,null,null,null,null,null,null,null,"",null,null,null,null,null,null,null,null,null,null,null,null,null,null,null,null,null,null,null,null,null,null,null,null,null,null,null,null,null,null,null,null,null,null,null,null,null,null,null,null,null,"",null,null,null,null,null,null,null,null,null,null,null,null,null,null,null,null,null,null,null,null,null,null,null,null,null,null,null,null,null,null,null,null,null,null,null,null,null,null,null,null,null,"",null,0,0,0,0,0,0,0,0,0,0,0]
[null,"1900-01-01",null,0,null,null,null,null,null,null,null,null,null,null,null,null,null,null,null,null,null,null,null,null,null,null,null,null,null,null,null,null,null,null,null,null,null,null,null,null,null,null,null,null,null,"",null,null,null,null,null,null,null,null,null,null,null,null,null,null,null,null,null,null,null,null,null,null,null,null,null,null,null,null,null,null,null,null,null,null,null,null,null,null,null,null,null,"",null,null,null,null,null,null,null,null,null,null,null,null,null,null,null,null,null,null,null,null,null,null,null,null,null,null,null,null,null,null,null,null,null,null,null,null,null,null,null,null,null,"",null,null,null,null,null,null,null,null,null,null,null,null,null,null,null,null,null,null,null,null,null,null,null,null,null,null,null,null,null,null,null,null,null,null,null,null,null,null,null,null,null,"",null,null,null,null,null,null,null,null,null,null,null,null,null,null,null,null,null,null,null,null,null,null,null,null,null,null,null,null,null,null,null,null,null,null,null,null,null,null,null,null,null,"",null,null,null,null,null,null,null,null,null,null,null,null,null,null,null,null,null,null,null,null,null,null,null,null,null,null,null,null,null,null,null,null,null,null,null,null,null,null,null,null,null,"",null,null,null,null,null,null,null,null,null,null,null,null,null,null,null,null,null,null,null,null,null,null,null,null,null,null,null,null,null,null,null,null,null,null,null,null,null,null,null,null,null,"",null,null,null,null,null,null,null,null,null,null,null,null,null,null,null,null,null,null,null,null,null,null,null,null,null,null,null,null,null,null,null,null,null,null,null,null,null,null,null,null,null,"",null,null,null,null,null,null,null,null,null,null,null,null,null,null,null,null,null,null,null,null,null,null,null,null,null,null,null,null,null,null,null,null,null,null,null,null,null,null,null,null,null,"",null,null,null,null,null,null,null,null,null,null,null,null,null,null,null,null,null,null,null,null,null,null,null,null,null,null,null,null,null,null,null,null,null,null,null,null,null,null,null,null,null,"",null,0,0,0,0,0,0,0,0,0,0,0]
[null,"1900-01-01",null,0,null,null,null,null,null,null,null,null,null,null,null,null,null,null,null,null,null,null,null,null,null,null,null,null,null,null,null,null,null,null,null,null,null,null,null,null,null,null,null,null,null,"",null,null,null,null,null,null,null,null,null,null,null,null,null,null,null,null,null,null,null,null,null,null,null,null,null,null,null,null,null,null,null,null,null,null,null,null,null,null,null,null,null,"",null,null,null,null,null,null,null,null,null,null,null,null,null,null,null,null,null,null,null,null,null,null,null,null,null,null,null,null,null,null,null,null,null,null,null,null,null,null,null,null,null,"",null,null,null,null,null,null,null,null,null,null,null,null,null,null,null,null,null,null,null,null,null,null,null,null,null,null,null,null,null,null,null,null,null,null,null,null,null,null,null,null,null,"",null,null,null,null,null,null,null,null,null,null,null,null,null,null,null,null,null,null,null,null,null,null,null,null,null,null,null,null,null,null,null,null,null,null,null,null,null,null,null,null,null,"",null,null,null,null,null,null,null,null,null,null,null,null,null,null,null,null,null,null,null,null,null,null,null,null,null,null,null,null,null,null,null,null,null,null,null,null,null,null,null,null,null,"",null,null,null,null,null,null,null,null,null,null,null,null,null,null,null,null,null,null,null,null,null,null,null,null,null,null,null,null,null,null,null,null,null,null,null,null,null,null,null,null,null,"",null,null,null,null,null,null,null,null,null,null,null,null,null,null,null,null,null,null,null,null,null,null,null,null,null,null,null,null,null,null,null,null,null,null,null,null,null,null,null,null,null,"",null,null,null,null,null,null,null,null,null,null,null,null,null,null,null,null,null,null,null,null,null,null,null,null,null,null,null,null,null,null,null,null,null,null,null,null,null,null,null,null,null,"",null,null,null,null,null,null,null,null,null,null,null,null,null,null,null,null,null,null,null,null,null,null,null,null,null,null,null,null,null,null,null,null,null,null,null,null,null,null,null,null,null,"",null,0,0,0,0,0,0,0,0,0,0,0]
[null,"1900-01-01",null,0,null,null,null,null,null,null,null,null,null,null,null,null,null,null,null,null,null,null,null,null,null,null,null,null,null,null,null,null,null,null,null,null,null,null,null,null,null,null,null,null,null,"",null,null,null,null,null,null,null,null,null,null,null,null,null,null,null,null,null,null,null,null,null,null,null,null,null,null,null,null,null,null,null,null,null,null,null,null,null,null,null,null,null,"",null,null,null,null,null,null,null,null,null,null,null,null,null,null,null,null,null,null,null,null,null,null,null,null,null,null,null,null,null,null,null,null,null,null,null,null,null,null,null,null,null,"",null,null,null,null,null,null,null,null,null,null,null,null,null,null,null,null,null,null,null,null,null,null,null,null,null,null,null,null,null,null,null,null,null,null,null,null,null,null,null,null,null,"",null,null,null,null,null,null,null,null,null,null,null,null,null,null,null,null,null,null,null,null,null,null,null,null,null,null,null,null,null,null,null,null,null,null,null,null,null,null,null,null,null,"",null,null,null,null,null,null,null,null,null,null,null,null,null,null,null,null,null,null,null,null,null,null,null,null,null,null,null,null,null,null,null,null,null,null,null,null,null,null,null,null,null,"",null,null,null,null,null,null,null,null,null,null,null,null,null,null,null,null,null,null,null,null,null,null,null,null,null,null,null,null,null,null,null,null,null,null,null,null,null,null,null,null,null,"",null,null,null,null,null,null,null,null,null,null,null,null,null,null,null,null,null,null,null,null,null,null,null,null,null,null,null,null,null,null,null,null,null,null,null,null,null,null,null,null,null,"",null,null,null,null,null,null,null,null,null,null,null,null,null,null,null,null,null,null,null,null,null,null,null,null,null,null,null,null,null,null,null,null,null,null,null,null,null,null,null,null,null,"",null,null,null,null,null,null,null,null,null,null,null,null,null,null,null,null,null,null,null,null,null,null,null,null,null,null,null,null,null,null,null,null,null,null,null,null,null,null,null,null,null,"",null,0,0,0,0,0,0,0,0,0,0,0]
[null,"1900-01-01",null,0,null,null,null,null,null,null,null,null,null,null,null,null,null,null,null,null,null,null,null,null,null,null,null,null,null,null,null,null,null,null,null,null,null,null,null,null,null,null,null,null,null,"",null,null,null,null,null,null,null,null,null,null,null,null,null,null,null,null,null,null,null,null,null,null,null,null,null,null,null,null,null,null,null,null,null,null,null,null,null,null,null,null,null,"",null,null,null,null,null,null,null,null,null,null,null,null,null,null,null,null,null,null,null,null,null,null,null,null,null,null,null,null,null,null,null,null,null,null,null,null,null,null,null,null,null,"",null,null,null,null,null,null,null,null,null,null,null,null,null,null,null,null,null,null,null,null,null,null,null,null,null,null,null,null,null,null,null,null,null,null,null,null,null,null,null,null,null,"",null,null,null,null,null,null,null,null,null,null,null,null,null,null,null,null,null,null,null,null,null,null,null,null,null,null,null,null,null,null,null,null,null,null,null,null,null,null,null,null,null,"",null,null,null,null,null,null,null,null,null,null,null,null,null,null,null,null,null,null,null,null,null,null,null,null,null,null,null,null,null,null,null,null,null,null,null,null,null,null,null,null,null,"",null,null,null,null,null,null,null,null,null,null,null,null,null,null,null,null,null,null,null,null,null,null,null,null,null,null,null,null,null,null,null,null,null,null,null,null,null,null,null,null,null,"",null,null,null,null,null,null,null,null,null,null,null,null,null,null,null,null,null,null,null,null,null,null,null,null,null,null,null,null,null,null,null,null,null,null,null,null,null,null,null,null,null,"",null,null,null,null,null,null,null,null,null,null,null,null,null,null,null,null,null,null,null,null,null,null,null,null,null,null,null,null,null,null,null,null,null,null,null,null,null,null,null,null,null,"",null,null,null,null,null,null,null,null,null,null,null,null,null,null,null,null,null,null,null,null,null,null,null,null,null,null,null,null,null,null,null,null,null,null,null,null,null,null,null,null,null,"",null,0,0,0,0,0,0,0,0,0,0,0]
[null,"1900-01-01",null,0,null,null,null,null,null,null,null,null,null,null,null,null,null,null,null,null,null,null,null,null,null,null,null,null,null,null,null,null,null,null,null,null,null,null,null,null,null,null,null,null,null,"",null,null,null,null,null,null,null,null,null,null,null,null,null,null,null,null,null,null,null,null,null,null,null,null,null,null,null,null,null,null,null,null,null,null,null,null,null,null,null,null,null,"",null,null,null,null,null,null,null,null,null,null,null,null,null,null,null,null,null,null,null,null,null,null,null,null,null,null,null,null,null,null,null,null,null,null,null,null,null,null,null,null,null,"",null,null,null,null,null,null,null,null,null,null,null,null,null,null,null,null,null,null,null,null,null,null,null,null,null,null,null,null,null,null,null,null,null,null,null,null,null,null,null,null,null,"",null,null,null,null,null,null,null,null,null,null,null,null,null,null,null,null,null,null,null,null,null,null,null,null,null,null,null,null,null,null,null,null,null,null,null,null,null,null,null,null,null,"",null,null,null,null,null,null,null,null,null,null,null,null,null,null,null,null,null,null,null,null,null,null,null,null,null,null,null,null,null,null,null,null,null,null,null,null,null,null,null,null,null,"",null,null,null,null,null,null,null,null,null,null,null,null,null,null,null,null,null,null,null,null,null,null,null,null,null,null,null,null,null,null,null,null,null,null,null,null,null,null,null,null,null,"",null,null,null,null,null,null,null,null,null,null,null,null,null,null,null,null,null,null,null,null,null,null,null,null,null,null,null,null,null,null,null,null,null,null,null,null,null,null,null,null,null,"",null,null,null,null,null,null,null,null,null,null,null,null,null,null,null,null,null,null,null,null,null,null,null,null,null,null,null,null,null,null,null,null,null,null,null,null,null,null,null,null,null,"",null,null,null,null,null,null,null,null,null,null,null,null,null,null,null,null,null,null,null,null,null,null,null,null,null,null,null,null,null,null,null,null,null,null,null,null,null,null,null,null,null,"",null,0,0,0,0,0,0,0,0,0,0,0]
[null,"1900-01-01",null,0,null,null,null,null,null,null,null,null,null,null,null,null,null,null,null,null,null,null,null,null,null,null,null,null,null,null,null,null,null,null,null,null,null,null,null,null,null,null,null,null,null,"",null,null,null,null,null,null,null,null,null,null,null,null,null,null,null,null,null,null,null,null,null,null,null,null,null,null,null,null,null,null,null,null,null,null,null,null,null,null,null,null,null,"",null,null,null,null,null,null,null,null,null,null,null,null,null,null,null,null,null,null,null,null,null,null,null,null,null,null,null,null,null,null,null,null,null,null,null,null,null,null,null,null,null,"",null,null,null,null,null,null,null,null,null,null,null,null,null,null,null,null,null,null,null,null,null,null,null,null,null,null,null,null,null,null,null,null,null,null,null,null,null,null,null,null,null,"",null,null,null,null,null,null,null,null,null,null,null,null,null,null,null,null,null,null,null,null,null,null,null,null,null,null,null,null,null,null,null,null,null,null,null,null,null,null,null,null,null,"",null,null,null,null,null,null,null,null,null,null,null,null,null,null,null,null,null,null,null,null,null,null,null,null,null,null,null,null,null,null,null,null,null,null,null,null,null,null,null,null,null,"",null,null,null,null,null,null,null,null,null,null,null,null,null,null,null,null,null,null,null,null,null,null,null,null,null,null,null,null,null,null,null,null,null,null,null,null,null,null,null,null,null,"",null,null,null,null,null,null,null,null,null,null,null,null,null,null,null,null,null,null,null,null,null,null,null,null,null,null,null,null,null,null,null,null,null,null,null,null,null,null,null,null,null,"",null,null,null,null,null,null,null,null,null,null,null,null,null,null,null,null,null,null,null,null,null,null,null,null,null,null,null,null,null,null,null,null,null,null,null,null,null,null,null,null,null,"",null,null,null,null,null,null,null,null,null,null,null,null,null,null,null,null,null,null,null,null,null,null,null,null,null,null,null,null,null,null,null,null,null,null,null,null,null,null,null,null,null,"",null,0,0,0,0,0,0,0,0,0,0,0]
[null,"1900-01-01",null,0,null,null,null,null,null,null,null,null,null,null,null,null,null,null,null,null,null,null,null,null,null,null,null,null,null,null,null,null,null,null,null,null,null,null,null,null,null,null,null,null,null,"",null,null,null,null,null,null,null,null,null,null,null,null,null,null,null,null,null,null,null,null,null,null,null,null,null,null,null,null,null,null,null,null,null,null,null,null,null,null,null,null,null,"",null,null,null,null,null,null,null,null,null,null,null,null,null,null,null,null,null,null,null,null,null,null,null,null,null,null,null,null,null,null,null,null,null,null,null,null,null,null,null,null,null,"",null,null,null,null,null,null,null,null,null,null,null,null,null,null,null,null,null,null,null,null,null,null,null,null,null,null,null,null,null,null,null,null,null,null,null,null,null,null,null,null,null,"",null,null,null,null,null,null,null,null,null,null,null,null,null,null,null,null,null,null,null,null,null,null,null,null,null,null,null,null,null,null,null,null,null,null,null,null,null,null,null,null,null,"",null,null,null,null,null,null,null,null,null,null,null,null,null,null,null,null,null,null,null,null,null,null,null,null,null,null,null,null,null,null,null,null,null,null,null,null,null,null,null,null,null,"",null,null,null,null,null,null,null,null,null,null,null,null,null,null,null,null,null,null,null,null,null,null,null,null,null,null,null,null,null,null,null,null,null,null,null,null,null,null,null,null,null,"",null,null,null,null,null,null,null,null,null,null,null,null,null,null,null,null,null,null,null,null,null,null,null,null,null,null,null,null,null,null,null,null,null,null,null,null,null,null,null,null,null,"",null,null,null,null,null,null,null,null,null,null,null,null,null,null,null,null,null,null,null,null,null,null,null,null,null,null,null,null,null,null,null,null,null,null,null,null,null,null,null,null,null,"",null,null,null,null,null,null,null,null,null,null,null,null,null,null,null,null,null,null,null,null,null,null,null,null,null,null,null,null,null,null,null,null,null,null,null,null,null,null,null,null,null,"",null,0,0,0,0,0,0,0,0,0,0,0]
[null,"1900-01-01",null,0,null,null,null,null,null,null,null,null,null,null,null,null,null,null,null,null,null,null,null,null,null,null,null,null,null,null,null,null,null,null,null,null,null,null,null,null,null,null,null,null,null,"",null,null,null,null,null,null,null,null,null,null,null,null,null,null,null,null,null,null,null,null,null,null,null,null,null,null,null,null,null,null,null,null,null,null,null,null,null,null,null,null,null,"",null,null,null,null,null,null,null,null,null,null,null,null,null,null,null,null,null,null,null,null,null,null,null,null,null,null,null,null,null,null,null,null,null,null,null,null,null,null,null,null,null,"",null,null,null,null,null,null,null,null,null,null,null,null,null,null,null,null,null,null,null,null,null,null,null,null,null,null,null,null,null,null,null,null,null,null,null,null,null,null,null,null,null,"",null,null,null,null,null,null,null,null,null,null,null,null,null,null,null,null,null,null,null,null,null,null,null,null,null,null,null,null,null,null,null,null,null,null,null,null,null,null,null,null,null,"",null,null,null,null,null,null,null,null,null,null,null,null,null,null,null,null,null,null,null,null,null,null,null,null,null,null,null,null,null,null,null,null,null,null,null,null,null,null,null,null,null,"",null,null,null,null,null,null,null,null,null,null,null,null,null,null,null,null,null,null,null,null,null,null,null,null,null,null,null,null,null,null,null,null,null,null,null,null,null,null,null,null,null,"",null,null,null,null,null,null,null,null,null,null,null,null,null,null,null,null,null,null,null,null,null,null,null,null,null,null,null,null,null,null,null,null,null,null,null,null,null,null,null,null,null,"",null,null,null,null,null,null,null,null,null,null,null,null,null,null,null,null,null,null,null,null,null,null,null,null,null,null,null,null,null,null,null,null,null,null,null,null,null,null,null,null,null,"",null,null,null,null,null,null,null,null,null,null,null,null,null,null,null,null,null,null,null,null,null,null,null,null,null,null,null,null,null,null,null,null,null,null,null,null,null,null,null,null,null,"",null,0,0,0,0,0,0,0,0,0,0,0]
[null,"1900-01-01",null,0,null,null,null,null,null,null,null,null,null,null,null,null,null,null,null,null,null,null,null,null,null,null,null,null,null,null,null,null,null,null,null,null,null,null,null,null,null,null,null,null,null,"",null,null,null,null,null,null,null,null,null,null,null,null,null,null,null,null,null,null,null,null,null,null,null,null,null,null,null,null,null,null,null,null,null,null,null,null,null,null,null,null,null,"",null,null,null,null,null,null,null,null,null,null,null,null,null,null,null,null,null,null,null,null,null,null,null,null,null,null,null,null,null,null,null,null,null,null,null,null,null,null,null,null,null,"",null,null,null,null,null,null,null,null,null,null,null,null,null,null,null,null,null,null,null,null,null,null,null,null,null,null,null,null,null,null,null,null,null,null,null,null,null,null,null,null,null,"",null,null,null,null,null,null,null,null,null,null,null,null,null,null,null,null,null,null,null,null,null,null,null,null,null,null,null,null,null,null,null,null,null,null,null,null,null,null,null,null,null,"",null,null,null,null,null,null,null,null,null,null,null,null,null,null,null,null,null,null,null,null,null,null,null,null,null,null,null,null,null,null,null,null,null,null,null,null,null,null,null,null,null,"",null,null,null,null,null,null,null,null,null,null,null,null,null,null,null,null,null,null,null,null,null,null,null,null,null,null,null,null,null,null,null,null,null,null,null,null,null,null,null,null,null,"",null,null,null,null,null,null,null,null,null,null,null,null,null,null,null,null,null,null,null,null,null,null,null,null,null,null,null,null,null,null,null,null,null,null,null,null,null,null,null,null,null,"",null,null,null,null,null,null,null,null,null,null,null,null,null,null,null,null,null,null,null,null,null,null,null,null,null,null,null,null,null,null,null,null,null,null,null,null,null,null,null,null,null,"",null,null,null,null,null,null,null,null,null,null,null,null,null,null,null,null,null,null,null,null,null,null,null,null,null,null,null,null,null,null,null,null,null,null,null,null,null,null,null,null,null,"",null,0,0,0,0,0,0,0,0,0,0,0]
[null,"1900-01-01",null,0,null,null,null,null,null,null,null,null,null,null,null,null,null,null,null,null,null,null,null,null,null,null,null,null,null,null,null,null,null,null,null,null,null,null,null,null,null,null,null,null,null,"",null,null,null,null,null,null,null,null,null,null,null,null,null,null,null,null,null,null,null,null,null,null,null,null,null,null,null,null,null,null,null,null,null,null,null,null,null,null,null,null,null,"",null,null,null,null,null,null,null,null,null,null,null,null,null,null,null,null,null,null,null,null,null,null,null,null,null,null,null,null,null,null,null,null,null,null,null,null,null,null,null,null,null,"",null,null,null,null,null,null,null,null,null,null,null,null,null,null,null,null,null,null,null,null,null,null,null,null,null,null,null,null,null,null,null,null,null,null,null,null,null,null,null,null,null,"",null,null,null,null,null,null,null,null,null,null,null,null,null,null,null,null,null,null,null,null,null,null,null,null,null,null,null,null,null,null,null,null,null,null,null,null,null,null,null,null,null,"",null,null,null,null,null,null,null,null,null,null,null,null,null,null,null,null,null,null,null,null,null,null,null,null,null,null,null,null,null,null,null,null,null,null,null,null,null,null,null,null,null,"",null,null,null,null,null,null,null,null,null,null,null,null,null,null,null,null,null,null,null,null,null,null,null,null,null,null,null,null,null,null,null,null,null,null,null,null,null,null,null,null,null,"",null,null,null,null,null,null,null,null,null,null,null,null,null,null,null,null,null,null,null,null,null,null,null,null,null,null,null,null,null,null,null,null,null,null,null,null,null,null,null,null,null,"",null,null,null,null,null,null,null,null,null,null,null,null,null,null,null,null,null,null,null,null,null,null,null,null,null,null,null,null,null,null,null,null,null,null,null,null,null,null,null,null,null,"",null,null,null,null,null,null,null,null,null,null,null,null,null,null,null,null,null,null,null,null,null,null,null,null,null,null,null,null,null,null,null,null,null,null,null,null,null,null,null,null,null,"",null,0,0,0,0,0,0,0,0,0,0,0]
[null,"1900-01-01",null,0,null,null,null,null,null,null,null,null,null,null,null,null,null,null,null,null,null,null,null,null,null,null,null,null,null,null,null,null,null,null,null,null,null,null,null,null,null,null,null,null,null,"",null,null,null,null,null,null,null,null,null,null,null,null,null,null,null,null,null,null,null,null,null,null,null,null,null,null,null,null,null,null,null,null,null,null,null,null,null,null,null,null,null,"",null,null,null,null,null,null,null,null,null,null,null,null,null,null,null,null,null,null,null,null,null,null,null,null,null,null,null,null,null,null,null,null,null,null,null,null,null,null,null,null,null,"",null,null,null,null,null,null,null,null,null,null,null,null,null,null,null,null,null,null,null,null,null,null,null,null,null,null,null,null,null,null,null,null,null,null,null,null,null,null,null,null,null,"",null,null,null,null,null,null,null,null,null,null,null,null,null,null,null,null,null,null,null,null,null,null,null,null,null,null,null,null,null,null,null,null,null,null,null,null,null,null,null,null,null,"",null,null,null,null,null,null,null,null,null,null,null,null,null,null,null,null,null,null,null,null,null,null,null,null,null,null,null,null,null,null,null,null,null,null,null,null,null,null,null,null,null,"",null,null,null,null,null,null,null,null,null,null,null,null,null,null,null,null,null,null,null,null,null,null,null,null,null,null,null,null,null,null,null,null,null,null,null,null,null,null,null,null,null,"",null,null,null,null,null,null,null,null,null,null,null,null,null,null,null,null,null,null,null,null,null,null,null,null,null,null,null,null,null,null,null,null,null,null,null,null,null,null,null,null,null,"",null,null,null,null,null,null,null,null,null,null,null,null,null,null,null,null,null,null,null,null,null,null,null,null,null,null,null,null,null,null,null,null,null,null,null,null,null,null,null,null,null,"",null,null,null,null,null,null,null,null,null,null,null,null,null,null,null,null,null,null,null,null,null,null,null,null,null,null,null,null,null,null,null,null,null,null,null,null,null,null,null,null,null,"",null,0,0,0,0,0,0,0,0,0,0,0]
[null,null,{"$f":"IF(ABS(D54-365)>4,\"Must have 365 ± 4 days.\",\"\")","v":"Must have 365 ± 4 days."},{"$f":"SUM(D39:D53)","v":0},null,{"$f":"SUM(F39:F53)","v":0},null,{"$f":"SUM(H39:H53)","v":0},null,{"$f":"SUM(J39:J53)","v":0},null,{"$f":"SUM(L39:L53)","v":0},null,{"$f":"SUM(N39:N53)","v":0},null,{"$f":"SUM(P39:P53)","v":0},null,{"$f":"SUM(R39:R53)","v":0},null,{"$f":"SUM(T39:T53)","v":0},null,{"$f":"SUM(V39:V53)","v":0},null,{"$f":"SUM(X39:X53)","v":0},null,{"$f":"SUM(Z39:Z53)","v":0},null,{"$f":"SUM(AB39:AB53)","v":0},null,{"$f":"SUM(AD39:AD53)","v":0},null,{"$f":"SUM(AF39:AF53)","v":0},null,{"$f":"SUM(AH39:AH53)","v":0},null,{"$f":"SUM(AJ39:AJ53)","v":0},null,{"$f":"SUM(AL39:AL53)","v":0},null,{"$f":"SUM(AN39:AN53)","v":0},null,{"$f":"SUM(AP39:AP53)","v":0},null,{"$f":"SUM(AR39:AR53)","v":0},null,{"$f":"SUM(AT39:AT53)","v":0},null,{"$f":"SUM(AV39:AV53)","v":0},null,{"$f":"SUM(AX39:AX53)","v":0},null,{"$f":"SUM(AZ39:AZ53)","v":0},null,{"$f":"SUM(BB39:BB53)","v":0},null,{"$f":"SUM(BD39:BD53)","v":0},null,{"$f":"SUM(BF39:BF53)","v":0},null,{"$f":"SUM(BH39:BH53)","v":0},null,{"$f":"SUM(BJ39:BJ53)","v":0},null,{"$f":"SUM(BL39:BL53)","v":0},null,{"$f":"SUM(BN39:BN53)","v":0},null,{"$f":"SUM(BP39:BP53)","v":0},null,{"$f":"SUM(BR39:BR53)","v":0},null,{"$f":"SUM(BT39:BT53)","v":0},null,{"$f":"SUM(BV39:BV53)","v":0},null,{"$f":"SUM(BX39:BX53)","v":0},null,{"$f":"SUM(BZ39:BZ53)","v":0},null,{"$f":"SUM(CB39:CB53)","v":0},null,{"$f":"SUM(CD39:CD53)","v":0},null,{"$f":"SUM(CF39:CF53)","v":0},null,{"$f":"SUM(CH39:CH53)","v":0},null,{"$f":"SUM(CJ39:CJ53)","v":0},null,{"$f":"SUM(CL39:CL53)","v":0},null,{"$f":"SUM(CN39:CN53)","v":0},null,{"$f":"SUM(CP39:CP53)","v":0},null,{"$f":"SUM(CR39:CR53)","v":0},null,{"$f":"SUM(CT39:CT53)","v":0},null,{"$f":"SUM(CV39:CV53)","v":0},null,{"$f":"SUM(CX39:CX53)","v":0},null,{"$f":"SUM(CZ39:CZ53)","v":0},null,{"$f":"SUM(DB39:DB53)","v":0},null,{"$f":"SUM(DD39:DD53)","v":0},null,{"$f":"SUM(DF39:DF53)","v":0},null,{"$f":"SUM(DH39:DH53)","v":0},null,{"$f":"SUM(DJ39:DJ53)","v":0},null,{"$f":"SUM(DL39:DL53)","v":0},null,{"$f":"SUM(DN39:DN53)","v":0},null,{"$f":"SUM(DP39:DP53)","v":0},null,{"$f":"SUM(DR39:DR53)","v":0},null,{"$f":"SUM(DT39:DT53)","v":0},null,{"$f":"SUM(DV39:DV53)","v":0},null,{"$f":"SUM(DX39:DX53)","v":0},null,{"$f":"SUM(DZ39:DZ53)","v":0},null,{"$f":"SUM(EB39:EB53)","v":0},null,{"$f":"SUM(ED39:ED53)","v":0},null,{"$f":"SUM(EF39:EF53)","v":0},null,{"$f":"SUM(EH39:EH53)","v":0},null,{"$f":"SUM(EJ39:EJ53)","v":0},null,{"$f":"SUM(EL39:EL53)","v":0},null,{"$f":"SUM(EN39:EN53)","v":0},null,{"$f":"SUM(EP39:EP53)","v":0},null,{"$f":"SUM(ER39:ER53)","v":0},null,{"$f":"SUM(ET39:ET53)","v":0},null,{"$f":"SUM(EV39:EV53)","v":0},null,{"$f":"SUM(EX39:EX53)","v":0},null,{"$f":"SUM(EZ39:EZ53)","v":0},null,{"$f":"SUM(FB39:FB53)","v":0},null,{"$f":"SUM(FD39:FD53)","v":0},null,{"$f":"SUM(FF39:FF53)","v":0},null,{"$f":"SUM(FH39:FH53)","v":0},null,{"$f":"SUM(FJ39:FJ53)","v":0},null,{"$f":"SUM(FL39:FL53)","v":0},null,{"$f":"SUM(FN39:FN53)","v":0},null,{"$f":"SUM(FP39:FP53)","v":0},null,{"$f":"SUM(FR39:FR53)","v":0},null,{"$f":"SUM(FT39:FT53)","v":0},null,{"$f":"SUM(FV39:FV53)","v":0},null,{"$f":"SUM(FX39:FX53)","v":0},null,{"$f":"SUM(FZ39:FZ53)","v":0},null,{"$f":"SUM(GB39:GB53)","v":0},null,{"$f":"SUM(GD39:GD53)","v":0},null,{"$f":"SUM(GF39:GF53)","v":0},null,{"$f":"SUM(GH39:GH53)","v":0},null,{"$f":"SUM(GJ39:GJ53)","v":0},null,{"$f":"SUM(GL39:GL53)","v":0},null,{"$f":"SUM(GN39:GN53)","v":0},null,{"$f":"SUM(GP39:GP53)","v":0},null,{"$f":"SUM(GR39:GR53)","v":0},null,{"$f":"SUM(GT39:GT53)","v":0},null,{"$f":"SUM(GV39:GV53)","v":0},null,{"$f":"SUM(GX39:GX53)","v":0},null,{"$f":"SUM(GZ39:GZ53)","v":0},null,{"$f":"SUM(HB39:HB53)","v":0},null,{"$f":"SUM(HD39:HD53)","v":0},null,{"$f":"SUM(HF39:HF53)","v":0},null,{"$f":"SUM(HH39:HH53)","v":0},null,{"$f":"SUM(HJ39:HJ53)","v":0},null,{"$f":"SUM(HL39:HL53)","v":0},null,{"$f":"SUM(HN39:HN53)","v":0},null,{"$f":"SUM(HP39:HP53)","v":0},null,{"$f":"SUM(HR39:HR53)","v":0},null,{"$f":"SUM(HT39:HT53)","v":0},null,{"$f":"SUM(HV39:HV53)","v":0},null,{"$f":"SUM(HX39:HX53)","v":0},null,{"$f":"SUM(HZ39:HZ53)","v":0},null,{"$f":"SUM(IB39:IB53)","v":0},null,{"$f":"SUM(ID39:ID53)","v":0},null,{"$f":"SUM(IF39:IF53)","v":0},null,{"$f":"SUM(IH39:IH53)","v":0},null,{"$f":"SUM(IJ39:IJ53)","v":0},null,{"$f":"SUM(IL39:IL53)","v":0},null,{"$f":"SUM(IN39:IN53)","v":0},null,{"$f":"SUM(IP39:IP53)","v":0},null,{"$f":"SUM(IR39:IR53)","v":0},null,{"$f":"SUM(IT39:IT53)","v":0},null,{"$f":"SUM(IV39:IV53)","v":0},null,{"$f":"SUM(IX39:IX53)","v":0},null,{"$f":"SUM(IZ39:IZ53)","v":0},null,{"$f":"SUM(JB39:JB53)","v":0},null,{"$f":"SUM(JD39:JD53)","v":0},null,{"$f":"SUM(JF39:JF53)","v":0},null,{"$f":"SUM(JH39:JH53)","v":0},null,{"$f":"SUM(JJ39:JJ53)","v":0},null,{"$f":"SUM(JL39:JL53)","v":0},null,{"$f":"SUM(JN39:JN53)","v":0},null,{"$f":"SUM(JP39:JP53)","v":0},null,{"$f":"SUM(JR39:JR53)","v":0},null,{"$f":"SUM(JT39:JT53)","v":0},null,{"$f":"SUM(JV39:JV53)","v":0},null,{"$f":"SUM(JX39:JX53)","v":0},null,{"$f":"SUM(JZ39:JZ53)","v":0},null,{"$f":"SUM(KB39:KB53)","v":0},null,{"$f":"SUM(KD39:KD53)","v":0},null,{"$f":"SUM(KF39:KF53)","v":0},null,{"$f":"SUM(KH39:KH53)","v":0},null,{"$f":"SUM(KJ39:KJ53)","v":0},null,{"$f":"SUM(KL39:KL53)","v":0},null,{"$f":"SUM(KN39:KN53)","v":0},null,{"$f":"SUM(KP39:KP53)","v":0},null,{"$f":"SUM(KR39:KR53)","v":0},null,{"$f":"SUM(KT39:KT53)","v":0},null,{"$f":"SUM(KV39:KV53)","v":0},null,{"$f":"SUM(KX39:KX53)","v":0},null,{"$f":"SUM(KZ39:KZ53)","v":0},null,{"$f":"SUM(LB39:LB53)","v":0},null,{"$f":"SUM(LD39:LD53)","v":0},null,{"$f":"SUM(LF39:LF53)","v":0},null,{"$f":"SUM(LH39:LH53)","v":0},null,{"$f":"SUM(LJ39:LJ53)","v":0},null,{"$f":"SUM(LL39:LL53)","v":0},null,{"$f":"SUM(LN39:LN53)","v":0},null,{"$f":"SUM(LP39:LP53)","v":0},null,{"$f":"SUM(LR39:LR53)","v":0},null,{"$f":"SUM(LT39:LT53)","v":0},null,{"$f":"SUM(LV39:LV53)","v":0},null,{"$f":"SUM(LX39:LX53)","v":0},null,{"$f":"SUM(LZ39:LZ53)","v":0},null,{"$f":"SUM(MB39:MB53)","v":0},null,{"$f":"SUM(MD39:MD53)","v":0},null,{"$f":"SUM(MF39:MF53)","v":0},null,{"$f":"SUM(MH39:MH53)","v":0},null,{"$f":"SUM(MJ39:MJ53)","v":0},null,{"$f":"SUM(ML39:ML53)","v":0},null,{"$f":"SUM(MN39:MN53)","v":0},null,{"$f":"SUM(MP39:MP53)","v":0},null,{"$f":"SUM(MR39:MR53)","v":0},null,{"$f":"SUM(MT39:MT53)","v":0},null,{"$f":"SUM(MV39:MV53)","v":0},null,{"$f":"SUM(MX39:MX53)","v":0},null,{"$f":"SUM(MZ39:MZ53)","v":0},null,{"$f":"SUM(NB39:NB53)","v":0},null,{"$f":"SUM(ND39:ND53)","v":0},null,{"$f":"SUM(NF39:NF53)","v":0},null,{"$f":"SUM(NH39:NH53)","v":0},null,{"$f":"SUM(NJ39:NJ53)","v":0},null,{"$f":"SUM(NL39:NL53)","v":0},null,{"$f":"SUM(NN39:NN53)","v":0},null,{"$f":"SUM(NP39:NP53)","v":0},null,{"$f":"SUM(NR39:NR53)","v":0},null,{"$f":"SUM(NT39:NT53)","v":0},null,{"$f":"SUM(NV39:NV53)","v":0},null,{"$f":"SUM(NX39:NX53)","v":0},null,{"$f":"SUM(NZ39:NZ53)","v":0},null,{"$f":"SUM(OB39:OB53)","v":0},null,{"$f":"SUM(OD39:OD53)","v":0},null,{"$f":"SUM(OF39:OF53)","v":0},null,{"$f":"SUM(OH39:OH53)","v":0},null,{"$f":"SUM(OJ39:OJ53)","v":0},null,{"$f":"SUM(OL39:OL53)","v":0},null,{"$f":"SUM(ON39:ON53)","v":0},null,{"$f":"SUM(OP39:OP53)","v":0},null,{"$f":"SUM(OR39:OR53)","v":0},null,{"$f":"SUM(OT39:OT53)","v":0},null,{"$f":"SUM(OV39:OV53)","v":0},null,{"$f":"SUM(OX39:OX53)","v":0},null,{"$f":"SUM(OZ39:OZ53)","v":0},null,{"$f":"SUM(PB39:PB53)","v":0},null,{"$f":"SUM(PD39:PD53)","v":0},null,{"$f":"SUM(PF39:PF53)","v":0},null,{"$f":"SUM(PH39:PH53)","v":0},null,{"$f":"SUM(PJ39:PJ53)","v":0},{"$f":"SUM(PK39:PK53)","v":0},{"$f":"SUM(PL39:PL53)","v":0},{"$f":"SUM(PM39:PM53)","v":0},0,0,0,0,0,{"$f":"SUM(PS39:PS53)","v":0},{"$f":"SUM(PT39:PT53)","v":0}]
[]
[null,null,null,null,null,"Total Annual kWh Cost",null,"Total Annual kWh Cost",null,"Total Annual kWh Cost",null,"Total Annual kWh Cost",null,"Total Annual kWh Cost",null,"Total Annual kWh Cost",null,"Total Annual kWh Cost",null,"Total Annual kWh Cost",null,"Total Annual kWh Cost",null,"Total Annual kWh Cost",null,"Total Annual kWh Cost",null,"Total Annual kWh Cost",null,"Total Annual kWh Cost",null,"Total Annual kWh Cost",null,"Total Annual kWh Cost",null,"Total Annual kWh Cost",null,"Total Annual kWh Cost",null,"Total Annual kWh Cost",null,"Total Annual kWh Cost",null,"Total Annual kWh Cost",null,"Average Annual kWh  Cost",null,"Total Annual kWh Cost",null,"Total Annual kWh Cost",null,"Total Annual kWh Cost",null,"Total Annual kWh Cost",null,"Total Annual kWh Cost",null,"Total Annual kWh Cost",null,"Total Annual kWh Cost",null,"Total Annual kWh Cost",null,"Total Annual kWh Cost",null,"Total Annual kWh Cost",null,"Total Annual kWh Cost",null,"Total Annual kWh Cost",null,"Total Annual kWh Cost",null,"Total Annual kWh Cost",null,"Total Annual kWh Cost",null,"Total Annual kWh Cost",null,"Total Annual kWh Cost",null,"Total Annual kWh Cost",null,"Total Annual kWh Cost",null,"Total Annual kWh Cost",null,"Average Annual kWh  Cost",null,"Total Annual kWh Cost",null,"Total Annual kWh Cost",null,"Total Annual kWh Cost",null,"Total Annual kWh Cost",null,"Total Annual kWh Cost",null,"Total Annual kWh Cost",null,"Total Annual kWh Cost",null,"Total Annual kWh Cost",null,"Total Annual kWh Cost",null,"Total Annual kWh Cost",null,"Total Annual kWh Cost",null,"Total Annual kWh Cost",null,"Total Annual kWh Cost",null,"Total Annual kWh Cost",null,"Total Annual kWh Cost",null,"Total Annual kWh Cost",null,"Total Annual kWh Cost",null,"Total Annual kWh Cost",null,"Total Annual kWh Cost",null,"Total Annual kWh Cost",null,"Average Annual kWh  Cost",null,"Total Annual kWh Cost",null,"Total Annual kWh Cost",null,"Total Annual kWh Cost",null,"Total Annual kWh Cost",null,"Total Annual kWh Cost",null,"Total Annual kWh Cost",null,"Total Annual kWh Cost",null,"Total Annual kWh Cost",null,"Total Annual kWh Cost",null,"Total Annual kWh Cost",null,"Total Annual kWh Cost",null,"Total Annual kWh Cost",null,"Total Annual kWh Cost",null,"Total Annual kWh Cost",null,"Total Annual kWh Cost",null,"Total Annual kWh Cost",null,"Total Annual kWh Cost",null,"Total Annual kWh Cost",null,"Total Annual kWh Cost",null,"Total Annual kWh Cost",null,"Average Annual kWh  Cost",null,"Total Annual kWh Cost",null,"Total Annual kWh Cost",null,"Total Annual kWh Cost",null,"Total Annual kWh Cost",null,"Total Annual kWh Cost",null,"Total Annual kWh Cost",null,"Total Annual kWh Cost",null,"Total Annual kWh Cost",null,"Total Annual kWh Cost",null,"Total Annual kWh Cost",null,"Total Annual kWh Cost",null,"Total Annual kWh Cost",null,"Total Annual kWh Cost",null,"Total Annual kWh Cost",null,"Total Annual kWh Cost",null,"Total Annual kWh Cost",null,"Total Annual kWh Cost",null,"Total Annual kWh Cost",null,"Total Annual kWh Cost",null,"Total Annual kWh Cost",null,"Average Annual kWh  Cost",null,"Total Annual kWh Cost",null,"Total Annual kWh Cost",null,"Total Annual kWh Cost",null,"Total Annual kWh Cost",null,"Total Annual kWh Cost",null,"Total Annual kWh Cost",null,"Total Annual kWh Cost",null,"Total Annual kWh Cost",null,"Total Annual kWh Cost",null,"Total Annual kWh Cost",null,"Total Annual kWh Cost",null,"Total Annual kWh Cost",null,"Total Annual kWh Cost",null,"Total Annual kWh Cost",null,"Total Annual kWh Cost",null,"Total Annual kWh Cost",null,"Total Annual kWh Cost",null,"Total Annual kWh Cost",null,"Total Annual kWh Cost",null,"Total Annual kWh Cost",null,"Average Annual kWh  Cost",null,"Total Annual kWh Cost",null,"Total Annual kWh Cost",null,"Total Annual kWh Cost",null,"Total Annual kWh Cost",null,"Total Annual kWh Cost",null,"Total Annual kWh Cost",null,"Total Annual kWh Cost",null,"Total Annual kWh Cost",null,"Total Annual kWh Cost",null,"Total Annual kWh Cost",null,"Total Annual kWh Cost",null,"Total Annual kWh Cost",null,"Total Annual kWh Cost",null,"Total Annual kWh Cost",null,"Total Annual kWh Cost",null,"Total Annual kWh Cost",null,"Total Annual kWh Cost",null,"Total Annual kWh Cost",null,"Total Annual kWh Cost",null,"Total Annual kWh Cost",null,"Average Annual kWh  Cost",null,"Total Annual kWh Cost",null,"Total Annual kWh Cost",null,"Total Annual kWh Cost",null,"Total Annual kWh Cost",null,"Total Annual kWh Cost",null,"Total Annual kWh Cost",null,"Total Annual kWh Cost",null,"Total Annual kWh Cost",null,"Total Annual kWh Cost",null,"Total Annual kWh Cost",null,"Total Annual kWh Cost",null,"Total Annual kWh Cost",null,"Total Annual kWh Cost",null,"Total Annual kWh Cost",null,"Total Annual kWh Cost",null,"Total Annual kWh Cost",null,"Total Annual kWh Cost",null,"Total Annual kWh Cost",null,"Total Annual kWh Cost",null,"Total Annual kWh Cost",null,"Average Annual kWh  Cost",null,"Total Annual kWh Cost",null,"Total Annual kWh Cost",null,"Total Annual kWh Cost",null,"Total Annual kWh Cost",null,"Total Annual kWh Cost",null,"Total Annual kWh Cost",null,"Total Annual kWh Cost",null,"Total Annual kWh Cost",null,"Total Annual kWh Cost",null,"Total Annual kWh Cost",null,"Total Annual kWh Cost",null,"Total Annual kWh Cost",null,"Total Annual kWh Cost",null,"Total Annual kWh Cost",null,"Total Annual kWh Cost",null,"Total Annual kWh Cost",null,"Total Annual kWh Cost",null,"Total Annual kWh Cost",null,"Total Annual kWh Cost",null,"Total Annual kWh Cost",null,"Average Annual kWh  Cost",null,"Total Annual kWh Cost",null,"Total Annual kWh Cost",null,"Total Annual kWh Cost",null,"Total Annual kWh Cost",null,"Total Annual kWh Cost",null,"Total Annual kWh Cost",null,"Total Annual kWh Cost",null,"Total Annual kWh Cost",null,"Total Annual kWh Cost",null,"Total Annual kWh Cost",null,"Total Annual kWh Cost",null,"Total Annual kWh Cost",null,"Total Annual kWh Cost",null,"Total Annual kWh Cost",null,"Total Annual kWh Cost",null,"Total Annual kWh Cost",null,"Total Annual kWh Cost",null,"Total Annual kWh Cost",null,"Total Annual kWh Cost",null,"Total Annual kWh Cost",null,"Average Annual kWh  Cost",null,"Average Annual kWh  Cost","Average Annual kWh  Cost","Average Annual kWh  Cost","Average Annual kWh  Cost","Average Annual kWh  Cost","Average Annual kWh  Cost","Average Annual kWh  Cost","Average Annual kWh  Cost","Average Annual kWh  Cost","Average Annual kWh  Cost","Total In-Unit Annual kWh  Cost"]
[null,null,null,null,null,null,null,null,null,null,null,null,null,null,null,null,null,null,null,null,null,null,null,null,null,null,null,null,null,null,null,null,null,null,null,null,null,null,null,null,null,null,null,null,null,{"$f":"IF(F57>0,AVERAGE(F57:AR57),0)","v":0},null,null,null,null,null,null,null,null,null,null,null,null,null,null,null,null,null,null,null,null,null,null,null,null,null,null,null,null,null,null,null,null,null,null,null,null,null,null,null,null,null,{"$f":"IF(AV57>0,AVERAGE(AV57:CH57),0)","v":0},null,null,null,null,null,null,null,null,null,null,null,null,null,null,null,null,null,null,null,null,null,null,null,null,null,null,null,null,null,null,null,null,null,null,null,null,null,null,null,null,null,{"$f":"IF(CL57>0,AVERAGE(CN57:DY57),0)","v":0},null,null,null,null,null,null,null,null,null,null,null,null,null,null,null,null,null,null,null,null,null,null,null,null,null,null,null,null,null,null,null,null,null,null,null,null,null,null,null,null,null,{"$f":"IF(EB57>0,AVERAGE(EB57:FN57),0)","v":0},null,null,null,null,null,null,null,null,null,null,null,null,null,null,null,null,null,null,null,null,null,null,null,null,null,null,null,null,null,null,null,null,null,null,null,null,null,null,null,null,null,{"$f":"IF(FR57>0,AVERAGE(FR57:HD57),0)","v":0},null,null,null,null,null,null,null,null,null,null,null,null,null,null,null,null,null,null,null,null,null,null,null,null,null,null,null,null,null,null,null,null,null,null,null,null,null,null,null,null,null,{"$f":"IF(HH57>0,AVERAGE(HH57:IT57),0)","v":0},null,null,null,null,null,null,null,null,null,null,null,null,null,null,null,null,null,null,null,null,null,null,null,null,null,null,null,null,null,null,null,null,null,null,null,null,null,null,null,null,null,{"$f":"IF(IX57>0,AVERAGE(IX57:KJ57),0)","v":0},null,null,null,null,null,null,null,null,null,null,null,null,null,null,null,null,null,null,null,null,null,null,null,null,null,null,null,null,null,null,null,null,null,null,null,null,null,null,null,null,null,{"$f":"IF(KN57>0,AVERAGE(KN57:LZ57),0)","v":0},null,null,null,null,null,null,null,null,null,null,null,null,null,null,null,null,null,null,null,null,null,null,null,null,null,null,null,null,null,null,null,null,null,null,null,null,null,null,null,null,null,{"$f":"IF(MD57>0,AVERAGE(MD57:NP57),0)","v":0},null,null,null,null,null,null,null,null,null,null,null,null,null,null,null,null,null,null,null,null,null,null,null,null,null,null,null,null,null,null,null,null,null,null,null,null,null,null,null,null,null,{"$f":"IF(NT57>0,AVERAGE(NT57:PF57),0)","v":0},null,{"$f":"AT57","v":0},{"$f":"CJ57","v":0},{"$f":"DZ57","v":0},{"$f":"FP57","v":0},{"$f":"HF57","v":0},{"$f":"IV57","v":0},{"$f":"KL57","v":0},{"$f":"MB57","v":0},{"$f":"NR57","v":0},{"$f":"PH57","v":0},{"$f":"SUMPRODUCT($PJ$35:$PS$35,PJ57:PS57)","v":0}]
[]
[null,"Notes:",null,null,null,{"$f":"PJ9","v":"Unit Type 1"},null,null,null,null,null,null,null,null,null,null,null,null,null,null,null,null,null,null,null,null,null,null,null,null,null,null,null,null,null,null,null,null,null,null,null,null,null,null,null,null,null,{"$f":"PK9","v":"Unit Type 2"},null,null,null,null,null,null,null,null,null,null,null,null,null,null,null,null,null,null,null,null,null,null,null,null,null,null,null,null,null,null,null,null,null,null,null,null,null,null,null,null,null,{"$f":"PL9","v":"Unit Type 3"},null,null,null,null,null,null,null,null,null,null,null,null,null,null,null,null,null,null,null,null,null,null,null,null,null,null,null,null,null,null,null,null,null,null,null,null,null,null,null,null,null,{"$f":"PM9","v":"Unit Type 4"},null,null,null,null,null,null,null,null,null,null,null,null,null,null,null,null,null,null,null,null,null,null,null,null,null,null,null,null,null,null,null,null,null,null,null,null,null,null,null,null,null,{"$f":"PN9","v":"Unit Type 5"},null,null,null,null,null,null,null,null,null,null,null,null,null,null,null,null,null,null,null,null,null,null,null,null,null,null,null,null,null,null,null,null,null,null,null,null,null,null,null,null,null,{"$f":"PO9","v":"Unit Type 6"},null,null,null,null,null,null,null,null,null,null,null,null,null,null,null,null,null,null,null,null,null,null,null,null,null,null,null,null,null,null,null,null,null,null,null,null,null,null,null,null,null,{"$f":"PP9","v":"Unit Type 7"},null,null,null,null,null,null,null,null,null,null,null,null,null,null,null,null,null,null,null,null,null,null,null,null,null,null,null,null,null,null,null,null,null,null,null,null,null,null,null,null,null,{"$f":"PQ9","v":"Unit Type 8"},null,null,null,null,null,null,null,null,null,null,null,null,null,null,null,null,null,null,null,null,null,null,null,null,null,null,null,null,null,null,null,null,null,null,null,null,null,null,null,null,null,{"$f":"PR9","v":"Unit Type 9"},null,null,null,null,null,null,null,null,null,null,null,null,null,null,null,null,null,null,null,null,null,null,null,null,null,null,null,null,null,null,null,null,null,null,null,null,null,null,null,null,null,{"$f":"PS9","v":"Unit Type 10"},null,null,null,null,null,null,null,null,null,null,null,null,null,null,null,null,null,null,null,null,null,null,null,null,null,null,null,null,null,null,null,null,null,null,null,null,null,null,null,null,null,"Notes:"]
[null,null,null,null,null,"Pre-Construction Unit #","Post-Construction Unit #","Pre- Construction Use ","Post-Construction Use","Difference","% Difference",null,null,null,null,null,null,null,null,null,null,null,null,null,null,null,null,null,null,null,null,null,null,null,null,null,null,null,null,null,null,null,null,null,null,null,null,"Pre-Construction Unit #","Post-Construction Unit #","Pre- Construction Use ","Post-Construction Use","Difference","% Difference",null,null,null,null,null,null,null,null,null,null,null,null,null,null,null,null,null,null,null,null,null,null,null,null,null,null,null,null,null,null,null,null,null,null,null,null,"Pre-Construction Unit #","Post-Construction Unit #","Pre- Construction Use ","Post-Construction Use","Difference","% Difference",null,null,null,null,null,null,null,null,null,null,null,null,null,null,null,null,null,null,null,null,null,null,null,null,null,null,null,null,null,null,null,null,null,null,null,null,"Pre-Construction Unit #","Post-Construction Unit #","Pre- Construction Use ","Post-Construction Use","Difference","% Difference",null,null,null,null,null,null,null,null,null,null,null,null,null,null,null,null,null,null,null,null,null,null,null,null,null,null,null,null,null,null,null,null,null,null,null,null,"Pre-Construction Unit #","Post-Construction Unit #","Pre- Construction Use ","Post-Construction Use","Difference","% Difference",null,null,null,null,null,null,null,null,null,null,null,null,null,null,null,null,null,null,null,null,null,null,null,null,null,null,null,null,null,null,null,null,null,null,null,null,"Pre-Construction Unit #","Post-Construction Unit #","Pre- Construction Use ","Post-Construction Use","Difference","% Difference",null,null,null,null,null,null,null,null,null,null,null,null,null,null,null,null,null,null,null,null,null,null,null,null,null,null,null,null,null,null,null,null,null,null,null,null,"Pre-Construction Unit #","Post-Construction Unit #","Pre- Construction Use ","Post-Construction Use","Difference","% Difference",null,null,null,null,null,null,null,null,null,null,null,null,null,null,null,null,null,null,null,null,null,null,null,null,null,null,null,null,null,null,null,null,null,null,null,null,"Pre-Construction Unit #","Post-Construction Unit #","Pre- Construction Use ","Post-Construction Use","Difference","% Difference",null,null,null,null,null,null,null,null,null,null,null,null,null,null,null,null,null,null,null,null,null,null,null,null,null,null,null,null,null,null,null,null,null,null,null,null,"Pre-Construction Unit #","Post-Construction Unit #","Pre- Construction Use ","Post-Construction Use","Difference","% Difference",null,null,null,null,null,null,null,null,null,null,null,null,null,null,null,null,null,null,null,null,null,null,null,null,null,null,null,null,null,null,null,null,null,null,null,null,"Pre-Construction Unit #","Post-Construction Unit #","Pre- Construction Use ","Post-Construction Use","Difference","% Difference"]
[null,null,null,null,null,{"$f":"F7","v":0},{"$f":"F34","v":0},{"$f":"F27","v":0},{"$f":"F54","v":0},{"$f":"I61-H61","v":0},{"$f":"IF(H61>0,J61/H61,\"\")","v":""},null,null,null,null,null,null,null,null,null,null,null,null,null,null,null,null,null,null,null,null,null,null,null,null,null,null,null,null,null,null,null,null,null,null,null,null,{"$f":"AV7","v":0},{"$f":"AV34","v":0},{"$f":"AV27","v":0},{"$f":"AV54","v":0},{"$f":"AY61-AX61","v":0},{"$f":"IF(AX61>0,AZ61/AX61,\"\")","v":""},null,null,null,null,null,null,null,null,null,null,null,null,null,null,null,null,null,null,null,null,null,null,null,null,null,null,null,null,null,null,null,null,null,null,null,null,{"$f":"CL7","v":0},{"$f":"CL34","v":0},{"$f":"CL27","v":0},{"$f":"CL54","v":0},{"$f":"CO61-CN61","v":0},{"$f":"IF(CN61>0,CP61/CN61,\"\")","v":""},null,null,null,null,null,null,null,null,null,null,null,null,null,null,null,null,null,null,null,null,null,null,null,null,null,null,null,null,null,null,null,null,null,null,null,null,{"$f":"EB7","v":0},{"$f":"EB34","v":0},{"$f":"EB27","v":0},{"$f":"EB54","v":0},{"$f":"EE61-ED61","v":0},{"$f":"IF(ED61>0,EF61/ED61,\"\")","v":""},null,null,null,null,null,null,null,null,null,null,null,null,null,null,null,null,null,null,null,null,null,null,null,null,null,null,null,null,null,null,null,null,null,null,null,null,{"$f":"FR7","v":0},{"$f":"FR34","v":0},{"$f":"FR27","v":0},{"$f":"FR54","v":0},{"$f":"FU61-FT61","v":0},{"$f":"IF(FT61>0,FV61/FT61,\"\")","v":""},null,null,null,null,null,null,null,null,null,null,null,null,null,null,null,null,null,null,null,null,null,null,null,null,null,null,null,null,null,null,null,null,null,null,null,null,{"$f":"HH7","v":0},{"$f":"HH34","v":0},{"$f":"HH27","v":0},{"$f":"HH54","v":0},{"$f":"HK61-HJ61","v":0},{"$f":"IF(HJ61>0,HL61/HJ61,\"\")","v":""},null,null,null,null,null,null,null,null,null,null,null,null,null,null,null,null,null,null,null,null,null,null,null,null,null,null,null,null,null,null,null,null,null,null,null,null,{"$f":"IX7","v":0},{"$f":"IX34","v":0},{"$f":"IX27","v":0},{"$f":"IX54","v":0},{"$f":"JA61-IZ61","v":0},{"$f":"IF(IZ61>0,JB61/IZ61,\"\")","v":""},null,null,null,null,null,null,null,null,null,null,null,null,null,null,null,null,null,null,null,null,null,null,null,null,null,null,null,null,null,null,null,null,null,null,null,null,{"$f":"KN7","v":0},{"$f":"KN34","v":0},{"$f":"KN27","v":0},{"$f":"KN54","v":0},{"$f":"KQ61-KP61","v":0},{"$f":"IF(KP61>0,KR61/KP61,\"\")","v":""},null,null,null,null,null,null,null,null,null,null,null,null,null,null,null,null,null,null,null,null,null,null,null,null,null,null,null,null,null,null,null,null,null,null,null,null,{"$f":"MD7","v":0},{"$f":"MD34","v":0},{"$f":"MD27","v":0},{"$f":"MD54","v":0},{"$f":"MG61-MF61","v":0},{"$f":"IF(MF61>0,MH61/MF61,\"\")","v":""},null,null,null,null,null,null,null,null,null,null,null,null,null,null,null,null,null,null,null,null,null,null,null,null,null,null,null,null,null,null,null,null,null,null,null,null,{"$f":"NT7","v":0},{"$f":"NT34","v":0},{"$f":"NT27","v":0},{"$f":"NT54","v":0},{"$f":"NW61-NV61","v":0},{"$f":"IF(NV61>0,NX61/NV61,\"\")","v":""}]
[null,null,null,null,null,{"$f":"H7","v":0},{"$f":"H34","v":0},{"$f":"H27","v":0},{"$f":"H54","v":0},0,"",null,null,null,null,null,null,null,null,null,null,null,null,null,null,null,null,null,null,null,null,null,null,null,null,null,null,null,null,null,null,null,null,null,null,null,null,{"$f":"AX7","v":0},{"$f":"AX34","v":0},{"$f":"AX27","v":0},{"$f":"AX54","v":0},0,"",null,null,null,null,null,null,null,null,null,null,null,null,null,null,null,null,null,null,null,null,null,null,null,null,null,null,null,null,null,null,null,null,null,null,null,null,{"$f":"CN7","v":0},{"$f":"CN34","v":0},{"$f":"CN27","v":0},{"$f":"CN54","v":0},0,"",null,null,null,null,null,null,null,null,null,null,null,null,null,null,null,null,null,null,null,null,null,null,null,null,null,null,null,null,null,null,null,null,null,null,null,null,{"$f":"ED7","v":0},{"$f":"ED34","v":0},{"$f":"ED27","v":0},{"$f":"ED54","v":0},0,"",null,null,null,null,null,null,null,null,null,null,null,null,null,null,null,null,null,null,null,null,null,null,null,null,null,null,null,null,null,null,null,null,null,null,null,null,{"$f":"FT7","v":0},{"$f":"FT34","v":0},{"$f":"FT27","v":0},{"$f":"FT54","v":0},0,"",null,null,null,null,null,null,null,null,null,null,null,null,null,null,null,null,null,null,null,null,null,null,null,null,null,null,null,null,null,null,null,null,null,null,null,null,{"$f":"HJ7","v":0},{"$f":"HJ34","v":0},{"$f":"HJ27","v":0},{"$f":"HJ54","v":0},0,"",null,null,null,null,null,null,null,null,null,null,null,null,null,null,null,null,null,null,null,null,null,null,null,null,null,null,null,null,null,null,null,null,null,null,null,null,{"$f":"IZ7","v":0},{"$f":"IZ34","v":0},{"$f":"IZ27","v":0},{"$f":"IZ54","v":0},0,"",null,null,null,null,null,null,null,null,null,null,null,null,null,null,null,null,null,null,null,null,null,null,null,null,null,null,null,null,null,null,null,null,null,null,null,null,{"$f":"KP7","v":0},{"$f":"KP34","v":0},{"$f":"KP27","v":0},{"$f":"KP54","v":0},0,"",null,null,null,null,null,null,null,null,null,null,null,null,null,null,null,null,null,null,null,null,null,null,null,null,null,null,null,null,null,null,null,null,null,null,null,null,{"$f":"MF7","v":0},{"$f":"MF34","v":0},{"$f":"MF27","v":0},{"$f":"MF54","v":0},0,"",null,null,null,null,null,null,null,null,null,null,null,null,null,null,null,null,null,null,null,null,null,null,null,null,null,null,null,null,null,null,null,null,null,null,null,null,{"$f":"NV7","v":0},{"$f":"NV34","v":0},{"$f":"NV27","v":0},{"$f":"NV54","v":0},0,""]
[null,null,null,null,null,{"$f":"J7","v":0},{"$f":"J34","v":0},{"$f":"J27","v":0},{"$f":"J54","v":0},0,"",null,null,null,null,null,null,null,null,null,null,null,null,null,null,null,null,null,null,null,null,null,null,null,null,null,null,null,null,null,null,null,null,null,null,null,null,{"$f":"AZ7","v":0},{"$f":"AZ34","v":0},{"$f":"AZ27","v":0},{"$f":"AZ54","v":0},0,"",null,null,null,null,null,null,null,null,null,null,null,null,null,null,null,null,null,null,null,null,null,null,null,null,null,null,null,null,null,null,null,null,null,null,null,null,{"$f":"CP7","v":0},{"$f":"CP34","v":0},{"$f":"CP27","v":0},{"$f":"CP54","v":0},0,"",null,null,null,null,null,null,null,null,null,null,null,null,null,null,null,null,null,null,null,null,null,null,null,null,null,null,null,null,null,null,null,null,null,null,null,null,{"$f":"EF7","v":0},{"$f":"EF34","v":0},{"$f":"EF27","v":0},{"$f":"EF54","v":0},0,"",null,null,null,null,null,null,null,null,null,null,null,null,null,null,null,null,null,null,null,null,null,null,null,null,null,null,null,null,null,null,null,null,null,null,null,null,{"$f":"FV7","v":0},{"$f":"FV34","v":0},{"$f":"FV27","v":0},{"$f":"FV54","v":0},0,"",null,null,null,null,null,null,null,null,null,null,null,null,null,null,null,null,null,null,null,null,null,null,null,null,null,null,null,null,null,null,null,null,null,null,null,null,{"$f":"HL7","v":0},{"$f":"HL34","v":0},{"$f":"HL27","v":0},{"$f":"HL54","v":0},0,"",null,null,null,null,null,null,null,null,null,null,null,null,null,null,null,null,null,null,null,null,null,null,null,null,null,null,null,null,null,null,null,null,null,null,null,null,{"$f":"JB7","v":0},{"$f":"JB34","v":0},{"$f":"JB27","v":0},{"$f":"JB54","v":0},0,"",null,null,null,null,null,null,null,null,null,null,null,null,null,null,null,null,null,null,null,null,null,null,null,null,null,null,null,null,null,null,null,null,null,null,null,null,{"$f":"KR7","v":0},{"$f":"KR34","v":0},{"$f":"KR27","v":0},{"$f":"KR54","v":0},0,"",null,null,null,null,null,null,null,null,null,null,null,null,null,null,null,null,null,null,null,null,null,null,null,null,null,null,null,null,null,null,null,null,null,null,null,null,{"$f":"MH7","v":0},{"$f":"MH34","v":0},{"$f":"MH27","v":0},{"$f":"MH54","v":0},0,"",null,null,null,null,null,null,null,null,null,null,null,null,null,null,null,null,null,null,null,null,null,null,null,null,null,null,null,null,null,null,null,null,null,null,null,null,{"$f":"NX7","v":0},{"$f":"NX34","v":0},{"$f":"NX27","v":0},{"$f":"NX54","v":0},0,""]
[null,null,null,null,null,{"$f":"L7","v":0},{"$f":"L34","v":0},{"$f":"L27","v":0},{"$f":"L54","v":0},0,"",null,null,null,null,null,null,null,null,null,null,null,null,null,null,null,null,null,null,null,null,null,null,null,null,null,null,null,null,null,null,null,null,null,null,null,null,{"$f":"BB7","v":0},{"$f":"BB34","v":0},{"$f":"BB27","v":0},{"$f":"BB54","v":0},0,"",null,null,null,null,null,null,null,null,null,null,null,null,null,null,null,null,null,null,null,null,null,null,null,null,null,null,null,null,null,null,null,null,null,null,null,null,{"$f":"CR7","v":0},{"$f":"CR34","v":0},{"$f":"CR27","v":0},{"$f":"CR54","v":0},0,"",null,null,null,null,null,null,null,null,null,null,null,null,null,null,null,null,null,null,null,null,null,null,null,null,null,null,null,null,null,null,null,null,null,null,null,null,{"$f":"EH7","v":0},{"$f":"EH34","v":0},{"$f":"EH27","v":0},{"$f":"EH54","v":0},0,"",null,null,null,null,null,null,null,null,null,null,null,null,null,null,null,null,null,null,null,null,null,null,null,null,null,null,null,null,null,null,null,null,null,null,null,null,{"$f":"FX7","v":0},{"$f":"FX34","v":0},{"$f":"FX27","v":0},{"$f":"FX54","v":0},0,"",null,null,null,null,null,null,null,null,null,null,null,null,null,null,null,null,null,null,null,null,null,null,null,null,null,null,null,null,null,null,null,null,null,null,null,null,{"$f":"HN7","v":0},{"$f":"HN34","v":0},{"$f":"HN27","v":0},{"$f":"HN54","v":0},0,"",null,null,null,null,null,null,null,null,null,null,null,null,null,null,null,null,null,null,null,null,null,null,null,null,null,null,null,null,null,null,null,null,null,null,null,null,{"$f":"JD7","v":0},{"$f":"JD34","v":0},{"$f":"JD27","v":0},{"$f":"JD54","v":0},0,"",null,null,null,null,null,null,null,null,null,null,null,null,null,null,null,null,null,null,null,null,null,null,null,null,null,null,null,null,null,null,null,null,null,null,null,null,{"$f":"KT7","v":0},{"$f":"KT34","v":0},{"$f":"KT27","v":0},{"$f":"KT54","v":0},0,"",null,null,null,null,null,null,null,null,null,null,null,null,null,null,null,null,null,null,null,null,null,null,null,null,null,null,null,null,null,null,null,null,null,null,null,null,{"$f":"MJ7","v":0},{"$f":"MJ34","v":0},{"$f":"MJ27","v":0},{"$f":"MJ54","v":0},0,"",null,null,null,null,null,null,null,null,null,null,null,null,null,null,null,null,null,null,null,null,null,null,null,null,null,null,null,null,null,null,null,null,null,null,null,null,{"$f":"NZ7","v":0},{"$f":"NZ34","v":0},{"$f":"NZ27","v":0},{"$f":"NZ54","v":0},0,""]
[null,null,null,null,null,{"$f":"N7","v":0},{"$f":"N34","v":0},{"$f":"N27","v":0},{"$f":"N54","v":0},0,"",null,null,null,null,null,null,null,null,null,null,null,null,null,null,null,null,null,null,null,null,null,null,null,null,null,null,null,null,null,null,null,null,null,null,null,null,{"$f":"BD7","v":0},{"$f":"BD34","v":0},{"$f":"BD27","v":0},{"$f":"BD54","v":0},0,"",null,null,null,null,null,null,null,null,null,null,null,null,null,null,null,null,null,null,null,null,null,null,null,null,null,null,null,null,null,null,null,null,null,null,null,null,{"$f":"CT7","v":0},{"$f":"CT34","v":0},{"$f":"CT27","v":0},{"$f":"CT54","v":0},0,"",null,null,null,null,null,null,null,null,null,null,null,null,null,null,null,null,null,null,null,null,null,null,null,null,null,null,null,null,null,null,null,null,null,null,null,null,{"$f":"EJ7","v":0},{"$f":"EJ34","v":0},{"$f":"EJ27","v":0},{"$f":"EJ54","v":0},0,"",null,null,null,null,null,null,null,null,null,null,null,null,null,null,null,null,null,null,null,null,null,null,null,null,null,null,null,null,null,null,null,null,null,null,null,null,{"$f":"FZ7","v":0},{"$f":"FZ34","v":0},{"$f":"FZ27","v":0},{"$f":"FZ54","v":0},0,"",null,null,null,null,null,null,null,null,null,null,null,null,null,null,null,null,null,null,null,null,null,null,null,null,null,null,null,null,null,null,null,null,null,null,null,null,{"$f":"HP7","v":0},{"$f":"HP34","v":0},{"$f":"HP27","v":0},{"$f":"HP54","v":0},0,"",null,null,null,null,null,null,null,null,null,null,null,null,null,null,null,null,null,null,null,null,null,null,null,null,null,null,null,null,null,null,null,null,null,null,null,null,{"$f":"JF7","v":0},{"$f":"JF34","v":0},{"$f":"JF27","v":0},{"$f":"JF54","v":0},0,"",null,null,null,null,null,null,null,null,null,null,null,null,null,null,null,null,null,null,null,null,null,null,null,null,null,null,null,null,null,null,null,null,null,null,null,null,{"$f":"KV7","v":0},{"$f":"KV34","v":0},{"$f":"KV27","v":0},{"$f":"KV54","v":0},0,"",null,null,null,null,null,null,null,null,null,null,null,null,null,null,null,null,null,null,null,null,null,null,null,null,null,null,null,null,null,null,null,null,null,null,null,null,{"$f":"ML7","v":0},{"$f":"ML34","v":0},{"$f":"ML27","v":0},{"$f":"ML54","v":0},0,"",null,null,null,null,null,null,null,null,null,null,null,null,null,null,null,null,null,null,null,null,null,null,null,null,null,null,null,null,null,null,null,null,null,null,null,null,{"$f":"OB7","v":0},{"$f":"OB34","v":0},{"$f":"OB27","v":0},{"$f":"OB54","v":0},0,""]
[null,null,null,null,null,{"$f":"P7","v":0},{"$f":"P34","v":0},{"$f":"P27","v":0},{"$f":"P54","v":0},0,"",null,null,null,null,null,null,null,null,null,null,null,null,null,null,null,null,null,null,null,null,null,null,null,null,null,null,null,null,null,null,null,null,null,null,null,null,{"$f":"BF7","v":0},{"$f":"BF34","v":0},{"$f":"BF27","v":0},{"$f":"BF54","v":0},0,"",null,null,null,null,null,null,null,null,null,null,null,null,null,null,null,null,null,null,null,null,null,null,null,null,null,null,null,null,null,null,null,null,null,null,null,null,{"$f":"CV7","v":0},{"$f":"CV34","v":0},{"$f":"CV27","v":0},{"$f":"CV54","v":0},0,"",null,null,null,null,null,null,null,null,null,null,null,null,null,null,null,null,null,null,null,null,null,null,null,null,null,null,null,null,null,null,null,null,null,null,null,null,{"$f":"EL7","v":0},{"$f":"EL34","v":0},{"$f":"EL27","v":0},{"$f":"EL54","v":0},0,"",null,null,null,null,null,null,null,null,null,null,null,null,null,null,null,null,null,null,null,null,null,null,null,null,null,null,null,null,null,null,null,null,null,null,null,null,{"$f":"GB7","v":0},{"$f":"GB34","v":0},{"$f":"GB27","v":0},{"$f":"GB54","v":0},0,"",null,null,null,null,null,null,null,null,null,null,null,null,null,null,null,null,null,null,null,null,null,null,null,null,null,null,null,null,null,null,null,null,null,null,null,null,{"$f":"HR7","v":0},{"$f":"HR34","v":0},{"$f":"HR27","v":0},{"$f":"HR54","v":0},0,"",null,null,null,null,null,null,null,null,null,null,null,null,null,null,null,null,null,null,null,null,null,null,null,null,null,null,null,null,null,null,null,null,null,null,null,null,{"$f":"JH7","v":0},{"$f":"JH34","v":0},{"$f":"JH27","v":0},{"$f":"JH54","v":0},0,"",null,null,null,null,null,null,null,null,null,null,null,null,null,null,null,null,null,null,null,null,null,null,null,null,null,null,null,null,null,null,null,null,null,null,null,null,{"$f":"KX7","v":0},{"$f":"KX34","v":0},{"$f":"KX27","v":0},{"$f":"KX54","v":0},0,"",null,null,null,null,null,null,null,null,null,null,null,null,null,null,null,null,null,null,null,null,null,null,null,null,null,null,null,null,null,null,null,null,null,null,null,null,{"$f":"MN7","v":0},{"$f":"MN34","v":0},{"$f":"MN27","v":0},{"$f":"MN54","v":0},0,"",null,null,null,null,null,null,null,null,null,null,null,null,null,null,null,null,null,null,null,null,null,null,null,null,null,null,null,null,null,null,null,null,null,null,null,null,{"$f":"OD7","v":0},{"$f":"OD34","v":0},{"$f":"OD27","v":0},{"$f":"OD54","v":0},0,""]
[null,null,null,null,null,{"$f":"R7","v":0},{"$f":"R34","v":0},{"$f":"R27","v":0},{"$f":"R54","v":0},0,"",null,null,null,null,null,null,null,null,null,null,null,null,null,null,null,null,null,null,null,null,null,null,null,null,null,null,null,null,null,null,null,null,null,null,null,null,{"$f":"BH7","v":0},{"$f":"BH34","v":0},{"$f":"BH27","v":0},{"$f":"BH54","v":0},0,"",null,null,null,null,null,null,null,null,null,null,null,null,null,null,null,null,null,null,null,null,null,null,null,null,null,null,null,null,null,null,null,null,null,null,null,null,{"$f":"CX7","v":0},{"$f":"CX34","v":0},{"$f":"CX27","v":0},{"$f":"CX54","v":0},0,"",null,null,null,null,null,null,null,null,null,null,null,null,null,null,null,null,null,null,null,null,null,null,null,null,null,null,null,null,null,null,null,null,null,null,null,null,{"$f":"EN7","v":0},{"$f":"EN34","v":0},{"$f":"EN27","v":0},{"$f":"EN54","v":0},0,"",null,null,null,null,null,null,null,null,null,null,null,null,null,null,null,null,null,null,null,null,null,null,null,null,null,null,null,null,null,null,null,null,null,null,null,null,{"$f":"GD7","v":0},{"$f":"GD34","v":0},{"$f":"GD27","v":0},{"$f":"GD54","v":0},0,"",null,null,null,null,null,null,null,null,null,null,null,null,null,null,null,null,null,null,null,null,null,null,null,null,null,null,null,null,null,null,null,null,null,null,null,null,{"$f":"HT7","v":0},{"$f":"HT34","v":0},{"$f":"HT27","v":0},{"$f":"HT54","v":0},0,"",null,null,null,null,null,null,null,null,null,null,null,null,null,null,null,null,null,null,null,null,null,null,null,null,null,null,null,null,null,null,null,null,null,null,null,null,{"$f":"JJ7","v":0},{"$f":"JJ34","v":0},{"$f":"JJ27","v":0},{"$f":"JJ54","v":0},0,"",null,null,null,null,null,null,null,null,null,null,null,null,null,null,null,null,null,null,null,null,null,null,null,null,null,null,null,null,null,null,null,null,null,null,null,null,{"$f":"KZ7","v":0},{"$f":"KZ34","v":0},{"$f":"KZ27","v":0},{"$f":"KZ54","v":0},0,"",null,null,null,null,null,null,null,null,null,null,null,null,null,null,null,null,null,null,null,null,null,null,null,null,null,null,null,null,null,null,null,null,null,null,null,null,{"$f":"MP7","v":0},{"$f":"MP34","v":0},{"$f":"MP27","v":0},{"$f":"MP54","v":0},0,"",null,null,null,null,null,null,null,null,null,null,null,null,null,null,null,null,null,null,null,null,null,null,null,null,null,null,null,null,null,null,null,null,null,null,null,null,{"$f":"OF7","v":0},{"$f":"OF34","v":0},{"$f":"OF27","v":0},{"$f":"OF54","v":0},0,""]
[null,null,null,null,null,{"$f":"T7","v":0},{"$f":"T34","v":0},{"$f":"T27","v":0},{"$f":"T54","v":0},0,"",null,null,null,null,null,null,null,null,null,null,null,null,null,null,null,null,null,null,null,null,null,null,null,null,null,null,null,null,null,null,null,null,null,null,null,null,{"$f":"BJ7","v":0},{"$f":"BJ34","v":0},{"$f":"BJ27","v":0},{"$f":"BJ54","v":0},0,"",null,null,null,null,null,null,null,null,null,null,null,null,null,null,null,null,null,null,null,null,null,null,null,null,null,null,null,null,null,null,null,null,null,null,null,null,{"$f":"CZ7","v":0},{"$f":"CZ34","v":0},{"$f":"CZ27","v":0},{"$f":"CZ54","v":0},0,"",null,null,null,null,null,null,null,null,null,null,null,null,null,null,null,null,null,null,null,null,null,null,null,null,null,null,null,null,null,null,null,null,null,null,null,null,{"$f":"EP7","v":0},{"$f":"EP34","v":0},{"$f":"EP27","v":0},{"$f":"EP54","v":0},0,"",null,null,null,null,null,null,null,null,null,null,null,null,null,null,null,null,null,null,null,null,null,null,null,null,null,null,null,null,null,null,null,null,null,null,null,null,{"$f":"GF7","v":0},{"$f":"GF34","v":0},{"$f":"GF27","v":0},{"$f":"GF54","v":0},0,"",null,null,null,null,null,null,null,null,null,null,null,null,null,null,null,null,null,null,null,null,null,null,null,null,null,null,null,null,null,null,null,null,null,null,null,null,{"$f":"HV7","v":0},{"$f":"HV34","v":0},{"$f":"HV27","v":0},{"$f":"HV54","v":0},0,"",null,null,null,null,null,null,null,null,null,null,null,null,null,null,null,null,null,null,null,null,null,null,null,null,null,null,null,null,null,null,null,null,null,null,null,null,{"$f":"JL7","v":0},{"$f":"JL34","v":0},{"$f":"JL27","v":0},{"$f":"JL54","v":0},0,"",null,null,null,null,null,null,null,null,null,null,null,null,null,null,null,null,null,null,null,null,null,null,null,null,null,null,null,null,null,null,null,null,null,null,null,null,{"$f":"LB7","v":0},{"$f":"LB34","v":0},{"$f":"LB27","v":0},{"$f":"LB54","v":0},0,"",null,null,null,null,null,null,null,null,null,null,null,null,null,null,null,null,null,null,null,null,null,null,null,null,null,null,null,null,null,null,null,null,null,null,null,null,{"$f":"MR7","v":0},{"$f":"MR34","v":0},{"$f":"MR27","v":0},{"$f":"MR54","v":0},0,"",null,null,null,null,null,null,null,null,null,null,null,null,null,null,null,null,null,null,null,null,null,null,null,null,null,null,null,null,null,null,null,null,null,null,null,null,{"$f":"OH7","v":0},{"$f":"OH34","v":0},{"$f":"OH27","v":0},{"$f":"OH54","v":0},0,""]
[null,null,null,null,null,{"$f":"V7","v":0},{"$f":"V34","v":0},{"$f":"V27","v":0},{"$f":"V54","v":0},0,"",null,null,null,null,null,null,null,null,null,null,null,null,null,null,null,null,null,null,null,null,null,null,null,null,null,null,null,null,null,null,null,null,null,null,null,null,{"$f":"BL7","v":0},{"$f":"BL34","v":0},{"$f":"BL27","v":0},{"$f":"BL54","v":0},0,"",null,null,null,null,null,null,null,null,null,null,null,null,null,null,null,null,null,null,null,null,null,null,null,null,null,null,null,null,null,null,null,null,null,null,null,null,{"$f":"DB7","v":0},{"$f":"DB34","v":0},{"$f":"DB27","v":0},{"$f":"DB54","v":0},0,"",null,null,null,null,null,null,null,null,null,null,null,null,null,null,null,null,null,null,null,null,null,null,null,null,null,null,null,null,null,null,null,null,null,null,null,null,{"$f":"ER7","v":0},{"$f":"ER34","v":0},{"$f":"ER27","v":0},{"$f":"ER54","v":0},0,"",null,null,null,null,null,null,null,null,null,null,null,null,null,null,null,null,null,null,null,null,null,null,null,null,null,null,null,null,null,null,null,null,null,null,null,null,{"$f":"GH7","v":0},{"$f":"GH34","v":0},{"$f":"GH27","v":0},{"$f":"GH54","v":0},0,"",null,null,null,null,null,null,null,null,null,null,null,null,null,null,null,null,null,null,null,null,null,null,null,null,null,null,null,null,null,null,null,null,null,null,null,null,{"$f":"HX7","v":0},{"$f":"HX34","v":0},{"$f":"HX27","v":0},{"$f":"HX54","v":0},0,"",null,null,null,null,null,null,null,null,null,null,null,null,null,null,null,null,null,null,null,null,null,null,null,null,null,null,null,null,null,null,null,null,null,null,null,null,{"$f":"JN7","v":0},{"$f":"JN34","v":0},{"$f":"JN27","v":0},{"$f":"JN54","v":0},0,"",null,null,null,null,null,null,null,null,null,null,null,null,null,null,null,null,null,null,null,null,null,null,null,null,null,null,null,null,null,null,null,null,null,null,null,null,{"$f":"LD7","v":0},{"$f":"LD34","v":0},{"$f":"LD27","v":0},{"$f":"LD54","v":0},0,"",null,null,null,null,null,null,null,null,null,null,null,null,null,null,null,null,null,null,null,null,null,null,null,null,null,null,null,null,null,null,null,null,null,null,null,null,{"$f":"MT7","v":0},{"$f":"MT34","v":0},{"$f":"MT27","v":0},{"$f":"MT54","v":0},0,"",null,null,null,null,null,null,null,null,null,null,null,null,null,null,null,null,null,null,null,null,null,null,null,null,null,null,null,null,null,null,null,null,null,null,null,null,{"$f":"OJ7","v":0},{"$f":"OJ34","v":0},{"$f":"OJ27","v":0},{"$f":"OJ54","v":0},0,""]
[null,null,null,null,null,{"$f":"X7","v":0},{"$f":"X34","v":0},{"$f":"X27","v":0},{"$f":"X54","v":0},0,"",null,null,null,null,null,null,null,null,null,null,null,null,null,null,null,null,null,null,null,null,null,null,null,null,null,null,null,null,null,null,null,null,null,null,null,null,{"$f":"BN7","v":0},{"$f":"BN34","v":0},{"$f":"BN27","v":0},{"$f":"BN54","v":0},0,"",null,null,null,null,null,null,null,null,null,null,null,null,null,null,null,null,null,null,null,null,null,null,null,null,null,null,null,null,null,null,null,null,null,null,null,null,{"$f":"DD7","v":0},{"$f":"DD34","v":0},{"$f":"DD27","v":0},{"$f":"DD54","v":0},0,"",null,null,null,null,null,null,null,null,null,null,null,null,null,null,null,null,null,null,null,null,null,null,null,null,null,null,null,null,null,null,null,null,null,null,null,null,{"$f":"ET7","v":0},{"$f":"ET34","v":0},{"$f":"ET27","v":0},{"$f":"ET54","v":0},0,"",null,null,null,null,null,null,null,null,null,null,null,null,null,null,null,null,null,null,null,null,null,null,null,null,null,null,null,null,null,null,null,null,null,null,null,null,{"$f":"GJ7","v":0},{"$f":"GJ34","v":0},{"$f":"GJ27","v":0},{"$f":"GJ54","v":0},0,"",null,null,null,null,null,null,null,null,null,null,null,null,null,null,null,null,null,null,null,null,null,null,null,null,null,null,null,null,null,null,null,null,null,null,null,null,{"$f":"HZ7","v":0},{"$f":"HZ34","v":0},{"$f":"HZ27","v":0},{"$f":"HZ54","v":0},0,"",null,null,null,null,null,null,null,null,null,null,null,null,null,null,null,null,null,null,null,null,null,null,null,null,null,null,null,null,null,null,null,null,null,null,null,null,{"$f":"JP7","v":0},{"$f":"JP34","v":0},{"$f":"JP27","v":0},{"$f":"JP54","v":0},0,"",null,null,null,null,null,null,null,null,null,null,null,null,null,null,null,null,null,null,null,null,null,null,null,null,null,null,null,null,null,null,null,null,null,null,null,null,{"$f":"LF7","v":0},{"$f":"LF34","v":0},{"$f":"LF27","v":0},{"$f":"LF54","v":0},0,"",null,null,null,null,null,null,null,null,null,null,null,null,null,null,null,null,null,null,null,null,null,null,null,null,null,null,null,null,null,null,null,null,null,null,null,null,{"$f":"MV7","v":0},{"$f":"MV34","v":0},{"$f":"MV27","v":0},{"$f":"MV54","v":0},0,"",null,null,null,null,null,null,null,null,null,null,null,null,null,null,null,null,null,null,null,null,null,null,null,null,null,null,null,null,null,null,null,null,null,null,null,null,{"$f":"OL7","v":0},{"$f":"OL34","v":0},{"$f":"OL27","v":0},{"$f":"OL54","v":0},0,""]
[null,null,null,null,null,{"$f":"Z7","v":0},{"$f":"Z34","v":0},{"$f":"Z27","v":0},{"$f":"Z54","v":0},0,"",null,null,null,null,null,null,null,null,null,null,null,null,null,null,null,null,null,null,null,null,null,null,null,null,null,null,null,null,null,null,null,null,null,null,null,null,{"$f":"BP7","v":0},{"$f":"BP34","v":0},{"$f":"BP27","v":0},{"$f":"BP54","v":0},0,"",null,null,null,null,null,null,null,null,null,null,null,null,null,null,null,null,null,null,null,null,null,null,null,null,null,null,null,null,null,null,null,null,null,null,null,null,{"$f":"DF7","v":0},{"$f":"DF34","v":0},{"$f":"DF27","v":0},{"$f":"DF54","v":0},0,"",null,null,null,null,null,null,null,null,null,null,null,null,null,null,null,null,null,null,null,null,null,null,null,null,null,null,null,null,null,null,null,null,null,null,null,null,{"$f":"EV7","v":0},{"$f":"EV34","v":0},{"$f":"EV27","v":0},{"$f":"EV54","v":0},0,"",null,null,null,null,null,null,null,null,null,null,null,null,null,null,null,null,null,null,null,null,null,null,null,null,null,null,null,null,null,null,null,null,null,null,null,null,{"$f":"GL7","v":0},{"$f":"GL34","v":0},{"$f":"GL27","v":0},{"$f":"GL54","v":0},0,"",null,null,null,null,null,null,null,null,null,null,null,null,null,null,null,null,null,null,null,null,null,null,null,null,null,null,null,null,null,null,null,null,null,null,null,null,{"$f":"IB7","v":0},{"$f":"IB34","v":0},{"$f":"IB27","v":0},{"$f":"IB54","v":0},0,"",null,null,null,null,null,null,null,null,null,null,null,null,null,null,null,null,null,null,null,null,null,null,null,null,null,null,null,null,null,null,null,null,null,null,null,null,{"$f":"JR7","v":0},{"$f":"JR34","v":0},{"$f":"JR27","v":0},{"$f":"JR54","v":0},0,"",null,null,null,null,null,null,null,null,null,null,null,null,null,null,null,null,null,null,null,null,null,null,null,null,null,null,null,null,null,null,null,null,null,null,null,null,{"$f":"LH7","v":0},{"$f":"LH34","v":0},{"$f":"LH27","v":0},{"$f":"LH54","v":0},0,"",null,null,null,null,null,null,null,null,null,null,null,null,null,null,null,null,null,null,null,null,null,null,null,null,null,null,null,null,null,null,null,null,null,null,null,null,{"$f":"MX7","v":0},{"$f":"MX34","v":0},{"$f":"MX27","v":0},{"$f":"MX54","v":0},0,"",null,null,null,null,null,null,null,null,null,null,null,null,null,null,null,null,null,null,null,null,null,null,null,null,null,null,null,null,null,null,null,null,null,null,null,null,{"$f":"ON7","v":0},{"$f":"ON34","v":0},{"$f":"ON27","v":0},{"$f":"ON54","v":0},0,""]
[null,null,null,null,null,{"$f":"AB7","v":0},{"$f":"AB34","v":0},{"$f":"AB27","v":0},{"$f":"AB54","v":0},0,"",null,null,null,null,null,null,null,null,null,null,null,null,null,null,null,null,null,null,null,null,null,null,null,null,null,null,null,null,null,null,null,null,null,null,null,null,{"$f":"BR7","v":0},{"$f":"BR34","v":0},{"$f":"BR27","v":0},{"$f":"BR54","v":0},0,"",null,null,null,null,null,null,null,null,null,null,null,null,null,null,null,null,null,null,null,null,null,null,null,null,null,null,null,null,null,null,null,null,null,null,null,null,{"$f":"DH7","v":0},{"$f":"DH34","v":0},{"$f":"DH27","v":0},{"$f":"DH54","v":0},0,"",null,null,null,null,null,null,null,null,null,null,null,null,null,null,null,null,null,null,null,null,null,null,null,null,null,null,null,null,null,null,null,null,null,null,null,null,{"$f":"EX7","v":0},{"$f":"EX34","v":0},{"$f":"EX27","v":0},{"$f":"EX54","v":0},0,"",null,null,null,null,null,null,null,null,null,null,null,null,null,null,null,null,null,null,null,null,null,null,null,null,null,null,null,null,null,null,null,null,null,null,null,null,{"$f":"GN7","v":0},{"$f":"GN34","v":0},{"$f":"GN27","v":0},{"$f":"GN54","v":0},0,"",null,null,null,null,null,null,null,null,null,null,null,null,null,null,null,null,null,null,null,null,null,null,null,null,null,null,null,null,null,null,null,null,null,null,null,null,{"$f":"ID7","v":0},{"$f":"ID34","v":0},{"$f":"ID27","v":0},{"$f":"ID54","v":0},0,"",null,null,null,null,null,null,null,null,null,null,null,null,null,null,null,null,null,null,null,null,null,null,null,null,null,null,null,null,null,null,null,null,null,null,null,null,{"$f":"JT7","v":0},{"$f":"JT34","v":0},{"$f":"JT27","v":0},{"$f":"JT54","v":0},0,"",null,null,null,null,null,null,null,null,null,null,null,null,null,null,null,null,null,null,null,null,null,null,null,null,null,null,null,null,null,null,null,null,null,null,null,null,{"$f":"LJ7","v":0},{"$f":"LJ34","v":0},{"$f":"LJ27","v":0},{"$f":"LJ54","v":0},0,"",null,null,null,null,null,null,null,null,null,null,null,null,null,null,null,null,null,null,null,null,null,null,null,null,null,null,null,null,null,null,null,null,null,null,null,null,{"$f":"MZ7","v":0},{"$f":"MZ34","v":0},{"$f":"MZ27","v":0},{"$f":"MZ54","v":0},0,"",null,null,null,null,null,null,null,null,null,null,null,null,null,null,null,null,null,null,null,null,null,null,null,null,null,null,null,null,null,null,null,null,null,null,null,null,{"$f":"OP7","v":0},{"$f":"OP34","v":0},{"$f":"OP27","v":0},{"$f":"OP54","v":0},0,""]
[null,null,null,null,null,{"$f":"AD7","v":0},{"$f":"AD34","v":0},{"$f":"AD27","v":0},{"$f":"AD54","v":0},0,"",null,null,null,null,null,null,null,null,null,null,null,null,null,null,null,null,null,null,null,null,null,null,null,null,null,null,null,null,null,null,null,null,null,null,null,null,{"$f":"BT7","v":0},{"$f":"BT34","v":0},{"$f":"BT27","v":0},{"$f":"BT54","v":0},0,"",null,null,null,null,null,null,null,null,null,null,null,null,null,null,null,null,null,null,null,null,null,null,null,null,null,null,null,null,null,null,null,null,null,null,null,null,{"$f":"DJ7","v":0},{"$f":"DJ34","v":0},{"$f":"DJ27","v":0},{"$f":"DJ54","v":0},0,"",null,null,null,null,null,null,null,null,null,null,null,null,null,null,null,null,null,null,null,null,null,null,null,null,null,null,null,null,null,null,null,null,null,null,null,null,{"$f":"EZ7","v":0},{"$f":"EZ34","v":0},{"$f":"EZ27","v":0},{"$f":"EZ54","v":0},0,"",null,null,null,null,null,null,null,null,null,null,null,null,null,null,null,null,null,null,null,null,null,null,null,null,null,null,null,null,null,null,null,null,null,null,null,null,{"$f":"GP7","v":0},{"$f":"GP34","v":0},{"$f":"GP27","v":0},{"$f":"GP54","v":0},0,"",null,null,null,null,null,null,null,null,null,null,null,null,null,null,null,null,null,null,null,null,null,null,null,null,null,null,null,null,null,null,null,null,null,null,null,null,{"$f":"IF7","v":0},{"$f":"IF34","v":0},{"$f":"IF27","v":0},{"$f":"IF54","v":0},0,"",null,null,null,null,null,null,null,null,null,null,null,null,null,null,null,null,null,null,null,null,null,null,null,null,null,null,null,null,null,null,null,null,null,null,null,null,{"$f":"JV7","v":0},{"$f":"JV34","v":0},{"$f":"JV27","v":0},{"$f":"JV54","v":0},0,"",null,null,null,null,null,null,null,null,null,null,null,null,null,null,null,null,null,null,null,null,null,null,null,null,null,null,null,null,null,null,null,null,null,null,null,null,{"$f":"LL7","v":0},{"$f":"LL34","v":0},{"$f":"LL27","v":0},{"$f":"LL54","v":0},0,"",null,null,null,null,null,null,null,null,null,null,null,null,null,null,null,null,null,null,null,null,null,null,null,null,null,null,null,null,null,null,null,null,null,null,null,null,{"$f":"NB7","v":0},{"$f":"NB34","v":0},{"$f":"NB27","v":0},{"$f":"NB54","v":0},0,"",null,null,null,null,null,null,null,null,null,null,null,null,null,null,null,null,null,null,null,null,null,null,null,null,null,null,null,null,null,null,null,null,null,null,null,null,{"$f":"OR7","v":0},{"$f":"OR34","v":0},{"$f":"OR27","v":0},{"$f":"OR54","v":0},0,""]
[null,null,null,null,null,{"$f":"AF7","v":0},{"$f":"AF34","v":0},{"$f":"AF27","v":0},{"$f":"AF54","v":0},0,"",null,null,null,null,null,null,null,null,null,null,null,null,null,null,null,null,null,null,null,null,null,null,null,null,null,null,null,null,null,null,null,null,null,null,null,null,{"$f":"BV7","v":0},{"$f":"BV34","v":0},{"$f":"BV27","v":0},{"$f":"BV54","v":0},0,"",null,null,null,null,null,null,null,null,null,null,null,null,null,null,null,null,null,null,null,null,null,null,null,null,null,null,null,null,null,null,null,null,null,null,null,null,{"$f":"DL7","v":0},{"$f":"DL34","v":0},{"$f":"DL27","v":0},{"$f":"DL54","v":0},0,"",null,null,null,null,null,null,null,null,null,null,null,null,null,null,null,null,null,null,null,null,null,null,null,null,null,null,null,null,null,null,null,null,null,null,null,null,{"$f":"FB7","v":0},{"$f":"FB34","v":0},{"$f":"FB27","v":0},{"$f":"FB54","v":0},0,"",null,null,null,null,null,null,null,null,null,null,null,null,null,null,null,null,null,null,null,null,null,null,null,null,null,null,null,null,null,null,null,null,null,null,null,null,{"$f":"GR7","v":0},{"$f":"GR34","v":0},{"$f":"GR27","v":0},{"$f":"GR54","v":0},0,"",null,null,null,null,null,null,null,null,null,null,null,null,null,null,null,null,null,null,null,null,null,null,null,null,null,null,null,null,null,null,null,null,null,null,null,null,{"$f":"IH7","v":0},{"$f":"IH34","v":0},{"$f":"IH27","v":0},{"$f":"IH54","v":0},0,"",null,null,null,null,null,null,null,null,null,null,null,null,null,null,null,null,null,null,null,null,null,null,null,null,null,null,null,null,null,null,null,null,null,null,null,null,{"$f":"JX7","v":0},{"$f":"JX34","v":0},{"$f":"JX27","v":0},{"$f":"JX54","v":0},0,"",null,null,null,null,null,null,null,null,null,null,null,null,null,null,null,null,null,null,null,null,null,null,null,null,null,null,null,null,null,null,null,null,null,null,null,null,{"$f":"LN7","v":0},{"$f":"LN34","v":0},{"$f":"LN27","v":0},{"$f":"LN54","v":0},0,"",null,null,null,null,null,null,null,null,null,null,null,null,null,null,null,null,null,null,null,null,null,null,null,null,null,null,null,null,null,null,null,null,null,null,null,null,{"$f":"ND7","v":0},{"$f":"ND34","v":0},{"$f":"ND27","v":0},{"$f":"ND54","v":0},0,"",null,null,null,null,null,null,null,null,null,null,null,null,null,null,null,null,null,null,null,null,null,null,null,null,null,null,null,null,null,null,null,null,null,null,null,null,{"$f":"OT7","v":0},{"$f":"OT34","v":0},{"$f":"OT27","v":0},{"$f":"OT54","v":0},0,""]
[null,null,null,null,null,{"$f":"AH7","v":0},{"$f":"AH34","v":0},{"$f":"AH27","v":0},{"$f":"AH54","v":0},0,"",null,null,null,null,null,null,null,null,null,null,null,null,null,null,null,null,null,null,null,null,null,null,null,null,null,null,null,null,null,null,null,null,null,null,null,null,{"$f":"BX7","v":0},{"$f":"BX34","v":0},{"$f":"BX27","v":0},{"$f":"BX54","v":0},0,"",null,null,null,null,null,null,null,null,null,null,null,null,null,null,null,null,null,null,null,null,null,null,null,null,null,null,null,null,null,null,null,null,null,null,null,null,{"$f":"DN7","v":0},{"$f":"DN34","v":0},{"$f":"DN27","v":0},{"$f":"DN54","v":0},0,"",null,null,null,null,null,null,null,null,null,null,null,null,null,null,null,null,null,null,null,null,null,null,null,null,null,null,null,null,null,null,null,null,null,null,null,null,{"$f":"FD7","v":0},{"$f":"FD34","v":0},{"$f":"FD27","v":0},{"$f":"FD54","v":0},0,"",null,null,null,null,null,null,null,null,null,null,null,null,null,null,null,null,null,null,null,null,null,null,null,null,null,null,null,null,null,null,null,null,null,null,null,null,{"$f":"GT7","v":0},{"$f":"GT34","v":0},{"$f":"GT27","v":0},{"$f":"GT54","v":0},0,"",null,null,null,null,null,null,null,null,null,null,null,null,null,null,null,null,null,null,null,null,null,null,null,null,null,null,null,null,null,null,null,null,null,null,null,null,{"$f":"IJ7","v":0},{"$f":"IJ34","v":0},{"$f":"IJ27","v":0},{"$f":"IJ54","v":0},0,"",null,null,null,null,null,null,null,null,null,null,null,null,null,null,null,null,null,null,null,null,null,null,null,null,null,null,null,null,null,null,null,null,null,null,null,null,{"$f":"JZ7","v":0},{"$f":"JZ34","v":0},{"$f":"JZ27","v":0},{"$f":"JZ54","v":0},0,"",null,null,null,null,null,null,null,null,null,null,null,null,null,null,null,null,null,null,null,null,null,null,null,null,null,null,null,null,null,null,null,null,null,null,null,null,{"$f":"LP7","v":0},{"$f":"LP34","v":0},{"$f":"LP27","v":0},{"$f":"LP54","v":0},0,"",null,null,null,null,null,null,null,null,null,null,null,null,null,null,null,null,null,null,null,null,null,null,null,null,null,null,null,null,null,null,null,null,null,null,null,null,{"$f":"NF7","v":0},{"$f":"NF34","v":0},{"$f":"NF27","v":0},{"$f":"NF54","v":0},0,"",null,null,null,null,null,null,null,null,null,null,null,null,null,null,null,null,null,null,null,null,null,null,null,null,null,null,null,null,null,null,null,null,null,null,null,null,{"$f":"OV7","v":0},{"$f":"OV34","v":0},{"$f":"OV27","v":0},{"$f":"OV54","v":0},0,""]
[null,null,null,null,null,{"$f":"AJ7","v":0},{"$f":"AJ34","v":0},{"$f":"AJ27","v":0},{"$f":"AJ54","v":0},0,"",null,null,null,null,null,null,null,null,null,null,null,null,null,null,null,null,null,null,null,null,null,null,null,null,null,null,null,null,null,null,null,null,null,null,null,null,{"$f":"BZ7","v":0},{"$f":"BZ34","v":0},{"$f":"BZ27","v":0},{"$f":"BZ54","v":0},0,"",null,null,null,null,null,null,null,null,null,null,null,null,null,null,null,null,null,null,null,null,null,null,null,null,null,null,null,null,null,null,null,null,null,null,null,null,{"$f":"DP7","v":0},{"$f":"DP34","v":0},{"$f":"DP27","v":0},{"$f":"DP54","v":0},0,"",null,null,null,null,null,null,null,null,null,null,null,null,null,null,null,null,null,null,null,null,null,null,null,null,null,null,null,null,null,null,null,null,null,null,null,null,{"$f":"FF7","v":0},{"$f":"FF34","v":0},{"$f":"FF27","v":0},{"$f":"FF54","v":0},0,"",null,null,null,null,null,null,null,null,null,null,null,null,null,null,null,null,null,null,null,null,null,null,null,null,null,null,null,null,null,null,null,null,null,null,null,null,{"$f":"GV7","v":0},{"$f":"GV34","v":0},{"$f":"GV27","v":0},{"$f":"GV54","v":0},0,"",null,null,null,null,null,null,null,null,null,null,null,null,null,null,null,null,null,null,null,null,null,null,null,null,null,null,null,null,null,null,null,null,null,null,null,null,{"$f":"IL7","v":0},{"$f":"IL34","v":0},{"$f":"IL27","v":0},{"$f":"IL54","v":0},0,"",null,null,null,null,null,null,null,null,null,null,null,null,null,null,null,null,null,null,null,null,null,null,null,null,null,null,null,null,null,null,null,null,null,null,null,null,{"$f":"KB7","v":0},{"$f":"KB34","v":0},{"$f":"KB27","v":0},{"$f":"KB54","v":0},0,"",null,null,null,null,null,null,null,null,null,null,null,null,null,null,null,null,null,null,null,null,null,null,null,null,null,null,null,null,null,null,null,null,null,null,null,null,{"$f":"LR7","v":0},{"$f":"LR34","v":0},{"$f":"LR27","v":0},{"$f":"LR54","v":0},0,"",null,null,null,null,null,null,null,null,null,null,null,null,null,null,null,null,null,null,null,null,null,null,null,null,null,null,null,null,null,null,null,null,null,null,null,null,{"$f":"NH7","v":0},{"$f":"NH34","v":0},{"$f":"NH27","v":0},{"$f":"NH54","v":0},0,"",null,null,null,null,null,null,null,null,null,null,null,null,null,null,null,null,null,null,null,null,null,null,null,null,null,null,null,null,null,null,null,null,null,null,null,null,{"$f":"OX7","v":0},{"$f":"OX34","v":0},{"$f":"OX27","v":0},{"$f":"OX54","v":0},0,""]
[null,null,null,null,null,{"$f":"AL7","v":0},{"$f":"AL34","v":0},{"$f":"AL27","v":0},{"$f":"AL54","v":0},0,"",null,null,null,null,null,null,null,null,null,null,null,null,null,null,null,null,null,null,null,null,null,null,null,null,null,null,null,null,null,null,null,null,null,null,null,null,{"$f":"CB7","v":0},{"$f":"CB34","v":0},{"$f":"CB27","v":0},{"$f":"CB54","v":0},0,"",null,null,null,null,null,null,null,null,null,null,null,null,null,null,null,null,null,null,null,null,null,null,null,null,null,null,null,null,null,null,null,null,null,null,null,null,{"$f":"DR7","v":0},{"$f":"DR34","v":0},{"$f":"DR27","v":0},{"$f":"DR54","v":0},0,"",null,null,null,null,null,null,null,null,null,null,null,null,null,null,null,null,null,null,null,null,null,null,null,null,null,null,null,null,null,null,null,null,null,null,null,null,{"$f":"FH7","v":0},{"$f":"FH34","v":0},{"$f":"FH27","v":0},{"$f":"FH54","v":0},0,"",null,null,null,null,null,null,null,null,null,null,null,null,null,null,null,null,null,null,null,null,null,null,null,null,null,null,null,null,null,null,null,null,null,null,null,null,{"$f":"GX7","v":0},{"$f":"GX34","v":0},{"$f":"GX27","v":0},{"$f":"GX54","v":0},0,"",null,null,null,null,null,null,null,null,null,null,null,null,null,null,null,null,null,null,null,null,null,null,null,null,null,null,null,null,null,null,null,null,null,null,null,null,{"$f":"IN7","v":0},{"$f":"IN34","v":0},{"$f":"IN27","v":0},{"$f":"IN54","v":0},0,"",null,null,null,null,null,null,null,null,null,null,null,null,null,null,null,null,null,null,null,null,null,null,null,null,null,null,null,null,null,null,null,null,null,null,null,null,{"$f":"KD7","v":0},{"$f":"KD34","v":0},{"$f":"KD27","v":0},{"$f":"KD54","v":0},0,"",null,null,null,null,null,null,null,null,null,null,null,null,null,null,null,null,null,null,null,null,null,null,null,null,null,null,null,null,null,null,null,null,null,null,null,null,{"$f":"LT7","v":0},{"$f":"LT34","v":0},{"$f":"LT27","v":0},{"$f":"LT54","v":0},0,"",null,null,null,null,null,null,null,null,null,null,null,null,null,null,null,null,null,null,null,null,null,null,null,null,null,null,null,null,null,null,null,null,null,null,null,null,{"$f":"NJ7","v":0},{"$f":"NJ34","v":0},{"$f":"NJ27","v":0},{"$f":"NJ54","v":0},0,"",null,null,null,null,null,null,null,null,null,null,null,null,null,null,null,null,null,null,null,null,null,null,null,null,null,null,null,null,null,null,null,null,null,null,null,null,{"$f":"OZ7","v":0},{"$f":"OZ34","v":0},{"$f":"OZ27","v":0},{"$f":"OZ54","v":0},0,""]
[null,null,null,null,null,{"$f":"AN7","v":0},{"$f":"AN34","v":0},{"$f":"AN27","v":0},{"$f":"AN54","v":0},0,"",null,null,null,null,null,null,null,null,null,null,null,null,null,null,null,null,null,null,null,null,null,null,null,null,null,null,null,null,null,null,null,null,null,null,null,null,{"$f":"CD7","v":0},{"$f":"CD34","v":0},{"$f":"CD27","v":0},{"$f":"CD54","v":0},0,"",null,null,null,null,null,null,null,null,null,null,null,null,null,null,null,null,null,null,null,null,null,null,null,null,null,null,null,null,null,null,null,null,null,null,null,null,{"$f":"DT7","v":0},{"$f":"DT34","v":0},{"$f":"DT27","v":0},{"$f":"DT54","v":0},0,"",null,null,null,null,null,null,null,null,null,null,null,null,null,null,null,null,null,null,null,null,null,null,null,null,null,null,null,null,null,null,null,null,null,null,null,null,{"$f":"FJ7","v":0},{"$f":"FJ34","v":0},{"$f":"FJ27","v":0},{"$f":"FJ54","v":0},0,"",null,null,null,null,null,null,null,null,null,null,null,null,null,null,null,null,null,null,null,null,null,null,null,null,null,null,null,null,null,null,null,null,null,null,null,null,{"$f":"GZ7","v":0},{"$f":"GZ34","v":0},{"$f":"GZ27","v":0},{"$f":"GZ54","v":0},0,"",null,null,null,null,null,null,null,null,null,null,null,null,null,null,null,null,null,null,null,null,null,null,null,null,null,null,null,null,null,null,null,null,null,null,null,null,{"$f":"IP7","v":0},{"$f":"IP34","v":0},{"$f":"IP27","v":0},{"$f":"IP54","v":0},0,"",null,null,null,null,null,null,null,null,null,null,null,null,null,null,null,null,null,null,null,null,null,null,null,null,null,null,null,null,null,null,null,null,null,null,null,null,{"$f":"KF7","v":0},{"$f":"KF34","v":0},{"$f":"KF27","v":0},{"$f":"KF54","v":0},0,"",null,null,null,null,null,null,null,null,null,null,null,null,null,null,null,null,null,null,null,null,null,null,null,null,null,null,null,null,null,null,null,null,null,null,null,null,{"$f":"LV7","v":0},{"$f":"LV34","v":0},{"$f":"LV27","v":0},{"$f":"LV54","v":0},0,"",null,null,null,null,null,null,null,null,null,null,null,null,null,null,null,null,null,null,null,null,null,null,null,null,null,null,null,null,null,null,null,null,null,null,null,null,{"$f":"NL7","v":0},{"$f":"NL34","v":0},{"$f":"NL27","v":0},{"$f":"NL54","v":0},0,"",null,null,null,null,null,null,null,null,null,null,null,null,null,null,null,null,null,null,null,null,null,null,null,null,null,null,null,null,null,null,null,null,null,null,null,null,{"$f":"PB7","v":0},{"$f":"PB34","v":0},{"$f":"PB27","v":0},{"$f":"PB54","v":0},0,""]
[null,null,null,null,null,{"$f":"AP7","v":0},{"$f":"AP34","v":0},{"$f":"AP27","v":0},{"$f":"AP54","v":0},0,"",null,null,null,null,null,null,null,null,null,null,null,null,null,null,null,null,null,null,null,null,null,null,null,null,null,null,null,null,null,null,null,null,null,null,null,null,{"$f":"CF7","v":0},{"$f":"CF34","v":0},{"$f":"CF27","v":0},{"$f":"CF54","v":0},0,"",null,null,null,null,null,null,null,null,null,null,null,null,null,null,null,null,null,null,null,null,null,null,null,null,null,null,null,null,null,null,null,null,null,null,null,null,{"$f":"DV7","v":0},{"$f":"DV34","v":0},{"$f":"DV27","v":0},{"$f":"DV54","v":0},0,"",null,null,null,null,null,null,null,null,null,null,null,null,null,null,null,null,null,null,null,null,null,null,null,null,null,null,null,null,null,null,null,null,null,null,null,null,{"$f":"FL7","v":0},{"$f":"FL34","v":0},{"$f":"FL27","v":0},{"$f":"FL54","v":0},0,"",null,null,null,null,null,null,null,null,null,null,null,null,null,null,null,null,null,null,null,null,null,null,null,null,null,null,null,null,null,null,null,null,null,null,null,null,{"$f":"HB7","v":0},{"$f":"HB34","v":0},{"$f":"HB27","v":0},{"$f":"HB54","v":0},0,"",null,null,null,null,null,null,null,null,null,null,null,null,null,null,null,null,null,null,null,null,null,null,null,null,null,null,null,null,null,null,null,null,null,null,null,null,{"$f":"IR7","v":0},{"$f":"IR34","v":0},{"$f":"IR27","v":0},{"$f":"IR54","v":0},0,"",null,null,null,null,null,null,null,null,null,null,null,null,null,null,null,null,null,null,null,null,null,null,null,null,null,null,null,null,null,null,null,null,null,null,null,null,{"$f":"KH7","v":0},{"$f":"KH34","v":0},{"$f":"KH27","v":0},{"$f":"KH54","v":0},0,"",null,null,null,null,null,null,null,null,null,null,null,null,null,null,null,null,null,null,null,null,null,null,null,null,null,null,null,null,null,null,null,null,null,null,null,null,{"$f":"LX7","v":0},{"$f":"LX34","v":0},{"$f":"LX27","v":0},{"$f":"LX54","v":0},0,"",null,null,null,null,null,null,null,null,null,null,null,null,null,null,null,null,null,null,null,null,null,null,null,null,null,null,null,null,null,null,null,null,null,null,null,null,{"$f":"NN7","v":0},{"$f":"NN34","v":0},{"$f":"NN27","v":0},{"$f":"NN54","v":0},0,"",null,null,null,null,null,null,null,null,null,null,null,null,null,null,null,null,null,null,null,null,null,null,null,null,null,null,null,null,null,null,null,null,null,null,null,null,{"$f":"PD7","v":0},{"$f":"PD34","v":0},{"$f":"PD27","v":0},{"$f":"PD54","v":0},0,""]
[null,null,null,null,null,{"$f":"AR7","v":0},{"$f":"AR34","v":0},{"$f":"AR27","v":0},{"$f":"AR54","v":0},0,"",null,null,null,null,null,null,null,null,null,null,null,null,null,null,null,null,null,null,null,null,null,null,null,null,null,null,null,null,null,null,null,null,null,null,null,null,{"$f":"CH7","v":0},{"$f":"CH34","v":0},{"$f":"CH27","v":0},{"$f":"CH54","v":0},0,"",null,null,null,null,null,null,null,null,null,null,null,null,null,null,null,null,null,null,null,null,null,null,null,null,null,null,null,null,null,null,null,null,null,null,null,null,{"$f":"DX7","v":0},{"$f":"DX34","v":0},{"$f":"DX27","v":0},{"$f":"DX54","v":0},0,null,null,null,null,null,null,null,null,null,null,null,null,null,null,null,null,null,null,null,null,null,null,null,null,null,null,null,null,null,null,null,null,null,null,null,null,null,{"$f":"FN7","v":0},{"$f":"FN34","v":0},{"$f":"FN27","v":0},{"$f":"FN54","v":0},0,"",null,null,null,null,null,null,null,null,null,null,null,null,null,null,null,null,null,null,null,null,null,null,null,null,null,null,null,null,null,null,null,null,null,null,null,null,{"$f":"HD7","v":0},{"$f":"HD34","v":0},{"$f":"HD27","v":0},{"$f":"HD54","v":0},0,"",null,null,null,null,null,null,null,null,null,null,null,null,null,null,null,null,null,null,null,null,null,null,null,null,null,null,null,null,null,null,null,null,null,null,null,null,{"$f":"IT7","v":0},{"$f":"IT34","v":0},{"$f":"IT27","v":0},{"$f":"IT54","v":0},0,"",null,null,null,null,null,null,null,null,null,null,null,null,null,null,null,null,null,null,null,null,null,null,null,null,null,null,null,null,null,null,null,null,null,null,null,null,{"$f":"KJ7","v":0},{"$f":"KJ34","v":0},{"$f":"KJ27","v":0},{"$f":"KJ54","v":0},0,"",null,null,null,null,null,null,null,null,null,null,null,null,null,null,null,null,null,null,null,null,null,null,null,null,null,null,null,null,null,null,null,null,null,null,null,null,{"$f":"LZ7","v":0},{"$f":"LZ34","v":0},{"$f":"LZ27","v":0},{"$f":"LZ54","v":0},0,"",null,null,null,null,null,null,null,null,null,null,null,null,null,null,null,null,null,null,null,null,null,null,null,null,null,null,null,null,null,null,null,null,null,null,null,null,{"$f":"NP7","v":0},{"$f":"NP34","v":0},{"$f":"NP27","v":0},{"$f":"NP54","v":0},0,"",null,null,null,null,null,null,null,null,null,null,null,null,null,null,null,null,null,null,null,null,null,null,null,null,null,null,null,null,null,null,null,null,null,null,null,null,{"$f":"PF7","v":0},{"$f":"PF34","v":0},{"$f":"PF27","v":0},{"$f":"PF54","v":0},0,""]

{"sheet":"Gas Totals","index":5,"n_rows":120,"n_cols":130,"rows_kept":120,"cut":false,"hidden":true,"merged":[[49,101,49,102],[51,101,51,102],[52,101,52,102],[4,103,4,104],[5,103,5,104],[6,103,6,104],[24,103,24,104],[26,103,26,104],[27,103,27,104],[29,103,29,104],[30,103,30,104],[31,103,31,104],[49,103,49,104],[51,103,51,104],[52,103,52,104],[4,101,4,102],[5,101,5,102],[6,101,6,102],[24,101,24,102],[26,101,26,102],[27,101,27,102],[29,101,29,102],[30,101,30,102],[31,101,31,102],[49,97,49,98],[51,97,51,98],[52,97,52,98],[4,99,4,100],[5,99,5,100],[6,99,6,100],[24,99,24,100],[26,99,26,100],[27,99,27,100],[29,99,29,100],[30,99,30,100],[31,99,31,100],[49,99,49,100],[51,99,51,100],[52,99,52,100],[4,97,4,98],[5,97,5,98],[6,97,6,98],[24,97,24,98],[26,97,26,98],[27,97,27,98],[29,97,29,98],[30,97,30,98],[31,97,31,98],[49,93,49,94],[51,93,51,94],[52,93,52,94],[4,95,4,96],[5,95,5,96],[6,95,6,96],[24,95,24,96],[26,95,26,96],[27,95,27,96],[29,95,29,96],[30,95,30,96],[31,95,31,96],[49,95,49,96],[51,95,51,96],[52,95,52,96],[4,93,4,94],[5,93,5,94],[6,93,6,94],[24,93,24,94],[26,93,26,94],[27,93,27,94],[29,93,29,94],[30,93,30,94],[31,93,31,94],[49,89,49,90],[51,89,51,90],[52,89,52,90],[4,91,4,92],[5,91,5,92],[6,91,6,92],[24,91,24,92],[26,91,26,92],[27,91,27,92],[29,91,29,92],[30,91,30,92],[31,91,31,92],[49,91,49,92],[51,91,51,92],[52,91,52,92],[4,89,4,90],[5,89,5,90],[6,89,6,90],[24,89,24,90],[26,89,26,90],[27,89,27,90],[29,89,29,90],[30,89,30,90],[31,89,31,90],[49,85,49,86],[51,85,51,86],[52,85,52,86],[4,87,4,88],[5,87,5,88],[6,87,6,88],[24,87,24,88],[26,87,26,88],[27,87,27,88],[29,87,29,88],[30,87,30,88],[31,87,31,88],[49,87,49,88],[51,87,51,88],[52,87,52,88],[4,85,4,86],[5,85,5,86],[6,85,6,86],[24,85,24,86],[26,85,26,86],[27,85,27,86],[29,85,29,86],[30,85,30,86],[31,85,31,86],[49,81,49,82],[51,81,51,82],[52,81,52,82],[4,83,4,84],[5,83,5,84],[6,83,6,84],[24,83,24,84],[26,83,26,84],[27,83,27,84],[29,83,29,84],[30,83,30,84],[31,83,31,84],[49,83,49,84],[51,83,51,84],[52,83,52,84],[4,81,4,82],[5,81,5,82],[6,81,6,82],[24,81,24,82],[26,81,26,82],[27,81,27,82],[29,81,29,82],[30,81,30,82],[31,81,31,82],[49,77,49,78],[51,77,51,78],[52,77,52,78],[4,79,4,80],[5,79,5,80],[6,79,6,80],[24,79,24,80],[26,79,26,80],[27,79,27,80],[29,79,29,80],[30,79,30,80],[31,79,31,80],[49,79,49,80],[51,79,51,80],[52,79,52,80],[4,77,4,78],[5,77,5,78],[6,77,6,78],[24,77,24,78],[26,77,26,78],[27,77,27,78],[29,77,29,78],[30,77,30,78],[31,77,31,78],[49,73,49,74],[51,73,51,74],[52,73,52,74],[4,75,4,76],[5,75,5,76],[6,75,6,76],[24,75,24,76],[26,75,26,76],[27,75,27,76],[29,75,29,76],[30,75,30,76],[31,75,31,76],[49,75,49,76],[51,75,51,76],[52,75,52,76],[4,73,4,74],[5,73,5,74],[6,73,6,74],[24,73,24,74],[26,73,26,74],[27,73,27,74],[29,73,29,74],[30,73,30,74],[31,73,31,74],[49,69,49,70],[51,69,51,70],[52,69,52,70],[4,71,4,72],[5,71,5,72],[6,71,6,72],[24,71,24,72],[26,71,26,72],[27,71,27,72],[29,71,29,72],[30,71,30,72],[31,71,31,72],[49,71,49,72],[51,71,51,72],[52,71,52,72],[4,69,4,70],[5,69,5,70],[6,69,6,70],[24,69,24,70],[26,69,26,70],[27,69,27,70],[29,69,29,70],[30,69,30,70],[31,69,31,70],[49,65,49,66],[51,65,51,66],[52,65,52,66],[4,67,4,68],[5,67,5,68],[6,67,6,68],[24,67,24,68],[26,67,26,68],[27,67,27,68],[29,67,29,68],[30,67,30,68],[31,67,31,68],[49,67,49,68],[51,67,51,68],[52,67,52,68],[4,65,4,66],[5,65,5,66],[6,65,6,66],[24,65,24,66],[26,65,26,66],[27,65,27,66],[29,65,29,66],[30,65,30,66],[31,65,31,66],[6,106,7,106],[31,106,32,106],[2,1,2,16],[4,1,5,3],[4,5,4,6],[4,7,4,8],[4,9,4,10],[4,11,4,12],[4,13,4,14],[4,15,4,16],[31,1,32,1],[31,2,32,2],[31,3,32,3],[29,1,30,3],[25,1,26,3],[26,5,26,6],[26,7,26,8],[26,9,26,10],[26,11,26,12],[26,13,26,14],[29,5,29,6],[29,7,29,8],[29,9,29,10],[29,11,29,12],[29,13,29,14],[29,15,29,16],[5,27,5,28],[5,29,5,30],[4,41,4,42],[4,43,4,44],[4,108,5,110],[5,5,5,6],[5,7,5,8],[5,9,5,10],[5,11,5,12],[5,13,5,14],[5,15,5,16],[5,17,5,18],[4,29,4,30],[4,31,4,32],[4,33,4,34],[4,35,4,36],[4,37,4,38],[4,39,4,40],[4,17,4,18],[4,19,4,20],[4,21,4,22],[4,23,4,24],[4,25,4,26],[4,27,4,28],[6,21,6,22],[6,23,6,24],[6,25,6,26],[6,27,6,28],[5,43,5,44],[6,1,7,1],[6,2,7,2],[6,3,7,3],[6,5,6,6],[6,7,6,8],[6,9,6,10],[6,11,6,12],[6,13,6,14],[6,15,6,16],[5,31,5,32],[5,33,5,34],[5,35,5,36],[5,37,5,38],[5,39,5,40],[5,41,5,42],[5,19,5,20],[5,21,5,22],[5,23,5,24],[5,25,5,26],[6,111,7,111],[6,113,7,113],[24,5,24,6],[24,7,24,8],[24,9,24,10],[24,11,24,12],[24,13,24,14],[24,15,24,16],[24,17,24,18],[24,19,24,20],[6,41,6,42],[6,43,6,44],[6,105,7,105],[6,108,7,108],[6,109,7,109],[6,110,7,110],[6,29,6,30],[6,31,6,32],[6,33,6,34],[6,35,6,36],[6,37,6,38],[6,39,6,40],[6,17,6,18],[6,19,6,20],[24,39,24,40],[24,41,24,42],[24,43,24,44],[24,21,24,22],[24,23,24,24],[24,25,24,26],[24,27,24,28],[24,29,24,30],[24,31,24,32],[24,33,24,34],[24,35,24,36],[24,37,24,38],[26,39,26,40],[26,41,26,42],[26,43,26,44],[27,5,27,6],[27,7,27,8],[27,9,27,10],[27,11,27,12],[27,13,27,14],[27,15,27,16],[27,17,27,18],[26,27,26,28],[26,29,26,30],[26,31,26,32],[26,33,26,34],[26,35,26,36],[26,37,26,38],[26,15,26,16],[26,17,26,18],[26,19,26,20],[26,21,26,22],[26,23,26,24],[26,25,26,26],[27,43,27,44],[29,17,29,18],[29,19,29,20],[27,31,27,32],[27,33,27,34],[27,35,27,36],[27,37,27,38],[27,39,27,40],[27,41,27,42],[27,19,27,20],[27,21,27,22],[27,23,27,24],[27,25,27,26],[27,27,27,28],[27,29,27,30],[29,108,30,110],[30,5,30,6],[30,7,30,8],[30,9,30,10],[30,11,30,12],[30,13,30,14],[30,15,30,16],[30,17,30,18],[30,19,30,20],[30,21,30,22],[29,33,29,34],[29,35,29,36],[29,37,29,38],[29,39,29,40],[29,41,29,42],[29,43,29,44],[29,21,29,22],[29,23,29,24],[29,25,29,26],[29,27,29,28],[29,29,29,30],[29,31,29,32],[30,35,30,36],[30,37,30,38],[31,5,31,6],[31,7,31,8],[31,9,31,10],[31,11,31,12],[31,13,31,14],[30,23,30,24],[30,25,30,26],[30,27,30,28],[30,29,30,30],[31,19,31,20],[31,21,31,22],[31,23,31,24],[31,25,31,26],[30,39,30,40],[30,41,30,42],[30,43,30,44],[30,31,30,32],[30,33,30,34],[31,110,32,110],[31,111,32,111],[31,113,32,113],[49,5,49,6],[49,7,49,8],[49,9,49,10],[49,11,49,12],[49,13,49,14],[49,15,49,16],[49,17,49,18],[31,39,31,40],[31,41,31,42],[31,43,31,44],[31,105,32,105],[31,108,32,108],[31,109,32,109],[31,27,31,28],[31,29,31,30],[31,31,31,32],[31,33,31,34],[31,35,31,36],[31,37,31,38],[31,15,31,16],[31,17,31,18],[49,43,49,44],[50,1,51,3],[51,5,51,6],[51,7,51,8],[51,9,51,10],[51,11,51,12],[51,13,51,14],[51,15,51,16],[51,17,51,18],[51,19,51,20],[49,31,49,32],[49,33,49,34],[49,35,49,36],[49,37,49,38],[49,39,49,40],[49,41,49,42],[49,19,49,20],[49,21,49,22],[49,23,49,24],[49,25,49,26],[49,27,49,28],[49,29,49,30],[51,33,51,34],[51,35,51,36],[51,37,51,38],[51,39,51,40],[51,41,51,42],[51,43,51,44],[51,21,51,22],[51,23,51,24],[51,25,51,26],[51,27,51,28],[51,29,51,30],[51,31,51,32],[52,41,52,42],[52,43,52,44],[59,1,59,16],[60,1,64,16],[52,29,52,30],[52,31,52,32],[52,33,52,34],[52,35,52,36],[52,37,52,38],[52,39,52,40],[52,17,52,18],[52,19,52,20],[52,21,52,22],[52,23,52,24],[52,25,52,26],[52,27,52,28],[52,5,52,6],[52,7,52,8],[52,9,52,10],[52,11,52,12],[52,13,52,14],[52,15,52,16],[49,45,49,46],[51,45,51,46],[52,45,52,46],[4,47,4,48],[5,47,5,48],[6,47,6,48],[24,47,24,48],[26,47,26,48],[27,47,27,48],[29,47,29,48],[30,47,30,48],[31,47,31,48],[49,47,49,48],[51,47,51,48],[52,47,52,48],[4,45,4,46],[5,45,5,46],[6,45,6,46],[24,45,24,46],[26,45,26,46],[27,45,27,46],[29,45,29,46],[30,45,30,46],[31,45,31,46],[49,49,49,50],[51,49,51,50],[52,49,52,50],[4,51,4,52],[5,51,5,52],[6,51,6,52],[24,51,24,52],[26,51,26,52],[27,51,27,52],[29,51,29,52],[30,51,30,52],[31,51,31,52],[49,51,49,52],[51,51,51,52],[52,51,52,52],[4,49,4,50],[5,49,5,50],[6,49,6,50],[24,49,24,50],[26,49,26,50],[27,49,27,50],[29,49,29,50],[30,49,30,50],[31,49,31,50],[49,53,49,54],[51,53,51,54],[52,53,52,54],[4,55,4,56],[5,55,5,56],[6,55,6,56],[24,55,24,56],[26,55,26,56],[27,55,27,56],[29,55,29,56],[30,55,30,56],[31,55,31,56],[49,55,49,56],[51,55,51,56],[52,55,52,56],[4,53,4,54],[5,53,5,54],[6,53,6,54],[24,53,24,54],[26,53,26,54],[27,53,27,54],[29,53,29,54],[30,53,30,54],[31,53,31,54],[49,57,49,58],[51,57,51,58],[52,57,52,58],[4,59,4,60],[5,59,5,60],[6,59,6,60],[24,59,24,60],[26,59,26,60],[27,59,27,60],[29,59,29,60],[30,59,30,60],[31,59,31,60],[49,59,49,60],[51,59,51,60],[52,59,52,60],[4,57,4,58],[5,57,5,58],[6,57,6,58],[24,57,24,58],[26,57,26,58],[27,57,27,58],[29,57,29,58],[30,57,30,58],[31,57,31,58],[49,61,49,62],[51,61,51,62],[52,61,52,62],[4,63,4,64],[5,63,5,64],[6,63,6,64],[24,63,24,64],[26,63,26,64],[27,63,27,64],[29,63,29,64],[30,63,30,64],[31,63,31,64],[49,63,49,64],[51,63,51,64],[52,63,52,64],[4,61,4,62],[5,61,5,62],[6,61,6,62],[24,61,24,62],[26,61,26,62],[27,61,27,62],[29,61,29,62],[30,61,30,62],[31,61,31,62]]}
[null,"Gas Utility Data Summary"]
[null,"Instructions"]
[null,"1) Enter data for pre-construction energy use in blue cells.  Please ensure beginning and end read dates are 'Actual'.\n2) Unhide columns (O-AR) if there are more than 5 common area accounts. You may hide columns that are not needed, do not delete them.\n3) If the project is master-metered, enter data in this tab. Use Apt-Gas tab for direct-metered apartment data, if applicable.\n4) If there is on-site generation that runs on natural gas (e.g. CHP/cogen), please provide the natural gas consumed in column AU.\n5) Review graphs to the right for irregularities in the usage data.\n6) Post-Construction data will be filled in one year after construction has been completed.\n7) Please use the \"Notes\" field below the data entry section of this tab to explain unusual circumstances, any anomalies in the data, or adjustments made. Also, please follow Program Guidelines v4.2, Section 3.2.2 for irregular delivers, outliers, and estimated bills.\n\n"]
[]
[null,"Pre-Construction Common Area Billing Dates",null,null,null,"Common Area Meter #1",null,"Common Area Meter #2",null,"Common Area Meter #3",null,"Common Area Meter #4",null,"Common Area Meter #5",null,"Common Area Meter #6",null,"Common Area Meter #7",null,"Common Area Meter #8",null,"Common Area Meter #9",null,"Common Area Meter #10",null,"Common Area Meter #11",null,"Common Area Meter #12",null,"Common Area Meter #13",null,"Common Area Meter #14",null,"Common Area Meter #15",null,"Common Area Meter #16",null,"Common Area Meter #17",null,"Common Area Meter #18",null,"Common Area Meter #19",null,"Common Area Meter #20",null,"Common Area Meter #21",null,"Common Area Meter #22",null,"Common Area Meter #23",null,"Common Area Meter #24",null,"Common Area Meter #25",null,"Common Area Meter #26",null,"Common Area Meter #27",null,"Common Area Meter #28",null,"Common Area Meter #29",null,"Common Area Meter #30",null,"Common Area Meter #31",null,"Common Area Meter #32",null,"Common Area Meter #33",null,"Common Area Meter #34",null,"Common Area Meter #35",null,"Common Area Meter #36",null,"Common Area Meter #37",null,"Common Area Meter #38",null,"Common Area Meter #39",null,"Common Area Meter #40",null,"Common Area Meter #41",null,"Common Area Meter #42",null,"Common Area Meter #43",null,"Common Area Meter #44",null,"Common Area Meter #45",null,"Common Area Meter #46",null,"Common Area Meter #47",null,"Common Area Meter #48",null,"Common Area Meter #49",null,"Common Area Meter #50",null,null,null,null,"Pre-Construction In-Unit Billing Dates"]
[null,null,null,null,null,"Account #",null,"Account #",null,"Account #",null,"Account #",null,"Account #",null,"Account #",null,"Account #",null,"Account #",null,"Account #",null,"Account #",null,"Account #",null,"Account #",null,"Account #",null,"Account #",null,"Account #",null,"Account #",null,"Account #",null,"Account #",null,"Account #",null,"Account #",null,"Account #",null,"Account #",null,"Account #",null,"Account #",null,"Account #",null,"Account #",null,"Account #",null,"Account #",null,"Account #",null,"Account #",null,"Account #",null,"Account #",null,"Account #",null,"Account #",null,"Account #",null,"Account #",null,"Account #",null,"Account #",null,"Account #",null,"Account #",null,"Account #",null,"Account #",null,"Account #",null,"Account #",null,"Account #",null,"Account #",null,"Account #",null,"Account #",null,"Account #",null,"Account #"]
[null,"Billing Period Start Date","Read Date","Days in Billing Period",null,{"$f":"'Utility Info'!C217","v":0},null,{"$f":"'Utility Info'!C218","v":0},null,{"$f":"'Utility Info'!C219","v":0},null,{"$f":"'Utility Info'!C220","v":0},null,{"$f":"'Utility Info'!C221","v":0},null,{"$f":"'Utility Info'!C222","v":0},null,{"$f":"'Utility Info'!C223","v":0},null,{"$f":"'Utility Info'!C224","v":0},null,{"$f":"'Utility Info'!C225","v":0},null,{"$f":"'Utility Info'!C226","v":0},null,{"$f":"'Utility Info'!C227","v":0},null,{"$f":"'Utility Info'!C228","v":0},null,{"$f":"'Utility Info'!C229","v":0},null,{"$f":"'Utility Info'!C230","v":0},null,{"$f":"'Utility Info'!C231","v":0},null,{"$f":"'Utility Info'!C232","v":0},null,{"$f":"'Utility Info'!C233","v":0},null,{"$f":"'Utility Info'!C234","v":0},null,{"$f":"'Utility Info'!C235","v":0},null,{"$f":"'Utility Info'!C236","v":0},null,{"$f":"'Utility Info'!C237","v":0},null,{"$f":"'Utility Info'!C238","v":0},null,{"$f":"'Utility Info'!C239","v":0},null,{"$f":"'Utility Info'!C240","v":0},null,{"$f":"'Utility Info'!C241","v":0},null,{"$f":"'Utility Info'!C242","v":0},null,{"$f":"'Utility Info'!C243","v":0},null,{"$f":"'Utility Info'!C244","v":0},null,{"$f":"'Utility Info'!C245","v":0},null,{"$f":"'Utility Info'!C246","v":0},null,{"$f":"'Utility Info'!C247","v":0},null,{"$f":"'Utility Info'!C248","v":0},null,{"$f":"'Utility Info'!C249","v":0},null,{"$f":"'Utility Info'!C250","v":0},null,{"$f":"'Utility Info'!C251","v":0},null,{"$f":"'Utility Info'!C252","v":0},null,{"$f":"'Utility Info'!C253","v":0},null,{"$f":"'Utility Info'!C254","v":0},null,{"$f":"'Utility Info'!C255","v":0},null,{"$f":"'Utility Info'!C256","v":0},null,{"$f":"'Utility Info'!C257","v":0},null,{"$f":"'Utility Info'!C258","v":0},null,{"$f":"'Utility Info'!C259","v":0},null,{"$f":"'Utility Info'!C260","v":0},null,{"$f":"'Utility Info'!C261","v":0},null,{"$f":"'Utility Info'!C262","v":0},null,{"$f":"'Utility Info'!C263","v":0},null,{"$f":"'Utility Info'!C264","v":0},null,{"$f":"'Utility Info'!C265","v":0},null,{"$f":"'Utility Info'!C266","v":0},null,{"$f":"\"Total Common Area Gas Consumption\n\" & 'Utility Info'!$D$7","v":"Total Common Area Gas Consumption\n<Not Used>"},"On-Site Gas Generation\n(Therms)",null,"Billing Period Start Date","Read Date","Days in Billing Period",{"$f":"\"In-unit Gas Consumption\n\" & 'Utility Info'!$D$7","v":"In-unit Gas Consumption\n<Not Used>"},null,{"$f":"\"Total Gas Consumption\n\" & 'Utility Info'!$D$7","v":"Total Gas Consumption\n<Not Used>"},null,null,null,null,null,null,"Data for Graphs:"]
[null,null,null,null,null,{"$f":"'Utility Info'!$D$7","v":"<Not Used>"},"Actual/ Estimated",{"$f":"'Utility Info'!$D$7","v":"<Not Used>"},"Actual/ Estimated",{"$f":"'Utility Info'!$D$7","v":"<Not Used>"},"Actual/ Estimated",{"$f":"'Utility Info'!$D$7","v":"<Not Used>"},"Actual/ Estimated",{"$f":"'Utility Info'!$D$7","v":"<Not Used>"},"Actual/ Estimated",{"$f":"'Utility Info'!$D$7","v":"<Not Used>"},"Actual/ Estimated",{"$f":"'Utility Info'!$D$7","v":"<Not Used>"},"Actual/ Estimated",{"$f":"'Utility Info'!$D$7","v":"<Not Used>"},"Actual/ Estimated",{"$f":"'Utility Info'!$D$7","v":"<Not Used>"},"Actual/ Estimated",{"$f":"'Utility Info'!$D$7","v":"<Not Used>"},"Actual/ Estimated",{"$f":"'Utility Info'!$D$7","v":"<Not Used>"},"Actual/ Estimated",{"$f":"'Utility Info'!$D$7","v":"<Not Used>"},"Actual/ Estimated",{"$f":"'Utility Info'!$D$7","v":"<Not Used>"},"Actual/ Estimated",{"$f":"'Utility Info'!$D$7","v":"<Not Used>"},"Actual/ Estimated",{"$f":"'Utility Info'!$D$7","v":"<Not Used>"},"Actual/ Estimated",{"$f":"'Utility Info'!$D$7","v":"<Not Used>"},"Actual/ Estimated",{"$f":"'Utility Info'!$D$7","v":"<Not Used>"},"Actual/ Estimated",{"$f":"'Utility Info'!$D$7","v":"<Not Used>"},"Actual/ Estimated",{"$f":"'Utility Info'!$D$7","v":"<Not Used>"},"Actual/ Estimated",{"$f":"'Utility Info'!$D$7","v":"<Not Used>"},"Actual/ Estimated",{"$f":"'Utility Info'!$D$7","v":"<Not Used>"},"Actual/ Estimated",{"$f":"'Utility Info'!$D$7","v":"<Not Used>"},"Actual/ Estimated",{"$f":"'Utility Info'!$D$7","v":"<Not Used>"},"Actual/ Estimated",{"$f":"'Utility Info'!$D$7","v":"<Not Used>"},"Actual/ Estimated",{"$f":"'Utility Info'!$D$7","v":"<Not Used>"},"Actual/ Estimated",{"$f":"'Utility Info'!$D$7","v":"<Not Used>"},"Actual/ Estimated",{"$f":"'Utility Info'!$D$7","v":"<Not Used>"},"Actual/ Estimated",{"$f":"'Utility Info'!$D$7","v":"<Not Used>"},"Actual/ Estimated",{"$f":"'Utility Info'!$D$7","v":"<Not Used>"},"Actual/ Estimated",{"$f":"'Utility Info'!$D$7","v":"<Not Used>"},"Actual/ Estimated",{"$f":"'Utility Info'!$D$7","v":"<Not Used>"},"Actual/ Estimated",{"$f":"'Utility Info'!$D$7","v":"<Not Used>"},"Actual/ Estimated",{"$f":"'Utility Info'!$D$7","v":"<Not Used>"},"Actual/ Estimated",{"$f":"'Utility Info'!$D$7","v":"<Not Used>"},"Actual/ Estimated",{"$f":"'Utility Info'!$D$7","v":"<Not Used>"},"Actual/ Estimated",{"$f":"'Utility Info'!$D$7","v":"<Not Used>"},"Actual/ Estimated",{"$f":"'Utility Info'!$D$7","v":"<Not Used>"},"Actual/ Estimated",{"$f":"'Utility Info'!$D$7","v":"<Not Used>"},"Actual/ Estimated",{"$f":"'Utility Info'!$D$7","v":"<Not Used>"},"Actual/ Estimated",{"$f":"'Utility Info'!$D$7","v":"<Not Used>"},"Actual/ Estimated",{"$f":"'Utility Info'!$D$7","v":"<Not Used>"},"Actual/ Estimated",{"$f":"'Utility Info'!$D$7","v":"<Not Used>"},"Actual/ Estimated",{"$f":"'Utility Info'!$D$7","v":"<Not Used>"},"Actual/ Estimated",{"$f":"'Utility Info'!$D$7","v":"<Not Used>"},"Actual/ Estimated",{"$f":"'Utility Info'!$D$7","v":"<Not Used>"},"Actual/ Estimated",{"$f":"'Utility Info'!$D$7","v":"<Not Used>"},"Actual/ Estimated",{"$f":"'Utility Info'!$D$7","v":"<Not Used>"},"Actual/ Estimated",{"$f":"'Utility Info'!$D$7","v":"<Not Used>"},"Actual/ Estimated",{"$f":"'Utility Info'!$D$7","v":"<Not Used>"},"Actual/ Estimated",{"$f":"'Utility Info'!$D$7","v":"<Not Used>"},"Actual/ Estimated",null,null,null,null,null,null,null,null,null,null,null,null,null,null,null,"Common Area Ref Date","Common Area Month","In-unit Ref Date","In-Unit Month",null,"Months","Common Area Pre","Common Area Post","In-Unit Pre","In-Unit Post"]
[null,null,null,null,null,null,null,null,null,null,null,null,null,null,null,null,null,null,null,null,null,null,null,null,null,null,null,null,null,null,null,null,null,null,null,null,null,null,null,null,null,null,null,null,null,null,null,null,null,null,null,null,null,null,null,null,null,null,null,null,null,null,null,null,null,null,null,null,null,null,null,null,null,null,null,null,null,null,null,null,null,null,null,null,null,null,null,null,null,null,null,null,null,null,null,null,null,null,null,null,null,null,null,null,null,null,null,null,null,{"$f":"'Apt-Gas'!C11","v":"00:00:00"}]
[null,{"$f":"C9+1","v":"1900-01-01"},null,{"$f":"IF(C10>0,C10+1-B10,0)","v":0},null,null,null,null,null,null,null,null,null,null,null,null,null,null,null,null,null,null,null,null,null,null,null,null,null,null,null,null,null,null,null,null,null,null,null,null,null,null,null,null,null,null,null,null,null,null,null,null,null,null,null,null,null,null,null,null,null,null,null,null,null,null,null,null,null,null,null,null,null,null,null,null,null,null,null,null,null,null,null,null,null,null,null,null,null,null,null,null,null,null,null,null,null,null,null,null,null,null,null,null,null,{"$f":"SUM(F10:DA10)+DC10","v":0},null,null,{"$f":"'Apt-Gas'!B12","v":"1900-01-01"},{"$f":"'Apt-Gas'!C12","v":"00:00:00"},{"$f":"IF(DF10>0,DF10+1-DE10,0)","v":0},{"$f":"'Apt-Gas'!PT12","v":0},null,{"$f":"DB10+DH10","v":0},null,null,null,null,null,null,{"$f":"DATE(YEAR(C10),MONTH(C10),1)","v":"1900-01-01"},{"$f":"IF((DQ10-B10)>(C10-DQ10),MONTH(B10),MONTH(C10))","v":1},{"$f":"DATE(YEAR(DF10),MONTH(DF10),1)","v":"1900-01-01"},{"$f":"IF((DS10-DE10)>(DF10-DS10),MONTH(DE10),MONTH(DF10))","v":1},null,"2012-01-15",{"$f":"SUMIF($DR$10:$DR$24,MONTH($DV10),$DB$10:$DB$24)","v":0},{"$f":"SUMIF($DR$35:$DR$49,MONTH($DV10),$DB$35:$DB$49)","v":0},{"$f":"SUMIF($DT$10:$DT$24,MONTH($DV10),$DH$10:$DH$24)","v":0},{"$f":"SUMIF($DT$35:$DT$49,MONTH($DV10),$DH$35:$DH$49)","v":0}]
[null,"1900-01-01",null,{"$f":"IF(C11>0,C11+1-B11,0)","v":0},null,null,null,null,null,null,null,null,null,null,null,null,null,null,null,null,null,null,null,null,null,null,null,null,null,null,null,null,null,null,null,null,null,null,null,null,null,null,null,null,null,null,null,null,null,null,null,null,null,null,null,null,null,null,null,null,null,null,null,null,null,null,null,null,null,null,null,null,null,null,null,null,null,null,null,null,null,null,null,null,null,null,null,null,null,null,null,null,null,null,null,null,null,null,null,null,null,null,null,null,null,{"$f":"SUM(F11:DA11)+DC11","v":0},null,null,{"$f":"'Apt-Gas'!B13","v":"1900-01-01"},{"$f":"'Apt-Gas'!C13","v":"00:00:00"},{"$f":"IF(DF11>0,DF11+1-DE11,0)","v":0},{"$f":"'Apt-Gas'!PT13","v":0},null,{"$f":"DB11+DH11","v":0},null,null,null,null,null,null,"1900-01-01",1,{"$f":"DATE(YEAR(DF11),MONTH(DF11),1)","v":"1900-01-01"},{"$f":"IF((DS11-DE11)>(DF11-DS11),MONTH(DE11),MONTH(DF11))","v":1},null,"2012-02-15",{"$f":"SUMIF($DR$10:$DR$24,MONTH($DV11),$DB$10:$DB$24)","v":0},0,{"$f":"SUMIF($DT$10:$DT$24,MONTH($DV11),$DH$10:$DH$24)","v":0},0]
[null,"1900-01-01",null,0,null,null,null,null,null,null,null,null,null,null,null,null,null,null,null,null,null,null,null,null,null,null,null,null,null,null,null,null,null,null,null,null,null,null,null,null,null,null,null,null,null,null,null,null,null,null,null,null,null,null,null,null,null,null,null,null,null,null,null,null,null,null,null,null,null,null,null,null,null,null,null,null,null,null,null,null,null,null,null,null,null,null,null,null,null,null,null,null,null,null,null,null,null,null,null,null,null,null,null,null,null,0,null,null,{"$f":"'Apt-Gas'!B14","v":"1900-01-01"},{"$f":"'Apt-Gas'!C14","v":"00:00:00"},0,{"$f":"'Apt-Gas'!PT14","v":0},null,0,null,null,null,null,null,null,"1900-01-01",1,"1900-01-01",1,null,"2012-03-15",0,0,0,0]
[null,"1900-01-01",null,0,null,null,null,null,null,null,null,null,null,null,null,null,null,null,null,null,null,null,null,null,null,null,null,null,null,null,null,null,null,null,null,null,null,null,null,null,null,null,null,null,null,null,null,null,null,null,null,null,null,null,null,null,null,null,null,null,null,null,null,null,null,null,null,null,null,null,null,null,null,null,null,null,null,null,null,null,null,null,null,null,null,null,null,null,null,null,null,null,null,null,null,null,null,null,null,null,null,null,null,null,null,0,null,null,{"$f":"'Apt-Gas'!B15","v":"1900-01-01"},{"$f":"'Apt-Gas'!C15","v":"00:00:00"},0,{"$f":"'Apt-Gas'!PT15","v":0},null,0,null,null,null,null,null,null,"1900-01-01",1,"1900-01-01",1,null,"2012-04-15",0,0,0,0]
[null,"1900-01-01",null,0,null,null,null,null,null,null,null,null,null,null,null,null,null,null,null,null,null,null,null,null,null,null,null,null,null,null,null,null,null,null,null,null,null,null,null,null,null,null,null,null,null,null,null,null,null,null,null,null,null,null,null,null,null,null,null,null,null,null,null,null,null,null,null,null,null,null,null,null,null,null,null,null,null,null,null,null,null,null,null,null,null,null,null,null,null,null,null,null,null,null,null,null,null,null,null,null,null,null,null,null,null,0,null,null,{"$f":"'Apt-Gas'!B16","v":"1900-01-01"},{"$f":"'Apt-Gas'!C16","v":"00:00:00"},0,{"$f":"'Apt-Gas'!PT16","v":0},null,0,null,null,null,null,null,null,"1900-01-01",1,{"$f":"DATE(YEAR(DF14),MONTH(DF14),1)","v":"1900-01-01"},1,null,"2012-05-15",0,0,0,0]
[null,"1900-01-01",null,0,null,null,null,null,null,null,null,null,null,null,null,null,null,null,null,null,null,null,null,null,null,null,null,null,null,null,null,null,null,null,null,null,null,null,null,null,null,null,null,null,null,null,null,null,null,null,null,null,null,null,null,null,null,null,null,null,null,null,null,null,null,null,null,null,null,null,null,null,null,null,null,null,null,null,null,null,null,null,null,null,null,null,null,null,null,null,null,null,null,null,null,null,null,null,null,null,null,null,null,null,null,0,null,null,{"$f":"'Apt-Gas'!B17","v":"1900-01-01"},{"$f":"'Apt-Gas'!C17","v":"00:00:00"},0,{"$f":"'Apt-Gas'!PT17","v":0},null,0,null,null,null,null,null,null,"1900-01-01",1,"1900-01-01",1,null,"2012-06-15",0,0,0,0]
[null,"1900-01-01",null,0,null,null,null,null,null,null,null,null,null,null,null,null,null,null,null,null,null,null,null,null,null,null,null,null,null,null,null,null,null,null,null,null,null,null,null,null,null,null,null,null,null,null,null,null,null,null,null,null,null,null,null,null,null,null,null,null,null,null,null,null,null,null,null,null,null,null,null,null,null,null,null,null,null,null,null,null,null,null,null,null,null,null,null,null,null,null,null,null,null,null,null,null,null,null,null,null,null,null,null,null,null,0,null,null,{"$f":"'Apt-Gas'!B18","v":"1900-01-01"},{"$f":"'Apt-Gas'!C18","v":"00:00:00"},0,{"$f":"'Apt-Gas'!PT18","v":0},null,0,null,null,null,null,null,null,"1900-01-01",1,"1900-01-01",1,null,"2012-07-15",0,0,0,0]
[null,"1900-01-01",null,0,null,null,null,null,null,null,null,null,null,null,null,null,null,null,null,null,null,null,null,null,null,null,null,null,null,null,null,null,null,null,null,null,null,null,null,null,null,null,null,null,null,null,null,null,null,null,null,null,null,null,null,null,null,null,null,null,null,null,null,null,null,null,null,null,null,null,null,null,null,null,null,null,null,null,null,null,null,null,null,null,null,null,null,null,null,null,null,null,null,null,null,null,null,null,null,null,null,null,null,null,null,0,null,null,{"$f":"'Apt-Gas'!B19","v":"1900-01-01"},{"$f":"'Apt-Gas'!C19","v":"00:00:00"},0,{"$f":"'Apt-Gas'!PT19","v":0},null,0,null,null,null,null,null,null,"1900-01-01",1,"1900-01-01",1,null,"2012-08-15",0,0,0,0]
[null,"1900-01-01",null,0,null,null,null,null,null,null,null,null,null,null,null,null,null,null,null,null,null,null,null,null,null,null,null,null,null,null,null,null,null,null,null,null,null,null,null,null,null,null,null,null,null,null,null,null,null,null,null,null,null,null,null,null,null,null,null,null,null,null,null,null,null,null,null,null,null,null,null,null,null,null,null,null,null,null,null,null,null,null,null,null,null,null,null,null,null,null,null,null,null,null,null,null,null,null,null,null,null,null,null,null,null,0,null,null,{"$f":"'Apt-Gas'!B20","v":"1900-01-01"},{"$f":"'Apt-Gas'!C20","v":"00:00:00"},0,{"$f":"'Apt-Gas'!PT20","v":0},null,0,null,null,null,null,null,null,"1900-01-01",1,"1900-01-01",1,null,"2012-09-15",0,0,0,0]
[null,"1900-01-01",null,0,null,null,null,null,null,null,null,null,null,null,null,null,null,null,null,null,null,null,null,null,null,null,null,null,null,null,null,null,null,null,null,null,null,null,null,null,null,null,null,null,null,null,null,null,null,null,null,null,null,null,null,null,null,null,null,null,null,null,null,null,null,null,null,null,null,null,null,null,null,null,null,null,null,null,null,null,null,null,null,null,null,null,null,null,null,null,null,null,null,null,null,null,null,null,null,null,null,null,null,null,null,0,null,null,{"$f":"'Apt-Gas'!B21","v":"1900-01-01"},{"$f":"'Apt-Gas'!C21","v":"00:00:00"},0,{"$f":"'Apt-Gas'!PT21","v":0},null,0,null,null,null,null,null,null,"1900-01-01",1,"1900-01-01",1,null,"2012-10-15",0,0,0,0]
[null,"1900-01-01",null,0,null,null,null,null,null,null,null,null,null,null,null,null,null,null,null,null,null,null,null,null,null,null,null,null,null,null,null,null,null,null,null,null,null,null,null,null,null,null,null,null,null,null,null,null,null,null,null,null,null,null,null,null,null,null,null,null,null,null,null,null,null,null,null,null,null,null,null,null,null,null,null,null,null,null,null,null,null,null,null,null,null,null,null,null,null,null,null,null,null,null,null,null,null,null,null,null,null,null,null,null,null,0,null,null,{"$f":"'Apt-Gas'!B22","v":"1900-01-01"},{"$f":"'Apt-Gas'!C22","v":"00:00:00"},0,{"$f":"'Apt-Gas'!PT22","v":0},null,0,null,null,null,null,null,null,"1900-01-01",1,"1900-01-01",1,null,"2012-11-15",0,0,0,0]
[null,"1900-01-01",null,0,null,null,null,null,null,null,null,null,null,null,null,null,null,null,null,null,null,null,null,null,null,null,null,null,null,null,null,null,null,null,null,null,null,null,null,null,null,null,null,null,null,null,null,null,null,null,null,null,null,null,null,null,null,null,null,null,null,null,null,null,null,null,null,null,null,null,null,null,null,null,null,null,null,null,null,null,null,null,null,null,null,null,null,null,null,null,null,null,null,null,null,null,null,null,null,null,null,null,null,null,null,0,null,null,{"$f":"'Apt-Gas'!B23","v":"1900-01-01"},{"$f":"'Apt-Gas'!C23","v":"00:00:00"},0,{"$f":"'Apt-Gas'!PT23","v":0},null,0,null,null,null,null,null,null,"1900-01-01",1,"1900-01-01",1,null,"2012-12-15",0,0,0,0]
[null,"1900-01-01",null,0,null,null,null,null,null,null,null,null,null,null,null,null,null,null,null,null,null,null,null,null,null,null,null,null,null,null,null,null,null,null,null,null,null,null,null,null,null,null,null,null,null,null,null,null,null,null,null,null,null,null,null,null,null,null,null,null,null,null,null,null,null,null,null,null,null,null,null,null,null,null,null,null,null,null,null,null,null,null,null,null,null,null,null,null,null,null,null,null,null,null,null,null,null,null,null,null,null,null,null,null,null,0,null,null,{"$f":"'Apt-Gas'!B24","v":"1900-01-01"},{"$f":"'Apt-Gas'!C24","v":"00:00:00"},0,{"$f":"'Apt-Gas'!PT24","v":0},null,0,null,null,null,null,null,null,"1900-01-01",1,"1900-01-01",1]
[null,"1900-01-01",null,0,null,null,null,null,null,null,null,null,null,null,null,null,null,null,null,null,null,null,null,null,null,null,null,null,null,null,null,null,null,null,null,null,null,null,null,null,null,null,null,null,null,null,null,null,null,null,null,null,null,null,null,null,null,null,null,null,null,null,null,null,null,null,null,null,null,null,null,null,null,null,null,null,null,null,null,null,null,null,null,null,null,null,null,null,null,null,null,null,null,null,null,null,null,null,null,null,null,null,null,null,null,0,null,null,{"$f":"'Apt-Gas'!B25","v":"1900-01-01"},{"$f":"'Apt-Gas'!C25","v":"00:00:00"},0,{"$f":"'Apt-Gas'!PT25","v":0},null,0,null,null,null,null,null,null,"1900-01-01",1,"1900-01-01",1]
[null,"1900-01-01",null,0,null,null,null,null,null,null,null,null,null,null,null,null,null,null,null,null,null,null,null,null,null,null,null,null,null,null,null,null,null,null,null,null,null,null,null,null,null,null,null,null,null,null,null,null,null,null,null,null,null,null,null,null,null,null,null,null,null,null,null,null,null,null,null,null,null,null,null,null,null,null,null,null,null,null,null,null,null,null,null,null,null,null,null,null,null,null,null,null,null,null,null,null,null,null,null,null,null,null,null,null,null,0,null,null,{"$f":"'Apt-Gas'!B26","v":"1900-01-01"},{"$f":"'Apt-Gas'!C26","v":"00:00:00"},0,{"$f":"'Apt-Gas'!PT26","v":0},null,{"$f":"DB24+DH24","v":0},null,null,null,null,null,null,"1900-01-01",1,"1900-01-01",1]
[null,null,{"$f":"IF(ABS(D25-365)>4,\"Must have 365 ± 4 days.\",\"\")","v":"Must have 365 ± 4 days."},{"$f":"SUM(D10:D24)","v":0},null,{"$f":"SUM(F10:F24)","v":0},null,{"$f":"SUM(H10:H24)","v":0},null,{"$f":"SUM(J10:J24)","v":0},null,{"$f":"SUM(L10:L24)","v":0},null,0,null,0,null,0,null,0,null,0,null,0,null,0,null,0,null,0,null,0,null,{"$f":"SUM(AH10:AH24)","v":0},null,{"$f":"SUM(AJ10:AJ24)","v":0},null,{"$f":"SUM(AL10:AL24)","v":0},null,{"$f":"SUM(AN10:AN24)","v":0},null,{"$f":"SUM(AP10:AP24)","v":0},null,{"$f":"SUM(AR10:AR24)","v":0},null,{"$f":"SUM(AT10:AT24)","v":0},null,{"$f":"SUM(AV10:AV24)","v":0},null,{"$f":"SUM(AX10:AX24)","v":0},null,{"$f":"SUM(AZ10:AZ24)","v":0},null,{"$f":"SUM(BB10:BB24)","v":0},null,{"$f":"SUM(BD10:BD24)","v":0},null,{"$f":"SUM(BF10:BF24)","v":0},null,{"$f":"SUM(BH10:BH24)","v":0},null,{"$f":"SUM(BJ10:BJ24)","v":0},null,{"$f":"SUM(BL10:BL24)","v":0},null,{"$f":"SUM(BN10:BN24)","v":0},null,{"$f":"SUM(BP10:BP24)","v":0},null,{"$f":"SUM(BR10:BR24)","v":0},null,{"$f":"SUM(BT10:BT24)","v":0},null,{"$f":"SUM(BV10:BV24)","v":0},null,{"$f":"SUM(BX10:BX24)","v":0},null,{"$f":"SUM(BZ10:BZ24)","v":0},null,{"$f":"SUM(CB10:CB24)","v":0},null,{"$f":"SUM(CD10:CD24)","v":0},null,{"$f":"SUM(CF10:CF24)","v":0},null,{"$f":"SUM(CH10:CH24)","v":0},null,{"$f":"SUM(CJ10:CJ24)","v":0},null,{"$f":"SUM(CL10:CL24)","v":0},null,{"$f":"SUM(CN10:CN24)","v":0},null,{"$f":"SUM(CP10:CP24)","v":0},null,{"$f":"SUM(CR10:CR24)","v":0},null,{"$f":"SUM(CT10:CT24)","v":0},null,{"$f":"SUM(CV10:CV24)","v":0},null,{"$f":"SUM(CX10:CX24)","v":0},null,{"$f":"SUM(CZ10:CZ24)","v":0},null,{"$f":"SUM(DB10:DB24)","v":0},{"$f":"SUM(DC10:DC24)","v":0},null,null,{"$f":"IF(ABS(DG25-365)>4,\"Must have 365 ± 4 days.\",\"\")","v":"Must have 365 ± 4 days."},{"$f":"SUM(DG10:DG24)","v":0},{"$f":"SUM(DH10:DH24)","v":0},null,{"$f":"SUM(DJ10:DJ24)","v":0}]
[null,{"$f":"IF(DE10=1,\"\",IF(ABS(B10-DE10)>15,\"The dates for the common area and apartment bills are out of synch. Please select start dates within 2 weeks of each other.\",\"\"))","v":""}]
[null,null,null,null,null,"Total Annual Gas Cost",null,"Total Annual Gas Cost",null,"Total Annual Gas Cost",null,"Total Annual Gas Cost",null,"Total Annual Gas Cost",null,"Total Annual Gas Cost",null,"Total Annual Gas Cost",null,"Total Annual Gas Cost",null,"Total Annual Gas Cost",null,"Total Annual Gas Cost",null,"Total Annual Gas Cost",null,"Total Annual Gas Cost",null,"Total Annual Gas Cost",null,"Total Annual Gas Cost",null,"Total Annual Gas Cost",null,"Total Annual Gas Cost",null,"Total Annual Gas Cost",null,"Total Annual Gas Cost",null,"Total Annual Gas Cost",null,"Total Annual Gas Cost",null,"Total Annual Gas Cost",null,"Total Annual Gas Cost",null,"Total Annual Gas Cost",null,"Total Annual Gas Cost",null,"Total Annual Gas Cost",null,"Total Annual Gas Cost",null,"Total Annual Gas Cost",null,"Total Annual Gas Cost",null,"Total Annual Gas Cost",null,"Total Annual Gas Cost",null,"Total Annual Gas Cost",null,"Total Annual Gas Cost",null,"Total Annual Gas Cost",null,"Total Annual Gas Cost",null,"Total Annual Gas Cost",null,"Total Annual Gas Cost",null,"Total Annual Gas Cost",null,"Total Annual Gas Cost",null,"Total Annual Gas Cost",null,"Total Annual Gas Cost",null,"Total Annual Gas Cost",null,"Total Annual Gas Cost",null,"Total Annual Gas Cost",null,"Total Annual Gas Cost",null,"Total Annual Gas Cost",null,"Total Annual Gas Cost",null,"Total Annual Gas Cost",null,"Total Annual Gas Cost",null,"Total Annual Gas Cost",null,"Total Annual Gas Cost",null,"Total Annual Common Area Gas Cost",null,null,null,null,null,"Total In-Unit Annual Gas Cost",null,"Total Annual Gas Cost"]
[null,null,null,null,null,null,null,null,null,null,null,null,null,null,null,null,null,null,null,null,null,null,null,null,null,null,null,null,null,null,null,null,null,null,null,null,null,null,null,null,null,null,null,null,null,null,null,null,null,null,null,null,null,null,null,null,null,null,null,null,null,null,null,null,null,null,null,null,null,null,null,null,null,null,null,null,null,null,null,null,null,null,null,null,null,null,null,null,null,null,null,null,null,null,null,null,null,null,null,null,null,null,null,null,null,{"$f":"SUM(F28:DA28)","v":0},null,null,null,null,null,{"$f":"IF(N('Apt-Gas'!$PT$30)=0,IF(N($DB$28)=0,1.15,$DB$28/$DB$25)*$DH$25,'Apt-Gas'!$PT$30)","v":0},null,{"$f":"DB28+DH28","v":0}]
[]
[null,"Post-Construction Common Area Billing Dates",null,null,null,"Common Area Meter #1",null,"Common Area Meter #2",null,"Common Area Meter #3",null,"Common Area Meter #4",null,"Common Area Meter #5",null,"Common Area Meter #6",null,"Common Area Meter #7",null,"Common Area Meter #8",null,"Common Area Meter #9",null,"Common Area Meter #10",null,"Common Area Meter #11",null,"Common Area Meter #12",null,"Common Area Meter #13",null,"Common Area Meter #14",null,"Common Area Meter #15",null,"Common Area Meter #16",null,"Common Area Meter #17",null,"Common Area Meter #18",null,"Common Area Meter #19",null,"Common Area Meter #20",null,"Common Area Meter #21",null,"Common Area Meter #22",null,"Common Area Meter #23",null,"Common Area Meter #24",null,"Common Area Meter #25",null,"Common Area Meter #26",null,"Common Area Meter #27",null,"Common Area Meter #28",null,"Common Area Meter #29",null,"Common Area Meter #30",null,"Common Area Meter #31",null,"Common Area Meter #32",null,"Common Area Meter #33",null,"Common Area Meter #34",null,"Common Area Meter #35",null,"Common Area Meter #36",null,"Common Area Meter #37",null,"Common Area Meter #38",null,"Common Area Meter #39",null,"Common Area Meter #40",null,"Common Area Meter #41",null,"Common Area Meter #42",null,"Common Area Meter #43",null,"Common Area Meter #44",null,"Common Area Meter #45",null,"Common Area Meter #46",null,"Common Area Meter #47",null,"Common Area Meter #48",null,"Common Area Meter #49",null,"Common Area Meter #50",null,null,null,null,"Post-Construction In-Unit Billing Dates"]
[null,null,null,null,null,"Account #",null,"Account #",null,"Account #",null,"Account #",null,"Account #",null,"Account #",null,"Account #",null,"Account #",null,"Account #",null,"Account #",null,"Account #",null,"Account #",null,"Account #",null,"Account #",null,"Account #",null,"Account #",null,"Account #",null,"Account #",null,"Account #",null,"Account #",null,"Account #",null,"Account #",null,"Account #",null,"Account #",null,"Account #",null,"Account #",null,"Account #",null,"Account #",null,"Account #",null,"Account #",null,"Account #",null,"Account #",null,"Account #",null,"Account #",null,"Account #",null,"Account #",null,"Account #",null,"Account #",null,"Account #",null,"Account #",null,"Account #",null,"Account #",null,"Account #",null,"Account #",null,"Account #",null,"Account #",null,"Account #",null,"Account #",null,"Account #",null,"Account #"]
[null,"Billing Period Start Date","Read Date","Days in Billing Period",null,{"$f":"F7","v":0},null,{"$f":"H7","v":0},null,{"$f":"J7","v":0},null,{"$f":"L7","v":0},null,{"$f":"N7","v":0},null,{"$f":"P7","v":0},null,{"$f":"R7","v":0},null,{"$f":"T7","v":0},null,{"$f":"V7","v":0},null,{"$f":"X7","v":0},null,{"$f":"Z7","v":0},null,{"$f":"AB7","v":0},null,{"$f":"AD7","v":0},null,{"$f":"AF7","v":0},null,{"$f":"AH7","v":0},null,{"$f":"AJ7","v":0},null,{"$f":"AL7","v":0},null,{"$f":"AN7","v":0},null,{"$f":"AP7","v":0},null,{"$f":"AR7","v":0},null,{"$f":"AT7","v":0},null,{"$f":"AV7","v":0},null,{"$f":"AX7","v":0},null,{"$f":"AZ7","v":0},null,{"$f":"BB7","v":0},null,{"$f":"BD7","v":0},null,{"$f":"BF7","v":0},null,{"$f":"BH7","v":0},null,{"$f":"BJ7","v":0},null,{"$f":"BL7","v":0},null,{"$f":"BN7","v":0},null,{"$f":"BP7","v":0},null,{"$f":"BR7","v":0},null,{"$f":"BT7","v":0},null,{"$f":"BV7","v":0},null,{"$f":"BX7","v":0},null,{"$f":"BZ7","v":0},null,{"$f":"CB7","v":0},null,{"$f":"CD7","v":0},null,{"$f":"CF7","v":0},null,{"$f":"CH7","v":0},null,{"$f":"CJ7","v":0},null,{"$f":"CL7","v":0},null,{"$f":"CN7","v":0},null,{"$f":"CP7","v":0},null,{"$f":"CR7","v":0},null,{"$f":"CT7","v":0},null,{"$f":"CV7","v":0},null,{"$f":"CX7","v":0},null,{"$f":"CZ7","v":0},null,{"$f":"\"Total Common Area Gas Consumption\n\" & 'Utility Info'!$D$16","v":"Total Common Area Gas Consumption\n<Not Used>"},"On-Site Gas Generation\n(Therms)",null,"Billing Period Start Date","Read Date","Days in Billing Period",{"$f":"\"In-unit Gas Consumption\n\" & 'Utility Info'!$D$7","v":"In-unit Gas Consumption\n<Not Used>"},null,{"$f":"\"Total Gas Consumption\n\" & 'Utility Info'!$D$16","v":"Total Gas Consumption\n<Not Used>"},null,null,null,null,null,null,"Data for Graphs:"]
[null,null,null,null,null,{"$f":"'Utility Info'!$D$16","v":"<Not Used>"},"Actual/ Estimated",{"$f":"'Utility Info'!$D$16","v":"<Not Used>"},"Actual/ Estimated",{"$f":"'Utility Info'!$D$16","v":"<Not Used>"},"Actual/ Estimated",{"$f":"'Utility Info'!$D$16","v":"<Not Used>"},"Actual/ Estimated",{"$f":"'Utility Info'!$D$16","v":"<Not Used>"},"Actual/ Estimated",{"$f":"'Utility Info'!$D$16","v":"<Not Used>"},"Actual/ Estimated",{"$f":"'Utility Info'!$D$16","v":"<Not Used>"},"Actual/ Estimated",{"$f":"'Utility Info'!$D$16","v":"<Not Used>"},"Actual/ Estimated",{"$f":"'Utility Info'!$D$16","v":"<Not Used>"},"Actual/ Estimated",{"$f":"'Utility Info'!$D$16","v":"<Not Used>"},"Actual/ Estimated",{"$f":"'Utility Info'!$D$16","v":"<Not Used>"},"Actual/ Estimated",{"$f":"'Utility Info'!$D$16","v":"<Not Used>"},"Actual/ Estimated",{"$f":"'Utility Info'!$D$16","v":"<Not Used>"},"Actual/ Estimated",{"$f":"'Utility Info'!$D$16","v":"<Not Used>"},"Actual/ Estimated",{"$f":"'Utility Info'!$D$16","v":"<Not Used>"},"Actual/ Estimated",{"$f":"'Utility Info'!$D$16","v":"<Not Used>"},"Actual/ Estimated",{"$f":"'Utility Info'!$D$16","v":"<Not Used>"},"Actual/ Estimated",{"$f":"'Utility Info'!$D$16","v":"<Not Used>"},"Actual/ Estimated",{"$f":"'Utility Info'!$D$16","v":"<Not Used>"},"Actual/ Estimated",{"$f":"'Utility Info'!$D$16","v":"<Not Used>"},"Actual/ Estimated",{"$f":"'Utility Info'!$D$16","v":"<Not Used>"},"Actual/ Estimated",{"$f":"'Utility Info'!$D$16","v":"<Not Used>"},"Actual/ Estimated",{"$f":"'Utility Info'!$D$16","v":"<Not Used>"},"Actual/ Estimated",{"$f":"'Utility Info'!$D$16","v":"<Not Used>"},"Actual/ Estimated",{"$f":"'Utility Info'!$D$16","v":"<Not Used>"},"Actual/ Estimated",{"$f":"'Utility Info'!$D$16","v":"<Not Used>"},"Actual/ Estimated",{"$f":"'Utility Info'!$D$16","v":"<Not Used>"},"Actual/ Estimated",{"$f":"'Utility Info'!$D$16","v":"<Not Used>"},"Actual/ Estimated",{"$f":"'Utility Info'!$D$16","v":"<Not Used>"},"Actual/ Estimated",{"$f":"'Utility Info'!$D$16","v":"<Not Used>"},"Actual/ Estimated",{"$f":"'Utility Info'!$D$16","v":"<Not Used>"},"Actual/ Estimated",{"$f":"'Utility Info'!$D$16","v":"<Not Used>"},"Actual/ Estimated",{"$f":"'Utility Info'!$D$16","v":"<Not Used>"},"Actual/ Estimated",{"$f":"'Utility Info'!$D$16","v":"<Not Used>"},"Actual/ Estimated",{"$f":"'Utility Info'!$D$16","v":"<Not Used>"},"Actual/ Estimated",{"$f":"'Utility Info'!$D$16","v":"<Not Used>"},"Actual/ Estimated",{"$f":"'Utility Info'!$D$16","v":"<Not Used>"},"Actual/ Estimated",{"$f":"'Utility Info'!$D$16","v":"<Not Used>"},"Actual/ Estimated",{"$f":"'Utility Info'!$D$16","v":"<Not Used>"},"Actual/ Estimated",{"$f":"'Utility Info'!$D$16","v":"<Not Used>"},"Actual/ Estimated",{"$f":"'Utility Info'!$D$16","v":"<Not Used>"},"Actual/ Estimated",{"$f":"'Utility Info'!$D$16","v":"<Not Used>"},"Actual/ Estimated",{"$f":"'Utility Info'!$D$16","v":"<Not Used>"},"Actual/ Estimated",{"$f":"'Utility Info'!$D$16","v":"<Not Used>"},"Actual/ Estimated",{"$f":"'Utility Info'!$D$16","v":"<Not Used>"},"Actual/ Estimated",{"$f":"'Utility Info'!$D$16","v":"<Not Used>"},"Actual/ Estimated",{"$f":"'Utility Info'!$D$16","v":"<Not Used>"},"Actual/ Estimated",{"$f":"'Utility Info'!$D$16","v":"<Not Used>"},"Actual/ Estimated",{"$f":"'Utility Info'!$D$16","v":"<Not Used>"},"Actual/ Estimated",{"$f":"'Utility Info'!$D$16","v":"<Not Used>"},"Actual/ Estimated",null,null,null,null,null,null,null,null,null,null,null,null,null,null,null,"Common Area Ref Date","Common Area Month","In-unit Ref Date","In-Unit Month"]
[null,null,null,null,null,null,null,null,null,null,null,null,null,null,null,null,null,null,null,null,null,null,null,null,null,null,null,null,null,null,null,null,null,null,null,null,null,null,null,null,null,null,null,null,null,null,null,null,null,null,null,null,null,null,null,null,null,null,null,null,null,null,null,null,null,null,null,null,null,null,null,null,null,null,null,null,null,null,null,null,null,null,null,null,null,null,null,null,null,null,null,null,null,null,null,null,null,null,null,null,null,null,null,null,null,null,null,null,null,{"$f":"'Apt-Gas'!C38","v":"00:00:00"}]
[null,{"$f":"C34+1","v":"1900-01-01"},null,{"$f":"IF(C35>0,C35+1-B35,0)","v":0},null,null,null,null,null,null,null,null,null,null,null,null,null,null,null,null,null,null,null,null,null,null,null,null,null,null,null,null,null,null,null,null,null,null,null,null,null,null,null,null,null,null,null,null,null,null,null,null,null,null,null,null,null,null,null,null,null,null,null,null,null,null,null,null,null,null,null,null,null,null,null,null,null,null,null,null,null,null,null,null,null,null,null,null,null,null,null,null,null,null,null,null,null,null,null,null,null,null,null,null,null,{"$f":"SUM(F35:DA35)+DC35","v":0},null,null,{"$f":"'Apt-Gas'!B39","v":"1900-01-01"},{"$f":"'Apt-Gas'!C39","v":"00:00:00"},{"$f":"IF(DF35>0,DF35+1-DE35,0)","v":0},{"$f":"'Apt-Gas'!PT39","v":0},null,{"$f":"DB35+DH35","v":0},null,null,null,null,null,null,{"$f":"DATE(YEAR(C35),MONTH(C35),1)","v":"1900-01-01"},{"$f":"IF((DQ35-B35)>(C35-DQ35),MONTH(B35),MONTH(C35))","v":1},{"$f":"DATE(YEAR(DF35),MONTH(DF35),1)","v":"1900-01-01"},{"$f":"IF((DS35-DE35)>(DF35-DS35),MONTH(DE35),MONTH(DF35))","v":1}]
[null,"1900-01-01",null,0,null,null,null,null,null,null,null,null,null,null,null,null,null,null,null,null,null,null,null,null,null,null,null,null,null,null,null,null,null,null,null,null,null,null,null,null,null,null,null,null,null,null,null,null,null,null,null,null,null,null,null,null,null,null,null,null,null,null,null,null,null,null,null,null,null,null,null,null,null,null,null,null,null,null,null,null,null,null,null,null,null,null,null,null,null,null,null,null,null,null,null,null,null,null,null,null,null,null,null,null,null,{"$f":"SUM(F36:DA36)+DC36","v":0},null,null,{"$f":"'Apt-Gas'!B40","v":"1900-01-01"},{"$f":"'Apt-Gas'!C40","v":"00:00:00"},{"$f":"IF(DF36>0,DF36+1-DE36,0)","v":0},{"$f":"'Apt-Gas'!PT40","v":0},null,{"$f":"DB36+DH36","v":0},null,null,null,null,null,null,"1900-01-01",1,{"$f":"DATE(YEAR(DF36),MONTH(DF36),1)","v":"1900-01-01"},{"$f":"IF((DS36-DE36)>(DF36-DS36),MONTH(DE36),MONTH(DF36))","v":1}]
[null,"1900-01-01",null,0,null,null,null,null,null,null,null,null,null,null,null,null,null,null,null,null,null,null,null,null,null,null,null,null,null,null,null,null,null,null,null,null,null,null,null,null,null,null,null,null,null,null,null,null,null,null,null,null,null,null,null,null,null,null,null,null,null,null,null,null,null,null,null,null,null,null,null,null,null,null,null,null,null,null,null,null,null,null,null,null,null,null,null,null,null,null,null,null,null,null,null,null,null,null,null,null,null,null,null,null,null,0,null,null,{"$f":"'Apt-Gas'!B41","v":"1900-01-01"},{"$f":"'Apt-Gas'!C41","v":"00:00:00"},0,{"$f":"'Apt-Gas'!PT41","v":0},null,0,null,null,null,null,null,null,"1900-01-01",1,{"$f":"DATE(YEAR(DF37),MONTH(DF37),1)","v":"1900-01-01"},1]
[null,"1900-01-01",null,0,null,null,null,null,null,null,null,null,null,null,null,null,null,null,null,null,null,null,null,null,null,null,null,null,null,null,null,null,null,null,null,null,null,null,null,null,null,null,null,null,null,null,null,null,null,null,null,null,null,null,null,null,null,null,null,null,null,null,null,null,null,null,null,null,null,null,null,null,null,null,null,null,null,null,null,null,null,null,null,null,null,null,null,null,null,null,null,null,null,null,null,null,null,null,null,null,null,null,null,null,null,0,null,null,{"$f":"'Apt-Gas'!B42","v":"1900-01-01"},{"$f":"'Apt-Gas'!C42","v":"00:00:00"},0,{"$f":"'Apt-Gas'!PT42","v":0},null,0,null,null,null,null,null,null,"1900-01-01",1,{"$f":"DATE(YEAR(DF38),MONTH(DF38),1)","v":"1900-01-01"},1]
[null,"1900-01-01",null,0,null,null,null,null,null,null,null,null,null,null,null,null,null,null,null,null,null,null,null,null,null,null,null,null,null,null,null,null,null,null,null,null,null,null,null,null,null,null,null,null,null,null,null,null,null,null,null,null,null,null,null,null,null,null,null,null,null,null,null,null,null,null,null,null,null,null,null,null,null,null,null,null,null,null,null,null,null,null,null,null,null,null,null,null,null,null,null,null,null,null,null,null,null,null,null,null,null,null,null,null,null,0,null,null,{"$f":"'Apt-Gas'!B43","v":"1900-01-01"},{"$f":"'Apt-Gas'!C43","v":"00:00:00"},0,{"$f":"'Apt-Gas'!PT43","v":0},null,0,null,null,null,null,null,null,"1900-01-01",1,{"$f":"DATE(YEAR(DF39),MONTH(DF39),1)","v":"1900-01-01"},1]
[null,"1900-01-01",null,0,null,null,null,null,null,null,null,null,null,null,null,null,null,null,null,null,null,null,null,null,null,null,null,null,null,null,null,null,null,null,null,null,null,null,null,null,null,null,null,null,null,null,null,null,null,null,null,null,null,null,null,null,null,null,null,null,null,null,null,null,null,null,null,null,null,null,null,null,null,null,null,null,null,null,null,null,null,null,null,null,null,null,null,null,null,null,null,null,null,null,null,null,null,null,null,null,null,null,null,null,null,0,null,null,{"$f":"'Apt-Gas'!B44","v":"1900-01-01"},{"$f":"'Apt-Gas'!C44","v":"00:00:00"},0,{"$f":"'Apt-Gas'!PT44","v":0},null,0,null,null,null,null,null,null,"1900-01-01",1,{"$f":"DATE(YEAR(DF40),MONTH(DF40),1)","v":"1900-01-01"},1]
[null,"1900-01-01",null,0,null,null,null,null,null,null,null,null,null,null,null,null,null,null,null,null,null,null,null,null,null,null,null,null,null,null,null,null,null,null,null,null,null,null,null,null,null,null,null,null,null,null,null,null,null,null,null,null,null,null,null,null,null,null,null,null,null,null,null,null,null,null,null,null,null,null,null,null,null,null,null,null,null,null,null,null,null,null,null,null,null,null,null,null,null,null,null,null,null,null,null,null,null,null,null,null,null,null,null,null,null,0,null,null,{"$f":"'Apt-Gas'!B45","v":"1900-01-01"},{"$f":"'Apt-Gas'!C45","v":"00:00:00"},0,{"$f":"'Apt-Gas'!PT45","v":0},null,0,null,null,null,null,null,null,"1900-01-01",1,"1900-01-01",1]
[null,"1900-01-01",null,0,null,null,null,null,null,null,null,null,null,null,null,null,null,null,null,null,null,null,null,null,null,null,null,null,null,null,null,null,null,null,null,null,null,null,null,null,null,null,null,null,null,null,null,null,null,null,null,null,null,null,null,null,null,null,null,null,null,null,null,null,null,null,null,null,null,null,null,null,null,null,null,null,null,null,null,null,null,null,null,null,null,null,null,null,null,null,null,null,null,null,null,null,null,null,null,null,null,null,null,null,null,0,null,null,{"$f":"'Apt-Gas'!B46","v":"1900-01-01"},{"$f":"'Apt-Gas'!C46","v":"00:00:00"},0,{"$f":"'Apt-Gas'!PT46","v":0},null,0,null,null,null,null,null,null,"1900-01-01",1,"1900-01-01",1]
[null,"1900-01-01",null,0,null,null,null,null,null,null,null,null,null,null,null,null,null,null,null,null,null,null,null,null,null,null,null,null,null,null,null,null,null,null,null,null,null,null,null,null,null,null,null,null,null,null,null,null,null,null,null,null,null,null,null,null,null,null,null,null,null,null,null,null,null,null,null,null,null,null,null,null,null,null,null,null,null,null,null,null,null,null,null,null,null,null,null,null,null,null,null,null,null,null,null,null,null,null,null,null,null,null,null,null,null,0,null,null,{"$f":"'Apt-Gas'!B47","v":"1900-01-01"},{"$f":"'Apt-Gas'!C47","v":"00:00:00"},0,{"$f":"'Apt-Gas'!PT47","v":0},null,0,null,null,null,null,null,null,"1900-01-01",1,"1900-01-01",1]
[null,"1900-01-01",null,0,null,null,null,null,null,null,null,null,null,null,null,null,null,null,null,null,null,null,null,null,null,null,null,null,null,null,null,null,null,null,null,null,null,null,null,null,null,null,null,null,null,null,null,null,null,null,null,null,null,null,null,null,null,null,null,null,null,null,null,null,null,null,null,null,null,null,null,null,null,null,null,null,null,null,null,null,null,null,null,null,null,null,null,null,null,null,null,null,null,null,null,null,null,null,null,null,null,null,null,null,null,0,null,null,{"$f":"'Apt-Gas'!B48","v":"1900-01-01"},{"$f":"'Apt-Gas'!C48","v":"00:00:00"},0,{"$f":"'Apt-Gas'!PT48","v":0},null,0,null,null,null,null,null,null,"1900-01-01",1,"1900-01-01",1]
[null,"1900-01-01",null,0,null,null,null,null,null,null,null,null,null,null,null,null,null,null,null,null,null,null,null,null,null,null,null,null,null,null,null,null,null,null,null,null,null,null,null,null,null,null,null,null,null,null,null,null,null,null,null,null,null,null,null,null,null,null,null,null,null,null,null,null,null,null,null,null,null,null,null,null,null,null,null,null,null,null,null,null,null,null,null,null,null,null,null,null,null,null,null,null,null,null,null,null,null,null,null,null,null,null,null,null,null,0,null,null,{"$f":"'Apt-Gas'!B49","v":"1900-01-01"},{"$f":"'Apt-Gas'!C49","v":"00:00:00"},0,{"$f":"'Apt-Gas'!PT49","v":0},null,0,null,null,null,null,null,null,"1900-01-01",1,"1900-01-01",1]
[null,"1900-01-01",null,0,null,null,null,null,null,null,null,null,null,null,null,null,null,null,null,null,null,null,null,null,null,null,null,null,null,null,null,null,null,null,null,null,null,null,null,null,null,null,null,null,null,null,null,null,null,null,null,null,null,null,null,null,null,null,null,null,null,null,null,null,null,null,null,null,null,null,null,null,null,null,null,null,null,null,null,null,null,null,null,null,null,null,null,null,null,null,null,null,null,null,null,null,null,null,null,null,null,null,null,null,null,0,null,null,{"$f":"'Apt-Gas'!B50","v":"1900-01-01"},{"$f":"'Apt-Gas'!C50","v":"00:00:00"},0,{"$f":"'Apt-Gas'!PT50","v":0},null,0,null,null,null,null,null,null,"1900-01-01",1,"1900-01-01",1]
[null,"1900-01-01",null,0,null,null,null,null,null,null,null,null,null,null,null,null,null,null,null,null,null,null,null,null,null,null,null,null,null,null,null,null,null,null,null,null,null,null,null,null,null,null,null,null,null,null,null,null,null,null,null,null,null,null,null,null,null,null,null,null,null,null,null,null,null,null,null,null,null,null,null,null,null,null,null,null,null,null,null,null,null,null,null,null,null,null,null,null,null,null,null,null,null,null,null,null,null,null,null,null,null,null,null,null,null,0,null,null,{"$f":"'Apt-Gas'!B51","v":"1900-01-01"},{"$f":"'Apt-Gas'!C51","v":"00:00:00"},0,{"$f":"'Apt-Gas'!PT51","v":0},null,0,null,null,null,null,null,null,"1900-01-01",1,"1900-01-01",1]
[null,"1900-01-01",null,0,null,null,null,null,null,null,null,null,null,null,null,null,null,null,null,null,null,null,null,null,null,null,null,null,null,null,null,null,null,null,null,null,null,null,null,null,null,null,null,null,null,null,null,null,null,null,null,null,null,null,null,null,null,null,null,null,null,null,null,null,null,null,null,null,null,null,null,null,null,null,null,null,null,null,null,null,null,null,null,null,null,null,null,null,null,null,null,null,null,null,null,null,null,null,null,null,null,null,null,null,null,0,null,null,{"$f":"'Apt-Gas'!B52","v":"1900-01-01"},{"$f":"'Apt-Gas'!C52","v":"00:00:00"},0,{"$f":"'Apt-Gas'!PT52","v":0},null,0,null,null,null,null,null,null,"1900-01-01",1,"1900-01-01",1]
[null,"1900-01-01",null,0,null,null,null,null,null,null,null,null,null,null,null,null,null,null,null,null,null,null,null,null,null,null,null,null,null,null,null,null,null,null,null,null,null,null,null,null,null,null,null,null,null,null,null,null,null,null,null,null,null,null,null,null,null,null,null,null,null,null,null,null,null,null,null,null,null,null,null,null,null,null,null,null,null,null,null,null,null,null,null,null,null,null,null,null,null,null,null,null,null,null,null,null,null,null,null,null,null,null,null,null,null,0,null,null,{"$f":"'Apt-Gas'!B53","v":"1900-01-01"},{"$f":"'Apt-Gas'!C53","v":"00:00:00"},0,{"$f":"'Apt-Gas'!PT53","v":0},null,0,null,null,null,null,null,null,"1900-01-01",1,"1900-01-01",1]
[null,null,{"$f":"IF(ABS(D50-365)>4,\"Must have 365 ± 4 days.\",\"\")","v":"Must have 365 ± 4 days."},{"$f":"SUM(D35:D49)","v":0},null,{"$f":"SUM(F34:F49)","v":0},null,{"$f":"SUM(H34:H49)","v":0},null,{"$f":"SUM(J34:J49)","v":0},null,{"$f":"SUM(L34:L49)","v":0},null,{"$f":"SUM(N34:N49)","v":0},null,{"$f":"SUM(P34:P49)","v":0},null,{"$f":"SUM(R34:R49)","v":0},null,{"$f":"SUM(T34:T49)","v":0},null,{"$f":"SUM(V34:V49)","v":0},null,{"$f":"SUM(X34:X49)","v":0},null,{"$f":"SUM(Z34:Z49)","v":0},null,{"$f":"SUM(AB34:AB49)","v":0},null,{"$f":"SUM(AD34:AD49)","v":0},null,{"$f":"SUM(AF34:AF49)","v":0},null,{"$f":"SUM(AH34:AH49)","v":0},null,{"$f":"SUM(AJ34:AJ49)","v":0},null,{"$f":"SUM(AL34:AL49)","v":0},null,{"$f":"SUM(AN34:AN49)","v":0},null,{"$f":"SUM(AP34:AP49)","v":0},null,{"$f":"SUM(AR34:AR49)","v":0},null,{"$f":"SUM(AT34:AT49)","v":0},null,{"$f":"SUM(AV34:AV49)","v":0},null,{"$f":"SUM(AX34:AX49)","v":0},null,{"$f":"SUM(AZ34:AZ49)","v":0},null,{"$f":"SUM(BB34:BB49)","v":0},null,{"$f":"SUM(BD34:BD49)","v":0},null,{"$f":"SUM(BF34:BF49)","v":0},null,{"$f":"SUM(BH34:BH49)","v":0},null,{"$f":"SUM(BJ34:BJ49)","v":0},null,{"$f":"SUM(BL34:BL49)","v":0},null,{"$f":"SUM(BN34:BN49)","v":0},null,{"$f":"SUM(BP34:BP49)","v":0},null,{"$f":"SUM(BR34:BR49)","v":0},null,{"$f":"SUM(BT34:BT49)","v":0},null,{"$f":"SUM(BV34:BV49)","v":0},null,{"$f":"SUM(BX34:BX49)","v":0},null,{"$f":"SUM(BZ34:BZ49)","v":0},null,{"$f":"SUM(CB34:CB49)","v":0},null,{"$f":"SUM(CD34:CD49)","v":0},null,{"$f":"SUM(CF34:CF49)","v":0},null,{"$f":"SUM(CH34:CH49)","v":0},null,{"$f":"SUM(CJ34:CJ49)","v":0},null,{"$f":"SUM(CL34:CL49)","v":0},null,{"$f":"SUM(CN34:CN49)","v":0},null,{"$f":"SUM(CP34:CP49)","v":0},null,{"$f":"SUM(CR34:CR49)","v":0},null,{"$f":"SUM(CT34:CT49)","v":0},null,{"$f":"SUM(CV34:CV49)","v":0},null,{"$f":"SUM(CX34:CX49)","v":0},null,{"$f":"SUM(CZ34:CZ49)","v":0},null,{"$f":"SUM(DB35:DB49)","v":0},{"$f":"SUM(DC35:DC49)","v":0},null,null,{"$f":"IF(ABS(DG50-365)>4,\"Must have 365 ± 4 days.\",\"\")","v":"Must have 365 ± 4 days."},{"$f":"SUM(DG35:DG49)","v":0},{"$f":"SUM(DH35:DH49)","v":0},null,{"$f":"SUM(DJ35:DJ49)","v":0}]
[null,{"$f":"IF(DE35=1,\"\",IF(ABS(B35-DE35)>15,\"The dates for the common area and apartment bills are out of synch. Please select start dates within 2 weeks of each other.\",\"\"))","v":""}]
[null,null,null,null,null,"Total Annual Gas Cost",null,"Total Annual Gas Cost",null,"Total Annual Gas Cost",null,"Total Annual Gas Cost",null,"Total Annual Gas Cost",null,"Total Annual Gas Cost",null,"Total Annual Gas Cost",null,"Total Annual Gas Cost",null,"Total Annual Gas Cost",null,"Total Annual Gas Cost",null,"Total Annual Gas Cost",null,"Total Annual Gas Cost",null,"Total Annual Gas Cost",null,"Total Annual Gas Cost",null,"Total Annual Gas Cost",null,"Total Annual Gas Cost",null,"Total Annual Gas Cost",null,"Total Annual Gas Cost",null,"Total Annual Gas Cost",null,"Total Annual Gas Cost",null,"Total Annual Gas Cost",null,"Total Annual Gas Cost",null,"Total Annual Gas Cost",null,"Total Annual Gas Cost",null,"Total Annual Gas Cost",null,"Total Annual Gas Cost",null,"Total Annual Gas Cost",null,"Total Annual Gas Cost",null,"Total Annual Gas Cost",null,"Total Annual Gas Cost",null,"Total Annual Gas Cost",null,"Total Annual Gas Cost",null,"Total Annual Gas Cost",null,"Total Annual Gas Cost",null,"Total Annual Gas Cost",null,"Total Annual Gas Cost",null,"Total Annual Gas Cost",null,"Total Annual Gas Cost",null,"Total Annual Gas Cost",null,"Total Annual Gas Cost",null,"Total Annual Gas Cost",null,"Total Annual Gas Cost",null,"Total Annual Gas Cost",null,"Total Annual Gas Cost",null,"Total Annual Gas Cost",null,"Total Annual Gas Cost",null,"Total Annual Gas Cost",null,"Total Annual Gas Cost",null,"Total Annual Gas Cost",null,"Total Annual Gas Cost",null,"Total Annual Common Area Gas Cost",null,null,null,null,null,"Total In-Unit Annual Gas Cost",null,"Total Annual Gas Cost"]
[null,null,null,null,null,null,null,null,null,null,null,null,null,null,null,null,null,null,null,null,null,null,null,null,null,null,null,null,null,null,null,null,null,null,null,null,null,null,null,null,null,null,null,null,null,null,null,null,null,null,null,null,null,null,null,null,null,null,null,null,null,null,null,null,null,null,null,null,null,null,null,null,null,null,null,null,null,null,null,null,null,null,null,null,null,null,null,null,null,null,null,null,null,null,null,null,null,null,null,null,null,null,null,null,null,{"$f":"SUM(F53:DA53)","v":0},null,null,null,null,null,{"$f":"IF(N('Apt-Gas'!$PT$57)=0,IF(N($DB$53)=0,1.15,$DB$53/$DB$50)*$DH$50,'Apt-Gas'!$PT$57)","v":0},null,{"$f":"DB53+DH53","v":0}]
[]
[null,null,null,null,null,"Building Area","Pre Construction Usage ","Post Construction Usage","Difference","% Difference"]
[null,null,null,null,null,"Common Area",{"$f":"DB25","v":0},{"$f":"DB50","v":0},{"$f":"H56-G56","v":0},{"$f":"IF(G56>0,I56/G56,\"\")","v":""}]
[null,null,null,null,null,"In-Unit",{"$f":"DH25","v":0},{"$f":"DH50","v":0},{"$f":"H57-G57","v":0},{"$f":"IF(G57>0,I57/G57,\"\")","v":""}]
[]
[]
[null,"Notes:"]
[]
[]
[]
[]
[]
[]
[]
[]
[]
[]
[]
[]
[]
[]
[]
[]
[]
[]
[]
[]
[]
[]
[]
[]
[]
[]
[]
[]
[]
[]
[]
[]
[]
[]
[]
[]
[]
[]
[]
[]
[]
[]
[]
[]
[]
[]
[]
[]
[]
[]
[]
[]
[]
[]
[]
[]
[]
[]
[null,"Actual"]
[null,"Estimated"]

{"sheet":"Apt-Gas","index":6,"n_rows":80,"n_cols":436,"rows_kept":80,"cut":false,"hidden":true,"merged":[[2,1,2,13],[59,425,63,435],[34,413,34,414],[34,415,34,416],[34,417,34,418],[34,419,34,420],[34,421,34,422],[58,5,58,10],[58,47,58,52],[58,89,58,94],[58,131,58,136],[58,173,58,178],[58,215,58,220],[58,257,58,262],[58,299,58,304],[58,341,58,346],[58,383,58,388],[34,377,34,378],[34,379,34,380],[34,383,34,384],[34,385,34,386],[34,387,34,388],[34,389,34,390],[34,391,34,392],[34,393,34,394],[34,395,34,396],[34,397,34,398],[34,399,34,400],[34,401,34,402],[34,403,34,404],[34,405,34,406],[34,407,34,408],[34,409,34,410],[34,411,34,412],[34,343,34,344],[34,345,34,346],[34,347,34,348],[34,349,34,350],[34,351,34,352],[34,353,34,354],[34,355,34,356],[34,357,34,358],[34,359,34,360],[34,361,34,362],[34,363,34,364],[34,365,34,366],[34,367,34,368],[34,369,34,370],[34,371,34,372],[34,373,34,374],[34,375,34,376],[34,307,34,308],[34,309,34,310],[34,311,34,312],[34,313,34,314],[34,315,34,316],[34,317,34,318],[34,319,34,320],[34,321,34,322],[34,323,34,324],[34,325,34,326],[34,327,34,328],[34,329,34,330],[34,331,34,332],[34,333,34,334],[34,335,34,336],[34,337,34,338],[34,341,34,342],[34,271,34,272],[34,273,34,274],[34,275,34,276],[34,277,34,278],[34,279,34,280],[34,281,34,282],[34,283,34,284],[34,285,34,286],[34,287,34,288],[34,289,34,290],[34,291,34,292],[34,293,34,294],[34,295,34,296],[34,299,34,300],[34,301,34,302],[34,303,34,304],[34,305,34,306],[34,235,34,236],[34,237,34,238],[34,239,34,240],[34,241,34,242],[34,243,34,244],[34,245,34,246],[34,247,34,248],[34,249,34,250],[34,251,34,252],[34,253,34,254],[34,257,34,258],[34,259,34,260],[34,261,34,262],[34,263,34,264],[34,265,34,266],[34,267,34,268],[34,269,34,270],[34,199,34,200],[34,201,34,202],[34,203,34,204],[34,205,34,206],[34,207,34,208],[34,209,34,210],[34,211,34,212],[34,215,34,216],[34,217,34,218],[34,219,34,220],[34,221,34,222],[34,223,34,224],[34,225,34,226],[34,227,34,228],[34,229,34,230],[34,231,34,232],[34,233,34,234],[34,163,34,164],[34,165,34,166],[34,167,34,168],[34,169,34,170],[34,173,34,174],[34,175,34,176],[34,177,34,178],[34,179,34,180],[34,181,34,182],[34,183,34,184],[34,185,34,186],[34,187,34,188],[34,189,34,190],[34,191,34,192],[34,193,34,194],[34,195,34,196],[34,197,34,198],[34,127,34,128],[34,131,34,132],[34,133,34,134],[34,135,34,136],[34,137,34,138],[34,139,34,140],[34,141,34,142],[34,143,34,144],[34,145,34,146],[34,147,34,148],[34,149,34,150],[34,151,34,152],[34,153,34,154],[34,155,34,156],[34,157,34,158],[34,159,34,160],[34,161,34,162],[34,93,34,94],[34,95,34,96],[34,97,34,98],[34,99,34,100],[34,101,34,102],[34,103,34,104],[34,105,34,106],[34,107,34,108],[34,109,34,110],[34,111,34,112],[34,113,34,114],[34,115,34,116],[34,117,34,118],[34,119,34,120],[34,121,34,122],[34,123,34,124],[34,125,34,126],[34,57,34,58],[34,59,34,60],[34,61,34,62],[34,63,34,64],[34,65,34,66],[34,67,34,68],[34,69,34,70],[34,71,34,72],[34,73,34,74],[34,75,34,76],[34,77,34,78],[34,79,34,80],[34,81,34,82],[34,83,34,84],[34,85,34,86],[34,89,34,90],[34,91,34,92],[32,409,32,410],[32,411,32,412],[32,413,32,414],[32,415,32,416],[32,417,32,418],[32,419,32,420],[32,421,32,422],[34,5,34,6],[34,7,34,8],[34,9,34,10],[34,11,34,12],[34,13,34,14],[34,15,34,16],[34,17,34,18],[34,19,34,20],[34,21,34,22],[34,23,34,24],[34,25,34,26],[34,27,34,28],[34,29,34,30],[34,31,34,32],[34,33,34,34],[34,35,34,36],[34,37,34,38],[34,39,34,40],[34,41,34,42],[34,43,34,44],[34,47,34,48],[34,49,34,50],[34,51,34,52],[34,53,34,54],[34,55,34,56],[32,373,32,374],[32,375,32,376],[32,377,32,378],[32,379,32,380],[32,383,32,384],[32,385,32,386],[32,387,32,388],[32,389,32,390],[32,391,32,392],[32,393,32,394],[32,395,32,396],[32,397,32,398],[32,399,32,400],[32,401,32,402],[32,403,32,404],[32,405,32,406],[32,407,32,408],[32,337,32,338],[32,341,32,342],[32,343,32,344],[32,345,32,346],[32,347,32,348],[32,349,32,350],[32,351,32,352],[32,353,32,354],[32,355,32,356],[32,357,32,358],[32,359,32,360],[32,361,32,362],[32,363,32,364],[32,365,32,366],[32,367,32,368],[32,369,32,370],[32,371,32,372],[32,303,32,304],[32,305,32,306],[32,307,32,308],[32,309,32,310],[32,311,32,312],[32,313,32,314],[32,315,32,316],[32,317,32,318],[32,319,32,320],[32,321,32,322],[32,323,32,324],[32,325,32,326],[32,327,32,328],[32,329,32,330],[32,331,32,332],[32,333,32,334],[32,335,32,336],[32,267,32,268],[32,269,32,270],[32,271,32,272],[32,273,32,274],[32,275,32,276],[32,277,32,278],[32,279,32,280],[32,281,32,282],[32,283,32,284],[32,285,32,286],[32,287,32,288],[32,289,32,290],[32,291,32,292],[32,293,32,294],[32,295,32,296],[32,299,32,300],[32,301,32,302],[32,231,32,232],[32,233,32,234],[32,235,32,236],[32,237,32,238],[32,239,32,240],[32,241,32,242],[32,243,32,244],[32,245,32,246],[32,247,32,248],[32,249,32,250],[32,251,32,252],[32,253,32,254],[32,257,32,258],[32,259,32,260],[32,261,32,262],[32,263,32,264],[32,265,32,266],[32,195,32,196],[32,197,32,198],[32,199,32,200],[32,201,32,202],[32,203,32,204],[32,205,32,206],[32,207,32,208],[32,209,32,210],[32,211,32,212],[32,215,32,216],[32,217,32,218],[32,219,32,220],[32,221,32,222],[32,223,32,224],[32,225,32,226],[32,227,32,228],[32,229,32,230],[32,159,32,160],[32,161,32,162],[32,163,32,164],[32,165,32,166],[32,167,32,168],[32,169,32,170],[32,173,32,174],[32,175,32,176],[32,177,32,178],[32,179,32,180],[32,181,32,182],[32,183,32,184],[32,185,32,186],[32,187,32,188],[32,189,32,190],[32,191,32,192],[32,193,32,194],[32,123,32,124],[32,125,32,126],[32,127,32,128],[32,131,32,132],[32,133,32,134],[32,135,32,136],[32,137,32,138],[32,139,32,140],[32,141,32,142],[32,143,32,144],[32,145,32,146],[32,147,32,148],[32,149,32,150],[32,151,32,152],[32,153,32,154],[32,155,32,156],[32,157,32,158],[32,89,32,90],[32,91,32,92],[32,93,32,94],[32,95,32,96],[32,97,32,98],[32,99,32,100],[32,101,32,102],[32,103,32,104],[32,105,32,106],[32,107,32,108],[32,109,32,110],[32,111,32,112],[32,113,32,114],[32,115,32,116],[32,117,32,118],[32,119,32,120],[32,121,32,122],[32,53,32,54],[32,55,32,56],[32,57,32,58],[32,59,32,60],[32,61,32,62],[32,63,32,64],[32,65,32,66],[32,67,32,68],[32,69,32,70],[32,71,32,72],[32,73,32,74],[32,75,32,76],[32,77,32,78],[32,79,32,80],[32,81,32,82],[32,83,32,84],[32,85,32,86],[32,17,32,18],[32,19,32,20],[32,21,32,22],[32,23,32,24],[32,25,32,26],[32,27,32,28],[32,29,32,30],[32,31,32,32],[32,33,32,34],[32,35,32,36],[32,37,32,38],[32,39,32,40],[32,41,32,42],[32,43,32,44],[32,47,32,48],[32,49,32,50],[32,51,32,52],[7,389,7,390],[7,391,7,392],[7,393,7,394],[7,395,7,396],[7,397,7,398],[7,399,7,400],[7,401,7,402],[7,403,7,404],[7,405,7,406],[7,407,7,408],[7,409,7,410],[7,411,7,412],[7,413,7,414],[7,415,7,416],[7,417,7,418],[7,419,7,420],[7,421,7,422],[7,353,7,354],[7,355,7,356],[7,357,7,358],[7,359,7,360],[7,361,7,362],[7,363,7,364],[7,365,7,366],[7,367,7,368],[7,369,7,370],[7,371,7,372],[7,373,7,374],[7,375,7,376],[7,377,7,378],[7,379,7,380],[7,383,7,384],[7,385,7,386],[7,387,7,388],[7,317,7,318],[7,319,7,320],[7,321,7,322],[7,323,7,324],[7,325,7,326],[7,327,7,328],[7,329,7,330],[7,331,7,332],[7,333,7,334],[7,335,7,336],[7,337,7,338],[7,341,7,342],[7,343,7,344],[7,345,7,346],[7,347,7,348],[7,349,7,350],[7,351,7,352],[7,281,7,282],[7,283,7,284],[7,285,7,286],[7,287,7,288],[7,289,7,290],[7,291,7,292],[7,293,7,294],[7,295,7,296],[7,299,7,300],[7,301,7,302],[7,303,7,304],[7,305,7,306],[7,307,7,308],[7,309,7,310],[7,311,7,312],[7,313,7,314],[7,315,7,316],[7,245,7,246],[7,247,7,248],[7,249,7,250],[7,251,7,252],[7,253,7,254],[7,257,7,258],[7,259,7,260],[7,261,7,262],[7,263,7,264],[7,265,7,266],[7,267,7,268],[7,269,7,270],[7,271,7,272],[7,273,7,274],[7,275,7,276],[7,277,7,278],[7,279,7,280],[7,209,7,210],[7,211,7,212],[7,215,7,216],[7,217,7,218],[7,219,7,220],[7,221,7,222],[7,223,7,224],[7,225,7,226],[7,227,7,228],[7,229,7,230],[7,231,7,232],[7,233,7,234],[7,235,7,236],[7,237,7,238],[7,239,7,240],[7,241,7,242],[7,243,7,244],[7,175,7,176],[7,177,7,178],[7,179,7,180],[7,181,7,182],[7,183,7,184],[7,185,7,186],[7,187,7,188],[7,189,7,190],[7,191,7,192],[7,193,7,194],[7,195,7,196],[7,197,7,198],[7,199,7,200],[7,201,7,202],[7,203,7,204],[7,205,7,206],[7,207,7,208],[7,139,7,140],[7,141,7,142],[7,143,7,144],[7,145,7,146],[7,147,7,148],[7,149,7,150],[7,151,7,152],[7,153,7,154],[7,155,7,156],[7,157,7,158],[7,159,7,160],[7,161,7,162],[7,163,7,164],[7,165,7,166],[7,167,7,168],[7,169,7,170],[7,173,7,174],[7,103,7,104],[7,105,7,106],[7,107,7,108],[7,109,7,110],[7,111,7,112],[7,113,7,114],[7,115,7,116],[7,117,7,118],[7,119,7,120],[7,121,7,122],[7,123,7,124],[7,125,7,126],[7,127,7,128],[7,131,7,132],[7,133,7,134],[7,135,7,136],[7,137,7,138],[7,67,7,68],[7,69,7,70],[7,71,7,72],[7,73,7,74],[7,75,7,76],[7,77,7,78],[7,79,7,80],[7,81,7,82],[7,83,7,84],[7,85,7,86],[7,89,7,90],[7,91,7,92],[7,93,7,94],[7,95,7,96],[7,97,7,98],[7,99,7,100],[7,101,7,102],[5,419,5,420],[5,421,5,422],[7,5,7,6],[7,7,7,8],[7,9,7,10],[7,11,7,12],[7,13,7,14],[7,15,7,16],[7,17,7,18],[7,19,7,20],[7,21,7,22],[7,23,7,24],[7,25,7,26],[7,27,7,28],[7,29,7,30],[7,31,7,32],[7,33,7,34],[7,35,7,36],[7,37,7,38],[7,39,7,40],[7,41,7,42],[7,43,7,44],[7,47,7,48],[7,49,7,50],[7,51,7,52],[7,53,7,54],[7,55,7,56],[7,57,7,58],[7,59,7,60],[7,61,7,62],[7,63,7,64],[7,65,7,66],[5,385,5,386],[5,387,5,388],[5,389,5,390],[5,391,5,392],[5,393,5,394],[5,395,5,396],[5,397,5,398],[5,399,5,400],[5,401,5,402],[5,403,5,404],[5,405,5,406],[5,407,5,408],[5,409,5,410],[5,411,5,412],[5,413,5,414],[5,415,5,416],[5,417,5,418],[5,349,5,350],[5,351,5,352],[5,353,5,354],[5,355,5,356],[5,357,5,358],[5,359,5,360],[5,361,5,362],[5,363,5,364],[5,365,5,366],[5,367,5,368],[5,369,5,370],[5,371,5,372],[5,373,5,374],[5,375,5,376],[5,377,5,378],[5,379,5,380],[5,383,5,384],[5,313,5,314],[5,315,5,316],[5,317,5,318],[5,319,5,320],[5,321,5,322],[5,323,5,324],[5,325,5,326],[5,327,5,328],[5,329,5,330],[5,331,5,332],[5,333,5,334],[5,335,5,336],[5,337,5,338],[5,341,5,342],[5,343,5,344],[5,345,5,346],[5,347,5,348],[5,277,5,278],[5,279,5,280],[5,281,5,282],[5,283,5,284],[5,285,5,286],[5,287,5,288],[5,289,5,290],[5,291,5,292],[5,293,5,294],[5,295,5,296],[5,299,5,300],[5,301,5,302],[5,303,5,304],[5,305,5,306],[5,307,5,308],[5,309,5,310],[5,311,5,312],[5,241,5,242],[5,243,5,244],[5,245,5,246],[5,247,5,248],[5,249,5,250],[5,251,5,252],[5,253,5,254],[5,257,5,258],[5,259,5,260],[5,261,5,262],[5,263,5,264],[5,265,5,266],[5,267,5,268],[5,269,5,270],[5,271,5,272],[5,273,5,274],[5,275,5,276],[5,205,5,206],[5,207,5,208],[5,209,5,210],[5,211,5,212],[5,215,5,216],[5,217,5,218],[5,219,5,220],[5,221,5,222],[5,223,5,224],[5,225,5,226],[5,227,5,228],[5,229,5,230],[5,231,5,232],[5,233,5,234],[5,235,5,236],[5,237,5,238],[5,239,5,240],[5,169,5,170],[5,173,5,174],[5,175,5,176],[5,177,5,178],[5,179,5,180],[5,181,5,182],[5,183,5,184],[5,185,5,186],[5,187,5,188],[5,189,5,190],[5,191,5,192],[5,193,5,194],[5,195,5,196],[5,197,5,198],[5,199,5,200],[5,201,5,202],[5,203,5,204],[5,135,5,136],[5,137,5,138],[5,139,5,140],[5,141,5,142],[5,143,5,144],[5,145,5,146],[5,147,5,148],[5,149,5,150],[5,151,5,152],[5,153,5,154],[5,155,5,156],[5,157,5,158],[5,159,5,160],[5,161,5,162],[5,163,5,164],[5,165,5,166],[5,167,5,168],[5,99,5,100],[5,101,5,102],[5,103,5,104],[5,105,5,106],[5,107,5,108],[5,109,5,110],[5,111,5,112],[5,113,5,114],[5,115,5,116],[5,117,5,118],[5,119,5,120],[5,121,5,122],[5,123,5,124],[5,125,5,126],[5,127,5,128],[5,131,5,132],[5,133,5,134],[5,63,5,64],[5,65,5,66],[5,67,5,68],[5,69,5,70],[5,71,5,72],[5,73,5,74],[5,75,5,76],[5,77,5,78],[5,79,5,80],[5,81,5,82],[5,83,5,84],[5,85,5,86],[5,89,5,90],[5,91,5,92],[5,93,5,94],[5,95,5,96],[5,97,5,98],[4,1,8,3],[4,5,4,45],[4,47,4,87],[4,89,4,129],[4,131,4,171],[6,23,6,24],[6,25,6,26],[6,27,6,28],[6,29,6,30],[5,5,5,6],[5,7,5,8],[5,9,5,10],[5,11,5,12],[5,13,5,14],[5,15,5,16],[5,17,5,18],[5,19,5,20],[5,21,5,22],[5,23,5,24],[5,25,5,26],[5,27,5,28],[5,29,5,30],[5,31,5,32],[5,33,5,34],[5,35,5,36],[5,37,5,38],[5,39,5,40],[5,41,5,42],[5,43,5,44],[5,47,5,48],[5,49,5,50],[6,57,6,58],[5,423,8,423],[6,5,6,6],[6,7,6,8],[6,9,6,10],[6,11,6,12],[6,13,6,14],[6,15,6,16],[6,17,6,18],[6,19,6,20],[6,21,6,22],[4,425,6,435],[5,45,8,45],[5,87,8,87],[5,129,8,129],[5,171,8,171],[5,213,8,213],[5,255,8,255],[5,297,8,297],[5,339,8,339],[5,381,8,381],[4,173,4,213],[4,215,4,255],[4,257,4,297],[4,299,4,339],[4,341,4,381],[4,383,4,423],[5,51,5,52],[5,53,5,54],[5,55,5,56],[5,57,5,58],[5,59,5,60],[5,61,5,62],[6,59,6,60],[6,61,6,62],[6,63,6,64],[6,65,6,66],[6,67,6,68],[6,43,6,44],[6,47,6,48],[6,49,6,50],[6,51,6,52],[6,53,6,54],[6,55,6,56],[6,31,6,32],[6,33,6,34],[6,35,6,36],[6,37,6,38],[6,39,6,40],[6,41,6,42],[6,95,6,96],[6,97,6,98],[6,99,6,100],[6,101,6,102],[6,103,6,104],[6,105,6,106],[6,81,6,82],[6,83,6,84],[6,85,6,86],[6,89,6,90],[6,91,6,92],[6,93,6,94],[6,69,6,70],[6,71,6,72],[6,73,6,74],[6,75,6,76],[6,77,6,78],[6,79,6,80],[6,133,6,134],[6,135,6,136],[6,137,6,138],[6,139,6,140],[6,141,6,142],[6,143,6,144],[6,119,6,120],[6,121,6,122],[6,123,6,124],[6,125,6,126],[6,127,6,128],[6,131,6,132],[6,107,6,108],[6,109,6,110],[6,111,6,112],[6,113,6,114],[6,115,6,116],[6,117,6,118],[6,169,6,170],[6,173,6,174],[6,175,6,176],[6,177,6,178],[6,179,6,180],[6,181,6,182],[6,157,6,158],[6,159,6,160],[6,161,6,162],[6,163,6,164],[6,165,6,166],[6,167,6,168],[6,145,6,146],[6,147,6,148],[6,149,6,150],[6,151,6,152],[6,153,6,154],[6,155,6,156],[6,207,6,208],[6,209,6,210],[6,211,6,212],[6,215,6,216],[6,217,6,218],[6,219,6,220],[6,195,6,196],[6,197,6,198],[6,199,6,200],[6,201,6,202],[6,203,6,204],[6,205,6,206],[6,183,6,184],[6,185,6,186],[6,187,6,188],[6,189,6,190],[6,191,6,192],[6,193,6,194],[6,245,6,246],[6,247,6,248],[6,249,6,250],[6,251,6,252],[6,253,6,254],[6,257,6,258],[6,233,6,234],[6,235,6,236],[6,237,6,238],[6,239,6,240],[6,241,6,242],[6,243,6,244],[6,221,6,222],[6,223,6,224],[6,225,6,226],[6,227,6,228],[6,229,6,230],[6,231,6,232],[6,283,6,284],[6,285,6,286],[6,287,6,288],[6,289,6,290],[6,291,6,292],[6,293,6,294],[6,271,6,272],[6,273,6,274],[6,275,6,276],[6,277,6,278],[6,279,6,280],[6,281,6,282],[6,259,6,260],[6,261,6,262],[6,263,6,264],[6,265,6,266],[6,267,6,268],[6,269,6,270],[6,321,6,322],[6,323,6,324],[6,325,6,326],[6,327,6,328],[6,329,6,330],[6,331,6,332],[6,309,6,310],[6,311,6,312],[6,313,6,314],[6,315,6,316],[6,317,6,318],[6,319,6,320],[6,295,6,296],[6,299,6,300],[6,301,6,302],[6,303,6,304],[6,305,6,306],[6,307,6,308],[6,379,6,380],[6,383,6,384],[6,359,6,360],[6,361,6,362],[6,363,6,364],[6,365,6,366],[6,367,6,368],[6,369,6,370],[6,347,6,348],[6,349,6,350],[6,351,6,352],[6,353,6,354],[6,355,6,356],[6,357,6,358],[6,333,6,334]],"merged_total":2859,"flags":["merged_cut"]}
[null,"Gas Utility Data - Apartment Meters"]
[null,"Instructions"]
[null,"1) Enter data for pre-construction apartment-level energy use.  First cell must not be blank. For months with zero consumption, please leave cell blank. \n2) Unhide columns (OD-PI) if there are more than 10 units sampled for a given unit type. You may hide columns that are not needed, do not delete them.\n3) Post-Construction data will be filled in one year after construction has been completed.\n4) Please use the \"Notes\" field below the data entry section of this tab to explain unusual circumstances, any anomalies in the data, or adjustments made. Also, please follow Program Guidelines v4.2, Section 3.2.2 for irregular delivers, outliers, and estimated bills.\n\n"]
[]
[null,"Pre-Construction In-Unit Billing Dates",null,null,null,{"$f":"CONCATENATE('Utility Info'!B77,\" - \",'Utility Info'!C77)","v":"Unit Type 1 - "},null,null,null,null,null,null,null,null,null,null,null,null,null,null,null,null,null,null,null,null,null,null,null,null,null,null,null,null,null,null,null,null,null,null,null,null,null,null,null,null,null,{"$f":"CONCATENATE('Utility Info'!B78,\" - \",'Utility Info'!C78)","v":"Unit Type 2 - "},null,null,null,null,null,null,null,null,null,null,null,null,null,null,null,null,null,null,null,null,null,null,null,null,null,null,null,null,null,null,null,null,null,null,null,null,null,null,null,null,null,{"$f":"CONCATENATE('Utility Info'!B79,\" - \",'Utility Info'!C79)","v":"Unit Type 3 - "},null,null,null,null,null,null,null,null,null,null,null,null,null,null,null,null,null,null,null,null,null,null,null,null,null,null,null,null,null,null,null,null,null,null,null,null,null,null,null,null,null,{"$f":"CONCATENATE('Utility Info'!B80,\" - \",'Utility Info'!C80)","v":"Unit Type 4 - "},null,null,null,null,null,null,null,null,null,null,null,null,null,null,null,null,null,null,null,null,null,null,null,null,null,null,null,null,null,null,null,null,null,null,null,null,null,null,null,null,null,{"$f":"CONCATENATE('Utility Info'!B81,\" - \",'Utility Info'!C81)","v":"Unit Type 5 - "},null,null,null,null,null,null,null,null,null,null,null,null,null,null,null,null,null,null,null,null,null,null,null,null,null,null,null,null,null,null,null,null,null,null,null,null,null,null,null,null,null,{"$f":"CONCATENATE('Utility Info'!B82,\" - \",'Utility Info'!C82)","v":"Unit Type 6 - "},null,null,null,null,null,null,null,null,null,null,null,null,null,null,null,null,null,null,null,null,null,null,null,null,null,null,null,null,null,null,null,null,null,null,null,null,null,null,null,null,null,{"$f":"CONCATENATE('Utility Info'!B83,\" - \",'Utility Info'!C83)","v":"Unit Type 7 - "},null,null,null,null,null,null,null,null,null,null,null,null,null,null,null,null,null,null,null,null,null,null,null,null,null,null,null,null,null,null,null,null,null,null,null,null,null,null,null,null,null,{"$f":"CONCATENATE('Utility Info'!B84,\" - \",'Utility Info'!C84)","v":"Unit Type 8 - "},null,null,null,null,null,null,null,null,null,null,null,null,null,null,null,null,null,null,null,null,null,null,null,null,null,null,null,null,null,null,null,null,null,null,null,null,null,null,null,null,null,{"$f":"CONCATENATE('Utility Info'!B85,\" - \",'Utility Info'!C85)","v":"Unit Type 9 - "},null,null,null,null,null,null,null,null,null,null,null,null,null,null,null,null,null,null,null,null,null,null,null,null,null,null,null,null,null,null,null,null,null,null,null,null,null,null,null,null,null,{"$f":"CONCATENATE('Utility Info'!B86,\" - \",'Utility Info'!C86)","v":"Unit Type 10 - "},null,null,null,null,null,null,null,null,null,null,null,null,null,null,null,null,null,null,null,null,null,null,null,null,null,null,null,null,null,null,null,null,null,null,null,null,null,null,null,null,null,"PRE-CONSTRUCTION\nSummary of In-Unit Gas Use"]
[null,null,null,null,null,"Unit #:",null,"Unit #:",null,"Unit #:",null,"Unit #:",null,"Unit #:",null,"Unit #:",null,"Unit #:",null,"Unit #:",null,"Unit #:",null,"Unit #:",null,"Unit #:",null,"Unit #:",null,"Unit #:",null,"Unit #:",null,"Unit #:",null,"Unit #:",null,"Unit #:",null,"Unit #:",null,"Unit #:",null,"Unit #:",null,"SUMMARY",null,"Unit #:",null,"Unit #:",null,"Unit #:",null,"Unit #:",null,"Unit #:",null,"Unit #:",null,"Unit #:",null,"Unit #:",null,"Unit #:",null,"Unit #:",null,"Unit #:",null,"Unit #:",null,"Unit #:",null,"Unit #:",null,"Unit #:",null,"Unit #:",null,"Unit #:",null,"Unit #:",null,"Unit #:",null,"Unit #:",null,"SUMMARY",null,"Unit #:",null,"Unit #:",null,"Unit #:",null,"Unit #:",null,"Unit #:",null,"Unit #:",null,"Unit #:",null,"Unit #:",null,"Unit #:",null,"Unit #:",null,"Unit #:",null,"Unit #:",null,"Unit #:",null,"Unit #:",null,"Unit #:",null,"Unit #:",null,"Unit #:",null,"Unit #:",null,"Unit #:",null,"Unit #:",null,"SUMMARY",null,"Unit #:",null,"Unit #:",null,"Unit #:",null,"Unit #:",null,"Unit #:",null,"Unit #:",null,"Unit #:",null,"Unit #:",null,"Unit #:",null,"Unit #:",null,"Unit #:",null,"Unit #:",null,"Unit #:",null,"Unit #:",null,"Unit #:",null,"Unit #:",null,"Unit #:",null,"Unit #:",null,"Unit #:",null,"Unit #:",null,"SUMMARY",null,"Unit #:",null,"Unit #:",null,"Unit #:",null,"Unit #:",null,"Unit #:",null,"Unit #:",null,"Unit #:",null,"Unit #:",null,"Unit #:",null,"Unit #:",null,"Unit #:",null,"Unit #:",null,"Unit #:",null,"Unit #:",null,"Unit #:",null,"Unit #:",null,"Unit #:",null,"Unit #:",null,"Unit #:",null,"Unit #:",null,"SUMMARY",null,"Unit #:",null,"Unit #:",null,"Unit #:",null,"Unit #:",null,"Unit #:",null,"Unit #:",null,"Unit #:",null,"Unit #:",null,"Unit #:",null,"Unit #:",null,"Unit #:",null,"Unit #:",null,"Unit #:",null,"Unit #:",null,"Unit #:",null,"Unit #:",null,"Unit #:",null,"Unit #:",null,"Unit #:",null,"Unit #:",null,"SUMMARY",null,"Unit #:",null,"Unit #:",null,"Unit #:",null,"Unit #:",null,"Unit #:",null,"Unit #:",null,"Unit #:",null,"Unit #:",null,"Unit #:",null,"Unit #:",null,"Unit #:",null,"Unit #:",null,"Unit #:",null,"Unit #:",null,"Unit #:",null,"Unit #:",null,"Unit #:",null,"Unit #:",null,"Unit #:",null,"Unit #:",null,"SUMMARY",null,"Unit #:",null,"Unit #:",null,"Unit #:",null,"Unit #:",null,"Unit #:",null,"Unit #:",null,"Unit #:",null,"Unit #:",null,"Unit #:",null,"Unit #:",null,"Unit #:",null,"Unit #:",null,"Unit #:",null,"Unit #:",null,"Unit #:",null,"Unit #:",null,"Unit #:",null,"Unit #:",null,"Unit #:",null,"Unit #:",null,"SUMMARY",null,"Unit #:",null,"Unit #:",null,"Unit #:",null,"Unit #:",null,"Unit #:",null,"Unit #:",null,"Unit #:",null,"Unit #:",null,"Unit #:",null,"Unit #:",null,"Unit #:",null,"Unit #:",null,"Unit #:",null,"Unit #:",null,"Unit #:",null,"Unit #:",null,"Unit #:",null,"Unit #:",null,"Unit #:",null,"Unit #:",null,"SUMMARY",null,"Unit #:",null,"Unit #:",null,"Unit #:",null,"Unit #:",null,"Unit #:",null,"Unit #:",null,"Unit #:",null,"Unit #:",null,"Unit #:",null,"Unit #:",null,"Unit #:",null,"Unit #:",null,"Unit #:",null,"Unit #:",null,"Unit #:",null,"Unit #:",null,"Unit #:",null,"Unit #:",null,"Unit #:",null,"Unit #:",null,"SUMMARY"]
[]
[null,null,null,null,null,"Account #:",null,"Account #:",null,"Account #:",null,"Account #:",null,"Account #:",null,"Account #:",null,"Account #:",null,"Account #:",null,"Account #:",null,"Account #:",null,"Account #:",null,"Account #:",null,"Account #:",null,"Account #:",null,"Account #:",null,"Account #:",null,"Account #:",null,"Account #:",null,"Account #:",null,"Account #:",null,null,null,"Account #:",null,"Account #:",null,"Account #:",null,"Account #:",null,"Account #:",null,"Account #:",null,"Account #:",null,"Account #:",null,"Account #:",null,"Account #:",null,"Account #:",null,"Account #:",null,"Account #:",null,"Account #:",null,"Account #:",null,"Account #:",null,"Account #:",null,"Account #:",null,"Account #:",null,"Account #:",null,null,null,"Account #:",null,"Account #:",null,"Account #:",null,"Account #:",null,"Account #:",null,"Account #:",null,"Account #:",null,"Account #:",null,"Account #:",null,"Account #:",null,"Account #:",null,"Account #:",null,"Account #:",null,"Account #:",null,"Account #:",null,"Account #:",null,"Account #:",null,"Account #:",null,"Account #:",null,"Account #:",null,null,null,"Account #:",null,"Account #:",null,"Account #:",null,"Account #:",null,"Account #:",null,"Account #:",null,"Account #:",null,"Account #:",null,"Account #:",null,"Account #:",null,"Account #:",null,"Account #:",null,"Account #:",null,"Account #:",null,"Account #:",null,"Account #:",null,"Account #:",null,"Account #:",null,"Account #:",null,"Account #:",null,null,null,"Account #:",null,"Account #:",null,"Account #:",null,"Account #:",null,"Account #:",null,"Account #:",null,"Account #:",null,"Account #:",null,"Account #:",null,"Account #:",null,"Account #:",null,"Account #:",null,"Account #:",null,"Account #:",null,"Account #:",null,"Account #:",null,"Account #:",null,"Account #:",null,"Account #:",null,"Account #:",null,null,null,"Account #:",null,"Account #:",null,"Account #:",null,"Account #:",null,"Account #:",null,"Account #:",null,"Account #:",null,"Account #:",null,"Account #:",null,"Account #:",null,"Account #:",null,"Account #:",null,"Account #:",null,"Account #:",null,"Account #:",null,"Account #:",null,"Account #:",null,"Account #:",null,"Account #:",null,"Account #:",null,null,null,"Account #:",null,"Account #:",null,"Account #:",null,"Account #:",null,"Account #:",null,"Account #:",null,"Account #:",null,"Account #:",null,"Account #:",null,"Account #:",null,"Account #:",null,"Account #:",null,"Account #:",null,"Account #:",null,"Account #:",null,"Account #:",null,"Account #:",null,"Account #:",null,"Account #:",null,"Account #:",null,null,null,"Account #:",null,"Account #:",null,"Account #:",null,"Account #:",null,"Account #:",null,"Account #:",null,"Account #:",null,"Account #:",null,"Account #:",null,"Account #:",null,"Account #:",null,"Account #:",null,"Account #:",null,"Account #:",null,"Account #:",null,"Account #:",null,"Account #:",null,"Account #:",null,"Account #:",null,"Account #:",null,null,null,"Account #:",null,"Account #:",null,"Account #:",null,"Account #:",null,"Account #:",null,"Account #:",null,"Account #:",null,"Account #:",null,"Account #:",null,"Account #:",null,"Account #:",null,"Account #:",null,"Account #:",null,"Account #:",null,"Account #:",null,"Account #:",null,"Account #:",null,"Account #:",null,"Account #:",null,"Account #:",null,null,null,"Account #:",null,"Account #:",null,"Account #:",null,"Account #:",null,"Account #:",null,"Account #:",null,"Account #:",null,"Account #:",null,"Account #:",null,"Account #:",null,"Account #:",null,"Account #:",null,"Account #:",null,"Account #:",null,"Account #:",null,"Account #:",null,"Account #:",null,"Account #:",null,"Account #:",null,"Account #:",null,null,null,{"$f":"'Utility Info'!$D$77","v":0},{"$f":"'Utility Info'!$D$78","v":0},{"$f":"'Utility Info'!$D$79","v":0},{"$f":"'Utility Info'!$D$80","v":0},{"$f":"'Utility Info'!$D$81","v":0},{"$f":"'Utility Info'!$D$82","v":0},{"$f":"'Utility Info'!$D$83","v":0},{"$f":"'Utility Info'!$D$84","v":0},{"$f":"'Utility Info'!$D$85","v":0},{"$f":"'Utility Info'!$D$86","v":0}]
[null,null,null,null,null,null,null,null,null,null,null,null,null,null,null,null,null,null,null,null,null,null,null,null,null,null,null,null,null,null,null,null,null,null,null,null,null,null,null,null,null,null,null,null,null,null,null,null,null,null,null,null,null,null,null,null,null,null,null,null,null,null,null,null,null,null,null,null,null,null,null,null,null,null,null,null,null,null,null,null,null,null,null,null,null,null,null,null,null,null,null,null,null,null,null,null,null,null,null,null,null,null,null,null,null,null,null,null,null,null,null,null,null,null,null,null,null,null,null,null,null,null,null,null,null,null,null,null,null,null,null,null,null,null,null,null,null,null,null,null,null,null,null,null,null,null,null,null,null,null,null,null,null,null,null,null,null,null,null,null,null,null,null,null,null,null,null,null,null,null,null,null,null,null,null,null,null,null,null,null,null,null,null,null,null,null,null,null,null,null,null,null,null,null,null,null,null,null,null,null,null,null,null,null,null,null,null,null,null,null,null,null,null,null,null,null,null,null,null,null,null,null,null,null,null,null,null,null,null,null,null,null,null,null,null,null,null,null,null,null,null,null,null,null,null,null,null,null,null,null,null,null,null,null,null,null,null,null,null,null,null,null,null,null,null,null,null,null,null,null,null,null,null,null,null,null,null,null,null,null,null,null,null,null,null,null,null,null,null,null,null,null,null,null,null,null,null,null,null,null,null,null,null,null,null,null,null,null,null,null,null,null,null,null,null,null,null,null,null,null,null,null,null,null,null,null,null,null,null,null,null,null,null,null,null,null,null,null,null,null,null,null,null,null,null,null,null,null,null,null,null,null,null,null,null,null,null,null,null,null,null,null,null,null,null,null,null,null,null,null,null,null,null,null,null,null,null,null,null,null,null,null,null,null,null,null,null,null,null,null,null,null,null,null,null,null,null,null,null,null,null,null,null,null,null,null,null,null,null,null,null,null,null,null,null,null,null,null,null,null,null,null,null,null,null,{"$f":"'Utility Info'!B77","v":"Unit Type 1"},{"$f":"'Utility Info'!B78","v":"Unit Type 2"},{"$f":"'Utility Info'!B79","v":"Unit Type 3"},{"$f":"'Utility Info'!B80","v":"Unit Type 4"},{"$f":"'Utility Info'!B81","v":"Unit Type 5"},{"$f":"'Utility Info'!B82","v":"Unit Type 6"},{"$f":"'Utility Info'!B83","v":"Unit Type 7"},{"$f":"'Utility Info'!B84","v":"Unit Type 8"},{"$f":"'Utility Info'!B85","v":"Unit Type 9"},{"$f":"'Utility Info'!B86","v":"Unit Type 10"},"SUMMARY"]
[null,"Billing Period Start Date","Read Date","Days in Billing Period",null,{"$f":"'Utility Info'!$D$7","v":"<Not Used>"},"Actual/ Estimated",{"$f":"'Utility Info'!$D$7","v":"<Not Used>"},"Actual/ Estimated",{"$f":"'Utility Info'!$D$7","v":"<Not Used>"},"Actual/ Estimated",{"$f":"'Utility Info'!$D$7","v":"<Not Used>"},"Actual/ Estimated",{"$f":"'Utility Info'!$D$7","v":"<Not Used>"},"Actual/ Estimated",{"$f":"'Utility Info'!$D$7","v":"<Not Used>"},"Actual/ Estimated",{"$f":"'Utility Info'!$D$7","v":"<Not Used>"},"Actual/ Estimated",{"$f":"'Utility Info'!$D$7","v":"<Not Used>"},"Actual/ Estimated",{"$f":"'Utility Info'!$D$7","v":"<Not Used>"},"Actual/ Estimated",{"$f":"'Utility Info'!$D$7","v":"<Not Used>"},"Actual/ Estimated",{"$f":"'Utility Info'!$D$7","v":"<Not Used>"},"Actual/ Estimated",{"$f":"'Utility Info'!$D$7","v":"<Not Used>"},"Actual/ Estimated",{"$f":"'Utility Info'!$D$7","v":"<Not Used>"},"Actual/ Estimated",{"$f":"'Utility Info'!$D$7","v":"<Not Used>"},"Actual/ Estimated",{"$f":"'Utility Info'!$D$7","v":"<Not Used>"},"Actual/ Estimated",{"$f":"'Utility Info'!$D$7","v":"<Not Used>"},"Actual/ Estimated",{"$f":"'Utility Info'!$D$7","v":"<Not Used>"},"Actual/ Estimated",{"$f":"'Utility Info'!$D$7","v":"<Not Used>"},"Actual/ Estimated",{"$f":"'Utility Info'!$D$7","v":"<Not Used>"},"Actual/ Estimated",{"$f":"'Utility Info'!$D$7","v":"<Not Used>"},"Actual/ Estimated","Average Gas Consumption",null,{"$f":"'Utility Info'!$D$7","v":"<Not Used>"},"Actual/ Estimated",{"$f":"'Utility Info'!$D$7","v":"<Not Used>"},"Actual/ Estimated",{"$f":"'Utility Info'!$D$7","v":"<Not Used>"},"Actual/ Estimated",{"$f":"'Utility Info'!$D$7","v":"<Not Used>"},"Actual/ Estimated",{"$f":"'Utility Info'!$D$7","v":"<Not Used>"},"Actual/ Estimated",{"$f":"'Utility Info'!$D$7","v":"<Not Used>"},"Actual/ Estimated",{"$f":"'Utility Info'!$D$7","v":"<Not Used>"},"Actual/ Estimated",{"$f":"'Utility Info'!$D$7","v":"<Not Used>"},"Actual/ Estimated",{"$f":"'Utility Info'!$D$7","v":"<Not Used>"},"Actual/ Estimated",{"$f":"'Utility Info'!$D$7","v":"<Not Used>"},"Actual/ Estimated",{"$f":"'Utility Info'!$D$7","v":"<Not Used>"},"Actual/ Estimated",{"$f":"'Utility Info'!$D$7","v":"<Not Used>"},"Actual/ Estimated",{"$f":"'Utility Info'!$D$7","v":"<Not Used>"},"Actual/ Estimated",{"$f":"'Utility Info'!$D$7","v":"<Not Used>"},"Actual/ Estimated",{"$f":"'Utility Info'!$D$7","v":"<Not Used>"},"Actual/ Estimated",{"$f":"'Utility Info'!$D$7","v":"<Not Used>"},"Actual/ Estimated",{"$f":"'Utility Info'!$D$7","v":"<Not Used>"},"Actual/ Estimated",{"$f":"'Utility Info'!$D$7","v":"<Not Used>"},"Actual/ Estimated",{"$f":"'Utility Info'!$D$7","v":"<Not Used>"},"Actual/ Estimated",{"$f":"'Utility Info'!$D$7","v":"<Not Used>"},"Actual/ Estimated","Average Gas Consumption",null,{"$f":"'Utility Info'!$D$7","v":"<Not Used>"},"Actual/ Estimated",{"$f":"'Utility Info'!$D$7","v":"<Not Used>"},"Actual/ Estimated",{"$f":"'Utility Info'!$D$7","v":"<Not Used>"},"Actual/ Estimated",{"$f":"'Utility Info'!$D$7","v":"<Not Used>"},"Actual/ Estimated",{"$f":"'Utility Info'!$D$7","v":"<Not Used>"},"Actual/ Estimated",{"$f":"'Utility Info'!$D$7","v":"<Not Used>"},"Actual/ Estimated",{"$f":"'Utility Info'!$D$7","v":"<Not Used>"},"Actual/ Estimated",{"$f":"'Utility Info'!$D$7","v":"<Not Used>"},"Actual/ Estimated",{"$f":"'Utility Info'!$D$7","v":"<Not Used>"},"Actual/ Estimated",{"$f":"'Utility Info'!$D$7","v":"<Not Used>"},"Actual/ Estimated",{"$f":"'Utility Info'!$D$7","v":"<Not Used>"},"Actual/ Estimated",{"$f":"'Utility Info'!$D$7","v":"<Not Used>"},"Actual/ Estimated",{"$f":"'Utility Info'!$D$7","v":"<Not Used>"},"Actual/ Estimated",{"$f":"'Utility Info'!$D$7","v":"<Not Used>"},"Actual/ Estimated",{"$f":"'Utility Info'!$D$7","v":"<Not Used>"},"Actual/ Estimated",{"$f":"'Utility Info'!$D$7","v":"<Not Used>"},"Actual/ Estimated",{"$f":"'Utility Info'!$D$7","v":"<Not Used>"},"Actual/ Estimated",{"$f":"'Utility Info'!$D$7","v":"<Not Used>"},"Actual/ Estimated",{"$f":"'Utility Info'!$D$7","v":"<Not Used>"},"Actual/ Estimated",{"$f":"'Utility Info'!$D$7","v":"<Not Used>"},"Actual/ Estimated","Average Gas Consumption",null,{"$f":"'Utility Info'!$D$7","v":"<Not Used>"},"Actual/ Estimated",{"$f":"'Utility Info'!$D$7","v":"<Not Used>"},"Actual/ Estimated",{"$f":"'Utility Info'!$D$7","v":"<Not Used>"},"Actual/ Estimated",{"$f":"'Utility Info'!$D$7","v":"<Not Used>"},"Actual/ Estimated",{"$f":"'Utility Info'!$D$7","v":"<Not Used>"},"Actual/ Estimated",{"$f":"'Utility Info'!$D$7","v":"<Not Used>"},"Actual/ Estimated",{"$f":"'Utility Info'!$D$7","v":"<Not Used>"},"Actual/ Estimated",{"$f":"'Utility Info'!$D$7","v":"<Not Used>"},"Actual/ Estimated",{"$f":"'Utility Info'!$D$7","v":"<Not Used>"},"Actual/ Estimated",{"$f":"'Utility Info'!$D$7","v":"<Not Used>"},"Actual/ Estimated",{"$f":"'Utility Info'!$D$7","v":"<Not Used>"},"Actual/ Estimated",{"$f":"'Utility Info'!$D$7","v":"<Not Used>"},"Actual/ Estimated",{"$f":"'Utility Info'!$D$7","v":"<Not Used>"},"Actual/ Estimated",{"$f":"'Utility Info'!$D$7","v":"<Not Used>"},"Actual/ Estimated",{"$f":"'Utility Info'!$D$7","v":"<Not Used>"},"Actual/ Estimated",{"$f":"'Utility Info'!$D$7","v":"<Not Used>"},"Actual/ Estimated",{"$f":"'Utility Info'!$D$7","v":"<Not Used>"},"Actual/ Estimated",{"$f":"'Utility Info'!$D$7","v":"<Not Used>"},"Actual/ Estimated",{"$f":"'Utility Info'!$D$7","v":"<Not Used>"},"Actual/ Estimated",{"$f":"'Utility Info'!$D$7","v":"<Not Used>"},"Actual/ Estimated","Average Gas Consumption",null,{"$f":"'Utility Info'!$D$7","v":"<Not Used>"},"Actual/ Estimated",{"$f":"'Utility Info'!$D$7","v":"<Not Used>"},"Actual/ Estimated",{"$f":"'Utility Info'!$D$7","v":"<Not Used>"},"Actual/ Estimated",{"$f":"'Utility Info'!$D$7","v":"<Not Used>"},"Actual/ Estimated",{"$f":"'Utility Info'!$D$7","v":"<Not Used>"},"Actual/ Estimated",{"$f":"'Utility Info'!$D$7","v":"<Not Used>"},"Actual/ Estimated",{"$f":"'Utility Info'!$D$7","v":"<Not Used>"},"Actual/ Estimated",{"$f":"'Utility Info'!$D$7","v":"<Not Used>"},"Actual/ Estimated",{"$f":"'Utility Info'!$D$7","v":"<Not Used>"},"Actual/ Estimated",{"$f":"'Utility Info'!$D$7","v":"<Not Used>"},"Actual/ Estimated",{"$f":"'Utility Info'!$D$7","v":"<Not Used>"},"Actual/ Estimated",{"$f":"'Utility Info'!$D$7","v":"<Not Used>"},"Actual/ Estimated",{"$f":"'Utility Info'!$D$7","v":"<Not Used>"},"Actual/ Estimated",{"$f":"'Utility Info'!$D$7","v":"<Not Used>"},"Actual/ Estimated",{"$f":"'Utility Info'!$D$7","v":"<Not Used>"},"Actual/ Estimated",{"$f":"'Utility Info'!$D$7","v":"<Not Used>"},"Actual/ Estimated",{"$f":"'Utility Info'!$D$7","v":"<Not Used>"},"Actual/ Estimated",{"$f":"'Utility Info'!$D$7","v":"<Not Used>"},"Actual/ Estimated",{"$f":"'Utility Info'!$D$7","v":"<Not Used>"},"Actual/ Estimated",{"$f":"'Utility Info'!$D$7","v":"<Not Used>"},"Actual/ Estimated","Average Gas Consumption",null,{"$f":"'Utility Info'!$D$7","v":"<Not Used>"},"Actual/ Estimated",{"$f":"'Utility Info'!$D$7","v":"<Not Used>"},"Actual/ Estimated",{"$f":"'Utility Info'!$D$7","v":"<Not Used>"},"Actual/ Estimated",{"$f":"'Utility Info'!$D$7","v":"<Not Used>"},"Actual/ Estimated",{"$f":"'Utility Info'!$D$7","v":"<Not Used>"},"Actual/ Estimated",{"$f":"'Utility Info'!$D$7","v":"<Not Used>"},"Actual/ Estimated",{"$f":"'Utility Info'!$D$7","v":"<Not Used>"},"Actual/ Estimated",{"$f":"'Utility Info'!$D$7","v":"<Not Used>"},"Actual/ Estimated",{"$f":"'Utility Info'!$D$7","v":"<Not Used>"},"Actual/ Estimated",{"$f":"'Utility Info'!$D$7","v":"<Not Used>"},"Actual/ Estimated",{"$f":"'Utility Info'!$D$7","v":"<Not Used>"},"Actual/ Estimated",{"$f":"'Utility Info'!$D$7","v":"<Not Used>"},"Actual/ Estimated",{"$f":"'Utility Info'!$D$7","v":"<Not Used>"},"Actual/ Estimated",{"$f":"'Utility Info'!$D$7","v":"<Not Used>"},"Actual/ Estimated",{"$f":"'Utility Info'!$D$7","v":"<Not Used>"},"Actual/ Estimated",{"$f":"'Utility Info'!$D$7","v":"<Not Used>"},"Actual/ Estimated",{"$f":"'Utility Info'!$D$7","v":"<Not Used>"},"Actual/ Estimated",{"$f":"'Utility Info'!$D$7","v":"<Not Used>"},"Actual/ Estimated",{"$f":"'Utility Info'!$D$7","v":"<Not Used>"},"Actual/ Estimated",{"$f":"'Utility Info'!$D$7","v":"<Not Used>"},"Actual/ Estimated","Average Gas Consumption",null,{"$f":"'Utility Info'!$D$7","v":"<Not Used>"},"Actual/ Estimated",{"$f":"'Utility Info'!$D$7","v":"<Not Used>"},"Actual/ Estimated",{"$f":"'Utility Info'!$D$7","v":"<Not Used>"},"Actual/ Estimated",{"$f":"'Utility Info'!$D$7","v":"<Not Used>"},"Actual/ Estimated",{"$f":"'Utility Info'!$D$7","v":"<Not Used>"},"Actual/ Estimated",{"$f":"'Utility Info'!$D$7","v":"<Not Used>"},"Actual/ Estimated",{"$f":"'Utility Info'!$D$7","v":"<Not Used>"},"Actual/ Estimated",{"$f":"'Utility Info'!$D$7","v":"<Not Used>"},"Actual/ Estimated",{"$f":"'Utility Info'!$D$7","v":"<Not Used>"},"Actual/ Estimated",{"$f":"'Utility Info'!$D$7","v":"<Not Used>"},"Actual/ Estimated",{"$f":"'Utility Info'!$D$7","v":"<Not Used>"},"Actual/ Estimated",{"$f":"'Utility Info'!$D$7","v":"<Not Used>"},"Actual/ Estimated",{"$f":"'Utility Info'!$D$7","v":"<Not Used>"},"Actual/ Estimated",{"$f":"'Utility Info'!$D$7","v":"<Not Used>"},"Actual/ Estimated",{"$f":"'Utility Info'!$D$7","v":"<Not Used>"},"Actual/ Estimated",{"$f":"'Utility Info'!$D$7","v":"<Not Used>"},"Actual/ Estimated",{"$f":"'Utility Info'!$D$7","v":"<Not Used>"},"Actual/ Estimated",{"$f":"'Utility Info'!$D$7","v":"<Not Used>"},"Actual/ Estimated",{"$f":"'Utility Info'!$D$7","v":"<Not Used>"},"Actual/ Estimated",{"$f":"'Utility Info'!$D$7","v":"<Not Used>"},"Actual/ Estimated","Average Gas Consumption",null,{"$f":"'Utility Info'!$D$7","v":"<Not Used>"},"Actual/ Estimated",{"$f":"'Utility Info'!$D$7","v":"<Not Used>"},"Actual/ Estimated",{"$f":"'Utility Info'!$D$7","v":"<Not Used>"},"Actual/ Estimated",{"$f":"'Utility Info'!$D$7","v":"<Not Used>"},"Actual/ Estimated",{"$f":"'Utility Info'!$D$7","v":"<Not Used>"},"Actual/ Estimated",{"$f":"'Utility Info'!$D$7","v":"<Not Used>"},"Actual/ Estimated",{"$f":"'Utility Info'!$D$7","v":"<Not Used>"},"Actual/ Estimated",{"$f":"'Utility Info'!$D$7","v":"<Not Used>"},"Actual/ Estimated",{"$f":"'Utility Info'!$D$7","v":"<Not Used>"},"Actual/ Estimated",{"$f":"'Utility Info'!$D$7","v":"<Not Used>"},"Actual/ Estimated",{"$f":"'Utility Info'!$D$7","v":"<Not Used>"},"Actual/ Estimated",{"$f":"'Utility Info'!$D$7","v":"<Not Used>"},"Actual/ Estimated",{"$f":"'Utility Info'!$D$7","v":"<Not Used>"},"Actual/ Estimated",{"$f":"'Utility Info'!$D$7","v":"<Not Used>"},"Actual/ Estimated",{"$f":"'Utility Info'!$D$7","v":"<Not Used>"},"Actual/ Estimated",{"$f":"'Utility Info'!$D$7","v":"<Not Used>"},"Actual/ Estimated",{"$f":"'Utility Info'!$D$7","v":"<Not Used>"},"Actual/ Estimated",{"$f":"'Utility Info'!$D$7","v":"<Not Used>"},"Actual/ Estimated",{"$f":"'Utility Info'!$D$7","v":"<Not Used>"},"Actual/ Estimated",{"$f":"'Utility Info'!$D$7","v":"<Not Used>"},"Actual/ Estimated","Average Gas Consumption",null,{"$f":"'Utility Info'!$D$7","v":"<Not Used>"},"Actual/ Estimated",{"$f":"'Utility Info'!$D$7","v":"<Not Used>"},"Actual/ Estimated",{"$f":"'Utility Info'!$D$7","v":"<Not Used>"},"Actual/ Estimated",{"$f":"'Utility Info'!$D$7","v":"<Not Used>"},"Actual/ Estimated",{"$f":"'Utility Info'!$D$7","v":"<Not Used>"},"Actual/ Estimated",{"$f":"'Utility Info'!$D$7","v":"<Not Used>"},"Actual/ Estimated",{"$f":"'Utility Info'!$D$7","v":"<Not Used>"},"Actual/ Estimated",{"$f":"'Utility Info'!$D$7","v":"<Not Used>"},"Actual/ Estimated",{"$f":"'Utility Info'!$D$7","v":"<Not Used>"},"Actual/ Estimated",{"$f":"'Utility Info'!$D$7","v":"<Not Used>"},"Actual/ Estimated",{"$f":"'Utility Info'!$D$7","v":"<Not Used>"},"Actual/ Estimated",{"$f":"'Utility Info'!$D$7","v":"<Not Used>"},"Actual/ Estimated",{"$f":"'Utility Info'!$D$7","v":"<Not Used>"},"Actual/ Estimated",{"$f":"'Utility Info'!$D$7","v":"<Not Used>"},"Actual/ Estimated",{"$f":"'Utility Info'!$D$7","v":"<Not Used>"},"Actual/ Estimated",{"$f":"'Utility Info'!$D$7","v":"<Not Used>"},"Actual/ Estimated",{"$f":"'Utility Info'!$D$7","v":"<Not Used>"},"Actual/ Estimated",{"$f":"'Utility Info'!$D$7","v":"<Not Used>"},"Actual/ Estimated",{"$f":"'Utility Info'!$D$7","v":"<Not Used>"},"Actual/ Estimated",{"$f":"'Utility Info'!$D$7","v":"<Not Used>"},"Actual/ Estimated","Average Gas Consumption",null,{"$f":"'Utility Info'!$D$7","v":"<Not Used>"},"Actual/ Estimated",{"$f":"'Utility Info'!$D$7","v":"<Not Used>"},"Actual/ Estimated",{"$f":"'Utility Info'!$D$7","v":"<Not Used>"},"Actual/ Estimated",{"$f":"'Utility Info'!$D$7","v":"<Not Used>"},"Actual/ Estimated",{"$f":"'Utility Info'!$D$7","v":"<Not Used>"},"Actual/ Estimated",{"$f":"'Utility Info'!$D$7","v":"<Not Used>"},"Actual/ Estimated",{"$f":"'Utility Info'!$D$7","v":"<Not Used>"},"Actual/ Estimated",{"$f":"'Utility Info'!$D$7","v":"<Not Used>"},"Actual/ Estimated",{"$f":"'Utility Info'!$D$7","v":"<Not Used>"},"Actual/ Estimated",{"$f":"'Utility Info'!$D$7","v":"<Not Used>"},"Actual/ Estimated",{"$f":"'Utility Info'!$D$7","v":"<Not Used>"},"Actual/ Estimated",{"$f":"'Utility Info'!$D$7","v":"<Not Used>"},"Actual/ Estimated",{"$f":"'Utility Info'!$D$7","v":"<Not Used>"},"Actual/ Estimated",{"$f":"'Utility Info'!$D$7","v":"<Not Used>"},"Actual/ Estimated",{"$f":"'Utility Info'!$D$7","v":"<Not Used>"},"Actual/ Estimated",{"$f":"'Utility Info'!$D$7","v":"<Not Used>"},"Actual/ Estimated",{"$f":"'Utility Info'!$D$7","v":"<Not Used>"},"Actual/ Estimated",{"$f":"'Utility Info'!$D$7","v":"<Not Used>"},"Actual/ Estimated",{"$f":"'Utility Info'!$D$7","v":"<Not Used>"},"Actual/ Estimated",{"$f":"'Utility Info'!$D$7","v":"<Not Used>"},"Actual/ Estimated","Average Gas Consumption",null,"Average Gas Consumption","Average Gas Consumption","Average Gas Consumption","Average Gas Consumption","Average Gas Consumption","Average Gas Consumption","Average Gas Consumption","Average Gas Consumption","Average Gas Consumption","Average Gas Consumption","Total In-unit Gas Consumption"]
[]
[null,{"$f":"C11+1","v":"1900-01-01"},null,{"$f":"IF(C12>0,C12+1-B12,0)","v":0},null,null,null,null,null,null,null,null,null,null,null,null,null,null,null,null,null,null,null,null,null,null,null,null,null,null,null,null,null,null,null,null,null,null,null,null,null,null,null,null,null,{"$f":"IF(ISBLANK(F12),\"\",AVERAGE(F12:AR12))","v":""},null,null,null,null,null,null,null,null,null,null,null,null,null,null,null,null,null,null,null,null,null,null,null,null,null,null,null,null,null,null,null,null,null,null,null,null,null,null,null,null,null,{"$f":"IF(ISBLANK(AV12),\"\",AVERAGE(AV12:CH12))","v":""},null,null,null,null,null,null,null,null,null,null,null,null,null,null,null,null,null,null,null,null,null,null,null,null,null,null,null,null,null,null,null,null,null,null,null,null,null,null,null,null,null,{"$f":"IF(ISBLANK(CL12),\"\",AVERAGE(CL12:DX12))","v":""},null,null,null,null,null,null,null,null,null,null,null,null,null,null,null,null,null,null,null,null,null,null,null,null,null,null,null,null,null,null,null,null,null,null,null,null,null,null,null,null,null,{"$f":"IF(ISBLANK(EB12),\"\",AVERAGE(EB12:FN12))","v":""},null,null,null,null,null,null,null,null,null,null,null,null,null,null,null,null,null,null,null,null,null,null,null,null,null,null,null,null,null,null,null,null,null,null,null,null,null,null,null,null,null,{"$f":"IF(ISBLANK(FR12),\"\",AVERAGE(FR12:HD12))","v":""},null,null,null,null,null,null,null,null,null,null,null,null,null,null,null,null,null,null,null,null,null,null,null,null,null,null,null,null,null,null,null,null,null,null,null,null,null,null,null,null,null,{"$f":"IF(ISBLANK(HH12),\"\",AVERAGE(HH12:IT12))","v":""},null,null,null,null,null,null,null,null,null,null,null,null,null,null,null,null,null,null,null,null,null,null,null,null,null,null,null,null,null,null,null,null,null,null,null,null,null,null,null,null,null,{"$f":"IF(ISBLANK(IX12),\"\",AVERAGE(IX12:KJ12))","v":""},null,null,null,null,null,null,null,null,null,null,null,null,null,null,null,null,null,null,null,null,null,null,null,null,null,null,null,null,null,null,null,null,null,null,null,null,null,null,null,null,null,{"$f":"IF(ISBLANK(KN12),\"\",AVERAGE(KN12:LZ12))","v":""},null,null,null,null,null,null,null,null,null,null,null,null,null,null,null,null,null,null,null,null,null,null,null,null,null,null,null,null,null,null,null,null,null,null,null,null,null,null,null,null,null,{"$f":"IF(ISBLANK(MD12),\"\",AVERAGE(MD12:NP12))","v":""},null,null,null,null,null,null,null,null,null,null,null,null,null,null,null,null,null,null,null,null,null,null,null,null,null,null,null,null,null,null,null,null,null,null,null,null,null,null,null,null,null,{"$f":"IF(ISBLANK(NT12),\"\",AVERAGE(NT12:PF12))","v":""},null,{"$f":"IF(AT12=\"\",0,AT12)","v":0},{"$f":"IF(CJ12=\"\",0,CJ12)","v":0},{"$f":"IF(DZ12=\"\",0,DZ12)","v":0},{"$f":"IF(FP12=\"\",0,FP12)","v":0},{"$f":"IF(HF12=\"\",0,HF12)","v":0},{"$f":"IF(IV12=\"\",0,IV12)","v":0},{"$f":"IF(KL12=\"\",0,KL12)","v":0},{"$f":"IF(MB12=\"\",0,MB12)","v":0},{"$f":"IF(NR12=\"\",0,NR12)","v":0},{"$f":"IF(PH12=\"\",0,PH12)","v":0},{"$f":"SUMPRODUCT($PJ$8:$PS$8,PJ12:PS12)","v":0}]
[null,{"$f":"C12+1","v":"1900-01-01"},null,0,null,null,null,null,null,null,null,null,null,null,null,null,null,null,null,null,null,null,null,null,null,null,null,null,null,null,null,null,null,null,null,null,null,null,null,null,null,null,null,null,null,"",null,null,null,null,null,null,null,null,null,null,null,null,null,null,null,null,null,null,null,null,null,null,null,null,null,null,null,null,null,null,null,null,null,null,null,null,null,null,null,null,null,"",null,null,null,null,null,null,null,null,null,null,null,null,null,null,null,null,null,null,null,null,null,null,null,null,null,null,null,null,null,null,null,null,null,null,null,null,null,null,null,null,null,"",null,null,null,null,null,null,null,null,null,null,null,null,null,null,null,null,null,null,null,null,null,null,null,null,null,null,null,null,null,null,null,null,null,null,null,null,null,null,null,null,null,"",null,null,null,null,null,null,null,null,null,null,null,null,null,null,null,null,null,null,null,null,null,null,null,null,null,null,null,null,null,null,null,null,null,null,null,null,null,null,null,null,null,"",null,null,null,null,null,null,null,null,null,null,null,null,null,null,null,null,null,null,null,null,null,null,null,null,null,null,null,null,null,null,null,null,null,null,null,null,null,null,null,null,null,"",null,null,null,null,null,null,null,null,null,null,null,null,null,null,null,null,null,null,null,null,null,null,null,null,null,null,null,null,null,null,null,null,null,null,null,null,null,null,null,null,null,"",null,null,null,null,null,null,null,null,null,null,null,null,null,null,null,null,null,null,null,null,null,null,null,null,null,null,null,null,null,null,null,null,null,null,null,null,null,null,null,null,null,"",null,null,null,null,null,null,null,null,null,null,null,null,null,null,null,null,null,null,null,null,null,null,null,null,null,null,null,null,null,null,null,null,null,null,null,null,null,null,null,null,null,"",null,null,null,null,null,null,null,null,null,null,null,null,null,null,null,null,null,null,null,null,null,null,null,null,null,null,null,null,null,null,null,null,null,null,null,null,null,null,null,null,null,"",null,0,0,0,0,0,0,0,0,0,0,{"$f":"SUMPRODUCT($PJ$8:$PS$8,PJ13:PS13)","v":0}]
[null,"1900-01-01",null,0,null,null,null,null,null,null,null,null,null,null,null,null,null,null,null,null,null,null,null,null,null,null,null,null,null,null,null,null,null,null,null,null,null,null,null,null,null,null,null,null,null,"",null,null,null,null,null,null,null,null,null,null,null,null,null,null,null,null,null,null,null,null,null,null,null,null,null,null,null,null,null,null,null,null,null,null,null,null,null,null,null,null,null,"",null,null,null,null,null,null,null,null,null,null,null,null,null,null,null,null,null,null,null,null,null,null,null,null,null,null,null,null,null,null,null,null,null,null,null,null,null,null,null,null,null,"",null,null,null,null,null,null,null,null,null,null,null,null,null,null,null,null,null,null,null,null,null,null,null,null,null,null,null,null,null,null,null,null,null,null,null,null,null,null,null,null,null,"",null,null,null,null,null,null,null,null,null,null,null,null,null,null,null,null,null,null,null,null,null,null,null,null,null,null,null,null,null,null,null,null,null,null,null,null,null,null,null,null,null,"",null,null,null,null,null,null,null,null,null,null,null,null,null,null,null,null,null,null,null,null,null,null,null,null,null,null,null,null,null,null,null,null,null,null,null,null,null,null,null,null,null,"",null,null,null,null,null,null,null,null,null,null,null,null,null,null,null,null,null,null,null,null,null,null,null,null,null,null,null,null,null,null,null,null,null,null,null,null,null,null,null,null,null,"",null,null,null,null,null,null,null,null,null,null,null,null,null,null,null,null,null,null,null,null,null,null,null,null,null,null,null,null,null,null,null,null,null,null,null,null,null,null,null,null,null,"",null,null,null,null,null,null,null,null,null,null,null,null,null,null,null,null,null,null,null,null,null,null,null,null,null,null,null,null,null,null,null,null,null,null,null,null,null,null,null,null,null,"",null,null,null,null,null,null,null,null,null,null,null,null,null,null,null,null,null,null,null,null,null,null,null,null,null,null,null,null,null,null,null,null,null,null,null,null,null,null,null,null,null,"",null,0,0,0,0,0,0,0,0,0,0,0]
[null,"1900-01-01",null,0,null,null,null,null,null,null,null,null,null,null,null,null,null,null,null,null,null,null,null,null,null,null,null,null,null,null,null,null,null,null,null,null,null,null,null,null,null,null,null,null,null,"",null,null,null,null,null,null,null,null,null,null,null,null,null,null,null,null,null,null,null,null,null,null,null,null,null,null,null,null,null,null,null,null,null,null,null,null,null,null,null,null,null,"",null,null,null,null,null,null,null,null,null,null,null,null,null,null,null,null,null,null,null,null,null,null,null,null,null,null,null,null,null,null,null,null,null,null,null,null,null,null,null,null,null,"",null,null,null,null,null,null,null,null,null,null,null,null,null,null,null,null,null,null,null,null,null,null,null,null,null,null,null,null,null,null,null,null,null,null,null,null,null,null,null,null,null,"",null,null,null,null,null,null,null,null,null,null,null,null,null,null,null,null,null,null,null,null,null,null,null,null,null,null,null,null,null,null,null,null,null,null,null,null,null,null,null,null,null,"",null,null,null,null,null,null,null,null,null,null,null,null,null,null,null,null,null,null,null,null,null,null,null,null,null,null,null,null,null,null,null,null,null,null,null,null,null,null,null,null,null,"",null,null,null,null,null,null,null,null,null,null,null,null,null,null,null,null,null,null,null,null,null,null,null,null,null,null,null,null,null,null,null,null,null,null,null,null,null,null,null,null,null,"",null,null,null,null,null,null,null,null,null,null,null,null,null,null,null,null,null,null,null,null,null,null,null,null,null,null,null,null,null,null,null,null,null,null,null,null,null,null,null,null,null,"",null,null,null,null,null,null,null,null,null,null,null,null,null,null,null,null,null,null,null,null,null,null,null,null,null,null,null,null,null,null,null,null,null,null,null,null,null,null,null,null,null,"",null,null,null,null,null,null,null,null,null,null,null,null,null,null,null,null,null,null,null,null,null,null,null,null,null,null,null,null,null,null,null,null,null,null,null,null,null,null,null,null,null,"",null,0,0,0,0,0,0,0,0,0,0,0]
[null,"1900-01-01",null,0,null,null,null,null,null,null,null,null,null,null,null,null,null,null,null,null,null,null,null,null,null,null,null,null,null,null,null,null,null,null,null,null,null,null,null,null,null,null,null,null,null,"",null,null,null,null,null,null,null,null,null,null,null,null,null,null,null,null,null,null,null,null,null,null,null,null,null,null,null,null,null,null,null,null,null,null,null,null,null,null,null,null,null,"",null,null,null,null,null,null,null,null,null,null,null,null,null,null,null,null,null,null,null,null,null,null,null,null,null,null,null,null,null,null,null,null,null,null,null,null,null,null,null,null,null,"",null,null,null,null,null,null,null,null,null,null,null,null,null,null,null,null,null,null,null,null,null,null,null,null,null,null,null,null,null,null,null,null,null,null,null,null,null,null,null,null,null,"",null,null,null,null,null,null,null,null,null,null,null,null,null,null,null,null,null,null,null,null,null,null,null,null,null,null,null,null,null,null,null,null,null,null,null,null,null,null,null,null,null,"",null,null,null,null,null,null,null,null,null,null,null,null,null,null,null,null,null,null,null,null,null,null,null,null,null,null,null,null,null,null,null,null,null,null,null,null,null,null,null,null,null,"",null,null,null,null,null,null,null,null,null,null,null,null,null,null,null,null,null,null,null,null,null,null,null,null,null,null,null,null,null,null,null,null,null,null,null,null,null,null,null,null,null,"",null,null,null,null,null,null,null,null,null,null,null,null,null,null,null,null,null,null,null,null,null,null,null,null,null,null,null,null,null,null,null,null,null,null,null,null,null,null,null,null,null,"",null,null,null,null,null,null,null,null,null,null,null,null,null,null,null,null,null,null,null,null,null,null,null,null,null,null,null,null,null,null,null,null,null,null,null,null,null,null,null,null,null,"",null,null,null,null,null,null,null,null,null,null,null,null,null,null,null,null,null,null,null,null,null,null,null,null,null,null,null,null,null,null,null,null,null,null,null,null,null,null,null,null,null,"",null,0,0,0,0,0,0,0,0,0,0,0]
[null,"1900-01-01",null,0,null,null,null,null,null,null,null,null,null,null,null,null,null,null,null,null,null,null,null,null,null,null,null,null,null,null,null,null,null,null,null,null,null,null,null,null,null,null,null,null,null,"",null,null,null,null,null,null,null,null,null,null,null,null,null,null,null,null,null,null,null,null,null,null,null,null,null,null,null,null,null,null,null,null,null,null,null,null,null,null,null,null,null,"",null,null,null,null,null,null,null,null,null,null,null,null,null,null,null,null,null,null,null,null,null,null,null,null,null,null,null,null,null,null,null,null,null,null,null,null,null,null,null,null,null,"",null,null,null,null,null,null,null,null,null,null,null,null,null,null,null,null,null,null,null,null,null,null,null,null,null,null,null,null,null,null,null,null,null,null,null,null,null,null,null,null,null,"",null,null,null,null,null,null,null,null,null,null,null,null,null,null,null,null,null,null,null,null,null,null,null,null,null,null,null,null,null,null,null,null,null,null,null,null,null,null,null,null,null,"",null,null,null,null,null,null,null,null,null,null,null,null,null,null,null,null,null,null,null,null,null,null,null,null,null,null,null,null,null,null,null,null,null,null,null,null,null,null,null,null,null,"",null,null,null,null,null,null,null,null,null,null,null,null,null,null,null,null,null,null,null,null,null,null,null,null,null,null,null,null,null,null,null,null,null,null,null,null,null,null,null,null,null,"",null,null,null,null,null,null,null,null,null,null,null,null,null,null,null,null,null,null,null,null,null,null,null,null,null,null,null,null,null,null,null,null,null,null,null,null,null,null,null,null,null,"",null,null,null,null,null,null,null,null,null,null,null,null,null,null,null,null,null,null,null,null,null,null,null,null,null,null,null,null,null,null,null,null,null,null,null,null,null,null,null,null,null,"",null,null,null,null,null,null,null,null,null,null,null,null,null,null,null,null,null,null,null,null,null,null,null,null,null,null,null,null,null,null,null,null,null,null,null,null,null,null,null,null,null,"",null,0,0,0,0,0,0,0,0,0,0,0]
[null,"1900-01-01",null,0,null,null,null,null,null,null,null,null,null,null,null,null,null,null,null,null,null,null,null,null,null,null,null,null,null,null,null,null,null,null,null,null,null,null,null,null,null,null,null,null,null,"",null,null,null,null,null,null,null,null,null,null,null,null,null,null,null,null,null,null,null,null,null,null,null,null,null,null,null,null,null,null,null,null,null,null,null,null,null,null,null,null,null,"",null,null,null,null,null,null,null,null,null,null,null,null,null,null,null,null,null,null,null,null,null,null,null,null,null,null,null,null,null,null,null,null,null,null,null,null,null,null,null,null,null,"",null,null,null,null,null,null,null,null,null,null,null,null,null,null,null,null,null,null,null,null,null,null,null,null,null,null,null,null,null,null,null,null,null,null,null,null,null,null,null,null,null,"",null,null,null,null,null,null,null,null,null,null,null,null,null,null,null,null,null,null,null,null,null,null,null,null,null,null,null,null,null,null,null,null,null,null,null,null,null,null,null,null,null,"",null,null,null,null,null,null,null,null,null,null,null,null,null,null,null,null,null,null,null,null,null,null,null,null,null,null,null,null,null,null,null,null,null,null,null,null,null,null,null,null,null,"",null,null,null,null,null,null,null,null,null,null,null,null,null,null,null,null,null,null,null,null,null,null,null,null,null,null,null,null,null,null,null,null,null,null,null,null,null,null,null,null,null,"",null,null,null,null,null,null,null,null,null,null,null,null,null,null,null,null,null,null,null,null,null,null,null,null,null,null,null,null,null,null,null,null,null,null,null,null,null,null,null,null,null,"",null,null,null,null,null,null,null,null,null,null,null,null,null,null,null,null,null,null,null,null,null,null,null,null,null,null,null,null,null,null,null,null,null,null,null,null,null,null,null,null,null,"",null,null,null,null,null,null,null,null,null,null,null,null,null,null,null,null,null,null,null,null,null,null,null,null,null,null,null,null,null,null,null,null,null,null,null,null,null,null,null,null,null,"",null,0,0,0,0,0,0,0,0,0,0,0]
[null,"1900-01-01",null,0,null,null,null,null,null,null,null,null,null,null,null,null,null,null,null,null,null,null,null,null,null,null,null,null,null,null,null,null,null,null,null,null,null,null,null,null,null,null,null,null,null,"",null,null,null,null,null,null,null,null,null,null,null,null,null,null,null,null,null,null,null,null,null,null,null,null,null,null,null,null,null,null,null,null,null,null,null,null,null,null,null,null,null,"",null,null,null,null,null,null,null,null,null,null,null,null,null,null,null,null,null,null,null,null,null,null,null,null,null,null,null,null,null,null,null,null,null,null,null,null,null,null,null,null,null,"",null,null,null,null,null,null,null,null,null,null,null,null,null,null,null,null,null,null,null,null,null,null,null,null,null,null,null,null,null,null,null,null,null,null,null,null,null,null,null,null,null,"",null,null,null,null,null,null,null,null,null,null,null,null,null,null,null,null,null,null,null,null,null,null,null,null,null,null,null,null,null,null,null,null,null,null,null,null,null,null,null,null,null,"",null,null,null,null,null,null,null,null,null,null,null,null,null,null,null,null,null,null,null,null,null,null,null,null,null,null,null,null,null,null,null,null,null,null,null,null,null,null,null,null,null,"",null,null,null,null,null,null,null,null,null,null,null,null,null,null,null,null,null,null,null,null,null,null,null,null,null,null,null,null,null,null,null,null,null,null,null,null,null,null,null,null,null,"",null,null,null,null,null,null,null,null,null,null,null,null,null,null,null,null,null,null,null,null,null,null,null,null,null,null,null,null,null,null,null,null,null,null,null,null,null,null,null,null,null,"",null,null,null,null,null,null,null,null,null,null,null,null,null,null,null,null,null,null,null,null,null,null,null,null,null,null,null,null,null,null,null,null,null,null,null,null,null,null,null,null,null,"",null,null,null,null,null,null,null,null,null,null,null,null,null,null,null,null,null,null,null,null,null,null,null,null,null,null,null,null,null,null,null,null,null,null,null,null,null,null,null,null,null,"",null,0,0,0,0,0,0,0,0,0,0,0]
[null,"1900-01-01",null,0,null,null,null,null,null,null,null,null,null,null,null,null,null,null,null,null,null,null,null,null,null,null,null,null,null,null,null,null,null,null,null,null,null,null,null,null,null,null,null,null,null,"",null,null,null,null,null,null,null,null,null,null,null,null,null,null,null,null,null,null,null,null,null,null,null,null,null,null,null,null,null,null,null,null,null,null,null,null,null,null,null,null,null,"",null,null,null,null,null,null,null,null,null,null,null,null,null,null,null,null,null,null,null,null,null,null,null,null,null,null,null,null,null,null,null,null,null,null,null,null,null,null,null,null,null,"",null,null,null,null,null,null,null,null,null,null,null,null,null,null,null,null,null,null,null,null,null,null,null,null,null,null,null,null,null,null,null,null,null,null,null,null,null,null,null,null,null,"",null,null,null,null,null,null,null,null,null,null,null,null,null,null,null,null,null,null,null,null,null,null,null,null,null,null,null,null,null,null,null,null,null,null,null,null,null,null,null,null,null,"",null,null,null,null,null,null,null,null,null,null,null,null,null,null,null,null,null,null,null,null,null,null,null,null,null,null,null,null,null,null,null,null,null,null,null,null,null,null,null,null,null,"",null,null,null,null,null,null,null,null,null,null,null,null,null,null,null,null,null,null,null,null,null,null,null,null,null,null,null,null,null,null,null,null,null,null,null,null,null,null,null,null,null,"",null,null,null,null,null,null,null,null,null,null,null,null,null,null,null,null,null,null,null,null,null,null,null,null,null,null,null,null,null,null,null,null,null,null,null,null,null,null,null,null,null,"",null,null,null,null,null,null,null,null,null,null,null,null,null,null,null,null,null,null,null,null,null,null,null,null,null,null,null,null,null,null,null,null,null,null,null,null,null,null,null,null,null,"",null,null,null,null,null,null,null,null,null,null,null,null,null,null,null,null,null,null,null,null,null,null,null,null,null,null,null,null,null,null,null,null,null,null,null,null,null,null,null,null,null,"",null,0,0,0,0,0,0,0,0,0,0,0]
[null,"1900-01-01",null,0,null,null,null,null,null,null,null,null,null,null,null,null,null,null,null,null,null,null,null,null,null,null,null,null,null,null,null,null,null,null,null,null,null,null,null,null,null,null,null,null,null,"",null,null,null,null,null,null,null,null,null,null,null,null,null,null,null,null,null,null,null,null,null,null,null,null,null,null,null,null,null,null,null,null,null,null,null,null,null,null,null,null,null,"",null,null,null,null,null,null,null,null,null,null,null,null,null,null,null,null,null,null,null,null,null,null,null,null,null,null,null,null,null,null,null,null,null,null,null,null,null,null,null,null,null,"",null,null,null,null,null,null,null,null,null,null,null,null,null,null,null,null,null,null,null,null,null,null,null,null,null,null,null,null,null,null,null,null,null,null,null,null,null,null,null,null,null,"",null,null,null,null,null,null,null,null,null,null,null,null,null,null,null,null,null,null,null,null,null,null,null,null,null,null,null,null,null,null,null,null,null,null,null,null,null,null,null,null,null,"",null,null,null,null,null,null,null,null,null,null,null,null,null,null,null,null,null,null,null,null,null,null,null,null,null,null,null,null,null,null,null,null,null,null,null,null,null,null,null,null,null,"",null,null,null,null,null,null,null,null,null,null,null,null,null,null,null,null,null,null,null,null,null,null,null,null,null,null,null,null,null,null,null,null,null,null,null,null,null,null,null,null,null,"",null,null,null,null,null,null,null,null,null,null,null,null,null,null,null,null,null,null,null,null,null,null,null,null,null,null,null,null,null,null,null,null,null,null,null,null,null,null,null,null,null,"",null,null,null,null,null,null,null,null,null,null,null,null,null,null,null,null,null,null,null,null,null,null,null,null,null,null,null,null,null,null,null,null,null,null,null,null,null,null,null,null,null,"",null,null,null,null,null,null,null,null,null,null,null,null,null,null,null,null,null,null,null,null,null,null,null,null,null,null,null,null,null,null,null,null,null,null,null,null,null,null,null,null,null,"",null,0,0,0,0,0,0,0,0,0,0,0]
[null,"1900-01-01",null,0,null,null,null,null,null,null,null,null,null,null,null,null,null,null,null,null,null,null,null,null,null,null,null,null,null,null,null,null,null,null,null,null,null,null,null,null,null,null,null,null,null,"",null,null,null,null,null,null,null,null,null,null,null,null,null,null,null,null,null,null,null,null,null,null,null,null,null,null,null,null,null,null,null,null,null,null,null,null,null,null,null,null,null,"",null,null,null,null,null,null,null,null,null,null,null,null,null,null,null,null,null,null,null,null,null,null,null,null,null,null,null,null,null,null,null,null,null,null,null,null,null,null,null,null,null,"",null,null,null,null,null,null,null,null,null,null,null,null,null,null,null,null,null,null,null,null,null,null,null,null,null,null,null,null,null,null,null,null,null,null,null,null,null,null,null,null,null,"",null,null,null,null,null,null,null,null,null,null,null,null,null,null,null,null,null,null,null,null,null,null,null,null,null,null,null,null,null,null,null,null,null,null,null,null,null,null,null,null,null,"",null,null,null,null,null,null,null,null,null,null,null,null,null,null,null,null,null,null,null,null,null,null,null,null,null,null,null,null,null,null,null,null,null,null,null,null,null,null,null,null,null,"",null,null,null,null,null,null,null,null,null,null,null,null,null,null,null,null,null,null,null,null,null,null,null,null,null,null,null,null,null,null,null,null,null,null,null,null,null,null,null,null,null,"",null,null,null,null,null,null,null,null,null,null,null,null,null,null,null,null,null,null,null,null,null,null,null,null,null,null,null,null,null,null,null,null,null,null,null,null,null,null,null,null,null,"",null,null,null,null,null,null,null,null,null,null,null,null,null,null,null,null,null,null,null,null,null,null,null,null,null,null,null,null,null,null,null,null,null,null,null,null,null,null,null,null,null,"",null,null,null,null,null,null,null,null,null,null,null,null,null,null,null,null,null,null,null,null,null,null,null,null,null,null,null,null,null,null,null,null,null,null,null,null,null,null,null,null,null,"",null,0,0,0,0,0,0,0,0,0,0,0]
[null,"1900-01-01",null,0,null,null,null,null,null,null,null,null,null,null,null,null,null,null,null,null,null,null,null,null,null,null,null,null,null,null,null,null,null,null,null,null,null,null,null,null,null,null,null,null,null,"",null,null,null,null,null,null,null,null,null,null,null,null,null,null,null,null,null,null,null,null,null,null,null,null,null,null,null,null,null,null,null,null,null,null,null,null,null,null,null,null,null,"",null,null,null,null,null,null,null,null,null,null,null,null,null,null,null,null,null,null,null,null,null,null,null,null,null,null,null,null,null,null,null,null,null,null,null,null,null,null,null,null,null,"",null,null,null,null,null,null,null,null,null,null,null,null,null,null,null,null,null,null,null,null,null,null,null,null,null,null,null,null,null,null,null,null,null,null,null,null,null,null,null,null,null,"",null,null,null,null,null,null,null,null,null,null,null,null,null,null,null,null,null,null,null,null,null,null,null,null,null,null,null,null,null,null,null,null,null,null,null,null,null,null,null,null,null,"",null,null,null,null,null,null,null,null,null,null,null,null,null,null,null,null,null,null,null,null,null,null,null,null,null,null,null,null,null,null,null,null,null,null,null,null,null,null,null,null,null,"",null,null,null,null,null,null,null,null,null,null,null,null,null,null,null,null,null,null,null,null,null,null,null,null,null,null,null,null,null,null,null,null,null,null,null,null,null,null,null,null,null,"",null,null,null,null,null,null,null,null,null,null,null,null,null,null,null,null,null,null,null,null,null,null,null,null,null,null,null,null,null,null,null,null,null,null,null,null,null,null,null,null,null,"",null,null,null,null,null,null,null,null,null,null,null,null,null,null,null,null,null,null,null,null,null,null,null,null,null,null,null,null,null,null,null,null,null,null,null,null,null,null,null,null,null,"",null,null,null,null,null,null,null,null,null,null,null,null,null,null,null,null,null,null,null,null,null,null,null,null,null,null,null,null,null,null,null,null,null,null,null,null,null,null,null,null,null,"",null,0,0,0,0,0,0,0,0,0,0,0]
[null,"1900-01-01",null,0,null,null,null,null,null,null,null,null,null,null,null,null,null,null,null,null,null,null,null,null,null,null,null,null,null,null,null,null,null,null,null,null,null,null,null,null,null,null,null,null,null,"",null,null,null,null,null,null,null,null,null,null,null,null,null,null,null,null,null,null,null,null,null,null,null,null,null,null,null,null,null,null,null,null,null,null,null,null,null,null,null,null,null,"",null,null,null,null,null,null,null,null,null,null,null,null,null,null,null,null,null,null,null,null,null,null,null,null,null,null,null,null,null,null,null,null,null,null,null,null,null,null,null,null,null,"",null,null,null,null,null,null,null,null,null,null,null,null,null,null,null,null,null,null,null,null,null,null,null,null,null,null,null,null,null,null,null,null,null,null,null,null,null,null,null,null,null,"",null,null,null,null,null,null,null,null,null,null,null,null,null,null,null,null,null,null,null,null,null,null,null,null,null,null,null,null,null,null,null,null,null,null,null,null,null,null,null,null,null,"",null,null,null,null,null,null,null,null,null,null,null,null,null,null,null,null,null,null,null,null,null,null,null,null,null,null,null,null,null,null,null,null,null,null,null,null,null,null,null,null,null,"",null,null,null,null,null,null,null,null,null,null,null,null,null,null,null,null,null,null,null,null,null,null,null,null,null,null,null,null,null,null,null,null,null,null,null,null,null,null,null,null,null,"",null,null,null,null,null,null,null,null,null,null,null,null,null,null,null,null,null,null,null,null,null,null,null,null,null,null,null,null,null,null,null,null,null,null,null,null,null,null,null,null,null,"",null,null,null,null,null,null,null,null,null,null,null,null,null,null,null,null,null,null,null,null,null,null,null,null,null,null,null,null,null,null,null,null,null,null,null,null,null,null,null,null,null,"",null,null,null,null,null,null,null,null,null,null,null,null,null,null,null,null,null,null,null,null,null,null,null,null,null,null,null,null,null,null,null,null,null,null,null,null,null,null,null,null,null,"",null,0,0,0,0,0,0,0,0,0,0,0]
[null,"1900-01-01",null,0,null,null,null,null,null,null,null,null,null,null,null,null,null,null,null,null,null,null,null,null,null,null,null,null,null,null,null,null,null,null,null,null,null,null,null,null,null,null,null,null,null,"",null,null,null,null,null,null,null,null,null,null,null,null,null,null,null,null,null,null,null,null,null,null,null,null,null,null,null,null,null,null,null,null,null,null,null,null,null,null,null,null,null,"",null,null,null,null,null,null,null,null,null,null,null,null,null,null,null,null,null,null,null,null,null,null,null,null,null,null,null,null,null,null,null,null,null,null,null,null,null,null,null,null,null,"",null,null,null,null,null,null,null,null,null,null,null,null,null,null,null,null,null,null,null,null,null,null,null,null,null,null,null,null,null,null,null,null,null,null,null,null,null,null,null,null,null,"",null,null,null,null,null,null,null,null,null,null,null,null,null,null,null,null,null,null,null,null,null,null,null,null,null,null,null,null,null,null,null,null,null,null,null,null,null,null,null,null,null,"",null,null,null,null,null,null,null,null,null,null,null,null,null,null,null,null,null,null,null,null,null,null,null,null,null,null,null,null,null,null,null,null,null,null,null,null,null,null,null,null,null,"",null,null,null,null,null,null,null,null,null,null,null,null,null,null,null,null,null,null,null,null,null,null,null,null,null,null,null,null,null,null,null,null,null,null,null,null,null,null,null,null,null,"",null,null,null,null,null,null,null,null,null,null,null,null,null,null,null,null,null,null,null,null,null,null,null,null,null,null,null,null,null,null,null,null,null,null,null,null,null,null,null,null,null,"",null,null,null,null,null,null,null,null,null,null,null,null,null,null,null,null,null,null,null,null,null,null,null,null,null,null,null,null,null,null,null,null,null,null,null,null,null,null,null,null,null,"",null,null,null,null,null,null,null,null,null,null,null,null,null,null,null,null,null,null,null,null,null,null,null,null,null,null,null,null,null,null,null,null,null,null,null,null,null,null,null,null,null,"",null,0,0,0,0,0,0,0,0,0,0,0]
[null,"1900-01-01",null,0,null,null,null,null,null,null,null,null,null,null,null,null,null,null,null,null,null,null,null,null,null,null,null,null,null,null,null,null,null,null,null,null,null,null,null,null,null,null,null,null,null,"",null,null,null,null,null,null,null,null,null,null,null,null,null,null,null,null,null,null,null,null,null,null,null,null,null,null,null,null,null,null,null,null,null,null,null,null,null,null,null,null,null,"",null,null,null,null,null,null,null,null,null,null,null,null,null,null,null,null,null,null,null,null,null,null,null,null,null,null,null,null,null,null,null,null,null,null,null,null,null,null,null,null,null,"",null,null,null,null,null,null,null,null,null,null,null,null,null,null,null,null,null,null,null,null,null,null,null,null,null,null,null,null,null,null,null,null,null,null,null,null,null,null,null,null,null,"",null,null,null,null,null,null,null,null,null,null,null,null,null,null,null,null,null,null,null,null,null,null,null,null,null,null,null,null,null,null,null,null,null,null,null,null,null,null,null,null,null,"",null,null,null,null,null,null,null,null,null,null,null,null,null,null,null,null,null,null,null,null,null,null,null,null,null,null,null,null,null,null,null,null,null,null,null,null,null,null,null,null,null,"",null,null,null,null,null,null,null,null,null,null,null,null,null,null,null,null,null,null,null,null,null,null,null,null,null,null,null,null,null,null,null,null,null,null,null,null,null,null,null,null,null,"",null,null,null,null,null,null,null,null,null,null,null,null,null,null,null,null,null,null,null,null,null,null,null,null,null,null,null,null,null,null,null,null,null,null,null,null,null,null,null,null,null,"",null,null,null,null,null,null,null,null,null,null,null,null,null,null,null,null,null,null,null,null,null,null,null,null,null,null,null,null,null,null,null,null,null,null,null,null,null,null,null,null,null,"",null,null,null,null,null,null,null,null,null,null,null,null,null,null,null,null,null,null,null,null,null,null,null,null,null,null,null,null,null,null,null,null,null,null,null,null,null,null,null,null,null,"",null,0,0,0,0,0,0,0,0,0,0,0]
[null,null,{"$f":"IF(ABS(D27-365)>4,\"Must have 365 ± 4 days.\",\"\")","v":"Must have 365 ± 4 days."},{"$f":"SUM(D12:D26)","v":0},null,{"$f":"SUM(F12:F26)","v":0},null,{"$f":"SUM(H12:H26)","v":0},null,{"$f":"SUM(J12:J26)","v":0},null,{"$f":"SUM(L12:L26)","v":0},null,{"$f":"SUM(N12:N26)","v":0},null,{"$f":"SUM(P12:P26)","v":0},null,{"$f":"SUM(R12:R26)","v":0},null,{"$f":"SUM(T12:T26)","v":0},null,{"$f":"SUM(V12:V26)","v":0},null,{"$f":"SUM(X12:X26)","v":0},null,{"$f":"SUM(Z12:Z26)","v":0},null,{"$f":"SUM(AB12:AB26)","v":0},null,{"$f":"SUM(AD12:AD26)","v":0},null,{"$f":"SUM(AF12:AF26)","v":0},null,{"$f":"SUM(AH12:AH26)","v":0},null,{"$f":"SUM(AJ12:AJ26)","v":0},null,{"$f":"SUM(AL12:AL26)","v":0},null,{"$f":"SUM(AN12:AN26)","v":0},null,{"$f":"SUM(AP12:AP26)","v":0},null,{"$f":"SUM(AR12:AR26)","v":0},null,{"$f":"SUM(AT12:AT26)","v":0},null,{"$f":"SUM(AV12:AV26)","v":0},null,{"$f":"SUM(AX12:AX26)","v":0},null,{"$f":"SUM(AZ12:AZ26)","v":0},null,{"$f":"SUM(BB12:BB26)","v":0},null,{"$f":"SUM(BD12:BD26)","v":0},null,{"$f":"SUM(BF12:BF26)","v":0},null,{"$f":"SUM(BH12:BH26)","v":0},null,{"$f":"SUM(BJ12:BJ26)","v":0},null,{"$f":"SUM(BL12:BL26)","v":0},null,{"$f":"SUM(BN12:BN26)","v":0},null,{"$f":"SUM(BP12:BP26)","v":0},null,{"$f":"SUM(BR12:BR26)","v":0},null,{"$f":"SUM(BT12:BT26)","v":0},null,{"$f":"SUM(BV12:BV26)","v":0},null,{"$f":"SUM(BX12:BX26)","v":0},null,{"$f":"SUM(BZ12:BZ26)","v":0},null,{"$f":"SUM(CB12:CB26)","v":0},null,{"$f":"SUM(CD12:CD26)","v":0},null,{"$f":"SUM(CF12:CF26)","v":0},null,{"$f":"SUM(CH12:CH26)","v":0},null,{"$f":"SUM(CJ12:CJ26)","v":0},null,{"$f":"SUM(CL12:CL26)","v":0},null,{"$f":"SUM(CN12:CN26)","v":0},null,{"$f":"SUM(CP12:CP26)","v":0},null,{"$f":"SUM(CR12:CR26)","v":0},null,{"$f":"SUM(CT12:CT26)","v":0},null,{"$f":"SUM(CV12:CV26)","v":0},null,{"$f":"SUM(CX12:CX26)","v":0},null,{"$f":"SUM(CZ12:CZ26)","v":0},null,{"$f":"SUM(DB12:DB26)","v":0},null,{"$f":"SUM(DD12:DD26)","v":0},null,{"$f":"SUM(DF12:DF26)","v":0},null,{"$f":"SUM(DH12:DH26)","v":0},null,{"$f":"SUM(DJ12:DJ26)","v":0},null,{"$f":"SUM(DL12:DL26)","v":0},null,{"$f":"SUM(DN12:DN26)","v":0},null,{"$f":"SUM(DP12:DP26)","v":0},null,{"$f":"SUM(DR12:DR26)","v":0},null,{"$f":"SUM(DT12:DT26)","v":0},null,{"$f":"SUM(DV12:DV26)","v":0},null,{"$f":"SUM(DX12:DX26)","v":0},null,{"$f":"SUM(DZ12:DZ26)","v":0},null,{"$f":"SUM(EB12:EB26)","v":0},null,{"$f":"SUM(ED12:ED26)","v":0},null,{"$f":"SUM(EF12:EF26)","v":0},null,{"$f":"SUM(EH12:EH26)","v":0},null,{"$f":"SUM(EJ12:EJ26)","v":0},null,{"$f":"SUM(EL12:EL26)","v":0},null,{"$f":"SUM(EN12:EN26)","v":0},null,{"$f":"SUM(EP12:EP26)","v":0},null,{"$f":"SUM(ER12:ER26)","v":0},null,{"$f":"SUM(ET12:ET26)","v":0},null,{"$f":"SUM(EV12:EV26)","v":0},null,{"$f":"SUM(EX12:EX26)","v":0},null,{"$f":"SUM(EZ12:EZ26)","v":0},null,{"$f":"SUM(FB12:FB26)","v":0},null,{"$f":"SUM(FD12:FD26)","v":0},null,{"$f":"SUM(FF12:FF26)","v":0},null,{"$f":"SUM(FH12:FH26)","v":0},null,{"$f":"SUM(FJ12:FJ26)","v":0},null,{"$f":"SUM(FL12:FL26)","v":0},null,{"$f":"SUM(FN12:FN26)","v":0},null,{"$f":"SUM(FP12:FP26)","v":0},null,{"$f":"SUM(FR12:FR26)","v":0},null,{"$f":"SUM(FT12:FT26)","v":0},null,{"$f":"SUM(FV12:FV26)","v":0},null,{"$f":"SUM(FX12:FX26)","v":0},null,{"$f":"SUM(FZ12:FZ26)","v":0},null,{"$f":"SUM(GB12:GB26)","v":0},null,{"$f":"SUM(GD12:GD26)","v":0},null,{"$f":"SUM(GF12:GF26)","v":0},null,{"$f":"SUM(GH12:GH26)","v":0},null,{"$f":"SUM(GJ12:GJ26)","v":0},null,{"$f":"SUM(GL12:GL26)","v":0},null,{"$f":"SUM(GN12:GN26)","v":0},null,{"$f":"SUM(GP12:GP26)","v":0},null,{"$f":"SUM(GR12:GR26)","v":0},null,{"$f":"SUM(GT12:GT26)","v":0},null,{"$f":"SUM(GV12:GV26)","v":0},null,{"$f":"SUM(GX12:GX26)","v":0},null,{"$f":"SUM(GZ12:GZ26)","v":0},null,{"$f":"SUM(HB12:HB26)","v":0},null,{"$f":"SUM(HD12:HD26)","v":0},null,{"$f":"SUM(HF12:HF26)","v":0},null,{"$f":"SUM(HH12:HH26)","v":0},null,{"$f":"SUM(HJ12:HJ26)","v":0},null,{"$f":"SUM(HL12:HL26)","v":0},null,{"$f":"SUM(HN12:HN26)","v":0},null,{"$f":"SUM(HP12:HP26)","v":0},null,{"$f":"SUM(HR12:HR26)","v":0},null,{"$f":"SUM(HT12:HT26)","v":0},null,{"$f":"SUM(HV12:HV26)","v":0},null,{"$f":"SUM(HX12:HX26)","v":0},null,{"$f":"SUM(HZ12:HZ26)","v":0},null,{"$f":"SUM(IB12:IB26)","v":0},null,{"$f":"SUM(ID12:ID26)","v":0},null,{"$f":"SUM(IF12:IF26)","v":0},null,{"$f":"SUM(IH12:IH26)","v":0},null,{"$f":"SUM(IJ12:IJ26)","v":0},null,{"$f":"SUM(IL12:IL26)","v":0},null,{"$f":"SUM(IN12:IN26)","v":0},null,{"$f":"SUM(IP12:IP26)","v":0},null,{"$f":"SUM(IR12:IR26)","v":0},null,{"$f":"SUM(IT12:IT26)","v":0},null,{"$f":"SUM(IV12:IV26)","v":0},null,{"$f":"SUM(IX12:IX26)","v":0},null,{"$f":"SUM(IZ12:IZ26)","v":0},null,{"$f":"SUM(JB12:JB26)","v":0},null,{"$f":"SUM(JD12:JD26)","v":0},null,{"$f":"SUM(JF12:JF26)","v":0},null,{"$f":"SUM(JH12:JH26)","v":0},null,{"$f":"SUM(JJ12:JJ26)","v":0},null,{"$f":"SUM(JL12:JL26)","v":0},null,{"$f":"SUM(JN12:JN26)","v":0},null,{"$f":"SUM(JP12:JP26)","v":0},null,{"$f":"SUM(JR12:JR26)","v":0},null,{"$f":"SUM(JT12:JT26)","v":0},null,{"$f":"SUM(JV12:JV26)","v":0},null,{"$f":"SUM(JX12:JX26)","v":0},null,{"$f":"SUM(JZ12:JZ26)","v":0},null,{"$f":"SUM(KB12:KB26)","v":0},null,{"$f":"SUM(KD12:KD26)","v":0},null,{"$f":"SUM(KF12:KF26)","v":0},null,{"$f":"SUM(KH12:KH26)","v":0},null,{"$f":"SUM(KJ12:KJ26)","v":0},null,{"$f":"SUM(KL12:KL26)","v":0},null,{"$f":"SUM(KN12:KN26)","v":0},null,{"$f":"SUM(KP12:KP26)","v":0},null,{"$f":"SUM(KR12:KR26)","v":0},null,{"$f":"SUM(KT12:KT26)","v":0},null,{"$f":"SUM(KV12:KV26)","v":0},null,{"$f":"SUM(KX12:KX26)","v":0},null,{"$f":"SUM(KZ12:KZ26)","v":0},null,{"$f":"SUM(LB12:LB26)","v":0},null,{"$f":"SUM(LD12:LD26)","v":0},null,{"$f":"SUM(LF12:LF26)","v":0},null,{"$f":"SUM(LH12:LH26)","v":0},null,{"$f":"SUM(LJ12:LJ26)","v":0},null,{"$f":"SUM(LL12:LL26)","v":0},null,{"$f":"SUM(LN12:LN26)","v":0},null,{"$f":"SUM(LP12:LP26)","v":0},null,{"$f":"SUM(LR12:LR26)","v":0},null,{"$f":"SUM(LT12:LT26)","v":0},null,{"$f":"SUM(LV12:LV26)","v":0},null,{"$f":"SUM(LX12:LX26)","v":0},null,{"$f":"SUM(LZ12:LZ26)","v":0},null,{"$f":"SUM(MB12:MB26)","v":0},null,{"$f":"SUM(MD12:MD26)","v":0},null,{"$f":"SUM(MF12:MF26)","v":0},null,{"$f":"SUM(MH12:MH26)","v":0},null,{"$f":"SUM(MJ12:MJ26)","v":0},null,{"$f":"SUM(ML12:ML26)","v":0},null,{"$f":"SUM(MN12:MN26)","v":0},null,{"$f":"SUM(MP12:MP26)","v":0},null,{"$f":"SUM(MR12:MR26)","v":0},null,{"$f":"SUM(MT12:MT26)","v":0},null,{"$f":"SUM(MV12:MV26)","v":0},null,{"$f":"SUM(MX12:MX26)","v":0},null,{"$f":"SUM(MZ12:MZ26)","v":0},null,{"$f":"SUM(NB12:NB26)","v":0},null,{"$f":"SUM(ND12:ND26)","v":0},null,{"$f":"SUM(NF12:NF26)","v":0},null,{"$f":"SUM(NH12:NH26)","v":0},null,{"$f":"SUM(NJ12:NJ26)","v":0},null,{"$f":"SUM(NL12:NL26)","v":0},null,{"$f":"SUM(NN12:NN26)","v":0},null,{"$f":"SUM(NP12:NP26)","v":0},null,{"$f":"SUM(NR12:NR26)","v":0},null,{"$f":"SUM(NT12:NT26)","v":0},null,{"$f":"SUM(NV12:NV26)","v":0},null,{"$f":"SUM(NX12:NX26)","v":0},null,{"$f":"SUM(NZ12:NZ26)","v":0},null,{"$f":"SUM(OB12:OB26)","v":0},null,{"$f":"SUM(OD12:OD26)","v":0},null,{"$f":"SUM(OF12:OF26)","v":0},null,{"$f":"SUM(OH12:OH26)","v":0},null,{"$f":"SUM(OJ12:OJ26)","v":0},null,{"$f":"SUM(OL12:OL26)","v":0},null,{"$f":"SUM(ON12:ON26)","v":0},null,{"$f":"SUM(OP12:OP26)","v":0},null,{"$f":"SUM(OR12:OR26)","v":0},null,{"$f":"SUM(OT12:OT26)","v":0},null,{"$f":"SUM(OV12:OV26)","v":0},null,{"$f":"SUM(OX12:OX26)","v":0},null,{"$f":"SUM(OZ12:OZ26)","v":0},null,{"$f":"SUM(PB12:PB26)","v":0},null,{"$f":"SUM(PD12:PD26)","v":0},null,{"$f":"SUM(PF12:PF26)","v":0},null,{"$f":"SUM(PH12:PH26)","v":0},null,{"$f":"SUM(PJ12:PJ26)","v":0},0,0,0,0,0,0,0,0,0,0]
[]
[null,null,null,null,null,"Total Annual Gas Cost",null,"Total Annual Gas Cost",null,"Total Annual Gas Cost",null,"Total Annual Gas Cost",null,"Total Annual Gas Cost",null,"Total Annual Gas Cost",null,"Total Annual Gas Cost",null,"Total Annual Gas Cost",null,"Total Annual Gas Cost",null,"Total Annual Gas Cost",null,"Total Annual Gas Cost",null,"Total Annual Gas Cost",null,"Total Annual Gas Cost",null,"Total Annual Gas Cost",null,"Total Annual Gas Cost",null,"Total Annual Gas Cost",null,"Total Annual Gas Cost",null,"Total Annual Gas Cost",null,"Total Annual Gas Cost",null,"Total Annual Gas Cost",null,"Average Annual Gas  Cost",null,"Total Annual Gas Cost",null,"Total Annual Gas Cost",null,"Total Annual Gas Cost",null,"Total Annual Gas Cost",null,"Total Annual Gas Cost",null,"Total Annual Gas Cost",null,"Total Annual Gas Cost",null,"Total Annual Gas Cost",null,"Total Annual Gas Cost",null,"Total Annual Gas Cost",null,"Total Annual Gas Cost",null,"Total Annual Gas Cost",null,"Total Annual Gas Cost",null,"Total Annual Gas Cost",null,"Total Annual Gas Cost",null,"Total Annual Gas Cost",null,"Total Annual Gas Cost",null,"Total Annual Gas Cost",null,"Total Annual Gas Cost",null,"Total Annual Gas Cost",null,"Average Annual Gas  Cost",null,"Total Annual Gas Cost",null,"Total Annual Gas Cost",null,"Total Annual Gas Cost",null,"Total Annual Gas Cost",null,"Total Annual Gas Cost",null,"Total Annual Gas Cost",null,"Total Annual Gas Cost",null,"Total Annual Gas Cost",null,"Total Annual Gas Cost",null,"Total Annual Gas Cost",null,"Total Annual Gas Cost",null,"Total Annual Gas Cost",null,"Total Annual Gas Cost",null,"Total Annual Gas Cost",null,"Total Annual Gas Cost",null,"Total Annual Gas Cost",null,"Total Annual Gas Cost",null,"Total Annual Gas Cost",null,"Total Annual Gas Cost",null,"Total Annual Gas Cost",null,"Average Annual Gas  Cost",null,"Total Annual Gas Cost",null,"Total Annual Gas Cost",null,"Total Annual Gas Cost",null,"Total Annual Gas Cost",null,"Total Annual Gas Cost",null,"Total Annual Gas Cost",null,"Total Annual Gas Cost",null,"Total Annual Gas Cost",null,"Total Annual Gas Cost",null,"Total Annual Gas Cost",null,"Total Annual Gas Cost",null,"Total Annual Gas Cost",null,"Total Annual Gas Cost",null,"Total Annual Gas Cost",null,"Total Annual Gas Cost",null,"Total Annual Gas Cost",null,"Total Annual Gas Cost",null,"Total Annual Gas Cost",null,"Total Annual Gas Cost",null,"Total Annual Gas Cost",null,"Average Annual Gas  Cost",null,"Total Annual Gas Cost",null,"Total Annual Gas Cost",null,"Total Annual Gas Cost",null,"Total Annual Gas Cost",null,"Total Annual Gas Cost",null,"Total Annual Gas Cost",null,"Total Annual Gas Cost",null,"Total Annual Gas Cost",null,"Total Annual Gas Cost",null,"Total Annual Gas Cost",null,"Total Annual Gas Cost",null,"Total Annual Gas Cost",null,"Total Annual Gas Cost",null,"Total Annual Gas Cost",null,"Total Annual Gas Cost",null,"Total Annual Gas Cost",null,"Total Annual Gas Cost",null,"Total Annual Gas Cost",null,"Total Annual Gas Cost",null,"Total Annual Gas Cost",null,"Average Annual Gas  Cost",null,"Total Annual Gas Cost",null,"Total Annual Gas Cost",null,"Total Annual Gas Cost",null,"Total Annual Gas Cost",null,"Total Annual Gas Cost",null,"Total Annual Gas Cost",null,"Total Annual Gas Cost",null,"Total Annual Gas Cost",null,"Total Annual Gas Cost",null,"Total Annual Gas Cost",null,"Total Annual Gas Cost",null,"Total Annual Gas Cost",null,"Total Annual Gas Cost",null,"Total Annual Gas Cost",null,"Total Annual Gas Cost",null,"Total Annual Gas Cost",null,"Total Annual Gas Cost",null,"Total Annual Gas Cost",null,"Total Annual Gas Cost",null,"Total Annual Gas Cost",null,"Average Annual Gas  Cost",null,"Total Annual Gas Cost",null,"Total Annual Gas Cost",null,"Total Annual Gas Cost",null,"Total Annual Gas Cost",null,"Total Annual Gas Cost",null,"Total Annual Gas Cost",null,"Total Annual Gas Cost",null,"Total Annual Gas Cost",null,"Total Annual Gas Cost",null,"Total Annual Gas Cost",null,"Total Annual Gas Cost",null,"Total Annual Gas Cost",null,"Total Annual Gas Cost",null,"Total Annual Gas Cost",null,"Total Annual Gas Cost",null,"Total Annual Gas Cost",null,"Total Annual Gas Cost",null,"Total Annual Gas Cost",null,"Total Annual Gas Cost",null,"Total Annual Gas Cost",null,"Average Annual Gas  Cost",null,"Total Annual Gas Cost",null,"Total Annual Gas Cost",null,"Total Annual Gas Cost",null,"Total Annual Gas Cost",null,"Total Annual Gas Cost",null,"Total Annual Gas Cost",null,"Total Annual Gas Cost",null,"Total Annual Gas Cost",null,"Total Annual Gas Cost",null,"Total Annual Gas Cost",null,"Total Annual Gas Cost",null,"Total Annual Gas Cost",null,"Total Annual Gas Cost",null,"Total Annual Gas Cost",null,"Total Annual Gas Cost",null,"Total Annual Gas Cost",null,"Total Annual Gas Cost",null,"Total Annual Gas Cost",null,"Total Annual Gas Cost",null,"Total Annual Gas Cost",null,"Average Annual Gas  Cost",null,"Total Annual Gas Cost",null,"Total Annual Gas Cost",null,"Total Annual Gas Cost",null,"Total Annual Gas Cost",null,"Total Annual Gas Cost",null,"Total Annual Gas Cost",null,"Total Annual Gas Cost",null,"Total Annual Gas Cost",null,"Total Annual Gas Cost",null,"Total Annual Gas Cost",null,"Total Annual Gas Cost",null,"Total Annual Gas Cost",null,"Total Annual Gas Cost",null,"Total Annual Gas Cost",null,"Total Annual Gas Cost",null,"Total Annual Gas Cost",null,"Total Annual Gas Cost",null,"Total Annual Gas Cost",null,"Total Annual Gas Cost",null,"Total Annual Gas Cost",null,"Average Annual Gas  Cost",null,"Total Annual Gas Cost",null,"Total Annual Gas Cost",null,"Total Annual Gas Cost",null,"Total Annual Gas Cost",null,"Total Annual Gas Cost",null,"Total Annual Gas Cost",null,"Total Annual Gas Cost",null,"Total Annual Gas Cost",null,"Total Annual Gas Cost",null,"Total Annual Gas Cost",null,"Total Annual Gas Cost",null,"Total Annual Gas Cost",null,"Total Annual Gas Cost",null,"Total Annual Gas Cost",null,"Total Annual Gas Cost",null,"Total Annual Gas Cost",null,"Total Annual Gas Cost",null,"Total Annual Gas Cost",null,"Total Annual Gas Cost",null,"Total Annual Gas Cost",null,"Average Annual Gas  Cost",null,"Average Annual Gas  Cost","Average Annual Gas  Cost","Average Annual Gas  Cost","Average Annual Gas  Cost","Average Annual Gas  Cost","Average Annual Gas  Cost","Average Annual Gas  Cost","Average Annual Gas  Cost","Average Annual Gas  Cost","Average Annual Gas  Cost","Total In-Unit Annual Gas Cost"]
[null,null,null,null,null,null,null,null,null,null,null,null,null,null,null,null,null,null,null,null,null,null,null,null,null,null,null,null,null,null,null,null,null,null,null,null,null,null,null,null,null,null,null,null,null,{"$f":"IF(F30>0,AVERAGE(F30:AR30),0)","v":0},null,null,null,null,null,null,null,null,null,null,null,null,null,null,null,null,null,null,null,null,null,null,null,null,null,null,null,null,null,null,null,null,null,null,null,null,null,null,null,null,null,{"$f":"IF(AV30>0,AVERAGE(AV30:CH30),0)","v":0},null,null,null,null,null,null,null,null,null,null,null,null,null,null,null,null,null,null,null,null,null,null,null,null,null,null,null,null,null,null,null,null,null,null,null,null,null,null,null,null,null,{"$f":"IF(CL30>0,AVERAGE(CL30:DY30),0)","v":0},null,null,null,null,null,null,null,null,null,null,null,null,null,null,null,null,null,null,null,null,null,null,null,null,null,null,null,null,null,null,null,null,null,null,null,null,null,null,null,null,null,{"$f":"IF(EB30>0,AVERAGE(EB30:FN30),0)","v":0},null,null,null,null,null,null,null,null,null,null,null,null,null,null,null,null,null,null,null,null,null,null,null,null,null,null,null,null,null,null,null,null,null,null,null,null,null,null,null,null,null,{"$f":"IF(FR30>0,AVERAGE(FR30:HD30),0)","v":0},null,null,null,null,null,null,null,null,null,null,null,null,null,null,null,null,null,null,null,null,null,null,null,null,null,null,null,null,null,null,null,null,null,null,null,null,null,null,null,null,null,{"$f":"IF(HH30>0,AVERAGE(HH30:IT30),0)","v":0},null,null,null,null,null,null,null,null,null,null,null,null,null,null,null,null,null,null,null,null,null,null,null,null,null,null,null,null,null,null,null,null,null,null,null,null,null,null,null,null,null,{"$f":"IF(IX30>0,AVERAGE(IX30:KJ30),0)","v":0},null,null,null,null,null,null,null,null,null,null,null,null,null,null,null,null,null,null,null,null,null,null,null,null,null,null,null,null,null,null,null,null,null,null,null,null,null,null,null,null,null,{"$f":"IF(KN30>0,AVERAGE(KN30:LZ30),0)","v":0},null,null,null,null,null,null,null,null,null,null,null,null,null,null,null,null,null,null,null,null,null,null,null,null,null,null,null,null,null,null,null,null,null,null,null,null,null,null,null,null,null,{"$f":"IF(MD30>0,AVERAGE(MD30:NP30),0)","v":0},null,null,null,null,null,null,null,null,null,null,null,null,null,null,null,null,null,null,null,null,null,null,null,null,null,null,null,null,null,null,null,null,null,null,null,null,null,null,null,null,null,{"$f":"IF(NT30>0,AVERAGE(NT30:PF30),0)","v":0},null,{"$f":"AT30","v":0},{"$f":"CJ30","v":0},{"$f":"DZ30","v":0},{"$f":"FP30","v":0},{"$f":"HF30","v":0},{"$f":"IV30","v":0},{"$f":"KL30","v":0},{"$f":"MB30","v":0},{"$f":"NR30","v":0},{"$f":"PH30","v":0},{"$f":"SUMPRODUCT($PJ$8:$PS$8,PJ30:PS30)","v":0}]
[]
[null,"Post-Construction In-Unit Billing Dates",null,null,null,{"$f":"F5","v":"Unit Type 1 - "},null,null,null,null,null,null,null,null,null,null,null,null,null,null,null,null,null,null,null,null,null,null,null,null,null,null,null,null,null,null,null,null,null,null,null,null,null,null,null,null,null,{"$f":"AV5","v":"Unit Type 2 - "},null,null,null,null,null,null,null,null,null,null,null,null,null,null,null,null,null,null,null,null,null,null,null,null,null,null,null,null,null,null,null,null,null,null,null,null,null,null,null,null,null,{"$f":"CL5","v":"Unit Type 3 - "},null,null,null,null,null,null,null,null,null,null,null,null,null,null,null,null,null,null,null,null,null,null,null,null,null,null,null,null,null,null,null,null,null,null,null,null,null,null,null,null,null,{"$f":"EB5","v":"Unit Type 4 - "},null,null,null,null,null,null,null,null,null,null,null,null,null,null,null,null,null,null,null,null,null,null,null,null,null,null,null,null,null,null,null,null,null,null,null,null,null,null,null,null,null,{"$f":"FR5","v":"Unit Type 5 - "},null,null,null,null,null,null,null,null,null,null,null,null,null,null,null,null,null,null,null,null,null,null,null,null,null,null,null,null,null,null,null,null,null,null,null,null,null,null,null,null,null,{"$f":"HH5","v":"Unit Type 6 - "},null,null,null,null,null,null,null,null,null,null,null,null,null,null,null,null,null,null,null,null,null,null,null,null,null,null,null,null,null,null,null,null,null,null,null,null,null,null,null,null,null,{"$f":"IX5","v":"Unit Type 7 - "},null,null,null,null,null,null,null,null,null,null,null,null,null,null,null,null,null,null,null,null,null,null,null,null,null,null,null,null,null,null,null,null,null,null,null,null,null,null,null,null,null,{"$f":"KN5","v":"Unit Type 8 - "},null,null,null,null,null,null,null,null,null,null,null,null,null,null,null,null,null,null,null,null,null,null,null,null,null,null,null,null,null,null,null,null,null,null,null,null,null,null,null,null,null,{"$f":"MD5","v":"Unit Type 9 - "},null,null,null,null,null,null,null,null,null,null,null,null,null,null,null,null,null,null,null,null,null,null,null,null,null,null,null,null,null,null,null,null,null,null,null,null,null,null,null,null,null,{"$f":"NT5","v":"Unit Type 10 - "},null,null,null,null,null,null,null,null,null,null,null,null,null,null,null,null,null,null,null,null,null,null,null,null,null,null,null,null,null,null,null,null,null,null,null,null,null,null,null,null,null,"POST-CONSTRUCTION\nSummary of In-Unit Gas Use"]
[null,null,null,null,null,"Unit #:",null,"Unit #:",null,"Unit #:",null,"Unit #:",null,"Unit #:",null,"Unit #:",null,"Unit #:",null,"Unit #:",null,"Unit #:",null,"Unit #:",null,"Unit #:",null,"Unit #:",null,"Unit #:",null,"Unit #:",null,"Unit #:",null,"Unit #:",null,"Unit #:",null,"Unit #:",null,"Unit #:",null,"Unit #:",null,"SUMMARY",null,"Unit #:",null,"Unit #:",null,"Unit #:",null,"Unit #:",null,"Unit #:",null,"Unit #:",null,"Unit #:",null,"Unit #:",null,"Unit #:",null,"Unit #:",null,"Unit #:",null,"Unit #:",null,"Unit #:",null,"Unit #:",null,"Unit #:",null,"Unit #:",null,"Unit #:",null,"Unit #:",null,"Unit #:",null,"Unit #:",null,"SUMMARY",null,"Unit #:",null,"Unit #:",null,"Unit #:",null,"Unit #:",null,"Unit #:",null,"Unit #:",null,"Unit #:",null,"Unit #:",null,"Unit #:",null,"Unit #:",null,"Unit #:",null,"Unit #:",null,"Unit #:",null,"Unit #:",null,"Unit #:",null,"Unit #:",null,"Unit #:",null,"Unit #:",null,"Unit #:",null,"Unit #:",null,"SUMMARY",null,"Unit #:",null,"Unit #:",null,"Unit #:",null,"Unit #:",null,"Unit #:",null,"Unit #:",null,"Unit #:",null,"Unit #:",null,"Unit #:",null,"Unit #:",null,"Unit #:",null,"Unit #:",null,"Unit #:",null,"Unit #:",null,"Unit #:",null,"Unit #:",null,"Unit #:",null,"Unit #:",null,"Unit #:",null,"Unit #:",null,"SUMMARY",null,"Unit #:",null,"Unit #:",null,"Unit #:",null,"Unit #:",null,"Unit #:",null,"Unit #:",null,"Unit #:",null,"Unit #:",null,"Unit #:",null,"Unit #:",null,"Unit #:",null,"Unit #:",null,"Unit #:",null,"Unit #:",null,"Unit #:",null,"Unit #:",null,"Unit #:",null,"Unit #:",null,"Unit #:",null,"Unit #:",null,"SUMMARY",null,"Unit #:",null,"Unit #:",null,"Unit #:",null,"Unit #:",null,"Unit #:",null,"Unit #:",null,"Unit #:",null,"Unit #:",null,"Unit #:",null,"Unit #:",null,"Unit #:",null,"Unit #:",null,"Unit #:",null,"Unit #:",null,"Unit #:",null,"Unit #:",null,"Unit #:",null,"Unit #:",null,"Unit #:",null,"Unit #:",null,"SUMMARY",null,"Unit #:",null,"Unit #:",null,"Unit #:",null,"Unit #:",null,"Unit #:",null,"Unit #:",null,"Unit #:",null,"Unit #:",null,"Unit #:",null,"Unit #:",null,"Unit #:",null,"Unit #:",null,"Unit #:",null,"Unit #:",null,"Unit #:",null,"Unit #:",null,"Unit #:",null,"Unit #:",null,"Unit #:",null,"Unit #:",null,"SUMMARY",null,"Unit #:",null,"Unit #:",null,"Unit #:",null,"Unit #:",null,"Unit #:",null,"Unit #:",null,"Unit #:",null,"Unit #:",null,"Unit #:",null,"Unit #:",null,"Unit #:",null,"Unit #:",null,"Unit #:",null,"Unit #:",null,"Unit #:",null,"Unit #:",null,"Unit #:",null,"Unit #:",null,"Unit #:",null,"Unit #:",null,"SUMMARY",null,"Unit #:",null,"Unit #:",null,"Unit #:",null,"Unit #:",null,"Unit #:",null,"Unit #:",null,"Unit #:",null,"Unit #:",null,"Unit #:",null,"Unit #:",null,"Unit #:",null,"Unit #:",null,"Unit #:",null,"Unit #:",null,"Unit #:",null,"Unit #:",null,"Unit #:",null,"Unit #:",null,"Unit #:",null,"Unit #:",null,"SUMMARY",null,"Unit #:",null,"Unit #:",null,"Unit #:",null,"Unit #:",null,"Unit #:",null,"Unit #:",null,"Unit #:",null,"Unit #:",null,"Unit #:",null,"Unit #:",null,"Unit #:",null,"Unit #:",null,"Unit #:",null,"Unit #:",null,"Unit #:",null,"Unit #:",null,"Unit #:",null,"Unit #:",null,"Unit #:",null,"Unit #:",null,"SUMMARY"]
[]
[null,null,null,null,null,"Account #:",null,"Account #:",null,"Account #:",null,"Account #:",null,"Account #:",null,"Account #:",null,"Account #:",null,"Account #:",null,"Account #:",null,"Account #:",null,"Account #:",null,"Account #:",null,"Account #:",null,"Account #:",null,"Account #:",null,"Account #:",null,"Account #:",null,"Account #:",null,"Account #:",null,"Account #:",null,null,null,"Account #:",null,"Account #:",null,"Account #:",null,"Account #:",null,"Account #:",null,"Account #:",null,"Account #:",null,"Account #:",null,"Account #:",null,"Account #:",null,"Account #:",null,"Account #:",null,"Account #:",null,"Account #:",null,"Account #:",null,"Account #:",null,"Account #:",null,"Account #:",null,"Account #:",null,"Account #:",null,null,null,"Account #:",null,"Account #:",null,"Account #:",null,"Account #:",null,"Account #:",null,"Account #:",null,"Account #:",null,"Account #:",null,"Account #:",null,"Account #:",null,"Account #:",null,"Account #:",null,"Account #:",null,"Account #:",null,"Account #:",null,"Account #:",null,"Account #:",null,"Account #:",null,"Account #:",null,"Account #:",null,null,null,"Account #:",null,"Account #:",null,"Account #:",null,"Account #:",null,"Account #:",null,"Account #:",null,"Account #:",null,"Account #:",null,"Account #:",null,"Account #:",null,"Account #:",null,"Account #:",null,"Account #:",null,"Account #:",null,"Account #:",null,"Account #:",null,"Account #:",null,"Account #:",null,"Account #:",null,"Account #:",null,null,null,"Account #:",null,"Account #:",null,"Account #:",null,"Account #:",null,"Account #:",null,"Account #:",null,"Account #:",null,"Account #:",null,"Account #:",null,"Account #:",null,"Account #:",null,"Account #:",null,"Account #:",null,"Account #:",null,"Account #:",null,"Account #:",null,"Account #:",null,"Account #:",null,"Account #:",null,"Account #:",null,null,null,"Account #:",null,"Account #:",null,"Account #:",null,"Account #:",null,"Account #:",null,"Account #:",null,"Account #:",null,"Account #:",null,"Account #:",null,"Account #:",null,"Account #:",null,"Account #:",null,"Account #:",null,"Account #:",null,"Account #:",null,"Account #:",null,"Account #:",null,"Account #:",null,"Account #:",null,"Account #:",null,null,null,"Account #:",null,"Account #:",null,"Account #:",null,"Account #:",null,"Account #:",null,"Account #:",null,"Account #:",null,"Account #:",null,"Account #:",null,"Account #:",null,"Account #:",null,"Account #:",null,"Account #:",null,"Account #:",null,"Account #:",null,"Account #:",null,"Account #:",null,"Account #:",null,"Account #:",null,"Account #:",null,null,null,"Account #:",null,"Account #:",null,"Account #:",null,"Account #:",null,"Account #:",null,"Account #:",null,"Account #:",null,"Account #:",null,"Account #:",null,"Account #:",null,"Account #:",null,"Account #:",null,"Account #:",null,"Account #:",null,"Account #:",null,"Account #:",null,"Account #:",null,"Account #:",null,"Account #:",null,"Account #:",null,null,null,"Account #:",null,"Account #:",null,"Account #:",null,"Account #:",null,"Account #:",null,"Account #:",null,"Account #:",null,"Account #:",null,"Account #:",null,"Account #:",null,"Account #:",null,"Account #:",null,"Account #:",null,"Account #:",null,"Account #:",null,"Account #:",null,"Account #:",null,"Account #:",null,"Account #:",null,"Account #:",null,null,null,"Account #:",null,"Account #:",null,"Account #:",null,"Account #:",null,"Account #:",null,"Account #:",null,"Account #:",null,"Account #:",null,"Account #:",null,"Account #:",null,"Account #:",null,"Account #:",null,"Account #:",null,"Account #:",null,"Account #:",null,"Account #:",null,"Account #:",null,"Account #:",null,"Account #:",null,"Account #:",null,null,null,{"$f":"PJ8","v":0},{"$f":"PK8","v":0},0,0,0,0,0,0,0,0]
[null,null,null,null,null,null,null,null,null,null,null,null,null,null,null,null,null,null,null,null,null,null,null,null,null,null,null,null,null,null,null,null,null,null,null,null,null,null,null,null,null,null,null,null,null,null,null,null,null,null,null,null,null,null,null,null,null,null,null,null,null,null,null,null,null,null,null,null,null,null,null,null,null,null,null,null,null,null,null,null,null,null,null,null,null,null,null,null,null,null,null,null,null,null,null,null,null,null,null,null,null,null,null,null,null,null,null,null,null,null,null,null,null,null,null,null,null,null,null,null,null,null,null,null,null,null,null,null,null,null,null,null,null,null,null,null,null,null,null,null,null,null,null,null,null,null,null,null,null,null,null,null,null,null,null,null,null,null,null,null,null,null,null,null,null,null,null,null,null,null,null,null,null,null,null,null,null,null,null,null,null,null,null,null,null,null,null,null,null,null,null,null,null,null,null,null,null,null,null,null,null,null,null,null,null,null,null,null,null,null,null,null,null,null,null,null,null,null,null,null,null,null,null,null,null,null,null,null,null,null,null,null,null,null,null,null,null,null,null,null,null,null,null,null,null,null,null,null,null,null,null,null,null,null,null,null,null,null,null,null,null,null,null,null,null,null,null,null,null,null,null,null,null,null,null,null,null,null,null,null,null,null,null,null,null,null,null,null,null,null,null,null,null,null,null,null,null,null,null,null,null,null,null,null,null,null,null,null,null,null,null,null,null,null,null,null,null,null,null,null,null,null,null,null,null,null,null,null,null,null,null,null,null,null,null,null,null,null,null,null,null,null,null,null,null,null,null,null,null,null,null,null,null,null,null,null,null,null,null,null,null,null,null,null,null,null,null,null,null,null,null,null,null,null,null,null,null,null,null,null,null,null,null,null,null,null,null,null,null,null,null,null,null,null,null,null,null,null,null,null,null,null,null,null,null,null,null,null,null,null,null,null,null,null,null,null,null,null,null,null,null,null,null,null,null,{"$f":"PJ9","v":"Unit Type 1"},"Unit Type 2","Unit Type 3","Unit Type 4","Unit Type 5","Unit Type 6","Unit Type 7","Unit Type 8","Unit Type 9","Unit Type 10","SUMMARY"]
[null,"Billing Period Start Date","Read Date","Days in Billing Period",null,{"$f":"'Utility Info'!$D$16","v":"<Not Used>"},"Actual/ Estimated",{"$f":"'Utility Info'!$D$16","v":"<Not Used>"},"Actual/ Estimated",{"$f":"'Utility Info'!$D$16","v":"<Not Used>"},"Actual/ Estimated",{"$f":"'Utility Info'!$D$16","v":"<Not Used>"},"Actual/ Estimated",{"$f":"'Utility Info'!$D$16","v":"<Not Used>"},"Actual/ Estimated",{"$f":"'Utility Info'!$D$16","v":"<Not Used>"},"Actual/ Estimated",{"$f":"'Utility Info'!$D$16","v":"<Not Used>"},"Actual/ Estimated",{"$f":"'Utility Info'!$D$16","v":"<Not Used>"},"Actual/ Estimated",{"$f":"'Utility Info'!$D$16","v":"<Not Used>"},"Actual/ Estimated",{"$f":"'Utility Info'!$D$16","v":"<Not Used>"},"Actual/ Estimated",{"$f":"'Utility Info'!$D$16","v":"<Not Used>"},"Actual/ Estimated",{"$f":"'Utility Info'!$D$16","v":"<Not Used>"},"Actual/ Estimated",{"$f":"'Utility Info'!$D$16","v":"<Not Used>"},"Actual/ Estimated",{"$f":"'Utility Info'!$D$16","v":"<Not Used>"},"Actual/ Estimated",{"$f":"'Utility Info'!$D$16","v":"<Not Used>"},"Actual/ Estimated",{"$f":"'Utility Info'!$D$16","v":"<Not Used>"},"Actual/ Estimated",{"$f":"'Utility Info'!$D$16","v":"<Not Used>"},"Actual/ Estimated",{"$f":"'Utility Info'!$D$16","v":"<Not Used>"},"Actual/ Estimated",{"$f":"'Utility Info'!$D$16","v":"<Not Used>"},"Actual/ Estimated",{"$f":"'Utility Info'!$D$16","v":"<Not Used>"},"Actual/ Estimated","Average Gas Consumption",null,{"$f":"'Utility Info'!$D$16","v":"<Not Used>"},"Actual/ Estimated",{"$f":"'Utility Info'!$D$16","v":"<Not Used>"},"Actual/ Estimated",{"$f":"'Utility Info'!$D$16","v":"<Not Used>"},"Actual/ Estimated",{"$f":"'Utility Info'!$D$16","v":"<Not Used>"},"Actual/ Estimated",{"$f":"'Utility Info'!$D$16","v":"<Not Used>"},"Actual/ Estimated",{"$f":"'Utility Info'!$D$16","v":"<Not Used>"},"Actual/ Estimated",{"$f":"'Utility Info'!$D$16","v":"<Not Used>"},"Actual/ Estimated",{"$f":"'Utility Info'!$D$16","v":"<Not Used>"},"Actual/ Estimated",{"$f":"'Utility Info'!$D$16","v":"<Not Used>"},"Actual/ Estimated",{"$f":"'Utility Info'!$D$16","v":"<Not Used>"},"Actual/ Estimated",{"$f":"'Utility Info'!$D$16","v":"<Not Used>"},"Actual/ Estimated",{"$f":"'Utility Info'!$D$16","v":"<Not Used>"},"Actual/ Estimated",{"$f":"'Utility Info'!$D$16","v":"<Not Used>"},"Actual/ Estimated",{"$f":"'Utility Info'!$D$16","v":"<Not Used>"},"Actual/ Estimated",{"$f":"'Utility Info'!$D$16","v":"<Not Used>"},"Actual/ Estimated",{"$f":"'Utility Info'!$D$16","v":"<Not Used>"},"Actual/ Estimated",{"$f":"'Utility Info'!$D$16","v":"<Not Used>"},"Actual/ Estimated",{"$f":"'Utility Info'!$D$16","v":"<Not Used>"},"Actual/ Estimated",{"$f":"'Utility Info'!$D$16","v":"<Not Used>"},"Actual/ Estimated",{"$f":"'Utility Info'!$D$16","v":"<Not Used>"},"Actual/ Estimated","Average Gas Consumption",null,{"$f":"'Utility Info'!$D$16","v":"<Not Used>"},"Actual/ Estimated",{"$f":"'Utility Info'!$D$16","v":"<Not Used>"},"Actual/ Estimated",{"$f":"'Utility Info'!$D$16","v":"<Not Used>"},"Actual/ Estimated",{"$f":"'Utility Info'!$D$16","v":"<Not Used>"},"Actual/ Estimated",{"$f":"'Utility Info'!$D$16","v":"<Not Used>"},"Actual/ Estimated",{"$f":"'Utility Info'!$D$16","v":"<Not Used>"},"Actual/ Estimated",{"$f":"'Utility Info'!$D$16","v":"<Not Used>"},"Actual/ Estimated",{"$f":"'Utility Info'!$D$16","v":"<Not Used>"},"Actual/ Estimated",{"$f":"'Utility Info'!$D$16","v":"<Not Used>"},"Actual/ Estimated",{"$f":"'Utility Info'!$D$16","v":"<Not Used>"},"Actual/ Estimated",{"$f":"'Utility Info'!$D$16","v":"<Not Used>"},"Actual/ Estimated",{"$f":"'Utility Info'!$D$16","v":"<Not Used>"},"Actual/ Estimated",{"$f":"'Utility Info'!$D$16","v":"<Not Used>"},"Actual/ Estimated",{"$f":"'Utility Info'!$D$16","v":"<Not Used>"},"Actual/ Estimated",{"$f":"'Utility Info'!$D$16","v":"<Not Used>"},"Actual/ Estimated",{"$f":"'Utility Info'!$D$16","v":"<Not Used>"},"Actual/ Estimated",{"$f":"'Utility Info'!$D$16","v":"<Not Used>"},"Actual/ Estimated",{"$f":"'Utility Info'!$D$16","v":"<Not Used>"},"Actual/ Estimated",{"$f":"'Utility Info'!$D$16","v":"<Not Used>"},"Actual/ Estimated",{"$f":"'Utility Info'!$D$16","v":"<Not Used>"},"Actual/ Estimated","Average Gas Consumption",null,{"$f":"'Utility Info'!$D$16","v":"<Not Used>"},"Actual/ Estimated",{"$f":"'Utility Info'!$D$16","v":"<Not Used>"},"Actual/ Estimated",{"$f":"'Utility Info'!$D$16","v":"<Not Used>"},"Actual/ Estimated",{"$f":"'Utility Info'!$D$16","v":"<Not Used>"},"Actual/ Estimated",{"$f":"'Utility Info'!$D$16","v":"<Not Used>"},"Actual/ Estimated",{"$f":"'Utility Info'!$D$16","v":"<Not Used>"},"Actual/ Estimated",{"$f":"'Utility Info'!$D$16","v":"<Not Used>"},"Actual/ Estimated",{"$f":"'Utility Info'!$D$16","v":"<Not Used>"},"Actual/ Estimated",{"$f":"'Utility Info'!$D$16","v":"<Not Used>"},"Actual/ Estimated",{"$f":"'Utility Info'!$D$16","v":"<Not Used>"},"Actual/ Estimated",{"$f":"'Utility Info'!$D$16","v":"<Not Used>"},"Actual/ Estimated",{"$f":"'Utility Info'!$D$16","v":"<Not Used>"},"Actual/ Estimated",{"$f":"'Utility Info'!$D$16","v":"<Not Used>"},"Actual/ Estimated",{"$f":"'Utility Info'!$D$16","v":"<Not Used>"},"Actual/ Estimated",{"$f":"'Utility Info'!$D$16","v":"<Not Used>"},"Actual/ Estimated",{"$f":"'Utility Info'!$D$16","v":"<Not Used>"},"Actual/ Estimated",{"$f":"'Utility Info'!$D$16","v":"<Not Used>"},"Actual/ Estimated",{"$f":"'Utility Info'!$D$16","v":"<Not Used>"},"Actual/ Estimated",{"$f":"'Utility Info'!$D$16","v":"<Not Used>"},"Actual/ Estimated",{"$f":"'Utility Info'!$D$16","v":"<Not Used>"},"Actual/ Estimated","Average Gas Consumption",null,{"$f":"'Utility Info'!$D$16","v":"<Not Used>"},"Actual/ Estimated",{"$f":"'Utility Info'!$D$16","v":"<Not Used>"},"Actual/ Estimated",{"$f":"'Utility Info'!$D$16","v":"<Not Used>"},"Actual/ Estimated",{"$f":"'Utility Info'!$D$16","v":"<Not Used>"},"Actual/ Estimated",{"$f":"'Utility Info'!$D$16","v":"<Not Used>"},"Actual/ Estimated",{"$f":"'Utility Info'!$D$16","v":"<Not Used>"},"Actual/ Estimated",{"$f":"'Utility Info'!$D$16","v":"<Not Used>"},"Actual/ Estimated",{"$f":"'Utility Info'!$D$16","v":"<Not Used>"},"Actual/ Estimated",{"$f":"'Utility Info'!$D$16","v":"<Not Used>"},"Actual/ Estimated",{"$f":"'Utility Info'!$D$16","v":"<Not Used>"},"Actual/ Estimated",{"$f":"'Utility Info'!$D$16","v":"<Not Used>"},"Actual/ Estimated",{"$f":"'Utility Info'!$D$16","v":"<Not Used>"},"Actual/ Estimated",{"$f":"'Utility Info'!$D$16","v":"<Not Used>"},"Actual/ Estimated",{"$f":"'Utility Info'!$D$16","v":"<Not Used>"},"Actual/ Estimated",{"$f":"'Utility Info'!$D$16","v":"<Not Used>"},"Actual/ Estimated",{"$f":"'Utility Info'!$D$16","v":"<Not Used>"},"Actual/ Estimated",{"$f":"'Utility Info'!$D$16","v":"<Not Used>"},"Actual/ Estimated",{"$f":"'Utility Info'!$D$16","v":"<Not Used>"},"Actual/ Estimated",{"$f":"'Utility Info'!$D$16","v":"<Not Used>"},"Actual/ Estimated",{"$f":"'Utility Info'!$D$16","v":"<Not Used>"},"Actual/ Estimated","Average Gas Consumption",null,{"$f":"'Utility Info'!$D$16","v":"<Not Used>"},"Actual/ Estimated",{"$f":"'Utility Info'!$D$16","v":"<Not Used>"},"Actual/ Estimated",{"$f":"'Utility Info'!$D$16","v":"<Not Used>"},"Actual/ Estimated",{"$f":"'Utility Info'!$D$16","v":"<Not Used>"},"Actual/ Estimated",{"$f":"'Utility Info'!$D$16","v":"<Not Used>"},"Actual/ Estimated",{"$f":"'Utility Info'!$D$16","v":"<Not Used>"},"Actual/ Estimated",{"$f":"'Utility Info'!$D$16","v":"<Not Used>"},"Actual/ Estimated",{"$f":"'Utility Info'!$D$16","v":"<Not Used>"},"Actual/ Estimated",{"$f":"'Utility Info'!$D$16","v":"<Not Used>"},"Actual/ Estimated",{"$f":"'Utility Info'!$D$16","v":"<Not Used>"},"Actual/ Estimated",{"$f":"'Utility Info'!$D$16","v":"<Not Used>"},"Actual/ Estimated",{"$f":"'Utility Info'!$D$16","v":"<Not Used>"},"Actual/ Estimated",{"$f":"'Utility Info'!$D$16","v":"<Not Used>"},"Actual/ Estimated",{"$f":"'Utility Info'!$D$16","v":"<Not Used>"},"Actual/ Estimated",{"$f":"'Utility Info'!$D$16","v":"<Not Used>"},"Actual/ Estimated",{"$f":"'Utility Info'!$D$16","v":"<Not Used>"},"Actual/ Estimated",{"$f":"'Utility Info'!$D$16","v":"<Not Used>"},"Actual/ Estimated",{"$f":"'Utility Info'!$D$16","v":"<Not Used>"},"Actual/ Estimated",{"$f":"'Utility Info'!$D$16","v":"<Not Used>"},"Actual/ Estimated",{"$f":"'Utility Info'!$D$16","v":"<Not Used>"},"Actual/ Estimated","Average Gas Consumption",null,{"$f":"'Utility Info'!$D$16","v":"<Not Used>"},"Actual/ Estimated",{"$f":"'Utility Info'!$D$16","v":"<Not Used>"},"Actual/ Estimated",{"$f":"'Utility Info'!$D$16","v":"<Not Used>"},"Actual/ Estimated",{"$f":"'Utility Info'!$D$16","v":"<Not Used>"},"Actual/ Estimated",{"$f":"'Utility Info'!$D$16","v":"<Not Used>"},"Actual/ Estimated",{"$f":"'Utility Info'!$D$16","v":"<Not Used>"},"Actual/ Estimated",{"$f":"'Utility Info'!$D$16","v":"<Not Used>"},"Actual/ Estimated",{"$f":"'Utility Info'!$D$16","v":"<Not Used>"},"Actual/ Estimated",{"$f":"'Utility Info'!$D$16","v":"<Not Used>"},"Actual/ Estimated",{"$f":"'Utility Info'!$D$16","v":"<Not Used>"},"Actual/ Estimated",{"$f":"'Utility Info'!$D$16","v":"<Not Used>"},"Actual/ Estimated",{"$f":"'Utility Info'!$D$16","v":"<Not Used>"},"Actual/ Estimated",{"$f":"'Utility Info'!$D$16","v":"<Not Used>"},"Actual/ Estimated",{"$f":"'Utility Info'!$D$16","v":"<Not Used>"},"Actual/ Estimated",{"$f":"'Utility Info'!$D$16","v":"<Not Used>"},"Actual/ Estimated",{"$f":"'Utility Info'!$D$16","v":"<Not Used>"},"Actual/ Estimated",{"$f":"'Utility Info'!$D$16","v":"<Not Used>"},"Actual/ Estimated",{"$f":"'Utility Info'!$D$16","v":"<Not Used>"},"Actual/ Estimated",{"$f":"'Utility Info'!$D$16","v":"<Not Used>"},"Actual/ Estimated",{"$f":"'Utility Info'!$D$16","v":"<Not Used>"},"Actual/ Estimated","Average Gas Consumption",null,{"$f":"'Utility Info'!$D$16","v":"<Not Used>"},"Actual/ Estimated",{"$f":"'Utility Info'!$D$16","v":"<Not Used>"},"Actual/ Estimated",{"$f":"'Utility Info'!$D$16","v":"<Not Used>"},"Actual/ Estimated",{"$f":"'Utility Info'!$D$16","v":"<Not Used>"},"Actual/ Estimated",{"$f":"'Utility Info'!$D$16","v":"<Not Used>"},"Actual/ Estimated",{"$f":"'Utility Info'!$D$16","v":"<Not Used>"},"Actual/ Estimated",{"$f":"'Utility Info'!$D$16","v":"<Not Used>"},"Actual/ Estimated",{"$f":"'Utility Info'!$D$16","v":"<Not Used>"},"Actual/ Estimated",{"$f":"'Utility Info'!$D$16","v":"<Not Used>"},"Actual/ Estimated",{"$f":"'Utility Info'!$D$16","v":"<Not Used>"},"Actual/ Estimated",{"$f":"'Utility Info'!$D$16","v":"<Not Used>"},"Actual/ Estimated",{"$f":"'Utility Info'!$D$16","v":"<Not Used>"},"Actual/ Estimated",{"$f":"'Utility Info'!$D$16","v":"<Not Used>"},"Actual/ Estimated",{"$f":"'Utility Info'!$D$16","v":"<Not Used>"},"Actual/ Estimated",{"$f":"'Utility Info'!$D$16","v":"<Not Used>"},"Actual/ Estimated",{"$f":"'Utility Info'!$D$16","v":"<Not Used>"},"Actual/ Estimated",{"$f":"'Utility Info'!$D$16","v":"<Not Used>"},"Actual/ Estimated",{"$f":"'Utility Info'!$D$16","v":"<Not Used>"},"Actual/ Estimated",{"$f":"'Utility Info'!$D$16","v":"<Not Used>"},"Actual/ Estimated",{"$f":"'Utility Info'!$D$16","v":"<Not Used>"},"Actual/ Estimated","Average Gas Consumption",null,{"$f":"'Utility Info'!$D$16","v":"<Not Used>"},"Actual/ Estimated",{"$f":"'Utility Info'!$D$16","v":"<Not Used>"},"Actual/ Estimated",{"$f":"'Utility Info'!$D$16","v":"<Not Used>"},"Actual/ Estimated",{"$f":"'Utility Info'!$D$16","v":"<Not Used>"},"Actual/ Estimated",{"$f":"'Utility Info'!$D$16","v":"<Not Used>"},"Actual/ Estimated",{"$f":"'Utility Info'!$D$16","v":"<Not Used>"},"Actual/ Estimated",{"$f":"'Utility Info'!$D$16","v":"<Not Used>"},"Actual/ Estimated",{"$f":"'Utility Info'!$D$16","v":"<Not Used>"},"Actual/ Estimated",{"$f":"'Utility Info'!$D$16","v":"<Not Used>"},"Actual/ Estimated",{"$f":"'Utility Info'!$D$16","v":"<Not Used>"},"Actual/ Estimated",{"$f":"'Utility Info'!$D$16","v":"<Not Used>"},"Actual/ Estimated",{"$f":"'Utility Info'!$D$16","v":"<Not Used>"},"Actual/ Estimated",{"$f":"'Utility Info'!$D$16","v":"<Not Used>"},"Actual/ Estimated",{"$f":"'Utility Info'!$D$16","v":"<Not Used>"},"Actual/ Estimated",{"$f":"'Utility Info'!$D$16","v":"<Not Used>"},"Actual/ Estimated",{"$f":"'Utility Info'!$D$16","v":"<Not Used>"},"Actual/ Estimated",{"$f":"'Utility Info'!$D$16","v":"<Not Used>"},"Actual/ Estimated",{"$f":"'Utility Info'!$D$16","v":"<Not Used>"},"Actual/ Estimated",{"$f":"'Utility Info'!$D$16","v":"<Not Used>"},"Actual/ Estimated",{"$f":"'Utility Info'!$D$16","v":"<Not Used>"},"Actual/ Estimated","Average Gas Consumption",null,{"$f":"'Utility Info'!$D$16","v":"<Not Used>"},"Actual/ Estimated",{"$f":"'Utility Info'!$D$16","v":"<Not Used>"},"Actual/ Estimated",{"$f":"'Utility Info'!$D$16","v":"<Not Used>"},"Actual/ Estimated",{"$f":"'Utility Info'!$D$16","v":"<Not Used>"},"Actual/ Estimated",{"$f":"'Utility Info'!$D$16","v":"<Not Used>"},"Actual/ Estimated",{"$f":"'Utility Info'!$D$16","v":"<Not Used>"},"Actual/ Estimated",{"$f":"'Utility Info'!$D$16","v":"<Not Used>"},"Actual/ Estimated",{"$f":"'Utility Info'!$D$16","v":"<Not Used>"},"Actual/ Estimated",{"$f":"'Utility Info'!$D$16","v":"<Not Used>"},"Actual/ Estimated",{"$f":"'Utility Info'!$D$16","v":"<Not Used>"},"Actual/ Estimated",{"$f":"'Utility Info'!$D$16","v":"<Not Used>"},"Actual/ Estimated",{"$f":"'Utility Info'!$D$16","v":"<Not Used>"},"Actual/ Estimated",{"$f":"'Utility Info'!$D$16","v":"<Not Used>"},"Actual/ Estimated",{"$f":"'Utility Info'!$D$16","v":"<Not Used>"},"Actual/ Estimated",{"$f":"'Utility Info'!$D$16","v":"<Not Used>"},"Actual/ Estimated",{"$f":"'Utility Info'!$D$16","v":"<Not Used>"},"Actual/ Estimated",{"$f":"'Utility Info'!$D$16","v":"<Not Used>"},"Actual/ Estimated",{"$f":"'Utility Info'!$D$16","v":"<Not Used>"},"Actual/ Estimated",{"$f":"'Utility Info'!$D$16","v":"<Not Used>"},"Actual/ Estimated",{"$f":"'Utility Info'!$D$16","v":"<Not Used>"},"Actual/ Estimated","Average Gas Consumption",null,"Average Gas Consumption","Average Gas Consumption","Average Gas Consumption","Average Gas Consumption","Average Gas Consumption","Average Gas Consumption","Average Gas Consumption","Average Gas Consumption","Average Gas Consumption","Average Gas Consumption","Total In-Unit Gas Consumption"]
[]
[null,{"$f":"C38+1","v":"1900-01-01"},null,{"$f":"IF(C39>0,C39+1-B39,0)","v":0},null,null,null,null,null,null,null,null,null,null,null,null,null,null,null,null,null,null,null,null,null,null,null,null,null,null,null,null,null,null,null,null,null,null,null,null,null,null,null,null,null,{"$f":"IF(ISBLANK(F39)=FALSE,AVERAGE(F39:AR39),\"\")","v":""},null,null,null,null,null,null,null,null,null,null,null,null,null,null,null,null,null,null,null,null,null,null,null,null,null,null,null,null,null,null,null,null,null,null,null,null,null,null,null,null,null,{"$f":"IF(ISBLANK(AV39)=FALSE,AVERAGE(AV39:CH39),\"\")","v":""},null,null,null,null,null,null,null,null,null,null,null,null,null,null,null,null,null,null,null,null,null,null,null,null,null,null,null,null,null,null,null,null,null,null,null,null,null,null,null,null,null,{"$f":"IF(ISBLANK(CL39)=FALSE,AVERAGE(CL39:DW39),\"\")","v":""},null,null,null,null,null,null,null,null,null,null,null,null,null,null,null,null,null,null,null,null,null,null,null,null,null,null,null,null,null,null,null,null,null,null,null,null,null,null,null,null,null,{"$f":"IF(ISBLANK(EB39)=FALSE,AVERAGE(EB39:FN39),\"\")","v":""},null,null,null,null,null,null,null,null,null,null,null,null,null,null,null,null,null,null,null,null,null,null,null,null,null,null,null,null,null,null,null,null,null,null,null,null,null,null,null,null,null,{"$f":"IF(ISBLANK(FR39)=FALSE,AVERAGE(FR39:HD39),\"\")","v":""},null,null,null,null,null,null,null,null,null,null,null,null,null,null,null,null,null,null,null,null,null,null,null,null,null,null,null,null,null,null,null,null,null,null,null,null,null,null,null,null,null,{"$f":"IF(ISBLANK(HH39)=FALSE,AVERAGE(HH39:IT39),\"\")","v":""},null,null,null,null,null,null,null,null,null,null,null,null,null,null,null,null,null,null,null,null,null,null,null,null,null,null,null,null,null,null,null,null,null,null,null,null,null,null,null,null,null,{"$f":"IF(ISBLANK(IX39)=FALSE,AVERAGE(IX39:KJ39),\"\")","v":""},null,null,null,null,null,null,null,null,null,null,null,null,null,null,null,null,null,null,null,null,null,null,null,null,null,null,null,null,null,null,null,null,null,null,null,null,null,null,null,null,null,{"$f":"IF(ISBLANK(KN39)=FALSE,AVERAGE(KN39:LZ39),\"\")","v":""},null,null,null,null,null,null,null,null,null,null,null,null,null,null,null,null,null,null,null,null,null,null,null,null,null,null,null,null,null,null,null,null,null,null,null,null,null,null,null,null,null,{"$f":"IF(ISBLANK(MD39)=FALSE,AVERAGE(MD39:NP39),\"\")","v":""},null,null,null,null,null,null,null,null,null,null,null,null,null,null,null,null,null,null,null,null,null,null,null,null,null,null,null,null,null,null,null,null,null,null,null,null,null,null,null,null,null,{"$f":"IF(ISBLANK(NT39)=FALSE,AVERAGE(NT39:PF39),\"\")","v":""},null,{"$f":"IF(AT39=\"\",0,AT39)","v":0},{"$f":"IF(CJ39=\"\",0,CJ39)","v":0},{"$f":"IF(DZ39=\"\",0,DZ39)","v":0},{"$f":"IF(FP39=\"\",0,FP39)","v":0},{"$f":"IF(HF39=\"\",0,HF39)","v":0},{"$f":"IF(IV39=\"\",0,IV39)","v":0},{"$f":"IF(KL39=\"\",0,KL39)","v":0},{"$f":"IF(MB39=\"\",0,MB39)","v":0},{"$f":"IF(NR39=\"\",0,NR39)","v":0},{"$f":"IF(PH39=\"\",0,PH39)","v":0},{"$f":"SUMPRODUCT($PJ$35:$PS$35,PJ39:PS39)","v":0}]
[null,{"$f":"C39+1","v":"1900-01-01"},null,0,null,null,null,null,null,null,null,null,null,null,null,null,null,null,null,null,null,null,null,null,null,null,null,null,null,null,null,null,null,null,null,null,null,null,null,null,null,null,null,null,null,"",null,null,null,null,null,null,null,null,null,null,null,null,null,null,null,null,null,null,null,null,null,null,null,null,null,null,null,null,null,null,null,null,null,null,null,null,null,null,null,null,null,"",null,null,null,null,null,null,null,null,null,null,null,null,null,null,null,null,null,null,null,null,null,null,null,null,null,null,null,null,null,null,null,null,null,null,null,null,null,null,null,null,null,"",null,null,null,null,null,null,null,null,null,null,null,null,null,null,null,null,null,null,null,null,null,null,null,null,null,null,null,null,null,null,null,null,null,null,null,null,null,null,null,null,null,"",null,null,null,null,null,null,null,null,null,null,null,null,null,null,null,null,null,null,null,null,null,null,null,null,null,null,null,null,null,null,null,null,null,null,null,null,null,null,null,null,null,"",null,null,null,null,null,null,null,null,null,null,null,null,null,null,null,null,null,null,null,null,null,null,null,null,null,null,null,null,null,null,null,null,null,null,null,null,null,null,null,null,null,"",null,null,null,null,null,null,null,null,null,null,null,null,null,null,null,null,null,null,null,null,null,null,null,null,null,null,null,null,null,null,null,null,null,null,null,null,null,null,null,null,null,"",null,null,null,null,null,null,null,null,null,null,null,null,null,null,null,null,null,null,null,null,null,null,null,null,null,null,null,null,null,null,null,null,null,null,null,null,null,null,null,null,null,"",null,null,null,null,null,null,null,null,null,null,null,null,null,null,null,null,null,null,null,null,null,null,null,null,null,null,null,null,null,null,null,null,null,null,null,null,null,null,null,null,null,"",null,null,null,null,null,null,null,null,null,null,null,null,null,null,null,null,null,null,null,null,null,null,null,null,null,null,null,null,null,null,null,null,null,null,null,null,null,null,null,null,null,"",null,0,0,0,0,0,0,0,0,0,0,{"$f":"SUMPRODUCT($PJ$35:$PS$35,PJ40:PS40)","v":0}]
[null,"1900-01-01",null,0,null,null,null,null,null,null,null,null,null,null,null,null,null,null,null,null,null,null,null,null,null,null,null,null,null,null,null,null,null,null,null,null,null,null,null,null,null,null,null,null,null,"",null,null,null,null,null,null,null,null,null,null,null,null,null,null,null,null,null,null,null,null,null,null,null,null,null,null,null,null,null,null,null,null,null,null,null,null,null,null,null,null,null,"",null,null,null,null,null,null,null,null,null,null,null,null,null,null,null,null,null,null,null,null,null,null,null,null,null,null,null,null,null,null,null,null,null,null,null,null,null,null,null,null,null,"",null,null,null,null,null,null,null,null,null,null,null,null,null,null,null,null,null,null,null,null,null,null,null,null,null,null,null,null,null,null,null,null,null,null,null,null,null,null,null,null,null,"",null,null,null,null,null,null,null,null,null,null,null,null,null,null,null,null,null,null,null,null,null,null,null,null,null,null,null,null,null,null,null,null,null,null,null,null,null,null,null,null,null,"",null,null,null,null,null,null,null,null,null,null,null,null,null,null,null,null,null,null,null,null,null,null,null,null,null,null,null,null,null,null,null,null,null,null,null,null,null,null,null,null,null,"",null,null,null,null,null,null,null,null,null,null,null,null,null,null,null,null,null,null,null,null,null,null,null,null,null,null,null,null,null,null,null,null,null,null,null,null,null,null,null,null,null,"",null,null,null,null,null,null,null,null,null,null,null,null,null,null,null,null,null,null,null,null,null,null,null,null,null,null,null,null,null,null,null,null,null,null,null,null,null,null,null,null,null,"",null,null,null,null,null,null,null,null,null,null,null,null,null,null,null,null,null,null,null,null,null,null,null,null,null,null,null,null,null,null,null,null,null,null,null,null,null,null,null,null,null,"",null,null,null,null,null,null,null,null,null,null,null,null,null,null,null,null,null,null,null,null,null,null,null,null,null,null,null,null,null,null,null,null,null,null,null,null,null,null,null,null,null,"",null,0,0,0,0,0,0,0,0,0,0,0]
[null,"1900-01-01",null,0,null,null,null,null,null,null,null,null,null,null,null,null,null,null,null,null,null,null,null,null,null,null,null,null,null,null,null,null,null,null,null,null,null,null,null,null,null,null,null,null,null,"",null,null,null,null,null,null,null,null,null,null,null,null,null,null,null,null,null,null,null,null,null,null,null,null,null,null,null,null,null,null,null,null,null,null,null,null,null,null,null,null,null,"",null,null,null,null,null,null,null,null,null,null,null,null,null,null,null,null,null,null,null,null,null,null,null,null,null,null,null,null,null,null,null,null,null,null,null,null,null,null,null,null,null,"",null,null,null,null,null,null,null,null,null,null,null,null,null,null,null,null,null,null,null,null,null,null,null,null,null,null,null,null,null,null,null,null,null,null,null,null,null,null,null,null,null,"",null,null,null,null,null,null,null,null,null,null,null,null,null,null,null,null,null,null,null,null,null,null,null,null,null,null,null,null,null,null,null,null,null,null,null,null,null,null,null,null,null,"",null,null,null,null,null,null,null,null,null,null,null,null,null,null,null,null,null,null,null,null,null,null,null,null,null,null,null,null,null,null,null,null,null,null,null,null,null,null,null,null,null,"",null,null,null,null,null,null,null,null,null,null,null,null,null,null,null,null,null,null,null,null,null,null,null,null,null,null,null,null,null,null,null,null,null,null,null,null,null,null,null,null,null,"",null,null,null,null,null,null,null,null,null,null,null,null,null,null,null,null,null,null,null,null,null,null,null,null,null,null,null,null,null,null,null,null,null,null,null,null,null,null,null,null,null,"",null,null,null,null,null,null,null,null,null,null,null,null,null,null,null,null,null,null,null,null,null,null,null,null,null,null,null,null,null,null,null,null,null,null,null,null,null,null,null,null,null,"",null,null,null,null,null,null,null,null,null,null,null,null,null,null,null,null,null,null,null,null,null,null,null,null,null,null,null,null,null,null,null,null,null,null,null,null,null,null,null,null,null,"",null,0,0,0,0,0,0,0,0,0,0,0]
[null,"1900-01-01",null,0,null,null,null,null,null,null,null,null,null,null,null,null,null,null,null,null,null,null,null,null,null,null,null,null,null,null,null,null,null,null,null,null,null,null,null,null,null,null,null,null,null,"",null,null,null,null,null,null,null,null,null,null,null,null,null,null,null,null,null,null,null,null,null,null,null,null,null,null,null,null,null,null,null,null,null,null,null,null,null,null,null,null,null,"",null,null,null,null,null,null,null,null,null,null,null,null,null,null,null,null,null,null,null,null,null,null,null,null,null,null,null,null,null,null,null,null,null,null,null,null,null,null,null,null,null,"",null,null,null,null,null,null,null,null,null,null,null,null,null,null,null,null,null,null,null,null,null,null,null,null,null,null,null,null,null,null,null,null,null,null,null,null,null,null,null,null,null,"",null,null,null,null,null,null,null,null,null,null,null,null,null,null,null,null,null,null,null,null,null,null,null,null,null,null,null,null,null,null,null,null,null,null,null,null,null,null,null,null,null,"",null,null,null,null,null,null,null,null,null,null,null,null,null,null,null,null,null,null,null,null,null,null,null,null,null,null,null,null,null,null,null,null,null,null,null,null,null,null,null,null,null,"",null,null,null,null,null,null,null,null,null,null,null,null,null,null,null,null,null,null,null,null,null,null,null,null,null,null,null,null,null,null,null,null,null,null,null,null,null,null,null,null,null,"",null,null,null,null,null,null,null,null,null,null,null,null,null,null,null,null,null,null,null,null,null,null,null,null,null,null,null,null,null,null,null,null,null,null,null,null,null,null,null,null,null,"",null,null,null,null,null,null,null,null,null,null,null,null,null,null,null,null,null,null,null,null,null,null,null,null,null,null,null,null,null,null,null,null,null,null,null,null,null,null,null,null,null,"",null,null,null,null,null,null,null,null,null,null,null,null,null,null,null,null,null,null,null,null,null,null,null,null,null,null,null,null,null,null,null,null,null,null,null,null,null,null,null,null,null,"",null,0,0,0,0,0,0,0,0,0,0,0]
[null,"1900-01-01",null,0,null,null,null,null,null,null,null,null,null,null,null,null,null,null,null,null,null,null,null,null,null,null,null,null,null,null,null,null,null,null,null,null,null,null,null,null,null,null,null,null,null,"",null,null,null,null,null,null,null,null,null,null,null,null,null,null,null,null,null,null,null,null,null,null,null,null,null,null,null,null,null,null,null,null,null,null,null,null,null,null,null,null,null,"",null,null,null,null,null,null,null,null,null,null,null,null,null,null,null,null,null,null,null,null,null,null,null,null,null,null,null,null,null,null,null,null,null,null,null,null,null,null,null,null,null,"",null,null,null,null,null,null,null,null,null,null,null,null,null,null,null,null,null,null,null,null,null,null,null,null,null,null,null,null,null,null,null,null,null,null,null,null,null,null,null,null,null,"",null,null,null,null,null,null,null,null,null,null,null,null,null,null,null,null,null,null,null,null,null,null,null,null,null,null,null,null,null,null,null,null,null,null,null,null,null,null,null,null,null,"",null,null,null,null,null,null,null,null,null,null,null,null,null,null,null,null,null,null,null,null,null,null,null,null,null,null,null,null,null,null,null,null,null,null,null,null,null,null,null,null,null,"",null,null,null,null,null,null,null,null,null,null,null,null,null,null,null,null,null,null,null,null,null,null,null,null,null,null,null,null,null,null,null,null,null,null,null,null,null,null,null,null,null,"",null,null,null,null,null,null,null,null,null,null,null,null,null,null,null,null,null,null,null,null,null,null,null,null,null,null,null,null,null,null,null,null,null,null,null,null,null,null,null,null,null,"",null,null,null,null,null,null,null,null,null,null,null,null,null,null,null,null,null,null,null,null,null,null,null,null,null,null,null,null,null,null,null,null,null,null,null,null,null,null,null,null,null,"",null,null,null,null,null,null,null,null,null,null,null,null,null,null,null,null,null,null,null,null,null,null,null,null,null,null,null,null,null,null,null,null,null,null,null,null,null,null,null,null,null,"",null,0,0,0,0,0,0,0,0,0,0,0]
[null,"1900-01-01",null,0,null,null,null,null,null,null,null,null,null,null,null,null,null,null,null,null,null,null,null,null,null,null,null,null,null,null,null,null,null,null,null,null,null,null,null,null,null,null,null,null,null,"",null,null,null,null,null,null,null,null,null,null,null,null,null,null,null,null,null,null,null,null,null,null,null,null,null,null,null,null,null,null,null,null,null,null,null,null,null,null,null,null,null,"",null,null,null,null,null,null,null,null,null,null,null,null,null,null,null,null,null,null,null,null,null,null,null,null,null,null,null,null,null,null,null,null,null,null,null,null,null,null,null,null,null,"",null,null,null,null,null,null,null,null,null,null,null,null,null,null,null,null,null,null,null,null,null,null,null,null,null,null,null,null,null,null,null,null,null,null,null,null,null,null,null,null,null,"",null,null,null,null,null,null,null,null,null,null,null,null,null,null,null,null,null,null,null,null,null,null,null,null,null,null,null,null,null,null,null,null,null,null,null,null,null,null,null,null,null,"",null,null,null,null,null,null,null,null,null,null,null,null,null,null,null,null,null,null,null,null,null,null,null,null,null,null,null,null,null,null,null,null,null,null,null,null,null,null,null,null,null,"",null,null,null,null,null,null,null,null,null,null,null,null,null,null,null,null,null,null,null,null,null,null,null,null,null,null,null,null,null,null,null,null,null,null,null,null,null,null,null,null,null,"",null,null,null,null,null,null,null,null,null,null,null,null,null,null,null,null,null,null,null,null,null,null,null,null,null,null,null,null,null,null,null,null,null,null,null,null,null,null,null,null,null,"",null,null,null,null,null,null,null,null,null,null,null,null,null,null,null,null,null,null,null,null,null,null,null,null,null,null,null,null,null,null,null,null,null,null,null,null,null,null,null,null,null,"",null,null,null,null,null,null,null,null,null,null,null,null,null,null,null,null,null,null,null,null,null,null,null,null,null,null,null,null,null,null,null,null,null,null,null,null,null,null,null,null,null,"",null,0,0,0,0,0,0,0,0,0,0,0]
[null,"1900-01-01",null,0,null,null,null,null,null,null,null,null,null,null,null,null,null,null,null,null,null,null,null,null,null,null,null,null,null,null,null,null,null,null,null,null,null,null,null,null,null,null,null,null,null,"",null,null,null,null,null,null,null,null,null,null,null,null,null,null,null,null,null,null,null,null,null,null,null,null,null,null,null,null,null,null,null,null,null,null,null,null,null,null,null,null,null,"",null,null,null,null,null,null,null,null,null,null,null,null,null,null,null,null,null,null,null,null,null,null,null,null,null,null,null,null,null,null,null,null,null,null,null,null,null,null,null,null,null,"",null,null,null,null,null,null,null,null,null,null,null,null,null,null,null,null,null,null,null,null,null,null,null,null,null,null,null,null,null,null,null,null,null,null,null,null,null,null,null,null,null,"",null,null,null,null,null,null,null,null,null,null,null,null,null,null,null,null,null,null,null,null,null,null,null,null,null,null,null,null,null,null,null,null,null,null,null,null,null,null,null,null,null,"",null,null,null,null,null,null,null,null,null,null,null,null,null,null,null,null,null,null,null,null,null,null,null,null,null,null,null,null,null,null,null,null,null,null,null,null,null,null,null,null,null,"",null,null,null,null,null,null,null,null,null,null,null,null,null,null,null,null,null,null,null,null,null,null,null,null,null,null,null,null,null,null,null,null,null,null,null,null,null,null,null,null,null,"",null,null,null,null,null,null,null,null,null,null,null,null,null,null,null,null,null,null,null,null,null,null,null,null,null,null,null,null,null,null,null,null,null,null,null,null,null,null,null,null,null,"",null,null,null,null,null,null,null,null,null,null,null,null,null,null,null,null,null,null,null,null,null,null,null,null,null,null,null,null,null,null,null,null,null,null,null,null,null,null,null,null,null,"",null,null,null,null,null,null,null,null,null,null,null,null,null,null,null,null,null,null,null,null,null,null,null,null,null,null,null,null,null,null,null,null,null,null,null,null,null,null,null,null,null,"",null,0,0,0,0,0,0,0,0,0,0,0]
[null,"1900-01-01",null,0,null,null,null,null,null,null,null,null,null,null,null,null,null,null,null,null,null,null,null,null,null,null,null,null,null,null,null,null,null,null,null,null,null,null,null,null,null,null,null,null,null,"",null,null,null,null,null,null,null,null,null,null,null,null,null,null,null,null,null,null,null,null,null,null,null,null,null,null,null,null,null,null,null,null,null,null,null,null,null,null,null,null,null,"",null,null,null,null,null,null,null,null,null,null,null,null,null,null,null,null,null,null,null,null,null,null,null,null,null,null,null,null,null,null,null,null,null,null,null,null,null,null,null,null,null,"",null,null,null,null,null,null,null,null,null,null,null,null,null,null,null,null,null,null,null,null,null,null,null,null,null,null,null,null,null,null,null,null,null,null,null,null,null,null,null,null,null,"",null,null,null,null,null,null,null,null,null,null,null,null,null,null,null,null,null,null,null,null,null,null,null,null,null,null,null,null,null,null,null,null,null,null,null,null,null,null,null,null,null,"",null,null,null,null,null,null,null,null,null,null,null,null,null,null,null,null,null,null,null,null,null,null,null,null,null,null,null,null,null,null,null,null,null,null,null,null,null,null,null,null,null,"",null,null,null,null,null,null,null,null,null,null,null,null,null,null,null,null,null,null,null,null,null,null,null,null,null,null,null,null,null,null,null,null,null,null,null,null,null,null,null,null,null,"",null,null,null,null,null,null,null,null,null,null,null,null,null,null,null,null,null,null,null,null,null,null,null,null,null,null,null,null,null,null,null,null,null,null,null,null,null,null,null,null,null,"",null,null,null,null,null,null,null,null,null,null,null,null,null,null,null,null,null,null,null,null,null,null,null,null,null,null,null,null,null,null,null,null,null,null,null,null,null,null,null,null,null,"",null,null,null,null,null,null,null,null,null,null,null,null,null,null,null,null,null,null,null,null,null,null,null,null,null,null,null,null,null,null,null,null,null,null,null,null,null,null,null,null,null,"",null,0,0,0,0,0,0,0,0,0,0,0]
[null,"1900-01-01",null,0,null,null,null,null,null,null,null,null,null,null,null,null,null,null,null,null,null,null,null,null,null,null,null,null,null,null,null,null,null,null,null,null,null,null,null,null,null,null,null,null,null,"",null,null,null,null,null,null,null,null,null,null,null,null,null,null,null,null,null,null,null,null,null,null,null,null,null,null,null,null,null,null,null,null,null,null,null,null,null,null,null,null,null,"",null,null,null,null,null,null,null,null,null,null,null,null,null,null,null,null,null,null,null,null,null,null,null,null,null,null,null,null,null,null,null,null,null,null,null,null,null,null,null,null,null,"",null,null,null,null,null,null,null,null,null,null,null,null,null,null,null,null,null,null,null,null,null,null,null,null,null,null,null,null,null,null,null,null,null,null,null,null,null,null,null,null,null,"",null,null,null,null,null,null,null,null,null,null,null,null,null,null,null,null,null,null,null,null,null,null,null,null,null,null,null,null,null,null,null,null,null,null,null,null,null,null,null,null,null,"",null,null,null,null,null,null,null,null,null,null,null,null,null,null,null,null,null,null,null,null,null,null,null,null,null,null,null,null,null,null,null,null,null,null,null,null,null,null,null,null,null,"",null,null,null,null,null,null,null,null,null,null,null,null,null,null,null,null,null,null,null,null,null,null,null,null,null,null,null,null,null,null,null,null,null,null,null,null,null,null,null,null,null,"",null,null,null,null,null,null,null,null,null,null,null,null,null,null,null,null,null,null,null,null,null,null,null,null,null,null,null,null,null,null,null,null,null,null,null,null,null,null,null,null,null,"",null,null,null,null,null,null,null,null,null,null,null,null,null,null,null,null,null,null,null,null,null,null,null,null,null,null,null,null,null,null,null,null,null,null,null,null,null,null,null,null,null,"",null,null,null,null,null,null,null,null,null,null,null,null,null,null,null,null,null,null,null,null,null,null,null,null,null,null,null,null,null,null,null,null,null,null,null,null,null,null,null,null,null,"",null,0,0,0,0,0,0,0,0,0,0,0]
[null,"1900-01-01",null,0,null,null,null,null,null,null,null,null,null,null,null,null,null,null,null,null,null,null,null,null,null,null,null,null,null,null,null,null,null,null,null,null,null,null,null,null,null,null,null,null,null,"",null,null,null,null,null,null,null,null,null,null,null,null,null,null,null,null,null,null,null,null,null,null,null,null,null,null,null,null,null,null,null,null,null,null,null,null,null,null,null,null,null,"",null,null,null,null,null,null,null,null,null,null,null,null,null,null,null,null,null,null,null,null,null,null,null,null,null,null,null,null,null,null,null,null,null,null,null,null,null,null,null,null,null,"",null,null,null,null,null,null,null,null,null,null,null,null,null,null,null,null,null,null,null,null,null,null,null,null,null,null,null,null,null,null,null,null,null,null,null,null,null,null,null,null,null,"",null,null,null,null,null,null,null,null,null,null,null,null,null,null,null,null,null,null,null,null,null,null,null,null,null,null,null,null,null,null,null,null,null,null,null,null,null,null,null,null,null,"",null,null,null,null,null,null,null,null,null,null,null,null,null,null,null,null,null,null,null,null,null,null,null,null,null,null,null,null,null,null,null,null,null,null,null,null,null,null,null,null,null,"",null,null,null,null,null,null,null,null,null,null,null,null,null,null,null,null,null,null,null,null,null,null,null,null,null,null,null,null,null,null,null,null,null,null,null,null,null,null,null,null,null,"",null,null,null,null,null,null,null,null,null,null,null,null,null,null,null,null,null,null,null,null,null,null,null,null,null,null,null,null,null,null,null,null,null,null,null,null,null,null,null,null,null,"",null,null,null,null,null,null,null,null,null,null,null,null,null,null,null,null,null,null,null,null,null,null,null,null,null,null,null,null,null,null,null,null,null,null,null,null,null,null,null,null,null,"",null,null,null,null,null,null,null,null,null,null,null,null,null,null,null,null,null,null,null,null,null,null,null,null,null,null,null,null,null,null,null,null,null,null,null,null,null,null,null,null,null,"",null,0,0,0,0,0,0,0,0,0,0,0]
[null,"1900-01-01",null,0,null,null,null,null,null,null,null,null,null,null,null,null,null,null,null,null,null,null,null,null,null,null,null,null,null,null,null,null,null,null,null,null,null,null,null,null,null,null,null,null,null,"",null,null,null,null,null,null,null,null,null,null,null,null,null,null,null,null,null,null,null,null,null,null,null,null,null,null,null,null,null,null,null,null,null,null,null,null,null,null,null,null,null,"",null,null,null,null,null,null,null,null,null,null,null,null,null,null,null,null,null,null,null,null,null,null,null,null,null,null,null,null,null,null,null,null,null,null,null,null,null,null,null,null,null,"",null,null,null,null,null,null,null,null,null,null,null,null,null,null,null,null,null,null,null,null,null,null,null,null,null,null,null,null,null,null,null,null,null,null,null,null,null,null,null,null,null,"",null,null,null,null,null,null,null,null,null,null,null,null,null,null,null,null,null,null,null,null,null,null,null,null,null,null,null,null,null,null,null,null,null,null,null,null,null,null,null,null,null,"",null,null,null,null,null,null,null,null,null,null,null,null,null,null,null,null,null,null,null,null,null,null,null,null,null,null,null,null,null,null,null,null,null,null,null,null,null,null,null,null,null,"",null,null,null,null,null,null,null,null,null,null,null,null,null,null,null,null,null,null,null,null,null,null,null,null,null,null,null,null,null,null,null,null,null,null,null,null,null,null,null,null,null,"",null,null,null,null,null,null,null,null,null,null,null,null,null,null,null,null,null,null,null,null,null,null,null,null,null,null,null,null,null,null,null,null,null,null,null,null,null,null,null,null,null,"",null,null,null,null,null,null,null,null,null,null,null,null,null,null,null,null,null,null,null,null,null,null,null,null,null,null,null,null,null,null,null,null,null,null,null,null,null,null,null,null,null,"",null,null,null,null,null,null,null,null,null,null,null,null,null,null,null,null,null,null,null,null,null,null,null,null,null,null,null,null,null,null,null,null,null,null,null,null,null,null,null,null,null,"",null,0,0,0,0,0,0,0,0,0,0,0]
[null,"1900-01-01",null,0,null,null,null,null,null,null,null,null,null,null,null,null,null,null,null,null,null,null,null,null,null,null,null,null,null,null,null,null,null,null,null,null,null,null,null,null,null,null,null,null,null,"",null,null,null,null,null,null,null,null,null,null,null,null,null,null,null,null,null,null,null,null,null,null,null,null,null,null,null,null,null,null,null,null,null,null,null,null,null,null,null,null,null,"",null,null,null,null,null,null,null,null,null,null,null,null,null,null,null,null,null,null,null,null,null,null,null,null,null,null,null,null,null,null,null,null,null,null,null,null,null,null,null,null,null,"",null,null,null,null,null,null,null,null,null,null,null,null,null,null,null,null,null,null,null,null,null,null,null,null,null,null,null,null,null,null,null,null,null,null,null,null,null,null,null,null,null,"",null,null,null,null,null,null,null,null,null,null,null,null,null,null,null,null,null,null,null,null,null,null,null,null,null,null,null,null,null,null,null,null,null,null,null,null,null,null,null,null,null,"",null,null,null,null,null,null,null,null,null,null,null,null,null,null,null,null,null,null,null,null,null,null,null,null,null,null,null,null,null,null,null,null,null,null,null,null,null,null,null,null,null,"",null,null,null,null,null,null,null,null,null,null,null,null,null,null,null,null,null,null,null,null,null,null,null,null,null,null,null,null,null,null,null,null,null,null,null,null,null,null,null,null,null,"",null,null,null,null,null,null,null,null,null,null,null,null,null,null,null,null,null,null,null,null,null,null,null,null,null,null,null,null,null,null,null,null,null,null,null,null,null,null,null,null,null,"",null,null,null,null,null,null,null,null,null,null,null,null,null,null,null,null,null,null,null,null,null,null,null,null,null,null,null,null,null,null,null,null,null,null,null,null,null,null,null,null,null,"",null,null,null,null,null,null,null,null,null,null,null,null,null,null,null,null,null,null,null,null,null,null,null,null,null,null,null,null,null,null,null,null,null,null,null,null,null,null,null,null,null,"",null,0,0,0,0,0,0,0,0,0,0,0]
[null,"1900-01-01",null,0,null,null,null,null,null,null,null,null,null,null,null,null,null,null,null,null,null,null,null,null,null,null,null,null,null,null,null,null,null,null,null,null,null,null,null,null,null,null,null,null,null,"",null,null,null,null,null,null,null,null,null,null,null,null,null,null,null,null,null,null,null,null,null,null,null,null,null,null,null,null,null,null,null,null,null,null,null,null,null,null,null,null,null,"",null,null,null,null,null,null,null,null,null,null,null,null,null,null,null,null,null,null,null,null,null,null,null,null,null,null,null,null,null,null,null,null,null,null,null,null,null,null,null,null,null,"",null,null,null,null,null,null,null,null,null,null,null,null,null,null,null,null,null,null,null,null,null,null,null,null,null,null,null,null,null,null,null,null,null,null,null,null,null,null,null,null,null,"",null,null,null,null,null,null,null,null,null,null,null,null,null,null,null,null,null,null,null,null,null,null,null,null,null,null,null,null,null,null,null,null,null,null,null,null,null,null,null,null,null,"",null,null,null,null,null,null,null,null,null,null,null,null,null,null,null,null,null,null,null,null,null,null,null,null,null,null,null,null,null,null,null,null,null,null,null,null,null,null,null,null,null,"",null,null,null,null,null,null,null,null,null,null,null,null,null,null,null,null,null,null,null,null,null,null,null,null,null,null,null,null,null,null,null,null,null,null,null,null,null,null,null,null,null,"",null,null,null,null,null,null,null,null,null,null,null,null,null,null,null,null,null,null,null,null,null,null,null,null,null,null,null,null,null,null,null,null,null,null,null,null,null,null,null,null,null,"",null,null,null,null,null,null,null,null,null,null,null,null,null,null,null,null,null,null,null,null,null,null,null,null,null,null,null,null,null,null,null,null,null,null,null,null,null,null,null,null,null,"",null,null,null,null,null,null,null,null,null,null,null,null,null,null,null,null,null,null,null,null,null,null,null,null,null,null,null,null,null,null,null,null,null,null,null,null,null,null,null,null,null,"",null,0,0,0,0,0,0,0,0,0,0,0]
[null,"1900-01-01",null,0,null,null,null,null,null,null,null,null,null,null,null,null,null,null,null,null,null,null,null,null,null,null,null,null,null,null,null,null,null,null,null,null,null,null,null,null,null,null,null,null,null,"",null,null,null,null,null,null,null,null,null,null,null,null,null,null,null,null,null,null,null,null,null,null,null,null,null,null,null,null,null,null,null,null,null,null,null,null,null,null,null,null,null,"",null,null,null,null,null,null,null,null,null,null,null,null,null,null,null,null,null,null,null,null,null,null,null,null,null,null,null,null,null,null,null,null,null,null,null,null,null,null,null,null,null,"",null,null,null,null,null,null,null,null,null,null,null,null,null,null,null,null,null,null,null,null,null,null,null,null,null,null,null,null,null,null,null,null,null,null,null,null,null,null,null,null,null,"",null,null,null,null,null,null,null,null,null,null,null,null,null,null,null,null,null,null,null,null,null,null,null,null,null,null,null,null,null,null,null,null,null,null,null,null,null,null,null,null,null,"",null,null,null,null,null,null,null,null,null,null,null,null,null,null,null,null,null,null,null,null,null,null,null,null,null,null,null,null,null,null,null,null,null,null,null,null,null,null,null,null,null,"",null,null,null,null,null,null,null,null,null,null,null,null,null,null,null,null,null,null,null,null,null,null,null,null,null,null,null,null,null,null,null,null,null,null,null,null,null,null,null,null,null,"",null,null,null,null,null,null,null,null,null,null,null,null,null,null,null,null,null,null,null,null,null,null,null,null,null,null,null,null,null,null,null,null,null,null,null,null,null,null,null,null,null,"",null,null,null,null,null,null,null,null,null,null,null,null,null,null,null,null,null,null,null,null,null,null,null,null,null,null,null,null,null,null,null,null,null,null,null,null,null,null,null,null,null,"",null,null,null,null,null,null,null,null,null,null,null,null,null,null,null,null,null,null,null,null,null,null,null,null,null,null,null,null,null,null,null,null,null,null,null,null,null,null,null,null,null,"",null,0,0,0,0,0,0,0,0,0,0,0]
[null,null,{"$f":"IF(ABS(D54-365)>4,\"Must have 365 ± 4 days.\",\"\")","v":"Must have 365 ± 4 days."},{"$f":"SUM(D39:D53)","v":0},null,{"$f":"SUM(F39:F53)","v":0},null,{"$f":"SUM(H39:H53)","v":0},null,{"$f":"SUM(J39:J53)","v":0},null,{"$f":"SUM(L39:L53)","v":0},null,{"$f":"SUM(N39:N53)","v":0},null,{"$f":"SUM(P39:P53)","v":0},null,{"$f":"SUM(R39:R53)","v":0},null,{"$f":"SUM(T39:T53)","v":0},null,{"$f":"SUM(V39:V53)","v":0},null,{"$f":"SUM(X39:X53)","v":0},null,{"$f":"SUM(Z39:Z53)","v":0},null,{"$f":"SUM(AB39:AB53)","v":0},null,{"$f":"SUM(AD39:AD53)","v":0},null,{"$f":"SUM(AF39:AF53)","v":0},null,{"$f":"SUM(AH39:AH53)","v":0},null,{"$f":"SUM(AJ39:AJ53)","v":0},null,{"$f":"SUM(AL39:AL53)","v":0},null,{"$f":"SUM(AN39:AN53)","v":0},null,{"$f":"SUM(AP39:AP53)","v":0},null,{"$f":"SUM(AR39:AR53)","v":0},null,{"$f":"SUM(AT39:AT53)","v":0},null,{"$f":"SUM(AV39:AV53)","v":0},null,{"$f":"SUM(AX39:AX53)","v":0},null,{"$f":"SUM(AZ39:AZ53)","v":0},null,{"$f":"SUM(BB39:BB53)","v":0},null,{"$f":"SUM(BD39:BD53)","v":0},null,{"$f":"SUM(BF39:BF53)","v":0},null,{"$f":"SUM(BH39:BH53)","v":0},null,{"$f":"SUM(BJ39:BJ53)","v":0},null,{"$f":"SUM(BL39:BL53)","v":0},null,{"$f":"SUM(BN39:BN53)","v":0},null,{"$f":"SUM(BP39:BP53)","v":0},null,{"$f":"SUM(BR39:BR53)","v":0},null,{"$f":"SUM(BT39:BT53)","v":0},null,{"$f":"SUM(BV39:BV53)","v":0},null,{"$f":"SUM(BX39:BX53)","v":0},null,{"$f":"SUM(BZ39:BZ53)","v":0},null,{"$f":"SUM(CB39:CB53)","v":0},null,{"$f":"SUM(CD39:CD53)","v":0},null,{"$f":"SUM(CF39:CF53)","v":0},null,{"$f":"SUM(CH39:CH53)","v":0},null,{"$f":"SUM(CJ39:CJ53)","v":0},null,{"$f":"SUM(CL39:CL53)","v":0},null,{"$f":"SUM(CN39:CN53)","v":0},null,{"$f":"SUM(CP39:CP53)","v":0},null,{"$f":"SUM(CR39:CR53)","v":0},null,{"$f":"SUM(CT39:CT53)","v":0},null,{"$f":"SUM(CV39:CV53)","v":0},null,{"$f":"SUM(CX39:CX53)","v":0},null,{"$f":"SUM(CZ39:CZ53)","v":0},null,{"$f":"SUM(DB39:DB53)","v":0},null,{"$f":"SUM(DD39:DD53)","v":0},null,{"$f":"SUM(DF39:DF53)","v":0},null,{"$f":"SUM(DH39:DH53)","v":0},null,{"$f":"SUM(DJ39:DJ53)","v":0},null,{"$f":"SUM(DL39:DL53)","v":0},null,{"$f":"SUM(DN39:DN53)","v":0},null,{"$f":"SUM(DP39:DP53)","v":0},null,{"$f":"SUM(DR39:DR53)","v":0},null,{"$f":"SUM(DT39:DT53)","v":0},null,{"$f":"SUM(DV39:DV53)","v":0},null,{"$f":"SUM(DX39:DX53)","v":0},null,{"$f":"SUM(DZ39:DZ53)","v":0},null,{"$f":"SUM(EB39:EB53)","v":0},null,{"$f":"SUM(ED39:ED53)","v":0},null,{"$f":"SUM(EF39:EF53)","v":0},null,{"$f":"SUM(EH39:EH53)","v":0},null,{"$f":"SUM(EJ39:EJ53)","v":0},null,{"$f":"SUM(EL39:EL53)","v":0},null,{"$f":"SUM(EN39:EN53)","v":0},null,{"$f":"SUM(EP39:EP53)","v":0},null,{"$f":"SUM(ER39:ER53)","v":0},null,{"$f":"SUM(ET39:ET53)","v":0},null,{"$f":"SUM(EV39:EV53)","v":0},null,{"$f":"SUM(EX39:EX53)","v":0},null,{"$f":"SUM(EZ39:EZ53)","v":0},null,{"$f":"SUM(FB39:FB53)","v":0},null,{"$f":"SUM(FD39:FD53)","v":0},null,{"$f":"SUM(FF39:FF53)","v":0},null,{"$f":"SUM(FH39:FH53)","v":0},null,{"$f":"SUM(FJ39:FJ53)","v":0},null,{"$f":"SUM(FL39:FL53)","v":0},null,{"$f":"SUM(FN39:FN53)","v":0},null,{"$f":"SUM(FP39:FP53)","v":0},null,{"$f":"SUM(FR39:FR53)","v":0},null,{"$f":"SUM(FT39:FT53)","v":0},null,{"$f":"SUM(FV39:FV53)","v":0},null,{"$f":"SUM(FX39:FX53)","v":0},null,{"$f":"SUM(FZ39:FZ53)","v":0},null,{"$f":"SUM(GB39:GB53)","v":0},null,{"$f":"SUM(GD39:GD53)","v":0},null,{"$f":"SUM(GF39:GF53)","v":0},null,{"$f":"SUM(GH39:GH53)","v":0},null,{"$f":"SUM(GJ39:GJ53)","v":0},null,{"$f":"SUM(GL39:GL53)","v":0},null,{"$f":"SUM(GN39:GN53)","v":0},null,{"$f":"SUM(GP39:GP53)","v":0},null,{"$f":"SUM(GR39:GR53)","v":0},null,{"$f":"SUM(GT39:GT53)","v":0},null,{"$f":"SUM(GV39:GV53)","v":0},null,{"$f":"SUM(GX39:GX53)","v":0},null,{"$f":"SUM(GZ39:GZ53)","v":0},null,{"$f":"SUM(HB39:HB53)","v":0},null,{"$f":"SUM(HD39:HD53)","v":0},null,{"$f":"SUM(HF39:HF53)","v":0},null,{"$f":"SUM(HH39:HH53)","v":0},null,{"$f":"SUM(HJ39:HJ53)","v":0},null,{"$f":"SUM(HL39:HL53)","v":0},null,{"$f":"SUM(HN39:HN53)","v":0},null,{"$f":"SUM(HP39:HP53)","v":0},null,{"$f":"SUM(HR39:HR53)","v":0},null,{"$f":"SUM(HT39:HT53)","v":0},null,{"$f":"SUM(HV39:HV53)","v":0},null,{"$f":"SUM(HX39:HX53)","v":0},null,{"$f":"SUM(HZ39:HZ53)","v":0},null,{"$f":"SUM(IB39:IB53)","v":0},null,{"$f":"SUM(ID39:ID53)","v":0},null,{"$f":"SUM(IF39:IF53)","v":0},null,{"$f":"SUM(IH39:IH53)","v":0},null,{"$f":"SUM(IJ39:IJ53)","v":0},null,{"$f":"SUM(IL39:IL53)","v":0},null,{"$f":"SUM(IN39:IN53)","v":0},null,{"$f":"SUM(IP39:IP53)","v":0},null,{"$f":"SUM(IR39:IR53)","v":0},null,{"$f":"SUM(IT39:IT53)","v":0},null,{"$f":"SUM(IV39:IV53)","v":0},null,{"$f":"SUM(IX39:IX53)","v":0},null,{"$f":"SUM(IZ39:IZ53)","v":0},null,{"$f":"SUM(JB39:JB53)","v":0},null,{"$f":"SUM(JD39:JD53)","v":0},null,{"$f":"SUM(JF39:JF53)","v":0},null,{"$f":"SUM(JH39:JH53)","v":0},null,{"$f":"SUM(JJ39:JJ53)","v":0},null,{"$f":"SUM(JL39:JL53)","v":0},null,{"$f":"SUM(JN39:JN53)","v":0},null,{"$f":"SUM(JP39:JP53)","v":0},null,{"$f":"SUM(JR39:JR53)","v":0},null,{"$f":"SUM(JT39:JT53)","v":0},null,{"$f":"SUM(JV39:JV53)","v":0},null,{"$f":"SUM(JX39:JX53)","v":0},null,{"$f":"SUM(JZ39:JZ53)","v":0},null,{"$f":"SUM(KB39:KB53)","v":0},null,{"$f":"SUM(KD39:KD53)","v":0},null,{"$f":"SUM(KF39:KF53)","v":0},null,{"$f":"SUM(KH39:KH53)","v":0},null,{"$f":"SUM(KJ39:KJ53)","v":0},null,{"$f":"SUM(KL39:KL53)","v":0},null,{"$f":"SUM(KN39:KN53)","v":0},null,{"$f":"SUM(KP39:KP53)","v":0},null,{"$f":"SUM(KR39:KR53)","v":0},null,{"$f":"SUM(KT39:KT53)","v":0},null,{"$f":"SUM(KV39:KV53)","v":0},null,{"$f":"SUM(KX39:KX53)","v":0},null,{"$f":"SUM(KZ39:KZ53)","v":0},null,{"$f":"SUM(LB39:LB53)","v":0},null,{"$f":"SUM(LD39:LD53)","v":0},null,{"$f":"SUM(LF39:LF53)","v":0},null,{"$f":"SUM(LH39:LH53)","v":0},null,{"$f":"SUM(LJ39:LJ53)","v":0},null,{"$f":"SUM(LL39:LL53)","v":0},null,{"$f":"SUM(LN39:LN53)","v":0},null,{"$f":"SUM(LP39:LP53)","v":0},null,{"$f":"SUM(LR39:LR53)","v":0},null,{"$f":"SUM(LT39:LT53)","v":0},null,{"$f":"SUM(LV39:LV53)","v":0},null,{"$f":"SUM(LX39:LX53)","v":0},null,{"$f":"SUM(LZ39:LZ53)","v":0},null,{"$f":"SUM(MB39:MB53)","v":0},null,{"$f":"SUM(MD39:MD53)","v":0},null,{"$f":"SUM(MF39:MF53)","v":0},null,{"$f":"SUM(MH39:MH53)","v":0},null,{"$f":"SUM(MJ39:MJ53)","v":0},null,{"$f":"SUM(ML39:ML53)","v":0},null,{"$f":"SUM(MN39:MN53)","v":0},null,{"$f":"SUM(MP39:MP53)","v":0},null,{"$f":"SUM(MR39:MR53)","v":0},null,{"$f":"SUM(MT39:MT53)","v":0},null,{"$f":"SUM(MV39:MV53)","v":0},null,{"$f":"SUM(MX39:MX53)","v":0},null,{"$f":"SUM(MZ39:MZ53)","v":0},null,{"$f":"SUM(NB39:NB53)","v":0},null,{"$f":"SUM(ND39:ND53)","v":0},null,{"$f":"SUM(NF39:NF53)","v":0},null,{"$f":"SUM(NH39:NH53)","v":0},null,{"$f":"SUM(NJ39:NJ53)","v":0},null,{"$f":"SUM(NL39:NL53)","v":0},null,{"$f":"SUM(NN39:NN53)","v":0},null,{"$f":"SUM(NP39:NP53)","v":0},null,{"$f":"SUM(NR39:NR53)","v":0},null,{"$f":"SUM(NT39:NT53)","v":0},null,{"$f":"SUM(NV39:NV53)","v":0},null,{"$f":"SUM(NX39:NX53)","v":0},null,{"$f":"SUM(NZ39:NZ53)","v":0},null,{"$f":"SUM(OB39:OB53)","v":0},null,{"$f":"SUM(OD39:OD53)","v":0},null,{"$f":"SUM(OF39:OF53)","v":0},null,{"$f":"SUM(OH39:OH53)","v":0},null,{"$f":"SUM(OJ39:OJ53)","v":0},null,{"$f":"SUM(OL39:OL53)","v":0},null,{"$f":"SUM(ON39:ON53)","v":0},null,{"$f":"SUM(OP39:OP53)","v":0},null,{"$f":"SUM(OR39:OR53)","v":0},null,{"$f":"SUM(OT39:OT53)","v":0},null,{"$f":"SUM(OV39:OV53)","v":0},null,{"$f":"SUM(OX39:OX53)","v":0},null,{"$f":"SUM(OZ39:OZ53)","v":0},null,{"$f":"SUM(PB39:PB53)","v":0},null,{"$f":"SUM(PD39:PD53)","v":0},null,{"$f":"SUM(PF39:PF53)","v":0},null,{"$f":"SUM(PH39:PH53)","v":0},null,{"$f":"SUM(PJ39:PJ53)","v":0},{"$f":"SUM(PK39:PK53)","v":0},{"$f":"SUM(PL39:PL53)","v":0},{"$f":"SUM(PM39:PM53)","v":0},0,0,0,0,0,{"$f":"SUM(PS39:PS53)","v":0},{"$f":"SUM(PT39:PT53)","v":0}]
[]
[null,null,null,null,null,"Total Annual Gas Cost",null,"Total Annual Gas Cost",null,"Total Annual Gas Cost",null,"Total Annual Gas Cost",null,"Total Annual Gas Cost",null,"Total Annual Gas Cost",null,"Total Annual Gas Cost",null,"Total Annual Gas Cost",null,"Total Annual Gas Cost",null,"Total Annual Gas Cost",null,"Total Annual Gas Cost",null,"Total Annual Gas Cost",null,"Total Annual Gas Cost",null,"Total Annual Gas Cost",null,"Total Annual Gas Cost",null,"Total Annual Gas Cost",null,"Total Annual Gas Cost",null,"Total Annual Gas Cost",null,"Total Annual Gas Cost",null,"Total Annual Gas Cost",null,"Average Annual Gas  Cost",null,"Total Annual Gas Cost",null,"Total Annual Gas Cost",null,"Total Annual Gas Cost",null,"Total Annual Gas Cost",null,"Total Annual Gas Cost",null,"Total Annual Gas Cost",null,"Total Annual Gas Cost",null,"Total Annual Gas Cost",null,"Total Annual Gas Cost",null,"Total Annual Gas Cost",null,"Total Annual Gas Cost",null,"Total Annual Gas Cost",null,"Total Annual Gas Cost",null,"Total Annual Gas Cost",null,"Total Annual Gas Cost",null,"Total Annual Gas Cost",null,"Total Annual Gas Cost",null,"Total Annual Gas Cost",null,"Total Annual Gas Cost",null,"Total Annual Gas Cost",null,"Average Annual Gas  Cost",null,"Total Annual Gas Cost",null,"Total Annual Gas Cost",null,"Total Annual Gas Cost",null,"Total Annual Gas Cost",null,"Total Annual Gas Cost",null,"Total Annual Gas Cost",null,"Total Annual Gas Cost",null,"Total Annual Gas Cost",null,"Total Annual Gas Cost",null,"Total Annual Gas Cost",null,"Total Annual Gas Cost",null,"Total Annual Gas Cost",null,"Total Annual Gas Cost",null,"Total Annual Gas Cost",null,"Total Annual Gas Cost",null,"Total Annual Gas Cost",null,"Total Annual Gas Cost",null,"Total Annual Gas Cost",null,"Total Annual Gas Cost",null,"Total Annual Gas Cost",null,"Average Annual Gas  Cost",null,"Total Annual Gas Cost",null,"Total Annual Gas Cost",null,"Total Annual Gas Cost",null,"Total Annual Gas Cost",null,"Total Annual Gas Cost",null,"Total Annual Gas Cost",null,"Total Annual Gas Cost",null,"Total Annual Gas Cost",null,"Total Annual Gas Cost",null,"Total Annual Gas Cost",null,"Total Annual Gas Cost",null,"Total Annual Gas Cost",null,"Total Annual Gas Cost",null,"Total Annual Gas Cost",null,"Total Annual Gas Cost",null,"Total Annual Gas Cost",null,"Total Annual Gas Cost",null,"Total Annual Gas Cost",null,"Total Annual Gas Cost",null,"Total Annual Gas Cost",null,"Average Annual Gas  Cost",null,"Total Annual Gas Cost",null,"Total Annual Gas Cost",null,"Total Annual Gas Cost",null,"Total Annual Gas Cost",null,"Total Annual Gas Cost",null,"Total Annual Gas Cost",null,"Total Annual Gas Cost",null,"Total Annual Gas Cost",null,"Total Annual Gas Cost",null,"Total Annual Gas Cost",null,"Total Annual Gas Cost",null,"Total Annual Gas Cost",null,"Total Annual Gas Cost",null,"Total Annual Gas Cost",null,"Total Annual Gas Cost",null,"Total Annual Gas Cost",null,"Total Annual Gas Cost",null,"Total Annual Gas Cost",null,"Total Annual Gas Cost",null,"Total Annual Gas Cost",null,"Average Annual Gas  Cost",null,"Total Annual Gas Cost",null,"Total Annual Gas Cost",null,"Total Annual Gas Cost",null,"Total Annual Gas Cost",null,"Total Annual Gas Cost",null,"Total Annual Gas Cost",null,"Total Annual Gas Cost",null,"Total Annual Gas Cost",null,"Total Annual Gas Cost",null,"Total Annual Gas Cost",null,"Total Annual Gas Cost",null,"Total Annual Gas Cost",null,"Total Annual Gas Cost",null,"Total Annual Gas Cost",null,"Total Annual Gas Cost",null,"Total Annual Gas Cost",null,"Total Annual Gas Cost",null,"Total Annual Gas Cost",null,"Total Annual Gas Cost",null,"Total Annual Gas Cost",null,"Average Annual Gas  Cost",null,"Total Annual Gas Cost",null,"Total Annual Gas Cost",null,"Total Annual Gas Cost",null,"Total Annual Gas Cost",null,"Total Annual Gas Cost",null,"Total Annual Gas Cost",null,"Total Annual Gas Cost",null,"Total Annual Gas Cost",null,"Total Annual Gas Cost",null,"Total Annual Gas Cost",null,"Total Annual Gas Cost",null,"Total Annual Gas Cost",null,"Total Annual Gas Cost",null,"Total Annual Gas Cost",null,"Total Annual Gas Cost",null,"Total Annual Gas Cost",null,"Total Annual Gas Cost",null,"Total Annual Gas Cost",null,"Total Annual Gas Cost",null,"Total Annual Gas Cost",null,"Average Annual Gas  Cost",null,"Total Annual Gas Cost",null,"Total Annual Gas Cost",null,"Total Annual Gas Cost",null,"Total Annual Gas Cost",null,"Total Annual Gas Cost",null,"Total Annual Gas Cost",null,"Total Annual Gas Cost",null,"Total Annual Gas Cost",null,"Total Annual Gas Cost",null,"Total Annual Gas Cost",null,"Total Annual Gas Cost",null,"Total Annual Gas Cost",null,"Total Annual Gas Cost",null,"Total Annual Gas Cost",null,"Total Annual Gas Cost",null,"Total Annual Gas Cost",null,"Total Annual Gas Cost",null,"Total Annual Gas Cost",null,"Total Annual Gas Cost",null,"Total Annual Gas Cost",null,"Average Annual Gas  Cost",null,"Total Annual Gas Cost",null,"Total Annual Gas Cost",null,"Total Annual Gas Cost",null,"Total Annual Gas Cost",null,"Total Annual Gas Cost",null,"Total Annual Gas Cost",null,"Total Annual Gas Cost",null,"Total Annual Gas Cost",null,"Total Annual Gas Cost",null,"Total Annual Gas Cost",null,"Total Annual Gas Cost",null,"Total Annual Gas Cost",null,"Total Annual Gas Cost",null,"Total Annual Gas Cost",null,"Total Annual Gas Cost",null,"Total Annual Gas Cost",null,"Total Annual Gas Cost",null,"Total Annual Gas Cost",null,"Total Annual Gas Cost",null,"Total Annual Gas Cost",null,"Average Annual Gas  Cost",null,"Total Annual Gas Cost",null,"Total Annual Gas Cost",null,"Total Annual Gas Cost",null,"Total Annual Gas Cost",null,"Total Annual Gas Cost",null,"Total Annual Gas Cost",null,"Total Annual Gas Cost",null,"Total Annual Gas Cost",null,"Total Annual Gas Cost",null,"Total Annual Gas Cost",null,"Total Annual Gas Cost",null,"Total Annual Gas Cost",null,"Total Annual Gas Cost",null,"Total Annual Gas Cost",null,"Total Annual Gas Cost",null,"Total Annual Gas Cost",null,"Total Annual Gas Cost",null,"Total Annual Gas Cost",null,"Total Annual Gas Cost",null,"Total Annual Gas Cost",null,"Average Annual Gas  Cost",null,"Average Annual Gas  Cost","Average Annual Gas  Cost","Average Annual Gas  Cost","Average Annual Gas  Cost","Average Annual Gas  Cost","Average Annual Gas  Cost","Average Annual Gas  Cost","Average Annual Gas  Cost","Average Annual Gas  Cost","Average Annual Gas  Cost","Total In-Unit Annual Gas  Cost"]
[null,null,null,null,null,null,null,null,null,null,null,null,null,null,null,null,null,null,null,null,null,null,null,null,null,null,null,null,null,null,null,null,null,null,null,null,null,null,null,null,null,null,null,null,null,{"$f":"IF(F57>0,AVERAGE(F57:AR57),0)","v":0},null,null,null,null,null,null,null,null,null,null,null,null,null,null,null,null,null,null,null,null,null,null,null,null,null,null,null,null,null,null,null,null,null,null,null,null,null,null,null,null,null,{"$f":"IF(AV57>0,AVERAGE(AV57:CH57),0)","v":0},null,null,null,null,null,null,null,null,null,null,null,null,null,null,null,null,null,null,null,null,null,null,null,null,null,null,null,null,null,null,null,null,null,null,null,null,null,null,null,null,null,{"$f":"IF(CL57>0,AVERAGE(CN57:DY57),0)","v":0},null,null,null,null,null,null,null,null,null,null,null,null,null,null,null,null,null,null,null,null,null,null,null,null,null,null,null,null,null,null,null,null,null,null,null,null,null,null,null,null,null,{"$f":"IF(EB57>0,AVERAGE(EB57:FN57),0)","v":0},null,null,null,null,null,null,null,null,null,null,null,null,null,null,null,null,null,null,null,null,null,null,null,null,null,null,null,null,null,null,null,null,null,null,null,null,null,null,null,null,null,{"$f":"IF(FR57>0,AVERAGE(FR57:HD57),0)","v":0},null,null,null,null,null,null,null,null,null,null,null,null,null,null,null,null,null,null,null,null,null,null,null,null,null,null,null,null,null,null,null,null,null,null,null,null,null,null,null,null,null,{"$f":"IF(HH57>0,AVERAGE(HH57:IT57),0)","v":0},null,null,null,null,null,null,null,null,null,null,null,null,null,null,null,null,null,null,null,null,null,null,null,null,null,null,null,null,null,null,null,null,null,null,null,null,null,null,null,null,null,{"$f":"IF(IX57>0,AVERAGE(IX57:KJ57),0)","v":0},null,null,null,null,null,null,null,null,null,null,null,null,null,null,null,null,null,null,null,null,null,null,null,null,null,null,null,null,null,null,null,null,null,null,null,null,null,null,null,null,null,{"$f":"IF(KN57>0,AVERAGE(KN57:LZ57),0)","v":0},null,null,null,null,null,null,null,null,null,null,null,null,null,null,null,null,null,null,null,null,null,null,null,null,null,null,null,null,null,null,null,null,null,null,null,null,null,null,null,null,null,{"$f":"IF(MD57>0,AVERAGE(MD57:NP57),0)","v":0},null,null,null,null,null,null,null,null,null,null,null,null,null,null,null,null,null,null,null,null,null,null,null,null,null,null,null,null,null,null,null,null,null,null,null,null,null,null,null,null,null,{"$f":"IF(NT57>0,AVERAGE(NT57:PF57),0)","v":0},null,{"$f":"AT57","v":0},{"$f":"CJ57","v":0},{"$f":"DZ57","v":0},{"$f":"FP57","v":0},{"$f":"HF57","v":0},{"$f":"IV57","v":0},{"$f":"KL57","v":0},{"$f":"MB57","v":0},{"$f":"NR57","v":0},{"$f":"PH57","v":0},{"$f":"SUMPRODUCT($PJ$35:$PS$35,PJ57:PS57)","v":0}]
[]
[null,"Notes:",null,null,null,{"$f":"PJ9","v":"Unit Type 1"},null,null,null,null,null,null,null,null,null,null,null,null,null,null,null,null,null,null,null,null,null,null,null,null,null,null,null,null,null,null,null,null,null,null,null,null,null,null,null,null,null,{"$f":"PK9","v":"Unit Type 2"},null,null,null,null,null,null,null,null,null,null,null,null,null,null,null,null,null,null,null,null,null,null,null,null,null,null,null,null,null,null,null,null,null,null,null,null,null,null,null,null,null,{"$f":"PL9","v":"Unit Type 3"},null,null,null,null,null,null,null,null,null,null,null,null,null,null,null,null,null,null,null,null,null,null,null,null,null,null,null,null,null,null,null,null,null,null,null,null,null,null,null,null,null,{"$f":"PM9","v":"Unit Type 4"},null,null,null,null,null,null,null,null,null,null,null,null,null,null,null,null,null,null,null,null,null,null,null,null,null,null,null,null,null,null,null,null,null,null,null,null,null,null,null,null,null,{"$f":"PN9","v":"Unit Type 5"},null,null,null,null,null,null,null,null,null,null,null,null,null,null,null,null,null,null,null,null,null,null,null,null,null,null,null,null,null,null,null,null,null,null,null,null,null,null,null,null,null,{"$f":"PO9","v":"Unit Type 6"},null,null,null,null,null,null,null,null,null,null,null,null,null,null,null,null,null,null,null,null,null,null,null,null,null,null,null,null,null,null,null,null,null,null,null,null,null,null,null,null,null,{"$f":"PP9","v":"Unit Type 7"},null,null,null,null,null,null,null,null,null,null,null,null,null,null,null,null,null,null,null,null,null,null,null,null,null,null,null,null,null,null,null,null,null,null,null,null,null,null,null,null,null,{"$f":"PQ9","v":"Unit Type 8"},null,null,null,null,null,null,null,null,null,null,null,null,null,null,null,null,null,null,null,null,null,null,null,null,null,null,null,null,null,null,null,null,null,null,null,null,null,null,null,null,null,{"$f":"PR9","v":"Unit Type 9"},null,null,null,null,null,null,null,null,null,null,null,null,null,null,null,null,null,null,null,null,null,null,null,null,null,null,null,null,null,null,null,null,null,null,null,null,null,null,null,null,null,{"$f":"PS9","v":"Unit Type 10"},null,null,null,null,null,null,null,null,null,null,null,null,null,null,null,null,null,null,null,null,null,null,null,null,null,null,null,null,null,null,null,null,null,null,null,null,null,null,null,null,null,"Notes:"]
[null,null,null,null,null,"Pre-Construction Unit #","Post-Construction Unit #","Pre- Construction Use ","Post-Construction Use","Difference","% Difference",null,null,null,null,null,null,null,null,null,null,null,null,null,null,null,null,null,null,null,null,null,null,null,null,null,null,null,null,null,null,null,null,null,null,null,null,"Pre-Construction Unit #","Post-Construction Unit #","Pre- Construction Use ","Post-Construction Use","Difference","% Difference",null,null,null,null,null,null,null,null,null,null,null,null,null,null,null,null,null,null,null,null,null,null,null,null,null,null,null,null,null,null,null,null,null,null,null,null,"Pre-Construction Unit #","Post-Construction Unit #","Pre- Construction Use ","Post-Construction Use","Difference","% Difference",null,null,null,null,null,null,null,null,null,null,null,null,null,null,null,null,null,null,null,null,null,null,null,null,null,null,null,null,null,null,null,null,null,null,null,null,"Pre-Construction Unit #","Post-Construction Unit #","Pre- Construction Use ","Post-Construction Use","Difference","% Difference",null,null,null,null,null,null,null,null,null,null,null,null,null,null,null,null,null,null,null,null,null,null,null,null,null,null,null,null,null,null,null,null,null,null,null,null,"Pre-Construction Unit #","Post-Construction Unit #","Pre- Construction Use ","Post-Construction Use","Difference","% Difference",null,null,null,null,null,null,null,null,null,null,null,null,null,null,null,null,null,null,null,null,null,null,null,null,null,null,null,null,null,null,null,null,null,null,null,null,"Pre-Construction Unit #","Post-Construction Unit #","Pre- Construction Use ","Post-Construction Use","Difference","% Difference",null,null,null,null,null,null,null,null,null,null,null,null,null,null,null,null,null,null,null,null,null,null,null,null,null,null,null,null,null,null,null,null,null,null,null,null,"Pre-Construction Unit #","Post-Construction Unit #","Pre- Construction Use ","Post-Construction Use","Difference","% Difference",null,null,null,null,null,null,null,null,null,null,null,null,null,null,null,null,null,null,null,null,null,null,null,null,null,null,null,null,null,null,null,null,null,null,null,null,"Pre-Construction Unit #","Post-Construction Unit #","Pre- Construction Use ","Post-Construction Use","Difference","% Difference",null,null,null,null,null,null,null,null,null,null,null,null,null,null,null,null,null,null,null,null,null,null,null,null,null,null,null,null,null,null,null,null,null,null,null,null,"Pre-Construction Unit #","Post-Construction Unit #","Pre- Construction Use ","Post-Construction Use","Difference","% Difference",null,null,null,null,null,null,null,null,null,null,null,null,null,null,null,null,null,null,null,null,null,null,null,null,null,null,null,null,null,null,null,null,null,null,null,null,"Pre-Construction Unit #","Post-Construction Unit #","Pre- Construction Use ","Post-Construction Use","Difference","% Difference"]
[null,null,null,null,null,{"$f":"F7","v":0},{"$f":"F34","v":0},{"$f":"F27","v":0},{"$f":"F54","v":0},{"$f":"I61-H61","v":0},{"$f":"IF(H61>0,J61/H61,\"\")","v":""},null,null,null,null,null,null,null,null,null,null,null,null,null,null,null,null,null,null,null,null,null,null,null,null,null,null,null,null,null,null,null,null,null,null,null,null,{"$f":"AV7","v":0},{"$f":"AV34","v":0},{"$f":"AV27","v":0},{"$f":"AV54","v":0},{"$f":"AY61-AX61","v":0},{"$f":"IF(AX61>0,AZ61/AX61,\"\")","v":""},null,null,null,null,null,null,null,null,null,null,null,null,null,null,null,null,null,null,null,null,null,null,null,null,null,null,null,null,null,null,null,null,null,null,null,null,{"$f":"CL7","v":0},{"$f":"CL34","v":0},{"$f":"CL27","v":0},{"$f":"CL54","v":0},{"$f":"CO61-CN61","v":0},{"$f":"IF(CN61>0,CP61/CN61,\"\")","v":""},null,null,null,null,null,null,null,null,null,null,null,null,null,null,null,null,null,null,null,null,null,null,null,null,null,null,null,null,null,null,null,null,null,null,null,null,{"$f":"EB7","v":0},{"$f":"EB34","v":0},{"$f":"EB27","v":0},{"$f":"EB54","v":0},{"$f":"EE61-ED61","v":0},{"$f":"IF(ED61>0,EF61/ED61,\"\")","v":""},null,null,null,null,null,null,null,null,null,null,null,null,null,null,null,null,null,null,null,null,null,null,null,null,null,null,null,null,null,null,null,null,null,null,null,null,{"$f":"FR7","v":0},{"$f":"FR34","v":0},{"$f":"FR27","v":0},{"$f":"FR54","v":0},{"$f":"FU61-FT61","v":0},{"$f":"IF(FT61>0,FV61/FT61,\"\")","v":""},null,null,null,null,null,null,null,null,null,null,null,null,null,null,null,null,null,null,null,null,null,null,null,null,null,null,null,null,null,null,null,null,null,null,null,null,{"$f":"HH7","v":0},{"$f":"HH34","v":0},{"$f":"HH27","v":0},{"$f":"HH54","v":0},{"$f":"HK61-HJ61","v":0},{"$f":"IF(HJ61>0,HL61/HJ61,\"\")","v":""},null,null,null,null,null,null,null,null,null,null,null,null,null,null,null,null,null,null,null,null,null,null,null,null,null,null,null,null,null,null,null,null,null,null,null,null,{"$f":"IX7","v":0},{"$f":"IX34","v":0},{"$f":"IX27","v":0},{"$f":"IX54","v":0},{"$f":"JA61-IZ61","v":0},{"$f":"IF(IZ61>0,JB61/IZ61,\"\")","v":""},null,null,null,null,null,null,null,null,null,null,null,null,null,null,null,null,null,null,null,null,null,null,null,null,null,null,null,null,null,null,null,null,null,null,null,null,{"$f":"KN7","v":0},{"$f":"KN34","v":0},{"$f":"KN27","v":0},{"$f":"KN54","v":0},{"$f":"KQ61-KP61","v":0},{"$f":"IF(KP61>0,KR61/KP61,\"\")","v":""},null,null,null,null,null,null,null,null,null,null,null,null,null,null,null,null,null,null,null,null,null,null,null,null,null,null,null,null,null,null,null,null,null,null,null,null,{"$f":"MD7","v":0},{"$f":"MD34","v":0},{"$f":"MD27","v":0},{"$f":"MD54","v":0},{"$f":"MG61-MF61","v":0},{"$f":"IF(MF61>0,MH61/MF61,\"\")","v":""},null,null,null,null,null,null,null,null,null,null,null,null,null,null,null,null,null,null,null,null,null,null,null,null,null,null,null,null,null,null,null,null,null,null,null,null,{"$f":"NT7","v":0},{"$f":"NT34","v":0},{"$f":"NT27","v":0},{"$f":"NT54","v":0},{"$f":"NW61-NV61","v":0},{"$f":"IF(NV61>0,NX61/NV61,\"\")","v":""}]
[null,null,null,null,null,{"$f":"H7","v":0},{"$f":"H34","v":0},{"$f":"H27","v":0},{"$f":"H54","v":0},0,"",null,null,null,null,null,null,null,null,null,null,null,null,null,null,null,null,null,null,null,null,null,null,null,null,null,null,null,null,null,null,null,null,null,null,null,null,{"$f":"AX7","v":0},{"$f":"AX34","v":0},{"$f":"AX27","v":0},{"$f":"AX54","v":0},0,"",null,null,null,null,null,null,null,null,null,null,null,null,null,null,null,null,null,null,null,null,null,null,null,null,null,null,null,null,null,null,null,null,null,null,null,null,{"$f":"CN7","v":0},{"$f":"CN34","v":0},{"$f":"CN27","v":0},{"$f":"CN54","v":0},0,"",null,null,null,null,null,null,null,null,null,null,null,null,null,null,null,null,null,null,null,null,null,null,null,null,null,null,null,null,null,null,null,null,null,null,null,null,{"$f":"ED7","v":0},{"$f":"ED34","v":0},{"$f":"ED27","v":0},{"$f":"ED54","v":0},0,"",null,null,null,null,null,null,null,null,null,null,null,null,null,null,null,null,null,null,null,null,null,null,null,null,null,null,null,null,null,null,null,null,null,null,null,null,{"$f":"FT7","v":0},{"$f":"FT34","v":0},{"$f":"FT27","v":0},{"$f":"FT54","v":0},0,"",null,null,null,null,null,null,null,null,null,null,null,null,null,null,null,null,null,null,null,null,null,null,null,null,null,null,null,null,null,null,null,null,null,null,null,null,{"$f":"HJ7","v":0},{"$f":"HJ34","v":0},{"$f":"HJ27","v":0},{"$f":"HJ54","v":0},0,"",null,null,null,null,null,null,null,null,null,null,null,null,null,null,null,null,null,null,null,null,null,null,null,null,null,null,null,null,null,null,null,null,null,null,null,null,{"$f":"IZ7","v":0},{"$f":"IZ34","v":0},{"$f":"IZ27","v":0},{"$f":"IZ54","v":0},0,"",null,null,null,null,null,null,null,null,null,null,null,null,null,null,null,null,null,null,null,null,null,null,null,null,null,null,null,null,null,null,null,null,null,null,null,null,{"$f":"KP7","v":0},{"$f":"KP34","v":0},{"$f":"KP27","v":0},{"$f":"KP54","v":0},0,"",null,null,null,null,null,null,null,null,null,null,null,null,null,null,null,null,null,null,null,null,null,null,null,null,null,null,null,null,null,null,null,null,null,null,null,null,{"$f":"MF7","v":0},{"$f":"MF34","v":0},{"$f":"MF27","v":0},{"$f":"MF54","v":0},0,"",null,null,null,null,null,null,null,null,null,null,null,null,null,null,null,null,null,null,null,null,null,null,null,null,null,null,null,null,null,null,null,null,null,null,null,null,{"$f":"NV7","v":0},{"$f":"NV34","v":0},{"$f":"NV27","v":0},{"$f":"NV54","v":0},0,""]
[null,null,null,null,null,{"$f":"J7","v":0},{"$f":"J34","v":0},{"$f":"J27","v":0},{"$f":"J54","v":0},0,"",null,null,null,null,null,null,null,null,null,null,null,null,null,null,null,null,null,null,null,null,null,null,null,null,null,null,null,null,null,null,null,null,null,null,null,null,{"$f":"AZ7","v":0},{"$f":"AZ34","v":0},{"$f":"AZ27","v":0},{"$f":"AZ54","v":0},0,"",null,null,null,null,null,null,null,null,null,null,null,null,null,null,null,null,null,null,null,null,null,null,null,null,null,null,null,null,null,null,null,null,null,null,null,null,{"$f":"CP7","v":0},{"$f":"CP34","v":0},{"$f":"CP27","v":0},{"$f":"CP54","v":0},0,"",null,null,null,null,null,null,null,null,null,null,null,null,null,null,null,null,null,null,null,null,null,null,null,null,null,null,null,null,null,null,null,null,null,null,null,null,{"$f":"EF7","v":0},{"$f":"EF34","v":0},{"$f":"EF27","v":0},{"$f":"EF54","v":0},0,"",null,null,null,null,null,null,null,null,null,null,null,null,null,null,null,null,null,null,null,null,null,null,null,null,null,null,null,null,null,null,null,null,null,null,null,null,{"$f":"FV7","v":0},{"$f":"FV34","v":0},{"$f":"FV27","v":0},{"$f":"FV54","v":0},0,"",null,null,null,null,null,null,null,null,null,null,null,null,null,null,null,null,null,null,null,null,null,null,null,null,null,null,null,null,null,null,null,null,null,null,null,null,{"$f":"HL7","v":0},{"$f":"HL34","v":0},{"$f":"HL27","v":0},{"$f":"HL54","v":0},0,"",null,null,null,null,null,null,null,null,null,null,null,null,null,null,null,null,null,null,null,null,null,null,null,null,null,null,null,null,null,null,null,null,null,null,null,null,{"$f":"JB7","v":0},{"$f":"JB34","v":0},{"$f":"JB27","v":0},{"$f":"JB54","v":0},0,"",null,null,null,null,null,null,null,null,null,null,null,null,null,null,null,null,null,null,null,null,null,null,null,null,null,null,null,null,null,null,null,null,null,null,null,null,{"$f":"KR7","v":0},{"$f":"KR34","v":0},{"$f":"KR27","v":0},{"$f":"KR54","v":0},0,"",null,null,null,null,null,null,null,null,null,null,null,null,null,null,null,null,null,null,null,null,null,null,null,null,null,null,null,null,null,null,null,null,null,null,null,null,{"$f":"MH7","v":0},{"$f":"MH34","v":0},{"$f":"MH27","v":0},{"$f":"MH54","v":0},0,"",null,null,null,null,null,null,null,null,null,null,null,null,null,null,null,null,null,null,null,null,null,null,null,null,null,null,null,null,null,null,null,null,null,null,null,null,{"$f":"NX7","v":0},{"$f":"NX34","v":0},{"$f":"NX27","v":0},{"$f":"NX54","v":0},0,""]
[null,null,null,null,null,{"$f":"L7","v":0},{"$f":"L34","v":0},{"$f":"L27","v":0},{"$f":"L54","v":0},0,"",null,null,null,null,null,null,null,null,null,null,null,null,null,null,null,null,null,null,null,null,null,null,null,null,null,null,null,null,null,null,null,null,null,null,null,null,{"$f":"BB7","v":0},{"$f":"BB34","v":0},{"$f":"BB27","v":0},{"$f":"BB54","v":0},0,"",null,null,null,null,null,null,null,null,null,null,null,null,null,null,null,null,null,null,null,null,null,null,null,null,null,null,null,null,null,null,null,null,null,null,null,null,{"$f":"CR7","v":0},{"$f":"CR34","v":0},{"$f":"CR27","v":0},{"$f":"CR54","v":0},0,"",null,null,null,null,null,null,null,null,null,null,null,null,null,null,null,null,null,null,null,null,null,null,null,null,null,null,null,null,null,null,null,null,null,null,null,null,{"$f":"EH7","v":0},{"$f":"EH34","v":0},{"$f":"EH27","v":0},{"$f":"EH54","v":0},0,"",null,null,null,null,null,null,null,null,null,null,null,null,null,null,null,null,null,null,null,null,null,null,null,null,null,null,null,null,null,null,null,null,null,null,null,null,{"$f":"FX7","v":0},{"$f":"FX34","v":0},{"$f":"FX27","v":0},{"$f":"FX54","v":0},0,"",null,null,null,null,null,null,null,null,null,null,null,null,null,null,null,null,null,null,null,null,null,null,null,null,null,null,null,null,null,null,null,null,null,null,null,null,{"$f":"HN7","v":0},{"$f":"HN34","v":0},{"$f":"HN27","v":0},{"$f":"HN54","v":0},0,"",null,null,null,null,null,null,null,null,null,null,null,null,null,null,null,null,null,null,null,null,null,null,null,null,null,null,null,null,null,null,null,null,null,null,null,null,{"$f":"JD7","v":0},{"$f":"JD34","v":0},{"$f":"JD27","v":0},{"$f":"JD54","v":0},0,"",null,null,null,null,null,null,null,null,null,null,null,null,null,null,null,null,null,null,null,null,null,null,null,null,null,null,null,null,null,null,null,null,null,null,null,null,{"$f":"KT7","v":0},{"$f":"KT34","v":0},{"$f":"KT27","v":0},{"$f":"KT54","v":0},0,"",null,null,null,null,null,null,null,null,null,null,null,null,null,null,null,null,null,null,null,null,null,null,null,null,null,null,null,null,null,null,null,null,null,null,null,null,{"$f":"MJ7","v":0},{"$f":"MJ34","v":0},{"$f":"MJ27","v":0},{"$f":"MJ54","v":0},0,"",null,null,null,null,null,null,null,null,null,null,null,null,null,null,null,null,null,null,null,null,null,null,null,null,null,null,null,null,null,null,null,null,null,null,null,null,{"$f":"NZ7","v":0},{"$f":"NZ34","v":0},{"$f":"NZ27","v":0},{"$f":"NZ54","v":0},0,""]
[null,null,null,null,null,{"$f":"N7","v":0},{"$f":"N34","v":0},{"$f":"N27","v":0},{"$f":"N54","v":0},0,"",null,null,null,null,null,null,null,null,null,null,null,null,null,null,null,null,null,null,null,null,null,null,null,null,null,null,null,null,null,null,null,null,null,null,null,null,{"$f":"BD7","v":0},{"$f":"BD34","v":0},{"$f":"BD27","v":0},{"$f":"BD54","v":0},0,"",null,null,null,null,null,null,null,null,null,null,null,null,null,null,null,null,null,null,null,null,null,null,null,null,null,null,null,null,null,null,null,null,null,null,null,null,{"$f":"CT7","v":0},{"$f":"CT34","v":0},{"$f":"CT27","v":0},{"$f":"CT54","v":0},0,"",null,null,null,null,null,null,null,null,null,null,null,null,null,null,null,null,null,null,null,null,null,null,null,null,null,null,null,null,null,null,null,null,null,null,null,null,{"$f":"EJ7","v":0},{"$f":"EJ34","v":0},{"$f":"EJ27","v":0},{"$f":"EJ54","v":0},0,"",null,null,null,null,null,null,null,null,null,null,null,null,null,null,null,null,null,null,null,null,null,null,null,null,null,null,null,null,null,null,null,null,null,null,null,null,{"$f":"FZ7","v":0},{"$f":"FZ34","v":0},{"$f":"FZ27","v":0},{"$f":"FZ54","v":0},0,"",null,null,null,null,null,null,null,null,null,null,null,null,null,null,null,null,null,null,null,null,null,null,null,null,null,null,null,null,null,null,null,null,null,null,null,null,{"$f":"HP7","v":0},{"$f":"HP34","v":0},{"$f":"HP27","v":0},{"$f":"HP54","v":0},0,"",null,null,null,null,null,null,null,null,null,null,null,null,null,null,null,null,null,null,null,null,null,null,null,null,null,null,null,null,null,null,null,null,null,null,null,null,{"$f":"JF7","v":0},{"$f":"JF34","v":0},{"$f":"JF27","v":0},{"$f":"JF54","v":0},0,"",null,null,null,null,null,null,null,null,null,null,null,null,null,null,null,null,null,null,null,null,null,null,null,null,null,null,null,null,null,null,null,null,null,null,null,null,{"$f":"KV7","v":0},{"$f":"KV34","v":0},{"$f":"KV27","v":0},{"$f":"KV54","v":0},0,"",null,null,null,null,null,null,null,null,null,null,null,null,null,null,null,null,null,null,null,null,null,null,null,null,null,null,null,null,null,null,null,null,null,null,null,null,{"$f":"ML7","v":0},{"$f":"ML34","v":0},{"$f":"ML27","v":0},{"$f":"ML54","v":0},0,"",null,null,null,null,null,null,null,null,null,null,null,null,null,null,null,null,null,null,null,null,null,null,null,null,null,null,null,null,null,null,null,null,null,null,null,null,{"$f":"OB7","v":0},{"$f":"OB34","v":0},{"$f":"OB27","v":0},{"$f":"OB54","v":0},0,""]
[null,null,null,null,null,{"$f":"P7","v":0},{"$f":"P34","v":0},{"$f":"P27","v":0},{"$f":"P54","v":0},0,"",null,null,null,null,null,null,null,null,null,null,null,null,null,null,null,null,null,null,null,null,null,null,null,null,null,null,null,null,null,null,null,null,null,null,null,null,{"$f":"BF7","v":0},{"$f":"BF34","v":0},{"$f":"BF27","v":0},{"$f":"BF54","v":0},0,"",null,null,null,null,null,null,null,null,null,null,null,null,null,null,null,null,null,null,null,null,null,null,null,null,null,null,null,null,null,null,null,null,null,null,null,null,{"$f":"CV7","v":0},{"$f":"CV34","v":0},{"$f":"CV27","v":0},{"$f":"CV54","v":0},0,"",null,null,null,null,null,null,null,null,null,null,null,null,null,null,null,null,null,null,null,null,null,null,null,null,null,null,null,null,null,null,null,null,null,null,null,null,{"$f":"EL7","v":0},{"$f":"EL34","v":0},{"$f":"EL27","v":0},{"$f":"EL54","v":0},0,"",null,null,null,null,null,null,null,null,null,null,null,null,null,null,null,null,null,null,null,null,null,null,null,null,null,null,null,null,null,null,null,null,null,null,null,null,{"$f":"GB7","v":0},{"$f":"GB34","v":0},{"$f":"GB27","v":0},{"$f":"GB54","v":0},0,"",null,null,null,null,null,null,null,null,null,null,null,null,null,null,null,null,null,null,null,null,null,null,null,null,null,null,null,null,null,null,null,null,null,null,null,null,{"$f":"HR7","v":0},{"$f":"HR34","v":0},{"$f":"HR27","v":0},{"$f":"HR54","v":0},0,"",null,null,null,null,null,null,null,null,null,null,null,null,null,null,null,null,null,null,null,null,null,null,null,null,null,null,null,null,null,null,null,null,null,null,null,null,{"$f":"JH7","v":0},{"$f":"JH34","v":0},{"$f":"JH27","v":0},{"$f":"JH54","v":0},0,"",null,null,null,null,null,null,null,null,null,null,null,null,null,null,null,null,null,null,null,null,null,null,null,null,null,null,null,null,null,null,null,null,null,null,null,null,{"$f":"KX7","v":0},{"$f":"KX34","v":0},{"$f":"KX27","v":0},{"$f":"KX54","v":0},0,"",null,null,null,null,null,null,null,null,null,null,null,null,null,null,null,null,null,null,null,null,null,null,null,null,null,null,null,null,null,null,null,null,null,null,null,null,{"$f":"MN7","v":0},{"$f":"MN34","v":0},{"$f":"MN27","v":0},{"$f":"MN54","v":0},0,"",null,null,null,null,null,null,null,null,null,null,null,null,null,null,null,null,null,null,null,null,null,null,null,null,null,null,null,null,null,null,null,null,null,null,null,null,{"$f":"OD7","v":0},{"$f":"OD34","v":0},{"$f":"OD27","v":0},{"$f":"OD54","v":0},0,""]
[null,null,null,null,null,{"$f":"R7","v":0},{"$f":"R34","v":0},{"$f":"R27","v":0},{"$f":"R54","v":0},0,"",null,null,null,null,null,null,null,null,null,null,null,null,null,null,null,null,null,null,null,null,null,null,null,null,null,null,null,null,null,null,null,null,null,null,null,null,{"$f":"BH7","v":0},{"$f":"BH34","v":0},{"$f":"BH27","v":0},{"$f":"BH54","v":0},0,"",null,null,null,null,null,null,null,null,null,null,null,null,null,null,null,null,null,null,null,null,null,null,null,null,null,null,null,null,null,null,null,null,null,null,null,null,{"$f":"CX7","v":0},{"$f":"CX34","v":0},{"$f":"CX27","v":0},{"$f":"CX54","v":0},0,"",null,null,null,null,null,null,null,null,null,null,null,null,null,null,null,null,null,null,null,null,null,null,null,null,null,null,null,null,null,null,null,null,null,null,null,null,{"$f":"EN7","v":0},{"$f":"EN34","v":0},{"$f":"EN27","v":0},{"$f":"EN54","v":0},0,"",null,null,null,null,null,null,null,null,null,null,null,null,null,null,null,null,null,null,null,null,null,null,null,null,null,null,null,null,null,null,null,null,null,null,null,null,{"$f":"GD7","v":0},{"$f":"GD34","v":0},{"$f":"GD27","v":0},{"$f":"GD54","v":0},0,"",null,null,null,null,null,null,null,null,null,null,null,null,null,null,null,null,null,null,null,null,null,null,null,null,null,null,null,null,null,null,null,null,null,null,null,null,{"$f":"HT7","v":0},{"$f":"HT34","v":0},{"$f":"HT27","v":0},{"$f":"HT54","v":0},0,"",null,null,null,null,null,null,null,null,null,null,null,null,null,null,null,null,null,null,null,null,null,null,null,null,null,null,null,null,null,null,null,null,null,null,null,null,{"$f":"JJ7","v":0},{"$f":"JJ34","v":0},{"$f":"JJ27","v":0},{"$f":"JJ54","v":0},0,"",null,null,null,null,null,null,null,null,null,null,null,null,null,null,null,null,null,null,null,null,null,null,null,null,null,null,null,null,null,null,null,null,null,null,null,null,{"$f":"KZ7","v":0},{"$f":"KZ34","v":0},{"$f":"KZ27","v":0},{"$f":"KZ54","v":0},0,"",null,null,null,null,null,null,null,null,null,null,null,null,null,null,null,null,null,null,null,null,null,null,null,null,null,null,null,null,null,null,null,null,null,null,null,null,{"$f":"MP7","v":0},{"$f":"MP34","v":0},{"$f":"MP27","v":0},{"$f":"MP54","v":0},0,"",null,null,null,null,null,null,null,null,null,null,null,null,null,null,null,null,null,null,null,null,null,null,null,null,null,null,null,null,null,null,null,null,null,null,null,null,{"$f":"OF7","v":0},{"$f":"OF34","v":0},{"$f":"OF27","v":0},{"$f":"OF54","v":0},0,""]
[null,null,null,null,null,{"$f":"T7","v":0},{"$f":"T34","v":0},{"$f":"T27","v":0},{"$f":"T54","v":0},0,"",null,null,null,null,null,null,null,null,null,null,null,null,null,null,null,null,null,null,null,null,null,null,null,null,null,null,null,null,null,null,null,null,null,null,null,null,{"$f":"BJ7","v":0},{"$f":"BJ34","v":0},{"$f":"BJ27","v":0},{"$f":"BJ54","v":0},0,"",null,null,null,null,null,null,null,null,null,null,null,null,null,null,null,null,null,null,null,null,null,null,null,null,null,null,null,null,null,null,null,null,null,null,null,null,{"$f":"CZ7","v":0},{"$f":"CZ34","v":0},{"$f":"CZ27","v":0},{"$f":"CZ54","v":0},0,"",null,null,null,null,null,null,null,null,null,null,null,null,null,null,null,null,null,null,null,null,null,null,null,null,null,null,null,null,null,null,null,null,null,null,null,null,{"$f":"EP7","v":0},{"$f":"EP34","v":0},{"$f":"EP27","v":0},{"$f":"EP54","v":0},0,"",null,null,null,null,null,null,null,null,null,null,null,null,null,null,null,null,null,null,null,null,null,null,null,null,null,null,null,null,null,null,null,null,null,null,null,null,{"$f":"GF7","v":0},{"$f":"GF34","v":0},{"$f":"GF27","v":0},{"$f":"GF54","v":0},0,"",null,null,null,null,null,null,null,null,null,null,null,null,null,null,null,null,null,null,null,null,null,null,null,null,null,null,null,null,null,null,null,null,null,null,null,null,{"$f":"HV7","v":0},{"$f":"HV34","v":0},{"$f":"HV27","v":0},{"$f":"HV54","v":0},0,"",null,null,null,null,null,null,null,null,null,null,null,null,null,null,null,null,null,null,null,null,null,null,null,null,null,null,null,null,null,null,null,null,null,null,null,null,{"$f":"JL7","v":0},{"$f":"JL34","v":0},{"$f":"JL27","v":0},{"$f":"JL54","v":0},0,"",null,null,null,null,null,null,null,null,null,null,null,null,null,null,null,null,null,null,null,null,null,null,null,null,null,null,null,null,null,null,null,null,null,null,null,null,{"$f":"LB7","v":0},{"$f":"LB34","v":0},{"$f":"LB27","v":0},{"$f":"LB54","v":0},0,"",null,null,null,null,null,null,null,null,null,null,null,null,null,null,null,null,null,null,null,null,null,null,null,null,null,null,null,null,null,null,null,null,null,null,null,null,{"$f":"MR7","v":0},{"$f":"MR34","v":0},{"$f":"MR27","v":0},{"$f":"MR54","v":0},0,"",null,null,null,null,null,null,null,null,null,null,null,null,null,null,null,null,null,null,null,null,null,null,null,null,null,null,null,null,null,null,null,null,null,null,null,null,{"$f":"OH7","v":0},{"$f":"OH34","v":0},{"$f":"OH27","v":0},{"$f":"OH54","v":0},0,""]
[null,null,null,null,null,{"$f":"V7","v":0},{"$f":"V34","v":0},{"$f":"V27","v":0},{"$f":"V54","v":0},0,"",null,null,null,null,null,null,null,null,null,null,null,null,null,null,null,null,null,null,null,null,null,null,null,null,null,null,null,null,null,null,null,null,null,null,null,null,{"$f":"BL7","v":0},{"$f":"BL34","v":0},{"$f":"BL27","v":0},{"$f":"BL54","v":0},0,"",null,null,null,null,null,null,null,null,null,null,null,null,null,null,null,null,null,null,null,null,null,null,null,null,null,null,null,null,null,null,null,null,null,null,null,null,{"$f":"DB7","v":0},{"$f":"DB34","v":0},{"$f":"DB27","v":0},{"$f":"DB54","v":0},0,"",null,null,null,null,null,null,null,null,null,null,null,null,null,null,null,null,null,null,null,null,null,null,null,null,null,null,null,null,null,null,null,null,null,null,null,null,{"$f":"ER7","v":0},{"$f":"ER34","v":0},{"$f":"ER27","v":0},{"$f":"ER54","v":0},0,"",null,null,null,null,null,null,null,null,null,null,null,null,null,null,null,null,null,null,null,null,null,null,null,null,null,null,null,null,null,null,null,null,null,null,null,null,{"$f":"GH7","v":0},{"$f":"GH34","v":0},{"$f":"GH27","v":0},{"$f":"GH54","v":0},0,"",null,null,null,null,null,null,null,null,null,null,null,null,null,null,null,null,null,null,null,null,null,null,null,null,null,null,null,null,null,null,null,null,null,null,null,null,{"$f":"HX7","v":0},{"$f":"HX34","v":0},{"$f":"HX27","v":0},{"$f":"HX54","v":0},0,"",null,null,null,null,null,null,null,null,null,null,null,null,null,null,null,null,null,null,null,null,null,null,null,null,null,null,null,null,null,null,null,null,null,null,null,null,{"$f":"JN7","v":0},{"$f":"JN34","v":0},{"$f":"JN27","v":0},{"$f":"JN54","v":0},0,"",null,null,null,null,null,null,null,null,null,null,null,null,null,null,null,null,null,null,null,null,null,null,null,null,null,null,null,null,null,null,null,null,null,null,null,null,{"$f":"LD7","v":0},{"$f":"LD34","v":0},{"$f":"LD27","v":0},{"$f":"LD54","v":0},0,"",null,null,null,null,null,null,null,null,null,null,null,null,null,null,null,null,null,null,null,null,null,null,null,null,null,null,null,null,null,null,null,null,null,null,null,null,{"$f":"MT7","v":0},{"$f":"MT34","v":0},{"$f":"MT27","v":0},{"$f":"MT54","v":0},0,"",null,null,null,null,null,null,null,null,null,null,null,null,null,null,null,null,null,null,null,null,null,null,null,null,null,null,null,null,null,null,null,null,null,null,null,null,{"$f":"OJ7","v":0},{"$f":"OJ34","v":0},{"$f":"OJ27","v":0},{"$f":"OJ54","v":0},0,""]
[null,null,null,null,null,{"$f":"X7","v":0},{"$f":"X34","v":0},{"$f":"X27","v":0},{"$f":"X54","v":0},0,"",null,null,null,null,null,null,null,null,null,null,null,null,null,null,null,null,null,null,null,null,null,null,null,null,null,null,null,null,null,null,null,null,null,null,null,null,{"$f":"BN7","v":0},{"$f":"BN34","v":0},{"$f":"BN27","v":0},{"$f":"BN54","v":0},0,"",null,null,null,null,null,null,null,null,null,null,null,null,null,null,null,null,null,null,null,null,null,null,null,null,null,null,null,null,null,null,null,null,null,null,null,null,{"$f":"DD7","v":0},{"$f":"DD34","v":0},{"$f":"DD27","v":0},{"$f":"DD54","v":0},0,"",null,null,null,null,null,null,null,null,null,null,null,null,null,null,null,null,null,null,null,null,null,null,null,null,null,null,null,null,null,null,null,null,null,null,null,null,{"$f":"ET7","v":0},{"$f":"ET34","v":0},{"$f":"ET27","v":0},{"$f":"ET54","v":0},0,"",null,null,null,null,null,null,null,null,null,null,null,null,null,null,null,null,null,null,null,null,null,null,null,null,null,null,null,null,null,null,null,null,null,null,null,null,{"$f":"GJ7","v":0},{"$f":"GJ34","v":0},{"$f":"GJ27","v":0},{"$f":"GJ54","v":0},0,"",null,null,null,null,null,null,null,null,null,null,null,null,null,null,null,null,null,null,null,null,null,null,null,null,null,null,null,null,null,null,null,null,null,null,null,null,{"$f":"HZ7","v":0},{"$f":"HZ34","v":0},{"$f":"HZ27","v":0},{"$f":"HZ54","v":0},0,"",null,null,null,null,null,null,null,null,null,null,null,null,null,null,null,null,null,null,null,null,null,null,null,null,null,null,null,null,null,null,null,null,null,null,null,null,{"$f":"JP7","v":0},{"$f":"JP34","v":0},{"$f":"JP27","v":0},{"$f":"JP54","v":0},0,"",null,null,null,null,null,null,null,null,null,null,null,null,null,null,null,null,null,null,null,null,null,null,null,null,null,null,null,null,null,null,null,null,null,null,null,null,{"$f":"LF7","v":0},{"$f":"LF34","v":0},{"$f":"LF27","v":0},{"$f":"LF54","v":0},0,"",null,null,null,null,null,null,null,null,null,null,null,null,null,null,null,null,null,null,null,null,null,null,null,null,null,null,null,null,null,null,null,null,null,null,null,null,{"$f":"MV7","v":0},{"$f":"MV34","v":0},{"$f":"MV27","v":0},{"$f":"MV54","v":0},0,"",null,null,null,null,null,null,null,null,null,null,null,null,null,null,null,null,null,null,null,null,null,null,null,null,null,null,null,null,null,null,null,null,null,null,null,null,{"$f":"OL7","v":0},{"$f":"OL34","v":0},{"$f":"OL27","v":0},{"$f":"OL54","v":0},0,""]
[null,null,null,null,null,{"$f":"Z7","v":0},{"$f":"Z34","v":0},{"$f":"Z27","v":0},{"$f":"Z54","v":0},0,"",null,null,null,null,null,null,null,null,null,null,null,null,null,null,null,null,null,null,null,null,null,null,null,null,null,null,null,null,null,null,null,null,null,null,null,null,{"$f":"BP7","v":0},{"$f":"BP34","v":0},{"$f":"BP27","v":0},{"$f":"BP54","v":0},0,"",null,null,null,null,null,null,null,null,null,null,null,null,null,null,null,null,null,null,null,null,null,null,null,null,null,null,null,null,null,null,null,null,null,null,null,null,{"$f":"DF7","v":0},{"$f":"DF34","v":0},{"$f":"DF27","v":0},{"$f":"DF54","v":0},0,"",null,null,null,null,null,null,null,null,null,null,null,null,null,null,null,null,null,null,null,null,null,null,null,null,null,null,null,null,null,null,null,null,null,null,null,null,{"$f":"EV7","v":0},{"$f":"EV34","v":0},{"$f":"EV27","v":0},{"$f":"EV54","v":0},0,"",null,null,null,null,null,null,null,null,null,null,null,null,null,null,null,null,null,null,null,null,null,null,null,null,null,null,null,null,null,null,null,null,null,null,null,null,{"$f":"GL7","v":0},{"$f":"GL34","v":0},{"$f":"GL27","v":0},{"$f":"GL54","v":0},0,"",null,null,null,null,null,null,null,null,null,null,null,null,null,null,null,null,null,null,null,null,null,null,null,null,null,null,null,null,null,null,null,null,null,null,null,null,{"$f":"IB7","v":0},{"$f":"IB34","v":0},{"$f":"IB27","v":0},{"$f":"IB54","v":0},0,"",null,null,null,null,null,null,null,null,null,null,null,null,null,null,null,null,null,null,null,null,null,null,null,null,null,null,null,null,null,null,null,null,null,null,null,null,{"$f":"JR7","v":0},{"$f":"JR34","v":0},{"$f":"JR27","v":0},{"$f":"JR54","v":0},0,"",null,null,null,null,null,null,null,null,null,null,null,null,null,null,null,null,null,null,null,null,null,null,null,null,null,null,null,null,null,null,null,null,null,null,null,null,{"$f":"LH7","v":0},{"$f":"LH34","v":0},{"$f":"LH27","v":0},{"$f":"LH54","v":0},0,"",null,null,null,null,null,null,null,null,null,null,null,null,null,null,null,null,null,null,null,null,null,null,null,null,null,null,null,null,null,null,null,null,null,null,null,null,{"$f":"MX7","v":0},{"$f":"MX34","v":0},{"$f":"MX27","v":0},{"$f":"MX54","v":0},0,"",null,null,null,null,null,null,null,null,null,null,null,null,null,null,null,null,null,null,null,null,null,null,null,null,null,null,null,null,null,null,null,null,null,null,null,null,{"$f":"ON7","v":0},{"$f":"ON34","v":0},{"$f":"ON27","v":0},{"$f":"ON54","v":0},0,""]
[null,null,null,null,null,{"$f":"AB7","v":0},{"$f":"AB34","v":0},{"$f":"AB27","v":0},{"$f":"AB54","v":0},0,"",null,null,null,null,null,null,null,null,null,null,null,null,null,null,null,null,null,null,null,null,null,null,null,null,null,null,null,null,null,null,null,null,null,null,null,null,{"$f":"BR7","v":0},{"$f":"BR34","v":0},{"$f":"BR27","v":0},{"$f":"BR54","v":0},0,"",null,null,null,null,null,null,null,null,null,null,null,null,null,null,null,null,null,null,null,null,null,null,null,null,null,null,null,null,null,null,null,null,null,null,null,null,{"$f":"DH7","v":0},{"$f":"DH34","v":0},{"$f":"DH27","v":0},{"$f":"DH54","v":0},0,"",null,null,null,null,null,null,null,null,null,null,null,null,null,null,null,null,null,null,null,null,null,null,null,null,null,null,null,null,null,null,null,null,null,null,null,null,{"$f":"EX7","v":0},{"$f":"EX34","v":0},{"$f":"EX27","v":0},{"$f":"EX54","v":0},0,"",null,null,null,null,null,null,null,null,null,null,null,null,null,null,null,null,null,null,null,null,null,null,null,null,null,null,null,null,null,null,null,null,null,null,null,null,{"$f":"GN7","v":0},{"$f":"GN34","v":0},{"$f":"GN27","v":0},{"$f":"GN54","v":0},0,"",null,null,null,null,null,null,null,null,null,null,null,null,null,null,null,null,null,null,null,null,null,null,null,null,null,null,null,null,null,null,null,null,null,null,null,null,{"$f":"ID7","v":0},{"$f":"ID34","v":0},{"$f":"ID27","v":0},{"$f":"ID54","v":0},0,"",null,null,null,null,null,null,null,null,null,null,null,null,null,null,null,null,null,null,null,null,null,null,null,null,null,null,null,null,null,null,null,null,null,null,null,null,{"$f":"JT7","v":0},{"$f":"JT34","v":0},{"$f":"JT27","v":0},{"$f":"JT54","v":0},0,"",null,null,null,null,null,null,null,null,null,null,null,null,null,null,null,null,null,null,null,null,null,null,null,null,null,null,null,null,null,null,null,null,null,null,null,null,{"$f":"LJ7","v":0},{"$f":"LJ34","v":0},{"$f":"LJ27","v":0},{"$f":"LJ54","v":0},0,"",null,null,null,null,null,null,null,null,null,null,null,null,null,null,null,null,null,null,null,null,null,null,null,null,null,null,null,null,null,null,null,null,null,null,null,null,{"$f":"MZ7","v":0},{"$f":"MZ34","v":0},{"$f":"MZ27","v":0},{"$f":"MZ54","v":0},0,"",null,null,null,null,null,null,null,null,null,null,null,null,null,null,null,null,null,null,null,null,null,null,null,null,null,null,null,null,null,null,null,null,null,null,null,null,{"$f":"OP7","v":0},{"$f":"OP34","v":0},{"$f":"OP27","v":0},{"$f":"OP54","v":0},0,""]
[null,null,null,null,null,{"$f":"AD7","v":0},{"$f":"AD34","v":0},{"$f":"AD27","v":0},{"$f":"AD54","v":0},0,"",null,null,null,null,null,null,null,null,null,null,null,null,null,null,null,null,null,null,null,null,null,null,null,null,null,null,null,null,null,null,null,null,null,null,null,null,{"$f":"BT7","v":0},{"$f":"BT34","v":0},{"$f":"BT27","v":0},{"$f":"BT54","v":0},0,"",null,null,null,null,null,null,null,null,null,null,null,null,null,null,null,null,null,null,null,null,null,null,null,null,null,null,null,null,null,null,null,null,null,null,null,null,{"$f":"DJ7","v":0},{"$f":"DJ34","v":0},{"$f":"DJ27","v":0},{"$f":"DJ54","v":0},0,"",null,null,null,null,null,null,null,null,null,null,null,null,null,null,null,null,null,null,null,null,null,null,null,null,null,null,null,null,null,null,null,null,null,null,null,null,{"$f":"EZ7","v":0},{"$f":"EZ34","v":0},{"$f":"EZ27","v":0},{"$f":"EZ54","v":0},0,"",null,null,null,null,null,null,null,null,null,null,null,null,null,null,null,null,null,null,null,null,null,null,null,null,null,null,null,null,null,null,null,null,null,null,null,null,{"$f":"GP7","v":0},{"$f":"GP34","v":0},{"$f":"GP27","v":0},{"$f":"GP54","v":0},0,"",null,null,null,null,null,null,null,null,null,null,null,null,null,null,null,null,null,null,null,null,null,null,null,null,null,null,null,null,null,null,null,null,null,null,null,null,{"$f":"IF7","v":0},{"$f":"IF34","v":0},{"$f":"IF27","v":0},{"$f":"IF54","v":0},0,"",null,null,null,null,null,null,null,null,null,null,null,null,null,null,null,null,null,null,null,null,null,null,null,null,null,null,null,null,null,null,null,null,null,null,null,null,{"$f":"JV7","v":0},{"$f":"JV34","v":0},{"$f":"JV27","v":0},{"$f":"JV54","v":0},0,"",null,null,null,null,null,null,null,null,null,null,null,null,null,null,null,null,null,null,null,null,null,null,null,null,null,null,null,null,null,null,null,null,null,null,null,null,{"$f":"LL7","v":0},{"$f":"LL34","v":0},{"$f":"LL27","v":0},{"$f":"LL54","v":0},0,"",null,null,null,null,null,null,null,null,null,null,null,null,null,null,null,null,null,null,null,null,null,null,null,null,null,null,null,null,null,null,null,null,null,null,null,null,{"$f":"NB7","v":0},{"$f":"NB34","v":0},{"$f":"NB27","v":0},{"$f":"NB54","v":0},0,"",null,null,null,null,null,null,null,null,null,null,null,null,null,null,null,null,null,null,null,null,null,null,null,null,null,null,null,null,null,null,null,null,null,null,null,null,{"$f":"OR7","v":0},{"$f":"OR34","v":0},{"$f":"OR27","v":0},{"$f":"OR54","v":0},0,""]
[null,null,null,null,null,{"$f":"AF7","v":0},{"$f":"AF34","v":0},{"$f":"AF27","v":0},{"$f":"AF54","v":0},0,"",null,null,null,null,null,null,null,null,null,null,null,null,null,null,null,null,null,null,null,null,null,null,null,null,null,null,null,null,null,null,null,null,null,null,null,null,{"$f":"BV7","v":0},{"$f":"BV34","v":0},{"$f":"BV27","v":0},{"$f":"BV54","v":0},0,"",null,null,null,null,null,null,null,null,null,null,null,null,null,null,null,null,null,null,null,null,null,null,null,null,null,null,null,null,null,null,null,null,null,null,null,null,{"$f":"DL7","v":0},{"$f":"DL34","v":0},{"$f":"DL27","v":0},{"$f":"DL54","v":0},0,"",null,null,null,null,null,null,null,null,null,null,null,null,null,null,null,null,null,null,null,null,null,null,null,null,null,null,null,null,null,null,null,null,null,null,null,null,{"$f":"FB7","v":0},{"$f":"FB34","v":0},{"$f":"FB27","v":0},{"$f":"FB54","v":0},0,"",null,null,null,null,null,null,null,null,null,null,null,null,null,null,null,null,null,null,null,null,null,null,null,null,null,null,null,null,null,null,null,null,null,null,null,null,{"$f":"GR7","v":0},{"$f":"GR34","v":0},{"$f":"GR27","v":0},{"$f":"GR54","v":0},0,"",null,null,null,null,null,null,null,null,null,null,null,null,null,null,null,null,null,null,null,null,null,null,null,null,null,null,null,null,null,null,null,null,null,null,null,null,{"$f":"IH7","v":0},{"$f":"IH34","v":0},{"$f":"IH27","v":0},{"$f":"IH54","v":0},0,"",null,null,null,null,null,null,null,null,null,null,null,null,null,null,null,null,null,null,null,null,null,null,null,null,null,null,null,null,null,null,null,null,null,null,null,null,{"$f":"JX7","v":0},{"$f":"JX34","v":0},{"$f":"JX27","v":0},{"$f":"JX54","v":0},0,"",null,null,null,null,null,null,null,null,null,null,null,null,null,null,null,null,null,null,null,null,null,null,null,null,null,null,null,null,null,null,null,null,null,null,null,null,{"$f":"LN7","v":0},{"$f":"LN34","v":0},{"$f":"LN27","v":0},{"$f":"LN54","v":0},0,"",null,null,null,null,null,null,null,null,null,null,null,null,null,null,null,null,null,null,null,null,null,null,null,null,null,null,null,null,null,null,null,null,null,null,null,null,{"$f":"ND7","v":0},{"$f":"ND34","v":0},{"$f":"ND27","v":0},{"$f":"ND54","v":0},0,"",null,null,null,null,null,null,null,null,null,null,null,null,null,null,null,null,null,null,null,null,null,null,null,null,null,null,null,null,null,null,null,null,null,null,null,null,{"$f":"OT7","v":0},{"$f":"OT34","v":0},{"$f":"OT27","v":0},{"$f":"OT54","v":0},0,""]
[null,null,null,null,null,{"$f":"AH7","v":0},{"$f":"AH34","v":0},{"$f":"AH27","v":0},{"$f":"AH54","v":0},0,"",null,null,null,null,null,null,null,null,null,null,null,null,null,null,null,null,null,null,null,null,null,null,null,null,null,null,null,null,null,null,null,null,null,null,null,null,{"$f":"BX7","v":0},{"$f":"BX34","v":0},{"$f":"BX27","v":0},{"$f":"BX54","v":0},0,"",null,null,null,null,null,null,null,null,null,null,null,null,null,null,null,null,null,null,null,null,null,null,null,null,null,null,null,null,null,null,null,null,null,null,null,null,{"$f":"DN7","v":0},{"$f":"DN34","v":0},{"$f":"DN27","v":0},{"$f":"DN54","v":0},0,"",null,null,null,null,null,null,null,null,null,null,null,null,null,null,null,null,null,null,null,null,null,null,null,null,null,null,null,null,null,null,null,null,null,null,null,null,{"$f":"FD7","v":0},{"$f":"FD34","v":0},{"$f":"FD27","v":0},{"$f":"FD54","v":0},0,"",null,null,null,null,null,null,null,null,null,null,null,null,null,null,null,null,null,null,null,null,null,null,null,null,null,null,null,null,null,null,null,null,null,null,null,null,{"$f":"GT7","v":0},{"$f":"GT34","v":0},{"$f":"GT27","v":0},{"$f":"GT54","v":0},0,"",null,null,null,null,null,null,null,null,null,null,null,null,null,null,null,null,null,null,null,null,null,null,null,null,null,null,null,null,null,null,null,null,null,null,null,null,{"$f":"IJ7","v":0},{"$f":"IJ34","v":0},{"$f":"IJ27","v":0},{"$f":"IJ54","v":0},0,"",null,null,null,null,null,null,null,null,null,null,null,null,null,null,null,null,null,null,null,null,null,null,null,null,null,null,null,null,null,null,null,null,null,null,null,null,{"$f":"JZ7","v":0},{"$f":"JZ34","v":0},{"$f":"JZ27","v":0},{"$f":"JZ54","v":0},0,"",null,null,null,null,null,null,null,null,null,null,null,null,null,null,null,null,null,null,null,null,null,null,null,null,null,null,null,null,null,null,null,null,null,null,null,null,{"$f":"LP7","v":0},{"$f":"LP34","v":0},{"$f":"LP27","v":0},{"$f":"LP54","v":0},0,"",null,null,null,null,null,null,null,null,null,null,null,null,null,null,null,null,null,null,null,null,null,null,null,null,null,null,null,null,null,null,null,null,null,null,null,null,{"$f":"NF7","v":0},{"$f":"NF34","v":0},{"$f":"NF27","v":0},{"$f":"NF54","v":0},0,"",null,null,null,null,null,null,null,null,null,null,null,null,null,null,null,null,null,null,null,null,null,null,null,null,null,null,null,null,null,null,null,null,null,null,null,null,{"$f":"OV7","v":0},{"$f":"OV34","v":0},{"$f":"OV27","v":0},{"$f":"OV54","v":0},0,""]
[null,null,null,null,null,{"$f":"AJ7","v":0},{"$f":"AJ34","v":0},{"$f":"AJ27","v":0},{"$f":"AJ54","v":0},0,"",null,null,null,null,null,null,null,null,null,null,null,null,null,null,null,null,null,null,null,null,null,null,null,null,null,null,null,null,null,null,null,null,null,null,null,null,{"$f":"BZ7","v":0},{"$f":"BZ34","v":0},{"$f":"BZ27","v":0},{"$f":"BZ54","v":0},0,"",null,null,null,null,null,null,null,null,null,null,null,null,null,null,null,null,null,null,null,null,null,null,null,null,null,null,null,null,null,null,null,null,null,null,null,null,{"$f":"DP7","v":0},{"$f":"DP34","v":0},{"$f":"DP27","v":0},{"$f":"DP54","v":0},0,"",null,null,null,null,null,null,null,null,null,null,null,null,null,null,null,null,null,null,null,null,null,null,null,null,null,null,null,null,null,null,null,null,null,null,null,null,{"$f":"FF7","v":0},{"$f":"FF34","v":0},{"$f":"FF27","v":0},{"$f":"FF54","v":0},0,"",null,null,null,null,null,null,null,null,null,null,null,null,null,null,null,null,null,null,null,null,null,null,null,null,null,null,null,null,null,null,null,null,null,null,null,null,{"$f":"GV7","v":0},{"$f":"GV34","v":0},{"$f":"GV27","v":0},{"$f":"GV54","v":0},0,"",null,null,null,null,null,null,null,null,null,null,null,null,null,null,null,null,null,null,null,null,null,null,null,null,null,null,null,null,null,null,null,null,null,null,null,null,{"$f":"IL7","v":0},{"$f":"IL34","v":0},{"$f":"IL27","v":0},{"$f":"IL54","v":0},0,"",null,null,null,null,null,null,null,null,null,null,null,null,null,null,null,null,null,null,null,null,null,null,null,null,null,null,null,null,null,null,null,null,null,null,null,null,{"$f":"KB7","v":0},{"$f":"KB34","v":0},{"$f":"KB27","v":0},{"$f":"KB54","v":0},0,"",null,null,null,null,null,null,null,null,null,null,null,null,null,null,null,null,null,null,null,null,null,null,null,null,null,null,null,null,null,null,null,null,null,null,null,null,{"$f":"LR7","v":0},{"$f":"LR34","v":0},{"$f":"LR27","v":0},{"$f":"LR54","v":0},0,"",null,null,null,null,null,null,null,null,null,null,null,null,null,null,null,null,null,null,null,null,null,null,null,null,null,null,null,null,null,null,null,null,null,null,null,null,{"$f":"NH7","v":0},{"$f":"NH34","v":0},{"$f":"NH27","v":0},{"$f":"NH54","v":0},0,"",null,null,null,null,null,null,null,null,null,null,null,null,null,null,null,null,null,null,null,null,null,null,null,null,null,null,null,null,null,null,null,null,null,null,null,null,{"$f":"OX7","v":0},{"$f":"OX34","v":0},{"$f":"OX27","v":0},{"$f":"OX54","v":0},0,""]
[null,null,null,null,null,{"$f":"AL7","v":0},{"$f":"AL34","v":0},{"$f":"AL27","v":0},{"$f":"AL54","v":0},0,"",null,null,null,null,null,null,null,null,null,null,null,null,null,null,null,null,null,null,null,null,null,null,null,null,null,null,null,null,null,null,null,null,null,null,null,null,{"$f":"CB7","v":0},{"$f":"CB34","v":0},{"$f":"CB27","v":0},{"$f":"CB54","v":0},0,"",null,null,null,null,null,null,null,null,null,null,null,null,null,null,null,null,null,null,null,null,null,null,null,null,null,null,null,null,null,null,null,null,null,null,null,null,{"$f":"DR7","v":0},{"$f":"DR34","v":0},{"$f":"DR27","v":0},{"$f":"DR54","v":0},0,"",null,null,null,null,null,null,null,null,null,null,null,null,null,null,null,null,null,null,null,null,null,null,null,null,null,null,null,null,null,null,null,null,null,null,null,null,{"$f":"FH7","v":0},{"$f":"FH34","v":0},{"$f":"FH27","v":0},{"$f":"FH54","v":0},0,"",null,null,null,null,null,null,null,null,null,null,null,null,null,null,null,null,null,null,null,null,null,null,null,null,null,null,null,null,null,null,null,null,null,null,null,null,{"$f":"GX7","v":0},{"$f":"GX34","v":0},{"$f":"GX27","v":0},{"$f":"GX54","v":0},0,"",null,null,null,null,null,null,null,null,null,null,null,null,null,null,null,null,null,null,null,null,null,null,null,null,null,null,null,null,null,null,null,null,null,null,null,null,{"$f":"IN7","v":0},{"$f":"IN34","v":0},{"$f":"IN27","v":0},{"$f":"IN54","v":0},0,"",null,null,null,null,null,null,null,null,null,null,null,null,null,null,null,null,null,null,null,null,null,null,null,null,null,null,null,null,null,null,null,null,null,null,null,null,{"$f":"KD7","v":0},{"$f":"KD34","v":0},{"$f":"KD27","v":0},{"$f":"KD54","v":0},0,"",null,null,null,null,null,null,null,null,null,null,null,null,null,null,null,null,null,null,null,null,null,null,null,null,null,null,null,null,null,null,null,null,null,null,null,null,{"$f":"LT7","v":0},{"$f":"LT34","v":0},{"$f":"LT27","v":0},{"$f":"LT54","v":0},0,"",null,null,null,null,null,null,null,null,null,null,null,null,null,null,null,null,null,null,null,null,null,null,null,null,null,null,null,null,null,null,null,null,null,null,null,null,{"$f":"NJ7","v":0},{"$f":"NJ34","v":0},{"$f":"NJ27","v":0},{"$f":"NJ54","v":0},0,"",null,null,null,null,null,null,null,null,null,null,null,null,null,null,null,null,null,null,null,null,null,null,null,null,null,null,null,null,null,null,null,null,null,null,null,null,{"$f":"OZ7","v":0},{"$f":"OZ34","v":0},{"$f":"OZ27","v":0},{"$f":"OZ54","v":0},0,""]
[null,null,null,null,null,{"$f":"AN7","v":0},{"$f":"AN34","v":0},{"$f":"AN27","v":0},{"$f":"AN54","v":0},0,"",null,null,null,null,null,null,null,null,null,null,null,null,null,null,null,null,null,null,null,null,null,null,null,null,null,null,null,null,null,null,null,null,null,null,null,null,{"$f":"CD7","v":0},{"$f":"CD34","v":0},{"$f":"CD27","v":0},{"$f":"CD54","v":0},0,"",null,null,null,null,null,null,null,null,null,null,null,null,null,null,null,null,null,null,null,null,null,null,null,null,null,null,null,null,null,null,null,null,null,null,null,null,{"$f":"DT7","v":0},{"$f":"DT34","v":0},{"$f":"DT27","v":0},{"$f":"DT54","v":0},0,"",null,null,null,null,null,null,null,null,null,null,null,null,null,null,null,null,null,null,null,null,null,null,null,null,null,null,null,null,null,null,null,null,null,null,null,null,{"$f":"FJ7","v":0},{"$f":"FJ34","v":0},{"$f":"FJ27","v":0},{"$f":"FJ54","v":0},0,"",null,null,null,null,null,null,null,null,null,null,null,null,null,null,null,null,null,null,null,null,null,null,null,null,null,null,null,null,null,null,null,null,null,null,null,null,{"$f":"GZ7","v":0},{"$f":"GZ34","v":0},{"$f":"GZ27","v":0},{"$f":"GZ54","v":0},0,"",null,null,null,null,null,null,null,null,null,null,null,null,null,null,null,null,null,null,null,null,null,null,null,null,null,null,null,null,null,null,null,null,null,null,null,null,{"$f":"IP7","v":0},{"$f":"IP34","v":0},{"$f":"IP27","v":0},{"$f":"IP54","v":0},0,"",null,null,null,null,null,null,null,null,null,null,null,null,null,null,null,null,null,null,null,null,null,null,null,null,null,null,null,null,null,null,null,null,null,null,null,null,{"$f":"KF7","v":0},{"$f":"KF34","v":0},{"$f":"KF27","v":0},{"$f":"KF54","v":0},0,"",null,null,null,null,null,null,null,null,null,null,null,null,null,null,null,null,null,null,null,null,null,null,null,null,null,null,null,null,null,null,null,null,null,null,null,null,{"$f":"LV7","v":0},{"$f":"LV34","v":0},{"$f":"LV27","v":0},{"$f":"LV54","v":0},0,"",null,null,null,null,null,null,null,null,null,null,null,null,null,null,null,null,null,null,null,null,null,null,null,null,null,null,null,null,null,null,null,null,null,null,null,null,{"$f":"NL7","v":0},{"$f":"NL34","v":0},{"$f":"NL27","v":0},{"$f":"NL54","v":0},0,"",null,null,null,null,null,null,null,null,null,null,null,null,null,null,null,null,null,null,null,null,null,null,null,null,null,null,null,null,null,null,null,null,null,null,null,null,{"$f":"PB7","v":0},{"$f":"PB34","v":0},{"$f":"PB27","v":0},{"$f":"PB54","v":0},0,""]
[null,null,null,null,null,{"$f":"AP7","v":0},{"$f":"AP34","v":0},{"$f":"AP27","v":0},{"$f":"AP54","v":0},0,"",null,null,null,null,null,null,null,null,null,null,null,null,null,null,null,null,null,null,null,null,null,null,null,null,null,null,null,null,null,null,null,null,null,null,null,null,{"$f":"CF7","v":0},{"$f":"CF34","v":0},{"$f":"CF27","v":0},{"$f":"CF54","v":0},0,"",null,null,null,null,null,null,null,null,null,null,null,null,null,null,null,null,null,null,null,null,null,null,null,null,null,null,null,null,null,null,null,null,null,null,null,null,{"$f":"DV7","v":0},{"$f":"DV34","v":0},{"$f":"DV27","v":0},{"$f":"DV54","v":0},0,"",null,null,null,null,null,null,null,null,null,null,null,null,null,null,null,null,null,null,null,null,null,null,null,null,null,null,null,null,null,null,null,null,null,null,null,null,{"$f":"FL7","v":0},{"$f":"FL34","v":0},{"$f":"FL27","v":0},{"$f":"FL54","v":0},0,"",null,null,null,null,null,null,null,null,null,null,null,null,null,null,null,null,null,null,null,null,null,null,null,null,null,null,null,null,null,null,null,null,null,null,null,null,{"$f":"HB7","v":0},{"$f":"HB34","v":0},{"$f":"HB27","v":0},{"$f":"HB54","v":0},0,"",null,null,null,null,null,null,null,null,null,null,null,null,null,null,null,null,null,null,null,null,null,null,null,null,null,null,null,null,null,null,null,null,null,null,null,null,{"$f":"IR7","v":0},{"$f":"IR34","v":0},{"$f":"IR27","v":0},{"$f":"IR54","v":0},0,"",null,null,null,null,null,null,null,null,null,null,null,null,null,null,null,null,null,null,null,null,null,null,null,null,null,null,null,null,null,null,null,null,null,null,null,null,{"$f":"KH7","v":0},{"$f":"KH34","v":0},{"$f":"KH27","v":0},{"$f":"KH54","v":0},0,"",null,null,null,null,null,null,null,null,null,null,null,null,null,null,null,null,null,null,null,null,null,null,null,null,null,null,null,null,null,null,null,null,null,null,null,null,{"$f":"LX7","v":0},{"$f":"LX34","v":0},{"$f":"LX27","v":0},{"$f":"LX54","v":0},0,"",null,null,null,null,null,null,null,null,null,null,null,null,null,null,null,null,null,null,null,null,null,null,null,null,null,null,null,null,null,null,null,null,null,null,null,null,{"$f":"NN7","v":0},{"$f":"NN34","v":0},{"$f":"NN27","v":0},{"$f":"NN54","v":0},0,"",null,null,null,null,null,null,null,null,null,null,null,null,null,null,null,null,null,null,null,null,null,null,null,null,null,null,null,null,null,null,null,null,null,null,null,null,{"$f":"PD7","v":0},{"$f":"PD34","v":0},{"$f":"PD27","v":0},{"$f":"PD54","v":0},0,""]
[null,null,null,null,null,{"$f":"AR7","v":0},{"$f":"AR34","v":0},{"$f":"AR27","v":0},{"$f":"AR54","v":0},0,"",null,null,null,null,null,null,null,null,null,null,null,null,null,null,null,null,null,null,null,null,null,null,null,null,null,null,null,null,null,null,null,null,null,null,null,null,{"$f":"CH7","v":0},{"$f":"CH34","v":0},{"$f":"CH27","v":0},{"$f":"CH54","v":0},0,"",null,null,null,null,null,null,null,null,null,null,null,null,null,null,null,null,null,null,null,null,null,null,null,null,null,null,null,null,null,null,null,null,null,null,null,null,{"$f":"DX7","v":0},{"$f":"DX34","v":0},{"$f":"DX27","v":0},{"$f":"DX54","v":0},0,null,null,null,null,null,null,null,null,null,null,null,null,null,null,null,null,null,null,null,null,null,null,null,null,null,null,null,null,null,null,null,null,null,null,null,null,null,{"$f":"FN7","v":0},{"$f":"FN34","v":0},{"$f":"FN27","v":0},{"$f":"FN54","v":0},0,"",null,null,null,null,null,null,null,null,null,null,null,null,null,null,null,null,null,null,null,null,null,null,null,null,null,null,null,null,null,null,null,null,null,null,null,null,{"$f":"HD7","v":0},{"$f":"HD34","v":0},{"$f":"HD27","v":0},{"$f":"HD54","v":0},0,"",null,null,null,null,null,null,null,null,null,null,null,null,null,null,null,null,null,null,null,null,null,null,null,null,null,null,null,null,null,null,null,null,null,null,null,null,{"$f":"IT7","v":0},{"$f":"IT34","v":0},{"$f":"IT27","v":0},{"$f":"IT54","v":0},0,"",null,null,null,null,null,null,null,null,null,null,null,null,null,null,null,null,null,null,null,null,null,null,null,null,null,null,null,null,null,null,null,null,null,null,null,null,{"$f":"KJ7","v":0},{"$f":"KJ34","v":0},{"$f":"KJ27","v":0},{"$f":"KJ54","v":0},0,"",null,null,null,null,null,null,null,null,null,null,null,null,null,null,null,null,null,null,null,null,null,null,null,null,null,null,null,null,null,null,null,null,null,null,null,null,{"$f":"LZ7","v":0},{"$f":"LZ34","v":0},{"$f":"LZ27","v":0},{"$f":"LZ54","v":0},0,"",null,null,null,null,null,null,null,null,null,null,null,null,null,null,null,null,null,null,null,null,null,null,null,null,null,null,null,null,null,null,null,null,null,null,null,null,{"$f":"NP7","v":0},{"$f":"NP34","v":0},{"$f":"NP27","v":0},{"$f":"NP54","v":0},0,"",null,null,null,null,null,null,null,null,null,null,null,null,null,null,null,null,null,null,null,null,null,null,null,null,null,null,null,null,null,null,null,null,null,null,null,null,{"$f":"PF7","v":0},{"$f":"PF34","v":0},{"$f":"PF27","v":0},{"$f":"PF54","v":0},0,""]

{"sheet":"Oil","index":7,"n_rows":93,"n_cols":24,"rows_kept":93,"cut":false,"hidden":true,"merged":[[2,1,2,10],[89,4,89,6],[92,1,92,6],[93,1,97,6],[88,4,88,6],[4,1,5,6],[44,4,44,6],[45,4,45,6],[48,1,49,6]]}
[null,"Oil Utility Data Summary"]
[null,"Instructions"]
[null,"1) Enter data for pre-construction energy use in blue cells. Note that for the Model Calibration Tool, inventory readings, including the amount of fuel in storage at the start and end of a period and the amount used during that period, will also be required in order to assess the volume of oil consumed monthly not simply delivered.                                                                                                                                                                                                                              2) If there is on-site generation that runs on oil, please provide the oil consumed in column F.\n3) Hide any unused rows; do not delete them.\n4) Review graphs to the right for irregularities in the usage data.\n5) Post-Construction data will be filled in one year after construction has been completed.\n6) Please use the \"Notes\" field below the data entry section of this tab to explain unusual circumstances, any anomalies in the data, or adjustments made. Also, please follow Program Guidelines v4.2, Section 3.2.2 for irregular delivers, outliers, and estimated bills.\n\n"]
[]
[null,"PRE-CONSTRUCTION"]
[null,null,null,null,null,null,null,null,null,null,null,null,null,null,null,"Data for Graph:"]
[null,"Billing Period Start Date","Delivery Date","Days in Billing Period",{"$f":"\"Oil Delivery \n(\"&'Utility Info'!E7&\")\"","v":"Oil Delivery \n(<Not Used>)"},"On-Site Oil Generation\n(MMBtu)","Oil Consumption\n(MMBtu)",null,null,null,null,null,null,null,null,"Delivery Month/Day"]
[]
[null,{"$f":"C8+1","v":"1900-01-01"},null,{"$f":"IF(C9>0,C9+1-B9,0)","v":0},null,null,{"$f":"(E9+F9)*'UDAT Support'!$C$12","v":0},null,null,null,null,null,null,null,null,{"$f":"DATE(2008,MONTH(C9),DAY(C9))","v":"2007-12-31"},null,null,"Gallons",null,"Days",null,"Gal/day"]
[null,{"$f":"C9+1","v":"1900-01-01"},null,{"$f":"IF(C10>0,C10+1-B10,0)","v":0},null,null,{"$f":"(E10+F10)*'UDAT Support'!$C$12","v":0},null,null,null,null,null,null,null,null,{"$f":"DATE(2008,MONTH(C10),DAY(C10))","v":"2007-12-31"},null,"Date","Pre","Post","Pre","Post","Pre","Post"]
[null,"1900-01-01",null,0,null,null,{"$f":"(E11+F11)*'UDAT Support'!$C$12","v":0},null,null,null,null,null,null,null,null,"2007-12-31",null,"2008-01-05",{"$f":"SUMIFS($E$9:$E$42,$P$9:$P$42,\"<=\"&R11)","v":0},{"$f":"SUMIFS($E$53:$E$86,$P$53:$P$86,\"<=\"&R11)","v":0},{"$f":"SUMIFS($D$9:$D$42,$P$9:$P$42,\"<=\"&$R$11)","v":0},{"$f":"SUMIFS($D$53:$D$86,$P$53:$P$86,\"<=\"&$R$11)","v":0},{"$f":"IF(U11>0,S11/U11,0)","v":0},{"$f":"IF(V11>0,T11/V11,0)","v":0}]
[null,"1900-01-01",null,0,null,null,{"$f":"(E12+F12)*'UDAT Support'!$C$12","v":0},null,null,null,null,null,null,null,null,"2007-12-31",null,{"$f":"R11+5","v":"2008-01-10"},{"$f":"SUMIFS($E$9:$E$42,$P$9:$P$42,\">\"& R11,$P$9:$P$42,\"<=\"&R12)","v":0},{"$f":"SUMIFS($E$53:$E$86,$P$53:$P$86,\">\"& R11,$P$53:$P$86,\"<=\"&R12)","v":0},{"$f":"SUMIFS($D$9:$D$42,$P$9:$P$42,\">\"& $R11,$P$9:$P$42,\"<=\"&$R12)","v":0},{"$f":"SUMIFS($D$53:$D$86,$P$53:$P$86,\">\"& $R11,$P$53:$P$86,\"<=\"&$R12)","v":0},{"$f":"IF(U12>0,S12/U12,0)","v":0},0]
[null,"1900-01-01",null,0,null,null,{"$f":"(E13+F13)*'UDAT Support'!$C$12","v":0},null,null,null,null,null,null,null,null,"2007-12-31",null,{"$f":"R12+5","v":"2008-01-15"},0,0,0,0,0,0]
[null,"1900-01-01",null,0,null,null,{"$f":"(E14+F14)*'UDAT Support'!$C$12","v":0},null,null,null,null,null,null,null,null,"2007-12-31",null,"2008-01-20",0,0,0,0,0,0]
[null,"1900-01-01",null,0,null,null,{"$f":"(E15+F15)*'UDAT Support'!$C$12","v":0},null,null,null,null,null,null,null,null,"2007-12-31",null,"2008-01-25",0,0,0,0,0,0]
[null,"1900-01-01",null,0,null,null,{"$f":"(E16+F16)*'UDAT Support'!$C$12","v":0},null,null,null,null,null,null,null,null,"2007-12-31",null,"2008-01-30",0,0,0,0,0,0]
[null,"1900-01-01",null,0,null,null,{"$f":"(E17+F17)*'UDAT Support'!$C$12","v":0},null,null,null,null,null,null,null,null,"2007-12-31",null,"2008-02-04",0,0,0,0,0,0]
[null,"1900-01-01",null,0,null,null,{"$f":"(E18+F18)*'UDAT Support'!$C$12","v":0},null,null,null,null,null,null,null,null,"2007-12-31",null,"2008-02-09",0,0,0,0,0,0]
[null,"1900-01-01",null,0,null,null,{"$f":"(E19+F19)*'UDAT Support'!$C$12","v":0},null,null,null,null,null,null,null,null,"2007-12-31",null,"2008-02-14",0,0,0,0,0,0]
[null,"1900-01-01",null,0,null,null,{"$f":"(E20+F20)*'UDAT Support'!$C$12","v":0},null,null,null,null,null,null,null,null,"2007-12-31",null,"2008-02-19",0,0,0,0,0,0]
[null,"1900-01-01",null,0,null,null,{"$f":"(E21+F21)*'UDAT Support'!$C$12","v":0},null,null,null,null,null,null,null,null,"2007-12-31",null,"2008-02-24",0,0,0,0,0,0]
[null,"1900-01-01",null,0,null,null,{"$f":"(E22+F22)*'UDAT Support'!$C$12","v":0},null,null,null,null,null,null,null,null,"2007-12-31",null,{"$f":"R21+6","v":"2008-03-01"},0,0,0,0,0,0]
[null,"1900-01-01",null,0,null,null,{"$f":"(E23+F23)*'UDAT Support'!$C$12","v":0},null,null,null,null,null,null,null,null,"2007-12-31",null,"2008-03-06",0,0,0,0,0,0]
[null,"1900-01-01",null,0,null,null,{"$f":"(E24+F24)*'UDAT Support'!$C$12","v":0},null,null,null,null,null,null,null,null,"2007-12-31",null,"2008-03-11",0,0,0,0,0,0]
[null,"1900-01-01",null,0,null,null,{"$f":"(E25+F25)*'UDAT Support'!$C$12","v":0},null,null,null,null,null,null,null,null,"2007-12-31",null,"2008-03-16",0,0,0,0,0,0]
[null,"1900-01-01",null,0,null,null,{"$f":"(E26+F26)*'UDAT Support'!$C$12","v":0},null,null,null,null,null,null,null,null,"2007-12-31",null,"2008-03-21",0,0,0,0,0,0]
[null,"1900-01-01",null,0,null,null,{"$f":"(E27+F27)*'UDAT Support'!$C$12","v":0},null,null,null,null,null,null,null,null,"2007-12-31",null,"2008-03-26",0,0,0,0,0,0]
[null,"1900-01-01",null,0,null,null,{"$f":"(E28+F28)*'UDAT Support'!$C$12","v":0},null,null,null,null,null,null,null,null,"2007-12-31",null,"2008-03-31",0,0,0,0,0,0]
[null,"1900-01-01",null,0,null,null,{"$f":"(E29+F29)*'UDAT Support'!$C$12","v":0},null,null,null,null,null,null,null,null,"2007-12-31",null,"2008-04-05",0,0,0,0,0,0]
[null,"1900-01-01",null,0,null,null,{"$f":"(E30+F30)*'UDAT Support'!$C$12","v":0},null,null,null,null,null,null,null,null,"2007-12-31",null,"2008-04-10",0,0,0,0,0,0]
[null,"1900-01-01",null,0,null,null,{"$f":"(E31+F31)*'UDAT Support'!$C$12","v":0},null,null,null,null,null,null,null,null,"2007-12-31",null,"2008-04-15",0,0,0,0,0,0]
[null,"1900-01-01",null,0,null,null,{"$f":"(E32+F32)*'UDAT Support'!$C$12","v":0},null,null,null,null,null,null,null,null,"2007-12-31",null,"2008-04-20",0,0,0,0,0,0]
[null,"1900-01-01",null,0,null,null,{"$f":"(E33+F33)*'UDAT Support'!$C$12","v":0},null,null,null,null,null,null,null,null,"2007-12-31",null,"2008-04-25",0,0,0,0,0,0]
[null,"1900-01-01",null,0,null,null,{"$f":"(E34+F34)*'UDAT Support'!$C$12","v":0},null,null,null,null,null,null,null,null,"2007-12-31",null,"2008-04-30",0,0,0,0,0,0]
[null,"1900-01-01",null,0,null,null,{"$f":"(E35+F35)*'UDAT Support'!$C$12","v":0},null,null,null,null,null,null,null,null,"2007-12-31",null,"2008-05-05",0,0,0,0,0,0]
[null,"1900-01-01",null,0,null,null,{"$f":"(E36+F36)*'UDAT Support'!$C$12","v":0},null,null,null,null,null,null,null,null,"2007-12-31",null,"2008-05-10",0,0,0,0,0,0]
[null,"1900-01-01",null,0,null,null,{"$f":"(E37+F37)*'UDAT Support'!$C$12","v":0},null,null,null,null,null,null,null,null,"2007-12-31",null,"2008-05-15",0,0,0,0,0,0]
[null,"1900-01-01",null,0,null,null,{"$f":"(E38+F38)*'UDAT Support'!$C$12","v":0},null,null,null,null,null,null,null,null,"2007-12-31",null,"2008-05-20",0,0,0,0,0,0]
[null,"1900-01-01",null,0,null,null,{"$f":"(E39+F39)*'UDAT Support'!$C$12","v":0},null,null,null,null,null,null,null,null,"2007-12-31",null,"2008-05-25",0,0,0,0,0,0]
[null,"1900-01-01",null,0,null,null,{"$f":"(E40+F40)*'UDAT Support'!$C$12","v":0},null,null,null,null,null,null,null,null,"2007-12-31",null,"2008-05-30",0,0,0,0,0,0]
[null,"1900-01-01",null,0,null,null,{"$f":"(E41+F41)*'UDAT Support'!$C$12","v":0},null,null,null,null,null,null,null,null,"2007-12-31",null,"2008-06-04",0,0,0,0,0,0]
[null,"1900-01-01",null,0,null,null,{"$f":"(E42+F42)*'UDAT Support'!$C$12","v":0},null,null,null,null,null,null,null,null,"2007-12-31",null,"2008-06-09",0,0,0,0,0,0]
[null,null,{"$f":"IF(ABS(D43-365)>4,\"Must have 365 ± 4 days.\",\"\")","v":"Must have 365 ± 4 days."},{"$f":"SUM(D9:D42)","v":0},{"$f":"SUM(E9:E42)","v":0},{"$f":"SUM(F9:F42)","v":0},{"$f":"SUM(G9:G42)","v":0},null,null,null,null,null,null,null,null,null,null,"2008-06-14",0,0,0,0,0,0]
[null,null,null,null,null,null,null,null,null,null,null,null,null,null,null,null,null,"2008-06-19",0,0,0,0,0,0]
[null,null,null,null,"Total Annual Oil Cost",null,null,null,null,null,null,null,null,null,null,null,null,"2008-06-24",0,0,0,0,0,0]
[null,null,null,null,null,null,null,null,null,null,null,null,null,null,null,null,null,"2008-06-29",0,0,0,0,0,0]
[null,null,null,null,null,null,null,null,null,null,null,null,null,null,null,null,null,"2008-07-04",0,0,0,0,0,0]
[null,null,null,null,null,null,null,null,null,null,null,null,null,null,null,null,null,"2008-07-09",0,0,0,0,0,0]
[null,"POST-CONSTRUCTION",null,null,null,null,null,null,null,null,null,null,null,null,null,null,null,"2008-07-14",0,0,0,0,0,0]
[null,null,null,null,null,null,null,null,null,null,null,null,null,null,null,null,null,"2008-07-19",0,0,0,0,0,0]
[null,"Billing Period Start Date","Delivery Date","Days in Billing Period",{"$f":"\"Oil Delivery \n(\"&'Utility Info'!E16&\")\"","v":"Oil Delivery \n(<Not Used>)"},"On-Site Oil Generation\n(MMBtu)","Oil Consumption\n(MMBtu)",null,null,null,null,null,null,null,null,"Delivery Month/Day",null,"2008-07-24",0,0,0,0,0,0]
[null,null,null,null,null,null,null,null,null,null,null,null,null,null,null,null,null,"2008-07-29",0,0,0,0,0,0]
[null,{"$f":"C52+1","v":"1900-01-01"},null,{"$f":"IF(C53>0,C53+1-B53,0)","v":0},null,null,{"$f":"(E53+F53)*'UDAT Support'!$C$13","v":0},null,null,null,null,null,null,null,null,{"$f":"DATE(2008,MONTH(C53),DAY(C53))","v":"2007-12-31"},null,"2008-08-03",0,0,0,0,0,0]
[null,{"$f":"C53+1","v":"1900-01-01"},null,0,null,null,{"$f":"(E54+F54)*'UDAT Support'!$C$13","v":0},null,null,null,null,null,null,null,null,"2007-12-31",null,"2008-08-08",0,0,0,0,0,0]
[null,"1900-01-01",null,0,null,null,{"$f":"(E55+F55)*'UDAT Support'!$C$13","v":0},null,null,null,null,null,null,null,null,"2007-12-31",null,"2008-08-13",0,0,0,0,0,0]
[null,"1900-01-01",null,0,null,null,{"$f":"(E56+F56)*'UDAT Support'!$C$13","v":0},null,null,null,null,null,null,null,null,"2007-12-31",null,"2008-08-18",0,0,0,0,0,0]
[null,"1900-01-01",null,0,null,null,{"$f":"(E57+F57)*'UDAT Support'!$C$13","v":0},null,null,null,null,null,null,null,null,"2007-12-31",null,"2008-08-23",0,0,0,0,0,0]
[null,"1900-01-01",null,0,null,null,{"$f":"(E58+F58)*'UDAT Support'!$C$13","v":0},null,null,null,null,null,null,null,null,"2007-12-31",null,"2008-08-28",0,0,0,0,0,0]
[null,"1900-01-01",null,0,null,null,{"$f":"(E59+F59)*'UDAT Support'!$C$13","v":0},null,null,null,null,null,null,null,null,"2007-12-31",null,"2008-09-02",0,0,0,0,0,0]
[null,"1900-01-01",null,0,null,null,{"$f":"(E60+F60)*'UDAT Support'!$C$13","v":0},null,null,null,null,null,null,null,null,"2007-12-31",null,"2008-09-07",0,0,0,0,0,0]
[null,"1900-01-01",null,0,null,null,{"$f":"(E61+F61)*'UDAT Support'!$C$13","v":0},null,null,null,null,null,null,null,null,"2007-12-31",null,"2008-09-12",0,0,0,0,0,0]
[null,"1900-01-01",null,0,null,null,{"$f":"(E62+F62)*'UDAT Support'!$C$13","v":0},null,null,null,null,null,null,null,null,"2007-12-31",null,"2008-09-17",0,0,0,0,0,0]
[null,"1900-01-01",null,0,null,null,{"$f":"(E63+F63)*'UDAT Support'!$C$13","v":0},null,null,null,null,null,null,null,null,"2007-12-31",null,"2008-09-22",0,0,0,0,{"$f":"IF(U63>0,S63/U63,0)","v":0},0]
[null,"1900-01-01",null,0,null,null,{"$f":"(E64+F64)*'UDAT Support'!$C$13","v":0},null,null,null,null,null,null,null,null,"2007-12-31",null,"2008-09-27",0,0,0,0,0,0]
[null,"1900-01-01",null,0,null,null,{"$f":"(E65+F65)*'UDAT Support'!$C$13","v":0},null,null,null,null,null,null,null,null,"2007-12-31",null,"2008-10-02",0,0,0,0,0,0]
[null,"1900-01-01",null,0,null,null,{"$f":"(E66+F66)*'UDAT Support'!$C$13","v":0},null,null,null,null,null,null,null,null,"2007-12-31",null,"2008-10-07",0,0,0,0,0,0]
[null,"1900-01-01",null,0,null,null,{"$f":"(E67+F67)*'UDAT Support'!$C$13","v":0},null,null,null,null,null,null,null,null,"2007-12-31",null,"2008-10-12",0,0,0,0,0,0]
[null,"1900-01-01",null,0,null,null,{"$f":"(E68+F68)*'UDAT Support'!$C$13","v":0},null,null,null,null,null,null,null,null,"2007-12-31",null,"2008-10-17",0,0,0,0,0,0]
[null,"1900-01-01",null,0,null,null,{"$f":"(E69+F69)*'UDAT Support'!$C$13","v":0},null,null,null,null,null,null,null,null,"2007-12-31",null,{"$f":"R68+5","v":"2008-10-22"},0,0,0,0,0,0]
[null,"1900-01-01",null,0,null,null,{"$f":"(E70+F70)*'UDAT Support'!$C$13","v":0},null,null,null,null,null,null,null,null,"2007-12-31",null,"2008-10-27",0,0,0,0,0,0]
[null,"1900-01-01",null,0,null,null,{"$f":"(E71+F71)*'UDAT Support'!$C$13","v":0},null,null,null,null,null,null,null,null,"2007-12-31",null,"2008-11-01",0,0,0,0,0,0]
[null,"1900-01-01",null,0,null,null,{"$f":"(E72+F72)*'UDAT Support'!$C$13","v":0},null,null,null,null,null,null,null,null,"2007-12-31",null,"2008-11-06",0,0,0,0,0,0]
[null,"1900-01-01",null,0,null,null,{"$f":"(E73+F73)*'UDAT Support'!$C$13","v":0},null,null,null,null,null,null,null,null,"2007-12-31",null,"2008-11-11",0,0,0,0,0,0]
[null,"1900-01-01",null,0,null,null,{"$f":"(E74+F74)*'UDAT Support'!$C$13","v":0},null,null,null,null,null,null,null,null,"2007-12-31",null,"2008-11-16",0,0,0,0,0,0]
[null,"1900-01-01",null,0,null,null,{"$f":"(E75+F75)*'UDAT Support'!$C$13","v":0},null,null,null,null,null,null,null,null,"2007-12-31",null,"2008-11-21",0,0,0,0,0,0]
[null,"1900-01-01",null,0,null,null,{"$f":"(E76+F76)*'UDAT Support'!$C$13","v":0},null,null,null,null,null,null,null,null,"2007-12-31",null,"2008-11-26",{"$f":"SUMIFS($E$9:$E$42,$P$9:$P$42,\">\"& R75,$P$9:$P$42,\"<=\"&R76)","v":0},{"$f":"SUMIFS($E$53:$E$86,$P$53:$P$86,\">\"& R75,$P$53:$P$86,\"<=\"&R76)","v":0},{"$f":"SUMIFS($D$9:$D$42,$P$9:$P$42,\">\"& $R75,$P$9:$P$42,\"<=\"&$R76)","v":0},{"$f":"SUMIFS($D$53:$D$86,$P$53:$P$86,\">\"& $R75,$P$53:$P$86,\"<=\"&$R76)","v":0},0,0]
[null,"1900-01-01",null,0,null,null,{"$f":"(E77+F77)*'UDAT Support'!$C$13","v":0},null,null,null,null,null,null,null,null,"2007-12-31",null,{"$f":"R76+5","v":"2008-12-01"},0,0,0,0,0,0]
[null,"1900-01-01",null,0,null,null,{"$f":"(E78+F78)*'UDAT Support'!$C$13","v":0},null,null,null,null,null,null,null,null,"2007-12-31",null,"2008-12-06",0,0,0,0,0,0]
[null,"1900-01-01",null,0,null,null,{"$f":"(E79+F79)*'UDAT Support'!$C$13","v":0},null,null,null,null,null,null,null,null,"2007-12-31",null,"2008-12-11",0,0,0,0,0,0]
[null,"1900-01-01",null,0,null,null,{"$f":"(E80+F80)*'UDAT Support'!$C$13","v":0},null,null,null,null,null,null,null,null,"2007-12-31",null,"2008-12-16",0,0,0,0,0,0]
[null,"1900-01-01",null,0,null,null,{"$f":"(E81+F81)*'UDAT Support'!$C$13","v":0},null,null,null,null,null,null,null,null,"2007-12-31",null,"2008-12-21",0,0,0,0,0,0]
[null,"1900-01-01",null,0,null,null,{"$f":"(E82+F82)*'UDAT Support'!$C$13","v":0},null,null,null,null,null,null,null,null,"2007-12-31",null,"2008-12-26",0,0,0,0,0,0]
[null,"1900-01-01",null,0,null,null,{"$f":"(E83+F83)*'UDAT Support'!$C$13","v":0},null,null,null,null,null,null,null,null,"2007-12-31",null,{"$f":"R82+5","v":"2008-12-31"},0,0,0,0,0,0]
[null,"1900-01-01",null,0,null,null,{"$f":"(E84+F84)*'UDAT Support'!$C$13","v":0},null,null,null,null,null,null,null,null,"2007-12-31"]
[null,"1900-01-01",null,0,null,null,{"$f":"(E85+F85)*'UDAT Support'!$C$13","v":0},null,null,null,null,null,null,null,null,"2007-12-31"]
[null,"1900-01-01",null,0,null,null,{"$f":"(E86+F86)*'UDAT Support'!$C$13","v":0},null,null,null,null,null,null,null,null,"2007-12-31"]
[null,null,{"$f":"IF(ABS(D87-365)>4,\"Must have 365 ± 4 days.\",\"\")","v":"Must have 365 ± 4 days."},{"$f":"SUM(D53:D86)","v":0},{"$f":"SUM(E53:E86)","v":0},{"$f":"SUM(F53:F86)","v":0},{"$f":"SUM(G53:G86)","v":0}]
[]
[null,null,null,null,"Total Annual Oil Cost"]
[]
[]
[]
[null,"Notes:"]

{"sheet":"Propane","index":8,"n_rows":92,"n_cols":24,"rows_kept":92,"cut":false,"hidden":true,"merged":[[2,1,2,10],[89,4,89,6],[91,1,91,6],[92,1,96,6],[88,4,88,6],[4,1,5,6],[44,4,44,6],[45,4,45,6],[48,1,49,6]]}
[null,"Propane Utility Data Summary"]
[null,"Instructions"]
[null,"1) Enter data for pre-construction energy use in blue cells. Note that for the Model Calibration Tool, inventory readings, including the amount of fuel in storage at the start and end of a period and the amount used during that period, will also be required in order to assess the volume of propane consumed monthly not simply delivered.                                                                                                                                                                                                                                                                 2) If there is on-site generation that runs on propane, please provide the propane consumed in column F.\n3) Hide any unused rows; do not delete them.\n4) Review graphs to the right for irregularities in the usage data.\n5) Post-Construction data will be filled in one year after construction has been completed.\n6) Please use the \"Notes\" field below the data entry section of this tab to explain unusual circumstances, any anomalies in the data, or adjustments made. Also, please follow Program Guidelines v4.2, Section 3.2.2 for irregular delivers, outliers, and estimated bills.\n\n"]
[]
[null,"PRE-CONSTRUCTION"]
[null,null,null,null,null,null,null,null,null,null,null,null,null,null,null,"Data for Graph:"]
[null,"Billing Period Start Date","Delivery Date","Days in Billing Period",{"$f":"\"Propane Delivery \n(\"&'Utility Info'!F7&\")\"","v":"Propane Delivery \n(<Not Used>)"},"On-Site Propane Generation\n(MMBtu)","Propane Consumption\n(MMBtu)",null,null,null,null,null,null,null,null,"Delivery Month/Day"]
[]
[null,{"$f":"C8+1","v":"1900-01-01"},null,{"$f":"IF(C9>0,C9+1-B9,0)","v":0},null,null,{"$f":"(E9+F9)*'UDAT Support'!$C$33","v":0},null,null,null,null,null,null,null,null,{"$f":"DATE(2008,MONTH(C9),DAY(C9))","v":"2007-12-31"},null,null,"Gallons",null,"Days",null,"Gal/day"]
[null,{"$f":"C9+1","v":"1900-01-01"},null,{"$f":"IF(C10>0,C10+1-B10,0)","v":0},null,null,{"$f":"(E10+F10)*'UDAT Support'!$C$33","v":0},null,null,null,null,null,null,null,null,{"$f":"DATE(2008,MONTH(C10),DAY(C10))","v":"2007-12-31"},null,"Date","Pre","Post","Pre","Post","Pre","Post"]
[null,"1900-01-01",null,0,null,null,{"$f":"(E11+F11)*'UDAT Support'!$C$33","v":0},null,null,null,null,null,null,null,null,"2007-12-31",null,"2008-01-05",{"$f":"SUMIFS($E$9:$E$42,$P$9:$P$42,\"<=\"&R11)","v":0},{"$f":"SUMIFS($E$53:$E$86,$P$53:$P$86,\"<=\"&R11)","v":0},{"$f":"SUMIFS($D$9:$D$42,$P$9:$P$42,\"<=\"&$R$11)","v":0},{"$f":"SUMIFS($D$53:$D$86,$P$53:$P$86,\"<=\"&$R$11)","v":0},{"$f":"IF(U11>0,S11/U11,0)","v":0},{"$f":"IF(V11>0,T11/V11,0)","v":0}]
[null,"1900-01-01",null,0,null,null,{"$f":"(E12+F12)*'UDAT Support'!$C$33","v":0},null,null,null,null,null,null,null,null,"2007-12-31",null,{"$f":"R11+5","v":"2008-01-10"},{"$f":"SUMIFS($E$9:$E$42,$P$9:$P$42,\">\"& R11,$P$9:$P$42,\"<=\"&R12)","v":0},{"$f":"SUMIFS($E$53:$E$86,$P$53:$P$86,\">\"& R11,$P$53:$P$86,\"<=\"&R12)","v":0},{"$f":"SUMIFS($D$9:$D$42,$P$9:$P$42,\">\"& $R11,$P$9:$P$42,\"<=\"&$R12)","v":0},{"$f":"SUMIFS($D$53:$D$86,$P$53:$P$86,\">\"& $R11,$P$53:$P$86,\"<=\"&$R12)","v":0},{"$f":"IF(U12>0,S12/U12,0)","v":0},0]
[null,"1900-01-01",null,0,null,null,{"$f":"(E13+F13)*'UDAT Support'!$C$33","v":0},null,null,null,null,null,null,null,null,"2007-12-31",null,{"$f":"R12+5","v":"2008-01-15"},0,0,0,0,0,0]
[null,"1900-01-01",null,0,null,null,{"$f":"(E14+F14)*'UDAT Support'!$C$33","v":0},null,null,null,null,null,null,null,null,"2007-12-31",null,"2008-01-20",0,0,0,0,0,0]
[null,"1900-01-01",null,0,null,null,{"$f":"(E15+F15)*'UDAT Support'!$C$33","v":0},null,null,null,null,null,null,null,null,"2007-12-31",null,"2008-01-25",0,0,0,0,0,0]
[null,"1900-01-01",null,0,null,null,{"$f":"(E16+F16)*'UDAT Support'!$C$33","v":0},null,null,null,null,null,null,null,null,"2007-12-31",null,"2008-01-30",0,0,0,0,0,0]
[null,"1900-01-01",null,0,null,null,{"$f":"(E17+F17)*'UDAT Support'!$C$33","v":0},null,null,null,null,null,null,null,null,"2007-12-31",null,"2008-02-04",0,0,0,0,0,0]
[null,"1900-01-01",null,0,null,null,{"$f":"(E18+F18)*'UDAT Support'!$C$33","v":0},null,null,null,null,null,null,null,null,"2007-12-31",null,"2008-02-09",0,0,0,0,0,0]
[null,"1900-01-01",null,0,null,null,{"$f":"(E19+F19)*'UDAT Support'!$C$33","v":0},null,null,null,null,null,null,null,null,"2007-12-31",null,"2008-02-14",0,0,0,0,0,0]
[null,"1900-01-01",null,0,null,null,{"$f":"(E20+F20)*'UDAT Support'!$C$33","v":0},null,null,null,null,null,null,null,null,"2007-12-31",null,"2008-02-19",0,0,0,0,0,0]
[null,"1900-01-01",null,0,null,null,{"$f":"(E21+F21)*'UDAT Support'!$C$33","v":0},null,null,null,null,null,null,null,null,"2007-12-31",null,"2008-02-24",0,0,0,0,0,0]
[null,"1900-01-01",null,0,null,null,{"$f":"(E22+F22)*'UDAT Support'!$C$33","v":0},null,null,null,null,null,null,null,null,"2007-12-31",null,{"$f":"R21+6","v":"2008-03-01"},0,0,0,0,0,0]
[null,"1900-01-01",null,0,null,null,{"$f":"(E23+F23)*'UDAT Support'!$C$33","v":0},null,null,null,null,null,null,null,null,"2007-12-31",null,"2008-03-06",0,0,0,0,0,0]
[null,"1900-01-01",null,0,null,null,{"$f":"(E24+F24)*'UDAT Support'!$C$33","v":0},null,null,null,null,null,null,null,null,"2007-12-31",null,"2008-03-11",0,0,0,0,0,0]
[null,"1900-01-01",null,0,null,null,{"$f":"(E25+F25)*'UDAT Support'!$C$33","v":0},null,null,null,null,null,null,null,null,"2007-12-31",null,"2008-03-16",0,0,0,0,0,0]
[null,"1900-01-01",null,0,null,null,{"$f":"(E26+F26)*'UDAT Support'!$C$33","v":0},null,null,null,null,null,null,null,null,"2007-12-31",null,"2008-03-21",0,0,0,0,0,0]
[null,"1900-01-01",null,0,null,null,{"$f":"(E27+F27)*'UDAT Support'!$C$33","v":0},null,null,null,null,null,null,null,null,"2007-12-31",null,"2008-03-26",0,0,0,0,0,0]
[null,"1900-01-01",null,0,null,null,{"$f":"(E28+F28)*'UDAT Support'!$C$33","v":0},null,null,null,null,null,null,null,null,"2007-12-31",null,"2008-03-31",0,0,0,0,0,0]
[null,"1900-01-01",null,0,null,null,{"$f":"(E29+F29)*'UDAT Support'!$C$33","v":0},null,null,null,null,null,null,null,null,"2007-12-31",null,"2008-04-05",0,0,0,0,0,0]
[null,"1900-01-01",null,0,null,null,{"$f":"(E30+F30)*'UDAT Support'!$C$33","v":0},null,null,null,null,null,null,null,null,"2007-12-31",null,"2008-04-10",0,0,0,0,0,0]
[null,"1900-01-01",null,0,null,null,{"$f":"(E31+F31)*'UDAT Support'!$C$33","v":0},null,null,null,null,null,null,null,null,"2007-12-31",null,"2008-04-15",0,0,0,0,0,0]
[null,"1900-01-01",null,0,null,null,{"$f":"(E32+F32)*'UDAT Support'!$C$33","v":0},null,null,null,null,null,null,null,null,"2007-12-31",null,"2008-04-20",0,0,0,0,0,0]
[null,"1900-01-01",null,0,null,null,{"$f":"(E33+F33)*'UDAT Support'!$C$33","v":0},null,null,null,null,null,null,null,null,"2007-12-31",null,"2008-04-25",0,0,0,0,0,0]
[null,"1900-01-01",null,0,null,null,{"$f":"(E34+F34)*'UDAT Support'!$C$33","v":0},null,null,null,null,null,null,null,null,"2007-12-31",null,"2008-04-30",0,0,0,0,0,0]
[null,"1900-01-01",null,0,null,null,{"$f":"(E35+F35)*'UDAT Support'!$C$33","v":0},null,null,null,null,null,null,null,null,"2007-12-31",null,"2008-05-05",0,0,0,0,0,0]
[null,"1900-01-01",null,0,null,null,{"$f":"(E36+F36)*'UDAT Support'!$C$33","v":0},null,null,null,null,null,null,null,null,"2007-12-31",null,"2008-05-10",0,0,0,0,0,0]
[null,"1900-01-01",null,0,null,null,{"$f":"(E37+F37)*'UDAT Support'!$C$33","v":0},null,null,null,null,null,null,null,null,"2007-12-31",null,"2008-05-15",0,0,0,0,0,0]
[null,"1900-01-01",null,0,null,null,{"$f":"(E38+F38)*'UDAT Support'!$C$33","v":0},null,null,null,null,null,null,null,null,"2007-12-31",null,"2008-05-20",0,0,0,0,0,0]
[null,"1900-01-01",null,0,null,null,{"$f":"(E39+F39)*'UDAT Support'!$C$33","v":0},null,null,null,null,null,null,null,null,"2007-12-31",null,"2008-05-25",0,0,0,0,0,0]
[null,"1900-01-01",null,0,null,null,{"$f":"(E40+F40)*'UDAT Support'!$C$33","v":0},null,null,null,null,null,null,null,null,"2007-12-31",null,"2008-05-30",0,0,0,0,0,0]
[null,"1900-01-01",null,0,null,null,{"$f":"(E41+F41)*'UDAT Support'!$C$33","v":0},null,null,null,null,null,null,null,null,"2007-12-31",null,"2008-06-04",0,0,0,0,0,0]
[null,"1900-01-01",null,0,null,null,{"$f":"(E42+F42)*'UDAT Support'!$C$33","v":0},null,null,null,null,null,null,null,null,"2007-12-31",null,"2008-06-09",0,0,0,0,0,0]
[null,null,{"$f":"IF(ABS(D43-365)>4,\"Must have 365 ± 4 days.\",\"\")","v":"Must have 365 ± 4 days."},{"$f":"SUM(D9:D42)","v":0},{"$f":"SUM(E9:E42)","v":0},{"$f":"SUM(F9:F42)","v":0},{"$f":"SUM(G9:G42)","v":0},null,null,null,null,null,null,null,null,null,null,"2008-06-14",0,0,0,0,0,0]
[null,null,null,null,null,null,null,null,null,null,null,null,null,null,null,null,null,"2008-06-19",0,0,0,0,0,0]
[null,null,null,null,"Total Annual Propane Cost",null,null,null,null,null,null,null,null,null,null,null,null,"2008-06-24",0,0,0,0,0,0]
[null,null,null,null,null,null,null,null,null,null,null,null,null,null,null,null,null,"2008-06-29",0,0,0,0,0,0]
[null,null,null,null,null,null,null,null,null,null,null,null,null,null,null,null,null,"2008-07-04",0,0,0,0,0,0]
[null,null,null,null,null,null,null,null,null,null,null,null,null,null,null,null,null,"2008-07-09",0,0,0,0,0,0]
[null,"POST-CONSTRUCTION",null,null,null,null,null,null,null,null,null,null,null,null,null,null,null,"2008-07-14",0,0,0,0,0,0]
[null,null,null,null,null,null,null,null,null,null,null,null,null,null,null,null,null,"2008-07-19",0,0,0,0,0,0]
[null,"Billing Period Start Date","Delivery Date","Days in Billing Period",{"$f":"\"Propane Delivery \n(\"&'Utility Info'!F16&\")\"","v":"Propane Delivery \n(<Not Used>)"},"On-Site Propane Generation\n(MMBtu)","Propane Consumption\n(MMBtu)",null,null,null,null,null,null,null,null,"Delivery Month/Day",null,"2008-07-24",0,0,0,0,0,0]
[null,null,null,null,null,null,null,null,null,null,null,null,null,null,null,null,null,"2008-07-29",0,0,0,0,0,0]
[null,{"$f":"C52+1","v":"1900-01-01"},null,{"$f":"IF(C53>0,C53+1-B53,0)","v":0},null,null,{"$f":"(E53+F53)*'UDAT Support'!$C$34","v":0},null,null,null,null,null,null,null,null,{"$f":"DATE(2008,MONTH(C53),DAY(C53))","v":"2007-12-31"},null,"2008-08-03",0,0,0,0,0,0]
[null,{"$f":"C53+1","v":"1900-01-01"},null,0,null,null,{"$f":"(E54+F54)*'UDAT Support'!$C$34","v":0},null,null,null,null,null,null,null,null,"2007-12-31",null,"2008-08-08",0,0,0,0,0,0]
[null,"1900-01-01",null,0,null,null,{"$f":"(E55+F55)*'UDAT Support'!$C$34","v":0},null,null,null,null,null,null,null,null,"2007-12-31",null,"2008-08-13",0,0,0,0,0,0]
[null,"1900-01-01",null,0,null,null,{"$f":"(E56+F56)*'UDAT Support'!$C$34","v":0},null,null,null,null,null,null,null,null,"2007-12-31",null,"2008-08-18",0,0,0,0,0,0]
[null,"1900-01-01",null,0,null,null,{"$f":"(E57+F57)*'UDAT Support'!$C$34","v":0},null,null,null,null,null,null,null,null,"2007-12-31",null,"2008-08-23",0,0,0,0,0,0]
[null,"1900-01-01",null,0,null,null,{"$f":"(E58+F58)*'UDAT Support'!$C$34","v":0},null,null,null,null,null,null,null,null,"2007-12-31",null,"2008-08-28",0,0,0,0,0,0]
[null,"1900-01-01",null,0,null,null,{"$f":"(E59+F59)*'UDAT Support'!$C$34","v":0},null,null,null,null,null,null,null,null,"2007-12-31",null,"2008-09-02",0,0,0,0,0,0]
[null,"1900-01-01",null,0,null,null,{"$f":"(E60+F60)*'UDAT Support'!$C$34","v":0},null,null,null,null,null,null,null,null,"2007-12-31",null,"2008-09-07",0,0,0,0,0,0]
[null,"1900-01-01",null,0,null,null,{"$f":"(E61+F61)*'UDAT Support'!$C$34","v":0},null,null,null,null,null,null,null,null,"2007-12-31",null,"2008-09-12",0,0,0,0,0,0]
[null,"1900-01-01",null,0,null,null,{"$f":"(E62+F62)*'UDAT Support'!$C$34","v":0},null,null,null,null,null,null,null,null,"2007-12-31",null,"2008-09-17",0,0,0,0,0,0]
[null,"1900-01-01",null,0,null,null,{"$f":"(E63+F63)*'UDAT Support'!$C$34","v":0},null,null,null,null,null,null,null,null,"2007-12-31",null,"2008-09-22",0,0,0,0,{"$f":"IF(U63>0,S63/U63,0)","v":0},0]
[null,"1900-01-01",null,0,null,null,{"$f":"(E64+F64)*'UDAT Support'!$C$34","v":0},null,null,null,null,null,null,null,null,"2007-12-31",null,"2008-09-27",0,0,0,0,0,0]
[null,"1900-01-01",null,0,null,null,{"$f":"(E65+F65)*'UDAT Support'!$C$34","v":0},null,null,null,null,null,null,null,null,"2007-12-31",null,"2008-10-02",0,0,0,0,0,0]
[null,"1900-01-01",null,0,null,null,{"$f":"(E66+F66)*'UDAT Support'!$C$34","v":0},null,null,null,null,null,null,null,null,"2007-12-31",null,"2008-10-07",0,0,0,0,0,0]
[null,"1900-01-01",null,0,null,null,{"$f":"(E67+F67)*'UDAT Support'!$C$34","v":0},null,null,null,null,null,null,null,null,"2007-12-31",null,"2008-10-12",0,0,0,0,0,0]
[null,"1900-01-01",null,0,null,null,{"$f":"(E68+F68)*'UDAT Support'!$C$34","v":0},null,null,null,null,null,null,null,null,"2007-12-31",null,"2008-10-17",0,0,0,0,0,0]
[null,"1900-01-01",null,0,null,null,{"$f":"(E69+F69)*'UDAT Support'!$C$34","v":0},null,null,null,null,null,null,null,null,"2007-12-31",null,{"$f":"R68+5","v":"2008-10-22"},0,0,0,0,0,0]
[null,"1900-01-01",null,0,null,null,{"$f":"(E70+F70)*'UDAT Support'!$C$34","v":0},null,null,null,null,null,null,null,null,"2007-12-31",null,"2008-10-27",0,0,0,0,0,0]
[null,"1900-01-01",null,0,null,null,{"$f":"(E71+F71)*'UDAT Support'!$C$34","v":0},null,null,null,null,null,null,null,null,"2007-12-31",null,"2008-11-01",0,0,0,0,0,0]
[null,"1900-01-01",null,0,null,null,{"$f":"(E72+F72)*'UDAT Support'!$C$34","v":0},null,null,null,null,null,null,null,null,"2007-12-31",null,"2008-11-06",0,0,0,0,0,0]
[null,"1900-01-01",null,0,null,null,{"$f":"(E73+F73)*'UDAT Support'!$C$34","v":0},null,null,null,null,null,null,null,null,"2007-12-31",null,"2008-11-11",0,0,0,0,0,0]
[null,"1900-01-01",null,0,null,null,{"$f":"(E74+F74)*'UDAT Support'!$C$34","v":0},null,null,null,null,null,null,null,null,"2007-12-31",null,"2008-11-16",0,0,0,0,0,0]
[null,"1900-01-01",null,0,null,null,{"$f":"(E75+F75)*'UDAT Support'!$C$34","v":0},null,null,null,null,null,null,null,null,"2007-12-31",null,"2008-11-21",0,0,0,0,0,0]
[null,"1900-01-01",null,0,null,null,{"$f":"(E76+F76)*'UDAT Support'!$C$34","v":0},null,null,null,null,null,null,null,null,"2007-12-31",null,"2008-11-26",{"$f":"SUMIFS($E$9:$E$42,$P$9:$P$42,\">\"& R75,$P$9:$P$42,\"<=\"&R76)","v":0},{"$f":"SUMIFS($E$53:$E$86,$P$53:$P$86,\">\"& R75,$P$53:$P$86,\"<=\"&R76)","v":0},{"$f":"SUMIFS($D$9:$D$42,$P$9:$P$42,\">\"& $R75,$P$9:$P$42,\"<=\"&$R76)","v":0},{"$f":"SUMIFS($D$53:$D$86,$P$53:$P$86,\">\"& $R75,$P$53:$P$86,\"<=\"&$R76)","v":0},0,0]
[null,"1900-01-01",null,0,null,null,{"$f":"(E77+F77)*'UDAT Support'!$C$34","v":0},null,null,null,null,null,null,null,null,"2007-12-31",null,{"$f":"R76+5","v":"2008-12-01"},0,0,0,0,0,0]
[null,"1900-01-01",null,0,null,null,{"$f":"(E78+F78)*'UDAT Support'!$C$34","v":0},null,null,null,null,null,null,null,null,"2007-12-31",null,"2008-12-06",0,0,0,0,0,0]
[null,"1900-01-01",null,0,null,null,{"$f":"(E79+F79)*'UDAT Support'!$C$34","v":0},null,null,null,null,null,null,null,null,"2007-12-31",null,"2008-12-11",0,0,0,0,0,0]
[null,"1900-01-01",null,0,null,null,{"$f":"(E80+F80)*'UDAT Support'!$C$34","v":0},null,null,null,null,null,null,null,null,"2007-12-31",null,"2008-12-16",0,0,0,0,0,0]
[null,"1900-01-01",null,0,null,null,{"$f":"(E81+F81)*'UDAT Support'!$C$34","v":0},null,null,null,null,null,null,null,null,"2007-12-31",null,"2008-12-21",0,0,0,0,0,0]
[null,"1900-01-01",null,0,null,null,{"$f":"(E82+F82)*'UDAT Support'!$C$34","v":0},null,null,null,null,null,null,null,null,"2007-12-31",null,"2008-12-26",0,0,0,0,0,0]
[null,"1900-01-01",null,0,null,null,{"$f":"(E83+F83)*'UDAT Support'!$C$34","v":0},null,null,null,null,null,null,null,null,"2007-12-31",null,{"$f":"R82+5","v":"2008-12-31"},0,0,0,0,0,0]
[null,"1900-01-01",null,0,null,null,{"$f":"(E84+F84)*'UDAT Support'!$C$34","v":0},null,null,null,null,null,null,null,null,"2007-12-31"]
[null,"1900-01-01",null,0,null,null,{"$f":"(E85+F85)*'UDAT Support'!$C$34","v":0},null,null,null,null,null,null,null,null,"2007-12-31"]
[null,"1900-01-01",null,0,null,null,{"$f":"(E86+F86)*'UDAT Support'!$C$34","v":0},null,null,null,null,null,null,null,null,"2007-12-31"]
[null,null,{"$f":"IF(ABS(D87-365)>4,\"Must have 365 ± 4 days.\",\"\")","v":"Must have 365 ± 4 days."},{"$f":"SUM(D53:D86)","v":0},{"$f":"SUM(E53:E86)","v":0},{"$f":"SUM(F53:F86)","v":0},{"$f":"SUM(G53:G86)","v":0}]
[]
[null,null,null,null,"Total Annual Propane Cost"]
[]
[]
[null,"Notes:"]

{"sheet":"Steam","index":9,"n_rows":53,"n_cols":53,"rows_kept":53,"cut":false,"hidden":true,"merged":[[93,4,93,5],[94,4,94,5],[2,1,2,7],[4,1,5,7],[28,1,29,7],[52,1,52,4],[53,1,57,4]]}
[null,"Steam Utility Data Summary"]
[null,"Instructions"]
[null,"1) Enter data for pre-construction energy use in blue cells. Please ensure beginning and end read dates are 'Actual'.                                                                                                                                                                                              2) If there is on-site generation that runs on purchased steam (vs. repurposed), please provide the steam consumed in column G. Alternitavely, if there is on-site generation that provides steam to the site (e.g. CHP/cogen), please include steam consumed in column G. \n3) Hide any unused rows; do not delete them.\n4) Review graphs to the right for irregularities in the usage data.\n5) Post-Construction data will be filled in one year after construction has been completed.\n6) Please use the \"Notes\" field below the data entry section of this tab to explain unusual circumstances, any anomalies in the data, or adjustments made. Also, please follow Program Guidelines v4.2, Section 3.2.2 for irregular delivers, outliers, and estimated bills.\n\n"]
[]
[null,"PRE-CONSTRUCTION"]
[null,null,null,null,null,null,null,null,null,null,null,null,null,null,null,"Data for Graphs:"]
[null,"Billing Period Start Date","Read Date","Days in Billing Period",{"$f":"\"Steam Consumption\n(\"&'Utility Info'!G7&\")\"","v":"Steam Consumption\n(<Not Used>)"},"Actual/ Estimated","On-Site Steam Generation\n(MMBtu)","Steam Consumption\n(MMBtu)",null,null,null,null,null,null,null,"Reference Date","Month",null,"Months","Steam Pre","Steam Post",null,null,null,null,null,null,null,null,null,null,null,null,null,null,null,null,null,null,null,null,null,null,null,null,null,null,null,null,null,null,null,"In-Unit Post"]
[]
[null,{"$f":"C8+1","v":"1900-01-01"},null,{"$f":"IF(C9>0,C9+1-B9,0)","v":0},null,null,null,{"$f":"(E9+G9)*'UDAT Support'!$C$24","v":0},null,null,null,null,null,null,null,{"$f":"DATE(YEAR(C9),MONTH(C9),1)","v":"1900-01-01"},{"$f":"IF((P9-B9)>(C9-P9),MONTH(B9),MONTH(C9))","v":1},null,"2012-01-15",{"$f":"SUMIF($Q$9:$Q$23,MONTH($S9),$H$9:$H$23)","v":0},{"$f":"SUMIF($Q$33:$Q$47,MONTH($S9),$H$33:$H$47)","v":0},null,null,null,null,null,null,null,null,null,null,null,null,null,null,null,null,null,null,null,null,null,null,null,null,null,null,null,null,null,null,null,{"$f":"SUMIF($AT$35:$AT$49,MONTH($S9),$AH$35:$AH$49)","v":0}]
[null,{"$f":"C9+1","v":"1900-01-01"},null,0,null,null,null,{"$f":"(E10+G10)*'UDAT Support'!$C$24","v":0},null,null,null,null,null,null,null,"1900-01-01",1,null,"2012-02-15",{"$f":"SUMIF($Q$9:$Q$23,MONTH($S10),$H$9:$H$23)","v":0},0,null,null,null,null,null,null,null,null,null,null,null,null,null,null,null,null,null,null,null,null,null,null,null,null,null,null,null,null,null,null,null,0]
[null,"1900-01-01",null,0,null,null,null,{"$f":"(E11+G11)*'UDAT Support'!$C$24","v":0},null,null,null,null,null,null,null,"1900-01-01",1,null,"2012-03-15",0,0,null,null,null,null,null,null,null,null,null,null,null,null,null,null,null,null,null,null,null,null,null,null,null,null,null,null,null,null,null,null,null,0]
[null,"1900-01-01",null,0,null,null,null,{"$f":"(E12+G12)*'UDAT Support'!$C$24","v":0},null,null,null,null,null,null,null,"1900-01-01",1,null,"2012-04-15",0,0,null,null,null,null,null,null,null,null,null,null,null,null,null,null,null,null,null,null,null,null,null,null,null,null,null,null,null,null,null,null,null,0]
[null,"1900-01-01",null,0,null,null,null,{"$f":"(E13+G13)*'UDAT Support'!$C$24","v":0},null,null,null,null,null,null,null,"1900-01-01",1,null,"2012-05-15",0,0,null,null,null,null,null,null,null,null,null,null,null,null,null,null,null,null,null,null,null,null,null,null,null,null,null,null,null,null,null,null,null,0]
[null,"1900-01-01",null,0,null,null,null,{"$f":"(E14+G14)*'UDAT Support'!$C$24","v":0},null,null,null,null,null,null,null,"1900-01-01",1,null,"2012-06-15",0,0,null,null,null,null,null,null,null,null,null,null,null,null,null,null,null,null,null,null,null,null,null,null,null,null,null,null,null,null,null,null,null,0]
[null,"1900-01-01",null,0,null,null,null,{"$f":"(E15+G15)*'UDAT Support'!$C$24","v":0},null,null,null,null,null,null,null,"1900-01-01",1,null,"2012-07-15",0,0,null,null,null,null,null,null,null,null,null,null,null,null,null,null,null,null,null,null,null,null,null,null,null,null,null,null,null,null,null,null,null,0]
[null,"1900-01-01",null,0,null,null,null,{"$f":"(E16+G16)*'UDAT Support'!$C$24","v":0},null,null,null,null,null,null,null,"1900-01-01",1,null,"2012-08-15",0,0,null,null,null,null,null,null,null,null,null,null,null,null,null,null,null,null,null,null,null,null,null,null,null,null,null,null,null,null,null,null,null,0]
[null,"1900-01-01",null,0,null,null,null,{"$f":"(E17+G17)*'UDAT Support'!$C$24","v":0},null,null,null,null,null,null,null,"1900-01-01",1,null,"2012-09-15",0,0,null,null,null,null,null,null,null,null,null,null,null,null,null,null,null,null,null,null,null,null,null,null,null,null,null,null,null,null,null,null,null,0]
[null,"1900-01-01",null,0,null,null,null,{"$f":"(E18+G18)*'UDAT Support'!$C$24","v":0},null,null,null,null,null,null,null,"1900-01-01",1,null,"2012-10-15",0,0,null,null,null,null,null,null,null,null,null,null,null,null,null,null,null,null,null,null,null,null,null,null,null,null,null,null,null,null,null,null,null,0]
[null,"1900-01-01",null,0,null,null,null,{"$f":"(E19+G19)*'UDAT Support'!$C$24","v":0},null,null,null,null,null,null,null,"1900-01-01",1,null,"2012-11-15",0,0,null,null,null,null,null,null,null,null,null,null,null,null,null,null,null,null,null,null,null,null,null,null,null,null,null,null,null,null,null,null,null,0]
[null,"1900-01-01",null,0,null,null,null,{"$f":"(E20+G20)*'UDAT Support'!$C$24","v":0},null,null,null,null,null,null,null,"1900-01-01",1,null,"2012-12-15",0,0,null,null,null,null,null,null,null,null,null,null,null,null,null,null,null,null,null,null,null,null,null,null,null,null,null,null,null,null,null,null,null,0]
[null,"1900-01-01",null,0,null,null,null,{"$f":"(E21+G21)*'UDAT Support'!$C$24","v":0},null,null,null,null,null,null,null,"1900-01-01",1]
[null,"1900-01-01",null,0,null,null,null,{"$f":"(E22+G22)*'UDAT Support'!$C$24","v":0},null,null,null,null,null,null,null,"1900-01-01",1]
[null,"1900-01-01",null,0,null,null,null,{"$f":"(E23+G23)*'UDAT Support'!$C$24","v":0},null,null,null,null,null,null,null,"1900-01-01",1]
[null,null,{"$f":"IF(ABS(D24-365)>4,\"Must have 365 ± 4 days.\",\"\")","v":"Must have 365 ± 4 days."},{"$f":"SUM(D9:D23)","v":0},{"$f":"SUM(E9:E23)","v":0},null,{"$f":"SUM(G9:G23)","v":0},{"$f":"SUM(H9:H23)","v":0}]
[]
[null,null,null,null,"Total Annual Steam Cost"]
[]
[]
[null,"POST-CONSTRUCTION"]
[null,null,null,null,null,null,null,null,null,null,null,null,null,null,null,"Data for Graphs:"]
[null,"Billing Period Start Date","Read Date","Days in Billing Period",{"$f":"\"Steam Consumption\n(\"&'Utility Info'!G16&\")\"","v":"Steam Consumption\n(<Not Used>)"},"Actual/ Estimated","On-Site Steam Generation\n(MMBtu)","Steam Consumption\n(MMBtu)",null,null,null,null,null,null,null,"Common Area Ref Date","Common Area Month"]
[]
[null,{"$f":"C32+1","v":"1900-01-01"},null,{"$f":"IF(C33>0,C33+1-B33,0)","v":0},null,null,null,{"$f":"(E33+G33)*'UDAT Support'!$C$25","v":0},null,null,null,null,null,null,null,{"$f":"DATE(YEAR(C33),MONTH(C33),1)","v":"1900-01-01"},{"$f":"IF((P33-B33)>(C33-P33),MONTH(B33),MONTH(C33))","v":1}]
[null,{"$f":"C33+1","v":"1900-01-01"},null,0,null,null,null,{"$f":"(E34+G34)*'UDAT Support'!$C$25","v":0},null,null,null,null,null,null,null,"1900-01-01",1]
[null,"1900-01-01",null,0,null,null,null,{"$f":"(E35+G35)*'UDAT Support'!$C$25","v":0},null,null,null,null,null,null,null,"1900-01-01",1]
[null,"1900-01-01",null,0,null,null,null,{"$f":"(E36+G36)*'UDAT Support'!$C$25","v":0},null,null,null,null,null,null,null,"1900-01-01",1]
[null,"1900-01-01",null,0,null,null,null,{"$f":"(E37+G37)*'UDAT Support'!$C$25","v":0},null,null,null,null,null,null,null,"1900-01-01",1]
[null,"1900-01-01",null,0,null,null,null,{"$f":"(E38+G38)*'UDAT Support'!$C$25","v":0},null,null,null,null,null,null,null,"1900-01-01",1]
[null,"1900-01-01",null,0,null,null,null,{"$f":"(E39+G39)*'UDAT Support'!$C$25","v":0},null,null,null,null,null,null,null,"1900-01-01",1]
[null,"1900-01-01",null,0,null,null,null,{"$f":"(E40+G40)*'UDAT Support'!$C$25","v":0},null,null,null,null,null,null,null,"1900-01-01",1]
[null,"1900-01-01",null,0,null,null,null,{"$f":"(E41+G41)*'UDAT Support'!$C$25","v":0},null,null,null,null,null,null,null,"1900-01-01",1]
[null,"1900-01-01",null,0,null,null,null,{"$f":"(E42+G42)*'UDAT Support'!$C$25","v":0},null,null,null,null,null,null,null,"1900-01-01",1]
[null,"1900-01-01",null,0,null,null,null,{"$f":"(E43+G43)*'UDAT Support'!$C$25","v":0},null,null,null,null,null,null,null,"1900-01-01",1]
[null,"1900-01-01",null,0,null,null,null,{"$f":"(E44+G44)*'UDAT Support'!$C$25","v":0},null,null,null,null,null,null,null,"1900-01-01",1]
[null,"1900-01-01",null,0,null,null,null,{"$f":"(E45+G45)*'UDAT Support'!$C$25","v":0},null,null,null,null,null,null,null,"1900-01-01",1]
[null,"1900-01-01",null,0,null,null,null,{"$f":"(E46+G46)*'UDAT Support'!$C$25","v":0},null,null,null,null,null,null,null,"1900-01-01",1]
[null,"1900-01-01",null,0,null,null,null,{"$f":"(E47+G47)*'UDAT Support'!$C$25","v":0},null,null,null,null,null,null,null,"1900-01-01",1]
[null,null,{"$f":"IF(ABS(D48-365)>4,\"Must have 365 ± 4 days.\",\"\")","v":"Must have 365 ± 4 days."},{"$f":"SUM(D33:D47)","v":0},{"$f":"SUM(E33:E47)","v":0},null,{"$f":"SUM(G33:G47)","v":0},{"$f":"SUM(H33:H47)","v":0}]
[]
[null,null,null,null,"Total Annual Steam Cost"]
[]
[]
[null,"Notes:"]

{"sheet":"Chilled Water","index":10,"n_rows":53,"n_cols":52,"rows_kept":53,"cut":false,"hidden":true,"merged":[[53,1,57,4],[2,1,2,6],[4,1,5,6],[28,1,29,6],[52,1,52,4],[25,4,25,6],[26,4,26,6],[49,4,49,6],[50,4,50,6]]}
[null,"Chilled Water Utility Data Summary"]
[null,"Instructions"]
[null,"1) Enter data for pre-construction energy use in blue cells.\n2) If there is on-site generation that provides chilled water to the site (e.g. absorption chiller via CHP/cogen), please include chilled water consumed in column F. \n3) Hide any unused rows; do not delete them.\n4) Review graphs to the right for irregularities in the usage data.\n5) Post-Construction data will be filled in one year after construction has been completed.\n6) Please use the \"Notes\" field below the data entry section of this tab to explain unusual circumstances, any anomalies in the data, or adjustments made. Also, please follow Program Guidelines v4.2, Section 3.2.2 for irregular delivers, outliers, and estimated bills.\n\n"]
[]
[null,"PRE-CONSTRUCTION"]
[null,null,null,null,null,null,null,null,null,null,null,null,null,null,"Data for Graphs:"]
[null,"Billing Period Start Date","Read Date","Days in Billing Period","Chilled Water Consumption\n(MMBtu)","On-Site Chilled Water Generation\n(MMBtu)","Chilled Water Consumption\n(MMBtu)",null,null,null,null,null,null,null,"Reference Date","Month",null,"Months","Steam Pre","Steam Post",null,null,null,null,null,null,null,null,null,null,null,null,null,null,null,null,null,null,null,null,null,null,null,null,null,null,null,null,null,null,null,"In-Unit Post"]
[]
[null,{"$f":"C8+1","v":"1900-01-01"},null,{"$f":"IF(C9>0,C9+1-B9,0)","v":0},null,null,{"$f":"E9+F9","v":0},null,null,null,null,null,null,null,{"$f":"DATE(YEAR(C9),MONTH(C9),1)","v":"1900-01-01"},{"$f":"IF((O9-B9)>(C9-O9),MONTH(B9),MONTH(C9))","v":1},null,"2012-01-15",{"$f":"SUMIF($P$9:$P$23,MONTH($R9),$G$9:$G$23)","v":0},{"$f":"SUMIF($P$33:$P$47,MONTH($R9),$G$33:$G$47)","v":0},null,null,null,null,null,null,null,null,null,null,null,null,null,null,null,null,null,null,null,null,null,null,null,null,null,null,null,null,null,null,null,{"$f":"SUMIF($AS$35:$AS$49,MONTH($R9),$AG$35:$AG$49)","v":0}]
[null,{"$f":"C9+1","v":"1900-01-01"},null,0,null,null,{"$f":"E10+F10","v":0},null,null,null,null,null,null,null,"1900-01-01",1,null,"2012-02-15",{"$f":"SUMIF($P$9:$P$23,MONTH($R10),$G$9:$G$23)","v":0},0,null,null,null,null,null,null,null,null,null,null,null,null,null,null,null,null,null,null,null,null,null,null,null,null,null,null,null,null,null,null,null,0]
[null,"1900-01-01",null,0,null,null,0,null,null,null,null,null,null,null,"1900-01-01",1,null,"2012-03-15",0,0,null,null,null,null,null,null,null,null,null,null,null,null,null,null,null,null,null,null,null,null,null,null,null,null,null,null,null,null,null,null,null,0]
[null,"1900-01-01",null,0,null,null,0,null,null,null,null,null,null,null,"1900-01-01",1,null,"2012-04-15",0,0,null,null,null,null,null,null,null,null,null,null,null,null,null,null,null,null,null,null,null,null,null,null,null,null,null,null,null,null,null,null,null,0]
[null,"1900-01-01",null,0,null,null,0,null,null,null,null,null,null,null,"1900-01-01",1,null,"2012-05-15",0,0,null,null,null,null,null,null,null,null,null,null,null,null,null,null,null,null,null,null,null,null,null,null,null,null,null,null,null,null,null,null,null,0]
[null,"1900-01-01",null,0,null,null,0,null,null,null,null,null,null,null,"1900-01-01",1,null,"2012-06-15",0,0,null,null,null,null,null,null,null,null,null,null,null,null,null,null,null,null,null,null,null,null,null,null,null,null,null,null,null,null,null,null,null,0]
[null,"1900-01-01",null,0,null,null,0,null,null,null,null,null,null,null,"1900-01-01",1,null,"2012-07-15",0,0,null,null,null,null,null,null,null,null,null,null,null,null,null,null,null,null,null,null,null,null,null,null,null,null,null,null,null,null,null,null,null,0]
[null,"1900-01-01",null,0,null,null,0,null,null,null,null,null,null,null,"1900-01-01",1,null,"2012-08-15",0,0,null,null,null,null,null,null,null,null,null,null,null,null,null,null,null,null,null,null,null,null,null,null,null,null,null,null,null,null,null,null,null,0]
[null,"1900-01-01",null,0,null,null,0,null,null,null,null,null,null,null,"1900-01-01",1,null,"2012-09-15",0,0,null,null,null,null,null,null,null,null,null,null,null,null,null,null,null,null,null,null,null,null,null,null,null,null,null,null,null,null,null,null,null,0]
[null,"1900-01-01",null,0,null,null,0,null,null,null,null,null,null,null,"1900-01-01",1,null,"2012-10-15",0,0,null,null,null,null,null,null,null,null,null,null,null,null,null,null,null,null,null,null,null,null,null,null,null,null,null,null,null,null,null,null,null,0]
[null,"1900-01-01",null,0,null,null,0,null,null,null,null,null,null,null,"1900-01-01",1,null,"2012-11-15",0,0,null,null,null,null,null,null,null,null,null,null,null,null,null,null,null,null,null,null,null,null,null,null,null,null,null,null,null,null,null,null,null,0]
[null,"1900-01-01",null,0,null,null,0,null,null,null,null,null,null,null,"1900-01-01",1,null,"2012-12-15",0,0,null,null,null,null,null,null,null,null,null,null,null,null,null,null,null,null,null,null,null,null,null,null,null,null,null,null,null,null,null,null,null,0]
[null,"1900-01-01",null,0,null,null,0,null,null,null,null,null,null,null,"1900-01-01",1]
[null,"1900-01-01",null,0,null,null,0,null,null,null,null,null,null,null,"1900-01-01",1]
[null,"1900-01-01",null,0,null,null,{"$f":"E23+F23","v":0},null,null,null,null,null,null,null,"1900-01-01",1]
[null,null,{"$f":"IF(ABS(D24-365)>4,\"Must have 365 ± 4 days.\",\"\")","v":"Must have 365 ± 4 days."},{"$f":"SUM(D9:D23)","v":0},{"$f":"SUM(E9:E23)","v":0},{"$f":"SUM(F9:F23)","v":0},{"$f":"SUM(G9:G23)","v":0}]
[]
[null,null,null,null,"Total Annual Chilled Water Cost"]
[]
[]
[null,"POST-CONSTRUCTION"]
[null,null,null,null,null,null,null,null,null,null,null,null,null,null,"Data for Graphs:"]
[null,"Billing Period Start Date","Read Date","Days in Billing Period","Chilled Water Consumption \n(MMBtu)","On-Site Chilled Water Generation\n(MMBtu)","Chilled Water Consumption\n(MMBtu)",null,null,null,null,null,null,null,"Common Area Ref Date","Common Area Month"]
[]
[null,{"$f":"C32+1","v":"1900-01-01"},null,{"$f":"IF(C33>0,C33+1-B33,0)","v":0},null,null,{"$f":"E33+F33","v":0},null,null,null,null,null,null,null,{"$f":"DATE(YEAR(C33),MONTH(C33),1)","v":"1900-01-01"},{"$f":"IF((O33-B33)>(C33-O33),MONTH(B33),MONTH(C33))","v":1}]
[null,{"$f":"C33+1","v":"1900-01-01"},null,0,null,null,{"$f":"E34+F34","v":0},null,null,null,null,null,null,null,"1900-01-01",1]
[null,"1900-01-01",null,0,null,null,0,null,null,null,null,null,null,null,"1900-01-01",1]
[null,"1900-01-01",null,0,null,null,0,null,null,null,null,null,null,null,"1900-01-01",1]
[null,"1900-01-01",null,0,null,null,0,null,null,null,null,null,null,null,"1900-01-01",1]
[null,"1900-01-01",null,0,null,null,0,null,null,null,null,null,null,null,"1900-01-01",1]
[null,"1900-01-01",null,0,null,null,0,null,null,null,null,null,null,null,"1900-01-01",1]
[null,"1900-01-01",null,0,null,null,0,null,null,null,null,null,null,null,"1900-01-01",1]
[null,"1900-01-01",null,0,null,null,0,null,null,null,null,null,null,null,"1900-01-01",1]
[null,"1900-01-01",null,0,null,null,0,null,null,null,null,null,null,null,"1900-01-01",1]
[null,"1900-01-01",null,0,null,null,0,null,null,null,null,null,null,null,"1900-01-01",1]
[null,"1900-01-01",null,0,null,null,0,null,null,null,null,null,null,null,"1900-01-01",1]
[null,"1900-01-01",null,0,null,null,0,null,null,null,null,null,null,null,"1900-01-01",1]
[null,"1900-01-01",null,0,null,null,0,null,null,null,null,null,null,null,"1900-01-01",1]
[null,"1900-01-01",null,0,null,null,0,null,null,null,null,null,null,null,"1900-01-01",1]
[null,null,{"$f":"IF(ABS(D48-365)>4,\"Must have 365 ± 4 days.\",\"\")","v":"Must have 365 ± 4 days."},{"$f":"SUM(D33:D47)","v":0},{"$f":"SUM(E33:E47)","v":0},{"$f":"SUM(F33:F47)","v":0},{"$f":"SUM(G33:G47)","v":0}]
[]
[null,null,null,null,"Total Annual Chilled Water Cost"]
[]
[]
[null,"Notes:"]

{"sheet":"Hot Water","index":11,"n_rows":53,"n_cols":52,"rows_kept":53,"cut":false,"hidden":true,"merged":[[53,1,57,4],[2,1,2,6],[4,1,5,6],[28,1,29,6],[52,1,52,4],[25,4,25,6],[26,4,26,6],[49,4,49,6],[50,4,50,6]]}
[null,"Hot Water Utility Data Summary"]
[null,"Instructions"]
[null,"1) Enter data for pre-construction energy use in blue cells.\n2) If there is on-site generation that provides hot water to the site (e.g. CHP/cogen), please include hot water consumed in column F.  \n3) Hide any unused rows; do not delete them.\n4) Review graphs to the right for irregularities in the usage data.\n5) Post-Construction data will be filled in one year after construction has been completed.\n6) Please use the \"Notes\" field below the data entry section of this tab to explain unusual circumstances, any anomalies in the data, or adjustments made. Also, please follow Program Guidelines v4.2, Section 3.2.2 for irregular delivers, outliers, and estimated bills.\n\n"]
[]
[null,"PRE-CONSTRUCTION"]
[null,null,null,null,null,null,null,null,null,null,null,null,null,null,"Data for Graphs:"]
[null,"Billing Period Start Date","Read Date","Days in Billing Period","Hot Water Consumption\n(MMBtu)","On-Site Hot Water Generation\n(MMBtu)","Hot Water Consumption\n(MMBtu)",null,null,null,null,null,null,null,"Reference Date","Month",null,"Months","Steam Pre","Steam Post",null,null,null,null,null,null,null,null,null,null,null,null,null,null,null,null,null,null,null,null,null,null,null,null,null,null,null,null,null,null,null,"In-Unit Post"]
[]
[null,{"$f":"C8+1","v":"1900-01-01"},null,{"$f":"IF(C9>0,C9+1-B9,0)","v":0},null,null,{"$f":"E9+F9","v":0},null,null,null,null,null,null,null,{"$f":"DATE(YEAR(C9),MONTH(C9),1)","v":"1900-01-01"},{"$f":"IF((O9-B9)>(C9-O9),MONTH(B9),MONTH(C9))","v":1},null,"2012-01-15",{"$f":"SUMIF($P$9:$P$23,MONTH($R9),$G$9:$G$23)","v":0},{"$f":"SUMIF($P$33:$P$47,MONTH($R9),$G$33:$G$47)","v":0},null,null,null,null,null,null,null,null,null,null,null,null,null,null,null,null,null,null,null,null,null,null,null,null,null,null,null,null,null,null,null,{"$f":"SUMIF($AS$35:$AS$49,MONTH($R9),$AG$35:$AG$49)","v":0}]
[null,{"$f":"C9+1","v":"1900-01-01"},null,0,null,null,{"$f":"E10+F10","v":0},null,null,null,null,null,null,null,"1900-01-01",1,null,"2012-02-15",{"$f":"SUMIF($P$9:$P$23,MONTH($R10),$G$9:$G$23)","v":0},0,null,null,null,null,null,null,null,null,null,null,null,null,null,null,null,null,null,null,null,null,null,null,null,null,null,null,null,null,null,null,null,0]
[null,"1900-01-01",null,0,null,null,0,null,null,null,null,null,null,null,"1900-01-01",1,null,"2012-03-15",0,0,null,null,null,null,null,null,null,null,null,null,null,null,null,null,null,null,null,null,null,null,null,null,null,null,null,null,null,null,null,null,null,0]
[null,"1900-01-01",null,0,null,null,0,null,null,null,null,null,null,null,"1900-01-01",1,null,"2012-04-15",0,0,null,null,null,null,null,null,null,null,null,null,null,null,null,null,null,null,null,null,null,null,null,null,null,null,null,null,null,null,null,null,null,0]
[null,"1900-01-01",null,0,null,null,0,null,null,null,null,null,null,null,"1900-01-01",1,null,"2012-05-15",0,0,null,null,null,null,null,null,null,null,null,null,null,null,null,null,null,null,null,null,null,null,null,null,null,null,null,null,null,null,null,null,null,0]
[null,"1900-01-01",null,0,null,null,0,null,null,null,null,null,null,null,"1900-01-01",1,null,"2012-06-15",0,0,null,null,null,null,null,null,null,null,null,null,null,null,null,null,null,null,null,null,null,null,null,null,null,null,null,null,null,null,null,null,null,0]
[null,"1900-01-01",null,0,null,null,0,null,null,null,null,null,null,null,"1900-01-01",1,null,"2012-07-15",0,0,null,null,null,null,null,null,null,null,null,null,null,null,null,null,null,null,null,null,null,null,null,null,null,null,null,null,null,null,null,null,null,0]
[null,"1900-01-01",null,0,null,null,0,null,null,null,null,null,null,null,"1900-01-01",1,null,"2012-08-15",0,0,null,null,null,null,null,null,null,null,null,null,null,null,null,null,null,null,null,null,null,null,null,null,null,null,null,null,null,null,null,null,null,0]
[null,"1900-01-01",null,0,null,null,0,null,null,null,null,null,null,null,"1900-01-01",1,null,"2012-09-15",0,0,null,null,null,null,null,null,null,null,null,null,null,null,null,null,null,null,null,null,null,null,null,null,null,null,null,null,null,null,null,null,null,0]
[null,"1900-01-01",null,0,null,null,0,null,null,null,null,null,null,null,"1900-01-01",1,null,"2012-10-15",0,0,null,null,null,null,null,null,null,null,null,null,null,null,null,null,null,null,null,null,null,null,null,null,null,null,null,null,null,null,null,null,null,0]
[null,"1900-01-01",null,0,null,null,0,null,null,null,null,null,null,null,"1900-01-01",1,null,"2012-11-15",0,0,null,null,null,null,null,null,null,null,null,null,null,null,null,null,null,null,null,null,null,null,null,null,null,null,null,null,null,null,null,null,null,0]
[null,"1900-01-01",null,0,null,null,0,null,null,null,null,null,null,null,"1900-01-01",1,null,"2012-12-15",0,0,null,null,null,null,null,null,null,null,null,null,null,null,null,null,null,null,null,null,null,null,null,null,null,null,null,null,null,null,null,null,null,0]
[null,"1900-01-01",null,0,null,null,0,null,null,null,null,null,null,null,"1900-01-01",1]
[null,"1900-01-01",null,0,null,null,0,null,null,null,null,null,null,null,"1900-01-01",1]
[null,"1900-01-01",null,0,null,null,0,null,null,null,null,null,null,null,"1900-01-01",1]
[null,null,{"$f":"IF(ABS(D24-365)>4,\"Must have 365 ± 4 days.\",\"\")","v":"Must have 365 ± 4 days."},{"$f":"SUM(D9:D23)","v":0},{"$f":"SUM(E9:E23)","v":0},{"$f":"SUM(F9:F23)","v":0},{"$f":"SUM(G9:G23)","v":0}]
[]
[null,null,null,null,"Total Annual Hot Water  Cost"]
[]
[]
[null,"POST-CONSTRUCTION"]
[null,null,null,null,null,null,null,null,null,null,null,null,null,null,"Data for Graphs:"]
[null,"Billing Period Start Date","Read Date","Days in Billing Period","Hot Water Consumption\n(MMBtu)","On-Site Hot Water Generation\n(MMBtu)","Hot Water Consumption\n(MMBtu)",null,null,null,null,null,null,null,"Common Area Ref Date","Common Area Month"]
[]
[null,{"$f":"C32+1","v":"1900-01-01"},null,{"$f":"IF(C33>0,C33+1-B33,0)","v":0},null,null,{"$f":"E33+F33","v":0},null,null,null,null,null,null,null,{"$f":"DATE(YEAR(C33),MONTH(C33),1)","v":"1900-01-01"},{"$f":"IF((O33-B33)>(C33-O33),MONTH(B33),MONTH(C33))","v":1}]
[null,{"$f":"C33+1","v":"1900-01-01"},null,0,null,null,{"$f":"E34+F34","v":0},null,null,null,null,null,null,null,"1900-01-01",1]
[null,"1900-01-01",null,0,null,null,0,null,null,null,null,null,null,null,"1900-01-01",1]
[null,"1900-01-01",null,0,null,null,0,null,null,null,null,null,null,null,"1900-01-01",1]
[null,"1900-01-01",null,0,null,null,0,null,null,null,null,null,null,null,"1900-01-01",1]
[null,"1900-01-01",null,0,null,null,0,null,null,null,null,null,null,null,"1900-01-01",1]
[null,"1900-01-01",null,0,null,null,0,null,null,null,null,null,null,null,"1900-01-01",1]
[null,"1900-01-01",null,0,null,null,0,null,null,null,null,null,null,null,"1900-01-01",1]
[null,"1900-01-01",null,0,null,null,0,null,null,null,null,null,null,null,"1900-01-01",1]
[null,"1900-01-01",null,0,null,null,0,null,null,null,null,null,null,null,"1900-01-01",1]
[null,"1900-01-01",null,0,null,null,0,null,null,null,null,null,null,null,"1900-01-01",1]
[null,"1900-01-01",null,0,null,null,0,null,null,null,null,null,null,null,"1900-01-01",1]
[null,"1900-01-01",null,0,null,null,0,null,null,null,null,null,null,null,"1900-01-01",1]
[null,"1900-01-01",null,0,null,null,0,null,null,null,null,null,null,null,"1900-01-01",1]
[null,"1900-01-01",null,0,null,null,{"$f":"E47+F47","v":0},null,null,null,null,null,null,null,"1900-01-01",1]
[null,null,{"$f":"IF(ABS(D48-365)>4,\"Must have 365 ± 4 days.\",\"\")","v":"Must have 365 ± 4 days."},{"$f":"SUM(D33:D47)","v":0},{"$f":"SUM(E33:E47)","v":0},{"$f":"SUM(F33:F47)","v":0},{"$f":"SUM(G33:G47)","v":0}]
[]
[null,null,null,null,"Total Annual Hot Water  Cost"]
[]
[]
[null,"Notes:"]

{"sheet":"Other","index":12,"n_rows":92,"n_cols":24,"rows_kept":92,"cut":false,"hidden":true,"merged":[[88,4,88,6],[91,1,91,6],[89,4,89,6],[92,1,96,6],[2,1,2,8],[4,1,5,6],[44,4,44,6],[45,4,45,6],[48,1,49,6]]}
[null,"Other Fuel Data Summary"]
[null,"Instructions"]
[null,"1) Enter data for pre-construction energy use in blue cells.\n2) If there is on-site generation that provides other fuel to the site, please include in column F.  \n3) Hide any unused rows; do not delete them.\n4) Review graphs to the right for irregularities in the usage data.\n5) Post-Construction data will be filled in one year after construction has been completed.\n6) Please use the \"Notes\" field below the data entry section of this tab to explain unusual circumstances, any anomalies in the data, or adjustments made. Also, please follow Program Guidelines v4.2, Section 3.2.2 for irregular delivers, outliers, and estimated bills.\n\n"]
[]
[null,"PRE-CONSTRUCTION"]
[null,null,null,null,null,null,null,null,null,null,null,null,null,null,null,"Data for Graph:"]
[null,"Billing Period Start Date","Delivery Date","Days in Billing Period",{"$f":"'Utility Info'!J6&\" Delivery\n\"&\"(\"&'Utility Info'!J7&\")\"","v":"Other Delivery\n(<Not Used>)"},{"$f":"\"On-Site \"&'Utility Info'!J6&\" Generation\n(MMBtu)\"","v":"On-Site Other Generation\n(MMBtu)"},{"$f":"'Utility Info'!J6&\" Consumption\n(MMBtu)\"","v":"Other Consumption\n(MMBtu)"},null,null,null,null,null,null,null,null,"Delivery Month/Day"]
[]
[null,{"$f":"C8+1","v":"1900-01-01"},null,{"$f":"IF(C9>0,C9+1-B9,0)","v":0},null,null,{"$f":"E9+F9","v":0},null,null,null,null,null,null,null,null,{"$f":"DATE(2008,MONTH(C9),DAY(C9))","v":"2007-12-31"},null,null,"Gallons",null,"Days",null,"Gal/day"]
[null,{"$f":"C9+1","v":"1900-01-01"},null,{"$f":"IF(C10>0,C10+1-B10,0)","v":0},null,null,{"$f":"E10+F10","v":0},null,null,null,null,null,null,null,null,{"$f":"DATE(2008,MONTH(C10),DAY(C10))","v":"2007-12-31"},null,"Date","Pre","Post","Pre","Post","Pre","Post"]
[null,"1900-01-01",null,0,null,null,0,null,null,null,null,null,null,null,null,"2007-12-31",null,"2008-01-05",{"$f":"SUMIFS($E$9:$E$42,$P$9:$P$42,\"<=\"&R11)","v":0},{"$f":"SUMIFS($E$53:$E$86,$P$53:$P$86,\"<=\"&R11)","v":0},{"$f":"SUMIFS($D$9:$D$42,$P$9:$P$42,\"<=\"&$R$11)","v":0},{"$f":"SUMIFS($D$53:$D$86,$P$53:$P$86,\"<=\"&$R$11)","v":0},{"$f":"IF(U11>0,S11/U11,0)","v":0},{"$f":"IF(V11>0,T11/V11,0)","v":0}]
[null,"1900-01-01",null,0,null,null,0,null,null,null,null,null,null,null,null,"2007-12-31",null,{"$f":"R11+5","v":"2008-01-10"},{"$f":"SUMIFS($E$9:$E$42,$P$9:$P$42,\">\"& R11,$P$9:$P$42,\"<=\"&R12)","v":0},{"$f":"SUMIFS($E$53:$E$86,$P$53:$P$86,\">\"& R11,$P$53:$P$86,\"<=\"&R12)","v":0},{"$f":"SUMIFS($D$9:$D$42,$P$9:$P$42,\">\"& $R11,$P$9:$P$42,\"<=\"&$R12)","v":0},{"$f":"SUMIFS($D$53:$D$86,$P$53:$P$86,\">\"& $R11,$P$53:$P$86,\"<=\"&$R12)","v":0},{"$f":"IF(U12>0,S12/U12,0)","v":0},0]
[null,"1900-01-01",null,0,null,null,0,null,null,null,null,null,null,null,null,"2007-12-31",null,{"$f":"R12+5","v":"2008-01-15"},0,0,0,0,0,0]
[null,"1900-01-01",null,0,null,null,0,null,null,null,null,null,null,null,null,"2007-12-31",null,"2008-01-20",0,0,0,0,0,0]
[null,"1900-01-01",null,0,null,null,0,null,null,null,null,null,null,null,null,"2007-12-31",null,"2008-01-25",0,0,0,0,0,0]
[null,"1900-01-01",null,0,null,null,0,null,null,null,null,null,null,null,null,"2007-12-31",null,"2008-01-30",0,0,0,0,0,0]
[null,"1900-01-01",null,0,null,null,0,null,null,null,null,null,null,null,null,"2007-12-31",null,"2008-02-04",0,0,0,0,0,0]
[null,"1900-01-01",null,0,null,null,0,null,null,null,null,null,null,null,null,"2007-12-31",null,"2008-02-09",0,0,0,0,0,0]
[null,"1900-01-01",null,0,null,null,0,null,null,null,null,null,null,null,null,"2007-12-31",null,"2008-02-14",0,0,0,0,0,0]
[null,"1900-01-01",null,0,null,null,0,null,null,null,null,null,null,null,null,"2007-12-31",null,"2008-02-19",0,0,0,0,0,0]
[null,"1900-01-01",null,0,null,null,0,null,null,null,null,null,null,null,null,"2007-12-31",null,"2008-02-24",0,0,0,0,0,0]
[null,"1900-01-01",null,0,null,null,0,null,null,null,null,null,null,null,null,"2007-12-31",null,{"$f":"R21+6","v":"2008-03-01"},0,0,0,0,0,0]
[null,"1900-01-01",null,0,null,null,0,null,null,null,null,null,null,null,null,"2007-12-31",null,"2008-03-06",0,0,0,0,0,0]
[null,"1900-01-01",null,0,null,null,0,null,null,null,null,null,null,null,null,"2007-12-31",null,"2008-03-11",0,0,0,0,0,0]
[null,"1900-01-01",null,0,null,null,0,null,null,null,null,null,null,null,null,"2007-12-31",null,"2008-03-16",0,0,0,0,0,0]
[null,"1900-01-01",null,0,null,null,0,null,null,null,null,null,null,null,null,"2007-12-31",null,"2008-03-21",0,0,0,0,0,0]
[null,"1900-01-01",null,0,null,null,0,null,null,null,null,null,null,null,null,"2007-12-31",null,"2008-03-26",0,0,0,0,0,0]
[null,"1900-01-01",null,0,null,null,0,null,null,null,null,null,null,null,null,"2007-12-31",null,"2008-03-31",0,0,0,0,0,0]
[null,"1900-01-01",null,0,null,null,0,null,null,null,null,null,null,null,null,"2007-12-31",null,"2008-04-05",0,0,0,0,0,0]
[null,"1900-01-01",null,0,null,null,0,null,null,null,null,null,null,null,null,"2007-12-31",null,"2008-04-10",0,0,0,0,0,0]
[null,"1900-01-01",null,0,null,null,0,null,null,null,null,null,null,null,null,"2007-12-31",null,"2008-04-15",0,0,0,0,0,0]
[null,"1900-01-01",null,0,null,null,0,null,null,null,null,null,null,null,null,"2007-12-31",null,"2008-04-20",0,0,0,0,0,0]
[null,"1900-01-01",null,0,null,null,0,null,null,null,null,null,null,null,null,"2007-12-31",null,"2008-04-25",0,0,0,0,0,0]
[null,"1900-01-01",null,0,null,null,0,null,null,null,null,null,null,null,null,"2007-12-31",null,"2008-04-30",0,0,0,0,0,0]
[null,"1900-01-01",null,0,null,null,0,null,null,null,null,null,null,null,null,"2007-12-31",null,"2008-05-05",0,0,0,0,0,0]
[null,"1900-01-01",null,0,null,null,0,null,null,null,null,null,null,null,null,"2007-12-31",null,"2008-05-10",0,0,0,0,0,0]
[null,"1900-01-01",null,0,null,null,0,null,null,null,null,null,null,null,null,"2007-12-31",null,"2008-05-15",0,0,0,0,0,0]
[null,"1900-01-01",null,0,null,null,0,null,null,null,null,null,null,null,null,"2007-12-31",null,"2008-05-20",0,0,0,0,0,0]
[null,"1900-01-01",null,0,null,null,0,null,null,null,null,null,null,null,null,"2007-12-31",null,"2008-05-25",0,0,0,0,0,0]
[null,"1900-01-01",null,0,null,null,0,null,null,null,null,null,null,null,null,"2007-12-31",null,"2008-05-30",0,0,0,0,0,0]
[null,"1900-01-01",null,0,null,null,0,null,null,null,null,null,null,null,null,"2007-12-31",null,"2008-06-04",0,0,0,0,0,0]
[null,"1900-01-01",null,0,null,null,{"$f":"E42+F42","v":0},null,null,null,null,null,null,null,null,"2007-12-31",null,"2008-06-09",0,0,0,0,0,0]
[null,null,{"$f":"IF(ABS(D43-365)>4,\"Must have 365 ± 4 days.\",\"\")","v":"Must have 365 ± 4 days."},{"$f":"SUM(D9:D42)","v":0},{"$f":"SUM(E9:E42)","v":0},{"$f":"SUM(F9:F42)","v":0},{"$f":"SUM(G9:G42)","v":0},null,null,null,null,null,null,null,null,null,null,"2008-06-14",0,0,0,0,0,0]
[null,null,null,null,null,null,null,null,null,null,null,null,null,null,null,null,null,"2008-06-19",0,0,0,0,0,0]
[null,null,null,null,"Total Annual Cost",null,null,null,null,null,null,null,null,null,null,null,null,"2008-06-24",0,0,0,0,0,0]
[null,null,null,null,null,null,null,null,null,null,null,null,null,null,null,null,null,"2008-06-29",0,0,0,0,0,0]
[null,null,null,null,null,null,null,null,null,null,null,null,null,null,null,null,null,"2008-07-04",0,0,0,0,0,0]
[null,null,null,null,null,null,null,null,null,null,null,null,null,null,null,null,null,"2008-07-09",0,0,0,0,0,0]
[null,"POST-CONSTRUCTION",null,null,null,null,null,null,null,null,null,null,null,null,null,null,null,"2008-07-14",0,0,0,0,0,0]
[null,null,null,null,null,null,null,null,null,null,null,null,null,null,null,null,null,"2008-07-19",0,0,0,0,0,0]
[null,"Billing Period Start Date","Delivery Date","Days in Billing Period",{"$f":"'Utility Info'!J15&\" Delivery\n\"&\"(\"&'Utility Info'!J16&\")\"","v":"<Other Fuel Type> Delivery\n(<Not Used>)"},{"$f":"\"On-Site \"&'Utility Info'!J15&\" Generation\n(MMBtu)\"","v":"On-Site <Other Fuel Type> Generation\n(MMBtu)"},{"$f":"'Utility Info'!J15&\" Consumption\n(MMBtu)\"","v":"<Other Fuel Type> Consumption\n(MMBtu)"},null,null,null,null,null,null,null,null,"Delivery Month/Day",null,"2008-07-24",0,0,0,0,0,0]
[null,null,null,null,null,null,null,null,null,null,null,null,null,null,null,null,null,"2008-07-29",0,0,0,0,0,0]
[null,{"$f":"C52+1","v":"1900-01-01"},null,{"$f":"IF(C53>0,C53+1-B53,0)","v":0},null,null,{"$f":"E53+F53","v":0},null,null,null,null,null,null,null,null,{"$f":"DATE(2008,MONTH(C53),DAY(C53))","v":"2007-12-31"},null,"2008-08-03",0,0,0,0,0,0]
[null,{"$f":"C53+1","v":"1900-01-01"},null,0,null,null,{"$f":"E54+F54","v":0},null,null,null,null,null,null,null,null,"2007-12-31",null,"2008-08-08",0,0,0,0,0,0]
[null,"1900-01-01",null,0,null,null,0,null,null,null,null,null,null,null,null,"2007-12-31",null,"2008-08-13",0,0,0,0,0,0]
[null,"1900-01-01",null,0,null,null,0,null,null,null,null,null,null,null,null,"2007-12-31",null,"2008-08-18",0,0,0,0,0,0]
[null,"1900-01-01",null,0,null,null,0,null,null,null,null,null,null,null,null,"2007-12-31",null,"2008-08-23",0,0,0,0,0,0]
[null,"1900-01-01",null,0,null,null,0,null,null,null,null,null,null,null,null,"2007-12-31",null,"2008-08-28",0,0,0,0,0,0]
[null,"1900-01-01",null,0,null,null,0,null,null,null,null,null,null,null,null,"2007-12-31",null,"2008-09-02",0,0,0,0,0,0]
[null,"1900-01-01",null,0,null,null,0,null,null,null,null,null,null,null,null,"2007-12-31",null,"2008-09-07",0,0,0,0,0,0]
[null,"1900-01-01",null,0,null,null,0,null,null,null,null,null,null,null,null,"2007-12-31",null,"2008-09-12",0,0,0,0,0,0]
[null,"1900-01-01",null,0,null,null,0,null,null,null,null,null,null,null,null,"2007-12-31",null,"2008-09-17",0,0,0,0,0,0]
[null,"1900-01-01",null,0,null,null,0,null,null,null,null,null,null,null,null,"2007-12-31",null,"2008-09-22",0,0,0,0,{"$f":"IF(U63>0,S63/U63,0)","v":0},0]
[null,"1900-01-01",null,0,null,null,0,null,null,null,null,null,null,null,null,"2007-12-31",null,"2008-09-27",0,0,0,0,0,0]
[null,"1900-01-01",null,0,null,null,0,null,null,null,null,null,null,null,null,"2007-12-31",null,"2008-10-02",0,0,0,0,0,0]
[null,"1900-01-01",null,0,null,null,0,null,null,null,null,null,null,null,null,"2007-12-31",null,"2008-10-07",0,0,0,0,0,0]
[null,"1900-01-01",null,0,null,null,0,null,null,null,null,null,null,null,null,"2007-12-31",null,"2008-10-12",0,0,0,0,0,0]
[null,"1900-01-01",null,0,null,null,0,null,null,null,null,null,null,null,null,"2007-12-31",null,"2008-10-17",0,0,0,0,0,0]
[null,"1900-01-01",null,0,null,null,0,null,null,null,null,null,null,null,null,"2007-12-31",null,{"$f":"R68+5","v":"2008-10-22"},0,0,0,0,0,0]
[null,"1900-01-01",null,0,null,null,0,null,null,null,null,null,null,null,null,"2007-12-31",null,"2008-10-27",0,0,0,0,0,0]
[null,"1900-01-01",null,0,null,null,0,null,null,null,null,null,null,null,null,"2007-12-31",null,"2008-11-01",0,0,0,0,0,0]
[null,"1900-01-01",null,0,null,null,0,null,null,null,null,null,null,null,null,"2007-12-31",null,"2008-11-06",0,0,0,0,0,0]
[null,"1900-01-01",null,0,null,null,0,null,null,null,null,null,null,null,null,"2007-12-31",null,"2008-11-11",0,0,0,0,0,0]
[null,"1900-01-01",null,0,null,null,0,null,null,null,null,null,null,null,null,"2007-12-31",null,"2008-11-16",0,0,0,0,0,0]
[null,"1900-01-01",null,0,null,null,0,null,null,null,null,null,null,null,null,"2007-12-31",null,"2008-11-21",0,0,0,0,0,0]
[null,"1900-01-01",null,0,null,null,0,null,null,null,null,null,null,null,null,"2007-12-31",null,"2008-11-26",{"$f":"SUMIFS($E$9:$E$42,$P$9:$P$42,\">\"& R75,$P$9:$P$42,\"<=\"&R76)","v":0},{"$f":"SUMIFS($E$53:$E$86,$P$53:$P$86,\">\"& R75,$P$53:$P$86,\"<=\"&R76)","v":0},{"$f":"SUMIFS($D$9:$D$42,$P$9:$P$42,\">\"& $R75,$P$9:$P$42,\"<=\"&$R76)","v":0},{"$f":"SUMIFS($D$53:$D$86,$P$53:$P$86,\">\"& $R75,$P$53:$P$86,\"<=\"&$R76)","v":0},0,0]
[null,"1900-01-01",null,0,null,null,0,null,null,null,null,null,null,null,null,"2007-12-31",null,{"$f":"R76+5","v":"2008-12-01"},0,0,0,0,0,0]
[null,"1900-01-01",null,0,null,null,0,null,null,null,null,null,null,null,null,"2007-12-31",null,"2008-12-06",0,0,0,0,0,0]
[null,"1900-01-01",null,0,null,null,0,null,null,null,null,null,null,null,null,"2007-12-31",null,"2008-12-11",0,0,0,0,0,0]
[null,"1900-01-01",null,0,null,null,0,null,null,null,null,null,null,null,null,"2007-12-31",null,"2008-12-16",0,0,0,0,0,0]
[null,"1900-01-01",null,0,null,null,0,null,null,null,null,null,null,null,null,"2007-12-31",null,"2008-12-21",0,0,0,0,0,0]
[null,"1900-01-01",null,0,null,null,0,null,null,null,null,null,null,null,null,"2007-12-31",null,"2008-12-26",0,0,0,0,0,0]
[null,"1900-01-01",null,0,null,null,0,null,null,null,null,null,null,null,null,"2007-12-31",null,{"$f":"R82+5","v":"2008-12-31"},0,0,0,0,0,0]
[null,"1900-01-01",null,0,null,null,0,null,null,null,null,null,null,null,null,"2007-12-31"]
[null,"1900-01-01",null,0,null,null,0,null,null,null,null,null,null,null,null,"2007-12-31"]
[null,"1900-01-01",null,0,null,null,{"$f":"E86+F86","v":0},null,null,null,null,null,null,null,null,"2007-12-31"]
[null,null,{"$f":"IF(ABS(D87-365)>4,\"Must have 365 ± 4 days.\",\"\")","v":"Must have 365 ± 4 days."},{"$f":"SUM(D53:D86)","v":0},{"$f":"SUM(E53:E86)","v":0},{"$f":"SUM(F53:F86)","v":0},{"$f":"SUM(G53:G86)","v":0}]
[]
[null,null,null,null,"Total Annual Cost"]
[]
[]
[null,"Notes:"]

{"sheet":"Utility Use Summary","index":13,"n_rows":234,"n_cols":25,"rows_kept":234,"cut":false,"hidden":false,"merged":[[197,1,197,5],[197,8,197,12],[45,8,45,12],[64,8,64,12],[140,8,140,12],[102,8,102,12],[45,1,45,5],[64,1,64,5],[139,4,139,5],[140,1,140,5],[102,1,102,5],[159,1,159,5],[159,8,159,12],[178,1,178,5],[178,8,178,12],[14,1,14,2],[15,1,15,2],[17,1,17,2],[10,16,10,17],[10,18,10,19],[10,1,10,2],[5,1,5,2],[9,16,9,17],[13,1,13,2],[13,6,13,7],[13,8,13,9],[13,10,13,11],[6,1,6,2],[7,1,7,2],[9,1,9,2],[13,16,13,17],[9,3,9,5],[10,3,10,5],[5,3,5,5],[17,14,17,15],[17,6,17,7],[5,8,5,9],[17,3,17,5],[10,6,10,7],[24,11,24,12],[21,13,21,14],[23,13,23,14],[24,13,24,14],[23,11,23,12],[21,11,21,12],[22,1,22,2],[18,14,18,15],[22,13,22,14],[18,12,18,13],[18,8,18,9],[18,6,18,7],[22,11,22,12],[21,15,21,16],[18,10,18,11],[18,3,18,5],[26,1,26,6],[26,8,26,13],[13,3,13,5],[13,12,13,13],[22,3,22,4],[20,1,20,18],[18,1,18,2],[24,5,24,6],[24,1,24,2],[24,3,24,4],[24,7,24,8],[24,9,24,10],[23,1,23,2],[23,3,23,4],[23,7,23,8],[23,9,23,10],[22,9,22,10],[21,9,21,10],[21,1,21,2],[23,15,23,16],[24,15,24,16],[22,17,22,18],[23,17,23,18],[24,17,24,18],[9,12,9,13],[9,6,9,7],[22,5,22,6],[21,3,21,4],[21,5,21,6],[5,6,5,7],[13,18,13,19],[21,7,21,8],[22,15,22,16],[17,16,17,17],[17,18,17,19],[21,17,21,18],[8,1,8,2],[16,1,16,2],[9,8,9,9],[2,1,2,8],[23,5,23,6],[18,18,18,19],[18,16,18,17],[5,16,5,17],[5,18,5,19],[5,12,5,13],[5,14,5,15],[9,14,9,15],[13,14,13,15],[10,8,10,9],[10,10,10,11],[10,12,10,13],[10,14,10,15],[9,18,9,19],[9,10,9,11],[22,7,22,8],[17,8,17,9],[17,12,17,13],[17,10,17,11],[5,10,5,11]]}
[null,"Pre- and Post-Construction Utility Data Summary"]
[null,"Instructions"]
[null,"1) This sheet summarizes utility data and project savings.  Data from this tab must be exported directly into the project's Model Calibration and Savings Verification Tools to ensure consistency across project documents. Same data must also be used to benchmark the project in EPA's ENERGY STAR Portfolio Manager. \n\n"]
[]
[null,"PRE-RETROFIT SUMMARY"]
[null,null,null,"Electricity",null,null,"Gas",null,"Fuel Oil",null,"Propane",null,"Steam",null,"Chilled Water",null,"Hot Water",null,{"$f":"'Utility Info'!J6","v":"Other"}]
[null,"Units",null,"kWh","MMBtu","kW",{"$f":"'Utility Info'!D7","v":"<Not Used>"},"MMBtu",{"$f":"'Utility Info'!E7","v":"<Not Used>"},"MMBtu",{"$f":"'Utility Info'!F7","v":"<Not Used>"},"MMBtu",{"$f":"'Utility Info'!G7","v":"<Not Used>"},"MMBtu",{"$f":"'Utility Info'!H7","v":"<Not Used>"},"MMBtu",{"$f":"'Utility Info'!I7","v":"<Not Used>"},"MMBtu",{"$f":"'Utility Info'!J7","v":"<Not Used>"},"MMBtu"]
[null,"Annual Usage/Demand",null,{"$f":"IF(D44=0,0,E44)","v":0},{"$f":"IF(D44=0,0,F44)","v":0},{"$f":"IF(D44=0,0,G44)","v":0},{"$f":"IF(D63=0,0,E63)","v":0},{"$f":"IF(D63=0,0,F63)","v":0},{"$f":"IF(D101=0,0,E101/D101*365)","v":0},{"$f":"IF(D101=0,0,F101/D101*365)","v":0},{"$f":"IF(D139=0,0,E139/D139*365)","v":0},{"$f":"IF(D139=0,0,F139/D139*365)","v":0},{"$f":"IF(D158=0,0,E158)","v":0},{"$f":"IF(D158=0,0,F158)","v":0},{"$f":"IF(D177=0,0,E177)","v":0},{"$f":"IF(D177=0,0,F177)","v":0},{"$f":"IF(D196=0,0,E196)","v":0},{"$f":"IF(D196=0,0,F196)","v":0},{"$f":"IF(D234=0,0,E234/D234*365)","v":0},{"$f":"IF(D234=0,0,F234/D234*365)","v":0}]
[null,"Average Cost per Unit",null,{"$f":"IF(D8=0,0,D10/D8)","v":0},{"$f":"IF(E8=0,0,D10/E8)","v":0},"N/A",{"$f":"IF(G8=0,0,G10/G8)","v":0},{"$f":"IF(H8=0,0,G10/H8)","v":0},{"$f":"IF(I8=0,0,I10/I8)","v":0},{"$f":"IF(J8=0,0,I10/J8)","v":0},{"$f":"IF(K8=0,0,K10/K8)","v":0},{"$f":"IF(L8=0,0,K10/L8)","v":0},{"$f":"IF(M8=0,0,M10/M8)","v":0},{"$f":"IF(N8=0,0,M10/N8)","v":0},{"$f":"IF(O8=0,0,O10/O8)","v":0},{"$f":"IF(P8=0,0,O10/P8)","v":0},{"$f":"IF(Q8=0,0,Q10/Q8)","v":0},{"$f":"IF(R8=0,0,Q10/R8)","v":0},{"$f":"IF(S8=0,0,S10/S8)","v":0},{"$f":"IF(T8=0,0,S10/T8)","v":0}]
[null,"Annual Cost",null,{"$f":"IF(D44=0,0,'Electric Totals'!FI28)","v":0},null,null,{"$f":"IF(D63=0,0,'Gas Totals'!DJ28)","v":0},null,{"$f":"IF(D101=0,0,Oil!E46/D101*365)","v":0},null,{"$f":"IF(D139=0,0,Propane!E46/D139*365)","v":0},null,{"$f":"IF(D158=0,0,Steam!E27)","v":0},null,{"$f":"IF(D177=0,0,'Chilled Water'!E27)","v":0},null,{"$f":"IF(D196=0,0,'Hot Water'!E27)","v":0},null,{"$f":"IF(D234=0,0,Other!E46/D234*365)","v":0}]
[null,"Renewable Energy Generation (MMBtu)",null,{"$f":"'Electric Totals'!FB25*0.003412","v":0},null,null,{"$f":"'Gas Totals'!DC25*0.1","v":0},null,{"$f":"Oil!F43","v":0},null,{"$f":"Propane!F43","v":0},null,{"$f":"Steam!G24","v":0},null,{"$f":"'Chilled Water'!F24","v":0},null,{"$f":"'Hot Water'!F24","v":0},null,{"$f":"Other!F43","v":0}]
[null,{"$f":"IF(X35-X34>15,\"The pre-retrofit start dates are more than 15 days out of synch. Please correct.\",\"\")","v":""}]
[null,"POST-RETROFIT SUMMARY"]
[null,null,null,"Electricity",null,null,"Gas",null,"Fuel Oil",null,"Propane",null,"Steam",null,"Chilled Water",null,"Hot Water",null,{"$f":"'Utility Info'!J15","v":"<Other Fuel Type>"}]
[null,"Units",null,"kWh","MMBtu","kW",{"$f":"'Utility Info'!D16","v":"<Not Used>"},"MMBtu",{"$f":"'Utility Info'!E16","v":"<Not Used>"},"MMBtu",{"$f":"'Utility Info'!F16","v":"<Not Used>"},"MMBtu",{"$f":"'Utility Info'!G16","v":"<Not Used>"},"MMBtu",{"$f":"'Utility Info'!H16","v":"<Not Used>"},"MMBtu",{"$f":"'Utility Info'!I16","v":"<Not Used>"},"MMBtu",{"$f":"'Utility Info'!J16","v":"<Not Used>"},"MMBtu"]
[null,"Annual Usage/Demand",null,{"$f":"IF(K44=0,0,L44)","v":0},{"$f":"IF(K44=0,0,M44)","v":0},{"$f":"IF(K44=0,0,N44)","v":0},{"$f":"IF(K63=0,0,L63)","v":0},{"$f":"IF(K63=0,0,M63)","v":0},{"$f":"IF(K101=0,0,L101/K101*365)","v":0},{"$f":"IF(K101=0,0,M101/K101*365)","v":0},{"$f":"IF(K139=0,0,L139/K139*365)","v":0},{"$f":"IF(K139=0,0,M139/K139*365)","v":0},{"$f":"IF(K158=0,0,L158)","v":0},{"$f":"IF(K158=0,0,M158)","v":0},{"$f":"IF(K177=0,0,L177)","v":0},{"$f":"IF(K177=0,0,M177)","v":0},{"$f":"IF(K196=0,0,L196)","v":0},{"$f":"IF(K196=0,0,M196)","v":0},{"$f":"IF(K234=0,0,L234/K234*365)","v":0},{"$f":"IF(K234=0,0,M234/K234*365)","v":0}]
[null,"Average Cost per Unit",null,{"$f":"IF(D16=0,0,D18/D16)","v":0},{"$f":"IF(E16=0,0,D18/E16)","v":0},"N/A",{"$f":"IF(G16=0,0,G18/G16)","v":0},{"$f":"IF(H16=0,0,G18/H16)","v":0},{"$f":"IF(I16=0,0,I18/I16)","v":0},{"$f":"IF(J16=0,0,I18/J16)","v":0},{"$f":"IF(K16=0,0,K18/K16)","v":0},{"$f":"IF(L16=0,0,K18/L16)","v":0},{"$f":"IF(M16=0,0,M18/M16)","v":0},{"$f":"IF(N16=0,0,M18/N16)","v":0},{"$f":"IF(O16=0,0,O18/O16)","v":0},{"$f":"IF(P16=0,0,O18/P16)","v":0},{"$f":"IF(Q16=0,0,Q18/Q16)","v":0},{"$f":"IF(R16=0,0,Q18/R16)","v":0},{"$f":"IF(S16=0,0,S18/S16)","v":0},{"$f":"IF(T16=0,0,S18/T16)","v":0}]
[null,"Annual Cost",null,{"$f":"IF(K44=0,0,'Electric Totals'!FI53)","v":0},null,null,{"$f":"IF(K63=0,0,'Gas Totals'!DJ53)","v":0},null,{"$f":"IF(K101=0,0,Oil!E90/K101*365)","v":0},null,{"$f":"IF(K139=0,0,Propane!E90/K139*365)","v":0},null,{"$f":"IF(K158=0,0,Steam!E51)","v":0},null,{"$f":"IF(K177=0,0,'Chilled Water'!E51)","v":0},null,{"$f":"IF(K196=0,0,'Hot Water'!E51)","v":0},null,{"$f":"IF(K234=0,0,Other!E90/K234*365)","v":0}]
[null,"Renewable Energy Generation (MMBtu)",null,{"$f":"'Electric Totals'!FB50*0.003412","v":0},null,null,{"$f":"'Gas Totals'!DC50*0.1","v":0},null,{"$f":"Oil!F87","v":0},null,{"$f":"Propane!F87","v":0},null,{"$f":"Steam!G48","v":0},null,{"$f":"'Chilled Water'!F48","v":0},null,{"$f":"'Hot Water'!F48","v":0},null,{"$f":"Other!F87","v":0}]
[null,{"$f":"IF(Y35-Y34>15,\"The post-retrofit start dates are more than 15 days out of synch. Please correct.\",\"\")","v":""}]
[null,"SAVINGS SUMMARY"]
[null,null,null,"Electricity",null,"Gas",null,"Fuel Oil",null,"Propane",null,"Steam",null,"Chilled Water",null,"Hot Water",null,{"$f":"S14","v":"<Other Fuel Type>"}]
[null,"MMBtu Savings",null,{"$f":"IF(D16=0,\"\",(E8+D11)-(E16+D19))","v":""},null,{"$f":"IF(G16=0,\"\",(H8+G11)-(H16+G19))","v":""},null,{"$f":"IF(I16=0,\"\",(J8+I11)-(J16+I19))","v":""},null,{"$f":"IF(K16=0,\"\",(L8+K11)-(L16+K19))","v":""},null,{"$f":"IF(M16=0,\"\",(N8+M11)-(N16+M19))","v":""},null,{"$f":"IF(O16=0,\"\",(P8+O11)-(P16+O19))","v":""},null,{"$f":"IF(Q16=0,\"\",(R8+Q11)-(R16+Q19))","v":""},null,{"$f":"IF(S16=0,\"\",(T8+S11)-(T16+S19))","v":""}]
[null,"Percent Savings",null,{"$f":"IF(D16=0,\"\",IF(E8=0,0,D23/E8))","v":""},null,{"$f":"IF(G16=0,\"\",IF(H8=0,0,F23/H8))","v":""},null,{"$f":"IF(I16=0,\"\",IF(J8=0,0,H23/J8))","v":""},null,{"$f":"IF(K16=0,\"\",IF(L8=0,0,J23/L8))","v":""},null,{"$f":"IF(M16=0,\"\",IF(N8=0,0,L23/N8))","v":""},null,{"$f":"IF(O16=0,\"\",IF(P8=0,0,N23/P8))","v":""},null,{"$f":"IF(Q16=0,\"\",IF(R8=0,0,P23/R8))","v":""},null,{"$f":"IF(S16=0,\"\",IF(T8=0,0,R23/T8))","v":""}]
[null,"Percent of Total Savings",null,{"$f":"IF(D16=0,\"\",IF(SUM($D$23:$S$23)=0,0,D23/SUM($D$23:$S$23)))","v":""},null,{"$f":"IF(G16=0,\"\",IF(SUM($D$23:$S$23)=0,0,F23/SUM($D$23:$S$23)))","v":""},null,{"$f":"IF(I16=0,\"\",IF(SUM($D$23:$S$23)=0,0,H23/SUM($D$23:$S$23)))","v":""},null,{"$f":"IF(K16=0,\"\",IF(SUM($D$23:$S$23)=0,0,J23/SUM($D$23:$S$23)))","v":""},null,{"$f":"IF(M16=0,\"\",IF(SUM($D$23:$S$23)=0,0,L23/SUM($D$23:$S$23)))","v":""},null,{"$f":"IF(O16=0,\"\",IF(SUM($D$23:$S$23)=0,0,N23/SUM($D$23:$S$23)))","v":""},null,{"$f":"IF(Q16=0,\"\",IF(SUM($D$23:$S$23)=0,0,P23/SUM($D$23:$S$23)))","v":""},null,{"$f":"IF(S16=0,\"\",IF(SUM($D$23:$S$23)=0,0,R23/SUM($D$23:$S$23)))","v":""}]
[]
[null,"PRE-CONSTRUCTION ELECTRIC",null,null,null,null,null,null,"POST-CONSTRUCTION ELECTRIC"]
[null,"Billing Period Start Date","Meter Read Date","Days in Billing Period","Total Consumption\nkWh","Total Consumption\nMMBtu","Common Area Peak kW",null,"Billing Period Start Date","Meter Read Date","Days in Billing Period","Total Consumption\nkWh","Total Consumption\nMMBtu","Common Area Peak kW",null,null,null,null,null,null,null,null,null,"Pre","Post"]
[null,{"$f":"IF('Electric Totals'!$EZ$25>'Electric Totals'!$FG$25,'Electric Totals'!B10,'Electric Totals'!FD10)","v":"1900-01-01"},{"$f":"IF('Electric Totals'!$EZ$25>'Electric Totals'!$FG$25,'Electric Totals'!C10,'Electric Totals'!FE10)","v":"00:00:00"},{"$f":"IF('Electric Totals'!$EZ$25>'Electric Totals'!$FG$25,'Electric Totals'!D10,'Electric Totals'!FF10)","v":0},{"$f":"'Electric Totals'!FI10","v":0},{"$f":"E29*0.003412","v":0},{"$f":"'Electric Totals'!FA10","v":0},null,{"$f":"IF('Electric Totals'!$EZ$50>'Electric Totals'!$FG$50,'Electric Totals'!B35,'Electric Totals'!FD35)","v":"1900-01-01"},{"$f":"IF('Electric Totals'!$EZ$50>'Electric Totals'!$FG$50,'Electric Totals'!C35,'Electric Totals'!FE35)","v":"00:00:00"},{"$f":"IF('Electric Totals'!$EZ$50>'Electric Totals'!$FG$50,'Electric Totals'!D35,'Electric Totals'!FF35)","v":0},{"$f":"'Electric Totals'!FI35","v":0},{"$f":"L29*0.003412","v":0},{"$f":"'Electric Totals'!FA35","v":0},null,null,null,null,null,null,null,null,"Electric",{"$f":"IF(B29>1000,B29,\"\")","v":""},{"$f":"IF(I29>1000,I29,\"\")","v":""}]
[null,{"$f":"IF('Electric Totals'!$EZ$25>'Electric Totals'!$FG$25,'Electric Totals'!B11,'Electric Totals'!FD11)","v":"1900-01-01"},{"$f":"IF('Electric Totals'!$EZ$25>'Electric Totals'!$FG$25,'Electric Totals'!C11,'Electric Totals'!FE11)","v":"00:00:00"},{"$f":"IF('Electric Totals'!$EZ$25>'Electric Totals'!$FG$25,'Electric Totals'!D11,'Electric Totals'!FF11)","v":0},{"$f":"'Electric Totals'!FI11","v":0},{"$f":"E30*0.003412","v":0},{"$f":"'Electric Totals'!FA11","v":0},null,{"$f":"IF('Electric Totals'!$EZ$50>'Electric Totals'!$FG$50,'Electric Totals'!B36,'Electric Totals'!FD36)","v":"1900-01-01"},{"$f":"IF('Electric Totals'!$EZ$50>'Electric Totals'!$FG$50,'Electric Totals'!C36,'Electric Totals'!FE36)","v":"00:00:00"},{"$f":"IF('Electric Totals'!$EZ$50>'Electric Totals'!$FG$50,'Electric Totals'!D36,'Electric Totals'!FF36)","v":0},{"$f":"'Electric Totals'!FI36","v":0},{"$f":"L30*0.003412","v":0},{"$f":"'Electric Totals'!FA36","v":0},null,null,null,null,null,null,null,null,"Gas",{"$f":"IF(B48>1000,B48,\"\")","v":""},{"$f":"IF(I48>1000,I48,\"\")","v":""}]
[null,{"$f":"IF('Electric Totals'!$EZ$25>'Electric Totals'!$FG$25,'Electric Totals'!B12,'Electric Totals'!FD12)","v":"1900-01-01"},{"$f":"IF('Electric Totals'!$EZ$25>'Electric Totals'!$FG$25,'Electric Totals'!C12,'Electric Totals'!FE12)","v":"00:00:00"},{"$f":"IF('Electric Totals'!$EZ$25>'Electric Totals'!$FG$25,'Electric Totals'!D12,'Electric Totals'!FF12)","v":0},{"$f":"'Electric Totals'!FI12","v":0},0,{"$f":"'Electric Totals'!FA12","v":0},null,{"$f":"IF('Electric Totals'!$EZ$50>'Electric Totals'!$FG$50,'Electric Totals'!B37,'Electric Totals'!FD37)","v":"1900-01-01"},{"$f":"IF('Electric Totals'!$EZ$50>'Electric Totals'!$FG$50,'Electric Totals'!C37,'Electric Totals'!FE37)","v":"00:00:00"},{"$f":"IF('Electric Totals'!$EZ$50>'Electric Totals'!$FG$50,'Electric Totals'!D37,'Electric Totals'!FF37)","v":0},{"$f":"'Electric Totals'!FI37","v":0},0,{"$f":"'Electric Totals'!FA37","v":0},null,null,null,null,null,null,null,null,"Oil",{"$f":"IF(B67>1000,B67,\"\")","v":""},{"$f":"IF(I67>1000,I67,\"\")","v":""}]
[null,{"$f":"IF('Electric Totals'!$EZ$25>'Electric Totals'!$FG$25,'Electric Totals'!B13,'Electric Totals'!FD13)","v":"1900-01-01"},{"$f":"IF('Electric Totals'!$EZ$25>'Electric Totals'!$FG$25,'Electric Totals'!C13,'Electric Totals'!FE13)","v":"00:00:00"},{"$f":"IF('Electric Totals'!$EZ$25>'Electric Totals'!$FG$25,'Electric Totals'!D13,'Electric Totals'!FF13)","v":0},{"$f":"'Electric Totals'!FI13","v":0},0,{"$f":"'Electric Totals'!FA13","v":0},null,{"$f":"IF('Electric Totals'!$EZ$50>'Electric Totals'!$FG$50,'Electric Totals'!B38,'Electric Totals'!FD38)","v":"1900-01-01"},{"$f":"IF('Electric Totals'!$EZ$50>'Electric Totals'!$FG$50,'Electric Totals'!C38,'Electric Totals'!FE38)","v":"00:00:00"},{"$f":"IF('Electric Totals'!$EZ$50>'Electric Totals'!$FG$50,'Electric Totals'!D38,'Electric Totals'!FF38)","v":0},{"$f":"'Electric Totals'!FI38","v":0},0,{"$f":"'Electric Totals'!FA38","v":0},null,null,null,null,null,null,null,null,"Steam",{"$f":"IF(B143>1000,B143,\"\")","v":""},{"$f":"IF(I143>1000,I143,\"\")","v":""}]
[null,{"$f":"IF('Electric Totals'!$EZ$25>'Electric Totals'!$FG$25,'Electric Totals'!B14,'Electric Totals'!FD14)","v":"1900-01-01"},{"$f":"IF('Electric Totals'!$EZ$25>'Electric Totals'!$FG$25,'Electric Totals'!C14,'Electric Totals'!FE14)","v":"00:00:00"},{"$f":"IF('Electric Totals'!$EZ$25>'Electric Totals'!$FG$25,'Electric Totals'!D14,'Electric Totals'!FF14)","v":0},{"$f":"'Electric Totals'!FI14","v":0},0,{"$f":"'Electric Totals'!FA14","v":0},null,{"$f":"IF('Electric Totals'!$EZ$50>'Electric Totals'!$FG$50,'Electric Totals'!B39,'Electric Totals'!FD39)","v":"1900-01-01"},{"$f":"IF('Electric Totals'!$EZ$50>'Electric Totals'!$FG$50,'Electric Totals'!C39,'Electric Totals'!FE39)","v":"00:00:00"},{"$f":"IF('Electric Totals'!$EZ$50>'Electric Totals'!$FG$50,'Electric Totals'!D39,'Electric Totals'!FF39)","v":0},{"$f":"'Electric Totals'!FI39","v":0},0,{"$f":"'Electric Totals'!FA39","v":0},null,null,null,null,null,null,null,null,"Propane",{"$f":"IF(B105>1000,B105,\"\")","v":""},{"$f":"IF(I105>1000,I105,\"\")","v":""}]
[null,{"$f":"IF('Electric Totals'!$EZ$25>'Electric Totals'!$FG$25,'Electric Totals'!B15,'Electric Totals'!FD15)","v":"1900-01-01"},{"$f":"IF('Electric Totals'!$EZ$25>'Electric Totals'!$FG$25,'Electric Totals'!C15,'Electric Totals'!FE15)","v":"00:00:00"},{"$f":"IF('Electric Totals'!$EZ$25>'Electric Totals'!$FG$25,'Electric Totals'!D15,'Electric Totals'!FF15)","v":0},{"$f":"'Electric Totals'!FI15","v":0},0,{"$f":"'Electric Totals'!FA15","v":0},null,{"$f":"IF('Electric Totals'!$EZ$50>'Electric Totals'!$FG$50,'Electric Totals'!B40,'Electric Totals'!FD40)","v":"1900-01-01"},{"$f":"IF('Electric Totals'!$EZ$50>'Electric Totals'!$FG$50,'Electric Totals'!C40,'Electric Totals'!FE40)","v":"00:00:00"},{"$f":"IF('Electric Totals'!$EZ$50>'Electric Totals'!$FG$50,'Electric Totals'!D40,'Electric Totals'!FF40)","v":0},{"$f":"'Electric Totals'!FI40","v":0},0,{"$f":"'Electric Totals'!FA40","v":0},null,null,null,null,null,null,null,null,"Earliest",{"$f":"MIN(X29:X33)","v":"00:00:00"},{"$f":"MIN(Y29:Y33)","v":"00:00:00"}]
[null,{"$f":"IF('Electric Totals'!$EZ$25>'Electric Totals'!$FG$25,'Electric Totals'!B16,'Electric Totals'!FD16)","v":"1900-01-01"},{"$f":"IF('Electric Totals'!$EZ$25>'Electric Totals'!$FG$25,'Electric Totals'!C16,'Electric Totals'!FE16)","v":"00:00:00"},{"$f":"IF('Electric Totals'!$EZ$25>'Electric Totals'!$FG$25,'Electric Totals'!D16,'Electric Totals'!FF16)","v":0},{"$f":"'Electric Totals'!FI16","v":0},0,{"$f":"'Electric Totals'!FA16","v":0},null,{"$f":"IF('Electric Totals'!$EZ$50>'Electric Totals'!$FG$50,'Electric Totals'!B41,'Electric Totals'!FD41)","v":"1900-01-01"},{"$f":"IF('Electric Totals'!$EZ$50>'Electric Totals'!$FG$50,'Electric Totals'!C41,'Electric Totals'!FE41)","v":"00:00:00"},{"$f":"IF('Electric Totals'!$EZ$50>'Electric Totals'!$FG$50,'Electric Totals'!D41,'Electric Totals'!FF41)","v":0},{"$f":"'Electric Totals'!FI41","v":0},0,{"$f":"'Electric Totals'!FA41","v":0},null,null,null,null,null,null,null,null,"Latest",{"$f":"MAX(X29:X33)","v":"00:00:00"},{"$f":"MAX(Y29:Y33)","v":"00:00:00"}]
[null,{"$f":"IF('Electric Totals'!$EZ$25>'Electric Totals'!$FG$25,'Electric Totals'!B17,'Electric Totals'!FD17)","v":"1900-01-01"},{"$f":"IF('Electric Totals'!$EZ$25>'Electric Totals'!$FG$25,'Electric Totals'!C17,'Electric Totals'!FE17)","v":"00:00:00"},{"$f":"IF('Electric Totals'!$EZ$25>'Electric Totals'!$FG$25,'Electric Totals'!D17,'Electric Totals'!FF17)","v":0},{"$f":"'Electric Totals'!FI17","v":0},0,{"$f":"'Electric Totals'!FA17","v":0},null,{"$f":"IF('Electric Totals'!$EZ$50>'Electric Totals'!$FG$50,'Electric Totals'!B42,'Electric Totals'!FD42)","v":"1900-01-01"},{"$f":"IF('Electric Totals'!$EZ$50>'Electric Totals'!$FG$50,'Electric Totals'!C42,'Electric Totals'!FE42)","v":"00:00:00"},{"$f":"IF('Electric Totals'!$EZ$50>'Electric Totals'!$FG$50,'Electric Totals'!D42,'Electric Totals'!FF42)","v":0},{"$f":"'Electric Totals'!FI42","v":0},0,{"$f":"'Electric Totals'!FA42","v":0}]
[null,{"$f":"IF('Electric Totals'!$EZ$25>'Electric Totals'!$FG$25,'Electric Totals'!B18,'Electric Totals'!FD18)","v":"1900-01-01"},{"$f":"IF('Electric Totals'!$EZ$25>'Electric Totals'!$FG$25,'Electric Totals'!C18,'Electric Totals'!FE18)","v":"00:00:00"},{"$f":"IF('Electric Totals'!$EZ$25>'Electric Totals'!$FG$25,'Electric Totals'!D18,'Electric Totals'!FF18)","v":0},{"$f":"'Electric Totals'!FI18","v":0},0,{"$f":"'Electric Totals'!FA18","v":0},null,{"$f":"IF('Electric Totals'!$EZ$50>'Electric Totals'!$FG$50,'Electric Totals'!B43,'Electric Totals'!FD43)","v":"1900-01-01"},{"$f":"IF('Electric Totals'!$EZ$50>'Electric Totals'!$FG$50,'Electric Totals'!C43,'Electric Totals'!FE43)","v":"00:00:00"},{"$f":"IF('Electric Totals'!$EZ$50>'Electric Totals'!$FG$50,'Electric Totals'!D43,'Electric Totals'!FF43)","v":0},{"$f":"'Electric Totals'!FI43","v":0},0,{"$f":"'Electric Totals'!FA43","v":0}]
[null,{"$f":"IF('Electric Totals'!$EZ$25>'Electric Totals'!$FG$25,'Electric Totals'!B19,'Electric Totals'!FD19)","v":"1900-01-01"},{"$f":"IF('Electric Totals'!$EZ$25>'Electric Totals'!$FG$25,'Electric Totals'!C19,'Electric Totals'!FE19)","v":"00:00:00"},{"$f":"IF('Electric Totals'!$EZ$25>'Electric Totals'!$FG$25,'Electric Totals'!D19,'Electric Totals'!FF19)","v":0},{"$f":"'Electric Totals'!FI19","v":0},0,{"$f":"'Electric Totals'!FA19","v":0},null,{"$f":"IF('Electric Totals'!$EZ$50>'Electric Totals'!$FG$50,'Electric Totals'!B44,'Electric Totals'!FD44)","v":"1900-01-01"},{"$f":"IF('Electric Totals'!$EZ$50>'Electric Totals'!$FG$50,'Electric Totals'!C44,'Electric Totals'!FE44)","v":"00:00:00"},{"$f":"IF('Electric Totals'!$EZ$50>'Electric Totals'!$FG$50,'Electric Totals'!D44,'Electric Totals'!FF44)","v":0},{"$f":"'Electric Totals'!FI44","v":0},0,{"$f":"'Electric Totals'!FA44","v":0}]
[null,{"$f":"IF('Electric Totals'!$EZ$25>'Electric Totals'!$FG$25,'Electric Totals'!B20,'Electric Totals'!FD20)","v":"1900-01-01"},{"$f":"IF('Electric Totals'!$EZ$25>'Electric Totals'!$FG$25,'Electric Totals'!C20,'Electric Totals'!FE20)","v":"00:00:00"},{"$f":"IF('Electric Totals'!$EZ$25>'Electric Totals'!$FG$25,'Electric Totals'!D20,'Electric Totals'!FF20)","v":0},{"$f":"'Electric Totals'!FI20","v":0},0,{"$f":"'Electric Totals'!FA20","v":0},null,{"$f":"IF('Electric Totals'!$EZ$50>'Electric Totals'!$FG$50,'Electric Totals'!B45,'Electric Totals'!FD45)","v":"1900-01-01"},{"$f":"IF('Electric Totals'!$EZ$50>'Electric Totals'!$FG$50,'Electric Totals'!C45,'Electric Totals'!FE45)","v":"00:00:00"},{"$f":"IF('Electric Totals'!$EZ$50>'Electric Totals'!$FG$50,'Electric Totals'!D45,'Electric Totals'!FF45)","v":0},{"$f":"'Electric Totals'!FI45","v":0},0,{"$f":"'Electric Totals'!FA45","v":0}]
[null,{"$f":"IF('Electric Totals'!$EZ$25>'Electric Totals'!$FG$25,'Electric Totals'!B21,'Electric Totals'!FD21)","v":"1900-01-01"},{"$f":"IF('Electric Totals'!$EZ$25>'Electric Totals'!$FG$25,'Electric Totals'!C21,'Electric Totals'!FE21)","v":"00:00:00"},{"$f":"IF('Electric Totals'!$EZ$25>'Electric Totals'!$FG$25,'Electric Totals'!D21,'Electric Totals'!FF21)","v":0},{"$f":"'Electric Totals'!FI21","v":0},0,{"$f":"'Electric Totals'!FA21","v":0},null,{"$f":"IF('Electric Totals'!$EZ$50>'Electric Totals'!$FG$50,'Electric Totals'!B46,'Electric Totals'!FD46)","v":"1900-01-01"},{"$f":"IF('Electric Totals'!$EZ$50>'Electric Totals'!$FG$50,'Electric Totals'!C46,'Electric Totals'!FE46)","v":"00:00:00"},{"$f":"IF('Electric Totals'!$EZ$50>'Electric Totals'!$FG$50,'Electric Totals'!D46,'Electric Totals'!FF46)","v":0},{"$f":"'Electric Totals'!FI46","v":0},0,{"$f":"'Electric Totals'!FA46","v":0}]
[null,{"$f":"IF('Electric Totals'!$EZ$25>'Electric Totals'!$FG$25,'Electric Totals'!B22,'Electric Totals'!FD22)","v":"1900-01-01"},{"$f":"IF('Electric Totals'!$EZ$25>'Electric Totals'!$FG$25,'Electric Totals'!C22,'Electric Totals'!FE22)","v":"00:00:00"},{"$f":"IF('Electric Totals'!$EZ$25>'Electric Totals'!$FG$25,'Electric Totals'!D22,'Electric Totals'!FF22)","v":0},{"$f":"'Electric Totals'!FI22","v":0},0,{"$f":"'Electric Totals'!FA22","v":0},null,{"$f":"IF('Electric Totals'!$EZ$50>'Electric Totals'!$FG$50,'Electric Totals'!B47,'Electric Totals'!FD47)","v":"1900-01-01"},{"$f":"IF('Electric Totals'!$EZ$50>'Electric Totals'!$FG$50,'Electric Totals'!C47,'Electric Totals'!FE47)","v":"00:00:00"},{"$f":"IF('Electric Totals'!$EZ$50>'Electric Totals'!$FG$50,'Electric Totals'!D47,'Electric Totals'!FF47)","v":0},{"$f":"'Electric Totals'!FI47","v":0},0,{"$f":"'Electric Totals'!FA47","v":0}]
[null,{"$f":"IF('Electric Totals'!$EZ$25>'Electric Totals'!$FG$25,'Electric Totals'!B23,'Electric Totals'!FD23)","v":"1900-01-01"},{"$f":"IF('Electric Totals'!$EZ$25>'Electric Totals'!$FG$25,'Electric Totals'!C23,'Electric Totals'!FE23)","v":"00:00:00"},{"$f":"IF('Electric Totals'!$EZ$25>'Electric Totals'!$FG$25,'Electric Totals'!D23,'Electric Totals'!FF23)","v":0},{"$f":"'Electric Totals'!FI23","v":0},0,{"$f":"'Electric Totals'!FA23","v":0},null,{"$f":"IF('Electric Totals'!$EZ$50>'Electric Totals'!$FG$50,'Electric Totals'!B48,'Electric Totals'!FD48)","v":"1900-01-01"},{"$f":"IF('Electric Totals'!$EZ$50>'Electric Totals'!$FG$50,'Electric Totals'!C48,'Electric Totals'!FE48)","v":"00:00:00"},{"$f":"IF('Electric Totals'!$EZ$50>'Electric Totals'!$FG$50,'Electric Totals'!D48,'Electric Totals'!FF48)","v":0},{"$f":"'Electric Totals'!FI48","v":0},0,{"$f":"'Electric Totals'!FA48","v":0}]
[null,{"$f":"IF('Electric Totals'!$EZ$25>'Electric Totals'!$FG$25,'Electric Totals'!B24,'Electric Totals'!FD24)","v":"1900-01-01"},{"$f":"IF('Electric Totals'!$EZ$25>'Electric Totals'!$FG$25,'Electric Totals'!C24,'Electric Totals'!FE24)","v":"00:00:00"},{"$f":"IF('Electric Totals'!$EZ$25>'Electric Totals'!$FG$25,'Electric Totals'!D24,'Electric Totals'!FF24)","v":0},{"$f":"'Electric Totals'!FI24","v":0},0,{"$f":"'Electric Totals'!FA24","v":0},null,{"$f":"IF('Electric Totals'!$EZ$50>'Electric Totals'!$FG$50,'Electric Totals'!B49,'Electric Totals'!FD49)","v":"1900-01-01"},{"$f":"IF('Electric Totals'!$EZ$50>'Electric Totals'!$FG$50,'Electric Totals'!C49,'Electric Totals'!FE49)","v":"00:00:00"},{"$f":"IF('Electric Totals'!$EZ$50>'Electric Totals'!$FG$50,'Electric Totals'!D49,'Electric Totals'!FF49)","v":0},{"$f":"'Electric Totals'!FI49","v":0},0,{"$f":"'Electric Totals'!FA49","v":0}]
[null,null,null,{"$f":"SUM(D29:D43)","v":0},{"$f":"SUM(E29:E43)","v":0},{"$f":"SUM(F29:F43)","v":0},{"$f":"'Electric Totals'!FA25","v":0},null,null,null,{"$f":"SUM(K29:K43)","v":0},{"$f":"SUM(L29:L43)","v":0},{"$f":"SUM(M29:M43)","v":0},{"$f":"'Electric Totals'!FA50","v":0}]
[]
[null,"PRE-CONSTRUCTION GAS",null,null,null,null,null,null,"POST-CONSTRUCTION GAS"]
[null,"Billing Period Start Date","Meter Read Date","Days in Billing Period",{"$f":"\"Total  Consumption\n\" & 'Utility Info'!D7","v":"Total  Consumption\n<Not Used>"},"Total Consumption \nMMBtu",null,null,"Billing Period Start Date","Meter Read Date","Days in Billing Period",{"$f":"\"Total Consumption\n\" & 'Utility Info'!D16","v":"Total Consumption\n<Not Used>"},"Total Consumption\nMMBtu"]
[null,{"$f":"IF('Gas Totals'!$DB$25>'Gas Totals'!$DH$25,'Gas Totals'!B10,'Gas Totals'!DE10)","v":"1900-01-01"},{"$f":"IF('Gas Totals'!$DB$25>'Gas Totals'!$DH$25,'Gas Totals'!C10,'Gas Totals'!DF10)","v":"00:00:00"},{"$f":"IF('Gas Totals'!$DB$25>'Gas Totals'!$DH$25,'Gas Totals'!D10,'Gas Totals'!DG10)","v":0},{"$f":"'Gas Totals'!DJ10","v":0},{"$f":"E48*0.1","v":0},null,null,{"$f":"IF('Gas Totals'!$DB$50>'Gas Totals'!$DH$50,'Gas Totals'!B35,'Gas Totals'!DE35)","v":"1900-01-01"},{"$f":"IF('Gas Totals'!$DB$50>'Gas Totals'!$DH$50,'Gas Totals'!C35,'Gas Totals'!DF35)","v":"00:00:00"},{"$f":"IF('Gas Totals'!$DB$50>'Gas Totals'!$DH$50,'Gas Totals'!D35,'Gas Totals'!DG35)","v":0},{"$f":"'Gas Totals'!DJ35","v":0},{"$f":"L48*0.1","v":0}]
[null,{"$f":"IF('Gas Totals'!$DB$25>'Gas Totals'!$DH$25,'Gas Totals'!B11,'Gas Totals'!DE11)","v":"1900-01-01"},{"$f":"IF('Gas Totals'!$DB$25>'Gas Totals'!$DH$25,'Gas Totals'!C11,'Gas Totals'!DF11)","v":"00:00:00"},{"$f":"IF('Gas Totals'!$DB$25>'Gas Totals'!$DH$25,'Gas Totals'!D11,'Gas Totals'!DG11)","v":0},{"$f":"'Gas Totals'!DJ11","v":0},{"$f":"E49*0.1","v":0},null,null,{"$f":"IF('Gas Totals'!$DB$50>'Gas Totals'!$DH$50,'Gas Totals'!B36,'Gas Totals'!DE36)","v":"1900-01-01"},{"$f":"IF('Gas Totals'!$DB$50>'Gas Totals'!$DH$50,'Gas Totals'!C36,'Gas Totals'!DF36)","v":"00:00:00"},{"$f":"IF('Gas Totals'!$DB$50>'Gas Totals'!$DH$50,'Gas Totals'!D36,'Gas Totals'!DG36)","v":0},{"$f":"'Gas Totals'!DJ36","v":0},{"$f":"L49*0.1","v":0}]
[null,{"$f":"IF('Gas Totals'!$DB$25>'Gas Totals'!$DH$25,'Gas Totals'!B12,'Gas Totals'!DE12)","v":"1900-01-01"},{"$f":"IF('Gas Totals'!$DB$25>'Gas Totals'!$DH$25,'Gas Totals'!C12,'Gas Totals'!DF12)","v":"00:00:00"},{"$f":"IF('Gas Totals'!$DB$25>'Gas Totals'!$DH$25,'Gas Totals'!D12,'Gas Totals'!DG12)","v":0},{"$f":"'Gas Totals'!DJ12","v":0},0,null,null,{"$f":"IF('Gas Totals'!$DB$50>'Gas Totals'!$DH$50,'Gas Totals'!B37,'Gas Totals'!DE37)","v":"1900-01-01"},{"$f":"IF('Gas Totals'!$DB$50>'Gas Totals'!$DH$50,'Gas Totals'!C37,'Gas Totals'!DF37)","v":"00:00:00"},{"$f":"IF('Gas Totals'!$DB$50>'Gas Totals'!$DH$50,'Gas Totals'!D37,'Gas Totals'!DG37)","v":0},{"$f":"'Gas Totals'!DJ37","v":0},{"$f":"L50*0.1","v":0}]
[null,{"$f":"IF('Gas Totals'!$DB$25>'Gas Totals'!$DH$25,'Gas Totals'!B13,'Gas Totals'!DE13)","v":"1900-01-01"},{"$f":"IF('Gas Totals'!$DB$25>'Gas Totals'!$DH$25,'Gas Totals'!C13,'Gas Totals'!DF13)","v":"00:00:00"},{"$f":"IF('Gas Totals'!$DB$25>'Gas Totals'!$DH$25,'Gas Totals'!D13,'Gas Totals'!DG13)","v":0},{"$f":"'Gas Totals'!DJ13","v":0},0,null,null,{"$f":"IF('Gas Totals'!$DB$50>'Gas Totals'!$DH$50,'Gas Totals'!B38,'Gas Totals'!DE38)","v":"1900-01-01"},{"$f":"IF('Gas Totals'!$DB$50>'Gas Totals'!$DH$50,'Gas Totals'!C38,'Gas Totals'!DF38)","v":"00:00:00"},{"$f":"IF('Gas Totals'!$DB$50>'Gas Totals'!$DH$50,'Gas Totals'!D38,'Gas Totals'!DG38)","v":0},{"$f":"'Gas Totals'!DJ38","v":0},0]
[null,{"$f":"IF('Gas Totals'!$DB$25>'Gas Totals'!$DH$25,'Gas Totals'!B14,'Gas Totals'!DE14)","v":"1900-01-01"},{"$f":"IF('Gas Totals'!$DB$25>'Gas Totals'!$DH$25,'Gas Totals'!C14,'Gas Totals'!DF14)","v":"00:00:00"},{"$f":"IF('Gas Totals'!$DB$25>'Gas Totals'!$DH$25,'Gas Totals'!D14,'Gas Totals'!DG14)","v":0},{"$f":"'Gas Totals'!DJ14","v":0},0,null,null,{"$f":"IF('Gas Totals'!$DB$50>'Gas Totals'!$DH$50,'Gas Totals'!B39,'Gas Totals'!DE39)","v":"1900-01-01"},{"$f":"IF('Gas Totals'!$DB$50>'Gas Totals'!$DH$50,'Gas Totals'!C39,'Gas Totals'!DF39)","v":"00:00:00"},{"$f":"IF('Gas Totals'!$DB$50>'Gas Totals'!$DH$50,'Gas Totals'!D39,'Gas Totals'!DG39)","v":0},{"$f":"'Gas Totals'!DJ39","v":0},0]
[null,{"$f":"IF('Gas Totals'!$DB$25>'Gas Totals'!$DH$25,'Gas Totals'!B15,'Gas Totals'!DE15)","v":"1900-01-01"},{"$f":"IF('Gas Totals'!$DB$25>'Gas Totals'!$DH$25,'Gas Totals'!C15,'Gas Totals'!DF15)","v":"00:00:00"},{"$f":"IF('Gas Totals'!$DB$25>'Gas Totals'!$DH$25,'Gas Totals'!D15,'Gas Totals'!DG15)","v":0},{"$f":"'Gas Totals'!DJ15","v":0},0,null,null,{"$f":"IF('Gas Totals'!$DB$50>'Gas Totals'!$DH$50,'Gas Totals'!B40,'Gas Totals'!DE40)","v":"1900-01-01"},{"$f":"IF('Gas Totals'!$DB$50>'Gas Totals'!$DH$50,'Gas Totals'!C40,'Gas Totals'!DF40)","v":"00:00:00"},{"$f":"IF('Gas Totals'!$DB$50>'Gas Totals'!$DH$50,'Gas Totals'!D40,'Gas Totals'!DG40)","v":0},{"$f":"'Gas Totals'!DJ40","v":0},0]
[null,{"$f":"IF('Gas Totals'!$DB$25>'Gas Totals'!$DH$25,'Gas Totals'!B16,'Gas Totals'!DE16)","v":"1900-01-01"},{"$f":"IF('Gas Totals'!$DB$25>'Gas Totals'!$DH$25,'Gas Totals'!C16,'Gas Totals'!DF16)","v":"00:00:00"},{"$f":"IF('Gas Totals'!$DB$25>'Gas Totals'!$DH$25,'Gas Totals'!D16,'Gas Totals'!DG16)","v":0},{"$f":"'Gas Totals'!DJ16","v":0},0,null,null,{"$f":"IF('Gas Totals'!$DB$50>'Gas Totals'!$DH$50,'Gas Totals'!B41,'Gas Totals'!DE41)","v":"1900-01-01"},{"$f":"IF('Gas Totals'!$DB$50>'Gas Totals'!$DH$50,'Gas Totals'!C41,'Gas Totals'!DF41)","v":"00:00:00"},{"$f":"IF('Gas Totals'!$DB$50>'Gas Totals'!$DH$50,'Gas Totals'!D41,'Gas Totals'!DG41)","v":0},{"$f":"'Gas Totals'!DJ41","v":0},0]
[null,{"$f":"IF('Gas Totals'!$DB$25>'Gas Totals'!$DH$25,'Gas Totals'!B17,'Gas Totals'!DE17)","v":"1900-01-01"},{"$f":"IF('Gas Totals'!$DB$25>'Gas Totals'!$DH$25,'Gas Totals'!C17,'Gas Totals'!DF17)","v":"00:00:00"},{"$f":"IF('Gas Totals'!$DB$25>'Gas Totals'!$DH$25,'Gas Totals'!D17,'Gas Totals'!DG17)","v":0},{"$f":"'Gas Totals'!DJ17","v":0},0,null,null,{"$f":"IF('Gas Totals'!$DB$50>'Gas Totals'!$DH$50,'Gas Totals'!B42,'Gas Totals'!DE42)","v":"1900-01-01"},{"$f":"IF('Gas Totals'!$DB$50>'Gas Totals'!$DH$50,'Gas Totals'!C42,'Gas Totals'!DF42)","v":"00:00:00"},{"$f":"IF('Gas Totals'!$DB$50>'Gas Totals'!$DH$50,'Gas Totals'!D42,'Gas Totals'!DG42)","v":0},{"$f":"'Gas Totals'!DJ42","v":0},0]
[null,{"$f":"IF('Gas Totals'!$DB$25>'Gas Totals'!$DH$25,'Gas Totals'!B18,'Gas Totals'!DE18)","v":"1900-01-01"},{"$f":"IF('Gas Totals'!$DB$25>'Gas Totals'!$DH$25,'Gas Totals'!C18,'Gas Totals'!DF18)","v":"00:00:00"},{"$f":"IF('Gas Totals'!$DB$25>'Gas Totals'!$DH$25,'Gas Totals'!D18,'Gas Totals'!DG18)","v":0},{"$f":"'Gas Totals'!DJ18","v":0},0,null,null,{"$f":"IF('Gas Totals'!$DB$50>'Gas Totals'!$DH$50,'Gas Totals'!B43,'Gas Totals'!DE43)","v":"1900-01-01"},{"$f":"IF('Gas Totals'!$DB$50>'Gas Totals'!$DH$50,'Gas Totals'!C43,'Gas Totals'!DF43)","v":"00:00:00"},{"$f":"IF('Gas Totals'!$DB$50>'Gas Totals'!$DH$50,'Gas Totals'!D43,'Gas Totals'!DG43)","v":0},{"$f":"'Gas Totals'!DJ43","v":0},0]
[null,{"$f":"IF('Gas Totals'!$DB$25>'Gas Totals'!$DH$25,'Gas Totals'!B19,'Gas Totals'!DE19)","v":"1900-01-01"},{"$f":"IF('Gas Totals'!$DB$25>'Gas Totals'!$DH$25,'Gas Totals'!C19,'Gas Totals'!DF19)","v":"00:00:00"},{"$f":"IF('Gas Totals'!$DB$25>'Gas Totals'!$DH$25,'Gas Totals'!D19,'Gas Totals'!DG19)","v":0},{"$f":"'Gas Totals'!DJ19","v":0},0,null,null,{"$f":"IF('Gas Totals'!$DB$50>'Gas Totals'!$DH$50,'Gas Totals'!B44,'Gas Totals'!DE44)","v":"1900-01-01"},{"$f":"IF('Gas Totals'!$DB$50>'Gas Totals'!$DH$50,'Gas Totals'!C44,'Gas Totals'!DF44)","v":"00:00:00"},{"$f":"IF('Gas Totals'!$DB$50>'Gas Totals'!$DH$50,'Gas Totals'!D44,'Gas Totals'!DG44)","v":0},{"$f":"'Gas Totals'!DJ44","v":0},0]
[null,{"$f":"IF('Gas Totals'!$DB$25>'Gas Totals'!$DH$25,'Gas Totals'!B20,'Gas Totals'!DE20)","v":"1900-01-01"},{"$f":"IF('Gas Totals'!$DB$25>'Gas Totals'!$DH$25,'Gas Totals'!C20,'Gas Totals'!DF20)","v":"00:00:00"},{"$f":"IF('Gas Totals'!$DB$25>'Gas Totals'!$DH$25,'Gas Totals'!D20,'Gas Totals'!DG20)","v":0},{"$f":"'Gas Totals'!DJ20","v":0},0,null,null,{"$f":"IF('Gas Totals'!$DB$50>'Gas Totals'!$DH$50,'Gas Totals'!B45,'Gas Totals'!DE45)","v":"1900-01-01"},{"$f":"IF('Gas Totals'!$DB$50>'Gas Totals'!$DH$50,'Gas Totals'!C45,'Gas Totals'!DF45)","v":"00:00:00"},{"$f":"IF('Gas Totals'!$DB$50>'Gas Totals'!$DH$50,'Gas Totals'!D45,'Gas Totals'!DG45)","v":0},{"$f":"'Gas Totals'!DJ45","v":0},0]
[null,{"$f":"IF('Gas Totals'!$DB$25>'Gas Totals'!$DH$25,'Gas Totals'!B21,'Gas Totals'!DE21)","v":"1900-01-01"},{"$f":"IF('Gas Totals'!$DB$25>'Gas Totals'!$DH$25,'Gas Totals'!C21,'Gas Totals'!DF21)","v":"00:00:00"},{"$f":"IF('Gas Totals'!$DB$25>'Gas Totals'!$DH$25,'Gas Totals'!D21,'Gas Totals'!DG21)","v":0},{"$f":"'Gas Totals'!DJ21","v":0},0,null,null,{"$f":"IF('Gas Totals'!$DB$50>'Gas Totals'!$DH$50,'Gas Totals'!B46,'Gas Totals'!DE46)","v":"1900-01-01"},{"$f":"IF('Gas Totals'!$DB$50>'Gas Totals'!$DH$50,'Gas Totals'!C46,'Gas Totals'!DF46)","v":"00:00:00"},{"$f":"IF('Gas Totals'!$DB$50>'Gas Totals'!$DH$50,'Gas Totals'!D46,'Gas Totals'!DG46)","v":0},{"$f":"'Gas Totals'!DJ46","v":0},0]
[null,{"$f":"IF('Gas Totals'!$DB$25>'Gas Totals'!$DH$25,'Gas Totals'!B22,'Gas Totals'!DE22)","v":"1900-01-01"},{"$f":"IF('Gas Totals'!$DB$25>'Gas Totals'!$DH$25,'Gas Totals'!C22,'Gas Totals'!DF22)","v":"00:00:00"},{"$f":"IF('Gas Totals'!$DB$25>'Gas Totals'!$DH$25,'Gas Totals'!D22,'Gas Totals'!DG22)","v":0},{"$f":"'Gas Totals'!DJ22","v":0},0,null,null,{"$f":"IF('Gas Totals'!$DB$50>'Gas Totals'!$DH$50,'Gas Totals'!B47,'Gas Totals'!DE47)","v":"1900-01-01"},{"$f":"IF('Gas Totals'!$DB$50>'Gas Totals'!$DH$50,'Gas Totals'!C47,'Gas Totals'!DF47)","v":"00:00:00"},{"$f":"IF('Gas Totals'!$DB$50>'Gas Totals'!$DH$50,'Gas Totals'!D47,'Gas Totals'!DG47)","v":0},{"$f":"'Gas Totals'!DJ47","v":0},0]
[null,{"$f":"IF('Gas Totals'!$DB$25>'Gas Totals'!$DH$25,'Gas Totals'!B23,'Gas Totals'!DE23)","v":"1900-01-01"},{"$f":"IF('Gas Totals'!$DB$25>'Gas Totals'!$DH$25,'Gas Totals'!C23,'Gas Totals'!DF23)","v":"00:00:00"},{"$f":"IF('Gas Totals'!$DB$25>'Gas Totals'!$DH$25,'Gas Totals'!D23,'Gas Totals'!DG23)","v":0},{"$f":"'Gas Totals'!DJ23","v":0},0,null,null,{"$f":"IF('Gas Totals'!$DB$50>'Gas Totals'!$DH$50,'Gas Totals'!B48,'Gas Totals'!DE48)","v":"1900-01-01"},{"$f":"IF('Gas Totals'!$DB$50>'Gas Totals'!$DH$50,'Gas Totals'!C48,'Gas Totals'!DF48)","v":"00:00:00"},{"$f":"IF('Gas Totals'!$DB$50>'Gas Totals'!$DH$50,'Gas Totals'!D48,'Gas Totals'!DG48)","v":0},{"$f":"'Gas Totals'!DJ48","v":0},0]
[null,{"$f":"IF('Gas Totals'!$DB$25>'Gas Totals'!$DH$25,'Gas Totals'!B24,'Gas Totals'!DE24)","v":"1900-01-01"},{"$f":"IF('Gas Totals'!$DB$25>'Gas Totals'!$DH$25,'Gas Totals'!C24,'Gas Totals'!DF24)","v":"00:00:00"},{"$f":"IF('Gas Totals'!$DB$25>'Gas Totals'!$DH$25,'Gas Totals'!D24,'Gas Totals'!DG24)","v":0},{"$f":"'Gas Totals'!DJ24","v":0},0,null,null,{"$f":"IF('Gas Totals'!$DB$50>'Gas Totals'!$DH$50,'Gas Totals'!B49,'Gas Totals'!DE49)","v":"1900-01-01"},{"$f":"IF('Gas Totals'!$DB$50>'Gas Totals'!$DH$50,'Gas Totals'!C49,'Gas Totals'!DF49)","v":"00:00:00"},{"$f":"IF('Gas Totals'!$DB$50>'Gas Totals'!$DH$50,'Gas Totals'!D49,'Gas Totals'!DG49)","v":0},{"$f":"'Gas Totals'!DJ49","v":0},0]
[null,null,null,{"$f":"SUM(D48:D62)","v":0},{"$f":"SUM(E48:E62)","v":0},{"$f":"SUM(F48:F62)","v":0},null,null,null,null,{"$f":"SUM(K48:K62)","v":0},{"$f":"SUM(L48:L62)","v":0},{"$f":"SUM(M48:M62)","v":0}]
[]
[null,"PRE-CONSTRUCTION OIL",null,null,null,null,null,null,"POST-CONSTRUCTION OIL"]
[null,"Billing Period Start Date","Read Date","Days in Billing Period",{"$f":"\"Total  Consumption\n\" & 'Utility Info'!E7","v":"Total  Consumption\n<Not Used>"},"Total Consumption\nMMBtu",null,null,"Billing Period Start Date","Read Date","Days in Billing Period",{"$f":"\"Total  Consumption\n\" & 'Utility Info'!E16","v":"Total  Consumption\n<Not Used>"},"Total Consumption\nMMBtu"]
[null,{"$f":"Oil!B9","v":"1900-01-01"},{"$f":"Oil!C9","v":"00:00:00"},{"$f":"Oil!D9","v":0},{"$f":"Oil!E9","v":0},{"$f":"Oil!G9","v":0},null,null,{"$f":"Oil!B53","v":"1900-01-01"},{"$f":"Oil!C53","v":"00:00:00"},{"$f":"Oil!D53","v":0},{"$f":"Oil!E53","v":0},{"$f":"Oil!G53","v":0}]
[null,{"$f":"Oil!B10","v":"1900-01-01"},{"$f":"Oil!C10","v":"00:00:00"},{"$f":"Oil!D10","v":0},{"$f":"Oil!E10","v":0},{"$f":"Oil!G10","v":0},null,null,{"$f":"Oil!B54","v":"1900-01-01"},{"$f":"Oil!C54","v":"00:00:00"},{"$f":"Oil!D54","v":0},{"$f":"Oil!E54","v":0},{"$f":"Oil!G54","v":0}]
[null,{"$f":"Oil!B11","v":"1900-01-01"},{"$f":"Oil!C11","v":"00:00:00"},{"$f":"Oil!D11","v":0},{"$f":"Oil!E11","v":0},{"$f":"Oil!G11","v":0},null,null,{"$f":"Oil!B55","v":"1900-01-01"},{"$f":"Oil!C55","v":"00:00:00"},{"$f":"Oil!D55","v":0},{"$f":"Oil!E55","v":0},{"$f":"Oil!G55","v":0}]
[null,{"$f":"Oil!B12","v":"1900-01-01"},{"$f":"Oil!C12","v":"00:00:00"},{"$f":"Oil!D12","v":0},{"$f":"Oil!E12","v":0},{"$f":"Oil!G12","v":0},null,null,{"$f":"Oil!B56","v":"1900-01-01"},{"$f":"Oil!C56","v":"00:00:00"},{"$f":"Oil!D56","v":0},{"$f":"Oil!E56","v":0},{"$f":"Oil!G56","v":0}]
[null,{"$f":"Oil!B13","v":"1900-01-01"},{"$f":"Oil!C13","v":"00:00:00"},{"$f":"Oil!D13","v":0},{"$f":"Oil!E13","v":0},{"$f":"Oil!G13","v":0},null,null,{"$f":"Oil!B57","v":"1900-01-01"},{"$f":"Oil!C57","v":"00:00:00"},{"$f":"Oil!D57","v":0},{"$f":"Oil!E57","v":0},{"$f":"Oil!G57","v":0}]
[null,{"$f":"Oil!B14","v":"1900-01-01"},{"$f":"Oil!C14","v":"00:00:00"},{"$f":"Oil!D14","v":0},{"$f":"Oil!E14","v":0},{"$f":"Oil!G14","v":0},null,null,{"$f":"Oil!B58","v":"1900-01-01"},{"$f":"Oil!C58","v":"00:00:00"},{"$f":"Oil!D58","v":0},{"$f":"Oil!E58","v":0},{"$f":"Oil!G58","v":0}]
[null,{"$f":"Oil!B15","v":"1900-01-01"},{"$f":"Oil!C15","v":"00:00:00"},{"$f":"Oil!D15","v":0},{"$f":"Oil!E15","v":0},{"$f":"Oil!G15","v":0},null,null,{"$f":"Oil!B59","v":"1900-01-01"},{"$f":"Oil!C59","v":"00:00:00"},{"$f":"Oil!D59","v":0},{"$f":"Oil!E59","v":0},{"$f":"Oil!G59","v":0}]
[null,{"$f":"Oil!B16","v":"1900-01-01"},{"$f":"Oil!C16","v":"00:00:00"},{"$f":"Oil!D16","v":0},{"$f":"Oil!E16","v":0},{"$f":"Oil!G16","v":0},null,null,{"$f":"Oil!B60","v":"1900-01-01"},{"$f":"Oil!C60","v":"00:00:00"},{"$f":"Oil!D60","v":0},{"$f":"Oil!E60","v":0},{"$f":"Oil!G60","v":0}]
[null,{"$f":"Oil!B17","v":"1900-01-01"},{"$f":"Oil!C17","v":"00:00:00"},{"$f":"Oil!D17","v":0},{"$f":"Oil!E17","v":0},{"$f":"Oil!G17","v":0},null,null,{"$f":"Oil!B61","v":"1900-01-01"},{"$f":"Oil!C61","v":"00:00:00"},{"$f":"Oil!D61","v":0},{"$f":"Oil!E61","v":0},{"$f":"Oil!G61","v":0}]
[null,{"$f":"Oil!B18","v":"1900-01-01"},{"$f":"Oil!C18","v":"00:00:00"},{"$f":"Oil!D18","v":0},{"$f":"Oil!E18","v":0},{"$f":"Oil!G18","v":0},null,null,{"$f":"Oil!B62","v":"1900-01-01"},{"$f":"Oil!C62","v":"00:00:00"},{"$f":"Oil!D62","v":0},{"$f":"Oil!E62","v":0},{"$f":"Oil!G62","v":0}]
[null,{"$f":"Oil!B19","v":"1900-01-01"},{"$f":"Oil!C19","v":"00:00:00"},{"$f":"Oil!D19","v":0},{"$f":"Oil!E19","v":0},{"$f":"Oil!G19","v":0},null,null,{"$f":"Oil!B63","v":"1900-01-01"},{"$f":"Oil!C63","v":"00:00:00"},{"$f":"Oil!D63","v":0},{"$f":"Oil!E63","v":0},{"$f":"Oil!G63","v":0}]
[null,{"$f":"Oil!B20","v":"1900-01-01"},{"$f":"Oil!C20","v":"00:00:00"},{"$f":"Oil!D20","v":0},{"$f":"Oil!E20","v":0},{"$f":"Oil!G20","v":0},null,null,{"$f":"Oil!B64","v":"1900-01-01"},{"$f":"Oil!C64","v":"00:00:00"},{"$f":"Oil!D64","v":0},{"$f":"Oil!E64","v":0},{"$f":"Oil!G64","v":0}]
[null,{"$f":"Oil!B21","v":"1900-01-01"},{"$f":"Oil!C21","v":"00:00:00"},{"$f":"Oil!D21","v":0},{"$f":"Oil!E21","v":0},{"$f":"Oil!G21","v":0},null,null,{"$f":"Oil!B65","v":"1900-01-01"},{"$f":"Oil!C65","v":"00:00:00"},{"$f":"Oil!D65","v":0},{"$f":"Oil!E65","v":0},{"$f":"Oil!G65","v":0}]
[null,{"$f":"Oil!B22","v":"1900-01-01"},{"$f":"Oil!C22","v":"00:00:00"},{"$f":"Oil!D22","v":0},{"$f":"Oil!E22","v":0},{"$f":"Oil!G22","v":0},null,null,{"$f":"Oil!B66","v":"1900-01-01"},{"$f":"Oil!C66","v":"00:00:00"},{"$f":"Oil!D66","v":0},{"$f":"Oil!E66","v":0},{"$f":"Oil!G66","v":0}]
[null,{"$f":"Oil!B23","v":"1900-01-01"},{"$f":"Oil!C23","v":"00:00:00"},{"$f":"Oil!D23","v":0},{"$f":"Oil!E23","v":0},{"$f":"Oil!G23","v":0},null,null,{"$f":"Oil!B67","v":"1900-01-01"},{"$f":"Oil!C67","v":"00:00:00"},{"$f":"Oil!D67","v":0},{"$f":"Oil!E67","v":0},{"$f":"Oil!G67","v":0}]
[null,{"$f":"Oil!B24","v":"1900-01-01"},{"$f":"Oil!C24","v":"00:00:00"},{"$f":"Oil!D24","v":0},{"$f":"Oil!E24","v":0},{"$f":"Oil!G24","v":0},null,null,{"$f":"Oil!B68","v":"1900-01-01"},{"$f":"Oil!C68","v":"00:00:00"},{"$f":"Oil!D68","v":0},{"$f":"Oil!E68","v":0},{"$f":"Oil!G68","v":0}]
[null,{"$f":"Oil!B25","v":"1900-01-01"},{"$f":"Oil!C25","v":"00:00:00"},{"$f":"Oil!D25","v":0},{"$f":"Oil!E25","v":0},{"$f":"Oil!G25","v":0},null,null,{"$f":"Oil!B69","v":"1900-01-01"},{"$f":"Oil!C69","v":"00:00:00"},{"$f":"Oil!D69","v":0},{"$f":"Oil!E69","v":0},{"$f":"Oil!G69","v":0}]
[null,{"$f":"Oil!B26","v":"1900-01-01"},{"$f":"Oil!C26","v":"00:00:00"},{"$f":"Oil!D26","v":0},{"$f":"Oil!E26","v":0},{"$f":"Oil!G26","v":0},null,null,{"$f":"Oil!B70","v":"1900-01-01"},{"$f":"Oil!C70","v":"00:00:00"},{"$f":"Oil!D70","v":0},{"$f":"Oil!E70","v":0},{"$f":"Oil!G70","v":0}]
[null,{"$f":"Oil!B27","v":"1900-01-01"},{"$f":"Oil!C27","v":"00:00:00"},{"$f":"Oil!D27","v":0},{"$f":"Oil!E27","v":0},{"$f":"Oil!G27","v":0},null,null,{"$f":"Oil!B71","v":"1900-01-01"},{"$f":"Oil!C71","v":"00:00:00"},{"$f":"Oil!D71","v":0},{"$f":"Oil!E71","v":0},{"$f":"Oil!G71","v":0}]
[null,{"$f":"Oil!B28","v":"1900-01-01"},{"$f":"Oil!C28","v":"00:00:00"},{"$f":"Oil!D28","v":0},{"$f":"Oil!E28","v":0},{"$f":"Oil!G28","v":0},null,null,{"$f":"Oil!B72","v":"1900-01-01"},{"$f":"Oil!C72","v":"00:00:00"},{"$f":"Oil!D72","v":0},{"$f":"Oil!E72","v":0},{"$f":"Oil!G72","v":0}]
[null,{"$f":"Oil!B29","v":"1900-01-01"},{"$f":"Oil!C29","v":"00:00:00"},{"$f":"Oil!D29","v":0},{"$f":"Oil!E29","v":0},{"$f":"Oil!G29","v":0},null,null,{"$f":"Oil!B73","v":"1900-01-01"},{"$f":"Oil!C73","v":"00:00:00"},{"$f":"Oil!D73","v":0},{"$f":"Oil!E73","v":0},{"$f":"Oil!G73","v":0}]
[null,{"$f":"Oil!B30","v":"1900-01-01"},{"$f":"Oil!C30","v":"00:00:00"},{"$f":"Oil!D30","v":0},{"$f":"Oil!E30","v":0},{"$f":"Oil!G30","v":0},null,null,{"$f":"Oil!B74","v":"1900-01-01"},{"$f":"Oil!C74","v":"00:00:00"},{"$f":"Oil!D74","v":0},{"$f":"Oil!E74","v":0},{"$f":"Oil!G74","v":0}]
[null,{"$f":"Oil!B31","v":"1900-01-01"},{"$f":"Oil!C31","v":"00:00:00"},{"$f":"Oil!D31","v":0},{"$f":"Oil!E31","v":0},{"$f":"Oil!G31","v":0},null,null,{"$f":"Oil!B75","v":"1900-01-01"},{"$f":"Oil!C75","v":"00:00:00"},{"$f":"Oil!D75","v":0},{"$f":"Oil!E75","v":0},{"$f":"Oil!G75","v":0}]
[null,{"$f":"Oil!B32","v":"1900-01-01"},{"$f":"Oil!C32","v":"00:00:00"},{"$f":"Oil!D32","v":0},{"$f":"Oil!E32","v":0},{"$f":"Oil!G32","v":0},null,null,{"$f":"Oil!B76","v":"1900-01-01"},{"$f":"Oil!C76","v":"00:00:00"},{"$f":"Oil!D76","v":0},{"$f":"Oil!E76","v":0},{"$f":"Oil!G76","v":0}]
[null,{"$f":"Oil!B33","v":"1900-01-01"},{"$f":"Oil!C33","v":"00:00:00"},{"$f":"Oil!D33","v":0},{"$f":"Oil!E33","v":0},{"$f":"Oil!G33","v":0},null,null,{"$f":"Oil!B77","v":"1900-01-01"},{"$f":"Oil!C77","v":"00:00:00"},{"$f":"Oil!D77","v":0},{"$f":"Oil!E77","v":0},{"$f":"Oil!G77","v":0}]
[null,{"$f":"Oil!B34","v":"1900-01-01"},{"$f":"Oil!C34","v":"00:00:00"},{"$f":"Oil!D34","v":0},{"$f":"Oil!E34","v":0},{"$f":"Oil!G34","v":0},null,null,{"$f":"Oil!B78","v":"1900-01-01"},{"$f":"Oil!C78","v":"00:00:00"},{"$f":"Oil!D78","v":0},{"$f":"Oil!E78","v":0},{"$f":"Oil!G78","v":0}]
[null,{"$f":"Oil!B35","v":"1900-01-01"},{"$f":"Oil!C35","v":"00:00:00"},{"$f":"Oil!D35","v":0},{"$f":"Oil!E35","v":0},{"$f":"Oil!G35","v":0},null,null,{"$f":"Oil!B79","v":"1900-01-01"},{"$f":"Oil!C79","v":"00:00:00"},{"$f":"Oil!D79","v":0},{"$f":"Oil!E79","v":0},{"$f":"Oil!G79","v":0}]
[null,{"$f":"Oil!B36","v":"1900-01-01"},{"$f":"Oil!C36","v":"00:00:00"},{"$f":"Oil!D36","v":0},{"$f":"Oil!E36","v":0},{"$f":"Oil!G36","v":0},null,null,{"$f":"Oil!B80","v":"1900-01-01"},{"$f":"Oil!C80","v":"00:00:00"},{"$f":"Oil!D80","v":0},{"$f":"Oil!E80","v":0},{"$f":"Oil!G80","v":0}]
[null,{"$f":"Oil!B37","v":"1900-01-01"},{"$f":"Oil!C37","v":"00:00:00"},{"$f":"Oil!D37","v":0},{"$f":"Oil!E37","v":0},{"$f":"Oil!G37","v":0},null,null,{"$f":"Oil!B81","v":"1900-01-01"},{"$f":"Oil!C81","v":"00:00:00"},{"$f":"Oil!D81","v":0},{"$f":"Oil!E81","v":0},{"$f":"Oil!G81","v":0}]
[null,{"$f":"Oil!B38","v":"1900-01-01"},{"$f":"Oil!C38","v":"00:00:00"},{"$f":"Oil!D38","v":0},{"$f":"Oil!E38","v":0},{"$f":"Oil!G38","v":0},null,null,{"$f":"Oil!B82","v":"1900-01-01"},{"$f":"Oil!C82","v":"00:00:00"},{"$f":"Oil!D82","v":0},{"$f":"Oil!E82","v":0},{"$f":"Oil!G82","v":0}]
[null,{"$f":"Oil!B39","v":"1900-01-01"},{"$f":"Oil!C39","v":"00:00:00"},{"$f":"Oil!D39","v":0},{"$f":"Oil!E39","v":0},{"$f":"Oil!G39","v":0},null,null,{"$f":"Oil!B83","v":"1900-01-01"},{"$f":"Oil!C83","v":"00:00:00"},{"$f":"Oil!D83","v":0},{"$f":"Oil!E83","v":0},{"$f":"Oil!G83","v":0}]
[null,{"$f":"Oil!B40","v":"1900-01-01"},{"$f":"Oil!C40","v":"00:00:00"},{"$f":"Oil!D40","v":0},{"$f":"Oil!E40","v":0},{"$f":"Oil!G40","v":0},null,null,{"$f":"Oil!B84","v":"1900-01-01"},{"$f":"Oil!C84","v":"00:00:00"},{"$f":"Oil!D84","v":0},{"$f":"Oil!E84","v":0},{"$f":"Oil!G84","v":0}]
[null,{"$f":"Oil!B41","v":"1900-01-01"},{"$f":"Oil!C41","v":"00:00:00"},{"$f":"Oil!D41","v":0},{"$f":"Oil!E41","v":0},{"$f":"Oil!G41","v":0},null,null,{"$f":"Oil!B85","v":"1900-01-01"},{"$f":"Oil!C85","v":"00:00:00"},{"$f":"Oil!D85","v":0},{"$f":"Oil!E85","v":0},{"$f":"Oil!G85","v":0}]
[null,{"$f":"Oil!B42","v":"1900-01-01"},{"$f":"Oil!C42","v":"00:00:00"},{"$f":"Oil!D42","v":0},{"$f":"Oil!E42","v":0},{"$f":"Oil!G42","v":0},null,null,{"$f":"Oil!B86","v":"1900-01-01"},{"$f":"Oil!C86","v":"00:00:00"},{"$f":"Oil!D86","v":0},{"$f":"Oil!E86","v":0},{"$f":"Oil!G86","v":0}]
[null,null,null,{"$f":"SUM(D67:D100)","v":0},{"$f":"SUM(E67:E100)","v":0},{"$f":"SUM(F67:F100)","v":0},null,null,null,null,{"$f":"SUM(K67:K100)","v":0},{"$f":"SUM(L67:L100)","v":0},{"$f":"SUM(M67:M100)","v":0}]
[]
[null,"PRE-CONSTRUCTION PROPANE",null,null,null,null,null,null,"POST-CONSTRUCTION PROPANE"]
[null,"Billing Period Start Date","Read Date","Days in Billing Period",{"$f":"\"Total  Consumption\n\" &'Utility Info'!F7","v":"Total  Consumption\n<Not Used>"},"Total Consumption\nMMBtu",null,null,"Billing Period Start Date","Read Date","Days in Billing Period",{"$f":"\"Total  Consumption\n\" &'Utility Info'!F16","v":"Total  Consumption\n<Not Used>"},"Total Consumption\nMMBtu"]
[null,{"$f":"Propane!B9","v":"1900-01-01"},{"$f":"Propane!C9","v":"00:00:00"},{"$f":"Propane!D9","v":0},{"$f":"Propane!E9","v":0},{"$f":"Propane!G9","v":0},null,null,{"$f":"Propane!B53","v":"1900-01-01"},{"$f":"Propane!C53","v":"00:00:00"},{"$f":"Propane!D53","v":0},{"$f":"Propane!E53","v":0},{"$f":"Propane!G53","v":0}]
[null,{"$f":"Propane!B10","v":"1900-01-01"},{"$f":"Propane!C10","v":"00:00:00"},{"$f":"Propane!D10","v":0},{"$f":"Propane!E10","v":0},{"$f":"Propane!G10","v":0},null,null,{"$f":"Propane!B54","v":"1900-01-01"},{"$f":"Propane!C54","v":"00:00:00"},{"$f":"Propane!D54","v":0},{"$f":"Propane!E54","v":0},{"$f":"Propane!G54","v":0}]
[null,{"$f":"Propane!B11","v":"1900-01-01"},{"$f":"Propane!C11","v":"00:00:00"},{"$f":"Propane!D11","v":0},{"$f":"Propane!E11","v":0},{"$f":"Propane!G11","v":0},null,null,{"$f":"Propane!B55","v":"1900-01-01"},{"$f":"Propane!C55","v":"00:00:00"},{"$f":"Propane!D55","v":0},{"$f":"Propane!E55","v":0},{"$f":"Propane!G55","v":0}]
[null,{"$f":"Propane!B12","v":"1900-01-01"},{"$f":"Propane!C12","v":"00:00:00"},{"$f":"Propane!D12","v":0},{"$f":"Propane!E12","v":0},{"$f":"Propane!G12","v":0},null,null,{"$f":"Propane!B56","v":"1900-01-01"},{"$f":"Propane!C56","v":"00:00:00"},{"$f":"Propane!D56","v":0},{"$f":"Propane!E56","v":0},{"$f":"Propane!G56","v":0}]
[null,{"$f":"Propane!B13","v":"1900-01-01"},{"$f":"Propane!C13","v":"00:00:00"},{"$f":"Propane!D13","v":0},{"$f":"Propane!E13","v":0},{"$f":"Propane!G13","v":0},null,null,{"$f":"Propane!B57","v":"1900-01-01"},{"$f":"Propane!C57","v":"00:00:00"},{"$f":"Propane!D57","v":0},{"$f":"Propane!E57","v":0},{"$f":"Propane!G57","v":0}]
[null,{"$f":"Propane!B14","v":"1900-01-01"},{"$f":"Propane!C14","v":"00:00:00"},{"$f":"Propane!D14","v":0},{"$f":"Propane!E14","v":0},{"$f":"Propane!G14","v":0},null,null,{"$f":"Propane!B58","v":"1900-01-01"},{"$f":"Propane!C58","v":"00:00:00"},{"$f":"Propane!D58","v":0},{"$f":"Propane!E58","v":0},{"$f":"Propane!G58","v":0}]
[null,{"$f":"Propane!B15","v":"1900-01-01"},{"$f":"Propane!C15","v":"00:00:00"},{"$f":"Propane!D15","v":0},{"$f":"Propane!E15","v":0},{"$f":"Propane!G15","v":0},null,null,{"$f":"Propane!B59","v":"1900-01-01"},{"$f":"Propane!C59","v":"00:00:00"},{"$f":"Propane!D59","v":0},{"$f":"Propane!E59","v":0},{"$f":"Propane!G59","v":0}]
[null,{"$f":"Propane!B16","v":"1900-01-01"},{"$f":"Propane!C16","v":"00:00:00"},{"$f":"Propane!D16","v":0},{"$f":"Propane!E16","v":0},{"$f":"Propane!G16","v":0},null,null,{"$f":"Propane!B60","v":"1900-01-01"},{"$f":"Propane!C60","v":"00:00:00"},{"$f":"Propane!D60","v":0},{"$f":"Propane!E60","v":0},{"$f":"Propane!G60","v":0}]
[null,{"$f":"Propane!B17","v":"1900-01-01"},{"$f":"Propane!C17","v":"00:00:00"},{"$f":"Propane!D17","v":0},{"$f":"Propane!E17","v":0},{"$f":"Propane!G17","v":0},null,null,{"$f":"Propane!B61","v":"1900-01-01"},{"$f":"Propane!C61","v":"00:00:00"},{"$f":"Propane!D61","v":0},{"$f":"Propane!E61","v":0},{"$f":"Propane!G61","v":0}]
[null,{"$f":"Propane!B18","v":"1900-01-01"},{"$f":"Propane!C18","v":"00:00:00"},{"$f":"Propane!D18","v":0},{"$f":"Propane!E18","v":0},{"$f":"Propane!G18","v":0},null,null,{"$f":"Propane!B62","v":"1900-01-01"},{"$f":"Propane!C62","v":"00:00:00"},{"$f":"Propane!D62","v":0},{"$f":"Propane!E62","v":0},{"$f":"Propane!G62","v":0}]
[null,{"$f":"Propane!B19","v":"1900-01-01"},{"$f":"Propane!C19","v":"00:00:00"},{"$f":"Propane!D19","v":0},{"$f":"Propane!E19","v":0},{"$f":"Propane!G19","v":0},null,null,{"$f":"Propane!B63","v":"1900-01-01"},{"$f":"Propane!C63","v":"00:00:00"},{"$f":"Propane!D63","v":0},{"$f":"Propane!E63","v":0},{"$f":"Propane!G63","v":0}]
[null,{"$f":"Propane!B20","v":"1900-01-01"},{"$f":"Propane!C20","v":"00:00:00"},{"$f":"Propane!D20","v":0},{"$f":"Propane!E20","v":0},{"$f":"Propane!G20","v":0},null,null,{"$f":"Propane!B64","v":"1900-01-01"},{"$f":"Propane!C64","v":"00:00:00"},{"$f":"Propane!D64","v":0},{"$f":"Propane!E64","v":0},{"$f":"Propane!G64","v":0}]
[null,{"$f":"Propane!B21","v":"1900-01-01"},{"$f":"Propane!C21","v":"00:00:00"},{"$f":"Propane!D21","v":0},{"$f":"Propane!E21","v":0},{"$f":"Propane!G21","v":0},null,null,{"$f":"Propane!B65","v":"1900-01-01"},{"$f":"Propane!C65","v":"00:00:00"},{"$f":"Propane!D65","v":0},{"$f":"Propane!E65","v":0},{"$f":"Propane!G65","v":0}]
[null,{"$f":"Propane!B22","v":"1900-01-01"},{"$f":"Propane!C22","v":"00:00:00"},{"$f":"Propane!D22","v":0},{"$f":"Propane!E22","v":0},{"$f":"Propane!G22","v":0},null,null,{"$f":"Propane!B66","v":"1900-01-01"},{"$f":"Propane!C66","v":"00:00:00"},{"$f":"Propane!D66","v":0},{"$f":"Propane!E66","v":0},{"$f":"Propane!G66","v":0}]
[null,{"$f":"Propane!B23","v":"1900-01-01"},{"$f":"Propane!C23","v":"00:00:00"},{"$f":"Propane!D23","v":0},{"$f":"Propane!E23","v":0},{"$f":"Propane!G23","v":0},null,null,{"$f":"Propane!B67","v":"1900-01-01"},{"$f":"Propane!C67","v":"00:00:00"},{"$f":"Propane!D67","v":0},{"$f":"Propane!E67","v":0},{"$f":"Propane!G67","v":0}]
[null,{"$f":"Propane!B24","v":"1900-01-01"},{"$f":"Propane!C24","v":"00:00:00"},{"$f":"Propane!D24","v":0},{"$f":"Propane!E24","v":0},{"$f":"Propane!G24","v":0},null,null,{"$f":"Propane!B68","v":"1900-01-01"},{"$f":"Propane!C68","v":"00:00:00"},{"$f":"Propane!D68","v":0},{"$f":"Propane!E68","v":0},{"$f":"Propane!G68","v":0}]
[null,{"$f":"Propane!B25","v":"1900-01-01"},{"$f":"Propane!C25","v":"00:00:00"},{"$f":"Propane!D25","v":0},{"$f":"Propane!E25","v":0},{"$f":"Propane!G25","v":0},null,null,{"$f":"Propane!B69","v":"1900-01-01"},{"$f":"Propane!C69","v":"00:00:00"},{"$f":"Propane!D69","v":0},{"$f":"Propane!E69","v":0},{"$f":"Propane!G69","v":0}]
[null,{"$f":"Propane!B26","v":"1900-01-01"},{"$f":"Propane!C26","v":"00:00:00"},{"$f":"Propane!D26","v":0},{"$f":"Propane!E26","v":0},{"$f":"Propane!G26","v":0},null,null,{"$f":"Propane!B70","v":"1900-01-01"},{"$f":"Propane!C70","v":"00:00:00"},{"$f":"Propane!D70","v":0},{"$f":"Propane!E70","v":0},{"$f":"Propane!G70","v":0}]
[null,{"$f":"Propane!B27","v":"1900-01-01"},{"$f":"Propane!C27","v":"00:00:00"},{"$f":"Propane!D27","v":0},{"$f":"Propane!E27","v":0},{"$f":"Propane!G27","v":0},null,null,{"$f":"Propane!B71","v":"1900-01-01"},{"$f":"Propane!C71","v":"00:00:00"},{"$f":"Propane!D71","v":0},{"$f":"Propane!E71","v":0},{"$f":"Propane!G71","v":0}]
[null,{"$f":"Propane!B28","v":"1900-01-01"},{"$f":"Propane!C28","v":"00:00:00"},{"$f":"Propane!D28","v":0},{"$f":"Propane!E28","v":0},{"$f":"Propane!G28","v":0},null,null,{"$f":"Propane!B72","v":"1900-01-01"},{"$f":"Propane!C72","v":"00:00:00"},{"$f":"Propane!D72","v":0},{"$f":"Propane!E72","v":0},{"$f":"Propane!G72","v":0}]
[null,{"$f":"Propane!B29","v":"1900-01-01"},{"$f":"Propane!C29","v":"00:00:00"},{"$f":"Propane!D29","v":0},{"$f":"Propane!E29","v":0},{"$f":"Propane!G29","v":0},null,null,{"$f":"Propane!B73","v":"1900-01-01"},{"$f":"Propane!C73","v":"00:00:00"},{"$f":"Propane!D73","v":0},{"$f":"Propane!E73","v":0},{"$f":"Propane!G73","v":0}]
[null,{"$f":"Propane!B30","v":"1900-01-01"},{"$f":"Propane!C30","v":"00:00:00"},{"$f":"Propane!D30","v":0},{"$f":"Propane!E30","v":0},{"$f":"Propane!G30","v":0},null,null,{"$f":"Propane!B74","v":"1900-01-01"},{"$f":"Propane!C74","v":"00:00:00"},{"$f":"Propane!D74","v":0},{"$f":"Propane!E74","v":0},{"$f":"Propane!G74","v":0}]
[null,{"$f":"Propane!B31","v":"1900-01-01"},{"$f":"Propane!C31","v":"00:00:00"},{"$f":"Propane!D31","v":0},{"$f":"Propane!E31","v":0},{"$f":"Propane!G31","v":0},null,null,{"$f":"Propane!B75","v":"1900-01-01"},{"$f":"Propane!C75","v":"00:00:00"},{"$f":"Propane!D75","v":0},{"$f":"Propane!E75","v":0},{"$f":"Propane!G75","v":0}]
[null,{"$f":"Propane!B32","v":"1900-01-01"},{"$f":"Propane!C32","v":"00:00:00"},{"$f":"Propane!D32","v":0},{"$f":"Propane!E32","v":0},{"$f":"Propane!G32","v":0},null,null,{"$f":"Propane!B76","v":"1900-01-01"},{"$f":"Propane!C76","v":"00:00:00"},{"$f":"Propane!D76","v":0},{"$f":"Propane!E76","v":0},{"$f":"Propane!G76","v":0}]
[null,{"$f":"Propane!B33","v":"1900-01-01"},{"$f":"Propane!C33","v":"00:00:00"},{"$f":"Propane!D33","v":0},{"$f":"Propane!E33","v":0},{"$f":"Propane!G33","v":0},null,null,{"$f":"Propane!B77","v":"1900-01-01"},{"$f":"Propane!C77","v":"00:00:00"},{"$f":"Propane!D77","v":0},{"$f":"Propane!E77","v":0},{"$f":"Propane!G77","v":0}]
[null,{"$f":"Propane!B34","v":"1900-01-01"},{"$f":"Propane!C34","v":"00:00:00"},{"$f":"Propane!D34","v":0},{"$f":"Propane!E34","v":0},{"$f":"Propane!G34","v":0},null,null,{"$f":"Propane!B78","v":"1900-01-01"},{"$f":"Propane!C78","v":"00:00:00"},{"$f":"Propane!D78","v":0},{"$f":"Propane!E78","v":0},{"$f":"Propane!G78","v":0}]
[null,{"$f":"Propane!B35","v":"1900-01-01"},{"$f":"Propane!C35","v":"00:00:00"},{"$f":"Propane!D35","v":0},{"$f":"Propane!E35","v":0},{"$f":"Propane!G35","v":0},null,null,{"$f":"Propane!B79","v":"1900-01-01"},{"$f":"Propane!C79","v":"00:00:00"},{"$f":"Propane!D79","v":0},{"$f":"Propane!E79","v":0},{"$f":"Propane!G79","v":0}]
[null,{"$f":"Propane!B36","v":"1900-01-01"},{"$f":"Propane!C36","v":"00:00:00"},{"$f":"Propane!D36","v":0},{"$f":"Propane!E36","v":0},{"$f":"Propane!G36","v":0},null,null,{"$f":"Propane!B80","v":"1900-01-01"},{"$f":"Propane!C80","v":"00:00:00"},{"$f":"Propane!D80","v":0},{"$f":"Propane!E80","v":0},{"$f":"Propane!G80","v":0}]
[null,{"$f":"Propane!B37","v":"1900-01-01"},{"$f":"Propane!C37","v":"00:00:00"},{"$f":"Propane!D37","v":0},{"$f":"Propane!E37","v":0},{"$f":"Propane!G37","v":0},null,null,{"$f":"Propane!B81","v":"1900-01-01"},{"$f":"Propane!C81","v":"00:00:00"},{"$f":"Propane!D81","v":0},{"$f":"Propane!E81","v":0},{"$f":"Propane!G81","v":0}]
[null,{"$f":"Propane!B38","v":"1900-01-01"},{"$f":"Propane!C38","v":"00:00:00"},{"$f":"Propane!D38","v":0},{"$f":"Propane!E38","v":0},{"$f":"Propane!G38","v":0},null,null,{"$f":"Propane!B82","v":"1900-01-01"},{"$f":"Propane!C82","v":"00:00:00"},{"$f":"Propane!D82","v":0},{"$f":"Propane!E82","v":0},{"$f":"Propane!G82","v":0}]
[null,{"$f":"Propane!B39","v":"1900-01-01"},{"$f":"Propane!C39","v":"00:00:00"},{"$f":"Propane!D39","v":0},{"$f":"Propane!E39","v":0},{"$f":"Propane!G39","v":0},null,null,{"$f":"Propane!B83","v":"1900-01-01"},{"$f":"Propane!C83","v":"00:00:00"},{"$f":"Propane!D83","v":0},{"$f":"Propane!E83","v":0},{"$f":"Propane!G83","v":0}]
[null,{"$f":"Propane!B40","v":"1900-01-01"},{"$f":"Propane!C40","v":"00:00:00"},{"$f":"Propane!D40","v":0},{"$f":"Propane!E40","v":0},{"$f":"Propane!G40","v":0},null,null,{"$f":"Propane!B84","v":"1900-01-01"},{"$f":"Propane!C84","v":"00:00:00"},{"$f":"Propane!D84","v":0},{"$f":"Propane!E84","v":0},{"$f":"Propane!G84","v":0}]
[null,{"$f":"Propane!B41","v":"1900-01-01"},{"$f":"Propane!C41","v":"00:00:00"},{"$f":"Propane!D41","v":0},{"$f":"Propane!E41","v":0},{"$f":"Propane!G41","v":0},null,null,{"$f":"Propane!B85","v":"1900-01-01"},{"$f":"Propane!C85","v":"00:00:00"},{"$f":"Propane!D85","v":0},{"$f":"Propane!E85","v":0},{"$f":"Propane!G85","v":0}]
[null,{"$f":"Propane!B42","v":"1900-01-01"},{"$f":"Propane!C42","v":"00:00:00"},{"$f":"Propane!D42","v":0},{"$f":"Propane!E42","v":0},{"$f":"Propane!G42","v":0},null,null,{"$f":"Propane!B86","v":"1900-01-01"},{"$f":"Propane!C86","v":"00:00:00"},{"$f":"Propane!D86","v":0},{"$f":"Propane!E86","v":0},{"$f":"Propane!G86","v":0}]
[null,null,null,{"$f":"SUM(D105:D138)","v":0},{"$f":"SUM(E105:E138)","v":0},{"$f":"SUM(F105:F138)","v":0},null,null,null,null,{"$f":"SUM(K105:K138)","v":0},{"$f":"SUM(L105:L138)","v":0},{"$f":"SUM(M105:M138)","v":0}]
[]
[null,"PRE-CONSTRUCTION STEAM",null,null,null,null,null,null,"POST-CONSTRUCTION STEAM"]
[null,"Billing Period Start Date","Meter Read Date","Days in Billing Period",{"$f":"Steam!E7","v":"Steam Consumption\n(<Not Used>)"},"Steam Consumption\nMMBtu",null,null,"Billing Period Start Date","Meter Read Date","Days in Billing Period",{"$f":"Steam!E31","v":"Steam Consumption\n(<Not Used>)"},"Steam Consumption\nMMBtu"]
[null,{"$f":"Steam!B9","v":"1900-01-01"},{"$f":"Steam!C9","v":"00:00:00"},{"$f":"Steam!D9","v":0},{"$f":"Steam!E9","v":0},{"$f":"Steam!H9","v":0},null,null,{"$f":"Steam!B33","v":"1900-01-01"},{"$f":"Steam!C33","v":"00:00:00"},{"$f":"Steam!D33","v":0},{"$f":"Steam!E33","v":0},{"$f":"Steam!H33","v":0}]
[null,{"$f":"Steam!B10","v":"1900-01-01"},{"$f":"Steam!C10","v":"00:00:00"},{"$f":"Steam!D10","v":0},{"$f":"Steam!E10","v":0},{"$f":"Steam!H10","v":0},null,null,{"$f":"Steam!B34","v":"1900-01-01"},{"$f":"Steam!C34","v":"00:00:00"},{"$f":"Steam!D34","v":0},{"$f":"Steam!E34","v":0},{"$f":"Steam!H34","v":0}]
[null,{"$f":"Steam!B11","v":"1900-01-01"},{"$f":"Steam!C11","v":"00:00:00"},{"$f":"Steam!D11","v":0},{"$f":"Steam!E11","v":0},{"$f":"Steam!H11","v":0},null,null,{"$f":"Steam!B35","v":"1900-01-01"},{"$f":"Steam!C35","v":"00:00:00"},{"$f":"Steam!D35","v":0},{"$f":"Steam!E35","v":0},{"$f":"Steam!H35","v":0}]
[null,{"$f":"Steam!B12","v":"1900-01-01"},{"$f":"Steam!C12","v":"00:00:00"},{"$f":"Steam!D12","v":0},{"$f":"Steam!E12","v":0},{"$f":"Steam!H12","v":0},null,null,{"$f":"Steam!B36","v":"1900-01-01"},{"$f":"Steam!C36","v":"00:00:00"},{"$f":"Steam!D36","v":0},{"$f":"Steam!E36","v":0},{"$f":"Steam!H36","v":0}]
[null,{"$f":"Steam!B13","v":"1900-01-01"},{"$f":"Steam!C13","v":"00:00:00"},{"$f":"Steam!D13","v":0},{"$f":"Steam!E13","v":0},{"$f":"Steam!H13","v":0},null,null,{"$f":"Steam!B37","v":"1900-01-01"},{"$f":"Steam!C37","v":"00:00:00"},{"$f":"Steam!D37","v":0},{"$f":"Steam!E37","v":0},{"$f":"Steam!H37","v":0}]
[null,{"$f":"Steam!B14","v":"1900-01-01"},{"$f":"Steam!C14","v":"00:00:00"},{"$f":"Steam!D14","v":0},{"$f":"Steam!E14","v":0},{"$f":"Steam!H14","v":0},null,null,{"$f":"Steam!B38","v":"1900-01-01"},{"$f":"Steam!C38","v":"00:00:00"},{"$f":"Steam!D38","v":0},{"$f":"Steam!E38","v":0},{"$f":"Steam!H38","v":0}]
[null,{"$f":"Steam!B15","v":"1900-01-01"},{"$f":"Steam!C15","v":"00:00:00"},{"$f":"Steam!D15","v":0},{"$f":"Steam!E15","v":0},{"$f":"Steam!H15","v":0},null,null,{"$f":"Steam!B39","v":"1900-01-01"},{"$f":"Steam!C39","v":"00:00:00"},{"$f":"Steam!D39","v":0},{"$f":"Steam!E39","v":0},{"$f":"Steam!H39","v":0}]
[null,{"$f":"Steam!B16","v":"1900-01-01"},{"$f":"Steam!C16","v":"00:00:00"},{"$f":"Steam!D16","v":0},{"$f":"Steam!E16","v":0},{"$f":"Steam!H16","v":0},null,null,{"$f":"Steam!B40","v":"1900-01-01"},{"$f":"Steam!C40","v":"00:00:00"},{"$f":"Steam!D40","v":0},{"$f":"Steam!E40","v":0},{"$f":"Steam!H40","v":0}]
[null,{"$f":"Steam!B17","v":"1900-01-01"},{"$f":"Steam!C17","v":"00:00:00"},{"$f":"Steam!D17","v":0},{"$f":"Steam!E17","v":0},{"$f":"Steam!H17","v":0},null,null,{"$f":"Steam!B41","v":"1900-01-01"},{"$f":"Steam!C41","v":"00:00:00"},{"$f":"Steam!D41","v":0},{"$f":"Steam!E41","v":0},{"$f":"Steam!H41","v":0}]
[null,{"$f":"Steam!B18","v":"1900-01-01"},{"$f":"Steam!C18","v":"00:00:00"},{"$f":"Steam!D18","v":0},{"$f":"Steam!E18","v":0},{"$f":"Steam!H18","v":0},null,null,{"$f":"Steam!B42","v":"1900-01-01"},{"$f":"Steam!C42","v":"00:00:00"},{"$f":"Steam!D42","v":0},{"$f":"Steam!E42","v":0},{"$f":"Steam!H42","v":0}]
[null,{"$f":"Steam!B19","v":"1900-01-01"},{"$f":"Steam!C19","v":"00:00:00"},{"$f":"Steam!D19","v":0},{"$f":"Steam!E19","v":0},{"$f":"Steam!H19","v":0},null,null,{"$f":"Steam!B43","v":"1900-01-01"},{"$f":"Steam!C43","v":"00:00:00"},{"$f":"Steam!D43","v":0},{"$f":"Steam!E43","v":0},{"$f":"Steam!H43","v":0}]
[null,{"$f":"Steam!B20","v":"1900-01-01"},{"$f":"Steam!C20","v":"00:00:00"},{"$f":"Steam!D20","v":0},{"$f":"Steam!E20","v":0},{"$f":"Steam!H20","v":0},null,null,{"$f":"Steam!B44","v":"1900-01-01"},{"$f":"Steam!C44","v":"00:00:00"},{"$f":"Steam!D44","v":0},{"$f":"Steam!E44","v":0},{"$f":"Steam!H44","v":0}]
[null,{"$f":"Steam!B21","v":"1900-01-01"},{"$f":"Steam!C21","v":"00:00:00"},{"$f":"Steam!D21","v":0},{"$f":"Steam!E21","v":0},{"$f":"Steam!H21","v":0},null,null,{"$f":"Steam!B45","v":"1900-01-01"},{"$f":"Steam!C45","v":"00:00:00"},{"$f":"Steam!D45","v":0},{"$f":"Steam!E45","v":0},{"$f":"Steam!H45","v":0}]
[null,{"$f":"Steam!B22","v":"1900-01-01"},{"$f":"Steam!C22","v":"00:00:00"},{"$f":"Steam!D22","v":0},{"$f":"Steam!E22","v":0},{"$f":"Steam!H22","v":0},null,null,{"$f":"Steam!B46","v":"1900-01-01"},{"$f":"Steam!C46","v":"00:00:00"},{"$f":"Steam!D46","v":0},{"$f":"Steam!E46","v":0},{"$f":"Steam!H46","v":0}]
[null,{"$f":"Steam!B23","v":"1900-01-01"},{"$f":"Steam!C23","v":"00:00:00"},{"$f":"Steam!D23","v":0},{"$f":"Steam!E23","v":0},{"$f":"Steam!H23","v":0},null,null,{"$f":"Steam!B47","v":"1900-01-01"},{"$f":"Steam!C47","v":"00:00:00"},{"$f":"Steam!D47","v":0},{"$f":"Steam!E47","v":0},{"$f":"Steam!H47","v":0}]
[null,null,null,{"$f":"SUM(D143:D157)","v":0},{"$f":"SUM(E143:E157)","v":0},{"$f":"SUM(F143:F157)","v":0},null,null,null,null,{"$f":"SUM(K143:K157)","v":0},{"$f":"SUM(L143:L157)","v":0},{"$f":"SUM(M143:M157)","v":0}]
[]
[null,"PRE-CONSTRUCTION CHILLED WATER",null,null,null,null,null,null,"POST-CONSTRUCTION CHILLED WATER"]
[null,"Billing Period Start Date","Meter Read Date","Days in Billing Period","Chilled Water Consumption MMBtu","Chilled Water Consumption\nMMBtu",null,null,"Billing Period Start Date","Meter Read Date","Days in Billing Period","Chilled Water Consumption MMBtu","Chilled Water Consumption\nMMBtu"]
[null,{"$f":"'Chilled Water'!B9","v":"1900-01-01"},{"$f":"'Chilled Water'!C9","v":"00:00:00"},{"$f":"'Chilled Water'!D9","v":0},{"$f":"'Chilled Water'!E9","v":0},{"$f":"'Chilled Water'!G9","v":0},null,null,{"$f":"'Chilled Water'!B33","v":"1900-01-01"},{"$f":"'Chilled Water'!C33","v":"00:00:00"},{"$f":"'Chilled Water'!D33","v":0},{"$f":"'Chilled Water'!E33","v":0},{"$f":"'Chilled Water'!G33","v":0}]
[null,{"$f":"'Chilled Water'!B10","v":"1900-01-01"},{"$f":"'Chilled Water'!C10","v":"00:00:00"},{"$f":"'Chilled Water'!D10","v":0},{"$f":"'Chilled Water'!E10","v":0},{"$f":"'Chilled Water'!G10","v":0},null,null,{"$f":"'Chilled Water'!B34","v":"1900-01-01"},{"$f":"'Chilled Water'!C34","v":"00:00:00"},{"$f":"'Chilled Water'!D34","v":0},{"$f":"'Chilled Water'!E34","v":0},{"$f":"'Chilled Water'!G34","v":0}]
[null,{"$f":"'Chilled Water'!B11","v":"1900-01-01"},{"$f":"'Chilled Water'!C11","v":"00:00:00"},{"$f":"'Chilled Water'!D11","v":0},{"$f":"'Chilled Water'!E11","v":0},{"$f":"'Chilled Water'!G11","v":0},null,null,{"$f":"'Chilled Water'!B35","v":"1900-01-01"},{"$f":"'Chilled Water'!C35","v":"00:00:00"},{"$f":"'Chilled Water'!D35","v":0},{"$f":"'Chilled Water'!E35","v":0},{"$f":"'Chilled Water'!G35","v":0}]
[null,{"$f":"'Chilled Water'!B12","v":"1900-01-01"},{"$f":"'Chilled Water'!C12","v":"00:00:00"},{"$f":"'Chilled Water'!D12","v":0},{"$f":"'Chilled Water'!E12","v":0},{"$f":"'Chilled Water'!G12","v":0},null,null,{"$f":"'Chilled Water'!B36","v":"1900-01-01"},{"$f":"'Chilled Water'!C36","v":"00:00:00"},{"$f":"'Chilled Water'!D36","v":0},{"$f":"'Chilled Water'!E36","v":0},{"$f":"'Chilled Water'!G36","v":0}]
[null,{"$f":"'Chilled Water'!B13","v":"1900-01-01"},{"$f":"'Chilled Water'!C13","v":"00:00:00"},{"$f":"'Chilled Water'!D13","v":0},{"$f":"'Chilled Water'!E13","v":0},{"$f":"'Chilled Water'!G13","v":0},null,null,{"$f":"'Chilled Water'!B37","v":"1900-01-01"},{"$f":"'Chilled Water'!C37","v":"00:00:00"},{"$f":"'Chilled Water'!D37","v":0},{"$f":"'Chilled Water'!E37","v":0},{"$f":"'Chilled Water'!G37","v":0}]
[null,{"$f":"'Chilled Water'!B14","v":"1900-01-01"},{"$f":"'Chilled Water'!C14","v":"00:00:00"},{"$f":"'Chilled Water'!D14","v":0},{"$f":"'Chilled Water'!E14","v":0},{"$f":"'Chilled Water'!G14","v":0},null,null,{"$f":"'Chilled Water'!B38","v":"1900-01-01"},{"$f":"'Chilled Water'!C38","v":"00:00:00"},{"$f":"'Chilled Water'!D38","v":0},{"$f":"'Chilled Water'!E38","v":0},{"$f":"'Chilled Water'!G38","v":0}]
[null,{"$f":"'Chilled Water'!B15","v":"1900-01-01"},{"$f":"'Chilled Water'!C15","v":"00:00:00"},{"$f":"'Chilled Water'!D15","v":0},{"$f":"'Chilled Water'!E15","v":0},{"$f":"'Chilled Water'!G15","v":0},null,null,{"$f":"'Chilled Water'!B39","v":"1900-01-01"},{"$f":"'Chilled Water'!C39","v":"00:00:00"},{"$f":"'Chilled Water'!D39","v":0},{"$f":"'Chilled Water'!E39","v":0},{"$f":"'Chilled Water'!G39","v":0}]
[null,{"$f":"'Chilled Water'!B16","v":"1900-01-01"},{"$f":"'Chilled Water'!C16","v":"00:00:00"},{"$f":"'Chilled Water'!D16","v":0},{"$f":"'Chilled Water'!E16","v":0},{"$f":"'Chilled Water'!G16","v":0},null,null,{"$f":"'Chilled Water'!B40","v":"1900-01-01"},{"$f":"'Chilled Water'!C40","v":"00:00:00"},{"$f":"'Chilled Water'!D40","v":0},{"$f":"'Chilled Water'!E40","v":0},{"$f":"'Chilled Water'!G40","v":0}]
[null,{"$f":"'Chilled Water'!B17","v":"1900-01-01"},{"$f":"'Chilled Water'!C17","v":"00:00:00"},{"$f":"'Chilled Water'!D17","v":0},{"$f":"'Chilled Water'!E17","v":0},{"$f":"'Chilled Water'!G17","v":0},null,null,{"$f":"'Chilled Water'!B41","v":"1900-01-01"},{"$f":"'Chilled Water'!C41","v":"00:00:00"},{"$f":"'Chilled Water'!D41","v":0},{"$f":"'Chilled Water'!E41","v":0},{"$f":"'Chilled Water'!G41","v":0}]
[null,{"$f":"'Chilled Water'!B18","v":"1900-01-01"},{"$f":"'Chilled Water'!C18","v":"00:00:00"},{"$f":"'Chilled Water'!D18","v":0},{"$f":"'Chilled Water'!E18","v":0},{"$f":"'Chilled Water'!G18","v":0},null,null,{"$f":"'Chilled Water'!B42","v":"1900-01-01"},{"$f":"'Chilled Water'!C42","v":"00:00:00"},{"$f":"'Chilled Water'!D42","v":0},{"$f":"'Chilled Water'!E42","v":0},{"$f":"'Chilled Water'!G42","v":0}]
[null,{"$f":"'Chilled Water'!B19","v":"1900-01-01"},{"$f":"'Chilled Water'!C19","v":"00:00:00"},{"$f":"'Chilled Water'!D19","v":0},{"$f":"'Chilled Water'!E19","v":0},{"$f":"'Chilled Water'!G19","v":0},null,null,{"$f":"'Chilled Water'!B43","v":"1900-01-01"},{"$f":"'Chilled Water'!C43","v":"00:00:00"},{"$f":"'Chilled Water'!D43","v":0},{"$f":"'Chilled Water'!E43","v":0},{"$f":"'Chilled Water'!G43","v":0}]
[null,{"$f":"'Chilled Water'!B20","v":"1900-01-01"},{"$f":"'Chilled Water'!C20","v":"00:00:00"},{"$f":"'Chilled Water'!D20","v":0},{"$f":"'Chilled Water'!E20","v":0},{"$f":"'Chilled Water'!G20","v":0},null,null,{"$f":"'Chilled Water'!B44","v":"1900-01-01"},{"$f":"'Chilled Water'!C44","v":"00:00:00"},{"$f":"'Chilled Water'!D44","v":0},{"$f":"'Chilled Water'!E44","v":0},{"$f":"'Chilled Water'!G44","v":0}]
[null,{"$f":"'Chilled Water'!B21","v":"1900-01-01"},{"$f":"'Chilled Water'!C21","v":"00:00:00"},{"$f":"'Chilled Water'!D21","v":0},{"$f":"'Chilled Water'!E21","v":0},{"$f":"'Chilled Water'!G21","v":0},null,null,{"$f":"'Chilled Water'!B45","v":"1900-01-01"},{"$f":"'Chilled Water'!C45","v":"00:00:00"},{"$f":"'Chilled Water'!D45","v":0},{"$f":"'Chilled Water'!E45","v":0},{"$f":"'Chilled Water'!G45","v":0}]
[null,{"$f":"'Chilled Water'!B22","v":"1900-01-01"},{"$f":"'Chilled Water'!C22","v":"00:00:00"},{"$f":"'Chilled Water'!D22","v":0},{"$f":"'Chilled Water'!E22","v":0},{"$f":"'Chilled Water'!G22","v":0},null,null,{"$f":"'Chilled Water'!B46","v":"1900-01-01"},{"$f":"'Chilled Water'!C46","v":"00:00:00"},{"$f":"'Chilled Water'!D46","v":0},{"$f":"'Chilled Water'!E46","v":0},{"$f":"'Chilled Water'!G46","v":0}]
[null,{"$f":"'Chilled Water'!B23","v":"1900-01-01"},{"$f":"'Chilled Water'!C23","v":"00:00:00"},{"$f":"'Chilled Water'!D23","v":0},{"$f":"'Chilled Water'!E23","v":0},{"$f":"'Chilled Water'!G23","v":0},null,null,{"$f":"'Chilled Water'!B47","v":"1900-01-01"},{"$f":"'Chilled Water'!C47","v":"00:00:00"},{"$f":"'Chilled Water'!D47","v":0},{"$f":"'Chilled Water'!E47","v":0},{"$f":"'Chilled Water'!G47","v":0}]
[null,null,null,{"$f":"SUM(D162:D176)","v":0},{"$f":"SUM(E162:E176)","v":0},{"$f":"SUM(F162:F176)","v":0},null,null,null,null,{"$f":"SUM(K162:K176)","v":0},{"$f":"SUM(L162:L176)","v":0},{"$f":"SUM(M162:M176)","v":0}]
[]
[null,"PRE-CONSTRUCTION HOT WATER",null,null,null,null,null,null,"POST-CONSTRUCTION HOT WATER"]
[null,"Billing Period Start Date","Meter Read Date","Days in Billing Period","Hot Water Consumption MMBtu","Hot Water Consumption\nMMBtu",null,null,"Billing Period Start Date","Meter Read Date","Days in Billing Period","Hot Water Consumption MMBtu","Hot Water Consumption\nMMBtu"]
[null,{"$f":"'Hot Water'!B9","v":"1900-01-01"},{"$f":"'Hot Water'!C9","v":"00:00:00"},{"$f":"'Hot Water'!D9","v":0},{"$f":"'Hot Water'!E9","v":0},{"$f":"'Hot Water'!G9","v":0},null,null,{"$f":"'Hot Water'!B33","v":"1900-01-01"},{"$f":"'Hot Water'!C33","v":"00:00:00"},{"$f":"'Hot Water'!D33","v":0},{"$f":"'Hot Water'!E33","v":0},{"$f":"'Hot Water'!G33","v":0}]
[null,{"$f":"'Hot Water'!B10","v":"1900-01-01"},{"$f":"'Hot Water'!C10","v":"00:00:00"},{"$f":"'Hot Water'!D10","v":0},{"$f":"'Hot Water'!E10","v":0},{"$f":"'Hot Water'!G10","v":0},null,null,{"$f":"'Hot Water'!B34","v":"1900-01-01"},{"$f":"'Hot Water'!C34","v":"00:00:00"},{"$f":"'Hot Water'!D34","v":0},{"$f":"'Hot Water'!E34","v":0},{"$f":"'Hot Water'!G34","v":0}]
[null,{"$f":"'Hot Water'!B11","v":"1900-01-01"},{"$f":"'Hot Water'!C11","v":"00:00:00"},{"$f":"'Hot Water'!D11","v":0},{"$f":"'Hot Water'!E11","v":0},{"$f":"'Hot Water'!G11","v":0},null,null,{"$f":"'Hot Water'!B35","v":"1900-01-01"},{"$f":"'Hot Water'!C35","v":"00:00:00"},{"$f":"'Hot Water'!D35","v":0},{"$f":"'Hot Water'!E35","v":0},{"$f":"'Hot Water'!G35","v":0}]
[null,{"$f":"'Hot Water'!B12","v":"1900-01-01"},{"$f":"'Hot Water'!C12","v":"00:00:00"},{"$f":"'Hot Water'!D12","v":0},{"$f":"'Hot Water'!E12","v":0},{"$f":"'Hot Water'!G12","v":0},null,null,{"$f":"'Hot Water'!B36","v":"1900-01-01"},{"$f":"'Hot Water'!C36","v":"00:00:00"},{"$f":"'Hot Water'!D36","v":0},{"$f":"'Hot Water'!E36","v":0},{"$f":"'Hot Water'!G36","v":0}]
[null,{"$f":"'Hot Water'!B13","v":"1900-01-01"},{"$f":"'Hot Water'!C13","v":"00:00:00"},{"$f":"'Hot Water'!D13","v":0},{"$f":"'Hot Water'!E13","v":0},{"$f":"'Hot Water'!G13","v":0},null,null,{"$f":"'Hot Water'!B37","v":"1900-01-01"},{"$f":"'Hot Water'!C37","v":"00:00:00"},{"$f":"'Hot Water'!D37","v":0},{"$f":"'Hot Water'!E37","v":0},{"$f":"'Hot Water'!G37","v":0}]
[null,{"$f":"'Hot Water'!B14","v":"1900-01-01"},{"$f":"'Hot Water'!C14","v":"00:00:00"},{"$f":"'Hot Water'!D14","v":0},{"$f":"'Hot Water'!E14","v":0},{"$f":"'Hot Water'!G14","v":0},null,null,{"$f":"'Hot Water'!B38","v":"1900-01-01"},{"$f":"'Hot Water'!C38","v":"00:00:00"},{"$f":"'Hot Water'!D38","v":0},{"$f":"'Hot Water'!E38","v":0},{"$f":"'Hot Water'!G38","v":0}]
[null,{"$f":"'Hot Water'!B15","v":"1900-01-01"},{"$f":"'Hot Water'!C15","v":"00:00:00"},{"$f":"'Hot Water'!D15","v":0},{"$f":"'Hot Water'!E15","v":0},{"$f":"'Hot Water'!G15","v":0},null,null,{"$f":"'Hot Water'!B39","v":"1900-01-01"},{"$f":"'Hot Water'!C39","v":"00:00:00"},{"$f":"'Hot Water'!D39","v":0},{"$f":"'Hot Water'!E39","v":0},{"$f":"'Hot Water'!G39","v":0}]
[null,{"$f":"'Hot Water'!B16","v":"1900-01-01"},{"$f":"'Hot Water'!C16","v":"00:00:00"},{"$f":"'Hot Water'!D16","v":0},{"$f":"'Hot Water'!E16","v":0},{"$f":"'Hot Water'!G16","v":0},null,null,{"$f":"'Hot Water'!B40","v":"1900-01-01"},{"$f":"'Hot Water'!C40","v":"00:00:00"},{"$f":"'Hot Water'!D40","v":0},{"$f":"'Hot Water'!E40","v":0},{"$f":"'Hot Water'!G40","v":0}]
[null,{"$f":"'Hot Water'!B17","v":"1900-01-01"},{"$f":"'Hot Water'!C17","v":"00:00:00"},{"$f":"'Hot Water'!D17","v":0},{"$f":"'Hot Water'!E17","v":0},{"$f":"'Hot Water'!G17","v":0},null,null,{"$f":"'Hot Water'!B41","v":"1900-01-01"},{"$f":"'Hot Water'!C41","v":"00:00:00"},{"$f":"'Hot Water'!D41","v":0},{"$f":"'Hot Water'!E41","v":0},{"$f":"'Hot Water'!G41","v":0}]
[null,{"$f":"'Hot Water'!B18","v":"1900-01-01"},{"$f":"'Hot Water'!C18","v":"00:00:00"},{"$f":"'Hot Water'!D18","v":0},{"$f":"'Hot Water'!E18","v":0},{"$f":"'Hot Water'!G18","v":0},null,null,{"$f":"'Hot Water'!B42","v":"1900-01-01"},{"$f":"'Hot Water'!C42","v":"00:00:00"},{"$f":"'Hot Water'!D42","v":0},{"$f":"'Hot Water'!E42","v":0},{"$f":"'Hot Water'!G42","v":0}]
[null,{"$f":"'Hot Water'!B19","v":"1900-01-01"},{"$f":"'Hot Water'!C19","v":"00:00:00"},{"$f":"'Hot Water'!D19","v":0},{"$f":"'Hot Water'!E19","v":0},{"$f":"'Hot Water'!G19","v":0},null,null,{"$f":"'Hot Water'!B43","v":"1900-01-01"},{"$f":"'Hot Water'!C43","v":"00:00:00"},{"$f":"'Hot Water'!D43","v":0},{"$f":"'Hot Water'!E43","v":0},{"$f":"'Hot Water'!G43","v":0}]
[null,{"$f":"'Hot Water'!B20","v":"1900-01-01"},{"$f":"'Hot Water'!C20","v":"00:00:00"},{"$f":"'Hot Water'!D20","v":0},{"$f":"'Hot Water'!E20","v":0},{"$f":"'Hot Water'!G20","v":0},null,null,{"$f":"'Hot Water'!B44","v":"1900-01-01"},{"$f":"'Hot Water'!C44","v":"00:00:00"},{"$f":"'Hot Water'!D44","v":0},{"$f":"'Hot Water'!E44","v":0},{"$f":"'Hot Water'!G44","v":0}]
[null,{"$f":"'Hot Water'!B21","v":"1900-01-01"},{"$f":"'Hot Water'!C21","v":"00:00:00"},{"$f":"'Hot Water'!D21","v":0},{"$f":"'Hot Water'!E21","v":0},{"$f":"'Hot Water'!G21","v":0},null,null,{"$f":"'Hot Water'!B45","v":"1900-01-01"},{"$f":"'Hot Water'!C45","v":"00:00:00"},{"$f":"'Hot Water'!D45","v":0},{"$f":"'Hot Water'!E45","v":0},{"$f":"'Hot Water'!G45","v":0}]
[null,{"$f":"'Hot Water'!B22","v":"1900-01-01"},{"$f":"'Hot Water'!C22","v":"00:00:00"},{"$f":"'Hot Water'!D22","v":0},{"$f":"'Hot Water'!E22","v":0},{"$f":"'Hot Water'!G22","v":0},null,null,{"$f":"'Hot Water'!B46","v":"1900-01-01"},{"$f":"'Hot Water'!C46","v":"00:00:00"},{"$f":"'Hot Water'!D46","v":0},{"$f":"'Hot Water'!E46","v":0},{"$f":"'Hot Water'!G46","v":0}]
[null,{"$f":"'Hot Water'!B23","v":"1900-01-01"},{"$f":"'Hot Water'!C23","v":"00:00:00"},{"$f":"'Hot Water'!D23","v":0},{"$f":"'Hot Water'!E23","v":0},{"$f":"'Hot Water'!G23","v":0},null,null,{"$f":"'Hot Water'!B47","v":"1900-01-01"},{"$f":"'Hot Water'!C47","v":"00:00:00"},{"$f":"'Hot Water'!D47","v":0},{"$f":"'Hot Water'!E47","v":0},{"$f":"'Hot Water'!G47","v":0}]
[null,null,null,{"$f":"SUM(D181:D195)","v":0},{"$f":"SUM(E181:E195)","v":0},{"$f":"SUM(F181:F195)","v":0},null,null,null,null,{"$f":"SUM(K181:K195)","v":0},{"$f":"SUM(L181:L195)","v":0},{"$f":"SUM(M181:M195)","v":0}]
[]
[null,"PRE-CONSTRUCTION OTHER",null,null,null,null,null,null,"POST-CONSTRUCTION OTHER"]
[null,"Billing Period Start Date","Read Date","Days in Billing Period","Total  Consumption\nMMBtu","Total Consumption\nMMBtu",null,null,"Billing Period Start Date","Read Date","Days in Billing Period","Total  Consumption\nMMBtu","Total Consumption\nMMBtu"]
[null,{"$f":"Other!B9","v":"1900-01-01"},{"$f":"Other!C9","v":"00:00:00"},{"$f":"Other!D9","v":0},{"$f":"Other!E9","v":0},{"$f":"Other!G9","v":0},null,null,{"$f":"Other!B53","v":"1900-01-01"},{"$f":"Other!C53","v":"00:00:00"},{"$f":"Other!D53","v":0},{"$f":"Other!E53","v":0},{"$f":"Other!G53","v":0}]
[null,{"$f":"Other!B10","v":"1900-01-01"},{"$f":"Other!C10","v":"00:00:00"},{"$f":"Other!D10","v":0},{"$f":"Other!E10","v":0},{"$f":"Other!G10","v":0},null,null,{"$f":"Other!B54","v":"1900-01-01"},{"$f":"Other!C54","v":"00:00:00"},{"$f":"Other!D54","v":0},{"$f":"Other!E54","v":0},{"$f":"Other!G54","v":0}]
[null,{"$f":"Other!B11","v":"1900-01-01"},{"$f":"Other!C11","v":"00:00:00"},{"$f":"Other!D11","v":0},{"$f":"Other!E11","v":0},{"$f":"Other!G11","v":0},null,null,{"$f":"Other!B55","v":"1900-01-01"},{"$f":"Other!C55","v":"00:00:00"},{"$f":"Other!D55","v":0},{"$f":"Other!E55","v":0},{"$f":"Other!G55","v":0}]
[null,{"$f":"Other!B12","v":"1900-01-01"},{"$f":"Other!C12","v":"00:00:00"},{"$f":"Other!D12","v":0},{"$f":"Other!E12","v":0},{"$f":"Other!G12","v":0},null,null,{"$f":"Other!B56","v":"1900-01-01"},{"$f":"Other!C56","v":"00:00:00"},{"$f":"Other!D56","v":0},{"$f":"Other!E56","v":0},{"$f":"Other!G56","v":0}]
[null,{"$f":"Other!B13","v":"1900-01-01"},{"$f":"Other!C13","v":"00:00:00"},{"$f":"Other!D13","v":0},{"$f":"Other!E13","v":0},{"$f":"Other!G13","v":0},null,null,{"$f":"Other!B57","v":"1900-01-01"},{"$f":"Other!C57","v":"00:00:00"},{"$f":"Other!D57","v":0},{"$f":"Other!E57","v":0},{"$f":"Other!G57","v":0}]
[null,{"$f":"Other!B14","v":"1900-01-01"},{"$f":"Other!C14","v":"00:00:00"},{"$f":"Other!D14","v":0},{"$f":"Other!E14","v":0},{"$f":"Other!G14","v":0},null,null,{"$f":"Other!B58","v":"1900-01-01"},{"$f":"Other!C58","v":"00:00:00"},{"$f":"Other!D58","v":0},{"$f":"Other!E58","v":0},{"$f":"Other!G58","v":0}]
[null,{"$f":"Other!B15","v":"1900-01-01"},{"$f":"Other!C15","v":"00:00:00"},{"$f":"Other!D15","v":0},{"$f":"Other!E15","v":0},{"$f":"Other!G15","v":0},null,null,{"$f":"Other!B59","v":"1900-01-01"},{"$f":"Other!C59","v":"00:00:00"},{"$f":"Other!D59","v":0},{"$f":"Other!E59","v":0},{"$f":"Other!G59","v":0}]
[null,{"$f":"Other!B16","v":"1900-01-01"},{"$f":"Other!C16","v":"00:00:00"},{"$f":"Other!D16","v":0},{"$f":"Other!E16","v":0},{"$f":"Other!G16","v":0},null,null,{"$f":"Other!B60","v":"1900-01-01"},{"$f":"Other!C60","v":"00:00:00"},{"$f":"Other!D60","v":0},{"$f":"Other!E60","v":0},{"$f":"Other!G60","v":0}]
[null,{"$f":"Other!B17","v":"1900-01-01"},{"$f":"Other!C17","v":"00:00:00"},{"$f":"Other!D17","v":0},{"$f":"Other!E17","v":0},{"$f":"Other!G17","v":0},null,null,{"$f":"Other!B61","v":"1900-01-01"},{"$f":"Other!C61","v":"00:00:00"},{"$f":"Other!D61","v":0},{"$f":"Other!E61","v":0},{"$f":"Other!G61","v":0}]
[null,{"$f":"Other!B18","v":"1900-01-01"},{"$f":"Other!C18","v":"00:00:00"},{"$f":"Other!D18","v":0},{"$f":"Other!E18","v":0},{"$f":"Other!G18","v":0},null,null,{"$f":"Other!B62","v":"1900-01-01"},{"$f":"Other!C62","v":"00:00:00"},{"$f":"Other!D62","v":0},{"$f":"Other!E62","v":0},{"$f":"Other!G62","v":0}]
[null,{"$f":"Other!B19","v":"1900-01-01"},{"$f":"Other!C19","v":"00:00:00"},{"$f":"Other!D19","v":0},{"$f":"Other!E19","v":0},{"$f":"Other!G19","v":0},null,null,{"$f":"Other!B63","v":"1900-01-01"},{"$f":"Other!C63","v":"00:00:00"},{"$f":"Other!D63","v":0},{"$f":"Other!E63","v":0},{"$f":"Other!G63","v":0}]
[null,{"$f":"Other!B20","v":"1900-01-01"},{"$f":"Other!C20","v":"00:00:00"},{"$f":"Other!D20","v":0},{"$f":"Other!E20","v":0},{"$f":"Other!G20","v":0},null,null,{"$f":"Other!B64","v":"1900-01-01"},{"$f":"Other!C64","v":"00:00:00"},{"$f":"Other!D64","v":0},{"$f":"Other!E64","v":0},{"$f":"Other!G64","v":0}]
[null,{"$f":"Other!B21","v":"1900-01-01"},{"$f":"Other!C21","v":"00:00:00"},{"$f":"Other!D21","v":0},{"$f":"Other!E21","v":0},{"$f":"Other!G21","v":0},null,null,{"$f":"Other!B65","v":"1900-01-01"},{"$f":"Other!C65","v":"00:00:00"},{"$f":"Other!D65","v":0},{"$f":"Other!E65","v":0},{"$f":"Other!G65","v":0}]
[null,{"$f":"Other!B22","v":"1900-01-01"},{"$f":"Other!C22","v":"00:00:00"},{"$f":"Other!D22","v":0},{"$f":"Other!E22","v":0},{"$f":"Other!G22","v":0},null,null,{"$f":"Other!B66","v":"1900-01-01"},{"$f":"Other!C66","v":"00:00:00"},{"$f":"Other!D66","v":0},{"$f":"Other!E66","v":0},{"$f":"Other!G66","v":0}]
[null,{"$f":"Other!B23","v":"1900-01-01"},{"$f":"Other!C23","v":"00:00:00"},{"$f":"Other!D23","v":0},{"$f":"Other!E23","v":0},{"$f":"Other!G23","v":0},null,null,{"$f":"Other!B67","v":"1900-01-01"},{"$f":"Other!C67","v":"00:00:00"},{"$f":"Other!D67","v":0},{"$f":"Other!E67","v":0},{"$f":"Other!G67","v":0}]
[null,{"$f":"Other!B24","v":"1900-01-01"},{"$f":"Other!C24","v":"00:00:00"},{"$f":"Other!D24","v":0},{"$f":"Other!E24","v":0},{"$f":"Other!G24","v":0},null,null,{"$f":"Other!B68","v":"1900-01-01"},{"$f":"Other!C68","v":"00:00:00"},{"$f":"Other!D68","v":0},{"$f":"Other!E68","v":0},{"$f":"Other!G68","v":0}]
[null,{"$f":"Other!B25","v":"1900-01-01"},{"$f":"Other!C25","v":"00:00:00"},{"$f":"Other!D25","v":0},{"$f":"Other!E25","v":0},{"$f":"Other!G25","v":0},null,null,{"$f":"Other!B69","v":"1900-01-01"},{"$f":"Other!C69","v":"00:00:00"},{"$f":"Other!D69","v":0},{"$f":"Other!E69","v":0},{"$f":"Other!G69","v":0}]
[null,{"$f":"Other!B26","v":"1900-01-01"},{"$f":"Other!C26","v":"00:00:00"},{"$f":"Other!D26","v":0},{"$f":"Other!E26","v":0},{"$f":"Other!G26","v":0},null,null,{"$f":"Other!B70","v":"1900-01-01"},{"$f":"Other!C70","v":"00:00:00"},{"$f":"Other!D70","v":0},{"$f":"Other!E70","v":0},{"$f":"Other!G70","v":0}]
[null,{"$f":"Other!B27","v":"1900-01-01"},{"$f":"Other!C27","v":"00:00:00"},{"$f":"Other!D27","v":0},{"$f":"Other!E27","v":0},{"$f":"Other!G27","v":0},null,null,{"$f":"Other!B71","v":"1900-01-01"},{"$f":"Other!C71","v":"00:00:00"},{"$f":"Other!D71","v":0},{"$f":"Other!E71","v":0},{"$f":"Other!G71","v":0}]
[null,{"$f":"Other!B28","v":"1900-01-01"},{"$f":"Other!C28","v":"00:00:00"},{"$f":"Other!D28","v":0},{"$f":"Other!E28","v":0},{"$f":"Other!G28","v":0},null,null,{"$f":"Other!B72","v":"1900-01-01"},{"$f":"Other!C72","v":"00:00:00"},{"$f":"Other!D72","v":0},{"$f":"Other!E72","v":0},{"$f":"Other!G72","v":0}]
[null,{"$f":"Other!B29","v":"1900-01-01"},{"$f":"Other!C29","v":"00:00:00"},{"$f":"Other!D29","v":0},{"$f":"Other!E29","v":0},{"$f":"Other!G29","v":0},null,null,{"$f":"Other!B73","v":"1900-01-01"},{"$f":"Other!C73","v":"00:00:00"},{"$f":"Other!D73","v":0},{"$f":"Other!E73","v":0},{"$f":"Other!G73","v":0}]
[null,{"$f":"Other!B30","v":"1900-01-01"},{"$f":"Other!C30","v":"00:00:00"},{"$f":"Other!D30","v":0},{"$f":"Other!E30","v":0},{"$f":"Other!G30","v":0},null,null,{"$f":"Other!B74","v":"1900-01-01"},{"$f":"Other!C74","v":"00:00:00"},{"$f":"Other!D74","v":0},{"$f":"Other!E74","v":0},{"$f":"Other!G74","v":0}]
[null,{"$f":"Other!B31","v":"1900-01-01"},{"$f":"Other!C31","v":"00:00:00"},{"$f":"Other!D31","v":0},{"$f":"Other!E31","v":0},{"$f":"Other!G31","v":0},null,null,{"$f":"Other!B75","v":"1900-01-01"},{"$f":"Other!C75","v":"00:00:00"},{"$f":"Other!D75","v":0},{"$f":"Other!E75","v":0},{"$f":"Other!G75","v":0}]
[null,{"$f":"Other!B32","v":"1900-01-01"},{"$f":"Other!C32","v":"00:00:00"},{"$f":"Other!D32","v":0},{"$f":"Other!E32","v":0},{"$f":"Other!G32","v":0},null,null,{"$f":"Other!B76","v":"1900-01-01"},{"$f":"Other!C76","v":"00:00:00"},{"$f":"Other!D76","v":0},{"$f":"Other!E76","v":0},{"$f":"Other!G76","v":0}]
[null,{"$f":"Other!B33","v":"1900-01-01"},{"$f":"Other!C33","v":"00:00:00"},{"$f":"Other!D33","v":0},{"$f":"Other!E33","v":0},{"$f":"Other!G33","v":0},null,null,{"$f":"Other!B77","v":"1900-01-01"},{"$f":"Other!C77","v":"00:00:00"},{"$f":"Other!D77","v":0},{"$f":"Other!E77","v":0},{"$f":"Other!G77","v":0}]
[null,{"$f":"Other!B34","v":"1900-01-01"},{"$f":"Other!C34","v":"00:00:00"},{"$f":"Other!D34","v":0},{"$f":"Other!E34","v":0},{"$f":"Other!G34","v":0},null,null,{"$f":"Other!B78","v":"1900-01-01"},{"$f":"Other!C78","v":"00:00:00"},{"$f":"Other!D78","v":0},{"$f":"Other!E78","v":0},{"$f":"Other!G78","v":0}]
[null,{"$f":"Other!B35","v":"1900-01-01"},{"$f":"Other!C35","v":"00:00:00"},{"$f":"Other!D35","v":0},{"$f":"Other!E35","v":0},{"$f":"Other!G35","v":0},null,null,{"$f":"Other!B79","v":"1900-01-01"},{"$f":"Other!C79","v":"00:00:00"},{"$f":"Other!D79","v":0},{"$f":"Other!E79","v":0},{"$f":"Other!G79","v":0}]
[null,{"$f":"Other!B36","v":"1900-01-01"},{"$f":"Other!C36","v":"00:00:00"},{"$f":"Other!D36","v":0},{"$f":"Other!E36","v":0},{"$f":"Other!G36","v":0},null,null,{"$f":"Other!B80","v":"1900-01-01"},{"$f":"Other!C80","v":"00:00:00"},{"$f":"Other!D80","v":0},{"$f":"Other!E80","v":0},{"$f":"Other!G80","v":0}]
[null,{"$f":"Other!B37","v":"1900-01-01"},{"$f":"Other!C37","v":"00:00:00"},{"$f":"Other!D37","v":0},{"$f":"Other!E37","v":0},{"$f":"Other!G37","v":0},null,null,{"$f":"Other!B81","v":"1900-01-01"},{"$f":"Other!C81","v":"00:00:00"},{"$f":"Other!D81","v":0},{"$f":"Other!E81","v":0},{"$f":"Other!G81","v":0}]
[null,{"$f":"Other!B38","v":"1900-01-01"},{"$f":"Other!C38","v":"00:00:00"},{"$f":"Other!D38","v":0},{"$f":"Other!E38","v":0},{"$f":"Other!G38","v":0},null,null,{"$f":"Other!B82","v":"1900-01-01"},{"$f":"Other!C82","v":"00:00:00"},{"$f":"Other!D82","v":0},{"$f":"Other!E82","v":0},{"$f":"Other!G82","v":0}]
[null,{"$f":"Other!B39","v":"1900-01-01"},{"$f":"Other!C39","v":"00:00:00"},{"$f":"Other!D39","v":0},{"$f":"Other!E39","v":0},{"$f":"Other!G39","v":0},null,null,{"$f":"Other!B83","v":"1900-01-01"},{"$f":"Other!C83","v":"00:00:00"},{"$f":"Other!D83","v":0},{"$f":"Other!E83","v":0},{"$f":"Other!G83","v":0}]
[null,{"$f":"Other!B40","v":"1900-01-01"},{"$f":"Other!C40","v":"00:00:00"},{"$f":"Other!D40","v":0},{"$f":"Other!E40","v":0},{"$f":"Other!G40","v":0},null,null,{"$f":"Other!B84","v":"1900-01-01"},{"$f":"Other!C84","v":"00:00:00"},{"$f":"Other!D84","v":0},{"$f":"Other!E84","v":0},{"$f":"Other!G84","v":0}]
[null,{"$f":"Other!B41","v":"1900-01-01"},{"$f":"Other!C41","v":"00:00:00"},{"$f":"Other!D41","v":0},{"$f":"Other!E41","v":0},{"$f":"Other!G41","v":0},null,null,{"$f":"Other!B85","v":"1900-01-01"},{"$f":"Other!C85","v":"00:00:00"},{"$f":"Other!D85","v":0},{"$f":"Other!E85","v":0},{"$f":"Other!G85","v":0}]
[null,{"$f":"Other!B42","v":"1900-01-01"},{"$f":"Other!C42","v":"00:00:00"},{"$f":"Other!D42","v":0},{"$f":"Other!E42","v":0},{"$f":"Other!G42","v":0},null,null,{"$f":"Other!B86","v":"1900-01-01"},{"$f":"Other!C86","v":"00:00:00"},{"$f":"Other!D86","v":0},{"$f":"Other!E86","v":0},{"$f":"Other!G86","v":0}]
[null,null,null,{"$f":"SUM(D200:D233)","v":0},{"$f":"SUM(E200:E233)","v":0},{"$f":"SUM(F200:F233)","v":0},null,null,null,null,{"$f":"SUM(K200:K233)","v":0},{"$f":"SUM(L200:L233)","v":0},{"$f":"SUM(M200:M233)","v":0}]

{"sheet":"UDAT Support","index":14,"n_rows":60,"n_cols":16,"rows_kept":60,"cut":false,"hidden":true,"merged":[[59,1,59,3],[54,1,54,3],[55,1,55,3],[56,1,56,3],[57,1,57,3],[58,1,58,3],[49,0,49,3],[50,1,50,3],[51,1,51,3],[52,1,52,3],[53,1,53,3],[30,0,30,2],[9,0,9,2],[21,0,21,2],[40,0,40,2],[0,0,0,15]]}
["Drop Down Lists"]
["GasUnits","OilUnits","PropaneUnits","SteamUnits","CWUnits","HWUnits","OtherFuels","OtherUnits","ElecUtil","GasUtil","MeterConf","UDAT_YesNo","UDAT_UnitTypes","MeterRead","EBillingStructure","FBillingStructure"]
["<Not Used>","<Not Used>","<Not Used>","<Not Used>","<Not Used>","<Not Used>","<Other Fuel Type>","<Not Used>","<Select One>","<Select One>","Direct Metered","<Select>","Studio","Actual","<Select>","<Select>"]
["Therms","MMBtu","MMBtu","MMBtu","MMBtu","MMBtu","Wood","MMBtu","Atlantic City Elec.","Elizabethtown","Submetered","Yes","1-Bedroom","Estimated","Fixed/Simple","Fixed/Simple"]
[null,"#2 Oil Gallons","Gallons",null,null,null,"Biofuel",null,"JCP&L","NJNG","Master Metered","No","2-Bedroom",null,"Tiered/Stepped","Tiered/Stepped"]
[null,"#4 Oil Gallons",null,null,null,null,"Other",null,"PSE&G","PSE&G",null,null,"3-Bedroom",null,"Time of Use (TOU)","Other"]
[null,"#6 Oil Gallons",null,null,null,null,null,null,"Rockland Elec.","SJG",null,null,"4+ Bedroom",null,"Tiered TOU"]
[null,null,null,null,null,null,null,null,"Other","Other",null,null,null,null,"Other"]
[]
["Oil Conversion"]
[null,"Type","Conversion"]
["Pre-Retrofit",{"$f":"'Utility Info'!E7","v":"<Not Used>"},{"$f":"VLOOKUP(B12,$A$16:$B$20,2,FALSE)","v":0}]
["Post-Retrofit",{"$f":"'Utility Info'!E16","v":"<Not Used>"},{"$f":"VLOOKUP(B13,$A$16:$B$20,2,FALSE)","v":0}]
[]
["Type","MMBtu/Unit"]
["#2 Oil Gallons",0.1396]
["#4 Oil Gallons",0.14510000000000001]
["#6 Oil Gallons",0.15240000000000001]
["MMBtu",1]
["<Not Used>",0]
[]
["Steam Conversion"]
[null,"Type","Conversion"]
["Pre-retrofit",{"$f":"'Utility Info'!G7","v":"<Not Used>"},{"$f":"VLOOKUP(B24,$A$28:$B$29,2,FALSE)","v":0}]
["Post-retrofit",{"$f":"'Utility Info'!G16","v":"<Not Used>"},{"$f":"VLOOKUP(B25,$A$28:$B$29,2,FALSE)","v":0}]
[]
["Type","MMBtu/Unit"]
["MMBtu",1]
["<Not Used>",0]
[]
["Propane Conversion"]
[null,"Type","Conversion"]
["Pre-Retrofit",{"$f":"'Utility Info'!F7","v":"<Not Used>"},{"$f":"VLOOKUP(B33,$A$37:$B$39,2,FALSE)","v":0}]
["Post-Retrofit",{"$f":"'Utility Info'!F16","v":"<Not Used>"},{"$f":"VLOOKUP(B34,$A$37:$B$39,2,FALSE)","v":0}]
[]
["Type","MMBtu/Unit"]
["Gallons",9.1300000000000006E-2]
["MMBtu",1]
["<Not Used>",0]
[]
["Energy Unit Costs (for Detailed Measures)"]
["Type","Unit","$/Unit"]
[{"$f":"'Utility Use Summary'!$D$6","v":"Electricity"},"kWh",{"$f":"IF('Utility Use Summary'!$D$8=0,0,'Utility Use Summary'!$D$10/'Utility Use Summary'!$D$8)","v":0}]
[{"$f":"'Utility Use Summary'!$G$6","v":"Gas"},"MMBtu",{"$f":"IF('Utility Use Summary'!$H$8=0,12,'Utility Use Summary'!$G$10/'Utility Use Summary'!$H$8)","v":12}]
[{"$f":"'Utility Use Summary'!$I$6","v":"Fuel Oil"},"MMBtu",{"$f":"IF('Utility Use Summary'!$J$8=0,0,'Utility Use Summary'!$I$10/'Utility Use Summary'!$J$8)","v":0}]
[{"$f":"'Utility Use Summary'!$M$6","v":"Steam"},"MMBtu",{"$f":"IF('Utility Use Summary'!$N$8=0,0,'Utility Use Summary'!$M$10/'Utility Use Summary'!$N$8)","v":0}]
[{"$f":"'Utility Use Summary'!$K$6","v":"Propane"},"MMBtu",{"$f":"IF('Utility Use Summary'!$L$8=0,0,'Utility Use Summary'!$K$10/'Utility Use Summary'!$L$8)","v":0}]
[{"$f":"'Utility Use Summary'!$S$6","v":"Other"},"MMBtu",{"$f":"IF('Utility Use Summary'!$T$8=0,0,'Utility Use Summary'!$S$10/'Utility Use Summary'!$T$8)","v":0}]
[]
["CO2e Lookup"]
["Fuel Type","Lbs CO2 Equivalent per MMBtu or kWh"]
[null,0]
["N/A",0]
["No. 6 Fuel Oil",{"$f":"75.35*2.20462","v":166.11811699999998}]
["No. 4 Fuel Oil",{"$f":"75.3*2.20462","v":166.00788599999998}]
["No. 2 Fuel Oil",{"$f":"74.21*2.20462","v":163.60485019999996}]
["Steam",{"$f":"66.4*2.20462","v":146.38676799999999}]
["Propane",{"$f":"64.25*2.20462","v":141.64683499999998}]
["Natural Gas",{"$f":"53.11*2.20462","v":117.08736819999999}]
["Electric",{"$f":"133.87*2.20462*0.003412","v":1.0069920197127999}]

{"sheet":"General Project Information","index":15,"n_rows":47,"n_cols":8,"rows_kept":47,"cut":false,"hidden":false,"merged":[[46,1,46,3],[2,1,2,6],[4,1,4,6],[5,2,5,6],[6,2,6,6],[10,2,10,6],[40,1,40,3],[44,2,44,4],[38,1,38,3],[12,1,12,6],[8,2,8,6],[36,1,36,3],[32,1,34,1]]}
[null,"General Project Information "]
[null,"Instructions"]
[null,"1) Provide brief background/description of customer and project site including: project name, address, building type, site overview, and date(s) audit completed. \n2) Include information on project team members. \n3) Indicate whether project has received incentives through the NJCEP Local Government Energy Audit program, whether the project is performing a fuel conversion (e.g. oil/propane to natural gas, etc.), and/or whether the project is a qualifying high energy intensity facility. ",null,null,null,null,null," "]
[]
[null,"Project Information"]
[null,"Project Name"]
[null,"Project Address "]
[]
["*\n*\n*\n*\n*\n*","Customer/Site Overview "]
[]
[null,"Date(s) audit completed "]
[]
[1,"Project Team"]
[1,"Role","Company Name","Company Address ","Contact Person, Title","Phone Number","Email Address"]
[{"$f":"IF(COUNTBLANK(C15:G15)=5,0,1)","v":0},"Owner/customer/ratepayer"]
[{"$f":"IF(COUNTBLANK(C16:G16)=5,0,1)","v":0},"Management Company "]
[0,"P4P Partner "]
[0,"Energy Modeler"]
[0,"Architect"]
[0,"Design Engineer"]
[0,"Construction Mgr / GC"]
[0,"Cx Authority"]
[0,"LEED Consultant"]
[0,"Mechanical Engineer"]
[0,"Mechanical Contractor"]
[0,"Electrical Engineer"]
[0,"Electrical Contractor"]
[0,"EMS Control Contractor"]
[{"$f":"IF(COUNTBLANK(B29:G29)=6,0,1)","v":0}]
[{"$f":"IF(COUNTBLANK(B30:G30)=6,0,1)","v":0}]
[0]
[]
[null,"Energy Modeler Credentials\n(check all that apply):"]
[]
[]
[]
["*\n*","Did the facility receive an incentive from the Local Government Energy Audit (LGEA) program within the 3 years preceding initial application submittal?"]
[]
[null,"Is this project performing a fuel conversion (e.g. oil/propane to natural gas, electric to natural gas,etc.)?"]
[]
["*\n*","Is this project for a high energy intensity facility (e.g. where at least 50% or more of the annual energy consumption is from process based loads)? "]
[]
[null,null,"Electric (kWh)","Fuel #2 (MMBtu)","% of Total"]
[null,"Manufacturing/Process Loads",null,null,{"$f":"IFERROR((C44*3.412+D44*1000)/(SUM('Utility Use Summary'!E8,'Utility Use Summary'!H8,'Utility Use Summary'!J8,'Utility Use Summary'!L8,'Utility Use Summary'!N8,'Utility Use Summary'!P8,'Utility Use Summary'!R8,'Utility Use Summary'!T8)*1000),0)","v":0}]
[null,"High Energy Intensity Screening",{"$f":"IF(AND(C44=\"\",D44=\"\"),\"Indicate Manufacturing/Process Loads Above\",IF(E44<0.5,\"Fail, less than 50% of baseline energy consumption is from process based loads\", \"Pass, project is high energy intensity. Total annual project savings must be greater of 100,000 kWh, 350 MMBtu, or 4% source energy savings.\"))","v":"Indicate Manufacturing/Process Loads Above"}]
[]
[null,"Was the Initial Application for this project submitted on or before 06/30/2017?"]

{"sheet":"Area Identification","index":16,"n_rows":50,"n_cols":12,"rows_kept":50,"cut":false,"hidden":false,"merged":[[4,1,4,2],[2,1,2,2]]}
[null,"Area Identification"]
[null,"Instructions"]
[null,"1) List all building and area types in the project. Additional Building Type columns will populate based on number of Building Types entered into cell C6.\n2) Read notes indicated by red corners to assist in properly completing this tab. "]
[]
[null,"Project Information"]
[null,"Number of Building Types"]
[null,"Number of Buildings in Project",{"$f":"SUM(C16:L16)","v":0}]
[null,"Number of Apartments in Project (Multifamily Only)",{"$f":"SUM(C25:L25)","v":0},null,""]
[null,"Total Square Footage",{"$f":"SUM(C50:L50)","v":0}]
[]
[null,"Building Information","Building Type 1","Building Type 2","Building Type 3","Building Type 4","Building Type 5","Building Type 6","Building Type 7","Building Type 8","Building Type 9","Building Type 10"]
[null,"Building Type "]
[null,"If \"Other\" is selected in C12 please specify Building Type "]
[null,"Building Street Address(es)",null,"","","","","","","","",""]
[null,"Building Name/Nickname"]
[null,"Number of Buildings"]
[null,"Number of Stories",null,"","","","","","","","",""]
[null,"Year(s) Built",null,"","","","","","","","",""]
[null,"Apartments (Multifamily Only)"]
[null,"Total # of Studios"]
[null,"Total # of 1 Bedroom Units"]
[null,"Total # of 2 Bedroom Units"]
[null,"Total # of 3 Bedroom Units"]
[null,"Total # of 4+ Bedroom Units"]
[null,"Total Apartments",{"$f":"SUM(C20:C24)","v":0},{"$f":"SUM(D20:D24)","v":0},{"$f":"SUM(E20:E24)","v":0},{"$f":"SUM(F20:F24)","v":0},{"$f":"SUM(G20:G24)","v":0},0,0,0,0,0]
[null,"Building Areas (sq. ft.)"]
[{"$f":"IF(B27=\"\",0,1)","v":0}]
[{"$f":"IF(B28=\"\",0,1)","v":0}]
[0]
[0]
[0]
[0]
[0]
[0]
[0]
[0]
[0]
[0]
[0]
[0]
[0]
[0]
[0]
[0]
[0]
[0]
[0]
[0]
[0]
[null,"Total Project Sq. Ft",{"$f":"SUM(C27:C49)","v":0},{"$f":"SUM(D27:D49)","v":0},0,0,0,0,0,0,0,0]

{"sheet":"Area ID Support","index":17,"n_rows":73,"n_cols":5,"rows_kept":73,"cut":false,"hidden":true,"merged":[]}
["Building Name","Building Type","Square Footage"]
[{"$f":"'Area Identification'!$C$15","v":0},{"$f":"'Area Identification'!$C$12","v":0},{"$f":"'Area Identification'!$C$50","v":0}]
[{"$f":"'Area Identification'!$D$15","v":0},{"$f":"'Area Identification'!$D$12","v":0},{"$f":"'Area Identification'!$D$50","v":0}]
[{"$f":"'Area Identification'!$E$15","v":0},{"$f":"'Area Identification'!$E$12","v":0},{"$f":"'Area Identification'!$E$50","v":0}]
[{"$f":"'Area Identification'!$F$15","v":0},{"$f":"'Area Identification'!$F$12","v":0},{"$f":"'Area Identification'!$F$50","v":0}]
[{"$f":"'Area Identification'!$G$15","v":0},{"$f":"'Area Identification'!$G$12","v":0},{"$f":"'Area Identification'!$G$50","v":0}]
[{"$f":"'Area Identification'!$H$15","v":0},{"$f":"'Area Identification'!$H$12","v":0},{"$f":"'Area Identification'!$H$50","v":0},null,{"$f":"IFERROR(INDEX($A$2:$A$11,SMALL(IF(ISTEXT($A$2:$A$11),ROW($A$1:$A$9)), ROW(A6))),\"\")","v":""}]
[{"$f":"'Area Identification'!$I$15","v":0},{"$f":"'Area Identification'!$I$12","v":0},{"$f":"'Area Identification'!$I$50","v":0},null,{"$f":"IFERROR(INDEX($A$2:$A$11,SMALL(IF(ISTEXT($A$2:$A$11),ROW($A$1:$A$9)), ROW(A7))),\"\")","v":""}]
[{"$f":"'Area Identification'!$J$15","v":0},{"$f":"'Area Identification'!$J$12","v":0},{"$f":"'Area Identification'!$J$50","v":0},null,{"$f":"IFERROR(INDEX($A$2:$A$11,SMALL(IF(ISTEXT($A$2:$A$11),ROW($A$1:$A$9)), ROW(A8))),\"\")","v":""}]
[{"$f":"'Area Identification'!$K$15","v":0},{"$f":"'Area Identification'!$K$12","v":0},{"$f":"'Area Identification'!$K$50","v":0},null,{"$f":"IFERROR(INDEX($A$2:$A$11,SMALL(IF(ISTEXT($A$2:$A$11),ROW($A$1:$A$9)), ROW(A9))),\"\")","v":""}]
[{"$f":"'Area Identification'!$L$15","v":0},{"$f":"'Area Identification'!$L$12","v":0},{"$f":"'Area Identification'!$L$50","v":0},null,{"$f":"IFERROR(INDEX($A$2:$A$11,SMALL(IF(ISTEXT($A$2:$A$11),ROW($A$1:$A$9)), ROW(A10))),\"\")","v":""}]
[]
["\"BuildingName\" Source","Building Type","Square Footage"]
[{"$f":"IFERROR(INDEX($A$2:$A$11,SMALL(IF(ISTEXT($A$2:$A$11),ROW($A$1:$A$9)), ROW(A1))),\"\")","v":""},{"$f":"IFERROR(VLOOKUP($A14,$A$2:$C$11,2,FALSE),0)","v":0},{"$f":"IFERROR(VLOOKUP($A14,$A$2:$C$11,3,FALSE),0)","v":0}]
[{"$f":"IFERROR(INDEX($A$2:$A$11,SMALL(IF(ISTEXT($A$2:$A$11),ROW($A$1:$A$9)), ROW(A2))),\"\")","v":""},{"$f":"IFERROR(VLOOKUP($A15,$A$2:$C$11,2,FALSE),0)","v":0},{"$f":"IFERROR(VLOOKUP($A15,$A$2:$C$11,3,FALSE),0)","v":0}]
[{"$f":"IFERROR(INDEX($A$2:$A$11,SMALL(IF(ISTEXT($A$2:$A$11),ROW($A$1:$A$9)), ROW(A3))),\"\")","v":""},0,0]
[{"$f":"IFERROR(INDEX($A$2:$A$11,SMALL(IF(ISTEXT($A$2:$A$11),ROW($A$1:$A$9)), ROW(A4))),\"\")","v":""},0,0]
[{"$f":"IFERROR(INDEX($A$2:$A$11,SMALL(IF(ISTEXT($A$2:$A$11),ROW($A$1:$A$9)), ROW(A5))),\"\")","v":""},0,0]
[{"$f":"IFERROR(INDEX($A$2:$A$11,SMALL(IF(ISTEXT($A$2:$A$11),ROW($A$1:$A$9)), ROW(A6))),\"\")","v":""},0,0]
[{"$f":"IFERROR(INDEX($A$2:$A$11,SMALL(IF(ISTEXT($A$2:$A$11),ROW($A$1:$A$9)), ROW(A7))),\"\")","v":""},0,0]
[{"$f":"IFERROR(INDEX($A$2:$A$11,SMALL(IF(ISTEXT($A$2:$A$11),ROW($A$1:$A$9)), ROW(A8))),\"\")","v":""},0,0]
[{"$f":"IFERROR(INDEX($A$2:$A$11,SMALL(IF(ISTEXT($A$2:$A$11),ROW($A$1:$A$9)), ROW(A9))),\"\")","v":""},0,0]
[{"$f":"IFERROR(INDEX($A$2:$A$11,SMALL(IF(ISTEXT($A$2:$A$11),ROW($A$1:$A$9)), ROW(A10))),\"\")","v":""},0,0]
[]
["Building Area"]
[{"$f":"'Area Identification'!B27","v":0}]
[{"$f":"'Area Identification'!B28","v":0}]
[{"$f":"'Area Identification'!B29","v":0}]
[{"$f":"'Area Identification'!B30","v":0}]
[{"$f":"'Area Identification'!B31","v":0}]
[{"$f":"'Area Identification'!B32","v":0}]
[{"$f":"'Area Identification'!B33","v":0}]
[{"$f":"'Area Identification'!B34","v":0}]
[{"$f":"'Area Identification'!B35","v":0}]
[{"$f":"'Area Identification'!B36","v":0}]
[{"$f":"'Area Identification'!B37","v":0}]
[{"$f":"'Area Identification'!B38","v":0}]
[{"$f":"'Area Identification'!B39","v":0}]
[{"$f":"'Area Identification'!B40","v":0}]
[{"$f":"'Area Identification'!B41","v":0}]
[{"$f":"'Area Identification'!B42","v":0}]
[{"$f":"'Area Identification'!B43","v":0}]
[{"$f":"'Area Identification'!B44","v":0}]
[{"$f":"'Area Identification'!B45","v":0}]
[{"$f":"'Area Identification'!B46","v":0}]
[{"$f":"'Area Identification'!B47","v":0}]
[{"$f":"'Area Identification'!B48","v":0}]
[{"$f":"'Area Identification'!B49","v":0}]
[]
["\"BuildingArea\" Source"]
[{"$f":"IFERROR(INDEX($A$26:$A$48,SMALL(IF(ISTEXT($A$26:$A$48),ROW($A$1:$A$23)), ROW(A1))),\"\")","v":""}]
[{"$f":"IFERROR(INDEX($A$26:$A$48,SMALL(IF(ISTEXT($A$26:$A$48),ROW($A$1:$A$23)), ROW(A2))),\"\")","v":""}]
[{"$f":"IFERROR(INDEX($A$26:$A$48,SMALL(IF(ISTEXT($A$26:$A$48),ROW($A$1:$A$23)), ROW(A3))),\"\")","v":""}]
[{"$f":"IFERROR(INDEX($A$26:$A$48,SMALL(IF(ISTEXT($A$26:$A$48),ROW($A$1:$A$23)), ROW(A4))),\"\")","v":""}]
[{"$f":"IFERROR(INDEX($A$26:$A$48,SMALL(IF(ISTEXT($A$26:$A$48),ROW($A$1:$A$23)), ROW(A5))),\"\")","v":""}]
[{"$f":"IFERROR(INDEX($A$26:$A$48,SMALL(IF(ISTEXT($A$26:$A$48),ROW($A$1:$A$23)), ROW(A6))),\"\")","v":""}]
[{"$f":"IFERROR(INDEX($A$26:$A$48,SMALL(IF(ISTEXT($A$26:$A$48),ROW($A$1:$A$23)), ROW(A7))),\"\")","v":""}]
[{"$f":"IFERROR(INDEX($A$26:$A$48,SMALL(IF(ISTEXT($A$26:$A$48),ROW($A$1:$A$23)), ROW(A8))),\"\")","v":""}]
[{"$f":"IFERROR(INDEX($A$26:$A$48,SMALL(IF(ISTEXT($A$26:$A$48),ROW($A$1:$A$23)), ROW(A9))),\"\")","v":""}]
[{"$f":"IFERROR(INDEX($A$26:$A$48,SMALL(IF(ISTEXT($A$26:$A$48),ROW($A$1:$A$23)), ROW(A10))),\"\")","v":""}]
[{"$f":"IFERROR(INDEX($A$26:$A$48,SMALL(IF(ISTEXT($A$26:$A$48),ROW($A$1:$A$23)), ROW(A11))),\"\")","v":""}]
[{"$f":"IFERROR(INDEX($A$26:$A$48,SMALL(IF(ISTEXT($A$26:$A$48),ROW($A$1:$A$23)), ROW(A12))),\"\")","v":""}]
[{"$f":"IFERROR(INDEX($A$26:$A$48,SMALL(IF(ISTEXT($A$26:$A$48),ROW($A$1:$A$23)), ROW(A13))),\"\")","v":""}]
[{"$f":"IFERROR(INDEX($A$26:$A$48,SMALL(IF(ISTEXT($A$26:$A$48),ROW($A$1:$A$23)), ROW(A14))),\"\")","v":""}]
[{"$f":"IFERROR(INDEX($A$26:$A$48,SMALL(IF(ISTEXT($A$26:$A$48),ROW($A$1:$A$23)), ROW(A15))),\"\")","v":""}]
[{"$f":"IFERROR(INDEX($A$26:$A$48,SMALL(IF(ISTEXT($A$26:$A$48),ROW($A$1:$A$23)), ROW(A16))),\"\")","v":""}]
[{"$f":"IFERROR(INDEX($A$26:$A$48,SMALL(IF(ISTEXT($A$26:$A$48),ROW($A$1:$A$23)), ROW(A17))),\"\")","v":""}]
[{"$f":"IFERROR(INDEX($A$26:$A$48,SMALL(IF(ISTEXT($A$26:$A$48),ROW($A$1:$A$23)), ROW(A18))),\"\")","v":""}]
[{"$f":"IFERROR(INDEX($A$26:$A$48,SMALL(IF(ISTEXT($A$26:$A$48),ROW($A$1:$A$23)), ROW(A19))),\"\")","v":""}]
[{"$f":"IFERROR(INDEX($A$26:$A$48,SMALL(IF(ISTEXT($A$26:$A$48),ROW($A$1:$A$23)), ROW(A20))),\"\")","v":""}]
[{"$f":"IFERROR(INDEX($A$26:$A$48,SMALL(IF(ISTEXT($A$26:$A$48),ROW($A$1:$A$23)), ROW(A21))),\"\")","v":""}]
[{"$f":"IFERROR(INDEX($A$26:$A$48,SMALL(IF(ISTEXT($A$26:$A$48),ROW($A$1:$A$23)), ROW(A22))),\"\")","v":""}]
[{"$f":"IFERROR(INDEX($A$26:$A$48,SMALL(IF(ISTEXT($A$26:$A$48),ROW($A$1:$A$23)), ROW(A23))),\"\")","v":""}]

{"sheet":"Building Types","index":18,"n_rows":109,"n_cols":16,"rows_kept":109,"cut":false,"hidden":true,"merged":[[1,0,8,0],[9,0,12,0]]}
["Customer Class Primary","Education","Entertainment/Public Assembly","Food Sales","Food Service","Healthcare","Industrial/Technology","Lodging","Mercantile","Multifamily","Office ","Public Order/Safety","Religious Worship","Service","Warehouse/storage","Other"]
["Customer Class Sub ","College/University - private","Casino","Supermarket/Grocery","Restaurant","Hospital","Datacenter","Hotel ","Enclosed and Strip Mall","High-Rise","N/A","Fire Station","N/A","N/A","Distribution Center"]
[null,"College/University - public","Convention, conference, or community center","Wholesale Club/Supercenter","Other","Inpatient","Laboratory ","Nursing Home","Retail (no mall)","Low-Rise",null,"Municipal Building",null,null,"Self-storage"]
[null,"K-12 - private","Fitness center","Other",null,"Medical Office","Laundry ","Residence Hall/Dormitory",null,null,null,"Police Station",null,null,"Warehouse - Nonrefrigerated"]
[null,"K-12 - public ","Ice Rink ",null,null,"Outpatient","Manufacturing","Other",null,null,null,"Prison ",null,null,"Warehouse - Refrigerated "]
[null,"Vocational School","Indoor Arena",null,null,"Other","Pharmacuetical ",null,null,null,null,"Wastewater Treatment Plant",null,null,"Other"]
[null,"Other","Library ",null,null,null,"Other",null,null,null,null,"Other"]
[null,null,"Other"]
[]
["Customer Class Sub II","N/A","N/A","N/A","N/A","N/A","N/A","N/A","N/A","Affordable","N/A","N/A","N/A","N/A","N/A"]
[null,null,null,null,null,null,null,null,null,"Market Rate"]
[null,null,null,null,null,null,null,null,null,"Senior/Assisted"]
[]
[]
["Building Types (for Lighting Run Hours Calculation)","EFLH",null,"ASHRAE Lighting Space by Space"]
["<Select Facility Type>",0,null,"Active Storage"]
["Education – Primary School",1440,null,"Active Storage - For Hospital"]
["Education – Secondary School",2305,null,"Atrium - Each Additional Floor"]
["Education – Community College",3792,null,"Atrium - First Three Floors"]
["Education – University",3073,null,"Audience/Seating Area"]
["Education - Other School",2305,null,"Audience/Seating Area - For Convenience Center"]
["Grocery",5824,null,"Audience/Seating Area - For Exercise Center"]
["Medical – Hospital ",8736,null,"Audience/Seating Area - For Gymnasium"]
["Medical – Clinic",4212,null,"Audience/Seating Area - For Motion Picture Theater"]
["Lodging Hotel (Guest Rooms)",1145,null,"Audience/Seating Area - For Penitentiary"]
["Lodging Motel",8736,null,"Audience/Seating Area - For Performing Arts Theater"]
["Manufacturing – Light Industrial",4290,null,"Audience/Seating Area - For Religious Buildings"]
["Office- Large",2808,null,"Audience/Seating Area - For Sports Arena - Indoor"]
["Office-Small",2808,null,"Audience/Seating Area - For Sports Arena - Outdoor"]
["Residential- Common Area",7665,null,"Audience/Seating Area - For Transportation"]
["Residential- Tenant Area & Related",916,null,"Automotive - Service/Repair"]
["Restaurant – Sit-Down",4368,null,"Bank/Office - Banking Activity Area"]
["Restaurant – Fast-Food",6188,null,"Classroom/Lecture/Training"]
["Retail – 3-Story Large",4259,null,"Classroom/Lecture/Training - For Penitentiary"]
["Retail – Single-Story Large",4368,null,"Conference/Meeting/Multipurpose Room"]
["Retail – Small",4004,null,"Convention Center - Exhibit Space"]
["Storage Conditioned ",4290,null,"Corridor/Transportation"]
["Storage Unconditioned",4290,null,"Corridor/Transportation - For Hospital"]
["Warehouse",3900,null,"Corridor/Transportation - For Manufacturing Facility"]
["Other",4242,null,"Courthouse/Police Station - Confinement Cells"]
[null,null,null,"Courthouse/Police Station - Courtroom"]
[null,null,null,"Courthouse/Police Station - Judges Chambers"]
[null,null,null,"Dining Area"]
[null,null,null,"Dining Area - For Bar Lounge/Leisure Dining"]
[null,null,null,"Dining Area - For Family Dining"]
[null,null,null,"Dining Area - For Hotel"]
[null,null,null,"Dining Area - For Motel"]
[null,null,null,"Dining Area - For Penitentiary"]
[null,null,null,"Dormitory- Living Quarters"]
[null,null,null,"Dressing/Locker/Fitting Room"]
[null,null,null,"Electrical/Mechanical"]
[null,null,null,"Fire Station - Sleeping Quarters"]
[null,null,null,"Fire Station Engine Room"]
[null,null,null,"Food Preparation"]
[null,null,null,"Gymnasium/Exercise Center - Exercise Area"]
[null,null,null,"Gymnasium/Exercise Center - Playing Area"]
[null,null,null,"Hospital - Emergency"]
[null,null,null,"Hospital - Exam/Treatment"]
[null,null,null,"Hospital - Laundry"]
[null,null,null,"Hospital - Medical Supply"]
[null,null,null,"Hospital - Nurse Station"]
[null,null,null,"Hospital - Nursery"]
[null,null,null,"Hospital - Operating Room"]
[null,null,null,"Hospital - Patient Room"]
[null,null,null,"Hospital - Pharmacy"]
[null,null,null,"Hospital - Physical Therapy"]
[null,null,null,"Hospital - Radiology"]
[null,null,null,"Hospital - Recovery"]
[null,null,null,"Hotel/Motel Guest Rooms"]
[null,null,null,"Inactive Storage"]
[null,null,null,"Inactive Storage - For Museum"]
[null,null,null,"Laboratory"]
[null,null,null,"Library - Card File and Cataloging"]
[null,null,null,"Library - Reading Area"]
[null,null,null,"Library - Stacks"]
[null,null,null,"Lobby"]
[null,null,null,"Lobby - For Hotel"]
[null,null,null,"Lobby - For Motion Picture Theater"]
[null,null,null,"Lobby - For Performing Arts Theater"]
[null,null,null,"Lounge/Recreation"]
[null,null,null,"Lounge/Recreation - For Hospital"]
[null,null,null,"Manufacturing - Control Room"]
[null,null,null,"Manufacturing - Detailed Manufacturing"]
[null,null,null,"Manufacturing - Equipment Room"]
[null,null,null,"Manufacturing - High Bay (>=25 ft floor to ceiling height)"]
[null,null,null,"Manufacturing - Low Bay (<25 ft floor to ceiling height)"]
[null,null,null,"Museum - General Exhibition"]
[null,null,null,"Museum - Restoration"]
[null,null,null,"Office-Enclosed"]
[null,null,null,"Office-Open Plan"]
[null,null,null,"Parking Garage"]
[null,null,null,"Post Office- Sorting Area "]
[null,null,null,"Religious Buildings - Fellowship Hall"]
[null,null,null,"Religious Buildings - Worship Pulpit, Choir"]
[null,null,null,"Residential - Apartments"]
[null,null,null,"Residential - Common Areas"]
[null,null,null,"Restrooms"]
[null,null,null,"Retail - Mall Concourse"]
[null,null,null,"Retail - Sales Area"]
[null,null,null,"Sports Arena - Court Sports Arena"]
[null,null,null,"Sports Arena - Indoor Playing Field"]
[null,null,null,"Sports Arena - Ring Sports Arena"]
[null,null,null,"Stairs - Active"]
[null,null,null,"Transportation - Air/Train/Bus - Baggage Area"]
[null,null,null,"Transportation - Airport - Concourse"]
[null,null,null,"Transportation - Terminal - Ticket Counter"]
[null,null,null,"Warehouse - Fine Material Storage"]
[null,null,null,"Warehouse - Medium/Bulky Material Storage"]
[null,null,null,"Workshop"]

{"sheet":"Occupancy","index":19,"n_rows":33,"n_cols":11,"rows_kept":33,"cut":false,"hidden":false,"merged":[[2,1,2,9],[27,10,27,17],[31,10,31,17],[32,10,32,17],[16,10,16,17],[17,10,17,17],[21,10,21,17],[22,10,22,17],[26,10,26,17],[6,10,6,17],[7,10,7,17],[11,10,11,17],[12,10,12,17],[4,2,4,3],[4,4,4,5],[9,2,9,3],[9,4,9,5],[29,2,29,3],[29,4,29,5],[14,2,14,3],[14,4,14,5],[19,2,19,3],[19,4,19,5],[24,2,24,3],[24,4,24,5]]}
[null,"Occupancy Schedules"]
[null,"Instructions"]
[null,"1) Fill out a table for each distinct operating schedule at the facility(ies). Include average occupancy by day.\n2) Use the Additional Notes column to provide additonal detail, including special operating conditions, metering completed, or other information to support your baseline model assumptions.\n3) The Schedule Name should match that used in the model."]
[]
[{"$f":"IF(SUM(C7:I8)=0,0,1)","v":0},"Schedule Name:",null,null,"Applicable from:",null,null,"to"]
[{"$f":"IF(SUM(C7:I8)=0,0,1)","v":0},null,"Mon","Tue","Wed","Thu","Fri","Sat","Sun"]
[{"$f":"IF(SUM(C7:I8)=0,0,1)","v":0},"Hours Open",null,null,null,null,null,null,null,null,"Additional Notes"]
[{"$f":"IF(SUM(C7:I8)=0,0,1)","v":0},"Number of Occupants When Open",null,null,null,null,null,null,null,"*\n*"]
[{"$f":"IF(SUM(C12:I13)=0,0,1)","v":0}]
[{"$f":"IF(SUM(C12:I13)=0,0,1)","v":0},"Schedule Name:",null,null,"Applicable from:",null,null,"to"]
[{"$f":"IF(SUM(C12:I13)=0,0,1)","v":0},null,"Mon","Tue","Wed","Thu","Fri","Sat","Sun"]
[{"$f":"IF(SUM(C12:I13)=0,0,1)","v":0},"Hours Open",null,null,null,null,null,null,null,null,"Additional Notes"]
[{"$f":"IF(SUM(C12:I13)=0,0,1)","v":0},"Number of Occupants When Open",null,null,null,null,null,null,null,"*\n*"]
[{"$f":"IF(SUM(C17:I18)=0,0,1)","v":0}]
[{"$f":"IF(SUM(C17:I18)=0,0,1)","v":0},"Schedule Name:",null,null,"Applicable from:",null,null,"to"]
[{"$f":"IF(SUM(C17:I18)=0,0,1)","v":0},null,"Mon","Tue","Wed","Thu","Fri","Sat","Sun"]
[{"$f":"IF(SUM(C17:I18)=0,0,1)","v":0},"Hours Open",null,null,null,null,null,null,null,null,"Additional Notes"]
[{"$f":"IF(SUM(C17:I18)=0,0,1)","v":0},"Number of Occupants When Open",null,null,null,null,null,null,null,"*\n*"]
[{"$f":"IF(SUM(C22:I23)=0,0,1)","v":0}]
[{"$f":"IF(SUM(C22:I23)=0,0,1)","v":0},"Schedule Name:",null,null,"Applicable from:",null,null,"to"]
[{"$f":"IF(SUM(C22:I23)=0,0,1)","v":0},null,"Mon","Tue","Wed","Thu","Fri","Sat","Sun"]
[{"$f":"IF(SUM(C22:I23)=0,0,1)","v":0},"Hours Open",null,null,null,null,null,null,null,null,"Additional Notes"]
[{"$f":"IF(SUM(C22:I23)=0,0,1)","v":0},"Number of Occupants When Open",null,null,null,null,null,null,null,"*\n*"]
[{"$f":"IF(SUM(C27:I28)=0,0,1)","v":0}]
[{"$f":"IF(SUM(C27:I28)=0,0,1)","v":0},"Schedule Name:",null,null,"Applicable from:",null,null,"to"]
[{"$f":"IF(SUM(C27:I28)=0,0,1)","v":0},null,"Mon","Tue","Wed","Thu","Fri","Sat","Sun"]
[{"$f":"IF(SUM(C27:I28)=0,0,1)","v":0},"Hours Open",null,null,null,null,null,null,null,null,"Additional Notes"]
[{"$f":"IF(SUM(C27:I28)=0,0,1)","v":0},"Number of Occupants When Open",null,null,null,null,null,null,null,"*\n*"]
[{"$f":"IF(SUM(C32:I33)=0,0,1)","v":0}]
[{"$f":"IF(SUM(C32:I33)=0,0,1)","v":0},"Schedule Name:",null,null,"Applicable from:",null,null,"to"]
[{"$f":"IF(SUM(C32:I33)=0,0,1)","v":0},null,"Mon","Tue","Wed","Thu","Fri","Sat","Sun"]
[{"$f":"IF(SUM(C32:I33)=0,0,1)","v":0},"Hours Open",null,null,null,null,null,null,null,null,"Additional Notes"]
[{"$f":"IF(SUM(C32:I33)=0,0,1)","v":0},"Number of Occupants When Open",null,null,null,null,null,null,null,"*\n*"]

{"sheet":"Envelope","index":20,"n_rows":60,"n_cols":15,"rows_kept":60,"cut":false,"hidden":false,"merged":[[4,2,4,11],[57,3,57,4],[55,5,55,6],[56,5,56,6],[57,5,57,6],[29,3,29,4],[29,5,29,6],[43,7,43,17],[44,7,44,17],[45,7,45,17],[46,7,46,17],[47,7,47,17],[51,7,51,17],[50,3,50,4],[50,5,50,6],[51,3,51,4],[51,5,51,6],[52,3,52,4],[52,5,52,6],[53,3,53,4],[53,5,53,6],[13,3,13,4],[26,5,26,6],[27,5,27,6],[32,1,33,1],[32,3,32,4],[32,5,32,6],[33,3,33,4],[33,5,33,6],[30,1,31,1],[30,3,30,4],[30,5,30,6],[31,3,31,4],[31,5,31,6],[34,1,35,1],[34,3,34,4],[34,5,34,6],[35,3,35,4],[35,5,35,6],[36,1,43,1],[36,3,36,4],[36,5,36,6],[37,3,37,4],[37,5,37,6],[38,3,38,4],[38,5,38,6],[41,3,41,4],[41,5,41,6],[42,3,42,4],[42,5,42,6],[43,3,43,4],[43,5,43,6],[39,3,39,4],[39,5,39,6],[40,3,40,4],[40,5,40,6],[44,1,47,1],[44,3,44,4],[44,5,44,6],[45,3,45,4],[45,5,45,6],[47,3,47,4],[47,5,47,6],[46,3,46,4],[46,5,46,6],[48,1,49,1],[48,3,48,4],[48,5,48,6],[49,3,49,4],[49,5,49,6],[52,7,52,17],[53,7,53,17],[54,7,54,17],[55,3,55,4],[54,3,54,4],[54,5,54,6],[48,7,48,17],[49,7,49,17],[50,7,50,17],[28,5,28,6],[59,3,59,4],[59,5,59,6],[55,7,55,17],[56,7,56,17],[57,7,57,17],[58,7,58,17],[59,7,59,17],[56,3,56,4],[58,3,58,4],[58,5,58,6],[32,7,32,17],[33,7,33,17],[40,7,40,17],[41,7,41,17],[42,7,42,17],[39,7,39,17],[24,3,24,4],[25,3,25,4],[26,3,26,4],[27,3,27,4],[28,3,28,4],[20,14,20,17],[21,14,21,17],[22,14,22,17],[23,3,23,4],[23,5,23,6],[23,7,23,8],[23,11,23,17],[24,11,24,17],[25,11,25,17],[26,11,26,17],[27,11,27,17],[28,11,28,17],[24,7,24,8],[25,7,25,8],[26,7,26,8],[27,7,27,8],[28,7,28,8],[24,5,24,6],[25,5,25,6],[14,7,14,11],[15,7,15,11],[16,7,16,11],[5,3,5,4],[6,3,6,4],[7,3,7,4],[8,3,8,4],[9,3,9,4],[10,3,10,4],[11,3,11,4],[12,3,12,4],[2,1,2,11],[29,7,29,17],[30,7,30,17],[31,7,31,17],[34,7,34,17],[35,7,35,17],[36,7,36,17],[37,7,37,17],[38,7,38,17],[17,14,17,17],[18,14,18,17],[19,14,19,17],[5,7,5,11],[6,7,6,11],[7,7,7,11],[8,7,8,11],[9,7,9,11],[10,7,10,11],[11,7,11,11],[14,3,14,4],[15,3,15,4],[16,3,16,4],[12,7,12,11],[13,7,13,11]]}
[null,"Envelope Summary"]
[null,"Instructions"]
[null,"1) Enter envelope information obtained on the site visit in the tables below.  This tab should be completed to the fullest extent possible.  \n2) The data entered on this tab should represent ALL buildings in the project.\n3) Read the notes indicated by red corners to assist in properly completing this tab.\n4) Use the \"Measure ?\" column to indicate items that are affected by the proposed workscope. Reference Program Guidelines v4.1, Section 4.6.3 for data required for envelope measures.\n5) Use the Additional Notes column to provide additonal detail, including special operating conditions, metering completed, or other information to support your baseline model assumptions.\n"]
[]
[1,"General Building/Envelope Description "]
[1,"Envelope Components","Measure?","Construction Type/Description",null,"Total R-value ","Verification Method","Additional Notes"]
[1,"Above Grade Exterior Walls",null,null,null,null,null,null,null,null,null,null,"*\n*"]
[1,"Floor Perimeter/ Rim Joists",null,null,null,null,null,null,null,null,null,null,"*\n*"]
[1,"Below Grade Walls",null,null,null,null,null,null,null,null,null,null,"*\n*"]
[1,"Floor Above Unconditioned Space",null,null,null,null,null,null,null,null,null,null,"*\n*"]
[1,"Slab On/Below Grade",null,null,null,null,null,null,null,null,null,null,"*\n*"]
[1,"Roof",null,null,null,null,null,null,null,null,null,null,"*\n*"]
[1,"Ceilings to Unconditioned Attics",null,null,null,null,null,null,null,null,null,null,"*\n*"]
[1,"Wall to Unconditioned Space",null,null,null,null,null,null,null,null,null,null,"*\n*"]
[{"$f":"IF(B15=\"\",0,1)","v":0},null,null,null,null,null,null,null,null,null,null,null,"*\n*"]
[{"$f":"IF(B16=\"\",0,1)","v":0},null,null,null,null,null,null,null,null,null,null,null,"*\n*"]
[0,null,null,null,null,null,null,null,null,null,null,null,"*\n*"]
[1,"Windows","Measure?","Window Type","Frame Type","Condition","Typical Size\n(H x W)","# of Panes","Gas Filled","Glass Coating","U-value","Weather-stripping","Age\n(yrs)","Qty. ","Additional Notes"]
[{"$f":"IF(COUNTBLANK(C19:R19)=16,0,1)","v":0},"Window Type 1"]
[{"$f":"IF(COUNTBLANK(C20:R20)=16,0,1)","v":0},"Window Type 2"]
[0,"Window Type 3"]
[0,"Window Type 4"]
[0,"Window Type 5"]
[1,"Exterior Doors","Measure?","Material",null,"% Glazing",null,"Glazing Type",null,"Weather-stripping","Qty.","Additional Notes"]
[{"$f":"IF(COUNTBLANK(C25:R25)=16,0,1)","v":0},"Door Type 1"]
[{"$f":"IF(COUNTBLANK(C26:R26)=16,0,1)","v":0},"Door Type 2"]
[0,"Door Type 3"]
[0,"Door Type 4"]
[0,"Door Type 5"]
[1,"Air Infiltration","Measure?","Location of Leakage",null,"Tightness",null,"Additional Notes"]
[1,"Windows",null,"Frame",null,"",null,""]
[1,null,null,"Moving Surfaces"]
[1,"Exterior Doors",null,"Frame"]
[1,null,null,"Moving Surfaces"]
[1,"Laundry Room",null,"Dryer Vent"]
[1,null,null,"Exhaust Fans"]
[1,"Attic/Roof ",null,"Hatch Frame"]
[1,null,null,"Hatch Door"]
[1,null,null,"Pipe Penetrations"]
[1,null,null,"Electrical Boxes"]
[1,null,null,"Recessed Lights"]
[1,null,null,"Wall Caps"]
[1,null,null,"Exhaust Fans"]
[1,null,null,"Open Chases"]
[1,"Exterior Walls ",null,"Pipe Penetrations",null,""]
[1,null,null,"Exhaust Fans",null,"",null,""]
[1,null,null,"Electrical Boxes",null,"",null,""]
[1,null,null,"Patio Doors",null,"",null,""]
[1,"AC Sleeves",null,"Sleeve-to-wall Junction",null,"",null,""]
[1,null,null,"Unit Fit in Sleeve",null,"",null,""]
[1,"Basement Penetrations",null,"",null,"",null,""]
[1,"Roof Penetrations",null,"",null,"",null,""]
[1,"Elevator Penthouses",null,"",null,"",null,""]
[1,"Stairwells",null,"",null,"",null,""]
[{"$f":"IF(B55=\"\",0,1)","v":0},null,null,"",null,"",null,""]
[{"$f":"IF(B56=\"\",0,1)","v":0}]
[0]
[0]
[0,null,null,"",null,"",null,""]
[0,null,null,"",null,"",null,""]

{"sheet":"Air-sealing","index":21,"n_rows":57,"n_cols":15,"rows_kept":57,"cut":false,"hidden":false,"merged":[[36,1,39,1],[42,1,43,1],[44,1,45,1],[46,1,51,1],[52,1,55,1],[21,11,22,11],[21,12,22,12],[21,13,22,13],[21,14,22,14],[23,1,26,1],[21,7,21,8],[21,10,22,10],[28,1,34,1],[21,1,22,1],[21,2,22,2],[21,3,21,4],[21,6,22,6],[15,1,15,2],[15,6,15,8],[1,1,1,2],[4,1,5,1],[7,1,10,1],[12,1,13,1]]}
[null,"Air Sealing Measures - Supplemental Worksheet "]
[null,"Instructions"]
[null,"This table MUST be used if air sealing measures are included in your workscope. Reference Program Guidelines v4.1, Section 4.6.3 for additional information pertaining to air-sealing measures."]
[]
[null,"Step 1 - Fill in Table 1","a) Enter whole building Pre-retrofit unadjusted Infiltration in the first row of Table 1. "]
[null,null,"b) Enter average building height and gross conditioned floor area"]
[]
[null,"Step 2 - Fill in Table 2","Enter pre- and post- retrofit conditions for each measure included in the scope of work."]
[null,null,"    Select pre-retrofit description from the dropdown list in Column B, then select corresponding post-retrofit condition in Column F."]
[null,null,"    Enter quantities of each measure in the specified units."]
[null,null,"    If replacement windows or doors are selected, enter specified leakage rating in the NFRC AL column (http://www.nfrc.org/WindowRatings/Energy-Ratings.html) "]
[]
[null,"Step 3 - Enter results from Table 3 into simulation tool","Calculated post-retrofit infiltration (unadjusted for mechanical ventilation) is shown in Table 3"]
[]
[]
[null,"Table 1 - Total Pre-Retrofit Air Leakage and General Building Data",null,null,null,null,"Table 3 - Total Post-Retrofit Air Leakage "]
[null,"Pre-Retrofit Average Infiltration",null,"ACH",null,null,"Post-Retrofit Average Infiltration",{"$f":"IF(ISNUMBER(C17),C17-H18,\"\")","v":""},"ACH"]
[null,"Building Height",null,"ft",null,null,"Infiltration Reduction",{"$f":"IF(C17=0,0,IF(SUM(N24:N56)/C17>0.38,C17*0.38,SUM(N24:N56)))","v":0},"ACH"]
[null,"Gross Conditioned Floor Area",{"$f":"'Area Identification'!$C$9","v":0},"sq ft",null,null,"Average Percentage Reduction",{"$f":"IF(SUM(O24:O56)>0.38,0.38,SUM(O24:O56))","v":0}]
[]
[null,"Table 2 - Detailed Description of Pre- and Post-retrofit Conditions for Proposed Measures"]
[null,"Building Component Category","Pre-Retrofit Condition","Pre-Retrofit",null,null,"Post-Retrofit Condition","Post-Retrofit",null,null,"NFRC AL","Equivalent ELA","ELA difference, sq in (reduction is neg)","ACH Reduction","Percent Reduction"]
[null,null,null,"Qty","Units","ELA",null,"Qty","Units","ELA"]
[null,"Ceiling/ Ceiling Penetrations","-",null,{"$f":"VLOOKUP(C24,'SG - Component'!$B$4:$D$13,3,FALSE)","v":"N/A"},{"$f":"VLOOKUP(C24,'SG - Component'!$B$4:$D$13,2,FALSE)","v":"-"},"-",null,{"$f":"VLOOKUP(G24,'SG - Component'!$B$4:$D$13,3,FALSE)","v":"N/A"},{"$f":"VLOOKUP(G24,'SG - Component'!$B$4:$D$13,2,FALSE)","v":"-"},null,{"$f":"IF(ISNUMBER(K24),H24*K24*0.038,\"\")","v":""},{"$f":"IF(ISNUMBER(-F24*D24+J24*H24),-F24*D24+J24*H24,IF(ISNUMBER(L24),-D24*F24+L24,\"\"))","v":""},{"$f":"IF(ISNUMBER(M24),-6.944*(M24/$C$19)*($C$18/8)^(0.3),\"\")","v":""},{"$f":"IF(ISNUMBER(N24/$C$17),N24/$C$17,\"\")","v":""}]
[null,null,"-",null,{"$f":"VLOOKUP(C25,'SG - Component'!$B$4:$D$13,3,FALSE)","v":"N/A"},{"$f":"VLOOKUP(C25,'SG - Component'!$B$4:$D$13,2,FALSE)","v":"-"},"-",null,{"$f":"VLOOKUP(G25,'SG - Component'!$B$4:$D$13,3,FALSE)","v":"N/A"},{"$f":"VLOOKUP(G25,'SG - Component'!$B$4:$D$13,2,FALSE)","v":"-"},null,"","",{"$f":"IF(ISNUMBER(M25),-6.944*(M25/$C$19)*($C$18/8)^(0.3),\"\")","v":""},{"$f":"IF(ISNUMBER(N25/$C$17),N25/$C$17,\"\")","v":""}]
[null,null,"-",null,{"$f":"VLOOKUP(C26,'SG - Component'!$B$4:$D$13,3,FALSE)","v":"N/A"},{"$f":"VLOOKUP(C26,'SG - Component'!$B$4:$D$13,2,FALSE)","v":"-"},"-",null,{"$f":"VLOOKUP(G26,'SG - Component'!$B$4:$D$13,3,FALSE)","v":"N/A"},{"$f":"VLOOKUP(G26,'SG - Component'!$B$4:$D$13,2,FALSE)","v":"-"},null,"","",{"$f":"IF(ISNUMBER(M26),-6.944*(M26/$C$19)*($C$18/8)^(0.3),\"\")","v":""},{"$f":"IF(ISNUMBER(N26/$C$17),N26/$C$17,\"\")","v":""}]
[null,null,"-",null,{"$f":"VLOOKUP(C27,'SG - Component'!$B$4:$D$13,3,FALSE)","v":"N/A"},{"$f":"VLOOKUP(C27,'SG - Component'!$B$4:$D$13,2,FALSE)","v":"-"},"-",null,{"$f":"VLOOKUP(G27,'SG - Component'!$B$4:$D$13,3,FALSE)","v":"N/A"},{"$f":"VLOOKUP(G27,'SG - Component'!$B$4:$D$13,2,FALSE)","v":"-"},null,"","",{"$f":"IF(ISNUMBER(M27),-6.944*(M27/$C$19)*($C$18/8)^(0.3),\"\")","v":""},{"$f":"IF(ISNUMBER(N27/$C$17),N27/$C$17,\"\")","v":""}]
[null,"Crawl Space","-",null,{"$f":"VLOOKUP(C28,'SG - Component'!$B$14:$D$17,3,FALSE)","v":"N/A"},{"$f":"VLOOKUP(C28,'SG - Component'!$B$14:$D$17,2,FALSE)","v":"-"},"-",null,{"$f":"VLOOKUP(G28,'SG - Component'!$B$14:$D$17,3,FALSE)","v":"N/A"},{"$f":"VLOOKUP(G28,'SG - Component'!$B$14:$D$17,2,FALSE)","v":"-"},null,"","",{"$f":"IF(ISNUMBER(M28),-6.944*(M28/$C$19)*($C$18/8)^(0.3),\"\")","v":""},{"$f":"IF(ISNUMBER(N28/$C$17),N28/$C$17,\"\")","v":""}]
[null,"Door/ Door Framing","-",null,{"$f":"VLOOKUP(C29,'SG - Component'!$B$18:$D$46,3,FALSE)","v":"N/A"},{"$f":"VLOOKUP(C29,'SG - Component'!$B$18:$D$46,2,FALSE)","v":"-"},"-",null,{"$f":"VLOOKUP(G29,'SG - Component'!$B$18:$D$46,3,FALSE)","v":"N/A"},{"$f":"VLOOKUP(G29,'SG - Component'!$B$18:$D$46,2,FALSE)","v":"-"},null,"","",{"$f":"IF(ISNUMBER(M29),-6.944*(M29/$C$19)*($C$18/8)^(0.3),\"\")","v":""},""]
[null,null,"-",null,{"$f":"VLOOKUP(C30,'SG - Component'!$B$18:$D$46,3,FALSE)","v":"N/A"},{"$f":"VLOOKUP(C30,'SG - Component'!$B$18:$D$46,2,FALSE)","v":"-"},"-",null,{"$f":"VLOOKUP(G30,'SG - Component'!$B$18:$D$46,3,FALSE)","v":"N/A"},{"$f":"VLOOKUP(G30,'SG - Component'!$B$18:$D$46,2,FALSE)","v":"-"},null,"","","",""]
[null,null,"-",null,{"$f":"VLOOKUP(C31,'SG - Component'!$B$18:$D$46,3,FALSE)","v":"N/A"},{"$f":"VLOOKUP(C31,'SG - Component'!$B$18:$D$46,2,FALSE)","v":"-"},"-",null,{"$f":"VLOOKUP(G31,'SG - Component'!$B$18:$D$46,3,FALSE)","v":"N/A"},{"$f":"VLOOKUP(G31,'SG - Component'!$B$18:$D$46,2,FALSE)","v":"-"},null,"","","",""]
[null,null,"-",null,{"$f":"VLOOKUP(C32,'SG - Component'!$B$18:$D$46,3,FALSE)","v":"N/A"},{"$f":"VLOOKUP(C32,'SG - Component'!$B$18:$D$46,2,FALSE)","v":"-"},"-",null,{"$f":"VLOOKUP(G32,'SG - Component'!$B$18:$D$46,3,FALSE)","v":"N/A"},{"$f":"VLOOKUP(G32,'SG - Component'!$B$18:$D$46,2,FALSE)","v":"-"},null,{"$f":"IF(ISNUMBER(K32),H32*K32*0.038,\"\")","v":""},{"$f":"IF(ISNUMBER(-F32*D32+J32*H32),-F32*D32+J32*H32,IF(ISNUMBER(L32),-D32*F32+L32,\"\"))","v":""},{"$f":"IF(ISNUMBER(M32),-6.944*(M32/$C$19)*($C$18/8)^(0.3),\"\")","v":""},{"$f":"IF(ISNUMBER(N32/$C$17),N32/$C$17,\"\")","v":""}]
[null,null,"-",null,{"$f":"VLOOKUP(C33,'SG - Component'!$B$18:$D$46,3,FALSE)","v":"N/A"},{"$f":"VLOOKUP(C33,'SG - Component'!$B$18:$D$46,2,FALSE)","v":"-"},"-",null,{"$f":"VLOOKUP(G33,'SG - Component'!$B$18:$D$46,3,FALSE)","v":"N/A"},{"$f":"VLOOKUP(G33,'SG - Component'!$B$18:$D$46,2,FALSE)","v":"-"},null,{"$f":"IF(ISNUMBER(K33),H33*K33*0.038,\"\")","v":""},{"$f":"IF(ISNUMBER(-F33*D33+J33*H33),-F33*D33+J33*H33,IF(ISNUMBER(L33),-D33*F33+L33,\"\"))","v":""},{"$f":"IF(ISNUMBER(M33),-6.944*(M33/$C$19)*($C$18/8)^(0.3),\"\")","v":""},{"$f":"IF(ISNUMBER(N33/$C$17),N33/$C$17,\"\")","v":""}]
[null,null,"-",null,{"$f":"VLOOKUP(C34,'SG - Component'!$B$18:$D$46,3,FALSE)","v":"N/A"},{"$f":"VLOOKUP(C34,'SG - Component'!$B$18:$D$46,2,FALSE)","v":"-"},"-",null,{"$f":"VLOOKUP(G34,'SG - Component'!$B$18:$D$46,3,FALSE)","v":"N/A"},{"$f":"VLOOKUP(G34,'SG - Component'!$B$18:$D$46,2,FALSE)","v":"-"},null,{"$f":"IF(ISNUMBER(K34),H34*K34*0.038,\"\")","v":""},{"$f":"IF(ISNUMBER(-F34*D34+J34*H34),-F34*D34+J34*H34,IF(ISNUMBER(L34),-D34*F34+L34,\"\"))","v":""},{"$f":"IF(ISNUMBER(M34),-6.944*(M34/$C$19)*($C$18/8)^(0.3),\"\")","v":""},{"$f":"IF(ISNUMBER(N34/$C$17),N34/$C$17,\"\")","v":""}]
[null,null,"-",null,{"$f":"VLOOKUP(C35,'SG - Component'!$B$18:$D$46,3,FALSE)","v":"N/A"},{"$f":"VLOOKUP(C35,'SG - Component'!$B$18:$D$46,2,FALSE)","v":"-"},"-",null,{"$f":"VLOOKUP(G35,'SG - Component'!$B$18:$D$46,3,FALSE)","v":"N/A"},{"$f":"VLOOKUP(G35,'SG - Component'!$B$18:$D$46,2,FALSE)","v":"-"},null,{"$f":"IF(ISNUMBER(K35),H35*K35*0.038,\"\")","v":""},{"$f":"IF(ISNUMBER(-F35*D35+J35*H35),-F35*D35+J35*H35,IF(ISNUMBER(L35),-D35*F35+L35,\"\"))","v":""},{"$f":"IF(ISNUMBER(M35),-6.944*(M35/$C$19)*($C$18/8)^(0.3),\"\")","v":""},{"$f":"IF(ISNUMBER(N35/$C$17),N35/$C$17,\"\")","v":""}]
[null,"Electrical Outlets","-",null,{"$f":"VLOOKUP(C36,'SG - Component'!$B$47:$D$49,3,FALSE)","v":"N/A"},{"$f":"VLOOKUP(C36,'SG - Component'!$B$47:$D$49,2,FALSE)","v":"-"},"-",null,{"$f":"VLOOKUP(G36,'SG - Component'!$B$47:$D$49,3,FALSE)","v":"N/A"},{"$f":"VLOOKUP(G36,'SG - Component'!$B$47:$D$49,2,FALSE)","v":"-"},null,"","","",""]
[null,"Exterior Walls","-",null,{"$f":"VLOOKUP(C37,'SG - Component'!$B$50:$D$59,3,FALSE)","v":"N/A"},{"$f":"VLOOKUP(C37,'SG - Component'!$B$50:$C$59,2,FALSE)","v":"-"},"-",null,{"$f":"VLOOKUP(G37,'SG - Component'!$B$50:$D$59,3,FALSE)","v":"N/A"},{"$f":"VLOOKUP(G37,'SG - Component'!$B$50:$C$59,2,FALSE)","v":"-"},null,"","","",""]
[null,null,"-",null,{"$f":"VLOOKUP(C38,'SG - Component'!$B$50:$D$59,3,FALSE)","v":"N/A"},{"$f":"VLOOKUP(C38,'SG - Component'!$B$50:$C$59,2,FALSE)","v":"-"},"-",null,{"$f":"VLOOKUP(G38,'SG - Component'!$B$50:$D$59,3,FALSE)","v":"N/A"},{"$f":"VLOOKUP(G38,'SG - Component'!$B$50:$C$59,2,FALSE)","v":"-"},null,"","",{"$f":"IF(ISNUMBER(M38),-6.944*(M38/$C$19)*($C$18/8)^(0.3),\"\")","v":""},{"$f":"IF(ISNUMBER(N38/$C$17),N38/$C$17,\"\")","v":""}]
[null,null,"-",null,{"$f":"VLOOKUP(C39,'SG - Component'!$B$50:$D$59,3,FALSE)","v":"N/A"},{"$f":"VLOOKUP(C39,'SG - Component'!$B$50:$C$59,2,FALSE)","v":"-"},"-",null,{"$f":"VLOOKUP(G39,'SG - Component'!$B$50:$D$59,3,FALSE)","v":"N/A"},{"$f":"VLOOKUP(G39,'SG - Component'!$B$50:$C$59,2,FALSE)","v":"-"},null,"","",{"$f":"IF(ISNUMBER(M39),-6.944*(M39/$C$19)*($C$18/8)^(0.3),\"\")","v":""},{"$f":"IF(ISNUMBER(N39/$C$17),N39/$C$17,\"\")","v":""}]
[null,null,"-",null,{"$f":"VLOOKUP(C40,'SG - Component'!$B$50:$D$59,3,FALSE)","v":"N/A"},{"$f":"VLOOKUP(C40,'SG - Component'!$B$50:$C$59,2,FALSE)","v":"-"},"-",null,{"$f":"VLOOKUP(G40,'SG - Component'!$B$50:$D$59,3,FALSE)","v":"N/A"},{"$f":"VLOOKUP(G40,'SG - Component'!$B$50:$C$59,2,FALSE)","v":"-"},null,"","","",""]
[null,"Fireplace","-",null,{"$f":"VLOOKUP(C41,'SG - Component'!$B$60:$D$63,3,FALSE)","v":"N/A"},{"$f":"VLOOKUP(C41,'SG - Component'!$B$60:$D$63,2,FALSE)","v":"-"},"-",null,{"$f":"VLOOKUP(G41,'SG - Component'!$B$60:$D$63,3,FALSE)","v":"N/A"},{"$f":"VLOOKUP(G41,'SG - Component'!$B$60:$D$63,2,FALSE)","v":"-"},null,"","","",""]
[null,"Floor Over Crawl Space","-",null,{"$f":"VLOOKUP(C42,'SG - Component'!$B$64:$D$67,3,FALSE)","v":"N/A"},{"$f":"VLOOKUP(C42,'SG - Component'!$B$64:$D$67,2,FALSE)","v":"-"},"-",null,{"$f":"VLOOKUP(G42,'SG - Component'!$B$64:$D$67,3,FALSE)","v":"N/A"},{"$f":"VLOOKUP(G42,'SG - Component'!$B$64:$D$67,2,FALSE)","v":"-"},null,"","","",""]
[null,"Joints","-",null,{"$f":"VLOOKUP(C43,'SG - Component'!$B$68:$D$73,3,FALSE)","v":"N/A"},{"$f":"VLOOKUP(C43,'SG - Component'!$B$68:$C$73,2,FALSE)","v":"-"},"-",null,{"$f":"VLOOKUP(G43,'SG - Component'!$B$68:$D$73,3,FALSE)","v":"N/A"},{"$f":"VLOOKUP(G43,'SG - Component'!$B$68:$C$73,2,FALSE)","v":"-"},null,"","","",""]
[null,null,"-",null,{"$f":"VLOOKUP(C44,'SG - Component'!$B$68:$D$73,3,FALSE)","v":"N/A"},{"$f":"VLOOKUP(C44,'SG - Component'!$B$68:$C$73,2,FALSE)","v":"-"},"-",null,{"$f":"VLOOKUP(G44,'SG - Component'!$B$68:$D$73,3,FALSE)","v":"N/A"},{"$f":"VLOOKUP(G44,'SG - Component'!$B$68:$C$73,2,FALSE)","v":"-"},null,"","","",""]
[null,"Penetrations","-",null,{"$f":"VLOOKUP(C45,'SG - Component'!$B$74:$D$79,3,FALSE)","v":"N/A"},{"$f":"VLOOKUP(C45,'SG - Component'!$B$74:$D$79,2,FALSE)","v":"-"},"-",null,{"$f":"VLOOKUP(G45,'SG - Component'!$B$74:$D$79,3,FALSE)","v":"N/A"},{"$f":"VLOOKUP(G45,'SG - Component'!$B$74:$D$79,2,FALSE)","v":"-"},null,"","","",""]
[null,null,"-",null,{"$f":"VLOOKUP(C46,'SG - Component'!$B$74:$D$79,3,FALSE)","v":"N/A"},{"$f":"VLOOKUP(C46,'SG - Component'!$B$74:$D$79,2,FALSE)","v":"-"},"-",null,{"$f":"VLOOKUP(G46,'SG - Component'!$B$74:$D$79,3,FALSE)","v":"N/A"},{"$f":"VLOOKUP(G46,'SG - Component'!$B$74:$D$79,2,FALSE)","v":"-"},null,"","","",""]
[null,"Window/ Window Framing","-",null,{"$f":"VLOOKUP(C47,'SG - Component'!$B$80:$D$106,3,FALSE)","v":"N/A"},{"$f":"VLOOKUP(C47,'SG - Component'!$B$80:$D$106,2,FALSE)","v":"-"},"-",null,{"$f":"VLOOKUP(G47,'SG - Component'!$B$80:$D$106,3,FALSE)","v":"N/A"},{"$f":"VLOOKUP(G47,'SG - Component'!$B$80:$D$106,2,FALSE)","v":"-"},null,"","","",""]
[null,null,"-",null,{"$f":"VLOOKUP(C48,'SG - Component'!$B$80:$D$106,3,FALSE)","v":"N/A"},{"$f":"VLOOKUP(C48,'SG - Component'!$B$80:$D$106,2,FALSE)","v":"-"},"-",null,{"$f":"VLOOKUP(G48,'SG - Component'!$B$80:$D$106,3,FALSE)","v":"N/A"},{"$f":"VLOOKUP(G48,'SG - Component'!$B$80:$D$106,2,FALSE)","v":"-"},null,"",{"$f":"IF(ISNUMBER(-F48*D48+J48*H48),-F48*D48+J48*H48,IF(ISNUMBER(L48),-D48*F48+L48,\"\"))","v":""},{"$f":"IF(ISNUMBER(M48),-6.944*(M48/$C$19)*($C$18/8)^(0.3),\"\")","v":""},{"$f":"IF(ISNUMBER(N48/$C$17),N48/$C$17,\"\")","v":""}]
[null,null,"-",null,{"$f":"VLOOKUP(C49,'SG - Component'!$B$80:$D$106,3,FALSE)","v":"N/A"},{"$f":"VLOOKUP(C49,'SG - Component'!$B$80:$D$106,2,FALSE)","v":"-"},"-",null,{"$f":"VLOOKUP(G49,'SG - Component'!$B$80:$D$106,3,FALSE)","v":"N/A"},{"$f":"VLOOKUP(G49,'SG - Component'!$B$80:$D$106,2,FALSE)","v":"-"},null,"",{"$f":"IF(ISNUMBER(-F49*D49+J49*H49),-F49*D49+J49*H49,IF(ISNUMBER(L49),-D49*F49+L49,\"\"))","v":""},{"$f":"IF(ISNUMBER(M49),-6.944*(M49/$C$19)*($C$18/8)^(0.3),\"\")","v":""},{"$f":"IF(ISNUMBER(N49/$C$17),N49/$C$17,\"\")","v":""}]
[null,null,"-",null,{"$f":"VLOOKUP(C50,'SG - Component'!$B$80:$D$106,3,FALSE)","v":"N/A"},{"$f":"VLOOKUP(C50,'SG - Component'!$B$80:$D$106,2,FALSE)","v":"-"},"-",null,{"$f":"VLOOKUP(G50,'SG - Component'!$B$80:$D$106,3,FALSE)","v":"N/A"},{"$f":"VLOOKUP(G50,'SG - Component'!$B$80:$D$106,2,FALSE)","v":"-"},null,"",{"$f":"IF(ISNUMBER(-F50*D50+J50*H50),-F50*D50+J50*H50,IF(ISNUMBER(L50),-D50*F50+L50,\"\"))","v":""},"",""]
[null,null,"-",null,{"$f":"VLOOKUP(C51,'SG - Component'!$B$80:$D$106,3,FALSE)","v":"N/A"},{"$f":"VLOOKUP(C51,'SG - Component'!$B$80:$D$106,2,FALSE)","v":"-"},"-",null,{"$f":"VLOOKUP(G51,'SG - Component'!$B$80:$D$106,3,FALSE)","v":"N/A"},{"$f":"VLOOKUP(G51,'SG - Component'!$B$80:$D$106,2,FALSE)","v":"-"},null,"",{"$f":"IF(ISNUMBER(-F51*D51+J51*H51),-F51*D51+J51*H51,IF(ISNUMBER(L51),-D51*F51+L51,\"\"))","v":""},"",""]
[null,null,"-",null,{"$f":"VLOOKUP(C52,'SG - Component'!$B$80:$D$106,3,FALSE)","v":"N/A"},{"$f":"VLOOKUP(C52,'SG - Component'!$B$80:$D$106,2,FALSE)","v":"-"},"-",null,{"$f":"VLOOKUP(G52,'SG - Component'!$B$80:$D$106,3,FALSE)","v":"N/A"},{"$f":"VLOOKUP(G52,'SG - Component'!$B$80:$D$106,2,FALSE)","v":"-"},null,"",{"$f":"IF(ISNUMBER(-F52*D52+J52*H52),-F52*D52+J52*H52,IF(ISNUMBER(L52),-D52*F52+L52,\"\"))","v":""},"",""]
[null,"Vents","-",null,{"$f":"VLOOKUP(C53,'SG - Component'!$B$107:$D$116,3,FALSE)","v":"N/A"},{"$f":"VLOOKUP(C53,'SG - Component'!$B$107:$D$116,2,FALSE)","v":"-"},"-",null,{"$f":"VLOOKUP(G53,'SG - Component'!$B$107:$D$116,3,FALSE)","v":"N/A"},{"$f":"VLOOKUP(G53,'SG - Component'!$B$107:$D$116,2,FALSE)","v":"-"},null,"","","",""]
[null,null,"-",null,{"$f":"VLOOKUP(C54,'SG - Component'!$B$107:$D$116,3,FALSE)","v":"N/A"},{"$f":"VLOOKUP(C54,'SG - Component'!$B$107:$D$116,2,FALSE)","v":"-"},"-",null,{"$f":"VLOOKUP(G54,'SG - Component'!$B$107:$D$116,3,FALSE)","v":"N/A"},{"$f":"VLOOKUP(G54,'SG - Component'!$B$107:$D$116,2,FALSE)","v":"-"},null,"","","",""]
[null,null,"-",null,{"$f":"VLOOKUP(C55,'SG - Component'!$B$107:$D$116,3,FALSE)","v":"N/A"},{"$f":"VLOOKUP(C55,'SG - Component'!$B$107:$D$116,2,FALSE)","v":"-"},"-",null,{"$f":"VLOOKUP(G55,'SG - Component'!$B$107:$D$116,3,FALSE)","v":"N/A"},{"$f":"VLOOKUP(G55,'SG - Component'!$B$107:$D$116,2,FALSE)","v":"-"},null,"","","",""]
[null,null,"-",null,{"$f":"VLOOKUP(C56,'SG - Component'!$B$107:$D$116,3,FALSE)","v":"N/A"},{"$f":"VLOOKUP(C56,'SG - Component'!$B$107:$D$116,2,FALSE)","v":"-"},"-",null,{"$f":"VLOOKUP(G56,'SG - Component'!$B$107:$D$116,3,FALSE)","v":"N/A"},{"$f":"VLOOKUP(G56,'SG - Component'!$B$107:$D$116,2,FALSE)","v":"-"},null,"",{"$f":"IF(ISNUMBER(-F56*D56+J56*H56),-F56*D56+J56*H56,IF(ISNUMBER(L56),-D56*F56+L56,\"\"))","v":""},"",""]
[null,null,null,null,null,null,null,null,null,null,null,""]

{"sheet":"SG - Component","index":22,"n_rows":123,"n_cols":5,"rows_kept":123,"cut":false,"hidden":true,"merged":[[118,0,118,4],[119,1,119,4],[120,1,120,4],[121,1,121,4]]}
["Air-Sealing Component Drop-Downs"]
[]
[null,null,"ELA, SqIn/unit","Unit"]
["Ceiling/ Ceiling Penetrations","-","-","N/A"]
[null,"General Ceiling (well-sealed)",1.0999999999999999E-2,"ft2 ","2001 ASHRAE Fundamentals"]
[null,"General Ceiling (average)",2.5999999999999999E-2,"ft2 ","2001 ASHRAE Fundamentals"]
[null,"General Ceiling (very-leaky)",0.04,"ft2 ","2001 ASHRAE Fundamentals"]
[null,"Ceiling/ Flue vents (well-sealed)",4.3,"each","2001 ASHRAE Fundamentals"]
[null,"Ceiling/ Flue vents (average to very leaky)",4.8,"each","2001 ASHRAE Fundamentals"]
[null,"Lights, Recessed (well-sealed)",0.23,"each","2001 ASHRAE Fundamentals"]
[null,"Lights, Recessed (average)",1.6,"each","2001 ASHRAE Fundamentals"]
[null,"Lights, Recessed (very leaky)",3.3,"each","2001 ASHRAE Fundamentals"]
[null,"Lights, Surface Mounted (average)",0.13,"each","2001 ASHRAE Fundamentals"]
["Crawl Space","-","-","N/A"]
[null,"Crawl Space/ Open chase (well- sealed)",0.1,"ft2 ","2001 ASHRAE Fundamentals"]
[null,"Crawl Space/ Open chase (average)",0.14399999999999999,"ft2 ","2001 ASHRAE Fundamentals"]
[null,"Crawl Space/ Open chase (very leaky)",0.24,"ft2 ","2001 ASHRAE Fundamentals"]
["Doors","-","-","N/A"]
[null,"Framing- General (well-sealed)",0.37,"each","2001 ASHRAE Fundamentals"]
[null,"Framing- General (average)",1.9,"each","2001 ASHRAE Fundamentals"]
[null,"Framing- General (very leaky)",3.9,"each","2001 ASHRAE Fundamentals"]
[null,"Framing- Masonry, caulked",1.4E-2,"ft2 ","2001 ASHRAE Fundamentals"]
[null,"Framing- Masonry, not caulked",2.4E-2,"ft2 ","2001 ASHRAE Fundamentals"]
[null,"Framing- Wood, caulked",4.0000000000000001E-3,"ft2 ","2001 ASHRAE Fundamentals"]
[null,"Framing- Wood, not caulked",2.4E-2,"ft2 ","2001 ASHRAE Fundamentals"]
[null,"Attic/ Crawl Space, weatherstripped",2.8,"each","2001 ASHRAE Fundamentals"]
[null,"Attic/ Crawl Space, not weatherstripped",4.5999999999999996,"each","2001 ASHRAE Fundamentals"]
[null,"Attic Hatch, not weatherstripped",6.8,"each","2001 ASHRAE Fundamentals"]
[null,"Attic Hatch, weatherstripped",3.4,"each","2001 ASHRAE Fundamentals"]
[null,"Attic Hatch, weatherstripped, insulated",0.6,"each","2001 ASHRAE Fundamentals"]
[null,"Elevator (well-sealed)",2.1999999999999999E-2,"each","2001 ASHRAE Fundamentals"]
[null,"Elevator (average)",0.04,"each","2001 ASHRAE Fundamentals"]
[null,"Double, weatherstripped",0.12,"ft2 ","2001 ASHRAE Fundamentals"]
[null,"Double, not weatherstripped",0.16,"ft2 ","2001 ASHRAE Fundamentals"]
[null,"Interior Stairs (well-sealed)",1.2E-2,"ft (crack)","2001 ASHRAE Fundamentals"]
[null,"Interior Stairs (average)",0.04,"ft (crack)","2001 ASHRAE Fundamentals"]
[null,"Interior Stairs (leaky)",7.0000000000000007E-2,"ft (crack)","2001 ASHRAE Fundamentals"]
[null,"Replacement Doors, cfm/ft known (enter cfm/ft in Additional Info)","-","ft","2001 ASHRAE Fundamentals"]
[null,"Replacement Doors, cfm/sq ft known (enter cfm/sq ft in Additional Info)","-","sq ft","2001 ASHRAE Fundamentals"]
[null,"Single, weatherstripped",1.9,"each","2001 ASHRAE Fundamentals"]
[null,"Single, not weatherstripped",3.3,"each","2001 ASHRAE Fundamentals"]
[null,"Sliding Exterior Glass Patio (well-sealed)",0.46,"each","2001 ASHRAE Fundamentals"]
[null,"Sliding Exterior Glass Patio (average)",3.4,"each","2001 ASHRAE Fundamentals"]
[null,"Sliding Exterior Glass Patio (very leaky)",9.3000000000000007,"each","2001 ASHRAE Fundamentals"]
[null,"Storm (select in addition to other doors)",-0.9,"each","2001 ASHRAE Fundamentals"]
[null,"Vestibule (select in addition to other door)",-1.6,"each","2001 ASHRAE Fundamentals"]
["Electrical Outlets","-","-","N/A"]
[null,"Elec outlets/ switches w/ gaskets",2.3E-2,"each","2001 ASHRAE Fundamentals"]
[null,"Elec outlets/switches w/o gaskets",0.38,"each","2001 ASHRAE Fundamentals"]
["Exterior Wall","-","-","N/A"]
[null,"Clay brick Cavity Wall",9.7999999999999997E-3,"ft2 ","2001 ASHRAE Fundamentals"]
[null,"Continuous Air Infiltration Barrier",2.2000000000000001E-3,"ft2 ","2001 ASHRAE Fundamentals"]
[null,"Heavyweight concrete block",3.5999999999999999E-3,"ft2 ","2001 ASHRAE Fundamentals"]
[null,"Lightweight concrete block, unfinished",0.05,"ft2 ","2001 ASHRAE Fundamentals"]
[null,"Lightweight concrete block, painted or stucco",1.6E-2,"ft2 ","2001 ASHRAE Fundamentals"]
[null,"Rigid Sheathing",5.0000000000000001E-3,"ft2 ","2001 ASHRAE Fundamentals"]
[null,"Wood frame w/ dense packed or wet cellulose",{"$f":"0.004","v":4.0000000000000001E-3},"ft2 ","Estimated [2]"]
[null,"Wood-frame w/o Air Barrier System (average)",7.1000000000000004E-3,"ft2 ","Estimated [2]"]
[null,"Wood-frame w/o Air Barrier System (leaky)",0.01,"ft2 ","Estimated [2]"]
["Fireplace","-","-","N/A"]
[null,"With open damper",5.04,"ft2 ","2001 ASHRAE Fundamentals"]
[null,"With closed damper",0.62,"ft2 ","2001 ASHRAE Fundamentals"]
[null,"With glass door",0.57999999999999996,"ft2 ","2001 ASHRAE Fundamentals"]
["Floor Over Crawl Space","-","-","N/A"]
[null,"Floor over Crawl Space (well- sealed)",6.0000000000000001E-3,"ft2 ","2001 ASHRAE Fundamentals"]
[null,"Floor over Crawl Space (average)",3.2000000000000001E-2,"ft2 ","2001 ASHRAE Fundamentals"]
[null,"Floor over Crawl Space (very leaky)",7.0999999999999994E-2,"ft2 ","2001 ASHRAE Fundamentals"]
["Joints","-","-","N/A"]
[null,"Joint- Floor/Wall caulked",0.04,"ft (crack)","2001 ASHRAE Fundamentals"]
[null,"Joint- Floor/Wall uncaulked",0.2,"ft (crack)","2001 ASHRAE Fundamentals"]
[null,"Joint- Ceiling/Wall (well-sealed)",7.4999999999999997E-3,"ft (crack)","2001 ASHRAE Fundamentals"]
[null,"Joint- Ceiling/Wall (average)",7.0000000000000007E-2,"ft (crack)","2001 ASHRAE Fundamentals"]
[null,"Joint- Ceiling/Wall (very leaky)",0.12,"ft (crack)","2001 ASHRAE Fundamentals"]
["Penetrations","-","-","N/A"]
[null,"Penetrations- Pipes/Wiring, caulked (any size)",0.3,"each","2001 ASHRAE Fundamentals"]
[null,"Penetrations- Pipes/Wiring, uncaulked ",0.9,"each","2001 ASHRAE Fundamentals"]
[null,"Penetrations- Pipes/Wiring, uncaulked (large)",3.7,"each","2001 ASHRAE Fundamentals"]
[null,"Air-conditioner Sleeve, caulked",1.9,"each","Estimated [3]"]
[null,"Air-conditioner Sleeve, uncaulked",3.9,"each","Estimated [3]"]
["Windows","-","-","N/A"]
[null,"Framing- masonry, caulked",1.9E-2,"ft2 ","2001 ASHRAE Fundamentals"]
[null,"Framing- masonry, uncaulked",9.4E-2,"ft2 ","2001 ASHRAE Fundamentals"]
[null,"Framing- wood, caulked",4.0000000000000001E-3,"ft2 ","2001 ASHRAE Fundamentals"]
[null,"Framing- wood, uncaulked",2.5000000000000001E-2,"ft2 ","2001 ASHRAE Fundamentals"]
[null,"Awning/ Hopper, weatherstripped",1.2E-2,"ft2 ","2001 ASHRAE Fundamentals"]
[null,"Awning/ Hopper, not weatherstripped",2.3E-2,"ft2 ","2001 ASHRAE Fundamentals"]
[null,"Casement, weatherstripped",1.0999999999999999E-2,"ft (crack)","2001 ASHRAE Fundamentals"]
[null,"Casement, not weatherstripped",1.2999999999999999E-2,"ft (crack)","2001 ASHRAE Fundamentals"]
[null,"Double hung, with storm, weatherstripped",3.1E-2,"ft (crack)","2001 ASHRAE Fundamentals [1]"]
[null,"Double hung, with storm, not weatherstripped",4.5999999999999999E-2,"ft (crack)","2001 ASHRAE Fundamentals"]
[null,"Double hung, weatherstripped",3.6999999999999998E-2,"ft (crack)","2001 ASHRAE Fundamentals [1]"]
[null,"Double hung, not weatherstripped",0.12,"ft (crack)","2001 ASHRAE Fundamentals"]
[null,"Double horizontal slider, wood, weatherstripped",2.5999999999999999E-2,"ft (crack)","2001 ASHRAE Fundamentals"]
[null,"Double horizontal slider, aluminum, weatherstripped",3.4000000000000002E-2,"ft (crack)","2001 ASHRAE Fundamentals"]
[null,"Double horizontal slider, not weatherstripped",5.1999999999999998E-2,"ft (crack)","2001 ASHRAE Fundamentals"]
[null,"Replacement Windows (enter NFRC AL)","-","ft2 ","2001 ASHRAE Fundamentals"]
[null,"Sill (well-sealed)",6.4999999999999997E-3,"ft (crack)","2001 ASHRAE Fundamentals"]
[null,"Sill (average)",9.9000000000000008E-3,"ft (crack)","2001 ASHRAE Fundamentals"]
[null,"Sill (very leaky)",0.01,"ft (crack)","2001 ASHRAE Fundamentals"]
[null,"Single hung, weatherstripped",4.1000000000000002E-2,"ft (sash)","2001 ASHRAE Fundamentals"]
[null,"Single horizontal slider, aluminum",0.04,"ft (sash)","2001 ASHRAE Fundamentals"]
[null,"Single horizontal slider, wood",2.1000000000000001E-2,"ft (sash)","2001 ASHRAE Fundamentals"]
[null,"Storm Inside, flexible sheet with a mechanical seal",7.1999999999999998E-3,"ft (sash)","2001 ASHRAE Fundamentals"]
[null,"Storm Inside, rigid sheet with magnetic seal",5.5999999999999999E-3,"ft (sash)","2001 ASHRAE Fundamentals"]
[null,"Storm Inside, rigid sheet with mechanical seal",1.9E-2,"ft (sash)","2001 ASHRAE Fundamentals"]
[null,"Storm Outside, pressurized track",2.5000000000000001E-2,"ft (sash)","2001 ASHRAE Fundamentals"]
["Vent","-","-","N/A"]
[null,"Bathroom with damper closed",1.6,"each","2001 ASHRAE Fundamentals"]
[null,"Bathroom with damper open",3.1,"each","2001 ASHRAE Fundamentals"]
[null,"Ceiling/ Flue vents (well-sealed)",4.3,"each","2001 ASHRAE Fundamentals"]
[null,"Ceiling/ Flue vents (average to very leaky)",4.8,"each","2001 ASHRAE Fundamentals"]
[null,"Dryer with damper ",0.46,"each","2001 ASHRAE Fundamentals"]
[null,"Dryer without damper",2.2999999999999998,"each","2001 ASHRAE Fundamentals"]
[null,"Kitchen with tight gasket",0.16,"each","2001 ASHRAE Fundamentals"]
[null,"Kitchen with damper closed",0.8,"each","2001 ASHRAE Fundamentals"]
[null,"Kitchen with damper open",6.2,"each","2001 ASHRAE Fundamentals"]
[]
["[1] In ASHRAE table, double hung with storm is leakier than double hung without storm. Flipped the values for consistency."]
["[2] Estimated based on the following references:"]
[null,"2001 ASHRAE Handbook- Fundamentals. Atlanta: American Society of heating, Refrigerating and Air-Conditioning Engineers, Inc."]
[null,"TenWolde, Anton, Charles Carl, Vyto Malinauskas. 1998. Air Pressures in Wood Frame Walls. Thermal Performance of the Exterior Envelopes of Buildings VII. Clearwater beach, FL."]
[null,"Canada Mortgage and Housing Corporation. Research and Highlight Developments- Wet sprayed cellulose insulation in Wood frame construction. Technical Series 90-240"]
["[3] Estimated assuming that leakage through caulked/un-caulked AC sleeve is similar to leakage through average/very leaky general door framing"]

{"sheet":"Mechanical","index":23,"n_rows":159,"n_cols":29,"rows_kept":159,"cut":false,"hidden":false,"merged":[[61,19,61,22],[62,19,62,22],[63,19,63,22],[155,4,155,15],[156,4,156,15],[157,4,157,15],[158,4,158,15],[146,1,146,2],[147,1,147,2],[148,1,148,2],[149,1,149,2],[150,1,150,2],[151,1,151,2],[152,1,152,2],[153,1,153,2],[154,1,154,2],[155,1,155,2],[156,1,156,2],[157,1,157,2],[158,1,158,2],[146,4,146,15],[147,4,147,15],[148,4,148,15],[149,4,149,15],[150,4,150,15],[151,4,151,15],[152,4,152,15],[91,7,91,12],[39,19,39,22],[40,19,40,22],[41,19,41,22],[64,19,64,22],[65,19,65,22],[66,19,66,22],[67,19,67,22],[68,19,68,22],[69,19,69,22],[70,19,70,22],[84,18,84,20],[85,18,85,20],[76,18,76,20],[82,18,82,20],[83,18,83,20],[73,18,73,20],[74,18,74,20],[75,18,75,20],[60,19,60,22],[86,18,86,20],[153,4,153,15],[154,4,154,15],[99,13,99,20],[100,13,100,20],[101,13,101,20],[120,13,120,20],[121,13,121,20],[122,13,122,20],[123,13,123,20],[124,13,124,20],[134,13,134,20],[135,13,135,20],[109,13,109,20],[110,13,110,20],[111,13,111,20],[112,13,112,20],[113,13,113,20],[114,13,114,20],[115,13,115,20],[138,13,138,20],[139,13,139,20],[140,13,140,20],[141,13,141,20],[142,13,142,20],[77,18,77,20],[78,18,78,20],[79,18,79,20],[80,18,80,20],[81,18,81,20],[87,18,87,20],[136,13,136,20],[137,13,137,20],[116,13,116,20],[117,13,117,20],[132,13,132,20],[133,13,133,20],[118,13,118,20],[119,13,119,20],[125,13,125,20],[126,13,126,20],[127,13,127,20],[128,13,128,20],[129,13,129,20],[130,13,130,20],[131,13,131,20],[143,13,143,20],[88,18,88,20],[89,18,89,20],[92,13,92,20],[93,13,93,20],[94,13,94,20],[95,13,95,20],[96,13,96,20],[97,13,97,20],[98,13,98,20],[102,13,102,20],[103,13,103,20],[104,13,104,20],[105,13,105,20],[106,13,106,20],[107,13,107,20],[108,13,108,20],[59,19,59,22],[43,19,43,22],[44,19,44,22],[45,19,45,22],[46,19,46,22],[47,19,47,22],[48,19,48,22],[49,19,49,22],[50,19,50,22],[51,19,51,22],[2,1,2,7],[2,8,2,12],[52,19,52,22],[53,19,53,22],[54,19,54,22],[55,19,55,22],[56,19,56,22],[57,19,57,22],[58,19,58,22],[5,12,5,13],[5,16,5,17],[34,13,34,14],[34,19,34,22],[35,19,35,22],[36,19,36,22],[37,19,37,22],[38,19,38,22],[42,19,42,22],[5,21,5,23]]}
[null,"Mechanical Schedule"]
[null,"Instructions"]
[null,"1) Fill out the schedules below to describe the mechanical systems at the facility. Enter all data pertianing to each system.\n2) If information is not available, such as due to age of the equipment, input values used in the model. \n3) Use the \"Measure ?\" column to indicate items that are affected by the proposed workscope. Reference Program Guidelines v4.2, Section 4.6.3 for data required for various mechanical measures.\n4) Read the notes indicated by red corners to assist in properly completing this tab.\n5) Use the Additional Notes column to provide additonal detail, including special operating conditions, metering completed, or other information to support your baseline model assumptions. Indicate any obvious problems such as duct leakage, unconnected ducts, clogged grilles, or inoperable fans.",null,null,null,null,null,null,"JUMP TO:"]
[]
[{"$f":"IF(SUM($A$8:$A$32)=0,0,1)","v":0},"Air-Side HVAC "]
[{"$f":"IF(SUM($A$8:$A$32)=0,0,1)","v":0},"HVAC ID","Measure?","Equipment Type","Location","Areas Served","Number of Identical Units","Manufacturer","Model #","Year of Mfr","Cooling Type","Cooling Capacity (mbh)","Cooling Efficiency                   ",null,"Heating Type","Heating Capacity\n(mbh)","Heating Efficiency                   ",null,"Additional Zone Heating","Supply Air\n(cfm)","Outside Air\n(cfm)","Fan HP\nSupply                       Return                       Exhaust",null,null,"Supply Air Control","Heat Recovery","Recovery Effectiveness","Economizer","Additional Notes"]
[0,"Example","Yes","Packaged AHU","Roof","Administration",1,"Trane","YSC060",2006,"DX",36.299999999999997,12,"SEER","Gas Furnace",103.4,0.8,"Et","None",1500,150,1,"N/A","N/A","Constant","N/A",null,"None"]
[{"$f":"IF(COUNTBLANK(B8:AC8)=28,0,1)","v":0}]
[{"$f":"IF(COUNTBLANK(B9:AC9)=28,0,1)","v":0}]
[0]
[0]
[0]
[0]
[0]
[0]
[0]
[0]
[0]
[0]
[0]
[0]
[0]
[0]
[0]
[0]
[0]
[0]
[0]
[0]
[0]
[0]
[0]
[{"$f":"IF(SUM($A$37:$A$71)=0,0,1)","v":0}]
[{"$f":"IF(SUM($A$37:$A$71)=0,0,1)","v":0},"Boilers and Domestic Water Heaters"]
[0,"Boiler or DHW ID","Measure?","Location","HVAC or Area Served","Number of Identical Units","Manufacturer","Model Number","Year of Mfr","Equipment Type","Distribution Type","Fuel Type","Capacity (mbh)","Efficiency ",null,"Combustion Fan HP","Feedwater Pump HP","Circulation Pump HP","Pump Control","Additional Notes"]
[0,"Example","Yes","Boiler Room","Entire Building",2,"H. B. Smith","Mills 450A-12",{"$f":"2009-23","v":1986},"Hot Water Boiler","Hot Water","Natural Gas",200,70,"AFUE","N/A","N/A",1.5,"Constant Volume"]
[{"$f":"IF(COUNTBLANK(B37:W37)=22,0,1)","v":0}]
[{"$f":"IF(COUNTBLANK(B38:W38)=22,0,1)","v":0}]
[0]
[0]
[0]
[0]
[0]
[0]
[0]
[0]
[0]
[0]
[0]
[0]
[0]
[0]
[0]
[0]
[0]
[0]
[0]
[0]
[0]
[0]
[0]
[0]
[0]
[0]
[0]
[0]
[0]
[0]
[0]
[0]
[0]
[{"$f":"IF(SUM($A$76:$A$90)=0,0,1)","v":0}]
[{"$f":"IF(SUM($A$76:$A$90)=0,0,1)","v":0},"Chillers and Condensers"]
[0,"Chiller ID","Measure?","Location","HVAC Served","Number of Identical Units","Manufacturer","Model Number","Year of Mfr","Equipment Type","Capacity (tons)","Type of Refrigerant","AHRI Rated Full Load Efficiency (kW/ton)","Integrated Part-load Efficiency (IPLV)","Condenser Type","Tower or Condenser Fan HP","Num. of Fans","Condenser Fan Control","Additional Notes"]
[0,"Ex","Yes","Utility Room","All",1,"York Millenium","YKJFBJ4-DHES",2005,"Gas Absorption",1600,"R134a",0.73099999999999998,0.66700000000000004,"Water-cooled",75,1,"VFD"]
[{"$f":"IF(COUNTBLANK(B76:U76)=20,0,1)","v":0}]
[{"$f":"IF(COUNTBLANK(B77:U77)=20,0,1)","v":0}]
[0]
[0]
[0]
[0]
[0]
[0]
[0]
[0]
[0]
[0]
[0]
[0]
[0]
[{"$f":"IF(SUM($A$95:$A$144)=0,0,1)","v":0}]
[{"$f":"IF(SUM($A$95:$A$144)=0,0,1)","v":0},"Motors (not already included in above tables)",null,null,null,null,null,"Nameplate Data"]
[0,"Motor ID","Measure?","Number of Identical Units","Loading (constant/ variable)","Affiliated System","Control Type","Manufacturer","Model Number","Motor HP","Nominal Efficiency","Synchronous Speed (RPM)","Type: TEFC or ODP","Additional Notes"]
[0,"Example","Yes",1,"Constant","Hot Water System Pump","Switch","Baldor","UTC-F9R-334-2",1.5,0.75,1730,"ODP"]
[{"$f":"IF(COUNTBLANK(B95:U95)=20,0,1)","v":0}]
[0]
[0]
[0]
[0]
[0]
[0]
[0]
[0]
[0]
[0]
[0]
[0]
[0]
[0]
[0]
[0]
[0]
[0]
[0]
[0]
[0]
[0]
[0]
[0]
[0]
[0]
[0]
[0]
[0]
[0]
[0]
[0]
[0]
[0]
[0]
[0]
[0]
[0]
[0]
[0]
[0]
[0]
[0]
[0]
[0]
[0]
[0]
[0]
[0]
[{"$f":"IF(SUM($A$148:$A$159)=0,0,1)","v":0}]
[{"$f":"IF(SUM($A$148:$A$159)=0,0,1)","v":0},"Other Mechanical Systems Not Included Above (including any existing controls, automation, or management systems)"]
[0,"Name of System",null,"Measure?","System Description/Additional Notes"]
[{"$f":"IF(COUNTBLANK(B148:P148)=15,0,1)","v":0}]
[{"$f":"IF(COUNTBLANK(B149:P149)=15,0,1)","v":0}]
[0]
[0]
[0]
[0]
[0]
[0]
[0]
[0]
[0]
[0]

{"sheet":"Lighting","index":24,"n_rows":1066,"n_cols":51,"rows_kept":1066,"cut":false,"hidden":false,"merged":[[1020,39,1020,40],[18,39,18,45],[1012,1,1012,6],[1012,7,1012,18],[1012,19,1012,32],[1012,36,1012,37],[1012,33,1012,34],[19,39,42,45],[5,47,5,48],[5,49,5,50],[1012,47,1012,48],[1012,49,1012,50],[2,1,2,7],[5,1,5,6],[5,7,5,18],[5,19,5,32],[8,39,8,40],[5,36,5,37],[5,33,5,34]]}
[null,"Lighting Schedule"]
[null,"Instructions"]
[null,"1) Fill out the schedule below to describe the lighting at the facility. Include both interior and exterior lighting (see second table below for exterior lighting table). \n2) Read the notes indicated by red corners to assist in properly completing this tab. \n3) Location information must be detailed enough for the Program to perform a site inspection.\n4) Use the \"Measure ?\" column to indicate items that are affected by the proposed workscope. \n5) Reference Program Guidelines v4.2, Section 4.6.3 for data required for lighting and lighting control measures.Reference Program Guidelines v4.2 Appendix A to ensure proposed fixtures and controls comply with minimum performance standards. \n6) Use the Additional Notes section to the left to provide additonal detail, including special operating conditions, metering completed, or other information to support your baseline model assumptions.\n7) Default Watts/Fixture are based on the 2005 Nonresidential ACM Manual, Appendix NB."]
[]
[1,"Interior Lighting"]
[1,"Location ",null,null,null,null,null,"Existing",null,null,null,null,null,null,null,null,null,null,null,"Proposed",null,null,null,null,null,null,null,null,null,null,null,null,null,"Savings",null,null,"Annual Runtime Hours ",null,null,null,null,null,null,null,null,null,null,"Existing",null,"Proposed"]
[1,null,"Building\n(from 'Area Identification')","Building Area\n(from 'Area Identification')","Building Type\n(from 'Area Identification')","Floor #","Area and/or Room/Unit Number","Technology Type","Fixture/Lamp Description","Ballast  ","Default Watts / Fixture","Actual Watts/Fixture (if different from default)","Watts/Fixture Source","Fixture Qty.","Control Type","Default Reduction Factor","Actual Reduction Factor\n(if different from default)","Controls Qty.","Total  Watts","Fixture Measure?","Technology Type","Fixture/Lamp Description","Ballast  ","Default Watts / Fixture","Actual Watts/Fixture (if different from default)","Watts/Fixture Source","Fixture Qty.","Controls Measure? ","Control Type","Default Reduction Factor","Actual Reduction Factor\n(if different from default)","Controls Qty.","Total Watts","Watts Saved","% Savings",null,"Existing Lighting Hours\n(per Protocols)","Proposed Lighting Hours\n(per Protocols)",null,null,null,null,null,null,null,null,null,"Min Watts","Max Watts","Min Watts","Max Watts"]
[0,"Ex","Building 1 ","Classroom/Lecture/Training","Education – Primary School","Ground Floor","Classroom 101","Linear Fluorescent - T12","4' T12 (40W) - 3L","Magnetic",{"$f":"IFERROR(IF(OR(H8=\"\",I8=\"\")=TRUE,0,VLOOKUP(I8,INDIRECT(SUBSTITUTE(SUBSTITUTE(H8,\" \",\"_\"),\"-\",\"_\")&\"W\"),2,FALSE)),\"N/A\")","v":127},null,null,2,"Occ. Sensor Ceiling Mount (low volt)",{"$f":"IFERROR(IF(O8=\"\",0,1-VLOOKUP(O8,Prop_Sens_Table,2,FALSE)),\"N/A\")","v":9.9999999999999978E-2},null,1,{"$f":"IF(L8=\"\",K8*N8,L8*N8)","v":254},"Yes","Linear Fluorescent - RWT8","4' RWT8 (28W) - 3L","Electronic",{"$f":"IFERROR(IF(T8=\"No\",K8,IF(U8=\"\",0,IF(LEFT(U8,1)=\"*\",K8,IF(V8=\"\",0,VLOOKUP(V8,INDIRECT(SUBSTITUTE(SUBSTITUTE(U8,\" \",\"_\"),\"-\",\"_\")&\"W\"),2,FALSE))))),\"N/A\")","v":72},{"$f":"IF($T8=\"No\",IF(L8=\"\",\"\",L8),\"\")","v":""},"",2,"Yes","Occ. Sensor Ceiling Mount (line volt)",{"$f":"IFERROR(IF($AB8=\"No\",P8,IF(AC8=\"\",0,1-VLOOKUP(AC8,Prop_Sens_Table,2,FALSE))),\"N/A\")","v":9.9999999999999978E-2},null,1,{"$f":"IF($T8=\"\",0,IF(T8=\"No\",S8,IF(Y8=\"\",X8*AA8,Y8*AA8)))","v":144},{"$f":"S8-AG8","v":110},{"$f":"IFERROR(1-(AG8/S8),0)","v":0.43307086614173229},null,{"$f":"IF(E8=\"\",\"\",(1-IF(Q8=\"\",P8,Q8))*VLOOKUP(E8,BuildingType_RunHours,2,FALSE))","v":1296},{"$f":"IF(E8=\"\",\"\",(1-IF(AE8=\"\",AD8,AE8))*VLOOKUP(E8,BuildingType_RunHours,2,FALSE))","v":1296},null,null,null,null,null,null,null,null,null,{"$f":"IF(ISERROR(VLOOKUP($I8,LightWattLimits,2,FALSE))=TRUE,\"\",VLOOKUP($I8,LightWattLimits,2,FALSE))","v":""},{"$f":"IF(ISERROR(VLOOKUP($I8,LightWattLimits,3,FALSE))=TRUE,\"\",VLOOKUP($I8,LightWattLimits,3,FALSE))","v":""},{"$f":"IF(ISERROR(VLOOKUP($V8,LightWattLimits,2,FALSE))=TRUE,\"\",VLOOKUP($V8,LightWattLimits,2,FALSE))","v":""},{"$f":"IF(ISERROR(VLOOKUP($V8,LightWattLimits,3,FALSE))=TRUE,\"\",VLOOKUP($V8,LightWattLimits,3,FALSE))","v":""}]
[{"$f":"IF(C9=\"\",0,1)","v":0},1,null,null,{"$f":"IFERROR(VLOOKUP(C9,BuildingNameTable,2,FALSE),\"\")","v":""},null,null,null,null,null,{"$f":"IFERROR(IF(OR(H9=\"\",I9=\"\")=TRUE,0,VLOOKUP(I9,INDIRECT(SUBSTITUTE(SUBSTITUTE(H9,\" \",\"_\"),\"-\",\"_\")&\"W\"),2,FALSE)),\"N/A\")","v":0},null,null,null,null,0,null,null,{"$f":"IF(L9=\"\",N(K9)*N9,L9*N9)","v":0},null,null,null,null,{"$f":"IFERROR(IF(T9=\"No\",K9,IF(U9=\"\",0,IF(LEFT(U9,1)=\"*\",K9,IF(V9=\"\",0,VLOOKUP(V9,INDIRECT(SUBSTITUTE(SUBSTITUTE(U9,\" \",\"_\"),\"-\",\"_\")&\"W\"),2,FALSE))))),\"N/A\")","v":0},"","",{"$f":"IF($T9=\"No\",IF(N9=\"\",\"\",N9),\"\")","v":""},null,{"$f":"IF($AB9=\"No\",IF(O9=\"\",\"\",O9),\"\")","v":""},0,{"$f":"IF($AB9=\"No\",IF(Q9=\"\",\"\",Q9),\"\")","v":""},{"$f":"IF($AB9=\"No\",IF(R9=\"\",\"\",R9),\"\")","v":""},{"$f":"IF($T9=\"\", 0,IF(T9=\"No\",S9,IF(Y9=\"\",X9*AA9,Y9*AA9)))","v":0},0,0,null,"","",null,"Annual Runtime Hours ",null,null,null,null,null,null,null,"","","",""]
[{"$f":"IF(C10=\"\",0,1)","v":0},{"$f":"B9+1","v":2},null,null,"",null,null,null,null,null,0,null,null,null,null,0,null,null,{"$f":"IF(L10=\"\",N(K10)*N10,L10*N10)","v":0},null,{"$f":"IF($T10=\"No\",IF(H10=\"\",\"\",H10),\"\")","v":""},{"$f":"IF($T10=\"No\",IF(I10=\"\",\"\",I10),\"\")","v":""},{"$f":"IF($T10=\"No\",IF(J10=\"\",\"\",J10),\"\")","v":""},{"$f":"IFERROR(IF(T10=\"No\",K10,IF(U10=\"\",0,IF(LEFT(U10,1)=\"*\",K10,IF(V10=\"\",0,VLOOKUP(V10,INDIRECT(SUBSTITUTE(SUBSTITUTE(U10,\" \",\"_\"),\"-\",\"_\")&\"W\"),2,FALSE))))),\"N/A\")","v":0},{"$f":"IF($T10=\"No\",IF(L10=\"\",\"\",L10),\"\")","v":""},{"$f":"IF($T10=\"No\",IF(M10=\"\",\"\",M10),\"\")","v":""},{"$f":"IF($T10=\"No\",IF(N10=\"\",\"\",N10),\"\")","v":""},null,"",0,"","",0,0,0,null,"","",null,"Existing Lighting Hours (as modeled)",{"$f":"IF(N('Measure Simulation'!F11)=0,\"-\",'Measure Simulation'!F11/0.003412/((S1009)/1000))","v":"-"},null,null,null,null,null,null,"","","",""]
[0,{"$f":"B10+1","v":3},null,null,"",null,null,null,null,null,0,null,null,null,null,0,null,null,0,null,"","","",0,"","","",null,"",0,"","",0,0,0,null,"","",null,"Existing Lighting Hours (per Protocols)",{"$f":"IFERROR((SUMPRODUCT(S9:S1008,AK9:AK1008))/(S1009),\"-\")","v":"-"},null,null,null,null,null,null,"","","",""]
[0,4,null,null,"",null,null,null,null,null,0,null,null,null,null,0,null,null,0,null,"","","",0,"","","",null,"",0,"","",0,0,0,null,"","",null,"% Difference in Existing Lighting Hours",{"$f":"IFERROR(ABS((AO10-AO11)/AO11),\"-\")","v":"-"},null,null,null,null,null,null,"","","",""]
[0,5,null,null,"",null,null,null,null,null,0,null,null,null,null,0,null,null,0,null,"","","",0,"","","",null,"",0,"","",0,0,0,null,"","",null,"Proposed Lighting Hours (as modeled)",{"$f":"IF(N('Measure Simulation'!G11)=0,\"-\",'Measure Simulation'!G11/0.003412/((AG1009)/1000))","v":"-"},null,null,null,null,null,null,"","","",""]
[0,6,null,null,"",null,null,null,null,null,0,null,null,null,null,0,null,null,0,null,"","","",0,"","","",null,"",0,"","",0,0,0,null,"","",null,"Proposed Lighting Hours (per Protocols)",{"$f":"IFERROR((SUMPRODUCT(AG9:AG1008,AL9:AL1008))/(AG1009),\"-\")","v":"-"},null,null,null,null,null,null,"","","",""]
[0,7,null,null,"",null,null,null,null,null,0,null,null,null,null,0,null,null,0,null,"","","",0,"","","",null,"",0,"","",0,0,0,null,"","",null,"% Reduction in Lighting Hours (as modeled)",{"$f":"IFERROR(1-(AO13/AO10),\"-\")","v":"-"},null,null,null,null,null,null,"","","",""]
[0,8,null,null,"",null,null,null,null,null,0,null,null,null,null,0,null,null,0,null,"","","",0,"","","",null,"",0,"","",0,0,0,null,"","",null,"% Reduction in Lighting Hours (per Protocols)",{"$f":"IFERROR(1-(AO14/AO11),\"-\")","v":"-"},null,null,null,null,null,null,"","","",""]
[0,9,null,null,"",null,null,null,null,null,0,null,null,null,null,0,null,null,0,null,"","","",0,"","","",null,"",0,"","",0,0,0,null,"","",null,"% Difference in Reduced Hours",{"$f":"IFERROR(ABS((AO15-AO16)/AO16),\"-\")","v":"-"},null,null,null,null,null,null,"","","",""]
[0,10,null,null,"",null,null,null,null,null,0,null,null,null,null,0,null,null,0,null,"","","",0,"","","",null,"",0,"","",0,0,0,null,"","",null,null,null,null,null,null,null,null,null,"","","",""]
[0,11,null,null,"",null,null,null,null,null,0,null,null,null,null,0,null,null,0,null,"","","",0,"","","",null,"",0,"","",0,0,0,null,"","",null,"Additional Notes",null,null,null,null,null,null,null,"","","",""]
[0,12,null,null,"",null,null,null,null,null,0,null,null,null,null,0,null,null,0,null,"","","",0,"","","",null,"",0,"","",0,0,0,null,"","",null,null,null,null,null,null,null,null,null,"","","",""]
[0,13,null,null,"",null,null,null,null,null,0,null,null,null,null,0,null,null,0,null,"","","",0,"","","",null,"",0,"","",0,0,0,null,"","",null,null,null,null,null,null,null,null,null,"","","",""]
[0,14,null,null,"",null,null,null,null,null,0,null,null,null,null,0,null,null,0,null,"","","",0,"","","",null,"",0,"","",0,0,0,null,"","",null,null,null,null,null,null,null,null,null,"","","",""]
[0,15,null,null,"",null,null,null,null,null,0,null,null,null,null,0,null,null,0,null,"","","",0,"","","",null,"",0,"","",0,0,0,null,"","",null,null,null,null,null,null,null,null,null,"","","",""]
[0,16,null,null,"",null,null,null,null,null,0,null,null,null,null,0,null,null,0,null,"","","",0,"","","",null,"",0,"","",0,0,0,null,"","",null,null,null,null,null,null,null,null,null,"","","",""]
[0,17,null,null,"",null,null,null,null,null,0,null,null,null,null,0,null,null,0,null,"","","",0,"","","",null,"",0,"","",0,0,0,null,"","",null,null,null,null,null,null,null,null,null,"","","",""]
[0,18,null,null,"",null,null,null,null,null,0,null,null,null,null,0,null,null,0,null,"","","",0,"","","",null,"",0,"","",0,0,0,null,"","",null,null,null,null,null,null,null,null,null,"","","",""]
[0,19,null,null,"",null,null,null,null,null,0,null,null,null,null,0,null,null,0,null,"","","",0,"","","",null,"",0,"","",0,0,0,null,"","",null,null,null,null,null,null,null,null,null,"","","",""]
[0,20,null,null,"",null,null,null,null,null,0,null,null,null,null,0,null,null,0,null,"","","",0,"","","",null,"",0,"","",0,0,0,null,"","",null,null,null,null,null,null,null,null,null,"","","",""]
[0,21,null,null,"",null,null,null,null,null,0,null,null,null,null,0,null,null,0,null,"","","",0,"","","",null,"",0,"","",0,0,0,null,"","",null,null,null,null,null,null,null,null,null,"","","",""]
[0,22,null,null,"",null,null,null,null,null,0,null,null,null,null,0,null,null,0,null,"","","",0,"","","",null,"",0,"","",0,0,0,null,"","",null,null,null,null,null,null,null,null,null,"","","",""]
[0,23,null,null,"",null,null,null,null,null,0,null,null,null,null,0,null,null,0,null,"","","",0,"","","",null,"",0,"","",0,0,0,null,"","",null,null,null,null,null,null,null,null,null,"","","",""]
[0,24,null,null,"",null,null,null,null,null,0,null,null,null,null,0,null,null,0,null,"","","",0,"","","",null,"",0,"","",0,0,0,null,"","",null,null,null,null,null,null,null,null,null,"","","",""]
[0,25,null,null,"",null,null,null,null,null,0,null,null,null,null,0,null,null,0,null,"","","",0,"","","",null,"",0,"","",0,0,0,null,"","",null,null,null,null,null,null,null,null,null,"","","",""]
[0,26,null,null,"",null,null,null,null,null,0,null,null,null,null,0,null,null,0,null,"","","",0,"","","",null,"",0,"","",0,0,0,null,"","",null,null,null,null,null,null,null,null,null,"","","",""]
[0,27,null,null,"",null,null,null,null,null,0,null,null,null,null,0,null,null,0,null,"","","",0,"","","",null,"",0,"","",0,0,0,null,"","",null,null,null,null,null,null,null,null,null,"","","",""]
[0,28,null,null,"",null,null,null,null,null,0,null,null,null,null,0,null,null,0,null,"","","",0,"","","",null,"",0,"","",0,0,0,null,"","",null,null,null,null,null,null,null,null,null,"","","",""]
[0,29,null,null,"",null,null,null,null,null,0,null,null,null,null,0,null,null,0,null,"","","",0,"","","",null,"",0,"","",0,0,0,null,"","",null,null,null,null,null,null,null,null,null,"","","",""]
[0,30,null,null,"",null,null,null,null,null,0,null,null,null,null,0,null,null,0,null,"","","",0,"","","",null,"",0,"","",0,0,0,null,"","",null,null,null,null,null,null,null,null,null,"","","",""]
[0,31,null,null,"",null,null,null,null,null,0,null,null,null,null,0,null,null,0,null,"","","",0,"","","",null,"",0,"","",0,0,0,null,"","",null,null,null,null,null,null,null,null,null,"","","",""]
[0,32,null,null,"",null,null,null,null,null,0,null,null,null,null,0,null,null,0,null,"","","",0,"","","",null,"",0,"","",0,0,0,null,"","",null,null,null,null,null,null,null,null,null,"","","",""]
[0,33,null,null,{"$f":"IFERROR(VLOOKUP(C41,BuildingNameTable,2,FALSE),\"\")","v":""},null,null,null,null,null,0,null,null,null,null,0,null,null,0,null,"","","",0,"","","",null,"",0,"","",0,0,0,null,"","",null,null,null,null,null,null,null,null,null,"","","",""]
[0,34,null,null,"",null,null,null,null,null,0,null,null,null,null,0,null,null,0,null,"","","",0,"","","",null,"",0,"","",0,0,0,null,"","",null,null,null,null,null,null,null,null,null,"","","",""]
[0,35,null,null,"",null,null,null,null,null,0,null,null,null,null,0,null,null,0,null,"","","",0,"","","",null,"",0,"","",0,0,0,null,"","",null,null,null,null,null,null,null,null,null,"","","",""]
[0,36,null,null,"",null,null,null,null,null,0,null,null,null,null,0,null,null,0,null,"","","",0,"","","",null,"",0,"","",0,0,0,null,"","",null,null,null,null,null,null,null,null,null,"","","",""]
[0,37,null,null,"",null,null,null,null,null,0,null,null,null,null,0,null,null,0,null,"","","",0,"","","",null,"",0,"","",0,0,0,null,"","",null,null,null,null,null,null,null,null,null,"","","",""]
[0,38,null,null,"",null,null,null,null,null,0,null,null,null,null,0,null,null,0,null,"","","",0,"","","",null,"",0,"","",0,0,0,null,"","",null,null,null,null,null,null,null,null,null,"","","",""]
[0,39,null,null,"",null,null,null,null,null,0,null,null,null,null,0,null,null,0,null,"","","",0,"","","",null,"",0,"","",0,0,0,null,"","",null,null,null,null,null,null,null,null,null,"","","",""]
[0,40,null,null,"",null,null,null,null,null,0,null,null,null,null,0,null,null,0,null,"","","",0,"","","",null,"",0,"","",0,0,0,null,"","",null,null,null,null,null,null,null,null,null,"","","",""]
[0,41,null,null,"",null,null,null,null,null,0,null,null,null,null,0,null,null,0,null,"","","",0,"","","",null,"",0,"","",0,0,0,null,"","",null,null,null,null,null,null,null,null,null,"","","",""]
[0,42,null,null,"",null,null,null,null,null,0,null,null,null,null,0,null,null,0,null,"","","",0,"","","",null,"",0,"","",0,0,0,null,"","",null,null,null,null,null,null,null,null,null,"","","",""]
[0,43,null,null,"",null,null,null,null,null,0,null,null,null,null,0,null,null,0,null,"","","",0,"","","",null,"",0,"","",0,0,0,null,"","",null,null,null,null,null,null,null,null,null,"","","",""]
[0,44,null,null,"",null,null,null,null,null,0,null,null,null,null,0,null,null,0,null,"","","",0,"","","",null,"",0,"","",0,0,0,null,"","",null,null,null,null,null,null,null,null,null,"","","",""]
[0,45,null,null,"",null,null,null,null,null,0,null,null,null,null,0,null,null,0,null,"","","",0,"","","",null,"",0,"","",0,0,0,null,"","",null,null,null,null,null,null,null,null,null,"","","",""]
[0,46,null,null,"",null,null,null,null,null,0,null,null,null,null,0,null,null,0,null,"","","",0,"","","",null,"",0,"","",0,0,0,null,"","",null,null,null,null,null,null,null,null,null,"","","",""]
[0,47,null,null,"",null,null,null,null,null,0,null,null,null,null,0,null,null,0,null,"","","",0,"","","",null,"",0,"","",0,0,0,null,"","",null,null,null,null,null,null,null,null,null,"","","",""]
[0,48,null,null,"",null,null,null,null,null,0,null,null,null,null,0,null,null,0,null,"","","",0,"","","",null,"",0,"","",0,0,0,null,"","",null,null,null,null,null,null,null,null,null,"","","",""]
[0,49,null,null,"",null,null,null,null,null,0,null,null,null,null,0,null,null,0,null,"","","",0,"","","",null,"",0,"","",0,0,0,null,"","",null,null,null,null,null,null,null,null,null,"","","",""]
[0,50,null,null,"",null,null,null,null,null,0,null,null,null,null,0,null,null,0,null,"","","",0,"","","",null,"",0,"","",0,0,0,null,"","",null,null,null,null,null,null,null,null,null,"","","",""]
[0,51,null,null,"",null,null,null,null,null,0,null,null,null,null,0,null,null,0,null,"","","",0,"","","",null,"",0,"","",0,0,0,null,"","",null,null,null,null,null,null,null,null,null,"","","",""]
[0,52,null,null,"",null,null,null,null,null,0,null,null,null,null,0,null,null,0,null,"","","",0,"","","",null,"",0,"","",0,0,0,null,"","",null,null,null,null,null,null,null,null,null,"","","",""]
[0,53,null,null,"",null,null,null,null,null,0,null,null,null,null,0,null,null,0,null,"","","",0,"","","",null,"",0,"","",0,0,0,null,"","",null,null,null,null,null,null,null,null,null,"","","",""]
[0,54,null,null,"",null,null,null,null,null,0,null,null,null,null,0,null,null,0,null,"","","",0,"","","",null,"",0,"","",0,0,0,null,"","",null,null,null,null,null,null,null,null,null,"","","",""]
[0,55,null,null,"",null,null,null,null,null,0,null,null,null,null,0,null,null,0,null,"","","",0,"","","",null,"",0,"","",0,0,0,null,"","",null,null,null,null,null,null,null,null,null,"","","",""]
[0,56,null,null,"",null,null,null,null,null,0,null,null,null,null,0,null,null,0,null,"","","",0,"","","",null,"",0,"","",0,0,0,null,"","",null,null,null,null,null,null,null,null,null,"","","",""]
[0,57,null,null,"",null,null,null,null,null,0,null,null,null,null,0,null,null,0,null,"","","",0,"","","",null,"",0,"","",0,0,0,null,"","",null,null,null,null,null,null,null,null,null,"","","",""]
[0,58,null,null,"",null,null,null,null,null,0,null,null,null,null,0,null,null,0,null,"","","",0,"","","",null,"",0,"","",0,0,0,null,"","",null,null,null,null,null,null,null,null,null,"","","",""]
[0,59,null,null,"",null,null,null,null,null,0,null,null,null,null,0,null,null,0,null,"","","",0,"","","",null,"",0,"","",0,0,0,null,"","",null,null,null,null,null,null,null,null,null,"","","",""]
[0,60,null,null,"",null,null,null,null,null,0,null,null,null,null,0,null,null,0,null,"","","",0,"","","",null,"",0,"","",0,0,0,null,"","",null,null,null,null,null,null,null,null,null,"","","",""]
[0,61,null,null,"",null,null,null,null,null,0,null,null,null,null,0,null,null,0,null,"","","",0,"","","",null,"",0,"","",0,0,0,null,"","",null,null,null,null,null,null,null,null,null,"","","",""]
[0,62,null,null,"",null,null,null,null,null,0,null,null,null,null,0,null,null,0,null,"","","",0,"","","",null,"",0,"","",0,0,0,null,"","",null,null,null,null,null,null,null,null,null,"","","",""]
[0,63,null,null,"",null,null,null,null,null,0,null,null,null,null,0,null,null,0,null,"","","",0,"","","",null,"",0,"","",0,0,0,null,"","",null,null,null,null,null,null,null,null,null,"","","",""]
[0,64,null,null,"",null,null,null,null,null,0,null,null,null,null,{"$f":"IFERROR(IF(O72=\"\",0,1-VLOOKUP(O72,Prop_Sens_Table,2,FALSE)),\"N/A\")","v":0},null,null,0,null,"","","",0,"","","",null,"",{"$f":"IFERROR(IF($AB72=\"No\",P72,IF(AC72=\"\",0,1-VLOOKUP(AC72,Prop_Sens_Table,2,FALSE))),\"N/A\")","v":0},"","",0,{"$f":"S72-AG72","v":0},{"$f":"IFERROR(1-(AG72/S72),0)","v":0},null,{"$f":"IF(E72=\"\",\"\",(1-IF(Q72=\"\",P72,Q72))*VLOOKUP(E72,BuildingType_RunHours,2,FALSE))","v":""},{"$f":"IF(E72=\"\",\"\",(1-IF(AE72=\"\",AD72,AE72))*VLOOKUP(E72,BuildingType_RunHours,2,FALSE))","v":""},null,null,null,null,null,null,null,null,null,{"$f":"IF(ISERROR(VLOOKUP($I72,LightWattLimits,2,FALSE))=TRUE,\"\",VLOOKUP($I72,LightWattLimits,2,FALSE))","v":""},{"$f":"IF(ISERROR(VLOOKUP($I72,LightWattLimits,3,FALSE))=TRUE,\"\",VLOOKUP($I72,LightWattLimits,3,FALSE))","v":""},{"$f":"IF(ISERROR(VLOOKUP($V72,LightWattLimits,2,FALSE))=TRUE,\"\",VLOOKUP($V72,LightWattLimits,2,FALSE))","v":""},{"$f":"IF(ISERROR(VLOOKUP($V72,LightWattLimits,3,FALSE))=TRUE,\"\",VLOOKUP($V72,LightWattLimits,3,FALSE))","v":""}]
[0,65,null,null,{"$f":"IFERROR(VLOOKUP(C73,BuildingNameTable,2,FALSE),\"\")","v":""},null,null,null,null,null,{"$f":"IFERROR(IF(OR(H73=\"\",I73=\"\")=TRUE,0,VLOOKUP(I73,INDIRECT(SUBSTITUTE(SUBSTITUTE(H73,\" \",\"_\"),\"-\",\"_\")&\"W\"),2,FALSE)),\"N/A\")","v":0},null,null,null,null,0,null,null,0,null,"","","",0,"","","",null,{"$f":"IF($AB73=\"No\",IF(O73=\"\",\"\",O73),\"\")","v":""},0,{"$f":"IF($AB73=\"No\",IF(Q73=\"\",\"\",Q73),\"\")","v":""},{"$f":"IF($AB73=\"No\",IF(R73=\"\",\"\",R73),\"\")","v":""},{"$f":"IF($T73=\"\", 0,IF(T73=\"No\",S73,IF(Y73=\"\",X73*AA73,Y73*AA73)))","v":0},0,0,null,"","",null,null,null,null,null,null,null,null,null,"","","",""]
[{"$f":"IF(C74=\"\",0,1)","v":0},66,null,null,"",null,null,null,null,null,0,null,null,null,null,0,null,null,{"$f":"IF(L74=\"\",N(K74)*N74,L74*N74)","v":0},null,{"$f":"IF($T74=\"No\",IF(H74=\"\",\"\",H74),\"\")","v":""},{"$f":"IF($T74=\"No\",IF(I74=\"\",\"\",I74),\"\")","v":""},{"$f":"IF($T74=\"No\",IF(J74=\"\",\"\",J74),\"\")","v":""},{"$f":"IFERROR(IF(T74=\"No\",K74,IF(U74=\"\",0,IF(LEFT(U74,1)=\"*\",K74,IF(V74=\"\",0,VLOOKUP(V74,INDIRECT(SUBSTITUTE(SUBSTITUTE(U74,\" \",\"_\"),\"-\",\"_\")&\"W\"),2,FALSE))))),\"N/A\")","v":0},{"$f":"IF($T74=\"No\",IF(L74=\"\",\"\",L74),\"\")","v":""},{"$f":"IF($T74=\"No\",IF(M74=\"\",\"\",M74),\"\")","v":""},{"$f":"IF($T74=\"No\",IF(N74=\"\",\"\",N74),\"\")","v":""},null,"",0,"","",0,0,0,null,"","",null,null,null,null,null,null,null,null,null,"","","",""]
[0,{"$f":"B74+1","v":67},null,null,"",null,null,null,null,null,0,null,null,null,null,0,null,null,0,null,"","","",0,"","","",null,"",0,"","",0,0,0,null,"","",null,null,null,null,null,null,null,null,null,"","","",""]
[0,68,null,null,"",null,null,null,null,null,0,null,null,null,null,0,null,null,0,null,"","","",0,"","","",null,"",0,"","",0,0,0,null,"","",null,null,null,null,null,null,null,null,null,"","","",""]
[0,69,null,null,"",null,null,null,null,null,0,null,null,null,null,0,null,null,0,null,"","","",0,"","","",null,"",0,"","",0,0,0,null,"","",null,null,null,null,null,null,null,null,null,"","","",""]
[0,70,null,null,"",null,null,null,null,null,0,null,null,null,null,0,null,null,0,null,"","","",0,"","","",null,"",0,"","",0,0,0,null,"","",null,null,null,null,null,null,null,null,null,"","","",""]
[0,71,null,null,"",null,null,null,null,null,0,null,null,null,null,0,null,null,0,null,"","","",0,"","","",null,"",0,"","",0,0,0,null,"","",null,null,null,null,null,null,null,null,null,"","","",""]
[0,72,null,null,"",null,null,null,null,null,0,null,null,null,null,0,null,null,0,null,"","","",0,"","","",null,"",0,"","",0,0,0,null,"","",null,null,null,null,null,null,null,null,null,"","","",""]
[0,73,null,null,"",null,null,null,null,null,0,null,null,null,null,0,null,null,0,null,"","","",0,"","","",null,"",0,"","",0,0,0,null,"","",null,null,null,null,null,null,null,null,null,"","","",""]
[0,74,null,null,"",null,null,null,null,null,0,null,null,null,null,0,null,null,0,null,"","","",0,"","","",null,"",0,"","",0,0,0,null,"","",null,null,null,null,null,null,null,null,null,"","","",""]
[0,75,null,null,"",null,null,null,null,null,0,null,null,null,null,0,null,null,0,null,"","","",0,"","","",null,"",0,"","",0,0,0,null,"","",null,null,null,null,null,null,null,null,null,"","","",""]
[0,76,null,null,"",null,null,null,null,null,0,null,null,null,null,0,null,null,0,null,"","","",0,"","","",null,"",0,"","",0,0,0,null,"","",null,null,null,null,null,null,null,null,null,"","","",""]
[0,77,null,null,"",null,null,null,null,null,0,null,null,null,null,0,null,null,0,null,"","","",0,"","","",null,"",0,"","",0,0,0,null,"","",null,null,null,null,null,null,null,null,null,"","","",""]
[0,78,null,null,"",null,null,null,null,null,0,null,null,null,null,0,null,null,0,null,"","","",0,"","","",null,"",0,"","",0,0,0,null,"","",null,null,null,null,null,null,null,null,null,"","","",""]
[0,79,null,null,"",null,null,null,null,null,0,null,null,null,null,0,null,null,0,null,"","","",0,"","","",null,"",0,"","",0,0,0,null,"","",null,null,null,null,null,null,null,null,null,"","","",""]
[0,80,null,null,"",null,null,null,null,null,0,null,null,null,null,0,null,null,0,null,"","","",0,"","","",null,"",0,"","",0,0,0,null,"","",null,null,null,null,null,null,null,null,null,"","","",""]
[0,81,null,null,"",null,null,null,null,null,0,null,null,null,null,0,null,null,0,null,"","","",0,"","","",null,"",0,"","",0,0,0,null,"","",null,null,null,null,null,null,null,null,null,"","","",""]
[0,82,null,null,"",null,null,null,null,null,0,null,null,null,null,0,null,null,0,null,"","","",0,"","","",null,"",0,"","",0,0,0,null,"","",null,null,null,null,null,null,null,null,null,"","","",""]
[0,83,null,null,"",null,null,null,null,null,0,null,null,null,null,0,null,null,0,null,"","","",0,"","","",null,"",0,"","",0,0,0,null,"","",null,null,null,null,null,null,null,null,null,"","","",""]
[0,84,null,null,"",null,null,null,null,null,0,null,null,null,null,0,null,null,0,null,"","","",0,"","","",null,"",0,"","",0,0,0,null,"","",null,null,null,null,null,null,null,null,null,"","","",""]
[0,85,null,null,"",null,null,null,null,null,0,null,null,null,null,0,null,null,0,null,"","","",0,"","","",null,"",0,"","",0,0,0,null,"","",null,null,null,null,null,null,null,null,null,"","","",""]
[0,86,null,null,"",null,null,null,null,null,0,null,null,null,null,0,null,null,0,null,"","","",0,"","","",null,"",0,"","",0,0,0,null,"","",null,null,null,null,null,null,null,null,null,"","","",""]
[0,87,null,null,"",null,null,null,null,null,0,null,null,null,null,0,null,null,0,null,"","","",0,"","","",null,"",0,"","",0,0,0,null,"","",null,null,null,null,null,null,null,null,null,"","","",""]
[0,88,null,null,"",null,null,null,null,null,0,null,null,null,null,0,null,null,0,null,"","","",0,"","","",null,"",0,"","",0,0,0,null,"","",null,null,null,null,null,null,null,null,null,"","","",""]
[0,89,null,null,"",null,null,null,null,null,0,null,null,null,null,0,null,null,0,null,"","","",0,"","","",null,"",0,"","",0,0,0,null,"","",null,null,null,null,null,null,null,null,null,"","","",""]
[0,90,null,null,"",null,null,null,null,null,0,null,null,null,null,0,null,null,0,null,"","","",0,"","","",null,"",0,"","",0,0,0,null,"","",null,null,null,null,null,null,null,null,null,"","","",""]
[0,91,null,null,"",null,null,null,null,null,0,null,null,null,null,0,null,null,0,null,"","","",0,"","","",null,"",0,"","",0,0,0,null,"","",null,null,null,null,null,null,null,null,null,"","","",""]
[0,92,null,null,"",null,null,null,null,null,0,null,null,null,null,0,null,null,0,null,"","","",0,"","","",null,"",0,"","",0,0,0,null,"","",null,null,null,null,null,null,null,null,null,"","","",""]
[0,93,null,null,"",null,null,null,null,null,0,null,null,null,null,0,null,null,0,null,"","","",0,"","","",null,"",0,"","",0,0,0,null,"","",null,null,null,null,null,null,null,null,null,"","","",""]
[0,94,null,null,"",null,null,null,null,null,0,null,null,null,null,0,null,null,0,null,"","","",0,"","","",null,"",0,"","",0,0,0,null,"","",null,null,null,null,null,null,null,null,null,"","","",""]
[0,95,null,null,"",null,null,null,null,null,0,null,null,null,null,0,null,null,0,null,"","","",0,"","","",null,"",0,"","",0,0,0,null,"","",null,null,null,null,null,null,null,null,null,"","","",""]
[0,96,null,null,"",null,null,null,null,null,0,null,null,null,null,0,null,null,0,null,"","","",0,"","","",null,"",0,"","",0,0,0,null,"","",null,null,null,null,null,null,null,null,null,"","","",""]
[0,97,null,null,{"$f":"IFERROR(VLOOKUP(C105,BuildingNameTable,2,FALSE),\"\")","v":""},null,null,null,null,null,0,null,null,null,null,0,null,null,0,null,"","","",0,"","","",null,"",0,"","",0,0,0,null,"","",null,null,null,null,null,null,null,null,null,"","","",""]
[0,98,null,null,"",null,null,null,null,null,0,null,null,null,null,0,null,null,0,null,"","","",0,"","","",null,"",0,"","",0,0,0,null,"","",null,null,null,null,null,null,null,null,null,"","","",""]
[0,99,null,null,"",null,null,null,null,null,0,null,null,null,null,0,null,null,0,null,"","","",0,"","","",null,"",0,"","",0,0,0,null,"","",null,null,null,null,null,null,null,null,null,"","","",""]
[0,100,null,null,"",null,null,null,null,null,0,null,null,null,null,0,null,null,0,null,"","","",0,"","","",null,"",0,"","",0,0,0,null,"","",null,null,null,null,null,null,null,null,null,"","","",""]
[0,101,null,null,"",null,null,null,null,null,0,null,null,null,null,0,null,null,0,null,"","","",0,"","","",null,"",0,"","",0,0,0,null,"","",null,null,null,null,null,null,null,null,null,"","","",""]
[0,102,null,null,"",null,null,null,null,null,0,null,null,null,null,0,null,null,0,null,"","","",0,"","","",null,"",0,"","",0,0,0,null,"","",null,null,null,null,null,null,null,null,null,"","","",""]
[0,103,null,null,"",null,null,null,null,null,0,null,null,null,null,0,null,null,0,null,"","","",0,"","","",null,"",0,"","",0,0,0,null,"","",null,null,null,null,null,null,null,null,null,"","","",""]
[0,104,null,null,"",null,null,null,null,null,0,null,null,null,null,0,null,null,0,null,"","","",0,"","","",null,"",0,"","",0,0,0,null,"","",null,null,null,null,null,null,null,null,null,"","","",""]
[0,105,null,null,"",null,null,null,null,null,0,null,null,null,null,0,null,null,0,null,"","","",0,"","","",null,"",0,"","",0,0,0,null,"","",null,null,null,null,null,null,null,null,null,"","","",""]
[0,106,null,null,"",null,null,null,null,null,0,null,null,null,null,0,null,null,0,null,"","","",0,"","","",null,"",0,"","",0,0,0,null,"","",null,null,null,null,null,null,null,null,null,"","","",""]
[0,107,null,null,"",null,null,null,null,null,0,null,null,null,null,0,null,null,0,null,"","","",0,"","","",null,"",0,"","",0,0,0,null,"","",null,null,null,null,null,null,null,null,null,"","","",""]
[0,108,null,null,"",null,null,null,null,null,0,null,null,null,null,0,null,null,0,null,"","","",0,"","","",null,"",0,"","",0,0,0,null,"","",null,null,null,null,null,null,null,null,null,"","","",""]
[0,109,null,null,"",null,null,null,null,null,0,null,null,null,null,0,null,null,0,null,"","","",0,"","","",null,"",0,"","",0,0,0,null,"","",null,null,null,null,null,null,null,null,null,"","","",""]
[0,110,null,null,"",null,null,null,null,null,0,null,null,null,null,0,null,null,0,null,"","","",0,"","","",null,"",0,"","",0,0,0,null,"","",null,null,null,null,null,null,null,null,null,"","","",""]
[0,111,null,null,"",null,null,null,null,null,0,null,null,null,null,0,null,null,0,null,"","","",0,"","","",null,"",0,"","",0,0,0,null,"","",null,null,null,null,null,null,null,null,null,"","","",""]
[0,112,null,null,"",null,null,null,null,null,0,null,null,null,null,0,null,null,0,null,"","","",0,"","","",null,"",0,"","",0,0,0,null,"","",null,null,null,null,null,null,null,null,null,"","","",""]
[0,113,null,null,"",null,null,null,null,null,0,null,null,null,null,0,null,null,0,null,"","","",0,"","","",null,"",0,"","",0,0,0,null,"","",null,null,null,null,null,null,null,null,null,"","","",""]
[0,114,null,null,"",null,null,null,null,null,0,null,null,null,null,0,null,null,0,null,"","","",0,"","","",null,"",0,"","",0,0,0,null,"","",null,null,null,null,null,null,null,null,null,"","","",""]
[0,115,null,null,"",null,null,null,null,null,0,null,null,null,null,0,null,null,0,null,"","","",0,"","","",null,"",0,"","",0,0,0,null,"","",null,null,null,null,null,null,null,null,null,"","","",""]
[0,116,null,null,"",null,null,null,null,null,0,null,null,null,null,0,null,null,0,null,"","","",0,"","","",null,"",0,"","",0,0,0,null,"","",null,null,null,null,null,null,null,null,null,"","","",""]
[0,117,null,null,"",null,null,null,null,null,0,null,null,null,null,0,null,null,0,null,"","","",0,"","","",null,"",0,"","",0,0,0,null,"","",null,null,null,null,null,null,null,null,null,"","","",""]
[0,118,null,null,"",null,null,null,null,null,0,null,null,null,null,0,null,null,0,null,"","","",0,"","","",null,"",0,"","",0,0,0,null,"","",null,null,null,null,null,null,null,null,null,"","","",""]
[0,119,null,null,"",null,null,null,null,null,0,null,null,null,null,0,null,null,0,null,"","","",0,"","","",null,"",0,"","",0,0,0,null,"","",null,null,null,null,null,null,null,null,null,"","","",""]
[0,120,null,null,"",null,null,null,null,null,0,null,null,null,null,0,null,null,0,null,"","","",0,"","","",null,"",0,"","",0,0,0,null,"","",null,null,null,null,null,null,null,null,null,"","","",""]
[0,121,null,null,"",null,null,null,null,null,0,null,null,null,null,0,null,null,0,null,"","","",0,"","","",null,"",0,"","",0,0,0,null,"","",null,null,null,null,null,null,null,null,null,"","","",""]
[0,122,null,null,"",null,null,null,null,null,0,null,null,null,null,0,null,null,0,null,"","","",0,"","","",null,"",0,"","",0,0,0,null,"","",null,null,null,null,null,null,null,null,null,"","","",""]
[0,123,null,null,"",null,null,null,null,null,0,null,null,null,null,0,null,null,0,null,"","","",0,"","","",null,"",0,"","",0,0,0,null,"","",null,null,null,null,null,null,null,null,null,"","","",""]
[0,124,null,null,"",null,null,null,null,null,0,null,null,null,null,0,null,null,0,null,"","","",0,"","","",null,"",0,"","",0,0,0,null,"","",null,null,null,null,null,null,null,null,null,"","","",""]
[0,125,null,null,"",null,null,null,null,null,0,null,null,null,null,0,null,null,0,null,"","","",0,"","","",null,"",0,"","",0,0,0,null,"","",null,null,null,null,null,null,null,null,null,"","","",""]
[0,126,null,null,"",null,null,null,null,null,0,null,null,null,null,0,null,null,0,null,"","","",0,"","","",null,"",0,"","",0,0,0,null,"","",null,null,null,null,null,null,null,null,null,"","","",""]
[0,127,null,null,"",null,null,null,null,null,0,null,null,null,null,0,null,null,0,null,"","","",0,"","","",null,"",0,"","",0,0,0,null,"","",null,null,null,null,null,null,null,null,null,"","","",""]
[0,128,null,null,"",null,null,null,null,null,0,null,null,null,null,{"$f":"IFERROR(IF(O136=\"\",0,1-VLOOKUP(O136,Prop_Sens_Table,2,FALSE)),\"N/A\")","v":0},null,null,0,null,"","","",0,"","","",null,"",{"$f":"IFERROR(IF($AB136=\"No\",P136,IF(AC136=\"\",0,1-VLOOKUP(AC136,Prop_Sens_Table,2,FALSE))),\"N/A\")","v":0},"","",0,{"$f":"S136-AG136","v":0},{"$f":"IFERROR(1-(AG136/S136),0)","v":0},null,{"$f":"IF(E136=\"\",\"\",(1-IF(Q136=\"\",P136,Q136))*VLOOKUP(E136,BuildingType_RunHours,2,FALSE))","v":""},{"$f":"IF(E136=\"\",\"\",(1-IF(AE136=\"\",AD136,AE136))*VLOOKUP(E136,BuildingType_RunHours,2,FALSE))","v":""},null,null,null,null,null,null,null,null,null,{"$f":"IF(ISERROR(VLOOKUP($I136,LightWattLimits,2,FALSE))=TRUE,\"\",VLOOKUP($I136,LightWattLimits,2,FALSE))","v":""},{"$f":"IF(ISERROR(VLOOKUP($I136,LightWattLimits,3,FALSE))=TRUE,\"\",VLOOKUP($I136,LightWattLimits,3,FALSE))","v":""},{"$f":"IF(ISERROR(VLOOKUP($V136,LightWattLimits,2,FALSE))=TRUE,\"\",VLOOKUP($V136,LightWattLimits,2,FALSE))","v":""},{"$f":"IF(ISERROR(VLOOKUP($V136,LightWattLimits,3,FALSE))=TRUE,\"\",VLOOKUP($V136,LightWattLimits,3,FALSE))","v":""}]
[0,129,null,null,{"$f":"IFERROR(VLOOKUP(C137,BuildingNameTable,2,FALSE),\"\")","v":""},null,null,null,null,null,{"$f":"IFERROR(IF(OR(H137=\"\",I137=\"\")=TRUE,0,VLOOKUP(I137,INDIRECT(SUBSTITUTE(SUBSTITUTE(H137,\" \",\"_\"),\"-\",\"_\")&\"W\"),2,FALSE)),\"N/A\")","v":0},null,null,null,null,0,null,null,0,null,"","","",0,"","","",null,{"$f":"IF($AB137=\"No\",IF(O137=\"\",\"\",O137),\"\")","v":""},0,{"$f":"IF($AB137=\"No\",IF(Q137=\"\",\"\",Q137),\"\")","v":""},{"$f":"IF($AB137=\"No\",IF(R137=\"\",\"\",R137),\"\")","v":""},{"$f":"IF($T137=\"\", 0,IF(T137=\"No\",S137,IF(Y137=\"\",X137*AA137,Y137*AA137)))","v":0},0,0,null,"","",null,null,null,null,null,null,null,null,null,"","","",""]
[{"$f":"IF(C138=\"\",0,1)","v":0},130,null,null,"",null,null,null,null,null,0,null,null,null,null,0,null,null,{"$f":"IF(L138=\"\",N(K138)*N138,L138*N138)","v":0},null,{"$f":"IF($T138=\"No\",IF(H138=\"\",\"\",H138),\"\")","v":""},{"$f":"IF($T138=\"No\",IF(I138=\"\",\"\",I138),\"\")","v":""},{"$f":"IF($T138=\"No\",IF(J138=\"\",\"\",J138),\"\")","v":""},{"$f":"IFERROR(IF(T138=\"No\",K138,IF(U138=\"\",0,IF(LEFT(U138,1)=\"*\",K138,IF(V138=\"\",0,VLOOKUP(V138,INDIRECT(SUBSTITUTE(SUBSTITUTE(U138,\" \",\"_\"),\"-\",\"_\")&\"W\"),2,FALSE))))),\"N/A\")","v":0},{"$f":"IF($T138=\"No\",IF(L138=\"\",\"\",L138),\"\")","v":""},{"$f":"IF($T138=\"No\",IF(M138=\"\",\"\",M138),\"\")","v":""},{"$f":"IF($T138=\"No\",IF(N138=\"\",\"\",N138),\"\")","v":""},null,"",0,"","",0,0,0,null,"","",null,null,null,null,null,null,null,null,null,"","","",""]
[0,{"$f":"B138+1","v":131},null,null,"",null,null,null,null,null,0,null,null,null,null,0,null,null,0,null,"","","",0,"","","",null,"",0,"","",0,0,0,null,"","",null,null,null,null,null,null,null,null,null,"","","",""]
[0,132,null,null,"",null,null,null,null,null,0,null,null,null,null,0,null,null,0,null,"","","",0,"","","",null,"",0,"","",0,0,0,null,"","",null,null,null,null,null,null,null,null,null,"","","",""]
[0,133,null,null,"",null,null,null,null,null,0,null,null,null,null,0,null,null,0,null,"","","",0,"","","",null,"",0,"","",0,0,0,null,"","",null,null,null,null,null,null,null,null,null,"","","",""]
[0,134,null,null,"",null,null,null,null,null,0,null,null,null,null,0,null,null,0,null,"","","",0,"","","",null,"",0,"","",0,0,0,null,"","",null,null,null,null,null,null,null,null,null,"","","",""]
[0,135,null,null,"",null,null,null,null,null,0,null,null,null,null,0,null,null,0,null,"","","",0,"","","",null,"",0,"","",0,0,0,null,"","",null,null,null,null,null,null,null,null,null,"","","",""]
[0,136,null,null,"",null,null,null,null,null,0,null,null,null,null,0,null,null,0,null,"","","",0,"","","",null,"",0,"","",0,0,0,null,"","",null,null,null,null,null,null,null,null,null,"","","",""]
[0,137,null,null,"",null,null,null,null,null,0,null,null,null,null,0,null,null,0,null,"","","",0,"","","",null,"",0,"","",0,0,0,null,"","",null,null,null,null,null,null,null,null,null,"","","",""]
[0,138,null,null,"",null,null,null,null,null,0,null,null,null,null,0,null,null,0,null,"","","",0,"","","",null,"",0,"","",0,0,0,null,"","",null,null,null,null,null,null,null,null,null,"","","",""]
[0,139,null,null,"",null,null,null,null,null,0,null,null,null,null,0,null,null,0,null,"","","",0,"","","",null,"",0,"","",0,0,0,null,"","",null,null,null,null,null,null,null,null,null,"","","",""]
[0,140,null,null,"",null,null,null,null,null,0,null,null,null,null,0,null,null,0,null,"","","",0,"","","",null,"",0,"","",0,0,0,null,"","",null,null,null,null,null,null,null,null,null,"","","",""]
[0,141,null,null,"",null,null,null,null,null,0,null,null,null,null,0,null,null,0,null,"","","",0,"","","",null,"",0,"","",0,0,0,null,"","",null,null,null,null,null,null,null,null,null,"","","",""]
[0,142,null,null,"",null,null,null,null,null,0,null,null,null,null,0,null,null,0,null,"","","",0,"","","",null,"",0,"","",0,0,0,null,"","",null,null,null,null,null,null,null,null,null,"","","",""]
[0,143,null,null,"",null,null,null,null,null,0,null,null,null,null,0,null,null,0,null,"","","",0,"","","",null,"",0,"","",0,0,0,null,"","",null,null,null,null,null,null,null,null,null,"","","",""]
[0,144,null,null,"",null,null,null,null,null,0,null,null,null,null,0,null,null,0,null,"","","",0,"","","",null,"",0,"","",0,0,0,null,"","",null,null,null,null,null,null,null,null,null,"","","",""]
[0,145,null,null,"",null,null,null,null,null,0,null,null,null,null,0,null,null,0,null,"","","",0,"","","",null,"",0,"","",0,0,0,null,"","",null,null,null,null,null,null,null,null,null,"","","",""]
[0,146,null,null,"",null,null,null,null,null,0,null,null,null,null,0,null,null,0,null,"","","",0,"","","",null,"",0,"","",0,0,0,null,"","",null,null,null,null,null,null,null,null,null,"","","",""]
[0,147,null,null,"",null,null,null,null,null,0,null,null,null,null,0,null,null,0,null,"","","",0,"","","",null,"",0,"","",0,0,0,null,"","",null,null,null,null,null,null,null,null,null,"","","",""]
[0,148,null,null,"",null,null,null,null,null,0,null,null,null,null,0,null,null,0,null,"","","",0,"","","",null,"",0,"","",0,0,0,null,"","",null,null,null,null,null,null,null,null,null,"","","",""]
[0,149,null,null,"",null,null,null,null,null,0,null,null,null,null,0,null,null,0,null,"","","",0,"","","",null,"",0,"","",0,0,0,null,"","",null,null,null,null,null,null,null,null,null,"","","",""]
[0,150,null,null,"",null,null,null,null,null,0,null,null,null,null,0,null,null,0,null,"","","",0,"","","",null,"",0,"","",0,0,0,null,"","",null,null,null,null,null,null,null,null,null,"","","",""]
[0,151,null,null,"",null,null,null,null,null,0,null,null,null,null,0,null,null,0,null,"","","",0,"","","",null,"",0,"","",0,0,0,null,"","",null,null,null,null,null,null,null,null,null,"","","",""]
[0,152,null,null,"",null,null,null,null,null,0,null,null,null,null,0,null,null,0,null,"","","",0,"","","",null,"",0,"","",0,0,0,null,"","",null,null,null,null,null,null,null,null,null,"","","",""]
[0,153,null,null,"",null,null,null,null,null,0,null,null,null,null,0,null,null,0,null,"","","",0,"","","",null,"",0,"","",0,0,0,null,"","",null,null,null,null,null,null,null,null,null,"","","",""]
[0,154,null,null,"",null,null,null,null,null,0,null,null,null,null,0,null,null,0,null,"","","",0,"","","",null,"",0,"","",0,0,0,null,"","",null,null,null,null,null,null,null,null,null,"","","",""]
[0,155,null,null,"",null,null,null,null,null,0,null,null,null,null,0,null,null,0,null,"","","",0,"","","",null,"",0,"","",0,0,0,null,"","",null,null,null,null,null,null,null,null,null,"","","",""]
[0,156,null,null,"",null,null,null,null,null,0,null,null,null,null,0,null,null,0,null,"","","",0,"","","",null,"",0,"","",0,0,0,null,"","",null,null,null,null,null,null,null,null,null,"","","",""]
[0,157,null,null,"",null,null,null,null,null,0,null,null,null,null,0,null,null,0,null,"","","",0,"","","",null,"",0,"","",0,0,0,null,"","",null,null,null,null,null,null,null,null,null,"","","",""]
[0,158,null,null,"",null,null,null,null,null,0,null,null,null,null,0,null,null,0,null,"","","",0,"","","",null,"",0,"","",0,0,0,null,"","",null,null,null,null,null,null,null,null,null,"","","",""]
[0,159,null,null,"",null,null,null,null,null,0,null,null,null,null,0,null,null,0,null,"","","",0,"","","",null,"",0,"","",0,0,0,null,"","",null,null,null,null,null,null,null,null,null,"","","",""]
[0,160,null,null,"",null,null,null,null,null,0,null,null,null,null,0,null,null,0,null,"","","",0,"","","",null,"",0,"","",0,0,0,null,"","",null,null,null,null,null,null,null,null,null,"","","",""]
[0,161,null,null,{"$f":"IFERROR(VLOOKUP(C169,BuildingNameTable,2,FALSE),\"\")","v":""},null,null,null,null,null,0,null,null,null,null,0,null,null,0,null,"","","",0,"","","",null,"",0,"","",0,0,0,null,"","",null,null,null,null,null,null,null,null,null,"","","",""]
[0,162,null,null,"",null,null,null,null,null,0,null,null,null,null,0,null,null,0,null,"","","",0,"","","",null,"",0,"","",0,0,0,null,"","",null,null,null,null,null,null,null,null,null,"","","",""]
[0,163,null,null,"",null,null,null,null,null,0,null,null,null,null,0,null,null,0,null,"","","",0,"","","",null,"",0,"","",0,0,0,null,"","",null,null,null,null,null,null,null,null,null,"","","",""]
[0,164,null,null,"",null,null,null,null,null,0,null,null,null,null,0,null,null,0,null,"","","",0,"","","",null,"",0,"","",0,0,0,null,"","",null,null,null,null,null,null,null,null,null,"","","",""]
[0,165,null,null,"",null,null,null,null,null,0,null,null,null,null,0,null,null,0,null,"","","",0,"","","",null,"",0,"","",0,0,0,null,"","",null,null,null,null,null,null,null,null,null,"","","",""]
[0,166,null,null,"",null,null,null,null,null,0,null,null,null,null,0,null,null,0,null,"","","",0,"","","",null,"",0,"","",0,0,0,null,"","",null,null,null,null,null,null,null,null,null,"","","",""]
[0,167,null,null,"",null,null,null,null,null,0,null,null,null,null,0,null,null,0,null,"","","",0,"","","",null,"",0,"","",0,0,0,null,"","",null,null,null,null,null,null,null,null,null,"","","",""]
[0,168,null,null,"",null,null,null,null,null,0,null,null,null,null,0,null,null,0,null,"","","",0,"","","",null,"",0,"","",0,0,0,null,"","",null,null,null,null,null,null,null,null,null,"","","",""]
[0,169,null,null,"",null,null,null,null,null,0,null,null,null,null,0,null,null,0,null,"","","",0,"","","",null,"",0,"","",0,0,0,null,"","",null,null,null,null,null,null,null,null,null,"","","",""]
[0,170,null,null,"",null,null,null,null,null,0,null,null,null,null,0,null,null,0,null,"","","",0,"","","",null,"",0,"","",0,0,0,null,"","",null,null,null,null,null,null,null,null,null,"","","",""]
[0,171,null,null,"",null,null,null,null,null,0,null,null,null,null,0,null,null,0,null,"","","",0,"","","",null,"",0,"","",0,0,0,null,"","",null,null,null,null,null,null,null,null,null,"","","",""]
[0,172,null,null,"",null,null,null,null,null,0,null,null,null,null,0,null,null,0,null,"","","",0,"","","",null,"",0,"","",0,0,0,null,"","",null,null,null,null,null,null,null,null,null,"","","",""]
[0,173,null,null,"",null,null,null,null,null,0,null,null,null,null,0,null,null,0,null,"","","",0,"","","",null,"",0,"","",0,0,0,null,"","",null,null,null,null,null,null,null,null,null,"","","",""]
[0,174,null,null,"",null,null,null,null,null,0,null,null,null,null,0,null,null,0,null,"","","",0,"","","",null,"",0,"","",0,0,0,null,"","",null,null,null,null,null,null,null,null,null,"","","",""]
[0,175,null,null,"",null,null,null,null,null,0,null,null,null,null,0,null,null,0,null,"","","",0,"","","",null,"",0,"","",0,0,0,null,"","",null,null,null,null,null,null,null,null,null,"","","",""]
[0,176,null,null,"",null,null,null,null,null,0,null,null,null,null,0,null,null,0,null,"","","",0,"","","",null,"",0,"","",0,0,0,null,"","",null,null,null,null,null,null,null,null,null,"","","",""]
[0,177,null,null,"",null,null,null,null,null,0,null,null,null,null,0,null,null,0,null,"","","",0,"","","",null,"",0,"","",0,0,0,null,"","",null,null,null,null,null,null,null,null,null,"","","",""]
[0,178,null,null,"",null,null,null,null,null,0,null,null,null,null,0,null,null,0,null,"","","",0,"","","",null,"",0,"","",0,0,0,null,"","",null,null,null,null,null,null,null,null,null,"","","",""]
[0,179,null,null,"",null,null,null,null,null,0,null,null,null,null,0,null,null,0,null,"","","",0,"","","",null,"",0,"","",0,0,0,null,"","",null,null,null,null,null,null,null,null,null,"","","",""]
[0,180,null,null,"",null,null,null,null,null,0,null,null,null,null,0,null,null,0,null,"","","",0,"","","",null,"",0,"","",0,0,0,null,"","",null,null,null,null,null,null,null,null,null,"","","",""]
[0,181,null,null,"",null,null,null,null,null,0,null,null,null,null,0,null,null,0,null,"","","",0,"","","",null,"",0,"","",0,0,0,null,"","",null,null,null,null,null,null,null,null,null,"","","",""]
[0,182,null,null,"",null,null,null,null,null,0,null,null,null,null,0,null,null,0,null,"","","",0,"","","",null,"",0,"","",0,0,0,null,"","",null,null,null,null,null,null,null,null,null,"","","",""]
[0,183,null,null,"",null,null,null,null,null,0,null,null,null,null,0,null,null,0,null,"","","",0,"","","",null,"",0,"","",0,0,0,null,"","",null,null,null,null,null,null,null,null,null,"","","",""]
[0,184,null,null,"",null,null,null,null,null,0,null,null,null,null,0,null,null,0,null,"","","",0,"","","",null,"",0,"","",0,0,0,null,"","",null,null,null,null,null,null,null,null,null,"","","",""]
[0,185,null,null,"",null,null,null,null,null,0,null,null,null,null,0,null,null,0,null,"","","",0,"","","",null,"",0,"","",0,0,0,null,"","",null,null,null,null,null,null,null,null,null,"","","",""]
[0,186,null,null,"",null,null,null,null,null,0,null,null,null,null,0,null,null,0,null,"","","",0,"","","",null,"",0,"","",0,0,0,null,"","",null,null,null,null,null,null,null,null,null,"","","",""]
[0,187,null,null,"",null,null,null,null,null,0,null,null,null,null,0,null,null,0,null,"","","",0,"","","",null,"",0,"","",0,0,0,null,"","",null,null,null,null,null,null,null,null,null,"","","",""]
[0,188,null,null,"",null,null,null,null,null,0,null,null,null,null,0,null,null,0,null,"","","",0,"","","",null,"",0,"","",0,0,0,null,"","",null,null,null,null,null,null,null,null,null,"","","",""]
[0,189,null,null,"",null,null,null,null,null,0,null,null,null,null,0,null,null,0,null,"","","",0,"","","",null,"",0,"","",0,0,0,null,"","",null,null,null,null,null,null,null,null,null,"","","",""]
[0,190,null,null,"",null,null,null,null,null,0,null,null,null,null,0,null,null,0,null,"","","",0,"","","",null,"",0,"","",0,0,0,null,"","",null,null,null,null,null,null,null,null,null,"","","",""]
[0,191,null,null,"",null,null,null,null,null,0,null,null,null,null,0,null,null,0,null,"","","",0,"","","",null,"",0,"","",0,0,0,null,"","",null,null,null,null,null,null,null,null,null,"","","",""]
[0,192,null,null,"",null,null,null,null,null,0,null,null,null,null,{"$f":"IFERROR(IF(O200=\"\",0,1-VLOOKUP(O200,Prop_Sens_Table,2,FALSE)),\"N/A\")","v":0},null,null,0,null,"","","",0,"","","",null,"",{"$f":"IFERROR(IF($AB200=\"No\",P200,IF(AC200=\"\",0,1-VLOOKUP(AC200,Prop_Sens_Table,2,FALSE))),\"N/A\")","v":0},"","",0,{"$f":"S200-AG200","v":0},{"$f":"IFERROR(1-(AG200/S200),0)","v":0},null,{"$f":"IF(E200=\"\",\"\",(1-IF(Q200=\"\",P200,Q200))*VLOOKUP(E200,BuildingType_RunHours,2,FALSE))","v":""},{"$f":"IF(E200=\"\",\"\",(1-IF(AE200=\"\",AD200,AE200))*VLOOKUP(E200,BuildingType_RunHours,2,FALSE))","v":""},null,null,null,null,null,null,null,null,null,{"$f":"IF(ISERROR(VLOOKUP($I200,LightWattLimits,2,FALSE))=TRUE,\"\",VLOOKUP($I200,LightWattLimits,2,FALSE))","v":""},{"$f":"IF(ISERROR(VLOOKUP($I200,LightWattLimits,3,FALSE))=TRUE,\"\",VLOOKUP($I200,LightWattLimits,3,FALSE))","v":""},{"$f":"IF(ISERROR(VLOOKUP($V200,LightWattLimits,2,FALSE))=TRUE,\"\",VLOOKUP($V200,LightWattLimits,2,FALSE))","v":""},{"$f":"IF(ISERROR(VLOOKUP($V200,LightWattLimits,3,FALSE))=TRUE,\"\",VLOOKUP($V200,LightWattLimits,3,FALSE))","v":""}]
[0,193,null,null,{"$f":"IFERROR(VLOOKUP(C201,BuildingNameTable,2,FALSE),\"\")","v":""},null,null,null,null,null,{"$f":"IFERROR(IF(OR(H201=\"\",I201=\"\")=TRUE,0,VLOOKUP(I201,INDIRECT(SUBSTITUTE(SUBSTITUTE(H201,\" \",\"_\"),\"-\",\"_\")&\"W\"),2,FALSE)),\"N/A\")","v":0},null,null,null,null,0,null,null,0,null,"","","",0,"","","",null,{"$f":"IF($AB201=\"No\",IF(O201=\"\",\"\",O201),\"\")","v":""},0,{"$f":"IF($AB201=\"No\",IF(Q201=\"\",\"\",Q201),\"\")","v":""},{"$f":"IF($AB201=\"No\",IF(R201=\"\",\"\",R201),\"\")","v":""},{"$f":"IF($T201=\"\", 0,IF(T201=\"No\",S201,IF(Y201=\"\",X201*AA201,Y201*AA201)))","v":0},0,0,null,"","",null,null,null,null,null,null,null,null,null,"","","",""]
[{"$f":"IF(C202=\"\",0,1)","v":0},194,null,null,"",null,null,null,null,null,0,null,null,null,null,0,null,null,{"$f":"IF(L202=\"\",N(K202)*N202,L202*N202)","v":0},null,{"$f":"IF($T202=\"No\",IF(H202=\"\",\"\",H202),\"\")","v":""},{"$f":"IF($T202=\"No\",IF(I202=\"\",\"\",I202),\"\")","v":""},{"$f":"IF($T202=\"No\",IF(J202=\"\",\"\",J202),\"\")","v":""},{"$f":"IFERROR(IF(T202=\"No\",K202,IF(U202=\"\",0,IF(LEFT(U202,1)=\"*\",K202,IF(V202=\"\",0,VLOOKUP(V202,INDIRECT(SUBSTITUTE(SUBSTITUTE(U202,\" \",\"_\"),\"-\",\"_\")&\"W\"),2,FALSE))))),\"N/A\")","v":0},{"$f":"IF($T202=\"No\",IF(L202=\"\",\"\",L202),\"\")","v":""},{"$f":"IF($T202=\"No\",IF(M202=\"\",\"\",M202),\"\")","v":""},{"$f":"IF($T202=\"No\",IF(N202=\"\",\"\",N202),\"\")","v":""},null,"",0,"","",0,0,0,null,"","",null,null,null,null,null,null,null,null,null,"","","",""]
[0,{"$f":"B202+1","v":195},null,null,"",null,null,null,null,null,0,null,null,null,null,0,null,null,0,null,"","","",0,"","","",null,"",0,"","",0,0,0,null,"","",null,null,null,null,null,null,null,null,null,"","","",""]
[0,196,null,null,"",null,null,null,null,null,0,null,null,null,null,0,null,null,0,null,"","","",0,"","","",null,"",0,"","",0,0,0,null,"","",null,null,null,null,null,null,null,null,null,"","","",""]
[0,197,null,null,"",null,null,null,null,null,0,null,null,null,null,0,null,null,0,null,"","","",0,"","","",null,"",0,"","",0,0,0,null,"","",null,null,null,null,null,null,null,null,null,"","","",""]
[0,198,null,null,"",null,null,null,null,null,0,null,null,null,null,0,null,null,0,null,"","","",0,"","","",null,"",0,"","",0,0,0,null,"","",null,null,null,null,null,null,null,null,null,"","","",""]
[0,199,null,null,"",null,null,null,null,null,0,null,null,null,null,0,null,null,0,null,"","","",0,"","","",null,"",0,"","",0,0,0,null,"","",null,null,null,null,null,null,null,null,null,"","","",""]
[0,200,null,null,"",null,null,null,null,null,0,null,null,null,null,{"$f":"IFERROR(IF(O208=\"\",0,1-VLOOKUP(O208,Prop_Sens_Table,2,FALSE)),\"N/A\")","v":0},null,null,{"$f":"IF(L208=\"\",N(K208)*N208,L208*N208)","v":0},null,"","","",0,"","","",null,"",0,"","",0,0,0,null,"","",null,null,null,null,null,null,null,null,null,"","","",""]
[0,201,null,null,"",null,null,null,null,null,0,null,null,null,null,0,null,null,0,null,"","","",0,"","","",null,"",0,"","",0,0,0,null,"","",null,null,null,null,null,null,null,null,null,"","","",""]
[0,202,null,null,"",null,null,null,null,null,0,null,null,null,null,0,null,null,0,null,"","","",0,"","","",null,"",0,"","",0,0,0,null,"","",null,null,null,null,null,null,null,null,null,"","","",""]
[0,203,null,null,"",null,null,null,null,null,0,null,null,null,null,0,null,null,0,null,"","","",0,"","","",null,"",0,"","",0,0,0,null,"","",null,null,null,null,null,null,null,null,null,"","","",""]
[0,204,null,null,"",null,null,null,null,null,0,null,null,null,null,0,null,null,0,null,"","","",0,"","","",null,"",0,"","",0,0,0,null,"","",null,null,null,null,null,null,null,null,null,"","","",""]
[0,205,null,null,"",null,null,null,null,null,0,null,null,null,null,0,null,null,0,null,"","","",0,"","","",null,"",0,"","",0,0,0,null,"","",null,null,null,null,null,null,null,null,null,"","","",""]
[0,206,null,null,"",null,null,null,null,null,0,null,null,null,null,0,null,null,0,null,"","","",0,"","","",null,"",0,"","",0,0,0,null,"","",null,null,null,null,null,null,null,null,null,"","","",""]
[0,207,null,null,"",null,null,null,null,null,0,null,null,null,null,0,null,null,0,null,"","","",0,"","","",null,"",0,"","",0,0,0,null,"","",null,null,null,null,null,null,null,null,null,"","","",""]
[0,208,null,null,"",null,null,null,null,null,0,null,null,null,null,0,null,null,0,null,"","","",0,"","","",null,"",0,"","",0,0,0,null,"","",null,null,null,null,null,null,null,null,null,"","","",""]
[0,209,null,null,"",null,null,null,null,null,0,null,null,null,null,0,null,null,0,null,"","","",0,"","","",null,"",0,"","",0,0,0,null,"","",null,null,null,null,null,null,null,null,null,"","","",""]
[0,210,null,null,"",null,null,null,null,null,0,null,null,null,null,0,null,null,0,null,"","","",0,"","","",null,"",0,"","",0,0,0,null,"","",null,null,null,null,null,null,null,null,null,"","","",""]
[0,211,null,null,"",null,null,null,null,null,0,null,null,null,null,0,null,null,0,null,"","","",0,"","","",null,"",0,"","",0,0,0,null,"","",null,null,null,null,null,null,null,null,null,"","","",""]
[0,212,null,null,"",null,null,null,null,null,0,null,null,null,null,0,null,null,0,null,"","","",0,"","","",null,"",0,"","",0,0,0,null,"","",null,null,null,null,null,null,null,null,null,"","","",""]
[0,213,null,null,"",null,null,null,null,null,0,null,null,null,null,0,null,null,0,null,"","","",0,"","","",null,"",0,"","",0,0,0,null,"","",null,null,null,null,null,null,null,null,null,"","","",""]
[0,214,null,null,"",null,null,null,null,null,0,null,null,null,null,0,null,null,0,null,"","","",0,"","","",null,"",0,"","",0,0,0,null,"","",null,null,null,null,null,null,null,null,null,"","","",""]
[0,215,null,null,"",null,null,null,null,null,0,null,null,null,null,0,null,null,0,null,"","","",0,"","","",null,"",0,"","",0,0,0,null,"","",null,null,null,null,null,null,null,null,null,"","","",""]
[0,216,null,null,"",null,null,null,null,null,0,null,null,null,null,0,null,null,0,null,"","","",0,"","","",null,"",0,"","",0,0,0,null,"","",null,null,null,null,null,null,null,null,null,"","","",""]
[0,217,null,null,"",null,null,null,null,null,0,null,null,null,null,0,null,null,0,null,"","","",0,"","","",null,"",0,"","",0,0,0,null,"","",null,null,null,null,null,null,null,null,null,"","","",""]
[0,218,null,null,"",null,null,null,null,null,0,null,null,null,null,0,null,null,0,null,"","","",0,"","","",null,"",0,"","",0,0,0,null,"","",null,null,null,null,null,null,null,null,null,"","","",""]
[0,219,null,null,"",null,null,null,null,null,0,null,null,null,null,0,null,null,0,null,"","","",0,"","","",null,"",0,"","",0,0,0,null,"","",null,null,null,null,null,null,null,null,null,"","","",""]
[0,220,null,null,"",null,null,null,null,null,0,null,null,null,null,0,null,null,0,null,"","","",0,"","","",null,"",0,"","",0,0,0,null,"","",null,null,null,null,null,null,null,null,null,"","","",""]
[0,221,null,null,"",null,null,null,null,null,0,null,null,null,null,0,null,null,0,null,"","","",0,"","","",null,"",0,"","",0,0,0,null,"","",null,null,null,null,null,null,null,null,null,"","","",""]
[0,222,null,null,"",null,null,null,null,null,0,null,null,null,null,0,null,null,0,null,"","","",0,"","","",null,"",0,"","",0,0,0,null,"","",null,null,null,null,null,null,null,null,null,"","","",""]
[0,223,null,null,"",null,null,null,null,null,0,null,null,null,null,0,null,null,0,null,"","","",0,"","","",null,"",0,"","",0,0,0,null,"","",null,null,null,null,null,null,null,null,null,"","","",""]
[0,224,null,null,"",null,null,null,null,null,0,null,null,null,null,0,null,null,0,null,"","","",0,"","","",null,"",0,"","",0,0,0,null,"","",null,null,null,null,null,null,null,null,null,"","","",""]
[0,225,null,null,"",null,null,null,null,null,0,null,null,null,null,0,null,null,0,null,"","","",0,"","","",null,"",0,"","",0,0,0,null,"","",null,null,null,null,null,null,null,null,null,"","","",""]
[0,226,null,null,"",null,null,null,null,null,0,null,null,null,null,0,null,null,0,null,"","","",0,"","","",null,"",0,"","",0,0,0,null,"","",null,null,null,null,null,null,null,null,null,"","","",""]
[0,227,null,null,"",null,null,null,null,null,0,null,null,null,null,0,null,null,0,null,"","","",0,"","","",null,"",0,"","",0,0,0,null,"","",null,null,null,null,null,null,null,null,null,"","","",""]
[0,228,null,null,"",null,null,null,null,null,0,null,null,null,null,0,null,null,0,null,"","","",0,"","","",null,"",0,"","",0,0,0,null,"","",null,null,null,null,null,null,null,null,null,"","","",""]
[0,229,null,null,"",null,null,null,null,null,0,null,null,null,null,0,null,null,0,null,"","","",0,"","","",null,"",0,"","",0,0,0,null,"","",null,null,null,null,null,null,null,null,null,"","","",""]
[0,230,null,null,"",null,null,null,null,null,0,null,null,null,null,0,null,null,0,null,"","","",0,"","","",null,"",0,"","",0,0,0,null,"","",null,null,null,null,null,null,null,null,null,"","","",""]
[0,231,null,null,"",null,null,null,null,null,0,null,null,null,null,0,null,null,0,null,"","","",0,"","","",null,"",0,"","",0,0,0,null,"","",null,null,null,null,null,null,null,null,null,"","","",""]
[0,232,null,null,"",null,null,null,null,null,0,null,null,null,null,0,null,null,0,null,"","","",0,"","","",null,"",0,"","",0,0,0,null,"","",null,null,null,null,null,null,null,null,null,"","","",""]
[0,233,null,null,"",null,null,null,null,null,0,null,null,null,null,0,null,null,0,null,"","","",0,"","","",null,"",0,"","",0,0,0,null,"","",null,null,null,null,null,null,null,null,null,"","","",""]
[0,234,null,null,"",null,null,null,null,null,0,null,null,null,null,0,null,null,0,null,"","","",0,"","","",null,"",0,"","",0,0,0,null,"","",null,null,null,null,null,null,null,null,null,"","","",""]
[0,235,null,null,"",null,null,null,null,null,0,null,null,null,null,0,null,null,0,null,"","","",0,"","","",null,"",0,"","",0,0,0,null,"","",null,null,null,null,null,null,null,null,null,"","","",""]
[0,236,null,null,"",null,null,null,null,null,0,null,null,null,null,0,null,null,0,null,"","","",0,"","","",null,"",0,"","",0,0,0,null,"","",null,null,null,null,null,null,null,null,null,"","","",""]
[0,237,null,null,"",null,null,null,null,null,0,null,null,null,null,0,null,null,0,null,"","","",0,"","","",null,"",0,"","",0,0,0,null,"","",null,null,null,null,null,null,null,null,null,"","","",""]
[0,238,null,null,"",null,null,null,null,null,0,null,null,null,null,0,null,null,0,null,"","","",0,"","","",null,"",0,"","",0,0,0,null,"","",null,null,null,null,null,null,null,null,null,"","","",""]
[0,239,null,null,"",null,null,null,null,null,0,null,null,null,null,0,null,null,0,null,"","","",0,"","","",null,"",0,"","",0,0,0,null,"","",null,null,null,null,null,null,null,null,null,"","","",""]
[0,240,null,null,"",null,null,null,null,null,0,null,null,null,null,0,null,null,0,null,"","","",0,"","","",null,"",0,"","",0,0,0,null,"","",null,null,null,null,null,null,null,null,null,"","","",""]
[0,241,null,null,"",null,null,null,null,null,0,null,null,null,null,0,null,null,0,null,"","","",0,"","","",null,"",0,"","",0,0,0,null,"","",null,null,null,null,null,null,null,null,null,"","","",""]
[0,242,null,null,"",null,null,null,null,null,0,null,null,null,null,0,null,null,0,null,"","","",0,"","","",null,"",0,"","",0,0,0,null,"","",null,null,null,null,null,null,null,null,null,"","","",""]
[0,243,null,null,"",null,null,null,null,null,0,null,null,null,null,0,null,null,0,null,"","","",0,"","","",null,"",0,"","",0,0,0,null,"","",null,null,null,null,null,null,null,null,null,"","","",""]
[0,244,null,null,"",null,null,null,null,null,0,null,null,null,null,0,null,null,0,null,"","","",0,"","","",null,"",0,"","",0,0,0,null,"","",null,null,null,null,null,null,null,null,null,"","","",""]
[0,245,null,null,"",null,null,null,null,null,0,null,null,null,null,0,null,null,0,null,"","","",0,"","","",null,"",0,"","",0,0,0,null,"","",null,null,null,null,null,null,null,null,null,"","","",""]
[0,246,null,null,"",null,null,null,null,null,0,null,null,null,null,0,null,null,0,null,"","","",0,"","","",null,"",0,"","",0,0,0,null,"","",null,null,null,null,null,null,null,null,null,"","","",""]
[0,247,null,null,"",null,null,null,null,null,0,null,null,null,null,0,null,null,0,null,"","","",0,"","","",null,"",0,"","",0,0,0,null,"","",null,null,null,null,null,null,null,null,null,"","","",""]
[0,248,null,null,"",null,null,null,null,null,0,null,null,null,null,0,null,null,0,null,"","","",0,"","","",null,"",0,"","",0,0,0,null,"","",null,null,null,null,null,null,null,null,null,"","","",""]
[0,249,null,null,"",null,null,null,null,null,0,null,null,null,null,0,null,null,0,null,"","","",0,"","","",null,"",0,"","",0,0,0,null,"","",null,null,null,null,null,null,null,null,null,"","","",""]
[0,250,null,null,"",null,null,null,null,null,0,null,null,null,null,0,null,null,0,null,"","","",0,"","","",null,"",0,"","",0,0,0,null,"","",null,null,null,null,null,null,null,null,null,"","","",""]
[0,251,null,null,"",null,null,null,null,null,0,null,null,null,null,0,null,null,0,null,"","","",0,"","","",null,"",0,"","",0,0,0,null,"","",null,null,null,null,null,null,null,null,null,"","","",""]
[0,252,null,null,"",null,null,null,null,null,0,null,null,null,null,0,null,null,0,null,"","","",0,"","","",null,"",0,"","",0,0,0,null,"","",null,null,null,null,null,null,null,null,null,"","","",""]
[0,253,null,null,"",null,null,null,null,null,0,null,null,null,null,0,null,null,0,null,"","","",0,"","","",null,"",0,"","",0,0,0,null,"","",null,null,null,null,null,null,null,null,null,"","","",""]
[0,254,null,null,"",null,null,null,null,null,0,null,null,null,null,0,null,null,0,null,"","","",0,"","","",null,"",0,"","",0,0,0,null,"","",null,null,null,null,null,null,null,null,null,"","","",""]
[0,255,null,null,"",null,null,null,null,null,0,null,null,null,null,0,null,null,0,null,"","","",0,"","","",null,"",0,"","",0,0,0,null,"","",null,null,null,null,null,null,null,null,null,"","","",""]
[0,256,null,null,"",null,null,null,null,null,0,null,null,null,null,0,null,null,0,null,"","","",0,"","","",null,"",{"$f":"IFERROR(IF($AB264=\"No\",P264,IF(AC264=\"\",0,1-VLOOKUP(AC264,Prop_Sens_Table,2,FALSE))),\"N/A\")","v":0},"","",0,{"$f":"S264-AG264","v":0},{"$f":"IFERROR(1-(AG264/S264),0)","v":0},null,{"$f":"IF(E264=\"\",\"\",(1-IF(Q264=\"\",P264,Q264))*VLOOKUP(E264,BuildingType_RunHours,2,FALSE))","v":""},{"$f":"IF(E264=\"\",\"\",(1-IF(AE264=\"\",AD264,AE264))*VLOOKUP(E264,BuildingType_RunHours,2,FALSE))","v":""},null,null,null,null,null,null,null,null,null,{"$f":"IF(ISERROR(VLOOKUP($I264,LightWattLimits,2,FALSE))=TRUE,\"\",VLOOKUP($I264,LightWattLimits,2,FALSE))","v":""},{"$f":"IF(ISERROR(VLOOKUP($I264,LightWattLimits,3,FALSE))=TRUE,\"\",VLOOKUP($I264,LightWattLimits,3,FALSE))","v":""},{"$f":"IF(ISERROR(VLOOKUP($V264,LightWattLimits,2,FALSE))=TRUE,\"\",VLOOKUP($V264,LightWattLimits,2,FALSE))","v":""},{"$f":"IF(ISERROR(VLOOKUP($V264,LightWattLimits,3,FALSE))=TRUE,\"\",VLOOKUP($V264,LightWattLimits,3,FALSE))","v":""}]
[0,257,null,null,"",null,null,null,null,null,{"$f":"IFERROR(IF(OR(H265=\"\",I265=\"\")=TRUE,0,VLOOKUP(I265,INDIRECT(SUBSTITUTE(SUBSTITUTE(H265,\" \",\"_\"),\"-\",\"_\")&\"W\"),2,FALSE)),\"N/A\")","v":0},null,null,null,null,0,null,null,0,null,"","","",0,"","","",null,{"$f":"IF($AB265=\"No\",IF(O265=\"\",\"\",O265),\"\")","v":""},0,{"$f":"IF($AB265=\"No\",IF(Q265=\"\",\"\",Q265),\"\")","v":""},{"$f":"IF($AB265=\"No\",IF(R265=\"\",\"\",R265),\"\")","v":""},{"$f":"IF($T265=\"\", 0,IF(T265=\"No\",S265,IF(Y265=\"\",X265*AA265,Y265*AA265)))","v":0},0,0,null,"","",null,null,null,null,null,null,null,null,null,"","","",""]
[{"$f":"IF(C266=\"\",0,1)","v":0},258,null,null,"",null,null,null,null,null,0,null,null,null,null,0,null,null,0,null,{"$f":"IF($T266=\"No\",IF(H266=\"\",\"\",H266),\"\")","v":""},{"$f":"IF($T266=\"No\",IF(I266=\"\",\"\",I266),\"\")","v":""},{"$f":"IF($T266=\"No\",IF(J266=\"\",\"\",J266),\"\")","v":""},{"$f":"IFERROR(IF(T266=\"No\",K266,IF(U266=\"\",0,IF(LEFT(U266,1)=\"*\",K266,IF(V266=\"\",0,VLOOKUP(V266,INDIRECT(SUBSTITUTE(SUBSTITUTE(U266,\" \",\"_\"),\"-\",\"_\")&\"W\"),2,FALSE))))),\"N/A\")","v":0},{"$f":"IF($T266=\"No\",IF(L266=\"\",\"\",L266),\"\")","v":""},{"$f":"IF($T266=\"No\",IF(M266=\"\",\"\",M266),\"\")","v":""},{"$f":"IF($T266=\"No\",IF(N266=\"\",\"\",N266),\"\")","v":""},null,"",0,"","",0,0,0,null,"","",null,null,null,null,null,null,null,null,null,"","","",""]
[0,{"$f":"B266+1","v":259},null,null,"",null,null,null,null,null,0,null,null,null,null,0,null,null,0,null,"","","",0,"","","",null,"",0,"","",0,0,0,null,"","",null,null,null,null,null,null,null,null,null,"","","",""]
[0,260,null,null,"",null,null,null,null,null,0,null,null,null,null,0,null,null,0,null,"","","",0,"","","",null,"",0,"","",0,0,0,null,"","",null,null,null,null,null,null,null,null,null,"","","",""]
[0,261,null,null,"",null,null,null,null,null,0,null,null,null,null,0,null,null,0,null,"","","",0,"","","",null,"",0,"","",0,0,0,null,"","",null,null,null,null,null,null,null,null,null,"","","",""]
[0,262,null,null,"",null,null,null,null,null,0,null,null,null,null,0,null,null,0,null,"","","",0,"","","",null,"",0,"","",0,0,0,null,"","",null,null,null,null,null,null,null,null,null,"","","",""]
[0,263,null,null,"",null,null,null,null,null,0,null,null,null,null,0,null,null,0,null,"","","",0,"","","",null,"",0,"","",0,0,0,null,"","",null,null,null,null,null,null,null,null,null,"","","",""]
[0,264,null,null,"",null,null,null,null,null,0,null,null,null,null,{"$f":"IFERROR(IF(O272=\"\",0,1-VLOOKUP(O272,Prop_Sens_Table,2,FALSE)),\"N/A\")","v":0},null,null,{"$f":"IF(L272=\"\",N(K272)*N272,L272*N272)","v":0},null,"","","",0,"","","",null,"",0,"","",0,0,0,null,"","",null,null,null,null,null,null,null,null,null,"","","",""]
[0,265,null,null,"",null,null,null,null,null,0,null,null,null,null,0,null,null,0,null,"","","",0,"","","",null,"",0,"","",0,0,0,null,"","",null,null,null,null,null,null,null,null,null,"","","",""]
[0,266,null,null,"",null,null,null,null,null,0,null,null,null,null,0,null,null,0,null,"","","",0,"","","",null,"",0,"","",0,0,0,null,"","",null,null,null,null,null,null,null,null,null,"","","",""]
[0,267,null,null,"",null,null,null,null,null,0,null,null,null,null,0,null,null,0,null,"","","",0,"","","",null,"",0,"","",0,0,0,null,"","",null,null,null,null,null,null,null,null,null,"","","",""]
[0,268,null,null,"",null,null,null,null,null,0,null,null,null,null,0,null,null,0,null,"","","",0,"","","",null,"",0,"","",0,0,0,null,"","",null,null,null,null,null,null,null,null,null,"","","",""]
[0,269,null,null,"",null,null,null,null,null,0,null,null,null,null,0,null,null,0,null,"","","",0,"","","",null,"",0,"","",0,0,0,null,"","",null,null,null,null,null,null,null,null,null,"","","",""]
[0,270,null,null,"",null,null,null,null,null,0,null,null,null,null,0,null,null,0,null,"","","",0,"","","",null,"",0,"","",0,0,0,null,"","",null,null,null,null,null,null,null,null,null,"","","",""]
[0,271,null,null,"",null,null,null,null,null,0,null,null,null,null,0,null,null,0,null,"","","",0,"","","",null,"",0,"","",0,0,0,null,"","",null,null,null,null,null,null,null,null,null,"","","",""]
[0,272,null,null,"",null,null,null,null,null,0,null,null,null,null,0,null,null,0,null,"","","",0,"","","",null,"",0,"","",0,0,0,null,"","",null,null,null,null,null,null,null,null,null,"","","",""]
[0,273,null,null,"",null,null,null,null,null,0,null,null,null,null,0,null,null,0,null,"","","",0,"","","",null,"",0,"","",0,0,0,null,"","",null,null,null,null,null,null,null,null,null,"","","",""]
[0,274,null,null,"",null,null,null,null,null,0,null,null,null,null,0,null,null,0,null,"","","",0,"","","",null,"",0,"","",0,0,0,null,"","",null,null,null,null,null,null,null,null,null,"","","",""]
[0,275,null,null,"",null,null,null,null,null,0,null,null,null,null,0,null,null,0,null,"","","",0,"","","",null,"",0,"","",0,0,0,null,"","",null,null,null,null,null,null,null,null,null,"","","",""]
[0,276,null,null,"",null,null,null,null,null,0,null,null,null,null,0,null,null,0,null,"","","",0,"","","",null,"",0,"","",0,0,0,null,"","",null,null,null,null,null,null,null,null,null,"","","",""]
[0,277,null,null,"",null,null,null,null,null,0,null,null,null,null,0,null,null,0,null,"","","",0,"","","",null,"",0,"","",0,0,0,null,"","",null,null,null,null,null,null,null,null,null,"","","",""]
[0,278,null,null,"",null,null,null,null,null,0,null,null,null,null,0,null,null,0,null,"","","",0,"","","",null,"",0,"","",0,0,0,null,"","",null,null,null,null,null,null,null,null,null,"","","",""]
[0,279,null,null,"",null,null,null,null,null,0,null,null,null,null,0,null,null,0,null,"","","",0,"","","",null,"",0,"","",0,0,0,null,"","",null,null,null,null,null,null,null,null,null,"","","",""]
[0,280,null,null,"",null,null,null,null,null,0,null,null,null,null,0,null,null,0,null,"","","",0,"","","",null,"",0,"","",0,0,0,null,"","",null,null,null,null,null,null,null,null,null,"","","",""]
[0,281,null,null,"",null,null,null,null,null,0,null,null,null,null,0,null,null,0,null,"","","",0,"","","",null,"",0,"","",0,0,0,null,"","",null,null,null,null,null,null,null,null,null,"","","",""]
[0,282,null,null,"",null,null,null,null,null,0,null,null,null,null,0,null,null,0,null,"","","",0,"","","",null,"",0,"","",0,0,0,null,"","",null,null,null,null,null,null,null,null,null,"","","",""]
[0,283,null,null,"",null,null,null,null,null,0,null,null,null,null,0,null,null,0,null,"","","",0,"","","",null,"",0,"","",0,0,0,null,"","",null,null,null,null,null,null,null,null,null,"","","",""]
[0,284,null,null,"",null,null,null,null,null,0,null,null,null,null,0,null,null,0,null,"","","",0,"","","",null,"",0,"","",0,0,0,null,"","",null,null,null,null,null,null,null,null,null,"","","",""]
[0,285,null,null,"",null,null,null,null,null,0,null,null,null,null,0,null,null,0,null,"","","",0,"","","",null,"",0,"","",0,0,0,null,"","",null,null,null,null,null,null,null,null,null,"","","",""]
[0,286,null,null,"",null,null,null,null,null,0,null,null,null,null,0,null,null,0,null,"","","",0,"","","",null,"",0,"","",0,0,0,null,"","",null,null,null,null,null,null,null,null,null,"","","",""]
[0,287,null,null,"",null,null,null,null,null,0,null,null,null,null,0,null,null,0,null,"","","",0,"","","",null,"",0,"","",0,0,0,null,"","",null,null,null,null,null,null,null,null,null,"","","",""]
[0,288,null,null,"",null,null,null,null,null,0,null,null,null,null,0,null,null,0,null,"","","",0,"","","",null,"",0,"","",0,0,0,null,"","",null,null,null,null,null,null,null,null,null,"","","",""]
[0,289,null,null,"",null,null,null,null,null,0,null,null,null,null,0,null,null,0,null,"","","",0,"","","",null,"",0,"","",0,0,0,null,"","",null,null,null,null,null,null,null,null,null,"","","",""]
[0,290,null,null,"",null,null,null,null,null,0,null,null,null,null,0,null,null,0,null,"","","",0,"","","",null,"",0,"","",0,0,0,null,"","",null,null,null,null,null,null,null,null,null,"","","",""]
[0,291,null,null,"",null,null,null,null,null,0,null,null,null,null,0,null,null,0,null,"","","",0,"","","",null,"",0,"","",0,0,0,null,"","",null,null,null,null,null,null,null,null,null,"","","",""]
[0,292,null,null,"",null,null,null,null,null,0,null,null,null,null,0,null,null,0,null,"","","",0,"","","",null,"",0,"","",0,0,0,null,"","",null,null,null,null,null,null,null,null,null,"","","",""]
[0,293,null,null,"",null,null,null,null,null,0,null,null,null,null,0,null,null,0,null,"","","",0,"","","",null,"",0,"","",0,0,0,null,"","",null,null,null,null,null,null,null,null,null,"","","",""]
[0,294,null,null,"",null,null,null,null,null,0,null,null,null,null,0,null,null,0,null,"","","",0,"","","",null,"",0,"","",0,0,0,null,"","",null,null,null,null,null,null,null,null,null,"","","",""]
[0,295,null,null,"",null,null,null,null,null,0,null,null,null,null,0,null,null,0,null,"","","",0,"","","",null,"",0,"","",0,0,0,null,"","",null,null,null,null,null,null,null,null,null,"","","",""]
[0,296,null,null,"",null,null,null,null,null,0,null,null,null,null,0,null,null,0,null,"","","",0,"","","",null,"",0,"","",0,0,0,null,"","",null,null,null,null,null,null,null,null,null,"","","",""]
[0,297,null,null,"",null,null,null,null,null,0,null,null,null,null,0,null,null,0,null,"","","",0,"","","",null,"",0,"","",0,0,0,null,"","",null,null,null,null,null,null,null,null,null,"","","",""]
[0,298,null,null,"",null,null,null,null,null,0,null,null,null,null,0,null,null,0,null,"","","",0,"","","",null,"",0,"","",0,0,0,null,"","",null,null,null,null,null,null,null,null,null,"","","",""]
[0,299,null,null,"",null,null,null,null,null,0,null,null,null,null,0,null,null,0,null,"","","",0,"","","",null,"",0,"","",0,0,0,null,"","",null,null,null,null,null,null,null,null,null,"","","",""]
[0,300,null,null,"",null,null,null,null,null,0,null,null,null,null,0,null,null,0,null,"","","",0,"","","",null,"",0,"","",0,0,0,null,"","",null,null,null,null,null,null,null,null,null,"","","",""]
[0,301,null,null,"",null,null,null,null,null,0,null,null,null,null,0,null,null,0,null,"","","",0,"","","",null,"",0,"","",0,0,0,null,"","",null,null,null,null,null,null,null,null,null,"","","",""]
[0,302,null,null,"",null,null,null,null,null,0,null,null,null,null,0,null,null,0,null,"","","",0,"","","",null,"",0,"","",0,0,0,null,"","",null,null,null,null,null,null,null,null,null,"","","",""]
[0,303,null,null,"",null,null,null,null,null,0,null,null,null,null,0,null,null,0,null,"","","",0,"","","",null,"",0,"","",0,0,0,null,"","",null,null,null,null,null,null,null,null,null,"","","",""]
[0,304,null,null,"",null,null,null,null,null,0,null,null,null,null,0,null,null,0,null,"","","",0,"","","",null,"",0,"","",0,0,0,null,"","",null,null,null,null,null,null,null,null,null,"","","",""]
[0,305,null,null,"",null,null,null,null,null,0,null,null,null,null,0,null,null,0,null,"","","",0,"","","",null,"",0,"","",0,0,0,null,"","",null,null,null,null,null,null,null,null,null,"","","",""]
[0,306,null,null,"",null,null,null,null,null,0,null,null,null,null,0,null,null,0,null,"","","",0,"","","",null,"",0,"","",0,0,0,null,"","",null,null,null,null,null,null,null,null,null,"","","",""]
[0,307,null,null,"",null,null,null,null,null,0,null,null,null,null,0,null,null,0,null,"","","",0,"","","",null,"",0,"","",0,0,0,null,"","",null,null,null,null,null,null,null,null,null,"","","",""]
[0,308,null,null,"",null,null,null,null,null,0,null,null,null,null,0,null,null,0,null,"","","",0,"","","",null,"",0,"","",0,0,0,null,"","",null,null,null,null,null,null,null,null,null,"","","",""]
[0,309,null,null,"",null,null,null,null,null,0,null,null,null,null,0,null,null,0,null,"","","",0,"","","",null,"",0,"","",0,0,0,null,"","",null,null,null,null,null,null,null,null,null,"","","",""]
[0,310,null,null,"",null,null,null,null,null,0,null,null,null,null,0,null,null,0,null,"","","",0,"","","",null,"",0,"","",0,0,0,null,"","",null,null,null,null,null,null,null,null,null,"","","",""]
[0,311,null,null,"",null,null,null,null,null,0,null,null,null,null,0,null,null,0,null,"","","",0,"","","",null,"",0,"","",0,0,0,null,"","",null,null,null,null,null,null,null,null,null,"","","",""]
[0,312,null,null,"",null,null,null,null,null,0,null,null,null,null,0,null,null,0,null,"","","",0,"","","",null,"",0,"","",0,0,0,null,"","",null,null,null,null,null,null,null,null,null,"","","",""]
[0,313,null,null,"",null,null,null,null,null,0,null,null,null,null,0,null,null,0,null,"","","",0,"","","",null,"",0,"","",0,0,0,null,"","",null,null,null,null,null,null,null,null,null,"","","",""]
[0,314,null,null,"",null,null,null,null,null,0,null,null,null,null,0,null,null,0,null,"","","",0,"","","",null,"",0,"","",0,0,0,null,"","",null,null,null,null,null,null,null,null,null,"","","",""]
[0,315,null,null,"",null,null,null,null,null,0,null,null,null,null,0,null,null,0,null,"","","",0,"","","",null,"",0,"","",0,0,0,null,"","",null,null,null,null,null,null,null,null,null,"","","",""]
[0,316,null,null,"",null,null,null,null,null,0,null,null,null,null,0,null,null,0,null,"","","",0,"","","",null,"",0,"","",0,0,0,null,"","",null,null,null,null,null,null,null,null,null,"","","",""]
[0,317,null,null,"",null,null,null,null,null,0,null,null,null,null,0,null,null,0,null,"","","",0,"","","",null,"",0,"","",0,0,0,null,"","",null,null,null,null,null,null,null,null,null,"","","",""]
[0,318,null,null,"",null,null,null,null,null,0,null,null,null,null,0,null,null,0,null,"","","",0,"","","",null,"",0,"","",0,0,0,null,"","",null,null,null,null,null,null,null,null,null,"","","",""]
[0,319,null,null,"",null,null,null,null,null,0,null,null,null,null,0,null,null,0,null,"","","",0,"","","",null,"",0,"","",0,0,0,null,"","",null,null,null,null,null,null,null,null,null,"","","",""]
[0,320,null,null,"",null,null,null,null,null,0,null,null,null,null,0,null,null,0,null,"","","",0,"","","",null,"",{"$f":"IFERROR(IF($AB328=\"No\",P328,IF(AC328=\"\",0,1-VLOOKUP(AC328,Prop_Sens_Table,2,FALSE))),\"N/A\")","v":0},"","",0,{"$f":"S328-AG328","v":0},{"$f":"IFERROR(1-(AG328/S328),0)","v":0},null,{"$f":"IF(E328=\"\",\"\",(1-IF(Q328=\"\",P328,Q328))*VLOOKUP(E328,BuildingType_RunHours,2,FALSE))","v":""},{"$f":"IF(E328=\"\",\"\",(1-IF(AE328=\"\",AD328,AE328))*VLOOKUP(E328,BuildingType_RunHours,2,FALSE))","v":""},null,null,null,null,null,null,null,null,null,{"$f":"IF(ISERROR(VLOOKUP($I328,LightWattLimits,2,FALSE))=TRUE,\"\",VLOOKUP($I328,LightWattLimits,2,FALSE))","v":""},{"$f":"IF(ISERROR(VLOOKUP($I328,LightWattLimits,3,FALSE))=TRUE,\"\",VLOOKUP($I328,LightWattLimits,3,FALSE))","v":""},{"$f":"IF(ISERROR(VLOOKUP($V328,LightWattLimits,2,FALSE))=TRUE,\"\",VLOOKUP($V328,LightWattLimits,2,FALSE))","v":""},{"$f":"IF(ISERROR(VLOOKUP($V328,LightWattLimits,3,FALSE))=TRUE,\"\",VLOOKUP($V328,LightWattLimits,3,FALSE))","v":""}]
[0,321,null,null,"",null,null,null,null,null,{"$f":"IFERROR(IF(OR(H329=\"\",I329=\"\")=TRUE,0,VLOOKUP(I329,INDIRECT(SUBSTITUTE(SUBSTITUTE(H329,\" \",\"_\"),\"-\",\"_\")&\"W\"),2,FALSE)),\"N/A\")","v":0},null,null,null,null,0,null,null,0,null,"","","",0,"","","",null,{"$f":"IF($AB329=\"No\",IF(O329=\"\",\"\",O329),\"\")","v":""},0,{"$f":"IF($AB329=\"No\",IF(Q329=\"\",\"\",Q329),\"\")","v":""},{"$f":"IF($AB329=\"No\",IF(R329=\"\",\"\",R329),\"\")","v":""},{"$f":"IF($T329=\"\", 0,IF(T329=\"No\",S329,IF(Y329=\"\",X329*AA329,Y329*AA329)))","v":0},0,0,null,"","",null,null,null,null,null,null,null,null,null,"","","",""]
[{"$f":"IF(C330=\"\",0,1)","v":0},322,null,null,"",null,null,null,null,null,0,null,null,null,null,0,null,null,0,null,{"$f":"IF($T330=\"No\",IF(H330=\"\",\"\",H330),\"\")","v":""},{"$f":"IF($T330=\"No\",IF(I330=\"\",\"\",I330),\"\")","v":""},{"$f":"IF($T330=\"No\",IF(J330=\"\",\"\",J330),\"\")","v":""},{"$f":"IFERROR(IF(T330=\"No\",K330,IF(U330=\"\",0,IF(LEFT(U330,1)=\"*\",K330,IF(V330=\"\",0,VLOOKUP(V330,INDIRECT(SUBSTITUTE(SUBSTITUTE(U330,\" \",\"_\"),\"-\",\"_\")&\"W\"),2,FALSE))))),\"N/A\")","v":0},{"$f":"IF($T330=\"No\",IF(L330=\"\",\"\",L330),\"\")","v":""},{"$f":"IF($T330=\"No\",IF(M330=\"\",\"\",M330),\"\")","v":""},{"$f":"IF($T330=\"No\",IF(N330=\"\",\"\",N330),\"\")","v":""},null,"",0,"","",0,0,0,null,"","",null,null,null,null,null,null,null,null,null,"","","",""]
[0,{"$f":"B330+1","v":323},null,null,"",null,null,null,null,null,0,null,null,null,null,0,null,null,0,null,"","","",0,"","","",null,"",0,"","",0,0,0,null,"","",null,null,null,null,null,null,null,null,null,"","","",""]
[0,324,null,null,"",null,null,null,null,null,0,null,null,null,null,0,null,null,0,null,"","","",0,"","","",null,"",0,"","",0,0,0,null,"","",null,null,null,null,null,null,null,null,null,"","","",""]
[0,325,null,null,"",null,null,null,null,null,0,null,null,null,null,0,null,null,0,null,"","","",0,"","","",null,"",0,"","",0,0,0,null,"","",null,null,null,null,null,null,null,null,null,"","","",""]
[0,326,null,null,"",null,null,null,null,null,0,null,null,null,null,0,null,null,0,null,"","","",0,"","","",null,"",0,"","",0,0,0,null,"","",null,null,null,null,null,null,null,null,null,"","","",""]
[0,327,null,null,"",null,null,null,null,null,0,null,null,null,null,0,null,null,0,null,"","","",0,"","","",null,"",0,"","",0,0,0,null,"","",null,null,null,null,null,null,null,null,null,"","","",""]
[0,328,null,null,"",null,null,null,null,null,0,null,null,null,null,{"$f":"IFERROR(IF(O336=\"\",0,1-VLOOKUP(O336,Prop_Sens_Table,2,FALSE)),\"N/A\")","v":0},null,null,{"$f":"IF(L336=\"\",N(K336)*N336,L336*N336)","v":0},null,"","","",0,"","","",null,"",0,"","",0,0,0,null,"","",null,null,null,null,null,null,null,null,null,"","","",""]
[0,329,null,null,"",null,null,null,null,null,0,null,null,null,null,0,null,null,0,null,"","","",0,"","","",null,"",0,"","",0,0,0,null,"","",null,null,null,null,null,null,null,null,null,"","","",""]
[0,330,null,null,"",null,null,null,null,null,0,null,null,null,null,0,null,null,0,null,"","","",0,"","","",null,"",0,"","",0,0,0,null,"","",null,null,null,null,null,null,null,null,null,"","","",""]
[0,331,null,null,"",null,null,null,null,null,0,null,null,null,null,0,null,null,0,null,"","","",0,"","","",null,"",0,"","",0,0,0,null,"","",null,null,null,null,null,null,null,null,null,"","","",""]
[0,332,null,null,"",null,null,null,null,null,0,null,null,null,null,0,null,null,0,null,"","","",0,"","","",null,"",0,"","",0,0,0,null,"","",null,null,null,null,null,null,null,null,null,"","","",""]
[0,333,null,null,"",null,null,null,null,null,0,null,null,null,null,0,null,null,0,null,"","","",0,"","","",null,"",0,"","",0,0,0,null,"","",null,null,null,null,null,null,null,null,null,"","","",""]
[0,334,null,null,"",null,null,null,null,null,0,null,null,null,null,0,null,null,0,null,"","","",0,"","","",null,"",0,"","",0,0,0,null,"","",null,null,null,null,null,null,null,null,null,"","","",""]
[0,335,null,null,"",null,null,null,null,null,0,null,null,null,null,0,null,null,0,null,"","","",0,"","","",null,"",0,"","",0,0,0,null,"","",null,null,null,null,null,null,null,null,null,"","","",""]
[0,336,null,null,"",null,null,null,null,null,0,null,null,null,null,0,null,null,0,null,"","","",0,"","","",null,"",0,"","",0,0,0,null,"","",null,null,null,null,null,null,null,null,null,"","","",""]
[0,337,null,null,"",null,null,null,null,null,0,null,null,null,null,0,null,null,0,null,"","","",0,"","","",null,"",0,"","",0,0,0,null,"","",null,null,null,null,null,null,null,null,null,"","","",""]
[0,338,null,null,"",null,null,null,null,null,0,null,null,null,null,0,null,null,0,null,"","","",0,"","","",null,"",0,"","",0,0,0,null,"","",null,null,null,null,null,null,null,null,null,"","","",""]
[0,339,null,null,"",null,null,null,null,null,0,null,null,null,null,0,null,null,0,null,"","","",0,"","","",null,"",0,"","",0,0,0,null,"","",null,null,null,null,null,null,null,null,null,"","","",""]
[0,340,null,null,"",null,null,null,null,null,0,null,null,null,null,0,null,null,0,null,"","","",0,"","","",null,"",0,"","",0,0,0,null,"","",null,null,null,null,null,null,null,null,null,"","","",""]
[0,341,null,null,"",null,null,null,null,null,0,null,null,null,null,0,null,null,0,null,"","","",0,"","","",null,"",0,"","",0,0,0,null,"","",null,null,null,null,null,null,null,null,null,"","","",""]
[0,342,null,null,"",null,null,null,null,null,0,null,null,null,null,0,null,null,0,null,"","","",0,"","","",null,"",0,"","",0,0,0,null,"","",null,null,null,null,null,null,null,null,null,"","","",""]
[0,343,null,null,"",null,null,null,null,null,0,null,null,null,null,0,null,null,0,null,"","","",0,"","","",null,"",0,"","",0,0,0,null,"","",null,null,null,null,null,null,null,null,null,"","","",""]
[0,344,null,null,"",null,null,null,null,null,0,null,null,null,null,0,null,null,0,null,"","","",0,"","","",null,"",0,"","",0,0,0,null,"","",null,null,null,null,null,null,null,null,null,"","","",""]
[0,345,null,null,"",null,null,null,null,null,0,null,null,null,null,0,null,null,0,null,"","","",0,"","","",null,"",0,"","",0,0,0,null,"","",null,null,null,null,null,null,null,null,null,"","","",""]
[0,346,null,null,"",null,null,null,null,null,0,null,null,null,null,0,null,null,0,null,"","","",0,"","","",null,"",0,"","",0,0,0,null,"","",null,null,null,null,null,null,null,null,null,"","","",""]
[0,347,null,null,"",null,null,null,null,null,0,null,null,null,null,0,null,null,0,null,"","","",0,"","","",null,"",0,"","",0,0,0,null,"","",null,null,null,null,null,null,null,null,null,"","","",""]
[0,348,null,null,"",null,null,null,null,null,0,null,null,null,null,0,null,null,0,null,"","","",0,"","","",null,"",0,"","",0,0,0,null,"","",null,null,null,null,null,null,null,null,null,"","","",""]
[0,349,null,null,"",null,null,null,null,null,0,null,null,null,null,0,null,null,0,null,"","","",0,"","","",null,"",0,"","",0,0,0,null,"","",null,null,null,null,null,null,null,null,null,"","","",""]
[0,350,null,null,"",null,null,null,null,null,0,null,null,null,null,0,null,null,0,null,"","","",0,"","","",null,"",0,"","",0,0,0,null,"","",null,null,null,null,null,null,null,null,null,"","","",""]
[0,351,null,null,"",null,null,null,null,null,0,null,null,null,null,0,null,null,0,null,"","","",0,"","","",null,"",0,"","",0,0,0,null,"","",null,null,null,null,null,null,null,null,null,"","","",""]
[0,352,null,null,"",null,null,null,null,null,0,null,null,null,null,0,null,null,0,null,"","","",0,"","","",null,"",0,"","",0,0,0,null,"","",null,null,null,null,null,null,null,null,null,"","","",""]
[0,353,null,null,"",null,null,null,null,null,0,null,null,null,null,0,null,null,0,null,"","","",0,"","","",null,"",0,"","",0,0,0,null,"","",null,null,null,null,null,null,null,null,null,"","","",""]
[0,354,null,null,"",null,null,null,null,null,0,null,null,null,null,0,null,null,0,null,"","","",0,"","","",null,"",0,"","",0,0,0,null,"","",null,null,null,null,null,null,null,null,null,"","","",""]
[0,355,null,null,"",null,null,null,null,null,0,null,null,null,null,0,null,null,0,null,"","","",0,"","","",null,"",0,"","",0,0,0,null,"","",null,null,null,null,null,null,null,null,null,"","","",""]
[0,356,null,null,"",null,null,null,null,null,0,null,null,null,null,0,null,null,0,null,"","","",0,"","","",null,"",0,"","",0,0,0,null,"","",null,null,null,null,null,null,null,null,null,"","","",""]
[0,357,null,null,"",null,null,null,null,null,0,null,null,null,null,0,null,null,0,null,"","","",0,"","","",null,"",0,"","",0,0,0,null,"","",null,null,null,null,null,null,null,null,null,"","","",""]
[0,358,null,null,"",null,null,null,null,null,0,null,null,null,null,0,null,null,0,null,"","","",0,"","","",null,"",0,"","",0,0,0,null,"","",null,null,null,null,null,null,null,null,null,"","","",""]
[0,359,null,null,"",null,null,null,null,null,0,null,null,null,null,0,null,null,0,null,"","","",0,"","","",null,"",0,"","",0,0,0,null,"","",null,null,null,null,null,null,null,null,null,"","","",""]
[0,360,null,null,"",null,null,null,null,null,0,null,null,null,null,0,null,null,0,null,"","","",0,"","","",null,"",0,"","",0,0,0,null,"","",null,null,null,null,null,null,null,null,null,"","","",""]
[0,361,null,null,"",null,null,null,null,null,0,null,null,null,null,0,null,null,0,null,"","","",0,"","","",null,"",0,"","",0,0,0,null,"","",null,null,null,null,null,null,null,null,null,"","","",""]
[0,362,null,null,"",null,null,null,null,null,0,null,null,null,null,0,null,null,0,null,"","","",0,"","","",null,"",0,"","",0,0,0,null,"","",null,null,null,null,null,null,null,null,null,"","","",""]
[0,363,null,null,"",null,null,null,null,null,0,null,null,null,null,0,null,null,0,null,"","","",0,"","","",null,"",0,"","",0,0,0,null,"","",null,null,null,null,null,null,null,null,null,"","","",""]
[0,364,null,null,"",null,null,null,null,null,0,null,null,null,null,0,null,null,0,null,"","","",0,"","","",null,"",0,"","",0,0,0,null,"","",null,null,null,null,null,null,null,null,null,"","","",""]
[0,365,null,null,"",null,null,null,null,null,0,null,null,null,null,0,null,null,0,null,"","","",0,"","","",null,"",0,"","",0,0,0,null,"","",null,null,null,null,null,null,null,null,null,"","","",""]
[0,366,null,null,"",null,null,null,null,null,0,null,null,null,null,0,null,null,0,null,"","","",0,"","","",null,"",0,"","",0,0,0,null,"","",null,null,null,null,null,null,null,null,null,"","","",""]
[0,367,null,null,"",null,null,null,null,null,0,null,null,null,null,0,null,null,0,null,"","","",0,"","","",null,"",0,"","",0,0,0,null,"","",null,null,null,null,null,null,null,null,null,"","","",""]
[0,368,null,null,"",null,null,null,null,null,0,null,null,null,null,0,null,null,0,null,"","","",0,"","","",null,"",0,"","",0,0,0,null,"","",null,null,null,null,null,null,null,null,null,"","","",""]
[0,369,null,null,"",null,null,null,null,null,0,null,null,null,null,0,null,null,0,null,"","","",0,"","","",null,"",0,"","",0,0,0,null,"","",null,null,null,null,null,null,null,null,null,"","","",""]
[0,370,null,null,"",null,null,null,null,null,0,null,null,null,null,0,null,null,0,null,"","","",0,"","","",null,"",0,"","",0,0,0,null,"","",null,null,null,null,null,null,null,null,null,"","","",""]
[0,371,null,null,"",null,null,null,null,null,0,null,null,null,null,0,null,null,0,null,"","","",0,"","","",null,"",0,"","",0,0,0,null,"","",null,null,null,null,null,null,null,null,null,"","","",""]
[0,372,null,null,"",null,null,null,null,null,0,null,null,null,null,0,null,null,0,null,"","","",0,"","","",null,"",0,"","",0,0,0,null,"","",null,null,null,null,null,null,null,null,null,"","","",""]
[0,373,null,null,"",null,null,null,null,null,0,null,null,null,null,0,null,null,0,null,"","","",0,"","","",null,"",0,"","",0,0,0,null,"","",null,null,null,null,null,null,null,null,null,"","","",""]
[0,374,null,null,"",null,null,null,null,null,0,null,null,null,null,0,null,null,0,null,"","","",0,"","","",null,"",0,"","",0,0,0,null,"","",null,null,null,null,null,null,null,null,null,"","","",""]
[0,375,null,null,"",null,null,null,null,null,0,null,null,null,null,0,null,null,0,null,"","","",0,"","","",null,"",0,"","",0,0,0,null,"","",null,null,null,null,null,null,null,null,null,"","","",""]
[0,376,null,null,"",null,null,null,null,null,0,null,null,null,null,0,null,null,0,null,"","","",0,"","","",null,"",0,"","",0,0,0,null,"","",null,null,null,null,null,null,null,null,null,"","","",""]
[0,377,null,null,"",null,null,null,null,null,0,null,null,null,null,0,null,null,0,null,"","","",0,"","","",null,"",0,"","",0,0,0,null,"","",null,null,null,null,null,null,null,null,null,"","","",""]
[0,378,null,null,"",null,null,null,null,null,0,null,null,null,null,0,null,null,0,null,"","","",0,"","","",null,"",0,"","",0,0,0,null,"","",null,null,null,null,null,null,null,null,null,"","","",""]
[0,379,null,null,"",null,null,null,null,null,0,null,null,null,null,0,null,null,0,null,"","","",0,"","","",null,"",0,"","",0,0,0,null,"","",null,null,null,null,null,null,null,null,null,"","","",""]
[0,380,null,null,"",null,null,null,null,null,0,null,null,null,null,0,null,null,0,null,"","","",0,"","","",null,"",0,"","",0,0,0,null,"","",null,null,null,null,null,null,null,null,null,"","","",""]
[0,381,null,null,"",null,null,null,null,null,0,null,null,null,null,0,null,null,0,null,"","","",0,"","","",null,"",0,"","",0,0,0,null,"","",null,null,null,null,null,null,null,null,null,"","","",""]
[0,382,null,null,"",null,null,null,null,null,0,null,null,null,null,0,null,null,0,null,"","","",0,"","","",null,"",0,"","",0,0,0,null,"","",null,null,null,null,null,null,null,null,null,"","","",""]
[0,383,null,null,"",null,null,null,null,null,0,null,null,null,null,0,null,null,0,null,"","","",0,"","","",null,"",0,"","",0,0,0,null,"","",null,null,null,null,null,null,null,null,null,"","","",""]
[0,384,null,null,"",null,null,null,null,null,0,null,null,null,null,0,null,null,0,null,"","","",0,"","","",null,"",{"$f":"IFERROR(IF($AB392=\"No\",P392,IF(AC392=\"\",0,1-VLOOKUP(AC392,Prop_Sens_Table,2,FALSE))),\"N/A\")","v":0},"","",0,{"$f":"S392-AG392","v":0},{"$f":"IFERROR(1-(AG392/S392),0)","v":0},null,{"$f":"IF(E392=\"\",\"\",(1-IF(Q392=\"\",P392,Q392))*VLOOKUP(E392,BuildingType_RunHours,2,FALSE))","v":""},{"$f":"IF(E392=\"\",\"\",(1-IF(AE392=\"\",AD392,AE392))*VLOOKUP(E392,BuildingType_RunHours,2,FALSE))","v":""},null,null,null,null,null,null,null,null,null,{"$f":"IF(ISERROR(VLOOKUP($I392,LightWattLimits,2,FALSE))=TRUE,\"\",VLOOKUP($I392,LightWattLimits,2,FALSE))","v":""},{"$f":"IF(ISERROR(VLOOKUP($I392,LightWattLimits,3,FALSE))=TRUE,\"\",VLOOKUP($I392,LightWattLimits,3,FALSE))","v":""},{"$f":"IF(ISERROR(VLOOKUP($V392,LightWattLimits,2,FALSE))=TRUE,\"\",VLOOKUP($V392,LightWattLimits,2,FALSE))","v":""},{"$f":"IF(ISERROR(VLOOKUP($V392,LightWattLimits,3,FALSE))=TRUE,\"\",VLOOKUP($V392,LightWattLimits,3,FALSE))","v":""}]
[0,385,null,null,"",null,null,null,null,null,{"$f":"IFERROR(IF(OR(H393=\"\",I393=\"\")=TRUE,0,VLOOKUP(I393,INDIRECT(SUBSTITUTE(SUBSTITUTE(H393,\" \",\"_\"),\"-\",\"_\")&\"W\"),2,FALSE)),\"N/A\")","v":0},null,null,null,null,0,null,null,0,null,"","","",0,"","","",null,{"$f":"IF($AB393=\"No\",IF(O393=\"\",\"\",O393),\"\")","v":""},0,{"$f":"IF($AB393=\"No\",IF(Q393=\"\",\"\",Q393),\"\")","v":""},{"$f":"IF($AB393=\"No\",IF(R393=\"\",\"\",R393),\"\")","v":""},{"$f":"IF($T393=\"\", 0,IF(T393=\"No\",S393,IF(Y393=\"\",X393*AA393,Y393*AA393)))","v":0},0,0,null,"","",null,null,null,null,null,null,null,null,null,"","","",""]
[{"$f":"IF(C394=\"\",0,1)","v":0},386,null,null,"",null,null,null,null,null,0,null,null,null,null,0,null,null,0,null,{"$f":"IF($T394=\"No\",IF(H394=\"\",\"\",H394),\"\")","v":""},{"$f":"IF($T394=\"No\",IF(I394=\"\",\"\",I394),\"\")","v":""},{"$f":"IF($T394=\"No\",IF(J394=\"\",\"\",J394),\"\")","v":""},{"$f":"IFERROR(IF(T394=\"No\",K394,IF(U394=\"\",0,IF(LEFT(U394,1)=\"*\",K394,IF(V394=\"\",0,VLOOKUP(V394,INDIRECT(SUBSTITUTE(SUBSTITUTE(U394,\" \",\"_\"),\"-\",\"_\")&\"W\"),2,FALSE))))),\"N/A\")","v":0},{"$f":"IF($T394=\"No\",IF(L394=\"\",\"\",L394),\"\")","v":""},{"$f":"IF($T394=\"No\",IF(M394=\"\",\"\",M394),\"\")","v":""},{"$f":"IF($T394=\"No\",IF(N394=\"\",\"\",N394),\"\")","v":""},null,"",0,"","",0,0,0,null,"","",null,null,null,null,null,null,null,null,null,"","","",""]
[0,{"$f":"B394+1","v":387},null,null,"",null,null,null,null,null,0,null,null,null,null,0,null,null,0,null,"","","",0,"","","",null,"",0,"","",0,0,0,null,"","",null,null,null,null,null,null,null,null,null,"","","",""]
[0,388,null,null,"",null,null,null,null,null,0,null,null,null,null,0,null,null,0,null,"","","",0,"","","",null,"",0,"","",0,0,0,null,"","",null,null,null,null,null,null,null,null,null,"","","",""]
[0,389,null,null,"",null,null,null,null,null,0,null,null,null,null,0,null,null,0,null,"","","",0,"","","",null,"",0,"","",0,0,0,null,"","",null,null,null,null,null,null,null,null,null,"","","",""]
[0,390,null,null,"",null,null,null,null,null,0,null,null,null,null,0,null,null,0,null,"","","",0,"","","",null,"",0,"","",0,0,0,null,"","",null,null,null,null,null,null,null,null,null,"","","",""]
[0,391,null,null,"",null,null,null,null,null,0,null,null,null,null,0,null,null,0,null,"","","",0,"","","",null,"",0,"","",0,0,0,null,"","",null,null,null,null,null,null,null,null,null,"","","",""]
[0,392,null,null,"",null,null,null,null,null,0,null,null,null,null,{"$f":"IFERROR(IF(O400=\"\",0,1-VLOOKUP(O400,Prop_Sens_Table,2,FALSE)),\"N/A\")","v":0},null,null,{"$f":"IF(L400=\"\",N(K400)*N400,L400*N400)","v":0},null,"","","",0,"","","",null,"",0,"","",0,0,0,null,"","",null,null,null,null,null,null,null,null,null,"","","",""]
[0,393,null,null,"",null,null,null,null,null,0,null,null,null,null,0,null,null,0,null,"","","",0,"","","",null,"",0,"","",0,0,0,null,"","",null,null,null,null,null,null,null,null,null,"","","",""]
[0,394,null,null,"",null,null,null,null,null,0,null,null,null,null,0,null,null,0,null,"","","",0,"","","",null,"",0,"","",0,0,0,null,"","",null,null,null,null,null,null,null,null,null,"","","",""]
[0,395,null,null,"",null,null,null,null,null,0,null,null,null,null,0,null,null,0,null,"","","",0,"","","",null,"",0,"","",0,0,0,null,"","",null,null,null,null,null,null,null,null,null,"","","",""]
[0,396,null,null,"",null,null,null,null,null,0,null,null,null,null,0,null,null,0,null,"","","",0,"","","",null,"",0,"","",0,0,0,null,"","",null,null,null,null,null,null,null,null,null,"","","",""]
[0,397,null,null,"",null,null,null,null,null,0,null,null,null,null,0,null,null,0,null,"","","",0,"","","",null,"",0,"","",0,0,0,null,"","",null,null,null,null,null,null,null,null,null,"","","",""]
[0,398,null,null,"",null,null,null,null,null,0,null,null,null,null,0,null,null,0,null,"","","",0,"","","",null,"",0,"","",0,0,0,null,"","",null,null,null,null,null,null,null,null,null,"","","",""]
[0,399,null,null,"",null,null,null,null,null,0,null,null,null,null,0,null,null,0,null,"","","",0,"","","",null,"",0,"","",0,0,0,null,"","",null,null,null,null,null,null,null,null,null,"","","",""]
[0,400,null,null,"",null,null,null,null,null,0,null,null,null,null,0,null,null,0,null,"","","",0,"","","",null,"",0,"","",0,0,0,null,"","",null,null,null,null,null,null,null,null,null,"","","",""]
[0,401,null,null,"",null,null,null,null,null,0,null,null,null,null,0,null,null,0,null,"","","",0,"","","",null,"",0,"","",0,0,0,null,"","",null,null,null,null,null,null,null,null,null,"","","",""]
[0,402,null,null,"",null,null,null,null,null,0,null,null,null,null,0,null,null,0,null,"","","",0,"","","",null,"",0,"","",0,0,0,null,"","",null,null,null,null,null,null,null,null,null,"","","",""]
[0,403,null,null,"",null,null,null,null,null,0,null,null,null,null,0,null,null,0,null,"","","",0,"","","",null,"",0,"","",0,0,0,null,"","",null,null,null,null,null,null,null,null,null,"","","",""]
[0,404,null,null,"",null,null,null,null,null,0,null,null,null,null,0,null,null,0,null,"","","",0,"","","",null,"",0,"","",0,0,0,null,"","",null,null,null,null,null,null,null,null,null,"","","",""]
[0,405,null,null,"",null,null,null,null,null,0,null,null,null,null,0,null,null,0,null,"","","",0,"","","",null,"",0,"","",0,0,0,null,"","",null,null,null,null,null,null,null,null,null,"","","",""]
[0,406,null,null,"",null,null,null,null,null,0,null,null,null,null,0,null,null,0,null,"","","",0,"","","",null,"",0,"","",0,0,0,null,"","",null,null,null,null,null,null,null,null,null,"","","",""]
[0,407,null,null,"",null,null,null,null,null,0,null,null,null,null,0,null,null,0,null,"","","",0,"","","",null,"",0,"","",0,0,0,null,"","",null,null,null,null,null,null,null,null,null,"","","",""]
[0,408,null,null,"",null,null,null,null,null,0,null,null,null,null,0,null,null,0,null,"","","",0,"","","",null,"",0,"","",0,0,0,null,"","",null,null,null,null,null,null,null,null,null,"","","",""]
[0,409,null,null,"",null,null,null,null,null,0,null,null,null,null,0,null,null,0,null,"","","",0,"","","",null,"",0,"","",0,0,0,null,"","",null,null,null,null,null,null,null,null,null,"","","",""]
[0,410,null,null,"",null,null,null,null,null,0,null,null,null,null,0,null,null,0,null,"","","",0,"","","",null,"",0,"","",0,0,0,null,"","",null,null,null,null,null,null,null,null,null,"","","",""]
[0,411,null,null,"",null,null,null,null,null,0,null,null,null,null,0,null,null,0,null,"","","",0,"","","",null,"",0,"","",0,0,0,null,"","",null,null,null,null,null,null,null,null,null,"","","",""]
[0,412,null,null,"",null,null,null,null,null,0,null,null,null,null,0,null,null,0,null,"","","",0,"","","",null,"",0,"","",0,0,0,null,"","",null,null,null,null,null,null,null,null,null,"","","",""]
[0,413,null,null,"",null,null,null,null,null,0,null,null,null,null,0,null,null,0,null,"","","",0,"","","",null,"",0,"","",0,0,0,null,"","",null,null,null,null,null,null,null,null,null,"","","",""]
[0,414,null,null,"",null,null,null,null,null,0,null,null,null,null,0,null,null,0,null,"","","",0,"","","",null,"",0,"","",0,0,0,null,"","",null,null,null,null,null,null,null,null,null,"","","",""]
[0,415,null,null,"",null,null,null,null,null,0,null,null,null,null,0,null,null,0,null,"","","",0,"","","",null,"",0,"","",0,0,0,null,"","",null,null,null,null,null,null,null,null,null,"","","",""]
[0,416,null,null,"",null,null,null,null,null,0,null,null,null,null,0,null,null,0,null,"","","",0,"","","",null,"",0,"","",0,0,0,null,"","",null,null,null,null,null,null,null,null,null,"","","",""]
[0,417,null,null,"",null,null,null,null,null,0,null,null,null,null,0,null,null,0,null,"","","",0,"","","",null,"",0,"","",0,0,0,null,"","",null,null,null,null,null,null,null,null,null,"","","",""]
[0,418,null,null,"",null,null,null,null,null,0,null,null,null,null,0,null,null,0,null,"","","",0,"","","",null,"",0,"","",0,0,0,null,"","",null,null,null,null,null,null,null,null,null,"","","",""]
[0,419,null,null,"",null,null,null,null,null,0,null,null,null,null,0,null,null,0,null,"","","",0,"","","",null,"",0,"","",0,0,0,null,"","",null,null,null,null,null,null,null,null,null,"","","",""]
[0,420,null,null,"",null,null,null,null,null,0,null,null,null,null,0,null,null,0,null,"","","",0,"","","",null,"",0,"","",0,0,0,null,"","",null,null,null,null,null,null,null,null,null,"","","",""]
[0,421,null,null,"",null,null,null,null,null,0,null,null,null,null,0,null,null,0,null,"","","",0,"","","",null,"",0,"","",0,0,0,null,"","",null,null,null,null,null,null,null,null,null,"","","",""]
[0,422,null,null,"",null,null,null,null,null,0,null,null,null,null,0,null,null,0,null,"","","",0,"","","",null,"",0,"","",0,0,0,null,"","",null,null,null,null,null,null,null,null,null,"","","",""]
[0,423,null,null,"",null,null,null,null,null,0,null,null,null,null,0,null,null,0,null,"","","",0,"","","",null,"",0,"","",0,0,0,null,"","",null,null,null,null,null,null,null,null,null,"","","",""]
[0,424,null,null,"",null,null,null,null,null,0,null,null,null,null,0,null,null,0,null,"","","",0,"","","",null,"",0,"","",0,0,0,null,"","",null,null,null,null,null,null,null,null,null,"","","",""]
[0,425,null,null,"",null,null,null,null,null,0,null,null,null,null,0,null,null,0,null,"","","",0,"","","",null,"",0,"","",0,0,0,null,"","",null,null,null,null,null,null,null,null,null,"","","",""]
[0,426,null,null,"",null,null,null,null,null,0,null,null,null,null,0,null,null,0,null,"","","",0,"","","",null,"",0,"","",0,0,0,null,"","",null,null,null,null,null,null,null,null,null,"","","",""]
[0,427,null,null,"",null,null,null,null,null,0,null,null,null,null,0,null,null,0,null,"","","",0,"","","",null,"",0,"","",0,0,0,null,"","",null,null,null,null,null,null,null,null,null,"","","",""]
[0,428,null,null,"",null,null,null,null,null,0,null,null,null,null,0,null,null,0,null,"","","",0,"","","",null,"",0,"","",0,0,0,null,"","",null,null,null,null,null,null,null,null,null,"","","",""]
[0,429,null,null,"",null,null,null,null,null,0,null,null,null,null,0,null,null,0,null,"","","",0,"","","",null,"",0,"","",0,0,0,null,"","",null,null,null,null,null,null,null,null,null,"","","",""]
[0,430,null,null,"",null,null,null,null,null,0,null,null,null,null,0,null,null,0,null,"","","",0,"","","",null,"",0,"","",0,0,0,null,"","",null,null,null,null,null,null,null,null,null,"","","",""]
[0,431,null,null,"",null,null,null,null,null,0,null,null,null,null,0,null,null,0,null,"","","",0,"","","",null,"",0,"","",0,0,0,null,"","",null,null,null,null,null,null,null,null,null,"","","",""]
[0,432,null,null,"",null,null,null,null,null,0,null,null,null,null,0,null,null,0,null,"","","",0,"","","",null,"",0,"","",0,0,0,null,"","",null,null,null,null,null,null,null,null,null,"","","",""]
[0,433,null,null,"",null,null,null,null,null,0,null,null,null,null,0,null,null,0,null,"","","",0,"","","",null,"",0,"","",0,0,0,null,"","",null,null,null,null,null,null,null,null,null,"","","",""]
[0,434,null,null,"",null,null,null,null,null,0,null,null,null,null,0,null,null,0,null,"","","",0,"","","",null,"",0,"","",0,0,0,null,"","",null,null,null,null,null,null,null,null,null,"","","",""]
[0,435,null,null,"",null,null,null,null,null,0,null,null,null,null,0,null,null,0,null,"","","",0,"","","",null,"",0,"","",0,0,0,null,"","",null,null,null,null,null,null,null,null,null,"","","",""]
[0,436,null,null,"",null,null,null,null,null,0,null,null,null,null,0,null,null,0,null,"","","",0,"","","",null,"",0,"","",0,0,0,null,"","",null,null,null,null,null,null,null,null,null,"","","",""]
[0,437,null,null,"",null,null,null,null,null,0,null,null,null,null,0,null,null,0,null,"","","",0,"","","",null,"",0,"","",0,0,0,null,"","",null,null,null,null,null,null,null,null,null,"","","",""]
[0,438,null,null,"",null,null,null,null,null,0,null,null,null,null,0,null,null,0,null,"","","",0,"","","",null,"",0,"","",0,0,0,null,"","",null,null,null,null,null,null,null,null,null,"","","",""]
[0,439,null,null,"",null,null,null,null,null,0,null,null,null,null,0,null,null,0,null,"","","",0,"","","",null,"",0,"","",0,0,0,null,"","",null,null,null,null,null,null,null,null,null,"","","",""]
[0,440,null,null,"",null,null,null,null,null,0,null,null,null,null,0,null,null,0,null,"","","",0,"","","",null,"",0,"","",0,0,0,null,"","",null,null,null,null,null,null,null,null,null,"","","",""]
[0,441,null,null,"",null,null,null,null,null,0,null,null,null,null,0,null,null,0,null,"","","",0,"","","",null,"",0,"","",0,0,0,null,"","",null,null,null,null,null,null,null,null,null,"","","",""]
[0,442,null,null,"",null,null,null,null,null,0,null,null,null,null,0,null,null,0,null,"","","",0,"","","",null,"",0,"","",0,0,0,null,"","",null,null,null,null,null,null,null,null,null,"","","",""]
[0,443,null,null,"",null,null,null,null,null,0,null,null,null,null,0,null,null,0,null,"","","",0,"","","",null,"",0,"","",0,0,0,null,"","",null,null,null,null,null,null,null,null,null,"","","",""]
[0,444,null,null,"",null,null,null,null,null,0,null,null,null,null,0,null,null,0,null,"","","",0,"","","",null,"",0,"","",0,0,0,null,"","",null,null,null,null,null,null,null,null,null,"","","",""]
[0,445,null,null,"",null,null,null,null,null,0,null,null,null,null,0,null,null,0,null,"","","",0,"","","",null,"",0,"","",0,0,0,null,"","",null,null,null,null,null,null,null,null,null,"","","",""]
[0,446,null,null,"",null,null,null,null,null,0,null,null,null,null,0,null,null,0,null,"","","",0,"","","",null,"",0,"","",0,0,0,null,"","",null,null,null,null,null,null,null,null,null,"","","",""]
[0,447,null,null,{"$f":"IFERROR(VLOOKUP(C455,BuildingNameTable,2,FALSE),\"\")","v":""},null,null,null,null,null,0,null,null,null,null,0,null,null,0,null,"","","",0,"","","",null,"",0,"","",0,0,0,null,"","",null,null,null,null,null,null,null,null,null,"","","",""]
[0,448,null,null,"",null,null,null,null,null,0,null,null,null,null,0,null,null,0,null,"","","",0,"","","",null,"",{"$f":"IFERROR(IF($AB456=\"No\",P456,IF(AC456=\"\",0,1-VLOOKUP(AC456,Prop_Sens_Table,2,FALSE))),\"N/A\")","v":0},"","",0,{"$f":"S456-AG456","v":0},{"$f":"IFERROR(1-(AG456/S456),0)","v":0},null,{"$f":"IF(E456=\"\",\"\",(1-IF(Q456=\"\",P456,Q456))*VLOOKUP(E456,BuildingType_RunHours,2,FALSE))","v":""},{"$f":"IF(E456=\"\",\"\",(1-IF(AE456=\"\",AD456,AE456))*VLOOKUP(E456,BuildingType_RunHours,2,FALSE))","v":""},null,null,null,null,null,null,null,null,null,{"$f":"IF(ISERROR(VLOOKUP($I456,LightWattLimits,2,FALSE))=TRUE,\"\",VLOOKUP($I456,LightWattLimits,2,FALSE))","v":""},{"$f":"IF(ISERROR(VLOOKUP($I456,LightWattLimits,3,FALSE))=TRUE,\"\",VLOOKUP($I456,LightWattLimits,3,FALSE))","v":""},{"$f":"IF(ISERROR(VLOOKUP($V456,LightWattLimits,2,FALSE))=TRUE,\"\",VLOOKUP($V456,LightWattLimits,2,FALSE))","v":""},{"$f":"IF(ISERROR(VLOOKUP($V456,LightWattLimits,3,FALSE))=TRUE,\"\",VLOOKUP($V456,LightWattLimits,3,FALSE))","v":""}]
[0,449,null,null,"",null,null,null,null,null,{"$f":"IFERROR(IF(OR(H457=\"\",I457=\"\")=TRUE,0,VLOOKUP(I457,INDIRECT(SUBSTITUTE(SUBSTITUTE(H457,\" \",\"_\"),\"-\",\"_\")&\"W\"),2,FALSE)),\"N/A\")","v":0},null,null,null,null,0,null,null,0,null,"","","",0,"","","",null,{"$f":"IF($AB457=\"No\",IF(O457=\"\",\"\",O457),\"\")","v":""},0,{"$f":"IF($AB457=\"No\",IF(Q457=\"\",\"\",Q457),\"\")","v":""},{"$f":"IF($AB457=\"No\",IF(R457=\"\",\"\",R457),\"\")","v":""},{"$f":"IF($T457=\"\", 0,IF(T457=\"No\",S457,IF(Y457=\"\",X457*AA457,Y457*AA457)))","v":0},0,0,null,"","",null,null,null,null,null,null,null,null,null,"","","",""]
[{"$f":"IF(C458=\"\",0,1)","v":0},450,null,null,"",null,null,null,null,null,0,null,null,null,null,0,null,null,0,null,{"$f":"IF($T458=\"No\",IF(H458=\"\",\"\",H458),\"\")","v":""},{"$f":"IF($T458=\"No\",IF(I458=\"\",\"\",I458),\"\")","v":""},{"$f":"IF($T458=\"No\",IF(J458=\"\",\"\",J458),\"\")","v":""},{"$f":"IFERROR(IF(T458=\"No\",K458,IF(U458=\"\",0,IF(LEFT(U458,1)=\"*\",K458,IF(V458=\"\",0,VLOOKUP(V458,INDIRECT(SUBSTITUTE(SUBSTITUTE(U458,\" \",\"_\"),\"-\",\"_\")&\"W\"),2,FALSE))))),\"N/A\")","v":0},{"$f":"IF($T458=\"No\",IF(L458=\"\",\"\",L458),\"\")","v":""},{"$f":"IF($T458=\"No\",IF(M458=\"\",\"\",M458),\"\")","v":""},{"$f":"IF($T458=\"No\",IF(N458=\"\",\"\",N458),\"\")","v":""},null,"",0,"","",0,0,0,null,"","",null,null,null,null,null,null,null,null,null,"","","",""]
[0,{"$f":"B458+1","v":451},null,null,"",null,null,null,null,null,0,null,null,null,null,0,null,null,0,null,"","","",0,"","","",null,"",0,"","",0,0,0,null,"","",null,null,null,null,null,null,null,null,null,"","","",""]
[0,452,null,null,"",null,null,null,null,null,0,null,null,null,null,0,null,null,0,null,"","","",0,"","","",null,"",0,"","",0,0,0,null,"","",null,null,null,null,null,null,null,null,null,"","","",""]
[0,453,null,null,"",null,null,null,null,null,0,null,null,null,null,0,null,null,0,null,"","","",0,"","","",null,"",0,"","",0,0,0,null,"","",null,null,null,null,null,null,null,null,null,"","","",""]
[0,454,null,null,"",null,null,null,null,null,0,null,null,null,null,0,null,null,0,null,"","","",0,"","","",null,"",0,"","",0,0,0,null,"","",null,null,null,null,null,null,null,null,null,"","","",""]
[0,455,null,null,"",null,null,null,null,null,0,null,null,null,null,0,null,null,0,null,"","","",0,"","","",null,"",0,"","",0,0,0,null,"","",null,null,null,null,null,null,null,null,null,"","","",""]
[0,456,null,null,"",null,null,null,null,null,0,null,null,null,null,{"$f":"IFERROR(IF(O464=\"\",0,1-VLOOKUP(O464,Prop_Sens_Table,2,FALSE)),\"N/A\")","v":0},null,null,{"$f":"IF(L464=\"\",N(K464)*N464,L464*N464)","v":0},null,"","","",0,"","","",null,"",0,"","",0,0,0,null,"","",null,null,null,null,null,null,null,null,null,"","","",""]
[0,457,null,null,"",null,null,null,null,null,0,null,null,null,null,0,null,null,0,null,"","","",0,"","","",null,"",0,"","",0,0,0,null,"","",null,null,null,null,null,null,null,null,null,"","","",""]
[0,458,null,null,"",null,null,null,null,null,0,null,null,null,null,0,null,null,0,null,"","","",0,"","","",null,"",0,"","",0,0,0,null,"","",null,null,null,null,null,null,null,null,null,"","","",""]
[0,459,null,null,"",null,null,null,null,null,0,null,null,null,null,0,null,null,0,null,"","","",0,"","","",null,"",0,"","",0,0,0,null,"","",null,null,null,null,null,null,null,null,null,"","","",""]
[0,460,null,null,"",null,null,null,null,null,0,null,null,null,null,0,null,null,0,null,"","","",0,"","","",null,"",0,"","",0,0,0,null,"","",null,null,null,null,null,null,null,null,null,"","","",""]
[0,461,null,null,"",null,null,null,null,null,0,null,null,null,null,0,null,null,0,null,"","","",0,"","","",null,"",0,"","",0,0,0,null,"","",null,null,null,null,null,null,null,null,null,"","","",""]
[0,462,null,null,"",null,null,null,null,null,0,null,null,null,null,0,null,null,0,null,"","","",0,"","","",null,"",0,"","",0,0,0,null,"","",null,null,null,null,null,null,null,null,null,"","","",""]
[0,463,null,null,"",null,null,null,null,null,0,null,null,null,null,0,null,null,0,null,"","","",0,"","","",null,"",0,"","",0,0,0,null,"","",null,null,null,null,null,null,null,null,null,"","","",""]
[0,464,null,null,"",null,null,null,null,null,0,null,null,null,null,0,null,null,0,null,"","","",0,"","","",null,"",0,"","",0,0,0,null,"","",null,null,null,null,null,null,null,null,null,"","","",""]
[0,465,null,null,"",null,null,null,null,null,0,null,null,null,null,0,null,null,0,null,"","","",0,"","","",null,"",0,"","",0,0,0,null,"","",null,null,null,null,null,null,null,null,null,"","","",""]
[0,466,null,null,"",null,null,null,null,null,0,null,null,null,null,0,null,null,0,null,"","","",0,"","","",null,"",0,"","",0,0,0,null,"","",null,null,null,null,null,null,null,null,null,"","","",""]
[0,467,null,null,"",null,null,null,null,null,0,null,null,null,null,0,null,null,0,null,"","","",0,"","","",null,"",0,"","",0,0,0,null,"","",null,null,null,null,null,null,null,null,null,"","","",""]
[0,468,null,null,"",null,null,null,null,null,0,null,null,null,null,0,null,null,0,null,"","","",0,"","","",null,"",0,"","",0,0,0,null,"","",null,null,null,null,null,null,null,null,null,"","","",""]
[0,469,null,null,"",null,null,null,null,null,0,null,null,null,null,0,null,null,0,null,"","","",0,"","","",null,"",0,"","",0,0,0,null,"","",null,null,null,null,null,null,null,null,null,"","","",""]
[0,470,null,null,"",null,null,null,null,null,0,null,null,null,null,0,null,null,0,null,"","","",0,"","","",null,"",0,"","",0,0,0,null,"","",null,null,null,null,null,null,null,null,null,"","","",""]
[0,471,null,null,"",null,null,null,null,null,0,null,null,null,null,0,null,null,0,null,"","","",0,"","","",null,"",0,"","",0,0,0,null,"","",null,null,null,null,null,null,null,null,null,"","","",""]
[0,472,null,null,"",null,null,null,null,null,0,null,null,null,null,0,null,null,0,null,"","","",0,"","","",null,"",0,"","",0,0,0,null,"","",null,null,null,null,null,null,null,null,null,"","","",""]
[0,473,null,null,"",null,null,null,null,null,0,null,null,null,null,0,null,null,0,null,"","","",0,"","","",null,"",0,"","",0,0,0,null,"","",null,null,null,null,null,null,null,null,null,"","","",""]
[0,474,null,null,"",null,null,null,null,null,0,null,null,null,null,0,null,null,0,null,"","","",0,"","","",null,"",0,"","",0,0,0,null,"","",null,null,null,null,null,null,null,null,null,"","","",""]
[0,475,null,null,"",null,null,null,null,null,0,null,null,null,null,0,null,null,0,null,"","","",0,"","","",null,"",0,"","",0,0,0,null,"","",null,null,null,null,null,null,null,null,null,"","","",""]
[0,476,null,null,"",null,null,null,null,null,0,null,null,null,null,0,null,null,0,null,"","","",0,"","","",null,"",0,"","",0,0,0,null,"","",null,null,null,null,null,null,null,null,null,"","","",""]
[0,477,null,null,"",null,null,null,null,null,0,null,null,null,null,0,null,null,0,null,"","","",0,"","","",null,"",0,"","",0,0,0,null,"","",null,null,null,null,null,null,null,null,null,"","","",""]
[0,478,null,null,"",null,null,null,null,null,0,null,null,null,null,0,null,null,0,null,"","","",0,"","","",null,"",0,"","",0,0,0,null,"","",null,null,null,null,null,null,null,null,null,"","","",""]
[0,479,null,null,"",null,null,null,null,null,0,null,null,null,null,0,null,null,0,null,"","","",0,"","","",null,"",0,"","",0,0,0,null,"","",null,null,null,null,null,null,null,null,null,"","","",""]
[0,480,null,null,"",null,null,null,null,null,0,null,null,null,null,0,null,null,0,null,"","","",0,"","","",null,"",0,"","",0,0,0,null,"","",null,null,null,null,null,null,null,null,null,"","","",""]
[0,481,null,null,"",null,null,null,null,null,0,null,null,null,null,0,null,null,0,null,"","","",0,"","","",null,"",0,"","",0,0,0,null,"","",null,null,null,null,null,null,null,null,null,"","","",""]
[0,482,null,null,"",null,null,null,null,null,0,null,null,null,null,0,null,null,0,null,"","","",0,"","","",null,"",0,"","",0,0,0,null,"","",null,null,null,null,null,null,null,null,null,"","","",""]
[0,483,null,null,"",null,null,null,null,null,0,null,null,null,null,0,null,null,0,null,"","","",0,"","","",null,"",0,"","",0,0,0,null,"","",null,null,null,null,null,null,null,null,null,"","","",""]
[0,484,null,null,"",null,null,null,null,null,0,null,null,null,null,0,null,null,0,null,"","","",0,"","","",null,"",0,"","",0,0,0,null,"","",null,null,null,null,null,null,null,null,null,"","","",""]
[0,485,null,null,"",null,null,null,null,null,0,null,null,null,null,0,null,null,0,null,"","","",0,"","","",null,"",0,"","",0,0,0,null,"","",null,null,null,null,null,null,null,null,null,"","","",""]
[0,486,null,null,"",null,null,null,null,null,0,null,null,null,null,0,null,null,0,null,"","","",0,"","","",null,"",0,"","",0,0,0,null,"","",null,null,null,null,null,null,null,null,null,"","","",""]
[0,487,null,null,"",null,null,null,null,null,0,null,null,null,null,0,null,null,0,null,"","","",0,"","","",null,"",0,"","",0,0,0,null,"","",null,null,null,null,null,null,null,null,null,"","","",""]
[0,488,null,null,"",null,null,null,null,null,0,null,null,null,null,0,null,null,0,null,"","","",0,"","","",null,"",0,"","",0,0,0,null,"","",null,null,null,null,null,null,null,null,null,"","","",""]
[0,489,null,null,"",null,null,null,null,null,0,null,null,null,null,0,null,null,0,null,"","","",0,"","","",null,"",0,"","",0,0,0,null,"","",null,null,null,null,null,null,null,null,null,"","","",""]
[0,490,null,null,"",null,null,null,null,null,0,null,null,null,null,0,null,null,0,null,"","","",0,"","","",null,"",0,"","",0,0,0,null,"","",null,null,null,null,null,null,null,null,null,"","","",""]
[0,491,null,null,"",null,null,null,null,null,0,null,null,null,null,0,null,null,0,null,"","","",0,"","","",null,"",0,"","",0,0,0,null,"","",null,null,null,null,null,null,null,null,null,"","","",""]
[0,492,null,null,"",null,null,null,null,null,0,null,null,null,null,0,null,null,0,null,"","","",0,"","","",null,"",0,"","",0,0,0,null,"","",null,null,null,null,null,null,null,null,null,"","","",""]
[0,493,null,null,"",null,null,null,null,null,0,null,null,null,null,0,null,null,0,null,"","","",0,"","","",null,"",0,"","",0,0,0,null,"","",null,null,null,null,null,null,null,null,null,"","","",""]
[0,494,null,null,"",null,null,null,null,null,0,null,null,null,null,0,null,null,0,null,"","","",0,"","","",null,"",0,"","",0,0,0,null,"","",null,null,null,null,null,null,null,null,null,"","","",""]
[0,495,null,null,"",null,null,null,null,null,0,null,null,null,null,0,null,null,0,null,"","","",0,"","","",null,"",0,"","",0,0,0,null,"","",null,null,null,null,null,null,null,null,null,"","","",""]
[0,496,null,null,"",null,null,null,null,null,0,null,null,null,null,0,null,null,0,null,"","","",0,"","","",null,"",0,"","",0,0,0,null,"","",null,null,null,null,null,null,null,null,null,"","","",""]
[0,497,null,null,"",null,null,null,null,null,0,null,null,null,null,0,null,null,0,null,"","","",0,"","","",null,"",0,"","",0,0,0,null,"","",null,null,null,null,null,null,null,null,null,"","","",""]
[0,498,null,null,"",null,null,null,null,null,0,null,null,null,null,0,null,null,0,null,"","","",0,"","","",null,"",0,"","",0,0,0,null,"","",null,null,null,null,null,null,null,null,null,"","","",""]
[0,499,null,null,"",null,null,null,null,null,0,null,null,null,null,0,null,null,0,null,"","","",0,"","","",null,"",0,"","",0,0,0,null,"","",null,null,null,null,null,null,null,null,null,"","","",""]
[0,500,null,null,"",null,null,null,null,null,0,null,null,null,null,0,null,null,0,null,"","","",0,"","","",null,"",0,"","",0,0,0,null,"","",null,null,null,null,null,null,null,null,null,"","","",""]
[0,501,null,null,"",null,null,null,null,null,0,null,null,null,null,0,null,null,0,null,"","","",0,"","","",null,"",0,"","",0,0,0,null,"","",null,null,null,null,null,null,null,null,null,"","","",""]
[0,502,null,null,"",null,null,null,null,null,0,null,null,null,null,0,null,null,0,null,"","","",0,"","","",null,"",0,"","",0,0,0,null,"","",null,null,null,null,null,null,null,null,null,"","","",""]
[0,503,null,null,"",null,null,null,null,null,0,null,null,null,null,0,null,null,0,null,"","","",0,"","","",null,"",0,"","",0,0,0,null,"","",null,null,null,null,null,null,null,null,null,"","","",""]
[0,504,null,null,"",null,null,null,null,null,0,null,null,null,null,0,null,null,0,null,"","","",0,"","","",null,"",0,"","",0,0,0,null,"","",null,null,null,null,null,null,null,null,null,"","","",""]
[0,505,null,null,"",null,null,null,null,null,0,null,null,null,null,0,null,null,0,null,"","","",0,"","","",null,"",0,"","",0,0,0,null,"","",null,null,null,null,null,null,null,null,null,"","","",""]
[0,506,null,null,"",null,null,null,null,null,0,null,null,null,null,0,null,null,0,null,"","","",0,"","","",null,"",0,"","",0,0,0,null,"","",null,null,null,null,null,null,null,null,null,"","","",""]
[0,507,null,null,"",null,null,null,null,null,0,null,null,null,null,0,null,null,0,null,"","","",0,"","","",null,"",0,"","",0,0,0,null,"","",null,null,null,null,null,null,null,null,null,"","","",""]
[0,508,null,null,"",null,null,null,null,null,0,null,null,null,null,0,null,null,0,null,"","","",0,"","","",null,"",0,"","",0,0,0,null,"","",null,null,null,null,null,null,null,null,null,"","","",""]
[0,509,null,null,"",null,null,null,null,null,0,null,null,null,null,0,null,null,0,null,"","","",0,"","","",null,"",0,"","",0,0,0,null,"","",null,null,null,null,null,null,null,null,null,"","","",""]
[0,510,null,null,"",null,null,null,null,null,0,null,null,null,null,0,null,null,0,null,"","","",0,"","","",null,"",0,"","",0,0,0,null,"","",null,null,null,null,null,null,null,null,null,"","","",""]
[0,511,null,null,{"$f":"IFERROR(VLOOKUP(C519,BuildingNameTable,2,FALSE),\"\")","v":""},null,null,null,null,null,0,null,null,null,null,0,null,null,0,null,"","","",0,"","","",null,"",0,"","",0,0,0,null,"","",null,null,null,null,null,null,null,null,null,"","","",""]
[0,512,null,null,"",null,null,null,null,null,0,null,null,null,null,0,null,null,0,null,"","","",0,"","","",null,"",{"$f":"IFERROR(IF($AB520=\"No\",P520,IF(AC520=\"\",0,1-VLOOKUP(AC520,Prop_Sens_Table,2,FALSE))),\"N/A\")","v":0},"","",0,{"$f":"S520-AG520","v":0},{"$f":"IFERROR(1-(AG520/S520),0)","v":0},null,{"$f":"IF(E520=\"\",\"\",(1-IF(Q520=\"\",P520,Q520))*VLOOKUP(E520,BuildingType_RunHours,2,FALSE))","v":""},{"$f":"IF(E520=\"\",\"\",(1-IF(AE520=\"\",AD520,AE520))*VLOOKUP(E520,BuildingType_RunHours,2,FALSE))","v":""},null,null,null,null,null,null,null,null,null,{"$f":"IF(ISERROR(VLOOKUP($I520,LightWattLimits,2,FALSE))=TRUE,\"\",VLOOKUP($I520,LightWattLimits,2,FALSE))","v":""},{"$f":"IF(ISERROR(VLOOKUP($I520,LightWattLimits,3,FALSE))=TRUE,\"\",VLOOKUP($I520,LightWattLimits,3,FALSE))","v":""},{"$f":"IF(ISERROR(VLOOKUP($V520,LightWattLimits,2,FALSE))=TRUE,\"\",VLOOKUP($V520,LightWattLimits,2,FALSE))","v":""},{"$f":"IF(ISERROR(VLOOKUP($V520,LightWattLimits,3,FALSE))=TRUE,\"\",VLOOKUP($V520,LightWattLimits,3,FALSE))","v":""}]
[0,513,null,null,"",null,null,null,null,null,{"$f":"IFERROR(IF(OR(H521=\"\",I521=\"\")=TRUE,0,VLOOKUP(I521,INDIRECT(SUBSTITUTE(SUBSTITUTE(H521,\" \",\"_\"),\"-\",\"_\")&\"W\"),2,FALSE)),\"N/A\")","v":0},null,null,null,null,0,null,null,0,null,"","","",0,"","","",null,{"$f":"IF($AB521=\"No\",IF(O521=\"\",\"\",O521),\"\")","v":""},0,{"$f":"IF($AB521=\"No\",IF(Q521=\"\",\"\",Q521),\"\")","v":""},{"$f":"IF($AB521=\"No\",IF(R521=\"\",\"\",R521),\"\")","v":""},{"$f":"IF($T521=\"\", 0,IF(T521=\"No\",S521,IF(Y521=\"\",X521*AA521,Y521*AA521)))","v":0},0,0,null,"","",null,null,null,null,null,null,null,null,null,"","","",""]
[{"$f":"IF(C522=\"\",0,1)","v":0},514,null,null,"",null,null,null,null,null,0,null,null,null,null,0,null,null,0,null,{"$f":"IF($T522=\"No\",IF(H522=\"\",\"\",H522),\"\")","v":""},{"$f":"IF($T522=\"No\",IF(I522=\"\",\"\",I522),\"\")","v":""},{"$f":"IF($T522=\"No\",IF(J522=\"\",\"\",J522),\"\")","v":""},{"$f":"IFERROR(IF(T522=\"No\",K522,IF(U522=\"\",0,IF(LEFT(U522,1)=\"*\",K522,IF(V522=\"\",0,VLOOKUP(V522,INDIRECT(SUBSTITUTE(SUBSTITUTE(U522,\" \",\"_\"),\"-\",\"_\")&\"W\"),2,FALSE))))),\"N/A\")","v":0},{"$f":"IF($T522=\"No\",IF(L522=\"\",\"\",L522),\"\")","v":""},{"$f":"IF($T522=\"No\",IF(M522=\"\",\"\",M522),\"\")","v":""},{"$f":"IF($T522=\"No\",IF(N522=\"\",\"\",N522),\"\")","v":""},null,"",0,"","",0,0,0,null,"","",null,null,null,null,null,null,null,null,null,"","","",""]
[0,{"$f":"B522+1","v":515},null,null,"",null,null,null,null,null,0,null,null,null,null,0,null,null,0,null,"","","",0,"","","",null,"",0,"","",0,0,0,null,"","",null,null,null,null,null,null,null,null,null,"","","",""]
[0,516,null,null,"",null,null,null,null,null,0,null,null,null,null,0,null,null,0,null,"","","",0,"","","",null,"",0,"","",0,0,0,null,"","",null,null,null,null,null,null,null,null,null,"","","",""]
[0,517,null,null,"",null,null,null,null,null,0,null,null,null,null,0,null,null,0,null,"","","",0,"","","",null,"",0,"","",0,0,0,null,"","",null,null,null,null,null,null,null,null,null,"","","",""]
[0,518,null,null,"",null,null,null,null,null,0,null,null,null,null,0,null,null,0,null,"","","",0,"","","",null,"",0,"","",0,0,0,null,"","",null,null,null,null,null,null,null,null,null,"","","",""]
[0,519,null,null,"",null,null,null,null,null,0,null,null,null,null,0,null,null,0,null,"","","",0,"","","",null,"",0,"","",0,0,0,null,"","",null,null,null,null,null,null,null,null,null,"","","",""]
[0,520,null,null,"",null,null,null,null,null,0,null,null,null,null,{"$f":"IFERROR(IF(O528=\"\",0,1-VLOOKUP(O528,Prop_Sens_Table,2,FALSE)),\"N/A\")","v":0},null,null,{"$f":"IF(L528=\"\",N(K528)*N528,L528*N528)","v":0},null,"","","",0,"","","",null,"",0,"","",0,0,0,null,"","",null,null,null,null,null,null,null,null,null,"","","",""]
[0,521,null,null,"",null,null,null,null,null,0,null,null,null,null,0,null,null,0,null,"","","",0,"","","",null,"",0,"","",0,0,0,null,"","",null,null,null,null,null,null,null,null,null,"","","",""]
[0,522,null,null,"",null,null,null,null,null,0,null,null,null,null,0,null,null,0,null,"","","",0,"","","",null,"",0,"","",0,0,0,null,"","",null,null,null,null,null,null,null,null,null,"","","",""]
[0,523,null,null,"",null,null,null,null,null,0,null,null,null,null,0,null,null,0,null,"","","",0,"","","",null,"",0,"","",0,0,0,null,"","",null,null,null,null,null,null,null,null,null,"","","",""]
[0,524,null,null,"",null,null,null,null,null,0,null,null,null,null,0,null,null,0,null,"","","",0,"","","",null,"",0,"","",0,0,0,null,"","",null,null,null,null,null,null,null,null,null,"","","",""]
[0,525,null,null,"",null,null,null,null,null,0,null,null,null,null,0,null,null,0,null,"","","",0,"","","",null,"",0,"","",0,0,0,null,"","",null,null,null,null,null,null,null,null,null,"","","",""]
[0,526,null,null,"",null,null,null,null,null,0,null,null,null,null,0,null,null,0,null,"","","",0,"","","",null,"",0,"","",0,0,0,null,"","",null,null,null,null,null,null,null,null,null,"","","",""]
[0,527,null,null,"",null,null,null,null,null,0,null,null,null,null,0,null,null,0,null,"","","",0,"","","",null,"",0,"","",0,0,0,null,"","",null,null,null,null,null,null,null,null,null,"","","",""]
[0,528,null,null,"",null,null,null,null,null,0,null,null,null,null,0,null,null,0,null,"","","",0,"","","",null,"",0,"","",0,0,0,null,"","",null,null,null,null,null,null,null,null,null,"","","",""]
[0,529,null,null,"",null,null,null,null,null,0,null,null,null,null,0,null,null,0,null,"","","",0,"","","",null,"",0,"","",0,0,0,null,"","",null,null,null,null,null,null,null,null,null,"","","",""]
[0,530,null,null,"",null,null,null,null,null,0,null,null,null,null,0,null,null,0,null,"","","",0,"","","",null,"",0,"","",0,0,0,null,"","",null,null,null,null,null,null,null,null,null,"","","",""]
[0,531,null,null,"",null,null,null,null,null,0,null,null,null,null,0,null,null,0,null,"","","",0,"","","",null,"",0,"","",0,0,0,null,"","",null,null,null,null,null,null,null,null,null,"","","",""]
[0,532,null,null,"",null,null,null,null,null,0,null,null,null,null,0,null,null,0,null,"","","",0,"","","",null,"",0,"","",0,0,0,null,"","",null,null,null,null,null,null,null,null,null,"","","",""]
[0,533,null,null,"",null,null,null,null,null,0,null,null,null,null,0,null,null,0,null,"","","",0,"","","",null,"",0,"","",0,0,0,null,"","",null,null,null,null,null,null,null,null,null,"","","",""]
[0,534,null,null,"",null,null,null,null,null,0,null,null,null,null,0,null,null,0,null,"","","",0,"","","",null,"",0,"","",0,0,0,null,"","",null,null,null,null,null,null,null,null,null,"","","",""]
[0,535,null,null,"",null,null,null,null,null,0,null,null,null,null,0,null,null,0,null,"","","",0,"","","",null,"",0,"","",0,0,0,null,"","",null,null,null,null,null,null,null,null,null,"","","",""]
[0,536,null,null,"",null,null,null,null,null,0,null,null,null,null,0,null,null,0,null,"","","",0,"","","",null,"",0,"","",0,0,0,null,"","",null,null,null,null,null,null,null,null,null,"","","",""]
[0,537,null,null,"",null,null,null,null,null,0,null,null,null,null,0,null,null,0,null,"","","",0,"","","",null,"",0,"","",0,0,0,null,"","",null,null,null,null,null,null,null,null,null,"","","",""]
[0,538,null,null,"",null,null,null,null,null,0,null,null,null,null,0,null,null,0,null,"","","",0,"","","",null,"",0,"","",0,0,0,null,"","",null,null,null,null,null,null,null,null,null,"","","",""]
[0,539,null,null,"",null,null,null,null,null,0,null,null,null,null,0,null,null,0,null,"","","",0,"","","",null,"",0,"","",0,0,0,null,"","",null,null,null,null,null,null,null,null,null,"","","",""]
[0,540,null,null,"",null,null,null,null,null,0,null,null,null,null,0,null,null,0,null,"","","",0,"","","",null,"",0,"","",0,0,0,null,"","",null,null,null,null,null,null,null,null,null,"","","",""]
[0,541,null,null,"",null,null,null,null,null,0,null,null,null,null,0,null,null,0,null,"","","",0,"","","",null,"",0,"","",0,0,0,null,"","",null,null,null,null,null,null,null,null,null,"","","",""]
[0,542,null,null,"",null,null,null,null,null,0,null,null,null,null,0,null,null,0,null,"","","",0,"","","",null,"",0,"","",0,0,0,null,"","",null,null,null,null,null,null,null,null,null,"","","",""]
[0,543,null,null,"",null,null,null,null,null,0,null,null,null,null,0,null,null,0,null,"","","",0,"","","",null,"",0,"","",0,0,0,null,"","",null,null,null,null,null,null,null,null,null,"","","",""]
[0,544,null,null,"",null,null,null,null,null,0,null,null,null,null,0,null,null,0,null,"","","",0,"","","",null,"",0,"","",0,0,0,null,"","",null,null,null,null,null,null,null,null,null,"","","",""]
[0,545,null,null,"",null,null,null,null,null,0,null,null,null,null,0,null,null,0,null,"","","",0,"","","",null,"",0,"","",0,0,0,null,"","",null,null,null,null,null,null,null,null,null,"","","",""]
[0,546,null,null,"",null,null,null,null,null,0,null,null,null,null,0,null,null,0,null,"","","",0,"","","",null,"",0,"","",0,0,0,null,"","",null,null,null,null,null,null,null,null,null,"","","",""]
[0,547,null,null,"",null,null,null,null,null,0,null,null,null,null,0,null,null,0,null,"","","",0,"","","",null,"",0,"","",0,0,0,null,"","",null,null,null,null,null,null,null,null,null,"","","",""]
[0,548,null,null,"",null,null,null,null,null,0,null,null,null,null,0,null,null,0,null,"","","",0,"","","",null,"",0,"","",0,0,0,null,"","",null,null,null,null,null,null,null,null,null,"","","",""]
[0,549,null,null,"",null,null,null,null,null,0,null,null,null,null,0,null,null,0,null,"","","",0,"","","",null,"",0,"","",0,0,0,null,"","",null,null,null,null,null,null,null,null,null,"","","",""]
[0,550,null,null,"",null,null,null,null,null,0,null,null,null,null,0,null,null,0,null,"","","",0,"","","",null,"",0,"","",0,0,0,null,"","",null,null,null,null,null,null,null,null,null,"","","",""]
[0,551,null,null,"",null,null,null,null,null,0,null,null,null,null,0,null,null,0,null,"","","",0,"","","",null,"",0,"","",0,0,0,null,"","",null,null,null,null,null,null,null,null,null,"","","",""]
[0,552,null,null,"",null,null,null,null,null,0,null,null,null,null,0,null,null,0,null,"","","",0,"","","",null,"",0,"","",0,0,0,null,"","",null,null,null,null,null,null,null,null,null,"","","",""]
[0,553,null,null,"",null,null,null,null,null,0,null,null,null,null,0,null,null,0,null,"","","",0,"","","",null,"",0,"","",0,0,0,null,"","",null,null,null,null,null,null,null,null,null,"","","",""]
[0,554,null,null,"",null,null,null,null,null,0,null,null,null,null,0,null,null,0,null,"","","",0,"","","",null,"",0,"","",0,0,0,null,"","",null,null,null,null,null,null,null,null,null,"","","",""]
[0,555,null,null,"",null,null,null,null,null,0,null,null,null,null,0,null,null,0,null,"","","",0,"","","",null,"",0,"","",0,0,0,null,"","",null,null,null,null,null,null,null,null,null,"","","",""]
[0,556,null,null,"",null,null,null,null,null,0,null,null,null,null,0,null,null,0,null,"","","",0,"","","",null,"",0,"","",0,0,0,null,"","",null,null,null,null,null,null,null,null,null,"","","",""]
[0,557,null,null,"",null,null,null,null,null,0,null,null,null,null,0,null,null,0,null,"","","",0,"","","",null,"",0,"","",0,0,0,null,"","",null,null,null,null,null,null,null,null,null,"","","",""]
[0,558,null,null,"",null,null,null,null,null,0,null,null,null,null,0,null,null,0,null,"","","",0,"","","",null,"",0,"","",0,0,0,null,"","",null,null,null,null,null,null,null,null,null,"","","",""]
[0,559,null,null,"",null,null,null,null,null,0,null,null,null,null,0,null,null,0,null,"","","",0,"","","",null,"",0,"","",0,0,0,null,"","",null,null,null,null,null,null,null,null,null,"","","",""]
[0,560,null,null,"",null,null,null,null,null,0,null,null,null,null,0,null,null,0,null,"","","",0,"","","",null,"",0,"","",0,0,0,null,"","",null,null,null,null,null,null,null,null,null,"","","",""]
[0,561,null,null,"",null,null,null,null,null,0,null,null,null,null,0,null,null,0,null,"","","",0,"","","",null,"",0,"","",0,0,0,null,"","",null,null,null,null,null,null,null,null,null,"","","",""]
[0,562,null,null,"",null,null,null,null,null,0,null,null,null,null,0,null,null,0,null,"","","",0,"","","",null,"",0,"","",0,0,0,null,"","",null,null,null,null,null,null,null,null,null,"","","",""]
[0,563,null,null,"",null,null,null,null,null,0,null,null,null,null,0,null,null,0,null,"","","",0,"","","",null,"",0,"","",0,0,0,null,"","",null,null,null,null,null,null,null,null,null,"","","",""]
[0,564,null,null,"",null,null,null,null,null,0,null,null,null,null,0,null,null,0,null,"","","",0,"","","",null,"",0,"","",0,0,0,null,"","",null,null,null,null,null,null,null,null,null,"","","",""]
[0,565,null,null,"",null,null,null,null,null,0,null,null,null,null,0,null,null,0,null,"","","",0,"","","",null,"",0,"","",0,0,0,null,"","",null,null,null,null,null,null,null,null,null,"","","",""]
[0,566,null,null,"",null,null,null,null,null,0,null,null,null,null,0,null,null,0,null,"","","",0,"","","",null,"",0,"","",0,0,0,null,"","",null,null,null,null,null,null,null,null,null,"","","",""]
[0,567,null,null,"",null,null,null,null,null,0,null,null,null,null,0,null,null,0,null,"","","",0,"","","",null,"",0,"","",0,0,0,null,"","",null,null,null,null,null,null,null,null,null,"","","",""]
[0,568,null,null,"",null,null,null,null,null,0,null,null,null,null,0,null,null,0,null,"","","",0,"","","",null,"",0,"","",0,0,0,null,"","",null,null,null,null,null,null,null,null,null,"","","",""]
[0,569,null,null,"",null,null,null,null,null,0,null,null,null,null,0,null,null,0,null,"","","",0,"","","",null,"",0,"","",0,0,0,null,"","",null,null,null,null,null,null,null,null,null,"","","",""]
[0,570,null,null,"",null,null,null,null,null,0,null,null,null,null,0,null,null,0,null,"","","",0,"","","",null,"",0,"","",0,0,0,null,"","",null,null,null,null,null,null,null,null,null,"","","",""]
[0,571,null,null,"",null,null,null,null,null,0,null,null,null,null,0,null,null,0,null,"","","",0,"","","",null,"",0,"","",0,0,0,null,"","",null,null,null,null,null,null,null,null,null,"","","",""]
[0,572,null,null,"",null,null,null,null,null,0,null,null,null,null,0,null,null,0,null,"","","",0,"","","",null,"",0,"","",0,0,0,null,"","",null,null,null,null,null,null,null,null,null,"","","",""]
[0,573,null,null,"",null,null,null,null,null,0,null,null,null,null,0,null,null,0,null,"","","",0,"","","",null,"",0,"","",0,0,0,null,"","",null,null,null,null,null,null,null,null,null,"","","",""]
[0,574,null,null,"",null,null,null,null,null,0,null,null,null,null,0,null,null,0,null,"","","",0,"","","",null,"",0,"","",0,0,0,null,"","",null,null,null,null,null,null,null,null,null,"","","",""]
[0,575,null,null,{"$f":"IFERROR(VLOOKUP(C583,BuildingNameTable,2,FALSE),\"\")","v":""},null,null,null,null,null,0,null,null,null,null,0,null,null,0,null,"","","",0,"","","",null,"",0,"","",0,0,0,null,"","",null,null,null,null,null,null,null,null,null,"","","",""]
[0,576,null,null,"",null,null,null,null,null,0,null,null,null,null,0,null,null,0,null,"","","",0,"","","",null,"",{"$f":"IFERROR(IF($AB584=\"No\",P584,IF(AC584=\"\",0,1-VLOOKUP(AC584,Prop_Sens_Table,2,FALSE))),\"N/A\")","v":0},"","",0,{"$f":"S584-AG584","v":0},{"$f":"IFERROR(1-(AG584/S584),0)","v":0},null,{"$f":"IF(E584=\"\",\"\",(1-IF(Q584=\"\",P584,Q584))*VLOOKUP(E584,BuildingType_RunHours,2,FALSE))","v":""},{"$f":"IF(E584=\"\",\"\",(1-IF(AE584=\"\",AD584,AE584))*VLOOKUP(E584,BuildingType_RunHours,2,FALSE))","v":""},null,null,null,null,null,null,null,null,null,{"$f":"IF(ISERROR(VLOOKUP($I584,LightWattLimits,2,FALSE))=TRUE,\"\",VLOOKUP($I584,LightWattLimits,2,FALSE))","v":""},{"$f":"IF(ISERROR(VLOOKUP($I584,LightWattLimits,3,FALSE))=TRUE,\"\",VLOOKUP($I584,LightWattLimits,3,FALSE))","v":""},{"$f":"IF(ISERROR(VLOOKUP($V584,LightWattLimits,2,FALSE))=TRUE,\"\",VLOOKUP($V584,LightWattLimits,2,FALSE))","v":""},{"$f":"IF(ISERROR(VLOOKUP($V584,LightWattLimits,3,FALSE))=TRUE,\"\",VLOOKUP($V584,LightWattLimits,3,FALSE))","v":""}]
[0,577,null,null,"",null,null,null,null,null,{"$f":"IFERROR(IF(OR(H585=\"\",I585=\"\")=TRUE,0,VLOOKUP(I585,INDIRECT(SUBSTITUTE(SUBSTITUTE(H585,\" \",\"_\"),\"-\",\"_\")&\"W\"),2,FALSE)),\"N/A\")","v":0},null,null,null,null,0,null,null,0,null,"","","",0,"","","",null,{"$f":"IF($AB585=\"No\",IF(O585=\"\",\"\",O585),\"\")","v":""},0,{"$f":"IF($AB585=\"No\",IF(Q585=\"\",\"\",Q585),\"\")","v":""},{"$f":"IF($AB585=\"No\",IF(R585=\"\",\"\",R585),\"\")","v":""},{"$f":"IF($T585=\"\", 0,IF(T585=\"No\",S585,IF(Y585=\"\",X585*AA585,Y585*AA585)))","v":0},0,0,null,"","",null,null,null,null,null,null,null,null,null,"","","",""]
[{"$f":"IF(C586=\"\",0,1)","v":0},578,null,null,"",null,null,null,null,null,0,null,null,null,null,0,null,null,0,null,{"$f":"IF($T586=\"No\",IF(H586=\"\",\"\",H586),\"\")","v":""},{"$f":"IF($T586=\"No\",IF(I586=\"\",\"\",I586),\"\")","v":""},{"$f":"IF($T586=\"No\",IF(J586=\"\",\"\",J586),\"\")","v":""},{"$f":"IFERROR(IF(T586=\"No\",K586,IF(U586=\"\",0,IF(LEFT(U586,1)=\"*\",K586,IF(V586=\"\",0,VLOOKUP(V586,INDIRECT(SUBSTITUTE(SUBSTITUTE(U586,\" \",\"_\"),\"-\",\"_\")&\"W\"),2,FALSE))))),\"N/A\")","v":0},{"$f":"IF($T586=\"No\",IF(L586=\"\",\"\",L586),\"\")","v":""},{"$f":"IF($T586=\"No\",IF(M586=\"\",\"\",M586),\"\")","v":""},{"$f":"IF($T586=\"No\",IF(N586=\"\",\"\",N586),\"\")","v":""},null,"",0,"","",0,0,0,null,"","",null,null,null,null,null,null,null,null,null,"","","",""]
[0,{"$f":"B586+1","v":579},null,null,"",null,null,null,null,null,0,null,null,null,null,0,null,null,0,null,"","","",0,"","","",null,"",0,"","",0,0,0,null,"","",null,null,null,null,null,null,null,null,null,"","","",""]
[0,580,null,null,"",null,null,null,null,null,0,null,null,null,null,0,null,null,0,null,"","","",0,"","","",null,"",0,"","",0,0,0,null,"","",null,null,null,null,null,null,null,null,null,"","","",""]
[0,581,null,null,"",null,null,null,null,null,0,null,null,null,null,0,null,null,0,null,"","","",0,"","","",null,"",0,"","",0,0,0,null,"","",null,null,null,null,null,null,null,null,null,"","","",""]
[0,582,null,null,"",null,null,null,null,null,0,null,null,null,null,0,null,null,0,null,"","","",0,"","","",null,"",0,"","",0,0,0,null,"","",null,null,null,null,null,null,null,null,null,"","","",""]
[0,583,null,null,"",null,null,null,null,null,0,null,null,null,null,0,null,null,0,null,"","","",0,"","","",null,"",0,"","",0,0,0,null,"","",null,null,null,null,null,null,null,null,null,"","","",""]
[0,584,null,null,"",null,null,null,null,null,0,null,null,null,null,{"$f":"IFERROR(IF(O592=\"\",0,1-VLOOKUP(O592,Prop_Sens_Table,2,FALSE)),\"N/A\")","v":0},null,null,{"$f":"IF(L592=\"\",N(K592)*N592,L592*N592)","v":0},null,"","","",0,"","","",null,"",0,"","",0,0,0,null,"","",null,null,null,null,null,null,null,null,null,"","","",""]
[0,585,null,null,"",null,null,null,null,null,0,null,null,null,null,0,null,null,0,null,"","","",0,"","","",null,"",0,"","",0,0,0,null,"","",null,null,null,null,null,null,null,null,null,"","","",""]
[0,586,null,null,"",null,null,null,null,null,0,null,null,null,null,0,null,null,0,null,"","","",0,"","","",null,"",0,"","",0,0,0,null,"","",null,null,null,null,null,null,null,null,null,"","","",""]
[0,587,null,null,"",null,null,null,null,null,0,null,null,null,null,0,null,null,0,null,"","","",0,"","","",null,"",0,"","",0,0,0,null,"","",null,null,null,null,null,null,null,null,null,"","","",""]
[0,588,null,null,"",null,null,null,null,null,0,null,null,null,null,0,null,null,0,null,"","","",0,"","","",null,"",0,"","",0,0,0,null,"","",null,null,null,null,null,null,null,null,null,"","","",""]
[0,589,null,null,"",null,null,null,null,null,0,null,null,null,null,0,null,null,0,null,"","","",0,"","","",null,"",0,"","",0,0,0,null,"","",null,null,null,null,null,null,null,null,null,"","","",""]
[0,590,null,null,"",null,null,null,null,null,0,null,null,null,null,0,null,null,0,null,"","","",0,"","","",null,"",0,"","",0,0,0,null,"","",null,null,null,null,null,null,null,null,null,"","","",""]
[0,591,null,null,"",null,null,null,null,null,0,null,null,null,null,0,null,null,0,null,"","","",0,"","","",null,"",0,"","",0,0,0,null,"","",null,null,null,null,null,null,null,null,null,"","","",""]
[0,592,null,null,"",null,null,null,null,null,0,null,null,null,null,0,null,null,0,null,"","","",0,"","","",null,"",0,"","",0,0,0,null,"","",null,null,null,null,null,null,null,null,null,"","","",""]
[0,593,null,null,"",null,null,null,null,null,0,null,null,null,null,0,null,null,0,null,"","","",0,"","","",null,"",0,"","",0,0,0,null,"","",null,null,null,null,null,null,null,null,null,"","","",""]
[0,594,null,null,"",null,null,null,null,null,0,null,null,null,null,0,null,null,0,null,"","","",0,"","","",null,"",0,"","",0,0,0,null,"","",null,null,null,null,null,null,null,null,null,"","","",""]
[0,595,null,null,"",null,null,null,null,null,0,null,null,null,null,0,null,null,0,null,"","","",0,"","","",null,"",0,"","",0,0,0,null,"","",null,null,null,null,null,null,null,null,null,"","","",""]
[0,596,null,null,"",null,null,null,null,null,0,null,null,null,null,0,null,null,0,null,"","","",0,"","","",null,"",0,"","",0,0,0,null,"","",null,null,null,null,null,null,null,null,null,"","","",""]
[0,597,null,null,"",null,null,null,null,null,0,null,null,null,null,0,null,null,0,null,"","","",0,"","","",null,"",0,"","",0,0,0,null,"","",null,null,null,null,null,null,null,null,null,"","","",""]
[0,598,null,null,"",null,null,null,null,null,0,null,null,null,null,0,null,null,0,null,"","","",0,"","","",null,"",0,"","",0,0,0,null,"","",null,null,null,null,null,null,null,null,null,"","","",""]
[0,599,null,null,"",null,null,null,null,null,0,null,null,null,null,0,null,null,0,null,"","","",0,"","","",null,"",0,"","",0,0,0,null,"","",null,null,null,null,null,null,null,null,null,"","","",""]
[0,600,null,null,"",null,null,null,null,null,0,null,null,null,null,0,null,null,0,null,"","","",0,"","","",null,"",0,"","",0,0,0,null,"","",null,null,null,null,null,null,null,null,null,"","","",""]
[0,601,null,null,"",null,null,null,null,null,0,null,null,null,null,0,null,null,0,null,"","","",0,"","","",null,"",0,"","",0,0,0,null,"","",null,null,null,null,null,null,null,null,null,"","","",""]
[0,602,null,null,"",null,null,null,null,null,0,null,null,null,null,0,null,null,0,null,"","","",0,"","","",null,"",0,"","",0,0,0,null,"","",null,null,null,null,null,null,null,null,null,"","","",""]
[0,603,null,null,"",null,null,null,null,null,0,null,null,null,null,0,null,null,0,null,"","","",0,"","","",null,"",0,"","",0,0,0,null,"","",null,null,null,null,null,null,null,null,null,"","","",""]
[0,604,null,null,"",null,null,null,null,null,0,null,null,null,null,0,null,null,0,null,"","","",0,"","","",null,"",0,"","",0,0,0,null,"","",null,null,null,null,null,null,null,null,null,"","","",""]
[0,605,null,null,"",null,null,null,null,null,0,null,null,null,null,0,null,null,0,null,"","","",0,"","","",null,"",0,"","",0,0,0,null,"","",null,null,null,null,null,null,null,null,null,"","","",""]
[0,606,null,null,"",null,null,null,null,null,0,null,null,null,null,0,null,null,0,null,"","","",0,"","","",null,"",0,"","",0,0,0,null,"","",null,null,null,null,null,null,null,null,null,"","","",""]
[0,607,null,null,"",null,null,null,null,null,0,null,null,null,null,0,null,null,0,null,"","","",0,"","","",null,"",0,"","",0,0,0,null,"","",null,null,null,null,null,null,null,null,null,"","","",""]
[0,608,null,null,"",null,null,null,null,null,0,null,null,null,null,0,null,null,0,null,"","","",0,"","","",null,"",0,"","",0,0,0,null,"","",null,null,null,null,null,null,null,null,null,"","","",""]
[0,609,null,null,"",null,null,null,null,null,0,null,null,null,null,0,null,null,0,null,"","","",0,"","","",null,"",0,"","",0,0,0,null,"","",null,null,null,null,null,null,null,null,null,"","","",""]
[0,610,null,null,"",null,null,null,null,null,0,null,null,null,null,0,null,null,0,null,"","","",0,"","","",null,"",0,"","",0,0,0,null,"","",null,null,null,null,null,null,null,null,null,"","","",""]
[0,611,null,null,"",null,null,null,null,null,0,null,null,null,null,0,null,null,0,null,"","","",0,"","","",null,"",0,"","",0,0,0,null,"","",null,null,null,null,null,null,null,null,null,"","","",""]
[0,612,null,null,"",null,null,null,null,null,0,null,null,null,null,0,null,null,0,null,"","","",0,"","","",null,"",0,"","",0,0,0,null,"","",null,null,null,null,null,null,null,null,null,"","","",""]
[0,613,null,null,"",null,null,null,null,null,0,null,null,null,null,0,null,null,0,null,"","","",0,"","","",null,"",0,"","",0,0,0,null,"","",null,null,null,null,null,null,null,null,null,"","","",""]
[0,614,null,null,"",null,null,null,null,null,0,null,null,null,null,0,null,null,0,null,"","","",0,"","","",null,"",0,"","",0,0,0,null,"","",null,null,null,null,null,null,null,null,null,"","","",""]
[0,615,null,null,"",null,null,null,null,null,0,null,null,null,null,0,null,null,0,null,"","","",0,"","","",null,"",0,"","",0,0,0,null,"","",null,null,null,null,null,null,null,null,null,"","","",""]
[0,616,null,null,"",null,null,null,null,null,0,null,null,null,null,0,null,null,0,null,"","","",0,"","","",null,"",0,"","",0,0,0,null,"","",null,null,null,null,null,null,null,null,null,"","","",""]
[0,617,null,null,"",null,null,null,null,null,0,null,null,null,null,0,null,null,0,null,"","","",0,"","","",null,"",0,"","",0,0,0,null,"","",null,null,null,null,null,null,null,null,null,"","","",""]
[0,618,null,null,"",null,null,null,null,null,0,null,null,null,null,0,null,null,0,null,"","","",0,"","","",null,"",0,"","",0,0,0,null,"","",null,null,null,null,null,null,null,null,null,"","","",""]
[0,619,null,null,"",null,null,null,null,null,0,null,null,null,null,0,null,null,0,null,"","","",0,"","","",null,"",0,"","",0,0,0,null,"","",null,null,null,null,null,null,null,null,null,"","","",""]
[0,620,null,null,"",null,null,null,null,null,0,null,null,null,null,0,null,null,0,null,"","","",0,"","","",null,"",0,"","",0,0,0,null,"","",null,null,null,null,null,null,null,null,null,"","","",""]
[0,621,null,null,"",null,null,null,null,null,0,null,null,null,null,0,null,null,0,null,"","","",0,"","","",null,"",0,"","",0,0,0,null,"","",null,null,null,null,null,null,null,null,null,"","","",""]
[0,622,null,null,"",null,null,null,null,null,0,null,null,null,null,0,null,null,0,null,"","","",0,"","","",null,"",0,"","",0,0,0,null,"","",null,null,null,null,null,null,null,null,null,"","","",""]
[0,623,null,null,"",null,null,null,null,null,0,null,null,null,null,0,null,null,0,null,"","","",0,"","","",null,"",0,"","",0,0,0,null,"","",null,null,null,null,null,null,null,null,null,"","","",""]
[0,624,null,null,"",null,null,null,null,null,0,null,null,null,null,0,null,null,0,null,"","","",0,"","","",null,"",0,"","",0,0,0,null,"","",null,null,null,null,null,null,null,null,null,"","","",""]
[0,625,null,null,"",null,null,null,null,null,0,null,null,null,null,0,null,null,0,null,"","","",0,"","","",null,"",0,"","",0,0,0,null,"","",null,null,null,null,null,null,null,null,null,"","","",""]
[0,626,null,null,"",null,null,null,null,null,0,null,null,null,null,0,null,null,0,null,"","","",0,"","","",null,"",0,"","",0,0,0,null,"","",null,null,null,null,null,null,null,null,null,"","","",""]
[0,627,null,null,"",null,null,null,null,null,0,null,null,null,null,0,null,null,0,null,"","","",0,"","","",null,"",0,"","",0,0,0,null,"","",null,null,null,null,null,null,null,null,null,"","","",""]
[0,628,null,null,"",null,null,null,null,null,0,null,null,null,null,0,null,null,0,null,"","","",0,"","","",null,"",0,"","",0,0,0,null,"","",null,null,null,null,null,null,null,null,null,"","","",""]
[0,629,null,null,"",null,null,null,null,null,0,null,null,null,null,0,null,null,0,null,"","","",0,"","","",null,"",0,"","",0,0,0,null,"","",null,null,null,null,null,null,null,null,null,"","","",""]
[0,630,null,null,"",null,null,null,null,null,0,null,null,null,null,0,null,null,0,null,"","","",0,"","","",null,"",0,"","",0,0,0,null,"","",null,null,null,null,null,null,null,null,null,"","","",""]
[0,631,null,null,"",null,null,null,null,null,0,null,null,null,null,0,null,null,0,null,"","","",0,"","","",null,"",0,"","",0,0,0,null,"","",null,null,null,null,null,null,null,null,null,"","","",""]
[0,632,null,null,"",null,null,null,null,null,0,null,null,null,null,0,null,null,0,null,"","","",0,"","","",null,"",0,"","",0,0,0,null,"","",null,null,null,null,null,null,null,null,null,"","","",""]
[0,633,null,null,"",null,null,null,null,null,0,null,null,null,null,0,null,null,0,null,"","","",0,"","","",null,"",0,"","",0,0,0,null,"","",null,null,null,null,null,null,null,null,null,"","","",""]
[0,634,null,null,"",null,null,null,null,null,0,null,null,null,null,0,null,null,0,null,"","","",0,"","","",null,"",0,"","",0,0,0,null,"","",null,null,null,null,null,null,null,null,null,"","","",""]
[0,635,null,null,"",null,null,null,null,null,0,null,null,null,null,0,null,null,0,null,"","","",0,"","","",null,"",0,"","",0,0,0,null,"","",null,null,null,null,null,null,null,null,null,"","","",""]
[0,636,null,null,"",null,null,null,null,null,0,null,null,null,null,0,null,null,0,null,"","","",0,"","","",null,"",0,"","",0,0,0,null,"","",null,null,null,null,null,null,null,null,null,"","","",""]
[0,637,null,null,"",null,null,null,null,null,0,null,null,null,null,0,null,null,0,null,"","","",0,"","","",null,"",0,"","",0,0,0,null,"","",null,null,null,null,null,null,null,null,null,"","","",""]
[0,638,null,null,"",null,null,null,null,null,0,null,null,null,null,0,null,null,0,null,"","","",0,"","","",null,"",0,"","",0,0,0,null,"","",null,null,null,null,null,null,null,null,null,"","","",""]
[0,639,null,null,{"$f":"IFERROR(VLOOKUP(C647,BuildingNameTable,2,FALSE),\"\")","v":""},null,null,null,null,null,0,null,null,null,null,0,null,null,0,null,"","","",0,"","","",null,"",0,"","",0,0,0,null,"","",null,null,null,null,null,null,null,null,null,"","","",""]
[0,640,null,null,"",null,null,null,null,null,0,null,null,null,null,0,null,null,0,null,"","","",0,"","","",null,"",{"$f":"IFERROR(IF($AB648=\"No\",P648,IF(AC648=\"\",0,1-VLOOKUP(AC648,Prop_Sens_Table,2,FALSE))),\"N/A\")","v":0},"","",0,{"$f":"S648-AG648","v":0},{"$f":"IFERROR(1-(AG648/S648),0)","v":0},null,{"$f":"IF(E648=\"\",\"\",(1-IF(Q648=\"\",P648,Q648))*VLOOKUP(E648,BuildingType_RunHours,2,FALSE))","v":""},{"$f":"IF(E648=\"\",\"\",(1-IF(AE648=\"\",AD648,AE648))*VLOOKUP(E648,BuildingType_RunHours,2,FALSE))","v":""},null,null,null,null,null,null,null,null,null,{"$f":"IF(ISERROR(VLOOKUP($I648,LightWattLimits,2,FALSE))=TRUE,\"\",VLOOKUP($I648,LightWattLimits,2,FALSE))","v":""},{"$f":"IF(ISERROR(VLOOKUP($I648,LightWattLimits,3,FALSE))=TRUE,\"\",VLOOKUP($I648,LightWattLimits,3,FALSE))","v":""},{"$f":"IF(ISERROR(VLOOKUP($V648,LightWattLimits,2,FALSE))=TRUE,\"\",VLOOKUP($V648,LightWattLimits,2,FALSE))","v":""},{"$f":"IF(ISERROR(VLOOKUP($V648,LightWattLimits,3,FALSE))=TRUE,\"\",VLOOKUP($V648,LightWattLimits,3,FALSE))","v":""}]
[0,641,null,null,"",null,null,null,null,null,{"$f":"IFERROR(IF(OR(H649=\"\",I649=\"\")=TRUE,0,VLOOKUP(I649,INDIRECT(SUBSTITUTE(SUBSTITUTE(H649,\" \",\"_\"),\"-\",\"_\")&\"W\"),2,FALSE)),\"N/A\")","v":0},null,null,null,null,0,null,null,0,null,"","","",0,"","","",null,{"$f":"IF($AB649=\"No\",IF(O649=\"\",\"\",O649),\"\")","v":""},0,{"$f":"IF($AB649=\"No\",IF(Q649=\"\",\"\",Q649),\"\")","v":""},{"$f":"IF($AB649=\"No\",IF(R649=\"\",\"\",R649),\"\")","v":""},{"$f":"IF($T649=\"\", 0,IF(T649=\"No\",S649,IF(Y649=\"\",X649*AA649,Y649*AA649)))","v":0},0,0,null,"","",null,null,null,null,null,null,null,null,null,"","","",""]
[{"$f":"IF(C650=\"\",0,1)","v":0},642,null,null,"",null,null,null,null,null,0,null,null,null,null,0,null,null,0,null,{"$f":"IF($T650=\"No\",IF(H650=\"\",\"\",H650),\"\")","v":""},{"$f":"IF($T650=\"No\",IF(I650=\"\",\"\",I650),\"\")","v":""},{"$f":"IF($T650=\"No\",IF(J650=\"\",\"\",J650),\"\")","v":""},{"$f":"IFERROR(IF(T650=\"No\",K650,IF(U650=\"\",0,IF(LEFT(U650,1)=\"*\",K650,IF(V650=\"\",0,VLOOKUP(V650,INDIRECT(SUBSTITUTE(SUBSTITUTE(U650,\" \",\"_\"),\"-\",\"_\")&\"W\"),2,FALSE))))),\"N/A\")","v":0},{"$f":"IF($T650=\"No\",IF(L650=\"\",\"\",L650),\"\")","v":""},{"$f":"IF($T650=\"No\",IF(M650=\"\",\"\",M650),\"\")","v":""},{"$f":"IF($T650=\"No\",IF(N650=\"\",\"\",N650),\"\")","v":""},null,"",0,"","",0,0,0,null,"","",null,null,null,null,null,null,null,null,null,"","","",""]
[0,{"$f":"B650+1","v":643},null,null,"",null,null,null,null,null,0,null,null,null,null,0,null,null,0,null,"","","",0,"","","",null,"",0,"","",0,0,0,null,"","",null,null,null,null,null,null,null,null,null,"","","",""]
[0,644,null,null,"",null,null,null,null,null,0,null,null,null,null,0,null,null,0,null,"","","",0,"","","",null,"",0,"","",0,0,0,null,"","",null,null,null,null,null,null,null,null,null,"","","",""]
[0,645,null,null,"",null,null,null,null,null,0,null,null,null,null,0,null,null,0,null,"","","",0,"","","",null,"",0,"","",0,0,0,null,"","",null,null,null,null,null,null,null,null,null,"","","",""]
[0,646,null,null,"",null,null,null,null,null,0,null,null,null,null,0,null,null,0,null,"","","",0,"","","",null,"",0,"","",0,0,0,null,"","",null,null,null,null,null,null,null,null,null,"","","",""]
[0,647,null,null,"",null,null,null,null,null,0,null,null,null,null,0,null,null,0,null,"","","",0,"","","",null,"",0,"","",0,0,0,null,"","",null,null,null,null,null,null,null,null,null,"","","",""]
[0,648,null,null,"",null,null,null,null,null,0,null,null,null,null,{"$f":"IFERROR(IF(O656=\"\",0,1-VLOOKUP(O656,Prop_Sens_Table,2,FALSE)),\"N/A\")","v":0},null,null,{"$f":"IF(L656=\"\",N(K656)*N656,L656*N656)","v":0},null,"","","",0,"","","",null,"",0,"","",0,0,0,null,"","",null,null,null,null,null,null,null,null,null,"","","",""]
[0,649,null,null,"",null,null,null,null,null,0,null,null,null,null,0,null,null,0,null,"","","",0,"","","",null,"",0,"","",0,0,0,null,"","",null,null,null,null,null,null,null,null,null,"","","",""]
[0,650,null,null,"",null,null,null,null,null,0,null,null,null,null,0,null,null,0,null,"","","",0,"","","",null,"",0,"","",0,0,0,null,"","",null,null,null,null,null,null,null,null,null,"","","",""]
[0,651,null,null,"",null,null,null,null,null,0,null,null,null,null,0,null,null,0,null,"","","",0,"","","",null,"",0,"","",0,0,0,null,"","",null,null,null,null,null,null,null,null,null,"","","",""]
[0,652,null,null,"",null,null,null,null,null,0,null,null,null,null,0,null,null,0,null,"","","",0,"","","",null,"",0,"","",0,0,0,null,"","",null,null,null,null,null,null,null,null,null,"","","",""]
[0,653,null,null,"",null,null,null,null,null,0,null,null,null,null,0,null,null,0,null,"","","",0,"","","",null,"",0,"","",0,0,0,null,"","",null,null,null,null,null,null,null,null,null,"","","",""]
[0,654,null,null,"",null,null,null,null,null,0,null,null,null,null,0,null,null,0,null,"","","",0,"","","",null,"",0,"","",0,0,0,null,"","",null,null,null,null,null,null,null,null,null,"","","",""]
[0,655,null,null,"",null,null,null,null,null,0,null,null,null,null,0,null,null,0,null,"","","",0,"","","",null,"",0,"","",0,0,0,null,"","",null,null,null,null,null,null,null,null,null,"","","",""]
[0,656,null,null,"",null,null,null,null,null,0,null,null,null,null,0,null,null,0,null,"","","",0,"","","",null,"",0,"","",0,0,0,null,"","",null,null,null,null,null,null,null,null,null,"","","",""]
[0,657,null,null,"",null,null,null,null,null,0,null,null,null,null,0,null,null,0,null,"","","",0,"","","",null,"",0,"","",0,0,0,null,"","",null,null,null,null,null,null,null,null,null,"","","",""]
[0,658,null,null,"",null,null,null,null,null,0,null,null,null,null,0,null,null,0,null,"","","",0,"","","",null,"",0,"","",0,0,0,null,"","",null,null,null,null,null,null,null,null,null,"","","",""]
[0,659,null,null,"",null,null,null,null,null,0,null,null,null,null,0,null,null,0,null,"","","",0,"","","",null,"",0,"","",0,0,0,null,"","",null,null,null,null,null,null,null,null,null,"","","",""]
[0,660,null,null,"",null,null,null,null,null,0,null,null,null,null,0,null,null,0,null,"","","",0,"","","",null,"",0,"","",0,0,0,null,"","",null,null,null,null,null,null,null,null,null,"","","",""]
[0,661,null,null,"",null,null,null,null,null,0,null,null,null,null,0,null,null,0,null,"","","",0,"","","",null,"",0,"","",0,0,0,null,"","",null,null,null,null,null,null,null,null,null,"","","",""]
[0,662,null,null,"",null,null,null,null,null,0,null,null,null,null,0,null,null,0,null,"","","",0,"","","",null,"",0,"","",0,0,0,null,"","",null,null,null,null,null,null,null,null,null,"","","",""]
[0,663,null,null,"",null,null,null,null,null,0,null,null,null,null,0,null,null,0,null,"","","",0,"","","",null,"",0,"","",0,0,0,null,"","",null,null,null,null,null,null,null,null,null,"","","",""]
[0,664,null,null,"",null,null,null,null,null,0,null,null,null,null,0,null,null,0,null,"","","",0,"","","",null,"",0,"","",0,0,0,null,"","",null,null,null,null,null,null,null,null,null,"","","",""]
[0,665,null,null,"",null,null,null,null,null,0,null,null,null,null,0,null,null,0,null,"","","",0,"","","",null,"",0,"","",0,0,0,null,"","",null,null,null,null,null,null,null,null,null,"","","",""]
[0,666,null,null,"",null,null,null,null,null,0,null,null,null,null,0,null,null,0,null,"","","",0,"","","",null,"",0,"","",0,0,0,null,"","",null,null,null,null,null,null,null,null,null,"","","",""]
[0,667,null,null,"",null,null,null,null,null,0,null,null,null,null,0,null,null,0,null,"","","",0,"","","",null,"",0,"","",0,0,0,null,"","",null,null,null,null,null,null,null,null,null,"","","",""]
[0,668,null,null,"",null,null,null,null,null,0,null,null,null,null,0,null,null,0,null,"","","",0,"","","",null,"",0,"","",0,0,0,null,"","",null,null,null,null,null,null,null,null,null,"","","",""]
[0,669,null,null,"",null,null,null,null,null,0,null,null,null,null,0,null,null,0,null,"","","",0,"","","",null,"",0,"","",0,0,0,null,"","",null,null,null,null,null,null,null,null,null,"","","",""]
[0,670,null,null,"",null,null,null,null,null,0,null,null,null,null,0,null,null,0,null,"","","",0,"","","",null,"",0,"","",0,0,0,null,"","",null,null,null,null,null,null,null,null,null,"","","",""]
[0,671,null,null,"",null,null,null,null,null,0,null,null,null,null,0,null,null,0,null,"","","",0,"","","",null,"",0,"","",0,0,0,null,"","",null,null,null,null,null,null,null,null,null,"","","",""]
[0,672,null,null,"",null,null,null,null,null,0,null,null,null,null,0,null,null,0,null,"","","",0,"","","",null,"",0,"","",0,0,0,null,"","",null,null,null,null,null,null,null,null,null,"","","",""]
[0,673,null,null,"",null,null,null,null,null,0,null,null,null,null,0,null,null,0,null,"","","",0,"","","",null,"",0,"","",0,0,0,null,"","",null,null,null,null,null,null,null,null,null,"","","",""]
[0,674,null,null,"",null,null,null,null,null,0,null,null,null,null,0,null,null,0,null,"","","",0,"","","",null,"",0,"","",0,0,0,null,"","",null,null,null,null,null,null,null,null,null,"","","",""]
[0,675,null,null,"",null,null,null,null,null,0,null,null,null,null,0,null,null,0,null,"","","",0,"","","",null,"",0,"","",0,0,0,null,"","",null,null,null,null,null,null,null,null,null,"","","",""]
[0,676,null,null,"",null,null,null,null,null,0,null,null,null,null,0,null,null,0,null,"","","",0,"","","",null,"",0,"","",0,0,0,null,"","",null,null,null,null,null,null,null,null,null,"","","",""]
[0,677,null,null,"",null,null,null,null,null,0,null,null,null,null,0,null,null,0,null,"","","",0,"","","",null,"",0,"","",0,0,0,null,"","",null,null,null,null,null,null,null,null,null,"","","",""]
[0,678,null,null,"",null,null,null,null,null,0,null,null,null,null,0,null,null,0,null,"","","",0,"","","",null,"",0,"","",0,0,0,null,"","",null,null,null,null,null,null,null,null,null,"","","",""]
[0,679,null,null,"",null,null,null,null,null,0,null,null,null,null,0,null,null,0,null,"","","",0,"","","",null,"",0,"","",0,0,0,null,"","",null,null,null,null,null,null,null,null,null,"","","",""]
[0,680,null,null,"",null,null,null,null,null,0,null,null,null,null,0,null,null,0,null,"","","",0,"","","",null,"",0,"","",0,0,0,null,"","",null,null,null,null,null,null,null,null,null,"","","",""]
[0,681,null,null,"",null,null,null,null,null,0,null,null,null,null,0,null,null,0,null,"","","",0,"","","",null,"",0,"","",0,0,0,null,"","",null,null,null,null,null,null,null,null,null,"","","",""]
[0,682,null,null,"",null,null,null,null,null,0,null,null,null,null,0,null,null,0,null,"","","",0,"","","",null,"",0,"","",0,0,0,null,"","",null,null,null,null,null,null,null,null,null,"","","",""]
[0,683,null,null,"",null,null,null,null,null,0,null,null,null,null,0,null,null,0,null,"","","",0,"","","",null,"",0,"","",0,0,0,null,"","",null,null,null,null,null,null,null,null,null,"","","",""]
[0,684,null,null,"",null,null,null,null,null,0,null,null,null,null,0,null,null,0,null,"","","",0,"","","",null,"",0,"","",0,0,0,null,"","",null,null,null,null,null,null,null,null,null,"","","",""]
[0,685,null,null,"",null,null,null,null,null,0,null,null,null,null,0,null,null,0,null,"","","",0,"","","",null,"",0,"","",0,0,0,null,"","",null,null,null,null,null,null,null,null,null,"","","",""]
[0,686,null,null,"",null,null,null,null,null,0,null,null,null,null,0,null,null,0,null,"","","",0,"","","",null,"",0,"","",0,0,0,null,"","",null,null,null,null,null,null,null,null,null,"","","",""]
[0,687,null,null,"",null,null,null,null,null,0,null,null,null,null,0,null,null,0,null,"","","",0,"","","",null,"",0,"","",0,0,0,null,"","",null,null,null,null,null,null,null,null,null,"","","",""]
[0,688,null,null,"",null,null,null,null,null,0,null,null,null,null,0,null,null,0,null,"","","",0,"","","",null,"",0,"","",0,0,0,null,"","",null,null,null,null,null,null,null,null,null,"","","",""]
[0,689,null,null,"",null,null,null,null,null,0,null,null,null,null,0,null,null,0,null,"","","",0,"","","",null,"",0,"","",0,0,0,null,"","",null,null,null,null,null,null,null,null,null,"","","",""]
[0,690,null,null,"",null,null,null,null,null,0,null,null,null,null,0,null,null,0,null,"","","",0,"","","",null,"",0,"","",0,0,0,null,"","",null,null,null,null,null,null,null,null,null,"","","",""]
[0,691,null,null,"",null,null,null,null,null,0,null,null,null,null,0,null,null,0,null,"","","",0,"","","",null,"",0,"","",0,0,0,null,"","",null,null,null,null,null,null,null,null,null,"","","",""]
[0,692,null,null,"",null,null,null,null,null,0,null,null,null,null,0,null,null,0,null,"","","",0,"","","",null,"",0,"","",0,0,0,null,"","",null,null,null,null,null,null,null,null,null,"","","",""]
[0,693,null,null,"",null,null,null,null,null,0,null,null,null,null,0,null,null,0,null,"","","",0,"","","",null,"",0,"","",0,0,0,null,"","",null,null,null,null,null,null,null,null,null,"","","",""]
[0,694,null,null,"",null,null,null,null,null,0,null,null,null,null,0,null,null,0,null,"","","",0,"","","",null,"",0,"","",0,0,0,null,"","",null,null,null,null,null,null,null,null,null,"","","",""]
[0,695,null,null,"",null,null,null,null,null,0,null,null,null,null,0,null,null,0,null,"","","",0,"","","",null,"",0,"","",0,0,0,null,"","",null,null,null,null,null,null,null,null,null,"","","",""]
[0,696,null,null,"",null,null,null,null,null,0,null,null,null,null,0,null,null,0,null,"","","",0,"","","",null,"",0,"","",0,0,0,null,"","",null,null,null,null,null,null,null,null,null,"","","",""]
[0,697,null,null,"",null,null,null,null,null,0,null,null,null,null,0,null,null,0,null,"","","",0,"","","",null,"",0,"","",0,0,0,null,"","",null,null,null,null,null,null,null,null,null,"","","",""]
[0,698,null,null,"",null,null,null,null,null,0,null,null,null,null,0,null,null,0,null,"","","",0,"","","",null,"",0,"","",0,0,0,null,"","",null,null,null,null,null,null,null,null,null,"","","",""]
[0,699,null,null,"",null,null,null,null,null,0,null,null,null,null,0,null,null,0,null,"","","",0,"","","",null,"",0,"","",0,0,0,null,"","",null,null,null,null,null,null,null,null,null,"","","",""]
[0,700,null,null,"",null,null,null,null,null,0,null,null,null,null,0,null,null,0,null,"","","",0,"","","",null,"",0,"","",0,0,0,null,"","",null,null,null,null,null,null,null,null,null,"","","",""]
[0,701,null,null,"",null,null,null,null,null,0,null,null,null,null,0,null,null,0,null,"","","",0,"","","",null,"",0,"","",0,0,0,null,"","",null,null,null,null,null,null,null,null,null,"","","",""]
[0,702,null,null,"",null,null,null,null,null,0,null,null,null,null,0,null,null,0,null,"","","",0,"","","",null,"",0,"","",0,0,0,null,"","",null,null,null,null,null,null,null,null,null,"","","",""]
[0,703,null,null,{"$f":"IFERROR(VLOOKUP(C711,BuildingNameTable,2,FALSE),\"\")","v":""},null,null,null,null,null,0,null,null,null,null,0,null,null,0,null,"","","",0,"","","",null,"",0,"","",0,0,0,null,"","",null,null,null,null,null,null,null,null,null,"","","",""]
[0,704,null,null,"",null,null,null,null,null,0,null,null,null,null,0,null,null,0,null,"","","",0,"","","",null,"",{"$f":"IFERROR(IF($AB712=\"No\",P712,IF(AC712=\"\",0,1-VLOOKUP(AC712,Prop_Sens_Table,2,FALSE))),\"N/A\")","v":0},"","",0,{"$f":"S712-AG712","v":0},{"$f":"IFERROR(1-(AG712/S712),0)","v":0},null,{"$f":"IF(E712=\"\",\"\",(1-IF(Q712=\"\",P712,Q712))*VLOOKUP(E712,BuildingType_RunHours,2,FALSE))","v":""},{"$f":"IF(E712=\"\",\"\",(1-IF(AE712=\"\",AD712,AE712))*VLOOKUP(E712,BuildingType_RunHours,2,FALSE))","v":""},null,null,null,null,null,null,null,null,null,{"$f":"IF(ISERROR(VLOOKUP($I712,LightWattLimits,2,FALSE))=TRUE,\"\",VLOOKUP($I712,LightWattLimits,2,FALSE))","v":""},{"$f":"IF(ISERROR(VLOOKUP($I712,LightWattLimits,3,FALSE))=TRUE,\"\",VLOOKUP($I712,LightWattLimits,3,FALSE))","v":""},{"$f":"IF(ISERROR(VLOOKUP($V712,LightWattLimits,2,FALSE))=TRUE,\"\",VLOOKUP($V712,LightWattLimits,2,FALSE))","v":""},{"$f":"IF(ISERROR(VLOOKUP($V712,LightWattLimits,3,FALSE))=TRUE,\"\",VLOOKUP($V712,LightWattLimits,3,FALSE))","v":""}]
[0,705,null,null,"",null,null,null,null,null,{"$f":"IFERROR(IF(OR(H713=\"\",I713=\"\")=TRUE,0,VLOOKUP(I713,INDIRECT(SUBSTITUTE(SUBSTITUTE(H713,\" \",\"_\"),\"-\",\"_\")&\"W\"),2,FALSE)),\"N/A\")","v":0},null,null,null,null,0,null,null,0,null,"","","",0,"","","",null,{"$f":"IF($AB713=\"No\",IF(O713=\"\",\"\",O713),\"\")","v":""},0,{"$f":"IF($AB713=\"No\",IF(Q713=\"\",\"\",Q713),\"\")","v":""},{"$f":"IF($AB713=\"No\",IF(R713=\"\",\"\",R713),\"\")","v":""},{"$f":"IF($T713=\"\", 0,IF(T713=\"No\",S713,IF(Y713=\"\",X713*AA713,Y713*AA713)))","v":0},0,0,null,"","",null,null,null,null,null,null,null,null,null,"","","",""]
[{"$f":"IF(C714=\"\",0,1)","v":0},706,null,null,"",null,null,null,null,null,0,null,null,null,null,0,null,null,0,null,{"$f":"IF($T714=\"No\",IF(H714=\"\",\"\",H714),\"\")","v":""},{"$f":"IF($T714=\"No\",IF(I714=\"\",\"\",I714),\"\")","v":""},{"$f":"IF($T714=\"No\",IF(J714=\"\",\"\",J714),\"\")","v":""},{"$f":"IFERROR(IF(T714=\"No\",K714,IF(U714=\"\",0,IF(LEFT(U714,1)=\"*\",K714,IF(V714=\"\",0,VLOOKUP(V714,INDIRECT(SUBSTITUTE(SUBSTITUTE(U714,\" \",\"_\"),\"-\",\"_\")&\"W\"),2,FALSE))))),\"N/A\")","v":0},{"$f":"IF($T714=\"No\",IF(L714=\"\",\"\",L714),\"\")","v":""},{"$f":"IF($T714=\"No\",IF(M714=\"\",\"\",M714),\"\")","v":""},{"$f":"IF($T714=\"No\",IF(N714=\"\",\"\",N714),\"\")","v":""},null,"",0,"","",0,0,0,null,"","",null,null,null,null,null,null,null,null,null,"","","",""]
[0,{"$f":"B714+1","v":707},null,null,"",null,null,null,null,null,0,null,null,null,null,0,null,null,0,null,"","","",0,"","","",null,"",0,"","",0,0,0,null,"","",null,null,null,null,null,null,null,null,null,"","","",""]
[0,708,null,null,"",null,null,null,null,null,0,null,null,null,null,0,null,null,0,null,"","","",0,"","","",null,"",0,"","",0,0,0,null,"","",null,null,null,null,null,null,null,null,null,"","","",""]
[0,709,null,null,"",null,null,null,null,null,0,null,null,null,null,0,null,null,0,null,"","","",0,"","","",null,"",0,"","",0,0,0,null,"","",null,null,null,null,null,null,null,null,null,"","","",""]
[0,710,null,null,"",null,null,null,null,null,0,null,null,null,null,0,null,null,0,null,"","","",0,"","","",null,"",0,"","",0,0,0,null,"","",null,null,null,null,null,null,null,null,null,"","","",""]
[0,711,null,null,"",null,null,null,null,null,0,null,null,null,null,0,null,null,0,null,"","","",0,"","","",null,"",0,"","",0,0,0,null,"","",null,null,null,null,null,null,null,null,null,"","","",""]
[0,712,null,null,"",null,null,null,null,null,0,null,null,null,null,{"$f":"IFERROR(IF(O720=\"\",0,1-VLOOKUP(O720,Prop_Sens_Table,2,FALSE)),\"N/A\")","v":0},null,null,{"$f":"IF(L720=\"\",N(K720)*N720,L720*N720)","v":0},null,"","","",0,"","","",null,"",0,"","",0,0,0,null,"","",null,null,null,null,null,null,null,null,null,"","","",""]
[0,713,null,null,"",null,null,null,null,null,0,null,null,null,null,0,null,null,0,null,"","","",0,"","","",null,"",0,"","",0,0,0,null,"","",null,null,null,null,null,null,null,null,null,"","","",""]
[0,714,null,null,"",null,null,null,null,null,0,null,null,null,null,0,null,null,0,null,"","","",0,"","","",null,"",0,"","",0,0,0,null,"","",null,null,null,null,null,null,null,null,null,"","","",""]
[0,715,null,null,"",null,null,null,null,null,0,null,null,null,null,0,null,null,0,null,"","","",0,"","","",null,"",0,"","",0,0,0,null,"","",null,null,null,null,null,null,null,null,null,"","","",""]
[0,716,null,null,"",null,null,null,null,null,0,null,null,null,null,0,null,null,0,null,"","","",0,"","","",null,"",0,"","",0,0,0,null,"","",null,null,null,null,null,null,null,null,null,"","","",""]
[0,717,null,null,"",null,null,null,null,null,0,null,null,null,null,0,null,null,0,null,"","","",0,"","","",null,"",0,"","",0,0,0,null,"","",null,null,null,null,null,null,null,null,null,"","","",""]
[0,718,null,null,"",null,null,null,null,null,0,null,null,null,null,0,null,null,0,null,"","","",0,"","","",null,"",0,"","",0,0,0,null,"","",null,null,null,null,null,null,null,null,null,"","","",""]
[0,719,null,null,"",null,null,null,null,null,0,null,null,null,null,0,null,null,0,null,"","","",0,"","","",null,"",0,"","",0,0,0,null,"","",null,null,null,null,null,null,null,null,null,"","","",""]
[0,720,null,null,"",null,null,null,null,null,0,null,null,null,null,0,null,null,0,null,"","","",0,"","","",null,"",0,"","",0,0,0,null,"","",null,null,null,null,null,null,null,null,null,"","","",""]
[0,721,null,null,"",null,null,null,null,null,0,null,null,null,null,0,null,null,0,null,"","","",0,"","","",null,"",0,"","",0,0,0,null,"","",null,null,null,null,null,null,null,null,null,"","","",""]
[0,722,null,null,"",null,null,null,null,null,0,null,null,null,null,0,null,null,0,null,"","","",0,"","","",null,"",0,"","",0,0,0,null,"","",null,null,null,null,null,null,null,null,null,"","","",""]
[0,723,null,null,"",null,null,null,null,null,0,null,null,null,null,0,null,null,0,null,"","","",0,"","","",null,"",0,"","",0,0,0,null,"","",null,null,null,null,null,null,null,null,null,"","","",""]
[0,724,null,null,"",null,null,null,null,null,0,null,null,null,null,0,null,null,0,null,"","","",0,"","","",null,"",0,"","",0,0,0,null,"","",null,null,null,null,null,null,null,null,null,"","","",""]
[0,725,null,null,"",null,null,null,null,null,0,null,null,null,null,0,null,null,0,null,"","","",0,"","","",null,"",0,"","",0,0,0,null,"","",null,null,null,null,null,null,null,null,null,"","","",""]
[0,726,null,null,"",null,null,null,null,null,0,null,null,null,null,0,null,null,0,null,"","","",0,"","","",null,"",0,"","",0,0,0,null,"","",null,null,null,null,null,null,null,null,null,"","","",""]
[0,727,null,null,"",null,null,null,null,null,0,null,null,null,null,0,null,null,0,null,"","","",0,"","","",null,"",0,"","",0,0,0,null,"","",null,null,null,null,null,null,null,null,null,"","","",""]
[0,728,null,null,"",null,null,null,null,null,0,null,null,null,null,0,null,null,0,null,"","","",0,"","","",null,"",0,"","",0,0,0,null,"","",null,null,null,null,null,null,null,null,null,"","","",""]
[0,729,null,null,"",null,null,null,null,null,0,null,null,null,null,0,null,null,0,null,"","","",0,"","","",null,"",0,"","",0,0,0,null,"","",null,null,null,null,null,null,null,null,null,"","","",""]
[0,730,null,null,"",null,null,null,null,null,0,null,null,null,null,0,null,null,0,null,"","","",0,"","","",null,"",0,"","",0,0,0,null,"","",null,null,null,null,null,null,null,null,null,"","","",""]
[0,731,null,null,"",null,null,null,null,null,0,null,null,null,null,0,null,null,0,null,"","","",0,"","","",null,"",0,"","",0,0,0,null,"","",null,null,null,null,null,null,null,null,null,"","","",""]
[0,732,null,null,"",null,null,null,null,null,0,null,null,null,null,0,null,null,0,null,"","","",0,"","","",null,"",0,"","",0,0,0,null,"","",null,null,null,null,null,null,null,null,null,"","","",""]
[0,733,null,null,"",null,null,null,null,null,0,null,null,null,null,0,null,null,0,null,"","","",0,"","","",null,"",0,"","",0,0,0,null,"","",null,null,null,null,null,null,null,null,null,"","","",""]
[0,734,null,null,"",null,null,null,null,null,0,null,null,null,null,0,null,null,0,null,"","","",0,"","","",null,"",0,"","",0,0,0,null,"","",null,null,null,null,null,null,null,null,null,"","","",""]
[0,735,null,null,"",null,null,null,null,null,0,null,null,null,null,0,null,null,0,null,"","","",0,"","","",null,"",0,"","",0,0,0,null,"","",null,null,null,null,null,null,null,null,null,"","","",""]
[0,736,null,null,"",null,null,null,null,null,0,null,null,null,null,0,null,null,0,null,"","","",0,"","","",null,"",0,"","",0,0,0,null,"","",null,null,null,null,null,null,null,null,null,"","","",""]
[0,737,null,null,"",null,null,null,null,null,0,null,null,null,null,0,null,null,0,null,"","","",0,"","","",null,"",0,"","",0,0,0,null,"","",null,null,null,null,null,null,null,null,null,"","","",""]
[0,738,null,null,"",null,null,null,null,null,0,null,null,null,null,0,null,null,0,null,"","","",0,"","","",null,"",0,"","",0,0,0,null,"","",null,null,null,null,null,null,null,null,null,"","","",""]
[0,739,null,null,"",null,null,null,null,null,0,null,null,null,null,0,null,null,0,null,"","","",0,"","","",null,"",0,"","",0,0,0,null,"","",null,null,null,null,null,null,null,null,null,"","","",""]
[0,740,null,null,"",null,null,null,null,null,0,null,null,null,null,0,null,null,0,null,"","","",0,"","","",null,"",0,"","",0,0,0,null,"","",null,null,null,null,null,null,null,null,null,"","","",""]
[0,741,null,null,"",null,null,null,null,null,0,null,null,null,null,0,null,null,0,null,"","","",0,"","","",null,"",0,"","",0,0,0,null,"","",null,null,null,null,null,null,null,null,null,"","","",""]
[0,742,null,null,"",null,null,null,null,null,0,null,null,null,null,0,null,null,0,null,"","","",0,"","","",null,"",0,"","",0,0,0,null,"","",null,null,null,null,null,null,null,null,null,"","","",""]
[0,743,null,null,"",null,null,null,null,null,0,null,null,null,null,0,null,null,0,null,"","","",0,"","","",null,"",0,"","",0,0,0,null,"","",null,null,null,null,null,null,null,null,null,"","","",""]
[0,744,null,null,"",null,null,null,null,null,0,null,null,null,null,0,null,null,0,null,"","","",0,"","","",null,"",0,"","",0,0,0,null,"","",null,null,null,null,null,null,null,null,null,"","","",""]
[0,745,null,null,"",null,null,null,null,null,0,null,null,null,null,0,null,null,0,null,"","","",0,"","","",null,"",0,"","",0,0,0,null,"","",null,null,null,null,null,null,null,null,null,"","","",""]
[0,746,null,null,"",null,null,null,null,null,0,null,null,null,null,0,null,null,0,null,"","","",0,"","","",null,"",0,"","",0,0,0,null,"","",null,null,null,null,null,null,null,null,null,"","","",""]
[0,747,null,null,"",null,null,null,null,null,0,null,null,null,null,0,null,null,0,null,"","","",0,"","","",null,"",0,"","",0,0,0,null,"","",null,null,null,null,null,null,null,null,null,"","","",""]
[0,748,null,null,"",null,null,null,null,null,0,null,null,null,null,0,null,null,0,null,"","","",0,"","","",null,"",0,"","",0,0,0,null,"","",null,null,null,null,null,null,null,null,null,"","","",""]
[0,749,null,null,"",null,null,null,null,null,0,null,null,null,null,0,null,null,0,null,"","","",0,"","","",null,"",0,"","",0,0,0,null,"","",null,null,null,null,null,null,null,null,null,"","","",""]
[0,750,null,null,"",null,null,null,null,null,0,null,null,null,null,0,null,null,0,null,"","","",0,"","","",null,"",0,"","",0,0,0,null,"","",null,null,null,null,null,null,null,null,null,"","","",""]
[0,751,null,null,"",null,null,null,null,null,0,null,null,null,null,0,null,null,0,null,"","","",0,"","","",null,"",0,"","",0,0,0,null,"","",null,null,null,null,null,null,null,null,null,"","","",""]
[0,752,null,null,"",null,null,null,null,null,0,null,null,null,null,0,null,null,0,null,"","","",0,"","","",null,"",0,"","",0,0,0,null,"","",null,null,null,null,null,null,null,null,null,"","","",""]
[0,753,null,null,"",null,null,null,null,null,0,null,null,null,null,0,null,null,0,null,"","","",0,"","","",null,"",0,"","",0,0,0,null,"","",null,null,null,null,null,null,null,null,null,"","","",""]
[0,754,null,null,"",null,null,null,null,null,0,null,null,null,null,0,null,null,0,null,"","","",0,"","","",null,"",0,"","",0,0,0,null,"","",null,null,null,null,null,null,null,null,null,"","","",""]
[0,755,null,null,"",null,null,null,null,null,0,null,null,null,null,0,null,null,0,null,"","","",0,"","","",null,"",0,"","",0,0,0,null,"","",null,null,null,null,null,null,null,null,null,"","","",""]
[0,756,null,null,"",null,null,null,null,null,0,null,null,null,null,0,null,null,0,null,"","","",0,"","","",null,"",0,"","",0,0,0,null,"","",null,null,null,null,null,null,null,null,null,"","","",""]
[0,757,null,null,"",null,null,null,null,null,0,null,null,null,null,0,null,null,0,null,"","","",0,"","","",null,"",0,"","",0,0,0,null,"","",null,null,null,null,null,null,null,null,null,"","","",""]
[0,758,null,null,"",null,null,null,null,null,0,null,null,null,null,0,null,null,0,null,"","","",0,"","","",null,"",0,"","",0,0,0,null,"","",null,null,null,null,null,null,null,null,null,"","","",""]
[0,759,null,null,"",null,null,null,null,null,0,null,null,null,null,0,null,null,0,null,"","","",0,"","","",null,"",0,"","",0,0,0,null,"","",null,null,null,null,null,null,null,null,null,"","","",""]
[0,760,null,null,"",null,null,null,null,null,0,null,null,null,null,0,null,null,0,null,"","","",0,"","","",null,"",0,"","",0,0,0,null,"","",null,null,null,null,null,null,null,null,null,"","","",""]
[0,761,null,null,"",null,null,null,null,null,0,null,null,null,null,0,null,null,0,null,"","","",0,"","","",null,"",0,"","",0,0,0,null,"","",null,null,null,null,null,null,null,null,null,"","","",""]
[0,762,null,null,"",null,null,null,null,null,0,null,null,null,null,0,null,null,0,null,"","","",0,"","","",null,"",0,"","",0,0,0,null,"","",null,null,null,null,null,null,null,null,null,"","","",""]
[0,763,null,null,"",null,null,null,null,null,0,null,null,null,null,0,null,null,0,null,"","","",0,"","","",null,"",0,"","",0,0,0,null,"","",null,null,null,null,null,null,null,null,null,"","","",""]
[0,764,null,null,"",null,null,null,null,null,0,null,null,null,null,0,null,null,0,null,"","","",0,"","","",null,"",0,"","",0,0,0,null,"","",null,null,null,null,null,null,null,null,null,"","","",""]
[0,765,null,null,"",null,null,null,null,null,0,null,null,null,null,0,null,null,0,null,"","","",0,"","","",null,"",0,"","",0,0,0,null,"","",null,null,null,null,null,null,null,null,null,"","","",""]
[0,766,null,null,"",null,null,null,null,null,0,null,null,null,null,0,null,null,0,null,"","","",0,"","","",null,"",0,"","",0,0,0,null,"","",null,null,null,null,null,null,null,null,null,"","","",""]
[0,767,null,null,{"$f":"IFERROR(VLOOKUP(C775,BuildingNameTable,2,FALSE),\"\")","v":""},null,null,null,null,null,0,null,null,null,null,0,null,null,0,null,"","","",0,"","","",null,"",0,"","",0,0,0,null,"","",null,null,null,null,null,null,null,null,null,"","","",""]
[0,768,null,null,"",null,null,null,null,null,0,null,null,null,null,0,null,null,0,null,"","","",0,"","","",null,"",{"$f":"IFERROR(IF($AB776=\"No\",P776,IF(AC776=\"\",0,1-VLOOKUP(AC776,Prop_Sens_Table,2,FALSE))),\"N/A\")","v":0},"","",0,{"$f":"S776-AG776","v":0},{"$f":"IFERROR(1-(AG776/S776),0)","v":0},null,{"$f":"IF(E776=\"\",\"\",(1-IF(Q776=\"\",P776,Q776))*VLOOKUP(E776,BuildingType_RunHours,2,FALSE))","v":""},{"$f":"IF(E776=\"\",\"\",(1-IF(AE776=\"\",AD776,AE776))*VLOOKUP(E776,BuildingType_RunHours,2,FALSE))","v":""},null,null,null,null,null,null,null,null,null,{"$f":"IF(ISERROR(VLOOKUP($I776,LightWattLimits,2,FALSE))=TRUE,\"\",VLOOKUP($I776,LightWattLimits,2,FALSE))","v":""},{"$f":"IF(ISERROR(VLOOKUP($I776,LightWattLimits,3,FALSE))=TRUE,\"\",VLOOKUP($I776,LightWattLimits,3,FALSE))","v":""},{"$f":"IF(ISERROR(VLOOKUP($V776,LightWattLimits,2,FALSE))=TRUE,\"\",VLOOKUP($V776,LightWattLimits,2,FALSE))","v":""},{"$f":"IF(ISERROR(VLOOKUP($V776,LightWattLimits,3,FALSE))=TRUE,\"\",VLOOKUP($V776,LightWattLimits,3,FALSE))","v":""}]
[0,769,null,null,"",null,null,null,null,null,{"$f":"IFERROR(IF(OR(H777=\"\",I777=\"\")=TRUE,0,VLOOKUP(I777,INDIRECT(SUBSTITUTE(SUBSTITUTE(H777,\" \",\"_\"),\"-\",\"_\")&\"W\"),2,FALSE)),\"N/A\")","v":0},null,null,null,null,0,null,null,0,null,"","","",0,"","","",null,{"$f":"IF($AB777=\"No\",IF(O777=\"\",\"\",O777),\"\")","v":""},0,{"$f":"IF($AB777=\"No\",IF(Q777=\"\",\"\",Q777),\"\")","v":""},{"$f":"IF($AB777=\"No\",IF(R777=\"\",\"\",R777),\"\")","v":""},{"$f":"IF($T777=\"\", 0,IF(T777=\"No\",S777,IF(Y777=\"\",X777*AA777,Y777*AA777)))","v":0},0,0,null,"","",null,null,null,null,null,null,null,null,null,"","","",""]
[{"$f":"IF(C778=\"\",0,1)","v":0},770,null,null,"",null,null,null,null,null,0,null,null,null,null,0,null,null,0,null,{"$f":"IF($T778=\"No\",IF(H778=\"\",\"\",H778),\"\")","v":""},{"$f":"IF($T778=\"No\",IF(I778=\"\",\"\",I778),\"\")","v":""},{"$f":"IF($T778=\"No\",IF(J778=\"\",\"\",J778),\"\")","v":""},{"$f":"IFERROR(IF(T778=\"No\",K778,IF(U778=\"\",0,IF(LEFT(U778,1)=\"*\",K778,IF(V778=\"\",0,VLOOKUP(V778,INDIRECT(SUBSTITUTE(SUBSTITUTE(U778,\" \",\"_\"),\"-\",\"_\")&\"W\"),2,FALSE))))),\"N/A\")","v":0},{"$f":"IF($T778=\"No\",IF(L778=\"\",\"\",L778),\"\")","v":""},{"$f":"IF($T778=\"No\",IF(M778=\"\",\"\",M778),\"\")","v":""},{"$f":"IF($T778=\"No\",IF(N778=\"\",\"\",N778),\"\")","v":""},null,"",0,"","",0,0,0,null,"","",null,null,null,null,null,null,null,null,null,"","","",""]
[0,{"$f":"B778+1","v":771},null,null,"",null,null,null,null,null,0,null,null,null,null,0,null,null,0,null,"","","",0,"","","",null,"",0,"","",0,0,0,null,"","",null,null,null,null,null,null,null,null,null,"","","",""]
[0,772,null,null,"",null,null,null,null,null,0,null,null,null,null,0,null,null,0,null,"","","",0,"","","",null,"",0,"","",0,0,0,null,"","",null,null,null,null,null,null,null,null,null,"","","",""]
[0,773,null,null,"",null,null,null,null,null,0,null,null,null,null,0,null,null,0,null,"","","",0,"","","",null,"",0,"","",0,0,0,null,"","",null,null,null,null,null,null,null,null,null,"","","",""]
[0,774,null,null,"",null,null,null,null,null,0,null,null,null,null,0,null,null,0,null,"","","",0,"","","",null,"",0,"","",0,0,0,null,"","",null,null,null,null,null,null,null,null,null,"","","",""]
[0,775,null,null,"",null,null,null,null,null,0,null,null,null,null,0,null,null,0,null,"","","",0,"","","",null,"",0,"","",0,0,0,null,"","",null,null,null,null,null,null,null,null,null,"","","",""]
[0,776,null,null,"",null,null,null,null,null,0,null,null,null,null,{"$f":"IFERROR(IF(O784=\"\",0,1-VLOOKUP(O784,Prop_Sens_Table,2,FALSE)),\"N/A\")","v":0},null,null,{"$f":"IF(L784=\"\",N(K784)*N784,L784*N784)","v":0},null,"","","",0,"","","",null,"",0,"","",0,0,0,null,"","",null,null,null,null,null,null,null,null,null,"","","",""]
[0,777,null,null,"",null,null,null,null,null,0,null,null,null,null,0,null,null,0,null,"","","",0,"","","",null,"",0,"","",0,0,0,null,"","",null,null,null,null,null,null,null,null,null,"","","",""]
[0,778,null,null,"",null,null,null,null,null,0,null,null,null,null,0,null,null,0,null,"","","",0,"","","",null,"",0,"","",0,0,0,null,"","",null,null,null,null,null,null,null,null,null,"","","",""]
[0,779,null,null,"",null,null,null,null,null,0,null,null,null,null,0,null,null,0,null,"","","",0,"","","",null,"",0,"","",0,0,0,null,"","",null,null,null,null,null,null,null,null,null,"","","",""]
[0,780,null,null,"",null,null,null,null,null,0,null,null,null,null,0,null,null,0,null,"","","",0,"","","",null,"",0,"","",0,0,0,null,"","",null,null,null,null,null,null,null,null,null,"","","",""]
[0,781,null,null,"",null,null,null,null,null,0,null,null,null,null,0,null,null,0,null,"","","",0,"","","",null,"",0,"","",0,0,0,null,"","",null,null,null,null,null,null,null,null,null,"","","",""]
[0,782,null,null,"",null,null,null,null,null,0,null,null,null,null,0,null,null,0,null,"","","",0,"","","",null,"",0,"","",0,0,0,null,"","",null,null,null,null,null,null,null,null,null,"","","",""]
[0,783,null,null,"",null,null,null,null,null,0,null,null,null,null,0,null,null,0,null,"","","",0,"","","",null,"",0,"","",0,0,0,null,"","",null,null,null,null,null,null,null,null,null,"","","",""]
[0,784,null,null,"",null,null,null,null,null,0,null,null,null,null,0,null,null,0,null,"","","",0,"","","",null,"",0,"","",0,0,0,null,"","",null,null,null,null,null,null,null,null,null,"","","",""]
[0,785,null,null,"",null,null,null,null,null,0,null,null,null,null,0,null,null,0,null,"","","",0,"","","",null,"",0,"","",0,0,0,null,"","",null,null,null,null,null,null,null,null,null,"","","",""]
[0,786,null,null,"",null,null,null,null,null,0,null,null,null,null,0,null,null,0,null,"","","",0,"","","",null,"",0,"","",0,0,0,null,"","",null,null,null,null,null,null,null,null,null,"","","",""]
[0,787,null,null,"",null,null,null,null,null,0,null,null,null,null,0,null,null,0,null,"","","",0,"","","",null,"",0,"","",0,0,0,null,"","",null,null,null,null,null,null,null,null,null,"","","",""]
[0,788,null,null,"",null,null,null,null,null,0,null,null,null,null,0,null,null,0,null,"","","",0,"","","",null,"",0,"","",0,0,0,null,"","",null,null,null,null,null,null,null,null,null,"","","",""]
[0,789,null,null,"",null,null,null,null,null,0,null,null,null,null,0,null,null,0,null,"","","",0,"","","",null,"",0,"","",0,0,0,null,"","",null,null,null,null,null,null,null,null,null,"","","",""]
[0,790,null,null,"",null,null,null,null,null,0,null,null,null,null,0,null,null,0,null,"","","",0,"","","",null,"",0,"","",0,0,0,null,"","",null,null,null,null,null,null,null,null,null,"","","",""]
[0,791,null,null,"",null,null,null,null,null,0,null,null,null,null,0,null,null,0,null,"","","",0,"","","",null,"",0,"","",0,0,0,null,"","",null,null,null,null,null,null,null,null,null,"","","",""]
[0,792,null,null,"",null,null,null,null,null,0,null,null,null,null,0,null,null,0,null,"","","",0,"","","",null,"",0,"","",0,0,0,null,"","",null,null,null,null,null,null,null,null,null,"","","",""]
[0,793,null,null,"",null,null,null,null,null,0,null,null,null,null,0,null,null,0,null,"","","",0,"","","",null,"",0,"","",0,0,0,null,"","",null,null,null,null,null,null,null,null,null,"","","",""]
[0,794,null,null,"",null,null,null,null,null,0,null,null,null,null,0,null,null,0,null,"","","",0,"","","",null,"",0,"","",0,0,0,null,"","",null,null,null,null,null,null,null,null,null,"","","",""]
[0,795,null,null,"",null,null,null,null,null,0,null,null,null,null,0,null,null,0,null,"","","",0,"","","",null,"",0,"","",0,0,0,null,"","",null,null,null,null,null,null,null,null,null,"","","",""]
[0,796,null,null,"",null,null,null,null,null,0,null,null,null,null,0,null,null,0,null,"","","",0,"","","",null,"",0,"","",0,0,0,null,"","",null,null,null,null,null,null,null,null,null,"","","",""]
[0,797,null,null,"",null,null,null,null,null,0,null,null,null,null,0,null,null,0,null,"","","",0,"","","",null,"",0,"","",0,0,0,null,"","",null,null,null,null,null,null,null,null,null,"","","",""]
[0,798,null,null,"",null,null,null,null,null,0,null,null,null,null,0,null,null,0,null,"","","",0,"","","",null,"",0,"","",0,0,0,null,"","",null,null,null,null,null,null,null,null,null,"","","",""]
[0,799,null,null,"",null,null,null,null,null,0,null,null,null,null,0,null,null,0,null,"","","",0,"","","",null,"",0,"","",0,0,0,null,"","",null,null,null,null,null,null,null,null,null,"","","",""]
[0,800,null,null,"",null,null,null,null,null,0,null,null,null,null,0,null,null,0,null,"","","",0,"","","",null,"",0,"","",0,0,0,null,"","",null,null,null,null,null,null,null,null,null,"","","",""]
[0,801,null,null,"",null,null,null,null,null,0,null,null,null,null,0,null,null,0,null,"","","",0,"","","",null,"",0,"","",0,0,0,null,"","",null,null,null,null,null,null,null,null,null,"","","",""]
[0,802,null,null,"",null,null,null,null,null,0,null,null,null,null,0,null,null,0,null,"","","",0,"","","",null,"",0,"","",0,0,0,null,"","",null,null,null,null,null,null,null,null,null,"","","",""]
[0,803,null,null,"",null,null,null,null,null,0,null,null,null,null,0,null,null,0,null,"","","",0,"","","",null,"",0,"","",0,0,0,null,"","",null,null,null,null,null,null,null,null,null,"","","",""]
[0,804,null,null,"",null,null,null,null,null,0,null,null,null,null,0,null,null,0,null,"","","",0,"","","",null,"",0,"","",0,0,0,null,"","",null,null,null,null,null,null,null,null,null,"","","",""]
[0,805,null,null,"",null,null,null,null,null,0,null,null,null,null,0,null,null,0,null,"","","",0,"","","",null,"",0,"","",0,0,0,null,"","",null,null,null,null,null,null,null,null,null,"","","",""]
[0,806,null,null,"",null,null,null,null,null,0,null,null,null,null,0,null,null,0,null,"","","",0,"","","",null,"",0,"","",0,0,0,null,"","",null,null,null,null,null,null,null,null,null,"","","",""]
[0,807,null,null,"",null,null,null,null,null,0,null,null,null,null,0,null,null,0,null,"","","",0,"","","",null,"",0,"","",0,0,0,null,"","",null,null,null,null,null,null,null,null,null,"","","",""]
[0,808,null,null,"",null,null,null,null,null,0,null,null,null,null,0,null,null,0,null,"","","",0,"","","",null,"",0,"","",0,0,0,null,"","",null,null,null,null,null,null,null,null,null,"","","",""]
[0,809,null,null,"",null,null,null,null,null,0,null,null,null,null,0,null,null,0,null,"","","",0,"","","",null,"",0,"","",0,0,0,null,"","",null,null,null,null,null,null,null,null,null,"","","",""]
[0,810,null,null,"",null,null,null,null,null,0,null,null,null,null,0,null,null,0,null,"","","",0,"","","",null,"",0,"","",0,0,0,null,"","",null,null,null,null,null,null,null,null,null,"","","",""]
[0,811,null,null,"",null,null,null,null,null,0,null,null,null,null,0,null,null,0,null,"","","",0,"","","",null,"",0,"","",0,0,0,null,"","",null,null,null,null,null,null,null,null,null,"","","",""]
[0,812,null,null,"",null,null,null,null,null,0,null,null,null,null,0,null,null,0,null,"","","",0,"","","",null,"",0,"","",0,0,0,null,"","",null,null,null,null,null,null,null,null,null,"","","",""]
[0,813,null,null,"",null,null,null,null,null,0,null,null,null,null,0,null,null,0,null,"","","",0,"","","",null,"",0,"","",0,0,0,null,"","",null,null,null,null,null,null,null,null,null,"","","",""]
[0,814,null,null,"",null,null,null,null,null,0,null,null,null,null,0,null,null,0,null,"","","",0,"","","",null,"",0,"","",0,0,0,null,"","",null,null,null,null,null,null,null,null,null,"","","",""]
[0,815,null,null,"",null,null,null,null,null,0,null,null,null,null,0,null,null,0,null,"","","",0,"","","",null,"",0,"","",0,0,0,null,"","",null,null,null,null,null,null,null,null,null,"","","",""]
[0,816,null,null,"",null,null,null,null,null,0,null,null,null,null,0,null,null,0,null,"","","",0,"","","",null,"",0,"","",0,0,0,null,"","",null,null,null,null,null,null,null,null,null,"","","",""]
[0,817,null,null,"",null,null,null,null,null,0,null,null,null,null,0,null,null,0,null,"","","",0,"","","",null,"",0,"","",0,0,0,null,"","",null,null,null,null,null,null,null,null,null,"","","",""]
[0,818,null,null,"",null,null,null,null,null,0,null,null,null,null,0,null,null,0,null,"","","",0,"","","",null,"",0,"","",0,0,0,null,"","",null,null,null,null,null,null,null,null,null,"","","",""]
[0,819,null,null,"",null,null,null,null,null,0,null,null,null,null,0,null,null,0,null,"","","",0,"","","",null,"",0,"","",0,0,0,null,"","",null,null,null,null,null,null,null,null,null,"","","",""]
[0,820,null,null,"",null,null,null,null,null,0,null,null,null,null,0,null,null,0,null,"","","",0,"","","",null,"",0,"","",0,0,0,null,"","",null,null,null,null,null,null,null,null,null,"","","",""]
[0,821,null,null,"",null,null,null,null,null,0,null,null,null,null,0,null,null,0,null,"","","",0,"","","",null,"",0,"","",0,0,0,null,"","",null,null,null,null,null,null,null,null,null,"","","",""]
[0,822,null,null,"",null,null,null,null,null,0,null,null,null,null,0,null,null,0,null,"","","",0,"","","",null,"",0,"","",0,0,0,null,"","",null,null,null,null,null,null,null,null,null,"","","",""]
[0,823,null,null,"",null,null,null,null,null,0,null,null,null,null,0,null,null,0,null,"","","",0,"","","",null,"",0,"","",0,0,0,null,"","",null,null,null,null,null,null,null,null,null,"","","",""]
[0,824,null,null,"",null,null,null,null,null,0,null,null,null,null,0,null,null,0,null,"","","",0,"","","",null,"",0,"","",0,0,0,null,"","",null,null,null,null,null,null,null,null,null,"","","",""]
[0,825,null,null,"",null,null,null,null,null,0,null,null,null,null,0,null,null,0,null,"","","",0,"","","",null,"",0,"","",0,0,0,null,"","",null,null,null,null,null,null,null,null,null,"","","",""]
[0,826,null,null,"",null,null,null,null,null,0,null,null,null,null,0,null,null,0,null,"","","",0,"","","",null,"",0,"","",0,0,0,null,"","",null,null,null,null,null,null,null,null,null,"","","",""]
[0,827,null,null,"",null,null,null,null,null,0,null,null,null,null,0,null,null,0,null,"","","",0,"","","",null,"",0,"","",0,0,0,null,"","",null,null,null,null,null,null,null,null,null,"","","",""]
[0,828,null,null,"",null,null,null,null,null,0,null,null,null,null,0,null,null,0,null,"","","",0,"","","",null,"",0,"","",0,0,0,null,"","",null,null,null,null,null,null,null,null,null,"","","",""]
[0,829,null,null,"",null,null,null,null,null,0,null,null,null,null,0,null,null,0,null,"","","",0,"","","",null,"",0,"","",0,0,0,null,"","",null,null,null,null,null,null,null,null,null,"","","",""]
[0,830,null,null,"",null,null,null,null,null,0,null,null,null,null,0,null,null,0,null,"","","",0,"","","",null,"",0,"","",0,0,0,null,"","",null,null,null,null,null,null,null,null,null,"","","",""]
[0,831,null,null,{"$f":"IFERROR(VLOOKUP(C839,BuildingNameTable,2,FALSE),\"\")","v":""},null,null,null,null,null,0,null,null,null,null,0,null,null,0,null,"","","",0,"","","",null,"",0,"","",0,0,0,null,"","",null,null,null,null,null,null,null,null,null,"","","",""]
[0,832,null,null,"",null,null,null,null,null,0,null,null,null,null,0,null,null,0,null,"","","",0,"","","",null,"",{"$f":"IFERROR(IF($AB840=\"No\",P840,IF(AC840=\"\",0,1-VLOOKUP(AC840,Prop_Sens_Table,2,FALSE))),\"N/A\")","v":0},"","",0,{"$f":"S840-AG840","v":0},{"$f":"IFERROR(1-(AG840/S840),0)","v":0},null,{"$f":"IF(E840=\"\",\"\",(1-IF(Q840=\"\",P840,Q840))*VLOOKUP(E840,BuildingType_RunHours,2,FALSE))","v":""},{"$f":"IF(E840=\"\",\"\",(1-IF(AE840=\"\",AD840,AE840))*VLOOKUP(E840,BuildingType_RunHours,2,FALSE))","v":""},null,null,null,null,null,null,null,null,null,{"$f":"IF(ISERROR(VLOOKUP($I840,LightWattLimits,2,FALSE))=TRUE,\"\",VLOOKUP($I840,LightWattLimits,2,FALSE))","v":""},{"$f":"IF(ISERROR(VLOOKUP($I840,LightWattLimits,3,FALSE))=TRUE,\"\",VLOOKUP($I840,LightWattLimits,3,FALSE))","v":""},{"$f":"IF(ISERROR(VLOOKUP($V840,LightWattLimits,2,FALSE))=TRUE,\"\",VLOOKUP($V840,LightWattLimits,2,FALSE))","v":""},{"$f":"IF(ISERROR(VLOOKUP($V840,LightWattLimits,3,FALSE))=TRUE,\"\",VLOOKUP($V840,LightWattLimits,3,FALSE))","v":""}]
[0,833,null,null,"",null,null,null,null,null,{"$f":"IFERROR(IF(OR(H841=\"\",I841=\"\")=TRUE,0,VLOOKUP(I841,INDIRECT(SUBSTITUTE(SUBSTITUTE(H841,\" \",\"_\"),\"-\",\"_\")&\"W\"),2,FALSE)),\"N/A\")","v":0},null,null,null,null,0,null,null,0,null,"","","",0,"","","",null,{"$f":"IF($AB841=\"No\",IF(O841=\"\",\"\",O841),\"\")","v":""},0,{"$f":"IF($AB841=\"No\",IF(Q841=\"\",\"\",Q841),\"\")","v":""},{"$f":"IF($AB841=\"No\",IF(R841=\"\",\"\",R841),\"\")","v":""},{"$f":"IF($T841=\"\", 0,IF(T841=\"No\",S841,IF(Y841=\"\",X841*AA841,Y841*AA841)))","v":0},0,0,null,"","",null,null,null,null,null,null,null,null,null,"","","",""]
[{"$f":"IF(C842=\"\",0,1)","v":0},834,null,null,"",null,null,null,null,null,0,null,null,null,null,0,null,null,0,null,{"$f":"IF($T842=\"No\",IF(H842=\"\",\"\",H842),\"\")","v":""},{"$f":"IF($T842=\"No\",IF(I842=\"\",\"\",I842),\"\")","v":""},{"$f":"IF($T842=\"No\",IF(J842=\"\",\"\",J842),\"\")","v":""},{"$f":"IFERROR(IF(T842=\"No\",K842,IF(U842=\"\",0,IF(LEFT(U842,1)=\"*\",K842,IF(V842=\"\",0,VLOOKUP(V842,INDIRECT(SUBSTITUTE(SUBSTITUTE(U842,\" \",\"_\"),\"-\",\"_\")&\"W\"),2,FALSE))))),\"N/A\")","v":0},{"$f":"IF($T842=\"No\",IF(L842=\"\",\"\",L842),\"\")","v":""},{"$f":"IF($T842=\"No\",IF(M842=\"\",\"\",M842),\"\")","v":""},{"$f":"IF($T842=\"No\",IF(N842=\"\",\"\",N842),\"\")","v":""},null,"",0,"","",0,0,0,null,"","",null,null,null,null,null,null,null,null,null,"","","",""]
[0,{"$f":"B842+1","v":835},null,null,"",null,null,null,null,null,0,null,null,null,null,0,null,null,0,null,"","","",0,"","","",null,"",0,"","",0,0,0,null,"","",null,null,null,null,null,null,null,null,null,"","","",""]
[0,836,null,null,"",null,null,null,null,null,0,null,null,null,null,0,null,null,0,null,"","","",0,"","","",null,"",0,"","",0,0,0,null,"","",null,null,null,null,null,null,null,null,null,"","","",""]
[0,837,null,null,"",null,null,null,null,null,0,null,null,null,null,0,null,null,0,null,"","","",0,"","","",null,"",0,"","",0,0,0,null,"","",null,null,null,null,null,null,null,null,null,"","","",""]
[0,838,null,null,"",null,null,null,null,null,0,null,null,null,null,0,null,null,0,null,"","","",0,"","","",null,"",0,"","",0,0,0,null,"","",null,null,null,null,null,null,null,null,null,"","","",""]
[0,839,null,null,"",null,null,null,null,null,0,null,null,null,null,0,null,null,0,null,"","","",0,"","","",null,"",0,"","",0,0,0,null,"","",null,null,null,null,null,null,null,null,null,"","","",""]
[0,840,null,null,"",null,null,null,null,null,0,null,null,null,null,{"$f":"IFERROR(IF(O848=\"\",0,1-VLOOKUP(O848,Prop_Sens_Table,2,FALSE)),\"N/A\")","v":0},null,null,{"$f":"IF(L848=\"\",N(K848)*N848,L848*N848)","v":0},null,"","","",0,"","","",null,"",0,"","",0,0,0,null,"","",null,null,null,null,null,null,null,null,null,"","","",""]
[0,841,null,null,"",null,null,null,null,null,0,null,null,null,null,0,null,null,0,null,"","","",0,"","","",null,"",0,"","",0,0,0,null,"","",null,null,null,null,null,null,null,null,null,"","","",""]
[0,842,null,null,"",null,null,null,null,null,0,null,null,null,null,0,null,null,0,null,"","","",0,"","","",null,"",0,"","",0,0,0,null,"","",null,null,null,null,null,null,null,null,null,"","","",""]
[0,843,null,null,"",null,null,null,null,null,0,null,null,null,null,0,null,null,0,null,"","","",0,"","","",null,"",0,"","",0,0,0,null,"","",null,null,null,null,null,null,null,null,null,"","","",""]
[0,844,null,null,"",null,null,null,null,null,0,null,null,null,null,0,null,null,0,null,"","","",0,"","","",null,"",0,"","",0,0,0,null,"","",null,null,null,null,null,null,null,null,null,"","","",""]
[0,845,null,null,"",null,null,null,null,null,0,null,null,null,null,0,null,null,0,null,"","","",0,"","","",null,"",0,"","",0,0,0,null,"","",null,null,null,null,null,null,null,null,null,"","","",""]
[0,846,null,null,"",null,null,null,null,null,0,null,null,null,null,0,null,null,0,null,"","","",0,"","","",null,"",0,"","",0,0,0,null,"","",null,null,null,null,null,null,null,null,null,"","","",""]
[0,847,null,null,"",null,null,null,null,null,0,null,null,null,null,0,null,null,0,null,"","","",0,"","","",null,"",0,"","",0,0,0,null,"","",null,null,null,null,null,null,null,null,null,"","","",""]
[0,848,null,null,"",null,null,null,null,null,0,null,null,null,null,0,null,null,0,null,"","","",0,"","","",null,"",0,"","",0,0,0,null,"","",null,null,null,null,null,null,null,null,null,"","","",""]
[0,849,null,null,"",null,null,null,null,null,0,null,null,null,null,0,null,null,0,null,"","","",0,"","","",null,"",0,"","",0,0,0,null,"","",null,null,null,null,null,null,null,null,null,"","","",""]
[0,850,null,null,"",null,null,null,null,null,0,null,null,null,null,0,null,null,0,null,"","","",0,"","","",null,"",0,"","",0,0,0,null,"","",null,null,null,null,null,null,null,null,null,"","","",""]
[0,851,null,null,"",null,null,null,null,null,0,null,null,null,null,0,null,null,0,null,"","","",0,"","","",null,"",0,"","",0,0,0,null,"","",null,null,null,null,null,null,null,null,null,"","","",""]
[0,852,null,null,"",null,null,null,null,null,0,null,null,null,null,0,null,null,0,null,"","","",0,"","","",null,"",0,"","",0,0,0,null,"","",null,null,null,null,null,null,null,null,null,"","","",""]
[0,853,null,null,"",null,null,null,null,null,0,null,null,null,null,0,null,null,0,null,"","","",0,"","","",null,"",0,"","",0,0,0,null,"","",null,null,null,null,null,null,null,null,null,"","","",""]
[0,854,null,null,"",null,null,null,null,null,0,null,null,null,null,0,null,null,0,null,"","","",0,"","","",null,"",0,"","",0,0,0,null,"","",null,null,null,null,null,null,null,null,null,"","","",""]
[0,855,null,null,"",null,null,null,null,null,0,null,null,null,null,0,null,null,0,null,"","","",0,"","","",null,"",0,"","",0,0,0,null,"","",null,null,null,null,null,null,null,null,null,"","","",""]
[0,856,null,null,"",null,null,null,null,null,0,null,null,null,null,0,null,null,0,null,"","","",0,"","","",null,"",0,"","",0,0,0,null,"","",null,null,null,null,null,null,null,null,null,"","","",""]
[0,857,null,null,"",null,null,null,null,null,0,null,null,null,null,0,null,null,0,null,"","","",0,"","","",null,"",0,"","",0,0,0,null,"","",null,null,null,null,null,null,null,null,null,"","","",""]
[0,858,null,null,"",null,null,null,null,null,0,null,null,null,null,0,null,null,0,null,"","","",0,"","","",null,"",0,"","",0,0,0,null,"","",null,null,null,null,null,null,null,null,null,"","","",""]
[0,859,null,null,"",null,null,null,null,null,0,null,null,null,null,0,null,null,0,null,"","","",0,"","","",null,"",0,"","",0,0,0,null,"","",null,null,null,null,null,null,null,null,null,"","","",""]
[0,860,null,null,"",null,null,null,null,null,0,null,null,null,null,0,null,null,0,null,"","","",0,"","","",null,"",0,"","",0,0,0,null,"","",null,null,null,null,null,null,null,null,null,"","","",""]
[0,861,null,null,"",null,null,null,null,null,0,null,null,null,null,0,null,null,0,null,"","","",0,"","","",null,"",0,"","",0,0,0,null,"","",null,null,null,null,null,null,null,null,null,"","","",""]
[0,862,null,null,"",null,null,null,null,null,0,null,null,null,null,0,null,null,0,null,"","","",0,"","","",null,"",0,"","",0,0,0,null,"","",null,null,null,null,null,null,null,null,null,"","","",""]
[0,863,null,null,"",null,null,null,null,null,0,null,null,null,null,0,null,null,0,null,"","","",0,"","","",null,"",0,"","",0,0,0,null,"","",null,null,null,null,null,null,null,null,null,"","","",""]
[0,864,null,null,"",null,null,null,null,null,0,null,null,null,null,0,null,null,0,null,"","","",0,"","","",null,"",0,"","",0,0,0,null,"","",null,null,null,null,null,null,null,null,null,"","","",""]
[0,865,null,null,"",null,null,null,null,null,0,null,null,null,null,0,null,null,0,null,"","","",0,"","","",null,"",0,"","",0,0,0,null,"","",null,null,null,null,null,null,null,null,null,"","","",""]
[0,866,null,null,"",null,null,null,null,null,0,null,null,null,null,0,null,null,0,null,"","","",0,"","","",null,"",0,"","",0,0,0,null,"","",null,null,null,null,null,null,null,null,null,"","","",""]
[0,867,null,null,"",null,null,null,null,null,0,null,null,null,null,0,null,null,0,null,"","","",0,"","","",null,"",0,"","",0,0,0,null,"","",null,null,null,null,null,null,null,null,null,"","","",""]
[0,868,null,null,"",null,null,null,null,null,0,null,null,null,null,0,null,null,0,null,"","","",0,"","","",null,"",0,"","",0,0,0,null,"","",null,null,null,null,null,null,null,null,null,"","","",""]
[0,869,null,null,"",null,null,null,null,null,0,null,null,null,null,0,null,null,0,null,"","","",0,"","","",null,"",0,"","",0,0,0,null,"","",null,null,null,null,null,null,null,null,null,"","","",""]
[0,870,null,null,"",null,null,null,null,null,0,null,null,null,null,0,null,null,0,null,"","","",0,"","","",null,"",0,"","",0,0,0,null,"","",null,null,null,null,null,null,null,null,null,"","","",""]
[0,871,null,null,"",null,null,null,null,null,0,null,null,null,null,0,null,null,0,null,"","","",0,"","","",null,"",0,"","",0,0,0,null,"","",null,null,null,null,null,null,null,null,null,"","","",""]
[0,872,null,null,"",null,null,null,null,null,0,null,null,null,null,0,null,null,0,null,"","","",0,"","","",null,"",0,"","",0,0,0,null,"","",null,null,null,null,null,null,null,null,null,"","","",""]
[0,873,null,null,"",null,null,null,null,null,0,null,null,null,null,0,null,null,0,null,"","","",0,"","","",null,"",0,"","",0,0,0,null,"","",null,null,null,null,null,null,null,null,null,"","","",""]
[0,874,null,null,"",null,null,null,null,null,0,null,null,null,null,0,null,null,0,null,"","","",0,"","","",null,"",0,"","",0,0,0,null,"","",null,null,null,null,null,null,null,null,null,"","","",""]
[0,875,null,null,"",null,null,null,null,null,0,null,null,null,null,0,null,null,0,null,"","","",0,"","","",null,"",0,"","",0,0,0,null,"","",null,null,null,null,null,null,null,null,null,"","","",""]
[0,876,null,null,"",null,null,null,null,null,0,null,null,null,null,0,null,null,0,null,"","","",0,"","","",null,"",0,"","",0,0,0,null,"","",null,null,null,null,null,null,null,null,null,"","","",""]
[0,877,null,null,"",null,null,null,null,null,0,null,null,null,null,0,null,null,0,null,"","","",0,"","","",null,"",0,"","",0,0,0,null,"","",null,null,null,null,null,null,null,null,null,"","","",""]
[0,878,null,null,"",null,null,null,null,null,0,null,null,null,null,0,null,null,0,null,"","","",0,"","","",null,"",0,"","",0,0,0,null,"","",null,null,null,null,null,null,null,null,null,"","","",""]
[0,879,null,null,"",null,null,null,null,null,0,null,null,null,null,0,null,null,0,null,"","","",0,"","","",null,"",0,"","",0,0,0,null,"","",null,null,null,null,null,null,null,null,null,"","","",""]
[0,880,null,null,"",null,null,null,null,null,0,null,null,null,null,0,null,null,0,null,"","","",0,"","","",null,"",0,"","",0,0,0,null,"","",null,null,null,null,null,null,null,null,null,"","","",""]
[0,881,null,null,"",null,null,null,null,null,0,null,null,null,null,0,null,null,0,null,"","","",0,"","","",null,"",0,"","",0,0,0,null,"","",null,null,null,null,null,null,null,null,null,"","","",""]
[0,882,null,null,"",null,null,null,null,null,0,null,null,null,null,0,null,null,0,null,"","","",0,"","","",null,"",0,"","",0,0,0,null,"","",null,null,null,null,null,null,null,null,null,"","","",""]
[0,883,null,null,"",null,null,null,null,null,0,null,null,null,null,0,null,null,0,null,"","","",0,"","","",null,"",0,"","",0,0,0,null,"","",null,null,null,null,null,null,null,null,null,"","","",""]
[0,884,null,null,"",null,null,null,null,null,0,null,null,null,null,0,null,null,0,null,"","","",0,"","","",null,"",0,"","",0,0,0,null,"","",null,null,null,null,null,null,null,null,null,"","","",""]
[0,885,null,null,"",null,null,null,null,null,0,null,null,null,null,0,null,null,0,null,"","","",0,"","","",null,"",0,"","",0,0,0,null,"","",null,null,null,null,null,null,null,null,null,"","","",""]
[0,886,null,null,"",null,null,null,null,null,0,null,null,null,null,0,null,null,0,null,"","","",0,"","","",null,"",0,"","",0,0,0,null,"","",null,null,null,null,null,null,null,null,null,"","","",""]
[0,887,null,null,"",null,null,null,null,null,0,null,null,null,null,0,null,null,0,null,"","","",0,"","","",null,"",0,"","",0,0,0,null,"","",null,null,null,null,null,null,null,null,null,"","","",""]
[0,888,null,null,"",null,null,null,null,null,0,null,null,null,null,0,null,null,0,null,"","","",0,"","","",null,"",0,"","",0,0,0,null,"","",null,null,null,null,null,null,null,null,null,"","","",""]
[0,889,null,null,"",null,null,null,null,null,0,null,null,null,null,0,null,null,0,null,"","","",0,"","","",null,"",0,"","",0,0,0,null,"","",null,null,null,null,null,null,null,null,null,"","","",""]
[0,890,null,null,"",null,null,null,null,null,0,null,null,null,null,0,null,null,0,null,"","","",0,"","","",null,"",0,"","",0,0,0,null,"","",null,null,null,null,null,null,null,null,null,"","","",""]
[0,891,null,null,"",null,null,null,null,null,0,null,null,null,null,0,null,null,0,null,"","","",0,"","","",null,"",0,"","",0,0,0,null,"","",null,null,null,null,null,null,null,null,null,"","","",""]
[0,892,null,null,"",null,null,null,null,null,0,null,null,null,null,0,null,null,0,null,"","","",0,"","","",null,"",0,"","",0,0,0,null,"","",null,null,null,null,null,null,null,null,null,"","","",""]
[0,893,null,null,"",null,null,null,null,null,0,null,null,null,null,0,null,null,0,null,"","","",0,"","","",null,"",0,"","",0,0,0,null,"","",null,null,null,null,null,null,null,null,null,"","","",""]
[0,894,null,null,"",null,null,null,null,null,0,null,null,null,null,0,null,null,0,null,"","","",0,"","","",null,"",0,"","",0,0,0,null,"","",null,null,null,null,null,null,null,null,null,"","","",""]
[0,895,null,null,{"$f":"IFERROR(VLOOKUP(C903,BuildingNameTable,2,FALSE),\"\")","v":""},null,null,null,null,null,0,null,null,null,null,0,null,null,0,null,"","","",0,"","","",null,"",0,"","",0,0,0,null,"","",null,null,null,null,null,null,null,null,null,"","","",""]
[0,896,null,null,"",null,null,null,null,null,0,null,null,null,null,0,null,null,0,null,"","","",0,"","","",null,"",{"$f":"IFERROR(IF($AB904=\"No\",P904,IF(AC904=\"\",0,1-VLOOKUP(AC904,Prop_Sens_Table,2,FALSE))),\"N/A\")","v":0},"","",0,{"$f":"S904-AG904","v":0},{"$f":"IFERROR(1-(AG904/S904),0)","v":0},null,{"$f":"IF(E904=\"\",\"\",(1-IF(Q904=\"\",P904,Q904))*VLOOKUP(E904,BuildingType_RunHours,2,FALSE))","v":""},{"$f":"IF(E904=\"\",\"\",(1-IF(AE904=\"\",AD904,AE904))*VLOOKUP(E904,BuildingType_RunHours,2,FALSE))","v":""},null,null,null,null,null,null,null,null,null,{"$f":"IF(ISERROR(VLOOKUP($I904,LightWattLimits,2,FALSE))=TRUE,\"\",VLOOKUP($I904,LightWattLimits,2,FALSE))","v":""},{"$f":"IF(ISERROR(VLOOKUP($I904,LightWattLimits,3,FALSE))=TRUE,\"\",VLOOKUP($I904,LightWattLimits,3,FALSE))","v":""},{"$f":"IF(ISERROR(VLOOKUP($V904,LightWattLimits,2,FALSE))=TRUE,\"\",VLOOKUP($V904,LightWattLimits,2,FALSE))","v":""},{"$f":"IF(ISERROR(VLOOKUP($V904,LightWattLimits,3,FALSE))=TRUE,\"\",VLOOKUP($V904,LightWattLimits,3,FALSE))","v":""}]
[0,897,null,null,"",null,null,null,null,null,{"$f":"IFERROR(IF(OR(H905=\"\",I905=\"\")=TRUE,0,VLOOKUP(I905,INDIRECT(SUBSTITUTE(SUBSTITUTE(H905,\" \",\"_\"),\"-\",\"_\")&\"W\"),2,FALSE)),\"N/A\")","v":0},null,null,null,null,0,null,null,0,null,"","","",0,"","","",null,{"$f":"IF($AB905=\"No\",IF(O905=\"\",\"\",O905),\"\")","v":""},0,{"$f":"IF($AB905=\"No\",IF(Q905=\"\",\"\",Q905),\"\")","v":""},{"$f":"IF($AB905=\"No\",IF(R905=\"\",\"\",R905),\"\")","v":""},{"$f":"IF($T905=\"\", 0,IF(T905=\"No\",S905,IF(Y905=\"\",X905*AA905,Y905*AA905)))","v":0},0,0,null,"","",null,null,null,null,null,null,null,null,null,"","","",""]
[{"$f":"IF(C906=\"\",0,1)","v":0},898,null,null,"",null,null,null,null,null,0,null,null,null,null,0,null,null,0,null,{"$f":"IF($T906=\"No\",IF(H906=\"\",\"\",H906),\"\")","v":""},{"$f":"IF($T906=\"No\",IF(I906=\"\",\"\",I906),\"\")","v":""},{"$f":"IF($T906=\"No\",IF(J906=\"\",\"\",J906),\"\")","v":""},{"$f":"IFERROR(IF(T906=\"No\",K906,IF(U906=\"\",0,IF(LEFT(U906,1)=\"*\",K906,IF(V906=\"\",0,VLOOKUP(V906,INDIRECT(SUBSTITUTE(SUBSTITUTE(U906,\" \",\"_\"),\"-\",\"_\")&\"W\"),2,FALSE))))),\"N/A\")","v":0},{"$f":"IF($T906=\"No\",IF(L906=\"\",\"\",L906),\"\")","v":""},{"$f":"IF($T906=\"No\",IF(M906=\"\",\"\",M906),\"\")","v":""},{"$f":"IF($T906=\"No\",IF(N906=\"\",\"\",N906),\"\")","v":""},null,"",0,"","",0,0,0,null,"","",null,null,null,null,null,null,null,null,null,"","","",""]
[0,{"$f":"B906+1","v":899},null,null,"",null,null,null,null,null,0,null,null,null,null,0,null,null,0,null,"","","",0,"","","",null,"",0,"","",0,0,0,null,"","",null,null,null,null,null,null,null,null,null,"","","",""]
[0,900,null,null,"",null,null,null,null,null,0,null,null,null,null,0,null,null,0,null,"","","",0,"","","",null,"",0,"","",0,0,0,null,"","",null,null,null,null,null,null,null,null,null,"","","",""]
[0,901,null,null,"",null,null,null,null,null,0,null,null,null,null,0,null,null,0,null,"","","",0,"","","",null,"",0,"","",0,0,0,null,"","",null,null,null,null,null,null,null,null,null,"","","",""]
[0,902,null,null,"",null,null,null,null,null,0,null,null,null,null,0,null,null,0,null,"","","",0,"","","",null,"",0,"","",0,0,0,null,"","",null,null,null,null,null,null,null,null,null,"","","",""]
[0,903,null,null,"",null,null,null,null,null,0,null,null,null,null,0,null,null,0,null,"","","",0,"","","",null,"",0,"","",0,0,0,null,"","",null,null,null,null,null,null,null,null,null,"","","",""]
[0,904,null,null,"",null,null,null,null,null,0,null,null,null,null,{"$f":"IFERROR(IF(O912=\"\",0,1-VLOOKUP(O912,Prop_Sens_Table,2,FALSE)),\"N/A\")","v":0},null,null,{"$f":"IF(L912=\"\",N(K912)*N912,L912*N912)","v":0},null,"","","",0,"","","",null,"",0,"","",0,0,0,null,"","",null,null,null,null,null,null,null,null,null,"","","",""]
[0,905,null,null,"",null,null,null,null,null,0,null,null,null,null,0,null,null,0,null,"","","",0,"","","",null,"",0,"","",0,0,0,null,"","",null,null,null,null,null,null,null,null,null,"","","",""]
[0,906,null,null,"",null,null,null,null,null,0,null,null,null,null,0,null,null,0,null,"","","",0,"","","",null,"",0,"","",0,0,0,null,"","",null,null,null,null,null,null,null,null,null,"","","",""]
[0,907,null,null,"",null,null,null,null,null,0,null,null,null,null,0,null,null,0,null,"","","",0,"","","",null,"",0,"","",0,0,0,null,"","",null,null,null,null,null,null,null,null,null,"","","",""]
[0,908,null,null,"",null,null,null,null,null,0,null,null,null,null,0,null,null,0,null,"","","",0,"","","",null,"",0,"","",0,0,0,null,"","",null,null,null,null,null,null,null,null,null,"","","",""]
[0,909,null,null,"",null,null,null,null,null,0,null,null,null,null,0,null,null,0,null,"","","",0,"","","",null,"",0,"","",0,0,0,null,"","",null,null,null,null,null,null,null,null,null,"","","",""]
[0,910,null,null,"",null,null,null,null,null,0,null,null,null,null,0,null,null,0,null,"","","",0,"","","",null,"",0,"","",0,0,0,null,"","",null,null,null,null,null,null,null,null,null,"","","",""]
[0,911,null,null,"",null,null,null,null,null,0,null,null,null,null,0,null,null,0,null,"","","",0,"","","",null,"",0,"","",0,0,0,null,"","",null,null,null,null,null,null,null,null,null,"","","",""]
[0,912,null,null,"",null,null,null,null,null,0,null,null,null,null,0,null,null,0,null,"","","",0,"","","",null,"",0,"","",0,0,0,null,"","",null,null,null,null,null,null,null,null,null,"","","",""]
[0,913,null,null,"",null,null,null,null,null,0,null,null,null,null,0,null,null,0,null,"","","",0,"","","",null,"",0,"","",0,0,0,null,"","",null,null,null,null,null,null,null,null,null,"","","",""]
[0,914,null,null,"",null,null,null,null,null,0,null,null,null,null,0,null,null,0,null,"","","",0,"","","",null,"",0,"","",0,0,0,null,"","",null,null,null,null,null,null,null,null,null,"","","",""]
[0,915,null,null,"",null,null,null,null,null,0,null,null,null,null,0,null,null,0,null,"","","",0,"","","",null,"",0,"","",0,0,0,null,"","",null,null,null,null,null,null,null,null,null,"","","",""]
[0,916,null,null,"",null,null,null,null,null,0,null,null,null,null,0,null,null,0,null,"","","",0,"","","",null,"",0,"","",0,0,0,null,"","",null,null,null,null,null,null,null,null,null,"","","",""]
[0,917,null,null,"",null,null,null,null,null,0,null,null,null,null,0,null,null,0,null,"","","",0,"","","",null,"",0,"","",0,0,0,null,"","",null,null,null,null,null,null,null,null,null,"","","",""]
[0,918,null,null,"",null,null,null,null,null,0,null,null,null,null,0,null,null,0,null,"","","",0,"","","",null,"",0,"","",0,0,0,null,"","",null,null,null,null,null,null,null,null,null,"","","",""]
[0,919,null,null,"",null,null,null,null,null,0,null,null,null,null,0,null,null,0,null,"","","",0,"","","",null,"",0,"","",0,0,0,null,"","",null,null,null,null,null,null,null,null,null,"","","",""]
[0,920,null,null,"",null,null,null,null,null,0,null,null,null,null,0,null,null,0,null,"","","",0,"","","",null,"",0,"","",0,0,0,null,"","",null,null,null,null,null,null,null,null,null,"","","",""]
[0,921,null,null,"",null,null,null,null,null,0,null,null,null,null,0,null,null,0,null,"","","",0,"","","",null,"",0,"","",0,0,0,null,"","",null,null,null,null,null,null,null,null,null,"","","",""]
[0,922,null,null,"",null,null,null,null,null,0,null,null,null,null,0,null,null,0,null,"","","",0,"","","",null,"",0,"","",0,0,0,null,"","",null,null,null,null,null,null,null,null,null,"","","",""]
[0,923,null,null,"",null,null,null,null,null,0,null,null,null,null,0,null,null,0,null,"","","",0,"","","",null,"",0,"","",0,0,0,null,"","",null,null,null,null,null,null,null,null,null,"","","",""]
[0,924,null,null,"",null,null,null,null,null,0,null,null,null,null,0,null,null,0,null,"","","",0,"","","",null,"",0,"","",0,0,0,null,"","",null,null,null,null,null,null,null,null,null,"","","",""]
[0,925,null,null,"",null,null,null,null,null,0,null,null,null,null,0,null,null,0,null,"","","",0,"","","",null,"",0,"","",0,0,0,null,"","",null,null,null,null,null,null,null,null,null,"","","",""]
[0,926,null,null,"",null,null,null,null,null,0,null,null,null,null,0,null,null,0,null,"","","",0,"","","",null,"",0,"","",0,0,0,null,"","",null,null,null,null,null,null,null,null,null,"","","",""]
[0,927,null,null,"",null,null,null,null,null,0,null,null,null,null,0,null,null,0,null,"","","",0,"","","",null,"",0,"","",0,0,0,null,"","",null,null,null,null,null,null,null,null,null,"","","",""]
[0,928,null,null,"",null,null,null,null,null,0,null,null,null,null,0,null,null,0,null,"","","",0,"","","",null,"",0,"","",0,0,0,null,"","",null,null,null,null,null,null,null,null,null,"","","",""]
[0,929,null,null,"",null,null,null,null,null,0,null,null,null,null,0,null,null,0,null,"","","",0,"","","",null,"",0,"","",0,0,0,null,"","",null,null,null,null,null,null,null,null,null,"","","",""]
[0,930,null,null,"",null,null,null,null,null,0,null,null,null,null,0,null,null,0,null,"","","",0,"","","",null,"",0,"","",0,0,0,null,"","",null,null,null,null,null,null,null,null,null,"","","",""]
[0,931,null,null,"",null,null,null,null,null,0,null,null,null,null,0,null,null,0,null,"","","",0,"","","",null,"",0,"","",0,0,0,null,"","",null,null,null,null,null,null,null,null,null,"","","",""]
[0,932,null,null,"",null,null,null,null,null,0,null,null,null,null,0,null,null,0,null,"","","",0,"","","",null,"",0,"","",0,0,0,null,"","",null,null,null,null,null,null,null,null,null,"","","",""]
[0,933,null,null,"",null,null,null,null,null,0,null,null,null,null,0,null,null,0,null,"","","",0,"","","",null,"",0,"","",0,0,0,null,"","",null,null,null,null,null,null,null,null,null,"","","",""]
[0,934,null,null,"",null,null,null,null,null,0,null,null,null,null,0,null,null,0,null,"","","",0,"","","",null,"",0,"","",0,0,0,null,"","",null,null,null,null,null,null,null,null,null,"","","",""]
[0,935,null,null,"",null,null,null,null,null,0,null,null,null,null,0,null,null,0,null,"","","",0,"","","",null,"",0,"","",0,0,0,null,"","",null,null,null,null,null,null,null,null,null,"","","",""]
[0,936,null,null,"",null,null,null,null,null,0,null,null,null,null,0,null,null,0,null,"","","",0,"","","",null,"",0,"","",0,0,0,null,"","",null,null,null,null,null,null,null,null,null,"","","",""]
[0,937,null,null,"",null,null,null,null,null,0,null,null,null,null,0,null,null,0,null,"","","",0,"","","",null,"",0,"","",0,0,0,null,"","",null,null,null,null,null,null,null,null,null,"","","",""]
[0,938,null,null,"",null,null,null,null,null,0,null,null,null,null,0,null,null,0,null,"","","",0,"","","",null,"",0,"","",0,0,0,null,"","",null,null,null,null,null,null,null,null,null,"","","",""]
[0,939,null,null,"",null,null,null,null,null,0,null,null,null,null,0,null,null,0,null,"","","",0,"","","",null,"",0,"","",0,0,0,null,"","",null,null,null,null,null,null,null,null,null,"","","",""]
[0,940,null,null,"",null,null,null,null,null,0,null,null,null,null,0,null,null,0,null,"","","",0,"","","",null,"",0,"","",0,0,0,null,"","",null,null,null,null,null,null,null,null,null,"","","",""]
[0,941,null,null,"",null,null,null,null,null,0,null,null,null,null,0,null,null,0,null,"","","",0,"","","",null,"",0,"","",0,0,0,null,"","",null,null,null,null,null,null,null,null,null,"","","",""]
[0,942,null,null,"",null,null,null,null,null,0,null,null,null,null,0,null,null,0,null,"","","",0,"","","",null,"",0,"","",0,0,0,null,"","",null,null,null,null,null,null,null,null,null,"","","",""]
[0,943,null,null,"",null,null,null,null,null,0,null,null,null,null,0,null,null,0,null,"","","",0,"","","",null,"",0,"","",0,0,0,null,"","",null,null,null,null,null,null,null,null,null,"","","",""]
[0,944,null,null,"",null,null,null,null,null,0,null,null,null,null,0,null,null,0,null,"","","",0,"","","",null,"",0,"","",0,0,0,null,"","",null,null,null,null,null,null,null,null,null,"","","",""]
[0,945,null,null,"",null,null,null,null,null,0,null,null,null,null,0,null,null,0,null,"","","",0,"","","",null,"",0,"","",0,0,0,null,"","",null,null,null,null,null,null,null,null,null,"","","",""]
[0,946,null,null,"",null,null,null,null,null,0,null,null,null,null,0,null,null,0,null,"","","",0,"","","",null,"",0,"","",0,0,0,null,"","",null,null,null,null,null,null,null,null,null,"","","",""]
[0,947,null,null,"",null,null,null,null,null,0,null,null,null,null,0,null,null,0,null,"","","",0,"","","",null,"",0,"","",0,0,0,null,"","",null,null,null,null,null,null,null,null,null,"","","",""]
[0,948,null,null,"",null,null,null,null,null,0,null,null,null,null,0,null,null,0,null,"","","",0,"","","",null,"",0,"","",0,0,0,null,"","",null,null,null,null,null,null,null,null,null,"","","",""]
[0,949,null,null,"",null,null,null,null,null,0,null,null,null,null,0,null,null,0,null,"","","",0,"","","",null,"",0,"","",0,0,0,null,"","",null,null,null,null,null,null,null,null,null,"","","",""]
[0,950,null,null,"",null,null,null,null,null,0,null,null,null,null,0,null,null,0,null,"","","",0,"","","",null,"",0,"","",0,0,0,null,"","",null,null,null,null,null,null,null,null,null,"","","",""]
[0,951,null,null,"",null,null,null,null,null,0,null,null,null,null,0,null,null,0,null,"","","",0,"","","",null,"",0,"","",0,0,0,null,"","",null,null,null,null,null,null,null,null,null,"","","",""]
[0,952,null,null,"",null,null,null,null,null,0,null,null,null,null,0,null,null,0,null,"","","",0,"","","",null,"",0,"","",0,0,0,null,"","",null,null,null,null,null,null,null,null,null,"","","",""]
[0,953,null,null,"",null,null,null,null,null,0,null,null,null,null,0,null,null,0,null,"","","",0,"","","",null,"",0,"","",0,0,0,null,"","",null,null,null,null,null,null,null,null,null,"","","",""]
[0,954,null,null,"",null,null,null,null,null,0,null,null,null,null,0,null,null,0,null,"","","",0,"","","",null,"",0,"","",0,0,0,null,"","",null,null,null,null,null,null,null,null,null,"","","",""]
[0,955,null,null,"",null,null,null,null,null,0,null,null,null,null,0,null,null,0,null,"","","",0,"","","",null,"",0,"","",0,0,0,null,"","",null,null,null,null,null,null,null,null,null,"","","",""]
[0,956,null,null,"",null,null,null,null,null,0,null,null,null,null,0,null,null,0,null,"","","",0,"","","",null,"",0,"","",0,0,0,null,"","",null,null,null,null,null,null,null,null,null,"","","",""]
[0,957,null,null,"",null,null,null,null,null,0,null,null,null,null,0,null,null,0,null,"","","",0,"","","",null,"",0,"","",0,0,0,null,"","",null,null,null,null,null,null,null,null,null,"","","",""]
[0,958,null,null,"",null,null,null,null,null,0,null,null,null,null,0,null,null,0,null,"","","",0,"","","",null,"",0,"","",0,0,0,null,"","",null,null,null,null,null,null,null,null,null,"","","",""]
[0,959,null,null,{"$f":"IFERROR(VLOOKUP(C967,BuildingNameTable,2,FALSE),\"\")","v":""},null,null,null,null,null,0,null,null,null,null,0,null,null,0,null,"","","",0,"","","",null,"",0,"","",0,0,0,null,"","",null,null,null,null,null,null,null,null,null,"","","",""]
[0,960,null,null,"",null,null,null,null,null,0,null,null,null,null,0,null,null,0,null,"","","",0,"","","",null,"",{"$f":"IFERROR(IF($AB968=\"No\",P968,IF(AC968=\"\",0,1-VLOOKUP(AC968,Prop_Sens_Table,2,FALSE))),\"N/A\")","v":0},"","",0,{"$f":"S968-AG968","v":0},{"$f":"IFERROR(1-(AG968/S968),0)","v":0},null,{"$f":"IF(E968=\"\",\"\",(1-IF(Q968=\"\",P968,Q968))*VLOOKUP(E968,BuildingType_RunHours,2,FALSE))","v":""},{"$f":"IF(E968=\"\",\"\",(1-IF(AE968=\"\",AD968,AE968))*VLOOKUP(E968,BuildingType_RunHours,2,FALSE))","v":""},null,null,null,null,null,null,null,null,null,{"$f":"IF(ISERROR(VLOOKUP($I968,LightWattLimits,2,FALSE))=TRUE,\"\",VLOOKUP($I968,LightWattLimits,2,FALSE))","v":""},{"$f":"IF(ISERROR(VLOOKUP($I968,LightWattLimits,3,FALSE))=TRUE,\"\",VLOOKUP($I968,LightWattLimits,3,FALSE))","v":""},{"$f":"IF(ISERROR(VLOOKUP($V968,LightWattLimits,2,FALSE))=TRUE,\"\",VLOOKUP($V968,LightWattLimits,2,FALSE))","v":""},{"$f":"IF(ISERROR(VLOOKUP($V968,LightWattLimits,3,FALSE))=TRUE,\"\",VLOOKUP($V968,LightWattLimits,3,FALSE))","v":""}]
[0,961,null,null,"",null,null,null,null,null,{"$f":"IFERROR(IF(OR(H969=\"\",I969=\"\")=TRUE,0,VLOOKUP(I969,INDIRECT(SUBSTITUTE(SUBSTITUTE(H969,\" \",\"_\"),\"-\",\"_\")&\"W\"),2,FALSE)),\"N/A\")","v":0},null,null,null,null,0,null,null,0,null,"","","",0,"","","",null,{"$f":"IF($AB969=\"No\",IF(O969=\"\",\"\",O969),\"\")","v":""},0,{"$f":"IF($AB969=\"No\",IF(Q969=\"\",\"\",Q969),\"\")","v":""},{"$f":"IF($AB969=\"No\",IF(R969=\"\",\"\",R969),\"\")","v":""},{"$f":"IF($T969=\"\", 0,IF(T969=\"No\",S969,IF(Y969=\"\",X969*AA969,Y969*AA969)))","v":0},0,0,null,"","",null,null,null,null,null,null,null,null,null,"","","",""]
[{"$f":"IF(C970=\"\",0,1)","v":0},962,null,null,"",null,null,null,null,null,0,null,null,null,null,0,null,null,0,null,{"$f":"IF($T970=\"No\",IF(H970=\"\",\"\",H970),\"\")","v":""},{"$f":"IF($T970=\"No\",IF(I970=\"\",\"\",I970),\"\")","v":""},{"$f":"IF($T970=\"No\",IF(J970=\"\",\"\",J970),\"\")","v":""},{"$f":"IFERROR(IF(T970=\"No\",K970,IF(U970=\"\",0,IF(LEFT(U970,1)=\"*\",K970,IF(V970=\"\",0,VLOOKUP(V970,INDIRECT(SUBSTITUTE(SUBSTITUTE(U970,\" \",\"_\"),\"-\",\"_\")&\"W\"),2,FALSE))))),\"N/A\")","v":0},{"$f":"IF($T970=\"No\",IF(L970=\"\",\"\",L970),\"\")","v":""},{"$f":"IF($T970=\"No\",IF(M970=\"\",\"\",M970),\"\")","v":""},{"$f":"IF($T970=\"No\",IF(N970=\"\",\"\",N970),\"\")","v":""},null,"",0,"","",0,0,0,null,"","",null,null,null,null,null,null,null,null,null,"","","",""]
[0,{"$f":"B970+1","v":963},null,null,"",null,null,null,null,null,0,null,null,null,null,0,null,null,0,null,"","","",0,"","","",null,"",0,"","",0,0,0,null,"","",null,null,null,null,null,null,null,null,null,"","","",""]
[0,964,null,null,"",null,null,null,null,null,0,null,null,null,null,0,null,null,0,null,"","","",0,"","","",null,"",0,"","",0,0,0,null,"","",null,null,null,null,null,null,null,null,null,"","","",""]
[0,965,null,null,"",null,null,null,null,null,0,null,null,null,null,0,null,null,0,null,"","","",0,"","","",null,"",0,"","",0,0,0,null,"","",null,null,null,null,null,null,null,null,null,"","","",""]
[0,966,null,null,"",null,null,null,null,null,0,null,null,null,null,0,null,null,0,null,"","","",0,"","","",null,"",0,"","",0,0,0,null,"","",null,null,null,null,null,null,null,null,null,"","","",""]
[0,967,null,null,"",null,null,null,null,null,0,null,null,null,null,0,null,null,0,null,"","","",0,"","","",null,"",0,"","",0,0,0,null,"","",null,null,null,null,null,null,null,null,null,"","","",""]
[0,968,null,null,"",null,null,null,null,null,0,null,null,null,null,{"$f":"IFERROR(IF(O976=\"\",0,1-VLOOKUP(O976,Prop_Sens_Table,2,FALSE)),\"N/A\")","v":0},null,null,{"$f":"IF(L976=\"\",N(K976)*N976,L976*N976)","v":0},null,"","","",0,"","","",null,"",0,"","",0,0,0,null,"","",null,null,null,null,null,null,null,null,null,"","","",""]
[0,969,null,null,"",null,null,null,null,null,0,null,null,null,null,0,null,null,0,null,"","","",0,"","","",null,"",0,"","",0,0,0,null,"","",null,null,null,null,null,null,null,null,null,"","","",""]
[0,970,null,null,"",null,null,null,null,null,0,null,null,null,null,0,null,null,0,null,"","","",0,"","","",null,"",0,"","",0,0,0,null,"","",null,null,null,null,null,null,null,null,null,"","","",""]
[0,971,null,null,"",null,null,null,null,null,0,null,null,null,null,0,null,null,0,null,"","","",0,"","","",null,"",0,"","",0,0,0,null,"","",null,null,null,null,null,null,null,null,null,"","","",""]
[0,972,null,null,"",null,null,null,null,null,0,null,null,null,null,0,null,null,0,null,"","","",0,"","","",null,"",0,"","",0,0,0,null,"","",null,null,null,null,null,null,null,null,null,"","","",""]
[0,973,null,null,"",null,null,null,null,null,0,null,null,null,null,0,null,null,0,null,"","","",0,"","","",null,"",0,"","",0,0,0,null,"","",null,null,null,null,null,null,null,null,null,"","","",""]
[0,974,null,null,"",null,null,null,null,null,0,null,null,null,null,0,null,null,0,null,"","","",0,"","","",null,"",0,"","",0,0,0,null,"","",null,null,null,null,null,null,null,null,null,"","","",""]
[0,975,null,null,"",null,null,null,null,null,0,null,null,null,null,0,null,null,0,null,"","","",0,"","","",null,"",0,"","",0,0,0,null,"","",null,null,null,null,null,null,null,null,null,"","","",""]
[0,976,null,null,"",null,null,null,null,null,0,null,null,null,null,0,null,null,0,null,"","","",0,"","","",null,"",0,"","",0,0,0,null,"","",null,null,null,null,null,null,null,null,null,"","","",""]
[0,977,null,null,"",null,null,null,null,null,0,null,null,null,null,0,null,null,0,null,"","","",0,"","","",null,"",0,"","",0,0,0,null,"","",null,null,null,null,null,null,null,null,null,"","","",""]
[0,978,null,null,"",null,null,null,null,null,0,null,null,null,null,0,null,null,0,null,"","","",0,"","","",null,"",0,"","",0,0,0,null,"","",null,null,null,null,null,null,null,null,null,"","","",""]
[0,979,null,null,"",null,null,null,null,null,0,null,null,null,null,0,null,null,0,null,"","","",0,"","","",null,"",0,"","",0,0,0,null,"","",null,null,null,null,null,null,null,null,null,"","","",""]
[0,980,null,null,"",null,null,null,null,null,0,null,null,null,null,0,null,null,0,null,"","","",0,"","","",null,"",0,"","",0,0,0,null,"","",null,null,null,null,null,null,null,null,null,"","","",""]
[0,981,null,null,"",null,null,null,null,null,0,null,null,null,null,0,null,null,0,null,"","","",0,"","","",null,"",0,"","",0,0,0,null,"","",null,null,null,null,null,null,null,null,null,"","","",""]
[0,982,null,null,"",null,null,null,null,null,0,null,null,null,null,0,null,null,0,null,"","","",0,"","","",null,"",0,"","",0,0,0,null,"","",null,null,null,null,null,null,null,null,null,"","","",""]
[0,983,null,null,"",null,null,null,null,null,0,null,null,null,null,0,null,null,0,null,"","","",0,"","","",null,"",0,"","",0,0,0,null,"","",null,null,null,null,null,null,null,null,null,"","","",""]
[0,984,null,null,"",null,null,null,null,null,0,null,null,null,null,0,null,null,0,null,"","","",0,"","","",null,"",0,"","",0,0,0,null,"","",null,null,null,null,null,null,null,null,null,"","","",""]
[0,985,null,null,"",null,null,null,null,null,0,null,null,null,null,0,null,null,0,null,"","","",0,"","","",null,"",0,"","",0,0,0,null,"","",null,null,null,null,null,null,null,null,null,"","","",""]
[0,986,null,null,"",null,null,null,null,null,0,null,null,null,null,0,null,null,0,null,"","","",0,"","","",null,"",0,"","",0,0,0,null,"","",null,null,null,null,null,null,null,null,null,"","","",""]
[0,987,null,null,"",null,null,null,null,null,0,null,null,null,null,0,null,null,0,null,"","","",0,"","","",null,"",0,"","",0,0,0,null,"","",null,null,null,null,null,null,null,null,null,"","","",""]
[0,988,null,null,"",null,null,null,null,null,0,null,null,null,null,0,null,null,0,null,"","","",0,"","","",null,"",0,"","",0,0,0,null,"","",null,null,null,null,null,null,null,null,null,"","","",""]
[0,989,null,null,"",null,null,null,null,null,0,null,null,null,null,0,null,null,0,null,"","","",0,"","","",null,"",0,"","",0,0,0,null,"","",null,null,null,null,null,null,null,null,null,"","","",""]
[0,990,null,null,"",null,null,null,null,null,0,null,null,null,null,0,null,null,0,null,"","","",0,"","","",null,"",0,"","",0,0,0,null,"","",null,null,null,null,null,null,null,null,null,"","","",""]
[0,991,null,null,"",null,null,null,null,null,0,null,null,null,null,0,null,null,0,null,"","","",0,"","","",null,"",0,"","",0,0,0,null,"","",null,null,null,null,null,null,null,null,null,"","","",""]
[0,992,null,null,"",null,null,null,null,null,0,null,null,null,null,0,null,null,0,null,"","","",0,"","","",null,"",0,"","",0,0,0,null,"","",null,null,null,null,null,null,null,null,null,"","","",""]
[0,993,null,null,"",null,null,null,null,null,0,null,null,null,null,0,null,null,0,null,"","","",0,"","","",null,"",0,"","",0,0,0,null,"","",null,null,null,null,null,null,null,null,null,"","","",""]
[0,994,null,null,"",null,null,null,null,null,0,null,null,null,null,0,null,null,0,null,"","","",0,"","","",null,"",0,"","",0,0,0,null,"","",null,null,null,null,null,null,null,null,null,"","","",""]
[0,995,null,null,"",null,null,null,null,null,0,null,null,null,null,0,null,null,0,null,"","","",0,"","","",null,"",0,"","",0,0,0,null,"","",null,null,null,null,null,null,null,null,null,"","","",""]
[0,996,null,null,"",null,null,null,null,null,0,null,null,null,null,0,null,null,0,null,"","","",0,"","","",null,"",0,"","",0,0,0,null,"","",null,null,null,null,null,null,null,null,null,"","","",""]
[0,997,null,null,"",null,null,null,null,null,0,null,null,null,null,0,null,null,0,null,"","","",0,"","","",null,"",0,"","",0,0,0,null,"","",null,null,null,null,null,null,null,null,null,"","","",""]
[0,998,null,null,"",null,null,null,null,null,0,null,null,null,null,0,null,null,0,null,"","","",0,"","","",null,"",0,"","",0,0,0,null,"","",null,null,null,null,null,null,null,null,null,"","","",""]
[0,999,null,null,"",null,null,null,null,null,0,null,null,null,null,0,null,null,0,null,"","","",0,"","","",null,"",0,"","",0,0,0,null,"","",null,null,null,null,null,null,null,null,null,"","","",""]
[0,1000,null,null,"",null,null,null,null,null,0,null,null,null,null,0,null,null,0,null,"","","",0,"","","",null,"",0,"","",0,0,0,null,"","",null,null,null,null,null,null,null,null,null,"","","",""]
[1,null,null,null,null,null,null,null,null,null,null,null,null,null,"Total Watts ",null,null,null,{"$f":"SUM(S9:S1008)","v":0},null,null,null,null,null,null,null,null,null,"Total Watts ",null,null,null,{"$f":"SUM(AG9:AG1008)","v":0}]
[1,null,null,null,null,null,null,null,null,null,null,null,null,null,"Total Watts/Sqft (LPD)",null,null,null,{"$f":"IF('Area Identification'!C9=0,0,S1009/'Area Identification'!C9)","v":0},null,null,null,null,null,null,null,null,null,"Total Watts/Sqft (LPD)",null,null,null,{"$f":"IF('Area Identification'!C9=0,0,AG1009/'Area Identification'!C9)","v":0}]
[1]
[1,"Exterior Lighting"]
[1,"Location ",null,null,null,null,null,"Existing",null,null,null,null,null,null,null,null,null,null,null,"Proposed",null,null,null,null,null,null,null,null,null,null,null,null,null,"Savings",null,null,"Annual Runtime Hours ",null,null,null,null,null,null,null,null,null,null,"Existing",null,"Proposed"]
[1,null,"Building \n(from 'Area Identification')","Building Area\n(from 'Area Identification')","Building Type","Floor #","Area","Technology Type","Fixture/Lamp Description","Ballast  ","Default Watts / Fixture","Actual Watts/Fixture (if different from default)","Watts/Fixture Source","Fixture Qty.","Control Type","Default Reduction Factor","Actual Reduction Factor\n(if different from default)","Controls Qty.","Total  Watts","Fixture Measure?","Technology Type","Fixture/Lamp Description","Ballast  ","Default Watts / Fixture","Actual Watts/Fixture (if different from default)","Watts/Fixture Source","Fixture Qty.","Controls Measure? ","Control Type","Default Reduction Factor","Actual Reduction Factor\n(if different from default)","Controls Qty.","Total Watts","Watts Saved","% Savings",null,"Existing Lighting Hours\n(per Protocols)","Proposed Lighting Hours\n(per Protocols)",null,null,null,null,null,null,null,null,null,"Min Watts","Max Watts","Min Watts","Max Watts"]
[0,"Ex","Building 1 ","Facade ","Education – Primary School","Ground Floor","All","HID","High-Pressure Sodium","Magnetic",{"$f":"IFERROR(IF(OR(H1015=\"\",I1015=\"\")=TRUE,0,VLOOKUP(I1015,INDIRECT(SUBSTITUTE(SUBSTITUTE(H1015,\" \",\"_\"),\"-\",\"_\")&\"W\"),2,FALSE)),\"N/A\")","v":"N/A"},125,"b",2,"None",{"$f":"IFERROR(IF(O1015=\"\",0,1-VLOOKUP(O1015,Prop_Sens_Table,2,FALSE)),\"N/A\")","v":0},null,1,{"$f":"IF(L1015=\"\",K1015*N1015,L1015*N1015)","v":250},"Yes","LED - Fixtures","LED High Bay","Electronic",{"$f":"IFERROR(IF(T1015=\"No\",K1015,IF(U1015=\"\",0,IF(LEFT(U1015,1)=\"*\",K1015,IF(V1015=\"\",0,VLOOKUP(V1015,INDIRECT(SUBSTITUTE(SUBSTITUTE(U1015,\" \",\"_\"),\"-\",\"_\")&\"W\"),2,FALSE))))),\"N/A\")","v":"N/A"},40,"b",2,"No","None",{"$f":"IFERROR(IF($AB1015=\"No\",P1015,IF(AC1015=\"\",0,1-VLOOKUP(AC1015,Prop_Sens_Table,2,FALSE))),\"N/A\")","v":0},null,null,{"$f":"IF(T1015=\"\",\"\",IF(Y1015=\"\",X1015*AA1015,Y1015*AA1015))","v":80},{"$f":"S1015-AG1015","v":170},{"$f":"IFERROR(1-(AG1015/S1015),0)","v":0.67999999999999994},null,{"$f":"IF(S1015=0,\"\",(1-IF(Q1015=\"\",P1015,Q1015))*12*365)","v":4380},{"$f":"IF(AG1015=0,\"\",(1-IF(AE1015=\"\",AD1015,AE1015))*12*365)","v":4380},null,null,null,null,null,null,null,null,null,{"$f":"IF(ISERROR(VLOOKUP($I1015,LightWattLimits,2,FALSE))=TRUE,\"\",VLOOKUP($I1015,LightWattLimits,2,FALSE))","v":""},{"$f":"IF(ISERROR(VLOOKUP($I1015,LightWattLimits,3,FALSE))=TRUE,\"\",VLOOKUP($I1015,LightWattLimits,3,FALSE))","v":""},{"$f":"IF(ISERROR(VLOOKUP($V1015,LightWattLimits,2,FALSE))=TRUE,\"\",VLOOKUP($V1015,LightWattLimits,2,FALSE))","v":""},{"$f":"IF(ISERROR(VLOOKUP($V1015,LightWattLimits,3,FALSE))=TRUE,\"\",VLOOKUP($V1015,LightWattLimits,3,FALSE))","v":""}]
[{"$f":"IF(C1016=\"\",0,1)","v":0},1,null,null,null,null,null,null,null,null,{"$f":"IFERROR(IF(OR(H1016=\"\",I1016=\"\")=TRUE,0,VLOOKUP(I1016,INDIRECT(SUBSTITUTE(SUBSTITUTE(H1016,\" \",\"_\"),\"-\",\"_\")&\"W\"),2,FALSE)),\"N/A\")","v":0},null,null,null,null,0,null,null,{"$f":"IF(L1016=\"\",N(K1016)*N1016,L1016*N1016)","v":0},null,{"$f":"IF($T1016=\"No\",IF(H1016=\"\",\"\",H1016),\"\")","v":""},{"$f":"IF($T1016=\"No\",IF(I1016=\"\",\"\",I1016),\"\")","v":""},{"$f":"IF($T1016=\"No\",IF(J1016=\"\",\"\",J1016),\"\")","v":""},{"$f":"IFERROR(IF(T1016=\"No\",K1016,IF(U1016=\"\",0,IF(LEFT(U1016,1)=\"*\",K1016,IF(V1016=\"\",0,VLOOKUP(V1016,INDIRECT(SUBSTITUTE(SUBSTITUTE(U1016,\" \",\"_\"),\"-\",\"_\")&\"W\"),2,FALSE))))),\"N/A\")","v":0},{"$f":"IF($T1016=\"No\",IF(L1016=\"\",\"\",L1016),\"\")","v":""},{"$f":"IF($T1016=\"No\",IF(M1016=\"\",\"\",M1016),\"\")","v":""},{"$f":"IF($T1016=\"No\",IF(N1016=\"\",\"\",N1016),\"\")","v":""},null,{"$f":"IF($AB1016=\"No\",IF(O1016=\"\",\"\",O1016),\"\")","v":""},0,{"$f":"IF($AB1016=\"No\",IF(Q1016=\"\",\"\",Q1016),\"\")","v":""},{"$f":"IF($AB1016=\"No\",IF(R1016=\"\",\"\",R1016),\"\")","v":""},{"$f":"IF($T1016=\"\",0,IF(T1016=\"\",0,IF(Y1016=\"\",X1016*AA1016,Y1016*AA1016)))","v":0},0,0,null,{"$f":"IF(S1016=0,\"\",(1-IF(Q1016=\"\",P1016,Q1016))*12*365)","v":""},{"$f":"IF(AG1016=0,\"\",(1-IF(AE1016=\"\",AD1016,AE1016))*12*365)","v":""},null,null,null,null,null,null,null,null,null,"","","",""]
[0,{"$f":"B1016+1","v":2},null,null,null,null,null,null,null,null,{"$f":"IFERROR(IF(OR(H1017=\"\",I1017=\"\")=TRUE,0,VLOOKUP(I1017,INDIRECT(SUBSTITUTE(SUBSTITUTE(H1017,\" \",\"_\"),\"-\",\"_\")&\"W\"),2,FALSE)),\"N/A\")","v":0},null,null,null,null,{"$f":"IFERROR(IF(O1017=\"\",0,1-VLOOKUP(O1017,Prop_Sens_Table,2,FALSE)),\"N/A\")","v":0},null,null,{"$f":"IF(L1017=\"\",N(K1017)*N1017,L1017*N1017)","v":0},null,{"$f":"IF($T1017=\"No\",IF(H1017=\"\",\"\",H1017),\"\")","v":""},{"$f":"IF($T1017=\"No\",IF(I1017=\"\",\"\",I1017),\"\")","v":""},{"$f":"IF($T1017=\"No\",IF(J1017=\"\",\"\",J1017),\"\")","v":""},{"$f":"IFERROR(IF(T1017=\"No\",K1017,IF(U1017=\"\",0,IF(LEFT(U1017,1)=\"*\",K1017,IF(V1017=\"\",0,VLOOKUP(V1017,INDIRECT(SUBSTITUTE(SUBSTITUTE(U1017,\" \",\"_\"),\"-\",\"_\")&\"W\"),2,FALSE))))),\"N/A\")","v":0},{"$f":"IF($T1017=\"No\",IF(L1017=\"\",\"\",L1017),\"\")","v":""},{"$f":"IF($T1017=\"No\",IF(M1017=\"\",\"\",M1017),\"\")","v":""},{"$f":"IF($T1017=\"No\",IF(N1017=\"\",\"\",N1017),\"\")","v":""},null,{"$f":"IF($AB1017=\"No\",IF(O1017=\"\",\"\",O1017),\"\")","v":""},{"$f":"IFERROR(IF($AB1017=\"No\",P1017,IF(AC1017=\"\",0,1-VLOOKUP(AC1017,Prop_Sens_Table,2,FALSE))),\"N/A\")","v":0},{"$f":"IF($AB1017=\"No\",IF(Q1017=\"\",\"\",Q1017),\"\")","v":""},{"$f":"IF($AB1017=\"No\",IF(R1017=\"\",\"\",R1017),\"\")","v":""},0,0,0,null,{"$f":"IF(S1017=0,\"\",(1-IF(Q1017=\"\",P1017,Q1017))*12*365)","v":""},{"$f":"IF(AG1017=0,\"\",(1-IF(AE1017=\"\",AD1017,AE1017))*12*365)","v":""},null,null,null,null,null,null,null,null,null,"","","",""]
[0,{"$f":"B1017+1","v":3},null,null,null,null,null,null,null,null,0,null,null,null,null,0,null,null,0,null,"","","",0,"","","",null,"",0,"","",0,0,0,null,"","",null,null,null,null,null,null,null,null,null,"","","",""]
[0,4,null,null,null,null,null,null,null,null,0,null,null,null,null,0,null,null,0,null,"","","",0,"","","",null,"",0,"","",0,0,0,null,"","",null,null,null,null,null,null,null,null,null,"","","",""]
[0,5,null,null,null,null,null,null,null,null,0,null,null,null,null,0,null,null,0,null,"","","",0,"","","",null,"",0,"","",0,0,0,null,"","",null,null,null,null,null,null,null,null,null,"","","",""]
[0,6,null,null,null,null,null,null,null,null,0,null,null,null,null,0,null,null,0,null,"","","",0,"","","",null,"",0,"","",0,0,0,null,"","",null,null,null,null,null,null,null,null,null,"","","",""]
[0,7,null,null,null,null,null,null,null,null,0,null,null,null,null,0,null,null,0,null,"","","",0,"","","",null,"",0,"","",0,0,0,null,"","",null,null,null,null,null,null,null,null,null,"","","",""]
[0,8,null,null,null,null,null,null,null,null,0,null,null,null,null,0,null,null,0,null,"","","",0,"","","",null,"",0,"","",0,0,0,null,"","",null,null,null,null,null,null,null,null,null,"","","",""]
[0,9,null,null,null,null,null,null,null,null,0,null,null,null,null,0,null,null,0,null,"","","",0,"","","",null,"",0,"","",0,0,0,null,"","",null,null,null,null,null,null,null,null,null,"","","",""]
[0,10,null,null,null,null,null,null,null,null,0,null,null,null,null,0,null,null,0,null,"","","",0,"","","",null,"",0,"","",0,0,0,null,"","",null,null,null,null,null,null,null,null,null,"","","",""]
[0,11,null,null,null,null,null,null,null,null,0,null,null,null,null,0,null,null,0,null,"","","",0,"","","",null,"",0,"","",0,0,0,null,"","",null,null,null,null,null,null,null,null,null,"","","",""]
[0,12,null,null,null,null,null,null,null,null,0,null,null,null,null,0,null,null,0,null,"","","",0,"","","",null,"",0,"","",0,0,0,null,"","",null,null,null,null,null,null,null,null,null,"","","",""]
[0,13,null,null,null,null,null,null,null,null,0,null,null,null,null,0,null,null,0,null,"","","",0,"","","",null,"",0,"","",0,0,0,null,"","",null,null,null,null,null,null,null,null,null,"","","",""]
[0,14,null,null,null,null,null,null,null,null,0,null,null,null,null,0,null,null,0,null,"","","",0,"","","",null,"",0,"","",0,0,0,null,"","",null,null,null,null,null,null,null,null,null,"","","",""]
[0,15,null,null,null,null,null,null,null,null,0,null,null,null,null,0,null,null,0,null,"","","",0,"","","",null,"",0,"","",0,0,0,null,"","",null,null,null,null,null,null,null,null,null,"","","",""]
[0,16,null,null,null,null,null,null,null,null,0,null,null,null,null,0,null,null,0,null,"","","",0,"","","",null,"",0,"","",0,0,0,null,"","",null,null,null,null,null,null,null,null,null,"","","",""]
[0,17,null,null,null,null,null,null,null,null,0,null,null,null,null,0,null,null,0,null,"","","",0,"","","",null,"",0,"","",0,0,0,null,"","",null,null,null,null,null,null,null,null,null,"","","",""]
[0,18,null,null,null,null,null,null,null,null,0,null,null,null,null,0,null,null,0,null,"","","",0,"","","",null,"",0,"","",0,0,0,null,"","",null,null,null,null,null,null,null,null,null,"","","",""]
[0,19,null,null,null,null,null,null,null,null,0,null,null,null,null,0,null,null,0,null,"","","",0,"","","",null,"",0,"","",0,0,0,null,"","",null,null,null,null,null,null,null,null,null,"","","",""]
[0,20,null,null,null,null,null,null,null,null,0,null,null,null,null,0,null,null,0,null,"","","",0,"","","",null,"",0,"","",0,0,0,null,"","",null,null,null,null,null,null,null,null,null,"","","",""]
[0,21,null,null,null,null,null,null,null,null,0,null,null,null,null,0,null,null,0,null,"","","",0,"","","",null,"",0,"","",0,0,0,null,"","",null,null,null,null,null,null,null,null,null,"","","",""]
[0,22,null,null,null,null,null,null,null,null,0,null,null,null,null,0,null,null,0,null,"","","",0,"","","",null,"",0,"","",0,0,0,null,"","",null,null,null,null,null,null,null,null,null,"","","",""]
[0,23,null,null,null,null,null,null,null,null,0,null,null,null,null,0,null,null,0,null,"","","",0,"","","",null,"",0,"","",0,0,0,null,"","",null,null,null,null,null,null,null,null,null,"","","",""]
[0,24,null,null,null,null,null,null,null,null,0,null,null,null,null,0,null,null,0,null,"","","",0,"","","",null,"",0,"","",0,0,0,null,"","",null,null,null,null,null,null,null,null,null,"","","",""]
[0,25,null,null,null,null,null,null,null,null,0,null,null,null,null,0,null,null,0,null,"","","",0,"","","",null,"",0,"","",0,0,0,null,"","",null,null,null,null,null,null,null,null,null,"","","",""]
[0,26,null,null,null,null,null,null,null,null,0,null,null,null,null,0,null,null,0,null,"","","",0,"","","",null,"",0,"","",0,0,0,null,"","",null,null,null,null,null,null,null,null,null,"","","",""]
[0,27,null,null,null,null,null,null,null,null,0,null,null,null,null,0,null,null,0,null,"","","",0,"","","",null,"",0,"","",0,0,0,null,"","",null,null,null,null,null,null,null,null,null,"","","",""]
[0,28,null,null,null,null,null,null,null,null,0,null,null,null,null,0,null,null,0,null,"","","",0,"","","",null,"",0,"","",0,0,0,null,"","",null,null,null,null,null,null,null,null,null,"","","",""]
[0,29,null,null,null,null,null,null,null,null,0,null,null,null,null,0,null,null,0,null,"","","",0,"","","",null,"",0,"","",0,0,0,null,"","",null,null,null,null,null,null,null,null,null,"","","",""]
[0,30,null,null,null,null,null,null,null,null,0,null,null,null,null,0,null,null,0,null,"","","",0,"","","",null,"",0,"","",0,0,0,null,"","",null,null,null,null,null,null,null,null,null,"","","",""]
[0,31,null,null,null,null,null,null,null,null,0,null,null,null,null,0,null,null,0,null,"","","",0,"","","",null,"",0,"","",0,0,0,null,"","",null,null,null,null,null,null,null,null,null,"","","",""]
[0,32,null,null,null,null,null,null,null,null,0,null,null,null,null,0,null,null,0,null,"","","",0,"","","",null,"",0,"","",0,{"$f":"S1047-AG1047","v":0},{"$f":"IFERROR(1-(AG1047/S1047),0)","v":0},null,"","",null,null,null,null,null,null,null,null,null,{"$f":"IF(ISERROR(VLOOKUP($I1047,LightWattLimits,2,FALSE))=TRUE,\"\",VLOOKUP($I1047,LightWattLimits,2,FALSE))","v":""},{"$f":"IF(ISERROR(VLOOKUP($I1047,LightWattLimits,3,FALSE))=TRUE,\"\",VLOOKUP($I1047,LightWattLimits,3,FALSE))","v":""},{"$f":"IF(ISERROR(VLOOKUP($V1047,LightWattLimits,2,FALSE))=TRUE,\"\",VLOOKUP($V1047,LightWattLimits,2,FALSE))","v":""},{"$f":"IF(ISERROR(VLOOKUP($V1047,LightWattLimits,3,FALSE))=TRUE,\"\",VLOOKUP($V1047,LightWattLimits,3,FALSE))","v":""}]
[0,33,null,null,null,null,null,null,null,null,0,null,null,null,null,0,null,null,0,null,"","","",0,"","","",null,"",0,"","",{"$f":"IF($T1048=\"\",0,IF(T1048=\"\",0,IF(Y1048=\"\",X1048*AA1048,Y1048*AA1048)))","v":0},0,0,null,"","",null,null,null,null,null,null,null,null,null,"","","",""]
[0,34,null,null,null,null,null,null,null,null,0,null,null,null,null,0,null,null,0,null,"","","",0,"","","",null,"",0,"","",0,0,0,null,"","",null,null,null,null,null,null,null,null,null,"","","",""]
[0,35,null,null,null,null,null,null,null,null,0,null,null,null,null,0,null,null,0,null,"","","",0,"","","",null,"",0,"","",0,0,0,null,"","",null,null,null,null,null,null,null,null,null,"","","",""]
[0,36,null,null,null,null,null,null,null,null,0,null,null,null,null,0,null,null,0,null,"","","",0,"","","",null,"",0,"","",0,0,0,null,"","",null,null,null,null,null,null,null,null,null,"","","",""]
[0,37,null,null,null,null,null,null,null,null,0,null,null,null,null,0,null,null,0,null,"","","",0,"","","",null,"",0,"","",0,0,0,null,"","",null,null,null,null,null,null,null,null,null,"","","",""]
[0,38,null,null,null,null,null,null,null,null,0,null,null,null,null,0,null,null,0,null,"","","",0,"","","",null,"",0,"","",0,0,0,null,"","",null,null,null,null,null,null,null,null,null,"","","",""]
[0,39,null,null,null,null,null,null,null,null,0,null,null,null,null,0,null,null,0,null,"","","",0,"","","",null,"",0,"","",0,0,0,null,"","",null,null,null,null,null,null,null,null,null,"","","",""]
[0,40,null,null,null,null,null,null,null,null,0,null,null,null,null,0,null,null,0,null,"","","",0,"","","",null,"",0,"","",0,0,0,null,"","",null,null,null,null,null,null,null,null,null,"","","",""]
[0,41,null,null,null,null,null,null,null,null,0,null,null,null,null,0,null,null,0,null,"","","",0,"","","",null,"",0,"","",0,0,0,null,"","",null,null,null,null,null,null,null,null,null,"","","",""]
[0,42,null,null,null,null,null,null,null,null,0,null,null,null,null,0,null,null,0,null,"","","",0,"","","",null,"",0,"","",0,0,0,null,"","",null,null,null,null,null,null,null,null,null,"","","",""]
[0,43,null,null,null,null,null,null,null,null,0,null,null,null,null,0,null,null,0,null,"","","",0,"","","",null,"",0,"","",0,0,0,null,"","",null,null,null,null,null,null,null,null,null,"","","",""]
[0,44,null,null,null,null,null,null,null,null,0,null,null,null,null,0,null,null,0,null,"","","",0,"","","",null,"",0,"","",0,0,0,null,"","",null,null,null,null,null,null,null,null,null,"","","",""]
[0,45,null,null,null,null,null,null,null,null,0,null,null,null,null,0,null,null,0,null,"","","",0,"","","",null,"",0,"","",0,0,0,null,"","",null,null,null,null,null,null,null,null,null,"","","",""]
[0,46,null,null,null,null,null,null,null,null,0,null,null,null,null,0,null,null,0,null,"","","",0,"","","",null,"",0,"","",0,0,0,null,"","",null,null,null,null,null,null,null,null,null,"","","",""]
[0,47,null,null,null,null,null,null,null,null,0,null,null,null,null,0,null,null,0,null,"","","",0,"","","",null,"",0,"","",0,0,0,null,"","",null,null,null,null,null,null,null,null,null,"","","",""]
[0,48,null,null,null,null,null,null,null,null,0,null,null,null,null,0,null,null,0,null,"","","",0,"","","",null,"",0,"","",0,0,0,null,"","",null,null,null,null,null,null,null,null,null,"","","",""]
[0,49,null,null,null,null,null,null,null,null,0,null,null,null,null,0,null,null,0,null,"","","",0,"","","",null,"",0,"","",0,0,0,null,"","",null,null,null,null,null,null,null,null,null,"","","",""]
[0,50,null,null,null,null,null,null,null,null,0,null,null,null,null,0,null,null,0,null,"","","",0,"","","",null,"",0,"","",0,0,0,null,"","",null,null,null,null,null,null,null,null,null,"","","",""]
[1,null,null,null,null,null,null,null,null,null,null,null,null,null,"Total Watts ",null,null,null,{"$f":"SUM(S1016:S1065)","v":0},null,null,null,null,null,null,null,null,null,"Total Watts ",null,null,null,{"$f":"SUM(AG1016:AG1065)","v":0}]

{"sheet":"Lighting Data","index":25,"n_rows":426,"n_cols":49,"rows_kept":426,"cut":false,"hidden":true,"merged":[]}
[]
[null,"Proposed Fixture","Wattage",null,"Ballast Type",null,"Existing Tech Type","Proposed Tech Type",null,"Linear Fluorescent - T8","Wattage","Linear Fluorescent - RWT8","Wattage","Linear Fluorescent - T8HO","Wattage","Linear Fluorescent - T5","Wattage","Linear Fluorescent - T5HO","Wattage","U-Bend Fluorescent - T8","Wattage","U-Bend Fluorescent - RWT8","Wattage","Compact Fluorescent","Wattage","LED - Screw-In","Wattage","LED - Linear Tubes","Wattage","LED - Fixtures","Wattage","LED Exit Signs","Wattage","Linear Fluorescent - T12","Wattage","Linear Fluorescent - T12HO","Wattage","U-Bend Fluorescent - T12","Wattage","Incandescent","Wattage","HID","Wattage","Exit Signs","Wattage",null,"Fixture/Lamp Description","Min Watts","Max Watts"]
[null,"Linear Fluorescent: 2' T8 - One 17W Lamp",22,null,"Magnetic",null,"Linear Fluorescent - T12","Linear Fluorescent - T8",null,"2' T8 (17W) - 1L",22,"4' RWT8 (28W) - 1L",25,"8' T8HO (86W) - 1L",88,"2' T5 (14W) - 1L",18,"2' T5HO (24W) - 1L",27,"U T8 (32W) - 1L",39,"U RWT8 (28W) - 1L",25,"Screw-In","N/A","A-Lamp","N/A","2' LED Tube",9,"LED High Bay","N/A","LED Exit Sign",2,"2' T12 (20W) - 1L",25,"8' T12HO (110W) - 1L",140,"U T12 (34W) - 1L",43,"Standard","N/A","Mercury Vapor","N/A","Incandescent","N/A",null,"Screw-In",5,42]
[null,"Linear Fluorescent: 2' T8 - Two 17W Lamps",33,null,"Electronic",null,"Linear Fluorescent - T12HO","Linear Fluorescent - RWT8",null,"2' T8 (17W) - 2L",33,"4' RWT8 (28W) - 2L",49,"8' T8HO (86W) - 2L",160,"2' T5 (14W) - 2L",34,"2' T5HO (24W) - 2L",52,"U T8 (32W) - 2L",62,"U RWT8 (28W) - 1L",49,"Twin/Triple/Quad Tube","N/A","BR30","N/A","4' LED Tube",18,"LED Parking Lot Light","N/A",null,null,"2' T12 (20W) - 2L",50,"8' T12HO (110W) - 2L",252,"U T12 (34W) - 2L",72,"Halogen","N/A","Metal Halide","N/A","Fluorescent","N/A",null,"Twin/Triple/Quad Tube",8,75]
[null,"Linear Fluorescent: 2' T8 - Three 17W Lamps",53,null,"N/A",null,"Linear Fluorescent - T8","Linear Fluorescent - T8HO",null,"2' T8 (17W) - 3L",53,"4' RWT8 (28W) - 3L",72,null,null,"3' T5 (21W) - 1L",27,"3' T5HO (39W) - 1L",43,"U T8 (32W) - 3L",92,"U RWT8 (28W) - 1L",72,"T5 Circline (22W) - 1L",28,"BR40","N/A",null,null,null,null,null,null,"2' T12 (20W) - 3L",75,"8' T12VHO (215W) - 1L",230,"U T12 (34W) - 3L",105,null,null,"High-Pressure Sodium","N/A","LED",2,null,"A-Lamp",8,17]
[null,"Linear Fluorescent: 2' T8 - Four 17W Lamps",63,null,null,null,"Linear Fluorescent - RWT8","Linear Fluorescent - T5",null,"2' T8 (17W) - 4L",63,"4' RWT8 (28W) - 4L",96,null,null,"3' T5 (21W) - 2L",50,"3' T5HO (39W) - 2L",85,null,null,null,null,"T5 Circline (22W) - 2L",53,"Candle","N/A",null,null,null,null,null,null,"2' T12 (20W) - 4L",100,"8' T12VHO (215W) - 2L",440,null,null,null,null,"Low-Pressure Sodium","N/A",null,null,null,"BR30",11,14]
[null,"Linear Fluorescent: 3' T8 - One 25W Lamp",27,null,null,null,"Linear Fluorescent - T8HO","Linear Fluorescent - T5HO",null,"3' T8 (25W) - 1L",27,"4' RWT8 (28W) - 6L",142,null,null,"4' T5 (28W) - 1L",30,"4' T5HO (54W) - 1L",62,null,null,null,null,"T5 Circline (40W) - 1L",41,"Globe","N/A",null,null,null,null,null,null,"3' T12 (30W) - 1L",46,null,null,null,null,null,null,null,null,null,null,null,"BR40",11,18]
[null,"Linear Fluorescent: 3' T8 - Two 25W Lamps",48,null,null,null,"Linear Fluorescent - T5","U-Bend Fluorescent - T8",null,"3' T8 (25W) - 2L",48,null,null,null,null,"4' T5 (28W) - 2L",60,"4' T5HO (54W) - 2L",117,null,null,null,null,"T5 Circline (40W) - 2L",80,"MR16","N/A",null,null,null,null,null,null,"3' T12 (30W) - 2L",79,null,null,null,null,null,null,null,null,null,null,null,"Candle",1.8,4]
[null,"Linear Fluorescent: 3' T8 - Three 25W Lamps",68,null,null,null,"Linear Fluorescent - T5HO","U-Bend Fluorescent - RWT8",null,"3' T8 (25W) - 3L",68,null,null,null,null,"4' T5 (28W) - 3L",90,"4' T5HO (54W) - 3L",179,null,null,null,null,"T5 Circline (55W) - 1L",55,"PAR20","N/A",null,null,null,null,null,null,"3' T12 (30W) - 3L",125,null,null,null,null,null,null,null,null,null,null,null,"Globe",1.8,8]
[null,"Linear Fluorescent: 3' T8 - Four 25W Lamps",89,null,null,null,"U-Bend Fluorescent - T12","Compact Fluorescent",null,"3' T8 (25W) - 4L",89,null,null,null,null,"4' T5 (28W) - 4L",120,"4' T5HO (54W) - 4L",234,null,null,null,null,"T5 Circline (55W) - 2L",103,"PAR30","N/A",null,null,null,null,null,null,"3' T12 (30W) - 4L",158,null,null,null,null,null,null,null,null,null,null,null,"MR16",4,10]
[null,"Linear Fluorescent: 4' T8 - One 32W Lamp",32,null,null,null,"U-Bend Fluorescent - T8","LED - Screw-In",null,"4' T8 (32W) - 1L",32,null,null,null,null,"5' T5 (35W) - 1L",40,"4' T5HO (54W) - 5L",296,null,null,null,null,null,null,"PAR38","N/A",null,null,null,null,null,null,"4' T12 (40W) - 1L",46,null,null,null,null,null,null,null,null,null,null,null,"PAR20",7,9]
[null,"Linear Fluorescent: 4' T8 - Two 32W Lamps",62,null,null,null,"U-Bend Fluorescent - RWT8","LED - Linear Tubes",null,"4' T8 (32W) - 2L",62,null,null,null,null,"5' T5 (35W) - 2L",78,"4' T5HO (54W) - 6L",358,null,null,null,null,null,null,"R20","N/A",null,null,null,null,null,null,"4' T12 (40W) - 2L",88,null,null,null,null,null,null,null,null,null,null,null,"PAR30",10,15]
[null,"Linear Fluorescent: 4' T8 - Three 32W Lamps",93,null,null,null,"Incandescent","LED - Fixtures",null,"4' T8 (32W) - 3L",93,null,null,null,null,null,null,"5' T5HO (80W) - 1L",89,null,null,null,null,null,null,null,null,null,null,null,null,null,null,"4' T12 (40W) - 3L",127,null,null,null,null,null,null,null,null,null,null,null,"PAR38",13,20]
[null,"Linear Fluorescent: 4' T8 - Four 32W Lamps",114,null,null,null,"Compact Fluorescent","LED Exit Signs",null,"4' T8 (32W) - 4L",114,null,null,null,null,null,null,"5' T5HO (80W) - 2L",178,null,null,null,null,null,null,null,null,null,null,null,null,null,null,"4' T12 (40W) - 4L",176,null,null,null,null,null,null,null,null,null,null,null,"R20",9,9]
[null,"Linear Fluorescent: 4' T8 - Six 32W Lamps",176,null,null,null,"HID",null,null,"4' T8 (32W) - 6L",176,null,null,null,null,null,null,null,null,null,null,null,null,null,null,null,null,null,null,null,null,null,null,"4' T12 (40W) - 6L",254,null,null,null,null,null,null,null,null,null,null,null,"Incandescent",5,100]
[null,"Linear Fluorescent: 4' RWT8 - One 28W Lamp",25,null,null,null,"LED - Screw-In",null,null,"5' T8 (40W) - 1L",46,null,null,null,null,null,null,null,null,null,null,null,null,null,null,null,null,null,null,null,null,null,null,"8' T12 (75W) - 1L",92,null,null,null,null,null,null,null,null,null,null,null,"Fluorescent",9,21]
[null,"Linear Fluorescent: 4' RWT8 - Two 28W Lamps",49,null,null,null,"LED - Linear Tubes",null,null,"5' T8 (40W) - 2L",79,null,null,null,null,null,null,null,null,null,null,null,null,null,null,null,null,null,null,null,null,null,null,"8' T12 (75W) - 2L",158]
[null,"Linear Fluorescent: 4' RWT8 - Three 28W Lamps",72,null,null,null,"LED - Fixtures",null,null,"5' T8 (40W) - 3L",112]
[null,"Linear Fluorescent: 4' RWT8 - Four 28W Lamps",96,null,null,null,"Exit Signs",null,null,"8' T8 (59W) - 1L",58]
[null,"Linear Fluorescent: 4' RWT8 - Six 28W Lamps",142,null,null,null,null,null,null,"8' T8 (59W) - 2L",110]
[null,"Linear Fluorescent: 5' T8 - One 40W Lamp",46]
[null,"Linear Fluorescent: 5' T8 - Two 40W Lamps",79]
[null,"Linear Fluorescent: 5' T8 - Three 40W Lamps",112]
[null,"Linear Fluorescent: 8' T8 - One 59W Lamp",58]
[null,"Linear Fluorescent: 8' T8 - Two 59W Lamps",110]
[null,"Linear Fluorescent: 8' T8HO - One 86W Lamp",88]
[null,"Linear Fluorescent: 8' T8HO - Two 86W Lamps",160]
[null,"Linear Fluorescent: 2' T5 - One 14W Lamp",18]
[null,"Linear Fluorescent: 2' T5 - Two 14W Lamps",34]
[null,"Linear Fluorescent: 3' T5 - One 21W Lamp",27]
[null,"Linear Fluorescent: 3' T5 - Two 21W Lamps",50]
[null,"Linear Fluorescent: 4' T5 - One 28W Lamp",30]
[null,"Linear Fluorescent: 4' T5 - Two 28W Lamps",60]
[null,"Linear Fluorescent: 4' T5 - Three 28W Lamps",90]
[null,"Linear Fluorescent: 4' T5 - Four 28W Lamps",120]
[null,"Linear Fluorescent: 5' T5 - One 35W Lamp",40]
[null,"Linear Fluorescent: 5' T5 - Two 35W Lamps",78]
[null,"Linear Fluorescent: 2' T5HO - One 24W Lamp",27]
[null,"Linear Fluorescent: 2' T5HO - Two 24W Lamps",52]
[null,"Linear Fluorescent: 3' T5HO - One 39W Lamp",43]
[null,"Linear Fluorescent: 3' T5HO - Two 39W Lamps",85]
[null,"Linear Fluorescent: 4' T5HO - One 54W Lamp",62]
[null,"Linear Fluorescent: 4' T5HO - Two 54W Lamps",117]
[null,"Linear Fluorescent: 4' T5HO - Three 54W Lamps",179]
[null,"Linear Fluorescent: 4' T5HO - Four 54W Lamps",234]
[null,"Linear Fluorescent: 4' T5HO - Five 54W Lamps",296]
[null,"Linear Fluorescent: 4' T5HO - Six 54W Lamps",358]
[null,"Linear Fluorescent: 5' T5HO - One 80W Lamp",89]
[null,"Linear Fluorescent: 5' T5HO - Two 80W Lamps",178]
[null,"U-Tube Fluorescent: T8 - One 32W Lamp",39]
[null,"U-Tube Fluorescent: T8 - Two 32W Lamps",62]
[null,"U-Tube Fluorescent: T8 - Three 32W Lamps",92]
[null,"U-Tube Fluorescent: RWT8 - One 28W Lamp",25]
[null,"U-Tube Fluorescent: RWT8 - Two 28W Lamps",49]
[null,"U-Tube Fluorescent: RWT8 - Three 28W Lamps",72]
[null,"Compact Fluorescent: Screw-In Lamp - 5W",5]
[null,"Compact Fluorescent: Screw-In Lamp - 7W",7]
[null,"Compact Fluorescent: Screw-In Lamp - 9W",9]
[null,"Compact Fluorescent: Screw-In Lamp - 13W",13]
[null,"Compact Fluorescent: Screw-In Lamp - 18W",18]
[null,"Compact Fluorescent: Screw-In Lamp - 22W",22]
[null,"Compact Fluorescent: Screw-In Lamp - 26W",26]
[null,"Compact Fluorescent: Screw-In Lamp - 28W",28]
[null,"Compact Fluorescent: Screw-In Lamp - 32W",32]
[null,"Compact Fluorescent: Screw-In Lamp - 36W",36]
[null,"Compact Fluorescent: Screw-In Lamp - 42W",42]
[null,"Compact Fluorescent: Twin/Triple/Quad Tube Lamp - 7W",8]
[null,"Compact Fluorescent: Twin/Triple/Quad Tube Lamp - 9W",10]
[null,"Compact Fluorescent: Twin/Triple/Quad Tube Lamp - 13W",14]
[null,"Compact Fluorescent: Twin/Triple/Quad Tube Lamp - 16W",20]
[null,"Compact Fluorescent: Twin/Triple/Quad Tube Lamp - 18W",21]
[null,"Compact Fluorescent: Twin/Triple/Quad Tube Lamp - 22W",27]
[null,"Compact Fluorescent: Twin/Triple/Quad Tube Lamp - 26W",28]
[null,"Compact Fluorescent: Twin/Triple/Quad Tube Lamp - 28W",34]
[null,"Compact Fluorescent: Twin/Triple/Quad Tube Lamp - 32W",35]
[null,"Compact Fluorescent: Twin/Triple/Quad Tube Lamp - 42W",46]
[null,"Compact Fluorescent: Twin/Triple/Quad Tube Lamp - 57W",62]
[null,"Compact Fluorescent: Twin/Triple/Quad Tube Lamp - 70W",75]
[null,"Compact Fluorescent: T5 Circline - One 22W Lamp",28]
[null,"Compact Fluorescent: T5 Circline - Two 22W Lamps",53]
[null,"Compact Fluorescent: T5 Circline - One 40W Lamp",41]
[null,"Compact Fluorescent: T5 Circline - Two 40W Lamps",80]
[null,"Compact Fluorescent: T5 Circline - One 55W Lamp",55]
[null,"Compact Fluorescent: T5 Circline - Two 55W Lamps",103]
[null,"LED: A-Lamp (8W)",8]
[null,"LED: A-Lamp (8.5W)",8.5]
[null,"LED: A-Lamp (9W)",9]
[null,"LED: A-Lamp (12W)",12]
[null,"LED: A-Lamp (13W)",13]
[null,"LED: A-Lamp (13.5W)",13.5]
[null,"LED: A-Lamp (14W)",14]
[null,"LED: A-Lamp (17W)",17]
[null,"LED: BR30 (11W)",11]
[null,"LED: BR30 (12W)",12]
[null,"LED: BR30 (14W)",14]
[null,"LED: BR40 (11W)",11]
[null,"LED: BR40 (14W)",14]
[null,"LED: BR40 (18W)",18]
[null,"LED: Candle (1.8W)",1.8]
[null,"LED: Candle (2W)",2]
[null,"LED: Candle (3W)",3]
[null,"LED: Candle (4W)",4]
[null,"LED: Globe (1.8W)",1.8]
[null,"LED: Globe (8W)",8]
[null,"LED: MR16 (4W)",4]
[null,"LED: MR16 (5.5W)",5.5]
[null,"LED: MR16 (6W)",6]
[null,"LED: MR16 (7W)",7]
[null,"LED: MR16 (8W)",8]
[null,"LED: MR16 (10W)",10]
[null,"LED: PAR20 (7W)",7]
[null,"LED: PAR20 (8W)",8]
[null,"LED: PAR20 (9W)",9]
[null,"LED: PAR30 (10W)",10]
[null,"LED: PAR30 (11W)",11]
[null,"LED: PAR30 (12W)",12]
[null,"LED: PAR30 (13W)",13]
[null,"LED: PAR30 (14W)",14]
[null,"LED: PAR30 (15W)",15]
[null,"LED: PAR38 (13W)",13]
[null,"LED: PAR38 (14W)",14]
[null,"LED: PAR38 (15W)",15]
[null,"LED: PAR38 (17W)",17]
[null,"LED: PAR38 (18W)",18]
[null,"LED: PAR38 (19W)",19]
[null,"LED: PAR38 (20W)",20]
[null,"LED: R20 (9W)",9]
[null,"LED: 2ft T8 Retrofit Tube",9]
[null,"LED: 4ft T8 Retrofit Tube",18]
[null,"Exit Sign: LED - 2W",2]
[null,"**No Upgrade (controls only)**",0]
[]
[null,"Proposed Sensor","Savings Factor"]
[null,"None",1]
[null,"Occ. Sensor Ceiling Mount (line volt)",0.9]
[null,"Occ. Sensor Ceiling Mount (low volt)",0.9]
[null,"Dual Tech. Occ.Sens Ceiling (line v)",0.9]
[null,"Dual Tech. Occ.Sens Ceiling (low v)",0.9]
[null,"Occ. Sens. Wall/Corner Mount (line v)",0.9]
[null,"Occ. Sens. Wall/Corner Mount (low v)",0.9]
[null,"Dual Tech Occ.Sens Wall/Corner (line v)",0.9]
[null,"Dual Tech Occ.Sens Wall/Corner (low v)",0.9]
[null,"Occupancy Sensor Wall Switch",0.9]
[null,"Dual Tech Occ. Sensor Wall Switch",0.9]
[null,"Occ.Sensor for High Bay Fixtures",0.9]
[null,"Photocell Control w/ Dimmable Balast",0.8]
[null,"Programmable Time Clock",0.9]
[null,"Add'l Power Pack (a.k.a. Relay)","N/A"]
[]
[]
[null,"Existing Fixture","Wattage"]
[null,"Linear Fluorescent: 2' T12 - One 20W Lamp",25]
[null,"Linear Fluorescent: 2' T12 - Two 20W Lamps",50]
[null,"Linear Fluorescent: 2' T12 - Three 20W Lamps",75]
[null,"Linear Fluorescent: 2' T12 - Four 20W Lamps",100]
[null,"Linear Fluorescent: 3' T12 - One 30W Lamp",46]
[null,"Linear Fluorescent: 3' T12 - Two 30W Lamps",79]
[null,"Linear Fluorescent: 3' T12 - Three 30W Lamps",125]
[null,"Linear Fluorescent: 3' T12 - Four 30W Lamps",158]
[null,"Linear Fluorescent: 4' T12 - One 40W Lamp",46]
[null,"Linear Fluorescent: 4' T12 - Two 40W Lamps",88]
[null,"Linear Fluorescent: 4' T12 - Three 40W Lamps",127]
[null,"Linear Fluorescent: 4' T12 - Four 40W Lamps",176]
[null,"Linear Fluorescent: 4' T12 - Six 40W Lamps",254]
[null,"Linear Fluorescent: 8' T12 - One 75W Lamp",92]
[null,"Linear Fluorescent: 8' T12 - Two 75W Lamps",158]
[null,"Linear Fluorescent: 8' T12HO - One 110W Lamp",140]
[null,"Linear Fluorescent: 8' T12HO - Two 110W Lamps",252]
[null,"Linear Fluorescent: 8' T12VHO - One 215W Lamp",230]
[null,"Linear Fluorescent: 8' T12VHO - Two 215W Lamps",440]
[null,"Linear Fluorescent: 2' T8 - One 17W Lamp",22]
[null,"Linear Fluorescent: 2' T8 - Two 17W Lamps",33]
[null,"Linear Fluorescent: 2' T8 - Three 17W Lamps",53]
[null,"Linear Fluorescent: 2' T8 - Four 17W Lamps",63]
[null,"Linear Fluorescent: 3' T8 - One 25W Lamp",27]
[null,"Linear Fluorescent: 3' T8 - Two 25W Lamps",48]
[null,"Linear Fluorescent: 3' T8 - Three 25W Lamps",68]
[null,"Linear Fluorescent: 3' T8 - Four 25W Lamps",89]
[null,"Linear Fluorescent: 4' T8 - One 32W Lamp",32]
[null,"Linear Fluorescent: 4' T8 - Two 32W Lamps",62]
[null,"Linear Fluorescent: 4' T8 - Three 32W Lamps",93]
[null,"Linear Fluorescent: 4' T8 - Four 32W Lamps",114]
[null,"Linear Fluorescent: 4' T8 - Six 32W Lamps",176]
[null,"Linear Fluorescent: 4' RWT8 - One 28W Lamp",25]
[null,"Linear Fluorescent: 4' RWT8 - Two 28W Lamps",49]
[null,"Linear Fluorescent: 4' RWT8 - Three 28W Lamps",72]
[null,"Linear Fluorescent: 4' RWT8 - Four 28W Lamps",96]
[null,"Linear Fluorescent: 4' RWT8 - Six 28W Lamps",142]
[null,"Linear Fluorescent: 5' T8 - One 40W Lamp",46]
[null,"Linear Fluorescent: 5' T8 - Two 40W Lamps",79]
[null,"Linear Fluorescent: 5' T8 - Three 40W Lamps",112]
[null,"Linear Fluorescent: 8' T8 - One 59W Lamp",58]
[null,"Linear Fluorescent: 8' T8 - Two 59W Lamps",110]
[null,"Linear Fluorescent: 8' T8HO - One 86W Lamp",88]
[null,"Linear Fluorescent: 8' T8HO - Two 86W Lamps",160]
[null,"Linear Fluorescent: 2' T5 - One 14W Lamp",18]
[null,"Linear Fluorescent: 2' T5 - Two 14W Lamps",34]
[null,"Linear Fluorescent: 3' T5 - One 21W Lamp",27]
[null,"Linear Fluorescent: 3' T5 - Two 21W Lamps",50]
[null,"Linear Fluorescent: 4' T5 - One 28W Lamp",30]
[null,"Linear Fluorescent: 4' T5 - Two 28W Lamps",60]
[null,"Linear Fluorescent: 4' T5 - Three 28W Lamps",90]
[null,"Linear Fluorescent: 4' T5 - Four 28W Lamps",120]
[null,"Linear Fluorescent: 5' T5 - One 35W Lamp",40]
[null,"Linear Fluorescent: 5' T5 - Two 35W Lamps",78]
[null,"Linear Fluorescent: 2' T5HO - One 24W Lamp",27]
[null,"Linear Fluorescent: 2' T5HO - Two 24W Lamps",52]
[null,"Linear Fluorescent: 3' T5HO - One 39W Lamp",43]
[null,"Linear Fluorescent: 3' T5HO - Two 39W Lamps",85]
[null,"Linear Fluorescent: 4' T5HO - One 54W Lamp",62]
[null,"Linear Fluorescent: 4' T5HO - Two 54W Lamps",117]
[null,"Linear Fluorescent: 4' T5HO - Three 54W Lamps",179]
[null,"Linear Fluorescent: 4' T5HO - Four 54W Lamps",234]
[null,"Linear Fluorescent: 4' T5HO - Five 54W Lamps",296]
[null,"Linear Fluorescent: 4' T5HO - Six 54W Lamps",358]
[null,"Linear Fluorescent: 5' T5HO - One 80W Lamp",89]
[null,"Linear Fluorescent: 5' T5HO - Two 80W Lamps",178]
[null,"U-Tube Fluorescent: T12 - One 34W Lamp",43]
[null,"U-Tube Fluorescent: T12 - Two 34W Lamps",72]
[null,"U-Tube Fluorescent: T12 - Three 34W Lamps",105]
[null,"U-Tube Fluorescent: T8 - One 32W Lamp",39]
[null,"U-Tube Fluorescent: T8 - Two 32W Lamps",62]
[null,"U-Tube Fluorescent: T8 - Three 32W Lamps",92]
[null,"U-Tube Fluorescent: RWT8 - One 28W Lamp",25]
[null,"U-Tube Fluorescent: RWT8 - Two 28W Lamps",49]
[null,"U-Tube Fluorescent: RWT8 - Three 28W Lamps",72]
[null,"Incandescent: 15W Lamp",15]
[null,"Incandescent: 20W Lamp",20]
[null,"Incandescent: 25W Lamp",25]
[null,"Incandescent: 34W Lamp",34]
[null,"Incandescent: 36W Lamp",36]
[null,"Incandescent: 40W Lamp",40]
[null,"Incandescent: 42W Lamp",42]
[null,"Incandescent: 45W Lamp",45]
[null,"Incandescent: 50W Lamp",50]
[null,"Incandescent: 52W Lamp",52]
[null,"Incandescent: 54W Lamp",54]
[null,"Incandescent: 55W Lamp",55]
[null,"Incandescent: 60W Lamp",60]
[null,"Incandescent: 65W Lamp",65]
[null,"Incandescent: 67W Lamp",67]
[null,"Incandescent: 69W Lamp",69]
[null,"Incandescent: 72W Lamp",72]
[null,"Incandescent: 75W Lamp",75]
[null,"Incandescent: 80W Lamp",80]
[null,"Incandescent: 85W Lamp",85]
[null,"Incandescent: 90W Lamp",90]
[null,"Incandescent: 93W Lamp",93]
[null,"Incandescent: 95W Lamp",95]
[null,"Incandescent: 100W Lamp",100]
[null,"Incandescent: 120W Lamp",120]
[null,"Incandescent: 125W Lamp",125]
[null,"Incandescent: 135W Lamp",135]
[null,"Incandescent: 150W Lamp",150]
[null,"Incandescent: 170W Lamp",170]
[null,"Incandescent: 200W Lamp",200]
[null,"Incandescent: 250W Lamp",250]
[null,"Incandescent: 300W Lamp",300]
[null,"Incandescent: 400W Lamp",400]
[null,"Incandescent: 448W Lamp",448]
[null,"Incandescent: 750W Lamp",750]
[null,"Incandescent: 1000W Lamp",1000]
[null,"Incandescent: 1500W Lamp",1500]
[null,"Incandescent: 2000W Lamp",2000]
[null,"Halogen Incandescent: 35W Lamp",35]
[null,"Halogen Incandescent: 40W Lamp",40]
[null,"Halogen Incandescent: 42W Lamp",42]
[null,"Halogen Incandescent: 45W Lamp",45]
[null,"Halogen Incandescent: 50W Lamp",50]
[null,"Halogen Incandescent: 52W Lamp",52]
[null,"Halogen Incandescent: 55W Lamp",55]
[null,"Halogen Incandescent: 60W Lamp",60]
[null,"Halogen Incandescent: 72W Lamp",72]
[null,"Halogen Incandescent: 75W Lamp",75]
[null,"Halogen Incandescent: 90W Lamp",90]
[null,"Halogen Incandescent: 100W Lamp",100]
[null,"Halogen Incandescent: 150W Lamp",150]
[null,"Halogen Incandescent: 200W Lamp",200]
[null,"Halogen Incandescent: 250W Lamp",250]
[null,"Halogen Incandescent: 300W Lamp",300]
[null,"Halogen Incandescent: 400W Lamp",400]
[null,"Halogen Incandescent: 425W Lamp",425]
[null,"Halogen Incandescent: 500W Lamp",500]
[null,"Halogen Incandescent: 750W Lamp",750]
[null,"Halogen Incandescent: 900W Lamp",900]
[null,"Halogen Incandescent: 1000W Lamp",1000]
[null,"Halogen Incandescent: 1200W Lamp",1200]
[null,"Compact Fluorescent: Screw-In Lamp - 5W",5]
[null,"Compact Fluorescent: Screw-In Lamp - 7W",7]
[null,"Compact Fluorescent: Screw-In Lamp - 9W",9]
[null,"Compact Fluorescent: Screw-In Lamp - 13W",13]
[null,"Compact Fluorescent: Screw-In Lamp - 18W",18]
[null,"Compact Fluorescent: Screw-In Lamp - 22W",22]
[null,"Compact Fluorescent: Screw-In Lamp - 26W",26]
[null,"Compact Fluorescent: Screw-In Lamp - 28W",28]
[null,"Compact Fluorescent: Screw-In Lamp - 32W",32]
[null,"Compact Fluorescent: Screw-In Lamp - 36W",36]
[null,"Compact Fluorescent: Screw-In Lamp - 42W",42]
[null,"Compact Fluorescent: Twin/Triple/Quad Tube Lamp - 7W",8]
[null,"Compact Fluorescent: Twin/Triple/Quad Tube Lamp - 9W",10]
[null,"Compact Fluorescent: Twin/Triple/Quad Tube Lamp - 13W",14]
[null,"Compact Fluorescent: Twin/Triple/Quad Tube Lamp - 16W",20]
[null,"Compact Fluorescent: Twin/Triple/Quad Tube Lamp - 18W",21]
[null,"Compact Fluorescent: Twin/Triple/Quad Tube Lamp - 22W",27]
[null,"Compact Fluorescent: Twin/Triple/Quad Tube Lamp - 26W",28]
[null,"Compact Fluorescent: Twin/Triple/Quad Tube Lamp - 28W",34]
[null,"Compact Fluorescent: Twin/Triple/Quad Tube Lamp - 32W",35]
[null,"Compact Fluorescent: Twin/Triple/Quad Tube Lamp - 42W",46]
[null,"Compact Fluorescent: Twin/Triple/Quad Tube Lamp - 57W",62]
[null,"Compact Fluorescent: Twin/Triple/Quad Tube Lamp - 70W",75]
[null,"Compact Fluorescent: T5 Circline - One 22W Lamp",28]
[null,"Compact Fluorescent: T5 Circline - Two 22W Lamps",53]
[null,"Compact Fluorescent: T5 Circline - One 40W Lamp",41]
[null,"Compact Fluorescent: T5 Circline - Two 40W Lamps",80]
[null,"Compact Fluorescent: T5 Circline - One 55W Lamp",55]
[null,"Compact Fluorescent: T5 Circline - Two 55W Lamps",103]
[null,"HID: Mercury Vapor - 40W Lamp",51]
[null,"HID: Mercury Vapor - 50W Lamp",63]
[null,"HID: Mercury Vapor - 75W Lamp",88]
[null,"HID: Mercury Vapor - 100W Lamp",119]
[null,"HID: Mercury Vapor - 175W Lamp",197]
[null,"HID: Mercury Vapor - 250W Lamp",285]
[null,"HID: Mercury Vapor - 400W Lamp",450]
[null,"HID: Mercury Vapor - 1000W Lamp",1080]
[null,"HID: Metal Halide - 35W Lamp",48]
[null,"HID: Metal Halide - 50W Lamp",68]
[null,"HID: Metal Halide - 70W Lamp",92]
[null,"HID: Metal Halide - 100W Lamp",122]
[null,"HID: Metal Halide - 125W Lamp",150]
[null,"HID: Metal Halide - 150W Lamp",186]
[null,"HID: Metal Halide - 175W Lamp",205]
[null,"HID: Metal Halide - 200W Lamp",232]
[null,"HID: Metal Halide - 225W Lamp",258]
[null,"HID: Metal Halide - 250W Lamp",295]
[null,"HID: Metal Halide - 320W Lamp",365]
[null,"HID: Metal Halide - 360W Lamp",422]
[null,"HID: Metal Halide - 400W Lamp",461]
[null,"HID: Metal Halide - 450W Lamp",502]
[null,"HID: Metal Halide - 750W Lamp",800]
[null,"HID: Metal Halide - 900W Lamp",990]
[null,"HID: Metal Halide - 1000W Lamp",1080]
[null,"HID: Metal Halide - 1500W Lamp",1650]
[null,"HID: Metal Halide - 1650W Lamp",1810]
[null,"HID: High Pressure Sodium - 35W Lamp",44]
[null,"HID: High Pressure Sodium - 50W Lamp",61]
[null,"HID: High Pressure Sodium - 70W Lamp",93]
[null,"HID: High Pressure Sodium - 100W Lamp",116]
[null,"HID: High Pressure Sodium - 150W Lamp",173]
[null,"HID: High Pressure Sodium - 200W Lamp",240]
[null,"HID: High Pressure Sodium - 250W Lamp",302]
[null,"HID: High Pressure Sodium - 400W Lamp",469]
[null,"HID: High Pressure Sodium - 1000W Lamp",1090]
[null,"HID: Low Pressure Sodium - 18W Lamp",30]
[null,"HID: Low Pressure Sodium - 35W Lamp",60]
[null,"HID: Low Pressure Sodium - 55W Lamp",80]
[null,"HID: Low Pressure Sodium - 90W Lamp",125]
[null,"HID: Low Pressure Sodium - 135W Lamp",178]
[null,"HID: Low Pressure Sodium - 180W Lamp",220]
[null,"LED: A-Lamp (8W)",8]
[null,"LED: A-Lamp (8.5W)",8.5]
[null,"LED: A-Lamp (9W)",9]
[null,"LED: A-Lamp (12W)",12]
[null,"LED: A-Lamp (13W)",13]
[null,"LED: A-Lamp (13.5W)",13.5]
[null,"LED: A-Lamp (14W)",14]
[null,"LED: A-Lamp (17W)",17]
[null,"LED: BR30 (11W)",11]
[null,"LED: BR30 (12W)",12]
[null,"LED: BR30 (14W)",14]
[null,"LED: BR40 (11W)",11]
[null,"LED: BR40 (14W)",14]
[null,"LED: BR40 (18W)",18]
[null,"LED: Candle (1.8W)",1.8]
[null,"LED: Candle (2W)",2]
[null,"LED: Candle (3W)",3]
[null,"LED: Candle (4W)",4]
[null,"LED: Globe (1.8W)",1.8]
[null,"LED: Globe (8W)",8]
[null,"LED: MR16 (4W)",4]
[null,"LED: MR16 (5.5W)",5.5]
[null,"LED: MR16 (6W)",6]
[null,"LED: MR16 (7W)",7]
[null,"LED: MR16 (8W)",8]
[null,"LED: MR16 (10W)",10]
[null,"LED: PAR20 (7W)",7]
[null,"LED: PAR20 (8W)",8]
[null,"LED: PAR20 (9W)",9]
[null,"LED: PAR30 (10W)",10]
[null,"LED: PAR30 (11W)",11]
[null,"LED: PAR30 (12W)",12]
[null,"LED: PAR30 (13W)",13]
[null,"LED: PAR30 (14W)",14]
[null,"LED: PAR30 (15W)",15]
[null,"LED: PAR38 (13W)",13]
[null,"LED: PAR38 (14W)",14]
[null,"LED: PAR38 (15W)",15]
[null,"LED: PAR38 (17W)",17]
[null,"LED: PAR38 (18W)",18]
[null,"LED: PAR38 (19W)",19]
[null,"LED: PAR38 (20W)",20]
[null,"LED: R20 (9W)",9]
[null,"LED: 2ft T8 Retrofit Tube",9]
[null,"LED: 4ft T8 Retrofit Tube",18]
[null,"Exit Sign: Incandescent - One 5W Lamp",5]
[null,"Exit Sign: Incandescent - Two 5W Lamps",10]
[null,"Exit Sign: Incandescent - One 10W Lamp",10]
[null,"Exit Sign: Incandescent - Two 10W Lamps",20]
[null,"Exit Sign: Incandescent - One 15W Lamp",15]
[null,"Exit Sign: Incandescent - Two 15W Lamps",30]
[null,"Exit Sign: Incandescent - One 20W Lamp",20]
[null,"Exit Sign: Incandescent - Two 20W Lamps",40]
[null,"Exit Sign: Incandescent - One 25W Lamp",25]
[null,"Exit Sign: Incandescent - Two 25W Lamps",50]
[null,"Exit Sign: Incandescent - One 34W Lamp",34]
[null,"Exit Sign: Incandescent - Two 34W Lamps",68]
[null,"Exit Sign: Incandescent - One 40W Lamp",40]
[null,"Exit Sign: Incandescent - Two 40W Lamps",80]
[null,"Exit Sign: Incandescent - One 50W Lamp",50]
[null,"Exit Sign: Incandescent - Two 50W Lamps",100]
[null,"Exit Sign: Fluorescent - One 5W Lamp",9]
[null,"Exit Sign: Fluorescent - Two 5W Lamps",20]
[null,"Exit Sign: Fluorescent - One 7W Lamp",10]
[null,"Exit Sign: Fluorescent - Two 7W Lamps",21]
[null,"Exit Sign: Fluorescent - One 9W Lamp",12]
[null,"Exit Sign: Fluorescent - Two 9W Lamps",20]
[null,"Exit Sign: LED - 2W",2]

{"sheet":"Lighting Sample Size Calculator","index":26,"n_rows":103,"n_cols":25,"rows_kept":103,"cut":false,"hidden":false,"merged":[[2,1,2,17]]}
[null,"Lighting Sample Size Calculator "]
[]
[null,"If modeled annual runtime hours from Lighting tab Column AK vary by more than 15% from default, this must be supported through on-site metering of a sample of fixtures as determined by the Lighting Sample Size Calculator below. For default annual lighting runtime hours by building type please reference Program Guidelines v4.2, Section 4.6.3, Table 4-3 and 4-4. Exterior lighting assumes runtime of 12 hours per day x 365 days per year. "]
[]
[null,"Monitoring Year:"]
[null,"Completed By:"]
[null,"Completion Date:"]
[null,"Enter the number of buildings for this calculation:"]
[]
[null,"Building Type or Space Activity","Gross Lighting Area (SqFt)","Number of Room Areas","Baseline Lighting Power Density Allowance (W/SqFt)","Proposed Lighting Power Density (W/SqFt)","Change in lighting power [kW]","Projected Average Hours of Operation","Interactive Factor","Energy Savings (ES) (kWh/year)","Coincidence Factor (CF)","Coefficient of Variance (CV)","Demand Savings (kW)","ES*CV","Sum ((ES*CV)2/ Nk)","nk/n","nk","Sample Size per Usage Group","Intermediate Calculations"]
[null,"ASHRAE space type",0,0,{"$f":"IF(B11=$V$11,0,VLOOKUP(B11,$V$12:$W$103,2,FALSE))","v":0},0,{"$f":"(E11-F11)*C11/1000","v":0},0,{"$f":"IF(B11=$V$11,0,VLOOKUP(B11,$V$12:$Y$103,4,FALSE))","v":0},{"$f":"H11*G11","v":0},{"$f":"IF(B11=$V$11,0,VLOOKUP(B11,$V$12:$X$103,3,FALSE))","v":0},0.5,{"$f":"G11*K11","v":0},{"$f":"0.5*J11","v":0},{"$f":"IF(J11=0,0,(N11^2/D11))","v":0},{"$f":"IF(SUM($N$11:$N$30)=0,0,N11/SUM($N$11:$N$30))","v":0},{"$f":"P11*$R$42","v":0},{"$f":"IF(J11<min_savings*SUM($J$11:$J$30),0,MIN(ROUNDUP(Q11,0),D11))","v":0},{"$f":"IF(R11=0,0,IF(D11=0,0,(((J11*L11)^2/R11)*(1-R11/D11))))","v":0},null,null,"ASHRAE space type","LPD","CF","IF"]
[null,"ASHRAE space type",0,0,{"$f":"IF(B12=$V$11,0,VLOOKUP(B12,$V$12:$W$103,2,FALSE))","v":0},0,{"$f":"(E12-F12)*C12/1000","v":0},0,0,{"$f":"H12*G12","v":0},0,0.5,{"$f":"G12*K12","v":0},{"$f":"0.5*J12","v":0},{"$f":"IF(J12=0,0,(N12^2/D12))","v":0},0,0,{"$f":"IF(J12<min_savings*SUM($J$11:$J$30),0,MIN(ROUNDUP(Q12,0),D12))","v":0},0,null,null,"Office-Enclosed",1.1000000000000001,0.71,1.05]
[null,"ASHRAE space type",0,0,0,0,0,0,0,0,0,0.5,0,0,0,0,0,0,0,null,null,"Office-Open Plan",1.1000000000000001,0.71,1.05]
[null,"ASHRAE space type",0,0,0,0,0,0,0,0,0,0.5,0,0,0,0,0,0,0,null,null,"Conference/Meeting/Multipurpose Room",1.3,0.69,1.05]
[null,"ASHRAE space type",0,0,0,0,0,0,0,0,0,0.5,0,0,0,0,0,0,0,null,null,"Classroom/Lecture/Training",1.4,0.41,1.05]
[null,"ASHRAE space type",0,0,0,0,0,0,0,0,0,0.5,0,0,0,0,0,0,0,null,null,"Classroom/Lecture/Training - For Penitentiary",1.3,0.41,1.05]
[null,"ASHRAE space type",0,0,0,0,0,0,0,0,0,0.5,0,0,0,0,0,0,0,null,null,"Lobby",1.3,0.69,1.05]
[null,"ASHRAE space type",0,0,0,0,0,0,0,0,0,0.5,0,0,0,0,0,0,0,null,null,"Lobby - For Hotel",1.1000000000000001,0.69,1.05]
[null,"ASHRAE space type",0,0,0,0,0,0,0,0,0,0.5,0,0,0,0,0,0,0,null,null,"Lobby - For Performing Arts Theater",3.3,0.69,1.05]
[null,"ASHRAE space type",0,0,0,0,0,0,0,0,0,0.5,0,0,0,0,0,0,0,null,null,"Lobby - For Motion Picture Theater",1.1000000000000001,0.69,1.05]
[null,"ASHRAE space type",0,0,0,0,0,0,0,0,0,0.5,0,0,0,0,0,0,0,null,null,"Audience/Seating Area",0.9,0.63,1.05]
[null,"ASHRAE space type",0,0,0,0,0,0,0,0,0,0.5,0,0,0,0,0,0,0,null,null,"Audience/Seating Area - For Gymnasium",0.4,0.63,1.05]
[null,"ASHRAE space type",0,0,0,0,0,0,0,0,0,0.5,0,0,0,0,0,0,0,null,null,"Audience/Seating Area - For Exercise Center",0.3,0.63,1.05]
[null,"ASHRAE space type",0,0,0,0,0,0,0,0,0,0.5,0,0,0,0,0,{"$f":"IF(J24<min_savings*SUM($J$11:$J$30),0,MIN(ROUNDUP(Q24,0),D24))","v":0},0,null,null,"Audience/Seating Area - For Convenience Center",0.7,0.63,1.05]
[null,"ASHRAE space type",0,0,0,0,0,0,0,0,0,0.5,0,0,0,0,0,0,0,null,null,"Audience/Seating Area - For Penitentiary",0.7,0.63,1.05]
[null,"ASHRAE space type",0,0,0,0,0,0,0,0,0,0.5,0,0,0,0,0,0,0,null,null,"Audience/Seating Area - For Religious Buildings",1.7,0.63,1.05]
[null,"ASHRAE space type",0,0,0,0,0,0,0,0,0,0.5,0,0,0,0,0,0,0,null,null,"Audience/Seating Area - For Sports Arena - Outdoor",0.4,0.63,1]
[null,"ASHRAE space type",0,0,0,0,0,0,0,0,0,0.5,0,0,0,0,0,0,0,null,null,"Audience/Seating Area - For Sports Arena - Indoor",0.4,0.63,1.05]
[null,"ASHRAE space type",0,0,0,0,0,0,0,0,0,0.5,0,0,0,0,0,0,0,null,null,"Audience/Seating Area - For Performing Arts Theater",2.6,0.63,1.05]
[null,"ASHRAE space type",0,0,0,0,0,0,0,0,0,0.5,0,0,0,0,0,0,{"$f":"IF(R30=0,0,IF(D30=0,0,(((J30*L30)^2/R30)*(1-R30/D30))))","v":0},null,null,"Audience/Seating Area - For Motion Picture Theater",1.2,0.63,1.05]
[null,"Total",{"$f":"SUM(C11:C30)","v":0},{"$f":"SUM(D11:D30)","v":0},null,null,null,null,null,null,null,null,null,null,null,null,null,null,null,null,null,"Audience/Seating Area - For Transportation",0.5,0.63,1.05]
[null,null,null,null,null,null,null,"Final, Total Sample Size (n)",null,null,null,null,null,null,null,null,null,{"$f":"SUM(R11:R30)","v":0},{"$f":"SUM(S11:S31)","v":0},null,null,"Atrium - First Three Floors",0.6,0.63,1.05]
[null,null,null,null,null,null,null,null,null,null,null,null,null,null,null,null,null,null,null,null,null,"Atrium - Each Additional Floor",0.2,0.63,1.05]
[null,"Other Factors",null,null,null,null,null,null,null,"Global Inputs",null,null,null,null,null,null,null,null,null,null,null,"Lounge/Recreation",1.2,0.63,1.05]
[null,"Min. Monitored Savings",{"$f":"IF(COUNTIF(Q11:Q30,\">0\")=0,0,0.2/COUNTIF(Q11:Q30,\">0\"))","v":0},null,null,null,null,null,null,"Required Precision",null,null,null,null,null,null,null,0.2,null,null,null,"Lounge/Recreation - For Hospital",0.8,0.67,1.05]
[null,"Number of Buildings","Adj t-value",null,null,null,null,null,null,"Critical t-value, (tcrit)",null,null,null,null,null,null,null,{"$f":"IF(bldg_qty=\"\",0,VLOOKUP(bldg_qty,t_value,2,TRUE))","v":0},null,null,null,"Dining Area",0.9,0.63,1.05]
[null,1,1.645,null,null,null,null,null,null,null,null,null,null,null,null,null,null,null,null,null,null,"Dining Area - For Penitentiary",1.3,0.63,1.05]
[null,2,2,null,null,null,null,null,null,"Check",null,null,null,null,null,null,null,null,null,null,null,"Dining Area - For Hotel",1.3,0.63,1.05]
[null,3,2.2999999999999998,null,null,null,null,null,null,"Standard Error",null,null,null,null,null,null,null,{"$f":"SQRT(S32)","v":0},null,null,null,"Dining Area - For Motel",1.3,0.63,1.05]
[null,4,2.5,null,null,null,null,null,null,"%P*ES/tcrit",null,null,null,null,null,null,null,{"$f":"IF($R$36=0,0,$R$35*(SUM(J11:J30)/$R$36))","v":0},null,null,null,"Dining Area - For Bar Lounge/Leisure Dining",1.4,0.63,1.05]
[null,5,2.65,null,null,null,null,null,null,"Ratio(should be < or =1)",null,null,null,null,null,null,null,{"$f":"IF(R40=0,0,R39/R40)","v":0},null,null,null,"Dining Area - For Family Dining",2.1,0.63,1.05]
[null,6,2.66,null,null,null,null,null,null,"Initial Sample Size (n)",null,null,null,null,null,null,null,{"$f":"IF((R40^2+(SUM(O11:O30)))=0,0,(SUM(N11:N30)^2)/(R40^2+(SUM(O11:O30))))","v":0},null,null,null,"Food Preparation",1.2,0.63,1.05]
[null,null,null,null,null,null,null,null,null,null,null,null,null,null,null,null,null,null,null,null,null,"Laboratory",1.4,0.63,1.05]
[null,null,null,null,null,null,null,null,null,null,null,null,null,null,null,null,null,null,null,null,null,"Restrooms",0.9,0.63,1.05]
[null,null,null,null,null,null,null,null,null,null,null,null,null,null,null,null,null,null,null,null,null,"Dressing/Locker/Fitting Room",0.6,0.63,1.05]
[null,null,null,null,null,null,null,null,null,null,null,null,null,null,null,null,null,null,null,null,null,"Corridor/Transportation",0.5,0.63,1.05]
[null,null,null,null,null,null,null,null,null,null,null,null,null,null,null,null,null,null,null,null,null,"Corridor/Transportation - For Hospital",1,0.67,1.05]
[null,null,null,null,null,null,null,null,null,null,null,null,null,null,null,null,null,null,null,null,null,"Corridor/Transportation - For Manufacturing Facility",0.5,0.71,1.05]
[null,null,null,null,null,null,null,null,null,null,null,null,null,null,null,null,null,null,null,null,null,"Stairs - Active",0.6,0.9,1.05]
[null,null,null,null,null,null,null,null,null,null,null,null,null,null,null,null,null,null,null,null,null,"Active Storage",0.8,0.63,1.05]
[null,null,null,null,null,null,null,null,null,null,null,null,null,null,null,null,null,null,null,null,null,"Active Storage - For Hospital",0.9,0.67,1.05]
[null,null,null,null,null,null,null,null,null,null,null,null,null,null,null,null,null,null,null,null,null,"Inactive Storage",0.3,0.63,1.05]
[null,null,null,null,null,null,null,null,null,null,null,null,null,null,null,null,null,null,null,null,null,"Inactive Storage - For Museum",0.8,0.63,1.05]
[null,null,null,null,null,null,null,null,null,null,null,null,null,null,null,null,null,null,null,null,null,"Gymnasium/Exercise Center - Playing Area",1.4,0.63,1.05]
[null,null,null,null,null,null,null,null,null,null,null,null,null,null,null,null,null,null,null,null,null,"Gymnasium/Exercise Center - Exercise Area",0.9,0.63,1.05]
[null,null,null,null,null,null,null,null,null,null,null,null,null,null,null,null,null,null,null,null,null,"Courthouse - Courtroom",1.9,0.63,1.05]
[null,null,null,null,null,null,null,null,null,null,null,null,null,null,null,null,null,null,null,null,null,"Confinement Cells",0.9,0.63,1.05]
[null,null,null,null,null,null,null,null,null,null,null,null,null,null,null,null,null,null,null,null,null,"Courthouse - Judges Chambers",1.3,0.63,1.05]
[null,null,null,null,null,null,null,null,null,null,null,null,null,null,null,null,null,null,null,null,null,"Fire Station Engine Room",0.8,0.63,1]
[null,null,null,null,null,null,null,null,null,null,null,null,null,null,null,null,null,null,null,null,null,"Fire Station - Sleeping Quarters",0.3,0.63,1.05]
[null,null,null,null,null,null,null,null,null,null,null,null,null,null,null,null,null,null,null,null,null,"Post Office- Sorting Area ",1.2,0.71,1.05]
[null,null,null,null,null,null,null,null,null,null,null,null,null,null,null,null,null,null,null,null,null,"Convention Center - Exhibit Space",1.3,0.63,1.05]
[null,null,null,null,null,null,null,null,null,null,null,null,null,null,null,null,null,null,null,null,null,"Library - Card File and Cataloging",1.1000000000000001,0.71,1.05]
[null,null,null,null,null,null,null,null,null,null,null,null,null,null,null,null,null,null,null,null,null,"Library - Stacks",1.7,0.71,1.05]
[null,null,null,null,null,null,null,null,null,null,null,null,null,null,null,null,null,null,null,null,null,"Library - Reading Area",1.2,0.71,1.05]
[null,null,null,null,null,null,null,null,null,null,null,null,null,null,null,null,null,null,null,null,null,"Hospital - Emergency",2.7,0.67,1.05]
[null,null,null,null,null,null,null,null,null,null,null,null,null,null,null,null,null,null,null,null,null,"Hospital - Recovery",0.8,0.67,1.05]
[null,null,null,null,null,null,null,null,null,null,null,null,null,null,null,null,null,null,null,null,null,"Hospital - Nurse Station",1,0.67,1.05]
[null,null,null,null,null,null,null,null,null,null,null,null,null,null,null,null,null,null,null,null,null,"Hospital - Exam/Treatment",1.5,0.67,1.05]
[null,null,null,null,null,null,null,null,null,null,null,null,null,null,null,null,null,null,null,null,null,"Hospital - Pharmacy",1.2,0.67,1.05]
[null,null,null,null,null,null,null,null,null,null,null,null,null,null,null,null,null,null,null,null,null,"Hospital - Patient Room",0.7,0.67,1.05]
[null,null,null,null,null,null,null,null,null,null,null,null,null,null,null,null,null,null,null,null,null,"Hospital - Operating Room",2.2000000000000002,0.67,1.05]
[null,null,null,null,null,null,null,null,null,null,null,null,null,null,null,null,null,null,null,null,null,"Hospital - Nursery",0.6,0.67,1.05]
[null,null,null,null,null,null,null,null,null,null,null,null,null,null,null,null,null,null,null,null,null,"Hospital - Medical Supply",1.4,0.67,1.05]
[null,null,null,null,null,null,null,null,null,null,null,null,null,null,null,null,null,null,null,null,null,"Hospital - Physical Therapy",0.9,0.67,1.05]
[null,null,null,null,null,null,null,null,null,null,null,null,null,null,null,null,null,null,null,null,null,"Hospital - Radiology",0.4,0.67,1.05]
[null,null,null,null,null,null,null,null,null,null,null,null,null,null,null,null,null,null,null,null,null,"Hospital - Laundry",0.6,0.67,1.05]
[null,null,null,null,null,null,null,null,null,null,null,null,null,null,null,null,null,null,null,null,null,"Automotive - Service/Repair",0.7,0.71,1.05]
[null,null,null,null,null,null,null,null,null,null,null,null,null,null,null,null,null,null,null,null,null,"Manufacturing - Low Bay (<25 ft floor to ceiling height)",1.2,0.71,1.05]
[null,null,null,null,null,null,null,null,null,null,null,null,null,null,null,null,null,null,null,null,null,"Manufacturing - High Bay (>=25 ft floor to ceiling height)",1.7,0.71,1.05]
[null,null,null,null,null,null,null,null,null,null,null,null,null,null,null,null,null,null,null,null,null,"Manufacturing - Detailed Manufacturing",2.1,0.71,1.05]
[null,null,null,null,null,null,null,null,null,null,null,null,null,null,null,null,null,null,null,null,null,"Manufacturing - Equipment Room",1.2,0.71,1.05]
[null,null,null,null,null,null,null,null,null,null,null,null,null,null,null,null,null,null,null,null,null,"Manufacturing - Control Room",0.5,0.71,1.05]
[null,null,null,null,null,null,null,null,null,null,null,null,null,null,null,null,null,null,null,null,null,"Hotel/Motel Guest Rooms",1.1000000000000001,0.67,1.05]
[null,null,null,null,null,null,null,null,null,null,null,null,null,null,null,null,null,null,null,null,null,"Electrical/Mechanical",1.5,0.71,1.05]
[null,null,null,null,null,null,null,null,null,null,null,null,null,null,null,null,null,null,null,null,null,"Dormitory- Living Quarters",1.1000000000000001,0.67,1.05]
[null,null,null,null,null,null,null,null,null,null,null,null,null,null,null,null,null,null,null,null,null,"Workshop",1.9,0.71,1.05]
[null,null,null,null,null,null,null,null,null,null,null,null,null,null,null,null,null,null,null,null,null,"Museum - General Exhibition",1,0.71,1.05]
[null,null,null,null,null,null,null,null,null,null,null,null,null,null,null,null,null,null,null,null,null,"Museum - Restoration",1.7,0.71,1.05]
[null,null,null,null,null,null,null,null,null,null,null,null,null,null,null,null,null,null,null,null,null,"Bank/Office - Banking Activity Area",1.5,0.71,1.05]
[null,null,null,null,null,null,null,null,null,null,null,null,null,null,null,null,null,null,null,null,null,"Religious Buildings - Worship Pulpit, Choir",2.4,0.71,1.05]
[null,null,null,null,null,null,null,null,null,null,null,null,null,null,null,null,null,null,null,null,null,"Religious Buildings - Fellowship Hall",0.9,0.71,1.05]
[null,null,null,null,null,null,null,null,null,null,null,null,null,null,null,null,null,null,null,null,null,"Retail - Sales Area",1.7,0.81,1.05]
[null,null,null,null,null,null,null,null,null,null,null,null,null,null,null,null,null,null,null,null,null,"Retail - Mall Concourse",1.7,0.81,1.05]
[null,null,null,null,null,null,null,null,null,null,null,null,null,null,null,null,null,null,null,null,null,"Sports Arena - Ring Sports Arena",2.7,0.63,1.05]
[null,null,null,null,null,null,null,null,null,null,null,null,null,null,null,null,null,null,null,null,null,"Sports Arena - Court Sports Arena",2.2999999999999998,0.63,1.05]
[null,null,null,null,null,null,null,null,null,null,null,null,null,null,null,null,null,null,null,null,null,"Sports Arena - Indoor Playing Field",1.4,0.63,1.05]
[null,null,null,null,null,null,null,null,null,null,null,null,null,null,null,null,null,null,null,null,null,"Warehouse - Fine Material Storage",1.4,0.63,1.05]
[null,null,null,null,null,null,null,null,null,null,null,null,null,null,null,null,null,null,null,null,null,"Warehouse - Medium/Bulky Material Storage",0.9,0.63,1.05]
[null,null,null,null,null,null,null,null,null,null,null,null,null,null,null,null,null,null,null,null,null,"Parking Garage",0.2,0.63,1]
[null,null,null,null,null,null,null,null,null,null,null,null,null,null,null,null,null,null,null,null,null,"Transportation - Airport - Concourse",0.6,0.63,1.05]
[null,null,null,null,null,null,null,null,null,null,null,null,null,null,null,null,null,null,null,null,null,"Transportation - Air/Train/Bus - Baggage Area",1,0.63,1.05]
[null,null,null,null,null,null,null,null,null,null,null,null,null,null,null,null,null,null,null,null,null,"Transportation - Terminal - Ticket Counter",1.5,0.63,1.05]

{"sheet":"Other Equipment","index":27,"n_rows":80,"n_cols":42,"rows_kept":80,"cut":false,"hidden":false,"merged":[[31,15,31,23],[32,3,32,4],[32,5,32,6],[32,15,32,23],[33,3,33,4],[33,5,33,6],[33,15,33,23],[34,3,34,4],[34,5,34,6],[34,15,34,23],[40,15,40,23],[41,15,41,23],[42,15,42,23],[43,15,43,23],[44,15,44,23],[45,15,45,23],[46,15,46,23],[47,15,47,23],[35,15,35,23],[78,3,78,15],[79,3,79,15],[50,15,50,23],[24,15,24,23],[23,15,23,23],[25,15,25,23],[26,15,26,23],[27,15,27,23],[28,15,28,23],[29,15,29,23],[30,15,30,23],[36,15,36,23],[28,3,28,4],[29,3,29,4],[30,3,30,4],[28,5,28,6],[29,5,29,6],[30,5,30,6],[37,15,37,23],[38,15,38,23],[69,3,69,15],[70,3,70,15],[71,3,71,15],[39,15,39,23],[72,3,72,15],[73,3,73,15],[74,3,74,15],[75,3,75,15],[76,3,76,15],[77,3,77,15],[24,3,24,4],[24,5,24,6],[25,3,25,4],[25,5,25,6],[44,3,44,4],[44,5,44,6],[49,3,49,4],[49,5,49,6],[50,3,50,4],[50,5,50,6],[45,3,45,4],[45,5,45,6],[46,3,46,4],[46,5,46,6],[48,15,48,23],[49,15,49,23],[55,3,55,4],[55,9,55,10],[23,3,23,4],[23,5,23,6],[36,3,36,4],[36,5,36,6],[37,3,37,4],[37,5,37,6],[26,3,26,4],[26,5,26,6],[27,3,27,4],[27,5,27,6],[31,3,31,4],[31,5,31,6],[35,3,35,4],[35,5,35,6],[38,1,43,1],[38,3,38,4],[38,5,38,6],[39,3,39,4],[39,5,39,6],[40,3,40,4],[40,5,40,6],[43,3,43,4],[43,5,43,6],[41,3,41,4],[41,5,41,6],[42,3,42,4],[42,5,42,6],[55,11,55,19],[56,3,56,4],[56,9,56,10],[56,11,56,19],[53,3,53,4],[53,9,53,10],[53,11,53,19],[54,3,54,4],[54,9,54,10],[54,11,54,19],[65,3,65,4],[65,10,65,19],[66,3,66,4],[66,10,66,19],[62,3,62,4],[62,10,62,19],[63,3,63,4],[63,10,63,19],[64,3,64,4],[64,10,64,19],[59,3,59,4],[59,9,59,10],[59,11,59,19],[60,3,60,4],[60,10,60,19],[61,3,61,4],[61,10,61,19],[57,3,57,4],[57,9,57,10],[57,11,57,19],[58,3,58,4],[58,9,58,10],[58,11,58,19],[5,3,5,4],[5,5,5,6],[5,7,5,8],[5,9,5,10],[5,11,5,12],[5,13,5,14],[5,15,5,16],[5,17,5,18],[5,19,5,20],[5,35,5,36],[5,37,5,38],[5,39,5,40],[5,41,5,42],[6,3,6,4],[6,5,6,6],[6,7,6,8],[6,9,6,10],[6,11,6,12],[5,21,5,22],[5,23,5,24],[5,25,5,26],[5,27,5,28],[5,29,5,30],[5,31,5,32],[6,37,6,38],[6,39,6,40],[6,41,6,42],[6,29,6,30],[6,31,6,32],[6,33,6,34],[6,35,6,36],[6,25,6,26],[6,27,6,28],[6,19,6,20],[6,21,6,22],[6,23,6,24],[5,33,5,34],[7,19,7,20],[7,21,7,22],[7,23,7,24],[7,25,7,26],[7,27,7,28],[7,17,7,18],[7,3,7,4],[7,5,7,6],[7,7,7,8],[7,9,7,10],[7,11,7,12],[7,13,7,14],[7,15,7,16],[6,13,6,14],[6,15,6,16],[6,17,6,18],[12,2,12,12],[13,39,13,40],[13,41,13,42],[13,29,13,30],[13,31,13,32],[13,33,13,34],[13,35,13,36],[13,37,13,38],[7,41,7,42],[8,3,8,4],[8,5,8,6],[8,7,8,8],[8,9,8,10],[8,11,8,12],[8,13,8,14],[8,15,8,16],[8,17,8,18],[8,19,8,20],[7,29,7,30],[7,31,7,32],[7,33,7,34],[7,35,7,36],[7,37,7,38],[7,39,7,40],[8,37,8,38],[8,39,8,40],[8,41,8,42],[8,21,8,22],[8,23,8,24],[8,25,8,26],[8,27,8,28],[8,29,8,30],[8,31,8,32],[8,33,8,34],[8,35,8,36],[13,27,13,28],[13,15,13,16],[13,17,13,18],[13,19,13,20],[13,21,13,22],[13,23,13,24],[13,25,13,26],[13,3,13,4],[13,5,13,6],[13,7,13,8],[13,9,13,10],[13,11,13,12],[13,13,13,14],[14,3,14,4],[14,5,14,6],[14,7,14,8],[14,9,14,10],[14,11,14,12],[14,13,14,14],[14,15,14,16],[14,17,14,18],[15,3,15,4],[15,5,15,6],[15,7,15,8],[15,9,15,10],[15,11,15,12],[15,13,15,14],[15,15,15,16],[15,17,15,18],[14,19,14,20],[14,21,14,22],[14,23,14,24],[14,25,14,26],[14,27,14,28],[14,29,14,30],[15,23,15,24],[15,25,15,26],[15,41,15,42],[15,29,15,30],[15,31,15,32],[15,33,15,34],[15,35,15,36],[15,37,15,38],[15,27,15,28],[15,19,15,20],[15,21,15,22],[14,31,14,32],[14,33,14,34],[14,35,14,36],[14,37,14,38],[14,39,14,40],[15,39,15,40],[14,41,14,42],[16,41,16,42],[16,31,16,32],[16,33,16,34],[16,35,16,36],[16,37,16,38],[16,39,16,40],[16,17,16,18],[16,19,16,20],[16,21,16,22],[16,23,16,24],[16,25,16,26],[16,27,16,28],[16,29,16,30],[20,2,20,12],[17,37,17,38],[18,3,18,4],[18,5,18,6],[18,7,18,8],[18,9,18,10],[18,11,18,12],[17,21,17,22],[17,23,17,24],[17,25,17,26],[17,27,17,28],[17,29,17,30],[17,31,17,32],[17,33,17,34],[17,35,17,36],[18,39,18,40],[18,41,18,42],[17,3,17,4],[17,5,17,6],[17,7,17,8],[17,9,17,10],[17,11,17,12],[17,13,17,14],[17,15,17,16],[17,39,17,40],[17,41,17,42],[2,1,2,8],[2,9,2,13],[16,3,16,4],[16,5,16,6],[18,37,18,38],[18,25,18,26],[18,27,18,28],[18,29,18,30],[18,31,18,32],[18,33,18,34],[18,35,18,36],[18,13,18,14],[18,15,18,16],[18,17,18,18],[18,19,18,20],[18,21,18,22],[18,23,18,24],[16,7,16,8],[16,9,16,10],[16,11,16,12],[16,13,16,14],[16,15,16,16],[17,17,17,18],[17,19,17,20]]}
[null,"Other Equipment  (where applicable)"]
[null,"Instructions"]
[null,"1) Below tables should only be filled out where they affect recommended measures. For example, if recommending low-flow fixtures, 'DHW Temperatures/Fixture Flow Rates' table must be completed. \n2) Read the notes indicated by red corners to assist in properly completing this tab.\n3) If information is not available, such as due to age of the equipment, input values used in the model. \n4) Use the \"Measure ?\" column to indicate items that are affected by the proposed workscope. Reference Program Guidelines v4.2, Section 4.6.3 for data required for various related measures below.\n5) Use the Additional Notes column to provide additonal detail, including special operating conditions, metering completed or other information to support your baseline model assumptions. ",null,null,null,null,null,null,null,"JUMP TO:"]
[]
[{"$f":"IF(SUM(A6:A21)=0,0,1)","v":0},"Temperature Measurements (˚F)"]
[{"$f":"IF(SUM(A7:A13)=0,0,1)","v":0},"Interior Temperatures","Measure ?","Measurement 1",null,"Measurement 2",null,"Measurement 3",null,"Measurement 4",null,"Measurement 5",null,"Measurement 6",null,"Measurement 7",null,"Measurement 8",null,"Measurement 9",null,"Measurement 10",null,"Measurement 11",null,"Measurement 12",null,"Measurement 13",null,"Measurement 14",null,"Measurement 15",null,"Measurement 16",null,"Measurement 17",null,"Measurement 18",null,"Measurement 19",null,"Measurement 20"]
[{"$f":"IF(COUNTBLANK(C7:AQ7)=41,0,1)","v":0},"Location / Apartment Number"]
[{"$f":"IF(COUNTBLANK(C8:AQ8)=41,0,1)","v":0},"Measured Room Temperature "]
[0,"Overheating Observations"]
[0,"Outdoor Temp. at Time of Measurements"]
[0,"Was heating/cooling system in operation at time of measurements?"]
[0,"Avg. Indoor Temp. in Heating Season"]
[0,"Additional Notes"]
[{"$f":"IF(SUM(A15:A21)=0,0,1)","v":0},"DHW Temperatures/ Fixture Flow Rates","Measure ?","Measurement 1",null,"Measurement 2",null,"Measurement 3",null,"Measurement 4",null,"Measurement 5",null,"Measurement 6",null,"Measurement 7",null,"Measurement 8",null,"Measurement 9",null,"Measurement 10",null,"Measurement 11",null,"Measurement 12",null,"Measurement 13",null,"Measurement 14",null,"Measurement 15",null,"Measurement 16",null,"Measurement 17",null,"Measurement 18",null,"Measurement 19",null,"Measurement 20"]
[0,"Location / Apartment Number"]
[0,"Measured Tap Temperature "]
[0,"Showerhead Flow Rate (GPM)"]
[0,"Kitchen Faucet Flow Rate (GPM)"]
[0,"Bathroom Faucet Flow Rate (GPM)"]
[{"$f":"IF(AND(E20=\"\",H20=\"\",K20=\"\")=TRUE,0,1)","v":0},null,null,"Showerhead GPM",{"$f":"IF(D15>0,AVERAGEIF(D17:AQ17,\">0\",D17:AQ17),\"\")","v":""},null,"Kitchen Faucet GPM",{"$f":"IF(D15>0,AVERAGEIF(D18:AQ18,\">0\",D18:AQ18),\"\")","v":""},null,"Bathroom Faucet GPM",{"$f":"IF(D15>0,AVERAGEIF(D19:AQ19,\">0\",D19:AQ19),\"\")","v":""}]
[{"$f":"IF(C21=\"\",0,1)","v":0},"Additional Notes"]
[{"$f":"IF(SUM(A24:A51)=0,0,1)","v":0}]
[{"$f":"IF(SUM(A24:A51)=0,0,1)","v":0},"Appliances, Office Equipment, Etc."]
[{"$f":"IF(SUM(A25:A37)=0,0,1)","v":0},"Common/Commercial Area Appliances","Measure ?","Location of Equipment",null,"Manufacturer",null,"Model No.","Energy Star?","Qty. of Identical Units","Year Manufactured","Capacity\n(ft.3)","Annual kWh/unit","Annual MMBtu/unit","Fuel Source","Additional Notes"]
[{"$f":"IF(COUNTBLANK(C25:X25)=22,0,1)","v":0},"Refrigerator",null,null,null,null,null,null,"","","","","","",""]
[{"$f":"IF(COUNTBLANK(C26:X26)=22,0,1)","v":0},"Stove/Range",null,null,null,null,null,null,"",null,"","",null,"",null,""]
[0,"Vending Machine",null,null,null,null,null,null,"",null,"","","","",""]
[{"$f":"IF(B28=\"\",0,1)","v":0}]
[{"$f":"IF(B29=\"\",0,1)","v":0}]
[0]
[0]
[0]
[0]
[0]
[0]
[0]
[0,null,null,null,null,null,null,null,"","","","","","","",""]
[{"$f":"IF(SUM(A39:A51)=0,0,1)","v":0},"Tenant/Unit/Apartment Appliances","Measure ?","List Apartment Numbers",null,"Manufacturer",null,"Model No.","Energy Star?","Qty. of Identical Units","Year Manufactured","Capacity\n(ft.3)","Annual kWh/unit","Annual MMBtu/unit","Fuel Source","Additional Notes"]
[{"$f":"IF(COUNTBLANK(C39:X39)=22,0,1)","v":0},"Refrigerators",null,null,null,null,null,null,null,null,null,null,null,null,""]
[0,null,null,null,null,null,null,null,null,null,null,null,null,null,""]
[0,null,null,null,null,null,null,null,null,null,null,null,null,null,""]
[0,null,null,null,null,null,null,null,null,null,null,null,null,null,""]
[0,null,null,null,null,null,null,null,null,null,null,null,null,null,""]
[0,null,null,null,null,null,null,null,null,null,null,null,null,null,""]
[0,"Dishwashers",null,null,null,null,null,null,"","","","","","","",""]
[0,"Stove/Range",null,null,null,null,null,null,"","","","","",null,null,""]
[{"$f":"IF(B47=\"\",0,1)","v":0},null,null,null,null,null,null,null,"","","","","",null,null,""]
[0]
[0]
[0,null,null,null,null,null,null,null,"","","","","","",null,""]
[0,null,null,null,null,null,null,null,"","","","","",""]
[{"$f":"IF(SUM(A54:A67)=0,0,1)","v":0}]
[{"$f":"IF(SUM(A54:A67)=0,0,1)","v":0},"Laundry Equipment"]
[{"$f":"IF(SUM(A55:A60)=0,0,1)","v":0},"Common/Commercial Area Laundry","Measure ?","Manufacturer",null,"Model No.","Energy Star?","Qty. of Identical Units","Fuel Source","Location",null,"Additional Notes"]
[{"$f":"IF(COUNTBLANK(C55:T55)=18,0,1)","v":0},"Washer (Type 1)",null,null,null,null,null,null,""]
[{"$f":"IF(COUNTBLANK(C56:T56)=18,0,1)","v":0},"Washer (Type 2)",null,null,null,null,null,null,"",null,null,""]
[0,"Washer (Type 3)",null,null,null,null,null,null,""]
[0,"Dryer (Type 1)",null,null,null,null,"",null,null,"",null,""]
[0,"Dryer (Type 2)",null,null,null,null,"","",null,""]
[0,"Dryer (Type 3)",null,null,null,"","","",null,"",null,""]
[{"$f":"IF(SUM(A62:A67)=0,0,1)","v":0},"Tenant/Unit/Apartment Laundry","Measure ?","Manufacturer",null,"Model No.","Energy Star?","Qty. of Identical Units","Fuel Source","% of Apts. with Equipment","Additional Notes"]
[{"$f":"IF(COUNTBLANK(C62:T62)=18,0,1)","v":0},"Washer (Type 1)",null,null,null,null,""]
[{"$f":"IF(COUNTBLANK(C63:T63)=18,0,1)","v":0},"Washer (Type 2)",null,null,null,null,""]
[0,"Washer (Type 3)"]
[0,"Dryer (Type 1)"]
[0,"Dryer (Type 2)"]
[0,"Dryer (Type 3)"]
[{"$f":"IF(SUM(A71:A80)=0,0,1)","v":0}]
[{"$f":"IF(SUM(A71:A80)=0,0,1)","v":0},"Other Plug Loads"]
[{"$f":"IF(SUM(A71:A80)=0,0,1)","v":0},"Name ","Measure ?","System Details/Additional Notes"]
[{"$f":"IF(B71=\"\",0,1)","v":0}]
[{"$f":"IF(B72=\"\",0,1)","v":0}]
[0]
[0]
[0]
[0]
[0]
[0]
[0]
[0]

{"sheet":"Modeling Approach","index":28,"n_rows":45,"n_cols":7,"rows_kept":45,"cut":false,"hidden":false,"merged":[[2,1,2,3],[27,1,27,6],[24,1,24,6],[38,4,38,6],[39,4,39,6],[34,4,34,6],[40,4,40,6],[41,4,41,6],[44,1,44,6],[30,1,30,6],[4,1,4,12],[5,1,5,2],[22,1,22,6],[25,1,25,6],[28,1,28,6],[21,1,21,6],[35,4,35,6],[36,4,36,6],[37,4,37,6],[31,4,31,6],[32,4,32,6],[33,4,33,6]]}
[null,"Modeling Approach "]
[null,"Instructions"]
[null,"1) Provide information below relative to the modeling approach and assumptions used. Reference Program Guidelines v4.2, Section 4 for detailed Simulation Guidelines."]
[]
[]
[null,"Modeling Software"]
[null,"Modeling Program "]
[null,"Modeling Program Version #"]
[null,"Number of Models Created for Project"]
[null,"Modeling Information","Model 1","Model 2","Model 3","Model 4","Model 5"]
[null,"Building Type(s) Included in Model (from 'Area Identification')"]
[null,"Representative Building"]
[null,"Apartments Visited for Sample (Multifamily only)"]
[null,"# of Studios Sampled"]
[null,"# of 1 Bedrooms Sampled"]
[null,"# of 2 Bedrooms Sampled"]
[null,"# of 3 Bedrooms Sampled"]
[null,"# of 4+ Bedrooms Sampled"]
[null,"Total Units Sampled",{"$f":"SUM(C14:C18)","v":0},{"$f":"SUM(D14:D18)","v":0},0,0,{"$f":"SUM(G14:G18)","v":0}]
[null,"List Apartments Visited"]
[]
[null,"List and describe all substantive assumptions made in establishing the model not already described in previous area, occupancy, and equipment tables. For example: justification for creating multiple models (generally not permitted per Program Guidelines v4.2, Section 4.4.3); modeling multiple buildings as a single building (see Program Guidelines v4.2 Section 4.4.4); modeling multiple size windows as a single size; etc. "]
["*\n*\n*\n*"]
[]
[null,"How are the energy cost savings calculated?  Are they taken directly from the modeling tool, or are utility costs applied to the fuel savings as computed by the modeling tool?"]
["*\n*\n*\n*"]
[]
[null,"If certain energy efficiency measures are modeled outside of the modeling tool, explain if and how those savings are reflected in the modeling tool for purposes of computing interactive effects. Reference Program Guidelines v4.2, Section 4.4.2 for guidelines on external calculations."]
["*\n*\n*\n*"]
[]
[null,"Identify and discuss key variables affecting energy use at the facility (besides weather), with a focus on those that may change substantially between the baseline and post-retrofit periods. Such variables include occupancy levels, tenant/space use type, production volumes, etc. Reference Program Guidelines v4.2, Section 4.3.1 for guidelines on facility baseline variables."]
[null,"Identified Baseline Facility Variable ","Value(s) Used in Baseline Model ","Potential or Anticipated Changes ","Additional Notes/Assumptions"]
["*\n*"]
["*\n*"]
["*\n*"]
["*\n*"]
["*\n*"]
["*\n*"]
["*\n*"]
["*\n*"]
["*\n*"]
["*\n*"]
[]
[null,"Additional Comments "]
["*\n*\n*\n*"]

{"sheet":"Measure Descriptions","index":29,"n_rows":40,"n_cols":27,"rows_kept":40,"cut":false,"hidden":false,"merged":[[4,26,5,26],[2,1,2,9],[4,1,4,2],[39,2,39,3],[34,4,34,9],[35,4,35,9],[36,4,36,9],[37,4,37,9],[38,4,38,9],[39,4,39,9],[34,1,34,3],[35,2,35,3],[36,2,36,3],[37,2,37,3],[38,2,38,3]]}
[1,"Measure Descriptions"]
[1,"Instructions"]
[1,"1) Fill out below tables to describe each proposed measure, as well as measures analyzed but ultimately not recommended. \n2) Measures should be listed in the order they were modeled, measure savings calculated completely outside the model (custom/external calculation should be listed last). \n2) Read the notes indicated by red corners to assist in properly completing this tab. \n3) Reference Program Guidelines v4.2, Section 3.4 for guidance on measure eligibility, Section 4.6.2 for Measure Granularity, as well as Appendix A to ensure measures comply with minimum performance standards. \n4) Use the Additional Notes column to describe any metering done or assumptions made about how the energy savings for this measure were calculated (i.e. DHW temps, hours of operation, air conditioner SEER, Energy Star labeling requirements)."]
[1]
[1,"Measure Name",null,"Measure Type","Measure Category","Measure Details ","Manufacturer","Model Number","Location ","Capacity ","Capacity Units","Quantity ","Primary Efficiency ","Primary Efficiency Units","Secondary Efficiency ","Secondary Efficiency Units","Fuel Affected","Existing Conditions \n(Equipment Replaced/Modified)","Additional Notes",null,null,null,null,null,null,null,"Measure Life"]
[0,"Ex","Boiler Replacement","Plant-Side HVAC","Hot Water Boiler (Gas)","Replace existing hot water gas fired boilers with high efficiency ","Lochinvar","FBN2500","Boiler Room #1",2500,"MBH",2,0.93,"Et",0.93,"<Enter>","Natural Gas","Hot Water Boiler #1"]
[{"$f":"IF(C7=\"\",0,1)","v":0},1,null,null,null,null,null,null,null,null,null,null,null,null,null,null,null,null,null,null,null,null,null,null,null,null,{"$f":"IFERROR(VLOOKUP(E7,INDIRECT(\"MT_\"&SUBSTITUTE(SUBSTITUTE(SUBSTITUTE(D7,\" \",\"_\"),\"-\",\"_\"),\"&\",\"_\")&\"_Lookup\"),3,FALSE),0)","v":0}]
[{"$f":"IF(C8=\"\",0,1)","v":0},2,null,null,null,null,null,null,null,null,null,null,null,null,null,null,null,null,null,null,null,null,null,null,null,null,{"$f":"IFERROR(VLOOKUP(E8,INDIRECT(\"MT_\"&SUBSTITUTE(SUBSTITUTE(SUBSTITUTE(D8,\" \",\"_\"),\"-\",\"_\"),\"&\",\"_\")&\"_Lookup\"),3,FALSE),0)","v":0}]
[0,3,null,null,null,null,null,null,null,null,null,null,null,null,null,null,null,null,null,null,null,null,null,null,null,null,0]
[0,4,null,null,null,null,null,null,null,null,null,null,null,null,null,null,null,null,null,null,null,null,null,null,null,null,0]
[0,5,null,null,null,null,null,null,null,null,null,null,null,null,null,null,null,null,null,null,null,null,null,null,null,null,0]
[0,6,null,null,null,null,null,null,null,null,null,null,null,null,null,null,null,null,null,null,null,null,null,null,null,null,0]
[0,7,null,null,null,null,null,null,null,null,null,null,null,null,null,null,null,null,null,null,null,null,null,null,null,null,0]
[0,8,null,null,null,null,null,null,null,null,null,null,null,null,null,null,null,null,null,null,null,null,null,null,null,null,0]
[0,9,null,null,null,null,null,null,null,null,null,null,null,null,null,null,null,null,null,null,null,null,null,null,null,null,0]
[0,10,null,null,null,null,null,null,null,null,null,null,null,null,null,null,null,null,null,null,null,null,null,null,null,null,0]
[0,11,null,null,null,null,null,null,null,null,null,null,null,null,null,null,null,null,null,null,null,null,null,null,null,null,0]
[0,12,null,null,null,null,null,null,null,null,null,null,null,null,null,null,null,null,null,null,null,null,null,null,null,null,0]
[0,13,null,null,null,null,null,null,null,null,null,null,null,null,null,null,null,null,null,null,null,null,null,null,null,null,0]
[0,14,null,null,null,null,null,null,null,null,null,null,null,null,null,null,null,null,null,null,null,null,null,null,null,null,0]
[0,15,null,null,null,null,null,null,null,null,null,null,null,null,null,null,null,null,null,null,null,null,null,null,null,null,0]
[0,16,null,null,null,null,null,null,null,null,null,null,null,null,null,null,null,null,null,null,null,null,null,null,null,null,0]
[0,17,null,null,null,null,null,null,null,null,null,null,null,null,null,null,null,null,null,null,null,null,null,null,null,null,0]
[0,18,null,null,null,null,null,null,null,null,null,null,null,null,null,null,null,null,null,null,null,null,null,null,null,null,0]
[0,19,null,null,null,null,null,null,null,null,null,null,null,null,null,null,null,null,null,null,null,null,null,null,null,null,0]
[0,20,null,null,null,null,null,null,null,null,null,null,null,null,null,null,null,null,null,null,null,null,null,null,null,null,0]
[0,21,null,null,null,null,null,null,null,null,null,null,null,null,null,null,null,null,null,null,null,null,null,null,null,null,0]
[0,22,null,null,null,null,null,null,null,null,null,null,null,null,null,null,null,null,null,null,null,null,null,null,null,null,0]
[0,23,null,null,null,null,null,null,null,null,null,null,null,null,null,null,null,null,null,null,null,null,null,null,null,null,0]
[0,24,null,null,null,null,null,null,null,null,null,null,null,null,null,null,null,null,null,null,null,null,null,null,null,null,0]
[0,25,null,null,null,null,null,null,null,null,null,null,null,null,null,null,null,null,null,null,null,null,null,null,null,null,0]
[1]
[1,"Energy Efficiency Options Examined But Not Recommended"]
[1,"The following measures were analyzed but not recommended for the reasons discussed below."]
[1,"Measure Detail",null,null,"Reason for Not Recommending "]
["*\n*",1]
["*\n*",2]
["*\n*",3]
["*\n*",4]
["*\n*",5]

{"sheet":"P4Pindices","index":30,"n_rows":161,"n_cols":28,"rows_kept":161,"cut":false,"hidden":true,"merged":[[127,2,127,7],[138,2,138,7],[158,2,158,7],[79,2,79,7],[93,2,93,7],[100,2,100,7],[104,2,104,7],[116,2,116,7],[1,2,1,7],[19,2,19,7],[50,2,50,7],[62,2,62,7],[69,2,69,7],[80,9,80,10],[33,9,33,10],[46,9,46,10],[14,9,14,27],[4,9,4,21],[70,9,70,10]]}
["Measure_Type",null,"Measure Category","ID","Measure Life","Capacity Units","Primary Efficiency Units","Secondary Efficiency Units",null,"YesNo"]
["Plant-Side HVAC",null,"Plant-Side HVAC",null,null,null,null,null,null,"Yes"]
["Air-Side HVAC",null,"Air Cooled Chiller (Electric)",70,25,"Tons","EER","IPLV",null,"No"]
["HVAC System Controls",null,"Water Cooled Chiller (Electric)",69,25,"Tons","kW/ton","IPLV"]
["Premium Efficiency Motors",null,"Gas Absorption Chiller",71,25,"Tons","COP","<Enter>",null,"Envelope Tab"]
["Motor Controls",null,"Hot Water Boiler (Gas)",81,20,"MBH","Et","<Enter>",null,"Verification Method","Framing Material","Thermal Break","No of Panes","Glass Coating","Gas Filled","Wheather Stripping","Material","Glazing Type","Tightness","Window Type","Window Condition","Frame Type"]
["Service Hot Water",null,"Hot Water Boiler - Condensing (Gas)",null,20,"MBH","Et","<Enter>",null,"Estimated","Aluminum","Yes","Single","Heat Absorbing Tints","Yes","Excellent","Solid Wood","Single Pane","Low Leakage","Double Hung","Poor","Aluminum"]
["Lighting",null,"Steam Boiler (Gas)",82,25,"MBH","Et","<Enter>",null,"Reported by Site Staff","Wood","No","Single w/ storms","Reflective Coating","No","Good","Solid Metal","Double Pane","Some Leakage","Casement","Average","Aluminum w/Thermal Break"]
["Lighting Controls",null,"Combination Boiler-Water Heater (Gas)",null,20,"MBH","Et","<Enter>",null,"From Drawings","Fiberglass",null,"Double","Low-E Coating","Unknown","Fair","Hollow Wood","Other","Very Leaky","Sliding","Good","Wood"]
["Envelope",null,"Water to Water Geothermal HP - Open Loop","NEW",15,"Tons","EER","COP",null,"Confirmed","Vinyl",null,"Triple","None",null,"Poor ","Hollow Metal","N/A","N/A","Fixed",null,"Vinyl"]
["Plug Loads & Appliances",null,"Water to Water Geothermal HP - Closed Loop","NEW",15,"Tons","EER","COP",null,null,"Other",null,null,"Unknown",null,"None","Glass",null,null,"Curtain Wall",null,"Fiberglass"]
["Refrigeration",null,"Cooling Tower",null,18,"Tons","GPM/HP",null,null,null,null,null,null,"Other",null,null,"Glass Slider",null,null,null,null,"Other"]
["Commercial Food",null,"Hot Water Boiler (Oil)",null,20,"MBH","Et","<Enter>",null,null,null,null,null,null,null,null,"Other"]
["Other",null,"Hot Water Boiler (Propane)",null,20,"MBH","Et","<Enter>"]
[null,null,"Steam Boiler (Oil)",null,25,"MBH","Et","<Enter>",null,"Mechanical Tab"]
[null,null,"Steam Boiler (Propane)",null,25,"MBH","Et","<Enter>",null,"HVAC System Type","Heating Efficiency","Cooling Efficiency","HVAC Cooling Type","HVAC Heating Type","Economizer","Additional Zone Heating","Supply Air Control","ERV Type","Boiler Equipment Type","Distribution Type","Fuel Type","Pump Control","Chiller Equipment Type","Condenser Type","Condenser Fan Control","Loading","HVAC Control ","Motor Type"]
[null,null,"Energy Recovery","NEW",18,"MMBtu/h","%","<Enter>",null,"PTAC","AFUE","COP","DX","Electric Resistance","Dry Bulb","Electric Reheat","Constant Volume","Sensible HX","Hot Water Boiler","Steam ","Electric","Constant Volume","Centrifugal","Air-cooled","Single Speed","Constant ","Switch","ODP"]
[null,null,"Pipe insulation, HW",null,20,"Inches","<Enter>","<Enter>",null,"PTHP","Et","EER","Chilled Water","Gas Furnace","Enthalpy","Hot Water Reheat","Variable Volume","Enthalpy HX","Steam Boiler","Hot Water","Natural Gas","Primary / Secondary","Gas Absorption","Water-cooled","Two Speed","Variable","Damper","TEFC"]
[null,null,"Pipe insulation, CHW",null,20,"Inches","<Enter>","<Enter>",null,"Packaged AHU","Ec","SEER","None","Heat Pump","Dual Enthalpy","Other",null,"Sensible Wheel","Water Heater","N/A","Oil #2","VFD","Gas Engine",null,"VFD",null,"VFD"]
[null,null,"Air-Side HVAC",null,null,null,null,null,null,"Split AHU","Energy Factor","N/A",null,"Hot Water","None","None",null,"Enthalpy Wheel",null,null,"Oil #4",null,"Recirpocating",null,null,null,"None"]
[null,null,"Air to Air Heat Pump",74,15,"Tons","EER","COP",null,"Packaged ASHP","HSPF",null,null,"Steam",null,null,null,"Heat Pipe",null,null,"Oil #6",null,"Screw"]
[null,null,"Water Source Heat Pump",78,15,"Tons","EER","COP",null,"Split ASHP","COP",null,null,"Other",null,null,null,"N/A",null,null,"Propane",null,"Scroll"]
[null,null,"Variable Refrigerant Flow Heat Pump","NEW",15,"Tons","EER","COP",null,"WSHP","N/A",null,null,"None",null,null,null,null,null,null,"Dual Fuel Oil & Gas",null,"Steam Absorption"]
[null,null,"Single Zone CV System (DX/Furnace)","NEW",15,"Tons","EER","Et",null,"GSHP",null,null,null,null,null,null,null,null,null,null,"District Steam"]
[null,null,"Single Zone CV System (DX/HW or Steam)","NEW",15,"Tons","EER","<Enter>",null,"GWHP",null,null,null,null,null,null,null,null,null,null,"District Hot Water"]
[null,null,"Single Zone CV System (CHW/HW or Steam)","NEW",20,"HP","kW/CFM","<Enter>",null,"VRF",null,null,null,null,null,null,null,null,null,null,"Other"]
[null,null,"Single Zone VAV System (DX/Furnace)","NEW",15,"Tons","EER","Et",null,"Unit Heater"]
[null,null,"Multiple Zone VAV System (DX/Furnace)","NEW",15,"Tons","EER","Et",null,"Baseboard"]
[null,null,"Single Zone VAV System (DX/HW)","NEW",15,"Tons","EER","<Enter>",null,"4-pipe fan-coil"]
[null,null,"Multiple Zone VAV System (DX/HW)","NEW",15,"Tons","EER","<Enter>",null,"2-pipe fan coil"]
[null,null,"Single Zone VAV System (CHW/HW or Steam)","NEW",20,"HP","kW/CFM","<Enter>",null,"Other"]
[null,null,"Multiple Zone VAV System (CHW/HW or Steam)","NEW",20,"HP","kW/CFM","<Enter>"]
[null,null,"Dedicated Outdoor Air System (DX/Furnace)","NEW",15,"Tons","EER","Et"]
[null,null,"Dedicated Outdoor Air System (DX/HW or Steam)","NEW",15,"Tons","EER","<Enter>",null,"Other Equipment Tab"]
[null,null,"Dedicated Outdoor Air System (CHW/HW)","NEW",20,"HP","kW/CFM","<Enter>",null,"Energy Star?","Fuel Source"]
[null,null,"Fan Coil Units (CHW/HW)","NEW",20,"HP","kW/CFM","<Enter>",null,"Yes","Electric"]
[null,null,"Custom Air-side HVAC Systems","NEW",15,"Tons","EER","COP",null,"No ","Natural Gas"]
[null,null,"Unitary HVAC/Split Systems",73,15,"Tons","EER","IEER",null,"Unknown","Oil #2"]
[null,null,"Packaged Terminal AC & HP",75,15,"Btu/h","EER","COP",null,null,"Oil #4"]
[null,null,"Gas Furnace (Heating Only)",11,20,"MBH","AFUE","<Enter>",null,null,"Oil #6"]
[null,null,"Energy Recovery","NEW",18,"MMBtu/h","%","<Enter>",null,null,"Propane"]
[null,null,"Open Loop Geothermal HP",79,15,"Tons","EER","COP",null,null,"District Steam"]
[null,null,"Closed Loop Geothermal HP",80,15,"Tons","EER","COP",null,null,"District Hot Water"]
[null,null,"Desiccant System (Gas or Electric)",72,15,"MMBtu/h","MMBtu/h","<Enter>",null,null,"District Chilled Water"]
[null,null,"Chilled Beams","NEW",18,"Tons","kW/ton","IPLV",null,null,"Other"]
[null,null,"Low Intensity Infrared Heating Unit",null,17,"MMBtu/h","MMBtu/h","<Enter>"]
[null,null,"Make-Up Air Heater (Heating Only)",null,15,"MMBtu/h","MMBtu/h","<Enter>",null,"Measure Descriptions tab"]
[null,null,"Oil Furnace (Heating Only)",null,20,"MBH","AFUE","<Enter>",null,"Capacity Units","Efficiency Units"]
[null,null,"Propane Furnace (Heating Only)",null,20,"MBH","AFUE","<Enter>",null,"<Enter>","<Enter>"]
[null,null,"Destratification fans",null,18,"<Enter>","<Enter>","<Enter>",null,"MBH","EER"]
[null,null,"HVAC System Controls",null,null,null,null,null,null,"Btu/h","SEER"]
[null,null,"Dual Enthalpy Economizer",76,15,"Tons","<Enter>","<Enter>",null,"MMBtu/h","IEER"]
[null,null,"Programmable Thermostat",222,15,"MMBtu/h","<Enter>","<Enter>",null,"Tons","IPLV"]
[null,null,"Boiler Reset Controls - Hot Water",null,15,"MMBtu/h","<Enter>","<Enter>",null,"HP","kW/ton"]
[null,null,"Boiler Reset Controls - Steam",null,15,"MMBtu/h","<Enter>","<Enter>",null,"GPM","kW"]
[null,null,"Hot Water Boiler Controls",null,15,"MMBtu/h","<Enter>","<Enter>",null,"kW","COP"]
[null,null,"Steam Boiler Controls",null,15,"MMBtu/h","<Enter>","<Enter>",null,"Inches","HSPF"]
[null,null,"Demand Control Ventilation - Interior Spaces",null,15,"MMBtu/h","<Enter>","<Enter>",null,"Linear Feet","Et"]
[null,null,"Demand Control Ventilation - Parking Garage",null,15,"MMBtu/h","<Enter>","<Enter>",null,"SqFt","Ec"]
[null,null,"Chiller Controls","NEW",15,"Tons","<Enter>","<Enter>",null,"Cu. Ft.","AFUE"]
[null,null,"Air-side System Controls","NEW",15,"HP","<Enter>","<Enter>",null,null,"EF"]
[null,null,"Building Management Systems",null,15,"MMBtu/h","<Enter>","<Enter>",null,null,"GPM/HP"]
[null,null,"Premium Efficiency Motors",null,null,null,null,null,null,null,"kW/CFM"]
[null,null,"ODP Premium Motor - 1200 RPM",null,20,"HP","%","<Enter>",null,null,"%"]
[null,null,"ODP Premium Motor - 1800 RPM",null,20,"HP","%","<Enter>",null,null,"MMBtu/h"]
[null,null,"ODP Premium Motor - 3600 RPM",null,20,"HP","%","<Enter>",null,null,"U-value"]
[null,null,"TEFC Premium Motor - 1200 RPM",null,20,"HP","%","<Enter>",null,null,"R-value"]
[null,null,"TEFC Premium Motor - 1800 RPM",null,20,"HP","%","<Enter>",null,null,"SHGC"]
[null,null,"TEFC Premium Motor - 3600 RPM",null,20,"HP","%","<Enter>",null,null,"ENERGY STAR"]
[null,null,"Motor Controls"]
[null,null,"Air Compressor with VFD",86,15,"HP","<Enter>","<Enter>",null,"Measure Simulation tab"]
[null,null,"Electronically Commutated Motor",null,15,"HP","<Enter>","<Enter>",null,"Savings Method","Cost Source"]
[null,null,"VFD - Cooling Tower Fan",null,15,"HP","<Enter>","<Enter>",null,"Simulation","Baseline Cost Estimator"]
[null,null,"VFD - Hot Water Pump",null,15,"HP","<Enter>","<Enter>",null,"Custom Calcs","Bid Results"]
[null,null,"VFD - Kitchen Hoods",null,15,"HP","<Enter>","<Enter>",null,null,"Contractor"]
[null,null,"VFD - Chilled Water Pump",85,15,"HP","<Enter>","<Enter>",null,null,"Developer"]
[null,null,"VFD - Variable Air Volume",84,15,"HP","<Enter>","<Enter>",null,null,"Manufacturer"]
[null,null,"VFD - Other",null,15,"HP","<Enter>","<Enter>",null,null,"Previous Experience"]
[null,null,"Water Booster Pump Controls",null,15,"HP","<Enter>","<Enter>",null,null,"RSMeans"]
[null,null,"Service Hot Water"]
[null,null,"Water Heater (Gas) - </= 50 Gals.",87,10,"MBH","Et","EF",null,"Implementation & Financing"]
[null,null,"Water Heater (Gas) - > 50 Gals.",88,10,"MBH","Et","EF",null,"Funding Status","Delivery Method"]
[null,null,"Water Heater (Gas) - Indirect",null,10,"MBH","Et","EF",null,"Committed","Contracted Bid"]
[null,null,"Water Heater (Gas) - Tankless",null,10,"MBH","Et","EF",null,"Requested","Preferred Contractor"]
[null,null,"Domestic HW Heater - Electric",null,10,"MBH","Et","EF",null,null,"In-house Labor"]
[null,null,"Electric Hot Water Heater - Tankless",null,10,"MBH","Et","EF",null,null,"WAP"]
[null,null,"Domestic HW Heater - Oil",null,10,"MBH","Et","EF"]
[null,null,"Domestic HW Heater - Propane",null,10,"MBH","Et","EF"]
[null,null,"Domestic HW Heater - Electric Heat Pump",null,10,"MBH","Et","EF"]
[null,null,"Domestic HW Heater - Solar",null,10,"MBH","Et","EF"]
[null,null,"Low-Flow Faucets and Shower Heads",null,10,"GPM","<Enter>","<Enter>"]
[null,null,"Water Booster Heater (Gas)",null,10,"MBH","Et","EF"]
[null,null,"Pipe insulation, DHW",null,10,"Inches","<Enter>","<Enter>"]
[null,null,"Lighting"]
[null,null,"Fluorescent Fixtures",115,15,"kW","<Enter>","<Enter>"]
[null,null,"HID",117,15,"kW","<Enter>","<Enter>"]
[null,null,"LED Lighting",308,15,"kW","<Enter>","<Enter>"]
[null,null,"LED Exit Signs",130,15,"kW","<Enter>","<Enter>"]
[null,null,"Exterior Lighting","NEW",15,"kW","<Enter>","<Enter>"]
[null,null,"Other Lighting",122,15,"kW","<Enter>","<Enter>"]
[null,null,"Lighting Controls"]
[null,null,"Occupancy Sensors",null,18,"kW","<Enter>","<Enter>"]
[null,null,"Daylight Dimming Control",413,18,"kW","<Enter>","<Enter>"]
[null,null,"Lighting Control System",null,18,"kW","<Enter>","<Enter>"]
[null,null,"Envelope"]
[null,null,"Air Sealing",null,30,"Linear Feet","<Enter>","<Enter>"]
[null,null,"Insulation - Basements/Unvented Crawl Spaces (Floors)",null,30,"Inches","U-value","<Enter>"]
[null,null,"Insulation - Basements/Unvented Crawl Spaces (Walls)",null,30,"Inches","U-value","<Enter>"]
[null,null,"Insulation - Roof",null,30,"Inches","U-value","<Enter>"]
[null,null,"Insulation - Floors Over Garages, Outside, Vented Crawl Spaces",null,30,"Inches","U-value","<Enter>"]
[null,null,"Insulation - Slab edge/Slab Under",null,30,"Inches","U-value","<Enter>"]
[null,null,"Insulation - Walls, Kneewalls, Rim Band/Joists",null,30,"Inches","U-value","<Enter>"]
[null,null,"Skylights",null,20,"SqFt","U-value","SHGC"]
[null,null,"Windows and Glass Doors",null,20,"SqFt","U-value","SHGC"]
[null,null,"Insulation ",285,30,"Inches","U-value","<Enter>"]
[null,null,"Other Shell Measures",286,30,"<Enter>","<Enter>","<Enter>"]
[null,null,"Plug Loads & Appliances"]
[null,null,"Clothes Washer",null,11,"GPM","ENERGY STAR","<Enter>"]
[null,null,"Clothes Dryer",null,12,"<Enter>","ENERGY STAR","<Enter>"]
[null,null,"Refrigerator",null,12,"Cu. Ft.","ENERGY STAR","<Enter>"]
[null,null,"Dishwasher",null,10,"GPM","ENERGY STAR","<Enter>"]
[null,null,"Vending Miser - Occupancy Sensor Control",null,12,"kW","<Enter>","<Enter>"]
[null,null,"Transformers",null,18,"<Enter>","kW","<Enter>"]
[null,null,"Computer Power Management",null,10,"kW","<Enter>","<Enter>"]
[null,null,"Receptacle Controls",null,4,"kW","<Enter>","<Enter>"]
[null,null,"Elevators",null,18,"<Enter>","kW","<Enter>"]
[null,null,"Appliance - Custom",null,12,"<Enter>","ENERGY STAR","<Enter>"]
[null,null,"Refrigeration"]
[null,null,"Evaporator-Compressor Control",247,10,"Tons","<Enter>","<Enter>"]
[null,null,"Fan-Door Control",246,10,"Tons","<Enter>","<Enter>"]
[null,null,"Cooler or Freezer Door Heater Control",null,10,"Tons","<Enter>","<Enter>"]
[null,null,"Defrost Controls",null,10,"Tons","<Enter>","<Enter>"]
[null,null,"Novelty Cooler Shutoff",306,10,"Tons","<Enter>","<Enter>"]
[null,null,"Refrigerated Casework","NEW",18,"SqFt","<Enter>","<Enter>"]
[null,null,"Energy Efficient Doors",null,12,"SqFt","<Enter>","<Enter>"]
[null,null,"Medium Temperature Doors","NEW",12,"SqFt","<Enter>","<Enter>"]
[null,null,"Night Covers for Refrigerator Cases",null,10,"SqFt","<Enter>","<Enter>"]
[null,null,"Custom Refrigeration","NEW",18,"<Enter>","<Enter>","<Enter>"]
[null,null,"Commercial Food"]
[null,null,"Commercial Convection Oven (Electric)",398,12,"<Enter>","ENERGY STAR","<Enter>"]
[null,null,"Commercial Convection Oven (Gas)",399,12,"<Enter>","ENERGY STAR","<Enter>"]
[null,null,"Commercial Conveyer Oven",401,12,"<Enter>","ENERGY STAR","<Enter>"]
[null,null,"Commercial Dishwasher",391,12,"GPM","ENERGY STAR","<Enter>"]
[null,null,"Commercial Freezer - Glass Door",408,12,"Cu. Ft.","ENERGY STAR","<Enter>"]
[null,null,"Commercial Freezer - Solid Door",409,12,"Cu. Ft.","ENERGY STAR","<Enter>"]
[null,null,"Commercial Fryer (Electric)",392,12,"<Enter>","ENERGY STAR","<Enter>"]
[null,null,"Commercial Fryer (Gas)",393,12,"<Enter>","ENERGY STAR","<Enter>"]
[null,null,"Commercial Griddle (Electric)",394,12,"<Enter>","ENERGY STAR","<Enter>"]
[null,null,"Commercial Griddle (Gas)",395,12,"<Enter>","ENERGY STAR","<Enter>"]
[null,null,"Commercial Hot Food Holding Cabinet",396,12,"<Enter>","<Enter>","<Enter>"]
[null,null,"Commercial Ice Machine",397,12,"<Enter>","ENERGY STAR","<Enter>"]
[null,null,"Commercial Rack Oven",400,12,"<Enter>","ENERGY STAR","<Enter>"]
[null,null,"Commercial Refrigerator - Glass Door",406,12,"Cu. Ft.","ENERGY STAR","<Enter>"]
[null,null,"Commercial Refrigerator - Solid Door",407,12,"Cu. Ft.","ENERGY STAR","<Enter>"]
[null,null,"Commercial Steam Cooker (Electric)",402,10,"<Enter>","ENERGY STAR","<Enter>"]
[null,null,"Commercial Steam Cooker (Gas)",403,10,"<Enter>","ENERGY STAR","<Enter>"]
[null,null,"Commercial Combination Steam Cooker (Electric)",404,10,"<Enter>","ENERGY STAR","<Enter>"]
[null,null,"Commercial Combination Steam Cooker (Gas)",405,10,"<Enter>","ENERGY STAR","<Enter>"]
[null,null,"Other"]
[null,null,"Custom Electric",103,18,"<Enter>","<Enter>","<Enter>"]
[null,null,"Custom Gas",104,18,"<Enter>","<Enter>","<Enter>"]

{"sheet":"Measure Simulation","index":31,"n_rows":148,"n_cols":67,"rows_kept":148,"cut":false,"hidden":false,"merged":[[34,16,34,20],[11,3,11,4],[27,16,27,20],[28,16,28,20],[29,16,29,20],[32,16,32,20],[33,16,33,20],[12,3,12,4],[13,3,13,4],[14,3,14,4],[43,16,43,20],[44,16,44,20],[35,16,35,20],[36,16,36,20],[37,16,37,20],[38,16,38,20],[39,16,39,20],[0,23,0,24],[50,3,51,4],[19,3,19,4],[19,16,19,20],[20,16,20,20],[21,16,21,20],[22,16,22,20],[23,16,23,20],[24,16,24,20],[25,16,25,20],[26,16,26,20],[45,16,45,20],[46,16,46,20],[30,16,30,20],[31,16,31,20],[42,16,42,20],[83,3,83,4],[78,3,78,4],[79,3,79,4],[80,3,80,4],[82,3,82,4],[79,6,79,20],[50,6,50,13],[4,5,4,18],[2,3,2,18],[47,16,47,20],[40,16,40,20],[41,16,41,20],[5,3,5,4],[6,3,6,4],[7,3,7,4],[8,3,8,4],[9,3,9,4],[10,3,10,4],[15,3,15,4],[16,3,16,4],[78,6,78,20]]}
[1,null,null,"Recommended Measures - Cost and Energy Savings"]
[1,null,null,"Instructions"]
[1,null,null,"1) Fill out table below pertaining to existing and proposed end-use conusmption. eQuest and TRACE projects can import end-use data using Parms.cvs and Energy Cost Budget Data reports, respectively. All other simulation platforms need to manually enter the end-use data below. Note \"Other Fuel\" (columns R and S) needs to be entered manually for all simulation platforms. \n2) Fill out tables below pertaining to measure level savings. Similar to the end-use table, eQuest and TRACE project can import baseline and measure savings. All other simulation platforms need to manually enter data. Note \"Other Fuel\" needs to be entered manually for all simulation platforms. \n3) Read the notes indicated by red corners to assist in properly completing this tab. \n4) Reference Program Guidelines v4.2, Section 4.6 for guidance on simulating measures and measure specific modeling requirements. \n5) Custom Calculations will only be accepted for measure that cannot be explicitly captured in the model per Program Guidelines v4.2, Section 4.4.2 . \n       "]
[1]
[1,null,null,null,null,{"$f":"IF($C$6=\"eQUEST\",\"Once all Parms.csv data has been pasted into the Results from eQUEST tab, \"&\"the tables below will be auto-populated with electric and natural gas data for the baseline case and all modeled ECMs.  \"&\"However, results for other fuel types and non-modeled ECMs must be entered manually.\",IF($C$6=\"Trace\",\"Once all Trace data has been pasted into the Results from Trace tab, \"&\"the tables below will be auto-populated with electric and fuel data for the baseline case and all modeled ECMs.  \"&\"However, results for non-modeled ECMs must be entered manually.  \"&\"In order to populate the Measure Simulation table with modeled oil/propane usage, the fuel type and reported units must be selected in the Conversion Calculator in column V.\",\"\"))","v":""}]
[1,"Model Software:",null,"End Use",null,"Existing Electricity (MMBtu)","Proposed Electricity (MMBtu)","Existing Natural Gas (MMBtu)","Proposed Natural Gas (MMBtu)","Existing Steam (MMBtu)","Proposed Steam (MMBtu)","Existing Hot Water (MMBtu)","Proposed Hot Water (MMBtu)","Existing Chilled Water (MMBtu)","Proposed Chilled Water (MMBtu)","Existing Oil\n(MMBtu)","Proposed Oil\n(MMBtu)","Existing Propane (MMBtu)","Proposed Propane (MMBtu)","Existing Other Fuel (MMBtu)","Proposed Other Fuel (MMBtu)"]
[1,null,null,"Space Heating",null,{"$f":"IFERROR(IF($C$6=\"eQUEST\",'Results from eQUEST'!$O$7*0.003413,IF($C$6=\"Trace\",SUMIFS('Results from Trace'!$C$6:$C$55,'Results from Trace'!$A$6:$A$55,\"Space Heating\",'Results from Trace'!$B$6:$B$55,\"Electricity\"),\"\")),\"\")","v":""},{"$f":"IFERROR(IF($C$6=\"eQUEST\",'Results from eQUEST'!$O$8*0.003413,IF($C$6=\"Trace\",SUMIFS('Results from Trace'!$D$6:$D$55,'Results from Trace'!$A$6:$A$55,\"Space Heating\",'Results from Trace'!$B$6:$B$55,\"Electricity\"),\"\")),\"\")","v":""},{"$f":"IFERROR(IF($C$6=\"eQUEST\",'Results from eQUEST'!$BA$7*0.1,IF($C$6=\"Trace\",SUMIFS('Results from Trace'!$C$6:$C$55,'Results from Trace'!$A$6:$A$55,\"Space Heating\",'Results from Trace'!$B$6:$B$55,\"Gas\"),\"\")),\"\")","v":""},{"$f":"IFERROR(IF($C$6=\"eQUEST\",'Results from eQUEST'!$BA$8*0.1,IF($C$6=\"Trace\",SUMIFS('Results from Trace'!$D$6:$D$55,'Results from Trace'!$A$6:$A$55,\"Space Heating\",'Results from Trace'!$B$6:$B$55,\"Gas\"),\"\")),\"\")","v":""},{"$f":"IFERROR(IF($C$6=\"eQUEST\",\"\",IF($C$6=\"Trace\",SUMIFS('Results from Trace'!$C$6:$C$55,'Results from Trace'!$A$6:$A$55,\"Space Heating\",'Results from Trace'!$B$6:$B$55,\"Purchased Steam\"),\"\")),\"\")","v":""},{"$f":"IFERROR(IF($C$6=\"eQUEST\",\"\",IF($C$6=\"Trace\",SUMIFS('Results from Trace'!$D$6:$D$55,'Results from Trace'!$A$6:$A$55,\"Space Heating\",'Results from Trace'!$B$6:$B$55,\"Purchased Steam\"),\"\")),\"\")","v":""},{"$f":"IFERROR(IF($C$6=\"eQUEST\",\"\",IF($C$6=\"Trace\",SUMIFS('Results from Trace'!$C$6:$C$55,'Results from Trace'!$A$6:$A$55,\"Space Heating\",'Results from Trace'!$B$6:$B$55,\"Purchased Hot Water\"),\"\")),\"\")","v":""},{"$f":"IFERROR(IF($C$6=\"eQUEST\",\"\",IF($C$6=\"Trace\",SUMIFS('Results from Trace'!$D$6:$D$55,'Results from Trace'!$A$6:$A$55,\"Space Heating\",'Results from Trace'!$B$6:$B$55,\"Purchased Hot Water\"),\"\")),\"\")","v":""},{"$f":"IFERROR(IF($C$6=\"eQUEST\",\"\",IF($C$6=\"Trace\",SUMIFS('Results from Trace'!$C$6:$C$55,'Results from Trace'!$A$6:$A$55,\"Space Heating\",'Results from Trace'!$B$6:$B$55,\"Purchased Chilled Water\"),\"\")),\"\")","v":""},{"$f":"IFERROR(IF($C$6=\"eQUEST\",\"\",IF($C$6=\"Trace\",SUMIFS('Results from Trace'!$D$6:$D$55,'Results from Trace'!$A$6:$A$55,\"Space Heating\",'Results from Trace'!$B$6:$B$55,\"Purchased Chilled Water\"),\"\")),\"\")","v":""},{"$f":"IFERROR(IF($C$6=\"eQUEST\",\"\",IF($C$6=\"Trace\",SUMIFS('Results from Trace'!$C$6:$C$55,'Results from Trace'!$A$6:$A$55,\"Space Heating\",'Results from Trace'!$B$6:$B$55,\"Oil\"),\"\")),\"\")","v":""},{"$f":"IFERROR(IF($C$6=\"eQUEST\",\"\",IF($C$6=\"Trace\",SUMIFS('Results from Trace'!$D$6:$D$55,'Results from Trace'!$A$6:$A$55,\"Space Heating\",'Results from Trace'!$B$6:$B$55,\"Oil\"),\"\")),\"\")","v":""},{"$f":"IFERROR(IF($C$6=\"eQUEST\",\"\",IF($C$6=\"Trace\",SUMIFS('Results from Trace'!$C$6:$C$55,'Results from Trace'!$A$6:$A$55,\"Space Heating\",'Results from Trace'!$B$6:$B$55,\"Propane\"),\"\")),\"\")","v":""},{"$f":"IFERROR(IF($C$6=\"eQUEST\",\"\",IF($C$6=\"Trace\",SUMIFS('Results from Trace'!$D$6:$D$55,'Results from Trace'!$A$6:$A$55,\"Space Heating\",'Results from Trace'!$B$6:$B$55,\"Propane\"),\"\")),\"\")","v":""}]
[1,null,null,"Cooling",null,{"$f":"IFERROR(IF($C$6=\"eQUEST\",'Results from eQUEST'!$P$7*0.003413,IF($C$6=\"Trace\",SUMIFS('Results from Trace'!$C$6:$C$55,'Results from Trace'!$A$6:$A$55,\"Space Cooling\",'Results from Trace'!$B$6:$B$55,\"Electricity\"),\"\")),\"\")","v":""},{"$f":"IFERROR(IF($C$6=\"eQUEST\",'Results from eQUEST'!$P$8*0.003413,IF($C$6=\"Trace\",SUMIFS('Results from Trace'!$D$6:$D$55,'Results from Trace'!$A$6:$A$55,\"Space Cooling\",'Results from Trace'!$B$6:$B$55,\"Electricity\"),\"\")),\"\")","v":""},{"$f":"IFERROR(IF($C$6=\"eQUEST\",'Results from eQUEST'!$BB$7*0.1,IF($C$6=\"Trace\",SUMIFS('Results from Trace'!$C$6:$C$55,'Results from Trace'!$A$6:$A$55,\"Space Cooling\",'Results from Trace'!$B$6:$B$55,\"Gas\"),\"\")),\"\")","v":""},{"$f":"IFERROR(IF($C$6=\"eQUEST\",'Results from eQUEST'!$BB$8*0.1,IF($C$6=\"Trace\",SUMIFS('Results from Trace'!$D$6:$D$55,'Results from Trace'!$A$6:$A$55,\"Space Cooling\",'Results from Trace'!$B$6:$B$55,\"Gas\"),\"\")),\"\")","v":""},{"$f":"IFERROR(IF($C$6=\"eQUEST\",\"\",IF($C$6=\"Trace\",SUMIFS('Results from Trace'!$C$6:$C$55,'Results from Trace'!$A$6:$A$55,\"Space Cooling\",'Results from Trace'!$B$6:$B$55,\"Purchased Steam\"),\"\")),\"\")","v":""},{"$f":"IFERROR(IF($C$6=\"eQUEST\",\"\",IF($C$6=\"Trace\",SUMIFS('Results from Trace'!$D$6:$D$55,'Results from Trace'!$A$6:$A$55,\"Space Cooling\",'Results from Trace'!$B$6:$B$55,\"Purchased Steam\"),\"\")),\"\")","v":""},{"$f":"IFERROR(IF($C$6=\"eQUEST\",\"\",IF($C$6=\"Trace\",SUMIFS('Results from Trace'!$C$6:$C$55,'Results from Trace'!$A$6:$A$55,\"Space Cooling\",'Results from Trace'!$B$6:$B$55,\"Purchased Hot Water\"),\"\")),\"\")","v":""},{"$f":"IFERROR(IF($C$6=\"eQUEST\",\"\",IF($C$6=\"Trace\",SUMIFS('Results from Trace'!$D$6:$D$55,'Results from Trace'!$A$6:$A$55,\"Space Cooling\",'Results from Trace'!$B$6:$B$55,\"Purchased Hot Water\"),\"\")),\"\")","v":""},{"$f":"IFERROR(IF($C$6=\"eQUEST\",\"\",IF($C$6=\"Trace\",SUMIFS('Results from Trace'!$C$6:$C$55,'Results from Trace'!$A$6:$A$55,\"Space Cooling\",'Results from Trace'!$B$6:$B$55,\"Purchased Chilled Water\"),\"\")),\"\")","v":""},{"$f":"IFERROR(IF($C$6=\"eQUEST\",\"\",IF($C$6=\"Trace\",SUMIFS('Results from Trace'!$D$6:$D$55,'Results from Trace'!$A$6:$A$55,\"Space Cooling\",'Results from Trace'!$B$6:$B$55,\"Purchased Chilled Water\"),\"\")),\"\")","v":""},{"$f":"IFERROR(IF($C$6=\"eQUEST\",\"\",IF($C$6=\"Trace\",SUMIFS('Results from Trace'!$C$6:$C$55,'Results from Trace'!$A$6:$A$55,\"Space Cooling\",'Results from Trace'!$B$6:$B$55,\"Oil\"),\"\")),\"\")","v":""},{"$f":"IFERROR(IF($C$6=\"eQUEST\",\"\",IF($C$6=\"Trace\",SUMIFS('Results from Trace'!$D$6:$D$55,'Results from Trace'!$A$6:$A$55,\"Space Cooling\",'Results from Trace'!$B$6:$B$55,\"Oil\"),\"\")),\"\")","v":""},{"$f":"IFERROR(IF($C$6=\"eQUEST\",\"\",IF($C$6=\"Trace\",SUMIFS('Results from Trace'!$C$6:$C$55,'Results from Trace'!$A$6:$A$55,\"Space Cooling\",'Results from Trace'!$B$6:$B$55,\"Propane\"),\"\")),\"\")","v":""},{"$f":"IFERROR(IF($C$6=\"eQUEST\",\"\",IF($C$6=\"Trace\",SUMIFS('Results from Trace'!$D$6:$D$55,'Results from Trace'!$A$6:$A$55,\"Space Cooling\",'Results from Trace'!$B$6:$B$55,\"Propane\"),\"\")),\"\")","v":""}]
[1,null,null,"Ventilation",null,{"$f":"IFERROR(IF($C$6=\"eQUEST\",'Results from eQUEST'!$S$7*0.003413,IF($C$6=\"Trace\",SUMIFS('Results from Trace'!$C$6:$C$55,'Results from Trace'!$A$6:$A$55,\"Fans - Conditioned\",'Results from Trace'!$B$6:$B$55,\"Electricity\"),\"\")),\"\")","v":""},{"$f":"IFERROR(IF($C$6=\"eQUEST\",'Results from eQUEST'!$S$8*0.003413,IF($C$6=\"Trace\",SUMIFS('Results from Trace'!$D$6:$D$55,'Results from Trace'!$A$6:$A$55,\"Fans - Conditioned\",'Results from Trace'!$B$6:$B$55,\"Electricity\"),\"\")),\"\")","v":""},{"$f":"IFERROR(IF($C$6=\"eQUEST\",'Results from eQUEST'!$BE$7*0.1,IF($C$6=\"Trace\",SUMIFS('Results from Trace'!$C$6:$C$55,'Results from Trace'!$A$6:$A$55,\"Fans - Conditioned\",'Results from Trace'!$B$6:$B$55,\"Gas\"),\"\")),\"\")","v":""},{"$f":"IFERROR(IF($C$6=\"eQUEST\",'Results from eQUEST'!$BE$8*0.1,IF($C$6=\"Trace\",SUMIFS('Results from Trace'!$D$6:$D$55,'Results from Trace'!$A$6:$A$55,\"Fans - Conditioned\",'Results from Trace'!$B$6:$B$55,\"Gas\"),\"\")),\"\")","v":""},{"$f":"IFERROR(IF($C$6=\"eQUEST\",\"\",IF($C$6=\"Trace\",SUMIFS('Results from Trace'!$C$6:$C$55,'Results from Trace'!$A$6:$A$55,\"Fans - Conditioned\",'Results from Trace'!$B$6:$B$55,\"Purchased Steam\"),\"\")),\"\")","v":""},{"$f":"IFERROR(IF($C$6=\"eQUEST\",\"\",IF($C$6=\"Trace\",SUMIFS('Results from Trace'!$D$6:$D$55,'Results from Trace'!$A$6:$A$55,\"Fans - Conditioned\",'Results from Trace'!$B$6:$B$55,\"Purchased Steam\"),\"\")),\"\")","v":""},{"$f":"IFERROR(IF($C$6=\"eQUEST\",\"\",IF($C$6=\"Trace\",SUMIFS('Results from Trace'!$C$6:$C$55,'Results from Trace'!$A$6:$A$55,\"Fans - Conditioned\",'Results from Trace'!$B$6:$B$55,\"Purchased Hot Water\"),\"\")),\"\")","v":""},{"$f":"IFERROR(IF($C$6=\"eQUEST\",\"\",IF($C$6=\"Trace\",SUMIFS('Results from Trace'!$D$6:$D$55,'Results from Trace'!$A$6:$A$55,\"Fans - Conditioned\",'Results from Trace'!$B$6:$B$55,\"Purchased Hot Water\"),\"\")),\"\")","v":""},{"$f":"IFERROR(IF($C$6=\"eQUEST\",\"\",IF($C$6=\"Trace\",SUMIFS('Results from Trace'!$C$6:$C$55,'Results from Trace'!$A$6:$A$55,\"Fans - Conditioned\",'Results from Trace'!$B$6:$B$55,\"Purchased Chilled Water\"),\"\")),\"\")","v":""},{"$f":"IFERROR(IF($C$6=\"eQUEST\",\"\",IF($C$6=\"Trace\",SUMIFS('Results from Trace'!$D$6:$D$55,'Results from Trace'!$A$6:$A$55,\"Fans - Conditioned\",'Results from Trace'!$B$6:$B$55,\"Purchased Chilled Water\"),\"\")),\"\")","v":""},{"$f":"IFERROR(IF($C$6=\"eQUEST\",\"\",IF($C$6=\"Trace\",SUMIFS('Results from Trace'!$C$6:$C$55,'Results from Trace'!$A$6:$A$55,\"Fans - Conditioned\",'Results from Trace'!$B$6:$B$55,\"Oil\"),\"\")),\"\")","v":""},{"$f":"IFERROR(IF($C$6=\"eQUEST\",\"\",IF($C$6=\"Trace\",SUMIFS('Results from Trace'!$D$6:$D$55,'Results from Trace'!$A$6:$A$55,\"Fans - Conditioned\",'Results from Trace'!$B$6:$B$55,\"Oil\"),\"\")),\"\")","v":""},{"$f":"IFERROR(IF($C$6=\"eQUEST\",\"\",IF($C$6=\"Trace\",SUMIFS('Results from Trace'!$C$6:$C$55,'Results from Trace'!$A$6:$A$55,\"Fans - Conditioned\",'Results from Trace'!$B$6:$B$55,\"Propane\"),\"\")),\"\")","v":""},{"$f":"IFERROR(IF($C$6=\"eQUEST\",\"\",IF($C$6=\"Trace\",SUMIFS('Results from Trace'!$D$6:$D$55,'Results from Trace'!$A$6:$A$55,\"Fans - Conditioned\",'Results from Trace'!$B$6:$B$55,\"Propane\"),\"\")),\"\")","v":""}]
[1,null,null,"Water Heating",null,{"$f":"IFERROR(IF($C$6=\"eQUEST\",'Results from eQUEST'!$V$7*0.003413,IF($C$6=\"Trace\",0,\"\")),\"\")","v":""},{"$f":"IFERROR(IF($C$6=\"eQUEST\",'Results from eQUEST'!$V$8*0.003413,IF($C$6=\"Trace\",0,\"\")),\"\")","v":""},{"$f":"IFERROR(IF($C$6=\"eQUEST\",'Results from eQUEST'!$BH$7*0.1,IF($C$6=\"Trace\",SUMIFS('Results from Trace'!$C$6:$C$55,'Results from Trace'!$A$6:$A$55,\"Stand-alone Base Utilities\",'Results from Trace'!$B$6:$B$55,\"Gas\"),\"\")),\"\")","v":""},{"$f":"IFERROR(IF($C$6=\"eQUEST\",'Results from eQUEST'!$BH$8*0.1,IF($C$6=\"Trace\",SUMIFS('Results from Trace'!$D$6:$D$55,'Results from Trace'!$A$6:$A$55,\"Stand-alone Base Utilities\",'Results from Trace'!$B$6:$B$55,\"Gas\"),\"\")),\"\")","v":""},{"$f":"IFERROR(IF($C$6=\"eQUEST\",\"\",IF($C$6=\"Trace\",SUMIFS('Results from Trace'!$C$6:$C$55,'Results from Trace'!$A$6:$A$55,\"Stand-alone Base Utilities\",'Results from Trace'!$B$6:$B$55,\"Purchased Steam\"),\"\")),\"\")","v":""},{"$f":"IFERROR(IF($C$6=\"eQUEST\",\"\",IF($C$6=\"Trace\",SUMIFS('Results from Trace'!$D$6:$D$55,'Results from Trace'!$A$6:$A$55,\"Stand-alone Base Utilities\",'Results from Trace'!$B$6:$B$55,\"Purchased Steam\"),\"\")),\"\")","v":""},{"$f":"IFERROR(IF($C$6=\"eQUEST\",\"\",IF($C$6=\"Trace\",SUMIFS('Results from Trace'!$C$6:$C$55,'Results from Trace'!$A$6:$A$55,\"Stand-alone Base Utilities\",'Results from Trace'!$B$6:$B$55,\"Purchased Hot Water\"),\"\")),\"\")","v":""},{"$f":"IFERROR(IF($C$6=\"eQUEST\",\"\",IF($C$6=\"Trace\",SUMIFS('Results from Trace'!$D$6:$D$55,'Results from Trace'!$A$6:$A$55,\"Stand-alone Base Utilities\",'Results from Trace'!$B$6:$B$55,\"Purchased Hot Water\"),\"\")),\"\")","v":""},{"$f":"IFERROR(IF($C$6=\"eQUEST\",\"\",IF($C$6=\"Trace\",SUMIFS('Results from Trace'!$C$6:$C$55,'Results from Trace'!$A$6:$A$55,\"Stand-alone Base Utilities\",'Results from Trace'!$B$6:$B$55,\"Purchased Chilled Water\"),\"\")),\"\")","v":""},{"$f":"IFERROR(IF($C$6=\"eQUEST\",\"\",IF($C$6=\"Trace\",SUMIFS('Results from Trace'!$D$6:$D$55,'Results from Trace'!$A$6:$A$55,\"Stand-alone Base Utilities\",'Results from Trace'!$B$6:$B$55,\"Purchased Chilled Water\"),\"\")),\"\")","v":""},{"$f":"IFERROR(IF($C$6=\"eQUEST\",\"\",IF($C$6=\"Trace\",SUMIFS('Results from Trace'!$C$6:$C$55,'Results from Trace'!$A$6:$A$55,\"Stand-alone Base Utilities\",'Results from Trace'!$B$6:$B$55,\"Oil\"),\"\")),\"\")","v":""},{"$f":"IFERROR(IF($C$6=\"eQUEST\",\"\",IF($C$6=\"Trace\",SUMIFS('Results from Trace'!$D$6:$D$55,'Results from Trace'!$A$6:$A$55,\"Stand-alone Base Utilities\",'Results from Trace'!$B$6:$B$55,\"Oil\"),\"\")),\"\")","v":""},{"$f":"IFERROR(IF($C$6=\"eQUEST\",\"\",IF($C$6=\"Trace\",SUMIFS('Results from Trace'!$C$6:$C$55,'Results from Trace'!$A$6:$A$55,\"Stand-alone Base Utilities\",'Results from Trace'!$B$6:$B$55,\"Propane\"),\"\")),\"\")","v":""},{"$f":"IFERROR(IF($C$6=\"eQUEST\",\"\",IF($C$6=\"Trace\",SUMIFS('Results from Trace'!$D$6:$D$55,'Results from Trace'!$A$6:$A$55,\"Stand-alone Base Utilities\",'Results from Trace'!$B$6:$B$55,\"Propane\"),\"\")),\"\")","v":""}]
[1,null,null,"Lighting",null,{"$f":"IFERROR(IF($C$6=\"eQUEST\",SUM('Results from eQUEST'!$L$7:$M$7)*0.003413,IF($C$6=\"Trace\",SUMIFS('Results from Trace'!$C$6:$C$55,'Results from Trace'!$A$6:$A$55,\"Lighting - Conditioned\",'Results from Trace'!$B$6:$B$55,\"Electricity\")+SUMIFS('Results from Trace'!$C$6:$C$55,'Results from Trace'!$A$6:$A$55,\"Lighting - Unconditioned\",'Results from Trace'!$B$6:$B$55,\"Electricity\"),\"\")),\"\")","v":""},{"$f":"IFERROR(IF($C$6=\"eQUEST\",SUM('Results from eQUEST'!$L$8:$M$8)*0.003413,IF($C$6=\"Trace\",SUMIFS('Results from Trace'!$D$6:$D$55,'Results from Trace'!$A$6:$A$55,\"Lighting - Conditioned\",'Results from Trace'!$B$6:$B$55,\"Electricity\")+SUMIFS('Results from Trace'!$D$6:$D$55,'Results from Trace'!$A$6:$A$55,\"Lighting - Unconditioned\",'Results from Trace'!$B$6:$B$55,\"Electricity\"),\"\")),\"\")","v":""},{"$f":"IFERROR(IF($C$6=\"eQUEST\",SUM('Results from eQUEST'!$AX$7:$AY$7)*0.1,IF($C$6=\"Trace\",SUMIFS('Results from Trace'!$C$6:$C$55,'Results from Trace'!$A$6:$A$55,\"Lighting - Conditioned\",'Results from Trace'!$B$6:$B$55,\"Gas\")+SUMIFS('Results from Trace'!$C$6:$C$55,'Results from Trace'!$A$6:$A$55,\"Lighting - Unconditioned\",'Results from Trace'!$B$6:$B$55,\"Gas\"),\"\")),\"\")","v":""},{"$f":"IFERROR(IF($C$6=\"eQUEST\",SUM('Results from eQUEST'!$AX$8:$AY$8)*0.1,IF($C$6=\"Trace\",SUMIFS('Results from Trace'!$D$6:$D$55,'Results from Trace'!$A$6:$A$55,\"Lighting - Conditioned\",'Results from Trace'!$B$6:$B$55,\"Gas\")+SUMIFS('Results from Trace'!$D$6:$D$55,'Results from Trace'!$A$6:$A$55,\"Lighting - Unconditioned\",'Results from Trace'!$B$6:$B$55,\"Gas\"),\"\")),\"\")","v":""},{"$f":"IFERROR(IF($C$6=\"eQUEST\",\"\",IF($C$6=\"Trace\",SUMIFS('Results from Trace'!$C$6:$C$55,'Results from Trace'!$A$6:$A$55,\"Lighting - Conditioned\",'Results from Trace'!$B$6:$B$55,\"Purchased Steam\")+SUMIFS('Results from Trace'!$C$6:$C$55,'Results from Trace'!$A$6:$A$55,\"Lighting - Unconditioned\",'Results from Trace'!$B$6:$B$55,\"Purchased Steam\"),\"\")),\"\")","v":""},{"$f":"IFERROR(IF($C$6=\"eQUEST\",\"\",IF($C$6=\"Trace\",SUMIFS('Results from Trace'!$D$6:$D$55,'Results from Trace'!$A$6:$A$55,\"Lighting - Conditioned\",'Results from Trace'!$B$6:$B$55,\"Purchased Steam\")+SUMIFS('Results from Trace'!$D$6:$D$55,'Results from Trace'!$A$6:$A$55,\"Lighting - Unconditioned\",'Results from Trace'!$B$6:$B$55,\"Purchased Steam\"),\"\")),\"\")","v":""},{"$f":"IFERROR(IF($C$6=\"eQUEST\",\"\",IF($C$6=\"Trace\",SUMIFS('Results from Trace'!$C$6:$C$55,'Results from Trace'!$A$6:$A$55,\"Lighting - Conditioned\",'Results from Trace'!$B$6:$B$55,\"Purchased Hot Water\")+SUMIFS('Results from Trace'!$C$6:$C$55,'Results from Trace'!$A$6:$A$55,\"Lighting - Unconditioned\",'Results from Trace'!$B$6:$B$55,\"Purchased Hot Water\"),\"\")),\"\")","v":""},{"$f":"IFERROR(IF($C$6=\"eQUEST\",\"\",IF($C$6=\"Trace\",SUMIFS('Results from Trace'!$D$6:$D$55,'Results from Trace'!$A$6:$A$55,\"Lighting - Conditioned\",'Results from Trace'!$B$6:$B$55,\"Purchased Hot Water\")+SUMIFS('Results from Trace'!$D$6:$D$55,'Results from Trace'!$A$6:$A$55,\"Lighting - Unconditioned\",'Results from Trace'!$B$6:$B$55,\"Purchased Hot Water\"),\"\")),\"\")","v":""},{"$f":"IFERROR(IF($C$6=\"eQUEST\",\"\",IF($C$6=\"Trace\",SUMIFS('Results from Trace'!$C$6:$C$55,'Results from Trace'!$A$6:$A$55,\"Lighting - Conditioned\",'Results from Trace'!$B$6:$B$55,\"Purchased Chilled Water\")+SUMIFS('Results from Trace'!$C$6:$C$55,'Results from Trace'!$A$6:$A$55,\"Lighting - Unconditioned\",'Results from Trace'!$B$6:$B$55,\"Purchased Chilled Water\"),\"\")),\"\")","v":""},{"$f":"IFERROR(IF($C$6=\"eQUEST\",\"\",IF($C$6=\"Trace\",SUMIFS('Results from Trace'!$D$6:$D$55,'Results from Trace'!$A$6:$A$55,\"Lighting - Conditioned\",'Results from Trace'!$B$6:$B$55,\"Purchased Chilled Water\")+SUMIFS('Results from Trace'!$D$6:$D$55,'Results from Trace'!$A$6:$A$55,\"Lighting - Unconditioned\",'Results from Trace'!$B$6:$B$55,\"Purchased Chilled Water\"),\"\")),\"\")","v":""},{"$f":"IFERROR(IF($C$6=\"eQUEST\",\"\",IF($C$6=\"Trace\",SUMIFS('Results from Trace'!$C$6:$C$55,'Results from Trace'!$A$6:$A$55,\"Lighting - Conditioned\",'Results from Trace'!$B$6:$B$55,\"Oil\")+SUMIFS('Results from Trace'!$C$6:$C$55,'Results from Trace'!$A$6:$A$55,\"Lighting - Unconditioned\",'Results from Trace'!$B$6:$B$55,\"Oil\"),\"\")),\"\")","v":""},{"$f":"IFERROR(IF($C$6=\"eQUEST\",\"\",IF($C$6=\"Trace\",SUMIFS('Results from Trace'!$D$6:$D$55,'Results from Trace'!$A$6:$A$55,\"Lighting - Conditioned\",'Results from Trace'!$B$6:$B$55,\"Oil\")+SUMIFS('Results from Trace'!$D$6:$D$55,'Results from Trace'!$A$6:$A$55,\"Lighting - Unconditioned\",'Results from Trace'!$B$6:$B$55,\"Oil\"),\"\")),\"\")","v":""},{"$f":"IFERROR(IF($C$6=\"eQUEST\",\"\",IF($C$6=\"Trace\",SUMIFS('Results from Trace'!$C$6:$C$55,'Results from Trace'!$A$6:$A$55,\"Lighting - Conditioned\",'Results from Trace'!$B$6:$B$55,\"Propane\")+SUMIFS('Results from Trace'!$C$6:$C$55,'Results from Trace'!$A$6:$A$55,\"Lighting - Unconditioned\",'Results from Trace'!$B$6:$B$55,\"Propane\"),\"\")),\"\")","v":""},{"$f":"IFERROR(IF($C$6=\"eQUEST\",\"\",IF($C$6=\"Trace\",SUMIFS('Results from Trace'!$D$6:$D$55,'Results from Trace'!$A$6:$A$55,\"Lighting - Conditioned\",'Results from Trace'!$B$6:$B$55,\"Propane\")+SUMIFS('Results from Trace'!$D$6:$D$55,'Results from Trace'!$A$6:$A$55,\"Lighting - Unconditioned\",'Results from Trace'!$B$6:$B$55,\"Propane\"),\"\")),\"\")","v":""}]
[null,null,null,"Pumps",null,{"$f":"IFERROR(IF($C$6=\"eQUEST\",'Results from eQUEST'!$R$7*0.003413,IF($C$6=\"Trace\",SUMIFS('Results from Trace'!$C$6:$C$55,'Results from Trace'!$A$6:$A$55,\"Pumps\",'Results from Trace'!$B$6:$B$55,\"Electricity\"),\"\")),\"\")","v":""},{"$f":"IFERROR(IF($C$6=\"eQUEST\",'Results from eQUEST'!$R$8*0.003413,IF($C$6=\"Trace\",SUMIFS('Results from Trace'!$D$6:$D$55,'Results from Trace'!$A$6:$A$55,\"Pumps\",'Results from Trace'!$B$6:$B$55,\"Electricity\"),\"\")),\"\")","v":""},{"$f":"IFERROR(IF($C$6=\"eQUEST\",'Results from eQUEST'!$BD$7*0.1,IF($C$6=\"Trace\",SUMIFS('Results from Trace'!$C$6:$C$55,'Results from Trace'!$A$6:$A$55,\"Pumps\",'Results from Trace'!$B$6:$B$55,\"Gas\"),\"\")),\"\")","v":""},{"$f":"IFERROR(IF($C$6=\"eQUEST\",'Results from eQUEST'!$BD$8*0.1,IF($C$6=\"Trace\",SUMIFS('Results from Trace'!$D$6:$D$55,'Results from Trace'!$A$6:$A$55,\"Pumps\",'Results from Trace'!$B$6:$B$55,\"Gas\"),\"\")),\"\")","v":""},{"$f":"IFERROR(IF($C$6=\"eQUEST\",\"\",IF($C$6=\"Trace\",SUMIFS('Results from Trace'!$C$6:$C$55,'Results from Trace'!$A$6:$A$55,\"Pumps\",'Results from Trace'!$B$6:$B$55,\"Purchased Steam\"),\"\")),\"\")","v":""},{"$f":"IFERROR(IF($C$6=\"eQUEST\",\"\",IF($C$6=\"Trace\",SUMIFS('Results from Trace'!$D$6:$D$55,'Results from Trace'!$A$6:$A$55,\"Pumps\",'Results from Trace'!$B$6:$B$55,\"Purchased Steam\"),\"\")),\"\")","v":""},{"$f":"IFERROR(IF($C$6=\"eQUEST\",\"\",IF($C$6=\"Trace\",SUMIFS('Results from Trace'!$C$6:$C$55,'Results from Trace'!$A$6:$A$55,\"Pumps\",'Results from Trace'!$B$6:$B$55,\"Purchased Hot Water\"),\"\")),\"\")","v":""},{"$f":"IFERROR(IF($C$6=\"eQUEST\",\"\",IF($C$6=\"Trace\",SUMIFS('Results from Trace'!$D$6:$D$55,'Results from Trace'!$A$6:$A$55,\"Pumps\",'Results from Trace'!$B$6:$B$55,\"Purchased Hot Water\"),\"\")),\"\")","v":""},{"$f":"IFERROR(IF($C$6=\"eQUEST\",\"\",IF($C$6=\"Trace\",SUMIFS('Results from Trace'!$C$6:$C$55,'Results from Trace'!$A$6:$A$55,\"Pumps\",'Results from Trace'!$B$6:$B$55,\"Purchased Chilled Water\"),\"\")),\"\")","v":""},{"$f":"IFERROR(IF($C$6=\"eQUEST\",\"\",IF($C$6=\"Trace\",SUMIFS('Results from Trace'!$D$6:$D$55,'Results from Trace'!$A$6:$A$55,\"Pumps\",'Results from Trace'!$B$6:$B$55,\"Purchased Chilled Water\"),\"\")),\"\")","v":""},{"$f":"IFERROR(IF($C$6=\"eQUEST\",\"\",IF($C$6=\"Trace\",SUMIFS('Results from Trace'!$C$6:$C$55,'Results from Trace'!$A$6:$A$55,\"Pumps\",'Results from Trace'!$B$6:$B$55,\"Oil\"),\"\")),\"\")","v":""},{"$f":"IFERROR(IF($C$6=\"eQUEST\",\"\",IF($C$6=\"Trace\",SUMIFS('Results from Trace'!$D$6:$D$55,'Results from Trace'!$A$6:$A$55,\"Pumps\",'Results from Trace'!$B$6:$B$55,\"Oil\"),\"\")),\"\")","v":""},{"$f":"IFERROR(IF($C$6=\"eQUEST\",\"\",IF($C$6=\"Trace\",SUMIFS('Results from Trace'!$C$6:$C$55,'Results from Trace'!$A$6:$A$55,\"Pumps\",'Results from Trace'!$B$6:$B$55,\"Propane\"),\"\")),\"\")","v":""},{"$f":"IFERROR(IF($C$6=\"eQUEST\",\"\",IF($C$6=\"Trace\",SUMIFS('Results from Trace'!$D$6:$D$55,'Results from Trace'!$A$6:$A$55,\"Pumps\",'Results from Trace'!$B$6:$B$55,\"Propane\"),\"\")),\"\")","v":""}]
[null,null,null,"Heat Rejection",null,{"$f":"IFERROR(IF($C$6=\"eQUEST\",'Results from eQUEST'!$Q$7*0.003413,IF($C$6=\"Trace\",SUMIFS('Results from Trace'!$C$6:$C$55,'Results from Trace'!$A$6:$A$55,\"Heat Rejection\",'Results from Trace'!$B$6:$B$55,\"Electricity\"),\"\")),\"\")","v":""},{"$f":"IFERROR(IF($C$6=\"eQUEST\",'Results from eQUEST'!$Q$8*0.003413,IF($C$6=\"Trace\",SUMIFS('Results from Trace'!$D$6:$D$55,'Results from Trace'!$A$6:$A$55,\"Heat Rejection\",'Results from Trace'!$B$6:$B$55,\"Electricity\"),\"\")),\"\")","v":""},{"$f":"IFERROR(IF($C$6=\"eQUEST\",'Results from eQUEST'!$BC$7*0.1,IF($C$6=\"Trace\",SUMIFS('Results from Trace'!$C$6:$C$55,'Results from Trace'!$A$6:$A$55,\"Heat Rejection\",'Results from Trace'!$B$6:$B$55,\"Gas\"),\"\")),\"\")","v":""},{"$f":"IFERROR(IF($C$6=\"eQUEST\",'Results from eQUEST'!$BC$8*0.1,IF($C$6=\"Trace\",SUMIFS('Results from Trace'!$D$6:$D$55,'Results from Trace'!$A$6:$A$55,\"Heat Rejection\",'Results from Trace'!$B$6:$B$55,\"Gas\"),\"\")),\"\")","v":""},{"$f":"IFERROR(IF($C$6=\"eQUEST\",\"\",IF($C$6=\"Trace\",SUMIFS('Results from Trace'!$C$6:$C$55,'Results from Trace'!$A$6:$A$55,\"Heat Rejection\",'Results from Trace'!$B$6:$B$55,\"Purchased Steam\"),\"\")),\"\")","v":""},{"$f":"IFERROR(IF($C$6=\"eQUEST\",\"\",IF($C$6=\"Trace\",SUMIFS('Results from Trace'!$D$6:$D$55,'Results from Trace'!$A$6:$A$55,\"Heat Rejection\",'Results from Trace'!$B$6:$B$55,\"Purchased Steam\"),\"\")),\"\")","v":""},{"$f":"IFERROR(IF($C$6=\"eQUEST\",\"\",IF($C$6=\"Trace\",SUMIFS('Results from Trace'!$C$6:$C$55,'Results from Trace'!$A$6:$A$55,\"Heat Rejection\",'Results from Trace'!$B$6:$B$55,\"Purchased Hot Water\"),\"\")),\"\")","v":""},{"$f":"IFERROR(IF($C$6=\"eQUEST\",\"\",IF($C$6=\"Trace\",SUMIFS('Results from Trace'!$D$6:$D$55,'Results from Trace'!$A$6:$A$55,\"Heat Rejection\",'Results from Trace'!$B$6:$B$55,\"Purchased Hot Water\"),\"\")),\"\")","v":""},{"$f":"IFERROR(IF($C$6=\"eQUEST\",\"\",IF($C$6=\"Trace\",SUMIFS('Results from Trace'!$C$6:$C$55,'Results from Trace'!$A$6:$A$55,\"Heat Rejection\",'Results from Trace'!$B$6:$B$55,\"Purchased Chilled Water\"),\"\")),\"\")","v":""},{"$f":"IFERROR(IF($C$6=\"eQUEST\",\"\",IF($C$6=\"Trace\",SUMIFS('Results from Trace'!$D$6:$D$55,'Results from Trace'!$A$6:$A$55,\"Heat Rejection\",'Results from Trace'!$B$6:$B$55,\"Purchased Chilled Water\"),\"\")),\"\")","v":""},{"$f":"IFERROR(IF($C$6=\"eQUEST\",\"\",IF($C$6=\"Trace\",SUMIFS('Results from Trace'!$C$6:$C$55,'Results from Trace'!$A$6:$A$55,\"Heat Rejection\",'Results from Trace'!$B$6:$B$55,\"Oil\"),\"\")),\"\")","v":""},{"$f":"IFERROR(IF($C$6=\"eQUEST\",\"\",IF($C$6=\"Trace\",SUMIFS('Results from Trace'!$D$6:$D$55,'Results from Trace'!$A$6:$A$55,\"Heat Rejection\",'Results from Trace'!$B$6:$B$55,\"Oil\"),\"\")),\"\")","v":""},{"$f":"IFERROR(IF($C$6=\"eQUEST\",\"\",IF($C$6=\"Trace\",SUMIFS('Results from Trace'!$C$6:$C$55,'Results from Trace'!$A$6:$A$55,\"Heat Rejection\",'Results from Trace'!$B$6:$B$55,\"Propane\"),\"\")),\"\")","v":""},{"$f":"IFERROR(IF($C$6=\"eQUEST\",\"\",IF($C$6=\"Trace\",SUMIFS('Results from Trace'!$D$6:$D$55,'Results from Trace'!$A$6:$A$55,\"Heat Rejection\",'Results from Trace'!$B$6:$B$55,\"Propane\"),\"\")),\"\")","v":""}]
[null,null,null,"Supplemental Heat Pump",null,{"$f":"IFERROR(IF($C$6=\"eQUEST\",'Results from eQUEST'!$U$7*0.003413,IF($C$6=\"Trace\",0,\"\")),\"\")","v":""},{"$f":"IFERROR(IF($C$6=\"eQUEST\",'Results from eQUEST'!$U$8*0.003413,IF($C$6=\"Trace\",0,\"\")),\"\")","v":""},{"$f":"IFERROR(IF($C$6=\"eQUEST\",'Results from eQUEST'!$BG$7*0.1,IF($C$6=\"Trace\",0,\"\")),\"\")","v":""},{"$f":"IFERROR(IF($C$6=\"eQUEST\",'Results from eQUEST'!$BG$8*0.1,IF($C$6=\"Trace\",0,\"\")),\"\")","v":""}]
[null,null,null,"Exterior Usage",null,{"$f":"IFERROR(IF($C$6=\"eQUEST\",'Results from eQUEST'!$W$7*0.003413,IF($C$6=\"Trace\",0,\"\")),\"\")","v":""},{"$f":"IFERROR(IF($C$6=\"eQUEST\",'Results from eQUEST'!$W$8*0.003413,IF($C$6=\"Trace\",0,\"\")),\"\")","v":""},{"$f":"IFERROR(IF($C$6=\"eQUEST\",'Results from eQUEST'!$BI$7*0.1,IF($C$6=\"Trace\",0,\"\")),\"\")","v":""},{"$f":"IFERROR(IF($C$6=\"eQUEST\",'Results from eQUEST'!$BI$8*0.1,IF($C$6=\"Trace\",0,\"\")),\"\")","v":""}]
[1,null,null,"Plug and Process Load",null,{"$f":"IFERROR(IF($C$6=\"eQUEST\",'Results from eQUEST'!$N$7*0.003413,IF($C$6=\"Trace\",SUMIFS('Results from Trace'!$C$6:$C$55,'Results from Trace'!$A$6:$A$55,\"Receptacles - Conditioned\",'Results from Trace'!$B$6:$B$55,\"Electricity\")+SUMIFS('Results from Trace'!$C$6:$C$55,'Results from Trace'!$A$6:$A$55,\"Receptacles - Unconditioned\",'Results from Trace'!$B$6:$B$55,\"Electricity\")+SUMIFS('Results from Trace'!$C$6:$C$55,'Results from Trace'!$A$6:$A$55,\"Stand-alone Base Utilities\",'Results from Trace'!$B$6:$B$55,\"Electricity\"),\"\")),\"\")","v":""},{"$f":"IFERROR(IF($C$6=\"eQUEST\",'Results from eQUEST'!$N$8*0.003413,IF($C$6=\"Trace\",SUMIFS('Results from Trace'!$D$6:$D$55,'Results from Trace'!$A$6:$A$55,\"Receptacles - Conditioned\",'Results from Trace'!$B$6:$B$55,\"Electricity\")+SUMIFS('Results from Trace'!$D$6:$D$55,'Results from Trace'!$A$6:$A$55,\"Receptacles - Unconditioned\",'Results from Trace'!$B$6:$B$55,\"Electricity\")+SUMIFS('Results from Trace'!$D$6:$D$55,'Results from Trace'!$A$6:$A$55,\"Stand-alone Base Utilities\",'Results from Trace'!$B$6:$B$55,\"Electricity\"),\"\")),\"\")","v":""},{"$f":"IFERROR(IF($C$6=\"eQUEST\",'Results from eQUEST'!$AZ$7*0.1,IF($C$6=\"Trace\",SUMIFS('Results from Trace'!$C$6:$C$55,'Results from Trace'!$A$6:$A$55,\"Receptacles - Conditioned\",'Results from Trace'!$B$6:$B$55,\"Gas\")+SUMIFS('Results from Trace'!$C$6:$C$55,'Results from Trace'!$A$6:$A$55,\"Receptacles - Unconditioned\",'Results from Trace'!$B$6:$B$55,\"Gas\"),\"\")),\"\")","v":""},{"$f":"IFERROR(IF($C$6=\"eQUEST\",'Results from eQUEST'!$AZ$8*0.1,IF($C$6=\"Trace\",SUMIFS('Results from Trace'!$D$6:$D$55,'Results from Trace'!$A$6:$A$55,\"Receptacles - Conditioned\",'Results from Trace'!$B$6:$B$55,\"Gas\")+SUMIFS('Results from Trace'!$D$6:$D$55,'Results from Trace'!$A$6:$A$55,\"Receptacles - Unconditioned\",'Results from Trace'!$B$6:$B$55,\"Gas\"),\"\")),\"\")","v":""},{"$f":"IFERROR(IF($C$6=\"eQUEST\",\"\",IF($C$6=\"Trace\",SUMIFS('Results from Trace'!$C$6:$C$55,'Results from Trace'!$A$6:$A$55,\"Receptacles - Conditioned\",'Results from Trace'!$B$6:$B$55,\"Purchased Steam\")+SUMIFS('Results from Trace'!$C$6:$C$55,'Results from Trace'!$A$6:$A$55,\"Receptacles - Unconditioned\",'Results from Trace'!$B$6:$B$55,\"Purchased Steam\"),\"\")),\"\")","v":""},{"$f":"IFERROR(IF($C$6=\"eQUEST\",\"\",IF($C$6=\"Trace\",SUMIFS('Results from Trace'!$D$6:$D$55,'Results from Trace'!$A$6:$A$55,\"Receptacles - Conditioned\",'Results from Trace'!$B$6:$B$55,\"Purchased Steam\")+SUMIFS('Results from Trace'!$D$6:$D$55,'Results from Trace'!$A$6:$A$55,\"Receptacles - Unconditioned\",'Results from Trace'!$B$6:$B$55,\"Purchased Steam\"),\"\")),\"\")","v":""},{"$f":"IFERROR(IF($C$6=\"eQUEST\",\"\",IF($C$6=\"Trace\",SUMIFS('Results from Trace'!$C$6:$C$55,'Results from Trace'!$A$6:$A$55,\"Receptacles - Conditioned\",'Results from Trace'!$B$6:$B$55,\"Purchased Hot Water\")+SUMIFS('Results from Trace'!$C$6:$C$55,'Results from Trace'!$A$6:$A$55,\"Receptacles - Unconditioned\",'Results from Trace'!$B$6:$B$55,\"Purchased Hot Water\"),\"\")),\"\")","v":""},{"$f":"IFERROR(IF($C$6=\"eQUEST\",\"\",IF($C$6=\"Trace\",SUMIFS('Results from Trace'!$D$6:$D$55,'Results from Trace'!$A$6:$A$55,\"Receptacles - Conditioned\",'Results from Trace'!$B$6:$B$55,\"Purchased Hot Water\")+SUMIFS('Results from Trace'!$D$6:$D$55,'Results from Trace'!$A$6:$A$55,\"Receptacles - Unconditioned\",'Results from Trace'!$B$6:$B$55,\"Purchased Hot Water\"),\"\")),\"\")","v":""},{"$f":"IFERROR(IF($C$6=\"eQUEST\",\"\",IF($C$6=\"Trace\",SUMIFS('Results from Trace'!$C$6:$C$55,'Results from Trace'!$A$6:$A$55,\"Receptacles - Conditioned\",'Results from Trace'!$B$6:$B$55,\"Purchased Chilled Water\")+SUMIFS('Results from Trace'!$C$6:$C$55,'Results from Trace'!$A$6:$A$55,\"Receptacles - Unconditioned\",'Results from Trace'!$B$6:$B$55,\"Purchased Chilled Water\"),\"\")),\"\")","v":""},{"$f":"IFERROR(IF($C$6=\"eQUEST\",\"\",IF($C$6=\"Trace\",SUMIFS('Results from Trace'!$D$6:$D$55,'Results from Trace'!$A$6:$A$55,\"Receptacles - Conditioned\",'Results from Trace'!$B$6:$B$55,\"Purchased Chilled Water\")+SUMIFS('Results from Trace'!$D$6:$D$55,'Results from Trace'!$A$6:$A$55,\"Receptacles - Unconditioned\",'Results from Trace'!$B$6:$B$55,\"Purchased Chilled Water\"),\"\")),\"\")","v":""},{"$f":"IFERROR(IF($C$6=\"eQUEST\",\"\",IF($C$6=\"Trace\",SUMIFS('Results from Trace'!$C$6:$C$55,'Results from Trace'!$A$6:$A$55,\"Receptacles - Conditioned\",'Results from Trace'!$B$6:$B$55,\"Oil\")+SUMIFS('Results from Trace'!$C$6:$C$55,'Results from Trace'!$A$6:$A$55,\"Receptacles - Unconditioned\",'Results from Trace'!$B$6:$B$55,\"Oil\"),\"\")),\"\")","v":""},{"$f":"IFERROR(IF($C$6=\"eQUEST\",\"\",IF($C$6=\"Trace\",SUMIFS('Results from Trace'!$D$6:$D$55,'Results from Trace'!$A$6:$A$55,\"Receptacles - Conditioned\",'Results from Trace'!$B$6:$B$55,\"Oil\")+SUMIFS('Results from Trace'!$D$6:$D$55,'Results from Trace'!$A$6:$A$55,\"Receptacles - Unconditioned\",'Results from Trace'!$B$6:$B$55,\"Oil\"),\"\")),\"\")","v":""},{"$f":"IFERROR(IF($C$6=\"eQUEST\",\"\",IF($C$6=\"Trace\",SUMIFS('Results from Trace'!$C$6:$C$55,'Results from Trace'!$A$6:$A$55,\"Receptacles - Conditioned\",'Results from Trace'!$B$6:$B$55,\"Propane\")+SUMIFS('Results from Trace'!$C$6:$C$55,'Results from Trace'!$A$6:$A$55,\"Receptacles - Unconditioned\",'Results from Trace'!$B$6:$B$55,\"Propane\"),\"\")),\"\")","v":""},{"$f":"IFERROR(IF($C$6=\"eQUEST\",\"\",IF($C$6=\"Trace\",SUMIFS('Results from Trace'!$D$6:$D$55,'Results from Trace'!$A$6:$A$55,\"Receptacles - Conditioned\",'Results from Trace'!$B$6:$B$55,\"Propane\")+SUMIFS('Results from Trace'!$D$6:$D$55,'Results from Trace'!$A$6:$A$55,\"Receptacles - Unconditioned\",'Results from Trace'!$B$6:$B$55,\"Propane\"),\"\")),\"\")","v":""}]
[1,null,null,"Refrigeration",null,{"$f":"IFERROR(IF($C$6=\"eQUEST\",'Results from eQUEST'!$T$7*0.003413,IF($C$6=\"Trace\",0,\"\")),\"\")","v":""},{"$f":"IFERROR(IF($C$6=\"eQUEST\",'Results from eQUEST'!$T$8*0.003413,IF($C$6=\"Trace\",0,\"\")),\"\")","v":""},{"$f":"IFERROR(IF($C$6=\"eQUEST\",'Results from eQUEST'!$BF$7*0.1,IF($C$6=\"Trace\",0,\"\")),\"\")","v":""},{"$f":"IFERROR(IF($C$6=\"eQUEST\",'Results from eQUEST'!$BF$8*0.1,IF($C$6=\"Trace\",0,\"\")),\"\")","v":""}]
[1,null,null,"Total",null,{"$f":"SUM(F7:F17)","v":0},{"$f":"SUM(G7:G17)","v":0},0,0,0,0,0,0,0,0,0,0,0,0,0,0]
[1]
[1,null,null,"Measure Name",null,"Savings Calculation Method","Simulation Run Name","Annual Electric Use \n(kWh)","Peak Demand (kW)","Annual Natural Gas Use\n(MMBtu)","Annual Steam Use\n(MMBtu)","Annual Hot Water Use (MMBtu)","Annual Chilled Water Use (MMBtu)","Annual Fuel Oil Use\n(MMBtu)","Annual Propane Use\n(MMBtu)","Annual Other Use\n(MMBtu)","Changes Made to Previous Model Run"]
[0,null,null,null,null,null,null,null,null,{"$f":"'Utility Use Summary'!H8","v":0},{"$f":"'Utility Use Summary'!N8","v":0},{"$f":"'Utility Use Summary'!R8","v":0},{"$f":"'Utility Use Summary'!P8","v":0},{"$f":"'Utility Use Summary'!J8","v":0},{"$f":"'Utility Use Summary'!L8","v":0},{"$f":"'Utility Use Summary'!T8","v":0}]
[1,null,null,null,"Baseline","-","Baseline",{"$f":"IFERROR(IF($C$6=\"eQUEST\",IF('Results from eQUEST'!$I7=\"\",\"\",'Results from eQUEST'!$X7),IF($C$6=\"Trace\",IF(SUM('Results from Trace'!$C$6:$C$55)=0,\"\",SUMIFS('Results from Trace'!$C$6:$C$55,'Results from Trace'!$B$6:$B$55,\"Electricity\")/0.003412),\"\")),\"\")","v":""},{"$f":"IFERROR(IF($C$6=\"eQUEST\",IF('Results from eQUEST'!$I7=\"\",\"\",'Results from eQUEST'!$AW7),IF($C$6=\"Trace\",\"\",\"\")),\"\")","v":""},{"$f":"IFERROR(IF($C$6=\"eQUEST\",IF('Results from eQUEST'!$I7=\"\",\"\",'Results from eQUEST'!$BJ7*0.1),IF($C$6=\"Trace\",IF(SUM('Results from Trace'!$C$6:$C$55)=0,\"\",SUMIFS('Results from Trace'!$C$6:$C$55,'Results from Trace'!$B$6:$B$55,\"Gas\")),\"\")),\"\")","v":""},{"$f":"IFERROR(IF($C$6=\"eQUEST\",\"\",IF($C$6=\"Trace\",IF(SUM('Results from Trace'!$C$6:$C$55)=0,\"\",SUMIFS('Results from Trace'!$C$6:$C$55,'Results from Trace'!$B$6:$B$55,\"Purchased Steam\")),\"\")),\"\")","v":""},{"$f":"IFERROR(IF($C$6=\"eQUEST\",\"\",IF($C$6=\"Trace\",IF(SUM('Results from Trace'!$C$6:$C$55)=0,\"\",SUMIFS('Results from Trace'!$C$6:$C$55,'Results from Trace'!$B$6:$B$55,\"Purchased Hot Water\")),\"\")),\"\")","v":""},{"$f":"IFERROR(IF($C$6=\"eQUEST\",\"\",IF($C$6=\"Trace\",IF(SUM('Results from Trace'!$C$6:$C$55)=0,\"\",SUMIFS('Results from Trace'!$C$6:$C$55,'Results from Trace'!$B$6:$B$55,\"Purchased Chilled Water\")),\"\")),\"\")","v":""},{"$f":"IFERROR(IF($C$6=\"eQUEST\",\"\",IF($C$6=\"Trace\",IF(SUM('Results from Trace'!$C$6:$C$55)=0,\"\",SUMIFS('Results from Trace'!$C$6:$C$55,'Results from Trace'!$B$6:$B$55,\"Oil\")),\"\")),\"\")","v":""},{"$f":"IFERROR(IF($C$6=\"eQUEST\",\"\",IF($C$6=\"Trace\",IF(SUM('Results from Trace'!$C$6:$C$55)=0,\"\",SUMIFS('Results from Trace'!$C$6:$C$55,'Results from Trace'!$B$6:$B$55,\"Propane\")),\"\")),\"\")","v":""},null,"N/A"]
[1,null,null,"Ex",{"$f":"'Measure Descriptions'!C6","v":"Boiler Replacement"},"Simulation","Boiler-1,2",246000,424,9500,null,null,null,null,null,null,"Changed efficiency from 75% to 90%"]
[1,null,null,1,{"$f":"IF('Measure Descriptions'!C7=0,\" \",'Measure Descriptions'!C7)","v":" "},null,null,{"$f":"IFERROR(IF($C$6=\"eQUEST\",IF('Results from eQUEST'!$I9=\"\",\"\",'Results from eQUEST'!$X9),IF($C$6=\"Trace\",IF(SUM('Results from Trace'!$E$6:$E$55)=0,\"\",SUMIFS('Results from Trace'!$E$6:$E$55,'Results from Trace'!$B$6:$B$55,\"Electricity\")/0.003412),\"\")),\"\")","v":""},{"$f":"IFERROR(IF($C$6=\"eQUEST\",IF('Results from eQUEST'!$I9=\"\",\"\",'Results from eQUEST'!$AW9),IF($C$6=\"Trace\",\"\",\"\")),\"\")","v":""},{"$f":"IFERROR(IF($C$6=\"eQUEST\",IF('Results from eQUEST'!$I9=\"\",\"\",'Results from eQUEST'!$BJ9*0.1),IF($C$6=\"Trace\",IF(SUM('Results from Trace'!$E$6:$E$55)=0,\"\",SUMIFS('Results from Trace'!$E$6:$E$55,'Results from Trace'!$B$6:$B$55,\"Gas\")),\"\")),\"\")","v":""},{"$f":"IFERROR(IF($C$6=\"eQUEST\",\"\",IF($C$6=\"Trace\",IF(SUM('Results from Trace'!$E$6:$E$55)=0,\"\",SUMIFS('Results from Trace'!$E$6:$E$55,'Results from Trace'!$B$6:$B$55,\"Purchased Steam\")),\"\")),\"\")","v":""},{"$f":"IFERROR(IF($C$6=\"eQUEST\",\"\",IF($C$6=\"Trace\",IF(SUM('Results from Trace'!$E$6:$E$55)=0,\"\",SUMIFS('Results from Trace'!$E$6:$E$55,'Results from Trace'!$B$6:$B$55,\"Purchased Hot Water\")),\"\")),\"\")","v":""},{"$f":"IFERROR(IF($C$6=\"eQUEST\",\"\",IF($C$6=\"Trace\",IF(SUM('Results from Trace'!$E$6:$E$55)=0,\"\",SUMIFS('Results from Trace'!$E$6:$E$55,'Results from Trace'!$B$6:$B$55,\"Purchased Chilled Water\")),\"\")),\"\")","v":""},{"$f":"IFERROR(IF($C$6=\"eQUEST\",\"\",IF($C$6=\"Trace\",IF(SUM('Results from Trace'!$E$6:$E$55)=0,\"\",SUMIFS('Results from Trace'!$E$6:$E$55,'Results from Trace'!$B$6:$B$55,\"Oil\")),\"\")),\"\")","v":""},{"$f":"IFERROR(IF($C$6=\"eQUEST\",\"\",IF($C$6=\"Trace\",IF(SUM('Results from Trace'!$E$6:$E$55)=0,\"\",SUMIFS('Results from Trace'!$E$6:$E$55,'Results from Trace'!$B$6:$B$55,\"Propane\")),\"\")),\"\")","v":""}]
[1,null,null,2,{"$f":"IF('Measure Descriptions'!C8=0,\" \",'Measure Descriptions'!C8)","v":" "},null,null,{"$f":"IFERROR(IF($C$6=\"eQUEST\",IF('Results from eQUEST'!$I10=\"\",\"\",'Results from eQUEST'!$X10),IF($C$6=\"Trace\",IF(SUM('Results from Trace'!$E$6:$E$55)=0,\"\",SUMIFS('Results from Trace'!$E$6:$E$55,'Results from Trace'!$B$6:$B$55,\"Electricity\")/0.003412),\"\")),\"\")","v":""},{"$f":"IFERROR(IF($C$6=\"eQUEST\",IF('Results from eQUEST'!$I10=\"\",\"\",'Results from eQUEST'!$AW10),IF($C$6=\"Trace\",\"\",\"\")),\"\")","v":""},{"$f":"IFERROR(IF($C$6=\"eQUEST\",IF('Results from eQUEST'!$I10=\"\",\"\",'Results from eQUEST'!$BJ10*0.1),IF($C$6=\"Trace\",IF(SUM('Results from Trace'!$F$6:$F$55)=0,\"\",SUMIFS('Results from Trace'!$F$6:$F$55,'Results from Trace'!$B$6:$B$55,\"Gas\")),\"\")),\"\")","v":""},{"$f":"IFERROR(IF($C$6=\"eQUEST\",\"\",IF($C$6=\"Trace\",IF(SUM('Results from Trace'!$F$6:$F$55)=0,\"\",SUMIFS('Results from Trace'!$F$6:$F$55,'Results from Trace'!$B$6:$B$55,\"Purchased Steam\")),\"\")),\"\")","v":""},{"$f":"IFERROR(IF($C$6=\"eQUEST\",\"\",IF($C$6=\"Trace\",IF(SUM('Results from Trace'!$F$6:$F$55)=0,\"\",SUMIFS('Results from Trace'!$F$6:$F$55,'Results from Trace'!$B$6:$B$55,\"Purchased Hot Water\")),\"\")),\"\")","v":""},{"$f":"IFERROR(IF($C$6=\"eQUEST\",\"\",IF($C$6=\"Trace\",IF(SUM('Results from Trace'!$F$6:$F$55)=0,\"\",SUMIFS('Results from Trace'!$F$6:$F$55,'Results from Trace'!$B$6:$B$55,\"Purchased Chilled Water\")),\"\")),\"\")","v":""},{"$f":"IFERROR(IF($C$6=\"eQUEST\",\"\",IF($C$6=\"Trace\",IF(SUM('Results from Trace'!$F$6:$F$55)=0,\"\",SUMIFS('Results from Trace'!$F$6:$F$55,'Results from Trace'!$B$6:$B$55,\"Oil\")),\"\")),\"\")","v":""},{"$f":"IFERROR(IF($C$6=\"eQUEST\",\"\",IF($C$6=\"Trace\",IF(SUM('Results from Trace'!$F$6:$F$55)=0,\"\",SUMIFS('Results from Trace'!$F$6:$F$55,'Results from Trace'!$B$6:$B$55,\"Propane\")),\"\")),\"\")","v":""}]
[1,null,null,3,{"$f":"IF('Measure Descriptions'!C9=0,\" \",'Measure Descriptions'!C9)","v":" "},null,null,{"$f":"IFERROR(IF($C$6=\"eQUEST\",IF('Results from eQUEST'!$I11=\"\",\"\",'Results from eQUEST'!$X11),IF($C$6=\"Trace\",IF(SUM('Results from Trace'!$E$6:$E$55)=0,\"\",SUMIFS('Results from Trace'!$E$6:$E$55,'Results from Trace'!$B$6:$B$55,\"Electricity\")/0.003412),\"\")),\"\")","v":""},{"$f":"IFERROR(IF($C$6=\"eQUEST\",IF('Results from eQUEST'!$I11=\"\",\"\",'Results from eQUEST'!$AW11),IF($C$6=\"Trace\",\"\",\"\")),\"\")","v":""},{"$f":"IFERROR(IF($C$6=\"eQUEST\",IF('Results from eQUEST'!$I11=\"\",\"\",'Results from eQUEST'!$BJ11*0.1),IF($C$6=\"Trace\",IF(SUM('Results from Trace'!$G$6:$G$55)=0,\"\",SUMIFS('Results from Trace'!$G$6:$G$55,'Results from Trace'!$B$6:$B$55,\"Gas\")),\"\")),\"\")","v":""},{"$f":"IFERROR(IF($C$6=\"eQUEST\",\"\",IF($C$6=\"Trace\",IF(SUM('Results from Trace'!$G$6:$G$55)=0,\"\",SUMIFS('Results from Trace'!$G$6:$G$55,'Results from Trace'!$B$6:$B$55,\"Purchased Steam\")),\"\")),\"\")","v":""},{"$f":"IFERROR(IF($C$6=\"eQUEST\",\"\",IF($C$6=\"Trace\",IF(SUM('Results from Trace'!$G$6:$G$55)=0,\"\",SUMIFS('Results from Trace'!$G$6:$G$55,'Results from Trace'!$B$6:$B$55,\"Purchased Hot Water\")),\"\")),\"\")","v":""},{"$f":"IFERROR(IF($C$6=\"eQUEST\",\"\",IF($C$6=\"Trace\",IF(SUM('Results from Trace'!$G$6:$G$55)=0,\"\",SUMIFS('Results from Trace'!$G$6:$G$55,'Results from Trace'!$B$6:$B$55,\"Purchased Chilled Water\")),\"\")),\"\")","v":""},{"$f":"IFERROR(IF($C$6=\"eQUEST\",\"\",IF($C$6=\"Trace\",IF(SUM('Results from Trace'!$G$6:$G$55)=0,\"\",SUMIFS('Results from Trace'!$G$6:$G$55,'Results from Trace'!$B$6:$B$55,\"Oil\")),\"\")),\"\")","v":""},{"$f":"IFERROR(IF($C$6=\"eQUEST\",\"\",IF($C$6=\"Trace\",IF(SUM('Results from Trace'!$G$6:$G$55)=0,\"\",SUMIFS('Results from Trace'!$G$6:$G$55,'Results from Trace'!$B$6:$B$55,\"Propane\")),\"\")),\"\")","v":""}]
[1,null,null,4,{"$f":"IF('Measure Descriptions'!C10=0,\" \",'Measure Descriptions'!C10)","v":" "},null,null,{"$f":"IFERROR(IF($C$6=\"eQUEST\",IF('Results from eQUEST'!$I12=\"\",\"\",'Results from eQUEST'!$X12),IF($C$6=\"Trace\",IF(SUM('Results from Trace'!$E$6:$E$55)=0,\"\",SUMIFS('Results from Trace'!$E$6:$E$55,'Results from Trace'!$B$6:$B$55,\"Electricity\")/0.003412),\"\")),\"\")","v":""},{"$f":"IFERROR(IF($C$6=\"eQUEST\",IF('Results from eQUEST'!$I12=\"\",\"\",'Results from eQUEST'!$AW12),IF($C$6=\"Trace\",\"\",\"\")),\"\")","v":""},{"$f":"IFERROR(IF($C$6=\"eQUEST\",IF('Results from eQUEST'!$I12=\"\",\"\",'Results from eQUEST'!$BJ12*0.1),IF($C$6=\"Trace\",IF(SUM('Results from Trace'!$H$6:$H$55)=0,\"\",SUMIFS('Results from Trace'!$H$6:$H$55,'Results from Trace'!$B$6:$B$55,\"Gas\")),\"\")),\"\")","v":""},{"$f":"IFERROR(IF($C$6=\"eQUEST\",\"\",IF($C$6=\"Trace\",IF(SUM('Results from Trace'!$H$6:$H$55)=0,\"\",SUMIFS('Results from Trace'!$H$6:$H$55,'Results from Trace'!$B$6:$B$55,\"Purchased Steam\")),\"\")),\"\")","v":""},{"$f":"IFERROR(IF($C$6=\"eQUEST\",\"\",IF($C$6=\"Trace\",IF(SUM('Results from Trace'!$H$6:$H$55)=0,\"\",SUMIFS('Results from Trace'!$H$6:$H$55,'Results from Trace'!$B$6:$B$55,\"Purchased Hot Water\")),\"\")),\"\")","v":""},{"$f":"IFERROR(IF($C$6=\"eQUEST\",\"\",IF($C$6=\"Trace\",IF(SUM('Results from Trace'!$H$6:$H$55)=0,\"\",SUMIFS('Results from Trace'!$H$6:$H$55,'Results from Trace'!$B$6:$B$55,\"Purchased Chilled Water\")),\"\")),\"\")","v":""},{"$f":"IFERROR(IF($C$6=\"eQUEST\",\"\",IF($C$6=\"Trace\",IF(SUM('Results from Trace'!$H$6:$H$55)=0,\"\",SUMIFS('Results from Trace'!$H$6:$H$55,'Results from Trace'!$B$6:$B$55,\"Oil\")),\"\")),\"\")","v":""},{"$f":"IFERROR(IF($C$6=\"eQUEST\",\"\",IF($C$6=\"Trace\",IF(SUM('Results from Trace'!$H$6:$H$55)=0,\"\",SUMIFS('Results from Trace'!$H$6:$H$55,'Results from Trace'!$B$6:$B$55,\"Propane\")),\"\")),\"\")","v":""}]
[1,null,null,5,{"$f":"IF('Measure Descriptions'!C11=0,\" \",'Measure Descriptions'!C11)","v":" "},null,null,{"$f":"IFERROR(IF($C$6=\"eQUEST\",IF('Results from eQUEST'!$I13=\"\",\"\",'Results from eQUEST'!$X13),IF($C$6=\"Trace\",IF(SUM('Results from Trace'!$E$6:$E$55)=0,\"\",SUMIFS('Results from Trace'!$E$6:$E$55,'Results from Trace'!$B$6:$B$55,\"Electricity\")/0.003412),\"\")),\"\")","v":""},{"$f":"IFERROR(IF($C$6=\"eQUEST\",IF('Results from eQUEST'!$I13=\"\",\"\",'Results from eQUEST'!$AW13),IF($C$6=\"Trace\",\"\",\"\")),\"\")","v":""},{"$f":"IFERROR(IF($C$6=\"eQUEST\",IF('Results from eQUEST'!$I13=\"\",\"\",'Results from eQUEST'!$BJ13*0.1),IF($C$6=\"Trace\",IF(SUM('Results from Trace'!$I$6:$I$55)=0,\"\",SUMIFS('Results from Trace'!$I$6:$I$55,'Results from Trace'!$B$6:$B$55,\"Gas\")),\"\")),\"\")","v":""},{"$f":"IFERROR(IF($C$6=\"eQUEST\",\"\",IF($C$6=\"Trace\",IF(SUM('Results from Trace'!$I$6:$I$55)=0,\"\",SUMIFS('Results from Trace'!$I$6:$I$55,'Results from Trace'!$B$6:$B$55,\"Purchased Steam\")),\"\")),\"\")","v":""},{"$f":"IFERROR(IF($C$6=\"eQUEST\",\"\",IF($C$6=\"Trace\",IF(SUM('Results from Trace'!$I$6:$I$55)=0,\"\",SUMIFS('Results from Trace'!$I$6:$I$55,'Results from Trace'!$B$6:$B$55,\"Purchased Hot Water\")),\"\")),\"\")","v":""},{"$f":"IFERROR(IF($C$6=\"eQUEST\",\"\",IF($C$6=\"Trace\",IF(SUM('Results from Trace'!$I$6:$I$55)=0,\"\",SUMIFS('Results from Trace'!$I$6:$I$55,'Results from Trace'!$B$6:$B$55,\"Purchased Chilled Water\")),\"\")),\"\")","v":""},{"$f":"IFERROR(IF($C$6=\"eQUEST\",\"\",IF($C$6=\"Trace\",IF(SUM('Results from Trace'!$I$6:$I$55)=0,\"\",SUMIFS('Results from Trace'!$I$6:$I$55,'Results from Trace'!$B$6:$B$55,\"Oil\")),\"\")),\"\")","v":""},{"$f":"IFERROR(IF($C$6=\"eQUEST\",\"\",IF($C$6=\"Trace\",IF(SUM('Results from Trace'!$I$6:$I$55)=0,\"\",SUMIFS('Results from Trace'!$I$6:$I$55,'Results from Trace'!$B$6:$B$55,\"Propane\")),\"\")),\"\")","v":""}]
[1,null,null,6,{"$f":"IF('Measure Descriptions'!C12=0,\" \",'Measure Descriptions'!C12)","v":" "},null,null,{"$f":"IFERROR(IF($C$6=\"eQUEST\",IF('Results from eQUEST'!$I14=\"\",\"\",'Results from eQUEST'!$X14),IF($C$6=\"Trace\",IF(SUM('Results from Trace'!$E$6:$E$55)=0,\"\",SUMIFS('Results from Trace'!$E$6:$E$55,'Results from Trace'!$B$6:$B$55,\"Electricity\")/0.003412),\"\")),\"\")","v":""},{"$f":"IFERROR(IF($C$6=\"eQUEST\",IF('Results from eQUEST'!$I14=\"\",\"\",'Results from eQUEST'!$AW14),IF($C$6=\"Trace\",\"\",\"\")),\"\")","v":""},{"$f":"IFERROR(IF($C$6=\"eQUEST\",IF('Results from eQUEST'!$I14=\"\",\"\",'Results from eQUEST'!$BJ14*0.1),IF($C$6=\"Trace\",IF(SUM('Results from Trace'!$J$6:$J$55)=0,\"\",SUMIFS('Results from Trace'!$J$6:$J$55,'Results from Trace'!$B$6:$B$55,\"Gas\")),\"\")),\"\")","v":""},{"$f":"IFERROR(IF($C$6=\"eQUEST\",\"\",IF($C$6=\"Trace\",IF(SUM('Results from Trace'!$J$6:$J$55)=0,\"\",SUMIFS('Results from Trace'!$J$6:$J$55,'Results from Trace'!$B$6:$B$55,\"Purchased Steam\")),\"\")),\"\")","v":""},{"$f":"IFERROR(IF($C$6=\"eQUEST\",\"\",IF($C$6=\"Trace\",IF(SUM('Results from Trace'!$J$6:$J$55)=0,\"\",SUMIFS('Results from Trace'!$J$6:$J$55,'Results from Trace'!$B$6:$B$55,\"Purchased Hot Water\")),\"\")),\"\")","v":""},{"$f":"IFERROR(IF($C$6=\"eQUEST\",\"\",IF($C$6=\"Trace\",IF(SUM('Results from Trace'!$J$6:$J$55)=0,\"\",SUMIFS('Results from Trace'!$J$6:$J$55,'Results from Trace'!$B$6:$B$55,\"Purchased Chilled Water\")),\"\")),\"\")","v":""},{"$f":"IFERROR(IF($C$6=\"eQUEST\",\"\",IF($C$6=\"Trace\",IF(SUM('Results from Trace'!$J$6:$J$55)=0,\"\",SUMIFS('Results from Trace'!$J$6:$J$55,'Results from Trace'!$B$6:$B$55,\"Oil\")),\"\")),\"\")","v":""},{"$f":"IFERROR(IF($C$6=\"eQUEST\",\"\",IF($C$6=\"Trace\",IF(SUM('Results from Trace'!$J$6:$J$55)=0,\"\",SUMIFS('Results from Trace'!$J$6:$J$55,'Results from Trace'!$B$6:$B$55,\"Propane\")),\"\")),\"\")","v":""}]
[1,null,null,7,{"$f":"IF('Measure Descriptions'!C13=0,\" \",'Measure Descriptions'!C13)","v":" "},null,null,{"$f":"IFERROR(IF($C$6=\"eQUEST\",IF('Results from eQUEST'!$I15=\"\",\"\",'Results from eQUEST'!$X15),IF($C$6=\"Trace\",IF(SUM('Results from Trace'!$E$6:$E$55)=0,\"\",SUMIFS('Results from Trace'!$E$6:$E$55,'Results from Trace'!$B$6:$B$55,\"Electricity\")/0.003412),\"\")),\"\")","v":""},{"$f":"IFERROR(IF($C$6=\"eQUEST\",IF('Results from eQUEST'!$I15=\"\",\"\",'Results from eQUEST'!$AW15),IF($C$6=\"Trace\",\"\",\"\")),\"\")","v":""},{"$f":"IFERROR(IF($C$6=\"eQUEST\",IF('Results from eQUEST'!$I15=\"\",\"\",'Results from eQUEST'!$BJ15*0.1),IF($C$6=\"Trace\",IF(SUM('Results from Trace'!$K$6:$K$55)=0,\"\",SUMIFS('Results from Trace'!$K$6:$K$55,'Results from Trace'!$B$6:$B$55,\"Gas\")),\"\")),\"\")","v":""},{"$f":"IFERROR(IF($C$6=\"eQUEST\",\"\",IF($C$6=\"Trace\",IF(SUM('Results from Trace'!$K$6:$K$55)=0,\"\",SUMIFS('Results from Trace'!$K$6:$K$55,'Results from Trace'!$B$6:$B$55,\"Purchased Steam\")),\"\")),\"\")","v":""},{"$f":"IFERROR(IF($C$6=\"eQUEST\",\"\",IF($C$6=\"Trace\",IF(SUM('Results from Trace'!$K$6:$K$55)=0,\"\",SUMIFS('Results from Trace'!$K$6:$K$55,'Results from Trace'!$B$6:$B$55,\"Purchased Hot Water\")),\"\")),\"\")","v":""},{"$f":"IFERROR(IF($C$6=\"eQUEST\",\"\",IF($C$6=\"Trace\",IF(SUM('Results from Trace'!$K$6:$K$55)=0,\"\",SUMIFS('Results from Trace'!$K$6:$K$55,'Results from Trace'!$B$6:$B$55,\"Purchased Chilled Water\")),\"\")),\"\")","v":""},{"$f":"IFERROR(IF($C$6=\"eQUEST\",\"\",IF($C$6=\"Trace\",IF(SUM('Results from Trace'!$K$6:$K$55)=0,\"\",SUMIFS('Results from Trace'!$K$6:$K$55,'Results from Trace'!$B$6:$B$55,\"Oil\")),\"\")),\"\")","v":""},{"$f":"IFERROR(IF($C$6=\"eQUEST\",\"\",IF($C$6=\"Trace\",IF(SUM('Results from Trace'!$K$6:$K$55)=0,\"\",SUMIFS('Results from Trace'!$K$6:$K$55,'Results from Trace'!$B$6:$B$55,\"Propane\")),\"\")),\"\")","v":""}]
[1,null,null,8,{"$f":"IF('Measure Descriptions'!C14=0,\" \",'Measure Descriptions'!C14)","v":" "},null,null,{"$f":"IFERROR(IF($C$6=\"eQUEST\",IF('Results from eQUEST'!$I16=\"\",\"\",'Results from eQUEST'!$X16),IF($C$6=\"Trace\",IF(SUM('Results from Trace'!$E$6:$E$55)=0,\"\",SUMIFS('Results from Trace'!$E$6:$E$55,'Results from Trace'!$B$6:$B$55,\"Electricity\")/0.003412),\"\")),\"\")","v":""},{"$f":"IFERROR(IF($C$6=\"eQUEST\",IF('Results from eQUEST'!$I16=\"\",\"\",'Results from eQUEST'!$AW16),IF($C$6=\"Trace\",\"\",\"\")),\"\")","v":""},{"$f":"IFERROR(IF($C$6=\"eQUEST\",IF('Results from eQUEST'!$I16=\"\",\"\",'Results from eQUEST'!$BJ16*0.1),IF($C$6=\"Trace\",IF(SUM('Results from Trace'!$L$6:$L$55)=0,\"\",SUMIFS('Results from Trace'!$L$6:$L$55,'Results from Trace'!$B$6:$B$55,\"Gas\")),\"\")),\"\")","v":""},{"$f":"IFERROR(IF($C$6=\"eQUEST\",\"\",IF($C$6=\"Trace\",IF(SUM('Results from Trace'!$L$6:$L$55)=0,\"\",SUMIFS('Results from Trace'!$L$6:$L$55,'Results from Trace'!$B$6:$B$55,\"Purchased Steam\")),\"\")),\"\")","v":""},{"$f":"IFERROR(IF($C$6=\"eQUEST\",\"\",IF($C$6=\"Trace\",IF(SUM('Results from Trace'!$L$6:$L$55)=0,\"\",SUMIFS('Results from Trace'!$L$6:$L$55,'Results from Trace'!$B$6:$B$55,\"Purchased Hot Water\")),\"\")),\"\")","v":""},{"$f":"IFERROR(IF($C$6=\"eQUEST\",\"\",IF($C$6=\"Trace\",IF(SUM('Results from Trace'!$L$6:$L$55)=0,\"\",SUMIFS('Results from Trace'!$L$6:$L$55,'Results from Trace'!$B$6:$B$55,\"Purchased Chilled Water\")),\"\")),\"\")","v":""},{"$f":"IFERROR(IF($C$6=\"eQUEST\",\"\",IF($C$6=\"Trace\",IF(SUM('Results from Trace'!$L$6:$L$55)=0,\"\",SUMIFS('Results from Trace'!$L$6:$L$55,'Results from Trace'!$B$6:$B$55,\"Oil\")),\"\")),\"\")","v":""},{"$f":"IFERROR(IF($C$6=\"eQUEST\",\"\",IF($C$6=\"Trace\",IF(SUM('Results from Trace'!$L$6:$L$55)=0,\"\",SUMIFS('Results from Trace'!$L$6:$L$55,'Results from Trace'!$B$6:$B$55,\"Propane\")),\"\")),\"\")","v":""}]
[1,null,null,9,{"$f":"IF('Measure Descriptions'!C15=0,\" \",'Measure Descriptions'!C15)","v":" "},null,null,{"$f":"IFERROR(IF($C$6=\"eQUEST\",IF('Results from eQUEST'!$I17=\"\",\"\",'Results from eQUEST'!$X17),IF($C$6=\"Trace\",IF(SUM('Results from Trace'!$E$6:$E$55)=0,\"\",SUMIFS('Results from Trace'!$E$6:$E$55,'Results from Trace'!$B$6:$B$55,\"Electricity\")/0.003412),\"\")),\"\")","v":""},{"$f":"IFERROR(IF($C$6=\"eQUEST\",IF('Results from eQUEST'!$I17=\"\",\"\",'Results from eQUEST'!$AW17),IF($C$6=\"Trace\",\"\",\"\")),\"\")","v":""},{"$f":"IFERROR(IF($C$6=\"eQUEST\",IF('Results from eQUEST'!$I17=\"\",\"\",'Results from eQUEST'!$BJ17*0.1),IF($C$6=\"Trace\",IF(SUM('Results from Trace'!$M$6:$M$55)=0,\"\",SUMIFS('Results from Trace'!$M$6:$M$55,'Results from Trace'!$B$6:$B$55,\"Gas\")),\"\")),\"\")","v":""},{"$f":"IFERROR(IF($C$6=\"eQUEST\",\"\",IF($C$6=\"Trace\",IF(SUM('Results from Trace'!$M$6:$M$55)=0,\"\",SUMIFS('Results from Trace'!$M$6:$M$55,'Results from Trace'!$B$6:$B$55,\"Purchased Steam\")),\"\")),\"\")","v":""},{"$f":"IFERROR(IF($C$6=\"eQUEST\",\"\",IF($C$6=\"Trace\",IF(SUM('Results from Trace'!$M$6:$M$55)=0,\"\",SUMIFS('Results from Trace'!$M$6:$M$55,'Results from Trace'!$B$6:$B$55,\"Purchased Hot Water\")),\"\")),\"\")","v":""},{"$f":"IFERROR(IF($C$6=\"eQUEST\",\"\",IF($C$6=\"Trace\",IF(SUM('Results from Trace'!$M$6:$M$55)=0,\"\",SUMIFS('Results from Trace'!$M$6:$M$55,'Results from Trace'!$B$6:$B$55,\"Purchased Chilled Water\")),\"\")),\"\")","v":""},{"$f":"IFERROR(IF($C$6=\"eQUEST\",\"\",IF($C$6=\"Trace\",IF(SUM('Results from Trace'!$M$6:$M$55)=0,\"\",SUMIFS('Results from Trace'!$M$6:$M$55,'Results from Trace'!$B$6:$B$55,\"Oil\")),\"\")),\"\")","v":""},{"$f":"IFERROR(IF($C$6=\"eQUEST\",\"\",IF($C$6=\"Trace\",IF(SUM('Results from Trace'!$M$6:$M$55)=0,\"\",SUMIFS('Results from Trace'!$M$6:$M$55,'Results from Trace'!$B$6:$B$55,\"Propane\")),\"\")),\"\")","v":""}]
[1,null,null,10,{"$f":"IF('Measure Descriptions'!C16=0,\" \",'Measure Descriptions'!C16)","v":" "},null,null,{"$f":"IFERROR(IF($C$6=\"eQUEST\",IF('Results from eQUEST'!$I18=\"\",\"\",'Results from eQUEST'!$X18),IF($C$6=\"Trace\",IF(SUM('Results from Trace'!$E$6:$E$55)=0,\"\",SUMIFS('Results from Trace'!$E$6:$E$55,'Results from Trace'!$B$6:$B$55,\"Electricity\")/0.003412),\"\")),\"\")","v":""},{"$f":"IFERROR(IF($C$6=\"eQUEST\",IF('Results from eQUEST'!$I18=\"\",\"\",'Results from eQUEST'!$AW18),IF($C$6=\"Trace\",\"\",\"\")),\"\")","v":""},{"$f":"IFERROR(IF($C$6=\"eQUEST\",IF('Results from eQUEST'!$I18=\"\",\"\",'Results from eQUEST'!$BJ18*0.1),IF($C$6=\"Trace\",IF(SUM('Results from Trace'!$N$6:$N$55)=0,\"\",SUMIFS('Results from Trace'!$N$6:$N$55,'Results from Trace'!$B$6:$B$55,\"Gas\")),\"\")),\"\")","v":""},{"$f":"IFERROR(IF($C$6=\"eQUEST\",\"\",IF($C$6=\"Trace\",IF(SUM('Results from Trace'!$N$6:$N$55)=0,\"\",SUMIFS('Results from Trace'!$N$6:$N$55,'Results from Trace'!$B$6:$B$55,\"Purchased Steam\")),\"\")),\"\")","v":""},{"$f":"IFERROR(IF($C$6=\"eQUEST\",\"\",IF($C$6=\"Trace\",IF(SUM('Results from Trace'!$N$6:$N$55)=0,\"\",SUMIFS('Results from Trace'!$N$6:$N$55,'Results from Trace'!$B$6:$B$55,\"Purchased Hot Water\")),\"\")),\"\")","v":""},{"$f":"IFERROR(IF($C$6=\"eQUEST\",\"\",IF($C$6=\"Trace\",IF(SUM('Results from Trace'!$N$6:$N$55)=0,\"\",SUMIFS('Results from Trace'!$N$6:$N$55,'Results from Trace'!$B$6:$B$55,\"Purchased Chilled Water\")),\"\")),\"\")","v":""},{"$f":"IFERROR(IF($C$6=\"eQUEST\",\"\",IF($C$6=\"Trace\",IF(SUM('Results from Trace'!$N$6:$N$55)=0,\"\",SUMIFS('Results from Trace'!$N$6:$N$55,'Results from Trace'!$B$6:$B$55,\"Oil\")),\"\")),\"\")","v":""},{"$f":"IFERROR(IF($C$6=\"eQUEST\",\"\",IF($C$6=\"Trace\",IF(SUM('Results from Trace'!$N$6:$N$55)=0,\"\",SUMIFS('Results from Trace'!$N$6:$N$55,'Results from Trace'!$B$6:$B$55,\"Propane\")),\"\")),\"\")","v":""}]
[1,null,null,11,{"$f":"IF('Measure Descriptions'!C17=0,\" \",'Measure Descriptions'!C17)","v":" "},null,null,{"$f":"IFERROR(IF($C$6=\"eQUEST\",IF('Results from eQUEST'!$I19=\"\",\"\",'Results from eQUEST'!$X19),IF($C$6=\"Trace\",IF(SUM('Results from Trace'!$E$6:$E$55)=0,\"\",SUMIFS('Results from Trace'!$E$6:$E$55,'Results from Trace'!$B$6:$B$55,\"Electricity\")/0.003412),\"\")),\"\")","v":""},{"$f":"IFERROR(IF($C$6=\"eQUEST\",IF('Results from eQUEST'!$I19=\"\",\"\",'Results from eQUEST'!$AW19),IF($C$6=\"Trace\",\"\",\"\")),\"\")","v":""},{"$f":"IFERROR(IF($C$6=\"eQUEST\",IF('Results from eQUEST'!$I19=\"\",\"\",'Results from eQUEST'!$BJ19*0.1),IF($C$6=\"Trace\",IF(SUM('Results from Trace'!$O$6:$O$55)=0,\"\",SUMIFS('Results from Trace'!$O$6:$O$55,'Results from Trace'!$B$6:$B$55,\"Gas\")),\"\")),\"\")","v":""},{"$f":"IFERROR(IF($C$6=\"eQUEST\",\"\",IF($C$6=\"Trace\",IF(SUM('Results from Trace'!$O$6:$O$55)=0,\"\",SUMIFS('Results from Trace'!$O$6:$O$55,'Results from Trace'!$B$6:$B$55,\"Purchased Steam\")),\"\")),\"\")","v":""},{"$f":"IFERROR(IF($C$6=\"eQUEST\",\"\",IF($C$6=\"Trace\",IF(SUM('Results from Trace'!$O$6:$O$55)=0,\"\",SUMIFS('Results from Trace'!$O$6:$O$55,'Results from Trace'!$B$6:$B$55,\"Purchased Hot Water\")),\"\")),\"\")","v":""},{"$f":"IFERROR(IF($C$6=\"eQUEST\",\"\",IF($C$6=\"Trace\",IF(SUM('Results from Trace'!$O$6:$O$55)=0,\"\",SUMIFS('Results from Trace'!$O$6:$O$55,'Results from Trace'!$B$6:$B$55,\"Purchased Chilled Water\")),\"\")),\"\")","v":""},{"$f":"IFERROR(IF($C$6=\"eQUEST\",\"\",IF($C$6=\"Trace\",IF(SUM('Results from Trace'!$O$6:$O$55)=0,\"\",SUMIFS('Results from Trace'!$O$6:$O$55,'Results from Trace'!$B$6:$B$55,\"Oil\")),\"\")),\"\")","v":""},{"$f":"IFERROR(IF($C$6=\"eQUEST\",\"\",IF($C$6=\"Trace\",IF(SUM('Results from Trace'!$O$6:$O$55)=0,\"\",SUMIFS('Results from Trace'!$O$6:$O$55,'Results from Trace'!$B$6:$B$55,\"Propane\")),\"\")),\"\")","v":""}]
[1,null,null,12,{"$f":"IF('Measure Descriptions'!C18=0,\" \",'Measure Descriptions'!C18)","v":" "},null,null,{"$f":"IFERROR(IF($C$6=\"eQUEST\",IF('Results from eQUEST'!$I20=\"\",\"\",'Results from eQUEST'!$X20),IF($C$6=\"Trace\",IF(SUM('Results from Trace'!$E$6:$E$55)=0,\"\",SUMIFS('Results from Trace'!$E$6:$E$55,'Results from Trace'!$B$6:$B$55,\"Electricity\")/0.003412),\"\")),\"\")","v":""},{"$f":"IFERROR(IF($C$6=\"eQUEST\",IF('Results from eQUEST'!$I20=\"\",\"\",'Results from eQUEST'!$AW20),IF($C$6=\"Trace\",\"\",\"\")),\"\")","v":""},{"$f":"IFERROR(IF($C$6=\"eQUEST\",IF('Results from eQUEST'!$I20=\"\",\"\",'Results from eQUEST'!$BJ20*0.1),IF($C$6=\"Trace\",IF(SUM('Results from Trace'!$P$6:$P$55)=0,\"\",SUMIFS('Results from Trace'!$P$6:$P$55,'Results from Trace'!$B$6:$B$55,\"Gas\")),\"\")),\"\")","v":""},{"$f":"IFERROR(IF($C$6=\"eQUEST\",\"\",IF($C$6=\"Trace\",IF(SUM('Results from Trace'!$P$6:$P$55)=0,\"\",SUMIFS('Results from Trace'!$P$6:$P$55,'Results from Trace'!$B$6:$B$55,\"Purchased Steam\")),\"\")),\"\")","v":""},{"$f":"IFERROR(IF($C$6=\"eQUEST\",\"\",IF($C$6=\"Trace\",IF(SUM('Results from Trace'!$P$6:$P$55)=0,\"\",SUMIFS('Results from Trace'!$P$6:$P$55,'Results from Trace'!$B$6:$B$55,\"Purchased Hot Water\")),\"\")),\"\")","v":""},{"$f":"IFERROR(IF($C$6=\"eQUEST\",\"\",IF($C$6=\"Trace\",IF(SUM('Results from Trace'!$P$6:$P$55)=0,\"\",SUMIFS('Results from Trace'!$P$6:$P$55,'Results from Trace'!$B$6:$B$55,\"Purchased Chilled Water\")),\"\")),\"\")","v":""},{"$f":"IFERROR(IF($C$6=\"eQUEST\",\"\",IF($C$6=\"Trace\",IF(SUM('Results from Trace'!$P$6:$P$55)=0,\"\",SUMIFS('Results from Trace'!$P$6:$P$55,'Results from Trace'!$B$6:$B$55,\"Oil\")),\"\")),\"\")","v":""},{"$f":"IFERROR(IF($C$6=\"eQUEST\",\"\",IF($C$6=\"Trace\",IF(SUM('Results from Trace'!$P$6:$P$55)=0,\"\",SUMIFS('Results from Trace'!$P$6:$P$55,'Results from Trace'!$B$6:$B$55,\"Propane\")),\"\")),\"\")","v":""}]
[1,null,null,13,{"$f":"IF('Measure Descriptions'!C19=0,\" \",'Measure Descriptions'!C19)","v":" "},null,null,{"$f":"IFERROR(IF($C$6=\"eQUEST\",IF('Results from eQUEST'!$I21=\"\",\"\",'Results from eQUEST'!$X21),IF($C$6=\"Trace\",IF(SUM('Results from Trace'!$E$6:$E$55)=0,\"\",SUMIFS('Results from Trace'!$E$6:$E$55,'Results from Trace'!$B$6:$B$55,\"Electricity\")/0.003412),\"\")),\"\")","v":""},{"$f":"IFERROR(IF($C$6=\"eQUEST\",IF('Results from eQUEST'!$I21=\"\",\"\",'Results from eQUEST'!$AW21),IF($C$6=\"Trace\",\"\",\"\")),\"\")","v":""},{"$f":"IFERROR(IF($C$6=\"eQUEST\",IF('Results from eQUEST'!$I21=\"\",\"\",'Results from eQUEST'!$BJ21*0.1),IF($C$6=\"Trace\",IF(SUM('Results from Trace'!$Q$6:$Q$55)=0,\"\",SUMIFS('Results from Trace'!$Q$6:$Q$55,'Results from Trace'!$B$6:$B$55,\"Gas\")),\"\")),\"\")","v":""},{"$f":"IFERROR(IF($C$6=\"eQUEST\",\"\",IF($C$6=\"Trace\",IF(SUM('Results from Trace'!$Q$6:$Q$55)=0,\"\",SUMIFS('Results from Trace'!$Q$6:$Q$55,'Results from Trace'!$B$6:$B$55,\"Purchased Steam\")),\"\")),\"\")","v":""},{"$f":"IFERROR(IF($C$6=\"eQUEST\",\"\",IF($C$6=\"Trace\",IF(SUM('Results from Trace'!$Q$6:$Q$55)=0,\"\",SUMIFS('Results from Trace'!$Q$6:$Q$55,'Results from Trace'!$B$6:$B$55,\"Purchased Hot Water\")),\"\")),\"\")","v":""},{"$f":"IFERROR(IF($C$6=\"eQUEST\",\"\",IF($C$6=\"Trace\",IF(SUM('Results from Trace'!$Q$6:$Q$55)=0,\"\",SUMIFS('Results from Trace'!$Q$6:$Q$55,'Results from Trace'!$B$6:$B$55,\"Purchased Chilled Water\")),\"\")),\"\")","v":""},{"$f":"IFERROR(IF($C$6=\"eQUEST\",\"\",IF($C$6=\"Trace\",IF(SUM('Results from Trace'!$Q$6:$Q$55)=0,\"\",SUMIFS('Results from Trace'!$Q$6:$Q$55,'Results from Trace'!$B$6:$B$55,\"Oil\")),\"\")),\"\")","v":""},{"$f":"IFERROR(IF($C$6=\"eQUEST\",\"\",IF($C$6=\"Trace\",IF(SUM('Results from Trace'!$Q$6:$Q$55)=0,\"\",SUMIFS('Results from Trace'!$Q$6:$Q$55,'Results from Trace'!$B$6:$B$55,\"Propane\")),\"\")),\"\")","v":""}]
[1,null,null,14,{"$f":"IF('Measure Descriptions'!C20=0,\" \",'Measure Descriptions'!C20)","v":" "},null,null,{"$f":"IFERROR(IF($C$6=\"eQUEST\",IF('Results from eQUEST'!$I22=\"\",\"\",'Results from eQUEST'!$X22),IF($C$6=\"Trace\",IF(SUM('Results from Trace'!$E$6:$E$55)=0,\"\",SUMIFS('Results from Trace'!$E$6:$E$55,'Results from Trace'!$B$6:$B$55,\"Electricity\")/0.003412),\"\")),\"\")","v":""},{"$f":"IFERROR(IF($C$6=\"eQUEST\",IF('Results from eQUEST'!$I22=\"\",\"\",'Results from eQUEST'!$AW22),IF($C$6=\"Trace\",\"\",\"\")),\"\")","v":""},{"$f":"IFERROR(IF($C$6=\"eQUEST\",IF('Results from eQUEST'!$I22=\"\",\"\",'Results from eQUEST'!$BJ22*0.1),IF($C$6=\"Trace\",IF(SUM('Results from Trace'!$R$6:$R$55)=0,\"\",SUMIFS('Results from Trace'!$R$6:$R$55,'Results from Trace'!$B$6:$B$55,\"Gas\")),\"\")),\"\")","v":""},{"$f":"IFERROR(IF($C$6=\"eQUEST\",\"\",IF($C$6=\"Trace\",IF(SUM('Results from Trace'!$R$6:$R$55)=0,\"\",SUMIFS('Results from Trace'!$R$6:$R$55,'Results from Trace'!$B$6:$B$55,\"Purchased Steam\")),\"\")),\"\")","v":""},{"$f":"IFERROR(IF($C$6=\"eQUEST\",\"\",IF($C$6=\"Trace\",IF(SUM('Results from Trace'!$R$6:$R$55)=0,\"\",SUMIFS('Results from Trace'!$R$6:$R$55,'Results from Trace'!$B$6:$B$55,\"Purchased Hot Water\")),\"\")),\"\")","v":""},{"$f":"IFERROR(IF($C$6=\"eQUEST\",\"\",IF($C$6=\"Trace\",IF(SUM('Results from Trace'!$R$6:$R$55)=0,\"\",SUMIFS('Results from Trace'!$R$6:$R$55,'Results from Trace'!$B$6:$B$55,\"Purchased Chilled Water\")),\"\")),\"\")","v":""},{"$f":"IFERROR(IF($C$6=\"eQUEST\",\"\",IF($C$6=\"Trace\",IF(SUM('Results from Trace'!$R$6:$R$55)=0,\"\",SUMIFS('Results from Trace'!$R$6:$R$55,'Results from Trace'!$B$6:$B$55,\"Oil\")),\"\")),\"\")","v":""},{"$f":"IFERROR(IF($C$6=\"eQUEST\",\"\",IF($C$6=\"Trace\",IF(SUM('Results from Trace'!$R$6:$R$55)=0,\"\",SUMIFS('Results from Trace'!$R$6:$R$55,'Results from Trace'!$B$6:$B$55,\"Propane\")),\"\")),\"\")","v":""}]
[1,null,null,15,{"$f":"IF('Measure Descriptions'!C21=0,\" \",'Measure Descriptions'!C21)","v":" "},null,null,{"$f":"IFERROR(IF($C$6=\"eQUEST\",IF('Results from eQUEST'!$I23=\"\",\"\",'Results from eQUEST'!$X23),IF($C$6=\"Trace\",IF(SUM('Results from Trace'!$E$6:$E$55)=0,\"\",SUMIFS('Results from Trace'!$E$6:$E$55,'Results from Trace'!$B$6:$B$55,\"Electricity\")/0.003412),\"\")),\"\")","v":""},{"$f":"IFERROR(IF($C$6=\"eQUEST\",IF('Results from eQUEST'!$I23=\"\",\"\",'Results from eQUEST'!$AW23),IF($C$6=\"Trace\",\"\",\"\")),\"\")","v":""},{"$f":"IFERROR(IF($C$6=\"eQUEST\",IF('Results from eQUEST'!$I23=\"\",\"\",'Results from eQUEST'!$BJ23*0.1),IF($C$6=\"Trace\",IF(SUM('Results from Trace'!$S$6:$S$55)=0,\"\",SUMIFS('Results from Trace'!$S$6:$S$55,'Results from Trace'!$B$6:$B$55,\"Gas\")),\"\")),\"\")","v":""},{"$f":"IFERROR(IF($C$6=\"eQUEST\",\"\",IF($C$6=\"Trace\",IF(SUM('Results from Trace'!$S$6:$S$55)=0,\"\",SUMIFS('Results from Trace'!$S$6:$S$55,'Results from Trace'!$B$6:$B$55,\"Purchased Steam\")),\"\")),\"\")","v":""},{"$f":"IFERROR(IF($C$6=\"eQUEST\",\"\",IF($C$6=\"Trace\",IF(SUM('Results from Trace'!$S$6:$S$55)=0,\"\",SUMIFS('Results from Trace'!$S$6:$S$55,'Results from Trace'!$B$6:$B$55,\"Purchased Hot Water\")),\"\")),\"\")","v":""},{"$f":"IFERROR(IF($C$6=\"eQUEST\",\"\",IF($C$6=\"Trace\",IF(SUM('Results from Trace'!$S$6:$S$55)=0,\"\",SUMIFS('Results from Trace'!$S$6:$S$55,'Results from Trace'!$B$6:$B$55,\"Purchased Chilled Water\")),\"\")),\"\")","v":""},{"$f":"IFERROR(IF($C$6=\"eQUEST\",\"\",IF($C$6=\"Trace\",IF(SUM('Results from Trace'!$S$6:$S$55)=0,\"\",SUMIFS('Results from Trace'!$S$6:$S$55,'Results from Trace'!$B$6:$B$55,\"Oil\")),\"\")),\"\")","v":""},{"$f":"IFERROR(IF($C$6=\"eQUEST\",\"\",IF($C$6=\"Trace\",IF(SUM('Results from Trace'!$S$6:$S$55)=0,\"\",SUMIFS('Results from Trace'!$S$6:$S$55,'Results from Trace'!$B$6:$B$55,\"Propane\")),\"\")),\"\")","v":""}]
[1,null,null,16,{"$f":"IF('Measure Descriptions'!C22=0,\" \",'Measure Descriptions'!C22)","v":" "},null,null,{"$f":"IFERROR(IF($C$6=\"eQUEST\",IF('Results from eQUEST'!$I24=\"\",\"\",'Results from eQUEST'!$X24),IF($C$6=\"Trace\",IF(SUM('Results from Trace'!$E$6:$E$55)=0,\"\",SUMIFS('Results from Trace'!$E$6:$E$55,'Results from Trace'!$B$6:$B$55,\"Electricity\")/0.003412),\"\")),\"\")","v":""},{"$f":"IFERROR(IF($C$6=\"eQUEST\",IF('Results from eQUEST'!$I24=\"\",\"\",'Results from eQUEST'!$AW24),IF($C$6=\"Trace\",\"\",\"\")),\"\")","v":""},{"$f":"IFERROR(IF($C$6=\"eQUEST\",IF('Results from eQUEST'!$I24=\"\",\"\",'Results from eQUEST'!$BJ24*0.1),IF($C$6=\"Trace\",IF(SUM('Results from Trace'!$T$6:$T$55)=0,\"\",SUMIFS('Results from Trace'!$T$6:$T$55,'Results from Trace'!$B$6:$B$55,\"Gas\")),\"\")),\"\")","v":""},{"$f":"IFERROR(IF($C$6=\"eQUEST\",\"\",IF($C$6=\"Trace\",IF(SUM('Results from Trace'!$T$6:$T$55)=0,\"\",SUMIFS('Results from Trace'!$T$6:$T$55,'Results from Trace'!$B$6:$B$55,\"Purchased Steam\")),\"\")),\"\")","v":""},{"$f":"IFERROR(IF($C$6=\"eQUEST\",\"\",IF($C$6=\"Trace\",IF(SUM('Results from Trace'!$T$6:$T$55)=0,\"\",SUMIFS('Results from Trace'!$T$6:$T$55,'Results from Trace'!$B$6:$B$55,\"Purchased Hot Water\")),\"\")),\"\")","v":""},{"$f":"IFERROR(IF($C$6=\"eQUEST\",\"\",IF($C$6=\"Trace\",IF(SUM('Results from Trace'!$T$6:$T$55)=0,\"\",SUMIFS('Results from Trace'!$T$6:$T$55,'Results from Trace'!$B$6:$B$55,\"Purchased Chilled Water\")),\"\")),\"\")","v":""},{"$f":"IFERROR(IF($C$6=\"eQUEST\",\"\",IF($C$6=\"Trace\",IF(SUM('Results from Trace'!$T$6:$T$55)=0,\"\",SUMIFS('Results from Trace'!$T$6:$T$55,'Results from Trace'!$B$6:$B$55,\"Oil\")),\"\")),\"\")","v":""},{"$f":"IFERROR(IF($C$6=\"eQUEST\",\"\",IF($C$6=\"Trace\",IF(SUM('Results from Trace'!$T$6:$T$55)=0,\"\",SUMIFS('Results from Trace'!$T$6:$T$55,'Results from Trace'!$B$6:$B$55,\"Propane\")),\"\")),\"\")","v":""}]
[1,null,null,17,{"$f":"IF('Measure Descriptions'!C23=0,\" \",'Measure Descriptions'!C23)","v":" "},null,null,{"$f":"IFERROR(IF($C$6=\"eQUEST\",IF('Results from eQUEST'!$I25=\"\",\"\",'Results from eQUEST'!$X25),IF($C$6=\"Trace\",IF(SUM('Results from Trace'!$E$6:$E$55)=0,\"\",SUMIFS('Results from Trace'!$E$6:$E$55,'Results from Trace'!$B$6:$B$55,\"Electricity\")/0.003412),\"\")),\"\")","v":""},{"$f":"IFERROR(IF($C$6=\"eQUEST\",IF('Results from eQUEST'!$I25=\"\",\"\",'Results from eQUEST'!$AW25),IF($C$6=\"Trace\",\"\",\"\")),\"\")","v":""},{"$f":"IFERROR(IF($C$6=\"eQUEST\",IF('Results from eQUEST'!$I25=\"\",\"\",'Results from eQUEST'!$BJ25*0.1),IF($C$6=\"Trace\",IF(SUM('Results from Trace'!$U$6:$U$55)=0,\"\",SUMIFS('Results from Trace'!$U$6:$U$55,'Results from Trace'!$B$6:$B$55,\"Gas\")),\"\")),\"\")","v":""},{"$f":"IFERROR(IF($C$6=\"eQUEST\",\"\",IF($C$6=\"Trace\",IF(SUM('Results from Trace'!$U$6:$U$55)=0,\"\",SUMIFS('Results from Trace'!$U$6:$U$55,'Results from Trace'!$B$6:$B$55,\"Purchased Steam\")),\"\")),\"\")","v":""},{"$f":"IFERROR(IF($C$6=\"eQUEST\",\"\",IF($C$6=\"Trace\",IF(SUM('Results from Trace'!$U$6:$U$55)=0,\"\",SUMIFS('Results from Trace'!$U$6:$U$55,'Results from Trace'!$B$6:$B$55,\"Purchased Hot Water\")),\"\")),\"\")","v":""},{"$f":"IFERROR(IF($C$6=\"eQUEST\",\"\",IF($C$6=\"Trace\",IF(SUM('Results from Trace'!$U$6:$U$55)=0,\"\",SUMIFS('Results from Trace'!$U$6:$U$55,'Results from Trace'!$B$6:$B$55,\"Purchased Chilled Water\")),\"\")),\"\")","v":""},{"$f":"IFERROR(IF($C$6=\"eQUEST\",\"\",IF($C$6=\"Trace\",IF(SUM('Results from Trace'!$U$6:$U$55)=0,\"\",SUMIFS('Results from Trace'!$U$6:$U$55,'Results from Trace'!$B$6:$B$55,\"Oil\")),\"\")),\"\")","v":""},{"$f":"IFERROR(IF($C$6=\"eQUEST\",\"\",IF($C$6=\"Trace\",IF(SUM('Results from Trace'!$U$6:$U$55)=0,\"\",SUMIFS('Results from Trace'!$U$6:$U$55,'Results from Trace'!$B$6:$B$55,\"Propane\")),\"\")),\"\")","v":""}]
[1,null,null,18,{"$f":"IF('Measure Descriptions'!C24=0,\" \",'Measure Descriptions'!C24)","v":" "},null,null,{"$f":"IFERROR(IF($C$6=\"eQUEST\",IF('Results from eQUEST'!$I26=\"\",\"\",'Results from eQUEST'!$X26),IF($C$6=\"Trace\",IF(SUM('Results from Trace'!$E$6:$E$55)=0,\"\",SUMIFS('Results from Trace'!$E$6:$E$55,'Results from Trace'!$B$6:$B$55,\"Electricity\")/0.003412),\"\")),\"\")","v":""},{"$f":"IFERROR(IF($C$6=\"eQUEST\",IF('Results from eQUEST'!$I26=\"\",\"\",'Results from eQUEST'!$AW26),IF($C$6=\"Trace\",\"\",\"\")),\"\")","v":""},{"$f":"IFERROR(IF($C$6=\"eQUEST\",IF('Results from eQUEST'!$I26=\"\",\"\",'Results from eQUEST'!$BJ26*0.1),IF($C$6=\"Trace\",IF(SUM('Results from Trace'!$V$6:$V$55)=0,\"\",SUMIFS('Results from Trace'!$V$6:$V$55,'Results from Trace'!$B$6:$B$55,\"Gas\")),\"\")),\"\")","v":""},{"$f":"IFERROR(IF($C$6=\"eQUEST\",\"\",IF($C$6=\"Trace\",IF(SUM('Results from Trace'!$V$6:$V$55)=0,\"\",SUMIFS('Results from Trace'!$V$6:$V$55,'Results from Trace'!$B$6:$B$55,\"Purchased Steam\")),\"\")),\"\")","v":""},{"$f":"IFERROR(IF($C$6=\"eQUEST\",\"\",IF($C$6=\"Trace\",IF(SUM('Results from Trace'!$V$6:$V$55)=0,\"\",SUMIFS('Results from Trace'!$V$6:$V$55,'Results from Trace'!$B$6:$B$55,\"Purchased Hot Water\")),\"\")),\"\")","v":""},{"$f":"IFERROR(IF($C$6=\"eQUEST\",\"\",IF($C$6=\"Trace\",IF(SUM('Results from Trace'!$V$6:$V$55)=0,\"\",SUMIFS('Results from Trace'!$V$6:$V$55,'Results from Trace'!$B$6:$B$55,\"Purchased Chilled Water\")),\"\")),\"\")","v":""},{"$f":"IFERROR(IF($C$6=\"eQUEST\",\"\",IF($C$6=\"Trace\",IF(SUM('Results from Trace'!$V$6:$V$55)=0,\"\",SUMIFS('Results from Trace'!$V$6:$V$55,'Results from Trace'!$B$6:$B$55,\"Oil\")),\"\")),\"\")","v":""},{"$f":"IFERROR(IF($C$6=\"eQUEST\",\"\",IF($C$6=\"Trace\",IF(SUM('Results from Trace'!$V$6:$V$55)=0,\"\",SUMIFS('Results from Trace'!$V$6:$V$55,'Results from Trace'!$B$6:$B$55,\"Propane\")),\"\")),\"\")","v":""}]
[1,null,null,19,{"$f":"IF('Measure Descriptions'!C25=0,\" \",'Measure Descriptions'!C25)","v":" "},null,null,{"$f":"IFERROR(IF($C$6=\"eQUEST\",IF('Results from eQUEST'!$I27=\"\",\"\",'Results from eQUEST'!$X27),IF($C$6=\"Trace\",IF(SUM('Results from Trace'!$E$6:$E$55)=0,\"\",SUMIFS('Results from Trace'!$E$6:$E$55,'Results from Trace'!$B$6:$B$55,\"Electricity\")/0.003412),\"\")),\"\")","v":""},{"$f":"IFERROR(IF($C$6=\"eQUEST\",IF('Results from eQUEST'!$I27=\"\",\"\",'Results from eQUEST'!$AW27),IF($C$6=\"Trace\",\"\",\"\")),\"\")","v":""},{"$f":"IFERROR(IF($C$6=\"eQUEST\",IF('Results from eQUEST'!$I27=\"\",\"\",'Results from eQUEST'!$BJ27*0.1),IF($C$6=\"Trace\",IF(SUM('Results from Trace'!$W$6:$W$55)=0,\"\",SUMIFS('Results from Trace'!$W$6:$W$55,'Results from Trace'!$B$6:$B$55,\"Gas\")),\"\")),\"\")","v":""},{"$f":"IFERROR(IF($C$6=\"eQUEST\",\"\",IF($C$6=\"Trace\",IF(SUM('Results from Trace'!$W$6:$W$55)=0,\"\",SUMIFS('Results from Trace'!$W$6:$W$55,'Results from Trace'!$B$6:$B$55,\"Purchased Steam\")),\"\")),\"\")","v":""},{"$f":"IFERROR(IF($C$6=\"eQUEST\",\"\",IF($C$6=\"Trace\",IF(SUM('Results from Trace'!$W$6:$W$55)=0,\"\",SUMIFS('Results from Trace'!$W$6:$W$55,'Results from Trace'!$B$6:$B$55,\"Purchased Hot Water\")),\"\")),\"\")","v":""},{"$f":"IFERROR(IF($C$6=\"eQUEST\",\"\",IF($C$6=\"Trace\",IF(SUM('Results from Trace'!$W$6:$W$55)=0,\"\",SUMIFS('Results from Trace'!$W$6:$W$55,'Results from Trace'!$B$6:$B$55,\"Purchased Chilled Water\")),\"\")),\"\")","v":""},{"$f":"IFERROR(IF($C$6=\"eQUEST\",\"\",IF($C$6=\"Trace\",IF(SUM('Results from Trace'!$W$6:$W$55)=0,\"\",SUMIFS('Results from Trace'!$W$6:$W$55,'Results from Trace'!$B$6:$B$55,\"Oil\")),\"\")),\"\")","v":""},{"$f":"IFERROR(IF($C$6=\"eQUEST\",\"\",IF($C$6=\"Trace\",IF(SUM('Results from Trace'!$W$6:$W$55)=0,\"\",SUMIFS('Results from Trace'!$W$6:$W$55,'Results from Trace'!$B$6:$B$55,\"Propane\")),\"\")),\"\")","v":""}]
[1,null,null,20,{"$f":"IF('Measure Descriptions'!C26=0,\" \",'Measure Descriptions'!C26)","v":" "},null,null,{"$f":"IFERROR(IF($C$6=\"eQUEST\",IF('Results from eQUEST'!$I28=\"\",\"\",'Results from eQUEST'!$X28),IF($C$6=\"Trace\",IF(SUM('Results from Trace'!$E$6:$E$55)=0,\"\",SUMIFS('Results from Trace'!$E$6:$E$55,'Results from Trace'!$B$6:$B$55,\"Electricity\")/0.003412),\"\")),\"\")","v":""},{"$f":"IFERROR(IF($C$6=\"eQUEST\",IF('Results from eQUEST'!$I28=\"\",\"\",'Results from eQUEST'!$AW28),IF($C$6=\"Trace\",\"\",\"\")),\"\")","v":""},{"$f":"IFERROR(IF($C$6=\"eQUEST\",IF('Results from eQUEST'!$I28=\"\",\"\",'Results from eQUEST'!$BJ28*0.1),IF($C$6=\"Trace\",IF(SUM('Results from Trace'!$X$6:$X$55)=0,\"\",SUMIFS('Results from Trace'!$X$6:$X$55,'Results from Trace'!$B$6:$B$55,\"Gas\")),\"\")),\"\")","v":""},{"$f":"IFERROR(IF($C$6=\"eQUEST\",\"\",IF($C$6=\"Trace\",IF(SUM('Results from Trace'!$X$6:$X$55)=0,\"\",SUMIFS('Results from Trace'!$X$6:$X$55,'Results from Trace'!$B$6:$B$55,\"Purchased Steam\")),\"\")),\"\")","v":""},{"$f":"IFERROR(IF($C$6=\"eQUEST\",\"\",IF($C$6=\"Trace\",IF(SUM('Results from Trace'!$X$6:$X$55)=0,\"\",SUMIFS('Results from Trace'!$X$6:$X$55,'Results from Trace'!$B$6:$B$55,\"Purchased Hot Water\")),\"\")),\"\")","v":""},{"$f":"IFERROR(IF($C$6=\"eQUEST\",\"\",IF($C$6=\"Trace\",IF(SUM('Results from Trace'!$X$6:$X$55)=0,\"\",SUMIFS('Results from Trace'!$X$6:$X$55,'Results from Trace'!$B$6:$B$55,\"Purchased Chilled Water\")),\"\")),\"\")","v":""},{"$f":"IFERROR(IF($C$6=\"eQUEST\",\"\",IF($C$6=\"Trace\",IF(SUM('Results from Trace'!$X$6:$X$55)=0,\"\",SUMIFS('Results from Trace'!$X$6:$X$55,'Results from Trace'!$B$6:$B$55,\"Oil\")),\"\")),\"\")","v":""},{"$f":"IFERROR(IF($C$6=\"eQUEST\",\"\",IF($C$6=\"Trace\",IF(SUM('Results from Trace'!$X$6:$X$55)=0,\"\",SUMIFS('Results from Trace'!$X$6:$X$55,'Results from Trace'!$B$6:$B$55,\"Propane\")),\"\")),\"\")","v":""}]
[1,null,null,21,{"$f":"IF('Measure Descriptions'!C27=0,\" \",'Measure Descriptions'!C27)","v":" "},null,null,{"$f":"IFERROR(IF($C$6=\"eQUEST\",IF('Results from eQUEST'!$I29=\"\",\"\",'Results from eQUEST'!$X29),IF($C$6=\"Trace\",IF(SUM('Results from Trace'!$E$6:$E$55)=0,\"\",SUMIFS('Results from Trace'!$E$6:$E$55,'Results from Trace'!$B$6:$B$55,\"Electricity\")/0.003412),\"\")),\"\")","v":""},{"$f":"IFERROR(IF($C$6=\"eQUEST\",IF('Results from eQUEST'!$I29=\"\",\"\",'Results from eQUEST'!$AW29),IF($C$6=\"Trace\",\"\",\"\")),\"\")","v":""},{"$f":"IFERROR(IF($C$6=\"eQUEST\",IF('Results from eQUEST'!$I29=\"\",\"\",'Results from eQUEST'!$BJ29*0.1),IF($C$6=\"Trace\",IF(SUM('Results from Trace'!$Y$6:$Y$55)=0,\"\",SUMIFS('Results from Trace'!$Y$6:$Y$55,'Results from Trace'!$B$6:$B$55,\"Gas\")),\"\")),\"\")","v":""},{"$f":"IFERROR(IF($C$6=\"eQUEST\",\"\",IF($C$6=\"Trace\",IF(SUM('Results from Trace'!$Y$6:$Y$55)=0,\"\",SUMIFS('Results from Trace'!$Y$6:$Y$55,'Results from Trace'!$B$6:$B$55,\"Purchased Steam\")),\"\")),\"\")","v":""},{"$f":"IFERROR(IF($C$6=\"eQUEST\",\"\",IF($C$6=\"Trace\",IF(SUM('Results from Trace'!$Y$6:$Y$55)=0,\"\",SUMIFS('Results from Trace'!$Y$6:$Y$55,'Results from Trace'!$B$6:$B$55,\"Purchased Hot Water\")),\"\")),\"\")","v":""},{"$f":"IFERROR(IF($C$6=\"eQUEST\",\"\",IF($C$6=\"Trace\",IF(SUM('Results from Trace'!$Y$6:$Y$55)=0,\"\",SUMIFS('Results from Trace'!$Y$6:$Y$55,'Results from Trace'!$B$6:$B$55,\"Purchased Chilled Water\")),\"\")),\"\")","v":""},{"$f":"IFERROR(IF($C$6=\"eQUEST\",\"\",IF($C$6=\"Trace\",IF(SUM('Results from Trace'!$Y$6:$Y$55)=0,\"\",SUMIFS('Results from Trace'!$Y$6:$Y$55,'Results from Trace'!$B$6:$B$55,\"Oil\")),\"\")),\"\")","v":""},{"$f":"IFERROR(IF($C$6=\"eQUEST\",\"\",IF($C$6=\"Trace\",IF(SUM('Results from Trace'!$Y$6:$Y$55)=0,\"\",SUMIFS('Results from Trace'!$Y$6:$Y$55,'Results from Trace'!$B$6:$B$55,\"Propane\")),\"\")),\"\")","v":""}]
[1,null,null,22,{"$f":"IF('Measure Descriptions'!C28=0,\" \",'Measure Descriptions'!C28)","v":" "},null,null,{"$f":"IFERROR(IF($C$6=\"eQUEST\",IF('Results from eQUEST'!$I30=\"\",\"\",'Results from eQUEST'!$X30),IF($C$6=\"Trace\",IF(SUM('Results from Trace'!$E$6:$E$55)=0,\"\",SUMIFS('Results from Trace'!$E$6:$E$55,'Results from Trace'!$B$6:$B$55,\"Electricity\")/0.003412),\"\")),\"\")","v":""},{"$f":"IFERROR(IF($C$6=\"eQUEST\",IF('Results from eQUEST'!$I30=\"\",\"\",'Results from eQUEST'!$AW30),IF($C$6=\"Trace\",\"\",\"\")),\"\")","v":""},{"$f":"IFERROR(IF($C$6=\"eQUEST\",IF('Results from eQUEST'!$I30=\"\",\"\",'Results from eQUEST'!$BJ30*0.1),IF($C$6=\"Trace\",IF(SUM('Results from Trace'!$Z$6:$Z$55)=0,\"\",SUMIFS('Results from Trace'!$Z$6:$Z$55,'Results from Trace'!$B$6:$B$55,\"Gas\")),\"\")),\"\")","v":""},{"$f":"IFERROR(IF($C$6=\"eQUEST\",\"\",IF($C$6=\"Trace\",IF(SUM('Results from Trace'!$Z$6:$Z$55)=0,\"\",SUMIFS('Results from Trace'!$Z$6:$Z$55,'Results from Trace'!$B$6:$B$55,\"Purchased Steam\")),\"\")),\"\")","v":""},{"$f":"IFERROR(IF($C$6=\"eQUEST\",\"\",IF($C$6=\"Trace\",IF(SUM('Results from Trace'!$Z$6:$Z$55)=0,\"\",SUMIFS('Results from Trace'!$Z$6:$Z$55,'Results from Trace'!$B$6:$B$55,\"Purchased Hot Water\")),\"\")),\"\")","v":""},{"$f":"IFERROR(IF($C$6=\"eQUEST\",\"\",IF($C$6=\"Trace\",IF(SUM('Results from Trace'!$Z$6:$Z$55)=0,\"\",SUMIFS('Results from Trace'!$Z$6:$Z$55,'Results from Trace'!$B$6:$B$55,\"Purchased Chilled Water\")),\"\")),\"\")","v":""},{"$f":"IFERROR(IF($C$6=\"eQUEST\",\"\",IF($C$6=\"Trace\",IF(SUM('Results from Trace'!$Z$6:$Z$55)=0,\"\",SUMIFS('Results from Trace'!$Z$6:$Z$55,'Results from Trace'!$B$6:$B$55,\"Oil\")),\"\")),\"\")","v":""},{"$f":"IFERROR(IF($C$6=\"eQUEST\",\"\",IF($C$6=\"Trace\",IF(SUM('Results from Trace'!$Z$6:$Z$55)=0,\"\",SUMIFS('Results from Trace'!$Z$6:$Z$55,'Results from Trace'!$B$6:$B$55,\"Propane\")),\"\")),\"\")","v":""}]
[1,null,null,23,{"$f":"IF('Measure Descriptions'!C29=0,\" \",'Measure Descriptions'!C29)","v":" "},null,null,{"$f":"IFERROR(IF($C$6=\"eQUEST\",IF('Results from eQUEST'!$I31=\"\",\"\",'Results from eQUEST'!$X31),IF($C$6=\"Trace\",IF(SUM('Results from Trace'!$E$6:$E$55)=0,\"\",SUMIFS('Results from Trace'!$E$6:$E$55,'Results from Trace'!$B$6:$B$55,\"Electricity\")/0.003412),\"\")),\"\")","v":""},{"$f":"IFERROR(IF($C$6=\"eQUEST\",IF('Results from eQUEST'!$I31=\"\",\"\",'Results from eQUEST'!$AW31),IF($C$6=\"Trace\",\"\",\"\")),\"\")","v":""},{"$f":"IFERROR(IF($C$6=\"eQUEST\",IF('Results from eQUEST'!$I31=\"\",\"\",'Results from eQUEST'!$BJ31*0.1),IF($C$6=\"Trace\",IF(SUM('Results from Trace'!$AA$6:$AA$55)=0,\"\",SUMIFS('Results from Trace'!$AA$6:$AA$55,'Results from Trace'!$B$6:$B$55,\"Gas\")),\"\")),\"\")","v":""},{"$f":"IFERROR(IF($C$6=\"eQUEST\",\"\",IF($C$6=\"Trace\",IF(SUM('Results from Trace'!$AA$6:$AA$55)=0,\"\",SUMIFS('Results from Trace'!$AA$6:$AA$55,'Results from Trace'!$B$6:$B$55,\"Purchased Steam\")),\"\")),\"\")","v":""},{"$f":"IFERROR(IF($C$6=\"eQUEST\",\"\",IF($C$6=\"Trace\",IF(SUM('Results from Trace'!$AA$6:$AA$55)=0,\"\",SUMIFS('Results from Trace'!$AA$6:$AA$55,'Results from Trace'!$B$6:$B$55,\"Purchased Hot Water\")),\"\")),\"\")","v":""},{"$f":"IFERROR(IF($C$6=\"eQUEST\",\"\",IF($C$6=\"Trace\",IF(SUM('Results from Trace'!$AA$6:$AA$55)=0,\"\",SUMIFS('Results from Trace'!$AA$6:$AA$55,'Results from Trace'!$B$6:$B$55,\"Purchased Chilled Water\")),\"\")),\"\")","v":""},{"$f":"IFERROR(IF($C$6=\"eQUEST\",\"\",IF($C$6=\"Trace\",IF(SUM('Results from Trace'!$AA$6:$AA$55)=0,\"\",SUMIFS('Results from Trace'!$AA$6:$AA$55,'Results from Trace'!$B$6:$B$55,\"Oil\")),\"\")),\"\")","v":""},{"$f":"IFERROR(IF($C$6=\"eQUEST\",\"\",IF($C$6=\"Trace\",IF(SUM('Results from Trace'!$AA$6:$AA$55)=0,\"\",SUMIFS('Results from Trace'!$AA$6:$AA$55,'Results from Trace'!$B$6:$B$55,\"Propane\")),\"\")),\"\")","v":""}]
[1,null,null,24,{"$f":"IF('Measure Descriptions'!C30=0,\" \",'Measure Descriptions'!C30)","v":" "},null,null,{"$f":"IFERROR(IF($C$6=\"eQUEST\",IF('Results from eQUEST'!$I32=\"\",\"\",'Results from eQUEST'!$X32),IF($C$6=\"Trace\",IF(SUM('Results from Trace'!$E$6:$E$55)=0,\"\",SUMIFS('Results from Trace'!$E$6:$E$55,'Results from Trace'!$B$6:$B$55,\"Electricity\")/0.003412),\"\")),\"\")","v":""},{"$f":"IFERROR(IF($C$6=\"eQUEST\",IF('Results from eQUEST'!$I32=\"\",\"\",'Results from eQUEST'!$AW32),IF($C$6=\"Trace\",\"\",\"\")),\"\")","v":""},{"$f":"IFERROR(IF($C$6=\"eQUEST\",IF('Results from eQUEST'!$I32=\"\",\"\",'Results from eQUEST'!$BJ32*0.1),IF($C$6=\"Trace\",IF(SUM('Results from Trace'!$AB$6:$AB$55)=0,\"\",SUMIFS('Results from Trace'!$AB$6:$AB$55,'Results from Trace'!$B$6:$B$55,\"Gas\")),\"\")),\"\")","v":""},{"$f":"IFERROR(IF($C$6=\"eQUEST\",\"\",IF($C$6=\"Trace\",IF(SUM('Results from Trace'!$AB$6:$AB$55)=0,\"\",SUMIFS('Results from Trace'!$AB$6:$AB$55,'Results from Trace'!$B$6:$B$55,\"Purchased Steam\")),\"\")),\"\")","v":""},{"$f":"IFERROR(IF($C$6=\"eQUEST\",\"\",IF($C$6=\"Trace\",IF(SUM('Results from Trace'!$AB$6:$AB$55)=0,\"\",SUMIFS('Results from Trace'!$AB$6:$AB$55,'Results from Trace'!$B$6:$B$55,\"Purchased Hot Water\")),\"\")),\"\")","v":""},{"$f":"IFERROR(IF($C$6=\"eQUEST\",\"\",IF($C$6=\"Trace\",IF(SUM('Results from Trace'!$AB$6:$AB$55)=0,\"\",SUMIFS('Results from Trace'!$AB$6:$AB$55,'Results from Trace'!$B$6:$B$55,\"Purchased Chilled Water\")),\"\")),\"\")","v":""},{"$f":"IFERROR(IF($C$6=\"eQUEST\",\"\",IF($C$6=\"Trace\",IF(SUM('Results from Trace'!$AB$6:$AB$55)=0,\"\",SUMIFS('Results from Trace'!$AB$6:$AB$55,'Results from Trace'!$B$6:$B$55,\"Oil\")),\"\")),\"\")","v":""},{"$f":"IFERROR(IF($C$6=\"eQUEST\",\"\",IF($C$6=\"Trace\",IF(SUM('Results from Trace'!$AB$6:$AB$55)=0,\"\",SUMIFS('Results from Trace'!$AB$6:$AB$55,'Results from Trace'!$B$6:$B$55,\"Propane\")),\"\")),\"\")","v":""}]
[1,null,null,25,{"$f":"IF('Measure Descriptions'!C31=0,\" \",'Measure Descriptions'!C31)","v":" "},null,null,{"$f":"IFERROR(IF($C$6=\"eQUEST\",IF('Results from eQUEST'!$I33=\"\",\"\",'Results from eQUEST'!$X33),IF($C$6=\"Trace\",IF(SUM('Results from Trace'!$E$6:$E$55)=0,\"\",SUMIFS('Results from Trace'!$E$6:$E$55,'Results from Trace'!$B$6:$B$55,\"Electricity\")/0.003412),\"\")),\"\")","v":""},{"$f":"IFERROR(IF($C$6=\"eQUEST\",IF('Results from eQUEST'!$I33=\"\",\"\",'Results from eQUEST'!$AW33),IF($C$6=\"Trace\",\"\",\"\")),\"\")","v":""},{"$f":"IFERROR(IF($C$6=\"eQUEST\",IF('Results from eQUEST'!$I33=\"\",\"\",'Results from eQUEST'!$BJ33*0.1),IF($C$6=\"Trace\",IF(SUM('Results from Trace'!$AC$6:$AC$55)=0,\"\",SUMIFS('Results from Trace'!$AC$6:$AC$55,'Results from Trace'!$B$6:$B$55,\"Gas\")),\"\")),\"\")","v":""},{"$f":"IFERROR(IF($C$6=\"eQUEST\",\"\",IF($C$6=\"Trace\",IF(SUM('Results from Trace'!$AC$6:$AC$55)=0,\"\",SUMIFS('Results from Trace'!$AC$6:$AC$55,'Results from Trace'!$B$6:$B$55,\"Purchased Steam\")),\"\")),\"\")","v":""},{"$f":"IFERROR(IF($C$6=\"eQUEST\",\"\",IF($C$6=\"Trace\",IF(SUM('Results from Trace'!$AC$6:$AC$55)=0,\"\",SUMIFS('Results from Trace'!$AC$6:$AC$55,'Results from Trace'!$B$6:$B$55,\"Purchased Hot Water\")),\"\")),\"\")","v":""},{"$f":"IFERROR(IF($C$6=\"eQUEST\",\"\",IF($C$6=\"Trace\",IF(SUM('Results from Trace'!$AC$6:$AC$55)=0,\"\",SUMIFS('Results from Trace'!$AC$6:$AC$55,'Results from Trace'!$B$6:$B$55,\"Purchased Chilled Water\")),\"\")),\"\")","v":""},{"$f":"IFERROR(IF($C$6=\"eQUEST\",\"\",IF($C$6=\"Trace\",IF(SUM('Results from Trace'!$AC$6:$AC$55)=0,\"\",SUMIFS('Results from Trace'!$AC$6:$AC$55,'Results from Trace'!$B$6:$B$55,\"Oil\")),\"\")),\"\")","v":""},{"$f":"IFERROR(IF($C$6=\"eQUEST\",\"\",IF($C$6=\"Trace\",IF(SUM('Results from Trace'!$AC$6:$AC$55)=0,\"\",SUMIFS('Results from Trace'!$AC$6:$AC$55,'Results from Trace'!$B$6:$B$55,\"Propane\")),\"\")),\"\")","v":""}]
[1]
[1]
[1,null,null,"Measure Name",null,"Installed Cost (incl. design)","Annual Energy Savings",null,null,null,null,null,null,null,"Demand Savings","Annual O&M Savings","Annual Cost Savings","Measure Life ","Simple Payback","Life Cycle Savings","IRR",null,"Cost Source",null,null,"Cash Flow for IRR calculations"]
[1,"MMBTU Sum","Lighting Measure?",null,null,"$","kWh","Gas MMBtu","Steam MMBtu","HW MMBtu","CW MMBtu","Fuel Oil MMBtu","Propane MMBtu","Other MMBtu","kW","$","$","years","years","$","%",null,"Select or Enter Custom",null,null,"Year 0","Year 1","Year 2","Year 3","Year 4","Year 5","Year 6","Year 7","Year 8","Year 9","Year 10","Year 11","Year 12","Year 13","Year 14","Year 15","Year 16","Year 17","Year 18","Year 19","Year 20","Year 21","Year 22","Year 23","Year 24","Year 25","Year 26","Year 27","Year 28","Year 29","Year 30","Year 31","Year 32","Year 33","Year 34","Year 35","Year 36","Year 37","Year 38","Year 39","Year 40","IRR Estimate"]
[0,null,null,null,null,null,null,{"$f":"'Utility Use Summary'!H8","v":0},{"$f":"'Utility Use Summary'!N8","v":0},{"$f":"'Utility Use Summary'!R8","v":0},{"$f":"'Utility Use Summary'!P8","v":0},{"$f":"'Utility Use Summary'!J8","v":0},{"$f":"'Utility Use Summary'!L8","v":0},{"$f":"'Utility Use Summary'!T8","v":0}]
[{"$f":"IF(E54=\" \",0,1)","v":0},{"$f":"SUM(H54:N54)","v":0},{"$f":"COUNTIF(P4Pindices!$A$8:$A$9,INDEX('Measure Descriptions'!$D$7:$D$31,MATCH('Measure Simulation'!E54,'Measure Descriptions'!$C$7:$C$31,0),1))","v":0},1,{"$f":"IF('Measure Descriptions'!C7=0,\" \",'Measure Descriptions'!C7)","v":" "},0,{"$f":"IF(H24=\"\",0, IF(F24=\"Simulation\",H22-H24,0))","v":0},{"$f":"IF(J24=\"\",0,IF(F24=\"Simulation\",J22-J24,0))","v":0},{"$f":"IF(K24=\"\",0,IF(F24=\"Simulation\",K22-K24,0))","v":0},{"$f":"IF(L24=\"\",0,IF(F24=\"Simulation\",L22-L24,0))","v":0},{"$f":"IF(M24=\"\",0,IF(F24=\"Simulation\",M22-M24,0))","v":0},{"$f":"IF(N24=\"\",0,IF(F24=\"Simulation\",N22-N24,0))","v":0},{"$f":"IF(O24=\"\",0,IF(F24=\"Simulation\",O22-O24,0))","v":0},{"$f":"IF(P24=\"\",0,IF(F24=\"Simulation\",P22-P24,0))","v":0},{"$f":"IF(I24=\"\",0,IF(F24=\"Simulation\",I22-I24,0))","v":0},0,0,{"$f":"'Measure Descriptions'!AA7","v":0},{"$f":"IF(Q54=0,0,F54/(P54+Q54))","v":0},{"$f":"-PV($AB$84,R54,(P54+Q54))-F54","v":0},{"$f":"IF(Q54=0,0,IRR(Z54:BN54,BO54))","v":0},null,null,null,null,{"$f":"-F54","v":0},{"$f":"P54+Q54","v":0},{"$f":"IF(COUNTIF(AA54,P54+Q54)<R54,P54+Q54,0)","v":0},{"$f":"IF(COUNTIF($AA54:AB54,$P54+$Q54)<$R54,$P54+$Q54,0)","v":0},{"$f":"IF(COUNTIF($AA54:AC54,$P54+$Q54)<$R54,$P54+$Q54,0)","v":0},{"$f":"IF(COUNTIF($AA54:AD54,$P54+$Q54)<$R54,$P54+$Q54,0)","v":0},{"$f":"IF(COUNTIF($AA54:AE54,$P54+$Q54)<$R54,$P54+$Q54,0)","v":0},{"$f":"IF(COUNTIF($AA54:AF54,$P54+$Q54)<$R54,$P54+$Q54,0)","v":0},{"$f":"IF(COUNTIF($AA54:AG54,$P54+$Q54)<$R54,$P54+$Q54,0)","v":0},{"$f":"IF(COUNTIF($AA54:AH54,$P54+$Q54)<$R54,$P54+$Q54,0)","v":0},{"$f":"IF(COUNTIF($AA54:AI54,$P54+$Q54)<$R54,$P54+$Q54,0)","v":0},{"$f":"IF(COUNTIF($AA54:AJ54,$P54+$Q54)<$R54,$P54+$Q54,0)","v":0},{"$f":"IF(COUNTIF($AA54:AK54,$P54+$Q54)<$R54,$P54+$Q54,0)","v":0},{"$f":"IF(COUNTIF($AA54:AL54,$P54+$Q54)<$R54,$P54+$Q54,0)","v":0},{"$f":"IF(COUNTIF($AA54:AM54,$P54+$Q54)<$R54,$P54+$Q54,0)","v":0},{"$f":"IF(COUNTIF($AA54:AN54,$P54+$Q54)<$R54,$P54+$Q54,0)","v":0},{"$f":"IF(COUNTIF($AA54:AO54,$P54+$Q54)<$R54,$P54+$Q54,0)","v":0},{"$f":"IF(COUNTIF($AA54:AP54,$P54+$Q54)<$R54,$P54+$Q54,0)","v":0},{"$f":"IF(COUNTIF($AA54:AQ54,$P54+$Q54)<$R54,$P54+$Q54,0)","v":0},{"$f":"IF(COUNTIF($AA54:AR54,$P54+$Q54)<$R54,$P54+$Q54,0)","v":0},{"$f":"IF(COUNTIF($AA54:AS54,$P54+$Q54)<$R54,$P54+$Q54,0)","v":0},{"$f":"IF(COUNTIF($AA54:AT54,$P54+$Q54)<$R54,$P54+$Q54,0)","v":0},{"$f":"IF(COUNTIF($AA54:AU54,$P54+$Q54)<$R54,$P54+$Q54,0)","v":0},{"$f":"IF(COUNTIF($AA54:AV54,$P54+$Q54)<$R54,$P54+$Q54,0)","v":0},{"$f":"IF(COUNTIF($AA54:AW54,$P54+$Q54)<$R54,$P54+$Q54,0)","v":0},{"$f":"IF(COUNTIF($AA54:AX54,$P54+$Q54)<$R54,$P54+$Q54,0)","v":0},{"$f":"IF(COUNTIF($AA54:AY54,$P54+$Q54)<$R54,$P54+$Q54,0)","v":0},{"$f":"IF(COUNTIF($AA54:AZ54,$P54+$Q54)<$R54,$P54+$Q54,0)","v":0},{"$f":"IF(COUNTIF($AA54:BA54,$P54+$Q54)<$R54,$P54+$Q54,0)","v":0},{"$f":"IF(COUNTIF($AA54:BB54,$P54+$Q54)<$R54,$P54+$Q54,0)","v":0},{"$f":"IF(COUNTIF($AA54:BC54,$P54+$Q54)<$R54,$P54+$Q54,0)","v":0},{"$f":"IF(COUNTIF($AA54:BD54,$P54+$Q54)<$R54,$P54+$Q54,0)","v":0},{"$f":"IF(COUNTIF($AA54:BE54,$P54+$Q54)<$R54,$P54+$Q54,0)","v":0},{"$f":"IF(COUNTIF($AA54:BF54,$P54+$Q54)<$R54,$P54+$Q54,0)","v":0},{"$f":"IF(COUNTIF($AA54:BG54,$P54+$Q54)<$R54,$P54+$Q54,0)","v":0},{"$f":"IF(COUNTIF($AA54:BH54,$P54+$Q54)<$R54,$P54+$Q54,0)","v":0},{"$f":"IF(COUNTIF($AA54:BI54,$P54+$Q54)<$R54,$P54+$Q54,0)","v":0},{"$f":"IF(COUNTIF($AA54:BJ54,$P54+$Q54)<$R54,$P54+$Q54,0)","v":0},{"$f":"IF(COUNTIF($AA54:BK54,$P54+$Q54)<$R54,$P54+$Q54,0)","v":0},{"$f":"IF(COUNTIF($AA54:BL54,$P54+$Q54)<$R54,$P54+$Q54,0)","v":0},{"$f":"IF(COUNTIF($AA54:BM54,$P54+$Q54)<$R54,$P54+$Q54,0)","v":0},{"$f":"IF(Q54*R54>F54,0.3,-0.3)","v":-0.3}]
[{"$f":"IF(E55=\" \",0,1)","v":0},0,{"$f":"COUNTIF(P4Pindices!$A$8:$A$9,INDEX('Measure Descriptions'!$D$7:$D$31,MATCH('Measure Simulation'!E55,'Measure Descriptions'!$C$7:$C$31,0),1))","v":0},2,{"$f":"IF('Measure Descriptions'!C8=0,\" \",'Measure Descriptions'!C8)","v":" "},0,{"$f":"IF(H25=\"\",0,IF(F25=\"Simulation\",H24-H25,0))","v":0},{"$f":"IF(J25=\"\",0,IF(F25=\"Simulation\",J24-J25,0))","v":0},{"$f":"IF(K25=\"\",0,IF(F25=\"Simulation\",K24-K25,0))","v":0},{"$f":"IF(L25=\"\",0,IF(F25=\"Simulation\",L24-L25,0))","v":0},{"$f":"IF(M25=\"\",0,IF(F25=\"Simulation\",M24-M25,0))","v":0},{"$f":"IF(N25=\"\",0,IF(F25=\"Simulation\",N24-N25,0))","v":0},{"$f":"IF(O25=\"\",0,IF(F25=\"Simulation\",O24-O25,0))","v":0},{"$f":"IF(P25=\"\",0,IF(F25=\"Simulation\",P24-P25,0))","v":0},{"$f":"IF(I25=\"\",0,IF(F25=\"Simulation\",I24-I25,0))","v":0},0,0,{"$f":"'Measure Descriptions'!AA8","v":0},0,{"$f":"-PV($AB$84,R55,(P55+Q55))-F55","v":0},0,null,null,null,null,0,0,0,{"$f":"IF(COUNTIF($AA55:AB55,$P55+$Q55)<$R55,$P55+$Q55,0)","v":0},{"$f":"IF(COUNTIF($AA55:AC55,$P55+$Q55)<$R55,$P55+$Q55,0)","v":0},{"$f":"IF(COUNTIF($AA55:AD55,$P55+$Q55)<$R55,$P55+$Q55,0)","v":0},{"$f":"IF(COUNTIF($AA55:AE55,$P55+$Q55)<$R55,$P55+$Q55,0)","v":0},{"$f":"IF(COUNTIF($AA55:AF55,$P55+$Q55)<$R55,$P55+$Q55,0)","v":0},{"$f":"IF(COUNTIF($AA55:AG55,$P55+$Q55)<$R55,$P55+$Q55,0)","v":0},{"$f":"IF(COUNTIF($AA55:AH55,$P55+$Q55)<$R55,$P55+$Q55,0)","v":0},{"$f":"IF(COUNTIF($AA55:AI55,$P55+$Q55)<$R55,$P55+$Q55,0)","v":0},{"$f":"IF(COUNTIF($AA55:AJ55,$P55+$Q55)<$R55,$P55+$Q55,0)","v":0},{"$f":"IF(COUNTIF($AA55:AK55,$P55+$Q55)<$R55,$P55+$Q55,0)","v":0},{"$f":"IF(COUNTIF($AA55:AL55,$P55+$Q55)<$R55,$P55+$Q55,0)","v":0},{"$f":"IF(COUNTIF($AA55:AM55,$P55+$Q55)<$R55,$P55+$Q55,0)","v":0},{"$f":"IF(COUNTIF($AA55:AN55,$P55+$Q55)<$R55,$P55+$Q55,0)","v":0},{"$f":"IF(COUNTIF($AA55:AO55,$P55+$Q55)<$R55,$P55+$Q55,0)","v":0},{"$f":"IF(COUNTIF($AA55:AP55,$P55+$Q55)<$R55,$P55+$Q55,0)","v":0},{"$f":"IF(COUNTIF($AA55:AQ55,$P55+$Q55)<$R55,$P55+$Q55,0)","v":0},{"$f":"IF(COUNTIF($AA55:AR55,$P55+$Q55)<$R55,$P55+$Q55,0)","v":0},{"$f":"IF(COUNTIF($AA55:AS55,$P55+$Q55)<$R55,$P55+$Q55,0)","v":0},{"$f":"IF(COUNTIF($AA55:AT55,$P55+$Q55)<$R55,$P55+$Q55,0)","v":0},{"$f":"IF(COUNTIF($AA55:AU55,$P55+$Q55)<$R55,$P55+$Q55,0)","v":0},{"$f":"IF(COUNTIF($AA55:AV55,$P55+$Q55)<$R55,$P55+$Q55,0)","v":0},{"$f":"IF(COUNTIF($AA55:AW55,$P55+$Q55)<$R55,$P55+$Q55,0)","v":0},{"$f":"IF(COUNTIF($AA55:AX55,$P55+$Q55)<$R55,$P55+$Q55,0)","v":0},{"$f":"IF(COUNTIF($AA55:AY55,$P55+$Q55)<$R55,$P55+$Q55,0)","v":0},{"$f":"IF(COUNTIF($AA55:AZ55,$P55+$Q55)<$R55,$P55+$Q55,0)","v":0},{"$f":"IF(COUNTIF($AA55:BA55,$P55+$Q55)<$R55,$P55+$Q55,0)","v":0},{"$f":"IF(COUNTIF($AA55:BB55,$P55+$Q55)<$R55,$P55+$Q55,0)","v":0},{"$f":"IF(COUNTIF($AA55:BC55,$P55+$Q55)<$R55,$P55+$Q55,0)","v":0},{"$f":"IF(COUNTIF($AA55:BD55,$P55+$Q55)<$R55,$P55+$Q55,0)","v":0},{"$f":"IF(COUNTIF($AA55:BE55,$P55+$Q55)<$R55,$P55+$Q55,0)","v":0},{"$f":"IF(COUNTIF($AA55:BF55,$P55+$Q55)<$R55,$P55+$Q55,0)","v":0},{"$f":"IF(COUNTIF($AA55:BG55,$P55+$Q55)<$R55,$P55+$Q55,0)","v":0},{"$f":"IF(COUNTIF($AA55:BH55,$P55+$Q55)<$R55,$P55+$Q55,0)","v":0},{"$f":"IF(COUNTIF($AA55:BI55,$P55+$Q55)<$R55,$P55+$Q55,0)","v":0},{"$f":"IF(COUNTIF($AA55:BJ55,$P55+$Q55)<$R55,$P55+$Q55,0)","v":0},{"$f":"IF(COUNTIF($AA55:BK55,$P55+$Q55)<$R55,$P55+$Q55,0)","v":0},{"$f":"IF(COUNTIF($AA55:BL55,$P55+$Q55)<$R55,$P55+$Q55,0)","v":0},{"$f":"IF(COUNTIF($AA55:BM55,$P55+$Q55)<$R55,$P55+$Q55,0)","v":0},-0.3]
[0,0,{"$f":"COUNTIF(P4Pindices!$A$8:$A$9,INDEX('Measure Descriptions'!$D$7:$D$31,MATCH('Measure Simulation'!E56,'Measure Descriptions'!$C$7:$C$31,0),1))","v":0},3,{"$f":"IF('Measure Descriptions'!C9=0,\" \",'Measure Descriptions'!C9)","v":" "},0,0,{"$f":"IF(J26=\"\",0,IF(F26=\"Simulation\",J25-J26,0))","v":0},0,0,0,{"$f":"IF(N26=\"\",0,IF(F26=\"Simulation\",N25-N26,0))","v":0},{"$f":"IF(O26=\"\",0,IF(F26=\"Simulation\",O25-O26,0))","v":0},0,0,0,0,{"$f":"'Measure Descriptions'!AA9","v":0},0,0,0,null,null,null,null,0,0,0,{"$f":"IF(COUNTIF($AA56:AB56,$P56+$Q56)<$R56,$P56+$Q56,0)","v":0},{"$f":"IF(COUNTIF($AA56:AC56,$P56+$Q56)<$R56,$P56+$Q56,0)","v":0},{"$f":"IF(COUNTIF($AA56:AD56,$P56+$Q56)<$R56,$P56+$Q56,0)","v":0},{"$f":"IF(COUNTIF($AA56:AE56,$P56+$Q56)<$R56,$P56+$Q56,0)","v":0},{"$f":"IF(COUNTIF($AA56:AF56,$P56+$Q56)<$R56,$P56+$Q56,0)","v":0},{"$f":"IF(COUNTIF($AA56:AG56,$P56+$Q56)<$R56,$P56+$Q56,0)","v":0},{"$f":"IF(COUNTIF($AA56:AH56,$P56+$Q56)<$R56,$P56+$Q56,0)","v":0},{"$f":"IF(COUNTIF($AA56:AI56,$P56+$Q56)<$R56,$P56+$Q56,0)","v":0},{"$f":"IF(COUNTIF($AA56:AJ56,$P56+$Q56)<$R56,$P56+$Q56,0)","v":0},{"$f":"IF(COUNTIF($AA56:AK56,$P56+$Q56)<$R56,$P56+$Q56,0)","v":0},{"$f":"IF(COUNTIF($AA56:AL56,$P56+$Q56)<$R56,$P56+$Q56,0)","v":0},{"$f":"IF(COUNTIF($AA56:AM56,$P56+$Q56)<$R56,$P56+$Q56,0)","v":0},{"$f":"IF(COUNTIF($AA56:AN56,$P56+$Q56)<$R56,$P56+$Q56,0)","v":0},{"$f":"IF(COUNTIF($AA56:AO56,$P56+$Q56)<$R56,$P56+$Q56,0)","v":0},{"$f":"IF(COUNTIF($AA56:AP56,$P56+$Q56)<$R56,$P56+$Q56,0)","v":0},{"$f":"IF(COUNTIF($AA56:AQ56,$P56+$Q56)<$R56,$P56+$Q56,0)","v":0},{"$f":"IF(COUNTIF($AA56:AR56,$P56+$Q56)<$R56,$P56+$Q56,0)","v":0},{"$f":"IF(COUNTIF($AA56:AS56,$P56+$Q56)<$R56,$P56+$Q56,0)","v":0},{"$f":"IF(COUNTIF($AA56:AT56,$P56+$Q56)<$R56,$P56+$Q56,0)","v":0},{"$f":"IF(COUNTIF($AA56:AU56,$P56+$Q56)<$R56,$P56+$Q56,0)","v":0},{"$f":"IF(COUNTIF($AA56:AV56,$P56+$Q56)<$R56,$P56+$Q56,0)","v":0},{"$f":"IF(COUNTIF($AA56:AW56,$P56+$Q56)<$R56,$P56+$Q56,0)","v":0},{"$f":"IF(COUNTIF($AA56:AX56,$P56+$Q56)<$R56,$P56+$Q56,0)","v":0},{"$f":"IF(COUNTIF($AA56:AY56,$P56+$Q56)<$R56,$P56+$Q56,0)","v":0},{"$f":"IF(COUNTIF($AA56:AZ56,$P56+$Q56)<$R56,$P56+$Q56,0)","v":0},{"$f":"IF(COUNTIF($AA56:BA56,$P56+$Q56)<$R56,$P56+$Q56,0)","v":0},{"$f":"IF(COUNTIF($AA56:BB56,$P56+$Q56)<$R56,$P56+$Q56,0)","v":0},{"$f":"IF(COUNTIF($AA56:BC56,$P56+$Q56)<$R56,$P56+$Q56,0)","v":0},{"$f":"IF(COUNTIF($AA56:BD56,$P56+$Q56)<$R56,$P56+$Q56,0)","v":0},{"$f":"IF(COUNTIF($AA56:BE56,$P56+$Q56)<$R56,$P56+$Q56,0)","v":0},{"$f":"IF(COUNTIF($AA56:BF56,$P56+$Q56)<$R56,$P56+$Q56,0)","v":0},{"$f":"IF(COUNTIF($AA56:BG56,$P56+$Q56)<$R56,$P56+$Q56,0)","v":0},{"$f":"IF(COUNTIF($AA56:BH56,$P56+$Q56)<$R56,$P56+$Q56,0)","v":0},{"$f":"IF(COUNTIF($AA56:BI56,$P56+$Q56)<$R56,$P56+$Q56,0)","v":0},{"$f":"IF(COUNTIF($AA56:BJ56,$P56+$Q56)<$R56,$P56+$Q56,0)","v":0},{"$f":"IF(COUNTIF($AA56:BK56,$P56+$Q56)<$R56,$P56+$Q56,0)","v":0},{"$f":"IF(COUNTIF($AA56:BL56,$P56+$Q56)<$R56,$P56+$Q56,0)","v":0},{"$f":"IF(COUNTIF($AA56:BM56,$P56+$Q56)<$R56,$P56+$Q56,0)","v":0},-0.3]
[0,0,{"$f":"COUNTIF(P4Pindices!$A$8:$A$9,INDEX('Measure Descriptions'!$D$7:$D$31,MATCH('Measure Simulation'!E57,'Measure Descriptions'!$C$7:$C$31,0),1))","v":0},4,{"$f":"IF('Measure Descriptions'!C10=0,\" \",'Measure Descriptions'!C10)","v":" "},0,0,0,0,0,0,0,0,0,0,0,0,{"$f":"'Measure Descriptions'!AA10","v":0},0,0,0,null,null,null,null,0,0,0,{"$f":"IF(COUNTIF($AA57:AB57,$P57+$Q57)<$R57,$P57+$Q57,0)","v":0},{"$f":"IF(COUNTIF($AA57:AC57,$P57+$Q57)<$R57,$P57+$Q57,0)","v":0},{"$f":"IF(COUNTIF($AA57:AD57,$P57+$Q57)<$R57,$P57+$Q57,0)","v":0},{"$f":"IF(COUNTIF($AA57:AE57,$P57+$Q57)<$R57,$P57+$Q57,0)","v":0},{"$f":"IF(COUNTIF($AA57:AF57,$P57+$Q57)<$R57,$P57+$Q57,0)","v":0},{"$f":"IF(COUNTIF($AA57:AG57,$P57+$Q57)<$R57,$P57+$Q57,0)","v":0},{"$f":"IF(COUNTIF($AA57:AH57,$P57+$Q57)<$R57,$P57+$Q57,0)","v":0},{"$f":"IF(COUNTIF($AA57:AI57,$P57+$Q57)<$R57,$P57+$Q57,0)","v":0},{"$f":"IF(COUNTIF($AA57:AJ57,$P57+$Q57)<$R57,$P57+$Q57,0)","v":0},{"$f":"IF(COUNTIF($AA57:AK57,$P57+$Q57)<$R57,$P57+$Q57,0)","v":0},{"$f":"IF(COUNTIF($AA57:AL57,$P57+$Q57)<$R57,$P57+$Q57,0)","v":0},{"$f":"IF(COUNTIF($AA57:AM57,$P57+$Q57)<$R57,$P57+$Q57,0)","v":0},{"$f":"IF(COUNTIF($AA57:AN57,$P57+$Q57)<$R57,$P57+$Q57,0)","v":0},{"$f":"IF(COUNTIF($AA57:AO57,$P57+$Q57)<$R57,$P57+$Q57,0)","v":0},{"$f":"IF(COUNTIF($AA57:AP57,$P57+$Q57)<$R57,$P57+$Q57,0)","v":0},{"$f":"IF(COUNTIF($AA57:AQ57,$P57+$Q57)<$R57,$P57+$Q57,0)","v":0},{"$f":"IF(COUNTIF($AA57:AR57,$P57+$Q57)<$R57,$P57+$Q57,0)","v":0},{"$f":"IF(COUNTIF($AA57:AS57,$P57+$Q57)<$R57,$P57+$Q57,0)","v":0},{"$f":"IF(COUNTIF($AA57:AT57,$P57+$Q57)<$R57,$P57+$Q57,0)","v":0},{"$f":"IF(COUNTIF($AA57:AU57,$P57+$Q57)<$R57,$P57+$Q57,0)","v":0},{"$f":"IF(COUNTIF($AA57:AV57,$P57+$Q57)<$R57,$P57+$Q57,0)","v":0},{"$f":"IF(COUNTIF($AA57:AW57,$P57+$Q57)<$R57,$P57+$Q57,0)","v":0},{"$f":"IF(COUNTIF($AA57:AX57,$P57+$Q57)<$R57,$P57+$Q57,0)","v":0},{"$f":"IF(COUNTIF($AA57:AY57,$P57+$Q57)<$R57,$P57+$Q57,0)","v":0},{"$f":"IF(COUNTIF($AA57:AZ57,$P57+$Q57)<$R57,$P57+$Q57,0)","v":0},{"$f":"IF(COUNTIF($AA57:BA57,$P57+$Q57)<$R57,$P57+$Q57,0)","v":0},{"$f":"IF(COUNTIF($AA57:BB57,$P57+$Q57)<$R57,$P57+$Q57,0)","v":0},{"$f":"IF(COUNTIF($AA57:BC57,$P57+$Q57)<$R57,$P57+$Q57,0)","v":0},{"$f":"IF(COUNTIF($AA57:BD57,$P57+$Q57)<$R57,$P57+$Q57,0)","v":0},{"$f":"IF(COUNTIF($AA57:BE57,$P57+$Q57)<$R57,$P57+$Q57,0)","v":0},{"$f":"IF(COUNTIF($AA57:BF57,$P57+$Q57)<$R57,$P57+$Q57,0)","v":0},{"$f":"IF(COUNTIF($AA57:BG57,$P57+$Q57)<$R57,$P57+$Q57,0)","v":0},{"$f":"IF(COUNTIF($AA57:BH57,$P57+$Q57)<$R57,$P57+$Q57,0)","v":0},{"$f":"IF(COUNTIF($AA57:BI57,$P57+$Q57)<$R57,$P57+$Q57,0)","v":0},{"$f":"IF(COUNTIF($AA57:BJ57,$P57+$Q57)<$R57,$P57+$Q57,0)","v":0},{"$f":"IF(COUNTIF($AA57:BK57,$P57+$Q57)<$R57,$P57+$Q57,0)","v":0},{"$f":"IF(COUNTIF($AA57:BL57,$P57+$Q57)<$R57,$P57+$Q57,0)","v":0},{"$f":"IF(COUNTIF($AA57:BM57,$P57+$Q57)<$R57,$P57+$Q57,0)","v":0},-0.3]
[0,0,{"$f":"COUNTIF(P4Pindices!$A$8:$A$9,INDEX('Measure Descriptions'!$D$7:$D$31,MATCH('Measure Simulation'!E58,'Measure Descriptions'!$C$7:$C$31,0),1))","v":0},5,{"$f":"IF('Measure Descriptions'!C11=0,\" \",'Measure Descriptions'!C11)","v":" "},0,0,0,0,0,0,0,0,0,0,0,0,{"$f":"'Measure Descriptions'!AA11","v":0},0,0,0,null,null,null,null,0,0,0,{"$f":"IF(COUNTIF($AA58:AB58,$P58+$Q58)<$R58,$P58+$Q58,0)","v":0},{"$f":"IF(COUNTIF($AA58:AC58,$P58+$Q58)<$R58,$P58+$Q58,0)","v":0},{"$f":"IF(COUNTIF($AA58:AD58,$P58+$Q58)<$R58,$P58+$Q58,0)","v":0},{"$f":"IF(COUNTIF($AA58:AE58,$P58+$Q58)<$R58,$P58+$Q58,0)","v":0},{"$f":"IF(COUNTIF($AA58:AF58,$P58+$Q58)<$R58,$P58+$Q58,0)","v":0},{"$f":"IF(COUNTIF($AA58:AG58,$P58+$Q58)<$R58,$P58+$Q58,0)","v":0},{"$f":"IF(COUNTIF($AA58:AH58,$P58+$Q58)<$R58,$P58+$Q58,0)","v":0},{"$f":"IF(COUNTIF($AA58:AI58,$P58+$Q58)<$R58,$P58+$Q58,0)","v":0},{"$f":"IF(COUNTIF($AA58:AJ58,$P58+$Q58)<$R58,$P58+$Q58,0)","v":0},{"$f":"IF(COUNTIF($AA58:AK58,$P58+$Q58)<$R58,$P58+$Q58,0)","v":0},{"$f":"IF(COUNTIF($AA58:AL58,$P58+$Q58)<$R58,$P58+$Q58,0)","v":0},{"$f":"IF(COUNTIF($AA58:AM58,$P58+$Q58)<$R58,$P58+$Q58,0)","v":0},{"$f":"IF(COUNTIF($AA58:AN58,$P58+$Q58)<$R58,$P58+$Q58,0)","v":0},{"$f":"IF(COUNTIF($AA58:AO58,$P58+$Q58)<$R58,$P58+$Q58,0)","v":0},{"$f":"IF(COUNTIF($AA58:AP58,$P58+$Q58)<$R58,$P58+$Q58,0)","v":0},{"$f":"IF(COUNTIF($AA58:AQ58,$P58+$Q58)<$R58,$P58+$Q58,0)","v":0},{"$f":"IF(COUNTIF($AA58:AR58,$P58+$Q58)<$R58,$P58+$Q58,0)","v":0},{"$f":"IF(COUNTIF($AA58:AS58,$P58+$Q58)<$R58,$P58+$Q58,0)","v":0},{"$f":"IF(COUNTIF($AA58:AT58,$P58+$Q58)<$R58,$P58+$Q58,0)","v":0},{"$f":"IF(COUNTIF($AA58:AU58,$P58+$Q58)<$R58,$P58+$Q58,0)","v":0},{"$f":"IF(COUNTIF($AA58:AV58,$P58+$Q58)<$R58,$P58+$Q58,0)","v":0},{"$f":"IF(COUNTIF($AA58:AW58,$P58+$Q58)<$R58,$P58+$Q58,0)","v":0},{"$f":"IF(COUNTIF($AA58:AX58,$P58+$Q58)<$R58,$P58+$Q58,0)","v":0},{"$f":"IF(COUNTIF($AA58:AY58,$P58+$Q58)<$R58,$P58+$Q58,0)","v":0},{"$f":"IF(COUNTIF($AA58:AZ58,$P58+$Q58)<$R58,$P58+$Q58,0)","v":0},{"$f":"IF(COUNTIF($AA58:BA58,$P58+$Q58)<$R58,$P58+$Q58,0)","v":0},{"$f":"IF(COUNTIF($AA58:BB58,$P58+$Q58)<$R58,$P58+$Q58,0)","v":0},{"$f":"IF(COUNTIF($AA58:BC58,$P58+$Q58)<$R58,$P58+$Q58,0)","v":0},{"$f":"IF(COUNTIF($AA58:BD58,$P58+$Q58)<$R58,$P58+$Q58,0)","v":0},{"$f":"IF(COUNTIF($AA58:BE58,$P58+$Q58)<$R58,$P58+$Q58,0)","v":0},{"$f":"IF(COUNTIF($AA58:BF58,$P58+$Q58)<$R58,$P58+$Q58,0)","v":0},{"$f":"IF(COUNTIF($AA58:BG58,$P58+$Q58)<$R58,$P58+$Q58,0)","v":0},{"$f":"IF(COUNTIF($AA58:BH58,$P58+$Q58)<$R58,$P58+$Q58,0)","v":0},{"$f":"IF(COUNTIF($AA58:BI58,$P58+$Q58)<$R58,$P58+$Q58,0)","v":0},{"$f":"IF(COUNTIF($AA58:BJ58,$P58+$Q58)<$R58,$P58+$Q58,0)","v":0},{"$f":"IF(COUNTIF($AA58:BK58,$P58+$Q58)<$R58,$P58+$Q58,0)","v":0},{"$f":"IF(COUNTIF($AA58:BL58,$P58+$Q58)<$R58,$P58+$Q58,0)","v":0},{"$f":"IF(COUNTIF($AA58:BM58,$P58+$Q58)<$R58,$P58+$Q58,0)","v":0},-0.3]
[0,0,{"$f":"COUNTIF(P4Pindices!$A$8:$A$9,INDEX('Measure Descriptions'!$D$7:$D$31,MATCH('Measure Simulation'!E59,'Measure Descriptions'!$C$7:$C$31,0),1))","v":0},6,{"$f":"IF('Measure Descriptions'!C12=0,\" \",'Measure Descriptions'!C12)","v":" "},0,0,0,0,0,0,0,0,0,0,0,0,{"$f":"'Measure Descriptions'!AA12","v":0},0,0,0,null,null,null,null,0,0,0,{"$f":"IF(COUNTIF($AA59:AB59,$P59+$Q59)<$R59,$P59+$Q59,0)","v":0},{"$f":"IF(COUNTIF($AA59:AC59,$P59+$Q59)<$R59,$P59+$Q59,0)","v":0},{"$f":"IF(COUNTIF($AA59:AD59,$P59+$Q59)<$R59,$P59+$Q59,0)","v":0},{"$f":"IF(COUNTIF($AA59:AE59,$P59+$Q59)<$R59,$P59+$Q59,0)","v":0},{"$f":"IF(COUNTIF($AA59:AF59,$P59+$Q59)<$R59,$P59+$Q59,0)","v":0},{"$f":"IF(COUNTIF($AA59:AG59,$P59+$Q59)<$R59,$P59+$Q59,0)","v":0},{"$f":"IF(COUNTIF($AA59:AH59,$P59+$Q59)<$R59,$P59+$Q59,0)","v":0},{"$f":"IF(COUNTIF($AA59:AI59,$P59+$Q59)<$R59,$P59+$Q59,0)","v":0},{"$f":"IF(COUNTIF($AA59:AJ59,$P59+$Q59)<$R59,$P59+$Q59,0)","v":0},{"$f":"IF(COUNTIF($AA59:AK59,$P59+$Q59)<$R59,$P59+$Q59,0)","v":0},{"$f":"IF(COUNTIF($AA59:AL59,$P59+$Q59)<$R59,$P59+$Q59,0)","v":0},{"$f":"IF(COUNTIF($AA59:AM59,$P59+$Q59)<$R59,$P59+$Q59,0)","v":0},{"$f":"IF(COUNTIF($AA59:AN59,$P59+$Q59)<$R59,$P59+$Q59,0)","v":0},{"$f":"IF(COUNTIF($AA59:AO59,$P59+$Q59)<$R59,$P59+$Q59,0)","v":0},{"$f":"IF(COUNTIF($AA59:AP59,$P59+$Q59)<$R59,$P59+$Q59,0)","v":0},{"$f":"IF(COUNTIF($AA59:AQ59,$P59+$Q59)<$R59,$P59+$Q59,0)","v":0},{"$f":"IF(COUNTIF($AA59:AR59,$P59+$Q59)<$R59,$P59+$Q59,0)","v":0},{"$f":"IF(COUNTIF($AA59:AS59,$P59+$Q59)<$R59,$P59+$Q59,0)","v":0},{"$f":"IF(COUNTIF($AA59:AT59,$P59+$Q59)<$R59,$P59+$Q59,0)","v":0},{"$f":"IF(COUNTIF($AA59:AU59,$P59+$Q59)<$R59,$P59+$Q59,0)","v":0},{"$f":"IF(COUNTIF($AA59:AV59,$P59+$Q59)<$R59,$P59+$Q59,0)","v":0},{"$f":"IF(COUNTIF($AA59:AW59,$P59+$Q59)<$R59,$P59+$Q59,0)","v":0},{"$f":"IF(COUNTIF($AA59:AX59,$P59+$Q59)<$R59,$P59+$Q59,0)","v":0},{"$f":"IF(COUNTIF($AA59:AY59,$P59+$Q59)<$R59,$P59+$Q59,0)","v":0},{"$f":"IF(COUNTIF($AA59:AZ59,$P59+$Q59)<$R59,$P59+$Q59,0)","v":0},{"$f":"IF(COUNTIF($AA59:BA59,$P59+$Q59)<$R59,$P59+$Q59,0)","v":0},{"$f":"IF(COUNTIF($AA59:BB59,$P59+$Q59)<$R59,$P59+$Q59,0)","v":0},{"$f":"IF(COUNTIF($AA59:BC59,$P59+$Q59)<$R59,$P59+$Q59,0)","v":0},{"$f":"IF(COUNTIF($AA59:BD59,$P59+$Q59)<$R59,$P59+$Q59,0)","v":0},{"$f":"IF(COUNTIF($AA59:BE59,$P59+$Q59)<$R59,$P59+$Q59,0)","v":0},{"$f":"IF(COUNTIF($AA59:BF59,$P59+$Q59)<$R59,$P59+$Q59,0)","v":0},{"$f":"IF(COUNTIF($AA59:BG59,$P59+$Q59)<$R59,$P59+$Q59,0)","v":0},{"$f":"IF(COUNTIF($AA59:BH59,$P59+$Q59)<$R59,$P59+$Q59,0)","v":0},{"$f":"IF(COUNTIF($AA59:BI59,$P59+$Q59)<$R59,$P59+$Q59,0)","v":0},{"$f":"IF(COUNTIF($AA59:BJ59,$P59+$Q59)<$R59,$P59+$Q59,0)","v":0},{"$f":"IF(COUNTIF($AA59:BK59,$P59+$Q59)<$R59,$P59+$Q59,0)","v":0},{"$f":"IF(COUNTIF($AA59:BL59,$P59+$Q59)<$R59,$P59+$Q59,0)","v":0},{"$f":"IF(COUNTIF($AA59:BM59,$P59+$Q59)<$R59,$P59+$Q59,0)","v":0},-0.3]
[0,0,{"$f":"COUNTIF(P4Pindices!$A$8:$A$9,INDEX('Measure Descriptions'!$D$7:$D$31,MATCH('Measure Simulation'!E60,'Measure Descriptions'!$C$7:$C$31,0),1))","v":0},7,{"$f":"IF('Measure Descriptions'!C13=0,\" \",'Measure Descriptions'!C13)","v":" "},0,0,0,0,0,0,0,0,0,0,0,0,{"$f":"'Measure Descriptions'!AA13","v":0},0,0,0,null,null,null,null,0,0,0,{"$f":"IF(COUNTIF($AA60:AB60,$P60+$Q60)<$R60,$P60+$Q60,0)","v":0},{"$f":"IF(COUNTIF($AA60:AC60,$P60+$Q60)<$R60,$P60+$Q60,0)","v":0},{"$f":"IF(COUNTIF($AA60:AD60,$P60+$Q60)<$R60,$P60+$Q60,0)","v":0},{"$f":"IF(COUNTIF($AA60:AE60,$P60+$Q60)<$R60,$P60+$Q60,0)","v":0},{"$f":"IF(COUNTIF($AA60:AF60,$P60+$Q60)<$R60,$P60+$Q60,0)","v":0},{"$f":"IF(COUNTIF($AA60:AG60,$P60+$Q60)<$R60,$P60+$Q60,0)","v":0},{"$f":"IF(COUNTIF($AA60:AH60,$P60+$Q60)<$R60,$P60+$Q60,0)","v":0},{"$f":"IF(COUNTIF($AA60:AI60,$P60+$Q60)<$R60,$P60+$Q60,0)","v":0},{"$f":"IF(COUNTIF($AA60:AJ60,$P60+$Q60)<$R60,$P60+$Q60,0)","v":0},{"$f":"IF(COUNTIF($AA60:AK60,$P60+$Q60)<$R60,$P60+$Q60,0)","v":0},{"$f":"IF(COUNTIF($AA60:AL60,$P60+$Q60)<$R60,$P60+$Q60,0)","v":0},{"$f":"IF(COUNTIF($AA60:AM60,$P60+$Q60)<$R60,$P60+$Q60,0)","v":0},{"$f":"IF(COUNTIF($AA60:AN60,$P60+$Q60)<$R60,$P60+$Q60,0)","v":0},{"$f":"IF(COUNTIF($AA60:AO60,$P60+$Q60)<$R60,$P60+$Q60,0)","v":0},{"$f":"IF(COUNTIF($AA60:AP60,$P60+$Q60)<$R60,$P60+$Q60,0)","v":0},{"$f":"IF(COUNTIF($AA60:AQ60,$P60+$Q60)<$R60,$P60+$Q60,0)","v":0},{"$f":"IF(COUNTIF($AA60:AR60,$P60+$Q60)<$R60,$P60+$Q60,0)","v":0},{"$f":"IF(COUNTIF($AA60:AS60,$P60+$Q60)<$R60,$P60+$Q60,0)","v":0},{"$f":"IF(COUNTIF($AA60:AT60,$P60+$Q60)<$R60,$P60+$Q60,0)","v":0},{"$f":"IF(COUNTIF($AA60:AU60,$P60+$Q60)<$R60,$P60+$Q60,0)","v":0},{"$f":"IF(COUNTIF($AA60:AV60,$P60+$Q60)<$R60,$P60+$Q60,0)","v":0},{"$f":"IF(COUNTIF($AA60:AW60,$P60+$Q60)<$R60,$P60+$Q60,0)","v":0},{"$f":"IF(COUNTIF($AA60:AX60,$P60+$Q60)<$R60,$P60+$Q60,0)","v":0},{"$f":"IF(COUNTIF($AA60:AY60,$P60+$Q60)<$R60,$P60+$Q60,0)","v":0},{"$f":"IF(COUNTIF($AA60:AZ60,$P60+$Q60)<$R60,$P60+$Q60,0)","v":0},{"$f":"IF(COUNTIF($AA60:BA60,$P60+$Q60)<$R60,$P60+$Q60,0)","v":0},{"$f":"IF(COUNTIF($AA60:BB60,$P60+$Q60)<$R60,$P60+$Q60,0)","v":0},{"$f":"IF(COUNTIF($AA60:BC60,$P60+$Q60)<$R60,$P60+$Q60,0)","v":0},{"$f":"IF(COUNTIF($AA60:BD60,$P60+$Q60)<$R60,$P60+$Q60,0)","v":0},{"$f":"IF(COUNTIF($AA60:BE60,$P60+$Q60)<$R60,$P60+$Q60,0)","v":0},{"$f":"IF(COUNTIF($AA60:BF60,$P60+$Q60)<$R60,$P60+$Q60,0)","v":0},{"$f":"IF(COUNTIF($AA60:BG60,$P60+$Q60)<$R60,$P60+$Q60,0)","v":0},{"$f":"IF(COUNTIF($AA60:BH60,$P60+$Q60)<$R60,$P60+$Q60,0)","v":0},{"$f":"IF(COUNTIF($AA60:BI60,$P60+$Q60)<$R60,$P60+$Q60,0)","v":0},{"$f":"IF(COUNTIF($AA60:BJ60,$P60+$Q60)<$R60,$P60+$Q60,0)","v":0},{"$f":"IF(COUNTIF($AA60:BK60,$P60+$Q60)<$R60,$P60+$Q60,0)","v":0},{"$f":"IF(COUNTIF($AA60:BL60,$P60+$Q60)<$R60,$P60+$Q60,0)","v":0},{"$f":"IF(COUNTIF($AA60:BM60,$P60+$Q60)<$R60,$P60+$Q60,0)","v":0},-0.3]
[0,0,{"$f":"COUNTIF(P4Pindices!$A$8:$A$9,INDEX('Measure Descriptions'!$D$7:$D$31,MATCH('Measure Simulation'!E61,'Measure Descriptions'!$C$7:$C$31,0),1))","v":0},8,{"$f":"IF('Measure Descriptions'!C14=0,\" \",'Measure Descriptions'!C14)","v":" "},0,0,0,0,0,0,0,0,0,0,0,0,{"$f":"'Measure Descriptions'!AA14","v":0},0,0,0,null,null,null,null,0,0,0,{"$f":"IF(COUNTIF($AA61:AB61,$P61+$Q61)<$R61,$P61+$Q61,0)","v":0},{"$f":"IF(COUNTIF($AA61:AC61,$P61+$Q61)<$R61,$P61+$Q61,0)","v":0},{"$f":"IF(COUNTIF($AA61:AD61,$P61+$Q61)<$R61,$P61+$Q61,0)","v":0},{"$f":"IF(COUNTIF($AA61:AE61,$P61+$Q61)<$R61,$P61+$Q61,0)","v":0},{"$f":"IF(COUNTIF($AA61:AF61,$P61+$Q61)<$R61,$P61+$Q61,0)","v":0},{"$f":"IF(COUNTIF($AA61:AG61,$P61+$Q61)<$R61,$P61+$Q61,0)","v":0},{"$f":"IF(COUNTIF($AA61:AH61,$P61+$Q61)<$R61,$P61+$Q61,0)","v":0},{"$f":"IF(COUNTIF($AA61:AI61,$P61+$Q61)<$R61,$P61+$Q61,0)","v":0},{"$f":"IF(COUNTIF($AA61:AJ61,$P61+$Q61)<$R61,$P61+$Q61,0)","v":0},{"$f":"IF(COUNTIF($AA61:AK61,$P61+$Q61)<$R61,$P61+$Q61,0)","v":0},{"$f":"IF(COUNTIF($AA61:AL61,$P61+$Q61)<$R61,$P61+$Q61,0)","v":0},{"$f":"IF(COUNTIF($AA61:AM61,$P61+$Q61)<$R61,$P61+$Q61,0)","v":0},{"$f":"IF(COUNTIF($AA61:AN61,$P61+$Q61)<$R61,$P61+$Q61,0)","v":0},{"$f":"IF(COUNTIF($AA61:AO61,$P61+$Q61)<$R61,$P61+$Q61,0)","v":0},{"$f":"IF(COUNTIF($AA61:AP61,$P61+$Q61)<$R61,$P61+$Q61,0)","v":0},{"$f":"IF(COUNTIF($AA61:AQ61,$P61+$Q61)<$R61,$P61+$Q61,0)","v":0},{"$f":"IF(COUNTIF($AA61:AR61,$P61+$Q61)<$R61,$P61+$Q61,0)","v":0},{"$f":"IF(COUNTIF($AA61:AS61,$P61+$Q61)<$R61,$P61+$Q61,0)","v":0},{"$f":"IF(COUNTIF($AA61:AT61,$P61+$Q61)<$R61,$P61+$Q61,0)","v":0},{"$f":"IF(COUNTIF($AA61:AU61,$P61+$Q61)<$R61,$P61+$Q61,0)","v":0},{"$f":"IF(COUNTIF($AA61:AV61,$P61+$Q61)<$R61,$P61+$Q61,0)","v":0},{"$f":"IF(COUNTIF($AA61:AW61,$P61+$Q61)<$R61,$P61+$Q61,0)","v":0},{"$f":"IF(COUNTIF($AA61:AX61,$P61+$Q61)<$R61,$P61+$Q61,0)","v":0},{"$f":"IF(COUNTIF($AA61:AY61,$P61+$Q61)<$R61,$P61+$Q61,0)","v":0},{"$f":"IF(COUNTIF($AA61:AZ61,$P61+$Q61)<$R61,$P61+$Q61,0)","v":0},{"$f":"IF(COUNTIF($AA61:BA61,$P61+$Q61)<$R61,$P61+$Q61,0)","v":0},{"$f":"IF(COUNTIF($AA61:BB61,$P61+$Q61)<$R61,$P61+$Q61,0)","v":0},{"$f":"IF(COUNTIF($AA61:BC61,$P61+$Q61)<$R61,$P61+$Q61,0)","v":0},{"$f":"IF(COUNTIF($AA61:BD61,$P61+$Q61)<$R61,$P61+$Q61,0)","v":0},{"$f":"IF(COUNTIF($AA61:BE61,$P61+$Q61)<$R61,$P61+$Q61,0)","v":0},{"$f":"IF(COUNTIF($AA61:BF61,$P61+$Q61)<$R61,$P61+$Q61,0)","v":0},{"$f":"IF(COUNTIF($AA61:BG61,$P61+$Q61)<$R61,$P61+$Q61,0)","v":0},{"$f":"IF(COUNTIF($AA61:BH61,$P61+$Q61)<$R61,$P61+$Q61,0)","v":0},{"$f":"IF(COUNTIF($AA61:BI61,$P61+$Q61)<$R61,$P61+$Q61,0)","v":0},{"$f":"IF(COUNTIF($AA61:BJ61,$P61+$Q61)<$R61,$P61+$Q61,0)","v":0},{"$f":"IF(COUNTIF($AA61:BK61,$P61+$Q61)<$R61,$P61+$Q61,0)","v":0},{"$f":"IF(COUNTIF($AA61:BL61,$P61+$Q61)<$R61,$P61+$Q61,0)","v":0},{"$f":"IF(COUNTIF($AA61:BM61,$P61+$Q61)<$R61,$P61+$Q61,0)","v":0},-0.3]
[0,0,{"$f":"COUNTIF(P4Pindices!$A$8:$A$9,INDEX('Measure Descriptions'!$D$7:$D$31,MATCH('Measure Simulation'!E62,'Measure Descriptions'!$C$7:$C$31,0),1))","v":0},9,{"$f":"IF('Measure Descriptions'!C15=0,\" \",'Measure Descriptions'!C15)","v":" "},0,0,0,0,0,0,0,0,0,0,0,0,{"$f":"'Measure Descriptions'!AA15","v":0},0,0,0,null,null,null,null,0,0,0,{"$f":"IF(COUNTIF($AA62:AB62,$P62+$Q62)<$R62,$P62+$Q62,0)","v":0},{"$f":"IF(COUNTIF($AA62:AC62,$P62+$Q62)<$R62,$P62+$Q62,0)","v":0},{"$f":"IF(COUNTIF($AA62:AD62,$P62+$Q62)<$R62,$P62+$Q62,0)","v":0},{"$f":"IF(COUNTIF($AA62:AE62,$P62+$Q62)<$R62,$P62+$Q62,0)","v":0},{"$f":"IF(COUNTIF($AA62:AF62,$P62+$Q62)<$R62,$P62+$Q62,0)","v":0},{"$f":"IF(COUNTIF($AA62:AG62,$P62+$Q62)<$R62,$P62+$Q62,0)","v":0},{"$f":"IF(COUNTIF($AA62:AH62,$P62+$Q62)<$R62,$P62+$Q62,0)","v":0},{"$f":"IF(COUNTIF($AA62:AI62,$P62+$Q62)<$R62,$P62+$Q62,0)","v":0},{"$f":"IF(COUNTIF($AA62:AJ62,$P62+$Q62)<$R62,$P62+$Q62,0)","v":0},{"$f":"IF(COUNTIF($AA62:AK62,$P62+$Q62)<$R62,$P62+$Q62,0)","v":0},{"$f":"IF(COUNTIF($AA62:AL62,$P62+$Q62)<$R62,$P62+$Q62,0)","v":0},{"$f":"IF(COUNTIF($AA62:AM62,$P62+$Q62)<$R62,$P62+$Q62,0)","v":0},{"$f":"IF(COUNTIF($AA62:AN62,$P62+$Q62)<$R62,$P62+$Q62,0)","v":0},{"$f":"IF(COUNTIF($AA62:AO62,$P62+$Q62)<$R62,$P62+$Q62,0)","v":0},{"$f":"IF(COUNTIF($AA62:AP62,$P62+$Q62)<$R62,$P62+$Q62,0)","v":0},{"$f":"IF(COUNTIF($AA62:AQ62,$P62+$Q62)<$R62,$P62+$Q62,0)","v":0},{"$f":"IF(COUNTIF($AA62:AR62,$P62+$Q62)<$R62,$P62+$Q62,0)","v":0},{"$f":"IF(COUNTIF($AA62:AS62,$P62+$Q62)<$R62,$P62+$Q62,0)","v":0},{"$f":"IF(COUNTIF($AA62:AT62,$P62+$Q62)<$R62,$P62+$Q62,0)","v":0},{"$f":"IF(COUNTIF($AA62:AU62,$P62+$Q62)<$R62,$P62+$Q62,0)","v":0},{"$f":"IF(COUNTIF($AA62:AV62,$P62+$Q62)<$R62,$P62+$Q62,0)","v":0},{"$f":"IF(COUNTIF($AA62:AW62,$P62+$Q62)<$R62,$P62+$Q62,0)","v":0},{"$f":"IF(COUNTIF($AA62:AX62,$P62+$Q62)<$R62,$P62+$Q62,0)","v":0},{"$f":"IF(COUNTIF($AA62:AY62,$P62+$Q62)<$R62,$P62+$Q62,0)","v":0},{"$f":"IF(COUNTIF($AA62:AZ62,$P62+$Q62)<$R62,$P62+$Q62,0)","v":0},{"$f":"IF(COUNTIF($AA62:BA62,$P62+$Q62)<$R62,$P62+$Q62,0)","v":0},{"$f":"IF(COUNTIF($AA62:BB62,$P62+$Q62)<$R62,$P62+$Q62,0)","v":0},{"$f":"IF(COUNTIF($AA62:BC62,$P62+$Q62)<$R62,$P62+$Q62,0)","v":0},{"$f":"IF(COUNTIF($AA62:BD62,$P62+$Q62)<$R62,$P62+$Q62,0)","v":0},{"$f":"IF(COUNTIF($AA62:BE62,$P62+$Q62)<$R62,$P62+$Q62,0)","v":0},{"$f":"IF(COUNTIF($AA62:BF62,$P62+$Q62)<$R62,$P62+$Q62,0)","v":0},{"$f":"IF(COUNTIF($AA62:BG62,$P62+$Q62)<$R62,$P62+$Q62,0)","v":0},{"$f":"IF(COUNTIF($AA62:BH62,$P62+$Q62)<$R62,$P62+$Q62,0)","v":0},{"$f":"IF(COUNTIF($AA62:BI62,$P62+$Q62)<$R62,$P62+$Q62,0)","v":0},{"$f":"IF(COUNTIF($AA62:BJ62,$P62+$Q62)<$R62,$P62+$Q62,0)","v":0},{"$f":"IF(COUNTIF($AA62:BK62,$P62+$Q62)<$R62,$P62+$Q62,0)","v":0},{"$f":"IF(COUNTIF($AA62:BL62,$P62+$Q62)<$R62,$P62+$Q62,0)","v":0},{"$f":"IF(COUNTIF($AA62:BM62,$P62+$Q62)<$R62,$P62+$Q62,0)","v":0},-0.3]
[0,0,{"$f":"COUNTIF(P4Pindices!$A$8:$A$9,INDEX('Measure Descriptions'!$D$7:$D$31,MATCH('Measure Simulation'!E63,'Measure Descriptions'!$C$7:$C$31,0),1))","v":0},10,{"$f":"IF('Measure Descriptions'!C16=0,\" \",'Measure Descriptions'!C16)","v":" "},0,0,0,0,0,0,0,0,0,0,0,0,{"$f":"'Measure Descriptions'!AA16","v":0},0,0,0,null,null,null,null,0,0,0,{"$f":"IF(COUNTIF($AA63:AB63,$P63+$Q63)<$R63,$P63+$Q63,0)","v":0},{"$f":"IF(COUNTIF($AA63:AC63,$P63+$Q63)<$R63,$P63+$Q63,0)","v":0},{"$f":"IF(COUNTIF($AA63:AD63,$P63+$Q63)<$R63,$P63+$Q63,0)","v":0},{"$f":"IF(COUNTIF($AA63:AE63,$P63+$Q63)<$R63,$P63+$Q63,0)","v":0},{"$f":"IF(COUNTIF($AA63:AF63,$P63+$Q63)<$R63,$P63+$Q63,0)","v":0},{"$f":"IF(COUNTIF($AA63:AG63,$P63+$Q63)<$R63,$P63+$Q63,0)","v":0},{"$f":"IF(COUNTIF($AA63:AH63,$P63+$Q63)<$R63,$P63+$Q63,0)","v":0},{"$f":"IF(COUNTIF($AA63:AI63,$P63+$Q63)<$R63,$P63+$Q63,0)","v":0},{"$f":"IF(COUNTIF($AA63:AJ63,$P63+$Q63)<$R63,$P63+$Q63,0)","v":0},{"$f":"IF(COUNTIF($AA63:AK63,$P63+$Q63)<$R63,$P63+$Q63,0)","v":0},{"$f":"IF(COUNTIF($AA63:AL63,$P63+$Q63)<$R63,$P63+$Q63,0)","v":0},{"$f":"IF(COUNTIF($AA63:AM63,$P63+$Q63)<$R63,$P63+$Q63,0)","v":0},{"$f":"IF(COUNTIF($AA63:AN63,$P63+$Q63)<$R63,$P63+$Q63,0)","v":0},{"$f":"IF(COUNTIF($AA63:AO63,$P63+$Q63)<$R63,$P63+$Q63,0)","v":0},{"$f":"IF(COUNTIF($AA63:AP63,$P63+$Q63)<$R63,$P63+$Q63,0)","v":0},{"$f":"IF(COUNTIF($AA63:AQ63,$P63+$Q63)<$R63,$P63+$Q63,0)","v":0},{"$f":"IF(COUNTIF($AA63:AR63,$P63+$Q63)<$R63,$P63+$Q63,0)","v":0},{"$f":"IF(COUNTIF($AA63:AS63,$P63+$Q63)<$R63,$P63+$Q63,0)","v":0},{"$f":"IF(COUNTIF($AA63:AT63,$P63+$Q63)<$R63,$P63+$Q63,0)","v":0},{"$f":"IF(COUNTIF($AA63:AU63,$P63+$Q63)<$R63,$P63+$Q63,0)","v":0},{"$f":"IF(COUNTIF($AA63:AV63,$P63+$Q63)<$R63,$P63+$Q63,0)","v":0},{"$f":"IF(COUNTIF($AA63:AW63,$P63+$Q63)<$R63,$P63+$Q63,0)","v":0},{"$f":"IF(COUNTIF($AA63:AX63,$P63+$Q63)<$R63,$P63+$Q63,0)","v":0},{"$f":"IF(COUNTIF($AA63:AY63,$P63+$Q63)<$R63,$P63+$Q63,0)","v":0},{"$f":"IF(COUNTIF($AA63:AZ63,$P63+$Q63)<$R63,$P63+$Q63,0)","v":0},{"$f":"IF(COUNTIF($AA63:BA63,$P63+$Q63)<$R63,$P63+$Q63,0)","v":0},{"$f":"IF(COUNTIF($AA63:BB63,$P63+$Q63)<$R63,$P63+$Q63,0)","v":0},{"$f":"IF(COUNTIF($AA63:BC63,$P63+$Q63)<$R63,$P63+$Q63,0)","v":0},{"$f":"IF(COUNTIF($AA63:BD63,$P63+$Q63)<$R63,$P63+$Q63,0)","v":0},{"$f":"IF(COUNTIF($AA63:BE63,$P63+$Q63)<$R63,$P63+$Q63,0)","v":0},{"$f":"IF(COUNTIF($AA63:BF63,$P63+$Q63)<$R63,$P63+$Q63,0)","v":0},{"$f":"IF(COUNTIF($AA63:BG63,$P63+$Q63)<$R63,$P63+$Q63,0)","v":0},{"$f":"IF(COUNTIF($AA63:BH63,$P63+$Q63)<$R63,$P63+$Q63,0)","v":0},{"$f":"IF(COUNTIF($AA63:BI63,$P63+$Q63)<$R63,$P63+$Q63,0)","v":0},{"$f":"IF(COUNTIF($AA63:BJ63,$P63+$Q63)<$R63,$P63+$Q63,0)","v":0},{"$f":"IF(COUNTIF($AA63:BK63,$P63+$Q63)<$R63,$P63+$Q63,0)","v":0},{"$f":"IF(COUNTIF($AA63:BL63,$P63+$Q63)<$R63,$P63+$Q63,0)","v":0},{"$f":"IF(COUNTIF($AA63:BM63,$P63+$Q63)<$R63,$P63+$Q63,0)","v":0},-0.3]
[0,0,{"$f":"COUNTIF(P4Pindices!$A$8:$A$9,INDEX('Measure Descriptions'!$D$7:$D$31,MATCH('Measure Simulation'!E64,'Measure Descriptions'!$C$7:$C$31,0),1))","v":0},11,{"$f":"IF('Measure Descriptions'!C17=0,\" \",'Measure Descriptions'!C17)","v":" "},0,0,0,0,0,0,0,0,0,0,0,0,{"$f":"'Measure Descriptions'!AA17","v":0},0,0,0,null,null,null,null,0,0,0,{"$f":"IF(COUNTIF($AA64:AB64,$P64+$Q64)<$R64,$P64+$Q64,0)","v":0},{"$f":"IF(COUNTIF($AA64:AC64,$P64+$Q64)<$R64,$P64+$Q64,0)","v":0},{"$f":"IF(COUNTIF($AA64:AD64,$P64+$Q64)<$R64,$P64+$Q64,0)","v":0},{"$f":"IF(COUNTIF($AA64:AE64,$P64+$Q64)<$R64,$P64+$Q64,0)","v":0},{"$f":"IF(COUNTIF($AA64:AF64,$P64+$Q64)<$R64,$P64+$Q64,0)","v":0},{"$f":"IF(COUNTIF($AA64:AG64,$P64+$Q64)<$R64,$P64+$Q64,0)","v":0},{"$f":"IF(COUNTIF($AA64:AH64,$P64+$Q64)<$R64,$P64+$Q64,0)","v":0},{"$f":"IF(COUNTIF($AA64:AI64,$P64+$Q64)<$R64,$P64+$Q64,0)","v":0},{"$f":"IF(COUNTIF($AA64:AJ64,$P64+$Q64)<$R64,$P64+$Q64,0)","v":0},{"$f":"IF(COUNTIF($AA64:AK64,$P64+$Q64)<$R64,$P64+$Q64,0)","v":0},{"$f":"IF(COUNTIF($AA64:AL64,$P64+$Q64)<$R64,$P64+$Q64,0)","v":0},{"$f":"IF(COUNTIF($AA64:AM64,$P64+$Q64)<$R64,$P64+$Q64,0)","v":0},{"$f":"IF(COUNTIF($AA64:AN64,$P64+$Q64)<$R64,$P64+$Q64,0)","v":0},{"$f":"IF(COUNTIF($AA64:AO64,$P64+$Q64)<$R64,$P64+$Q64,0)","v":0},{"$f":"IF(COUNTIF($AA64:AP64,$P64+$Q64)<$R64,$P64+$Q64,0)","v":0},{"$f":"IF(COUNTIF($AA64:AQ64,$P64+$Q64)<$R64,$P64+$Q64,0)","v":0},{"$f":"IF(COUNTIF($AA64:AR64,$P64+$Q64)<$R64,$P64+$Q64,0)","v":0},{"$f":"IF(COUNTIF($AA64:AS64,$P64+$Q64)<$R64,$P64+$Q64,0)","v":0},{"$f":"IF(COUNTIF($AA64:AT64,$P64+$Q64)<$R64,$P64+$Q64,0)","v":0},{"$f":"IF(COUNTIF($AA64:AU64,$P64+$Q64)<$R64,$P64+$Q64,0)","v":0},{"$f":"IF(COUNTIF($AA64:AV64,$P64+$Q64)<$R64,$P64+$Q64,0)","v":0},{"$f":"IF(COUNTIF($AA64:AW64,$P64+$Q64)<$R64,$P64+$Q64,0)","v":0},{"$f":"IF(COUNTIF($AA64:AX64,$P64+$Q64)<$R64,$P64+$Q64,0)","v":0},{"$f":"IF(COUNTIF($AA64:AY64,$P64+$Q64)<$R64,$P64+$Q64,0)","v":0},{"$f":"IF(COUNTIF($AA64:AZ64,$P64+$Q64)<$R64,$P64+$Q64,0)","v":0},{"$f":"IF(COUNTIF($AA64:BA64,$P64+$Q64)<$R64,$P64+$Q64,0)","v":0},{"$f":"IF(COUNTIF($AA64:BB64,$P64+$Q64)<$R64,$P64+$Q64,0)","v":0},{"$f":"IF(COUNTIF($AA64:BC64,$P64+$Q64)<$R64,$P64+$Q64,0)","v":0},{"$f":"IF(COUNTIF($AA64:BD64,$P64+$Q64)<$R64,$P64+$Q64,0)","v":0},{"$f":"IF(COUNTIF($AA64:BE64,$P64+$Q64)<$R64,$P64+$Q64,0)","v":0},{"$f":"IF(COUNTIF($AA64:BF64,$P64+$Q64)<$R64,$P64+$Q64,0)","v":0},{"$f":"IF(COUNTIF($AA64:BG64,$P64+$Q64)<$R64,$P64+$Q64,0)","v":0},{"$f":"IF(COUNTIF($AA64:BH64,$P64+$Q64)<$R64,$P64+$Q64,0)","v":0},{"$f":"IF(COUNTIF($AA64:BI64,$P64+$Q64)<$R64,$P64+$Q64,0)","v":0},{"$f":"IF(COUNTIF($AA64:BJ64,$P64+$Q64)<$R64,$P64+$Q64,0)","v":0},{"$f":"IF(COUNTIF($AA64:BK64,$P64+$Q64)<$R64,$P64+$Q64,0)","v":0},{"$f":"IF(COUNTIF($AA64:BL64,$P64+$Q64)<$R64,$P64+$Q64,0)","v":0},{"$f":"IF(COUNTIF($AA64:BM64,$P64+$Q64)<$R64,$P64+$Q64,0)","v":0},-0.3]
[0,0,{"$f":"COUNTIF(P4Pindices!$A$8:$A$9,INDEX('Measure Descriptions'!$D$7:$D$31,MATCH('Measure Simulation'!E65,'Measure Descriptions'!$C$7:$C$31,0),1))","v":0},12,{"$f":"IF('Measure Descriptions'!C18=0,\" \",'Measure Descriptions'!C18)","v":" "},0,0,0,0,0,0,0,0,0,0,0,0,{"$f":"'Measure Descriptions'!AA18","v":0},0,0,0,null,null,null,null,0,0,0,{"$f":"IF(COUNTIF($AA65:AB65,$P65+$Q65)<$R65,$P65+$Q65,0)","v":0},{"$f":"IF(COUNTIF($AA65:AC65,$P65+$Q65)<$R65,$P65+$Q65,0)","v":0},{"$f":"IF(COUNTIF($AA65:AD65,$P65+$Q65)<$R65,$P65+$Q65,0)","v":0},{"$f":"IF(COUNTIF($AA65:AE65,$P65+$Q65)<$R65,$P65+$Q65,0)","v":0},{"$f":"IF(COUNTIF($AA65:AF65,$P65+$Q65)<$R65,$P65+$Q65,0)","v":0},{"$f":"IF(COUNTIF($AA65:AG65,$P65+$Q65)<$R65,$P65+$Q65,0)","v":0},{"$f":"IF(COUNTIF($AA65:AH65,$P65+$Q65)<$R65,$P65+$Q65,0)","v":0},{"$f":"IF(COUNTIF($AA65:AI65,$P65+$Q65)<$R65,$P65+$Q65,0)","v":0},{"$f":"IF(COUNTIF($AA65:AJ65,$P65+$Q65)<$R65,$P65+$Q65,0)","v":0},{"$f":"IF(COUNTIF($AA65:AK65,$P65+$Q65)<$R65,$P65+$Q65,0)","v":0},{"$f":"IF(COUNTIF($AA65:AL65,$P65+$Q65)<$R65,$P65+$Q65,0)","v":0},{"$f":"IF(COUNTIF($AA65:AM65,$P65+$Q65)<$R65,$P65+$Q65,0)","v":0},{"$f":"IF(COUNTIF($AA65:AN65,$P65+$Q65)<$R65,$P65+$Q65,0)","v":0},{"$f":"IF(COUNTIF($AA65:AO65,$P65+$Q65)<$R65,$P65+$Q65,0)","v":0},{"$f":"IF(COUNTIF($AA65:AP65,$P65+$Q65)<$R65,$P65+$Q65,0)","v":0},{"$f":"IF(COUNTIF($AA65:AQ65,$P65+$Q65)<$R65,$P65+$Q65,0)","v":0},{"$f":"IF(COUNTIF($AA65:AR65,$P65+$Q65)<$R65,$P65+$Q65,0)","v":0},{"$f":"IF(COUNTIF($AA65:AS65,$P65+$Q65)<$R65,$P65+$Q65,0)","v":0},{"$f":"IF(COUNTIF($AA65:AT65,$P65+$Q65)<$R65,$P65+$Q65,0)","v":0},{"$f":"IF(COUNTIF($AA65:AU65,$P65+$Q65)<$R65,$P65+$Q65,0)","v":0},{"$f":"IF(COUNTIF($AA65:AV65,$P65+$Q65)<$R65,$P65+$Q65,0)","v":0},{"$f":"IF(COUNTIF($AA65:AW65,$P65+$Q65)<$R65,$P65+$Q65,0)","v":0},{"$f":"IF(COUNTIF($AA65:AX65,$P65+$Q65)<$R65,$P65+$Q65,0)","v":0},{"$f":"IF(COUNTIF($AA65:AY65,$P65+$Q65)<$R65,$P65+$Q65,0)","v":0},{"$f":"IF(COUNTIF($AA65:AZ65,$P65+$Q65)<$R65,$P65+$Q65,0)","v":0},{"$f":"IF(COUNTIF($AA65:BA65,$P65+$Q65)<$R65,$P65+$Q65,0)","v":0},{"$f":"IF(COUNTIF($AA65:BB65,$P65+$Q65)<$R65,$P65+$Q65,0)","v":0},{"$f":"IF(COUNTIF($AA65:BC65,$P65+$Q65)<$R65,$P65+$Q65,0)","v":0},{"$f":"IF(COUNTIF($AA65:BD65,$P65+$Q65)<$R65,$P65+$Q65,0)","v":0},{"$f":"IF(COUNTIF($AA65:BE65,$P65+$Q65)<$R65,$P65+$Q65,0)","v":0},{"$f":"IF(COUNTIF($AA65:BF65,$P65+$Q65)<$R65,$P65+$Q65,0)","v":0},{"$f":"IF(COUNTIF($AA65:BG65,$P65+$Q65)<$R65,$P65+$Q65,0)","v":0},{"$f":"IF(COUNTIF($AA65:BH65,$P65+$Q65)<$R65,$P65+$Q65,0)","v":0},{"$f":"IF(COUNTIF($AA65:BI65,$P65+$Q65)<$R65,$P65+$Q65,0)","v":0},{"$f":"IF(COUNTIF($AA65:BJ65,$P65+$Q65)<$R65,$P65+$Q65,0)","v":0},{"$f":"IF(COUNTIF($AA65:BK65,$P65+$Q65)<$R65,$P65+$Q65,0)","v":0},{"$f":"IF(COUNTIF($AA65:BL65,$P65+$Q65)<$R65,$P65+$Q65,0)","v":0},{"$f":"IF(COUNTIF($AA65:BM65,$P65+$Q65)<$R65,$P65+$Q65,0)","v":0},-0.3]
[0,0,{"$f":"COUNTIF(P4Pindices!$A$8:$A$9,INDEX('Measure Descriptions'!$D$7:$D$31,MATCH('Measure Simulation'!E66,'Measure Descriptions'!$C$7:$C$31,0),1))","v":0},13,{"$f":"IF('Measure Descriptions'!C19=0,\" \",'Measure Descriptions'!C19)","v":" "},0,0,0,0,0,0,0,0,0,0,0,0,{"$f":"'Measure Descriptions'!AA19","v":0},0,0,0,null,null,null,null,0,0,0,{"$f":"IF(COUNTIF($AA66:AB66,$P66+$Q66)<$R66,$P66+$Q66,0)","v":0},{"$f":"IF(COUNTIF($AA66:AC66,$P66+$Q66)<$R66,$P66+$Q66,0)","v":0},{"$f":"IF(COUNTIF($AA66:AD66,$P66+$Q66)<$R66,$P66+$Q66,0)","v":0},{"$f":"IF(COUNTIF($AA66:AE66,$P66+$Q66)<$R66,$P66+$Q66,0)","v":0},{"$f":"IF(COUNTIF($AA66:AF66,$P66+$Q66)<$R66,$P66+$Q66,0)","v":0},{"$f":"IF(COUNTIF($AA66:AG66,$P66+$Q66)<$R66,$P66+$Q66,0)","v":0},{"$f":"IF(COUNTIF($AA66:AH66,$P66+$Q66)<$R66,$P66+$Q66,0)","v":0},{"$f":"IF(COUNTIF($AA66:AI66,$P66+$Q66)<$R66,$P66+$Q66,0)","v":0},{"$f":"IF(COUNTIF($AA66:AJ66,$P66+$Q66)<$R66,$P66+$Q66,0)","v":0},{"$f":"IF(COUNTIF($AA66:AK66,$P66+$Q66)<$R66,$P66+$Q66,0)","v":0},{"$f":"IF(COUNTIF($AA66:AL66,$P66+$Q66)<$R66,$P66+$Q66,0)","v":0},{"$f":"IF(COUNTIF($AA66:AM66,$P66+$Q66)<$R66,$P66+$Q66,0)","v":0},{"$f":"IF(COUNTIF($AA66:AN66,$P66+$Q66)<$R66,$P66+$Q66,0)","v":0},{"$f":"IF(COUNTIF($AA66:AO66,$P66+$Q66)<$R66,$P66+$Q66,0)","v":0},{"$f":"IF(COUNTIF($AA66:AP66,$P66+$Q66)<$R66,$P66+$Q66,0)","v":0},{"$f":"IF(COUNTIF($AA66:AQ66,$P66+$Q66)<$R66,$P66+$Q66,0)","v":0},{"$f":"IF(COUNTIF($AA66:AR66,$P66+$Q66)<$R66,$P66+$Q66,0)","v":0},{"$f":"IF(COUNTIF($AA66:AS66,$P66+$Q66)<$R66,$P66+$Q66,0)","v":0},{"$f":"IF(COUNTIF($AA66:AT66,$P66+$Q66)<$R66,$P66+$Q66,0)","v":0},{"$f":"IF(COUNTIF($AA66:AU66,$P66+$Q66)<$R66,$P66+$Q66,0)","v":0},{"$f":"IF(COUNTIF($AA66:AV66,$P66+$Q66)<$R66,$P66+$Q66,0)","v":0},{"$f":"IF(COUNTIF($AA66:AW66,$P66+$Q66)<$R66,$P66+$Q66,0)","v":0},{"$f":"IF(COUNTIF($AA66:AX66,$P66+$Q66)<$R66,$P66+$Q66,0)","v":0},{"$f":"IF(COUNTIF($AA66:AY66,$P66+$Q66)<$R66,$P66+$Q66,0)","v":0},{"$f":"IF(COUNTIF($AA66:AZ66,$P66+$Q66)<$R66,$P66+$Q66,0)","v":0},{"$f":"IF(COUNTIF($AA66:BA66,$P66+$Q66)<$R66,$P66+$Q66,0)","v":0},{"$f":"IF(COUNTIF($AA66:BB66,$P66+$Q66)<$R66,$P66+$Q66,0)","v":0},{"$f":"IF(COUNTIF($AA66:BC66,$P66+$Q66)<$R66,$P66+$Q66,0)","v":0},{"$f":"IF(COUNTIF($AA66:BD66,$P66+$Q66)<$R66,$P66+$Q66,0)","v":0},{"$f":"IF(COUNTIF($AA66:BE66,$P66+$Q66)<$R66,$P66+$Q66,0)","v":0},{"$f":"IF(COUNTIF($AA66:BF66,$P66+$Q66)<$R66,$P66+$Q66,0)","v":0},{"$f":"IF(COUNTIF($AA66:BG66,$P66+$Q66)<$R66,$P66+$Q66,0)","v":0},{"$f":"IF(COUNTIF($AA66:BH66,$P66+$Q66)<$R66,$P66+$Q66,0)","v":0},{"$f":"IF(COUNTIF($AA66:BI66,$P66+$Q66)<$R66,$P66+$Q66,0)","v":0},{"$f":"IF(COUNTIF($AA66:BJ66,$P66+$Q66)<$R66,$P66+$Q66,0)","v":0},{"$f":"IF(COUNTIF($AA66:BK66,$P66+$Q66)<$R66,$P66+$Q66,0)","v":0},{"$f":"IF(COUNTIF($AA66:BL66,$P66+$Q66)<$R66,$P66+$Q66,0)","v":0},{"$f":"IF(COUNTIF($AA66:BM66,$P66+$Q66)<$R66,$P66+$Q66,0)","v":0},-0.3]
[0,0,{"$f":"COUNTIF(P4Pindices!$A$8:$A$9,INDEX('Measure Descriptions'!$D$7:$D$31,MATCH('Measure Simulation'!E67,'Measure Descriptions'!$C$7:$C$31,0),1))","v":0},14,{"$f":"IF('Measure Descriptions'!C20=0,\" \",'Measure Descriptions'!C20)","v":" "},0,0,0,0,0,0,0,0,0,0,0,0,{"$f":"'Measure Descriptions'!AA20","v":0},0,0,0,null,null,null,null,0,0,0,{"$f":"IF(COUNTIF($AA67:AB67,$P67+$Q67)<$R67,$P67+$Q67,0)","v":0},{"$f":"IF(COUNTIF($AA67:AC67,$P67+$Q67)<$R67,$P67+$Q67,0)","v":0},{"$f":"IF(COUNTIF($AA67:AD67,$P67+$Q67)<$R67,$P67+$Q67,0)","v":0},{"$f":"IF(COUNTIF($AA67:AE67,$P67+$Q67)<$R67,$P67+$Q67,0)","v":0},{"$f":"IF(COUNTIF($AA67:AF67,$P67+$Q67)<$R67,$P67+$Q67,0)","v":0},{"$f":"IF(COUNTIF($AA67:AG67,$P67+$Q67)<$R67,$P67+$Q67,0)","v":0},{"$f":"IF(COUNTIF($AA67:AH67,$P67+$Q67)<$R67,$P67+$Q67,0)","v":0},{"$f":"IF(COUNTIF($AA67:AI67,$P67+$Q67)<$R67,$P67+$Q67,0)","v":0},{"$f":"IF(COUNTIF($AA67:AJ67,$P67+$Q67)<$R67,$P67+$Q67,0)","v":0},{"$f":"IF(COUNTIF($AA67:AK67,$P67+$Q67)<$R67,$P67+$Q67,0)","v":0},{"$f":"IF(COUNTIF($AA67:AL67,$P67+$Q67)<$R67,$P67+$Q67,0)","v":0},{"$f":"IF(COUNTIF($AA67:AM67,$P67+$Q67)<$R67,$P67+$Q67,0)","v":0},{"$f":"IF(COUNTIF($AA67:AN67,$P67+$Q67)<$R67,$P67+$Q67,0)","v":0},{"$f":"IF(COUNTIF($AA67:AO67,$P67+$Q67)<$R67,$P67+$Q67,0)","v":0},{"$f":"IF(COUNTIF($AA67:AP67,$P67+$Q67)<$R67,$P67+$Q67,0)","v":0},{"$f":"IF(COUNTIF($AA67:AQ67,$P67+$Q67)<$R67,$P67+$Q67,0)","v":0},{"$f":"IF(COUNTIF($AA67:AR67,$P67+$Q67)<$R67,$P67+$Q67,0)","v":0},{"$f":"IF(COUNTIF($AA67:AS67,$P67+$Q67)<$R67,$P67+$Q67,0)","v":0},{"$f":"IF(COUNTIF($AA67:AT67,$P67+$Q67)<$R67,$P67+$Q67,0)","v":0},{"$f":"IF(COUNTIF($AA67:AU67,$P67+$Q67)<$R67,$P67+$Q67,0)","v":0},{"$f":"IF(COUNTIF($AA67:AV67,$P67+$Q67)<$R67,$P67+$Q67,0)","v":0},{"$f":"IF(COUNTIF($AA67:AW67,$P67+$Q67)<$R67,$P67+$Q67,0)","v":0},{"$f":"IF(COUNTIF($AA67:AX67,$P67+$Q67)<$R67,$P67+$Q67,0)","v":0},{"$f":"IF(COUNTIF($AA67:AY67,$P67+$Q67)<$R67,$P67+$Q67,0)","v":0},{"$f":"IF(COUNTIF($AA67:AZ67,$P67+$Q67)<$R67,$P67+$Q67,0)","v":0},{"$f":"IF(COUNTIF($AA67:BA67,$P67+$Q67)<$R67,$P67+$Q67,0)","v":0},{"$f":"IF(COUNTIF($AA67:BB67,$P67+$Q67)<$R67,$P67+$Q67,0)","v":0},{"$f":"IF(COUNTIF($AA67:BC67,$P67+$Q67)<$R67,$P67+$Q67,0)","v":0},{"$f":"IF(COUNTIF($AA67:BD67,$P67+$Q67)<$R67,$P67+$Q67,0)","v":0},{"$f":"IF(COUNTIF($AA67:BE67,$P67+$Q67)<$R67,$P67+$Q67,0)","v":0},{"$f":"IF(COUNTIF($AA67:BF67,$P67+$Q67)<$R67,$P67+$Q67,0)","v":0},{"$f":"IF(COUNTIF($AA67:BG67,$P67+$Q67)<$R67,$P67+$Q67,0)","v":0},{"$f":"IF(COUNTIF($AA67:BH67,$P67+$Q67)<$R67,$P67+$Q67,0)","v":0},{"$f":"IF(COUNTIF($AA67:BI67,$P67+$Q67)<$R67,$P67+$Q67,0)","v":0},{"$f":"IF(COUNTIF($AA67:BJ67,$P67+$Q67)<$R67,$P67+$Q67,0)","v":0},{"$f":"IF(COUNTIF($AA67:BK67,$P67+$Q67)<$R67,$P67+$Q67,0)","v":0},{"$f":"IF(COUNTIF($AA67:BL67,$P67+$Q67)<$R67,$P67+$Q67,0)","v":0},{"$f":"IF(COUNTIF($AA67:BM67,$P67+$Q67)<$R67,$P67+$Q67,0)","v":0},-0.3]
[0,0,{"$f":"COUNTIF(P4Pindices!$A$8:$A$9,INDEX('Measure Descriptions'!$D$7:$D$31,MATCH('Measure Simulation'!E68,'Measure Descriptions'!$C$7:$C$31,0),1))","v":0},15,{"$f":"IF('Measure Descriptions'!C21=0,\" \",'Measure Descriptions'!C21)","v":" "},0,0,0,0,0,0,0,0,0,0,0,0,{"$f":"'Measure Descriptions'!AA21","v":0},0,0,0,null,null,null,null,0,0,0,{"$f":"IF(COUNTIF($AA68:AB68,$P68+$Q68)<$R68,$P68+$Q68,0)","v":0},{"$f":"IF(COUNTIF($AA68:AC68,$P68+$Q68)<$R68,$P68+$Q68,0)","v":0},{"$f":"IF(COUNTIF($AA68:AD68,$P68+$Q68)<$R68,$P68+$Q68,0)","v":0},{"$f":"IF(COUNTIF($AA68:AE68,$P68+$Q68)<$R68,$P68+$Q68,0)","v":0},{"$f":"IF(COUNTIF($AA68:AF68,$P68+$Q68)<$R68,$P68+$Q68,0)","v":0},{"$f":"IF(COUNTIF($AA68:AG68,$P68+$Q68)<$R68,$P68+$Q68,0)","v":0},{"$f":"IF(COUNTIF($AA68:AH68,$P68+$Q68)<$R68,$P68+$Q68,0)","v":0},{"$f":"IF(COUNTIF($AA68:AI68,$P68+$Q68)<$R68,$P68+$Q68,0)","v":0},{"$f":"IF(COUNTIF($AA68:AJ68,$P68+$Q68)<$R68,$P68+$Q68,0)","v":0},{"$f":"IF(COUNTIF($AA68:AK68,$P68+$Q68)<$R68,$P68+$Q68,0)","v":0},{"$f":"IF(COUNTIF($AA68:AL68,$P68+$Q68)<$R68,$P68+$Q68,0)","v":0},{"$f":"IF(COUNTIF($AA68:AM68,$P68+$Q68)<$R68,$P68+$Q68,0)","v":0},{"$f":"IF(COUNTIF($AA68:AN68,$P68+$Q68)<$R68,$P68+$Q68,0)","v":0},{"$f":"IF(COUNTIF($AA68:AO68,$P68+$Q68)<$R68,$P68+$Q68,0)","v":0},{"$f":"IF(COUNTIF($AA68:AP68,$P68+$Q68)<$R68,$P68+$Q68,0)","v":0},{"$f":"IF(COUNTIF($AA68:AQ68,$P68+$Q68)<$R68,$P68+$Q68,0)","v":0},{"$f":"IF(COUNTIF($AA68:AR68,$P68+$Q68)<$R68,$P68+$Q68,0)","v":0},{"$f":"IF(COUNTIF($AA68:AS68,$P68+$Q68)<$R68,$P68+$Q68,0)","v":0},{"$f":"IF(COUNTIF($AA68:AT68,$P68+$Q68)<$R68,$P68+$Q68,0)","v":0},{"$f":"IF(COUNTIF($AA68:AU68,$P68+$Q68)<$R68,$P68+$Q68,0)","v":0},{"$f":"IF(COUNTIF($AA68:AV68,$P68+$Q68)<$R68,$P68+$Q68,0)","v":0},{"$f":"IF(COUNTIF($AA68:AW68,$P68+$Q68)<$R68,$P68+$Q68,0)","v":0},{"$f":"IF(COUNTIF($AA68:AX68,$P68+$Q68)<$R68,$P68+$Q68,0)","v":0},{"$f":"IF(COUNTIF($AA68:AY68,$P68+$Q68)<$R68,$P68+$Q68,0)","v":0},{"$f":"IF(COUNTIF($AA68:AZ68,$P68+$Q68)<$R68,$P68+$Q68,0)","v":0},{"$f":"IF(COUNTIF($AA68:BA68,$P68+$Q68)<$R68,$P68+$Q68,0)","v":0},{"$f":"IF(COUNTIF($AA68:BB68,$P68+$Q68)<$R68,$P68+$Q68,0)","v":0},{"$f":"IF(COUNTIF($AA68:BC68,$P68+$Q68)<$R68,$P68+$Q68,0)","v":0},{"$f":"IF(COUNTIF($AA68:BD68,$P68+$Q68)<$R68,$P68+$Q68,0)","v":0},{"$f":"IF(COUNTIF($AA68:BE68,$P68+$Q68)<$R68,$P68+$Q68,0)","v":0},{"$f":"IF(COUNTIF($AA68:BF68,$P68+$Q68)<$R68,$P68+$Q68,0)","v":0},{"$f":"IF(COUNTIF($AA68:BG68,$P68+$Q68)<$R68,$P68+$Q68,0)","v":0},{"$f":"IF(COUNTIF($AA68:BH68,$P68+$Q68)<$R68,$P68+$Q68,0)","v":0},{"$f":"IF(COUNTIF($AA68:BI68,$P68+$Q68)<$R68,$P68+$Q68,0)","v":0},{"$f":"IF(COUNTIF($AA68:BJ68,$P68+$Q68)<$R68,$P68+$Q68,0)","v":0},{"$f":"IF(COUNTIF($AA68:BK68,$P68+$Q68)<$R68,$P68+$Q68,0)","v":0},{"$f":"IF(COUNTIF($AA68:BL68,$P68+$Q68)<$R68,$P68+$Q68,0)","v":0},{"$f":"IF(COUNTIF($AA68:BM68,$P68+$Q68)<$R68,$P68+$Q68,0)","v":0},-0.3]
[0,0,{"$f":"COUNTIF(P4Pindices!$A$8:$A$9,INDEX('Measure Descriptions'!$D$7:$D$31,MATCH('Measure Simulation'!E69,'Measure Descriptions'!$C$7:$C$31,0),1))","v":0},16,{"$f":"IF('Measure Descriptions'!C22=0,\" \",'Measure Descriptions'!C22)","v":" "},0,0,0,0,0,0,0,0,0,0,0,0,{"$f":"'Measure Descriptions'!AA22","v":0},0,0,0,null,null,null,null,0,0,0,{"$f":"IF(COUNTIF($AA69:AB69,$P69+$Q69)<$R69,$P69+$Q69,0)","v":0},{"$f":"IF(COUNTIF($AA69:AC69,$P69+$Q69)<$R69,$P69+$Q69,0)","v":0},{"$f":"IF(COUNTIF($AA69:AD69,$P69+$Q69)<$R69,$P69+$Q69,0)","v":0},{"$f":"IF(COUNTIF($AA69:AE69,$P69+$Q69)<$R69,$P69+$Q69,0)","v":0},{"$f":"IF(COUNTIF($AA69:AF69,$P69+$Q69)<$R69,$P69+$Q69,0)","v":0},{"$f":"IF(COUNTIF($AA69:AG69,$P69+$Q69)<$R69,$P69+$Q69,0)","v":0},{"$f":"IF(COUNTIF($AA69:AH69,$P69+$Q69)<$R69,$P69+$Q69,0)","v":0},{"$f":"IF(COUNTIF($AA69:AI69,$P69+$Q69)<$R69,$P69+$Q69,0)","v":0},{"$f":"IF(COUNTIF($AA69:AJ69,$P69+$Q69)<$R69,$P69+$Q69,0)","v":0},{"$f":"IF(COUNTIF($AA69:AK69,$P69+$Q69)<$R69,$P69+$Q69,0)","v":0},{"$f":"IF(COUNTIF($AA69:AL69,$P69+$Q69)<$R69,$P69+$Q69,0)","v":0},{"$f":"IF(COUNTIF($AA69:AM69,$P69+$Q69)<$R69,$P69+$Q69,0)","v":0},{"$f":"IF(COUNTIF($AA69:AN69,$P69+$Q69)<$R69,$P69+$Q69,0)","v":0},{"$f":"IF(COUNTIF($AA69:AO69,$P69+$Q69)<$R69,$P69+$Q69,0)","v":0},{"$f":"IF(COUNTIF($AA69:AP69,$P69+$Q69)<$R69,$P69+$Q69,0)","v":0},{"$f":"IF(COUNTIF($AA69:AQ69,$P69+$Q69)<$R69,$P69+$Q69,0)","v":0},{"$f":"IF(COUNTIF($AA69:AR69,$P69+$Q69)<$R69,$P69+$Q69,0)","v":0},{"$f":"IF(COUNTIF($AA69:AS69,$P69+$Q69)<$R69,$P69+$Q69,0)","v":0},{"$f":"IF(COUNTIF($AA69:AT69,$P69+$Q69)<$R69,$P69+$Q69,0)","v":0},{"$f":"IF(COUNTIF($AA69:AU69,$P69+$Q69)<$R69,$P69+$Q69,0)","v":0},{"$f":"IF(COUNTIF($AA69:AV69,$P69+$Q69)<$R69,$P69+$Q69,0)","v":0},{"$f":"IF(COUNTIF($AA69:AW69,$P69+$Q69)<$R69,$P69+$Q69,0)","v":0},{"$f":"IF(COUNTIF($AA69:AX69,$P69+$Q69)<$R69,$P69+$Q69,0)","v":0},{"$f":"IF(COUNTIF($AA69:AY69,$P69+$Q69)<$R69,$P69+$Q69,0)","v":0},{"$f":"IF(COUNTIF($AA69:AZ69,$P69+$Q69)<$R69,$P69+$Q69,0)","v":0},{"$f":"IF(COUNTIF($AA69:BA69,$P69+$Q69)<$R69,$P69+$Q69,0)","v":0},{"$f":"IF(COUNTIF($AA69:BB69,$P69+$Q69)<$R69,$P69+$Q69,0)","v":0},{"$f":"IF(COUNTIF($AA69:BC69,$P69+$Q69)<$R69,$P69+$Q69,0)","v":0},{"$f":"IF(COUNTIF($AA69:BD69,$P69+$Q69)<$R69,$P69+$Q69,0)","v":0},{"$f":"IF(COUNTIF($AA69:BE69,$P69+$Q69)<$R69,$P69+$Q69,0)","v":0},{"$f":"IF(COUNTIF($AA69:BF69,$P69+$Q69)<$R69,$P69+$Q69,0)","v":0},{"$f":"IF(COUNTIF($AA69:BG69,$P69+$Q69)<$R69,$P69+$Q69,0)","v":0},{"$f":"IF(COUNTIF($AA69:BH69,$P69+$Q69)<$R69,$P69+$Q69,0)","v":0},{"$f":"IF(COUNTIF($AA69:BI69,$P69+$Q69)<$R69,$P69+$Q69,0)","v":0},{"$f":"IF(COUNTIF($AA69:BJ69,$P69+$Q69)<$R69,$P69+$Q69,0)","v":0},{"$f":"IF(COUNTIF($AA69:BK69,$P69+$Q69)<$R69,$P69+$Q69,0)","v":0},{"$f":"IF(COUNTIF($AA69:BL69,$P69+$Q69)<$R69,$P69+$Q69,0)","v":0},{"$f":"IF(COUNTIF($AA69:BM69,$P69+$Q69)<$R69,$P69+$Q69,0)","v":0},-0.3]
[0,0,{"$f":"COUNTIF(P4Pindices!$A$8:$A$9,INDEX('Measure Descriptions'!$D$7:$D$31,MATCH('Measure Simulation'!E70,'Measure Descriptions'!$C$7:$C$31,0),1))","v":0},17,{"$f":"IF('Measure Descriptions'!C23=0,\" \",'Measure Descriptions'!C23)","v":" "},0,0,0,0,0,0,0,0,0,0,0,0,{"$f":"'Measure Descriptions'!AA23","v":0},0,0,0,null,null,null,null,0,0,0,{"$f":"IF(COUNTIF($AA70:AB70,$P70+$Q70)<$R70,$P70+$Q70,0)","v":0},{"$f":"IF(COUNTIF($AA70:AC70,$P70+$Q70)<$R70,$P70+$Q70,0)","v":0},{"$f":"IF(COUNTIF($AA70:AD70,$P70+$Q70)<$R70,$P70+$Q70,0)","v":0},{"$f":"IF(COUNTIF($AA70:AE70,$P70+$Q70)<$R70,$P70+$Q70,0)","v":0},{"$f":"IF(COUNTIF($AA70:AF70,$P70+$Q70)<$R70,$P70+$Q70,0)","v":0},{"$f":"IF(COUNTIF($AA70:AG70,$P70+$Q70)<$R70,$P70+$Q70,0)","v":0},{"$f":"IF(COUNTIF($AA70:AH70,$P70+$Q70)<$R70,$P70+$Q70,0)","v":0},{"$f":"IF(COUNTIF($AA70:AI70,$P70+$Q70)<$R70,$P70+$Q70,0)","v":0},{"$f":"IF(COUNTIF($AA70:AJ70,$P70+$Q70)<$R70,$P70+$Q70,0)","v":0},{"$f":"IF(COUNTIF($AA70:AK70,$P70+$Q70)<$R70,$P70+$Q70,0)","v":0},{"$f":"IF(COUNTIF($AA70:AL70,$P70+$Q70)<$R70,$P70+$Q70,0)","v":0},{"$f":"IF(COUNTIF($AA70:AM70,$P70+$Q70)<$R70,$P70+$Q70,0)","v":0},{"$f":"IF(COUNTIF($AA70:AN70,$P70+$Q70)<$R70,$P70+$Q70,0)","v":0},{"$f":"IF(COUNTIF($AA70:AO70,$P70+$Q70)<$R70,$P70+$Q70,0)","v":0},{"$f":"IF(COUNTIF($AA70:AP70,$P70+$Q70)<$R70,$P70+$Q70,0)","v":0},{"$f":"IF(COUNTIF($AA70:AQ70,$P70+$Q70)<$R70,$P70+$Q70,0)","v":0},{"$f":"IF(COUNTIF($AA70:AR70,$P70+$Q70)<$R70,$P70+$Q70,0)","v":0},{"$f":"IF(COUNTIF($AA70:AS70,$P70+$Q70)<$R70,$P70+$Q70,0)","v":0},{"$f":"IF(COUNTIF($AA70:AT70,$P70+$Q70)<$R70,$P70+$Q70,0)","v":0},{"$f":"IF(COUNTIF($AA70:AU70,$P70+$Q70)<$R70,$P70+$Q70,0)","v":0},{"$f":"IF(COUNTIF($AA70:AV70,$P70+$Q70)<$R70,$P70+$Q70,0)","v":0},{"$f":"IF(COUNTIF($AA70:AW70,$P70+$Q70)<$R70,$P70+$Q70,0)","v":0},{"$f":"IF(COUNTIF($AA70:AX70,$P70+$Q70)<$R70,$P70+$Q70,0)","v":0},{"$f":"IF(COUNTIF($AA70:AY70,$P70+$Q70)<$R70,$P70+$Q70,0)","v":0},{"$f":"IF(COUNTIF($AA70:AZ70,$P70+$Q70)<$R70,$P70+$Q70,0)","v":0},{"$f":"IF(COUNTIF($AA70:BA70,$P70+$Q70)<$R70,$P70+$Q70,0)","v":0},{"$f":"IF(COUNTIF($AA70:BB70,$P70+$Q70)<$R70,$P70+$Q70,0)","v":0},{"$f":"IF(COUNTIF($AA70:BC70,$P70+$Q70)<$R70,$P70+$Q70,0)","v":0},{"$f":"IF(COUNTIF($AA70:BD70,$P70+$Q70)<$R70,$P70+$Q70,0)","v":0},{"$f":"IF(COUNTIF($AA70:BE70,$P70+$Q70)<$R70,$P70+$Q70,0)","v":0},{"$f":"IF(COUNTIF($AA70:BF70,$P70+$Q70)<$R70,$P70+$Q70,0)","v":0},{"$f":"IF(COUNTIF($AA70:BG70,$P70+$Q70)<$R70,$P70+$Q70,0)","v":0},{"$f":"IF(COUNTIF($AA70:BH70,$P70+$Q70)<$R70,$P70+$Q70,0)","v":0},{"$f":"IF(COUNTIF($AA70:BI70,$P70+$Q70)<$R70,$P70+$Q70,0)","v":0},{"$f":"IF(COUNTIF($AA70:BJ70,$P70+$Q70)<$R70,$P70+$Q70,0)","v":0},{"$f":"IF(COUNTIF($AA70:BK70,$P70+$Q70)<$R70,$P70+$Q70,0)","v":0},{"$f":"IF(COUNTIF($AA70:BL70,$P70+$Q70)<$R70,$P70+$Q70,0)","v":0},{"$f":"IF(COUNTIF($AA70:BM70,$P70+$Q70)<$R70,$P70+$Q70,0)","v":0},-0.3]
[0,0,{"$f":"COUNTIF(P4Pindices!$A$8:$A$9,INDEX('Measure Descriptions'!$D$7:$D$31,MATCH('Measure Simulation'!E71,'Measure Descriptions'!$C$7:$C$31,0),1))","v":0},18,{"$f":"IF('Measure Descriptions'!C24=0,\" \",'Measure Descriptions'!C24)","v":" "},0,0,0,0,0,0,0,0,0,0,0,0,{"$f":"'Measure Descriptions'!AA24","v":0},0,0,0,null,null,null,null,0,0,0,{"$f":"IF(COUNTIF($AA71:AB71,$P71+$Q71)<$R71,$P71+$Q71,0)","v":0},{"$f":"IF(COUNTIF($AA71:AC71,$P71+$Q71)<$R71,$P71+$Q71,0)","v":0},{"$f":"IF(COUNTIF($AA71:AD71,$P71+$Q71)<$R71,$P71+$Q71,0)","v":0},{"$f":"IF(COUNTIF($AA71:AE71,$P71+$Q71)<$R71,$P71+$Q71,0)","v":0},{"$f":"IF(COUNTIF($AA71:AF71,$P71+$Q71)<$R71,$P71+$Q71,0)","v":0},{"$f":"IF(COUNTIF($AA71:AG71,$P71+$Q71)<$R71,$P71+$Q71,0)","v":0},{"$f":"IF(COUNTIF($AA71:AH71,$P71+$Q71)<$R71,$P71+$Q71,0)","v":0},{"$f":"IF(COUNTIF($AA71:AI71,$P71+$Q71)<$R71,$P71+$Q71,0)","v":0},{"$f":"IF(COUNTIF($AA71:AJ71,$P71+$Q71)<$R71,$P71+$Q71,0)","v":0},{"$f":"IF(COUNTIF($AA71:AK71,$P71+$Q71)<$R71,$P71+$Q71,0)","v":0},{"$f":"IF(COUNTIF($AA71:AL71,$P71+$Q71)<$R71,$P71+$Q71,0)","v":0},{"$f":"IF(COUNTIF($AA71:AM71,$P71+$Q71)<$R71,$P71+$Q71,0)","v":0},{"$f":"IF(COUNTIF($AA71:AN71,$P71+$Q71)<$R71,$P71+$Q71,0)","v":0},{"$f":"IF(COUNTIF($AA71:AO71,$P71+$Q71)<$R71,$P71+$Q71,0)","v":0},{"$f":"IF(COUNTIF($AA71:AP71,$P71+$Q71)<$R71,$P71+$Q71,0)","v":0},{"$f":"IF(COUNTIF($AA71:AQ71,$P71+$Q71)<$R71,$P71+$Q71,0)","v":0},{"$f":"IF(COUNTIF($AA71:AR71,$P71+$Q71)<$R71,$P71+$Q71,0)","v":0},{"$f":"IF(COUNTIF($AA71:AS71,$P71+$Q71)<$R71,$P71+$Q71,0)","v":0},{"$f":"IF(COUNTIF($AA71:AT71,$P71+$Q71)<$R71,$P71+$Q71,0)","v":0},{"$f":"IF(COUNTIF($AA71:AU71,$P71+$Q71)<$R71,$P71+$Q71,0)","v":0},{"$f":"IF(COUNTIF($AA71:AV71,$P71+$Q71)<$R71,$P71+$Q71,0)","v":0},{"$f":"IF(COUNTIF($AA71:AW71,$P71+$Q71)<$R71,$P71+$Q71,0)","v":0},{"$f":"IF(COUNTIF($AA71:AX71,$P71+$Q71)<$R71,$P71+$Q71,0)","v":0},{"$f":"IF(COUNTIF($AA71:AY71,$P71+$Q71)<$R71,$P71+$Q71,0)","v":0},{"$f":"IF(COUNTIF($AA71:AZ71,$P71+$Q71)<$R71,$P71+$Q71,0)","v":0},{"$f":"IF(COUNTIF($AA71:BA71,$P71+$Q71)<$R71,$P71+$Q71,0)","v":0},{"$f":"IF(COUNTIF($AA71:BB71,$P71+$Q71)<$R71,$P71+$Q71,0)","v":0},{"$f":"IF(COUNTIF($AA71:BC71,$P71+$Q71)<$R71,$P71+$Q71,0)","v":0},{"$f":"IF(COUNTIF($AA71:BD71,$P71+$Q71)<$R71,$P71+$Q71,0)","v":0},{"$f":"IF(COUNTIF($AA71:BE71,$P71+$Q71)<$R71,$P71+$Q71,0)","v":0},{"$f":"IF(COUNTIF($AA71:BF71,$P71+$Q71)<$R71,$P71+$Q71,0)","v":0},{"$f":"IF(COUNTIF($AA71:BG71,$P71+$Q71)<$R71,$P71+$Q71,0)","v":0},{"$f":"IF(COUNTIF($AA71:BH71,$P71+$Q71)<$R71,$P71+$Q71,0)","v":0},{"$f":"IF(COUNTIF($AA71:BI71,$P71+$Q71)<$R71,$P71+$Q71,0)","v":0},{"$f":"IF(COUNTIF($AA71:BJ71,$P71+$Q71)<$R71,$P71+$Q71,0)","v":0},{"$f":"IF(COUNTIF($AA71:BK71,$P71+$Q71)<$R71,$P71+$Q71,0)","v":0},{"$f":"IF(COUNTIF($AA71:BL71,$P71+$Q71)<$R71,$P71+$Q71,0)","v":0},{"$f":"IF(COUNTIF($AA71:BM71,$P71+$Q71)<$R71,$P71+$Q71,0)","v":0},-0.3]
[0,0,{"$f":"COUNTIF(P4Pindices!$A$8:$A$9,INDEX('Measure Descriptions'!$D$7:$D$31,MATCH('Measure Simulation'!E72,'Measure Descriptions'!$C$7:$C$31,0),1))","v":0},19,{"$f":"IF('Measure Descriptions'!C25=0,\" \",'Measure Descriptions'!C25)","v":" "},0,0,0,0,0,0,0,0,0,0,0,0,{"$f":"'Measure Descriptions'!AA25","v":0},0,0,0,null,null,null,null,0,0,0,{"$f":"IF(COUNTIF($AA72:AB72,$P72+$Q72)<$R72,$P72+$Q72,0)","v":0},{"$f":"IF(COUNTIF($AA72:AC72,$P72+$Q72)<$R72,$P72+$Q72,0)","v":0},{"$f":"IF(COUNTIF($AA72:AD72,$P72+$Q72)<$R72,$P72+$Q72,0)","v":0},{"$f":"IF(COUNTIF($AA72:AE72,$P72+$Q72)<$R72,$P72+$Q72,0)","v":0},{"$f":"IF(COUNTIF($AA72:AF72,$P72+$Q72)<$R72,$P72+$Q72,0)","v":0},{"$f":"IF(COUNTIF($AA72:AG72,$P72+$Q72)<$R72,$P72+$Q72,0)","v":0},{"$f":"IF(COUNTIF($AA72:AH72,$P72+$Q72)<$R72,$P72+$Q72,0)","v":0},{"$f":"IF(COUNTIF($AA72:AI72,$P72+$Q72)<$R72,$P72+$Q72,0)","v":0},{"$f":"IF(COUNTIF($AA72:AJ72,$P72+$Q72)<$R72,$P72+$Q72,0)","v":0},{"$f":"IF(COUNTIF($AA72:AK72,$P72+$Q72)<$R72,$P72+$Q72,0)","v":0},{"$f":"IF(COUNTIF($AA72:AL72,$P72+$Q72)<$R72,$P72+$Q72,0)","v":0},{"$f":"IF(COUNTIF($AA72:AM72,$P72+$Q72)<$R72,$P72+$Q72,0)","v":0},{"$f":"IF(COUNTIF($AA72:AN72,$P72+$Q72)<$R72,$P72+$Q72,0)","v":0},{"$f":"IF(COUNTIF($AA72:AO72,$P72+$Q72)<$R72,$P72+$Q72,0)","v":0},{"$f":"IF(COUNTIF($AA72:AP72,$P72+$Q72)<$R72,$P72+$Q72,0)","v":0},{"$f":"IF(COUNTIF($AA72:AQ72,$P72+$Q72)<$R72,$P72+$Q72,0)","v":0},{"$f":"IF(COUNTIF($AA72:AR72,$P72+$Q72)<$R72,$P72+$Q72,0)","v":0},{"$f":"IF(COUNTIF($AA72:AS72,$P72+$Q72)<$R72,$P72+$Q72,0)","v":0},{"$f":"IF(COUNTIF($AA72:AT72,$P72+$Q72)<$R72,$P72+$Q72,0)","v":0},{"$f":"IF(COUNTIF($AA72:AU72,$P72+$Q72)<$R72,$P72+$Q72,0)","v":0},{"$f":"IF(COUNTIF($AA72:AV72,$P72+$Q72)<$R72,$P72+$Q72,0)","v":0},{"$f":"IF(COUNTIF($AA72:AW72,$P72+$Q72)<$R72,$P72+$Q72,0)","v":0},{"$f":"IF(COUNTIF($AA72:AX72,$P72+$Q72)<$R72,$P72+$Q72,0)","v":0},{"$f":"IF(COUNTIF($AA72:AY72,$P72+$Q72)<$R72,$P72+$Q72,0)","v":0},{"$f":"IF(COUNTIF($AA72:AZ72,$P72+$Q72)<$R72,$P72+$Q72,0)","v":0},{"$f":"IF(COUNTIF($AA72:BA72,$P72+$Q72)<$R72,$P72+$Q72,0)","v":0},{"$f":"IF(COUNTIF($AA72:BB72,$P72+$Q72)<$R72,$P72+$Q72,0)","v":0},{"$f":"IF(COUNTIF($AA72:BC72,$P72+$Q72)<$R72,$P72+$Q72,0)","v":0},{"$f":"IF(COUNTIF($AA72:BD72,$P72+$Q72)<$R72,$P72+$Q72,0)","v":0},{"$f":"IF(COUNTIF($AA72:BE72,$P72+$Q72)<$R72,$P72+$Q72,0)","v":0},{"$f":"IF(COUNTIF($AA72:BF72,$P72+$Q72)<$R72,$P72+$Q72,0)","v":0},{"$f":"IF(COUNTIF($AA72:BG72,$P72+$Q72)<$R72,$P72+$Q72,0)","v":0},{"$f":"IF(COUNTIF($AA72:BH72,$P72+$Q72)<$R72,$P72+$Q72,0)","v":0},{"$f":"IF(COUNTIF($AA72:BI72,$P72+$Q72)<$R72,$P72+$Q72,0)","v":0},{"$f":"IF(COUNTIF($AA72:BJ72,$P72+$Q72)<$R72,$P72+$Q72,0)","v":0},{"$f":"IF(COUNTIF($AA72:BK72,$P72+$Q72)<$R72,$P72+$Q72,0)","v":0},{"$f":"IF(COUNTIF($AA72:BL72,$P72+$Q72)<$R72,$P72+$Q72,0)","v":0},{"$f":"IF(COUNTIF($AA72:BM72,$P72+$Q72)<$R72,$P72+$Q72,0)","v":0},-0.3]
[0,0,{"$f":"COUNTIF(P4Pindices!$A$8:$A$9,INDEX('Measure Descriptions'!$D$7:$D$31,MATCH('Measure Simulation'!E73,'Measure Descriptions'!$C$7:$C$31,0),1))","v":0},20,{"$f":"IF('Measure Descriptions'!C26=0,\" \",'Measure Descriptions'!C26)","v":" "},0,0,0,0,0,0,0,0,0,0,0,0,{"$f":"'Measure Descriptions'!AA26","v":0},0,0,0,null,null,null,null,0,0,0,{"$f":"IF(COUNTIF($AA73:AB73,$P73+$Q73)<$R73,$P73+$Q73,0)","v":0},{"$f":"IF(COUNTIF($AA73:AC73,$P73+$Q73)<$R73,$P73+$Q73,0)","v":0},{"$f":"IF(COUNTIF($AA73:AD73,$P73+$Q73)<$R73,$P73+$Q73,0)","v":0},{"$f":"IF(COUNTIF($AA73:AE73,$P73+$Q73)<$R73,$P73+$Q73,0)","v":0},{"$f":"IF(COUNTIF($AA73:AF73,$P73+$Q73)<$R73,$P73+$Q73,0)","v":0},{"$f":"IF(COUNTIF($AA73:AG73,$P73+$Q73)<$R73,$P73+$Q73,0)","v":0},{"$f":"IF(COUNTIF($AA73:AH73,$P73+$Q73)<$R73,$P73+$Q73,0)","v":0},{"$f":"IF(COUNTIF($AA73:AI73,$P73+$Q73)<$R73,$P73+$Q73,0)","v":0},{"$f":"IF(COUNTIF($AA73:AJ73,$P73+$Q73)<$R73,$P73+$Q73,0)","v":0},{"$f":"IF(COUNTIF($AA73:AK73,$P73+$Q73)<$R73,$P73+$Q73,0)","v":0},{"$f":"IF(COUNTIF($AA73:AL73,$P73+$Q73)<$R73,$P73+$Q73,0)","v":0},{"$f":"IF(COUNTIF($AA73:AM73,$P73+$Q73)<$R73,$P73+$Q73,0)","v":0},{"$f":"IF(COUNTIF($AA73:AN73,$P73+$Q73)<$R73,$P73+$Q73,0)","v":0},{"$f":"IF(COUNTIF($AA73:AO73,$P73+$Q73)<$R73,$P73+$Q73,0)","v":0},{"$f":"IF(COUNTIF($AA73:AP73,$P73+$Q73)<$R73,$P73+$Q73,0)","v":0},{"$f":"IF(COUNTIF($AA73:AQ73,$P73+$Q73)<$R73,$P73+$Q73,0)","v":0},{"$f":"IF(COUNTIF($AA73:AR73,$P73+$Q73)<$R73,$P73+$Q73,0)","v":0},{"$f":"IF(COUNTIF($AA73:AS73,$P73+$Q73)<$R73,$P73+$Q73,0)","v":0},{"$f":"IF(COUNTIF($AA73:AT73,$P73+$Q73)<$R73,$P73+$Q73,0)","v":0},{"$f":"IF(COUNTIF($AA73:AU73,$P73+$Q73)<$R73,$P73+$Q73,0)","v":0},{"$f":"IF(COUNTIF($AA73:AV73,$P73+$Q73)<$R73,$P73+$Q73,0)","v":0},{"$f":"IF(COUNTIF($AA73:AW73,$P73+$Q73)<$R73,$P73+$Q73,0)","v":0},{"$f":"IF(COUNTIF($AA73:AX73,$P73+$Q73)<$R73,$P73+$Q73,0)","v":0},{"$f":"IF(COUNTIF($AA73:AY73,$P73+$Q73)<$R73,$P73+$Q73,0)","v":0},{"$f":"IF(COUNTIF($AA73:AZ73,$P73+$Q73)<$R73,$P73+$Q73,0)","v":0},{"$f":"IF(COUNTIF($AA73:BA73,$P73+$Q73)<$R73,$P73+$Q73,0)","v":0},{"$f":"IF(COUNTIF($AA73:BB73,$P73+$Q73)<$R73,$P73+$Q73,0)","v":0},{"$f":"IF(COUNTIF($AA73:BC73,$P73+$Q73)<$R73,$P73+$Q73,0)","v":0},{"$f":"IF(COUNTIF($AA73:BD73,$P73+$Q73)<$R73,$P73+$Q73,0)","v":0},{"$f":"IF(COUNTIF($AA73:BE73,$P73+$Q73)<$R73,$P73+$Q73,0)","v":0},{"$f":"IF(COUNTIF($AA73:BF73,$P73+$Q73)<$R73,$P73+$Q73,0)","v":0},{"$f":"IF(COUNTIF($AA73:BG73,$P73+$Q73)<$R73,$P73+$Q73,0)","v":0},{"$f":"IF(COUNTIF($AA73:BH73,$P73+$Q73)<$R73,$P73+$Q73,0)","v":0},{"$f":"IF(COUNTIF($AA73:BI73,$P73+$Q73)<$R73,$P73+$Q73,0)","v":0},{"$f":"IF(COUNTIF($AA73:BJ73,$P73+$Q73)<$R73,$P73+$Q73,0)","v":0},{"$f":"IF(COUNTIF($AA73:BK73,$P73+$Q73)<$R73,$P73+$Q73,0)","v":0},{"$f":"IF(COUNTIF($AA73:BL73,$P73+$Q73)<$R73,$P73+$Q73,0)","v":0},{"$f":"IF(COUNTIF($AA73:BM73,$P73+$Q73)<$R73,$P73+$Q73,0)","v":0},-0.3]
[0,0,{"$f":"COUNTIF(P4Pindices!$A$8:$A$9,INDEX('Measure Descriptions'!$D$7:$D$31,MATCH('Measure Simulation'!E74,'Measure Descriptions'!$C$7:$C$31,0),1))","v":0},21,{"$f":"IF('Measure Descriptions'!C27=0,\" \",'Measure Descriptions'!C27)","v":" "},0,0,0,0,0,0,0,0,0,0,0,0,{"$f":"'Measure Descriptions'!AA27","v":0},0,0,0,null,null,null,null,0,0,0,{"$f":"IF(COUNTIF($AA74:AB74,$P74+$Q74)<$R74,$P74+$Q74,0)","v":0},{"$f":"IF(COUNTIF($AA74:AC74,$P74+$Q74)<$R74,$P74+$Q74,0)","v":0},{"$f":"IF(COUNTIF($AA74:AD74,$P74+$Q74)<$R74,$P74+$Q74,0)","v":0},{"$f":"IF(COUNTIF($AA74:AE74,$P74+$Q74)<$R74,$P74+$Q74,0)","v":0},{"$f":"IF(COUNTIF($AA74:AF74,$P74+$Q74)<$R74,$P74+$Q74,0)","v":0},{"$f":"IF(COUNTIF($AA74:AG74,$P74+$Q74)<$R74,$P74+$Q74,0)","v":0},{"$f":"IF(COUNTIF($AA74:AH74,$P74+$Q74)<$R74,$P74+$Q74,0)","v":0},{"$f":"IF(COUNTIF($AA74:AI74,$P74+$Q74)<$R74,$P74+$Q74,0)","v":0},{"$f":"IF(COUNTIF($AA74:AJ74,$P74+$Q74)<$R74,$P74+$Q74,0)","v":0},{"$f":"IF(COUNTIF($AA74:AK74,$P74+$Q74)<$R74,$P74+$Q74,0)","v":0},{"$f":"IF(COUNTIF($AA74:AL74,$P74+$Q74)<$R74,$P74+$Q74,0)","v":0},{"$f":"IF(COUNTIF($AA74:AM74,$P74+$Q74)<$R74,$P74+$Q74,0)","v":0},{"$f":"IF(COUNTIF($AA74:AN74,$P74+$Q74)<$R74,$P74+$Q74,0)","v":0},{"$f":"IF(COUNTIF($AA74:AO74,$P74+$Q74)<$R74,$P74+$Q74,0)","v":0},{"$f":"IF(COUNTIF($AA74:AP74,$P74+$Q74)<$R74,$P74+$Q74,0)","v":0},{"$f":"IF(COUNTIF($AA74:AQ74,$P74+$Q74)<$R74,$P74+$Q74,0)","v":0},{"$f":"IF(COUNTIF($AA74:AR74,$P74+$Q74)<$R74,$P74+$Q74,0)","v":0},{"$f":"IF(COUNTIF($AA74:AS74,$P74+$Q74)<$R74,$P74+$Q74,0)","v":0},{"$f":"IF(COUNTIF($AA74:AT74,$P74+$Q74)<$R74,$P74+$Q74,0)","v":0},{"$f":"IF(COUNTIF($AA74:AU74,$P74+$Q74)<$R74,$P74+$Q74,0)","v":0},{"$f":"IF(COUNTIF($AA74:AV74,$P74+$Q74)<$R74,$P74+$Q74,0)","v":0},{"$f":"IF(COUNTIF($AA74:AW74,$P74+$Q74)<$R74,$P74+$Q74,0)","v":0},{"$f":"IF(COUNTIF($AA74:AX74,$P74+$Q74)<$R74,$P74+$Q74,0)","v":0},{"$f":"IF(COUNTIF($AA74:AY74,$P74+$Q74)<$R74,$P74+$Q74,0)","v":0},{"$f":"IF(COUNTIF($AA74:AZ74,$P74+$Q74)<$R74,$P74+$Q74,0)","v":0},{"$f":"IF(COUNTIF($AA74:BA74,$P74+$Q74)<$R74,$P74+$Q74,0)","v":0},{"$f":"IF(COUNTIF($AA74:BB74,$P74+$Q74)<$R74,$P74+$Q74,0)","v":0},{"$f":"IF(COUNTIF($AA74:BC74,$P74+$Q74)<$R74,$P74+$Q74,0)","v":0},{"$f":"IF(COUNTIF($AA74:BD74,$P74+$Q74)<$R74,$P74+$Q74,0)","v":0},{"$f":"IF(COUNTIF($AA74:BE74,$P74+$Q74)<$R74,$P74+$Q74,0)","v":0},{"$f":"IF(COUNTIF($AA74:BF74,$P74+$Q74)<$R74,$P74+$Q74,0)","v":0},{"$f":"IF(COUNTIF($AA74:BG74,$P74+$Q74)<$R74,$P74+$Q74,0)","v":0},{"$f":"IF(COUNTIF($AA74:BH74,$P74+$Q74)<$R74,$P74+$Q74,0)","v":0},{"$f":"IF(COUNTIF($AA74:BI74,$P74+$Q74)<$R74,$P74+$Q74,0)","v":0},{"$f":"IF(COUNTIF($AA74:BJ74,$P74+$Q74)<$R74,$P74+$Q74,0)","v":0},{"$f":"IF(COUNTIF($AA74:BK74,$P74+$Q74)<$R74,$P74+$Q74,0)","v":0},{"$f":"IF(COUNTIF($AA74:BL74,$P74+$Q74)<$R74,$P74+$Q74,0)","v":0},{"$f":"IF(COUNTIF($AA74:BM74,$P74+$Q74)<$R74,$P74+$Q74,0)","v":0},-0.3]
[0,0,{"$f":"COUNTIF(P4Pindices!$A$8:$A$9,INDEX('Measure Descriptions'!$D$7:$D$31,MATCH('Measure Simulation'!E75,'Measure Descriptions'!$C$7:$C$31,0),1))","v":0},22,{"$f":"IF('Measure Descriptions'!C28=0,\" \",'Measure Descriptions'!C28)","v":" "},0,0,0,0,0,0,0,0,0,0,0,0,{"$f":"'Measure Descriptions'!AA28","v":0},0,0,0,null,null,null,null,0,0,0,{"$f":"IF(COUNTIF($AA75:AB75,$P75+$Q75)<$R75,$P75+$Q75,0)","v":0},{"$f":"IF(COUNTIF($AA75:AC75,$P75+$Q75)<$R75,$P75+$Q75,0)","v":0},{"$f":"IF(COUNTIF($AA75:AD75,$P75+$Q75)<$R75,$P75+$Q75,0)","v":0},{"$f":"IF(COUNTIF($AA75:AE75,$P75+$Q75)<$R75,$P75+$Q75,0)","v":0},{"$f":"IF(COUNTIF($AA75:AF75,$P75+$Q75)<$R75,$P75+$Q75,0)","v":0},{"$f":"IF(COUNTIF($AA75:AG75,$P75+$Q75)<$R75,$P75+$Q75,0)","v":0},{"$f":"IF(COUNTIF($AA75:AH75,$P75+$Q75)<$R75,$P75+$Q75,0)","v":0},{"$f":"IF(COUNTIF($AA75:AI75,$P75+$Q75)<$R75,$P75+$Q75,0)","v":0},{"$f":"IF(COUNTIF($AA75:AJ75,$P75+$Q75)<$R75,$P75+$Q75,0)","v":0},{"$f":"IF(COUNTIF($AA75:AK75,$P75+$Q75)<$R75,$P75+$Q75,0)","v":0},{"$f":"IF(COUNTIF($AA75:AL75,$P75+$Q75)<$R75,$P75+$Q75,0)","v":0},{"$f":"IF(COUNTIF($AA75:AM75,$P75+$Q75)<$R75,$P75+$Q75,0)","v":0},{"$f":"IF(COUNTIF($AA75:AN75,$P75+$Q75)<$R75,$P75+$Q75,0)","v":0},{"$f":"IF(COUNTIF($AA75:AO75,$P75+$Q75)<$R75,$P75+$Q75,0)","v":0},{"$f":"IF(COUNTIF($AA75:AP75,$P75+$Q75)<$R75,$P75+$Q75,0)","v":0},{"$f":"IF(COUNTIF($AA75:AQ75,$P75+$Q75)<$R75,$P75+$Q75,0)","v":0},{"$f":"IF(COUNTIF($AA75:AR75,$P75+$Q75)<$R75,$P75+$Q75,0)","v":0},{"$f":"IF(COUNTIF($AA75:AS75,$P75+$Q75)<$R75,$P75+$Q75,0)","v":0},{"$f":"IF(COUNTIF($AA75:AT75,$P75+$Q75)<$R75,$P75+$Q75,0)","v":0},{"$f":"IF(COUNTIF($AA75:AU75,$P75+$Q75)<$R75,$P75+$Q75,0)","v":0},{"$f":"IF(COUNTIF($AA75:AV75,$P75+$Q75)<$R75,$P75+$Q75,0)","v":0},{"$f":"IF(COUNTIF($AA75:AW75,$P75+$Q75)<$R75,$P75+$Q75,0)","v":0},{"$f":"IF(COUNTIF($AA75:AX75,$P75+$Q75)<$R75,$P75+$Q75,0)","v":0},{"$f":"IF(COUNTIF($AA75:AY75,$P75+$Q75)<$R75,$P75+$Q75,0)","v":0},{"$f":"IF(COUNTIF($AA75:AZ75,$P75+$Q75)<$R75,$P75+$Q75,0)","v":0},{"$f":"IF(COUNTIF($AA75:BA75,$P75+$Q75)<$R75,$P75+$Q75,0)","v":0},{"$f":"IF(COUNTIF($AA75:BB75,$P75+$Q75)<$R75,$P75+$Q75,0)","v":0},{"$f":"IF(COUNTIF($AA75:BC75,$P75+$Q75)<$R75,$P75+$Q75,0)","v":0},{"$f":"IF(COUNTIF($AA75:BD75,$P75+$Q75)<$R75,$P75+$Q75,0)","v":0},{"$f":"IF(COUNTIF($AA75:BE75,$P75+$Q75)<$R75,$P75+$Q75,0)","v":0},{"$f":"IF(COUNTIF($AA75:BF75,$P75+$Q75)<$R75,$P75+$Q75,0)","v":0},{"$f":"IF(COUNTIF($AA75:BG75,$P75+$Q75)<$R75,$P75+$Q75,0)","v":0},{"$f":"IF(COUNTIF($AA75:BH75,$P75+$Q75)<$R75,$P75+$Q75,0)","v":0},{"$f":"IF(COUNTIF($AA75:BI75,$P75+$Q75)<$R75,$P75+$Q75,0)","v":0},{"$f":"IF(COUNTIF($AA75:BJ75,$P75+$Q75)<$R75,$P75+$Q75,0)","v":0},{"$f":"IF(COUNTIF($AA75:BK75,$P75+$Q75)<$R75,$P75+$Q75,0)","v":0},{"$f":"IF(COUNTIF($AA75:BL75,$P75+$Q75)<$R75,$P75+$Q75,0)","v":0},{"$f":"IF(COUNTIF($AA75:BM75,$P75+$Q75)<$R75,$P75+$Q75,0)","v":0},-0.3]
[0,0,{"$f":"COUNTIF(P4Pindices!$A$8:$A$9,INDEX('Measure Descriptions'!$D$7:$D$31,MATCH('Measure Simulation'!E76,'Measure Descriptions'!$C$7:$C$31,0),1))","v":0},23,{"$f":"IF('Measure Descriptions'!C29=0,\" \",'Measure Descriptions'!C29)","v":" "},0,0,0,0,0,0,0,0,0,0,0,0,{"$f":"'Measure Descriptions'!AA29","v":0},0,0,0,null,null,null,null,0,0,0,{"$f":"IF(COUNTIF($AA76:AB76,$P76+$Q76)<$R76,$P76+$Q76,0)","v":0},{"$f":"IF(COUNTIF($AA76:AC76,$P76+$Q76)<$R76,$P76+$Q76,0)","v":0},{"$f":"IF(COUNTIF($AA76:AD76,$P76+$Q76)<$R76,$P76+$Q76,0)","v":0},{"$f":"IF(COUNTIF($AA76:AE76,$P76+$Q76)<$R76,$P76+$Q76,0)","v":0},{"$f":"IF(COUNTIF($AA76:AF76,$P76+$Q76)<$R76,$P76+$Q76,0)","v":0},{"$f":"IF(COUNTIF($AA76:AG76,$P76+$Q76)<$R76,$P76+$Q76,0)","v":0},{"$f":"IF(COUNTIF($AA76:AH76,$P76+$Q76)<$R76,$P76+$Q76,0)","v":0},{"$f":"IF(COUNTIF($AA76:AI76,$P76+$Q76)<$R76,$P76+$Q76,0)","v":0},{"$f":"IF(COUNTIF($AA76:AJ76,$P76+$Q76)<$R76,$P76+$Q76,0)","v":0},{"$f":"IF(COUNTIF($AA76:AK76,$P76+$Q76)<$R76,$P76+$Q76,0)","v":0},{"$f":"IF(COUNTIF($AA76:AL76,$P76+$Q76)<$R76,$P76+$Q76,0)","v":0},{"$f":"IF(COUNTIF($AA76:AM76,$P76+$Q76)<$R76,$P76+$Q76,0)","v":0},{"$f":"IF(COUNTIF($AA76:AN76,$P76+$Q76)<$R76,$P76+$Q76,0)","v":0},{"$f":"IF(COUNTIF($AA76:AO76,$P76+$Q76)<$R76,$P76+$Q76,0)","v":0},{"$f":"IF(COUNTIF($AA76:AP76,$P76+$Q76)<$R76,$P76+$Q76,0)","v":0},{"$f":"IF(COUNTIF($AA76:AQ76,$P76+$Q76)<$R76,$P76+$Q76,0)","v":0},{"$f":"IF(COUNTIF($AA76:AR76,$P76+$Q76)<$R76,$P76+$Q76,0)","v":0},{"$f":"IF(COUNTIF($AA76:AS76,$P76+$Q76)<$R76,$P76+$Q76,0)","v":0},{"$f":"IF(COUNTIF($AA76:AT76,$P76+$Q76)<$R76,$P76+$Q76,0)","v":0},{"$f":"IF(COUNTIF($AA76:AU76,$P76+$Q76)<$R76,$P76+$Q76,0)","v":0},{"$f":"IF(COUNTIF($AA76:AV76,$P76+$Q76)<$R76,$P76+$Q76,0)","v":0},{"$f":"IF(COUNTIF($AA76:AW76,$P76+$Q76)<$R76,$P76+$Q76,0)","v":0},{"$f":"IF(COUNTIF($AA76:AX76,$P76+$Q76)<$R76,$P76+$Q76,0)","v":0},{"$f":"IF(COUNTIF($AA76:AY76,$P76+$Q76)<$R76,$P76+$Q76,0)","v":0},{"$f":"IF(COUNTIF($AA76:AZ76,$P76+$Q76)<$R76,$P76+$Q76,0)","v":0},{"$f":"IF(COUNTIF($AA76:BA76,$P76+$Q76)<$R76,$P76+$Q76,0)","v":0},{"$f":"IF(COUNTIF($AA76:BB76,$P76+$Q76)<$R76,$P76+$Q76,0)","v":0},{"$f":"IF(COUNTIF($AA76:BC76,$P76+$Q76)<$R76,$P76+$Q76,0)","v":0},{"$f":"IF(COUNTIF($AA76:BD76,$P76+$Q76)<$R76,$P76+$Q76,0)","v":0},{"$f":"IF(COUNTIF($AA76:BE76,$P76+$Q76)<$R76,$P76+$Q76,0)","v":0},{"$f":"IF(COUNTIF($AA76:BF76,$P76+$Q76)<$R76,$P76+$Q76,0)","v":0},{"$f":"IF(COUNTIF($AA76:BG76,$P76+$Q76)<$R76,$P76+$Q76,0)","v":0},{"$f":"IF(COUNTIF($AA76:BH76,$P76+$Q76)<$R76,$P76+$Q76,0)","v":0},{"$f":"IF(COUNTIF($AA76:BI76,$P76+$Q76)<$R76,$P76+$Q76,0)","v":0},{"$f":"IF(COUNTIF($AA76:BJ76,$P76+$Q76)<$R76,$P76+$Q76,0)","v":0},{"$f":"IF(COUNTIF($AA76:BK76,$P76+$Q76)<$R76,$P76+$Q76,0)","v":0},{"$f":"IF(COUNTIF($AA76:BL76,$P76+$Q76)<$R76,$P76+$Q76,0)","v":0},{"$f":"IF(COUNTIF($AA76:BM76,$P76+$Q76)<$R76,$P76+$Q76,0)","v":0},-0.3]
[0,0,{"$f":"COUNTIF(P4Pindices!$A$8:$A$9,INDEX('Measure Descriptions'!$D$7:$D$31,MATCH('Measure Simulation'!E77,'Measure Descriptions'!$C$7:$C$31,0),1))","v":0},24,{"$f":"IF('Measure Descriptions'!C30=0,\" \",'Measure Descriptions'!C30)","v":" "},0,0,0,0,0,0,0,0,0,0,0,0,{"$f":"'Measure Descriptions'!AA30","v":0},0,0,0,null,null,null,null,0,0,0,{"$f":"IF(COUNTIF($AA77:AB77,$P77+$Q77)<$R77,$P77+$Q77,0)","v":0},{"$f":"IF(COUNTIF($AA77:AC77,$P77+$Q77)<$R77,$P77+$Q77,0)","v":0},{"$f":"IF(COUNTIF($AA77:AD77,$P77+$Q77)<$R77,$P77+$Q77,0)","v":0},{"$f":"IF(COUNTIF($AA77:AE77,$P77+$Q77)<$R77,$P77+$Q77,0)","v":0},{"$f":"IF(COUNTIF($AA77:AF77,$P77+$Q77)<$R77,$P77+$Q77,0)","v":0},{"$f":"IF(COUNTIF($AA77:AG77,$P77+$Q77)<$R77,$P77+$Q77,0)","v":0},{"$f":"IF(COUNTIF($AA77:AH77,$P77+$Q77)<$R77,$P77+$Q77,0)","v":0},{"$f":"IF(COUNTIF($AA77:AI77,$P77+$Q77)<$R77,$P77+$Q77,0)","v":0},{"$f":"IF(COUNTIF($AA77:AJ77,$P77+$Q77)<$R77,$P77+$Q77,0)","v":0},{"$f":"IF(COUNTIF($AA77:AK77,$P77+$Q77)<$R77,$P77+$Q77,0)","v":0},{"$f":"IF(COUNTIF($AA77:AL77,$P77+$Q77)<$R77,$P77+$Q77,0)","v":0},{"$f":"IF(COUNTIF($AA77:AM77,$P77+$Q77)<$R77,$P77+$Q77,0)","v":0},{"$f":"IF(COUNTIF($AA77:AN77,$P77+$Q77)<$R77,$P77+$Q77,0)","v":0},{"$f":"IF(COUNTIF($AA77:AO77,$P77+$Q77)<$R77,$P77+$Q77,0)","v":0},{"$f":"IF(COUNTIF($AA77:AP77,$P77+$Q77)<$R77,$P77+$Q77,0)","v":0},{"$f":"IF(COUNTIF($AA77:AQ77,$P77+$Q77)<$R77,$P77+$Q77,0)","v":0},{"$f":"IF(COUNTIF($AA77:AR77,$P77+$Q77)<$R77,$P77+$Q77,0)","v":0},{"$f":"IF(COUNTIF($AA77:AS77,$P77+$Q77)<$R77,$P77+$Q77,0)","v":0},{"$f":"IF(COUNTIF($AA77:AT77,$P77+$Q77)<$R77,$P77+$Q77,0)","v":0},{"$f":"IF(COUNTIF($AA77:AU77,$P77+$Q77)<$R77,$P77+$Q77,0)","v":0},{"$f":"IF(COUNTIF($AA77:AV77,$P77+$Q77)<$R77,$P77+$Q77,0)","v":0},{"$f":"IF(COUNTIF($AA77:AW77,$P77+$Q77)<$R77,$P77+$Q77,0)","v":0},{"$f":"IF(COUNTIF($AA77:AX77,$P77+$Q77)<$R77,$P77+$Q77,0)","v":0},{"$f":"IF(COUNTIF($AA77:AY77,$P77+$Q77)<$R77,$P77+$Q77,0)","v":0},{"$f":"IF(COUNTIF($AA77:AZ77,$P77+$Q77)<$R77,$P77+$Q77,0)","v":0},{"$f":"IF(COUNTIF($AA77:BA77,$P77+$Q77)<$R77,$P77+$Q77,0)","v":0},{"$f":"IF(COUNTIF($AA77:BB77,$P77+$Q77)<$R77,$P77+$Q77,0)","v":0},{"$f":"IF(COUNTIF($AA77:BC77,$P77+$Q77)<$R77,$P77+$Q77,0)","v":0},{"$f":"IF(COUNTIF($AA77:BD77,$P77+$Q77)<$R77,$P77+$Q77,0)","v":0},{"$f":"IF(COUNTIF($AA77:BE77,$P77+$Q77)<$R77,$P77+$Q77,0)","v":0},{"$f":"IF(COUNTIF($AA77:BF77,$P77+$Q77)<$R77,$P77+$Q77,0)","v":0},{"$f":"IF(COUNTIF($AA77:BG77,$P77+$Q77)<$R77,$P77+$Q77,0)","v":0},{"$f":"IF(COUNTIF($AA77:BH77,$P77+$Q77)<$R77,$P77+$Q77,0)","v":0},{"$f":"IF(COUNTIF($AA77:BI77,$P77+$Q77)<$R77,$P77+$Q77,0)","v":0},{"$f":"IF(COUNTIF($AA77:BJ77,$P77+$Q77)<$R77,$P77+$Q77,0)","v":0},{"$f":"IF(COUNTIF($AA77:BK77,$P77+$Q77)<$R77,$P77+$Q77,0)","v":0},{"$f":"IF(COUNTIF($AA77:BL77,$P77+$Q77)<$R77,$P77+$Q77,0)","v":0},{"$f":"IF(COUNTIF($AA77:BM77,$P77+$Q77)<$R77,$P77+$Q77,0)","v":0},-0.3]
[0,0,{"$f":"COUNTIF(P4Pindices!$A$8:$A$9,INDEX('Measure Descriptions'!$D$7:$D$31,MATCH('Measure Simulation'!E78,'Measure Descriptions'!$C$7:$C$31,0),1))","v":0},25,{"$f":"IF('Measure Descriptions'!C31=0,\" \",'Measure Descriptions'!C31)","v":" "},0,0,0,0,0,0,0,0,0,0,0,0,{"$f":"'Measure Descriptions'!AA31","v":0},0,0,0,null,null,null,null,0,0,0,{"$f":"IF(COUNTIF($AA78:AB78,$P78+$Q78)<$R78,$P78+$Q78,0)","v":0},{"$f":"IF(COUNTIF($AA78:AC78,$P78+$Q78)<$R78,$P78+$Q78,0)","v":0},{"$f":"IF(COUNTIF($AA78:AD78,$P78+$Q78)<$R78,$P78+$Q78,0)","v":0},{"$f":"IF(COUNTIF($AA78:AE78,$P78+$Q78)<$R78,$P78+$Q78,0)","v":0},{"$f":"IF(COUNTIF($AA78:AF78,$P78+$Q78)<$R78,$P78+$Q78,0)","v":0},{"$f":"IF(COUNTIF($AA78:AG78,$P78+$Q78)<$R78,$P78+$Q78,0)","v":0},{"$f":"IF(COUNTIF($AA78:AH78,$P78+$Q78)<$R78,$P78+$Q78,0)","v":0},{"$f":"IF(COUNTIF($AA78:AI78,$P78+$Q78)<$R78,$P78+$Q78,0)","v":0},{"$f":"IF(COUNTIF($AA78:AJ78,$P78+$Q78)<$R78,$P78+$Q78,0)","v":0},{"$f":"IF(COUNTIF($AA78:AK78,$P78+$Q78)<$R78,$P78+$Q78,0)","v":0},{"$f":"IF(COUNTIF($AA78:AL78,$P78+$Q78)<$R78,$P78+$Q78,0)","v":0},{"$f":"IF(COUNTIF($AA78:AM78,$P78+$Q78)<$R78,$P78+$Q78,0)","v":0},{"$f":"IF(COUNTIF($AA78:AN78,$P78+$Q78)<$R78,$P78+$Q78,0)","v":0},{"$f":"IF(COUNTIF($AA78:AO78,$P78+$Q78)<$R78,$P78+$Q78,0)","v":0},{"$f":"IF(COUNTIF($AA78:AP78,$P78+$Q78)<$R78,$P78+$Q78,0)","v":0},{"$f":"IF(COUNTIF($AA78:AQ78,$P78+$Q78)<$R78,$P78+$Q78,0)","v":0},{"$f":"IF(COUNTIF($AA78:AR78,$P78+$Q78)<$R78,$P78+$Q78,0)","v":0},{"$f":"IF(COUNTIF($AA78:AS78,$P78+$Q78)<$R78,$P78+$Q78,0)","v":0},{"$f":"IF(COUNTIF($AA78:AT78,$P78+$Q78)<$R78,$P78+$Q78,0)","v":0},{"$f":"IF(COUNTIF($AA78:AU78,$P78+$Q78)<$R78,$P78+$Q78,0)","v":0},{"$f":"IF(COUNTIF($AA78:AV78,$P78+$Q78)<$R78,$P78+$Q78,0)","v":0},{"$f":"IF(COUNTIF($AA78:AW78,$P78+$Q78)<$R78,$P78+$Q78,0)","v":0},{"$f":"IF(COUNTIF($AA78:AX78,$P78+$Q78)<$R78,$P78+$Q78,0)","v":0},{"$f":"IF(COUNTIF($AA78:AY78,$P78+$Q78)<$R78,$P78+$Q78,0)","v":0},{"$f":"IF(COUNTIF($AA78:AZ78,$P78+$Q78)<$R78,$P78+$Q78,0)","v":0},{"$f":"IF(COUNTIF($AA78:BA78,$P78+$Q78)<$R78,$P78+$Q78,0)","v":0},{"$f":"IF(COUNTIF($AA78:BB78,$P78+$Q78)<$R78,$P78+$Q78,0)","v":0},{"$f":"IF(COUNTIF($AA78:BC78,$P78+$Q78)<$R78,$P78+$Q78,0)","v":0},{"$f":"IF(COUNTIF($AA78:BD78,$P78+$Q78)<$R78,$P78+$Q78,0)","v":0},{"$f":"IF(COUNTIF($AA78:BE78,$P78+$Q78)<$R78,$P78+$Q78,0)","v":0},{"$f":"IF(COUNTIF($AA78:BF78,$P78+$Q78)<$R78,$P78+$Q78,0)","v":0},{"$f":"IF(COUNTIF($AA78:BG78,$P78+$Q78)<$R78,$P78+$Q78,0)","v":0},{"$f":"IF(COUNTIF($AA78:BH78,$P78+$Q78)<$R78,$P78+$Q78,0)","v":0},{"$f":"IF(COUNTIF($AA78:BI78,$P78+$Q78)<$R78,$P78+$Q78,0)","v":0},{"$f":"IF(COUNTIF($AA78:BJ78,$P78+$Q78)<$R78,$P78+$Q78,0)","v":0},{"$f":"IF(COUNTIF($AA78:BK78,$P78+$Q78)<$R78,$P78+$Q78,0)","v":0},{"$f":"IF(COUNTIF($AA78:BL78,$P78+$Q78)<$R78,$P78+$Q78,0)","v":0},{"$f":"IF(COUNTIF($AA78:BM78,$P78+$Q78)<$R78,$P78+$Q78,0)","v":0},-0.3]
[1,null,null,"CM Fees",null,0,"Overall project management, all fees associated with specific measures should be noted above."]
[1,null,null,"Partner Fees",null,0,"Per Partner Contract "]
[1,null,null,"TOTALS",null,{"$f":"SUM(F54:F80)","v":0},{"$f":"SUM(G54:G78)","v":0},{"$f":"SUM(H54:H78)","v":0},{"$f":"SUM(I54:I78)","v":0},{"$f":"SUM(J54:J78)","v":0},0,{"$f":"SUM(L54:L78)","v":0},0,0,0,0,0,{"$f":"IF(R54=0,0,(SUMPRODUCT(F54:F78,R54:R78)/F81))","v":0},{"$f":"IF(Q81=0,0,F81/(P81+Q81))","v":0},{"$f":"SUM(T54:T78)-F79-F80","v":0},{"$f":"IF(Q81=0,0,IRR(Z81:BN81,BO81))","v":0},null,null,null,null,{"$f":"-F81","v":0},{"$f":"SUM(AA54:AA78)","v":0},{"$f":"SUM(AB54:AB78)","v":0},{"$f":"SUM(AC54:AC78)","v":0},0,0,0,0,0,0,0,0,0,0,0,0,0,0,0,0,0,0,0,0,0,0,0,0,0,0,0,0,0,0,0,0,0,0,0,0,{"$f":"SUM(BN54:BN78)","v":0},{"$f":"IF(Q81*R81>F81,0.3,-0.3)","v":-0.3}]
[]
[]
[null,null,null,null,null,null,null,null,null,null,null,null,null,null,null,null,null,null,null,null,null,null,null,null,null,null,"Discount Rate =",0.03]
[]
[]
[]
[]
[]
[]
[]
[]
[]
[]
[]
[]
[]
[]
[]
[]
[]
[]
[]
[]
[]
[]
[]
[]
[]
[]
[]
[]
[]
[]
[]
[]
[]
[]
[]
[]
[]
[]
[]
[]
[]
[]
[]
[]
[]
[]
[]
[]
[]
[]
[]
[]
[]
[]
[]
[null,null,null,null,null,null,null,null,null,null,null,null,null,null,null,null,null,null,null,null,null,"<Select Fuel Type>"]
[null,null,null,null,null,null,null,null,null,null,null,null,null,null,null,null,null,null,null,null,null,"Oil #2"]
[null,null,null,null,null,null,null,null,null,null,null,null,null,null,null,null,null,null,null,null,null,"Oil #4"]
[null,null,null,null,null,null,null,null,null,null,null,null,null,null,null,null,null,null,null,null,null,"Oil #6"]
[null,null,null,null,null,null,null,null,null,null,null,null,null,null,null,null,null,null,null,null,null,"Propane"]
[]
[null,null,null,null,null,null,null,null,null,null,null,null,null,null,null,null,null,null,null,null,null,"<Select Units>"]
[null,null,null,null,null,null,null,null,null,null,null,null,null,null,null,null,null,null,null,null,null,"MMBtu"]
[null,null,null,null,null,null,null,null,null,null,null,null,null,null,null,null,null,null,null,null,null,"Gallons"]

{"sheet":"Results from Trace","index":32,"n_rows":5,"n_cols":29,"rows_kept":5,"cut":false,"hidden":true,"merged":[[2,0,2,9]]}
["Results from Trace Energy Cost Budget File(s)"]
["Instructions"]
["1) Open Trace ECB file(s) that include results for baseline and proposed models and all ECMs for this project.\n2) Copy end uses and associated affected fuel types from an ECB file (columns A and B from row 4 to the \"Total Building Consumption\" line item) and paste into columns A and B below.  \n3) Copy baseline run Energy 10˄6 Btu/yr column from the appropriate ECB file and paste into column C below.\n4) Copy proposed run Energy 10˄6 Btu/yr column from the approrpriate ECB file and paste into column D below.  This should represent the building with all measures included.\n5) Copy ECM run Energy 10˄6 Btu/yr columns that correspond to each ECM. including final run from Step 4, from the appropriate ECB file(s) and paste into columns E - AC (leave un-needed columns blank).  Do not include the baseline run.\n6) Click the \"Update ECB Data for Measure Simulation\" button to normalize end uses to CBECS designations.\n       "]
[]
["END USES (COL A)","AFFECTED FUELS (COL B)","BASELINE \n(Energy 10˄6 Btu/yr)","PROPOSED \n(Energy 10˄6 Btu/yr)","ECM 1\n(Energy 10˄6 Btu/yr)","ECM 2\n(Energy 10˄6 Btu/yr)","ECM 3\n(Energy 10˄6 Btu/yr)","ECM 4\n(Energy 10˄6 Btu/yr)","ECM 5\n(Energy 10˄6 Btu/yr)","ECM 6\n(Energy 10˄6 Btu/yr)","ECM 7\n(Energy 10˄6 Btu/yr)","ECM 8\n(Energy 10˄6 Btu/yr)","ECM 9\n(Energy 10˄6 Btu/yr)","ECM 10\n(Energy 10˄6 Btu/yr)","ECM 11\n(Energy 10˄6 Btu/yr)","ECM 12\n(Energy 10˄6 Btu/yr)","ECM 13\n(Energy 10˄6 Btu/yr)","ECM 14\n(Energy 10˄6 Btu/yr)","ECM15\n(Energy 10˄6 Btu/yr)","ECM 16\n(Energy 10˄6 Btu/yr)","ECM 17\n(Energy 10˄6 Btu/yr)","ECM 18\n(Energy 10˄6 Btu/yr)","ECM 19\n(Energy 10˄6 Btu/yr)","ECM 20\n(Energy 10˄6 Btu/yr)","ECM 21\n(Energy 10˄6 Btu/yr)","ECM 22\n(Energy 10˄6 Btu/yr)","ECM 23\n(Energy 10˄6 Btu/yr)","ECM24\n(Energy 10˄6 Btu/yr)","ECM 25\n(Energy 10˄6 Btu/yr)"]

{"sheet":"Results from eQUEST","index":33,"n_rows":32,"n_cols":76,"rows_kept":32,"cut":false,"hidden":true,"merged":[[4,66,4,69],[4,70,4,75],[2,0,2,10],[4,11,4,23],[4,24,4,35],[4,36,4,48],[4,49,4,61],[4,62,4,63],[4,64,4,65]]}
["Results from eQUEST Parms.csv File(s)"]
["Instructions"]
["1) Open Parms.csv file(s) that include results for baseline and proposed models and all ECMs for this project.\n2) Copy baseline run from the appropriate Parms.csv file and paste values into row 7 below.\n3) Copy proposed run from the approrpriate Parms.csv file and paste values into row 8 below.  This should represent the building with all measures included.\n4) Copy runs that correspond to each ECM from the appropriate Parms.csv file(s), including final run from Step 3, and paste into rows 9-32 (leave un-needed rows blank).  Do not include the baseline run.\n       "]
[]
[null,null,null,null,null,null,null,null,null,null,null,"Electric Usage:",null,null,null,null,null,null,null,null,null,null,null,null,"Non-Coincident Peak Demand:",null,null,null,null,null,null,null,null,null,null,null,"Coincident Peak Demand:",null,null,null,null,null,null,null,null,null,null,null,null,"Fuel Usage:",null,null,null,null,null,null,null,null,null,null,null,null,"Source Energy:",null,"TDV Energy:",null,"Annual Utility Costs:",null,null,null,"Hours Outside Throttling Range:"]
["Run Type","Internal Loads","Case #s","Short Name","Carry Fwd","Incremental First Cost ($)","Incremental Annual Maint. ($)","Date & Time of Run","File Name","Case Description","SS-D\nPeak Cooling Coil Load\nkBtu","PS-E\nAmbient Lights\nkWh","PS-E\nTask Lights\nkWh","PS-E\nMisc Equip\nkWh","PS-E\nSpace Heating\nkWh","PS-E\nSpace Cooling\nkWh","PS-E\nHeat Reject\nkWh","PS-E\nPumps & Aux\nkWh","PS-E\nVentilation Fans\nkWh","PS-E\nRefrig Display\nkWh","PS-E\nHeat Pump Supplement\nkWh","PS-E\nDomestic Hot Water\nkWh","PS-E\nExterior Usage\nkWh","PS-E\nTotal\nkWh","PS-E\nAmbient Lights\nkW","PS-E\nTask Lights\nkW","PS-E\nMisc Equip\nkW","PS-E\nSpace Heating\nkW","PS-E\nSpace Cooling\nkW","PS-E\nHeat Reject\nkW","PS-E\nPumps & Aux\nkW","PS-E\nVentilation Fans\nkW","PS-E\nRefrig Display\nkW","PS-E\nHeat Pump Supplement\nkW","PS-E\nDomestic Hot Water\nkW","PS-E\nExterior Usage\nkW","PS-E\nAmbient Lights\nkW","PS-E\nTask Lights\nkW","PS-E\nMisc Equip\nkW","PS-E\nSpace Heating\nkW","PS-E\nSpace Cooling\nkW","PS-E\nHeat Reject\nkW","PS-E\nPumps & Aux\nkW","PS-E\nVentilation Fans\nkW","PS-E\nRefrig Display\nkW","PS-E\nHeat Pump Supplement\nkW","PS-E\nDomestic Hot Water\nkW","PS-E\nExterior Usage\nkW","PS-E\nBldg Total\nkW","PS-E\nAmbient Lights\nTherms","PS-E\nTask Lights\nTherms","PS-E\nMisc Equip\nTherms","PS-E\nSpace Heating\nTherms","PS-E\nSpace Cooling\nTherms","PS-E\nHeat Reject\nTherms","PS-E\nPumps & Aux\nTherms","PS-E\nVentilation Fans\nTherms","PS-E\nRefrig Display\nTherms","PS-E\nHeat Pump Supplement\nTherms","PS-E\nDomestic Hot Water\nTherms","PS-E\nExterior Usage\nTherms","PS-E\nTotal\nTherms","BEPS\nBldg Energy\nMbtu","BEPS\nBldg EUI\nkBtu/sf/yr","TDV1\nBldg Energy\nTDV-Mbtu","TDV1\nBldg EUI\nTDV-kBtu/sf/yr","ES-E\nTotal Electric\n$","ES-E\nTotal Fuel\n$","ES-E\nElectric kWh\n$","ES-E\nElectric kW\n$","BEPS\nZone Outsd Thrtlng Rng\n% hrs","BEPS\nPlant Ld Not Met\n% hrs","SS-E\nHours Fan On\n# hrs","\nZone Outsd Thrtlng Rng\n# hrs","BEPS\nCool Loads Not Met\n# hrs","BEPS\nHeat Loads Not Met\n# hrs"]
["<Paste Baseline Run Here>"]
["<Paste Proposed Run Here>"]
["<Paste ECM Run Here>"]
["<Paste ECM Run Here>"]
["<Paste ECM Run Here>"]
["<Paste ECM Run Here>"]
["<Paste ECM Run Here>"]
["<Paste ECM Run Here>"]
["<Paste ECM Run Here>"]
["<Paste ECM Run Here>"]
["<Paste ECM Run Here>"]
["<Paste ECM Run Here>"]
["<Paste ECM Run Here>"]
["<Paste ECM Run Here>"]
["<Paste ECM Run Here>"]
["<Paste ECM Run Here>"]
["<Paste ECM Run Here>"]
["<Paste ECM Run Here>"]
["<Paste ECM Run Here>"]
["<Paste ECM Run Here>"]
["<Paste ECM Run Here>"]
["<Paste ECM Run Here>"]
["<Paste ECM Run Here>"]
["<Paste ECM Run Here>"]
["<Paste ECM Run Here>"]
["<Paste ECM Run Here>"]

{"sheet":"Implementation & Financing","index":34,"n_rows":45,"n_cols":6,"rows_kept":45,"cut":false,"hidden":false,"merged":[[17,1,17,5],[19,1,19,2],[0,11,0,12],[10,0,12,0],[4,1,4,2],[5,1,5,2],[6,1,6,2],[7,1,7,2],[9,1,9,2],[10,1,10,2],[11,1,11,2],[12,1,12,2],[13,1,13,2],[14,1,14,2],[2,1,2,5]]}
[1,"Implementation & Financing Plan"]
[1,"Instructions"]
[1,"1) Enter funding sources, amounts, and dates committed or requested for all funding (e.g. owner capital, performance contract, loan, federal grant, etc.)\n2) Multi-year sources of funding, such as federal depreciation credits, should be entered  as a single value using Net Present Value (NPV).\n3) Total Costs must equal Total Funding \n4) Note: Measures under this program cannot be funded from both Pay for Performance and other SBC-funded programs (including most utility programs and other NJCEP programs). See Program Guidelines v4.2, Sections 2.4 and 3.5 for additional guidance."]
[1]
[1,"Total Cost of Improvements",null,{"$f":"'Measure Simulation'!F81-'Measure Simulation'!F80-'Measure Simulation'!F79","v":0}]
[1,"Construction Management Fees",null,{"$f":"'Measure Simulation'!F79","v":0}]
[1,"P4P Partner Fees",null,{"$f":"'Measure Simulation'!F80","v":0}]
[1,"TOTAL COSTS",null,{"$f":"ROUND(SUM(D5:D7),0)","v":0}]
[1]
[1,"Anticipated NJOCE Incentives",null,{"$f":"SUM('Project Summary & Incentives'!C53:C55)","v":0},"Committed  or Requested"]
[1," <Enter funding source>",null,0]
[null," <Enter funding source>",null,0]
[null," <Enter funding source>",null,0]
[1," <Enter funding source>",null,0]
[1,"TOTAL FUNDING",null,{"$f":"ROUND(SUM(D10:D14),0)","v":0},null,{"$f":"IFERROR(IF(D15=D8,\"\",\"<------- Total Funding must equal Total Costs.  Please revise funding data.\"),\"\")","v":""}]
[1]
[1]
[1,"1) Select the appropriate delivery method for each measure from the drop down menu. \n2) Enter approximate start and end dates for installation of each measure. See Program Guidelines v4.2, Sections 2.5, 3.6, and 5 for additional guidance. "]
[1]
[1,"Measure",null,"Delivery Method","Estimated Construction Start","Estimated Completion Date"]
[{"$f":"IF(C21=\" \",0,1)","v":0},{"$f":"'Measure Descriptions'!B7","v":1},{"$f":"IF('Measure Descriptions'!C7=0,\" \",'Measure Descriptions'!C7)","v":" "}]
[{"$f":"IF(C22=\" \",0,1)","v":0},{"$f":"'Measure Descriptions'!B8","v":2},{"$f":"IF('Measure Descriptions'!C8=0,\" \",'Measure Descriptions'!C8)","v":" "}]
[0,{"$f":"'Measure Descriptions'!B9","v":3},{"$f":"IF('Measure Descriptions'!C9=0,\" \",'Measure Descriptions'!C9)","v":" "}]
[0,{"$f":"'Measure Descriptions'!B10","v":4},{"$f":"IF('Measure Descriptions'!C10=0,\" \",'Measure Descriptions'!C10)","v":" "}]
[0,{"$f":"'Measure Descriptions'!B11","v":5},{"$f":"IF('Measure Descriptions'!C11=0,\" \",'Measure Descriptions'!C11)","v":" "}]
[0,{"$f":"'Measure Descriptions'!B12","v":6},{"$f":"IF('Measure Descriptions'!C12=0,\" \",'Measure Descriptions'!C12)","v":" "}]
[0,{"$f":"'Measure Descriptions'!B13","v":7},{"$f":"IF('Measure Descriptions'!C13=0,\" \",'Measure Descriptions'!C13)","v":" "}]
[0,{"$f":"'Measure Descriptions'!B14","v":8},{"$f":"IF('Measure Descriptions'!C14=0,\" \",'Measure Descriptions'!C14)","v":" "}]
[0,{"$f":"'Measure Descriptions'!B15","v":9},{"$f":"IF('Measure Descriptions'!C15=0,\" \",'Measure Descriptions'!C15)","v":" "}]
[0,{"$f":"'Measure Descriptions'!B16","v":10},{"$f":"IF('Measure Descriptions'!C16=0,\" \",'Measure Descriptions'!C16)","v":" "}]
[0,{"$f":"'Measure Descriptions'!B17","v":11},{"$f":"IF('Measure Descriptions'!C17=0,\" \",'Measure Descriptions'!C17)","v":" "}]
[0,{"$f":"'Measure Descriptions'!B18","v":12},{"$f":"IF('Measure Descriptions'!C18=0,\" \",'Measure Descriptions'!C18)","v":" "}]
[0,{"$f":"'Measure Descriptions'!B19","v":13},{"$f":"IF('Measure Descriptions'!C19=0,\" \",'Measure Descriptions'!C19)","v":" "}]
[0,{"$f":"'Measure Descriptions'!B20","v":14},{"$f":"IF('Measure Descriptions'!C20=0,\" \",'Measure Descriptions'!C20)","v":" "}]
[0,{"$f":"'Measure Descriptions'!B21","v":15},{"$f":"IF('Measure Descriptions'!C21=0,\" \",'Measure Descriptions'!C21)","v":" "}]
[0,{"$f":"'Measure Descriptions'!B22","v":16},{"$f":"IF('Measure Descriptions'!C22=0,\" \",'Measure Descriptions'!C22)","v":" "}]
[0,{"$f":"'Measure Descriptions'!B23","v":17},{"$f":"IF('Measure Descriptions'!C23=0,\" \",'Measure Descriptions'!C23)","v":" "}]
[0,{"$f":"'Measure Descriptions'!B24","v":18},{"$f":"IF('Measure Descriptions'!C24=0,\" \",'Measure Descriptions'!C24)","v":" "}]
[0,{"$f":"'Measure Descriptions'!B25","v":19},{"$f":"IF('Measure Descriptions'!C25=0,\" \",'Measure Descriptions'!C25)","v":" "}]
[0,{"$f":"'Measure Descriptions'!B26","v":20},{"$f":"IF('Measure Descriptions'!C26=0,\" \",'Measure Descriptions'!C26)","v":" "}]
[0,{"$f":"'Measure Descriptions'!B27","v":21},{"$f":"IF('Measure Descriptions'!C27=0,\" \",'Measure Descriptions'!C27)","v":" "}]
[0,{"$f":"'Measure Descriptions'!B28","v":22},{"$f":"IF('Measure Descriptions'!C28=0,\" \",'Measure Descriptions'!C28)","v":" "}]
[0,{"$f":"'Measure Descriptions'!B29","v":23},{"$f":"IF('Measure Descriptions'!C29=0,\" \",'Measure Descriptions'!C29)","v":" "}]
[0,{"$f":"'Measure Descriptions'!B30","v":24},{"$f":"IF('Measure Descriptions'!C30=0,\" \",'Measure Descriptions'!C30)","v":" "}]
[0,{"$f":"'Measure Descriptions'!B31","v":25},{"$f":"IF('Measure Descriptions'!C31=0,\" \",'Measure Descriptions'!C31)","v":" "}]

{"sheet":"Project Summary & Incentives","index":35,"n_rows":121,"n_cols":13,"rows_kept":121,"cut":false,"hidden":false,"merged":[[2,1,2,6]]}
[1,"Summary of P4P Program Metrics & Incentives"]
[1,"Instructions"]
[1,"Please note that although all fuel types will count towards the Source Energy Reduction % (cell E14), incentives will only be paid for Investor-Owned utility electricity and natural gas savings. If this is a project performing a fuel switch from oil and/or propane, incentives will also be paid for oil and/or propane savings (see Program Guidelines v4.1, Section 4.6.3.13). In order to claim incentives for other fuel types, such as steam, hot water, chilled water, etc., those savings must be traced back to natural gas, electricity, or oil/propane savings (fuel switch project). Please consult with Market Manager. Additionally, at least 50% of total savings, 100,000 kWh, or 2,000 therms whichever is less must come from electricity or natural gas purchased from an Investor-Owned utility (see Program Guidelines v4.2, Section 2.3). "]
[1]
[1,"*\n*\n*","Annual Consumption","Projected Savings","% Savings",null,null,"Pre-Retrofit Consumption ","Pre-Retrofit Consumption  (kBtu)","Pre-Retrofit Annual Cost","Post-Retrofit Consumption ","Post-Retrofit Consumption  (kBtu)","Post-Retrofit Annual Cost"]
[1,"Electricity (kBtu)",{"$f":"'Utility Use Summary'!D8*3.412","v":0},{"$f":"'Measure Simulation'!$G$81*3.412","v":0},{"$f":"IF(C6=0,0,D6/C6)","v":0},null,"Electricity (kWh)",{"$f":"$C$6/3.412","v":0},{"$f":"C6","v":0},{"$f":"'Utility Use Summary'!$D$10","v":0},{"$f":"(C6-D6)/3.412","v":0},{"$f":"C6-D6","v":0},{"$f":"IFERROR(J6/I6*L6,0)","v":0}]
[{"$f":"IF(OR('Utility Info'!D12=\"Yes\",'General Project Information'!E39=\"Yes\")=TRUE,1,IF(N(C7)=0,0,1))","v":0},"Natural Gas (kBtu)",{"$f":"'Utility Use Summary'!H8*1000","v":0},{"$f":"'Measure Simulation'!$H$81*1000","v":0},0,null,"Natural Gas (Therm)",{"$f":"$C$7/100","v":0},{"$f":"C7","v":0},{"$f":"'Utility Use Summary'!$G$10","v":0},{"$f":"(C7-D7)/100","v":0},{"$f":"C7-D7","v":0},{"$f":"IF('General Project Information'!$E$39=\"Yes\", IF($C$7=0,0.0092*L7,IFERROR(J7/I7*L7,0)),IFERROR(J7/I7*L7,0))","v":0}]
[{"$f":"IF(N(C8)=0,0,1)","v":0},"District Steam (kBtu)",{"$f":"'Utility Use Summary'!N8*1000","v":0},{"$f":"'Measure Simulation'!$I$81*1000","v":0},0,null,"District Steam (MMBtu)",{"$f":"$C$8/1000","v":0},0,{"$f":"'Utility Use Summary'!$M$10","v":0},{"$f":"(C8-D8)/1000","v":0},0,{"$f":"IFERROR(J8/I8*L8,0)","v":0}]
[0,"District Hot Water (kBtu)",{"$f":"'Utility Use Summary'!R8*1000","v":0},{"$f":"'Measure Simulation'!$J$81*1000","v":0},0,null,"District Hot Water (MMBtu)",{"$f":"$C$9/1000","v":0},0,{"$f":"'Utility Use Summary'!$Q$10","v":0},{"$f":"(C9-D9)/1000","v":0},0,0]
[0,"District Chilled Water (kBtu)",{"$f":"'Utility Use Summary'!P8*1000","v":0},{"$f":"'Measure Simulation'!$K$81*1000","v":0},0,null,"District Chilled Water (MMBtu)",{"$f":"$C$10/1000","v":0},0,{"$f":"'Utility Use Summary'!$O$10","v":0},0,0,0]
[0,"Fuel Oil (kBtu)",{"$f":"'Utility Use Summary'!J8*1000","v":0},{"$f":"'Measure Simulation'!$L$81*1000","v":0},0,null,"Fuel Oil (MMBtu)",{"$f":"$C$11/1000","v":0},0,{"$f":"'Utility Use Summary'!$I$10","v":0},0,0,0]
[0,"Propane (kBtu)",{"$f":"'Utility Use Summary'!L8*1000","v":0},{"$f":"'Measure Simulation'!$M$81*1000","v":0},0,null,"Propane (MMBtu)",{"$f":"$C$12/1000","v":0},0,{"$f":"'Utility Use Summary'!$K$10","v":0},0,0,0]
[0,{"$f":"'Utility Use Summary'!S6","v":"Other"},{"$f":"'Utility Use Summary'!T8*1000","v":0},{"$f":"'Measure Simulation'!$N$81*1000","v":0},0,null,"Other Fuel Type (MMBtu)",{"$f":"$C$13/1000","v":0},0,{"$f":"'Utility Use Summary'!$S$10","v":0},0,0,{"$f":"IFERROR(J13/I13*L13,0)","v":0}]
[1,"Source Energy Use Intensity (kBtu/ft2)",{"$f":"IF('Area Identification'!$C$9=0,0,(((C6-('Utility Use Summary'!D11*1000))*3.14)+(C7*1.05)+(C8*1.2)+(C9*1.2)+(C10)+(C11*1.01)+(C12*1.01)+(C13)+('Utility Use Summary'!D11*1000))/C50)","v":0},{"$f":"IF('Area Identification'!$C$9=0,0,((D6*3.14)+(D7*1.05)+(D8*1.2)+(D9*1.2)+(D10)+(D11*1.01)+(D12*1.01)+(D13))/C50)","v":0},null,null,"Total",{"$f":"SUM(H6:H13)","v":0},0,0,0,0,0]
[1,"Source Energy Use Reduction",null,null,{"$f":"IF(C14=0,0,D14/C14)","v":0}]
[1]
[1]
[1]
[1]
[1]
[1]
[1]
[1]
[1]
[1]
[1]
[1]
[1]
[1]
[1]
[1]
[1]
[1]
[1]
[1]
[1]
[1]
[1]
[1]
[1]
[1]
[1,"Total Investment ($)",{"$f":"'Measure Simulation'!F81","v":0}]
[1,"Annual Energy Cost ($)",{"$f":"SUM('Utility Use Summary'!D10:T10)","v":0}]
[1,"Annual Cost Savings ($)",{"$f":"'Measure Simulation'!Q81","v":0}]
[1,"Internal Rate of Return (IRR)",{"$f":"'Measure Simulation'!U81","v":0}]
[1,"Life Cycle Savings",{"$f":"'Measure Simulation'!T81","v":0}]
[1,"Simple Payback (yrs)",{"$f":"'Measure Simulation'!S81","v":0}]
[1,"Simple Payback with NJCEP Incentive (yrs)",{"$f":"IF('Measure Simulation'!$Q$81=0,0,('Measure Simulation'!$F$81-SUM($C$53:$C$55))/'Measure Simulation'!$Q$81)","v":0}]
[1]
[1,"Total Project Area (sq. ft.)",{"$f":"'Area Identification'!C9","v":0}]
[1]
[1,"Incentives"]
[1,"Incentive #1",{"$f":"IF('General Project Information'!$E$47=\"Yes\",IF('General Project Information'!E37=\"No\", IF($C$50=0,0,IF(0.1*$C$50<5000,5000,IF($C$43*0.5<5000,5000,IF(0.1*$C$50>MIN('Introduction & Instructions'!$D$23,$C$43*0.5),MIN('Introduction & Instructions'!$D$23,$C$43*0.5),0.1*$C$50)))), IF($C$50=0,0,IF(0.1*$C$50<5000,5000,IF($C$43*0.5<5000,5000,IF(0.1*$C$50>MIN('Introduction & Instructions'!$D$23,$C$43*0.5),MIN('Introduction & Instructions'!$D$23,$C$43*0.5),0.1*$C$50))))*0.5),IF('General Project Information'!E37=\"No\", IF($C$50=0,0,IF('Introduction & Instructions'!$D$21*$C$50<'Introduction & Instructions'!$D$22,'Introduction & Instructions'!$D$22,IF($C$43*0.5<'Introduction & Instructions'!$D$22,'Introduction & Instructions'!$D$22,IF('Introduction & Instructions'!$D$21*$C$50>MIN('Introduction & Instructions'!$D$23,$C$43*0.5),MIN('Introduction & Instructions'!$D$23,$C$43*0.5),'Introduction & Instructions'!$D$21*$C$50)))), IF($C$50=0,0,IF('Introduction & Instructions'!$D$21*$C$50<'Introduction & Instructions'!$D$22,'Introduction & Instructions'!$D$22,IF($C$43*0.5<'Introduction & Instructions'!$D$22,'Introduction & Instructions'!$D$22,IF('Introduction & Instructions'!$D$21*$C$50>MIN('Introduction & Instructions'!$D$23,$C$43*0.5),MIN('Introduction & Instructions'!$D$23,$C$43*0.5),'Introduction & Instructions'!$D$21*$C$50))))*0.5))","v":0}]
[1,"Incentive #2",{"$f":"MIN($C$70,IF('General Project Information'!$E$39=\"Yes\",IF('General Project Information'!$E$41=\"Yes\",$C$69,$C$67),IF('General Project Information'!$E$41=\"Yes\",$C$68,$C$66)))","v":0}]
[1,"Incentive #3 (Projected)",{"$f":"MIN($C$77,IF('General Project Information'!$E$39=\"Yes\",IF('General Project Information'!$E$41=\"Yes\",$C$76,$C$74),IF('General Project Information'!$E$41=\"Yes\",$C$75,$C$73)))","v":0}]
[1]
[]
[]
[]
[]
[]
[]
[]
[]
[null,"Incentive #2 Calc"]
[null,"Regular",{"$f":"IF($E$15<'Introduction & Instructions'!$D$27,0,MIN('Introduction & Instructions'!$D$37*$C$42,($D$6/3.412)*MIN('Introduction & Instructions'!$D$30,('Introduction & Instructions'!$D$28+(100*(ROUNDDOWN($E$15,2)-'Introduction & Instructions'!$D$27)*'Introduction & Instructions'!$D$29)))+($D$7/100)*MIN('Introduction & Instructions'!$D$33,('Introduction & Instructions'!$D$31+(100*(ROUNDDOWN($E$15,2)-'Introduction & Instructions'!$D$27)*'Introduction & Instructions'!$D$32)))))","v":0}]
[null,"Fuel Switch",{"$f":"IF($E$15<'Introduction & Instructions'!$D$27,0,MIN('Introduction & Instructions'!$D$37*$C$42,($D$6/3.412)*MIN('Introduction & Instructions'!$D$30,('Introduction & Instructions'!$D$28+(100*(ROUNDDOWN($E$15,2)-'Introduction & Instructions'!$D$27)*'Introduction & Instructions'!$D$29)))+($D$7/100)*MIN('Introduction & Instructions'!$D$33,('Introduction & Instructions'!$D$31+(100*(ROUNDDOWN($E$15,2)-'Introduction & Instructions'!$D$27)*'Introduction & Instructions'!$D$32)))+($D$11/1000)*MIN('Introduction & Instructions'!$D$36,('Introduction & Instructions'!$D$34+(100*(ROUNDDOWN($E$15,2)-'Introduction & Instructions'!$D$27)*'Introduction & Instructions'!$D$35)))+($D$12/1000)*MIN('Introduction & Instructions'!$D$36,('Introduction & Instructions'!$D$34+(100*(ROUNDDOWN($E$15,2)-'Introduction & Instructions'!$D$27)*'Introduction & Instructions'!$D$35)))))","v":0}]
[null,"High Energy Intensity User",{"$f":"IF($E$15<'Introduction & Instructions'!$D$27, IF($E$15<0.04,0,MIN('Introduction & Instructions'!$D$37*$C$42,($D$6/3.412)*MIN('Introduction & Instructions'!$D$30,('Introduction & Instructions'!$D$28+(100*(ROUNDDOWN($E$15,2)-0.04)*'Introduction & Instructions'!$D$29)))+($D$7/100)*MIN('Introduction & Instructions'!$D$33,('Introduction & Instructions'!$D$31+(100*(ROUNDDOWN($E$15,2)-0.04)*'Introduction & Instructions'!$D$32))))))","v":0}]
[null,"Fuel Switch + High Energy Intensity ",{"$f":"IF($E$15<'Introduction & Instructions'!$D$27, IF($E$15<0.04,0,MIN('Introduction & Instructions'!$D$37*$C$42,($D$6/3.412)*MIN('Introduction & Instructions'!$D$30,('Introduction & Instructions'!$D$28+(100*(ROUNDDOWN($E$15,2)-0.04)*'Introduction & Instructions'!$D$29)))+($D$7/100)*MIN('Introduction & Instructions'!$D$33,('Introduction & Instructions'!$D$31+(100*(ROUNDDOWN($E$15,2)-0.04)*'Introduction & Instructions'!$D$32)))+($D$11/1000)*MIN('Introduction & Instructions'!$D$36,('Introduction & Instructions'!$D$34+(100*(ROUNDDOWN($E$15,2)-0.04)*'Introduction & Instructions'!$D$35)))+($D$12/1000)*MIN('Introduction & Instructions'!$D$36,('Introduction & Instructions'!$D$34+(100*(ROUNDDOWN($E$15,2)-0.04)*'Introduction & Instructions'!$D$35))))))","v":0}]
[null,"Max Cap ",{"$f":"IF(SUM($D$7:$D$13)=0,0.5*(1000000-$C$53),0.5*(2000000-$C$53))","v":500000}]
[]
[null,"Incentive #3 Calc"]
[null,"Regular",{"$f":"IF($E$15<'Introduction & Instructions'!$D$41,0,MIN('Introduction & Instructions'!$D$51*$C$42,($D$6/3.412)*MIN('Introduction & Instructions'!$D$44,('Introduction & Instructions'!$D$42+(100*(ROUNDDOWN($E$15,2)-'Introduction & Instructions'!$D$41)*'Introduction & Instructions'!$D$43)))+($D$7/100)*MIN('Introduction & Instructions'!$D$47,('Introduction & Instructions'!$D$45+(100*(ROUNDDOWN($E$15,2)-'Introduction & Instructions'!$D$41)*'Introduction & Instructions'!$D$46)))))","v":0}]
[null,"Fuel Switch",{"$f":"IF($E$15<'Introduction & Instructions'!$D$41,0,MIN('Introduction & Instructions'!$D$51*$C$42,($D$6/3.412)*MIN('Introduction & Instructions'!$D$44,('Introduction & Instructions'!$D$42+(100*(ROUNDDOWN($E$15,2)-'Introduction & Instructions'!$D$41)*'Introduction & Instructions'!$D$43)))+($D$7/100)*MIN('Introduction & Instructions'!$D$47,('Introduction & Instructions'!$D$45+(100*(ROUNDDOWN($E$15,2)-'Introduction & Instructions'!$D$41)*'Introduction & Instructions'!$D$46)))+($D$11/1000)*MIN('Introduction & Instructions'!$D$50,('Introduction & Instructions'!$D$48+(100*(ROUNDDOWN($E$15,2)-'Introduction & Instructions'!$D$41)*'Introduction & Instructions'!$D$49)))+($D$12/1000)*MIN('Introduction & Instructions'!$D$50,('Introduction & Instructions'!$D$48+(100*(ROUNDDOWN($E$15,2)-'Introduction & Instructions'!$D$41)*'Introduction & Instructions'!$D$49)))))","v":0}]
[null,"High Energy Intensity User",{"$f":"IF($E$15<'Introduction & Instructions'!$D$27, IF($E$15<0.04,0,MIN('Introduction & Instructions'!$D$37*$C$42,($D$6/3.412)*MIN('Introduction & Instructions'!$D$30,('Introduction & Instructions'!$D$28+(100*(ROUNDDOWN($E$15,2)-0.04)*'Introduction & Instructions'!$D$29)))+($D$7/100)*MIN('Introduction & Instructions'!$D$33,('Introduction & Instructions'!$D$31+(100*(ROUNDDOWN($E$15,2)-0.04)*'Introduction & Instructions'!$D$32))))))","v":0}]
[null,"Fuel Switch + High Energy Intensity ",{"$f":"IF($E$15<'Introduction & Instructions'!$D$27, IF($E$15<0.04,0,MIN('Introduction & Instructions'!$D$37*$C$42,($D$6/3.412)*MIN('Introduction & Instructions'!$D$30,('Introduction & Instructions'!$D$28+(100*(ROUNDDOWN($E$15,2)-0.04)*'Introduction & Instructions'!$D$29)))+($D$7/100)*MIN('Introduction & Instructions'!$D$33,('Introduction & Instructions'!$D$31+(100*(ROUNDDOWN($E$15,2)-0.04)*'Introduction & Instructions'!$D$32)))+($D$11/1000)*MIN('Introduction & Instructions'!$D$36,('Introduction & Instructions'!$D$34+(100*(ROUNDDOWN($E$15,2)-0.04)*'Introduction & Instructions'!$D$35)))+($D$12/1000)*MIN('Introduction & Instructions'!$D$36,('Introduction & Instructions'!$D$34+(100*(ROUNDDOWN($E$15,2)-0.04)*'Introduction & Instructions'!$D$35))))))","v":0}]
[null,"Max Cap ",{"$f":"IF(SUM($D$7:$D$13)=0,0.5*(1000000-$C$53),0.5*(2000000-$C$53))","v":500000}]
[]
[null,"Electric Incentive Portion",{"$f":"IF('General Project Information'!$E$41=\"Yes\",IF($E$15<0.04,0,($D$6/3.412)*MIN('Introduction & Instructions'!$D$30,('Introduction & Instructions'!$D$28+(100*(ROUND($E$15,2)-0.04)*'Introduction & Instructions'!$D$29))))+IF($E$15<0.04,0,($D$6/3.412)*MIN('Introduction & Instructions'!$D$44,('Introduction & Instructions'!$D$42+(100*(ROUND($E$15,2)-0.04)*'Introduction & Instructions'!$D$43)))),IF($E$15<'Introduction & Instructions'!$D$27,0,($D$6/3.412)*MIN('Introduction & Instructions'!$D$30,('Introduction & Instructions'!$D$28+(100*(ROUND($E$15,2)-'Introduction & Instructions'!$D$27)*'Introduction & Instructions'!$D$29))))+IF($E$15<'Introduction & Instructions'!$D$41,0,($D$6/3.412)*MIN('Introduction & Instructions'!$D$44,('Introduction & Instructions'!$D$42+(100*(ROUND($E$15,2)-'Introduction & Instructions'!$D$41)*'Introduction & Instructions'!$D$43)))))","v":0},{"$f":"IFERROR(C79/SUM($C$79:$C$82),0)","v":0}]
[null,"Gas Incentive Portion",{"$f":"IF('General Project Information'!$E$41=\"Yes\",IF($E$15<0.04,0,($D$7/100)*MIN('Introduction & Instructions'!$D$33,('Introduction & Instructions'!$D$31+(100*(ROUND($E$15,2)-0.04)*'Introduction & Instructions'!$D$32))))+IF($E$15<0.04,0,($D$7/100)*MIN('Introduction & Instructions'!$D$47,('Introduction & Instructions'!$D$45+(100*(ROUND($E$15,2)-0.04)*'Introduction & Instructions'!$D$46)))),IF($E$15<'Introduction & Instructions'!$D$27,0,($D$7/100)*MIN('Introduction & Instructions'!$D$33,('Introduction & Instructions'!$D$31+(100*(ROUND($E$15,2)-'Introduction & Instructions'!$D$27)*'Introduction & Instructions'!$D$32))))+IF($E$15<'Introduction & Instructions'!$D$41,0,($D$7/100)*MIN('Introduction & Instructions'!$D$47,('Introduction & Instructions'!$D$45+(100*(ROUND($E$15,2)-'Introduction & Instructions'!$D$41)*'Introduction & Instructions'!$D$46)))))","v":0},{"$f":"IFERROR(C80/SUM($C$79:$C$82),0)","v":0}]
[null,"Oil Incentive Portion",{"$f":"IF('General Project Information'!$E$41=\"Yes\",IF($E$15<0.04,0,($D$11/1000)*MIN('Introduction & Instructions'!$D$36,('Introduction & Instructions'!$D$34+(100*(ROUND($E$15,2)-0.04)*'Introduction & Instructions'!$D$35))))+IF($E$15<0.04,0,($D$11/1000)*MIN('Introduction & Instructions'!$D$50,('Introduction & Instructions'!$D$48+(100*(ROUND($E$15,2)-0.04)*'Introduction & Instructions'!$D$49)))),IF($E$15<'Introduction & Instructions'!$D$27,0,($D$11/1000)*MIN('Introduction & Instructions'!$D$36,('Introduction & Instructions'!$D$34+(100*(ROUND($E$15,2)-'Introduction & Instructions'!$D$27)*'Introduction & Instructions'!$D$35))))+IF($E$15<'Introduction & Instructions'!$D$41,0,($D$11/1000)*MIN('Introduction & Instructions'!$D$50,('Introduction & Instructions'!$D$48+(100*(ROUND($E$15,2)-'Introduction & Instructions'!$D$41)*'Introduction & Instructions'!$D$49)))))","v":0},{"$f":"IFERROR(C81/SUM($C$79:$C$82),0)","v":0}]
[null,"Propane Incentive Portion",{"$f":"IF('General Project Information'!$E$41=\"Yes\",IF($E$15<0.04,0,($D$12/1000)*MIN('Introduction & Instructions'!$D$36,('Introduction & Instructions'!$D$34+(100*(ROUND($E$15,2)-0.04)*'Introduction & Instructions'!$D$35))))+IF($E$15<0.04,0,($D$12/1000)*MIN('Introduction & Instructions'!$D$50,('Introduction & Instructions'!$D$48+(100*(ROUND($E$15,2)-0.04)*'Introduction & Instructions'!$D$49)))),IF($E$15<'Introduction & Instructions'!$D$27,0,($D$12/1000)*MIN('Introduction & Instructions'!$D$36,('Introduction & Instructions'!$D$34+(100*(ROUND($E$15,2)-'Introduction & Instructions'!$D$27)*'Introduction & Instructions'!$D$35))))+IF($E$15<'Introduction & Instructions'!$D$41,0,($D$12/1000)*MIN('Introduction & Instructions'!$D$50,('Introduction & Instructions'!$D$48+(100*(ROUND($E$15,2)-'Introduction & Instructions'!$D$41)*'Introduction & Instructions'!$D$49)))))","v":0},{"$f":"IFERROR(C82/SUM($C$79:$C$82),0)","v":0}]
[]
[]
[]
[]
[]
[]
[]
[]
[]
[]
[]
[]
[]
[]
[]
[]
[]
[]
[]
[]
[]
[]
[]
[]
[]
[]
[]
[]
[]
[]
[]
[]
[]
[]
[]
[null,"<Select Fuel Type>"]
[null,"Fuel Oil (kBtu)"]
[null,"Propane & Liquid Propane (kBtu)"]
[null,"Combination of Fuel Oil & Propane (kBtu)"]

{"sheet":"CBECS Statistics","index":36,"n_rows":28,"n_cols":27,"rows_kept":28,"cut":false,"hidden":false,"merged":[[2,1,2,10]]}
[1,"CBECS Statistics"]
[null,"Instructions"]
[null,"This table compares the project's baseline and post-retrofit consumption to CBECS data from 2003.  While the heating and cooling consumption is calibrated per utility bills, the base load consumption is often estimated.  This tool provides an  overview of approximate expected contribution from base load equipment such as lights, plug load, water heating, etc.  This tool also calculates the energy cost savings and energy savings for each end-use.  The graphs will display energy savings and energy cost savings by end-use below the table. Information for reference only. "]
[]
[null,"Building Type",{"$f":"VLOOKUP(INDEX('Area ID Support'!B14:C23,MATCH(MAX('Area ID Support'!C14:C23),'Area ID Support'!C14:C23,0),1),Reference!V3:W26,2,FALSE)","v":{"$error":"#N/A"}}]
[null,"Total Square Footage",{"$f":"'Area Identification'!C9","v":0}]
[null,"Electricty ($/MMBtu)",{"$f":"'Utility Use Summary'!$E$9","v":0}]
[null,"Natural Gas ($/MMBtu)",{"$f":"IF('General Project Information'!$E$39=\"Yes\",IF('Project Summary & Incentives'!$C$7=0,9.38,'Utility Use Summary'!$H$9),'Utility Use Summary'!$H$9)","v":0}]
[null,"Steam ($/MMBtu)",{"$f":"'Utility Use Summary'!$N$9","v":0}]
[null,"Hot Water ($/MMBtu)",{"$f":"'Utility Use Summary'!$R$9","v":0}]
[null,"Chilled Water ($/MMBtu)",{"$f":"'Utility Use Summary'!$P$9","v":0}]
[null,"Fuel Oil ($/MMBtu)",{"$f":"'Utility Use Summary'!$J$9","v":0}]
[null,"Propane ($/MMBtu)",{"$f":"'Utility Use Summary'!$L$9","v":0}]
[null,"Other Fuel ($/MMBtu)",{"$f":"'Utility Use Summary'!$T$9","v":0}]
[]
[null,"End Use","Existing Electricity\n(MMBtu)","Existing Fossil Fuel (MMBtu)","Proposed Electricity (MMBtu)","Proposed Fossil Fuel (MMBtu)","Electricity MMBtu Savings\n(%)","Fossil Fuel MMBtu Savings\n(%)","Total MMBtu Savings\n(%)","CBECs Survey Btu/SqFt","Existing Btu/SqFt","Existing Percent Difference from CBECS (%) ","Proposed Btu/SqFt","Energy  Savings (MMBtu)","End Use (Energy Savings)","Energy Savings (% of Total)","Electric Savings (MMBtu)","Natural Gas Savings (MMBtu)","Steam Savings (MMBtu)","Chilled Water Savings (MMBtu)","Hot Water Savings (MMBtu)","Fuel Oil Savings\n(MMBtu)","Propane Savings (MMBtu)","Other Fuel Savings (MMBtu)","Energy Cost Savings ($)","End Use (Cost Savings)","Cost Savings \n(% of Total)"]
[null,"Space Heating",{"$f":"'Measure Simulation'!F7","v":""},{"$f":"SUM('Measure Simulation'!H7,'Measure Simulation'!J7,'Measure Simulation'!L7,'Measure Simulation'!N7,'Measure Simulation'!P7,'Measure Simulation'!R7,'Measure Simulation'!T7)","v":0},{"$f":"'Measure Simulation'!G7","v":""},{"$f":"SUM('Measure Simulation'!I7,'Measure Simulation'!K7,'Measure Simulation'!M7,'Measure Simulation'!O7,'Measure Simulation'!Q7,'Measure Simulation'!S7,'Measure Simulation'!U7)","v":0},{"$f":"IFERROR((C17-E17)/C17,0)","v":0},{"$f":"IFERROR((D17-F17)/D17,0)","v":0},{"$f":"G17+H17","v":0},{"$f":"IFERROR(IF($C$5=\"\",\"\",VLOOKUP($C$5,Reference!$B$16:$M$33,2,0)),\"\")","v":""},{"$f":"IFERROR(SUM(C17:D17)/$C$6*1000000,\"\")","v":""},{"$f":"IFERROR(IF(AND(N(C17)=0,N(D17)=0),\"\",((C17+D17)*1000000-J17*$C$6)/(J17*$C$6)),\"\")","v":""},{"$f":"IFERROR(SUM(E17:F17)/$C$6*1000000,\"\")","v":""},{"$f":"IFERROR((C17-E17)+(D17-F17),\"\")","v":""},{"$f":"B17&\": \"&TEXT(P17,\"0%\")","v":"Space Heating: "},{"$f":"IF($N$28=0,\"\",N17/$N$28)","v":""},{"$f":"IFERROR('Measure Simulation'!F7-'Measure Simulation'!G7,0)","v":0},{"$f":"IFERROR('Measure Simulation'!H7-'Measure Simulation'!I7,0)","v":0},{"$f":"IFERROR('Measure Simulation'!J7-'Measure Simulation'!K7,0)","v":0},{"$f":"IFERROR('Measure Simulation'!L7-'Measure Simulation'!M7,0)","v":0},{"$f":"IFERROR('Measure Simulation'!N7-'Measure Simulation'!O7,0)","v":0},{"$f":"IFERROR('Measure Simulation'!P7-'Measure Simulation'!Q7,0)","v":0},{"$f":"IFERROR('Measure Simulation'!R7-'Measure Simulation'!S7,0)","v":0},{"$f":"IFERROR('Measure Simulation'!T7-'Measure Simulation'!S,0)","v":0},{"$f":"IFERROR(Q17*$C$7+R17*$C$8+S17*$C$9+T17*$C$11+U17*$C$10+V17*$C$12+W17*$C$13+X17*$C$14,\"\")","v":0},{"$f":"B17&\": \"&TEXT(AA17,\"0%\")","v":"Space Heating: "},{"$f":"IF($Y$28=0,\"\",Y17/$Y$28)","v":""}]
[null,"Cooling",{"$f":"'Measure Simulation'!F8","v":""},{"$f":"SUM('Measure Simulation'!H8,'Measure Simulation'!J8,'Measure Simulation'!L8,'Measure Simulation'!N8,'Measure Simulation'!P8,'Measure Simulation'!R8,'Measure Simulation'!T8)","v":0},{"$f":"'Measure Simulation'!G8","v":""},{"$f":"SUM('Measure Simulation'!I8,'Measure Simulation'!K8,'Measure Simulation'!M8,'Measure Simulation'!O8,'Measure Simulation'!Q8,'Measure Simulation'!S8,'Measure Simulation'!U8)","v":0},{"$f":"IFERROR((C18-E18)/C18,0)","v":0},{"$f":"IFERROR((D18-F18)/D18,0)","v":0},{"$f":"G18+H18","v":0},{"$f":"IFERROR(IF($C$5=\"\",\"\",VLOOKUP($C$5,Reference!$B$16:$M$33,3,0)),\"\")","v":""},{"$f":"IFERROR(SUM(C18:D18)/$C$6*1000000,\"\")","v":""},{"$f":"IFERROR(IF(AND(N(C18)=0,N(D18)=0),\"\",((C18+D18)*1000000-J18*$C$6)/(J18*$C$6)),\"\")","v":""},{"$f":"IFERROR(SUM(E18:F18)/$C$6*1000000,\"\")","v":""},{"$f":"IFERROR((C18-E18)+(D18-F18),\"\")","v":""},"Cooling: ",{"$f":"IF($N$28=0,\"\",N18/$N$28)","v":""},{"$f":"IFERROR('Measure Simulation'!F8-'Measure Simulation'!G8,0)","v":0},{"$f":"IFERROR('Measure Simulation'!H8-'Measure Simulation'!I8,0)","v":0},{"$f":"IFERROR('Measure Simulation'!J8-'Measure Simulation'!K8,0)","v":0},{"$f":"IFERROR('Measure Simulation'!L8-'Measure Simulation'!M8,0)","v":0},{"$f":"IFERROR('Measure Simulation'!N8-'Measure Simulation'!O8,0)","v":0},{"$f":"IFERROR('Measure Simulation'!P8-'Measure Simulation'!Q8,0)","v":0},{"$f":"IFERROR('Measure Simulation'!R8-'Measure Simulation'!S8,0)","v":0},{"$f":"IFERROR('Measure Simulation'!T8-'Measure Simulation'!S,0)","v":0},{"$f":"IFERROR(Q18*$C$7+R18*$C$8+S18*$C$9+T18*$C$11+U18*$C$10+V18*$C$12+W18*$C$13+X18*$C$14,\"\")","v":0},"Cooling: ",{"$f":"IF($Y$28=0,\"\",Y18/$Y$28)","v":""}]
[null,"Ventilation",{"$f":"'Measure Simulation'!F9","v":""},{"$f":"SUM('Measure Simulation'!H9,'Measure Simulation'!J9,'Measure Simulation'!L9,'Measure Simulation'!N9,'Measure Simulation'!P9,'Measure Simulation'!R9,'Measure Simulation'!T9)","v":0},{"$f":"'Measure Simulation'!G9","v":""},{"$f":"SUM('Measure Simulation'!I9,'Measure Simulation'!K9,'Measure Simulation'!M9,'Measure Simulation'!O9,'Measure Simulation'!Q9,'Measure Simulation'!S9,'Measure Simulation'!U9)","v":0},0,0,0,{"$f":"IFERROR(IF($C$5=\"\",\"\",VLOOKUP($C$5,Reference!$B$16:$M$33,4,0)),\"\")","v":""},"","","","","Ventilation: ",{"$f":"IF($N$28=0,\"\",N19/$N$28)","v":""},{"$f":"IFERROR('Measure Simulation'!F9-'Measure Simulation'!G9,0)","v":0},{"$f":"IFERROR('Measure Simulation'!H9-'Measure Simulation'!I9,0)","v":0},{"$f":"IFERROR('Measure Simulation'!J9-'Measure Simulation'!K9,0)","v":0},{"$f":"IFERROR('Measure Simulation'!L9-'Measure Simulation'!M9,0)","v":0},{"$f":"IFERROR('Measure Simulation'!N9-'Measure Simulation'!O9,0)","v":0},{"$f":"IFERROR('Measure Simulation'!P9-'Measure Simulation'!Q9,0)","v":0},{"$f":"IFERROR('Measure Simulation'!R9-'Measure Simulation'!S9,0)","v":0},{"$f":"IFERROR('Measure Simulation'!T9-'Measure Simulation'!S,0)","v":0},0,"Ventilation: ",{"$f":"IF($Y$28=0,\"\",Y19/$Y$28)","v":""}]
[null,"Water Heating",{"$f":"'Measure Simulation'!F10","v":""},{"$f":"SUM('Measure Simulation'!H10,'Measure Simulation'!J10,'Measure Simulation'!L10,'Measure Simulation'!N10,'Measure Simulation'!P10,'Measure Simulation'!R10,'Measure Simulation'!T10)","v":0},{"$f":"'Measure Simulation'!G10","v":""},{"$f":"SUM('Measure Simulation'!I10,'Measure Simulation'!K10,'Measure Simulation'!M10,'Measure Simulation'!O10,'Measure Simulation'!Q10,'Measure Simulation'!S10,'Measure Simulation'!U10)","v":0},0,0,0,{"$f":"IFERROR(IF($C$5=\"\",\"\",VLOOKUP($C$5,Reference!$B$16:$M$33,5,0)),\"\")","v":""},"","","","","Water Heating: ",{"$f":"IF($N$28=0,\"\",N20/$N$28)","v":""},{"$f":"IFERROR('Measure Simulation'!F10-'Measure Simulation'!G10,0)","v":0},{"$f":"IFERROR('Measure Simulation'!H10-'Measure Simulation'!I10,0)","v":0},{"$f":"IFERROR('Measure Simulation'!J10-'Measure Simulation'!K10,0)","v":0},{"$f":"IFERROR('Measure Simulation'!L10-'Measure Simulation'!M10,0)","v":0},{"$f":"IFERROR('Measure Simulation'!N10-'Measure Simulation'!O10,0)","v":0},{"$f":"IFERROR('Measure Simulation'!P10-'Measure Simulation'!Q10,0)","v":0},{"$f":"IFERROR('Measure Simulation'!R10-'Measure Simulation'!S10,0)","v":0},{"$f":"IFERROR('Measure Simulation'!T10-'Measure Simulation'!S,0)","v":0},0,"Water Heating: ",{"$f":"IF($Y$28=0,\"\",Y20/$Y$28)","v":""}]
[null,"Lighting",{"$f":"'Measure Simulation'!F11","v":""},{"$f":"SUM('Measure Simulation'!H11,'Measure Simulation'!J11,'Measure Simulation'!L11,'Measure Simulation'!N11,'Measure Simulation'!P11,'Measure Simulation'!R11,'Measure Simulation'!T11)","v":0},{"$f":"'Measure Simulation'!G11","v":""},{"$f":"SUM('Measure Simulation'!I11,'Measure Simulation'!K11,'Measure Simulation'!M11,'Measure Simulation'!O11,'Measure Simulation'!Q11,'Measure Simulation'!S11,'Measure Simulation'!U11)","v":0},0,0,0,{"$f":"IFERROR(IF($C$5=\"\",\"\",VLOOKUP($C$5,Reference!$B$16:$M$33,6,0)),\"\")","v":""},"","","","","Lighting: ",{"$f":"IF($N$28=0,\"\",N21/$N$28)","v":""},{"$f":"IFERROR('Measure Simulation'!F11-'Measure Simulation'!G11,0)","v":0},{"$f":"IFERROR('Measure Simulation'!H11-'Measure Simulation'!I11,0)","v":0},{"$f":"IFERROR('Measure Simulation'!J11-'Measure Simulation'!K11,0)","v":0},{"$f":"IFERROR('Measure Simulation'!L11-'Measure Simulation'!M11,0)","v":0},{"$f":"IFERROR('Measure Simulation'!N11-'Measure Simulation'!O11,0)","v":0},{"$f":"IFERROR('Measure Simulation'!P11-'Measure Simulation'!Q11,0)","v":0},{"$f":"IFERROR('Measure Simulation'!R11-'Measure Simulation'!S11,0)","v":0},{"$f":"IFERROR('Measure Simulation'!T11-'Measure Simulation'!S,0)","v":0},0,"Lighting: ",{"$f":"IF($Y$28=0,\"\",Y21/$Y$28)","v":""}]
[null,"Pumps",{"$f":"'Measure Simulation'!F12","v":""},{"$f":"SUM('Measure Simulation'!H12,'Measure Simulation'!J12,'Measure Simulation'!L12,'Measure Simulation'!N12,'Measure Simulation'!P12,'Measure Simulation'!R12,'Measure Simulation'!T12)","v":0},{"$f":"'Measure Simulation'!G12","v":""},{"$f":"SUM('Measure Simulation'!I12,'Measure Simulation'!K12,'Measure Simulation'!M12,'Measure Simulation'!O12,'Measure Simulation'!Q12,'Measure Simulation'!S12,'Measure Simulation'!U12)","v":0},{"$f":"IFERROR((C22-E22)/C22,0)","v":0},{"$f":"IFERROR((D22-F22)/D22,0)","v":0},{"$f":"G22+H22","v":0},{"$f":"IFERROR(IF($C$5=\"\",\"\",0),\"\")","v":""},"","","","","Pumps: ",{"$f":"IF($N$28=0,\"\",N22/$N$28)","v":""},{"$f":"IFERROR('Measure Simulation'!F12-'Measure Simulation'!G12,0)","v":0},{"$f":"IFERROR('Measure Simulation'!H12-'Measure Simulation'!I12,0)","v":0},{"$f":"IFERROR('Measure Simulation'!J12-'Measure Simulation'!K12,0)","v":0},{"$f":"IFERROR('Measure Simulation'!L12-'Measure Simulation'!M12,0)","v":0},{"$f":"IFERROR('Measure Simulation'!N12-'Measure Simulation'!O12,0)","v":0},{"$f":"IFERROR('Measure Simulation'!P12-'Measure Simulation'!Q12,0)","v":0},{"$f":"IFERROR('Measure Simulation'!R12-'Measure Simulation'!S12,0)","v":0},{"$f":"IFERROR('Measure Simulation'!T12-'Measure Simulation'!S,0)","v":0},{"$f":"IFERROR(Q22*$C$7+R22*$C$8+S22*$C$9+T22*$C$11+U22*$C$10+V22*$C$12+W22*$C$13+X22*$C$14,\"\")","v":0},{"$f":"B22&\": \"&TEXT(AA22,\"0%\")","v":"Pumps: "},{"$f":"IF($Y$28=0,\"\",Y22/$Y$28)","v":""}]
[null,"Heat Rejection",{"$f":"'Measure Simulation'!F13","v":""},{"$f":"SUM('Measure Simulation'!H13,'Measure Simulation'!J13,'Measure Simulation'!L13,'Measure Simulation'!N13,'Measure Simulation'!P13,'Measure Simulation'!R13,'Measure Simulation'!T13)","v":0},{"$f":"'Measure Simulation'!G13","v":""},{"$f":"SUM('Measure Simulation'!I13,'Measure Simulation'!K13,'Measure Simulation'!M13,'Measure Simulation'!O13,'Measure Simulation'!Q13,'Measure Simulation'!S13,'Measure Simulation'!U13)","v":0},0,0,0,{"$f":"IFERROR(IF($C$5=\"\",\"\",0),\"\")","v":""},"","","","","Heat Rejection: ","",{"$f":"IFERROR('Measure Simulation'!F13-'Measure Simulation'!G13,0)","v":0},{"$f":"IFERROR('Measure Simulation'!H13-'Measure Simulation'!I13,0)","v":0},{"$f":"IFERROR('Measure Simulation'!J13-'Measure Simulation'!K13,0)","v":0},{"$f":"IFERROR('Measure Simulation'!L13-'Measure Simulation'!M13,0)","v":0},{"$f":"IFERROR('Measure Simulation'!N13-'Measure Simulation'!O13,0)","v":0},{"$f":"IFERROR('Measure Simulation'!P13-'Measure Simulation'!Q13,0)","v":0},{"$f":"IFERROR('Measure Simulation'!R13-'Measure Simulation'!S13,0)","v":0},{"$f":"IFERROR('Measure Simulation'!T13-'Measure Simulation'!S,0)","v":0},0,"Heat Rejection: ",""]
[null,"Supplemental Heat Pump",{"$f":"'Measure Simulation'!F14","v":""},{"$f":"SUM('Measure Simulation'!H14,'Measure Simulation'!J14,'Measure Simulation'!L14,'Measure Simulation'!N14,'Measure Simulation'!P14,'Measure Simulation'!R14,'Measure Simulation'!T14)","v":0},{"$f":"'Measure Simulation'!G14","v":""},{"$f":"SUM('Measure Simulation'!I14,'Measure Simulation'!K14,'Measure Simulation'!M14,'Measure Simulation'!O14,'Measure Simulation'!Q14,'Measure Simulation'!S14,'Measure Simulation'!U14)","v":0},0,0,0,"","","","","","Supplemental Heat Pump: ","",{"$f":"IFERROR('Measure Simulation'!F14-'Measure Simulation'!G14,0)","v":0},{"$f":"IFERROR('Measure Simulation'!H14-'Measure Simulation'!I14,0)","v":0},{"$f":"IFERROR('Measure Simulation'!J14-'Measure Simulation'!K14,0)","v":0},{"$f":"IFERROR('Measure Simulation'!L14-'Measure Simulation'!M14,0)","v":0},{"$f":"IFERROR('Measure Simulation'!N14-'Measure Simulation'!O14,0)","v":0},{"$f":"IFERROR('Measure Simulation'!P14-'Measure Simulation'!Q14,0)","v":0},{"$f":"IFERROR('Measure Simulation'!R14-'Measure Simulation'!S14,0)","v":0},{"$f":"IFERROR('Measure Simulation'!T14-'Measure Simulation'!S,0)","v":0},0,"Supplemental Heat Pump: ",""]
[null,"Exterior Usage",{"$f":"'Measure Simulation'!F15","v":""},{"$f":"SUM('Measure Simulation'!H15,'Measure Simulation'!J15,'Measure Simulation'!L15,'Measure Simulation'!N15,'Measure Simulation'!P15,'Measure Simulation'!R15,'Measure Simulation'!T15)","v":0},{"$f":"'Measure Simulation'!G15","v":""},{"$f":"SUM('Measure Simulation'!I15,'Measure Simulation'!K15,'Measure Simulation'!M15,'Measure Simulation'!O15,'Measure Simulation'!Q15,'Measure Simulation'!S15,'Measure Simulation'!U15)","v":0},0,0,0,"","","","","","Exterior Usage: ","",{"$f":"IFERROR('Measure Simulation'!F15-'Measure Simulation'!G15,0)","v":0},{"$f":"IFERROR('Measure Simulation'!H15-'Measure Simulation'!I15,0)","v":0},{"$f":"IFERROR('Measure Simulation'!J15-'Measure Simulation'!K15,0)","v":0},{"$f":"IFERROR('Measure Simulation'!L15-'Measure Simulation'!M15,0)","v":0},{"$f":"IFERROR('Measure Simulation'!N15-'Measure Simulation'!O15,0)","v":0},{"$f":"IFERROR('Measure Simulation'!P15-'Measure Simulation'!Q15,0)","v":0},{"$f":"IFERROR('Measure Simulation'!R15-'Measure Simulation'!S15,0)","v":0},{"$f":"IFERROR('Measure Simulation'!T15-'Measure Simulation'!S,0)","v":0},0,"Exterior Usage: ",""]
[null,"Plug and Process Load",{"$f":"'Measure Simulation'!F16","v":""},{"$f":"SUM('Measure Simulation'!H16,'Measure Simulation'!J16,'Measure Simulation'!L16,'Measure Simulation'!N16,'Measure Simulation'!P16,'Measure Simulation'!R16,'Measure Simulation'!T16)","v":0},{"$f":"'Measure Simulation'!G16","v":""},{"$f":"SUM('Measure Simulation'!I16,'Measure Simulation'!K16,'Measure Simulation'!M16,'Measure Simulation'!O16,'Measure Simulation'!Q16,'Measure Simulation'!S16,'Measure Simulation'!U16)","v":0},0,0,0,{"$f":"IFERROR(IF($C$5=\"\",\"\",SUM(VLOOKUP($C$5,Reference!$B$16:$M$33,7,0),VLOOKUP($C$5,Reference!$B$16:$M$33,9,0),VLOOKUP($C$5,Reference!$B$16:$M$33,10,0),VLOOKUP($C$5,Reference!$B$16:$M$33,11,0))),\"\")","v":""},"","","","","Plug and Process Load: ",{"$f":"IF($N$28=0,\"\",N26/$N$28)","v":""},{"$f":"IFERROR('Measure Simulation'!F16-'Measure Simulation'!G16,0)","v":0},{"$f":"IFERROR('Measure Simulation'!H16-'Measure Simulation'!I16,0)","v":0},{"$f":"IFERROR('Measure Simulation'!J16-'Measure Simulation'!K16,0)","v":0},{"$f":"IFERROR('Measure Simulation'!L16-'Measure Simulation'!M16,0)","v":0},{"$f":"IFERROR('Measure Simulation'!N16-'Measure Simulation'!O16,0)","v":0},{"$f":"IFERROR('Measure Simulation'!P16-'Measure Simulation'!Q16,0)","v":0},{"$f":"IFERROR('Measure Simulation'!R16-'Measure Simulation'!S16,0)","v":0},{"$f":"IFERROR('Measure Simulation'!T16-'Measure Simulation'!S,0)","v":0},0,"Plug and Process Load: ",{"$f":"IF($Y$28=0,\"\",Y26/$Y$28)","v":""}]
[null,"Refrigeration",{"$f":"'Measure Simulation'!F17","v":""},{"$f":"SUM('Measure Simulation'!H17,'Measure Simulation'!J17,'Measure Simulation'!L17,'Measure Simulation'!N17,'Measure Simulation'!P17,'Measure Simulation'!R17,'Measure Simulation'!T17)","v":0},{"$f":"'Measure Simulation'!G17","v":""},{"$f":"SUM('Measure Simulation'!I17,'Measure Simulation'!K17,'Measure Simulation'!M17,'Measure Simulation'!O17,'Measure Simulation'!Q17,'Measure Simulation'!S17,'Measure Simulation'!U17)","v":0},0,0,0,{"$f":"IFERROR(IF($C$5=\"\",\"\",VLOOKUP($C$5,Reference!$B$16:$M$33,8,0)),\"\")","v":""},"",{"$f":"IFERROR(IF(AND(N(C27)=0,N(D27)=0),\"\",((C27+D27)*1000000-J27*$C$6)/(J27*$C$6)),\"\")","v":""},"","","Refrigeration: ",{"$f":"IF($N$28=0,\"\",N27/$N$28)","v":""},{"$f":"IFERROR('Measure Simulation'!F17-'Measure Simulation'!G17,0)","v":0},{"$f":"IFERROR('Measure Simulation'!H17-'Measure Simulation'!I17,0)","v":0},{"$f":"IFERROR('Measure Simulation'!J17-'Measure Simulation'!K17,0)","v":0},{"$f":"IFERROR('Measure Simulation'!L17-'Measure Simulation'!M17,0)","v":0},{"$f":"IFERROR('Measure Simulation'!N17-'Measure Simulation'!O17,0)","v":0},{"$f":"IFERROR('Measure Simulation'!P17-'Measure Simulation'!Q17,0)","v":0},{"$f":"IFERROR('Measure Simulation'!R17-'Measure Simulation'!S17,0)","v":0},{"$f":"IFERROR('Measure Simulation'!T17-'Measure Simulation'!S,0)","v":0},0,"Refrigeration: ",{"$f":"IF($Y$28=0,\"\",Y27/$Y$28)","v":""}]
[null,"Total",{"$f":"SUM(C17:C27)","v":0},{"$f":"SUM(D17:D27)","v":0},{"$f":"SUM(E17:E27)","v":0},{"$f":"SUM(F17:F27)","v":0},null,null,null,{"$f":"IFERROR(IF($C$5=\"\",\"\",VLOOKUP($C$5,Reference!B16:M33,12,0)),\"\")","v":""},{"$f":"SUM(K17:K27)","v":0},{"$f":"IFERROR(IF(AND(N(C28)=0,N(D28)=0),\"\",((C28+D28)*1000000-J28*$C$6)/(J28*$C$6)),\"\")","v":""},{"$f":"SUM(M17:M27)","v":0},{"$f":"(C28-E28)+(D28-F28)","v":0},"Total",{"$f":"SUM(P17:P27)","v":0},{"$f":"SUM(Q17:Q27)","v":0},{"$f":"SUM(R17:R27)","v":0},0,0,0,0,0,0,{"$f":"SUM(Y17:Y27)","v":0},"Total",{"$f":"SUM(AA17:AA27)","v":0}]

{"sheet":"Reference","index":37,"n_rows":34,"n_cols":23,"rows_kept":34,"cut":false,"hidden":true,"merged":[]}
[]
[null,null,"Education","Food Sales","Food Service","Health Care","Inpatient","Outpatient","Lodging","Mercantile","Service","Retail(No Mall)","Enclosed and Strip Malls","Office","Public Assemly","Public Order and Safety","Religious Worship","Warehouse and Storage","Other","Vacant",null,"P4P Building Type","CBECS Building Type"]
[null,"Space Heating",39400,28900,43100,70400,91800,38100,22200,24000,35900,24800,23600,32800,49700,49900,26200,19300,79400,14400,null,"Education – Primary School","Education"]
[null,"Cooling",8000,9800,17400,14100,18600,7200,4900,9900,3800,5900,12400,8900,9600,8900,2900,1300,10500,600,null,"Education – Secondary School","Education"]
[null,"Ventilation",8400,5900,14800,13300,20000,3300,2700,6000,6000,3700,7500,5200,15900,9500,1400,2000,6100,400,null,"Education – Community College","Education"]
[null,"Water Heating",5800,2900,40400,30200,48400,2500,31400,5100,1000,1100,7700,2000,1000,14000,800,600,2100,100,null,"Education – University","Education"]
[null,"Lighting",11500,36700,25400,33100,40100,22600,24300,27500,15600,25700,28600,23100,7000,16500,4400,13100,34100,1700,null,"Education - Other School","Education"]
[null,"Cooking",800,8600,63500,3500,5600,0,3200,2300,0,600,3400,300,800,1300,800,0,0,0,null,"Grocery","Food Sales"]
[null,"Refrigeration",1600,94800,42100,2600,2000,3500,2300,4400,2100,5000,4000,2900,2200,2900,1700,3500,6000,0,null,"Medical – Hospital ","Inpatient"]
[null,"Office Equipment",400,1600,1000,1200,1100,1300,0,700,300,600,800,2600,0,600,100,200,0,0,null,"Medical – Clinic","Health Care"]
[null,"Computers",4000,9100,9500,16100.000000000002,18100,13200,7000,10300,11400,5600,13200,9000,6500,10600,4900,4800,18900,3100,null,"Lodging Hotel (Guest Rooms)","Lodging"]
[null,"Other",3400,1900,1400,3400,3900,2600,1300,1100,1000,1000,1100,6100,0,1600,300,600,3000,0,null,"Lodging Motel","Lodging"]
[null,"Total",83300,200200,258599.99999999997,187899.99999999997,249600,94300,99300,91300,77100,74000,102300.00000000001,92899.999999999985,92700,115799.99999999999,43499.999999999993,45400.000000000007,160100,20300,null,"Manufacturing – Light Industrial","Other"]
[null,null,null,null,null,null,null,null,null,null,null,null,null,null,null,null,null,null,null,null,null,"Office- Large","Office"]
[null,null,"Space Heating","Cooling","Ventilation","Water Heating","Lighting","Cooking","Refrigeration","Office Equipment","Computers","Other","Total",null,null,null,null,null,null,null,null,"Office-Small","Office"]
[null,"Education",39400,8000,8400,5800,11500,800,1600,400,4000,3400,83300,null,null,null,null,null,null,null,null,"Residential- Common Area","Lodging"]
[null,"Food Sales",28900,9800,5900,2900,36700,8600,94800,1600,9100,1900,200200,null,null,null,null,null,null,null,null,"Residential- Tenant Area & Related","Lodging"]
[null,"Food Service",43100,17400,14800,40400,25400,63500,42100,1000,9500,1400,258599.99999999997,null,null,null,null,null,null,null,null,"Restaurant – Sit-Down","Food Service"]
[null,"Health Care",70400,14100,13300,30200,33100,3500,2600,1200,16100.000000000002,3400,187899.99999999997,null,null,null,null,null,null,null,null,"Restaurant – Fast-Food","Food Service"]
[null,"Inpatient",91800,18600,20000,48400,40100,5600,2000,1100,18100,3900,249600,null,null,null,null,null,null,null,null,"Retail – 3-Story Large","Retail(No Mall)"]
[null,"Outpatient",38100,7200,3300,2500,22600,0,3500,1300,13200,2600,94300,null,null,null,null,null,null,null,null,"Retail – Single-Story Large","Retail(No Mall)"]
[null,"Lodging",22200,4900,2700,31400,24300,3200,2300,0,7000,1300,99300,null,null,null,null,null,null,null,null,"Retail – Small","Retail(No Mall)"]
[null,"Mercantile",24000,9900,6000,5100,27500,2300,4400,700,10300,1100,91300,null,null,null,null,null,null,null,null,"Storage Conditioned ","Warehouse and Storage"]
[null,"Service",35900,3800,6000,1000,15600,0,2100,300,11400,1000,77100,null,null,null,null,null,null,null,null,"Storage Unconditioned","Warehouse and Storage"]
[null,"Retail(No Mall)",24800,5900,3700,1100,25700,600,5000,600,5600,1000,74000,null,null,null,null,null,null,null,null,"Warehouse","Warehouse and Storage"]
[null,"Enclosed and Strip Malls",23600,12400,7500,7700,28600,3400,4000,800,13200,1100,102300.00000000001,null,null,null,null,null,null,null,null,"Other","Other"]
[null,"Office",32800,8900,5200,2000,23100,300,2900,2600,9000,6100,92899.999999999985]
[null,"Public Assemly",49700,9600,15900,1000,7000,800,2200,0,6500,0,92700]
[null,"Public Order and Safety",49900,8900,9500,14000,16500,1300,2900,600,10600,1600,115799.99999999999]
[null,"Religious Worship",26200,2900,1400,800,4400,800,1700,100,4900,300,43499.999999999993]
[null,"Warehouse and Storage",19300,1300,2000,600,13100,0,3500,200,4800,600,45400.000000000007]
[null,"Other",79400,10500,6100,2100,34100,0,6000,0,18900,3000,160100]
[null,"Vacant",14400,600,400,100,1700,0,0,0,3100,0,20300]
[null,"Multifamily"]

{"sheet":"CBECS Buildings","index":38,"n_rows":0,"n_cols":0,"rows_kept":0,"cut":false,"hidden":true,"merged":[]}

{"sheet":"Partner Internal QC","index":39,"n_rows":26,"n_cols":5,"rows_kept":26,"cut":false,"hidden":false,"merged":[[0,11,0,12],[6,3,7,3],[5,1,5,4]]}
[null,"Partner QC"]
[null,"Instructions"]
[null,"Once you have completed filling out all of the tables, enter Revision Number and Date into the Pre-Submittal Screening Tool below.        "]
[null,"Review all errors, if any, and make necessary corrections to the tables. Make comments under \"Partner Note\" as you see fit.       "]
[]
[null,"Pre Submittal QC Screening Tool"]
[null,"Revision Number:"]
[null,"Revision Date:"]
[null,"Critial Items","Result","Comment","Partner Notes"]
[null,"15% Savings Threshold",{"$f":"IF(C7=\"\",\"\",'QC Summary'!K23)","v":""},{"$f":"IF(C10=\"Fail\",\"Project does not save minimum 15% source energy\",IF(C10=\"Note\",\"If project is high energy intensity facility, minimum 4% savings must be met\",\"\"))","v":""}]
[null,"Comprehensive Scope",{"$f":"IF(C7=\"\",\"\",'QC Summary'!K106)","v":""},{"$f":"IF(C11=\"Fail\",\"Project must consist of at least two unique measures\",\"\")","v":""}]
[null,"Max 50% Lighting Savings",{"$f":"IF(C7=\"\",\"\",'QC Summary'!K28)","v":""},{"$f":"IF(C12=\"Note\",\"The general rule is that no more than 50% of the total source energy savings may be derived from lighting measures.\"&\" Notwithstanding the foregoing general rule, lighting measure savings over 50% may be considered if the scope of work is otherwise comprehensive in that it\"&\"\n\"&\"    (a) assesses the cost-effectiveness of installing energy conservation measures in each of the following areas:\"&\"\n\"&\"        (i) heating systems,\"&\"\n\"&\"        (ii) cooling systems,\"&\"\n\"&\"        (iii) ventilation systems,\"&\"\n\"&\"        (iv) domestic hot water systems, and\"&\"\n\"&\"        (v) building envelopes, and\"&\"\n\"&\"    (b) implements all cost-effective energy conservation measures identified through the foregoing assessment or, as to any such measures not implemented, explains why such implementation would not be practicable.\"&\" For example, a scope of work in a high school that does not include replacement of a 30 year old atmospheric boiler would not be allowed to include lighting savings greater than 50% of the total source energy savings.\",\"\")","v":""}]
[null,"Max 50% Non-IOU Savings",{"$f":"IF(C7=\"\",\"\",'QC Summary'!K29)","v":""},{"$f":"IF(C13=\"Fail\",\"Savings from IOU fuels must be at least 50% of total savings, or 100,000 kWh, or 2,000 therms. Please verify.\",\"\")","v":""}]
[null,"General Items","Result","Comment","Partner Notes"]
[null,"Utility Bills","Note","Confirm baseline utility period begins and ends with an actual reading.\nConfirm baseline utility start dates across all accounts is no more than 15 days out of sync."]
[null,"Individual Fuel Savings",{"$f":"IF(C7=\"\",\"\",'QC Summary'!K19)","v":""},{"$f":"IF(C16=\"Note\",\"Savings of one or more fuel types exceeds 100% and may need revision\",\"\")","v":""}]
[null,"Existing Lighting Runtime Hours",{"$f":"IF(C7=\"\",\"\",'QC Summary'!K31)","v":""},{"$f":"IF(C17=\"Fail\",\"Existing Lighting Runtime Hours in the model may vary by no more than 15% from default based on building type. Please review runtime hours in Lighting table, as well as inputs in the model.\",\"\")","v":""}]
[null,"Lighting Runtime Hours % Reduction",{"$f":"IF(C7=\"\",\"\",'QC Summary'!K32)","v":""},{"$f":"IF(C18=\"Fail\",IF(AND(Lighting!$AO$16=0,Lighting!$AO$15<>0)=TRUE,\"A reduction in lighting runtime hours is modeled, but no reduction is represented via inputs on the Lighting tab. Please review the Lighting table and model inputs to ensure both are complete and accurate.\",\"Reduction in lighting runtime hours in the model may vary by no more than 20% from default based inputs on the Lighting tab. Please review reduction factors in Lighting table, as well as inputs in the model.\"),\"\")","v":""}]
[null,"Actual Lighting Watts/Fixture",{"$f":"IF(C7=\"\",\"\",IF(COUNTIF(Lighting!$L$9:$L$1008,\"\")+COUNTIF(Lighting!$L$1016:$L$1065,\"\")+COUNTIF(Lighting!$Y$9:$Y$1008,\"\")+COUNTIF(Lighting!$Y$1016:$Y$1065,\"\")<2100,IF(COUNTIF(Lighting!$L$9:$L$1008,\"\")+COUNTIF(Lighting!$L$1016:$L$1065,\"\")+COUNTIF(Lighting!$Y$9:$Y$1008,\"\")+COUNTIF(Lighting!$Y$1016:$Y$1065,\"\")<COUNTIF(Lighting!$M$9:$M$1008,\"\")+COUNTIF(Lighting!$M$1016:$M$1065,\"\")+COUNTIF(Lighting!$Z$9:$Z$1008,\"\")+COUNTIF(Lighting!$Z$1016:$Z$1065,\"\"),\"Fail\",\"Note\"),\"N/A\"))","v":""},{"$f":"IF(C19=\"Fail\",\"For each fixture where actual watts/fixture was entered, you must select the appropriate source in the corresponding Watts/Fixture Source column on the Lighting tab. If manufacturer data was used, please attach cut sheets.\",IF(C19=\"Note\",\"For each fixture where actual watts/fixtures was entered, ensure the correct source is entered on the Lighting tab. If manufacturer data was used, please attach cut sheets.\",\"\"))","v":""}]
[null,"CM Fees",{"$f":"IF(C7=\"\",\"\",'QC Summary'!K33)","v":""},{"$f":"IF(C20=\"Note\",\"Construction management fees have not been added to Measure Simulation table. Please update or explain.\",\"\")","v":""}]
[null,"Partner Fees",{"$f":"IF(C7=\"\",\"\",'QC Summary'!K34)","v":""},{"$f":"IF(C21=\"Note\",\"Partner fees have not been included in Measure Simulation table. Please update or explain.\",\"\")","v":""}]
[null,"Measure Lifetimes",{"$f":"IF(C7=\"\",\"\",'QC Summary'!K104)","v":""},{"$f":"IF(C22=\"Fail\",\"Measure lifetimes in Measure Simulation table exceed program guidelines, please revise or provide justification.\",\"\")","v":""}]
[null,"Project Schedule",{"$f":"IF(C7=\"\",\"\",'QC Summary'!K77)","v":""},{"$f":"IF(C23=\"Fail\",\"Project schedule does not meet program guidelines, please adjust accordingly\",\"\")","v":""}]
[null,"Model Items","Result","Comment","Partner Notes"]
[null,"Provided Savings",{"$f":"IF(C7=\"\",\"\",IF('QC Measure Savings Review'!D32>0,\"Fail\",\"Pass\"))","v":""},{"$f":"IF(C25=\"Fail\",\"The annual consumptions in the first Measure Simulation table from the simulation's runs does not produce the savings entered in the second Measure Simulation table .  Please revise.\",\"\")","v":""}]
[null,"Custom Calcs",{"$f":"IF(C7=\"\",\"\",IF('QC Measure Savings Review'!D33>0,\"Note\",\"Pass\"))","v":""},{"$f":"IF(C26=\"Note\",\"One or more measures have been calculated without the use of a simulation program. Please ensure measure can not be modeled in software, and attach supporting external calculations.\",\"\")","v":""}]

{"sheet":"QC Summary","index":40,"n_rows":106,"n_cols":14,"rows_kept":106,"cut":false,"hidden":true,"merged":[[101,2,101,3],[102,2,102,3],[95,2,95,3],[96,2,96,3],[97,2,97,3],[98,2,98,3],[99,2,99,3],[100,2,100,3],[94,2,94,3],[83,2,83,3],[84,2,84,3],[85,2,85,3],[86,2,86,3],[87,2,87,3],[88,2,88,3],[89,2,89,3],[90,2,90,3],[91,2,91,3],[92,2,92,3],[93,2,93,3],[82,2,82,3],[78,2,78,3],[77,2,77,3],[79,2,79,3],[80,2,80,3],[81,2,81,3]]}
["2011-01-01","ERP Table Version 2.0","2011 ARRA and Non ARRA Tables"]
["2011-03-01","ERP Table Version 2.1","Updated District Steam site-to-source ratios to 1.21; changed cell protections; "]
["2012-01-12","ERP Table Version 3.0","2012 ARRA and Non ARRA Tables  50/50 split. "]
["2014-03-01","ERP Table Version 4.0"]
["2015-07-01","ERP Table Version 4.1"]
["Jul-9-2015","ERP Table Version 4.2","Updated savings to reflect to tenth place (e.g. 15.0%)"]
[null,null,"Pass","Fail","Note","Lev 2 Fail",null,null,"Custom Calcs"]
[null,null,{"$f":"COUNTIF($K$11:$K$106,C7)","v":19},{"$f":"COUNTIF($K$11:$K$106,D7)","v":3},{"$f":"COUNTIF($K$11:$K$106,E7)","v":3},{"$f":"'QC Measure Savings Review'!D32","v":0},null,null,{"$f":"'QC Measure Savings Review'!D33","v":0}]
[]
[null,null,"Baseline Use","Savings","% Savings",null,null,"  ","Constraints",null,null,null,"Site Source Ratios"]
[null,{"$f":"'Project Summary & Incentives'!B6","v":"Electricity (kBtu)"},{"$f":"'Project Summary & Incentives'!C6","v":0},{"$f":"'Project Summary & Incentives'!D6","v":0},{"$f":"'Project Summary & Incentives'!E6","v":0},null,null,"<=",1,2,{"$f":"IF(E11<=I11,\"Pass\",\"Note\")","v":"Pass"},null,3.14]
[null,{"$f":"'Project Summary & Incentives'!B7","v":"Natural Gas (kBtu)"},{"$f":"'Project Summary & Incentives'!C7","v":0},{"$f":"'Project Summary & Incentives'!D7","v":0},{"$f":"'Project Summary & Incentives'!E7","v":0},null,null,"<=",1,2,"Pass",null,1.05]
[null,{"$f":"'Project Summary & Incentives'!B8","v":"District Steam (kBtu)"},{"$f":"'Project Summary & Incentives'!C8","v":0},{"$f":"'Project Summary & Incentives'!D8","v":0},{"$f":"'Project Summary & Incentives'!E8","v":0},null,null,"<=",1,2,"Pass",null,1.2]
[null,{"$f":"'Project Summary & Incentives'!B9","v":"District Hot Water (kBtu)"},{"$f":"'Project Summary & Incentives'!C9","v":0},{"$f":"'Project Summary & Incentives'!D9","v":0},{"$f":"'Project Summary & Incentives'!E9","v":0},null,null,"<=",1,2,"Pass",null,1.2]
[null,{"$f":"'Project Summary & Incentives'!B10","v":"District Chilled Water (kBtu)"},{"$f":"'Project Summary & Incentives'!C10","v":0},{"$f":"'Project Summary & Incentives'!D10","v":0},{"$f":"'Project Summary & Incentives'!E10","v":0},null,null,"<=",1,2,"Pass",null,1]
[null,{"$f":"'Project Summary & Incentives'!B11","v":"Fuel Oil (kBtu)"},{"$f":"'Project Summary & Incentives'!C11","v":0},{"$f":"'Project Summary & Incentives'!D11","v":0},{"$f":"'Project Summary & Incentives'!E11","v":0},null,null,"<=",1,2,"Pass",null,1.01]
[null,{"$f":"'Project Summary & Incentives'!B12","v":"Propane (kBtu)"},{"$f":"'Project Summary & Incentives'!C12","v":0},{"$f":"'Project Summary & Incentives'!D12","v":0},{"$f":"'Project Summary & Incentives'!E12","v":0},null,null,"<=",1,2,"Pass",null,1.01]
[null,{"$f":"'Project Summary & Incentives'!B13","v":"Other"},{"$f":"'Project Summary & Incentives'!C13","v":0},{"$f":"'Project Summary & Incentives'!D13","v":0},{"$f":"'Project Summary & Incentives'!E13","v":0},null,null,"<=",1,2,"Pass",null,1]
[null,null,null,null,null,null,null,null,"Total",2,{"$f":"IF(AND(K11=\"Pass\",K12=\"Pass\",K13=\"Pass\",K14=\"Pass\", K15=\"Pass\",K16=\"Pass\",K17=\"Pass\",K18=\"Pass\"),\"Pass\",\"Note\")","v":"Pass"}]
[null,"PM EUI (rounded)",{"$f":"ROUND('Project Summary & Incentives'!C14,0)","v":0},{"$f":"ROUND('Project Summary & Incentives'!D14,1)","v":0},{"$f":"(D16+D17)/1000","v":0},{"$f":"E20*12.5","v":0}]
[null,"Calculated Source EUI (rounded)",{"$f":"IF('Project Summary & Incentives'!C50=0,0,ROUND(SUMPRODUCT(C11:C18,M11:M18)/'Project Summary & Incentives'!C50,0))","v":0},{"$f":"IF('Project Summary & Incentives'!C50=0,0,ROUND(SUMPRODUCT(D11:D18,M11:M18)/'Project Summary & Incentives'!C50,1))","v":0},{"$f":"D12/100","v":0},{"$f":"E21*1.25","v":0},null,null,null,null,null,null,"Incentive Payouts"]
[null,"Project Square Footage",{"$f":"'Project Summary & Incentives'!C50","v":0},null,null,null,null,null,null,null,null,null,{"$f":"IF(C23>0.15,MIN('Introduction & Instructions'!D30,'Introduction & Instructions'!D28+'Introduction & Instructions'!D29*'QC Summary'!E23),0)","v":0},"per kWh"]
[null,"Percent Savings from PM",{"$f":"'Project Summary & Incentives'!E15","v":0},{"$f":"C23","v":0},{"$f":"D23*100-15","v":-15},null,null,">=",0.15,1,{"$f":"IF(D23>=I23,\"Pass\", IF('General Project Information'!$E$41=\"Yes\", \"Note\",\"Fail\"))","v":"Fail"},null,{"$f":"IF(C23>0.15,MIN('Introduction & Instructions'!D36,'Introduction & Instructions'!D34+'Introduction & Instructions'!D35*'QC Summary'!E23),0)","v":0},"per MMBTU"]
[null,"Percent Savings from Utility",{"$f":"IF(C21=0,0,'Project Summary & Incentives'!D14/C21)","v":0},{"$f":"C24","v":0},null,null,null,null,null,null,null,null,{"$f":"IF(C23>0.15,MIN('Introduction & Instructions'!D33,'Introduction & Instructions'!D31+'Introduction & Instructions'!D32*'QC Summary'!E23),0)","v":0},"per Therm"]
[null,"PM SF/EUI/% Matches ERP",{"$f":"IF(C20=0,0,C21/C20)","v":0},null,null,null,null,"=",1,2,{"$f":"IF(AND(C25=I25),\"Pass\",\"Note\")","v":"Note"}]
[]
[null,null,"kWh","MMBtu","kBtu","%"]
[null,"Lighting Measures Savings Contribution",{"$f":"SUMPRODUCT('Measure Simulation'!$C$54:$C$78,'Measure Simulation'!$G$54:$G$78)","v":0},{"$f":"SUMPRODUCT('Measure Simulation'!$B$54:$B$78,'Measure Simulation'!$C$54:$C$78)","v":0},{"$f":"(C28*3.412*3.14)+(D28*1000*1.05)","v":0},{"$f":"IF(C28=0,0,E28/(D20*C22))","v":0},null,"<=",0.5,1,{"$f":"IF(F28<=I28,\"Pass\",\"Note\")","v":"Pass"}]
[null,"Non-IOU Savings Contribution ",99999,199.99,{"$f":"ROUND(SUMPRODUCT(D13:D18,M13:M18),0)","v":0},{"$f":"IF(E29=0,0,E29/(D20*C22))","v":0},null,"<=",0.5,1,{"$f":"IF(F29<=I29,\"Pass\", IF('Measure Simulation'!G81>=C29, \"Pass\", IF('Measure Simulation'!H81>=D29, \"Pass\",\"Fail\")))","v":"Pass"}]
[null,"Modeled Runtime Hours",{"$f":"IF('Measure Simulation'!$F$11=\"\",0,('Measure Simulation'!$F$11-'Measure Simulation'!$G$11)/0.003412)","v":0},{"$f":"IF('Measure Simulation'!$H$11=\"\",0,'Measure Simulation'!$H$11-'Measure Simulation'!$I$11)","v":0}]
[null,"Existing Lighting Runtime Hours",{"$f":"Lighting!AO11","v":"-"},{"$f":"Lighting!AO10","v":"-"},null,{"$f":"ABS(IF(D31=\"-\",0,((D31-C31)/C31)))","v":0},null,"<=",0.15,1,{"$f":"IF(F31<=I31,\"Pass\",\"Fail\")","v":"Pass"}]
[null,"Lighting Runtime Hours % Reduction",{"$f":"Lighting!AO16","v":"-"},{"$f":"Lighting!AO15","v":"-"},null,{"$f":"ABS(IF(OR(C32=0,D32=\"-\")=TRUE,0,((D32-C32)/C32)))","v":0},null,"<=",0.2,1,{"$f":"IF(OR(F32>I32,AND(Lighting!$AO$16=0,Lighting!$AO$15<>0)=TRUE)=TRUE,\"Fail\",\"Pass\")","v":"Pass"}]
[null,"CM Fees",{"$f":"'Measure Simulation'!F79","v":0},null,null,null,null,">",0,2,{"$f":"IF(C33>I33,\"Pass\",\"Note\")","v":"Note"}]
[null,"Partner Fees",{"$f":"'Measure Simulation'!F80","v":0},null,null,null,null,">",0,2,{"$f":"IF(C34>I34,\"Pass\",\"Note\")","v":"Note"}]
[null,"Project IRR",{"$f":"'Measure Simulation'!U81","v":0},null,null,null,null,">=",0.1,1,{"$f":"IF(C35>=I35,\"Pass\",\"Fail\")","v":"Fail"}]
[]
[]
[null,"ARRA/Non-IOU Project?",{"$f":"'General Project Information'!E39","v":0},null,null,null,null,null,null,null,{"$f":"IF(C38=\"Yes\",\"Note\",\"N/A\")","v":"N/A"}]
[null,"Total Project Cost",{"$f":"'Measure Simulation'!F81","v":0}]
[]
[]
[null,"Total Incentive Cap",{"$f":"IF(AND(D11>0,D12>0),MIN(2000000,0.5*C39+C45),IF(AND(C38=\"Yes\",D11>0,SUM(D13:D18)>0),MIN(2000000,0.5*C39+C45),MIN(1000000,0.5*C39+C45)))","v":0}]
[]
[null,null,"ARRA/Non-IOU","Non-ARRA/IOU","Project Incentive",null,null,null,null,null,null,null,"Incentive Cap"]
[null,"Incentive 1",{"$f":"IF(C22=0,0,IF('Project Summary & Incentives'!C50*0.1<5000,5000,IF('Project Summary & Incentives'!C50*0.1>50000,50000,'Project Summary & Incentives'!C50*0.1)))","v":0},{"$f":"IF(C22=0,0,IF('Project Summary & Incentives'!C50*0.1<5000,5000,IF('Project Summary & Incentives'!C50*0.1>50000,50000,'Project Summary & Incentives'!C50*0.1)))","v":0},{"$f":"IF('General Project Information'!E39=\"Yes\",C45,D45)","v":0},null,null,"<=",{"$f":"M45","v":50000},1,{"$f":"IF(E45<=I45,\"Pass\",\"Fail\")","v":"Pass"},null,50000,"Incentive 1"]
[null,"Incentive 2",{"$f":"D11/3.412*M22+D12/100*M24+(D16+D17)/1000*M23","v":0},{"$f":"D11/3.412*M22+D12/100*M24","v":0},{"$f":"IF('General Project Information'!E39=\"Yes\",C46,D46)","v":0},null,null,"<=",{"$f":"M46","v":0},1,{"$f":"IF(E46<=I46,\"Pass\",\"Fail\")","v":"Pass"},null,{"$f":"0.25*C39","v":0},"Incentive 2"]
[null,"Incentive 3 (projected)",{"$f":"D11/3.412*M22+D12/100*M24+(D16+D17)/1000*M23","v":0},{"$f":"D11/3.412*M22+D12/100*M24","v":0},{"$f":"IF('General Project Information'!E39=\"Yes\",C47,D47)","v":0},null,null,"<=",{"$f":"M47","v":0},1,{"$f":"IF(E47<=I47,\"Pass\",\"Fail\")","v":"Pass"},null,{"$f":"0.25*C39","v":0},"Incentive 3"]
[null,"Total",{"$f":"SUM(C45:C47)","v":0},{"$f":"SUM(D45:D47)","v":0},{"$f":"SUM(E45:E47)","v":0},null,null,"<=",{"$f":"M48","v":0},1,{"$f":"IF(E48<=I48,\"Pass\",\"Fail\")","v":"Pass"},null,{"$f":"C42","v":0},"Total Cap"]
[]
[null,null,null,null,null,null,null,null,"Now"]
[null,"Measure",null,"Start","End","Time",null,null,{"$f":"NOW()","v":"2017-11-28T14:31:54.350"}]
[null,{"$f":"'Measure Descriptions'!C7","v":0},null,{"$f":"'Implementation & Financing'!E21","v":"00:00:00"},{"$f":"'Implementation & Financing'!F21","v":"00:00:00"},{"$f":"E52-D52","v":0},null,null,null,1,{"$f":"IF(B52=0,\"N/A\",IF(OR(OR((D52-$I$51)>180,(D52-$I$51)<=0),OR(F52<0,F52>365)),\"Fail\",\"Pass\"))","v":"N/A"}]
[null,{"$f":"'Measure Descriptions'!C8","v":0},null,{"$f":"'Implementation & Financing'!E22","v":"00:00:00"},{"$f":"'Implementation & Financing'!F22","v":"00:00:00"},{"$f":"E53-D53","v":0},null,null,null,1,{"$f":"IF(B53=0,\"N/A\",IF(OR(OR((D53-$I$51)>180,(D53-$I$51)<=0),OR(F53<0,F53>365)),\"Fail\",\"Pass\"))","v":"N/A"}]
[null,{"$f":"'Measure Descriptions'!C9","v":0},null,{"$f":"'Implementation & Financing'!E23","v":"00:00:00"},{"$f":"'Implementation & Financing'!F23","v":"00:00:00"},0,null,null,null,1,"N/A"]
[null,{"$f":"'Measure Descriptions'!C10","v":0},null,{"$f":"'Implementation & Financing'!E24","v":"00:00:00"},{"$f":"'Implementation & Financing'!F24","v":"00:00:00"},0,null,null,null,1,"N/A"]
[null,{"$f":"'Measure Descriptions'!C11","v":0},null,{"$f":"'Implementation & Financing'!E25","v":"00:00:00"},{"$f":"'Implementation & Financing'!F25","v":"00:00:00"},{"$f":"E56-D56","v":0},null,null,null,1,"N/A"]
[null,{"$f":"'Measure Descriptions'!C12","v":0},null,{"$f":"'Implementation & Financing'!E26","v":"00:00:00"},{"$f":"'Implementation & Financing'!F26","v":"00:00:00"},0,null,null,null,1,"N/A"]
[null,{"$f":"'Measure Descriptions'!C13","v":0},null,{"$f":"'Implementation & Financing'!E27","v":"00:00:00"},{"$f":"'Implementation & Financing'!F27","v":"00:00:00"},0,null,null,null,1,"N/A"]
[null,{"$f":"'Measure Descriptions'!C14","v":0},null,{"$f":"'Implementation & Financing'!E28","v":"00:00:00"},{"$f":"'Implementation & Financing'!F28","v":"00:00:00"},0,null,null,null,1,"N/A"]
[null,{"$f":"'Measure Descriptions'!C15","v":0},null,{"$f":"'Implementation & Financing'!E29","v":"00:00:00"},{"$f":"'Implementation & Financing'!F29","v":"00:00:00"},0,null,null,null,1,"N/A"]
[null,{"$f":"'Measure Descriptions'!C16","v":0},null,{"$f":"'Implementation & Financing'!E30","v":"00:00:00"},{"$f":"'Implementation & Financing'!F30","v":"00:00:00"},0,null,null,null,1,"N/A"]
[null,{"$f":"'Measure Descriptions'!C17","v":0},null,{"$f":"'Implementation & Financing'!E31","v":"00:00:00"},{"$f":"'Implementation & Financing'!F31","v":"00:00:00"},0,null,null,null,1,"N/A"]
[null,{"$f":"'Measure Descriptions'!C18","v":0},null,{"$f":"'Implementation & Financing'!E32","v":"00:00:00"},{"$f":"'Implementation & Financing'!F32","v":"00:00:00"},0,null,null,null,1,"N/A"]
[null,{"$f":"'Measure Descriptions'!C19","v":0},null,{"$f":"'Implementation & Financing'!E33","v":"00:00:00"},{"$f":"'Implementation & Financing'!F33","v":"00:00:00"},0,null,null,null,1,"N/A"]
[null,{"$f":"'Measure Descriptions'!C20","v":0},null,{"$f":"'Implementation & Financing'!E34","v":"00:00:00"},{"$f":"'Implementation & Financing'!F34","v":"00:00:00"},0,null,null,null,1,"N/A"]
[null,{"$f":"'Measure Descriptions'!C21","v":0},null,{"$f":"'Implementation & Financing'!E35","v":"00:00:00"},{"$f":"'Implementation & Financing'!F35","v":"00:00:00"},0,null,null,null,1,"N/A"]
[null,{"$f":"'Measure Descriptions'!C22","v":0},null,{"$f":"'Implementation & Financing'!E36","v":"00:00:00"},{"$f":"'Implementation & Financing'!F36","v":"00:00:00"},0,null,null,null,1,"N/A"]
[null,{"$f":"'Measure Descriptions'!C23","v":0},null,{"$f":"'Implementation & Financing'!E37","v":"00:00:00"},{"$f":"'Implementation & Financing'!F37","v":"00:00:00"},0,null,null,null,1,"N/A"]
[null,{"$f":"'Measure Descriptions'!C24","v":0},null,{"$f":"'Implementation & Financing'!E38","v":"00:00:00"},{"$f":"'Implementation & Financing'!F38","v":"00:00:00"},0,null,null,null,1,"N/A"]
[null,{"$f":"'Measure Descriptions'!C25","v":0},null,{"$f":"'Implementation & Financing'!E39","v":"00:00:00"},{"$f":"'Implementation & Financing'!F39","v":"00:00:00"},0,null,null,null,1,"N/A"]
[null,{"$f":"'Measure Descriptions'!C26","v":0},null,{"$f":"'Implementation & Financing'!E40","v":"00:00:00"},{"$f":"'Implementation & Financing'!F40","v":"00:00:00"},0,null,null,null,1,"N/A"]
[null,{"$f":"'Measure Descriptions'!C27","v":0},null,{"$f":"'Implementation & Financing'!E41","v":"00:00:00"},{"$f":"'Implementation & Financing'!F41","v":"00:00:00"},0,null,null,null,1,"N/A"]
[null,{"$f":"'Measure Descriptions'!C28","v":0},null,{"$f":"'Implementation & Financing'!E42","v":"00:00:00"},{"$f":"'Implementation & Financing'!F42","v":"00:00:00"},0,null,null,null,1,"N/A"]
[null,{"$f":"'Measure Descriptions'!C29","v":0},null,{"$f":"'Implementation & Financing'!E43","v":"00:00:00"},{"$f":"'Implementation & Financing'!F43","v":"00:00:00"},0,null,null,null,1,"N/A"]
[null,{"$f":"'Measure Descriptions'!C30","v":0},null,{"$f":"'Implementation & Financing'!E44","v":"00:00:00"},{"$f":"'Implementation & Financing'!F44","v":"00:00:00"},0,null,null,null,1,"N/A"]
[null,{"$f":"'Measure Descriptions'!C31","v":0},null,{"$f":"'Implementation & Financing'!E45","v":"00:00:00"},{"$f":"'Implementation & Financing'!F45","v":"00:00:00"},0,null,null,null,1,"N/A"]
[null,null,null,null,null,null,null,null,null,"Total",{"$f":"IF(COUNTIF(K52:K76,\"Fail\")>0,\"Fail\",\"Pass\")","v":"Pass"}]
[null,"Measure Category","Measure Type",null,"Number Input Override","Max Life",null,null,"Measure Simulation Table Lifetime"]
[null,{"$f":"'Measure Descriptions'!E7","v":0},{"$f":"'Measure Descriptions'!D7","v":0},null,null,{"$f":"IF(E79=\"\",IFERROR(VLOOKUP(B79,INDIRECT(\"MT_\"&SUBSTITUTE(SUBSTITUTE(SUBSTITUTE(C79,\" \",\"_\"),\"-\",\"_\"),\"&\",\"_\")&\"_Lookup\"),3,FALSE),\"\"),E79)","v":""},null,">=",{"$f":"'Measure Simulation'!R54","v":0},null,{"$f":"IF(OR(ISERROR(F79),F79=\"\"),\"N/A\",IF(F79>=I79,\"Pass\",\"Fail\"))","v":"N/A"}]
[null,{"$f":"'Measure Descriptions'!E8","v":0},{"$f":"'Measure Descriptions'!D8","v":0},null,null,{"$f":"IF(E80=\"\",IFERROR(VLOOKUP(B80,INDIRECT(\"MT_\"&SUBSTITUTE(SUBSTITUTE(SUBSTITUTE(C80,\" \",\"_\"),\"-\",\"_\"),\"&\",\"_\")&\"_Lookup\"),3,FALSE),\"\"),E80)","v":""},null,">=",{"$f":"'Measure Simulation'!R55","v":0},null,{"$f":"IF(OR(ISERROR(F80),F80=\"\"),\"N/A\",IF(F80>=I80,\"Pass\",\"Fail\"))","v":"N/A"}]
[null,{"$f":"'Measure Descriptions'!E9","v":0},{"$f":"'Measure Descriptions'!D9","v":0},null,null,"",null,">=",{"$f":"'Measure Simulation'!R56","v":0},null,"N/A"]
[null,{"$f":"'Measure Descriptions'!E10","v":0},{"$f":"'Measure Descriptions'!D10","v":0},null,null,"",null,">=",{"$f":"'Measure Simulation'!R57","v":0},null,"N/A"]
[null,{"$f":"'Measure Descriptions'!E11","v":0},{"$f":"'Measure Descriptions'!D11","v":0},null,null,"",null,">=",{"$f":"'Measure Simulation'!R58","v":0},null,"N/A"]
[null,{"$f":"'Measure Descriptions'!E12","v":0},{"$f":"'Measure Descriptions'!D12","v":0},null,null,"",null,">=",{"$f":"'Measure Simulation'!R59","v":0},null,"N/A"]
[null,{"$f":"'Measure Descriptions'!E13","v":0},{"$f":"'Measure Descriptions'!D13","v":0},null,null,"",null,">=",{"$f":"'Measure Simulation'!R60","v":0},null,"N/A"]
[null,{"$f":"'Measure Descriptions'!E14","v":0},{"$f":"'Measure Descriptions'!D14","v":0},null,null,"",null,">=",{"$f":"'Measure Simulation'!R61","v":0},null,"N/A"]
[null,{"$f":"'Measure Descriptions'!E15","v":0},{"$f":"'Measure Descriptions'!D15","v":0},null,null,"",null,">=",{"$f":"'Measure Simulation'!R62","v":0},null,"N/A"]
[null,{"$f":"'Measure Descriptions'!E16","v":0},{"$f":"'Measure Descriptions'!D16","v":0},null,null,"",null,">=",{"$f":"'Measure Simulation'!R63","v":0},null,"N/A"]
[null,{"$f":"'Measure Descriptions'!E17","v":0},{"$f":"'Measure Descriptions'!D17","v":0},null,null,"",null,">=",{"$f":"'Measure Simulation'!R64","v":0},null,"N/A"]
[null,{"$f":"'Measure Descriptions'!E18","v":0},{"$f":"'Measure Descriptions'!D18","v":0},null,null,"",null,">=",{"$f":"'Measure Simulation'!R65","v":0},null,"N/A"]
[null,{"$f":"'Measure Descriptions'!E19","v":0},{"$f":"'Measure Descriptions'!D19","v":0},null,null,"",null,">=",{"$f":"'Measure Simulation'!R66","v":0},null,"N/A"]
[null,{"$f":"'Measure Descriptions'!E20","v":0},{"$f":"'Measure Descriptions'!D20","v":0},null,null,"",null,">=",{"$f":"'Measure Simulation'!R67","v":0},null,"N/A"]
[null,{"$f":"'Measure Descriptions'!E21","v":0},{"$f":"'Measure Descriptions'!D21","v":0},null,null,"",null,">=",{"$f":"'Measure Simulation'!R68","v":0},null,"N/A"]
[null,{"$f":"'Measure Descriptions'!E22","v":0},{"$f":"'Measure Descriptions'!D22","v":0},null,null,"",null,">=",{"$f":"'Measure Simulation'!R69","v":0},null,"N/A"]
[null,{"$f":"'Measure Descriptions'!E23","v":0},{"$f":"'Measure Descriptions'!D23","v":0},null,null,"",null,">=",{"$f":"'Measure Simulation'!R70","v":0},null,"N/A"]
[null,{"$f":"'Measure Descriptions'!E24","v":0},{"$f":"'Measure Descriptions'!D24","v":0},null,null,"",null,">=",{"$f":"'Measure Simulation'!R71","v":0},null,"N/A"]
[null,{"$f":"'Measure Descriptions'!E25","v":0},{"$f":"'Measure Descriptions'!D25","v":0},null,null,"",null,">=",{"$f":"'Measure Simulation'!R72","v":0},null,"N/A"]
[null,{"$f":"'Measure Descriptions'!E26","v":0},{"$f":"'Measure Descriptions'!D26","v":0},null,null,"",null,">=",{"$f":"'Measure Simulation'!R73","v":0},null,"N/A"]
[null,{"$f":"'Measure Descriptions'!E27","v":0},{"$f":"'Measure Descriptions'!D27","v":0},null,null,"",null,">=",{"$f":"'Measure Simulation'!R74","v":0},null,"N/A"]
[null,{"$f":"'Measure Descriptions'!E28","v":0},{"$f":"'Measure Descriptions'!D28","v":0},null,null,"",null,">=",{"$f":"'Measure Simulation'!R75","v":0},null,"N/A"]
[null,{"$f":"'Measure Descriptions'!E29","v":0},{"$f":"'Measure Descriptions'!D29","v":0},null,null,"",null,">=",{"$f":"'Measure Simulation'!R76","v":0},null,"N/A"]
[null,{"$f":"'Measure Descriptions'!E30","v":0},{"$f":"'Measure Descriptions'!D30","v":0},null,null,"",null,">=",{"$f":"'Measure Simulation'!R77","v":0},null,"N/A"]
[null,{"$f":"'Measure Descriptions'!E31","v":0},{"$f":"'Measure Descriptions'!D31","v":0},null,null,"",null,">=",{"$f":"'Measure Simulation'!R78","v":0},null,"N/A"]
[null,null,null,null,null,null,null,null,null,"Total",{"$f":"IF(COUNTIF(K79:K103,\"Fail\")>0,\"Fail\",\"Pass\")","v":"Pass"}]
[]
[null,null,null,null,null,null,null,"At least two measures? ",null,null,{"$f":"IF(B53=0, \"Fail\", \"Pass\")","v":"Fail"}]

{"sheet":"QC Measure Savings Review","index":41,"n_rows":37,"n_cols":23,"rows_kept":37,"cut":false,"hidden":true,"merged":[[3,1,3,3],[3,4,3,12],[3,14,3,22],[31,5,34,16],[36,5,38,16]]}
[]
[]
[]
[null,"Measure Savings Comparison",null,null,"Measure Simulation Table1",null,null,null,null,null,null,null,null,null,"Measure Simulation Table2"]
[null,"Measure","Name","Calculation Type","kWh","kW","NG Therms","Steam MMBtu","Hot Water MMBTU","CHW MMBTU","Fuel Oil MMBtu","Propane MMBtu","Other MMBtu","Match?","kWh","kW","NG Therms","Steam MMBtu","Hot Water MMBTU","CHW MMBTU","Fuel Oil MMBtu","Propane MMBtu","Other MMBtu"]
[null,1,{"$f":"'Measure Descriptions'!C7","v":0},{"$f":"'Measure Simulation'!F24","v":0},{"$f":"IF($D6=\"Simulation\",ROUND('Measure Simulation'!H22-'Measure Simulation'!H24,4),0)","v":0},{"$f":"IF($D6=\"Simulation\",ROUND('Measure Simulation'!I22-'Measure Simulation'!I24,4),0)","v":0},{"$f":"IF($D6=\"Simulation\",ROUND('Measure Simulation'!J22-'Measure Simulation'!J24,4),0)","v":0},{"$f":"IF($D6=\"Simulation\",ROUND('Measure Simulation'!K22-'Measure Simulation'!K24,4),0)","v":0},{"$f":"IF($D6=\"Simulation\",ROUND('Measure Simulation'!L22-'Measure Simulation'!L24,4),0)","v":0},{"$f":"IF($D6=\"Simulation\",ROUND('Measure Simulation'!M22-'Measure Simulation'!M24,4),0)","v":0},{"$f":"IF($D6=\"Simulation\",ROUND('Measure Simulation'!N22-'Measure Simulation'!N24,4),0)","v":0},{"$f":"IF($D6=\"Simulation\",ROUND('Measure Simulation'!O22-'Measure Simulation'!O24,4),0)","v":0},{"$f":"IF($D6=\"Simulation\",ROUND('Measure Simulation'!P22-'Measure Simulation'!P24,4),0)","v":0},{"$f":"IF(D6=\"Custom Calcs\",\"Check\",IF(AND(E6=O6,F6=P6,G6=Q6,H6=R6,K6=U6,L6=V6,M6=W6),\"Yes\",\"No\"))","v":"Yes"},{"$f":"ROUND('Measure Simulation'!G54,4)","v":0},{"$f":"ROUND('Measure Simulation'!O54,4)","v":0},{"$f":"ROUND('Measure Simulation'!H54,4)","v":0},{"$f":"ROUND('Measure Simulation'!I54,4)","v":0},{"$f":"ROUND('Measure Simulation'!J54,4)","v":0},{"$f":"ROUND('Measure Simulation'!K54,4)","v":0},{"$f":"ROUND('Measure Simulation'!L54,4)","v":0},{"$f":"ROUND('Measure Simulation'!M54,4)","v":0},{"$f":"ROUND('Measure Simulation'!N54,4)","v":0}]
[null,2,{"$f":"'Measure Descriptions'!C8","v":0},{"$f":"'Measure Simulation'!F25","v":0},{"$f":"IF($D7=\"Simulation\",ROUND('Measure Simulation'!H24-'Measure Simulation'!H25,4),0)","v":0},{"$f":"IF($D7=\"Simulation\",ROUND('Measure Simulation'!I24-'Measure Simulation'!I25,4),0)","v":0},{"$f":"IF($D7=\"Simulation\",ROUND('Measure Simulation'!J24-'Measure Simulation'!J25,4),0)","v":0},{"$f":"IF($D7=\"Simulation\",ROUND('Measure Simulation'!K24-'Measure Simulation'!K25,4),0)","v":0},{"$f":"IF($D7=\"Simulation\",ROUND('Measure Simulation'!L24-'Measure Simulation'!L25,4),0)","v":0},{"$f":"IF($D7=\"Simulation\",ROUND('Measure Simulation'!M24-'Measure Simulation'!M25,4),0)","v":0},{"$f":"IF($D7=\"Simulation\",ROUND('Measure Simulation'!N24-'Measure Simulation'!N25,4),0)","v":0},{"$f":"IF($D7=\"Simulation\",ROUND('Measure Simulation'!O24-'Measure Simulation'!O25,4),0)","v":0},{"$f":"IF($D7=\"Simulation\",ROUND('Measure Simulation'!P24-'Measure Simulation'!P25,4),0)","v":0},{"$f":"IF(D7=\"Custom Calcs\",\"Check\",IF(AND(E7=O7,F7=P7,G7=Q7,H7=R7,K7=U7,L7=V7,M7=W7),\"Yes\",\"No\"))","v":"Yes"},{"$f":"ROUND('Measure Simulation'!G55,4)","v":0},{"$f":"ROUND('Measure Simulation'!O55,4)","v":0},{"$f":"ROUND('Measure Simulation'!H55,4)","v":0},{"$f":"ROUND('Measure Simulation'!I55,4)","v":0},{"$f":"ROUND('Measure Simulation'!J55,4)","v":0},{"$f":"ROUND('Measure Simulation'!K55,4)","v":0},{"$f":"ROUND('Measure Simulation'!L55,4)","v":0},{"$f":"ROUND('Measure Simulation'!M55,4)","v":0},{"$f":"ROUND('Measure Simulation'!N55,4)","v":0}]
[null,3,{"$f":"'Measure Descriptions'!C9","v":0},{"$f":"'Measure Simulation'!F26","v":0},{"$f":"IF($D8=\"Simulation\",ROUND('Measure Simulation'!H25-'Measure Simulation'!H26,4),0)","v":0},{"$f":"IF($D8=\"Simulation\",ROUND('Measure Simulation'!I25-'Measure Simulation'!I26,4),0)","v":0},{"$f":"IF($D8=\"Simulation\",ROUND('Measure Simulation'!J25-'Measure Simulation'!J26,4),0)","v":0},{"$f":"IF($D8=\"Simulation\",ROUND('Measure Simulation'!K25-'Measure Simulation'!K26,4),0)","v":0},{"$f":"IF($D8=\"Simulation\",ROUND('Measure Simulation'!L25-'Measure Simulation'!L26,4),0)","v":0},{"$f":"IF($D8=\"Simulation\",ROUND('Measure Simulation'!M25-'Measure Simulation'!M26,4),0)","v":0},{"$f":"IF($D8=\"Simulation\",ROUND('Measure Simulation'!N25-'Measure Simulation'!N26,4),0)","v":0},{"$f":"IF($D8=\"Simulation\",ROUND('Measure Simulation'!O25-'Measure Simulation'!O26,4),0)","v":0},{"$f":"IF($D8=\"Simulation\",ROUND('Measure Simulation'!P25-'Measure Simulation'!P26,4),0)","v":0},"Yes",{"$f":"ROUND('Measure Simulation'!G56,4)","v":0},{"$f":"ROUND('Measure Simulation'!O56,4)","v":0},{"$f":"ROUND('Measure Simulation'!H56,4)","v":0},{"$f":"ROUND('Measure Simulation'!I56,4)","v":0},{"$f":"ROUND('Measure Simulation'!J56,4)","v":0},{"$f":"ROUND('Measure Simulation'!K56,4)","v":0},{"$f":"ROUND('Measure Simulation'!L56,4)","v":0},{"$f":"ROUND('Measure Simulation'!M56,4)","v":0},{"$f":"ROUND('Measure Simulation'!N56,4)","v":0}]
[null,4,{"$f":"'Measure Descriptions'!C10","v":0},{"$f":"'Measure Simulation'!F27","v":0},{"$f":"IF($D9=\"Simulation\",ROUND('Measure Simulation'!H26-'Measure Simulation'!H27,4),0)","v":0},{"$f":"IF($D9=\"Simulation\",ROUND('Measure Simulation'!I26-'Measure Simulation'!I27,4),0)","v":0},{"$f":"IF($D9=\"Simulation\",ROUND('Measure Simulation'!J26-'Measure Simulation'!J27,4),0)","v":0},{"$f":"IF($D9=\"Simulation\",ROUND('Measure Simulation'!K26-'Measure Simulation'!K27,4),0)","v":0},{"$f":"IF($D9=\"Simulation\",ROUND('Measure Simulation'!L26-'Measure Simulation'!L27,4),0)","v":0},{"$f":"IF($D9=\"Simulation\",ROUND('Measure Simulation'!M26-'Measure Simulation'!M27,4),0)","v":0},{"$f":"IF($D9=\"Simulation\",ROUND('Measure Simulation'!N26-'Measure Simulation'!N27,4),0)","v":0},{"$f":"IF($D9=\"Simulation\",ROUND('Measure Simulation'!O26-'Measure Simulation'!O27,4),0)","v":0},{"$f":"IF($D9=\"Simulation\",ROUND('Measure Simulation'!P26-'Measure Simulation'!P27,4),0)","v":0},"Yes",{"$f":"ROUND('Measure Simulation'!G57,4)","v":0},{"$f":"ROUND('Measure Simulation'!O57,4)","v":0},{"$f":"ROUND('Measure Simulation'!H57,4)","v":0},{"$f":"ROUND('Measure Simulation'!I57,4)","v":0},{"$f":"ROUND('Measure Simulation'!J57,4)","v":0},{"$f":"ROUND('Measure Simulation'!K57,4)","v":0},{"$f":"ROUND('Measure Simulation'!L57,4)","v":0},{"$f":"ROUND('Measure Simulation'!M57,4)","v":0},{"$f":"ROUND('Measure Simulation'!N57,4)","v":0}]
[null,5,{"$f":"'Measure Descriptions'!C11","v":0},{"$f":"'Measure Simulation'!F28","v":0},{"$f":"IF($D10=\"Simulation\",ROUND('Measure Simulation'!H27-'Measure Simulation'!H28,4),0)","v":0},{"$f":"IF($D10=\"Simulation\",ROUND('Measure Simulation'!I27-'Measure Simulation'!I28,4),0)","v":0},{"$f":"IF($D10=\"Simulation\",ROUND('Measure Simulation'!J27-'Measure Simulation'!J28,4),0)","v":0},{"$f":"IF($D10=\"Simulation\",ROUND('Measure Simulation'!K27-'Measure Simulation'!K28,4),0)","v":0},{"$f":"IF($D10=\"Simulation\",ROUND('Measure Simulation'!L27-'Measure Simulation'!L28,4),0)","v":0},{"$f":"IF($D10=\"Simulation\",ROUND('Measure Simulation'!M27-'Measure Simulation'!M28,4),0)","v":0},{"$f":"IF($D10=\"Simulation\",ROUND('Measure Simulation'!N27-'Measure Simulation'!N28,4),0)","v":0},{"$f":"IF($D10=\"Simulation\",ROUND('Measure Simulation'!O27-'Measure Simulation'!O28,4),0)","v":0},{"$f":"IF($D10=\"Simulation\",ROUND('Measure Simulation'!P27-'Measure Simulation'!P28,4),0)","v":0},"Yes",{"$f":"ROUND('Measure Simulation'!G58,4)","v":0},{"$f":"ROUND('Measure Simulation'!O58,4)","v":0},{"$f":"ROUND('Measure Simulation'!H58,4)","v":0},{"$f":"ROUND('Measure Simulation'!I58,4)","v":0},{"$f":"ROUND('Measure Simulation'!J58,4)","v":0},{"$f":"ROUND('Measure Simulation'!K58,4)","v":0},{"$f":"ROUND('Measure Simulation'!L58,4)","v":0},{"$f":"ROUND('Measure Simulation'!M58,4)","v":0},{"$f":"ROUND('Measure Simulation'!N58,4)","v":0}]
[null,6,{"$f":"'Measure Descriptions'!C12","v":0},{"$f":"'Measure Simulation'!F29","v":0},{"$f":"IF($D11=\"Simulation\",ROUND('Measure Simulation'!H28-'Measure Simulation'!H29,4),0)","v":0},{"$f":"IF($D11=\"Simulation\",ROUND('Measure Simulation'!I28-'Measure Simulation'!I29,4),0)","v":0},{"$f":"IF($D11=\"Simulation\",ROUND('Measure Simulation'!J28-'Measure Simulation'!J29,4),0)","v":0},{"$f":"IF($D11=\"Simulation\",ROUND('Measure Simulation'!K28-'Measure Simulation'!K29,4),0)","v":0},{"$f":"IF($D11=\"Simulation\",ROUND('Measure Simulation'!L28-'Measure Simulation'!L29,4),0)","v":0},{"$f":"IF($D11=\"Simulation\",ROUND('Measure Simulation'!M28-'Measure Simulation'!M29,4),0)","v":0},{"$f":"IF($D11=\"Simulation\",ROUND('Measure Simulation'!N28-'Measure Simulation'!N29,4),0)","v":0},{"$f":"IF($D11=\"Simulation\",ROUND('Measure Simulation'!O28-'Measure Simulation'!O29,4),0)","v":0},{"$f":"IF($D11=\"Simulation\",ROUND('Measure Simulation'!P28-'Measure Simulation'!P29,4),0)","v":0},"Yes",{"$f":"ROUND('Measure Simulation'!G59,4)","v":0},{"$f":"ROUND('Measure Simulation'!O59,4)","v":0},{"$f":"ROUND('Measure Simulation'!H59,4)","v":0},{"$f":"ROUND('Measure Simulation'!I59,4)","v":0},{"$f":"ROUND('Measure Simulation'!J59,4)","v":0},{"$f":"ROUND('Measure Simulation'!K59,4)","v":0},{"$f":"ROUND('Measure Simulation'!L59,4)","v":0},{"$f":"ROUND('Measure Simulation'!M59,4)","v":0},{"$f":"ROUND('Measure Simulation'!N59,4)","v":0}]
[null,7,{"$f":"'Measure Descriptions'!C13","v":0},{"$f":"'Measure Simulation'!F30","v":0},{"$f":"IF($D12=\"Simulation\",ROUND('Measure Simulation'!H29-'Measure Simulation'!H30,4),0)","v":0},{"$f":"IF($D12=\"Simulation\",ROUND('Measure Simulation'!I29-'Measure Simulation'!I30,4),0)","v":0},{"$f":"IF($D12=\"Simulation\",ROUND('Measure Simulation'!J29-'Measure Simulation'!J30,4),0)","v":0},{"$f":"IF($D12=\"Simulation\",ROUND('Measure Simulation'!K29-'Measure Simulation'!K30,4),0)","v":0},{"$f":"IF($D12=\"Simulation\",ROUND('Measure Simulation'!L29-'Measure Simulation'!L30,4),0)","v":0},{"$f":"IF($D12=\"Simulation\",ROUND('Measure Simulation'!M29-'Measure Simulation'!M30,4),0)","v":0},{"$f":"IF($D12=\"Simulation\",ROUND('Measure Simulation'!N29-'Measure Simulation'!N30,4),0)","v":0},{"$f":"IF($D12=\"Simulation\",ROUND('Measure Simulation'!O29-'Measure Simulation'!O30,4),0)","v":0},{"$f":"IF($D12=\"Simulation\",ROUND('Measure Simulation'!P29-'Measure Simulation'!P30,4),0)","v":0},"Yes",{"$f":"ROUND('Measure Simulation'!G60,4)","v":0},{"$f":"ROUND('Measure Simulation'!O60,4)","v":0},{"$f":"ROUND('Measure Simulation'!H60,4)","v":0},{"$f":"ROUND('Measure Simulation'!I60,4)","v":0},{"$f":"ROUND('Measure Simulation'!J60,4)","v":0},{"$f":"ROUND('Measure Simulation'!K60,4)","v":0},{"$f":"ROUND('Measure Simulation'!L60,4)","v":0},{"$f":"ROUND('Measure Simulation'!M60,4)","v":0},{"$f":"ROUND('Measure Simulation'!N60,4)","v":0}]
[null,8,{"$f":"'Measure Descriptions'!C14","v":0},{"$f":"'Measure Simulation'!F31","v":0},{"$f":"IF($D13=\"Simulation\",ROUND('Measure Simulation'!H30-'Measure Simulation'!H31,4),0)","v":0},{"$f":"IF($D13=\"Simulation\",ROUND('Measure Simulation'!I30-'Measure Simulation'!I31,4),0)","v":0},{"$f":"IF($D13=\"Simulation\",ROUND('Measure Simulation'!J30-'Measure Simulation'!J31,4),0)","v":0},{"$f":"IF($D13=\"Simulation\",ROUND('Measure Simulation'!K30-'Measure Simulation'!K31,4),0)","v":0},{"$f":"IF($D13=\"Simulation\",ROUND('Measure Simulation'!L30-'Measure Simulation'!L31,4),0)","v":0},{"$f":"IF($D13=\"Simulation\",ROUND('Measure Simulation'!M30-'Measure Simulation'!M31,4),0)","v":0},{"$f":"IF($D13=\"Simulation\",ROUND('Measure Simulation'!N30-'Measure Simulation'!N31,4),0)","v":0},{"$f":"IF($D13=\"Simulation\",ROUND('Measure Simulation'!O30-'Measure Simulation'!O31,4),0)","v":0},{"$f":"IF($D13=\"Simulation\",ROUND('Measure Simulation'!P30-'Measure Simulation'!P31,4),0)","v":0},"Yes",{"$f":"ROUND('Measure Simulation'!G61,4)","v":0},{"$f":"ROUND('Measure Simulation'!O61,4)","v":0},{"$f":"ROUND('Measure Simulation'!H61,4)","v":0},{"$f":"ROUND('Measure Simulation'!I61,4)","v":0},{"$f":"ROUND('Measure Simulation'!J61,4)","v":0},{"$f":"ROUND('Measure Simulation'!K61,4)","v":0},{"$f":"ROUND('Measure Simulation'!L61,4)","v":0},{"$f":"ROUND('Measure Simulation'!M61,4)","v":0},{"$f":"ROUND('Measure Simulation'!N61,4)","v":0}]
[null,9,{"$f":"'Measure Descriptions'!C15","v":0},{"$f":"'Measure Simulation'!F32","v":0},{"$f":"IF($D14=\"Simulation\",ROUND('Measure Simulation'!H31-'Measure Simulation'!H32,4),0)","v":0},{"$f":"IF($D14=\"Simulation\",ROUND('Measure Simulation'!I31-'Measure Simulation'!I32,4),0)","v":0},{"$f":"IF($D14=\"Simulation\",ROUND('Measure Simulation'!J31-'Measure Simulation'!J32,4),0)","v":0},{"$f":"IF($D14=\"Simulation\",ROUND('Measure Simulation'!K31-'Measure Simulation'!K32,4),0)","v":0},{"$f":"IF($D14=\"Simulation\",ROUND('Measure Simulation'!L31-'Measure Simulation'!L32,4),0)","v":0},{"$f":"IF($D14=\"Simulation\",ROUND('Measure Simulation'!M31-'Measure Simulation'!M32,4),0)","v":0},{"$f":"IF($D14=\"Simulation\",ROUND('Measure Simulation'!N31-'Measure Simulation'!N32,4),0)","v":0},{"$f":"IF($D14=\"Simulation\",ROUND('Measure Simulation'!O31-'Measure Simulation'!O32,4),0)","v":0},{"$f":"IF($D14=\"Simulation\",ROUND('Measure Simulation'!P31-'Measure Simulation'!P32,4),0)","v":0},"Yes",{"$f":"ROUND('Measure Simulation'!G62,4)","v":0},{"$f":"ROUND('Measure Simulation'!O62,4)","v":0},{"$f":"ROUND('Measure Simulation'!H62,4)","v":0},{"$f":"ROUND('Measure Simulation'!I62,4)","v":0},{"$f":"ROUND('Measure Simulation'!J62,4)","v":0},{"$f":"ROUND('Measure Simulation'!K62,4)","v":0},{"$f":"ROUND('Measure Simulation'!L62,4)","v":0},{"$f":"ROUND('Measure Simulation'!M62,4)","v":0},{"$f":"ROUND('Measure Simulation'!N62,4)","v":0}]
[null,10,{"$f":"'Measure Descriptions'!C16","v":0},{"$f":"'Measure Simulation'!F33","v":0},{"$f":"IF($D15=\"Simulation\",ROUND('Measure Simulation'!H32-'Measure Simulation'!H33,4),0)","v":0},{"$f":"IF($D15=\"Simulation\",ROUND('Measure Simulation'!I32-'Measure Simulation'!I33,4),0)","v":0},{"$f":"IF($D15=\"Simulation\",ROUND('Measure Simulation'!J32-'Measure Simulation'!J33,4),0)","v":0},{"$f":"IF($D15=\"Simulation\",ROUND('Measure Simulation'!K32-'Measure Simulation'!K33,4),0)","v":0},{"$f":"IF($D15=\"Simulation\",ROUND('Measure Simulation'!L32-'Measure Simulation'!L33,4),0)","v":0},{"$f":"IF($D15=\"Simulation\",ROUND('Measure Simulation'!M32-'Measure Simulation'!M33,4),0)","v":0},{"$f":"IF($D15=\"Simulation\",ROUND('Measure Simulation'!N32-'Measure Simulation'!N33,4),0)","v":0},{"$f":"IF($D15=\"Simulation\",ROUND('Measure Simulation'!O32-'Measure Simulation'!O33,4),0)","v":0},{"$f":"IF($D15=\"Simulation\",ROUND('Measure Simulation'!P32-'Measure Simulation'!P33,4),0)","v":0},"Yes",{"$f":"ROUND('Measure Simulation'!G63,4)","v":0},{"$f":"ROUND('Measure Simulation'!O63,4)","v":0},{"$f":"ROUND('Measure Simulation'!H63,4)","v":0},{"$f":"ROUND('Measure Simulation'!I63,4)","v":0},{"$f":"ROUND('Measure Simulation'!J63,4)","v":0},{"$f":"ROUND('Measure Simulation'!K63,4)","v":0},{"$f":"ROUND('Measure Simulation'!L63,4)","v":0},{"$f":"ROUND('Measure Simulation'!M63,4)","v":0},{"$f":"ROUND('Measure Simulation'!N63,4)","v":0}]
[null,11,{"$f":"'Measure Descriptions'!C17","v":0},{"$f":"'Measure Simulation'!F34","v":0},{"$f":"IF($D16=\"Simulation\",ROUND('Measure Simulation'!H33-'Measure Simulation'!H34,4),0)","v":0},{"$f":"IF($D16=\"Simulation\",ROUND('Measure Simulation'!I33-'Measure Simulation'!I34,4),0)","v":0},{"$f":"IF($D16=\"Simulation\",ROUND('Measure Simulation'!J33-'Measure Simulation'!J34,4),0)","v":0},{"$f":"IF($D16=\"Simulation\",ROUND('Measure Simulation'!K33-'Measure Simulation'!K34,4),0)","v":0},{"$f":"IF($D16=\"Simulation\",ROUND('Measure Simulation'!L33-'Measure Simulation'!L34,4),0)","v":0},{"$f":"IF($D16=\"Simulation\",ROUND('Measure Simulation'!M33-'Measure Simulation'!M34,4),0)","v":0},{"$f":"IF($D16=\"Simulation\",ROUND('Measure Simulation'!N33-'Measure Simulation'!N34,4),0)","v":0},{"$f":"IF($D16=\"Simulation\",ROUND('Measure Simulation'!O33-'Measure Simulation'!O34,4),0)","v":0},{"$f":"IF($D16=\"Simulation\",ROUND('Measure Simulation'!P33-'Measure Simulation'!P34,4),0)","v":0},"Yes",{"$f":"ROUND('Measure Simulation'!G64,4)","v":0},{"$f":"ROUND('Measure Simulation'!O64,4)","v":0},{"$f":"ROUND('Measure Simulation'!H64,4)","v":0},{"$f":"ROUND('Measure Simulation'!I64,4)","v":0},{"$f":"ROUND('Measure Simulation'!J64,4)","v":0},{"$f":"ROUND('Measure Simulation'!K64,4)","v":0},{"$f":"ROUND('Measure Simulation'!L64,4)","v":0},{"$f":"ROUND('Measure Simulation'!M64,4)","v":0},{"$f":"ROUND('Measure Simulation'!N64,4)","v":0}]
[null,12,{"$f":"'Measure Descriptions'!C18","v":0},{"$f":"'Measure Simulation'!F35","v":0},{"$f":"IF($D17=\"Simulation\",ROUND('Measure Simulation'!H34-'Measure Simulation'!H35,4),0)","v":0},{"$f":"IF($D17=\"Simulation\",ROUND('Measure Simulation'!I34-'Measure Simulation'!I35,4),0)","v":0},{"$f":"IF($D17=\"Simulation\",ROUND('Measure Simulation'!J34-'Measure Simulation'!J35,4),0)","v":0},{"$f":"IF($D17=\"Simulation\",ROUND('Measure Simulation'!K34-'Measure Simulation'!K35,4),0)","v":0},{"$f":"IF($D17=\"Simulation\",ROUND('Measure Simulation'!L34-'Measure Simulation'!L35,4),0)","v":0},{"$f":"IF($D17=\"Simulation\",ROUND('Measure Simulation'!M34-'Measure Simulation'!M35,4),0)","v":0},{"$f":"IF($D17=\"Simulation\",ROUND('Measure Simulation'!N34-'Measure Simulation'!N35,4),0)","v":0},{"$f":"IF($D17=\"Simulation\",ROUND('Measure Simulation'!O34-'Measure Simulation'!O35,4),0)","v":0},{"$f":"IF($D17=\"Simulation\",ROUND('Measure Simulation'!P34-'Measure Simulation'!P35,4),0)","v":0},"Yes",{"$f":"ROUND('Measure Simulation'!G65,4)","v":0},{"$f":"ROUND('Measure Simulation'!O65,4)","v":0},{"$f":"ROUND('Measure Simulation'!H65,4)","v":0},{"$f":"ROUND('Measure Simulation'!I65,4)","v":0},{"$f":"ROUND('Measure Simulation'!J65,4)","v":0},{"$f":"ROUND('Measure Simulation'!K65,4)","v":0},{"$f":"ROUND('Measure Simulation'!L65,4)","v":0},{"$f":"ROUND('Measure Simulation'!M65,4)","v":0},{"$f":"ROUND('Measure Simulation'!N65,4)","v":0}]
[null,13,{"$f":"'Measure Descriptions'!C19","v":0},{"$f":"'Measure Simulation'!F36","v":0},{"$f":"IF($D18=\"Simulation\",ROUND('Measure Simulation'!H35-'Measure Simulation'!H36,4),0)","v":0},{"$f":"IF($D18=\"Simulation\",ROUND('Measure Simulation'!I35-'Measure Simulation'!I36,4),0)","v":0},{"$f":"IF($D18=\"Simulation\",ROUND('Measure Simulation'!J35-'Measure Simulation'!J36,4),0)","v":0},{"$f":"IF($D18=\"Simulation\",ROUND('Measure Simulation'!K35-'Measure Simulation'!K36,4),0)","v":0},{"$f":"IF($D18=\"Simulation\",ROUND('Measure Simulation'!L35-'Measure Simulation'!L36,4),0)","v":0},{"$f":"IF($D18=\"Simulation\",ROUND('Measure Simulation'!M35-'Measure Simulation'!M36,4),0)","v":0},{"$f":"IF($D18=\"Simulation\",ROUND('Measure Simulation'!N35-'Measure Simulation'!N36,4),0)","v":0},{"$f":"IF($D18=\"Simulation\",ROUND('Measure Simulation'!O35-'Measure Simulation'!O36,4),0)","v":0},{"$f":"IF($D18=\"Simulation\",ROUND('Measure Simulation'!P35-'Measure Simulation'!P36,4),0)","v":0},"Yes",{"$f":"ROUND('Measure Simulation'!G66,4)","v":0},{"$f":"ROUND('Measure Simulation'!O66,4)","v":0},{"$f":"ROUND('Measure Simulation'!H66,4)","v":0},{"$f":"ROUND('Measure Simulation'!I66,4)","v":0},{"$f":"ROUND('Measure Simulation'!J66,4)","v":0},{"$f":"ROUND('Measure Simulation'!K66,4)","v":0},{"$f":"ROUND('Measure Simulation'!L66,4)","v":0},{"$f":"ROUND('Measure Simulation'!M66,4)","v":0},{"$f":"ROUND('Measure Simulation'!N66,4)","v":0}]
[null,14,{"$f":"'Measure Descriptions'!C20","v":0},{"$f":"'Measure Simulation'!F37","v":0},{"$f":"IF($D19=\"Simulation\",ROUND('Measure Simulation'!H36-'Measure Simulation'!H37,4),0)","v":0},{"$f":"IF($D19=\"Simulation\",ROUND('Measure Simulation'!I36-'Measure Simulation'!I37,4),0)","v":0},{"$f":"IF($D19=\"Simulation\",ROUND('Measure Simulation'!J36-'Measure Simulation'!J37,4),0)","v":0},{"$f":"IF($D19=\"Simulation\",ROUND('Measure Simulation'!K36-'Measure Simulation'!K37,4),0)","v":0},{"$f":"IF($D19=\"Simulation\",ROUND('Measure Simulation'!L36-'Measure Simulation'!L37,4),0)","v":0},{"$f":"IF($D19=\"Simulation\",ROUND('Measure Simulation'!M36-'Measure Simulation'!M37,4),0)","v":0},{"$f":"IF($D19=\"Simulation\",ROUND('Measure Simulation'!N36-'Measure Simulation'!N37,4),0)","v":0},{"$f":"IF($D19=\"Simulation\",ROUND('Measure Simulation'!O36-'Measure Simulation'!O37,4),0)","v":0},{"$f":"IF($D19=\"Simulation\",ROUND('Measure Simulation'!P36-'Measure Simulation'!P37,4),0)","v":0},"Yes",{"$f":"ROUND('Measure Simulation'!G67,4)","v":0},{"$f":"ROUND('Measure Simulation'!O67,4)","v":0},{"$f":"ROUND('Measure Simulation'!H67,4)","v":0},{"$f":"ROUND('Measure Simulation'!I67,4)","v":0},{"$f":"ROUND('Measure Simulation'!J67,4)","v":0},{"$f":"ROUND('Measure Simulation'!K67,4)","v":0},{"$f":"ROUND('Measure Simulation'!L67,4)","v":0},{"$f":"ROUND('Measure Simulation'!M67,4)","v":0},{"$f":"ROUND('Measure Simulation'!N67,4)","v":0}]
[null,15,{"$f":"'Measure Descriptions'!C21","v":0},{"$f":"'Measure Simulation'!F38","v":0},{"$f":"IF($D20=\"Simulation\",ROUND('Measure Simulation'!H37-'Measure Simulation'!H38,4),0)","v":0},{"$f":"IF($D20=\"Simulation\",ROUND('Measure Simulation'!I37-'Measure Simulation'!I38,4),0)","v":0},{"$f":"IF($D20=\"Simulation\",ROUND('Measure Simulation'!J37-'Measure Simulation'!J38,4),0)","v":0},{"$f":"IF($D20=\"Simulation\",ROUND('Measure Simulation'!K37-'Measure Simulation'!K38,4),0)","v":0},{"$f":"IF($D20=\"Simulation\",ROUND('Measure Simulation'!L37-'Measure Simulation'!L38,4),0)","v":0},{"$f":"IF($D20=\"Simulation\",ROUND('Measure Simulation'!M37-'Measure Simulation'!M38,4),0)","v":0},{"$f":"IF($D20=\"Simulation\",ROUND('Measure Simulation'!N37-'Measure Simulation'!N38,4),0)","v":0},{"$f":"IF($D20=\"Simulation\",ROUND('Measure Simulation'!O37-'Measure Simulation'!O38,4),0)","v":0},{"$f":"IF($D20=\"Simulation\",ROUND('Measure Simulation'!P37-'Measure Simulation'!P38,4),0)","v":0},"Yes",{"$f":"ROUND('Measure Simulation'!G68,4)","v":0},{"$f":"ROUND('Measure Simulation'!O68,4)","v":0},{"$f":"ROUND('Measure Simulation'!H68,4)","v":0},{"$f":"ROUND('Measure Simulation'!I68,4)","v":0},{"$f":"ROUND('Measure Simulation'!J68,4)","v":0},{"$f":"ROUND('Measure Simulation'!K68,4)","v":0},{"$f":"ROUND('Measure Simulation'!L68,4)","v":0},{"$f":"ROUND('Measure Simulation'!M68,4)","v":0},{"$f":"ROUND('Measure Simulation'!N68,4)","v":0}]
[null,16,{"$f":"'Measure Descriptions'!C22","v":0},{"$f":"'Measure Simulation'!F39","v":0},{"$f":"IF($D21=\"Simulation\",ROUND('Measure Simulation'!H38-'Measure Simulation'!H39,4),0)","v":0},{"$f":"IF($D21=\"Simulation\",ROUND('Measure Simulation'!I38-'Measure Simulation'!I39,4),0)","v":0},{"$f":"IF($D21=\"Simulation\",ROUND('Measure Simulation'!J38-'Measure Simulation'!J39,4),0)","v":0},{"$f":"IF($D21=\"Simulation\",ROUND('Measure Simulation'!K38-'Measure Simulation'!K39,4),0)","v":0},{"$f":"IF($D21=\"Simulation\",ROUND('Measure Simulation'!L38-'Measure Simulation'!L39,4),0)","v":0},{"$f":"IF($D21=\"Simulation\",ROUND('Measure Simulation'!M38-'Measure Simulation'!M39,4),0)","v":0},{"$f":"IF($D21=\"Simulation\",ROUND('Measure Simulation'!N38-'Measure Simulation'!N39,4),0)","v":0},{"$f":"IF($D21=\"Simulation\",ROUND('Measure Simulation'!O38-'Measure Simulation'!O39,4),0)","v":0},{"$f":"IF($D21=\"Simulation\",ROUND('Measure Simulation'!P38-'Measure Simulation'!P39,4),0)","v":0},"Yes",{"$f":"ROUND('Measure Simulation'!G69,4)","v":0},{"$f":"ROUND('Measure Simulation'!O69,4)","v":0},{"$f":"ROUND('Measure Simulation'!H69,4)","v":0},{"$f":"ROUND('Measure Simulation'!I69,4)","v":0},{"$f":"ROUND('Measure Simulation'!J69,4)","v":0},{"$f":"ROUND('Measure Simulation'!K69,4)","v":0},{"$f":"ROUND('Measure Simulation'!L69,4)","v":0},{"$f":"ROUND('Measure Simulation'!M69,4)","v":0},{"$f":"ROUND('Measure Simulation'!N69,4)","v":0}]
[null,17,{"$f":"'Measure Descriptions'!C23","v":0},{"$f":"'Measure Simulation'!F40","v":0},{"$f":"IF($D22=\"Simulation\",ROUND('Measure Simulation'!H39-'Measure Simulation'!H40,4),0)","v":0},{"$f":"IF($D22=\"Simulation\",ROUND('Measure Simulation'!I39-'Measure Simulation'!I40,4),0)","v":0},{"$f":"IF($D22=\"Simulation\",ROUND('Measure Simulation'!J39-'Measure Simulation'!J40,4),0)","v":0},{"$f":"IF($D22=\"Simulation\",ROUND('Measure Simulation'!K39-'Measure Simulation'!K40,4),0)","v":0},{"$f":"IF($D22=\"Simulation\",ROUND('Measure Simulation'!L39-'Measure Simulation'!L40,4),0)","v":0},{"$f":"IF($D22=\"Simulation\",ROUND('Measure Simulation'!M39-'Measure Simulation'!M40,4),0)","v":0},{"$f":"IF($D22=\"Simulation\",ROUND('Measure Simulation'!N39-'Measure Simulation'!N40,4),0)","v":0},{"$f":"IF($D22=\"Simulation\",ROUND('Measure Simulation'!O39-'Measure Simulation'!O40,4),0)","v":0},{"$f":"IF($D22=\"Simulation\",ROUND('Measure Simulation'!P39-'Measure Simulation'!P40,4),0)","v":0},"Yes",{"$f":"ROUND('Measure Simulation'!G70,4)","v":0},{"$f":"ROUND('Measure Simulation'!O70,4)","v":0},{"$f":"ROUND('Measure Simulation'!H70,4)","v":0},{"$f":"ROUND('Measure Simulation'!I70,4)","v":0},{"$f":"ROUND('Measure Simulation'!J70,4)","v":0},{"$f":"ROUND('Measure Simulation'!K70,4)","v":0},{"$f":"ROUND('Measure Simulation'!L70,4)","v":0},{"$f":"ROUND('Measure Simulation'!M70,4)","v":0},{"$f":"ROUND('Measure Simulation'!N70,4)","v":0}]
[null,18,{"$f":"'Measure Descriptions'!C24","v":0},{"$f":"'Measure Simulation'!F41","v":0},{"$f":"IF($D23=\"Simulation\",ROUND('Measure Simulation'!H40-'Measure Simulation'!H41,4),0)","v":0},{"$f":"IF($D23=\"Simulation\",ROUND('Measure Simulation'!I40-'Measure Simulation'!I41,4),0)","v":0},{"$f":"IF($D23=\"Simulation\",ROUND('Measure Simulation'!J40-'Measure Simulation'!J41,4),0)","v":0},{"$f":"IF($D23=\"Simulation\",ROUND('Measure Simulation'!K40-'Measure Simulation'!K41,4),0)","v":0},{"$f":"IF($D23=\"Simulation\",ROUND('Measure Simulation'!L40-'Measure Simulation'!L41,4),0)","v":0},{"$f":"IF($D23=\"Simulation\",ROUND('Measure Simulation'!M40-'Measure Simulation'!M41,4),0)","v":0},{"$f":"IF($D23=\"Simulation\",ROUND('Measure Simulation'!N40-'Measure Simulation'!N41,4),0)","v":0},{"$f":"IF($D23=\"Simulation\",ROUND('Measure Simulation'!O40-'Measure Simulation'!O41,4),0)","v":0},{"$f":"IF($D23=\"Simulation\",ROUND('Measure Simulation'!P40-'Measure Simulation'!P41,4),0)","v":0},"Yes",{"$f":"ROUND('Measure Simulation'!G71,4)","v":0},{"$f":"ROUND('Measure Simulation'!O71,4)","v":0},{"$f":"ROUND('Measure Simulation'!H71,4)","v":0},{"$f":"ROUND('Measure Simulation'!I71,4)","v":0},{"$f":"ROUND('Measure Simulation'!J71,4)","v":0},{"$f":"ROUND('Measure Simulation'!K71,4)","v":0},{"$f":"ROUND('Measure Simulation'!L71,4)","v":0},{"$f":"ROUND('Measure Simulation'!M71,4)","v":0},{"$f":"ROUND('Measure Simulation'!N71,4)","v":0}]
[null,19,{"$f":"'Measure Descriptions'!C25","v":0},{"$f":"'Measure Simulation'!F42","v":0},{"$f":"IF($D24=\"Simulation\",ROUND('Measure Simulation'!H41-'Measure Simulation'!H42,4),0)","v":0},{"$f":"IF($D24=\"Simulation\",ROUND('Measure Simulation'!I41-'Measure Simulation'!I42,4),0)","v":0},{"$f":"IF($D24=\"Simulation\",ROUND('Measure Simulation'!J41-'Measure Simulation'!J42,4),0)","v":0},{"$f":"IF($D24=\"Simulation\",ROUND('Measure Simulation'!K41-'Measure Simulation'!K42,4),0)","v":0},{"$f":"IF($D24=\"Simulation\",ROUND('Measure Simulation'!L41-'Measure Simulation'!L42,4),0)","v":0},{"$f":"IF($D24=\"Simulation\",ROUND('Measure Simulation'!M41-'Measure Simulation'!M42,4),0)","v":0},{"$f":"IF($D24=\"Simulation\",ROUND('Measure Simulation'!N41-'Measure Simulation'!N42,4),0)","v":0},{"$f":"IF($D24=\"Simulation\",ROUND('Measure Simulation'!O41-'Measure Simulation'!O42,4),0)","v":0},{"$f":"IF($D24=\"Simulation\",ROUND('Measure Simulation'!P41-'Measure Simulation'!P42,4),0)","v":0},"Yes",{"$f":"ROUND('Measure Simulation'!G72,4)","v":0},{"$f":"ROUND('Measure Simulation'!O72,4)","v":0},{"$f":"ROUND('Measure Simulation'!H72,4)","v":0},{"$f":"ROUND('Measure Simulation'!I72,4)","v":0},{"$f":"ROUND('Measure Simulation'!J72,4)","v":0},{"$f":"ROUND('Measure Simulation'!K72,4)","v":0},{"$f":"ROUND('Measure Simulation'!L72,4)","v":0},{"$f":"ROUND('Measure Simulation'!M72,4)","v":0},{"$f":"ROUND('Measure Simulation'!N72,4)","v":0}]
[null,20,{"$f":"'Measure Descriptions'!C26","v":0},{"$f":"'Measure Simulation'!F43","v":0},{"$f":"IF($D25=\"Simulation\",ROUND('Measure Simulation'!H42-'Measure Simulation'!H43,4),0)","v":0},{"$f":"IF($D25=\"Simulation\",ROUND('Measure Simulation'!I42-'Measure Simulation'!I43,4),0)","v":0},{"$f":"IF($D25=\"Simulation\",ROUND('Measure Simulation'!J42-'Measure Simulation'!J43,4),0)","v":0},{"$f":"IF($D25=\"Simulation\",ROUND('Measure Simulation'!K42-'Measure Simulation'!K43,4),0)","v":0},{"$f":"IF($D25=\"Simulation\",ROUND('Measure Simulation'!L42-'Measure Simulation'!L43,4),0)","v":0},{"$f":"IF($D25=\"Simulation\",ROUND('Measure Simulation'!M42-'Measure Simulation'!M43,4),0)","v":0},{"$f":"IF($D25=\"Simulation\",ROUND('Measure Simulation'!N42-'Measure Simulation'!N43,4),0)","v":0},{"$f":"IF($D25=\"Simulation\",ROUND('Measure Simulation'!O42-'Measure Simulation'!O43,4),0)","v":0},{"$f":"IF($D25=\"Simulation\",ROUND('Measure Simulation'!P42-'Measure Simulation'!P43,4),0)","v":0},"Yes",{"$f":"ROUND('Measure Simulation'!G73,4)","v":0},{"$f":"ROUND('Measure Simulation'!O73,4)","v":0},{"$f":"ROUND('Measure Simulation'!H73,4)","v":0},{"$f":"ROUND('Measure Simulation'!I73,4)","v":0},{"$f":"ROUND('Measure Simulation'!J73,4)","v":0},{"$f":"ROUND('Measure Simulation'!K73,4)","v":0},{"$f":"ROUND('Measure Simulation'!L73,4)","v":0},{"$f":"ROUND('Measure Simulation'!M73,4)","v":0},{"$f":"ROUND('Measure Simulation'!N73,4)","v":0}]
[null,21,{"$f":"'Measure Descriptions'!C27","v":0},{"$f":"'Measure Simulation'!F44","v":0},{"$f":"IF($D26=\"Simulation\",ROUND('Measure Simulation'!H43-'Measure Simulation'!H44,4),0)","v":0},{"$f":"IF($D26=\"Simulation\",ROUND('Measure Simulation'!I43-'Measure Simulation'!I44,4),0)","v":0},{"$f":"IF($D26=\"Simulation\",ROUND('Measure Simulation'!J43-'Measure Simulation'!J44,4),0)","v":0},{"$f":"IF($D26=\"Simulation\",ROUND('Measure Simulation'!K43-'Measure Simulation'!K44,4),0)","v":0},{"$f":"IF($D26=\"Simulation\",ROUND('Measure Simulation'!L43-'Measure Simulation'!L44,4),0)","v":0},{"$f":"IF($D26=\"Simulation\",ROUND('Measure Simulation'!M43-'Measure Simulation'!M44,4),0)","v":0},{"$f":"IF($D26=\"Simulation\",ROUND('Measure Simulation'!N43-'Measure Simulation'!N44,4),0)","v":0},{"$f":"IF($D26=\"Simulation\",ROUND('Measure Simulation'!O43-'Measure Simulation'!O44,4),0)","v":0},{"$f":"IF($D26=\"Simulation\",ROUND('Measure Simulation'!P43-'Measure Simulation'!P44,4),0)","v":0},"Yes",{"$f":"ROUND('Measure Simulation'!G74,4)","v":0},{"$f":"ROUND('Measure Simulation'!O74,4)","v":0},{"$f":"ROUND('Measure Simulation'!H74,4)","v":0},{"$f":"ROUND('Measure Simulation'!I74,4)","v":0},{"$f":"ROUND('Measure Simulation'!J74,4)","v":0},{"$f":"ROUND('Measure Simulation'!K74,4)","v":0},{"$f":"ROUND('Measure Simulation'!L74,4)","v":0},{"$f":"ROUND('Measure Simulation'!M74,4)","v":0},{"$f":"ROUND('Measure Simulation'!N74,4)","v":0}]
[null,22,{"$f":"'Measure Descriptions'!C28","v":0},{"$f":"'Measure Simulation'!F45","v":0},{"$f":"IF($D27=\"Simulation\",ROUND('Measure Simulation'!H44-'Measure Simulation'!H45,4),0)","v":0},{"$f":"IF($D27=\"Simulation\",ROUND('Measure Simulation'!I44-'Measure Simulation'!I45,4),0)","v":0},{"$f":"IF($D27=\"Simulation\",ROUND('Measure Simulation'!J44-'Measure Simulation'!J45,4),0)","v":0},{"$f":"IF($D27=\"Simulation\",ROUND('Measure Simulation'!K44-'Measure Simulation'!K45,4),0)","v":0},{"$f":"IF($D27=\"Simulation\",ROUND('Measure Simulation'!L44-'Measure Simulation'!L45,4),0)","v":0},{"$f":"IF($D27=\"Simulation\",ROUND('Measure Simulation'!M44-'Measure Simulation'!M45,4),0)","v":0},{"$f":"IF($D27=\"Simulation\",ROUND('Measure Simulation'!N44-'Measure Simulation'!N45,4),0)","v":0},{"$f":"IF($D27=\"Simulation\",ROUND('Measure Simulation'!O44-'Measure Simulation'!O45,4),0)","v":0},{"$f":"IF($D27=\"Simulation\",ROUND('Measure Simulation'!P44-'Measure Simulation'!P45,4),0)","v":0},"Yes",{"$f":"ROUND('Measure Simulation'!G75,4)","v":0},{"$f":"ROUND('Measure Simulation'!O75,4)","v":0},{"$f":"ROUND('Measure Simulation'!H75,4)","v":0},{"$f":"ROUND('Measure Simulation'!I75,4)","v":0},{"$f":"ROUND('Measure Simulation'!J75,4)","v":0},{"$f":"ROUND('Measure Simulation'!K75,4)","v":0},{"$f":"ROUND('Measure Simulation'!L75,4)","v":0},{"$f":"ROUND('Measure Simulation'!M75,4)","v":0},{"$f":"ROUND('Measure Simulation'!N75,4)","v":0}]
[null,23,{"$f":"'Measure Descriptions'!C29","v":0},{"$f":"'Measure Simulation'!F46","v":0},{"$f":"IF($D28=\"Simulation\",ROUND('Measure Simulation'!H45-'Measure Simulation'!H46,4),0)","v":0},{"$f":"IF($D28=\"Simulation\",ROUND('Measure Simulation'!I45-'Measure Simulation'!I46,4),0)","v":0},{"$f":"IF($D28=\"Simulation\",ROUND('Measure Simulation'!J45-'Measure Simulation'!J46,4),0)","v":0},{"$f":"IF($D28=\"Simulation\",ROUND('Measure Simulation'!K45-'Measure Simulation'!K46,4),0)","v":0},{"$f":"IF($D28=\"Simulation\",ROUND('Measure Simulation'!L45-'Measure Simulation'!L46,4),0)","v":0},{"$f":"IF($D28=\"Simulation\",ROUND('Measure Simulation'!M45-'Measure Simulation'!M46,4),0)","v":0},{"$f":"IF($D28=\"Simulation\",ROUND('Measure Simulation'!N45-'Measure Simulation'!N46,4),0)","v":0},{"$f":"IF($D28=\"Simulation\",ROUND('Measure Simulation'!O45-'Measure Simulation'!O46,4),0)","v":0},{"$f":"IF($D28=\"Simulation\",ROUND('Measure Simulation'!P45-'Measure Simulation'!P46,4),0)","v":0},"Yes",{"$f":"ROUND('Measure Simulation'!G76,4)","v":0},{"$f":"ROUND('Measure Simulation'!O76,4)","v":0},{"$f":"ROUND('Measure Simulation'!H76,4)","v":0},{"$f":"ROUND('Measure Simulation'!I76,4)","v":0},{"$f":"ROUND('Measure Simulation'!J76,4)","v":0},{"$f":"ROUND('Measure Simulation'!K76,4)","v":0},{"$f":"ROUND('Measure Simulation'!L76,4)","v":0},{"$f":"ROUND('Measure Simulation'!M76,4)","v":0},{"$f":"ROUND('Measure Simulation'!N76,4)","v":0}]
[null,24,{"$f":"'Measure Descriptions'!C30","v":0},{"$f":"'Measure Simulation'!F47","v":0},{"$f":"IF($D29=\"Simulation\",ROUND('Measure Simulation'!H46-'Measure Simulation'!H47,4),0)","v":0},{"$f":"IF($D29=\"Simulation\",ROUND('Measure Simulation'!I46-'Measure Simulation'!I47,4),0)","v":0},{"$f":"IF($D29=\"Simulation\",ROUND('Measure Simulation'!J46-'Measure Simulation'!J47,4),0)","v":0},{"$f":"IF($D29=\"Simulation\",ROUND('Measure Simulation'!K46-'Measure Simulation'!K47,4),0)","v":0},{"$f":"IF($D29=\"Simulation\",ROUND('Measure Simulation'!L46-'Measure Simulation'!L47,4),0)","v":0},{"$f":"IF($D29=\"Simulation\",ROUND('Measure Simulation'!M46-'Measure Simulation'!M47,4),0)","v":0},{"$f":"IF($D29=\"Simulation\",ROUND('Measure Simulation'!N46-'Measure Simulation'!N47,4),0)","v":0},{"$f":"IF($D29=\"Simulation\",ROUND('Measure Simulation'!O46-'Measure Simulation'!O47,4),0)","v":0},{"$f":"IF($D29=\"Simulation\",ROUND('Measure Simulation'!P46-'Measure Simulation'!P47,4),0)","v":0},"Yes",{"$f":"ROUND('Measure Simulation'!G77,4)","v":0},{"$f":"ROUND('Measure Simulation'!O77,4)","v":0},{"$f":"ROUND('Measure Simulation'!H77,4)","v":0},{"$f":"ROUND('Measure Simulation'!I77,4)","v":0},{"$f":"ROUND('Measure Simulation'!J77,4)","v":0},{"$f":"ROUND('Measure Simulation'!K77,4)","v":0},{"$f":"ROUND('Measure Simulation'!L77,4)","v":0},{"$f":"ROUND('Measure Simulation'!M77,4)","v":0},{"$f":"ROUND('Measure Simulation'!N77,4)","v":0}]
[null,25,{"$f":"'Measure Descriptions'!C31","v":0},{"$f":"'Measure Simulation'!F48","v":0},{"$f":"IF($D30=\"Simulation\",ROUND('Measure Simulation'!H47-'Measure Simulation'!H48,4),0)","v":0},{"$f":"IF($D30=\"Simulation\",ROUND('Measure Simulation'!I47-'Measure Simulation'!I48,4),0)","v":0},{"$f":"IF($D30=\"Simulation\",ROUND('Measure Simulation'!J47-'Measure Simulation'!J48,4),0)","v":0},{"$f":"IF($D30=\"Simulation\",ROUND('Measure Simulation'!K47-'Measure Simulation'!K48,4),0)","v":0},{"$f":"IF($D30=\"Simulation\",ROUND('Measure Simulation'!L47-'Measure Simulation'!L48,4),0)","v":0},{"$f":"IF($D30=\"Simulation\",ROUND('Measure Simulation'!M47-'Measure Simulation'!M48,4),0)","v":0},{"$f":"IF($D30=\"Simulation\",ROUND('Measure Simulation'!N47-'Measure Simulation'!N48,4),0)","v":0},{"$f":"IF($D30=\"Simulation\",ROUND('Measure Simulation'!O47-'Measure Simulation'!O48,4),0)","v":0},{"$f":"IF($D30=\"Simulation\",ROUND('Measure Simulation'!P47-'Measure Simulation'!P48,4),0)","v":0},"Yes",{"$f":"ROUND('Measure Simulation'!G78,4)","v":0},{"$f":"ROUND('Measure Simulation'!O78,4)","v":0},{"$f":"ROUND('Measure Simulation'!H78,4)","v":0},{"$f":"ROUND('Measure Simulation'!I78,4)","v":0},{"$f":"ROUND('Measure Simulation'!J78,4)","v":0},{"$f":"ROUND('Measure Simulation'!K78,4)","v":0},{"$f":"ROUND('Measure Simulation'!L78,4)","v":0},{"$f":"ROUND('Measure Simulation'!M78,4)","v":0},{"$f":"ROUND('Measure Simulation'!N78,4)","v":0}]
[]
[null,null,"Errors:",{"$f":"COUNTIF(N6:N30,\"No\")","v":0},null,"Errors mean that a measures energy savings listed in Measure Simulation Table 2 do not match the simulation outputs in Measure Simulation  Table 1.  This may be because of small rounding errors (acceptable), erroneous calcuations, typos in data entry, not updating all tables between revisions, etc.  If an error occurs, find the root cause by looking at Measure Simulation Tables 1 and 2, as well as the simulation outputs to determine cause, and comment accordingly."]
[null,null,"Checks:",{"$f":"COUNTIF(N6:N30,\"Check\")","v":0}]
[]
[]
[]
[null,null,null,null,null,"Checks mean that the savings calculations came from hand, excel tools, or another source than the building simulation.  In these cases, ensure that the measure is one that cannot be modeled by the DOE software and then review custom calculation for accuracy and validity, and ensure savings in Measure Simulation Table 2 match calculations."]

{"sheet":"Report Generation","index":42,"n_rows":32,"n_cols":2,"rows_kept":32,"cut":false,"hidden":true,"merged":[[0,0,0,1]]}
["Text Bookmarks"]
["Bookmark Name","Text"]
["bkProjName1",{"$f":"'General Project Information'!$C$6","v":0}]
["bkProjName2",{"$f":"'General Project Information'!$C$6","v":0}]
["bkProjName3",{"$f":"'General Project Information'!$C$6","v":0}]
["bkProjName4",{"$f":"'General Project Information'!$C$6","v":0}]
["bkProjName5",{"$f":"'General Project Information'!$C$6","v":0}]
["bkProjName6",{"$f":"'General Project Information'!$C$6","v":0}]
["bkProjName7",{"$f":"'General Project Information'!$C$6","v":0}]
["bkProjName8",{"$f":"'General Project Information'!$C$6","v":0}]
["bkProjName9",{"$f":"'General Project Information'!$C$6","v":0}]
["bkStAdds1",{"$f":"'General Project Information'!C7","v":0}]
["bkCustCo1",{"$f":"'General Project Information'!C15","v":0}]
["bkPartCo1",{"$f":"'General Project Information'!C17","v":0}]
["bkProjAdd1",{"$f":"'General Project Information'!C7","v":0}]
["bkUDStart1",{"$f":"'Utility Info'!M7","v":"00:00:00"}]
["bkUDEnd1",{"$f":"'Utility Info'!M8","v":"00:00:00"}]
["bkCustSiteOverview1",{"$f":"'General Project Information'!C9","v":0}]
["bkAuditDates1",{"$f":"'General Project Information'!C11","v":0}]
[]
["Table Bookmarks"]
["Bookmark Name"]
["tblProjPerf1"]
["tblProjPerf2"]
["tblIncentives"]
["tblProjInfo"]
["tblProjTeam"]
["tblMeasDesc"]
["tblMeasSavings"]
["tblProjFund"]
["tblImpSched"]
["tblMeasEval"]

{"sheet":"Appendix B Tables","index":43,"n_rows":1278,"n_cols":26,"rows_kept":1278,"cut":false,"hidden":false,"merged":[[146,2,146,3],[146,4,146,13],[147,2,147,3],[147,4,147,13],[148,2,148,3],[148,4,148,13],[5,10,5,11],[5,13,5,14],[34,10,34,11],[91,7,91,12],[152,2,152,3],[152,4,152,13],[153,2,153,3],[153,4,153,13],[154,2,154,3],[154,4,154,13],[149,2,149,3],[149,4,149,13],[150,2,150,3],[150,4,150,13],[151,2,151,3],[151,4,151,13],[161,1,161,5],[161,24,161,25],[1166,1,1166,5],[158,2,158,3],[158,4,158,13],[155,2,155,3],[155,4,155,13],[156,2,156,3],[156,4,156,13],[157,2,157,3],[157,4,157,13],[161,15,161,23],[161,6,161,14],[1223,3,1223,4],[1223,5,1223,6],[1224,3,1224,4],[1224,5,1224,6],[1225,3,1225,4],[1225,5,1225,6],[1166,24,1166,25],[1221,3,1221,4],[1221,5,1221,6],[1222,3,1222,4],[1222,5,1222,6],[1166,15,1166,23],[1166,6,1166,14],[1235,5,1235,6],[1236,2,1241,2],[1236,3,1236,4],[1236,5,1236,6],[1237,3,1237,4],[1237,5,1237,6],[1238,3,1238,4],[1238,5,1238,6],[1239,3,1239,4],[1232,3,1232,4],[1233,3,1233,4],[1234,3,1234,4],[1226,5,1226,6],[1227,5,1227,6],[1228,5,1228,6],[1229,5,1229,6],[1230,5,1230,6],[1231,5,1231,6],[1232,5,1232,6],[1226,3,1226,4],[1227,3,1227,4],[1228,3,1228,4],[1229,3,1229,4],[1230,3,1230,4],[1231,3,1231,4],[1247,3,1247,4],[1247,5,1247,6],[1248,3,1248,4],[1248,5,1248,6],[1251,3,1251,4],[1252,3,1252,4],[1233,5,1233,6],[1234,5,1234,6],[1245,3,1245,4],[1245,5,1245,6],[1246,3,1246,4],[1246,5,1246,6],[1243,3,1243,4],[1243,5,1243,6],[1244,3,1244,4],[1244,5,1244,6],[1239,5,1239,6],[1240,3,1240,4],[1240,5,1240,6],[1241,3,1241,4],[1241,5,1241,6],[1242,3,1242,4],[1242,5,1242,6],[1235,3,1235,4],[1273,3,1273,13],[1274,3,1274,13],[1275,3,1275,13],[1276,3,1276,13],[1277,3,1277,13],[2,2,2,8],[1267,3,1267,13],[1268,3,1268,13],[1269,3,1269,13],[1270,3,1270,13],[1271,3,1271,13],[1272,3,1272,13],[1259,3,1259,4],[1260,3,1260,4],[1261,3,1261,4],[1262,3,1262,4],[1263,3,1263,4],[1264,3,1264,4],[1253,3,1253,4],[1254,3,1254,4],[1255,3,1255,4],[1256,3,1256,4],[1257,3,1257,4],[1258,3,1258,4]]}
[1,null,"Appendix B Tables"]
[1,null,"Instructions"]
[1,null,"The tables below are condensed equipment inventories that can be included as a supplement to the generated ERP Report.  These can either be printed out or published to PDF to be included with an electronic copy of the ERP Report.  Print areas have been set up to minimize the occurrence of table splits across pages."]
[1]
[{"$f":"IF(SUM($A$8:$A$32)>0,1,0)","v":0},null,"Air-Side HVAC "]
[{"$f":"IF(SUM($A$8:$A$32)>0,1,0)","v":0},null,"HVAC ID","Equipment Type","Location","Number of Identical Units","Manufacturer","Model #","Year of Mfr","Cooling Capacity (mbh)","Cooling Efficiency                   ",null,"Heating Capacity\n(mbh)","Heating Efficiency                   "]
[0,null,"Example","Packaged AHU","Roof",1,"Trane","YSC060",2006,36.299999999999997,12,"SEER",103.4,0.8,"Et"]
[{"$f":"IF(C8=0,0,1)","v":0},null,{"$f":"Mechanical!B8","v":0},{"$f":"Mechanical!D8","v":0},{"$f":"Mechanical!E8","v":0},{"$f":"Mechanical!G8","v":0},{"$f":"Mechanical!H8","v":0},{"$f":"Mechanical!I8","v":0},{"$f":"Mechanical!J8","v":0},{"$f":"Mechanical!L8","v":0},{"$f":"Mechanical!M8","v":0},{"$f":"Mechanical!N8","v":0},{"$f":"Mechanical!P8","v":0},{"$f":"Mechanical!Q8","v":0},{"$f":"Mechanical!R8","v":0}]
[{"$f":"IF(C9=0,0,1)","v":0},null,{"$f":"Mechanical!B9","v":0},{"$f":"Mechanical!D9","v":0},{"$f":"Mechanical!E9","v":0},{"$f":"Mechanical!G9","v":0},{"$f":"Mechanical!H9","v":0},{"$f":"Mechanical!I9","v":0},{"$f":"Mechanical!J9","v":0},{"$f":"Mechanical!L9","v":0},{"$f":"Mechanical!M9","v":0},{"$f":"Mechanical!N9","v":0},{"$f":"Mechanical!P9","v":0},{"$f":"Mechanical!Q9","v":0},{"$f":"Mechanical!R9","v":0}]
[0,null,{"$f":"Mechanical!B10","v":0},{"$f":"Mechanical!D10","v":0},{"$f":"Mechanical!E10","v":0},{"$f":"Mechanical!G10","v":0},{"$f":"Mechanical!H10","v":0},{"$f":"Mechanical!I10","v":0},{"$f":"Mechanical!J10","v":0},{"$f":"Mechanical!L10","v":0},{"$f":"Mechanical!M10","v":0},{"$f":"Mechanical!N10","v":0},{"$f":"Mechanical!P10","v":0},{"$f":"Mechanical!Q10","v":0},{"$f":"Mechanical!R10","v":0}]
[0,null,{"$f":"Mechanical!B11","v":0},{"$f":"Mechanical!D11","v":0},{"$f":"Mechanical!E11","v":0},{"$f":"Mechanical!G11","v":0},{"$f":"Mechanical!H11","v":0},{"$f":"Mechanical!I11","v":0},{"$f":"Mechanical!J11","v":0},{"$f":"Mechanical!L11","v":0},{"$f":"Mechanical!M11","v":0},{"$f":"Mechanical!N11","v":0},{"$f":"Mechanical!P11","v":0},{"$f":"Mechanical!Q11","v":0},{"$f":"Mechanical!R11","v":0}]
[0,null,{"$f":"Mechanical!B12","v":0},{"$f":"Mechanical!D12","v":0},{"$f":"Mechanical!E12","v":0},{"$f":"Mechanical!G12","v":0},{"$f":"Mechanical!H12","v":0},{"$f":"Mechanical!I12","v":0},{"$f":"Mechanical!J12","v":0},{"$f":"Mechanical!L12","v":0},{"$f":"Mechanical!M12","v":0},{"$f":"Mechanical!N12","v":0},{"$f":"Mechanical!P12","v":0},{"$f":"Mechanical!Q12","v":0},{"$f":"Mechanical!R12","v":0}]
[0,null,{"$f":"Mechanical!B13","v":0},{"$f":"Mechanical!D13","v":0},{"$f":"Mechanical!E13","v":0},{"$f":"Mechanical!G13","v":0},{"$f":"Mechanical!H13","v":0},{"$f":"Mechanical!I13","v":0},{"$f":"Mechanical!J13","v":0},{"$f":"Mechanical!L13","v":0},{"$f":"Mechanical!M13","v":0},{"$f":"Mechanical!N13","v":0},{"$f":"Mechanical!P13","v":0},{"$f":"Mechanical!Q13","v":0},{"$f":"Mechanical!R13","v":0}]
[0,null,{"$f":"Mechanical!B14","v":0},{"$f":"Mechanical!D14","v":0},{"$f":"Mechanical!E14","v":0},{"$f":"Mechanical!G14","v":0},{"$f":"Mechanical!H14","v":0},{"$f":"Mechanical!I14","v":0},{"$f":"Mechanical!J14","v":0},{"$f":"Mechanical!L14","v":0},{"$f":"Mechanical!M14","v":0},{"$f":"Mechanical!N14","v":0},{"$f":"Mechanical!P14","v":0},{"$f":"Mechanical!Q14","v":0},{"$f":"Mechanical!R14","v":0}]
[0,null,{"$f":"Mechanical!B15","v":0},{"$f":"Mechanical!D15","v":0},{"$f":"Mechanical!E15","v":0},{"$f":"Mechanical!G15","v":0},{"$f":"Mechanical!H15","v":0},{"$f":"Mechanical!I15","v":0},{"$f":"Mechanical!J15","v":0},{"$f":"Mechanical!L15","v":0},{"$f":"Mechanical!M15","v":0},{"$f":"Mechanical!N15","v":0},{"$f":"Mechanical!P15","v":0},{"$f":"Mechanical!Q15","v":0},{"$f":"Mechanical!R15","v":0}]
[0,null,{"$f":"Mechanical!B16","v":0},{"$f":"Mechanical!D16","v":0},{"$f":"Mechanical!E16","v":0},{"$f":"Mechanical!G16","v":0},{"$f":"Mechanical!H16","v":0},{"$f":"Mechanical!I16","v":0},{"$f":"Mechanical!J16","v":0},{"$f":"Mechanical!L16","v":0},{"$f":"Mechanical!M16","v":0},{"$f":"Mechanical!N16","v":0},{"$f":"Mechanical!P16","v":0},{"$f":"Mechanical!Q16","v":0},{"$f":"Mechanical!R16","v":0}]
[0,null,{"$f":"Mechanical!B17","v":0},{"$f":"Mechanical!D17","v":0},{"$f":"Mechanical!E17","v":0},{"$f":"Mechanical!G17","v":0},{"$f":"Mechanical!H17","v":0},{"$f":"Mechanical!I17","v":0},{"$f":"Mechanical!J17","v":0},{"$f":"Mechanical!L17","v":0},{"$f":"Mechanical!M17","v":0},{"$f":"Mechanical!N17","v":0},{"$f":"Mechanical!P17","v":0},{"$f":"Mechanical!Q17","v":0},{"$f":"Mechanical!R17","v":0}]
[0,null,{"$f":"Mechanical!B18","v":0},{"$f":"Mechanical!D18","v":0},{"$f":"Mechanical!E18","v":0},{"$f":"Mechanical!G18","v":0},{"$f":"Mechanical!H18","v":0},{"$f":"Mechanical!I18","v":0},{"$f":"Mechanical!J18","v":0},{"$f":"Mechanical!L18","v":0},{"$f":"Mechanical!M18","v":0},{"$f":"Mechanical!N18","v":0},{"$f":"Mechanical!P18","v":0},{"$f":"Mechanical!Q18","v":0},{"$f":"Mechanical!R18","v":0}]
[0,null,{"$f":"Mechanical!B19","v":0},{"$f":"Mechanical!D19","v":0},{"$f":"Mechanical!E19","v":0},{"$f":"Mechanical!G19","v":0},{"$f":"Mechanical!H19","v":0},{"$f":"Mechanical!I19","v":0},{"$f":"Mechanical!J19","v":0},{"$f":"Mechanical!L19","v":0},{"$f":"Mechanical!M19","v":0},{"$f":"Mechanical!N19","v":0},{"$f":"Mechanical!P19","v":0},{"$f":"Mechanical!Q19","v":0},{"$f":"Mechanical!R19","v":0}]
[0,null,{"$f":"Mechanical!B20","v":0},{"$f":"Mechanical!D20","v":0},{"$f":"Mechanical!E20","v":0},{"$f":"Mechanical!G20","v":0},{"$f":"Mechanical!H20","v":0},{"$f":"Mechanical!I20","v":0},{"$f":"Mechanical!J20","v":0},{"$f":"Mechanical!L20","v":0},{"$f":"Mechanical!M20","v":0},{"$f":"Mechanical!N20","v":0},{"$f":"Mechanical!P20","v":0},{"$f":"Mechanical!Q20","v":0},{"$f":"Mechanical!R20","v":0}]
[0,null,{"$f":"Mechanical!B21","v":0},{"$f":"Mechanical!D21","v":0},{"$f":"Mechanical!E21","v":0},{"$f":"Mechanical!G21","v":0},{"$f":"Mechanical!H21","v":0},{"$f":"Mechanical!I21","v":0},{"$f":"Mechanical!J21","v":0},{"$f":"Mechanical!L21","v":0},{"$f":"Mechanical!M21","v":0},{"$f":"Mechanical!N21","v":0},{"$f":"Mechanical!P21","v":0},{"$f":"Mechanical!Q21","v":0},{"$f":"Mechanical!R21","v":0}]
[0,null,{"$f":"Mechanical!B22","v":0},{"$f":"Mechanical!D22","v":0},{"$f":"Mechanical!E22","v":0},{"$f":"Mechanical!G22","v":0},{"$f":"Mechanical!H22","v":0},{"$f":"Mechanical!I22","v":0},{"$f":"Mechanical!J22","v":0},{"$f":"Mechanical!L22","v":0},{"$f":"Mechanical!M22","v":0},{"$f":"Mechanical!N22","v":0},{"$f":"Mechanical!P22","v":0},{"$f":"Mechanical!Q22","v":0},{"$f":"Mechanical!R22","v":0}]
[0,null,{"$f":"Mechanical!B23","v":0},{"$f":"Mechanical!D23","v":0},{"$f":"Mechanical!E23","v":0},{"$f":"Mechanical!G23","v":0},{"$f":"Mechanical!H23","v":0},{"$f":"Mechanical!I23","v":0},{"$f":"Mechanical!J23","v":0},{"$f":"Mechanical!L23","v":0},{"$f":"Mechanical!M23","v":0},{"$f":"Mechanical!N23","v":0},{"$f":"Mechanical!P23","v":0},{"$f":"Mechanical!Q23","v":0},{"$f":"Mechanical!R23","v":0}]
[0,null,{"$f":"Mechanical!B24","v":0},{"$f":"Mechanical!D24","v":0},{"$f":"Mechanical!E24","v":0},{"$f":"Mechanical!G24","v":0},{"$f":"Mechanical!H24","v":0},{"$f":"Mechanical!I24","v":0},{"$f":"Mechanical!J24","v":0},{"$f":"Mechanical!L24","v":0},{"$f":"Mechanical!M24","v":0},{"$f":"Mechanical!N24","v":0},{"$f":"Mechanical!P24","v":0},{"$f":"Mechanical!Q24","v":0},{"$f":"Mechanical!R24","v":0}]
[0,null,{"$f":"Mechanical!B25","v":0},{"$f":"Mechanical!D25","v":0},{"$f":"Mechanical!E25","v":0},{"$f":"Mechanical!G25","v":0},{"$f":"Mechanical!H25","v":0},{"$f":"Mechanical!I25","v":0},{"$f":"Mechanical!J25","v":0},{"$f":"Mechanical!L25","v":0},{"$f":"Mechanical!M25","v":0},{"$f":"Mechanical!N25","v":0},{"$f":"Mechanical!P25","v":0},{"$f":"Mechanical!Q25","v":0},{"$f":"Mechanical!R25","v":0}]
[0,null,{"$f":"Mechanical!B26","v":0},{"$f":"Mechanical!D26","v":0},{"$f":"Mechanical!E26","v":0},{"$f":"Mechanical!G26","v":0},{"$f":"Mechanical!H26","v":0},{"$f":"Mechanical!I26","v":0},{"$f":"Mechanical!J26","v":0},{"$f":"Mechanical!L26","v":0},{"$f":"Mechanical!M26","v":0},{"$f":"Mechanical!N26","v":0},{"$f":"Mechanical!P26","v":0},{"$f":"Mechanical!Q26","v":0},{"$f":"Mechanical!R26","v":0}]
[0,null,{"$f":"Mechanical!B27","v":0},{"$f":"Mechanical!D27","v":0},{"$f":"Mechanical!E27","v":0},{"$f":"Mechanical!G27","v":0},{"$f":"Mechanical!H27","v":0},{"$f":"Mechanical!I27","v":0},{"$f":"Mechanical!J27","v":0},{"$f":"Mechanical!L27","v":0},{"$f":"Mechanical!M27","v":0},{"$f":"Mechanical!N27","v":0},{"$f":"Mechanical!P27","v":0},{"$f":"Mechanical!Q27","v":0},{"$f":"Mechanical!R27","v":0}]
[0,null,{"$f":"Mechanical!B28","v":0},{"$f":"Mechanical!D28","v":0},{"$f":"Mechanical!E28","v":0},{"$f":"Mechanical!G28","v":0},{"$f":"Mechanical!H28","v":0},{"$f":"Mechanical!I28","v":0},{"$f":"Mechanical!J28","v":0},{"$f":"Mechanical!L28","v":0},{"$f":"Mechanical!M28","v":0},{"$f":"Mechanical!N28","v":0},{"$f":"Mechanical!P28","v":0},{"$f":"Mechanical!Q28","v":0},{"$f":"Mechanical!R28","v":0}]
[0,null,{"$f":"Mechanical!B29","v":0},{"$f":"Mechanical!D29","v":0},{"$f":"Mechanical!E29","v":0},{"$f":"Mechanical!G29","v":0},{"$f":"Mechanical!H29","v":0},{"$f":"Mechanical!I29","v":0},{"$f":"Mechanical!J29","v":0},{"$f":"Mechanical!L29","v":0},{"$f":"Mechanical!M29","v":0},{"$f":"Mechanical!N29","v":0},{"$f":"Mechanical!P29","v":0},{"$f":"Mechanical!Q29","v":0},{"$f":"Mechanical!R29","v":0}]
[0,null,{"$f":"Mechanical!B30","v":0},{"$f":"Mechanical!D30","v":0},{"$f":"Mechanical!E30","v":0},{"$f":"Mechanical!G30","v":0},{"$f":"Mechanical!H30","v":0},{"$f":"Mechanical!I30","v":0},{"$f":"Mechanical!J30","v":0},{"$f":"Mechanical!L30","v":0},{"$f":"Mechanical!M30","v":0},{"$f":"Mechanical!N30","v":0},{"$f":"Mechanical!P30","v":0},{"$f":"Mechanical!Q30","v":0},{"$f":"Mechanical!R30","v":0}]
[0,null,{"$f":"Mechanical!B31","v":0},{"$f":"Mechanical!D31","v":0},{"$f":"Mechanical!E31","v":0},{"$f":"Mechanical!G31","v":0},{"$f":"Mechanical!H31","v":0},{"$f":"Mechanical!I31","v":0},{"$f":"Mechanical!J31","v":0},{"$f":"Mechanical!L31","v":0},{"$f":"Mechanical!M31","v":0},{"$f":"Mechanical!N31","v":0},{"$f":"Mechanical!P31","v":0},{"$f":"Mechanical!Q31","v":0},{"$f":"Mechanical!R31","v":0}]
[0,null,{"$f":"Mechanical!B32","v":0},{"$f":"Mechanical!D32","v":0},{"$f":"Mechanical!E32","v":0},{"$f":"Mechanical!G32","v":0},{"$f":"Mechanical!H32","v":0},{"$f":"Mechanical!I32","v":0},{"$f":"Mechanical!J32","v":0},{"$f":"Mechanical!L32","v":0},{"$f":"Mechanical!M32","v":0},{"$f":"Mechanical!N32","v":0},{"$f":"Mechanical!P32","v":0},{"$f":"Mechanical!Q32","v":0},{"$f":"Mechanical!R32","v":0}]
[1]
[{"$f":"IF(SUM($A$37:$A$71)>0,1,0)","v":0},null,"Boilers and Domestic Water Heaters"]
[{"$f":"IF(SUM($A$37:$A$71)>0,1,0)","v":0},null,"Boiler or DHW ID","Equipment Type","Location","Number of Identical Units","Manufacturer","Model Number","Year of Mfr","Capacity (mbh)","Efficiency "]
[0,null,"Example","Hot Water Boiler","Boiler Room",2,"H. B. Smith","Mills 450A-12",1986,200,70,"AFUE"]
[{"$f":"IF(C37=0,0,1)","v":0},null,{"$f":"Mechanical!B37","v":0},{"$f":"Mechanical!J37","v":0},{"$f":"Mechanical!D37","v":0},{"$f":"Mechanical!F37","v":0},{"$f":"Mechanical!G37","v":0},{"$f":"Mechanical!H37","v":0},{"$f":"Mechanical!I37","v":0},{"$f":"Mechanical!M37","v":0},{"$f":"Mechanical!N37","v":0},{"$f":"Mechanical!O37","v":0}]
[{"$f":"IF(C38=0,0,1)","v":0},null,{"$f":"Mechanical!B38","v":0},{"$f":"Mechanical!J38","v":0},{"$f":"Mechanical!D38","v":0},{"$f":"Mechanical!F38","v":0},{"$f":"Mechanical!G38","v":0},{"$f":"Mechanical!H38","v":0},{"$f":"Mechanical!I38","v":0},{"$f":"Mechanical!M38","v":0},{"$f":"Mechanical!N38","v":0},{"$f":"Mechanical!O38","v":0}]
[0,null,{"$f":"Mechanical!B39","v":0},{"$f":"Mechanical!J39","v":0},{"$f":"Mechanical!D39","v":0},{"$f":"Mechanical!F39","v":0},{"$f":"Mechanical!G39","v":0},{"$f":"Mechanical!H39","v":0},{"$f":"Mechanical!I39","v":0},{"$f":"Mechanical!M39","v":0},{"$f":"Mechanical!N39","v":0},{"$f":"Mechanical!O39","v":0}]
[0,null,{"$f":"Mechanical!B40","v":0},{"$f":"Mechanical!J40","v":0},{"$f":"Mechanical!D40","v":0},{"$f":"Mechanical!F40","v":0},{"$f":"Mechanical!G40","v":0},{"$f":"Mechanical!H40","v":0},{"$f":"Mechanical!I40","v":0},{"$f":"Mechanical!M40","v":0},{"$f":"Mechanical!N40","v":0},{"$f":"Mechanical!O40","v":0}]
[0,null,{"$f":"Mechanical!B41","v":0},{"$f":"Mechanical!J41","v":0},{"$f":"Mechanical!D41","v":0},{"$f":"Mechanical!F41","v":0},{"$f":"Mechanical!G41","v":0},{"$f":"Mechanical!H41","v":0},{"$f":"Mechanical!I41","v":0},{"$f":"Mechanical!M41","v":0},{"$f":"Mechanical!N41","v":0},{"$f":"Mechanical!O41","v":0}]
[0,null,{"$f":"Mechanical!B42","v":0},{"$f":"Mechanical!J42","v":0},{"$f":"Mechanical!D42","v":0},{"$f":"Mechanical!F42","v":0},{"$f":"Mechanical!G42","v":0},{"$f":"Mechanical!H42","v":0},{"$f":"Mechanical!I42","v":0},{"$f":"Mechanical!M42","v":0},{"$f":"Mechanical!N42","v":0},{"$f":"Mechanical!O42","v":0}]
[0,null,{"$f":"Mechanical!B43","v":0},{"$f":"Mechanical!J43","v":0},{"$f":"Mechanical!D43","v":0},{"$f":"Mechanical!F43","v":0},{"$f":"Mechanical!G43","v":0},{"$f":"Mechanical!H43","v":0},{"$f":"Mechanical!I43","v":0},{"$f":"Mechanical!M43","v":0},{"$f":"Mechanical!N43","v":0},{"$f":"Mechanical!O43","v":0}]
[0,null,{"$f":"Mechanical!B44","v":0},{"$f":"Mechanical!J44","v":0},{"$f":"Mechanical!D44","v":0},{"$f":"Mechanical!F44","v":0},{"$f":"Mechanical!G44","v":0},{"$f":"Mechanical!H44","v":0},{"$f":"Mechanical!I44","v":0},{"$f":"Mechanical!M44","v":0},{"$f":"Mechanical!N44","v":0},{"$f":"Mechanical!O44","v":0}]
[0,null,{"$f":"Mechanical!B45","v":0},{"$f":"Mechanical!J45","v":0},{"$f":"Mechanical!D45","v":0},{"$f":"Mechanical!F45","v":0},{"$f":"Mechanical!G45","v":0},{"$f":"Mechanical!H45","v":0},{"$f":"Mechanical!I45","v":0},{"$f":"Mechanical!M45","v":0},{"$f":"Mechanical!N45","v":0},{"$f":"Mechanical!O45","v":0}]
[0,null,{"$f":"Mechanical!B46","v":0},{"$f":"Mechanical!J46","v":0},{"$f":"Mechanical!D46","v":0},{"$f":"Mechanical!F46","v":0},{"$f":"Mechanical!G46","v":0},{"$f":"Mechanical!H46","v":0},{"$f":"Mechanical!I46","v":0},{"$f":"Mechanical!M46","v":0},{"$f":"Mechanical!N46","v":0},{"$f":"Mechanical!O46","v":0}]
[0,null,{"$f":"Mechanical!B47","v":0},{"$f":"Mechanical!J47","v":0},{"$f":"Mechanical!D47","v":0},{"$f":"Mechanical!F47","v":0},{"$f":"Mechanical!G47","v":0},{"$f":"Mechanical!H47","v":0},{"$f":"Mechanical!I47","v":0},{"$f":"Mechanical!M47","v":0},{"$f":"Mechanical!N47","v":0},{"$f":"Mechanical!O47","v":0}]
[0,null,{"$f":"Mechanical!B48","v":0},{"$f":"Mechanical!J48","v":0},{"$f":"Mechanical!D48","v":0},{"$f":"Mechanical!F48","v":0},{"$f":"Mechanical!G48","v":0},{"$f":"Mechanical!H48","v":0},{"$f":"Mechanical!I48","v":0},{"$f":"Mechanical!M48","v":0},{"$f":"Mechanical!N48","v":0},{"$f":"Mechanical!O48","v":0}]
[0,null,{"$f":"Mechanical!B49","v":0},{"$f":"Mechanical!J49","v":0},{"$f":"Mechanical!D49","v":0},{"$f":"Mechanical!F49","v":0},{"$f":"Mechanical!G49","v":0},{"$f":"Mechanical!H49","v":0},{"$f":"Mechanical!I49","v":0},{"$f":"Mechanical!M49","v":0},{"$f":"Mechanical!N49","v":0},{"$f":"Mechanical!O49","v":0}]
[0,null,{"$f":"Mechanical!B50","v":0},{"$f":"Mechanical!J50","v":0},{"$f":"Mechanical!D50","v":0},{"$f":"Mechanical!F50","v":0},{"$f":"Mechanical!G50","v":0},{"$f":"Mechanical!H50","v":0},{"$f":"Mechanical!I50","v":0},{"$f":"Mechanical!M50","v":0},{"$f":"Mechanical!N50","v":0},{"$f":"Mechanical!O50","v":0}]
[0,null,{"$f":"Mechanical!B51","v":0},{"$f":"Mechanical!J51","v":0},{"$f":"Mechanical!D51","v":0},{"$f":"Mechanical!F51","v":0},{"$f":"Mechanical!G51","v":0},{"$f":"Mechanical!H51","v":0},{"$f":"Mechanical!I51","v":0},{"$f":"Mechanical!M51","v":0},{"$f":"Mechanical!N51","v":0},{"$f":"Mechanical!O51","v":0}]
[0,null,{"$f":"Mechanical!B52","v":0},{"$f":"Mechanical!J52","v":0},{"$f":"Mechanical!D52","v":0},{"$f":"Mechanical!F52","v":0},{"$f":"Mechanical!G52","v":0},{"$f":"Mechanical!H52","v":0},{"$f":"Mechanical!I52","v":0},{"$f":"Mechanical!M52","v":0},{"$f":"Mechanical!N52","v":0},{"$f":"Mechanical!O52","v":0}]
[0,null,{"$f":"Mechanical!B53","v":0},{"$f":"Mechanical!J53","v":0},{"$f":"Mechanical!D53","v":0},{"$f":"Mechanical!F53","v":0},{"$f":"Mechanical!G53","v":0},{"$f":"Mechanical!H53","v":0},{"$f":"Mechanical!I53","v":0},{"$f":"Mechanical!M53","v":0},{"$f":"Mechanical!N53","v":0},{"$f":"Mechanical!O53","v":0}]
[0,null,{"$f":"Mechanical!B54","v":0},{"$f":"Mechanical!J54","v":0},{"$f":"Mechanical!D54","v":0},{"$f":"Mechanical!F54","v":0},{"$f":"Mechanical!G54","v":0},{"$f":"Mechanical!H54","v":0},{"$f":"Mechanical!I54","v":0},{"$f":"Mechanical!M54","v":0},{"$f":"Mechanical!N54","v":0},{"$f":"Mechanical!O54","v":0}]
[0,null,{"$f":"Mechanical!B55","v":0},{"$f":"Mechanical!J55","v":0},{"$f":"Mechanical!D55","v":0},{"$f":"Mechanical!F55","v":0},{"$f":"Mechanical!G55","v":0},{"$f":"Mechanical!H55","v":0},{"$f":"Mechanical!I55","v":0},{"$f":"Mechanical!M55","v":0},{"$f":"Mechanical!N55","v":0},{"$f":"Mechanical!O55","v":0}]
[0,null,{"$f":"Mechanical!B56","v":0},{"$f":"Mechanical!J56","v":0},{"$f":"Mechanical!D56","v":0},{"$f":"Mechanical!F56","v":0},{"$f":"Mechanical!G56","v":0},{"$f":"Mechanical!H56","v":0},{"$f":"Mechanical!I56","v":0},{"$f":"Mechanical!M56","v":0},{"$f":"Mechanical!N56","v":0},{"$f":"Mechanical!O56","v":0}]
[0,null,{"$f":"Mechanical!B57","v":0},{"$f":"Mechanical!J57","v":0},{"$f":"Mechanical!D57","v":0},{"$f":"Mechanical!F57","v":0},{"$f":"Mechanical!G57","v":0},{"$f":"Mechanical!H57","v":0},{"$f":"Mechanical!I57","v":0},{"$f":"Mechanical!M57","v":0},{"$f":"Mechanical!N57","v":0},{"$f":"Mechanical!O57","v":0}]
[0,null,{"$f":"Mechanical!B58","v":0},{"$f":"Mechanical!J58","v":0},{"$f":"Mechanical!D58","v":0},{"$f":"Mechanical!F58","v":0},{"$f":"Mechanical!G58","v":0},{"$f":"Mechanical!H58","v":0},{"$f":"Mechanical!I58","v":0},{"$f":"Mechanical!M58","v":0},{"$f":"Mechanical!N58","v":0},{"$f":"Mechanical!O58","v":0}]
[0,null,{"$f":"Mechanical!B59","v":0},{"$f":"Mechanical!J59","v":0},{"$f":"Mechanical!D59","v":0},{"$f":"Mechanical!F59","v":0},{"$f":"Mechanical!G59","v":0},{"$f":"Mechanical!H59","v":0},{"$f":"Mechanical!I59","v":0},{"$f":"Mechanical!M59","v":0},{"$f":"Mechanical!N59","v":0},{"$f":"Mechanical!O59","v":0}]
[0,null,{"$f":"Mechanical!B60","v":0},{"$f":"Mechanical!J60","v":0},{"$f":"Mechanical!D60","v":0},{"$f":"Mechanical!F60","v":0},{"$f":"Mechanical!G60","v":0},{"$f":"Mechanical!H60","v":0},{"$f":"Mechanical!I60","v":0},{"$f":"Mechanical!M60","v":0},{"$f":"Mechanical!N60","v":0},{"$f":"Mechanical!O60","v":0}]
[0,null,{"$f":"Mechanical!B61","v":0},{"$f":"Mechanical!J61","v":0},{"$f":"Mechanical!D61","v":0},{"$f":"Mechanical!F61","v":0},{"$f":"Mechanical!G61","v":0},{"$f":"Mechanical!H61","v":0},{"$f":"Mechanical!I61","v":0},{"$f":"Mechanical!M61","v":0},{"$f":"Mechanical!N61","v":0},{"$f":"Mechanical!O61","v":0}]
[0,null,{"$f":"Mechanical!B62","v":0},{"$f":"Mechanical!J62","v":0},{"$f":"Mechanical!D62","v":0},{"$f":"Mechanical!F62","v":0},{"$f":"Mechanical!G62","v":0},{"$f":"Mechanical!H62","v":0},{"$f":"Mechanical!I62","v":0},{"$f":"Mechanical!M62","v":0},{"$f":"Mechanical!N62","v":0},{"$f":"Mechanical!O62","v":0}]
[0,null,{"$f":"Mechanical!B63","v":0},{"$f":"Mechanical!J63","v":0},{"$f":"Mechanical!D63","v":0},{"$f":"Mechanical!F63","v":0},{"$f":"Mechanical!G63","v":0},{"$f":"Mechanical!H63","v":0},{"$f":"Mechanical!I63","v":0},{"$f":"Mechanical!M63","v":0},{"$f":"Mechanical!N63","v":0},{"$f":"Mechanical!O63","v":0}]
[0,null,{"$f":"Mechanical!B64","v":0},{"$f":"Mechanical!J64","v":0},{"$f":"Mechanical!D64","v":0},{"$f":"Mechanical!F64","v":0},{"$f":"Mechanical!G64","v":0},{"$f":"Mechanical!H64","v":0},{"$f":"Mechanical!I64","v":0},{"$f":"Mechanical!M64","v":0},{"$f":"Mechanical!N64","v":0},{"$f":"Mechanical!O64","v":0}]
[0,null,{"$f":"Mechanical!B65","v":0},{"$f":"Mechanical!J65","v":0},{"$f":"Mechanical!D65","v":0},{"$f":"Mechanical!F65","v":0},{"$f":"Mechanical!G65","v":0},{"$f":"Mechanical!H65","v":0},{"$f":"Mechanical!I65","v":0},{"$f":"Mechanical!M65","v":0},{"$f":"Mechanical!N65","v":0},{"$f":"Mechanical!O65","v":0}]
[0,null,{"$f":"Mechanical!B66","v":0},{"$f":"Mechanical!J66","v":0},{"$f":"Mechanical!D66","v":0},{"$f":"Mechanical!F66","v":0},{"$f":"Mechanical!G66","v":0},{"$f":"Mechanical!H66","v":0},{"$f":"Mechanical!I66","v":0},{"$f":"Mechanical!M66","v":0},{"$f":"Mechanical!N66","v":0},{"$f":"Mechanical!O66","v":0}]
[0,null,{"$f":"Mechanical!B67","v":0},{"$f":"Mechanical!J67","v":0},{"$f":"Mechanical!D67","v":0},{"$f":"Mechanical!F67","v":0},{"$f":"Mechanical!G67","v":0},{"$f":"Mechanical!H67","v":0},{"$f":"Mechanical!I67","v":0},{"$f":"Mechanical!M67","v":0},{"$f":"Mechanical!N67","v":0},{"$f":"Mechanical!O67","v":0}]
[0,null,{"$f":"Mechanical!B68","v":0},{"$f":"Mechanical!J68","v":0},{"$f":"Mechanical!D68","v":0},{"$f":"Mechanical!F68","v":0},{"$f":"Mechanical!G68","v":0},{"$f":"Mechanical!H68","v":0},{"$f":"Mechanical!I68","v":0},{"$f":"Mechanical!M68","v":0},{"$f":"Mechanical!N68","v":0},{"$f":"Mechanical!O68","v":0}]
[0,null,{"$f":"Mechanical!B69","v":0},{"$f":"Mechanical!J69","v":0},{"$f":"Mechanical!D69","v":0},{"$f":"Mechanical!F69","v":0},{"$f":"Mechanical!G69","v":0},{"$f":"Mechanical!H69","v":0},{"$f":"Mechanical!I69","v":0},{"$f":"Mechanical!M69","v":0},{"$f":"Mechanical!N69","v":0},{"$f":"Mechanical!O69","v":0}]
[0,null,{"$f":"Mechanical!B70","v":0},{"$f":"Mechanical!J70","v":0},{"$f":"Mechanical!D70","v":0},{"$f":"Mechanical!F70","v":0},{"$f":"Mechanical!G70","v":0},{"$f":"Mechanical!H70","v":0},{"$f":"Mechanical!I70","v":0},{"$f":"Mechanical!M70","v":0},{"$f":"Mechanical!N70","v":0},{"$f":"Mechanical!O70","v":0}]
[0,null,{"$f":"Mechanical!B71","v":0},{"$f":"Mechanical!J71","v":0},{"$f":"Mechanical!D71","v":0},{"$f":"Mechanical!F71","v":0},{"$f":"Mechanical!G71","v":0},{"$f":"Mechanical!H71","v":0},{"$f":"Mechanical!I71","v":0},{"$f":"Mechanical!M71","v":0},{"$f":"Mechanical!N71","v":0},{"$f":"Mechanical!O71","v":0}]
[1]
[{"$f":"IF(SUM($A$76:$A$90)>0,1,0)","v":0},null,"Chillers and Condensers"]
[{"$f":"IF(SUM($A$76:$A$90)>0,1,0)","v":0},null,"Chiller ID","Equipment Type","Location","Number of Identical Units","Manufacturer","Model Number","Year of Mfr","Capacity (tons)","AHRI Rated Full Load Efficiency (kW/ton)","Integrated Part-load Efficiency (IPLV)","Condenser Type","Condenser Fan Control"]
[0,null,"Ex","Gas Absorption","Utility Room",1,"York Millenium","YKJFBJ4-DHES",2005,1600,0.73099999999999998,0.66700000000000004,"Water-cooled","VFD"]
[{"$f":"IF(C76=0,0,1)","v":0},null,{"$f":"Mechanical!B76","v":0},{"$f":"Mechanical!J76","v":0},{"$f":"Mechanical!D76","v":0},{"$f":"Mechanical!F76","v":0},{"$f":"Mechanical!G76","v":0},{"$f":"Mechanical!H76","v":0},{"$f":"Mechanical!I76","v":0},{"$f":"Mechanical!K76","v":0},{"$f":"Mechanical!M76","v":0},{"$f":"Mechanical!N76","v":0},{"$f":"Mechanical!O76","v":0},{"$f":"Mechanical!R76","v":0}]
[{"$f":"IF(C77=0,0,1)","v":0},null,{"$f":"Mechanical!B77","v":0},{"$f":"Mechanical!J77","v":0},{"$f":"Mechanical!D77","v":0},{"$f":"Mechanical!F77","v":0},{"$f":"Mechanical!G77","v":0},{"$f":"Mechanical!H77","v":0},{"$f":"Mechanical!I77","v":0},{"$f":"Mechanical!K77","v":0},{"$f":"Mechanical!M77","v":0},{"$f":"Mechanical!N77","v":0},{"$f":"Mechanical!O77","v":0},{"$f":"Mechanical!R77","v":0}]
[0,null,{"$f":"Mechanical!B78","v":0},{"$f":"Mechanical!J78","v":0},{"$f":"Mechanical!D78","v":0},{"$f":"Mechanical!F78","v":0},{"$f":"Mechanical!G78","v":0},{"$f":"Mechanical!H78","v":0},{"$f":"Mechanical!I78","v":0},{"$f":"Mechanical!K78","v":0},{"$f":"Mechanical!M78","v":0},{"$f":"Mechanical!N78","v":0},{"$f":"Mechanical!O78","v":0},{"$f":"Mechanical!R78","v":0}]
[0,null,{"$f":"Mechanical!B79","v":0},{"$f":"Mechanical!J79","v":0},{"$f":"Mechanical!D79","v":0},{"$f":"Mechanical!F79","v":0},{"$f":"Mechanical!G79","v":0},{"$f":"Mechanical!H79","v":0},{"$f":"Mechanical!I79","v":0},{"$f":"Mechanical!K79","v":0},{"$f":"Mechanical!M79","v":0},{"$f":"Mechanical!N79","v":0},{"$f":"Mechanical!O79","v":0},{"$f":"Mechanical!R79","v":0}]
[0,null,{"$f":"Mechanical!B80","v":0},{"$f":"Mechanical!J80","v":0},{"$f":"Mechanical!D80","v":0},{"$f":"Mechanical!F80","v":0},{"$f":"Mechanical!G80","v":0},{"$f":"Mechanical!H80","v":0},{"$f":"Mechanical!I80","v":0},{"$f":"Mechanical!K80","v":0},{"$f":"Mechanical!M80","v":0},{"$f":"Mechanical!N80","v":0},{"$f":"Mechanical!O80","v":0},{"$f":"Mechanical!R80","v":0}]
[0,null,{"$f":"Mechanical!B81","v":0},{"$f":"Mechanical!J81","v":0},{"$f":"Mechanical!D81","v":0},{"$f":"Mechanical!F81","v":0},{"$f":"Mechanical!G81","v":0},{"$f":"Mechanical!H81","v":0},{"$f":"Mechanical!I81","v":0},{"$f":"Mechanical!K81","v":0},{"$f":"Mechanical!M81","v":0},{"$f":"Mechanical!N81","v":0},{"$f":"Mechanical!O81","v":0},{"$f":"Mechanical!R81","v":0}]
[0,null,{"$f":"Mechanical!B82","v":0},{"$f":"Mechanical!J82","v":0},{"$f":"Mechanical!D82","v":0},{"$f":"Mechanical!F82","v":0},{"$f":"Mechanical!G82","v":0},{"$f":"Mechanical!H82","v":0},{"$f":"Mechanical!I82","v":0},{"$f":"Mechanical!K82","v":0},{"$f":"Mechanical!M82","v":0},{"$f":"Mechanical!N82","v":0},{"$f":"Mechanical!O82","v":0},{"$f":"Mechanical!R82","v":0}]
[0,null,{"$f":"Mechanical!B83","v":0},{"$f":"Mechanical!J83","v":0},{"$f":"Mechanical!D83","v":0},{"$f":"Mechanical!F83","v":0},{"$f":"Mechanical!G83","v":0},{"$f":"Mechanical!H83","v":0},{"$f":"Mechanical!I83","v":0},{"$f":"Mechanical!K83","v":0},{"$f":"Mechanical!M83","v":0},{"$f":"Mechanical!N83","v":0},{"$f":"Mechanical!O83","v":0},{"$f":"Mechanical!R83","v":0}]
[0,null,{"$f":"Mechanical!B84","v":0},{"$f":"Mechanical!J84","v":0},{"$f":"Mechanical!D84","v":0},{"$f":"Mechanical!F84","v":0},{"$f":"Mechanical!G84","v":0},{"$f":"Mechanical!H84","v":0},{"$f":"Mechanical!I84","v":0},{"$f":"Mechanical!K84","v":0},{"$f":"Mechanical!M84","v":0},{"$f":"Mechanical!N84","v":0},{"$f":"Mechanical!O84","v":0},{"$f":"Mechanical!R84","v":0}]
[0,null,{"$f":"Mechanical!B85","v":0},{"$f":"Mechanical!J85","v":0},{"$f":"Mechanical!D85","v":0},{"$f":"Mechanical!F85","v":0},{"$f":"Mechanical!G85","v":0},{"$f":"Mechanical!H85","v":0},{"$f":"Mechanical!I85","v":0},{"$f":"Mechanical!K85","v":0},{"$f":"Mechanical!M85","v":0},{"$f":"Mechanical!N85","v":0},{"$f":"Mechanical!O85","v":0},{"$f":"Mechanical!R85","v":0}]
[0,null,{"$f":"Mechanical!B86","v":0},{"$f":"Mechanical!J86","v":0},{"$f":"Mechanical!D86","v":0},{"$f":"Mechanical!F86","v":0},{"$f":"Mechanical!G86","v":0},{"$f":"Mechanical!H86","v":0},{"$f":"Mechanical!I86","v":0},{"$f":"Mechanical!K86","v":0},{"$f":"Mechanical!M86","v":0},{"$f":"Mechanical!N86","v":0},{"$f":"Mechanical!O86","v":0},{"$f":"Mechanical!R86","v":0}]
[0,null,{"$f":"Mechanical!B87","v":0},{"$f":"Mechanical!J87","v":0},{"$f":"Mechanical!D87","v":0},{"$f":"Mechanical!F87","v":0},{"$f":"Mechanical!G87","v":0},{"$f":"Mechanical!H87","v":0},{"$f":"Mechanical!I87","v":0},{"$f":"Mechanical!K87","v":0},{"$f":"Mechanical!M87","v":0},{"$f":"Mechanical!N87","v":0},{"$f":"Mechanical!O87","v":0},{"$f":"Mechanical!R87","v":0}]
[0,null,{"$f":"Mechanical!B88","v":0},{"$f":"Mechanical!J88","v":0},{"$f":"Mechanical!D88","v":0},{"$f":"Mechanical!F88","v":0},{"$f":"Mechanical!G88","v":0},{"$f":"Mechanical!H88","v":0},{"$f":"Mechanical!I88","v":0},{"$f":"Mechanical!K88","v":0},{"$f":"Mechanical!M88","v":0},{"$f":"Mechanical!N88","v":0},{"$f":"Mechanical!O88","v":0},{"$f":"Mechanical!R88","v":0}]
[0,null,{"$f":"Mechanical!B89","v":0},{"$f":"Mechanical!J89","v":0},{"$f":"Mechanical!D89","v":0},{"$f":"Mechanical!F89","v":0},{"$f":"Mechanical!G89","v":0},{"$f":"Mechanical!H89","v":0},{"$f":"Mechanical!I89","v":0},{"$f":"Mechanical!K89","v":0},{"$f":"Mechanical!M89","v":0},{"$f":"Mechanical!N89","v":0},{"$f":"Mechanical!O89","v":0},{"$f":"Mechanical!R89","v":0}]
[0,null,{"$f":"Mechanical!B90","v":0},{"$f":"Mechanical!J90","v":0},{"$f":"Mechanical!D90","v":0},{"$f":"Mechanical!F90","v":0},{"$f":"Mechanical!G90","v":0},{"$f":"Mechanical!H90","v":0},{"$f":"Mechanical!I90","v":0},{"$f":"Mechanical!K90","v":0},{"$f":"Mechanical!M90","v":0},{"$f":"Mechanical!N90","v":0},{"$f":"Mechanical!O90","v":0},{"$f":"Mechanical!R90","v":0}]
[1]
[{"$f":"IF(SUM($A$95:$A$144)>0,1,0)","v":0},null,"Motors (not already included in above tables)",null,null,null,null,"Nameplate Data"]
[{"$f":"IF(SUM($A$95:$A$144)>0,1,0)","v":0},null,"Motor ID","Number of Identical Units","Loading (constant/ variable)","Affiliated System","Control Type","Manufacturer","Model Number","Motor HP","Nominal Efficiency","Synchronous Speed (RPM)","Type: TEFC or ODP"]
[0,null,"Example",1,"Constant","Hot Water System Pump","Switch","Baldor","UTC-F9R-334-2",1.5,0.75,1730,"ODP"]
[{"$f":"IF(C95=0,0,1)","v":0},null,{"$f":"Mechanical!B95","v":0},{"$f":"Mechanical!D95","v":0},{"$f":"Mechanical!E95","v":0},{"$f":"Mechanical!F95","v":0},{"$f":"Mechanical!G95","v":0},{"$f":"Mechanical!H95","v":0},{"$f":"Mechanical!I95","v":0},{"$f":"Mechanical!J95","v":0},{"$f":"Mechanical!K95","v":0},{"$f":"Mechanical!L95","v":0},{"$f":"Mechanical!M95","v":0}]
[{"$f":"IF(C96=0,0,1)","v":0},null,{"$f":"Mechanical!B96","v":0},{"$f":"Mechanical!D96","v":0},{"$f":"Mechanical!E96","v":0},{"$f":"Mechanical!F96","v":0},{"$f":"Mechanical!G96","v":0},{"$f":"Mechanical!H96","v":0},{"$f":"Mechanical!I96","v":0},{"$f":"Mechanical!J96","v":0},{"$f":"Mechanical!K96","v":0},{"$f":"Mechanical!L96","v":0},{"$f":"Mechanical!M96","v":0}]
[0,null,{"$f":"Mechanical!B97","v":0},{"$f":"Mechanical!D97","v":0},{"$f":"Mechanical!E97","v":0},{"$f":"Mechanical!F97","v":0},{"$f":"Mechanical!G97","v":0},{"$f":"Mechanical!H97","v":0},{"$f":"Mechanical!I97","v":0},{"$f":"Mechanical!J97","v":0},{"$f":"Mechanical!K97","v":0},{"$f":"Mechanical!L97","v":0},{"$f":"Mechanical!M97","v":0}]
[0,null,{"$f":"Mechanical!B98","v":0},{"$f":"Mechanical!D98","v":0},{"$f":"Mechanical!E98","v":0},{"$f":"Mechanical!F98","v":0},{"$f":"Mechanical!G98","v":0},{"$f":"Mechanical!H98","v":0},{"$f":"Mechanical!I98","v":0},{"$f":"Mechanical!J98","v":0},{"$f":"Mechanical!K98","v":0},{"$f":"Mechanical!L98","v":0},{"$f":"Mechanical!M98","v":0}]
[0,null,{"$f":"Mechanical!B99","v":0},{"$f":"Mechanical!D99","v":0},{"$f":"Mechanical!E99","v":0},{"$f":"Mechanical!F99","v":0},{"$f":"Mechanical!G99","v":0},{"$f":"Mechanical!H99","v":0},{"$f":"Mechanical!I99","v":0},{"$f":"Mechanical!J99","v":0},{"$f":"Mechanical!K99","v":0},{"$f":"Mechanical!L99","v":0},{"$f":"Mechanical!M99","v":0}]
[0,null,{"$f":"Mechanical!B100","v":0},{"$f":"Mechanical!D100","v":0},{"$f":"Mechanical!E100","v":0},{"$f":"Mechanical!F100","v":0},{"$f":"Mechanical!G100","v":0},{"$f":"Mechanical!H100","v":0},{"$f":"Mechanical!I100","v":0},{"$f":"Mechanical!J100","v":0},{"$f":"Mechanical!K100","v":0},{"$f":"Mechanical!L100","v":0},{"$f":"Mechanical!M100","v":0}]
[0,null,{"$f":"Mechanical!B101","v":0},{"$f":"Mechanical!D101","v":0},{"$f":"Mechanical!E101","v":0},{"$f":"Mechanical!F101","v":0},{"$f":"Mechanical!G101","v":0},{"$f":"Mechanical!H101","v":0},{"$f":"Mechanical!I101","v":0},{"$f":"Mechanical!J101","v":0},{"$f":"Mechanical!K101","v":0},{"$f":"Mechanical!L101","v":0},{"$f":"Mechanical!M101","v":0}]
[0,null,{"$f":"Mechanical!B102","v":0},{"$f":"Mechanical!D102","v":0},{"$f":"Mechanical!E102","v":0},{"$f":"Mechanical!F102","v":0},{"$f":"Mechanical!G102","v":0},{"$f":"Mechanical!H102","v":0},{"$f":"Mechanical!I102","v":0},{"$f":"Mechanical!J102","v":0},{"$f":"Mechanical!K102","v":0},{"$f":"Mechanical!L102","v":0},{"$f":"Mechanical!M102","v":0}]
[0,null,{"$f":"Mechanical!B103","v":0},{"$f":"Mechanical!D103","v":0},{"$f":"Mechanical!E103","v":0},{"$f":"Mechanical!F103","v":0},{"$f":"Mechanical!G103","v":0},{"$f":"Mechanical!H103","v":0},{"$f":"Mechanical!I103","v":0},{"$f":"Mechanical!J103","v":0},{"$f":"Mechanical!K103","v":0},{"$f":"Mechanical!L103","v":0},{"$f":"Mechanical!M103","v":0}]
[0,null,{"$f":"Mechanical!B104","v":0},{"$f":"Mechanical!D104","v":0},{"$f":"Mechanical!E104","v":0},{"$f":"Mechanical!F104","v":0},{"$f":"Mechanical!G104","v":0},{"$f":"Mechanical!H104","v":0},{"$f":"Mechanical!I104","v":0},{"$f":"Mechanical!J104","v":0},{"$f":"Mechanical!K104","v":0},{"$f":"Mechanical!L104","v":0},{"$f":"Mechanical!M104","v":0}]
[0,null,{"$f":"Mechanical!B105","v":0},{"$f":"Mechanical!D105","v":0},{"$f":"Mechanical!E105","v":0},{"$f":"Mechanical!F105","v":0},{"$f":"Mechanical!G105","v":0},{"$f":"Mechanical!H105","v":0},{"$f":"Mechanical!I105","v":0},{"$f":"Mechanical!J105","v":0},{"$f":"Mechanical!K105","v":0},{"$f":"Mechanical!L105","v":0},{"$f":"Mechanical!M105","v":0}]
[0,null,{"$f":"Mechanical!B106","v":0},{"$f":"Mechanical!D106","v":0},{"$f":"Mechanical!E106","v":0},{"$f":"Mechanical!F106","v":0},{"$f":"Mechanical!G106","v":0},{"$f":"Mechanical!H106","v":0},{"$f":"Mechanical!I106","v":0},{"$f":"Mechanical!J106","v":0},{"$f":"Mechanical!K106","v":0},{"$f":"Mechanical!L106","v":0},{"$f":"Mechanical!M106","v":0}]
[0,null,{"$f":"Mechanical!B107","v":0},{"$f":"Mechanical!D107","v":0},{"$f":"Mechanical!E107","v":0},{"$f":"Mechanical!F107","v":0},{"$f":"Mechanical!G107","v":0},{"$f":"Mechanical!H107","v":0},{"$f":"Mechanical!I107","v":0},{"$f":"Mechanical!J107","v":0},{"$f":"Mechanical!K107","v":0},{"$f":"Mechanical!L107","v":0},{"$f":"Mechanical!M107","v":0}]
[0,null,{"$f":"Mechanical!B108","v":0},{"$f":"Mechanical!D108","v":0},{"$f":"Mechanical!E108","v":0},{"$f":"Mechanical!F108","v":0},{"$f":"Mechanical!G108","v":0},{"$f":"Mechanical!H108","v":0},{"$f":"Mechanical!I108","v":0},{"$f":"Mechanical!J108","v":0},{"$f":"Mechanical!K108","v":0},{"$f":"Mechanical!L108","v":0},{"$f":"Mechanical!M108","v":0}]
[0,null,{"$f":"Mechanical!B109","v":0},{"$f":"Mechanical!D109","v":0},{"$f":"Mechanical!E109","v":0},{"$f":"Mechanical!F109","v":0},{"$f":"Mechanical!G109","v":0},{"$f":"Mechanical!H109","v":0},{"$f":"Mechanical!I109","v":0},{"$f":"Mechanical!J109","v":0},{"$f":"Mechanical!K109","v":0},{"$f":"Mechanical!L109","v":0},{"$f":"Mechanical!M109","v":0}]
[0,null,{"$f":"Mechanical!B110","v":0},{"$f":"Mechanical!D110","v":0},{"$f":"Mechanical!E110","v":0},{"$f":"Mechanical!F110","v":0},{"$f":"Mechanical!G110","v":0},{"$f":"Mechanical!H110","v":0},{"$f":"Mechanical!I110","v":0},{"$f":"Mechanical!J110","v":0},{"$f":"Mechanical!K110","v":0},{"$f":"Mechanical!L110","v":0},{"$f":"Mechanical!M110","v":0}]
[0,null,{"$f":"Mechanical!B111","v":0},{"$f":"Mechanical!D111","v":0},{"$f":"Mechanical!E111","v":0},{"$f":"Mechanical!F111","v":0},{"$f":"Mechanical!G111","v":0},{"$f":"Mechanical!H111","v":0},{"$f":"Mechanical!I111","v":0},{"$f":"Mechanical!J111","v":0},{"$f":"Mechanical!K111","v":0},{"$f":"Mechanical!L111","v":0},{"$f":"Mechanical!M111","v":0}]
[0,null,{"$f":"Mechanical!B112","v":0},{"$f":"Mechanical!D112","v":0},{"$f":"Mechanical!E112","v":0},{"$f":"Mechanical!F112","v":0},{"$f":"Mechanical!G112","v":0},{"$f":"Mechanical!H112","v":0},{"$f":"Mechanical!I112","v":0},{"$f":"Mechanical!J112","v":0},{"$f":"Mechanical!K112","v":0},{"$f":"Mechanical!L112","v":0},{"$f":"Mechanical!M112","v":0}]
[0,null,{"$f":"Mechanical!B113","v":0},{"$f":"Mechanical!D113","v":0},{"$f":"Mechanical!E113","v":0},{"$f":"Mechanical!F113","v":0},{"$f":"Mechanical!G113","v":0},{"$f":"Mechanical!H113","v":0},{"$f":"Mechanical!I113","v":0},{"$f":"Mechanical!J113","v":0},{"$f":"Mechanical!K113","v":0},{"$f":"Mechanical!L113","v":0},{"$f":"Mechanical!M113","v":0}]
[0,null,{"$f":"Mechanical!B114","v":0},{"$f":"Mechanical!D114","v":0},{"$f":"Mechanical!E114","v":0},{"$f":"Mechanical!F114","v":0},{"$f":"Mechanical!G114","v":0},{"$f":"Mechanical!H114","v":0},{"$f":"Mechanical!I114","v":0},{"$f":"Mechanical!J114","v":0},{"$f":"Mechanical!K114","v":0},{"$f":"Mechanical!L114","v":0},{"$f":"Mechanical!M114","v":0}]
[0,null,{"$f":"Mechanical!B115","v":0},{"$f":"Mechanical!D115","v":0},{"$f":"Mechanical!E115","v":0},{"$f":"Mechanical!F115","v":0},{"$f":"Mechanical!G115","v":0},{"$f":"Mechanical!H115","v":0},{"$f":"Mechanical!I115","v":0},{"$f":"Mechanical!J115","v":0},{"$f":"Mechanical!K115","v":0},{"$f":"Mechanical!L115","v":0},{"$f":"Mechanical!M115","v":0}]
[0,null,{"$f":"Mechanical!B116","v":0},{"$f":"Mechanical!D116","v":0},{"$f":"Mechanical!E116","v":0},{"$f":"Mechanical!F116","v":0},{"$f":"Mechanical!G116","v":0},{"$f":"Mechanical!H116","v":0},{"$f":"Mechanical!I116","v":0},{"$f":"Mechanical!J116","v":0},{"$f":"Mechanical!K116","v":0},{"$f":"Mechanical!L116","v":0},{"$f":"Mechanical!M116","v":0}]
[0,null,{"$f":"Mechanical!B117","v":0},{"$f":"Mechanical!D117","v":0},{"$f":"Mechanical!E117","v":0},{"$f":"Mechanical!F117","v":0},{"$f":"Mechanical!G117","v":0},{"$f":"Mechanical!H117","v":0},{"$f":"Mechanical!I117","v":0},{"$f":"Mechanical!J117","v":0},{"$f":"Mechanical!K117","v":0},{"$f":"Mechanical!L117","v":0},{"$f":"Mechanical!M117","v":0}]
[0,null,{"$f":"Mechanical!B118","v":0},{"$f":"Mechanical!D118","v":0},{"$f":"Mechanical!E118","v":0},{"$f":"Mechanical!F118","v":0},{"$f":"Mechanical!G118","v":0},{"$f":"Mechanical!H118","v":0},{"$f":"Mechanical!I118","v":0},{"$f":"Mechanical!J118","v":0},{"$f":"Mechanical!K118","v":0},{"$f":"Mechanical!L118","v":0},{"$f":"Mechanical!M118","v":0}]
[0,null,{"$f":"Mechanical!B119","v":0},{"$f":"Mechanical!D119","v":0},{"$f":"Mechanical!E119","v":0},{"$f":"Mechanical!F119","v":0},{"$f":"Mechanical!G119","v":0},{"$f":"Mechanical!H119","v":0},{"$f":"Mechanical!I119","v":0},{"$f":"Mechanical!J119","v":0},{"$f":"Mechanical!K119","v":0},{"$f":"Mechanical!L119","v":0},{"$f":"Mechanical!M119","v":0}]
[0,null,{"$f":"Mechanical!B120","v":0},{"$f":"Mechanical!D120","v":0},{"$f":"Mechanical!E120","v":0},{"$f":"Mechanical!F120","v":0},{"$f":"Mechanical!G120","v":0},{"$f":"Mechanical!H120","v":0},{"$f":"Mechanical!I120","v":0},{"$f":"Mechanical!J120","v":0},{"$f":"Mechanical!K120","v":0},{"$f":"Mechanical!L120","v":0},{"$f":"Mechanical!M120","v":0}]
[0,null,{"$f":"Mechanical!B121","v":0},{"$f":"Mechanical!D121","v":0},{"$f":"Mechanical!E121","v":0},{"$f":"Mechanical!F121","v":0},{"$f":"Mechanical!G121","v":0},{"$f":"Mechanical!H121","v":0},{"$f":"Mechanical!I121","v":0},{"$f":"Mechanical!J121","v":0},{"$f":"Mechanical!K121","v":0},{"$f":"Mechanical!L121","v":0},{"$f":"Mechanical!M121","v":0}]
[0,null,{"$f":"Mechanical!B122","v":0},{"$f":"Mechanical!D122","v":0},{"$f":"Mechanical!E122","v":0},{"$f":"Mechanical!F122","v":0},{"$f":"Mechanical!G122","v":0},{"$f":"Mechanical!H122","v":0},{"$f":"Mechanical!I122","v":0},{"$f":"Mechanical!J122","v":0},{"$f":"Mechanical!K122","v":0},{"$f":"Mechanical!L122","v":0},{"$f":"Mechanical!M122","v":0}]
[0,null,{"$f":"Mechanical!B123","v":0},{"$f":"Mechanical!D123","v":0},{"$f":"Mechanical!E123","v":0},{"$f":"Mechanical!F123","v":0},{"$f":"Mechanical!G123","v":0},{"$f":"Mechanical!H123","v":0},{"$f":"Mechanical!I123","v":0},{"$f":"Mechanical!J123","v":0},{"$f":"Mechanical!K123","v":0},{"$f":"Mechanical!L123","v":0},{"$f":"Mechanical!M123","v":0}]
[0,null,{"$f":"Mechanical!B124","v":0},{"$f":"Mechanical!D124","v":0},{"$f":"Mechanical!E124","v":0},{"$f":"Mechanical!F124","v":0},{"$f":"Mechanical!G124","v":0},{"$f":"Mechanical!H124","v":0},{"$f":"Mechanical!I124","v":0},{"$f":"Mechanical!J124","v":0},{"$f":"Mechanical!K124","v":0},{"$f":"Mechanical!L124","v":0},{"$f":"Mechanical!M124","v":0}]
[0,null,{"$f":"Mechanical!B125","v":0},{"$f":"Mechanical!D125","v":0},{"$f":"Mechanical!E125","v":0},{"$f":"Mechanical!F125","v":0},{"$f":"Mechanical!G125","v":0},{"$f":"Mechanical!H125","v":0},{"$f":"Mechanical!I125","v":0},{"$f":"Mechanical!J125","v":0},{"$f":"Mechanical!K125","v":0},{"$f":"Mechanical!L125","v":0},{"$f":"Mechanical!M125","v":0}]
[0,null,{"$f":"Mechanical!B126","v":0},{"$f":"Mechanical!D126","v":0},{"$f":"Mechanical!E126","v":0},{"$f":"Mechanical!F126","v":0},{"$f":"Mechanical!G126","v":0},{"$f":"Mechanical!H126","v":0},{"$f":"Mechanical!I126","v":0},{"$f":"Mechanical!J126","v":0},{"$f":"Mechanical!K126","v":0},{"$f":"Mechanical!L126","v":0},{"$f":"Mechanical!M126","v":0}]
[0,null,{"$f":"Mechanical!B127","v":0},{"$f":"Mechanical!D127","v":0},{"$f":"Mechanical!E127","v":0},{"$f":"Mechanical!F127","v":0},{"$f":"Mechanical!G127","v":0},{"$f":"Mechanical!H127","v":0},{"$f":"Mechanical!I127","v":0},{"$f":"Mechanical!J127","v":0},{"$f":"Mechanical!K127","v":0},{"$f":"Mechanical!L127","v":0},{"$f":"Mechanical!M127","v":0}]
[0,null,{"$f":"Mechanical!B128","v":0},{"$f":"Mechanical!D128","v":0},{"$f":"Mechanical!E128","v":0},{"$f":"Mechanical!F128","v":0},{"$f":"Mechanical!G128","v":0},{"$f":"Mechanical!H128","v":0},{"$f":"Mechanical!I128","v":0},{"$f":"Mechanical!J128","v":0},{"$f":"Mechanical!K128","v":0},{"$f":"Mechanical!L128","v":0},{"$f":"Mechanical!M128","v":0}]
[0,null,{"$f":"Mechanical!B129","v":0},{"$f":"Mechanical!D129","v":0},{"$f":"Mechanical!E129","v":0},{"$f":"Mechanical!F129","v":0},{"$f":"Mechanical!G129","v":0},{"$f":"Mechanical!H129","v":0},{"$f":"Mechanical!I129","v":0},{"$f":"Mechanical!J129","v":0},{"$f":"Mechanical!K129","v":0},{"$f":"Mechanical!L129","v":0},{"$f":"Mechanical!M129","v":0}]
[0,null,{"$f":"Mechanical!B130","v":0},{"$f":"Mechanical!D130","v":0},{"$f":"Mechanical!E130","v":0},{"$f":"Mechanical!F130","v":0},{"$f":"Mechanical!G130","v":0},{"$f":"Mechanical!H130","v":0},{"$f":"Mechanical!I130","v":0},{"$f":"Mechanical!J130","v":0},{"$f":"Mechanical!K130","v":0},{"$f":"Mechanical!L130","v":0},{"$f":"Mechanical!M130","v":0}]
[0,null,{"$f":"Mechanical!B131","v":0},{"$f":"Mechanical!D131","v":0},{"$f":"Mechanical!E131","v":0},{"$f":"Mechanical!F131","v":0},{"$f":"Mechanical!G131","v":0},{"$f":"Mechanical!H131","v":0},{"$f":"Mechanical!I131","v":0},{"$f":"Mechanical!J131","v":0},{"$f":"Mechanical!K131","v":0},{"$f":"Mechanical!L131","v":0},{"$f":"Mechanical!M131","v":0}]
[0,null,{"$f":"Mechanical!B132","v":0},{"$f":"Mechanical!D132","v":0},{"$f":"Mechanical!E132","v":0},{"$f":"Mechanical!F132","v":0},{"$f":"Mechanical!G132","v":0},{"$f":"Mechanical!H132","v":0},{"$f":"Mechanical!I132","v":0},{"$f":"Mechanical!J132","v":0},{"$f":"Mechanical!K132","v":0},{"$f":"Mechanical!L132","v":0},{"$f":"Mechanical!M132","v":0}]
[0,null,{"$f":"Mechanical!B133","v":0},{"$f":"Mechanical!D133","v":0},{"$f":"Mechanical!E133","v":0},{"$f":"Mechanical!F133","v":0},{"$f":"Mechanical!G133","v":0},{"$f":"Mechanical!H133","v":0},{"$f":"Mechanical!I133","v":0},{"$f":"Mechanical!J133","v":0},{"$f":"Mechanical!K133","v":0},{"$f":"Mechanical!L133","v":0},{"$f":"Mechanical!M133","v":0}]
[0,null,{"$f":"Mechanical!B134","v":0},{"$f":"Mechanical!D134","v":0},{"$f":"Mechanical!E134","v":0},{"$f":"Mechanical!F134","v":0},{"$f":"Mechanical!G134","v":0},{"$f":"Mechanical!H134","v":0},{"$f":"Mechanical!I134","v":0},{"$f":"Mechanical!J134","v":0},{"$f":"Mechanical!K134","v":0},{"$f":"Mechanical!L134","v":0},{"$f":"Mechanical!M134","v":0}]
[0,null,{"$f":"Mechanical!B135","v":0},{"$f":"Mechanical!D135","v":0},{"$f":"Mechanical!E135","v":0},{"$f":"Mechanical!F135","v":0},{"$f":"Mechanical!G135","v":0},{"$f":"Mechanical!H135","v":0},{"$f":"Mechanical!I135","v":0},{"$f":"Mechanical!J135","v":0},{"$f":"Mechanical!K135","v":0},{"$f":"Mechanical!L135","v":0},{"$f":"Mechanical!M135","v":0}]
[0,null,{"$f":"Mechanical!B136","v":0},{"$f":"Mechanical!D136","v":0},{"$f":"Mechanical!E136","v":0},{"$f":"Mechanical!F136","v":0},{"$f":"Mechanical!G136","v":0},{"$f":"Mechanical!H136","v":0},{"$f":"Mechanical!I136","v":0},{"$f":"Mechanical!J136","v":0},{"$f":"Mechanical!K136","v":0},{"$f":"Mechanical!L136","v":0},{"$f":"Mechanical!M136","v":0}]
[0,null,{"$f":"Mechanical!B137","v":0},{"$f":"Mechanical!D137","v":0},{"$f":"Mechanical!E137","v":0},{"$f":"Mechanical!F137","v":0},{"$f":"Mechanical!G137","v":0},{"$f":"Mechanical!H137","v":0},{"$f":"Mechanical!I137","v":0},{"$f":"Mechanical!J137","v":0},{"$f":"Mechanical!K137","v":0},{"$f":"Mechanical!L137","v":0},{"$f":"Mechanical!M137","v":0}]
[0,null,{"$f":"Mechanical!B138","v":0},{"$f":"Mechanical!D138","v":0},{"$f":"Mechanical!E138","v":0},{"$f":"Mechanical!F138","v":0},{"$f":"Mechanical!G138","v":0},{"$f":"Mechanical!H138","v":0},{"$f":"Mechanical!I138","v":0},{"$f":"Mechanical!J138","v":0},{"$f":"Mechanical!K138","v":0},{"$f":"Mechanical!L138","v":0},{"$f":"Mechanical!M138","v":0}]
[0,null,{"$f":"Mechanical!B139","v":0},{"$f":"Mechanical!D139","v":0},{"$f":"Mechanical!E139","v":0},{"$f":"Mechanical!F139","v":0},{"$f":"Mechanical!G139","v":0},{"$f":"Mechanical!H139","v":0},{"$f":"Mechanical!I139","v":0},{"$f":"Mechanical!J139","v":0},{"$f":"Mechanical!K139","v":0},{"$f":"Mechanical!L139","v":0},{"$f":"Mechanical!M139","v":0}]
[0,null,{"$f":"Mechanical!B140","v":0},{"$f":"Mechanical!D140","v":0},{"$f":"Mechanical!E140","v":0},{"$f":"Mechanical!F140","v":0},{"$f":"Mechanical!G140","v":0},{"$f":"Mechanical!H140","v":0},{"$f":"Mechanical!I140","v":0},{"$f":"Mechanical!J140","v":0},{"$f":"Mechanical!K140","v":0},{"$f":"Mechanical!L140","v":0},{"$f":"Mechanical!M140","v":0}]
[0,null,{"$f":"Mechanical!B141","v":0},{"$f":"Mechanical!D141","v":0},{"$f":"Mechanical!E141","v":0},{"$f":"Mechanical!F141","v":0},{"$f":"Mechanical!G141","v":0},{"$f":"Mechanical!H141","v":0},{"$f":"Mechanical!I141","v":0},{"$f":"Mechanical!J141","v":0},{"$f":"Mechanical!K141","v":0},{"$f":"Mechanical!L141","v":0},{"$f":"Mechanical!M141","v":0}]
[0,null,{"$f":"Mechanical!B142","v":0},{"$f":"Mechanical!D142","v":0},{"$f":"Mechanical!E142","v":0},{"$f":"Mechanical!F142","v":0},{"$f":"Mechanical!G142","v":0},{"$f":"Mechanical!H142","v":0},{"$f":"Mechanical!I142","v":0},{"$f":"Mechanical!J142","v":0},{"$f":"Mechanical!K142","v":0},{"$f":"Mechanical!L142","v":0},{"$f":"Mechanical!M142","v":0}]
[0,null,{"$f":"Mechanical!B143","v":0},{"$f":"Mechanical!D143","v":0},{"$f":"Mechanical!E143","v":0},{"$f":"Mechanical!F143","v":0},{"$f":"Mechanical!G143","v":0},{"$f":"Mechanical!H143","v":0},{"$f":"Mechanical!I143","v":0},{"$f":"Mechanical!J143","v":0},{"$f":"Mechanical!K143","v":0},{"$f":"Mechanical!L143","v":0},{"$f":"Mechanical!M143","v":0}]
[0,null,{"$f":"Mechanical!B144","v":0},{"$f":"Mechanical!D144","v":0},{"$f":"Mechanical!E144","v":0},{"$f":"Mechanical!F144","v":0},{"$f":"Mechanical!G144","v":0},{"$f":"Mechanical!H144","v":0},{"$f":"Mechanical!I144","v":0},{"$f":"Mechanical!J144","v":0},{"$f":"Mechanical!K144","v":0},{"$f":"Mechanical!L144","v":0},{"$f":"Mechanical!M144","v":0}]
[1]
[{"$f":"IF(SUM($A$148:$A$159)>0,1,0)","v":0},null,"Other Mechanical Systems Not Included Above (including any existing controls, automation, or management systems)"]
[{"$f":"IF(SUM($A$148:$A$159)>0,1,0)","v":0},null,"Name of System",null,"System Description/Additional Notes"]
[{"$f":"IF(C148=0,0,1)","v":0},null,{"$f":"Mechanical!B148","v":0},null,{"$f":"Mechanical!E148","v":0}]
[{"$f":"IF(C149=0,0,1)","v":0},null,{"$f":"Mechanical!B149","v":0},null,{"$f":"Mechanical!E149","v":0}]
[0,null,{"$f":"Mechanical!B150","v":0},null,{"$f":"Mechanical!E150","v":0}]
[0,null,{"$f":"Mechanical!B151","v":0},null,{"$f":"Mechanical!E151","v":0}]
[0,null,{"$f":"Mechanical!B152","v":0},null,{"$f":"Mechanical!E152","v":0}]
[0,null,{"$f":"Mechanical!B153","v":0},null,{"$f":"Mechanical!E153","v":0}]
[0,null,{"$f":"Mechanical!B154","v":0},null,{"$f":"Mechanical!E154","v":0}]
[0,null,{"$f":"Mechanical!B155","v":0},null,{"$f":"Mechanical!E155","v":0}]
[0,null,{"$f":"Mechanical!B156","v":0},null,{"$f":"Mechanical!E156","v":0}]
[0,null,{"$f":"Mechanical!B157","v":0},null,{"$f":"Mechanical!E157","v":0}]
[0,null,{"$f":"Mechanical!B158","v":0},null,{"$f":"Mechanical!E158","v":0}]
[0,null,{"$f":"Mechanical!B159","v":0},null,{"$f":"Mechanical!E159","v":0}]
[1]
[{"$f":"IF(SUM($A$165:$A$1164)>0,1,0)","v":0},"Interior Lighting"]
[{"$f":"IF(SUM($A$165:$A$1164)>0,1,0)","v":0},"Location ",null,null,null,null,"Existing",null,null,null,null,null,null,null,null,"Proposed",null,null,null,null,null,null,null,null,"Savings"]
[0,null,"Building\n(from 'Area Identification')","Building Area\n(from 'Area Identification')","Floor #","Area and/or Room/Unit Number","Technology Type","Fixture/Lamp Description","Ballast  ","Default Watts / Fixture","Actual Watts/Fixture (if different from default)","Fixture Qty.","Control Type","Controls Qty.","Total  Watts","Technology Type","Fixture/Lamp Description","Ballast  ","Default Watts / Fixture","Actual Watts/Fixture (if different from default)","Fixture Qty.","Control Type","Controls Qty.","Total   Watts","Watts Saved","% Savings"]
[0,"Ex","Building 1 ","Classroom/Lecture/ Training","Ground Floor","Classroom 101","Linear Fluorescent - T12","4' T12 (40W) - 3L","Magnetic",120,null,2,"Occ. Sensor Ceiling Mount (low volt)",null,240,"Linear Fluorescent - RWT8","4' RWT8 (28W) - 3L","Electronic",112,"",2,"Occ. Sensor Ceiling Mount (line volt)",null,224,{"$f":"K164-X164","v":-224},{"$f":"IFERROR(1-(X164/K164),0)","v":0}]
[{"$f":"IF(G165=0,0,1)","v":0},{"$f":"Lighting!B9","v":1},{"$f":"Lighting!C9","v":0},{"$f":"Lighting!D9","v":0},{"$f":"Lighting!F9","v":0},{"$f":"Lighting!G9","v":0},{"$f":"Lighting!H9","v":0},{"$f":"Lighting!I9","v":0},{"$f":"Lighting!J9","v":0},{"$f":"Lighting!K9","v":0},{"$f":"Lighting!L9","v":0},{"$f":"Lighting!N9","v":0},{"$f":"Lighting!O9","v":0},{"$f":"Lighting!R9","v":0},{"$f":"Lighting!S9","v":0},{"$f":"Lighting!U9","v":0},{"$f":"Lighting!V9","v":0},{"$f":"Lighting!W9","v":0},{"$f":"Lighting!X9","v":0},{"$f":"Lighting!Y9","v":""},{"$f":"Lighting!AA9","v":""},{"$f":"Lighting!AC9","v":""},{"$f":"Lighting!AF9","v":""},{"$f":"Lighting!AG9","v":0},{"$f":"Lighting!AH9","v":0},{"$f":"Lighting!AI9","v":0}]
[{"$f":"IF(G166=0,0,1)","v":0},{"$f":"Lighting!B10","v":2},{"$f":"Lighting!C10","v":0},{"$f":"Lighting!D10","v":0},{"$f":"Lighting!F10","v":0},{"$f":"Lighting!G10","v":0},{"$f":"Lighting!H10","v":0},{"$f":"Lighting!I10","v":0},{"$f":"Lighting!J10","v":0},{"$f":"Lighting!K10","v":0},{"$f":"Lighting!L10","v":0},{"$f":"Lighting!N10","v":0},{"$f":"Lighting!O10","v":0},{"$f":"Lighting!R10","v":0},{"$f":"Lighting!S10","v":0},{"$f":"Lighting!U10","v":""},{"$f":"Lighting!V10","v":""},{"$f":"Lighting!W10","v":""},{"$f":"Lighting!X10","v":0},{"$f":"Lighting!Y10","v":""},{"$f":"Lighting!AA10","v":""},{"$f":"Lighting!AC10","v":""},{"$f":"Lighting!AF10","v":""},{"$f":"Lighting!AG10","v":0},{"$f":"Lighting!AH10","v":0},{"$f":"Lighting!AI10","v":0}]
[0,{"$f":"Lighting!B11","v":3},{"$f":"Lighting!C11","v":0},{"$f":"Lighting!D11","v":0},{"$f":"Lighting!F11","v":0},{"$f":"Lighting!G11","v":0},{"$f":"Lighting!H11","v":0},{"$f":"Lighting!I11","v":0},{"$f":"Lighting!J11","v":0},{"$f":"Lighting!K11","v":0},{"$f":"Lighting!L11","v":0},{"$f":"Lighting!N11","v":0},{"$f":"Lighting!O11","v":0},{"$f":"Lighting!R11","v":0},{"$f":"Lighting!S11","v":0},{"$f":"Lighting!U11","v":""},{"$f":"Lighting!V11","v":""},{"$f":"Lighting!W11","v":""},{"$f":"Lighting!X11","v":0},{"$f":"Lighting!Y11","v":""},{"$f":"Lighting!AA11","v":""},{"$f":"Lighting!AC11","v":""},{"$f":"Lighting!AF11","v":""},{"$f":"Lighting!AG11","v":0},{"$f":"Lighting!AH11","v":0},{"$f":"Lighting!AI11","v":0}]
[0,{"$f":"Lighting!B12","v":4},{"$f":"Lighting!C12","v":0},{"$f":"Lighting!#REF!","v":{"$error":"#REF!"}},{"$f":"Lighting!F12","v":0},{"$f":"Lighting!G12","v":0},{"$f":"Lighting!H12","v":0},{"$f":"Lighting!I12","v":0},{"$f":"Lighting!J12","v":0},{"$f":"Lighting!K12","v":0},{"$f":"Lighting!L12","v":0},{"$f":"Lighting!N12","v":0},{"$f":"Lighting!O12","v":0},{"$f":"Lighting!R12","v":0},{"$f":"Lighting!S12","v":0},{"$f":"Lighting!U12","v":""},{"$f":"Lighting!V12","v":""},{"$f":"Lighting!W12","v":""},{"$f":"Lighting!X12","v":0},{"$f":"Lighting!Y12","v":""},{"$f":"Lighting!AA12","v":""},{"$f":"Lighting!AC12","v":""},{"$f":"Lighting!AF12","v":""},{"$f":"Lighting!AG12","v":0},{"$f":"Lighting!AH12","v":0},{"$f":"Lighting!AI12","v":0}]
[0,{"$f":"Lighting!B13","v":5},{"$f":"Lighting!C13","v":0},{"$f":"Lighting!D12","v":0},{"$f":"Lighting!F13","v":0},{"$f":"Lighting!G13","v":0},{"$f":"Lighting!H13","v":0},{"$f":"Lighting!I13","v":0},{"$f":"Lighting!J13","v":0},{"$f":"Lighting!K13","v":0},{"$f":"Lighting!L13","v":0},{"$f":"Lighting!N13","v":0},{"$f":"Lighting!O13","v":0},{"$f":"Lighting!R13","v":0},{"$f":"Lighting!S13","v":0},{"$f":"Lighting!U13","v":""},{"$f":"Lighting!V13","v":""},{"$f":"Lighting!W13","v":""},{"$f":"Lighting!X13","v":0},{"$f":"Lighting!Y13","v":""},{"$f":"Lighting!AA13","v":""},{"$f":"Lighting!AC13","v":""},{"$f":"Lighting!AF13","v":""},{"$f":"Lighting!AG13","v":0},{"$f":"Lighting!AH13","v":0},{"$f":"Lighting!AI13","v":0}]
[0,{"$f":"Lighting!B14","v":6},{"$f":"Lighting!C14","v":0},{"$f":"Lighting!D14","v":0},{"$f":"Lighting!F14","v":0},{"$f":"Lighting!G14","v":0},{"$f":"Lighting!H14","v":0},{"$f":"Lighting!I14","v":0},{"$f":"Lighting!J14","v":0},{"$f":"Lighting!K14","v":0},{"$f":"Lighting!L14","v":0},{"$f":"Lighting!N14","v":0},{"$f":"Lighting!O14","v":0},{"$f":"Lighting!R14","v":0},{"$f":"Lighting!S14","v":0},{"$f":"Lighting!U14","v":""},{"$f":"Lighting!V14","v":""},{"$f":"Lighting!W14","v":""},{"$f":"Lighting!X14","v":0},{"$f":"Lighting!Y14","v":""},{"$f":"Lighting!AA14","v":""},{"$f":"Lighting!AC14","v":""},{"$f":"Lighting!AF14","v":""},{"$f":"Lighting!AG14","v":0},{"$f":"Lighting!AH14","v":0},{"$f":"Lighting!AI14","v":0}]
[0,{"$f":"Lighting!B15","v":7},{"$f":"Lighting!C15","v":0},{"$f":"Lighting!D15","v":0},{"$f":"Lighting!F15","v":0},{"$f":"Lighting!G15","v":0},{"$f":"Lighting!H15","v":0},{"$f":"Lighting!I15","v":0},{"$f":"Lighting!J15","v":0},{"$f":"Lighting!K15","v":0},{"$f":"Lighting!L15","v":0},{"$f":"Lighting!N15","v":0},{"$f":"Lighting!O15","v":0},{"$f":"Lighting!R15","v":0},{"$f":"Lighting!S15","v":0},{"$f":"Lighting!U15","v":""},{"$f":"Lighting!V15","v":""},{"$f":"Lighting!W15","v":""},{"$f":"Lighting!X15","v":0},{"$f":"Lighting!Y15","v":""},{"$f":"Lighting!AA15","v":""},{"$f":"Lighting!AC15","v":""},{"$f":"Lighting!AF15","v":""},{"$f":"Lighting!AG15","v":0},{"$f":"Lighting!AH15","v":0},{"$f":"Lighting!AI15","v":0}]
[0,{"$f":"Lighting!B16","v":8},{"$f":"Lighting!C16","v":0},{"$f":"Lighting!D16","v":0},{"$f":"Lighting!F16","v":0},{"$f":"Lighting!G16","v":0},{"$f":"Lighting!H16","v":0},{"$f":"Lighting!I16","v":0},{"$f":"Lighting!J16","v":0},{"$f":"Lighting!K16","v":0},{"$f":"Lighting!L16","v":0},{"$f":"Lighting!N16","v":0},{"$f":"Lighting!O16","v":0},{"$f":"Lighting!R16","v":0},{"$f":"Lighting!S16","v":0},{"$f":"Lighting!U16","v":""},{"$f":"Lighting!V16","v":""},{"$f":"Lighting!W16","v":""},{"$f":"Lighting!X16","v":0},{"$f":"Lighting!Y16","v":""},{"$f":"Lighting!AA16","v":""},{"$f":"Lighting!AC16","v":""},{"$f":"Lighting!AF16","v":""},{"$f":"Lighting!AG16","v":0},{"$f":"Lighting!AH16","v":0},{"$f":"Lighting!AI16","v":0}]
[0,{"$f":"Lighting!B17","v":9},{"$f":"Lighting!C17","v":0},{"$f":"Lighting!D17","v":0},{"$f":"Lighting!F17","v":0},{"$f":"Lighting!G17","v":0},{"$f":"Lighting!H17","v":0},{"$f":"Lighting!I17","v":0},{"$f":"Lighting!J17","v":0},{"$f":"Lighting!K17","v":0},{"$f":"Lighting!L17","v":0},{"$f":"Lighting!N17","v":0},{"$f":"Lighting!O17","v":0},{"$f":"Lighting!R17","v":0},{"$f":"Lighting!S17","v":0},{"$f":"Lighting!U17","v":""},{"$f":"Lighting!V17","v":""},{"$f":"Lighting!W17","v":""},{"$f":"Lighting!X17","v":0},{"$f":"Lighting!Y17","v":""},{"$f":"Lighting!AA17","v":""},{"$f":"Lighting!AC17","v":""},{"$f":"Lighting!AF17","v":""},{"$f":"Lighting!AG17","v":0},{"$f":"Lighting!AH17","v":0},{"$f":"Lighting!AI17","v":0}]
[0,{"$f":"Lighting!B18","v":10},{"$f":"Lighting!C18","v":0},{"$f":"Lighting!D18","v":0},{"$f":"Lighting!F18","v":0},{"$f":"Lighting!G18","v":0},{"$f":"Lighting!H18","v":0},{"$f":"Lighting!I18","v":0},{"$f":"Lighting!J18","v":0},{"$f":"Lighting!K18","v":0},{"$f":"Lighting!L18","v":0},{"$f":"Lighting!N18","v":0},{"$f":"Lighting!O18","v":0},{"$f":"Lighting!R18","v":0},{"$f":"Lighting!S18","v":0},{"$f":"Lighting!U18","v":""},{"$f":"Lighting!V18","v":""},{"$f":"Lighting!W18","v":""},{"$f":"Lighting!X18","v":0},{"$f":"Lighting!Y18","v":""},{"$f":"Lighting!AA18","v":""},{"$f":"Lighting!AC18","v":""},{"$f":"Lighting!AF18","v":""},{"$f":"Lighting!AG18","v":0},{"$f":"Lighting!AH18","v":0},{"$f":"Lighting!AI18","v":0}]
[0,{"$f":"Lighting!B19","v":11},{"$f":"Lighting!C19","v":0},{"$f":"Lighting!D19","v":0},{"$f":"Lighting!F19","v":0},{"$f":"Lighting!G19","v":0},{"$f":"Lighting!H19","v":0},{"$f":"Lighting!I19","v":0},{"$f":"Lighting!J19","v":0},{"$f":"Lighting!K19","v":0},{"$f":"Lighting!L19","v":0},{"$f":"Lighting!N19","v":0},{"$f":"Lighting!O19","v":0},{"$f":"Lighting!R19","v":0},{"$f":"Lighting!S19","v":0},{"$f":"Lighting!U19","v":""},{"$f":"Lighting!V19","v":""},{"$f":"Lighting!W19","v":""},{"$f":"Lighting!X19","v":0},{"$f":"Lighting!Y19","v":""},{"$f":"Lighting!AA19","v":""},{"$f":"Lighting!AC19","v":""},{"$f":"Lighting!AF19","v":""},{"$f":"Lighting!AG19","v":0},{"$f":"Lighting!AH19","v":0},{"$f":"Lighting!AI19","v":0}]
[0,{"$f":"Lighting!B20","v":12},{"$f":"Lighting!C20","v":0},{"$f":"Lighting!D20","v":0},{"$f":"Lighting!F20","v":0},{"$f":"Lighting!G20","v":0},{"$f":"Lighting!H20","v":0},{"$f":"Lighting!I20","v":0},{"$f":"Lighting!J20","v":0},{"$f":"Lighting!K20","v":0},{"$f":"Lighting!L20","v":0},{"$f":"Lighting!N20","v":0},{"$f":"Lighting!O20","v":0},{"$f":"Lighting!R20","v":0},{"$f":"Lighting!S20","v":0},{"$f":"Lighting!U20","v":""},{"$f":"Lighting!V20","v":""},{"$f":"Lighting!W20","v":""},{"$f":"Lighting!X20","v":0},{"$f":"Lighting!Y20","v":""},{"$f":"Lighting!AA20","v":""},{"$f":"Lighting!AC20","v":""},{"$f":"Lighting!AF20","v":""},{"$f":"Lighting!AG20","v":0},{"$f":"Lighting!AH20","v":0},{"$f":"Lighting!AI20","v":0}]
[0,{"$f":"Lighting!B21","v":13},{"$f":"Lighting!C21","v":0},{"$f":"Lighting!D21","v":0},{"$f":"Lighting!F21","v":0},{"$f":"Lighting!G21","v":0},{"$f":"Lighting!H21","v":0},{"$f":"Lighting!I21","v":0},{"$f":"Lighting!J21","v":0},{"$f":"Lighting!K21","v":0},{"$f":"Lighting!L21","v":0},{"$f":"Lighting!N21","v":0},{"$f":"Lighting!O21","v":0},{"$f":"Lighting!R21","v":0},{"$f":"Lighting!S21","v":0},{"$f":"Lighting!U21","v":""},{"$f":"Lighting!V21","v":""},{"$f":"Lighting!W21","v":""},{"$f":"Lighting!X21","v":0},{"$f":"Lighting!Y21","v":""},{"$f":"Lighting!AA21","v":""},{"$f":"Lighting!AC21","v":""},{"$f":"Lighting!AF21","v":""},{"$f":"Lighting!AG21","v":0},{"$f":"Lighting!AH21","v":0},{"$f":"Lighting!AI21","v":0}]
[0,{"$f":"Lighting!B22","v":14},{"$f":"Lighting!C22","v":0},{"$f":"Lighting!D22","v":0},{"$f":"Lighting!F22","v":0},{"$f":"Lighting!G22","v":0},{"$f":"Lighting!H22","v":0},{"$f":"Lighting!I22","v":0},{"$f":"Lighting!J22","v":0},{"$f":"Lighting!K22","v":0},{"$f":"Lighting!L22","v":0},{"$f":"Lighting!N22","v":0},{"$f":"Lighting!O22","v":0},{"$f":"Lighting!R22","v":0},{"$f":"Lighting!S22","v":0},{"$f":"Lighting!U22","v":""},{"$f":"Lighting!V22","v":""},{"$f":"Lighting!W22","v":""},{"$f":"Lighting!X22","v":0},{"$f":"Lighting!Y22","v":""},{"$f":"Lighting!AA22","v":""},{"$f":"Lighting!AC22","v":""},{"$f":"Lighting!AF22","v":""},{"$f":"Lighting!AG22","v":0},{"$f":"Lighting!AH22","v":0},{"$f":"Lighting!AI22","v":0}]
[0,{"$f":"Lighting!B23","v":15},{"$f":"Lighting!C23","v":0},{"$f":"Lighting!D23","v":0},{"$f":"Lighting!F23","v":0},{"$f":"Lighting!G23","v":0},{"$f":"Lighting!H23","v":0},{"$f":"Lighting!I23","v":0},{"$f":"Lighting!J23","v":0},{"$f":"Lighting!K23","v":0},{"$f":"Lighting!L23","v":0},{"$f":"Lighting!N23","v":0},{"$f":"Lighting!O23","v":0},{"$f":"Lighting!R23","v":0},{"$f":"Lighting!S23","v":0},{"$f":"Lighting!U23","v":""},{"$f":"Lighting!V23","v":""},{"$f":"Lighting!W23","v":""},{"$f":"Lighting!X23","v":0},{"$f":"Lighting!Y23","v":""},{"$f":"Lighting!AA23","v":""},{"$f":"Lighting!AC23","v":""},{"$f":"Lighting!AF23","v":""},{"$f":"Lighting!AG23","v":0},{"$f":"Lighting!AH23","v":0},{"$f":"Lighting!AI23","v":0}]
[0,{"$f":"Lighting!B24","v":16},{"$f":"Lighting!C24","v":0},{"$f":"Lighting!D24","v":0},{"$f":"Lighting!F24","v":0},{"$f":"Lighting!G24","v":0},{"$f":"Lighting!H24","v":0},{"$f":"Lighting!I24","v":0},{"$f":"Lighting!J24","v":0},{"$f":"Lighting!K24","v":0},{"$f":"Lighting!L24","v":0},{"$f":"Lighting!N24","v":0},{"$f":"Lighting!O24","v":0},{"$f":"Lighting!R24","v":0},{"$f":"Lighting!S24","v":0},{"$f":"Lighting!U24","v":""},{"$f":"Lighting!V24","v":""},{"$f":"Lighting!W24","v":""},{"$f":"Lighting!X24","v":0},{"$f":"Lighting!Y24","v":""},{"$f":"Lighting!AA24","v":""},{"$f":"Lighting!AC24","v":""},{"$f":"Lighting!AF24","v":""},{"$f":"Lighting!AG24","v":0},{"$f":"Lighting!AH24","v":0},{"$f":"Lighting!AI24","v":0}]
[0,{"$f":"Lighting!B25","v":17},{"$f":"Lighting!C25","v":0},{"$f":"Lighting!D25","v":0},{"$f":"Lighting!F25","v":0},{"$f":"Lighting!G25","v":0},{"$f":"Lighting!H25","v":0},{"$f":"Lighting!I25","v":0},{"$f":"Lighting!J25","v":0},{"$f":"Lighting!K25","v":0},{"$f":"Lighting!L25","v":0},{"$f":"Lighting!N25","v":0},{"$f":"Lighting!O25","v":0},{"$f":"Lighting!R25","v":0},{"$f":"Lighting!S25","v":0},{"$f":"Lighting!U25","v":""},{"$f":"Lighting!V25","v":""},{"$f":"Lighting!W25","v":""},{"$f":"Lighting!X25","v":0},{"$f":"Lighting!Y25","v":""},{"$f":"Lighting!AA25","v":""},{"$f":"Lighting!AC25","v":""},{"$f":"Lighting!AF25","v":""},{"$f":"Lighting!AG25","v":0},{"$f":"Lighting!AH25","v":0},{"$f":"Lighting!AI25","v":0}]
[0,{"$f":"Lighting!B26","v":18},{"$f":"Lighting!C26","v":0},{"$f":"Lighting!D26","v":0},{"$f":"Lighting!F26","v":0},{"$f":"Lighting!G26","v":0},{"$f":"Lighting!H26","v":0},{"$f":"Lighting!I26","v":0},{"$f":"Lighting!J26","v":0},{"$f":"Lighting!K26","v":0},{"$f":"Lighting!L26","v":0},{"$f":"Lighting!N26","v":0},{"$f":"Lighting!O26","v":0},{"$f":"Lighting!R26","v":0},{"$f":"Lighting!S26","v":0},{"$f":"Lighting!U26","v":""},{"$f":"Lighting!V26","v":""},{"$f":"Lighting!W26","v":""},{"$f":"Lighting!X26","v":0},{"$f":"Lighting!Y26","v":""},{"$f":"Lighting!AA26","v":""},{"$f":"Lighting!AC26","v":""},{"$f":"Lighting!AF26","v":""},{"$f":"Lighting!AG26","v":0},{"$f":"Lighting!AH26","v":0},{"$f":"Lighting!AI26","v":0}]
[0,{"$f":"Lighting!B27","v":19},{"$f":"Lighting!C27","v":0},{"$f":"Lighting!D27","v":0},{"$f":"Lighting!F27","v":0},{"$f":"Lighting!G27","v":0},{"$f":"Lighting!H27","v":0},{"$f":"Lighting!I27","v":0},{"$f":"Lighting!J27","v":0},{"$f":"Lighting!K27","v":0},{"$f":"Lighting!L27","v":0},{"$f":"Lighting!N27","v":0},{"$f":"Lighting!O27","v":0},{"$f":"Lighting!R27","v":0},{"$f":"Lighting!S27","v":0},{"$f":"Lighting!U27","v":""},{"$f":"Lighting!V27","v":""},{"$f":"Lighting!W27","v":""},{"$f":"Lighting!X27","v":0},{"$f":"Lighting!Y27","v":""},{"$f":"Lighting!AA27","v":""},{"$f":"Lighting!AC27","v":""},{"$f":"Lighting!AF27","v":""},{"$f":"Lighting!AG27","v":0},{"$f":"Lighting!AH27","v":0},{"$f":"Lighting!AI27","v":0}]
[0,{"$f":"Lighting!B28","v":20},{"$f":"Lighting!C28","v":0},{"$f":"Lighting!D28","v":0},{"$f":"Lighting!F28","v":0},{"$f":"Lighting!G28","v":0},{"$f":"Lighting!H28","v":0},{"$f":"Lighting!I28","v":0},{"$f":"Lighting!J28","v":0},{"$f":"Lighting!K28","v":0},{"$f":"Lighting!L28","v":0},{"$f":"Lighting!N28","v":0},{"$f":"Lighting!O28","v":0},{"$f":"Lighting!R28","v":0},{"$f":"Lighting!S28","v":0},{"$f":"Lighting!U28","v":""},{"$f":"Lighting!V28","v":""},{"$f":"Lighting!W28","v":""},{"$f":"Lighting!X28","v":0},{"$f":"Lighting!Y28","v":""},{"$f":"Lighting!AA28","v":""},{"$f":"Lighting!AC28","v":""},{"$f":"Lighting!AF28","v":""},{"$f":"Lighting!AG28","v":0},{"$f":"Lighting!AH28","v":0},{"$f":"Lighting!AI28","v":0}]
[0,{"$f":"Lighting!B29","v":21},{"$f":"Lighting!C29","v":0},{"$f":"Lighting!D29","v":0},{"$f":"Lighting!F29","v":0},{"$f":"Lighting!G29","v":0},{"$f":"Lighting!H29","v":0},{"$f":"Lighting!I29","v":0},{"$f":"Lighting!J29","v":0},{"$f":"Lighting!K29","v":0},{"$f":"Lighting!L29","v":0},{"$f":"Lighting!N29","v":0},{"$f":"Lighting!O29","v":0},{"$f":"Lighting!R29","v":0},{"$f":"Lighting!S29","v":0},{"$f":"Lighting!U29","v":""},{"$f":"Lighting!V29","v":""},{"$f":"Lighting!W29","v":""},{"$f":"Lighting!X29","v":0},{"$f":"Lighting!Y29","v":""},{"$f":"Lighting!AA29","v":""},{"$f":"Lighting!AC29","v":""},{"$f":"Lighting!AF29","v":""},{"$f":"Lighting!AG29","v":0},{"$f":"Lighting!AH29","v":0},{"$f":"Lighting!AI29","v":0}]
[0,{"$f":"Lighting!B30","v":22},{"$f":"Lighting!C30","v":0},{"$f":"Lighting!D30","v":0},{"$f":"Lighting!F30","v":0},{"$f":"Lighting!G30","v":0},{"$f":"Lighting!H30","v":0},{"$f":"Lighting!I30","v":0},{"$f":"Lighting!J30","v":0},{"$f":"Lighting!K30","v":0},{"$f":"Lighting!L30","v":0},{"$f":"Lighting!N30","v":0},{"$f":"Lighting!O30","v":0},{"$f":"Lighting!R30","v":0},{"$f":"Lighting!S30","v":0},{"$f":"Lighting!U30","v":""},{"$f":"Lighting!V30","v":""},{"$f":"Lighting!W30","v":""},{"$f":"Lighting!X30","v":0},{"$f":"Lighting!Y30","v":""},{"$f":"Lighting!AA30","v":""},{"$f":"Lighting!AC30","v":""},{"$f":"Lighting!AF30","v":""},{"$f":"Lighting!AG30","v":0},{"$f":"Lighting!AH30","v":0},{"$f":"Lighting!AI30","v":0}]
[0,{"$f":"Lighting!B31","v":23},{"$f":"Lighting!C31","v":0},{"$f":"Lighting!D31","v":0},{"$f":"Lighting!F31","v":0},{"$f":"Lighting!G31","v":0},{"$f":"Lighting!H31","v":0},{"$f":"Lighting!I31","v":0},{"$f":"Lighting!J31","v":0},{"$f":"Lighting!K31","v":0},{"$f":"Lighting!L31","v":0},{"$f":"Lighting!N31","v":0},{"$f":"Lighting!O31","v":0},{"$f":"Lighting!R31","v":0},{"$f":"Lighting!S31","v":0},{"$f":"Lighting!U31","v":""},{"$f":"Lighting!V31","v":""},{"$f":"Lighting!W31","v":""},{"$f":"Lighting!X31","v":0},{"$f":"Lighting!Y31","v":""},{"$f":"Lighting!AA31","v":""},{"$f":"Lighting!AC31","v":""},{"$f":"Lighting!AF31","v":""},{"$f":"Lighting!AG31","v":0},{"$f":"Lighting!AH31","v":0},{"$f":"Lighting!AI31","v":0}]
[0,{"$f":"Lighting!B32","v":24},{"$f":"Lighting!C32","v":0},{"$f":"Lighting!D32","v":0},{"$f":"Lighting!F32","v":0},{"$f":"Lighting!G32","v":0},{"$f":"Lighting!H32","v":0},{"$f":"Lighting!I32","v":0},{"$f":"Lighting!J32","v":0},{"$f":"Lighting!K32","v":0},{"$f":"Lighting!L32","v":0},{"$f":"Lighting!N32","v":0},{"$f":"Lighting!O32","v":0},{"$f":"Lighting!R32","v":0},{"$f":"Lighting!S32","v":0},{"$f":"Lighting!U32","v":""},{"$f":"Lighting!V32","v":""},{"$f":"Lighting!W32","v":""},{"$f":"Lighting!X32","v":0},{"$f":"Lighting!Y32","v":""},{"$f":"Lighting!AA32","v":""},{"$f":"Lighting!AC32","v":""},{"$f":"Lighting!AF32","v":""},{"$f":"Lighting!AG32","v":0},{"$f":"Lighting!AH32","v":0},{"$f":"Lighting!AI32","v":0}]
[0,{"$f":"Lighting!B33","v":25},{"$f":"Lighting!C33","v":0},{"$f":"Lighting!D33","v":0},{"$f":"Lighting!F33","v":0},{"$f":"Lighting!G33","v":0},{"$f":"Lighting!H33","v":0},{"$f":"Lighting!I33","v":0},{"$f":"Lighting!J33","v":0},{"$f":"Lighting!K33","v":0},{"$f":"Lighting!L33","v":0},{"$f":"Lighting!N33","v":0},{"$f":"Lighting!O33","v":0},{"$f":"Lighting!R33","v":0},{"$f":"Lighting!S33","v":0},{"$f":"Lighting!U33","v":""},{"$f":"Lighting!V33","v":""},{"$f":"Lighting!W33","v":""},{"$f":"Lighting!X33","v":0},{"$f":"Lighting!Y33","v":""},{"$f":"Lighting!AA33","v":""},{"$f":"Lighting!AC33","v":""},{"$f":"Lighting!AF33","v":""},{"$f":"Lighting!AG33","v":0},{"$f":"Lighting!AH33","v":0},{"$f":"Lighting!AI33","v":0}]
[0,{"$f":"Lighting!B34","v":26},{"$f":"Lighting!C34","v":0},{"$f":"Lighting!D34","v":0},{"$f":"Lighting!F34","v":0},{"$f":"Lighting!G34","v":0},{"$f":"Lighting!H34","v":0},{"$f":"Lighting!I34","v":0},{"$f":"Lighting!J34","v":0},{"$f":"Lighting!K34","v":0},{"$f":"Lighting!L34","v":0},{"$f":"Lighting!N34","v":0},{"$f":"Lighting!O34","v":0},{"$f":"Lighting!R34","v":0},{"$f":"Lighting!S34","v":0},{"$f":"Lighting!U34","v":""},{"$f":"Lighting!V34","v":""},{"$f":"Lighting!W34","v":""},{"$f":"Lighting!X34","v":0},{"$f":"Lighting!Y34","v":""},{"$f":"Lighting!AA34","v":""},{"$f":"Lighting!AC34","v":""},{"$f":"Lighting!AF34","v":""},{"$f":"Lighting!AG34","v":0},{"$f":"Lighting!AH34","v":0},{"$f":"Lighting!AI34","v":0}]
[0,{"$f":"Lighting!B35","v":27},{"$f":"Lighting!C35","v":0},{"$f":"Lighting!D35","v":0},{"$f":"Lighting!F35","v":0},{"$f":"Lighting!G35","v":0},{"$f":"Lighting!H35","v":0},{"$f":"Lighting!I35","v":0},{"$f":"Lighting!J35","v":0},{"$f":"Lighting!K35","v":0},{"$f":"Lighting!L35","v":0},{"$f":"Lighting!N35","v":0},{"$f":"Lighting!O35","v":0},{"$f":"Lighting!R35","v":0},{"$f":"Lighting!S35","v":0},{"$f":"Lighting!U35","v":""},{"$f":"Lighting!V35","v":""},{"$f":"Lighting!W35","v":""},{"$f":"Lighting!X35","v":0},{"$f":"Lighting!Y35","v":""},{"$f":"Lighting!AA35","v":""},{"$f":"Lighting!AC35","v":""},{"$f":"Lighting!AF35","v":""},{"$f":"Lighting!AG35","v":0},{"$f":"Lighting!AH35","v":0},{"$f":"Lighting!AI35","v":0}]
[0,{"$f":"Lighting!B36","v":28},{"$f":"Lighting!C36","v":0},{"$f":"Lighting!D36","v":0},{"$f":"Lighting!F36","v":0},{"$f":"Lighting!G36","v":0},{"$f":"Lighting!H36","v":0},{"$f":"Lighting!I36","v":0},{"$f":"Lighting!J36","v":0},{"$f":"Lighting!K36","v":0},{"$f":"Lighting!L36","v":0},{"$f":"Lighting!N36","v":0},{"$f":"Lighting!O36","v":0},{"$f":"Lighting!R36","v":0},{"$f":"Lighting!S36","v":0},{"$f":"Lighting!U36","v":""},{"$f":"Lighting!V36","v":""},{"$f":"Lighting!W36","v":""},{"$f":"Lighting!X36","v":0},{"$f":"Lighting!Y36","v":""},{"$f":"Lighting!AA36","v":""},{"$f":"Lighting!AC36","v":""},{"$f":"Lighting!AF36","v":""},{"$f":"Lighting!AG36","v":0},{"$f":"Lighting!AH36","v":0},{"$f":"Lighting!AI36","v":0}]
[0,{"$f":"Lighting!B37","v":29},{"$f":"Lighting!C37","v":0},{"$f":"Lighting!D37","v":0},{"$f":"Lighting!F37","v":0},{"$f":"Lighting!G37","v":0},{"$f":"Lighting!H37","v":0},{"$f":"Lighting!I37","v":0},{"$f":"Lighting!J37","v":0},{"$f":"Lighting!K37","v":0},{"$f":"Lighting!L37","v":0},{"$f":"Lighting!N37","v":0},{"$f":"Lighting!O37","v":0},{"$f":"Lighting!R37","v":0},{"$f":"Lighting!S37","v":0},{"$f":"Lighting!U37","v":""},{"$f":"Lighting!V37","v":""},{"$f":"Lighting!W37","v":""},{"$f":"Lighting!X37","v":0},{"$f":"Lighting!Y37","v":""},{"$f":"Lighting!AA37","v":""},{"$f":"Lighting!AC37","v":""},{"$f":"Lighting!AF37","v":""},{"$f":"Lighting!AG37","v":0},{"$f":"Lighting!AH37","v":0},{"$f":"Lighting!AI37","v":0}]
[0,{"$f":"Lighting!B38","v":30},{"$f":"Lighting!C38","v":0},{"$f":"Lighting!D38","v":0},{"$f":"Lighting!F38","v":0},{"$f":"Lighting!G38","v":0},{"$f":"Lighting!H38","v":0},{"$f":"Lighting!I38","v":0},{"$f":"Lighting!J38","v":0},{"$f":"Lighting!K38","v":0},{"$f":"Lighting!L38","v":0},{"$f":"Lighting!N38","v":0},{"$f":"Lighting!O38","v":0},{"$f":"Lighting!R38","v":0},{"$f":"Lighting!S38","v":0},{"$f":"Lighting!U38","v":""},{"$f":"Lighting!V38","v":""},{"$f":"Lighting!W38","v":""},{"$f":"Lighting!X38","v":0},{"$f":"Lighting!Y38","v":""},{"$f":"Lighting!AA38","v":""},{"$f":"Lighting!AC38","v":""},{"$f":"Lighting!AF38","v":""},{"$f":"Lighting!AG38","v":0},{"$f":"Lighting!AH38","v":0},{"$f":"Lighting!AI38","v":0}]
[0,{"$f":"Lighting!B39","v":31},{"$f":"Lighting!C39","v":0},{"$f":"Lighting!D39","v":0},{"$f":"Lighting!F39","v":0},{"$f":"Lighting!G39","v":0},{"$f":"Lighting!H39","v":0},{"$f":"Lighting!I39","v":0},{"$f":"Lighting!J39","v":0},{"$f":"Lighting!K39","v":0},{"$f":"Lighting!L39","v":0},{"$f":"Lighting!N39","v":0},{"$f":"Lighting!O39","v":0},{"$f":"Lighting!R39","v":0},{"$f":"Lighting!S39","v":0},{"$f":"Lighting!U39","v":""},{"$f":"Lighting!V39","v":""},{"$f":"Lighting!W39","v":""},{"$f":"Lighting!X39","v":0},{"$f":"Lighting!Y39","v":""},{"$f":"Lighting!AA39","v":""},{"$f":"Lighting!AC39","v":""},{"$f":"Lighting!AF39","v":""},{"$f":"Lighting!AG39","v":0},{"$f":"Lighting!AH39","v":0},{"$f":"Lighting!AI39","v":0}]
[0,{"$f":"Lighting!B40","v":32},{"$f":"Lighting!C40","v":0},{"$f":"Lighting!D40","v":0},{"$f":"Lighting!F40","v":0},{"$f":"Lighting!G40","v":0},{"$f":"Lighting!H40","v":0},{"$f":"Lighting!I40","v":0},{"$f":"Lighting!J40","v":0},{"$f":"Lighting!K40","v":0},{"$f":"Lighting!L40","v":0},{"$f":"Lighting!N40","v":0},{"$f":"Lighting!O40","v":0},{"$f":"Lighting!R40","v":0},{"$f":"Lighting!S40","v":0},{"$f":"Lighting!U40","v":""},{"$f":"Lighting!V40","v":""},{"$f":"Lighting!W40","v":""},{"$f":"Lighting!X40","v":0},{"$f":"Lighting!Y40","v":""},{"$f":"Lighting!AA40","v":""},{"$f":"Lighting!AC40","v":""},{"$f":"Lighting!AF40","v":""},{"$f":"Lighting!AG40","v":0},{"$f":"Lighting!AH40","v":0},{"$f":"Lighting!AI40","v":0}]
[0,{"$f":"Lighting!B41","v":33},{"$f":"Lighting!C41","v":0},{"$f":"Lighting!D41","v":0},{"$f":"Lighting!F41","v":0},{"$f":"Lighting!G41","v":0},{"$f":"Lighting!H41","v":0},{"$f":"Lighting!I41","v":0},{"$f":"Lighting!J41","v":0},{"$f":"Lighting!K41","v":0},{"$f":"Lighting!L41","v":0},{"$f":"Lighting!N41","v":0},{"$f":"Lighting!O41","v":0},{"$f":"Lighting!R41","v":0},{"$f":"Lighting!S41","v":0},{"$f":"Lighting!U41","v":""},{"$f":"Lighting!V41","v":""},{"$f":"Lighting!W41","v":""},{"$f":"Lighting!X41","v":0},{"$f":"Lighting!Y41","v":""},{"$f":"Lighting!AA41","v":""},{"$f":"Lighting!AC41","v":""},{"$f":"Lighting!AF41","v":""},{"$f":"Lighting!AG41","v":0},{"$f":"Lighting!AH41","v":0},{"$f":"Lighting!AI41","v":0}]
[0,{"$f":"Lighting!B42","v":34},{"$f":"Lighting!C42","v":0},{"$f":"Lighting!D42","v":0},{"$f":"Lighting!F42","v":0},{"$f":"Lighting!G42","v":0},{"$f":"Lighting!H42","v":0},{"$f":"Lighting!I42","v":0},{"$f":"Lighting!J42","v":0},{"$f":"Lighting!K42","v":0},{"$f":"Lighting!L42","v":0},{"$f":"Lighting!N42","v":0},{"$f":"Lighting!O42","v":0},{"$f":"Lighting!R42","v":0},{"$f":"Lighting!S42","v":0},{"$f":"Lighting!U42","v":""},{"$f":"Lighting!V42","v":""},{"$f":"Lighting!W42","v":""},{"$f":"Lighting!X42","v":0},{"$f":"Lighting!Y42","v":""},{"$f":"Lighting!AA42","v":""},{"$f":"Lighting!AC42","v":""},{"$f":"Lighting!AF42","v":""},{"$f":"Lighting!AG42","v":0},{"$f":"Lighting!AH42","v":0},{"$f":"Lighting!AI42","v":0}]
[0,{"$f":"Lighting!B43","v":35},{"$f":"Lighting!C43","v":0},{"$f":"Lighting!D43","v":0},{"$f":"Lighting!F43","v":0},{"$f":"Lighting!G43","v":0},{"$f":"Lighting!H43","v":0},{"$f":"Lighting!I43","v":0},{"$f":"Lighting!J43","v":0},{"$f":"Lighting!K43","v":0},{"$f":"Lighting!L43","v":0},{"$f":"Lighting!N43","v":0},{"$f":"Lighting!O43","v":0},{"$f":"Lighting!R43","v":0},{"$f":"Lighting!S43","v":0},{"$f":"Lighting!U43","v":""},{"$f":"Lighting!V43","v":""},{"$f":"Lighting!W43","v":""},{"$f":"Lighting!X43","v":0},{"$f":"Lighting!Y43","v":""},{"$f":"Lighting!AA43","v":""},{"$f":"Lighting!AC43","v":""},{"$f":"Lighting!AF43","v":""},{"$f":"Lighting!AG43","v":0},{"$f":"Lighting!AH43","v":0},{"$f":"Lighting!AI43","v":0}]
[0,{"$f":"Lighting!B44","v":36},{"$f":"Lighting!C44","v":0},{"$f":"Lighting!D44","v":0},{"$f":"Lighting!F44","v":0},{"$f":"Lighting!G44","v":0},{"$f":"Lighting!H44","v":0},{"$f":"Lighting!I44","v":0},{"$f":"Lighting!J44","v":0},{"$f":"Lighting!K44","v":0},{"$f":"Lighting!L44","v":0},{"$f":"Lighting!N44","v":0},{"$f":"Lighting!O44","v":0},{"$f":"Lighting!R44","v":0},{"$f":"Lighting!S44","v":0},{"$f":"Lighting!U44","v":""},{"$f":"Lighting!V44","v":""},{"$f":"Lighting!W44","v":""},{"$f":"Lighting!X44","v":0},{"$f":"Lighting!Y44","v":""},{"$f":"Lighting!AA44","v":""},{"$f":"Lighting!AC44","v":""},{"$f":"Lighting!AF44","v":""},{"$f":"Lighting!AG44","v":0},{"$f":"Lighting!AH44","v":0},{"$f":"Lighting!AI44","v":0}]
[0,{"$f":"Lighting!B45","v":37},{"$f":"Lighting!C45","v":0},{"$f":"Lighting!D45","v":0},{"$f":"Lighting!F45","v":0},{"$f":"Lighting!G45","v":0},{"$f":"Lighting!H45","v":0},{"$f":"Lighting!I45","v":0},{"$f":"Lighting!J45","v":0},{"$f":"Lighting!K45","v":0},{"$f":"Lighting!L45","v":0},{"$f":"Lighting!N45","v":0},{"$f":"Lighting!O45","v":0},{"$f":"Lighting!R45","v":0},{"$f":"Lighting!S45","v":0},{"$f":"Lighting!U45","v":""},{"$f":"Lighting!V45","v":""},{"$f":"Lighting!W45","v":""},{"$f":"Lighting!X45","v":0},{"$f":"Lighting!Y45","v":""},{"$f":"Lighting!AA45","v":""},{"$f":"Lighting!AC45","v":""},{"$f":"Lighting!AF45","v":""},{"$f":"Lighting!AG45","v":0},{"$f":"Lighting!AH45","v":0},{"$f":"Lighting!AI45","v":0}]
[0,{"$f":"Lighting!B46","v":38},{"$f":"Lighting!C46","v":0},{"$f":"Lighting!D46","v":0},{"$f":"Lighting!F46","v":0},{"$f":"Lighting!G46","v":0},{"$f":"Lighting!H46","v":0},{"$f":"Lighting!I46","v":0},{"$f":"Lighting!J46","v":0},{"$f":"Lighting!K46","v":0},{"$f":"Lighting!L46","v":0},{"$f":"Lighting!N46","v":0},{"$f":"Lighting!O46","v":0},{"$f":"Lighting!R46","v":0},{"$f":"Lighting!S46","v":0},{"$f":"Lighting!U46","v":""},{"$f":"Lighting!V46","v":""},{"$f":"Lighting!W46","v":""},{"$f":"Lighting!X46","v":0},{"$f":"Lighting!Y46","v":""},{"$f":"Lighting!AA46","v":""},{"$f":"Lighting!AC46","v":""},{"$f":"Lighting!AF46","v":""},{"$f":"Lighting!AG46","v":0},{"$f":"Lighting!AH46","v":0},{"$f":"Lighting!AI46","v":0}]
[0,{"$f":"Lighting!B47","v":39},{"$f":"Lighting!C47","v":0},{"$f":"Lighting!D47","v":0},{"$f":"Lighting!F47","v":0},{"$f":"Lighting!G47","v":0},{"$f":"Lighting!H47","v":0},{"$f":"Lighting!I47","v":0},{"$f":"Lighting!J47","v":0},{"$f":"Lighting!K47","v":0},{"$f":"Lighting!L47","v":0},{"$f":"Lighting!N47","v":0},{"$f":"Lighting!O47","v":0},{"$f":"Lighting!R47","v":0},{"$f":"Lighting!S47","v":0},{"$f":"Lighting!U47","v":""},{"$f":"Lighting!V47","v":""},{"$f":"Lighting!W47","v":""},{"$f":"Lighting!X47","v":0},{"$f":"Lighting!Y47","v":""},{"$f":"Lighting!AA47","v":""},{"$f":"Lighting!AC47","v":""},{"$f":"Lighting!AF47","v":""},{"$f":"Lighting!AG47","v":0},{"$f":"Lighting!AH47","v":0},{"$f":"Lighting!AI47","v":0}]
[0,{"$f":"Lighting!B48","v":40},{"$f":"Lighting!C48","v":0},{"$f":"Lighting!D48","v":0},{"$f":"Lighting!F48","v":0},{"$f":"Lighting!G48","v":0},{"$f":"Lighting!H48","v":0},{"$f":"Lighting!I48","v":0},{"$f":"Lighting!J48","v":0},{"$f":"Lighting!K48","v":0},{"$f":"Lighting!L48","v":0},{"$f":"Lighting!N48","v":0},{"$f":"Lighting!O48","v":0},{"$f":"Lighting!R48","v":0},{"$f":"Lighting!S48","v":0},{"$f":"Lighting!U48","v":""},{"$f":"Lighting!V48","v":""},{"$f":"Lighting!W48","v":""},{"$f":"Lighting!X48","v":0},{"$f":"Lighting!Y48","v":""},{"$f":"Lighting!AA48","v":""},{"$f":"Lighting!AC48","v":""},{"$f":"Lighting!AF48","v":""},{"$f":"Lighting!AG48","v":0},{"$f":"Lighting!AH48","v":0},{"$f":"Lighting!AI48","v":0}]
[0,{"$f":"Lighting!B49","v":41},{"$f":"Lighting!C49","v":0},{"$f":"Lighting!D49","v":0},{"$f":"Lighting!F49","v":0},{"$f":"Lighting!G49","v":0},{"$f":"Lighting!H49","v":0},{"$f":"Lighting!I49","v":0},{"$f":"Lighting!J49","v":0},{"$f":"Lighting!K49","v":0},{"$f":"Lighting!L49","v":0},{"$f":"Lighting!N49","v":0},{"$f":"Lighting!O49","v":0},{"$f":"Lighting!R49","v":0},{"$f":"Lighting!S49","v":0},{"$f":"Lighting!U49","v":""},{"$f":"Lighting!V49","v":""},{"$f":"Lighting!W49","v":""},{"$f":"Lighting!X49","v":0},{"$f":"Lighting!Y49","v":""},{"$f":"Lighting!AA49","v":""},{"$f":"Lighting!AC49","v":""},{"$f":"Lighting!AF49","v":""},{"$f":"Lighting!AG49","v":0},{"$f":"Lighting!AH49","v":0},{"$f":"Lighting!AI49","v":0}]
[0,{"$f":"Lighting!B50","v":42},{"$f":"Lighting!C50","v":0},{"$f":"Lighting!D50","v":0},{"$f":"Lighting!F50","v":0},{"$f":"Lighting!G50","v":0},{"$f":"Lighting!H50","v":0},{"$f":"Lighting!I50","v":0},{"$f":"Lighting!J50","v":0},{"$f":"Lighting!K50","v":0},{"$f":"Lighting!L50","v":0},{"$f":"Lighting!N50","v":0},{"$f":"Lighting!O50","v":0},{"$f":"Lighting!R50","v":0},{"$f":"Lighting!S50","v":0},{"$f":"Lighting!U50","v":""},{"$f":"Lighting!V50","v":""},{"$f":"Lighting!W50","v":""},{"$f":"Lighting!X50","v":0},{"$f":"Lighting!Y50","v":""},{"$f":"Lighting!AA50","v":""},{"$f":"Lighting!AC50","v":""},{"$f":"Lighting!AF50","v":""},{"$f":"Lighting!AG50","v":0},{"$f":"Lighting!AH50","v":0},{"$f":"Lighting!AI50","v":0}]
[0,{"$f":"Lighting!B51","v":43},{"$f":"Lighting!C51","v":0},{"$f":"Lighting!D51","v":0},{"$f":"Lighting!F51","v":0},{"$f":"Lighting!G51","v":0},{"$f":"Lighting!H51","v":0},{"$f":"Lighting!I51","v":0},{"$f":"Lighting!J51","v":0},{"$f":"Lighting!K51","v":0},{"$f":"Lighting!L51","v":0},{"$f":"Lighting!N51","v":0},{"$f":"Lighting!O51","v":0},{"$f":"Lighting!R51","v":0},{"$f":"Lighting!S51","v":0},{"$f":"Lighting!U51","v":""},{"$f":"Lighting!V51","v":""},{"$f":"Lighting!W51","v":""},{"$f":"Lighting!X51","v":0},{"$f":"Lighting!Y51","v":""},{"$f":"Lighting!AA51","v":""},{"$f":"Lighting!AC51","v":""},{"$f":"Lighting!AF51","v":""},{"$f":"Lighting!AG51","v":0},{"$f":"Lighting!AH51","v":0},{"$f":"Lighting!AI51","v":0}]
[0,{"$f":"Lighting!B52","v":44},{"$f":"Lighting!C52","v":0},{"$f":"Lighting!D52","v":0},{"$f":"Lighting!F52","v":0},{"$f":"Lighting!G52","v":0},{"$f":"Lighting!H52","v":0},{"$f":"Lighting!I52","v":0},{"$f":"Lighting!J52","v":0},{"$f":"Lighting!K52","v":0},{"$f":"Lighting!L52","v":0},{"$f":"Lighting!N52","v":0},{"$f":"Lighting!O52","v":0},{"$f":"Lighting!R52","v":0},{"$f":"Lighting!S52","v":0},{"$f":"Lighting!U52","v":""},{"$f":"Lighting!V52","v":""},{"$f":"Lighting!W52","v":""},{"$f":"Lighting!X52","v":0},{"$f":"Lighting!Y52","v":""},{"$f":"Lighting!AA52","v":""},{"$f":"Lighting!AC52","v":""},{"$f":"Lighting!AF52","v":""},{"$f":"Lighting!AG52","v":0},{"$f":"Lighting!AH52","v":0},{"$f":"Lighting!AI52","v":0}]
[0,{"$f":"Lighting!B53","v":45},{"$f":"Lighting!C53","v":0},{"$f":"Lighting!D53","v":0},{"$f":"Lighting!F53","v":0},{"$f":"Lighting!G53","v":0},{"$f":"Lighting!H53","v":0},{"$f":"Lighting!I53","v":0},{"$f":"Lighting!J53","v":0},{"$f":"Lighting!K53","v":0},{"$f":"Lighting!L53","v":0},{"$f":"Lighting!N53","v":0},{"$f":"Lighting!O53","v":0},{"$f":"Lighting!R53","v":0},{"$f":"Lighting!S53","v":0},{"$f":"Lighting!U53","v":""},{"$f":"Lighting!V53","v":""},{"$f":"Lighting!W53","v":""},{"$f":"Lighting!X53","v":0},{"$f":"Lighting!Y53","v":""},{"$f":"Lighting!AA53","v":""},{"$f":"Lighting!AC53","v":""},{"$f":"Lighting!AF53","v":""},{"$f":"Lighting!AG53","v":0},{"$f":"Lighting!AH53","v":0},{"$f":"Lighting!AI53","v":0}]
[0,{"$f":"Lighting!B54","v":46},{"$f":"Lighting!C54","v":0},{"$f":"Lighting!D54","v":0},{"$f":"Lighting!F54","v":0},{"$f":"Lighting!G54","v":0},{"$f":"Lighting!H54","v":0},{"$f":"Lighting!I54","v":0},{"$f":"Lighting!J54","v":0},{"$f":"Lighting!K54","v":0},{"$f":"Lighting!L54","v":0},{"$f":"Lighting!N54","v":0},{"$f":"Lighting!O54","v":0},{"$f":"Lighting!R54","v":0},{"$f":"Lighting!S54","v":0},{"$f":"Lighting!U54","v":""},{"$f":"Lighting!V54","v":""},{"$f":"Lighting!W54","v":""},{"$f":"Lighting!X54","v":0},{"$f":"Lighting!Y54","v":""},{"$f":"Lighting!AA54","v":""},{"$f":"Lighting!AC54","v":""},{"$f":"Lighting!AF54","v":""},{"$f":"Lighting!AG54","v":0},{"$f":"Lighting!AH54","v":0},{"$f":"Lighting!AI54","v":0}]
[0,{"$f":"Lighting!B55","v":47},{"$f":"Lighting!C55","v":0},{"$f":"Lighting!D55","v":0},{"$f":"Lighting!F55","v":0},{"$f":"Lighting!G55","v":0},{"$f":"Lighting!H55","v":0},{"$f":"Lighting!I55","v":0},{"$f":"Lighting!J55","v":0},{"$f":"Lighting!K55","v":0},{"$f":"Lighting!L55","v":0},{"$f":"Lighting!N55","v":0},{"$f":"Lighting!O55","v":0},{"$f":"Lighting!R55","v":0},{"$f":"Lighting!S55","v":0},{"$f":"Lighting!U55","v":""},{"$f":"Lighting!V55","v":""},{"$f":"Lighting!W55","v":""},{"$f":"Lighting!X55","v":0},{"$f":"Lighting!Y55","v":""},{"$f":"Lighting!AA55","v":""},{"$f":"Lighting!AC55","v":""},{"$f":"Lighting!AF55","v":""},{"$f":"Lighting!AG55","v":0},{"$f":"Lighting!AH55","v":0},{"$f":"Lighting!AI55","v":0}]
[0,{"$f":"Lighting!B56","v":48},{"$f":"Lighting!C56","v":0},{"$f":"Lighting!D56","v":0},{"$f":"Lighting!F56","v":0},{"$f":"Lighting!G56","v":0},{"$f":"Lighting!H56","v":0},{"$f":"Lighting!I56","v":0},{"$f":"Lighting!J56","v":0},{"$f":"Lighting!K56","v":0},{"$f":"Lighting!L56","v":0},{"$f":"Lighting!N56","v":0},{"$f":"Lighting!O56","v":0},{"$f":"Lighting!R56","v":0},{"$f":"Lighting!S56","v":0},{"$f":"Lighting!U56","v":""},{"$f":"Lighting!V56","v":""},{"$f":"Lighting!W56","v":""},{"$f":"Lighting!X56","v":0},{"$f":"Lighting!Y56","v":""},{"$f":"Lighting!AA56","v":""},{"$f":"Lighting!AC56","v":""},{"$f":"Lighting!AF56","v":""},{"$f":"Lighting!AG56","v":0},{"$f":"Lighting!AH56","v":0},{"$f":"Lighting!AI56","v":0}]
[0,{"$f":"Lighting!B57","v":49},{"$f":"Lighting!C57","v":0},{"$f":"Lighting!D57","v":0},{"$f":"Lighting!F57","v":0},{"$f":"Lighting!G57","v":0},{"$f":"Lighting!H57","v":0},{"$f":"Lighting!I57","v":0},{"$f":"Lighting!J57","v":0},{"$f":"Lighting!K57","v":0},{"$f":"Lighting!L57","v":0},{"$f":"Lighting!N57","v":0},{"$f":"Lighting!O57","v":0},{"$f":"Lighting!R57","v":0},{"$f":"Lighting!S57","v":0},{"$f":"Lighting!U57","v":""},{"$f":"Lighting!V57","v":""},{"$f":"Lighting!W57","v":""},{"$f":"Lighting!X57","v":0},{"$f":"Lighting!Y57","v":""},{"$f":"Lighting!AA57","v":""},{"$f":"Lighting!AC57","v":""},{"$f":"Lighting!AF57","v":""},{"$f":"Lighting!AG57","v":0},{"$f":"Lighting!AH57","v":0},{"$f":"Lighting!AI57","v":0}]
[0,{"$f":"Lighting!B58","v":50},{"$f":"Lighting!C58","v":0},{"$f":"Lighting!D58","v":0},{"$f":"Lighting!F58","v":0},{"$f":"Lighting!G58","v":0},{"$f":"Lighting!H58","v":0},{"$f":"Lighting!I58","v":0},{"$f":"Lighting!J58","v":0},{"$f":"Lighting!K58","v":0},{"$f":"Lighting!L58","v":0},{"$f":"Lighting!N58","v":0},{"$f":"Lighting!O58","v":0},{"$f":"Lighting!R58","v":0},{"$f":"Lighting!S58","v":0},{"$f":"Lighting!U58","v":""},{"$f":"Lighting!V58","v":""},{"$f":"Lighting!W58","v":""},{"$f":"Lighting!X58","v":0},{"$f":"Lighting!Y58","v":""},{"$f":"Lighting!AA58","v":""},{"$f":"Lighting!AC58","v":""},{"$f":"Lighting!AF58","v":""},{"$f":"Lighting!AG58","v":0},{"$f":"Lighting!AH58","v":0},{"$f":"Lighting!AI58","v":0}]
[0,{"$f":"Lighting!B59","v":51},{"$f":"Lighting!C59","v":0},{"$f":"Lighting!D59","v":0},{"$f":"Lighting!F59","v":0},{"$f":"Lighting!G59","v":0},{"$f":"Lighting!H59","v":0},{"$f":"Lighting!I59","v":0},{"$f":"Lighting!J59","v":0},{"$f":"Lighting!K59","v":0},{"$f":"Lighting!L59","v":0},{"$f":"Lighting!N59","v":0},{"$f":"Lighting!O59","v":0},{"$f":"Lighting!R59","v":0},{"$f":"Lighting!S59","v":0},{"$f":"Lighting!U59","v":""},{"$f":"Lighting!V59","v":""},{"$f":"Lighting!W59","v":""},{"$f":"Lighting!X59","v":0},{"$f":"Lighting!Y59","v":""},{"$f":"Lighting!AA59","v":""},{"$f":"Lighting!AC59","v":""},{"$f":"Lighting!AF59","v":""},{"$f":"Lighting!AG59","v":0},{"$f":"Lighting!AH59","v":0},{"$f":"Lighting!AI59","v":0}]
[0,{"$f":"Lighting!B60","v":52},{"$f":"Lighting!C60","v":0},{"$f":"Lighting!D60","v":0},{"$f":"Lighting!F60","v":0},{"$f":"Lighting!G60","v":0},{"$f":"Lighting!H60","v":0},{"$f":"Lighting!I60","v":0},{"$f":"Lighting!J60","v":0},{"$f":"Lighting!K60","v":0},{"$f":"Lighting!L60","v":0},{"$f":"Lighting!N60","v":0},{"$f":"Lighting!O60","v":0},{"$f":"Lighting!R60","v":0},{"$f":"Lighting!S60","v":0},{"$f":"Lighting!U60","v":""},{"$f":"Lighting!V60","v":""},{"$f":"Lighting!W60","v":""},{"$f":"Lighting!X60","v":0},{"$f":"Lighting!Y60","v":""},{"$f":"Lighting!AA60","v":""},{"$f":"Lighting!AC60","v":""},{"$f":"Lighting!AF60","v":""},{"$f":"Lighting!AG60","v":0},{"$f":"Lighting!AH60","v":0},{"$f":"Lighting!AI60","v":0}]
[0,{"$f":"Lighting!B61","v":53},{"$f":"Lighting!C61","v":0},{"$f":"Lighting!D61","v":0},{"$f":"Lighting!F61","v":0},{"$f":"Lighting!G61","v":0},{"$f":"Lighting!H61","v":0},{"$f":"Lighting!I61","v":0},{"$f":"Lighting!J61","v":0},{"$f":"Lighting!K61","v":0},{"$f":"Lighting!L61","v":0},{"$f":"Lighting!N61","v":0},{"$f":"Lighting!O61","v":0},{"$f":"Lighting!R61","v":0},{"$f":"Lighting!S61","v":0},{"$f":"Lighting!U61","v":""},{"$f":"Lighting!V61","v":""},{"$f":"Lighting!W61","v":""},{"$f":"Lighting!X61","v":0},{"$f":"Lighting!Y61","v":""},{"$f":"Lighting!AA61","v":""},{"$f":"Lighting!AC61","v":""},{"$f":"Lighting!AF61","v":""},{"$f":"Lighting!AG61","v":0},{"$f":"Lighting!AH61","v":0},{"$f":"Lighting!AI61","v":0}]
[0,{"$f":"Lighting!B62","v":54},{"$f":"Lighting!C62","v":0},{"$f":"Lighting!D62","v":0},{"$f":"Lighting!F62","v":0},{"$f":"Lighting!G62","v":0},{"$f":"Lighting!H62","v":0},{"$f":"Lighting!I62","v":0},{"$f":"Lighting!J62","v":0},{"$f":"Lighting!K62","v":0},{"$f":"Lighting!L62","v":0},{"$f":"Lighting!N62","v":0},{"$f":"Lighting!O62","v":0},{"$f":"Lighting!R62","v":0},{"$f":"Lighting!S62","v":0},{"$f":"Lighting!U62","v":""},{"$f":"Lighting!V62","v":""},{"$f":"Lighting!W62","v":""},{"$f":"Lighting!X62","v":0},{"$f":"Lighting!Y62","v":""},{"$f":"Lighting!AA62","v":""},{"$f":"Lighting!AC62","v":""},{"$f":"Lighting!AF62","v":""},{"$f":"Lighting!AG62","v":0},{"$f":"Lighting!AH62","v":0},{"$f":"Lighting!AI62","v":0}]
[0,{"$f":"Lighting!B63","v":55},{"$f":"Lighting!C63","v":0},{"$f":"Lighting!D63","v":0},{"$f":"Lighting!F63","v":0},{"$f":"Lighting!G63","v":0},{"$f":"Lighting!H63","v":0},{"$f":"Lighting!I63","v":0},{"$f":"Lighting!J63","v":0},{"$f":"Lighting!K63","v":0},{"$f":"Lighting!L63","v":0},{"$f":"Lighting!N63","v":0},{"$f":"Lighting!O63","v":0},{"$f":"Lighting!R63","v":0},{"$f":"Lighting!S63","v":0},{"$f":"Lighting!U63","v":""},{"$f":"Lighting!V63","v":""},{"$f":"Lighting!W63","v":""},{"$f":"Lighting!X63","v":0},{"$f":"Lighting!Y63","v":""},{"$f":"Lighting!AA63","v":""},{"$f":"Lighting!AC63","v":""},{"$f":"Lighting!AF63","v":""},{"$f":"Lighting!AG63","v":0},{"$f":"Lighting!AH63","v":0},{"$f":"Lighting!AI63","v":0}]
[0,{"$f":"Lighting!B64","v":56},{"$f":"Lighting!C64","v":0},{"$f":"Lighting!D64","v":0},{"$f":"Lighting!F64","v":0},{"$f":"Lighting!G64","v":0},{"$f":"Lighting!H64","v":0},{"$f":"Lighting!I64","v":0},{"$f":"Lighting!J64","v":0},{"$f":"Lighting!K64","v":0},{"$f":"Lighting!L64","v":0},{"$f":"Lighting!N64","v":0},{"$f":"Lighting!O64","v":0},{"$f":"Lighting!R64","v":0},{"$f":"Lighting!S64","v":0},{"$f":"Lighting!U64","v":""},{"$f":"Lighting!V64","v":""},{"$f":"Lighting!W64","v":""},{"$f":"Lighting!X64","v":0},{"$f":"Lighting!Y64","v":""},{"$f":"Lighting!AA64","v":""},{"$f":"Lighting!AC64","v":""},{"$f":"Lighting!AF64","v":""},{"$f":"Lighting!AG64","v":0},{"$f":"Lighting!AH64","v":0},{"$f":"Lighting!AI64","v":0}]
[0,{"$f":"Lighting!B65","v":57},{"$f":"Lighting!C65","v":0},{"$f":"Lighting!D65","v":0},{"$f":"Lighting!F65","v":0},{"$f":"Lighting!G65","v":0},{"$f":"Lighting!H65","v":0},{"$f":"Lighting!I65","v":0},{"$f":"Lighting!J65","v":0},{"$f":"Lighting!K65","v":0},{"$f":"Lighting!L65","v":0},{"$f":"Lighting!N65","v":0},{"$f":"Lighting!O65","v":0},{"$f":"Lighting!R65","v":0},{"$f":"Lighting!S65","v":0},{"$f":"Lighting!U65","v":""},{"$f":"Lighting!V65","v":""},{"$f":"Lighting!W65","v":""},{"$f":"Lighting!X65","v":0},{"$f":"Lighting!Y65","v":""},{"$f":"Lighting!AA65","v":""},{"$f":"Lighting!AC65","v":""},{"$f":"Lighting!AF65","v":""},{"$f":"Lighting!AG65","v":0},{"$f":"Lighting!AH65","v":0},{"$f":"Lighting!AI65","v":0}]
[0,{"$f":"Lighting!B66","v":58},{"$f":"Lighting!C66","v":0},{"$f":"Lighting!D66","v":0},{"$f":"Lighting!F66","v":0},{"$f":"Lighting!G66","v":0},{"$f":"Lighting!H66","v":0},{"$f":"Lighting!I66","v":0},{"$f":"Lighting!J66","v":0},{"$f":"Lighting!K66","v":0},{"$f":"Lighting!L66","v":0},{"$f":"Lighting!N66","v":0},{"$f":"Lighting!O66","v":0},{"$f":"Lighting!R66","v":0},{"$f":"Lighting!S66","v":0},{"$f":"Lighting!U66","v":""},{"$f":"Lighting!V66","v":""},{"$f":"Lighting!W66","v":""},{"$f":"Lighting!X66","v":0},{"$f":"Lighting!Y66","v":""},{"$f":"Lighting!AA66","v":""},{"$f":"Lighting!AC66","v":""},{"$f":"Lighting!AF66","v":""},{"$f":"Lighting!AG66","v":0},{"$f":"Lighting!AH66","v":0},{"$f":"Lighting!AI66","v":0}]
[0,{"$f":"Lighting!B67","v":59},{"$f":"Lighting!C67","v":0},{"$f":"Lighting!D67","v":0},{"$f":"Lighting!F67","v":0},{"$f":"Lighting!G67","v":0},{"$f":"Lighting!H67","v":0},{"$f":"Lighting!I67","v":0},{"$f":"Lighting!J67","v":0},{"$f":"Lighting!K67","v":0},{"$f":"Lighting!L67","v":0},{"$f":"Lighting!N67","v":0},{"$f":"Lighting!O67","v":0},{"$f":"Lighting!R67","v":0},{"$f":"Lighting!S67","v":0},{"$f":"Lighting!U67","v":""},{"$f":"Lighting!V67","v":""},{"$f":"Lighting!W67","v":""},{"$f":"Lighting!X67","v":0},{"$f":"Lighting!Y67","v":""},{"$f":"Lighting!AA67","v":""},{"$f":"Lighting!AC67","v":""},{"$f":"Lighting!AF67","v":""},{"$f":"Lighting!AG67","v":0},{"$f":"Lighting!AH67","v":0},{"$f":"Lighting!AI67","v":0}]
[0,{"$f":"Lighting!B68","v":60},{"$f":"Lighting!C68","v":0},{"$f":"Lighting!D68","v":0},{"$f":"Lighting!F68","v":0},{"$f":"Lighting!G68","v":0},{"$f":"Lighting!H68","v":0},{"$f":"Lighting!I68","v":0},{"$f":"Lighting!J68","v":0},{"$f":"Lighting!K68","v":0},{"$f":"Lighting!L68","v":0},{"$f":"Lighting!N68","v":0},{"$f":"Lighting!O68","v":0},{"$f":"Lighting!R68","v":0},{"$f":"Lighting!S68","v":0},{"$f":"Lighting!U68","v":""},{"$f":"Lighting!V68","v":""},{"$f":"Lighting!W68","v":""},{"$f":"Lighting!X68","v":0},{"$f":"Lighting!Y68","v":""},{"$f":"Lighting!AA68","v":""},{"$f":"Lighting!AC68","v":""},{"$f":"Lighting!AF68","v":""},{"$f":"Lighting!AG68","v":0},{"$f":"Lighting!AH68","v":0},{"$f":"Lighting!AI68","v":0}]
[0,{"$f":"Lighting!B69","v":61},{"$f":"Lighting!C69","v":0},{"$f":"Lighting!D69","v":0},{"$f":"Lighting!F69","v":0},{"$f":"Lighting!G69","v":0},{"$f":"Lighting!H69","v":0},{"$f":"Lighting!I69","v":0},{"$f":"Lighting!J69","v":0},{"$f":"Lighting!K69","v":0},{"$f":"Lighting!L69","v":0},{"$f":"Lighting!N69","v":0},{"$f":"Lighting!O69","v":0},{"$f":"Lighting!R69","v":0},{"$f":"Lighting!S69","v":0},{"$f":"Lighting!U69","v":""},{"$f":"Lighting!V69","v":""},{"$f":"Lighting!W69","v":""},{"$f":"Lighting!X69","v":0},{"$f":"Lighting!Y69","v":""},{"$f":"Lighting!AA69","v":""},{"$f":"Lighting!AC69","v":""},{"$f":"Lighting!AF69","v":""},{"$f":"Lighting!AG69","v":0},{"$f":"Lighting!AH69","v":0},{"$f":"Lighting!AI69","v":0}]
[0,{"$f":"Lighting!B70","v":62},{"$f":"Lighting!C70","v":0},{"$f":"Lighting!D70","v":0},{"$f":"Lighting!F70","v":0},{"$f":"Lighting!G70","v":0},{"$f":"Lighting!H70","v":0},{"$f":"Lighting!I70","v":0},{"$f":"Lighting!J70","v":0},{"$f":"Lighting!K70","v":0},{"$f":"Lighting!L70","v":0},{"$f":"Lighting!N70","v":0},{"$f":"Lighting!O70","v":0},{"$f":"Lighting!R70","v":0},{"$f":"Lighting!S70","v":0},{"$f":"Lighting!U70","v":""},{"$f":"Lighting!V70","v":""},{"$f":"Lighting!W70","v":""},{"$f":"Lighting!X70","v":0},{"$f":"Lighting!Y70","v":""},{"$f":"Lighting!AA70","v":""},{"$f":"Lighting!AC70","v":""},{"$f":"Lighting!AF70","v":""},{"$f":"Lighting!AG70","v":0},{"$f":"Lighting!AH70","v":0},{"$f":"Lighting!AI70","v":0}]
[0,{"$f":"Lighting!B71","v":63},{"$f":"Lighting!C71","v":0},{"$f":"Lighting!D71","v":0},{"$f":"Lighting!F71","v":0},{"$f":"Lighting!G71","v":0},{"$f":"Lighting!H71","v":0},{"$f":"Lighting!I71","v":0},{"$f":"Lighting!J71","v":0},{"$f":"Lighting!K71","v":0},{"$f":"Lighting!L71","v":0},{"$f":"Lighting!N71","v":0},{"$f":"Lighting!O71","v":0},{"$f":"Lighting!R71","v":0},{"$f":"Lighting!S71","v":0},{"$f":"Lighting!U71","v":""},{"$f":"Lighting!V71","v":""},{"$f":"Lighting!W71","v":""},{"$f":"Lighting!X71","v":0},{"$f":"Lighting!Y71","v":""},{"$f":"Lighting!AA71","v":""},{"$f":"Lighting!AC71","v":""},{"$f":"Lighting!AF71","v":""},{"$f":"Lighting!AG71","v":0},{"$f":"Lighting!AH71","v":0},{"$f":"Lighting!AI71","v":0}]
[0,{"$f":"Lighting!B72","v":64},{"$f":"Lighting!C72","v":0},{"$f":"Lighting!D72","v":0},{"$f":"Lighting!F72","v":0},{"$f":"Lighting!G72","v":0},{"$f":"Lighting!H72","v":0},{"$f":"Lighting!I72","v":0},{"$f":"Lighting!J72","v":0},{"$f":"Lighting!K72","v":0},{"$f":"Lighting!L72","v":0},{"$f":"Lighting!N72","v":0},{"$f":"Lighting!O72","v":0},{"$f":"Lighting!R72","v":0},{"$f":"Lighting!S72","v":0},{"$f":"Lighting!U72","v":""},{"$f":"Lighting!V72","v":""},{"$f":"Lighting!W72","v":""},{"$f":"Lighting!X72","v":0},{"$f":"Lighting!Y72","v":""},{"$f":"Lighting!AA72","v":""},{"$f":"Lighting!AC72","v":""},{"$f":"Lighting!AF72","v":""},{"$f":"Lighting!AG72","v":0},{"$f":"Lighting!AH72","v":0},{"$f":"Lighting!AI72","v":0}]
[0,{"$f":"Lighting!B73","v":65},{"$f":"Lighting!C73","v":0},{"$f":"Lighting!D73","v":0},{"$f":"Lighting!F73","v":0},{"$f":"Lighting!G73","v":0},{"$f":"Lighting!H73","v":0},{"$f":"Lighting!I73","v":0},{"$f":"Lighting!J73","v":0},{"$f":"Lighting!K73","v":0},{"$f":"Lighting!L73","v":0},{"$f":"Lighting!N73","v":0},{"$f":"Lighting!O73","v":0},{"$f":"Lighting!R73","v":0},{"$f":"Lighting!S73","v":0},{"$f":"Lighting!U73","v":""},{"$f":"Lighting!V73","v":""},{"$f":"Lighting!W73","v":""},{"$f":"Lighting!X73","v":0},{"$f":"Lighting!Y73","v":""},{"$f":"Lighting!AA73","v":""},{"$f":"Lighting!AC73","v":""},{"$f":"Lighting!AF73","v":""},{"$f":"Lighting!AG73","v":0},{"$f":"Lighting!AH73","v":0},{"$f":"Lighting!AI73","v":0}]
[{"$f":"IF(G230=0,0,1)","v":0},{"$f":"Lighting!B74","v":66},{"$f":"Lighting!C74","v":0},{"$f":"Lighting!D74","v":0},{"$f":"Lighting!F74","v":0},{"$f":"Lighting!G74","v":0},{"$f":"Lighting!H74","v":0},{"$f":"Lighting!I74","v":0},{"$f":"Lighting!J74","v":0},{"$f":"Lighting!K74","v":0},{"$f":"Lighting!L74","v":0},{"$f":"Lighting!N74","v":0},{"$f":"Lighting!O74","v":0},{"$f":"Lighting!R74","v":0},{"$f":"Lighting!S74","v":0},{"$f":"Lighting!U74","v":""},{"$f":"Lighting!V74","v":""},{"$f":"Lighting!W74","v":""},{"$f":"Lighting!X74","v":0},{"$f":"Lighting!Y74","v":""},{"$f":"Lighting!AA74","v":""},{"$f":"Lighting!AC74","v":""},{"$f":"Lighting!AF74","v":""},{"$f":"Lighting!AG74","v":0},{"$f":"Lighting!AH74","v":0},{"$f":"Lighting!AI74","v":0}]
[0,{"$f":"Lighting!B75","v":67},{"$f":"Lighting!C75","v":0},{"$f":"Lighting!D75","v":0},{"$f":"Lighting!F75","v":0},{"$f":"Lighting!G75","v":0},{"$f":"Lighting!H75","v":0},{"$f":"Lighting!I75","v":0},{"$f":"Lighting!J75","v":0},{"$f":"Lighting!K75","v":0},{"$f":"Lighting!L75","v":0},{"$f":"Lighting!N75","v":0},{"$f":"Lighting!O75","v":0},{"$f":"Lighting!R75","v":0},{"$f":"Lighting!S75","v":0},{"$f":"Lighting!U75","v":""},{"$f":"Lighting!V75","v":""},{"$f":"Lighting!W75","v":""},{"$f":"Lighting!X75","v":0},{"$f":"Lighting!Y75","v":""},{"$f":"Lighting!AA75","v":""},{"$f":"Lighting!AC75","v":""},{"$f":"Lighting!AF75","v":""},{"$f":"Lighting!AG75","v":0},{"$f":"Lighting!AH75","v":0},{"$f":"Lighting!AI75","v":0}]
[0,{"$f":"Lighting!B76","v":68},{"$f":"Lighting!C76","v":0},{"$f":"Lighting!D76","v":0},{"$f":"Lighting!F76","v":0},{"$f":"Lighting!G76","v":0},{"$f":"Lighting!H76","v":0},{"$f":"Lighting!I76","v":0},{"$f":"Lighting!J76","v":0},{"$f":"Lighting!K76","v":0},{"$f":"Lighting!L76","v":0},{"$f":"Lighting!N76","v":0},{"$f":"Lighting!O76","v":0},{"$f":"Lighting!R76","v":0},{"$f":"Lighting!S76","v":0},{"$f":"Lighting!U76","v":""},{"$f":"Lighting!V76","v":""},{"$f":"Lighting!W76","v":""},{"$f":"Lighting!X76","v":0},{"$f":"Lighting!Y76","v":""},{"$f":"Lighting!AA76","v":""},{"$f":"Lighting!AC76","v":""},{"$f":"Lighting!AF76","v":""},{"$f":"Lighting!AG76","v":0},{"$f":"Lighting!AH76","v":0},{"$f":"Lighting!AI76","v":0}]
[0,{"$f":"Lighting!B77","v":69},{"$f":"Lighting!C77","v":0},{"$f":"Lighting!D77","v":0},{"$f":"Lighting!F77","v":0},{"$f":"Lighting!G77","v":0},{"$f":"Lighting!H77","v":0},{"$f":"Lighting!I77","v":0},{"$f":"Lighting!J77","v":0},{"$f":"Lighting!K77","v":0},{"$f":"Lighting!L77","v":0},{"$f":"Lighting!N77","v":0},{"$f":"Lighting!O77","v":0},{"$f":"Lighting!R77","v":0},{"$f":"Lighting!S77","v":0},{"$f":"Lighting!U77","v":""},{"$f":"Lighting!V77","v":""},{"$f":"Lighting!W77","v":""},{"$f":"Lighting!X77","v":0},{"$f":"Lighting!Y77","v":""},{"$f":"Lighting!AA77","v":""},{"$f":"Lighting!AC77","v":""},{"$f":"Lighting!AF77","v":""},{"$f":"Lighting!AG77","v":0},{"$f":"Lighting!AH77","v":0},{"$f":"Lighting!AI77","v":0}]
[0,{"$f":"Lighting!B78","v":70},{"$f":"Lighting!C78","v":0},{"$f":"Lighting!D78","v":0},{"$f":"Lighting!F78","v":0},{"$f":"Lighting!G78","v":0},{"$f":"Lighting!H78","v":0},{"$f":"Lighting!I78","v":0},{"$f":"Lighting!J78","v":0},{"$f":"Lighting!K78","v":0},{"$f":"Lighting!L78","v":0},{"$f":"Lighting!N78","v":0},{"$f":"Lighting!O78","v":0},{"$f":"Lighting!R78","v":0},{"$f":"Lighting!S78","v":0},{"$f":"Lighting!U78","v":""},{"$f":"Lighting!V78","v":""},{"$f":"Lighting!W78","v":""},{"$f":"Lighting!X78","v":0},{"$f":"Lighting!Y78","v":""},{"$f":"Lighting!AA78","v":""},{"$f":"Lighting!AC78","v":""},{"$f":"Lighting!AF78","v":""},{"$f":"Lighting!AG78","v":0},{"$f":"Lighting!AH78","v":0},{"$f":"Lighting!AI78","v":0}]
[0,{"$f":"Lighting!B79","v":71},{"$f":"Lighting!C79","v":0},{"$f":"Lighting!D79","v":0},{"$f":"Lighting!F79","v":0},{"$f":"Lighting!G79","v":0},{"$f":"Lighting!H79","v":0},{"$f":"Lighting!I79","v":0},{"$f":"Lighting!J79","v":0},{"$f":"Lighting!K79","v":0},{"$f":"Lighting!L79","v":0},{"$f":"Lighting!N79","v":0},{"$f":"Lighting!O79","v":0},{"$f":"Lighting!R79","v":0},{"$f":"Lighting!S79","v":0},{"$f":"Lighting!U79","v":""},{"$f":"Lighting!V79","v":""},{"$f":"Lighting!W79","v":""},{"$f":"Lighting!X79","v":0},{"$f":"Lighting!Y79","v":""},{"$f":"Lighting!AA79","v":""},{"$f":"Lighting!AC79","v":""},{"$f":"Lighting!AF79","v":""},{"$f":"Lighting!AG79","v":0},{"$f":"Lighting!AH79","v":0},{"$f":"Lighting!AI79","v":0}]
[0,{"$f":"Lighting!B80","v":72},{"$f":"Lighting!C80","v":0},{"$f":"Lighting!D80","v":0},{"$f":"Lighting!F80","v":0},{"$f":"Lighting!G80","v":0},{"$f":"Lighting!H80","v":0},{"$f":"Lighting!I80","v":0},{"$f":"Lighting!J80","v":0},{"$f":"Lighting!K80","v":0},{"$f":"Lighting!L80","v":0},{"$f":"Lighting!N80","v":0},{"$f":"Lighting!O80","v":0},{"$f":"Lighting!R80","v":0},{"$f":"Lighting!S80","v":0},{"$f":"Lighting!U80","v":""},{"$f":"Lighting!V80","v":""},{"$f":"Lighting!W80","v":""},{"$f":"Lighting!X80","v":0},{"$f":"Lighting!Y80","v":""},{"$f":"Lighting!AA80","v":""},{"$f":"Lighting!AC80","v":""},{"$f":"Lighting!AF80","v":""},{"$f":"Lighting!AG80","v":0},{"$f":"Lighting!AH80","v":0},{"$f":"Lighting!AI80","v":0}]
[0,{"$f":"Lighting!B81","v":73},{"$f":"Lighting!C81","v":0},{"$f":"Lighting!D81","v":0},{"$f":"Lighting!F81","v":0},{"$f":"Lighting!G81","v":0},{"$f":"Lighting!H81","v":0},{"$f":"Lighting!I81","v":0},{"$f":"Lighting!J81","v":0},{"$f":"Lighting!K81","v":0},{"$f":"Lighting!L81","v":0},{"$f":"Lighting!N81","v":0},{"$f":"Lighting!O81","v":0},{"$f":"Lighting!R81","v":0},{"$f":"Lighting!S81","v":0},{"$f":"Lighting!U81","v":""},{"$f":"Lighting!V81","v":""},{"$f":"Lighting!W81","v":""},{"$f":"Lighting!X81","v":0},{"$f":"Lighting!Y81","v":""},{"$f":"Lighting!AA81","v":""},{"$f":"Lighting!AC81","v":""},{"$f":"Lighting!AF81","v":""},{"$f":"Lighting!AG81","v":0},{"$f":"Lighting!AH81","v":0},{"$f":"Lighting!AI81","v":0}]
[0,{"$f":"Lighting!B82","v":74},{"$f":"Lighting!C82","v":0},{"$f":"Lighting!D82","v":0},{"$f":"Lighting!F82","v":0},{"$f":"Lighting!G82","v":0},{"$f":"Lighting!H82","v":0},{"$f":"Lighting!I82","v":0},{"$f":"Lighting!J82","v":0},{"$f":"Lighting!K82","v":0},{"$f":"Lighting!L82","v":0},{"$f":"Lighting!N82","v":0},{"$f":"Lighting!O82","v":0},{"$f":"Lighting!R82","v":0},{"$f":"Lighting!S82","v":0},{"$f":"Lighting!U82","v":""},{"$f":"Lighting!V82","v":""},{"$f":"Lighting!W82","v":""},{"$f":"Lighting!X82","v":0},{"$f":"Lighting!Y82","v":""},{"$f":"Lighting!AA82","v":""},{"$f":"Lighting!AC82","v":""},{"$f":"Lighting!AF82","v":""},{"$f":"Lighting!AG82","v":0},{"$f":"Lighting!AH82","v":0},{"$f":"Lighting!AI82","v":0}]
[0,{"$f":"Lighting!B83","v":75},{"$f":"Lighting!C83","v":0},{"$f":"Lighting!D83","v":0},{"$f":"Lighting!F83","v":0},{"$f":"Lighting!G83","v":0},{"$f":"Lighting!H83","v":0},{"$f":"Lighting!I83","v":0},{"$f":"Lighting!J83","v":0},{"$f":"Lighting!K83","v":0},{"$f":"Lighting!L83","v":0},{"$f":"Lighting!N83","v":0},{"$f":"Lighting!O83","v":0},{"$f":"Lighting!R83","v":0},{"$f":"Lighting!S83","v":0},{"$f":"Lighting!U83","v":""},{"$f":"Lighting!V83","v":""},{"$f":"Lighting!W83","v":""},{"$f":"Lighting!X83","v":0},{"$f":"Lighting!Y83","v":""},{"$f":"Lighting!AA83","v":""},{"$f":"Lighting!AC83","v":""},{"$f":"Lighting!AF83","v":""},{"$f":"Lighting!AG83","v":0},{"$f":"Lighting!AH83","v":0},{"$f":"Lighting!AI83","v":0}]
[0,{"$f":"Lighting!B84","v":76},{"$f":"Lighting!C84","v":0},{"$f":"Lighting!D84","v":0},{"$f":"Lighting!F84","v":0},{"$f":"Lighting!G84","v":0},{"$f":"Lighting!H84","v":0},{"$f":"Lighting!I84","v":0},{"$f":"Lighting!J84","v":0},{"$f":"Lighting!K84","v":0},{"$f":"Lighting!L84","v":0},{"$f":"Lighting!N84","v":0},{"$f":"Lighting!O84","v":0},{"$f":"Lighting!R84","v":0},{"$f":"Lighting!S84","v":0},{"$f":"Lighting!U84","v":""},{"$f":"Lighting!V84","v":""},{"$f":"Lighting!W84","v":""},{"$f":"Lighting!X84","v":0},{"$f":"Lighting!Y84","v":""},{"$f":"Lighting!AA84","v":""},{"$f":"Lighting!AC84","v":""},{"$f":"Lighting!AF84","v":""},{"$f":"Lighting!AG84","v":0},{"$f":"Lighting!AH84","v":0},{"$f":"Lighting!AI84","v":0}]
[0,{"$f":"Lighting!B85","v":77},{"$f":"Lighting!C85","v":0},{"$f":"Lighting!D85","v":0},{"$f":"Lighting!F85","v":0},{"$f":"Lighting!G85","v":0},{"$f":"Lighting!H85","v":0},{"$f":"Lighting!I85","v":0},{"$f":"Lighting!J85","v":0},{"$f":"Lighting!K85","v":0},{"$f":"Lighting!L85","v":0},{"$f":"Lighting!N85","v":0},{"$f":"Lighting!O85","v":0},{"$f":"Lighting!R85","v":0},{"$f":"Lighting!S85","v":0},{"$f":"Lighting!U85","v":""},{"$f":"Lighting!V85","v":""},{"$f":"Lighting!W85","v":""},{"$f":"Lighting!X85","v":0},{"$f":"Lighting!Y85","v":""},{"$f":"Lighting!AA85","v":""},{"$f":"Lighting!AC85","v":""},{"$f":"Lighting!AF85","v":""},{"$f":"Lighting!AG85","v":0},{"$f":"Lighting!AH85","v":0},{"$f":"Lighting!AI85","v":0}]
[0,{"$f":"Lighting!B86","v":78},{"$f":"Lighting!C86","v":0},{"$f":"Lighting!D86","v":0},{"$f":"Lighting!F86","v":0},{"$f":"Lighting!G86","v":0},{"$f":"Lighting!H86","v":0},{"$f":"Lighting!I86","v":0},{"$f":"Lighting!J86","v":0},{"$f":"Lighting!K86","v":0},{"$f":"Lighting!L86","v":0},{"$f":"Lighting!N86","v":0},{"$f":"Lighting!O86","v":0},{"$f":"Lighting!R86","v":0},{"$f":"Lighting!S86","v":0},{"$f":"Lighting!U86","v":""},{"$f":"Lighting!V86","v":""},{"$f":"Lighting!W86","v":""},{"$f":"Lighting!X86","v":0},{"$f":"Lighting!Y86","v":""},{"$f":"Lighting!AA86","v":""},{"$f":"Lighting!AC86","v":""},{"$f":"Lighting!AF86","v":""},{"$f":"Lighting!AG86","v":0},{"$f":"Lighting!AH86","v":0},{"$f":"Lighting!AI86","v":0}]
[0,{"$f":"Lighting!B87","v":79},{"$f":"Lighting!C87","v":0},{"$f":"Lighting!D87","v":0},{"$f":"Lighting!F87","v":0},{"$f":"Lighting!G87","v":0},{"$f":"Lighting!H87","v":0},{"$f":"Lighting!I87","v":0},{"$f":"Lighting!J87","v":0},{"$f":"Lighting!K87","v":0},{"$f":"Lighting!L87","v":0},{"$f":"Lighting!N87","v":0},{"$f":"Lighting!O87","v":0},{"$f":"Lighting!R87","v":0},{"$f":"Lighting!S87","v":0},{"$f":"Lighting!U87","v":""},{"$f":"Lighting!V87","v":""},{"$f":"Lighting!W87","v":""},{"$f":"Lighting!X87","v":0},{"$f":"Lighting!Y87","v":""},{"$f":"Lighting!AA87","v":""},{"$f":"Lighting!AC87","v":""},{"$f":"Lighting!AF87","v":""},{"$f":"Lighting!AG87","v":0},{"$f":"Lighting!AH87","v":0},{"$f":"Lighting!AI87","v":0}]
[0,{"$f":"Lighting!B88","v":80},{"$f":"Lighting!C88","v":0},{"$f":"Lighting!D88","v":0},{"$f":"Lighting!F88","v":0},{"$f":"Lighting!G88","v":0},{"$f":"Lighting!H88","v":0},{"$f":"Lighting!I88","v":0},{"$f":"Lighting!J88","v":0},{"$f":"Lighting!K88","v":0},{"$f":"Lighting!L88","v":0},{"$f":"Lighting!N88","v":0},{"$f":"Lighting!O88","v":0},{"$f":"Lighting!R88","v":0},{"$f":"Lighting!S88","v":0},{"$f":"Lighting!U88","v":""},{"$f":"Lighting!V88","v":""},{"$f":"Lighting!W88","v":""},{"$f":"Lighting!X88","v":0},{"$f":"Lighting!Y88","v":""},{"$f":"Lighting!AA88","v":""},{"$f":"Lighting!AC88","v":""},{"$f":"Lighting!AF88","v":""},{"$f":"Lighting!AG88","v":0},{"$f":"Lighting!AH88","v":0},{"$f":"Lighting!AI88","v":0}]
[0,{"$f":"Lighting!B89","v":81},{"$f":"Lighting!C89","v":0},{"$f":"Lighting!D89","v":0},{"$f":"Lighting!F89","v":0},{"$f":"Lighting!G89","v":0},{"$f":"Lighting!H89","v":0},{"$f":"Lighting!I89","v":0},{"$f":"Lighting!J89","v":0},{"$f":"Lighting!K89","v":0},{"$f":"Lighting!L89","v":0},{"$f":"Lighting!N89","v":0},{"$f":"Lighting!O89","v":0},{"$f":"Lighting!R89","v":0},{"$f":"Lighting!S89","v":0},{"$f":"Lighting!U89","v":""},{"$f":"Lighting!V89","v":""},{"$f":"Lighting!W89","v":""},{"$f":"Lighting!X89","v":0},{"$f":"Lighting!Y89","v":""},{"$f":"Lighting!AA89","v":""},{"$f":"Lighting!AC89","v":""},{"$f":"Lighting!AF89","v":""},{"$f":"Lighting!AG89","v":0},{"$f":"Lighting!AH89","v":0},{"$f":"Lighting!AI89","v":0}]
[0,{"$f":"Lighting!B90","v":82},{"$f":"Lighting!C90","v":0},{"$f":"Lighting!D90","v":0},{"$f":"Lighting!F90","v":0},{"$f":"Lighting!G90","v":0},{"$f":"Lighting!H90","v":0},{"$f":"Lighting!I90","v":0},{"$f":"Lighting!J90","v":0},{"$f":"Lighting!K90","v":0},{"$f":"Lighting!L90","v":0},{"$f":"Lighting!N90","v":0},{"$f":"Lighting!O90","v":0},{"$f":"Lighting!R90","v":0},{"$f":"Lighting!S90","v":0},{"$f":"Lighting!U90","v":""},{"$f":"Lighting!V90","v":""},{"$f":"Lighting!W90","v":""},{"$f":"Lighting!X90","v":0},{"$f":"Lighting!Y90","v":""},{"$f":"Lighting!AA90","v":""},{"$f":"Lighting!AC90","v":""},{"$f":"Lighting!AF90","v":""},{"$f":"Lighting!AG90","v":0},{"$f":"Lighting!AH90","v":0},{"$f":"Lighting!AI90","v":0}]
[0,{"$f":"Lighting!B91","v":83},{"$f":"Lighting!C91","v":0},{"$f":"Lighting!D91","v":0},{"$f":"Lighting!F91","v":0},{"$f":"Lighting!G91","v":0},{"$f":"Lighting!H91","v":0},{"$f":"Lighting!I91","v":0},{"$f":"Lighting!J91","v":0},{"$f":"Lighting!K91","v":0},{"$f":"Lighting!L91","v":0},{"$f":"Lighting!N91","v":0},{"$f":"Lighting!O91","v":0},{"$f":"Lighting!R91","v":0},{"$f":"Lighting!S91","v":0},{"$f":"Lighting!U91","v":""},{"$f":"Lighting!V91","v":""},{"$f":"Lighting!W91","v":""},{"$f":"Lighting!X91","v":0},{"$f":"Lighting!Y91","v":""},{"$f":"Lighting!AA91","v":""},{"$f":"Lighting!AC91","v":""},{"$f":"Lighting!AF91","v":""},{"$f":"Lighting!AG91","v":0},{"$f":"Lighting!AH91","v":0},{"$f":"Lighting!AI91","v":0}]
[0,{"$f":"Lighting!B92","v":84},{"$f":"Lighting!C92","v":0},{"$f":"Lighting!D92","v":0},{"$f":"Lighting!F92","v":0},{"$f":"Lighting!G92","v":0},{"$f":"Lighting!H92","v":0},{"$f":"Lighting!I92","v":0},{"$f":"Lighting!J92","v":0},{"$f":"Lighting!K92","v":0},{"$f":"Lighting!L92","v":0},{"$f":"Lighting!N92","v":0},{"$f":"Lighting!O92","v":0},{"$f":"Lighting!R92","v":0},{"$f":"Lighting!S92","v":0},{"$f":"Lighting!U92","v":""},{"$f":"Lighting!V92","v":""},{"$f":"Lighting!W92","v":""},{"$f":"Lighting!X92","v":0},{"$f":"Lighting!Y92","v":""},{"$f":"Lighting!AA92","v":""},{"$f":"Lighting!AC92","v":""},{"$f":"Lighting!AF92","v":""},{"$f":"Lighting!AG92","v":0},{"$f":"Lighting!AH92","v":0},{"$f":"Lighting!AI92","v":0}]
[0,{"$f":"Lighting!B93","v":85},{"$f":"Lighting!C93","v":0},{"$f":"Lighting!D93","v":0},{"$f":"Lighting!F93","v":0},{"$f":"Lighting!G93","v":0},{"$f":"Lighting!H93","v":0},{"$f":"Lighting!I93","v":0},{"$f":"Lighting!J93","v":0},{"$f":"Lighting!K93","v":0},{"$f":"Lighting!L93","v":0},{"$f":"Lighting!N93","v":0},{"$f":"Lighting!O93","v":0},{"$f":"Lighting!R93","v":0},{"$f":"Lighting!S93","v":0},{"$f":"Lighting!U93","v":""},{"$f":"Lighting!V93","v":""},{"$f":"Lighting!W93","v":""},{"$f":"Lighting!X93","v":0},{"$f":"Lighting!Y93","v":""},{"$f":"Lighting!AA93","v":""},{"$f":"Lighting!AC93","v":""},{"$f":"Lighting!AF93","v":""},{"$f":"Lighting!AG93","v":0},{"$f":"Lighting!AH93","v":0},{"$f":"Lighting!AI93","v":0}]
[0,{"$f":"Lighting!B94","v":86},{"$f":"Lighting!C94","v":0},{"$f":"Lighting!D94","v":0},{"$f":"Lighting!F94","v":0},{"$f":"Lighting!G94","v":0},{"$f":"Lighting!H94","v":0},{"$f":"Lighting!I94","v":0},{"$f":"Lighting!J94","v":0},{"$f":"Lighting!K94","v":0},{"$f":"Lighting!L94","v":0},{"$f":"Lighting!N94","v":0},{"$f":"Lighting!O94","v":0},{"$f":"Lighting!R94","v":0},{"$f":"Lighting!S94","v":0},{"$f":"Lighting!U94","v":""},{"$f":"Lighting!V94","v":""},{"$f":"Lighting!W94","v":""},{"$f":"Lighting!X94","v":0},{"$f":"Lighting!Y94","v":""},{"$f":"Lighting!AA94","v":""},{"$f":"Lighting!AC94","v":""},{"$f":"Lighting!AF94","v":""},{"$f":"Lighting!AG94","v":0},{"$f":"Lighting!AH94","v":0},{"$f":"Lighting!AI94","v":0}]
[0,{"$f":"Lighting!B95","v":87},{"$f":"Lighting!C95","v":0},{"$f":"Lighting!D95","v":0},{"$f":"Lighting!F95","v":0},{"$f":"Lighting!G95","v":0},{"$f":"Lighting!H95","v":0},{"$f":"Lighting!I95","v":0},{"$f":"Lighting!J95","v":0},{"$f":"Lighting!K95","v":0},{"$f":"Lighting!L95","v":0},{"$f":"Lighting!N95","v":0},{"$f":"Lighting!O95","v":0},{"$f":"Lighting!R95","v":0},{"$f":"Lighting!S95","v":0},{"$f":"Lighting!U95","v":""},{"$f":"Lighting!V95","v":""},{"$f":"Lighting!W95","v":""},{"$f":"Lighting!X95","v":0},{"$f":"Lighting!Y95","v":""},{"$f":"Lighting!AA95","v":""},{"$f":"Lighting!AC95","v":""},{"$f":"Lighting!AF95","v":""},{"$f":"Lighting!AG95","v":0},{"$f":"Lighting!AH95","v":0},{"$f":"Lighting!AI95","v":0}]
[0,{"$f":"Lighting!B96","v":88},{"$f":"Lighting!C96","v":0},{"$f":"Lighting!D96","v":0},{"$f":"Lighting!F96","v":0},{"$f":"Lighting!G96","v":0},{"$f":"Lighting!H96","v":0},{"$f":"Lighting!I96","v":0},{"$f":"Lighting!J96","v":0},{"$f":"Lighting!K96","v":0},{"$f":"Lighting!L96","v":0},{"$f":"Lighting!N96","v":0},{"$f":"Lighting!O96","v":0},{"$f":"Lighting!R96","v":0},{"$f":"Lighting!S96","v":0},{"$f":"Lighting!U96","v":""},{"$f":"Lighting!V96","v":""},{"$f":"Lighting!W96","v":""},{"$f":"Lighting!X96","v":0},{"$f":"Lighting!Y96","v":""},{"$f":"Lighting!AA96","v":""},{"$f":"Lighting!AC96","v":""},{"$f":"Lighting!AF96","v":""},{"$f":"Lighting!AG96","v":0},{"$f":"Lighting!AH96","v":0},{"$f":"Lighting!AI96","v":0}]
[0,{"$f":"Lighting!B97","v":89},{"$f":"Lighting!C97","v":0},{"$f":"Lighting!D97","v":0},{"$f":"Lighting!F97","v":0},{"$f":"Lighting!G97","v":0},{"$f":"Lighting!H97","v":0},{"$f":"Lighting!I97","v":0},{"$f":"Lighting!J97","v":0},{"$f":"Lighting!K97","v":0},{"$f":"Lighting!L97","v":0},{"$f":"Lighting!N97","v":0},{"$f":"Lighting!O97","v":0},{"$f":"Lighting!R97","v":0},{"$f":"Lighting!S97","v":0},{"$f":"Lighting!U97","v":""},{"$f":"Lighting!V97","v":""},{"$f":"Lighting!W97","v":""},{"$f":"Lighting!X97","v":0},{"$f":"Lighting!Y97","v":""},{"$f":"Lighting!AA97","v":""},{"$f":"Lighting!AC97","v":""},{"$f":"Lighting!AF97","v":""},{"$f":"Lighting!AG97","v":0},{"$f":"Lighting!AH97","v":0},{"$f":"Lighting!AI97","v":0}]
[0,{"$f":"Lighting!B98","v":90},{"$f":"Lighting!C98","v":0},{"$f":"Lighting!D98","v":0},{"$f":"Lighting!F98","v":0},{"$f":"Lighting!G98","v":0},{"$f":"Lighting!H98","v":0},{"$f":"Lighting!I98","v":0},{"$f":"Lighting!J98","v":0},{"$f":"Lighting!K98","v":0},{"$f":"Lighting!L98","v":0},{"$f":"Lighting!N98","v":0},{"$f":"Lighting!O98","v":0},{"$f":"Lighting!R98","v":0},{"$f":"Lighting!S98","v":0},{"$f":"Lighting!U98","v":""},{"$f":"Lighting!V98","v":""},{"$f":"Lighting!W98","v":""},{"$f":"Lighting!X98","v":0},{"$f":"Lighting!Y98","v":""},{"$f":"Lighting!AA98","v":""},{"$f":"Lighting!AC98","v":""},{"$f":"Lighting!AF98","v":""},{"$f":"Lighting!AG98","v":0},{"$f":"Lighting!AH98","v":0},{"$f":"Lighting!AI98","v":0}]
[0,{"$f":"Lighting!B99","v":91},{"$f":"Lighting!C99","v":0},{"$f":"Lighting!D99","v":0},{"$f":"Lighting!F99","v":0},{"$f":"Lighting!G99","v":0},{"$f":"Lighting!H99","v":0},{"$f":"Lighting!I99","v":0},{"$f":"Lighting!J99","v":0},{"$f":"Lighting!K99","v":0},{"$f":"Lighting!L99","v":0},{"$f":"Lighting!N99","v":0},{"$f":"Lighting!O99","v":0},{"$f":"Lighting!R99","v":0},{"$f":"Lighting!S99","v":0},{"$f":"Lighting!U99","v":""},{"$f":"Lighting!V99","v":""},{"$f":"Lighting!W99","v":""},{"$f":"Lighting!X99","v":0},{"$f":"Lighting!Y99","v":""},{"$f":"Lighting!AA99","v":""},{"$f":"Lighting!AC99","v":""},{"$f":"Lighting!AF99","v":""},{"$f":"Lighting!AG99","v":0},{"$f":"Lighting!AH99","v":0},{"$f":"Lighting!AI99","v":0}]
[0,{"$f":"Lighting!B100","v":92},{"$f":"Lighting!C100","v":0},{"$f":"Lighting!D100","v":0},{"$f":"Lighting!F100","v":0},{"$f":"Lighting!G100","v":0},{"$f":"Lighting!H100","v":0},{"$f":"Lighting!I100","v":0},{"$f":"Lighting!J100","v":0},{"$f":"Lighting!K100","v":0},{"$f":"Lighting!L100","v":0},{"$f":"Lighting!N100","v":0},{"$f":"Lighting!O100","v":0},{"$f":"Lighting!R100","v":0},{"$f":"Lighting!S100","v":0},{"$f":"Lighting!U100","v":""},{"$f":"Lighting!V100","v":""},{"$f":"Lighting!W100","v":""},{"$f":"Lighting!X100","v":0},{"$f":"Lighting!Y100","v":""},{"$f":"Lighting!AA100","v":""},{"$f":"Lighting!AC100","v":""},{"$f":"Lighting!AF100","v":""},{"$f":"Lighting!AG100","v":0},{"$f":"Lighting!AH100","v":0},{"$f":"Lighting!AI100","v":0}]
[0,{"$f":"Lighting!B101","v":93},{"$f":"Lighting!C101","v":0},{"$f":"Lighting!D101","v":0},{"$f":"Lighting!F101","v":0},{"$f":"Lighting!G101","v":0},{"$f":"Lighting!H101","v":0},{"$f":"Lighting!I101","v":0},{"$f":"Lighting!J101","v":0},{"$f":"Lighting!K101","v":0},{"$f":"Lighting!L101","v":0},{"$f":"Lighting!N101","v":0},{"$f":"Lighting!O101","v":0},{"$f":"Lighting!R101","v":0},{"$f":"Lighting!S101","v":0},{"$f":"Lighting!U101","v":""},{"$f":"Lighting!V101","v":""},{"$f":"Lighting!W101","v":""},{"$f":"Lighting!X101","v":0},{"$f":"Lighting!Y101","v":""},{"$f":"Lighting!AA101","v":""},{"$f":"Lighting!AC101","v":""},{"$f":"Lighting!AF101","v":""},{"$f":"Lighting!AG101","v":0},{"$f":"Lighting!AH101","v":0},{"$f":"Lighting!AI101","v":0}]
[0,{"$f":"Lighting!B102","v":94},{"$f":"Lighting!C102","v":0},{"$f":"Lighting!D102","v":0},{"$f":"Lighting!F102","v":0},{"$f":"Lighting!G102","v":0},{"$f":"Lighting!H102","v":0},{"$f":"Lighting!I102","v":0},{"$f":"Lighting!J102","v":0},{"$f":"Lighting!K102","v":0},{"$f":"Lighting!L102","v":0},{"$f":"Lighting!N102","v":0},{"$f":"Lighting!O102","v":0},{"$f":"Lighting!R102","v":0},{"$f":"Lighting!S102","v":0},{"$f":"Lighting!U102","v":""},{"$f":"Lighting!V102","v":""},{"$f":"Lighting!W102","v":""},{"$f":"Lighting!X102","v":0},{"$f":"Lighting!Y102","v":""},{"$f":"Lighting!AA102","v":""},{"$f":"Lighting!AC102","v":""},{"$f":"Lighting!AF102","v":""},{"$f":"Lighting!AG102","v":0},{"$f":"Lighting!AH102","v":0},{"$f":"Lighting!AI102","v":0}]
[0,{"$f":"Lighting!B103","v":95},{"$f":"Lighting!C103","v":0},{"$f":"Lighting!D103","v":0},{"$f":"Lighting!F103","v":0},{"$f":"Lighting!G103","v":0},{"$f":"Lighting!H103","v":0},{"$f":"Lighting!I103","v":0},{"$f":"Lighting!J103","v":0},{"$f":"Lighting!K103","v":0},{"$f":"Lighting!L103","v":0},{"$f":"Lighting!N103","v":0},{"$f":"Lighting!O103","v":0},{"$f":"Lighting!R103","v":0},{"$f":"Lighting!S103","v":0},{"$f":"Lighting!U103","v":""},{"$f":"Lighting!V103","v":""},{"$f":"Lighting!W103","v":""},{"$f":"Lighting!X103","v":0},{"$f":"Lighting!Y103","v":""},{"$f":"Lighting!AA103","v":""},{"$f":"Lighting!AC103","v":""},{"$f":"Lighting!AF103","v":""},{"$f":"Lighting!AG103","v":0},{"$f":"Lighting!AH103","v":0},{"$f":"Lighting!AI103","v":0}]
[0,{"$f":"Lighting!B104","v":96},{"$f":"Lighting!C104","v":0},{"$f":"Lighting!D104","v":0},{"$f":"Lighting!F104","v":0},{"$f":"Lighting!G104","v":0},{"$f":"Lighting!H104","v":0},{"$f":"Lighting!I104","v":0},{"$f":"Lighting!J104","v":0},{"$f":"Lighting!K104","v":0},{"$f":"Lighting!L104","v":0},{"$f":"Lighting!N104","v":0},{"$f":"Lighting!O104","v":0},{"$f":"Lighting!R104","v":0},{"$f":"Lighting!S104","v":0},{"$f":"Lighting!U104","v":""},{"$f":"Lighting!V104","v":""},{"$f":"Lighting!W104","v":""},{"$f":"Lighting!X104","v":0},{"$f":"Lighting!Y104","v":""},{"$f":"Lighting!AA104","v":""},{"$f":"Lighting!AC104","v":""},{"$f":"Lighting!AF104","v":""},{"$f":"Lighting!AG104","v":0},{"$f":"Lighting!AH104","v":0},{"$f":"Lighting!AI104","v":0}]
[0,{"$f":"Lighting!B105","v":97},{"$f":"Lighting!C105","v":0},{"$f":"Lighting!D105","v":0},{"$f":"Lighting!F105","v":0},{"$f":"Lighting!G105","v":0},{"$f":"Lighting!H105","v":0},{"$f":"Lighting!I105","v":0},{"$f":"Lighting!J105","v":0},{"$f":"Lighting!K105","v":0},{"$f":"Lighting!L105","v":0},{"$f":"Lighting!N105","v":0},{"$f":"Lighting!O105","v":0},{"$f":"Lighting!R105","v":0},{"$f":"Lighting!S105","v":0},{"$f":"Lighting!U105","v":""},{"$f":"Lighting!V105","v":""},{"$f":"Lighting!W105","v":""},{"$f":"Lighting!X105","v":0},{"$f":"Lighting!Y105","v":""},{"$f":"Lighting!AA105","v":""},{"$f":"Lighting!AC105","v":""},{"$f":"Lighting!AF105","v":""},{"$f":"Lighting!AG105","v":0},{"$f":"Lighting!AH105","v":0},{"$f":"Lighting!AI105","v":0}]
[0,{"$f":"Lighting!B106","v":98},{"$f":"Lighting!C106","v":0},{"$f":"Lighting!D106","v":0},{"$f":"Lighting!F106","v":0},{"$f":"Lighting!G106","v":0},{"$f":"Lighting!H106","v":0},{"$f":"Lighting!I106","v":0},{"$f":"Lighting!J106","v":0},{"$f":"Lighting!K106","v":0},{"$f":"Lighting!L106","v":0},{"$f":"Lighting!N106","v":0},{"$f":"Lighting!O106","v":0},{"$f":"Lighting!R106","v":0},{"$f":"Lighting!S106","v":0},{"$f":"Lighting!U106","v":""},{"$f":"Lighting!V106","v":""},{"$f":"Lighting!W106","v":""},{"$f":"Lighting!X106","v":0},{"$f":"Lighting!Y106","v":""},{"$f":"Lighting!AA106","v":""},{"$f":"Lighting!AC106","v":""},{"$f":"Lighting!AF106","v":""},{"$f":"Lighting!AG106","v":0},{"$f":"Lighting!AH106","v":0},{"$f":"Lighting!AI106","v":0}]
[0,{"$f":"Lighting!B107","v":99},{"$f":"Lighting!C107","v":0},{"$f":"Lighting!D107","v":0},{"$f":"Lighting!F107","v":0},{"$f":"Lighting!G107","v":0},{"$f":"Lighting!H107","v":0},{"$f":"Lighting!I107","v":0},{"$f":"Lighting!J107","v":0},{"$f":"Lighting!K107","v":0},{"$f":"Lighting!L107","v":0},{"$f":"Lighting!N107","v":0},{"$f":"Lighting!O107","v":0},{"$f":"Lighting!R107","v":0},{"$f":"Lighting!S107","v":0},{"$f":"Lighting!U107","v":""},{"$f":"Lighting!V107","v":""},{"$f":"Lighting!W107","v":""},{"$f":"Lighting!X107","v":0},{"$f":"Lighting!Y107","v":""},{"$f":"Lighting!AA107","v":""},{"$f":"Lighting!AC107","v":""},{"$f":"Lighting!AF107","v":""},{"$f":"Lighting!AG107","v":0},{"$f":"Lighting!AH107","v":0},{"$f":"Lighting!AI107","v":0}]
[0,{"$f":"Lighting!B108","v":100},{"$f":"Lighting!C108","v":0},{"$f":"Lighting!D108","v":0},{"$f":"Lighting!F108","v":0},{"$f":"Lighting!G108","v":0},{"$f":"Lighting!H108","v":0},{"$f":"Lighting!I108","v":0},{"$f":"Lighting!J108","v":0},{"$f":"Lighting!K108","v":0},{"$f":"Lighting!L108","v":0},{"$f":"Lighting!N108","v":0},{"$f":"Lighting!O108","v":0},{"$f":"Lighting!R108","v":0},{"$f":"Lighting!S108","v":0},{"$f":"Lighting!U108","v":""},{"$f":"Lighting!V108","v":""},{"$f":"Lighting!W108","v":""},{"$f":"Lighting!X108","v":0},{"$f":"Lighting!Y108","v":""},{"$f":"Lighting!AA108","v":""},{"$f":"Lighting!AC108","v":""},{"$f":"Lighting!AF108","v":""},{"$f":"Lighting!AG108","v":0},{"$f":"Lighting!AH108","v":0},{"$f":"Lighting!AI108","v":0}]
[0,{"$f":"Lighting!B109","v":101},{"$f":"Lighting!C109","v":0},{"$f":"Lighting!D109","v":0},{"$f":"Lighting!F109","v":0},{"$f":"Lighting!G109","v":0},{"$f":"Lighting!H109","v":0},{"$f":"Lighting!I109","v":0},{"$f":"Lighting!J109","v":0},{"$f":"Lighting!K109","v":0},{"$f":"Lighting!L109","v":0},{"$f":"Lighting!N109","v":0},{"$f":"Lighting!O109","v":0},{"$f":"Lighting!R109","v":0},{"$f":"Lighting!S109","v":0},{"$f":"Lighting!U109","v":""},{"$f":"Lighting!V109","v":""},{"$f":"Lighting!W109","v":""},{"$f":"Lighting!X109","v":0},{"$f":"Lighting!Y109","v":""},{"$f":"Lighting!AA109","v":""},{"$f":"Lighting!AC109","v":""},{"$f":"Lighting!AF109","v":""},{"$f":"Lighting!AG109","v":0},{"$f":"Lighting!AH109","v":0},{"$f":"Lighting!AI109","v":0}]
[0,{"$f":"Lighting!B110","v":102},{"$f":"Lighting!C110","v":0},{"$f":"Lighting!D110","v":0},{"$f":"Lighting!F110","v":0},{"$f":"Lighting!G110","v":0},{"$f":"Lighting!H110","v":0},{"$f":"Lighting!I110","v":0},{"$f":"Lighting!J110","v":0},{"$f":"Lighting!K110","v":0},{"$f":"Lighting!L110","v":0},{"$f":"Lighting!N110","v":0},{"$f":"Lighting!O110","v":0},{"$f":"Lighting!R110","v":0},{"$f":"Lighting!S110","v":0},{"$f":"Lighting!U110","v":""},{"$f":"Lighting!V110","v":""},{"$f":"Lighting!W110","v":""},{"$f":"Lighting!X110","v":0},{"$f":"Lighting!Y110","v":""},{"$f":"Lighting!AA110","v":""},{"$f":"Lighting!AC110","v":""},{"$f":"Lighting!AF110","v":""},{"$f":"Lighting!AG110","v":0},{"$f":"Lighting!AH110","v":0},{"$f":"Lighting!AI110","v":0}]
[0,{"$f":"Lighting!B111","v":103},{"$f":"Lighting!C111","v":0},{"$f":"Lighting!D111","v":0},{"$f":"Lighting!F111","v":0},{"$f":"Lighting!G111","v":0},{"$f":"Lighting!H111","v":0},{"$f":"Lighting!I111","v":0},{"$f":"Lighting!J111","v":0},{"$f":"Lighting!K111","v":0},{"$f":"Lighting!L111","v":0},{"$f":"Lighting!N111","v":0},{"$f":"Lighting!O111","v":0},{"$f":"Lighting!R111","v":0},{"$f":"Lighting!S111","v":0},{"$f":"Lighting!U111","v":""},{"$f":"Lighting!V111","v":""},{"$f":"Lighting!W111","v":""},{"$f":"Lighting!X111","v":0},{"$f":"Lighting!Y111","v":""},{"$f":"Lighting!AA111","v":""},{"$f":"Lighting!AC111","v":""},{"$f":"Lighting!AF111","v":""},{"$f":"Lighting!AG111","v":0},{"$f":"Lighting!AH111","v":0},{"$f":"Lighting!AI111","v":0}]
[0,{"$f":"Lighting!B112","v":104},{"$f":"Lighting!C112","v":0},{"$f":"Lighting!D112","v":0},{"$f":"Lighting!F112","v":0},{"$f":"Lighting!G112","v":0},{"$f":"Lighting!H112","v":0},{"$f":"Lighting!I112","v":0},{"$f":"Lighting!J112","v":0},{"$f":"Lighting!K112","v":0},{"$f":"Lighting!L112","v":0},{"$f":"Lighting!N112","v":0},{"$f":"Lighting!O112","v":0},{"$f":"Lighting!R112","v":0},{"$f":"Lighting!S112","v":0},{"$f":"Lighting!U112","v":""},{"$f":"Lighting!V112","v":""},{"$f":"Lighting!W112","v":""},{"$f":"Lighting!X112","v":0},{"$f":"Lighting!Y112","v":""},{"$f":"Lighting!AA112","v":""},{"$f":"Lighting!AC112","v":""},{"$f":"Lighting!AF112","v":""},{"$f":"Lighting!AG112","v":0},{"$f":"Lighting!AH112","v":0},{"$f":"Lighting!AI112","v":0}]
[0,{"$f":"Lighting!B113","v":105},{"$f":"Lighting!C113","v":0},{"$f":"Lighting!D113","v":0},{"$f":"Lighting!F113","v":0},{"$f":"Lighting!G113","v":0},{"$f":"Lighting!H113","v":0},{"$f":"Lighting!I113","v":0},{"$f":"Lighting!J113","v":0},{"$f":"Lighting!K113","v":0},{"$f":"Lighting!L113","v":0},{"$f":"Lighting!N113","v":0},{"$f":"Lighting!O113","v":0},{"$f":"Lighting!R113","v":0},{"$f":"Lighting!S113","v":0},{"$f":"Lighting!U113","v":""},{"$f":"Lighting!V113","v":""},{"$f":"Lighting!W113","v":""},{"$f":"Lighting!X113","v":0},{"$f":"Lighting!Y113","v":""},{"$f":"Lighting!AA113","v":""},{"$f":"Lighting!AC113","v":""},{"$f":"Lighting!AF113","v":""},{"$f":"Lighting!AG113","v":0},{"$f":"Lighting!AH113","v":0},{"$f":"Lighting!AI113","v":0}]
[0,{"$f":"Lighting!B114","v":106},{"$f":"Lighting!C114","v":0},{"$f":"Lighting!D114","v":0},{"$f":"Lighting!F114","v":0},{"$f":"Lighting!G114","v":0},{"$f":"Lighting!H114","v":0},{"$f":"Lighting!I114","v":0},{"$f":"Lighting!J114","v":0},{"$f":"Lighting!K114","v":0},{"$f":"Lighting!L114","v":0},{"$f":"Lighting!N114","v":0},{"$f":"Lighting!O114","v":0},{"$f":"Lighting!R114","v":0},{"$f":"Lighting!S114","v":0},{"$f":"Lighting!U114","v":""},{"$f":"Lighting!V114","v":""},{"$f":"Lighting!W114","v":""},{"$f":"Lighting!X114","v":0},{"$f":"Lighting!Y114","v":""},{"$f":"Lighting!AA114","v":""},{"$f":"Lighting!AC114","v":""},{"$f":"Lighting!AF114","v":""},{"$f":"Lighting!AG114","v":0},{"$f":"Lighting!AH114","v":0},{"$f":"Lighting!AI114","v":0}]
[0,{"$f":"Lighting!B115","v":107},{"$f":"Lighting!C115","v":0},{"$f":"Lighting!D115","v":0},{"$f":"Lighting!F115","v":0},{"$f":"Lighting!G115","v":0},{"$f":"Lighting!H115","v":0},{"$f":"Lighting!I115","v":0},{"$f":"Lighting!J115","v":0},{"$f":"Lighting!K115","v":0},{"$f":"Lighting!L115","v":0},{"$f":"Lighting!N115","v":0},{"$f":"Lighting!O115","v":0},{"$f":"Lighting!R115","v":0},{"$f":"Lighting!S115","v":0},{"$f":"Lighting!U115","v":""},{"$f":"Lighting!V115","v":""},{"$f":"Lighting!W115","v":""},{"$f":"Lighting!X115","v":0},{"$f":"Lighting!Y115","v":""},{"$f":"Lighting!AA115","v":""},{"$f":"Lighting!AC115","v":""},{"$f":"Lighting!AF115","v":""},{"$f":"Lighting!AG115","v":0},{"$f":"Lighting!AH115","v":0},{"$f":"Lighting!AI115","v":0}]
[0,{"$f":"Lighting!B116","v":108},{"$f":"Lighting!C116","v":0},{"$f":"Lighting!D116","v":0},{"$f":"Lighting!F116","v":0},{"$f":"Lighting!G116","v":0},{"$f":"Lighting!H116","v":0},{"$f":"Lighting!I116","v":0},{"$f":"Lighting!J116","v":0},{"$f":"Lighting!K116","v":0},{"$f":"Lighting!L116","v":0},{"$f":"Lighting!N116","v":0},{"$f":"Lighting!O116","v":0},{"$f":"Lighting!R116","v":0},{"$f":"Lighting!S116","v":0},{"$f":"Lighting!U116","v":""},{"$f":"Lighting!V116","v":""},{"$f":"Lighting!W116","v":""},{"$f":"Lighting!X116","v":0},{"$f":"Lighting!Y116","v":""},{"$f":"Lighting!AA116","v":""},{"$f":"Lighting!AC116","v":""},{"$f":"Lighting!AF116","v":""},{"$f":"Lighting!AG116","v":0},{"$f":"Lighting!AH116","v":0},{"$f":"Lighting!AI116","v":0}]
[0,{"$f":"Lighting!B117","v":109},{"$f":"Lighting!C117","v":0},{"$f":"Lighting!D117","v":0},{"$f":"Lighting!F117","v":0},{"$f":"Lighting!G117","v":0},{"$f":"Lighting!H117","v":0},{"$f":"Lighting!I117","v":0},{"$f":"Lighting!J117","v":0},{"$f":"Lighting!K117","v":0},{"$f":"Lighting!L117","v":0},{"$f":"Lighting!N117","v":0},{"$f":"Lighting!O117","v":0},{"$f":"Lighting!R117","v":0},{"$f":"Lighting!S117","v":0},{"$f":"Lighting!U117","v":""},{"$f":"Lighting!V117","v":""},{"$f":"Lighting!W117","v":""},{"$f":"Lighting!X117","v":0},{"$f":"Lighting!Y117","v":""},{"$f":"Lighting!AA117","v":""},{"$f":"Lighting!AC117","v":""},{"$f":"Lighting!AF117","v":""},{"$f":"Lighting!AG117","v":0},{"$f":"Lighting!AH117","v":0},{"$f":"Lighting!AI117","v":0}]
[0,{"$f":"Lighting!B118","v":110},{"$f":"Lighting!C118","v":0},{"$f":"Lighting!D118","v":0},{"$f":"Lighting!F118","v":0},{"$f":"Lighting!G118","v":0},{"$f":"Lighting!H118","v":0},{"$f":"Lighting!I118","v":0},{"$f":"Lighting!J118","v":0},{"$f":"Lighting!K118","v":0},{"$f":"Lighting!L118","v":0},{"$f":"Lighting!N118","v":0},{"$f":"Lighting!O118","v":0},{"$f":"Lighting!R118","v":0},{"$f":"Lighting!S118","v":0},{"$f":"Lighting!U118","v":""},{"$f":"Lighting!V118","v":""},{"$f":"Lighting!W118","v":""},{"$f":"Lighting!X118","v":0},{"$f":"Lighting!Y118","v":""},{"$f":"Lighting!AA118","v":""},{"$f":"Lighting!AC118","v":""},{"$f":"Lighting!AF118","v":""},{"$f":"Lighting!AG118","v":0},{"$f":"Lighting!AH118","v":0},{"$f":"Lighting!AI118","v":0}]
[0,{"$f":"Lighting!B119","v":111},{"$f":"Lighting!C119","v":0},{"$f":"Lighting!D119","v":0},{"$f":"Lighting!F119","v":0},{"$f":"Lighting!G119","v":0},{"$f":"Lighting!H119","v":0},{"$f":"Lighting!I119","v":0},{"$f":"Lighting!J119","v":0},{"$f":"Lighting!K119","v":0},{"$f":"Lighting!L119","v":0},{"$f":"Lighting!N119","v":0},{"$f":"Lighting!O119","v":0},{"$f":"Lighting!R119","v":0},{"$f":"Lighting!S119","v":0},{"$f":"Lighting!U119","v":""},{"$f":"Lighting!V119","v":""},{"$f":"Lighting!W119","v":""},{"$f":"Lighting!X119","v":0},{"$f":"Lighting!Y119","v":""},{"$f":"Lighting!AA119","v":""},{"$f":"Lighting!AC119","v":""},{"$f":"Lighting!AF119","v":""},{"$f":"Lighting!AG119","v":0},{"$f":"Lighting!AH119","v":0},{"$f":"Lighting!AI119","v":0}]
[0,{"$f":"Lighting!B120","v":112},{"$f":"Lighting!C120","v":0},{"$f":"Lighting!D120","v":0},{"$f":"Lighting!F120","v":0},{"$f":"Lighting!G120","v":0},{"$f":"Lighting!H120","v":0},{"$f":"Lighting!I120","v":0},{"$f":"Lighting!J120","v":0},{"$f":"Lighting!K120","v":0},{"$f":"Lighting!L120","v":0},{"$f":"Lighting!N120","v":0},{"$f":"Lighting!O120","v":0},{"$f":"Lighting!R120","v":0},{"$f":"Lighting!S120","v":0},{"$f":"Lighting!U120","v":""},{"$f":"Lighting!V120","v":""},{"$f":"Lighting!W120","v":""},{"$f":"Lighting!X120","v":0},{"$f":"Lighting!Y120","v":""},{"$f":"Lighting!AA120","v":""},{"$f":"Lighting!AC120","v":""},{"$f":"Lighting!AF120","v":""},{"$f":"Lighting!AG120","v":0},{"$f":"Lighting!AH120","v":0},{"$f":"Lighting!AI120","v":0}]
[0,{"$f":"Lighting!B121","v":113},{"$f":"Lighting!C121","v":0},{"$f":"Lighting!D121","v":0},{"$f":"Lighting!F121","v":0},{"$f":"Lighting!G121","v":0},{"$f":"Lighting!H121","v":0},{"$f":"Lighting!I121","v":0},{"$f":"Lighting!J121","v":0},{"$f":"Lighting!K121","v":0},{"$f":"Lighting!L121","v":0},{"$f":"Lighting!N121","v":0},{"$f":"Lighting!O121","v":0},{"$f":"Lighting!R121","v":0},{"$f":"Lighting!S121","v":0},{"$f":"Lighting!U121","v":""},{"$f":"Lighting!V121","v":""},{"$f":"Lighting!W121","v":""},{"$f":"Lighting!X121","v":0},{"$f":"Lighting!Y121","v":""},{"$f":"Lighting!AA121","v":""},{"$f":"Lighting!AC121","v":""},{"$f":"Lighting!AF121","v":""},{"$f":"Lighting!AG121","v":0},{"$f":"Lighting!AH121","v":0},{"$f":"Lighting!AI121","v":0}]
[0,{"$f":"Lighting!B122","v":114},{"$f":"Lighting!C122","v":0},{"$f":"Lighting!D122","v":0},{"$f":"Lighting!F122","v":0},{"$f":"Lighting!G122","v":0},{"$f":"Lighting!H122","v":0},{"$f":"Lighting!I122","v":0},{"$f":"Lighting!J122","v":0},{"$f":"Lighting!K122","v":0},{"$f":"Lighting!L122","v":0},{"$f":"Lighting!N122","v":0},{"$f":"Lighting!O122","v":0},{"$f":"Lighting!R122","v":0},{"$f":"Lighting!S122","v":0},{"$f":"Lighting!U122","v":""},{"$f":"Lighting!V122","v":""},{"$f":"Lighting!W122","v":""},{"$f":"Lighting!X122","v":0},{"$f":"Lighting!Y122","v":""},{"$f":"Lighting!AA122","v":""},{"$f":"Lighting!AC122","v":""},{"$f":"Lighting!AF122","v":""},{"$f":"Lighting!AG122","v":0},{"$f":"Lighting!AH122","v":0},{"$f":"Lighting!AI122","v":0}]
[0,{"$f":"Lighting!B123","v":115},{"$f":"Lighting!C123","v":0},{"$f":"Lighting!D123","v":0},{"$f":"Lighting!F123","v":0},{"$f":"Lighting!G123","v":0},{"$f":"Lighting!H123","v":0},{"$f":"Lighting!I123","v":0},{"$f":"Lighting!J123","v":0},{"$f":"Lighting!K123","v":0},{"$f":"Lighting!L123","v":0},{"$f":"Lighting!N123","v":0},{"$f":"Lighting!O123","v":0},{"$f":"Lighting!R123","v":0},{"$f":"Lighting!S123","v":0},{"$f":"Lighting!U123","v":""},{"$f":"Lighting!V123","v":""},{"$f":"Lighting!W123","v":""},{"$f":"Lighting!X123","v":0},{"$f":"Lighting!Y123","v":""},{"$f":"Lighting!AA123","v":""},{"$f":"Lighting!AC123","v":""},{"$f":"Lighting!AF123","v":""},{"$f":"Lighting!AG123","v":0},{"$f":"Lighting!AH123","v":0},{"$f":"Lighting!AI123","v":0}]
[0,{"$f":"Lighting!B124","v":116},{"$f":"Lighting!C124","v":0},{"$f":"Lighting!D124","v":0},{"$f":"Lighting!F124","v":0},{"$f":"Lighting!G124","v":0},{"$f":"Lighting!H124","v":0},{"$f":"Lighting!I124","v":0},{"$f":"Lighting!J124","v":0},{"$f":"Lighting!K124","v":0},{"$f":"Lighting!L124","v":0},{"$f":"Lighting!N124","v":0},{"$f":"Lighting!O124","v":0},{"$f":"Lighting!R124","v":0},{"$f":"Lighting!S124","v":0},{"$f":"Lighting!U124","v":""},{"$f":"Lighting!V124","v":""},{"$f":"Lighting!W124","v":""},{"$f":"Lighting!X124","v":0},{"$f":"Lighting!Y124","v":""},{"$f":"Lighting!AA124","v":""},{"$f":"Lighting!AC124","v":""},{"$f":"Lighting!AF124","v":""},{"$f":"Lighting!AG124","v":0},{"$f":"Lighting!AH124","v":0},{"$f":"Lighting!AI124","v":0}]
[0,{"$f":"Lighting!B125","v":117},{"$f":"Lighting!C125","v":0},{"$f":"Lighting!D125","v":0},{"$f":"Lighting!F125","v":0},{"$f":"Lighting!G125","v":0},{"$f":"Lighting!H125","v":0},{"$f":"Lighting!I125","v":0},{"$f":"Lighting!J125","v":0},{"$f":"Lighting!K125","v":0},{"$f":"Lighting!L125","v":0},{"$f":"Lighting!N125","v":0},{"$f":"Lighting!O125","v":0},{"$f":"Lighting!R125","v":0},{"$f":"Lighting!S125","v":0},{"$f":"Lighting!U125","v":""},{"$f":"Lighting!V125","v":""},{"$f":"Lighting!W125","v":""},{"$f":"Lighting!X125","v":0},{"$f":"Lighting!Y125","v":""},{"$f":"Lighting!AA125","v":""},{"$f":"Lighting!AC125","v":""},{"$f":"Lighting!AF125","v":""},{"$f":"Lighting!AG125","v":0},{"$f":"Lighting!AH125","v":0},{"$f":"Lighting!AI125","v":0}]
[0,{"$f":"Lighting!B126","v":118},{"$f":"Lighting!C126","v":0},{"$f":"Lighting!D126","v":0},{"$f":"Lighting!F126","v":0},{"$f":"Lighting!G126","v":0},{"$f":"Lighting!H126","v":0},{"$f":"Lighting!I126","v":0},{"$f":"Lighting!J126","v":0},{"$f":"Lighting!K126","v":0},{"$f":"Lighting!L126","v":0},{"$f":"Lighting!N126","v":0},{"$f":"Lighting!O126","v":0},{"$f":"Lighting!R126","v":0},{"$f":"Lighting!S126","v":0},{"$f":"Lighting!U126","v":""},{"$f":"Lighting!V126","v":""},{"$f":"Lighting!W126","v":""},{"$f":"Lighting!X126","v":0},{"$f":"Lighting!Y126","v":""},{"$f":"Lighting!AA126","v":""},{"$f":"Lighting!AC126","v":""},{"$f":"Lighting!AF126","v":""},{"$f":"Lighting!AG126","v":0},{"$f":"Lighting!AH126","v":0},{"$f":"Lighting!AI126","v":0}]
[0,{"$f":"Lighting!B127","v":119},{"$f":"Lighting!C127","v":0},{"$f":"Lighting!D127","v":0},{"$f":"Lighting!F127","v":0},{"$f":"Lighting!G127","v":0},{"$f":"Lighting!H127","v":0},{"$f":"Lighting!I127","v":0},{"$f":"Lighting!J127","v":0},{"$f":"Lighting!K127","v":0},{"$f":"Lighting!L127","v":0},{"$f":"Lighting!N127","v":0},{"$f":"Lighting!O127","v":0},{"$f":"Lighting!R127","v":0},{"$f":"Lighting!S127","v":0},{"$f":"Lighting!U127","v":""},{"$f":"Lighting!V127","v":""},{"$f":"Lighting!W127","v":""},{"$f":"Lighting!X127","v":0},{"$f":"Lighting!Y127","v":""},{"$f":"Lighting!AA127","v":""},{"$f":"Lighting!AC127","v":""},{"$f":"Lighting!AF127","v":""},{"$f":"Lighting!AG127","v":0},{"$f":"Lighting!AH127","v":0},{"$f":"Lighting!AI127","v":0}]
[0,{"$f":"Lighting!B128","v":120},{"$f":"Lighting!C128","v":0},{"$f":"Lighting!D128","v":0},{"$f":"Lighting!F128","v":0},{"$f":"Lighting!G128","v":0},{"$f":"Lighting!H128","v":0},{"$f":"Lighting!I128","v":0},{"$f":"Lighting!J128","v":0},{"$f":"Lighting!K128","v":0},{"$f":"Lighting!L128","v":0},{"$f":"Lighting!N128","v":0},{"$f":"Lighting!O128","v":0},{"$f":"Lighting!R128","v":0},{"$f":"Lighting!S128","v":0},{"$f":"Lighting!U128","v":""},{"$f":"Lighting!V128","v":""},{"$f":"Lighting!W128","v":""},{"$f":"Lighting!X128","v":0},{"$f":"Lighting!Y128","v":""},{"$f":"Lighting!AA128","v":""},{"$f":"Lighting!AC128","v":""},{"$f":"Lighting!AF128","v":""},{"$f":"Lighting!AG128","v":0},{"$f":"Lighting!AH128","v":0},{"$f":"Lighting!AI128","v":0}]
[0,{"$f":"Lighting!B129","v":121},{"$f":"Lighting!C129","v":0},{"$f":"Lighting!D129","v":0},{"$f":"Lighting!F129","v":0},{"$f":"Lighting!G129","v":0},{"$f":"Lighting!H129","v":0},{"$f":"Lighting!I129","v":0},{"$f":"Lighting!J129","v":0},{"$f":"Lighting!K129","v":0},{"$f":"Lighting!L129","v":0},{"$f":"Lighting!N129","v":0},{"$f":"Lighting!O129","v":0},{"$f":"Lighting!R129","v":0},{"$f":"Lighting!S129","v":0},{"$f":"Lighting!U129","v":""},{"$f":"Lighting!V129","v":""},{"$f":"Lighting!W129","v":""},{"$f":"Lighting!X129","v":0},{"$f":"Lighting!Y129","v":""},{"$f":"Lighting!AA129","v":""},{"$f":"Lighting!AC129","v":""},{"$f":"Lighting!AF129","v":""},{"$f":"Lighting!AG129","v":0},{"$f":"Lighting!AH129","v":0},{"$f":"Lighting!AI129","v":0}]
[0,{"$f":"Lighting!B130","v":122},{"$f":"Lighting!C130","v":0},{"$f":"Lighting!D130","v":0},{"$f":"Lighting!F130","v":0},{"$f":"Lighting!G130","v":0},{"$f":"Lighting!H130","v":0},{"$f":"Lighting!I130","v":0},{"$f":"Lighting!J130","v":0},{"$f":"Lighting!K130","v":0},{"$f":"Lighting!L130","v":0},{"$f":"Lighting!N130","v":0},{"$f":"Lighting!O130","v":0},{"$f":"Lighting!R130","v":0},{"$f":"Lighting!S130","v":0},{"$f":"Lighting!U130","v":""},{"$f":"Lighting!V130","v":""},{"$f":"Lighting!W130","v":""},{"$f":"Lighting!X130","v":0},{"$f":"Lighting!Y130","v":""},{"$f":"Lighting!AA130","v":""},{"$f":"Lighting!AC130","v":""},{"$f":"Lighting!AF130","v":""},{"$f":"Lighting!AG130","v":0},{"$f":"Lighting!AH130","v":0},{"$f":"Lighting!AI130","v":0}]
[0,{"$f":"Lighting!B131","v":123},{"$f":"Lighting!C131","v":0},{"$f":"Lighting!D131","v":0},{"$f":"Lighting!F131","v":0},{"$f":"Lighting!G131","v":0},{"$f":"Lighting!H131","v":0},{"$f":"Lighting!I131","v":0},{"$f":"Lighting!J131","v":0},{"$f":"Lighting!K131","v":0},{"$f":"Lighting!L131","v":0},{"$f":"Lighting!N131","v":0},{"$f":"Lighting!O131","v":0},{"$f":"Lighting!R131","v":0},{"$f":"Lighting!S131","v":0},{"$f":"Lighting!U131","v":""},{"$f":"Lighting!V131","v":""},{"$f":"Lighting!W131","v":""},{"$f":"Lighting!X131","v":0},{"$f":"Lighting!Y131","v":""},{"$f":"Lighting!AA131","v":""},{"$f":"Lighting!AC131","v":""},{"$f":"Lighting!AF131","v":""},{"$f":"Lighting!AG131","v":0},{"$f":"Lighting!AH131","v":0},{"$f":"Lighting!AI131","v":0}]
[0,{"$f":"Lighting!B132","v":124},{"$f":"Lighting!C132","v":0},{"$f":"Lighting!D132","v":0},{"$f":"Lighting!F132","v":0},{"$f":"Lighting!G132","v":0},{"$f":"Lighting!H132","v":0},{"$f":"Lighting!I132","v":0},{"$f":"Lighting!J132","v":0},{"$f":"Lighting!K132","v":0},{"$f":"Lighting!L132","v":0},{"$f":"Lighting!N132","v":0},{"$f":"Lighting!O132","v":0},{"$f":"Lighting!R132","v":0},{"$f":"Lighting!S132","v":0},{"$f":"Lighting!U132","v":""},{"$f":"Lighting!V132","v":""},{"$f":"Lighting!W132","v":""},{"$f":"Lighting!X132","v":0},{"$f":"Lighting!Y132","v":""},{"$f":"Lighting!AA132","v":""},{"$f":"Lighting!AC132","v":""},{"$f":"Lighting!AF132","v":""},{"$f":"Lighting!AG132","v":0},{"$f":"Lighting!AH132","v":0},{"$f":"Lighting!AI132","v":0}]
[0,{"$f":"Lighting!B133","v":125},{"$f":"Lighting!C133","v":0},{"$f":"Lighting!D133","v":0},{"$f":"Lighting!F133","v":0},{"$f":"Lighting!G133","v":0},{"$f":"Lighting!H133","v":0},{"$f":"Lighting!I133","v":0},{"$f":"Lighting!J133","v":0},{"$f":"Lighting!K133","v":0},{"$f":"Lighting!L133","v":0},{"$f":"Lighting!N133","v":0},{"$f":"Lighting!O133","v":0},{"$f":"Lighting!R133","v":0},{"$f":"Lighting!S133","v":0},{"$f":"Lighting!U133","v":""},{"$f":"Lighting!V133","v":""},{"$f":"Lighting!W133","v":""},{"$f":"Lighting!X133","v":0},{"$f":"Lighting!Y133","v":""},{"$f":"Lighting!AA133","v":""},{"$f":"Lighting!AC133","v":""},{"$f":"Lighting!AF133","v":""},{"$f":"Lighting!AG133","v":0},{"$f":"Lighting!AH133","v":0},{"$f":"Lighting!AI133","v":0}]
[0,{"$f":"Lighting!B134","v":126},{"$f":"Lighting!C134","v":0},{"$f":"Lighting!D134","v":0},{"$f":"Lighting!F134","v":0},{"$f":"Lighting!G134","v":0},{"$f":"Lighting!H134","v":0},{"$f":"Lighting!I134","v":0},{"$f":"Lighting!J134","v":0},{"$f":"Lighting!K134","v":0},{"$f":"Lighting!L134","v":0},{"$f":"Lighting!N134","v":0},{"$f":"Lighting!O134","v":0},{"$f":"Lighting!R134","v":0},{"$f":"Lighting!S134","v":0},{"$f":"Lighting!U134","v":""},{"$f":"Lighting!V134","v":""},{"$f":"Lighting!W134","v":""},{"$f":"Lighting!X134","v":0},{"$f":"Lighting!Y134","v":""},{"$f":"Lighting!AA134","v":""},{"$f":"Lighting!AC134","v":""},{"$f":"Lighting!AF134","v":""},{"$f":"Lighting!AG134","v":0},{"$f":"Lighting!AH134","v":0},{"$f":"Lighting!AI134","v":0}]
[0,{"$f":"Lighting!B135","v":127},{"$f":"Lighting!C135","v":0},{"$f":"Lighting!D135","v":0},{"$f":"Lighting!F135","v":0},{"$f":"Lighting!G135","v":0},{"$f":"Lighting!H135","v":0},{"$f":"Lighting!I135","v":0},{"$f":"Lighting!J135","v":0},{"$f":"Lighting!K135","v":0},{"$f":"Lighting!L135","v":0},{"$f":"Lighting!N135","v":0},{"$f":"Lighting!O135","v":0},{"$f":"Lighting!R135","v":0},{"$f":"Lighting!S135","v":0},{"$f":"Lighting!U135","v":""},{"$f":"Lighting!V135","v":""},{"$f":"Lighting!W135","v":""},{"$f":"Lighting!X135","v":0},{"$f":"Lighting!Y135","v":""},{"$f":"Lighting!AA135","v":""},{"$f":"Lighting!AC135","v":""},{"$f":"Lighting!AF135","v":""},{"$f":"Lighting!AG135","v":0},{"$f":"Lighting!AH135","v":0},{"$f":"Lighting!AI135","v":0}]
[0,{"$f":"Lighting!B136","v":128},{"$f":"Lighting!C136","v":0},{"$f":"Lighting!D136","v":0},{"$f":"Lighting!F136","v":0},{"$f":"Lighting!G136","v":0},{"$f":"Lighting!H136","v":0},{"$f":"Lighting!I136","v":0},{"$f":"Lighting!J136","v":0},{"$f":"Lighting!K136","v":0},{"$f":"Lighting!L136","v":0},{"$f":"Lighting!N136","v":0},{"$f":"Lighting!O136","v":0},{"$f":"Lighting!R136","v":0},{"$f":"Lighting!S136","v":0},{"$f":"Lighting!U136","v":""},{"$f":"Lighting!V136","v":""},{"$f":"Lighting!W136","v":""},{"$f":"Lighting!X136","v":0},{"$f":"Lighting!Y136","v":""},{"$f":"Lighting!AA136","v":""},{"$f":"Lighting!AC136","v":""},{"$f":"Lighting!AF136","v":""},{"$f":"Lighting!AG136","v":0},{"$f":"Lighting!AH136","v":0},{"$f":"Lighting!AI136","v":0}]
[0,{"$f":"Lighting!B137","v":129},{"$f":"Lighting!C137","v":0},{"$f":"Lighting!D137","v":0},{"$f":"Lighting!F137","v":0},{"$f":"Lighting!G137","v":0},{"$f":"Lighting!H137","v":0},{"$f":"Lighting!I137","v":0},{"$f":"Lighting!J137","v":0},{"$f":"Lighting!K137","v":0},{"$f":"Lighting!L137","v":0},{"$f":"Lighting!N137","v":0},{"$f":"Lighting!O137","v":0},{"$f":"Lighting!R137","v":0},{"$f":"Lighting!S137","v":0},{"$f":"Lighting!U137","v":""},{"$f":"Lighting!V137","v":""},{"$f":"Lighting!W137","v":""},{"$f":"Lighting!X137","v":0},{"$f":"Lighting!Y137","v":""},{"$f":"Lighting!AA137","v":""},{"$f":"Lighting!AC137","v":""},{"$f":"Lighting!AF137","v":""},{"$f":"Lighting!AG137","v":0},{"$f":"Lighting!AH137","v":0},{"$f":"Lighting!AI137","v":0}]
[{"$f":"IF(G294=0,0,1)","v":0},{"$f":"Lighting!B138","v":130},{"$f":"Lighting!C138","v":0},{"$f":"Lighting!D138","v":0},{"$f":"Lighting!F138","v":0},{"$f":"Lighting!G138","v":0},{"$f":"Lighting!H138","v":0},{"$f":"Lighting!I138","v":0},{"$f":"Lighting!J138","v":0},{"$f":"Lighting!K138","v":0},{"$f":"Lighting!L138","v":0},{"$f":"Lighting!N138","v":0},{"$f":"Lighting!O138","v":0},{"$f":"Lighting!R138","v":0},{"$f":"Lighting!S138","v":0},{"$f":"Lighting!U138","v":""},{"$f":"Lighting!V138","v":""},{"$f":"Lighting!W138","v":""},{"$f":"Lighting!X138","v":0},{"$f":"Lighting!Y138","v":""},{"$f":"Lighting!AA138","v":""},{"$f":"Lighting!AC138","v":""},{"$f":"Lighting!AF138","v":""},{"$f":"Lighting!AG138","v":0},{"$f":"Lighting!AH138","v":0},{"$f":"Lighting!AI138","v":0}]
[0,{"$f":"Lighting!B139","v":131},{"$f":"Lighting!C139","v":0},{"$f":"Lighting!D139","v":0},{"$f":"Lighting!F139","v":0},{"$f":"Lighting!G139","v":0},{"$f":"Lighting!H139","v":0},{"$f":"Lighting!I139","v":0},{"$f":"Lighting!J139","v":0},{"$f":"Lighting!K139","v":0},{"$f":"Lighting!L139","v":0},{"$f":"Lighting!N139","v":0},{"$f":"Lighting!O139","v":0},{"$f":"Lighting!R139","v":0},{"$f":"Lighting!S139","v":0},{"$f":"Lighting!U139","v":""},{"$f":"Lighting!V139","v":""},{"$f":"Lighting!W139","v":""},{"$f":"Lighting!X139","v":0},{"$f":"Lighting!Y139","v":""},{"$f":"Lighting!AA139","v":""},{"$f":"Lighting!AC139","v":""},{"$f":"Lighting!AF139","v":""},{"$f":"Lighting!AG139","v":0},{"$f":"Lighting!AH139","v":0},{"$f":"Lighting!AI139","v":0}]
[0,{"$f":"Lighting!B140","v":132},{"$f":"Lighting!C140","v":0},{"$f":"Lighting!D140","v":0},{"$f":"Lighting!F140","v":0},{"$f":"Lighting!G140","v":0},{"$f":"Lighting!H140","v":0},{"$f":"Lighting!I140","v":0},{"$f":"Lighting!J140","v":0},{"$f":"Lighting!K140","v":0},{"$f":"Lighting!L140","v":0},{"$f":"Lighting!N140","v":0},{"$f":"Lighting!O140","v":0},{"$f":"Lighting!R140","v":0},{"$f":"Lighting!S140","v":0},{"$f":"Lighting!U140","v":""},{"$f":"Lighting!V140","v":""},{"$f":"Lighting!W140","v":""},{"$f":"Lighting!X140","v":0},{"$f":"Lighting!Y140","v":""},{"$f":"Lighting!AA140","v":""},{"$f":"Lighting!AC140","v":""},{"$f":"Lighting!AF140","v":""},{"$f":"Lighting!AG140","v":0},{"$f":"Lighting!AH140","v":0},{"$f":"Lighting!AI140","v":0}]
[0,{"$f":"Lighting!B141","v":133},{"$f":"Lighting!C141","v":0},{"$f":"Lighting!D141","v":0},{"$f":"Lighting!F141","v":0},{"$f":"Lighting!G141","v":0},{"$f":"Lighting!H141","v":0},{"$f":"Lighting!I141","v":0},{"$f":"Lighting!J141","v":0},{"$f":"Lighting!K141","v":0},{"$f":"Lighting!L141","v":0},{"$f":"Lighting!N141","v":0},{"$f":"Lighting!O141","v":0},{"$f":"Lighting!R141","v":0},{"$f":"Lighting!S141","v":0},{"$f":"Lighting!U141","v":""},{"$f":"Lighting!V141","v":""},{"$f":"Lighting!W141","v":""},{"$f":"Lighting!X141","v":0},{"$f":"Lighting!Y141","v":""},{"$f":"Lighting!AA141","v":""},{"$f":"Lighting!AC141","v":""},{"$f":"Lighting!AF141","v":""},{"$f":"Lighting!AG141","v":0},{"$f":"Lighting!AH141","v":0},{"$f":"Lighting!AI141","v":0}]
[0,{"$f":"Lighting!B142","v":134},{"$f":"Lighting!C142","v":0},{"$f":"Lighting!D142","v":0},{"$f":"Lighting!F142","v":0},{"$f":"Lighting!G142","v":0},{"$f":"Lighting!H142","v":0},{"$f":"Lighting!I142","v":0},{"$f":"Lighting!J142","v":0},{"$f":"Lighting!K142","v":0},{"$f":"Lighting!L142","v":0},{"$f":"Lighting!N142","v":0},{"$f":"Lighting!O142","v":0},{"$f":"Lighting!R142","v":0},{"$f":"Lighting!S142","v":0},{"$f":"Lighting!U142","v":""},{"$f":"Lighting!V142","v":""},{"$f":"Lighting!W142","v":""},{"$f":"Lighting!X142","v":0},{"$f":"Lighting!Y142","v":""},{"$f":"Lighting!AA142","v":""},{"$f":"Lighting!AC142","v":""},{"$f":"Lighting!AF142","v":""},{"$f":"Lighting!AG142","v":0},{"$f":"Lighting!AH142","v":0},{"$f":"Lighting!AI142","v":0}]
[0,{"$f":"Lighting!B143","v":135},{"$f":"Lighting!C143","v":0},{"$f":"Lighting!D143","v":0},{"$f":"Lighting!F143","v":0},{"$f":"Lighting!G143","v":0},{"$f":"Lighting!H143","v":0},{"$f":"Lighting!I143","v":0},{"$f":"Lighting!J143","v":0},{"$f":"Lighting!K143","v":0},{"$f":"Lighting!L143","v":0},{"$f":"Lighting!N143","v":0},{"$f":"Lighting!O143","v":0},{"$f":"Lighting!R143","v":0},{"$f":"Lighting!S143","v":0},{"$f":"Lighting!U143","v":""},{"$f":"Lighting!V143","v":""},{"$f":"Lighting!W143","v":""},{"$f":"Lighting!X143","v":0},{"$f":"Lighting!Y143","v":""},{"$f":"Lighting!AA143","v":""},{"$f":"Lighting!AC143","v":""},{"$f":"Lighting!AF143","v":""},{"$f":"Lighting!AG143","v":0},{"$f":"Lighting!AH143","v":0},{"$f":"Lighting!AI143","v":0}]
[0,{"$f":"Lighting!B144","v":136},{"$f":"Lighting!C144","v":0},{"$f":"Lighting!D144","v":0},{"$f":"Lighting!F144","v":0},{"$f":"Lighting!G144","v":0},{"$f":"Lighting!H144","v":0},{"$f":"Lighting!I144","v":0},{"$f":"Lighting!J144","v":0},{"$f":"Lighting!K144","v":0},{"$f":"Lighting!L144","v":0},{"$f":"Lighting!N144","v":0},{"$f":"Lighting!O144","v":0},{"$f":"Lighting!R144","v":0},{"$f":"Lighting!S144","v":0},{"$f":"Lighting!U144","v":""},{"$f":"Lighting!V144","v":""},{"$f":"Lighting!W144","v":""},{"$f":"Lighting!X144","v":0},{"$f":"Lighting!Y144","v":""},{"$f":"Lighting!AA144","v":""},{"$f":"Lighting!AC144","v":""},{"$f":"Lighting!AF144","v":""},{"$f":"Lighting!AG144","v":0},{"$f":"Lighting!AH144","v":0},{"$f":"Lighting!AI144","v":0}]
[0,{"$f":"Lighting!B145","v":137},{"$f":"Lighting!C145","v":0},{"$f":"Lighting!D145","v":0},{"$f":"Lighting!F145","v":0},{"$f":"Lighting!G145","v":0},{"$f":"Lighting!H145","v":0},{"$f":"Lighting!I145","v":0},{"$f":"Lighting!J145","v":0},{"$f":"Lighting!K145","v":0},{"$f":"Lighting!L145","v":0},{"$f":"Lighting!N145","v":0},{"$f":"Lighting!O145","v":0},{"$f":"Lighting!R145","v":0},{"$f":"Lighting!S145","v":0},{"$f":"Lighting!U145","v":""},{"$f":"Lighting!V145","v":""},{"$f":"Lighting!W145","v":""},{"$f":"Lighting!X145","v":0},{"$f":"Lighting!Y145","v":""},{"$f":"Lighting!AA145","v":""},{"$f":"Lighting!AC145","v":""},{"$f":"Lighting!AF145","v":""},{"$f":"Lighting!AG145","v":0},{"$f":"Lighting!AH145","v":0},{"$f":"Lighting!AI145","v":0}]
[0,{"$f":"Lighting!B146","v":138},{"$f":"Lighting!C146","v":0},{"$f":"Lighting!D146","v":0},{"$f":"Lighting!F146","v":0},{"$f":"Lighting!G146","v":0},{"$f":"Lighting!H146","v":0},{"$f":"Lighting!I146","v":0},{"$f":"Lighting!J146","v":0},{"$f":"Lighting!K146","v":0},{"$f":"Lighting!L146","v":0},{"$f":"Lighting!N146","v":0},{"$f":"Lighting!O146","v":0},{"$f":"Lighting!R146","v":0},{"$f":"Lighting!S146","v":0},{"$f":"Lighting!U146","v":""},{"$f":"Lighting!V146","v":""},{"$f":"Lighting!W146","v":""},{"$f":"Lighting!X146","v":0},{"$f":"Lighting!Y146","v":""},{"$f":"Lighting!AA146","v":""},{"$f":"Lighting!AC146","v":""},{"$f":"Lighting!AF146","v":""},{"$f":"Lighting!AG146","v":0},{"$f":"Lighting!AH146","v":0},{"$f":"Lighting!AI146","v":0}]
[0,{"$f":"Lighting!B147","v":139},{"$f":"Lighting!C147","v":0},{"$f":"Lighting!D147","v":0},{"$f":"Lighting!F147","v":0},{"$f":"Lighting!G147","v":0},{"$f":"Lighting!H147","v":0},{"$f":"Lighting!I147","v":0},{"$f":"Lighting!J147","v":0},{"$f":"Lighting!K147","v":0},{"$f":"Lighting!L147","v":0},{"$f":"Lighting!N147","v":0},{"$f":"Lighting!O147","v":0},{"$f":"Lighting!R147","v":0},{"$f":"Lighting!S147","v":0},{"$f":"Lighting!U147","v":""},{"$f":"Lighting!V147","v":""},{"$f":"Lighting!W147","v":""},{"$f":"Lighting!X147","v":0},{"$f":"Lighting!Y147","v":""},{"$f":"Lighting!AA147","v":""},{"$f":"Lighting!AC147","v":""},{"$f":"Lighting!AF147","v":""},{"$f":"Lighting!AG147","v":0},{"$f":"Lighting!AH147","v":0},{"$f":"Lighting!AI147","v":0}]
[0,{"$f":"Lighting!B148","v":140},{"$f":"Lighting!C148","v":0},{"$f":"Lighting!D148","v":0},{"$f":"Lighting!F148","v":0},{"$f":"Lighting!G148","v":0},{"$f":"Lighting!H148","v":0},{"$f":"Lighting!I148","v":0},{"$f":"Lighting!J148","v":0},{"$f":"Lighting!K148","v":0},{"$f":"Lighting!L148","v":0},{"$f":"Lighting!N148","v":0},{"$f":"Lighting!O148","v":0},{"$f":"Lighting!R148","v":0},{"$f":"Lighting!S148","v":0},{"$f":"Lighting!U148","v":""},{"$f":"Lighting!V148","v":""},{"$f":"Lighting!W148","v":""},{"$f":"Lighting!X148","v":0},{"$f":"Lighting!Y148","v":""},{"$f":"Lighting!AA148","v":""},{"$f":"Lighting!AC148","v":""},{"$f":"Lighting!AF148","v":""},{"$f":"Lighting!AG148","v":0},{"$f":"Lighting!AH148","v":0},{"$f":"Lighting!AI148","v":0}]
[0,{"$f":"Lighting!B149","v":141},{"$f":"Lighting!C149","v":0},{"$f":"Lighting!D149","v":0},{"$f":"Lighting!F149","v":0},{"$f":"Lighting!G149","v":0},{"$f":"Lighting!H149","v":0},{"$f":"Lighting!I149","v":0},{"$f":"Lighting!J149","v":0},{"$f":"Lighting!K149","v":0},{"$f":"Lighting!L149","v":0},{"$f":"Lighting!N149","v":0},{"$f":"Lighting!O149","v":0},{"$f":"Lighting!R149","v":0},{"$f":"Lighting!S149","v":0},{"$f":"Lighting!U149","v":""},{"$f":"Lighting!V149","v":""},{"$f":"Lighting!W149","v":""},{"$f":"Lighting!X149","v":0},{"$f":"Lighting!Y149","v":""},{"$f":"Lighting!AA149","v":""},{"$f":"Lighting!AC149","v":""},{"$f":"Lighting!AF149","v":""},{"$f":"Lighting!AG149","v":0},{"$f":"Lighting!AH149","v":0},{"$f":"Lighting!AI149","v":0}]
[0,{"$f":"Lighting!B150","v":142},{"$f":"Lighting!C150","v":0},{"$f":"Lighting!D150","v":0},{"$f":"Lighting!F150","v":0},{"$f":"Lighting!G150","v":0},{"$f":"Lighting!H150","v":0},{"$f":"Lighting!I150","v":0},{"$f":"Lighting!J150","v":0},{"$f":"Lighting!K150","v":0},{"$f":"Lighting!L150","v":0},{"$f":"Lighting!N150","v":0},{"$f":"Lighting!O150","v":0},{"$f":"Lighting!R150","v":0},{"$f":"Lighting!S150","v":0},{"$f":"Lighting!U150","v":""},{"$f":"Lighting!V150","v":""},{"$f":"Lighting!W150","v":""},{"$f":"Lighting!X150","v":0},{"$f":"Lighting!Y150","v":""},{"$f":"Lighting!AA150","v":""},{"$f":"Lighting!AC150","v":""},{"$f":"Lighting!AF150","v":""},{"$f":"Lighting!AG150","v":0},{"$f":"Lighting!AH150","v":0},{"$f":"Lighting!AI150","v":0}]
[0,{"$f":"Lighting!B151","v":143},{"$f":"Lighting!C151","v":0},{"$f":"Lighting!D151","v":0},{"$f":"Lighting!F151","v":0},{"$f":"Lighting!G151","v":0},{"$f":"Lighting!H151","v":0},{"$f":"Lighting!I151","v":0},{"$f":"Lighting!J151","v":0},{"$f":"Lighting!K151","v":0},{"$f":"Lighting!L151","v":0},{"$f":"Lighting!N151","v":0},{"$f":"Lighting!O151","v":0},{"$f":"Lighting!R151","v":0},{"$f":"Lighting!S151","v":0},{"$f":"Lighting!U151","v":""},{"$f":"Lighting!V151","v":""},{"$f":"Lighting!W151","v":""},{"$f":"Lighting!X151","v":0},{"$f":"Lighting!Y151","v":""},{"$f":"Lighting!AA151","v":""},{"$f":"Lighting!AC151","v":""},{"$f":"Lighting!AF151","v":""},{"$f":"Lighting!AG151","v":0},{"$f":"Lighting!AH151","v":0},{"$f":"Lighting!AI151","v":0}]
[0,{"$f":"Lighting!B152","v":144},{"$f":"Lighting!C152","v":0},{"$f":"Lighting!D152","v":0},{"$f":"Lighting!F152","v":0},{"$f":"Lighting!G152","v":0},{"$f":"Lighting!H152","v":0},{"$f":"Lighting!I152","v":0},{"$f":"Lighting!J152","v":0},{"$f":"Lighting!K152","v":0},{"$f":"Lighting!L152","v":0},{"$f":"Lighting!N152","v":0},{"$f":"Lighting!O152","v":0},{"$f":"Lighting!R152","v":0},{"$f":"Lighting!S152","v":0},{"$f":"Lighting!U152","v":""},{"$f":"Lighting!V152","v":""},{"$f":"Lighting!W152","v":""},{"$f":"Lighting!X152","v":0},{"$f":"Lighting!Y152","v":""},{"$f":"Lighting!AA152","v":""},{"$f":"Lighting!AC152","v":""},{"$f":"Lighting!AF152","v":""},{"$f":"Lighting!AG152","v":0},{"$f":"Lighting!AH152","v":0},{"$f":"Lighting!AI152","v":0}]
[0,{"$f":"Lighting!B153","v":145},{"$f":"Lighting!C153","v":0},{"$f":"Lighting!D153","v":0},{"$f":"Lighting!F153","v":0},{"$f":"Lighting!G153","v":0},{"$f":"Lighting!H153","v":0},{"$f":"Lighting!I153","v":0},{"$f":"Lighting!J153","v":0},{"$f":"Lighting!K153","v":0},{"$f":"Lighting!L153","v":0},{"$f":"Lighting!N153","v":0},{"$f":"Lighting!O153","v":0},{"$f":"Lighting!R153","v":0},{"$f":"Lighting!S153","v":0},{"$f":"Lighting!U153","v":""},{"$f":"Lighting!V153","v":""},{"$f":"Lighting!W153","v":""},{"$f":"Lighting!X153","v":0},{"$f":"Lighting!Y153","v":""},{"$f":"Lighting!AA153","v":""},{"$f":"Lighting!AC153","v":""},{"$f":"Lighting!AF153","v":""},{"$f":"Lighting!AG153","v":0},{"$f":"Lighting!AH153","v":0},{"$f":"Lighting!AI153","v":0}]
[0,{"$f":"Lighting!B154","v":146},{"$f":"Lighting!C154","v":0},{"$f":"Lighting!D154","v":0},{"$f":"Lighting!F154","v":0},{"$f":"Lighting!G154","v":0},{"$f":"Lighting!H154","v":0},{"$f":"Lighting!I154","v":0},{"$f":"Lighting!J154","v":0},{"$f":"Lighting!K154","v":0},{"$f":"Lighting!L154","v":0},{"$f":"Lighting!N154","v":0},{"$f":"Lighting!O154","v":0},{"$f":"Lighting!R154","v":0},{"$f":"Lighting!S154","v":0},{"$f":"Lighting!U154","v":""},{"$f":"Lighting!V154","v":""},{"$f":"Lighting!W154","v":""},{"$f":"Lighting!X154","v":0},{"$f":"Lighting!Y154","v":""},{"$f":"Lighting!AA154","v":""},{"$f":"Lighting!AC154","v":""},{"$f":"Lighting!AF154","v":""},{"$f":"Lighting!AG154","v":0},{"$f":"Lighting!AH154","v":0},{"$f":"Lighting!AI154","v":0}]
[0,{"$f":"Lighting!B155","v":147},{"$f":"Lighting!C155","v":0},{"$f":"Lighting!D155","v":0},{"$f":"Lighting!F155","v":0},{"$f":"Lighting!G155","v":0},{"$f":"Lighting!H155","v":0},{"$f":"Lighting!I155","v":0},{"$f":"Lighting!J155","v":0},{"$f":"Lighting!K155","v":0},{"$f":"Lighting!L155","v":0},{"$f":"Lighting!N155","v":0},{"$f":"Lighting!O155","v":0},{"$f":"Lighting!R155","v":0},{"$f":"Lighting!S155","v":0},{"$f":"Lighting!U155","v":""},{"$f":"Lighting!V155","v":""},{"$f":"Lighting!W155","v":""},{"$f":"Lighting!X155","v":0},{"$f":"Lighting!Y155","v":""},{"$f":"Lighting!AA155","v":""},{"$f":"Lighting!AC155","v":""},{"$f":"Lighting!AF155","v":""},{"$f":"Lighting!AG155","v":0},{"$f":"Lighting!AH155","v":0},{"$f":"Lighting!AI155","v":0}]
[0,{"$f":"Lighting!B156","v":148},{"$f":"Lighting!C156","v":0},{"$f":"Lighting!D156","v":0},{"$f":"Lighting!F156","v":0},{"$f":"Lighting!G156","v":0},{"$f":"Lighting!H156","v":0},{"$f":"Lighting!I156","v":0},{"$f":"Lighting!J156","v":0},{"$f":"Lighting!K156","v":0},{"$f":"Lighting!L156","v":0},{"$f":"Lighting!N156","v":0},{"$f":"Lighting!O156","v":0},{"$f":"Lighting!R156","v":0},{"$f":"Lighting!S156","v":0},{"$f":"Lighting!U156","v":""},{"$f":"Lighting!V156","v":""},{"$f":"Lighting!W156","v":""},{"$f":"Lighting!X156","v":0},{"$f":"Lighting!Y156","v":""},{"$f":"Lighting!AA156","v":""},{"$f":"Lighting!AC156","v":""},{"$f":"Lighting!AF156","v":""},{"$f":"Lighting!AG156","v":0},{"$f":"Lighting!AH156","v":0},{"$f":"Lighting!AI156","v":0}]
[0,{"$f":"Lighting!B157","v":149},{"$f":"Lighting!C157","v":0},{"$f":"Lighting!D157","v":0},{"$f":"Lighting!F157","v":0},{"$f":"Lighting!G157","v":0},{"$f":"Lighting!H157","v":0},{"$f":"Lighting!I157","v":0},{"$f":"Lighting!J157","v":0},{"$f":"Lighting!K157","v":0},{"$f":"Lighting!L157","v":0},{"$f":"Lighting!N157","v":0},{"$f":"Lighting!O157","v":0},{"$f":"Lighting!R157","v":0},{"$f":"Lighting!S157","v":0},{"$f":"Lighting!U157","v":""},{"$f":"Lighting!V157","v":""},{"$f":"Lighting!W157","v":""},{"$f":"Lighting!X157","v":0},{"$f":"Lighting!Y157","v":""},{"$f":"Lighting!AA157","v":""},{"$f":"Lighting!AC157","v":""},{"$f":"Lighting!AF157","v":""},{"$f":"Lighting!AG157","v":0},{"$f":"Lighting!AH157","v":0},{"$f":"Lighting!AI157","v":0}]
[0,{"$f":"Lighting!B158","v":150},{"$f":"Lighting!C158","v":0},{"$f":"Lighting!D158","v":0},{"$f":"Lighting!F158","v":0},{"$f":"Lighting!G158","v":0},{"$f":"Lighting!H158","v":0},{"$f":"Lighting!I158","v":0},{"$f":"Lighting!J158","v":0},{"$f":"Lighting!K158","v":0},{"$f":"Lighting!L158","v":0},{"$f":"Lighting!N158","v":0},{"$f":"Lighting!O158","v":0},{"$f":"Lighting!R158","v":0},{"$f":"Lighting!S158","v":0},{"$f":"Lighting!U158","v":""},{"$f":"Lighting!V158","v":""},{"$f":"Lighting!W158","v":""},{"$f":"Lighting!X158","v":0},{"$f":"Lighting!Y158","v":""},{"$f":"Lighting!AA158","v":""},{"$f":"Lighting!AC158","v":""},{"$f":"Lighting!AF158","v":""},{"$f":"Lighting!AG158","v":0},{"$f":"Lighting!AH158","v":0},{"$f":"Lighting!AI158","v":0}]
[0,{"$f":"Lighting!B159","v":151},{"$f":"Lighting!C159","v":0},{"$f":"Lighting!D159","v":0},{"$f":"Lighting!F159","v":0},{"$f":"Lighting!G159","v":0},{"$f":"Lighting!H159","v":0},{"$f":"Lighting!I159","v":0},{"$f":"Lighting!J159","v":0},{"$f":"Lighting!K159","v":0},{"$f":"Lighting!L159","v":0},{"$f":"Lighting!N159","v":0},{"$f":"Lighting!O159","v":0},{"$f":"Lighting!R159","v":0},{"$f":"Lighting!S159","v":0},{"$f":"Lighting!U159","v":""},{"$f":"Lighting!V159","v":""},{"$f":"Lighting!W159","v":""},{"$f":"Lighting!X159","v":0},{"$f":"Lighting!Y159","v":""},{"$f":"Lighting!AA159","v":""},{"$f":"Lighting!AC159","v":""},{"$f":"Lighting!AF159","v":""},{"$f":"Lighting!AG159","v":0},{"$f":"Lighting!AH159","v":0},{"$f":"Lighting!AI159","v":0}]
[0,{"$f":"Lighting!B160","v":152},{"$f":"Lighting!C160","v":0},{"$f":"Lighting!D160","v":0},{"$f":"Lighting!F160","v":0},{"$f":"Lighting!G160","v":0},{"$f":"Lighting!H160","v":0},{"$f":"Lighting!I160","v":0},{"$f":"Lighting!J160","v":0},{"$f":"Lighting!K160","v":0},{"$f":"Lighting!L160","v":0},{"$f":"Lighting!N160","v":0},{"$f":"Lighting!O160","v":0},{"$f":"Lighting!R160","v":0},{"$f":"Lighting!S160","v":0},{"$f":"Lighting!U160","v":""},{"$f":"Lighting!V160","v":""},{"$f":"Lighting!W160","v":""},{"$f":"Lighting!X160","v":0},{"$f":"Lighting!Y160","v":""},{"$f":"Lighting!AA160","v":""},{"$f":"Lighting!AC160","v":""},{"$f":"Lighting!AF160","v":""},{"$f":"Lighting!AG160","v":0},{"$f":"Lighting!AH160","v":0},{"$f":"Lighting!AI160","v":0}]
[0,{"$f":"Lighting!B161","v":153},{"$f":"Lighting!C161","v":0},{"$f":"Lighting!D161","v":0},{"$f":"Lighting!F161","v":0},{"$f":"Lighting!G161","v":0},{"$f":"Lighting!H161","v":0},{"$f":"Lighting!I161","v":0},{"$f":"Lighting!J161","v":0},{"$f":"Lighting!K161","v":0},{"$f":"Lighting!L161","v":0},{"$f":"Lighting!N161","v":0},{"$f":"Lighting!O161","v":0},{"$f":"Lighting!R161","v":0},{"$f":"Lighting!S161","v":0},{"$f":"Lighting!U161","v":""},{"$f":"Lighting!V161","v":""},{"$f":"Lighting!W161","v":""},{"$f":"Lighting!X161","v":0},{"$f":"Lighting!Y161","v":""},{"$f":"Lighting!AA161","v":""},{"$f":"Lighting!AC161","v":""},{"$f":"Lighting!AF161","v":""},{"$f":"Lighting!AG161","v":0},{"$f":"Lighting!AH161","v":0},{"$f":"Lighting!AI161","v":0}]
[0,{"$f":"Lighting!B162","v":154},{"$f":"Lighting!C162","v":0},{"$f":"Lighting!D162","v":0},{"$f":"Lighting!F162","v":0},{"$f":"Lighting!G162","v":0},{"$f":"Lighting!H162","v":0},{"$f":"Lighting!I162","v":0},{"$f":"Lighting!J162","v":0},{"$f":"Lighting!K162","v":0},{"$f":"Lighting!L162","v":0},{"$f":"Lighting!N162","v":0},{"$f":"Lighting!O162","v":0},{"$f":"Lighting!R162","v":0},{"$f":"Lighting!S162","v":0},{"$f":"Lighting!U162","v":""},{"$f":"Lighting!V162","v":""},{"$f":"Lighting!W162","v":""},{"$f":"Lighting!X162","v":0},{"$f":"Lighting!Y162","v":""},{"$f":"Lighting!AA162","v":""},{"$f":"Lighting!AC162","v":""},{"$f":"Lighting!AF162","v":""},{"$f":"Lighting!AG162","v":0},{"$f":"Lighting!AH162","v":0},{"$f":"Lighting!AI162","v":0}]
[0,{"$f":"Lighting!B163","v":155},{"$f":"Lighting!C163","v":0},{"$f":"Lighting!D163","v":0},{"$f":"Lighting!F163","v":0},{"$f":"Lighting!G163","v":0},{"$f":"Lighting!H163","v":0},{"$f":"Lighting!I163","v":0},{"$f":"Lighting!J163","v":0},{"$f":"Lighting!K163","v":0},{"$f":"Lighting!L163","v":0},{"$f":"Lighting!N163","v":0},{"$f":"Lighting!O163","v":0},{"$f":"Lighting!R163","v":0},{"$f":"Lighting!S163","v":0},{"$f":"Lighting!U163","v":""},{"$f":"Lighting!V163","v":""},{"$f":"Lighting!W163","v":""},{"$f":"Lighting!X163","v":0},{"$f":"Lighting!Y163","v":""},{"$f":"Lighting!AA163","v":""},{"$f":"Lighting!AC163","v":""},{"$f":"Lighting!AF163","v":""},{"$f":"Lighting!AG163","v":0},{"$f":"Lighting!AH163","v":0},{"$f":"Lighting!AI163","v":0}]
[0,{"$f":"Lighting!B164","v":156},{"$f":"Lighting!C164","v":0},{"$f":"Lighting!D164","v":0},{"$f":"Lighting!F164","v":0},{"$f":"Lighting!G164","v":0},{"$f":"Lighting!H164","v":0},{"$f":"Lighting!I164","v":0},{"$f":"Lighting!J164","v":0},{"$f":"Lighting!K164","v":0},{"$f":"Lighting!L164","v":0},{"$f":"Lighting!N164","v":0},{"$f":"Lighting!O164","v":0},{"$f":"Lighting!R164","v":0},{"$f":"Lighting!S164","v":0},{"$f":"Lighting!U164","v":""},{"$f":"Lighting!V164","v":""},{"$f":"Lighting!W164","v":""},{"$f":"Lighting!X164","v":0},{"$f":"Lighting!Y164","v":""},{"$f":"Lighting!AA164","v":""},{"$f":"Lighting!AC164","v":""},{"$f":"Lighting!AF164","v":""},{"$f":"Lighting!AG164","v":0},{"$f":"Lighting!AH164","v":0},{"$f":"Lighting!AI164","v":0}]
[0,{"$f":"Lighting!B165","v":157},{"$f":"Lighting!C165","v":0},{"$f":"Lighting!D165","v":0},{"$f":"Lighting!F165","v":0},{"$f":"Lighting!G165","v":0},{"$f":"Lighting!H165","v":0},{"$f":"Lighting!I165","v":0},{"$f":"Lighting!J165","v":0},{"$f":"Lighting!K165","v":0},{"$f":"Lighting!L165","v":0},{"$f":"Lighting!N165","v":0},{"$f":"Lighting!O165","v":0},{"$f":"Lighting!R165","v":0},{"$f":"Lighting!S165","v":0},{"$f":"Lighting!U165","v":""},{"$f":"Lighting!V165","v":""},{"$f":"Lighting!W165","v":""},{"$f":"Lighting!X165","v":0},{"$f":"Lighting!Y165","v":""},{"$f":"Lighting!AA165","v":""},{"$f":"Lighting!AC165","v":""},{"$f":"Lighting!AF165","v":""},{"$f":"Lighting!AG165","v":0},{"$f":"Lighting!AH165","v":0},{"$f":"Lighting!AI165","v":0}]
[0,{"$f":"Lighting!B166","v":158},{"$f":"Lighting!C166","v":0},{"$f":"Lighting!D166","v":0},{"$f":"Lighting!F166","v":0},{"$f":"Lighting!G166","v":0},{"$f":"Lighting!H166","v":0},{"$f":"Lighting!I166","v":0},{"$f":"Lighting!J166","v":0},{"$f":"Lighting!K166","v":0},{"$f":"Lighting!L166","v":0},{"$f":"Lighting!N166","v":0},{"$f":"Lighting!O166","v":0},{"$f":"Lighting!R166","v":0},{"$f":"Lighting!S166","v":0},{"$f":"Lighting!U166","v":""},{"$f":"Lighting!V166","v":""},{"$f":"Lighting!W166","v":""},{"$f":"Lighting!X166","v":0},{"$f":"Lighting!Y166","v":""},{"$f":"Lighting!AA166","v":""},{"$f":"Lighting!AC166","v":""},{"$f":"Lighting!AF166","v":""},{"$f":"Lighting!AG166","v":0},{"$f":"Lighting!AH166","v":0},{"$f":"Lighting!AI166","v":0}]
[0,{"$f":"Lighting!B167","v":159},{"$f":"Lighting!C167","v":0},{"$f":"Lighting!D167","v":0},{"$f":"Lighting!F167","v":0},{"$f":"Lighting!G167","v":0},{"$f":"Lighting!H167","v":0},{"$f":"Lighting!I167","v":0},{"$f":"Lighting!J167","v":0},{"$f":"Lighting!K167","v":0},{"$f":"Lighting!L167","v":0},{"$f":"Lighting!N167","v":0},{"$f":"Lighting!O167","v":0},{"$f":"Lighting!R167","v":0},{"$f":"Lighting!S167","v":0},{"$f":"Lighting!U167","v":""},{"$f":"Lighting!V167","v":""},{"$f":"Lighting!W167","v":""},{"$f":"Lighting!X167","v":0},{"$f":"Lighting!Y167","v":""},{"$f":"Lighting!AA167","v":""},{"$f":"Lighting!AC167","v":""},{"$f":"Lighting!AF167","v":""},{"$f":"Lighting!AG167","v":0},{"$f":"Lighting!AH167","v":0},{"$f":"Lighting!AI167","v":0}]
[0,{"$f":"Lighting!B168","v":160},{"$f":"Lighting!C168","v":0},{"$f":"Lighting!D168","v":0},{"$f":"Lighting!F168","v":0},{"$f":"Lighting!G168","v":0},{"$f":"Lighting!H168","v":0},{"$f":"Lighting!I168","v":0},{"$f":"Lighting!J168","v":0},{"$f":"Lighting!K168","v":0},{"$f":"Lighting!L168","v":0},{"$f":"Lighting!N168","v":0},{"$f":"Lighting!O168","v":0},{"$f":"Lighting!R168","v":0},{"$f":"Lighting!S168","v":0},{"$f":"Lighting!U168","v":""},{"$f":"Lighting!V168","v":""},{"$f":"Lighting!W168","v":""},{"$f":"Lighting!X168","v":0},{"$f":"Lighting!Y168","v":""},{"$f":"Lighting!AA168","v":""},{"$f":"Lighting!AC168","v":""},{"$f":"Lighting!AF168","v":""},{"$f":"Lighting!AG168","v":0},{"$f":"Lighting!AH168","v":0},{"$f":"Lighting!AI168","v":0}]
[0,{"$f":"Lighting!B169","v":161},{"$f":"Lighting!C169","v":0},{"$f":"Lighting!D169","v":0},{"$f":"Lighting!F169","v":0},{"$f":"Lighting!G169","v":0},{"$f":"Lighting!H169","v":0},{"$f":"Lighting!I169","v":0},{"$f":"Lighting!J169","v":0},{"$f":"Lighting!K169","v":0},{"$f":"Lighting!L169","v":0},{"$f":"Lighting!N169","v":0},{"$f":"Lighting!O169","v":0},{"$f":"Lighting!R169","v":0},{"$f":"Lighting!S169","v":0},{"$f":"Lighting!U169","v":""},{"$f":"Lighting!V169","v":""},{"$f":"Lighting!W169","v":""},{"$f":"Lighting!X169","v":0},{"$f":"Lighting!Y169","v":""},{"$f":"Lighting!AA169","v":""},{"$f":"Lighting!AC169","v":""},{"$f":"Lighting!AF169","v":""},{"$f":"Lighting!AG169","v":0},{"$f":"Lighting!AH169","v":0},{"$f":"Lighting!AI169","v":0}]
[0,{"$f":"Lighting!B170","v":162},{"$f":"Lighting!C170","v":0},{"$f":"Lighting!D170","v":0},{"$f":"Lighting!F170","v":0},{"$f":"Lighting!G170","v":0},{"$f":"Lighting!H170","v":0},{"$f":"Lighting!I170","v":0},{"$f":"Lighting!J170","v":0},{"$f":"Lighting!K170","v":0},{"$f":"Lighting!L170","v":0},{"$f":"Lighting!N170","v":0},{"$f":"Lighting!O170","v":0},{"$f":"Lighting!R170","v":0},{"$f":"Lighting!S170","v":0},{"$f":"Lighting!U170","v":""},{"$f":"Lighting!V170","v":""},{"$f":"Lighting!W170","v":""},{"$f":"Lighting!X170","v":0},{"$f":"Lighting!Y170","v":""},{"$f":"Lighting!AA170","v":""},{"$f":"Lighting!AC170","v":""},{"$f":"Lighting!AF170","v":""},{"$f":"Lighting!AG170","v":0},{"$f":"Lighting!AH170","v":0},{"$f":"Lighting!AI170","v":0}]
[0,{"$f":"Lighting!B171","v":163},{"$f":"Lighting!C171","v":0},{"$f":"Lighting!D171","v":0},{"$f":"Lighting!F171","v":0},{"$f":"Lighting!G171","v":0},{"$f":"Lighting!H171","v":0},{"$f":"Lighting!I171","v":0},{"$f":"Lighting!J171","v":0},{"$f":"Lighting!K171","v":0},{"$f":"Lighting!L171","v":0},{"$f":"Lighting!N171","v":0},{"$f":"Lighting!O171","v":0},{"$f":"Lighting!R171","v":0},{"$f":"Lighting!S171","v":0},{"$f":"Lighting!U171","v":""},{"$f":"Lighting!V171","v":""},{"$f":"Lighting!W171","v":""},{"$f":"Lighting!X171","v":0},{"$f":"Lighting!Y171","v":""},{"$f":"Lighting!AA171","v":""},{"$f":"Lighting!AC171","v":""},{"$f":"Lighting!AF171","v":""},{"$f":"Lighting!AG171","v":0},{"$f":"Lighting!AH171","v":0},{"$f":"Lighting!AI171","v":0}]
[0,{"$f":"Lighting!B172","v":164},{"$f":"Lighting!C172","v":0},{"$f":"Lighting!D172","v":0},{"$f":"Lighting!F172","v":0},{"$f":"Lighting!G172","v":0},{"$f":"Lighting!H172","v":0},{"$f":"Lighting!I172","v":0},{"$f":"Lighting!J172","v":0},{"$f":"Lighting!K172","v":0},{"$f":"Lighting!L172","v":0},{"$f":"Lighting!N172","v":0},{"$f":"Lighting!O172","v":0},{"$f":"Lighting!R172","v":0},{"$f":"Lighting!S172","v":0},{"$f":"Lighting!U172","v":""},{"$f":"Lighting!V172","v":""},{"$f":"Lighting!W172","v":""},{"$f":"Lighting!X172","v":0},{"$f":"Lighting!Y172","v":""},{"$f":"Lighting!AA172","v":""},{"$f":"Lighting!AC172","v":""},{"$f":"Lighting!AF172","v":""},{"$f":"Lighting!AG172","v":0},{"$f":"Lighting!AH172","v":0},{"$f":"Lighting!AI172","v":0}]
[0,{"$f":"Lighting!B173","v":165},{"$f":"Lighting!C173","v":0},{"$f":"Lighting!D173","v":0},{"$f":"Lighting!F173","v":0},{"$f":"Lighting!G173","v":0},{"$f":"Lighting!H173","v":0},{"$f":"Lighting!I173","v":0},{"$f":"Lighting!J173","v":0},{"$f":"Lighting!K173","v":0},{"$f":"Lighting!L173","v":0},{"$f":"Lighting!N173","v":0},{"$f":"Lighting!O173","v":0},{"$f":"Lighting!R173","v":0},{"$f":"Lighting!S173","v":0},{"$f":"Lighting!U173","v":""},{"$f":"Lighting!V173","v":""},{"$f":"Lighting!W173","v":""},{"$f":"Lighting!X173","v":0},{"$f":"Lighting!Y173","v":""},{"$f":"Lighting!AA173","v":""},{"$f":"Lighting!AC173","v":""},{"$f":"Lighting!AF173","v":""},{"$f":"Lighting!AG173","v":0},{"$f":"Lighting!AH173","v":0},{"$f":"Lighting!AI173","v":0}]
[0,{"$f":"Lighting!B174","v":166},{"$f":"Lighting!C174","v":0},{"$f":"Lighting!D174","v":0},{"$f":"Lighting!F174","v":0},{"$f":"Lighting!G174","v":0},{"$f":"Lighting!H174","v":0},{"$f":"Lighting!I174","v":0},{"$f":"Lighting!J174","v":0},{"$f":"Lighting!K174","v":0},{"$f":"Lighting!L174","v":0},{"$f":"Lighting!N174","v":0},{"$f":"Lighting!O174","v":0},{"$f":"Lighting!R174","v":0},{"$f":"Lighting!S174","v":0},{"$f":"Lighting!U174","v":""},{"$f":"Lighting!V174","v":""},{"$f":"Lighting!W174","v":""},{"$f":"Lighting!X174","v":0},{"$f":"Lighting!Y174","v":""},{"$f":"Lighting!AA174","v":""},{"$f":"Lighting!AC174","v":""},{"$f":"Lighting!AF174","v":""},{"$f":"Lighting!AG174","v":0},{"$f":"Lighting!AH174","v":0},{"$f":"Lighting!AI174","v":0}]
[0,{"$f":"Lighting!B175","v":167},{"$f":"Lighting!C175","v":0},{"$f":"Lighting!D175","v":0},{"$f":"Lighting!F175","v":0},{"$f":"Lighting!G175","v":0},{"$f":"Lighting!H175","v":0},{"$f":"Lighting!I175","v":0},{"$f":"Lighting!J175","v":0},{"$f":"Lighting!K175","v":0},{"$f":"Lighting!L175","v":0},{"$f":"Lighting!N175","v":0},{"$f":"Lighting!O175","v":0},{"$f":"Lighting!R175","v":0},{"$f":"Lighting!S175","v":0},{"$f":"Lighting!U175","v":""},{"$f":"Lighting!V175","v":""},{"$f":"Lighting!W175","v":""},{"$f":"Lighting!X175","v":0},{"$f":"Lighting!Y175","v":""},{"$f":"Lighting!AA175","v":""},{"$f":"Lighting!AC175","v":""},{"$f":"Lighting!AF175","v":""},{"$f":"Lighting!AG175","v":0},{"$f":"Lighting!AH175","v":0},{"$f":"Lighting!AI175","v":0}]
[0,{"$f":"Lighting!B176","v":168},{"$f":"Lighting!C176","v":0},{"$f":"Lighting!D176","v":0},{"$f":"Lighting!F176","v":0},{"$f":"Lighting!G176","v":0},{"$f":"Lighting!H176","v":0},{"$f":"Lighting!I176","v":0},{"$f":"Lighting!J176","v":0},{"$f":"Lighting!K176","v":0},{"$f":"Lighting!L176","v":0},{"$f":"Lighting!N176","v":0},{"$f":"Lighting!O176","v":0},{"$f":"Lighting!R176","v":0},{"$f":"Lighting!S176","v":0},{"$f":"Lighting!U176","v":""},{"$f":"Lighting!V176","v":""},{"$f":"Lighting!W176","v":""},{"$f":"Lighting!X176","v":0},{"$f":"Lighting!Y176","v":""},{"$f":"Lighting!AA176","v":""},{"$f":"Lighting!AC176","v":""},{"$f":"Lighting!AF176","v":""},{"$f":"Lighting!AG176","v":0},{"$f":"Lighting!AH176","v":0},{"$f":"Lighting!AI176","v":0}]
[0,{"$f":"Lighting!B177","v":169},{"$f":"Lighting!C177","v":0},{"$f":"Lighting!D177","v":0},{"$f":"Lighting!F177","v":0},{"$f":"Lighting!G177","v":0},{"$f":"Lighting!H177","v":0},{"$f":"Lighting!I177","v":0},{"$f":"Lighting!J177","v":0},{"$f":"Lighting!K177","v":0},{"$f":"Lighting!L177","v":0},{"$f":"Lighting!N177","v":0},{"$f":"Lighting!O177","v":0},{"$f":"Lighting!R177","v":0},{"$f":"Lighting!S177","v":0},{"$f":"Lighting!U177","v":""},{"$f":"Lighting!V177","v":""},{"$f":"Lighting!W177","v":""},{"$f":"Lighting!X177","v":0},{"$f":"Lighting!Y177","v":""},{"$f":"Lighting!AA177","v":""},{"$f":"Lighting!AC177","v":""},{"$f":"Lighting!AF177","v":""},{"$f":"Lighting!AG177","v":0},{"$f":"Lighting!AH177","v":0},{"$f":"Lighting!AI177","v":0}]
[0,{"$f":"Lighting!B178","v":170},{"$f":"Lighting!C178","v":0},{"$f":"Lighting!D178","v":0},{"$f":"Lighting!F178","v":0},{"$f":"Lighting!G178","v":0},{"$f":"Lighting!H178","v":0},{"$f":"Lighting!I178","v":0},{"$f":"Lighting!J178","v":0},{"$f":"Lighting!K178","v":0},{"$f":"Lighting!L178","v":0},{"$f":"Lighting!N178","v":0},{"$f":"Lighting!O178","v":0},{"$f":"Lighting!R178","v":0},{"$f":"Lighting!S178","v":0},{"$f":"Lighting!U178","v":""},{"$f":"Lighting!V178","v":""},{"$f":"Lighting!W178","v":""},{"$f":"Lighting!X178","v":0},{"$f":"Lighting!Y178","v":""},{"$f":"Lighting!AA178","v":""},{"$f":"Lighting!AC178","v":""},{"$f":"Lighting!AF178","v":""},{"$f":"Lighting!AG178","v":0},{"$f":"Lighting!AH178","v":0},{"$f":"Lighting!AI178","v":0}]
[0,{"$f":"Lighting!B179","v":171},{"$f":"Lighting!C179","v":0},{"$f":"Lighting!D179","v":0},{"$f":"Lighting!F179","v":0},{"$f":"Lighting!G179","v":0},{"$f":"Lighting!H179","v":0},{"$f":"Lighting!I179","v":0},{"$f":"Lighting!J179","v":0},{"$f":"Lighting!K179","v":0},{"$f":"Lighting!L179","v":0},{"$f":"Lighting!N179","v":0},{"$f":"Lighting!O179","v":0},{"$f":"Lighting!R179","v":0},{"$f":"Lighting!S179","v":0},{"$f":"Lighting!U179","v":""},{"$f":"Lighting!V179","v":""},{"$f":"Lighting!W179","v":""},{"$f":"Lighting!X179","v":0},{"$f":"Lighting!Y179","v":""},{"$f":"Lighting!AA179","v":""},{"$f":"Lighting!AC179","v":""},{"$f":"Lighting!AF179","v":""},{"$f":"Lighting!AG179","v":0},{"$f":"Lighting!AH179","v":0},{"$f":"Lighting!AI179","v":0}]
[0,{"$f":"Lighting!B180","v":172},{"$f":"Lighting!C180","v":0},{"$f":"Lighting!D180","v":0},{"$f":"Lighting!F180","v":0},{"$f":"Lighting!G180","v":0},{"$f":"Lighting!H180","v":0},{"$f":"Lighting!I180","v":0},{"$f":"Lighting!J180","v":0},{"$f":"Lighting!K180","v":0},{"$f":"Lighting!L180","v":0},{"$f":"Lighting!N180","v":0},{"$f":"Lighting!O180","v":0},{"$f":"Lighting!R180","v":0},{"$f":"Lighting!S180","v":0},{"$f":"Lighting!U180","v":""},{"$f":"Lighting!V180","v":""},{"$f":"Lighting!W180","v":""},{"$f":"Lighting!X180","v":0},{"$f":"Lighting!Y180","v":""},{"$f":"Lighting!AA180","v":""},{"$f":"Lighting!AC180","v":""},{"$f":"Lighting!AF180","v":""},{"$f":"Lighting!AG180","v":0},{"$f":"Lighting!AH180","v":0},{"$f":"Lighting!AI180","v":0}]
[0,{"$f":"Lighting!B181","v":173},{"$f":"Lighting!C181","v":0},{"$f":"Lighting!D181","v":0},{"$f":"Lighting!F181","v":0},{"$f":"Lighting!G181","v":0},{"$f":"Lighting!H181","v":0},{"$f":"Lighting!I181","v":0},{"$f":"Lighting!J181","v":0},{"$f":"Lighting!K181","v":0},{"$f":"Lighting!L181","v":0},{"$f":"Lighting!N181","v":0},{"$f":"Lighting!O181","v":0},{"$f":"Lighting!R181","v":0},{"$f":"Lighting!S181","v":0},{"$f":"Lighting!U181","v":""},{"$f":"Lighting!V181","v":""},{"$f":"Lighting!W181","v":""},{"$f":"Lighting!X181","v":0},{"$f":"Lighting!Y181","v":""},{"$f":"Lighting!AA181","v":""},{"$f":"Lighting!AC181","v":""},{"$f":"Lighting!AF181","v":""},{"$f":"Lighting!AG181","v":0},{"$f":"Lighting!AH181","v":0},{"$f":"Lighting!AI181","v":0}]
[0,{"$f":"Lighting!B182","v":174},{"$f":"Lighting!C182","v":0},{"$f":"Lighting!D182","v":0},{"$f":"Lighting!F182","v":0},{"$f":"Lighting!G182","v":0},{"$f":"Lighting!H182","v":0},{"$f":"Lighting!I182","v":0},{"$f":"Lighting!J182","v":0},{"$f":"Lighting!K182","v":0},{"$f":"Lighting!L182","v":0},{"$f":"Lighting!N182","v":0},{"$f":"Lighting!O182","v":0},{"$f":"Lighting!R182","v":0},{"$f":"Lighting!S182","v":0},{"$f":"Lighting!U182","v":""},{"$f":"Lighting!V182","v":""},{"$f":"Lighting!W182","v":""},{"$f":"Lighting!X182","v":0},{"$f":"Lighting!Y182","v":""},{"$f":"Lighting!AA182","v":""},{"$f":"Lighting!AC182","v":""},{"$f":"Lighting!AF182","v":""},{"$f":"Lighting!AG182","v":0},{"$f":"Lighting!AH182","v":0},{"$f":"Lighting!AI182","v":0}]
[0,{"$f":"Lighting!B183","v":175},{"$f":"Lighting!C183","v":0},{"$f":"Lighting!D183","v":0},{"$f":"Lighting!F183","v":0},{"$f":"Lighting!G183","v":0},{"$f":"Lighting!H183","v":0},{"$f":"Lighting!I183","v":0},{"$f":"Lighting!J183","v":0},{"$f":"Lighting!K183","v":0},{"$f":"Lighting!L183","v":0},{"$f":"Lighting!N183","v":0},{"$f":"Lighting!O183","v":0},{"$f":"Lighting!R183","v":0},{"$f":"Lighting!S183","v":0},{"$f":"Lighting!U183","v":""},{"$f":"Lighting!V183","v":""},{"$f":"Lighting!W183","v":""},{"$f":"Lighting!X183","v":0},{"$f":"Lighting!Y183","v":""},{"$f":"Lighting!AA183","v":""},{"$f":"Lighting!AC183","v":""},{"$f":"Lighting!AF183","v":""},{"$f":"Lighting!AG183","v":0},{"$f":"Lighting!AH183","v":0},{"$f":"Lighting!AI183","v":0}]
[0,{"$f":"Lighting!B184","v":176},{"$f":"Lighting!C184","v":0},{"$f":"Lighting!D184","v":0},{"$f":"Lighting!F184","v":0},{"$f":"Lighting!G184","v":0},{"$f":"Lighting!H184","v":0},{"$f":"Lighting!I184","v":0},{"$f":"Lighting!J184","v":0},{"$f":"Lighting!K184","v":0},{"$f":"Lighting!L184","v":0},{"$f":"Lighting!N184","v":0},{"$f":"Lighting!O184","v":0},{"$f":"Lighting!R184","v":0},{"$f":"Lighting!S184","v":0},{"$f":"Lighting!U184","v":""},{"$f":"Lighting!V184","v":""},{"$f":"Lighting!W184","v":""},{"$f":"Lighting!X184","v":0},{"$f":"Lighting!Y184","v":""},{"$f":"Lighting!AA184","v":""},{"$f":"Lighting!AC184","v":""},{"$f":"Lighting!AF184","v":""},{"$f":"Lighting!AG184","v":0},{"$f":"Lighting!AH184","v":0},{"$f":"Lighting!AI184","v":0}]
[0,{"$f":"Lighting!B185","v":177},{"$f":"Lighting!C185","v":0},{"$f":"Lighting!D185","v":0},{"$f":"Lighting!F185","v":0},{"$f":"Lighting!G185","v":0},{"$f":"Lighting!H185","v":0},{"$f":"Lighting!I185","v":0},{"$f":"Lighting!J185","v":0},{"$f":"Lighting!K185","v":0},{"$f":"Lighting!L185","v":0},{"$f":"Lighting!N185","v":0},{"$f":"Lighting!O185","v":0},{"$f":"Lighting!R185","v":0},{"$f":"Lighting!S185","v":0},{"$f":"Lighting!U185","v":""},{"$f":"Lighting!V185","v":""},{"$f":"Lighting!W185","v":""},{"$f":"Lighting!X185","v":0},{"$f":"Lighting!Y185","v":""},{"$f":"Lighting!AA185","v":""},{"$f":"Lighting!AC185","v":""},{"$f":"Lighting!AF185","v":""},{"$f":"Lighting!AG185","v":0},{"$f":"Lighting!AH185","v":0},{"$f":"Lighting!AI185","v":0}]
[0,{"$f":"Lighting!B186","v":178},{"$f":"Lighting!C186","v":0},{"$f":"Lighting!D186","v":0},{"$f":"Lighting!F186","v":0},{"$f":"Lighting!G186","v":0},{"$f":"Lighting!H186","v":0},{"$f":"Lighting!I186","v":0},{"$f":"Lighting!J186","v":0},{"$f":"Lighting!K186","v":0},{"$f":"Lighting!L186","v":0},{"$f":"Lighting!N186","v":0},{"$f":"Lighting!O186","v":0},{"$f":"Lighting!R186","v":0},{"$f":"Lighting!S186","v":0},{"$f":"Lighting!U186","v":""},{"$f":"Lighting!V186","v":""},{"$f":"Lighting!W186","v":""},{"$f":"Lighting!X186","v":0},{"$f":"Lighting!Y186","v":""},{"$f":"Lighting!AA186","v":""},{"$f":"Lighting!AC186","v":""},{"$f":"Lighting!AF186","v":""},{"$f":"Lighting!AG186","v":0},{"$f":"Lighting!AH186","v":0},{"$f":"Lighting!AI186","v":0}]
[0,{"$f":"Lighting!B187","v":179},{"$f":"Lighting!C187","v":0},{"$f":"Lighting!D187","v":0},{"$f":"Lighting!F187","v":0},{"$f":"Lighting!G187","v":0},{"$f":"Lighting!H187","v":0},{"$f":"Lighting!I187","v":0},{"$f":"Lighting!J187","v":0},{"$f":"Lighting!K187","v":0},{"$f":"Lighting!L187","v":0},{"$f":"Lighting!N187","v":0},{"$f":"Lighting!O187","v":0},{"$f":"Lighting!R187","v":0},{"$f":"Lighting!S187","v":0},{"$f":"Lighting!U187","v":""},{"$f":"Lighting!V187","v":""},{"$f":"Lighting!W187","v":""},{"$f":"Lighting!X187","v":0},{"$f":"Lighting!Y187","v":""},{"$f":"Lighting!AA187","v":""},{"$f":"Lighting!AC187","v":""},{"$f":"Lighting!AF187","v":""},{"$f":"Lighting!AG187","v":0},{"$f":"Lighting!AH187","v":0},{"$f":"Lighting!AI187","v":0}]
[0,{"$f":"Lighting!B188","v":180},{"$f":"Lighting!C188","v":0},{"$f":"Lighting!D188","v":0},{"$f":"Lighting!F188","v":0},{"$f":"Lighting!G188","v":0},{"$f":"Lighting!H188","v":0},{"$f":"Lighting!I188","v":0},{"$f":"Lighting!J188","v":0},{"$f":"Lighting!K188","v":0},{"$f":"Lighting!L188","v":0},{"$f":"Lighting!N188","v":0},{"$f":"Lighting!O188","v":0},{"$f":"Lighting!R188","v":0},{"$f":"Lighting!S188","v":0},{"$f":"Lighting!U188","v":""},{"$f":"Lighting!V188","v":""},{"$f":"Lighting!W188","v":""},{"$f":"Lighting!X188","v":0},{"$f":"Lighting!Y188","v":""},{"$f":"Lighting!AA188","v":""},{"$f":"Lighting!AC188","v":""},{"$f":"Lighting!AF188","v":""},{"$f":"Lighting!AG188","v":0},{"$f":"Lighting!AH188","v":0},{"$f":"Lighting!AI188","v":0}]
[0,{"$f":"Lighting!B189","v":181},{"$f":"Lighting!C189","v":0},{"$f":"Lighting!D189","v":0},{"$f":"Lighting!F189","v":0},{"$f":"Lighting!G189","v":0},{"$f":"Lighting!H189","v":0},{"$f":"Lighting!I189","v":0},{"$f":"Lighting!J189","v":0},{"$f":"Lighting!K189","v":0},{"$f":"Lighting!L189","v":0},{"$f":"Lighting!N189","v":0},{"$f":"Lighting!O189","v":0},{"$f":"Lighting!R189","v":0},{"$f":"Lighting!S189","v":0},{"$f":"Lighting!U189","v":""},{"$f":"Lighting!V189","v":""},{"$f":"Lighting!W189","v":""},{"$f":"Lighting!X189","v":0},{"$f":"Lighting!Y189","v":""},{"$f":"Lighting!AA189","v":""},{"$f":"Lighting!AC189","v":""},{"$f":"Lighting!AF189","v":""},{"$f":"Lighting!AG189","v":0},{"$f":"Lighting!AH189","v":0},{"$f":"Lighting!AI189","v":0}]
[0,{"$f":"Lighting!B190","v":182},{"$f":"Lighting!C190","v":0},{"$f":"Lighting!D190","v":0},{"$f":"Lighting!F190","v":0},{"$f":"Lighting!G190","v":0},{"$f":"Lighting!H190","v":0},{"$f":"Lighting!I190","v":0},{"$f":"Lighting!J190","v":0},{"$f":"Lighting!K190","v":0},{"$f":"Lighting!L190","v":0},{"$f":"Lighting!N190","v":0},{"$f":"Lighting!O190","v":0},{"$f":"Lighting!R190","v":0},{"$f":"Lighting!S190","v":0},{"$f":"Lighting!U190","v":""},{"$f":"Lighting!V190","v":""},{"$f":"Lighting!W190","v":""},{"$f":"Lighting!X190","v":0},{"$f":"Lighting!Y190","v":""},{"$f":"Lighting!AA190","v":""},{"$f":"Lighting!AC190","v":""},{"$f":"Lighting!AF190","v":""},{"$f":"Lighting!AG190","v":0},{"$f":"Lighting!AH190","v":0},{"$f":"Lighting!AI190","v":0}]
[0,{"$f":"Lighting!B191","v":183},{"$f":"Lighting!C191","v":0},{"$f":"Lighting!D191","v":0},{"$f":"Lighting!F191","v":0},{"$f":"Lighting!G191","v":0},{"$f":"Lighting!H191","v":0},{"$f":"Lighting!I191","v":0},{"$f":"Lighting!J191","v":0},{"$f":"Lighting!K191","v":0},{"$f":"Lighting!L191","v":0},{"$f":"Lighting!N191","v":0},{"$f":"Lighting!O191","v":0},{"$f":"Lighting!R191","v":0},{"$f":"Lighting!S191","v":0},{"$f":"Lighting!U191","v":""},{"$f":"Lighting!V191","v":""},{"$f":"Lighting!W191","v":""},{"$f":"Lighting!X191","v":0},{"$f":"Lighting!Y191","v":""},{"$f":"Lighting!AA191","v":""},{"$f":"Lighting!AC191","v":""},{"$f":"Lighting!AF191","v":""},{"$f":"Lighting!AG191","v":0},{"$f":"Lighting!AH191","v":0},{"$f":"Lighting!AI191","v":0}]
[0,{"$f":"Lighting!B192","v":184},{"$f":"Lighting!C192","v":0},{"$f":"Lighting!D192","v":0},{"$f":"Lighting!F192","v":0},{"$f":"Lighting!G192","v":0},{"$f":"Lighting!H192","v":0},{"$f":"Lighting!I192","v":0},{"$f":"Lighting!J192","v":0},{"$f":"Lighting!K192","v":0},{"$f":"Lighting!L192","v":0},{"$f":"Lighting!N192","v":0},{"$f":"Lighting!O192","v":0},{"$f":"Lighting!R192","v":0},{"$f":"Lighting!S192","v":0},{"$f":"Lighting!U192","v":""},{"$f":"Lighting!V192","v":""},{"$f":"Lighting!W192","v":""},{"$f":"Lighting!X192","v":0},{"$f":"Lighting!Y192","v":""},{"$f":"Lighting!AA192","v":""},{"$f":"Lighting!AC192","v":""},{"$f":"Lighting!AF192","v":""},{"$f":"Lighting!AG192","v":0},{"$f":"Lighting!AH192","v":0},{"$f":"Lighting!AI192","v":0}]
[0,{"$f":"Lighting!B193","v":185},{"$f":"Lighting!C193","v":0},{"$f":"Lighting!D193","v":0},{"$f":"Lighting!F193","v":0},{"$f":"Lighting!G193","v":0},{"$f":"Lighting!H193","v":0},{"$f":"Lighting!I193","v":0},{"$f":"Lighting!J193","v":0},{"$f":"Lighting!K193","v":0},{"$f":"Lighting!L193","v":0},{"$f":"Lighting!N193","v":0},{"$f":"Lighting!O193","v":0},{"$f":"Lighting!R193","v":0},{"$f":"Lighting!S193","v":0},{"$f":"Lighting!U193","v":""},{"$f":"Lighting!V193","v":""},{"$f":"Lighting!W193","v":""},{"$f":"Lighting!X193","v":0},{"$f":"Lighting!Y193","v":""},{"$f":"Lighting!AA193","v":""},{"$f":"Lighting!AC193","v":""},{"$f":"Lighting!AF193","v":""},{"$f":"Lighting!AG193","v":0},{"$f":"Lighting!AH193","v":0},{"$f":"Lighting!AI193","v":0}]
[0,{"$f":"Lighting!B194","v":186},{"$f":"Lighting!C194","v":0},{"$f":"Lighting!D194","v":0},{"$f":"Lighting!F194","v":0},{"$f":"Lighting!G194","v":0},{"$f":"Lighting!H194","v":0},{"$f":"Lighting!I194","v":0},{"$f":"Lighting!J194","v":0},{"$f":"Lighting!K194","v":0},{"$f":"Lighting!L194","v":0},{"$f":"Lighting!N194","v":0},{"$f":"Lighting!O194","v":0},{"$f":"Lighting!R194","v":0},{"$f":"Lighting!S194","v":0},{"$f":"Lighting!U194","v":""},{"$f":"Lighting!V194","v":""},{"$f":"Lighting!W194","v":""},{"$f":"Lighting!X194","v":0},{"$f":"Lighting!Y194","v":""},{"$f":"Lighting!AA194","v":""},{"$f":"Lighting!AC194","v":""},{"$f":"Lighting!AF194","v":""},{"$f":"Lighting!AG194","v":0},{"$f":"Lighting!AH194","v":0},{"$f":"Lighting!AI194","v":0}]
[0,{"$f":"Lighting!B195","v":187},{"$f":"Lighting!C195","v":0},{"$f":"Lighting!D195","v":0},{"$f":"Lighting!F195","v":0},{"$f":"Lighting!G195","v":0},{"$f":"Lighting!H195","v":0},{"$f":"Lighting!I195","v":0},{"$f":"Lighting!J195","v":0},{"$f":"Lighting!K195","v":0},{"$f":"Lighting!L195","v":0},{"$f":"Lighting!N195","v":0},{"$f":"Lighting!O195","v":0},{"$f":"Lighting!R195","v":0},{"$f":"Lighting!S195","v":0},{"$f":"Lighting!U195","v":""},{"$f":"Lighting!V195","v":""},{"$f":"Lighting!W195","v":""},{"$f":"Lighting!X195","v":0},{"$f":"Lighting!Y195","v":""},{"$f":"Lighting!AA195","v":""},{"$f":"Lighting!AC195","v":""},{"$f":"Lighting!AF195","v":""},{"$f":"Lighting!AG195","v":0},{"$f":"Lighting!AH195","v":0},{"$f":"Lighting!AI195","v":0}]
[0,{"$f":"Lighting!B196","v":188},{"$f":"Lighting!C196","v":0},{"$f":"Lighting!D196","v":0},{"$f":"Lighting!F196","v":0},{"$f":"Lighting!G196","v":0},{"$f":"Lighting!H196","v":0},{"$f":"Lighting!I196","v":0},{"$f":"Lighting!J196","v":0},{"$f":"Lighting!K196","v":0},{"$f":"Lighting!L196","v":0},{"$f":"Lighting!N196","v":0},{"$f":"Lighting!O196","v":0},{"$f":"Lighting!R196","v":0},{"$f":"Lighting!S196","v":0},{"$f":"Lighting!U196","v":""},{"$f":"Lighting!V196","v":""},{"$f":"Lighting!W196","v":""},{"$f":"Lighting!X196","v":0},{"$f":"Lighting!Y196","v":""},{"$f":"Lighting!AA196","v":""},{"$f":"Lighting!AC196","v":""},{"$f":"Lighting!AF196","v":""},{"$f":"Lighting!AG196","v":0},{"$f":"Lighting!AH196","v":0},{"$f":"Lighting!AI196","v":0}]
[0,{"$f":"Lighting!B197","v":189},{"$f":"Lighting!C197","v":0},{"$f":"Lighting!D197","v":0},{"$f":"Lighting!F197","v":0},{"$f":"Lighting!G197","v":0},{"$f":"Lighting!H197","v":0},{"$f":"Lighting!I197","v":0},{"$f":"Lighting!J197","v":0},{"$f":"Lighting!K197","v":0},{"$f":"Lighting!L197","v":0},{"$f":"Lighting!N197","v":0},{"$f":"Lighting!O197","v":0},{"$f":"Lighting!R197","v":0},{"$f":"Lighting!S197","v":0},{"$f":"Lighting!U197","v":""},{"$f":"Lighting!V197","v":""},{"$f":"Lighting!W197","v":""},{"$f":"Lighting!X197","v":0},{"$f":"Lighting!Y197","v":""},{"$f":"Lighting!AA197","v":""},{"$f":"Lighting!AC197","v":""},{"$f":"Lighting!AF197","v":""},{"$f":"Lighting!AG197","v":0},{"$f":"Lighting!AH197","v":0},{"$f":"Lighting!AI197","v":0}]
[0,{"$f":"Lighting!B198","v":190},{"$f":"Lighting!C198","v":0},{"$f":"Lighting!D198","v":0},{"$f":"Lighting!F198","v":0},{"$f":"Lighting!G198","v":0},{"$f":"Lighting!H198","v":0},{"$f":"Lighting!I198","v":0},{"$f":"Lighting!J198","v":0},{"$f":"Lighting!K198","v":0},{"$f":"Lighting!L198","v":0},{"$f":"Lighting!N198","v":0},{"$f":"Lighting!O198","v":0},{"$f":"Lighting!R198","v":0},{"$f":"Lighting!S198","v":0},{"$f":"Lighting!U198","v":""},{"$f":"Lighting!V198","v":""},{"$f":"Lighting!W198","v":""},{"$f":"Lighting!X198","v":0},{"$f":"Lighting!Y198","v":""},{"$f":"Lighting!AA198","v":""},{"$f":"Lighting!AC198","v":""},{"$f":"Lighting!AF198","v":""},{"$f":"Lighting!AG198","v":0},{"$f":"Lighting!AH198","v":0},{"$f":"Lighting!AI198","v":0}]
[0,{"$f":"Lighting!B199","v":191},{"$f":"Lighting!C199","v":0},{"$f":"Lighting!D199","v":0},{"$f":"Lighting!F199","v":0},{"$f":"Lighting!G199","v":0},{"$f":"Lighting!H199","v":0},{"$f":"Lighting!I199","v":0},{"$f":"Lighting!J199","v":0},{"$f":"Lighting!K199","v":0},{"$f":"Lighting!L199","v":0},{"$f":"Lighting!N199","v":0},{"$f":"Lighting!O199","v":0},{"$f":"Lighting!R199","v":0},{"$f":"Lighting!S199","v":0},{"$f":"Lighting!U199","v":""},{"$f":"Lighting!V199","v":""},{"$f":"Lighting!W199","v":""},{"$f":"Lighting!X199","v":0},{"$f":"Lighting!Y199","v":""},{"$f":"Lighting!AA199","v":""},{"$f":"Lighting!AC199","v":""},{"$f":"Lighting!AF199","v":""},{"$f":"Lighting!AG199","v":0},{"$f":"Lighting!AH199","v":0},{"$f":"Lighting!AI199","v":0}]
[0,{"$f":"Lighting!B200","v":192},{"$f":"Lighting!C200","v":0},{"$f":"Lighting!D200","v":0},{"$f":"Lighting!F200","v":0},{"$f":"Lighting!G200","v":0},{"$f":"Lighting!H200","v":0},{"$f":"Lighting!I200","v":0},{"$f":"Lighting!J200","v":0},{"$f":"Lighting!K200","v":0},{"$f":"Lighting!L200","v":0},{"$f":"Lighting!N200","v":0},{"$f":"Lighting!O200","v":0},{"$f":"Lighting!R200","v":0},{"$f":"Lighting!S200","v":0},{"$f":"Lighting!U200","v":""},{"$f":"Lighting!V200","v":""},{"$f":"Lighting!W200","v":""},{"$f":"Lighting!X200","v":0},{"$f":"Lighting!Y200","v":""},{"$f":"Lighting!AA200","v":""},{"$f":"Lighting!AC200","v":""},{"$f":"Lighting!AF200","v":""},{"$f":"Lighting!AG200","v":0},{"$f":"Lighting!AH200","v":0},{"$f":"Lighting!AI200","v":0}]
[0,{"$f":"Lighting!B201","v":193},{"$f":"Lighting!C201","v":0},{"$f":"Lighting!D201","v":0},{"$f":"Lighting!F201","v":0},{"$f":"Lighting!G201","v":0},{"$f":"Lighting!H201","v":0},{"$f":"Lighting!I201","v":0},{"$f":"Lighting!J201","v":0},{"$f":"Lighting!K201","v":0},{"$f":"Lighting!L201","v":0},{"$f":"Lighting!N201","v":0},{"$f":"Lighting!O201","v":0},{"$f":"Lighting!R201","v":0},{"$f":"Lighting!S201","v":0},{"$f":"Lighting!U201","v":""},{"$f":"Lighting!V201","v":""},{"$f":"Lighting!W201","v":""},{"$f":"Lighting!X201","v":0},{"$f":"Lighting!Y201","v":""},{"$f":"Lighting!AA201","v":""},{"$f":"Lighting!AC201","v":""},{"$f":"Lighting!AF201","v":""},{"$f":"Lighting!AG201","v":0},{"$f":"Lighting!AH201","v":0},{"$f":"Lighting!AI201","v":0}]
[{"$f":"IF(G358=0,0,1)","v":0},{"$f":"Lighting!B202","v":194},{"$f":"Lighting!C202","v":0},{"$f":"Lighting!D202","v":0},{"$f":"Lighting!F202","v":0},{"$f":"Lighting!G202","v":0},{"$f":"Lighting!H202","v":0},{"$f":"Lighting!I202","v":0},{"$f":"Lighting!J202","v":0},{"$f":"Lighting!K202","v":0},{"$f":"Lighting!L202","v":0},{"$f":"Lighting!N202","v":0},{"$f":"Lighting!O202","v":0},{"$f":"Lighting!R202","v":0},{"$f":"Lighting!S202","v":0},{"$f":"Lighting!U202","v":""},{"$f":"Lighting!V202","v":""},{"$f":"Lighting!W202","v":""},{"$f":"Lighting!X202","v":0},{"$f":"Lighting!Y202","v":""},{"$f":"Lighting!AA202","v":""},{"$f":"Lighting!AC202","v":""},{"$f":"Lighting!AF202","v":""},{"$f":"Lighting!AG202","v":0},{"$f":"Lighting!AH202","v":0},{"$f":"Lighting!AI202","v":0}]
[0,{"$f":"Lighting!B203","v":195},{"$f":"Lighting!C203","v":0},{"$f":"Lighting!D203","v":0},{"$f":"Lighting!F203","v":0},{"$f":"Lighting!G203","v":0},{"$f":"Lighting!H203","v":0},{"$f":"Lighting!I203","v":0},{"$f":"Lighting!J203","v":0},{"$f":"Lighting!K203","v":0},{"$f":"Lighting!L203","v":0},{"$f":"Lighting!N203","v":0},{"$f":"Lighting!O203","v":0},{"$f":"Lighting!R203","v":0},{"$f":"Lighting!S203","v":0},{"$f":"Lighting!U203","v":""},{"$f":"Lighting!V203","v":""},{"$f":"Lighting!W203","v":""},{"$f":"Lighting!X203","v":0},{"$f":"Lighting!Y203","v":""},{"$f":"Lighting!AA203","v":""},{"$f":"Lighting!AC203","v":""},{"$f":"Lighting!AF203","v":""},{"$f":"Lighting!AG203","v":0},{"$f":"Lighting!AH203","v":0},{"$f":"Lighting!AI203","v":0}]
[0,{"$f":"Lighting!B204","v":196},{"$f":"Lighting!C204","v":0},{"$f":"Lighting!D204","v":0},{"$f":"Lighting!F204","v":0},{"$f":"Lighting!G204","v":0},{"$f":"Lighting!H204","v":0},{"$f":"Lighting!I204","v":0},{"$f":"Lighting!J204","v":0},{"$f":"Lighting!K204","v":0},{"$f":"Lighting!L204","v":0},{"$f":"Lighting!N204","v":0},{"$f":"Lighting!O204","v":0},{"$f":"Lighting!R204","v":0},{"$f":"Lighting!S204","v":0},{"$f":"Lighting!U204","v":""},{"$f":"Lighting!V204","v":""},{"$f":"Lighting!W204","v":""},{"$f":"Lighting!X204","v":0},{"$f":"Lighting!Y204","v":""},{"$f":"Lighting!AA204","v":""},{"$f":"Lighting!AC204","v":""},{"$f":"Lighting!AF204","v":""},{"$f":"Lighting!AG204","v":0},{"$f":"Lighting!AH204","v":0},{"$f":"Lighting!AI204","v":0}]
[0,{"$f":"Lighting!B205","v":197},{"$f":"Lighting!C205","v":0},{"$f":"Lighting!D205","v":0},{"$f":"Lighting!F205","v":0},{"$f":"Lighting!G205","v":0},{"$f":"Lighting!H205","v":0},{"$f":"Lighting!I205","v":0},{"$f":"Lighting!J205","v":0},{"$f":"Lighting!K205","v":0},{"$f":"Lighting!L205","v":0},{"$f":"Lighting!N205","v":0},{"$f":"Lighting!O205","v":0},{"$f":"Lighting!R205","v":0},{"$f":"Lighting!S205","v":0},{"$f":"Lighting!U205","v":""},{"$f":"Lighting!V205","v":""},{"$f":"Lighting!W205","v":""},{"$f":"Lighting!X205","v":0},{"$f":"Lighting!Y205","v":""},{"$f":"Lighting!AA205","v":""},{"$f":"Lighting!AC205","v":""},{"$f":"Lighting!AF205","v":""},{"$f":"Lighting!AG205","v":0},{"$f":"Lighting!AH205","v":0},{"$f":"Lighting!AI205","v":0}]
[0,{"$f":"Lighting!B206","v":198},{"$f":"Lighting!C206","v":0},{"$f":"Lighting!D206","v":0},{"$f":"Lighting!F206","v":0},{"$f":"Lighting!G206","v":0},{"$f":"Lighting!H206","v":0},{"$f":"Lighting!I206","v":0},{"$f":"Lighting!J206","v":0},{"$f":"Lighting!K206","v":0},{"$f":"Lighting!L206","v":0},{"$f":"Lighting!N206","v":0},{"$f":"Lighting!O206","v":0},{"$f":"Lighting!R206","v":0},{"$f":"Lighting!S206","v":0},{"$f":"Lighting!U206","v":""},{"$f":"Lighting!V206","v":""},{"$f":"Lighting!W206","v":""},{"$f":"Lighting!X206","v":0},{"$f":"Lighting!Y206","v":""},{"$f":"Lighting!AA206","v":""},{"$f":"Lighting!AC206","v":""},{"$f":"Lighting!AF206","v":""},{"$f":"Lighting!AG206","v":0},{"$f":"Lighting!AH206","v":0},{"$f":"Lighting!AI206","v":0}]
[0,{"$f":"Lighting!B207","v":199},{"$f":"Lighting!C207","v":0},{"$f":"Lighting!D207","v":0},{"$f":"Lighting!F207","v":0},{"$f":"Lighting!G207","v":0},{"$f":"Lighting!H207","v":0},{"$f":"Lighting!I207","v":0},{"$f":"Lighting!J207","v":0},{"$f":"Lighting!K207","v":0},{"$f":"Lighting!L207","v":0},{"$f":"Lighting!N207","v":0},{"$f":"Lighting!O207","v":0},{"$f":"Lighting!R207","v":0},{"$f":"Lighting!S207","v":0},{"$f":"Lighting!U207","v":""},{"$f":"Lighting!V207","v":""},{"$f":"Lighting!W207","v":""},{"$f":"Lighting!X207","v":0},{"$f":"Lighting!Y207","v":""},{"$f":"Lighting!AA207","v":""},{"$f":"Lighting!AC207","v":""},{"$f":"Lighting!AF207","v":""},{"$f":"Lighting!AG207","v":0},{"$f":"Lighting!AH207","v":0},{"$f":"Lighting!AI207","v":0}]
[{"$f":"IF(G364=0,0,1)","v":0},{"$f":"Lighting!B208","v":200},{"$f":"Lighting!C208","v":0},{"$f":"Lighting!D208","v":0},{"$f":"Lighting!F208","v":0},{"$f":"Lighting!G208","v":0},{"$f":"Lighting!H208","v":0},{"$f":"Lighting!I208","v":0},{"$f":"Lighting!J208","v":0},{"$f":"Lighting!K208","v":0},{"$f":"Lighting!L208","v":0},{"$f":"Lighting!N208","v":0},{"$f":"Lighting!O208","v":0},{"$f":"Lighting!R208","v":0},{"$f":"Lighting!S208","v":0},{"$f":"Lighting!U208","v":""},{"$f":"Lighting!V208","v":""},{"$f":"Lighting!W208","v":""},{"$f":"Lighting!X208","v":0},{"$f":"Lighting!Y208","v":""},{"$f":"Lighting!AA208","v":""},{"$f":"Lighting!AC208","v":""},{"$f":"Lighting!AF208","v":""},{"$f":"Lighting!AG208","v":0},{"$f":"Lighting!AH208","v":0},{"$f":"Lighting!AI208","v":0}]
[0,{"$f":"Lighting!B209","v":201},{"$f":"Lighting!C209","v":0},{"$f":"Lighting!D209","v":0},{"$f":"Lighting!F209","v":0},{"$f":"Lighting!G209","v":0},{"$f":"Lighting!H209","v":0},{"$f":"Lighting!I209","v":0},{"$f":"Lighting!J209","v":0},{"$f":"Lighting!K209","v":0},{"$f":"Lighting!L209","v":0},{"$f":"Lighting!N209","v":0},{"$f":"Lighting!O209","v":0},{"$f":"Lighting!R209","v":0},{"$f":"Lighting!S209","v":0},{"$f":"Lighting!U209","v":""},{"$f":"Lighting!V209","v":""},{"$f":"Lighting!W209","v":""},{"$f":"Lighting!X209","v":0},{"$f":"Lighting!Y209","v":""},{"$f":"Lighting!AA209","v":""},{"$f":"Lighting!AC209","v":""},{"$f":"Lighting!AF209","v":""},{"$f":"Lighting!AG209","v":0},{"$f":"Lighting!AH209","v":0},{"$f":"Lighting!AI209","v":0}]
[0,{"$f":"Lighting!B210","v":202},{"$f":"Lighting!C210","v":0},{"$f":"Lighting!D210","v":0},{"$f":"Lighting!F210","v":0},{"$f":"Lighting!G210","v":0},{"$f":"Lighting!H210","v":0},{"$f":"Lighting!I210","v":0},{"$f":"Lighting!J210","v":0},{"$f":"Lighting!K210","v":0},{"$f":"Lighting!L210","v":0},{"$f":"Lighting!N210","v":0},{"$f":"Lighting!O210","v":0},{"$f":"Lighting!R210","v":0},{"$f":"Lighting!S210","v":0},{"$f":"Lighting!U210","v":""},{"$f":"Lighting!V210","v":""},{"$f":"Lighting!W210","v":""},{"$f":"Lighting!X210","v":0},{"$f":"Lighting!Y210","v":""},{"$f":"Lighting!AA210","v":""},{"$f":"Lighting!AC210","v":""},{"$f":"Lighting!AF210","v":""},{"$f":"Lighting!AG210","v":0},{"$f":"Lighting!AH210","v":0},{"$f":"Lighting!AI210","v":0}]
[0,{"$f":"Lighting!B211","v":203},{"$f":"Lighting!C211","v":0},{"$f":"Lighting!D211","v":0},{"$f":"Lighting!F211","v":0},{"$f":"Lighting!G211","v":0},{"$f":"Lighting!H211","v":0},{"$f":"Lighting!I211","v":0},{"$f":"Lighting!J211","v":0},{"$f":"Lighting!K211","v":0},{"$f":"Lighting!L211","v":0},{"$f":"Lighting!N211","v":0},{"$f":"Lighting!O211","v":0},{"$f":"Lighting!R211","v":0},{"$f":"Lighting!S211","v":0},{"$f":"Lighting!U211","v":""},{"$f":"Lighting!V211","v":""},{"$f":"Lighting!W211","v":""},{"$f":"Lighting!X211","v":0},{"$f":"Lighting!Y211","v":""},{"$f":"Lighting!AA211","v":""},{"$f":"Lighting!AC211","v":""},{"$f":"Lighting!AF211","v":""},{"$f":"Lighting!AG211","v":0},{"$f":"Lighting!AH211","v":0},{"$f":"Lighting!AI211","v":0}]
[0,{"$f":"Lighting!B212","v":204},{"$f":"Lighting!C212","v":0},{"$f":"Lighting!D212","v":0},{"$f":"Lighting!F212","v":0},{"$f":"Lighting!G212","v":0},{"$f":"Lighting!H212","v":0},{"$f":"Lighting!I212","v":0},{"$f":"Lighting!J212","v":0},{"$f":"Lighting!K212","v":0},{"$f":"Lighting!L212","v":0},{"$f":"Lighting!N212","v":0},{"$f":"Lighting!O212","v":0},{"$f":"Lighting!R212","v":0},{"$f":"Lighting!S212","v":0},{"$f":"Lighting!U212","v":""},{"$f":"Lighting!V212","v":""},{"$f":"Lighting!W212","v":""},{"$f":"Lighting!X212","v":0},{"$f":"Lighting!Y212","v":""},{"$f":"Lighting!AA212","v":""},{"$f":"Lighting!AC212","v":""},{"$f":"Lighting!AF212","v":""},{"$f":"Lighting!AG212","v":0},{"$f":"Lighting!AH212","v":0},{"$f":"Lighting!AI212","v":0}]
[0,{"$f":"Lighting!B213","v":205},{"$f":"Lighting!C213","v":0},{"$f":"Lighting!D213","v":0},{"$f":"Lighting!F213","v":0},{"$f":"Lighting!G213","v":0},{"$f":"Lighting!H213","v":0},{"$f":"Lighting!I213","v":0},{"$f":"Lighting!J213","v":0},{"$f":"Lighting!K213","v":0},{"$f":"Lighting!L213","v":0},{"$f":"Lighting!N213","v":0},{"$f":"Lighting!O213","v":0},{"$f":"Lighting!R213","v":0},{"$f":"Lighting!S213","v":0},{"$f":"Lighting!U213","v":""},{"$f":"Lighting!V213","v":""},{"$f":"Lighting!W213","v":""},{"$f":"Lighting!X213","v":0},{"$f":"Lighting!Y213","v":""},{"$f":"Lighting!AA213","v":""},{"$f":"Lighting!AC213","v":""},{"$f":"Lighting!AF213","v":""},{"$f":"Lighting!AG213","v":0},{"$f":"Lighting!AH213","v":0},{"$f":"Lighting!AI213","v":0}]
[0,{"$f":"Lighting!B214","v":206},{"$f":"Lighting!C214","v":0},{"$f":"Lighting!D214","v":0},{"$f":"Lighting!F214","v":0},{"$f":"Lighting!G214","v":0},{"$f":"Lighting!H214","v":0},{"$f":"Lighting!I214","v":0},{"$f":"Lighting!J214","v":0},{"$f":"Lighting!K214","v":0},{"$f":"Lighting!L214","v":0},{"$f":"Lighting!N214","v":0},{"$f":"Lighting!O214","v":0},{"$f":"Lighting!R214","v":0},{"$f":"Lighting!S214","v":0},{"$f":"Lighting!U214","v":""},{"$f":"Lighting!V214","v":""},{"$f":"Lighting!W214","v":""},{"$f":"Lighting!X214","v":0},{"$f":"Lighting!Y214","v":""},{"$f":"Lighting!AA214","v":""},{"$f":"Lighting!AC214","v":""},{"$f":"Lighting!AF214","v":""},{"$f":"Lighting!AG214","v":0},{"$f":"Lighting!AH214","v":0},{"$f":"Lighting!AI214","v":0}]
[0,{"$f":"Lighting!B215","v":207},{"$f":"Lighting!C215","v":0},{"$f":"Lighting!D215","v":0},{"$f":"Lighting!F215","v":0},{"$f":"Lighting!G215","v":0},{"$f":"Lighting!H215","v":0},{"$f":"Lighting!I215","v":0},{"$f":"Lighting!J215","v":0},{"$f":"Lighting!K215","v":0},{"$f":"Lighting!L215","v":0},{"$f":"Lighting!N215","v":0},{"$f":"Lighting!O215","v":0},{"$f":"Lighting!R215","v":0},{"$f":"Lighting!S215","v":0},{"$f":"Lighting!U215","v":""},{"$f":"Lighting!V215","v":""},{"$f":"Lighting!W215","v":""},{"$f":"Lighting!X215","v":0},{"$f":"Lighting!Y215","v":""},{"$f":"Lighting!AA215","v":""},{"$f":"Lighting!AC215","v":""},{"$f":"Lighting!AF215","v":""},{"$f":"Lighting!AG215","v":0},{"$f":"Lighting!AH215","v":0},{"$f":"Lighting!AI215","v":0}]
[0,{"$f":"Lighting!B216","v":208},{"$f":"Lighting!C216","v":0},{"$f":"Lighting!D216","v":0},{"$f":"Lighting!F216","v":0},{"$f":"Lighting!G216","v":0},{"$f":"Lighting!H216","v":0},{"$f":"Lighting!I216","v":0},{"$f":"Lighting!J216","v":0},{"$f":"Lighting!K216","v":0},{"$f":"Lighting!L216","v":0},{"$f":"Lighting!N216","v":0},{"$f":"Lighting!O216","v":0},{"$f":"Lighting!R216","v":0},{"$f":"Lighting!S216","v":0},{"$f":"Lighting!U216","v":""},{"$f":"Lighting!V216","v":""},{"$f":"Lighting!W216","v":""},{"$f":"Lighting!X216","v":0},{"$f":"Lighting!Y216","v":""},{"$f":"Lighting!AA216","v":""},{"$f":"Lighting!AC216","v":""},{"$f":"Lighting!AF216","v":""},{"$f":"Lighting!AG216","v":0},{"$f":"Lighting!AH216","v":0},{"$f":"Lighting!AI216","v":0}]
[0,{"$f":"Lighting!B217","v":209},{"$f":"Lighting!C217","v":0},{"$f":"Lighting!D217","v":0},{"$f":"Lighting!F217","v":0},{"$f":"Lighting!G217","v":0},{"$f":"Lighting!H217","v":0},{"$f":"Lighting!I217","v":0},{"$f":"Lighting!J217","v":0},{"$f":"Lighting!K217","v":0},{"$f":"Lighting!L217","v":0},{"$f":"Lighting!N217","v":0},{"$f":"Lighting!O217","v":0},{"$f":"Lighting!R217","v":0},{"$f":"Lighting!S217","v":0},{"$f":"Lighting!U217","v":""},{"$f":"Lighting!V217","v":""},{"$f":"Lighting!W217","v":""},{"$f":"Lighting!X217","v":0},{"$f":"Lighting!Y217","v":""},{"$f":"Lighting!AA217","v":""},{"$f":"Lighting!AC217","v":""},{"$f":"Lighting!AF217","v":""},{"$f":"Lighting!AG217","v":0},{"$f":"Lighting!AH217","v":0},{"$f":"Lighting!AI217","v":0}]
[0,{"$f":"Lighting!B218","v":210},{"$f":"Lighting!C218","v":0},{"$f":"Lighting!D218","v":0},{"$f":"Lighting!F218","v":0},{"$f":"Lighting!G218","v":0},{"$f":"Lighting!H218","v":0},{"$f":"Lighting!I218","v":0},{"$f":"Lighting!J218","v":0},{"$f":"Lighting!K218","v":0},{"$f":"Lighting!L218","v":0},{"$f":"Lighting!N218","v":0},{"$f":"Lighting!O218","v":0},{"$f":"Lighting!R218","v":0},{"$f":"Lighting!S218","v":0},{"$f":"Lighting!U218","v":""},{"$f":"Lighting!V218","v":""},{"$f":"Lighting!W218","v":""},{"$f":"Lighting!X218","v":0},{"$f":"Lighting!Y218","v":""},{"$f":"Lighting!AA218","v":""},{"$f":"Lighting!AC218","v":""},{"$f":"Lighting!AF218","v":""},{"$f":"Lighting!AG218","v":0},{"$f":"Lighting!AH218","v":0},{"$f":"Lighting!AI218","v":0}]
[0,{"$f":"Lighting!B219","v":211},{"$f":"Lighting!C219","v":0},{"$f":"Lighting!D219","v":0},{"$f":"Lighting!F219","v":0},{"$f":"Lighting!G219","v":0},{"$f":"Lighting!H219","v":0},{"$f":"Lighting!I219","v":0},{"$f":"Lighting!J219","v":0},{"$f":"Lighting!K219","v":0},{"$f":"Lighting!L219","v":0},{"$f":"Lighting!N219","v":0},{"$f":"Lighting!O219","v":0},{"$f":"Lighting!R219","v":0},{"$f":"Lighting!S219","v":0},{"$f":"Lighting!U219","v":""},{"$f":"Lighting!V219","v":""},{"$f":"Lighting!W219","v":""},{"$f":"Lighting!X219","v":0},{"$f":"Lighting!Y219","v":""},{"$f":"Lighting!AA219","v":""},{"$f":"Lighting!AC219","v":""},{"$f":"Lighting!AF219","v":""},{"$f":"Lighting!AG219","v":0},{"$f":"Lighting!AH219","v":0},{"$f":"Lighting!AI219","v":0}]
[0,{"$f":"Lighting!B220","v":212},{"$f":"Lighting!C220","v":0},{"$f":"Lighting!D220","v":0},{"$f":"Lighting!F220","v":0},{"$f":"Lighting!G220","v":0},{"$f":"Lighting!H220","v":0},{"$f":"Lighting!I220","v":0},{"$f":"Lighting!J220","v":0},{"$f":"Lighting!K220","v":0},{"$f":"Lighting!L220","v":0},{"$f":"Lighting!N220","v":0},{"$f":"Lighting!O220","v":0},{"$f":"Lighting!R220","v":0},{"$f":"Lighting!S220","v":0},{"$f":"Lighting!U220","v":""},{"$f":"Lighting!V220","v":""},{"$f":"Lighting!W220","v":""},{"$f":"Lighting!X220","v":0},{"$f":"Lighting!Y220","v":""},{"$f":"Lighting!AA220","v":""},{"$f":"Lighting!AC220","v":""},{"$f":"Lighting!AF220","v":""},{"$f":"Lighting!AG220","v":0},{"$f":"Lighting!AH220","v":0},{"$f":"Lighting!AI220","v":0}]
[0,{"$f":"Lighting!B221","v":213},{"$f":"Lighting!C221","v":0},{"$f":"Lighting!D221","v":0},{"$f":"Lighting!F221","v":0},{"$f":"Lighting!G221","v":0},{"$f":"Lighting!H221","v":0},{"$f":"Lighting!I221","v":0},{"$f":"Lighting!J221","v":0},{"$f":"Lighting!K221","v":0},{"$f":"Lighting!L221","v":0},{"$f":"Lighting!N221","v":0},{"$f":"Lighting!O221","v":0},{"$f":"Lighting!R221","v":0},{"$f":"Lighting!S221","v":0},{"$f":"Lighting!U221","v":""},{"$f":"Lighting!V221","v":""},{"$f":"Lighting!W221","v":""},{"$f":"Lighting!X221","v":0},{"$f":"Lighting!Y221","v":""},{"$f":"Lighting!AA221","v":""},{"$f":"Lighting!AC221","v":""},{"$f":"Lighting!AF221","v":""},{"$f":"Lighting!AG221","v":0},{"$f":"Lighting!AH221","v":0},{"$f":"Lighting!AI221","v":0}]
[0,{"$f":"Lighting!B222","v":214},{"$f":"Lighting!C222","v":0},{"$f":"Lighting!D222","v":0},{"$f":"Lighting!F222","v":0},{"$f":"Lighting!G222","v":0},{"$f":"Lighting!H222","v":0},{"$f":"Lighting!I222","v":0},{"$f":"Lighting!J222","v":0},{"$f":"Lighting!K222","v":0},{"$f":"Lighting!L222","v":0},{"$f":"Lighting!N222","v":0},{"$f":"Lighting!O222","v":0},{"$f":"Lighting!R222","v":0},{"$f":"Lighting!S222","v":0},{"$f":"Lighting!U222","v":""},{"$f":"Lighting!V222","v":""},{"$f":"Lighting!W222","v":""},{"$f":"Lighting!X222","v":0},{"$f":"Lighting!Y222","v":""},{"$f":"Lighting!AA222","v":""},{"$f":"Lighting!AC222","v":""},{"$f":"Lighting!AF222","v":""},{"$f":"Lighting!AG222","v":0},{"$f":"Lighting!AH222","v":0},{"$f":"Lighting!AI222","v":0}]
[0,{"$f":"Lighting!B223","v":215},{"$f":"Lighting!C223","v":0},{"$f":"Lighting!D223","v":0},{"$f":"Lighting!F223","v":0},{"$f":"Lighting!G223","v":0},{"$f":"Lighting!H223","v":0},{"$f":"Lighting!I223","v":0},{"$f":"Lighting!J223","v":0},{"$f":"Lighting!K223","v":0},{"$f":"Lighting!L223","v":0},{"$f":"Lighting!N223","v":0},{"$f":"Lighting!O223","v":0},{"$f":"Lighting!R223","v":0},{"$f":"Lighting!S223","v":0},{"$f":"Lighting!U223","v":""},{"$f":"Lighting!V223","v":""},{"$f":"Lighting!W223","v":""},{"$f":"Lighting!X223","v":0},{"$f":"Lighting!Y223","v":""},{"$f":"Lighting!AA223","v":""},{"$f":"Lighting!AC223","v":""},{"$f":"Lighting!AF223","v":""},{"$f":"Lighting!AG223","v":0},{"$f":"Lighting!AH223","v":0},{"$f":"Lighting!AI223","v":0}]
[0,{"$f":"Lighting!B224","v":216},{"$f":"Lighting!C224","v":0},{"$f":"Lighting!D224","v":0},{"$f":"Lighting!F224","v":0},{"$f":"Lighting!G224","v":0},{"$f":"Lighting!H224","v":0},{"$f":"Lighting!I224","v":0},{"$f":"Lighting!J224","v":0},{"$f":"Lighting!K224","v":0},{"$f":"Lighting!L224","v":0},{"$f":"Lighting!N224","v":0},{"$f":"Lighting!O224","v":0},{"$f":"Lighting!R224","v":0},{"$f":"Lighting!S224","v":0},{"$f":"Lighting!U224","v":""},{"$f":"Lighting!V224","v":""},{"$f":"Lighting!W224","v":""},{"$f":"Lighting!X224","v":0},{"$f":"Lighting!Y224","v":""},{"$f":"Lighting!AA224","v":""},{"$f":"Lighting!AC224","v":""},{"$f":"Lighting!AF224","v":""},{"$f":"Lighting!AG224","v":0},{"$f":"Lighting!AH224","v":0},{"$f":"Lighting!AI224","v":0}]
[0,{"$f":"Lighting!B225","v":217},{"$f":"Lighting!C225","v":0},{"$f":"Lighting!D225","v":0},{"$f":"Lighting!F225","v":0},{"$f":"Lighting!G225","v":0},{"$f":"Lighting!H225","v":0},{"$f":"Lighting!I225","v":0},{"$f":"Lighting!J225","v":0},{"$f":"Lighting!K225","v":0},{"$f":"Lighting!L225","v":0},{"$f":"Lighting!N225","v":0},{"$f":"Lighting!O225","v":0},{"$f":"Lighting!R225","v":0},{"$f":"Lighting!S225","v":0},{"$f":"Lighting!U225","v":""},{"$f":"Lighting!V225","v":""},{"$f":"Lighting!W225","v":""},{"$f":"Lighting!X225","v":0},{"$f":"Lighting!Y225","v":""},{"$f":"Lighting!AA225","v":""},{"$f":"Lighting!AC225","v":""},{"$f":"Lighting!AF225","v":""},{"$f":"Lighting!AG225","v":0},{"$f":"Lighting!AH225","v":0},{"$f":"Lighting!AI225","v":0}]
[0,{"$f":"Lighting!B226","v":218},{"$f":"Lighting!C226","v":0},{"$f":"Lighting!D226","v":0},{"$f":"Lighting!F226","v":0},{"$f":"Lighting!G226","v":0},{"$f":"Lighting!H226","v":0},{"$f":"Lighting!I226","v":0},{"$f":"Lighting!J226","v":0},{"$f":"Lighting!K226","v":0},{"$f":"Lighting!L226","v":0},{"$f":"Lighting!N226","v":0},{"$f":"Lighting!O226","v":0},{"$f":"Lighting!R226","v":0},{"$f":"Lighting!S226","v":0},{"$f":"Lighting!U226","v":""},{"$f":"Lighting!V226","v":""},{"$f":"Lighting!W226","v":""},{"$f":"Lighting!X226","v":0},{"$f":"Lighting!Y226","v":""},{"$f":"Lighting!AA226","v":""},{"$f":"Lighting!AC226","v":""},{"$f":"Lighting!AF226","v":""},{"$f":"Lighting!AG226","v":0},{"$f":"Lighting!AH226","v":0},{"$f":"Lighting!AI226","v":0}]
[0,{"$f":"Lighting!B227","v":219},{"$f":"Lighting!C227","v":0},{"$f":"Lighting!D227","v":0},{"$f":"Lighting!F227","v":0},{"$f":"Lighting!G227","v":0},{"$f":"Lighting!H227","v":0},{"$f":"Lighting!I227","v":0},{"$f":"Lighting!J227","v":0},{"$f":"Lighting!K227","v":0},{"$f":"Lighting!L227","v":0},{"$f":"Lighting!N227","v":0},{"$f":"Lighting!O227","v":0},{"$f":"Lighting!R227","v":0},{"$f":"Lighting!S227","v":0},{"$f":"Lighting!U227","v":""},{"$f":"Lighting!V227","v":""},{"$f":"Lighting!W227","v":""},{"$f":"Lighting!X227","v":0},{"$f":"Lighting!Y227","v":""},{"$f":"Lighting!AA227","v":""},{"$f":"Lighting!AC227","v":""},{"$f":"Lighting!AF227","v":""},{"$f":"Lighting!AG227","v":0},{"$f":"Lighting!AH227","v":0},{"$f":"Lighting!AI227","v":0}]
[0,{"$f":"Lighting!B228","v":220},{"$f":"Lighting!C228","v":0},{"$f":"Lighting!D228","v":0},{"$f":"Lighting!F228","v":0},{"$f":"Lighting!G228","v":0},{"$f":"Lighting!H228","v":0},{"$f":"Lighting!I228","v":0},{"$f":"Lighting!J228","v":0},{"$f":"Lighting!K228","v":0},{"$f":"Lighting!L228","v":0},{"$f":"Lighting!N228","v":0},{"$f":"Lighting!O228","v":0},{"$f":"Lighting!R228","v":0},{"$f":"Lighting!S228","v":0},{"$f":"Lighting!U228","v":""},{"$f":"Lighting!V228","v":""},{"$f":"Lighting!W228","v":""},{"$f":"Lighting!X228","v":0},{"$f":"Lighting!Y228","v":""},{"$f":"Lighting!AA228","v":""},{"$f":"Lighting!AC228","v":""},{"$f":"Lighting!AF228","v":""},{"$f":"Lighting!AG228","v":0},{"$f":"Lighting!AH228","v":0},{"$f":"Lighting!AI228","v":0}]
[0,{"$f":"Lighting!B229","v":221},{"$f":"Lighting!C229","v":0},{"$f":"Lighting!D229","v":0},{"$f":"Lighting!F229","v":0},{"$f":"Lighting!G229","v":0},{"$f":"Lighting!H229","v":0},{"$f":"Lighting!I229","v":0},{"$f":"Lighting!J229","v":0},{"$f":"Lighting!K229","v":0},{"$f":"Lighting!L229","v":0},{"$f":"Lighting!N229","v":0},{"$f":"Lighting!O229","v":0},{"$f":"Lighting!R229","v":0},{"$f":"Lighting!S229","v":0},{"$f":"Lighting!U229","v":""},{"$f":"Lighting!V229","v":""},{"$f":"Lighting!W229","v":""},{"$f":"Lighting!X229","v":0},{"$f":"Lighting!Y229","v":""},{"$f":"Lighting!AA229","v":""},{"$f":"Lighting!AC229","v":""},{"$f":"Lighting!AF229","v":""},{"$f":"Lighting!AG229","v":0},{"$f":"Lighting!AH229","v":0},{"$f":"Lighting!AI229","v":0}]
[0,{"$f":"Lighting!B230","v":222},{"$f":"Lighting!C230","v":0},{"$f":"Lighting!D230","v":0},{"$f":"Lighting!F230","v":0},{"$f":"Lighting!G230","v":0},{"$f":"Lighting!H230","v":0},{"$f":"Lighting!I230","v":0},{"$f":"Lighting!J230","v":0},{"$f":"Lighting!K230","v":0},{"$f":"Lighting!L230","v":0},{"$f":"Lighting!N230","v":0},{"$f":"Lighting!O230","v":0},{"$f":"Lighting!R230","v":0},{"$f":"Lighting!S230","v":0},{"$f":"Lighting!U230","v":""},{"$f":"Lighting!V230","v":""},{"$f":"Lighting!W230","v":""},{"$f":"Lighting!X230","v":0},{"$f":"Lighting!Y230","v":""},{"$f":"Lighting!AA230","v":""},{"$f":"Lighting!AC230","v":""},{"$f":"Lighting!AF230","v":""},{"$f":"Lighting!AG230","v":0},{"$f":"Lighting!AH230","v":0},{"$f":"Lighting!AI230","v":0}]
[0,{"$f":"Lighting!B231","v":223},{"$f":"Lighting!C231","v":0},{"$f":"Lighting!D231","v":0},{"$f":"Lighting!F231","v":0},{"$f":"Lighting!G231","v":0},{"$f":"Lighting!H231","v":0},{"$f":"Lighting!I231","v":0},{"$f":"Lighting!J231","v":0},{"$f":"Lighting!K231","v":0},{"$f":"Lighting!L231","v":0},{"$f":"Lighting!N231","v":0},{"$f":"Lighting!O231","v":0},{"$f":"Lighting!R231","v":0},{"$f":"Lighting!S231","v":0},{"$f":"Lighting!U231","v":""},{"$f":"Lighting!V231","v":""},{"$f":"Lighting!W231","v":""},{"$f":"Lighting!X231","v":0},{"$f":"Lighting!Y231","v":""},{"$f":"Lighting!AA231","v":""},{"$f":"Lighting!AC231","v":""},{"$f":"Lighting!AF231","v":""},{"$f":"Lighting!AG231","v":0},{"$f":"Lighting!AH231","v":0},{"$f":"Lighting!AI231","v":0}]
[0,{"$f":"Lighting!B232","v":224},{"$f":"Lighting!C232","v":0},{"$f":"Lighting!D232","v":0},{"$f":"Lighting!F232","v":0},{"$f":"Lighting!G232","v":0},{"$f":"Lighting!H232","v":0},{"$f":"Lighting!I232","v":0},{"$f":"Lighting!J232","v":0},{"$f":"Lighting!K232","v":0},{"$f":"Lighting!L232","v":0},{"$f":"Lighting!N232","v":0},{"$f":"Lighting!O232","v":0},{"$f":"Lighting!R232","v":0},{"$f":"Lighting!S232","v":0},{"$f":"Lighting!U232","v":""},{"$f":"Lighting!V232","v":""},{"$f":"Lighting!W232","v":""},{"$f":"Lighting!X232","v":0},{"$f":"Lighting!Y232","v":""},{"$f":"Lighting!AA232","v":""},{"$f":"Lighting!AC232","v":""},{"$f":"Lighting!AF232","v":""},{"$f":"Lighting!AG232","v":0},{"$f":"Lighting!AH232","v":0},{"$f":"Lighting!AI232","v":0}]
[0,{"$f":"Lighting!B233","v":225},{"$f":"Lighting!C233","v":0},{"$f":"Lighting!D233","v":0},{"$f":"Lighting!F233","v":0},{"$f":"Lighting!G233","v":0},{"$f":"Lighting!H233","v":0},{"$f":"Lighting!I233","v":0},{"$f":"Lighting!J233","v":0},{"$f":"Lighting!K233","v":0},{"$f":"Lighting!L233","v":0},{"$f":"Lighting!N233","v":0},{"$f":"Lighting!O233","v":0},{"$f":"Lighting!R233","v":0},{"$f":"Lighting!S233","v":0},{"$f":"Lighting!U233","v":""},{"$f":"Lighting!V233","v":""},{"$f":"Lighting!W233","v":""},{"$f":"Lighting!X233","v":0},{"$f":"Lighting!Y233","v":""},{"$f":"Lighting!AA233","v":""},{"$f":"Lighting!AC233","v":""},{"$f":"Lighting!AF233","v":""},{"$f":"Lighting!AG233","v":0},{"$f":"Lighting!AH233","v":0},{"$f":"Lighting!AI233","v":0}]
[0,{"$f":"Lighting!B234","v":226},{"$f":"Lighting!C234","v":0},{"$f":"Lighting!D234","v":0},{"$f":"Lighting!F234","v":0},{"$f":"Lighting!G234","v":0},{"$f":"Lighting!H234","v":0},{"$f":"Lighting!I234","v":0},{"$f":"Lighting!J234","v":0},{"$f":"Lighting!K234","v":0},{"$f":"Lighting!L234","v":0},{"$f":"Lighting!N234","v":0},{"$f":"Lighting!O234","v":0},{"$f":"Lighting!R234","v":0},{"$f":"Lighting!S234","v":0},{"$f":"Lighting!U234","v":""},{"$f":"Lighting!V234","v":""},{"$f":"Lighting!W234","v":""},{"$f":"Lighting!X234","v":0},{"$f":"Lighting!Y234","v":""},{"$f":"Lighting!AA234","v":""},{"$f":"Lighting!AC234","v":""},{"$f":"Lighting!AF234","v":""},{"$f":"Lighting!AG234","v":0},{"$f":"Lighting!AH234","v":0},{"$f":"Lighting!AI234","v":0}]
[0,{"$f":"Lighting!B235","v":227},{"$f":"Lighting!C235","v":0},{"$f":"Lighting!D235","v":0},{"$f":"Lighting!F235","v":0},{"$f":"Lighting!G235","v":0},{"$f":"Lighting!H235","v":0},{"$f":"Lighting!I235","v":0},{"$f":"Lighting!J235","v":0},{"$f":"Lighting!K235","v":0},{"$f":"Lighting!L235","v":0},{"$f":"Lighting!N235","v":0},{"$f":"Lighting!O235","v":0},{"$f":"Lighting!R235","v":0},{"$f":"Lighting!S235","v":0},{"$f":"Lighting!U235","v":""},{"$f":"Lighting!V235","v":""},{"$f":"Lighting!W235","v":""},{"$f":"Lighting!X235","v":0},{"$f":"Lighting!Y235","v":""},{"$f":"Lighting!AA235","v":""},{"$f":"Lighting!AC235","v":""},{"$f":"Lighting!AF235","v":""},{"$f":"Lighting!AG235","v":0},{"$f":"Lighting!AH235","v":0},{"$f":"Lighting!AI235","v":0}]
[0,{"$f":"Lighting!B236","v":228},{"$f":"Lighting!C236","v":0},{"$f":"Lighting!D236","v":0},{"$f":"Lighting!F236","v":0},{"$f":"Lighting!G236","v":0},{"$f":"Lighting!H236","v":0},{"$f":"Lighting!I236","v":0},{"$f":"Lighting!J236","v":0},{"$f":"Lighting!K236","v":0},{"$f":"Lighting!L236","v":0},{"$f":"Lighting!N236","v":0},{"$f":"Lighting!O236","v":0},{"$f":"Lighting!R236","v":0},{"$f":"Lighting!S236","v":0},{"$f":"Lighting!U236","v":""},{"$f":"Lighting!V236","v":""},{"$f":"Lighting!W236","v":""},{"$f":"Lighting!X236","v":0},{"$f":"Lighting!Y236","v":""},{"$f":"Lighting!AA236","v":""},{"$f":"Lighting!AC236","v":""},{"$f":"Lighting!AF236","v":""},{"$f":"Lighting!AG236","v":0},{"$f":"Lighting!AH236","v":0},{"$f":"Lighting!AI236","v":0}]
[0,{"$f":"Lighting!B237","v":229},{"$f":"Lighting!C237","v":0},{"$f":"Lighting!D237","v":0},{"$f":"Lighting!F237","v":0},{"$f":"Lighting!G237","v":0},{"$f":"Lighting!H237","v":0},{"$f":"Lighting!I237","v":0},{"$f":"Lighting!J237","v":0},{"$f":"Lighting!K237","v":0},{"$f":"Lighting!L237","v":0},{"$f":"Lighting!N237","v":0},{"$f":"Lighting!O237","v":0},{"$f":"Lighting!R237","v":0},{"$f":"Lighting!S237","v":0},{"$f":"Lighting!U237","v":""},{"$f":"Lighting!V237","v":""},{"$f":"Lighting!W237","v":""},{"$f":"Lighting!X237","v":0},{"$f":"Lighting!Y237","v":""},{"$f":"Lighting!AA237","v":""},{"$f":"Lighting!AC237","v":""},{"$f":"Lighting!AF237","v":""},{"$f":"Lighting!AG237","v":0},{"$f":"Lighting!AH237","v":0},{"$f":"Lighting!AI237","v":0}]
[0,{"$f":"Lighting!B238","v":230},{"$f":"Lighting!C238","v":0},{"$f":"Lighting!D238","v":0},{"$f":"Lighting!F238","v":0},{"$f":"Lighting!G238","v":0},{"$f":"Lighting!H238","v":0},{"$f":"Lighting!I238","v":0},{"$f":"Lighting!J238","v":0},{"$f":"Lighting!K238","v":0},{"$f":"Lighting!L238","v":0},{"$f":"Lighting!N238","v":0},{"$f":"Lighting!O238","v":0},{"$f":"Lighting!R238","v":0},{"$f":"Lighting!S238","v":0},{"$f":"Lighting!U238","v":""},{"$f":"Lighting!V238","v":""},{"$f":"Lighting!W238","v":""},{"$f":"Lighting!X238","v":0},{"$f":"Lighting!Y238","v":""},{"$f":"Lighting!AA238","v":""},{"$f":"Lighting!AC238","v":""},{"$f":"Lighting!AF238","v":""},{"$f":"Lighting!AG238","v":0},{"$f":"Lighting!AH238","v":0},{"$f":"Lighting!AI238","v":0}]
[0,{"$f":"Lighting!B239","v":231},{"$f":"Lighting!C239","v":0},{"$f":"Lighting!D239","v":0},{"$f":"Lighting!F239","v":0},{"$f":"Lighting!G239","v":0},{"$f":"Lighting!H239","v":0},{"$f":"Lighting!I239","v":0},{"$f":"Lighting!J239","v":0},{"$f":"Lighting!K239","v":0},{"$f":"Lighting!L239","v":0},{"$f":"Lighting!N239","v":0},{"$f":"Lighting!O239","v":0},{"$f":"Lighting!R239","v":0},{"$f":"Lighting!S239","v":0},{"$f":"Lighting!U239","v":""},{"$f":"Lighting!V239","v":""},{"$f":"Lighting!W239","v":""},{"$f":"Lighting!X239","v":0},{"$f":"Lighting!Y239","v":""},{"$f":"Lighting!AA239","v":""},{"$f":"Lighting!AC239","v":""},{"$f":"Lighting!AF239","v":""},{"$f":"Lighting!AG239","v":0},{"$f":"Lighting!AH239","v":0},{"$f":"Lighting!AI239","v":0}]
[0,{"$f":"Lighting!B240","v":232},{"$f":"Lighting!C240","v":0},{"$f":"Lighting!D240","v":0},{"$f":"Lighting!F240","v":0},{"$f":"Lighting!G240","v":0},{"$f":"Lighting!H240","v":0},{"$f":"Lighting!I240","v":0},{"$f":"Lighting!J240","v":0},{"$f":"Lighting!K240","v":0},{"$f":"Lighting!L240","v":0},{"$f":"Lighting!N240","v":0},{"$f":"Lighting!O240","v":0},{"$f":"Lighting!R240","v":0},{"$f":"Lighting!S240","v":0},{"$f":"Lighting!U240","v":""},{"$f":"Lighting!V240","v":""},{"$f":"Lighting!W240","v":""},{"$f":"Lighting!X240","v":0},{"$f":"Lighting!Y240","v":""},{"$f":"Lighting!AA240","v":""},{"$f":"Lighting!AC240","v":""},{"$f":"Lighting!AF240","v":""},{"$f":"Lighting!AG240","v":0},{"$f":"Lighting!AH240","v":0},{"$f":"Lighting!AI240","v":0}]
[0,{"$f":"Lighting!B241","v":233},{"$f":"Lighting!C241","v":0},{"$f":"Lighting!D241","v":0},{"$f":"Lighting!F241","v":0},{"$f":"Lighting!G241","v":0},{"$f":"Lighting!H241","v":0},{"$f":"Lighting!I241","v":0},{"$f":"Lighting!J241","v":0},{"$f":"Lighting!K241","v":0},{"$f":"Lighting!L241","v":0},{"$f":"Lighting!N241","v":0},{"$f":"Lighting!O241","v":0},{"$f":"Lighting!R241","v":0},{"$f":"Lighting!S241","v":0},{"$f":"Lighting!U241","v":""},{"$f":"Lighting!V241","v":""},{"$f":"Lighting!W241","v":""},{"$f":"Lighting!X241","v":0},{"$f":"Lighting!Y241","v":""},{"$f":"Lighting!AA241","v":""},{"$f":"Lighting!AC241","v":""},{"$f":"Lighting!AF241","v":""},{"$f":"Lighting!AG241","v":0},{"$f":"Lighting!AH241","v":0},{"$f":"Lighting!AI241","v":0}]
[0,{"$f":"Lighting!B242","v":234},{"$f":"Lighting!C242","v":0},{"$f":"Lighting!D242","v":0},{"$f":"Lighting!F242","v":0},{"$f":"Lighting!G242","v":0},{"$f":"Lighting!H242","v":0},{"$f":"Lighting!I242","v":0},{"$f":"Lighting!J242","v":0},{"$f":"Lighting!K242","v":0},{"$f":"Lighting!L242","v":0},{"$f":"Lighting!N242","v":0},{"$f":"Lighting!O242","v":0},{"$f":"Lighting!R242","v":0},{"$f":"Lighting!S242","v":0},{"$f":"Lighting!U242","v":""},{"$f":"Lighting!V242","v":""},{"$f":"Lighting!W242","v":""},{"$f":"Lighting!X242","v":0},{"$f":"Lighting!Y242","v":""},{"$f":"Lighting!AA242","v":""},{"$f":"Lighting!AC242","v":""},{"$f":"Lighting!AF242","v":""},{"$f":"Lighting!AG242","v":0},{"$f":"Lighting!AH242","v":0},{"$f":"Lighting!AI242","v":0}]
[0,{"$f":"Lighting!B243","v":235},{"$f":"Lighting!C243","v":0},{"$f":"Lighting!D243","v":0},{"$f":"Lighting!F243","v":0},{"$f":"Lighting!G243","v":0},{"$f":"Lighting!H243","v":0},{"$f":"Lighting!I243","v":0},{"$f":"Lighting!J243","v":0},{"$f":"Lighting!K243","v":0},{"$f":"Lighting!L243","v":0},{"$f":"Lighting!N243","v":0},{"$f":"Lighting!O243","v":0},{"$f":"Lighting!R243","v":0},{"$f":"Lighting!S243","v":0},{"$f":"Lighting!U243","v":""},{"$f":"Lighting!V243","v":""},{"$f":"Lighting!W243","v":""},{"$f":"Lighting!X243","v":0},{"$f":"Lighting!Y243","v":""},{"$f":"Lighting!AA243","v":""},{"$f":"Lighting!AC243","v":""},{"$f":"Lighting!AF243","v":""},{"$f":"Lighting!AG243","v":0},{"$f":"Lighting!AH243","v":0},{"$f":"Lighting!AI243","v":0}]
[0,{"$f":"Lighting!B244","v":236},{"$f":"Lighting!C244","v":0},{"$f":"Lighting!D244","v":0},{"$f":"Lighting!F244","v":0},{"$f":"Lighting!G244","v":0},{"$f":"Lighting!H244","v":0},{"$f":"Lighting!I244","v":0},{"$f":"Lighting!J244","v":0},{"$f":"Lighting!K244","v":0},{"$f":"Lighting!L244","v":0},{"$f":"Lighting!N244","v":0},{"$f":"Lighting!O244","v":0},{"$f":"Lighting!R244","v":0},{"$f":"Lighting!S244","v":0},{"$f":"Lighting!U244","v":""},{"$f":"Lighting!V244","v":""},{"$f":"Lighting!W244","v":""},{"$f":"Lighting!X244","v":0},{"$f":"Lighting!Y244","v":""},{"$f":"Lighting!AA244","v":""},{"$f":"Lighting!AC244","v":""},{"$f":"Lighting!AF244","v":""},{"$f":"Lighting!AG244","v":0},{"$f":"Lighting!AH244","v":0},{"$f":"Lighting!AI244","v":0}]
[0,{"$f":"Lighting!B245","v":237},{"$f":"Lighting!C245","v":0},{"$f":"Lighting!D245","v":0},{"$f":"Lighting!F245","v":0},{"$f":"Lighting!G245","v":0},{"$f":"Lighting!H245","v":0},{"$f":"Lighting!I245","v":0},{"$f":"Lighting!J245","v":0},{"$f":"Lighting!K245","v":0},{"$f":"Lighting!L245","v":0},{"$f":"Lighting!N245","v":0},{"$f":"Lighting!O245","v":0},{"$f":"Lighting!R245","v":0},{"$f":"Lighting!S245","v":0},{"$f":"Lighting!U245","v":""},{"$f":"Lighting!V245","v":""},{"$f":"Lighting!W245","v":""},{"$f":"Lighting!X245","v":0},{"$f":"Lighting!Y245","v":""},{"$f":"Lighting!AA245","v":""},{"$f":"Lighting!AC245","v":""},{"$f":"Lighting!AF245","v":""},{"$f":"Lighting!AG245","v":0},{"$f":"Lighting!AH245","v":0},{"$f":"Lighting!AI245","v":0}]
[0,{"$f":"Lighting!B246","v":238},{"$f":"Lighting!C246","v":0},{"$f":"Lighting!D246","v":0},{"$f":"Lighting!F246","v":0},{"$f":"Lighting!G246","v":0},{"$f":"Lighting!H246","v":0},{"$f":"Lighting!I246","v":0},{"$f":"Lighting!J246","v":0},{"$f":"Lighting!K246","v":0},{"$f":"Lighting!L246","v":0},{"$f":"Lighting!N246","v":0},{"$f":"Lighting!O246","v":0},{"$f":"Lighting!R246","v":0},{"$f":"Lighting!S246","v":0},{"$f":"Lighting!U246","v":""},{"$f":"Lighting!V246","v":""},{"$f":"Lighting!W246","v":""},{"$f":"Lighting!X246","v":0},{"$f":"Lighting!Y246","v":""},{"$f":"Lighting!AA246","v":""},{"$f":"Lighting!AC246","v":""},{"$f":"Lighting!AF246","v":""},{"$f":"Lighting!AG246","v":0},{"$f":"Lighting!AH246","v":0},{"$f":"Lighting!AI246","v":0}]
[0,{"$f":"Lighting!B247","v":239},{"$f":"Lighting!C247","v":0},{"$f":"Lighting!D247","v":0},{"$f":"Lighting!F247","v":0},{"$f":"Lighting!G247","v":0},{"$f":"Lighting!H247","v":0},{"$f":"Lighting!I247","v":0},{"$f":"Lighting!J247","v":0},{"$f":"Lighting!K247","v":0},{"$f":"Lighting!L247","v":0},{"$f":"Lighting!N247","v":0},{"$f":"Lighting!O247","v":0},{"$f":"Lighting!R247","v":0},{"$f":"Lighting!S247","v":0},{"$f":"Lighting!U247","v":""},{"$f":"Lighting!V247","v":""},{"$f":"Lighting!W247","v":""},{"$f":"Lighting!X247","v":0},{"$f":"Lighting!Y247","v":""},{"$f":"Lighting!AA247","v":""},{"$f":"Lighting!AC247","v":""},{"$f":"Lighting!AF247","v":""},{"$f":"Lighting!AG247","v":0},{"$f":"Lighting!AH247","v":0},{"$f":"Lighting!AI247","v":0}]
[0,{"$f":"Lighting!B248","v":240},{"$f":"Lighting!C248","v":0},{"$f":"Lighting!D248","v":0},{"$f":"Lighting!F248","v":0},{"$f":"Lighting!G248","v":0},{"$f":"Lighting!H248","v":0},{"$f":"Lighting!I248","v":0},{"$f":"Lighting!J248","v":0},{"$f":"Lighting!K248","v":0},{"$f":"Lighting!L248","v":0},{"$f":"Lighting!N248","v":0},{"$f":"Lighting!O248","v":0},{"$f":"Lighting!R248","v":0},{"$f":"Lighting!S248","v":0},{"$f":"Lighting!U248","v":""},{"$f":"Lighting!V248","v":""},{"$f":"Lighting!W248","v":""},{"$f":"Lighting!X248","v":0},{"$f":"Lighting!Y248","v":""},{"$f":"Lighting!AA248","v":""},{"$f":"Lighting!AC248","v":""},{"$f":"Lighting!AF248","v":""},{"$f":"Lighting!AG248","v":0},{"$f":"Lighting!AH248","v":0},{"$f":"Lighting!AI248","v":0}]
[0,{"$f":"Lighting!B249","v":241},{"$f":"Lighting!C249","v":0},{"$f":"Lighting!D249","v":0},{"$f":"Lighting!F249","v":0},{"$f":"Lighting!G249","v":0},{"$f":"Lighting!H249","v":0},{"$f":"Lighting!I249","v":0},{"$f":"Lighting!J249","v":0},{"$f":"Lighting!K249","v":0},{"$f":"Lighting!L249","v":0},{"$f":"Lighting!N249","v":0},{"$f":"Lighting!O249","v":0},{"$f":"Lighting!R249","v":0},{"$f":"Lighting!S249","v":0},{"$f":"Lighting!U249","v":""},{"$f":"Lighting!V249","v":""},{"$f":"Lighting!W249","v":""},{"$f":"Lighting!X249","v":0},{"$f":"Lighting!Y249","v":""},{"$f":"Lighting!AA249","v":""},{"$f":"Lighting!AC249","v":""},{"$f":"Lighting!AF249","v":""},{"$f":"Lighting!AG249","v":0},{"$f":"Lighting!AH249","v":0},{"$f":"Lighting!AI249","v":0}]
[0,{"$f":"Lighting!B250","v":242},{"$f":"Lighting!C250","v":0},{"$f":"Lighting!D250","v":0},{"$f":"Lighting!F250","v":0},{"$f":"Lighting!G250","v":0},{"$f":"Lighting!H250","v":0},{"$f":"Lighting!I250","v":0},{"$f":"Lighting!J250","v":0},{"$f":"Lighting!K250","v":0},{"$f":"Lighting!L250","v":0},{"$f":"Lighting!N250","v":0},{"$f":"Lighting!O250","v":0},{"$f":"Lighting!R250","v":0},{"$f":"Lighting!S250","v":0},{"$f":"Lighting!U250","v":""},{"$f":"Lighting!V250","v":""},{"$f":"Lighting!W250","v":""},{"$f":"Lighting!X250","v":0},{"$f":"Lighting!Y250","v":""},{"$f":"Lighting!AA250","v":""},{"$f":"Lighting!AC250","v":""},{"$f":"Lighting!AF250","v":""},{"$f":"Lighting!AG250","v":0},{"$f":"Lighting!AH250","v":0},{"$f":"Lighting!AI250","v":0}]
[0,{"$f":"Lighting!B251","v":243},{"$f":"Lighting!C251","v":0},{"$f":"Lighting!D251","v":0},{"$f":"Lighting!F251","v":0},{"$f":"Lighting!G251","v":0},{"$f":"Lighting!H251","v":0},{"$f":"Lighting!I251","v":0},{"$f":"Lighting!J251","v":0},{"$f":"Lighting!K251","v":0},{"$f":"Lighting!L251","v":0},{"$f":"Lighting!N251","v":0},{"$f":"Lighting!O251","v":0},{"$f":"Lighting!R251","v":0},{"$f":"Lighting!S251","v":0},{"$f":"Lighting!U251","v":""},{"$f":"Lighting!V251","v":""},{"$f":"Lighting!W251","v":""},{"$f":"Lighting!X251","v":0},{"$f":"Lighting!Y251","v":""},{"$f":"Lighting!AA251","v":""},{"$f":"Lighting!AC251","v":""},{"$f":"Lighting!AF251","v":""},{"$f":"Lighting!AG251","v":0},{"$f":"Lighting!AH251","v":0},{"$f":"Lighting!AI251","v":0}]
[0,{"$f":"Lighting!B252","v":244},{"$f":"Lighting!C252","v":0},{"$f":"Lighting!D252","v":0},{"$f":"Lighting!F252","v":0},{"$f":"Lighting!G252","v":0},{"$f":"Lighting!H252","v":0},{"$f":"Lighting!I252","v":0},{"$f":"Lighting!J252","v":0},{"$f":"Lighting!K252","v":0},{"$f":"Lighting!L252","v":0},{"$f":"Lighting!N252","v":0},{"$f":"Lighting!O252","v":0},{"$f":"Lighting!R252","v":0},{"$f":"Lighting!S252","v":0},{"$f":"Lighting!U252","v":""},{"$f":"Lighting!V252","v":""},{"$f":"Lighting!W252","v":""},{"$f":"Lighting!X252","v":0},{"$f":"Lighting!Y252","v":""},{"$f":"Lighting!AA252","v":""},{"$f":"Lighting!AC252","v":""},{"$f":"Lighting!AF252","v":""},{"$f":"Lighting!AG252","v":0},{"$f":"Lighting!AH252","v":0},{"$f":"Lighting!AI252","v":0}]
[0,{"$f":"Lighting!B253","v":245},{"$f":"Lighting!C253","v":0},{"$f":"Lighting!D253","v":0},{"$f":"Lighting!F253","v":0},{"$f":"Lighting!G253","v":0},{"$f":"Lighting!H253","v":0},{"$f":"Lighting!I253","v":0},{"$f":"Lighting!J253","v":0},{"$f":"Lighting!K253","v":0},{"$f":"Lighting!L253","v":0},{"$f":"Lighting!N253","v":0},{"$f":"Lighting!O253","v":0},{"$f":"Lighting!R253","v":0},{"$f":"Lighting!S253","v":0},{"$f":"Lighting!U253","v":""},{"$f":"Lighting!V253","v":""},{"$f":"Lighting!W253","v":""},{"$f":"Lighting!X253","v":0},{"$f":"Lighting!Y253","v":""},{"$f":"Lighting!AA253","v":""},{"$f":"Lighting!AC253","v":""},{"$f":"Lighting!AF253","v":""},{"$f":"Lighting!AG253","v":0},{"$f":"Lighting!AH253","v":0},{"$f":"Lighting!AI253","v":0}]
[0,{"$f":"Lighting!B254","v":246},{"$f":"Lighting!C254","v":0},{"$f":"Lighting!D254","v":0},{"$f":"Lighting!F254","v":0},{"$f":"Lighting!G254","v":0},{"$f":"Lighting!H254","v":0},{"$f":"Lighting!I254","v":0},{"$f":"Lighting!J254","v":0},{"$f":"Lighting!K254","v":0},{"$f":"Lighting!L254","v":0},{"$f":"Lighting!N254","v":0},{"$f":"Lighting!O254","v":0},{"$f":"Lighting!R254","v":0},{"$f":"Lighting!S254","v":0},{"$f":"Lighting!U254","v":""},{"$f":"Lighting!V254","v":""},{"$f":"Lighting!W254","v":""},{"$f":"Lighting!X254","v":0},{"$f":"Lighting!Y254","v":""},{"$f":"Lighting!AA254","v":""},{"$f":"Lighting!AC254","v":""},{"$f":"Lighting!AF254","v":""},{"$f":"Lighting!AG254","v":0},{"$f":"Lighting!AH254","v":0},{"$f":"Lighting!AI254","v":0}]
[0,{"$f":"Lighting!B255","v":247},{"$f":"Lighting!C255","v":0},{"$f":"Lighting!D255","v":0},{"$f":"Lighting!F255","v":0},{"$f":"Lighting!G255","v":0},{"$f":"Lighting!H255","v":0},{"$f":"Lighting!I255","v":0},{"$f":"Lighting!J255","v":0},{"$f":"Lighting!K255","v":0},{"$f":"Lighting!L255","v":0},{"$f":"Lighting!N255","v":0},{"$f":"Lighting!O255","v":0},{"$f":"Lighting!R255","v":0},{"$f":"Lighting!S255","v":0},{"$f":"Lighting!U255","v":""},{"$f":"Lighting!V255","v":""},{"$f":"Lighting!W255","v":""},{"$f":"Lighting!X255","v":0},{"$f":"Lighting!Y255","v":""},{"$f":"Lighting!AA255","v":""},{"$f":"Lighting!AC255","v":""},{"$f":"Lighting!AF255","v":""},{"$f":"Lighting!AG255","v":0},{"$f":"Lighting!AH255","v":0},{"$f":"Lighting!AI255","v":0}]
[0,{"$f":"Lighting!B256","v":248},{"$f":"Lighting!C256","v":0},{"$f":"Lighting!D256","v":0},{"$f":"Lighting!F256","v":0},{"$f":"Lighting!G256","v":0},{"$f":"Lighting!H256","v":0},{"$f":"Lighting!I256","v":0},{"$f":"Lighting!J256","v":0},{"$f":"Lighting!K256","v":0},{"$f":"Lighting!L256","v":0},{"$f":"Lighting!N256","v":0},{"$f":"Lighting!O256","v":0},{"$f":"Lighting!R256","v":0},{"$f":"Lighting!S256","v":0},{"$f":"Lighting!U256","v":""},{"$f":"Lighting!V256","v":""},{"$f":"Lighting!W256","v":""},{"$f":"Lighting!X256","v":0},{"$f":"Lighting!Y256","v":""},{"$f":"Lighting!AA256","v":""},{"$f":"Lighting!AC256","v":""},{"$f":"Lighting!AF256","v":""},{"$f":"Lighting!AG256","v":0},{"$f":"Lighting!AH256","v":0},{"$f":"Lighting!AI256","v":0}]
[0,{"$f":"Lighting!B257","v":249},{"$f":"Lighting!C257","v":0},{"$f":"Lighting!D257","v":0},{"$f":"Lighting!F257","v":0},{"$f":"Lighting!G257","v":0},{"$f":"Lighting!H257","v":0},{"$f":"Lighting!I257","v":0},{"$f":"Lighting!J257","v":0},{"$f":"Lighting!K257","v":0},{"$f":"Lighting!L257","v":0},{"$f":"Lighting!N257","v":0},{"$f":"Lighting!O257","v":0},{"$f":"Lighting!R257","v":0},{"$f":"Lighting!S257","v":0},{"$f":"Lighting!U257","v":""},{"$f":"Lighting!V257","v":""},{"$f":"Lighting!W257","v":""},{"$f":"Lighting!X257","v":0},{"$f":"Lighting!Y257","v":""},{"$f":"Lighting!AA257","v":""},{"$f":"Lighting!AC257","v":""},{"$f":"Lighting!AF257","v":""},{"$f":"Lighting!AG257","v":0},{"$f":"Lighting!AH257","v":0},{"$f":"Lighting!AI257","v":0}]
[0,{"$f":"Lighting!B258","v":250},{"$f":"Lighting!C258","v":0},{"$f":"Lighting!D258","v":0},{"$f":"Lighting!F258","v":0},{"$f":"Lighting!G258","v":0},{"$f":"Lighting!H258","v":0},{"$f":"Lighting!I258","v":0},{"$f":"Lighting!J258","v":0},{"$f":"Lighting!K258","v":0},{"$f":"Lighting!L258","v":0},{"$f":"Lighting!N258","v":0},{"$f":"Lighting!O258","v":0},{"$f":"Lighting!R258","v":0},{"$f":"Lighting!S258","v":0},{"$f":"Lighting!U258","v":""},{"$f":"Lighting!V258","v":""},{"$f":"Lighting!W258","v":""},{"$f":"Lighting!X258","v":0},{"$f":"Lighting!Y258","v":""},{"$f":"Lighting!AA258","v":""},{"$f":"Lighting!AC258","v":""},{"$f":"Lighting!AF258","v":""},{"$f":"Lighting!AG258","v":0},{"$f":"Lighting!AH258","v":0},{"$f":"Lighting!AI258","v":0}]
[0,{"$f":"Lighting!B259","v":251},{"$f":"Lighting!C259","v":0},{"$f":"Lighting!D259","v":0},{"$f":"Lighting!F259","v":0},{"$f":"Lighting!G259","v":0},{"$f":"Lighting!H259","v":0},{"$f":"Lighting!I259","v":0},{"$f":"Lighting!J259","v":0},{"$f":"Lighting!K259","v":0},{"$f":"Lighting!L259","v":0},{"$f":"Lighting!N259","v":0},{"$f":"Lighting!O259","v":0},{"$f":"Lighting!R259","v":0},{"$f":"Lighting!S259","v":0},{"$f":"Lighting!U259","v":""},{"$f":"Lighting!V259","v":""},{"$f":"Lighting!W259","v":""},{"$f":"Lighting!X259","v":0},{"$f":"Lighting!Y259","v":""},{"$f":"Lighting!AA259","v":""},{"$f":"Lighting!AC259","v":""},{"$f":"Lighting!AF259","v":""},{"$f":"Lighting!AG259","v":0},{"$f":"Lighting!AH259","v":0},{"$f":"Lighting!AI259","v":0}]
[0,{"$f":"Lighting!B260","v":252},{"$f":"Lighting!C260","v":0},{"$f":"Lighting!D260","v":0},{"$f":"Lighting!F260","v":0},{"$f":"Lighting!G260","v":0},{"$f":"Lighting!H260","v":0},{"$f":"Lighting!I260","v":0},{"$f":"Lighting!J260","v":0},{"$f":"Lighting!K260","v":0},{"$f":"Lighting!L260","v":0},{"$f":"Lighting!N260","v":0},{"$f":"Lighting!O260","v":0},{"$f":"Lighting!R260","v":0},{"$f":"Lighting!S260","v":0},{"$f":"Lighting!U260","v":""},{"$f":"Lighting!V260","v":""},{"$f":"Lighting!W260","v":""},{"$f":"Lighting!X260","v":0},{"$f":"Lighting!Y260","v":""},{"$f":"Lighting!AA260","v":""},{"$f":"Lighting!AC260","v":""},{"$f":"Lighting!AF260","v":""},{"$f":"Lighting!AG260","v":0},{"$f":"Lighting!AH260","v":0},{"$f":"Lighting!AI260","v":0}]
[0,{"$f":"Lighting!B261","v":253},{"$f":"Lighting!C261","v":0},{"$f":"Lighting!D261","v":0},{"$f":"Lighting!F261","v":0},{"$f":"Lighting!G261","v":0},{"$f":"Lighting!H261","v":0},{"$f":"Lighting!I261","v":0},{"$f":"Lighting!J261","v":0},{"$f":"Lighting!K261","v":0},{"$f":"Lighting!L261","v":0},{"$f":"Lighting!N261","v":0},{"$f":"Lighting!O261","v":0},{"$f":"Lighting!R261","v":0},{"$f":"Lighting!S261","v":0},{"$f":"Lighting!U261","v":""},{"$f":"Lighting!V261","v":""},{"$f":"Lighting!W261","v":""},{"$f":"Lighting!X261","v":0},{"$f":"Lighting!Y261","v":""},{"$f":"Lighting!AA261","v":""},{"$f":"Lighting!AC261","v":""},{"$f":"Lighting!AF261","v":""},{"$f":"Lighting!AG261","v":0},{"$f":"Lighting!AH261","v":0},{"$f":"Lighting!AI261","v":0}]
[0,{"$f":"Lighting!B262","v":254},{"$f":"Lighting!C262","v":0},{"$f":"Lighting!D262","v":0},{"$f":"Lighting!F262","v":0},{"$f":"Lighting!G262","v":0},{"$f":"Lighting!H262","v":0},{"$f":"Lighting!I262","v":0},{"$f":"Lighting!J262","v":0},{"$f":"Lighting!K262","v":0},{"$f":"Lighting!L262","v":0},{"$f":"Lighting!N262","v":0},{"$f":"Lighting!O262","v":0},{"$f":"Lighting!R262","v":0},{"$f":"Lighting!S262","v":0},{"$f":"Lighting!U262","v":""},{"$f":"Lighting!V262","v":""},{"$f":"Lighting!W262","v":""},{"$f":"Lighting!X262","v":0},{"$f":"Lighting!Y262","v":""},{"$f":"Lighting!AA262","v":""},{"$f":"Lighting!AC262","v":""},{"$f":"Lighting!AF262","v":""},{"$f":"Lighting!AG262","v":0},{"$f":"Lighting!AH262","v":0},{"$f":"Lighting!AI262","v":0}]
[0,{"$f":"Lighting!B263","v":255},{"$f":"Lighting!C263","v":0},{"$f":"Lighting!D263","v":0},{"$f":"Lighting!F263","v":0},{"$f":"Lighting!G263","v":0},{"$f":"Lighting!H263","v":0},{"$f":"Lighting!I263","v":0},{"$f":"Lighting!J263","v":0},{"$f":"Lighting!K263","v":0},{"$f":"Lighting!L263","v":0},{"$f":"Lighting!N263","v":0},{"$f":"Lighting!O263","v":0},{"$f":"Lighting!R263","v":0},{"$f":"Lighting!S263","v":0},{"$f":"Lighting!U263","v":""},{"$f":"Lighting!V263","v":""},{"$f":"Lighting!W263","v":""},{"$f":"Lighting!X263","v":0},{"$f":"Lighting!Y263","v":""},{"$f":"Lighting!AA263","v":""},{"$f":"Lighting!AC263","v":""},{"$f":"Lighting!AF263","v":""},{"$f":"Lighting!AG263","v":0},{"$f":"Lighting!AH263","v":0},{"$f":"Lighting!AI263","v":0}]
[0,{"$f":"Lighting!B264","v":256},{"$f":"Lighting!C264","v":0},{"$f":"Lighting!D264","v":0},{"$f":"Lighting!F264","v":0},{"$f":"Lighting!G264","v":0},{"$f":"Lighting!H264","v":0},{"$f":"Lighting!I264","v":0},{"$f":"Lighting!J264","v":0},{"$f":"Lighting!K264","v":0},{"$f":"Lighting!L264","v":0},{"$f":"Lighting!N264","v":0},{"$f":"Lighting!O264","v":0},{"$f":"Lighting!R264","v":0},{"$f":"Lighting!S264","v":0},{"$f":"Lighting!U264","v":""},{"$f":"Lighting!V264","v":""},{"$f":"Lighting!W264","v":""},{"$f":"Lighting!X264","v":0},{"$f":"Lighting!Y264","v":""},{"$f":"Lighting!AA264","v":""},{"$f":"Lighting!AC264","v":""},{"$f":"Lighting!AF264","v":""},{"$f":"Lighting!AG264","v":0},{"$f":"Lighting!AH264","v":0},{"$f":"Lighting!AI264","v":0}]
[0,{"$f":"Lighting!B265","v":257},{"$f":"Lighting!C265","v":0},{"$f":"Lighting!D265","v":0},{"$f":"Lighting!F265","v":0},{"$f":"Lighting!G265","v":0},{"$f":"Lighting!H265","v":0},{"$f":"Lighting!I265","v":0},{"$f":"Lighting!J265","v":0},{"$f":"Lighting!K265","v":0},{"$f":"Lighting!L265","v":0},{"$f":"Lighting!N265","v":0},{"$f":"Lighting!O265","v":0},{"$f":"Lighting!R265","v":0},{"$f":"Lighting!S265","v":0},{"$f":"Lighting!U265","v":""},{"$f":"Lighting!V265","v":""},{"$f":"Lighting!W265","v":""},{"$f":"Lighting!X265","v":0},{"$f":"Lighting!Y265","v":""},{"$f":"Lighting!AA265","v":""},{"$f":"Lighting!AC265","v":""},{"$f":"Lighting!AF265","v":""},{"$f":"Lighting!AG265","v":0},{"$f":"Lighting!AH265","v":0},{"$f":"Lighting!AI265","v":0}]
[0,{"$f":"Lighting!B266","v":258},{"$f":"Lighting!C266","v":0},{"$f":"Lighting!D266","v":0},{"$f":"Lighting!F266","v":0},{"$f":"Lighting!G266","v":0},{"$f":"Lighting!H266","v":0},{"$f":"Lighting!I266","v":0},{"$f":"Lighting!J266","v":0},{"$f":"Lighting!K266","v":0},{"$f":"Lighting!L266","v":0},{"$f":"Lighting!N266","v":0},{"$f":"Lighting!O266","v":0},{"$f":"Lighting!R266","v":0},{"$f":"Lighting!S266","v":0},{"$f":"Lighting!U266","v":""},{"$f":"Lighting!V266","v":""},{"$f":"Lighting!W266","v":""},{"$f":"Lighting!X266","v":0},{"$f":"Lighting!Y266","v":""},{"$f":"Lighting!AA266","v":""},{"$f":"Lighting!AC266","v":""},{"$f":"Lighting!AF266","v":""},{"$f":"Lighting!AG266","v":0},{"$f":"Lighting!AH266","v":0},{"$f":"Lighting!AI266","v":0}]
[0,{"$f":"Lighting!B267","v":259},{"$f":"Lighting!C267","v":0},{"$f":"Lighting!D267","v":0},{"$f":"Lighting!F267","v":0},{"$f":"Lighting!G267","v":0},{"$f":"Lighting!H267","v":0},{"$f":"Lighting!I267","v":0},{"$f":"Lighting!J267","v":0},{"$f":"Lighting!K267","v":0},{"$f":"Lighting!L267","v":0},{"$f":"Lighting!N267","v":0},{"$f":"Lighting!O267","v":0},{"$f":"Lighting!R267","v":0},{"$f":"Lighting!S267","v":0},{"$f":"Lighting!U267","v":""},{"$f":"Lighting!V267","v":""},{"$f":"Lighting!W267","v":""},{"$f":"Lighting!X267","v":0},{"$f":"Lighting!Y267","v":""},{"$f":"Lighting!AA267","v":""},{"$f":"Lighting!AC267","v":""},{"$f":"Lighting!AF267","v":""},{"$f":"Lighting!AG267","v":0},{"$f":"Lighting!AH267","v":0},{"$f":"Lighting!AI267","v":0}]
[0,{"$f":"Lighting!B268","v":260},{"$f":"Lighting!C268","v":0},{"$f":"Lighting!D268","v":0},{"$f":"Lighting!F268","v":0},{"$f":"Lighting!G268","v":0},{"$f":"Lighting!H268","v":0},{"$f":"Lighting!I268","v":0},{"$f":"Lighting!J268","v":0},{"$f":"Lighting!K268","v":0},{"$f":"Lighting!L268","v":0},{"$f":"Lighting!N268","v":0},{"$f":"Lighting!O268","v":0},{"$f":"Lighting!R268","v":0},{"$f":"Lighting!S268","v":0},{"$f":"Lighting!U268","v":""},{"$f":"Lighting!V268","v":""},{"$f":"Lighting!W268","v":""},{"$f":"Lighting!X268","v":0},{"$f":"Lighting!Y268","v":""},{"$f":"Lighting!AA268","v":""},{"$f":"Lighting!AC268","v":""},{"$f":"Lighting!AF268","v":""},{"$f":"Lighting!AG268","v":0},{"$f":"Lighting!AH268","v":0},{"$f":"Lighting!AI268","v":0}]
[0,{"$f":"Lighting!B269","v":261},{"$f":"Lighting!C269","v":0},{"$f":"Lighting!D269","v":0},{"$f":"Lighting!F269","v":0},{"$f":"Lighting!G269","v":0},{"$f":"Lighting!H269","v":0},{"$f":"Lighting!I269","v":0},{"$f":"Lighting!J269","v":0},{"$f":"Lighting!K269","v":0},{"$f":"Lighting!L269","v":0},{"$f":"Lighting!N269","v":0},{"$f":"Lighting!O269","v":0},{"$f":"Lighting!R269","v":0},{"$f":"Lighting!S269","v":0},{"$f":"Lighting!U269","v":""},{"$f":"Lighting!V269","v":""},{"$f":"Lighting!W269","v":""},{"$f":"Lighting!X269","v":0},{"$f":"Lighting!Y269","v":""},{"$f":"Lighting!AA269","v":""},{"$f":"Lighting!AC269","v":""},{"$f":"Lighting!AF269","v":""},{"$f":"Lighting!AG269","v":0},{"$f":"Lighting!AH269","v":0},{"$f":"Lighting!AI269","v":0}]
[0,{"$f":"Lighting!B270","v":262},{"$f":"Lighting!C270","v":0},{"$f":"Lighting!D270","v":0},{"$f":"Lighting!F270","v":0},{"$f":"Lighting!G270","v":0},{"$f":"Lighting!H270","v":0},{"$f":"Lighting!I270","v":0},{"$f":"Lighting!J270","v":0},{"$f":"Lighting!K270","v":0},{"$f":"Lighting!L270","v":0},{"$f":"Lighting!N270","v":0},{"$f":"Lighting!O270","v":0},{"$f":"Lighting!R270","v":0},{"$f":"Lighting!S270","v":0},{"$f":"Lighting!U270","v":""},{"$f":"Lighting!V270","v":""},{"$f":"Lighting!W270","v":""},{"$f":"Lighting!X270","v":0},{"$f":"Lighting!Y270","v":""},{"$f":"Lighting!AA270","v":""},{"$f":"Lighting!AC270","v":""},{"$f":"Lighting!AF270","v":""},{"$f":"Lighting!AG270","v":0},{"$f":"Lighting!AH270","v":0},{"$f":"Lighting!AI270","v":0}]
[0,{"$f":"Lighting!B271","v":263},{"$f":"Lighting!C271","v":0},{"$f":"Lighting!D271","v":0},{"$f":"Lighting!F271","v":0},{"$f":"Lighting!G271","v":0},{"$f":"Lighting!H271","v":0},{"$f":"Lighting!I271","v":0},{"$f":"Lighting!J271","v":0},{"$f":"Lighting!K271","v":0},{"$f":"Lighting!L271","v":0},{"$f":"Lighting!N271","v":0},{"$f":"Lighting!O271","v":0},{"$f":"Lighting!R271","v":0},{"$f":"Lighting!S271","v":0},{"$f":"Lighting!U271","v":""},{"$f":"Lighting!V271","v":""},{"$f":"Lighting!W271","v":""},{"$f":"Lighting!X271","v":0},{"$f":"Lighting!Y271","v":""},{"$f":"Lighting!AA271","v":""},{"$f":"Lighting!AC271","v":""},{"$f":"Lighting!AF271","v":""},{"$f":"Lighting!AG271","v":0},{"$f":"Lighting!AH271","v":0},{"$f":"Lighting!AI271","v":0}]
[{"$f":"IF(G428=0,0,1)","v":0},{"$f":"Lighting!B272","v":264},{"$f":"Lighting!C272","v":0},{"$f":"Lighting!D272","v":0},{"$f":"Lighting!F272","v":0},{"$f":"Lighting!G272","v":0},{"$f":"Lighting!H272","v":0},{"$f":"Lighting!I272","v":0},{"$f":"Lighting!J272","v":0},{"$f":"Lighting!K272","v":0},{"$f":"Lighting!L272","v":0},{"$f":"Lighting!N272","v":0},{"$f":"Lighting!O272","v":0},{"$f":"Lighting!R272","v":0},{"$f":"Lighting!S272","v":0},{"$f":"Lighting!U272","v":""},{"$f":"Lighting!V272","v":""},{"$f":"Lighting!W272","v":""},{"$f":"Lighting!X272","v":0},{"$f":"Lighting!Y272","v":""},{"$f":"Lighting!AA272","v":""},{"$f":"Lighting!AC272","v":""},{"$f":"Lighting!AF272","v":""},{"$f":"Lighting!AG272","v":0},{"$f":"Lighting!AH272","v":0},{"$f":"Lighting!AI272","v":0}]
[0,{"$f":"Lighting!B273","v":265},{"$f":"Lighting!C273","v":0},{"$f":"Lighting!D273","v":0},{"$f":"Lighting!F273","v":0},{"$f":"Lighting!G273","v":0},{"$f":"Lighting!H273","v":0},{"$f":"Lighting!I273","v":0},{"$f":"Lighting!J273","v":0},{"$f":"Lighting!K273","v":0},{"$f":"Lighting!L273","v":0},{"$f":"Lighting!N273","v":0},{"$f":"Lighting!O273","v":0},{"$f":"Lighting!R273","v":0},{"$f":"Lighting!S273","v":0},{"$f":"Lighting!U273","v":""},{"$f":"Lighting!V273","v":""},{"$f":"Lighting!W273","v":""},{"$f":"Lighting!X273","v":0},{"$f":"Lighting!Y273","v":""},{"$f":"Lighting!AA273","v":""},{"$f":"Lighting!AC273","v":""},{"$f":"Lighting!AF273","v":""},{"$f":"Lighting!AG273","v":0},{"$f":"Lighting!AH273","v":0},{"$f":"Lighting!AI273","v":0}]
[0,{"$f":"Lighting!B274","v":266},{"$f":"Lighting!C274","v":0},{"$f":"Lighting!D274","v":0},{"$f":"Lighting!F274","v":0},{"$f":"Lighting!G274","v":0},{"$f":"Lighting!H274","v":0},{"$f":"Lighting!I274","v":0},{"$f":"Lighting!J274","v":0},{"$f":"Lighting!K274","v":0},{"$f":"Lighting!L274","v":0},{"$f":"Lighting!N274","v":0},{"$f":"Lighting!O274","v":0},{"$f":"Lighting!R274","v":0},{"$f":"Lighting!S274","v":0},{"$f":"Lighting!U274","v":""},{"$f":"Lighting!V274","v":""},{"$f":"Lighting!W274","v":""},{"$f":"Lighting!X274","v":0},{"$f":"Lighting!Y274","v":""},{"$f":"Lighting!AA274","v":""},{"$f":"Lighting!AC274","v":""},{"$f":"Lighting!AF274","v":""},{"$f":"Lighting!AG274","v":0},{"$f":"Lighting!AH274","v":0},{"$f":"Lighting!AI274","v":0}]
[0,{"$f":"Lighting!B275","v":267},{"$f":"Lighting!C275","v":0},{"$f":"Lighting!D275","v":0},{"$f":"Lighting!F275","v":0},{"$f":"Lighting!G275","v":0},{"$f":"Lighting!H275","v":0},{"$f":"Lighting!I275","v":0},{"$f":"Lighting!J275","v":0},{"$f":"Lighting!K275","v":0},{"$f":"Lighting!L275","v":0},{"$f":"Lighting!N275","v":0},{"$f":"Lighting!O275","v":0},{"$f":"Lighting!R275","v":0},{"$f":"Lighting!S275","v":0},{"$f":"Lighting!U275","v":""},{"$f":"Lighting!V275","v":""},{"$f":"Lighting!W275","v":""},{"$f":"Lighting!X275","v":0},{"$f":"Lighting!Y275","v":""},{"$f":"Lighting!AA275","v":""},{"$f":"Lighting!AC275","v":""},{"$f":"Lighting!AF275","v":""},{"$f":"Lighting!AG275","v":0},{"$f":"Lighting!AH275","v":0},{"$f":"Lighting!AI275","v":0}]
[0,{"$f":"Lighting!B276","v":268},{"$f":"Lighting!C276","v":0},{"$f":"Lighting!D276","v":0},{"$f":"Lighting!F276","v":0},{"$f":"Lighting!G276","v":0},{"$f":"Lighting!H276","v":0},{"$f":"Lighting!I276","v":0},{"$f":"Lighting!J276","v":0},{"$f":"Lighting!K276","v":0},{"$f":"Lighting!L276","v":0},{"$f":"Lighting!N276","v":0},{"$f":"Lighting!O276","v":0},{"$f":"Lighting!R276","v":0},{"$f":"Lighting!S276","v":0},{"$f":"Lighting!U276","v":""},{"$f":"Lighting!V276","v":""},{"$f":"Lighting!W276","v":""},{"$f":"Lighting!X276","v":0},{"$f":"Lighting!Y276","v":""},{"$f":"Lighting!AA276","v":""},{"$f":"Lighting!AC276","v":""},{"$f":"Lighting!AF276","v":""},{"$f":"Lighting!AG276","v":0},{"$f":"Lighting!AH276","v":0},{"$f":"Lighting!AI276","v":0}]
[0,{"$f":"Lighting!B277","v":269},{"$f":"Lighting!C277","v":0},{"$f":"Lighting!D277","v":0},{"$f":"Lighting!F277","v":0},{"$f":"Lighting!G277","v":0},{"$f":"Lighting!H277","v":0},{"$f":"Lighting!I277","v":0},{"$f":"Lighting!J277","v":0},{"$f":"Lighting!K277","v":0},{"$f":"Lighting!L277","v":0},{"$f":"Lighting!N277","v":0},{"$f":"Lighting!O277","v":0},{"$f":"Lighting!R277","v":0},{"$f":"Lighting!S277","v":0},{"$f":"Lighting!U277","v":""},{"$f":"Lighting!V277","v":""},{"$f":"Lighting!W277","v":""},{"$f":"Lighting!X277","v":0},{"$f":"Lighting!Y277","v":""},{"$f":"Lighting!AA277","v":""},{"$f":"Lighting!AC277","v":""},{"$f":"Lighting!AF277","v":""},{"$f":"Lighting!AG277","v":0},{"$f":"Lighting!AH277","v":0},{"$f":"Lighting!AI277","v":0}]
[0,{"$f":"Lighting!B278","v":270},{"$f":"Lighting!C278","v":0},{"$f":"Lighting!D278","v":0},{"$f":"Lighting!F278","v":0},{"$f":"Lighting!G278","v":0},{"$f":"Lighting!H278","v":0},{"$f":"Lighting!I278","v":0},{"$f":"Lighting!J278","v":0},{"$f":"Lighting!K278","v":0},{"$f":"Lighting!L278","v":0},{"$f":"Lighting!N278","v":0},{"$f":"Lighting!O278","v":0},{"$f":"Lighting!R278","v":0},{"$f":"Lighting!S278","v":0},{"$f":"Lighting!U278","v":""},{"$f":"Lighting!V278","v":""},{"$f":"Lighting!W278","v":""},{"$f":"Lighting!X278","v":0},{"$f":"Lighting!Y278","v":""},{"$f":"Lighting!AA278","v":""},{"$f":"Lighting!AC278","v":""},{"$f":"Lighting!AF278","v":""},{"$f":"Lighting!AG278","v":0},{"$f":"Lighting!AH278","v":0},{"$f":"Lighting!AI278","v":0}]
[0,{"$f":"Lighting!B279","v":271},{"$f":"Lighting!C279","v":0},{"$f":"Lighting!D279","v":0},{"$f":"Lighting!F279","v":0},{"$f":"Lighting!G279","v":0},{"$f":"Lighting!H279","v":0},{"$f":"Lighting!I279","v":0},{"$f":"Lighting!J279","v":0},{"$f":"Lighting!K279","v":0},{"$f":"Lighting!L279","v":0},{"$f":"Lighting!N279","v":0},{"$f":"Lighting!O279","v":0},{"$f":"Lighting!R279","v":0},{"$f":"Lighting!S279","v":0},{"$f":"Lighting!U279","v":""},{"$f":"Lighting!V279","v":""},{"$f":"Lighting!W279","v":""},{"$f":"Lighting!X279","v":0},{"$f":"Lighting!Y279","v":""},{"$f":"Lighting!AA279","v":""},{"$f":"Lighting!AC279","v":""},{"$f":"Lighting!AF279","v":""},{"$f":"Lighting!AG279","v":0},{"$f":"Lighting!AH279","v":0},{"$f":"Lighting!AI279","v":0}]
[0,{"$f":"Lighting!B280","v":272},{"$f":"Lighting!C280","v":0},{"$f":"Lighting!D280","v":0},{"$f":"Lighting!F280","v":0},{"$f":"Lighting!G280","v":0},{"$f":"Lighting!H280","v":0},{"$f":"Lighting!I280","v":0},{"$f":"Lighting!J280","v":0},{"$f":"Lighting!K280","v":0},{"$f":"Lighting!L280","v":0},{"$f":"Lighting!N280","v":0},{"$f":"Lighting!O280","v":0},{"$f":"Lighting!R280","v":0},{"$f":"Lighting!S280","v":0},{"$f":"Lighting!U280","v":""},{"$f":"Lighting!V280","v":""},{"$f":"Lighting!W280","v":""},{"$f":"Lighting!X280","v":0},{"$f":"Lighting!Y280","v":""},{"$f":"Lighting!AA280","v":""},{"$f":"Lighting!AC280","v":""},{"$f":"Lighting!AF280","v":""},{"$f":"Lighting!AG280","v":0},{"$f":"Lighting!AH280","v":0},{"$f":"Lighting!AI280","v":0}]
[0,{"$f":"Lighting!B281","v":273},{"$f":"Lighting!C281","v":0},{"$f":"Lighting!D281","v":0},{"$f":"Lighting!F281","v":0},{"$f":"Lighting!G281","v":0},{"$f":"Lighting!H281","v":0},{"$f":"Lighting!I281","v":0},{"$f":"Lighting!J281","v":0},{"$f":"Lighting!K281","v":0},{"$f":"Lighting!L281","v":0},{"$f":"Lighting!N281","v":0},{"$f":"Lighting!O281","v":0},{"$f":"Lighting!R281","v":0},{"$f":"Lighting!S281","v":0},{"$f":"Lighting!U281","v":""},{"$f":"Lighting!V281","v":""},{"$f":"Lighting!W281","v":""},{"$f":"Lighting!X281","v":0},{"$f":"Lighting!Y281","v":""},{"$f":"Lighting!AA281","v":""},{"$f":"Lighting!AC281","v":""},{"$f":"Lighting!AF281","v":""},{"$f":"Lighting!AG281","v":0},{"$f":"Lighting!AH281","v":0},{"$f":"Lighting!AI281","v":0}]
[0,{"$f":"Lighting!B282","v":274},{"$f":"Lighting!C282","v":0},{"$f":"Lighting!D282","v":0},{"$f":"Lighting!F282","v":0},{"$f":"Lighting!G282","v":0},{"$f":"Lighting!H282","v":0},{"$f":"Lighting!I282","v":0},{"$f":"Lighting!J282","v":0},{"$f":"Lighting!K282","v":0},{"$f":"Lighting!L282","v":0},{"$f":"Lighting!N282","v":0},{"$f":"Lighting!O282","v":0},{"$f":"Lighting!R282","v":0},{"$f":"Lighting!S282","v":0},{"$f":"Lighting!U282","v":""},{"$f":"Lighting!V282","v":""},{"$f":"Lighting!W282","v":""},{"$f":"Lighting!X282","v":0},{"$f":"Lighting!Y282","v":""},{"$f":"Lighting!AA282","v":""},{"$f":"Lighting!AC282","v":""},{"$f":"Lighting!AF282","v":""},{"$f":"Lighting!AG282","v":0},{"$f":"Lighting!AH282","v":0},{"$f":"Lighting!AI282","v":0}]
[0,{"$f":"Lighting!B283","v":275},{"$f":"Lighting!C283","v":0},{"$f":"Lighting!D283","v":0},{"$f":"Lighting!F283","v":0},{"$f":"Lighting!G283","v":0},{"$f":"Lighting!H283","v":0},{"$f":"Lighting!I283","v":0},{"$f":"Lighting!J283","v":0},{"$f":"Lighting!K283","v":0},{"$f":"Lighting!L283","v":0},{"$f":"Lighting!N283","v":0},{"$f":"Lighting!O283","v":0},{"$f":"Lighting!R283","v":0},{"$f":"Lighting!S283","v":0},{"$f":"Lighting!U283","v":""},{"$f":"Lighting!V283","v":""},{"$f":"Lighting!W283","v":""},{"$f":"Lighting!X283","v":0},{"$f":"Lighting!Y283","v":""},{"$f":"Lighting!AA283","v":""},{"$f":"Lighting!AC283","v":""},{"$f":"Lighting!AF283","v":""},{"$f":"Lighting!AG283","v":0},{"$f":"Lighting!AH283","v":0},{"$f":"Lighting!AI283","v":0}]
[0,{"$f":"Lighting!B284","v":276},{"$f":"Lighting!C284","v":0},{"$f":"Lighting!D284","v":0},{"$f":"Lighting!F284","v":0},{"$f":"Lighting!G284","v":0},{"$f":"Lighting!H284","v":0},{"$f":"Lighting!I284","v":0},{"$f":"Lighting!J284","v":0},{"$f":"Lighting!K284","v":0},{"$f":"Lighting!L284","v":0},{"$f":"Lighting!N284","v":0},{"$f":"Lighting!O284","v":0},{"$f":"Lighting!R284","v":0},{"$f":"Lighting!S284","v":0},{"$f":"Lighting!U284","v":""},{"$f":"Lighting!V284","v":""},{"$f":"Lighting!W284","v":""},{"$f":"Lighting!X284","v":0},{"$f":"Lighting!Y284","v":""},{"$f":"Lighting!AA284","v":""},{"$f":"Lighting!AC284","v":""},{"$f":"Lighting!AF284","v":""},{"$f":"Lighting!AG284","v":0},{"$f":"Lighting!AH284","v":0},{"$f":"Lighting!AI284","v":0}]
[0,{"$f":"Lighting!B285","v":277},{"$f":"Lighting!C285","v":0},{"$f":"Lighting!D285","v":0},{"$f":"Lighting!F285","v":0},{"$f":"Lighting!G285","v":0},{"$f":"Lighting!H285","v":0},{"$f":"Lighting!I285","v":0},{"$f":"Lighting!J285","v":0},{"$f":"Lighting!K285","v":0},{"$f":"Lighting!L285","v":0},{"$f":"Lighting!N285","v":0},{"$f":"Lighting!O285","v":0},{"$f":"Lighting!R285","v":0},{"$f":"Lighting!S285","v":0},{"$f":"Lighting!U285","v":""},{"$f":"Lighting!V285","v":""},{"$f":"Lighting!W285","v":""},{"$f":"Lighting!X285","v":0},{"$f":"Lighting!Y285","v":""},{"$f":"Lighting!AA285","v":""},{"$f":"Lighting!AC285","v":""},{"$f":"Lighting!AF285","v":""},{"$f":"Lighting!AG285","v":0},{"$f":"Lighting!AH285","v":0},{"$f":"Lighting!AI285","v":0}]
[0,{"$f":"Lighting!B286","v":278},{"$f":"Lighting!C286","v":0},{"$f":"Lighting!D286","v":0},{"$f":"Lighting!F286","v":0},{"$f":"Lighting!G286","v":0},{"$f":"Lighting!H286","v":0},{"$f":"Lighting!I286","v":0},{"$f":"Lighting!J286","v":0},{"$f":"Lighting!K286","v":0},{"$f":"Lighting!L286","v":0},{"$f":"Lighting!N286","v":0},{"$f":"Lighting!O286","v":0},{"$f":"Lighting!R286","v":0},{"$f":"Lighting!S286","v":0},{"$f":"Lighting!U286","v":""},{"$f":"Lighting!V286","v":""},{"$f":"Lighting!W286","v":""},{"$f":"Lighting!X286","v":0},{"$f":"Lighting!Y286","v":""},{"$f":"Lighting!AA286","v":""},{"$f":"Lighting!AC286","v":""},{"$f":"Lighting!AF286","v":""},{"$f":"Lighting!AG286","v":0},{"$f":"Lighting!AH286","v":0},{"$f":"Lighting!AI286","v":0}]
[0,{"$f":"Lighting!B287","v":279},{"$f":"Lighting!C287","v":0},{"$f":"Lighting!D287","v":0},{"$f":"Lighting!F287","v":0},{"$f":"Lighting!G287","v":0},{"$f":"Lighting!H287","v":0},{"$f":"Lighting!I287","v":0},{"$f":"Lighting!J287","v":0},{"$f":"Lighting!K287","v":0},{"$f":"Lighting!L287","v":0},{"$f":"Lighting!N287","v":0},{"$f":"Lighting!O287","v":0},{"$f":"Lighting!R287","v":0},{"$f":"Lighting!S287","v":0},{"$f":"Lighting!U287","v":""},{"$f":"Lighting!V287","v":""},{"$f":"Lighting!W287","v":""},{"$f":"Lighting!X287","v":0},{"$f":"Lighting!Y287","v":""},{"$f":"Lighting!AA287","v":""},{"$f":"Lighting!AC287","v":""},{"$f":"Lighting!AF287","v":""},{"$f":"Lighting!AG287","v":0},{"$f":"Lighting!AH287","v":0},{"$f":"Lighting!AI287","v":0}]
[0,{"$f":"Lighting!B288","v":280},{"$f":"Lighting!C288","v":0},{"$f":"Lighting!D288","v":0},{"$f":"Lighting!F288","v":0},{"$f":"Lighting!G288","v":0},{"$f":"Lighting!H288","v":0},{"$f":"Lighting!I288","v":0},{"$f":"Lighting!J288","v":0},{"$f":"Lighting!K288","v":0},{"$f":"Lighting!L288","v":0},{"$f":"Lighting!N288","v":0},{"$f":"Lighting!O288","v":0},{"$f":"Lighting!R288","v":0},{"$f":"Lighting!S288","v":0},{"$f":"Lighting!U288","v":""},{"$f":"Lighting!V288","v":""},{"$f":"Lighting!W288","v":""},{"$f":"Lighting!X288","v":0},{"$f":"Lighting!Y288","v":""},{"$f":"Lighting!AA288","v":""},{"$f":"Lighting!AC288","v":""},{"$f":"Lighting!AF288","v":""},{"$f":"Lighting!AG288","v":0},{"$f":"Lighting!AH288","v":0},{"$f":"Lighting!AI288","v":0}]
[0,{"$f":"Lighting!B289","v":281},{"$f":"Lighting!C289","v":0},{"$f":"Lighting!D289","v":0},{"$f":"Lighting!F289","v":0},{"$f":"Lighting!G289","v":0},{"$f":"Lighting!H289","v":0},{"$f":"Lighting!I289","v":0},{"$f":"Lighting!J289","v":0},{"$f":"Lighting!K289","v":0},{"$f":"Lighting!L289","v":0},{"$f":"Lighting!N289","v":0},{"$f":"Lighting!O289","v":0},{"$f":"Lighting!R289","v":0},{"$f":"Lighting!S289","v":0},{"$f":"Lighting!U289","v":""},{"$f":"Lighting!V289","v":""},{"$f":"Lighting!W289","v":""},{"$f":"Lighting!X289","v":0},{"$f":"Lighting!Y289","v":""},{"$f":"Lighting!AA289","v":""},{"$f":"Lighting!AC289","v":""},{"$f":"Lighting!AF289","v":""},{"$f":"Lighting!AG289","v":0},{"$f":"Lighting!AH289","v":0},{"$f":"Lighting!AI289","v":0}]
[0,{"$f":"Lighting!B290","v":282},{"$f":"Lighting!C290","v":0},{"$f":"Lighting!D290","v":0},{"$f":"Lighting!F290","v":0},{"$f":"Lighting!G290","v":0},{"$f":"Lighting!H290","v":0},{"$f":"Lighting!I290","v":0},{"$f":"Lighting!J290","v":0},{"$f":"Lighting!K290","v":0},{"$f":"Lighting!L290","v":0},{"$f":"Lighting!N290","v":0},{"$f":"Lighting!O290","v":0},{"$f":"Lighting!R290","v":0},{"$f":"Lighting!S290","v":0},{"$f":"Lighting!U290","v":""},{"$f":"Lighting!V290","v":""},{"$f":"Lighting!W290","v":""},{"$f":"Lighting!X290","v":0},{"$f":"Lighting!Y290","v":""},{"$f":"Lighting!AA290","v":""},{"$f":"Lighting!AC290","v":""},{"$f":"Lighting!AF290","v":""},{"$f":"Lighting!AG290","v":0},{"$f":"Lighting!AH290","v":0},{"$f":"Lighting!AI290","v":0}]
[0,{"$f":"Lighting!B291","v":283},{"$f":"Lighting!C291","v":0},{"$f":"Lighting!D291","v":0},{"$f":"Lighting!F291","v":0},{"$f":"Lighting!G291","v":0},{"$f":"Lighting!H291","v":0},{"$f":"Lighting!I291","v":0},{"$f":"Lighting!J291","v":0},{"$f":"Lighting!K291","v":0},{"$f":"Lighting!L291","v":0},{"$f":"Lighting!N291","v":0},{"$f":"Lighting!O291","v":0},{"$f":"Lighting!R291","v":0},{"$f":"Lighting!S291","v":0},{"$f":"Lighting!U291","v":""},{"$f":"Lighting!V291","v":""},{"$f":"Lighting!W291","v":""},{"$f":"Lighting!X291","v":0},{"$f":"Lighting!Y291","v":""},{"$f":"Lighting!AA291","v":""},{"$f":"Lighting!AC291","v":""},{"$f":"Lighting!AF291","v":""},{"$f":"Lighting!AG291","v":0},{"$f":"Lighting!AH291","v":0},{"$f":"Lighting!AI291","v":0}]
[0,{"$f":"Lighting!B292","v":284},{"$f":"Lighting!C292","v":0},{"$f":"Lighting!D292","v":0},{"$f":"Lighting!F292","v":0},{"$f":"Lighting!G292","v":0},{"$f":"Lighting!H292","v":0},{"$f":"Lighting!I292","v":0},{"$f":"Lighting!J292","v":0},{"$f":"Lighting!K292","v":0},{"$f":"Lighting!L292","v":0},{"$f":"Lighting!N292","v":0},{"$f":"Lighting!O292","v":0},{"$f":"Lighting!R292","v":0},{"$f":"Lighting!S292","v":0},{"$f":"Lighting!U292","v":""},{"$f":"Lighting!V292","v":""},{"$f":"Lighting!W292","v":""},{"$f":"Lighting!X292","v":0},{"$f":"Lighting!Y292","v":""},{"$f":"Lighting!AA292","v":""},{"$f":"Lighting!AC292","v":""},{"$f":"Lighting!AF292","v":""},{"$f":"Lighting!AG292","v":0},{"$f":"Lighting!AH292","v":0},{"$f":"Lighting!AI292","v":0}]
[0,{"$f":"Lighting!B293","v":285},{"$f":"Lighting!C293","v":0},{"$f":"Lighting!D293","v":0},{"$f":"Lighting!F293","v":0},{"$f":"Lighting!G293","v":0},{"$f":"Lighting!H293","v":0},{"$f":"Lighting!I293","v":0},{"$f":"Lighting!J293","v":0},{"$f":"Lighting!K293","v":0},{"$f":"Lighting!L293","v":0},{"$f":"Lighting!N293","v":0},{"$f":"Lighting!O293","v":0},{"$f":"Lighting!R293","v":0},{"$f":"Lighting!S293","v":0},{"$f":"Lighting!U293","v":""},{"$f":"Lighting!V293","v":""},{"$f":"Lighting!W293","v":""},{"$f":"Lighting!X293","v":0},{"$f":"Lighting!Y293","v":""},{"$f":"Lighting!AA293","v":""},{"$f":"Lighting!AC293","v":""},{"$f":"Lighting!AF293","v":""},{"$f":"Lighting!AG293","v":0},{"$f":"Lighting!AH293","v":0},{"$f":"Lighting!AI293","v":0}]
[0,{"$f":"Lighting!B294","v":286},{"$f":"Lighting!C294","v":0},{"$f":"Lighting!D294","v":0},{"$f":"Lighting!F294","v":0},{"$f":"Lighting!G294","v":0},{"$f":"Lighting!H294","v":0},{"$f":"Lighting!I294","v":0},{"$f":"Lighting!J294","v":0},{"$f":"Lighting!K294","v":0},{"$f":"Lighting!L294","v":0},{"$f":"Lighting!N294","v":0},{"$f":"Lighting!O294","v":0},{"$f":"Lighting!R294","v":0},{"$f":"Lighting!S294","v":0},{"$f":"Lighting!U294","v":""},{"$f":"Lighting!V294","v":""},{"$f":"Lighting!W294","v":""},{"$f":"Lighting!X294","v":0},{"$f":"Lighting!Y294","v":""},{"$f":"Lighting!AA294","v":""},{"$f":"Lighting!AC294","v":""},{"$f":"Lighting!AF294","v":""},{"$f":"Lighting!AG294","v":0},{"$f":"Lighting!AH294","v":0},{"$f":"Lighting!AI294","v":0}]
[0,{"$f":"Lighting!B295","v":287},{"$f":"Lighting!C295","v":0},{"$f":"Lighting!D295","v":0},{"$f":"Lighting!F295","v":0},{"$f":"Lighting!G295","v":0},{"$f":"Lighting!H295","v":0},{"$f":"Lighting!I295","v":0},{"$f":"Lighting!J295","v":0},{"$f":"Lighting!K295","v":0},{"$f":"Lighting!L295","v":0},{"$f":"Lighting!N295","v":0},{"$f":"Lighting!O295","v":0},{"$f":"Lighting!R295","v":0},{"$f":"Lighting!S295","v":0},{"$f":"Lighting!U295","v":""},{"$f":"Lighting!V295","v":""},{"$f":"Lighting!W295","v":""},{"$f":"Lighting!X295","v":0},{"$f":"Lighting!Y295","v":""},{"$f":"Lighting!AA295","v":""},{"$f":"Lighting!AC295","v":""},{"$f":"Lighting!AF295","v":""},{"$f":"Lighting!AG295","v":0},{"$f":"Lighting!AH295","v":0},{"$f":"Lighting!AI295","v":0}]
[0,{"$f":"Lighting!B296","v":288},{"$f":"Lighting!C296","v":0},{"$f":"Lighting!D296","v":0},{"$f":"Lighting!F296","v":0},{"$f":"Lighting!G296","v":0},{"$f":"Lighting!H296","v":0},{"$f":"Lighting!I296","v":0},{"$f":"Lighting!J296","v":0},{"$f":"Lighting!K296","v":0},{"$f":"Lighting!L296","v":0},{"$f":"Lighting!N296","v":0},{"$f":"Lighting!O296","v":0},{"$f":"Lighting!R296","v":0},{"$f":"Lighting!S296","v":0},{"$f":"Lighting!U296","v":""},{"$f":"Lighting!V296","v":""},{"$f":"Lighting!W296","v":""},{"$f":"Lighting!X296","v":0},{"$f":"Lighting!Y296","v":""},{"$f":"Lighting!AA296","v":""},{"$f":"Lighting!AC296","v":""},{"$f":"Lighting!AF296","v":""},{"$f":"Lighting!AG296","v":0},{"$f":"Lighting!AH296","v":0},{"$f":"Lighting!AI296","v":0}]
[0,{"$f":"Lighting!B297","v":289},{"$f":"Lighting!C297","v":0},{"$f":"Lighting!D297","v":0},{"$f":"Lighting!F297","v":0},{"$f":"Lighting!G297","v":0},{"$f":"Lighting!H297","v":0},{"$f":"Lighting!I297","v":0},{"$f":"Lighting!J297","v":0},{"$f":"Lighting!K297","v":0},{"$f":"Lighting!L297","v":0},{"$f":"Lighting!N297","v":0},{"$f":"Lighting!O297","v":0},{"$f":"Lighting!R297","v":0},{"$f":"Lighting!S297","v":0},{"$f":"Lighting!U297","v":""},{"$f":"Lighting!V297","v":""},{"$f":"Lighting!W297","v":""},{"$f":"Lighting!X297","v":0},{"$f":"Lighting!Y297","v":""},{"$f":"Lighting!AA297","v":""},{"$f":"Lighting!AC297","v":""},{"$f":"Lighting!AF297","v":""},{"$f":"Lighting!AG297","v":0},{"$f":"Lighting!AH297","v":0},{"$f":"Lighting!AI297","v":0}]
[0,{"$f":"Lighting!B298","v":290},{"$f":"Lighting!C298","v":0},{"$f":"Lighting!D298","v":0},{"$f":"Lighting!F298","v":0},{"$f":"Lighting!G298","v":0},{"$f":"Lighting!H298","v":0},{"$f":"Lighting!I298","v":0},{"$f":"Lighting!J298","v":0},{"$f":"Lighting!K298","v":0},{"$f":"Lighting!L298","v":0},{"$f":"Lighting!N298","v":0},{"$f":"Lighting!O298","v":0},{"$f":"Lighting!R298","v":0},{"$f":"Lighting!S298","v":0},{"$f":"Lighting!U298","v":""},{"$f":"Lighting!V298","v":""},{"$f":"Lighting!W298","v":""},{"$f":"Lighting!X298","v":0},{"$f":"Lighting!Y298","v":""},{"$f":"Lighting!AA298","v":""},{"$f":"Lighting!AC298","v":""},{"$f":"Lighting!AF298","v":""},{"$f":"Lighting!AG298","v":0},{"$f":"Lighting!AH298","v":0},{"$f":"Lighting!AI298","v":0}]
[0,{"$f":"Lighting!B299","v":291},{"$f":"Lighting!C299","v":0},{"$f":"Lighting!D299","v":0},{"$f":"Lighting!F299","v":0},{"$f":"Lighting!G299","v":0},{"$f":"Lighting!H299","v":0},{"$f":"Lighting!I299","v":0},{"$f":"Lighting!J299","v":0},{"$f":"Lighting!K299","v":0},{"$f":"Lighting!L299","v":0},{"$f":"Lighting!N299","v":0},{"$f":"Lighting!O299","v":0},{"$f":"Lighting!R299","v":0},{"$f":"Lighting!S299","v":0},{"$f":"Lighting!U299","v":""},{"$f":"Lighting!V299","v":""},{"$f":"Lighting!W299","v":""},{"$f":"Lighting!X299","v":0},{"$f":"Lighting!Y299","v":""},{"$f":"Lighting!AA299","v":""},{"$f":"Lighting!AC299","v":""},{"$f":"Lighting!AF299","v":""},{"$f":"Lighting!AG299","v":0},{"$f":"Lighting!AH299","v":0},{"$f":"Lighting!AI299","v":0}]
[0,{"$f":"Lighting!B300","v":292},{"$f":"Lighting!C300","v":0},{"$f":"Lighting!D300","v":0},{"$f":"Lighting!F300","v":0},{"$f":"Lighting!G300","v":0},{"$f":"Lighting!H300","v":0},{"$f":"Lighting!I300","v":0},{"$f":"Lighting!J300","v":0},{"$f":"Lighting!K300","v":0},{"$f":"Lighting!L300","v":0},{"$f":"Lighting!N300","v":0},{"$f":"Lighting!O300","v":0},{"$f":"Lighting!R300","v":0},{"$f":"Lighting!S300","v":0},{"$f":"Lighting!U300","v":""},{"$f":"Lighting!V300","v":""},{"$f":"Lighting!W300","v":""},{"$f":"Lighting!X300","v":0},{"$f":"Lighting!Y300","v":""},{"$f":"Lighting!AA300","v":""},{"$f":"Lighting!AC300","v":""},{"$f":"Lighting!AF300","v":""},{"$f":"Lighting!AG300","v":0},{"$f":"Lighting!AH300","v":0},{"$f":"Lighting!AI300","v":0}]
[0,{"$f":"Lighting!B301","v":293},{"$f":"Lighting!C301","v":0},{"$f":"Lighting!D301","v":0},{"$f":"Lighting!F301","v":0},{"$f":"Lighting!G301","v":0},{"$f":"Lighting!H301","v":0},{"$f":"Lighting!I301","v":0},{"$f":"Lighting!J301","v":0},{"$f":"Lighting!K301","v":0},{"$f":"Lighting!L301","v":0},{"$f":"Lighting!N301","v":0},{"$f":"Lighting!O301","v":0},{"$f":"Lighting!R301","v":0},{"$f":"Lighting!S301","v":0},{"$f":"Lighting!U301","v":""},{"$f":"Lighting!V301","v":""},{"$f":"Lighting!W301","v":""},{"$f":"Lighting!X301","v":0},{"$f":"Lighting!Y301","v":""},{"$f":"Lighting!AA301","v":""},{"$f":"Lighting!AC301","v":""},{"$f":"Lighting!AF301","v":""},{"$f":"Lighting!AG301","v":0},{"$f":"Lighting!AH301","v":0},{"$f":"Lighting!AI301","v":0}]
[0,{"$f":"Lighting!B302","v":294},{"$f":"Lighting!C302","v":0},{"$f":"Lighting!D302","v":0},{"$f":"Lighting!F302","v":0},{"$f":"Lighting!G302","v":0},{"$f":"Lighting!H302","v":0},{"$f":"Lighting!I302","v":0},{"$f":"Lighting!J302","v":0},{"$f":"Lighting!K302","v":0},{"$f":"Lighting!L302","v":0},{"$f":"Lighting!N302","v":0},{"$f":"Lighting!O302","v":0},{"$f":"Lighting!R302","v":0},{"$f":"Lighting!S302","v":0},{"$f":"Lighting!U302","v":""},{"$f":"Lighting!V302","v":""},{"$f":"Lighting!W302","v":""},{"$f":"Lighting!X302","v":0},{"$f":"Lighting!Y302","v":""},{"$f":"Lighting!AA302","v":""},{"$f":"Lighting!AC302","v":""},{"$f":"Lighting!AF302","v":""},{"$f":"Lighting!AG302","v":0},{"$f":"Lighting!AH302","v":0},{"$f":"Lighting!AI302","v":0}]
[0,{"$f":"Lighting!B303","v":295},{"$f":"Lighting!C303","v":0},{"$f":"Lighting!D303","v":0},{"$f":"Lighting!F303","v":0},{"$f":"Lighting!G303","v":0},{"$f":"Lighting!H303","v":0},{"$f":"Lighting!I303","v":0},{"$f":"Lighting!J303","v":0},{"$f":"Lighting!K303","v":0},{"$f":"Lighting!L303","v":0},{"$f":"Lighting!N303","v":0},{"$f":"Lighting!O303","v":0},{"$f":"Lighting!R303","v":0},{"$f":"Lighting!S303","v":0},{"$f":"Lighting!U303","v":""},{"$f":"Lighting!V303","v":""},{"$f":"Lighting!W303","v":""},{"$f":"Lighting!X303","v":0},{"$f":"Lighting!Y303","v":""},{"$f":"Lighting!AA303","v":""},{"$f":"Lighting!AC303","v":""},{"$f":"Lighting!AF303","v":""},{"$f":"Lighting!AG303","v":0},{"$f":"Lighting!AH303","v":0},{"$f":"Lighting!AI303","v":0}]
[0,{"$f":"Lighting!B304","v":296},{"$f":"Lighting!C304","v":0},{"$f":"Lighting!D304","v":0},{"$f":"Lighting!F304","v":0},{"$f":"Lighting!G304","v":0},{"$f":"Lighting!H304","v":0},{"$f":"Lighting!I304","v":0},{"$f":"Lighting!J304","v":0},{"$f":"Lighting!K304","v":0},{"$f":"Lighting!L304","v":0},{"$f":"Lighting!N304","v":0},{"$f":"Lighting!O304","v":0},{"$f":"Lighting!R304","v":0},{"$f":"Lighting!S304","v":0},{"$f":"Lighting!U304","v":""},{"$f":"Lighting!V304","v":""},{"$f":"Lighting!W304","v":""},{"$f":"Lighting!X304","v":0},{"$f":"Lighting!Y304","v":""},{"$f":"Lighting!AA304","v":""},{"$f":"Lighting!AC304","v":""},{"$f":"Lighting!AF304","v":""},{"$f":"Lighting!AG304","v":0},{"$f":"Lighting!AH304","v":0},{"$f":"Lighting!AI304","v":0}]
[0,{"$f":"Lighting!B305","v":297},{"$f":"Lighting!C305","v":0},{"$f":"Lighting!D305","v":0},{"$f":"Lighting!F305","v":0},{"$f":"Lighting!G305","v":0},{"$f":"Lighting!H305","v":0},{"$f":"Lighting!I305","v":0},{"$f":"Lighting!J305","v":0},{"$f":"Lighting!K305","v":0},{"$f":"Lighting!L305","v":0},{"$f":"Lighting!N305","v":0},{"$f":"Lighting!O305","v":0},{"$f":"Lighting!R305","v":0},{"$f":"Lighting!S305","v":0},{"$f":"Lighting!U305","v":""},{"$f":"Lighting!V305","v":""},{"$f":"Lighting!W305","v":""},{"$f":"Lighting!X305","v":0},{"$f":"Lighting!Y305","v":""},{"$f":"Lighting!AA305","v":""},{"$f":"Lighting!AC305","v":""},{"$f":"Lighting!AF305","v":""},{"$f":"Lighting!AG305","v":0},{"$f":"Lighting!AH305","v":0},{"$f":"Lighting!AI305","v":0}]
[0,{"$f":"Lighting!B306","v":298},{"$f":"Lighting!C306","v":0},{"$f":"Lighting!D306","v":0},{"$f":"Lighting!F306","v":0},{"$f":"Lighting!G306","v":0},{"$f":"Lighting!H306","v":0},{"$f":"Lighting!I306","v":0},{"$f":"Lighting!J306","v":0},{"$f":"Lighting!K306","v":0},{"$f":"Lighting!L306","v":0},{"$f":"Lighting!N306","v":0},{"$f":"Lighting!O306","v":0},{"$f":"Lighting!R306","v":0},{"$f":"Lighting!S306","v":0},{"$f":"Lighting!U306","v":""},{"$f":"Lighting!V306","v":""},{"$f":"Lighting!W306","v":""},{"$f":"Lighting!X306","v":0},{"$f":"Lighting!Y306","v":""},{"$f":"Lighting!AA306","v":""},{"$f":"Lighting!AC306","v":""},{"$f":"Lighting!AF306","v":""},{"$f":"Lighting!AG306","v":0},{"$f":"Lighting!AH306","v":0},{"$f":"Lighting!AI306","v":0}]
[0,{"$f":"Lighting!B307","v":299},{"$f":"Lighting!C307","v":0},{"$f":"Lighting!D307","v":0},{"$f":"Lighting!F307","v":0},{"$f":"Lighting!G307","v":0},{"$f":"Lighting!H307","v":0},{"$f":"Lighting!I307","v":0},{"$f":"Lighting!J307","v":0},{"$f":"Lighting!K307","v":0},{"$f":"Lighting!L307","v":0},{"$f":"Lighting!N307","v":0},{"$f":"Lighting!O307","v":0},{"$f":"Lighting!R307","v":0},{"$f":"Lighting!S307","v":0},{"$f":"Lighting!U307","v":""},{"$f":"Lighting!V307","v":""},{"$f":"Lighting!W307","v":""},{"$f":"Lighting!X307","v":0},{"$f":"Lighting!Y307","v":""},{"$f":"Lighting!AA307","v":""},{"$f":"Lighting!AC307","v":""},{"$f":"Lighting!AF307","v":""},{"$f":"Lighting!AG307","v":0},{"$f":"Lighting!AH307","v":0},{"$f":"Lighting!AI307","v":0}]
[0,{"$f":"Lighting!B308","v":300},{"$f":"Lighting!C308","v":0},{"$f":"Lighting!D308","v":0},{"$f":"Lighting!F308","v":0},{"$f":"Lighting!G308","v":0},{"$f":"Lighting!H308","v":0},{"$f":"Lighting!I308","v":0},{"$f":"Lighting!J308","v":0},{"$f":"Lighting!K308","v":0},{"$f":"Lighting!L308","v":0},{"$f":"Lighting!N308","v":0},{"$f":"Lighting!O308","v":0},{"$f":"Lighting!R308","v":0},{"$f":"Lighting!S308","v":0},{"$f":"Lighting!U308","v":""},{"$f":"Lighting!V308","v":""},{"$f":"Lighting!W308","v":""},{"$f":"Lighting!X308","v":0},{"$f":"Lighting!Y308","v":""},{"$f":"Lighting!AA308","v":""},{"$f":"Lighting!AC308","v":""},{"$f":"Lighting!AF308","v":""},{"$f":"Lighting!AG308","v":0},{"$f":"Lighting!AH308","v":0},{"$f":"Lighting!AI308","v":0}]
[0,{"$f":"Lighting!B309","v":301},{"$f":"Lighting!C309","v":0},{"$f":"Lighting!D309","v":0},{"$f":"Lighting!F309","v":0},{"$f":"Lighting!G309","v":0},{"$f":"Lighting!H309","v":0},{"$f":"Lighting!I309","v":0},{"$f":"Lighting!J309","v":0},{"$f":"Lighting!K309","v":0},{"$f":"Lighting!L309","v":0},{"$f":"Lighting!N309","v":0},{"$f":"Lighting!O309","v":0},{"$f":"Lighting!R309","v":0},{"$f":"Lighting!S309","v":0},{"$f":"Lighting!U309","v":""},{"$f":"Lighting!V309","v":""},{"$f":"Lighting!W309","v":""},{"$f":"Lighting!X309","v":0},{"$f":"Lighting!Y309","v":""},{"$f":"Lighting!AA309","v":""},{"$f":"Lighting!AC309","v":""},{"$f":"Lighting!AF309","v":""},{"$f":"Lighting!AG309","v":0},{"$f":"Lighting!AH309","v":0},{"$f":"Lighting!AI309","v":0}]
[0,{"$f":"Lighting!B310","v":302},{"$f":"Lighting!C310","v":0},{"$f":"Lighting!D310","v":0},{"$f":"Lighting!F310","v":0},{"$f":"Lighting!G310","v":0},{"$f":"Lighting!H310","v":0},{"$f":"Lighting!I310","v":0},{"$f":"Lighting!J310","v":0},{"$f":"Lighting!K310","v":0},{"$f":"Lighting!L310","v":0},{"$f":"Lighting!N310","v":0},{"$f":"Lighting!O310","v":0},{"$f":"Lighting!R310","v":0},{"$f":"Lighting!S310","v":0},{"$f":"Lighting!U310","v":""},{"$f":"Lighting!V310","v":""},{"$f":"Lighting!W310","v":""},{"$f":"Lighting!X310","v":0},{"$f":"Lighting!Y310","v":""},{"$f":"Lighting!AA310","v":""},{"$f":"Lighting!AC310","v":""},{"$f":"Lighting!AF310","v":""},{"$f":"Lighting!AG310","v":0},{"$f":"Lighting!AH310","v":0},{"$f":"Lighting!AI310","v":0}]
[0,{"$f":"Lighting!B311","v":303},{"$f":"Lighting!C311","v":0},{"$f":"Lighting!D311","v":0},{"$f":"Lighting!F311","v":0},{"$f":"Lighting!G311","v":0},{"$f":"Lighting!H311","v":0},{"$f":"Lighting!I311","v":0},{"$f":"Lighting!J311","v":0},{"$f":"Lighting!K311","v":0},{"$f":"Lighting!L311","v":0},{"$f":"Lighting!N311","v":0},{"$f":"Lighting!O311","v":0},{"$f":"Lighting!R311","v":0},{"$f":"Lighting!S311","v":0},{"$f":"Lighting!U311","v":""},{"$f":"Lighting!V311","v":""},{"$f":"Lighting!W311","v":""},{"$f":"Lighting!X311","v":0},{"$f":"Lighting!Y311","v":""},{"$f":"Lighting!AA311","v":""},{"$f":"Lighting!AC311","v":""},{"$f":"Lighting!AF311","v":""},{"$f":"Lighting!AG311","v":0},{"$f":"Lighting!AH311","v":0},{"$f":"Lighting!AI311","v":0}]
[0,{"$f":"Lighting!B312","v":304},{"$f":"Lighting!C312","v":0},{"$f":"Lighting!D312","v":0},{"$f":"Lighting!F312","v":0},{"$f":"Lighting!G312","v":0},{"$f":"Lighting!H312","v":0},{"$f":"Lighting!I312","v":0},{"$f":"Lighting!J312","v":0},{"$f":"Lighting!K312","v":0},{"$f":"Lighting!L312","v":0},{"$f":"Lighting!N312","v":0},{"$f":"Lighting!O312","v":0},{"$f":"Lighting!R312","v":0},{"$f":"Lighting!S312","v":0},{"$f":"Lighting!U312","v":""},{"$f":"Lighting!V312","v":""},{"$f":"Lighting!W312","v":""},{"$f":"Lighting!X312","v":0},{"$f":"Lighting!Y312","v":""},{"$f":"Lighting!AA312","v":""},{"$f":"Lighting!AC312","v":""},{"$f":"Lighting!AF312","v":""},{"$f":"Lighting!AG312","v":0},{"$f":"Lighting!AH312","v":0},{"$f":"Lighting!AI312","v":0}]
[0,{"$f":"Lighting!B313","v":305},{"$f":"Lighting!C313","v":0},{"$f":"Lighting!D313","v":0},{"$f":"Lighting!F313","v":0},{"$f":"Lighting!G313","v":0},{"$f":"Lighting!H313","v":0},{"$f":"Lighting!I313","v":0},{"$f":"Lighting!J313","v":0},{"$f":"Lighting!K313","v":0},{"$f":"Lighting!L313","v":0},{"$f":"Lighting!N313","v":0},{"$f":"Lighting!O313","v":0},{"$f":"Lighting!R313","v":0},{"$f":"Lighting!S313","v":0},{"$f":"Lighting!U313","v":""},{"$f":"Lighting!V313","v":""},{"$f":"Lighting!W313","v":""},{"$f":"Lighting!X313","v":0},{"$f":"Lighting!Y313","v":""},{"$f":"Lighting!AA313","v":""},{"$f":"Lighting!AC313","v":""},{"$f":"Lighting!AF313","v":""},{"$f":"Lighting!AG313","v":0},{"$f":"Lighting!AH313","v":0},{"$f":"Lighting!AI313","v":0}]
[0,{"$f":"Lighting!B314","v":306},{"$f":"Lighting!C314","v":0},{"$f":"Lighting!D314","v":0},{"$f":"Lighting!F314","v":0},{"$f":"Lighting!G314","v":0},{"$f":"Lighting!H314","v":0},{"$f":"Lighting!I314","v":0},{"$f":"Lighting!J314","v":0},{"$f":"Lighting!K314","v":0},{"$f":"Lighting!L314","v":0},{"$f":"Lighting!N314","v":0},{"$f":"Lighting!O314","v":0},{"$f":"Lighting!R314","v":0},{"$f":"Lighting!S314","v":0},{"$f":"Lighting!U314","v":""},{"$f":"Lighting!V314","v":""},{"$f":"Lighting!W314","v":""},{"$f":"Lighting!X314","v":0},{"$f":"Lighting!Y314","v":""},{"$f":"Lighting!AA314","v":""},{"$f":"Lighting!AC314","v":""},{"$f":"Lighting!AF314","v":""},{"$f":"Lighting!AG314","v":0},{"$f":"Lighting!AH314","v":0},{"$f":"Lighting!AI314","v":0}]
[0,{"$f":"Lighting!B315","v":307},{"$f":"Lighting!C315","v":0},{"$f":"Lighting!D315","v":0},{"$f":"Lighting!F315","v":0},{"$f":"Lighting!G315","v":0},{"$f":"Lighting!H315","v":0},{"$f":"Lighting!I315","v":0},{"$f":"Lighting!J315","v":0},{"$f":"Lighting!K315","v":0},{"$f":"Lighting!L315","v":0},{"$f":"Lighting!N315","v":0},{"$f":"Lighting!O315","v":0},{"$f":"Lighting!R315","v":0},{"$f":"Lighting!S315","v":0},{"$f":"Lighting!U315","v":""},{"$f":"Lighting!V315","v":""},{"$f":"Lighting!W315","v":""},{"$f":"Lighting!X315","v":0},{"$f":"Lighting!Y315","v":""},{"$f":"Lighting!AA315","v":""},{"$f":"Lighting!AC315","v":""},{"$f":"Lighting!AF315","v":""},{"$f":"Lighting!AG315","v":0},{"$f":"Lighting!AH315","v":0},{"$f":"Lighting!AI315","v":0}]
[0,{"$f":"Lighting!B316","v":308},{"$f":"Lighting!C316","v":0},{"$f":"Lighting!D316","v":0},{"$f":"Lighting!F316","v":0},{"$f":"Lighting!G316","v":0},{"$f":"Lighting!H316","v":0},{"$f":"Lighting!I316","v":0},{"$f":"Lighting!J316","v":0},{"$f":"Lighting!K316","v":0},{"$f":"Lighting!L316","v":0},{"$f":"Lighting!N316","v":0},{"$f":"Lighting!O316","v":0},{"$f":"Lighting!R316","v":0},{"$f":"Lighting!S316","v":0},{"$f":"Lighting!U316","v":""},{"$f":"Lighting!V316","v":""},{"$f":"Lighting!W316","v":""},{"$f":"Lighting!X316","v":0},{"$f":"Lighting!Y316","v":""},{"$f":"Lighting!AA316","v":""},{"$f":"Lighting!AC316","v":""},{"$f":"Lighting!AF316","v":""},{"$f":"Lighting!AG316","v":0},{"$f":"Lighting!AH316","v":0},{"$f":"Lighting!AI316","v":0}]
[0,{"$f":"Lighting!B317","v":309},{"$f":"Lighting!C317","v":0},{"$f":"Lighting!D317","v":0},{"$f":"Lighting!F317","v":0},{"$f":"Lighting!G317","v":0},{"$f":"Lighting!H317","v":0},{"$f":"Lighting!I317","v":0},{"$f":"Lighting!J317","v":0},{"$f":"Lighting!K317","v":0},{"$f":"Lighting!L317","v":0},{"$f":"Lighting!N317","v":0},{"$f":"Lighting!O317","v":0},{"$f":"Lighting!R317","v":0},{"$f":"Lighting!S317","v":0},{"$f":"Lighting!U317","v":""},{"$f":"Lighting!V317","v":""},{"$f":"Lighting!W317","v":""},{"$f":"Lighting!X317","v":0},{"$f":"Lighting!Y317","v":""},{"$f":"Lighting!AA317","v":""},{"$f":"Lighting!AC317","v":""},{"$f":"Lighting!AF317","v":""},{"$f":"Lighting!AG317","v":0},{"$f":"Lighting!AH317","v":0},{"$f":"Lighting!AI317","v":0}]
[0,{"$f":"Lighting!B318","v":310},{"$f":"Lighting!C318","v":0},{"$f":"Lighting!D318","v":0},{"$f":"Lighting!F318","v":0},{"$f":"Lighting!G318","v":0},{"$f":"Lighting!H318","v":0},{"$f":"Lighting!I318","v":0},{"$f":"Lighting!J318","v":0},{"$f":"Lighting!K318","v":0},{"$f":"Lighting!L318","v":0},{"$f":"Lighting!N318","v":0},{"$f":"Lighting!O318","v":0},{"$f":"Lighting!R318","v":0},{"$f":"Lighting!S318","v":0},{"$f":"Lighting!U318","v":""},{"$f":"Lighting!V318","v":""},{"$f":"Lighting!W318","v":""},{"$f":"Lighting!X318","v":0},{"$f":"Lighting!Y318","v":""},{"$f":"Lighting!AA318","v":""},{"$f":"Lighting!AC318","v":""},{"$f":"Lighting!AF318","v":""},{"$f":"Lighting!AG318","v":0},{"$f":"Lighting!AH318","v":0},{"$f":"Lighting!AI318","v":0}]
[0,{"$f":"Lighting!B319","v":311},{"$f":"Lighting!C319","v":0},{"$f":"Lighting!D319","v":0},{"$f":"Lighting!F319","v":0},{"$f":"Lighting!G319","v":0},{"$f":"Lighting!H319","v":0},{"$f":"Lighting!I319","v":0},{"$f":"Lighting!J319","v":0},{"$f":"Lighting!K319","v":0},{"$f":"Lighting!L319","v":0},{"$f":"Lighting!N319","v":0},{"$f":"Lighting!O319","v":0},{"$f":"Lighting!R319","v":0},{"$f":"Lighting!S319","v":0},{"$f":"Lighting!U319","v":""},{"$f":"Lighting!V319","v":""},{"$f":"Lighting!W319","v":""},{"$f":"Lighting!X319","v":0},{"$f":"Lighting!Y319","v":""},{"$f":"Lighting!AA319","v":""},{"$f":"Lighting!AC319","v":""},{"$f":"Lighting!AF319","v":""},{"$f":"Lighting!AG319","v":0},{"$f":"Lighting!AH319","v":0},{"$f":"Lighting!AI319","v":0}]
[0,{"$f":"Lighting!B320","v":312},{"$f":"Lighting!C320","v":0},{"$f":"Lighting!D320","v":0},{"$f":"Lighting!F320","v":0},{"$f":"Lighting!G320","v":0},{"$f":"Lighting!H320","v":0},{"$f":"Lighting!I320","v":0},{"$f":"Lighting!J320","v":0},{"$f":"Lighting!K320","v":0},{"$f":"Lighting!L320","v":0},{"$f":"Lighting!N320","v":0},{"$f":"Lighting!O320","v":0},{"$f":"Lighting!R320","v":0},{"$f":"Lighting!S320","v":0},{"$f":"Lighting!U320","v":""},{"$f":"Lighting!V320","v":""},{"$f":"Lighting!W320","v":""},{"$f":"Lighting!X320","v":0},{"$f":"Lighting!Y320","v":""},{"$f":"Lighting!AA320","v":""},{"$f":"Lighting!AC320","v":""},{"$f":"Lighting!AF320","v":""},{"$f":"Lighting!AG320","v":0},{"$f":"Lighting!AH320","v":0},{"$f":"Lighting!AI320","v":0}]
[0,{"$f":"Lighting!B321","v":313},{"$f":"Lighting!C321","v":0},{"$f":"Lighting!D321","v":0},{"$f":"Lighting!F321","v":0},{"$f":"Lighting!G321","v":0},{"$f":"Lighting!H321","v":0},{"$f":"Lighting!I321","v":0},{"$f":"Lighting!J321","v":0},{"$f":"Lighting!K321","v":0},{"$f":"Lighting!L321","v":0},{"$f":"Lighting!N321","v":0},{"$f":"Lighting!O321","v":0},{"$f":"Lighting!R321","v":0},{"$f":"Lighting!S321","v":0},{"$f":"Lighting!U321","v":""},{"$f":"Lighting!V321","v":""},{"$f":"Lighting!W321","v":""},{"$f":"Lighting!X321","v":0},{"$f":"Lighting!Y321","v":""},{"$f":"Lighting!AA321","v":""},{"$f":"Lighting!AC321","v":""},{"$f":"Lighting!AF321","v":""},{"$f":"Lighting!AG321","v":0},{"$f":"Lighting!AH321","v":0},{"$f":"Lighting!AI321","v":0}]
[0,{"$f":"Lighting!B322","v":314},{"$f":"Lighting!C322","v":0},{"$f":"Lighting!D322","v":0},{"$f":"Lighting!F322","v":0},{"$f":"Lighting!G322","v":0},{"$f":"Lighting!H322","v":0},{"$f":"Lighting!I322","v":0},{"$f":"Lighting!J322","v":0},{"$f":"Lighting!K322","v":0},{"$f":"Lighting!L322","v":0},{"$f":"Lighting!N322","v":0},{"$f":"Lighting!O322","v":0},{"$f":"Lighting!R322","v":0},{"$f":"Lighting!S322","v":0},{"$f":"Lighting!U322","v":""},{"$f":"Lighting!V322","v":""},{"$f":"Lighting!W322","v":""},{"$f":"Lighting!X322","v":0},{"$f":"Lighting!Y322","v":""},{"$f":"Lighting!AA322","v":""},{"$f":"Lighting!AC322","v":""},{"$f":"Lighting!AF322","v":""},{"$f":"Lighting!AG322","v":0},{"$f":"Lighting!AH322","v":0},{"$f":"Lighting!AI322","v":0}]
[0,{"$f":"Lighting!B323","v":315},{"$f":"Lighting!C323","v":0},{"$f":"Lighting!D323","v":0},{"$f":"Lighting!F323","v":0},{"$f":"Lighting!G323","v":0},{"$f":"Lighting!H323","v":0},{"$f":"Lighting!I323","v":0},{"$f":"Lighting!J323","v":0},{"$f":"Lighting!K323","v":0},{"$f":"Lighting!L323","v":0},{"$f":"Lighting!N323","v":0},{"$f":"Lighting!O323","v":0},{"$f":"Lighting!R323","v":0},{"$f":"Lighting!S323","v":0},{"$f":"Lighting!U323","v":""},{"$f":"Lighting!V323","v":""},{"$f":"Lighting!W323","v":""},{"$f":"Lighting!X323","v":0},{"$f":"Lighting!Y323","v":""},{"$f":"Lighting!AA323","v":""},{"$f":"Lighting!AC323","v":""},{"$f":"Lighting!AF323","v":""},{"$f":"Lighting!AG323","v":0},{"$f":"Lighting!AH323","v":0},{"$f":"Lighting!AI323","v":0}]
[0,{"$f":"Lighting!B324","v":316},{"$f":"Lighting!C324","v":0},{"$f":"Lighting!D324","v":0},{"$f":"Lighting!F324","v":0},{"$f":"Lighting!G324","v":0},{"$f":"Lighting!H324","v":0},{"$f":"Lighting!I324","v":0},{"$f":"Lighting!J324","v":0},{"$f":"Lighting!K324","v":0},{"$f":"Lighting!L324","v":0},{"$f":"Lighting!N324","v":0},{"$f":"Lighting!O324","v":0},{"$f":"Lighting!R324","v":0},{"$f":"Lighting!S324","v":0},{"$f":"Lighting!U324","v":""},{"$f":"Lighting!V324","v":""},{"$f":"Lighting!W324","v":""},{"$f":"Lighting!X324","v":0},{"$f":"Lighting!Y324","v":""},{"$f":"Lighting!AA324","v":""},{"$f":"Lighting!AC324","v":""},{"$f":"Lighting!AF324","v":""},{"$f":"Lighting!AG324","v":0},{"$f":"Lighting!AH324","v":0},{"$f":"Lighting!AI324","v":0}]
[0,{"$f":"Lighting!B325","v":317},{"$f":"Lighting!C325","v":0},{"$f":"Lighting!D325","v":0},{"$f":"Lighting!F325","v":0},{"$f":"Lighting!G325","v":0},{"$f":"Lighting!H325","v":0},{"$f":"Lighting!I325","v":0},{"$f":"Lighting!J325","v":0},{"$f":"Lighting!K325","v":0},{"$f":"Lighting!L325","v":0},{"$f":"Lighting!N325","v":0},{"$f":"Lighting!O325","v":0},{"$f":"Lighting!R325","v":0},{"$f":"Lighting!S325","v":0},{"$f":"Lighting!U325","v":""},{"$f":"Lighting!V325","v":""},{"$f":"Lighting!W325","v":""},{"$f":"Lighting!X325","v":0},{"$f":"Lighting!Y325","v":""},{"$f":"Lighting!AA325","v":""},{"$f":"Lighting!AC325","v":""},{"$f":"Lighting!AF325","v":""},{"$f":"Lighting!AG325","v":0},{"$f":"Lighting!AH325","v":0},{"$f":"Lighting!AI325","v":0}]
[0,{"$f":"Lighting!B326","v":318},{"$f":"Lighting!C326","v":0},{"$f":"Lighting!D326","v":0},{"$f":"Lighting!F326","v":0},{"$f":"Lighting!G326","v":0},{"$f":"Lighting!H326","v":0},{"$f":"Lighting!I326","v":0},{"$f":"Lighting!J326","v":0},{"$f":"Lighting!K326","v":0},{"$f":"Lighting!L326","v":0},{"$f":"Lighting!N326","v":0},{"$f":"Lighting!O326","v":0},{"$f":"Lighting!R326","v":0},{"$f":"Lighting!S326","v":0},{"$f":"Lighting!U326","v":""},{"$f":"Lighting!V326","v":""},{"$f":"Lighting!W326","v":""},{"$f":"Lighting!X326","v":0},{"$f":"Lighting!Y326","v":""},{"$f":"Lighting!AA326","v":""},{"$f":"Lighting!AC326","v":""},{"$f":"Lighting!AF326","v":""},{"$f":"Lighting!AG326","v":0},{"$f":"Lighting!AH326","v":0},{"$f":"Lighting!AI326","v":0}]
[0,{"$f":"Lighting!B327","v":319},{"$f":"Lighting!C327","v":0},{"$f":"Lighting!D327","v":0},{"$f":"Lighting!F327","v":0},{"$f":"Lighting!G327","v":0},{"$f":"Lighting!H327","v":0},{"$f":"Lighting!I327","v":0},{"$f":"Lighting!J327","v":0},{"$f":"Lighting!K327","v":0},{"$f":"Lighting!L327","v":0},{"$f":"Lighting!N327","v":0},{"$f":"Lighting!O327","v":0},{"$f":"Lighting!R327","v":0},{"$f":"Lighting!S327","v":0},{"$f":"Lighting!U327","v":""},{"$f":"Lighting!V327","v":""},{"$f":"Lighting!W327","v":""},{"$f":"Lighting!X327","v":0},{"$f":"Lighting!Y327","v":""},{"$f":"Lighting!AA327","v":""},{"$f":"Lighting!AC327","v":""},{"$f":"Lighting!AF327","v":""},{"$f":"Lighting!AG327","v":0},{"$f":"Lighting!AH327","v":0},{"$f":"Lighting!AI327","v":0}]
[0,{"$f":"Lighting!B328","v":320},{"$f":"Lighting!C328","v":0},{"$f":"Lighting!D328","v":0},{"$f":"Lighting!F328","v":0},{"$f":"Lighting!G328","v":0},{"$f":"Lighting!H328","v":0},{"$f":"Lighting!I328","v":0},{"$f":"Lighting!J328","v":0},{"$f":"Lighting!K328","v":0},{"$f":"Lighting!L328","v":0},{"$f":"Lighting!N328","v":0},{"$f":"Lighting!O328","v":0},{"$f":"Lighting!R328","v":0},{"$f":"Lighting!S328","v":0},{"$f":"Lighting!U328","v":""},{"$f":"Lighting!V328","v":""},{"$f":"Lighting!W328","v":""},{"$f":"Lighting!X328","v":0},{"$f":"Lighting!Y328","v":""},{"$f":"Lighting!AA328","v":""},{"$f":"Lighting!AC328","v":""},{"$f":"Lighting!AF328","v":""},{"$f":"Lighting!AG328","v":0},{"$f":"Lighting!AH328","v":0},{"$f":"Lighting!AI328","v":0}]
[0,{"$f":"Lighting!B329","v":321},{"$f":"Lighting!C329","v":0},{"$f":"Lighting!D329","v":0},{"$f":"Lighting!F329","v":0},{"$f":"Lighting!G329","v":0},{"$f":"Lighting!H329","v":0},{"$f":"Lighting!I329","v":0},{"$f":"Lighting!J329","v":0},{"$f":"Lighting!K329","v":0},{"$f":"Lighting!L329","v":0},{"$f":"Lighting!N329","v":0},{"$f":"Lighting!O329","v":0},{"$f":"Lighting!R329","v":0},{"$f":"Lighting!S329","v":0},{"$f":"Lighting!U329","v":""},{"$f":"Lighting!V329","v":""},{"$f":"Lighting!W329","v":""},{"$f":"Lighting!X329","v":0},{"$f":"Lighting!Y329","v":""},{"$f":"Lighting!AA329","v":""},{"$f":"Lighting!AC329","v":""},{"$f":"Lighting!AF329","v":""},{"$f":"Lighting!AG329","v":0},{"$f":"Lighting!AH329","v":0},{"$f":"Lighting!AI329","v":0}]
[0,{"$f":"Lighting!B330","v":322},{"$f":"Lighting!C330","v":0},{"$f":"Lighting!D330","v":0},{"$f":"Lighting!F330","v":0},{"$f":"Lighting!G330","v":0},{"$f":"Lighting!H330","v":0},{"$f":"Lighting!I330","v":0},{"$f":"Lighting!J330","v":0},{"$f":"Lighting!K330","v":0},{"$f":"Lighting!L330","v":0},{"$f":"Lighting!N330","v":0},{"$f":"Lighting!O330","v":0},{"$f":"Lighting!R330","v":0},{"$f":"Lighting!S330","v":0},{"$f":"Lighting!U330","v":""},{"$f":"Lighting!V330","v":""},{"$f":"Lighting!W330","v":""},{"$f":"Lighting!X330","v":0},{"$f":"Lighting!Y330","v":""},{"$f":"Lighting!AA330","v":""},{"$f":"Lighting!AC330","v":""},{"$f":"Lighting!AF330","v":""},{"$f":"Lighting!AG330","v":0},{"$f":"Lighting!AH330","v":0},{"$f":"Lighting!AI330","v":0}]
[0,{"$f":"Lighting!B331","v":323},{"$f":"Lighting!C331","v":0},{"$f":"Lighting!D331","v":0},{"$f":"Lighting!F331","v":0},{"$f":"Lighting!G331","v":0},{"$f":"Lighting!H331","v":0},{"$f":"Lighting!I331","v":0},{"$f":"Lighting!J331","v":0},{"$f":"Lighting!K331","v":0},{"$f":"Lighting!L331","v":0},{"$f":"Lighting!N331","v":0},{"$f":"Lighting!O331","v":0},{"$f":"Lighting!R331","v":0},{"$f":"Lighting!S331","v":0},{"$f":"Lighting!U331","v":""},{"$f":"Lighting!V331","v":""},{"$f":"Lighting!W331","v":""},{"$f":"Lighting!X331","v":0},{"$f":"Lighting!Y331","v":""},{"$f":"Lighting!AA331","v":""},{"$f":"Lighting!AC331","v":""},{"$f":"Lighting!AF331","v":""},{"$f":"Lighting!AG331","v":0},{"$f":"Lighting!AH331","v":0},{"$f":"Lighting!AI331","v":0}]
[0,{"$f":"Lighting!B332","v":324},{"$f":"Lighting!C332","v":0},{"$f":"Lighting!D332","v":0},{"$f":"Lighting!F332","v":0},{"$f":"Lighting!G332","v":0},{"$f":"Lighting!H332","v":0},{"$f":"Lighting!I332","v":0},{"$f":"Lighting!J332","v":0},{"$f":"Lighting!K332","v":0},{"$f":"Lighting!L332","v":0},{"$f":"Lighting!N332","v":0},{"$f":"Lighting!O332","v":0},{"$f":"Lighting!R332","v":0},{"$f":"Lighting!S332","v":0},{"$f":"Lighting!U332","v":""},{"$f":"Lighting!V332","v":""},{"$f":"Lighting!W332","v":""},{"$f":"Lighting!X332","v":0},{"$f":"Lighting!Y332","v":""},{"$f":"Lighting!AA332","v":""},{"$f":"Lighting!AC332","v":""},{"$f":"Lighting!AF332","v":""},{"$f":"Lighting!AG332","v":0},{"$f":"Lighting!AH332","v":0},{"$f":"Lighting!AI332","v":0}]
[0,{"$f":"Lighting!B333","v":325},{"$f":"Lighting!C333","v":0},{"$f":"Lighting!D333","v":0},{"$f":"Lighting!F333","v":0},{"$f":"Lighting!G333","v":0},{"$f":"Lighting!H333","v":0},{"$f":"Lighting!I333","v":0},{"$f":"Lighting!J333","v":0},{"$f":"Lighting!K333","v":0},{"$f":"Lighting!L333","v":0},{"$f":"Lighting!N333","v":0},{"$f":"Lighting!O333","v":0},{"$f":"Lighting!R333","v":0},{"$f":"Lighting!S333","v":0},{"$f":"Lighting!U333","v":""},{"$f":"Lighting!V333","v":""},{"$f":"Lighting!W333","v":""},{"$f":"Lighting!X333","v":0},{"$f":"Lighting!Y333","v":""},{"$f":"Lighting!AA333","v":""},{"$f":"Lighting!AC333","v":""},{"$f":"Lighting!AF333","v":""},{"$f":"Lighting!AG333","v":0},{"$f":"Lighting!AH333","v":0},{"$f":"Lighting!AI333","v":0}]
[0,{"$f":"Lighting!B334","v":326},{"$f":"Lighting!C334","v":0},{"$f":"Lighting!D334","v":0},{"$f":"Lighting!F334","v":0},{"$f":"Lighting!G334","v":0},{"$f":"Lighting!H334","v":0},{"$f":"Lighting!I334","v":0},{"$f":"Lighting!J334","v":0},{"$f":"Lighting!K334","v":0},{"$f":"Lighting!L334","v":0},{"$f":"Lighting!N334","v":0},{"$f":"Lighting!O334","v":0},{"$f":"Lighting!R334","v":0},{"$f":"Lighting!S334","v":0},{"$f":"Lighting!U334","v":""},{"$f":"Lighting!V334","v":""},{"$f":"Lighting!W334","v":""},{"$f":"Lighting!X334","v":0},{"$f":"Lighting!Y334","v":""},{"$f":"Lighting!AA334","v":""},{"$f":"Lighting!AC334","v":""},{"$f":"Lighting!AF334","v":""},{"$f":"Lighting!AG334","v":0},{"$f":"Lighting!AH334","v":0},{"$f":"Lighting!AI334","v":0}]
[0,{"$f":"Lighting!B335","v":327},{"$f":"Lighting!C335","v":0},{"$f":"Lighting!D335","v":0},{"$f":"Lighting!F335","v":0},{"$f":"Lighting!G335","v":0},{"$f":"Lighting!H335","v":0},{"$f":"Lighting!I335","v":0},{"$f":"Lighting!J335","v":0},{"$f":"Lighting!K335","v":0},{"$f":"Lighting!L335","v":0},{"$f":"Lighting!N335","v":0},{"$f":"Lighting!O335","v":0},{"$f":"Lighting!R335","v":0},{"$f":"Lighting!S335","v":0},{"$f":"Lighting!U335","v":""},{"$f":"Lighting!V335","v":""},{"$f":"Lighting!W335","v":""},{"$f":"Lighting!X335","v":0},{"$f":"Lighting!Y335","v":""},{"$f":"Lighting!AA335","v":""},{"$f":"Lighting!AC335","v":""},{"$f":"Lighting!AF335","v":""},{"$f":"Lighting!AG335","v":0},{"$f":"Lighting!AH335","v":0},{"$f":"Lighting!AI335","v":0}]
[{"$f":"IF(G492=0,0,1)","v":0},{"$f":"Lighting!B336","v":328},{"$f":"Lighting!C336","v":0},{"$f":"Lighting!D336","v":0},{"$f":"Lighting!F336","v":0},{"$f":"Lighting!G336","v":0},{"$f":"Lighting!H336","v":0},{"$f":"Lighting!I336","v":0},{"$f":"Lighting!J336","v":0},{"$f":"Lighting!K336","v":0},{"$f":"Lighting!L336","v":0},{"$f":"Lighting!N336","v":0},{"$f":"Lighting!O336","v":0},{"$f":"Lighting!R336","v":0},{"$f":"Lighting!S336","v":0},{"$f":"Lighting!U336","v":""},{"$f":"Lighting!V336","v":""},{"$f":"Lighting!W336","v":""},{"$f":"Lighting!X336","v":0},{"$f":"Lighting!Y336","v":""},{"$f":"Lighting!AA336","v":""},{"$f":"Lighting!AC336","v":""},{"$f":"Lighting!AF336","v":""},{"$f":"Lighting!AG336","v":0},{"$f":"Lighting!AH336","v":0},{"$f":"Lighting!AI336","v":0}]
[0,{"$f":"Lighting!B337","v":329},{"$f":"Lighting!C337","v":0},{"$f":"Lighting!D337","v":0},{"$f":"Lighting!F337","v":0},{"$f":"Lighting!G337","v":0},{"$f":"Lighting!H337","v":0},{"$f":"Lighting!I337","v":0},{"$f":"Lighting!J337","v":0},{"$f":"Lighting!K337","v":0},{"$f":"Lighting!L337","v":0},{"$f":"Lighting!N337","v":0},{"$f":"Lighting!O337","v":0},{"$f":"Lighting!R337","v":0},{"$f":"Lighting!S337","v":0},{"$f":"Lighting!U337","v":""},{"$f":"Lighting!V337","v":""},{"$f":"Lighting!W337","v":""},{"$f":"Lighting!X337","v":0},{"$f":"Lighting!Y337","v":""},{"$f":"Lighting!AA337","v":""},{"$f":"Lighting!AC337","v":""},{"$f":"Lighting!AF337","v":""},{"$f":"Lighting!AG337","v":0},{"$f":"Lighting!AH337","v":0},{"$f":"Lighting!AI337","v":0}]
[0,{"$f":"Lighting!B338","v":330},{"$f":"Lighting!C338","v":0},{"$f":"Lighting!D338","v":0},{"$f":"Lighting!F338","v":0},{"$f":"Lighting!G338","v":0},{"$f":"Lighting!H338","v":0},{"$f":"Lighting!I338","v":0},{"$f":"Lighting!J338","v":0},{"$f":"Lighting!K338","v":0},{"$f":"Lighting!L338","v":0},{"$f":"Lighting!N338","v":0},{"$f":"Lighting!O338","v":0},{"$f":"Lighting!R338","v":0},{"$f":"Lighting!S338","v":0},{"$f":"Lighting!U338","v":""},{"$f":"Lighting!V338","v":""},{"$f":"Lighting!W338","v":""},{"$f":"Lighting!X338","v":0},{"$f":"Lighting!Y338","v":""},{"$f":"Lighting!AA338","v":""},{"$f":"Lighting!AC338","v":""},{"$f":"Lighting!AF338","v":""},{"$f":"Lighting!AG338","v":0},{"$f":"Lighting!AH338","v":0},{"$f":"Lighting!AI338","v":0}]
[0,{"$f":"Lighting!B339","v":331},{"$f":"Lighting!C339","v":0},{"$f":"Lighting!D339","v":0},{"$f":"Lighting!F339","v":0},{"$f":"Lighting!G339","v":0},{"$f":"Lighting!H339","v":0},{"$f":"Lighting!I339","v":0},{"$f":"Lighting!J339","v":0},{"$f":"Lighting!K339","v":0},{"$f":"Lighting!L339","v":0},{"$f":"Lighting!N339","v":0},{"$f":"Lighting!O339","v":0},{"$f":"Lighting!R339","v":0},{"$f":"Lighting!S339","v":0},{"$f":"Lighting!U339","v":""},{"$f":"Lighting!V339","v":""},{"$f":"Lighting!W339","v":""},{"$f":"Lighting!X339","v":0},{"$f":"Lighting!Y339","v":""},{"$f":"Lighting!AA339","v":""},{"$f":"Lighting!AC339","v":""},{"$f":"Lighting!AF339","v":""},{"$f":"Lighting!AG339","v":0},{"$f":"Lighting!AH339","v":0},{"$f":"Lighting!AI339","v":0}]
[0,{"$f":"Lighting!B340","v":332},{"$f":"Lighting!C340","v":0},{"$f":"Lighting!D340","v":0},{"$f":"Lighting!F340","v":0},{"$f":"Lighting!G340","v":0},{"$f":"Lighting!H340","v":0},{"$f":"Lighting!I340","v":0},{"$f":"Lighting!J340","v":0},{"$f":"Lighting!K340","v":0},{"$f":"Lighting!L340","v":0},{"$f":"Lighting!N340","v":0},{"$f":"Lighting!O340","v":0},{"$f":"Lighting!R340","v":0},{"$f":"Lighting!S340","v":0},{"$f":"Lighting!U340","v":""},{"$f":"Lighting!V340","v":""},{"$f":"Lighting!W340","v":""},{"$f":"Lighting!X340","v":0},{"$f":"Lighting!Y340","v":""},{"$f":"Lighting!AA340","v":""},{"$f":"Lighting!AC340","v":""},{"$f":"Lighting!AF340","v":""},{"$f":"Lighting!AG340","v":0},{"$f":"Lighting!AH340","v":0},{"$f":"Lighting!AI340","v":0}]
[0,{"$f":"Lighting!B341","v":333},{"$f":"Lighting!C341","v":0},{"$f":"Lighting!D341","v":0},{"$f":"Lighting!F341","v":0},{"$f":"Lighting!G341","v":0},{"$f":"Lighting!H341","v":0},{"$f":"Lighting!I341","v":0},{"$f":"Lighting!J341","v":0},{"$f":"Lighting!K341","v":0},{"$f":"Lighting!L341","v":0},{"$f":"Lighting!N341","v":0},{"$f":"Lighting!O341","v":0},{"$f":"Lighting!R341","v":0},{"$f":"Lighting!S341","v":0},{"$f":"Lighting!U341","v":""},{"$f":"Lighting!V341","v":""},{"$f":"Lighting!W341","v":""},{"$f":"Lighting!X341","v":0},{"$f":"Lighting!Y341","v":""},{"$f":"Lighting!AA341","v":""},{"$f":"Lighting!AC341","v":""},{"$f":"Lighting!AF341","v":""},{"$f":"Lighting!AG341","v":0},{"$f":"Lighting!AH341","v":0},{"$f":"Lighting!AI341","v":0}]
[0,{"$f":"Lighting!B342","v":334},{"$f":"Lighting!C342","v":0},{"$f":"Lighting!D342","v":0},{"$f":"Lighting!F342","v":0},{"$f":"Lighting!G342","v":0},{"$f":"Lighting!H342","v":0},{"$f":"Lighting!I342","v":0},{"$f":"Lighting!J342","v":0},{"$f":"Lighting!K342","v":0},{"$f":"Lighting!L342","v":0},{"$f":"Lighting!N342","v":0},{"$f":"Lighting!O342","v":0},{"$f":"Lighting!R342","v":0},{"$f":"Lighting!S342","v":0},{"$f":"Lighting!U342","v":""},{"$f":"Lighting!V342","v":""},{"$f":"Lighting!W342","v":""},{"$f":"Lighting!X342","v":0},{"$f":"Lighting!Y342","v":""},{"$f":"Lighting!AA342","v":""},{"$f":"Lighting!AC342","v":""},{"$f":"Lighting!AF342","v":""},{"$f":"Lighting!AG342","v":0},{"$f":"Lighting!AH342","v":0},{"$f":"Lighting!AI342","v":0}]
[0,{"$f":"Lighting!B343","v":335},{"$f":"Lighting!C343","v":0},{"$f":"Lighting!D343","v":0},{"$f":"Lighting!F343","v":0},{"$f":"Lighting!G343","v":0},{"$f":"Lighting!H343","v":0},{"$f":"Lighting!I343","v":0},{"$f":"Lighting!J343","v":0},{"$f":"Lighting!K343","v":0},{"$f":"Lighting!L343","v":0},{"$f":"Lighting!N343","v":0},{"$f":"Lighting!O343","v":0},{"$f":"Lighting!R343","v":0},{"$f":"Lighting!S343","v":0},{"$f":"Lighting!U343","v":""},{"$f":"Lighting!V343","v":""},{"$f":"Lighting!W343","v":""},{"$f":"Lighting!X343","v":0},{"$f":"Lighting!Y343","v":""},{"$f":"Lighting!AA343","v":""},{"$f":"Lighting!AC343","v":""},{"$f":"Lighting!AF343","v":""},{"$f":"Lighting!AG343","v":0},{"$f":"Lighting!AH343","v":0},{"$f":"Lighting!AI343","v":0}]
[0,{"$f":"Lighting!B344","v":336},{"$f":"Lighting!C344","v":0},{"$f":"Lighting!D344","v":0},{"$f":"Lighting!F344","v":0},{"$f":"Lighting!G344","v":0},{"$f":"Lighting!H344","v":0},{"$f":"Lighting!I344","v":0},{"$f":"Lighting!J344","v":0},{"$f":"Lighting!K344","v":0},{"$f":"Lighting!L344","v":0},{"$f":"Lighting!N344","v":0},{"$f":"Lighting!O344","v":0},{"$f":"Lighting!R344","v":0},{"$f":"Lighting!S344","v":0},{"$f":"Lighting!U344","v":""},{"$f":"Lighting!V344","v":""},{"$f":"Lighting!W344","v":""},{"$f":"Lighting!X344","v":0},{"$f":"Lighting!Y344","v":""},{"$f":"Lighting!AA344","v":""},{"$f":"Lighting!AC344","v":""},{"$f":"Lighting!AF344","v":""},{"$f":"Lighting!AG344","v":0},{"$f":"Lighting!AH344","v":0},{"$f":"Lighting!AI344","v":0}]
[0,{"$f":"Lighting!B345","v":337},{"$f":"Lighting!C345","v":0},{"$f":"Lighting!D345","v":0},{"$f":"Lighting!F345","v":0},{"$f":"Lighting!G345","v":0},{"$f":"Lighting!H345","v":0},{"$f":"Lighting!I345","v":0},{"$f":"Lighting!J345","v":0},{"$f":"Lighting!K345","v":0},{"$f":"Lighting!L345","v":0},{"$f":"Lighting!N345","v":0},{"$f":"Lighting!O345","v":0},{"$f":"Lighting!R345","v":0},{"$f":"Lighting!S345","v":0},{"$f":"Lighting!U345","v":""},{"$f":"Lighting!V345","v":""},{"$f":"Lighting!W345","v":""},{"$f":"Lighting!X345","v":0},{"$f":"Lighting!Y345","v":""},{"$f":"Lighting!AA345","v":""},{"$f":"Lighting!AC345","v":""},{"$f":"Lighting!AF345","v":""},{"$f":"Lighting!AG345","v":0},{"$f":"Lighting!AH345","v":0},{"$f":"Lighting!AI345","v":0}]
[0,{"$f":"Lighting!B346","v":338},{"$f":"Lighting!C346","v":0},{"$f":"Lighting!D346","v":0},{"$f":"Lighting!F346","v":0},{"$f":"Lighting!G346","v":0},{"$f":"Lighting!H346","v":0},{"$f":"Lighting!I346","v":0},{"$f":"Lighting!J346","v":0},{"$f":"Lighting!K346","v":0},{"$f":"Lighting!L346","v":0},{"$f":"Lighting!N346","v":0},{"$f":"Lighting!O346","v":0},{"$f":"Lighting!R346","v":0},{"$f":"Lighting!S346","v":0},{"$f":"Lighting!U346","v":""},{"$f":"Lighting!V346","v":""},{"$f":"Lighting!W346","v":""},{"$f":"Lighting!X346","v":0},{"$f":"Lighting!Y346","v":""},{"$f":"Lighting!AA346","v":""},{"$f":"Lighting!AC346","v":""},{"$f":"Lighting!AF346","v":""},{"$f":"Lighting!AG346","v":0},{"$f":"Lighting!AH346","v":0},{"$f":"Lighting!AI346","v":0}]
[0,{"$f":"Lighting!B347","v":339},{"$f":"Lighting!C347","v":0},{"$f":"Lighting!D347","v":0},{"$f":"Lighting!F347","v":0},{"$f":"Lighting!G347","v":0},{"$f":"Lighting!H347","v":0},{"$f":"Lighting!I347","v":0},{"$f":"Lighting!J347","v":0},{"$f":"Lighting!K347","v":0},{"$f":"Lighting!L347","v":0},{"$f":"Lighting!N347","v":0},{"$f":"Lighting!O347","v":0},{"$f":"Lighting!R347","v":0},{"$f":"Lighting!S347","v":0},{"$f":"Lighting!U347","v":""},{"$f":"Lighting!V347","v":""},{"$f":"Lighting!W347","v":""},{"$f":"Lighting!X347","v":0},{"$f":"Lighting!Y347","v":""},{"$f":"Lighting!AA347","v":""},{"$f":"Lighting!AC347","v":""},{"$f":"Lighting!AF347","v":""},{"$f":"Lighting!AG347","v":0},{"$f":"Lighting!AH347","v":0},{"$f":"Lighting!AI347","v":0}]
[0,{"$f":"Lighting!B348","v":340},{"$f":"Lighting!C348","v":0},{"$f":"Lighting!D348","v":0},{"$f":"Lighting!F348","v":0},{"$f":"Lighting!G348","v":0},{"$f":"Lighting!H348","v":0},{"$f":"Lighting!I348","v":0},{"$f":"Lighting!J348","v":0},{"$f":"Lighting!K348","v":0},{"$f":"Lighting!L348","v":0},{"$f":"Lighting!N348","v":0},{"$f":"Lighting!O348","v":0},{"$f":"Lighting!R348","v":0},{"$f":"Lighting!S348","v":0},{"$f":"Lighting!U348","v":""},{"$f":"Lighting!V348","v":""},{"$f":"Lighting!W348","v":""},{"$f":"Lighting!X348","v":0},{"$f":"Lighting!Y348","v":""},{"$f":"Lighting!AA348","v":""},{"$f":"Lighting!AC348","v":""},{"$f":"Lighting!AF348","v":""},{"$f":"Lighting!AG348","v":0},{"$f":"Lighting!AH348","v":0},{"$f":"Lighting!AI348","v":0}]
[0,{"$f":"Lighting!B349","v":341},{"$f":"Lighting!C349","v":0},{"$f":"Lighting!D349","v":0},{"$f":"Lighting!F349","v":0},{"$f":"Lighting!G349","v":0},{"$f":"Lighting!H349","v":0},{"$f":"Lighting!I349","v":0},{"$f":"Lighting!J349","v":0},{"$f":"Lighting!K349","v":0},{"$f":"Lighting!L349","v":0},{"$f":"Lighting!N349","v":0},{"$f":"Lighting!O349","v":0},{"$f":"Lighting!R349","v":0},{"$f":"Lighting!S349","v":0},{"$f":"Lighting!U349","v":""},{"$f":"Lighting!V349","v":""},{"$f":"Lighting!W349","v":""},{"$f":"Lighting!X349","v":0},{"$f":"Lighting!Y349","v":""},{"$f":"Lighting!AA349","v":""},{"$f":"Lighting!AC349","v":""},{"$f":"Lighting!AF349","v":""},{"$f":"Lighting!AG349","v":0},{"$f":"Lighting!AH349","v":0},{"$f":"Lighting!AI349","v":0}]
[0,{"$f":"Lighting!B350","v":342},{"$f":"Lighting!C350","v":0},{"$f":"Lighting!D350","v":0},{"$f":"Lighting!F350","v":0},{"$f":"Lighting!G350","v":0},{"$f":"Lighting!H350","v":0},{"$f":"Lighting!I350","v":0},{"$f":"Lighting!J350","v":0},{"$f":"Lighting!K350","v":0},{"$f":"Lighting!L350","v":0},{"$f":"Lighting!N350","v":0},{"$f":"Lighting!O350","v":0},{"$f":"Lighting!R350","v":0},{"$f":"Lighting!S350","v":0},{"$f":"Lighting!U350","v":""},{"$f":"Lighting!V350","v":""},{"$f":"Lighting!W350","v":""},{"$f":"Lighting!X350","v":0},{"$f":"Lighting!Y350","v":""},{"$f":"Lighting!AA350","v":""},{"$f":"Lighting!AC350","v":""},{"$f":"Lighting!AF350","v":""},{"$f":"Lighting!AG350","v":0},{"$f":"Lighting!AH350","v":0},{"$f":"Lighting!AI350","v":0}]
[0,{"$f":"Lighting!B351","v":343},{"$f":"Lighting!C351","v":0},{"$f":"Lighting!D351","v":0},{"$f":"Lighting!F351","v":0},{"$f":"Lighting!G351","v":0},{"$f":"Lighting!H351","v":0},{"$f":"Lighting!I351","v":0},{"$f":"Lighting!J351","v":0},{"$f":"Lighting!K351","v":0},{"$f":"Lighting!L351","v":0},{"$f":"Lighting!N351","v":0},{"$f":"Lighting!O351","v":0},{"$f":"Lighting!R351","v":0},{"$f":"Lighting!S351","v":0},{"$f":"Lighting!U351","v":""},{"$f":"Lighting!V351","v":""},{"$f":"Lighting!W351","v":""},{"$f":"Lighting!X351","v":0},{"$f":"Lighting!Y351","v":""},{"$f":"Lighting!AA351","v":""},{"$f":"Lighting!AC351","v":""},{"$f":"Lighting!AF351","v":""},{"$f":"Lighting!AG351","v":0},{"$f":"Lighting!AH351","v":0},{"$f":"Lighting!AI351","v":0}]
[0,{"$f":"Lighting!B352","v":344},{"$f":"Lighting!C352","v":0},{"$f":"Lighting!D352","v":0},{"$f":"Lighting!F352","v":0},{"$f":"Lighting!G352","v":0},{"$f":"Lighting!H352","v":0},{"$f":"Lighting!I352","v":0},{"$f":"Lighting!J352","v":0},{"$f":"Lighting!K352","v":0},{"$f":"Lighting!L352","v":0},{"$f":"Lighting!N352","v":0},{"$f":"Lighting!O352","v":0},{"$f":"Lighting!R352","v":0},{"$f":"Lighting!S352","v":0},{"$f":"Lighting!U352","v":""},{"$f":"Lighting!V352","v":""},{"$f":"Lighting!W352","v":""},{"$f":"Lighting!X352","v":0},{"$f":"Lighting!Y352","v":""},{"$f":"Lighting!AA352","v":""},{"$f":"Lighting!AC352","v":""},{"$f":"Lighting!AF352","v":""},{"$f":"Lighting!AG352","v":0},{"$f":"Lighting!AH352","v":0},{"$f":"Lighting!AI352","v":0}]
[0,{"$f":"Lighting!B353","v":345},{"$f":"Lighting!C353","v":0},{"$f":"Lighting!D353","v":0},{"$f":"Lighting!F353","v":0},{"$f":"Lighting!G353","v":0},{"$f":"Lighting!H353","v":0},{"$f":"Lighting!I353","v":0},{"$f":"Lighting!J353","v":0},{"$f":"Lighting!K353","v":0},{"$f":"Lighting!L353","v":0},{"$f":"Lighting!N353","v":0},{"$f":"Lighting!O353","v":0},{"$f":"Lighting!R353","v":0},{"$f":"Lighting!S353","v":0},{"$f":"Lighting!U353","v":""},{"$f":"Lighting!V353","v":""},{"$f":"Lighting!W353","v":""},{"$f":"Lighting!X353","v":0},{"$f":"Lighting!Y353","v":""},{"$f":"Lighting!AA353","v":""},{"$f":"Lighting!AC353","v":""},{"$f":"Lighting!AF353","v":""},{"$f":"Lighting!AG353","v":0},{"$f":"Lighting!AH353","v":0},{"$f":"Lighting!AI353","v":0}]
[0,{"$f":"Lighting!B354","v":346},{"$f":"Lighting!C354","v":0},{"$f":"Lighting!D354","v":0},{"$f":"Lighting!F354","v":0},{"$f":"Lighting!G354","v":0},{"$f":"Lighting!H354","v":0},{"$f":"Lighting!I354","v":0},{"$f":"Lighting!J354","v":0},{"$f":"Lighting!K354","v":0},{"$f":"Lighting!L354","v":0},{"$f":"Lighting!N354","v":0},{"$f":"Lighting!O354","v":0},{"$f":"Lighting!R354","v":0},{"$f":"Lighting!S354","v":0},{"$f":"Lighting!U354","v":""},{"$f":"Lighting!V354","v":""},{"$f":"Lighting!W354","v":""},{"$f":"Lighting!X354","v":0},{"$f":"Lighting!Y354","v":""},{"$f":"Lighting!AA354","v":""},{"$f":"Lighting!AC354","v":""},{"$f":"Lighting!AF354","v":""},{"$f":"Lighting!AG354","v":0},{"$f":"Lighting!AH354","v":0},{"$f":"Lighting!AI354","v":0}]
[0,{"$f":"Lighting!B355","v":347},{"$f":"Lighting!C355","v":0},{"$f":"Lighting!D355","v":0},{"$f":"Lighting!F355","v":0},{"$f":"Lighting!G355","v":0},{"$f":"Lighting!H355","v":0},{"$f":"Lighting!I355","v":0},{"$f":"Lighting!J355","v":0},{"$f":"Lighting!K355","v":0},{"$f":"Lighting!L355","v":0},{"$f":"Lighting!N355","v":0},{"$f":"Lighting!O355","v":0},{"$f":"Lighting!R355","v":0},{"$f":"Lighting!S355","v":0},{"$f":"Lighting!U355","v":""},{"$f":"Lighting!V355","v":""},{"$f":"Lighting!W355","v":""},{"$f":"Lighting!X355","v":0},{"$f":"Lighting!Y355","v":""},{"$f":"Lighting!AA355","v":""},{"$f":"Lighting!AC355","v":""},{"$f":"Lighting!AF355","v":""},{"$f":"Lighting!AG355","v":0},{"$f":"Lighting!AH355","v":0},{"$f":"Lighting!AI355","v":0}]
[0,{"$f":"Lighting!B356","v":348},{"$f":"Lighting!C356","v":0},{"$f":"Lighting!D356","v":0},{"$f":"Lighting!F356","v":0},{"$f":"Lighting!G356","v":0},{"$f":"Lighting!H356","v":0},{"$f":"Lighting!I356","v":0},{"$f":"Lighting!J356","v":0},{"$f":"Lighting!K356","v":0},{"$f":"Lighting!L356","v":0},{"$f":"Lighting!N356","v":0},{"$f":"Lighting!O356","v":0},{"$f":"Lighting!R356","v":0},{"$f":"Lighting!S356","v":0},{"$f":"Lighting!U356","v":""},{"$f":"Lighting!V356","v":""},{"$f":"Lighting!W356","v":""},{"$f":"Lighting!X356","v":0},{"$f":"Lighting!Y356","v":""},{"$f":"Lighting!AA356","v":""},{"$f":"Lighting!AC356","v":""},{"$f":"Lighting!AF356","v":""},{"$f":"Lighting!AG356","v":0},{"$f":"Lighting!AH356","v":0},{"$f":"Lighting!AI356","v":0}]
[0,{"$f":"Lighting!B357","v":349},{"$f":"Lighting!C357","v":0},{"$f":"Lighting!D357","v":0},{"$f":"Lighting!F357","v":0},{"$f":"Lighting!G357","v":0},{"$f":"Lighting!H357","v":0},{"$f":"Lighting!I357","v":0},{"$f":"Lighting!J357","v":0},{"$f":"Lighting!K357","v":0},{"$f":"Lighting!L357","v":0},{"$f":"Lighting!N357","v":0},{"$f":"Lighting!O357","v":0},{"$f":"Lighting!R357","v":0},{"$f":"Lighting!S357","v":0},{"$f":"Lighting!U357","v":""},{"$f":"Lighting!V357","v":""},{"$f":"Lighting!W357","v":""},{"$f":"Lighting!X357","v":0},{"$f":"Lighting!Y357","v":""},{"$f":"Lighting!AA357","v":""},{"$f":"Lighting!AC357","v":""},{"$f":"Lighting!AF357","v":""},{"$f":"Lighting!AG357","v":0},{"$f":"Lighting!AH357","v":0},{"$f":"Lighting!AI357","v":0}]
[0,{"$f":"Lighting!B358","v":350},{"$f":"Lighting!C358","v":0},{"$f":"Lighting!D358","v":0},{"$f":"Lighting!F358","v":0},{"$f":"Lighting!G358","v":0},{"$f":"Lighting!H358","v":0},{"$f":"Lighting!I358","v":0},{"$f":"Lighting!J358","v":0},{"$f":"Lighting!K358","v":0},{"$f":"Lighting!L358","v":0},{"$f":"Lighting!N358","v":0},{"$f":"Lighting!O358","v":0},{"$f":"Lighting!R358","v":0},{"$f":"Lighting!S358","v":0},{"$f":"Lighting!U358","v":""},{"$f":"Lighting!V358","v":""},{"$f":"Lighting!W358","v":""},{"$f":"Lighting!X358","v":0},{"$f":"Lighting!Y358","v":""},{"$f":"Lighting!AA358","v":""},{"$f":"Lighting!AC358","v":""},{"$f":"Lighting!AF358","v":""},{"$f":"Lighting!AG358","v":0},{"$f":"Lighting!AH358","v":0},{"$f":"Lighting!AI358","v":0}]
[0,{"$f":"Lighting!B359","v":351},{"$f":"Lighting!C359","v":0},{"$f":"Lighting!D359","v":0},{"$f":"Lighting!F359","v":0},{"$f":"Lighting!G359","v":0},{"$f":"Lighting!H359","v":0},{"$f":"Lighting!I359","v":0},{"$f":"Lighting!J359","v":0},{"$f":"Lighting!K359","v":0},{"$f":"Lighting!L359","v":0},{"$f":"Lighting!N359","v":0},{"$f":"Lighting!O359","v":0},{"$f":"Lighting!R359","v":0},{"$f":"Lighting!S359","v":0},{"$f":"Lighting!U359","v":""},{"$f":"Lighting!V359","v":""},{"$f":"Lighting!W359","v":""},{"$f":"Lighting!X359","v":0},{"$f":"Lighting!Y359","v":""},{"$f":"Lighting!AA359","v":""},{"$f":"Lighting!AC359","v":""},{"$f":"Lighting!AF359","v":""},{"$f":"Lighting!AG359","v":0},{"$f":"Lighting!AH359","v":0},{"$f":"Lighting!AI359","v":0}]
[0,{"$f":"Lighting!B360","v":352},{"$f":"Lighting!C360","v":0},{"$f":"Lighting!D360","v":0},{"$f":"Lighting!F360","v":0},{"$f":"Lighting!G360","v":0},{"$f":"Lighting!H360","v":0},{"$f":"Lighting!I360","v":0},{"$f":"Lighting!J360","v":0},{"$f":"Lighting!K360","v":0},{"$f":"Lighting!L360","v":0},{"$f":"Lighting!N360","v":0},{"$f":"Lighting!O360","v":0},{"$f":"Lighting!R360","v":0},{"$f":"Lighting!S360","v":0},{"$f":"Lighting!U360","v":""},{"$f":"Lighting!V360","v":""},{"$f":"Lighting!W360","v":""},{"$f":"Lighting!X360","v":0},{"$f":"Lighting!Y360","v":""},{"$f":"Lighting!AA360","v":""},{"$f":"Lighting!AC360","v":""},{"$f":"Lighting!AF360","v":""},{"$f":"Lighting!AG360","v":0},{"$f":"Lighting!AH360","v":0},{"$f":"Lighting!AI360","v":0}]
[0,{"$f":"Lighting!B361","v":353},{"$f":"Lighting!C361","v":0},{"$f":"Lighting!D361","v":0},{"$f":"Lighting!F361","v":0},{"$f":"Lighting!G361","v":0},{"$f":"Lighting!H361","v":0},{"$f":"Lighting!I361","v":0},{"$f":"Lighting!J361","v":0},{"$f":"Lighting!K361","v":0},{"$f":"Lighting!L361","v":0},{"$f":"Lighting!N361","v":0},{"$f":"Lighting!O361","v":0},{"$f":"Lighting!R361","v":0},{"$f":"Lighting!S361","v":0},{"$f":"Lighting!U361","v":""},{"$f":"Lighting!V361","v":""},{"$f":"Lighting!W361","v":""},{"$f":"Lighting!X361","v":0},{"$f":"Lighting!Y361","v":""},{"$f":"Lighting!AA361","v":""},{"$f":"Lighting!AC361","v":""},{"$f":"Lighting!AF361","v":""},{"$f":"Lighting!AG361","v":0},{"$f":"Lighting!AH361","v":0},{"$f":"Lighting!AI361","v":0}]
[0,{"$f":"Lighting!B362","v":354},{"$f":"Lighting!C362","v":0},{"$f":"Lighting!D362","v":0},{"$f":"Lighting!F362","v":0},{"$f":"Lighting!G362","v":0},{"$f":"Lighting!H362","v":0},{"$f":"Lighting!I362","v":0},{"$f":"Lighting!J362","v":0},{"$f":"Lighting!K362","v":0},{"$f":"Lighting!L362","v":0},{"$f":"Lighting!N362","v":0},{"$f":"Lighting!O362","v":0},{"$f":"Lighting!R362","v":0},{"$f":"Lighting!S362","v":0},{"$f":"Lighting!U362","v":""},{"$f":"Lighting!V362","v":""},{"$f":"Lighting!W362","v":""},{"$f":"Lighting!X362","v":0},{"$f":"Lighting!Y362","v":""},{"$f":"Lighting!AA362","v":""},{"$f":"Lighting!AC362","v":""},{"$f":"Lighting!AF362","v":""},{"$f":"Lighting!AG362","v":0},{"$f":"Lighting!AH362","v":0},{"$f":"Lighting!AI362","v":0}]
[0,{"$f":"Lighting!B363","v":355},{"$f":"Lighting!C363","v":0},{"$f":"Lighting!D363","v":0},{"$f":"Lighting!F363","v":0},{"$f":"Lighting!G363","v":0},{"$f":"Lighting!H363","v":0},{"$f":"Lighting!I363","v":0},{"$f":"Lighting!J363","v":0},{"$f":"Lighting!K363","v":0},{"$f":"Lighting!L363","v":0},{"$f":"Lighting!N363","v":0},{"$f":"Lighting!O363","v":0},{"$f":"Lighting!R363","v":0},{"$f":"Lighting!S363","v":0},{"$f":"Lighting!U363","v":""},{"$f":"Lighting!V363","v":""},{"$f":"Lighting!W363","v":""},{"$f":"Lighting!X363","v":0},{"$f":"Lighting!Y363","v":""},{"$f":"Lighting!AA363","v":""},{"$f":"Lighting!AC363","v":""},{"$f":"Lighting!AF363","v":""},{"$f":"Lighting!AG363","v":0},{"$f":"Lighting!AH363","v":0},{"$f":"Lighting!AI363","v":0}]
[0,{"$f":"Lighting!B364","v":356},{"$f":"Lighting!C364","v":0},{"$f":"Lighting!D364","v":0},{"$f":"Lighting!F364","v":0},{"$f":"Lighting!G364","v":0},{"$f":"Lighting!H364","v":0},{"$f":"Lighting!I364","v":0},{"$f":"Lighting!J364","v":0},{"$f":"Lighting!K364","v":0},{"$f":"Lighting!L364","v":0},{"$f":"Lighting!N364","v":0},{"$f":"Lighting!O364","v":0},{"$f":"Lighting!R364","v":0},{"$f":"Lighting!S364","v":0},{"$f":"Lighting!U364","v":""},{"$f":"Lighting!V364","v":""},{"$f":"Lighting!W364","v":""},{"$f":"Lighting!X364","v":0},{"$f":"Lighting!Y364","v":""},{"$f":"Lighting!AA364","v":""},{"$f":"Lighting!AC364","v":""},{"$f":"Lighting!AF364","v":""},{"$f":"Lighting!AG364","v":0},{"$f":"Lighting!AH364","v":0},{"$f":"Lighting!AI364","v":0}]
[0,{"$f":"Lighting!B365","v":357},{"$f":"Lighting!C365","v":0},{"$f":"Lighting!D365","v":0},{"$f":"Lighting!F365","v":0},{"$f":"Lighting!G365","v":0},{"$f":"Lighting!H365","v":0},{"$f":"Lighting!I365","v":0},{"$f":"Lighting!J365","v":0},{"$f":"Lighting!K365","v":0},{"$f":"Lighting!L365","v":0},{"$f":"Lighting!N365","v":0},{"$f":"Lighting!O365","v":0},{"$f":"Lighting!R365","v":0},{"$f":"Lighting!S365","v":0},{"$f":"Lighting!U365","v":""},{"$f":"Lighting!V365","v":""},{"$f":"Lighting!W365","v":""},{"$f":"Lighting!X365","v":0},{"$f":"Lighting!Y365","v":""},{"$f":"Lighting!AA365","v":""},{"$f":"Lighting!AC365","v":""},{"$f":"Lighting!AF365","v":""},{"$f":"Lighting!AG365","v":0},{"$f":"Lighting!AH365","v":0},{"$f":"Lighting!AI365","v":0}]
[0,{"$f":"Lighting!B366","v":358},{"$f":"Lighting!C366","v":0},{"$f":"Lighting!D366","v":0},{"$f":"Lighting!F366","v":0},{"$f":"Lighting!G366","v":0},{"$f":"Lighting!H366","v":0},{"$f":"Lighting!I366","v":0},{"$f":"Lighting!J366","v":0},{"$f":"Lighting!K366","v":0},{"$f":"Lighting!L366","v":0},{"$f":"Lighting!N366","v":0},{"$f":"Lighting!O366","v":0},{"$f":"Lighting!R366","v":0},{"$f":"Lighting!S366","v":0},{"$f":"Lighting!U366","v":""},{"$f":"Lighting!V366","v":""},{"$f":"Lighting!W366","v":""},{"$f":"Lighting!X366","v":0},{"$f":"Lighting!Y366","v":""},{"$f":"Lighting!AA366","v":""},{"$f":"Lighting!AC366","v":""},{"$f":"Lighting!AF366","v":""},{"$f":"Lighting!AG366","v":0},{"$f":"Lighting!AH366","v":0},{"$f":"Lighting!AI366","v":0}]
[0,{"$f":"Lighting!B367","v":359},{"$f":"Lighting!C367","v":0},{"$f":"Lighting!D367","v":0},{"$f":"Lighting!F367","v":0},{"$f":"Lighting!G367","v":0},{"$f":"Lighting!H367","v":0},{"$f":"Lighting!I367","v":0},{"$f":"Lighting!J367","v":0},{"$f":"Lighting!K367","v":0},{"$f":"Lighting!L367","v":0},{"$f":"Lighting!N367","v":0},{"$f":"Lighting!O367","v":0},{"$f":"Lighting!R367","v":0},{"$f":"Lighting!S367","v":0},{"$f":"Lighting!U367","v":""},{"$f":"Lighting!V367","v":""},{"$f":"Lighting!W367","v":""},{"$f":"Lighting!X367","v":0},{"$f":"Lighting!Y367","v":""},{"$f":"Lighting!AA367","v":""},{"$f":"Lighting!AC367","v":""},{"$f":"Lighting!AF367","v":""},{"$f":"Lighting!AG367","v":0},{"$f":"Lighting!AH367","v":0},{"$f":"Lighting!AI367","v":0}]
[0,{"$f":"Lighting!B368","v":360},{"$f":"Lighting!C368","v":0},{"$f":"Lighting!D368","v":0},{"$f":"Lighting!F368","v":0},{"$f":"Lighting!G368","v":0},{"$f":"Lighting!H368","v":0},{"$f":"Lighting!I368","v":0},{"$f":"Lighting!J368","v":0},{"$f":"Lighting!K368","v":0},{"$f":"Lighting!L368","v":0},{"$f":"Lighting!N368","v":0},{"$f":"Lighting!O368","v":0},{"$f":"Lighting!R368","v":0},{"$f":"Lighting!S368","v":0},{"$f":"Lighting!U368","v":""},{"$f":"Lighting!V368","v":""},{"$f":"Lighting!W368","v":""},{"$f":"Lighting!X368","v":0},{"$f":"Lighting!Y368","v":""},{"$f":"Lighting!AA368","v":""},{"$f":"Lighting!AC368","v":""},{"$f":"Lighting!AF368","v":""},{"$f":"Lighting!AG368","v":0},{"$f":"Lighting!AH368","v":0},{"$f":"Lighting!AI368","v":0}]
[0,{"$f":"Lighting!B369","v":361},{"$f":"Lighting!C369","v":0},{"$f":"Lighting!D369","v":0},{"$f":"Lighting!F369","v":0},{"$f":"Lighting!G369","v":0},{"$f":"Lighting!H369","v":0},{"$f":"Lighting!I369","v":0},{"$f":"Lighting!J369","v":0},{"$f":"Lighting!K369","v":0},{"$f":"Lighting!L369","v":0},{"$f":"Lighting!N369","v":0},{"$f":"Lighting!O369","v":0},{"$f":"Lighting!R369","v":0},{"$f":"Lighting!S369","v":0},{"$f":"Lighting!U369","v":""},{"$f":"Lighting!V369","v":""},{"$f":"Lighting!W369","v":""},{"$f":"Lighting!X369","v":0},{"$f":"Lighting!Y369","v":""},{"$f":"Lighting!AA369","v":""},{"$f":"Lighting!AC369","v":""},{"$f":"Lighting!AF369","v":""},{"$f":"Lighting!AG369","v":0},{"$f":"Lighting!AH369","v":0},{"$f":"Lighting!AI369","v":0}]
[0,{"$f":"Lighting!B370","v":362},{"$f":"Lighting!C370","v":0},{"$f":"Lighting!D370","v":0},{"$f":"Lighting!F370","v":0},{"$f":"Lighting!G370","v":0},{"$f":"Lighting!H370","v":0},{"$f":"Lighting!I370","v":0},{"$f":"Lighting!J370","v":0},{"$f":"Lighting!K370","v":0},{"$f":"Lighting!L370","v":0},{"$f":"Lighting!N370","v":0},{"$f":"Lighting!O370","v":0},{"$f":"Lighting!R370","v":0},{"$f":"Lighting!S370","v":0},{"$f":"Lighting!U370","v":""},{"$f":"Lighting!V370","v":""},{"$f":"Lighting!W370","v":""},{"$f":"Lighting!X370","v":0},{"$f":"Lighting!Y370","v":""},{"$f":"Lighting!AA370","v":""},{"$f":"Lighting!AC370","v":""},{"$f":"Lighting!AF370","v":""},{"$f":"Lighting!AG370","v":0},{"$f":"Lighting!AH370","v":0},{"$f":"Lighting!AI370","v":0}]
[0,{"$f":"Lighting!B371","v":363},{"$f":"Lighting!C371","v":0},{"$f":"Lighting!D371","v":0},{"$f":"Lighting!F371","v":0},{"$f":"Lighting!G371","v":0},{"$f":"Lighting!H371","v":0},{"$f":"Lighting!I371","v":0},{"$f":"Lighting!J371","v":0},{"$f":"Lighting!K371","v":0},{"$f":"Lighting!L371","v":0},{"$f":"Lighting!N371","v":0},{"$f":"Lighting!O371","v":0},{"$f":"Lighting!R371","v":0},{"$f":"Lighting!S371","v":0},{"$f":"Lighting!U371","v":""},{"$f":"Lighting!V371","v":""},{"$f":"Lighting!W371","v":""},{"$f":"Lighting!X371","v":0},{"$f":"Lighting!Y371","v":""},{"$f":"Lighting!AA371","v":""},{"$f":"Lighting!AC371","v":""},{"$f":"Lighting!AF371","v":""},{"$f":"Lighting!AG371","v":0},{"$f":"Lighting!AH371","v":0},{"$f":"Lighting!AI371","v":0}]
[0,{"$f":"Lighting!B372","v":364},{"$f":"Lighting!C372","v":0},{"$f":"Lighting!D372","v":0},{"$f":"Lighting!F372","v":0},{"$f":"Lighting!G372","v":0},{"$f":"Lighting!H372","v":0},{"$f":"Lighting!I372","v":0},{"$f":"Lighting!J372","v":0},{"$f":"Lighting!K372","v":0},{"$f":"Lighting!L372","v":0},{"$f":"Lighting!N372","v":0},{"$f":"Lighting!O372","v":0},{"$f":"Lighting!R372","v":0},{"$f":"Lighting!S372","v":0},{"$f":"Lighting!U372","v":""},{"$f":"Lighting!V372","v":""},{"$f":"Lighting!W372","v":""},{"$f":"Lighting!X372","v":0},{"$f":"Lighting!Y372","v":""},{"$f":"Lighting!AA372","v":""},{"$f":"Lighting!AC372","v":""},{"$f":"Lighting!AF372","v":""},{"$f":"Lighting!AG372","v":0},{"$f":"Lighting!AH372","v":0},{"$f":"Lighting!AI372","v":0}]
[0,{"$f":"Lighting!B373","v":365},{"$f":"Lighting!C373","v":0},{"$f":"Lighting!D373","v":0},{"$f":"Lighting!F373","v":0},{"$f":"Lighting!G373","v":0},{"$f":"Lighting!H373","v":0},{"$f":"Lighting!I373","v":0},{"$f":"Lighting!J373","v":0},{"$f":"Lighting!K373","v":0},{"$f":"Lighting!L373","v":0},{"$f":"Lighting!N373","v":0},{"$f":"Lighting!O373","v":0},{"$f":"Lighting!R373","v":0},{"$f":"Lighting!S373","v":0},{"$f":"Lighting!U373","v":""},{"$f":"Lighting!V373","v":""},{"$f":"Lighting!W373","v":""},{"$f":"Lighting!X373","v":0},{"$f":"Lighting!Y373","v":""},{"$f":"Lighting!AA373","v":""},{"$f":"Lighting!AC373","v":""},{"$f":"Lighting!AF373","v":""},{"$f":"Lighting!AG373","v":0},{"$f":"Lighting!AH373","v":0},{"$f":"Lighting!AI373","v":0}]
[0,{"$f":"Lighting!B374","v":366},{"$f":"Lighting!C374","v":0},{"$f":"Lighting!D374","v":0},{"$f":"Lighting!F374","v":0},{"$f":"Lighting!G374","v":0},{"$f":"Lighting!H374","v":0},{"$f":"Lighting!I374","v":0},{"$f":"Lighting!J374","v":0},{"$f":"Lighting!K374","v":0},{"$f":"Lighting!L374","v":0},{"$f":"Lighting!N374","v":0},{"$f":"Lighting!O374","v":0},{"$f":"Lighting!R374","v":0},{"$f":"Lighting!S374","v":0},{"$f":"Lighting!U374","v":""},{"$f":"Lighting!V374","v":""},{"$f":"Lighting!W374","v":""},{"$f":"Lighting!X374","v":0},{"$f":"Lighting!Y374","v":""},{"$f":"Lighting!AA374","v":""},{"$f":"Lighting!AC374","v":""},{"$f":"Lighting!AF374","v":""},{"$f":"Lighting!AG374","v":0},{"$f":"Lighting!AH374","v":0},{"$f":"Lighting!AI374","v":0}]
[0,{"$f":"Lighting!B375","v":367},{"$f":"Lighting!C375","v":0},{"$f":"Lighting!D375","v":0},{"$f":"Lighting!F375","v":0},{"$f":"Lighting!G375","v":0},{"$f":"Lighting!H375","v":0},{"$f":"Lighting!I375","v":0},{"$f":"Lighting!J375","v":0},{"$f":"Lighting!K375","v":0},{"$f":"Lighting!L375","v":0},{"$f":"Lighting!N375","v":0},{"$f":"Lighting!O375","v":0},{"$f":"Lighting!R375","v":0},{"$f":"Lighting!S375","v":0},{"$f":"Lighting!U375","v":""},{"$f":"Lighting!V375","v":""},{"$f":"Lighting!W375","v":""},{"$f":"Lighting!X375","v":0},{"$f":"Lighting!Y375","v":""},{"$f":"Lighting!AA375","v":""},{"$f":"Lighting!AC375","v":""},{"$f":"Lighting!AF375","v":""},{"$f":"Lighting!AG375","v":0},{"$f":"Lighting!AH375","v":0},{"$f":"Lighting!AI375","v":0}]
[0,{"$f":"Lighting!B376","v":368},{"$f":"Lighting!C376","v":0},{"$f":"Lighting!D376","v":0},{"$f":"Lighting!F376","v":0},{"$f":"Lighting!G376","v":0},{"$f":"Lighting!H376","v":0},{"$f":"Lighting!I376","v":0},{"$f":"Lighting!J376","v":0},{"$f":"Lighting!K376","v":0},{"$f":"Lighting!L376","v":0},{"$f":"Lighting!N376","v":0},{"$f":"Lighting!O376","v":0},{"$f":"Lighting!R376","v":0},{"$f":"Lighting!S376","v":0},{"$f":"Lighting!U376","v":""},{"$f":"Lighting!V376","v":""},{"$f":"Lighting!W376","v":""},{"$f":"Lighting!X376","v":0},{"$f":"Lighting!Y376","v":""},{"$f":"Lighting!AA376","v":""},{"$f":"Lighting!AC376","v":""},{"$f":"Lighting!AF376","v":""},{"$f":"Lighting!AG376","v":0},{"$f":"Lighting!AH376","v":0},{"$f":"Lighting!AI376","v":0}]
[0,{"$f":"Lighting!B377","v":369},{"$f":"Lighting!C377","v":0},{"$f":"Lighting!D377","v":0},{"$f":"Lighting!F377","v":0},{"$f":"Lighting!G377","v":0},{"$f":"Lighting!H377","v":0},{"$f":"Lighting!I377","v":0},{"$f":"Lighting!J377","v":0},{"$f":"Lighting!K377","v":0},{"$f":"Lighting!L377","v":0},{"$f":"Lighting!N377","v":0},{"$f":"Lighting!O377","v":0},{"$f":"Lighting!R377","v":0},{"$f":"Lighting!S377","v":0},{"$f":"Lighting!U377","v":""},{"$f":"Lighting!V377","v":""},{"$f":"Lighting!W377","v":""},{"$f":"Lighting!X377","v":0},{"$f":"Lighting!Y377","v":""},{"$f":"Lighting!AA377","v":""},{"$f":"Lighting!AC377","v":""},{"$f":"Lighting!AF377","v":""},{"$f":"Lighting!AG377","v":0},{"$f":"Lighting!AH377","v":0},{"$f":"Lighting!AI377","v":0}]
[0,{"$f":"Lighting!B378","v":370},{"$f":"Lighting!C378","v":0},{"$f":"Lighting!D378","v":0},{"$f":"Lighting!F378","v":0},{"$f":"Lighting!G378","v":0},{"$f":"Lighting!H378","v":0},{"$f":"Lighting!I378","v":0},{"$f":"Lighting!J378","v":0},{"$f":"Lighting!K378","v":0},{"$f":"Lighting!L378","v":0},{"$f":"Lighting!N378","v":0},{"$f":"Lighting!O378","v":0},{"$f":"Lighting!R378","v":0},{"$f":"Lighting!S378","v":0},{"$f":"Lighting!U378","v":""},{"$f":"Lighting!V378","v":""},{"$f":"Lighting!W378","v":""},{"$f":"Lighting!X378","v":0},{"$f":"Lighting!Y378","v":""},{"$f":"Lighting!AA378","v":""},{"$f":"Lighting!AC378","v":""},{"$f":"Lighting!AF378","v":""},{"$f":"Lighting!AG378","v":0},{"$f":"Lighting!AH378","v":0},{"$f":"Lighting!AI378","v":0}]
[0,{"$f":"Lighting!B379","v":371},{"$f":"Lighting!C379","v":0},{"$f":"Lighting!D379","v":0},{"$f":"Lighting!F379","v":0},{"$f":"Lighting!G379","v":0},{"$f":"Lighting!H379","v":0},{"$f":"Lighting!I379","v":0},{"$f":"Lighting!J379","v":0},{"$f":"Lighting!K379","v":0},{"$f":"Lighting!L379","v":0},{"$f":"Lighting!N379","v":0},{"$f":"Lighting!O379","v":0},{"$f":"Lighting!R379","v":0},{"$f":"Lighting!S379","v":0},{"$f":"Lighting!U379","v":""},{"$f":"Lighting!V379","v":""},{"$f":"Lighting!W379","v":""},{"$f":"Lighting!X379","v":0},{"$f":"Lighting!Y379","v":""},{"$f":"Lighting!AA379","v":""},{"$f":"Lighting!AC379","v":""},{"$f":"Lighting!AF379","v":""},{"$f":"Lighting!AG379","v":0},{"$f":"Lighting!AH379","v":0},{"$f":"Lighting!AI379","v":0}]
[0,{"$f":"Lighting!B380","v":372},{"$f":"Lighting!C380","v":0},{"$f":"Lighting!D380","v":0},{"$f":"Lighting!F380","v":0},{"$f":"Lighting!G380","v":0},{"$f":"Lighting!H380","v":0},{"$f":"Lighting!I380","v":0},{"$f":"Lighting!J380","v":0},{"$f":"Lighting!K380","v":0},{"$f":"Lighting!L380","v":0},{"$f":"Lighting!N380","v":0},{"$f":"Lighting!O380","v":0},{"$f":"Lighting!R380","v":0},{"$f":"Lighting!S380","v":0},{"$f":"Lighting!U380","v":""},{"$f":"Lighting!V380","v":""},{"$f":"Lighting!W380","v":""},{"$f":"Lighting!X380","v":0},{"$f":"Lighting!Y380","v":""},{"$f":"Lighting!AA380","v":""},{"$f":"Lighting!AC380","v":""},{"$f":"Lighting!AF380","v":""},{"$f":"Lighting!AG380","v":0},{"$f":"Lighting!AH380","v":0},{"$f":"Lighting!AI380","v":0}]
[0,{"$f":"Lighting!B381","v":373},{"$f":"Lighting!C381","v":0},{"$f":"Lighting!D381","v":0},{"$f":"Lighting!F381","v":0},{"$f":"Lighting!G381","v":0},{"$f":"Lighting!H381","v":0},{"$f":"Lighting!I381","v":0},{"$f":"Lighting!J381","v":0},{"$f":"Lighting!K381","v":0},{"$f":"Lighting!L381","v":0},{"$f":"Lighting!N381","v":0},{"$f":"Lighting!O381","v":0},{"$f":"Lighting!R381","v":0},{"$f":"Lighting!S381","v":0},{"$f":"Lighting!U381","v":""},{"$f":"Lighting!V381","v":""},{"$f":"Lighting!W381","v":""},{"$f":"Lighting!X381","v":0},{"$f":"Lighting!Y381","v":""},{"$f":"Lighting!AA381","v":""},{"$f":"Lighting!AC381","v":""},{"$f":"Lighting!AF381","v":""},{"$f":"Lighting!AG381","v":0},{"$f":"Lighting!AH381","v":0},{"$f":"Lighting!AI381","v":0}]
[0,{"$f":"Lighting!B382","v":374},{"$f":"Lighting!C382","v":0},{"$f":"Lighting!D382","v":0},{"$f":"Lighting!F382","v":0},{"$f":"Lighting!G382","v":0},{"$f":"Lighting!H382","v":0},{"$f":"Lighting!I382","v":0},{"$f":"Lighting!J382","v":0},{"$f":"Lighting!K382","v":0},{"$f":"Lighting!L382","v":0},{"$f":"Lighting!N382","v":0},{"$f":"Lighting!O382","v":0},{"$f":"Lighting!R382","v":0},{"$f":"Lighting!S382","v":0},{"$f":"Lighting!U382","v":""},{"$f":"Lighting!V382","v":""},{"$f":"Lighting!W382","v":""},{"$f":"Lighting!X382","v":0},{"$f":"Lighting!Y382","v":""},{"$f":"Lighting!AA382","v":""},{"$f":"Lighting!AC382","v":""},{"$f":"Lighting!AF382","v":""},{"$f":"Lighting!AG382","v":0},{"$f":"Lighting!AH382","v":0},{"$f":"Lighting!AI382","v":0}]
[0,{"$f":"Lighting!B383","v":375},{"$f":"Lighting!C383","v":0},{"$f":"Lighting!D383","v":0},{"$f":"Lighting!F383","v":0},{"$f":"Lighting!G383","v":0},{"$f":"Lighting!H383","v":0},{"$f":"Lighting!I383","v":0},{"$f":"Lighting!J383","v":0},{"$f":"Lighting!K383","v":0},{"$f":"Lighting!L383","v":0},{"$f":"Lighting!N383","v":0},{"$f":"Lighting!O383","v":0},{"$f":"Lighting!R383","v":0},{"$f":"Lighting!S383","v":0},{"$f":"Lighting!U383","v":""},{"$f":"Lighting!V383","v":""},{"$f":"Lighting!W383","v":""},{"$f":"Lighting!X383","v":0},{"$f":"Lighting!Y383","v":""},{"$f":"Lighting!AA383","v":""},{"$f":"Lighting!AC383","v":""},{"$f":"Lighting!AF383","v":""},{"$f":"Lighting!AG383","v":0},{"$f":"Lighting!AH383","v":0},{"$f":"Lighting!AI383","v":0}]
[0,{"$f":"Lighting!B384","v":376},{"$f":"Lighting!C384","v":0},{"$f":"Lighting!D384","v":0},{"$f":"Lighting!F384","v":0},{"$f":"Lighting!G384","v":0},{"$f":"Lighting!H384","v":0},{"$f":"Lighting!I384","v":0},{"$f":"Lighting!J384","v":0},{"$f":"Lighting!K384","v":0},{"$f":"Lighting!L384","v":0},{"$f":"Lighting!N384","v":0},{"$f":"Lighting!O384","v":0},{"$f":"Lighting!R384","v":0},{"$f":"Lighting!S384","v":0},{"$f":"Lighting!U384","v":""},{"$f":"Lighting!V384","v":""},{"$f":"Lighting!W384","v":""},{"$f":"Lighting!X384","v":0},{"$f":"Lighting!Y384","v":""},{"$f":"Lighting!AA384","v":""},{"$f":"Lighting!AC384","v":""},{"$f":"Lighting!AF384","v":""},{"$f":"Lighting!AG384","v":0},{"$f":"Lighting!AH384","v":0},{"$f":"Lighting!AI384","v":0}]
[0,{"$f":"Lighting!B385","v":377},{"$f":"Lighting!C385","v":0},{"$f":"Lighting!D385","v":0},{"$f":"Lighting!F385","v":0},{"$f":"Lighting!G385","v":0},{"$f":"Lighting!H385","v":0},{"$f":"Lighting!I385","v":0},{"$f":"Lighting!J385","v":0},{"$f":"Lighting!K385","v":0},{"$f":"Lighting!L385","v":0},{"$f":"Lighting!N385","v":0},{"$f":"Lighting!O385","v":0},{"$f":"Lighting!R385","v":0},{"$f":"Lighting!S385","v":0},{"$f":"Lighting!U385","v":""},{"$f":"Lighting!V385","v":""},{"$f":"Lighting!W385","v":""},{"$f":"Lighting!X385","v":0},{"$f":"Lighting!Y385","v":""},{"$f":"Lighting!AA385","v":""},{"$f":"Lighting!AC385","v":""},{"$f":"Lighting!AF385","v":""},{"$f":"Lighting!AG385","v":0},{"$f":"Lighting!AH385","v":0},{"$f":"Lighting!AI385","v":0}]
[0,{"$f":"Lighting!B386","v":378},{"$f":"Lighting!C386","v":0},{"$f":"Lighting!D386","v":0},{"$f":"Lighting!F386","v":0},{"$f":"Lighting!G386","v":0},{"$f":"Lighting!H386","v":0},{"$f":"Lighting!I386","v":0},{"$f":"Lighting!J386","v":0},{"$f":"Lighting!K386","v":0},{"$f":"Lighting!L386","v":0},{"$f":"Lighting!N386","v":0},{"$f":"Lighting!O386","v":0},{"$f":"Lighting!R386","v":0},{"$f":"Lighting!S386","v":0},{"$f":"Lighting!U386","v":""},{"$f":"Lighting!V386","v":""},{"$f":"Lighting!W386","v":""},{"$f":"Lighting!X386","v":0},{"$f":"Lighting!Y386","v":""},{"$f":"Lighting!AA386","v":""},{"$f":"Lighting!AC386","v":""},{"$f":"Lighting!AF386","v":""},{"$f":"Lighting!AG386","v":0},{"$f":"Lighting!AH386","v":0},{"$f":"Lighting!AI386","v":0}]
[0,{"$f":"Lighting!B387","v":379},{"$f":"Lighting!C387","v":0},{"$f":"Lighting!D387","v":0},{"$f":"Lighting!F387","v":0},{"$f":"Lighting!G387","v":0},{"$f":"Lighting!H387","v":0},{"$f":"Lighting!I387","v":0},{"$f":"Lighting!J387","v":0},{"$f":"Lighting!K387","v":0},{"$f":"Lighting!L387","v":0},{"$f":"Lighting!N387","v":0},{"$f":"Lighting!O387","v":0},{"$f":"Lighting!R387","v":0},{"$f":"Lighting!S387","v":0},{"$f":"Lighting!U387","v":""},{"$f":"Lighting!V387","v":""},{"$f":"Lighting!W387","v":""},{"$f":"Lighting!X387","v":0},{"$f":"Lighting!Y387","v":""},{"$f":"Lighting!AA387","v":""},{"$f":"Lighting!AC387","v":""},{"$f":"Lighting!AF387","v":""},{"$f":"Lighting!AG387","v":0},{"$f":"Lighting!AH387","v":0},{"$f":"Lighting!AI387","v":0}]
[0,{"$f":"Lighting!B388","v":380},{"$f":"Lighting!C388","v":0},{"$f":"Lighting!D388","v":0},{"$f":"Lighting!F388","v":0},{"$f":"Lighting!G388","v":0},{"$f":"Lighting!H388","v":0},{"$f":"Lighting!I388","v":0},{"$f":"Lighting!J388","v":0},{"$f":"Lighting!K388","v":0},{"$f":"Lighting!L388","v":0},{"$f":"Lighting!N388","v":0},{"$f":"Lighting!O388","v":0},{"$f":"Lighting!R388","v":0},{"$f":"Lighting!S388","v":0},{"$f":"Lighting!U388","v":""},{"$f":"Lighting!V388","v":""},{"$f":"Lighting!W388","v":""},{"$f":"Lighting!X388","v":0},{"$f":"Lighting!Y388","v":""},{"$f":"Lighting!AA388","v":""},{"$f":"Lighting!AC388","v":""},{"$f":"Lighting!AF388","v":""},{"$f":"Lighting!AG388","v":0},{"$f":"Lighting!AH388","v":0},{"$f":"Lighting!AI388","v":0}]
[0,{"$f":"Lighting!B389","v":381},{"$f":"Lighting!C389","v":0},{"$f":"Lighting!D389","v":0},{"$f":"Lighting!F389","v":0},{"$f":"Lighting!G389","v":0},{"$f":"Lighting!H389","v":0},{"$f":"Lighting!I389","v":0},{"$f":"Lighting!J389","v":0},{"$f":"Lighting!K389","v":0},{"$f":"Lighting!L389","v":0},{"$f":"Lighting!N389","v":0},{"$f":"Lighting!O389","v":0},{"$f":"Lighting!R389","v":0},{"$f":"Lighting!S389","v":0},{"$f":"Lighting!U389","v":""},{"$f":"Lighting!V389","v":""},{"$f":"Lighting!W389","v":""},{"$f":"Lighting!X389","v":0},{"$f":"Lighting!Y389","v":""},{"$f":"Lighting!AA389","v":""},{"$f":"Lighting!AC389","v":""},{"$f":"Lighting!AF389","v":""},{"$f":"Lighting!AG389","v":0},{"$f":"Lighting!AH389","v":0},{"$f":"Lighting!AI389","v":0}]
[0,{"$f":"Lighting!B390","v":382},{"$f":"Lighting!C390","v":0},{"$f":"Lighting!D390","v":0},{"$f":"Lighting!F390","v":0},{"$f":"Lighting!G390","v":0},{"$f":"Lighting!H390","v":0},{"$f":"Lighting!I390","v":0},{"$f":"Lighting!J390","v":0},{"$f":"Lighting!K390","v":0},{"$f":"Lighting!L390","v":0},{"$f":"Lighting!N390","v":0},{"$f":"Lighting!O390","v":0},{"$f":"Lighting!R390","v":0},{"$f":"Lighting!S390","v":0},{"$f":"Lighting!U390","v":""},{"$f":"Lighting!V390","v":""},{"$f":"Lighting!W390","v":""},{"$f":"Lighting!X390","v":0},{"$f":"Lighting!Y390","v":""},{"$f":"Lighting!AA390","v":""},{"$f":"Lighting!AC390","v":""},{"$f":"Lighting!AF390","v":""},{"$f":"Lighting!AG390","v":0},{"$f":"Lighting!AH390","v":0},{"$f":"Lighting!AI390","v":0}]
[0,{"$f":"Lighting!B391","v":383},{"$f":"Lighting!C391","v":0},{"$f":"Lighting!D391","v":0},{"$f":"Lighting!F391","v":0},{"$f":"Lighting!G391","v":0},{"$f":"Lighting!H391","v":0},{"$f":"Lighting!I391","v":0},{"$f":"Lighting!J391","v":0},{"$f":"Lighting!K391","v":0},{"$f":"Lighting!L391","v":0},{"$f":"Lighting!N391","v":0},{"$f":"Lighting!O391","v":0},{"$f":"Lighting!R391","v":0},{"$f":"Lighting!S391","v":0},{"$f":"Lighting!U391","v":""},{"$f":"Lighting!V391","v":""},{"$f":"Lighting!W391","v":""},{"$f":"Lighting!X391","v":0},{"$f":"Lighting!Y391","v":""},{"$f":"Lighting!AA391","v":""},{"$f":"Lighting!AC391","v":""},{"$f":"Lighting!AF391","v":""},{"$f":"Lighting!AG391","v":0},{"$f":"Lighting!AH391","v":0},{"$f":"Lighting!AI391","v":0}]
[0,{"$f":"Lighting!B392","v":384},{"$f":"Lighting!C392","v":0},{"$f":"Lighting!D392","v":0},{"$f":"Lighting!F392","v":0},{"$f":"Lighting!G392","v":0},{"$f":"Lighting!H392","v":0},{"$f":"Lighting!I392","v":0},{"$f":"Lighting!J392","v":0},{"$f":"Lighting!K392","v":0},{"$f":"Lighting!L392","v":0},{"$f":"Lighting!N392","v":0},{"$f":"Lighting!O392","v":0},{"$f":"Lighting!R392","v":0},{"$f":"Lighting!S392","v":0},{"$f":"Lighting!U392","v":""},{"$f":"Lighting!V392","v":""},{"$f":"Lighting!W392","v":""},{"$f":"Lighting!X392","v":0},{"$f":"Lighting!Y392","v":""},{"$f":"Lighting!AA392","v":""},{"$f":"Lighting!AC392","v":""},{"$f":"Lighting!AF392","v":""},{"$f":"Lighting!AG392","v":0},{"$f":"Lighting!AH392","v":0},{"$f":"Lighting!AI392","v":0}]
[0,{"$f":"Lighting!B393","v":385},{"$f":"Lighting!C393","v":0},{"$f":"Lighting!D393","v":0},{"$f":"Lighting!F393","v":0},{"$f":"Lighting!G393","v":0},{"$f":"Lighting!H393","v":0},{"$f":"Lighting!I393","v":0},{"$f":"Lighting!J393","v":0},{"$f":"Lighting!K393","v":0},{"$f":"Lighting!L393","v":0},{"$f":"Lighting!N393","v":0},{"$f":"Lighting!O393","v":0},{"$f":"Lighting!R393","v":0},{"$f":"Lighting!S393","v":0},{"$f":"Lighting!U393","v":""},{"$f":"Lighting!V393","v":""},{"$f":"Lighting!W393","v":""},{"$f":"Lighting!X393","v":0},{"$f":"Lighting!Y393","v":""},{"$f":"Lighting!AA393","v":""},{"$f":"Lighting!AC393","v":""},{"$f":"Lighting!AF393","v":""},{"$f":"Lighting!AG393","v":0},{"$f":"Lighting!AH393","v":0},{"$f":"Lighting!AI393","v":0}]
[0,{"$f":"Lighting!B394","v":386},{"$f":"Lighting!C394","v":0},{"$f":"Lighting!D394","v":0},{"$f":"Lighting!F394","v":0},{"$f":"Lighting!G394","v":0},{"$f":"Lighting!H394","v":0},{"$f":"Lighting!I394","v":0},{"$f":"Lighting!J394","v":0},{"$f":"Lighting!K394","v":0},{"$f":"Lighting!L394","v":0},{"$f":"Lighting!N394","v":0},{"$f":"Lighting!O394","v":0},{"$f":"Lighting!R394","v":0},{"$f":"Lighting!S394","v":0},{"$f":"Lighting!U394","v":""},{"$f":"Lighting!V394","v":""},{"$f":"Lighting!W394","v":""},{"$f":"Lighting!X394","v":0},{"$f":"Lighting!Y394","v":""},{"$f":"Lighting!AA394","v":""},{"$f":"Lighting!AC394","v":""},{"$f":"Lighting!AF394","v":""},{"$f":"Lighting!AG394","v":0},{"$f":"Lighting!AH394","v":0},{"$f":"Lighting!AI394","v":0}]
[0,{"$f":"Lighting!B395","v":387},{"$f":"Lighting!C395","v":0},{"$f":"Lighting!D395","v":0},{"$f":"Lighting!F395","v":0},{"$f":"Lighting!G395","v":0},{"$f":"Lighting!H395","v":0},{"$f":"Lighting!I395","v":0},{"$f":"Lighting!J395","v":0},{"$f":"Lighting!K395","v":0},{"$f":"Lighting!L395","v":0},{"$f":"Lighting!N395","v":0},{"$f":"Lighting!O395","v":0},{"$f":"Lighting!R395","v":0},{"$f":"Lighting!S395","v":0},{"$f":"Lighting!U395","v":""},{"$f":"Lighting!V395","v":""},{"$f":"Lighting!W395","v":""},{"$f":"Lighting!X395","v":0},{"$f":"Lighting!Y395","v":""},{"$f":"Lighting!AA395","v":""},{"$f":"Lighting!AC395","v":""},{"$f":"Lighting!AF395","v":""},{"$f":"Lighting!AG395","v":0},{"$f":"Lighting!AH395","v":0},{"$f":"Lighting!AI395","v":0}]
[0,{"$f":"Lighting!B396","v":388},{"$f":"Lighting!C396","v":0},{"$f":"Lighting!D396","v":0},{"$f":"Lighting!F396","v":0},{"$f":"Lighting!G396","v":0},{"$f":"Lighting!H396","v":0},{"$f":"Lighting!I396","v":0},{"$f":"Lighting!J396","v":0},{"$f":"Lighting!K396","v":0},{"$f":"Lighting!L396","v":0},{"$f":"Lighting!N396","v":0},{"$f":"Lighting!O396","v":0},{"$f":"Lighting!R396","v":0},{"$f":"Lighting!S396","v":0},{"$f":"Lighting!U396","v":""},{"$f":"Lighting!V396","v":""},{"$f":"Lighting!W396","v":""},{"$f":"Lighting!X396","v":0},{"$f":"Lighting!Y396","v":""},{"$f":"Lighting!AA396","v":""},{"$f":"Lighting!AC396","v":""},{"$f":"Lighting!AF396","v":""},{"$f":"Lighting!AG396","v":0},{"$f":"Lighting!AH396","v":0},{"$f":"Lighting!AI396","v":0}]
[0,{"$f":"Lighting!B397","v":389},{"$f":"Lighting!C397","v":0},{"$f":"Lighting!D397","v":0},{"$f":"Lighting!F397","v":0},{"$f":"Lighting!G397","v":0},{"$f":"Lighting!H397","v":0},{"$f":"Lighting!I397","v":0},{"$f":"Lighting!J397","v":0},{"$f":"Lighting!K397","v":0},{"$f":"Lighting!L397","v":0},{"$f":"Lighting!N397","v":0},{"$f":"Lighting!O397","v":0},{"$f":"Lighting!R397","v":0},{"$f":"Lighting!S397","v":0},{"$f":"Lighting!U397","v":""},{"$f":"Lighting!V397","v":""},{"$f":"Lighting!W397","v":""},{"$f":"Lighting!X397","v":0},{"$f":"Lighting!Y397","v":""},{"$f":"Lighting!AA397","v":""},{"$f":"Lighting!AC397","v":""},{"$f":"Lighting!AF397","v":""},{"$f":"Lighting!AG397","v":0},{"$f":"Lighting!AH397","v":0},{"$f":"Lighting!AI397","v":0}]
[0,{"$f":"Lighting!B398","v":390},{"$f":"Lighting!C398","v":0},{"$f":"Lighting!D398","v":0},{"$f":"Lighting!F398","v":0},{"$f":"Lighting!G398","v":0},{"$f":"Lighting!H398","v":0},{"$f":"Lighting!I398","v":0},{"$f":"Lighting!J398","v":0},{"$f":"Lighting!K398","v":0},{"$f":"Lighting!L398","v":0},{"$f":"Lighting!N398","v":0},{"$f":"Lighting!O398","v":0},{"$f":"Lighting!R398","v":0},{"$f":"Lighting!S398","v":0},{"$f":"Lighting!U398","v":""},{"$f":"Lighting!V398","v":""},{"$f":"Lighting!W398","v":""},{"$f":"Lighting!X398","v":0},{"$f":"Lighting!Y398","v":""},{"$f":"Lighting!AA398","v":""},{"$f":"Lighting!AC398","v":""},{"$f":"Lighting!AF398","v":""},{"$f":"Lighting!AG398","v":0},{"$f":"Lighting!AH398","v":0},{"$f":"Lighting!AI398","v":0}]
[0,{"$f":"Lighting!B399","v":391},{"$f":"Lighting!C399","v":0},{"$f":"Lighting!D399","v":0},{"$f":"Lighting!F399","v":0},{"$f":"Lighting!G399","v":0},{"$f":"Lighting!H399","v":0},{"$f":"Lighting!I399","v":0},{"$f":"Lighting!J399","v":0},{"$f":"Lighting!K399","v":0},{"$f":"Lighting!L399","v":0},{"$f":"Lighting!N399","v":0},{"$f":"Lighting!O399","v":0},{"$f":"Lighting!R399","v":0},{"$f":"Lighting!S399","v":0},{"$f":"Lighting!U399","v":""},{"$f":"Lighting!V399","v":""},{"$f":"Lighting!W399","v":""},{"$f":"Lighting!X399","v":0},{"$f":"Lighting!Y399","v":""},{"$f":"Lighting!AA399","v":""},{"$f":"Lighting!AC399","v":""},{"$f":"Lighting!AF399","v":""},{"$f":"Lighting!AG399","v":0},{"$f":"Lighting!AH399","v":0},{"$f":"Lighting!AI399","v":0}]
[{"$f":"IF(G556=0,0,1)","v":0},{"$f":"Lighting!B400","v":392},{"$f":"Lighting!C400","v":0},{"$f":"Lighting!D400","v":0},{"$f":"Lighting!F400","v":0},{"$f":"Lighting!G400","v":0},{"$f":"Lighting!H400","v":0},{"$f":"Lighting!I400","v":0},{"$f":"Lighting!J400","v":0},{"$f":"Lighting!K400","v":0},{"$f":"Lighting!L400","v":0},{"$f":"Lighting!N400","v":0},{"$f":"Lighting!O400","v":0},{"$f":"Lighting!R400","v":0},{"$f":"Lighting!S400","v":0},{"$f":"Lighting!U400","v":""},{"$f":"Lighting!V400","v":""},{"$f":"Lighting!W400","v":""},{"$f":"Lighting!X400","v":0},{"$f":"Lighting!Y400","v":""},{"$f":"Lighting!AA400","v":""},{"$f":"Lighting!AC400","v":""},{"$f":"Lighting!AF400","v":""},{"$f":"Lighting!AG400","v":0},{"$f":"Lighting!AH400","v":0},{"$f":"Lighting!AI400","v":0}]
[0,{"$f":"Lighting!B401","v":393},{"$f":"Lighting!C401","v":0},{"$f":"Lighting!D401","v":0},{"$f":"Lighting!F401","v":0},{"$f":"Lighting!G401","v":0},{"$f":"Lighting!H401","v":0},{"$f":"Lighting!I401","v":0},{"$f":"Lighting!J401","v":0},{"$f":"Lighting!K401","v":0},{"$f":"Lighting!L401","v":0},{"$f":"Lighting!N401","v":0},{"$f":"Lighting!O401","v":0},{"$f":"Lighting!R401","v":0},{"$f":"Lighting!S401","v":0},{"$f":"Lighting!U401","v":""},{"$f":"Lighting!V401","v":""},{"$f":"Lighting!W401","v":""},{"$f":"Lighting!X401","v":0},{"$f":"Lighting!Y401","v":""},{"$f":"Lighting!AA401","v":""},{"$f":"Lighting!AC401","v":""},{"$f":"Lighting!AF401","v":""},{"$f":"Lighting!AG401","v":0},{"$f":"Lighting!AH401","v":0},{"$f":"Lighting!AI401","v":0}]
[0,{"$f":"Lighting!B402","v":394},{"$f":"Lighting!C402","v":0},{"$f":"Lighting!D402","v":0},{"$f":"Lighting!F402","v":0},{"$f":"Lighting!G402","v":0},{"$f":"Lighting!H402","v":0},{"$f":"Lighting!I402","v":0},{"$f":"Lighting!J402","v":0},{"$f":"Lighting!K402","v":0},{"$f":"Lighting!L402","v":0},{"$f":"Lighting!N402","v":0},{"$f":"Lighting!O402","v":0},{"$f":"Lighting!R402","v":0},{"$f":"Lighting!S402","v":0},{"$f":"Lighting!U402","v":""},{"$f":"Lighting!V402","v":""},{"$f":"Lighting!W402","v":""},{"$f":"Lighting!X402","v":0},{"$f":"Lighting!Y402","v":""},{"$f":"Lighting!AA402","v":""},{"$f":"Lighting!AC402","v":""},{"$f":"Lighting!AF402","v":""},{"$f":"Lighting!AG402","v":0},{"$f":"Lighting!AH402","v":0},{"$f":"Lighting!AI402","v":0}]
[0,{"$f":"Lighting!B403","v":395},{"$f":"Lighting!C403","v":0},{"$f":"Lighting!D403","v":0},{"$f":"Lighting!F403","v":0},{"$f":"Lighting!G403","v":0},{"$f":"Lighting!H403","v":0},{"$f":"Lighting!I403","v":0},{"$f":"Lighting!J403","v":0},{"$f":"Lighting!K403","v":0},{"$f":"Lighting!L403","v":0},{"$f":"Lighting!N403","v":0},{"$f":"Lighting!O403","v":0},{"$f":"Lighting!R403","v":0},{"$f":"Lighting!S403","v":0},{"$f":"Lighting!U403","v":""},{"$f":"Lighting!V403","v":""},{"$f":"Lighting!W403","v":""},{"$f":"Lighting!X403","v":0},{"$f":"Lighting!Y403","v":""},{"$f":"Lighting!AA403","v":""},{"$f":"Lighting!AC403","v":""},{"$f":"Lighting!AF403","v":""},{"$f":"Lighting!AG403","v":0},{"$f":"Lighting!AH403","v":0},{"$f":"Lighting!AI403","v":0}]
[0,{"$f":"Lighting!B404","v":396},{"$f":"Lighting!C404","v":0},{"$f":"Lighting!D404","v":0},{"$f":"Lighting!F404","v":0},{"$f":"Lighting!G404","v":0},{"$f":"Lighting!H404","v":0},{"$f":"Lighting!I404","v":0},{"$f":"Lighting!J404","v":0},{"$f":"Lighting!K404","v":0},{"$f":"Lighting!L404","v":0},{"$f":"Lighting!N404","v":0},{"$f":"Lighting!O404","v":0},{"$f":"Lighting!R404","v":0},{"$f":"Lighting!S404","v":0},{"$f":"Lighting!U404","v":""},{"$f":"Lighting!V404","v":""},{"$f":"Lighting!W404","v":""},{"$f":"Lighting!X404","v":0},{"$f":"Lighting!Y404","v":""},{"$f":"Lighting!AA404","v":""},{"$f":"Lighting!AC404","v":""},{"$f":"Lighting!AF404","v":""},{"$f":"Lighting!AG404","v":0},{"$f":"Lighting!AH404","v":0},{"$f":"Lighting!AI404","v":0}]
[0,{"$f":"Lighting!B405","v":397},{"$f":"Lighting!C405","v":0},{"$f":"Lighting!D405","v":0},{"$f":"Lighting!F405","v":0},{"$f":"Lighting!G405","v":0},{"$f":"Lighting!H405","v":0},{"$f":"Lighting!I405","v":0},{"$f":"Lighting!J405","v":0},{"$f":"Lighting!K405","v":0},{"$f":"Lighting!L405","v":0},{"$f":"Lighting!N405","v":0},{"$f":"Lighting!O405","v":0},{"$f":"Lighting!R405","v":0},{"$f":"Lighting!S405","v":0},{"$f":"Lighting!U405","v":""},{"$f":"Lighting!V405","v":""},{"$f":"Lighting!W405","v":""},{"$f":"Lighting!X405","v":0},{"$f":"Lighting!Y405","v":""},{"$f":"Lighting!AA405","v":""},{"$f":"Lighting!AC405","v":""},{"$f":"Lighting!AF405","v":""},{"$f":"Lighting!AG405","v":0},{"$f":"Lighting!AH405","v":0},{"$f":"Lighting!AI405","v":0}]
[0,{"$f":"Lighting!B406","v":398},{"$f":"Lighting!C406","v":0},{"$f":"Lighting!D406","v":0},{"$f":"Lighting!F406","v":0},{"$f":"Lighting!G406","v":0},{"$f":"Lighting!H406","v":0},{"$f":"Lighting!I406","v":0},{"$f":"Lighting!J406","v":0},{"$f":"Lighting!K406","v":0},{"$f":"Lighting!L406","v":0},{"$f":"Lighting!N406","v":0},{"$f":"Lighting!O406","v":0},{"$f":"Lighting!R406","v":0},{"$f":"Lighting!S406","v":0},{"$f":"Lighting!U406","v":""},{"$f":"Lighting!V406","v":""},{"$f":"Lighting!W406","v":""},{"$f":"Lighting!X406","v":0},{"$f":"Lighting!Y406","v":""},{"$f":"Lighting!AA406","v":""},{"$f":"Lighting!AC406","v":""},{"$f":"Lighting!AF406","v":""},{"$f":"Lighting!AG406","v":0},{"$f":"Lighting!AH406","v":0},{"$f":"Lighting!AI406","v":0}]
[0,{"$f":"Lighting!B407","v":399},{"$f":"Lighting!C407","v":0},{"$f":"Lighting!D407","v":0},{"$f":"Lighting!F407","v":0},{"$f":"Lighting!G407","v":0},{"$f":"Lighting!H407","v":0},{"$f":"Lighting!I407","v":0},{"$f":"Lighting!J407","v":0},{"$f":"Lighting!K407","v":0},{"$f":"Lighting!L407","v":0},{"$f":"Lighting!N407","v":0},{"$f":"Lighting!O407","v":0},{"$f":"Lighting!R407","v":0},{"$f":"Lighting!S407","v":0},{"$f":"Lighting!U407","v":""},{"$f":"Lighting!V407","v":""},{"$f":"Lighting!W407","v":""},{"$f":"Lighting!X407","v":0},{"$f":"Lighting!Y407","v":""},{"$f":"Lighting!AA407","v":""},{"$f":"Lighting!AC407","v":""},{"$f":"Lighting!AF407","v":""},{"$f":"Lighting!AG407","v":0},{"$f":"Lighting!AH407","v":0},{"$f":"Lighting!AI407","v":0}]
[0,{"$f":"Lighting!B408","v":400},{"$f":"Lighting!C408","v":0},{"$f":"Lighting!D408","v":0},{"$f":"Lighting!F408","v":0},{"$f":"Lighting!G408","v":0},{"$f":"Lighting!H408","v":0},{"$f":"Lighting!I408","v":0},{"$f":"Lighting!J408","v":0},{"$f":"Lighting!K408","v":0},{"$f":"Lighting!L408","v":0},{"$f":"Lighting!N408","v":0},{"$f":"Lighting!O408","v":0},{"$f":"Lighting!R408","v":0},{"$f":"Lighting!S408","v":0},{"$f":"Lighting!U408","v":""},{"$f":"Lighting!V408","v":""},{"$f":"Lighting!W408","v":""},{"$f":"Lighting!X408","v":0},{"$f":"Lighting!Y408","v":""},{"$f":"Lighting!AA408","v":""},{"$f":"Lighting!AC408","v":""},{"$f":"Lighting!AF408","v":""},{"$f":"Lighting!AG408","v":0},{"$f":"Lighting!AH408","v":0},{"$f":"Lighting!AI408","v":0}]
[0,{"$f":"Lighting!B409","v":401},{"$f":"Lighting!C409","v":0},{"$f":"Lighting!D409","v":0},{"$f":"Lighting!F409","v":0},{"$f":"Lighting!G409","v":0},{"$f":"Lighting!H409","v":0},{"$f":"Lighting!I409","v":0},{"$f":"Lighting!J409","v":0},{"$f":"Lighting!K409","v":0},{"$f":"Lighting!L409","v":0},{"$f":"Lighting!N409","v":0},{"$f":"Lighting!O409","v":0},{"$f":"Lighting!R409","v":0},{"$f":"Lighting!S409","v":0},{"$f":"Lighting!U409","v":""},{"$f":"Lighting!V409","v":""},{"$f":"Lighting!W409","v":""},{"$f":"Lighting!X409","v":0},{"$f":"Lighting!Y409","v":""},{"$f":"Lighting!AA409","v":""},{"$f":"Lighting!AC409","v":""},{"$f":"Lighting!AF409","v":""},{"$f":"Lighting!AG409","v":0},{"$f":"Lighting!AH409","v":0},{"$f":"Lighting!AI409","v":0}]
[0,{"$f":"Lighting!B410","v":402},{"$f":"Lighting!C410","v":0},{"$f":"Lighting!D410","v":0},{"$f":"Lighting!F410","v":0},{"$f":"Lighting!G410","v":0},{"$f":"Lighting!H410","v":0},{"$f":"Lighting!I410","v":0},{"$f":"Lighting!J410","v":0},{"$f":"Lighting!K410","v":0},{"$f":"Lighting!L410","v":0},{"$f":"Lighting!N410","v":0},{"$f":"Lighting!O410","v":0},{"$f":"Lighting!R410","v":0},{"$f":"Lighting!S410","v":0},{"$f":"Lighting!U410","v":""},{"$f":"Lighting!V410","v":""},{"$f":"Lighting!W410","v":""},{"$f":"Lighting!X410","v":0},{"$f":"Lighting!Y410","v":""},{"$f":"Lighting!AA410","v":""},{"$f":"Lighting!AC410","v":""},{"$f":"Lighting!AF410","v":""},{"$f":"Lighting!AG410","v":0},{"$f":"Lighting!AH410","v":0},{"$f":"Lighting!AI410","v":0}]
[0,{"$f":"Lighting!B411","v":403},{"$f":"Lighting!C411","v":0},{"$f":"Lighting!D411","v":0},{"$f":"Lighting!F411","v":0},{"$f":"Lighting!G411","v":0},{"$f":"Lighting!H411","v":0},{"$f":"Lighting!I411","v":0},{"$f":"Lighting!J411","v":0},{"$f":"Lighting!K411","v":0},{"$f":"Lighting!L411","v":0},{"$f":"Lighting!N411","v":0},{"$f":"Lighting!O411","v":0},{"$f":"Lighting!R411","v":0},{"$f":"Lighting!S411","v":0},{"$f":"Lighting!U411","v":""},{"$f":"Lighting!V411","v":""},{"$f":"Lighting!W411","v":""},{"$f":"Lighting!X411","v":0},{"$f":"Lighting!Y411","v":""},{"$f":"Lighting!AA411","v":""},{"$f":"Lighting!AC411","v":""},{"$f":"Lighting!AF411","v":""},{"$f":"Lighting!AG411","v":0},{"$f":"Lighting!AH411","v":0},{"$f":"Lighting!AI411","v":0}]
[0,{"$f":"Lighting!B412","v":404},{"$f":"Lighting!C412","v":0},{"$f":"Lighting!D412","v":0},{"$f":"Lighting!F412","v":0},{"$f":"Lighting!G412","v":0},{"$f":"Lighting!H412","v":0},{"$f":"Lighting!I412","v":0},{"$f":"Lighting!J412","v":0},{"$f":"Lighting!K412","v":0},{"$f":"Lighting!L412","v":0},{"$f":"Lighting!N412","v":0},{"$f":"Lighting!O412","v":0},{"$f":"Lighting!R412","v":0},{"$f":"Lighting!S412","v":0},{"$f":"Lighting!U412","v":""},{"$f":"Lighting!V412","v":""},{"$f":"Lighting!W412","v":""},{"$f":"Lighting!X412","v":0},{"$f":"Lighting!Y412","v":""},{"$f":"Lighting!AA412","v":""},{"$f":"Lighting!AC412","v":""},{"$f":"Lighting!AF412","v":""},{"$f":"Lighting!AG412","v":0},{"$f":"Lighting!AH412","v":0},{"$f":"Lighting!AI412","v":0}]
[0,{"$f":"Lighting!B413","v":405},{"$f":"Lighting!C413","v":0},{"$f":"Lighting!D413","v":0},{"$f":"Lighting!F413","v":0},{"$f":"Lighting!G413","v":0},{"$f":"Lighting!H413","v":0},{"$f":"Lighting!I413","v":0},{"$f":"Lighting!J413","v":0},{"$f":"Lighting!K413","v":0},{"$f":"Lighting!L413","v":0},{"$f":"Lighting!N413","v":0},{"$f":"Lighting!O413","v":0},{"$f":"Lighting!R413","v":0},{"$f":"Lighting!S413","v":0},{"$f":"Lighting!U413","v":""},{"$f":"Lighting!V413","v":""},{"$f":"Lighting!W413","v":""},{"$f":"Lighting!X413","v":0},{"$f":"Lighting!Y413","v":""},{"$f":"Lighting!AA413","v":""},{"$f":"Lighting!AC413","v":""},{"$f":"Lighting!AF413","v":""},{"$f":"Lighting!AG413","v":0},{"$f":"Lighting!AH413","v":0},{"$f":"Lighting!AI413","v":0}]
[0,{"$f":"Lighting!B414","v":406},{"$f":"Lighting!C414","v":0},{"$f":"Lighting!D414","v":0},{"$f":"Lighting!F414","v":0},{"$f":"Lighting!G414","v":0},{"$f":"Lighting!H414","v":0},{"$f":"Lighting!I414","v":0},{"$f":"Lighting!J414","v":0},{"$f":"Lighting!K414","v":0},{"$f":"Lighting!L414","v":0},{"$f":"Lighting!N414","v":0},{"$f":"Lighting!O414","v":0},{"$f":"Lighting!R414","v":0},{"$f":"Lighting!S414","v":0},{"$f":"Lighting!U414","v":""},{"$f":"Lighting!V414","v":""},{"$f":"Lighting!W414","v":""},{"$f":"Lighting!X414","v":0},{"$f":"Lighting!Y414","v":""},{"$f":"Lighting!AA414","v":""},{"$f":"Lighting!AC414","v":""},{"$f":"Lighting!AF414","v":""},{"$f":"Lighting!AG414","v":0},{"$f":"Lighting!AH414","v":0},{"$f":"Lighting!AI414","v":0}]
[0,{"$f":"Lighting!B415","v":407},{"$f":"Lighting!C415","v":0},{"$f":"Lighting!D415","v":0},{"$f":"Lighting!F415","v":0},{"$f":"Lighting!G415","v":0},{"$f":"Lighting!H415","v":0},{"$f":"Lighting!I415","v":0},{"$f":"Lighting!J415","v":0},{"$f":"Lighting!K415","v":0},{"$f":"Lighting!L415","v":0},{"$f":"Lighting!N415","v":0},{"$f":"Lighting!O415","v":0},{"$f":"Lighting!R415","v":0},{"$f":"Lighting!S415","v":0},{"$f":"Lighting!U415","v":""},{"$f":"Lighting!V415","v":""},{"$f":"Lighting!W415","v":""},{"$f":"Lighting!X415","v":0},{"$f":"Lighting!Y415","v":""},{"$f":"Lighting!AA415","v":""},{"$f":"Lighting!AC415","v":""},{"$f":"Lighting!AF415","v":""},{"$f":"Lighting!AG415","v":0},{"$f":"Lighting!AH415","v":0},{"$f":"Lighting!AI415","v":0}]
[0,{"$f":"Lighting!B416","v":408},{"$f":"Lighting!C416","v":0},{"$f":"Lighting!D416","v":0},{"$f":"Lighting!F416","v":0},{"$f":"Lighting!G416","v":0},{"$f":"Lighting!H416","v":0},{"$f":"Lighting!I416","v":0},{"$f":"Lighting!J416","v":0},{"$f":"Lighting!K416","v":0},{"$f":"Lighting!L416","v":0},{"$f":"Lighting!N416","v":0},{"$f":"Lighting!O416","v":0},{"$f":"Lighting!R416","v":0},{"$f":"Lighting!S416","v":0},{"$f":"Lighting!U416","v":""},{"$f":"Lighting!V416","v":""},{"$f":"Lighting!W416","v":""},{"$f":"Lighting!X416","v":0},{"$f":"Lighting!Y416","v":""},{"$f":"Lighting!AA416","v":""},{"$f":"Lighting!AC416","v":""},{"$f":"Lighting!AF416","v":""},{"$f":"Lighting!AG416","v":0},{"$f":"Lighting!AH416","v":0},{"$f":"Lighting!AI416","v":0}]
[0,{"$f":"Lighting!B417","v":409},{"$f":"Lighting!C417","v":0},{"$f":"Lighting!D417","v":0},{"$f":"Lighting!F417","v":0},{"$f":"Lighting!G417","v":0},{"$f":"Lighting!H417","v":0},{"$f":"Lighting!I417","v":0},{"$f":"Lighting!J417","v":0},{"$f":"Lighting!K417","v":0},{"$f":"Lighting!L417","v":0},{"$f":"Lighting!N417","v":0},{"$f":"Lighting!O417","v":0},{"$f":"Lighting!R417","v":0},{"$f":"Lighting!S417","v":0},{"$f":"Lighting!U417","v":""},{"$f":"Lighting!V417","v":""},{"$f":"Lighting!W417","v":""},{"$f":"Lighting!X417","v":0},{"$f":"Lighting!Y417","v":""},{"$f":"Lighting!AA417","v":""},{"$f":"Lighting!AC417","v":""},{"$f":"Lighting!AF417","v":""},{"$f":"Lighting!AG417","v":0},{"$f":"Lighting!AH417","v":0},{"$f":"Lighting!AI417","v":0}]
[0,{"$f":"Lighting!B418","v":410},{"$f":"Lighting!C418","v":0},{"$f":"Lighting!D418","v":0},{"$f":"Lighting!F418","v":0},{"$f":"Lighting!G418","v":0},{"$f":"Lighting!H418","v":0},{"$f":"Lighting!I418","v":0},{"$f":"Lighting!J418","v":0},{"$f":"Lighting!K418","v":0},{"$f":"Lighting!L418","v":0},{"$f":"Lighting!N418","v":0},{"$f":"Lighting!O418","v":0},{"$f":"Lighting!R418","v":0},{"$f":"Lighting!S418","v":0},{"$f":"Lighting!U418","v":""},{"$f":"Lighting!V418","v":""},{"$f":"Lighting!W418","v":""},{"$f":"Lighting!X418","v":0},{"$f":"Lighting!Y418","v":""},{"$f":"Lighting!AA418","v":""},{"$f":"Lighting!AC418","v":""},{"$f":"Lighting!AF418","v":""},{"$f":"Lighting!AG418","v":0},{"$f":"Lighting!AH418","v":0},{"$f":"Lighting!AI418","v":0}]
[0,{"$f":"Lighting!B419","v":411},{"$f":"Lighting!C419","v":0},{"$f":"Lighting!D419","v":0},{"$f":"Lighting!F419","v":0},{"$f":"Lighting!G419","v":0},{"$f":"Lighting!H419","v":0},{"$f":"Lighting!I419","v":0},{"$f":"Lighting!J419","v":0},{"$f":"Lighting!K419","v":0},{"$f":"Lighting!L419","v":0},{"$f":"Lighting!N419","v":0},{"$f":"Lighting!O419","v":0},{"$f":"Lighting!R419","v":0},{"$f":"Lighting!S419","v":0},{"$f":"Lighting!U419","v":""},{"$f":"Lighting!V419","v":""},{"$f":"Lighting!W419","v":""},{"$f":"Lighting!X419","v":0},{"$f":"Lighting!Y419","v":""},{"$f":"Lighting!AA419","v":""},{"$f":"Lighting!AC419","v":""},{"$f":"Lighting!AF419","v":""},{"$f":"Lighting!AG419","v":0},{"$f":"Lighting!AH419","v":0},{"$f":"Lighting!AI419","v":0}]
[0,{"$f":"Lighting!B420","v":412},{"$f":"Lighting!C420","v":0},{"$f":"Lighting!D420","v":0},{"$f":"Lighting!F420","v":0},{"$f":"Lighting!G420","v":0},{"$f":"Lighting!H420","v":0},{"$f":"Lighting!I420","v":0},{"$f":"Lighting!J420","v":0},{"$f":"Lighting!K420","v":0},{"$f":"Lighting!L420","v":0},{"$f":"Lighting!N420","v":0},{"$f":"Lighting!O420","v":0},{"$f":"Lighting!R420","v":0},{"$f":"Lighting!S420","v":0},{"$f":"Lighting!U420","v":""},{"$f":"Lighting!V420","v":""},{"$f":"Lighting!W420","v":""},{"$f":"Lighting!X420","v":0},{"$f":"Lighting!Y420","v":""},{"$f":"Lighting!AA420","v":""},{"$f":"Lighting!AC420","v":""},{"$f":"Lighting!AF420","v":""},{"$f":"Lighting!AG420","v":0},{"$f":"Lighting!AH420","v":0},{"$f":"Lighting!AI420","v":0}]
[0,{"$f":"Lighting!B421","v":413},{"$f":"Lighting!C421","v":0},{"$f":"Lighting!D421","v":0},{"$f":"Lighting!F421","v":0},{"$f":"Lighting!G421","v":0},{"$f":"Lighting!H421","v":0},{"$f":"Lighting!I421","v":0},{"$f":"Lighting!J421","v":0},{"$f":"Lighting!K421","v":0},{"$f":"Lighting!L421","v":0},{"$f":"Lighting!N421","v":0},{"$f":"Lighting!O421","v":0},{"$f":"Lighting!R421","v":0},{"$f":"Lighting!S421","v":0},{"$f":"Lighting!U421","v":""},{"$f":"Lighting!V421","v":""},{"$f":"Lighting!W421","v":""},{"$f":"Lighting!X421","v":0},{"$f":"Lighting!Y421","v":""},{"$f":"Lighting!AA421","v":""},{"$f":"Lighting!AC421","v":""},{"$f":"Lighting!AF421","v":""},{"$f":"Lighting!AG421","v":0},{"$f":"Lighting!AH421","v":0},{"$f":"Lighting!AI421","v":0}]
[0,{"$f":"Lighting!B422","v":414},{"$f":"Lighting!C422","v":0},{"$f":"Lighting!D422","v":0},{"$f":"Lighting!F422","v":0},{"$f":"Lighting!G422","v":0},{"$f":"Lighting!H422","v":0},{"$f":"Lighting!I422","v":0},{"$f":"Lighting!J422","v":0},{"$f":"Lighting!K422","v":0},{"$f":"Lighting!L422","v":0},{"$f":"Lighting!N422","v":0},{"$f":"Lighting!O422","v":0},{"$f":"Lighting!R422","v":0},{"$f":"Lighting!S422","v":0},{"$f":"Lighting!U422","v":""},{"$f":"Lighting!V422","v":""},{"$f":"Lighting!W422","v":""},{"$f":"Lighting!X422","v":0},{"$f":"Lighting!Y422","v":""},{"$f":"Lighting!AA422","v":""},{"$f":"Lighting!AC422","v":""},{"$f":"Lighting!AF422","v":""},{"$f":"Lighting!AG422","v":0},{"$f":"Lighting!AH422","v":0},{"$f":"Lighting!AI422","v":0}]
[0,{"$f":"Lighting!B423","v":415},{"$f":"Lighting!C423","v":0},{"$f":"Lighting!D423","v":0},{"$f":"Lighting!F423","v":0},{"$f":"Lighting!G423","v":0},{"$f":"Lighting!H423","v":0},{"$f":"Lighting!I423","v":0},{"$f":"Lighting!J423","v":0},{"$f":"Lighting!K423","v":0},{"$f":"Lighting!L423","v":0},{"$f":"Lighting!N423","v":0},{"$f":"Lighting!O423","v":0},{"$f":"Lighting!R423","v":0},{"$f":"Lighting!S423","v":0},{"$f":"Lighting!U423","v":""},{"$f":"Lighting!V423","v":""},{"$f":"Lighting!W423","v":""},{"$f":"Lighting!X423","v":0},{"$f":"Lighting!Y423","v":""},{"$f":"Lighting!AA423","v":""},{"$f":"Lighting!AC423","v":""},{"$f":"Lighting!AF423","v":""},{"$f":"Lighting!AG423","v":0},{"$f":"Lighting!AH423","v":0},{"$f":"Lighting!AI423","v":0}]
[0,{"$f":"Lighting!B424","v":416},{"$f":"Lighting!C424","v":0},{"$f":"Lighting!D424","v":0},{"$f":"Lighting!F424","v":0},{"$f":"Lighting!G424","v":0},{"$f":"Lighting!H424","v":0},{"$f":"Lighting!I424","v":0},{"$f":"Lighting!J424","v":0},{"$f":"Lighting!K424","v":0},{"$f":"Lighting!L424","v":0},{"$f":"Lighting!N424","v":0},{"$f":"Lighting!O424","v":0},{"$f":"Lighting!R424","v":0},{"$f":"Lighting!S424","v":0},{"$f":"Lighting!U424","v":""},{"$f":"Lighting!V424","v":""},{"$f":"Lighting!W424","v":""},{"$f":"Lighting!X424","v":0},{"$f":"Lighting!Y424","v":""},{"$f":"Lighting!AA424","v":""},{"$f":"Lighting!AC424","v":""},{"$f":"Lighting!AF424","v":""},{"$f":"Lighting!AG424","v":0},{"$f":"Lighting!AH424","v":0},{"$f":"Lighting!AI424","v":0}]
[0,{"$f":"Lighting!B425","v":417},{"$f":"Lighting!C425","v":0},{"$f":"Lighting!D425","v":0},{"$f":"Lighting!F425","v":0},{"$f":"Lighting!G425","v":0},{"$f":"Lighting!H425","v":0},{"$f":"Lighting!I425","v":0},{"$f":"Lighting!J425","v":0},{"$f":"Lighting!K425","v":0},{"$f":"Lighting!L425","v":0},{"$f":"Lighting!N425","v":0},{"$f":"Lighting!O425","v":0},{"$f":"Lighting!R425","v":0},{"$f":"Lighting!S425","v":0},{"$f":"Lighting!U425","v":""},{"$f":"Lighting!V425","v":""},{"$f":"Lighting!W425","v":""},{"$f":"Lighting!X425","v":0},{"$f":"Lighting!Y425","v":""},{"$f":"Lighting!AA425","v":""},{"$f":"Lighting!AC425","v":""},{"$f":"Lighting!AF425","v":""},{"$f":"Lighting!AG425","v":0},{"$f":"Lighting!AH425","v":0},{"$f":"Lighting!AI425","v":0}]
[0,{"$f":"Lighting!B426","v":418},{"$f":"Lighting!C426","v":0},{"$f":"Lighting!D426","v":0},{"$f":"Lighting!F426","v":0},{"$f":"Lighting!G426","v":0},{"$f":"Lighting!H426","v":0},{"$f":"Lighting!I426","v":0},{"$f":"Lighting!J426","v":0},{"$f":"Lighting!K426","v":0},{"$f":"Lighting!L426","v":0},{"$f":"Lighting!N426","v":0},{"$f":"Lighting!O426","v":0},{"$f":"Lighting!R426","v":0},{"$f":"Lighting!S426","v":0},{"$f":"Lighting!U426","v":""},{"$f":"Lighting!V426","v":""},{"$f":"Lighting!W426","v":""},{"$f":"Lighting!X426","v":0},{"$f":"Lighting!Y426","v":""},{"$f":"Lighting!AA426","v":""},{"$f":"Lighting!AC426","v":""},{"$f":"Lighting!AF426","v":""},{"$f":"Lighting!AG426","v":0},{"$f":"Lighting!AH426","v":0},{"$f":"Lighting!AI426","v":0}]
[0,{"$f":"Lighting!B427","v":419},{"$f":"Lighting!C427","v":0},{"$f":"Lighting!D427","v":0},{"$f":"Lighting!F427","v":0},{"$f":"Lighting!G427","v":0},{"$f":"Lighting!H427","v":0},{"$f":"Lighting!I427","v":0},{"$f":"Lighting!J427","v":0},{"$f":"Lighting!K427","v":0},{"$f":"Lighting!L427","v":0},{"$f":"Lighting!N427","v":0},{"$f":"Lighting!O427","v":0},{"$f":"Lighting!R427","v":0},{"$f":"Lighting!S427","v":0},{"$f":"Lighting!U427","v":""},{"$f":"Lighting!V427","v":""},{"$f":"Lighting!W427","v":""},{"$f":"Lighting!X427","v":0},{"$f":"Lighting!Y427","v":""},{"$f":"Lighting!AA427","v":""},{"$f":"Lighting!AC427","v":""},{"$f":"Lighting!AF427","v":""},{"$f":"Lighting!AG427","v":0},{"$f":"Lighting!AH427","v":0},{"$f":"Lighting!AI427","v":0}]
[0,{"$f":"Lighting!B428","v":420},{"$f":"Lighting!C428","v":0},{"$f":"Lighting!D428","v":0},{"$f":"Lighting!F428","v":0},{"$f":"Lighting!G428","v":0},{"$f":"Lighting!H428","v":0},{"$f":"Lighting!I428","v":0},{"$f":"Lighting!J428","v":0},{"$f":"Lighting!K428","v":0},{"$f":"Lighting!L428","v":0},{"$f":"Lighting!N428","v":0},{"$f":"Lighting!O428","v":0},{"$f":"Lighting!R428","v":0},{"$f":"Lighting!S428","v":0},{"$f":"Lighting!U428","v":""},{"$f":"Lighting!V428","v":""},{"$f":"Lighting!W428","v":""},{"$f":"Lighting!X428","v":0},{"$f":"Lighting!Y428","v":""},{"$f":"Lighting!AA428","v":""},{"$f":"Lighting!AC428","v":""},{"$f":"Lighting!AF428","v":""},{"$f":"Lighting!AG428","v":0},{"$f":"Lighting!AH428","v":0},{"$f":"Lighting!AI428","v":0}]
[0,{"$f":"Lighting!B429","v":421},{"$f":"Lighting!C429","v":0},{"$f":"Lighting!D429","v":0},{"$f":"Lighting!F429","v":0},{"$f":"Lighting!G429","v":0},{"$f":"Lighting!H429","v":0},{"$f":"Lighting!I429","v":0},{"$f":"Lighting!J429","v":0},{"$f":"Lighting!K429","v":0},{"$f":"Lighting!L429","v":0},{"$f":"Lighting!N429","v":0},{"$f":"Lighting!O429","v":0},{"$f":"Lighting!R429","v":0},{"$f":"Lighting!S429","v":0},{"$f":"Lighting!U429","v":""},{"$f":"Lighting!V429","v":""},{"$f":"Lighting!W429","v":""},{"$f":"Lighting!X429","v":0},{"$f":"Lighting!Y429","v":""},{"$f":"Lighting!AA429","v":""},{"$f":"Lighting!AC429","v":""},{"$f":"Lighting!AF429","v":""},{"$f":"Lighting!AG429","v":0},{"$f":"Lighting!AH429","v":0},{"$f":"Lighting!AI429","v":0}]
[0,{"$f":"Lighting!B430","v":422},{"$f":"Lighting!C430","v":0},{"$f":"Lighting!D430","v":0},{"$f":"Lighting!F430","v":0},{"$f":"Lighting!G430","v":0},{"$f":"Lighting!H430","v":0},{"$f":"Lighting!I430","v":0},{"$f":"Lighting!J430","v":0},{"$f":"Lighting!K430","v":0},{"$f":"Lighting!L430","v":0},{"$f":"Lighting!N430","v":0},{"$f":"Lighting!O430","v":0},{"$f":"Lighting!R430","v":0},{"$f":"Lighting!S430","v":0},{"$f":"Lighting!U430","v":""},{"$f":"Lighting!V430","v":""},{"$f":"Lighting!W430","v":""},{"$f":"Lighting!X430","v":0},{"$f":"Lighting!Y430","v":""},{"$f":"Lighting!AA430","v":""},{"$f":"Lighting!AC430","v":""},{"$f":"Lighting!AF430","v":""},{"$f":"Lighting!AG430","v":0},{"$f":"Lighting!AH430","v":0},{"$f":"Lighting!AI430","v":0}]
[0,{"$f":"Lighting!B431","v":423},{"$f":"Lighting!C431","v":0},{"$f":"Lighting!D431","v":0},{"$f":"Lighting!F431","v":0},{"$f":"Lighting!G431","v":0},{"$f":"Lighting!H431","v":0},{"$f":"Lighting!I431","v":0},{"$f":"Lighting!J431","v":0},{"$f":"Lighting!K431","v":0},{"$f":"Lighting!L431","v":0},{"$f":"Lighting!N431","v":0},{"$f":"Lighting!O431","v":0},{"$f":"Lighting!R431","v":0},{"$f":"Lighting!S431","v":0},{"$f":"Lighting!U431","v":""},{"$f":"Lighting!V431","v":""},{"$f":"Lighting!W431","v":""},{"$f":"Lighting!X431","v":0},{"$f":"Lighting!Y431","v":""},{"$f":"Lighting!AA431","v":""},{"$f":"Lighting!AC431","v":""},{"$f":"Lighting!AF431","v":""},{"$f":"Lighting!AG431","v":0},{"$f":"Lighting!AH431","v":0},{"$f":"Lighting!AI431","v":0}]
[0,{"$f":"Lighting!B432","v":424},{"$f":"Lighting!C432","v":0},{"$f":"Lighting!D432","v":0},{"$f":"Lighting!F432","v":0},{"$f":"Lighting!G432","v":0},{"$f":"Lighting!H432","v":0},{"$f":"Lighting!I432","v":0},{"$f":"Lighting!J432","v":0},{"$f":"Lighting!K432","v":0},{"$f":"Lighting!L432","v":0},{"$f":"Lighting!N432","v":0},{"$f":"Lighting!O432","v":0},{"$f":"Lighting!R432","v":0},{"$f":"Lighting!S432","v":0},{"$f":"Lighting!U432","v":""},{"$f":"Lighting!V432","v":""},{"$f":"Lighting!W432","v":""},{"$f":"Lighting!X432","v":0},{"$f":"Lighting!Y432","v":""},{"$f":"Lighting!AA432","v":""},{"$f":"Lighting!AC432","v":""},{"$f":"Lighting!AF432","v":""},{"$f":"Lighting!AG432","v":0},{"$f":"Lighting!AH432","v":0},{"$f":"Lighting!AI432","v":0}]
[0,{"$f":"Lighting!B433","v":425},{"$f":"Lighting!C433","v":0},{"$f":"Lighting!D433","v":0},{"$f":"Lighting!F433","v":0},{"$f":"Lighting!G433","v":0},{"$f":"Lighting!H433","v":0},{"$f":"Lighting!I433","v":0},{"$f":"Lighting!J433","v":0},{"$f":"Lighting!K433","v":0},{"$f":"Lighting!L433","v":0},{"$f":"Lighting!N433","v":0},{"$f":"Lighting!O433","v":0},{"$f":"Lighting!R433","v":0},{"$f":"Lighting!S433","v":0},{"$f":"Lighting!U433","v":""},{"$f":"Lighting!V433","v":""},{"$f":"Lighting!W433","v":""},{"$f":"Lighting!X433","v":0},{"$f":"Lighting!Y433","v":""},{"$f":"Lighting!AA433","v":""},{"$f":"Lighting!AC433","v":""},{"$f":"Lighting!AF433","v":""},{"$f":"Lighting!AG433","v":0},{"$f":"Lighting!AH433","v":0},{"$f":"Lighting!AI433","v":0}]
[0,{"$f":"Lighting!B434","v":426},{"$f":"Lighting!C434","v":0},{"$f":"Lighting!D434","v":0},{"$f":"Lighting!F434","v":0},{"$f":"Lighting!G434","v":0},{"$f":"Lighting!H434","v":0},{"$f":"Lighting!I434","v":0},{"$f":"Lighting!J434","v":0},{"$f":"Lighting!K434","v":0},{"$f":"Lighting!L434","v":0},{"$f":"Lighting!N434","v":0},{"$f":"Lighting!O434","v":0},{"$f":"Lighting!R434","v":0},{"$f":"Lighting!S434","v":0},{"$f":"Lighting!U434","v":""},{"$f":"Lighting!V434","v":""},{"$f":"Lighting!W434","v":""},{"$f":"Lighting!X434","v":0},{"$f":"Lighting!Y434","v":""},{"$f":"Lighting!AA434","v":""},{"$f":"Lighting!AC434","v":""},{"$f":"Lighting!AF434","v":""},{"$f":"Lighting!AG434","v":0},{"$f":"Lighting!AH434","v":0},{"$f":"Lighting!AI434","v":0}]
[0,{"$f":"Lighting!B435","v":427},{"$f":"Lighting!C435","v":0},{"$f":"Lighting!D435","v":0},{"$f":"Lighting!F435","v":0},{"$f":"Lighting!G435","v":0},{"$f":"Lighting!H435","v":0},{"$f":"Lighting!I435","v":0},{"$f":"Lighting!J435","v":0},{"$f":"Lighting!K435","v":0},{"$f":"Lighting!L435","v":0},{"$f":"Lighting!N435","v":0},{"$f":"Lighting!O435","v":0},{"$f":"Lighting!R435","v":0},{"$f":"Lighting!S435","v":0},{"$f":"Lighting!U435","v":""},{"$f":"Lighting!V435","v":""},{"$f":"Lighting!W435","v":""},{"$f":"Lighting!X435","v":0},{"$f":"Lighting!Y435","v":""},{"$f":"Lighting!AA435","v":""},{"$f":"Lighting!AC435","v":""},{"$f":"Lighting!AF435","v":""},{"$f":"Lighting!AG435","v":0},{"$f":"Lighting!AH435","v":0},{"$f":"Lighting!AI435","v":0}]
[0,{"$f":"Lighting!B436","v":428},{"$f":"Lighting!C436","v":0},{"$f":"Lighting!D436","v":0},{"$f":"Lighting!F436","v":0},{"$f":"Lighting!G436","v":0},{"$f":"Lighting!H436","v":0},{"$f":"Lighting!I436","v":0},{"$f":"Lighting!J436","v":0},{"$f":"Lighting!K436","v":0},{"$f":"Lighting!L436","v":0},{"$f":"Lighting!N436","v":0},{"$f":"Lighting!O436","v":0},{"$f":"Lighting!R436","v":0},{"$f":"Lighting!S436","v":0},{"$f":"Lighting!U436","v":""},{"$f":"Lighting!V436","v":""},{"$f":"Lighting!W436","v":""},{"$f":"Lighting!X436","v":0},{"$f":"Lighting!Y436","v":""},{"$f":"Lighting!AA436","v":""},{"$f":"Lighting!AC436","v":""},{"$f":"Lighting!AF436","v":""},{"$f":"Lighting!AG436","v":0},{"$f":"Lighting!AH436","v":0},{"$f":"Lighting!AI436","v":0}]
[0,{"$f":"Lighting!B437","v":429},{"$f":"Lighting!C437","v":0},{"$f":"Lighting!D437","v":0},{"$f":"Lighting!F437","v":0},{"$f":"Lighting!G437","v":0},{"$f":"Lighting!H437","v":0},{"$f":"Lighting!I437","v":0},{"$f":"Lighting!J437","v":0},{"$f":"Lighting!K437","v":0},{"$f":"Lighting!L437","v":0},{"$f":"Lighting!N437","v":0},{"$f":"Lighting!O437","v":0},{"$f":"Lighting!R437","v":0},{"$f":"Lighting!S437","v":0},{"$f":"Lighting!U437","v":""},{"$f":"Lighting!V437","v":""},{"$f":"Lighting!W437","v":""},{"$f":"Lighting!X437","v":0},{"$f":"Lighting!Y437","v":""},{"$f":"Lighting!AA437","v":""},{"$f":"Lighting!AC437","v":""},{"$f":"Lighting!AF437","v":""},{"$f":"Lighting!AG437","v":0},{"$f":"Lighting!AH437","v":0},{"$f":"Lighting!AI437","v":0}]
[0,{"$f":"Lighting!B438","v":430},{"$f":"Lighting!C438","v":0},{"$f":"Lighting!D438","v":0},{"$f":"Lighting!F438","v":0},{"$f":"Lighting!G438","v":0},{"$f":"Lighting!H438","v":0},{"$f":"Lighting!I438","v":0},{"$f":"Lighting!J438","v":0},{"$f":"Lighting!K438","v":0},{"$f":"Lighting!L438","v":0},{"$f":"Lighting!N438","v":0},{"$f":"Lighting!O438","v":0},{"$f":"Lighting!R438","v":0},{"$f":"Lighting!S438","v":0},{"$f":"Lighting!U438","v":""},{"$f":"Lighting!V438","v":""},{"$f":"Lighting!W438","v":""},{"$f":"Lighting!X438","v":0},{"$f":"Lighting!Y438","v":""},{"$f":"Lighting!AA438","v":""},{"$f":"Lighting!AC438","v":""},{"$f":"Lighting!AF438","v":""},{"$f":"Lighting!AG438","v":0},{"$f":"Lighting!AH438","v":0},{"$f":"Lighting!AI438","v":0}]
[0,{"$f":"Lighting!B439","v":431},{"$f":"Lighting!C439","v":0},{"$f":"Lighting!D439","v":0},{"$f":"Lighting!F439","v":0},{"$f":"Lighting!G439","v":0},{"$f":"Lighting!H439","v":0},{"$f":"Lighting!I439","v":0},{"$f":"Lighting!J439","v":0},{"$f":"Lighting!K439","v":0},{"$f":"Lighting!L439","v":0},{"$f":"Lighting!N439","v":0},{"$f":"Lighting!O439","v":0},{"$f":"Lighting!R439","v":0},{"$f":"Lighting!S439","v":0},{"$f":"Lighting!U439","v":""},{"$f":"Lighting!V439","v":""},{"$f":"Lighting!W439","v":""},{"$f":"Lighting!X439","v":0},{"$f":"Lighting!Y439","v":""},{"$f":"Lighting!AA439","v":""},{"$f":"Lighting!AC439","v":""},{"$f":"Lighting!AF439","v":""},{"$f":"Lighting!AG439","v":0},{"$f":"Lighting!AH439","v":0},{"$f":"Lighting!AI439","v":0}]
[0,{"$f":"Lighting!B440","v":432},{"$f":"Lighting!C440","v":0},{"$f":"Lighting!D440","v":0},{"$f":"Lighting!F440","v":0},{"$f":"Lighting!G440","v":0},{"$f":"Lighting!H440","v":0},{"$f":"Lighting!I440","v":0},{"$f":"Lighting!J440","v":0},{"$f":"Lighting!K440","v":0},{"$f":"Lighting!L440","v":0},{"$f":"Lighting!N440","v":0},{"$f":"Lighting!O440","v":0},{"$f":"Lighting!R440","v":0},{"$f":"Lighting!S440","v":0},{"$f":"Lighting!U440","v":""},{"$f":"Lighting!V440","v":""},{"$f":"Lighting!W440","v":""},{"$f":"Lighting!X440","v":0},{"$f":"Lighting!Y440","v":""},{"$f":"Lighting!AA440","v":""},{"$f":"Lighting!AC440","v":""},{"$f":"Lighting!AF440","v":""},{"$f":"Lighting!AG440","v":0},{"$f":"Lighting!AH440","v":0},{"$f":"Lighting!AI440","v":0}]
[0,{"$f":"Lighting!B441","v":433},{"$f":"Lighting!C441","v":0},{"$f":"Lighting!D441","v":0},{"$f":"Lighting!F441","v":0},{"$f":"Lighting!G441","v":0},{"$f":"Lighting!H441","v":0},{"$f":"Lighting!I441","v":0},{"$f":"Lighting!J441","v":0},{"$f":"Lighting!K441","v":0},{"$f":"Lighting!L441","v":0},{"$f":"Lighting!N441","v":0},{"$f":"Lighting!O441","v":0},{"$f":"Lighting!R441","v":0},{"$f":"Lighting!S441","v":0},{"$f":"Lighting!U441","v":""},{"$f":"Lighting!V441","v":""},{"$f":"Lighting!W441","v":""},{"$f":"Lighting!X441","v":0},{"$f":"Lighting!Y441","v":""},{"$f":"Lighting!AA441","v":""},{"$f":"Lighting!AC441","v":""},{"$f":"Lighting!AF441","v":""},{"$f":"Lighting!AG441","v":0},{"$f":"Lighting!AH441","v":0},{"$f":"Lighting!AI441","v":0}]
[0,{"$f":"Lighting!B442","v":434},{"$f":"Lighting!C442","v":0},{"$f":"Lighting!D442","v":0},{"$f":"Lighting!F442","v":0},{"$f":"Lighting!G442","v":0},{"$f":"Lighting!H442","v":0},{"$f":"Lighting!I442","v":0},{"$f":"Lighting!J442","v":0},{"$f":"Lighting!K442","v":0},{"$f":"Lighting!L442","v":0},{"$f":"Lighting!N442","v":0},{"$f":"Lighting!O442","v":0},{"$f":"Lighting!R442","v":0},{"$f":"Lighting!S442","v":0},{"$f":"Lighting!U442","v":""},{"$f":"Lighting!V442","v":""},{"$f":"Lighting!W442","v":""},{"$f":"Lighting!X442","v":0},{"$f":"Lighting!Y442","v":""},{"$f":"Lighting!AA442","v":""},{"$f":"Lighting!AC442","v":""},{"$f":"Lighting!AF442","v":""},{"$f":"Lighting!AG442","v":0},{"$f":"Lighting!AH442","v":0},{"$f":"Lighting!AI442","v":0}]
[0,{"$f":"Lighting!B443","v":435},{"$f":"Lighting!C443","v":0},{"$f":"Lighting!D443","v":0},{"$f":"Lighting!F443","v":0},{"$f":"Lighting!G443","v":0},{"$f":"Lighting!H443","v":0},{"$f":"Lighting!I443","v":0},{"$f":"Lighting!J443","v":0},{"$f":"Lighting!K443","v":0},{"$f":"Lighting!L443","v":0},{"$f":"Lighting!N443","v":0},{"$f":"Lighting!O443","v":0},{"$f":"Lighting!R443","v":0},{"$f":"Lighting!S443","v":0},{"$f":"Lighting!U443","v":""},{"$f":"Lighting!V443","v":""},{"$f":"Lighting!W443","v":""},{"$f":"Lighting!X443","v":0},{"$f":"Lighting!Y443","v":""},{"$f":"Lighting!AA443","v":""},{"$f":"Lighting!AC443","v":""},{"$f":"Lighting!AF443","v":""},{"$f":"Lighting!AG443","v":0},{"$f":"Lighting!AH443","v":0},{"$f":"Lighting!AI443","v":0}]
[0,{"$f":"Lighting!B444","v":436},{"$f":"Lighting!C444","v":0},{"$f":"Lighting!D444","v":0},{"$f":"Lighting!F444","v":0},{"$f":"Lighting!G444","v":0},{"$f":"Lighting!H444","v":0},{"$f":"Lighting!I444","v":0},{"$f":"Lighting!J444","v":0},{"$f":"Lighting!K444","v":0},{"$f":"Lighting!L444","v":0},{"$f":"Lighting!N444","v":0},{"$f":"Lighting!O444","v":0},{"$f":"Lighting!R444","v":0},{"$f":"Lighting!S444","v":0},{"$f":"Lighting!U444","v":""},{"$f":"Lighting!V444","v":""},{"$f":"Lighting!W444","v":""},{"$f":"Lighting!X444","v":0},{"$f":"Lighting!Y444","v":""},{"$f":"Lighting!AA444","v":""},{"$f":"Lighting!AC444","v":""},{"$f":"Lighting!AF444","v":""},{"$f":"Lighting!AG444","v":0},{"$f":"Lighting!AH444","v":0},{"$f":"Lighting!AI444","v":0}]
[0,{"$f":"Lighting!B445","v":437},{"$f":"Lighting!C445","v":0},{"$f":"Lighting!D445","v":0},{"$f":"Lighting!F445","v":0},{"$f":"Lighting!G445","v":0},{"$f":"Lighting!H445","v":0},{"$f":"Lighting!I445","v":0},{"$f":"Lighting!J445","v":0},{"$f":"Lighting!K445","v":0},{"$f":"Lighting!L445","v":0},{"$f":"Lighting!N445","v":0},{"$f":"Lighting!O445","v":0},{"$f":"Lighting!R445","v":0},{"$f":"Lighting!S445","v":0},{"$f":"Lighting!U445","v":""},{"$f":"Lighting!V445","v":""},{"$f":"Lighting!W445","v":""},{"$f":"Lighting!X445","v":0},{"$f":"Lighting!Y445","v":""},{"$f":"Lighting!AA445","v":""},{"$f":"Lighting!AC445","v":""},{"$f":"Lighting!AF445","v":""},{"$f":"Lighting!AG445","v":0},{"$f":"Lighting!AH445","v":0},{"$f":"Lighting!AI445","v":0}]
[0,{"$f":"Lighting!B446","v":438},{"$f":"Lighting!C446","v":0},{"$f":"Lighting!D446","v":0},{"$f":"Lighting!F446","v":0},{"$f":"Lighting!G446","v":0},{"$f":"Lighting!H446","v":0},{"$f":"Lighting!I446","v":0},{"$f":"Lighting!J446","v":0},{"$f":"Lighting!K446","v":0},{"$f":"Lighting!L446","v":0},{"$f":"Lighting!N446","v":0},{"$f":"Lighting!O446","v":0},{"$f":"Lighting!R446","v":0},{"$f":"Lighting!S446","v":0},{"$f":"Lighting!U446","v":""},{"$f":"Lighting!V446","v":""},{"$f":"Lighting!W446","v":""},{"$f":"Lighting!X446","v":0},{"$f":"Lighting!Y446","v":""},{"$f":"Lighting!AA446","v":""},{"$f":"Lighting!AC446","v":""},{"$f":"Lighting!AF446","v":""},{"$f":"Lighting!AG446","v":0},{"$f":"Lighting!AH446","v":0},{"$f":"Lighting!AI446","v":0}]
[0,{"$f":"Lighting!B447","v":439},{"$f":"Lighting!C447","v":0},{"$f":"Lighting!D447","v":0},{"$f":"Lighting!F447","v":0},{"$f":"Lighting!G447","v":0},{"$f":"Lighting!H447","v":0},{"$f":"Lighting!I447","v":0},{"$f":"Lighting!J447","v":0},{"$f":"Lighting!K447","v":0},{"$f":"Lighting!L447","v":0},{"$f":"Lighting!N447","v":0},{"$f":"Lighting!O447","v":0},{"$f":"Lighting!R447","v":0},{"$f":"Lighting!S447","v":0},{"$f":"Lighting!U447","v":""},{"$f":"Lighting!V447","v":""},{"$f":"Lighting!W447","v":""},{"$f":"Lighting!X447","v":0},{"$f":"Lighting!Y447","v":""},{"$f":"Lighting!AA447","v":""},{"$f":"Lighting!AC447","v":""},{"$f":"Lighting!AF447","v":""},{"$f":"Lighting!AG447","v":0},{"$f":"Lighting!AH447","v":0},{"$f":"Lighting!AI447","v":0}]
[0,{"$f":"Lighting!B448","v":440},{"$f":"Lighting!C448","v":0},{"$f":"Lighting!D448","v":0},{"$f":"Lighting!F448","v":0},{"$f":"Lighting!G448","v":0},{"$f":"Lighting!H448","v":0},{"$f":"Lighting!I448","v":0},{"$f":"Lighting!J448","v":0},{"$f":"Lighting!K448","v":0},{"$f":"Lighting!L448","v":0},{"$f":"Lighting!N448","v":0},{"$f":"Lighting!O448","v":0},{"$f":"Lighting!R448","v":0},{"$f":"Lighting!S448","v":0},{"$f":"Lighting!U448","v":""},{"$f":"Lighting!V448","v":""},{"$f":"Lighting!W448","v":""},{"$f":"Lighting!X448","v":0},{"$f":"Lighting!Y448","v":""},{"$f":"Lighting!AA448","v":""},{"$f":"Lighting!AC448","v":""},{"$f":"Lighting!AF448","v":""},{"$f":"Lighting!AG448","v":0},{"$f":"Lighting!AH448","v":0},{"$f":"Lighting!AI448","v":0}]
[0,{"$f":"Lighting!B449","v":441},{"$f":"Lighting!C449","v":0},{"$f":"Lighting!D449","v":0},{"$f":"Lighting!F449","v":0},{"$f":"Lighting!G449","v":0},{"$f":"Lighting!H449","v":0},{"$f":"Lighting!I449","v":0},{"$f":"Lighting!J449","v":0},{"$f":"Lighting!K449","v":0},{"$f":"Lighting!L449","v":0},{"$f":"Lighting!N449","v":0},{"$f":"Lighting!O449","v":0},{"$f":"Lighting!R449","v":0},{"$f":"Lighting!S449","v":0},{"$f":"Lighting!U449","v":""},{"$f":"Lighting!V449","v":""},{"$f":"Lighting!W449","v":""},{"$f":"Lighting!X449","v":0},{"$f":"Lighting!Y449","v":""},{"$f":"Lighting!AA449","v":""},{"$f":"Lighting!AC449","v":""},{"$f":"Lighting!AF449","v":""},{"$f":"Lighting!AG449","v":0},{"$f":"Lighting!AH449","v":0},{"$f":"Lighting!AI449","v":0}]
[0,{"$f":"Lighting!B450","v":442},{"$f":"Lighting!C450","v":0},{"$f":"Lighting!D450","v":0},{"$f":"Lighting!F450","v":0},{"$f":"Lighting!G450","v":0},{"$f":"Lighting!H450","v":0},{"$f":"Lighting!I450","v":0},{"$f":"Lighting!J450","v":0},{"$f":"Lighting!K450","v":0},{"$f":"Lighting!L450","v":0},{"$f":"Lighting!N450","v":0},{"$f":"Lighting!O450","v":0},{"$f":"Lighting!R450","v":0},{"$f":"Lighting!S450","v":0},{"$f":"Lighting!U450","v":""},{"$f":"Lighting!V450","v":""},{"$f":"Lighting!W450","v":""},{"$f":"Lighting!X450","v":0},{"$f":"Lighting!Y450","v":""},{"$f":"Lighting!AA450","v":""},{"$f":"Lighting!AC450","v":""},{"$f":"Lighting!AF450","v":""},{"$f":"Lighting!AG450","v":0},{"$f":"Lighting!AH450","v":0},{"$f":"Lighting!AI450","v":0}]
[0,{"$f":"Lighting!B451","v":443},{"$f":"Lighting!C451","v":0},{"$f":"Lighting!D451","v":0},{"$f":"Lighting!F451","v":0},{"$f":"Lighting!G451","v":0},{"$f":"Lighting!H451","v":0},{"$f":"Lighting!I451","v":0},{"$f":"Lighting!J451","v":0},{"$f":"Lighting!K451","v":0},{"$f":"Lighting!L451","v":0},{"$f":"Lighting!N451","v":0},{"$f":"Lighting!O451","v":0},{"$f":"Lighting!R451","v":0},{"$f":"Lighting!S451","v":0},{"$f":"Lighting!U451","v":""},{"$f":"Lighting!V451","v":""},{"$f":"Lighting!W451","v":""},{"$f":"Lighting!X451","v":0},{"$f":"Lighting!Y451","v":""},{"$f":"Lighting!AA451","v":""},{"$f":"Lighting!AC451","v":""},{"$f":"Lighting!AF451","v":""},{"$f":"Lighting!AG451","v":0},{"$f":"Lighting!AH451","v":0},{"$f":"Lighting!AI451","v":0}]
[0,{"$f":"Lighting!B452","v":444},{"$f":"Lighting!C452","v":0},{"$f":"Lighting!D452","v":0},{"$f":"Lighting!F452","v":0},{"$f":"Lighting!G452","v":0},{"$f":"Lighting!H452","v":0},{"$f":"Lighting!I452","v":0},{"$f":"Lighting!J452","v":0},{"$f":"Lighting!K452","v":0},{"$f":"Lighting!L452","v":0},{"$f":"Lighting!N452","v":0},{"$f":"Lighting!O452","v":0},{"$f":"Lighting!R452","v":0},{"$f":"Lighting!S452","v":0},{"$f":"Lighting!U452","v":""},{"$f":"Lighting!V452","v":""},{"$f":"Lighting!W452","v":""},{"$f":"Lighting!X452","v":0},{"$f":"Lighting!Y452","v":""},{"$f":"Lighting!AA452","v":""},{"$f":"Lighting!AC452","v":""},{"$f":"Lighting!AF452","v":""},{"$f":"Lighting!AG452","v":0},{"$f":"Lighting!AH452","v":0},{"$f":"Lighting!AI452","v":0}]
[0,{"$f":"Lighting!B453","v":445},{"$f":"Lighting!C453","v":0},{"$f":"Lighting!D453","v":0},{"$f":"Lighting!F453","v":0},{"$f":"Lighting!G453","v":0},{"$f":"Lighting!H453","v":0},{"$f":"Lighting!I453","v":0},{"$f":"Lighting!J453","v":0},{"$f":"Lighting!K453","v":0},{"$f":"Lighting!L453","v":0},{"$f":"Lighting!N453","v":0},{"$f":"Lighting!O453","v":0},{"$f":"Lighting!R453","v":0},{"$f":"Lighting!S453","v":0},{"$f":"Lighting!U453","v":""},{"$f":"Lighting!V453","v":""},{"$f":"Lighting!W453","v":""},{"$f":"Lighting!X453","v":0},{"$f":"Lighting!Y453","v":""},{"$f":"Lighting!AA453","v":""},{"$f":"Lighting!AC453","v":""},{"$f":"Lighting!AF453","v":""},{"$f":"Lighting!AG453","v":0},{"$f":"Lighting!AH453","v":0},{"$f":"Lighting!AI453","v":0}]
[0,{"$f":"Lighting!B454","v":446},{"$f":"Lighting!C454","v":0},{"$f":"Lighting!D454","v":0},{"$f":"Lighting!F454","v":0},{"$f":"Lighting!G454","v":0},{"$f":"Lighting!H454","v":0},{"$f":"Lighting!I454","v":0},{"$f":"Lighting!J454","v":0},{"$f":"Lighting!K454","v":0},{"$f":"Lighting!L454","v":0},{"$f":"Lighting!N454","v":0},{"$f":"Lighting!O454","v":0},{"$f":"Lighting!R454","v":0},{"$f":"Lighting!S454","v":0},{"$f":"Lighting!U454","v":""},{"$f":"Lighting!V454","v":""},{"$f":"Lighting!W454","v":""},{"$f":"Lighting!X454","v":0},{"$f":"Lighting!Y454","v":""},{"$f":"Lighting!AA454","v":""},{"$f":"Lighting!AC454","v":""},{"$f":"Lighting!AF454","v":""},{"$f":"Lighting!AG454","v":0},{"$f":"Lighting!AH454","v":0},{"$f":"Lighting!AI454","v":0}]
[0,{"$f":"Lighting!B455","v":447},{"$f":"Lighting!C455","v":0},{"$f":"Lighting!D455","v":0},{"$f":"Lighting!F455","v":0},{"$f":"Lighting!G455","v":0},{"$f":"Lighting!H455","v":0},{"$f":"Lighting!I455","v":0},{"$f":"Lighting!J455","v":0},{"$f":"Lighting!K455","v":0},{"$f":"Lighting!L455","v":0},{"$f":"Lighting!N455","v":0},{"$f":"Lighting!O455","v":0},{"$f":"Lighting!R455","v":0},{"$f":"Lighting!S455","v":0},{"$f":"Lighting!U455","v":""},{"$f":"Lighting!V455","v":""},{"$f":"Lighting!W455","v":""},{"$f":"Lighting!X455","v":0},{"$f":"Lighting!Y455","v":""},{"$f":"Lighting!AA455","v":""},{"$f":"Lighting!AC455","v":""},{"$f":"Lighting!AF455","v":""},{"$f":"Lighting!AG455","v":0},{"$f":"Lighting!AH455","v":0},{"$f":"Lighting!AI455","v":0}]
[0,{"$f":"Lighting!B456","v":448},{"$f":"Lighting!C456","v":0},{"$f":"Lighting!D456","v":0},{"$f":"Lighting!F456","v":0},{"$f":"Lighting!G456","v":0},{"$f":"Lighting!H456","v":0},{"$f":"Lighting!I456","v":0},{"$f":"Lighting!J456","v":0},{"$f":"Lighting!K456","v":0},{"$f":"Lighting!L456","v":0},{"$f":"Lighting!N456","v":0},{"$f":"Lighting!O456","v":0},{"$f":"Lighting!R456","v":0},{"$f":"Lighting!S456","v":0},{"$f":"Lighting!U456","v":""},{"$f":"Lighting!V456","v":""},{"$f":"Lighting!W456","v":""},{"$f":"Lighting!X456","v":0},{"$f":"Lighting!Y456","v":""},{"$f":"Lighting!AA456","v":""},{"$f":"Lighting!AC456","v":""},{"$f":"Lighting!AF456","v":""},{"$f":"Lighting!AG456","v":0},{"$f":"Lighting!AH456","v":0},{"$f":"Lighting!AI456","v":0}]
[0,{"$f":"Lighting!B457","v":449},{"$f":"Lighting!C457","v":0},{"$f":"Lighting!D457","v":0},{"$f":"Lighting!F457","v":0},{"$f":"Lighting!G457","v":0},{"$f":"Lighting!H457","v":0},{"$f":"Lighting!I457","v":0},{"$f":"Lighting!J457","v":0},{"$f":"Lighting!K457","v":0},{"$f":"Lighting!L457","v":0},{"$f":"Lighting!N457","v":0},{"$f":"Lighting!O457","v":0},{"$f":"Lighting!R457","v":0},{"$f":"Lighting!S457","v":0},{"$f":"Lighting!U457","v":""},{"$f":"Lighting!V457","v":""},{"$f":"Lighting!W457","v":""},{"$f":"Lighting!X457","v":0},{"$f":"Lighting!Y457","v":""},{"$f":"Lighting!AA457","v":""},{"$f":"Lighting!AC457","v":""},{"$f":"Lighting!AF457","v":""},{"$f":"Lighting!AG457","v":0},{"$f":"Lighting!AH457","v":0},{"$f":"Lighting!AI457","v":0}]
[0,{"$f":"Lighting!B458","v":450},{"$f":"Lighting!C458","v":0},{"$f":"Lighting!D458","v":0},{"$f":"Lighting!F458","v":0},{"$f":"Lighting!G458","v":0},{"$f":"Lighting!H458","v":0},{"$f":"Lighting!I458","v":0},{"$f":"Lighting!J458","v":0},{"$f":"Lighting!K458","v":0},{"$f":"Lighting!L458","v":0},{"$f":"Lighting!N458","v":0},{"$f":"Lighting!O458","v":0},{"$f":"Lighting!R458","v":0},{"$f":"Lighting!S458","v":0},{"$f":"Lighting!U458","v":""},{"$f":"Lighting!V458","v":""},{"$f":"Lighting!W458","v":""},{"$f":"Lighting!X458","v":0},{"$f":"Lighting!Y458","v":""},{"$f":"Lighting!AA458","v":""},{"$f":"Lighting!AC458","v":""},{"$f":"Lighting!AF458","v":""},{"$f":"Lighting!AG458","v":0},{"$f":"Lighting!AH458","v":0},{"$f":"Lighting!AI458","v":0}]
[0,{"$f":"Lighting!B459","v":451},{"$f":"Lighting!C459","v":0},{"$f":"Lighting!D459","v":0},{"$f":"Lighting!F459","v":0},{"$f":"Lighting!G459","v":0},{"$f":"Lighting!H459","v":0},{"$f":"Lighting!I459","v":0},{"$f":"Lighting!J459","v":0},{"$f":"Lighting!K459","v":0},{"$f":"Lighting!L459","v":0},{"$f":"Lighting!N459","v":0},{"$f":"Lighting!O459","v":0},{"$f":"Lighting!R459","v":0},{"$f":"Lighting!S459","v":0},{"$f":"Lighting!U459","v":""},{"$f":"Lighting!V459","v":""},{"$f":"Lighting!W459","v":""},{"$f":"Lighting!X459","v":0},{"$f":"Lighting!Y459","v":""},{"$f":"Lighting!AA459","v":""},{"$f":"Lighting!AC459","v":""},{"$f":"Lighting!AF459","v":""},{"$f":"Lighting!AG459","v":0},{"$f":"Lighting!AH459","v":0},{"$f":"Lighting!AI459","v":0}]
[0,{"$f":"Lighting!B460","v":452},{"$f":"Lighting!C460","v":0},{"$f":"Lighting!D460","v":0},{"$f":"Lighting!F460","v":0},{"$f":"Lighting!G460","v":0},{"$f":"Lighting!H460","v":0},{"$f":"Lighting!I460","v":0},{"$f":"Lighting!J460","v":0},{"$f":"Lighting!K460","v":0},{"$f":"Lighting!L460","v":0},{"$f":"Lighting!N460","v":0},{"$f":"Lighting!O460","v":0},{"$f":"Lighting!R460","v":0},{"$f":"Lighting!S460","v":0},{"$f":"Lighting!U460","v":""},{"$f":"Lighting!V460","v":""},{"$f":"Lighting!W460","v":""},{"$f":"Lighting!X460","v":0},{"$f":"Lighting!Y460","v":""},{"$f":"Lighting!AA460","v":""},{"$f":"Lighting!AC460","v":""},{"$f":"Lighting!AF460","v":""},{"$f":"Lighting!AG460","v":0},{"$f":"Lighting!AH460","v":0},{"$f":"Lighting!AI460","v":0}]
[0,{"$f":"Lighting!B461","v":453},{"$f":"Lighting!C461","v":0},{"$f":"Lighting!D461","v":0},{"$f":"Lighting!F461","v":0},{"$f":"Lighting!G461","v":0},{"$f":"Lighting!H461","v":0},{"$f":"Lighting!I461","v":0},{"$f":"Lighting!J461","v":0},{"$f":"Lighting!K461","v":0},{"$f":"Lighting!L461","v":0},{"$f":"Lighting!N461","v":0},{"$f":"Lighting!O461","v":0},{"$f":"Lighting!R461","v":0},{"$f":"Lighting!S461","v":0},{"$f":"Lighting!U461","v":""},{"$f":"Lighting!V461","v":""},{"$f":"Lighting!W461","v":""},{"$f":"Lighting!X461","v":0},{"$f":"Lighting!Y461","v":""},{"$f":"Lighting!AA461","v":""},{"$f":"Lighting!AC461","v":""},{"$f":"Lighting!AF461","v":""},{"$f":"Lighting!AG461","v":0},{"$f":"Lighting!AH461","v":0},{"$f":"Lighting!AI461","v":0}]
[0,{"$f":"Lighting!B462","v":454},{"$f":"Lighting!C462","v":0},{"$f":"Lighting!D462","v":0},{"$f":"Lighting!F462","v":0},{"$f":"Lighting!G462","v":0},{"$f":"Lighting!H462","v":0},{"$f":"Lighting!I462","v":0},{"$f":"Lighting!J462","v":0},{"$f":"Lighting!K462","v":0},{"$f":"Lighting!L462","v":0},{"$f":"Lighting!N462","v":0},{"$f":"Lighting!O462","v":0},{"$f":"Lighting!R462","v":0},{"$f":"Lighting!S462","v":0},{"$f":"Lighting!U462","v":""},{"$f":"Lighting!V462","v":""},{"$f":"Lighting!W462","v":""},{"$f":"Lighting!X462","v":0},{"$f":"Lighting!Y462","v":""},{"$f":"Lighting!AA462","v":""},{"$f":"Lighting!AC462","v":""},{"$f":"Lighting!AF462","v":""},{"$f":"Lighting!AG462","v":0},{"$f":"Lighting!AH462","v":0},{"$f":"Lighting!AI462","v":0}]
[0,{"$f":"Lighting!B463","v":455},{"$f":"Lighting!C463","v":0},{"$f":"Lighting!D463","v":0},{"$f":"Lighting!F463","v":0},{"$f":"Lighting!G463","v":0},{"$f":"Lighting!H463","v":0},{"$f":"Lighting!I463","v":0},{"$f":"Lighting!J463","v":0},{"$f":"Lighting!K463","v":0},{"$f":"Lighting!L463","v":0},{"$f":"Lighting!N463","v":0},{"$f":"Lighting!O463","v":0},{"$f":"Lighting!R463","v":0},{"$f":"Lighting!S463","v":0},{"$f":"Lighting!U463","v":""},{"$f":"Lighting!V463","v":""},{"$f":"Lighting!W463","v":""},{"$f":"Lighting!X463","v":0},{"$f":"Lighting!Y463","v":""},{"$f":"Lighting!AA463","v":""},{"$f":"Lighting!AC463","v":""},{"$f":"Lighting!AF463","v":""},{"$f":"Lighting!AG463","v":0},{"$f":"Lighting!AH463","v":0},{"$f":"Lighting!AI463","v":0}]
[{"$f":"IF(G620=0,0,1)","v":0},{"$f":"Lighting!B464","v":456},{"$f":"Lighting!C464","v":0},{"$f":"Lighting!D464","v":0},{"$f":"Lighting!F464","v":0},{"$f":"Lighting!G464","v":0},{"$f":"Lighting!H464","v":0},{"$f":"Lighting!I464","v":0},{"$f":"Lighting!J464","v":0},{"$f":"Lighting!K464","v":0},{"$f":"Lighting!L464","v":0},{"$f":"Lighting!N464","v":0},{"$f":"Lighting!O464","v":0},{"$f":"Lighting!R464","v":0},{"$f":"Lighting!S464","v":0},{"$f":"Lighting!U464","v":""},{"$f":"Lighting!V464","v":""},{"$f":"Lighting!W464","v":""},{"$f":"Lighting!X464","v":0},{"$f":"Lighting!Y464","v":""},{"$f":"Lighting!AA464","v":""},{"$f":"Lighting!AC464","v":""},{"$f":"Lighting!AF464","v":""},{"$f":"Lighting!AG464","v":0},{"$f":"Lighting!AH464","v":0},{"$f":"Lighting!AI464","v":0}]
[0,{"$f":"Lighting!B465","v":457},{"$f":"Lighting!C465","v":0},{"$f":"Lighting!D465","v":0},{"$f":"Lighting!F465","v":0},{"$f":"Lighting!G465","v":0},{"$f":"Lighting!H465","v":0},{"$f":"Lighting!I465","v":0},{"$f":"Lighting!J465","v":0},{"$f":"Lighting!K465","v":0},{"$f":"Lighting!L465","v":0},{"$f":"Lighting!N465","v":0},{"$f":"Lighting!O465","v":0},{"$f":"Lighting!R465","v":0},{"$f":"Lighting!S465","v":0},{"$f":"Lighting!U465","v":""},{"$f":"Lighting!V465","v":""},{"$f":"Lighting!W465","v":""},{"$f":"Lighting!X465","v":0},{"$f":"Lighting!Y465","v":""},{"$f":"Lighting!AA465","v":""},{"$f":"Lighting!AC465","v":""},{"$f":"Lighting!AF465","v":""},{"$f":"Lighting!AG465","v":0},{"$f":"Lighting!AH465","v":0},{"$f":"Lighting!AI465","v":0}]
[0,{"$f":"Lighting!B466","v":458},{"$f":"Lighting!C466","v":0},{"$f":"Lighting!D466","v":0},{"$f":"Lighting!F466","v":0},{"$f":"Lighting!G466","v":0},{"$f":"Lighting!H466","v":0},{"$f":"Lighting!I466","v":0},{"$f":"Lighting!J466","v":0},{"$f":"Lighting!K466","v":0},{"$f":"Lighting!L466","v":0},{"$f":"Lighting!N466","v":0},{"$f":"Lighting!O466","v":0},{"$f":"Lighting!R466","v":0},{"$f":"Lighting!S466","v":0},{"$f":"Lighting!U466","v":""},{"$f":"Lighting!V466","v":""},{"$f":"Lighting!W466","v":""},{"$f":"Lighting!X466","v":0},{"$f":"Lighting!Y466","v":""},{"$f":"Lighting!AA466","v":""},{"$f":"Lighting!AC466","v":""},{"$f":"Lighting!AF466","v":""},{"$f":"Lighting!AG466","v":0},{"$f":"Lighting!AH466","v":0},{"$f":"Lighting!AI466","v":0}]
[0,{"$f":"Lighting!B467","v":459},{"$f":"Lighting!C467","v":0},{"$f":"Lighting!D467","v":0},{"$f":"Lighting!F467","v":0},{"$f":"Lighting!G467","v":0},{"$f":"Lighting!H467","v":0},{"$f":"Lighting!I467","v":0},{"$f":"Lighting!J467","v":0},{"$f":"Lighting!K467","v":0},{"$f":"Lighting!L467","v":0},{"$f":"Lighting!N467","v":0},{"$f":"Lighting!O467","v":0},{"$f":"Lighting!R467","v":0},{"$f":"Lighting!S467","v":0},{"$f":"Lighting!U467","v":""},{"$f":"Lighting!V467","v":""},{"$f":"Lighting!W467","v":""},{"$f":"Lighting!X467","v":0},{"$f":"Lighting!Y467","v":""},{"$f":"Lighting!AA467","v":""},{"$f":"Lighting!AC467","v":""},{"$f":"Lighting!AF467","v":""},{"$f":"Lighting!AG467","v":0},{"$f":"Lighting!AH467","v":0},{"$f":"Lighting!AI467","v":0}]
[0,{"$f":"Lighting!B468","v":460},{"$f":"Lighting!C468","v":0},{"$f":"Lighting!D468","v":0},{"$f":"Lighting!F468","v":0},{"$f":"Lighting!G468","v":0},{"$f":"Lighting!H468","v":0},{"$f":"Lighting!I468","v":0},{"$f":"Lighting!J468","v":0},{"$f":"Lighting!K468","v":0},{"$f":"Lighting!L468","v":0},{"$f":"Lighting!N468","v":0},{"$f":"Lighting!O468","v":0},{"$f":"Lighting!R468","v":0},{"$f":"Lighting!S468","v":0},{"$f":"Lighting!U468","v":""},{"$f":"Lighting!V468","v":""},{"$f":"Lighting!W468","v":""},{"$f":"Lighting!X468","v":0},{"$f":"Lighting!Y468","v":""},{"$f":"Lighting!AA468","v":""},{"$f":"Lighting!AC468","v":""},{"$f":"Lighting!AF468","v":""},{"$f":"Lighting!AG468","v":0},{"$f":"Lighting!AH468","v":0},{"$f":"Lighting!AI468","v":0}]
[0,{"$f":"Lighting!B469","v":461},{"$f":"Lighting!C469","v":0},{"$f":"Lighting!D469","v":0},{"$f":"Lighting!F469","v":0},{"$f":"Lighting!G469","v":0},{"$f":"Lighting!H469","v":0},{"$f":"Lighting!I469","v":0},{"$f":"Lighting!J469","v":0},{"$f":"Lighting!K469","v":0},{"$f":"Lighting!L469","v":0},{"$f":"Lighting!N469","v":0},{"$f":"Lighting!O469","v":0},{"$f":"Lighting!R469","v":0},{"$f":"Lighting!S469","v":0},{"$f":"Lighting!U469","v":""},{"$f":"Lighting!V469","v":""},{"$f":"Lighting!W469","v":""},{"$f":"Lighting!X469","v":0},{"$f":"Lighting!Y469","v":""},{"$f":"Lighting!AA469","v":""},{"$f":"Lighting!AC469","v":""},{"$f":"Lighting!AF469","v":""},{"$f":"Lighting!AG469","v":0},{"$f":"Lighting!AH469","v":0},{"$f":"Lighting!AI469","v":0}]
[0,{"$f":"Lighting!B470","v":462},{"$f":"Lighting!C470","v":0},{"$f":"Lighting!D470","v":0},{"$f":"Lighting!F470","v":0},{"$f":"Lighting!G470","v":0},{"$f":"Lighting!H470","v":0},{"$f":"Lighting!I470","v":0},{"$f":"Lighting!J470","v":0},{"$f":"Lighting!K470","v":0},{"$f":"Lighting!L470","v":0},{"$f":"Lighting!N470","v":0},{"$f":"Lighting!O470","v":0},{"$f":"Lighting!R470","v":0},{"$f":"Lighting!S470","v":0},{"$f":"Lighting!U470","v":""},{"$f":"Lighting!V470","v":""},{"$f":"Lighting!W470","v":""},{"$f":"Lighting!X470","v":0},{"$f":"Lighting!Y470","v":""},{"$f":"Lighting!AA470","v":""},{"$f":"Lighting!AC470","v":""},{"$f":"Lighting!AF470","v":""},{"$f":"Lighting!AG470","v":0},{"$f":"Lighting!AH470","v":0},{"$f":"Lighting!AI470","v":0}]
[0,{"$f":"Lighting!B471","v":463},{"$f":"Lighting!C471","v":0},{"$f":"Lighting!D471","v":0},{"$f":"Lighting!F471","v":0},{"$f":"Lighting!G471","v":0},{"$f":"Lighting!H471","v":0},{"$f":"Lighting!I471","v":0},{"$f":"Lighting!J471","v":0},{"$f":"Lighting!K471","v":0},{"$f":"Lighting!L471","v":0},{"$f":"Lighting!N471","v":0},{"$f":"Lighting!O471","v":0},{"$f":"Lighting!R471","v":0},{"$f":"Lighting!S471","v":0},{"$f":"Lighting!U471","v":""},{"$f":"Lighting!V471","v":""},{"$f":"Lighting!W471","v":""},{"$f":"Lighting!X471","v":0},{"$f":"Lighting!Y471","v":""},{"$f":"Lighting!AA471","v":""},{"$f":"Lighting!AC471","v":""},{"$f":"Lighting!AF471","v":""},{"$f":"Lighting!AG471","v":0},{"$f":"Lighting!AH471","v":0},{"$f":"Lighting!AI471","v":0}]
[0,{"$f":"Lighting!B472","v":464},{"$f":"Lighting!C472","v":0},{"$f":"Lighting!D472","v":0},{"$f":"Lighting!F472","v":0},{"$f":"Lighting!G472","v":0},{"$f":"Lighting!H472","v":0},{"$f":"Lighting!I472","v":0},{"$f":"Lighting!J472","v":0},{"$f":"Lighting!K472","v":0},{"$f":"Lighting!L472","v":0},{"$f":"Lighting!N472","v":0},{"$f":"Lighting!O472","v":0},{"$f":"Lighting!R472","v":0},{"$f":"Lighting!S472","v":0},{"$f":"Lighting!U472","v":""},{"$f":"Lighting!V472","v":""},{"$f":"Lighting!W472","v":""},{"$f":"Lighting!X472","v":0},{"$f":"Lighting!Y472","v":""},{"$f":"Lighting!AA472","v":""},{"$f":"Lighting!AC472","v":""},{"$f":"Lighting!AF472","v":""},{"$f":"Lighting!AG472","v":0},{"$f":"Lighting!AH472","v":0},{"$f":"Lighting!AI472","v":0}]
[0,{"$f":"Lighting!B473","v":465},{"$f":"Lighting!C473","v":0},{"$f":"Lighting!D473","v":0},{"$f":"Lighting!F473","v":0},{"$f":"Lighting!G473","v":0},{"$f":"Lighting!H473","v":0},{"$f":"Lighting!I473","v":0},{"$f":"Lighting!J473","v":0},{"$f":"Lighting!K473","v":0},{"$f":"Lighting!L473","v":0},{"$f":"Lighting!N473","v":0},{"$f":"Lighting!O473","v":0},{"$f":"Lighting!R473","v":0},{"$f":"Lighting!S473","v":0},{"$f":"Lighting!U473","v":""},{"$f":"Lighting!V473","v":""},{"$f":"Lighting!W473","v":""},{"$f":"Lighting!X473","v":0},{"$f":"Lighting!Y473","v":""},{"$f":"Lighting!AA473","v":""},{"$f":"Lighting!AC473","v":""},{"$f":"Lighting!AF473","v":""},{"$f":"Lighting!AG473","v":0},{"$f":"Lighting!AH473","v":0},{"$f":"Lighting!AI473","v":0}]
[0,{"$f":"Lighting!B474","v":466},{"$f":"Lighting!C474","v":0},{"$f":"Lighting!D474","v":0},{"$f":"Lighting!F474","v":0},{"$f":"Lighting!G474","v":0},{"$f":"Lighting!H474","v":0},{"$f":"Lighting!I474","v":0},{"$f":"Lighting!J474","v":0},{"$f":"Lighting!K474","v":0},{"$f":"Lighting!L474","v":0},{"$f":"Lighting!N474","v":0},{"$f":"Lighting!O474","v":0},{"$f":"Lighting!R474","v":0},{"$f":"Lighting!S474","v":0},{"$f":"Lighting!U474","v":""},{"$f":"Lighting!V474","v":""},{"$f":"Lighting!W474","v":""},{"$f":"Lighting!X474","v":0},{"$f":"Lighting!Y474","v":""},{"$f":"Lighting!AA474","v":""},{"$f":"Lighting!AC474","v":""},{"$f":"Lighting!AF474","v":""},{"$f":"Lighting!AG474","v":0},{"$f":"Lighting!AH474","v":0},{"$f":"Lighting!AI474","v":0}]
[0,{"$f":"Lighting!B475","v":467},{"$f":"Lighting!C475","v":0},{"$f":"Lighting!D475","v":0},{"$f":"Lighting!F475","v":0},{"$f":"Lighting!G475","v":0},{"$f":"Lighting!H475","v":0},{"$f":"Lighting!I475","v":0},{"$f":"Lighting!J475","v":0},{"$f":"Lighting!K475","v":0},{"$f":"Lighting!L475","v":0},{"$f":"Lighting!N475","v":0},{"$f":"Lighting!O475","v":0},{"$f":"Lighting!R475","v":0},{"$f":"Lighting!S475","v":0},{"$f":"Lighting!U475","v":""},{"$f":"Lighting!V475","v":""},{"$f":"Lighting!W475","v":""},{"$f":"Lighting!X475","v":0},{"$f":"Lighting!Y475","v":""},{"$f":"Lighting!AA475","v":""},{"$f":"Lighting!AC475","v":""},{"$f":"Lighting!AF475","v":""},{"$f":"Lighting!AG475","v":0},{"$f":"Lighting!AH475","v":0},{"$f":"Lighting!AI475","v":0}]
[0,{"$f":"Lighting!B476","v":468},{"$f":"Lighting!C476","v":0},{"$f":"Lighting!D476","v":0},{"$f":"Lighting!F476","v":0},{"$f":"Lighting!G476","v":0},{"$f":"Lighting!H476","v":0},{"$f":"Lighting!I476","v":0},{"$f":"Lighting!J476","v":0},{"$f":"Lighting!K476","v":0},{"$f":"Lighting!L476","v":0},{"$f":"Lighting!N476","v":0},{"$f":"Lighting!O476","v":0},{"$f":"Lighting!R476","v":0},{"$f":"Lighting!S476","v":0},{"$f":"Lighting!U476","v":""},{"$f":"Lighting!V476","v":""},{"$f":"Lighting!W476","v":""},{"$f":"Lighting!X476","v":0},{"$f":"Lighting!Y476","v":""},{"$f":"Lighting!AA476","v":""},{"$f":"Lighting!AC476","v":""},{"$f":"Lighting!AF476","v":""},{"$f":"Lighting!AG476","v":0},{"$f":"Lighting!AH476","v":0},{"$f":"Lighting!AI476","v":0}]
[0,{"$f":"Lighting!B477","v":469},{"$f":"Lighting!C477","v":0},{"$f":"Lighting!D477","v":0},{"$f":"Lighting!F477","v":0},{"$f":"Lighting!G477","v":0},{"$f":"Lighting!H477","v":0},{"$f":"Lighting!I477","v":0},{"$f":"Lighting!J477","v":0},{"$f":"Lighting!K477","v":0},{"$f":"Lighting!L477","v":0},{"$f":"Lighting!N477","v":0},{"$f":"Lighting!O477","v":0},{"$f":"Lighting!R477","v":0},{"$f":"Lighting!S477","v":0},{"$f":"Lighting!U477","v":""},{"$f":"Lighting!V477","v":""},{"$f":"Lighting!W477","v":""},{"$f":"Lighting!X477","v":0},{"$f":"Lighting!Y477","v":""},{"$f":"Lighting!AA477","v":""},{"$f":"Lighting!AC477","v":""},{"$f":"Lighting!AF477","v":""},{"$f":"Lighting!AG477","v":0},{"$f":"Lighting!AH477","v":0},{"$f":"Lighting!AI477","v":0}]
[0,{"$f":"Lighting!B478","v":470},{"$f":"Lighting!C478","v":0},{"$f":"Lighting!D478","v":0},{"$f":"Lighting!F478","v":0},{"$f":"Lighting!G478","v":0},{"$f":"Lighting!H478","v":0},{"$f":"Lighting!I478","v":0},{"$f":"Lighting!J478","v":0},{"$f":"Lighting!K478","v":0},{"$f":"Lighting!L478","v":0},{"$f":"Lighting!N478","v":0},{"$f":"Lighting!O478","v":0},{"$f":"Lighting!R478","v":0},{"$f":"Lighting!S478","v":0},{"$f":"Lighting!U478","v":""},{"$f":"Lighting!V478","v":""},{"$f":"Lighting!W478","v":""},{"$f":"Lighting!X478","v":0},{"$f":"Lighting!Y478","v":""},{"$f":"Lighting!AA478","v":""},{"$f":"Lighting!AC478","v":""},{"$f":"Lighting!AF478","v":""},{"$f":"Lighting!AG478","v":0},{"$f":"Lighting!AH478","v":0},{"$f":"Lighting!AI478","v":0}]
[0,{"$f":"Lighting!B479","v":471},{"$f":"Lighting!C479","v":0},{"$f":"Lighting!D479","v":0},{"$f":"Lighting!F479","v":0},{"$f":"Lighting!G479","v":0},{"$f":"Lighting!H479","v":0},{"$f":"Lighting!I479","v":0},{"$f":"Lighting!J479","v":0},{"$f":"Lighting!K479","v":0},{"$f":"Lighting!L479","v":0},{"$f":"Lighting!N479","v":0},{"$f":"Lighting!O479","v":0},{"$f":"Lighting!R479","v":0},{"$f":"Lighting!S479","v":0},{"$f":"Lighting!U479","v":""},{"$f":"Lighting!V479","v":""},{"$f":"Lighting!W479","v":""},{"$f":"Lighting!X479","v":0},{"$f":"Lighting!Y479","v":""},{"$f":"Lighting!AA479","v":""},{"$f":"Lighting!AC479","v":""},{"$f":"Lighting!AF479","v":""},{"$f":"Lighting!AG479","v":0},{"$f":"Lighting!AH479","v":0},{"$f":"Lighting!AI479","v":0}]
[0,{"$f":"Lighting!B480","v":472},{"$f":"Lighting!C480","v":0},{"$f":"Lighting!D480","v":0},{"$f":"Lighting!F480","v":0},{"$f":"Lighting!G480","v":0},{"$f":"Lighting!H480","v":0},{"$f":"Lighting!I480","v":0},{"$f":"Lighting!J480","v":0},{"$f":"Lighting!K480","v":0},{"$f":"Lighting!L480","v":0},{"$f":"Lighting!N480","v":0},{"$f":"Lighting!O480","v":0},{"$f":"Lighting!R480","v":0},{"$f":"Lighting!S480","v":0},{"$f":"Lighting!U480","v":""},{"$f":"Lighting!V480","v":""},{"$f":"Lighting!W480","v":""},{"$f":"Lighting!X480","v":0},{"$f":"Lighting!Y480","v":""},{"$f":"Lighting!AA480","v":""},{"$f":"Lighting!AC480","v":""},{"$f":"Lighting!AF480","v":""},{"$f":"Lighting!AG480","v":0},{"$f":"Lighting!AH480","v":0},{"$f":"Lighting!AI480","v":0}]
[0,{"$f":"Lighting!B481","v":473},{"$f":"Lighting!C481","v":0},{"$f":"Lighting!D481","v":0},{"$f":"Lighting!F481","v":0},{"$f":"Lighting!G481","v":0},{"$f":"Lighting!H481","v":0},{"$f":"Lighting!I481","v":0},{"$f":"Lighting!J481","v":0},{"$f":"Lighting!K481","v":0},{"$f":"Lighting!L481","v":0},{"$f":"Lighting!N481","v":0},{"$f":"Lighting!O481","v":0},{"$f":"Lighting!R481","v":0},{"$f":"Lighting!S481","v":0},{"$f":"Lighting!U481","v":""},{"$f":"Lighting!V481","v":""},{"$f":"Lighting!W481","v":""},{"$f":"Lighting!X481","v":0},{"$f":"Lighting!Y481","v":""},{"$f":"Lighting!AA481","v":""},{"$f":"Lighting!AC481","v":""},{"$f":"Lighting!AF481","v":""},{"$f":"Lighting!AG481","v":0},{"$f":"Lighting!AH481","v":0},{"$f":"Lighting!AI481","v":0}]
[0,{"$f":"Lighting!B482","v":474},{"$f":"Lighting!C482","v":0},{"$f":"Lighting!D482","v":0},{"$f":"Lighting!F482","v":0},{"$f":"Lighting!G482","v":0},{"$f":"Lighting!H482","v":0},{"$f":"Lighting!I482","v":0},{"$f":"Lighting!J482","v":0},{"$f":"Lighting!K482","v":0},{"$f":"Lighting!L482","v":0},{"$f":"Lighting!N482","v":0},{"$f":"Lighting!O482","v":0},{"$f":"Lighting!R482","v":0},{"$f":"Lighting!S482","v":0},{"$f":"Lighting!U482","v":""},{"$f":"Lighting!V482","v":""},{"$f":"Lighting!W482","v":""},{"$f":"Lighting!X482","v":0},{"$f":"Lighting!Y482","v":""},{"$f":"Lighting!AA482","v":""},{"$f":"Lighting!AC482","v":""},{"$f":"Lighting!AF482","v":""},{"$f":"Lighting!AG482","v":0},{"$f":"Lighting!AH482","v":0},{"$f":"Lighting!AI482","v":0}]
[0,{"$f":"Lighting!B483","v":475},{"$f":"Lighting!C483","v":0},{"$f":"Lighting!D483","v":0},{"$f":"Lighting!F483","v":0},{"$f":"Lighting!G483","v":0},{"$f":"Lighting!H483","v":0},{"$f":"Lighting!I483","v":0},{"$f":"Lighting!J483","v":0},{"$f":"Lighting!K483","v":0},{"$f":"Lighting!L483","v":0},{"$f":"Lighting!N483","v":0},{"$f":"Lighting!O483","v":0},{"$f":"Lighting!R483","v":0},{"$f":"Lighting!S483","v":0},{"$f":"Lighting!U483","v":""},{"$f":"Lighting!V483","v":""},{"$f":"Lighting!W483","v":""},{"$f":"Lighting!X483","v":0},{"$f":"Lighting!Y483","v":""},{"$f":"Lighting!AA483","v":""},{"$f":"Lighting!AC483","v":""},{"$f":"Lighting!AF483","v":""},{"$f":"Lighting!AG483","v":0},{"$f":"Lighting!AH483","v":0},{"$f":"Lighting!AI483","v":0}]
[0,{"$f":"Lighting!B484","v":476},{"$f":"Lighting!C484","v":0},{"$f":"Lighting!D484","v":0},{"$f":"Lighting!F484","v":0},{"$f":"Lighting!G484","v":0},{"$f":"Lighting!H484","v":0},{"$f":"Lighting!I484","v":0},{"$f":"Lighting!J484","v":0},{"$f":"Lighting!K484","v":0},{"$f":"Lighting!L484","v":0},{"$f":"Lighting!N484","v":0},{"$f":"Lighting!O484","v":0},{"$f":"Lighting!R484","v":0},{"$f":"Lighting!S484","v":0},{"$f":"Lighting!U484","v":""},{"$f":"Lighting!V484","v":""},{"$f":"Lighting!W484","v":""},{"$f":"Lighting!X484","v":0},{"$f":"Lighting!Y484","v":""},{"$f":"Lighting!AA484","v":""},{"$f":"Lighting!AC484","v":""},{"$f":"Lighting!AF484","v":""},{"$f":"Lighting!AG484","v":0},{"$f":"Lighting!AH484","v":0},{"$f":"Lighting!AI484","v":0}]
[0,{"$f":"Lighting!B485","v":477},{"$f":"Lighting!C485","v":0},{"$f":"Lighting!D485","v":0},{"$f":"Lighting!F485","v":0},{"$f":"Lighting!G485","v":0},{"$f":"Lighting!H485","v":0},{"$f":"Lighting!I485","v":0},{"$f":"Lighting!J485","v":0},{"$f":"Lighting!K485","v":0},{"$f":"Lighting!L485","v":0},{"$f":"Lighting!N485","v":0},{"$f":"Lighting!O485","v":0},{"$f":"Lighting!R485","v":0},{"$f":"Lighting!S485","v":0},{"$f":"Lighting!U485","v":""},{"$f":"Lighting!V485","v":""},{"$f":"Lighting!W485","v":""},{"$f":"Lighting!X485","v":0},{"$f":"Lighting!Y485","v":""},{"$f":"Lighting!AA485","v":""},{"$f":"Lighting!AC485","v":""},{"$f":"Lighting!AF485","v":""},{"$f":"Lighting!AG485","v":0},{"$f":"Lighting!AH485","v":0},{"$f":"Lighting!AI485","v":0}]
[0,{"$f":"Lighting!B486","v":478},{"$f":"Lighting!C486","v":0},{"$f":"Lighting!D486","v":0},{"$f":"Lighting!F486","v":0},{"$f":"Lighting!G486","v":0},{"$f":"Lighting!H486","v":0},{"$f":"Lighting!I486","v":0},{"$f":"Lighting!J486","v":0},{"$f":"Lighting!K486","v":0},{"$f":"Lighting!L486","v":0},{"$f":"Lighting!N486","v":0},{"$f":"Lighting!O486","v":0},{"$f":"Lighting!R486","v":0},{"$f":"Lighting!S486","v":0},{"$f":"Lighting!U486","v":""},{"$f":"Lighting!V486","v":""},{"$f":"Lighting!W486","v":""},{"$f":"Lighting!X486","v":0},{"$f":"Lighting!Y486","v":""},{"$f":"Lighting!AA486","v":""},{"$f":"Lighting!AC486","v":""},{"$f":"Lighting!AF486","v":""},{"$f":"Lighting!AG486","v":0},{"$f":"Lighting!AH486","v":0},{"$f":"Lighting!AI486","v":0}]
[0,{"$f":"Lighting!B487","v":479},{"$f":"Lighting!C487","v":0},{"$f":"Lighting!D487","v":0},{"$f":"Lighting!F487","v":0},{"$f":"Lighting!G487","v":0},{"$f":"Lighting!H487","v":0},{"$f":"Lighting!I487","v":0},{"$f":"Lighting!J487","v":0},{"$f":"Lighting!K487","v":0},{"$f":"Lighting!L487","v":0},{"$f":"Lighting!N487","v":0},{"$f":"Lighting!O487","v":0},{"$f":"Lighting!R487","v":0},{"$f":"Lighting!S487","v":0},{"$f":"Lighting!U487","v":""},{"$f":"Lighting!V487","v":""},{"$f":"Lighting!W487","v":""},{"$f":"Lighting!X487","v":0},{"$f":"Lighting!Y487","v":""},{"$f":"Lighting!AA487","v":""},{"$f":"Lighting!AC487","v":""},{"$f":"Lighting!AF487","v":""},{"$f":"Lighting!AG487","v":0},{"$f":"Lighting!AH487","v":0},{"$f":"Lighting!AI487","v":0}]
[0,{"$f":"Lighting!B488","v":480},{"$f":"Lighting!C488","v":0},{"$f":"Lighting!D488","v":0},{"$f":"Lighting!F488","v":0},{"$f":"Lighting!G488","v":0},{"$f":"Lighting!H488","v":0},{"$f":"Lighting!I488","v":0},{"$f":"Lighting!J488","v":0},{"$f":"Lighting!K488","v":0},{"$f":"Lighting!L488","v":0},{"$f":"Lighting!N488","v":0},{"$f":"Lighting!O488","v":0},{"$f":"Lighting!R488","v":0},{"$f":"Lighting!S488","v":0},{"$f":"Lighting!U488","v":""},{"$f":"Lighting!V488","v":""},{"$f":"Lighting!W488","v":""},{"$f":"Lighting!X488","v":0},{"$f":"Lighting!Y488","v":""},{"$f":"Lighting!AA488","v":""},{"$f":"Lighting!AC488","v":""},{"$f":"Lighting!AF488","v":""},{"$f":"Lighting!AG488","v":0},{"$f":"Lighting!AH488","v":0},{"$f":"Lighting!AI488","v":0}]
[0,{"$f":"Lighting!B489","v":481},{"$f":"Lighting!C489","v":0},{"$f":"Lighting!D489","v":0},{"$f":"Lighting!F489","v":0},{"$f":"Lighting!G489","v":0},{"$f":"Lighting!H489","v":0},{"$f":"Lighting!I489","v":0},{"$f":"Lighting!J489","v":0},{"$f":"Lighting!K489","v":0},{"$f":"Lighting!L489","v":0},{"$f":"Lighting!N489","v":0},{"$f":"Lighting!O489","v":0},{"$f":"Lighting!R489","v":0},{"$f":"Lighting!S489","v":0},{"$f":"Lighting!U489","v":""},{"$f":"Lighting!V489","v":""},{"$f":"Lighting!W489","v":""},{"$f":"Lighting!X489","v":0},{"$f":"Lighting!Y489","v":""},{"$f":"Lighting!AA489","v":""},{"$f":"Lighting!AC489","v":""},{"$f":"Lighting!AF489","v":""},{"$f":"Lighting!AG489","v":0},{"$f":"Lighting!AH489","v":0},{"$f":"Lighting!AI489","v":0}]
[0,{"$f":"Lighting!B490","v":482},{"$f":"Lighting!C490","v":0},{"$f":"Lighting!D490","v":0},{"$f":"Lighting!F490","v":0},{"$f":"Lighting!G490","v":0},{"$f":"Lighting!H490","v":0},{"$f":"Lighting!I490","v":0},{"$f":"Lighting!J490","v":0},{"$f":"Lighting!K490","v":0},{"$f":"Lighting!L490","v":0},{"$f":"Lighting!N490","v":0},{"$f":"Lighting!O490","v":0},{"$f":"Lighting!R490","v":0},{"$f":"Lighting!S490","v":0},{"$f":"Lighting!U490","v":""},{"$f":"Lighting!V490","v":""},{"$f":"Lighting!W490","v":""},{"$f":"Lighting!X490","v":0},{"$f":"Lighting!Y490","v":""},{"$f":"Lighting!AA490","v":""},{"$f":"Lighting!AC490","v":""},{"$f":"Lighting!AF490","v":""},{"$f":"Lighting!AG490","v":0},{"$f":"Lighting!AH490","v":0},{"$f":"Lighting!AI490","v":0}]
[0,{"$f":"Lighting!B491","v":483},{"$f":"Lighting!C491","v":0},{"$f":"Lighting!D491","v":0},{"$f":"Lighting!F491","v":0},{"$f":"Lighting!G491","v":0},{"$f":"Lighting!H491","v":0},{"$f":"Lighting!I491","v":0},{"$f":"Lighting!J491","v":0},{"$f":"Lighting!K491","v":0},{"$f":"Lighting!L491","v":0},{"$f":"Lighting!N491","v":0},{"$f":"Lighting!O491","v":0},{"$f":"Lighting!R491","v":0},{"$f":"Lighting!S491","v":0},{"$f":"Lighting!U491","v":""},{"$f":"Lighting!V491","v":""},{"$f":"Lighting!W491","v":""},{"$f":"Lighting!X491","v":0},{"$f":"Lighting!Y491","v":""},{"$f":"Lighting!AA491","v":""},{"$f":"Lighting!AC491","v":""},{"$f":"Lighting!AF491","v":""},{"$f":"Lighting!AG491","v":0},{"$f":"Lighting!AH491","v":0},{"$f":"Lighting!AI491","v":0}]
[0,{"$f":"Lighting!B492","v":484},{"$f":"Lighting!C492","v":0},{"$f":"Lighting!D492","v":0},{"$f":"Lighting!F492","v":0},{"$f":"Lighting!G492","v":0},{"$f":"Lighting!H492","v":0},{"$f":"Lighting!I492","v":0},{"$f":"Lighting!J492","v":0},{"$f":"Lighting!K492","v":0},{"$f":"Lighting!L492","v":0},{"$f":"Lighting!N492","v":0},{"$f":"Lighting!O492","v":0},{"$f":"Lighting!R492","v":0},{"$f":"Lighting!S492","v":0},{"$f":"Lighting!U492","v":""},{"$f":"Lighting!V492","v":""},{"$f":"Lighting!W492","v":""},{"$f":"Lighting!X492","v":0},{"$f":"Lighting!Y492","v":""},{"$f":"Lighting!AA492","v":""},{"$f":"Lighting!AC492","v":""},{"$f":"Lighting!AF492","v":""},{"$f":"Lighting!AG492","v":0},{"$f":"Lighting!AH492","v":0},{"$f":"Lighting!AI492","v":0}]
[0,{"$f":"Lighting!B493","v":485},{"$f":"Lighting!C493","v":0},{"$f":"Lighting!D493","v":0},{"$f":"Lighting!F493","v":0},{"$f":"Lighting!G493","v":0},{"$f":"Lighting!H493","v":0},{"$f":"Lighting!I493","v":0},{"$f":"Lighting!J493","v":0},{"$f":"Lighting!K493","v":0},{"$f":"Lighting!L493","v":0},{"$f":"Lighting!N493","v":0},{"$f":"Lighting!O493","v":0},{"$f":"Lighting!R493","v":0},{"$f":"Lighting!S493","v":0},{"$f":"Lighting!U493","v":""},{"$f":"Lighting!V493","v":""},{"$f":"Lighting!W493","v":""},{"$f":"Lighting!X493","v":0},{"$f":"Lighting!Y493","v":""},{"$f":"Lighting!AA493","v":""},{"$f":"Lighting!AC493","v":""},{"$f":"Lighting!AF493","v":""},{"$f":"Lighting!AG493","v":0},{"$f":"Lighting!AH493","v":0},{"$f":"Lighting!AI493","v":0}]
[0,{"$f":"Lighting!B494","v":486},{"$f":"Lighting!C494","v":0},{"$f":"Lighting!D494","v":0},{"$f":"Lighting!F494","v":0},{"$f":"Lighting!G494","v":0},{"$f":"Lighting!H494","v":0},{"$f":"Lighting!I494","v":0},{"$f":"Lighting!J494","v":0},{"$f":"Lighting!K494","v":0},{"$f":"Lighting!L494","v":0},{"$f":"Lighting!N494","v":0},{"$f":"Lighting!O494","v":0},{"$f":"Lighting!R494","v":0},{"$f":"Lighting!S494","v":0},{"$f":"Lighting!U494","v":""},{"$f":"Lighting!V494","v":""},{"$f":"Lighting!W494","v":""},{"$f":"Lighting!X494","v":0},{"$f":"Lighting!Y494","v":""},{"$f":"Lighting!AA494","v":""},{"$f":"Lighting!AC494","v":""},{"$f":"Lighting!AF494","v":""},{"$f":"Lighting!AG494","v":0},{"$f":"Lighting!AH494","v":0},{"$f":"Lighting!AI494","v":0}]
[0,{"$f":"Lighting!B495","v":487},{"$f":"Lighting!C495","v":0},{"$f":"Lighting!D495","v":0},{"$f":"Lighting!F495","v":0},{"$f":"Lighting!G495","v":0},{"$f":"Lighting!H495","v":0},{"$f":"Lighting!I495","v":0},{"$f":"Lighting!J495","v":0},{"$f":"Lighting!K495","v":0},{"$f":"Lighting!L495","v":0},{"$f":"Lighting!N495","v":0},{"$f":"Lighting!O495","v":0},{"$f":"Lighting!R495","v":0},{"$f":"Lighting!S495","v":0},{"$f":"Lighting!U495","v":""},{"$f":"Lighting!V495","v":""},{"$f":"Lighting!W495","v":""},{"$f":"Lighting!X495","v":0},{"$f":"Lighting!Y495","v":""},{"$f":"Lighting!AA495","v":""},{"$f":"Lighting!AC495","v":""},{"$f":"Lighting!AF495","v":""},{"$f":"Lighting!AG495","v":0},{"$f":"Lighting!AH495","v":0},{"$f":"Lighting!AI495","v":0}]
[0,{"$f":"Lighting!B496","v":488},{"$f":"Lighting!C496","v":0},{"$f":"Lighting!D496","v":0},{"$f":"Lighting!F496","v":0},{"$f":"Lighting!G496","v":0},{"$f":"Lighting!H496","v":0},{"$f":"Lighting!I496","v":0},{"$f":"Lighting!J496","v":0},{"$f":"Lighting!K496","v":0},{"$f":"Lighting!L496","v":0},{"$f":"Lighting!N496","v":0},{"$f":"Lighting!O496","v":0},{"$f":"Lighting!R496","v":0},{"$f":"Lighting!S496","v":0},{"$f":"Lighting!U496","v":""},{"$f":"Lighting!V496","v":""},{"$f":"Lighting!W496","v":""},{"$f":"Lighting!X496","v":0},{"$f":"Lighting!Y496","v":""},{"$f":"Lighting!AA496","v":""},{"$f":"Lighting!AC496","v":""},{"$f":"Lighting!AF496","v":""},{"$f":"Lighting!AG496","v":0},{"$f":"Lighting!AH496","v":0},{"$f":"Lighting!AI496","v":0}]
[0,{"$f":"Lighting!B497","v":489},{"$f":"Lighting!C497","v":0},{"$f":"Lighting!D497","v":0},{"$f":"Lighting!F497","v":0},{"$f":"Lighting!G497","v":0},{"$f":"Lighting!H497","v":0},{"$f":"Lighting!I497","v":0},{"$f":"Lighting!J497","v":0},{"$f":"Lighting!K497","v":0},{"$f":"Lighting!L497","v":0},{"$f":"Lighting!N497","v":0},{"$f":"Lighting!O497","v":0},{"$f":"Lighting!R497","v":0},{"$f":"Lighting!S497","v":0},{"$f":"Lighting!U497","v":""},{"$f":"Lighting!V497","v":""},{"$f":"Lighting!W497","v":""},{"$f":"Lighting!X497","v":0},{"$f":"Lighting!Y497","v":""},{"$f":"Lighting!AA497","v":""},{"$f":"Lighting!AC497","v":""},{"$f":"Lighting!AF497","v":""},{"$f":"Lighting!AG497","v":0},{"$f":"Lighting!AH497","v":0},{"$f":"Lighting!AI497","v":0}]
[0,{"$f":"Lighting!B498","v":490},{"$f":"Lighting!C498","v":0},{"$f":"Lighting!D498","v":0},{"$f":"Lighting!F498","v":0},{"$f":"Lighting!G498","v":0},{"$f":"Lighting!H498","v":0},{"$f":"Lighting!I498","v":0},{"$f":"Lighting!J498","v":0},{"$f":"Lighting!K498","v":0},{"$f":"Lighting!L498","v":0},{"$f":"Lighting!N498","v":0},{"$f":"Lighting!O498","v":0},{"$f":"Lighting!R498","v":0},{"$f":"Lighting!S498","v":0},{"$f":"Lighting!U498","v":""},{"$f":"Lighting!V498","v":""},{"$f":"Lighting!W498","v":""},{"$f":"Lighting!X498","v":0},{"$f":"Lighting!Y498","v":""},{"$f":"Lighting!AA498","v":""},{"$f":"Lighting!AC498","v":""},{"$f":"Lighting!AF498","v":""},{"$f":"Lighting!AG498","v":0},{"$f":"Lighting!AH498","v":0},{"$f":"Lighting!AI498","v":0}]
[0,{"$f":"Lighting!B499","v":491},{"$f":"Lighting!C499","v":0},{"$f":"Lighting!D499","v":0},{"$f":"Lighting!F499","v":0},{"$f":"Lighting!G499","v":0},{"$f":"Lighting!H499","v":0},{"$f":"Lighting!I499","v":0},{"$f":"Lighting!J499","v":0},{"$f":"Lighting!K499","v":0},{"$f":"Lighting!L499","v":0},{"$f":"Lighting!N499","v":0},{"$f":"Lighting!O499","v":0},{"$f":"Lighting!R499","v":0},{"$f":"Lighting!S499","v":0},{"$f":"Lighting!U499","v":""},{"$f":"Lighting!V499","v":""},{"$f":"Lighting!W499","v":""},{"$f":"Lighting!X499","v":0},{"$f":"Lighting!Y499","v":""},{"$f":"Lighting!AA499","v":""},{"$f":"Lighting!AC499","v":""},{"$f":"Lighting!AF499","v":""},{"$f":"Lighting!AG499","v":0},{"$f":"Lighting!AH499","v":0},{"$f":"Lighting!AI499","v":0}]
[0,{"$f":"Lighting!B500","v":492},{"$f":"Lighting!C500","v":0},{"$f":"Lighting!D500","v":0},{"$f":"Lighting!F500","v":0},{"$f":"Lighting!G500","v":0},{"$f":"Lighting!H500","v":0},{"$f":"Lighting!I500","v":0},{"$f":"Lighting!J500","v":0},{"$f":"Lighting!K500","v":0},{"$f":"Lighting!L500","v":0},{"$f":"Lighting!N500","v":0},{"$f":"Lighting!O500","v":0},{"$f":"Lighting!R500","v":0},{"$f":"Lighting!S500","v":0},{"$f":"Lighting!U500","v":""},{"$f":"Lighting!V500","v":""},{"$f":"Lighting!W500","v":""},{"$f":"Lighting!X500","v":0},{"$f":"Lighting!Y500","v":""},{"$f":"Lighting!AA500","v":""},{"$f":"Lighting!AC500","v":""},{"$f":"Lighting!AF500","v":""},{"$f":"Lighting!AG500","v":0},{"$f":"Lighting!AH500","v":0},{"$f":"Lighting!AI500","v":0}]
[0,{"$f":"Lighting!B501","v":493},{"$f":"Lighting!C501","v":0},{"$f":"Lighting!D501","v":0},{"$f":"Lighting!F501","v":0},{"$f":"Lighting!G501","v":0},{"$f":"Lighting!H501","v":0},{"$f":"Lighting!I501","v":0},{"$f":"Lighting!J501","v":0},{"$f":"Lighting!K501","v":0},{"$f":"Lighting!L501","v":0},{"$f":"Lighting!N501","v":0},{"$f":"Lighting!O501","v":0},{"$f":"Lighting!R501","v":0},{"$f":"Lighting!S501","v":0},{"$f":"Lighting!U501","v":""},{"$f":"Lighting!V501","v":""},{"$f":"Lighting!W501","v":""},{"$f":"Lighting!X501","v":0},{"$f":"Lighting!Y501","v":""},{"$f":"Lighting!AA501","v":""},{"$f":"Lighting!AC501","v":""},{"$f":"Lighting!AF501","v":""},{"$f":"Lighting!AG501","v":0},{"$f":"Lighting!AH501","v":0},{"$f":"Lighting!AI501","v":0}]
[0,{"$f":"Lighting!B502","v":494},{"$f":"Lighting!C502","v":0},{"$f":"Lighting!D502","v":0},{"$f":"Lighting!F502","v":0},{"$f":"Lighting!G502","v":0},{"$f":"Lighting!H502","v":0},{"$f":"Lighting!I502","v":0},{"$f":"Lighting!J502","v":0},{"$f":"Lighting!K502","v":0},{"$f":"Lighting!L502","v":0},{"$f":"Lighting!N502","v":0},{"$f":"Lighting!O502","v":0},{"$f":"Lighting!R502","v":0},{"$f":"Lighting!S502","v":0},{"$f":"Lighting!U502","v":""},{"$f":"Lighting!V502","v":""},{"$f":"Lighting!W502","v":""},{"$f":"Lighting!X502","v":0},{"$f":"Lighting!Y502","v":""},{"$f":"Lighting!AA502","v":""},{"$f":"Lighting!AC502","v":""},{"$f":"Lighting!AF502","v":""},{"$f":"Lighting!AG502","v":0},{"$f":"Lighting!AH502","v":0},{"$f":"Lighting!AI502","v":0}]
[0,{"$f":"Lighting!B503","v":495},{"$f":"Lighting!C503","v":0},{"$f":"Lighting!D503","v":0},{"$f":"Lighting!F503","v":0},{"$f":"Lighting!G503","v":0},{"$f":"Lighting!H503","v":0},{"$f":"Lighting!I503","v":0},{"$f":"Lighting!J503","v":0},{"$f":"Lighting!K503","v":0},{"$f":"Lighting!L503","v":0},{"$f":"Lighting!N503","v":0},{"$f":"Lighting!O503","v":0},{"$f":"Lighting!R503","v":0},{"$f":"Lighting!S503","v":0},{"$f":"Lighting!U503","v":""},{"$f":"Lighting!V503","v":""},{"$f":"Lighting!W503","v":""},{"$f":"Lighting!X503","v":0},{"$f":"Lighting!Y503","v":""},{"$f":"Lighting!AA503","v":""},{"$f":"Lighting!AC503","v":""},{"$f":"Lighting!AF503","v":""},{"$f":"Lighting!AG503","v":0},{"$f":"Lighting!AH503","v":0},{"$f":"Lighting!AI503","v":0}]
[0,{"$f":"Lighting!B504","v":496},{"$f":"Lighting!C504","v":0},{"$f":"Lighting!D504","v":0},{"$f":"Lighting!F504","v":0},{"$f":"Lighting!G504","v":0},{"$f":"Lighting!H504","v":0},{"$f":"Lighting!I504","v":0},{"$f":"Lighting!J504","v":0},{"$f":"Lighting!K504","v":0},{"$f":"Lighting!L504","v":0},{"$f":"Lighting!N504","v":0},{"$f":"Lighting!O504","v":0},{"$f":"Lighting!R504","v":0},{"$f":"Lighting!S504","v":0},{"$f":"Lighting!U504","v":""},{"$f":"Lighting!V504","v":""},{"$f":"Lighting!W504","v":""},{"$f":"Lighting!X504","v":0},{"$f":"Lighting!Y504","v":""},{"$f":"Lighting!AA504","v":""},{"$f":"Lighting!AC504","v":""},{"$f":"Lighting!AF504","v":""},{"$f":"Lighting!AG504","v":0},{"$f":"Lighting!AH504","v":0},{"$f":"Lighting!AI504","v":0}]
[0,{"$f":"Lighting!B505","v":497},{"$f":"Lighting!C505","v":0},{"$f":"Lighting!D505","v":0},{"$f":"Lighting!F505","v":0},{"$f":"Lighting!G505","v":0},{"$f":"Lighting!H505","v":0},{"$f":"Lighting!I505","v":0},{"$f":"Lighting!J505","v":0},{"$f":"Lighting!K505","v":0},{"$f":"Lighting!L505","v":0},{"$f":"Lighting!N505","v":0},{"$f":"Lighting!O505","v":0},{"$f":"Lighting!R505","v":0},{"$f":"Lighting!S505","v":0},{"$f":"Lighting!U505","v":""},{"$f":"Lighting!V505","v":""},{"$f":"Lighting!W505","v":""},{"$f":"Lighting!X505","v":0},{"$f":"Lighting!Y505","v":""},{"$f":"Lighting!AA505","v":""},{"$f":"Lighting!AC505","v":""},{"$f":"Lighting!AF505","v":""},{"$f":"Lighting!AG505","v":0},{"$f":"Lighting!AH505","v":0},{"$f":"Lighting!AI505","v":0}]
[0,{"$f":"Lighting!B506","v":498},{"$f":"Lighting!C506","v":0},{"$f":"Lighting!D506","v":0},{"$f":"Lighting!F506","v":0},{"$f":"Lighting!G506","v":0},{"$f":"Lighting!H506","v":0},{"$f":"Lighting!I506","v":0},{"$f":"Lighting!J506","v":0},{"$f":"Lighting!K506","v":0},{"$f":"Lighting!L506","v":0},{"$f":"Lighting!N506","v":0},{"$f":"Lighting!O506","v":0},{"$f":"Lighting!R506","v":0},{"$f":"Lighting!S506","v":0},{"$f":"Lighting!U506","v":""},{"$f":"Lighting!V506","v":""},{"$f":"Lighting!W506","v":""},{"$f":"Lighting!X506","v":0},{"$f":"Lighting!Y506","v":""},{"$f":"Lighting!AA506","v":""},{"$f":"Lighting!AC506","v":""},{"$f":"Lighting!AF506","v":""},{"$f":"Lighting!AG506","v":0},{"$f":"Lighting!AH506","v":0},{"$f":"Lighting!AI506","v":0}]
[0,{"$f":"Lighting!B507","v":499},{"$f":"Lighting!C507","v":0},{"$f":"Lighting!D507","v":0},{"$f":"Lighting!F507","v":0},{"$f":"Lighting!G507","v":0},{"$f":"Lighting!H507","v":0},{"$f":"Lighting!I507","v":0},{"$f":"Lighting!J507","v":0},{"$f":"Lighting!K507","v":0},{"$f":"Lighting!L507","v":0},{"$f":"Lighting!N507","v":0},{"$f":"Lighting!O507","v":0},{"$f":"Lighting!R507","v":0},{"$f":"Lighting!S507","v":0},{"$f":"Lighting!U507","v":""},{"$f":"Lighting!V507","v":""},{"$f":"Lighting!W507","v":""},{"$f":"Lighting!X507","v":0},{"$f":"Lighting!Y507","v":""},{"$f":"Lighting!AA507","v":""},{"$f":"Lighting!AC507","v":""},{"$f":"Lighting!AF507","v":""},{"$f":"Lighting!AG507","v":0},{"$f":"Lighting!AH507","v":0},{"$f":"Lighting!AI507","v":0}]
[0,{"$f":"Lighting!B508","v":500},{"$f":"Lighting!C508","v":0},{"$f":"Lighting!D508","v":0},{"$f":"Lighting!F508","v":0},{"$f":"Lighting!G508","v":0},{"$f":"Lighting!H508","v":0},{"$f":"Lighting!I508","v":0},{"$f":"Lighting!J508","v":0},{"$f":"Lighting!K508","v":0},{"$f":"Lighting!L508","v":0},{"$f":"Lighting!N508","v":0},{"$f":"Lighting!O508","v":0},{"$f":"Lighting!R508","v":0},{"$f":"Lighting!S508","v":0},{"$f":"Lighting!U508","v":""},{"$f":"Lighting!V508","v":""},{"$f":"Lighting!W508","v":""},{"$f":"Lighting!X508","v":0},{"$f":"Lighting!Y508","v":""},{"$f":"Lighting!AA508","v":""},{"$f":"Lighting!AC508","v":""},{"$f":"Lighting!AF508","v":""},{"$f":"Lighting!AG508","v":0},{"$f":"Lighting!AH508","v":0},{"$f":"Lighting!AI508","v":0}]
[0,{"$f":"Lighting!B509","v":501},{"$f":"Lighting!C509","v":0},{"$f":"Lighting!D509","v":0},{"$f":"Lighting!F509","v":0},{"$f":"Lighting!G509","v":0},{"$f":"Lighting!H509","v":0},{"$f":"Lighting!I509","v":0},{"$f":"Lighting!J509","v":0},{"$f":"Lighting!K509","v":0},{"$f":"Lighting!L509","v":0},{"$f":"Lighting!N509","v":0},{"$f":"Lighting!O509","v":0},{"$f":"Lighting!R509","v":0},{"$f":"Lighting!S509","v":0},{"$f":"Lighting!U509","v":""},{"$f":"Lighting!V509","v":""},{"$f":"Lighting!W509","v":""},{"$f":"Lighting!X509","v":0},{"$f":"Lighting!Y509","v":""},{"$f":"Lighting!AA509","v":""},{"$f":"Lighting!AC509","v":""},{"$f":"Lighting!AF509","v":""},{"$f":"Lighting!AG509","v":0},{"$f":"Lighting!AH509","v":0},{"$f":"Lighting!AI509","v":0}]
[0,{"$f":"Lighting!B510","v":502},{"$f":"Lighting!C510","v":0},{"$f":"Lighting!D510","v":0},{"$f":"Lighting!F510","v":0},{"$f":"Lighting!G510","v":0},{"$f":"Lighting!H510","v":0},{"$f":"Lighting!I510","v":0},{"$f":"Lighting!J510","v":0},{"$f":"Lighting!K510","v":0},{"$f":"Lighting!L510","v":0},{"$f":"Lighting!N510","v":0},{"$f":"Lighting!O510","v":0},{"$f":"Lighting!R510","v":0},{"$f":"Lighting!S510","v":0},{"$f":"Lighting!U510","v":""},{"$f":"Lighting!V510","v":""},{"$f":"Lighting!W510","v":""},{"$f":"Lighting!X510","v":0},{"$f":"Lighting!Y510","v":""},{"$f":"Lighting!AA510","v":""},{"$f":"Lighting!AC510","v":""},{"$f":"Lighting!AF510","v":""},{"$f":"Lighting!AG510","v":0},{"$f":"Lighting!AH510","v":0},{"$f":"Lighting!AI510","v":0}]
[0,{"$f":"Lighting!B511","v":503},{"$f":"Lighting!C511","v":0},{"$f":"Lighting!D511","v":0},{"$f":"Lighting!F511","v":0},{"$f":"Lighting!G511","v":0},{"$f":"Lighting!H511","v":0},{"$f":"Lighting!I511","v":0},{"$f":"Lighting!J511","v":0},{"$f":"Lighting!K511","v":0},{"$f":"Lighting!L511","v":0},{"$f":"Lighting!N511","v":0},{"$f":"Lighting!O511","v":0},{"$f":"Lighting!R511","v":0},{"$f":"Lighting!S511","v":0},{"$f":"Lighting!U511","v":""},{"$f":"Lighting!V511","v":""},{"$f":"Lighting!W511","v":""},{"$f":"Lighting!X511","v":0},{"$f":"Lighting!Y511","v":""},{"$f":"Lighting!AA511","v":""},{"$f":"Lighting!AC511","v":""},{"$f":"Lighting!AF511","v":""},{"$f":"Lighting!AG511","v":0},{"$f":"Lighting!AH511","v":0},{"$f":"Lighting!AI511","v":0}]
[0,{"$f":"Lighting!B512","v":504},{"$f":"Lighting!C512","v":0},{"$f":"Lighting!D512","v":0},{"$f":"Lighting!F512","v":0},{"$f":"Lighting!G512","v":0},{"$f":"Lighting!H512","v":0},{"$f":"Lighting!I512","v":0},{"$f":"Lighting!J512","v":0},{"$f":"Lighting!K512","v":0},{"$f":"Lighting!L512","v":0},{"$f":"Lighting!N512","v":0},{"$f":"Lighting!O512","v":0},{"$f":"Lighting!R512","v":0},{"$f":"Lighting!S512","v":0},{"$f":"Lighting!U512","v":""},{"$f":"Lighting!V512","v":""},{"$f":"Lighting!W512","v":""},{"$f":"Lighting!X512","v":0},{"$f":"Lighting!Y512","v":""},{"$f":"Lighting!AA512","v":""},{"$f":"Lighting!AC512","v":""},{"$f":"Lighting!AF512","v":""},{"$f":"Lighting!AG512","v":0},{"$f":"Lighting!AH512","v":0},{"$f":"Lighting!AI512","v":0}]
[0,{"$f":"Lighting!B513","v":505},{"$f":"Lighting!C513","v":0},{"$f":"Lighting!D513","v":0},{"$f":"Lighting!F513","v":0},{"$f":"Lighting!G513","v":0},{"$f":"Lighting!H513","v":0},{"$f":"Lighting!I513","v":0},{"$f":"Lighting!J513","v":0},{"$f":"Lighting!K513","v":0},{"$f":"Lighting!L513","v":0},{"$f":"Lighting!N513","v":0},{"$f":"Lighting!O513","v":0},{"$f":"Lighting!R513","v":0},{"$f":"Lighting!S513","v":0},{"$f":"Lighting!U513","v":""},{"$f":"Lighting!V513","v":""},{"$f":"Lighting!W513","v":""},{"$f":"Lighting!X513","v":0},{"$f":"Lighting!Y513","v":""},{"$f":"Lighting!AA513","v":""},{"$f":"Lighting!AC513","v":""},{"$f":"Lighting!AF513","v":""},{"$f":"Lighting!AG513","v":0},{"$f":"Lighting!AH513","v":0},{"$f":"Lighting!AI513","v":0}]
[0,{"$f":"Lighting!B514","v":506},{"$f":"Lighting!C514","v":0},{"$f":"Lighting!D514","v":0},{"$f":"Lighting!F514","v":0},{"$f":"Lighting!G514","v":0},{"$f":"Lighting!H514","v":0},{"$f":"Lighting!I514","v":0},{"$f":"Lighting!J514","v":0},{"$f":"Lighting!K514","v":0},{"$f":"Lighting!L514","v":0},{"$f":"Lighting!N514","v":0},{"$f":"Lighting!O514","v":0},{"$f":"Lighting!R514","v":0},{"$f":"Lighting!S514","v":0},{"$f":"Lighting!U514","v":""},{"$f":"Lighting!V514","v":""},{"$f":"Lighting!W514","v":""},{"$f":"Lighting!X514","v":0},{"$f":"Lighting!Y514","v":""},{"$f":"Lighting!AA514","v":""},{"$f":"Lighting!AC514","v":""},{"$f":"Lighting!AF514","v":""},{"$f":"Lighting!AG514","v":0},{"$f":"Lighting!AH514","v":0},{"$f":"Lighting!AI514","v":0}]
[0,{"$f":"Lighting!B515","v":507},{"$f":"Lighting!C515","v":0},{"$f":"Lighting!D515","v":0},{"$f":"Lighting!F515","v":0},{"$f":"Lighting!G515","v":0},{"$f":"Lighting!H515","v":0},{"$f":"Lighting!I515","v":0},{"$f":"Lighting!J515","v":0},{"$f":"Lighting!K515","v":0},{"$f":"Lighting!L515","v":0},{"$f":"Lighting!N515","v":0},{"$f":"Lighting!O515","v":0},{"$f":"Lighting!R515","v":0},{"$f":"Lighting!S515","v":0},{"$f":"Lighting!U515","v":""},{"$f":"Lighting!V515","v":""},{"$f":"Lighting!W515","v":""},{"$f":"Lighting!X515","v":0},{"$f":"Lighting!Y515","v":""},{"$f":"Lighting!AA515","v":""},{"$f":"Lighting!AC515","v":""},{"$f":"Lighting!AF515","v":""},{"$f":"Lighting!AG515","v":0},{"$f":"Lighting!AH515","v":0},{"$f":"Lighting!AI515","v":0}]
[0,{"$f":"Lighting!B516","v":508},{"$f":"Lighting!C516","v":0},{"$f":"Lighting!D516","v":0},{"$f":"Lighting!F516","v":0},{"$f":"Lighting!G516","v":0},{"$f":"Lighting!H516","v":0},{"$f":"Lighting!I516","v":0},{"$f":"Lighting!J516","v":0},{"$f":"Lighting!K516","v":0},{"$f":"Lighting!L516","v":0},{"$f":"Lighting!N516","v":0},{"$f":"Lighting!O516","v":0},{"$f":"Lighting!R516","v":0},{"$f":"Lighting!S516","v":0},{"$f":"Lighting!U516","v":""},{"$f":"Lighting!V516","v":""},{"$f":"Lighting!W516","v":""},{"$f":"Lighting!X516","v":0},{"$f":"Lighting!Y516","v":""},{"$f":"Lighting!AA516","v":""},{"$f":"Lighting!AC516","v":""},{"$f":"Lighting!AF516","v":""},{"$f":"Lighting!AG516","v":0},{"$f":"Lighting!AH516","v":0},{"$f":"Lighting!AI516","v":0}]
[0,{"$f":"Lighting!B517","v":509},{"$f":"Lighting!C517","v":0},{"$f":"Lighting!D517","v":0},{"$f":"Lighting!F517","v":0},{"$f":"Lighting!G517","v":0},{"$f":"Lighting!H517","v":0},{"$f":"Lighting!I517","v":0},{"$f":"Lighting!J517","v":0},{"$f":"Lighting!K517","v":0},{"$f":"Lighting!L517","v":0},{"$f":"Lighting!N517","v":0},{"$f":"Lighting!O517","v":0},{"$f":"Lighting!R517","v":0},{"$f":"Lighting!S517","v":0},{"$f":"Lighting!U517","v":""},{"$f":"Lighting!V517","v":""},{"$f":"Lighting!W517","v":""},{"$f":"Lighting!X517","v":0},{"$f":"Lighting!Y517","v":""},{"$f":"Lighting!AA517","v":""},{"$f":"Lighting!AC517","v":""},{"$f":"Lighting!AF517","v":""},{"$f":"Lighting!AG517","v":0},{"$f":"Lighting!AH517","v":0},{"$f":"Lighting!AI517","v":0}]
[0,{"$f":"Lighting!B518","v":510},{"$f":"Lighting!C518","v":0},{"$f":"Lighting!D518","v":0},{"$f":"Lighting!F518","v":0},{"$f":"Lighting!G518","v":0},{"$f":"Lighting!H518","v":0},{"$f":"Lighting!I518","v":0},{"$f":"Lighting!J518","v":0},{"$f":"Lighting!K518","v":0},{"$f":"Lighting!L518","v":0},{"$f":"Lighting!N518","v":0},{"$f":"Lighting!O518","v":0},{"$f":"Lighting!R518","v":0},{"$f":"Lighting!S518","v":0},{"$f":"Lighting!U518","v":""},{"$f":"Lighting!V518","v":""},{"$f":"Lighting!W518","v":""},{"$f":"Lighting!X518","v":0},{"$f":"Lighting!Y518","v":""},{"$f":"Lighting!AA518","v":""},{"$f":"Lighting!AC518","v":""},{"$f":"Lighting!AF518","v":""},{"$f":"Lighting!AG518","v":0},{"$f":"Lighting!AH518","v":0},{"$f":"Lighting!AI518","v":0}]
[0,{"$f":"Lighting!B519","v":511},{"$f":"Lighting!C519","v":0},{"$f":"Lighting!D519","v":0},{"$f":"Lighting!F519","v":0},{"$f":"Lighting!G519","v":0},{"$f":"Lighting!H519","v":0},{"$f":"Lighting!I519","v":0},{"$f":"Lighting!J519","v":0},{"$f":"Lighting!K519","v":0},{"$f":"Lighting!L519","v":0},{"$f":"Lighting!N519","v":0},{"$f":"Lighting!O519","v":0},{"$f":"Lighting!R519","v":0},{"$f":"Lighting!S519","v":0},{"$f":"Lighting!U519","v":""},{"$f":"Lighting!V519","v":""},{"$f":"Lighting!W519","v":""},{"$f":"Lighting!X519","v":0},{"$f":"Lighting!Y519","v":""},{"$f":"Lighting!AA519","v":""},{"$f":"Lighting!AC519","v":""},{"$f":"Lighting!AF519","v":""},{"$f":"Lighting!AG519","v":0},{"$f":"Lighting!AH519","v":0},{"$f":"Lighting!AI519","v":0}]
[0,{"$f":"Lighting!B520","v":512},{"$f":"Lighting!C520","v":0},{"$f":"Lighting!D520","v":0},{"$f":"Lighting!F520","v":0},{"$f":"Lighting!G520","v":0},{"$f":"Lighting!H520","v":0},{"$f":"Lighting!I520","v":0},{"$f":"Lighting!J520","v":0},{"$f":"Lighting!K520","v":0},{"$f":"Lighting!L520","v":0},{"$f":"Lighting!N520","v":0},{"$f":"Lighting!O520","v":0},{"$f":"Lighting!R520","v":0},{"$f":"Lighting!S520","v":0},{"$f":"Lighting!U520","v":""},{"$f":"Lighting!V520","v":""},{"$f":"Lighting!W520","v":""},{"$f":"Lighting!X520","v":0},{"$f":"Lighting!Y520","v":""},{"$f":"Lighting!AA520","v":""},{"$f":"Lighting!AC520","v":""},{"$f":"Lighting!AF520","v":""},{"$f":"Lighting!AG520","v":0},{"$f":"Lighting!AH520","v":0},{"$f":"Lighting!AI520","v":0}]
[0,{"$f":"Lighting!B521","v":513},{"$f":"Lighting!C521","v":0},{"$f":"Lighting!D521","v":0},{"$f":"Lighting!F521","v":0},{"$f":"Lighting!G521","v":0},{"$f":"Lighting!H521","v":0},{"$f":"Lighting!I521","v":0},{"$f":"Lighting!J521","v":0},{"$f":"Lighting!K521","v":0},{"$f":"Lighting!L521","v":0},{"$f":"Lighting!N521","v":0},{"$f":"Lighting!O521","v":0},{"$f":"Lighting!R521","v":0},{"$f":"Lighting!S521","v":0},{"$f":"Lighting!U521","v":""},{"$f":"Lighting!V521","v":""},{"$f":"Lighting!W521","v":""},{"$f":"Lighting!X521","v":0},{"$f":"Lighting!Y521","v":""},{"$f":"Lighting!AA521","v":""},{"$f":"Lighting!AC521","v":""},{"$f":"Lighting!AF521","v":""},{"$f":"Lighting!AG521","v":0},{"$f":"Lighting!AH521","v":0},{"$f":"Lighting!AI521","v":0}]
[0,{"$f":"Lighting!B522","v":514},{"$f":"Lighting!C522","v":0},{"$f":"Lighting!D522","v":0},{"$f":"Lighting!F522","v":0},{"$f":"Lighting!G522","v":0},{"$f":"Lighting!H522","v":0},{"$f":"Lighting!I522","v":0},{"$f":"Lighting!J522","v":0},{"$f":"Lighting!K522","v":0},{"$f":"Lighting!L522","v":0},{"$f":"Lighting!N522","v":0},{"$f":"Lighting!O522","v":0},{"$f":"Lighting!R522","v":0},{"$f":"Lighting!S522","v":0},{"$f":"Lighting!U522","v":""},{"$f":"Lighting!V522","v":""},{"$f":"Lighting!W522","v":""},{"$f":"Lighting!X522","v":0},{"$f":"Lighting!Y522","v":""},{"$f":"Lighting!AA522","v":""},{"$f":"Lighting!AC522","v":""},{"$f":"Lighting!AF522","v":""},{"$f":"Lighting!AG522","v":0},{"$f":"Lighting!AH522","v":0},{"$f":"Lighting!AI522","v":0}]
[0,{"$f":"Lighting!B523","v":515},{"$f":"Lighting!C523","v":0},{"$f":"Lighting!D523","v":0},{"$f":"Lighting!F523","v":0},{"$f":"Lighting!G523","v":0},{"$f":"Lighting!H523","v":0},{"$f":"Lighting!I523","v":0},{"$f":"Lighting!J523","v":0},{"$f":"Lighting!K523","v":0},{"$f":"Lighting!L523","v":0},{"$f":"Lighting!N523","v":0},{"$f":"Lighting!O523","v":0},{"$f":"Lighting!R523","v":0},{"$f":"Lighting!S523","v":0},{"$f":"Lighting!U523","v":""},{"$f":"Lighting!V523","v":""},{"$f":"Lighting!W523","v":""},{"$f":"Lighting!X523","v":0},{"$f":"Lighting!Y523","v":""},{"$f":"Lighting!AA523","v":""},{"$f":"Lighting!AC523","v":""},{"$f":"Lighting!AF523","v":""},{"$f":"Lighting!AG523","v":0},{"$f":"Lighting!AH523","v":0},{"$f":"Lighting!AI523","v":0}]
[0,{"$f":"Lighting!B524","v":516},{"$f":"Lighting!C524","v":0},{"$f":"Lighting!D524","v":0},{"$f":"Lighting!F524","v":0},{"$f":"Lighting!G524","v":0},{"$f":"Lighting!H524","v":0},{"$f":"Lighting!I524","v":0},{"$f":"Lighting!J524","v":0},{"$f":"Lighting!K524","v":0},{"$f":"Lighting!L524","v":0},{"$f":"Lighting!N524","v":0},{"$f":"Lighting!O524","v":0},{"$f":"Lighting!R524","v":0},{"$f":"Lighting!S524","v":0},{"$f":"Lighting!U524","v":""},{"$f":"Lighting!V524","v":""},{"$f":"Lighting!W524","v":""},{"$f":"Lighting!X524","v":0},{"$f":"Lighting!Y524","v":""},{"$f":"Lighting!AA524","v":""},{"$f":"Lighting!AC524","v":""},{"$f":"Lighting!AF524","v":""},{"$f":"Lighting!AG524","v":0},{"$f":"Lighting!AH524","v":0},{"$f":"Lighting!AI524","v":0}]
[0,{"$f":"Lighting!B525","v":517},{"$f":"Lighting!C525","v":0},{"$f":"Lighting!D525","v":0},{"$f":"Lighting!F525","v":0},{"$f":"Lighting!G525","v":0},{"$f":"Lighting!H525","v":0},{"$f":"Lighting!I525","v":0},{"$f":"Lighting!J525","v":0},{"$f":"Lighting!K525","v":0},{"$f":"Lighting!L525","v":0},{"$f":"Lighting!N525","v":0},{"$f":"Lighting!O525","v":0},{"$f":"Lighting!R525","v":0},{"$f":"Lighting!S525","v":0},{"$f":"Lighting!U525","v":""},{"$f":"Lighting!V525","v":""},{"$f":"Lighting!W525","v":""},{"$f":"Lighting!X525","v":0},{"$f":"Lighting!Y525","v":""},{"$f":"Lighting!AA525","v":""},{"$f":"Lighting!AC525","v":""},{"$f":"Lighting!AF525","v":""},{"$f":"Lighting!AG525","v":0},{"$f":"Lighting!AH525","v":0},{"$f":"Lighting!AI525","v":0}]
[0,{"$f":"Lighting!B526","v":518},{"$f":"Lighting!C526","v":0},{"$f":"Lighting!D526","v":0},{"$f":"Lighting!F526","v":0},{"$f":"Lighting!G526","v":0},{"$f":"Lighting!H526","v":0},{"$f":"Lighting!I526","v":0},{"$f":"Lighting!J526","v":0},{"$f":"Lighting!K526","v":0},{"$f":"Lighting!L526","v":0},{"$f":"Lighting!N526","v":0},{"$f":"Lighting!O526","v":0},{"$f":"Lighting!R526","v":0},{"$f":"Lighting!S526","v":0},{"$f":"Lighting!U526","v":""},{"$f":"Lighting!V526","v":""},{"$f":"Lighting!W526","v":""},{"$f":"Lighting!X526","v":0},{"$f":"Lighting!Y526","v":""},{"$f":"Lighting!AA526","v":""},{"$f":"Lighting!AC526","v":""},{"$f":"Lighting!AF526","v":""},{"$f":"Lighting!AG526","v":0},{"$f":"Lighting!AH526","v":0},{"$f":"Lighting!AI526","v":0}]
[0,{"$f":"Lighting!B527","v":519},{"$f":"Lighting!C527","v":0},{"$f":"Lighting!D527","v":0},{"$f":"Lighting!F527","v":0},{"$f":"Lighting!G527","v":0},{"$f":"Lighting!H527","v":0},{"$f":"Lighting!I527","v":0},{"$f":"Lighting!J527","v":0},{"$f":"Lighting!K527","v":0},{"$f":"Lighting!L527","v":0},{"$f":"Lighting!N527","v":0},{"$f":"Lighting!O527","v":0},{"$f":"Lighting!R527","v":0},{"$f":"Lighting!S527","v":0},{"$f":"Lighting!U527","v":""},{"$f":"Lighting!V527","v":""},{"$f":"Lighting!W527","v":""},{"$f":"Lighting!X527","v":0},{"$f":"Lighting!Y527","v":""},{"$f":"Lighting!AA527","v":""},{"$f":"Lighting!AC527","v":""},{"$f":"Lighting!AF527","v":""},{"$f":"Lighting!AG527","v":0},{"$f":"Lighting!AH527","v":0},{"$f":"Lighting!AI527","v":0}]
[{"$f":"IF(G684=0,0,1)","v":0},{"$f":"Lighting!B528","v":520},{"$f":"Lighting!C528","v":0},{"$f":"Lighting!D528","v":0},{"$f":"Lighting!F528","v":0},{"$f":"Lighting!G528","v":0},{"$f":"Lighting!H528","v":0},{"$f":"Lighting!I528","v":0},{"$f":"Lighting!J528","v":0},{"$f":"Lighting!K528","v":0},{"$f":"Lighting!L528","v":0},{"$f":"Lighting!N528","v":0},{"$f":"Lighting!O528","v":0},{"$f":"Lighting!R528","v":0},{"$f":"Lighting!S528","v":0},{"$f":"Lighting!U528","v":""},{"$f":"Lighting!V528","v":""},{"$f":"Lighting!W528","v":""},{"$f":"Lighting!X528","v":0},{"$f":"Lighting!Y528","v":""},{"$f":"Lighting!AA528","v":""},{"$f":"Lighting!AC528","v":""},{"$f":"Lighting!AF528","v":""},{"$f":"Lighting!AG528","v":0},{"$f":"Lighting!AH528","v":0},{"$f":"Lighting!AI528","v":0}]
[0,{"$f":"Lighting!B529","v":521},{"$f":"Lighting!C529","v":0},{"$f":"Lighting!D529","v":0},{"$f":"Lighting!F529","v":0},{"$f":"Lighting!G529","v":0},{"$f":"Lighting!H529","v":0},{"$f":"Lighting!I529","v":0},{"$f":"Lighting!J529","v":0},{"$f":"Lighting!K529","v":0},{"$f":"Lighting!L529","v":0},{"$f":"Lighting!N529","v":0},{"$f":"Lighting!O529","v":0},{"$f":"Lighting!R529","v":0},{"$f":"Lighting!S529","v":0},{"$f":"Lighting!U529","v":""},{"$f":"Lighting!V529","v":""},{"$f":"Lighting!W529","v":""},{"$f":"Lighting!X529","v":0},{"$f":"Lighting!Y529","v":""},{"$f":"Lighting!AA529","v":""},{"$f":"Lighting!AC529","v":""},{"$f":"Lighting!AF529","v":""},{"$f":"Lighting!AG529","v":0},{"$f":"Lighting!AH529","v":0},{"$f":"Lighting!AI529","v":0}]
[0,{"$f":"Lighting!B530","v":522},{"$f":"Lighting!C530","v":0},{"$f":"Lighting!D530","v":0},{"$f":"Lighting!F530","v":0},{"$f":"Lighting!G530","v":0},{"$f":"Lighting!H530","v":0},{"$f":"Lighting!I530","v":0},{"$f":"Lighting!J530","v":0},{"$f":"Lighting!K530","v":0},{"$f":"Lighting!L530","v":0},{"$f":"Lighting!N530","v":0},{"$f":"Lighting!O530","v":0},{"$f":"Lighting!R530","v":0},{"$f":"Lighting!S530","v":0},{"$f":"Lighting!U530","v":""},{"$f":"Lighting!V530","v":""},{"$f":"Lighting!W530","v":""},{"$f":"Lighting!X530","v":0},{"$f":"Lighting!Y530","v":""},{"$f":"Lighting!AA530","v":""},{"$f":"Lighting!AC530","v":""},{"$f":"Lighting!AF530","v":""},{"$f":"Lighting!AG530","v":0},{"$f":"Lighting!AH530","v":0},{"$f":"Lighting!AI530","v":0}]
[0,{"$f":"Lighting!B531","v":523},{"$f":"Lighting!C531","v":0},{"$f":"Lighting!D531","v":0},{"$f":"Lighting!F531","v":0},{"$f":"Lighting!G531","v":0},{"$f":"Lighting!H531","v":0},{"$f":"Lighting!I531","v":0},{"$f":"Lighting!J531","v":0},{"$f":"Lighting!K531","v":0},{"$f":"Lighting!L531","v":0},{"$f":"Lighting!N531","v":0},{"$f":"Lighting!O531","v":0},{"$f":"Lighting!R531","v":0},{"$f":"Lighting!S531","v":0},{"$f":"Lighting!U531","v":""},{"$f":"Lighting!V531","v":""},{"$f":"Lighting!W531","v":""},{"$f":"Lighting!X531","v":0},{"$f":"Lighting!Y531","v":""},{"$f":"Lighting!AA531","v":""},{"$f":"Lighting!AC531","v":""},{"$f":"Lighting!AF531","v":""},{"$f":"Lighting!AG531","v":0},{"$f":"Lighting!AH531","v":0},{"$f":"Lighting!AI531","v":0}]
[0,{"$f":"Lighting!B532","v":524},{"$f":"Lighting!C532","v":0},{"$f":"Lighting!D532","v":0},{"$f":"Lighting!F532","v":0},{"$f":"Lighting!G532","v":0},{"$f":"Lighting!H532","v":0},{"$f":"Lighting!I532","v":0},{"$f":"Lighting!J532","v":0},{"$f":"Lighting!K532","v":0},{"$f":"Lighting!L532","v":0},{"$f":"Lighting!N532","v":0},{"$f":"Lighting!O532","v":0},{"$f":"Lighting!R532","v":0},{"$f":"Lighting!S532","v":0},{"$f":"Lighting!U532","v":""},{"$f":"Lighting!V532","v":""},{"$f":"Lighting!W532","v":""},{"$f":"Lighting!X532","v":0},{"$f":"Lighting!Y532","v":""},{"$f":"Lighting!AA532","v":""},{"$f":"Lighting!AC532","v":""},{"$f":"Lighting!AF532","v":""},{"$f":"Lighting!AG532","v":0},{"$f":"Lighting!AH532","v":0},{"$f":"Lighting!AI532","v":0}]
[0,{"$f":"Lighting!B533","v":525},{"$f":"Lighting!C533","v":0},{"$f":"Lighting!D533","v":0},{"$f":"Lighting!F533","v":0},{"$f":"Lighting!G533","v":0},{"$f":"Lighting!H533","v":0},{"$f":"Lighting!I533","v":0},{"$f":"Lighting!J533","v":0},{"$f":"Lighting!K533","v":0},{"$f":"Lighting!L533","v":0},{"$f":"Lighting!N533","v":0},{"$f":"Lighting!O533","v":0},{"$f":"Lighting!R533","v":0},{"$f":"Lighting!S533","v":0},{"$f":"Lighting!U533","v":""},{"$f":"Lighting!V533","v":""},{"$f":"Lighting!W533","v":""},{"$f":"Lighting!X533","v":0},{"$f":"Lighting!Y533","v":""},{"$f":"Lighting!AA533","v":""},{"$f":"Lighting!AC533","v":""},{"$f":"Lighting!AF533","v":""},{"$f":"Lighting!AG533","v":0},{"$f":"Lighting!AH533","v":0},{"$f":"Lighting!AI533","v":0}]
[0,{"$f":"Lighting!B534","v":526},{"$f":"Lighting!C534","v":0},{"$f":"Lighting!D534","v":0},{"$f":"Lighting!F534","v":0},{"$f":"Lighting!G534","v":0},{"$f":"Lighting!H534","v":0},{"$f":"Lighting!I534","v":0},{"$f":"Lighting!J534","v":0},{"$f":"Lighting!K534","v":0},{"$f":"Lighting!L534","v":0},{"$f":"Lighting!N534","v":0},{"$f":"Lighting!O534","v":0},{"$f":"Lighting!R534","v":0},{"$f":"Lighting!S534","v":0},{"$f":"Lighting!U534","v":""},{"$f":"Lighting!V534","v":""},{"$f":"Lighting!W534","v":""},{"$f":"Lighting!X534","v":0},{"$f":"Lighting!Y534","v":""},{"$f":"Lighting!AA534","v":""},{"$f":"Lighting!AC534","v":""},{"$f":"Lighting!AF534","v":""},{"$f":"Lighting!AG534","v":0},{"$f":"Lighting!AH534","v":0},{"$f":"Lighting!AI534","v":0}]
[0,{"$f":"Lighting!B535","v":527},{"$f":"Lighting!C535","v":0},{"$f":"Lighting!D535","v":0},{"$f":"Lighting!F535","v":0},{"$f":"Lighting!G535","v":0},{"$f":"Lighting!H535","v":0},{"$f":"Lighting!I535","v":0},{"$f":"Lighting!J535","v":0},{"$f":"Lighting!K535","v":0},{"$f":"Lighting!L535","v":0},{"$f":"Lighting!N535","v":0},{"$f":"Lighting!O535","v":0},{"$f":"Lighting!R535","v":0},{"$f":"Lighting!S535","v":0},{"$f":"Lighting!U535","v":""},{"$f":"Lighting!V535","v":""},{"$f":"Lighting!W535","v":""},{"$f":"Lighting!X535","v":0},{"$f":"Lighting!Y535","v":""},{"$f":"Lighting!AA535","v":""},{"$f":"Lighting!AC535","v":""},{"$f":"Lighting!AF535","v":""},{"$f":"Lighting!AG535","v":0},{"$f":"Lighting!AH535","v":0},{"$f":"Lighting!AI535","v":0}]
[0,{"$f":"Lighting!B536","v":528},{"$f":"Lighting!C536","v":0},{"$f":"Lighting!D536","v":0},{"$f":"Lighting!F536","v":0},{"$f":"Lighting!G536","v":0},{"$f":"Lighting!H536","v":0},{"$f":"Lighting!I536","v":0},{"$f":"Lighting!J536","v":0},{"$f":"Lighting!K536","v":0},{"$f":"Lighting!L536","v":0},{"$f":"Lighting!N536","v":0},{"$f":"Lighting!O536","v":0},{"$f":"Lighting!R536","v":0},{"$f":"Lighting!S536","v":0},{"$f":"Lighting!U536","v":""},{"$f":"Lighting!V536","v":""},{"$f":"Lighting!W536","v":""},{"$f":"Lighting!X536","v":0},{"$f":"Lighting!Y536","v":""},{"$f":"Lighting!AA536","v":""},{"$f":"Lighting!AC536","v":""},{"$f":"Lighting!AF536","v":""},{"$f":"Lighting!AG536","v":0},{"$f":"Lighting!AH536","v":0},{"$f":"Lighting!AI536","v":0}]
[0,{"$f":"Lighting!B537","v":529},{"$f":"Lighting!C537","v":0},{"$f":"Lighting!D537","v":0},{"$f":"Lighting!F537","v":0},{"$f":"Lighting!G537","v":0},{"$f":"Lighting!H537","v":0},{"$f":"Lighting!I537","v":0},{"$f":"Lighting!J537","v":0},{"$f":"Lighting!K537","v":0},{"$f":"Lighting!L537","v":0},{"$f":"Lighting!N537","v":0},{"$f":"Lighting!O537","v":0},{"$f":"Lighting!R537","v":0},{"$f":"Lighting!S537","v":0},{"$f":"Lighting!U537","v":""},{"$f":"Lighting!V537","v":""},{"$f":"Lighting!W537","v":""},{"$f":"Lighting!X537","v":0},{"$f":"Lighting!Y537","v":""},{"$f":"Lighting!AA537","v":""},{"$f":"Lighting!AC537","v":""},{"$f":"Lighting!AF537","v":""},{"$f":"Lighting!AG537","v":0},{"$f":"Lighting!AH537","v":0},{"$f":"Lighting!AI537","v":0}]
[0,{"$f":"Lighting!B538","v":530},{"$f":"Lighting!C538","v":0},{"$f":"Lighting!D538","v":0},{"$f":"Lighting!F538","v":0},{"$f":"Lighting!G538","v":0},{"$f":"Lighting!H538","v":0},{"$f":"Lighting!I538","v":0},{"$f":"Lighting!J538","v":0},{"$f":"Lighting!K538","v":0},{"$f":"Lighting!L538","v":0},{"$f":"Lighting!N538","v":0},{"$f":"Lighting!O538","v":0},{"$f":"Lighting!R538","v":0},{"$f":"Lighting!S538","v":0},{"$f":"Lighting!U538","v":""},{"$f":"Lighting!V538","v":""},{"$f":"Lighting!W538","v":""},{"$f":"Lighting!X538","v":0},{"$f":"Lighting!Y538","v":""},{"$f":"Lighting!AA538","v":""},{"$f":"Lighting!AC538","v":""},{"$f":"Lighting!AF538","v":""},{"$f":"Lighting!AG538","v":0},{"$f":"Lighting!AH538","v":0},{"$f":"Lighting!AI538","v":0}]
[0,{"$f":"Lighting!B539","v":531},{"$f":"Lighting!C539","v":0},{"$f":"Lighting!D539","v":0},{"$f":"Lighting!F539","v":0},{"$f":"Lighting!G539","v":0},{"$f":"Lighting!H539","v":0},{"$f":"Lighting!I539","v":0},{"$f":"Lighting!J539","v":0},{"$f":"Lighting!K539","v":0},{"$f":"Lighting!L539","v":0},{"$f":"Lighting!N539","v":0},{"$f":"Lighting!O539","v":0},{"$f":"Lighting!R539","v":0},{"$f":"Lighting!S539","v":0},{"$f":"Lighting!U539","v":""},{"$f":"Lighting!V539","v":""},{"$f":"Lighting!W539","v":""},{"$f":"Lighting!X539","v":0},{"$f":"Lighting!Y539","v":""},{"$f":"Lighting!AA539","v":""},{"$f":"Lighting!AC539","v":""},{"$f":"Lighting!AF539","v":""},{"$f":"Lighting!AG539","v":0},{"$f":"Lighting!AH539","v":0},{"$f":"Lighting!AI539","v":0}]
[0,{"$f":"Lighting!B540","v":532},{"$f":"Lighting!C540","v":0},{"$f":"Lighting!D540","v":0},{"$f":"Lighting!F540","v":0},{"$f":"Lighting!G540","v":0},{"$f":"Lighting!H540","v":0},{"$f":"Lighting!I540","v":0},{"$f":"Lighting!J540","v":0},{"$f":"Lighting!K540","v":0},{"$f":"Lighting!L540","v":0},{"$f":"Lighting!N540","v":0},{"$f":"Lighting!O540","v":0},{"$f":"Lighting!R540","v":0},{"$f":"Lighting!S540","v":0},{"$f":"Lighting!U540","v":""},{"$f":"Lighting!V540","v":""},{"$f":"Lighting!W540","v":""},{"$f":"Lighting!X540","v":0},{"$f":"Lighting!Y540","v":""},{"$f":"Lighting!AA540","v":""},{"$f":"Lighting!AC540","v":""},{"$f":"Lighting!AF540","v":""},{"$f":"Lighting!AG540","v":0},{"$f":"Lighting!AH540","v":0},{"$f":"Lighting!AI540","v":0}]
[0,{"$f":"Lighting!B541","v":533},{"$f":"Lighting!C541","v":0},{"$f":"Lighting!D541","v":0},{"$f":"Lighting!F541","v":0},{"$f":"Lighting!G541","v":0},{"$f":"Lighting!H541","v":0},{"$f":"Lighting!I541","v":0},{"$f":"Lighting!J541","v":0},{"$f":"Lighting!K541","v":0},{"$f":"Lighting!L541","v":0},{"$f":"Lighting!N541","v":0},{"$f":"Lighting!O541","v":0},{"$f":"Lighting!R541","v":0},{"$f":"Lighting!S541","v":0},{"$f":"Lighting!U541","v":""},{"$f":"Lighting!V541","v":""},{"$f":"Lighting!W541","v":""},{"$f":"Lighting!X541","v":0},{"$f":"Lighting!Y541","v":""},{"$f":"Lighting!AA541","v":""},{"$f":"Lighting!AC541","v":""},{"$f":"Lighting!AF541","v":""},{"$f":"Lighting!AG541","v":0},{"$f":"Lighting!AH541","v":0},{"$f":"Lighting!AI541","v":0}]
[0,{"$f":"Lighting!B542","v":534},{"$f":"Lighting!C542","v":0},{"$f":"Lighting!D542","v":0},{"$f":"Lighting!F542","v":0},{"$f":"Lighting!G542","v":0},{"$f":"Lighting!H542","v":0},{"$f":"Lighting!I542","v":0},{"$f":"Lighting!J542","v":0},{"$f":"Lighting!K542","v":0},{"$f":"Lighting!L542","v":0},{"$f":"Lighting!N542","v":0},{"$f":"Lighting!O542","v":0},{"$f":"Lighting!R542","v":0},{"$f":"Lighting!S542","v":0},{"$f":"Lighting!U542","v":""},{"$f":"Lighting!V542","v":""},{"$f":"Lighting!W542","v":""},{"$f":"Lighting!X542","v":0},{"$f":"Lighting!Y542","v":""},{"$f":"Lighting!AA542","v":""},{"$f":"Lighting!AC542","v":""},{"$f":"Lighting!AF542","v":""},{"$f":"Lighting!AG542","v":0},{"$f":"Lighting!AH542","v":0},{"$f":"Lighting!AI542","v":0}]
[0,{"$f":"Lighting!B543","v":535},{"$f":"Lighting!C543","v":0},{"$f":"Lighting!D543","v":0},{"$f":"Lighting!F543","v":0},{"$f":"Lighting!G543","v":0},{"$f":"Lighting!H543","v":0},{"$f":"Lighting!I543","v":0},{"$f":"Lighting!J543","v":0},{"$f":"Lighting!K543","v":0},{"$f":"Lighting!L543","v":0},{"$f":"Lighting!N543","v":0},{"$f":"Lighting!O543","v":0},{"$f":"Lighting!R543","v":0},{"$f":"Lighting!S543","v":0},{"$f":"Lighting!U543","v":""},{"$f":"Lighting!V543","v":""},{"$f":"Lighting!W543","v":""},{"$f":"Lighting!X543","v":0},{"$f":"Lighting!Y543","v":""},{"$f":"Lighting!AA543","v":""},{"$f":"Lighting!AC543","v":""},{"$f":"Lighting!AF543","v":""},{"$f":"Lighting!AG543","v":0},{"$f":"Lighting!AH543","v":0},{"$f":"Lighting!AI543","v":0}]
[0,{"$f":"Lighting!B544","v":536},{"$f":"Lighting!C544","v":0},{"$f":"Lighting!D544","v":0},{"$f":"Lighting!F544","v":0},{"$f":"Lighting!G544","v":0},{"$f":"Lighting!H544","v":0},{"$f":"Lighting!I544","v":0},{"$f":"Lighting!J544","v":0},{"$f":"Lighting!K544","v":0},{"$f":"Lighting!L544","v":0},{"$f":"Lighting!N544","v":0},{"$f":"Lighting!O544","v":0},{"$f":"Lighting!R544","v":0},{"$f":"Lighting!S544","v":0},{"$f":"Lighting!U544","v":""},{"$f":"Lighting!V544","v":""},{"$f":"Lighting!W544","v":""},{"$f":"Lighting!X544","v":0},{"$f":"Lighting!Y544","v":""},{"$f":"Lighting!AA544","v":""},{"$f":"Lighting!AC544","v":""},{"$f":"Lighting!AF544","v":""},{"$f":"Lighting!AG544","v":0},{"$f":"Lighting!AH544","v":0},{"$f":"Lighting!AI544","v":0}]
[0,{"$f":"Lighting!B545","v":537},{"$f":"Lighting!C545","v":0},{"$f":"Lighting!D545","v":0},{"$f":"Lighting!F545","v":0},{"$f":"Lighting!G545","v":0},{"$f":"Lighting!H545","v":0},{"$f":"Lighting!I545","v":0},{"$f":"Lighting!J545","v":0},{"$f":"Lighting!K545","v":0},{"$f":"Lighting!L545","v":0},{"$f":"Lighting!N545","v":0},{"$f":"Lighting!O545","v":0},{"$f":"Lighting!R545","v":0},{"$f":"Lighting!S545","v":0},{"$f":"Lighting!U545","v":""},{"$f":"Lighting!V545","v":""},{"$f":"Lighting!W545","v":""},{"$f":"Lighting!X545","v":0},{"$f":"Lighting!Y545","v":""},{"$f":"Lighting!AA545","v":""},{"$f":"Lighting!AC545","v":""},{"$f":"Lighting!AF545","v":""},{"$f":"Lighting!AG545","v":0},{"$f":"Lighting!AH545","v":0},{"$f":"Lighting!AI545","v":0}]
[0,{"$f":"Lighting!B546","v":538},{"$f":"Lighting!C546","v":0},{"$f":"Lighting!D546","v":0},{"$f":"Lighting!F546","v":0},{"$f":"Lighting!G546","v":0},{"$f":"Lighting!H546","v":0},{"$f":"Lighting!I546","v":0},{"$f":"Lighting!J546","v":0},{"$f":"Lighting!K546","v":0},{"$f":"Lighting!L546","v":0},{"$f":"Lighting!N546","v":0},{"$f":"Lighting!O546","v":0},{"$f":"Lighting!R546","v":0},{"$f":"Lighting!S546","v":0},{"$f":"Lighting!U546","v":""},{"$f":"Lighting!V546","v":""},{"$f":"Lighting!W546","v":""},{"$f":"Lighting!X546","v":0},{"$f":"Lighting!Y546","v":""},{"$f":"Lighting!AA546","v":""},{"$f":"Lighting!AC546","v":""},{"$f":"Lighting!AF546","v":""},{"$f":"Lighting!AG546","v":0},{"$f":"Lighting!AH546","v":0},{"$f":"Lighting!AI546","v":0}]
[0,{"$f":"Lighting!B547","v":539},{"$f":"Lighting!C547","v":0},{"$f":"Lighting!D547","v":0},{"$f":"Lighting!F547","v":0},{"$f":"Lighting!G547","v":0},{"$f":"Lighting!H547","v":0},{"$f":"Lighting!I547","v":0},{"$f":"Lighting!J547","v":0},{"$f":"Lighting!K547","v":0},{"$f":"Lighting!L547","v":0},{"$f":"Lighting!N547","v":0},{"$f":"Lighting!O547","v":0},{"$f":"Lighting!R547","v":0},{"$f":"Lighting!S547","v":0},{"$f":"Lighting!U547","v":""},{"$f":"Lighting!V547","v":""},{"$f":"Lighting!W547","v":""},{"$f":"Lighting!X547","v":0},{"$f":"Lighting!Y547","v":""},{"$f":"Lighting!AA547","v":""},{"$f":"Lighting!AC547","v":""},{"$f":"Lighting!AF547","v":""},{"$f":"Lighting!AG547","v":0},{"$f":"Lighting!AH547","v":0},{"$f":"Lighting!AI547","v":0}]
[0,{"$f":"Lighting!B548","v":540},{"$f":"Lighting!C548","v":0},{"$f":"Lighting!D548","v":0},{"$f":"Lighting!F548","v":0},{"$f":"Lighting!G548","v":0},{"$f":"Lighting!H548","v":0},{"$f":"Lighting!I548","v":0},{"$f":"Lighting!J548","v":0},{"$f":"Lighting!K548","v":0},{"$f":"Lighting!L548","v":0},{"$f":"Lighting!N548","v":0},{"$f":"Lighting!O548","v":0},{"$f":"Lighting!R548","v":0},{"$f":"Lighting!S548","v":0},{"$f":"Lighting!U548","v":""},{"$f":"Lighting!V548","v":""},{"$f":"Lighting!W548","v":""},{"$f":"Lighting!X548","v":0},{"$f":"Lighting!Y548","v":""},{"$f":"Lighting!AA548","v":""},{"$f":"Lighting!AC548","v":""},{"$f":"Lighting!AF548","v":""},{"$f":"Lighting!AG548","v":0},{"$f":"Lighting!AH548","v":0},{"$f":"Lighting!AI548","v":0}]
[0,{"$f":"Lighting!B549","v":541},{"$f":"Lighting!C549","v":0},{"$f":"Lighting!D549","v":0},{"$f":"Lighting!F549","v":0},{"$f":"Lighting!G549","v":0},{"$f":"Lighting!H549","v":0},{"$f":"Lighting!I549","v":0},{"$f":"Lighting!J549","v":0},{"$f":"Lighting!K549","v":0},{"$f":"Lighting!L549","v":0},{"$f":"Lighting!N549","v":0},{"$f":"Lighting!O549","v":0},{"$f":"Lighting!R549","v":0},{"$f":"Lighting!S549","v":0},{"$f":"Lighting!U549","v":""},{"$f":"Lighting!V549","v":""},{"$f":"Lighting!W549","v":""},{"$f":"Lighting!X549","v":0},{"$f":"Lighting!Y549","v":""},{"$f":"Lighting!AA549","v":""},{"$f":"Lighting!AC549","v":""},{"$f":"Lighting!AF549","v":""},{"$f":"Lighting!AG549","v":0},{"$f":"Lighting!AH549","v":0},{"$f":"Lighting!AI549","v":0}]
[0,{"$f":"Lighting!B550","v":542},{"$f":"Lighting!C550","v":0},{"$f":"Lighting!D550","v":0},{"$f":"Lighting!F550","v":0},{"$f":"Lighting!G550","v":0},{"$f":"Lighting!H550","v":0},{"$f":"Lighting!I550","v":0},{"$f":"Lighting!J550","v":0},{"$f":"Lighting!K550","v":0},{"$f":"Lighting!L550","v":0},{"$f":"Lighting!N550","v":0},{"$f":"Lighting!O550","v":0},{"$f":"Lighting!R550","v":0},{"$f":"Lighting!S550","v":0},{"$f":"Lighting!U550","v":""},{"$f":"Lighting!V550","v":""},{"$f":"Lighting!W550","v":""},{"$f":"Lighting!X550","v":0},{"$f":"Lighting!Y550","v":""},{"$f":"Lighting!AA550","v":""},{"$f":"Lighting!AC550","v":""},{"$f":"Lighting!AF550","v":""},{"$f":"Lighting!AG550","v":0},{"$f":"Lighting!AH550","v":0},{"$f":"Lighting!AI550","v":0}]
[0,{"$f":"Lighting!B551","v":543},{"$f":"Lighting!C551","v":0},{"$f":"Lighting!D551","v":0},{"$f":"Lighting!F551","v":0},{"$f":"Lighting!G551","v":0},{"$f":"Lighting!H551","v":0},{"$f":"Lighting!I551","v":0},{"$f":"Lighting!J551","v":0},{"$f":"Lighting!K551","v":0},{"$f":"Lighting!L551","v":0},{"$f":"Lighting!N551","v":0},{"$f":"Lighting!O551","v":0},{"$f":"Lighting!R551","v":0},{"$f":"Lighting!S551","v":0},{"$f":"Lighting!U551","v":""},{"$f":"Lighting!V551","v":""},{"$f":"Lighting!W551","v":""},{"$f":"Lighting!X551","v":0},{"$f":"Lighting!Y551","v":""},{"$f":"Lighting!AA551","v":""},{"$f":"Lighting!AC551","v":""},{"$f":"Lighting!AF551","v":""},{"$f":"Lighting!AG551","v":0},{"$f":"Lighting!AH551","v":0},{"$f":"Lighting!AI551","v":0}]
[0,{"$f":"Lighting!B552","v":544},{"$f":"Lighting!C552","v":0},{"$f":"Lighting!D552","v":0},{"$f":"Lighting!F552","v":0},{"$f":"Lighting!G552","v":0},{"$f":"Lighting!H552","v":0},{"$f":"Lighting!I552","v":0},{"$f":"Lighting!J552","v":0},{"$f":"Lighting!K552","v":0},{"$f":"Lighting!L552","v":0},{"$f":"Lighting!N552","v":0},{"$f":"Lighting!O552","v":0},{"$f":"Lighting!R552","v":0},{"$f":"Lighting!S552","v":0},{"$f":"Lighting!U552","v":""},{"$f":"Lighting!V552","v":""},{"$f":"Lighting!W552","v":""},{"$f":"Lighting!X552","v":0},{"$f":"Lighting!Y552","v":""},{"$f":"Lighting!AA552","v":""},{"$f":"Lighting!AC552","v":""},{"$f":"Lighting!AF552","v":""},{"$f":"Lighting!AG552","v":0},{"$f":"Lighting!AH552","v":0},{"$f":"Lighting!AI552","v":0}]
[0,{"$f":"Lighting!B553","v":545},{"$f":"Lighting!C553","v":0},{"$f":"Lighting!D553","v":0},{"$f":"Lighting!F553","v":0},{"$f":"Lighting!G553","v":0},{"$f":"Lighting!H553","v":0},{"$f":"Lighting!I553","v":0},{"$f":"Lighting!J553","v":0},{"$f":"Lighting!K553","v":0},{"$f":"Lighting!L553","v":0},{"$f":"Lighting!N553","v":0},{"$f":"Lighting!O553","v":0},{"$f":"Lighting!R553","v":0},{"$f":"Lighting!S553","v":0},{"$f":"Lighting!U553","v":""},{"$f":"Lighting!V553","v":""},{"$f":"Lighting!W553","v":""},{"$f":"Lighting!X553","v":0},{"$f":"Lighting!Y553","v":""},{"$f":"Lighting!AA553","v":""},{"$f":"Lighting!AC553","v":""},{"$f":"Lighting!AF553","v":""},{"$f":"Lighting!AG553","v":0},{"$f":"Lighting!AH553","v":0},{"$f":"Lighting!AI553","v":0}]
[0,{"$f":"Lighting!B554","v":546},{"$f":"Lighting!C554","v":0},{"$f":"Lighting!D554","v":0},{"$f":"Lighting!F554","v":0},{"$f":"Lighting!G554","v":0},{"$f":"Lighting!H554","v":0},{"$f":"Lighting!I554","v":0},{"$f":"Lighting!J554","v":0},{"$f":"Lighting!K554","v":0},{"$f":"Lighting!L554","v":0},{"$f":"Lighting!N554","v":0},{"$f":"Lighting!O554","v":0},{"$f":"Lighting!R554","v":0},{"$f":"Lighting!S554","v":0},{"$f":"Lighting!U554","v":""},{"$f":"Lighting!V554","v":""},{"$f":"Lighting!W554","v":""},{"$f":"Lighting!X554","v":0},{"$f":"Lighting!Y554","v":""},{"$f":"Lighting!AA554","v":""},{"$f":"Lighting!AC554","v":""},{"$f":"Lighting!AF554","v":""},{"$f":"Lighting!AG554","v":0},{"$f":"Lighting!AH554","v":0},{"$f":"Lighting!AI554","v":0}]
[0,{"$f":"Lighting!B555","v":547},{"$f":"Lighting!C555","v":0},{"$f":"Lighting!D555","v":0},{"$f":"Lighting!F555","v":0},{"$f":"Lighting!G555","v":0},{"$f":"Lighting!H555","v":0},{"$f":"Lighting!I555","v":0},{"$f":"Lighting!J555","v":0},{"$f":"Lighting!K555","v":0},{"$f":"Lighting!L555","v":0},{"$f":"Lighting!N555","v":0},{"$f":"Lighting!O555","v":0},{"$f":"Lighting!R555","v":0},{"$f":"Lighting!S555","v":0},{"$f":"Lighting!U555","v":""},{"$f":"Lighting!V555","v":""},{"$f":"Lighting!W555","v":""},{"$f":"Lighting!X555","v":0},{"$f":"Lighting!Y555","v":""},{"$f":"Lighting!AA555","v":""},{"$f":"Lighting!AC555","v":""},{"$f":"Lighting!AF555","v":""},{"$f":"Lighting!AG555","v":0},{"$f":"Lighting!AH555","v":0},{"$f":"Lighting!AI555","v":0}]
[0,{"$f":"Lighting!B556","v":548},{"$f":"Lighting!C556","v":0},{"$f":"Lighting!D556","v":0},{"$f":"Lighting!F556","v":0},{"$f":"Lighting!G556","v":0},{"$f":"Lighting!H556","v":0},{"$f":"Lighting!I556","v":0},{"$f":"Lighting!J556","v":0},{"$f":"Lighting!K556","v":0},{"$f":"Lighting!L556","v":0},{"$f":"Lighting!N556","v":0},{"$f":"Lighting!O556","v":0},{"$f":"Lighting!R556","v":0},{"$f":"Lighting!S556","v":0},{"$f":"Lighting!U556","v":""},{"$f":"Lighting!V556","v":""},{"$f":"Lighting!W556","v":""},{"$f":"Lighting!X556","v":0},{"$f":"Lighting!Y556","v":""},{"$f":"Lighting!AA556","v":""},{"$f":"Lighting!AC556","v":""},{"$f":"Lighting!AF556","v":""},{"$f":"Lighting!AG556","v":0},{"$f":"Lighting!AH556","v":0},{"$f":"Lighting!AI556","v":0}]
[0,{"$f":"Lighting!B557","v":549},{"$f":"Lighting!C557","v":0},{"$f":"Lighting!D557","v":0},{"$f":"Lighting!F557","v":0},{"$f":"Lighting!G557","v":0},{"$f":"Lighting!H557","v":0},{"$f":"Lighting!I557","v":0},{"$f":"Lighting!J557","v":0},{"$f":"Lighting!K557","v":0},{"$f":"Lighting!L557","v":0},{"$f":"Lighting!N557","v":0},{"$f":"Lighting!O557","v":0},{"$f":"Lighting!R557","v":0},{"$f":"Lighting!S557","v":0},{"$f":"Lighting!U557","v":""},{"$f":"Lighting!V557","v":""},{"$f":"Lighting!W557","v":""},{"$f":"Lighting!X557","v":0},{"$f":"Lighting!Y557","v":""},{"$f":"Lighting!AA557","v":""},{"$f":"Lighting!AC557","v":""},{"$f":"Lighting!AF557","v":""},{"$f":"Lighting!AG557","v":0},{"$f":"Lighting!AH557","v":0},{"$f":"Lighting!AI557","v":0}]
[0,{"$f":"Lighting!B558","v":550},{"$f":"Lighting!C558","v":0},{"$f":"Lighting!D558","v":0},{"$f":"Lighting!F558","v":0},{"$f":"Lighting!G558","v":0},{"$f":"Lighting!H558","v":0},{"$f":"Lighting!I558","v":0},{"$f":"Lighting!J558","v":0},{"$f":"Lighting!K558","v":0},{"$f":"Lighting!L558","v":0},{"$f":"Lighting!N558","v":0},{"$f":"Lighting!O558","v":0},{"$f":"Lighting!R558","v":0},{"$f":"Lighting!S558","v":0},{"$f":"Lighting!U558","v":""},{"$f":"Lighting!V558","v":""},{"$f":"Lighting!W558","v":""},{"$f":"Lighting!X558","v":0},{"$f":"Lighting!Y558","v":""},{"$f":"Lighting!AA558","v":""},{"$f":"Lighting!AC558","v":""},{"$f":"Lighting!AF558","v":""},{"$f":"Lighting!AG558","v":0},{"$f":"Lighting!AH558","v":0},{"$f":"Lighting!AI558","v":0}]
[0,{"$f":"Lighting!B559","v":551},{"$f":"Lighting!C559","v":0},{"$f":"Lighting!D559","v":0},{"$f":"Lighting!F559","v":0},{"$f":"Lighting!G559","v":0},{"$f":"Lighting!H559","v":0},{"$f":"Lighting!I559","v":0},{"$f":"Lighting!J559","v":0},{"$f":"Lighting!K559","v":0},{"$f":"Lighting!L559","v":0},{"$f":"Lighting!N559","v":0},{"$f":"Lighting!O559","v":0},{"$f":"Lighting!R559","v":0},{"$f":"Lighting!S559","v":0},{"$f":"Lighting!U559","v":""},{"$f":"Lighting!V559","v":""},{"$f":"Lighting!W559","v":""},{"$f":"Lighting!X559","v":0},{"$f":"Lighting!Y559","v":""},{"$f":"Lighting!AA559","v":""},{"$f":"Lighting!AC559","v":""},{"$f":"Lighting!AF559","v":""},{"$f":"Lighting!AG559","v":0},{"$f":"Lighting!AH559","v":0},{"$f":"Lighting!AI559","v":0}]
[0,{"$f":"Lighting!B560","v":552},{"$f":"Lighting!C560","v":0},{"$f":"Lighting!D560","v":0},{"$f":"Lighting!F560","v":0},{"$f":"Lighting!G560","v":0},{"$f":"Lighting!H560","v":0},{"$f":"Lighting!I560","v":0},{"$f":"Lighting!J560","v":0},{"$f":"Lighting!K560","v":0},{"$f":"Lighting!L560","v":0},{"$f":"Lighting!N560","v":0},{"$f":"Lighting!O560","v":0},{"$f":"Lighting!R560","v":0},{"$f":"Lighting!S560","v":0},{"$f":"Lighting!U560","v":""},{"$f":"Lighting!V560","v":""},{"$f":"Lighting!W560","v":""},{"$f":"Lighting!X560","v":0},{"$f":"Lighting!Y560","v":""},{"$f":"Lighting!AA560","v":""},{"$f":"Lighting!AC560","v":""},{"$f":"Lighting!AF560","v":""},{"$f":"Lighting!AG560","v":0},{"$f":"Lighting!AH560","v":0},{"$f":"Lighting!AI560","v":0}]
[0,{"$f":"Lighting!B561","v":553},{"$f":"Lighting!C561","v":0},{"$f":"Lighting!D561","v":0},{"$f":"Lighting!F561","v":0},{"$f":"Lighting!G561","v":0},{"$f":"Lighting!H561","v":0},{"$f":"Lighting!I561","v":0},{"$f":"Lighting!J561","v":0},{"$f":"Lighting!K561","v":0},{"$f":"Lighting!L561","v":0},{"$f":"Lighting!N561","v":0},{"$f":"Lighting!O561","v":0},{"$f":"Lighting!R561","v":0},{"$f":"Lighting!S561","v":0},{"$f":"Lighting!U561","v":""},{"$f":"Lighting!V561","v":""},{"$f":"Lighting!W561","v":""},{"$f":"Lighting!X561","v":0},{"$f":"Lighting!Y561","v":""},{"$f":"Lighting!AA561","v":""},{"$f":"Lighting!AC561","v":""},{"$f":"Lighting!AF561","v":""},{"$f":"Lighting!AG561","v":0},{"$f":"Lighting!AH561","v":0},{"$f":"Lighting!AI561","v":0}]
[0,{"$f":"Lighting!B562","v":554},{"$f":"Lighting!C562","v":0},{"$f":"Lighting!D562","v":0},{"$f":"Lighting!F562","v":0},{"$f":"Lighting!G562","v":0},{"$f":"Lighting!H562","v":0},{"$f":"Lighting!I562","v":0},{"$f":"Lighting!J562","v":0},{"$f":"Lighting!K562","v":0},{"$f":"Lighting!L562","v":0},{"$f":"Lighting!N562","v":0},{"$f":"Lighting!O562","v":0},{"$f":"Lighting!R562","v":0},{"$f":"Lighting!S562","v":0},{"$f":"Lighting!U562","v":""},{"$f":"Lighting!V562","v":""},{"$f":"Lighting!W562","v":""},{"$f":"Lighting!X562","v":0},{"$f":"Lighting!Y562","v":""},{"$f":"Lighting!AA562","v":""},{"$f":"Lighting!AC562","v":""},{"$f":"Lighting!AF562","v":""},{"$f":"Lighting!AG562","v":0},{"$f":"Lighting!AH562","v":0},{"$f":"Lighting!AI562","v":0}]
[0,{"$f":"Lighting!B563","v":555},{"$f":"Lighting!C563","v":0},{"$f":"Lighting!D563","v":0},{"$f":"Lighting!F563","v":0},{"$f":"Lighting!G563","v":0},{"$f":"Lighting!H563","v":0},{"$f":"Lighting!I563","v":0},{"$f":"Lighting!J563","v":0},{"$f":"Lighting!K563","v":0},{"$f":"Lighting!L563","v":0},{"$f":"Lighting!N563","v":0},{"$f":"Lighting!O563","v":0},{"$f":"Lighting!R563","v":0},{"$f":"Lighting!S563","v":0},{"$f":"Lighting!U563","v":""},{"$f":"Lighting!V563","v":""},{"$f":"Lighting!W563","v":""},{"$f":"Lighting!X563","v":0},{"$f":"Lighting!Y563","v":""},{"$f":"Lighting!AA563","v":""},{"$f":"Lighting!AC563","v":""},{"$f":"Lighting!AF563","v":""},{"$f":"Lighting!AG563","v":0},{"$f":"Lighting!AH563","v":0},{"$f":"Lighting!AI563","v":0}]
[0,{"$f":"Lighting!B564","v":556},{"$f":"Lighting!C564","v":0},{"$f":"Lighting!D564","v":0},{"$f":"Lighting!F564","v":0},{"$f":"Lighting!G564","v":0},{"$f":"Lighting!H564","v":0},{"$f":"Lighting!I564","v":0},{"$f":"Lighting!J564","v":0},{"$f":"Lighting!K564","v":0},{"$f":"Lighting!L564","v":0},{"$f":"Lighting!N564","v":0},{"$f":"Lighting!O564","v":0},{"$f":"Lighting!R564","v":0},{"$f":"Lighting!S564","v":0},{"$f":"Lighting!U564","v":""},{"$f":"Lighting!V564","v":""},{"$f":"Lighting!W564","v":""},{"$f":"Lighting!X564","v":0},{"$f":"Lighting!Y564","v":""},{"$f":"Lighting!AA564","v":""},{"$f":"Lighting!AC564","v":""},{"$f":"Lighting!AF564","v":""},{"$f":"Lighting!AG564","v":0},{"$f":"Lighting!AH564","v":0},{"$f":"Lighting!AI564","v":0}]
[0,{"$f":"Lighting!B565","v":557},{"$f":"Lighting!C565","v":0},{"$f":"Lighting!D565","v":0},{"$f":"Lighting!F565","v":0},{"$f":"Lighting!G565","v":0},{"$f":"Lighting!H565","v":0},{"$f":"Lighting!I565","v":0},{"$f":"Lighting!J565","v":0},{"$f":"Lighting!K565","v":0},{"$f":"Lighting!L565","v":0},{"$f":"Lighting!N565","v":0},{"$f":"Lighting!O565","v":0},{"$f":"Lighting!R565","v":0},{"$f":"Lighting!S565","v":0},{"$f":"Lighting!U565","v":""},{"$f":"Lighting!V565","v":""},{"$f":"Lighting!W565","v":""},{"$f":"Lighting!X565","v":0},{"$f":"Lighting!Y565","v":""},{"$f":"Lighting!AA565","v":""},{"$f":"Lighting!AC565","v":""},{"$f":"Lighting!AF565","v":""},{"$f":"Lighting!AG565","v":0},{"$f":"Lighting!AH565","v":0},{"$f":"Lighting!AI565","v":0}]
[0,{"$f":"Lighting!B566","v":558},{"$f":"Lighting!C566","v":0},{"$f":"Lighting!D566","v":0},{"$f":"Lighting!F566","v":0},{"$f":"Lighting!G566","v":0},{"$f":"Lighting!H566","v":0},{"$f":"Lighting!I566","v":0},{"$f":"Lighting!J566","v":0},{"$f":"Lighting!K566","v":0},{"$f":"Lighting!L566","v":0},{"$f":"Lighting!N566","v":0},{"$f":"Lighting!O566","v":0},{"$f":"Lighting!R566","v":0},{"$f":"Lighting!S566","v":0},{"$f":"Lighting!U566","v":""},{"$f":"Lighting!V566","v":""},{"$f":"Lighting!W566","v":""},{"$f":"Lighting!X566","v":0},{"$f":"Lighting!Y566","v":""},{"$f":"Lighting!AA566","v":""},{"$f":"Lighting!AC566","v":""},{"$f":"Lighting!AF566","v":""},{"$f":"Lighting!AG566","v":0},{"$f":"Lighting!AH566","v":0},{"$f":"Lighting!AI566","v":0}]
[0,{"$f":"Lighting!B567","v":559},{"$f":"Lighting!C567","v":0},{"$f":"Lighting!D567","v":0},{"$f":"Lighting!F567","v":0},{"$f":"Lighting!G567","v":0},{"$f":"Lighting!H567","v":0},{"$f":"Lighting!I567","v":0},{"$f":"Lighting!J567","v":0},{"$f":"Lighting!K567","v":0},{"$f":"Lighting!L567","v":0},{"$f":"Lighting!N567","v":0},{"$f":"Lighting!O567","v":0},{"$f":"Lighting!R567","v":0},{"$f":"Lighting!S567","v":0},{"$f":"Lighting!U567","v":""},{"$f":"Lighting!V567","v":""},{"$f":"Lighting!W567","v":""},{"$f":"Lighting!X567","v":0},{"$f":"Lighting!Y567","v":""},{"$f":"Lighting!AA567","v":""},{"$f":"Lighting!AC567","v":""},{"$f":"Lighting!AF567","v":""},{"$f":"Lighting!AG567","v":0},{"$f":"Lighting!AH567","v":0},{"$f":"Lighting!AI567","v":0}]
[0,{"$f":"Lighting!B568","v":560},{"$f":"Lighting!C568","v":0},{"$f":"Lighting!D568","v":0},{"$f":"Lighting!F568","v":0},{"$f":"Lighting!G568","v":0},{"$f":"Lighting!H568","v":0},{"$f":"Lighting!I568","v":0},{"$f":"Lighting!J568","v":0},{"$f":"Lighting!K568","v":0},{"$f":"Lighting!L568","v":0},{"$f":"Lighting!N568","v":0},{"$f":"Lighting!O568","v":0},{"$f":"Lighting!R568","v":0},{"$f":"Lighting!S568","v":0},{"$f":"Lighting!U568","v":""},{"$f":"Lighting!V568","v":""},{"$f":"Lighting!W568","v":""},{"$f":"Lighting!X568","v":0},{"$f":"Lighting!Y568","v":""},{"$f":"Lighting!AA568","v":""},{"$f":"Lighting!AC568","v":""},{"$f":"Lighting!AF568","v":""},{"$f":"Lighting!AG568","v":0},{"$f":"Lighting!AH568","v":0},{"$f":"Lighting!AI568","v":0}]
[0,{"$f":"Lighting!B569","v":561},{"$f":"Lighting!C569","v":0},{"$f":"Lighting!D569","v":0},{"$f":"Lighting!F569","v":0},{"$f":"Lighting!G569","v":0},{"$f":"Lighting!H569","v":0},{"$f":"Lighting!I569","v":0},{"$f":"Lighting!J569","v":0},{"$f":"Lighting!K569","v":0},{"$f":"Lighting!L569","v":0},{"$f":"Lighting!N569","v":0},{"$f":"Lighting!O569","v":0},{"$f":"Lighting!R569","v":0},{"$f":"Lighting!S569","v":0},{"$f":"Lighting!U569","v":""},{"$f":"Lighting!V569","v":""},{"$f":"Lighting!W569","v":""},{"$f":"Lighting!X569","v":0},{"$f":"Lighting!Y569","v":""},{"$f":"Lighting!AA569","v":""},{"$f":"Lighting!AC569","v":""},{"$f":"Lighting!AF569","v":""},{"$f":"Lighting!AG569","v":0},{"$f":"Lighting!AH569","v":0},{"$f":"Lighting!AI569","v":0}]
[0,{"$f":"Lighting!B570","v":562},{"$f":"Lighting!C570","v":0},{"$f":"Lighting!D570","v":0},{"$f":"Lighting!F570","v":0},{"$f":"Lighting!G570","v":0},{"$f":"Lighting!H570","v":0},{"$f":"Lighting!I570","v":0},{"$f":"Lighting!J570","v":0},{"$f":"Lighting!K570","v":0},{"$f":"Lighting!L570","v":0},{"$f":"Lighting!N570","v":0},{"$f":"Lighting!O570","v":0},{"$f":"Lighting!R570","v":0},{"$f":"Lighting!S570","v":0},{"$f":"Lighting!U570","v":""},{"$f":"Lighting!V570","v":""},{"$f":"Lighting!W570","v":""},{"$f":"Lighting!X570","v":0},{"$f":"Lighting!Y570","v":""},{"$f":"Lighting!AA570","v":""},{"$f":"Lighting!AC570","v":""},{"$f":"Lighting!AF570","v":""},{"$f":"Lighting!AG570","v":0},{"$f":"Lighting!AH570","v":0},{"$f":"Lighting!AI570","v":0}]
[0,{"$f":"Lighting!B571","v":563},{"$f":"Lighting!C571","v":0},{"$f":"Lighting!D571","v":0},{"$f":"Lighting!F571","v":0},{"$f":"Lighting!G571","v":0},{"$f":"Lighting!H571","v":0},{"$f":"Lighting!I571","v":0},{"$f":"Lighting!J571","v":0},{"$f":"Lighting!K571","v":0},{"$f":"Lighting!L571","v":0},{"$f":"Lighting!N571","v":0},{"$f":"Lighting!O571","v":0},{"$f":"Lighting!R571","v":0},{"$f":"Lighting!S571","v":0},{"$f":"Lighting!U571","v":""},{"$f":"Lighting!V571","v":""},{"$f":"Lighting!W571","v":""},{"$f":"Lighting!X571","v":0},{"$f":"Lighting!Y571","v":""},{"$f":"Lighting!AA571","v":""},{"$f":"Lighting!AC571","v":""},{"$f":"Lighting!AF571","v":""},{"$f":"Lighting!AG571","v":0},{"$f":"Lighting!AH571","v":0},{"$f":"Lighting!AI571","v":0}]
[0,{"$f":"Lighting!B572","v":564},{"$f":"Lighting!C572","v":0},{"$f":"Lighting!D572","v":0},{"$f":"Lighting!F572","v":0},{"$f":"Lighting!G572","v":0},{"$f":"Lighting!H572","v":0},{"$f":"Lighting!I572","v":0},{"$f":"Lighting!J572","v":0},{"$f":"Lighting!K572","v":0},{"$f":"Lighting!L572","v":0},{"$f":"Lighting!N572","v":0},{"$f":"Lighting!O572","v":0},{"$f":"Lighting!R572","v":0},{"$f":"Lighting!S572","v":0},{"$f":"Lighting!U572","v":""},{"$f":"Lighting!V572","v":""},{"$f":"Lighting!W572","v":""},{"$f":"Lighting!X572","v":0},{"$f":"Lighting!Y572","v":""},{"$f":"Lighting!AA572","v":""},{"$f":"Lighting!AC572","v":""},{"$f":"Lighting!AF572","v":""},{"$f":"Lighting!AG572","v":0},{"$f":"Lighting!AH572","v":0},{"$f":"Lighting!AI572","v":0}]
[0,{"$f":"Lighting!B573","v":565},{"$f":"Lighting!C573","v":0},{"$f":"Lighting!D573","v":0},{"$f":"Lighting!F573","v":0},{"$f":"Lighting!G573","v":0},{"$f":"Lighting!H573","v":0},{"$f":"Lighting!I573","v":0},{"$f":"Lighting!J573","v":0},{"$f":"Lighting!K573","v":0},{"$f":"Lighting!L573","v":0},{"$f":"Lighting!N573","v":0},{"$f":"Lighting!O573","v":0},{"$f":"Lighting!R573","v":0},{"$f":"Lighting!S573","v":0},{"$f":"Lighting!U573","v":""},{"$f":"Lighting!V573","v":""},{"$f":"Lighting!W573","v":""},{"$f":"Lighting!X573","v":0},{"$f":"Lighting!Y573","v":""},{"$f":"Lighting!AA573","v":""},{"$f":"Lighting!AC573","v":""},{"$f":"Lighting!AF573","v":""},{"$f":"Lighting!AG573","v":0},{"$f":"Lighting!AH573","v":0},{"$f":"Lighting!AI573","v":0}]
[0,{"$f":"Lighting!B574","v":566},{"$f":"Lighting!C574","v":0},{"$f":"Lighting!D574","v":0},{"$f":"Lighting!F574","v":0},{"$f":"Lighting!G574","v":0},{"$f":"Lighting!H574","v":0},{"$f":"Lighting!I574","v":0},{"$f":"Lighting!J574","v":0},{"$f":"Lighting!K574","v":0},{"$f":"Lighting!L574","v":0},{"$f":"Lighting!N574","v":0},{"$f":"Lighting!O574","v":0},{"$f":"Lighting!R574","v":0},{"$f":"Lighting!S574","v":0},{"$f":"Lighting!U574","v":""},{"$f":"Lighting!V574","v":""},{"$f":"Lighting!W574","v":""},{"$f":"Lighting!X574","v":0},{"$f":"Lighting!Y574","v":""},{"$f":"Lighting!AA574","v":""},{"$f":"Lighting!AC574","v":""},{"$f":"Lighting!AF574","v":""},{"$f":"Lighting!AG574","v":0},{"$f":"Lighting!AH574","v":0},{"$f":"Lighting!AI574","v":0}]
[0,{"$f":"Lighting!B575","v":567},{"$f":"Lighting!C575","v":0},{"$f":"Lighting!D575","v":0},{"$f":"Lighting!F575","v":0},{"$f":"Lighting!G575","v":0},{"$f":"Lighting!H575","v":0},{"$f":"Lighting!I575","v":0},{"$f":"Lighting!J575","v":0},{"$f":"Lighting!K575","v":0},{"$f":"Lighting!L575","v":0},{"$f":"Lighting!N575","v":0},{"$f":"Lighting!O575","v":0},{"$f":"Lighting!R575","v":0},{"$f":"Lighting!S575","v":0},{"$f":"Lighting!U575","v":""},{"$f":"Lighting!V575","v":""},{"$f":"Lighting!W575","v":""},{"$f":"Lighting!X575","v":0},{"$f":"Lighting!Y575","v":""},{"$f":"Lighting!AA575","v":""},{"$f":"Lighting!AC575","v":""},{"$f":"Lighting!AF575","v":""},{"$f":"Lighting!AG575","v":0},{"$f":"Lighting!AH575","v":0},{"$f":"Lighting!AI575","v":0}]
[0,{"$f":"Lighting!B576","v":568},{"$f":"Lighting!C576","v":0},{"$f":"Lighting!D576","v":0},{"$f":"Lighting!F576","v":0},{"$f":"Lighting!G576","v":0},{"$f":"Lighting!H576","v":0},{"$f":"Lighting!I576","v":0},{"$f":"Lighting!J576","v":0},{"$f":"Lighting!K576","v":0},{"$f":"Lighting!L576","v":0},{"$f":"Lighting!N576","v":0},{"$f":"Lighting!O576","v":0},{"$f":"Lighting!R576","v":0},{"$f":"Lighting!S576","v":0},{"$f":"Lighting!U576","v":""},{"$f":"Lighting!V576","v":""},{"$f":"Lighting!W576","v":""},{"$f":"Lighting!X576","v":0},{"$f":"Lighting!Y576","v":""},{"$f":"Lighting!AA576","v":""},{"$f":"Lighting!AC576","v":""},{"$f":"Lighting!AF576","v":""},{"$f":"Lighting!AG576","v":0},{"$f":"Lighting!AH576","v":0},{"$f":"Lighting!AI576","v":0}]
[0,{"$f":"Lighting!B577","v":569},{"$f":"Lighting!C577","v":0},{"$f":"Lighting!D577","v":0},{"$f":"Lighting!F577","v":0},{"$f":"Lighting!G577","v":0},{"$f":"Lighting!H577","v":0},{"$f":"Lighting!I577","v":0},{"$f":"Lighting!J577","v":0},{"$f":"Lighting!K577","v":0},{"$f":"Lighting!L577","v":0},{"$f":"Lighting!N577","v":0},{"$f":"Lighting!O577","v":0},{"$f":"Lighting!R577","v":0},{"$f":"Lighting!S577","v":0},{"$f":"Lighting!U577","v":""},{"$f":"Lighting!V577","v":""},{"$f":"Lighting!W577","v":""},{"$f":"Lighting!X577","v":0},{"$f":"Lighting!Y577","v":""},{"$f":"Lighting!AA577","v":""},{"$f":"Lighting!AC577","v":""},{"$f":"Lighting!AF577","v":""},{"$f":"Lighting!AG577","v":0},{"$f":"Lighting!AH577","v":0},{"$f":"Lighting!AI577","v":0}]
[0,{"$f":"Lighting!B578","v":570},{"$f":"Lighting!C578","v":0},{"$f":"Lighting!D578","v":0},{"$f":"Lighting!F578","v":0},{"$f":"Lighting!G578","v":0},{"$f":"Lighting!H578","v":0},{"$f":"Lighting!I578","v":0},{"$f":"Lighting!J578","v":0},{"$f":"Lighting!K578","v":0},{"$f":"Lighting!L578","v":0},{"$f":"Lighting!N578","v":0},{"$f":"Lighting!O578","v":0},{"$f":"Lighting!R578","v":0},{"$f":"Lighting!S578","v":0},{"$f":"Lighting!U578","v":""},{"$f":"Lighting!V578","v":""},{"$f":"Lighting!W578","v":""},{"$f":"Lighting!X578","v":0},{"$f":"Lighting!Y578","v":""},{"$f":"Lighting!AA578","v":""},{"$f":"Lighting!AC578","v":""},{"$f":"Lighting!AF578","v":""},{"$f":"Lighting!AG578","v":0},{"$f":"Lighting!AH578","v":0},{"$f":"Lighting!AI578","v":0}]
[0,{"$f":"Lighting!B579","v":571},{"$f":"Lighting!C579","v":0},{"$f":"Lighting!D579","v":0},{"$f":"Lighting!F579","v":0},{"$f":"Lighting!G579","v":0},{"$f":"Lighting!H579","v":0},{"$f":"Lighting!I579","v":0},{"$f":"Lighting!J579","v":0},{"$f":"Lighting!K579","v":0},{"$f":"Lighting!L579","v":0},{"$f":"Lighting!N579","v":0},{"$f":"Lighting!O579","v":0},{"$f":"Lighting!R579","v":0},{"$f":"Lighting!S579","v":0},{"$f":"Lighting!U579","v":""},{"$f":"Lighting!V579","v":""},{"$f":"Lighting!W579","v":""},{"$f":"Lighting!X579","v":0},{"$f":"Lighting!Y579","v":""},{"$f":"Lighting!AA579","v":""},{"$f":"Lighting!AC579","v":""},{"$f":"Lighting!AF579","v":""},{"$f":"Lighting!AG579","v":0},{"$f":"Lighting!AH579","v":0},{"$f":"Lighting!AI579","v":0}]
[0,{"$f":"Lighting!B580","v":572},{"$f":"Lighting!C580","v":0},{"$f":"Lighting!D580","v":0},{"$f":"Lighting!F580","v":0},{"$f":"Lighting!G580","v":0},{"$f":"Lighting!H580","v":0},{"$f":"Lighting!I580","v":0},{"$f":"Lighting!J580","v":0},{"$f":"Lighting!K580","v":0},{"$f":"Lighting!L580","v":0},{"$f":"Lighting!N580","v":0},{"$f":"Lighting!O580","v":0},{"$f":"Lighting!R580","v":0},{"$f":"Lighting!S580","v":0},{"$f":"Lighting!U580","v":""},{"$f":"Lighting!V580","v":""},{"$f":"Lighting!W580","v":""},{"$f":"Lighting!X580","v":0},{"$f":"Lighting!Y580","v":""},{"$f":"Lighting!AA580","v":""},{"$f":"Lighting!AC580","v":""},{"$f":"Lighting!AF580","v":""},{"$f":"Lighting!AG580","v":0},{"$f":"Lighting!AH580","v":0},{"$f":"Lighting!AI580","v":0}]
[0,{"$f":"Lighting!B581","v":573},{"$f":"Lighting!C581","v":0},{"$f":"Lighting!D581","v":0},{"$f":"Lighting!F581","v":0},{"$f":"Lighting!G581","v":0},{"$f":"Lighting!H581","v":0},{"$f":"Lighting!I581","v":0},{"$f":"Lighting!J581","v":0},{"$f":"Lighting!K581","v":0},{"$f":"Lighting!L581","v":0},{"$f":"Lighting!N581","v":0},{"$f":"Lighting!O581","v":0},{"$f":"Lighting!R581","v":0},{"$f":"Lighting!S581","v":0},{"$f":"Lighting!U581","v":""},{"$f":"Lighting!V581","v":""},{"$f":"Lighting!W581","v":""},{"$f":"Lighting!X581","v":0},{"$f":"Lighting!Y581","v":""},{"$f":"Lighting!AA581","v":""},{"$f":"Lighting!AC581","v":""},{"$f":"Lighting!AF581","v":""},{"$f":"Lighting!AG581","v":0},{"$f":"Lighting!AH581","v":0},{"$f":"Lighting!AI581","v":0}]
[0,{"$f":"Lighting!B582","v":574},{"$f":"Lighting!C582","v":0},{"$f":"Lighting!D582","v":0},{"$f":"Lighting!F582","v":0},{"$f":"Lighting!G582","v":0},{"$f":"Lighting!H582","v":0},{"$f":"Lighting!I582","v":0},{"$f":"Lighting!J582","v":0},{"$f":"Lighting!K582","v":0},{"$f":"Lighting!L582","v":0},{"$f":"Lighting!N582","v":0},{"$f":"Lighting!O582","v":0},{"$f":"Lighting!R582","v":0},{"$f":"Lighting!S582","v":0},{"$f":"Lighting!U582","v":""},{"$f":"Lighting!V582","v":""},{"$f":"Lighting!W582","v":""},{"$f":"Lighting!X582","v":0},{"$f":"Lighting!Y582","v":""},{"$f":"Lighting!AA582","v":""},{"$f":"Lighting!AC582","v":""},{"$f":"Lighting!AF582","v":""},{"$f":"Lighting!AG582","v":0},{"$f":"Lighting!AH582","v":0},{"$f":"Lighting!AI582","v":0}]
[0,{"$f":"Lighting!B583","v":575},{"$f":"Lighting!C583","v":0},{"$f":"Lighting!D583","v":0},{"$f":"Lighting!F583","v":0},{"$f":"Lighting!G583","v":0},{"$f":"Lighting!H583","v":0},{"$f":"Lighting!I583","v":0},{"$f":"Lighting!J583","v":0},{"$f":"Lighting!K583","v":0},{"$f":"Lighting!L583","v":0},{"$f":"Lighting!N583","v":0},{"$f":"Lighting!O583","v":0},{"$f":"Lighting!R583","v":0},{"$f":"Lighting!S583","v":0},{"$f":"Lighting!U583","v":""},{"$f":"Lighting!V583","v":""},{"$f":"Lighting!W583","v":""},{"$f":"Lighting!X583","v":0},{"$f":"Lighting!Y583","v":""},{"$f":"Lighting!AA583","v":""},{"$f":"Lighting!AC583","v":""},{"$f":"Lighting!AF583","v":""},{"$f":"Lighting!AG583","v":0},{"$f":"Lighting!AH583","v":0},{"$f":"Lighting!AI583","v":0}]
[0,{"$f":"Lighting!B584","v":576},{"$f":"Lighting!C584","v":0},{"$f":"Lighting!D584","v":0},{"$f":"Lighting!F584","v":0},{"$f":"Lighting!G584","v":0},{"$f":"Lighting!H584","v":0},{"$f":"Lighting!I584","v":0},{"$f":"Lighting!J584","v":0},{"$f":"Lighting!K584","v":0},{"$f":"Lighting!L584","v":0},{"$f":"Lighting!N584","v":0},{"$f":"Lighting!O584","v":0},{"$f":"Lighting!R584","v":0},{"$f":"Lighting!S584","v":0},{"$f":"Lighting!U584","v":""},{"$f":"Lighting!V584","v":""},{"$f":"Lighting!W584","v":""},{"$f":"Lighting!X584","v":0},{"$f":"Lighting!Y584","v":""},{"$f":"Lighting!AA584","v":""},{"$f":"Lighting!AC584","v":""},{"$f":"Lighting!AF584","v":""},{"$f":"Lighting!AG584","v":0},{"$f":"Lighting!AH584","v":0},{"$f":"Lighting!AI584","v":0}]
[0,{"$f":"Lighting!B585","v":577},{"$f":"Lighting!C585","v":0},{"$f":"Lighting!D585","v":0},{"$f":"Lighting!F585","v":0},{"$f":"Lighting!G585","v":0},{"$f":"Lighting!H585","v":0},{"$f":"Lighting!I585","v":0},{"$f":"Lighting!J585","v":0},{"$f":"Lighting!K585","v":0},{"$f":"Lighting!L585","v":0},{"$f":"Lighting!N585","v":0},{"$f":"Lighting!O585","v":0},{"$f":"Lighting!R585","v":0},{"$f":"Lighting!S585","v":0},{"$f":"Lighting!U585","v":""},{"$f":"Lighting!V585","v":""},{"$f":"Lighting!W585","v":""},{"$f":"Lighting!X585","v":0},{"$f":"Lighting!Y585","v":""},{"$f":"Lighting!AA585","v":""},{"$f":"Lighting!AC585","v":""},{"$f":"Lighting!AF585","v":""},{"$f":"Lighting!AG585","v":0},{"$f":"Lighting!AH585","v":0},{"$f":"Lighting!AI585","v":0}]
[0,{"$f":"Lighting!B586","v":578},{"$f":"Lighting!C586","v":0},{"$f":"Lighting!D586","v":0},{"$f":"Lighting!F586","v":0},{"$f":"Lighting!G586","v":0},{"$f":"Lighting!H586","v":0},{"$f":"Lighting!I586","v":0},{"$f":"Lighting!J586","v":0},{"$f":"Lighting!K586","v":0},{"$f":"Lighting!L586","v":0},{"$f":"Lighting!N586","v":0},{"$f":"Lighting!O586","v":0},{"$f":"Lighting!R586","v":0},{"$f":"Lighting!S586","v":0},{"$f":"Lighting!U586","v":""},{"$f":"Lighting!V586","v":""},{"$f":"Lighting!W586","v":""},{"$f":"Lighting!X586","v":0},{"$f":"Lighting!Y586","v":""},{"$f":"Lighting!AA586","v":""},{"$f":"Lighting!AC586","v":""},{"$f":"Lighting!AF586","v":""},{"$f":"Lighting!AG586","v":0},{"$f":"Lighting!AH586","v":0},{"$f":"Lighting!AI586","v":0}]
[0,{"$f":"Lighting!B587","v":579},{"$f":"Lighting!C587","v":0},{"$f":"Lighting!D587","v":0},{"$f":"Lighting!F587","v":0},{"$f":"Lighting!G587","v":0},{"$f":"Lighting!H587","v":0},{"$f":"Lighting!I587","v":0},{"$f":"Lighting!J587","v":0},{"$f":"Lighting!K587","v":0},{"$f":"Lighting!L587","v":0},{"$f":"Lighting!N587","v":0},{"$f":"Lighting!O587","v":0},{"$f":"Lighting!R587","v":0},{"$f":"Lighting!S587","v":0},{"$f":"Lighting!U587","v":""},{"$f":"Lighting!V587","v":""},{"$f":"Lighting!W587","v":""},{"$f":"Lighting!X587","v":0},{"$f":"Lighting!Y587","v":""},{"$f":"Lighting!AA587","v":""},{"$f":"Lighting!AC587","v":""},{"$f":"Lighting!AF587","v":""},{"$f":"Lighting!AG587","v":0},{"$f":"Lighting!AH587","v":0},{"$f":"Lighting!AI587","v":0}]
[0,{"$f":"Lighting!B588","v":580},{"$f":"Lighting!C588","v":0},{"$f":"Lighting!D588","v":0},{"$f":"Lighting!F588","v":0},{"$f":"Lighting!G588","v":0},{"$f":"Lighting!H588","v":0},{"$f":"Lighting!I588","v":0},{"$f":"Lighting!J588","v":0},{"$f":"Lighting!K588","v":0},{"$f":"Lighting!L588","v":0},{"$f":"Lighting!N588","v":0},{"$f":"Lighting!O588","v":0},{"$f":"Lighting!R588","v":0},{"$f":"Lighting!S588","v":0},{"$f":"Lighting!U588","v":""},{"$f":"Lighting!V588","v":""},{"$f":"Lighting!W588","v":""},{"$f":"Lighting!X588","v":0},{"$f":"Lighting!Y588","v":""},{"$f":"Lighting!AA588","v":""},{"$f":"Lighting!AC588","v":""},{"$f":"Lighting!AF588","v":""},{"$f":"Lighting!AG588","v":0},{"$f":"Lighting!AH588","v":0},{"$f":"Lighting!AI588","v":0}]
[0,{"$f":"Lighting!B589","v":581},{"$f":"Lighting!C589","v":0},{"$f":"Lighting!D589","v":0},{"$f":"Lighting!F589","v":0},{"$f":"Lighting!G589","v":0},{"$f":"Lighting!H589","v":0},{"$f":"Lighting!I589","v":0},{"$f":"Lighting!J589","v":0},{"$f":"Lighting!K589","v":0},{"$f":"Lighting!L589","v":0},{"$f":"Lighting!N589","v":0},{"$f":"Lighting!O589","v":0},{"$f":"Lighting!R589","v":0},{"$f":"Lighting!S589","v":0},{"$f":"Lighting!U589","v":""},{"$f":"Lighting!V589","v":""},{"$f":"Lighting!W589","v":""},{"$f":"Lighting!X589","v":0},{"$f":"Lighting!Y589","v":""},{"$f":"Lighting!AA589","v":""},{"$f":"Lighting!AC589","v":""},{"$f":"Lighting!AF589","v":""},{"$f":"Lighting!AG589","v":0},{"$f":"Lighting!AH589","v":0},{"$f":"Lighting!AI589","v":0}]
[0,{"$f":"Lighting!B590","v":582},{"$f":"Lighting!C590","v":0},{"$f":"Lighting!D590","v":0},{"$f":"Lighting!F590","v":0},{"$f":"Lighting!G590","v":0},{"$f":"Lighting!H590","v":0},{"$f":"Lighting!I590","v":0},{"$f":"Lighting!J590","v":0},{"$f":"Lighting!K590","v":0},{"$f":"Lighting!L590","v":0},{"$f":"Lighting!N590","v":0},{"$f":"Lighting!O590","v":0},{"$f":"Lighting!R590","v":0},{"$f":"Lighting!S590","v":0},{"$f":"Lighting!U590","v":""},{"$f":"Lighting!V590","v":""},{"$f":"Lighting!W590","v":""},{"$f":"Lighting!X590","v":0},{"$f":"Lighting!Y590","v":""},{"$f":"Lighting!AA590","v":""},{"$f":"Lighting!AC590","v":""},{"$f":"Lighting!AF590","v":""},{"$f":"Lighting!AG590","v":0},{"$f":"Lighting!AH590","v":0},{"$f":"Lighting!AI590","v":0}]
[0,{"$f":"Lighting!B591","v":583},{"$f":"Lighting!C591","v":0},{"$f":"Lighting!D591","v":0},{"$f":"Lighting!F591","v":0},{"$f":"Lighting!G591","v":0},{"$f":"Lighting!H591","v":0},{"$f":"Lighting!I591","v":0},{"$f":"Lighting!J591","v":0},{"$f":"Lighting!K591","v":0},{"$f":"Lighting!L591","v":0},{"$f":"Lighting!N591","v":0},{"$f":"Lighting!O591","v":0},{"$f":"Lighting!R591","v":0},{"$f":"Lighting!S591","v":0},{"$f":"Lighting!U591","v":""},{"$f":"Lighting!V591","v":""},{"$f":"Lighting!W591","v":""},{"$f":"Lighting!X591","v":0},{"$f":"Lighting!Y591","v":""},{"$f":"Lighting!AA591","v":""},{"$f":"Lighting!AC591","v":""},{"$f":"Lighting!AF591","v":""},{"$f":"Lighting!AG591","v":0},{"$f":"Lighting!AH591","v":0},{"$f":"Lighting!AI591","v":0}]
[{"$f":"IF(G748=0,0,1)","v":0},{"$f":"Lighting!B592","v":584},{"$f":"Lighting!C592","v":0},{"$f":"Lighting!D592","v":0},{"$f":"Lighting!F592","v":0},{"$f":"Lighting!G592","v":0},{"$f":"Lighting!H592","v":0},{"$f":"Lighting!I592","v":0},{"$f":"Lighting!J592","v":0},{"$f":"Lighting!K592","v":0},{"$f":"Lighting!L592","v":0},{"$f":"Lighting!N592","v":0},{"$f":"Lighting!O592","v":0},{"$f":"Lighting!R592","v":0},{"$f":"Lighting!S592","v":0},{"$f":"Lighting!U592","v":""},{"$f":"Lighting!V592","v":""},{"$f":"Lighting!W592","v":""},{"$f":"Lighting!X592","v":0},{"$f":"Lighting!Y592","v":""},{"$f":"Lighting!AA592","v":""},{"$f":"Lighting!AC592","v":""},{"$f":"Lighting!AF592","v":""},{"$f":"Lighting!AG592","v":0},{"$f":"Lighting!AH592","v":0},{"$f":"Lighting!AI592","v":0}]
[0,{"$f":"Lighting!B593","v":585},{"$f":"Lighting!C593","v":0},{"$f":"Lighting!D593","v":0},{"$f":"Lighting!F593","v":0},{"$f":"Lighting!G593","v":0},{"$f":"Lighting!H593","v":0},{"$f":"Lighting!I593","v":0},{"$f":"Lighting!J593","v":0},{"$f":"Lighting!K593","v":0},{"$f":"Lighting!L593","v":0},{"$f":"Lighting!N593","v":0},{"$f":"Lighting!O593","v":0},{"$f":"Lighting!R593","v":0},{"$f":"Lighting!S593","v":0},{"$f":"Lighting!U593","v":""},{"$f":"Lighting!V593","v":""},{"$f":"Lighting!W593","v":""},{"$f":"Lighting!X593","v":0},{"$f":"Lighting!Y593","v":""},{"$f":"Lighting!AA593","v":""},{"$f":"Lighting!AC593","v":""},{"$f":"Lighting!AF593","v":""},{"$f":"Lighting!AG593","v":0},{"$f":"Lighting!AH593","v":0},{"$f":"Lighting!AI593","v":0}]
[0,{"$f":"Lighting!B594","v":586},{"$f":"Lighting!C594","v":0},{"$f":"Lighting!D594","v":0},{"$f":"Lighting!F594","v":0},{"$f":"Lighting!G594","v":0},{"$f":"Lighting!H594","v":0},{"$f":"Lighting!I594","v":0},{"$f":"Lighting!J594","v":0},{"$f":"Lighting!K594","v":0},{"$f":"Lighting!L594","v":0},{"$f":"Lighting!N594","v":0},{"$f":"Lighting!O594","v":0},{"$f":"Lighting!R594","v":0},{"$f":"Lighting!S594","v":0},{"$f":"Lighting!U594","v":""},{"$f":"Lighting!V594","v":""},{"$f":"Lighting!W594","v":""},{"$f":"Lighting!X594","v":0},{"$f":"Lighting!Y594","v":""},{"$f":"Lighting!AA594","v":""},{"$f":"Lighting!AC594","v":""},{"$f":"Lighting!AF594","v":""},{"$f":"Lighting!AG594","v":0},{"$f":"Lighting!AH594","v":0},{"$f":"Lighting!AI594","v":0}]
[0,{"$f":"Lighting!B595","v":587},{"$f":"Lighting!C595","v":0},{"$f":"Lighting!D595","v":0},{"$f":"Lighting!F595","v":0},{"$f":"Lighting!G595","v":0},{"$f":"Lighting!H595","v":0},{"$f":"Lighting!I595","v":0},{"$f":"Lighting!J595","v":0},{"$f":"Lighting!K595","v":0},{"$f":"Lighting!L595","v":0},{"$f":"Lighting!N595","v":0},{"$f":"Lighting!O595","v":0},{"$f":"Lighting!R595","v":0},{"$f":"Lighting!S595","v":0},{"$f":"Lighting!U595","v":""},{"$f":"Lighting!V595","v":""},{"$f":"Lighting!W595","v":""},{"$f":"Lighting!X595","v":0},{"$f":"Lighting!Y595","v":""},{"$f":"Lighting!AA595","v":""},{"$f":"Lighting!AC595","v":""},{"$f":"Lighting!AF595","v":""},{"$f":"Lighting!AG595","v":0},{"$f":"Lighting!AH595","v":0},{"$f":"Lighting!AI595","v":0}]
[0,{"$f":"Lighting!B596","v":588},{"$f":"Lighting!C596","v":0},{"$f":"Lighting!D596","v":0},{"$f":"Lighting!F596","v":0},{"$f":"Lighting!G596","v":0},{"$f":"Lighting!H596","v":0},{"$f":"Lighting!I596","v":0},{"$f":"Lighting!J596","v":0},{"$f":"Lighting!K596","v":0},{"$f":"Lighting!L596","v":0},{"$f":"Lighting!N596","v":0},{"$f":"Lighting!O596","v":0},{"$f":"Lighting!R596","v":0},{"$f":"Lighting!S596","v":0},{"$f":"Lighting!U596","v":""},{"$f":"Lighting!V596","v":""},{"$f":"Lighting!W596","v":""},{"$f":"Lighting!X596","v":0},{"$f":"Lighting!Y596","v":""},{"$f":"Lighting!AA596","v":""},{"$f":"Lighting!AC596","v":""},{"$f":"Lighting!AF596","v":""},{"$f":"Lighting!AG596","v":0},{"$f":"Lighting!AH596","v":0},{"$f":"Lighting!AI596","v":0}]
[0,{"$f":"Lighting!B597","v":589},{"$f":"Lighting!C597","v":0},{"$f":"Lighting!D597","v":0},{"$f":"Lighting!F597","v":0},{"$f":"Lighting!G597","v":0},{"$f":"Lighting!H597","v":0},{"$f":"Lighting!I597","v":0},{"$f":"Lighting!J597","v":0},{"$f":"Lighting!K597","v":0},{"$f":"Lighting!L597","v":0},{"$f":"Lighting!N597","v":0},{"$f":"Lighting!O597","v":0},{"$f":"Lighting!R597","v":0},{"$f":"Lighting!S597","v":0},{"$f":"Lighting!U597","v":""},{"$f":"Lighting!V597","v":""},{"$f":"Lighting!W597","v":""},{"$f":"Lighting!X597","v":0},{"$f":"Lighting!Y597","v":""},{"$f":"Lighting!AA597","v":""},{"$f":"Lighting!AC597","v":""},{"$f":"Lighting!AF597","v":""},{"$f":"Lighting!AG597","v":0},{"$f":"Lighting!AH597","v":0},{"$f":"Lighting!AI597","v":0}]
[0,{"$f":"Lighting!B598","v":590},{"$f":"Lighting!C598","v":0},{"$f":"Lighting!D598","v":0},{"$f":"Lighting!F598","v":0},{"$f":"Lighting!G598","v":0},{"$f":"Lighting!H598","v":0},{"$f":"Lighting!I598","v":0},{"$f":"Lighting!J598","v":0},{"$f":"Lighting!K598","v":0},{"$f":"Lighting!L598","v":0},{"$f":"Lighting!N598","v":0},{"$f":"Lighting!O598","v":0},{"$f":"Lighting!R598","v":0},{"$f":"Lighting!S598","v":0},{"$f":"Lighting!U598","v":""},{"$f":"Lighting!V598","v":""},{"$f":"Lighting!W598","v":""},{"$f":"Lighting!X598","v":0},{"$f":"Lighting!Y598","v":""},{"$f":"Lighting!AA598","v":""},{"$f":"Lighting!AC598","v":""},{"$f":"Lighting!AF598","v":""},{"$f":"Lighting!AG598","v":0},{"$f":"Lighting!AH598","v":0},{"$f":"Lighting!AI598","v":0}]
[0,{"$f":"Lighting!B599","v":591},{"$f":"Lighting!C599","v":0},{"$f":"Lighting!D599","v":0},{"$f":"Lighting!F599","v":0},{"$f":"Lighting!G599","v":0},{"$f":"Lighting!H599","v":0},{"$f":"Lighting!I599","v":0},{"$f":"Lighting!J599","v":0},{"$f":"Lighting!K599","v":0},{"$f":"Lighting!L599","v":0},{"$f":"Lighting!N599","v":0},{"$f":"Lighting!O599","v":0},{"$f":"Lighting!R599","v":0},{"$f":"Lighting!S599","v":0},{"$f":"Lighting!U599","v":""},{"$f":"Lighting!V599","v":""},{"$f":"Lighting!W599","v":""},{"$f":"Lighting!X599","v":0},{"$f":"Lighting!Y599","v":""},{"$f":"Lighting!AA599","v":""},{"$f":"Lighting!AC599","v":""},{"$f":"Lighting!AF599","v":""},{"$f":"Lighting!AG599","v":0},{"$f":"Lighting!AH599","v":0},{"$f":"Lighting!AI599","v":0}]
[0,{"$f":"Lighting!B600","v":592},{"$f":"Lighting!C600","v":0},{"$f":"Lighting!D600","v":0},{"$f":"Lighting!F600","v":0},{"$f":"Lighting!G600","v":0},{"$f":"Lighting!H600","v":0},{"$f":"Lighting!I600","v":0},{"$f":"Lighting!J600","v":0},{"$f":"Lighting!K600","v":0},{"$f":"Lighting!L600","v":0},{"$f":"Lighting!N600","v":0},{"$f":"Lighting!O600","v":0},{"$f":"Lighting!R600","v":0},{"$f":"Lighting!S600","v":0},{"$f":"Lighting!U600","v":""},{"$f":"Lighting!V600","v":""},{"$f":"Lighting!W600","v":""},{"$f":"Lighting!X600","v":0},{"$f":"Lighting!Y600","v":""},{"$f":"Lighting!AA600","v":""},{"$f":"Lighting!AC600","v":""},{"$f":"Lighting!AF600","v":""},{"$f":"Lighting!AG600","v":0},{"$f":"Lighting!AH600","v":0},{"$f":"Lighting!AI600","v":0}]
[0,{"$f":"Lighting!B601","v":593},{"$f":"Lighting!C601","v":0},{"$f":"Lighting!D601","v":0},{"$f":"Lighting!F601","v":0},{"$f":"Lighting!G601","v":0},{"$f":"Lighting!H601","v":0},{"$f":"Lighting!I601","v":0},{"$f":"Lighting!J601","v":0},{"$f":"Lighting!K601","v":0},{"$f":"Lighting!L601","v":0},{"$f":"Lighting!N601","v":0},{"$f":"Lighting!O601","v":0},{"$f":"Lighting!R601","v":0},{"$f":"Lighting!S601","v":0},{"$f":"Lighting!U601","v":""},{"$f":"Lighting!V601","v":""},{"$f":"Lighting!W601","v":""},{"$f":"Lighting!X601","v":0},{"$f":"Lighting!Y601","v":""},{"$f":"Lighting!AA601","v":""},{"$f":"Lighting!AC601","v":""},{"$f":"Lighting!AF601","v":""},{"$f":"Lighting!AG601","v":0},{"$f":"Lighting!AH601","v":0},{"$f":"Lighting!AI601","v":0}]
[0,{"$f":"Lighting!B602","v":594},{"$f":"Lighting!C602","v":0},{"$f":"Lighting!D602","v":0},{"$f":"Lighting!F602","v":0},{"$f":"Lighting!G602","v":0},{"$f":"Lighting!H602","v":0},{"$f":"Lighting!I602","v":0},{"$f":"Lighting!J602","v":0},{"$f":"Lighting!K602","v":0},{"$f":"Lighting!L602","v":0},{"$f":"Lighting!N602","v":0},{"$f":"Lighting!O602","v":0},{"$f":"Lighting!R602","v":0},{"$f":"Lighting!S602","v":0},{"$f":"Lighting!U602","v":""},{"$f":"Lighting!V602","v":""},{"$f":"Lighting!W602","v":""},{"$f":"Lighting!X602","v":0},{"$f":"Lighting!Y602","v":""},{"$f":"Lighting!AA602","v":""},{"$f":"Lighting!AC602","v":""},{"$f":"Lighting!AF602","v":""},{"$f":"Lighting!AG602","v":0},{"$f":"Lighting!AH602","v":0},{"$f":"Lighting!AI602","v":0}]
[0,{"$f":"Lighting!B603","v":595},{"$f":"Lighting!C603","v":0},{"$f":"Lighting!D603","v":0},{"$f":"Lighting!F603","v":0},{"$f":"Lighting!G603","v":0},{"$f":"Lighting!H603","v":0},{"$f":"Lighting!I603","v":0},{"$f":"Lighting!J603","v":0},{"$f":"Lighting!K603","v":0},{"$f":"Lighting!L603","v":0},{"$f":"Lighting!N603","v":0},{"$f":"Lighting!O603","v":0},{"$f":"Lighting!R603","v":0},{"$f":"Lighting!S603","v":0},{"$f":"Lighting!U603","v":""},{"$f":"Lighting!V603","v":""},{"$f":"Lighting!W603","v":""},{"$f":"Lighting!X603","v":0},{"$f":"Lighting!Y603","v":""},{"$f":"Lighting!AA603","v":""},{"$f":"Lighting!AC603","v":""},{"$f":"Lighting!AF603","v":""},{"$f":"Lighting!AG603","v":0},{"$f":"Lighting!AH603","v":0},{"$f":"Lighting!AI603","v":0}]
[0,{"$f":"Lighting!B604","v":596},{"$f":"Lighting!C604","v":0},{"$f":"Lighting!D604","v":0},{"$f":"Lighting!F604","v":0},{"$f":"Lighting!G604","v":0},{"$f":"Lighting!H604","v":0},{"$f":"Lighting!I604","v":0},{"$f":"Lighting!J604","v":0},{"$f":"Lighting!K604","v":0},{"$f":"Lighting!L604","v":0},{"$f":"Lighting!N604","v":0},{"$f":"Lighting!O604","v":0},{"$f":"Lighting!R604","v":0},{"$f":"Lighting!S604","v":0},{"$f":"Lighting!U604","v":""},{"$f":"Lighting!V604","v":""},{"$f":"Lighting!W604","v":""},{"$f":"Lighting!X604","v":0},{"$f":"Lighting!Y604","v":""},{"$f":"Lighting!AA604","v":""},{"$f":"Lighting!AC604","v":""},{"$f":"Lighting!AF604","v":""},{"$f":"Lighting!AG604","v":0},{"$f":"Lighting!AH604","v":0},{"$f":"Lighting!AI604","v":0}]
[0,{"$f":"Lighting!B605","v":597},{"$f":"Lighting!C605","v":0},{"$f":"Lighting!D605","v":0},{"$f":"Lighting!F605","v":0},{"$f":"Lighting!G605","v":0},{"$f":"Lighting!H605","v":0},{"$f":"Lighting!I605","v":0},{"$f":"Lighting!J605","v":0},{"$f":"Lighting!K605","v":0},{"$f":"Lighting!L605","v":0},{"$f":"Lighting!N605","v":0},{"$f":"Lighting!O605","v":0},{"$f":"Lighting!R605","v":0},{"$f":"Lighting!S605","v":0},{"$f":"Lighting!U605","v":""},{"$f":"Lighting!V605","v":""},{"$f":"Lighting!W605","v":""},{"$f":"Lighting!X605","v":0},{"$f":"Lighting!Y605","v":""},{"$f":"Lighting!AA605","v":""},{"$f":"Lighting!AC605","v":""},{"$f":"Lighting!AF605","v":""},{"$f":"Lighting!AG605","v":0},{"$f":"Lighting!AH605","v":0},{"$f":"Lighting!AI605","v":0}]
[0,{"$f":"Lighting!B606","v":598},{"$f":"Lighting!C606","v":0},{"$f":"Lighting!D606","v":0},{"$f":"Lighting!F606","v":0},{"$f":"Lighting!G606","v":0},{"$f":"Lighting!H606","v":0},{"$f":"Lighting!I606","v":0},{"$f":"Lighting!J606","v":0},{"$f":"Lighting!K606","v":0},{"$f":"Lighting!L606","v":0},{"$f":"Lighting!N606","v":0},{"$f":"Lighting!O606","v":0},{"$f":"Lighting!R606","v":0},{"$f":"Lighting!S606","v":0},{"$f":"Lighting!U606","v":""},{"$f":"Lighting!V606","v":""},{"$f":"Lighting!W606","v":""},{"$f":"Lighting!X606","v":0},{"$f":"Lighting!Y606","v":""},{"$f":"Lighting!AA606","v":""},{"$f":"Lighting!AC606","v":""},{"$f":"Lighting!AF606","v":""},{"$f":"Lighting!AG606","v":0},{"$f":"Lighting!AH606","v":0},{"$f":"Lighting!AI606","v":0}]
[0,{"$f":"Lighting!B607","v":599},{"$f":"Lighting!C607","v":0},{"$f":"Lighting!D607","v":0},{"$f":"Lighting!F607","v":0},{"$f":"Lighting!G607","v":0},{"$f":"Lighting!H607","v":0},{"$f":"Lighting!I607","v":0},{"$f":"Lighting!J607","v":0},{"$f":"Lighting!K607","v":0},{"$f":"Lighting!L607","v":0},{"$f":"Lighting!N607","v":0},{"$f":"Lighting!O607","v":0},{"$f":"Lighting!R607","v":0},{"$f":"Lighting!S607","v":0},{"$f":"Lighting!U607","v":""},{"$f":"Lighting!V607","v":""},{"$f":"Lighting!W607","v":""},{"$f":"Lighting!X607","v":0},{"$f":"Lighting!Y607","v":""},{"$f":"Lighting!AA607","v":""},{"$f":"Lighting!AC607","v":""},{"$f":"Lighting!AF607","v":""},{"$f":"Lighting!AG607","v":0},{"$f":"Lighting!AH607","v":0},{"$f":"Lighting!AI607","v":0}]
[0,{"$f":"Lighting!B608","v":600},{"$f":"Lighting!C608","v":0},{"$f":"Lighting!D608","v":0},{"$f":"Lighting!F608","v":0},{"$f":"Lighting!G608","v":0},{"$f":"Lighting!H608","v":0},{"$f":"Lighting!I608","v":0},{"$f":"Lighting!J608","v":0},{"$f":"Lighting!K608","v":0},{"$f":"Lighting!L608","v":0},{"$f":"Lighting!N608","v":0},{"$f":"Lighting!O608","v":0},{"$f":"Lighting!R608","v":0},{"$f":"Lighting!S608","v":0},{"$f":"Lighting!U608","v":""},{"$f":"Lighting!V608","v":""},{"$f":"Lighting!W608","v":""},{"$f":"Lighting!X608","v":0},{"$f":"Lighting!Y608","v":""},{"$f":"Lighting!AA608","v":""},{"$f":"Lighting!AC608","v":""},{"$f":"Lighting!AF608","v":""},{"$f":"Lighting!AG608","v":0},{"$f":"Lighting!AH608","v":0},{"$f":"Lighting!AI608","v":0}]
[0,{"$f":"Lighting!B609","v":601},{"$f":"Lighting!C609","v":0},{"$f":"Lighting!D609","v":0},{"$f":"Lighting!F609","v":0},{"$f":"Lighting!G609","v":0},{"$f":"Lighting!H609","v":0},{"$f":"Lighting!I609","v":0},{"$f":"Lighting!J609","v":0},{"$f":"Lighting!K609","v":0},{"$f":"Lighting!L609","v":0},{"$f":"Lighting!N609","v":0},{"$f":"Lighting!O609","v":0},{"$f":"Lighting!R609","v":0},{"$f":"Lighting!S609","v":0},{"$f":"Lighting!U609","v":""},{"$f":"Lighting!V609","v":""},{"$f":"Lighting!W609","v":""},{"$f":"Lighting!X609","v":0},{"$f":"Lighting!Y609","v":""},{"$f":"Lighting!AA609","v":""},{"$f":"Lighting!AC609","v":""},{"$f":"Lighting!AF609","v":""},{"$f":"Lighting!AG609","v":0},{"$f":"Lighting!AH609","v":0},{"$f":"Lighting!AI609","v":0}]
[0,{"$f":"Lighting!B610","v":602},{"$f":"Lighting!C610","v":0},{"$f":"Lighting!D610","v":0},{"$f":"Lighting!F610","v":0},{"$f":"Lighting!G610","v":0},{"$f":"Lighting!H610","v":0},{"$f":"Lighting!I610","v":0},{"$f":"Lighting!J610","v":0},{"$f":"Lighting!K610","v":0},{"$f":"Lighting!L610","v":0},{"$f":"Lighting!N610","v":0},{"$f":"Lighting!O610","v":0},{"$f":"Lighting!R610","v":0},{"$f":"Lighting!S610","v":0},{"$f":"Lighting!U610","v":""},{"$f":"Lighting!V610","v":""},{"$f":"Lighting!W610","v":""},{"$f":"Lighting!X610","v":0},{"$f":"Lighting!Y610","v":""},{"$f":"Lighting!AA610","v":""},{"$f":"Lighting!AC610","v":""},{"$f":"Lighting!AF610","v":""},{"$f":"Lighting!AG610","v":0},{"$f":"Lighting!AH610","v":0},{"$f":"Lighting!AI610","v":0}]
[0,{"$f":"Lighting!B611","v":603},{"$f":"Lighting!C611","v":0},{"$f":"Lighting!D611","v":0},{"$f":"Lighting!F611","v":0},{"$f":"Lighting!G611","v":0},{"$f":"Lighting!H611","v":0},{"$f":"Lighting!I611","v":0},{"$f":"Lighting!J611","v":0},{"$f":"Lighting!K611","v":0},{"$f":"Lighting!L611","v":0},{"$f":"Lighting!N611","v":0},{"$f":"Lighting!O611","v":0},{"$f":"Lighting!R611","v":0},{"$f":"Lighting!S611","v":0},{"$f":"Lighting!U611","v":""},{"$f":"Lighting!V611","v":""},{"$f":"Lighting!W611","v":""},{"$f":"Lighting!X611","v":0},{"$f":"Lighting!Y611","v":""},{"$f":"Lighting!AA611","v":""},{"$f":"Lighting!AC611","v":""},{"$f":"Lighting!AF611","v":""},{"$f":"Lighting!AG611","v":0},{"$f":"Lighting!AH611","v":0},{"$f":"Lighting!AI611","v":0}]
[0,{"$f":"Lighting!B612","v":604},{"$f":"Lighting!C612","v":0},{"$f":"Lighting!D612","v":0},{"$f":"Lighting!F612","v":0},{"$f":"Lighting!G612","v":0},{"$f":"Lighting!H612","v":0},{"$f":"Lighting!I612","v":0},{"$f":"Lighting!J612","v":0},{"$f":"Lighting!K612","v":0},{"$f":"Lighting!L612","v":0},{"$f":"Lighting!N612","v":0},{"$f":"Lighting!O612","v":0},{"$f":"Lighting!R612","v":0},{"$f":"Lighting!S612","v":0},{"$f":"Lighting!U612","v":""},{"$f":"Lighting!V612","v":""},{"$f":"Lighting!W612","v":""},{"$f":"Lighting!X612","v":0},{"$f":"Lighting!Y612","v":""},{"$f":"Lighting!AA612","v":""},{"$f":"Lighting!AC612","v":""},{"$f":"Lighting!AF612","v":""},{"$f":"Lighting!AG612","v":0},{"$f":"Lighting!AH612","v":0},{"$f":"Lighting!AI612","v":0}]
[0,{"$f":"Lighting!B613","v":605},{"$f":"Lighting!C613","v":0},{"$f":"Lighting!D613","v":0},{"$f":"Lighting!F613","v":0},{"$f":"Lighting!G613","v":0},{"$f":"Lighting!H613","v":0},{"$f":"Lighting!I613","v":0},{"$f":"Lighting!J613","v":0},{"$f":"Lighting!K613","v":0},{"$f":"Lighting!L613","v":0},{"$f":"Lighting!N613","v":0},{"$f":"Lighting!O613","v":0},{"$f":"Lighting!R613","v":0},{"$f":"Lighting!S613","v":0},{"$f":"Lighting!U613","v":""},{"$f":"Lighting!V613","v":""},{"$f":"Lighting!W613","v":""},{"$f":"Lighting!X613","v":0},{"$f":"Lighting!Y613","v":""},{"$f":"Lighting!AA613","v":""},{"$f":"Lighting!AC613","v":""},{"$f":"Lighting!AF613","v":""},{"$f":"Lighting!AG613","v":0},{"$f":"Lighting!AH613","v":0},{"$f":"Lighting!AI613","v":0}]
[0,{"$f":"Lighting!B614","v":606},{"$f":"Lighting!C614","v":0},{"$f":"Lighting!D614","v":0},{"$f":"Lighting!F614","v":0},{"$f":"Lighting!G614","v":0},{"$f":"Lighting!H614","v":0},{"$f":"Lighting!I614","v":0},{"$f":"Lighting!J614","v":0},{"$f":"Lighting!K614","v":0},{"$f":"Lighting!L614","v":0},{"$f":"Lighting!N614","v":0},{"$f":"Lighting!O614","v":0},{"$f":"Lighting!R614","v":0},{"$f":"Lighting!S614","v":0},{"$f":"Lighting!U614","v":""},{"$f":"Lighting!V614","v":""},{"$f":"Lighting!W614","v":""},{"$f":"Lighting!X614","v":0},{"$f":"Lighting!Y614","v":""},{"$f":"Lighting!AA614","v":""},{"$f":"Lighting!AC614","v":""},{"$f":"Lighting!AF614","v":""},{"$f":"Lighting!AG614","v":0},{"$f":"Lighting!AH614","v":0},{"$f":"Lighting!AI614","v":0}]
[0,{"$f":"Lighting!B615","v":607},{"$f":"Lighting!C615","v":0},{"$f":"Lighting!D615","v":0},{"$f":"Lighting!F615","v":0},{"$f":"Lighting!G615","v":0},{"$f":"Lighting!H615","v":0},{"$f":"Lighting!I615","v":0},{"$f":"Lighting!J615","v":0},{"$f":"Lighting!K615","v":0},{"$f":"Lighting!L615","v":0},{"$f":"Lighting!N615","v":0},{"$f":"Lighting!O615","v":0},{"$f":"Lighting!R615","v":0},{"$f":"Lighting!S615","v":0},{"$f":"Lighting!U615","v":""},{"$f":"Lighting!V615","v":""},{"$f":"Lighting!W615","v":""},{"$f":"Lighting!X615","v":0},{"$f":"Lighting!Y615","v":""},{"$f":"Lighting!AA615","v":""},{"$f":"Lighting!AC615","v":""},{"$f":"Lighting!AF615","v":""},{"$f":"Lighting!AG615","v":0},{"$f":"Lighting!AH615","v":0},{"$f":"Lighting!AI615","v":0}]
[0,{"$f":"Lighting!B616","v":608},{"$f":"Lighting!C616","v":0},{"$f":"Lighting!D616","v":0},{"$f":"Lighting!F616","v":0},{"$f":"Lighting!G616","v":0},{"$f":"Lighting!H616","v":0},{"$f":"Lighting!I616","v":0},{"$f":"Lighting!J616","v":0},{"$f":"Lighting!K616","v":0},{"$f":"Lighting!L616","v":0},{"$f":"Lighting!N616","v":0},{"$f":"Lighting!O616","v":0},{"$f":"Lighting!R616","v":0},{"$f":"Lighting!S616","v":0},{"$f":"Lighting!U616","v":""},{"$f":"Lighting!V616","v":""},{"$f":"Lighting!W616","v":""},{"$f":"Lighting!X616","v":0},{"$f":"Lighting!Y616","v":""},{"$f":"Lighting!AA616","v":""},{"$f":"Lighting!AC616","v":""},{"$f":"Lighting!AF616","v":""},{"$f":"Lighting!AG616","v":0},{"$f":"Lighting!AH616","v":0},{"$f":"Lighting!AI616","v":0}]
[0,{"$f":"Lighting!B617","v":609},{"$f":"Lighting!C617","v":0},{"$f":"Lighting!D617","v":0},{"$f":"Lighting!F617","v":0},{"$f":"Lighting!G617","v":0},{"$f":"Lighting!H617","v":0},{"$f":"Lighting!I617","v":0},{"$f":"Lighting!J617","v":0},{"$f":"Lighting!K617","v":0},{"$f":"Lighting!L617","v":0},{"$f":"Lighting!N617","v":0},{"$f":"Lighting!O617","v":0},{"$f":"Lighting!R617","v":0},{"$f":"Lighting!S617","v":0},{"$f":"Lighting!U617","v":""},{"$f":"Lighting!V617","v":""},{"$f":"Lighting!W617","v":""},{"$f":"Lighting!X617","v":0},{"$f":"Lighting!Y617","v":""},{"$f":"Lighting!AA617","v":""},{"$f":"Lighting!AC617","v":""},{"$f":"Lighting!AF617","v":""},{"$f":"Lighting!AG617","v":0},{"$f":"Lighting!AH617","v":0},{"$f":"Lighting!AI617","v":0}]
[0,{"$f":"Lighting!B618","v":610},{"$f":"Lighting!C618","v":0},{"$f":"Lighting!D618","v":0},{"$f":"Lighting!F618","v":0},{"$f":"Lighting!G618","v":0},{"$f":"Lighting!H618","v":0},{"$f":"Lighting!I618","v":0},{"$f":"Lighting!J618","v":0},{"$f":"Lighting!K618","v":0},{"$f":"Lighting!L618","v":0},{"$f":"Lighting!N618","v":0},{"$f":"Lighting!O618","v":0},{"$f":"Lighting!R618","v":0},{"$f":"Lighting!S618","v":0},{"$f":"Lighting!U618","v":""},{"$f":"Lighting!V618","v":""},{"$f":"Lighting!W618","v":""},{"$f":"Lighting!X618","v":0},{"$f":"Lighting!Y618","v":""},{"$f":"Lighting!AA618","v":""},{"$f":"Lighting!AC618","v":""},{"$f":"Lighting!AF618","v":""},{"$f":"Lighting!AG618","v":0},{"$f":"Lighting!AH618","v":0},{"$f":"Lighting!AI618","v":0}]
[0,{"$f":"Lighting!B619","v":611},{"$f":"Lighting!C619","v":0},{"$f":"Lighting!D619","v":0},{"$f":"Lighting!F619","v":0},{"$f":"Lighting!G619","v":0},{"$f":"Lighting!H619","v":0},{"$f":"Lighting!I619","v":0},{"$f":"Lighting!J619","v":0},{"$f":"Lighting!K619","v":0},{"$f":"Lighting!L619","v":0},{"$f":"Lighting!N619","v":0},{"$f":"Lighting!O619","v":0},{"$f":"Lighting!R619","v":0},{"$f":"Lighting!S619","v":0},{"$f":"Lighting!U619","v":""},{"$f":"Lighting!V619","v":""},{"$f":"Lighting!W619","v":""},{"$f":"Lighting!X619","v":0},{"$f":"Lighting!Y619","v":""},{"$f":"Lighting!AA619","v":""},{"$f":"Lighting!AC619","v":""},{"$f":"Lighting!AF619","v":""},{"$f":"Lighting!AG619","v":0},{"$f":"Lighting!AH619","v":0},{"$f":"Lighting!AI619","v":0}]
[0,{"$f":"Lighting!B620","v":612},{"$f":"Lighting!C620","v":0},{"$f":"Lighting!D620","v":0},{"$f":"Lighting!F620","v":0},{"$f":"Lighting!G620","v":0},{"$f":"Lighting!H620","v":0},{"$f":"Lighting!I620","v":0},{"$f":"Lighting!J620","v":0},{"$f":"Lighting!K620","v":0},{"$f":"Lighting!L620","v":0},{"$f":"Lighting!N620","v":0},{"$f":"Lighting!O620","v":0},{"$f":"Lighting!R620","v":0},{"$f":"Lighting!S620","v":0},{"$f":"Lighting!U620","v":""},{"$f":"Lighting!V620","v":""},{"$f":"Lighting!W620","v":""},{"$f":"Lighting!X620","v":0},{"$f":"Lighting!Y620","v":""},{"$f":"Lighting!AA620","v":""},{"$f":"Lighting!AC620","v":""},{"$f":"Lighting!AF620","v":""},{"$f":"Lighting!AG620","v":0},{"$f":"Lighting!AH620","v":0},{"$f":"Lighting!AI620","v":0}]
[0,{"$f":"Lighting!B621","v":613},{"$f":"Lighting!C621","v":0},{"$f":"Lighting!D621","v":0},{"$f":"Lighting!F621","v":0},{"$f":"Lighting!G621","v":0},{"$f":"Lighting!H621","v":0},{"$f":"Lighting!I621","v":0},{"$f":"Lighting!J621","v":0},{"$f":"Lighting!K621","v":0},{"$f":"Lighting!L621","v":0},{"$f":"Lighting!N621","v":0},{"$f":"Lighting!O621","v":0},{"$f":"Lighting!R621","v":0},{"$f":"Lighting!S621","v":0},{"$f":"Lighting!U621","v":""},{"$f":"Lighting!V621","v":""},{"$f":"Lighting!W621","v":""},{"$f":"Lighting!X621","v":0},{"$f":"Lighting!Y621","v":""},{"$f":"Lighting!AA621","v":""},{"$f":"Lighting!AC621","v":""},{"$f":"Lighting!AF621","v":""},{"$f":"Lighting!AG621","v":0},{"$f":"Lighting!AH621","v":0},{"$f":"Lighting!AI621","v":0}]
[0,{"$f":"Lighting!B622","v":614},{"$f":"Lighting!C622","v":0},{"$f":"Lighting!D622","v":0},{"$f":"Lighting!F622","v":0},{"$f":"Lighting!G622","v":0},{"$f":"Lighting!H622","v":0},{"$f":"Lighting!I622","v":0},{"$f":"Lighting!J622","v":0},{"$f":"Lighting!K622","v":0},{"$f":"Lighting!L622","v":0},{"$f":"Lighting!N622","v":0},{"$f":"Lighting!O622","v":0},{"$f":"Lighting!R622","v":0},{"$f":"Lighting!S622","v":0},{"$f":"Lighting!U622","v":""},{"$f":"Lighting!V622","v":""},{"$f":"Lighting!W622","v":""},{"$f":"Lighting!X622","v":0},{"$f":"Lighting!Y622","v":""},{"$f":"Lighting!AA622","v":""},{"$f":"Lighting!AC622","v":""},{"$f":"Lighting!AF622","v":""},{"$f":"Lighting!AG622","v":0},{"$f":"Lighting!AH622","v":0},{"$f":"Lighting!AI622","v":0}]
[0,{"$f":"Lighting!B623","v":615},{"$f":"Lighting!C623","v":0},{"$f":"Lighting!D623","v":0},{"$f":"Lighting!F623","v":0},{"$f":"Lighting!G623","v":0},{"$f":"Lighting!H623","v":0},{"$f":"Lighting!I623","v":0},{"$f":"Lighting!J623","v":0},{"$f":"Lighting!K623","v":0},{"$f":"Lighting!L623","v":0},{"$f":"Lighting!N623","v":0},{"$f":"Lighting!O623","v":0},{"$f":"Lighting!R623","v":0},{"$f":"Lighting!S623","v":0},{"$f":"Lighting!U623","v":""},{"$f":"Lighting!V623","v":""},{"$f":"Lighting!W623","v":""},{"$f":"Lighting!X623","v":0},{"$f":"Lighting!Y623","v":""},{"$f":"Lighting!AA623","v":""},{"$f":"Lighting!AC623","v":""},{"$f":"Lighting!AF623","v":""},{"$f":"Lighting!AG623","v":0},{"$f":"Lighting!AH623","v":0},{"$f":"Lighting!AI623","v":0}]
[0,{"$f":"Lighting!B624","v":616},{"$f":"Lighting!C624","v":0},{"$f":"Lighting!D624","v":0},{"$f":"Lighting!F624","v":0},{"$f":"Lighting!G624","v":0},{"$f":"Lighting!H624","v":0},{"$f":"Lighting!I624","v":0},{"$f":"Lighting!J624","v":0},{"$f":"Lighting!K624","v":0},{"$f":"Lighting!L624","v":0},{"$f":"Lighting!N624","v":0},{"$f":"Lighting!O624","v":0},{"$f":"Lighting!R624","v":0},{"$f":"Lighting!S624","v":0},{"$f":"Lighting!U624","v":""},{"$f":"Lighting!V624","v":""},{"$f":"Lighting!W624","v":""},{"$f":"Lighting!X624","v":0},{"$f":"Lighting!Y624","v":""},{"$f":"Lighting!AA624","v":""},{"$f":"Lighting!AC624","v":""},{"$f":"Lighting!AF624","v":""},{"$f":"Lighting!AG624","v":0},{"$f":"Lighting!AH624","v":0},{"$f":"Lighting!AI624","v":0}]
[0,{"$f":"Lighting!B625","v":617},{"$f":"Lighting!C625","v":0},{"$f":"Lighting!D625","v":0},{"$f":"Lighting!F625","v":0},{"$f":"Lighting!G625","v":0},{"$f":"Lighting!H625","v":0},{"$f":"Lighting!I625","v":0},{"$f":"Lighting!J625","v":0},{"$f":"Lighting!K625","v":0},{"$f":"Lighting!L625","v":0},{"$f":"Lighting!N625","v":0},{"$f":"Lighting!O625","v":0},{"$f":"Lighting!R625","v":0},{"$f":"Lighting!S625","v":0},{"$f":"Lighting!U625","v":""},{"$f":"Lighting!V625","v":""},{"$f":"Lighting!W625","v":""},{"$f":"Lighting!X625","v":0},{"$f":"Lighting!Y625","v":""},{"$f":"Lighting!AA625","v":""},{"$f":"Lighting!AC625","v":""},{"$f":"Lighting!AF625","v":""},{"$f":"Lighting!AG625","v":0},{"$f":"Lighting!AH625","v":0},{"$f":"Lighting!AI625","v":0}]
[0,{"$f":"Lighting!B626","v":618},{"$f":"Lighting!C626","v":0},{"$f":"Lighting!D626","v":0},{"$f":"Lighting!F626","v":0},{"$f":"Lighting!G626","v":0},{"$f":"Lighting!H626","v":0},{"$f":"Lighting!I626","v":0},{"$f":"Lighting!J626","v":0},{"$f":"Lighting!K626","v":0},{"$f":"Lighting!L626","v":0},{"$f":"Lighting!N626","v":0},{"$f":"Lighting!O626","v":0},{"$f":"Lighting!R626","v":0},{"$f":"Lighting!S626","v":0},{"$f":"Lighting!U626","v":""},{"$f":"Lighting!V626","v":""},{"$f":"Lighting!W626","v":""},{"$f":"Lighting!X626","v":0},{"$f":"Lighting!Y626","v":""},{"$f":"Lighting!AA626","v":""},{"$f":"Lighting!AC626","v":""},{"$f":"Lighting!AF626","v":""},{"$f":"Lighting!AG626","v":0},{"$f":"Lighting!AH626","v":0},{"$f":"Lighting!AI626","v":0}]
[0,{"$f":"Lighting!B627","v":619},{"$f":"Lighting!C627","v":0},{"$f":"Lighting!D627","v":0},{"$f":"Lighting!F627","v":0},{"$f":"Lighting!G627","v":0},{"$f":"Lighting!H627","v":0},{"$f":"Lighting!I627","v":0},{"$f":"Lighting!J627","v":0},{"$f":"Lighting!K627","v":0},{"$f":"Lighting!L627","v":0},{"$f":"Lighting!N627","v":0},{"$f":"Lighting!O627","v":0},{"$f":"Lighting!R627","v":0},{"$f":"Lighting!S627","v":0},{"$f":"Lighting!U627","v":""},{"$f":"Lighting!V627","v":""},{"$f":"Lighting!W627","v":""},{"$f":"Lighting!X627","v":0},{"$f":"Lighting!Y627","v":""},{"$f":"Lighting!AA627","v":""},{"$f":"Lighting!AC627","v":""},{"$f":"Lighting!AF627","v":""},{"$f":"Lighting!AG627","v":0},{"$f":"Lighting!AH627","v":0},{"$f":"Lighting!AI627","v":0}]
[0,{"$f":"Lighting!B628","v":620},{"$f":"Lighting!C628","v":0},{"$f":"Lighting!D628","v":0},{"$f":"Lighting!F628","v":0},{"$f":"Lighting!G628","v":0},{"$f":"Lighting!H628","v":0},{"$f":"Lighting!I628","v":0},{"$f":"Lighting!J628","v":0},{"$f":"Lighting!K628","v":0},{"$f":"Lighting!L628","v":0},{"$f":"Lighting!N628","v":0},{"$f":"Lighting!O628","v":0},{"$f":"Lighting!R628","v":0},{"$f":"Lighting!S628","v":0},{"$f":"Lighting!U628","v":""},{"$f":"Lighting!V628","v":""},{"$f":"Lighting!W628","v":""},{"$f":"Lighting!X628","v":0},{"$f":"Lighting!Y628","v":""},{"$f":"Lighting!AA628","v":""},{"$f":"Lighting!AC628","v":""},{"$f":"Lighting!AF628","v":""},{"$f":"Lighting!AG628","v":0},{"$f":"Lighting!AH628","v":0},{"$f":"Lighting!AI628","v":0}]
[0,{"$f":"Lighting!B629","v":621},{"$f":"Lighting!C629","v":0},{"$f":"Lighting!D629","v":0},{"$f":"Lighting!F629","v":0},{"$f":"Lighting!G629","v":0},{"$f":"Lighting!H629","v":0},{"$f":"Lighting!I629","v":0},{"$f":"Lighting!J629","v":0},{"$f":"Lighting!K629","v":0},{"$f":"Lighting!L629","v":0},{"$f":"Lighting!N629","v":0},{"$f":"Lighting!O629","v":0},{"$f":"Lighting!R629","v":0},{"$f":"Lighting!S629","v":0},{"$f":"Lighting!U629","v":""},{"$f":"Lighting!V629","v":""},{"$f":"Lighting!W629","v":""},{"$f":"Lighting!X629","v":0},{"$f":"Lighting!Y629","v":""},{"$f":"Lighting!AA629","v":""},{"$f":"Lighting!AC629","v":""},{"$f":"Lighting!AF629","v":""},{"$f":"Lighting!AG629","v":0},{"$f":"Lighting!AH629","v":0},{"$f":"Lighting!AI629","v":0}]
[0,{"$f":"Lighting!B630","v":622},{"$f":"Lighting!C630","v":0},{"$f":"Lighting!D630","v":0},{"$f":"Lighting!F630","v":0},{"$f":"Lighting!G630","v":0},{"$f":"Lighting!H630","v":0},{"$f":"Lighting!I630","v":0},{"$f":"Lighting!J630","v":0},{"$f":"Lighting!K630","v":0},{"$f":"Lighting!L630","v":0},{"$f":"Lighting!N630","v":0},{"$f":"Lighting!O630","v":0},{"$f":"Lighting!R630","v":0},{"$f":"Lighting!S630","v":0},{"$f":"Lighting!U630","v":""},{"$f":"Lighting!V630","v":""},{"$f":"Lighting!W630","v":""},{"$f":"Lighting!X630","v":0},{"$f":"Lighting!Y630","v":""},{"$f":"Lighting!AA630","v":""},{"$f":"Lighting!AC630","v":""},{"$f":"Lighting!AF630","v":""},{"$f":"Lighting!AG630","v":0},{"$f":"Lighting!AH630","v":0},{"$f":"Lighting!AI630","v":0}]
[0,{"$f":"Lighting!B631","v":623},{"$f":"Lighting!C631","v":0},{"$f":"Lighting!D631","v":0},{"$f":"Lighting!F631","v":0},{"$f":"Lighting!G631","v":0},{"$f":"Lighting!H631","v":0},{"$f":"Lighting!I631","v":0},{"$f":"Lighting!J631","v":0},{"$f":"Lighting!K631","v":0},{"$f":"Lighting!L631","v":0},{"$f":"Lighting!N631","v":0},{"$f":"Lighting!O631","v":0},{"$f":"Lighting!R631","v":0},{"$f":"Lighting!S631","v":0},{"$f":"Lighting!U631","v":""},{"$f":"Lighting!V631","v":""},{"$f":"Lighting!W631","v":""},{"$f":"Lighting!X631","v":0},{"$f":"Lighting!Y631","v":""},{"$f":"Lighting!AA631","v":""},{"$f":"Lighting!AC631","v":""},{"$f":"Lighting!AF631","v":""},{"$f":"Lighting!AG631","v":0},{"$f":"Lighting!AH631","v":0},{"$f":"Lighting!AI631","v":0}]
[0,{"$f":"Lighting!B632","v":624},{"$f":"Lighting!C632","v":0},{"$f":"Lighting!D632","v":0},{"$f":"Lighting!F632","v":0},{"$f":"Lighting!G632","v":0},{"$f":"Lighting!H632","v":0},{"$f":"Lighting!I632","v":0},{"$f":"Lighting!J632","v":0},{"$f":"Lighting!K632","v":0},{"$f":"Lighting!L632","v":0},{"$f":"Lighting!N632","v":0},{"$f":"Lighting!O632","v":0},{"$f":"Lighting!R632","v":0},{"$f":"Lighting!S632","v":0},{"$f":"Lighting!U632","v":""},{"$f":"Lighting!V632","v":""},{"$f":"Lighting!W632","v":""},{"$f":"Lighting!X632","v":0},{"$f":"Lighting!Y632","v":""},{"$f":"Lighting!AA632","v":""},{"$f":"Lighting!AC632","v":""},{"$f":"Lighting!AF632","v":""},{"$f":"Lighting!AG632","v":0},{"$f":"Lighting!AH632","v":0},{"$f":"Lighting!AI632","v":0}]
[0,{"$f":"Lighting!B633","v":625},{"$f":"Lighting!C633","v":0},{"$f":"Lighting!D633","v":0},{"$f":"Lighting!F633","v":0},{"$f":"Lighting!G633","v":0},{"$f":"Lighting!H633","v":0},{"$f":"Lighting!I633","v":0},{"$f":"Lighting!J633","v":0},{"$f":"Lighting!K633","v":0},{"$f":"Lighting!L633","v":0},{"$f":"Lighting!N633","v":0},{"$f":"Lighting!O633","v":0},{"$f":"Lighting!R633","v":0},{"$f":"Lighting!S633","v":0},{"$f":"Lighting!U633","v":""},{"$f":"Lighting!V633","v":""},{"$f":"Lighting!W633","v":""},{"$f":"Lighting!X633","v":0},{"$f":"Lighting!Y633","v":""},{"$f":"Lighting!AA633","v":""},{"$f":"Lighting!AC633","v":""},{"$f":"Lighting!AF633","v":""},{"$f":"Lighting!AG633","v":0},{"$f":"Lighting!AH633","v":0},{"$f":"Lighting!AI633","v":0}]
[0,{"$f":"Lighting!B634","v":626},{"$f":"Lighting!C634","v":0},{"$f":"Lighting!D634","v":0},{"$f":"Lighting!F634","v":0},{"$f":"Lighting!G634","v":0},{"$f":"Lighting!H634","v":0},{"$f":"Lighting!I634","v":0},{"$f":"Lighting!J634","v":0},{"$f":"Lighting!K634","v":0},{"$f":"Lighting!L634","v":0},{"$f":"Lighting!N634","v":0},{"$f":"Lighting!O634","v":0},{"$f":"Lighting!R634","v":0},{"$f":"Lighting!S634","v":0},{"$f":"Lighting!U634","v":""},{"$f":"Lighting!V634","v":""},{"$f":"Lighting!W634","v":""},{"$f":"Lighting!X634","v":0},{"$f":"Lighting!Y634","v":""},{"$f":"Lighting!AA634","v":""},{"$f":"Lighting!AC634","v":""},{"$f":"Lighting!AF634","v":""},{"$f":"Lighting!AG634","v":0},{"$f":"Lighting!AH634","v":0},{"$f":"Lighting!AI634","v":0}]
[0,{"$f":"Lighting!B635","v":627},{"$f":"Lighting!C635","v":0},{"$f":"Lighting!D635","v":0},{"$f":"Lighting!F635","v":0},{"$f":"Lighting!G635","v":0},{"$f":"Lighting!H635","v":0},{"$f":"Lighting!I635","v":0},{"$f":"Lighting!J635","v":0},{"$f":"Lighting!K635","v":0},{"$f":"Lighting!L635","v":0},{"$f":"Lighting!N635","v":0},{"$f":"Lighting!O635","v":0},{"$f":"Lighting!R635","v":0},{"$f":"Lighting!S635","v":0},{"$f":"Lighting!U635","v":""},{"$f":"Lighting!V635","v":""},{"$f":"Lighting!W635","v":""},{"$f":"Lighting!X635","v":0},{"$f":"Lighting!Y635","v":""},{"$f":"Lighting!AA635","v":""},{"$f":"Lighting!AC635","v":""},{"$f":"Lighting!AF635","v":""},{"$f":"Lighting!AG635","v":0},{"$f":"Lighting!AH635","v":0},{"$f":"Lighting!AI635","v":0}]
[0,{"$f":"Lighting!B636","v":628},{"$f":"Lighting!C636","v":0},{"$f":"Lighting!D636","v":0},{"$f":"Lighting!F636","v":0},{"$f":"Lighting!G636","v":0},{"$f":"Lighting!H636","v":0},{"$f":"Lighting!I636","v":0},{"$f":"Lighting!J636","v":0},{"$f":"Lighting!K636","v":0},{"$f":"Lighting!L636","v":0},{"$f":"Lighting!N636","v":0},{"$f":"Lighting!O636","v":0},{"$f":"Lighting!R636","v":0},{"$f":"Lighting!S636","v":0},{"$f":"Lighting!U636","v":""},{"$f":"Lighting!V636","v":""},{"$f":"Lighting!W636","v":""},{"$f":"Lighting!X636","v":0},{"$f":"Lighting!Y636","v":""},{"$f":"Lighting!AA636","v":""},{"$f":"Lighting!AC636","v":""},{"$f":"Lighting!AF636","v":""},{"$f":"Lighting!AG636","v":0},{"$f":"Lighting!AH636","v":0},{"$f":"Lighting!AI636","v":0}]
[0,{"$f":"Lighting!B637","v":629},{"$f":"Lighting!C637","v":0},{"$f":"Lighting!D637","v":0},{"$f":"Lighting!F637","v":0},{"$f":"Lighting!G637","v":0},{"$f":"Lighting!H637","v":0},{"$f":"Lighting!I637","v":0},{"$f":"Lighting!J637","v":0},{"$f":"Lighting!K637","v":0},{"$f":"Lighting!L637","v":0},{"$f":"Lighting!N637","v":0},{"$f":"Lighting!O637","v":0},{"$f":"Lighting!R637","v":0},{"$f":"Lighting!S637","v":0},{"$f":"Lighting!U637","v":""},{"$f":"Lighting!V637","v":""},{"$f":"Lighting!W637","v":""},{"$f":"Lighting!X637","v":0},{"$f":"Lighting!Y637","v":""},{"$f":"Lighting!AA637","v":""},{"$f":"Lighting!AC637","v":""},{"$f":"Lighting!AF637","v":""},{"$f":"Lighting!AG637","v":0},{"$f":"Lighting!AH637","v":0},{"$f":"Lighting!AI637","v":0}]
[0,{"$f":"Lighting!B638","v":630},{"$f":"Lighting!C638","v":0},{"$f":"Lighting!D638","v":0},{"$f":"Lighting!F638","v":0},{"$f":"Lighting!G638","v":0},{"$f":"Lighting!H638","v":0},{"$f":"Lighting!I638","v":0},{"$f":"Lighting!J638","v":0},{"$f":"Lighting!K638","v":0},{"$f":"Lighting!L638","v":0},{"$f":"Lighting!N638","v":0},{"$f":"Lighting!O638","v":0},{"$f":"Lighting!R638","v":0},{"$f":"Lighting!S638","v":0},{"$f":"Lighting!U638","v":""},{"$f":"Lighting!V638","v":""},{"$f":"Lighting!W638","v":""},{"$f":"Lighting!X638","v":0},{"$f":"Lighting!Y638","v":""},{"$f":"Lighting!AA638","v":""},{"$f":"Lighting!AC638","v":""},{"$f":"Lighting!AF638","v":""},{"$f":"Lighting!AG638","v":0},{"$f":"Lighting!AH638","v":0},{"$f":"Lighting!AI638","v":0}]
[0,{"$f":"Lighting!B639","v":631},{"$f":"Lighting!C639","v":0},{"$f":"Lighting!D639","v":0},{"$f":"Lighting!F639","v":0},{"$f":"Lighting!G639","v":0},{"$f":"Lighting!H639","v":0},{"$f":"Lighting!I639","v":0},{"$f":"Lighting!J639","v":0},{"$f":"Lighting!K639","v":0},{"$f":"Lighting!L639","v":0},{"$f":"Lighting!N639","v":0},{"$f":"Lighting!O639","v":0},{"$f":"Lighting!R639","v":0},{"$f":"Lighting!S639","v":0},{"$f":"Lighting!U639","v":""},{"$f":"Lighting!V639","v":""},{"$f":"Lighting!W639","v":""},{"$f":"Lighting!X639","v":0},{"$f":"Lighting!Y639","v":""},{"$f":"Lighting!AA639","v":""},{"$f":"Lighting!AC639","v":""},{"$f":"Lighting!AF639","v":""},{"$f":"Lighting!AG639","v":0},{"$f":"Lighting!AH639","v":0},{"$f":"Lighting!AI639","v":0}]
[0,{"$f":"Lighting!B640","v":632},{"$f":"Lighting!C640","v":0},{"$f":"Lighting!D640","v":0},{"$f":"Lighting!F640","v":0},{"$f":"Lighting!G640","v":0},{"$f":"Lighting!H640","v":0},{"$f":"Lighting!I640","v":0},{"$f":"Lighting!J640","v":0},{"$f":"Lighting!K640","v":0},{"$f":"Lighting!L640","v":0},{"$f":"Lighting!N640","v":0},{"$f":"Lighting!O640","v":0},{"$f":"Lighting!R640","v":0},{"$f":"Lighting!S640","v":0},{"$f":"Lighting!U640","v":""},{"$f":"Lighting!V640","v":""},{"$f":"Lighting!W640","v":""},{"$f":"Lighting!X640","v":0},{"$f":"Lighting!Y640","v":""},{"$f":"Lighting!AA640","v":""},{"$f":"Lighting!AC640","v":""},{"$f":"Lighting!AF640","v":""},{"$f":"Lighting!AG640","v":0},{"$f":"Lighting!AH640","v":0},{"$f":"Lighting!AI640","v":0}]
[0,{"$f":"Lighting!B641","v":633},{"$f":"Lighting!C641","v":0},{"$f":"Lighting!D641","v":0},{"$f":"Lighting!F641","v":0},{"$f":"Lighting!G641","v":0},{"$f":"Lighting!H641","v":0},{"$f":"Lighting!I641","v":0},{"$f":"Lighting!J641","v":0},{"$f":"Lighting!K641","v":0},{"$f":"Lighting!L641","v":0},{"$f":"Lighting!N641","v":0},{"$f":"Lighting!O641","v":0},{"$f":"Lighting!R641","v":0},{"$f":"Lighting!S641","v":0},{"$f":"Lighting!U641","v":""},{"$f":"Lighting!V641","v":""},{"$f":"Lighting!W641","v":""},{"$f":"Lighting!X641","v":0},{"$f":"Lighting!Y641","v":""},{"$f":"Lighting!AA641","v":""},{"$f":"Lighting!AC641","v":""},{"$f":"Lighting!AF641","v":""},{"$f":"Lighting!AG641","v":0},{"$f":"Lighting!AH641","v":0},{"$f":"Lighting!AI641","v":0}]
[0,{"$f":"Lighting!B642","v":634},{"$f":"Lighting!C642","v":0},{"$f":"Lighting!D642","v":0},{"$f":"Lighting!F642","v":0},{"$f":"Lighting!G642","v":0},{"$f":"Lighting!H642","v":0},{"$f":"Lighting!I642","v":0},{"$f":"Lighting!J642","v":0},{"$f":"Lighting!K642","v":0},{"$f":"Lighting!L642","v":0},{"$f":"Lighting!N642","v":0},{"$f":"Lighting!O642","v":0},{"$f":"Lighting!R642","v":0},{"$f":"Lighting!S642","v":0},{"$f":"Lighting!U642","v":""},{"$f":"Lighting!V642","v":""},{"$f":"Lighting!W642","v":""},{"$f":"Lighting!X642","v":0},{"$f":"Lighting!Y642","v":""},{"$f":"Lighting!AA642","v":""},{"$f":"Lighting!AC642","v":""},{"$f":"Lighting!AF642","v":""},{"$f":"Lighting!AG642","v":0},{"$f":"Lighting!AH642","v":0},{"$f":"Lighting!AI642","v":0}]
[0,{"$f":"Lighting!B643","v":635},{"$f":"Lighting!C643","v":0},{"$f":"Lighting!D643","v":0},{"$f":"Lighting!F643","v":0},{"$f":"Lighting!G643","v":0},{"$f":"Lighting!H643","v":0},{"$f":"Lighting!I643","v":0},{"$f":"Lighting!J643","v":0},{"$f":"Lighting!K643","v":0},{"$f":"Lighting!L643","v":0},{"$f":"Lighting!N643","v":0},{"$f":"Lighting!O643","v":0},{"$f":"Lighting!R643","v":0},{"$f":"Lighting!S643","v":0},{"$f":"Lighting!U643","v":""},{"$f":"Lighting!V643","v":""},{"$f":"Lighting!W643","v":""},{"$f":"Lighting!X643","v":0},{"$f":"Lighting!Y643","v":""},{"$f":"Lighting!AA643","v":""},{"$f":"Lighting!AC643","v":""},{"$f":"Lighting!AF643","v":""},{"$f":"Lighting!AG643","v":0},{"$f":"Lighting!AH643","v":0},{"$f":"Lighting!AI643","v":0}]
[0,{"$f":"Lighting!B644","v":636},{"$f":"Lighting!C644","v":0},{"$f":"Lighting!D644","v":0},{"$f":"Lighting!F644","v":0},{"$f":"Lighting!G644","v":0},{"$f":"Lighting!H644","v":0},{"$f":"Lighting!I644","v":0},{"$f":"Lighting!J644","v":0},{"$f":"Lighting!K644","v":0},{"$f":"Lighting!L644","v":0},{"$f":"Lighting!N644","v":0},{"$f":"Lighting!O644","v":0},{"$f":"Lighting!R644","v":0},{"$f":"Lighting!S644","v":0},{"$f":"Lighting!U644","v":""},{"$f":"Lighting!V644","v":""},{"$f":"Lighting!W644","v":""},{"$f":"Lighting!X644","v":0},{"$f":"Lighting!Y644","v":""},{"$f":"Lighting!AA644","v":""},{"$f":"Lighting!AC644","v":""},{"$f":"Lighting!AF644","v":""},{"$f":"Lighting!AG644","v":0},{"$f":"Lighting!AH644","v":0},{"$f":"Lighting!AI644","v":0}]
[0,{"$f":"Lighting!B645","v":637},{"$f":"Lighting!C645","v":0},{"$f":"Lighting!D645","v":0},{"$f":"Lighting!F645","v":0},{"$f":"Lighting!G645","v":0},{"$f":"Lighting!H645","v":0},{"$f":"Lighting!I645","v":0},{"$f":"Lighting!J645","v":0},{"$f":"Lighting!K645","v":0},{"$f":"Lighting!L645","v":0},{"$f":"Lighting!N645","v":0},{"$f":"Lighting!O645","v":0},{"$f":"Lighting!R645","v":0},{"$f":"Lighting!S645","v":0},{"$f":"Lighting!U645","v":""},{"$f":"Lighting!V645","v":""},{"$f":"Lighting!W645","v":""},{"$f":"Lighting!X645","v":0},{"$f":"Lighting!Y645","v":""},{"$f":"Lighting!AA645","v":""},{"$f":"Lighting!AC645","v":""},{"$f":"Lighting!AF645","v":""},{"$f":"Lighting!AG645","v":0},{"$f":"Lighting!AH645","v":0},{"$f":"Lighting!AI645","v":0}]
[0,{"$f":"Lighting!B646","v":638},{"$f":"Lighting!C646","v":0},{"$f":"Lighting!D646","v":0},{"$f":"Lighting!F646","v":0},{"$f":"Lighting!G646","v":0},{"$f":"Lighting!H646","v":0},{"$f":"Lighting!I646","v":0},{"$f":"Lighting!J646","v":0},{"$f":"Lighting!K646","v":0},{"$f":"Lighting!L646","v":0},{"$f":"Lighting!N646","v":0},{"$f":"Lighting!O646","v":0},{"$f":"Lighting!R646","v":0},{"$f":"Lighting!S646","v":0},{"$f":"Lighting!U646","v":""},{"$f":"Lighting!V646","v":""},{"$f":"Lighting!W646","v":""},{"$f":"Lighting!X646","v":0},{"$f":"Lighting!Y646","v":""},{"$f":"Lighting!AA646","v":""},{"$f":"Lighting!AC646","v":""},{"$f":"Lighting!AF646","v":""},{"$f":"Lighting!AG646","v":0},{"$f":"Lighting!AH646","v":0},{"$f":"Lighting!AI646","v":0}]
[0,{"$f":"Lighting!B647","v":639},{"$f":"Lighting!C647","v":0},{"$f":"Lighting!D647","v":0},{"$f":"Lighting!F647","v":0},{"$f":"Lighting!G647","v":0},{"$f":"Lighting!H647","v":0},{"$f":"Lighting!I647","v":0},{"$f":"Lighting!J647","v":0},{"$f":"Lighting!K647","v":0},{"$f":"Lighting!L647","v":0},{"$f":"Lighting!N647","v":0},{"$f":"Lighting!O647","v":0},{"$f":"Lighting!R647","v":0},{"$f":"Lighting!S647","v":0},{"$f":"Lighting!U647","v":""},{"$f":"Lighting!V647","v":""},{"$f":"Lighting!W647","v":""},{"$f":"Lighting!X647","v":0},{"$f":"Lighting!Y647","v":""},{"$f":"Lighting!AA647","v":""},{"$f":"Lighting!AC647","v":""},{"$f":"Lighting!AF647","v":""},{"$f":"Lighting!AG647","v":0},{"$f":"Lighting!AH647","v":0},{"$f":"Lighting!AI647","v":0}]
[0,{"$f":"Lighting!B648","v":640},{"$f":"Lighting!C648","v":0},{"$f":"Lighting!D648","v":0},{"$f":"Lighting!F648","v":0},{"$f":"Lighting!G648","v":0},{"$f":"Lighting!H648","v":0},{"$f":"Lighting!I648","v":0},{"$f":"Lighting!J648","v":0},{"$f":"Lighting!K648","v":0},{"$f":"Lighting!L648","v":0},{"$f":"Lighting!N648","v":0},{"$f":"Lighting!O648","v":0},{"$f":"Lighting!R648","v":0},{"$f":"Lighting!S648","v":0},{"$f":"Lighting!U648","v":""},{"$f":"Lighting!V648","v":""},{"$f":"Lighting!W648","v":""},{"$f":"Lighting!X648","v":0},{"$f":"Lighting!Y648","v":""},{"$f":"Lighting!AA648","v":""},{"$f":"Lighting!AC648","v":""},{"$f":"Lighting!AF648","v":""},{"$f":"Lighting!AG648","v":0},{"$f":"Lighting!AH648","v":0},{"$f":"Lighting!AI648","v":0}]
[0,{"$f":"Lighting!B649","v":641},{"$f":"Lighting!C649","v":0},{"$f":"Lighting!D649","v":0},{"$f":"Lighting!F649","v":0},{"$f":"Lighting!G649","v":0},{"$f":"Lighting!H649","v":0},{"$f":"Lighting!I649","v":0},{"$f":"Lighting!J649","v":0},{"$f":"Lighting!K649","v":0},{"$f":"Lighting!L649","v":0},{"$f":"Lighting!N649","v":0},{"$f":"Lighting!O649","v":0},{"$f":"Lighting!R649","v":0},{"$f":"Lighting!S649","v":0},{"$f":"Lighting!U649","v":""},{"$f":"Lighting!V649","v":""},{"$f":"Lighting!W649","v":""},{"$f":"Lighting!X649","v":0},{"$f":"Lighting!Y649","v":""},{"$f":"Lighting!AA649","v":""},{"$f":"Lighting!AC649","v":""},{"$f":"Lighting!AF649","v":""},{"$f":"Lighting!AG649","v":0},{"$f":"Lighting!AH649","v":0},{"$f":"Lighting!AI649","v":0}]
[0,{"$f":"Lighting!B650","v":642},{"$f":"Lighting!C650","v":0},{"$f":"Lighting!D650","v":0},{"$f":"Lighting!F650","v":0},{"$f":"Lighting!G650","v":0},{"$f":"Lighting!H650","v":0},{"$f":"Lighting!I650","v":0},{"$f":"Lighting!J650","v":0},{"$f":"Lighting!K650","v":0},{"$f":"Lighting!L650","v":0},{"$f":"Lighting!N650","v":0},{"$f":"Lighting!O650","v":0},{"$f":"Lighting!R650","v":0},{"$f":"Lighting!S650","v":0},{"$f":"Lighting!U650","v":""},{"$f":"Lighting!V650","v":""},{"$f":"Lighting!W650","v":""},{"$f":"Lighting!X650","v":0},{"$f":"Lighting!Y650","v":""},{"$f":"Lighting!AA650","v":""},{"$f":"Lighting!AC650","v":""},{"$f":"Lighting!AF650","v":""},{"$f":"Lighting!AG650","v":0},{"$f":"Lighting!AH650","v":0},{"$f":"Lighting!AI650","v":0}]
[0,{"$f":"Lighting!B651","v":643},{"$f":"Lighting!C651","v":0},{"$f":"Lighting!D651","v":0},{"$f":"Lighting!F651","v":0},{"$f":"Lighting!G651","v":0},{"$f":"Lighting!H651","v":0},{"$f":"Lighting!I651","v":0},{"$f":"Lighting!J651","v":0},{"$f":"Lighting!K651","v":0},{"$f":"Lighting!L651","v":0},{"$f":"Lighting!N651","v":0},{"$f":"Lighting!O651","v":0},{"$f":"Lighting!R651","v":0},{"$f":"Lighting!S651","v":0},{"$f":"Lighting!U651","v":""},{"$f":"Lighting!V651","v":""},{"$f":"Lighting!W651","v":""},{"$f":"Lighting!X651","v":0},{"$f":"Lighting!Y651","v":""},{"$f":"Lighting!AA651","v":""},{"$f":"Lighting!AC651","v":""},{"$f":"Lighting!AF651","v":""},{"$f":"Lighting!AG651","v":0},{"$f":"Lighting!AH651","v":0},{"$f":"Lighting!AI651","v":0}]
[0,{"$f":"Lighting!B652","v":644},{"$f":"Lighting!C652","v":0},{"$f":"Lighting!D652","v":0},{"$f":"Lighting!F652","v":0},{"$f":"Lighting!G652","v":0},{"$f":"Lighting!H652","v":0},{"$f":"Lighting!I652","v":0},{"$f":"Lighting!J652","v":0},{"$f":"Lighting!K652","v":0},{"$f":"Lighting!L652","v":0},{"$f":"Lighting!N652","v":0},{"$f":"Lighting!O652","v":0},{"$f":"Lighting!R652","v":0},{"$f":"Lighting!S652","v":0},{"$f":"Lighting!U652","v":""},{"$f":"Lighting!V652","v":""},{"$f":"Lighting!W652","v":""},{"$f":"Lighting!X652","v":0},{"$f":"Lighting!Y652","v":""},{"$f":"Lighting!AA652","v":""},{"$f":"Lighting!AC652","v":""},{"$f":"Lighting!AF652","v":""},{"$f":"Lighting!AG652","v":0},{"$f":"Lighting!AH652","v":0},{"$f":"Lighting!AI652","v":0}]
[0,{"$f":"Lighting!B653","v":645},{"$f":"Lighting!C653","v":0},{"$f":"Lighting!D653","v":0},{"$f":"Lighting!F653","v":0},{"$f":"Lighting!G653","v":0},{"$f":"Lighting!H653","v":0},{"$f":"Lighting!I653","v":0},{"$f":"Lighting!J653","v":0},{"$f":"Lighting!K653","v":0},{"$f":"Lighting!L653","v":0},{"$f":"Lighting!N653","v":0},{"$f":"Lighting!O653","v":0},{"$f":"Lighting!R653","v":0},{"$f":"Lighting!S653","v":0},{"$f":"Lighting!U653","v":""},{"$f":"Lighting!V653","v":""},{"$f":"Lighting!W653","v":""},{"$f":"Lighting!X653","v":0},{"$f":"Lighting!Y653","v":""},{"$f":"Lighting!AA653","v":""},{"$f":"Lighting!AC653","v":""},{"$f":"Lighting!AF653","v":""},{"$f":"Lighting!AG653","v":0},{"$f":"Lighting!AH653","v":0},{"$f":"Lighting!AI653","v":0}]
[0,{"$f":"Lighting!B654","v":646},{"$f":"Lighting!C654","v":0},{"$f":"Lighting!D654","v":0},{"$f":"Lighting!F654","v":0},{"$f":"Lighting!G654","v":0},{"$f":"Lighting!H654","v":0},{"$f":"Lighting!I654","v":0},{"$f":"Lighting!J654","v":0},{"$f":"Lighting!K654","v":0},{"$f":"Lighting!L654","v":0},{"$f":"Lighting!N654","v":0},{"$f":"Lighting!O654","v":0},{"$f":"Lighting!R654","v":0},{"$f":"Lighting!S654","v":0},{"$f":"Lighting!U654","v":""},{"$f":"Lighting!V654","v":""},{"$f":"Lighting!W654","v":""},{"$f":"Lighting!X654","v":0},{"$f":"Lighting!Y654","v":""},{"$f":"Lighting!AA654","v":""},{"$f":"Lighting!AC654","v":""},{"$f":"Lighting!AF654","v":""},{"$f":"Lighting!AG654","v":0},{"$f":"Lighting!AH654","v":0},{"$f":"Lighting!AI654","v":0}]
[0,{"$f":"Lighting!B655","v":647},{"$f":"Lighting!C655","v":0},{"$f":"Lighting!D655","v":0},{"$f":"Lighting!F655","v":0},{"$f":"Lighting!G655","v":0},{"$f":"Lighting!H655","v":0},{"$f":"Lighting!I655","v":0},{"$f":"Lighting!J655","v":0},{"$f":"Lighting!K655","v":0},{"$f":"Lighting!L655","v":0},{"$f":"Lighting!N655","v":0},{"$f":"Lighting!O655","v":0},{"$f":"Lighting!R655","v":0},{"$f":"Lighting!S655","v":0},{"$f":"Lighting!U655","v":""},{"$f":"Lighting!V655","v":""},{"$f":"Lighting!W655","v":""},{"$f":"Lighting!X655","v":0},{"$f":"Lighting!Y655","v":""},{"$f":"Lighting!AA655","v":""},{"$f":"Lighting!AC655","v":""},{"$f":"Lighting!AF655","v":""},{"$f":"Lighting!AG655","v":0},{"$f":"Lighting!AH655","v":0},{"$f":"Lighting!AI655","v":0}]
[{"$f":"IF(G812=0,0,1)","v":0},{"$f":"Lighting!B656","v":648},{"$f":"Lighting!C656","v":0},{"$f":"Lighting!D656","v":0},{"$f":"Lighting!F656","v":0},{"$f":"Lighting!G656","v":0},{"$f":"Lighting!H656","v":0},{"$f":"Lighting!I656","v":0},{"$f":"Lighting!J656","v":0},{"$f":"Lighting!K656","v":0},{"$f":"Lighting!L656","v":0},{"$f":"Lighting!N656","v":0},{"$f":"Lighting!O656","v":0},{"$f":"Lighting!R656","v":0},{"$f":"Lighting!S656","v":0},{"$f":"Lighting!U656","v":""},{"$f":"Lighting!V656","v":""},{"$f":"Lighting!W656","v":""},{"$f":"Lighting!X656","v":0},{"$f":"Lighting!Y656","v":""},{"$f":"Lighting!AA656","v":""},{"$f":"Lighting!AC656","v":""},{"$f":"Lighting!AF656","v":""},{"$f":"Lighting!AG656","v":0},{"$f":"Lighting!AH656","v":0},{"$f":"Lighting!AI656","v":0}]
[0,{"$f":"Lighting!B657","v":649},{"$f":"Lighting!C657","v":0},{"$f":"Lighting!D657","v":0},{"$f":"Lighting!F657","v":0},{"$f":"Lighting!G657","v":0},{"$f":"Lighting!H657","v":0},{"$f":"Lighting!I657","v":0},{"$f":"Lighting!J657","v":0},{"$f":"Lighting!K657","v":0},{"$f":"Lighting!L657","v":0},{"$f":"Lighting!N657","v":0},{"$f":"Lighting!O657","v":0},{"$f":"Lighting!R657","v":0},{"$f":"Lighting!S657","v":0},{"$f":"Lighting!U657","v":""},{"$f":"Lighting!V657","v":""},{"$f":"Lighting!W657","v":""},{"$f":"Lighting!X657","v":0},{"$f":"Lighting!Y657","v":""},{"$f":"Lighting!AA657","v":""},{"$f":"Lighting!AC657","v":""},{"$f":"Lighting!AF657","v":""},{"$f":"Lighting!AG657","v":0},{"$f":"Lighting!AH657","v":0},{"$f":"Lighting!AI657","v":0}]
[0,{"$f":"Lighting!B658","v":650},{"$f":"Lighting!C658","v":0},{"$f":"Lighting!D658","v":0},{"$f":"Lighting!F658","v":0},{"$f":"Lighting!G658","v":0},{"$f":"Lighting!H658","v":0},{"$f":"Lighting!I658","v":0},{"$f":"Lighting!J658","v":0},{"$f":"Lighting!K658","v":0},{"$f":"Lighting!L658","v":0},{"$f":"Lighting!N658","v":0},{"$f":"Lighting!O658","v":0},{"$f":"Lighting!R658","v":0},{"$f":"Lighting!S658","v":0},{"$f":"Lighting!U658","v":""},{"$f":"Lighting!V658","v":""},{"$f":"Lighting!W658","v":""},{"$f":"Lighting!X658","v":0},{"$f":"Lighting!Y658","v":""},{"$f":"Lighting!AA658","v":""},{"$f":"Lighting!AC658","v":""},{"$f":"Lighting!AF658","v":""},{"$f":"Lighting!AG658","v":0},{"$f":"Lighting!AH658","v":0},{"$f":"Lighting!AI658","v":0}]
[0,{"$f":"Lighting!B659","v":651},{"$f":"Lighting!C659","v":0},{"$f":"Lighting!D659","v":0},{"$f":"Lighting!F659","v":0},{"$f":"Lighting!G659","v":0},{"$f":"Lighting!H659","v":0},{"$f":"Lighting!I659","v":0},{"$f":"Lighting!J659","v":0},{"$f":"Lighting!K659","v":0},{"$f":"Lighting!L659","v":0},{"$f":"Lighting!N659","v":0},{"$f":"Lighting!O659","v":0},{"$f":"Lighting!R659","v":0},{"$f":"Lighting!S659","v":0},{"$f":"Lighting!U659","v":""},{"$f":"Lighting!V659","v":""},{"$f":"Lighting!W659","v":""},{"$f":"Lighting!X659","v":0},{"$f":"Lighting!Y659","v":""},{"$f":"Lighting!AA659","v":""},{"$f":"Lighting!AC659","v":""},{"$f":"Lighting!AF659","v":""},{"$f":"Lighting!AG659","v":0},{"$f":"Lighting!AH659","v":0},{"$f":"Lighting!AI659","v":0}]
[0,{"$f":"Lighting!B660","v":652},{"$f":"Lighting!C660","v":0},{"$f":"Lighting!D660","v":0},{"$f":"Lighting!F660","v":0},{"$f":"Lighting!G660","v":0},{"$f":"Lighting!H660","v":0},{"$f":"Lighting!I660","v":0},{"$f":"Lighting!J660","v":0},{"$f":"Lighting!K660","v":0},{"$f":"Lighting!L660","v":0},{"$f":"Lighting!N660","v":0},{"$f":"Lighting!O660","v":0},{"$f":"Lighting!R660","v":0},{"$f":"Lighting!S660","v":0},{"$f":"Lighting!U660","v":""},{"$f":"Lighting!V660","v":""},{"$f":"Lighting!W660","v":""},{"$f":"Lighting!X660","v":0},{"$f":"Lighting!Y660","v":""},{"$f":"Lighting!AA660","v":""},{"$f":"Lighting!AC660","v":""},{"$f":"Lighting!AF660","v":""},{"$f":"Lighting!AG660","v":0},{"$f":"Lighting!AH660","v":0},{"$f":"Lighting!AI660","v":0}]
[0,{"$f":"Lighting!B661","v":653},{"$f":"Lighting!C661","v":0},{"$f":"Lighting!D661","v":0},{"$f":"Lighting!F661","v":0},{"$f":"Lighting!G661","v":0},{"$f":"Lighting!H661","v":0},{"$f":"Lighting!I661","v":0},{"$f":"Lighting!J661","v":0},{"$f":"Lighting!K661","v":0},{"$f":"Lighting!L661","v":0},{"$f":"Lighting!N661","v":0},{"$f":"Lighting!O661","v":0},{"$f":"Lighting!R661","v":0},{"$f":"Lighting!S661","v":0},{"$f":"Lighting!U661","v":""},{"$f":"Lighting!V661","v":""},{"$f":"Lighting!W661","v":""},{"$f":"Lighting!X661","v":0},{"$f":"Lighting!Y661","v":""},{"$f":"Lighting!AA661","v":""},{"$f":"Lighting!AC661","v":""},{"$f":"Lighting!AF661","v":""},{"$f":"Lighting!AG661","v":0},{"$f":"Lighting!AH661","v":0},{"$f":"Lighting!AI661","v":0}]
[0,{"$f":"Lighting!B662","v":654},{"$f":"Lighting!C662","v":0},{"$f":"Lighting!D662","v":0},{"$f":"Lighting!F662","v":0},{"$f":"Lighting!G662","v":0},{"$f":"Lighting!H662","v":0},{"$f":"Lighting!I662","v":0},{"$f":"Lighting!J662","v":0},{"$f":"Lighting!K662","v":0},{"$f":"Lighting!L662","v":0},{"$f":"Lighting!N662","v":0},{"$f":"Lighting!O662","v":0},{"$f":"Lighting!R662","v":0},{"$f":"Lighting!S662","v":0},{"$f":"Lighting!U662","v":""},{"$f":"Lighting!V662","v":""},{"$f":"Lighting!W662","v":""},{"$f":"Lighting!X662","v":0},{"$f":"Lighting!Y662","v":""},{"$f":"Lighting!AA662","v":""},{"$f":"Lighting!AC662","v":""},{"$f":"Lighting!AF662","v":""},{"$f":"Lighting!AG662","v":0},{"$f":"Lighting!AH662","v":0},{"$f":"Lighting!AI662","v":0}]
[0,{"$f":"Lighting!B663","v":655},{"$f":"Lighting!C663","v":0},{"$f":"Lighting!D663","v":0},{"$f":"Lighting!F663","v":0},{"$f":"Lighting!G663","v":0},{"$f":"Lighting!H663","v":0},{"$f":"Lighting!I663","v":0},{"$f":"Lighting!J663","v":0},{"$f":"Lighting!K663","v":0},{"$f":"Lighting!L663","v":0},{"$f":"Lighting!N663","v":0},{"$f":"Lighting!O663","v":0},{"$f":"Lighting!R663","v":0},{"$f":"Lighting!S663","v":0},{"$f":"Lighting!U663","v":""},{"$f":"Lighting!V663","v":""},{"$f":"Lighting!W663","v":""},{"$f":"Lighting!X663","v":0},{"$f":"Lighting!Y663","v":""},{"$f":"Lighting!AA663","v":""},{"$f":"Lighting!AC663","v":""},{"$f":"Lighting!AF663","v":""},{"$f":"Lighting!AG663","v":0},{"$f":"Lighting!AH663","v":0},{"$f":"Lighting!AI663","v":0}]
[0,{"$f":"Lighting!B664","v":656},{"$f":"Lighting!C664","v":0},{"$f":"Lighting!D664","v":0},{"$f":"Lighting!F664","v":0},{"$f":"Lighting!G664","v":0},{"$f":"Lighting!H664","v":0},{"$f":"Lighting!I664","v":0},{"$f":"Lighting!J664","v":0},{"$f":"Lighting!K664","v":0},{"$f":"Lighting!L664","v":0},{"$f":"Lighting!N664","v":0},{"$f":"Lighting!O664","v":0},{"$f":"Lighting!R664","v":0},{"$f":"Lighting!S664","v":0},{"$f":"Lighting!U664","v":""},{"$f":"Lighting!V664","v":""},{"$f":"Lighting!W664","v":""},{"$f":"Lighting!X664","v":0},{"$f":"Lighting!Y664","v":""},{"$f":"Lighting!AA664","v":""},{"$f":"Lighting!AC664","v":""},{"$f":"Lighting!AF664","v":""},{"$f":"Lighting!AG664","v":0},{"$f":"Lighting!AH664","v":0},{"$f":"Lighting!AI664","v":0}]
[0,{"$f":"Lighting!B665","v":657},{"$f":"Lighting!C665","v":0},{"$f":"Lighting!D665","v":0},{"$f":"Lighting!F665","v":0},{"$f":"Lighting!G665","v":0},{"$f":"Lighting!H665","v":0},{"$f":"Lighting!I665","v":0},{"$f":"Lighting!J665","v":0},{"$f":"Lighting!K665","v":0},{"$f":"Lighting!L665","v":0},{"$f":"Lighting!N665","v":0},{"$f":"Lighting!O665","v":0},{"$f":"Lighting!R665","v":0},{"$f":"Lighting!S665","v":0},{"$f":"Lighting!U665","v":""},{"$f":"Lighting!V665","v":""},{"$f":"Lighting!W665","v":""},{"$f":"Lighting!X665","v":0},{"$f":"Lighting!Y665","v":""},{"$f":"Lighting!AA665","v":""},{"$f":"Lighting!AC665","v":""},{"$f":"Lighting!AF665","v":""},{"$f":"Lighting!AG665","v":0},{"$f":"Lighting!AH665","v":0},{"$f":"Lighting!AI665","v":0}]
[0,{"$f":"Lighting!B666","v":658},{"$f":"Lighting!C666","v":0},{"$f":"Lighting!D666","v":0},{"$f":"Lighting!F666","v":0},{"$f":"Lighting!G666","v":0},{"$f":"Lighting!H666","v":0},{"$f":"Lighting!I666","v":0},{"$f":"Lighting!J666","v":0},{"$f":"Lighting!K666","v":0},{"$f":"Lighting!L666","v":0},{"$f":"Lighting!N666","v":0},{"$f":"Lighting!O666","v":0},{"$f":"Lighting!R666","v":0},{"$f":"Lighting!S666","v":0},{"$f":"Lighting!U666","v":""},{"$f":"Lighting!V666","v":""},{"$f":"Lighting!W666","v":""},{"$f":"Lighting!X666","v":0},{"$f":"Lighting!Y666","v":""},{"$f":"Lighting!AA666","v":""},{"$f":"Lighting!AC666","v":""},{"$f":"Lighting!AF666","v":""},{"$f":"Lighting!AG666","v":0},{"$f":"Lighting!AH666","v":0},{"$f":"Lighting!AI666","v":0}]
[0,{"$f":"Lighting!B667","v":659},{"$f":"Lighting!C667","v":0},{"$f":"Lighting!D667","v":0},{"$f":"Lighting!F667","v":0},{"$f":"Lighting!G667","v":0},{"$f":"Lighting!H667","v":0},{"$f":"Lighting!I667","v":0},{"$f":"Lighting!J667","v":0},{"$f":"Lighting!K667","v":0},{"$f":"Lighting!L667","v":0},{"$f":"Lighting!N667","v":0},{"$f":"Lighting!O667","v":0},{"$f":"Lighting!R667","v":0},{"$f":"Lighting!S667","v":0},{"$f":"Lighting!U667","v":""},{"$f":"Lighting!V667","v":""},{"$f":"Lighting!W667","v":""},{"$f":"Lighting!X667","v":0},{"$f":"Lighting!Y667","v":""},{"$f":"Lighting!AA667","v":""},{"$f":"Lighting!AC667","v":""},{"$f":"Lighting!AF667","v":""},{"$f":"Lighting!AG667","v":0},{"$f":"Lighting!AH667","v":0},{"$f":"Lighting!AI667","v":0}]
[0,{"$f":"Lighting!B668","v":660},{"$f":"Lighting!C668","v":0},{"$f":"Lighting!D668","v":0},{"$f":"Lighting!F668","v":0},{"$f":"Lighting!G668","v":0},{"$f":"Lighting!H668","v":0},{"$f":"Lighting!I668","v":0},{"$f":"Lighting!J668","v":0},{"$f":"Lighting!K668","v":0},{"$f":"Lighting!L668","v":0},{"$f":"Lighting!N668","v":0},{"$f":"Lighting!O668","v":0},{"$f":"Lighting!R668","v":0},{"$f":"Lighting!S668","v":0},{"$f":"Lighting!U668","v":""},{"$f":"Lighting!V668","v":""},{"$f":"Lighting!W668","v":""},{"$f":"Lighting!X668","v":0},{"$f":"Lighting!Y668","v":""},{"$f":"Lighting!AA668","v":""},{"$f":"Lighting!AC668","v":""},{"$f":"Lighting!AF668","v":""},{"$f":"Lighting!AG668","v":0},{"$f":"Lighting!AH668","v":0},{"$f":"Lighting!AI668","v":0}]
[0,{"$f":"Lighting!B669","v":661},{"$f":"Lighting!C669","v":0},{"$f":"Lighting!D669","v":0},{"$f":"Lighting!F669","v":0},{"$f":"Lighting!G669","v":0},{"$f":"Lighting!H669","v":0},{"$f":"Lighting!I669","v":0},{"$f":"Lighting!J669","v":0},{"$f":"Lighting!K669","v":0},{"$f":"Lighting!L669","v":0},{"$f":"Lighting!N669","v":0},{"$f":"Lighting!O669","v":0},{"$f":"Lighting!R669","v":0},{"$f":"Lighting!S669","v":0},{"$f":"Lighting!U669","v":""},{"$f":"Lighting!V669","v":""},{"$f":"Lighting!W669","v":""},{"$f":"Lighting!X669","v":0},{"$f":"Lighting!Y669","v":""},{"$f":"Lighting!AA669","v":""},{"$f":"Lighting!AC669","v":""},{"$f":"Lighting!AF669","v":""},{"$f":"Lighting!AG669","v":0},{"$f":"Lighting!AH669","v":0},{"$f":"Lighting!AI669","v":0}]
[0,{"$f":"Lighting!B670","v":662},{"$f":"Lighting!C670","v":0},{"$f":"Lighting!D670","v":0},{"$f":"Lighting!F670","v":0},{"$f":"Lighting!G670","v":0},{"$f":"Lighting!H670","v":0},{"$f":"Lighting!I670","v":0},{"$f":"Lighting!J670","v":0},{"$f":"Lighting!K670","v":0},{"$f":"Lighting!L670","v":0},{"$f":"Lighting!N670","v":0},{"$f":"Lighting!O670","v":0},{"$f":"Lighting!R670","v":0},{"$f":"Lighting!S670","v":0},{"$f":"Lighting!U670","v":""},{"$f":"Lighting!V670","v":""},{"$f":"Lighting!W670","v":""},{"$f":"Lighting!X670","v":0},{"$f":"Lighting!Y670","v":""},{"$f":"Lighting!AA670","v":""},{"$f":"Lighting!AC670","v":""},{"$f":"Lighting!AF670","v":""},{"$f":"Lighting!AG670","v":0},{"$f":"Lighting!AH670","v":0},{"$f":"Lighting!AI670","v":0}]
[0,{"$f":"Lighting!B671","v":663},{"$f":"Lighting!C671","v":0},{"$f":"Lighting!D671","v":0},{"$f":"Lighting!F671","v":0},{"$f":"Lighting!G671","v":0},{"$f":"Lighting!H671","v":0},{"$f":"Lighting!I671","v":0},{"$f":"Lighting!J671","v":0},{"$f":"Lighting!K671","v":0},{"$f":"Lighting!L671","v":0},{"$f":"Lighting!N671","v":0},{"$f":"Lighting!O671","v":0},{"$f":"Lighting!R671","v":0},{"$f":"Lighting!S671","v":0},{"$f":"Lighting!U671","v":""},{"$f":"Lighting!V671","v":""},{"$f":"Lighting!W671","v":""},{"$f":"Lighting!X671","v":0},{"$f":"Lighting!Y671","v":""},{"$f":"Lighting!AA671","v":""},{"$f":"Lighting!AC671","v":""},{"$f":"Lighting!AF671","v":""},{"$f":"Lighting!AG671","v":0},{"$f":"Lighting!AH671","v":0},{"$f":"Lighting!AI671","v":0}]
[0,{"$f":"Lighting!B672","v":664},{"$f":"Lighting!C672","v":0},{"$f":"Lighting!D672","v":0},{"$f":"Lighting!F672","v":0},{"$f":"Lighting!G672","v":0},{"$f":"Lighting!H672","v":0},{"$f":"Lighting!I672","v":0},{"$f":"Lighting!J672","v":0},{"$f":"Lighting!K672","v":0},{"$f":"Lighting!L672","v":0},{"$f":"Lighting!N672","v":0},{"$f":"Lighting!O672","v":0},{"$f":"Lighting!R672","v":0},{"$f":"Lighting!S672","v":0},{"$f":"Lighting!U672","v":""},{"$f":"Lighting!V672","v":""},{"$f":"Lighting!W672","v":""},{"$f":"Lighting!X672","v":0},{"$f":"Lighting!Y672","v":""},{"$f":"Lighting!AA672","v":""},{"$f":"Lighting!AC672","v":""},{"$f":"Lighting!AF672","v":""},{"$f":"Lighting!AG672","v":0},{"$f":"Lighting!AH672","v":0},{"$f":"Lighting!AI672","v":0}]
[0,{"$f":"Lighting!B673","v":665},{"$f":"Lighting!C673","v":0},{"$f":"Lighting!D673","v":0},{"$f":"Lighting!F673","v":0},{"$f":"Lighting!G673","v":0},{"$f":"Lighting!H673","v":0},{"$f":"Lighting!I673","v":0},{"$f":"Lighting!J673","v":0},{"$f":"Lighting!K673","v":0},{"$f":"Lighting!L673","v":0},{"$f":"Lighting!N673","v":0},{"$f":"Lighting!O673","v":0},{"$f":"Lighting!R673","v":0},{"$f":"Lighting!S673","v":0},{"$f":"Lighting!U673","v":""},{"$f":"Lighting!V673","v":""},{"$f":"Lighting!W673","v":""},{"$f":"Lighting!X673","v":0},{"$f":"Lighting!Y673","v":""},{"$f":"Lighting!AA673","v":""},{"$f":"Lighting!AC673","v":""},{"$f":"Lighting!AF673","v":""},{"$f":"Lighting!AG673","v":0},{"$f":"Lighting!AH673","v":0},{"$f":"Lighting!AI673","v":0}]
[0,{"$f":"Lighting!B674","v":666},{"$f":"Lighting!C674","v":0},{"$f":"Lighting!D674","v":0},{"$f":"Lighting!F674","v":0},{"$f":"Lighting!G674","v":0},{"$f":"Lighting!H674","v":0},{"$f":"Lighting!I674","v":0},{"$f":"Lighting!J674","v":0},{"$f":"Lighting!K674","v":0},{"$f":"Lighting!L674","v":0},{"$f":"Lighting!N674","v":0},{"$f":"Lighting!O674","v":0},{"$f":"Lighting!R674","v":0},{"$f":"Lighting!S674","v":0},{"$f":"Lighting!U674","v":""},{"$f":"Lighting!V674","v":""},{"$f":"Lighting!W674","v":""},{"$f":"Lighting!X674","v":0},{"$f":"Lighting!Y674","v":""},{"$f":"Lighting!AA674","v":""},{"$f":"Lighting!AC674","v":""},{"$f":"Lighting!AF674","v":""},{"$f":"Lighting!AG674","v":0},{"$f":"Lighting!AH674","v":0},{"$f":"Lighting!AI674","v":0}]
[0,{"$f":"Lighting!B675","v":667},{"$f":"Lighting!C675","v":0},{"$f":"Lighting!D675","v":0},{"$f":"Lighting!F675","v":0},{"$f":"Lighting!G675","v":0},{"$f":"Lighting!H675","v":0},{"$f":"Lighting!I675","v":0},{"$f":"Lighting!J675","v":0},{"$f":"Lighting!K675","v":0},{"$f":"Lighting!L675","v":0},{"$f":"Lighting!N675","v":0},{"$f":"Lighting!O675","v":0},{"$f":"Lighting!R675","v":0},{"$f":"Lighting!S675","v":0},{"$f":"Lighting!U675","v":""},{"$f":"Lighting!V675","v":""},{"$f":"Lighting!W675","v":""},{"$f":"Lighting!X675","v":0},{"$f":"Lighting!Y675","v":""},{"$f":"Lighting!AA675","v":""},{"$f":"Lighting!AC675","v":""},{"$f":"Lighting!AF675","v":""},{"$f":"Lighting!AG675","v":0},{"$f":"Lighting!AH675","v":0},{"$f":"Lighting!AI675","v":0}]
[0,{"$f":"Lighting!B676","v":668},{"$f":"Lighting!C676","v":0},{"$f":"Lighting!D676","v":0},{"$f":"Lighting!F676","v":0},{"$f":"Lighting!G676","v":0},{"$f":"Lighting!H676","v":0},{"$f":"Lighting!I676","v":0},{"$f":"Lighting!J676","v":0},{"$f":"Lighting!K676","v":0},{"$f":"Lighting!L676","v":0},{"$f":"Lighting!N676","v":0},{"$f":"Lighting!O676","v":0},{"$f":"Lighting!R676","v":0},{"$f":"Lighting!S676","v":0},{"$f":"Lighting!U676","v":""},{"$f":"Lighting!V676","v":""},{"$f":"Lighting!W676","v":""},{"$f":"Lighting!X676","v":0},{"$f":"Lighting!Y676","v":""},{"$f":"Lighting!AA676","v":""},{"$f":"Lighting!AC676","v":""},{"$f":"Lighting!AF676","v":""},{"$f":"Lighting!AG676","v":0},{"$f":"Lighting!AH676","v":0},{"$f":"Lighting!AI676","v":0}]
[0,{"$f":"Lighting!B677","v":669},{"$f":"Lighting!C677","v":0},{"$f":"Lighting!D677","v":0},{"$f":"Lighting!F677","v":0},{"$f":"Lighting!G677","v":0},{"$f":"Lighting!H677","v":0},{"$f":"Lighting!I677","v":0},{"$f":"Lighting!J677","v":0},{"$f":"Lighting!K677","v":0},{"$f":"Lighting!L677","v":0},{"$f":"Lighting!N677","v":0},{"$f":"Lighting!O677","v":0},{"$f":"Lighting!R677","v":0},{"$f":"Lighting!S677","v":0},{"$f":"Lighting!U677","v":""},{"$f":"Lighting!V677","v":""},{"$f":"Lighting!W677","v":""},{"$f":"Lighting!X677","v":0},{"$f":"Lighting!Y677","v":""},{"$f":"Lighting!AA677","v":""},{"$f":"Lighting!AC677","v":""},{"$f":"Lighting!AF677","v":""},{"$f":"Lighting!AG677","v":0},{"$f":"Lighting!AH677","v":0},{"$f":"Lighting!AI677","v":0}]
[0,{"$f":"Lighting!B678","v":670},{"$f":"Lighting!C678","v":0},{"$f":"Lighting!D678","v":0},{"$f":"Lighting!F678","v":0},{"$f":"Lighting!G678","v":0},{"$f":"Lighting!H678","v":0},{"$f":"Lighting!I678","v":0},{"$f":"Lighting!J678","v":0},{"$f":"Lighting!K678","v":0},{"$f":"Lighting!L678","v":0},{"$f":"Lighting!N678","v":0},{"$f":"Lighting!O678","v":0},{"$f":"Lighting!R678","v":0},{"$f":"Lighting!S678","v":0},{"$f":"Lighting!U678","v":""},{"$f":"Lighting!V678","v":""},{"$f":"Lighting!W678","v":""},{"$f":"Lighting!X678","v":0},{"$f":"Lighting!Y678","v":""},{"$f":"Lighting!AA678","v":""},{"$f":"Lighting!AC678","v":""},{"$f":"Lighting!AF678","v":""},{"$f":"Lighting!AG678","v":0},{"$f":"Lighting!AH678","v":0},{"$f":"Lighting!AI678","v":0}]
[0,{"$f":"Lighting!B679","v":671},{"$f":"Lighting!C679","v":0},{"$f":"Lighting!D679","v":0},{"$f":"Lighting!F679","v":0},{"$f":"Lighting!G679","v":0},{"$f":"Lighting!H679","v":0},{"$f":"Lighting!I679","v":0},{"$f":"Lighting!J679","v":0},{"$f":"Lighting!K679","v":0},{"$f":"Lighting!L679","v":0},{"$f":"Lighting!N679","v":0},{"$f":"Lighting!O679","v":0},{"$f":"Lighting!R679","v":0},{"$f":"Lighting!S679","v":0},{"$f":"Lighting!U679","v":""},{"$f":"Lighting!V679","v":""},{"$f":"Lighting!W679","v":""},{"$f":"Lighting!X679","v":0},{"$f":"Lighting!Y679","v":""},{"$f":"Lighting!AA679","v":""},{"$f":"Lighting!AC679","v":""},{"$f":"Lighting!AF679","v":""},{"$f":"Lighting!AG679","v":0},{"$f":"Lighting!AH679","v":0},{"$f":"Lighting!AI679","v":0}]
[0,{"$f":"Lighting!B680","v":672},{"$f":"Lighting!C680","v":0},{"$f":"Lighting!D680","v":0},{"$f":"Lighting!F680","v":0},{"$f":"Lighting!G680","v":0},{"$f":"Lighting!H680","v":0},{"$f":"Lighting!I680","v":0},{"$f":"Lighting!J680","v":0},{"$f":"Lighting!K680","v":0},{"$f":"Lighting!L680","v":0},{"$f":"Lighting!N680","v":0},{"$f":"Lighting!O680","v":0},{"$f":"Lighting!R680","v":0},{"$f":"Lighting!S680","v":0},{"$f":"Lighting!U680","v":""},{"$f":"Lighting!V680","v":""},{"$f":"Lighting!W680","v":""},{"$f":"Lighting!X680","v":0},{"$f":"Lighting!Y680","v":""},{"$f":"Lighting!AA680","v":""},{"$f":"Lighting!AC680","v":""},{"$f":"Lighting!AF680","v":""},{"$f":"Lighting!AG680","v":0},{"$f":"Lighting!AH680","v":0},{"$f":"Lighting!AI680","v":0}]
[0,{"$f":"Lighting!B681","v":673},{"$f":"Lighting!C681","v":0},{"$f":"Lighting!D681","v":0},{"$f":"Lighting!F681","v":0},{"$f":"Lighting!G681","v":0},{"$f":"Lighting!H681","v":0},{"$f":"Lighting!I681","v":0},{"$f":"Lighting!J681","v":0},{"$f":"Lighting!K681","v":0},{"$f":"Lighting!L681","v":0},{"$f":"Lighting!N681","v":0},{"$f":"Lighting!O681","v":0},{"$f":"Lighting!R681","v":0},{"$f":"Lighting!S681","v":0},{"$f":"Lighting!U681","v":""},{"$f":"Lighting!V681","v":""},{"$f":"Lighting!W681","v":""},{"$f":"Lighting!X681","v":0},{"$f":"Lighting!Y681","v":""},{"$f":"Lighting!AA681","v":""},{"$f":"Lighting!AC681","v":""},{"$f":"Lighting!AF681","v":""},{"$f":"Lighting!AG681","v":0},{"$f":"Lighting!AH681","v":0},{"$f":"Lighting!AI681","v":0}]
[0,{"$f":"Lighting!B682","v":674},{"$f":"Lighting!C682","v":0},{"$f":"Lighting!D682","v":0},{"$f":"Lighting!F682","v":0},{"$f":"Lighting!G682","v":0},{"$f":"Lighting!H682","v":0},{"$f":"Lighting!I682","v":0},{"$f":"Lighting!J682","v":0},{"$f":"Lighting!K682","v":0},{"$f":"Lighting!L682","v":0},{"$f":"Lighting!N682","v":0},{"$f":"Lighting!O682","v":0},{"$f":"Lighting!R682","v":0},{"$f":"Lighting!S682","v":0},{"$f":"Lighting!U682","v":""},{"$f":"Lighting!V682","v":""},{"$f":"Lighting!W682","v":""},{"$f":"Lighting!X682","v":0},{"$f":"Lighting!Y682","v":""},{"$f":"Lighting!AA682","v":""},{"$f":"Lighting!AC682","v":""},{"$f":"Lighting!AF682","v":""},{"$f":"Lighting!AG682","v":0},{"$f":"Lighting!AH682","v":0},{"$f":"Lighting!AI682","v":0}]
[0,{"$f":"Lighting!B683","v":675},{"$f":"Lighting!C683","v":0},{"$f":"Lighting!D683","v":0},{"$f":"Lighting!F683","v":0},{"$f":"Lighting!G683","v":0},{"$f":"Lighting!H683","v":0},{"$f":"Lighting!I683","v":0},{"$f":"Lighting!J683","v":0},{"$f":"Lighting!K683","v":0},{"$f":"Lighting!L683","v":0},{"$f":"Lighting!N683","v":0},{"$f":"Lighting!O683","v":0},{"$f":"Lighting!R683","v":0},{"$f":"Lighting!S683","v":0},{"$f":"Lighting!U683","v":""},{"$f":"Lighting!V683","v":""},{"$f":"Lighting!W683","v":""},{"$f":"Lighting!X683","v":0},{"$f":"Lighting!Y683","v":""},{"$f":"Lighting!AA683","v":""},{"$f":"Lighting!AC683","v":""},{"$f":"Lighting!AF683","v":""},{"$f":"Lighting!AG683","v":0},{"$f":"Lighting!AH683","v":0},{"$f":"Lighting!AI683","v":0}]
[0,{"$f":"Lighting!B684","v":676},{"$f":"Lighting!C684","v":0},{"$f":"Lighting!D684","v":0},{"$f":"Lighting!F684","v":0},{"$f":"Lighting!G684","v":0},{"$f":"Lighting!H684","v":0},{"$f":"Lighting!I684","v":0},{"$f":"Lighting!J684","v":0},{"$f":"Lighting!K684","v":0},{"$f":"Lighting!L684","v":0},{"$f":"Lighting!N684","v":0},{"$f":"Lighting!O684","v":0},{"$f":"Lighting!R684","v":0},{"$f":"Lighting!S684","v":0},{"$f":"Lighting!U684","v":""},{"$f":"Lighting!V684","v":""},{"$f":"Lighting!W684","v":""},{"$f":"Lighting!X684","v":0},{"$f":"Lighting!Y684","v":""},{"$f":"Lighting!AA684","v":""},{"$f":"Lighting!AC684","v":""},{"$f":"Lighting!AF684","v":""},{"$f":"Lighting!AG684","v":0},{"$f":"Lighting!AH684","v":0},{"$f":"Lighting!AI684","v":0}]
[0,{"$f":"Lighting!B685","v":677},{"$f":"Lighting!C685","v":0},{"$f":"Lighting!D685","v":0},{"$f":"Lighting!F685","v":0},{"$f":"Lighting!G685","v":0},{"$f":"Lighting!H685","v":0},{"$f":"Lighting!I685","v":0},{"$f":"Lighting!J685","v":0},{"$f":"Lighting!K685","v":0},{"$f":"Lighting!L685","v":0},{"$f":"Lighting!N685","v":0},{"$f":"Lighting!O685","v":0},{"$f":"Lighting!R685","v":0},{"$f":"Lighting!S685","v":0},{"$f":"Lighting!U685","v":""},{"$f":"Lighting!V685","v":""},{"$f":"Lighting!W685","v":""},{"$f":"Lighting!X685","v":0},{"$f":"Lighting!Y685","v":""},{"$f":"Lighting!AA685","v":""},{"$f":"Lighting!AC685","v":""},{"$f":"Lighting!AF685","v":""},{"$f":"Lighting!AG685","v":0},{"$f":"Lighting!AH685","v":0},{"$f":"Lighting!AI685","v":0}]
[0,{"$f":"Lighting!B686","v":678},{"$f":"Lighting!C686","v":0},{"$f":"Lighting!D686","v":0},{"$f":"Lighting!F686","v":0},{"$f":"Lighting!G686","v":0},{"$f":"Lighting!H686","v":0},{"$f":"Lighting!I686","v":0},{"$f":"Lighting!J686","v":0},{"$f":"Lighting!K686","v":0},{"$f":"Lighting!L686","v":0},{"$f":"Lighting!N686","v":0},{"$f":"Lighting!O686","v":0},{"$f":"Lighting!R686","v":0},{"$f":"Lighting!S686","v":0},{"$f":"Lighting!U686","v":""},{"$f":"Lighting!V686","v":""},{"$f":"Lighting!W686","v":""},{"$f":"Lighting!X686","v":0},{"$f":"Lighting!Y686","v":""},{"$f":"Lighting!AA686","v":""},{"$f":"Lighting!AC686","v":""},{"$f":"Lighting!AF686","v":""},{"$f":"Lighting!AG686","v":0},{"$f":"Lighting!AH686","v":0},{"$f":"Lighting!AI686","v":0}]
[0,{"$f":"Lighting!B687","v":679},{"$f":"Lighting!C687","v":0},{"$f":"Lighting!D687","v":0},{"$f":"Lighting!F687","v":0},{"$f":"Lighting!G687","v":0},{"$f":"Lighting!H687","v":0},{"$f":"Lighting!I687","v":0},{"$f":"Lighting!J687","v":0},{"$f":"Lighting!K687","v":0},{"$f":"Lighting!L687","v":0},{"$f":"Lighting!N687","v":0},{"$f":"Lighting!O687","v":0},{"$f":"Lighting!R687","v":0},{"$f":"Lighting!S687","v":0},{"$f":"Lighting!U687","v":""},{"$f":"Lighting!V687","v":""},{"$f":"Lighting!W687","v":""},{"$f":"Lighting!X687","v":0},{"$f":"Lighting!Y687","v":""},{"$f":"Lighting!AA687","v":""},{"$f":"Lighting!AC687","v":""},{"$f":"Lighting!AF687","v":""},{"$f":"Lighting!AG687","v":0},{"$f":"Lighting!AH687","v":0},{"$f":"Lighting!AI687","v":0}]
[0,{"$f":"Lighting!B688","v":680},{"$f":"Lighting!C688","v":0},{"$f":"Lighting!D688","v":0},{"$f":"Lighting!F688","v":0},{"$f":"Lighting!G688","v":0},{"$f":"Lighting!H688","v":0},{"$f":"Lighting!I688","v":0},{"$f":"Lighting!J688","v":0},{"$f":"Lighting!K688","v":0},{"$f":"Lighting!L688","v":0},{"$f":"Lighting!N688","v":0},{"$f":"Lighting!O688","v":0},{"$f":"Lighting!R688","v":0},{"$f":"Lighting!S688","v":0},{"$f":"Lighting!U688","v":""},{"$f":"Lighting!V688","v":""},{"$f":"Lighting!W688","v":""},{"$f":"Lighting!X688","v":0},{"$f":"Lighting!Y688","v":""},{"$f":"Lighting!AA688","v":""},{"$f":"Lighting!AC688","v":""},{"$f":"Lighting!AF688","v":""},{"$f":"Lighting!AG688","v":0},{"$f":"Lighting!AH688","v":0},{"$f":"Lighting!AI688","v":0}]
[0,{"$f":"Lighting!B689","v":681},{"$f":"Lighting!C689","v":0},{"$f":"Lighting!D689","v":0},{"$f":"Lighting!F689","v":0},{"$f":"Lighting!G689","v":0},{"$f":"Lighting!H689","v":0},{"$f":"Lighting!I689","v":0},{"$f":"Lighting!J689","v":0},{"$f":"Lighting!K689","v":0},{"$f":"Lighting!L689","v":0},{"$f":"Lighting!N689","v":0},{"$f":"Lighting!O689","v":0},{"$f":"Lighting!R689","v":0},{"$f":"Lighting!S689","v":0},{"$f":"Lighting!U689","v":""},{"$f":"Lighting!V689","v":""},{"$f":"Lighting!W689","v":""},{"$f":"Lighting!X689","v":0},{"$f":"Lighting!Y689","v":""},{"$f":"Lighting!AA689","v":""},{"$f":"Lighting!AC689","v":""},{"$f":"Lighting!AF689","v":""},{"$f":"Lighting!AG689","v":0},{"$f":"Lighting!AH689","v":0},{"$f":"Lighting!AI689","v":0}]
[0,{"$f":"Lighting!B690","v":682},{"$f":"Lighting!C690","v":0},{"$f":"Lighting!D690","v":0},{"$f":"Lighting!F690","v":0},{"$f":"Lighting!G690","v":0},{"$f":"Lighting!H690","v":0},{"$f":"Lighting!I690","v":0},{"$f":"Lighting!J690","v":0},{"$f":"Lighting!K690","v":0},{"$f":"Lighting!L690","v":0},{"$f":"Lighting!N690","v":0},{"$f":"Lighting!O690","v":0},{"$f":"Lighting!R690","v":0},{"$f":"Lighting!S690","v":0},{"$f":"Lighting!U690","v":""},{"$f":"Lighting!V690","v":""},{"$f":"Lighting!W690","v":""},{"$f":"Lighting!X690","v":0},{"$f":"Lighting!Y690","v":""},{"$f":"Lighting!AA690","v":""},{"$f":"Lighting!AC690","v":""},{"$f":"Lighting!AF690","v":""},{"$f":"Lighting!AG690","v":0},{"$f":"Lighting!AH690","v":0},{"$f":"Lighting!AI690","v":0}]
[0,{"$f":"Lighting!B691","v":683},{"$f":"Lighting!C691","v":0},{"$f":"Lighting!D691","v":0},{"$f":"Lighting!F691","v":0},{"$f":"Lighting!G691","v":0},{"$f":"Lighting!H691","v":0},{"$f":"Lighting!I691","v":0},{"$f":"Lighting!J691","v":0},{"$f":"Lighting!K691","v":0},{"$f":"Lighting!L691","v":0},{"$f":"Lighting!N691","v":0},{"$f":"Lighting!O691","v":0},{"$f":"Lighting!R691","v":0},{"$f":"Lighting!S691","v":0},{"$f":"Lighting!U691","v":""},{"$f":"Lighting!V691","v":""},{"$f":"Lighting!W691","v":""},{"$f":"Lighting!X691","v":0},{"$f":"Lighting!Y691","v":""},{"$f":"Lighting!AA691","v":""},{"$f":"Lighting!AC691","v":""},{"$f":"Lighting!AF691","v":""},{"$f":"Lighting!AG691","v":0},{"$f":"Lighting!AH691","v":0},{"$f":"Lighting!AI691","v":0}]
[0,{"$f":"Lighting!B692","v":684},{"$f":"Lighting!C692","v":0},{"$f":"Lighting!D692","v":0},{"$f":"Lighting!F692","v":0},{"$f":"Lighting!G692","v":0},{"$f":"Lighting!H692","v":0},{"$f":"Lighting!I692","v":0},{"$f":"Lighting!J692","v":0},{"$f":"Lighting!K692","v":0},{"$f":"Lighting!L692","v":0},{"$f":"Lighting!N692","v":0},{"$f":"Lighting!O692","v":0},{"$f":"Lighting!R692","v":0},{"$f":"Lighting!S692","v":0},{"$f":"Lighting!U692","v":""},{"$f":"Lighting!V692","v":""},{"$f":"Lighting!W692","v":""},{"$f":"Lighting!X692","v":0},{"$f":"Lighting!Y692","v":""},{"$f":"Lighting!AA692","v":""},{"$f":"Lighting!AC692","v":""},{"$f":"Lighting!AF692","v":""},{"$f":"Lighting!AG692","v":0},{"$f":"Lighting!AH692","v":0},{"$f":"Lighting!AI692","v":0}]
[0,{"$f":"Lighting!B693","v":685},{"$f":"Lighting!C693","v":0},{"$f":"Lighting!D693","v":0},{"$f":"Lighting!F693","v":0},{"$f":"Lighting!G693","v":0},{"$f":"Lighting!H693","v":0},{"$f":"Lighting!I693","v":0},{"$f":"Lighting!J693","v":0},{"$f":"Lighting!K693","v":0},{"$f":"Lighting!L693","v":0},{"$f":"Lighting!N693","v":0},{"$f":"Lighting!O693","v":0},{"$f":"Lighting!R693","v":0},{"$f":"Lighting!S693","v":0},{"$f":"Lighting!U693","v":""},{"$f":"Lighting!V693","v":""},{"$f":"Lighting!W693","v":""},{"$f":"Lighting!X693","v":0},{"$f":"Lighting!Y693","v":""},{"$f":"Lighting!AA693","v":""},{"$f":"Lighting!AC693","v":""},{"$f":"Lighting!AF693","v":""},{"$f":"Lighting!AG693","v":0},{"$f":"Lighting!AH693","v":0},{"$f":"Lighting!AI693","v":0}]
[0,{"$f":"Lighting!B694","v":686},{"$f":"Lighting!C694","v":0},{"$f":"Lighting!D694","v":0},{"$f":"Lighting!F694","v":0},{"$f":"Lighting!G694","v":0},{"$f":"Lighting!H694","v":0},{"$f":"Lighting!I694","v":0},{"$f":"Lighting!J694","v":0},{"$f":"Lighting!K694","v":0},{"$f":"Lighting!L694","v":0},{"$f":"Lighting!N694","v":0},{"$f":"Lighting!O694","v":0},{"$f":"Lighting!R694","v":0},{"$f":"Lighting!S694","v":0},{"$f":"Lighting!U694","v":""},{"$f":"Lighting!V694","v":""},{"$f":"Lighting!W694","v":""},{"$f":"Lighting!X694","v":0},{"$f":"Lighting!Y694","v":""},{"$f":"Lighting!AA694","v":""},{"$f":"Lighting!AC694","v":""},{"$f":"Lighting!AF694","v":""},{"$f":"Lighting!AG694","v":0},{"$f":"Lighting!AH694","v":0},{"$f":"Lighting!AI694","v":0}]
[0,{"$f":"Lighting!B695","v":687},{"$f":"Lighting!C695","v":0},{"$f":"Lighting!D695","v":0},{"$f":"Lighting!F695","v":0},{"$f":"Lighting!G695","v":0},{"$f":"Lighting!H695","v":0},{"$f":"Lighting!I695","v":0},{"$f":"Lighting!J695","v":0},{"$f":"Lighting!K695","v":0},{"$f":"Lighting!L695","v":0},{"$f":"Lighting!N695","v":0},{"$f":"Lighting!O695","v":0},{"$f":"Lighting!R695","v":0},{"$f":"Lighting!S695","v":0},{"$f":"Lighting!U695","v":""},{"$f":"Lighting!V695","v":""},{"$f":"Lighting!W695","v":""},{"$f":"Lighting!X695","v":0},{"$f":"Lighting!Y695","v":""},{"$f":"Lighting!AA695","v":""},{"$f":"Lighting!AC695","v":""},{"$f":"Lighting!AF695","v":""},{"$f":"Lighting!AG695","v":0},{"$f":"Lighting!AH695","v":0},{"$f":"Lighting!AI695","v":0}]
[0,{"$f":"Lighting!B696","v":688},{"$f":"Lighting!C696","v":0},{"$f":"Lighting!D696","v":0},{"$f":"Lighting!F696","v":0},{"$f":"Lighting!G696","v":0},{"$f":"Lighting!H696","v":0},{"$f":"Lighting!I696","v":0},{"$f":"Lighting!J696","v":0},{"$f":"Lighting!K696","v":0},{"$f":"Lighting!L696","v":0},{"$f":"Lighting!N696","v":0},{"$f":"Lighting!O696","v":0},{"$f":"Lighting!R696","v":0},{"$f":"Lighting!S696","v":0},{"$f":"Lighting!U696","v":""},{"$f":"Lighting!V696","v":""},{"$f":"Lighting!W696","v":""},{"$f":"Lighting!X696","v":0},{"$f":"Lighting!Y696","v":""},{"$f":"Lighting!AA696","v":""},{"$f":"Lighting!AC696","v":""},{"$f":"Lighting!AF696","v":""},{"$f":"Lighting!AG696","v":0},{"$f":"Lighting!AH696","v":0},{"$f":"Lighting!AI696","v":0}]
[0,{"$f":"Lighting!B697","v":689},{"$f":"Lighting!C697","v":0},{"$f":"Lighting!D697","v":0},{"$f":"Lighting!F697","v":0},{"$f":"Lighting!G697","v":0},{"$f":"Lighting!H697","v":0},{"$f":"Lighting!I697","v":0},{"$f":"Lighting!J697","v":0},{"$f":"Lighting!K697","v":0},{"$f":"Lighting!L697","v":0},{"$f":"Lighting!N697","v":0},{"$f":"Lighting!O697","v":0},{"$f":"Lighting!R697","v":0},{"$f":"Lighting!S697","v":0},{"$f":"Lighting!U697","v":""},{"$f":"Lighting!V697","v":""},{"$f":"Lighting!W697","v":""},{"$f":"Lighting!X697","v":0},{"$f":"Lighting!Y697","v":""},{"$f":"Lighting!AA697","v":""},{"$f":"Lighting!AC697","v":""},{"$f":"Lighting!AF697","v":""},{"$f":"Lighting!AG697","v":0},{"$f":"Lighting!AH697","v":0},{"$f":"Lighting!AI697","v":0}]
[0,{"$f":"Lighting!B698","v":690},{"$f":"Lighting!C698","v":0},{"$f":"Lighting!D698","v":0},{"$f":"Lighting!F698","v":0},{"$f":"Lighting!G698","v":0},{"$f":"Lighting!H698","v":0},{"$f":"Lighting!I698","v":0},{"$f":"Lighting!J698","v":0},{"$f":"Lighting!K698","v":0},{"$f":"Lighting!L698","v":0},{"$f":"Lighting!N698","v":0},{"$f":"Lighting!O698","v":0},{"$f":"Lighting!R698","v":0},{"$f":"Lighting!S698","v":0},{"$f":"Lighting!U698","v":""},{"$f":"Lighting!V698","v":""},{"$f":"Lighting!W698","v":""},{"$f":"Lighting!X698","v":0},{"$f":"Lighting!Y698","v":""},{"$f":"Lighting!AA698","v":""},{"$f":"Lighting!AC698","v":""},{"$f":"Lighting!AF698","v":""},{"$f":"Lighting!AG698","v":0},{"$f":"Lighting!AH698","v":0},{"$f":"Lighting!AI698","v":0}]
[0,{"$f":"Lighting!B699","v":691},{"$f":"Lighting!C699","v":0},{"$f":"Lighting!D699","v":0},{"$f":"Lighting!F699","v":0},{"$f":"Lighting!G699","v":0},{"$f":"Lighting!H699","v":0},{"$f":"Lighting!I699","v":0},{"$f":"Lighting!J699","v":0},{"$f":"Lighting!K699","v":0},{"$f":"Lighting!L699","v":0},{"$f":"Lighting!N699","v":0},{"$f":"Lighting!O699","v":0},{"$f":"Lighting!R699","v":0},{"$f":"Lighting!S699","v":0},{"$f":"Lighting!U699","v":""},{"$f":"Lighting!V699","v":""},{"$f":"Lighting!W699","v":""},{"$f":"Lighting!X699","v":0},{"$f":"Lighting!Y699","v":""},{"$f":"Lighting!AA699","v":""},{"$f":"Lighting!AC699","v":""},{"$f":"Lighting!AF699","v":""},{"$f":"Lighting!AG699","v":0},{"$f":"Lighting!AH699","v":0},{"$f":"Lighting!AI699","v":0}]
[0,{"$f":"Lighting!B700","v":692},{"$f":"Lighting!C700","v":0},{"$f":"Lighting!D700","v":0},{"$f":"Lighting!F700","v":0},{"$f":"Lighting!G700","v":0},{"$f":"Lighting!H700","v":0},{"$f":"Lighting!I700","v":0},{"$f":"Lighting!J700","v":0},{"$f":"Lighting!K700","v":0},{"$f":"Lighting!L700","v":0},{"$f":"Lighting!N700","v":0},{"$f":"Lighting!O700","v":0},{"$f":"Lighting!R700","v":0},{"$f":"Lighting!S700","v":0},{"$f":"Lighting!U700","v":""},{"$f":"Lighting!V700","v":""},{"$f":"Lighting!W700","v":""},{"$f":"Lighting!X700","v":0},{"$f":"Lighting!Y700","v":""},{"$f":"Lighting!AA700","v":""},{"$f":"Lighting!AC700","v":""},{"$f":"Lighting!AF700","v":""},{"$f":"Lighting!AG700","v":0},{"$f":"Lighting!AH700","v":0},{"$f":"Lighting!AI700","v":0}]
[0,{"$f":"Lighting!B701","v":693},{"$f":"Lighting!C701","v":0},{"$f":"Lighting!D701","v":0},{"$f":"Lighting!F701","v":0},{"$f":"Lighting!G701","v":0},{"$f":"Lighting!H701","v":0},{"$f":"Lighting!I701","v":0},{"$f":"Lighting!J701","v":0},{"$f":"Lighting!K701","v":0},{"$f":"Lighting!L701","v":0},{"$f":"Lighting!N701","v":0},{"$f":"Lighting!O701","v":0},{"$f":"Lighting!R701","v":0},{"$f":"Lighting!S701","v":0},{"$f":"Lighting!U701","v":""},{"$f":"Lighting!V701","v":""},{"$f":"Lighting!W701","v":""},{"$f":"Lighting!X701","v":0},{"$f":"Lighting!Y701","v":""},{"$f":"Lighting!AA701","v":""},{"$f":"Lighting!AC701","v":""},{"$f":"Lighting!AF701","v":""},{"$f":"Lighting!AG701","v":0},{"$f":"Lighting!AH701","v":0},{"$f":"Lighting!AI701","v":0}]
[0,{"$f":"Lighting!B702","v":694},{"$f":"Lighting!C702","v":0},{"$f":"Lighting!D702","v":0},{"$f":"Lighting!F702","v":0},{"$f":"Lighting!G702","v":0},{"$f":"Lighting!H702","v":0},{"$f":"Lighting!I702","v":0},{"$f":"Lighting!J702","v":0},{"$f":"Lighting!K702","v":0},{"$f":"Lighting!L702","v":0},{"$f":"Lighting!N702","v":0},{"$f":"Lighting!O702","v":0},{"$f":"Lighting!R702","v":0},{"$f":"Lighting!S702","v":0},{"$f":"Lighting!U702","v":""},{"$f":"Lighting!V702","v":""},{"$f":"Lighting!W702","v":""},{"$f":"Lighting!X702","v":0},{"$f":"Lighting!Y702","v":""},{"$f":"Lighting!AA702","v":""},{"$f":"Lighting!AC702","v":""},{"$f":"Lighting!AF702","v":""},{"$f":"Lighting!AG702","v":0},{"$f":"Lighting!AH702","v":0},{"$f":"Lighting!AI702","v":0}]
[0,{"$f":"Lighting!B703","v":695},{"$f":"Lighting!C703","v":0},{"$f":"Lighting!D703","v":0},{"$f":"Lighting!F703","v":0},{"$f":"Lighting!G703","v":0},{"$f":"Lighting!H703","v":0},{"$f":"Lighting!I703","v":0},{"$f":"Lighting!J703","v":0},{"$f":"Lighting!K703","v":0},{"$f":"Lighting!L703","v":0},{"$f":"Lighting!N703","v":0},{"$f":"Lighting!O703","v":0},{"$f":"Lighting!R703","v":0},{"$f":"Lighting!S703","v":0},{"$f":"Lighting!U703","v":""},{"$f":"Lighting!V703","v":""},{"$f":"Lighting!W703","v":""},{"$f":"Lighting!X703","v":0},{"$f":"Lighting!Y703","v":""},{"$f":"Lighting!AA703","v":""},{"$f":"Lighting!AC703","v":""},{"$f":"Lighting!AF703","v":""},{"$f":"Lighting!AG703","v":0},{"$f":"Lighting!AH703","v":0},{"$f":"Lighting!AI703","v":0}]
[0,{"$f":"Lighting!B704","v":696},{"$f":"Lighting!C704","v":0},{"$f":"Lighting!D704","v":0},{"$f":"Lighting!F704","v":0},{"$f":"Lighting!G704","v":0},{"$f":"Lighting!H704","v":0},{"$f":"Lighting!I704","v":0},{"$f":"Lighting!J704","v":0},{"$f":"Lighting!K704","v":0},{"$f":"Lighting!L704","v":0},{"$f":"Lighting!N704","v":0},{"$f":"Lighting!O704","v":0},{"$f":"Lighting!R704","v":0},{"$f":"Lighting!S704","v":0},{"$f":"Lighting!U704","v":""},{"$f":"Lighting!V704","v":""},{"$f":"Lighting!W704","v":""},{"$f":"Lighting!X704","v":0},{"$f":"Lighting!Y704","v":""},{"$f":"Lighting!AA704","v":""},{"$f":"Lighting!AC704","v":""},{"$f":"Lighting!AF704","v":""},{"$f":"Lighting!AG704","v":0},{"$f":"Lighting!AH704","v":0},{"$f":"Lighting!AI704","v":0}]
[0,{"$f":"Lighting!B705","v":697},{"$f":"Lighting!C705","v":0},{"$f":"Lighting!D705","v":0},{"$f":"Lighting!F705","v":0},{"$f":"Lighting!G705","v":0},{"$f":"Lighting!H705","v":0},{"$f":"Lighting!I705","v":0},{"$f":"Lighting!J705","v":0},{"$f":"Lighting!K705","v":0},{"$f":"Lighting!L705","v":0},{"$f":"Lighting!N705","v":0},{"$f":"Lighting!O705","v":0},{"$f":"Lighting!R705","v":0},{"$f":"Lighting!S705","v":0},{"$f":"Lighting!U705","v":""},{"$f":"Lighting!V705","v":""},{"$f":"Lighting!W705","v":""},{"$f":"Lighting!X705","v":0},{"$f":"Lighting!Y705","v":""},{"$f":"Lighting!AA705","v":""},{"$f":"Lighting!AC705","v":""},{"$f":"Lighting!AF705","v":""},{"$f":"Lighting!AG705","v":0},{"$f":"Lighting!AH705","v":0},{"$f":"Lighting!AI705","v":0}]
[0,{"$f":"Lighting!B706","v":698},{"$f":"Lighting!C706","v":0},{"$f":"Lighting!D706","v":0},{"$f":"Lighting!F706","v":0},{"$f":"Lighting!G706","v":0},{"$f":"Lighting!H706","v":0},{"$f":"Lighting!I706","v":0},{"$f":"Lighting!J706","v":0},{"$f":"Lighting!K706","v":0},{"$f":"Lighting!L706","v":0},{"$f":"Lighting!N706","v":0},{"$f":"Lighting!O706","v":0},{"$f":"Lighting!R706","v":0},{"$f":"Lighting!S706","v":0},{"$f":"Lighting!U706","v":""},{"$f":"Lighting!V706","v":""},{"$f":"Lighting!W706","v":""},{"$f":"Lighting!X706","v":0},{"$f":"Lighting!Y706","v":""},{"$f":"Lighting!AA706","v":""},{"$f":"Lighting!AC706","v":""},{"$f":"Lighting!AF706","v":""},{"$f":"Lighting!AG706","v":0},{"$f":"Lighting!AH706","v":0},{"$f":"Lighting!AI706","v":0}]
[0,{"$f":"Lighting!B707","v":699},{"$f":"Lighting!C707","v":0},{"$f":"Lighting!D707","v":0},{"$f":"Lighting!F707","v":0},{"$f":"Lighting!G707","v":0},{"$f":"Lighting!H707","v":0},{"$f":"Lighting!I707","v":0},{"$f":"Lighting!J707","v":0},{"$f":"Lighting!K707","v":0},{"$f":"Lighting!L707","v":0},{"$f":"Lighting!N707","v":0},{"$f":"Lighting!O707","v":0},{"$f":"Lighting!R707","v":0},{"$f":"Lighting!S707","v":0},{"$f":"Lighting!U707","v":""},{"$f":"Lighting!V707","v":""},{"$f":"Lighting!W707","v":""},{"$f":"Lighting!X707","v":0},{"$f":"Lighting!Y707","v":""},{"$f":"Lighting!AA707","v":""},{"$f":"Lighting!AC707","v":""},{"$f":"Lighting!AF707","v":""},{"$f":"Lighting!AG707","v":0},{"$f":"Lighting!AH707","v":0},{"$f":"Lighting!AI707","v":0}]
[0,{"$f":"Lighting!B708","v":700},{"$f":"Lighting!C708","v":0},{"$f":"Lighting!D708","v":0},{"$f":"Lighting!F708","v":0},{"$f":"Lighting!G708","v":0},{"$f":"Lighting!H708","v":0},{"$f":"Lighting!I708","v":0},{"$f":"Lighting!J708","v":0},{"$f":"Lighting!K708","v":0},{"$f":"Lighting!L708","v":0},{"$f":"Lighting!N708","v":0},{"$f":"Lighting!O708","v":0},{"$f":"Lighting!R708","v":0},{"$f":"Lighting!S708","v":0},{"$f":"Lighting!U708","v":""},{"$f":"Lighting!V708","v":""},{"$f":"Lighting!W708","v":""},{"$f":"Lighting!X708","v":0},{"$f":"Lighting!Y708","v":""},{"$f":"Lighting!AA708","v":""},{"$f":"Lighting!AC708","v":""},{"$f":"Lighting!AF708","v":""},{"$f":"Lighting!AG708","v":0},{"$f":"Lighting!AH708","v":0},{"$f":"Lighting!AI708","v":0}]
[0,{"$f":"Lighting!B709","v":701},{"$f":"Lighting!C709","v":0},{"$f":"Lighting!D709","v":0},{"$f":"Lighting!F709","v":0},{"$f":"Lighting!G709","v":0},{"$f":"Lighting!H709","v":0},{"$f":"Lighting!I709","v":0},{"$f":"Lighting!J709","v":0},{"$f":"Lighting!K709","v":0},{"$f":"Lighting!L709","v":0},{"$f":"Lighting!N709","v":0},{"$f":"Lighting!O709","v":0},{"$f":"Lighting!R709","v":0},{"$f":"Lighting!S709","v":0},{"$f":"Lighting!U709","v":""},{"$f":"Lighting!V709","v":""},{"$f":"Lighting!W709","v":""},{"$f":"Lighting!X709","v":0},{"$f":"Lighting!Y709","v":""},{"$f":"Lighting!AA709","v":""},{"$f":"Lighting!AC709","v":""},{"$f":"Lighting!AF709","v":""},{"$f":"Lighting!AG709","v":0},{"$f":"Lighting!AH709","v":0},{"$f":"Lighting!AI709","v":0}]
[0,{"$f":"Lighting!B710","v":702},{"$f":"Lighting!C710","v":0},{"$f":"Lighting!D710","v":0},{"$f":"Lighting!F710","v":0},{"$f":"Lighting!G710","v":0},{"$f":"Lighting!H710","v":0},{"$f":"Lighting!I710","v":0},{"$f":"Lighting!J710","v":0},{"$f":"Lighting!K710","v":0},{"$f":"Lighting!L710","v":0},{"$f":"Lighting!N710","v":0},{"$f":"Lighting!O710","v":0},{"$f":"Lighting!R710","v":0},{"$f":"Lighting!S710","v":0},{"$f":"Lighting!U710","v":""},{"$f":"Lighting!V710","v":""},{"$f":"Lighting!W710","v":""},{"$f":"Lighting!X710","v":0},{"$f":"Lighting!Y710","v":""},{"$f":"Lighting!AA710","v":""},{"$f":"Lighting!AC710","v":""},{"$f":"Lighting!AF710","v":""},{"$f":"Lighting!AG710","v":0},{"$f":"Lighting!AH710","v":0},{"$f":"Lighting!AI710","v":0}]
[0,{"$f":"Lighting!B711","v":703},{"$f":"Lighting!C711","v":0},{"$f":"Lighting!D711","v":0},{"$f":"Lighting!F711","v":0},{"$f":"Lighting!G711","v":0},{"$f":"Lighting!H711","v":0},{"$f":"Lighting!I711","v":0},{"$f":"Lighting!J711","v":0},{"$f":"Lighting!K711","v":0},{"$f":"Lighting!L711","v":0},{"$f":"Lighting!N711","v":0},{"$f":"Lighting!O711","v":0},{"$f":"Lighting!R711","v":0},{"$f":"Lighting!S711","v":0},{"$f":"Lighting!U711","v":""},{"$f":"Lighting!V711","v":""},{"$f":"Lighting!W711","v":""},{"$f":"Lighting!X711","v":0},{"$f":"Lighting!Y711","v":""},{"$f":"Lighting!AA711","v":""},{"$f":"Lighting!AC711","v":""},{"$f":"Lighting!AF711","v":""},{"$f":"Lighting!AG711","v":0},{"$f":"Lighting!AH711","v":0},{"$f":"Lighting!AI711","v":0}]
[0,{"$f":"Lighting!B712","v":704},{"$f":"Lighting!C712","v":0},{"$f":"Lighting!D712","v":0},{"$f":"Lighting!F712","v":0},{"$f":"Lighting!G712","v":0},{"$f":"Lighting!H712","v":0},{"$f":"Lighting!I712","v":0},{"$f":"Lighting!J712","v":0},{"$f":"Lighting!K712","v":0},{"$f":"Lighting!L712","v":0},{"$f":"Lighting!N712","v":0},{"$f":"Lighting!O712","v":0},{"$f":"Lighting!R712","v":0},{"$f":"Lighting!S712","v":0},{"$f":"Lighting!U712","v":""},{"$f":"Lighting!V712","v":""},{"$f":"Lighting!W712","v":""},{"$f":"Lighting!X712","v":0},{"$f":"Lighting!Y712","v":""},{"$f":"Lighting!AA712","v":""},{"$f":"Lighting!AC712","v":""},{"$f":"Lighting!AF712","v":""},{"$f":"Lighting!AG712","v":0},{"$f":"Lighting!AH712","v":0},{"$f":"Lighting!AI712","v":0}]
[0,{"$f":"Lighting!B713","v":705},{"$f":"Lighting!C713","v":0},{"$f":"Lighting!D713","v":0},{"$f":"Lighting!F713","v":0},{"$f":"Lighting!G713","v":0},{"$f":"Lighting!H713","v":0},{"$f":"Lighting!I713","v":0},{"$f":"Lighting!J713","v":0},{"$f":"Lighting!K713","v":0},{"$f":"Lighting!L713","v":0},{"$f":"Lighting!N713","v":0},{"$f":"Lighting!O713","v":0},{"$f":"Lighting!R713","v":0},{"$f":"Lighting!S713","v":0},{"$f":"Lighting!U713","v":""},{"$f":"Lighting!V713","v":""},{"$f":"Lighting!W713","v":""},{"$f":"Lighting!X713","v":0},{"$f":"Lighting!Y713","v":""},{"$f":"Lighting!AA713","v":""},{"$f":"Lighting!AC713","v":""},{"$f":"Lighting!AF713","v":""},{"$f":"Lighting!AG713","v":0},{"$f":"Lighting!AH713","v":0},{"$f":"Lighting!AI713","v":0}]
[0,{"$f":"Lighting!B714","v":706},{"$f":"Lighting!C714","v":0},{"$f":"Lighting!D714","v":0},{"$f":"Lighting!F714","v":0},{"$f":"Lighting!G714","v":0},{"$f":"Lighting!H714","v":0},{"$f":"Lighting!I714","v":0},{"$f":"Lighting!J714","v":0},{"$f":"Lighting!K714","v":0},{"$f":"Lighting!L714","v":0},{"$f":"Lighting!N714","v":0},{"$f":"Lighting!O714","v":0},{"$f":"Lighting!R714","v":0},{"$f":"Lighting!S714","v":0},{"$f":"Lighting!U714","v":""},{"$f":"Lighting!V714","v":""},{"$f":"Lighting!W714","v":""},{"$f":"Lighting!X714","v":0},{"$f":"Lighting!Y714","v":""},{"$f":"Lighting!AA714","v":""},{"$f":"Lighting!AC714","v":""},{"$f":"Lighting!AF714","v":""},{"$f":"Lighting!AG714","v":0},{"$f":"Lighting!AH714","v":0},{"$f":"Lighting!AI714","v":0}]
[0,{"$f":"Lighting!B715","v":707},{"$f":"Lighting!C715","v":0},{"$f":"Lighting!D715","v":0},{"$f":"Lighting!F715","v":0},{"$f":"Lighting!G715","v":0},{"$f":"Lighting!H715","v":0},{"$f":"Lighting!I715","v":0},{"$f":"Lighting!J715","v":0},{"$f":"Lighting!K715","v":0},{"$f":"Lighting!L715","v":0},{"$f":"Lighting!N715","v":0},{"$f":"Lighting!O715","v":0},{"$f":"Lighting!R715","v":0},{"$f":"Lighting!S715","v":0},{"$f":"Lighting!U715","v":""},{"$f":"Lighting!V715","v":""},{"$f":"Lighting!W715","v":""},{"$f":"Lighting!X715","v":0},{"$f":"Lighting!Y715","v":""},{"$f":"Lighting!AA715","v":""},{"$f":"Lighting!AC715","v":""},{"$f":"Lighting!AF715","v":""},{"$f":"Lighting!AG715","v":0},{"$f":"Lighting!AH715","v":0},{"$f":"Lighting!AI715","v":0}]
[0,{"$f":"Lighting!B716","v":708},{"$f":"Lighting!C716","v":0},{"$f":"Lighting!D716","v":0},{"$f":"Lighting!F716","v":0},{"$f":"Lighting!G716","v":0},{"$f":"Lighting!H716","v":0},{"$f":"Lighting!I716","v":0},{"$f":"Lighting!J716","v":0},{"$f":"Lighting!K716","v":0},{"$f":"Lighting!L716","v":0},{"$f":"Lighting!N716","v":0},{"$f":"Lighting!O716","v":0},{"$f":"Lighting!R716","v":0},{"$f":"Lighting!S716","v":0},{"$f":"Lighting!U716","v":""},{"$f":"Lighting!V716","v":""},{"$f":"Lighting!W716","v":""},{"$f":"Lighting!X716","v":0},{"$f":"Lighting!Y716","v":""},{"$f":"Lighting!AA716","v":""},{"$f":"Lighting!AC716","v":""},{"$f":"Lighting!AF716","v":""},{"$f":"Lighting!AG716","v":0},{"$f":"Lighting!AH716","v":0},{"$f":"Lighting!AI716","v":0}]
[0,{"$f":"Lighting!B717","v":709},{"$f":"Lighting!C717","v":0},{"$f":"Lighting!D717","v":0},{"$f":"Lighting!F717","v":0},{"$f":"Lighting!G717","v":0},{"$f":"Lighting!H717","v":0},{"$f":"Lighting!I717","v":0},{"$f":"Lighting!J717","v":0},{"$f":"Lighting!K717","v":0},{"$f":"Lighting!L717","v":0},{"$f":"Lighting!N717","v":0},{"$f":"Lighting!O717","v":0},{"$f":"Lighting!R717","v":0},{"$f":"Lighting!S717","v":0},{"$f":"Lighting!U717","v":""},{"$f":"Lighting!V717","v":""},{"$f":"Lighting!W717","v":""},{"$f":"Lighting!X717","v":0},{"$f":"Lighting!Y717","v":""},{"$f":"Lighting!AA717","v":""},{"$f":"Lighting!AC717","v":""},{"$f":"Lighting!AF717","v":""},{"$f":"Lighting!AG717","v":0},{"$f":"Lighting!AH717","v":0},{"$f":"Lighting!AI717","v":0}]
[0,{"$f":"Lighting!B718","v":710},{"$f":"Lighting!C718","v":0},{"$f":"Lighting!D718","v":0},{"$f":"Lighting!F718","v":0},{"$f":"Lighting!G718","v":0},{"$f":"Lighting!H718","v":0},{"$f":"Lighting!I718","v":0},{"$f":"Lighting!J718","v":0},{"$f":"Lighting!K718","v":0},{"$f":"Lighting!L718","v":0},{"$f":"Lighting!N718","v":0},{"$f":"Lighting!O718","v":0},{"$f":"Lighting!R718","v":0},{"$f":"Lighting!S718","v":0},{"$f":"Lighting!U718","v":""},{"$f":"Lighting!V718","v":""},{"$f":"Lighting!W718","v":""},{"$f":"Lighting!X718","v":0},{"$f":"Lighting!Y718","v":""},{"$f":"Lighting!AA718","v":""},{"$f":"Lighting!AC718","v":""},{"$f":"Lighting!AF718","v":""},{"$f":"Lighting!AG718","v":0},{"$f":"Lighting!AH718","v":0},{"$f":"Lighting!AI718","v":0}]
[0,{"$f":"Lighting!B719","v":711},{"$f":"Lighting!C719","v":0},{"$f":"Lighting!D719","v":0},{"$f":"Lighting!F719","v":0},{"$f":"Lighting!G719","v":0},{"$f":"Lighting!H719","v":0},{"$f":"Lighting!I719","v":0},{"$f":"Lighting!J719","v":0},{"$f":"Lighting!K719","v":0},{"$f":"Lighting!L719","v":0},{"$f":"Lighting!N719","v":0},{"$f":"Lighting!O719","v":0},{"$f":"Lighting!R719","v":0},{"$f":"Lighting!S719","v":0},{"$f":"Lighting!U719","v":""},{"$f":"Lighting!V719","v":""},{"$f":"Lighting!W719","v":""},{"$f":"Lighting!X719","v":0},{"$f":"Lighting!Y719","v":""},{"$f":"Lighting!AA719","v":""},{"$f":"Lighting!AC719","v":""},{"$f":"Lighting!AF719","v":""},{"$f":"Lighting!AG719","v":0},{"$f":"Lighting!AH719","v":0},{"$f":"Lighting!AI719","v":0}]
[{"$f":"IF(G876=0,0,1)","v":0},{"$f":"Lighting!B720","v":712},{"$f":"Lighting!C720","v":0},{"$f":"Lighting!D720","v":0},{"$f":"Lighting!F720","v":0},{"$f":"Lighting!G720","v":0},{"$f":"Lighting!H720","v":0},{"$f":"Lighting!I720","v":0},{"$f":"Lighting!J720","v":0},{"$f":"Lighting!K720","v":0},{"$f":"Lighting!L720","v":0},{"$f":"Lighting!N720","v":0},{"$f":"Lighting!O720","v":0},{"$f":"Lighting!R720","v":0},{"$f":"Lighting!S720","v":0},{"$f":"Lighting!U720","v":""},{"$f":"Lighting!V720","v":""},{"$f":"Lighting!W720","v":""},{"$f":"Lighting!X720","v":0},{"$f":"Lighting!Y720","v":""},{"$f":"Lighting!AA720","v":""},{"$f":"Lighting!AC720","v":""},{"$f":"Lighting!AF720","v":""},{"$f":"Lighting!AG720","v":0},{"$f":"Lighting!AH720","v":0},{"$f":"Lighting!AI720","v":0}]
[0,{"$f":"Lighting!B721","v":713},{"$f":"Lighting!C721","v":0},{"$f":"Lighting!D721","v":0},{"$f":"Lighting!F721","v":0},{"$f":"Lighting!G721","v":0},{"$f":"Lighting!H721","v":0},{"$f":"Lighting!I721","v":0},{"$f":"Lighting!J721","v":0},{"$f":"Lighting!K721","v":0},{"$f":"Lighting!L721","v":0},{"$f":"Lighting!N721","v":0},{"$f":"Lighting!O721","v":0},{"$f":"Lighting!R721","v":0},{"$f":"Lighting!S721","v":0},{"$f":"Lighting!U721","v":""},{"$f":"Lighting!V721","v":""},{"$f":"Lighting!W721","v":""},{"$f":"Lighting!X721","v":0},{"$f":"Lighting!Y721","v":""},{"$f":"Lighting!AA721","v":""},{"$f":"Lighting!AC721","v":""},{"$f":"Lighting!AF721","v":""},{"$f":"Lighting!AG721","v":0},{"$f":"Lighting!AH721","v":0},{"$f":"Lighting!AI721","v":0}]
[0,{"$f":"Lighting!B722","v":714},{"$f":"Lighting!C722","v":0},{"$f":"Lighting!D722","v":0},{"$f":"Lighting!F722","v":0},{"$f":"Lighting!G722","v":0},{"$f":"Lighting!H722","v":0},{"$f":"Lighting!I722","v":0},{"$f":"Lighting!J722","v":0},{"$f":"Lighting!K722","v":0},{"$f":"Lighting!L722","v":0},{"$f":"Lighting!N722","v":0},{"$f":"Lighting!O722","v":0},{"$f":"Lighting!R722","v":0},{"$f":"Lighting!S722","v":0},{"$f":"Lighting!U722","v":""},{"$f":"Lighting!V722","v":""},{"$f":"Lighting!W722","v":""},{"$f":"Lighting!X722","v":0},{"$f":"Lighting!Y722","v":""},{"$f":"Lighting!AA722","v":""},{"$f":"Lighting!AC722","v":""},{"$f":"Lighting!AF722","v":""},{"$f":"Lighting!AG722","v":0},{"$f":"Lighting!AH722","v":0},{"$f":"Lighting!AI722","v":0}]
[0,{"$f":"Lighting!B723","v":715},{"$f":"Lighting!C723","v":0},{"$f":"Lighting!D723","v":0},{"$f":"Lighting!F723","v":0},{"$f":"Lighting!G723","v":0},{"$f":"Lighting!H723","v":0},{"$f":"Lighting!I723","v":0},{"$f":"Lighting!J723","v":0},{"$f":"Lighting!K723","v":0},{"$f":"Lighting!L723","v":0},{"$f":"Lighting!N723","v":0},{"$f":"Lighting!O723","v":0},{"$f":"Lighting!R723","v":0},{"$f":"Lighting!S723","v":0},{"$f":"Lighting!U723","v":""},{"$f":"Lighting!V723","v":""},{"$f":"Lighting!W723","v":""},{"$f":"Lighting!X723","v":0},{"$f":"Lighting!Y723","v":""},{"$f":"Lighting!AA723","v":""},{"$f":"Lighting!AC723","v":""},{"$f":"Lighting!AF723","v":""},{"$f":"Lighting!AG723","v":0},{"$f":"Lighting!AH723","v":0},{"$f":"Lighting!AI723","v":0}]
[0,{"$f":"Lighting!B724","v":716},{"$f":"Lighting!C724","v":0},{"$f":"Lighting!D724","v":0},{"$f":"Lighting!F724","v":0},{"$f":"Lighting!G724","v":0},{"$f":"Lighting!H724","v":0},{"$f":"Lighting!I724","v":0},{"$f":"Lighting!J724","v":0},{"$f":"Lighting!K724","v":0},{"$f":"Lighting!L724","v":0},{"$f":"Lighting!N724","v":0},{"$f":"Lighting!O724","v":0},{"$f":"Lighting!R724","v":0},{"$f":"Lighting!S724","v":0},{"$f":"Lighting!U724","v":""},{"$f":"Lighting!V724","v":""},{"$f":"Lighting!W724","v":""},{"$f":"Lighting!X724","v":0},{"$f":"Lighting!Y724","v":""},{"$f":"Lighting!AA724","v":""},{"$f":"Lighting!AC724","v":""},{"$f":"Lighting!AF724","v":""},{"$f":"Lighting!AG724","v":0},{"$f":"Lighting!AH724","v":0},{"$f":"Lighting!AI724","v":0}]
[0,{"$f":"Lighting!B725","v":717},{"$f":"Lighting!C725","v":0},{"$f":"Lighting!D725","v":0},{"$f":"Lighting!F725","v":0},{"$f":"Lighting!G725","v":0},{"$f":"Lighting!H725","v":0},{"$f":"Lighting!I725","v":0},{"$f":"Lighting!J725","v":0},{"$f":"Lighting!K725","v":0},{"$f":"Lighting!L725","v":0},{"$f":"Lighting!N725","v":0},{"$f":"Lighting!O725","v":0},{"$f":"Lighting!R725","v":0},{"$f":"Lighting!S725","v":0},{"$f":"Lighting!U725","v":""},{"$f":"Lighting!V725","v":""},{"$f":"Lighting!W725","v":""},{"$f":"Lighting!X725","v":0},{"$f":"Lighting!Y725","v":""},{"$f":"Lighting!AA725","v":""},{"$f":"Lighting!AC725","v":""},{"$f":"Lighting!AF725","v":""},{"$f":"Lighting!AG725","v":0},{"$f":"Lighting!AH725","v":0},{"$f":"Lighting!AI725","v":0}]
[0,{"$f":"Lighting!B726","v":718},{"$f":"Lighting!C726","v":0},{"$f":"Lighting!D726","v":0},{"$f":"Lighting!F726","v":0},{"$f":"Lighting!G726","v":0},{"$f":"Lighting!H726","v":0},{"$f":"Lighting!I726","v":0},{"$f":"Lighting!J726","v":0},{"$f":"Lighting!K726","v":0},{"$f":"Lighting!L726","v":0},{"$f":"Lighting!N726","v":0},{"$f":"Lighting!O726","v":0},{"$f":"Lighting!R726","v":0},{"$f":"Lighting!S726","v":0},{"$f":"Lighting!U726","v":""},{"$f":"Lighting!V726","v":""},{"$f":"Lighting!W726","v":""},{"$f":"Lighting!X726","v":0},{"$f":"Lighting!Y726","v":""},{"$f":"Lighting!AA726","v":""},{"$f":"Lighting!AC726","v":""},{"$f":"Lighting!AF726","v":""},{"$f":"Lighting!AG726","v":0},{"$f":"Lighting!AH726","v":0},{"$f":"Lighting!AI726","v":0}]
[0,{"$f":"Lighting!B727","v":719},{"$f":"Lighting!C727","v":0},{"$f":"Lighting!D727","v":0},{"$f":"Lighting!F727","v":0},{"$f":"Lighting!G727","v":0},{"$f":"Lighting!H727","v":0},{"$f":"Lighting!I727","v":0},{"$f":"Lighting!J727","v":0},{"$f":"Lighting!K727","v":0},{"$f":"Lighting!L727","v":0},{"$f":"Lighting!N727","v":0},{"$f":"Lighting!O727","v":0},{"$f":"Lighting!R727","v":0},{"$f":"Lighting!S727","v":0},{"$f":"Lighting!U727","v":""},{"$f":"Lighting!V727","v":""},{"$f":"Lighting!W727","v":""},{"$f":"Lighting!X727","v":0},{"$f":"Lighting!Y727","v":""},{"$f":"Lighting!AA727","v":""},{"$f":"Lighting!AC727","v":""},{"$f":"Lighting!AF727","v":""},{"$f":"Lighting!AG727","v":0},{"$f":"Lighting!AH727","v":0},{"$f":"Lighting!AI727","v":0}]
[0,{"$f":"Lighting!B728","v":720},{"$f":"Lighting!C728","v":0},{"$f":"Lighting!D728","v":0},{"$f":"Lighting!F728","v":0},{"$f":"Lighting!G728","v":0},{"$f":"Lighting!H728","v":0},{"$f":"Lighting!I728","v":0},{"$f":"Lighting!J728","v":0},{"$f":"Lighting!K728","v":0},{"$f":"Lighting!L728","v":0},{"$f":"Lighting!N728","v":0},{"$f":"Lighting!O728","v":0},{"$f":"Lighting!R728","v":0},{"$f":"Lighting!S728","v":0},{"$f":"Lighting!U728","v":""},{"$f":"Lighting!V728","v":""},{"$f":"Lighting!W728","v":""},{"$f":"Lighting!X728","v":0},{"$f":"Lighting!Y728","v":""},{"$f":"Lighting!AA728","v":""},{"$f":"Lighting!AC728","v":""},{"$f":"Lighting!AF728","v":""},{"$f":"Lighting!AG728","v":0},{"$f":"Lighting!AH728","v":0},{"$f":"Lighting!AI728","v":0}]
[0,{"$f":"Lighting!B729","v":721},{"$f":"Lighting!C729","v":0},{"$f":"Lighting!D729","v":0},{"$f":"Lighting!F729","v":0},{"$f":"Lighting!G729","v":0},{"$f":"Lighting!H729","v":0},{"$f":"Lighting!I729","v":0},{"$f":"Lighting!J729","v":0},{"$f":"Lighting!K729","v":0},{"$f":"Lighting!L729","v":0},{"$f":"Lighting!N729","v":0},{"$f":"Lighting!O729","v":0},{"$f":"Lighting!R729","v":0},{"$f":"Lighting!S729","v":0},{"$f":"Lighting!U729","v":""},{"$f":"Lighting!V729","v":""},{"$f":"Lighting!W729","v":""},{"$f":"Lighting!X729","v":0},{"$f":"Lighting!Y729","v":""},{"$f":"Lighting!AA729","v":""},{"$f":"Lighting!AC729","v":""},{"$f":"Lighting!AF729","v":""},{"$f":"Lighting!AG729","v":0},{"$f":"Lighting!AH729","v":0},{"$f":"Lighting!AI729","v":0}]
[0,{"$f":"Lighting!B730","v":722},{"$f":"Lighting!C730","v":0},{"$f":"Lighting!D730","v":0},{"$f":"Lighting!F730","v":0},{"$f":"Lighting!G730","v":0},{"$f":"Lighting!H730","v":0},{"$f":"Lighting!I730","v":0},{"$f":"Lighting!J730","v":0},{"$f":"Lighting!K730","v":0},{"$f":"Lighting!L730","v":0},{"$f":"Lighting!N730","v":0},{"$f":"Lighting!O730","v":0},{"$f":"Lighting!R730","v":0},{"$f":"Lighting!S730","v":0},{"$f":"Lighting!U730","v":""},{"$f":"Lighting!V730","v":""},{"$f":"Lighting!W730","v":""},{"$f":"Lighting!X730","v":0},{"$f":"Lighting!Y730","v":""},{"$f":"Lighting!AA730","v":""},{"$f":"Lighting!AC730","v":""},{"$f":"Lighting!AF730","v":""},{"$f":"Lighting!AG730","v":0},{"$f":"Lighting!AH730","v":0},{"$f":"Lighting!AI730","v":0}]
[0,{"$f":"Lighting!B731","v":723},{"$f":"Lighting!C731","v":0},{"$f":"Lighting!D731","v":0},{"$f":"Lighting!F731","v":0},{"$f":"Lighting!G731","v":0},{"$f":"Lighting!H731","v":0},{"$f":"Lighting!I731","v":0},{"$f":"Lighting!J731","v":0},{"$f":"Lighting!K731","v":0},{"$f":"Lighting!L731","v":0},{"$f":"Lighting!N731","v":0},{"$f":"Lighting!O731","v":0},{"$f":"Lighting!R731","v":0},{"$f":"Lighting!S731","v":0},{"$f":"Lighting!U731","v":""},{"$f":"Lighting!V731","v":""},{"$f":"Lighting!W731","v":""},{"$f":"Lighting!X731","v":0},{"$f":"Lighting!Y731","v":""},{"$f":"Lighting!AA731","v":""},{"$f":"Lighting!AC731","v":""},{"$f":"Lighting!AF731","v":""},{"$f":"Lighting!AG731","v":0},{"$f":"Lighting!AH731","v":0},{"$f":"Lighting!AI731","v":0}]
[0,{"$f":"Lighting!B732","v":724},{"$f":"Lighting!C732","v":0},{"$f":"Lighting!D732","v":0},{"$f":"Lighting!F732","v":0},{"$f":"Lighting!G732","v":0},{"$f":"Lighting!H732","v":0},{"$f":"Lighting!I732","v":0},{"$f":"Lighting!J732","v":0},{"$f":"Lighting!K732","v":0},{"$f":"Lighting!L732","v":0},{"$f":"Lighting!N732","v":0},{"$f":"Lighting!O732","v":0},{"$f":"Lighting!R732","v":0},{"$f":"Lighting!S732","v":0},{"$f":"Lighting!U732","v":""},{"$f":"Lighting!V732","v":""},{"$f":"Lighting!W732","v":""},{"$f":"Lighting!X732","v":0},{"$f":"Lighting!Y732","v":""},{"$f":"Lighting!AA732","v":""},{"$f":"Lighting!AC732","v":""},{"$f":"Lighting!AF732","v":""},{"$f":"Lighting!AG732","v":0},{"$f":"Lighting!AH732","v":0},{"$f":"Lighting!AI732","v":0}]
[0,{"$f":"Lighting!B733","v":725},{"$f":"Lighting!C733","v":0},{"$f":"Lighting!D733","v":0},{"$f":"Lighting!F733","v":0},{"$f":"Lighting!G733","v":0},{"$f":"Lighting!H733","v":0},{"$f":"Lighting!I733","v":0},{"$f":"Lighting!J733","v":0},{"$f":"Lighting!K733","v":0},{"$f":"Lighting!L733","v":0},{"$f":"Lighting!N733","v":0},{"$f":"Lighting!O733","v":0},{"$f":"Lighting!R733","v":0},{"$f":"Lighting!S733","v":0},{"$f":"Lighting!U733","v":""},{"$f":"Lighting!V733","v":""},{"$f":"Lighting!W733","v":""},{"$f":"Lighting!X733","v":0},{"$f":"Lighting!Y733","v":""},{"$f":"Lighting!AA733","v":""},{"$f":"Lighting!AC733","v":""},{"$f":"Lighting!AF733","v":""},{"$f":"Lighting!AG733","v":0},{"$f":"Lighting!AH733","v":0},{"$f":"Lighting!AI733","v":0}]
[0,{"$f":"Lighting!B734","v":726},{"$f":"Lighting!C734","v":0},{"$f":"Lighting!D734","v":0},{"$f":"Lighting!F734","v":0},{"$f":"Lighting!G734","v":0},{"$f":"Lighting!H734","v":0},{"$f":"Lighting!I734","v":0},{"$f":"Lighting!J734","v":0},{"$f":"Lighting!K734","v":0},{"$f":"Lighting!L734","v":0},{"$f":"Lighting!N734","v":0},{"$f":"Lighting!O734","v":0},{"$f":"Lighting!R734","v":0},{"$f":"Lighting!S734","v":0},{"$f":"Lighting!U734","v":""},{"$f":"Lighting!V734","v":""},{"$f":"Lighting!W734","v":""},{"$f":"Lighting!X734","v":0},{"$f":"Lighting!Y734","v":""},{"$f":"Lighting!AA734","v":""},{"$f":"Lighting!AC734","v":""},{"$f":"Lighting!AF734","v":""},{"$f":"Lighting!AG734","v":0},{"$f":"Lighting!AH734","v":0},{"$f":"Lighting!AI734","v":0}]
[0,{"$f":"Lighting!B735","v":727},{"$f":"Lighting!C735","v":0},{"$f":"Lighting!D735","v":0},{"$f":"Lighting!F735","v":0},{"$f":"Lighting!G735","v":0},{"$f":"Lighting!H735","v":0},{"$f":"Lighting!I735","v":0},{"$f":"Lighting!J735","v":0},{"$f":"Lighting!K735","v":0},{"$f":"Lighting!L735","v":0},{"$f":"Lighting!N735","v":0},{"$f":"Lighting!O735","v":0},{"$f":"Lighting!R735","v":0},{"$f":"Lighting!S735","v":0},{"$f":"Lighting!U735","v":""},{"$f":"Lighting!V735","v":""},{"$f":"Lighting!W735","v":""},{"$f":"Lighting!X735","v":0},{"$f":"Lighting!Y735","v":""},{"$f":"Lighting!AA735","v":""},{"$f":"Lighting!AC735","v":""},{"$f":"Lighting!AF735","v":""},{"$f":"Lighting!AG735","v":0},{"$f":"Lighting!AH735","v":0},{"$f":"Lighting!AI735","v":0}]
[0,{"$f":"Lighting!B736","v":728},{"$f":"Lighting!C736","v":0},{"$f":"Lighting!D736","v":0},{"$f":"Lighting!F736","v":0},{"$f":"Lighting!G736","v":0},{"$f":"Lighting!H736","v":0},{"$f":"Lighting!I736","v":0},{"$f":"Lighting!J736","v":0},{"$f":"Lighting!K736","v":0},{"$f":"Lighting!L736","v":0},{"$f":"Lighting!N736","v":0},{"$f":"Lighting!O736","v":0},{"$f":"Lighting!R736","v":0},{"$f":"Lighting!S736","v":0},{"$f":"Lighting!U736","v":""},{"$f":"Lighting!V736","v":""},{"$f":"Lighting!W736","v":""},{"$f":"Lighting!X736","v":0},{"$f":"Lighting!Y736","v":""},{"$f":"Lighting!AA736","v":""},{"$f":"Lighting!AC736","v":""},{"$f":"Lighting!AF736","v":""},{"$f":"Lighting!AG736","v":0},{"$f":"Lighting!AH736","v":0},{"$f":"Lighting!AI736","v":0}]
[0,{"$f":"Lighting!B737","v":729},{"$f":"Lighting!C737","v":0},{"$f":"Lighting!D737","v":0},{"$f":"Lighting!F737","v":0},{"$f":"Lighting!G737","v":0},{"$f":"Lighting!H737","v":0},{"$f":"Lighting!I737","v":0},{"$f":"Lighting!J737","v":0},{"$f":"Lighting!K737","v":0},{"$f":"Lighting!L737","v":0},{"$f":"Lighting!N737","v":0},{"$f":"Lighting!O737","v":0},{"$f":"Lighting!R737","v":0},{"$f":"Lighting!S737","v":0},{"$f":"Lighting!U737","v":""},{"$f":"Lighting!V737","v":""},{"$f":"Lighting!W737","v":""},{"$f":"Lighting!X737","v":0},{"$f":"Lighting!Y737","v":""},{"$f":"Lighting!AA737","v":""},{"$f":"Lighting!AC737","v":""},{"$f":"Lighting!AF737","v":""},{"$f":"Lighting!AG737","v":0},{"$f":"Lighting!AH737","v":0},{"$f":"Lighting!AI737","v":0}]
[0,{"$f":"Lighting!B738","v":730},{"$f":"Lighting!C738","v":0},{"$f":"Lighting!D738","v":0},{"$f":"Lighting!F738","v":0},{"$f":"Lighting!G738","v":0},{"$f":"Lighting!H738","v":0},{"$f":"Lighting!I738","v":0},{"$f":"Lighting!J738","v":0},{"$f":"Lighting!K738","v":0},{"$f":"Lighting!L738","v":0},{"$f":"Lighting!N738","v":0},{"$f":"Lighting!O738","v":0},{"$f":"Lighting!R738","v":0},{"$f":"Lighting!S738","v":0},{"$f":"Lighting!U738","v":""},{"$f":"Lighting!V738","v":""},{"$f":"Lighting!W738","v":""},{"$f":"Lighting!X738","v":0},{"$f":"Lighting!Y738","v":""},{"$f":"Lighting!AA738","v":""},{"$f":"Lighting!AC738","v":""},{"$f":"Lighting!AF738","v":""},{"$f":"Lighting!AG738","v":0},{"$f":"Lighting!AH738","v":0},{"$f":"Lighting!AI738","v":0}]
[0,{"$f":"Lighting!B739","v":731},{"$f":"Lighting!C739","v":0},{"$f":"Lighting!D739","v":0},{"$f":"Lighting!F739","v":0},{"$f":"Lighting!G739","v":0},{"$f":"Lighting!H739","v":0},{"$f":"Lighting!I739","v":0},{"$f":"Lighting!J739","v":0},{"$f":"Lighting!K739","v":0},{"$f":"Lighting!L739","v":0},{"$f":"Lighting!N739","v":0},{"$f":"Lighting!O739","v":0},{"$f":"Lighting!R739","v":0},{"$f":"Lighting!S739","v":0},{"$f":"Lighting!U739","v":""},{"$f":"Lighting!V739","v":""},{"$f":"Lighting!W739","v":""},{"$f":"Lighting!X739","v":0},{"$f":"Lighting!Y739","v":""},{"$f":"Lighting!AA739","v":""},{"$f":"Lighting!AC739","v":""},{"$f":"Lighting!AF739","v":""},{"$f":"Lighting!AG739","v":0},{"$f":"Lighting!AH739","v":0},{"$f":"Lighting!AI739","v":0}]
[0,{"$f":"Lighting!B740","v":732},{"$f":"Lighting!C740","v":0},{"$f":"Lighting!D740","v":0},{"$f":"Lighting!F740","v":0},{"$f":"Lighting!G740","v":0},{"$f":"Lighting!H740","v":0},{"$f":"Lighting!I740","v":0},{"$f":"Lighting!J740","v":0},{"$f":"Lighting!K740","v":0},{"$f":"Lighting!L740","v":0},{"$f":"Lighting!N740","v":0},{"$f":"Lighting!O740","v":0},{"$f":"Lighting!R740","v":0},{"$f":"Lighting!S740","v":0},{"$f":"Lighting!U740","v":""},{"$f":"Lighting!V740","v":""},{"$f":"Lighting!W740","v":""},{"$f":"Lighting!X740","v":0},{"$f":"Lighting!Y740","v":""},{"$f":"Lighting!AA740","v":""},{"$f":"Lighting!AC740","v":""},{"$f":"Lighting!AF740","v":""},{"$f":"Lighting!AG740","v":0},{"$f":"Lighting!AH740","v":0},{"$f":"Lighting!AI740","v":0}]
[0,{"$f":"Lighting!B741","v":733},{"$f":"Lighting!C741","v":0},{"$f":"Lighting!D741","v":0},{"$f":"Lighting!F741","v":0},{"$f":"Lighting!G741","v":0},{"$f":"Lighting!H741","v":0},{"$f":"Lighting!I741","v":0},{"$f":"Lighting!J741","v":0},{"$f":"Lighting!K741","v":0},{"$f":"Lighting!L741","v":0},{"$f":"Lighting!N741","v":0},{"$f":"Lighting!O741","v":0},{"$f":"Lighting!R741","v":0},{"$f":"Lighting!S741","v":0},{"$f":"Lighting!U741","v":""},{"$f":"Lighting!V741","v":""},{"$f":"Lighting!W741","v":""},{"$f":"Lighting!X741","v":0},{"$f":"Lighting!Y741","v":""},{"$f":"Lighting!AA741","v":""},{"$f":"Lighting!AC741","v":""},{"$f":"Lighting!AF741","v":""},{"$f":"Lighting!AG741","v":0},{"$f":"Lighting!AH741","v":0},{"$f":"Lighting!AI741","v":0}]
[0,{"$f":"Lighting!B742","v":734},{"$f":"Lighting!C742","v":0},{"$f":"Lighting!D742","v":0},{"$f":"Lighting!F742","v":0},{"$f":"Lighting!G742","v":0},{"$f":"Lighting!H742","v":0},{"$f":"Lighting!I742","v":0},{"$f":"Lighting!J742","v":0},{"$f":"Lighting!K742","v":0},{"$f":"Lighting!L742","v":0},{"$f":"Lighting!N742","v":0},{"$f":"Lighting!O742","v":0},{"$f":"Lighting!R742","v":0},{"$f":"Lighting!S742","v":0},{"$f":"Lighting!U742","v":""},{"$f":"Lighting!V742","v":""},{"$f":"Lighting!W742","v":""},{"$f":"Lighting!X742","v":0},{"$f":"Lighting!Y742","v":""},{"$f":"Lighting!AA742","v":""},{"$f":"Lighting!AC742","v":""},{"$f":"Lighting!AF742","v":""},{"$f":"Lighting!AG742","v":0},{"$f":"Lighting!AH742","v":0},{"$f":"Lighting!AI742","v":0}]
[0,{"$f":"Lighting!B743","v":735},{"$f":"Lighting!C743","v":0},{"$f":"Lighting!D743","v":0},{"$f":"Lighting!F743","v":0},{"$f":"Lighting!G743","v":0},{"$f":"Lighting!H743","v":0},{"$f":"Lighting!I743","v":0},{"$f":"Lighting!J743","v":0},{"$f":"Lighting!K743","v":0},{"$f":"Lighting!L743","v":0},{"$f":"Lighting!N743","v":0},{"$f":"Lighting!O743","v":0},{"$f":"Lighting!R743","v":0},{"$f":"Lighting!S743","v":0},{"$f":"Lighting!U743","v":""},{"$f":"Lighting!V743","v":""},{"$f":"Lighting!W743","v":""},{"$f":"Lighting!X743","v":0},{"$f":"Lighting!Y743","v":""},{"$f":"Lighting!AA743","v":""},{"$f":"Lighting!AC743","v":""},{"$f":"Lighting!AF743","v":""},{"$f":"Lighting!AG743","v":0},{"$f":"Lighting!AH743","v":0},{"$f":"Lighting!AI743","v":0}]
[0,{"$f":"Lighting!B744","v":736},{"$f":"Lighting!C744","v":0},{"$f":"Lighting!D744","v":0},{"$f":"Lighting!F744","v":0},{"$f":"Lighting!G744","v":0},{"$f":"Lighting!H744","v":0},{"$f":"Lighting!I744","v":0},{"$f":"Lighting!J744","v":0},{"$f":"Lighting!K744","v":0},{"$f":"Lighting!L744","v":0},{"$f":"Lighting!N744","v":0},{"$f":"Lighting!O744","v":0},{"$f":"Lighting!R744","v":0},{"$f":"Lighting!S744","v":0},{"$f":"Lighting!U744","v":""},{"$f":"Lighting!V744","v":""},{"$f":"Lighting!W744","v":""},{"$f":"Lighting!X744","v":0},{"$f":"Lighting!Y744","v":""},{"$f":"Lighting!AA744","v":""},{"$f":"Lighting!AC744","v":""},{"$f":"Lighting!AF744","v":""},{"$f":"Lighting!AG744","v":0},{"$f":"Lighting!AH744","v":0},{"$f":"Lighting!AI744","v":0}]
[0,{"$f":"Lighting!B745","v":737},{"$f":"Lighting!C745","v":0},{"$f":"Lighting!D745","v":0},{"$f":"Lighting!F745","v":0},{"$f":"Lighting!G745","v":0},{"$f":"Lighting!H745","v":0},{"$f":"Lighting!I745","v":0},{"$f":"Lighting!J745","v":0},{"$f":"Lighting!K745","v":0},{"$f":"Lighting!L745","v":0},{"$f":"Lighting!N745","v":0},{"$f":"Lighting!O745","v":0},{"$f":"Lighting!R745","v":0},{"$f":"Lighting!S745","v":0},{"$f":"Lighting!U745","v":""},{"$f":"Lighting!V745","v":""},{"$f":"Lighting!W745","v":""},{"$f":"Lighting!X745","v":0},{"$f":"Lighting!Y745","v":""},{"$f":"Lighting!AA745","v":""},{"$f":"Lighting!AC745","v":""},{"$f":"Lighting!AF745","v":""},{"$f":"Lighting!AG745","v":0},{"$f":"Lighting!AH745","v":0},{"$f":"Lighting!AI745","v":0}]
[0,{"$f":"Lighting!B746","v":738},{"$f":"Lighting!C746","v":0},{"$f":"Lighting!D746","v":0},{"$f":"Lighting!F746","v":0},{"$f":"Lighting!G746","v":0},{"$f":"Lighting!H746","v":0},{"$f":"Lighting!I746","v":0},{"$f":"Lighting!J746","v":0},{"$f":"Lighting!K746","v":0},{"$f":"Lighting!L746","v":0},{"$f":"Lighting!N746","v":0},{"$f":"Lighting!O746","v":0},{"$f":"Lighting!R746","v":0},{"$f":"Lighting!S746","v":0},{"$f":"Lighting!U746","v":""},{"$f":"Lighting!V746","v":""},{"$f":"Lighting!W746","v":""},{"$f":"Lighting!X746","v":0},{"$f":"Lighting!Y746","v":""},{"$f":"Lighting!AA746","v":""},{"$f":"Lighting!AC746","v":""},{"$f":"Lighting!AF746","v":""},{"$f":"Lighting!AG746","v":0},{"$f":"Lighting!AH746","v":0},{"$f":"Lighting!AI746","v":0}]
[0,{"$f":"Lighting!B747","v":739},{"$f":"Lighting!C747","v":0},{"$f":"Lighting!D747","v":0},{"$f":"Lighting!F747","v":0},{"$f":"Lighting!G747","v":0},{"$f":"Lighting!H747","v":0},{"$f":"Lighting!I747","v":0},{"$f":"Lighting!J747","v":0},{"$f":"Lighting!K747","v":0},{"$f":"Lighting!L747","v":0},{"$f":"Lighting!N747","v":0},{"$f":"Lighting!O747","v":0},{"$f":"Lighting!R747","v":0},{"$f":"Lighting!S747","v":0},{"$f":"Lighting!U747","v":""},{"$f":"Lighting!V747","v":""},{"$f":"Lighting!W747","v":""},{"$f":"Lighting!X747","v":0},{"$f":"Lighting!Y747","v":""},{"$f":"Lighting!AA747","v":""},{"$f":"Lighting!AC747","v":""},{"$f":"Lighting!AF747","v":""},{"$f":"Lighting!AG747","v":0},{"$f":"Lighting!AH747","v":0},{"$f":"Lighting!AI747","v":0}]
[0,{"$f":"Lighting!B748","v":740},{"$f":"Lighting!C748","v":0},{"$f":"Lighting!D748","v":0},{"$f":"Lighting!F748","v":0},{"$f":"Lighting!G748","v":0},{"$f":"Lighting!H748","v":0},{"$f":"Lighting!I748","v":0},{"$f":"Lighting!J748","v":0},{"$f":"Lighting!K748","v":0},{"$f":"Lighting!L748","v":0},{"$f":"Lighting!N748","v":0},{"$f":"Lighting!O748","v":0},{"$f":"Lighting!R748","v":0},{"$f":"Lighting!S748","v":0},{"$f":"Lighting!U748","v":""},{"$f":"Lighting!V748","v":""},{"$f":"Lighting!W748","v":""},{"$f":"Lighting!X748","v":0},{"$f":"Lighting!Y748","v":""},{"$f":"Lighting!AA748","v":""},{"$f":"Lighting!AC748","v":""},{"$f":"Lighting!AF748","v":""},{"$f":"Lighting!AG748","v":0},{"$f":"Lighting!AH748","v":0},{"$f":"Lighting!AI748","v":0}]
[0,{"$f":"Lighting!B749","v":741},{"$f":"Lighting!C749","v":0},{"$f":"Lighting!D749","v":0},{"$f":"Lighting!F749","v":0},{"$f":"Lighting!G749","v":0},{"$f":"Lighting!H749","v":0},{"$f":"Lighting!I749","v":0},{"$f":"Lighting!J749","v":0},{"$f":"Lighting!K749","v":0},{"$f":"Lighting!L749","v":0},{"$f":"Lighting!N749","v":0},{"$f":"Lighting!O749","v":0},{"$f":"Lighting!R749","v":0},{"$f":"Lighting!S749","v":0},{"$f":"Lighting!U749","v":""},{"$f":"Lighting!V749","v":""},{"$f":"Lighting!W749","v":""},{"$f":"Lighting!X749","v":0},{"$f":"Lighting!Y749","v":""},{"$f":"Lighting!AA749","v":""},{"$f":"Lighting!AC749","v":""},{"$f":"Lighting!AF749","v":""},{"$f":"Lighting!AG749","v":0},{"$f":"Lighting!AH749","v":0},{"$f":"Lighting!AI749","v":0}]
[0,{"$f":"Lighting!B750","v":742},{"$f":"Lighting!C750","v":0},{"$f":"Lighting!D750","v":0},{"$f":"Lighting!F750","v":0},{"$f":"Lighting!G750","v":0},{"$f":"Lighting!H750","v":0},{"$f":"Lighting!I750","v":0},{"$f":"Lighting!J750","v":0},{"$f":"Lighting!K750","v":0},{"$f":"Lighting!L750","v":0},{"$f":"Lighting!N750","v":0},{"$f":"Lighting!O750","v":0},{"$f":"Lighting!R750","v":0},{"$f":"Lighting!S750","v":0},{"$f":"Lighting!U750","v":""},{"$f":"Lighting!V750","v":""},{"$f":"Lighting!W750","v":""},{"$f":"Lighting!X750","v":0},{"$f":"Lighting!Y750","v":""},{"$f":"Lighting!AA750","v":""},{"$f":"Lighting!AC750","v":""},{"$f":"Lighting!AF750","v":""},{"$f":"Lighting!AG750","v":0},{"$f":"Lighting!AH750","v":0},{"$f":"Lighting!AI750","v":0}]
[0,{"$f":"Lighting!B751","v":743},{"$f":"Lighting!C751","v":0},{"$f":"Lighting!D751","v":0},{"$f":"Lighting!F751","v":0},{"$f":"Lighting!G751","v":0},{"$f":"Lighting!H751","v":0},{"$f":"Lighting!I751","v":0},{"$f":"Lighting!J751","v":0},{"$f":"Lighting!K751","v":0},{"$f":"Lighting!L751","v":0},{"$f":"Lighting!N751","v":0},{"$f":"Lighting!O751","v":0},{"$f":"Lighting!R751","v":0},{"$f":"Lighting!S751","v":0},{"$f":"Lighting!U751","v":""},{"$f":"Lighting!V751","v":""},{"$f":"Lighting!W751","v":""},{"$f":"Lighting!X751","v":0},{"$f":"Lighting!Y751","v":""},{"$f":"Lighting!AA751","v":""},{"$f":"Lighting!AC751","v":""},{"$f":"Lighting!AF751","v":""},{"$f":"Lighting!AG751","v":0},{"$f":"Lighting!AH751","v":0},{"$f":"Lighting!AI751","v":0}]
[0,{"$f":"Lighting!B752","v":744},{"$f":"Lighting!C752","v":0},{"$f":"Lighting!D752","v":0},{"$f":"Lighting!F752","v":0},{"$f":"Lighting!G752","v":0},{"$f":"Lighting!H752","v":0},{"$f":"Lighting!I752","v":0},{"$f":"Lighting!J752","v":0},{"$f":"Lighting!K752","v":0},{"$f":"Lighting!L752","v":0},{"$f":"Lighting!N752","v":0},{"$f":"Lighting!O752","v":0},{"$f":"Lighting!R752","v":0},{"$f":"Lighting!S752","v":0},{"$f":"Lighting!U752","v":""},{"$f":"Lighting!V752","v":""},{"$f":"Lighting!W752","v":""},{"$f":"Lighting!X752","v":0},{"$f":"Lighting!Y752","v":""},{"$f":"Lighting!AA752","v":""},{"$f":"Lighting!AC752","v":""},{"$f":"Lighting!AF752","v":""},{"$f":"Lighting!AG752","v":0},{"$f":"Lighting!AH752","v":0},{"$f":"Lighting!AI752","v":0}]
[0,{"$f":"Lighting!B753","v":745},{"$f":"Lighting!C753","v":0},{"$f":"Lighting!D753","v":0},{"$f":"Lighting!F753","v":0},{"$f":"Lighting!G753","v":0},{"$f":"Lighting!H753","v":0},{"$f":"Lighting!I753","v":0},{"$f":"Lighting!J753","v":0},{"$f":"Lighting!K753","v":0},{"$f":"Lighting!L753","v":0},{"$f":"Lighting!N753","v":0},{"$f":"Lighting!O753","v":0},{"$f":"Lighting!R753","v":0},{"$f":"Lighting!S753","v":0},{"$f":"Lighting!U753","v":""},{"$f":"Lighting!V753","v":""},{"$f":"Lighting!W753","v":""},{"$f":"Lighting!X753","v":0},{"$f":"Lighting!Y753","v":""},{"$f":"Lighting!AA753","v":""},{"$f":"Lighting!AC753","v":""},{"$f":"Lighting!AF753","v":""},{"$f":"Lighting!AG753","v":0},{"$f":"Lighting!AH753","v":0},{"$f":"Lighting!AI753","v":0}]
[0,{"$f":"Lighting!B754","v":746},{"$f":"Lighting!C754","v":0},{"$f":"Lighting!D754","v":0},{"$f":"Lighting!F754","v":0},{"$f":"Lighting!G754","v":0},{"$f":"Lighting!H754","v":0},{"$f":"Lighting!I754","v":0},{"$f":"Lighting!J754","v":0},{"$f":"Lighting!K754","v":0},{"$f":"Lighting!L754","v":0},{"$f":"Lighting!N754","v":0},{"$f":"Lighting!O754","v":0},{"$f":"Lighting!R754","v":0},{"$f":"Lighting!S754","v":0},{"$f":"Lighting!U754","v":""},{"$f":"Lighting!V754","v":""},{"$f":"Lighting!W754","v":""},{"$f":"Lighting!X754","v":0},{"$f":"Lighting!Y754","v":""},{"$f":"Lighting!AA754","v":""},{"$f":"Lighting!AC754","v":""},{"$f":"Lighting!AF754","v":""},{"$f":"Lighting!AG754","v":0},{"$f":"Lighting!AH754","v":0},{"$f":"Lighting!AI754","v":0}]
[0,{"$f":"Lighting!B755","v":747},{"$f":"Lighting!C755","v":0},{"$f":"Lighting!D755","v":0},{"$f":"Lighting!F755","v":0},{"$f":"Lighting!G755","v":0},{"$f":"Lighting!H755","v":0},{"$f":"Lighting!I755","v":0},{"$f":"Lighting!J755","v":0},{"$f":"Lighting!K755","v":0},{"$f":"Lighting!L755","v":0},{"$f":"Lighting!N755","v":0},{"$f":"Lighting!O755","v":0},{"$f":"Lighting!R755","v":0},{"$f":"Lighting!S755","v":0},{"$f":"Lighting!U755","v":""},{"$f":"Lighting!V755","v":""},{"$f":"Lighting!W755","v":""},{"$f":"Lighting!X755","v":0},{"$f":"Lighting!Y755","v":""},{"$f":"Lighting!AA755","v":""},{"$f":"Lighting!AC755","v":""},{"$f":"Lighting!AF755","v":""},{"$f":"Lighting!AG755","v":0},{"$f":"Lighting!AH755","v":0},{"$f":"Lighting!AI755","v":0}]
[0,{"$f":"Lighting!B756","v":748},{"$f":"Lighting!C756","v":0},{"$f":"Lighting!D756","v":0},{"$f":"Lighting!F756","v":0},{"$f":"Lighting!G756","v":0},{"$f":"Lighting!H756","v":0},{"$f":"Lighting!I756","v":0},{"$f":"Lighting!J756","v":0},{"$f":"Lighting!K756","v":0},{"$f":"Lighting!L756","v":0},{"$f":"Lighting!N756","v":0},{"$f":"Lighting!O756","v":0},{"$f":"Lighting!R756","v":0},{"$f":"Lighting!S756","v":0},{"$f":"Lighting!U756","v":""},{"$f":"Lighting!V756","v":""},{"$f":"Lighting!W756","v":""},{"$f":"Lighting!X756","v":0},{"$f":"Lighting!Y756","v":""},{"$f":"Lighting!AA756","v":""},{"$f":"Lighting!AC756","v":""},{"$f":"Lighting!AF756","v":""},{"$f":"Lighting!AG756","v":0},{"$f":"Lighting!AH756","v":0},{"$f":"Lighting!AI756","v":0}]
[0,{"$f":"Lighting!B757","v":749},{"$f":"Lighting!C757","v":0},{"$f":"Lighting!D757","v":0},{"$f":"Lighting!F757","v":0},{"$f":"Lighting!G757","v":0},{"$f":"Lighting!H757","v":0},{"$f":"Lighting!I757","v":0},{"$f":"Lighting!J757","v":0},{"$f":"Lighting!K757","v":0},{"$f":"Lighting!L757","v":0},{"$f":"Lighting!N757","v":0},{"$f":"Lighting!O757","v":0},{"$f":"Lighting!R757","v":0},{"$f":"Lighting!S757","v":0},{"$f":"Lighting!U757","v":""},{"$f":"Lighting!V757","v":""},{"$f":"Lighting!W757","v":""},{"$f":"Lighting!X757","v":0},{"$f":"Lighting!Y757","v":""},{"$f":"Lighting!AA757","v":""},{"$f":"Lighting!AC757","v":""},{"$f":"Lighting!AF757","v":""},{"$f":"Lighting!AG757","v":0},{"$f":"Lighting!AH757","v":0},{"$f":"Lighting!AI757","v":0}]
[0,{"$f":"Lighting!B758","v":750},{"$f":"Lighting!C758","v":0},{"$f":"Lighting!D758","v":0},{"$f":"Lighting!F758","v":0},{"$f":"Lighting!G758","v":0},{"$f":"Lighting!H758","v":0},{"$f":"Lighting!I758","v":0},{"$f":"Lighting!J758","v":0},{"$f":"Lighting!K758","v":0},{"$f":"Lighting!L758","v":0},{"$f":"Lighting!N758","v":0},{"$f":"Lighting!O758","v":0},{"$f":"Lighting!R758","v":0},{"$f":"Lighting!S758","v":0},{"$f":"Lighting!U758","v":""},{"$f":"Lighting!V758","v":""},{"$f":"Lighting!W758","v":""},{"$f":"Lighting!X758","v":0},{"$f":"Lighting!Y758","v":""},{"$f":"Lighting!AA758","v":""},{"$f":"Lighting!AC758","v":""},{"$f":"Lighting!AF758","v":""},{"$f":"Lighting!AG758","v":0},{"$f":"Lighting!AH758","v":0},{"$f":"Lighting!AI758","v":0}]
[0,{"$f":"Lighting!B759","v":751},{"$f":"Lighting!C759","v":0},{"$f":"Lighting!D759","v":0},{"$f":"Lighting!F759","v":0},{"$f":"Lighting!G759","v":0},{"$f":"Lighting!H759","v":0},{"$f":"Lighting!I759","v":0},{"$f":"Lighting!J759","v":0},{"$f":"Lighting!K759","v":0},{"$f":"Lighting!L759","v":0},{"$f":"Lighting!N759","v":0},{"$f":"Lighting!O759","v":0},{"$f":"Lighting!R759","v":0},{"$f":"Lighting!S759","v":0},{"$f":"Lighting!U759","v":""},{"$f":"Lighting!V759","v":""},{"$f":"Lighting!W759","v":""},{"$f":"Lighting!X759","v":0},{"$f":"Lighting!Y759","v":""},{"$f":"Lighting!AA759","v":""},{"$f":"Lighting!AC759","v":""},{"$f":"Lighting!AF759","v":""},{"$f":"Lighting!AG759","v":0},{"$f":"Lighting!AH759","v":0},{"$f":"Lighting!AI759","v":0}]
[0,{"$f":"Lighting!B760","v":752},{"$f":"Lighting!C760","v":0},{"$f":"Lighting!D760","v":0},{"$f":"Lighting!F760","v":0},{"$f":"Lighting!G760","v":0},{"$f":"Lighting!H760","v":0},{"$f":"Lighting!I760","v":0},{"$f":"Lighting!J760","v":0},{"$f":"Lighting!K760","v":0},{"$f":"Lighting!L760","v":0},{"$f":"Lighting!N760","v":0},{"$f":"Lighting!O760","v":0},{"$f":"Lighting!R760","v":0},{"$f":"Lighting!S760","v":0},{"$f":"Lighting!U760","v":""},{"$f":"Lighting!V760","v":""},{"$f":"Lighting!W760","v":""},{"$f":"Lighting!X760","v":0},{"$f":"Lighting!Y760","v":""},{"$f":"Lighting!AA760","v":""},{"$f":"Lighting!AC760","v":""},{"$f":"Lighting!AF760","v":""},{"$f":"Lighting!AG760","v":0},{"$f":"Lighting!AH760","v":0},{"$f":"Lighting!AI760","v":0}]
[0,{"$f":"Lighting!B761","v":753},{"$f":"Lighting!C761","v":0},{"$f":"Lighting!D761","v":0},{"$f":"Lighting!F761","v":0},{"$f":"Lighting!G761","v":0},{"$f":"Lighting!H761","v":0},{"$f":"Lighting!I761","v":0},{"$f":"Lighting!J761","v":0},{"$f":"Lighting!K761","v":0},{"$f":"Lighting!L761","v":0},{"$f":"Lighting!N761","v":0},{"$f":"Lighting!O761","v":0},{"$f":"Lighting!R761","v":0},{"$f":"Lighting!S761","v":0},{"$f":"Lighting!U761","v":""},{"$f":"Lighting!V761","v":""},{"$f":"Lighting!W761","v":""},{"$f":"Lighting!X761","v":0},{"$f":"Lighting!Y761","v":""},{"$f":"Lighting!AA761","v":""},{"$f":"Lighting!AC761","v":""},{"$f":"Lighting!AF761","v":""},{"$f":"Lighting!AG761","v":0},{"$f":"Lighting!AH761","v":0},{"$f":"Lighting!AI761","v":0}]
[0,{"$f":"Lighting!B762","v":754},{"$f":"Lighting!C762","v":0},{"$f":"Lighting!D762","v":0},{"$f":"Lighting!F762","v":0},{"$f":"Lighting!G762","v":0},{"$f":"Lighting!H762","v":0},{"$f":"Lighting!I762","v":0},{"$f":"Lighting!J762","v":0},{"$f":"Lighting!K762","v":0},{"$f":"Lighting!L762","v":0},{"$f":"Lighting!N762","v":0},{"$f":"Lighting!O762","v":0},{"$f":"Lighting!R762","v":0},{"$f":"Lighting!S762","v":0},{"$f":"Lighting!U762","v":""},{"$f":"Lighting!V762","v":""},{"$f":"Lighting!W762","v":""},{"$f":"Lighting!X762","v":0},{"$f":"Lighting!Y762","v":""},{"$f":"Lighting!AA762","v":""},{"$f":"Lighting!AC762","v":""},{"$f":"Lighting!AF762","v":""},{"$f":"Lighting!AG762","v":0},{"$f":"Lighting!AH762","v":0},{"$f":"Lighting!AI762","v":0}]
[0,{"$f":"Lighting!B763","v":755},{"$f":"Lighting!C763","v":0},{"$f":"Lighting!D763","v":0},{"$f":"Lighting!F763","v":0},{"$f":"Lighting!G763","v":0},{"$f":"Lighting!H763","v":0},{"$f":"Lighting!I763","v":0},{"$f":"Lighting!J763","v":0},{"$f":"Lighting!K763","v":0},{"$f":"Lighting!L763","v":0},{"$f":"Lighting!N763","v":0},{"$f":"Lighting!O763","v":0},{"$f":"Lighting!R763","v":0},{"$f":"Lighting!S763","v":0},{"$f":"Lighting!U763","v":""},{"$f":"Lighting!V763","v":""},{"$f":"Lighting!W763","v":""},{"$f":"Lighting!X763","v":0},{"$f":"Lighting!Y763","v":""},{"$f":"Lighting!AA763","v":""},{"$f":"Lighting!AC763","v":""},{"$f":"Lighting!AF763","v":""},{"$f":"Lighting!AG763","v":0},{"$f":"Lighting!AH763","v":0},{"$f":"Lighting!AI763","v":0}]
[0,{"$f":"Lighting!B764","v":756},{"$f":"Lighting!C764","v":0},{"$f":"Lighting!D764","v":0},{"$f":"Lighting!F764","v":0},{"$f":"Lighting!G764","v":0},{"$f":"Lighting!H764","v":0},{"$f":"Lighting!I764","v":0},{"$f":"Lighting!J764","v":0},{"$f":"Lighting!K764","v":0},{"$f":"Lighting!L764","v":0},{"$f":"Lighting!N764","v":0},{"$f":"Lighting!O764","v":0},{"$f":"Lighting!R764","v":0},{"$f":"Lighting!S764","v":0},{"$f":"Lighting!U764","v":""},{"$f":"Lighting!V764","v":""},{"$f":"Lighting!W764","v":""},{"$f":"Lighting!X764","v":0},{"$f":"Lighting!Y764","v":""},{"$f":"Lighting!AA764","v":""},{"$f":"Lighting!AC764","v":""},{"$f":"Lighting!AF764","v":""},{"$f":"Lighting!AG764","v":0},{"$f":"Lighting!AH764","v":0},{"$f":"Lighting!AI764","v":0}]
[0,{"$f":"Lighting!B765","v":757},{"$f":"Lighting!C765","v":0},{"$f":"Lighting!D765","v":0},{"$f":"Lighting!F765","v":0},{"$f":"Lighting!G765","v":0},{"$f":"Lighting!H765","v":0},{"$f":"Lighting!I765","v":0},{"$f":"Lighting!J765","v":0},{"$f":"Lighting!K765","v":0},{"$f":"Lighting!L765","v":0},{"$f":"Lighting!N765","v":0},{"$f":"Lighting!O765","v":0},{"$f":"Lighting!R765","v":0},{"$f":"Lighting!S765","v":0},{"$f":"Lighting!U765","v":""},{"$f":"Lighting!V765","v":""},{"$f":"Lighting!W765","v":""},{"$f":"Lighting!X765","v":0},{"$f":"Lighting!Y765","v":""},{"$f":"Lighting!AA765","v":""},{"$f":"Lighting!AC765","v":""},{"$f":"Lighting!AF765","v":""},{"$f":"Lighting!AG765","v":0},{"$f":"Lighting!AH765","v":0},{"$f":"Lighting!AI765","v":0}]
[0,{"$f":"Lighting!B766","v":758},{"$f":"Lighting!C766","v":0},{"$f":"Lighting!D766","v":0},{"$f":"Lighting!F766","v":0},{"$f":"Lighting!G766","v":0},{"$f":"Lighting!H766","v":0},{"$f":"Lighting!I766","v":0},{"$f":"Lighting!J766","v":0},{"$f":"Lighting!K766","v":0},{"$f":"Lighting!L766","v":0},{"$f":"Lighting!N766","v":0},{"$f":"Lighting!O766","v":0},{"$f":"Lighting!R766","v":0},{"$f":"Lighting!S766","v":0},{"$f":"Lighting!U766","v":""},{"$f":"Lighting!V766","v":""},{"$f":"Lighting!W766","v":""},{"$f":"Lighting!X766","v":0},{"$f":"Lighting!Y766","v":""},{"$f":"Lighting!AA766","v":""},{"$f":"Lighting!AC766","v":""},{"$f":"Lighting!AF766","v":""},{"$f":"Lighting!AG766","v":0},{"$f":"Lighting!AH766","v":0},{"$f":"Lighting!AI766","v":0}]
[0,{"$f":"Lighting!B767","v":759},{"$f":"Lighting!C767","v":0},{"$f":"Lighting!D767","v":0},{"$f":"Lighting!F767","v":0},{"$f":"Lighting!G767","v":0},{"$f":"Lighting!H767","v":0},{"$f":"Lighting!I767","v":0},{"$f":"Lighting!J767","v":0},{"$f":"Lighting!K767","v":0},{"$f":"Lighting!L767","v":0},{"$f":"Lighting!N767","v":0},{"$f":"Lighting!O767","v":0},{"$f":"Lighting!R767","v":0},{"$f":"Lighting!S767","v":0},{"$f":"Lighting!U767","v":""},{"$f":"Lighting!V767","v":""},{"$f":"Lighting!W767","v":""},{"$f":"Lighting!X767","v":0},{"$f":"Lighting!Y767","v":""},{"$f":"Lighting!AA767","v":""},{"$f":"Lighting!AC767","v":""},{"$f":"Lighting!AF767","v":""},{"$f":"Lighting!AG767","v":0},{"$f":"Lighting!AH767","v":0},{"$f":"Lighting!AI767","v":0}]
[0,{"$f":"Lighting!B768","v":760},{"$f":"Lighting!C768","v":0},{"$f":"Lighting!D768","v":0},{"$f":"Lighting!F768","v":0},{"$f":"Lighting!G768","v":0},{"$f":"Lighting!H768","v":0},{"$f":"Lighting!I768","v":0},{"$f":"Lighting!J768","v":0},{"$f":"Lighting!K768","v":0},{"$f":"Lighting!L768","v":0},{"$f":"Lighting!N768","v":0},{"$f":"Lighting!O768","v":0},{"$f":"Lighting!R768","v":0},{"$f":"Lighting!S768","v":0},{"$f":"Lighting!U768","v":""},{"$f":"Lighting!V768","v":""},{"$f":"Lighting!W768","v":""},{"$f":"Lighting!X768","v":0},{"$f":"Lighting!Y768","v":""},{"$f":"Lighting!AA768","v":""},{"$f":"Lighting!AC768","v":""},{"$f":"Lighting!AF768","v":""},{"$f":"Lighting!AG768","v":0},{"$f":"Lighting!AH768","v":0},{"$f":"Lighting!AI768","v":0}]
[0,{"$f":"Lighting!B769","v":761},{"$f":"Lighting!C769","v":0},{"$f":"Lighting!D769","v":0},{"$f":"Lighting!F769","v":0},{"$f":"Lighting!G769","v":0},{"$f":"Lighting!H769","v":0},{"$f":"Lighting!I769","v":0},{"$f":"Lighting!J769","v":0},{"$f":"Lighting!K769","v":0},{"$f":"Lighting!L769","v":0},{"$f":"Lighting!N769","v":0},{"$f":"Lighting!O769","v":0},{"$f":"Lighting!R769","v":0},{"$f":"Lighting!S769","v":0},{"$f":"Lighting!U769","v":""},{"$f":"Lighting!V769","v":""},{"$f":"Lighting!W769","v":""},{"$f":"Lighting!X769","v":0},{"$f":"Lighting!Y769","v":""},{"$f":"Lighting!AA769","v":""},{"$f":"Lighting!AC769","v":""},{"$f":"Lighting!AF769","v":""},{"$f":"Lighting!AG769","v":0},{"$f":"Lighting!AH769","v":0},{"$f":"Lighting!AI769","v":0}]
[0,{"$f":"Lighting!B770","v":762},{"$f":"Lighting!C770","v":0},{"$f":"Lighting!D770","v":0},{"$f":"Lighting!F770","v":0},{"$f":"Lighting!G770","v":0},{"$f":"Lighting!H770","v":0},{"$f":"Lighting!I770","v":0},{"$f":"Lighting!J770","v":0},{"$f":"Lighting!K770","v":0},{"$f":"Lighting!L770","v":0},{"$f":"Lighting!N770","v":0},{"$f":"Lighting!O770","v":0},{"$f":"Lighting!R770","v":0},{"$f":"Lighting!S770","v":0},{"$f":"Lighting!U770","v":""},{"$f":"Lighting!V770","v":""},{"$f":"Lighting!W770","v":""},{"$f":"Lighting!X770","v":0},{"$f":"Lighting!Y770","v":""},{"$f":"Lighting!AA770","v":""},{"$f":"Lighting!AC770","v":""},{"$f":"Lighting!AF770","v":""},{"$f":"Lighting!AG770","v":0},{"$f":"Lighting!AH770","v":0},{"$f":"Lighting!AI770","v":0}]
[0,{"$f":"Lighting!B771","v":763},{"$f":"Lighting!C771","v":0},{"$f":"Lighting!D771","v":0},{"$f":"Lighting!F771","v":0},{"$f":"Lighting!G771","v":0},{"$f":"Lighting!H771","v":0},{"$f":"Lighting!I771","v":0},{"$f":"Lighting!J771","v":0},{"$f":"Lighting!K771","v":0},{"$f":"Lighting!L771","v":0},{"$f":"Lighting!N771","v":0},{"$f":"Lighting!O771","v":0},{"$f":"Lighting!R771","v":0},{"$f":"Lighting!S771","v":0},{"$f":"Lighting!U771","v":""},{"$f":"Lighting!V771","v":""},{"$f":"Lighting!W771","v":""},{"$f":"Lighting!X771","v":0},{"$f":"Lighting!Y771","v":""},{"$f":"Lighting!AA771","v":""},{"$f":"Lighting!AC771","v":""},{"$f":"Lighting!AF771","v":""},{"$f":"Lighting!AG771","v":0},{"$f":"Lighting!AH771","v":0},{"$f":"Lighting!AI771","v":0}]
[0,{"$f":"Lighting!B772","v":764},{"$f":"Lighting!C772","v":0},{"$f":"Lighting!D772","v":0},{"$f":"Lighting!F772","v":0},{"$f":"Lighting!G772","v":0},{"$f":"Lighting!H772","v":0},{"$f":"Lighting!I772","v":0},{"$f":"Lighting!J772","v":0},{"$f":"Lighting!K772","v":0},{"$f":"Lighting!L772","v":0},{"$f":"Lighting!N772","v":0},{"$f":"Lighting!O772","v":0},{"$f":"Lighting!R772","v":0},{"$f":"Lighting!S772","v":0},{"$f":"Lighting!U772","v":""},{"$f":"Lighting!V772","v":""},{"$f":"Lighting!W772","v":""},{"$f":"Lighting!X772","v":0},{"$f":"Lighting!Y772","v":""},{"$f":"Lighting!AA772","v":""},{"$f":"Lighting!AC772","v":""},{"$f":"Lighting!AF772","v":""},{"$f":"Lighting!AG772","v":0},{"$f":"Lighting!AH772","v":0},{"$f":"Lighting!AI772","v":0}]
[0,{"$f":"Lighting!B773","v":765},{"$f":"Lighting!C773","v":0},{"$f":"Lighting!D773","v":0},{"$f":"Lighting!F773","v":0},{"$f":"Lighting!G773","v":0},{"$f":"Lighting!H773","v":0},{"$f":"Lighting!I773","v":0},{"$f":"Lighting!J773","v":0},{"$f":"Lighting!K773","v":0},{"$f":"Lighting!L773","v":0},{"$f":"Lighting!N773","v":0},{"$f":"Lighting!O773","v":0},{"$f":"Lighting!R773","v":0},{"$f":"Lighting!S773","v":0},{"$f":"Lighting!U773","v":""},{"$f":"Lighting!V773","v":""},{"$f":"Lighting!W773","v":""},{"$f":"Lighting!X773","v":0},{"$f":"Lighting!Y773","v":""},{"$f":"Lighting!AA773","v":""},{"$f":"Lighting!AC773","v":""},{"$f":"Lighting!AF773","v":""},{"$f":"Lighting!AG773","v":0},{"$f":"Lighting!AH773","v":0},{"$f":"Lighting!AI773","v":0}]
[0,{"$f":"Lighting!B774","v":766},{"$f":"Lighting!C774","v":0},{"$f":"Lighting!D774","v":0},{"$f":"Lighting!F774","v":0},{"$f":"Lighting!G774","v":0},{"$f":"Lighting!H774","v":0},{"$f":"Lighting!I774","v":0},{"$f":"Lighting!J774","v":0},{"$f":"Lighting!K774","v":0},{"$f":"Lighting!L774","v":0},{"$f":"Lighting!N774","v":0},{"$f":"Lighting!O774","v":0},{"$f":"Lighting!R774","v":0},{"$f":"Lighting!S774","v":0},{"$f":"Lighting!U774","v":""},{"$f":"Lighting!V774","v":""},{"$f":"Lighting!W774","v":""},{"$f":"Lighting!X774","v":0},{"$f":"Lighting!Y774","v":""},{"$f":"Lighting!AA774","v":""},{"$f":"Lighting!AC774","v":""},{"$f":"Lighting!AF774","v":""},{"$f":"Lighting!AG774","v":0},{"$f":"Lighting!AH774","v":0},{"$f":"Lighting!AI774","v":0}]
[0,{"$f":"Lighting!B775","v":767},{"$f":"Lighting!C775","v":0},{"$f":"Lighting!D775","v":0},{"$f":"Lighting!F775","v":0},{"$f":"Lighting!G775","v":0},{"$f":"Lighting!H775","v":0},{"$f":"Lighting!I775","v":0},{"$f":"Lighting!J775","v":0},{"$f":"Lighting!K775","v":0},{"$f":"Lighting!L775","v":0},{"$f":"Lighting!N775","v":0},{"$f":"Lighting!O775","v":0},{"$f":"Lighting!R775","v":0},{"$f":"Lighting!S775","v":0},{"$f":"Lighting!U775","v":""},{"$f":"Lighting!V775","v":""},{"$f":"Lighting!W775","v":""},{"$f":"Lighting!X775","v":0},{"$f":"Lighting!Y775","v":""},{"$f":"Lighting!AA775","v":""},{"$f":"Lighting!AC775","v":""},{"$f":"Lighting!AF775","v":""},{"$f":"Lighting!AG775","v":0},{"$f":"Lighting!AH775","v":0},{"$f":"Lighting!AI775","v":0}]
[0,{"$f":"Lighting!B776","v":768},{"$f":"Lighting!C776","v":0},{"$f":"Lighting!D776","v":0},{"$f":"Lighting!F776","v":0},{"$f":"Lighting!G776","v":0},{"$f":"Lighting!H776","v":0},{"$f":"Lighting!I776","v":0},{"$f":"Lighting!J776","v":0},{"$f":"Lighting!K776","v":0},{"$f":"Lighting!L776","v":0},{"$f":"Lighting!N776","v":0},{"$f":"Lighting!O776","v":0},{"$f":"Lighting!R776","v":0},{"$f":"Lighting!S776","v":0},{"$f":"Lighting!U776","v":""},{"$f":"Lighting!V776","v":""},{"$f":"Lighting!W776","v":""},{"$f":"Lighting!X776","v":0},{"$f":"Lighting!Y776","v":""},{"$f":"Lighting!AA776","v":""},{"$f":"Lighting!AC776","v":""},{"$f":"Lighting!AF776","v":""},{"$f":"Lighting!AG776","v":0},{"$f":"Lighting!AH776","v":0},{"$f":"Lighting!AI776","v":0}]
[0,{"$f":"Lighting!B777","v":769},{"$f":"Lighting!C777","v":0},{"$f":"Lighting!D777","v":0},{"$f":"Lighting!F777","v":0},{"$f":"Lighting!G777","v":0},{"$f":"Lighting!H777","v":0},{"$f":"Lighting!I777","v":0},{"$f":"Lighting!J777","v":0},{"$f":"Lighting!K777","v":0},{"$f":"Lighting!L777","v":0},{"$f":"Lighting!N777","v":0},{"$f":"Lighting!O777","v":0},{"$f":"Lighting!R777","v":0},{"$f":"Lighting!S777","v":0},{"$f":"Lighting!U777","v":""},{"$f":"Lighting!V777","v":""},{"$f":"Lighting!W777","v":""},{"$f":"Lighting!X777","v":0},{"$f":"Lighting!Y777","v":""},{"$f":"Lighting!AA777","v":""},{"$f":"Lighting!AC777","v":""},{"$f":"Lighting!AF777","v":""},{"$f":"Lighting!AG777","v":0},{"$f":"Lighting!AH777","v":0},{"$f":"Lighting!AI777","v":0}]
[0,{"$f":"Lighting!B778","v":770},{"$f":"Lighting!C778","v":0},{"$f":"Lighting!D778","v":0},{"$f":"Lighting!F778","v":0},{"$f":"Lighting!G778","v":0},{"$f":"Lighting!H778","v":0},{"$f":"Lighting!I778","v":0},{"$f":"Lighting!J778","v":0},{"$f":"Lighting!K778","v":0},{"$f":"Lighting!L778","v":0},{"$f":"Lighting!N778","v":0},{"$f":"Lighting!O778","v":0},{"$f":"Lighting!R778","v":0},{"$f":"Lighting!S778","v":0},{"$f":"Lighting!U778","v":""},{"$f":"Lighting!V778","v":""},{"$f":"Lighting!W778","v":""},{"$f":"Lighting!X778","v":0},{"$f":"Lighting!Y778","v":""},{"$f":"Lighting!AA778","v":""},{"$f":"Lighting!AC778","v":""},{"$f":"Lighting!AF778","v":""},{"$f":"Lighting!AG778","v":0},{"$f":"Lighting!AH778","v":0},{"$f":"Lighting!AI778","v":0}]
[0,{"$f":"Lighting!B779","v":771},{"$f":"Lighting!C779","v":0},{"$f":"Lighting!D779","v":0},{"$f":"Lighting!F779","v":0},{"$f":"Lighting!G779","v":0},{"$f":"Lighting!H779","v":0},{"$f":"Lighting!I779","v":0},{"$f":"Lighting!J779","v":0},{"$f":"Lighting!K779","v":0},{"$f":"Lighting!L779","v":0},{"$f":"Lighting!N779","v":0},{"$f":"Lighting!O779","v":0},{"$f":"Lighting!R779","v":0},{"$f":"Lighting!S779","v":0},{"$f":"Lighting!U779","v":""},{"$f":"Lighting!V779","v":""},{"$f":"Lighting!W779","v":""},{"$f":"Lighting!X779","v":0},{"$f":"Lighting!Y779","v":""},{"$f":"Lighting!AA779","v":""},{"$f":"Lighting!AC779","v":""},{"$f":"Lighting!AF779","v":""},{"$f":"Lighting!AG779","v":0},{"$f":"Lighting!AH779","v":0},{"$f":"Lighting!AI779","v":0}]
[0,{"$f":"Lighting!B780","v":772},{"$f":"Lighting!C780","v":0},{"$f":"Lighting!D780","v":0},{"$f":"Lighting!F780","v":0},{"$f":"Lighting!G780","v":0},{"$f":"Lighting!H780","v":0},{"$f":"Lighting!I780","v":0},{"$f":"Lighting!J780","v":0},{"$f":"Lighting!K780","v":0},{"$f":"Lighting!L780","v":0},{"$f":"Lighting!N780","v":0},{"$f":"Lighting!O780","v":0},{"$f":"Lighting!R780","v":0},{"$f":"Lighting!S780","v":0},{"$f":"Lighting!U780","v":""},{"$f":"Lighting!V780","v":""},{"$f":"Lighting!W780","v":""},{"$f":"Lighting!X780","v":0},{"$f":"Lighting!Y780","v":""},{"$f":"Lighting!AA780","v":""},{"$f":"Lighting!AC780","v":""},{"$f":"Lighting!AF780","v":""},{"$f":"Lighting!AG780","v":0},{"$f":"Lighting!AH780","v":0},{"$f":"Lighting!AI780","v":0}]
[0,{"$f":"Lighting!B781","v":773},{"$f":"Lighting!C781","v":0},{"$f":"Lighting!D781","v":0},{"$f":"Lighting!F781","v":0},{"$f":"Lighting!G781","v":0},{"$f":"Lighting!H781","v":0},{"$f":"Lighting!I781","v":0},{"$f":"Lighting!J781","v":0},{"$f":"Lighting!K781","v":0},{"$f":"Lighting!L781","v":0},{"$f":"Lighting!N781","v":0},{"$f":"Lighting!O781","v":0},{"$f":"Lighting!R781","v":0},{"$f":"Lighting!S781","v":0},{"$f":"Lighting!U781","v":""},{"$f":"Lighting!V781","v":""},{"$f":"Lighting!W781","v":""},{"$f":"Lighting!X781","v":0},{"$f":"Lighting!Y781","v":""},{"$f":"Lighting!AA781","v":""},{"$f":"Lighting!AC781","v":""},{"$f":"Lighting!AF781","v":""},{"$f":"Lighting!AG781","v":0},{"$f":"Lighting!AH781","v":0},{"$f":"Lighting!AI781","v":0}]
[0,{"$f":"Lighting!B782","v":774},{"$f":"Lighting!C782","v":0},{"$f":"Lighting!D782","v":0},{"$f":"Lighting!F782","v":0},{"$f":"Lighting!G782","v":0},{"$f":"Lighting!H782","v":0},{"$f":"Lighting!I782","v":0},{"$f":"Lighting!J782","v":0},{"$f":"Lighting!K782","v":0},{"$f":"Lighting!L782","v":0},{"$f":"Lighting!N782","v":0},{"$f":"Lighting!O782","v":0},{"$f":"Lighting!R782","v":0},{"$f":"Lighting!S782","v":0},{"$f":"Lighting!U782","v":""},{"$f":"Lighting!V782","v":""},{"$f":"Lighting!W782","v":""},{"$f":"Lighting!X782","v":0},{"$f":"Lighting!Y782","v":""},{"$f":"Lighting!AA782","v":""},{"$f":"Lighting!AC782","v":""},{"$f":"Lighting!AF782","v":""},{"$f":"Lighting!AG782","v":0},{"$f":"Lighting!AH782","v":0},{"$f":"Lighting!AI782","v":0}]
[0,{"$f":"Lighting!B783","v":775},{"$f":"Lighting!C783","v":0},{"$f":"Lighting!D783","v":0},{"$f":"Lighting!F783","v":0},{"$f":"Lighting!G783","v":0},{"$f":"Lighting!H783","v":0},{"$f":"Lighting!I783","v":0},{"$f":"Lighting!J783","v":0},{"$f":"Lighting!K783","v":0},{"$f":"Lighting!L783","v":0},{"$f":"Lighting!N783","v":0},{"$f":"Lighting!O783","v":0},{"$f":"Lighting!R783","v":0},{"$f":"Lighting!S783","v":0},{"$f":"Lighting!U783","v":""},{"$f":"Lighting!V783","v":""},{"$f":"Lighting!W783","v":""},{"$f":"Lighting!X783","v":0},{"$f":"Lighting!Y783","v":""},{"$f":"Lighting!AA783","v":""},{"$f":"Lighting!AC783","v":""},{"$f":"Lighting!AF783","v":""},{"$f":"Lighting!AG783","v":0},{"$f":"Lighting!AH783","v":0},{"$f":"Lighting!AI783","v":0}]
[{"$f":"IF(G940=0,0,1)","v":0},{"$f":"Lighting!B784","v":776},{"$f":"Lighting!C784","v":0},{"$f":"Lighting!D784","v":0},{"$f":"Lighting!F784","v":0},{"$f":"Lighting!G784","v":0},{"$f":"Lighting!H784","v":0},{"$f":"Lighting!I784","v":0},{"$f":"Lighting!J784","v":0},{"$f":"Lighting!K784","v":0},{"$f":"Lighting!L784","v":0},{"$f":"Lighting!N784","v":0},{"$f":"Lighting!O784","v":0},{"$f":"Lighting!R784","v":0},{"$f":"Lighting!S784","v":0},{"$f":"Lighting!U784","v":""},{"$f":"Lighting!V784","v":""},{"$f":"Lighting!W784","v":""},{"$f":"Lighting!X784","v":0},{"$f":"Lighting!Y784","v":""},{"$f":"Lighting!AA784","v":""},{"$f":"Lighting!AC784","v":""},{"$f":"Lighting!AF784","v":""},{"$f":"Lighting!AG784","v":0},{"$f":"Lighting!AH784","v":0},{"$f":"Lighting!AI784","v":0}]
[0,{"$f":"Lighting!B785","v":777},{"$f":"Lighting!C785","v":0},{"$f":"Lighting!D785","v":0},{"$f":"Lighting!F785","v":0},{"$f":"Lighting!G785","v":0},{"$f":"Lighting!H785","v":0},{"$f":"Lighting!I785","v":0},{"$f":"Lighting!J785","v":0},{"$f":"Lighting!K785","v":0},{"$f":"Lighting!L785","v":0},{"$f":"Lighting!N785","v":0},{"$f":"Lighting!O785","v":0},{"$f":"Lighting!R785","v":0},{"$f":"Lighting!S785","v":0},{"$f":"Lighting!U785","v":""},{"$f":"Lighting!V785","v":""},{"$f":"Lighting!W785","v":""},{"$f":"Lighting!X785","v":0},{"$f":"Lighting!Y785","v":""},{"$f":"Lighting!AA785","v":""},{"$f":"Lighting!AC785","v":""},{"$f":"Lighting!AF785","v":""},{"$f":"Lighting!AG785","v":0},{"$f":"Lighting!AH785","v":0},{"$f":"Lighting!AI785","v":0}]
[0,{"$f":"Lighting!B786","v":778},{"$f":"Lighting!C786","v":0},{"$f":"Lighting!D786","v":0},{"$f":"Lighting!F786","v":0},{"$f":"Lighting!G786","v":0},{"$f":"Lighting!H786","v":0},{"$f":"Lighting!I786","v":0},{"$f":"Lighting!J786","v":0},{"$f":"Lighting!K786","v":0},{"$f":"Lighting!L786","v":0},{"$f":"Lighting!N786","v":0},{"$f":"Lighting!O786","v":0},{"$f":"Lighting!R786","v":0},{"$f":"Lighting!S786","v":0},{"$f":"Lighting!U786","v":""},{"$f":"Lighting!V786","v":""},{"$f":"Lighting!W786","v":""},{"$f":"Lighting!X786","v":0},{"$f":"Lighting!Y786","v":""},{"$f":"Lighting!AA786","v":""},{"$f":"Lighting!AC786","v":""},{"$f":"Lighting!AF786","v":""},{"$f":"Lighting!AG786","v":0},{"$f":"Lighting!AH786","v":0},{"$f":"Lighting!AI786","v":0}]
[0,{"$f":"Lighting!B787","v":779},{"$f":"Lighting!C787","v":0},{"$f":"Lighting!D787","v":0},{"$f":"Lighting!F787","v":0},{"$f":"Lighting!G787","v":0},{"$f":"Lighting!H787","v":0},{"$f":"Lighting!I787","v":0},{"$f":"Lighting!J787","v":0},{"$f":"Lighting!K787","v":0},{"$f":"Lighting!L787","v":0},{"$f":"Lighting!N787","v":0},{"$f":"Lighting!O787","v":0},{"$f":"Lighting!R787","v":0},{"$f":"Lighting!S787","v":0},{"$f":"Lighting!U787","v":""},{"$f":"Lighting!V787","v":""},{"$f":"Lighting!W787","v":""},{"$f":"Lighting!X787","v":0},{"$f":"Lighting!Y787","v":""},{"$f":"Lighting!AA787","v":""},{"$f":"Lighting!AC787","v":""},{"$f":"Lighting!AF787","v":""},{"$f":"Lighting!AG787","v":0},{"$f":"Lighting!AH787","v":0},{"$f":"Lighting!AI787","v":0}]
[0,{"$f":"Lighting!B788","v":780},{"$f":"Lighting!C788","v":0},{"$f":"Lighting!D788","v":0},{"$f":"Lighting!F788","v":0},{"$f":"Lighting!G788","v":0},{"$f":"Lighting!H788","v":0},{"$f":"Lighting!I788","v":0},{"$f":"Lighting!J788","v":0},{"$f":"Lighting!K788","v":0},{"$f":"Lighting!L788","v":0},{"$f":"Lighting!N788","v":0},{"$f":"Lighting!O788","v":0},{"$f":"Lighting!R788","v":0},{"$f":"Lighting!S788","v":0},{"$f":"Lighting!U788","v":""},{"$f":"Lighting!V788","v":""},{"$f":"Lighting!W788","v":""},{"$f":"Lighting!X788","v":0},{"$f":"Lighting!Y788","v":""},{"$f":"Lighting!AA788","v":""},{"$f":"Lighting!AC788","v":""},{"$f":"Lighting!AF788","v":""},{"$f":"Lighting!AG788","v":0},{"$f":"Lighting!AH788","v":0},{"$f":"Lighting!AI788","v":0}]
[0,{"$f":"Lighting!B789","v":781},{"$f":"Lighting!C789","v":0},{"$f":"Lighting!D789","v":0},{"$f":"Lighting!F789","v":0},{"$f":"Lighting!G789","v":0},{"$f":"Lighting!H789","v":0},{"$f":"Lighting!I789","v":0},{"$f":"Lighting!J789","v":0},{"$f":"Lighting!K789","v":0},{"$f":"Lighting!L789","v":0},{"$f":"Lighting!N789","v":0},{"$f":"Lighting!O789","v":0},{"$f":"Lighting!R789","v":0},{"$f":"Lighting!S789","v":0},{"$f":"Lighting!U789","v":""},{"$f":"Lighting!V789","v":""},{"$f":"Lighting!W789","v":""},{"$f":"Lighting!X789","v":0},{"$f":"Lighting!Y789","v":""},{"$f":"Lighting!AA789","v":""},{"$f":"Lighting!AC789","v":""},{"$f":"Lighting!AF789","v":""},{"$f":"Lighting!AG789","v":0},{"$f":"Lighting!AH789","v":0},{"$f":"Lighting!AI789","v":0}]
[0,{"$f":"Lighting!B790","v":782},{"$f":"Lighting!C790","v":0},{"$f":"Lighting!D790","v":0},{"$f":"Lighting!F790","v":0},{"$f":"Lighting!G790","v":0},{"$f":"Lighting!H790","v":0},{"$f":"Lighting!I790","v":0},{"$f":"Lighting!J790","v":0},{"$f":"Lighting!K790","v":0},{"$f":"Lighting!L790","v":0},{"$f":"Lighting!N790","v":0},{"$f":"Lighting!O790","v":0},{"$f":"Lighting!R790","v":0},{"$f":"Lighting!S790","v":0},{"$f":"Lighting!U790","v":""},{"$f":"Lighting!V790","v":""},{"$f":"Lighting!W790","v":""},{"$f":"Lighting!X790","v":0},{"$f":"Lighting!Y790","v":""},{"$f":"Lighting!AA790","v":""},{"$f":"Lighting!AC790","v":""},{"$f":"Lighting!AF790","v":""},{"$f":"Lighting!AG790","v":0},{"$f":"Lighting!AH790","v":0},{"$f":"Lighting!AI790","v":0}]
[0,{"$f":"Lighting!B791","v":783},{"$f":"Lighting!C791","v":0},{"$f":"Lighting!D791","v":0},{"$f":"Lighting!F791","v":0},{"$f":"Lighting!G791","v":0},{"$f":"Lighting!H791","v":0},{"$f":"Lighting!I791","v":0},{"$f":"Lighting!J791","v":0},{"$f":"Lighting!K791","v":0},{"$f":"Lighting!L791","v":0},{"$f":"Lighting!N791","v":0},{"$f":"Lighting!O791","v":0},{"$f":"Lighting!R791","v":0},{"$f":"Lighting!S791","v":0},{"$f":"Lighting!U791","v":""},{"$f":"Lighting!V791","v":""},{"$f":"Lighting!W791","v":""},{"$f":"Lighting!X791","v":0},{"$f":"Lighting!Y791","v":""},{"$f":"Lighting!AA791","v":""},{"$f":"Lighting!AC791","v":""},{"$f":"Lighting!AF791","v":""},{"$f":"Lighting!AG791","v":0},{"$f":"Lighting!AH791","v":0},{"$f":"Lighting!AI791","v":0}]
[0,{"$f":"Lighting!B792","v":784},{"$f":"Lighting!C792","v":0},{"$f":"Lighting!D792","v":0},{"$f":"Lighting!F792","v":0},{"$f":"Lighting!G792","v":0},{"$f":"Lighting!H792","v":0},{"$f":"Lighting!I792","v":0},{"$f":"Lighting!J792","v":0},{"$f":"Lighting!K792","v":0},{"$f":"Lighting!L792","v":0},{"$f":"Lighting!N792","v":0},{"$f":"Lighting!O792","v":0},{"$f":"Lighting!R792","v":0},{"$f":"Lighting!S792","v":0},{"$f":"Lighting!U792","v":""},{"$f":"Lighting!V792","v":""},{"$f":"Lighting!W792","v":""},{"$f":"Lighting!X792","v":0},{"$f":"Lighting!Y792","v":""},{"$f":"Lighting!AA792","v":""},{"$f":"Lighting!AC792","v":""},{"$f":"Lighting!AF792","v":""},{"$f":"Lighting!AG792","v":0},{"$f":"Lighting!AH792","v":0},{"$f":"Lighting!AI792","v":0}]
[0,{"$f":"Lighting!B793","v":785},{"$f":"Lighting!C793","v":0},{"$f":"Lighting!D793","v":0},{"$f":"Lighting!F793","v":0},{"$f":"Lighting!G793","v":0},{"$f":"Lighting!H793","v":0},{"$f":"Lighting!I793","v":0},{"$f":"Lighting!J793","v":0},{"$f":"Lighting!K793","v":0},{"$f":"Lighting!L793","v":0},{"$f":"Lighting!N793","v":0},{"$f":"Lighting!O793","v":0},{"$f":"Lighting!R793","v":0},{"$f":"Lighting!S793","v":0},{"$f":"Lighting!U793","v":""},{"$f":"Lighting!V793","v":""},{"$f":"Lighting!W793","v":""},{"$f":"Lighting!X793","v":0},{"$f":"Lighting!Y793","v":""},{"$f":"Lighting!AA793","v":""},{"$f":"Lighting!AC793","v":""},{"$f":"Lighting!AF793","v":""},{"$f":"Lighting!AG793","v":0},{"$f":"Lighting!AH793","v":0},{"$f":"Lighting!AI793","v":0}]
[0,{"$f":"Lighting!B794","v":786},{"$f":"Lighting!C794","v":0},{"$f":"Lighting!D794","v":0},{"$f":"Lighting!F794","v":0},{"$f":"Lighting!G794","v":0},{"$f":"Lighting!H794","v":0},{"$f":"Lighting!I794","v":0},{"$f":"Lighting!J794","v":0},{"$f":"Lighting!K794","v":0},{"$f":"Lighting!L794","v":0},{"$f":"Lighting!N794","v":0},{"$f":"Lighting!O794","v":0},{"$f":"Lighting!R794","v":0},{"$f":"Lighting!S794","v":0},{"$f":"Lighting!U794","v":""},{"$f":"Lighting!V794","v":""},{"$f":"Lighting!W794","v":""},{"$f":"Lighting!X794","v":0},{"$f":"Lighting!Y794","v":""},{"$f":"Lighting!AA794","v":""},{"$f":"Lighting!AC794","v":""},{"$f":"Lighting!AF794","v":""},{"$f":"Lighting!AG794","v":0},{"$f":"Lighting!AH794","v":0},{"$f":"Lighting!AI794","v":0}]
[0,{"$f":"Lighting!B795","v":787},{"$f":"Lighting!C795","v":0},{"$f":"Lighting!D795","v":0},{"$f":"Lighting!F795","v":0},{"$f":"Lighting!G795","v":0},{"$f":"Lighting!H795","v":0},{"$f":"Lighting!I795","v":0},{"$f":"Lighting!J795","v":0},{"$f":"Lighting!K795","v":0},{"$f":"Lighting!L795","v":0},{"$f":"Lighting!N795","v":0},{"$f":"Lighting!O795","v":0},{"$f":"Lighting!R795","v":0},{"$f":"Lighting!S795","v":0},{"$f":"Lighting!U795","v":""},{"$f":"Lighting!V795","v":""},{"$f":"Lighting!W795","v":""},{"$f":"Lighting!X795","v":0},{"$f":"Lighting!Y795","v":""},{"$f":"Lighting!AA795","v":""},{"$f":"Lighting!AC795","v":""},{"$f":"Lighting!AF795","v":""},{"$f":"Lighting!AG795","v":0},{"$f":"Lighting!AH795","v":0},{"$f":"Lighting!AI795","v":0}]
[0,{"$f":"Lighting!B796","v":788},{"$f":"Lighting!C796","v":0},{"$f":"Lighting!D796","v":0},{"$f":"Lighting!F796","v":0},{"$f":"Lighting!G796","v":0},{"$f":"Lighting!H796","v":0},{"$f":"Lighting!I796","v":0},{"$f":"Lighting!J796","v":0},{"$f":"Lighting!K796","v":0},{"$f":"Lighting!L796","v":0},{"$f":"Lighting!N796","v":0},{"$f":"Lighting!O796","v":0},{"$f":"Lighting!R796","v":0},{"$f":"Lighting!S796","v":0},{"$f":"Lighting!U796","v":""},{"$f":"Lighting!V796","v":""},{"$f":"Lighting!W796","v":""},{"$f":"Lighting!X796","v":0},{"$f":"Lighting!Y796","v":""},{"$f":"Lighting!AA796","v":""},{"$f":"Lighting!AC796","v":""},{"$f":"Lighting!AF796","v":""},{"$f":"Lighting!AG796","v":0},{"$f":"Lighting!AH796","v":0},{"$f":"Lighting!AI796","v":0}]
[0,{"$f":"Lighting!B797","v":789},{"$f":"Lighting!C797","v":0},{"$f":"Lighting!D797","v":0},{"$f":"Lighting!F797","v":0},{"$f":"Lighting!G797","v":0},{"$f":"Lighting!H797","v":0},{"$f":"Lighting!I797","v":0},{"$f":"Lighting!J797","v":0},{"$f":"Lighting!K797","v":0},{"$f":"Lighting!L797","v":0},{"$f":"Lighting!N797","v":0},{"$f":"Lighting!O797","v":0},{"$f":"Lighting!R797","v":0},{"$f":"Lighting!S797","v":0},{"$f":"Lighting!U797","v":""},{"$f":"Lighting!V797","v":""},{"$f":"Lighting!W797","v":""},{"$f":"Lighting!X797","v":0},{"$f":"Lighting!Y797","v":""},{"$f":"Lighting!AA797","v":""},{"$f":"Lighting!AC797","v":""},{"$f":"Lighting!AF797","v":""},{"$f":"Lighting!AG797","v":0},{"$f":"Lighting!AH797","v":0},{"$f":"Lighting!AI797","v":0}]
[0,{"$f":"Lighting!B798","v":790},{"$f":"Lighting!C798","v":0},{"$f":"Lighting!D798","v":0},{"$f":"Lighting!F798","v":0},{"$f":"Lighting!G798","v":0},{"$f":"Lighting!H798","v":0},{"$f":"Lighting!I798","v":0},{"$f":"Lighting!J798","v":0},{"$f":"Lighting!K798","v":0},{"$f":"Lighting!L798","v":0},{"$f":"Lighting!N798","v":0},{"$f":"Lighting!O798","v":0},{"$f":"Lighting!R798","v":0},{"$f":"Lighting!S798","v":0},{"$f":"Lighting!U798","v":""},{"$f":"Lighting!V798","v":""},{"$f":"Lighting!W798","v":""},{"$f":"Lighting!X798","v":0},{"$f":"Lighting!Y798","v":""},{"$f":"Lighting!AA798","v":""},{"$f":"Lighting!AC798","v":""},{"$f":"Lighting!AF798","v":""},{"$f":"Lighting!AG798","v":0},{"$f":"Lighting!AH798","v":0},{"$f":"Lighting!AI798","v":0}]
[0,{"$f":"Lighting!B799","v":791},{"$f":"Lighting!C799","v":0},{"$f":"Lighting!D799","v":0},{"$f":"Lighting!F799","v":0},{"$f":"Lighting!G799","v":0},{"$f":"Lighting!H799","v":0},{"$f":"Lighting!I799","v":0},{"$f":"Lighting!J799","v":0},{"$f":"Lighting!K799","v":0},{"$f":"Lighting!L799","v":0},{"$f":"Lighting!N799","v":0},{"$f":"Lighting!O799","v":0},{"$f":"Lighting!R799","v":0},{"$f":"Lighting!S799","v":0},{"$f":"Lighting!U799","v":""},{"$f":"Lighting!V799","v":""},{"$f":"Lighting!W799","v":""},{"$f":"Lighting!X799","v":0},{"$f":"Lighting!Y799","v":""},{"$f":"Lighting!AA799","v":""},{"$f":"Lighting!AC799","v":""},{"$f":"Lighting!AF799","v":""},{"$f":"Lighting!AG799","v":0},{"$f":"Lighting!AH799","v":0},{"$f":"Lighting!AI799","v":0}]
[0,{"$f":"Lighting!B800","v":792},{"$f":"Lighting!C800","v":0},{"$f":"Lighting!D800","v":0},{"$f":"Lighting!F800","v":0},{"$f":"Lighting!G800","v":0},{"$f":"Lighting!H800","v":0},{"$f":"Lighting!I800","v":0},{"$f":"Lighting!J800","v":0},{"$f":"Lighting!K800","v":0},{"$f":"Lighting!L800","v":0},{"$f":"Lighting!N800","v":0},{"$f":"Lighting!O800","v":0},{"$f":"Lighting!R800","v":0},{"$f":"Lighting!S800","v":0},{"$f":"Lighting!U800","v":""},{"$f":"Lighting!V800","v":""},{"$f":"Lighting!W800","v":""},{"$f":"Lighting!X800","v":0},{"$f":"Lighting!Y800","v":""},{"$f":"Lighting!AA800","v":""},{"$f":"Lighting!AC800","v":""},{"$f":"Lighting!AF800","v":""},{"$f":"Lighting!AG800","v":0},{"$f":"Lighting!AH800","v":0},{"$f":"Lighting!AI800","v":0}]
[0,{"$f":"Lighting!B801","v":793},{"$f":"Lighting!C801","v":0},{"$f":"Lighting!D801","v":0},{"$f":"Lighting!F801","v":0},{"$f":"Lighting!G801","v":0},{"$f":"Lighting!H801","v":0},{"$f":"Lighting!I801","v":0},{"$f":"Lighting!J801","v":0},{"$f":"Lighting!K801","v":0},{"$f":"Lighting!L801","v":0},{"$f":"Lighting!N801","v":0},{"$f":"Lighting!O801","v":0},{"$f":"Lighting!R801","v":0},{"$f":"Lighting!S801","v":0},{"$f":"Lighting!U801","v":""},{"$f":"Lighting!V801","v":""},{"$f":"Lighting!W801","v":""},{"$f":"Lighting!X801","v":0},{"$f":"Lighting!Y801","v":""},{"$f":"Lighting!AA801","v":""},{"$f":"Lighting!AC801","v":""},{"$f":"Lighting!AF801","v":""},{"$f":"Lighting!AG801","v":0},{"$f":"Lighting!AH801","v":0},{"$f":"Lighting!AI801","v":0}]
[0,{"$f":"Lighting!B802","v":794},{"$f":"Lighting!C802","v":0},{"$f":"Lighting!D802","v":0},{"$f":"Lighting!F802","v":0},{"$f":"Lighting!G802","v":0},{"$f":"Lighting!H802","v":0},{"$f":"Lighting!I802","v":0},{"$f":"Lighting!J802","v":0},{"$f":"Lighting!K802","v":0},{"$f":"Lighting!L802","v":0},{"$f":"Lighting!N802","v":0},{"$f":"Lighting!O802","v":0},{"$f":"Lighting!R802","v":0},{"$f":"Lighting!S802","v":0},{"$f":"Lighting!U802","v":""},{"$f":"Lighting!V802","v":""},{"$f":"Lighting!W802","v":""},{"$f":"Lighting!X802","v":0},{"$f":"Lighting!Y802","v":""},{"$f":"Lighting!AA802","v":""},{"$f":"Lighting!AC802","v":""},{"$f":"Lighting!AF802","v":""},{"$f":"Lighting!AG802","v":0},{"$f":"Lighting!AH802","v":0},{"$f":"Lighting!AI802","v":0}]
[0,{"$f":"Lighting!B803","v":795},{"$f":"Lighting!C803","v":0},{"$f":"Lighting!D803","v":0},{"$f":"Lighting!F803","v":0},{"$f":"Lighting!G803","v":0},{"$f":"Lighting!H803","v":0},{"$f":"Lighting!I803","v":0},{"$f":"Lighting!J803","v":0},{"$f":"Lighting!K803","v":0},{"$f":"Lighting!L803","v":0},{"$f":"Lighting!N803","v":0},{"$f":"Lighting!O803","v":0},{"$f":"Lighting!R803","v":0},{"$f":"Lighting!S803","v":0},{"$f":"Lighting!U803","v":""},{"$f":"Lighting!V803","v":""},{"$f":"Lighting!W803","v":""},{"$f":"Lighting!X803","v":0},{"$f":"Lighting!Y803","v":""},{"$f":"Lighting!AA803","v":""},{"$f":"Lighting!AC803","v":""},{"$f":"Lighting!AF803","v":""},{"$f":"Lighting!AG803","v":0},{"$f":"Lighting!AH803","v":0},{"$f":"Lighting!AI803","v":0}]
[0,{"$f":"Lighting!B804","v":796},{"$f":"Lighting!C804","v":0},{"$f":"Lighting!D804","v":0},{"$f":"Lighting!F804","v":0},{"$f":"Lighting!G804","v":0},{"$f":"Lighting!H804","v":0},{"$f":"Lighting!I804","v":0},{"$f":"Lighting!J804","v":0},{"$f":"Lighting!K804","v":0},{"$f":"Lighting!L804","v":0},{"$f":"Lighting!N804","v":0},{"$f":"Lighting!O804","v":0},{"$f":"Lighting!R804","v":0},{"$f":"Lighting!S804","v":0},{"$f":"Lighting!U804","v":""},{"$f":"Lighting!V804","v":""},{"$f":"Lighting!W804","v":""},{"$f":"Lighting!X804","v":0},{"$f":"Lighting!Y804","v":""},{"$f":"Lighting!AA804","v":""},{"$f":"Lighting!AC804","v":""},{"$f":"Lighting!AF804","v":""},{"$f":"Lighting!AG804","v":0},{"$f":"Lighting!AH804","v":0},{"$f":"Lighting!AI804","v":0}]
[0,{"$f":"Lighting!B805","v":797},{"$f":"Lighting!C805","v":0},{"$f":"Lighting!D805","v":0},{"$f":"Lighting!F805","v":0},{"$f":"Lighting!G805","v":0},{"$f":"Lighting!H805","v":0},{"$f":"Lighting!I805","v":0},{"$f":"Lighting!J805","v":0},{"$f":"Lighting!K805","v":0},{"$f":"Lighting!L805","v":0},{"$f":"Lighting!N805","v":0},{"$f":"Lighting!O805","v":0},{"$f":"Lighting!R805","v":0},{"$f":"Lighting!S805","v":0},{"$f":"Lighting!U805","v":""},{"$f":"Lighting!V805","v":""},{"$f":"Lighting!W805","v":""},{"$f":"Lighting!X805","v":0},{"$f":"Lighting!Y805","v":""},{"$f":"Lighting!AA805","v":""},{"$f":"Lighting!AC805","v":""},{"$f":"Lighting!AF805","v":""},{"$f":"Lighting!AG805","v":0},{"$f":"Lighting!AH805","v":0},{"$f":"Lighting!AI805","v":0}]
[0,{"$f":"Lighting!B806","v":798},{"$f":"Lighting!C806","v":0},{"$f":"Lighting!D806","v":0},{"$f":"Lighting!F806","v":0},{"$f":"Lighting!G806","v":0},{"$f":"Lighting!H806","v":0},{"$f":"Lighting!I806","v":0},{"$f":"Lighting!J806","v":0},{"$f":"Lighting!K806","v":0},{"$f":"Lighting!L806","v":0},{"$f":"Lighting!N806","v":0},{"$f":"Lighting!O806","v":0},{"$f":"Lighting!R806","v":0},{"$f":"Lighting!S806","v":0},{"$f":"Lighting!U806","v":""},{"$f":"Lighting!V806","v":""},{"$f":"Lighting!W806","v":""},{"$f":"Lighting!X806","v":0},{"$f":"Lighting!Y806","v":""},{"$f":"Lighting!AA806","v":""},{"$f":"Lighting!AC806","v":""},{"$f":"Lighting!AF806","v":""},{"$f":"Lighting!AG806","v":0},{"$f":"Lighting!AH806","v":0},{"$f":"Lighting!AI806","v":0}]
[0,{"$f":"Lighting!B807","v":799},{"$f":"Lighting!C807","v":0},{"$f":"Lighting!D807","v":0},{"$f":"Lighting!F807","v":0},{"$f":"Lighting!G807","v":0},{"$f":"Lighting!H807","v":0},{"$f":"Lighting!I807","v":0},{"$f":"Lighting!J807","v":0},{"$f":"Lighting!K807","v":0},{"$f":"Lighting!L807","v":0},{"$f":"Lighting!N807","v":0},{"$f":"Lighting!O807","v":0},{"$f":"Lighting!R807","v":0},{"$f":"Lighting!S807","v":0},{"$f":"Lighting!U807","v":""},{"$f":"Lighting!V807","v":""},{"$f":"Lighting!W807","v":""},{"$f":"Lighting!X807","v":0},{"$f":"Lighting!Y807","v":""},{"$f":"Lighting!AA807","v":""},{"$f":"Lighting!AC807","v":""},{"$f":"Lighting!AF807","v":""},{"$f":"Lighting!AG807","v":0},{"$f":"Lighting!AH807","v":0},{"$f":"Lighting!AI807","v":0}]
[0,{"$f":"Lighting!B808","v":800},{"$f":"Lighting!C808","v":0},{"$f":"Lighting!D808","v":0},{"$f":"Lighting!F808","v":0},{"$f":"Lighting!G808","v":0},{"$f":"Lighting!H808","v":0},{"$f":"Lighting!I808","v":0},{"$f":"Lighting!J808","v":0},{"$f":"Lighting!K808","v":0},{"$f":"Lighting!L808","v":0},{"$f":"Lighting!N808","v":0},{"$f":"Lighting!O808","v":0},{"$f":"Lighting!R808","v":0},{"$f":"Lighting!S808","v":0},{"$f":"Lighting!U808","v":""},{"$f":"Lighting!V808","v":""},{"$f":"Lighting!W808","v":""},{"$f":"Lighting!X808","v":0},{"$f":"Lighting!Y808","v":""},{"$f":"Lighting!AA808","v":""},{"$f":"Lighting!AC808","v":""},{"$f":"Lighting!AF808","v":""},{"$f":"Lighting!AG808","v":0},{"$f":"Lighting!AH808","v":0},{"$f":"Lighting!AI808","v":0}]
[0,{"$f":"Lighting!B809","v":801},{"$f":"Lighting!C809","v":0},{"$f":"Lighting!D809","v":0},{"$f":"Lighting!F809","v":0},{"$f":"Lighting!G809","v":0},{"$f":"Lighting!H809","v":0},{"$f":"Lighting!I809","v":0},{"$f":"Lighting!J809","v":0},{"$f":"Lighting!K809","v":0},{"$f":"Lighting!L809","v":0},{"$f":"Lighting!N809","v":0},{"$f":"Lighting!O809","v":0},{"$f":"Lighting!R809","v":0},{"$f":"Lighting!S809","v":0},{"$f":"Lighting!U809","v":""},{"$f":"Lighting!V809","v":""},{"$f":"Lighting!W809","v":""},{"$f":"Lighting!X809","v":0},{"$f":"Lighting!Y809","v":""},{"$f":"Lighting!AA809","v":""},{"$f":"Lighting!AC809","v":""},{"$f":"Lighting!AF809","v":""},{"$f":"Lighting!AG809","v":0},{"$f":"Lighting!AH809","v":0},{"$f":"Lighting!AI809","v":0}]
[0,{"$f":"Lighting!B810","v":802},{"$f":"Lighting!C810","v":0},{"$f":"Lighting!D810","v":0},{"$f":"Lighting!F810","v":0},{"$f":"Lighting!G810","v":0},{"$f":"Lighting!H810","v":0},{"$f":"Lighting!I810","v":0},{"$f":"Lighting!J810","v":0},{"$f":"Lighting!K810","v":0},{"$f":"Lighting!L810","v":0},{"$f":"Lighting!N810","v":0},{"$f":"Lighting!O810","v":0},{"$f":"Lighting!R810","v":0},{"$f":"Lighting!S810","v":0},{"$f":"Lighting!U810","v":""},{"$f":"Lighting!V810","v":""},{"$f":"Lighting!W810","v":""},{"$f":"Lighting!X810","v":0},{"$f":"Lighting!Y810","v":""},{"$f":"Lighting!AA810","v":""},{"$f":"Lighting!AC810","v":""},{"$f":"Lighting!AF810","v":""},{"$f":"Lighting!AG810","v":0},{"$f":"Lighting!AH810","v":0},{"$f":"Lighting!AI810","v":0}]
[0,{"$f":"Lighting!B811","v":803},{"$f":"Lighting!C811","v":0},{"$f":"Lighting!D811","v":0},{"$f":"Lighting!F811","v":0},{"$f":"Lighting!G811","v":0},{"$f":"Lighting!H811","v":0},{"$f":"Lighting!I811","v":0},{"$f":"Lighting!J811","v":0},{"$f":"Lighting!K811","v":0},{"$f":"Lighting!L811","v":0},{"$f":"Lighting!N811","v":0},{"$f":"Lighting!O811","v":0},{"$f":"Lighting!R811","v":0},{"$f":"Lighting!S811","v":0},{"$f":"Lighting!U811","v":""},{"$f":"Lighting!V811","v":""},{"$f":"Lighting!W811","v":""},{"$f":"Lighting!X811","v":0},{"$f":"Lighting!Y811","v":""},{"$f":"Lighting!AA811","v":""},{"$f":"Lighting!AC811","v":""},{"$f":"Lighting!AF811","v":""},{"$f":"Lighting!AG811","v":0},{"$f":"Lighting!AH811","v":0},{"$f":"Lighting!AI811","v":0}]
[0,{"$f":"Lighting!B812","v":804},{"$f":"Lighting!C812","v":0},{"$f":"Lighting!D812","v":0},{"$f":"Lighting!F812","v":0},{"$f":"Lighting!G812","v":0},{"$f":"Lighting!H812","v":0},{"$f":"Lighting!I812","v":0},{"$f":"Lighting!J812","v":0},{"$f":"Lighting!K812","v":0},{"$f":"Lighting!L812","v":0},{"$f":"Lighting!N812","v":0},{"$f":"Lighting!O812","v":0},{"$f":"Lighting!R812","v":0},{"$f":"Lighting!S812","v":0},{"$f":"Lighting!U812","v":""},{"$f":"Lighting!V812","v":""},{"$f":"Lighting!W812","v":""},{"$f":"Lighting!X812","v":0},{"$f":"Lighting!Y812","v":""},{"$f":"Lighting!AA812","v":""},{"$f":"Lighting!AC812","v":""},{"$f":"Lighting!AF812","v":""},{"$f":"Lighting!AG812","v":0},{"$f":"Lighting!AH812","v":0},{"$f":"Lighting!AI812","v":0}]
[0,{"$f":"Lighting!B813","v":805},{"$f":"Lighting!C813","v":0},{"$f":"Lighting!D813","v":0},{"$f":"Lighting!F813","v":0},{"$f":"Lighting!G813","v":0},{"$f":"Lighting!H813","v":0},{"$f":"Lighting!I813","v":0},{"$f":"Lighting!J813","v":0},{"$f":"Lighting!K813","v":0},{"$f":"Lighting!L813","v":0},{"$f":"Lighting!N813","v":0},{"$f":"Lighting!O813","v":0},{"$f":"Lighting!R813","v":0},{"$f":"Lighting!S813","v":0},{"$f":"Lighting!U813","v":""},{"$f":"Lighting!V813","v":""},{"$f":"Lighting!W813","v":""},{"$f":"Lighting!X813","v":0},{"$f":"Lighting!Y813","v":""},{"$f":"Lighting!AA813","v":""},{"$f":"Lighting!AC813","v":""},{"$f":"Lighting!AF813","v":""},{"$f":"Lighting!AG813","v":0},{"$f":"Lighting!AH813","v":0},{"$f":"Lighting!AI813","v":0}]
[0,{"$f":"Lighting!B814","v":806},{"$f":"Lighting!C814","v":0},{"$f":"Lighting!D814","v":0},{"$f":"Lighting!F814","v":0},{"$f":"Lighting!G814","v":0},{"$f":"Lighting!H814","v":0},{"$f":"Lighting!I814","v":0},{"$f":"Lighting!J814","v":0},{"$f":"Lighting!K814","v":0},{"$f":"Lighting!L814","v":0},{"$f":"Lighting!N814","v":0},{"$f":"Lighting!O814","v":0},{"$f":"Lighting!R814","v":0},{"$f":"Lighting!S814","v":0},{"$f":"Lighting!U814","v":""},{"$f":"Lighting!V814","v":""},{"$f":"Lighting!W814","v":""},{"$f":"Lighting!X814","v":0},{"$f":"Lighting!Y814","v":""},{"$f":"Lighting!AA814","v":""},{"$f":"Lighting!AC814","v":""},{"$f":"Lighting!AF814","v":""},{"$f":"Lighting!AG814","v":0},{"$f":"Lighting!AH814","v":0},{"$f":"Lighting!AI814","v":0}]
[0,{"$f":"Lighting!B815","v":807},{"$f":"Lighting!C815","v":0},{"$f":"Lighting!D815","v":0},{"$f":"Lighting!F815","v":0},{"$f":"Lighting!G815","v":0},{"$f":"Lighting!H815","v":0},{"$f":"Lighting!I815","v":0},{"$f":"Lighting!J815","v":0},{"$f":"Lighting!K815","v":0},{"$f":"Lighting!L815","v":0},{"$f":"Lighting!N815","v":0},{"$f":"Lighting!O815","v":0},{"$f":"Lighting!R815","v":0},{"$f":"Lighting!S815","v":0},{"$f":"Lighting!U815","v":""},{"$f":"Lighting!V815","v":""},{"$f":"Lighting!W815","v":""},{"$f":"Lighting!X815","v":0},{"$f":"Lighting!Y815","v":""},{"$f":"Lighting!AA815","v":""},{"$f":"Lighting!AC815","v":""},{"$f":"Lighting!AF815","v":""},{"$f":"Lighting!AG815","v":0},{"$f":"Lighting!AH815","v":0},{"$f":"Lighting!AI815","v":0}]
[0,{"$f":"Lighting!B816","v":808},{"$f":"Lighting!C816","v":0},{"$f":"Lighting!D816","v":0},{"$f":"Lighting!F816","v":0},{"$f":"Lighting!G816","v":0},{"$f":"Lighting!H816","v":0},{"$f":"Lighting!I816","v":0},{"$f":"Lighting!J816","v":0},{"$f":"Lighting!K816","v":0},{"$f":"Lighting!L816","v":0},{"$f":"Lighting!N816","v":0},{"$f":"Lighting!O816","v":0},{"$f":"Lighting!R816","v":0},{"$f":"Lighting!S816","v":0},{"$f":"Lighting!U816","v":""},{"$f":"Lighting!V816","v":""},{"$f":"Lighting!W816","v":""},{"$f":"Lighting!X816","v":0},{"$f":"Lighting!Y816","v":""},{"$f":"Lighting!AA816","v":""},{"$f":"Lighting!AC816","v":""},{"$f":"Lighting!AF816","v":""},{"$f":"Lighting!AG816","v":0},{"$f":"Lighting!AH816","v":0},{"$f":"Lighting!AI816","v":0}]
[0,{"$f":"Lighting!B817","v":809},{"$f":"Lighting!C817","v":0},{"$f":"Lighting!D817","v":0},{"$f":"Lighting!F817","v":0},{"$f":"Lighting!G817","v":0},{"$f":"Lighting!H817","v":0},{"$f":"Lighting!I817","v":0},{"$f":"Lighting!J817","v":0},{"$f":"Lighting!K817","v":0},{"$f":"Lighting!L817","v":0},{"$f":"Lighting!N817","v":0},{"$f":"Lighting!O817","v":0},{"$f":"Lighting!R817","v":0},{"$f":"Lighting!S817","v":0},{"$f":"Lighting!U817","v":""},{"$f":"Lighting!V817","v":""},{"$f":"Lighting!W817","v":""},{"$f":"Lighting!X817","v":0},{"$f":"Lighting!Y817","v":""},{"$f":"Lighting!AA817","v":""},{"$f":"Lighting!AC817","v":""},{"$f":"Lighting!AF817","v":""},{"$f":"Lighting!AG817","v":0},{"$f":"Lighting!AH817","v":0},{"$f":"Lighting!AI817","v":0}]
[0,{"$f":"Lighting!B818","v":810},{"$f":"Lighting!C818","v":0},{"$f":"Lighting!D818","v":0},{"$f":"Lighting!F818","v":0},{"$f":"Lighting!G818","v":0},{"$f":"Lighting!H818","v":0},{"$f":"Lighting!I818","v":0},{"$f":"Lighting!J818","v":0},{"$f":"Lighting!K818","v":0},{"$f":"Lighting!L818","v":0},{"$f":"Lighting!N818","v":0},{"$f":"Lighting!O818","v":0},{"$f":"Lighting!R818","v":0},{"$f":"Lighting!S818","v":0},{"$f":"Lighting!U818","v":""},{"$f":"Lighting!V818","v":""},{"$f":"Lighting!W818","v":""},{"$f":"Lighting!X818","v":0},{"$f":"Lighting!Y818","v":""},{"$f":"Lighting!AA818","v":""},{"$f":"Lighting!AC818","v":""},{"$f":"Lighting!AF818","v":""},{"$f":"Lighting!AG818","v":0},{"$f":"Lighting!AH818","v":0},{"$f":"Lighting!AI818","v":0}]
[0,{"$f":"Lighting!B819","v":811},{"$f":"Lighting!C819","v":0},{"$f":"Lighting!D819","v":0},{"$f":"Lighting!F819","v":0},{"$f":"Lighting!G819","v":0},{"$f":"Lighting!H819","v":0},{"$f":"Lighting!I819","v":0},{"$f":"Lighting!J819","v":0},{"$f":"Lighting!K819","v":0},{"$f":"Lighting!L819","v":0},{"$f":"Lighting!N819","v":0},{"$f":"Lighting!O819","v":0},{"$f":"Lighting!R819","v":0},{"$f":"Lighting!S819","v":0},{"$f":"Lighting!U819","v":""},{"$f":"Lighting!V819","v":""},{"$f":"Lighting!W819","v":""},{"$f":"Lighting!X819","v":0},{"$f":"Lighting!Y819","v":""},{"$f":"Lighting!AA819","v":""},{"$f":"Lighting!AC819","v":""},{"$f":"Lighting!AF819","v":""},{"$f":"Lighting!AG819","v":0},{"$f":"Lighting!AH819","v":0},{"$f":"Lighting!AI819","v":0}]
[0,{"$f":"Lighting!B820","v":812},{"$f":"Lighting!C820","v":0},{"$f":"Lighting!D820","v":0},{"$f":"Lighting!F820","v":0},{"$f":"Lighting!G820","v":0},{"$f":"Lighting!H820","v":0},{"$f":"Lighting!I820","v":0},{"$f":"Lighting!J820","v":0},{"$f":"Lighting!K820","v":0},{"$f":"Lighting!L820","v":0},{"$f":"Lighting!N820","v":0},{"$f":"Lighting!O820","v":0},{"$f":"Lighting!R820","v":0},{"$f":"Lighting!S820","v":0},{"$f":"Lighting!U820","v":""},{"$f":"Lighting!V820","v":""},{"$f":"Lighting!W820","v":""},{"$f":"Lighting!X820","v":0},{"$f":"Lighting!Y820","v":""},{"$f":"Lighting!AA820","v":""},{"$f":"Lighting!AC820","v":""},{"$f":"Lighting!AF820","v":""},{"$f":"Lighting!AG820","v":0},{"$f":"Lighting!AH820","v":0},{"$f":"Lighting!AI820","v":0}]
[0,{"$f":"Lighting!B821","v":813},{"$f":"Lighting!C821","v":0},{"$f":"Lighting!D821","v":0},{"$f":"Lighting!F821","v":0},{"$f":"Lighting!G821","v":0},{"$f":"Lighting!H821","v":0},{"$f":"Lighting!I821","v":0},{"$f":"Lighting!J821","v":0},{"$f":"Lighting!K821","v":0},{"$f":"Lighting!L821","v":0},{"$f":"Lighting!N821","v":0},{"$f":"Lighting!O821","v":0},{"$f":"Lighting!R821","v":0},{"$f":"Lighting!S821","v":0},{"$f":"Lighting!U821","v":""},{"$f":"Lighting!V821","v":""},{"$f":"Lighting!W821","v":""},{"$f":"Lighting!X821","v":0},{"$f":"Lighting!Y821","v":""},{"$f":"Lighting!AA821","v":""},{"$f":"Lighting!AC821","v":""},{"$f":"Lighting!AF821","v":""},{"$f":"Lighting!AG821","v":0},{"$f":"Lighting!AH821","v":0},{"$f":"Lighting!AI821","v":0}]
[0,{"$f":"Lighting!B822","v":814},{"$f":"Lighting!C822","v":0},{"$f":"Lighting!D822","v":0},{"$f":"Lighting!F822","v":0},{"$f":"Lighting!G822","v":0},{"$f":"Lighting!H822","v":0},{"$f":"Lighting!I822","v":0},{"$f":"Lighting!J822","v":0},{"$f":"Lighting!K822","v":0},{"$f":"Lighting!L822","v":0},{"$f":"Lighting!N822","v":0},{"$f":"Lighting!O822","v":0},{"$f":"Lighting!R822","v":0},{"$f":"Lighting!S822","v":0},{"$f":"Lighting!U822","v":""},{"$f":"Lighting!V822","v":""},{"$f":"Lighting!W822","v":""},{"$f":"Lighting!X822","v":0},{"$f":"Lighting!Y822","v":""},{"$f":"Lighting!AA822","v":""},{"$f":"Lighting!AC822","v":""},{"$f":"Lighting!AF822","v":""},{"$f":"Lighting!AG822","v":0},{"$f":"Lighting!AH822","v":0},{"$f":"Lighting!AI822","v":0}]
[0,{"$f":"Lighting!B823","v":815},{"$f":"Lighting!C823","v":0},{"$f":"Lighting!D823","v":0},{"$f":"Lighting!F823","v":0},{"$f":"Lighting!G823","v":0},{"$f":"Lighting!H823","v":0},{"$f":"Lighting!I823","v":0},{"$f":"Lighting!J823","v":0},{"$f":"Lighting!K823","v":0},{"$f":"Lighting!L823","v":0},{"$f":"Lighting!N823","v":0},{"$f":"Lighting!O823","v":0},{"$f":"Lighting!R823","v":0},{"$f":"Lighting!S823","v":0},{"$f":"Lighting!U823","v":""},{"$f":"Lighting!V823","v":""},{"$f":"Lighting!W823","v":""},{"$f":"Lighting!X823","v":0},{"$f":"Lighting!Y823","v":""},{"$f":"Lighting!AA823","v":""},{"$f":"Lighting!AC823","v":""},{"$f":"Lighting!AF823","v":""},{"$f":"Lighting!AG823","v":0},{"$f":"Lighting!AH823","v":0},{"$f":"Lighting!AI823","v":0}]
[0,{"$f":"Lighting!B824","v":816},{"$f":"Lighting!C824","v":0},{"$f":"Lighting!D824","v":0},{"$f":"Lighting!F824","v":0},{"$f":"Lighting!G824","v":0},{"$f":"Lighting!H824","v":0},{"$f":"Lighting!I824","v":0},{"$f":"Lighting!J824","v":0},{"$f":"Lighting!K824","v":0},{"$f":"Lighting!L824","v":0},{"$f":"Lighting!N824","v":0},{"$f":"Lighting!O824","v":0},{"$f":"Lighting!R824","v":0},{"$f":"Lighting!S824","v":0},{"$f":"Lighting!U824","v":""},{"$f":"Lighting!V824","v":""},{"$f":"Lighting!W824","v":""},{"$f":"Lighting!X824","v":0},{"$f":"Lighting!Y824","v":""},{"$f":"Lighting!AA824","v":""},{"$f":"Lighting!AC824","v":""},{"$f":"Lighting!AF824","v":""},{"$f":"Lighting!AG824","v":0},{"$f":"Lighting!AH824","v":0},{"$f":"Lighting!AI824","v":0}]
[0,{"$f":"Lighting!B825","v":817},{"$f":"Lighting!C825","v":0},{"$f":"Lighting!D825","v":0},{"$f":"Lighting!F825","v":0},{"$f":"Lighting!G825","v":0},{"$f":"Lighting!H825","v":0},{"$f":"Lighting!I825","v":0},{"$f":"Lighting!J825","v":0},{"$f":"Lighting!K825","v":0},{"$f":"Lighting!L825","v":0},{"$f":"Lighting!N825","v":0},{"$f":"Lighting!O825","v":0},{"$f":"Lighting!R825","v":0},{"$f":"Lighting!S825","v":0},{"$f":"Lighting!U825","v":""},{"$f":"Lighting!V825","v":""},{"$f":"Lighting!W825","v":""},{"$f":"Lighting!X825","v":0},{"$f":"Lighting!Y825","v":""},{"$f":"Lighting!AA825","v":""},{"$f":"Lighting!AC825","v":""},{"$f":"Lighting!AF825","v":""},{"$f":"Lighting!AG825","v":0},{"$f":"Lighting!AH825","v":0},{"$f":"Lighting!AI825","v":0}]
[0,{"$f":"Lighting!B826","v":818},{"$f":"Lighting!C826","v":0},{"$f":"Lighting!D826","v":0},{"$f":"Lighting!F826","v":0},{"$f":"Lighting!G826","v":0},{"$f":"Lighting!H826","v":0},{"$f":"Lighting!I826","v":0},{"$f":"Lighting!J826","v":0},{"$f":"Lighting!K826","v":0},{"$f":"Lighting!L826","v":0},{"$f":"Lighting!N826","v":0},{"$f":"Lighting!O826","v":0},{"$f":"Lighting!R826","v":0},{"$f":"Lighting!S826","v":0},{"$f":"Lighting!U826","v":""},{"$f":"Lighting!V826","v":""},{"$f":"Lighting!W826","v":""},{"$f":"Lighting!X826","v":0},{"$f":"Lighting!Y826","v":""},{"$f":"Lighting!AA826","v":""},{"$f":"Lighting!AC826","v":""},{"$f":"Lighting!AF826","v":""},{"$f":"Lighting!AG826","v":0},{"$f":"Lighting!AH826","v":0},{"$f":"Lighting!AI826","v":0}]
[0,{"$f":"Lighting!B827","v":819},{"$f":"Lighting!C827","v":0},{"$f":"Lighting!D827","v":0},{"$f":"Lighting!F827","v":0},{"$f":"Lighting!G827","v":0},{"$f":"Lighting!H827","v":0},{"$f":"Lighting!I827","v":0},{"$f":"Lighting!J827","v":0},{"$f":"Lighting!K827","v":0},{"$f":"Lighting!L827","v":0},{"$f":"Lighting!N827","v":0},{"$f":"Lighting!O827","v":0},{"$f":"Lighting!R827","v":0},{"$f":"Lighting!S827","v":0},{"$f":"Lighting!U827","v":""},{"$f":"Lighting!V827","v":""},{"$f":"Lighting!W827","v":""},{"$f":"Lighting!X827","v":0},{"$f":"Lighting!Y827","v":""},{"$f":"Lighting!AA827","v":""},{"$f":"Lighting!AC827","v":""},{"$f":"Lighting!AF827","v":""},{"$f":"Lighting!AG827","v":0},{"$f":"Lighting!AH827","v":0},{"$f":"Lighting!AI827","v":0}]
[0,{"$f":"Lighting!B828","v":820},{"$f":"Lighting!C828","v":0},{"$f":"Lighting!D828","v":0},{"$f":"Lighting!F828","v":0},{"$f":"Lighting!G828","v":0},{"$f":"Lighting!H828","v":0},{"$f":"Lighting!I828","v":0},{"$f":"Lighting!J828","v":0},{"$f":"Lighting!K828","v":0},{"$f":"Lighting!L828","v":0},{"$f":"Lighting!N828","v":0},{"$f":"Lighting!O828","v":0},{"$f":"Lighting!R828","v":0},{"$f":"Lighting!S828","v":0},{"$f":"Lighting!U828","v":""},{"$f":"Lighting!V828","v":""},{"$f":"Lighting!W828","v":""},{"$f":"Lighting!X828","v":0},{"$f":"Lighting!Y828","v":""},{"$f":"Lighting!AA828","v":""},{"$f":"Lighting!AC828","v":""},{"$f":"Lighting!AF828","v":""},{"$f":"Lighting!AG828","v":0},{"$f":"Lighting!AH828","v":0},{"$f":"Lighting!AI828","v":0}]
[0,{"$f":"Lighting!B829","v":821},{"$f":"Lighting!C829","v":0},{"$f":"Lighting!D829","v":0},{"$f":"Lighting!F829","v":0},{"$f":"Lighting!G829","v":0},{"$f":"Lighting!H829","v":0},{"$f":"Lighting!I829","v":0},{"$f":"Lighting!J829","v":0},{"$f":"Lighting!K829","v":0},{"$f":"Lighting!L829","v":0},{"$f":"Lighting!N829","v":0},{"$f":"Lighting!O829","v":0},{"$f":"Lighting!R829","v":0},{"$f":"Lighting!S829","v":0},{"$f":"Lighting!U829","v":""},{"$f":"Lighting!V829","v":""},{"$f":"Lighting!W829","v":""},{"$f":"Lighting!X829","v":0},{"$f":"Lighting!Y829","v":""},{"$f":"Lighting!AA829","v":""},{"$f":"Lighting!AC829","v":""},{"$f":"Lighting!AF829","v":""},{"$f":"Lighting!AG829","v":0},{"$f":"Lighting!AH829","v":0},{"$f":"Lighting!AI829","v":0}]
[0,{"$f":"Lighting!B830","v":822},{"$f":"Lighting!C830","v":0},{"$f":"Lighting!D830","v":0},{"$f":"Lighting!F830","v":0},{"$f":"Lighting!G830","v":0},{"$f":"Lighting!H830","v":0},{"$f":"Lighting!I830","v":0},{"$f":"Lighting!J830","v":0},{"$f":"Lighting!K830","v":0},{"$f":"Lighting!L830","v":0},{"$f":"Lighting!N830","v":0},{"$f":"Lighting!O830","v":0},{"$f":"Lighting!R830","v":0},{"$f":"Lighting!S830","v":0},{"$f":"Lighting!U830","v":""},{"$f":"Lighting!V830","v":""},{"$f":"Lighting!W830","v":""},{"$f":"Lighting!X830","v":0},{"$f":"Lighting!Y830","v":""},{"$f":"Lighting!AA830","v":""},{"$f":"Lighting!AC830","v":""},{"$f":"Lighting!AF830","v":""},{"$f":"Lighting!AG830","v":0},{"$f":"Lighting!AH830","v":0},{"$f":"Lighting!AI830","v":0}]
[0,{"$f":"Lighting!B831","v":823},{"$f":"Lighting!C831","v":0},{"$f":"Lighting!D831","v":0},{"$f":"Lighting!F831","v":0},{"$f":"Lighting!G831","v":0},{"$f":"Lighting!H831","v":0},{"$f":"Lighting!I831","v":0},{"$f":"Lighting!J831","v":0},{"$f":"Lighting!K831","v":0},{"$f":"Lighting!L831","v":0},{"$f":"Lighting!N831","v":0},{"$f":"Lighting!O831","v":0},{"$f":"Lighting!R831","v":0},{"$f":"Lighting!S831","v":0},{"$f":"Lighting!U831","v":""},{"$f":"Lighting!V831","v":""},{"$f":"Lighting!W831","v":""},{"$f":"Lighting!X831","v":0},{"$f":"Lighting!Y831","v":""},{"$f":"Lighting!AA831","v":""},{"$f":"Lighting!AC831","v":""},{"$f":"Lighting!AF831","v":""},{"$f":"Lighting!AG831","v":0},{"$f":"Lighting!AH831","v":0},{"$f":"Lighting!AI831","v":0}]
[0,{"$f":"Lighting!B832","v":824},{"$f":"Lighting!C832","v":0},{"$f":"Lighting!D832","v":0},{"$f":"Lighting!F832","v":0},{"$f":"Lighting!G832","v":0},{"$f":"Lighting!H832","v":0},{"$f":"Lighting!I832","v":0},{"$f":"Lighting!J832","v":0},{"$f":"Lighting!K832","v":0},{"$f":"Lighting!L832","v":0},{"$f":"Lighting!N832","v":0},{"$f":"Lighting!O832","v":0},{"$f":"Lighting!R832","v":0},{"$f":"Lighting!S832","v":0},{"$f":"Lighting!U832","v":""},{"$f":"Lighting!V832","v":""},{"$f":"Lighting!W832","v":""},{"$f":"Lighting!X832","v":0},{"$f":"Lighting!Y832","v":""},{"$f":"Lighting!AA832","v":""},{"$f":"Lighting!AC832","v":""},{"$f":"Lighting!AF832","v":""},{"$f":"Lighting!AG832","v":0},{"$f":"Lighting!AH832","v":0},{"$f":"Lighting!AI832","v":0}]
[0,{"$f":"Lighting!B833","v":825},{"$f":"Lighting!C833","v":0},{"$f":"Lighting!D833","v":0},{"$f":"Lighting!F833","v":0},{"$f":"Lighting!G833","v":0},{"$f":"Lighting!H833","v":0},{"$f":"Lighting!I833","v":0},{"$f":"Lighting!J833","v":0},{"$f":"Lighting!K833","v":0},{"$f":"Lighting!L833","v":0},{"$f":"Lighting!N833","v":0},{"$f":"Lighting!O833","v":0},{"$f":"Lighting!R833","v":0},{"$f":"Lighting!S833","v":0},{"$f":"Lighting!U833","v":""},{"$f":"Lighting!V833","v":""},{"$f":"Lighting!W833","v":""},{"$f":"Lighting!X833","v":0},{"$f":"Lighting!Y833","v":""},{"$f":"Lighting!AA833","v":""},{"$f":"Lighting!AC833","v":""},{"$f":"Lighting!AF833","v":""},{"$f":"Lighting!AG833","v":0},{"$f":"Lighting!AH833","v":0},{"$f":"Lighting!AI833","v":0}]
[0,{"$f":"Lighting!B834","v":826},{"$f":"Lighting!C834","v":0},{"$f":"Lighting!D834","v":0},{"$f":"Lighting!F834","v":0},{"$f":"Lighting!G834","v":0},{"$f":"Lighting!H834","v":0},{"$f":"Lighting!I834","v":0},{"$f":"Lighting!J834","v":0},{"$f":"Lighting!K834","v":0},{"$f":"Lighting!L834","v":0},{"$f":"Lighting!N834","v":0},{"$f":"Lighting!O834","v":0},{"$f":"Lighting!R834","v":0},{"$f":"Lighting!S834","v":0},{"$f":"Lighting!U834","v":""},{"$f":"Lighting!V834","v":""},{"$f":"Lighting!W834","v":""},{"$f":"Lighting!X834","v":0},{"$f":"Lighting!Y834","v":""},{"$f":"Lighting!AA834","v":""},{"$f":"Lighting!AC834","v":""},{"$f":"Lighting!AF834","v":""},{"$f":"Lighting!AG834","v":0},{"$f":"Lighting!AH834","v":0},{"$f":"Lighting!AI834","v":0}]
[0,{"$f":"Lighting!B835","v":827},{"$f":"Lighting!C835","v":0},{"$f":"Lighting!D835","v":0},{"$f":"Lighting!F835","v":0},{"$f":"Lighting!G835","v":0},{"$f":"Lighting!H835","v":0},{"$f":"Lighting!I835","v":0},{"$f":"Lighting!J835","v":0},{"$f":"Lighting!K835","v":0},{"$f":"Lighting!L835","v":0},{"$f":"Lighting!N835","v":0},{"$f":"Lighting!O835","v":0},{"$f":"Lighting!R835","v":0},{"$f":"Lighting!S835","v":0},{"$f":"Lighting!U835","v":""},{"$f":"Lighting!V835","v":""},{"$f":"Lighting!W835","v":""},{"$f":"Lighting!X835","v":0},{"$f":"Lighting!Y835","v":""},{"$f":"Lighting!AA835","v":""},{"$f":"Lighting!AC835","v":""},{"$f":"Lighting!AF835","v":""},{"$f":"Lighting!AG835","v":0},{"$f":"Lighting!AH835","v":0},{"$f":"Lighting!AI835","v":0}]
[0,{"$f":"Lighting!B836","v":828},{"$f":"Lighting!C836","v":0},{"$f":"Lighting!D836","v":0},{"$f":"Lighting!F836","v":0},{"$f":"Lighting!G836","v":0},{"$f":"Lighting!H836","v":0},{"$f":"Lighting!I836","v":0},{"$f":"Lighting!J836","v":0},{"$f":"Lighting!K836","v":0},{"$f":"Lighting!L836","v":0},{"$f":"Lighting!N836","v":0},{"$f":"Lighting!O836","v":0},{"$f":"Lighting!R836","v":0},{"$f":"Lighting!S836","v":0},{"$f":"Lighting!U836","v":""},{"$f":"Lighting!V836","v":""},{"$f":"Lighting!W836","v":""},{"$f":"Lighting!X836","v":0},{"$f":"Lighting!Y836","v":""},{"$f":"Lighting!AA836","v":""},{"$f":"Lighting!AC836","v":""},{"$f":"Lighting!AF836","v":""},{"$f":"Lighting!AG836","v":0},{"$f":"Lighting!AH836","v":0},{"$f":"Lighting!AI836","v":0}]
[0,{"$f":"Lighting!B837","v":829},{"$f":"Lighting!C837","v":0},{"$f":"Lighting!D837","v":0},{"$f":"Lighting!F837","v":0},{"$f":"Lighting!G837","v":0},{"$f":"Lighting!H837","v":0},{"$f":"Lighting!I837","v":0},{"$f":"Lighting!J837","v":0},{"$f":"Lighting!K837","v":0},{"$f":"Lighting!L837","v":0},{"$f":"Lighting!N837","v":0},{"$f":"Lighting!O837","v":0},{"$f":"Lighting!R837","v":0},{"$f":"Lighting!S837","v":0},{"$f":"Lighting!U837","v":""},{"$f":"Lighting!V837","v":""},{"$f":"Lighting!W837","v":""},{"$f":"Lighting!X837","v":0},{"$f":"Lighting!Y837","v":""},{"$f":"Lighting!AA837","v":""},{"$f":"Lighting!AC837","v":""},{"$f":"Lighting!AF837","v":""},{"$f":"Lighting!AG837","v":0},{"$f":"Lighting!AH837","v":0},{"$f":"Lighting!AI837","v":0}]
[0,{"$f":"Lighting!B838","v":830},{"$f":"Lighting!C838","v":0},{"$f":"Lighting!D838","v":0},{"$f":"Lighting!F838","v":0},{"$f":"Lighting!G838","v":0},{"$f":"Lighting!H838","v":0},{"$f":"Lighting!I838","v":0},{"$f":"Lighting!J838","v":0},{"$f":"Lighting!K838","v":0},{"$f":"Lighting!L838","v":0},{"$f":"Lighting!N838","v":0},{"$f":"Lighting!O838","v":0},{"$f":"Lighting!R838","v":0},{"$f":"Lighting!S838","v":0},{"$f":"Lighting!U838","v":""},{"$f":"Lighting!V838","v":""},{"$f":"Lighting!W838","v":""},{"$f":"Lighting!X838","v":0},{"$f":"Lighting!Y838","v":""},{"$f":"Lighting!AA838","v":""},{"$f":"Lighting!AC838","v":""},{"$f":"Lighting!AF838","v":""},{"$f":"Lighting!AG838","v":0},{"$f":"Lighting!AH838","v":0},{"$f":"Lighting!AI838","v":0}]
[0,{"$f":"Lighting!B839","v":831},{"$f":"Lighting!C839","v":0},{"$f":"Lighting!D839","v":0},{"$f":"Lighting!F839","v":0},{"$f":"Lighting!G839","v":0},{"$f":"Lighting!H839","v":0},{"$f":"Lighting!I839","v":0},{"$f":"Lighting!J839","v":0},{"$f":"Lighting!K839","v":0},{"$f":"Lighting!L839","v":0},{"$f":"Lighting!N839","v":0},{"$f":"Lighting!O839","v":0},{"$f":"Lighting!R839","v":0},{"$f":"Lighting!S839","v":0},{"$f":"Lighting!U839","v":""},{"$f":"Lighting!V839","v":""},{"$f":"Lighting!W839","v":""},{"$f":"Lighting!X839","v":0},{"$f":"Lighting!Y839","v":""},{"$f":"Lighting!AA839","v":""},{"$f":"Lighting!AC839","v":""},{"$f":"Lighting!AF839","v":""},{"$f":"Lighting!AG839","v":0},{"$f":"Lighting!AH839","v":0},{"$f":"Lighting!AI839","v":0}]
[0,{"$f":"Lighting!B840","v":832},{"$f":"Lighting!C840","v":0},{"$f":"Lighting!D840","v":0},{"$f":"Lighting!F840","v":0},{"$f":"Lighting!G840","v":0},{"$f":"Lighting!H840","v":0},{"$f":"Lighting!I840","v":0},{"$f":"Lighting!J840","v":0},{"$f":"Lighting!K840","v":0},{"$f":"Lighting!L840","v":0},{"$f":"Lighting!N840","v":0},{"$f":"Lighting!O840","v":0},{"$f":"Lighting!R840","v":0},{"$f":"Lighting!S840","v":0},{"$f":"Lighting!U840","v":""},{"$f":"Lighting!V840","v":""},{"$f":"Lighting!W840","v":""},{"$f":"Lighting!X840","v":0},{"$f":"Lighting!Y840","v":""},{"$f":"Lighting!AA840","v":""},{"$f":"Lighting!AC840","v":""},{"$f":"Lighting!AF840","v":""},{"$f":"Lighting!AG840","v":0},{"$f":"Lighting!AH840","v":0},{"$f":"Lighting!AI840","v":0}]
[0,{"$f":"Lighting!B841","v":833},{"$f":"Lighting!C841","v":0},{"$f":"Lighting!D841","v":0},{"$f":"Lighting!F841","v":0},{"$f":"Lighting!G841","v":0},{"$f":"Lighting!H841","v":0},{"$f":"Lighting!I841","v":0},{"$f":"Lighting!J841","v":0},{"$f":"Lighting!K841","v":0},{"$f":"Lighting!L841","v":0},{"$f":"Lighting!N841","v":0},{"$f":"Lighting!O841","v":0},{"$f":"Lighting!R841","v":0},{"$f":"Lighting!S841","v":0},{"$f":"Lighting!U841","v":""},{"$f":"Lighting!V841","v":""},{"$f":"Lighting!W841","v":""},{"$f":"Lighting!X841","v":0},{"$f":"Lighting!Y841","v":""},{"$f":"Lighting!AA841","v":""},{"$f":"Lighting!AC841","v":""},{"$f":"Lighting!AF841","v":""},{"$f":"Lighting!AG841","v":0},{"$f":"Lighting!AH841","v":0},{"$f":"Lighting!AI841","v":0}]
[0,{"$f":"Lighting!B842","v":834},{"$f":"Lighting!C842","v":0},{"$f":"Lighting!D842","v":0},{"$f":"Lighting!F842","v":0},{"$f":"Lighting!G842","v":0},{"$f":"Lighting!H842","v":0},{"$f":"Lighting!I842","v":0},{"$f":"Lighting!J842","v":0},{"$f":"Lighting!K842","v":0},{"$f":"Lighting!L842","v":0},{"$f":"Lighting!N842","v":0},{"$f":"Lighting!O842","v":0},{"$f":"Lighting!R842","v":0},{"$f":"Lighting!S842","v":0},{"$f":"Lighting!U842","v":""},{"$f":"Lighting!V842","v":""},{"$f":"Lighting!W842","v":""},{"$f":"Lighting!X842","v":0},{"$f":"Lighting!Y842","v":""},{"$f":"Lighting!AA842","v":""},{"$f":"Lighting!AC842","v":""},{"$f":"Lighting!AF842","v":""},{"$f":"Lighting!AG842","v":0},{"$f":"Lighting!AH842","v":0},{"$f":"Lighting!AI842","v":0}]
[0,{"$f":"Lighting!B843","v":835},{"$f":"Lighting!C843","v":0},{"$f":"Lighting!D843","v":0},{"$f":"Lighting!F843","v":0},{"$f":"Lighting!G843","v":0},{"$f":"Lighting!H843","v":0},{"$f":"Lighting!I843","v":0},{"$f":"Lighting!J843","v":0},{"$f":"Lighting!K843","v":0},{"$f":"Lighting!L843","v":0},{"$f":"Lighting!N843","v":0},{"$f":"Lighting!O843","v":0},{"$f":"Lighting!R843","v":0},{"$f":"Lighting!S843","v":0},{"$f":"Lighting!U843","v":""},{"$f":"Lighting!V843","v":""},{"$f":"Lighting!W843","v":""},{"$f":"Lighting!X843","v":0},{"$f":"Lighting!Y843","v":""},{"$f":"Lighting!AA843","v":""},{"$f":"Lighting!AC843","v":""},{"$f":"Lighting!AF843","v":""},{"$f":"Lighting!AG843","v":0},{"$f":"Lighting!AH843","v":0},{"$f":"Lighting!AI843","v":0}]
[0,{"$f":"Lighting!B844","v":836},{"$f":"Lighting!C844","v":0},{"$f":"Lighting!D844","v":0},{"$f":"Lighting!F844","v":0},{"$f":"Lighting!G844","v":0},{"$f":"Lighting!H844","v":0},{"$f":"Lighting!I844","v":0},{"$f":"Lighting!J844","v":0},{"$f":"Lighting!K844","v":0},{"$f":"Lighting!L844","v":0},{"$f":"Lighting!N844","v":0},{"$f":"Lighting!O844","v":0},{"$f":"Lighting!R844","v":0},{"$f":"Lighting!S844","v":0},{"$f":"Lighting!U844","v":""},{"$f":"Lighting!V844","v":""},{"$f":"Lighting!W844","v":""},{"$f":"Lighting!X844","v":0},{"$f":"Lighting!Y844","v":""},{"$f":"Lighting!AA844","v":""},{"$f":"Lighting!AC844","v":""},{"$f":"Lighting!AF844","v":""},{"$f":"Lighting!AG844","v":0},{"$f":"Lighting!AH844","v":0},{"$f":"Lighting!AI844","v":0}]
[0,{"$f":"Lighting!B845","v":837},{"$f":"Lighting!C845","v":0},{"$f":"Lighting!D845","v":0},{"$f":"Lighting!F845","v":0},{"$f":"Lighting!G845","v":0},{"$f":"Lighting!H845","v":0},{"$f":"Lighting!I845","v":0},{"$f":"Lighting!J845","v":0},{"$f":"Lighting!K845","v":0},{"$f":"Lighting!L845","v":0},{"$f":"Lighting!N845","v":0},{"$f":"Lighting!O845","v":0},{"$f":"Lighting!R845","v":0},{"$f":"Lighting!S845","v":0},{"$f":"Lighting!U845","v":""},{"$f":"Lighting!V845","v":""},{"$f":"Lighting!W845","v":""},{"$f":"Lighting!X845","v":0},{"$f":"Lighting!Y845","v":""},{"$f":"Lighting!AA845","v":""},{"$f":"Lighting!AC845","v":""},{"$f":"Lighting!AF845","v":""},{"$f":"Lighting!AG845","v":0},{"$f":"Lighting!AH845","v":0},{"$f":"Lighting!AI845","v":0}]
[0,{"$f":"Lighting!B846","v":838},{"$f":"Lighting!C846","v":0},{"$f":"Lighting!D846","v":0},{"$f":"Lighting!F846","v":0},{"$f":"Lighting!G846","v":0},{"$f":"Lighting!H846","v":0},{"$f":"Lighting!I846","v":0},{"$f":"Lighting!J846","v":0},{"$f":"Lighting!K846","v":0},{"$f":"Lighting!L846","v":0},{"$f":"Lighting!N846","v":0},{"$f":"Lighting!O846","v":0},{"$f":"Lighting!R846","v":0},{"$f":"Lighting!S846","v":0},{"$f":"Lighting!U846","v":""},{"$f":"Lighting!V846","v":""},{"$f":"Lighting!W846","v":""},{"$f":"Lighting!X846","v":0},{"$f":"Lighting!Y846","v":""},{"$f":"Lighting!AA846","v":""},{"$f":"Lighting!AC846","v":""},{"$f":"Lighting!AF846","v":""},{"$f":"Lighting!AG846","v":0},{"$f":"Lighting!AH846","v":0},{"$f":"Lighting!AI846","v":0}]
[0,{"$f":"Lighting!B847","v":839},{"$f":"Lighting!C847","v":0},{"$f":"Lighting!D847","v":0},{"$f":"Lighting!F847","v":0},{"$f":"Lighting!G847","v":0},{"$f":"Lighting!H847","v":0},{"$f":"Lighting!I847","v":0},{"$f":"Lighting!J847","v":0},{"$f":"Lighting!K847","v":0},{"$f":"Lighting!L847","v":0},{"$f":"Lighting!N847","v":0},{"$f":"Lighting!O847","v":0},{"$f":"Lighting!R847","v":0},{"$f":"Lighting!S847","v":0},{"$f":"Lighting!U847","v":""},{"$f":"Lighting!V847","v":""},{"$f":"Lighting!W847","v":""},{"$f":"Lighting!X847","v":0},{"$f":"Lighting!Y847","v":""},{"$f":"Lighting!AA847","v":""},{"$f":"Lighting!AC847","v":""},{"$f":"Lighting!AF847","v":""},{"$f":"Lighting!AG847","v":0},{"$f":"Lighting!AH847","v":0},{"$f":"Lighting!AI847","v":0}]
[{"$f":"IF(G1004=0,0,1)","v":0},{"$f":"Lighting!B848","v":840},{"$f":"Lighting!C848","v":0},{"$f":"Lighting!D848","v":0},{"$f":"Lighting!F848","v":0},{"$f":"Lighting!G848","v":0},{"$f":"Lighting!H848","v":0},{"$f":"Lighting!I848","v":0},{"$f":"Lighting!J848","v":0},{"$f":"Lighting!K848","v":0},{"$f":"Lighting!L848","v":0},{"$f":"Lighting!N848","v":0},{"$f":"Lighting!O848","v":0},{"$f":"Lighting!R848","v":0},{"$f":"Lighting!S848","v":0},{"$f":"Lighting!U848","v":""},{"$f":"Lighting!V848","v":""},{"$f":"Lighting!W848","v":""},{"$f":"Lighting!X848","v":0},{"$f":"Lighting!Y848","v":""},{"$f":"Lighting!AA848","v":""},{"$f":"Lighting!AC848","v":""},{"$f":"Lighting!AF848","v":""},{"$f":"Lighting!AG848","v":0},{"$f":"Lighting!AH848","v":0},{"$f":"Lighting!AI848","v":0}]
[0,{"$f":"Lighting!B849","v":841},{"$f":"Lighting!C849","v":0},{"$f":"Lighting!D849","v":0},{"$f":"Lighting!F849","v":0},{"$f":"Lighting!G849","v":0},{"$f":"Lighting!H849","v":0},{"$f":"Lighting!I849","v":0},{"$f":"Lighting!J849","v":0},{"$f":"Lighting!K849","v":0},{"$f":"Lighting!L849","v":0},{"$f":"Lighting!N849","v":0},{"$f":"Lighting!O849","v":0},{"$f":"Lighting!R849","v":0},{"$f":"Lighting!S849","v":0},{"$f":"Lighting!U849","v":""},{"$f":"Lighting!V849","v":""},{"$f":"Lighting!W849","v":""},{"$f":"Lighting!X849","v":0},{"$f":"Lighting!Y849","v":""},{"$f":"Lighting!AA849","v":""},{"$f":"Lighting!AC849","v":""},{"$f":"Lighting!AF849","v":""},{"$f":"Lighting!AG849","v":0},{"$f":"Lighting!AH849","v":0},{"$f":"Lighting!AI849","v":0}]
[0,{"$f":"Lighting!B850","v":842},{"$f":"Lighting!C850","v":0},{"$f":"Lighting!D850","v":0},{"$f":"Lighting!F850","v":0},{"$f":"Lighting!G850","v":0},{"$f":"Lighting!H850","v":0},{"$f":"Lighting!I850","v":0},{"$f":"Lighting!J850","v":0},{"$f":"Lighting!K850","v":0},{"$f":"Lighting!L850","v":0},{"$f":"Lighting!N850","v":0},{"$f":"Lighting!O850","v":0},{"$f":"Lighting!R850","v":0},{"$f":"Lighting!S850","v":0},{"$f":"Lighting!U850","v":""},{"$f":"Lighting!V850","v":""},{"$f":"Lighting!W850","v":""},{"$f":"Lighting!X850","v":0},{"$f":"Lighting!Y850","v":""},{"$f":"Lighting!AA850","v":""},{"$f":"Lighting!AC850","v":""},{"$f":"Lighting!AF850","v":""},{"$f":"Lighting!AG850","v":0},{"$f":"Lighting!AH850","v":0},{"$f":"Lighting!AI850","v":0}]
[0,{"$f":"Lighting!B851","v":843},{"$f":"Lighting!C851","v":0},{"$f":"Lighting!D851","v":0},{"$f":"Lighting!F851","v":0},{"$f":"Lighting!G851","v":0},{"$f":"Lighting!H851","v":0},{"$f":"Lighting!I851","v":0},{"$f":"Lighting!J851","v":0},{"$f":"Lighting!K851","v":0},{"$f":"Lighting!L851","v":0},{"$f":"Lighting!N851","v":0},{"$f":"Lighting!O851","v":0},{"$f":"Lighting!R851","v":0},{"$f":"Lighting!S851","v":0},{"$f":"Lighting!U851","v":""},{"$f":"Lighting!V851","v":""},{"$f":"Lighting!W851","v":""},{"$f":"Lighting!X851","v":0},{"$f":"Lighting!Y851","v":""},{"$f":"Lighting!AA851","v":""},{"$f":"Lighting!AC851","v":""},{"$f":"Lighting!AF851","v":""},{"$f":"Lighting!AG851","v":0},{"$f":"Lighting!AH851","v":0},{"$f":"Lighting!AI851","v":0}]
[0,{"$f":"Lighting!B852","v":844},{"$f":"Lighting!C852","v":0},{"$f":"Lighting!D852","v":0},{"$f":"Lighting!F852","v":0},{"$f":"Lighting!G852","v":0},{"$f":"Lighting!H852","v":0},{"$f":"Lighting!I852","v":0},{"$f":"Lighting!J852","v":0},{"$f":"Lighting!K852","v":0},{"$f":"Lighting!L852","v":0},{"$f":"Lighting!N852","v":0},{"$f":"Lighting!O852","v":0},{"$f":"Lighting!R852","v":0},{"$f":"Lighting!S852","v":0},{"$f":"Lighting!U852","v":""},{"$f":"Lighting!V852","v":""},{"$f":"Lighting!W852","v":""},{"$f":"Lighting!X852","v":0},{"$f":"Lighting!Y852","v":""},{"$f":"Lighting!AA852","v":""},{"$f":"Lighting!AC852","v":""},{"$f":"Lighting!AF852","v":""},{"$f":"Lighting!AG852","v":0},{"$f":"Lighting!AH852","v":0},{"$f":"Lighting!AI852","v":0}]
[0,{"$f":"Lighting!B853","v":845},{"$f":"Lighting!C853","v":0},{"$f":"Lighting!D853","v":0},{"$f":"Lighting!F853","v":0},{"$f":"Lighting!G853","v":0},{"$f":"Lighting!H853","v":0},{"$f":"Lighting!I853","v":0},{"$f":"Lighting!J853","v":0},{"$f":"Lighting!K853","v":0},{"$f":"Lighting!L853","v":0},{"$f":"Lighting!N853","v":0},{"$f":"Lighting!O853","v":0},{"$f":"Lighting!R853","v":0},{"$f":"Lighting!S853","v":0},{"$f":"Lighting!U853","v":""},{"$f":"Lighting!V853","v":""},{"$f":"Lighting!W853","v":""},{"$f":"Lighting!X853","v":0},{"$f":"Lighting!Y853","v":""},{"$f":"Lighting!AA853","v":""},{"$f":"Lighting!AC853","v":""},{"$f":"Lighting!AF853","v":""},{"$f":"Lighting!AG853","v":0},{"$f":"Lighting!AH853","v":0},{"$f":"Lighting!AI853","v":0}]
[0,{"$f":"Lighting!B854","v":846},{"$f":"Lighting!C854","v":0},{"$f":"Lighting!D854","v":0},{"$f":"Lighting!F854","v":0},{"$f":"Lighting!G854","v":0},{"$f":"Lighting!H854","v":0},{"$f":"Lighting!I854","v":0},{"$f":"Lighting!J854","v":0},{"$f":"Lighting!K854","v":0},{"$f":"Lighting!L854","v":0},{"$f":"Lighting!N854","v":0},{"$f":"Lighting!O854","v":0},{"$f":"Lighting!R854","v":0},{"$f":"Lighting!S854","v":0},{"$f":"Lighting!U854","v":""},{"$f":"Lighting!V854","v":""},{"$f":"Lighting!W854","v":""},{"$f":"Lighting!X854","v":0},{"$f":"Lighting!Y854","v":""},{"$f":"Lighting!AA854","v":""},{"$f":"Lighting!AC854","v":""},{"$f":"Lighting!AF854","v":""},{"$f":"Lighting!AG854","v":0},{"$f":"Lighting!AH854","v":0},{"$f":"Lighting!AI854","v":0}]
[0,{"$f":"Lighting!B855","v":847},{"$f":"Lighting!C855","v":0},{"$f":"Lighting!D855","v":0},{"$f":"Lighting!F855","v":0},{"$f":"Lighting!G855","v":0},{"$f":"Lighting!H855","v":0},{"$f":"Lighting!I855","v":0},{"$f":"Lighting!J855","v":0},{"$f":"Lighting!K855","v":0},{"$f":"Lighting!L855","v":0},{"$f":"Lighting!N855","v":0},{"$f":"Lighting!O855","v":0},{"$f":"Lighting!R855","v":0},{"$f":"Lighting!S855","v":0},{"$f":"Lighting!U855","v":""},{"$f":"Lighting!V855","v":""},{"$f":"Lighting!W855","v":""},{"$f":"Lighting!X855","v":0},{"$f":"Lighting!Y855","v":""},{"$f":"Lighting!AA855","v":""},{"$f":"Lighting!AC855","v":""},{"$f":"Lighting!AF855","v":""},{"$f":"Lighting!AG855","v":0},{"$f":"Lighting!AH855","v":0},{"$f":"Lighting!AI855","v":0}]
[0,{"$f":"Lighting!B856","v":848},{"$f":"Lighting!C856","v":0},{"$f":"Lighting!D856","v":0},{"$f":"Lighting!F856","v":0},{"$f":"Lighting!G856","v":0},{"$f":"Lighting!H856","v":0},{"$f":"Lighting!I856","v":0},{"$f":"Lighting!J856","v":0},{"$f":"Lighting!K856","v":0},{"$f":"Lighting!L856","v":0},{"$f":"Lighting!N856","v":0},{"$f":"Lighting!O856","v":0},{"$f":"Lighting!R856","v":0},{"$f":"Lighting!S856","v":0},{"$f":"Lighting!U856","v":""},{"$f":"Lighting!V856","v":""},{"$f":"Lighting!W856","v":""},{"$f":"Lighting!X856","v":0},{"$f":"Lighting!Y856","v":""},{"$f":"Lighting!AA856","v":""},{"$f":"Lighting!AC856","v":""},{"$f":"Lighting!AF856","v":""},{"$f":"Lighting!AG856","v":0},{"$f":"Lighting!AH856","v":0},{"$f":"Lighting!AI856","v":0}]
[0,{"$f":"Lighting!B857","v":849},{"$f":"Lighting!C857","v":0},{"$f":"Lighting!D857","v":0},{"$f":"Lighting!F857","v":0},{"$f":"Lighting!G857","v":0},{"$f":"Lighting!H857","v":0},{"$f":"Lighting!I857","v":0},{"$f":"Lighting!J857","v":0},{"$f":"Lighting!K857","v":0},{"$f":"Lighting!L857","v":0},{"$f":"Lighting!N857","v":0},{"$f":"Lighting!O857","v":0},{"$f":"Lighting!R857","v":0},{"$f":"Lighting!S857","v":0},{"$f":"Lighting!U857","v":""},{"$f":"Lighting!V857","v":""},{"$f":"Lighting!W857","v":""},{"$f":"Lighting!X857","v":0},{"$f":"Lighting!Y857","v":""},{"$f":"Lighting!AA857","v":""},{"$f":"Lighting!AC857","v":""},{"$f":"Lighting!AF857","v":""},{"$f":"Lighting!AG857","v":0},{"$f":"Lighting!AH857","v":0},{"$f":"Lighting!AI857","v":0}]
[0,{"$f":"Lighting!B858","v":850},{"$f":"Lighting!C858","v":0},{"$f":"Lighting!D858","v":0},{"$f":"Lighting!F858","v":0},{"$f":"Lighting!G858","v":0},{"$f":"Lighting!H858","v":0},{"$f":"Lighting!I858","v":0},{"$f":"Lighting!J858","v":0},{"$f":"Lighting!K858","v":0},{"$f":"Lighting!L858","v":0},{"$f":"Lighting!N858","v":0},{"$f":"Lighting!O858","v":0},{"$f":"Lighting!R858","v":0},{"$f":"Lighting!S858","v":0},{"$f":"Lighting!U858","v":""},{"$f":"Lighting!V858","v":""},{"$f":"Lighting!W858","v":""},{"$f":"Lighting!X858","v":0},{"$f":"Lighting!Y858","v":""},{"$f":"Lighting!AA858","v":""},{"$f":"Lighting!AC858","v":""},{"$f":"Lighting!AF858","v":""},{"$f":"Lighting!AG858","v":0},{"$f":"Lighting!AH858","v":0},{"$f":"Lighting!AI858","v":0}]
[0,{"$f":"Lighting!B859","v":851},{"$f":"Lighting!C859","v":0},{"$f":"Lighting!D859","v":0},{"$f":"Lighting!F859","v":0},{"$f":"Lighting!G859","v":0},{"$f":"Lighting!H859","v":0},{"$f":"Lighting!I859","v":0},{"$f":"Lighting!J859","v":0},{"$f":"Lighting!K859","v":0},{"$f":"Lighting!L859","v":0},{"$f":"Lighting!N859","v":0},{"$f":"Lighting!O859","v":0},{"$f":"Lighting!R859","v":0},{"$f":"Lighting!S859","v":0},{"$f":"Lighting!U859","v":""},{"$f":"Lighting!V859","v":""},{"$f":"Lighting!W859","v":""},{"$f":"Lighting!X859","v":0},{"$f":"Lighting!Y859","v":""},{"$f":"Lighting!AA859","v":""},{"$f":"Lighting!AC859","v":""},{"$f":"Lighting!AF859","v":""},{"$f":"Lighting!AG859","v":0},{"$f":"Lighting!AH859","v":0},{"$f":"Lighting!AI859","v":0}]
[0,{"$f":"Lighting!B860","v":852},{"$f":"Lighting!C860","v":0},{"$f":"Lighting!D860","v":0},{"$f":"Lighting!F860","v":0},{"$f":"Lighting!G860","v":0},{"$f":"Lighting!H860","v":0},{"$f":"Lighting!I860","v":0},{"$f":"Lighting!J860","v":0},{"$f":"Lighting!K860","v":0},{"$f":"Lighting!L860","v":0},{"$f":"Lighting!N860","v":0},{"$f":"Lighting!O860","v":0},{"$f":"Lighting!R860","v":0},{"$f":"Lighting!S860","v":0},{"$f":"Lighting!U860","v":""},{"$f":"Lighting!V860","v":""},{"$f":"Lighting!W860","v":""},{"$f":"Lighting!X860","v":0},{"$f":"Lighting!Y860","v":""},{"$f":"Lighting!AA860","v":""},{"$f":"Lighting!AC860","v":""},{"$f":"Lighting!AF860","v":""},{"$f":"Lighting!AG860","v":0},{"$f":"Lighting!AH860","v":0},{"$f":"Lighting!AI860","v":0}]
[0,{"$f":"Lighting!B861","v":853},{"$f":"Lighting!C861","v":0},{"$f":"Lighting!D861","v":0},{"$f":"Lighting!F861","v":0},{"$f":"Lighting!G861","v":0},{"$f":"Lighting!H861","v":0},{"$f":"Lighting!I861","v":0},{"$f":"Lighting!J861","v":0},{"$f":"Lighting!K861","v":0},{"$f":"Lighting!L861","v":0},{"$f":"Lighting!N861","v":0},{"$f":"Lighting!O861","v":0},{"$f":"Lighting!R861","v":0},{"$f":"Lighting!S861","v":0},{"$f":"Lighting!U861","v":""},{"$f":"Lighting!V861","v":""},{"$f":"Lighting!W861","v":""},{"$f":"Lighting!X861","v":0},{"$f":"Lighting!Y861","v":""},{"$f":"Lighting!AA861","v":""},{"$f":"Lighting!AC861","v":""},{"$f":"Lighting!AF861","v":""},{"$f":"Lighting!AG861","v":0},{"$f":"Lighting!AH861","v":0},{"$f":"Lighting!AI861","v":0}]
[0,{"$f":"Lighting!B862","v":854},{"$f":"Lighting!C862","v":0},{"$f":"Lighting!D862","v":0},{"$f":"Lighting!F862","v":0},{"$f":"Lighting!G862","v":0},{"$f":"Lighting!H862","v":0},{"$f":"Lighting!I862","v":0},{"$f":"Lighting!J862","v":0},{"$f":"Lighting!K862","v":0},{"$f":"Lighting!L862","v":0},{"$f":"Lighting!N862","v":0},{"$f":"Lighting!O862","v":0},{"$f":"Lighting!R862","v":0},{"$f":"Lighting!S862","v":0},{"$f":"Lighting!U862","v":""},{"$f":"Lighting!V862","v":""},{"$f":"Lighting!W862","v":""},{"$f":"Lighting!X862","v":0},{"$f":"Lighting!Y862","v":""},{"$f":"Lighting!AA862","v":""},{"$f":"Lighting!AC862","v":""},{"$f":"Lighting!AF862","v":""},{"$f":"Lighting!AG862","v":0},{"$f":"Lighting!AH862","v":0},{"$f":"Lighting!AI862","v":0}]
[0,{"$f":"Lighting!B863","v":855},{"$f":"Lighting!C863","v":0},{"$f":"Lighting!D863","v":0},{"$f":"Lighting!F863","v":0},{"$f":"Lighting!G863","v":0},{"$f":"Lighting!H863","v":0},{"$f":"Lighting!I863","v":0},{"$f":"Lighting!J863","v":0},{"$f":"Lighting!K863","v":0},{"$f":"Lighting!L863","v":0},{"$f":"Lighting!N863","v":0},{"$f":"Lighting!O863","v":0},{"$f":"Lighting!R863","v":0},{"$f":"Lighting!S863","v":0},{"$f":"Lighting!U863","v":""},{"$f":"Lighting!V863","v":""},{"$f":"Lighting!W863","v":""},{"$f":"Lighting!X863","v":0},{"$f":"Lighting!Y863","v":""},{"$f":"Lighting!AA863","v":""},{"$f":"Lighting!AC863","v":""},{"$f":"Lighting!AF863","v":""},{"$f":"Lighting!AG863","v":0},{"$f":"Lighting!AH863","v":0},{"$f":"Lighting!AI863","v":0}]
[0,{"$f":"Lighting!B864","v":856},{"$f":"Lighting!C864","v":0},{"$f":"Lighting!D864","v":0},{"$f":"Lighting!F864","v":0},{"$f":"Lighting!G864","v":0},{"$f":"Lighting!H864","v":0},{"$f":"Lighting!I864","v":0},{"$f":"Lighting!J864","v":0},{"$f":"Lighting!K864","v":0},{"$f":"Lighting!L864","v":0},{"$f":"Lighting!N864","v":0},{"$f":"Lighting!O864","v":0},{"$f":"Lighting!R864","v":0},{"$f":"Lighting!S864","v":0},{"$f":"Lighting!U864","v":""},{"$f":"Lighting!V864","v":""},{"$f":"Lighting!W864","v":""},{"$f":"Lighting!X864","v":0},{"$f":"Lighting!Y864","v":""},{"$f":"Lighting!AA864","v":""},{"$f":"Lighting!AC864","v":""},{"$f":"Lighting!AF864","v":""},{"$f":"Lighting!AG864","v":0},{"$f":"Lighting!AH864","v":0},{"$f":"Lighting!AI864","v":0}]
[0,{"$f":"Lighting!B865","v":857},{"$f":"Lighting!C865","v":0},{"$f":"Lighting!D865","v":0},{"$f":"Lighting!F865","v":0},{"$f":"Lighting!G865","v":0},{"$f":"Lighting!H865","v":0},{"$f":"Lighting!I865","v":0},{"$f":"Lighting!J865","v":0},{"$f":"Lighting!K865","v":0},{"$f":"Lighting!L865","v":0},{"$f":"Lighting!N865","v":0},{"$f":"Lighting!O865","v":0},{"$f":"Lighting!R865","v":0},{"$f":"Lighting!S865","v":0},{"$f":"Lighting!U865","v":""},{"$f":"Lighting!V865","v":""},{"$f":"Lighting!W865","v":""},{"$f":"Lighting!X865","v":0},{"$f":"Lighting!Y865","v":""},{"$f":"Lighting!AA865","v":""},{"$f":"Lighting!AC865","v":""},{"$f":"Lighting!AF865","v":""},{"$f":"Lighting!AG865","v":0},{"$f":"Lighting!AH865","v":0},{"$f":"Lighting!AI865","v":0}]
[0,{"$f":"Lighting!B866","v":858},{"$f":"Lighting!C866","v":0},{"$f":"Lighting!D866","v":0},{"$f":"Lighting!F866","v":0},{"$f":"Lighting!G866","v":0},{"$f":"Lighting!H866","v":0},{"$f":"Lighting!I866","v":0},{"$f":"Lighting!J866","v":0},{"$f":"Lighting!K866","v":0},{"$f":"Lighting!L866","v":0},{"$f":"Lighting!N866","v":0},{"$f":"Lighting!O866","v":0},{"$f":"Lighting!R866","v":0},{"$f":"Lighting!S866","v":0},{"$f":"Lighting!U866","v":""},{"$f":"Lighting!V866","v":""},{"$f":"Lighting!W866","v":""},{"$f":"Lighting!X866","v":0},{"$f":"Lighting!Y866","v":""},{"$f":"Lighting!AA866","v":""},{"$f":"Lighting!AC866","v":""},{"$f":"Lighting!AF866","v":""},{"$f":"Lighting!AG866","v":0},{"$f":"Lighting!AH866","v":0},{"$f":"Lighting!AI866","v":0}]
[0,{"$f":"Lighting!B867","v":859},{"$f":"Lighting!C867","v":0},{"$f":"Lighting!D867","v":0},{"$f":"Lighting!F867","v":0},{"$f":"Lighting!G867","v":0},{"$f":"Lighting!H867","v":0},{"$f":"Lighting!I867","v":0},{"$f":"Lighting!J867","v":0},{"$f":"Lighting!K867","v":0},{"$f":"Lighting!L867","v":0},{"$f":"Lighting!N867","v":0},{"$f":"Lighting!O867","v":0},{"$f":"Lighting!R867","v":0},{"$f":"Lighting!S867","v":0},{"$f":"Lighting!U867","v":""},{"$f":"Lighting!V867","v":""},{"$f":"Lighting!W867","v":""},{"$f":"Lighting!X867","v":0},{"$f":"Lighting!Y867","v":""},{"$f":"Lighting!AA867","v":""},{"$f":"Lighting!AC867","v":""},{"$f":"Lighting!AF867","v":""},{"$f":"Lighting!AG867","v":0},{"$f":"Lighting!AH867","v":0},{"$f":"Lighting!AI867","v":0}]
[0,{"$f":"Lighting!B868","v":860},{"$f":"Lighting!C868","v":0},{"$f":"Lighting!D868","v":0},{"$f":"Lighting!F868","v":0},{"$f":"Lighting!G868","v":0},{"$f":"Lighting!H868","v":0},{"$f":"Lighting!I868","v":0},{"$f":"Lighting!J868","v":0},{"$f":"Lighting!K868","v":0},{"$f":"Lighting!L868","v":0},{"$f":"Lighting!N868","v":0},{"$f":"Lighting!O868","v":0},{"$f":"Lighting!R868","v":0},{"$f":"Lighting!S868","v":0},{"$f":"Lighting!U868","v":""},{"$f":"Lighting!V868","v":""},{"$f":"Lighting!W868","v":""},{"$f":"Lighting!X868","v":0},{"$f":"Lighting!Y868","v":""},{"$f":"Lighting!AA868","v":""},{"$f":"Lighting!AC868","v":""},{"$f":"Lighting!AF868","v":""},{"$f":"Lighting!AG868","v":0},{"$f":"Lighting!AH868","v":0},{"$f":"Lighting!AI868","v":0}]
[0,{"$f":"Lighting!B869","v":861},{"$f":"Lighting!C869","v":0},{"$f":"Lighting!D869","v":0},{"$f":"Lighting!F869","v":0},{"$f":"Lighting!G869","v":0},{"$f":"Lighting!H869","v":0},{"$f":"Lighting!I869","v":0},{"$f":"Lighting!J869","v":0},{"$f":"Lighting!K869","v":0},{"$f":"Lighting!L869","v":0},{"$f":"Lighting!N869","v":0},{"$f":"Lighting!O869","v":0},{"$f":"Lighting!R869","v":0},{"$f":"Lighting!S869","v":0},{"$f":"Lighting!U869","v":""},{"$f":"Lighting!V869","v":""},{"$f":"Lighting!W869","v":""},{"$f":"Lighting!X869","v":0},{"$f":"Lighting!Y869","v":""},{"$f":"Lighting!AA869","v":""},{"$f":"Lighting!AC869","v":""},{"$f":"Lighting!AF869","v":""},{"$f":"Lighting!AG869","v":0},{"$f":"Lighting!AH869","v":0},{"$f":"Lighting!AI869","v":0}]
[0,{"$f":"Lighting!B870","v":862},{"$f":"Lighting!C870","v":0},{"$f":"Lighting!D870","v":0},{"$f":"Lighting!F870","v":0},{"$f":"Lighting!G870","v":0},{"$f":"Lighting!H870","v":0},{"$f":"Lighting!I870","v":0},{"$f":"Lighting!J870","v":0},{"$f":"Lighting!K870","v":0},{"$f":"Lighting!L870","v":0},{"$f":"Lighting!N870","v":0},{"$f":"Lighting!O870","v":0},{"$f":"Lighting!R870","v":0},{"$f":"Lighting!S870","v":0},{"$f":"Lighting!U870","v":""},{"$f":"Lighting!V870","v":""},{"$f":"Lighting!W870","v":""},{"$f":"Lighting!X870","v":0},{"$f":"Lighting!Y870","v":""},{"$f":"Lighting!AA870","v":""},{"$f":"Lighting!AC870","v":""},{"$f":"Lighting!AF870","v":""},{"$f":"Lighting!AG870","v":0},{"$f":"Lighting!AH870","v":0},{"$f":"Lighting!AI870","v":0}]
[0,{"$f":"Lighting!B871","v":863},{"$f":"Lighting!C871","v":0},{"$f":"Lighting!D871","v":0},{"$f":"Lighting!F871","v":0},{"$f":"Lighting!G871","v":0},{"$f":"Lighting!H871","v":0},{"$f":"Lighting!I871","v":0},{"$f":"Lighting!J871","v":0},{"$f":"Lighting!K871","v":0},{"$f":"Lighting!L871","v":0},{"$f":"Lighting!N871","v":0},{"$f":"Lighting!O871","v":0},{"$f":"Lighting!R871","v":0},{"$f":"Lighting!S871","v":0},{"$f":"Lighting!U871","v":""},{"$f":"Lighting!V871","v":""},{"$f":"Lighting!W871","v":""},{"$f":"Lighting!X871","v":0},{"$f":"Lighting!Y871","v":""},{"$f":"Lighting!AA871","v":""},{"$f":"Lighting!AC871","v":""},{"$f":"Lighting!AF871","v":""},{"$f":"Lighting!AG871","v":0},{"$f":"Lighting!AH871","v":0},{"$f":"Lighting!AI871","v":0}]
[0,{"$f":"Lighting!B872","v":864},{"$f":"Lighting!C872","v":0},{"$f":"Lighting!D872","v":0},{"$f":"Lighting!F872","v":0},{"$f":"Lighting!G872","v":0},{"$f":"Lighting!H872","v":0},{"$f":"Lighting!I872","v":0},{"$f":"Lighting!J872","v":0},{"$f":"Lighting!K872","v":0},{"$f":"Lighting!L872","v":0},{"$f":"Lighting!N872","v":0},{"$f":"Lighting!O872","v":0},{"$f":"Lighting!R872","v":0},{"$f":"Lighting!S872","v":0},{"$f":"Lighting!U872","v":""},{"$f":"Lighting!V872","v":""},{"$f":"Lighting!W872","v":""},{"$f":"Lighting!X872","v":0},{"$f":"Lighting!Y872","v":""},{"$f":"Lighting!AA872","v":""},{"$f":"Lighting!AC872","v":""},{"$f":"Lighting!AF872","v":""},{"$f":"Lighting!AG872","v":0},{"$f":"Lighting!AH872","v":0},{"$f":"Lighting!AI872","v":0}]
[0,{"$f":"Lighting!B873","v":865},{"$f":"Lighting!C873","v":0},{"$f":"Lighting!D873","v":0},{"$f":"Lighting!F873","v":0},{"$f":"Lighting!G873","v":0},{"$f":"Lighting!H873","v":0},{"$f":"Lighting!I873","v":0},{"$f":"Lighting!J873","v":0},{"$f":"Lighting!K873","v":0},{"$f":"Lighting!L873","v":0},{"$f":"Lighting!N873","v":0},{"$f":"Lighting!O873","v":0},{"$f":"Lighting!R873","v":0},{"$f":"Lighting!S873","v":0},{"$f":"Lighting!U873","v":""},{"$f":"Lighting!V873","v":""},{"$f":"Lighting!W873","v":""},{"$f":"Lighting!X873","v":0},{"$f":"Lighting!Y873","v":""},{"$f":"Lighting!AA873","v":""},{"$f":"Lighting!AC873","v":""},{"$f":"Lighting!AF873","v":""},{"$f":"Lighting!AG873","v":0},{"$f":"Lighting!AH873","v":0},{"$f":"Lighting!AI873","v":0}]
[0,{"$f":"Lighting!B874","v":866},{"$f":"Lighting!C874","v":0},{"$f":"Lighting!D874","v":0},{"$f":"Lighting!F874","v":0},{"$f":"Lighting!G874","v":0},{"$f":"Lighting!H874","v":0},{"$f":"Lighting!I874","v":0},{"$f":"Lighting!J874","v":0},{"$f":"Lighting!K874","v":0},{"$f":"Lighting!L874","v":0},{"$f":"Lighting!N874","v":0},{"$f":"Lighting!O874","v":0},{"$f":"Lighting!R874","v":0},{"$f":"Lighting!S874","v":0},{"$f":"Lighting!U874","v":""},{"$f":"Lighting!V874","v":""},{"$f":"Lighting!W874","v":""},{"$f":"Lighting!X874","v":0},{"$f":"Lighting!Y874","v":""},{"$f":"Lighting!AA874","v":""},{"$f":"Lighting!AC874","v":""},{"$f":"Lighting!AF874","v":""},{"$f":"Lighting!AG874","v":0},{"$f":"Lighting!AH874","v":0},{"$f":"Lighting!AI874","v":0}]
[0,{"$f":"Lighting!B875","v":867},{"$f":"Lighting!C875","v":0},{"$f":"Lighting!D875","v":0},{"$f":"Lighting!F875","v":0},{"$f":"Lighting!G875","v":0},{"$f":"Lighting!H875","v":0},{"$f":"Lighting!I875","v":0},{"$f":"Lighting!J875","v":0},{"$f":"Lighting!K875","v":0},{"$f":"Lighting!L875","v":0},{"$f":"Lighting!N875","v":0},{"$f":"Lighting!O875","v":0},{"$f":"Lighting!R875","v":0},{"$f":"Lighting!S875","v":0},{"$f":"Lighting!U875","v":""},{"$f":"Lighting!V875","v":""},{"$f":"Lighting!W875","v":""},{"$f":"Lighting!X875","v":0},{"$f":"Lighting!Y875","v":""},{"$f":"Lighting!AA875","v":""},{"$f":"Lighting!AC875","v":""},{"$f":"Lighting!AF875","v":""},{"$f":"Lighting!AG875","v":0},{"$f":"Lighting!AH875","v":0},{"$f":"Lighting!AI875","v":0}]
[0,{"$f":"Lighting!B876","v":868},{"$f":"Lighting!C876","v":0},{"$f":"Lighting!D876","v":0},{"$f":"Lighting!F876","v":0},{"$f":"Lighting!G876","v":0},{"$f":"Lighting!H876","v":0},{"$f":"Lighting!I876","v":0},{"$f":"Lighting!J876","v":0},{"$f":"Lighting!K876","v":0},{"$f":"Lighting!L876","v":0},{"$f":"Lighting!N876","v":0},{"$f":"Lighting!O876","v":0},{"$f":"Lighting!R876","v":0},{"$f":"Lighting!S876","v":0},{"$f":"Lighting!U876","v":""},{"$f":"Lighting!V876","v":""},{"$f":"Lighting!W876","v":""},{"$f":"Lighting!X876","v":0},{"$f":"Lighting!Y876","v":""},{"$f":"Lighting!AA876","v":""},{"$f":"Lighting!AC876","v":""},{"$f":"Lighting!AF876","v":""},{"$f":"Lighting!AG876","v":0},{"$f":"Lighting!AH876","v":0},{"$f":"Lighting!AI876","v":0}]
[0,{"$f":"Lighting!B877","v":869},{"$f":"Lighting!C877","v":0},{"$f":"Lighting!D877","v":0},{"$f":"Lighting!F877","v":0},{"$f":"Lighting!G877","v":0},{"$f":"Lighting!H877","v":0},{"$f":"Lighting!I877","v":0},{"$f":"Lighting!J877","v":0},{"$f":"Lighting!K877","v":0},{"$f":"Lighting!L877","v":0},{"$f":"Lighting!N877","v":0},{"$f":"Lighting!O877","v":0},{"$f":"Lighting!R877","v":0},{"$f":"Lighting!S877","v":0},{"$f":"Lighting!U877","v":""},{"$f":"Lighting!V877","v":""},{"$f":"Lighting!W877","v":""},{"$f":"Lighting!X877","v":0},{"$f":"Lighting!Y877","v":""},{"$f":"Lighting!AA877","v":""},{"$f":"Lighting!AC877","v":""},{"$f":"Lighting!AF877","v":""},{"$f":"Lighting!AG877","v":0},{"$f":"Lighting!AH877","v":0},{"$f":"Lighting!AI877","v":0}]
[0,{"$f":"Lighting!B878","v":870},{"$f":"Lighting!C878","v":0},{"$f":"Lighting!D878","v":0},{"$f":"Lighting!F878","v":0},{"$f":"Lighting!G878","v":0},{"$f":"Lighting!H878","v":0},{"$f":"Lighting!I878","v":0},{"$f":"Lighting!J878","v":0},{"$f":"Lighting!K878","v":0},{"$f":"Lighting!L878","v":0},{"$f":"Lighting!N878","v":0},{"$f":"Lighting!O878","v":0},{"$f":"Lighting!R878","v":0},{"$f":"Lighting!S878","v":0},{"$f":"Lighting!U878","v":""},{"$f":"Lighting!V878","v":""},{"$f":"Lighting!W878","v":""},{"$f":"Lighting!X878","v":0},{"$f":"Lighting!Y878","v":""},{"$f":"Lighting!AA878","v":""},{"$f":"Lighting!AC878","v":""},{"$f":"Lighting!AF878","v":""},{"$f":"Lighting!AG878","v":0},{"$f":"Lighting!AH878","v":0},{"$f":"Lighting!AI878","v":0}]
[0,{"$f":"Lighting!B879","v":871},{"$f":"Lighting!C879","v":0},{"$f":"Lighting!D879","v":0},{"$f":"Lighting!F879","v":0},{"$f":"Lighting!G879","v":0},{"$f":"Lighting!H879","v":0},{"$f":"Lighting!I879","v":0},{"$f":"Lighting!J879","v":0},{"$f":"Lighting!K879","v":0},{"$f":"Lighting!L879","v":0},{"$f":"Lighting!N879","v":0},{"$f":"Lighting!O879","v":0},{"$f":"Lighting!R879","v":0},{"$f":"Lighting!S879","v":0},{"$f":"Lighting!U879","v":""},{"$f":"Lighting!V879","v":""},{"$f":"Lighting!W879","v":""},{"$f":"Lighting!X879","v":0},{"$f":"Lighting!Y879","v":""},{"$f":"Lighting!AA879","v":""},{"$f":"Lighting!AC879","v":""},{"$f":"Lighting!AF879","v":""},{"$f":"Lighting!AG879","v":0},{"$f":"Lighting!AH879","v":0},{"$f":"Lighting!AI879","v":0}]
[0,{"$f":"Lighting!B880","v":872},{"$f":"Lighting!C880","v":0},{"$f":"Lighting!D880","v":0},{"$f":"Lighting!F880","v":0},{"$f":"Lighting!G880","v":0},{"$f":"Lighting!H880","v":0},{"$f":"Lighting!I880","v":0},{"$f":"Lighting!J880","v":0},{"$f":"Lighting!K880","v":0},{"$f":"Lighting!L880","v":0},{"$f":"Lighting!N880","v":0},{"$f":"Lighting!O880","v":0},{"$f":"Lighting!R880","v":0},{"$f":"Lighting!S880","v":0},{"$f":"Lighting!U880","v":""},{"$f":"Lighting!V880","v":""},{"$f":"Lighting!W880","v":""},{"$f":"Lighting!X880","v":0},{"$f":"Lighting!Y880","v":""},{"$f":"Lighting!AA880","v":""},{"$f":"Lighting!AC880","v":""},{"$f":"Lighting!AF880","v":""},{"$f":"Lighting!AG880","v":0},{"$f":"Lighting!AH880","v":0},{"$f":"Lighting!AI880","v":0}]
[0,{"$f":"Lighting!B881","v":873},{"$f":"Lighting!C881","v":0},{"$f":"Lighting!D881","v":0},{"$f":"Lighting!F881","v":0},{"$f":"Lighting!G881","v":0},{"$f":"Lighting!H881","v":0},{"$f":"Lighting!I881","v":0},{"$f":"Lighting!J881","v":0},{"$f":"Lighting!K881","v":0},{"$f":"Lighting!L881","v":0},{"$f":"Lighting!N881","v":0},{"$f":"Lighting!O881","v":0},{"$f":"Lighting!R881","v":0},{"$f":"Lighting!S881","v":0},{"$f":"Lighting!U881","v":""},{"$f":"Lighting!V881","v":""},{"$f":"Lighting!W881","v":""},{"$f":"Lighting!X881","v":0},{"$f":"Lighting!Y881","v":""},{"$f":"Lighting!AA881","v":""},{"$f":"Lighting!AC881","v":""},{"$f":"Lighting!AF881","v":""},{"$f":"Lighting!AG881","v":0},{"$f":"Lighting!AH881","v":0},{"$f":"Lighting!AI881","v":0}]
[0,{"$f":"Lighting!B882","v":874},{"$f":"Lighting!C882","v":0},{"$f":"Lighting!D882","v":0},{"$f":"Lighting!F882","v":0},{"$f":"Lighting!G882","v":0},{"$f":"Lighting!H882","v":0},{"$f":"Lighting!I882","v":0},{"$f":"Lighting!J882","v":0},{"$f":"Lighting!K882","v":0},{"$f":"Lighting!L882","v":0},{"$f":"Lighting!N882","v":0},{"$f":"Lighting!O882","v":0},{"$f":"Lighting!R882","v":0},{"$f":"Lighting!S882","v":0},{"$f":"Lighting!U882","v":""},{"$f":"Lighting!V882","v":""},{"$f":"Lighting!W882","v":""},{"$f":"Lighting!X882","v":0},{"$f":"Lighting!Y882","v":""},{"$f":"Lighting!AA882","v":""},{"$f":"Lighting!AC882","v":""},{"$f":"Lighting!AF882","v":""},{"$f":"Lighting!AG882","v":0},{"$f":"Lighting!AH882","v":0},{"$f":"Lighting!AI882","v":0}]
[0,{"$f":"Lighting!B883","v":875},{"$f":"Lighting!C883","v":0},{"$f":"Lighting!D883","v":0},{"$f":"Lighting!F883","v":0},{"$f":"Lighting!G883","v":0},{"$f":"Lighting!H883","v":0},{"$f":"Lighting!I883","v":0},{"$f":"Lighting!J883","v":0},{"$f":"Lighting!K883","v":0},{"$f":"Lighting!L883","v":0},{"$f":"Lighting!N883","v":0},{"$f":"Lighting!O883","v":0},{"$f":"Lighting!R883","v":0},{"$f":"Lighting!S883","v":0},{"$f":"Lighting!U883","v":""},{"$f":"Lighting!V883","v":""},{"$f":"Lighting!W883","v":""},{"$f":"Lighting!X883","v":0},{"$f":"Lighting!Y883","v":""},{"$f":"Lighting!AA883","v":""},{"$f":"Lighting!AC883","v":""},{"$f":"Lighting!AF883","v":""},{"$f":"Lighting!AG883","v":0},{"$f":"Lighting!AH883","v":0},{"$f":"Lighting!AI883","v":0}]
[0,{"$f":"Lighting!B884","v":876},{"$f":"Lighting!C884","v":0},{"$f":"Lighting!D884","v":0},{"$f":"Lighting!F884","v":0},{"$f":"Lighting!G884","v":0},{"$f":"Lighting!H884","v":0},{"$f":"Lighting!I884","v":0},{"$f":"Lighting!J884","v":0},{"$f":"Lighting!K884","v":0},{"$f":"Lighting!L884","v":0},{"$f":"Lighting!N884","v":0},{"$f":"Lighting!O884","v":0},{"$f":"Lighting!R884","v":0},{"$f":"Lighting!S884","v":0},{"$f":"Lighting!U884","v":""},{"$f":"Lighting!V884","v":""},{"$f":"Lighting!W884","v":""},{"$f":"Lighting!X884","v":0},{"$f":"Lighting!Y884","v":""},{"$f":"Lighting!AA884","v":""},{"$f":"Lighting!AC884","v":""},{"$f":"Lighting!AF884","v":""},{"$f":"Lighting!AG884","v":0},{"$f":"Lighting!AH884","v":0},{"$f":"Lighting!AI884","v":0}]
[0,{"$f":"Lighting!B885","v":877},{"$f":"Lighting!C885","v":0},{"$f":"Lighting!D885","v":0},{"$f":"Lighting!F885","v":0},{"$f":"Lighting!G885","v":0},{"$f":"Lighting!H885","v":0},{"$f":"Lighting!I885","v":0},{"$f":"Lighting!J885","v":0},{"$f":"Lighting!K885","v":0},{"$f":"Lighting!L885","v":0},{"$f":"Lighting!N885","v":0},{"$f":"Lighting!O885","v":0},{"$f":"Lighting!R885","v":0},{"$f":"Lighting!S885","v":0},{"$f":"Lighting!U885","v":""},{"$f":"Lighting!V885","v":""},{"$f":"Lighting!W885","v":""},{"$f":"Lighting!X885","v":0},{"$f":"Lighting!Y885","v":""},{"$f":"Lighting!AA885","v":""},{"$f":"Lighting!AC885","v":""},{"$f":"Lighting!AF885","v":""},{"$f":"Lighting!AG885","v":0},{"$f":"Lighting!AH885","v":0},{"$f":"Lighting!AI885","v":0}]
[0,{"$f":"Lighting!B886","v":878},{"$f":"Lighting!C886","v":0},{"$f":"Lighting!D886","v":0},{"$f":"Lighting!F886","v":0},{"$f":"Lighting!G886","v":0},{"$f":"Lighting!H886","v":0},{"$f":"Lighting!I886","v":0},{"$f":"Lighting!J886","v":0},{"$f":"Lighting!K886","v":0},{"$f":"Lighting!L886","v":0},{"$f":"Lighting!N886","v":0},{"$f":"Lighting!O886","v":0},{"$f":"Lighting!R886","v":0},{"$f":"Lighting!S886","v":0},{"$f":"Lighting!U886","v":""},{"$f":"Lighting!V886","v":""},{"$f":"Lighting!W886","v":""},{"$f":"Lighting!X886","v":0},{"$f":"Lighting!Y886","v":""},{"$f":"Lighting!AA886","v":""},{"$f":"Lighting!AC886","v":""},{"$f":"Lighting!AF886","v":""},{"$f":"Lighting!AG886","v":0},{"$f":"Lighting!AH886","v":0},{"$f":"Lighting!AI886","v":0}]
[0,{"$f":"Lighting!B887","v":879},{"$f":"Lighting!C887","v":0},{"$f":"Lighting!D887","v":0},{"$f":"Lighting!F887","v":0},{"$f":"Lighting!G887","v":0},{"$f":"Lighting!H887","v":0},{"$f":"Lighting!I887","v":0},{"$f":"Lighting!J887","v":0},{"$f":"Lighting!K887","v":0},{"$f":"Lighting!L887","v":0},{"$f":"Lighting!N887","v":0},{"$f":"Lighting!O887","v":0},{"$f":"Lighting!R887","v":0},{"$f":"Lighting!S887","v":0},{"$f":"Lighting!U887","v":""},{"$f":"Lighting!V887","v":""},{"$f":"Lighting!W887","v":""},{"$f":"Lighting!X887","v":0},{"$f":"Lighting!Y887","v":""},{"$f":"Lighting!AA887","v":""},{"$f":"Lighting!AC887","v":""},{"$f":"Lighting!AF887","v":""},{"$f":"Lighting!AG887","v":0},{"$f":"Lighting!AH887","v":0},{"$f":"Lighting!AI887","v":0}]
[0,{"$f":"Lighting!B888","v":880},{"$f":"Lighting!C888","v":0},{"$f":"Lighting!D888","v":0},{"$f":"Lighting!F888","v":0},{"$f":"Lighting!G888","v":0},{"$f":"Lighting!H888","v":0},{"$f":"Lighting!I888","v":0},{"$f":"Lighting!J888","v":0},{"$f":"Lighting!K888","v":0},{"$f":"Lighting!L888","v":0},{"$f":"Lighting!N888","v":0},{"$f":"Lighting!O888","v":0},{"$f":"Lighting!R888","v":0},{"$f":"Lighting!S888","v":0},{"$f":"Lighting!U888","v":""},{"$f":"Lighting!V888","v":""},{"$f":"Lighting!W888","v":""},{"$f":"Lighting!X888","v":0},{"$f":"Lighting!Y888","v":""},{"$f":"Lighting!AA888","v":""},{"$f":"Lighting!AC888","v":""},{"$f":"Lighting!AF888","v":""},{"$f":"Lighting!AG888","v":0},{"$f":"Lighting!AH888","v":0},{"$f":"Lighting!AI888","v":0}]
[0,{"$f":"Lighting!B889","v":881},{"$f":"Lighting!C889","v":0},{"$f":"Lighting!D889","v":0},{"$f":"Lighting!F889","v":0},{"$f":"Lighting!G889","v":0},{"$f":"Lighting!H889","v":0},{"$f":"Lighting!I889","v":0},{"$f":"Lighting!J889","v":0},{"$f":"Lighting!K889","v":0},{"$f":"Lighting!L889","v":0},{"$f":"Lighting!N889","v":0},{"$f":"Lighting!O889","v":0},{"$f":"Lighting!R889","v":0},{"$f":"Lighting!S889","v":0},{"$f":"Lighting!U889","v":""},{"$f":"Lighting!V889","v":""},{"$f":"Lighting!W889","v":""},{"$f":"Lighting!X889","v":0},{"$f":"Lighting!Y889","v":""},{"$f":"Lighting!AA889","v":""},{"$f":"Lighting!AC889","v":""},{"$f":"Lighting!AF889","v":""},{"$f":"Lighting!AG889","v":0},{"$f":"Lighting!AH889","v":0},{"$f":"Lighting!AI889","v":0}]
[0,{"$f":"Lighting!B890","v":882},{"$f":"Lighting!C890","v":0},{"$f":"Lighting!D890","v":0},{"$f":"Lighting!F890","v":0},{"$f":"Lighting!G890","v":0},{"$f":"Lighting!H890","v":0},{"$f":"Lighting!I890","v":0},{"$f":"Lighting!J890","v":0},{"$f":"Lighting!K890","v":0},{"$f":"Lighting!L890","v":0},{"$f":"Lighting!N890","v":0},{"$f":"Lighting!O890","v":0},{"$f":"Lighting!R890","v":0},{"$f":"Lighting!S890","v":0},{"$f":"Lighting!U890","v":""},{"$f":"Lighting!V890","v":""},{"$f":"Lighting!W890","v":""},{"$f":"Lighting!X890","v":0},{"$f":"Lighting!Y890","v":""},{"$f":"Lighting!AA890","v":""},{"$f":"Lighting!AC890","v":""},{"$f":"Lighting!AF890","v":""},{"$f":"Lighting!AG890","v":0},{"$f":"Lighting!AH890","v":0},{"$f":"Lighting!AI890","v":0}]
[0,{"$f":"Lighting!B891","v":883},{"$f":"Lighting!C891","v":0},{"$f":"Lighting!D891","v":0},{"$f":"Lighting!F891","v":0},{"$f":"Lighting!G891","v":0},{"$f":"Lighting!H891","v":0},{"$f":"Lighting!I891","v":0},{"$f":"Lighting!J891","v":0},{"$f":"Lighting!K891","v":0},{"$f":"Lighting!L891","v":0},{"$f":"Lighting!N891","v":0},{"$f":"Lighting!O891","v":0},{"$f":"Lighting!R891","v":0},{"$f":"Lighting!S891","v":0},{"$f":"Lighting!U891","v":""},{"$f":"Lighting!V891","v":""},{"$f":"Lighting!W891","v":""},{"$f":"Lighting!X891","v":0},{"$f":"Lighting!Y891","v":""},{"$f":"Lighting!AA891","v":""},{"$f":"Lighting!AC891","v":""},{"$f":"Lighting!AF891","v":""},{"$f":"Lighting!AG891","v":0},{"$f":"Lighting!AH891","v":0},{"$f":"Lighting!AI891","v":0}]
[0,{"$f":"Lighting!B892","v":884},{"$f":"Lighting!C892","v":0},{"$f":"Lighting!D892","v":0},{"$f":"Lighting!F892","v":0},{"$f":"Lighting!G892","v":0},{"$f":"Lighting!H892","v":0},{"$f":"Lighting!I892","v":0},{"$f":"Lighting!J892","v":0},{"$f":"Lighting!K892","v":0},{"$f":"Lighting!L892","v":0},{"$f":"Lighting!N892","v":0},{"$f":"Lighting!O892","v":0},{"$f":"Lighting!R892","v":0},{"$f":"Lighting!S892","v":0},{"$f":"Lighting!U892","v":""},{"$f":"Lighting!V892","v":""},{"$f":"Lighting!W892","v":""},{"$f":"Lighting!X892","v":0},{"$f":"Lighting!Y892","v":""},{"$f":"Lighting!AA892","v":""},{"$f":"Lighting!AC892","v":""},{"$f":"Lighting!AF892","v":""},{"$f":"Lighting!AG892","v":0},{"$f":"Lighting!AH892","v":0},{"$f":"Lighting!AI892","v":0}]
[0,{"$f":"Lighting!B893","v":885},{"$f":"Lighting!C893","v":0},{"$f":"Lighting!D893","v":0},{"$f":"Lighting!F893","v":0},{"$f":"Lighting!G893","v":0},{"$f":"Lighting!H893","v":0},{"$f":"Lighting!I893","v":0},{"$f":"Lighting!J893","v":0},{"$f":"Lighting!K893","v":0},{"$f":"Lighting!L893","v":0},{"$f":"Lighting!N893","v":0},{"$f":"Lighting!O893","v":0},{"$f":"Lighting!R893","v":0},{"$f":"Lighting!S893","v":0},{"$f":"Lighting!U893","v":""},{"$f":"Lighting!V893","v":""},{"$f":"Lighting!W893","v":""},{"$f":"Lighting!X893","v":0},{"$f":"Lighting!Y893","v":""},{"$f":"Lighting!AA893","v":""},{"$f":"Lighting!AC893","v":""},{"$f":"Lighting!AF893","v":""},{"$f":"Lighting!AG893","v":0},{"$f":"Lighting!AH893","v":0},{"$f":"Lighting!AI893","v":0}]
[0,{"$f":"Lighting!B894","v":886},{"$f":"Lighting!C894","v":0},{"$f":"Lighting!D894","v":0},{"$f":"Lighting!F894","v":0},{"$f":"Lighting!G894","v":0},{"$f":"Lighting!H894","v":0},{"$f":"Lighting!I894","v":0},{"$f":"Lighting!J894","v":0},{"$f":"Lighting!K894","v":0},{"$f":"Lighting!L894","v":0},{"$f":"Lighting!N894","v":0},{"$f":"Lighting!O894","v":0},{"$f":"Lighting!R894","v":0},{"$f":"Lighting!S894","v":0},{"$f":"Lighting!U894","v":""},{"$f":"Lighting!V894","v":""},{"$f":"Lighting!W894","v":""},{"$f":"Lighting!X894","v":0},{"$f":"Lighting!Y894","v":""},{"$f":"Lighting!AA894","v":""},{"$f":"Lighting!AC894","v":""},{"$f":"Lighting!AF894","v":""},{"$f":"Lighting!AG894","v":0},{"$f":"Lighting!AH894","v":0},{"$f":"Lighting!AI894","v":0}]
[0,{"$f":"Lighting!B895","v":887},{"$f":"Lighting!C895","v":0},{"$f":"Lighting!D895","v":0},{"$f":"Lighting!F895","v":0},{"$f":"Lighting!G895","v":0},{"$f":"Lighting!H895","v":0},{"$f":"Lighting!I895","v":0},{"$f":"Lighting!J895","v":0},{"$f":"Lighting!K895","v":0},{"$f":"Lighting!L895","v":0},{"$f":"Lighting!N895","v":0},{"$f":"Lighting!O895","v":0},{"$f":"Lighting!R895","v":0},{"$f":"Lighting!S895","v":0},{"$f":"Lighting!U895","v":""},{"$f":"Lighting!V895","v":""},{"$f":"Lighting!W895","v":""},{"$f":"Lighting!X895","v":0},{"$f":"Lighting!Y895","v":""},{"$f":"Lighting!AA895","v":""},{"$f":"Lighting!AC895","v":""},{"$f":"Lighting!AF895","v":""},{"$f":"Lighting!AG895","v":0},{"$f":"Lighting!AH895","v":0},{"$f":"Lighting!AI895","v":0}]
[0,{"$f":"Lighting!B896","v":888},{"$f":"Lighting!C896","v":0},{"$f":"Lighting!D896","v":0},{"$f":"Lighting!F896","v":0},{"$f":"Lighting!G896","v":0},{"$f":"Lighting!H896","v":0},{"$f":"Lighting!I896","v":0},{"$f":"Lighting!J896","v":0},{"$f":"Lighting!K896","v":0},{"$f":"Lighting!L896","v":0},{"$f":"Lighting!N896","v":0},{"$f":"Lighting!O896","v":0},{"$f":"Lighting!R896","v":0},{"$f":"Lighting!S896","v":0},{"$f":"Lighting!U896","v":""},{"$f":"Lighting!V896","v":""},{"$f":"Lighting!W896","v":""},{"$f":"Lighting!X896","v":0},{"$f":"Lighting!Y896","v":""},{"$f":"Lighting!AA896","v":""},{"$f":"Lighting!AC896","v":""},{"$f":"Lighting!AF896","v":""},{"$f":"Lighting!AG896","v":0},{"$f":"Lighting!AH896","v":0},{"$f":"Lighting!AI896","v":0}]
[0,{"$f":"Lighting!B897","v":889},{"$f":"Lighting!C897","v":0},{"$f":"Lighting!D897","v":0},{"$f":"Lighting!F897","v":0},{"$f":"Lighting!G897","v":0},{"$f":"Lighting!H897","v":0},{"$f":"Lighting!I897","v":0},{"$f":"Lighting!J897","v":0},{"$f":"Lighting!K897","v":0},{"$f":"Lighting!L897","v":0},{"$f":"Lighting!N897","v":0},{"$f":"Lighting!O897","v":0},{"$f":"Lighting!R897","v":0},{"$f":"Lighting!S897","v":0},{"$f":"Lighting!U897","v":""},{"$f":"Lighting!V897","v":""},{"$f":"Lighting!W897","v":""},{"$f":"Lighting!X897","v":0},{"$f":"Lighting!Y897","v":""},{"$f":"Lighting!AA897","v":""},{"$f":"Lighting!AC897","v":""},{"$f":"Lighting!AF897","v":""},{"$f":"Lighting!AG897","v":0},{"$f":"Lighting!AH897","v":0},{"$f":"Lighting!AI897","v":0}]
[0,{"$f":"Lighting!B898","v":890},{"$f":"Lighting!C898","v":0},{"$f":"Lighting!D898","v":0},{"$f":"Lighting!F898","v":0},{"$f":"Lighting!G898","v":0},{"$f":"Lighting!H898","v":0},{"$f":"Lighting!I898","v":0},{"$f":"Lighting!J898","v":0},{"$f":"Lighting!K898","v":0},{"$f":"Lighting!L898","v":0},{"$f":"Lighting!N898","v":0},{"$f":"Lighting!O898","v":0},{"$f":"Lighting!R898","v":0},{"$f":"Lighting!S898","v":0},{"$f":"Lighting!U898","v":""},{"$f":"Lighting!V898","v":""},{"$f":"Lighting!W898","v":""},{"$f":"Lighting!X898","v":0},{"$f":"Lighting!Y898","v":""},{"$f":"Lighting!AA898","v":""},{"$f":"Lighting!AC898","v":""},{"$f":"Lighting!AF898","v":""},{"$f":"Lighting!AG898","v":0},{"$f":"Lighting!AH898","v":0},{"$f":"Lighting!AI898","v":0}]
[0,{"$f":"Lighting!B899","v":891},{"$f":"Lighting!C899","v":0},{"$f":"Lighting!D899","v":0},{"$f":"Lighting!F899","v":0},{"$f":"Lighting!G899","v":0},{"$f":"Lighting!H899","v":0},{"$f":"Lighting!I899","v":0},{"$f":"Lighting!J899","v":0},{"$f":"Lighting!K899","v":0},{"$f":"Lighting!L899","v":0},{"$f":"Lighting!N899","v":0},{"$f":"Lighting!O899","v":0},{"$f":"Lighting!R899","v":0},{"$f":"Lighting!S899","v":0},{"$f":"Lighting!U899","v":""},{"$f":"Lighting!V899","v":""},{"$f":"Lighting!W899","v":""},{"$f":"Lighting!X899","v":0},{"$f":"Lighting!Y899","v":""},{"$f":"Lighting!AA899","v":""},{"$f":"Lighting!AC899","v":""},{"$f":"Lighting!AF899","v":""},{"$f":"Lighting!AG899","v":0},{"$f":"Lighting!AH899","v":0},{"$f":"Lighting!AI899","v":0}]
[0,{"$f":"Lighting!B900","v":892},{"$f":"Lighting!C900","v":0},{"$f":"Lighting!D900","v":0},{"$f":"Lighting!F900","v":0},{"$f":"Lighting!G900","v":0},{"$f":"Lighting!H900","v":0},{"$f":"Lighting!I900","v":0},{"$f":"Lighting!J900","v":0},{"$f":"Lighting!K900","v":0},{"$f":"Lighting!L900","v":0},{"$f":"Lighting!N900","v":0},{"$f":"Lighting!O900","v":0},{"$f":"Lighting!R900","v":0},{"$f":"Lighting!S900","v":0},{"$f":"Lighting!U900","v":""},{"$f":"Lighting!V900","v":""},{"$f":"Lighting!W900","v":""},{"$f":"Lighting!X900","v":0},{"$f":"Lighting!Y900","v":""},{"$f":"Lighting!AA900","v":""},{"$f":"Lighting!AC900","v":""},{"$f":"Lighting!AF900","v":""},{"$f":"Lighting!AG900","v":0},{"$f":"Lighting!AH900","v":0},{"$f":"Lighting!AI900","v":0}]
[0,{"$f":"Lighting!B901","v":893},{"$f":"Lighting!C901","v":0},{"$f":"Lighting!D901","v":0},{"$f":"Lighting!F901","v":0},{"$f":"Lighting!G901","v":0},{"$f":"Lighting!H901","v":0},{"$f":"Lighting!I901","v":0},{"$f":"Lighting!J901","v":0},{"$f":"Lighting!K901","v":0},{"$f":"Lighting!L901","v":0},{"$f":"Lighting!N901","v":0},{"$f":"Lighting!O901","v":0},{"$f":"Lighting!R901","v":0},{"$f":"Lighting!S901","v":0},{"$f":"Lighting!U901","v":""},{"$f":"Lighting!V901","v":""},{"$f":"Lighting!W901","v":""},{"$f":"Lighting!X901","v":0},{"$f":"Lighting!Y901","v":""},{"$f":"Lighting!AA901","v":""},{"$f":"Lighting!AC901","v":""},{"$f":"Lighting!AF901","v":""},{"$f":"Lighting!AG901","v":0},{"$f":"Lighting!AH901","v":0},{"$f":"Lighting!AI901","v":0}]
[0,{"$f":"Lighting!B902","v":894},{"$f":"Lighting!C902","v":0},{"$f":"Lighting!D902","v":0},{"$f":"Lighting!F902","v":0},{"$f":"Lighting!G902","v":0},{"$f":"Lighting!H902","v":0},{"$f":"Lighting!I902","v":0},{"$f":"Lighting!J902","v":0},{"$f":"Lighting!K902","v":0},{"$f":"Lighting!L902","v":0},{"$f":"Lighting!N902","v":0},{"$f":"Lighting!O902","v":0},{"$f":"Lighting!R902","v":0},{"$f":"Lighting!S902","v":0},{"$f":"Lighting!U902","v":""},{"$f":"Lighting!V902","v":""},{"$f":"Lighting!W902","v":""},{"$f":"Lighting!X902","v":0},{"$f":"Lighting!Y902","v":""},{"$f":"Lighting!AA902","v":""},{"$f":"Lighting!AC902","v":""},{"$f":"Lighting!AF902","v":""},{"$f":"Lighting!AG902","v":0},{"$f":"Lighting!AH902","v":0},{"$f":"Lighting!AI902","v":0}]
[0,{"$f":"Lighting!B903","v":895},{"$f":"Lighting!C903","v":0},{"$f":"Lighting!D903","v":0},{"$f":"Lighting!F903","v":0},{"$f":"Lighting!G903","v":0},{"$f":"Lighting!H903","v":0},{"$f":"Lighting!I903","v":0},{"$f":"Lighting!J903","v":0},{"$f":"Lighting!K903","v":0},{"$f":"Lighting!L903","v":0},{"$f":"Lighting!N903","v":0},{"$f":"Lighting!O903","v":0},{"$f":"Lighting!R903","v":0},{"$f":"Lighting!S903","v":0},{"$f":"Lighting!U903","v":""},{"$f":"Lighting!V903","v":""},{"$f":"Lighting!W903","v":""},{"$f":"Lighting!X903","v":0},{"$f":"Lighting!Y903","v":""},{"$f":"Lighting!AA903","v":""},{"$f":"Lighting!AC903","v":""},{"$f":"Lighting!AF903","v":""},{"$f":"Lighting!AG903","v":0},{"$f":"Lighting!AH903","v":0},{"$f":"Lighting!AI903","v":0}]
[0,{"$f":"Lighting!B904","v":896},{"$f":"Lighting!C904","v":0},{"$f":"Lighting!D904","v":0},{"$f":"Lighting!F904","v":0},{"$f":"Lighting!G904","v":0},{"$f":"Lighting!H904","v":0},{"$f":"Lighting!I904","v":0},{"$f":"Lighting!J904","v":0},{"$f":"Lighting!K904","v":0},{"$f":"Lighting!L904","v":0},{"$f":"Lighting!N904","v":0},{"$f":"Lighting!O904","v":0},{"$f":"Lighting!R904","v":0},{"$f":"Lighting!S904","v":0},{"$f":"Lighting!U904","v":""},{"$f":"Lighting!V904","v":""},{"$f":"Lighting!W904","v":""},{"$f":"Lighting!X904","v":0},{"$f":"Lighting!Y904","v":""},{"$f":"Lighting!AA904","v":""},{"$f":"Lighting!AC904","v":""},{"$f":"Lighting!AF904","v":""},{"$f":"Lighting!AG904","v":0},{"$f":"Lighting!AH904","v":0},{"$f":"Lighting!AI904","v":0}]
[0,{"$f":"Lighting!B905","v":897},{"$f":"Lighting!C905","v":0},{"$f":"Lighting!D905","v":0},{"$f":"Lighting!F905","v":0},{"$f":"Lighting!G905","v":0},{"$f":"Lighting!H905","v":0},{"$f":"Lighting!I905","v":0},{"$f":"Lighting!J905","v":0},{"$f":"Lighting!K905","v":0},{"$f":"Lighting!L905","v":0},{"$f":"Lighting!N905","v":0},{"$f":"Lighting!O905","v":0},{"$f":"Lighting!R905","v":0},{"$f":"Lighting!S905","v":0},{"$f":"Lighting!U905","v":""},{"$f":"Lighting!V905","v":""},{"$f":"Lighting!W905","v":""},{"$f":"Lighting!X905","v":0},{"$f":"Lighting!Y905","v":""},{"$f":"Lighting!AA905","v":""},{"$f":"Lighting!AC905","v":""},{"$f":"Lighting!AF905","v":""},{"$f":"Lighting!AG905","v":0},{"$f":"Lighting!AH905","v":0},{"$f":"Lighting!AI905","v":0}]
[0,{"$f":"Lighting!B906","v":898},{"$f":"Lighting!C906","v":0},{"$f":"Lighting!D906","v":0},{"$f":"Lighting!F906","v":0},{"$f":"Lighting!G906","v":0},{"$f":"Lighting!H906","v":0},{"$f":"Lighting!I906","v":0},{"$f":"Lighting!J906","v":0},{"$f":"Lighting!K906","v":0},{"$f":"Lighting!L906","v":0},{"$f":"Lighting!N906","v":0},{"$f":"Lighting!O906","v":0},{"$f":"Lighting!R906","v":0},{"$f":"Lighting!S906","v":0},{"$f":"Lighting!U906","v":""},{"$f":"Lighting!V906","v":""},{"$f":"Lighting!W906","v":""},{"$f":"Lighting!X906","v":0},{"$f":"Lighting!Y906","v":""},{"$f":"Lighting!AA906","v":""},{"$f":"Lighting!AC906","v":""},{"$f":"Lighting!AF906","v":""},{"$f":"Lighting!AG906","v":0},{"$f":"Lighting!AH906","v":0},{"$f":"Lighting!AI906","v":0}]
[0,{"$f":"Lighting!B907","v":899},{"$f":"Lighting!C907","v":0},{"$f":"Lighting!D907","v":0},{"$f":"Lighting!F907","v":0},{"$f":"Lighting!G907","v":0},{"$f":"Lighting!H907","v":0},{"$f":"Lighting!I907","v":0},{"$f":"Lighting!J907","v":0},{"$f":"Lighting!K907","v":0},{"$f":"Lighting!L907","v":0},{"$f":"Lighting!N907","v":0},{"$f":"Lighting!O907","v":0},{"$f":"Lighting!R907","v":0},{"$f":"Lighting!S907","v":0},{"$f":"Lighting!U907","v":""},{"$f":"Lighting!V907","v":""},{"$f":"Lighting!W907","v":""},{"$f":"Lighting!X907","v":0},{"$f":"Lighting!Y907","v":""},{"$f":"Lighting!AA907","v":""},{"$f":"Lighting!AC907","v":""},{"$f":"Lighting!AF907","v":""},{"$f":"Lighting!AG907","v":0},{"$f":"Lighting!AH907","v":0},{"$f":"Lighting!AI907","v":0}]
[0,{"$f":"Lighting!B908","v":900},{"$f":"Lighting!C908","v":0},{"$f":"Lighting!D908","v":0},{"$f":"Lighting!F908","v":0},{"$f":"Lighting!G908","v":0},{"$f":"Lighting!H908","v":0},{"$f":"Lighting!I908","v":0},{"$f":"Lighting!J908","v":0},{"$f":"Lighting!K908","v":0},{"$f":"Lighting!L908","v":0},{"$f":"Lighting!N908","v":0},{"$f":"Lighting!O908","v":0},{"$f":"Lighting!R908","v":0},{"$f":"Lighting!S908","v":0},{"$f":"Lighting!U908","v":""},{"$f":"Lighting!V908","v":""},{"$f":"Lighting!W908","v":""},{"$f":"Lighting!X908","v":0},{"$f":"Lighting!Y908","v":""},{"$f":"Lighting!AA908","v":""},{"$f":"Lighting!AC908","v":""},{"$f":"Lighting!AF908","v":""},{"$f":"Lighting!AG908","v":0},{"$f":"Lighting!AH908","v":0},{"$f":"Lighting!AI908","v":0}]
[0,{"$f":"Lighting!B909","v":901},{"$f":"Lighting!C909","v":0},{"$f":"Lighting!D909","v":0},{"$f":"Lighting!F909","v":0},{"$f":"Lighting!G909","v":0},{"$f":"Lighting!H909","v":0},{"$f":"Lighting!I909","v":0},{"$f":"Lighting!J909","v":0},{"$f":"Lighting!K909","v":0},{"$f":"Lighting!L909","v":0},{"$f":"Lighting!N909","v":0},{"$f":"Lighting!O909","v":0},{"$f":"Lighting!R909","v":0},{"$f":"Lighting!S909","v":0},{"$f":"Lighting!U909","v":""},{"$f":"Lighting!V909","v":""},{"$f":"Lighting!W909","v":""},{"$f":"Lighting!X909","v":0},{"$f":"Lighting!Y909","v":""},{"$f":"Lighting!AA909","v":""},{"$f":"Lighting!AC909","v":""},{"$f":"Lighting!AF909","v":""},{"$f":"Lighting!AG909","v":0},{"$f":"Lighting!AH909","v":0},{"$f":"Lighting!AI909","v":0}]
[0,{"$f":"Lighting!B910","v":902},{"$f":"Lighting!C910","v":0},{"$f":"Lighting!D910","v":0},{"$f":"Lighting!F910","v":0},{"$f":"Lighting!G910","v":0},{"$f":"Lighting!H910","v":0},{"$f":"Lighting!I910","v":0},{"$f":"Lighting!J910","v":0},{"$f":"Lighting!K910","v":0},{"$f":"Lighting!L910","v":0},{"$f":"Lighting!N910","v":0},{"$f":"Lighting!O910","v":0},{"$f":"Lighting!R910","v":0},{"$f":"Lighting!S910","v":0},{"$f":"Lighting!U910","v":""},{"$f":"Lighting!V910","v":""},{"$f":"Lighting!W910","v":""},{"$f":"Lighting!X910","v":0},{"$f":"Lighting!Y910","v":""},{"$f":"Lighting!AA910","v":""},{"$f":"Lighting!AC910","v":""},{"$f":"Lighting!AF910","v":""},{"$f":"Lighting!AG910","v":0},{"$f":"Lighting!AH910","v":0},{"$f":"Lighting!AI910","v":0}]
[0,{"$f":"Lighting!B911","v":903},{"$f":"Lighting!C911","v":0},{"$f":"Lighting!D911","v":0},{"$f":"Lighting!F911","v":0},{"$f":"Lighting!G911","v":0},{"$f":"Lighting!H911","v":0},{"$f":"Lighting!I911","v":0},{"$f":"Lighting!J911","v":0},{"$f":"Lighting!K911","v":0},{"$f":"Lighting!L911","v":0},{"$f":"Lighting!N911","v":0},{"$f":"Lighting!O911","v":0},{"$f":"Lighting!R911","v":0},{"$f":"Lighting!S911","v":0},{"$f":"Lighting!U911","v":""},{"$f":"Lighting!V911","v":""},{"$f":"Lighting!W911","v":""},{"$f":"Lighting!X911","v":0},{"$f":"Lighting!Y911","v":""},{"$f":"Lighting!AA911","v":""},{"$f":"Lighting!AC911","v":""},{"$f":"Lighting!AF911","v":""},{"$f":"Lighting!AG911","v":0},{"$f":"Lighting!AH911","v":0},{"$f":"Lighting!AI911","v":0}]
[{"$f":"IF(G1068=0,0,1)","v":0},{"$f":"Lighting!B912","v":904},{"$f":"Lighting!C912","v":0},{"$f":"Lighting!D912","v":0},{"$f":"Lighting!F912","v":0},{"$f":"Lighting!G912","v":0},{"$f":"Lighting!H912","v":0},{"$f":"Lighting!I912","v":0},{"$f":"Lighting!J912","v":0},{"$f":"Lighting!K912","v":0},{"$f":"Lighting!L912","v":0},{"$f":"Lighting!N912","v":0},{"$f":"Lighting!O912","v":0},{"$f":"Lighting!R912","v":0},{"$f":"Lighting!S912","v":0},{"$f":"Lighting!U912","v":""},{"$f":"Lighting!V912","v":""},{"$f":"Lighting!W912","v":""},{"$f":"Lighting!X912","v":0},{"$f":"Lighting!Y912","v":""},{"$f":"Lighting!AA912","v":""},{"$f":"Lighting!AC912","v":""},{"$f":"Lighting!AF912","v":""},{"$f":"Lighting!AG912","v":0},{"$f":"Lighting!AH912","v":0},{"$f":"Lighting!AI912","v":0}]
[0,{"$f":"Lighting!B913","v":905},{"$f":"Lighting!C913","v":0},{"$f":"Lighting!D913","v":0},{"$f":"Lighting!F913","v":0},{"$f":"Lighting!G913","v":0},{"$f":"Lighting!H913","v":0},{"$f":"Lighting!I913","v":0},{"$f":"Lighting!J913","v":0},{"$f":"Lighting!K913","v":0},{"$f":"Lighting!L913","v":0},{"$f":"Lighting!N913","v":0},{"$f":"Lighting!O913","v":0},{"$f":"Lighting!R913","v":0},{"$f":"Lighting!S913","v":0},{"$f":"Lighting!U913","v":""},{"$f":"Lighting!V913","v":""},{"$f":"Lighting!W913","v":""},{"$f":"Lighting!X913","v":0},{"$f":"Lighting!Y913","v":""},{"$f":"Lighting!AA913","v":""},{"$f":"Lighting!AC913","v":""},{"$f":"Lighting!AF913","v":""},{"$f":"Lighting!AG913","v":0},{"$f":"Lighting!AH913","v":0},{"$f":"Lighting!AI913","v":0}]
[0,{"$f":"Lighting!B914","v":906},{"$f":"Lighting!C914","v":0},{"$f":"Lighting!D914","v":0},{"$f":"Lighting!F914","v":0},{"$f":"Lighting!G914","v":0},{"$f":"Lighting!H914","v":0},{"$f":"Lighting!I914","v":0},{"$f":"Lighting!J914","v":0},{"$f":"Lighting!K914","v":0},{"$f":"Lighting!L914","v":0},{"$f":"Lighting!N914","v":0},{"$f":"Lighting!O914","v":0},{"$f":"Lighting!R914","v":0},{"$f":"Lighting!S914","v":0},{"$f":"Lighting!U914","v":""},{"$f":"Lighting!V914","v":""},{"$f":"Lighting!W914","v":""},{"$f":"Lighting!X914","v":0},{"$f":"Lighting!Y914","v":""},{"$f":"Lighting!AA914","v":""},{"$f":"Lighting!AC914","v":""},{"$f":"Lighting!AF914","v":""},{"$f":"Lighting!AG914","v":0},{"$f":"Lighting!AH914","v":0},{"$f":"Lighting!AI914","v":0}]
[0,{"$f":"Lighting!B915","v":907},{"$f":"Lighting!C915","v":0},{"$f":"Lighting!D915","v":0},{"$f":"Lighting!F915","v":0},{"$f":"Lighting!G915","v":0},{"$f":"Lighting!H915","v":0},{"$f":"Lighting!I915","v":0},{"$f":"Lighting!J915","v":0},{"$f":"Lighting!K915","v":0},{"$f":"Lighting!L915","v":0},{"$f":"Lighting!N915","v":0},{"$f":"Lighting!O915","v":0},{"$f":"Lighting!R915","v":0},{"$f":"Lighting!S915","v":0},{"$f":"Lighting!U915","v":""},{"$f":"Lighting!V915","v":""},{"$f":"Lighting!W915","v":""},{"$f":"Lighting!X915","v":0},{"$f":"Lighting!Y915","v":""},{"$f":"Lighting!AA915","v":""},{"$f":"Lighting!AC915","v":""},{"$f":"Lighting!AF915","v":""},{"$f":"Lighting!AG915","v":0},{"$f":"Lighting!AH915","v":0},{"$f":"Lighting!AI915","v":0}]
[0,{"$f":"Lighting!B916","v":908},{"$f":"Lighting!C916","v":0},{"$f":"Lighting!D916","v":0},{"$f":"Lighting!F916","v":0},{"$f":"Lighting!G916","v":0},{"$f":"Lighting!H916","v":0},{"$f":"Lighting!I916","v":0},{"$f":"Lighting!J916","v":0},{"$f":"Lighting!K916","v":0},{"$f":"Lighting!L916","v":0},{"$f":"Lighting!N916","v":0},{"$f":"Lighting!O916","v":0},{"$f":"Lighting!R916","v":0},{"$f":"Lighting!S916","v":0},{"$f":"Lighting!U916","v":""},{"$f":"Lighting!V916","v":""},{"$f":"Lighting!W916","v":""},{"$f":"Lighting!X916","v":0},{"$f":"Lighting!Y916","v":""},{"$f":"Lighting!AA916","v":""},{"$f":"Lighting!AC916","v":""},{"$f":"Lighting!AF916","v":""},{"$f":"Lighting!AG916","v":0},{"$f":"Lighting!AH916","v":0},{"$f":"Lighting!AI916","v":0}]
[0,{"$f":"Lighting!B917","v":909},{"$f":"Lighting!C917","v":0},{"$f":"Lighting!D917","v":0},{"$f":"Lighting!F917","v":0},{"$f":"Lighting!G917","v":0},{"$f":"Lighting!H917","v":0},{"$f":"Lighting!I917","v":0},{"$f":"Lighting!J917","v":0},{"$f":"Lighting!K917","v":0},{"$f":"Lighting!L917","v":0},{"$f":"Lighting!N917","v":0},{"$f":"Lighting!O917","v":0},{"$f":"Lighting!R917","v":0},{"$f":"Lighting!S917","v":0},{"$f":"Lighting!U917","v":""},{"$f":"Lighting!V917","v":""},{"$f":"Lighting!W917","v":""},{"$f":"Lighting!X917","v":0},{"$f":"Lighting!Y917","v":""},{"$f":"Lighting!AA917","v":""},{"$f":"Lighting!AC917","v":""},{"$f":"Lighting!AF917","v":""},{"$f":"Lighting!AG917","v":0},{"$f":"Lighting!AH917","v":0},{"$f":"Lighting!AI917","v":0}]
[0,{"$f":"Lighting!B918","v":910},{"$f":"Lighting!C918","v":0},{"$f":"Lighting!D918","v":0},{"$f":"Lighting!F918","v":0},{"$f":"Lighting!G918","v":0},{"$f":"Lighting!H918","v":0},{"$f":"Lighting!I918","v":0},{"$f":"Lighting!J918","v":0},{"$f":"Lighting!K918","v":0},{"$f":"Lighting!L918","v":0},{"$f":"Lighting!N918","v":0},{"$f":"Lighting!O918","v":0},{"$f":"Lighting!R918","v":0},{"$f":"Lighting!S918","v":0},{"$f":"Lighting!U918","v":""},{"$f":"Lighting!V918","v":""},{"$f":"Lighting!W918","v":""},{"$f":"Lighting!X918","v":0},{"$f":"Lighting!Y918","v":""},{"$f":"Lighting!AA918","v":""},{"$f":"Lighting!AC918","v":""},{"$f":"Lighting!AF918","v":""},{"$f":"Lighting!AG918","v":0},{"$f":"Lighting!AH918","v":0},{"$f":"Lighting!AI918","v":0}]
[0,{"$f":"Lighting!B919","v":911},{"$f":"Lighting!C919","v":0},{"$f":"Lighting!D919","v":0},{"$f":"Lighting!F919","v":0},{"$f":"Lighting!G919","v":0},{"$f":"Lighting!H919","v":0},{"$f":"Lighting!I919","v":0},{"$f":"Lighting!J919","v":0},{"$f":"Lighting!K919","v":0},{"$f":"Lighting!L919","v":0},{"$f":"Lighting!N919","v":0},{"$f":"Lighting!O919","v":0},{"$f":"Lighting!R919","v":0},{"$f":"Lighting!S919","v":0},{"$f":"Lighting!U919","v":""},{"$f":"Lighting!V919","v":""},{"$f":"Lighting!W919","v":""},{"$f":"Lighting!X919","v":0},{"$f":"Lighting!Y919","v":""},{"$f":"Lighting!AA919","v":""},{"$f":"Lighting!AC919","v":""},{"$f":"Lighting!AF919","v":""},{"$f":"Lighting!AG919","v":0},{"$f":"Lighting!AH919","v":0},{"$f":"Lighting!AI919","v":0}]
[0,{"$f":"Lighting!B920","v":912},{"$f":"Lighting!C920","v":0},{"$f":"Lighting!D920","v":0},{"$f":"Lighting!F920","v":0},{"$f":"Lighting!G920","v":0},{"$f":"Lighting!H920","v":0},{"$f":"Lighting!I920","v":0},{"$f":"Lighting!J920","v":0},{"$f":"Lighting!K920","v":0},{"$f":"Lighting!L920","v":0},{"$f":"Lighting!N920","v":0},{"$f":"Lighting!O920","v":0},{"$f":"Lighting!R920","v":0},{"$f":"Lighting!S920","v":0},{"$f":"Lighting!U920","v":""},{"$f":"Lighting!V920","v":""},{"$f":"Lighting!W920","v":""},{"$f":"Lighting!X920","v":0},{"$f":"Lighting!Y920","v":""},{"$f":"Lighting!AA920","v":""},{"$f":"Lighting!AC920","v":""},{"$f":"Lighting!AF920","v":""},{"$f":"Lighting!AG920","v":0},{"$f":"Lighting!AH920","v":0},{"$f":"Lighting!AI920","v":0}]
[0,{"$f":"Lighting!B921","v":913},{"$f":"Lighting!C921","v":0},{"$f":"Lighting!D921","v":0},{"$f":"Lighting!F921","v":0},{"$f":"Lighting!G921","v":0},{"$f":"Lighting!H921","v":0},{"$f":"Lighting!I921","v":0},{"$f":"Lighting!J921","v":0},{"$f":"Lighting!K921","v":0},{"$f":"Lighting!L921","v":0},{"$f":"Lighting!N921","v":0},{"$f":"Lighting!O921","v":0},{"$f":"Lighting!R921","v":0},{"$f":"Lighting!S921","v":0},{"$f":"Lighting!U921","v":""},{"$f":"Lighting!V921","v":""},{"$f":"Lighting!W921","v":""},{"$f":"Lighting!X921","v":0},{"$f":"Lighting!Y921","v":""},{"$f":"Lighting!AA921","v":""},{"$f":"Lighting!AC921","v":""},{"$f":"Lighting!AF921","v":""},{"$f":"Lighting!AG921","v":0},{"$f":"Lighting!AH921","v":0},{"$f":"Lighting!AI921","v":0}]
[0,{"$f":"Lighting!B922","v":914},{"$f":"Lighting!C922","v":0},{"$f":"Lighting!D922","v":0},{"$f":"Lighting!F922","v":0},{"$f":"Lighting!G922","v":0},{"$f":"Lighting!H922","v":0},{"$f":"Lighting!I922","v":0},{"$f":"Lighting!J922","v":0},{"$f":"Lighting!K922","v":0},{"$f":"Lighting!L922","v":0},{"$f":"Lighting!N922","v":0},{"$f":"Lighting!O922","v":0},{"$f":"Lighting!R922","v":0},{"$f":"Lighting!S922","v":0},{"$f":"Lighting!U922","v":""},{"$f":"Lighting!V922","v":""},{"$f":"Lighting!W922","v":""},{"$f":"Lighting!X922","v":0},{"$f":"Lighting!Y922","v":""},{"$f":"Lighting!AA922","v":""},{"$f":"Lighting!AC922","v":""},{"$f":"Lighting!AF922","v":""},{"$f":"Lighting!AG922","v":0},{"$f":"Lighting!AH922","v":0},{"$f":"Lighting!AI922","v":0}]
[0,{"$f":"Lighting!B923","v":915},{"$f":"Lighting!C923","v":0},{"$f":"Lighting!D923","v":0},{"$f":"Lighting!F923","v":0},{"$f":"Lighting!G923","v":0},{"$f":"Lighting!H923","v":0},{"$f":"Lighting!I923","v":0},{"$f":"Lighting!J923","v":0},{"$f":"Lighting!K923","v":0},{"$f":"Lighting!L923","v":0},{"$f":"Lighting!N923","v":0},{"$f":"Lighting!O923","v":0},{"$f":"Lighting!R923","v":0},{"$f":"Lighting!S923","v":0},{"$f":"Lighting!U923","v":""},{"$f":"Lighting!V923","v":""},{"$f":"Lighting!W923","v":""},{"$f":"Lighting!X923","v":0},{"$f":"Lighting!Y923","v":""},{"$f":"Lighting!AA923","v":""},{"$f":"Lighting!AC923","v":""},{"$f":"Lighting!AF923","v":""},{"$f":"Lighting!AG923","v":0},{"$f":"Lighting!AH923","v":0},{"$f":"Lighting!AI923","v":0}]
[0,{"$f":"Lighting!B924","v":916},{"$f":"Lighting!C924","v":0},{"$f":"Lighting!D924","v":0},{"$f":"Lighting!F924","v":0},{"$f":"Lighting!G924","v":0},{"$f":"Lighting!H924","v":0},{"$f":"Lighting!I924","v":0},{"$f":"Lighting!J924","v":0},{"$f":"Lighting!K924","v":0},{"$f":"Lighting!L924","v":0},{"$f":"Lighting!N924","v":0},{"$f":"Lighting!O924","v":0},{"$f":"Lighting!R924","v":0},{"$f":"Lighting!S924","v":0},{"$f":"Lighting!U924","v":""},{"$f":"Lighting!V924","v":""},{"$f":"Lighting!W924","v":""},{"$f":"Lighting!X924","v":0},{"$f":"Lighting!Y924","v":""},{"$f":"Lighting!AA924","v":""},{"$f":"Lighting!AC924","v":""},{"$f":"Lighting!AF924","v":""},{"$f":"Lighting!AG924","v":0},{"$f":"Lighting!AH924","v":0},{"$f":"Lighting!AI924","v":0}]
[0,{"$f":"Lighting!B925","v":917},{"$f":"Lighting!C925","v":0},{"$f":"Lighting!D925","v":0},{"$f":"Lighting!F925","v":0},{"$f":"Lighting!G925","v":0},{"$f":"Lighting!H925","v":0},{"$f":"Lighting!I925","v":0},{"$f":"Lighting!J925","v":0},{"$f":"Lighting!K925","v":0},{"$f":"Lighting!L925","v":0},{"$f":"Lighting!N925","v":0},{"$f":"Lighting!O925","v":0},{"$f":"Lighting!R925","v":0},{"$f":"Lighting!S925","v":0},{"$f":"Lighting!U925","v":""},{"$f":"Lighting!V925","v":""},{"$f":"Lighting!W925","v":""},{"$f":"Lighting!X925","v":0},{"$f":"Lighting!Y925","v":""},{"$f":"Lighting!AA925","v":""},{"$f":"Lighting!AC925","v":""},{"$f":"Lighting!AF925","v":""},{"$f":"Lighting!AG925","v":0},{"$f":"Lighting!AH925","v":0},{"$f":"Lighting!AI925","v":0}]
[0,{"$f":"Lighting!B926","v":918},{"$f":"Lighting!C926","v":0},{"$f":"Lighting!D926","v":0},{"$f":"Lighting!F926","v":0},{"$f":"Lighting!G926","v":0},{"$f":"Lighting!H926","v":0},{"$f":"Lighting!I926","v":0},{"$f":"Lighting!J926","v":0},{"$f":"Lighting!K926","v":0},{"$f":"Lighting!L926","v":0},{"$f":"Lighting!N926","v":0},{"$f":"Lighting!O926","v":0},{"$f":"Lighting!R926","v":0},{"$f":"Lighting!S926","v":0},{"$f":"Lighting!U926","v":""},{"$f":"Lighting!V926","v":""},{"$f":"Lighting!W926","v":""},{"$f":"Lighting!X926","v":0},{"$f":"Lighting!Y926","v":""},{"$f":"Lighting!AA926","v":""},{"$f":"Lighting!AC926","v":""},{"$f":"Lighting!AF926","v":""},{"$f":"Lighting!AG926","v":0},{"$f":"Lighting!AH926","v":0},{"$f":"Lighting!AI926","v":0}]
[0,{"$f":"Lighting!B927","v":919},{"$f":"Lighting!C927","v":0},{"$f":"Lighting!D927","v":0},{"$f":"Lighting!F927","v":0},{"$f":"Lighting!G927","v":0},{"$f":"Lighting!H927","v":0},{"$f":"Lighting!I927","v":0},{"$f":"Lighting!J927","v":0},{"$f":"Lighting!K927","v":0},{"$f":"Lighting!L927","v":0},{"$f":"Lighting!N927","v":0},{"$f":"Lighting!O927","v":0},{"$f":"Lighting!R927","v":0},{"$f":"Lighting!S927","v":0},{"$f":"Lighting!U927","v":""},{"$f":"Lighting!V927","v":""},{"$f":"Lighting!W927","v":""},{"$f":"Lighting!X927","v":0},{"$f":"Lighting!Y927","v":""},{"$f":"Lighting!AA927","v":""},{"$f":"Lighting!AC927","v":""},{"$f":"Lighting!AF927","v":""},{"$f":"Lighting!AG927","v":0},{"$f":"Lighting!AH927","v":0},{"$f":"Lighting!AI927","v":0}]
[0,{"$f":"Lighting!B928","v":920},{"$f":"Lighting!C928","v":0},{"$f":"Lighting!D928","v":0},{"$f":"Lighting!F928","v":0},{"$f":"Lighting!G928","v":0},{"$f":"Lighting!H928","v":0},{"$f":"Lighting!I928","v":0},{"$f":"Lighting!J928","v":0},{"$f":"Lighting!K928","v":0},{"$f":"Lighting!L928","v":0},{"$f":"Lighting!N928","v":0},{"$f":"Lighting!O928","v":0},{"$f":"Lighting!R928","v":0},{"$f":"Lighting!S928","v":0},{"$f":"Lighting!U928","v":""},{"$f":"Lighting!V928","v":""},{"$f":"Lighting!W928","v":""},{"$f":"Lighting!X928","v":0},{"$f":"Lighting!Y928","v":""},{"$f":"Lighting!AA928","v":""},{"$f":"Lighting!AC928","v":""},{"$f":"Lighting!AF928","v":""},{"$f":"Lighting!AG928","v":0},{"$f":"Lighting!AH928","v":0},{"$f":"Lighting!AI928","v":0}]
[0,{"$f":"Lighting!B929","v":921},{"$f":"Lighting!C929","v":0},{"$f":"Lighting!D929","v":0},{"$f":"Lighting!F929","v":0},{"$f":"Lighting!G929","v":0},{"$f":"Lighting!H929","v":0},{"$f":"Lighting!I929","v":0},{"$f":"Lighting!J929","v":0},{"$f":"Lighting!K929","v":0},{"$f":"Lighting!L929","v":0},{"$f":"Lighting!N929","v":0},{"$f":"Lighting!O929","v":0},{"$f":"Lighting!R929","v":0},{"$f":"Lighting!S929","v":0},{"$f":"Lighting!U929","v":""},{"$f":"Lighting!V929","v":""},{"$f":"Lighting!W929","v":""},{"$f":"Lighting!X929","v":0},{"$f":"Lighting!Y929","v":""},{"$f":"Lighting!AA929","v":""},{"$f":"Lighting!AC929","v":""},{"$f":"Lighting!AF929","v":""},{"$f":"Lighting!AG929","v":0},{"$f":"Lighting!AH929","v":0},{"$f":"Lighting!AI929","v":0}]
[0,{"$f":"Lighting!B930","v":922},{"$f":"Lighting!C930","v":0},{"$f":"Lighting!D930","v":0},{"$f":"Lighting!F930","v":0},{"$f":"Lighting!G930","v":0},{"$f":"Lighting!H930","v":0},{"$f":"Lighting!I930","v":0},{"$f":"Lighting!J930","v":0},{"$f":"Lighting!K930","v":0},{"$f":"Lighting!L930","v":0},{"$f":"Lighting!N930","v":0},{"$f":"Lighting!O930","v":0},{"$f":"Lighting!R930","v":0},{"$f":"Lighting!S930","v":0},{"$f":"Lighting!U930","v":""},{"$f":"Lighting!V930","v":""},{"$f":"Lighting!W930","v":""},{"$f":"Lighting!X930","v":0},{"$f":"Lighting!Y930","v":""},{"$f":"Lighting!AA930","v":""},{"$f":"Lighting!AC930","v":""},{"$f":"Lighting!AF930","v":""},{"$f":"Lighting!AG930","v":0},{"$f":"Lighting!AH930","v":0},{"$f":"Lighting!AI930","v":0}]
[0,{"$f":"Lighting!B931","v":923},{"$f":"Lighting!C931","v":0},{"$f":"Lighting!D931","v":0},{"$f":"Lighting!F931","v":0},{"$f":"Lighting!G931","v":0},{"$f":"Lighting!H931","v":0},{"$f":"Lighting!I931","v":0},{"$f":"Lighting!J931","v":0},{"$f":"Lighting!K931","v":0},{"$f":"Lighting!L931","v":0},{"$f":"Lighting!N931","v":0},{"$f":"Lighting!O931","v":0},{"$f":"Lighting!R931","v":0},{"$f":"Lighting!S931","v":0},{"$f":"Lighting!U931","v":""},{"$f":"Lighting!V931","v":""},{"$f":"Lighting!W931","v":""},{"$f":"Lighting!X931","v":0},{"$f":"Lighting!Y931","v":""},{"$f":"Lighting!AA931","v":""},{"$f":"Lighting!AC931","v":""},{"$f":"Lighting!AF931","v":""},{"$f":"Lighting!AG931","v":0},{"$f":"Lighting!AH931","v":0},{"$f":"Lighting!AI931","v":0}]
[0,{"$f":"Lighting!B932","v":924},{"$f":"Lighting!C932","v":0},{"$f":"Lighting!D932","v":0},{"$f":"Lighting!F932","v":0},{"$f":"Lighting!G932","v":0},{"$f":"Lighting!H932","v":0},{"$f":"Lighting!I932","v":0},{"$f":"Lighting!J932","v":0},{"$f":"Lighting!K932","v":0},{"$f":"Lighting!L932","v":0},{"$f":"Lighting!N932","v":0},{"$f":"Lighting!O932","v":0},{"$f":"Lighting!R932","v":0},{"$f":"Lighting!S932","v":0},{"$f":"Lighting!U932","v":""},{"$f":"Lighting!V932","v":""},{"$f":"Lighting!W932","v":""},{"$f":"Lighting!X932","v":0},{"$f":"Lighting!Y932","v":""},{"$f":"Lighting!AA932","v":""},{"$f":"Lighting!AC932","v":""},{"$f":"Lighting!AF932","v":""},{"$f":"Lighting!AG932","v":0},{"$f":"Lighting!AH932","v":0},{"$f":"Lighting!AI932","v":0}]
[0,{"$f":"Lighting!B933","v":925},{"$f":"Lighting!C933","v":0},{"$f":"Lighting!D933","v":0},{"$f":"Lighting!F933","v":0},{"$f":"Lighting!G933","v":0},{"$f":"Lighting!H933","v":0},{"$f":"Lighting!I933","v":0},{"$f":"Lighting!J933","v":0},{"$f":"Lighting!K933","v":0},{"$f":"Lighting!L933","v":0},{"$f":"Lighting!N933","v":0},{"$f":"Lighting!O933","v":0},{"$f":"Lighting!R933","v":0},{"$f":"Lighting!S933","v":0},{"$f":"Lighting!U933","v":""},{"$f":"Lighting!V933","v":""},{"$f":"Lighting!W933","v":""},{"$f":"Lighting!X933","v":0},{"$f":"Lighting!Y933","v":""},{"$f":"Lighting!AA933","v":""},{"$f":"Lighting!AC933","v":""},{"$f":"Lighting!AF933","v":""},{"$f":"Lighting!AG933","v":0},{"$f":"Lighting!AH933","v":0},{"$f":"Lighting!AI933","v":0}]
[0,{"$f":"Lighting!B934","v":926},{"$f":"Lighting!C934","v":0},{"$f":"Lighting!D934","v":0},{"$f":"Lighting!F934","v":0},{"$f":"Lighting!G934","v":0},{"$f":"Lighting!H934","v":0},{"$f":"Lighting!I934","v":0},{"$f":"Lighting!J934","v":0},{"$f":"Lighting!K934","v":0},{"$f":"Lighting!L934","v":0},{"$f":"Lighting!N934","v":0},{"$f":"Lighting!O934","v":0},{"$f":"Lighting!R934","v":0},{"$f":"Lighting!S934","v":0},{"$f":"Lighting!U934","v":""},{"$f":"Lighting!V934","v":""},{"$f":"Lighting!W934","v":""},{"$f":"Lighting!X934","v":0},{"$f":"Lighting!Y934","v":""},{"$f":"Lighting!AA934","v":""},{"$f":"Lighting!AC934","v":""},{"$f":"Lighting!AF934","v":""},{"$f":"Lighting!AG934","v":0},{"$f":"Lighting!AH934","v":0},{"$f":"Lighting!AI934","v":0}]
[0,{"$f":"Lighting!B935","v":927},{"$f":"Lighting!C935","v":0},{"$f":"Lighting!D935","v":0},{"$f":"Lighting!F935","v":0},{"$f":"Lighting!G935","v":0},{"$f":"Lighting!H935","v":0},{"$f":"Lighting!I935","v":0},{"$f":"Lighting!J935","v":0},{"$f":"Lighting!K935","v":0},{"$f":"Lighting!L935","v":0},{"$f":"Lighting!N935","v":0},{"$f":"Lighting!O935","v":0},{"$f":"Lighting!R935","v":0},{"$f":"Lighting!S935","v":0},{"$f":"Lighting!U935","v":""},{"$f":"Lighting!V935","v":""},{"$f":"Lighting!W935","v":""},{"$f":"Lighting!X935","v":0},{"$f":"Lighting!Y935","v":""},{"$f":"Lighting!AA935","v":""},{"$f":"Lighting!AC935","v":""},{"$f":"Lighting!AF935","v":""},{"$f":"Lighting!AG935","v":0},{"$f":"Lighting!AH935","v":0},{"$f":"Lighting!AI935","v":0}]
[0,{"$f":"Lighting!B936","v":928},{"$f":"Lighting!C936","v":0},{"$f":"Lighting!D936","v":0},{"$f":"Lighting!F936","v":0},{"$f":"Lighting!G936","v":0},{"$f":"Lighting!H936","v":0},{"$f":"Lighting!I936","v":0},{"$f":"Lighting!J936","v":0},{"$f":"Lighting!K936","v":0},{"$f":"Lighting!L936","v":0},{"$f":"Lighting!N936","v":0},{"$f":"Lighting!O936","v":0},{"$f":"Lighting!R936","v":0},{"$f":"Lighting!S936","v":0},{"$f":"Lighting!U936","v":""},{"$f":"Lighting!V936","v":""},{"$f":"Lighting!W936","v":""},{"$f":"Lighting!X936","v":0},{"$f":"Lighting!Y936","v":""},{"$f":"Lighting!AA936","v":""},{"$f":"Lighting!AC936","v":""},{"$f":"Lighting!AF936","v":""},{"$f":"Lighting!AG936","v":0},{"$f":"Lighting!AH936","v":0},{"$f":"Lighting!AI936","v":0}]
[0,{"$f":"Lighting!B937","v":929},{"$f":"Lighting!C937","v":0},{"$f":"Lighting!D937","v":0},{"$f":"Lighting!F937","v":0},{"$f":"Lighting!G937","v":0},{"$f":"Lighting!H937","v":0},{"$f":"Lighting!I937","v":0},{"$f":"Lighting!J937","v":0},{"$f":"Lighting!K937","v":0},{"$f":"Lighting!L937","v":0},{"$f":"Lighting!N937","v":0},{"$f":"Lighting!O937","v":0},{"$f":"Lighting!R937","v":0},{"$f":"Lighting!S937","v":0},{"$f":"Lighting!U937","v":""},{"$f":"Lighting!V937","v":""},{"$f":"Lighting!W937","v":""},{"$f":"Lighting!X937","v":0},{"$f":"Lighting!Y937","v":""},{"$f":"Lighting!AA937","v":""},{"$f":"Lighting!AC937","v":""},{"$f":"Lighting!AF937","v":""},{"$f":"Lighting!AG937","v":0},{"$f":"Lighting!AH937","v":0},{"$f":"Lighting!AI937","v":0}]
[0,{"$f":"Lighting!B938","v":930},{"$f":"Lighting!C938","v":0},{"$f":"Lighting!D938","v":0},{"$f":"Lighting!F938","v":0},{"$f":"Lighting!G938","v":0},{"$f":"Lighting!H938","v":0},{"$f":"Lighting!I938","v":0},{"$f":"Lighting!J938","v":0},{"$f":"Lighting!K938","v":0},{"$f":"Lighting!L938","v":0},{"$f":"Lighting!N938","v":0},{"$f":"Lighting!O938","v":0},{"$f":"Lighting!R938","v":0},{"$f":"Lighting!S938","v":0},{"$f":"Lighting!U938","v":""},{"$f":"Lighting!V938","v":""},{"$f":"Lighting!W938","v":""},{"$f":"Lighting!X938","v":0},{"$f":"Lighting!Y938","v":""},{"$f":"Lighting!AA938","v":""},{"$f":"Lighting!AC938","v":""},{"$f":"Lighting!AF938","v":""},{"$f":"Lighting!AG938","v":0},{"$f":"Lighting!AH938","v":0},{"$f":"Lighting!AI938","v":0}]
[0,{"$f":"Lighting!B939","v":931},{"$f":"Lighting!C939","v":0},{"$f":"Lighting!D939","v":0},{"$f":"Lighting!F939","v":0},{"$f":"Lighting!G939","v":0},{"$f":"Lighting!H939","v":0},{"$f":"Lighting!I939","v":0},{"$f":"Lighting!J939","v":0},{"$f":"Lighting!K939","v":0},{"$f":"Lighting!L939","v":0},{"$f":"Lighting!N939","v":0},{"$f":"Lighting!O939","v":0},{"$f":"Lighting!R939","v":0},{"$f":"Lighting!S939","v":0},{"$f":"Lighting!U939","v":""},{"$f":"Lighting!V939","v":""},{"$f":"Lighting!W939","v":""},{"$f":"Lighting!X939","v":0},{"$f":"Lighting!Y939","v":""},{"$f":"Lighting!AA939","v":""},{"$f":"Lighting!AC939","v":""},{"$f":"Lighting!AF939","v":""},{"$f":"Lighting!AG939","v":0},{"$f":"Lighting!AH939","v":0},{"$f":"Lighting!AI939","v":0}]
[0,{"$f":"Lighting!B940","v":932},{"$f":"Lighting!C940","v":0},{"$f":"Lighting!D940","v":0},{"$f":"Lighting!F940","v":0},{"$f":"Lighting!G940","v":0},{"$f":"Lighting!H940","v":0},{"$f":"Lighting!I940","v":0},{"$f":"Lighting!J940","v":0},{"$f":"Lighting!K940","v":0},{"$f":"Lighting!L940","v":0},{"$f":"Lighting!N940","v":0},{"$f":"Lighting!O940","v":0},{"$f":"Lighting!R940","v":0},{"$f":"Lighting!S940","v":0},{"$f":"Lighting!U940","v":""},{"$f":"Lighting!V940","v":""},{"$f":"Lighting!W940","v":""},{"$f":"Lighting!X940","v":0},{"$f":"Lighting!Y940","v":""},{"$f":"Lighting!AA940","v":""},{"$f":"Lighting!AC940","v":""},{"$f":"Lighting!AF940","v":""},{"$f":"Lighting!AG940","v":0},{"$f":"Lighting!AH940","v":0},{"$f":"Lighting!AI940","v":0}]
[0,{"$f":"Lighting!B941","v":933},{"$f":"Lighting!C941","v":0},{"$f":"Lighting!D941","v":0},{"$f":"Lighting!F941","v":0},{"$f":"Lighting!G941","v":0},{"$f":"Lighting!H941","v":0},{"$f":"Lighting!I941","v":0},{"$f":"Lighting!J941","v":0},{"$f":"Lighting!K941","v":0},{"$f":"Lighting!L941","v":0},{"$f":"Lighting!N941","v":0},{"$f":"Lighting!O941","v":0},{"$f":"Lighting!R941","v":0},{"$f":"Lighting!S941","v":0},{"$f":"Lighting!U941","v":""},{"$f":"Lighting!V941","v":""},{"$f":"Lighting!W941","v":""},{"$f":"Lighting!X941","v":0},{"$f":"Lighting!Y941","v":""},{"$f":"Lighting!AA941","v":""},{"$f":"Lighting!AC941","v":""},{"$f":"Lighting!AF941","v":""},{"$f":"Lighting!AG941","v":0},{"$f":"Lighting!AH941","v":0},{"$f":"Lighting!AI941","v":0}]
[0,{"$f":"Lighting!B942","v":934},{"$f":"Lighting!C942","v":0},{"$f":"Lighting!D942","v":0},{"$f":"Lighting!F942","v":0},{"$f":"Lighting!G942","v":0},{"$f":"Lighting!H942","v":0},{"$f":"Lighting!I942","v":0},{"$f":"Lighting!J942","v":0},{"$f":"Lighting!K942","v":0},{"$f":"Lighting!L942","v":0},{"$f":"Lighting!N942","v":0},{"$f":"Lighting!O942","v":0},{"$f":"Lighting!R942","v":0},{"$f":"Lighting!S942","v":0},{"$f":"Lighting!U942","v":""},{"$f":"Lighting!V942","v":""},{"$f":"Lighting!W942","v":""},{"$f":"Lighting!X942","v":0},{"$f":"Lighting!Y942","v":""},{"$f":"Lighting!AA942","v":""},{"$f":"Lighting!AC942","v":""},{"$f":"Lighting!AF942","v":""},{"$f":"Lighting!AG942","v":0},{"$f":"Lighting!AH942","v":0},{"$f":"Lighting!AI942","v":0}]
[0,{"$f":"Lighting!B943","v":935},{"$f":"Lighting!C943","v":0},{"$f":"Lighting!D943","v":0},{"$f":"Lighting!F943","v":0},{"$f":"Lighting!G943","v":0},{"$f":"Lighting!H943","v":0},{"$f":"Lighting!I943","v":0},{"$f":"Lighting!J943","v":0},{"$f":"Lighting!K943","v":0},{"$f":"Lighting!L943","v":0},{"$f":"Lighting!N943","v":0},{"$f":"Lighting!O943","v":0},{"$f":"Lighting!R943","v":0},{"$f":"Lighting!S943","v":0},{"$f":"Lighting!U943","v":""},{"$f":"Lighting!V943","v":""},{"$f":"Lighting!W943","v":""},{"$f":"Lighting!X943","v":0},{"$f":"Lighting!Y943","v":""},{"$f":"Lighting!AA943","v":""},{"$f":"Lighting!AC943","v":""},{"$f":"Lighting!AF943","v":""},{"$f":"Lighting!AG943","v":0},{"$f":"Lighting!AH943","v":0},{"$f":"Lighting!AI943","v":0}]
[0,{"$f":"Lighting!B944","v":936},{"$f":"Lighting!C944","v":0},{"$f":"Lighting!D944","v":0},{"$f":"Lighting!F944","v":0},{"$f":"Lighting!G944","v":0},{"$f":"Lighting!H944","v":0},{"$f":"Lighting!I944","v":0},{"$f":"Lighting!J944","v":0},{"$f":"Lighting!K944","v":0},{"$f":"Lighting!L944","v":0},{"$f":"Lighting!N944","v":0},{"$f":"Lighting!O944","v":0},{"$f":"Lighting!R944","v":0},{"$f":"Lighting!S944","v":0},{"$f":"Lighting!U944","v":""},{"$f":"Lighting!V944","v":""},{"$f":"Lighting!W944","v":""},{"$f":"Lighting!X944","v":0},{"$f":"Lighting!Y944","v":""},{"$f":"Lighting!AA944","v":""},{"$f":"Lighting!AC944","v":""},{"$f":"Lighting!AF944","v":""},{"$f":"Lighting!AG944","v":0},{"$f":"Lighting!AH944","v":0},{"$f":"Lighting!AI944","v":0}]
[0,{"$f":"Lighting!B945","v":937},{"$f":"Lighting!C945","v":0},{"$f":"Lighting!D945","v":0},{"$f":"Lighting!F945","v":0},{"$f":"Lighting!G945","v":0},{"$f":"Lighting!H945","v":0},{"$f":"Lighting!I945","v":0},{"$f":"Lighting!J945","v":0},{"$f":"Lighting!K945","v":0},{"$f":"Lighting!L945","v":0},{"$f":"Lighting!N945","v":0},{"$f":"Lighting!O945","v":0},{"$f":"Lighting!R945","v":0},{"$f":"Lighting!S945","v":0},{"$f":"Lighting!U945","v":""},{"$f":"Lighting!V945","v":""},{"$f":"Lighting!W945","v":""},{"$f":"Lighting!X945","v":0},{"$f":"Lighting!Y945","v":""},{"$f":"Lighting!AA945","v":""},{"$f":"Lighting!AC945","v":""},{"$f":"Lighting!AF945","v":""},{"$f":"Lighting!AG945","v":0},{"$f":"Lighting!AH945","v":0},{"$f":"Lighting!AI945","v":0}]
[0,{"$f":"Lighting!B946","v":938},{"$f":"Lighting!C946","v":0},{"$f":"Lighting!D946","v":0},{"$f":"Lighting!F946","v":0},{"$f":"Lighting!G946","v":0},{"$f":"Lighting!H946","v":0},{"$f":"Lighting!I946","v":0},{"$f":"Lighting!J946","v":0},{"$f":"Lighting!K946","v":0},{"$f":"Lighting!L946","v":0},{"$f":"Lighting!N946","v":0},{"$f":"Lighting!O946","v":0},{"$f":"Lighting!R946","v":0},{"$f":"Lighting!S946","v":0},{"$f":"Lighting!U946","v":""},{"$f":"Lighting!V946","v":""},{"$f":"Lighting!W946","v":""},{"$f":"Lighting!X946","v":0},{"$f":"Lighting!Y946","v":""},{"$f":"Lighting!AA946","v":""},{"$f":"Lighting!AC946","v":""},{"$f":"Lighting!AF946","v":""},{"$f":"Lighting!AG946","v":0},{"$f":"Lighting!AH946","v":0},{"$f":"Lighting!AI946","v":0}]
[0,{"$f":"Lighting!B947","v":939},{"$f":"Lighting!C947","v":0},{"$f":"Lighting!D947","v":0},{"$f":"Lighting!F947","v":0},{"$f":"Lighting!G947","v":0},{"$f":"Lighting!H947","v":0},{"$f":"Lighting!I947","v":0},{"$f":"Lighting!J947","v":0},{"$f":"Lighting!K947","v":0},{"$f":"Lighting!L947","v":0},{"$f":"Lighting!N947","v":0},{"$f":"Lighting!O947","v":0},{"$f":"Lighting!R947","v":0},{"$f":"Lighting!S947","v":0},{"$f":"Lighting!U947","v":""},{"$f":"Lighting!V947","v":""},{"$f":"Lighting!W947","v":""},{"$f":"Lighting!X947","v":0},{"$f":"Lighting!Y947","v":""},{"$f":"Lighting!AA947","v":""},{"$f":"Lighting!AC947","v":""},{"$f":"Lighting!AF947","v":""},{"$f":"Lighting!AG947","v":0},{"$f":"Lighting!AH947","v":0},{"$f":"Lighting!AI947","v":0}]
[0,{"$f":"Lighting!B948","v":940},{"$f":"Lighting!C948","v":0},{"$f":"Lighting!D948","v":0},{"$f":"Lighting!F948","v":0},{"$f":"Lighting!G948","v":0},{"$f":"Lighting!H948","v":0},{"$f":"Lighting!I948","v":0},{"$f":"Lighting!J948","v":0},{"$f":"Lighting!K948","v":0},{"$f":"Lighting!L948","v":0},{"$f":"Lighting!N948","v":0},{"$f":"Lighting!O948","v":0},{"$f":"Lighting!R948","v":0},{"$f":"Lighting!S948","v":0},{"$f":"Lighting!U948","v":""},{"$f":"Lighting!V948","v":""},{"$f":"Lighting!W948","v":""},{"$f":"Lighting!X948","v":0},{"$f":"Lighting!Y948","v":""},{"$f":"Lighting!AA948","v":""},{"$f":"Lighting!AC948","v":""},{"$f":"Lighting!AF948","v":""},{"$f":"Lighting!AG948","v":0},{"$f":"Lighting!AH948","v":0},{"$f":"Lighting!AI948","v":0}]
[0,{"$f":"Lighting!B949","v":941},{"$f":"Lighting!C949","v":0},{"$f":"Lighting!D949","v":0},{"$f":"Lighting!F949","v":0},{"$f":"Lighting!G949","v":0},{"$f":"Lighting!H949","v":0},{"$f":"Lighting!I949","v":0},{"$f":"Lighting!J949","v":0},{"$f":"Lighting!K949","v":0},{"$f":"Lighting!L949","v":0},{"$f":"Lighting!N949","v":0},{"$f":"Lighting!O949","v":0},{"$f":"Lighting!R949","v":0},{"$f":"Lighting!S949","v":0},{"$f":"Lighting!U949","v":""},{"$f":"Lighting!V949","v":""},{"$f":"Lighting!W949","v":""},{"$f":"Lighting!X949","v":0},{"$f":"Lighting!Y949","v":""},{"$f":"Lighting!AA949","v":""},{"$f":"Lighting!AC949","v":""},{"$f":"Lighting!AF949","v":""},{"$f":"Lighting!AG949","v":0},{"$f":"Lighting!AH949","v":0},{"$f":"Lighting!AI949","v":0}]
[0,{"$f":"Lighting!B950","v":942},{"$f":"Lighting!C950","v":0},{"$f":"Lighting!D950","v":0},{"$f":"Lighting!F950","v":0},{"$f":"Lighting!G950","v":0},{"$f":"Lighting!H950","v":0},{"$f":"Lighting!I950","v":0},{"$f":"Lighting!J950","v":0},{"$f":"Lighting!K950","v":0},{"$f":"Lighting!L950","v":0},{"$f":"Lighting!N950","v":0},{"$f":"Lighting!O950","v":0},{"$f":"Lighting!R950","v":0},{"$f":"Lighting!S950","v":0},{"$f":"Lighting!U950","v":""},{"$f":"Lighting!V950","v":""},{"$f":"Lighting!W950","v":""},{"$f":"Lighting!X950","v":0},{"$f":"Lighting!Y950","v":""},{"$f":"Lighting!AA950","v":""},{"$f":"Lighting!AC950","v":""},{"$f":"Lighting!AF950","v":""},{"$f":"Lighting!AG950","v":0},{"$f":"Lighting!AH950","v":0},{"$f":"Lighting!AI950","v":0}]
[0,{"$f":"Lighting!B951","v":943},{"$f":"Lighting!C951","v":0},{"$f":"Lighting!D951","v":0},{"$f":"Lighting!F951","v":0},{"$f":"Lighting!G951","v":0},{"$f":"Lighting!H951","v":0},{"$f":"Lighting!I951","v":0},{"$f":"Lighting!J951","v":0},{"$f":"Lighting!K951","v":0},{"$f":"Lighting!L951","v":0},{"$f":"Lighting!N951","v":0},{"$f":"Lighting!O951","v":0},{"$f":"Lighting!R951","v":0},{"$f":"Lighting!S951","v":0},{"$f":"Lighting!U951","v":""},{"$f":"Lighting!V951","v":""},{"$f":"Lighting!W951","v":""},{"$f":"Lighting!X951","v":0},{"$f":"Lighting!Y951","v":""},{"$f":"Lighting!AA951","v":""},{"$f":"Lighting!AC951","v":""},{"$f":"Lighting!AF951","v":""},{"$f":"Lighting!AG951","v":0},{"$f":"Lighting!AH951","v":0},{"$f":"Lighting!AI951","v":0}]
[0,{"$f":"Lighting!B952","v":944},{"$f":"Lighting!C952","v":0},{"$f":"Lighting!D952","v":0},{"$f":"Lighting!F952","v":0},{"$f":"Lighting!G952","v":0},{"$f":"Lighting!H952","v":0},{"$f":"Lighting!I952","v":0},{"$f":"Lighting!J952","v":0},{"$f":"Lighting!K952","v":0},{"$f":"Lighting!L952","v":0},{"$f":"Lighting!N952","v":0},{"$f":"Lighting!O952","v":0},{"$f":"Lighting!R952","v":0},{"$f":"Lighting!S952","v":0},{"$f":"Lighting!U952","v":""},{"$f":"Lighting!V952","v":""},{"$f":"Lighting!W952","v":""},{"$f":"Lighting!X952","v":0},{"$f":"Lighting!Y952","v":""},{"$f":"Lighting!AA952","v":""},{"$f":"Lighting!AC952","v":""},{"$f":"Lighting!AF952","v":""},{"$f":"Lighting!AG952","v":0},{"$f":"Lighting!AH952","v":0},{"$f":"Lighting!AI952","v":0}]
[0,{"$f":"Lighting!B953","v":945},{"$f":"Lighting!C953","v":0},{"$f":"Lighting!D953","v":0},{"$f":"Lighting!F953","v":0},{"$f":"Lighting!G953","v":0},{"$f":"Lighting!H953","v":0},{"$f":"Lighting!I953","v":0},{"$f":"Lighting!J953","v":0},{"$f":"Lighting!K953","v":0},{"$f":"Lighting!L953","v":0},{"$f":"Lighting!N953","v":0},{"$f":"Lighting!O953","v":0},{"$f":"Lighting!R953","v":0},{"$f":"Lighting!S953","v":0},{"$f":"Lighting!U953","v":""},{"$f":"Lighting!V953","v":""},{"$f":"Lighting!W953","v":""},{"$f":"Lighting!X953","v":0},{"$f":"Lighting!Y953","v":""},{"$f":"Lighting!AA953","v":""},{"$f":"Lighting!AC953","v":""},{"$f":"Lighting!AF953","v":""},{"$f":"Lighting!AG953","v":0},{"$f":"Lighting!AH953","v":0},{"$f":"Lighting!AI953","v":0}]
[0,{"$f":"Lighting!B954","v":946},{"$f":"Lighting!C954","v":0},{"$f":"Lighting!D954","v":0},{"$f":"Lighting!F954","v":0},{"$f":"Lighting!G954","v":0},{"$f":"Lighting!H954","v":0},{"$f":"Lighting!I954","v":0},{"$f":"Lighting!J954","v":0},{"$f":"Lighting!K954","v":0},{"$f":"Lighting!L954","v":0},{"$f":"Lighting!N954","v":0},{"$f":"Lighting!O954","v":0},{"$f":"Lighting!R954","v":0},{"$f":"Lighting!S954","v":0},{"$f":"Lighting!U954","v":""},{"$f":"Lighting!V954","v":""},{"$f":"Lighting!W954","v":""},{"$f":"Lighting!X954","v":0},{"$f":"Lighting!Y954","v":""},{"$f":"Lighting!AA954","v":""},{"$f":"Lighting!AC954","v":""},{"$f":"Lighting!AF954","v":""},{"$f":"Lighting!AG954","v":0},{"$f":"Lighting!AH954","v":0},{"$f":"Lighting!AI954","v":0}]
[0,{"$f":"Lighting!B955","v":947},{"$f":"Lighting!C955","v":0},{"$f":"Lighting!D955","v":0},{"$f":"Lighting!F955","v":0},{"$f":"Lighting!G955","v":0},{"$f":"Lighting!H955","v":0},{"$f":"Lighting!I955","v":0},{"$f":"Lighting!J955","v":0},{"$f":"Lighting!K955","v":0},{"$f":"Lighting!L955","v":0},{"$f":"Lighting!N955","v":0},{"$f":"Lighting!O955","v":0},{"$f":"Lighting!R955","v":0},{"$f":"Lighting!S955","v":0},{"$f":"Lighting!U955","v":""},{"$f":"Lighting!V955","v":""},{"$f":"Lighting!W955","v":""},{"$f":"Lighting!X955","v":0},{"$f":"Lighting!Y955","v":""},{"$f":"Lighting!AA955","v":""},{"$f":"Lighting!AC955","v":""},{"$f":"Lighting!AF955","v":""},{"$f":"Lighting!AG955","v":0},{"$f":"Lighting!AH955","v":0},{"$f":"Lighting!AI955","v":0}]
[0,{"$f":"Lighting!B956","v":948},{"$f":"Lighting!C956","v":0},{"$f":"Lighting!D956","v":0},{"$f":"Lighting!F956","v":0},{"$f":"Lighting!G956","v":0},{"$f":"Lighting!H956","v":0},{"$f":"Lighting!I956","v":0},{"$f":"Lighting!J956","v":0},{"$f":"Lighting!K956","v":0},{"$f":"Lighting!L956","v":0},{"$f":"Lighting!N956","v":0},{"$f":"Lighting!O956","v":0},{"$f":"Lighting!R956","v":0},{"$f":"Lighting!S956","v":0},{"$f":"Lighting!U956","v":""},{"$f":"Lighting!V956","v":""},{"$f":"Lighting!W956","v":""},{"$f":"Lighting!X956","v":0},{"$f":"Lighting!Y956","v":""},{"$f":"Lighting!AA956","v":""},{"$f":"Lighting!AC956","v":""},{"$f":"Lighting!AF956","v":""},{"$f":"Lighting!AG956","v":0},{"$f":"Lighting!AH956","v":0},{"$f":"Lighting!AI956","v":0}]
[0,{"$f":"Lighting!B957","v":949},{"$f":"Lighting!C957","v":0},{"$f":"Lighting!D957","v":0},{"$f":"Lighting!F957","v":0},{"$f":"Lighting!G957","v":0},{"$f":"Lighting!H957","v":0},{"$f":"Lighting!I957","v":0},{"$f":"Lighting!J957","v":0},{"$f":"Lighting!K957","v":0},{"$f":"Lighting!L957","v":0},{"$f":"Lighting!N957","v":0},{"$f":"Lighting!O957","v":0},{"$f":"Lighting!R957","v":0},{"$f":"Lighting!S957","v":0},{"$f":"Lighting!U957","v":""},{"$f":"Lighting!V957","v":""},{"$f":"Lighting!W957","v":""},{"$f":"Lighting!X957","v":0},{"$f":"Lighting!Y957","v":""},{"$f":"Lighting!AA957","v":""},{"$f":"Lighting!AC957","v":""},{"$f":"Lighting!AF957","v":""},{"$f":"Lighting!AG957","v":0},{"$f":"Lighting!AH957","v":0},{"$f":"Lighting!AI957","v":0}]
[0,{"$f":"Lighting!B958","v":950},{"$f":"Lighting!C958","v":0},{"$f":"Lighting!D958","v":0},{"$f":"Lighting!F958","v":0},{"$f":"Lighting!G958","v":0},{"$f":"Lighting!H958","v":0},{"$f":"Lighting!I958","v":0},{"$f":"Lighting!J958","v":0},{"$f":"Lighting!K958","v":0},{"$f":"Lighting!L958","v":0},{"$f":"Lighting!N958","v":0},{"$f":"Lighting!O958","v":0},{"$f":"Lighting!R958","v":0},{"$f":"Lighting!S958","v":0},{"$f":"Lighting!U958","v":""},{"$f":"Lighting!V958","v":""},{"$f":"Lighting!W958","v":""},{"$f":"Lighting!X958","v":0},{"$f":"Lighting!Y958","v":""},{"$f":"Lighting!AA958","v":""},{"$f":"Lighting!AC958","v":""},{"$f":"Lighting!AF958","v":""},{"$f":"Lighting!AG958","v":0},{"$f":"Lighting!AH958","v":0},{"$f":"Lighting!AI958","v":0}]
[0,{"$f":"Lighting!B959","v":951},{"$f":"Lighting!C959","v":0},{"$f":"Lighting!D959","v":0},{"$f":"Lighting!F959","v":0},{"$f":"Lighting!G959","v":0},{"$f":"Lighting!H959","v":0},{"$f":"Lighting!I959","v":0},{"$f":"Lighting!J959","v":0},{"$f":"Lighting!K959","v":0},{"$f":"Lighting!L959","v":0},{"$f":"Lighting!N959","v":0},{"$f":"Lighting!O959","v":0},{"$f":"Lighting!R959","v":0},{"$f":"Lighting!S959","v":0},{"$f":"Lighting!U959","v":""},{"$f":"Lighting!V959","v":""},{"$f":"Lighting!W959","v":""},{"$f":"Lighting!X959","v":0},{"$f":"Lighting!Y959","v":""},{"$f":"Lighting!AA959","v":""},{"$f":"Lighting!AC959","v":""},{"$f":"Lighting!AF959","v":""},{"$f":"Lighting!AG959","v":0},{"$f":"Lighting!AH959","v":0},{"$f":"Lighting!AI959","v":0}]
[0,{"$f":"Lighting!B960","v":952},{"$f":"Lighting!C960","v":0},{"$f":"Lighting!D960","v":0},{"$f":"Lighting!F960","v":0},{"$f":"Lighting!G960","v":0},{"$f":"Lighting!H960","v":0},{"$f":"Lighting!I960","v":0},{"$f":"Lighting!J960","v":0},{"$f":"Lighting!K960","v":0},{"$f":"Lighting!L960","v":0},{"$f":"Lighting!N960","v":0},{"$f":"Lighting!O960","v":0},{"$f":"Lighting!R960","v":0},{"$f":"Lighting!S960","v":0},{"$f":"Lighting!U960","v":""},{"$f":"Lighting!V960","v":""},{"$f":"Lighting!W960","v":""},{"$f":"Lighting!X960","v":0},{"$f":"Lighting!Y960","v":""},{"$f":"Lighting!AA960","v":""},{"$f":"Lighting!AC960","v":""},{"$f":"Lighting!AF960","v":""},{"$f":"Lighting!AG960","v":0},{"$f":"Lighting!AH960","v":0},{"$f":"Lighting!AI960","v":0}]
[0,{"$f":"Lighting!B961","v":953},{"$f":"Lighting!C961","v":0},{"$f":"Lighting!D961","v":0},{"$f":"Lighting!F961","v":0},{"$f":"Lighting!G961","v":0},{"$f":"Lighting!H961","v":0},{"$f":"Lighting!I961","v":0},{"$f":"Lighting!J961","v":0},{"$f":"Lighting!K961","v":0},{"$f":"Lighting!L961","v":0},{"$f":"Lighting!N961","v":0},{"$f":"Lighting!O961","v":0},{"$f":"Lighting!R961","v":0},{"$f":"Lighting!S961","v":0},{"$f":"Lighting!U961","v":""},{"$f":"Lighting!V961","v":""},{"$f":"Lighting!W961","v":""},{"$f":"Lighting!X961","v":0},{"$f":"Lighting!Y961","v":""},{"$f":"Lighting!AA961","v":""},{"$f":"Lighting!AC961","v":""},{"$f":"Lighting!AF961","v":""},{"$f":"Lighting!AG961","v":0},{"$f":"Lighting!AH961","v":0},{"$f":"Lighting!AI961","v":0}]
[0,{"$f":"Lighting!B962","v":954},{"$f":"Lighting!C962","v":0},{"$f":"Lighting!D962","v":0},{"$f":"Lighting!F962","v":0},{"$f":"Lighting!G962","v":0},{"$f":"Lighting!H962","v":0},{"$f":"Lighting!I962","v":0},{"$f":"Lighting!J962","v":0},{"$f":"Lighting!K962","v":0},{"$f":"Lighting!L962","v":0},{"$f":"Lighting!N962","v":0},{"$f":"Lighting!O962","v":0},{"$f":"Lighting!R962","v":0},{"$f":"Lighting!S962","v":0},{"$f":"Lighting!U962","v":""},{"$f":"Lighting!V962","v":""},{"$f":"Lighting!W962","v":""},{"$f":"Lighting!X962","v":0},{"$f":"Lighting!Y962","v":""},{"$f":"Lighting!AA962","v":""},{"$f":"Lighting!AC962","v":""},{"$f":"Lighting!AF962","v":""},{"$f":"Lighting!AG962","v":0},{"$f":"Lighting!AH962","v":0},{"$f":"Lighting!AI962","v":0}]
[0,{"$f":"Lighting!B963","v":955},{"$f":"Lighting!C963","v":0},{"$f":"Lighting!D963","v":0},{"$f":"Lighting!F963","v":0},{"$f":"Lighting!G963","v":0},{"$f":"Lighting!H963","v":0},{"$f":"Lighting!I963","v":0},{"$f":"Lighting!J963","v":0},{"$f":"Lighting!K963","v":0},{"$f":"Lighting!L963","v":0},{"$f":"Lighting!N963","v":0},{"$f":"Lighting!O963","v":0},{"$f":"Lighting!R963","v":0},{"$f":"Lighting!S963","v":0},{"$f":"Lighting!U963","v":""},{"$f":"Lighting!V963","v":""},{"$f":"Lighting!W963","v":""},{"$f":"Lighting!X963","v":0},{"$f":"Lighting!Y963","v":""},{"$f":"Lighting!AA963","v":""},{"$f":"Lighting!AC963","v":""},{"$f":"Lighting!AF963","v":""},{"$f":"Lighting!AG963","v":0},{"$f":"Lighting!AH963","v":0},{"$f":"Lighting!AI963","v":0}]
[0,{"$f":"Lighting!B964","v":956},{"$f":"Lighting!C964","v":0},{"$f":"Lighting!D964","v":0},{"$f":"Lighting!F964","v":0},{"$f":"Lighting!G964","v":0},{"$f":"Lighting!H964","v":0},{"$f":"Lighting!I964","v":0},{"$f":"Lighting!J964","v":0},{"$f":"Lighting!K964","v":0},{"$f":"Lighting!L964","v":0},{"$f":"Lighting!N964","v":0},{"$f":"Lighting!O964","v":0},{"$f":"Lighting!R964","v":0},{"$f":"Lighting!S964","v":0},{"$f":"Lighting!U964","v":""},{"$f":"Lighting!V964","v":""},{"$f":"Lighting!W964","v":""},{"$f":"Lighting!X964","v":0},{"$f":"Lighting!Y964","v":""},{"$f":"Lighting!AA964","v":""},{"$f":"Lighting!AC964","v":""},{"$f":"Lighting!AF964","v":""},{"$f":"Lighting!AG964","v":0},{"$f":"Lighting!AH964","v":0},{"$f":"Lighting!AI964","v":0}]
[0,{"$f":"Lighting!B965","v":957},{"$f":"Lighting!C965","v":0},{"$f":"Lighting!D965","v":0},{"$f":"Lighting!F965","v":0},{"$f":"Lighting!G965","v":0},{"$f":"Lighting!H965","v":0},{"$f":"Lighting!I965","v":0},{"$f":"Lighting!J965","v":0},{"$f":"Lighting!K965","v":0},{"$f":"Lighting!L965","v":0},{"$f":"Lighting!N965","v":0},{"$f":"Lighting!O965","v":0},{"$f":"Lighting!R965","v":0},{"$f":"Lighting!S965","v":0},{"$f":"Lighting!U965","v":""},{"$f":"Lighting!V965","v":""},{"$f":"Lighting!W965","v":""},{"$f":"Lighting!X965","v":0},{"$f":"Lighting!Y965","v":""},{"$f":"Lighting!AA965","v":""},{"$f":"Lighting!AC965","v":""},{"$f":"Lighting!AF965","v":""},{"$f":"Lighting!AG965","v":0},{"$f":"Lighting!AH965","v":0},{"$f":"Lighting!AI965","v":0}]
[0,{"$f":"Lighting!B966","v":958},{"$f":"Lighting!C966","v":0},{"$f":"Lighting!D966","v":0},{"$f":"Lighting!F966","v":0},{"$f":"Lighting!G966","v":0},{"$f":"Lighting!H966","v":0},{"$f":"Lighting!I966","v":0},{"$f":"Lighting!J966","v":0},{"$f":"Lighting!K966","v":0},{"$f":"Lighting!L966","v":0},{"$f":"Lighting!N966","v":0},{"$f":"Lighting!O966","v":0},{"$f":"Lighting!R966","v":0},{"$f":"Lighting!S966","v":0},{"$f":"Lighting!U966","v":""},{"$f":"Lighting!V966","v":""},{"$f":"Lighting!W966","v":""},{"$f":"Lighting!X966","v":0},{"$f":"Lighting!Y966","v":""},{"$f":"Lighting!AA966","v":""},{"$f":"Lighting!AC966","v":""},{"$f":"Lighting!AF966","v":""},{"$f":"Lighting!AG966","v":0},{"$f":"Lighting!AH966","v":0},{"$f":"Lighting!AI966","v":0}]
[0,{"$f":"Lighting!B967","v":959},{"$f":"Lighting!C967","v":0},{"$f":"Lighting!D967","v":0},{"$f":"Lighting!F967","v":0},{"$f":"Lighting!G967","v":0},{"$f":"Lighting!H967","v":0},{"$f":"Lighting!I967","v":0},{"$f":"Lighting!J967","v":0},{"$f":"Lighting!K967","v":0},{"$f":"Lighting!L967","v":0},{"$f":"Lighting!N967","v":0},{"$f":"Lighting!O967","v":0},{"$f":"Lighting!R967","v":0},{"$f":"Lighting!S967","v":0},{"$f":"Lighting!U967","v":""},{"$f":"Lighting!V967","v":""},{"$f":"Lighting!W967","v":""},{"$f":"Lighting!X967","v":0},{"$f":"Lighting!Y967","v":""},{"$f":"Lighting!AA967","v":""},{"$f":"Lighting!AC967","v":""},{"$f":"Lighting!AF967","v":""},{"$f":"Lighting!AG967","v":0},{"$f":"Lighting!AH967","v":0},{"$f":"Lighting!AI967","v":0}]
[0,{"$f":"Lighting!B968","v":960},{"$f":"Lighting!C968","v":0},{"$f":"Lighting!D968","v":0},{"$f":"Lighting!F968","v":0},{"$f":"Lighting!G968","v":0},{"$f":"Lighting!H968","v":0},{"$f":"Lighting!I968","v":0},{"$f":"Lighting!J968","v":0},{"$f":"Lighting!K968","v":0},{"$f":"Lighting!L968","v":0},{"$f":"Lighting!N968","v":0},{"$f":"Lighting!O968","v":0},{"$f":"Lighting!R968","v":0},{"$f":"Lighting!S968","v":0},{"$f":"Lighting!U968","v":""},{"$f":"Lighting!V968","v":""},{"$f":"Lighting!W968","v":""},{"$f":"Lighting!X968","v":0},{"$f":"Lighting!Y968","v":""},{"$f":"Lighting!AA968","v":""},{"$f":"Lighting!AC968","v":""},{"$f":"Lighting!AF968","v":""},{"$f":"Lighting!AG968","v":0},{"$f":"Lighting!AH968","v":0},{"$f":"Lighting!AI968","v":0}]
[0,{"$f":"Lighting!B969","v":961},{"$f":"Lighting!C969","v":0},{"$f":"Lighting!D969","v":0},{"$f":"Lighting!F969","v":0},{"$f":"Lighting!G969","v":0},{"$f":"Lighting!H969","v":0},{"$f":"Lighting!I969","v":0},{"$f":"Lighting!J969","v":0},{"$f":"Lighting!K969","v":0},{"$f":"Lighting!L969","v":0},{"$f":"Lighting!N969","v":0},{"$f":"Lighting!O969","v":0},{"$f":"Lighting!R969","v":0},{"$f":"Lighting!S969","v":0},{"$f":"Lighting!U969","v":""},{"$f":"Lighting!V969","v":""},{"$f":"Lighting!W969","v":""},{"$f":"Lighting!X969","v":0},{"$f":"Lighting!Y969","v":""},{"$f":"Lighting!AA969","v":""},{"$f":"Lighting!AC969","v":""},{"$f":"Lighting!AF969","v":""},{"$f":"Lighting!AG969","v":0},{"$f":"Lighting!AH969","v":0},{"$f":"Lighting!AI969","v":0}]
[0,{"$f":"Lighting!B970","v":962},{"$f":"Lighting!C970","v":0},{"$f":"Lighting!D970","v":0},{"$f":"Lighting!F970","v":0},{"$f":"Lighting!G970","v":0},{"$f":"Lighting!H970","v":0},{"$f":"Lighting!I970","v":0},{"$f":"Lighting!J970","v":0},{"$f":"Lighting!K970","v":0},{"$f":"Lighting!L970","v":0},{"$f":"Lighting!N970","v":0},{"$f":"Lighting!O970","v":0},{"$f":"Lighting!R970","v":0},{"$f":"Lighting!S970","v":0},{"$f":"Lighting!U970","v":""},{"$f":"Lighting!V970","v":""},{"$f":"Lighting!W970","v":""},{"$f":"Lighting!X970","v":0},{"$f":"Lighting!Y970","v":""},{"$f":"Lighting!AA970","v":""},{"$f":"Lighting!AC970","v":""},{"$f":"Lighting!AF970","v":""},{"$f":"Lighting!AG970","v":0},{"$f":"Lighting!AH970","v":0},{"$f":"Lighting!AI970","v":0}]
[0,{"$f":"Lighting!B971","v":963},{"$f":"Lighting!C971","v":0},{"$f":"Lighting!D971","v":0},{"$f":"Lighting!F971","v":0},{"$f":"Lighting!G971","v":0},{"$f":"Lighting!H971","v":0},{"$f":"Lighting!I971","v":0},{"$f":"Lighting!J971","v":0},{"$f":"Lighting!K971","v":0},{"$f":"Lighting!L971","v":0},{"$f":"Lighting!N971","v":0},{"$f":"Lighting!O971","v":0},{"$f":"Lighting!R971","v":0},{"$f":"Lighting!S971","v":0},{"$f":"Lighting!U971","v":""},{"$f":"Lighting!V971","v":""},{"$f":"Lighting!W971","v":""},{"$f":"Lighting!X971","v":0},{"$f":"Lighting!Y971","v":""},{"$f":"Lighting!AA971","v":""},{"$f":"Lighting!AC971","v":""},{"$f":"Lighting!AF971","v":""},{"$f":"Lighting!AG971","v":0},{"$f":"Lighting!AH971","v":0},{"$f":"Lighting!AI971","v":0}]
[0,{"$f":"Lighting!B972","v":964},{"$f":"Lighting!C972","v":0},{"$f":"Lighting!D972","v":0},{"$f":"Lighting!F972","v":0},{"$f":"Lighting!G972","v":0},{"$f":"Lighting!H972","v":0},{"$f":"Lighting!I972","v":0},{"$f":"Lighting!J972","v":0},{"$f":"Lighting!K972","v":0},{"$f":"Lighting!L972","v":0},{"$f":"Lighting!N972","v":0},{"$f":"Lighting!O972","v":0},{"$f":"Lighting!R972","v":0},{"$f":"Lighting!S972","v":0},{"$f":"Lighting!U972","v":""},{"$f":"Lighting!V972","v":""},{"$f":"Lighting!W972","v":""},{"$f":"Lighting!X972","v":0},{"$f":"Lighting!Y972","v":""},{"$f":"Lighting!AA972","v":""},{"$f":"Lighting!AC972","v":""},{"$f":"Lighting!AF972","v":""},{"$f":"Lighting!AG972","v":0},{"$f":"Lighting!AH972","v":0},{"$f":"Lighting!AI972","v":0}]
[0,{"$f":"Lighting!B973","v":965},{"$f":"Lighting!C973","v":0},{"$f":"Lighting!D973","v":0},{"$f":"Lighting!F973","v":0},{"$f":"Lighting!G973","v":0},{"$f":"Lighting!H973","v":0},{"$f":"Lighting!I973","v":0},{"$f":"Lighting!J973","v":0},{"$f":"Lighting!K973","v":0},{"$f":"Lighting!L973","v":0},{"$f":"Lighting!N973","v":0},{"$f":"Lighting!O973","v":0},{"$f":"Lighting!R973","v":0},{"$f":"Lighting!S973","v":0},{"$f":"Lighting!U973","v":""},{"$f":"Lighting!V973","v":""},{"$f":"Lighting!W973","v":""},{"$f":"Lighting!X973","v":0},{"$f":"Lighting!Y973","v":""},{"$f":"Lighting!AA973","v":""},{"$f":"Lighting!AC973","v":""},{"$f":"Lighting!AF973","v":""},{"$f":"Lighting!AG973","v":0},{"$f":"Lighting!AH973","v":0},{"$f":"Lighting!AI973","v":0}]
[0,{"$f":"Lighting!B974","v":966},{"$f":"Lighting!C974","v":0},{"$f":"Lighting!D974","v":0},{"$f":"Lighting!F974","v":0},{"$f":"Lighting!G974","v":0},{"$f":"Lighting!H974","v":0},{"$f":"Lighting!I974","v":0},{"$f":"Lighting!J974","v":0},{"$f":"Lighting!K974","v":0},{"$f":"Lighting!L974","v":0},{"$f":"Lighting!N974","v":0},{"$f":"Lighting!O974","v":0},{"$f":"Lighting!R974","v":0},{"$f":"Lighting!S974","v":0},{"$f":"Lighting!U974","v":""},{"$f":"Lighting!V974","v":""},{"$f":"Lighting!W974","v":""},{"$f":"Lighting!X974","v":0},{"$f":"Lighting!Y974","v":""},{"$f":"Lighting!AA974","v":""},{"$f":"Lighting!AC974","v":""},{"$f":"Lighting!AF974","v":""},{"$f":"Lighting!AG974","v":0},{"$f":"Lighting!AH974","v":0},{"$f":"Lighting!AI974","v":0}]
[0,{"$f":"Lighting!B975","v":967},{"$f":"Lighting!C975","v":0},{"$f":"Lighting!D975","v":0},{"$f":"Lighting!F975","v":0},{"$f":"Lighting!G975","v":0},{"$f":"Lighting!H975","v":0},{"$f":"Lighting!I975","v":0},{"$f":"Lighting!J975","v":0},{"$f":"Lighting!K975","v":0},{"$f":"Lighting!L975","v":0},{"$f":"Lighting!N975","v":0},{"$f":"Lighting!O975","v":0},{"$f":"Lighting!R975","v":0},{"$f":"Lighting!S975","v":0},{"$f":"Lighting!U975","v":""},{"$f":"Lighting!V975","v":""},{"$f":"Lighting!W975","v":""},{"$f":"Lighting!X975","v":0},{"$f":"Lighting!Y975","v":""},{"$f":"Lighting!AA975","v":""},{"$f":"Lighting!AC975","v":""},{"$f":"Lighting!AF975","v":""},{"$f":"Lighting!AG975","v":0},{"$f":"Lighting!AH975","v":0},{"$f":"Lighting!AI975","v":0}]
[{"$f":"IF(G1132=0,0,1)","v":0},{"$f":"Lighting!B976","v":968},{"$f":"Lighting!C976","v":0},{"$f":"Lighting!D976","v":0},{"$f":"Lighting!F976","v":0},{"$f":"Lighting!G976","v":0},{"$f":"Lighting!H976","v":0},{"$f":"Lighting!I976","v":0},{"$f":"Lighting!J976","v":0},{"$f":"Lighting!K976","v":0},{"$f":"Lighting!L976","v":0},{"$f":"Lighting!N976","v":0},{"$f":"Lighting!O976","v":0},{"$f":"Lighting!R976","v":0},{"$f":"Lighting!S976","v":0},{"$f":"Lighting!U976","v":""},{"$f":"Lighting!V976","v":""},{"$f":"Lighting!W976","v":""},{"$f":"Lighting!X976","v":0},{"$f":"Lighting!Y976","v":""},{"$f":"Lighting!AA976","v":""},{"$f":"Lighting!AC976","v":""},{"$f":"Lighting!AF976","v":""},{"$f":"Lighting!AG976","v":0},{"$f":"Lighting!AH976","v":0},{"$f":"Lighting!AI976","v":0}]
[0,{"$f":"Lighting!B977","v":969},{"$f":"Lighting!C977","v":0},{"$f":"Lighting!D977","v":0},{"$f":"Lighting!F977","v":0},{"$f":"Lighting!G977","v":0},{"$f":"Lighting!H977","v":0},{"$f":"Lighting!I977","v":0},{"$f":"Lighting!J977","v":0},{"$f":"Lighting!K977","v":0},{"$f":"Lighting!L977","v":0},{"$f":"Lighting!N977","v":0},{"$f":"Lighting!O977","v":0},{"$f":"Lighting!R977","v":0},{"$f":"Lighting!S977","v":0},{"$f":"Lighting!U977","v":""},{"$f":"Lighting!V977","v":""},{"$f":"Lighting!W977","v":""},{"$f":"Lighting!X977","v":0},{"$f":"Lighting!Y977","v":""},{"$f":"Lighting!AA977","v":""},{"$f":"Lighting!AC977","v":""},{"$f":"Lighting!AF977","v":""},{"$f":"Lighting!AG977","v":0},{"$f":"Lighting!AH977","v":0},{"$f":"Lighting!AI977","v":0}]
[0,{"$f":"Lighting!B978","v":970},{"$f":"Lighting!C978","v":0},{"$f":"Lighting!D978","v":0},{"$f":"Lighting!F978","v":0},{"$f":"Lighting!G978","v":0},{"$f":"Lighting!H978","v":0},{"$f":"Lighting!I978","v":0},{"$f":"Lighting!J978","v":0},{"$f":"Lighting!K978","v":0},{"$f":"Lighting!L978","v":0},{"$f":"Lighting!N978","v":0},{"$f":"Lighting!O978","v":0},{"$f":"Lighting!R978","v":0},{"$f":"Lighting!S978","v":0},{"$f":"Lighting!U978","v":""},{"$f":"Lighting!V978","v":""},{"$f":"Lighting!W978","v":""},{"$f":"Lighting!X978","v":0},{"$f":"Lighting!Y978","v":""},{"$f":"Lighting!AA978","v":""},{"$f":"Lighting!AC978","v":""},{"$f":"Lighting!AF978","v":""},{"$f":"Lighting!AG978","v":0},{"$f":"Lighting!AH978","v":0},{"$f":"Lighting!AI978","v":0}]
[0,{"$f":"Lighting!B979","v":971},{"$f":"Lighting!C979","v":0},{"$f":"Lighting!D979","v":0},{"$f":"Lighting!F979","v":0},{"$f":"Lighting!G979","v":0},{"$f":"Lighting!H979","v":0},{"$f":"Lighting!I979","v":0},{"$f":"Lighting!J979","v":0},{"$f":"Lighting!K979","v":0},{"$f":"Lighting!L979","v":0},{"$f":"Lighting!N979","v":0},{"$f":"Lighting!O979","v":0},{"$f":"Lighting!R979","v":0},{"$f":"Lighting!S979","v":0},{"$f":"Lighting!U979","v":""},{"$f":"Lighting!V979","v":""},{"$f":"Lighting!W979","v":""},{"$f":"Lighting!X979","v":0},{"$f":"Lighting!Y979","v":""},{"$f":"Lighting!AA979","v":""},{"$f":"Lighting!AC979","v":""},{"$f":"Lighting!AF979","v":""},{"$f":"Lighting!AG979","v":0},{"$f":"Lighting!AH979","v":0},{"$f":"Lighting!AI979","v":0}]
[0,{"$f":"Lighting!B980","v":972},{"$f":"Lighting!C980","v":0},{"$f":"Lighting!D980","v":0},{"$f":"Lighting!F980","v":0},{"$f":"Lighting!G980","v":0},{"$f":"Lighting!H980","v":0},{"$f":"Lighting!I980","v":0},{"$f":"Lighting!J980","v":0},{"$f":"Lighting!K980","v":0},{"$f":"Lighting!L980","v":0},{"$f":"Lighting!N980","v":0},{"$f":"Lighting!O980","v":0},{"$f":"Lighting!R980","v":0},{"$f":"Lighting!S980","v":0},{"$f":"Lighting!U980","v":""},{"$f":"Lighting!V980","v":""},{"$f":"Lighting!W980","v":""},{"$f":"Lighting!X980","v":0},{"$f":"Lighting!Y980","v":""},{"$f":"Lighting!AA980","v":""},{"$f":"Lighting!AC980","v":""},{"$f":"Lighting!AF980","v":""},{"$f":"Lighting!AG980","v":0},{"$f":"Lighting!AH980","v":0},{"$f":"Lighting!AI980","v":0}]
[0,{"$f":"Lighting!B981","v":973},{"$f":"Lighting!C981","v":0},{"$f":"Lighting!D981","v":0},{"$f":"Lighting!F981","v":0},{"$f":"Lighting!G981","v":0},{"$f":"Lighting!H981","v":0},{"$f":"Lighting!I981","v":0},{"$f":"Lighting!J981","v":0},{"$f":"Lighting!K981","v":0},{"$f":"Lighting!L981","v":0},{"$f":"Lighting!N981","v":0},{"$f":"Lighting!O981","v":0},{"$f":"Lighting!R981","v":0},{"$f":"Lighting!S981","v":0},{"$f":"Lighting!U981","v":""},{"$f":"Lighting!V981","v":""},{"$f":"Lighting!W981","v":""},{"$f":"Lighting!X981","v":0},{"$f":"Lighting!Y981","v":""},{"$f":"Lighting!AA981","v":""},{"$f":"Lighting!AC981","v":""},{"$f":"Lighting!AF981","v":""},{"$f":"Lighting!AG981","v":0},{"$f":"Lighting!AH981","v":0},{"$f":"Lighting!AI981","v":0}]
[0,{"$f":"Lighting!B982","v":974},{"$f":"Lighting!C982","v":0},{"$f":"Lighting!D982","v":0},{"$f":"Lighting!F982","v":0},{"$f":"Lighting!G982","v":0},{"$f":"Lighting!H982","v":0},{"$f":"Lighting!I982","v":0},{"$f":"Lighting!J982","v":0},{"$f":"Lighting!K982","v":0},{"$f":"Lighting!L982","v":0},{"$f":"Lighting!N982","v":0},{"$f":"Lighting!O982","v":0},{"$f":"Lighting!R982","v":0},{"$f":"Lighting!S982","v":0},{"$f":"Lighting!U982","v":""},{"$f":"Lighting!V982","v":""},{"$f":"Lighting!W982","v":""},{"$f":"Lighting!X982","v":0},{"$f":"Lighting!Y982","v":""},{"$f":"Lighting!AA982","v":""},{"$f":"Lighting!AC982","v":""},{"$f":"Lighting!AF982","v":""},{"$f":"Lighting!AG982","v":0},{"$f":"Lighting!AH982","v":0},{"$f":"Lighting!AI982","v":0}]
[0,{"$f":"Lighting!B983","v":975},{"$f":"Lighting!C983","v":0},{"$f":"Lighting!D983","v":0},{"$f":"Lighting!F983","v":0},{"$f":"Lighting!G983","v":0},{"$f":"Lighting!H983","v":0},{"$f":"Lighting!I983","v":0},{"$f":"Lighting!J983","v":0},{"$f":"Lighting!K983","v":0},{"$f":"Lighting!L983","v":0},{"$f":"Lighting!N983","v":0},{"$f":"Lighting!O983","v":0},{"$f":"Lighting!R983","v":0},{"$f":"Lighting!S983","v":0},{"$f":"Lighting!U983","v":""},{"$f":"Lighting!V983","v":""},{"$f":"Lighting!W983","v":""},{"$f":"Lighting!X983","v":0},{"$f":"Lighting!Y983","v":""},{"$f":"Lighting!AA983","v":""},{"$f":"Lighting!AC983","v":""},{"$f":"Lighting!AF983","v":""},{"$f":"Lighting!AG983","v":0},{"$f":"Lighting!AH983","v":0},{"$f":"Lighting!AI983","v":0}]
[0,{"$f":"Lighting!B984","v":976},{"$f":"Lighting!C984","v":0},{"$f":"Lighting!D984","v":0},{"$f":"Lighting!F984","v":0},{"$f":"Lighting!G984","v":0},{"$f":"Lighting!H984","v":0},{"$f":"Lighting!I984","v":0},{"$f":"Lighting!J984","v":0},{"$f":"Lighting!K984","v":0},{"$f":"Lighting!L984","v":0},{"$f":"Lighting!N984","v":0},{"$f":"Lighting!O984","v":0},{"$f":"Lighting!R984","v":0},{"$f":"Lighting!S984","v":0},{"$f":"Lighting!U984","v":""},{"$f":"Lighting!V984","v":""},{"$f":"Lighting!W984","v":""},{"$f":"Lighting!X984","v":0},{"$f":"Lighting!Y984","v":""},{"$f":"Lighting!AA984","v":""},{"$f":"Lighting!AC984","v":""},{"$f":"Lighting!AF984","v":""},{"$f":"Lighting!AG984","v":0},{"$f":"Lighting!AH984","v":0},{"$f":"Lighting!AI984","v":0}]
[0,{"$f":"Lighting!B985","v":977},{"$f":"Lighting!C985","v":0},{"$f":"Lighting!D985","v":0},{"$f":"Lighting!F985","v":0},{"$f":"Lighting!G985","v":0},{"$f":"Lighting!H985","v":0},{"$f":"Lighting!I985","v":0},{"$f":"Lighting!J985","v":0},{"$f":"Lighting!K985","v":0},{"$f":"Lighting!L985","v":0},{"$f":"Lighting!N985","v":0},{"$f":"Lighting!O985","v":0},{"$f":"Lighting!R985","v":0},{"$f":"Lighting!S985","v":0},{"$f":"Lighting!U985","v":""},{"$f":"Lighting!V985","v":""},{"$f":"Lighting!W985","v":""},{"$f":"Lighting!X985","v":0},{"$f":"Lighting!Y985","v":""},{"$f":"Lighting!AA985","v":""},{"$f":"Lighting!AC985","v":""},{"$f":"Lighting!AF985","v":""},{"$f":"Lighting!AG985","v":0},{"$f":"Lighting!AH985","v":0},{"$f":"Lighting!AI985","v":0}]
[0,{"$f":"Lighting!B986","v":978},{"$f":"Lighting!C986","v":0},{"$f":"Lighting!D986","v":0},{"$f":"Lighting!F986","v":0},{"$f":"Lighting!G986","v":0},{"$f":"Lighting!H986","v":0},{"$f":"Lighting!I986","v":0},{"$f":"Lighting!J986","v":0},{"$f":"Lighting!K986","v":0},{"$f":"Lighting!L986","v":0},{"$f":"Lighting!N986","v":0},{"$f":"Lighting!O986","v":0},{"$f":"Lighting!R986","v":0},{"$f":"Lighting!S986","v":0},{"$f":"Lighting!U986","v":""},{"$f":"Lighting!V986","v":""},{"$f":"Lighting!W986","v":""},{"$f":"Lighting!X986","v":0},{"$f":"Lighting!Y986","v":""},{"$f":"Lighting!AA986","v":""},{"$f":"Lighting!AC986","v":""},{"$f":"Lighting!AF986","v":""},{"$f":"Lighting!AG986","v":0},{"$f":"Lighting!AH986","v":0},{"$f":"Lighting!AI986","v":0}]
[0,{"$f":"Lighting!B987","v":979},{"$f":"Lighting!C987","v":0},{"$f":"Lighting!D987","v":0},{"$f":"Lighting!F987","v":0},{"$f":"Lighting!G987","v":0},{"$f":"Lighting!H987","v":0},{"$f":"Lighting!I987","v":0},{"$f":"Lighting!J987","v":0},{"$f":"Lighting!K987","v":0},{"$f":"Lighting!L987","v":0},{"$f":"Lighting!N987","v":0},{"$f":"Lighting!O987","v":0},{"$f":"Lighting!R987","v":0},{"$f":"Lighting!S987","v":0},{"$f":"Lighting!U987","v":""},{"$f":"Lighting!V987","v":""},{"$f":"Lighting!W987","v":""},{"$f":"Lighting!X987","v":0},{"$f":"Lighting!Y987","v":""},{"$f":"Lighting!AA987","v":""},{"$f":"Lighting!AC987","v":""},{"$f":"Lighting!AF987","v":""},{"$f":"Lighting!AG987","v":0},{"$f":"Lighting!AH987","v":0},{"$f":"Lighting!AI987","v":0}]
[0,{"$f":"Lighting!B988","v":980},{"$f":"Lighting!C988","v":0},{"$f":"Lighting!D988","v":0},{"$f":"Lighting!F988","v":0},{"$f":"Lighting!G988","v":0},{"$f":"Lighting!H988","v":0},{"$f":"Lighting!I988","v":0},{"$f":"Lighting!J988","v":0},{"$f":"Lighting!K988","v":0},{"$f":"Lighting!L988","v":0},{"$f":"Lighting!N988","v":0},{"$f":"Lighting!O988","v":0},{"$f":"Lighting!R988","v":0},{"$f":"Lighting!S988","v":0},{"$f":"Lighting!U988","v":""},{"$f":"Lighting!V988","v":""},{"$f":"Lighting!W988","v":""},{"$f":"Lighting!X988","v":0},{"$f":"Lighting!Y988","v":""},{"$f":"Lighting!AA988","v":""},{"$f":"Lighting!AC988","v":""},{"$f":"Lighting!AF988","v":""},{"$f":"Lighting!AG988","v":0},{"$f":"Lighting!AH988","v":0},{"$f":"Lighting!AI988","v":0}]
[0,{"$f":"Lighting!B989","v":981},{"$f":"Lighting!C989","v":0},{"$f":"Lighting!D989","v":0},{"$f":"Lighting!F989","v":0},{"$f":"Lighting!G989","v":0},{"$f":"Lighting!H989","v":0},{"$f":"Lighting!I989","v":0},{"$f":"Lighting!J989","v":0},{"$f":"Lighting!K989","v":0},{"$f":"Lighting!L989","v":0},{"$f":"Lighting!N989","v":0},{"$f":"Lighting!O989","v":0},{"$f":"Lighting!R989","v":0},{"$f":"Lighting!S989","v":0},{"$f":"Lighting!U989","v":""},{"$f":"Lighting!V989","v":""},{"$f":"Lighting!W989","v":""},{"$f":"Lighting!X989","v":0},{"$f":"Lighting!Y989","v":""},{"$f":"Lighting!AA989","v":""},{"$f":"Lighting!AC989","v":""},{"$f":"Lighting!AF989","v":""},{"$f":"Lighting!AG989","v":0},{"$f":"Lighting!AH989","v":0},{"$f":"Lighting!AI989","v":0}]
[0,{"$f":"Lighting!B990","v":982},{"$f":"Lighting!C990","v":0},{"$f":"Lighting!D990","v":0},{"$f":"Lighting!F990","v":0},{"$f":"Lighting!G990","v":0},{"$f":"Lighting!H990","v":0},{"$f":"Lighting!I990","v":0},{"$f":"Lighting!J990","v":0},{"$f":"Lighting!K990","v":0},{"$f":"Lighting!L990","v":0},{"$f":"Lighting!N990","v":0},{"$f":"Lighting!O990","v":0},{"$f":"Lighting!R990","v":0},{"$f":"Lighting!S990","v":0},{"$f":"Lighting!U990","v":""},{"$f":"Lighting!V990","v":""},{"$f":"Lighting!W990","v":""},{"$f":"Lighting!X990","v":0},{"$f":"Lighting!Y990","v":""},{"$f":"Lighting!AA990","v":""},{"$f":"Lighting!AC990","v":""},{"$f":"Lighting!AF990","v":""},{"$f":"Lighting!AG990","v":0},{"$f":"Lighting!AH990","v":0},{"$f":"Lighting!AI990","v":0}]
[0,{"$f":"Lighting!B991","v":983},{"$f":"Lighting!C991","v":0},{"$f":"Lighting!D991","v":0},{"$f":"Lighting!F991","v":0},{"$f":"Lighting!G991","v":0},{"$f":"Lighting!H991","v":0},{"$f":"Lighting!I991","v":0},{"$f":"Lighting!J991","v":0},{"$f":"Lighting!K991","v":0},{"$f":"Lighting!L991","v":0},{"$f":"Lighting!N991","v":0},{"$f":"Lighting!O991","v":0},{"$f":"Lighting!R991","v":0},{"$f":"Lighting!S991","v":0},{"$f":"Lighting!U991","v":""},{"$f":"Lighting!V991","v":""},{"$f":"Lighting!W991","v":""},{"$f":"Lighting!X991","v":0},{"$f":"Lighting!Y991","v":""},{"$f":"Lighting!AA991","v":""},{"$f":"Lighting!AC991","v":""},{"$f":"Lighting!AF991","v":""},{"$f":"Lighting!AG991","v":0},{"$f":"Lighting!AH991","v":0},{"$f":"Lighting!AI991","v":0}]
[0,{"$f":"Lighting!B992","v":984},{"$f":"Lighting!C992","v":0},{"$f":"Lighting!D992","v":0},{"$f":"Lighting!F992","v":0},{"$f":"Lighting!G992","v":0},{"$f":"Lighting!H992","v":0},{"$f":"Lighting!I992","v":0},{"$f":"Lighting!J992","v":0},{"$f":"Lighting!K992","v":0},{"$f":"Lighting!L992","v":0},{"$f":"Lighting!N992","v":0},{"$f":"Lighting!O992","v":0},{"$f":"Lighting!R992","v":0},{"$f":"Lighting!S992","v":0},{"$f":"Lighting!U992","v":""},{"$f":"Lighting!V992","v":""},{"$f":"Lighting!W992","v":""},{"$f":"Lighting!X992","v":0},{"$f":"Lighting!Y992","v":""},{"$f":"Lighting!AA992","v":""},{"$f":"Lighting!AC992","v":""},{"$f":"Lighting!AF992","v":""},{"$f":"Lighting!AG992","v":0},{"$f":"Lighting!AH992","v":0},{"$f":"Lighting!AI992","v":0}]
[0,{"$f":"Lighting!B993","v":985},{"$f":"Lighting!C993","v":0},{"$f":"Lighting!D993","v":0},{"$f":"Lighting!F993","v":0},{"$f":"Lighting!G993","v":0},{"$f":"Lighting!H993","v":0},{"$f":"Lighting!I993","v":0},{"$f":"Lighting!J993","v":0},{"$f":"Lighting!K993","v":0},{"$f":"Lighting!L993","v":0},{"$f":"Lighting!N993","v":0},{"$f":"Lighting!O993","v":0},{"$f":"Lighting!R993","v":0},{"$f":"Lighting!S993","v":0},{"$f":"Lighting!U993","v":""},{"$f":"Lighting!V993","v":""},{"$f":"Lighting!W993","v":""},{"$f":"Lighting!X993","v":0},{"$f":"Lighting!Y993","v":""},{"$f":"Lighting!AA993","v":""},{"$f":"Lighting!AC993","v":""},{"$f":"Lighting!AF993","v":""},{"$f":"Lighting!AG993","v":0},{"$f":"Lighting!AH993","v":0},{"$f":"Lighting!AI993","v":0}]
[0,{"$f":"Lighting!B994","v":986},{"$f":"Lighting!C994","v":0},{"$f":"Lighting!D994","v":0},{"$f":"Lighting!F994","v":0},{"$f":"Lighting!G994","v":0},{"$f":"Lighting!H994","v":0},{"$f":"Lighting!I994","v":0},{"$f":"Lighting!J994","v":0},{"$f":"Lighting!K994","v":0},{"$f":"Lighting!L994","v":0},{"$f":"Lighting!N994","v":0},{"$f":"Lighting!O994","v":0},{"$f":"Lighting!R994","v":0},{"$f":"Lighting!S994","v":0},{"$f":"Lighting!U994","v":""},{"$f":"Lighting!V994","v":""},{"$f":"Lighting!W994","v":""},{"$f":"Lighting!X994","v":0},{"$f":"Lighting!Y994","v":""},{"$f":"Lighting!AA994","v":""},{"$f":"Lighting!AC994","v":""},{"$f":"Lighting!AF994","v":""},{"$f":"Lighting!AG994","v":0},{"$f":"Lighting!AH994","v":0},{"$f":"Lighting!AI994","v":0}]
[0,{"$f":"Lighting!B995","v":987},{"$f":"Lighting!C995","v":0},{"$f":"Lighting!D995","v":0},{"$f":"Lighting!F995","v":0},{"$f":"Lighting!G995","v":0},{"$f":"Lighting!H995","v":0},{"$f":"Lighting!I995","v":0},{"$f":"Lighting!J995","v":0},{"$f":"Lighting!K995","v":0},{"$f":"Lighting!L995","v":0},{"$f":"Lighting!N995","v":0},{"$f":"Lighting!O995","v":0},{"$f":"Lighting!R995","v":0},{"$f":"Lighting!S995","v":0},{"$f":"Lighting!U995","v":""},{"$f":"Lighting!V995","v":""},{"$f":"Lighting!W995","v":""},{"$f":"Lighting!X995","v":0},{"$f":"Lighting!Y995","v":""},{"$f":"Lighting!AA995","v":""},{"$f":"Lighting!AC995","v":""},{"$f":"Lighting!AF995","v":""},{"$f":"Lighting!AG995","v":0},{"$f":"Lighting!AH995","v":0},{"$f":"Lighting!AI995","v":0}]
[0,{"$f":"Lighting!B996","v":988},{"$f":"Lighting!C996","v":0},{"$f":"Lighting!D996","v":0},{"$f":"Lighting!F996","v":0},{"$f":"Lighting!G996","v":0},{"$f":"Lighting!H996","v":0},{"$f":"Lighting!I996","v":0},{"$f":"Lighting!J996","v":0},{"$f":"Lighting!K996","v":0},{"$f":"Lighting!L996","v":0},{"$f":"Lighting!N996","v":0},{"$f":"Lighting!O996","v":0},{"$f":"Lighting!R996","v":0},{"$f":"Lighting!S996","v":0},{"$f":"Lighting!U996","v":""},{"$f":"Lighting!V996","v":""},{"$f":"Lighting!W996","v":""},{"$f":"Lighting!X996","v":0},{"$f":"Lighting!Y996","v":""},{"$f":"Lighting!AA996","v":""},{"$f":"Lighting!AC996","v":""},{"$f":"Lighting!AF996","v":""},{"$f":"Lighting!AG996","v":0},{"$f":"Lighting!AH996","v":0},{"$f":"Lighting!AI996","v":0}]
[0,{"$f":"Lighting!B997","v":989},{"$f":"Lighting!C997","v":0},{"$f":"Lighting!D997","v":0},{"$f":"Lighting!F997","v":0},{"$f":"Lighting!G997","v":0},{"$f":"Lighting!H997","v":0},{"$f":"Lighting!I997","v":0},{"$f":"Lighting!J997","v":0},{"$f":"Lighting!K997","v":0},{"$f":"Lighting!L997","v":0},{"$f":"Lighting!N997","v":0},{"$f":"Lighting!O997","v":0},{"$f":"Lighting!R997","v":0},{"$f":"Lighting!S997","v":0},{"$f":"Lighting!U997","v":""},{"$f":"Lighting!V997","v":""},{"$f":"Lighting!W997","v":""},{"$f":"Lighting!X997","v":0},{"$f":"Lighting!Y997","v":""},{"$f":"Lighting!AA997","v":""},{"$f":"Lighting!AC997","v":""},{"$f":"Lighting!AF997","v":""},{"$f":"Lighting!AG997","v":0},{"$f":"Lighting!AH997","v":0},{"$f":"Lighting!AI997","v":0}]
[0,{"$f":"Lighting!B998","v":990},{"$f":"Lighting!C998","v":0},{"$f":"Lighting!D998","v":0},{"$f":"Lighting!F998","v":0},{"$f":"Lighting!G998","v":0},{"$f":"Lighting!H998","v":0},{"$f":"Lighting!I998","v":0},{"$f":"Lighting!J998","v":0},{"$f":"Lighting!K998","v":0},{"$f":"Lighting!L998","v":0},{"$f":"Lighting!N998","v":0},{"$f":"Lighting!O998","v":0},{"$f":"Lighting!R998","v":0},{"$f":"Lighting!S998","v":0},{"$f":"Lighting!U998","v":""},{"$f":"Lighting!V998","v":""},{"$f":"Lighting!W998","v":""},{"$f":"Lighting!X998","v":0},{"$f":"Lighting!Y998","v":""},{"$f":"Lighting!AA998","v":""},{"$f":"Lighting!AC998","v":""},{"$f":"Lighting!AF998","v":""},{"$f":"Lighting!AG998","v":0},{"$f":"Lighting!AH998","v":0},{"$f":"Lighting!AI998","v":0}]
[0,{"$f":"Lighting!B999","v":991},{"$f":"Lighting!C999","v":0},{"$f":"Lighting!D999","v":0},{"$f":"Lighting!F999","v":0},{"$f":"Lighting!G999","v":0},{"$f":"Lighting!H999","v":0},{"$f":"Lighting!I999","v":0},{"$f":"Lighting!J999","v":0},{"$f":"Lighting!K999","v":0},{"$f":"Lighting!L999","v":0},{"$f":"Lighting!N999","v":0},{"$f":"Lighting!O999","v":0},{"$f":"Lighting!R999","v":0},{"$f":"Lighting!S999","v":0},{"$f":"Lighting!U999","v":""},{"$f":"Lighting!V999","v":""},{"$f":"Lighting!W999","v":""},{"$f":"Lighting!X999","v":0},{"$f":"Lighting!Y999","v":""},{"$f":"Lighting!AA999","v":""},{"$f":"Lighting!AC999","v":""},{"$f":"Lighting!AF999","v":""},{"$f":"Lighting!AG999","v":0},{"$f":"Lighting!AH999","v":0},{"$f":"Lighting!AI999","v":0}]
[0,{"$f":"Lighting!B1000","v":992},{"$f":"Lighting!C1000","v":0},{"$f":"Lighting!D1000","v":0},{"$f":"Lighting!F1000","v":0},{"$f":"Lighting!G1000","v":0},{"$f":"Lighting!H1000","v":0},{"$f":"Lighting!I1000","v":0},{"$f":"Lighting!J1000","v":0},{"$f":"Lighting!K1000","v":0},{"$f":"Lighting!L1000","v":0},{"$f":"Lighting!N1000","v":0},{"$f":"Lighting!O1000","v":0},{"$f":"Lighting!R1000","v":0},{"$f":"Lighting!S1000","v":0},{"$f":"Lighting!U1000","v":""},{"$f":"Lighting!V1000","v":""},{"$f":"Lighting!W1000","v":""},{"$f":"Lighting!X1000","v":0},{"$f":"Lighting!Y1000","v":""},{"$f":"Lighting!AA1000","v":""},{"$f":"Lighting!AC1000","v":""},{"$f":"Lighting!AF1000","v":""},{"$f":"Lighting!AG1000","v":0},{"$f":"Lighting!AH1000","v":0},{"$f":"Lighting!AI1000","v":0}]
[0,{"$f":"Lighting!B1001","v":993},{"$f":"Lighting!C1001","v":0},{"$f":"Lighting!D1001","v":0},{"$f":"Lighting!F1001","v":0},{"$f":"Lighting!G1001","v":0},{"$f":"Lighting!H1001","v":0},{"$f":"Lighting!I1001","v":0},{"$f":"Lighting!J1001","v":0},{"$f":"Lighting!K1001","v":0},{"$f":"Lighting!L1001","v":0},{"$f":"Lighting!N1001","v":0},{"$f":"Lighting!O1001","v":0},{"$f":"Lighting!R1001","v":0},{"$f":"Lighting!S1001","v":0},{"$f":"Lighting!U1001","v":""},{"$f":"Lighting!V1001","v":""},{"$f":"Lighting!W1001","v":""},{"$f":"Lighting!X1001","v":0},{"$f":"Lighting!Y1001","v":""},{"$f":"Lighting!AA1001","v":""},{"$f":"Lighting!AC1001","v":""},{"$f":"Lighting!AF1001","v":""},{"$f":"Lighting!AG1001","v":0},{"$f":"Lighting!AH1001","v":0},{"$f":"Lighting!AI1001","v":0}]
[0,{"$f":"Lighting!B1002","v":994},{"$f":"Lighting!C1002","v":0},{"$f":"Lighting!D1002","v":0},{"$f":"Lighting!F1002","v":0},{"$f":"Lighting!G1002","v":0},{"$f":"Lighting!H1002","v":0},{"$f":"Lighting!I1002","v":0},{"$f":"Lighting!J1002","v":0},{"$f":"Lighting!K1002","v":0},{"$f":"Lighting!L1002","v":0},{"$f":"Lighting!N1002","v":0},{"$f":"Lighting!O1002","v":0},{"$f":"Lighting!R1002","v":0},{"$f":"Lighting!S1002","v":0},{"$f":"Lighting!U1002","v":""},{"$f":"Lighting!V1002","v":""},{"$f":"Lighting!W1002","v":""},{"$f":"Lighting!X1002","v":0},{"$f":"Lighting!Y1002","v":""},{"$f":"Lighting!AA1002","v":""},{"$f":"Lighting!AC1002","v":""},{"$f":"Lighting!AF1002","v":""},{"$f":"Lighting!AG1002","v":0},{"$f":"Lighting!AH1002","v":0},{"$f":"Lighting!AI1002","v":0}]
[0,{"$f":"Lighting!B1003","v":995},{"$f":"Lighting!C1003","v":0},{"$f":"Lighting!D1003","v":0},{"$f":"Lighting!F1003","v":0},{"$f":"Lighting!G1003","v":0},{"$f":"Lighting!H1003","v":0},{"$f":"Lighting!I1003","v":0},{"$f":"Lighting!J1003","v":0},{"$f":"Lighting!K1003","v":0},{"$f":"Lighting!L1003","v":0},{"$f":"Lighting!N1003","v":0},{"$f":"Lighting!O1003","v":0},{"$f":"Lighting!R1003","v":0},{"$f":"Lighting!S1003","v":0},{"$f":"Lighting!U1003","v":""},{"$f":"Lighting!V1003","v":""},{"$f":"Lighting!W1003","v":""},{"$f":"Lighting!X1003","v":0},{"$f":"Lighting!Y1003","v":""},{"$f":"Lighting!AA1003","v":""},{"$f":"Lighting!AC1003","v":""},{"$f":"Lighting!AF1003","v":""},{"$f":"Lighting!AG1003","v":0},{"$f":"Lighting!AH1003","v":0},{"$f":"Lighting!AI1003","v":0}]
[0,{"$f":"Lighting!B1004","v":996},{"$f":"Lighting!C1004","v":0},{"$f":"Lighting!D1004","v":0},{"$f":"Lighting!F1004","v":0},{"$f":"Lighting!G1004","v":0},{"$f":"Lighting!H1004","v":0},{"$f":"Lighting!I1004","v":0},{"$f":"Lighting!J1004","v":0},{"$f":"Lighting!K1004","v":0},{"$f":"Lighting!L1004","v":0},{"$f":"Lighting!N1004","v":0},{"$f":"Lighting!O1004","v":0},{"$f":"Lighting!R1004","v":0},{"$f":"Lighting!S1004","v":0},{"$f":"Lighting!U1004","v":""},{"$f":"Lighting!V1004","v":""},{"$f":"Lighting!W1004","v":""},{"$f":"Lighting!X1004","v":0},{"$f":"Lighting!Y1004","v":""},{"$f":"Lighting!AA1004","v":""},{"$f":"Lighting!AC1004","v":""},{"$f":"Lighting!AF1004","v":""},{"$f":"Lighting!AG1004","v":0},{"$f":"Lighting!AH1004","v":0},{"$f":"Lighting!AI1004","v":0}]
[0,{"$f":"Lighting!B1005","v":997},{"$f":"Lighting!C1005","v":0},{"$f":"Lighting!D1005","v":0},{"$f":"Lighting!F1005","v":0},{"$f":"Lighting!G1005","v":0},{"$f":"Lighting!H1005","v":0},{"$f":"Lighting!I1005","v":0},{"$f":"Lighting!J1005","v":0},{"$f":"Lighting!K1005","v":0},{"$f":"Lighting!L1005","v":0},{"$f":"Lighting!N1005","v":0},{"$f":"Lighting!O1005","v":0},{"$f":"Lighting!R1005","v":0},{"$f":"Lighting!S1005","v":0},{"$f":"Lighting!U1005","v":""},{"$f":"Lighting!V1005","v":""},{"$f":"Lighting!W1005","v":""},{"$f":"Lighting!X1005","v":0},{"$f":"Lighting!Y1005","v":""},{"$f":"Lighting!AA1005","v":""},{"$f":"Lighting!AC1005","v":""},{"$f":"Lighting!AF1005","v":""},{"$f":"Lighting!AG1005","v":0},{"$f":"Lighting!AH1005","v":0},{"$f":"Lighting!AI1005","v":0}]
[0,{"$f":"Lighting!B1006","v":998},{"$f":"Lighting!C1006","v":0},{"$f":"Lighting!D1006","v":0},{"$f":"Lighting!F1006","v":0},{"$f":"Lighting!G1006","v":0},{"$f":"Lighting!H1006","v":0},{"$f":"Lighting!I1006","v":0},{"$f":"Lighting!J1006","v":0},{"$f":"Lighting!K1006","v":0},{"$f":"Lighting!L1006","v":0},{"$f":"Lighting!N1006","v":0},{"$f":"Lighting!O1006","v":0},{"$f":"Lighting!R1006","v":0},{"$f":"Lighting!S1006","v":0},{"$f":"Lighting!U1006","v":""},{"$f":"Lighting!V1006","v":""},{"$f":"Lighting!W1006","v":""},{"$f":"Lighting!X1006","v":0},{"$f":"Lighting!Y1006","v":""},{"$f":"Lighting!AA1006","v":""},{"$f":"Lighting!AC1006","v":""},{"$f":"Lighting!AF1006","v":""},{"$f":"Lighting!AG1006","v":0},{"$f":"Lighting!AH1006","v":0},{"$f":"Lighting!AI1006","v":0}]
[0,{"$f":"Lighting!B1007","v":999},{"$f":"Lighting!C1007","v":0},{"$f":"Lighting!D1007","v":0},{"$f":"Lighting!F1007","v":0},{"$f":"Lighting!G1007","v":0},{"$f":"Lighting!H1007","v":0},{"$f":"Lighting!I1007","v":0},{"$f":"Lighting!J1007","v":0},{"$f":"Lighting!K1007","v":0},{"$f":"Lighting!L1007","v":0},{"$f":"Lighting!N1007","v":0},{"$f":"Lighting!O1007","v":0},{"$f":"Lighting!R1007","v":0},{"$f":"Lighting!S1007","v":0},{"$f":"Lighting!U1007","v":""},{"$f":"Lighting!V1007","v":""},{"$f":"Lighting!W1007","v":""},{"$f":"Lighting!X1007","v":0},{"$f":"Lighting!Y1007","v":""},{"$f":"Lighting!AA1007","v":""},{"$f":"Lighting!AC1007","v":""},{"$f":"Lighting!AF1007","v":""},{"$f":"Lighting!AG1007","v":0},{"$f":"Lighting!AH1007","v":0},{"$f":"Lighting!AI1007","v":0}]
[0,{"$f":"Lighting!B1008","v":1000},{"$f":"Lighting!C1008","v":0},{"$f":"Lighting!D1008","v":0},{"$f":"Lighting!F1008","v":0},{"$f":"Lighting!G1008","v":0},{"$f":"Lighting!H1008","v":0},{"$f":"Lighting!I1008","v":0},{"$f":"Lighting!J1008","v":0},{"$f":"Lighting!K1008","v":0},{"$f":"Lighting!L1008","v":0},{"$f":"Lighting!N1008","v":0},{"$f":"Lighting!O1008","v":0},{"$f":"Lighting!R1008","v":0},{"$f":"Lighting!S1008","v":0},{"$f":"Lighting!U1008","v":""},{"$f":"Lighting!V1008","v":""},{"$f":"Lighting!W1008","v":""},{"$f":"Lighting!X1008","v":0},{"$f":"Lighting!Y1008","v":""},{"$f":"Lighting!AA1008","v":""},{"$f":"Lighting!AC1008","v":""},{"$f":"Lighting!AF1008","v":""},{"$f":"Lighting!AG1008","v":0},{"$f":"Lighting!AH1008","v":0},{"$f":"Lighting!AI1008","v":0}]
[1]
[{"$f":"IF(SUM($A$1170:$A$1219)>0,1,0)","v":0},"Exterior Lighting"]
[{"$f":"IF(SUM($A$1170:$A$1219)>0,1,0)","v":0},"Location ",null,null,null,null,"Existing",null,null,null,null,null,null,null,null,"Proposed",null,null,null,null,null,null,null,null,"Savings"]
[0,null,"Building\n(from 'Area Identification')","Building Area\n(from 'Area Identification')","Floor #","Area and/or Room/Unit Number","Technology Type","Fixture/Lamp Description","Ballast  ","Default Watts / Fixture","Actual Watts/Fixture (if different from default)","Fixture Qty.","Control Type","Controls Qty.","Total  Watts","Technology Type","Fixture/Lamp Description","Ballast  ","Default Watts / Fixture","Actual Watts/Fixture (if different from default)","Fixture Qty.","Control Type","Controls Qty.","Total   Watts","Watts Saved","% Savings"]
[0,"Ex","Building 1 ","Classroom/Lecture/ Training","Ground Floor","Classroom 101","HID","High-Pressure Sodium","Magnetic",120,null,2,"Occ. Sensor Ceiling Mount (low volt)",null,240,"LED - Fixtures","LED High Bay","Electronic",112,"",2,"Occ. Sensor Ceiling Mount (line volt)",null,224,{"$f":"K1169-X1169","v":-224},{"$f":"IFERROR(1-(X1169/K1169),0)","v":0}]
[{"$f":"IF(G1170=0,0,1)","v":0},{"$f":"Lighting!B1016","v":1},{"$f":"Lighting!C1016","v":0},{"$f":"Lighting!D1016","v":0},{"$f":"Lighting!F1016","v":0},{"$f":"Lighting!G1016","v":0},{"$f":"Lighting!H1016","v":0},{"$f":"Lighting!I1016","v":0},{"$f":"Lighting!J1016","v":0},{"$f":"Lighting!K1016","v":0},{"$f":"Lighting!L1016","v":0},{"$f":"Lighting!N1016","v":0},{"$f":"Lighting!O1016","v":0},{"$f":"Lighting!R1016","v":0},{"$f":"Lighting!S1016","v":0},{"$f":"Lighting!U1016","v":""},{"$f":"Lighting!V1016","v":""},{"$f":"Lighting!W1016","v":""},{"$f":"Lighting!X1016","v":0},{"$f":"Lighting!Y1016","v":""},{"$f":"Lighting!AA1016","v":""},{"$f":"Lighting!AC1016","v":""},{"$f":"Lighting!AF1016","v":""},{"$f":"Lighting!AG1016","v":0},{"$f":"Lighting!AH1016","v":0},{"$f":"Lighting!AI1016","v":0}]
[{"$f":"IF(G1171=0,0,1)","v":0},{"$f":"Lighting!B1017","v":2},{"$f":"Lighting!C1017","v":0},{"$f":"Lighting!D1017","v":0},{"$f":"Lighting!F1017","v":0},{"$f":"Lighting!G1017","v":0},{"$f":"Lighting!H1017","v":0},{"$f":"Lighting!I1017","v":0},{"$f":"Lighting!J1017","v":0},{"$f":"Lighting!K1017","v":0},{"$f":"Lighting!L1017","v":0},{"$f":"Lighting!N1017","v":0},{"$f":"Lighting!O1017","v":0},{"$f":"Lighting!R1017","v":0},{"$f":"Lighting!S1017","v":0},{"$f":"Lighting!U1017","v":""},{"$f":"Lighting!V1017","v":""},{"$f":"Lighting!W1017","v":""},{"$f":"Lighting!X1017","v":0},{"$f":"Lighting!Y1017","v":""},{"$f":"Lighting!AA1017","v":""},{"$f":"Lighting!AC1017","v":""},{"$f":"Lighting!AF1017","v":""},{"$f":"Lighting!AG1017","v":0},{"$f":"Lighting!AH1017","v":0},{"$f":"Lighting!AI1017","v":0}]
[0,{"$f":"Lighting!B1018","v":3},{"$f":"Lighting!C1018","v":0},{"$f":"Lighting!D1018","v":0},{"$f":"Lighting!F1018","v":0},{"$f":"Lighting!G1018","v":0},{"$f":"Lighting!H1018","v":0},{"$f":"Lighting!I1018","v":0},{"$f":"Lighting!J1018","v":0},{"$f":"Lighting!K1018","v":0},{"$f":"Lighting!L1018","v":0},{"$f":"Lighting!N1018","v":0},{"$f":"Lighting!O1018","v":0},{"$f":"Lighting!R1018","v":0},{"$f":"Lighting!S1018","v":0},{"$f":"Lighting!U1018","v":""},{"$f":"Lighting!V1018","v":""},{"$f":"Lighting!W1018","v":""},{"$f":"Lighting!X1018","v":0},{"$f":"Lighting!Y1018","v":""},{"$f":"Lighting!AA1018","v":""},{"$f":"Lighting!AC1018","v":""},{"$f":"Lighting!AF1018","v":""},{"$f":"Lighting!AG1018","v":0},{"$f":"Lighting!AH1018","v":0},{"$f":"Lighting!AI1018","v":0}]
[0,{"$f":"Lighting!B1019","v":4},{"$f":"Lighting!C1019","v":0},{"$f":"Lighting!D1019","v":0},{"$f":"Lighting!F1019","v":0},{"$f":"Lighting!G1019","v":0},{"$f":"Lighting!H1019","v":0},{"$f":"Lighting!I1019","v":0},{"$f":"Lighting!J1019","v":0},{"$f":"Lighting!K1019","v":0},{"$f":"Lighting!L1019","v":0},{"$f":"Lighting!N1019","v":0},{"$f":"Lighting!O1019","v":0},{"$f":"Lighting!R1019","v":0},{"$f":"Lighting!S1019","v":0},{"$f":"Lighting!U1019","v":""},{"$f":"Lighting!V1019","v":""},{"$f":"Lighting!W1019","v":""},{"$f":"Lighting!X1019","v":0},{"$f":"Lighting!Y1019","v":""},{"$f":"Lighting!AA1019","v":""},{"$f":"Lighting!AC1019","v":""},{"$f":"Lighting!AF1019","v":""},{"$f":"Lighting!AG1019","v":0},{"$f":"Lighting!AH1019","v":0},{"$f":"Lighting!AI1019","v":0}]
[0,{"$f":"Lighting!B1020","v":5},{"$f":"Lighting!C1020","v":0},{"$f":"Lighting!D1020","v":0},{"$f":"Lighting!F1020","v":0},{"$f":"Lighting!G1020","v":0},{"$f":"Lighting!H1020","v":0},{"$f":"Lighting!I1020","v":0},{"$f":"Lighting!J1020","v":0},{"$f":"Lighting!K1020","v":0},{"$f":"Lighting!L1020","v":0},{"$f":"Lighting!N1020","v":0},{"$f":"Lighting!O1020","v":0},{"$f":"Lighting!R1020","v":0},{"$f":"Lighting!S1020","v":0},{"$f":"Lighting!U1020","v":""},{"$f":"Lighting!V1020","v":""},{"$f":"Lighting!W1020","v":""},{"$f":"Lighting!X1020","v":0},{"$f":"Lighting!Y1020","v":""},{"$f":"Lighting!AA1020","v":""},{"$f":"Lighting!AC1020","v":""},{"$f":"Lighting!AF1020","v":""},{"$f":"Lighting!AG1020","v":0},{"$f":"Lighting!AH1020","v":0},{"$f":"Lighting!AI1020","v":0}]
[0,{"$f":"Lighting!B1021","v":6},{"$f":"Lighting!C1021","v":0},{"$f":"Lighting!D1021","v":0},{"$f":"Lighting!F1021","v":0},{"$f":"Lighting!G1021","v":0},{"$f":"Lighting!H1021","v":0},{"$f":"Lighting!I1021","v":0},{"$f":"Lighting!J1021","v":0},{"$f":"Lighting!K1021","v":0},{"$f":"Lighting!L1021","v":0},{"$f":"Lighting!N1021","v":0},{"$f":"Lighting!O1021","v":0},{"$f":"Lighting!R1021","v":0},{"$f":"Lighting!S1021","v":0},{"$f":"Lighting!U1021","v":""},{"$f":"Lighting!V1021","v":""},{"$f":"Lighting!W1021","v":""},{"$f":"Lighting!X1021","v":0},{"$f":"Lighting!Y1021","v":""},{"$f":"Lighting!AA1021","v":""},{"$f":"Lighting!AC1021","v":""},{"$f":"Lighting!AF1021","v":""},{"$f":"Lighting!AG1021","v":0},{"$f":"Lighting!AH1021","v":0},{"$f":"Lighting!AI1021","v":0}]
[0,{"$f":"Lighting!B1022","v":7},{"$f":"Lighting!C1022","v":0},{"$f":"Lighting!D1022","v":0},{"$f":"Lighting!F1022","v":0},{"$f":"Lighting!G1022","v":0},{"$f":"Lighting!H1022","v":0},{"$f":"Lighting!I1022","v":0},{"$f":"Lighting!J1022","v":0},{"$f":"Lighting!K1022","v":0},{"$f":"Lighting!L1022","v":0},{"$f":"Lighting!N1022","v":0},{"$f":"Lighting!O1022","v":0},{"$f":"Lighting!R1022","v":0},{"$f":"Lighting!S1022","v":0},{"$f":"Lighting!U1022","v":""},{"$f":"Lighting!V1022","v":""},{"$f":"Lighting!W1022","v":""},{"$f":"Lighting!X1022","v":0},{"$f":"Lighting!Y1022","v":""},{"$f":"Lighting!AA1022","v":""},{"$f":"Lighting!AC1022","v":""},{"$f":"Lighting!AF1022","v":""},{"$f":"Lighting!AG1022","v":0},{"$f":"Lighting!AH1022","v":0},{"$f":"Lighting!AI1022","v":0}]
[0,{"$f":"Lighting!B1023","v":8},{"$f":"Lighting!C1023","v":0},{"$f":"Lighting!D1023","v":0},{"$f":"Lighting!F1023","v":0},{"$f":"Lighting!G1023","v":0},{"$f":"Lighting!H1023","v":0},{"$f":"Lighting!I1023","v":0},{"$f":"Lighting!J1023","v":0},{"$f":"Lighting!K1023","v":0},{"$f":"Lighting!L1023","v":0},{"$f":"Lighting!N1023","v":0},{"$f":"Lighting!O1023","v":0},{"$f":"Lighting!R1023","v":0},{"$f":"Lighting!S1023","v":0},{"$f":"Lighting!U1023","v":""},{"$f":"Lighting!V1023","v":""},{"$f":"Lighting!W1023","v":""},{"$f":"Lighting!X1023","v":0},{"$f":"Lighting!Y1023","v":""},{"$f":"Lighting!AA1023","v":""},{"$f":"Lighting!AC1023","v":""},{"$f":"Lighting!AF1023","v":""},{"$f":"Lighting!AG1023","v":0},{"$f":"Lighting!AH1023","v":0},{"$f":"Lighting!AI1023","v":0}]
[0,{"$f":"Lighting!B1024","v":9},{"$f":"Lighting!C1024","v":0},{"$f":"Lighting!D1024","v":0},{"$f":"Lighting!F1024","v":0},{"$f":"Lighting!G1024","v":0},{"$f":"Lighting!H1024","v":0},{"$f":"Lighting!I1024","v":0},{"$f":"Lighting!J1024","v":0},{"$f":"Lighting!K1024","v":0},{"$f":"Lighting!L1024","v":0},{"$f":"Lighting!N1024","v":0},{"$f":"Lighting!O1024","v":0},{"$f":"Lighting!R1024","v":0},{"$f":"Lighting!S1024","v":0},{"$f":"Lighting!U1024","v":""},{"$f":"Lighting!V1024","v":""},{"$f":"Lighting!W1024","v":""},{"$f":"Lighting!X1024","v":0},{"$f":"Lighting!Y1024","v":""},{"$f":"Lighting!AA1024","v":""},{"$f":"Lighting!AC1024","v":""},{"$f":"Lighting!AF1024","v":""},{"$f":"Lighting!AG1024","v":0},{"$f":"Lighting!AH1024","v":0},{"$f":"Lighting!AI1024","v":0}]
[0,{"$f":"Lighting!B1025","v":10},{"$f":"Lighting!C1025","v":0},{"$f":"Lighting!D1025","v":0},{"$f":"Lighting!F1025","v":0},{"$f":"Lighting!G1025","v":0},{"$f":"Lighting!H1025","v":0},{"$f":"Lighting!I1025","v":0},{"$f":"Lighting!J1025","v":0},{"$f":"Lighting!K1025","v":0},{"$f":"Lighting!L1025","v":0},{"$f":"Lighting!N1025","v":0},{"$f":"Lighting!O1025","v":0},{"$f":"Lighting!R1025","v":0},{"$f":"Lighting!S1025","v":0},{"$f":"Lighting!U1025","v":""},{"$f":"Lighting!V1025","v":""},{"$f":"Lighting!W1025","v":""},{"$f":"Lighting!X1025","v":0},{"$f":"Lighting!Y1025","v":""},{"$f":"Lighting!AA1025","v":""},{"$f":"Lighting!AC1025","v":""},{"$f":"Lighting!AF1025","v":""},{"$f":"Lighting!AG1025","v":0},{"$f":"Lighting!AH1025","v":0},{"$f":"Lighting!AI1025","v":0}]
[0,{"$f":"Lighting!B1026","v":11},{"$f":"Lighting!C1026","v":0},{"$f":"Lighting!D1026","v":0},{"$f":"Lighting!F1026","v":0},{"$f":"Lighting!G1026","v":0},{"$f":"Lighting!H1026","v":0},{"$f":"Lighting!I1026","v":0},{"$f":"Lighting!J1026","v":0},{"$f":"Lighting!K1026","v":0},{"$f":"Lighting!L1026","v":0},{"$f":"Lighting!N1026","v":0},{"$f":"Lighting!O1026","v":0},{"$f":"Lighting!R1026","v":0},{"$f":"Lighting!S1026","v":0},{"$f":"Lighting!U1026","v":""},{"$f":"Lighting!V1026","v":""},{"$f":"Lighting!W1026","v":""},{"$f":"Lighting!X1026","v":0},{"$f":"Lighting!Y1026","v":""},{"$f":"Lighting!AA1026","v":""},{"$f":"Lighting!AC1026","v":""},{"$f":"Lighting!AF1026","v":""},{"$f":"Lighting!AG1026","v":0},{"$f":"Lighting!AH1026","v":0},{"$f":"Lighting!AI1026","v":0}]
[0,{"$f":"Lighting!B1027","v":12},{"$f":"Lighting!C1027","v":0},{"$f":"Lighting!D1027","v":0},{"$f":"Lighting!F1027","v":0},{"$f":"Lighting!G1027","v":0},{"$f":"Lighting!H1027","v":0},{"$f":"Lighting!I1027","v":0},{"$f":"Lighting!J1027","v":0},{"$f":"Lighting!K1027","v":0},{"$f":"Lighting!L1027","v":0},{"$f":"Lighting!N1027","v":0},{"$f":"Lighting!O1027","v":0},{"$f":"Lighting!R1027","v":0},{"$f":"Lighting!S1027","v":0},{"$f":"Lighting!U1027","v":""},{"$f":"Lighting!V1027","v":""},{"$f":"Lighting!W1027","v":""},{"$f":"Lighting!X1027","v":0},{"$f":"Lighting!Y1027","v":""},{"$f":"Lighting!AA1027","v":""},{"$f":"Lighting!AC1027","v":""},{"$f":"Lighting!AF1027","v":""},{"$f":"Lighting!AG1027","v":0},{"$f":"Lighting!AH1027","v":0},{"$f":"Lighting!AI1027","v":0}]
[0,{"$f":"Lighting!B1028","v":13},{"$f":"Lighting!C1028","v":0},{"$f":"Lighting!D1028","v":0},{"$f":"Lighting!F1028","v":0},{"$f":"Lighting!G1028","v":0},{"$f":"Lighting!H1028","v":0},{"$f":"Lighting!I1028","v":0},{"$f":"Lighting!J1028","v":0},{"$f":"Lighting!K1028","v":0},{"$f":"Lighting!L1028","v":0},{"$f":"Lighting!N1028","v":0},{"$f":"Lighting!O1028","v":0},{"$f":"Lighting!R1028","v":0},{"$f":"Lighting!S1028","v":0},{"$f":"Lighting!U1028","v":""},{"$f":"Lighting!V1028","v":""},{"$f":"Lighting!W1028","v":""},{"$f":"Lighting!X1028","v":0},{"$f":"Lighting!Y1028","v":""},{"$f":"Lighting!AA1028","v":""},{"$f":"Lighting!AC1028","v":""},{"$f":"Lighting!AF1028","v":""},{"$f":"Lighting!AG1028","v":0},{"$f":"Lighting!AH1028","v":0},{"$f":"Lighting!AI1028","v":0}]
[0,{"$f":"Lighting!B1029","v":14},{"$f":"Lighting!C1029","v":0},{"$f":"Lighting!D1029","v":0},{"$f":"Lighting!F1029","v":0},{"$f":"Lighting!G1029","v":0},{"$f":"Lighting!H1029","v":0},{"$f":"Lighting!I1029","v":0},{"$f":"Lighting!J1029","v":0},{"$f":"Lighting!K1029","v":0},{"$f":"Lighting!L1029","v":0},{"$f":"Lighting!N1029","v":0},{"$f":"Lighting!O1029","v":0},{"$f":"Lighting!R1029","v":0},{"$f":"Lighting!S1029","v":0},{"$f":"Lighting!U1029","v":""},{"$f":"Lighting!V1029","v":""},{"$f":"Lighting!W1029","v":""},{"$f":"Lighting!X1029","v":0},{"$f":"Lighting!Y1029","v":""},{"$f":"Lighting!AA1029","v":""},{"$f":"Lighting!AC1029","v":""},{"$f":"Lighting!AF1029","v":""},{"$f":"Lighting!AG1029","v":0},{"$f":"Lighting!AH1029","v":0},{"$f":"Lighting!AI1029","v":0}]
[0,{"$f":"Lighting!B1030","v":15},{"$f":"Lighting!C1030","v":0},{"$f":"Lighting!D1030","v":0},{"$f":"Lighting!F1030","v":0},{"$f":"Lighting!G1030","v":0},{"$f":"Lighting!H1030","v":0},{"$f":"Lighting!I1030","v":0},{"$f":"Lighting!J1030","v":0},{"$f":"Lighting!K1030","v":0},{"$f":"Lighting!L1030","v":0},{"$f":"Lighting!N1030","v":0},{"$f":"Lighting!O1030","v":0},{"$f":"Lighting!R1030","v":0},{"$f":"Lighting!S1030","v":0},{"$f":"Lighting!U1030","v":""},{"$f":"Lighting!V1030","v":""},{"$f":"Lighting!W1030","v":""},{"$f":"Lighting!X1030","v":0},{"$f":"Lighting!Y1030","v":""},{"$f":"Lighting!AA1030","v":""},{"$f":"Lighting!AC1030","v":""},{"$f":"Lighting!AF1030","v":""},{"$f":"Lighting!AG1030","v":0},{"$f":"Lighting!AH1030","v":0},{"$f":"Lighting!AI1030","v":0}]
[0,{"$f":"Lighting!B1031","v":16},{"$f":"Lighting!C1031","v":0},{"$f":"Lighting!D1031","v":0},{"$f":"Lighting!F1031","v":0},{"$f":"Lighting!G1031","v":0},{"$f":"Lighting!H1031","v":0},{"$f":"Lighting!I1031","v":0},{"$f":"Lighting!J1031","v":0},{"$f":"Lighting!K1031","v":0},{"$f":"Lighting!L1031","v":0},{"$f":"Lighting!N1031","v":0},{"$f":"Lighting!O1031","v":0},{"$f":"Lighting!R1031","v":0},{"$f":"Lighting!S1031","v":0},{"$f":"Lighting!U1031","v":""},{"$f":"Lighting!V1031","v":""},{"$f":"Lighting!W1031","v":""},{"$f":"Lighting!X1031","v":0},{"$f":"Lighting!Y1031","v":""},{"$f":"Lighting!AA1031","v":""},{"$f":"Lighting!AC1031","v":""},{"$f":"Lighting!AF1031","v":""},{"$f":"Lighting!AG1031","v":0},{"$f":"Lighting!AH1031","v":0},{"$f":"Lighting!AI1031","v":0}]
[0,{"$f":"Lighting!B1032","v":17},{"$f":"Lighting!C1032","v":0},{"$f":"Lighting!D1032","v":0},{"$f":"Lighting!F1032","v":0},{"$f":"Lighting!G1032","v":0},{"$f":"Lighting!H1032","v":0},{"$f":"Lighting!I1032","v":0},{"$f":"Lighting!J1032","v":0},{"$f":"Lighting!K1032","v":0},{"$f":"Lighting!L1032","v":0},{"$f":"Lighting!N1032","v":0},{"$f":"Lighting!O1032","v":0},{"$f":"Lighting!R1032","v":0},{"$f":"Lighting!S1032","v":0},{"$f":"Lighting!U1032","v":""},{"$f":"Lighting!V1032","v":""},{"$f":"Lighting!W1032","v":""},{"$f":"Lighting!X1032","v":0},{"$f":"Lighting!Y1032","v":""},{"$f":"Lighting!AA1032","v":""},{"$f":"Lighting!AC1032","v":""},{"$f":"Lighting!AF1032","v":""},{"$f":"Lighting!AG1032","v":0},{"$f":"Lighting!AH1032","v":0},{"$f":"Lighting!AI1032","v":0}]
[0,{"$f":"Lighting!B1033","v":18},{"$f":"Lighting!C1033","v":0},{"$f":"Lighting!D1033","v":0},{"$f":"Lighting!F1033","v":0},{"$f":"Lighting!G1033","v":0},{"$f":"Lighting!H1033","v":0},{"$f":"Lighting!I1033","v":0},{"$f":"Lighting!J1033","v":0},{"$f":"Lighting!K1033","v":0},{"$f":"Lighting!L1033","v":0},{"$f":"Lighting!N1033","v":0},{"$f":"Lighting!O1033","v":0},{"$f":"Lighting!R1033","v":0},{"$f":"Lighting!S1033","v":0},{"$f":"Lighting!U1033","v":""},{"$f":"Lighting!V1033","v":""},{"$f":"Lighting!W1033","v":""},{"$f":"Lighting!X1033","v":0},{"$f":"Lighting!Y1033","v":""},{"$f":"Lighting!AA1033","v":""},{"$f":"Lighting!AC1033","v":""},{"$f":"Lighting!AF1033","v":""},{"$f":"Lighting!AG1033","v":0},{"$f":"Lighting!AH1033","v":0},{"$f":"Lighting!AI1033","v":0}]
[0,{"$f":"Lighting!B1034","v":19},{"$f":"Lighting!C1034","v":0},{"$f":"Lighting!D1034","v":0},{"$f":"Lighting!F1034","v":0},{"$f":"Lighting!G1034","v":0},{"$f":"Lighting!H1034","v":0},{"$f":"Lighting!I1034","v":0},{"$f":"Lighting!J1034","v":0},{"$f":"Lighting!K1034","v":0},{"$f":"Lighting!L1034","v":0},{"$f":"Lighting!N1034","v":0},{"$f":"Lighting!O1034","v":0},{"$f":"Lighting!R1034","v":0},{"$f":"Lighting!S1034","v":0},{"$f":"Lighting!U1034","v":""},{"$f":"Lighting!V1034","v":""},{"$f":"Lighting!W1034","v":""},{"$f":"Lighting!X1034","v":0},{"$f":"Lighting!Y1034","v":""},{"$f":"Lighting!AA1034","v":""},{"$f":"Lighting!AC1034","v":""},{"$f":"Lighting!AF1034","v":""},{"$f":"Lighting!AG1034","v":0},{"$f":"Lighting!AH1034","v":0},{"$f":"Lighting!AI1034","v":0}]
[0,{"$f":"Lighting!B1035","v":20},{"$f":"Lighting!C1035","v":0},{"$f":"Lighting!D1035","v":0},{"$f":"Lighting!F1035","v":0},{"$f":"Lighting!G1035","v":0},{"$f":"Lighting!H1035","v":0},{"$f":"Lighting!I1035","v":0},{"$f":"Lighting!J1035","v":0},{"$f":"Lighting!K1035","v":0},{"$f":"Lighting!L1035","v":0},{"$f":"Lighting!N1035","v":0},{"$f":"Lighting!O1035","v":0},{"$f":"Lighting!R1035","v":0},{"$f":"Lighting!S1035","v":0},{"$f":"Lighting!U1035","v":""},{"$f":"Lighting!V1035","v":""},{"$f":"Lighting!W1035","v":""},{"$f":"Lighting!X1035","v":0},{"$f":"Lighting!Y1035","v":""},{"$f":"Lighting!AA1035","v":""},{"$f":"Lighting!AC1035","v":""},{"$f":"Lighting!AF1035","v":""},{"$f":"Lighting!AG1035","v":0},{"$f":"Lighting!AH1035","v":0},{"$f":"Lighting!AI1035","v":0}]
[0,{"$f":"Lighting!B1036","v":21},{"$f":"Lighting!C1036","v":0},{"$f":"Lighting!D1036","v":0},{"$f":"Lighting!F1036","v":0},{"$f":"Lighting!G1036","v":0},{"$f":"Lighting!H1036","v":0},{"$f":"Lighting!I1036","v":0},{"$f":"Lighting!J1036","v":0},{"$f":"Lighting!K1036","v":0},{"$f":"Lighting!L1036","v":0},{"$f":"Lighting!N1036","v":0},{"$f":"Lighting!O1036","v":0},{"$f":"Lighting!R1036","v":0},{"$f":"Lighting!S1036","v":0},{"$f":"Lighting!U1036","v":""},{"$f":"Lighting!V1036","v":""},{"$f":"Lighting!W1036","v":""},{"$f":"Lighting!X1036","v":0},{"$f":"Lighting!Y1036","v":""},{"$f":"Lighting!AA1036","v":""},{"$f":"Lighting!AC1036","v":""},{"$f":"Lighting!AF1036","v":""},{"$f":"Lighting!AG1036","v":0},{"$f":"Lighting!AH1036","v":0},{"$f":"Lighting!AI1036","v":0}]
[0,{"$f":"Lighting!B1037","v":22},{"$f":"Lighting!C1037","v":0},{"$f":"Lighting!D1037","v":0},{"$f":"Lighting!F1037","v":0},{"$f":"Lighting!G1037","v":0},{"$f":"Lighting!H1037","v":0},{"$f":"Lighting!I1037","v":0},{"$f":"Lighting!J1037","v":0},{"$f":"Lighting!K1037","v":0},{"$f":"Lighting!L1037","v":0},{"$f":"Lighting!N1037","v":0},{"$f":"Lighting!O1037","v":0},{"$f":"Lighting!R1037","v":0},{"$f":"Lighting!S1037","v":0},{"$f":"Lighting!U1037","v":""},{"$f":"Lighting!V1037","v":""},{"$f":"Lighting!W1037","v":""},{"$f":"Lighting!X1037","v":0},{"$f":"Lighting!Y1037","v":""},{"$f":"Lighting!AA1037","v":""},{"$f":"Lighting!AC1037","v":""},{"$f":"Lighting!AF1037","v":""},{"$f":"Lighting!AG1037","v":0},{"$f":"Lighting!AH1037","v":0},{"$f":"Lighting!AI1037","v":0}]
[0,{"$f":"Lighting!B1038","v":23},{"$f":"Lighting!C1038","v":0},{"$f":"Lighting!D1038","v":0},{"$f":"Lighting!F1038","v":0},{"$f":"Lighting!G1038","v":0},{"$f":"Lighting!H1038","v":0},{"$f":"Lighting!I1038","v":0},{"$f":"Lighting!J1038","v":0},{"$f":"Lighting!K1038","v":0},{"$f":"Lighting!L1038","v":0},{"$f":"Lighting!N1038","v":0},{"$f":"Lighting!O1038","v":0},{"$f":"Lighting!R1038","v":0},{"$f":"Lighting!S1038","v":0},{"$f":"Lighting!U1038","v":""},{"$f":"Lighting!V1038","v":""},{"$f":"Lighting!W1038","v":""},{"$f":"Lighting!X1038","v":0},{"$f":"Lighting!Y1038","v":""},{"$f":"Lighting!AA1038","v":""},{"$f":"Lighting!AC1038","v":""},{"$f":"Lighting!AF1038","v":""},{"$f":"Lighting!AG1038","v":0},{"$f":"Lighting!AH1038","v":0},{"$f":"Lighting!AI1038","v":0}]
[0,{"$f":"Lighting!B1039","v":24},{"$f":"Lighting!C1039","v":0},{"$f":"Lighting!D1039","v":0},{"$f":"Lighting!F1039","v":0},{"$f":"Lighting!G1039","v":0},{"$f":"Lighting!H1039","v":0},{"$f":"Lighting!I1039","v":0},{"$f":"Lighting!J1039","v":0},{"$f":"Lighting!K1039","v":0},{"$f":"Lighting!L1039","v":0},{"$f":"Lighting!N1039","v":0},{"$f":"Lighting!O1039","v":0},{"$f":"Lighting!R1039","v":0},{"$f":"Lighting!S1039","v":0},{"$f":"Lighting!U1039","v":""},{"$f":"Lighting!V1039","v":""},{"$f":"Lighting!W1039","v":""},{"$f":"Lighting!X1039","v":0},{"$f":"Lighting!Y1039","v":""},{"$f":"Lighting!AA1039","v":""},{"$f":"Lighting!AC1039","v":""},{"$f":"Lighting!AF1039","v":""},{"$f":"Lighting!AG1039","v":0},{"$f":"Lighting!AH1039","v":0},{"$f":"Lighting!AI1039","v":0}]
[0,{"$f":"Lighting!B1040","v":25},{"$f":"Lighting!C1040","v":0},{"$f":"Lighting!D1040","v":0},{"$f":"Lighting!F1040","v":0},{"$f":"Lighting!G1040","v":0},{"$f":"Lighting!H1040","v":0},{"$f":"Lighting!I1040","v":0},{"$f":"Lighting!J1040","v":0},{"$f":"Lighting!K1040","v":0},{"$f":"Lighting!L1040","v":0},{"$f":"Lighting!N1040","v":0},{"$f":"Lighting!O1040","v":0},{"$f":"Lighting!R1040","v":0},{"$f":"Lighting!S1040","v":0},{"$f":"Lighting!U1040","v":""},{"$f":"Lighting!V1040","v":""},{"$f":"Lighting!W1040","v":""},{"$f":"Lighting!X1040","v":0},{"$f":"Lighting!Y1040","v":""},{"$f":"Lighting!AA1040","v":""},{"$f":"Lighting!AC1040","v":""},{"$f":"Lighting!AF1040","v":""},{"$f":"Lighting!AG1040","v":0},{"$f":"Lighting!AH1040","v":0},{"$f":"Lighting!AI1040","v":0}]
[0,{"$f":"Lighting!B1041","v":26},{"$f":"Lighting!C1041","v":0},{"$f":"Lighting!D1041","v":0},{"$f":"Lighting!F1041","v":0},{"$f":"Lighting!G1041","v":0},{"$f":"Lighting!H1041","v":0},{"$f":"Lighting!I1041","v":0},{"$f":"Lighting!J1041","v":0},{"$f":"Lighting!K1041","v":0},{"$f":"Lighting!L1041","v":0},{"$f":"Lighting!N1041","v":0},{"$f":"Lighting!O1041","v":0},{"$f":"Lighting!R1041","v":0},{"$f":"Lighting!S1041","v":0},{"$f":"Lighting!U1041","v":""},{"$f":"Lighting!V1041","v":""},{"$f":"Lighting!W1041","v":""},{"$f":"Lighting!X1041","v":0},{"$f":"Lighting!Y1041","v":""},{"$f":"Lighting!AA1041","v":""},{"$f":"Lighting!AC1041","v":""},{"$f":"Lighting!AF1041","v":""},{"$f":"Lighting!AG1041","v":0},{"$f":"Lighting!AH1041","v":0},{"$f":"Lighting!AI1041","v":0}]
[0,{"$f":"Lighting!B1042","v":27},{"$f":"Lighting!C1042","v":0},{"$f":"Lighting!D1042","v":0},{"$f":"Lighting!F1042","v":0},{"$f":"Lighting!G1042","v":0},{"$f":"Lighting!H1042","v":0},{"$f":"Lighting!I1042","v":0},{"$f":"Lighting!J1042","v":0},{"$f":"Lighting!K1042","v":0},{"$f":"Lighting!L1042","v":0},{"$f":"Lighting!N1042","v":0},{"$f":"Lighting!O1042","v":0},{"$f":"Lighting!R1042","v":0},{"$f":"Lighting!S1042","v":0},{"$f":"Lighting!U1042","v":""},{"$f":"Lighting!V1042","v":""},{"$f":"Lighting!W1042","v":""},{"$f":"Lighting!X1042","v":0},{"$f":"Lighting!Y1042","v":""},{"$f":"Lighting!AA1042","v":""},{"$f":"Lighting!AC1042","v":""},{"$f":"Lighting!AF1042","v":""},{"$f":"Lighting!AG1042","v":0},{"$f":"Lighting!AH1042","v":0},{"$f":"Lighting!AI1042","v":0}]
[0,{"$f":"Lighting!B1043","v":28},{"$f":"Lighting!C1043","v":0},{"$f":"Lighting!D1043","v":0},{"$f":"Lighting!F1043","v":0},{"$f":"Lighting!G1043","v":0},{"$f":"Lighting!H1043","v":0},{"$f":"Lighting!I1043","v":0},{"$f":"Lighting!J1043","v":0},{"$f":"Lighting!K1043","v":0},{"$f":"Lighting!L1043","v":0},{"$f":"Lighting!N1043","v":0},{"$f":"Lighting!O1043","v":0},{"$f":"Lighting!R1043","v":0},{"$f":"Lighting!S1043","v":0},{"$f":"Lighting!U1043","v":""},{"$f":"Lighting!V1043","v":""},{"$f":"Lighting!W1043","v":""},{"$f":"Lighting!X1043","v":0},{"$f":"Lighting!Y1043","v":""},{"$f":"Lighting!AA1043","v":""},{"$f":"Lighting!AC1043","v":""},{"$f":"Lighting!AF1043","v":""},{"$f":"Lighting!AG1043","v":0},{"$f":"Lighting!AH1043","v":0},{"$f":"Lighting!AI1043","v":0}]
[0,{"$f":"Lighting!B1044","v":29},{"$f":"Lighting!C1044","v":0},{"$f":"Lighting!D1044","v":0},{"$f":"Lighting!F1044","v":0},{"$f":"Lighting!G1044","v":0},{"$f":"Lighting!H1044","v":0},{"$f":"Lighting!I1044","v":0},{"$f":"Lighting!J1044","v":0},{"$f":"Lighting!K1044","v":0},{"$f":"Lighting!L1044","v":0},{"$f":"Lighting!N1044","v":0},{"$f":"Lighting!O1044","v":0},{"$f":"Lighting!R1044","v":0},{"$f":"Lighting!S1044","v":0},{"$f":"Lighting!U1044","v":""},{"$f":"Lighting!V1044","v":""},{"$f":"Lighting!W1044","v":""},{"$f":"Lighting!X1044","v":0},{"$f":"Lighting!Y1044","v":""},{"$f":"Lighting!AA1044","v":""},{"$f":"Lighting!AC1044","v":""},{"$f":"Lighting!AF1044","v":""},{"$f":"Lighting!AG1044","v":0},{"$f":"Lighting!AH1044","v":0},{"$f":"Lighting!AI1044","v":0}]
[0,{"$f":"Lighting!B1045","v":30},{"$f":"Lighting!C1045","v":0},{"$f":"Lighting!D1045","v":0},{"$f":"Lighting!F1045","v":0},{"$f":"Lighting!G1045","v":0},{"$f":"Lighting!H1045","v":0},{"$f":"Lighting!I1045","v":0},{"$f":"Lighting!J1045","v":0},{"$f":"Lighting!K1045","v":0},{"$f":"Lighting!L1045","v":0},{"$f":"Lighting!N1045","v":0},{"$f":"Lighting!O1045","v":0},{"$f":"Lighting!R1045","v":0},{"$f":"Lighting!S1045","v":0},{"$f":"Lighting!U1045","v":""},{"$f":"Lighting!V1045","v":""},{"$f":"Lighting!W1045","v":""},{"$f":"Lighting!X1045","v":0},{"$f":"Lighting!Y1045","v":""},{"$f":"Lighting!AA1045","v":""},{"$f":"Lighting!AC1045","v":""},{"$f":"Lighting!AF1045","v":""},{"$f":"Lighting!AG1045","v":0},{"$f":"Lighting!AH1045","v":0},{"$f":"Lighting!AI1045","v":0}]
[0,{"$f":"Lighting!B1046","v":31},{"$f":"Lighting!C1046","v":0},{"$f":"Lighting!D1046","v":0},{"$f":"Lighting!F1046","v":0},{"$f":"Lighting!G1046","v":0},{"$f":"Lighting!H1046","v":0},{"$f":"Lighting!I1046","v":0},{"$f":"Lighting!J1046","v":0},{"$f":"Lighting!K1046","v":0},{"$f":"Lighting!L1046","v":0},{"$f":"Lighting!N1046","v":0},{"$f":"Lighting!O1046","v":0},{"$f":"Lighting!R1046","v":0},{"$f":"Lighting!S1046","v":0},{"$f":"Lighting!U1046","v":""},{"$f":"Lighting!V1046","v":""},{"$f":"Lighting!W1046","v":""},{"$f":"Lighting!X1046","v":0},{"$f":"Lighting!Y1046","v":""},{"$f":"Lighting!AA1046","v":""},{"$f":"Lighting!AC1046","v":""},{"$f":"Lighting!AF1046","v":""},{"$f":"Lighting!AG1046","v":0},{"$f":"Lighting!AH1046","v":0},{"$f":"Lighting!AI1046","v":0}]
[0,{"$f":"Lighting!B1047","v":32},{"$f":"Lighting!C1047","v":0},{"$f":"Lighting!D1047","v":0},{"$f":"Lighting!F1047","v":0},{"$f":"Lighting!G1047","v":0},{"$f":"Lighting!H1047","v":0},{"$f":"Lighting!I1047","v":0},{"$f":"Lighting!J1047","v":0},{"$f":"Lighting!K1047","v":0},{"$f":"Lighting!L1047","v":0},{"$f":"Lighting!N1047","v":0},{"$f":"Lighting!O1047","v":0},{"$f":"Lighting!R1047","v":0},{"$f":"Lighting!S1047","v":0},{"$f":"Lighting!U1047","v":""},{"$f":"Lighting!V1047","v":""},{"$f":"Lighting!W1047","v":""},{"$f":"Lighting!X1047","v":0},{"$f":"Lighting!Y1047","v":""},{"$f":"Lighting!AA1047","v":""},{"$f":"Lighting!AC1047","v":""},{"$f":"Lighting!AF1047","v":""},{"$f":"Lighting!AG1047","v":0},{"$f":"Lighting!AH1047","v":0},{"$f":"Lighting!AI1047","v":0}]
[0,{"$f":"Lighting!B1048","v":33},{"$f":"Lighting!C1048","v":0},{"$f":"Lighting!D1048","v":0},{"$f":"Lighting!F1048","v":0},{"$f":"Lighting!G1048","v":0},{"$f":"Lighting!H1048","v":0},{"$f":"Lighting!I1048","v":0},{"$f":"Lighting!J1048","v":0},{"$f":"Lighting!K1048","v":0},{"$f":"Lighting!L1048","v":0},{"$f":"Lighting!N1048","v":0},{"$f":"Lighting!O1048","v":0},{"$f":"Lighting!R1048","v":0},{"$f":"Lighting!S1048","v":0},{"$f":"Lighting!U1048","v":""},{"$f":"Lighting!V1048","v":""},{"$f":"Lighting!W1048","v":""},{"$f":"Lighting!X1048","v":0},{"$f":"Lighting!Y1048","v":""},{"$f":"Lighting!AA1048","v":""},{"$f":"Lighting!AC1048","v":""},{"$f":"Lighting!AF1048","v":""},{"$f":"Lighting!AG1048","v":0},{"$f":"Lighting!AH1048","v":0},{"$f":"Lighting!AI1048","v":0}]
[0,{"$f":"Lighting!B1049","v":34},{"$f":"Lighting!C1049","v":0},{"$f":"Lighting!D1049","v":0},{"$f":"Lighting!F1049","v":0},{"$f":"Lighting!G1049","v":0},{"$f":"Lighting!H1049","v":0},{"$f":"Lighting!I1049","v":0},{"$f":"Lighting!J1049","v":0},{"$f":"Lighting!K1049","v":0},{"$f":"Lighting!L1049","v":0},{"$f":"Lighting!N1049","v":0},{"$f":"Lighting!O1049","v":0},{"$f":"Lighting!R1049","v":0},{"$f":"Lighting!S1049","v":0},{"$f":"Lighting!U1049","v":""},{"$f":"Lighting!V1049","v":""},{"$f":"Lighting!W1049","v":""},{"$f":"Lighting!X1049","v":0},{"$f":"Lighting!Y1049","v":""},{"$f":"Lighting!AA1049","v":""},{"$f":"Lighting!AC1049","v":""},{"$f":"Lighting!AF1049","v":""},{"$f":"Lighting!AG1049","v":0},{"$f":"Lighting!AH1049","v":0},{"$f":"Lighting!AI1049","v":0}]
[0,{"$f":"Lighting!B1050","v":35},{"$f":"Lighting!C1050","v":0},{"$f":"Lighting!D1050","v":0},{"$f":"Lighting!F1050","v":0},{"$f":"Lighting!G1050","v":0},{"$f":"Lighting!H1050","v":0},{"$f":"Lighting!I1050","v":0},{"$f":"Lighting!J1050","v":0},{"$f":"Lighting!K1050","v":0},{"$f":"Lighting!L1050","v":0},{"$f":"Lighting!N1050","v":0},{"$f":"Lighting!O1050","v":0},{"$f":"Lighting!R1050","v":0},{"$f":"Lighting!S1050","v":0},{"$f":"Lighting!U1050","v":""},{"$f":"Lighting!V1050","v":""},{"$f":"Lighting!W1050","v":""},{"$f":"Lighting!X1050","v":0},{"$f":"Lighting!Y1050","v":""},{"$f":"Lighting!AA1050","v":""},{"$f":"Lighting!AC1050","v":""},{"$f":"Lighting!AF1050","v":""},{"$f":"Lighting!AG1050","v":0},{"$f":"Lighting!AH1050","v":0},{"$f":"Lighting!AI1050","v":0}]
[0,{"$f":"Lighting!B1051","v":36},{"$f":"Lighting!C1051","v":0},{"$f":"Lighting!D1051","v":0},{"$f":"Lighting!F1051","v":0},{"$f":"Lighting!G1051","v":0},{"$f":"Lighting!H1051","v":0},{"$f":"Lighting!I1051","v":0},{"$f":"Lighting!J1051","v":0},{"$f":"Lighting!K1051","v":0},{"$f":"Lighting!L1051","v":0},{"$f":"Lighting!N1051","v":0},{"$f":"Lighting!O1051","v":0},{"$f":"Lighting!R1051","v":0},{"$f":"Lighting!S1051","v":0},{"$f":"Lighting!U1051","v":""},{"$f":"Lighting!V1051","v":""},{"$f":"Lighting!W1051","v":""},{"$f":"Lighting!X1051","v":0},{"$f":"Lighting!Y1051","v":""},{"$f":"Lighting!AA1051","v":""},{"$f":"Lighting!AC1051","v":""},{"$f":"Lighting!AF1051","v":""},{"$f":"Lighting!AG1051","v":0},{"$f":"Lighting!AH1051","v":0},{"$f":"Lighting!AI1051","v":0}]
[0,{"$f":"Lighting!B1052","v":37},{"$f":"Lighting!C1052","v":0},{"$f":"Lighting!D1052","v":0},{"$f":"Lighting!F1052","v":0},{"$f":"Lighting!G1052","v":0},{"$f":"Lighting!H1052","v":0},{"$f":"Lighting!I1052","v":0},{"$f":"Lighting!J1052","v":0},{"$f":"Lighting!K1052","v":0},{"$f":"Lighting!L1052","v":0},{"$f":"Lighting!N1052","v":0},{"$f":"Lighting!O1052","v":0},{"$f":"Lighting!R1052","v":0},{"$f":"Lighting!S1052","v":0},{"$f":"Lighting!U1052","v":""},{"$f":"Lighting!V1052","v":""},{"$f":"Lighting!W1052","v":""},{"$f":"Lighting!X1052","v":0},{"$f":"Lighting!Y1052","v":""},{"$f":"Lighting!AA1052","v":""},{"$f":"Lighting!AC1052","v":""},{"$f":"Lighting!AF1052","v":""},{"$f":"Lighting!AG1052","v":0},{"$f":"Lighting!AH1052","v":0},{"$f":"Lighting!AI1052","v":0}]
[0,{"$f":"Lighting!B1053","v":38},{"$f":"Lighting!C1053","v":0},{"$f":"Lighting!D1053","v":0},{"$f":"Lighting!F1053","v":0},{"$f":"Lighting!G1053","v":0},{"$f":"Lighting!H1053","v":0},{"$f":"Lighting!I1053","v":0},{"$f":"Lighting!J1053","v":0},{"$f":"Lighting!K1053","v":0},{"$f":"Lighting!L1053","v":0},{"$f":"Lighting!N1053","v":0},{"$f":"Lighting!O1053","v":0},{"$f":"Lighting!R1053","v":0},{"$f":"Lighting!S1053","v":0},{"$f":"Lighting!U1053","v":""},{"$f":"Lighting!V1053","v":""},{"$f":"Lighting!W1053","v":""},{"$f":"Lighting!X1053","v":0},{"$f":"Lighting!Y1053","v":""},{"$f":"Lighting!AA1053","v":""},{"$f":"Lighting!AC1053","v":""},{"$f":"Lighting!AF1053","v":""},{"$f":"Lighting!AG1053","v":0},{"$f":"Lighting!AH1053","v":0},{"$f":"Lighting!AI1053","v":0}]
[0,{"$f":"Lighting!B1054","v":39},{"$f":"Lighting!C1054","v":0},{"$f":"Lighting!D1054","v":0},{"$f":"Lighting!F1054","v":0},{"$f":"Lighting!G1054","v":0},{"$f":"Lighting!H1054","v":0},{"$f":"Lighting!I1054","v":0},{"$f":"Lighting!J1054","v":0},{"$f":"Lighting!K1054","v":0},{"$f":"Lighting!L1054","v":0},{"$f":"Lighting!N1054","v":0},{"$f":"Lighting!O1054","v":0},{"$f":"Lighting!R1054","v":0},{"$f":"Lighting!S1054","v":0},{"$f":"Lighting!U1054","v":""},{"$f":"Lighting!V1054","v":""},{"$f":"Lighting!W1054","v":""},{"$f":"Lighting!X1054","v":0},{"$f":"Lighting!Y1054","v":""},{"$f":"Lighting!AA1054","v":""},{"$f":"Lighting!AC1054","v":""},{"$f":"Lighting!AF1054","v":""},{"$f":"Lighting!AG1054","v":0},{"$f":"Lighting!AH1054","v":0},{"$f":"Lighting!AI1054","v":0}]
[0,{"$f":"Lighting!B1055","v":40},{"$f":"Lighting!C1055","v":0},{"$f":"Lighting!D1055","v":0},{"$f":"Lighting!F1055","v":0},{"$f":"Lighting!G1055","v":0},{"$f":"Lighting!H1055","v":0},{"$f":"Lighting!I1055","v":0},{"$f":"Lighting!J1055","v":0},{"$f":"Lighting!K1055","v":0},{"$f":"Lighting!L1055","v":0},{"$f":"Lighting!N1055","v":0},{"$f":"Lighting!O1055","v":0},{"$f":"Lighting!R1055","v":0},{"$f":"Lighting!S1055","v":0},{"$f":"Lighting!U1055","v":""},{"$f":"Lighting!V1055","v":""},{"$f":"Lighting!W1055","v":""},{"$f":"Lighting!X1055","v":0},{"$f":"Lighting!Y1055","v":""},{"$f":"Lighting!AA1055","v":""},{"$f":"Lighting!AC1055","v":""},{"$f":"Lighting!AF1055","v":""},{"$f":"Lighting!AG1055","v":0},{"$f":"Lighting!AH1055","v":0},{"$f":"Lighting!AI1055","v":0}]
[0,{"$f":"Lighting!B1056","v":41},{"$f":"Lighting!C1056","v":0},{"$f":"Lighting!D1056","v":0},{"$f":"Lighting!F1056","v":0},{"$f":"Lighting!G1056","v":0},{"$f":"Lighting!H1056","v":0},{"$f":"Lighting!I1056","v":0},{"$f":"Lighting!J1056","v":0},{"$f":"Lighting!K1056","v":0},{"$f":"Lighting!L1056","v":0},{"$f":"Lighting!N1056","v":0},{"$f":"Lighting!O1056","v":0},{"$f":"Lighting!R1056","v":0},{"$f":"Lighting!S1056","v":0},{"$f":"Lighting!U1056","v":""},{"$f":"Lighting!V1056","v":""},{"$f":"Lighting!W1056","v":""},{"$f":"Lighting!X1056","v":0},{"$f":"Lighting!Y1056","v":""},{"$f":"Lighting!AA1056","v":""},{"$f":"Lighting!AC1056","v":""},{"$f":"Lighting!AF1056","v":""},{"$f":"Lighting!AG1056","v":0},{"$f":"Lighting!AH1056","v":0},{"$f":"Lighting!AI1056","v":0}]
[0,{"$f":"Lighting!B1057","v":42},{"$f":"Lighting!C1057","v":0},{"$f":"Lighting!D1057","v":0},{"$f":"Lighting!F1057","v":0},{"$f":"Lighting!G1057","v":0},{"$f":"Lighting!H1057","v":0},{"$f":"Lighting!I1057","v":0},{"$f":"Lighting!J1057","v":0},{"$f":"Lighting!K1057","v":0},{"$f":"Lighting!L1057","v":0},{"$f":"Lighting!N1057","v":0},{"$f":"Lighting!O1057","v":0},{"$f":"Lighting!R1057","v":0},{"$f":"Lighting!S1057","v":0},{"$f":"Lighting!U1057","v":""},{"$f":"Lighting!V1057","v":""},{"$f":"Lighting!W1057","v":""},{"$f":"Lighting!X1057","v":0},{"$f":"Lighting!Y1057","v":""},{"$f":"Lighting!AA1057","v":""},{"$f":"Lighting!AC1057","v":""},{"$f":"Lighting!AF1057","v":""},{"$f":"Lighting!AG1057","v":0},{"$f":"Lighting!AH1057","v":0},{"$f":"Lighting!AI1057","v":0}]
[0,{"$f":"Lighting!B1058","v":43},{"$f":"Lighting!C1058","v":0},{"$f":"Lighting!D1058","v":0},{"$f":"Lighting!F1058","v":0},{"$f":"Lighting!G1058","v":0},{"$f":"Lighting!H1058","v":0},{"$f":"Lighting!I1058","v":0},{"$f":"Lighting!J1058","v":0},{"$f":"Lighting!K1058","v":0},{"$f":"Lighting!L1058","v":0},{"$f":"Lighting!N1058","v":0},{"$f":"Lighting!O1058","v":0},{"$f":"Lighting!R1058","v":0},{"$f":"Lighting!S1058","v":0},{"$f":"Lighting!U1058","v":""},{"$f":"Lighting!V1058","v":""},{"$f":"Lighting!W1058","v":""},{"$f":"Lighting!X1058","v":0},{"$f":"Lighting!Y1058","v":""},{"$f":"Lighting!AA1058","v":""},{"$f":"Lighting!AC1058","v":""},{"$f":"Lighting!AF1058","v":""},{"$f":"Lighting!AG1058","v":0},{"$f":"Lighting!AH1058","v":0},{"$f":"Lighting!AI1058","v":0}]
[0,{"$f":"Lighting!B1059","v":44},{"$f":"Lighting!C1059","v":0},{"$f":"Lighting!D1059","v":0},{"$f":"Lighting!F1059","v":0},{"$f":"Lighting!G1059","v":0},{"$f":"Lighting!H1059","v":0},{"$f":"Lighting!I1059","v":0},{"$f":"Lighting!J1059","v":0},{"$f":"Lighting!K1059","v":0},{"$f":"Lighting!L1059","v":0},{"$f":"Lighting!N1059","v":0},{"$f":"Lighting!O1059","v":0},{"$f":"Lighting!R1059","v":0},{"$f":"Lighting!S1059","v":0},{"$f":"Lighting!U1059","v":""},{"$f":"Lighting!V1059","v":""},{"$f":"Lighting!W1059","v":""},{"$f":"Lighting!X1059","v":0},{"$f":"Lighting!Y1059","v":""},{"$f":"Lighting!AA1059","v":""},{"$f":"Lighting!AC1059","v":""},{"$f":"Lighting!AF1059","v":""},{"$f":"Lighting!AG1059","v":0},{"$f":"Lighting!AH1059","v":0},{"$f":"Lighting!AI1059","v":0}]
[0,{"$f":"Lighting!B1060","v":45},{"$f":"Lighting!C1060","v":0},{"$f":"Lighting!D1060","v":0},{"$f":"Lighting!F1060","v":0},{"$f":"Lighting!G1060","v":0},{"$f":"Lighting!H1060","v":0},{"$f":"Lighting!I1060","v":0},{"$f":"Lighting!J1060","v":0},{"$f":"Lighting!K1060","v":0},{"$f":"Lighting!L1060","v":0},{"$f":"Lighting!N1060","v":0},{"$f":"Lighting!O1060","v":0},{"$f":"Lighting!R1060","v":0},{"$f":"Lighting!S1060","v":0},{"$f":"Lighting!U1060","v":""},{"$f":"Lighting!V1060","v":""},{"$f":"Lighting!W1060","v":""},{"$f":"Lighting!X1060","v":0},{"$f":"Lighting!Y1060","v":""},{"$f":"Lighting!AA1060","v":""},{"$f":"Lighting!AC1060","v":""},{"$f":"Lighting!AF1060","v":""},{"$f":"Lighting!AG1060","v":0},{"$f":"Lighting!AH1060","v":0},{"$f":"Lighting!AI1060","v":0}]
[0,{"$f":"Lighting!B1061","v":46},{"$f":"Lighting!C1061","v":0},{"$f":"Lighting!D1061","v":0},{"$f":"Lighting!F1061","v":0},{"$f":"Lighting!G1061","v":0},{"$f":"Lighting!H1061","v":0},{"$f":"Lighting!I1061","v":0},{"$f":"Lighting!J1061","v":0},{"$f":"Lighting!K1061","v":0},{"$f":"Lighting!L1061","v":0},{"$f":"Lighting!N1061","v":0},{"$f":"Lighting!O1061","v":0},{"$f":"Lighting!R1061","v":0},{"$f":"Lighting!S1061","v":0},{"$f":"Lighting!U1061","v":""},{"$f":"Lighting!V1061","v":""},{"$f":"Lighting!W1061","v":""},{"$f":"Lighting!X1061","v":0},{"$f":"Lighting!Y1061","v":""},{"$f":"Lighting!AA1061","v":""},{"$f":"Lighting!AC1061","v":""},{"$f":"Lighting!AF1061","v":""},{"$f":"Lighting!AG1061","v":0},{"$f":"Lighting!AH1061","v":0},{"$f":"Lighting!AI1061","v":0}]
[0,{"$f":"Lighting!B1062","v":47},{"$f":"Lighting!C1062","v":0},{"$f":"Lighting!D1062","v":0},{"$f":"Lighting!F1062","v":0},{"$f":"Lighting!G1062","v":0},{"$f":"Lighting!H1062","v":0},{"$f":"Lighting!I1062","v":0},{"$f":"Lighting!J1062","v":0},{"$f":"Lighting!K1062","v":0},{"$f":"Lighting!L1062","v":0},{"$f":"Lighting!N1062","v":0},{"$f":"Lighting!O1062","v":0},{"$f":"Lighting!R1062","v":0},{"$f":"Lighting!S1062","v":0},{"$f":"Lighting!U1062","v":""},{"$f":"Lighting!V1062","v":""},{"$f":"Lighting!W1062","v":""},{"$f":"Lighting!X1062","v":0},{"$f":"Lighting!Y1062","v":""},{"$f":"Lighting!AA1062","v":""},{"$f":"Lighting!AC1062","v":""},{"$f":"Lighting!AF1062","v":""},{"$f":"Lighting!AG1062","v":0},{"$f":"Lighting!AH1062","v":0},{"$f":"Lighting!AI1062","v":0}]
[0,{"$f":"Lighting!B1063","v":48},{"$f":"Lighting!C1063","v":0},{"$f":"Lighting!D1063","v":0},{"$f":"Lighting!F1063","v":0},{"$f":"Lighting!G1063","v":0},{"$f":"Lighting!H1063","v":0},{"$f":"Lighting!I1063","v":0},{"$f":"Lighting!J1063","v":0},{"$f":"Lighting!K1063","v":0},{"$f":"Lighting!L1063","v":0},{"$f":"Lighting!N1063","v":0},{"$f":"Lighting!O1063","v":0},{"$f":"Lighting!R1063","v":0},{"$f":"Lighting!S1063","v":0},{"$f":"Lighting!U1063","v":""},{"$f":"Lighting!V1063","v":""},{"$f":"Lighting!W1063","v":""},{"$f":"Lighting!X1063","v":0},{"$f":"Lighting!Y1063","v":""},{"$f":"Lighting!AA1063","v":""},{"$f":"Lighting!AC1063","v":""},{"$f":"Lighting!AF1063","v":""},{"$f":"Lighting!AG1063","v":0},{"$f":"Lighting!AH1063","v":0},{"$f":"Lighting!AI1063","v":0}]
[0,{"$f":"Lighting!B1064","v":49},{"$f":"Lighting!C1064","v":0},{"$f":"Lighting!D1064","v":0},{"$f":"Lighting!F1064","v":0},{"$f":"Lighting!G1064","v":0},{"$f":"Lighting!H1064","v":0},{"$f":"Lighting!I1064","v":0},{"$f":"Lighting!J1064","v":0},{"$f":"Lighting!K1064","v":0},{"$f":"Lighting!L1064","v":0},{"$f":"Lighting!N1064","v":0},{"$f":"Lighting!O1064","v":0},{"$f":"Lighting!R1064","v":0},{"$f":"Lighting!S1064","v":0},{"$f":"Lighting!U1064","v":""},{"$f":"Lighting!V1064","v":""},{"$f":"Lighting!W1064","v":""},{"$f":"Lighting!X1064","v":0},{"$f":"Lighting!Y1064","v":""},{"$f":"Lighting!AA1064","v":""},{"$f":"Lighting!AC1064","v":""},{"$f":"Lighting!AF1064","v":""},{"$f":"Lighting!AG1064","v":0},{"$f":"Lighting!AH1064","v":0},{"$f":"Lighting!AI1064","v":0}]
[0,{"$f":"Lighting!B1065","v":50},{"$f":"Lighting!C1065","v":0},{"$f":"Lighting!D1065","v":0},{"$f":"Lighting!F1065","v":0},{"$f":"Lighting!G1065","v":0},{"$f":"Lighting!H1065","v":0},{"$f":"Lighting!I1065","v":0},{"$f":"Lighting!J1065","v":0},{"$f":"Lighting!K1065","v":0},{"$f":"Lighting!L1065","v":0},{"$f":"Lighting!N1065","v":0},{"$f":"Lighting!O1065","v":0},{"$f":"Lighting!R1065","v":0},{"$f":"Lighting!S1065","v":0},{"$f":"Lighting!U1065","v":""},{"$f":"Lighting!V1065","v":""},{"$f":"Lighting!W1065","v":""},{"$f":"Lighting!X1065","v":0},{"$f":"Lighting!Y1065","v":""},{"$f":"Lighting!AA1065","v":""},{"$f":"Lighting!AC1065","v":""},{"$f":"Lighting!AF1065","v":""},{"$f":"Lighting!AG1065","v":0},{"$f":"Lighting!AH1065","v":0},{"$f":"Lighting!AI1065","v":0}]
[1]
[{"$f":"IF(SUM($A$1223:$A$1235,$A$1237:$A$1249)>0,1,0)","v":0},null,"Appliances, Office Equipment, Etc."]
[{"$f":"IF(SUM($A$1223:$A$1235)>0,1,0)","v":0},null,"Common/Commercial Area Appliances","Location of Equipment",null,"Manufacturer",null,"Model No.","Energy Star?","Qty. of Identical Units","Year Manufactured","Capacity\n(ft.3)"]
[{"$f":"IF(D1223=0,0,1)","v":0},null,"Refrigerator",{"$f":"'Other Equipment'!D25","v":0},null,{"$f":"'Other Equipment'!F25","v":0},null,{"$f":"'Other Equipment'!H25","v":0},{"$f":"'Other Equipment'!I25","v":""},{"$f":"'Other Equipment'!J25","v":""},{"$f":"'Other Equipment'!K25","v":""},{"$f":"'Other Equipment'!L25","v":""}]
[{"$f":"IF(D1224=0,0,1)","v":0},null,"Stove/Range",{"$f":"'Other Equipment'!D26","v":0},null,{"$f":"'Other Equipment'!F26","v":0},null,{"$f":"'Other Equipment'!H26","v":0},"",{"$f":"'Other Equipment'!J26","v":0},{"$f":"'Other Equipment'!K26","v":""},""]
[0,null,"Vending Machine",{"$f":"'Other Equipment'!D27","v":0},null,{"$f":"'Other Equipment'!F27","v":0},null,{"$f":"'Other Equipment'!H27","v":0},"",{"$f":"'Other Equipment'!J27","v":0},{"$f":"'Other Equipment'!K27","v":""},""]
[{"$f":"IF(C1226=0,0,1)","v":0},null,{"$f":"'Other Equipment'!B28","v":0},{"$f":"'Other Equipment'!D28","v":0},null,{"$f":"'Other Equipment'!F28","v":0},null,{"$f":"'Other Equipment'!H28","v":0},{"$f":"'Other Equipment'!I28","v":0},{"$f":"'Other Equipment'!J28","v":0},{"$f":"'Other Equipment'!K28","v":0},{"$f":"'Other Equipment'!L28","v":0}]
[{"$f":"IF(C1227=0,0,1)","v":0},null,{"$f":"'Other Equipment'!B29","v":0},{"$f":"'Other Equipment'!D29","v":0},null,{"$f":"'Other Equipment'!F29","v":0},null,{"$f":"'Other Equipment'!H29","v":0},{"$f":"'Other Equipment'!I29","v":0},{"$f":"'Other Equipment'!J29","v":0},{"$f":"'Other Equipment'!K29","v":0},{"$f":"'Other Equipment'!L29","v":0}]
[0,null,{"$f":"'Other Equipment'!B30","v":0},{"$f":"'Other Equipment'!D30","v":0},null,{"$f":"'Other Equipment'!F30","v":0},null,{"$f":"'Other Equipment'!H30","v":0},{"$f":"'Other Equipment'!I30","v":0},{"$f":"'Other Equipment'!J30","v":0},{"$f":"'Other Equipment'!K30","v":0},{"$f":"'Other Equipment'!L30","v":0}]
[0,null,{"$f":"'Other Equipment'!B31","v":0},{"$f":"'Other Equipment'!D31","v":0},null,{"$f":"'Other Equipment'!F31","v":0},null,{"$f":"'Other Equipment'!H31","v":0},{"$f":"'Other Equipment'!I31","v":0},{"$f":"'Other Equipment'!J31","v":0},{"$f":"'Other Equipment'!K31","v":0},{"$f":"'Other Equipment'!L31","v":0}]
[0,null,{"$f":"'Other Equipment'!B32","v":0},{"$f":"'Other Equipment'!D32","v":0},null,{"$f":"'Other Equipment'!F32","v":0},null,{"$f":"'Other Equipment'!H32","v":0},{"$f":"'Other Equipment'!I32","v":0},{"$f":"'Other Equipment'!J32","v":0},{"$f":"'Other Equipment'!K32","v":0},{"$f":"'Other Equipment'!L32","v":0}]
[0,null,{"$f":"'Other Equipment'!B33","v":0},{"$f":"'Other Equipment'!D33","v":0},null,{"$f":"'Other Equipment'!F33","v":0},null,{"$f":"'Other Equipment'!H33","v":0},{"$f":"'Other Equipment'!I33","v":0},{"$f":"'Other Equipment'!J33","v":0},{"$f":"'Other Equipment'!K33","v":0},{"$f":"'Other Equipment'!L33","v":0}]
[0,null,{"$f":"'Other Equipment'!B34","v":0},{"$f":"'Other Equipment'!D34","v":0},null,{"$f":"'Other Equipment'!F34","v":0},null,{"$f":"'Other Equipment'!H34","v":0},{"$f":"'Other Equipment'!I34","v":0},{"$f":"'Other Equipment'!J34","v":0},{"$f":"'Other Equipment'!K34","v":0},{"$f":"'Other Equipment'!L34","v":0}]
[0,null,{"$f":"'Other Equipment'!B35","v":0},{"$f":"'Other Equipment'!D35","v":0},null,{"$f":"'Other Equipment'!F35","v":0},null,{"$f":"'Other Equipment'!H35","v":0},{"$f":"'Other Equipment'!I35","v":0},{"$f":"'Other Equipment'!J35","v":0},{"$f":"'Other Equipment'!K35","v":0},{"$f":"'Other Equipment'!L35","v":0}]
[0,null,{"$f":"'Other Equipment'!B36","v":0},{"$f":"'Other Equipment'!D36","v":0},null,{"$f":"'Other Equipment'!F36","v":0},null,{"$f":"'Other Equipment'!H36","v":0},{"$f":"'Other Equipment'!I36","v":0},{"$f":"'Other Equipment'!J36","v":0},{"$f":"'Other Equipment'!K36","v":0},{"$f":"'Other Equipment'!L36","v":0}]
[0,null,{"$f":"'Other Equipment'!B37","v":0},{"$f":"'Other Equipment'!D37","v":0},null,{"$f":"'Other Equipment'!F37","v":0},null,{"$f":"'Other Equipment'!H37","v":0},{"$f":"'Other Equipment'!I37","v":""},{"$f":"'Other Equipment'!J37","v":""},{"$f":"'Other Equipment'!K37","v":""},{"$f":"'Other Equipment'!L37","v":""}]
[{"$f":"IF(SUM($A$1237:$A$1249)>0,1,0)","v":0},null,"Tenant/Unit/Apartment Appliances","List Apartment Numbers",null,"Manufacturer",null,"Model No.","Energy Star?","Qty. of Identical Units","Year Manufactured","Capacity\n(ft.3)"]
[{"$f":"IF(D1237=0,0,1)","v":0},null,"Refrigerators",{"$f":"'Other Equipment'!D39","v":0},null,{"$f":"'Other Equipment'!F39","v":0},null,{"$f":"'Other Equipment'!H39","v":0},{"$f":"'Other Equipment'!I39","v":0},{"$f":"'Other Equipment'!J39","v":0},{"$f":"'Other Equipment'!K39","v":0},{"$f":"'Other Equipment'!L39","v":0}]
[{"$f":"IF(D1238=0,0,1)","v":0},null,null,{"$f":"'Other Equipment'!D40","v":0},null,{"$f":"'Other Equipment'!F40","v":0},null,{"$f":"'Other Equipment'!H40","v":0},{"$f":"'Other Equipment'!I40","v":0},{"$f":"'Other Equipment'!J40","v":0},{"$f":"'Other Equipment'!K40","v":0},{"$f":"'Other Equipment'!L40","v":0}]
[0,null,null,{"$f":"'Other Equipment'!D41","v":0},null,{"$f":"'Other Equipment'!F41","v":0},null,{"$f":"'Other Equipment'!H41","v":0},{"$f":"'Other Equipment'!I41","v":0},{"$f":"'Other Equipment'!J41","v":0},{"$f":"'Other Equipment'!K41","v":0},{"$f":"'Other Equipment'!L41","v":0}]
[0,null,null,{"$f":"'Other Equipment'!D42","v":0},null,{"$f":"'Other Equipment'!F42","v":0},null,{"$f":"'Other Equipment'!H42","v":0},{"$f":"'Other Equipment'!I42","v":0},{"$f":"'Other Equipment'!J42","v":0},{"$f":"'Other Equipment'!K42","v":0},{"$f":"'Other Equipment'!L42","v":0}]
[0,null,null,{"$f":"'Other Equipment'!D43","v":0},null,{"$f":"'Other Equipment'!F43","v":0},null,{"$f":"'Other Equipment'!H43","v":0},{"$f":"'Other Equipment'!I43","v":0},{"$f":"'Other Equipment'!J43","v":0},{"$f":"'Other Equipment'!K43","v":0},{"$f":"'Other Equipment'!L43","v":0}]
[0,null,null,{"$f":"'Other Equipment'!D44","v":0},null,{"$f":"'Other Equipment'!F44","v":0},null,{"$f":"'Other Equipment'!H44","v":0},{"$f":"'Other Equipment'!I44","v":0},{"$f":"'Other Equipment'!J44","v":0},{"$f":"'Other Equipment'!K44","v":0},{"$f":"'Other Equipment'!L44","v":0}]
[0,null,"Dishwashers",{"$f":"'Other Equipment'!D45","v":0},null,{"$f":"'Other Equipment'!F45","v":0},null,{"$f":"'Other Equipment'!H45","v":0},{"$f":"'Other Equipment'!I45","v":""},{"$f":"'Other Equipment'!J45","v":""},{"$f":"'Other Equipment'!K45","v":""},""]
[0,null,"Stove/Range",{"$f":"'Other Equipment'!D46","v":0},null,{"$f":"'Other Equipment'!F46","v":0},null,{"$f":"'Other Equipment'!H46","v":0},"",{"$f":"'Other Equipment'!J46","v":""},{"$f":"'Other Equipment'!K46","v":""},""]
[{"$f":"IF(C1245=0,0,1)","v":0},null,{"$f":"'Other Equipment'!B47","v":0},{"$f":"'Other Equipment'!D47","v":0},null,{"$f":"'Other Equipment'!F47","v":0},null,{"$f":"'Other Equipment'!H47","v":0},{"$f":"'Other Equipment'!I47","v":""},{"$f":"'Other Equipment'!J47","v":""},{"$f":"'Other Equipment'!K47","v":""},{"$f":"'Other Equipment'!L47","v":""}]
[{"$f":"IF(C1246=0,0,1)","v":0},null,{"$f":"'Other Equipment'!B48","v":0},{"$f":"'Other Equipment'!D48","v":0},null,{"$f":"'Other Equipment'!F48","v":0},null,{"$f":"'Other Equipment'!H48","v":0},{"$f":"'Other Equipment'!I48","v":0},{"$f":"'Other Equipment'!J48","v":0},{"$f":"'Other Equipment'!K48","v":0},{"$f":"'Other Equipment'!L48","v":0}]
[0,null,{"$f":"'Other Equipment'!B49","v":0},{"$f":"'Other Equipment'!D49","v":0},null,{"$f":"'Other Equipment'!F49","v":0},null,{"$f":"'Other Equipment'!H49","v":0},{"$f":"'Other Equipment'!I49","v":0},{"$f":"'Other Equipment'!J49","v":0},{"$f":"'Other Equipment'!K49","v":0},{"$f":"'Other Equipment'!L49","v":0}]
[0,null,{"$f":"'Other Equipment'!B50","v":0},{"$f":"'Other Equipment'!D50","v":0},null,{"$f":"'Other Equipment'!F50","v":0},null,{"$f":"'Other Equipment'!H50","v":0},{"$f":"'Other Equipment'!I50","v":""},{"$f":"'Other Equipment'!J50","v":""},{"$f":"'Other Equipment'!K50","v":""},{"$f":"'Other Equipment'!L50","v":""}]
[0,null,{"$f":"'Other Equipment'!B51","v":0},{"$f":"'Other Equipment'!D51","v":0},null,{"$f":"'Other Equipment'!F51","v":0},null,{"$f":"'Other Equipment'!H51","v":0},{"$f":"'Other Equipment'!I51","v":""},{"$f":"'Other Equipment'!J51","v":""},{"$f":"'Other Equipment'!K51","v":""},{"$f":"'Other Equipment'!L51","v":""}]
[1]
[{"$f":"IF(SUM($A$1253:$A$1258,$A$1260:$A$1265)>0,1,0)","v":0},null,"Laundry Equipment"]
[{"$f":"IF(SUM($A$1253:$A$1258)>0,1,0)","v":0},null,"Common/Commercial Area Laundry","Manufacturer",null,"Model No.","Energy Star?","Qty. of Identical Units"]
[{"$f":"IF(D1253=0,0,1)","v":0},null,"Washer (Type 1)",{"$f":"'Other Equipment'!D55","v":0},null,{"$f":"'Other Equipment'!F55","v":0},{"$f":"'Other Equipment'!G55","v":0},{"$f":"'Other Equipment'!H55","v":0}]
[{"$f":"IF(D1254=0,0,1)","v":0},null,"Washer (Type 2)",{"$f":"'Other Equipment'!D56","v":0},null,{"$f":"'Other Equipment'!F56","v":0},{"$f":"'Other Equipment'!G56","v":0},{"$f":"'Other Equipment'!H56","v":0}]
[0,null,"Washer (Type 3)",{"$f":"'Other Equipment'!D57","v":0},null,{"$f":"'Other Equipment'!F57","v":0},{"$f":"'Other Equipment'!G57","v":0},{"$f":"'Other Equipment'!H57","v":0}]
[0,null,"Dryer (Type 1)",{"$f":"'Other Equipment'!D58","v":0},null,{"$f":"'Other Equipment'!F58","v":0},"",{"$f":"'Other Equipment'!H58","v":0}]
[0,null,"Dryer (Type 2)",{"$f":"'Other Equipment'!D59","v":0},null,{"$f":"'Other Equipment'!F59","v":0},"",{"$f":"'Other Equipment'!H59","v":""}]
[0,null,"Dryer (Type 3)",{"$f":"'Other Equipment'!D60","v":0},null,{"$f":"'Other Equipment'!F60","v":""},"",{"$f":"'Other Equipment'!H60","v":""}]
[{"$f":"IF(SUM($A$1260:$A$1265)>0,1,0)","v":0},null,"Tenant/Unit/Apartment Laundry","Manufacturer",null,"Model No.","Energy Star?","Qty. of Identical Units"]
[{"$f":"IF(D1260=0,0,1)","v":0},null,"Washer (Type 1)",{"$f":"'Other Equipment'!D62","v":0},null,{"$f":"'Other Equipment'!F62","v":0},{"$f":"'Other Equipment'!G62","v":""},{"$f":"'Other Equipment'!H62","v":0}]
[{"$f":"IF(D1261=0,0,1)","v":0},null,"Washer (Type 2)",{"$f":"'Other Equipment'!D63","v":0},null,{"$f":"'Other Equipment'!F63","v":0},{"$f":"'Other Equipment'!G63","v":""},{"$f":"'Other Equipment'!H63","v":0}]
[0,null,"Washer (Type 3)",{"$f":"'Other Equipment'!D64","v":0},null,{"$f":"'Other Equipment'!F64","v":0},{"$f":"'Other Equipment'!G64","v":0},{"$f":"'Other Equipment'!H64","v":0}]
[0,null,"Dryer (Type 1)",{"$f":"'Other Equipment'!D65","v":0},null,{"$f":"'Other Equipment'!F65","v":0},null,{"$f":"'Other Equipment'!H65","v":0}]
[0,null,"Dryer (Type 2)",{"$f":"'Other Equipment'!D66","v":0},null,{"$f":"'Other Equipment'!F66","v":0},null,{"$f":"'Other Equipment'!H66","v":0}]
[0,null,"Dryer (Type 3)",{"$f":"'Other Equipment'!D67","v":0},null,{"$f":"'Other Equipment'!F67","v":0},null,{"$f":"'Other Equipment'!H67","v":0}]
[1]
[{"$f":"IF(SUM($A$1269:$A$1278)>0,1,0)","v":0},null,"Other Plug Loads"]
[{"$f":"IF(SUM($A$1269:$A$1278)>0,1,0)","v":0},null,"Name ","System Details/Additional Notes"]
[{"$f":"IF(C1269=0,0,1)","v":0},null,{"$f":"'Other Equipment'!B71","v":0},{"$f":"'Other Equipment'!D71:P71","v":0}]
[{"$f":"IF(C1270=0,0,1)","v":0},null,{"$f":"'Other Equipment'!B72","v":0},{"$f":"'Other Equipment'!D72:P72","v":0}]
[0,null,{"$f":"'Other Equipment'!B73","v":0},{"$f":"'Other Equipment'!D73:P73","v":0}]
[0,null,{"$f":"'Other Equipment'!B74","v":0},{"$f":"'Other Equipment'!D74:P74","v":0}]
[0,null,{"$f":"'Other Equipment'!B75","v":0},{"$f":"'Other Equipment'!D75:P75","v":0}]
[0,null,{"$f":"'Other Equipment'!B76","v":0},{"$f":"'Other Equipment'!D76:P76","v":0}]
[0,null,{"$f":"'Other Equipment'!B77","v":0},{"$f":"'Other Equipment'!D77:P77","v":0}]
[0,null,{"$f":"'Other Equipment'!B78","v":0},{"$f":"'Other Equipment'!D78:P78","v":0}]
[0,null,{"$f":"'Other Equipment'!B79","v":0},{"$f":"'Other Equipment'!D79:P79","v":0}]
[0,null,{"$f":"'Other Equipment'!B80","v":0},{"$f":"'Other Equipment'!D80:P80","v":0}]

{"sheet":"Version Log","index":44,"n_rows":12,"n_cols":3,"rows_kept":12,"cut":false,"hidden":true,"merged":[]}
["ERP Tables Version Log"]
["ERP Tables Version","Release Date","List of Updates"]
["4.0","2014-10-15","1) Updated P4P Index envelope measure default life to 30 years\n2) Updated Partner QC tab to flag for greater than 50% Non-IOU savings OR 100,000kWh/2,000 therm IOU minimum. \n3) Added Utility Data row to Partner QC tab for partner to check utility read dates. \n4) Added version date to top of Instructions tab.\n5) Added Version Log tab."]
["4.0","2015-01-27","1) Added reduced wattage T8s to lighting drop down selection. \n2) Added columns L and X to lighting tab. \n3) Added lighting actual wattage note on Partner QC tab. \n3) Added misc. utility tab instructions."]
["4.1","2015-07-01","1) Revised metric to show whole number (savings, IRR)\n2) Revised Lighting Table modeled hours calc\n3) Eliminated IRR QC check\n4) Revised High EUI Incentive Structure to match 15% structure\n5) Revised lighting QC to up to 70% of total savings\n6) Program Guideline reference updates\n7) Logo updated"]
["4.2","2015-07-09","1) Updated so that savings is reflected to the tenth place (e.g. 15.0% vs 15%) per BPU direction "]
["4.2a","2015-08-25","1) Updated Lighting Runtime Hours reference on Lighting tab to exclude exterior lights"]
["4.3","2016-01-08","1) Updated Report Generation scripts to prevent inaccessible rows\n2) Updated Btu/kWh conversion factors on Measure Simulation tab\n3) Added \"Lighting - Unconditioned\" to Lighting end use on Measure Simulation tab\n4) Added \"Receptacles - Unconditioned\" to Plug Load end use on Measure Simulation tab\n5) Modified Lighting tab input scheme\n6) Added surveys for electric/fuel utility rate schedules to Utility Info tab\n7) Added provisions for peak kW entry on Electric Totals and Utility Use Summary tab\n8) Added \"Energy Modeler\" and \"Energy Modeler Credentials\" sections on General Project Information tab\n9) Added \"Cost Source\" column to last table of Measure Simulation tab"]
["4.4","2016-06-03","1) Updated incentive logic to ROUNDDOWN % savings to the nearest whole %"]
["4.5","2016-08-04","1) Added new tab for database export.\n2) Added Manuf and Model column to Measure Description tab\n3) Fixed formulas in 3rd table of Measure Simulation tab"]
["4.6","2017-07-01","1) Changed Incentive #1 to $0.15/SF and $7,500 minimum.\n2) Added \"Initial Application submitted on or before 06/30/2017?\" field on General Project Information sheet to calculate FY17 Incentive #1.\n3) Revised lighting cap language and QC check.\n4) Split out on-site generation from grid-purchased electricity and applied a 1.0 site-to-source ratio to the former.\n5) Added O&M Savings to Simple Payback, IRR and Life Cycle calculations.\n6) COP added to Heating Efficiency selection list.\n7) Updated measure list for Measure Descriptions tab, created filtering logic for Measure Type/Category fields and added VBA to auto-populate capacity, primary and secondary efficiency (fields added) fields with default values (conditional formatting added to indicate when entered values differ from default). Measure Life field on Measure Simulation tab based on new measure list with conditional formatting added to indicate when it differs from (and exceeds) default.\n8) Revised Measure Descriptions Capacity and Efficiency selection lists.\n9) Revised QC logic for measure life check.\n10) End uses in first table of Measure Simulation sheet were split out to align with P4P NC categories.\n11) Split out oil and propane columns on Measure Simulation sheet and all downstream calcs.\n12) Created auto-population provisions for PRE Inspection Request workbook/PDF.\n13) Limited quantity field on Measure Descriptions tab to positive numbers only.\n14) Changed .003413 conversion to .003412 except when related to eQuest established values.\n15) Revised logic on Propane utility tab for MMBtu conversion.\n16) Addressed mis-reference on Other Equipment tab (Bathroom Faucet GPM)."]
["4.7","2017-11-28","Removed MMBTU dropdown option from Utility Info tab. Otherwise the Utility Summary tab further converts therms to MMBTU. And if entered in MMBTU it would cause an error. "]

{"sheet":"Master Export","index":45,"n_rows":28,"n_cols":50,"rows_kept":28,"cut":false,"hidden":false,"merged":[]}
["Pay For Performance - Existing Buildings: FY2018"]
["Project Name",{"$f":"ProjectName","v":0},"Project ID",0,"Street Address",{"$f":"'General Project Information'!C7","v":0},"Project SF",{"$f":"'Project Summary & Incentives'!C50","v":0},"CM Fees",{"$f":"'Measure Simulation'!F79","v":0},"Partner Fees",{"$f":"'Measure Simulation'!F80","v":0},"Total Measure Cost",{"$f":"SUM('Measure Simulation'!F54:F78)","v":0},"Committed Incentive #1",{"$f":"'Project Summary & Incentives'!C53","v":0},"Paid Incentive #1",0,"Committed Incentive #2",{"$f":"'Project Summary & Incentives'!C54","v":0},"Paid Incentive #2",0,"Committed Incentive #3",{"$f":"'Project Summary & Incentives'!C55","v":0},"Paid Incentive #3",0,"Annual Energy Cost",{"$f":"'Project Summary & Incentives'!C43","v":0},"Annual Cost Savings",{"$f":"'Project Summary & Incentives'!C44","v":0},"Internal Rate of Return (IRR)",{"$f":"'Project Summary & Incentives'!C45","v":0},"Life Cycle Savings",{"$f":"'Project Summary & Incentives'!C46","v":0},"Simple Payback (yrs)",{"$f":"'Project Summary & Incentives'!C47","v":0},"Simple Payback with NJCEP Incentive (yrs)",{"$f":"'Project Summary & Incentives'!C48","v":0},"Peak kW",{"$f":"'Electric Totals'!FA25","v":0},"Total % Savings",{"$f":"'Project Summary & Incentives'!E15","v":0},"% Elec",{"$f":"'Project Summary & Incentives'!E6","v":0},"% Gas",{"$f":"'Project Summary & Incentives'!E7","v":0},"% Oil or Propane",{"$f":"'Project Summary & Incentives'!E11+'Project Summary & Incentives'!E12","v":0},"% Other",{"$f":"SUM('Project Summary & Incentives'!E8,'Project Summary & Incentives'!E9,'Project Summary & Incentives'!E10,'Project Summary & Incentives'!E13)","v":0}]
["Measure Name","Measure Description","Manufacturer","Model","Installation Cost per Unit","Annual Energy Cost Savings per Unit","Incentive Per Unit","Simple Payback w/o Incentives","Simple Payback w/ Incentives","Peak Demand Reduction per Unit","Annual Electricity Savings per Unit","Lifetime Electricity Savings per Unit","Annual Gas Savings per Unit","Lifetime Gas Savings per Unit","Annual Propane Savings per Unit","Lifetime Propane Savings per Unit","Annual Oil Savings per Unit","Lifetime Oil Savings per Unit","Other Energy Savings MMBTU per Unit","Other Lifetime Energy Savings MMBTU per Unit","CO2e Emissions Reduction per Unit (lbs)","Quantity Committed","Quantity Installed"]
[{"$f":"'Measure Descriptions'!E7","v":0},{"$f":"'Measure Descriptions'!C7","v":0},{"$f":"'Measure Descriptions'!G7","v":0},{"$f":"'Measure Descriptions'!H7","v":0},{"$f":"IFERROR('Measure Simulation'!F54/V4,0)","v":0},{"$f":"IFERROR('Measure Simulation'!Q54/V4,0)","v":0},{"$f":"IFERROR(((IFERROR(('Project Summary & Incentives'!$D$79*('Project Summary & Incentives'!$C$54+'Project Summary & Incentives'!$C$55)*'Measure Simulation'!G54/'Measure Simulation'!$G$81),0)+IFERROR(('Project Summary & Incentives'!$D$80*('Project Summary & Incentives'!$C$54+'Project Summary & Incentives'!$C$55)*'Measure Simulation'!H54/'Measure Simulation'!$H$81),0)+IFERROR(('Project Summary & Incentives'!$D$81*('Project Summary & Incentives'!$C$54+'Project Summary & Incentives'!$C$55)*'Measure Simulation'!L54/'Measure Simulation'!$L$81),0)+IFERROR(('Project Summary & Incentives'!$D$82*('Project Summary & Incentives'!$C$54+'Project Summary & Incentives'!$C$55)*'Measure Simulation'!M54/'Measure Simulation'!$M$81),0))/V4),0)","v":0},{"$f":"IFERROR('Measure Simulation'!S54,0)","v":0},{"$f":"IFERROR(('Measure Simulation'!F54-(G4*V4))/'Measure Simulation'!Q54,0)","v":0},{"$f":"IFERROR('Measure Simulation'!O54/V4,0)","v":0},{"$f":"IFERROR('Measure Simulation'!G54/V4,0)","v":0},{"$f":"IFERROR('Measure Simulation'!G54*'Measure Simulation'!R54/V4,0)","v":0},{"$f":"IFERROR('Measure Simulation'!H54/V4,0)","v":0},{"$f":"IFERROR('Measure Simulation'!H54*'Measure Simulation'!R54/V4,0)","v":0},{"$f":"IFERROR('Measure Simulation'!M54/V4,0)","v":0},{"$f":"IFERROR('Measure Simulation'!M54*'Measure Simulation'!R54/V4,0)","v":0},{"$f":"IFERROR('Measure Simulation'!L54/V4,0)","v":0},{"$f":"IFERROR('Measure Simulation'!L54*'Measure Simulation'!R54/V4,0)","v":0},{"$f":"IFERROR(SUM('Measure Simulation'!I54,'Measure Simulation'!J54,'Measure Simulation'!K54,'Measure Simulation'!N54)/V4,0)","v":0},{"$f":"IFERROR(SUM('Measure Simulation'!I54,'Measure Simulation'!J54,'Measure Simulation'!K54,'Measure Simulation'!N54)*'Measure Simulation'!R54/V4,0)","v":0},{"$f":"IFERROR((K4*'UDAT Support'!$B$60+M4*'UDAT Support'!$B$59+O4*'UDAT Support'!$B$58+Q4*IF(OR('Utility Info'!$E$7=\"MMBtu\",'Utility Info'!$E$7=\"#2 Oil Gallons\")=TRUE,'UDAT Support'!$B$56,IF('Utility Info'!$E$7=\"#4 Oil Gallons\",'UDAT Support'!$B$55,IF('Utility Info'!$E$7=\"#6 Oil Gallons\",'UDAT Support'!$B$54,0)))+S4*IF(AND('Utility Info'!$F$7<>\"<Not Used>\",'Utility Info'!$F$7<>\"\")=TRUE,'UDAT Support'!$B$57,0))/V4,0)","v":0},{"$f":"IFERROR('Measure Descriptions'!L7*1,1)","v":0},{"$f":"IFERROR('Measure Descriptions'!L7*1,1)","v":0},"Capacity/Size",{"$f":"'Measure Descriptions'!J7","v":0},"Capacity/Size Units",{"$f":"'Measure Descriptions'!K7","v":0},"Efficiency",{"$f":"'Measure Descriptions'!M7","v":0},"Efficiency Units",{"$f":"'Measure Descriptions'!N7","v":0}]
[{"$f":"'Measure Descriptions'!E8","v":0},{"$f":"'Measure Descriptions'!C8","v":0},{"$f":"'Measure Descriptions'!G8","v":0},{"$f":"'Measure Descriptions'!H8","v":0},{"$f":"IFERROR('Measure Simulation'!F55/V5,0)","v":0},{"$f":"IFERROR('Measure Simulation'!Q55/V5,0)","v":0},{"$f":"IFERROR(((IFERROR(('Project Summary & Incentives'!$D$79*('Project Summary & Incentives'!$C$54+'Project Summary & Incentives'!$C$55)*'Measure Simulation'!G55/'Measure Simulation'!$G$81),0)+IFERROR(('Project Summary & Incentives'!$D$80*('Project Summary & Incentives'!$C$54+'Project Summary & Incentives'!$C$55)*'Measure Simulation'!H55/'Measure Simulation'!$H$81),0)+IFERROR(('Project Summary & Incentives'!$D$81*('Project Summary & Incentives'!$C$54+'Project Summary & Incentives'!$C$55)*'Measure Simulation'!L55/'Measure Simulation'!$L$81),0)+IFERROR(('Project Summary & Incentives'!$D$82*('Project Summary & Incentives'!$C$54+'Project Summary & Incentives'!$C$55)*'Measure Simulation'!M55/'Measure Simulation'!$M$81),0))/V5),0)","v":0},{"$f":"IFERROR('Measure Simulation'!S55,0)","v":0},{"$f":"IFERROR(('Measure Simulation'!F55-(G5*V5))/'Measure Simulation'!Q55,0)","v":0},{"$f":"IFERROR('Measure Simulation'!O55/V5,0)","v":0},{"$f":"IFERROR('Measure Simulation'!G55/V5,0)","v":0},{"$f":"IFERROR('Measure Simulation'!G55*'Measure Simulation'!R55/V5,0)","v":0},{"$f":"IFERROR('Measure Simulation'!H55/V5,0)","v":0},{"$f":"IFERROR('Measure Simulation'!H55*'Measure Simulation'!R55/V5,0)","v":0},{"$f":"IFERROR('Measure Simulation'!M55/V5,0)","v":0},{"$f":"IFERROR('Measure Simulation'!M55*'Measure Simulation'!R55/V5,0)","v":0},{"$f":"IFERROR('Measure Simulation'!L55/V5,0)","v":0},{"$f":"IFERROR('Measure Simulation'!L55*'Measure Simulation'!R55/V5,0)","v":0},{"$f":"IFERROR(SUM('Measure Simulation'!I55,'Measure Simulation'!J55,'Measure Simulation'!K55,'Measure Simulation'!N55)/V5,0)","v":0},{"$f":"IFERROR(SUM('Measure Simulation'!I55,'Measure Simulation'!J55,'Measure Simulation'!K55,'Measure Simulation'!N55)*'Measure Simulation'!R55/V5,0)","v":0},{"$f":"IFERROR((K5*'UDAT Support'!$B$60+M5*'UDAT Support'!$B$59+O5*'UDAT Support'!$B$58+Q5*IF(OR('Utility Info'!$E$7=\"MMBtu\",'Utility Info'!$E$7=\"#2 Oil Gallons\")=TRUE,'UDAT Support'!$B$56,IF('Utility Info'!$E$7=\"#4 Oil Gallons\",'UDAT Support'!$B$55,IF('Utility Info'!$E$7=\"#6 Oil Gallons\",'UDAT Support'!$B$54,0)))+S5*IF(AND('Utility Info'!$F$7<>\"<Not Used>\",'Utility Info'!$F$7<>\"\")=TRUE,'UDAT Support'!$B$57,0))/V5,0)","v":0},{"$f":"IFERROR('Measure Descriptions'!L8*1,1)","v":0},{"$f":"IFERROR('Measure Descriptions'!L8*1,1)","v":0},"Capacity/Size",{"$f":"'Measure Descriptions'!J8","v":0},"Capacity/Size Units",{"$f":"'Measure Descriptions'!K8","v":0},"Efficiency",{"$f":"'Measure Descriptions'!M8","v":0},"Efficiency Units",{"$f":"'Measure Descriptions'!N8","v":0}]
[{"$f":"'Measure Descriptions'!E9","v":0},{"$f":"'Measure Descriptions'!C9","v":0},{"$f":"'Measure Descriptions'!G9","v":0},{"$f":"'Measure Descriptions'!H9","v":0},{"$f":"IFERROR('Measure Simulation'!F56/V6,0)","v":0},{"$f":"IFERROR('Measure Simulation'!Q56/V6,0)","v":0},{"$f":"IFERROR(((IFERROR(('Project Summary & Incentives'!$D$79*('Project Summary & Incentives'!$C$54+'Project Summary & Incentives'!$C$55)*'Measure Simulation'!G56/'Measure Simulation'!$G$81),0)+IFERROR(('Project Summary & Incentives'!$D$80*('Project Summary & Incentives'!$C$54+'Project Summary & Incentives'!$C$55)*'Measure Simulation'!H56/'Measure Simulation'!$H$81),0)+IFERROR(('Project Summary & Incentives'!$D$81*('Project Summary & Incentives'!$C$54+'Project Summary & Incentives'!$C$55)*'Measure Simulation'!L56/'Measure Simulation'!$L$81),0)+IFERROR(('Project Summary & Incentives'!$D$82*('Project Summary & Incentives'!$C$54+'Project Summary & Incentives'!$C$55)*'Measure Simulation'!M56/'Measure Simulation'!$M$81),0))/V6),0)","v":0},{"$f":"IFERROR('Measure Simulation'!S56,0)","v":0},{"$f":"IFERROR(('Measure Simulation'!F56-(G6*V6))/'Measure Simulation'!Q56,0)","v":0},{"$f":"IFERROR('Measure Simulation'!O56/V6,0)","v":0},{"$f":"IFERROR('Measure Simulation'!G56/V6,0)","v":0},{"$f":"IFERROR('Measure Simulation'!G56*'Measure Simulation'!R56/V6,0)","v":0},{"$f":"IFERROR('Measure Simulation'!H56/V6,0)","v":0},{"$f":"IFERROR('Measure Simulation'!H56*'Measure Simulation'!R56/V6,0)","v":0},{"$f":"IFERROR('Measure Simulation'!M56/V6,0)","v":0},{"$f":"IFERROR('Measure Simulation'!M56*'Measure Simulation'!R56/V6,0)","v":0},{"$f":"IFERROR('Measure Simulation'!L56/V6,0)","v":0},{"$f":"IFERROR('Measure Simulation'!L56*'Measure Simulation'!R56/V6,0)","v":0},{"$f":"IFERROR(SUM('Measure Simulation'!I56,'Measure Simulation'!J56,'Measure Simulation'!K56,'Measure Simulation'!N56)/V6,0)","v":0},{"$f":"IFERROR(SUM('Measure Simulation'!I56,'Measure Simulation'!J56,'Measure Simulation'!K56,'Measure Simulation'!N56)*'Measure Simulation'!R56/V6,0)","v":0},{"$f":"IFERROR((K6*'UDAT Support'!$B$60+M6*'UDAT Support'!$B$59+O6*'UDAT Support'!$B$58+Q6*IF(OR('Utility Info'!$E$7=\"MMBtu\",'Utility Info'!$E$7=\"#2 Oil Gallons\")=TRUE,'UDAT Support'!$B$56,IF('Utility Info'!$E$7=\"#4 Oil Gallons\",'UDAT Support'!$B$55,IF('Utility Info'!$E$7=\"#6 Oil Gallons\",'UDAT Support'!$B$54,0)))+S6*IF(AND('Utility Info'!$F$7<>\"<Not Used>\",'Utility Info'!$F$7<>\"\")=TRUE,'UDAT Support'!$B$57,0))/V6,0)","v":0},{"$f":"IFERROR('Measure Descriptions'!L9*1,1)","v":0},{"$f":"IFERROR('Measure Descriptions'!L9*1,1)","v":0},"Capacity/Size",{"$f":"'Measure Descriptions'!J9","v":0},"Capacity/Size Units",{"$f":"'Measure Descriptions'!K9","v":0},"Efficiency",{"$f":"'Measure Descriptions'!M9","v":0},"Efficiency Units",{"$f":"'Measure Descriptions'!N9","v":0}]
[{"$f":"'Measure Descriptions'!E10","v":0},{"$f":"'Measure Descriptions'!C10","v":0},{"$f":"'Measure Descriptions'!G10","v":0},{"$f":"'Measure Descriptions'!H10","v":0},{"$f":"IFERROR('Measure Simulation'!F57/V7,0)","v":0},{"$f":"IFERROR('Measure Simulation'!Q57/V7,0)","v":0},{"$f":"IFERROR(((IFERROR(('Project Summary & Incentives'!$D$79*('Project Summary & Incentives'!$C$54+'Project Summary & Incentives'!$C$55)*'Measure Simulation'!G57/'Measure Simulation'!$G$81),0)+IFERROR(('Project Summary & Incentives'!$D$80*('Project Summary & Incentives'!$C$54+'Project Summary & Incentives'!$C$55)*'Measure Simulation'!H57/'Measure Simulation'!$H$81),0)+IFERROR(('Project Summary & Incentives'!$D$81*('Project Summary & Incentives'!$C$54+'Project Summary & Incentives'!$C$55)*'Measure Simulation'!L57/'Measure Simulation'!$L$81),0)+IFERROR(('Project Summary & Incentives'!$D$82*('Project Summary & Incentives'!$C$54+'Project Summary & Incentives'!$C$55)*'Measure Simulation'!M57/'Measure Simulation'!$M$81),0))/V7),0)","v":0},{"$f":"IFERROR('Measure Simulation'!S57,0)","v":0},{"$f":"IFERROR(('Measure Simulation'!F57-(G7*V7))/'Measure Simulation'!Q57,0)","v":0},{"$f":"IFERROR('Measure Simulation'!O57/V7,0)","v":0},{"$f":"IFERROR('Measure Simulation'!G57/V7,0)","v":0},{"$f":"IFERROR('Measure Simulation'!G57*'Measure Simulation'!R57/V7,0)","v":0},{"$f":"IFERROR('Measure Simulation'!H57/V7,0)","v":0},{"$f":"IFERROR('Measure Simulation'!H57*'Measure Simulation'!R57/V7,0)","v":0},{"$f":"IFERROR('Measure Simulation'!M57/V7,0)","v":0},{"$f":"IFERROR('Measure Simulation'!M57*'Measure Simulation'!R57/V7,0)","v":0},{"$f":"IFERROR('Measure Simulation'!L57/V7,0)","v":0},{"$f":"IFERROR('Measure Simulation'!L57*'Measure Simulation'!R57/V7,0)","v":0},{"$f":"IFERROR(SUM('Measure Simulation'!I57,'Measure Simulation'!J57,'Measure Simulation'!K57,'Measure Simulation'!N57)/V7,0)","v":0},{"$f":"IFERROR(SUM('Measure Simulation'!I57,'Measure Simulation'!J57,'Measure Simulation'!K57,'Measure Simulation'!N57)*'Measure Simulation'!R57/V7,0)","v":0},{"$f":"IFERROR((K7*'UDAT Support'!$B$60+M7*'UDAT Support'!$B$59+O7*'UDAT Support'!$B$58+Q7*IF(OR('Utility Info'!$E$7=\"MMBtu\",'Utility Info'!$E$7=\"#2 Oil Gallons\")=TRUE,'UDAT Support'!$B$56,IF('Utility Info'!$E$7=\"#4 Oil Gallons\",'UDAT Support'!$B$55,IF('Utility Info'!$E$7=\"#6 Oil Gallons\",'UDAT Support'!$B$54,0)))+S7*IF(AND('Utility Info'!$F$7<>\"<Not Used>\",'Utility Info'!$F$7<>\"\")=TRUE,'UDAT Support'!$B$57,0))/V7,0)","v":0},{"$f":"IFERROR('Measure Descriptions'!L10*1,1)","v":0},{"$f":"IFERROR('Measure Descriptions'!L10*1,1)","v":0},"Capacity/Size",{"$f":"'Measure Descriptions'!J10","v":0},"Capacity/Size Units",{"$f":"'Measure Descriptions'!K10","v":0},"Efficiency",{"$f":"'Measure Descriptions'!M10","v":0},"Efficiency Units",{"$f":"'Measure Descriptions'!N10","v":0}]
[{"$f":"'Measure Descriptions'!E11","v":0},{"$f":"'Measure Descriptions'!C11","v":0},{"$f":"'Measure Descriptions'!G11","v":0},{"$f":"'Measure Descriptions'!H11","v":0},{"$f":"IFERROR('Measure Simulation'!F58/V8,0)","v":0},{"$f":"IFERROR('Measure Simulation'!Q58/V8,0)","v":0},{"$f":"IFERROR(((IFERROR(('Project Summary & Incentives'!$D$79*('Project Summary & Incentives'!$C$54+'Project Summary & Incentives'!$C$55)*'Measure Simulation'!G58/'Measure Simulation'!$G$81),0)+IFERROR(('Project Summary & Incentives'!$D$80*('Project Summary & Incentives'!$C$54+'Project Summary & Incentives'!$C$55)*'Measure Simulation'!H58/'Measure Simulation'!$H$81),0)+IFERROR(('Project Summary & Incentives'!$D$81*('Project Summary & Incentives'!$C$54+'Project Summary & Incentives'!$C$55)*'Measure Simulation'!L58/'Measure Simulation'!$L$81),0)+IFERROR(('Project Summary & Incentives'!$D$82*('Project Summary & Incentives'!$C$54+'Project Summary & Incentives'!$C$55)*'Measure Simulation'!M58/'Measure Simulation'!$M$81),0))/V8),0)","v":0},{"$f":"IFERROR('Measure Simulation'!S58,0)","v":0},{"$f":"IFERROR(('Measure Simulation'!F58-(G8*V8))/'Measure Simulation'!Q58,0)","v":0},{"$f":"IFERROR('Measure Simulation'!O58/V8,0)","v":0},{"$f":"IFERROR('Measure Simulation'!G58/V8,0)","v":0},{"$f":"IFERROR('Measure Simulation'!G58*'Measure Simulation'!R58/V8,0)","v":0},{"$f":"IFERROR('Measure Simulation'!H58/V8,0)","v":0},{"$f":"IFERROR('Measure Simulation'!H58*'Measure Simulation'!R58/V8,0)","v":0},{"$f":"IFERROR('Measure Simulation'!M58/V8,0)","v":0},{"$f":"IFERROR('Measure Simulation'!M58*'Measure Simulation'!R58/V8,0)","v":0},{"$f":"IFERROR('Measure Simulation'!L58/V8,0)","v":0},{"$f":"IFERROR('Measure Simulation'!L58*'Measure Simulation'!R58/V8,0)","v":0},{"$f":"IFERROR(SUM('Measure Simulation'!I58,'Measure Simulation'!J58,'Measure Simulation'!K58,'Measure Simulation'!N58)/V8,0)","v":0},{"$f":"IFERROR(SUM('Measure Simulation'!I58,'Measure Simulation'!J58,'Measure Simulation'!K58,'Measure Simulation'!N58)*'Measure Simulation'!R58/V8,0)","v":0},{"$f":"IFERROR((K8*'UDAT Support'!$B$60+M8*'UDAT Support'!$B$59+O8*'UDAT Support'!$B$58+Q8*IF(OR('Utility Info'!$E$7=\"MMBtu\",'Utility Info'!$E$7=\"#2 Oil Gallons\")=TRUE,'UDAT Support'!$B$56,IF('Utility Info'!$E$7=\"#4 Oil Gallons\",'UDAT Support'!$B$55,IF('Utility Info'!$E$7=\"#6 Oil Gallons\",'UDAT Support'!$B$54,0)))+S8*IF(AND('Utility Info'!$F$7<>\"<Not Used>\",'Utility Info'!$F$7<>\"\")=TRUE,'UDAT Support'!$B$57,0))/V8,0)","v":0},{"$f":"IFERROR('Measure Descriptions'!L11*1,1)","v":0},{"$f":"IFERROR('Measure Descriptions'!L11*1,1)","v":0},"Capacity/Size",{"$f":"'Measure Descriptions'!J11","v":0},"Capacity/Size Units",{"$f":"'Measure Descriptions'!K11","v":0},"Efficiency",{"$f":"'Measure Descriptions'!M11","v":0},"Efficiency Units",{"$f":"'Measure Descriptions'!N11","v":0}]
[{"$f":"'Measure Descriptions'!E12","v":0},{"$f":"'Measure Descriptions'!C12","v":0},{"$f":"'Measure Descriptions'!G12","v":0},{"$f":"'Measure Descriptions'!H12","v":0},{"$f":"IFERROR('Measure Simulation'!F59/V9,0)","v":0},{"$f":"IFERROR('Measure Simulation'!Q59/V9,0)","v":0},{"$f":"IFERROR(((IFERROR(('Project Summary & Incentives'!$D$79*('Project Summary & Incentives'!$C$54+'Project Summary & Incentives'!$C$55)*'Measure Simulation'!G59/'Measure Simulation'!$G$81),0)+IFERROR(('Project Summary & Incentives'!$D$80*('Project Summary & Incentives'!$C$54+'Project Summary & Incentives'!$C$55)*'Measure Simulation'!H59/'Measure Simulation'!$H$81),0)+IFERROR(('Project Summary & Incentives'!$D$81*('Project Summary & Incentives'!$C$54+'Project Summary & Incentives'!$C$55)*'Measure Simulation'!L59/'Measure Simulation'!$L$81),0)+IFERROR(('Project Summary & Incentives'!$D$82*('Project Summary & Incentives'!$C$54+'Project Summary & Incentives'!$C$55)*'Measure Simulation'!M59/'Measure Simulation'!$M$81),0))/V9),0)","v":0},{"$f":"IFERROR('Measure Simulation'!S59,0)","v":0},{"$f":"IFERROR(('Measure Simulation'!F59-(G9*V9))/'Measure Simulation'!Q59,0)","v":0},{"$f":"IFERROR('Measure Simulation'!O59/V9,0)","v":0},{"$f":"IFERROR('Measure Simulation'!G59/V9,0)","v":0},{"$f":"IFERROR('Measure Simulation'!G59*'Measure Simulation'!R59/V9,0)","v":0},{"$f":"IFERROR('Measure Simulation'!H59/V9,0)","v":0},{"$f":"IFERROR('Measure Simulation'!H59*'Measure Simulation'!R59/V9,0)","v":0},{"$f":"IFERROR('Measure Simulation'!M59/V9,0)","v":0},{"$f":"IFERROR('Measure Simulation'!M59*'Measure Simulation'!R59/V9,0)","v":0},{"$f":"IFERROR('Measure Simulation'!L59/V9,0)","v":0},{"$f":"IFERROR('Measure Simulation'!L59*'Measure Simulation'!R59/V9,0)","v":0},{"$f":"IFERROR(SUM('Measure Simulation'!I59,'Measure Simulation'!J59,'Measure Simulation'!K59,'Measure Simulation'!N59)/V9,0)","v":0},{"$f":"IFERROR(SUM('Measure Simulation'!I59,'Measure Simulation'!J59,'Measure Simulation'!K59,'Measure Simulation'!N59)*'Measure Simulation'!R59/V9,0)","v":0},{"$f":"IFERROR((K9*'UDAT Support'!$B$60+M9*'UDAT Support'!$B$59+O9*'UDAT Support'!$B$58+Q9*IF(OR('Utility Info'!$E$7=\"MMBtu\",'Utility Info'!$E$7=\"#2 Oil Gallons\")=TRUE,'UDAT Support'!$B$56,IF('Utility Info'!$E$7=\"#4 Oil Gallons\",'UDAT Support'!$B$55,IF('Utility Info'!$E$7=\"#6 Oil Gallons\",'UDAT Support'!$B$54,0)))+S9*IF(AND('Utility Info'!$F$7<>\"<Not Used>\",'Utility Info'!$F$7<>\"\")=TRUE,'UDAT Support'!$B$57,0))/V9,0)","v":0},{"$f":"IFERROR('Measure Descriptions'!L12*1,1)","v":0},{"$f":"IFERROR('Measure Descriptions'!L12*1,1)","v":0},"Capacity/Size",{"$f":"'Measure Descriptions'!J12","v":0},"Capacity/Size Units",{"$f":"'Measure Descriptions'!K12","v":0},"Efficiency",{"$f":"'Measure Descriptions'!M12","v":0},"Efficiency Units",{"$f":"'Measure Descriptions'!N12","v":0}]
[{"$f":"'Measure Descriptions'!E13","v":0},{"$f":"'Measure Descriptions'!C13","v":0},{"$f":"'Measure Descriptions'!G13","v":0},{"$f":"'Measure Descriptions'!H13","v":0},{"$f":"IFERROR('Measure Simulation'!F60/V10,0)","v":0},{"$f":"IFERROR('Measure Simulation'!Q60/V10,0)","v":0},{"$f":"IFERROR(((IFERROR(('Project Summary & Incentives'!$D$79*('Project Summary & Incentives'!$C$54+'Project Summary & Incentives'!$C$55)*'Measure Simulation'!G60/'Measure Simulation'!$G$81),0)+IFERROR(('Project Summary & Incentives'!$D$80*('Project Summary & Incentives'!$C$54+'Project Summary & Incentives'!$C$55)*'Measure Simulation'!H60/'Measure Simulation'!$H$81),0)+IFERROR(('Project Summary & Incentives'!$D$81*('Project Summary & Incentives'!$C$54+'Project Summary & Incentives'!$C$55)*'Measure Simulation'!L60/'Measure Simulation'!$L$81),0)+IFERROR(('Project Summary & Incentives'!$D$82*('Project Summary & Incentives'!$C$54+'Project Summary & Incentives'!$C$55)*'Measure Simulation'!M60/'Measure Simulation'!$M$81),0))/V10),0)","v":0},{"$f":"IFERROR('Measure Simulation'!S60,0)","v":0},{"$f":"IFERROR(('Measure Simulation'!F60-(G10*V10))/'Measure Simulation'!Q60,0)","v":0},{"$f":"IFERROR('Measure Simulation'!O60/V10,0)","v":0},{"$f":"IFERROR('Measure Simulation'!G60/V10,0)","v":0},{"$f":"IFERROR('Measure Simulation'!G60*'Measure Simulation'!R60/V10,0)","v":0},{"$f":"IFERROR('Measure Simulation'!H60/V10,0)","v":0},{"$f":"IFERROR('Measure Simulation'!H60*'Measure Simulation'!R60/V10,0)","v":0},{"$f":"IFERROR('Measure Simulation'!M60/V10,0)","v":0},{"$f":"IFERROR('Measure Simulation'!M60*'Measure Simulation'!R60/V10,0)","v":0},{"$f":"IFERROR('Measure Simulation'!L60/V10,0)","v":0},{"$f":"IFERROR('Measure Simulation'!L60*'Measure Simulation'!R60/V10,0)","v":0},{"$f":"IFERROR(SUM('Measure Simulation'!I60,'Measure Simulation'!J60,'Measure Simulation'!K60,'Measure Simulation'!N60)/V10,0)","v":0},{"$f":"IFERROR(SUM('Measure Simulation'!I60,'Measure Simulation'!J60,'Measure Simulation'!K60,'Measure Simulation'!N60)*'Measure Simulation'!R60/V10,0)","v":0},{"$f":"IFERROR((K10*'UDAT Support'!$B$60+M10*'UDAT Support'!$B$59+O10*'UDAT Support'!$B$58+Q10*IF(OR('Utility Info'!$E$7=\"MMBtu\",'Utility Info'!$E$7=\"#2 Oil Gallons\")=TRUE,'UDAT Support'!$B$56,IF('Utility Info'!$E$7=\"#4 Oil Gallons\",'UDAT Support'!$B$55,IF('Utility Info'!$E$7=\"#6 Oil Gallons\",'UDAT Support'!$B$54,0)))+S10*IF(AND('Utility Info'!$F$7<>\"<Not Used>\",'Utility Info'!$F$7<>\"\")=TRUE,'UDAT Support'!$B$57,0))/V10,0)","v":0},{"$f":"IFERROR('Measure Descriptions'!L13*1,1)","v":0},{"$f":"IFERROR('Measure Descriptions'!L13*1,1)","v":0},"Capacity/Size",{"$f":"'Measure Descriptions'!J13","v":0},"Capacity/Size Units",{"$f":"'Measure Descriptions'!K13","v":0},"Efficiency",{"$f":"'Measure Descriptions'!M13","v":0},"Efficiency Units",{"$f":"'Measure Descriptions'!N13","v":0}]
[{"$f":"'Measure Descriptions'!E14","v":0},{"$f":"'Measure Descriptions'!C14","v":0},{"$f":"'Measure Descriptions'!G14","v":0},{"$f":"'Measure Descriptions'!H14","v":0},{"$f":"IFERROR('Measure Simulation'!F61/V11,0)","v":0},{"$f":"IFERROR('Measure Simulation'!Q61/V11,0)","v":0},{"$f":"IFERROR(((IFERROR(('Project Summary & Incentives'!$D$79*('Project Summary & Incentives'!$C$54+'Project Summary & Incentives'!$C$55)*'Measure Simulation'!G61/'Measure Simulation'!$G$81),0)+IFERROR(('Project Summary & Incentives'!$D$80*('Project Summary & Incentives'!$C$54+'Project Summary & Incentives'!$C$55)*'Measure Simulation'!H61/'Measure Simulation'!$H$81),0)+IFERROR(('Project Summary & Incentives'!$D$81*('Project Summary & Incentives'!$C$54+'Project Summary & Incentives'!$C$55)*'Measure Simulation'!L61/'Measure Simulation'!$L$81),0)+IFERROR(('Project Summary & Incentives'!$D$82*('Project Summary & Incentives'!$C$54+'Project Summary & Incentives'!$C$55)*'Measure Simulation'!M61/'Measure Simulation'!$M$81),0))/V11),0)","v":0},{"$f":"IFERROR('Measure Simulation'!S61,0)","v":0},{"$f":"IFERROR(('Measure Simulation'!F61-(G11*V11))/'Measure Simulation'!Q61,0)","v":0},{"$f":"IFERROR('Measure Simulation'!O61/V11,0)","v":0},{"$f":"IFERROR('Measure Simulation'!G61/V11,0)","v":0},{"$f":"IFERROR('Measure Simulation'!G61*'Measure Simulation'!R61/V11,0)","v":0},{"$f":"IFERROR('Measure Simulation'!H61/V11,0)","v":0},{"$f":"IFERROR('Measure Simulation'!H61*'Measure Simulation'!R61/V11,0)","v":0},{"$f":"IFERROR('Measure Simulation'!M61/V11,0)","v":0},{"$f":"IFERROR('Measure Simulation'!M61*'Measure Simulation'!R61/V11,0)","v":0},{"$f":"IFERROR('Measure Simulation'!L61/V11,0)","v":0},{"$f":"IFERROR('Measure Simulation'!L61*'Measure Simulation'!R61/V11,0)","v":0},{"$f":"IFERROR(SUM('Measure Simulation'!I61,'Measure Simulation'!J61,'Measure Simulation'!K61,'Measure Simulation'!N61)/V11,0)","v":0},{"$f":"IFERROR(SUM('Measure Simulation'!I61,'Measure Simulation'!J61,'Measure Simulation'!K61,'Measure Simulation'!N61)*'Measure Simulation'!R61/V11,0)","v":0},{"$f":"IFERROR((K11*'UDAT Support'!$B$60+M11*'UDAT Support'!$B$59+O11*'UDAT Support'!$B$58+Q11*IF(OR('Utility Info'!$E$7=\"MMBtu\",'Utility Info'!$E$7=\"#2 Oil Gallons\")=TRUE,'UDAT Support'!$B$56,IF('Utility Info'!$E$7=\"#4 Oil Gallons\",'UDAT Support'!$B$55,IF('Utility Info'!$E$7=\"#6 Oil Gallons\",'UDAT Support'!$B$54,0)))+S11*IF(AND('Utility Info'!$F$7<>\"<Not Used>\",'Utility Info'!$F$7<>\"\")=TRUE,'UDAT Support'!$B$57,0))/V11,0)","v":0},{"$f":"IFERROR('Measure Descriptions'!L14*1,1)","v":0},{"$f":"IFERROR('Measure Descriptions'!L14*1,1)","v":0},"Capacity/Size",{"$f":"'Measure Descriptions'!J14","v":0},"Capacity/Size Units",{"$f":"'Measure Descriptions'!K14","v":0},"Efficiency",{"$f":"'Measure Descriptions'!M14","v":0},"Efficiency Units",{"$f":"'Measure Descriptions'!N14","v":0}]
[{"$f":"'Measure Descriptions'!E15","v":0},{"$f":"'Measure Descriptions'!C15","v":0},{"$f":"'Measure Descriptions'!G15","v":0},{"$f":"'Measure Descriptions'!H15","v":0},{"$f":"IFERROR('Measure Simulation'!F62/V12,0)","v":0},{"$f":"IFERROR('Measure Simulation'!Q62/V12,0)","v":0},{"$f":"IFERROR(((IFERROR(('Project Summary & Incentives'!$D$79*('Project Summary & Incentives'!$C$54+'Project Summary & Incentives'!$C$55)*'Measure Simulation'!G62/'Measure Simulation'!$G$81),0)+IFERROR(('Project Summary & Incentives'!$D$80*('Project Summary & Incentives'!$C$54+'Project Summary & Incentives'!$C$55)*'Measure Simulation'!H62/'Measure Simulation'!$H$81),0)+IFERROR(('Project Summary & Incentives'!$D$81*('Project Summary & Incentives'!$C$54+'Project Summary & Incentives'!$C$55)*'Measure Simulation'!L62/'Measure Simulation'!$L$81),0)+IFERROR(('Project Summary & Incentives'!$D$82*('Project Summary & Incentives'!$C$54+'Project Summary & Incentives'!$C$55)*'Measure Simulation'!M62/'Measure Simulation'!$M$81),0))/V12),0)","v":0},{"$f":"IFERROR('Measure Simulation'!S62,0)","v":0},{"$f":"IFERROR(('Measure Simulation'!F62-(G12*V12))/'Measure Simulation'!Q62,0)","v":0},{"$f":"IFERROR('Measure Simulation'!O62/V12,0)","v":0},{"$f":"IFERROR('Measure Simulation'!G62/V12,0)","v":0},{"$f":"IFERROR('Measure Simulation'!G62*'Measure Simulation'!R62/V12,0)","v":0},{"$f":"IFERROR('Measure Simulation'!H62/V12,0)","v":0},{"$f":"IFERROR('Measure Simulation'!H62*'Measure Simulation'!R62/V12,0)","v":0},{"$f":"IFERROR('Measure Simulation'!M62/V12,0)","v":0},{"$f":"IFERROR('Measure Simulation'!M62*'Measure Simulation'!R62/V12,0)","v":0},{"$f":"IFERROR('Measure Simulation'!L62/V12,0)","v":0},{"$f":"IFERROR('Measure Simulation'!L62*'Measure Simulation'!R62/V12,0)","v":0},{"$f":"IFERROR(SUM('Measure Simulation'!I62,'Measure Simulation'!J62,'Measure Simulation'!K62,'Measure Simulation'!N62)/V12,0)","v":0},{"$f":"IFERROR(SUM('Measure Simulation'!I62,'Measure Simulation'!J62,'Measure Simulation'!K62,'Measure Simulation'!N62)*'Measure Simulation'!R62/V12,0)","v":0},{"$f":"IFERROR((K12*'UDAT Support'!$B$60+M12*'UDAT Support'!$B$59+O12*'UDAT Support'!$B$58+Q12*IF(OR('Utility Info'!$E$7=\"MMBtu\",'Utility Info'!$E$7=\"#2 Oil Gallons\")=TRUE,'UDAT Support'!$B$56,IF('Utility Info'!$E$7=\"#4 Oil Gallons\",'UDAT Support'!$B$55,IF('Utility Info'!$E$7=\"#6 Oil Gallons\",'UDAT Support'!$B$54,0)))+S12*IF(AND('Utility Info'!$F$7<>\"<Not Used>\",'Utility Info'!$F$7<>\"\")=TRUE,'UDAT Support'!$B$57,0))/V12,0)","v":0},{"$f":"IFERROR('Measure Descriptions'!L15*1,1)","v":0},{"$f":"IFERROR('Measure Descriptions'!L15*1,1)","v":0},"Capacity/Size",{"$f":"'Measure Descriptions'!J15","v":0},"Capacity/Size Units",{"$f":"'Measure Descriptions'!K15","v":0},"Efficiency",{"$f":"'Measure Descriptions'!M15","v":0},"Efficiency Units",{"$f":"'Measure Descriptions'!N15","v":0}]
[{"$f":"'Measure Descriptions'!E16","v":0},{"$f":"'Measure Descriptions'!C16","v":0},{"$f":"'Measure Descriptions'!G16","v":0},{"$f":"'Measure Descriptions'!H16","v":0},{"$f":"IFERROR('Measure Simulation'!F63/V13,0)","v":0},{"$f":"IFERROR('Measure Simulation'!Q63/V13,0)","v":0},{"$f":"IFERROR(((IFERROR(('Project Summary & Incentives'!$D$79*('Project Summary & Incentives'!$C$54+'Project Summary & Incentives'!$C$55)*'Measure Simulation'!G63/'Measure Simulation'!$G$81),0)+IFERROR(('Project Summary & Incentives'!$D$80*('Project Summary & Incentives'!$C$54+'Project Summary & Incentives'!$C$55)*'Measure Simulation'!H63/'Measure Simulation'!$H$81),0)+IFERROR(('Project Summary & Incentives'!$D$81*('Project Summary & Incentives'!$C$54+'Project Summary & Incentives'!$C$55)*'Measure Simulation'!L63/'Measure Simulation'!$L$81),0)+IFERROR(('Project Summary & Incentives'!$D$82*('Project Summary & Incentives'!$C$54+'Project Summary & Incentives'!$C$55)*'Measure Simulation'!M63/'Measure Simulation'!$M$81),0))/V13),0)","v":0},{"$f":"IFERROR('Measure Simulation'!S63,0)","v":0},{"$f":"IFERROR(('Measure Simulation'!F63-(G13*V13))/'Measure Simulation'!Q63,0)","v":0},{"$f":"IFERROR('Measure Simulation'!O63/V13,0)","v":0},{"$f":"IFERROR('Measure Simulation'!G63/V13,0)","v":0},{"$f":"IFERROR('Measure Simulation'!G63*'Measure Simulation'!R63/V13,0)","v":0},{"$f":"IFERROR('Measure Simulation'!H63/V13,0)","v":0},{"$f":"IFERROR('Measure Simulation'!H63*'Measure Simulation'!R63/V13,0)","v":0},{"$f":"IFERROR('Measure Simulation'!M63/V13,0)","v":0},{"$f":"IFERROR('Measure Simulation'!M63*'Measure Simulation'!R63/V13,0)","v":0},{"$f":"IFERROR('Measure Simulation'!L63/V13,0)","v":0},{"$f":"IFERROR('Measure Simulation'!L63*'Measure Simulation'!R63/V13,0)","v":0},{"$f":"IFERROR(SUM('Measure Simulation'!I63,'Measure Simulation'!J63,'Measure Simulation'!K63,'Measure Simulation'!N63)/V13,0)","v":0},{"$f":"IFERROR(SUM('Measure Simulation'!I63,'Measure Simulation'!J63,'Measure Simulation'!K63,'Measure Simulation'!N63)*'Measure Simulation'!R63/V13,0)","v":0},{"$f":"IFERROR((K13*'UDAT Support'!$B$60+M13*'UDAT Support'!$B$59+O13*'UDAT Support'!$B$58+Q13*IF(OR('Utility Info'!$E$7=\"MMBtu\",'Utility Info'!$E$7=\"#2 Oil Gallons\")=TRUE,'UDAT Support'!$B$56,IF('Utility Info'!$E$7=\"#4 Oil Gallons\",'UDAT Support'!$B$55,IF('Utility Info'!$E$7=\"#6 Oil Gallons\",'UDAT Support'!$B$54,0)))+S13*IF(AND('Utility Info'!$F$7<>\"<Not Used>\",'Utility Info'!$F$7<>\"\")=TRUE,'UDAT Support'!$B$57,0))/V13,0)","v":0},{"$f":"IFERROR('Measure Descriptions'!L16*1,1)","v":0},{"$f":"IFERROR('Measure Descriptions'!L16*1,1)","v":0},"Capacity/Size",{"$f":"'Measure Descriptions'!J16","v":0},"Capacity/Size Units",{"$f":"'Measure Descriptions'!K16","v":0},"Efficiency",{"$f":"'Measure Descriptions'!M16","v":0},"Efficiency Units",{"$f":"'Measure Descriptions'!N16","v":0}]
[{"$f":"'Measure Descriptions'!E17","v":0},{"$f":"'Measure Descriptions'!C17","v":0},{"$f":"'Measure Descriptions'!G17","v":0},{"$f":"'Measure Descriptions'!H17","v":0},{"$f":"IFERROR('Measure Simulation'!F64/V14,0)","v":0},{"$f":"IFERROR('Measure Simulation'!Q64/V14,0)","v":0},{"$f":"IFERROR(((IFERROR(('Project Summary & Incentives'!$D$79*('Project Summary & Incentives'!$C$54+'Project Summary & Incentives'!$C$55)*'Measure Simulation'!G64/'Measure Simulation'!$G$81),0)+IFERROR(('Project Summary & Incentives'!$D$80*('Project Summary & Incentives'!$C$54+'Project Summary & Incentives'!$C$55)*'Measure Simulation'!H64/'Measure Simulation'!$H$81),0)+IFERROR(('Project Summary & Incentives'!$D$81*('Project Summary & Incentives'!$C$54+'Project Summary & Incentives'!$C$55)*'Measure Simulation'!L64/'Measure Simulation'!$L$81),0)+IFERROR(('Project Summary & Incentives'!$D$82*('Project Summary & Incentives'!$C$54+'Project Summary & Incentives'!$C$55)*'Measure Simulation'!M64/'Measure Simulation'!$M$81),0))/V14),0)","v":0},{"$f":"IFERROR('Measure Simulation'!S64,0)","v":0},{"$f":"IFERROR(('Measure Simulation'!F64-(G14*V14))/'Measure Simulation'!Q64,0)","v":0},{"$f":"IFERROR('Measure Simulation'!O64/V14,0)","v":0},{"$f":"IFERROR('Measure Simulation'!G64/V14,0)","v":0},{"$f":"IFERROR('Measure Simulation'!G64*'Measure Simulation'!R64/V14,0)","v":0},{"$f":"IFERROR('Measure Simulation'!H64/V14,0)","v":0},{"$f":"IFERROR('Measure Simulation'!H64*'Measure Simulation'!R64/V14,0)","v":0},{"$f":"IFERROR('Measure Simulation'!M64/V14,0)","v":0},{"$f":"IFERROR('Measure Simulation'!M64*'Measure Simulation'!R64/V14,0)","v":0},{"$f":"IFERROR('Measure Simulation'!L64/V14,0)","v":0},{"$f":"IFERROR('Measure Simulation'!L64*'Measure Simulation'!R64/V14,0)","v":0},{"$f":"IFERROR(SUM('Measure Simulation'!I64,'Measure Simulation'!J64,'Measure Simulation'!K64,'Measure Simulation'!N64)/V14,0)","v":0},{"$f":"IFERROR(SUM('Measure Simulation'!I64,'Measure Simulation'!J64,'Measure Simulation'!K64,'Measure Simulation'!N64)*'Measure Simulation'!R64/V14,0)","v":0},{"$f":"IFERROR((K14*'UDAT Support'!$B$60+M14*'UDAT Support'!$B$59+O14*'UDAT Support'!$B$58+Q14*IF(OR('Utility Info'!$E$7=\"MMBtu\",'Utility Info'!$E$7=\"#2 Oil Gallons\")=TRUE,'UDAT Support'!$B$56,IF('Utility Info'!$E$7=\"#4 Oil Gallons\",'UDAT Support'!$B$55,IF('Utility Info'!$E$7=\"#6 Oil Gallons\",'UDAT Support'!$B$54,0)))+S14*IF(AND('Utility Info'!$F$7<>\"<Not Used>\",'Utility Info'!$F$7<>\"\")=TRUE,'UDAT Support'!$B$57,0))/V14,0)","v":0},{"$f":"IFERROR('Measure Descriptions'!L17*1,1)","v":0},{"$f":"IFERROR('Measure Descriptions'!L17*1,1)","v":0},"Capacity/Size",{"$f":"'Measure Descriptions'!J17","v":0},"Capacity/Size Units",{"$f":"'Measure Descriptions'!K17","v":0},"Efficiency",{"$f":"'Measure Descriptions'!M17","v":0},"Efficiency Units",{"$f":"'Measure Descriptions'!N17","v":0}]
[{"$f":"'Measure Descriptions'!E18","v":0},{"$f":"'Measure Descriptions'!C18","v":0},{"$f":"'Measure Descriptions'!G18","v":0},{"$f":"'Measure Descriptions'!H18","v":0},{"$f":"IFERROR('Measure Simulation'!F65/V15,0)","v":0},{"$f":"IFERROR('Measure Simulation'!Q65/V15,0)","v":0},{"$f":"IFERROR(((IFERROR(('Project Summary & Incentives'!$D$79*('Project Summary & Incentives'!$C$54+'Project Summary & Incentives'!$C$55)*'Measure Simulation'!G65/'Measure Simulation'!$G$81),0)+IFERROR(('Project Summary & Incentives'!$D$80*('Project Summary & Incentives'!$C$54+'Project Summary & Incentives'!$C$55)*'Measure Simulation'!H65/'Measure Simulation'!$H$81),0)+IFERROR(('Project Summary & Incentives'!$D$81*('Project Summary & Incentives'!$C$54+'Project Summary & Incentives'!$C$55)*'Measure Simulation'!L65/'Measure Simulation'!$L$81),0)+IFERROR(('Project Summary & Incentives'!$D$82*('Project Summary & Incentives'!$C$54+'Project Summary & Incentives'!$C$55)*'Measure Simulation'!M65/'Measure Simulation'!$M$81),0))/V15),0)","v":0},{"$f":"IFERROR('Measure Simulation'!S65,0)","v":0},{"$f":"IFERROR(('Measure Simulation'!F65-(G15*V15))/'Measure Simulation'!Q65,0)","v":0},{"$f":"IFERROR('Measure Simulation'!O65/V15,0)","v":0},{"$f":"IFERROR('Measure Simulation'!G65/V15,0)","v":0},{"$f":"IFERROR('Measure Simulation'!G65*'Measure Simulation'!R65/V15,0)","v":0},{"$f":"IFERROR('Measure Simulation'!H65/V15,0)","v":0},{"$f":"IFERROR('Measure Simulation'!H65*'Measure Simulation'!R65/V15,0)","v":0},{"$f":"IFERROR('Measure Simulation'!M65/V15,0)","v":0},{"$f":"IFERROR('Measure Simulation'!M65*'Measure Simulation'!R65/V15,0)","v":0},{"$f":"IFERROR('Measure Simulation'!L65/V15,0)","v":0},{"$f":"IFERROR('Measure Simulation'!L65*'Measure Simulation'!R65/V15,0)","v":0},{"$f":"IFERROR(SUM('Measure Simulation'!I65,'Measure Simulation'!J65,'Measure Simulation'!K65,'Measure Simulation'!N65)/V15,0)","v":0},{"$f":"IFERROR(SUM('Measure Simulation'!I65,'Measure Simulation'!J65,'Measure Simulation'!K65,'Measure Simulation'!N65)*'Measure Simulation'!R65/V15,0)","v":0},{"$f":"IFERROR((K15*'UDAT Support'!$B$60+M15*'UDAT Support'!$B$59+O15*'UDAT Support'!$B$58+Q15*IF(OR('Utility Info'!$E$7=\"MMBtu\",'Utility Info'!$E$7=\"#2 Oil Gallons\")=TRUE,'UDAT Support'!$B$56,IF('Utility Info'!$E$7=\"#4 Oil Gallons\",'UDAT Support'!$B$55,IF('Utility Info'!$E$7=\"#6 Oil Gallons\",'UDAT Support'!$B$54,0)))+S15*IF(AND('Utility Info'!$F$7<>\"<Not Used>\",'Utility Info'!$F$7<>\"\")=TRUE,'UDAT Support'!$B$57,0))/V15,0)","v":0},{"$f":"IFERROR('Measure Descriptions'!L18*1,1)","v":0},{"$f":"IFERROR('Measure Descriptions'!L18*1,1)","v":0},"Capacity/Size",{"$f":"'Measure Descriptions'!J18","v":0},"Capacity/Size Units",{"$f":"'Measure Descriptions'!K18","v":0},"Efficiency",{"$f":"'Measure Descriptions'!M18","v":0},"Efficiency Units",{"$f":"'Measure Descriptions'!N18","v":0}]
[{"$f":"'Measure Descriptions'!E19","v":0},{"$f":"'Measure Descriptions'!C19","v":0},{"$f":"'Measure Descriptions'!G19","v":0},{"$f":"'Measure Descriptions'!H19","v":0},{"$f":"IFERROR('Measure Simulation'!F66/V16,0)","v":0},{"$f":"IFERROR('Measure Simulation'!Q66/V16,0)","v":0},{"$f":"IFERROR(((IFERROR(('Project Summary & Incentives'!$D$79*('Project Summary & Incentives'!$C$54+'Project Summary & Incentives'!$C$55)*'Measure Simulation'!G66/'Measure Simulation'!$G$81),0)+IFERROR(('Project Summary & Incentives'!$D$80*('Project Summary & Incentives'!$C$54+'Project Summary & Incentives'!$C$55)*'Measure Simulation'!H66/'Measure Simulation'!$H$81),0)+IFERROR(('Project Summary & Incentives'!$D$81*('Project Summary & Incentives'!$C$54+'Project Summary & Incentives'!$C$55)*'Measure Simulation'!L66/'Measure Simulation'!$L$81),0)+IFERROR(('Project Summary & Incentives'!$D$82*('Project Summary & Incentives'!$C$54+'Project Summary & Incentives'!$C$55)*'Measure Simulation'!M66/'Measure Simulation'!$M$81),0))/V16),0)","v":0},{"$f":"IFERROR('Measure Simulation'!S66,0)","v":0},{"$f":"IFERROR(('Measure Simulation'!F66-(G16*V16))/'Measure Simulation'!Q66,0)","v":0},{"$f":"IFERROR('Measure Simulation'!O66/V16,0)","v":0},{"$f":"IFERROR('Measure Simulation'!G66/V16,0)","v":0},{"$f":"IFERROR('Measure Simulation'!G66*'Measure Simulation'!R66/V16,0)","v":0},{"$f":"IFERROR('Measure Simulation'!H66/V16,0)","v":0},{"$f":"IFERROR('Measure Simulation'!H66*'Measure Simulation'!R66/V16,0)","v":0},{"$f":"IFERROR('Measure Simulation'!M66/V16,0)","v":0},{"$f":"IFERROR('Measure Simulation'!M66*'Measure Simulation'!R66/V16,0)","v":0},{"$f":"IFERROR('Measure Simulation'!L66/V16,0)","v":0},{"$f":"IFERROR('Measure Simulation'!L66*'Measure Simulation'!R66/V16,0)","v":0},{"$f":"IFERROR(SUM('Measure Simulation'!I66,'Measure Simulation'!J66,'Measure Simulation'!K66,'Measure Simulation'!N66)/V16,0)","v":0},{"$f":"IFERROR(SUM('Measure Simulation'!I66,'Measure Simulation'!J66,'Measure Simulation'!K66,'Measure Simulation'!N66)*'Measure Simulation'!R66/V16,0)","v":0},{"$f":"IFERROR((K16*'UDAT Support'!$B$60+M16*'UDAT Support'!$B$59+O16*'UDAT Support'!$B$58+Q16*IF(OR('Utility Info'!$E$7=\"MMBtu\",'Utility Info'!$E$7=\"#2 Oil Gallons\")=TRUE,'UDAT Support'!$B$56,IF('Utility Info'!$E$7=\"#4 Oil Gallons\",'UDAT Support'!$B$55,IF('Utility Info'!$E$7=\"#6 Oil Gallons\",'UDAT Support'!$B$54,0)))+S16*IF(AND('Utility Info'!$F$7<>\"<Not Used>\",'Utility Info'!$F$7<>\"\")=TRUE,'UDAT Support'!$B$57,0))/V16,0)","v":0},{"$f":"IFERROR('Measure Descriptions'!L19*1,1)","v":0},{"$f":"IFERROR('Measure Descriptions'!L19*1,1)","v":0},"Capacity/Size",{"$f":"'Measure Descriptions'!J19","v":0},"Capacity/Size Units",{"$f":"'Measure Descriptions'!K19","v":0},"Efficiency",{"$f":"'Measure Descriptions'!M19","v":0},"Efficiency Units",{"$f":"'Measure Descriptions'!N19","v":0}]
[{"$f":"'Measure Descriptions'!E20","v":0},{"$f":"'Measure Descriptions'!C20","v":0},{"$f":"'Measure Descriptions'!G20","v":0},{"$f":"'Measure Descriptions'!H20","v":0},{"$f":"IFERROR('Measure Simulation'!F67/V17,0)","v":0},{"$f":"IFERROR('Measure Simulation'!Q67/V17,0)","v":0},{"$f":"IFERROR(((IFERROR(('Project Summary & Incentives'!$D$79*('Project Summary & Incentives'!$C$54+'Project Summary & Incentives'!$C$55)*'Measure Simulation'!G67/'Measure Simulation'!$G$81),0)+IFERROR(('Project Summary & Incentives'!$D$80*('Project Summary & Incentives'!$C$54+'Project Summary & Incentives'!$C$55)*'Measure Simulation'!H67/'Measure Simulation'!$H$81),0)+IFERROR(('Project Summary & Incentives'!$D$81*('Project Summary & Incentives'!$C$54+'Project Summary & Incentives'!$C$55)*'Measure Simulation'!L67/'Measure Simulation'!$L$81),0)+IFERROR(('Project Summary & Incentives'!$D$82*('Project Summary & Incentives'!$C$54+'Project Summary & Incentives'!$C$55)*'Measure Simulation'!M67/'Measure Simulation'!$M$81),0))/V17),0)","v":0},{"$f":"IFERROR('Measure Simulation'!S67,0)","v":0},{"$f":"IFERROR(('Measure Simulation'!F67-(G17*V17))/'Measure Simulation'!Q67,0)","v":0},{"$f":"IFERROR('Measure Simulation'!O67/V17,0)","v":0},{"$f":"IFERROR('Measure Simulation'!G67/V17,0)","v":0},{"$f":"IFERROR('Measure Simulation'!G67*'Measure Simulation'!R67/V17,0)","v":0},{"$f":"IFERROR('Measure Simulation'!H67/V17,0)","v":0},{"$f":"IFERROR('Measure Simulation'!H67*'Measure Simulation'!R67/V17,0)","v":0},{"$f":"IFERROR('Measure Simulation'!M67/V17,0)","v":0},{"$f":"IFERROR('Measure Simulation'!M67*'Measure Simulation'!R67/V17,0)","v":0},{"$f":"IFERROR('Measure Simulation'!L67/V17,0)","v":0},{"$f":"IFERROR('Measure Simulation'!L67*'Measure Simulation'!R67/V17,0)","v":0},{"$f":"IFERROR(SUM('Measure Simulation'!I67,'Measure Simulation'!J67,'Measure Simulation'!K67,'Measure Simulation'!N67)/V17,0)","v":0},{"$f":"IFERROR(SUM('Measure Simulation'!I67,'Measure Simulation'!J67,'Measure Simulation'!K67,'Measure Simulation'!N67)*'Measure Simulation'!R67/V17,0)","v":0},{"$f":"IFERROR((K17*'UDAT Support'!$B$60+M17*'UDAT Support'!$B$59+O17*'UDAT Support'!$B$58+Q17*IF(OR('Utility Info'!$E$7=\"MMBtu\",'Utility Info'!$E$7=\"#2 Oil Gallons\")=TRUE,'UDAT Support'!$B$56,IF('Utility Info'!$E$7=\"#4 Oil Gallons\",'UDAT Support'!$B$55,IF('Utility Info'!$E$7=\"#6 Oil Gallons\",'UDAT Support'!$B$54,0)))+S17*IF(AND('Utility Info'!$F$7<>\"<Not Used>\",'Utility Info'!$F$7<>\"\")=TRUE,'UDAT Support'!$B$57,0))/V17,0)","v":0},{"$f":"IFERROR('Measure Descriptions'!L20*1,1)","v":0},{"$f":"IFERROR('Measure Descriptions'!L20*1,1)","v":0},"Capacity/Size",{"$f":"'Measure Descriptions'!J20","v":0},"Capacity/Size Units",{"$f":"'Measure Descriptions'!K20","v":0},"Efficiency",{"$f":"'Measure Descriptions'!M20","v":0},"Efficiency Units",{"$f":"'Measure Descriptions'!N20","v":0}]
[{"$f":"'Measure Descriptions'!E21","v":0},{"$f":"'Measure Descriptions'!C21","v":0},{"$f":"'Measure Descriptions'!G21","v":0},{"$f":"'Measure Descriptions'!H21","v":0},{"$f":"IFERROR('Measure Simulation'!F68/V18,0)","v":0},{"$f":"IFERROR('Measure Simulation'!Q68/V18,0)","v":0},{"$f":"IFERROR(((IFERROR(('Project Summary & Incentives'!$D$79*('Project Summary & Incentives'!$C$54+'Project Summary & Incentives'!$C$55)*'Measure Simulation'!G68/'Measure Simulation'!$G$81),0)+IFERROR(('Project Summary & Incentives'!$D$80*('Project Summary & Incentives'!$C$54+'Project Summary & Incentives'!$C$55)*'Measure Simulation'!H68/'Measure Simulation'!$H$81),0)+IFERROR(('Project Summary & Incentives'!$D$81*('Project Summary & Incentives'!$C$54+'Project Summary & Incentives'!$C$55)*'Measure Simulation'!L68/'Measure Simulation'!$L$81),0)+IFERROR(('Project Summary & Incentives'!$D$82*('Project Summary & Incentives'!$C$54+'Project Summary & Incentives'!$C$55)*'Measure Simulation'!M68/'Measure Simulation'!$M$81),0))/V18),0)","v":0},{"$f":"IFERROR('Measure Simulation'!S68,0)","v":0},{"$f":"IFERROR(('Measure Simulation'!F68-(G18*V18))/'Measure Simulation'!Q68,0)","v":0},{"$f":"IFERROR('Measure Simulation'!O68/V18,0)","v":0},{"$f":"IFERROR('Measure Simulation'!G68/V18,0)","v":0},{"$f":"IFERROR('Measure Simulation'!G68*'Measure Simulation'!R68/V18,0)","v":0},{"$f":"IFERROR('Measure Simulation'!H68/V18,0)","v":0},{"$f":"IFERROR('Measure Simulation'!H68*'Measure Simulation'!R68/V18,0)","v":0},{"$f":"IFERROR('Measure Simulation'!M68/V18,0)","v":0},{"$f":"IFERROR('Measure Simulation'!M68*'Measure Simulation'!R68/V18,0)","v":0},{"$f":"IFERROR('Measure Simulation'!L68/V18,0)","v":0},{"$f":"IFERROR('Measure Simulation'!L68*'Measure Simulation'!R68/V18,0)","v":0},{"$f":"IFERROR(SUM('Measure Simulation'!I68,'Measure Simulation'!J68,'Measure Simulation'!K68,'Measure Simulation'!N68)/V18,0)","v":0},{"$f":"IFERROR(SUM('Measure Simulation'!I68,'Measure Simulation'!J68,'Measure Simulation'!K68,'Measure Simulation'!N68)*'Measure Simulation'!R68/V18,0)","v":0},{"$f":"IFERROR((K18*'UDAT Support'!$B$60+M18*'UDAT Support'!$B$59+O18*'UDAT Support'!$B$58+Q18*IF(OR('Utility Info'!$E$7=\"MMBtu\",'Utility Info'!$E$7=\"#2 Oil Gallons\")=TRUE,'UDAT Support'!$B$56,IF('Utility Info'!$E$7=\"#4 Oil Gallons\",'UDAT Support'!$B$55,IF('Utility Info'!$E$7=\"#6 Oil Gallons\",'UDAT Support'!$B$54,0)))+S18*IF(AND('Utility Info'!$F$7<>\"<Not Used>\",'Utility Info'!$F$7<>\"\")=TRUE,'UDAT Support'!$B$57,0))/V18,0)","v":0},{"$f":"IFERROR('Measure Descriptions'!L21*1,1)","v":0},{"$f":"IFERROR('Measure Descriptions'!L21*1,1)","v":0},"Capacity/Size",{"$f":"'Measure Descriptions'!J21","v":0},"Capacity/Size Units",{"$f":"'Measure Descriptions'!K21","v":0},"Efficiency",{"$f":"'Measure Descriptions'!M21","v":0},"Efficiency Units",{"$f":"'Measure Descriptions'!N21","v":0}]
[{"$f":"'Measure Descriptions'!E22","v":0},{"$f":"'Measure Descriptions'!C22","v":0},{"$f":"'Measure Descriptions'!G22","v":0},{"$f":"'Measure Descriptions'!H22","v":0},{"$f":"IFERROR('Measure Simulation'!F69/V19,0)","v":0},{"$f":"IFERROR('Measure Simulation'!Q69/V19,0)","v":0},{"$f":"IFERROR(((IFERROR(('Project Summary & Incentives'!$D$79*('Project Summary & Incentives'!$C$54+'Project Summary & Incentives'!$C$55)*'Measure Simulation'!G69/'Measure Simulation'!$G$81),0)+IFERROR(('Project Summary & Incentives'!$D$80*('Project Summary & Incentives'!$C$54+'Project Summary & Incentives'!$C$55)*'Measure Simulation'!H69/'Measure Simulation'!$H$81),0)+IFERROR(('Project Summary & Incentives'!$D$81*('Project Summary & Incentives'!$C$54+'Project Summary & Incentives'!$C$55)*'Measure Simulation'!L69/'Measure Simulation'!$L$81),0)+IFERROR(('Project Summary & Incentives'!$D$82*('Project Summary & Incentives'!$C$54+'Project Summary & Incentives'!$C$55)*'Measure Simulation'!M69/'Measure Simulation'!$M$81),0))/V19),0)","v":0},{"$f":"IFERROR('Measure Simulation'!S69,0)","v":0},{"$f":"IFERROR(('Measure Simulation'!F69-(G19*V19))/'Measure Simulation'!Q69,0)","v":0},{"$f":"IFERROR('Measure Simulation'!O69/V19,0)","v":0},{"$f":"IFERROR('Measure Simulation'!G69/V19,0)","v":0},{"$f":"IFERROR('Measure Simulation'!G69*'Measure Simulation'!R69/V19,0)","v":0},{"$f":"IFERROR('Measure Simulation'!H69/V19,0)","v":0},{"$f":"IFERROR('Measure Simulation'!H69*'Measure Simulation'!R69/V19,0)","v":0},{"$f":"IFERROR('Measure Simulation'!M69/V19,0)","v":0},{"$f":"IFERROR('Measure Simulation'!M69*'Measure Simulation'!R69/V19,0)","v":0},{"$f":"IFERROR('Measure Simulation'!L69/V19,0)","v":0},{"$f":"IFERROR('Measure Simulation'!L69*'Measure Simulation'!R69/V19,0)","v":0},{"$f":"IFERROR(SUM('Measure Simulation'!I69,'Measure Simulation'!J69,'Measure Simulation'!K69,'Measure Simulation'!N69)/V19,0)","v":0},{"$f":"IFERROR(SUM('Measure Simulation'!I69,'Measure Simulation'!J69,'Measure Simulation'!K69,'Measure Simulation'!N69)*'Measure Simulation'!R69/V19,0)","v":0},{"$f":"IFERROR((K19*'UDAT Support'!$B$60+M19*'UDAT Support'!$B$59+O19*'UDAT Support'!$B$58+Q19*IF(OR('Utility Info'!$E$7=\"MMBtu\",'Utility Info'!$E$7=\"#2 Oil Gallons\")=TRUE,'UDAT Support'!$B$56,IF('Utility Info'!$E$7=\"#4 Oil Gallons\",'UDAT Support'!$B$55,IF('Utility Info'!$E$7=\"#6 Oil Gallons\",'UDAT Support'!$B$54,0)))+S19*IF(AND('Utility Info'!$F$7<>\"<Not Used>\",'Utility Info'!$F$7<>\"\")=TRUE,'UDAT Support'!$B$57,0))/V19,0)","v":0},{"$f":"IFERROR('Measure Descriptions'!L22*1,1)","v":0},{"$f":"IFERROR('Measure Descriptions'!L22*1,1)","v":0},"Capacity/Size",{"$f":"'Measure Descriptions'!J22","v":0},"Capacity/Size Units",{"$f":"'Measure Descriptions'!K22","v":0},"Efficiency",{"$f":"'Measure Descriptions'!M22","v":0},"Efficiency Units",{"$f":"'Measure Descriptions'!N22","v":0}]
[{"$f":"'Measure Descriptions'!E23","v":0},{"$f":"'Measure Descriptions'!C23","v":0},{"$f":"'Measure Descriptions'!G23","v":0},{"$f":"'Measure Descriptions'!H23","v":0},{"$f":"IFERROR('Measure Simulation'!F70/V20,0)","v":0},{"$f":"IFERROR('Measure Simulation'!Q70/V20,0)","v":0},{"$f":"IFERROR(((IFERROR(('Project Summary & Incentives'!$D$79*('Project Summary & Incentives'!$C$54+'Project Summary & Incentives'!$C$55)*'Measure Simulation'!G70/'Measure Simulation'!$G$81),0)+IFERROR(('Project Summary & Incentives'!$D$80*('Project Summary & Incentives'!$C$54+'Project Summary & Incentives'!$C$55)*'Measure Simulation'!H70/'Measure Simulation'!$H$81),0)+IFERROR(('Project Summary & Incentives'!$D$81*('Project Summary & Incentives'!$C$54+'Project Summary & Incentives'!$C$55)*'Measure Simulation'!L70/'Measure Simulation'!$L$81),0)+IFERROR(('Project Summary & Incentives'!$D$82*('Project Summary & Incentives'!$C$54+'Project Summary & Incentives'!$C$55)*'Measure Simulation'!M70/'Measure Simulation'!$M$81),0))/V20),0)","v":0},{"$f":"IFERROR('Measure Simulation'!S70,0)","v":0},{"$f":"IFERROR(('Measure Simulation'!F70-(G20*V20))/'Measure Simulation'!Q70,0)","v":0},{"$f":"IFERROR('Measure Simulation'!O70/V20,0)","v":0},{"$f":"IFERROR('Measure Simulation'!G70/V20,0)","v":0},{"$f":"IFERROR('Measure Simulation'!G70*'Measure Simulation'!R70/V20,0)","v":0},{"$f":"IFERROR('Measure Simulation'!H70/V20,0)","v":0},{"$f":"IFERROR('Measure Simulation'!H70*'Measure Simulation'!R70/V20,0)","v":0},{"$f":"IFERROR('Measure Simulation'!M70/V20,0)","v":0},{"$f":"IFERROR('Measure Simulation'!M70*'Measure Simulation'!R70/V20,0)","v":0},{"$f":"IFERROR('Measure Simulation'!L70/V20,0)","v":0},{"$f":"IFERROR('Measure Simulation'!L70*'Measure Simulation'!R70/V20,0)","v":0},{"$f":"IFERROR(SUM('Measure Simulation'!I70,'Measure Simulation'!J70,'Measure Simulation'!K70,'Measure Simulation'!N70)/V20,0)","v":0},{"$f":"IFERROR(SUM('Measure Simulation'!I70,'Measure Simulation'!J70,'Measure Simulation'!K70,'Measure Simulation'!N70)*'Measure Simulation'!R70/V20,0)","v":0},{"$f":"IFERROR((K20*'UDAT Support'!$B$60+M20*'UDAT Support'!$B$59+O20*'UDAT Support'!$B$58+Q20*IF(OR('Utility Info'!$E$7=\"MMBtu\",'Utility Info'!$E$7=\"#2 Oil Gallons\")=TRUE,'UDAT Support'!$B$56,IF('Utility Info'!$E$7=\"#4 Oil Gallons\",'UDAT Support'!$B$55,IF('Utility Info'!$E$7=\"#6 Oil Gallons\",'UDAT Support'!$B$54,0)))+S20*IF(AND('Utility Info'!$F$7<>\"<Not Used>\",'Utility Info'!$F$7<>\"\")=TRUE,'UDAT Support'!$B$57,0))/V20,0)","v":0},{"$f":"IFERROR('Measure Descriptions'!L23*1,1)","v":0},{"$f":"IFERROR('Measure Descriptions'!L23*1,1)","v":0},"Capacity/Size",{"$f":"'Measure Descriptions'!J23","v":0},"Capacity/Size Units",{"$f":"'Measure Descriptions'!K23","v":0},"Efficiency",{"$f":"'Measure Descriptions'!M23","v":0},"Efficiency Units",{"$f":"'Measure Descriptions'!N23","v":0}]
[{"$f":"'Measure Descriptions'!E24","v":0},{"$f":"'Measure Descriptions'!C24","v":0},{"$f":"'Measure Descriptions'!G24","v":0},{"$f":"'Measure Descriptions'!H24","v":0},{"$f":"IFERROR('Measure Simulation'!F71/V21,0)","v":0},{"$f":"IFERROR('Measure Simulation'!Q71/V21,0)","v":0},{"$f":"IFERROR(((IFERROR(('Project Summary & Incentives'!$D$79*('Project Summary & Incentives'!$C$54+'Project Summary & Incentives'!$C$55)*'Measure Simulation'!G71/'Measure Simulation'!$G$81),0)+IFERROR(('Project Summary & Incentives'!$D$80*('Project Summary & Incentives'!$C$54+'Project Summary & Incentives'!$C$55)*'Measure Simulation'!H71/'Measure Simulation'!$H$81),0)+IFERROR(('Project Summary & Incentives'!$D$81*('Project Summary & Incentives'!$C$54+'Project Summary & Incentives'!$C$55)*'Measure Simulation'!L71/'Measure Simulation'!$L$81),0)+IFERROR(('Project Summary & Incentives'!$D$82*('Project Summary & Incentives'!$C$54+'Project Summary & Incentives'!$C$55)*'Measure Simulation'!M71/'Measure Simulation'!$M$81),0))/V21),0)","v":0},{"$f":"IFERROR('Measure Simulation'!S71,0)","v":0},{"$f":"IFERROR(('Measure Simulation'!F71-(G21*V21))/'Measure Simulation'!Q71,0)","v":0},{"$f":"IFERROR('Measure Simulation'!O71/V21,0)","v":0},{"$f":"IFERROR('Measure Simulation'!G71/V21,0)","v":0},{"$f":"IFERROR('Measure Simulation'!G71*'Measure Simulation'!R71/V21,0)","v":0},{"$f":"IFERROR('Measure Simulation'!H71/V21,0)","v":0},{"$f":"IFERROR('Measure Simulation'!H71*'Measure Simulation'!R71/V21,0)","v":0},{"$f":"IFERROR('Measure Simulation'!M71/V21,0)","v":0},{"$f":"IFERROR('Measure Simulation'!M71*'Measure Simulation'!R71/V21,0)","v":0},{"$f":"IFERROR('Measure Simulation'!L71/V21,0)","v":0},{"$f":"IFERROR('Measure Simulation'!L71*'Measure Simulation'!R71/V21,0)","v":0},{"$f":"IFERROR(SUM('Measure Simulation'!I71,'Measure Simulation'!J71,'Measure Simulation'!K71,'Measure Simulation'!N71)/V21,0)","v":0},{"$f":"IFERROR(SUM('Measure Simulation'!I71,'Measure Simulation'!J71,'Measure Simulation'!K71,'Measure Simulation'!N71)*'Measure Simulation'!R71/V21,0)","v":0},{"$f":"IFERROR((K21*'UDAT Support'!$B$60+M21*'UDAT Support'!$B$59+O21*'UDAT Support'!$B$58+Q21*IF(OR('Utility Info'!$E$7=\"MMBtu\",'Utility Info'!$E$7=\"#2 Oil Gallons\")=TRUE,'UDAT Support'!$B$56,IF('Utility Info'!$E$7=\"#4 Oil Gallons\",'UDAT Support'!$B$55,IF('Utility Info'!$E$7=\"#6 Oil Gallons\",'UDAT Support'!$B$54,0)))+S21*IF(AND('Utility Info'!$F$7<>\"<Not Used>\",'Utility Info'!$F$7<>\"\")=TRUE,'UDAT Support'!$B$57,0))/V21,0)","v":0},{"$f":"IFERROR('Measure Descriptions'!L24*1,1)","v":0},{"$f":"IFERROR('Measure Descriptions'!L24*1,1)","v":0},"Capacity/Size",{"$f":"'Measure Descriptions'!J24","v":0},"Capacity/Size Units",{"$f":"'Measure Descriptions'!K24","v":0},"Efficiency",{"$f":"'Measure Descriptions'!M24","v":0},"Efficiency Units",{"$f":"'Measure Descriptions'!N24","v":0}]
[{"$f":"'Measure Descriptions'!E25","v":0},{"$f":"'Measure Descriptions'!C25","v":0},{"$f":"'Measure Descriptions'!G25","v":0},{"$f":"'Measure Descriptions'!H25","v":0},{"$f":"IFERROR('Measure Simulation'!F72/V22,0)","v":0},{"$f":"IFERROR('Measure Simulation'!Q72/V22,0)","v":0},{"$f":"IFERROR(((IFERROR(('Project Summary & Incentives'!$D$79*('Project Summary & Incentives'!$C$54+'Project Summary & Incentives'!$C$55)*'Measure Simulation'!G72/'Measure Simulation'!$G$81),0)+IFERROR(('Project Summary & Incentives'!$D$80*('Project Summary & Incentives'!$C$54+'Project Summary & Incentives'!$C$55)*'Measure Simulation'!H72/'Measure Simulation'!$H$81),0)+IFERROR(('Project Summary & Incentives'!$D$81*('Project Summary & Incentives'!$C$54+'Project Summary & Incentives'!$C$55)*'Measure Simulation'!L72/'Measure Simulation'!$L$81),0)+IFERROR(('Project Summary & Incentives'!$D$82*('Project Summary & Incentives'!$C$54+'Project Summary & Incentives'!$C$55)*'Measure Simulation'!M72/'Measure Simulation'!$M$81),0))/V22),0)","v":0},{"$f":"IFERROR('Measure Simulation'!S72,0)","v":0},{"$f":"IFERROR(('Measure Simulation'!F72-(G22*V22))/'Measure Simulation'!Q72,0)","v":0},{"$f":"IFERROR('Measure Simulation'!O72/V22,0)","v":0},{"$f":"IFERROR('Measure Simulation'!G72/V22,0)","v":0},{"$f":"IFERROR('Measure Simulation'!G72*'Measure Simulation'!R72/V22,0)","v":0},{"$f":"IFERROR('Measure Simulation'!H72/V22,0)","v":0},{"$f":"IFERROR('Measure Simulation'!H72*'Measure Simulation'!R72/V22,0)","v":0},{"$f":"IFERROR('Measure Simulation'!M72/V22,0)","v":0},{"$f":"IFERROR('Measure Simulation'!M72*'Measure Simulation'!R72/V22,0)","v":0},{"$f":"IFERROR('Measure Simulation'!L72/V22,0)","v":0},{"$f":"IFERROR('Measure Simulation'!L72*'Measure Simulation'!R72/V22,0)","v":0},{"$f":"IFERROR(SUM('Measure Simulation'!I72,'Measure Simulation'!J72,'Measure Simulation'!K72,'Measure Simulation'!N72)/V22,0)","v":0},{"$f":"IFERROR(SUM('Measure Simulation'!I72,'Measure Simulation'!J72,'Measure Simulation'!K72,'Measure Simulation'!N72)*'Measure Simulation'!R72/V22,0)","v":0},{"$f":"IFERROR((K22*'UDAT Support'!$B$60+M22*'UDAT Support'!$B$59+O22*'UDAT Support'!$B$58+Q22*IF(OR('Utility Info'!$E$7=\"MMBtu\",'Utility Info'!$E$7=\"#2 Oil Gallons\")=TRUE,'UDAT Support'!$B$56,IF('Utility Info'!$E$7=\"#4 Oil Gallons\",'UDAT Support'!$B$55,IF('Utility Info'!$E$7=\"#6 Oil Gallons\",'UDAT Support'!$B$54,0)))+S22*IF(AND('Utility Info'!$F$7<>\"<Not Used>\",'Utility Info'!$F$7<>\"\")=TRUE,'UDAT Support'!$B$57,0))/V22,0)","v":0},{"$f":"IFERROR('Measure Descriptions'!L25*1,1)","v":0},{"$f":"IFERROR('Measure Descriptions'!L25*1,1)","v":0},"Capacity/Size",{"$f":"'Measure Descriptions'!J25","v":0},"Capacity/Size Units",{"$f":"'Measure Descriptions'!K25","v":0},"Efficiency",{"$f":"'Measure Descriptions'!M25","v":0},"Efficiency Units",{"$f":"'Measure Descriptions'!N25","v":0}]
[{"$f":"'Measure Descriptions'!E26","v":0},{"$f":"'Measure Descriptions'!C26","v":0},{"$f":"'Measure Descriptions'!G26","v":0},{"$f":"'Measure Descriptions'!H26","v":0},{"$f":"IFERROR('Measure Simulation'!F73/V23,0)","v":0},{"$f":"IFERROR('Measure Simulation'!Q73/V23,0)","v":0},{"$f":"IFERROR(((IFERROR(('Project Summary & Incentives'!$D$79*('Project Summary & Incentives'!$C$54+'Project Summary & Incentives'!$C$55)*'Measure Simulation'!G73/'Measure Simulation'!$G$81),0)+IFERROR(('Project Summary & Incentives'!$D$80*('Project Summary & Incentives'!$C$54+'Project Summary & Incentives'!$C$55)*'Measure Simulation'!H73/'Measure Simulation'!$H$81),0)+IFERROR(('Project Summary & Incentives'!$D$81*('Project Summary & Incentives'!$C$54+'Project Summary & Incentives'!$C$55)*'Measure Simulation'!L73/'Measure Simulation'!$L$81),0)+IFERROR(('Project Summary & Incentives'!$D$82*('Project Summary & Incentives'!$C$54+'Project Summary & Incentives'!$C$55)*'Measure Simulation'!M73/'Measure Simulation'!$M$81),0))/V23),0)","v":0},{"$f":"IFERROR('Measure Simulation'!S73,0)","v":0},{"$f":"IFERROR(('Measure Simulation'!F73-(G23*V23))/'Measure Simulation'!Q73,0)","v":0},{"$f":"IFERROR('Measure Simulation'!O73/V23,0)","v":0},{"$f":"IFERROR('Measure Simulation'!G73/V23,0)","v":0},{"$f":"IFERROR('Measure Simulation'!G73*'Measure Simulation'!R73/V23,0)","v":0},{"$f":"IFERROR('Measure Simulation'!H73/V23,0)","v":0},{"$f":"IFERROR('Measure Simulation'!H73*'Measure Simulation'!R73/V23,0)","v":0},{"$f":"IFERROR('Measure Simulation'!M73/V23,0)","v":0},{"$f":"IFERROR('Measure Simulation'!M73*'Measure Simulation'!R73/V23,0)","v":0},{"$f":"IFERROR('Measure Simulation'!L73/V23,0)","v":0},{"$f":"IFERROR('Measure Simulation'!L73*'Measure Simulation'!R73/V23,0)","v":0},{"$f":"IFERROR(SUM('Measure Simulation'!I73,'Measure Simulation'!J73,'Measure Simulation'!K73,'Measure Simulation'!N73)/V23,0)","v":0},{"$f":"IFERROR(SUM('Measure Simulation'!I73,'Measure Simulation'!J73,'Measure Simulation'!K73,'Measure Simulation'!N73)*'Measure Simulation'!R73/V23,0)","v":0},{"$f":"IFERROR((K23*'UDAT Support'!$B$60+M23*'UDAT Support'!$B$59+O23*'UDAT Support'!$B$58+Q23*IF(OR('Utility Info'!$E$7=\"MMBtu\",'Utility Info'!$E$7=\"#2 Oil Gallons\")=TRUE,'UDAT Support'!$B$56,IF('Utility Info'!$E$7=\"#4 Oil Gallons\",'UDAT Support'!$B$55,IF('Utility Info'!$E$7=\"#6 Oil Gallons\",'UDAT Support'!$B$54,0)))+S23*IF(AND('Utility Info'!$F$7<>\"<Not Used>\",'Utility Info'!$F$7<>\"\")=TRUE,'UDAT Support'!$B$57,0))/V23,0)","v":0},{"$f":"IFERROR('Measure Descriptions'!L26*1,1)","v":0},{"$f":"IFERROR('Measure Descriptions'!L26*1,1)","v":0},"Capacity/Size",{"$f":"'Measure Descriptions'!J26","v":0},"Capacity/Size Units",{"$f":"'Measure Descriptions'!K26","v":0},"Efficiency",{"$f":"'Measure Descriptions'!M26","v":0},"Efficiency Units",{"$f":"'Measure Descriptions'!N26","v":0}]
[{"$f":"'Measure Descriptions'!E27","v":0},{"$f":"'Measure Descriptions'!C27","v":0},{"$f":"'Measure Descriptions'!G27","v":0},{"$f":"'Measure Descriptions'!H27","v":0},{"$f":"IFERROR('Measure Simulation'!F74/V24,0)","v":0},{"$f":"IFERROR('Measure Simulation'!Q74/V24,0)","v":0},{"$f":"IFERROR(((IFERROR(('Project Summary & Incentives'!$D$79*('Project Summary & Incentives'!$C$54+'Project Summary & Incentives'!$C$55)*'Measure Simulation'!G74/'Measure Simulation'!$G$81),0)+IFERROR(('Project Summary & Incentives'!$D$80*('Project Summary & Incentives'!$C$54+'Project Summary & Incentives'!$C$55)*'Measure Simulation'!H74/'Measure Simulation'!$H$81),0)+IFERROR(('Project Summary & Incentives'!$D$81*('Project Summary & Incentives'!$C$54+'Project Summary & Incentives'!$C$55)*'Measure Simulation'!L74/'Measure Simulation'!$L$81),0)+IFERROR(('Project Summary & Incentives'!$D$82*('Project Summary & Incentives'!$C$54+'Project Summary & Incentives'!$C$55)*'Measure Simulation'!M74/'Measure Simulation'!$M$81),0))/V24),0)","v":0},{"$f":"IFERROR('Measure Simulation'!S74,0)","v":0},{"$f":"IFERROR(('Measure Simulation'!F74-(G24*V24))/'Measure Simulation'!Q74,0)","v":0},{"$f":"IFERROR('Measure Simulation'!O74/V24,0)","v":0},{"$f":"IFERROR('Measure Simulation'!G74/V24,0)","v":0},{"$f":"IFERROR('Measure Simulation'!G74*'Measure Simulation'!R74/V24,0)","v":0},{"$f":"IFERROR('Measure Simulation'!H74/V24,0)","v":0},{"$f":"IFERROR('Measure Simulation'!H74*'Measure Simulation'!R74/V24,0)","v":0},{"$f":"IFERROR('Measure Simulation'!M74/V24,0)","v":0},{"$f":"IFERROR('Measure Simulation'!M74*'Measure Simulation'!R74/V24,0)","v":0},{"$f":"IFERROR('Measure Simulation'!L74/V24,0)","v":0},{"$f":"IFERROR('Measure Simulation'!L74*'Measure Simulation'!R74/V24,0)","v":0},{"$f":"IFERROR(SUM('Measure Simulation'!I74,'Measure Simulation'!J74,'Measure Simulation'!K74,'Measure Simulation'!N74)/V24,0)","v":0},{"$f":"IFERROR(SUM('Measure Simulation'!I74,'Measure Simulation'!J74,'Measure Simulation'!K74,'Measure Simulation'!N74)*'Measure Simulation'!R74/V24,0)","v":0},{"$f":"IFERROR((K24*'UDAT Support'!$B$60+M24*'UDAT Support'!$B$59+O24*'UDAT Support'!$B$58+Q24*IF(OR('Utility Info'!$E$7=\"MMBtu\",'Utility Info'!$E$7=\"#2 Oil Gallons\")=TRUE,'UDAT Support'!$B$56,IF('Utility Info'!$E$7=\"#4 Oil Gallons\",'UDAT Support'!$B$55,IF('Utility Info'!$E$7=\"#6 Oil Gallons\",'UDAT Support'!$B$54,0)))+S24*IF(AND('Utility Info'!$F$7<>\"<Not Used>\",'Utility Info'!$F$7<>\"\")=TRUE,'UDAT Support'!$B$57,0))/V24,0)","v":0},{"$f":"IFERROR('Measure Descriptions'!L27*1,1)","v":0},{"$f":"IFERROR('Measure Descriptions'!L27*1,1)","v":0},"Capacity/Size",{"$f":"'Measure Descriptions'!J27","v":0},"Capacity/Size Units",{"$f":"'Measure Descriptions'!K27","v":0},"Efficiency",{"$f":"'Measure Descriptions'!M27","v":0},"Efficiency Units",{"$f":"'Measure Descriptions'!N27","v":0}]
[{"$f":"'Measure Descriptions'!E28","v":0},{"$f":"'Measure Descriptions'!C28","v":0},{"$f":"'Measure Descriptions'!G28","v":0},{"$f":"'Measure Descriptions'!H28","v":0},{"$f":"IFERROR('Measure Simulation'!F75/V25,0)","v":0},{"$f":"IFERROR('Measure Simulation'!Q75/V25,0)","v":0},{"$f":"IFERROR(((IFERROR(('Project Summary & Incentives'!$D$79*('Project Summary & Incentives'!$C$54+'Project Summary & Incentives'!$C$55)*'Measure Simulation'!G75/'Measure Simulation'!$G$81),0)+IFERROR(('Project Summary & Incentives'!$D$80*('Project Summary & Incentives'!$C$54+'Project Summary & Incentives'!$C$55)*'Measure Simulation'!H75/'Measure Simulation'!$H$81),0)+IFERROR(('Project Summary & Incentives'!$D$81*('Project Summary & Incentives'!$C$54+'Project Summary & Incentives'!$C$55)*'Measure Simulation'!L75/'Measure Simulation'!$L$81),0)+IFERROR(('Project Summary & Incentives'!$D$82*('Project Summary & Incentives'!$C$54+'Project Summary & Incentives'!$C$55)*'Measure Simulation'!M75/'Measure Simulation'!$M$81),0))/V25),0)","v":0},{"$f":"IFERROR('Measure Simulation'!S75,0)","v":0},{"$f":"IFERROR(('Measure Simulation'!F75-(G25*V25))/'Measure Simulation'!Q75,0)","v":0},{"$f":"IFERROR('Measure Simulation'!O75/V25,0)","v":0},{"$f":"IFERROR('Measure Simulation'!G75/V25,0)","v":0},{"$f":"IFERROR('Measure Simulation'!G75*'Measure Simulation'!R75/V25,0)","v":0},{"$f":"IFERROR('Measure Simulation'!H75/V25,0)","v":0},{"$f":"IFERROR('Measure Simulation'!H75*'Measure Simulation'!R75/V25,0)","v":0},{"$f":"IFERROR('Measure Simulation'!M75/V25,0)","v":0},{"$f":"IFERROR('Measure Simulation'!M75*'Measure Simulation'!R75/V25,0)","v":0},{"$f":"IFERROR('Measure Simulation'!L75/V25,0)","v":0},{"$f":"IFERROR('Measure Simulation'!L75*'Measure Simulation'!R75/V25,0)","v":0},{"$f":"IFERROR(SUM('Measure Simulation'!I75,'Measure Simulation'!J75,'Measure Simulation'!K75,'Measure Simulation'!N75)/V25,0)","v":0},{"$f":"IFERROR(SUM('Measure Simulation'!I75,'Measure Simulation'!J75,'Measure Simulation'!K75,'Measure Simulation'!N75)*'Measure Simulation'!R75/V25,0)","v":0},{"$f":"IFERROR((K25*'UDAT Support'!$B$60+M25*'UDAT Support'!$B$59+O25*'UDAT Support'!$B$58+Q25*IF(OR('Utility Info'!$E$7=\"MMBtu\",'Utility Info'!$E$7=\"#2 Oil Gallons\")=TRUE,'UDAT Support'!$B$56,IF('Utility Info'!$E$7=\"#4 Oil Gallons\",'UDAT Support'!$B$55,IF('Utility Info'!$E$7=\"#6 Oil Gallons\",'UDAT Support'!$B$54,0)))+S25*IF(AND('Utility Info'!$F$7<>\"<Not Used>\",'Utility Info'!$F$7<>\"\")=TRUE,'UDAT Support'!$B$57,0))/V25,0)","v":0},{"$f":"IFERROR('Measure Descriptions'!L28*1,1)","v":0},{"$f":"IFERROR('Measure Descriptions'!L28*1,1)","v":0},"Capacity/Size",{"$f":"'Measure Descriptions'!J28","v":0},"Capacity/Size Units",{"$f":"'Measure Descriptions'!K28","v":0},"Efficiency",{"$f":"'Measure Descriptions'!M28","v":0},"Efficiency Units",{"$f":"'Measure Descriptions'!N28","v":0}]
[{"$f":"'Measure Descriptions'!E29","v":0},{"$f":"'Measure Descriptions'!C29","v":0},{"$f":"'Measure Descriptions'!G29","v":0},{"$f":"'Measure Descriptions'!H29","v":0},{"$f":"IFERROR('Measure Simulation'!F76/V26,0)","v":0},{"$f":"IFERROR('Measure Simulation'!Q76/V26,0)","v":0},{"$f":"IFERROR(((IFERROR(('Project Summary & Incentives'!$D$79*('Project Summary & Incentives'!$C$54+'Project Summary & Incentives'!$C$55)*'Measure Simulation'!G76/'Measure Simulation'!$G$81),0)+IFERROR(('Project Summary & Incentives'!$D$80*('Project Summary & Incentives'!$C$54+'Project Summary & Incentives'!$C$55)*'Measure Simulation'!H76/'Measure Simulation'!$H$81),0)+IFERROR(('Project Summary & Incentives'!$D$81*('Project Summary & Incentives'!$C$54+'Project Summary & Incentives'!$C$55)*'Measure Simulation'!L76/'Measure Simulation'!$L$81),0)+IFERROR(('Project Summary & Incentives'!$D$82*('Project Summary & Incentives'!$C$54+'Project Summary & Incentives'!$C$55)*'Measure Simulation'!M76/'Measure Simulation'!$M$81),0))/V26),0)","v":0},{"$f":"IFERROR('Measure Simulation'!S76,0)","v":0},{"$f":"IFERROR(('Measure Simulation'!F76-(G26*V26))/'Measure Simulation'!Q76,0)","v":0},{"$f":"IFERROR('Measure Simulation'!O76/V26,0)","v":0},{"$f":"IFERROR('Measure Simulation'!G76/V26,0)","v":0},{"$f":"IFERROR('Measure Simulation'!G76*'Measure Simulation'!R76/V26,0)","v":0},{"$f":"IFERROR('Measure Simulation'!H76/V26,0)","v":0},{"$f":"IFERROR('Measure Simulation'!H76*'Measure Simulation'!R76/V26,0)","v":0},{"$f":"IFERROR('Measure Simulation'!M76/V26,0)","v":0},{"$f":"IFERROR('Measure Simulation'!M76*'Measure Simulation'!R76/V26,0)","v":0},{"$f":"IFERROR('Measure Simulation'!L76/V26,0)","v":0},{"$f":"IFERROR('Measure Simulation'!L76*'Measure Simulation'!R76/V26,0)","v":0},{"$f":"IFERROR(SUM('Measure Simulation'!I76,'Measure Simulation'!J76,'Measure Simulation'!K76,'Measure Simulation'!N76)/V26,0)","v":0},{"$f":"IFERROR(SUM('Measure Simulation'!I76,'Measure Simulation'!J76,'Measure Simulation'!K76,'Measure Simulation'!N76)*'Measure Simulation'!R76/V26,0)","v":0},{"$f":"IFERROR((K26*'UDAT Support'!$B$60+M26*'UDAT Support'!$B$59+O26*'UDAT Support'!$B$58+Q26*IF(OR('Utility Info'!$E$7=\"MMBtu\",'Utility Info'!$E$7=\"#2 Oil Gallons\")=TRUE,'UDAT Support'!$B$56,IF('Utility Info'!$E$7=\"#4 Oil Gallons\",'UDAT Support'!$B$55,IF('Utility Info'!$E$7=\"#6 Oil Gallons\",'UDAT Support'!$B$54,0)))+S26*IF(AND('Utility Info'!$F$7<>\"<Not Used>\",'Utility Info'!$F$7<>\"\")=TRUE,'UDAT Support'!$B$57,0))/V26,0)","v":0},{"$f":"IFERROR('Measure Descriptions'!L29*1,1)","v":0},{"$f":"IFERROR('Measure Descriptions'!L29*1,1)","v":0},"Capacity/Size",{"$f":"'Measure Descriptions'!J29","v":0},"Capacity/Size Units",{"$f":"'Measure Descriptions'!K29","v":0},"Efficiency",{"$f":"'Measure Descriptions'!M29","v":0},"Efficiency Units",{"$f":"'Measure Descriptions'!N29","v":0}]
[{"$f":"'Measure Descriptions'!E30","v":0},{"$f":"'Measure Descriptions'!C30","v":0},{"$f":"'Measure Descriptions'!G30","v":0},{"$f":"'Measure Descriptions'!H30","v":0},{"$f":"IFERROR('Measure Simulation'!F77/V27,0)","v":0},{"$f":"IFERROR('Measure Simulation'!Q77/V27,0)","v":0},{"$f":"IFERROR(((IFERROR(('Project Summary & Incentives'!$D$79*('Project Summary & Incentives'!$C$54+'Project Summary & Incentives'!$C$55)*'Measure Simulation'!G77/'Measure Simulation'!$G$81),0)+IFERROR(('Project Summary & Incentives'!$D$80*('Project Summary & Incentives'!$C$54+'Project Summary & Incentives'!$C$55)*'Measure Simulation'!H77/'Measure Simulation'!$H$81),0)+IFERROR(('Project Summary & Incentives'!$D$81*('Project Summary & Incentives'!$C$54+'Project Summary & Incentives'!$C$55)*'Measure Simulation'!L77/'Measure Simulation'!$L$81),0)+IFERROR(('Project Summary & Incentives'!$D$82*('Project Summary & Incentives'!$C$54+'Project Summary & Incentives'!$C$55)*'Measure Simulation'!M77/'Measure Simulation'!$M$81),0))/V27),0)","v":0},{"$f":"IFERROR('Measure Simulation'!S77,0)","v":0},{"$f":"IFERROR(('Measure Simulation'!F77-(G27*V27))/'Measure Simulation'!Q77,0)","v":0},{"$f":"IFERROR('Measure Simulation'!O77/V27,0)","v":0},{"$f":"IFERROR('Measure Simulation'!G77/V27,0)","v":0},{"$f":"IFERROR('Measure Simulation'!G77*'Measure Simulation'!R77/V27,0)","v":0},{"$f":"IFERROR('Measure Simulation'!H77/V27,0)","v":0},{"$f":"IFERROR('Measure Simulation'!H77*'Measure Simulation'!R77/V27,0)","v":0},{"$f":"IFERROR('Measure Simulation'!M77/V27,0)","v":0},{"$f":"IFERROR('Measure Simulation'!M77*'Measure Simulation'!R77/V27,0)","v":0},{"$f":"IFERROR('Measure Simulation'!L77/V27,0)","v":0},{"$f":"IFERROR('Measure Simulation'!L77*'Measure Simulation'!R77/V27,0)","v":0},{"$f":"IFERROR(SUM('Measure Simulation'!I77,'Measure Simulation'!J77,'Measure Simulation'!K77,'Measure Simulation'!N77)/V27,0)","v":0},{"$f":"IFERROR(SUM('Measure Simulation'!I77,'Measure Simulation'!J77,'Measure Simulation'!K77,'Measure Simulation'!N77)*'Measure Simulation'!R77/V27,0)","v":0},{"$f":"IFERROR((K27*'UDAT Support'!$B$60+M27*'UDAT Support'!$B$59+O27*'UDAT Support'!$B$58+Q27*IF(OR('Utility Info'!$E$7=\"MMBtu\",'Utility Info'!$E$7=\"#2 Oil Gallons\")=TRUE,'UDAT Support'!$B$56,IF('Utility Info'!$E$7=\"#4 Oil Gallons\",'UDAT Support'!$B$55,IF('Utility Info'!$E$7=\"#6 Oil Gallons\",'UDAT Support'!$B$54,0)))+S27*IF(AND('Utility Info'!$F$7<>\"<Not Used>\",'Utility Info'!$F$7<>\"\")=TRUE,'UDAT Support'!$B$57,0))/V27,0)","v":0},{"$f":"IFERROR('Measure Descriptions'!L30*1,1)","v":0},{"$f":"IFERROR('Measure Descriptions'!L30*1,1)","v":0},"Capacity/Size",{"$f":"'Measure Descriptions'!J30","v":0},"Capacity/Size Units",{"$f":"'Measure Descriptions'!K30","v":0},"Efficiency",{"$f":"'Measure Descriptions'!M30","v":0},"Efficiency Units",{"$f":"'Measure Descriptions'!N30","v":0}]
[{"$f":"'Measure Descriptions'!E31","v":0},{"$f":"'Measure Descriptions'!C31","v":0},{"$f":"'Measure Descriptions'!G31","v":0},{"$f":"'Measure Descriptions'!H31","v":0},{"$f":"IFERROR('Measure Simulation'!F78/V28,0)","v":0},{"$f":"IFERROR('Measure Simulation'!Q78/V28,0)","v":0},{"$f":"IFERROR(((IFERROR(('Project Summary & Incentives'!$D$79*('Project Summary & Incentives'!$C$54+'Project Summary & Incentives'!$C$55)*'Measure Simulation'!G78/'Measure Simulation'!$G$81),0)+IFERROR(('Project Summary & Incentives'!$D$80*('Project Summary & Incentives'!$C$54+'Project Summary & Incentives'!$C$55)*'Measure Simulation'!H78/'Measure Simulation'!$H$81),0)+IFERROR(('Project Summary & Incentives'!$D$81*('Project Summary & Incentives'!$C$54+'Project Summary & Incentives'!$C$55)*'Measure Simulation'!L78/'Measure Simulation'!$L$81),0)+IFERROR(('Project Summary & Incentives'!$D$82*('Project Summary & Incentives'!$C$54+'Project Summary & Incentives'!$C$55)*'Measure Simulation'!M78/'Measure Simulation'!$M$81),0))/V28),0)","v":0},{"$f":"IFERROR('Measure Simulation'!S78,0)","v":0},{"$f":"IFERROR(('Measure Simulation'!F78-(G28*V28))/'Measure Simulation'!Q78,0)","v":0},{"$f":"IFERROR('Measure Simulation'!O78/V28,0)","v":0},{"$f":"IFERROR('Measure Simulation'!G78/V28,0)","v":0},{"$f":"IFERROR('Measure Simulation'!G78*'Measure Simulation'!R78/V28,0)","v":0},{"$f":"IFERROR('Measure Simulation'!H78/V28,0)","v":0},{"$f":"IFERROR('Measure Simulation'!H78*'Measure Simulation'!R78/V28,0)","v":0},{"$f":"IFERROR('Measure Simulation'!M78/V28,0)","v":0},{"$f":"IFERROR('Measure Simulation'!M78*'Measure Simulation'!R78/V28,0)","v":0},{"$f":"IFERROR('Measure Simulation'!L78/V28,0)","v":0},{"$f":"IFERROR('Measure Simulation'!L78*'Measure Simulation'!R78/V28,0)","v":0},{"$f":"IFERROR(SUM('Measure Simulation'!I78,'Measure Simulation'!J78,'Measure Simulation'!K78,'Measure Simulation'!N78)/V28,0)","v":0},{"$f":"IFERROR(SUM('Measure Simulation'!I78,'Measure Simulation'!J78,'Measure Simulation'!K78,'Measure Simulation'!N78)*'Measure Simulation'!R78/V28,0)","v":0},{"$f":"IFERROR((K28*'UDAT Support'!$B$60+M28*'UDAT Support'!$B$59+O28*'UDAT Support'!$B$58+Q28*IF(OR('Utility Info'!$E$7=\"MMBtu\",'Utility Info'!$E$7=\"#2 Oil Gallons\")=TRUE,'UDAT Support'!$B$56,IF('Utility Info'!$E$7=\"#4 Oil Gallons\",'UDAT Support'!$B$55,IF('Utility Info'!$E$7=\"#6 Oil Gallons\",'UDAT Support'!$B$54,0)))+S28*IF(AND('Utility Info'!$F$7<>\"<Not Used>\",'Utility Info'!$F$7<>\"\")=TRUE,'UDAT Support'!$B$57,0))/V28,0)","v":0},{"$f":"IFERROR('Measure Descriptions'!L31*1,1)","v":0},{"$f":"IFERROR('Measure Descriptions'!L31*1,1)","v":0},"Capacity/Size",{"$f":"'Measure Descriptions'!J31","v":0},"Capacity/Size Units",{"$f":"'Measure Descriptions'!K31","v":0},"Efficiency",{"$f":"'Measure Descriptions'!M31","v":0},"Efficiency Units",{"$f":"'Measure Descriptions'!N31","v":0}]

{"sheet":"Support","index":46,"n_rows":50,"n_cols":8,"rows_kept":50,"cut":false,"hidden":true,"merged":[]}
["Sheet Name","Lock","Permissions Level","Hide","SuperHide",null,"Level","Permissions"]
["Introduction & Instructions","Y",1,"N","N",null,1,"No Formatting Permissions"]
["Required Appendices","Y",1,"N","N",null,2,"Row/Column/Cell Formatting/Resizing Allowed"]
["Utility Info","Y",2,"N","N",null,3,"All Permissions Allowed"]
["Electric Totals","Y",2,"N","N"]
["Apt-Elec","Y",2,"Y","N"]
["Gas Totals","Y",2,"Y","N"]
["Apt-Gas","Y",2,"Y","N"]
["Oil","Y",2,"Y","N"]
["Propane","Y",2,"Y","N"]
["Steam","Y",2,"Y","N"]
["Chilled Water","Y",2,"Y","N"]
["Hot Water","Y",2,"Y","N"]
["Other","Y",2,"Y","N"]
["Utility Use Summary","Y",1,"N","N"]
["UDAT Support","Y",1,"Y","Y"]
["General Project Information","Y",2,"N","N"]
["Area Identification","Y",2,"N","N"]
["Area ID Support","Y",1,"Y","Y"]
["Building Types","Y",1,"Y","Y"]
["Occupancy","Y",2,"N","N"]
["Envelope","Y",2,"N","N"]
["Air-sealing","Y",2,"N","N"]
["SG - Component","Y",1,"Y","Y"]
["Mechanical","Y",2,"N","N"]
["Lighting","Y",2,"N","N"]
["Lighting Data","Y",1,"Y","Y"]
["Lighting Sample Size Calculator","Y",2,"N","N"]
["Other Equipment","Y",2,"N","N"]
["Modeling Approach","Y",2,"N","N"]
["Measure Descriptions","Y",2,"N","N"]
["Measure Simulation","Y",2,"N","N"]
["Results from Trace","Y",2,"Y","N"]
["Results from eQUEST","Y",2,"Y","N"]
["Implementation & Financing","Y",2,"N","N"]
["P4Pindices","Y",1,"Y","Y"]
["Project Summary & Incentives","Y",1,"N","N"]
["CBECS Statistics","Y",1,"N","N"]
["Reference","Y",1,"Y","Y"]
["CBECS Buildings","Y",1,"Y","Y"]
["Partner Internal QC","Y",2,"N","N"]
["QC Summary","Y",1,"Y","Y"]
["QC Measure Savings Review","Y",1,"Y","Y"]
["Report Generation","Y",1,"Y","Y"]
["Appendix B Tables","Y",2,"N","N"]
["Version Log","Y",1,"Y","Y"]
["Master Export","N",3,"N","N"]
["Support","Y",1,"Y","Y"]
[]
["Password:","trcenergy"]